{"text_format":"1","workbook":"xlsx","n_sheets":20,"sheets":["Quick Start Guide","Physical Inputs","Physical Outputs","Basic Financial","Advanced Financial","Gap Financing Options","Gap Financing Definitions","Residential Owner","Residential Rental","Retail","Office","Industrial","Hotel","Commercial Parking","Mixed-Use Summary","Building Envelope Calculator","Development Costs","Scenario Spreadsheet","PRINT_SUMMARY","DV-IDENTITY-0"],"not_rendered":{"charts":6,"images":3,"macros":1,"external_links":0,"defined_names":290,"comments":8,"pivot_tables":0},"unopened":[],"bounds":{"document_bytes":16777216,"sheet_cells":100000,"rows_first":2000,"rows_last":500,"rows_between":2000,"halvings":0,"cell_chars":16384,"cell_head_chars":4096},"cells_cut":0,"cells_raw":0,"read":"whole","date_system":"1900"}

{"sheet":"Quick Start Guide","index":0,"n_rows":44,"n_cols":4,"rows_kept":44,"cut":false,"hidden":false,"merged":[[43,1,44,5],[40,1,40,5],[12,1,12,5],[13,1,13,5],[26,1,26,5],[16,1,16,5],[21,1,21,5],[22,1,22,5],[23,1,23,5]]}
[]
[]
[]
[]
[]
[]
[]
[]
[null,"Envision Tomorrow™ Return on Investment Model"]
[null,"Version 4.0 BETA, Updated March 20, 2012"]
[]
[null,"What is the ROI Model?"]
[null,"Do you want to examine redevelopment potential in your city? Do you want to study the relationship between land use regulations and the current development market?"]
[null,"The ROI Model is a versatile, easy-to-use tool that can be used to test the physical and financial feasibility of a proposed development or existing development regulations. The ROI Model considers a range of factors including parking, height and use requirements, costs associated with construction, fees, rents and subsidies. The ROI Model allows you to model single-use and mixed-use buildings at a range of scales."]
[]
[null,"Quick Start Guide"]
[null,"A few quick and easy steps will get you started at modeling prototype buildings and testing land use regulations."]
[]
[null,"1. Save this file with a new name. "]
[]
[null,"2. Gather data for use in the ROI Model."]
[null,"- Existing land use regulations (e.g. parking requirements, height limits, landscaping, setbacks)"]
[null,"- Local estimates for construction costs, rents, sales prices, and land values"]
[null,"- Local tax rates"]
[]
[null,"3. Work through the Physical and Financial tabs."]
[null,"Using the data you have gathered, enter data into the pink Input Cells of each Input Tab in the ROI Model. If you have questions, the Envision Tumorrow user manual as well as embedded comments (hover over cells with a red corner for more information) are available to provide answers to common questions."]
[]
[null,null,"TAB Color Definition"]
[null,null,"Input Tab"]
[null,null,"Output Tab"]
[null,null,"Reference Tab"]
[]
[null,null,"CELL Color Definition"]
[null,null,"Input Cell"]
[null,null,"Header Cell"]
[null,null,"Subheader Cell"]
[null,null,"Output Cell","[white]"]
[]
[null,"4. Make adjustments to create a building that meets your goals."]
[null,"Completing the ROI Model is an iterative learning process, and you will likely go through several iterations  of each prototype building in order to test a variety of assumptions about market conditions, achieveable rent, desired building types and sizes, ownership schemes, financing, and regulatory conditions, among many other factors. It is helpful to have a goal or a question to guide your testing."]
[null,"What building types are feasible in the current market?"]
[null,"What would X (e.g. rent, land cost, financing) need to be in order to achieve a desired building type?"]
[null,"If certain regulatory constraints (e.g. height restrictions, high parking requirements or setbacks) were relaxed or removed, what new building types become possible?"]

{"sheet":"Physical Inputs","index":1,"n_rows":173,"n_cols":13,"rows_kept":173,"cut":false,"hidden":false,"merged":[[36,0,38,0],[21,0,22,0]]}
["Physical Stats"]
["Housing Units / Hotel Rooms",{"$f":"'Physical Outputs'!D37","v":42.966194417169319}]
["Jobs",{"$f":"'Physical Outputs'!E37","v":9.3307758624765782}]
["Housing / Hotel Room Density (Per Acre)",{"$f":"'Physical Outputs'!F37","v":42.966194417169319}]
["Job Density (Per Acre)",{"$f":"'Physical Outputs'!G37","v":9.3307758624765782}]
["FAR",{"$f":"'Physical Outputs'!B37/'Physical Inputs'!B22","v":1.5251405909282196}]
["Net Rentable/Sellable Square Feet",{"$f":"'Physical Outputs'!C37-'Physical Outputs'!C36","v":49411.123579744715}]
["Financial Stats"]
["Rental (Residential and Commercial)","Target Return","Actual Return"]
["Cash-on-Cash (After Year 3)",{"$f":"'Mixed-Use Summary'!N5","v":0.1},{"$f":"'Mixed-Use Summary'!O5","v":6.9405040242114052E-2}]
["IRR on Project Cost (Unleveraged Return)",{"$f":"'Mixed-Use Summary'!N6","v":0.12000000000000001},{"$f":"'Mixed-Use Summary'!O6","v":8.430347662537141E-2}]
["IRR on Investor Equity (Leveraged Return Before Tax)",{"$f":"'Mixed-Use Summary'!N7","v":0.25},{"$f":"'Mixed-Use Summary'!O7","v":0.11314156617272819}]
["Debt Service Coverage Ratio (Year 3)",{"$f":"'Mixed-Use Summary'!N8","v":1.25},{"$f":"'Mixed-Use Summary'!O8","v":1.6431210393859557}]
["IRR on Public Participation",{"$f":"'Mixed-Use Summary'!N9","v":0.05},{"$f":"'Mixed-Use Summary'!O9","v":0}]
["Owner Residential","Target Return","Actual Return"]
["Project Rate of Return",{"$f":"'Mixed-Use Summary'!S5","v":0.25},{"$f":"IF('Physical Inputs'!$B$38=\"Owner\",'Mixed-Use Summary'!U5,\"N/A\")","v":"N/A"}]
["Return to Equity",{"$f":"'Mixed-Use Summary'!S6","v":0.75},{"$f":"IF('Physical Inputs'!$B$38=\"Owner\",'Mixed-Use Summary'!U6,\"N/A\")","v":"N/A"}]
["Physical Inputs"]
["Site Inputs"]
["Building name","Mixed-Use Building"]
["Project City/State","Your City, USA"]
["Site area",43560,"square feet"]
[null,{"$f":"B22/43560","v":1},"acres"]
["Site gross-to-net ratio",1,"(enter percentage)"]
["Landscaped Area",{"$f":"SUM('Physical Outputs'!B21,'Physical Outputs'!B23)/SUM('Physical Outputs'!B20:B23)","v":0.14469261275966283}]
["Additional landscaping or open space",0,"(enter percentage)"]
["Building height (stories)",4,"stories"]
["Under-build",0.65,"(enter percentage)"]
[]
["FAR & Density Checks"]
["Maximum FAR (if applicable)",null,"FAR"]
["Percent of Allowed FAR Used",{"$f":"IF(B31=0,\"\",B6/B31)","v":""},{"$f":"IF(B33=0,\"\",\"of allowable FAR\")","v":""}]
["Maximum residential density (if applicable)",null,"units/acre"]
["Percent of Allowed Density Used",{"$f":"IF(B33=0,\"\",'Physical Outputs'!F37/B33)","v":""},{"$f":"IF(B33=0,\"\",\"of allowable residential density\")","v":""}]
[]
["Building Uses"]
["Residential","Multifamily","select single family, townhome, multifamily or none"]
[null,"Renter","select owner, renter or none"]
[null,0.8]
["Retail",0.2]
["Office",0]
["Industrial",0]
["Public",0]
["Education",0]
["Hotel/Motel",0]
["Commercial Parking",0]
["Total (Check)",{"$f":"SUM(B39:B46)","v":1}]
[]
["Residential Unit Size Estimator","Avg. Unit Size (Net Sq Ft)","% of Units in Building","# of Units by Type"]
["Affordable",1000,0.1,{"$f":"('Physical Outputs'!$C$28/$B$56)*C50","v":4.2966194417169321}]
["4+ Bedroom",2000,0,{"$f":"('Physical Outputs'!$C$28/$B$56)*C51","v":0}]
["3 Bedroom",1600,0.1,{"$f":"('Physical Outputs'!$C$28/$B$56)*C52","v":4.2966194417169321}]
["2 Bedroom",1200,0.2,{"$f":"('Physical Outputs'!$C$28/$B$56)*C53","v":8.5932388834338642}]
["1 Bedroom",800,0.3,{"$f":"('Physical Outputs'!$C$28/$B$56)*C54","v":12.889858325150795}]
["Studio",600,0.3,{"$f":"('Physical Outputs'!$C$28/$B$56)*C55","v":12.889858325150795}]
["Calculated Residential Unit Size",{"$f":"SUMPRODUCT(B50:B55,C50:C55)","v":920},{"$f":"SUM(C50:C55)","v":1},{"$f":"SUM(D51:D55)","v":38.669574975452392}]
[]
["Residential Unit Size (Avg. Sq Ft)"]
["User-defined Avg. Residential Unit Size",920,"/ sq ft"]
[]
["Gross Square Footage per Employee by Sector (Average)"]
["Retail",1246,"gross square feet/employee"]
["Office",434,"gross square feet/employee"]
["Industrial",2306,"gross square feet/employee"]
["Public",800,"gross square feet/employee"]
["Educational",800,"gross square feet/employee"]
["Hotel/Motel (Sq Ft per Employee)",1000,"gross square feet/employee"]
["Hotel/Motel (Room Size)",600,"net square feet/unit"]
["Commercial Parking",20000,"gross square feet/employee"]
[]
["Parking Requirements"]
["Parking Spaces Per Dwelling Unit, Room or 1,000 sf of Commercial",null,null,null,null,null,null,null,null,null,null,null," "]
["Residential",1.25,"space(s)/dwelling unit"]
["Retail",2,"space(s)/1000 sf"]
["Office",0,"space(s)/1000 sf"]
["Industrial",0,"space(s)/1000 sf"]
["Public",0,"space(s)/1000 sf"]
["Educational",0,"space(s)/1000 sf"]
["Hotel/Motel",2,"space(s)/room"]
[]
["Parking Type"]
["Surface or Structured Parking",1,"(number of levels)",null,null,null,null,null,null,null,null,null," "]
["Internal Parking (Tuck Under or Sandwich)",0.5,"(number of levels)"]
[null,{"$f":"IFERROR('Physical Outputs'!B58/SUM('Physical Outputs'!B43:B49),\"-\")","v":0.415020119453617},"Percent internal parking supply vs. demand"]
[null,{"$f":"IFERROR(IF(B83=0,\"\",(IF('Physical Outputs'!B59=0,\"Add Additional Parking Type\",'Physical Outputs'!B59/'Physical Outputs'!B51))),\"-\")","v":1},{"$f":"IF(B83=0,\"\",IF('Physical Outputs'!B59,\"used (internal parking check, if only parking type)\",\"\"))","v":"used (internal parking check, if only parking type)"}]
["Underground Parking",0,"(maximum number of levels to test)"]
[null,{"$f":"('Building Envelope Calculator'!C24*'Physical Inputs'!C98)/('Building Envelope Calculator'!B6)","v":1.7047608695652174},{"$f":"\"levels will maximize site without surface or structured parking\"","v":"levels will maximize site without surface or structured parking"}]
[null,{"$f":"'Building Envelope Calculator'!B141/('Physical Inputs'!B22/'Physical Inputs'!C98)","v":0},"actual underground levels after factoring underbuild"]
["Mechanical parking?","no"]
[]
["Parking Layout"]
[null,"Mark choice with \"X\"","Square feet per space "]
["Suburban Perpendicular",0,400,"sf"]
["Urban Perpendicular",0,315,"sf"]
["Structured","x",260,"sf"]
["Mechanical",0,125,"sf"]
["Custom",0,325,"sf"]
["Parking Square Footage",null,{"$f":"IF(B93=\"X\",C93,IF(B94=\"X\",C94,IF(B95=\"X\",C95,IF(B96=\"X\",C96,IF(B97=\"X\",C97,0)))))","v":260}]
[]
["Parking Layout Diagrams"]
["Suburban Perpendicular","Urban Perpendicular",null,"Structured"]
[]
[]
[]
[]
[]
[]
[]
[]
[]
[]
[]
[]
[]
[]
[]
[]
[]
[]
[]
[]
[]
[]
[]
[]
[]
[]
[]
[]
[]
[]
[]
[]
[]
[]
[]
[]
[]
[]
[]
[]
[]
[]
[]
[]
[]
[]
[]
[]
[]
[]
[]
[]
[]
[]
[]
[]
[]
[]
[]
["Menu Data (Do Not Alter)"]
["Owner"]
["Renter"]
["None"]
[]
["Single Family"]
["Townhome"]
["Multifamily"]
["Mobile Home"]
["None"]
[]
["yes"]
["no"]

{"sheet":"Physical Outputs","index":2,"n_rows":59,"n_cols":7,"rows_kept":59,"cut":false,"hidden":false,"merged":[]}
["Physical Stats"]
["Housing Units / Hotel Rooms",{"$f":"'Physical Outputs'!D37","v":42.966194417169319}]
["Jobs",{"$f":"'Physical Outputs'!E37","v":9.3307758624765782}]
["Housing / Hotel Room Density (Per Acre)",{"$f":"'Physical Outputs'!F37","v":42.966194417169319}]
["Job Density (Per Acre)",{"$f":"'Physical Outputs'!G37","v":9.3307758624765782}]
["FAR",{"$f":"'Physical Outputs'!B37/'Physical Inputs'!B22","v":1.5251405909282196}]
["Net Rentable/Sellable Square Feet",{"$f":"'Physical Outputs'!C37-'Physical Outputs'!C36","v":49411.123579744715}]
["Financial Stats"]
["Rental (Residential and Commercial)","Target Return","Actual Return"]
["Cash-on-Cash (After Year 3)",{"$f":"'Mixed-Use Summary'!N5","v":0.1},{"$f":"'Mixed-Use Summary'!O5","v":6.9405040242114052E-2}]
["IRR on Project Cost (Unleveraged Return)",{"$f":"'Mixed-Use Summary'!N6","v":0.12000000000000001},{"$f":"'Mixed-Use Summary'!O6","v":8.430347662537141E-2}]
["IRR on Investor Equity (Leveraged Return Before Tax)",{"$f":"'Mixed-Use Summary'!N7","v":0.25},{"$f":"'Mixed-Use Summary'!O7","v":0.11314156617272819}]
["Debt Service Coverage Ratio (Year 3)",{"$f":"'Mixed-Use Summary'!N8","v":1.25},{"$f":"'Mixed-Use Summary'!O8","v":1.6431210393859557}]
["IRR on Public Participation",{"$f":"'Mixed-Use Summary'!N9","v":0.05},{"$f":"'Mixed-Use Summary'!O9","v":0}]
["Owner Residential","Target Return","Actual Return"]
["Project Rate of Return",{"$f":"'Mixed-Use Summary'!S5","v":0.25},{"$f":"IF('Physical Inputs'!$B$38=\"Owner\",'Mixed-Use Summary'!U5,\"N/A\")","v":"N/A"}]
["Return to Equity",{"$f":"'Mixed-Use Summary'!S6","v":0.75},{"$f":"IF('Physical Inputs'!$B$38=\"Owner\",'Mixed-Use Summary'!U6,\"N/A\")","v":"N/A"}]
["Physical Outputs"]
["Site-Level Outputs"]
["Building footprint",{"$f":"'Building Envelope Calculator'!B133","v":25551.970823397394},"square feet"]
["Landscaping or open space",{"$f":"'Building Envelope Calculator'!B134","v":0},"square feet"]
["Parking area next to building",{"$f":"'Building Envelope Calculator'!B135","v":11705.218964791697},"square feet"]
["Unused or flexible space",{"$f":"'Building Envelope Calculator'!B136","v":6302.8102118109127},"square feet"]
["Useable building total ",{"$f":"B37","v":66435.124140833243},"square feet"]
[]
["Land Use Outputs"]
["Square Footage by Use","Gross Square Feet","Net Square Feet","Total Dwelling Units or Hotel/Motel Rooms","Total Jobs","DU/acre","Jobs/acre"]
[{"$f":"'Physical Inputs'!A37","v":"Residential"},{"$f":"'Building Envelope Calculator'!B113","v":46504.586898583264},{"$f":"B28*'Building Envelope Calculator'!B11","v":39528.898863795774},{"$f":"IF('Physical Inputs'!B59=0,0,C28/'Physical Inputs'!B59)","v":42.966194417169319},null,{"$f":"D28/'Physical Inputs'!$B$23","v":42.966194417169319}]
["Retail",{"$f":"'Building Envelope Calculator'!B114","v":11626.146724645816},{"$f":"B29*'Advanced Financial'!B24","v":9882.2247159489434},null,{"$f":"IF('Physical Inputs'!B62=0,0,B29/'Physical Inputs'!B62)","v":9.3307758624765782},null,{"$f":"E29/'Physical Inputs'!$B$23","v":9.3307758624765782}]
["Office",{"$f":"'Building Envelope Calculator'!B115","v":0},{"$f":"B30*'Advanced Financial'!B25","v":0},null,{"$f":"IF('Physical Inputs'!B63=0,0,B30/'Physical Inputs'!B63)","v":0},null,{"$f":"E30/'Physical Inputs'!$B$23","v":0}]
["Industrial",{"$f":"'Building Envelope Calculator'!B116","v":0},{"$f":"B31*'Advanced Financial'!B26","v":0},null,{"$f":"IF('Physical Inputs'!B64=0,0,B31/'Physical Inputs'!B64)","v":0},null,{"$f":"E31/'Physical Inputs'!$B$23","v":0}]
["Public",{"$f":"'Building Envelope Calculator'!B117","v":0},{"$f":"B32*'Advanced Financial'!B27","v":0},null,{"$f":"IF('Physical Inputs'!B65=0,0,B32/'Physical Inputs'!B65)","v":0},null,{"$f":"E32/'Physical Inputs'!$B$23","v":0}]
["Educational",{"$f":"'Building Envelope Calculator'!B118","v":0},{"$f":"B33*'Advanced Financial'!B28","v":0},null,{"$f":"IF('Physical Inputs'!B66=0,0,B33/'Physical Inputs'!B66)","v":0},null,{"$f":"E33/'Physical Inputs'!$B$23","v":0}]
["Hotel/Motel",{"$f":"'Building Envelope Calculator'!B119","v":0},{"$f":"B34*'Advanced Financial'!B22","v":0},{"$f":"IF('Physical Inputs'!B68=0,0,C34/'Physical Inputs'!B68)","v":0},{"$f":"IF('Physical Inputs'!B67=0,0,B34/'Physical Inputs'!B67)","v":0},{"$f":"D34/'Physical Inputs'!$B$23","v":0},{"$f":"E34/'Physical Inputs'!$B$23","v":0}]
["Commercial Parking",{"$f":"'Building Envelope Calculator'!B120","v":0},{"$f":"B35*'Advanced Financial'!B23","v":0},{"$f":"IF('Physical Inputs'!B70=0,0,C35/'Physical Inputs'!B70)","v":0},{"$f":"IF('Physical Inputs'!B69=0,0,B35/'Physical Inputs'!B69)","v":0},{"$f":"D35/'Physical Inputs'!$B$23","v":0},{"$f":"E35/'Physical Inputs'!$B$23","v":0}]
["Internal Parking",{"$f":"'Building Envelope Calculator'!B121","v":8304.3905176041535},{"$f":"B36","v":8304.3905176041535}]
["Total",{"$f":"SUM(B28:B36)","v":66435.124140833243},57715.514097348867,42.966194417169319,9.3307758624765782,42.966194417169319,9.3307758624765782]
[]
["Parking Outputs"]
["Parking spaces per 1,000 sf of development",{"$f":"'Building Envelope Calculator'!C32","v":1.8733635929288104}]
[]
["Parking Spaces by Land Use","Spaces Required","Parking Area"]
["Market-Rate Residential",{"$f":"'Building Envelope Calculator'!C113","v":53.707743021461638},{"$f":"'Physical Outputs'!B43*'Physical Inputs'!$C$98","v":13964.013185580026},"sf"]
["Retail",{"$f":"'Building Envelope Calculator'!C114","v":23.252293449291635},{"$f":"'Physical Outputs'!B44*'Physical Inputs'!$C$98","v":6045.5962968158246},"sf"]
["Office",{"$f":"'Building Envelope Calculator'!C115","v":0},{"$f":"'Physical Outputs'!B45*'Physical Inputs'!$C$98","v":0},"sf"]
["Industrial",{"$f":"'Building Envelope Calculator'!C116","v":0},{"$f":"'Physical Outputs'!B46*'Physical Inputs'!$C$98","v":0},"sf"]
["Public",{"$f":"'Building Envelope Calculator'!C117","v":0},{"$f":"'Physical Outputs'!B47*'Physical Inputs'!$C$98","v":0},"sf"]
["Educational",{"$f":"'Building Envelope Calculator'!C118","v":0},{"$f":"'Physical Outputs'!B48*'Physical Inputs'!$C$98","v":0},"sf"]
["Hotel/Motel",{"$f":"'Building Envelope Calculator'!C119","v":0},{"$f":"'Physical Outputs'!B49*'Physical Inputs'!$C$98","v":0},"sf"]
["Commercial Parking",{"$f":"'Building Envelope Calculator'!C120","v":0},{"$f":"'Physical Outputs'!B50*'Physical Inputs'!$C$98","v":0},"sf"]
["Total",{"$f":"SUM(B43:B50)","v":76.960036470753266},{"$f":"SUM(C43:C50)","v":20009.609482395852},"sf"]
[]
["Parking Spaces by Type"]
[{"$f":"'Basic Financial'!A64","v":"Surface"},{"$f":"IF('Physical Inputs'!B82=1,'Building Envelope Calculator'!B140,0)","v":45.020072941506527}]
[{"$f":"'Basic Financial'!A65","v":"Structured (above ground)"},{"$f":"IF('Physical Inputs'!B82>1,'Building Envelope Calculator'!B140,0)","v":0}]
[{"$f":"'Basic Financial'!A66","v":"Underground"},{"$f":"'Building Envelope Calculator'!B141","v":0}]
["Commercial Parking",{"$f":"'Building Envelope Calculator'!B142","v":0}]
[{"$f":"'Basic Financial'!A67","v":"Internal (Tuck Under or Sandwich)"},{"$f":"'Building Envelope Calculator'!B143","v":31.939963529246743}]
["Total",{"$f":"SUM(B54:B58)","v":76.960036470753266},"spaces"]

{"sheet":"Basic Financial","index":3,"n_rows":73,"n_cols":5,"rows_kept":73,"cut":false,"hidden":false,"merged":[]}
["Physical Stats"]
["Housing Units / Hotel Rooms",{"$f":"'Physical Outputs'!D37","v":42.966194417169319}]
["Jobs",{"$f":"'Physical Outputs'!E37","v":9.3307758624765782}]
["Housing / Hotel Room Density (Per Acre)",{"$f":"'Physical Outputs'!F37","v":42.966194417169319}]
["Job Density (Per Acre)",{"$f":"'Physical Outputs'!G37","v":9.3307758624765782}]
["FAR",{"$f":"'Physical Outputs'!B37/'Physical Inputs'!B22","v":1.5251405909282196}]
["Net Rentable/Sellable Square Feet",{"$f":"'Physical Outputs'!C37-'Physical Outputs'!C36","v":49411.123579744715}]
["Financial Stats"]
["Rental (Residential and Commercial)","Target Return","Actual Return"]
["Cash-on-Cash (After Year 3)",{"$f":"'Mixed-Use Summary'!N5","v":0.1},{"$f":"'Mixed-Use Summary'!O5","v":6.9405040242114052E-2}]
["IRR on Project Cost (Unleveraged Return)",{"$f":"'Mixed-Use Summary'!N6","v":0.12000000000000001},{"$f":"'Mixed-Use Summary'!O6","v":8.430347662537141E-2}]
["IRR on Investor Equity (Leveraged Return Before Tax)",{"$f":"'Mixed-Use Summary'!N7","v":0.25},{"$f":"'Mixed-Use Summary'!O7","v":0.11314156617272819}]
["Debt Service Coverage Ratio (Year 3)",{"$f":"'Mixed-Use Summary'!N8","v":1.25},{"$f":"'Mixed-Use Summary'!O8","v":1.6431210393859557}]
["IRR on Public Participation",{"$f":"'Mixed-Use Summary'!N9","v":0.05},{"$f":"'Mixed-Use Summary'!O9","v":0}]
["Owner Residential","Target Return","Actual Return"]
["Project Rate of Return",{"$f":"'Mixed-Use Summary'!S5","v":0.25},{"$f":"IF('Physical Inputs'!$B$38=\"Owner\",'Mixed-Use Summary'!U5,\"N/A\")","v":"N/A"}]
["Return to Equity",{"$f":"'Mixed-Use Summary'!S6","v":0.75},{"$f":"IF('Physical Inputs'!$B$38=\"Owner\",'Mixed-Use Summary'!U6,\"N/A\")","v":"N/A"}]
["Basic Financial Inputs"]
["Construction Costs Per Square Foot or Per Space (Core, Shell and Improvements)"]
["Residential",160]
["Retail",110]
["Office",95]
["Industrial",95]
["Public",95]
["Educational",100]
["Hotel/Motel",120]
["Commercial Parking (Per Space)",20000]
[]
["Land / Site Cost"]
["Acquisition Costs (Land and Improvements)",0,{"$f":"B30/'Physical Inputs'!B22","v":0},"/Square Foot"]
[]
["Subsidy"]
["Test Subsidy",0,"% of Total Project Cost"]
["Detailed Subsidy (from Leveraging Tools tab)",{"$f":"'Mixed-Use Summary'!J17+'Mixed-Use Summary'!H65","v":0},{"$f":"IFERROR(B34/-B73,0)","v":0}]
[]
["Affordable Rent Target",null,"% AMI"]
["Area Median Income",60000,0.6]
[]
["Residential Rent Estimator","$ / Sq Ft","Unit Size","Parking $/Mo","Rent"]
["Affordable",{"$f":"IFERROR(E40/C40,0)","v":0.9},{"$f":"'Physical Inputs'!B50","v":1000},0,{"$f":"(((B37*C37)/12)*0.3)+D40","v":900}]
[{"$f":"'Physical Inputs'!A51","v":"4+ Bedroom"},2,{"$f":"'Physical Inputs'!B51","v":2000},50,{"$f":"(C41*B41)+D41","v":4050}]
[{"$f":"'Physical Inputs'!A52","v":"3 Bedroom"},1.5,{"$f":"'Physical Inputs'!B52","v":1600},50,{"$f":"(C42*B42)+D42","v":2450}]
[{"$f":"'Physical Inputs'!A53","v":"2 Bedroom"},2,{"$f":"'Physical Inputs'!B53","v":1200},50,{"$f":"(C43*B43)+D43","v":2450}]
[{"$f":"'Physical Inputs'!A54","v":"1 Bedroom"},1.25,{"$f":"'Physical Inputs'!B54","v":800},50,{"$f":"(C44*B44)+D44","v":1050}]
[{"$f":"'Physical Inputs'!A55","v":"Studio"},1,{"$f":"'Physical Inputs'!B55","v":600},50,{"$f":"(C45*B45)+D45","v":650}]
["Calculated Average Monthly Rent",{"$f":"(SUMPRODUCT(B40:B45,'Physical Inputs'!C50:C55))","v":1.3150000000000002},{"$f":"IFERROR('Physical Inputs'!B56,0)","v":920},{"$f":"IFERROR(SUMPRODUCT(D40:D45,'Physical Inputs'!C50:C55),0)","v":45},{"$f":"IFERROR(C46*B46+D46,0)","v":1254.8000000000002}]
[]
["Residential Rent (Rental)","$ / Sq Ft","Unit Size","Parking $/Mo","Rent"]
["Monthly Rent per Square Foot",1.5,{"$f":"'Physical Inputs'!B59","v":920},45,{"$f":"C49*B49+D49","v":1425}]
[]
["Residential Sale Price (Owner)","$ / Sq Ft","Unit Size","Sales Price"]
["Sale Price per Square Foot",250,{"$f":"'Physical Inputs'!B59","v":920},{"$f":"B52*'Physical Inputs'!B59","v":230000}]
[null,null,null,null," "]
["Commercial Rent per Square Foot (Except Hotel/Motel and Commercial Parking)"]
["Retail",25,"Annual, Triple Net"]
["Office",26,"Annual, Triple Net"]
["Industrial",15,"Annual, Triple Net"]
["Public",25,"Annual, Triple Net"]
["Educational",25,"Annual, Triple Net"]
["Hotel/Motel",50,"Daily, Average Room Rate"]
["Commercial Parking",1,"Hourly, Average per Space"]
[]
["Parking Costs Per Space"]
["Surface",3000]
["Structured (above ground)",20000]
["Underground",55000]
["Internal (Tuck Under or Sandwich)",20000]
["Mechanical",45000]
[]
["Basic Financial Outputs"]
["Building Construction (Hard Costs)",{"$f":"SUM('Development Costs'!E12:E22)","v":-8719610.0434843618}]
["Parking Construction (Hard Costs)",{"$f":"'Development Costs'!E23","v":-773859.4894094544}]
["Total Project Costs",{"$f":"'Development Costs'!E35","v":-11629521.642412124}]

{"sheet":"Advanced Financial","index":4,"n_rows":89,"n_cols":8,"rows_kept":89,"cut":false,"hidden":false,"merged":[[59,0,59,1],[60,0,60,1],[70,0,70,1],[71,0,71,1],[63,0,63,1],[64,0,64,1],[65,0,65,1],[66,0,66,1],[67,0,67,1]]}
["Physical Stats"]
["Housing Units / Hotel Rooms",{"$f":"'Physical Outputs'!D37","v":42.966194417169319}]
["Jobs",{"$f":"'Physical Outputs'!E37","v":9.3307758624765782}]
["Housing / Hotel Room Density (Per Acre)",{"$f":"'Physical Outputs'!F37","v":42.966194417169319}]
["Job Density (Per Acre)",{"$f":"'Physical Outputs'!G37","v":9.3307758624765782}]
["FAR",{"$f":"'Physical Outputs'!B37/'Physical Inputs'!B22","v":1.5251405909282196}]
["Net Rentable/Sellable Square Feet",{"$f":"'Physical Outputs'!C37-'Physical Outputs'!C36","v":49411.123579744715}]
["Financial Stats"]
["Rental (Residential and Commercial)","Target Return","Actual Return"]
["Cash-on-Cash (After Year 3)",{"$f":"'Mixed-Use Summary'!N5","v":0.1},{"$f":"'Mixed-Use Summary'!O5","v":6.9405040242114052E-2}]
["IRR on Project Cost (Unleveraged Return)",{"$f":"'Mixed-Use Summary'!N6","v":0.12000000000000001},{"$f":"'Mixed-Use Summary'!O6","v":8.430347662537141E-2}]
["IRR on Investor Equity (Leveraged Return Before Tax)",{"$f":"'Mixed-Use Summary'!N7","v":0.25},{"$f":"'Mixed-Use Summary'!O7","v":0.11314156617272819}]
["Debt Service Coverage Ratio (Year 3)",{"$f":"'Mixed-Use Summary'!N8","v":1.25},{"$f":"'Mixed-Use Summary'!O8","v":1.6431210393859557}]
["IRR on Public Participation",{"$f":"'Mixed-Use Summary'!N9","v":0.05},{"$f":"'Mixed-Use Summary'!O9","v":0}]
["Owner Residential","Target Return","Actual Return"]
["Project Rate of Return",{"$f":"'Mixed-Use Summary'!S5","v":0.25},{"$f":"IF('Physical Inputs'!$B$38=\"Owner\",'Mixed-Use Summary'!U5,\"N/A\")","v":"N/A"}]
["Return to Equity",{"$f":"'Mixed-Use Summary'!S6","v":0.75},{"$f":"IF('Physical Inputs'!$B$38=\"Owner\",'Mixed-Use Summary'!U6,\"N/A\")","v":"N/A"}]
["Advanced Financial Inputs"]
["Building Efficiency"]
["Gross to Net Square Footage (% Rentable)",null,"Notes/Data Source"]
["Residential",0.85,"100% will automatically be used for single family, duplex or townhome buildings."]
["Hotel/Motel",0.85]
["Commercial Parking",0.95]
["Retail",0.85]
["Office",0.85]
["Industrial",0.85]
["Public",0.85]
[]
["Occupancy Rate (%)","Rate in Year 1","Long-Term Rate","Notes/Data Source"]
["Residential",0.8,0.95]
["Hotel/Motel",null,0.75,"Average daily occupancy"]
["Retail",0.95,0.95]
["Office",0.95,0.95]
["Industrial",0.95,0.95]
["Commercial Parking",null,0.7,"Average daily occupancy"]
["Public",null,0.95]
[]
["Pre Development Costs",null,"Notes/Data Source"]
["Due diligence ",0,"Enter manually if applicable"]
["Land carry (% of raw land cost)",0.05,"Expert interviews"]
["Land entitlement / legal fees (% raw land)",0.02,"Expert interviews"]
["Professional fees (% of hard costs)",0.05,"Expert interviews"]
[]
["Development Costs",null,"Notes/Data Source"]
["Demolition costs (total)",0,"Enter manually if applicable"]
["Site development costs (per sf)",0]
["Brownfield remediation costs (per sf of site area)",0,"Enter manually if applicable"]
["Additional infrastructure enhancement costs (total)",0]
[]
["Indirect Costs ",null,"Notes/Data Source"]
["Impact Fees (per Unit)",5000,"Enter manually"]
["Impact Fees (per Job)",0,"Enter manually"]
["Building permit fees",5000,"Enter manually"]
["Taxes during construction (% raw land)",0.01,"Expert interviews"]
["Insurance during construction (% of total building costs)",0.01,"Expert interviews"]
["Developer fee",0.04,"Expert interviews"]
["Contingency",0.1,"Expert interviews"]
[]
["Property Taxes",null,"Residential (Rental)","Hotel/Motel","Retail","Office","Industrial","Commercial Parking"]
["Property Tax Rate (% of building value)",0.01,0.02,0.01,0.02,0.01,0.01,1.4999999999999999E-2]
["Assessment Ratio (Assessment Value / Market Value)",0.75,0.75,0.54,0.75,0.54,0.54,0.54]
[]
["Financial Targets",null,"Residential (Rental)","Hotel/Motel","Retail","Office","Industrial","Commercial Parking"]
["Cash-on-Cash (After Year 3)",null,0.1,0.1,0.1,0.1,0.1,0.1]
["IRR on Project Cost (Unleveraged Return)",null,0.12,0.12,0.12,0.12,0.12,0.12]
["IRR on Investor Equity (Leveraged Return Before Tax)",null,0.25,0.25,0.25,0.25,0.25,0.25]
["Debt Service Coverage Ratio (Year 3)",null,1.25,1.25,1.25,1.25,1.25,1.25]
["IRR on Public Participation",null,0.05,0.05,0.05,0.05,0.05,0.05]
[]
[null,null,"Residential (Owner)"]
["Project Rate of Return",null,0.25]
["Return to Equity",null,0.75]
[]
["Financial Assumptions","Residential (Owner)","Residential (Rental)","Hotel/Motel","Retail","Office","Industrial","Commercial Parking"]
["Projected retail sales/sf (retail only)",null,null,null,350]
["% of sales to rent (retail only)",null,null,null,0.04]
["Other income (vending, fines)",null,0.1,0.1,0.02,0.1,0.1,0]
["Concessions and bad debt",null,0.02,0.02,0.02,0.02,0.02,0]
["Operating costs (per unit, % of GPI, or per space)",null,0.12,0.3,0.2,0.2,0.2,800]
["Going in cap rate",null,0.06,0.06,0.06,7.2999999999999995E-2,7.2999999999999995E-2,0]
["Gross potential income - escalation",null,0.03,0.03,0.03,0.03,0.03,0]
["Operating costs - escalation",null,0.03,0.03,0.03,0.03,0.03,0]
["Terminal cap rate, gross sales price",null,7.2999999999999995E-2,7.2999999999999995E-2,7.2999999999999995E-2,7.2999999999999995E-2,0.08,0]
["Net sales = price less sales cost",null,0.05,0.05,0.05,0.05,0.05,0]
[]
["Primary Debt","Residential (Owner)","Residential (Rental)","Hotel/Motel","Retail","Office","Industrial","Commercial Parking"]
["Maximum LTV",0.6,0.6,0.6,0.6,0.6,0.6,0.6]
["Interest rate",null,0.06,0.06,0.06,0.04,0.06,0.06]
["Amortization period - years",null,30,30,30,30,30,30]

{"sheet":"Gap Financing Options","index":5,"n_rows":123,"n_cols":10,"rows_kept":123,"cut":false,"hidden":false,"merged":[[66,9,67,9],[60,8,60,9],[113,0,113,7],[44,0,44,7],[12,0,12,7],[28,0,28,7],[59,0,59,7],[79,0,79,7],[89,0,89,7]]}
["Financial Stats","Residential (Owner)","Residential (Rental)","Hotel/Motel","Retail","Office","Industrial","Mixed-Use"]
["Rental (Residential and Commercial)","%","%","%","%","%","%","%"]
["Cash-on-Cash (After Year 3)",null,{"$f":"'Residential Rental'!M5","v":4.3053342295733731E-2},{"$f":"Hotel!M5","v":0},{"$f":"Retail!M5","v":0.17048161991371172},{"$f":"Office!M5","v":0},{"$f":"Industrial!M5","v":0},{"$f":"'Mixed-Use Summary'!O5","v":6.9405040242114052E-2}]
["IRR on Project Cost (Unleveraged Return)",null,{"$f":"'Residential Rental'!M6","v":6.0112830341974899E-2},{"$f":"Hotel!M6","v":0},{"$f":"Retail!M6","v":0.15407301844517329},{"$f":"Office!M6","v":0},{"$f":"Industrial!M6","v":0},{"$f":"'Mixed-Use Summary'!O6","v":8.430347662537141E-2}]
["IRR on Investor Equity (Leveraged Return Before Tax)",null,{"$f":"'Residential Rental'!M7","v":6.0839290837189974E-2},{"$f":"Hotel!M7","v":0},{"$f":"Retail!M7","v":0.24573494039427457},{"$f":"Office!M7","v":0},{"$f":"Industrial!M7","v":0},{"$f":"'Mixed-Use Summary'!O7","v":0.11314156617272819}]
["Debt Service Coverage Ratio (Year 3)",null,{"$f":"'Residential Rental'!M8","v":1.3989409148050689},{"$f":"Hotel!M8","v":0},{"$f":"Retail!M8","v":2.5797169227571382},{"$f":"Office!M8","v":0},{"$f":"Industrial!M8","v":0},{"$f":"'Mixed-Use Summary'!O8","v":1.6431210393859557}]
["IRR on Public Participation",null,{"$f":"'Residential Rental'!M9","v":0},{"$f":"Hotel!M9","v":0},{"$f":"Retail!M9","v":0},{"$f":"Office!M9","v":0},{"$f":"Industrial!M9","v":0},{"$f":"'Mixed-Use Summary'!O9","v":0}]
["Owner Residential","%","%","%","%","%","%","%"]
["Project Rate of Return",{"$f":"'Residential Owner'!D3","v":0},null,null,null,null,null,{"$f":"'Mixed-Use Summary'!U5","v":0}]
["Return to Equity",{"$f":"'Residential Owner'!D4","v":0},null,null,null,null,null,{"$f":"'Mixed-Use Summary'!U6","v":0}]
[]
["Leveraging Tools"]
["Cash Flow Support - Property Tax Abatements"]
["Property Tax Abatements","Residential (Owner)","Residential (Rental)","Hotel/Motel","Retail","Office","Industrial","Commercial Parking"]
["Local property tax rate available for abatement",null,0,0,0,0,0,0]
["Total Property Tax Abatement",null,{"$f":"SUM('Residential Rental'!E122:N122)","v":0},{"$f":"SUM(Hotel!E125:N125)","v":0},{"$f":"SUM(Retail!E125:N125)","v":0},{"$f":"SUM(Industrial!E122:N122)","v":0},{"$f":"SUM(Industrial!E122:N122)","v":0},{"$f":"SUM('Commercial Parking'!E125:N125)","v":0}]
["Year 1",null,0,0,0,0,0,0]
["Year 2",null,0,0,0,0,0,0]
["Year 3",null,0,0,0,0,0,0]
["Year 4",null,0,0,0,0,0,0]
["Year 5",null,0,0,0,0,0,0]
["Year 6",null,0,0,0,0,0,0]
["Year 7",null,0,0,0,0,0,0]
["Year 8",null,0,0,0,0,0,0]
["Year 9",null,0,0,0,0,0,0]
["Year 10",null,0,0,0,0,0,0]
[]
[]
["Cash Flow Support - Sales Tax Abatements"]
["Sales Tax Abatements",null,null,"Hotel/Motel","Retail","Office","Industrial","Commercial Parking"]
["Local sales tax rate available for abatement",null,null,0,0,0,0,0]
["Total Sales Tax Abatements",null,null,{"$f":"SUM(Hotel!E126:N126)","v":0},{"$f":"SUM(Retail!E126:N126)","v":0},{"$f":"SUM(Office!E123:N123)","v":0},{"$f":"SUM(Industrial!E123:N123)","v":0},{"$f":"SUM('Commercial Parking'!E126:N126)","v":0}]
["Year 1",null,null,0,0,0,0,0]
["Year 2",null,null,0,0,0,0,0]
["Year 3",null,null,0,0,0,0,0]
["Year 4",null,null,0,0,0,0,0]
["Year 5",null,null,0,0,0,0,0]
["Year 6",null,null,0,0,0,0,0]
["Year 7",null,null,0,0,0,0,0]
["Year 8",null,null,0,0,0,0,0]
["Year 9",null,null,0,0,0,0,0]
["Year 10",null,null,0,0,0,0,0]
[]
[]
["Cash Flow Support - TIF or IRA Payments"]
["Cash Flow Support",null,"Residential (Rental)","Hotel/Motel","Retail","Office","Industrial","Commercial Parking"]
["Total Cash Flow Support",null,{"$f":"SUM('Residential Rental'!E124:N124)","v":0},{"$f":"SUM(Hotel!E127:N127)","v":0},{"$f":"SUM(Retail!E127:N127)","v":0},{"$f":"SUM(Office!E124:N124)","v":0},{"$f":"SUM(Industrial!E124:N124)","v":0},{"$f":"SUM('Commercial Parking'!E127:N127)","v":0}]
["Year 1",null,0,0,0,0,0,0]
["Year 2",null,0,0,0,0,0,0]
["Year 3",null,0,0,0,0,0,0]
["Year 4",null,0,0,0,0,0,0]
["Year 5",null,0,0,0,0,0,0]
["Year 6",null,0,0,0,0,0,0]
["Year 7",null,0,0,0,0,0,0]
["Year 8",null,0,0,0,0,0,0]
["Year 9",null,0,0,0,0,0,0]
["Year 10",null,0,0,0,0,0,0]
[]
[]
["Loan Support"]
["Loan Terms",null,"Residential (Rental)","Hotel/Motel","Retail","Office","Industrial","Commercial Parking","Total"]
["Public Leveraging Loan Included in Analysis? (1=Yes; 0=No)",0,{"$f":"IF('Basic Financial'!B33=0,$B$62,0)","v":0},{"$f":"IF('Basic Financial'!C33=0,$B$62,0)","v":0},{"$f":"IF('Basic Financial'!D33=0,$B$62,0)","v":0},{"$f":"IF('Basic Financial'!E33=0,$B$62,0)","v":0},{"$f":"IF('Basic Financial'!F33=0,$B$62,0)","v":0}]
["Maximum LTV",null,0.3,0.3,0.3,0.3,0.3,0.3]
["Interest rate",null,0.03,0.03,0.03,0.03,0.03,0.03]
["Amortization period - years",null,15,15,15,15,15,15]
["Loan $ Amount Required to Meet Loan Terms",null,{"$f":"C63*'Mixed-Use Summary'!B55","v":2767373.8344541471},{"$f":"D63*'Mixed-Use Summary'!E55","v":0},{"$f":"E63*'Mixed-Use Summary'!D55","v":721482.65826949},{"$f":"F63*'Mixed-Use Summary'!C55","v":0},{"$f":"G63*'Mixed-Use Summary'!F55","v":0},{"$f":"H63*'Mixed-Use Summary'!G55","v":0},{"$f":"SUM(C66:H66)","v":3488856.4927236373}]
["Baseline Loan Support (based on LTV)",null,{"$f":"IF('Physical Inputs'!$B$38=\"Renter\",'Mixed-Use Summary'!B64,0)","v":0},{"$f":"'Mixed-Use Summary'!E64","v":0},{"$f":"'Mixed-Use Summary'!D64","v":0},{"$f":"'Mixed-Use Summary'!C64","v":0},{"$f":"'Mixed-Use Summary'!F64","v":0},{"$f":"'Mixed-Use Summary'!G64","v":0},{"$f":"SUM(C67:G67)","v":0},{"$f":"SUM(I67:I68)","v":0}]
["Extra Loan Support (if options selected below exceed LTV amount required)",null,{"$f":"IF('Physical Inputs'!$B$38=\"Renter\",((B73-I67)*'Development Costs'!E39),0)","v":0},{"$f":"((B73-I67)*'Development Costs'!E45)","v":0},{"$f":"((B73-I67)*'Development Costs'!E40)","v":0},{"$f":"((B73-I67)*SUM('Development Costs'!E41,'Development Costs'!E43:E44))","v":0},{"$f":"((B73-I67)*'Development Costs'!E42)","v":0},{"$f":"((B73-I67)*'Development Costs'!E46)","v":0},{"$f":"SUM(C68:H68)","v":0}]
["Capital recovery (from grants)"]
["Annual cash throw off"]
["Share of net sales price"]
["Loan Support Options","Total Detailed","User Overide"]
["Total Loan Support",{"$f":"IF(AND(B62=1,C73=0,SUM(B74:B77)=0),I66,IF(C73>0,C73,SUM(B74:B77)))","v":0},0]
["Private Activity Bonds (PAB)"]
["Revolving Loan Funds (RLF)"]
["Low-Interest Loans (LIL)"]
["State Infrastructure Banks (SIB)"]
[]
[]
["Fee Waivers / Reductions"]
["Fee Waivers","Residential (Owner)","Residential (Rental)","Hotel/Motel","Retail","Office","Industrial","Commercial Parking"]
["Fee Waivers / Reductions Distribution",{"$f":"IF('Physical Inputs'!$B$38=\"Owner\",'Gap Financing Options'!$B$84*'Development Costs'!$E$39,0)","v":0},{"$f":"IF('Physical Inputs'!$B$38=\"Renter\",'Gap Financing Options'!$B$84*'Development Costs'!$E$39,0)","v":0},{"$f":"B84*'Development Costs'!$E$45","v":0},{"$f":"$B84*'Development Costs'!$E$40","v":0},{"$f":"B84*IFERROR(SUM('Development Costs'!E41,'Development Costs'!E43:E44),0)","v":0},{"$f":"B84*'Development Costs'!$E$42","v":0},{"$f":"$B84*'Development Costs'!$E$46","v":0}]
["User Inputs","Total Detailed","User Overide"]
["Fee Waivers Total",{"$f":"IF(C84>0.01,C84,SUM(B85:B87))","v":0},0]
["Fee Waivers (FW)"]
["Utility Fee Reductions (UFR)"]
["Impact Fee Reductions (IFR)"]
[]
[]
["Grants"]
["Grants","Residential (Owner)","Residential (Rental)","Hotel/Motel","Retail","Office","Industrial","Commercial Parking"]
["Grant Distribution",{"$f":"IF('Physical Inputs'!$B$38=\"Owner\",'Gap Financing Options'!$B$94*'Development Costs'!$E$39,0)","v":0},{"$f":"IF('Physical Inputs'!$B$38=\"Renter\",'Gap Financing Options'!$B$94*'Development Costs'!$E$39,0)","v":0},{"$f":"B94*'Development Costs'!$E$45","v":0},{"$f":"$B94*'Development Costs'!$E$40","v":0},{"$f":"B94*IFERROR(SUM('Development Costs'!E41,'Development Costs'!E43:E44),0)","v":0},{"$f":"B94*'Development Costs'!$E$42","v":0},{"$f":"$B94*'Development Costs'!$E$46","v":0}]
["User Inputs","Total Detailed","User Overide"]
["Grants Total",{"$f":"IF(C94>0.01,C94,SUM(B95:B111))","v":0},0]
["CDBG"]
["CMAQ"]
["STP"]
["EDA"]
["LID"]
["Business Improvement Districts (BID)"]
["Revenue Bonds (RB)"]
["Parking Districts (PD)"]
["General Obligation Bonds (GOB)"]
["TIF"]
["GARVEE"]
["COPs"]
["TIFIA"]
["RRIF"]
["Urbanized Area Formula (UAF) Program"]
["Foundation Grants (FG)"]
["Other"]
[]
[]
["Tax Credits"]
["Tax Credits","Residential (Owner)","Residential (Rental)","Hotel/Motel","Retail","Office","Industrial","Commercial Parking"]
["Tax Credits net to project Distribution",{"$f":"IF(SUM(B118:H118)=0,IF('Physical Inputs'!$B$38=\"Owner\",'Gap Financing Options'!B120*B117,0),IF('Physical Inputs'!$B$38=\"Owner\",'Gap Financing Options'!B120*B118,0))","v":0},{"$f":"IF(SUM(B118:H118)=0,IF('Physical Inputs'!$B$38=\"Renter\",'Gap Financing Options'!B120*C117,0),IF('Physical Inputs'!$B$38=\"Renter\",'Gap Financing Options'!B120*C118,0))","v":0},{"$f":"IF(SUM(B118:H118)=0,B120*D117,B120*D118)","v":0},{"$f":"IF(SUM(B118:H118)=0,$B120*E117,B120*E118)","v":0},{"$f":"IF(SUM(B118:H118)=0,B120*F117,B120*F118)","v":0},{"$f":"IF(SUM(B118:H118)=0,B120*G117,B120*G118)","v":0},{"$f":"IF(SUM(B118:H118)=0,$B120*H117,B120*H118)","v":0}]
["Development Costs by Land Use (%)",{"$f":"IF('Physical Inputs'!$B$38=\"Owner\",'Development Costs'!$E$39,0)","v":0},{"$f":"IF('Physical Inputs'!$B$38=\"Renter\",'Development Costs'!$E$39,0)","v":0.79320368729002899},{"$f":"'Development Costs'!$E$45","v":0},{"$f":"'Development Costs'!$E$40","v":0.20679631270997104},{"$f":"'Development Costs'!$E$41","v":0},{"$f":"'Development Costs'!$E$42","v":0},{"$f":"'Development Costs'!$E$46","v":0}]
["Tax Credit Allocation (%) Overide - User Defined"]
["User Inputs","Total Detailed","User Overide"]
["Tax Credits Total",{"$f":"IF(C120>0.01,C120,SUM(B121:B123))","v":0}]
["Low/Moderate Income Housing Tax Credits (L/MIHTC)"]
["New Market Tax Credits (NMTC)"]
["Historic Preservation Tax Credits (HPTC)"]

{"sheet":"Gap Financing Definitions","index":6,"n_rows":132,"n_cols":2,"rows_kept":132,"cut":false,"hidden":false,"merged":[[0,0,0,1]]}
["PUBLIC LEVERAGING TOOLS"]
[]
["Cash Flow Support -- Improves annual project cash flow"]
[]
["Property Tax Abatement (PTA)"]
[null,"Many local communities may eliminate or reduce real and personal property taxes over a scheduled period of time as an incentive to new and expanding businesses. Usually, property tax abatement allows a property owner to phase in payment of property taxes over a designated period. Depending on state enabling legislation, this period may be any number of years between one and 20 or longer with abatements usually ranging from 100 percent down to 10 percent for any given year. Sometimes property tax abatement is used to offset capital investments made by the investor (see Tax Increment Finance and Infrastructure Reimbursement Agreements)."]
[null,"Application – Reduced property tax assessments over the applicable years."]
[]
["Sales Tax Abatement (STA)"]
[null,"Some states allow local communities to eliminate or reduce sales taxes over a scheduled period of time as an incentive to new and expanding businesses. Usually, sales tax abatement allows a retail operation to phase in payment of sales taxes over a designated period. Depending on state enabling legislation, this period may be any number of years between one and usually no more than 10 but it could be longer, with abatements usually ranging from 100 percent down to 10 percent for any given year. Sometimes sales tax abatement is used to offset capital investments made by the investor (see Tax Increment Finance and Infrastructure Reimbursement Agreements)."]
[null,"Application – Reduced sales tax assessments over the applicable years."]
[]
["Tax Increment Financing (TIF)"]
[null,"TIF uses future gains in taxes to finance improvements which in theory create the very value recaptured for this purpose – it is a form of value recapture. When a development or public project is carried out, there is often an increase in the value of surrounding real estate and perhaps new investment such as new or rehabilitated buildings. This increased site value and investment sometimes generates increased tax revenues. The increased tax revenues are the \"tax increment.\" Tax Increment Financing dedicates tax increments within a certain defined district to finance debt issued to pay for the project. TIF is designed to channel funding toward improvements in distressed or underdeveloped areas where development might not otherwise occur. TIF creates funding for \"public\" projects that may otherwise be unaffordable to localities, by borrowing against future property tax revenues. TIF can also be applied to increased sales taxes generated by new development. TIF revenues may be used to retire bonds issued to finance qualifying public purpose investments, or used to reimburse the investor directly from property and/or sales taxes (see Infrastructure Reimbursement Agreements)."]
[null,"Application – Where TIF bonds are used, the tool is considered a grant. Where property and/or sales tax abatement is used, abatement would be the application."]
[]
["Infrastructure Reimbursement Agreements (IRA)"]
[null,"Sometimes local government cannot finance facility improvements needed to attract investment. In these situations, the investor may be willing to finance the improvements provided the investor is reimbursed through property and/or sales tax abatements. Another alternative is to have local government assess subsequent new development a proportionate share of its cost of facility improvements though a “late-comer” fee."]
[null,"Application – Reduced property and/or sales tax assessments over the applicable years."]
[]
["Fee Waivers -- Effect is to buy down total project cost"]
[]
["Fee Waivers (FW)"]
[null,"Local governments assess a wide range of fees to process new development. Collectively, they can account for up to 5 percent or more of the total construction costs. Waiver of fees, or their payment through such alternatives as CDBG funds, can reduce the cost."]
[null,"Application – Grant for qualifying capital improvements."]
[]
["Utility Fee Reductions (UFR)"]
[null,"Many local governments charge connection fees to link new development to water and sewer services. They can account for up to 5 percent or more of the total construction costs. Some local governments reduce or waive these fees for economic development, redevelopment, affordable housing, or other public policy purpose."]
[null,"Application – Grant for qualifying capital improvements."]
[]
["Impact Fee Reductions (IFR)"]
[null,"Many local governments charge impact fees so that the impacts of new development on public facilities can be mitigated. They can account for up to 5 percent or more of the total construction costs. Normally impact fees must be paid to assure legal defensibility but they may be paid from such alternatives as CDBG funds, local housing or economic development funds, or paid over time through a loan arrangement."]
[null,"Application – Fee waiver/reduction."]
[]
["Grants -- Proceeds used to buy down land and/or building costs"]
[]
["Community Development Block Grants (CDBG)"]
[null,"The Community Development Block Grant (CDBG) program is one of the longest-running programs of the U.S. Department of Housing and Urban Development. It funds local community development activities such as affordable housing, anti-poverty programs, and infrastructure development. CDBG are subject to less federal oversight and are largely used at the discretion of the state and local governments and their sub grantees."]
[null,"Application – Grant for qualifying capital improvements."]
[]
["Congestion Mitigation and Air Quality Improvement (CMAQ) Funds"]
[null,"The CMAQ program was created under the Intermodal Surface Transportation Efficiency Act (ISTEA) of 1991, continued under the Transportation Equity Act for the 21st Century (TEA-21), and reauthorized by the Safe, Accountable, Flexible, Efficient Transportation Equity Act: A Legacy for Users (SAFETEA-LU). The purpose of the CMAQ program is to fund transportation projects or programs that will contribute to attainment or maintenance of the national ambient air quality standards (NAAQS) for ozone, carbon monoxide (CO), and particulate matter (PM). CMAQ funds may be used to establish new or expanded transportation projects or programs that reduce emissions, including capital investments in transportation infrastructure, congestion relief efforts, diesel engine retrofits, or other capital projects."]
[null,"Application – Grant for qualifying capital improvements."]
[]
["Surface Transportation Program (STP)"]
[null,"The STP provides flexible funding that may be used by States and localities for projects on any Federal-aid highway, including the NHS, bridge projects on any public road, transit capital projects, and intracity and intercity bus terminals and facilities. A portion of funds reserved for rural areas may be spent on rural minor collectors. http://www.fhwa.dot.gov/tea21/factsheets/stp.htm"]
[null,"Application – Grant for qualifying capital improvements."]
[]
["Economic Development Administration (EDA) Grants"]
[null,"The EDA is an agency in the U.S. Department of Commerce that provides grants to economically distressed communities to generate new employment, help retain existing jobs and stimulate industrial and commercial growth."]
[null,"Application – Grant for qualifying capital improvements."]
[]
["Local Improvement District; Community Improvement District; Special Assessment District; Benefit Assessment District; Related (LID)"]
[null,"These are mechanisms for property owners with common concerns to band together and assess themselves for purely local improvements such as sidewalk repair, neighborhood park rehabilitation, streets, and so forth. They must be authorized by state law and follow specific state procedures for formation, governance, and the issuance of bonds to finance the projects. They are funded through such sources as general taxes, special assessments, or fees based on formulas (such as street front-foot). Although property owners pay the benefits to new investment could be considered a grant. (See also Business Improvement Districts.)"]
[null,"Application – Grant for qualifying capital improvements."]
[]
["Business Improvement Districts (BID)"]
[null,"A business improvement district (BID) is a defined area within which businesses pay an additional tax or fee in order to fund improvements within the district's boundaries. Grant funds acquired by the city for special programs and/or incentives such as tax abatements can be made available to assist businesses or to recruit new business. BIDs may go by other names, such as business improvement area (BIA), business revitalization zone (BRZ), community improvement district (CID), special services area (SSA), or special improvement district (SID). BIDs provide services, such as cleaning streets, providing security, making capital improvements, construction of pedestrian and streetscape enhancements, and marketing the area. The services provided by BIDs are supplemental to those already provided by the municipality. BIDs may generate revenue used to underwrite investments in new development."]
[null,"Application – Grant for qualifying capital improvements."]
[]
["Revenue Bonds (RB)"]
[null,"A revenue bond is a special type of municipal bond distinguished by its guarantee of repayment solely from revenues generated by a specified revenue-generating entity associated with the purpose of the bonds, rather than from a tax. Unlike general obligation bonds, only the revenues specified in the legal contract between the bond holder and bond issuer are required to be used for repayment of the principal and interest of the bonds; other revenues (notably tax revenues) and the general credit of the issuing agency are not so encumbered. Because the pledge of security is not as great as that of general obligation bonds, revenue bonds may carry a slightly higher interest rate than G.O. bonds; however, they are usually considered the second-most secure type of municipal bonds."]
[null,"Application – Grant for qualifying capital improvements."]
[]
["Parking Districts (PD)"]
[null,"These are a variant of the Local Improvement District but focusing on providing parking usually for downtowns and suburban centers. A Revenue Bond is used finance the capital construction while parking fees retire the debt and help with maintenance. Sometimes a BID will underwrite the revenue bond and use parking revenues for O&M. Parking districts can shift the cost of providing expensive decked or underground parking from an investment project to a larger pool of properties."]
[null,"Application – Grant for qualifying capital improvements, usually the parking structures costs otherwise incurred by new investment."]
[]
["General Obligation Bonds (GOB)"]
[null,"A general obligation bond is a common type of municipal bond in the nation that is secured by a state or local government's pledge to use legally available resources, including tax revenues, to repay bond holders. Most general obligation pledges at the local government level include a pledge to levy a property tax to meet debt service requirements, in which case holders of general obligation bonds have a right to compel the borrowing government to levy that tax to satisfy the local government's obligation. Because property owners are usually reluctant to risk losing their holding due to unpaid property tax bills, credit rating agencies often consider a general obligation pledge to have very strong credit quality and frequently assign them investment grade ratings. If local property owners do not pay their property taxes on time in any given year, a government entity is required to increase its property tax rate by as much as is legally allowable in a following year to make up for any delinquencies. In the interim between the taxpayer delinquency and the higher property tax rate in the following year, the general obligation pledge requires the local government to pay debt service coming due with its available resources. GO Bonds can be used for a wide range of purposes that benefit investment property."]
[null,"Application – Grant for qualifying capital improvements."]
[]
["Tax Increment Financing (TIF)"]
[null,"TIF uses future gains in taxes to finance improvements which in theory create the very value recaptured for this purpose – it is a form of value recapture. When a development or public project is carried out, there is often an increase in the value of surrounding real estate and perhaps new investment such as new or rehabilitated buildings. This increased site value and investment sometimes generates increased tax revenues. The increased tax revenues are the \"tax increment.\" Tax Increment Financing dedicates tax increments within a certain defined district to finance debt issued to pay for the project. TIF is designed to channel funding toward improvements in distressed or underdeveloped areas where development might not otherwise occur. TIF creates funding for \"public\" projects that may otherwise be unaffordable to localities, by borrowing against future property tax revenues. TIF can also be applied to increased sales taxes generated by new development. TIF revenues may be used to retire bonds issued to finance qualifying public purpose investments, or used to reimburse the investor directly from property and/or sales taxes (see Infrastructure Reimbursement Agreements)."]
[null,"Application – Where TIF bonds are used, the tool is considered a grant. Where property and/or sales tax abatement is used, abatement would be the application."]
[]
["Grant Anticipation Revenue (GARVEE) Bonds"]
[null,"Grant Anticipation Revenue Vehicle, or GARVEE, is a type of bond issued by a state or state infrastructure bank under federal guidelines. States must repay the bonds using federal funds expected to be received in the future. Federal guidelines state \"an eligible debt financing instrument is a bond, note, certificate, mortgage, lease, or other debt financing instrument issued by a State or political subdivision of a State or a public authority, the proceeds of which are used to fund a project eligible for assistance under Title 23.” GARVEE bonds may be used for major projects receiving federal funding. They do not guarantee that the federal government will provide the expected financing, and they are not guaranteed by the federal government. Eligible costs for projects may include interest, retirement of principal, costs for issuing bonds, and other incidental costs which must be approved. "]
[null,"Application – Grant for qualifying capital improvements."]
[]
["Lease Revenue Bonds/Certificates of Participation (COPs)"]
[null,"Lease-revenue bonds are a variant of revenue bonds.  The revenue stream backing the bond is created from lease payments made by the occupying department to the governmental financing entity which constructs the facility.  The financing authority constructs the facility, issues financing bonds, and retains title to the facility until the debt is retired.  Lease-revenue bonds do not require voter approval because the transaction is set up to mirror a typical financing lease, i.e., lease payments are due on a year-to-year basis and required only if the facility can be occupied.  "]
[null,"A further variant are Certificates of Participation (COPs) in which an investor buys a share in the improvements or infrastructure the government entity intends to fund. This contrasts with a bond, in which the investor loans the government or municipality money in order to make these improvements. This is used primarily when the government or municipality has a charter-mandated debt ceiling. "]
[null,"Application – Where the tool generates revenue to finance improvements, they may be considered a form of long-term financing. Where they generate funds to build a facility for a public purpose and the tenant such as a government entity retires the debt through lease payments, they may be considered a grant for construction but rent revenue pledged to the lease must be reduced from cash flow available to the investor."]
[]
["Transportation Infrastructure Finance and Innovation Act (TIFIA)"]
[null,"The TIFIA program provides Federal credit assistance to nationally or regionally significant surface transportation projects, including highway, transit and rail. The program is designed to fill market gaps and leverage substantial private co-investment by providing projects with supplemental or subordinate debt."]
[null,"Application – Grant for qualifying capital improvements."]
[]
["Railroad Rehabilitation & Improvement Financing (RRIF) Program"]
[null,"The RRIF program was established by the Transportation Equity Act for the 21st Century (TEA-21) and amended by the Safe Accountable, Flexible and Efficient Transportation Equity Act: a Legacy for Users (SAFETEA-LU). The RRIF Program provides direct federal loans and loan guarantees to finance development of railroad infrastructure."]
[null,"Application – Grant for qualifying capital improvements."]
[]
["Urbanized Area Formula (UAF) Program"]
[null,"The UAF makes Federal resources available to urbanized areas and to Governors for transit capital and operating assistance in urbanized areas and for transportation related planning. Activities include planning, engineering design and evaluation of transit projects and other technical transportation-related studies."]
[null,"Application – Grant for qualifying capital improvements."]
[]
["Foundation Grants (FG)"]
[null,"Foundations, especially those whose purpose is to advance the well being of local communities, may be interested in providing grants or lower interest loans. "]
[null,"Application – Grant for qualifying capital improvements and or debt service usually with below-market interest."]
[]
["Loan Support -- Effect is to reduce equity requirements and if below-market rates also reduce debt service obligations"]
[]
["Private Activity Bonds (PAB)"]
[null,"This is a form of a tax-exempt municipal bond in which a local government entity is seeking to raise money for a private company. A municipality issues a private activity bond when it wishes to attract a business and the jobs it brings to the area, especially when the business may be otherwise unable to obtain financing for the project. The municipality issuing the bond must be able to prove that a public benefit derives from the private activity bond in order to qualify for tax-exempt status. Private activity bonds generally are not guaranteed by the revenue of the municipality."]
[null,"Application – Debt service usually with below-market interest."]
[]
["Revolving Loan Funds (RLF)"]
[null,"A Revolving Loan Funds (RLF) is a source of money from which loans are made for multiple business development projects. The fund gets its name from the revolving aspect of loan repayment, where the central fund is replenished as individual projects pay back their loans, creating the opportunity to issue other loans to new projects. "]
[null,"Application – Debt service usually with below-market interest."]
[]
["Low-Interest Loans (LIL)"]
[null,"Local governments may have access to funds that can be used to provide below-market loans for all or part of an investment. If it is just for part, it is often used for “mezzanine” financing."]
[null,"Application – Debt service usually with below-market interest."]
[]
["State Infrastructure Banks (SIB)"]
[null,"The SIB program gives states the capacity to increase the efficiency of their transportation investment and significantly leverage Federal resources by attracting non-Federal public and private investment. A SIB, much like a private bank, can offer a range of loans and credit assistance enhancement products to public and private sponsors of Title 23 highway construction projects or Title 49 transit capital projects. By offering SIB support for a project, the sponsor may be able to attract private, local, and additional state financial resources, leveraging a small amount of SIB assistance into a larger dollar investment. Alternatively, SIB capital can be used as collateral to borrow in the bond market or to establish a guaranteed reserve fund. (May not be available in all areas)"]
[null,"Application – establish infrastructure revolving funds eligible to be capitalized with Federal transportation funds "]
[]
["Tax Credits -- Net proceeds used to buy down construction costs"]
[]
["Low/Moderate Income Housing Tax Credits (L/MIHTC)"]
[null,"The federal Low/Moderate Income Housing Tax Credit (LIHTC - often pronounced \"lie-tech\" or MIHTC – “my-tech” housing credit) program is a dollar-for-dollar tax credit in the for affordable housing investments. It was created under the Tax Reform Act of 1986 (TRA86) that gives incentives for the utilization of private equity in the development of affordable housing aimed at low- or moderate-income households. L/MIHTC accounts for the majority - approximately 90 percent - of all affordable rental housing created in the United States today. The credits are also commonly called Section 42 credits in reference to the applicable section of the Internal Revenue Service. The tax credits are more attractive than tax deductions as they provide a dollar-for-dollar reduction in a taxpayer's federal income tax, whereas a tax deduction only provides a reduction in taxable income. The \"passive loss rules\" and similar tax changes made by TRA86 greatly reduced the value of tax credits and deductions to individual taxpayers. As a result, almost all investors in L/MIHTC projects are corporations."]
[null,"Application – The tax credit is considered a grant against a share of the construction cost of the project for each year in which the credit is applicable, up to 10 years. The credit is 9-percent per year for qualifying low-income housing for a total of 90 percent over 10 years, and 4-percent per year for qualifying moderate income housing for a total of 40 percent also over 10 years. The credits apply only to individually qualifying units, and may include a mix of low-income (9-percent/year credit), moderate-income (4-percent/year credit), and market rate (no credit) units."]
[]
["New Market Tax Credits (NMTC)"]
[null,"The New Markets Tax Credit (NMTC) Program was established in 2000 as part of the Community Renewal Tax Relief Act of 2000. The goal of the program is to induce revitalization efforts of low-income and impoverished communities. The NMTC Program provides tax credit incentives to investors for equity investments in certified Community Development Entities, which invest in low-income communities. The credit equals 39-percent of the investment paid out as 5-percent in each of the first three years and then 6-percent in the final four years (actually six years and plus one day of the seventh year) . A Community Development Entity must have a primary mission of investing in low-income communities and persons. "]
[null,"Application – Grant for qualifying capital improvements."]
[]
["Historic Preservation Tax Credits (HPTC)"]
[null,"An owner of rental/income-producing property listed by the National Park Service’s Register of National Historic Places (or properties that are contributing resources within a National Register Historic District) may be eligible for a 20 percent investment tax credit for the rehabilitation of the historic structure. The rehabilitation may include commercial, industrial, or residential rental property. In addition, the tax incentive program allows for a 10 percent tax credit for rehabilitation of non-historic, nonresidential buildings built before 1936."]
[null,"Application – Grant for qualifying capital improvements."]

{"sheet":"Residential Owner","index":7,"n_rows":49,"n_cols":4,"rows_kept":49,"cut":false,"hidden":false,"merged":[]}
["ROI Template - Residential Owner"]
["Investment Targets and Performance","Target","Actual","Leveraging Tools"]
["Project Rate of Return Target",{"$f":"'Advanced Financial'!C71","v":0.25},{"$f":"B25","v":0},{"$f":"B43","v":0}]
["Equity Return Target",{"$f":"'Advanced Financial'!C72","v":0.75},{"$f":"B29","v":0},{"$f":"B48","v":0}]
[]
["Public Leveraging Tools",null,"TOTAL"]
["     Tax Credits net to project",{"$f":"'Gap Financing Options'!B116","v":0},{"$f":"IF('Basic Financial'!B33=0,B7,0)","v":0}]
["     Fee Reductions",{"$f":"'Gap Financing Options'!B82","v":0},{"$f":"IF('Basic Financial'!B33=0,B8,0)","v":0}]
["     Grants",{"$f":"'Gap Financing Options'!B92","v":0},{"$f":"IF('Physical Inputs'!B38=\"Renter\",0,IF('Basic Financial'!B33=0,B9,'Development Costs'!E39*'Basic Financial'!B33))","v":0}]
["     Total",{"$f":"SUM(B7:B9)","v":0},{"$f":"SUM(C7:C9)","v":0}]
[]
[]
["Project Baseline","Baseline Figures"]
["     Total Project Cost",{"$f":"IF('Physical Inputs'!B38=\"Owner\",-'Development Costs'!D39,0)","v":0}]
["     Interim Financing Amount",{"$f":"(1-'Advanced Financial'!B87)*B14","v":0}]
["     Developer Equity",{"$f":"B14-B15","v":0}]
["     Residential Units",{"$f":"IF('Physical Inputs'!B38=\"Owner\",'Physical Inputs'!B2,0)","v":0}]
["     Average Market Price",{"$f":"'Basic Financial'!D52","v":230000}]
["     Net Sales Proceeds",{"$f":"B17*B18","v":0}]
["     Net Project Return",{"$f":"B19-B14","v":0}]
[]
["Performance Assessment"]
["     Total Project Cost",{"$f":"B14","v":0}]
["     Project Return",{"$f":"B19-B23","v":0}]
["     Project Profit (Loss) - based on target return",{"$f":"IF(B23=0,0,B24/B23)","v":0}]
["     Net Project Return",{"$f":"B24-(B14*B3)","v":0}]
["     Net Sales Proceeds",{"$f":"B24","v":0}]
["     Equity",{"$f":"B16","v":0}]
["     Return to Equity",{"$f":"IF(B28=0,0,B27/B28)","v":0}]
["     Project Profit (Loss) - based on target return",{"$f":"B27-(B4*B28)","v":0}]
[]
["Leveraged Performance Analysis"]
["Adjusted Financial Features"]
["     Project Cost",{"$f":"B14","v":0}]
["     Public Leveraging",{"$f":"IF('Physical Inputs'!B38=\"Renter\",0,IF('Basic Financial'!B33=0,C10,'Basic Financial'!B33*'Development Costs'!E39))","v":0}]
["     Adjusted Project Cost",{"$f":"B34-B35","v":0}]
["     Interim Financing Amount",{"$f":"B15","v":0}]
["     Developer Equity",{"$f":"IF((B36-B37)<0,1,B36-B37)","v":0}]
["Project Rate of Return"]
["     Adjusted Project Cost",{"$f":"B36","v":0}]
["     Net Sales Proceeds",{"$f":"B19","v":0}]
["     Net Project Return",{"$f":"B41-B40","v":0}]
["     Project Rate of Return",{"$f":"IF(B40=0,0,B42/B40)","v":0}]
["     Project Profit (Loss)",{"$f":"B42-(B40*B3)","v":0}]
["Equity Rate of Return"]
["     Developer Equity",{"$f":"B38","v":0}]
["     Net Project Return",{"$f":"B42","v":0}]
["     Return to Equity",{"$f":"IFERROR(B47/B46,0)","v":0}]
["     Equity Profit (Loss)",{"$f":"B47-(B46*B4)","v":0}]

{"sheet":"Residential Rental","index":8,"n_rows":532,"n_cols":30,"rows_kept":532,"cut":false,"hidden":false,"merged":[]}
["ROI Template - Residential Rental"]
[]
["Leveraging Tools",null,null,"Summary","User override ","TOTAL",null,"Investment Targets and Performance"]
["Tax Credits net to project",null,null,{"$f":"'Gap Financing Options'!C116","v":0},null,{"$f":"IF('Basic Financial'!$B$33=0,D4,0)","v":0},null,"Performance Indicator",null,null,null,"Target","Actual","NPV"]
["Fee Reductions",null,null,{"$f":"'Gap Financing Options'!C82","v":0},null,{"$f":"IF('Basic Financial'!$B$33=0,D5,0)","v":0},null,"Cash-on-Cash After Year 3",null,null,null,{"$f":"'Advanced Financial'!C64","v":0.1},{"$f":"G131","v":4.3053342295733731E-2}]
["Grants",null,null,{"$f":"'Gap Financing Options'!C92","v":0},null,{"$f":"IF('Basic Financial'!$B$33=0,D6,IF('Physical Inputs'!B38=\"Renter\",'Basic Financial'!$B$33*'Development Costs'!E39,0))","v":0},null,"IRR on Project Cost (Unleveraged Return)",null,null,null,{"$f":"'Advanced Financial'!C65","v":0.12},{"$f":"N145","v":6.0112830341974899E-2},{"$f":"N146","v":-2814623.9938504328}]
["Total Development Offsets (Contributions to Equity)",null,null,null,null,{"$f":"SUM(F4:F6)","v":0},null,"IRR on Investor Equity (Leveraged Return Before Tax)",null,null,null,{"$f":"'Advanced Financial'!C66","v":0.25},{"$f":"N153","v":6.0839290837189974E-2},{"$f":"N154","v":-2165007.9039256568}]
["Net Development Costs",null,null,null,null,{"$f":"(C56-F7)","v":9224579.4481804911},null,"Debt Service Coverage Ratio (Year 3)",null,null,null,{"$f":"'Advanced Financial'!C67","v":1.25},{"$f":"IFERROR(G125/G127,0)","v":1.3989409148050689}]
[null,null,null,null,null,null,null,"IRR on Public Participation",null,null,null,{"$f":"E110","v":0.05},{"$f":"N163","v":0},{"$f":"N164","v":0}]
[]
[]
[]
["Local Property Tax Rate Available for abatement",null,null,{"$f":"'Gap Financing Options'!C15","v":0}]
[]
["Net Operating Income Analysis"]
["Total Development Costs",null,null,{"$f":"IF('Physical Inputs'!B38=\"Renter\",-'Development Costs'!D39,0)","v":9224579.4481804911}]
["Project Feature",null,"Project","Rent"]
["Number of units",null,{"$f":"IF('Physical Inputs'!B38=\"Renter\",'Physical Outputs'!D28,0)","v":42.966194417169319}]
["Total project size, square feet",null,{"$f":"IF('Physical Inputs'!B38=\"Renter\",'Physical Outputs'!C28,0)","v":39528.898863795774},{"$f":"IF('Physical Inputs'!B38=\"Renter\",'Basic Financial'!E49,0)","v":1425}]
["Other Income (vending, fines)",null,{"$f":"IF('Physical Inputs'!B38=\"Renter\",'Advanced Financial'!C77,0)","v":0.1}]
["Less: Vacancy",null,{"$f":"IF('Physical Inputs'!B38=\"Renter\",1-'Advanced Financial'!C30,0)","v":5.0000000000000044E-2}]
["Less: Concessions, Bad Debt",null,{"$f":"IF('Physical Inputs'!B38=\"Renter\",'Advanced Financial'!C78,0)","v":0.02}]
["Less: Operating Costs (per unit)",null,{"$f":"IF('Physical Inputs'!B38=\"Renter\",IFERROR((('Advanced Financial'!C79*E61)/'Physical Outputs'!D28),0),0)","v":2052}]
[]
["Initial Project Value Analysis"]
["Property Value (Year 1)"]
["Going in Cap Rate",null,null,{"$f":"IF('Physical Inputs'!B38=\"Renter\",'Advanced Financial'!C80,0)","v":0.06}]
[]
["Debt Financing",null,null,"."]
["Primary Debt"]
["Maximum LTV",null,null,{"$f":"'Advanced Financial'!C87","v":0.6}]
["Rate",null,null,{"$f":"'Advanced Financial'!C88","v":0.06}]
["Amortization Period, Years",null,null,{"$f":"'Advanced Financial'!C89","v":30}]
["Public Leveraging Loan"]
["Maximum LTV",null,null,{"$f":"IF(D42=1,'Gap Financing Options'!C63,0)","v":0}]
["Rate",null,null,{"$f":"IF(D42=1,'Gap Financing Options'!C64,0)","v":0}]
["Amortization Period, Years",null,null,{"$f":"IF(D42=1,'Gap Financing Options'!C65,0)","v":0}]
["Public Participation",null,null,null,null,null," "]
["Capital Recovery (from grants)",null,null,{"$f":"IF(D42=0,0,'Gap Financing Options'!C69)","v":0}]
["Annual Cash Throw Off",null,null,{"$f":"IF(D42=0,0,'Gap Financing Options'!C70)","v":0}]
["Share of Net Sales Price",null,null,{"$f":"IF(D42=0,0,'Gap Financing Options'!C71)","v":0}]
["Public Leveraging Loan Included in Analysis?(1=Yes; 0=No).",null,null,{"$f":"'Gap Financing Options'!C62","v":0}]
["Target IRR",null,null,{"$f":"'Advanced Financial'!C68","v":0.05}]
[]
["Operating Statement"]
["GPI",null,"Escalation",{"$f":"'Advanced Financial'!C81","v":0.03}]
["EGI",null,null,null,null,null,null,null,null,null,null,null,null,null,"  "]
["Less: Operating Costs",null,"Escalation",{"$f":"'Advanced Financial'!C82","v":0.03}]
[]
["Project Value",null,null,"Year 1"]
["Terminal Cap Rate, Gross Sales Price",null,null,{"$f":"'Advanced Financial'!C83","v":7.2999999999999995E-2}]
["Net Sales = Price Less Sales Cost",null,null,{"$f":"'Advanced Financial'!C84","v":0.05}]
[]
[]
["Net Operating Income Analysis",null,"Project"]
["Total Development Costs",null,{"$f":"D16","v":9224579.4481804911}]
["Development Costs Per Unit",null,{"$f":"IFERROR(C56/C59,0)","v":214693.89070432412}]
["Project Feature",null,"Project","Rent","Total Rent","Rent PSF"]
["Number of units",null,{"$f":"C18","v":42.966194417169319}]
["Total project size, square feet",null,{"$f":"C19","v":39528.898863795774},{"$f":"D19","v":1425},{"$f":"C59*D60","v":61226.827044466278},{"$f":"IFERROR(E60/C60,0)","v":1.5489130434782608}]
["Gross Potential Rent  (GPI)",null,null,null,{"$f":"E60*12","v":734721.92453359533}]
["Other Income (vending, fines)",null,{"$f":"C20","v":0.1},null,{"$f":"C62*E61","v":73472.19245335953}]
["Total Income",null,null,null,{"$f":"E61+E62","v":808194.11698695482}]
["Less: Vacancy",null,{"$f":"C21","v":5.0000000000000044E-2},null,{"$f":"E63*C64","v":40409.705849347774}]
["Less: Concessions, Bad Debt",null,{"$f":"C22","v":0.02},null,{"$f":"E63*C65","v":16163.882339739097}]
["Effective Gross Income  (EGI)",null,null,null,{"$f":"E63-E64-E65","v":751620.52879786794}]
["Less: Operating Costs (per unit)",null,{"$f":"C23","v":2052},null,{"$f":"C67*C59","v":88166.630944031436}]
["Net Operating Income",null,null,null,{"$f":"E66-E67","v":663453.89785383653}]
[]
["Initial Project Value Analysis"]
["CAP RATE (Yield to Costs)",null,{"$f":"IFERROR(E68/F8,0)","v":7.1922400536611988E-2}]
["Debt Service",null,{"$f":"IFERROR(-E97,0)","v":398203.30457783281}]
["Cash Flow",null,{"$f":"E68-C72","v":265250.59327600372}]
["Return on Equity (Year 1)",null,{"$f":"IFERROR(C73/E102,0)","v":7.1886906814034549E-2}]
["Property Value (Year 1)"]
["NOI",null,{"$f":"E68","v":663453.89785383653}]
["Going in Cap Rate",null,{"$f":"D27","v":0.06}]
["Project Market Value",null,{"$f":"IFERROR(C76/C77,0)","v":11057564.96423061}]
["Net Project Value",null,{"$f":"C78-C56","v":1832985.516050119}]
[]
["Debt Financing"]
["Primary Debt"]
["Total Value",null,null,null,{"$f":"IF(C78>C56,C56,C78)","v":9224579.4481804911}]
["Maximum LTV",null,null,{"$f":"D31","v":0.6},{"$f":"E83*D84","v":5534747.6689082943}]
["Imputed Loan Amount",null,null,null,{"$f":"E84","v":5534747.6689082943}]
["Rate",null,null,null,{"$f":"D32","v":0.06}]
["Amortization Period, Years",null,null,null,{"$f":"D33","v":30}]
["Annual Debt Service (Amortized)",null,null,null,{"$f":"IFERROR(PMT(E86/12,E87*12,E85)*12,0)","v":-398203.30457783281}]
["Public Leveraging Loan"]
["Maximum LTV",null,null,{"$f":"IF(D42=1,D35,0)","v":0},{"$f":"IF(AND('Physical Inputs'!B38=\"Renter\",E83*D90>'Development Costs'!E39*'Gap Financing Options'!B73),'Development Costs'!E39*'Gap Financing Options'!B73,E83*D90)","v":0}]
["Imputed Loan Amount",null,null,null,{"$f":"IF(AND(D42=1,'Basic Financial'!B33=0),E90+'Gap Financing Options'!C68,0)","v":0}]
["Rate",null,null,null,{"$f":"IF(D42=1,D36,0)","v":0}]
["Amortization Period, Years",null,null,null,{"$f":"IF(D42=1,D37,0)","v":0}]
["Annual Debt Service (Amortized)",null,null,null,{"$f":"IFERROR(PMT(E92/12,E93*12,E91)*12,0)","v":0}]
[]
["Total Debt",null,null,null,{"$f":"E85+E91","v":5534747.6689082943}]
["Total Debt Service",null,null,null,{"$f":"E88+E94","v":-398203.30457783281}]
["Summary"]
["Total Development Costs",null,null,null,{"$f":"C56","v":9224579.4481804911}]
["Equity Required",null,null,null,{"$f":"IF(E99-E96<0,1,E99-E96)","v":3689831.7792721968}]
["Total Development Offsets (Contributions to Equity)",null,null,null,{"$f":"F7","v":0}]
["Net Equity Required",null,null,null,{"$f":"E100-E101","v":3689831.7792721968}]
["Total Project Cost",null,null,null,{"$f":"E99","v":9224579.4481804911}]
["Total Project Cost After Development Offsets",null,null,null,{"$f":"E103-E101","v":9224579.4481804911}]
["Public Participation"]
["Capital Recovery (from grants)",null,null,null,{"$f":"D39","v":0}]
["Annual Cash Throw Off",null,null,null,{"$f":"D40","v":0}]
["Share of Net Sales Price",null,null,null,{"$f":"D41","v":0}]
["Public Leveraging Loan Included in Analysis? ",null,null,"(1=Yes; 0=No)",{"$f":"D42","v":0}]
["Target IRR",null,null,null,{"$f":"D43","v":0.05}]
[]
[]
["Operating Statement",null,null,null,"Year 1","Year 2","Year 3","Year 4","Year 5","Year 6","Year 7","Year 8","Year 9","Year 10"]
["GPI",null,"Escalation",{"$f":"D46","v":0.03},{"$f":"E61","v":734721.92453359533},{"$f":"E114*(1+$D$114)","v":756763.58226960315},779466.48973769124,802850.48442982195,826935.99896271667,851744.07893159823,877296.40129954624,903615.29333853268,930723.75213868869,958645.46470284939]
["Other Income",null,null,null,{"$f":"E62","v":73472.19245335953},75676.358226960321,77946.64897376913,80285.04844298221,82693.599896271684,85174.407893159834,87729.640129954627,90361.529333853265,93072.375213868858,95864.546470284928]
["Total Income",null,null,null,{"$f":"E114+E115","v":808194.11698695482},832439.94049656345,857413.1387114604,883135.53287280421,909629.59885898838,936918.48682475812,965026.04142950091,993976.82267238596,1023796.1273525576,1054510.0111731342]
["Less: Vacancy",null,null,{"$f":"C64","v":5.0000000000000044E-2},{"$f":"IF('Advanced Financial'!B30>0,(1-'Advanced Financial'!B30)*E116,$D$117*E116)","v":161638.82339739092},{"$f":"$D$117*F116","v":41621.997024828212},42870.656935573061,44156.776643640253,45481.47994294946,46845.924341237951,48251.302071475089,49698.841133619339,51189.806367627927,52725.500558656757]
["Less: Concessions, Market Loss",null,null,{"$f":"C65","v":0.02},{"$f":"$D$118*E116","v":16163.882339739097},16648.798809931268,17148.26277422921,17662.710657456086,18192.591977179767,18738.369736495162,19300.520828590019,19879.536453447719,20475.922547051152,21090.200223462685]
["EGI",null,null,null,{"$f":"E116-E117-E118","v":630391.4112498248},774169.14466180396,797394.21900165814,821316.04557170789,845955.52693885914,871334.19274702494,897474.21852943581,924398.44508531888,952130.39843787858,980694.31039101479]
["Less: Operating Costs",null,"Escalation",{"$f":"D48","v":0.03},{"$f":"E67","v":88166.630944031436},{"$f":"E120*(1+$D$120)","v":90811.62987235238},93535.978768522953,96342.05813157864,99232.319875526009,102209.2894717918,105275.56815594556,108433.83520062393,111686.85025664265,115037.45576434192]
["Less: Property Taxes",null,"Millage Rate",{"$f":"'Advanced Financial'!C60","v":0.02},{"$f":"$F8*$D121*'Advanced Financial'!$C61","v":138368.69172270736},{"$f":"$F8*$D121*'Advanced Financial'!$C61*(1+$D$114)","v":142519.75247438857},{"$f":"$F8*$D121*'Advanced Financial'!$C61*(1+$D$114)^2","v":146795.34504862022},{"$f":"$F8*$D121*'Advanced Financial'!$C61*(1+$D$114)^3","v":151199.20540007885},{"$f":"$F8*$D121*'Advanced Financial'!$C61*(1+$D$114)^4","v":155735.18156208118},{"$f":"$F8*$D121*'Advanced Financial'!$C61*(1+$D$114)^5","v":160407.23700894363},{"$f":"$F8*$D121*'Advanced Financial'!$C61*(1+$D$114)^6","v":165219.45411921194},{"$f":"$F8*$D121*'Advanced Financial'!$C61*(1+$D$114)^7","v":170176.03774278832},{"$f":"$F8*$D121*'Advanced Financial'!$C61*(1+$D$114)^8","v":175281.31887507194},{"$f":"$F8*$D121*'Advanced Financial'!$C61*(1+$D$114)^9","v":180539.75844132411}]
["Plus: Property Tax Abatement",null,null,null,{"$f":"$D$13*'Advanced Financial'!$C61*$F8*'Gap Financing Options'!C17","v":0},{"$f":"$D$13*'Advanced Financial'!$C61*$F8*(1+$D$114)*'Gap Financing Options'!C18","v":0},{"$f":"$D$13*'Advanced Financial'!$C61*$F8*(1+$D$114)^2*'Gap Financing Options'!C19","v":0},{"$f":"$D$13*'Advanced Financial'!$C61*$F8*(1+$D$114)^3*'Gap Financing Options'!C20","v":0},{"$f":"$D$13*'Advanced Financial'!$C61*$F8*(1+$D$114)^4*'Gap Financing Options'!C21","v":0},{"$f":"$D$13*'Advanced Financial'!$C61*$F8*(1+$D$114)^5*'Gap Financing Options'!C22","v":0},{"$f":"$D$13*'Advanced Financial'!$C61*$F8*(1+$D$114)^6*'Gap Financing Options'!C23","v":0},{"$f":"$D$13*'Advanced Financial'!$C61*$F8*(1+$D$114)^7*'Gap Financing Options'!C24","v":0},{"$f":"$D$13*'Advanced Financial'!$C61*$F8*(1+$D$114)^8*'Gap Financing Options'!C25","v":0},{"$f":"$D$13*'Advanced Financial'!$C61*$F8*(1+$D$114)^9*'Gap Financing Options'!C26","v":0}]
["Cash Throw Off to Public Partner",null,null,null,{"$f":"-$E$107","v":0},0,0,0,0,0,0,0,0,0]
["TIF + IRA Retainage of Taxes",null,null,null,{"$f":"'Gap Financing Options'!C48","v":0},{"$f":"'Gap Financing Options'!C49","v":0},{"$f":"'Gap Financing Options'!C50","v":0},{"$f":"'Gap Financing Options'!C51","v":0},{"$f":"'Gap Financing Options'!C52","v":0},{"$f":"'Gap Financing Options'!C53","v":0},{"$f":"'Gap Financing Options'!C54","v":0},{"$f":"'Gap Financing Options'!C55","v":0},{"$f":"'Gap Financing Options'!C56","v":0},{"$f":"'Gap Financing Options'!C57","v":0}]
["NOI",null,null,null,{"$f":"E119-E121-E120+E122+E123+E124","v":403856.08858308604},{"$f":"F119-F121-F120+F122+F123+F124","v":540837.76231506304},557062.89518451493,573774.78204005049,590988.02550125192,608717.66626628954,626979.1962542783,645788.5721419066,665162.22930616396,685117.0961853487]
[]
["Less: Debt Service",null,null,null,{"$f":"-$E$97","v":398203.30457783281},398203.30457783281,398203.30457783281,398203.30457783281,398203.30457783281,398203.30457783281,398203.30457783281,398203.30457783281,398203.30457783281,398203.30457783281]
["Net Cash Flow",null,null,null,{"$f":"E125-E127","v":5652.7840052532265},142634.45773723023,158859.59060668212,175571.47746221768,192784.72092341911,210514.36168845673,228775.89167644549,247585.26756407379,266958.92472833116,286913.79160751589]
[]
["Cap Rate",null,null,null,{"$f":"IFERROR(E125/$E$99,0)","v":4.3780433661151343E-2},5.8630072552710355E-2,6.0388974729291667E-2,6.2200643971170429E-2,6.4066663290305526E-2,6.598866318901471E-2,6.7968323084685159E-2,7.0007372777225699E-2,7.210759396054249E-2,7.4270821779358745E-2]
["Cash on Cash Return (Equity Dividend Rate)",null,null,null,{"$f":"IFERROR(E128/$E$102,0)","v":1.5319896253829257E-3},{"$f":"IFERROR(F128/$E$102,0)","v":3.8656086854280458E-2},4.3053342295733731E-2,4.7582515400430632E-2,5.2247563698268391E-2,5.7052563445041324E-2,6.2001713184217447E-2,6.7099337415568824E-2,7.234989037386079E-2,{"$f":"IFERROR(N128/$E$102,0)","v":7.7757959920901426E-2}]
[]
["Project Value",null,null,"Year 0","Year 1","Year 2","Year 3","Year 4","Year 5","Year 6","Year 7","Year 8","Year 9","Year 10"]
["Terminal Cap Rate, Gross Sales Price",null,null,null,{"$f":"D51","v":7.2999999999999995E-2},null,null,null,null,null,null,null,null,{"$f":"IFERROR(N125/E134,0)","v":9385165.7011691611}]
["Net Sales = Price Less Sales Cost",null,null,null,{"$f":"D52","v":0.05},null,null,null,null,null,null,null,null,{"$f":"N134*(1-E135)","v":8915907.4161107019}]
["Less Mortgage Balance",null,null,null,null,null,null,null,null,null,null,null,null,{"$f":"AA181","v":4631793.7116388651}]
["Net Sales Proceeds",null,null,null,null,null,null,null,null,null,null,null,null,{"$f":"N135-N136","v":4284113.7044718368}]
[]
[]
["IRR - Unleveraged (Project Cost)",null,null,"Year 0","Year 1","Year 2","Year 3","Year 4","Year 5","Year 6","Year 7","Year 8","Year 9","Year 10"]
["Total Investment",null,null,{"$f":"-E104","v":-9224579.4481804911}]
["Project NOI",null,null,null,{"$f":"E125","v":403856.08858308604},{"$f":"F125","v":540837.76231506304},557062.89518451493,573774.78204005049,590988.02550125192,608717.66626628954,626979.1962542783,645788.5721419066,665162.22930616396,685117.0961853487]
["Net Sales Price",null,null,null,null,null,null,null,null,null,null,null,null,{"$f":"N135","v":8915907.4161107019}]
["Total",null,null,{"$f":"SUM(D141:D143)","v":-9224579.4481804911},{"$f":"SUM(E141:E143)","v":403856.08858308604},{"$f":"SUM(F141:F143)","v":540837.76231506304},557062.89518451493,573774.78204005049,590988.02550125192,608717.66626628954,626979.1962542783,645788.5721419066,665162.22930616396,9601024.5122960508]
["IRR - Project Cost",null,null,null,null,null,null,null,null,null,null,null,null,{"$f":"IFERROR(IRR(D144:N144),0)","v":6.0112830341974899E-2}]
["NPV - Project Cost",null,null,null,null,null,null,null,null,null,null,null,null,{"$f":"NPV(L6,D144:N144)","v":-2814623.9938504328}]
[]
["IRR - Leveraged (Before Tax)",null,null,"Year 0","Year 1","Year 2","Year 3","Year 4","Year 5","Year 6","Year 7","Year 8","Year 9","Year 10"]
["Original Investment (Equity)",null,null,{"$f":"-E102","v":-3689831.7792721968}]
["Project Cash Flow",null,null,null,{"$f":"E128","v":5652.7840052532265},142634.45773723023,158859.59060668212,175571.47746221768,192784.72092341911,210514.36168845673,228775.89167644549,247585.26756407379,266958.92472833116,286913.79160751589]
["Net Sales Proceeds",null,null,null,null,null,null,null,null,null,null,null,null,{"$f":"N137","v":4284113.7044718368}]
["Total",null,null,{"$f":"SUM(D149:D151)","v":-3689831.7792721968},5652.7840052532265,142634.45773723023,158859.59060668212,175571.47746221768,192784.72092341911,{"$f":"SUM(J149:J151)","v":210514.36168845673},{"$f":"SUM(K149:K151)","v":228775.89167644549},{"$f":"SUM(L149:L151)","v":247585.26756407379},{"$f":"SUM(M149:M151)","v":266958.92472833116},{"$f":"SUM(N149:N151)","v":4571027.4960793527}]
["IRR - Equity",null,null,null,null,null,null,null,null,null,null,null,null,{"$f":"IFERROR(IRR(D152:N152),0)","v":6.0839290837189974E-2}]
["NPV - Equity",null,null,null,null,null,null,null,null,null,null,null,null,{"$f":"NPV(L7,D152:N152)","v":-2165007.9039256568}]
[]
["IRR - Public Participation",null,null,"Year 0","Year 1","Year 2","Year 3","Year 4","Year 5","Year 6","Year 7","Year 8","Year 9","Year 10"]
["Original Investment (Equity)",null,null,{"$f":"-(E106+(E91*E109))","v":0}]
["Mezzanine Financing",null,null,null,{"$f":"-$E$94","v":0},0,0,0,0,0,0,0,0,0]
["Cash Throw Off",null,null,null,{"$f":"$E$107","v":0},0,0,0,0,0,0,0,0,0]
["Sale Proceeds",null,null,null,null,null,null,null,null,null,null,null,null,{"$f":"N151*E108","v":0}]
["Loan Balance",null,null,null,null,null,null,null,null,null,null,null,null,{"$f":"V181*E109","v":0}]
["Total",null,null,{"$f":"SUM(D157:D161)","v":0},{"$f":"SUM(E157:E161)","v":0},0,0,0,0,0,0,0,0,0]
["IRR - Equity",null,null,null,null,null,null,null,null,null,null,null,null,{"$f":"IFERROR(IRR(D162:N162),0)","v":0}]
["NPV - Equity",null,null,null,null,null,null,null,null,null,null,null,null,{"$f":"NPV(E110,D162:N162)","v":0}]
[]
[]
[]
["DEBT SERVICE MORTIZATION TABLES"]
["Primary Debt Amortization",null,null,null,null,"Low Interest Loan",null,null,null,null,"Total Debt Amortization",null,null,null,null,"Annual Debt Service Summary - Primary Debt",null,null,null,null,"Annual Debt Service Summary - Secondary Debt",null,null,null,null,"Annual Debt Service Summary - Total Debt"]
[]
["Period","Balance","Payment","Interest","Principal","Period","Balance","Payment","Interest","Principal","Period","Balance","Payment","Interest","Principal","Year","Balance","Payment","Interest","Principal","Year","Balance","Payment","Interest","Principal","Year","Balance","Payment","Interest","Principal"]
[0,{"$f":"'Residential Rental'!E85","v":5534747.6689082943},null,null,null,0,{"$f":"'Residential Rental'!E91","v":0},null,null,null,0,{"$f":"B172+G172","v":5534747.6689082943},null,null,null,1,{"$f":"B184","v":5466780.3192891385},{"$f":"SUM(C173:C184)","v":398203.30457783287},{"$f":"SUM(D173:D184)","v":330235.95495867624},{"$f":"SUM(E173:E184)","v":67967.349619156492},1,{"$f":"G184","v":0},{"$f":"SUM(H173:H184)","v":0},{"$f":"SUM(I173:I184)","v":0},{"$f":"SUM(J173:J184)","v":0},1,{"$f":"Q172+V172","v":5466780.3192891385},{"$f":"R172+W172","v":398203.30457783287},{"$f":"S172+X172","v":330235.95495867624},{"$f":"T172+Y172","v":67967.349619156492}]
[1,{"$f":"B172-E173","v":5529237.7985380162},{"$f":"-'Residential Rental'!$E$88/12","v":33183.608714819398},{"$f":"'Residential Rental'!$E$86/12*B172","v":27673.738344541471},{"$f":"C173-D173","v":5509.8703702779276},1,{"$f":"G172-J173","v":0},{"$f":"-'Residential Rental'!$E$94/12","v":0},{"$f":"'Residential Rental'!$E$92/12*G172","v":0},{"$f":"H173-I173","v":0},1,{"$f":"G173+B173","v":5529237.7985380162},33183.608714819398,27673.738344541471,5509.8703702779276,2,{"$f":"B196","v":5394620.8922672439},{"$f":"SUM(C185:C196)","v":398203.30457783287},{"$f":"SUM(D185:D196)","v":326043.87755593739},{"$f":"SUM(E185:E196)","v":72159.427021895404},2,{"$f":"G196","v":0},{"$f":"SUM(H185:H196)","v":0},{"$f":"SUM(I185:I196)","v":0},{"$f":"SUM(J185:J196)","v":0},2,{"$f":"Q173+V173","v":5394620.8922672439},{"$f":"R173+W173","v":398203.30457783287},{"$f":"S173+X173","v":326043.87755593739},{"$f":"T173+Y173","v":72159.427021895404}]
[{"$f":"A173+1","v":2},5523700.3788158866,{"$f":"-'Residential Rental'!$E$88/12","v":33183.608714819398},{"$f":"'Residential Rental'!$E$86/12*B173","v":27646.18899269008},5537.419722129318,{"$f":"F173+1","v":2},0,{"$f":"-'Residential Rental'!$E$94/12","v":0},{"$f":"'Residential Rental'!$E$92/12*G173","v":0},0,{"$f":"K173+1","v":2},5523700.3788158866,33183.608714819398,27646.18899269008,5537.419722129318,3,{"$f":"B208","v":5318010.8296812419},{"$f":"SUM(C197:C208)","v":398203.30457783287},{"$f":"SUM(D197:D208)","v":321593.24199183082},{"$f":"SUM(E197:E208)","v":76610.062586001921},3,{"$f":"G208","v":0},{"$f":"SUM(H197:H208)","v":0},{"$f":"SUM(I197:I208)","v":0},{"$f":"SUM(J197:J208)","v":0},3,5318010.8296812419,398203.30457783287,321593.24199183082,76610.062586001921]
[3,5518135.2719951468,{"$f":"-'Residential Rental'!$E$88/12","v":33183.608714819398},{"$f":"'Residential Rental'!$E$86/12*B174","v":27618.501894079433},5565.1068207399658,3,0,{"$f":"-'Residential Rental'!$E$94/12","v":0},{"$f":"'Residential Rental'!$E$92/12*G174","v":0},0,3,5518135.2719951468,33183.608714819398,27618.501894079433,5565.1068207399658,4,{"$f":"B220","v":5236675.626068132},{"$f":"SUM(C209:C220)","v":398203.30457783287},{"$f":"SUM(D209:D220)","v":316868.10096472385},{"$f":"SUM(E209:E220)","v":81335.203613108955},4,{"$f":"G220","v":0},{"$f":"SUM(H209:H220)","v":0},{"$f":"SUM(I209:I220)","v":0},{"$f":"SUM(J209:J220)","v":0},4,5236675.626068132,398203.30457783287,316868.10096472385,81335.203613108955]
[4,5512542.3396403035,{"$f":"-'Residential Rental'!$E$88/12","v":33183.608714819398},{"$f":"'Residential Rental'!$E$86/12*B175","v":27590.676359975736},5592.9323548436623,4,0,{"$f":"-'Residential Rental'!$E$94/12","v":0},{"$f":"'Residential Rental'!$E$92/12*G175","v":0},0,4,5512542.3396403035,33183.608714819398,27590.676359975736,5592.9323548436623,5,{"$f":"B232","v":5150323.8450686103},{"$f":"SUM(C221:C232)","v":398203.30457783287},{"$f":"SUM(D221:D232)","v":311851.52357831364},{"$f":"SUM(E221:E232)","v":86351.780999519164},5,{"$f":"G232","v":0},{"$f":"SUM(H221:H232)","v":0},{"$f":"SUM(I221:I232)","v":0},{"$f":"SUM(J221:J232)","v":0},5,5150323.8450686103,398203.30457783287,311851.52357831364,86351.780999519164]
[5,5506921.442623686,{"$f":"-'Residential Rental'!$E$88/12","v":33183.608714819398},{"$f":"'Residential Rental'!$E$86/12*B176","v":27562.711698201518},5620.8970166178806,5,0,{"$f":"-'Residential Rental'!$E$94/12","v":0},{"$f":"'Residential Rental'!$E$92/12*G176","v":0},0,5,5506921.442623686,33183.608714819398,27562.711698201518,5620.8970166178806,6,{"$f":"B244","v":5058646.0751664387},{"$f":"SUM(C233:C244)","v":398203.30457783287},{"$f":"SUM(D233:D244)","v":306525.53467566066},{"$f":"SUM(E233:E244)","v":91677.769902172018},6,{"$f":"G244","v":0},{"$f":"SUM(H233:H244)","v":0},{"$f":"SUM(I233:I244)","v":0},{"$f":"SUM(J233:J244)","v":0},6,5058646.0751664387,398203.30457783287,306525.53467566066,91677.769902172018]
[6,5501272.4411219852,{"$f":"-'Residential Rental'!$E$88/12","v":33183.608714819398},{"$f":"'Residential Rental'!$E$86/12*B177","v":27534.60721311843},5649.0015017009682,6,0,{"$f":"-'Residential Rental'!$E$94/12","v":0},{"$f":"'Residential Rental'!$E$92/12*G177","v":0},0,6,5501272.4411219852,33183.608714819398,27534.60721311843,5649.0015017009682,7,{"$f":"B256","v":4961313.8210200844},{"$f":"SUM(C245:C256)","v":398203.30457783287},{"$f":"SUM(D245:D256)","v":300871.05043147772},{"$f":"SUM(E245:E256)","v":97332.25414635503},7,{"$f":"G256","v":0},{"$f":"SUM(H245:H256)","v":0},{"$f":"SUM(I245:I256)","v":0},{"$f":"SUM(J245:J256)","v":0},7,4961313.8210200844,398203.30457783287,300871.05043147772,97332.25414635503]
[7,5495595.1946127759,{"$f":"-'Residential Rental'!$E$88/12","v":33183.608714819398},{"$f":"'Residential Rental'!$E$86/12*B178","v":27506.362205609927},5677.2465092094717,7,0,{"$f":"-'Residential Rental'!$E$94/12","v":0},{"$f":"'Residential Rental'!$E$92/12*G178","v":0},0,7,5495595.1946127759,33183.608714819398,27506.362205609927,5677.2465092094717,8,{"$f":"B268","v":4857978.3264141437},{"$f":"SUM(C257:C268)","v":398203.30457783287},{"$f":"SUM(D257:D268)","v":294867.80997189117},{"$f":"SUM(E257:E268)","v":103335.49460594155},8,{"$f":"G268","v":0},{"$f":"SUM(H257:H268)","v":0},{"$f":"SUM(I257:I268)","v":0},{"$f":"SUM(J257:J268)","v":0},8,4857978.3264141437,398203.30457783287,294867.80997189117,103335.49460594155]
[8,5489889.5618710201,{"$f":"-'Residential Rental'!$E$88/12","v":33183.608714819398},{"$f":"'Residential Rental'!$E$86/12*B179","v":27477.97597306388},5705.6327417555185,8,0,{"$f":"-'Residential Rental'!$E$94/12","v":0},{"$f":"'Residential Rental'!$E$92/12*G179","v":0},0,8,5489889.5618710201,33183.608714819398,27477.97597306388,5705.6327417555185,9,{"$f":"B280","v":4748269.3246129705},{"$f":"SUM(C269:C280)","v":398203.30457783287},{"$f":"SUM(D269:D280)","v":288494.30277666089},{"$f":"SUM(E269:E280)","v":109709.00180117185},9,{"$f":"G280","v":0},{"$f":"SUM(H269:H280)","v":0},{"$f":"SUM(I269:I280)","v":0},{"$f":"SUM(J269:J280)","v":0},9,4748269.3246129705,398203.30457783287,288494.30277666089,109709.00180117185]
[9,5484155.4009655556,{"$f":"-'Residential Rental'!$E$88/12","v":33183.608714819398},{"$f":"'Residential Rental'!$E$86/12*B180","v":27449.447809355101},5734.1609054642977,9,0,{"$f":"-'Residential Rental'!$E$94/12","v":0},{"$f":"'Residential Rental'!$E$92/12*G180","v":0},0,9,5484155.4009655556,33183.608714819398,27449.447809355101,5734.1609054642977,10,{"$f":"B292","v":4631793.7116388651},{"$f":"SUM(C281:C292)","v":398203.30457783287},{"$f":"SUM(D281:D292)","v":281727.69160372618},{"$f":"SUM(E281:E292)","v":116475.61297410658},10,{"$f":"G292","v":0},{"$f":"SUM(H281:H292)","v":0},{"$f":"SUM(I281:I292)","v":0},{"$f":"SUM(J281:J292)","v":0},10,{"$f":"Q181+V181","v":4631793.7116388651},398203.30457783287,281727.69160372618,{"$f":"T181+Y181","v":116475.61297410658}]
[10,5478392.5692555644,{"$f":"-'Residential Rental'!$E$88/12","v":33183.608714819398},{"$f":"'Residential Rental'!$E$86/12*B181","v":27420.777004827778},5762.8317099916203,10,0,{"$f":"-'Residential Rental'!$E$94/12","v":0},{"$f":"'Residential Rental'!$E$92/12*G181","v":0},0,10,5478392.5692555644,33183.608714819398,27420.777004827778,5762.8317099916203]
[11,5472600.9233870227,{"$f":"-'Residential Rental'!$E$88/12","v":33183.608714819398},{"$f":"'Residential Rental'!$E$86/12*B182","v":27391.962846277824},5791.6458685415746,11,0,{"$f":"-'Residential Rental'!$E$94/12","v":0},{"$f":"'Residential Rental'!$E$92/12*G182","v":0},0,11,5472600.9233870227,33183.608714819398,27391.962846277824,5791.6458685415746]
[12,5466780.3192891385,{"$f":"-'Residential Rental'!$E$88/12","v":33183.608714819398},{"$f":"'Residential Rental'!$E$86/12*B183","v":27363.004616935115},5820.604097884283,12,0,{"$f":"-'Residential Rental'!$E$94/12","v":0},{"$f":"'Residential Rental'!$E$92/12*G183","v":0},0,12,5466780.3192891385,33183.608714819398,27363.004616935115,5820.604097884283]
[13,5460930.6121707652,{"$f":"-'Residential Rental'!$E$88/12","v":33183.608714819398},{"$f":"'Residential Rental'!$E$86/12*B184","v":27333.901596445692},5849.7071183737062,13,0,{"$f":"-'Residential Rental'!$E$94/12","v":0},{"$f":"'Residential Rental'!$E$92/12*G184","v":0},0,13,5460930.6121707652,33183.608714819398,27333.901596445692,5849.7071183737062]
[14,5455051.6565167997,{"$f":"-'Residential Rental'!$E$88/12","v":33183.608714819398},{"$f":"'Residential Rental'!$E$86/12*B185","v":27304.653060853827},5878.9556539655714,14,0,{"$f":"-'Residential Rental'!$E$94/12","v":0},{"$f":"'Residential Rental'!$E$92/12*G185","v":0},0,14,5455051.6565167997,33183.608714819398,27304.653060853827,5878.9556539655714]
[15,5449143.306084564,{"$f":"-'Residential Rental'!$E$88/12","v":33183.608714819398},{"$f":"'Residential Rental'!$E$86/12*B186","v":27275.258282584},5908.3504322353983,15,0,{"$f":"-'Residential Rental'!$E$94/12","v":0},{"$f":"'Residential Rental'!$E$92/12*G186","v":0},0,15,5449143.306084564,33183.608714819398,27275.258282584,5908.3504322353983]
[16,5443205.4139001677,{"$f":"-'Residential Rental'!$E$88/12","v":33183.608714819398},{"$f":"'Residential Rental'!$E$86/12*B187","v":27245.716530422822},5937.8921843965763,16,0,{"$f":"-'Residential Rental'!$E$94/12","v":0},{"$f":"'Residential Rental'!$E$92/12*G187","v":0},0,16,5443205.4139001677,33183.608714819398,27245.716530422822,5937.8921843965763]
[17,5437237.8322548494,{"$f":"-'Residential Rental'!$E$88/12","v":33183.608714819398},{"$f":"'Residential Rental'!$E$86/12*B188","v":27216.02706950084},5967.581645318558,17,0,{"$f":"-'Residential Rental'!$E$94/12","v":0},{"$f":"'Residential Rental'!$E$92/12*G188","v":0},0,17,5437237.8322548494,33183.608714819398,27216.02706950084,5967.581645318558]
[18,5431240.4127013041,{"$f":"-'Residential Rental'!$E$88/12","v":33183.608714819398},{"$f":"'Residential Rental'!$E$86/12*B189","v":27186.189161274247},5997.4195535451508,18,0,{"$f":"-'Residential Rental'!$E$94/12","v":0},{"$f":"'Residential Rental'!$E$92/12*G189","v":0},0,18,5431240.4127013041,33183.608714819398,27186.189161274247,5997.4195535451508]
[19,5425213.0060499916,{"$f":"-'Residential Rental'!$E$88/12","v":33183.608714819398},{"$f":"'Residential Rental'!$E$86/12*B190","v":27156.20206350652},6027.4066513128782,19,0,{"$f":"-'Residential Rental'!$E$94/12","v":0},{"$f":"'Residential Rental'!$E$92/12*G190","v":0},0,19,5425213.0060499916,33183.608714819398,27156.20206350652,6027.4066513128782]
[20,5419155.4623654224,{"$f":"-'Residential Rental'!$E$88/12","v":33183.608714819398},{"$f":"'Residential Rental'!$E$86/12*B191","v":27126.06503024996},6057.5436845694385,20,0,{"$f":"-'Residential Rental'!$E$94/12","v":0},{"$f":"'Residential Rental'!$E$92/12*G191","v":0},0,20,5419155.4623654224,33183.608714819398,27126.06503024996,6057.5436845694385]
[21,5413067.6309624305,{"$f":"-'Residential Rental'!$E$88/12","v":33183.608714819398},{"$f":"'Residential Rental'!$E$86/12*B192","v":27095.777311827114},6087.831402992284,21,0,{"$f":"-'Residential Rental'!$E$94/12","v":0},{"$f":"'Residential Rental'!$E$92/12*G192","v":0},0,21,5413067.6309624305,33183.608714819398,27095.777311827114,6087.831402992284]
[22,5406949.360402423,{"$f":"-'Residential Rental'!$E$88/12","v":33183.608714819398},{"$f":"'Residential Rental'!$E$86/12*B193","v":27065.338154812154},6118.2705600072441,22,0,{"$f":"-'Residential Rental'!$E$94/12","v":0},{"$f":"'Residential Rental'!$E$92/12*G193","v":0},0,22,5406949.360402423,33183.608714819398,27065.338154812154,6118.2705600072441]
[23,5400800.4984896155,{"$f":"-'Residential Rental'!$E$88/12","v":33183.608714819398},{"$f":"'Residential Rental'!$E$86/12*B194","v":27034.746802012116},6148.8619128072824,23,0,{"$f":"-'Residential Rental'!$E$94/12","v":0},{"$f":"'Residential Rental'!$E$92/12*G194","v":0},0,23,5400800.4984896155,33183.608714819398,27034.746802012116,6148.8619128072824]
[24,5394620.8922672439,{"$f":"-'Residential Rental'!$E$88/12","v":33183.608714819398},{"$f":"'Residential Rental'!$E$86/12*B195","v":27004.002492448079},6179.6062223713197,24,0,{"$f":"-'Residential Rental'!$E$94/12","v":0},{"$f":"'Residential Rental'!$E$92/12*G195","v":0},0,24,5394620.8922672439,33183.608714819398,27004.002492448079,6179.6062223713197]
[25,5388410.3880137606,{"$f":"-'Residential Rental'!$E$88/12","v":33183.608714819398},{"$f":"'Residential Rental'!$E$86/12*B196","v":26973.104461336221},6210.5042534831773,25,0,{"$f":"-'Residential Rental'!$E$94/12","v":0},{"$f":"'Residential Rental'!$E$92/12*G196","v":0},0,25,5388410.3880137606,33183.608714819398,26973.104461336221,6210.5042534831773]
[26,5382168.8312390102,{"$f":"-'Residential Rental'!$E$88/12","v":33183.608714819398},{"$f":"'Residential Rental'!$E$86/12*B197","v":26942.051940068803},6241.5567747505957,26,0,{"$f":"-'Residential Rental'!$E$94/12","v":0},{"$f":"'Residential Rental'!$E$92/12*G197","v":0},0,26,5382168.8312390102,33183.608714819398,26942.051940068803,6241.5567747505957]
[27,5375896.0666803857,{"$f":"-'Residential Rental'!$E$88/12","v":33183.608714819398},{"$f":"'Residential Rental'!$E$86/12*B198","v":26910.844156195053},6272.7645586243452,27,0,{"$f":"-'Residential Rental'!$E$94/12","v":0},{"$f":"'Residential Rental'!$E$92/12*G198","v":0},0,27,5375896.0666803857,33183.608714819398,26910.844156195053,6272.7645586243452]
[28,5369591.9382989686,{"$f":"-'Residential Rental'!$E$88/12","v":33183.608714819398},{"$f":"'Residential Rental'!$E$86/12*B199","v":26879.480333401931},6304.1283814174676,28,0,{"$f":"-'Residential Rental'!$E$94/12","v":0},{"$f":"'Residential Rental'!$E$92/12*G199","v":0},0,28,5369591.9382989686,33183.608714819398,26879.480333401931,6304.1283814174676]
[29,5363256.2892756443,{"$f":"-'Residential Rental'!$E$88/12","v":33183.608714819398},{"$f":"'Residential Rental'!$E$86/12*B200","v":26847.959691494845},6335.6490233245531,29,0,{"$f":"-'Residential Rental'!$E$94/12","v":0},{"$f":"'Residential Rental'!$E$92/12*G200","v":0},0,29,5363256.2892756443,33183.608714819398,26847.959691494845,6335.6490233245531]
[30,5356888.9620072031,{"$f":"-'Residential Rental'!$E$88/12","v":33183.608714819398},{"$f":"'Residential Rental'!$E$86/12*B201","v":26816.281446378223},6367.327268441175,30,0,{"$f":"-'Residential Rental'!$E$94/12","v":0},{"$f":"'Residential Rental'!$E$92/12*G201","v":0},0,30,5356888.9620072031,33183.608714819398,26816.281446378223,6367.327268441175]
[31,5350489.7981024198,{"$f":"-'Residential Rental'!$E$88/12","v":33183.608714819398},{"$f":"'Residential Rental'!$E$86/12*B202","v":26784.444810036017},6399.1639047833814,31,0,{"$f":"-'Residential Rental'!$E$94/12","v":0},{"$f":"'Residential Rental'!$E$92/12*G202","v":0},0,31,5350489.7981024198,33183.608714819398,26784.444810036017,6399.1639047833814]
[32,5344058.6383781126,{"$f":"-'Residential Rental'!$E$88/12","v":33183.608714819398},{"$f":"'Residential Rental'!$E$86/12*B203","v":26752.448990512101},6431.1597243072974,32,0,{"$f":"-'Residential Rental'!$E$94/12","v":0},{"$f":"'Residential Rental'!$E$92/12*G203","v":0},0,32,5344058.6383781126,33183.608714819398,26752.448990512101,6431.1597243072974]
[33,5337595.3228551839,{"$f":"-'Residential Rental'!$E$88/12","v":33183.608714819398},{"$f":"'Residential Rental'!$E$86/12*B204","v":26720.293191890563},6463.315522928835,33,0,{"$f":"-'Residential Rental'!$E$94/12","v":0},{"$f":"'Residential Rental'!$E$92/12*G204","v":0},0,33,5337595.3228551839,33183.608714819398,26720.293191890563,6463.315522928835]
[34,5331099.6907546399,{"$f":"-'Residential Rental'!$E$88/12","v":33183.608714819398},{"$f":"'Residential Rental'!$E$86/12*B205","v":26687.976614275918},6495.6321005434802,34,0,{"$f":"-'Residential Rental'!$E$94/12","v":0},{"$f":"'Residential Rental'!$E$92/12*G205","v":0},0,34,5331099.6907546399,33183.608714819398,26687.976614275918,6495.6321005434802]
[35,5324571.5804935936,{"$f":"-'Residential Rental'!$E$88/12","v":33183.608714819398},{"$f":"'Residential Rental'!$E$86/12*B206","v":26655.498453773202},6528.1102610461967,35,0,{"$f":"-'Residential Rental'!$E$94/12","v":0},{"$f":"'Residential Rental'!$E$92/12*G206","v":0},0,35,5324571.5804935936,33183.608714819398,26655.498453773202,6528.1102610461967]
[36,5318010.8296812419,{"$f":"-'Residential Rental'!$E$88/12","v":33183.608714819398},{"$f":"'Residential Rental'!$E$86/12*B207","v":26622.857902467968},6560.7508123514308,36,0,{"$f":"-'Residential Rental'!$E$94/12","v":0},{"$f":"'Residential Rental'!$E$92/12*G207","v":0},0,36,5318010.8296812419,33183.608714819398,26622.857902467968,6560.7508123514308]
[37,5311417.2751148287,{"$f":"-'Residential Rental'!$E$88/12","v":33183.608714819398},{"$f":"'Residential Rental'!$E$86/12*B208","v":26590.054148406209},6593.5545664131896,37,0,{"$f":"-'Residential Rental'!$E$94/12","v":0},{"$f":"'Residential Rental'!$E$92/12*G208","v":0},0,37,5311417.2751148287,33183.608714819398,26590.054148406209,6593.5545664131896]
[38,5304790.7527755834,{"$f":"-'Residential Rental'!$E$88/12","v":33183.608714819398},{"$f":"'Residential Rental'!$E$86/12*B209","v":26557.086375574145},6626.5223392452535,38,0,{"$f":"-'Residential Rental'!$E$94/12","v":0},{"$f":"'Residential Rental'!$E$92/12*G209","v":0},0,38,5304790.7527755834,33183.608714819398,26557.086375574145,6626.5223392452535]
[39,5298131.0978246415,{"$f":"-'Residential Rental'!$E$88/12","v":33183.608714819398},{"$f":"'Residential Rental'!$E$86/12*B210","v":26523.953763877918},6659.6549509414799,39,0,{"$f":"-'Residential Rental'!$E$94/12","v":0},{"$f":"'Residential Rental'!$E$92/12*G210","v":0},0,39,5298131.0978246415,33183.608714819398,26523.953763877918,6659.6549509414799]
[40,5291438.144598945,{"$f":"-'Residential Rental'!$E$88/12","v":33183.608714819398},{"$f":"'Residential Rental'!$E$86/12*B211","v":26490.655489123208},6692.9532256961902,40,0,{"$f":"-'Residential Rental'!$E$94/12","v":0},{"$f":"'Residential Rental'!$E$92/12*G211","v":0},0,40,5291438.144598945,33183.608714819398,26490.655489123208,6692.9532256961902]
[41,5284711.7266071206,{"$f":"-'Residential Rental'!$E$88/12","v":33183.608714819398},{"$f":"'Residential Rental'!$E$86/12*B212","v":26457.190722994725},6726.4179918246737,41,0,{"$f":"-'Residential Rental'!$E$94/12","v":0},{"$f":"'Residential Rental'!$E$92/12*G212","v":0},0,41,5284711.7266071206,33183.608714819398,26457.190722994725,6726.4179918246737]
[42,5277951.6765253367,{"$f":"-'Residential Rental'!$E$88/12","v":33183.608714819398},{"$f":"'Residential Rental'!$E$86/12*B213","v":26423.558633035602},6760.0500817837965,42,0,{"$f":"-'Residential Rental'!$E$94/12","v":0},{"$f":"'Residential Rental'!$E$92/12*G213","v":0},0,42,5277951.6765253367,33183.608714819398,26423.558633035602,6760.0500817837965]
[43,5271157.8261931436,{"$f":"-'Residential Rental'!$E$88/12","v":33183.608714819398},{"$f":"'Residential Rental'!$E$86/12*B214","v":26389.758382626685},6793.8503321927128,43,0,{"$f":"-'Residential Rental'!$E$94/12","v":0},{"$f":"'Residential Rental'!$E$92/12*G214","v":0},0,43,5271157.8261931436,33183.608714819398,26389.758382626685,6793.8503321927128]
[44,5264330.0066092899,{"$f":"-'Residential Rental'!$E$88/12","v":33183.608714819398},{"$f":"'Residential Rental'!$E$86/12*B215","v":26355.789130965717},6827.8195838536813,44,0,{"$f":"-'Residential Rental'!$E$94/12","v":0},{"$f":"'Residential Rental'!$E$92/12*G215","v":0},0,44,5264330.0066092899,33183.608714819398,26355.789130965717,6827.8195838536813]
[45,5257468.0479275165,{"$f":"-'Residential Rental'!$E$88/12","v":33183.608714819398},{"$f":"'Residential Rental'!$E$86/12*B216","v":26321.650033046451},6861.9586817729469,45,0,{"$f":"-'Residential Rental'!$E$94/12","v":0},{"$f":"'Residential Rental'!$E$92/12*G216","v":0},0,45,5257468.0479275165,33183.608714819398,26321.650033046451,6861.9586817729469]
[46,5250571.7794523351,{"$f":"-'Residential Rental'!$E$88/12","v":33183.608714819398},{"$f":"'Residential Rental'!$E$86/12*B217","v":26287.340239637582},6896.268475181816,46,0,{"$f":"-'Residential Rental'!$E$94/12","v":0},{"$f":"'Residential Rental'!$E$92/12*G217","v":0},0,46,5250571.7794523351,33183.608714819398,26287.340239637582,6896.268475181816]
[47,5243641.0296347775,{"$f":"-'Residential Rental'!$E$88/12","v":33183.608714819398},{"$f":"'Residential Rental'!$E$86/12*B218","v":26252.858897261674},6930.7498175577239,47,0,{"$f":"-'Residential Rental'!$E$94/12","v":0},{"$f":"'Residential Rental'!$E$92/12*G218","v":0},0,47,5243641.0296347775,33183.608714819398,26252.858897261674,6930.7498175577239]
[48,5236675.626068132,{"$f":"-'Residential Rental'!$E$88/12","v":33183.608714819398},{"$f":"'Residential Rental'!$E$86/12*B219","v":26218.205148173889},6965.4035666455093,48,0,{"$f":"-'Residential Rental'!$E$94/12","v":0},{"$f":"'Residential Rental'!$E$92/12*G219","v":0},0,48,5236675.626068132,33183.608714819398,26218.205148173889,6965.4035666455093]
[49,5229675.3954836531,{"$f":"-'Residential Rental'!$E$88/12","v":33183.608714819398},{"$f":"'Residential Rental'!$E$86/12*B220","v":26183.378130340661},7000.230584478737,49,0,{"$f":"-'Residential Rental'!$E$94/12","v":0},{"$f":"'Residential Rental'!$E$92/12*G220","v":0},0,49,5229675.3954836531,33183.608714819398,26183.378130340661,7000.230584478737]
[50,5222640.1637462517,{"$f":"-'Residential Rental'!$E$88/12","v":33183.608714819398},{"$f":"'Residential Rental'!$E$86/12*B221","v":26148.376977418266},7035.2317374011327,50,0,{"$f":"-'Residential Rental'!$E$94/12","v":0},{"$f":"'Residential Rental'!$E$92/12*G221","v":0},0,50,5222640.1637462517,33183.608714819398,26148.376977418266,7035.2317374011327]
[51,5215569.7558501633,{"$f":"-'Residential Rental'!$E$88/12","v":33183.608714819398},{"$f":"'Residential Rental'!$E$86/12*B222","v":26113.20081873126},7070.4078960881379,51,0,{"$f":"-'Residential Rental'!$E$94/12","v":0},{"$f":"'Residential Rental'!$E$92/12*G222","v":0},0,51,5215569.7558501633,33183.608714819398,26113.20081873126,7070.4078960881379]
[52,5208463.9959145943,{"$f":"-'Residential Rental'!$E$88/12","v":33183.608714819398},{"$f":"'Residential Rental'!$E$86/12*B223","v":26077.848779250817},7105.7599355685816,52,0,{"$f":"-'Residential Rental'!$E$94/12","v":0},{"$f":"'Residential Rental'!$E$92/12*G223","v":0},0,52,5208463.9959145943,33183.608714819398,26077.848779250817,7105.7599355685816]
[53,5201322.707179348,{"$f":"-'Residential Rental'!$E$88/12","v":33183.608714819398},{"$f":"'Residential Rental'!$E$86/12*B224","v":26042.319979572971},7141.2887352464277,53,0,{"$f":"-'Residential Rental'!$E$94/12","v":0},{"$f":"'Residential Rental'!$E$92/12*G224","v":0},0,53,5201322.707179348,33183.608714819398,26042.319979572971,7141.2887352464277]
[54,5194145.712000425,{"$f":"-'Residential Rental'!$E$88/12","v":33183.608714819398},{"$f":"'Residential Rental'!$E$86/12*B225","v":26006.61353589674},7176.9951789226579,54,0,{"$f":"-'Residential Rental'!$E$94/12","v":0},{"$f":"'Residential Rental'!$E$92/12*G225","v":0},0,54,5194145.712000425,33183.608714819398,26006.61353589674,7176.9951789226579]
[55,5186932.8318456076,{"$f":"-'Residential Rental'!$E$88/12","v":33183.608714819398},{"$f":"'Residential Rental'!$E$86/12*B226","v":25970.728560002124},7212.8801548172742,55,0,{"$f":"-'Residential Rental'!$E$94/12","v":0},{"$f":"'Residential Rental'!$E$92/12*G226","v":0},0,55,5186932.8318456076,33183.608714819398,25970.728560002124,7212.8801548172742]
[56,5179683.8872900158,{"$f":"-'Residential Rental'!$E$88/12","v":33183.608714819398},{"$f":"'Residential Rental'!$E$86/12*B227","v":25934.664159228039},7248.9445555913589,56,0,{"$f":"-'Residential Rental'!$E$94/12","v":0},{"$f":"'Residential Rental'!$E$92/12*G227","v":0},0,56,5179683.8872900158,33183.608714819398,25934.664159228039,7248.9445555913589]
[57,5172398.698011646,{"$f":"-'Residential Rental'!$E$88/12","v":33183.608714819398},{"$f":"'Residential Rental'!$E$86/12*B228","v":25898.41943645008},7285.1892783693183,57,0,{"$f":"-'Residential Rental'!$E$94/12","v":0},{"$f":"'Residential Rental'!$E$92/12*G228","v":0},0,57,5172398.698011646,33183.608714819398,25898.41943645008,7285.1892783693183]
[58,5165077.0827868851,{"$f":"-'Residential Rental'!$E$88/12","v":33183.608714819398},{"$f":"'Residential Rental'!$E$86/12*B229","v":25861.99349005823},7321.6152247611681,58,0,{"$f":"-'Residential Rental'!$E$94/12","v":0},{"$f":"'Residential Rental'!$E$92/12*G229","v":0},0,58,5165077.0827868851,33183.608714819398,25861.99349005823,7321.6152247611681]
[59,5157718.8594859997,{"$f":"-'Residential Rental'!$E$88/12","v":33183.608714819398},{"$f":"'Residential Rental'!$E$86/12*B230","v":25825.385413934426},7358.2233008849726,59,0,{"$f":"-'Residential Rental'!$E$94/12","v":0},{"$f":"'Residential Rental'!$E$92/12*G230","v":0},0,59,5157718.8594859997,33183.608714819398,25825.385413934426,7358.2233008849726]
[60,5150323.8450686103,{"$f":"-'Residential Rental'!$E$88/12","v":33183.608714819398},{"$f":"'Residential Rental'!$E$86/12*B231","v":25788.594297429998},7395.0144173894005,60,0,{"$f":"-'Residential Rental'!$E$94/12","v":0},{"$f":"'Residential Rental'!$E$92/12*G231","v":0},0,60,5150323.8450686103,33183.608714819398,25788.594297429998,7395.0144173894005]
[61,5142891.8555791341,{"$f":"-'Residential Rental'!$E$88/12","v":33183.608714819398},{"$f":"'Residential Rental'!$E$86/12*B232","v":25751.619225343053},7431.9894894763456,61,0,{"$f":"-'Residential Rental'!$E$94/12","v":0},{"$f":"'Residential Rental'!$E$92/12*G232","v":0},0,61,5142891.8555791341,33183.608714819398,25751.619225343053,7431.9894894763456]
[62,5135422.7061422104,{"$f":"-'Residential Rental'!$E$88/12","v":33183.608714819398},{"$f":"'Residential Rental'!$E$86/12*B233","v":25714.459277895672},7469.1494369237262,62,0,{"$f":"-'Residential Rental'!$E$94/12","v":0},{"$f":"'Residential Rental'!$E$92/12*G233","v":0},0,62,5135422.7061422104,33183.608714819398,25714.459277895672,7469.1494369237262]
[63,5127916.2109581018,{"$f":"-'Residential Rental'!$E$88/12","v":33183.608714819398},{"$f":"'Residential Rental'!$E$86/12*B234","v":25677.113530711053},7506.4951841083457,63,0,{"$f":"-'Residential Rental'!$E$94/12","v":0},{"$f":"'Residential Rental'!$E$92/12*G234","v":0},0,63,5127916.2109581018,33183.608714819398,25677.113530711053,7506.4951841083457]
[64,5120372.1832980728,{"$f":"-'Residential Rental'!$E$88/12","v":33183.608714819398},{"$f":"'Residential Rental'!$E$86/12*B235","v":25639.581054790509},7544.0276600288889,64,0,{"$f":"-'Residential Rental'!$E$94/12","v":0},{"$f":"'Residential Rental'!$E$92/12*G235","v":0},0,64,5120372.1832980728,33183.608714819398,25639.581054790509,{"$f":"J236+E236","v":7544.0276600288889}]
[65,{"$f":"B236-E237","v":5112790.4354997436},{"$f":"-'Residential Rental'!$E$88/12","v":33183.608714819398},{"$f":"'Residential Rental'!$E$86/12*B236","v":25601.860916490365},{"$f":"C237-D237","v":7581.7477983290337},65,{"$f":"G236-J237","v":0},{"$f":"-'Residential Rental'!$E$94/12","v":0},{"$f":"'Residential Rental'!$E$92/12*G236","v":0},{"$f":"H237-I237","v":0},65,{"$f":"G237+B237","v":5112790.4354997436},33183.608714819398,25601.860916490365,7581.7477983290337]
[{"$f":"A237+1","v":66},5105170.7789624231,{"$f":"-'Residential Rental'!$E$88/12","v":33183.608714819398},{"$f":"'Residential Rental'!$E$86/12*B237","v":25563.952177498719},7619.6565373206795,{"$f":"F237+1","v":66},0,{"$f":"-'Residential Rental'!$E$94/12","v":0},{"$f":"'Residential Rental'!$E$92/12*G237","v":0},0,{"$f":"K237+1","v":66},5105170.7789624231,33183.608714819398,25563.952177498719,7619.6565373206795]
[67,5097513.0241424162,{"$f":"-'Residential Rental'!$E$88/12","v":33183.608714819398},{"$f":"'Residential Rental'!$E$86/12*B238","v":25525.853894812117},7657.7548200072815,67,0,{"$f":"-'Residential Rental'!$E$94/12","v":0},{"$f":"'Residential Rental'!$E$92/12*G238","v":0},0,67,5097513.0241424162,33183.608714819398,25525.853894812117,7657.7548200072815]
[68,5089816.9805483092,{"$f":"-'Residential Rental'!$E$88/12","v":33183.608714819398},{"$f":"'Residential Rental'!$E$86/12*B239","v":25487.565120712083},7696.0435941073156,68,0,{"$f":"-'Residential Rental'!$E$94/12","v":0},{"$f":"'Residential Rental'!$E$92/12*G239","v":0},0,68,5089816.9805483092,33183.608714819398,25487.565120712083,7696.0435941073156]
[69,5082082.4567362312,{"$f":"-'Residential Rental'!$E$88/12","v":33183.608714819398},{"$f":"'Residential Rental'!$E$86/12*B240","v":25449.084902741546},7734.5238120778522,69,0,{"$f":"-'Residential Rental'!$E$94/12","v":0},{"$f":"'Residential Rental'!$E$92/12*G240","v":0},0,69,5082082.4567362312,33183.608714819398,25449.084902741546,7734.5238120778522]
[70,5074309.2603050927,{"$f":"-'Residential Rental'!$E$88/12","v":33183.608714819398},{"$f":"'Residential Rental'!$E$86/12*B241","v":25410.412283681158},7773.1964311382399,70,0,{"$f":"-'Residential Rental'!$E$94/12","v":0},{"$f":"'Residential Rental'!$E$92/12*G241","v":0},0,70,5074309.2603050927,33183.608714819398,25410.412283681158,7773.1964311382399]
[71,5066497.1978917988,{"$f":"-'Residential Rental'!$E$88/12","v":33183.608714819398},{"$f":"'Residential Rental'!$E$86/12*B242","v":25371.546301525465},7812.0624132939338,71,0,{"$f":"-'Residential Rental'!$E$94/12","v":0},{"$f":"'Residential Rental'!$E$92/12*G242","v":0},0,71,5066497.1978917988,33183.608714819398,25371.546301525465,7812.0624132939338]
[72,5058646.0751664387,{"$f":"-'Residential Rental'!$E$88/12","v":33183.608714819398},{"$f":"'Residential Rental'!$E$86/12*B243","v":25332.485989458994},7851.1227253604047,72,0,{"$f":"-'Residential Rental'!$E$94/12","v":0},{"$f":"'Residential Rental'!$E$92/12*G243","v":0},0,72,5058646.0751664387,33183.608714819398,25332.485989458994,7851.1227253604047]
[73,5050755.6968274517,{"$f":"-'Residential Rental'!$E$88/12","v":33183.608714819398},{"$f":"'Residential Rental'!$E$86/12*B244","v":25293.230375832194},7890.3783389872042,73,0,{"$f":"-'Residential Rental'!$E$94/12","v":0},{"$f":"'Residential Rental'!$E$92/12*G244","v":0},0,73,5050755.6968274517,33183.608714819398,25293.230375832194,7890.3783389872042]
[74,5042825.8665967695,{"$f":"-'Residential Rental'!$E$88/12","v":33183.608714819398},{"$f":"'Residential Rental'!$E$86/12*B245","v":25253.77848413726},7929.8302306821388,74,0,{"$f":"-'Residential Rental'!$E$94/12","v":0},{"$f":"'Residential Rental'!$E$92/12*G245","v":0},0,74,5042825.8665967695,33183.608714819398,25253.77848413726,7929.8302306821388]
[75,5034856.3872149345,{"$f":"-'Residential Rental'!$E$88/12","v":33183.608714819398},{"$f":"'Residential Rental'!$E$86/12*B246","v":25214.129332983848},7969.4793818355502,75,0,{"$f":"-'Residential Rental'!$E$94/12","v":0},{"$f":"'Residential Rental'!$E$92/12*G246","v":0},0,75,5034856.3872149345,33183.608714819398,25214.129332983848,7969.4793818355502]
[76,5026847.0604361901,{"$f":"-'Residential Rental'!$E$88/12","v":33183.608714819398},{"$f":"'Residential Rental'!$E$86/12*B247","v":25174.281936074673},8009.3267787447257,76,0,{"$f":"-'Residential Rental'!$E$94/12","v":0},{"$f":"'Residential Rental'!$E$92/12*G247","v":0},0,76,5026847.0604361901,33183.608714819398,25174.281936074673,8009.3267787447257]
[77,5018797.6870235512,{"$f":"-'Residential Rental'!$E$88/12","v":33183.608714819398},{"$f":"'Residential Rental'!$E$86/12*B248","v":25134.23530218095},8049.3734126384479,77,0,{"$f":"-'Residential Rental'!$E$94/12","v":0},{"$f":"'Residential Rental'!$E$92/12*G248","v":0},0,77,5018797.6870235512,33183.608714819398,25134.23530218095,8049.3734126384479]
[78,5010708.0667438498,{"$f":"-'Residential Rental'!$E$88/12","v":33183.608714819398},{"$f":"'Residential Rental'!$E$86/12*B249","v":25093.988435117757},8089.6202797016413,78,0,{"$f":"-'Residential Rental'!$E$94/12","v":0},{"$f":"'Residential Rental'!$E$92/12*G249","v":0},0,78,5010708.0667438498,33183.608714819398,25093.988435117757,8089.6202797016413]
[79,5002577.9983627498,{"$f":"-'Residential Rental'!$E$88/12","v":33183.608714819398},{"$f":"'Residential Rental'!$E$86/12*B250","v":25053.540333719251},8130.0683811001472,79,0,{"$f":"-'Residential Rental'!$E$94/12","v":0},{"$f":"'Residential Rental'!$E$92/12*G250","v":0},0,79,5002577.9983627498,33183.608714819398,25053.540333719251,8130.0683811001472]
[80,4994407.2796397442,{"$f":"-'Residential Rental'!$E$88/12","v":33183.608714819398},{"$f":"'Residential Rental'!$E$86/12*B251","v":25012.88999181375},8170.7187230056479,80,0,{"$f":"-'Residential Rental'!$E$94/12","v":0},{"$f":"'Residential Rental'!$E$92/12*G251","v":0},0,80,4994407.2796397442,33183.608714819398,25012.88999181375,8170.7187230056479]
[81,4986195.7073231237,{"$f":"-'Residential Rental'!$E$88/12","v":33183.608714819398},{"$f":"'Residential Rental'!$E$86/12*B252","v":24972.036398198721},8211.5723166206772,81,0,{"$f":"-'Residential Rental'!$E$94/12","v":0},{"$f":"'Residential Rental'!$E$92/12*G252","v":0},0,81,4986195.7073231237,33183.608714819398,24972.036398198721,8211.5723166206772]
[82,4977943.0771449199,{"$f":"-'Residential Rental'!$E$88/12","v":33183.608714819398},{"$f":"'Residential Rental'!$E$86/12*B253","v":24930.978536615617},8252.6301782037808,82,0,{"$f":"-'Residential Rental'!$E$94/12","v":0},{"$f":"'Residential Rental'!$E$92/12*G253","v":0},0,82,4977943.0771449199,33183.608714819398,24930.978536615617,8252.6301782037808]
[83,4969649.1838158248,{"$f":"-'Residential Rental'!$E$88/12","v":33183.608714819398},{"$f":"'Residential Rental'!$E$86/12*B254","v":24889.715385724601},8293.8933290947971,83,0,{"$f":"-'Residential Rental'!$E$94/12","v":0},{"$f":"'Residential Rental'!$E$92/12*G254","v":0},0,83,4969649.1838158248,33183.608714819398,24889.715385724601,8293.8933290947971]
[84,4961313.8210200844,{"$f":"-'Residential Rental'!$E$88/12","v":33183.608714819398},{"$f":"'Residential Rental'!$E$86/12*B255","v":24848.245919079123},8335.362795740275,84,0,{"$f":"-'Residential Rental'!$E$94/12","v":0},{"$f":"'Residential Rental'!$E$92/12*G255","v":0},0,84,4961313.8210200844,33183.608714819398,24848.245919079123,8335.362795740275]
[85,4952936.7814103654,{"$f":"-'Residential Rental'!$E$88/12","v":33183.608714819398},{"$f":"'Residential Rental'!$E$86/12*B256","v":24806.569105100421},8377.0396097189769,85,0,{"$f":"-'Residential Rental'!$E$94/12","v":0},{"$f":"'Residential Rental'!$E$92/12*G256","v":0},0,85,4952936.7814103654,33183.608714819398,24806.569105100421,8377.0396097189769]
[86,4944517.856602598,{"$f":"-'Residential Rental'!$E$88/12","v":33183.608714819398},{"$f":"'Residential Rental'!$E$86/12*B257","v":24764.683907051829},8418.9248077675693,86,0,{"$f":"-'Residential Rental'!$E$94/12","v":0},{"$f":"'Residential Rental'!$E$92/12*G257","v":0},0,86,4944517.856602598,33183.608714819398,24764.683907051829,8418.9248077675693]
[87,4936056.8371707918,{"$f":"-'Residential Rental'!$E$88/12","v":33183.608714819398},{"$f":"'Residential Rental'!$E$86/12*B258","v":24722.589283012989},8461.0194318064096,87,0,{"$f":"-'Residential Rental'!$E$94/12","v":0},{"$f":"'Residential Rental'!$E$92/12*G258","v":0},0,87,4936056.8371707918,33183.608714819398,24722.589283012989,8461.0194318064096]
[88,4927553.5126418266,{"$f":"-'Residential Rental'!$E$88/12","v":33183.608714819398},{"$f":"'Residential Rental'!$E$86/12*B259","v":24680.284185853961},8503.3245289654369,88,0,{"$f":"-'Residential Rental'!$E$94/12","v":0},{"$f":"'Residential Rental'!$E$92/12*G259","v":0},0,88,4927553.5126418266,33183.608714819398,24680.284185853961,8503.3245289654369]
[89,4919007.6714902166,{"$f":"-'Residential Rental'!$E$88/12","v":33183.608714819398},{"$f":"'Residential Rental'!$E$86/12*B260","v":24637.767563209134},8545.8411516102642,89,0,{"$f":"-'Residential Rental'!$E$94/12","v":0},{"$f":"'Residential Rental'!$E$92/12*G260","v":0},0,89,4919007.6714902166,33183.608714819398,24637.767563209134,8545.8411516102642]
[90,4910419.1011328483,{"$f":"-'Residential Rental'!$E$88/12","v":33183.608714819398},{"$f":"'Residential Rental'!$E$86/12*B261","v":24595.038357451085},8588.5703573683131,90,0,{"$f":"-'Residential Rental'!$E$94/12","v":0},{"$f":"'Residential Rental'!$E$92/12*G261","v":0},0,90,4910419.1011328483,33183.608714819398,24595.038357451085,8588.5703573683131]
[91,4901787.5879236935,{"$f":"-'Residential Rental'!$E$88/12","v":33183.608714819398},{"$f":"'Residential Rental'!$E$86/12*B262","v":24552.095505664242},8631.5132091551568,91,0,{"$f":"-'Residential Rental'!$E$94/12","v":0},{"$f":"'Residential Rental'!$E$92/12*G262","v":0},0,91,4901787.5879236935,33183.608714819398,24552.095505664242,8631.5132091551568]
[92,4893112.9171484923,{"$f":"-'Residential Rental'!$E$88/12","v":33183.608714819398},{"$f":"'Residential Rental'!$E$86/12*B263","v":24508.937939618467},8674.6707752009315,92,0,{"$f":"-'Residential Rental'!$E$94/12","v":0},{"$f":"'Residential Rental'!$E$92/12*G263","v":0},0,92,4893112.9171484923,33183.608714819398,24508.937939618467,8674.6707752009315]
[93,4884394.873019415,{"$f":"-'Residential Rental'!$E$88/12","v":33183.608714819398},{"$f":"'Residential Rental'!$E$86/12*B264","v":24465.564585742461},8718.0441290769377,93,0,{"$f":"-'Residential Rental'!$E$94/12","v":0},{"$f":"'Residential Rental'!$E$92/12*G264","v":0},0,93,4884394.873019415,33183.608714819398,24465.564585742461,8718.0441290769377]
[94,4875633.2386696925,{"$f":"-'Residential Rental'!$E$88/12","v":33183.608714819398},{"$f":"'Residential Rental'!$E$86/12*B265","v":24421.974365097074},8761.6343497223243,94,0,{"$f":"-'Residential Rental'!$E$94/12","v":0},{"$f":"'Residential Rental'!$E$92/12*G265","v":0},0,94,4875633.2386696925,33183.608714819398,24421.974365097074,8761.6343497223243]
[95,4866827.7961482219,{"$f":"-'Residential Rental'!$E$88/12","v":33183.608714819398},{"$f":"'Residential Rental'!$E$86/12*B266","v":24378.166193348465},8805.4425214709336,95,0,{"$f":"-'Residential Rental'!$E$94/12","v":0},{"$f":"'Residential Rental'!$E$92/12*G266","v":0},0,95,4866827.7961482219,33183.608714819398,24378.166193348465,8805.4425214709336]
[96,4857978.3264141437,{"$f":"-'Residential Rental'!$E$88/12","v":33183.608714819398},{"$f":"'Residential Rental'!$E$86/12*B267","v":24334.138980741111},8849.4697340782877,96,0,{"$f":"-'Residential Rental'!$E$94/12","v":0},{"$f":"'Residential Rental'!$E$92/12*G267","v":0},0,96,4857978.3264141437,33183.608714819398,24334.138980741111,8849.4697340782877]
[97,4849084.6093313945,{"$f":"-'Residential Rental'!$E$88/12","v":33183.608714819398},{"$f":"'Residential Rental'!$E$86/12*B268","v":24289.891632070718},8893.7170827486807,97,0,{"$f":"-'Residential Rental'!$E$94/12","v":0},{"$f":"'Residential Rental'!$E$92/12*G268","v":0},0,97,4849084.6093313945,33183.608714819398,24289.891632070718,8893.7170827486807]
[98,4840146.4236632325,{"$f":"-'Residential Rental'!$E$88/12","v":33183.608714819398},{"$f":"'Residential Rental'!$E$86/12*B269","v":24245.423046656972},8938.1856681624267,98,0,{"$f":"-'Residential Rental'!$E$94/12","v":0},{"$f":"'Residential Rental'!$E$92/12*G269","v":0},0,98,4840146.4236632325,33183.608714819398,24245.423046656972,8938.1856681624267]
[99,4831163.5470667295,{"$f":"-'Residential Rental'!$E$88/12","v":33183.608714819398},{"$f":"'Residential Rental'!$E$86/12*B270","v":24200.732118316162},8982.8765965032362,99,0,{"$f":"-'Residential Rental'!$E$94/12","v":0},{"$f":"'Residential Rental'!$E$92/12*G270","v":0},0,99,4831163.5470667295,33183.608714819398,24200.732118316162,8982.8765965032362]
[100,4822135.7560872436,{"$f":"-'Residential Rental'!$E$88/12","v":33183.608714819398},{"$f":"'Residential Rental'!$E$86/12*B271","v":24155.817735333647},9027.7909794857514,100,0,{"$f":"-'Residential Rental'!$E$94/12","v":0},{"$f":"'Residential Rental'!$E$92/12*G271","v":0},0,100,4822135.7560872436,33183.608714819398,24155.817735333647,9027.7909794857514]
[101,4813062.8261528602,{"$f":"-'Residential Rental'!$E$88/12","v":33183.608714819398},{"$f":"'Residential Rental'!$E$86/12*B272","v":24110.678780436217},9072.9299343831808,101,0,{"$f":"-'Residential Rental'!$E$94/12","v":0},{"$f":"'Residential Rental'!$E$92/12*G272","v":0},0,101,4813062.8261528602,33183.608714819398,24110.678780436217,9072.9299343831808]
[102,4803944.5315688048,{"$f":"-'Residential Rental'!$E$88/12","v":33183.608714819398},{"$f":"'Residential Rental'!$E$86/12*B273","v":24065.314130764302},9118.2945840550965,102,0,{"$f":"-'Residential Rental'!$E$94/12","v":0},{"$f":"'Residential Rental'!$E$92/12*G273","v":0},0,102,4803944.5315688048,33183.608714819398,24065.314130764302,9118.2945840550965]
[103,4794780.6455118293,{"$f":"-'Residential Rental'!$E$88/12","v":33183.608714819398},{"$f":"'Residential Rental'!$E$86/12*B274","v":24019.722657844024},9163.8860569753742,103,0,{"$f":"-'Residential Rental'!$E$94/12","v":0},{"$f":"'Residential Rental'!$E$92/12*G274","v":0},0,103,4794780.6455118293,33183.608714819398,24019.722657844024,9163.8860569753742]
[104,4785570.9400245687,{"$f":"-'Residential Rental'!$E$88/12","v":33183.608714819398},{"$f":"'Residential Rental'!$E$86/12*B275","v":23973.903227559145},9209.705487260253,104,0,{"$f":"-'Residential Rental'!$E$94/12","v":0},{"$f":"'Residential Rental'!$E$92/12*G275","v":0},0,104,4785570.9400245687,33183.608714819398,23973.903227559145,9209.705487260253]
[105,4776315.1860098718,{"$f":"-'Residential Rental'!$E$88/12","v":33183.608714819398},{"$f":"'Residential Rental'!$E$86/12*B276","v":23927.854700122843},9255.7540146965548,105,0,{"$f":"-'Residential Rental'!$E$94/12","v":0},{"$f":"'Residential Rental'!$E$92/12*G276","v":0},0,105,4776315.1860098718,33183.608714819398,23927.854700122843,9255.7540146965548]
[106,4767013.1532251015,{"$f":"-'Residential Rental'!$E$88/12","v":33183.608714819398},{"$f":"'Residential Rental'!$E$86/12*B277","v":23881.575930049359},9302.0327847700391,106,0,{"$f":"-'Residential Rental'!$E$94/12","v":0},{"$f":"'Residential Rental'!$E$92/12*G277","v":0},0,106,4767013.1532251015,33183.608714819398,23881.575930049359,9302.0327847700391]
[107,4757664.6102764076,{"$f":"-'Residential Rental'!$E$88/12","v":33183.608714819398},{"$f":"'Residential Rental'!$E$86/12*B278","v":23835.065766125506},9348.542948693892,107,0,{"$f":"-'Residential Rental'!$E$94/12","v":0},{"$f":"'Residential Rental'!$E$92/12*G278","v":0},0,107,4757664.6102764076,33183.608714819398,23835.065766125506,9348.542948693892]
[108,4748269.3246129705,{"$f":"-'Residential Rental'!$E$88/12","v":33183.608714819398},{"$f":"'Residential Rental'!$E$86/12*B279","v":23788.323051382038},9395.2856634373602,108,0,{"$f":"-'Residential Rental'!$E$94/12","v":0},{"$f":"'Residential Rental'!$E$92/12*G279","v":0},0,108,4748269.3246129705,33183.608714819398,23788.323051382038,9395.2856634373602]
[109,4738827.0625212155,{"$f":"-'Residential Rental'!$E$88/12","v":33183.608714819398},{"$f":"'Residential Rental'!$E$86/12*B280","v":23741.346623064852},9442.2620917545464,109,0,{"$f":"-'Residential Rental'!$E$94/12","v":0},{"$f":"'Residential Rental'!$E$92/12*G280","v":0},0,109,4738827.0625212155,33183.608714819398,23741.346623064852,9442.2620917545464]
[110,4729337.5891190022,{"$f":"-'Residential Rental'!$E$88/12","v":33183.608714819398},{"$f":"'Residential Rental'!$E$86/12*B281","v":23694.135312606079},9489.4734022133198,110,0,{"$f":"-'Residential Rental'!$E$94/12","v":0},{"$f":"'Residential Rental'!$E$92/12*G281","v":0},0,110,4729337.5891190022,33183.608714819398,23694.135312606079,9489.4734022133198]
[111,4719800.6683497783,{"$f":"-'Residential Rental'!$E$88/12","v":33183.608714819398},{"$f":"'Residential Rental'!$E$86/12*B282","v":23646.687945595011},9536.9207692243872,111,0,{"$f":"-'Residential Rental'!$E$94/12","v":0},{"$f":"'Residential Rental'!$E$92/12*G282","v":0},0,111,4719800.6683497783,33183.608714819398,23646.687945595011,9536.9207692243872]
[112,4710216.0629767077,{"$f":"-'Residential Rental'!$E$88/12","v":33183.608714819398},{"$f":"'Residential Rental'!$E$86/12*B283","v":23599.003341748892},9584.6053730705062,112,0,{"$f":"-'Residential Rental'!$E$94/12","v":0},{"$f":"'Residential Rental'!$E$92/12*G283","v":0},0,112,4710216.0629767077,33183.608714819398,23599.003341748892,9584.6053730705062]
[113,4700583.5345767718,{"$f":"-'Residential Rental'!$E$88/12","v":33183.608714819398},{"$f":"'Residential Rental'!$E$86/12*B284","v":23551.08031488354},9632.528399935858,113,0,{"$f":"-'Residential Rental'!$E$94/12","v":0},{"$f":"'Residential Rental'!$E$92/12*G284","v":0},0,113,4700583.5345767718,33183.608714819398,23551.08031488354,9632.528399935858]
[114,4690902.8435348365,{"$f":"-'Residential Rental'!$E$88/12","v":33183.608714819398},{"$f":"'Residential Rental'!$E$86/12*B285","v":23502.917672883861},9680.6910419355372,114,0,{"$f":"-'Residential Rental'!$E$94/12","v":0},{"$f":"'Residential Rental'!$E$92/12*G285","v":0},0,114,4690902.8435348365,33183.608714819398,23502.917672883861,9680.6910419355372]
[115,4681173.7490376914,{"$f":"-'Residential Rental'!$E$88/12","v":33183.608714819398},{"$f":"'Residential Rental'!$E$86/12*B286","v":23454.514217674183},9729.0944971452154,115,0,{"$f":"-'Residential Rental'!$E$94/12","v":0},{"$f":"'Residential Rental'!$E$92/12*G286","v":0},0,115,4681173.7490376914,33183.608714819398,23454.514217674183,9729.0944971452154]
[116,4671396.0090680607,{"$f":"-'Residential Rental'!$E$88/12","v":33183.608714819398},{"$f":"'Residential Rental'!$E$86/12*B287","v":23405.868745188458},9777.7399696309403,116,0,{"$f":"-'Residential Rental'!$E$94/12","v":0},{"$f":"'Residential Rental'!$E$92/12*G287","v":0},0,116,4671396.0090680607,33183.608714819398,23405.868745188458,9777.7399696309403]
[117,4661569.3803985817,{"$f":"-'Residential Rental'!$E$88/12","v":33183.608714819398},{"$f":"'Residential Rental'!$E$86/12*B288","v":23356.980045340304},9826.6286694790942,117,0,{"$f":"-'Residential Rental'!$E$94/12","v":0},{"$f":"'Residential Rental'!$E$92/12*G288","v":0},0,117,4661569.3803985817,33183.608714819398,23356.980045340304,9826.6286694790942]
[118,4651693.6185857551,{"$f":"-'Residential Rental'!$E$88/12","v":33183.608714819398},{"$f":"'Residential Rental'!$E$86/12*B289","v":23307.846901992911},9875.7618128264876,118,0,{"$f":"-'Residential Rental'!$E$94/12","v":0},{"$f":"'Residential Rental'!$E$92/12*G289","v":0},0,118,4651693.6185857551,33183.608714819398,23307.846901992911,9875.7618128264876]
[119,4641768.4779638648,{"$f":"-'Residential Rental'!$E$88/12","v":33183.608714819398},{"$f":"'Residential Rental'!$E$86/12*B290","v":23258.468092928775},9925.1406218906232,119,0,{"$f":"-'Residential Rental'!$E$94/12","v":0},{"$f":"'Residential Rental'!$E$92/12*G290","v":0},0,119,4641768.4779638648,33183.608714819398,23258.468092928775,9925.1406218906232]
[120,4631793.7116388651,{"$f":"-'Residential Rental'!$E$88/12","v":33183.608714819398},{"$f":"'Residential Rental'!$E$86/12*B291","v":23208.842389819325},9974.7663250000733,120,0,{"$f":"-'Residential Rental'!$E$94/12","v":0},{"$f":"'Residential Rental'!$E$92/12*G291","v":0},0,120,4631793.7116388651,33183.608714819398,23208.842389819325,9974.7663250000733]
[121,4621769.0714822402,{"$f":"-'Residential Rental'!$E$88/12","v":33183.608714819398},{"$f":"'Residential Rental'!$E$86/12*B292","v":23158.968558194327},10024.640156625072,121,0,{"$f":"-'Residential Rental'!$E$94/12","v":0},{"$f":"'Residential Rental'!$E$92/12*G292","v":0},0,121,4621769.0714822402,33183.608714819398,23158.968558194327,10024.640156625072]
[122,4611694.3081248319,{"$f":"-'Residential Rental'!$E$88/12","v":33183.608714819398},{"$f":"'Residential Rental'!$E$86/12*B293","v":23108.845357411203},10074.763357408196,122,0,{"$f":"-'Residential Rental'!$E$94/12","v":0},{"$f":"'Residential Rental'!$E$92/12*G293","v":0},0,122,4611694.3081248319,33183.608714819398,23108.845357411203,10074.763357408196]
[123,4601569.1709506363,{"$f":"-'Residential Rental'!$E$88/12","v":33183.608714819398},{"$f":"'Residential Rental'!$E$86/12*B294","v":23058.471540624159},10125.137174195239,123,0,{"$f":"-'Residential Rental'!$E$94/12","v":0},{"$f":"'Residential Rental'!$E$92/12*G294","v":0},0,123,4601569.1709506363,33183.608714819398,23058.471540624159,10125.137174195239]
[124,4591393.40809057,{"$f":"-'Residential Rental'!$E$88/12","v":33183.608714819398},{"$f":"'Residential Rental'!$E$86/12*B295","v":23007.845854753181},10175.762860066217,124,0,{"$f":"-'Residential Rental'!$E$94/12","v":0},{"$f":"'Residential Rental'!$E$92/12*G295","v":0},0,124,4591393.40809057,33183.608714819398,23007.845854753181,10175.762860066217]
[125,4581166.7664162032,{"$f":"-'Residential Rental'!$E$88/12","v":33183.608714819398},{"$f":"'Residential Rental'!$E$86/12*B296","v":22956.967040452852},10226.641674366547,125,0,{"$f":"-'Residential Rental'!$E$94/12","v":0},{"$f":"'Residential Rental'!$E$92/12*G296","v":0},0,125,4581166.7664162032,33183.608714819398,22956.967040452852,10226.641674366547]
[126,4570888.9915334648,{"$f":"-'Residential Rental'!$E$88/12","v":33183.608714819398},{"$f":"'Residential Rental'!$E$86/12*B297","v":22905.833832081018},10277.77488273838,126,0,{"$f":"-'Residential Rental'!$E$94/12","v":0},{"$f":"'Residential Rental'!$E$92/12*G297","v":0},0,126,4570888.9915334648,33183.608714819398,22905.833832081018,10277.77488273838]
[127,4560559.8277763128,{"$f":"-'Residential Rental'!$E$88/12","v":33183.608714819398},{"$f":"'Residential Rental'!$E$86/12*B298","v":22854.444957667325},10329.163757152073,127,0,{"$f":"-'Residential Rental'!$E$94/12","v":0},{"$f":"'Residential Rental'!$E$92/12*G298","v":0},0,127,4560559.8277763128,33183.608714819398,22854.444957667325,10329.163757152073]
[128,4550179.0182003751,{"$f":"-'Residential Rental'!$E$88/12","v":33183.608714819398},{"$f":"'Residential Rental'!$E$86/12*B299","v":22802.799138881564},10380.809575937834,128,0,{"$f":"-'Residential Rental'!$E$94/12","v":0},{"$f":"'Residential Rental'!$E$92/12*G299","v":0},0,128,4550179.0182003751,33183.608714819398,22802.799138881564,10380.809575937834]
[129,{"$f":"B300-E301","v":4539746.3045765581},{"$f":"-'Residential Rental'!$E$88/12","v":33183.608714819398},{"$f":"'Residential Rental'!$E$86/12*B300","v":22750.895091001876},{"$f":"C301-D301","v":10432.713623817523},129,{"$f":"G300-J301","v":0},{"$f":"-'Residential Rental'!$E$94/12","v":0},{"$f":"'Residential Rental'!$E$92/12*G300","v":0},{"$f":"H301-I301","v":0},129,{"$f":"G301+B301","v":4539746.3045765581},33183.608714819398,22750.895091001876,10432.713623817523]
[{"$f":"A301+1","v":130},4529261.4273846215,{"$f":"-'Residential Rental'!$E$88/12","v":33183.608714819398},{"$f":"'Residential Rental'!$E$86/12*B301","v":22698.73152288279},10484.877191936608,{"$f":"F301+1","v":130},0,{"$f":"-'Residential Rental'!$E$94/12","v":0},{"$f":"'Residential Rental'!$E$92/12*G301","v":0},0,{"$f":"K301+1","v":130},4529261.4273846215,33183.608714819398,22698.73152288279,10484.877191936608]
[131,4518724.1258067256,{"$f":"-'Residential Rental'!$E$88/12","v":33183.608714819398},{"$f":"'Residential Rental'!$E$86/12*B302","v":22646.307136923107},10537.301577896291,131,0,{"$f":"-'Residential Rental'!$E$94/12","v":0},{"$f":"'Residential Rental'!$E$92/12*G302","v":0},0,131,4518724.1258067256,33183.608714819398,22646.307136923107,10537.301577896291]
[132,4508134.1377209397,{"$f":"-'Residential Rental'!$E$88/12","v":33183.608714819398},{"$f":"'Residential Rental'!$E$86/12*B303","v":22593.620629033627},10589.988085785772,132,0,{"$f":"-'Residential Rental'!$E$94/12","v":0},{"$f":"'Residential Rental'!$E$92/12*G303","v":0},0,132,4508134.1377209397,33183.608714819398,22593.620629033627,10589.988085785772]
[133,4497491.1996947248,{"$f":"-'Residential Rental'!$E$88/12","v":33183.608714819398},{"$f":"'Residential Rental'!$E$86/12*B304","v":22540.6706886047},10642.938026214699,133,0,{"$f":"-'Residential Rental'!$E$94/12","v":0},{"$f":"'Residential Rental'!$E$92/12*G304","v":0},0,133,4497491.1996947248,33183.608714819398,22540.6706886047,10642.938026214699]
[134,4486795.0469783787,{"$f":"-'Residential Rental'!$E$88/12","v":33183.608714819398},{"$f":"'Residential Rental'!$E$86/12*B305","v":22487.455998473622},10696.152716345776,134,0,{"$f":"-'Residential Rental'!$E$94/12","v":0},{"$f":"'Residential Rental'!$E$92/12*G305","v":0},0,134,4486795.0469783787,33183.608714819398,22487.455998473622,10696.152716345776]
[135,4476045.413498451,{"$f":"-'Residential Rental'!$E$88/12","v":33183.608714819398},{"$f":"'Residential Rental'!$E$86/12*B306","v":22433.975234891896},10749.633479927503,135,0,{"$f":"-'Residential Rental'!$E$94/12","v":0},{"$f":"'Residential Rental'!$E$92/12*G306","v":0},0,135,4476045.413498451,33183.608714819398,22433.975234891896,10749.633479927503]
[136,4465242.031851124,{"$f":"-'Residential Rental'!$E$88/12","v":33183.608714819398},{"$f":"'Residential Rental'!$E$86/12*B307","v":22380.227067492255},10803.381647327144,136,0,{"$f":"-'Residential Rental'!$E$94/12","v":0},{"$f":"'Residential Rental'!$E$92/12*G307","v":0},0,136,4465242.031851124,33183.608714819398,22380.227067492255,10803.381647327144]
[137,4454384.6332955603,{"$f":"-'Residential Rental'!$E$88/12","v":33183.608714819398},{"$f":"'Residential Rental'!$E$86/12*B308","v":22326.210159255621},10857.398555563777,137,0,{"$f":"-'Residential Rental'!$E$94/12","v":0},{"$f":"'Residential Rental'!$E$92/12*G308","v":0},0,137,4454384.6332955603,33183.608714819398,22326.210159255621,10857.398555563777]
[138,4443472.9477472184,{"$f":"-'Residential Rental'!$E$88/12","v":33183.608714819398},{"$f":"'Residential Rental'!$E$86/12*B309","v":22271.923166477802},10911.685548341597,138,0,{"$f":"-'Residential Rental'!$E$94/12","v":0},{"$f":"'Residential Rental'!$E$92/12*G309","v":0},0,138,4443472.9477472184,33183.608714819398,22271.923166477802,10911.685548341597]
[139,4432506.7037711348,{"$f":"-'Residential Rental'!$E$88/12","v":33183.608714819398},{"$f":"'Residential Rental'!$E$86/12*B310","v":22217.364738736094},10966.243976083304,139,0,{"$f":"-'Residential Rental'!$E$94/12","v":0},{"$f":"'Residential Rental'!$E$92/12*G310","v":0},0,139,4432506.7037711348,33183.608714819398,22217.364738736094,10966.243976083304]
[140,4421485.6285751713,{"$f":"-'Residential Rental'!$E$88/12","v":33183.608714819398},{"$f":"'Residential Rental'!$E$86/12*B311","v":22162.533518855675},11021.075195963724,140,0,{"$f":"-'Residential Rental'!$E$94/12","v":0},{"$f":"'Residential Rental'!$E$92/12*G311","v":0},0,140,4421485.6285751713,33183.608714819398,22162.533518855675,11021.075195963724]
[141,4410409.4480032278,{"$f":"-'Residential Rental'!$E$88/12","v":33183.608714819398},{"$f":"'Residential Rental'!$E$86/12*B312","v":22107.428142875859},11076.18057194354,141,0,{"$f":"-'Residential Rental'!$E$94/12","v":0},{"$f":"'Residential Rental'!$E$92/12*G312","v":0},0,141,4410409.4480032278,33183.608714819398,22107.428142875859,11076.18057194354]
[142,4399277.8865284249,{"$f":"-'Residential Rental'!$E$88/12","v":33183.608714819398},{"$f":"'Residential Rental'!$E$86/12*B313","v":22052.047240016138},11131.56147480326,142,0,{"$f":"-'Residential Rental'!$E$94/12","v":0},{"$f":"'Residential Rental'!$E$92/12*G313","v":0},0,142,4399277.8865284249,33183.608714819398,22052.047240016138,11131.56147480326]
[143,4388090.6672462476,{"$f":"-'Residential Rental'!$E$88/12","v":33183.608714819398},{"$f":"'Residential Rental'!$E$86/12*B314","v":21996.389432642125},11187.219282177273,143,0,{"$f":"-'Residential Rental'!$E$94/12","v":0},{"$f":"'Residential Rental'!$E$92/12*G314","v":0},0,143,4388090.6672462476,33183.608714819398,21996.389432642125,11187.219282177273]
[144,4376847.5118676592,{"$f":"-'Residential Rental'!$E$88/12","v":33183.608714819398},{"$f":"'Residential Rental'!$E$86/12*B315","v":21940.45333623124},11243.155378588159,144,0,{"$f":"-'Residential Rental'!$E$94/12","v":0},{"$f":"'Residential Rental'!$E$92/12*G315","v":0},0,144,4376847.5118676592,33183.608714819398,21940.45333623124,11243.155378588159]
[145,4365548.1407121783,{"$f":"-'Residential Rental'!$E$88/12","v":33183.608714819398},{"$f":"'Residential Rental'!$E$86/12*B316","v":21884.237559338297},11299.371155481102,145,0,{"$f":"-'Residential Rental'!$E$94/12","v":0},{"$f":"'Residential Rental'!$E$92/12*G316","v":0},0,145,4365548.1407121783,33183.608714819398,21884.237559338297,11299.371155481102]
[146,4354192.2727009198,{"$f":"-'Residential Rental'!$E$88/12","v":33183.608714819398},{"$f":"'Residential Rental'!$E$86/12*B317","v":21827.740703560892},11355.868011258506,146,0,{"$f":"-'Residential Rental'!$E$94/12","v":0},{"$f":"'Residential Rental'!$E$92/12*G317","v":0},0,146,4354192.2727009198,33183.608714819398,21827.740703560892,11355.868011258506]
[147,4342779.6253496045,{"$f":"-'Residential Rental'!$E$88/12","v":33183.608714819398},{"$f":"'Residential Rental'!$E$86/12*B318","v":21770.961363504601},11412.647351314798,147,0,{"$f":"-'Residential Rental'!$E$94/12","v":0},{"$f":"'Residential Rental'!$E$92/12*G318","v":0},0,147,4342779.6253496045,33183.608714819398,21770.961363504601,11412.647351314798]
[148,4331309.914761533,{"$f":"-'Residential Rental'!$E$88/12","v":33183.608714819398},{"$f":"'Residential Rental'!$E$86/12*B319","v":21713.898126748023},11469.710588071375,148,0,{"$f":"-'Residential Rental'!$E$94/12","v":0},{"$f":"'Residential Rental'!$E$92/12*G319","v":0},0,148,4331309.914761533,33183.608714819398,21713.898126748023,11469.710588071375]
[149,4319782.8556205211,{"$f":"-'Residential Rental'!$E$88/12","v":33183.608714819398},{"$f":"'Residential Rental'!$E$86/12*B320","v":21656.549573807664},11527.059141011734,149,0,{"$f":"-'Residential Rental'!$E$94/12","v":0},{"$f":"'Residential Rental'!$E$92/12*G320","v":0},0,149,4319782.8556205211,33183.608714819398,21656.549573807664,11527.059141011734]
[150,4308198.1611838043,{"$f":"-'Residential Rental'!$E$88/12","v":33183.608714819398},{"$f":"'Residential Rental'!$E$86/12*B321","v":21598.914278102606},11584.694436716793,150,0,{"$f":"-'Residential Rental'!$E$94/12","v":0},{"$f":"'Residential Rental'!$E$92/12*G321","v":0},0,150,4308198.1611838043,33183.608714819398,21598.914278102606,11584.694436716793]
[151,4296555.5432749037,{"$f":"-'Residential Rental'!$E$88/12","v":33183.608714819398},{"$f":"'Residential Rental'!$E$86/12*B322","v":21540.99080591902},11642.617908900378,151,0,{"$f":"-'Residential Rental'!$E$94/12","v":0},{"$f":"'Residential Rental'!$E$92/12*G322","v":0},0,151,4296555.5432749037,33183.608714819398,21540.99080591902,11642.617908900378]
[152,4284854.7122764587,{"$f":"-'Residential Rental'!$E$88/12","v":33183.608714819398},{"$f":"'Residential Rental'!$E$86/12*B323","v":21482.77771637452},11700.830998444879,152,0,{"$f":"-'Residential Rental'!$E$94/12","v":0},{"$f":"'Residential Rental'!$E$92/12*G323","v":0},0,152,4284854.7122764587,33183.608714819398,21482.77771637452,11700.830998444879]
[153,4273095.3771230215,{"$f":"-'Residential Rental'!$E$88/12","v":33183.608714819398},{"$f":"'Residential Rental'!$E$86/12*B324","v":21424.273561382295},11759.335153437103,153,0,{"$f":"-'Residential Rental'!$E$94/12","v":0},{"$f":"'Residential Rental'!$E$92/12*G324","v":0},0,153,4273095.3771230215,33183.608714819398,21424.273561382295,11759.335153437103]
[154,4261277.2452938175,{"$f":"-'Residential Rental'!$E$88/12","v":33183.608714819398},{"$f":"'Residential Rental'!$E$86/12*B325","v":21365.476885615109},11818.131829204289,154,0,{"$f":"-'Residential Rental'!$E$94/12","v":0},{"$f":"'Residential Rental'!$E$92/12*G325","v":0},0,154,4261277.2452938175,33183.608714819398,21365.476885615109,11818.131829204289]
[155,4249400.0228054672,{"$f":"-'Residential Rental'!$E$88/12","v":33183.608714819398},{"$f":"'Residential Rental'!$E$86/12*B326","v":21306.386226469087},11877.222488350311,155,0,{"$f":"-'Residential Rental'!$E$94/12","v":0},{"$f":"'Residential Rental'!$E$92/12*G326","v":0},0,155,4249400.0228054672,33183.608714819398,21306.386226469087,11877.222488350311]
[156,4237463.4142046748,{"$f":"-'Residential Rental'!$E$88/12","v":33183.608714819398},{"$f":"'Residential Rental'!$E$86/12*B327","v":21247.000114027338},11936.60860079206,156,0,{"$f":"-'Residential Rental'!$E$94/12","v":0},{"$f":"'Residential Rental'!$E$92/12*G327","v":0},0,156,4237463.4142046748,33183.608714819398,21247.000114027338,11936.60860079206]
[157,4225467.1225608792,{"$f":"-'Residential Rental'!$E$88/12","v":33183.608714819398},{"$f":"'Residential Rental'!$E$86/12*B328","v":21187.317071023375},11996.291643796023,157,0,{"$f":"-'Residential Rental'!$E$94/12","v":0},{"$f":"'Residential Rental'!$E$92/12*G328","v":0},0,157,4225467.1225608792,33183.608714819398,21187.317071023375,11996.291643796023]
[158,4213410.849458864,{"$f":"-'Residential Rental'!$E$88/12","v":33183.608714819398},{"$f":"'Residential Rental'!$E$86/12*B329","v":21127.335612804396},12056.273102015002,158,0,{"$f":"-'Residential Rental'!$E$94/12","v":0},{"$f":"'Residential Rental'!$E$92/12*G329","v":0},0,158,4213410.849458864,33183.608714819398,21127.335612804396,12056.273102015002]
[159,4201294.2949913386,{"$f":"-'Residential Rental'!$E$88/12","v":33183.608714819398},{"$f":"'Residential Rental'!$E$86/12*B330","v":21067.05424729432},12116.554467525079,159,0,{"$f":"-'Residential Rental'!$E$94/12","v":0},{"$f":"'Residential Rental'!$E$92/12*G330","v":0},0,159,4201294.2949913386,33183.608714819398,21067.05424729432,12116.554467525079]
[160,4189117.1577514759,{"$f":"-'Residential Rental'!$E$88/12","v":33183.608714819398},{"$f":"'Residential Rental'!$E$86/12*B331","v":21006.471474956692},12177.137239862706,160,0,{"$f":"-'Residential Rental'!$E$94/12","v":0},{"$f":"'Residential Rental'!$E$92/12*G331","v":0},0,160,4189117.1577514759,33183.608714819398,21006.471474956692,12177.137239862706]
[161,4176879.134825414,{"$f":"-'Residential Rental'!$E$88/12","v":33183.608714819398},{"$f":"'Residential Rental'!$E$86/12*B332","v":20945.58578875738},12238.022926062018,161,0,{"$f":"-'Residential Rental'!$E$94/12","v":0},{"$f":"'Residential Rental'!$E$92/12*G332","v":0},0,161,4176879.134825414,33183.608714819398,20945.58578875738,12238.022926062018]
[162,4164579.9217847218,{"$f":"-'Residential Rental'!$E$88/12","v":33183.608714819398},{"$f":"'Residential Rental'!$E$86/12*B333","v":20884.39567412707},12299.213040692328,162,0,{"$f":"-'Residential Rental'!$E$94/12","v":0},{"$f":"'Residential Rental'!$E$92/12*G333","v":0},0,162,4164579.9217847218,33183.608714819398,20884.39567412707,12299.213040692328]
[163,4152219.2126788259,{"$f":"-'Residential Rental'!$E$88/12","v":33183.608714819398},{"$f":"'Residential Rental'!$E$86/12*B334","v":20822.89960892361},12360.709105895789,163,0,{"$f":"-'Residential Rental'!$E$94/12","v":0},{"$f":"'Residential Rental'!$E$92/12*G334","v":0},0,163,4152219.2126788259,33183.608714819398,20822.89960892361,12360.709105895789]
[164,4139796.7000274006,{"$f":"-'Residential Rental'!$E$88/12","v":33183.608714819398},{"$f":"'Residential Rental'!$E$86/12*B335","v":20761.096063394129},12422.51265142527,164,0,{"$f":"-'Residential Rental'!$E$94/12","v":0},{"$f":"'Residential Rental'!$E$92/12*G335","v":0},0,164,4139796.7000274006,33183.608714819398,20761.096063394129,12422.51265142527]
[165,4127312.0748127182,{"$f":"-'Residential Rental'!$E$88/12","v":33183.608714819398},{"$f":"'Residential Rental'!$E$86/12*B336","v":20698.983500137005},12484.625214682394,165,0,{"$f":"-'Residential Rental'!$E$94/12","v":0},{"$f":"'Residential Rental'!$E$92/12*G336","v":0},0,165,4127312.0748127182,33183.608714819398,20698.983500137005,12484.625214682394]
[166,4114765.0264719622,{"$f":"-'Residential Rental'!$E$88/12","v":33183.608714819398},{"$f":"'Residential Rental'!$E$86/12*B337","v":20636.560374063592},12547.048340755806,166,0,{"$f":"-'Residential Rental'!$E$94/12","v":0},{"$f":"'Residential Rental'!$E$92/12*G337","v":0},0,166,4114765.0264719622,33183.608714819398,20636.560374063592,12547.048340755806]
[167,4102155.2428895026,{"$f":"-'Residential Rental'!$E$88/12","v":33183.608714819398},{"$f":"'Residential Rental'!$E$86/12*B338","v":20573.825132359812},12609.783582459586,167,0,{"$f":"-'Residential Rental'!$E$94/12","v":0},{"$f":"'Residential Rental'!$E$92/12*G338","v":0},0,167,4102155.2428895026,33183.608714819398,20573.825132359812,12609.783582459586]
[168,4089482.4103891305,{"$f":"-'Residential Rental'!$E$88/12","v":33183.608714819398},{"$f":"'Residential Rental'!$E$86/12*B339","v":20510.776214447513},12672.832500371886,168,0,{"$f":"-'Residential Rental'!$E$94/12","v":0},{"$f":"'Residential Rental'!$E$92/12*G339","v":0},0,168,4089482.4103891305,33183.608714819398,20510.776214447513,12672.832500371886]
[169,4076746.2137262565,{"$f":"-'Residential Rental'!$E$88/12","v":33183.608714819398},{"$f":"'Residential Rental'!$E$86/12*B340","v":20447.412051945652},12736.196662873746,169,0,{"$f":"-'Residential Rental'!$E$94/12","v":0},{"$f":"'Residential Rental'!$E$92/12*G340","v":0},0,169,4076746.2137262565,33183.608714819398,20447.412051945652,12736.196662873746]
[170,4063946.3360800683,{"$f":"-'Residential Rental'!$E$88/12","v":33183.608714819398},{"$f":"'Residential Rental'!$E$86/12*B341","v":20383.731068631281},12799.877646188117,170,0,{"$f":"-'Residential Rental'!$E$94/12","v":0},{"$f":"'Residential Rental'!$E$92/12*G341","v":0},0,170,4063946.3360800683,33183.608714819398,20383.731068631281,12799.877646188117]
[171,4051082.459045649,{"$f":"-'Residential Rental'!$E$88/12","v":33183.608714819398},{"$f":"'Residential Rental'!$E$86/12*B342","v":20319.731680400342},12863.877034419056,171,0,{"$f":"-'Residential Rental'!$E$94/12","v":0},{"$f":"'Residential Rental'!$E$92/12*G342","v":0},0,171,4051082.459045649,33183.608714819398,20319.731680400342,12863.877034419056]
[172,4038154.262626058,{"$f":"-'Residential Rental'!$E$88/12","v":33183.608714819398},{"$f":"'Residential Rental'!$E$86/12*B343","v":20255.412295228245},12928.196419591153,172,0,{"$f":"-'Residential Rental'!$E$94/12","v":0},{"$f":"'Residential Rental'!$E$92/12*G343","v":0},0,172,4038154.262626058,33183.608714819398,20255.412295228245,12928.196419591153]
[173,4025161.4252243689,{"$f":"-'Residential Rental'!$E$88/12","v":33183.608714819398},{"$f":"'Residential Rental'!$E$86/12*B344","v":20190.771313130292},12992.837401689107,173,0,{"$f":"-'Residential Rental'!$E$94/12","v":0},{"$f":"'Residential Rental'!$E$92/12*G344","v":0},0,173,4025161.4252243689,33183.608714819398,20190.771313130292,12992.837401689107]
[174,4012103.6236356716,{"$f":"-'Residential Rental'!$E$88/12","v":33183.608714819398},{"$f":"'Residential Rental'!$E$86/12*B345","v":20125.807126121847},13057.801588697552,174,0,{"$f":"-'Residential Rental'!$E$94/12","v":0},{"$f":"'Residential Rental'!$E$92/12*G345","v":0},0,174,4012103.6236356716,33183.608714819398,20125.807126121847,13057.801588697552]
[175,3998980.5330390306,{"$f":"-'Residential Rental'!$E$88/12","v":33183.608714819398},{"$f":"'Residential Rental'!$E$86/12*B346","v":20060.518118178359},13123.090596641039,175,0,{"$f":"-'Residential Rental'!$E$94/12","v":0},{"$f":"'Residential Rental'!$E$92/12*G346","v":0},0,175,3998980.5330390306,33183.608714819398,20060.518118178359,13123.090596641039]
[176,3985791.8269894063,{"$f":"-'Residential Rental'!$E$88/12","v":33183.608714819398},{"$f":"'Residential Rental'!$E$86/12*B347","v":19994.902665195154},13188.706049624245,176,0,{"$f":"-'Residential Rental'!$E$94/12","v":0},{"$f":"'Residential Rental'!$E$92/12*G347","v":0},0,176,3985791.8269894063,33183.608714819398,19994.902665195154,13188.706049624245]
[177,3972537.1774095339,{"$f":"-'Residential Rental'!$E$88/12","v":33183.608714819398},{"$f":"'Residential Rental'!$E$86/12*B348","v":19928.959134947032},13254.649579872366,177,0,{"$f":"-'Residential Rental'!$E$94/12","v":0},{"$f":"'Residential Rental'!$E$92/12*G348","v":0},0,177,3972537.1774095339,33183.608714819398,19928.959134947032,13254.649579872366]
[178,3959216.254581762,{"$f":"-'Residential Rental'!$E$88/12","v":33183.608714819398},{"$f":"'Residential Rental'!$E$86/12*B349","v":19862.685887047668},13320.92282777173,178,0,{"$f":"-'Residential Rental'!$E$94/12","v":0},{"$f":"'Residential Rental'!$E$92/12*G349","v":0},0,178,3959216.254581762,33183.608714819398,19862.685887047668,13320.92282777173]
[179,3945828.7271398515,{"$f":"-'Residential Rental'!$E$88/12","v":33183.608714819398},{"$f":"'Residential Rental'!$E$86/12*B350","v":19796.08127290881},13387.527441910588,179,0,{"$f":"-'Residential Rental'!$E$94/12","v":0},{"$f":"'Residential Rental'!$E$92/12*G350","v":0},0,179,3945828.7271398515,33183.608714819398,19796.08127290881,13387.527441910588]
[180,3932374.2620607312,{"$f":"-'Residential Rental'!$E$88/12","v":33183.608714819398},{"$f":"'Residential Rental'!$E$86/12*B351","v":19729.14363569926},13454.465079120138,180,0,{"$f":"-'Residential Rental'!$E$94/12","v":0},{"$f":"'Residential Rental'!$E$92/12*G351","v":0},0,180,3932374.2620607312,33183.608714819398,19729.14363569926,13454.465079120138]
[181,3918852.5246562152,{"$f":"-'Residential Rental'!$E$88/12","v":33183.608714819398},{"$f":"'Residential Rental'!$E$86/12*B352","v":19661.871310303657},13521.737404515741,181,0,{"$f":"-'Residential Rental'!$E$94/12","v":0},{"$f":"'Residential Rental'!$E$92/12*G352","v":0},0,181,3918852.5246562152,33183.608714819398,19661.871310303657,13521.737404515741]
[182,3905263.178564677,{"$f":"-'Residential Rental'!$E$88/12","v":33183.608714819398},{"$f":"'Residential Rental'!$E$86/12*B353","v":19594.262623281076},13589.346091538322,182,0,{"$f":"-'Residential Rental'!$E$94/12","v":0},{"$f":"'Residential Rental'!$E$92/12*G353","v":0},0,182,3905263.178564677,33183.608714819398,19594.262623281076,13589.346091538322]
[183,3891605.8857426811,{"$f":"-'Residential Rental'!$E$88/12","v":33183.608714819398},{"$f":"'Residential Rental'!$E$86/12*B354","v":19526.315892823386},13657.292821996012,183,0,{"$f":"-'Residential Rental'!$E$94/12","v":0},{"$f":"'Residential Rental'!$E$92/12*G354","v":0},0,183,3891605.8857426811,33183.608714819398,19526.315892823386,13657.292821996012]
[184,3877880.3064565752,{"$f":"-'Residential Rental'!$E$88/12","v":33183.608714819398},{"$f":"'Residential Rental'!$E$86/12*B355","v":19458.029428713406},13725.579286105993,184,0,{"$f":"-'Residential Rental'!$E$94/12","v":0},{"$f":"'Residential Rental'!$E$92/12*G355","v":0},0,184,3877880.3064565752,33183.608714819398,19458.029428713406,13725.579286105993]
[185,3864086.0992740388,{"$f":"-'Residential Rental'!$E$88/12","v":33183.608714819398},{"$f":"'Residential Rental'!$E$86/12*B356","v":19389.401532282875},13794.207182536524,185,0,{"$f":"-'Residential Rental'!$E$94/12","v":0},{"$f":"'Residential Rental'!$E$92/12*G356","v":0},0,185,3864086.0992740388,33183.608714819398,19389.401532282875,13794.207182536524]
[186,3850222.9210555898,{"$f":"-'Residential Rental'!$E$88/12","v":33183.608714819398},{"$f":"'Residential Rental'!$E$86/12*B357","v":19320.430496370194},13863.178218449204,186,0,{"$f":"-'Residential Rental'!$E$94/12","v":0},{"$f":"'Residential Rental'!$E$92/12*G357","v":0},0,186,3850222.9210555898,33183.608714819398,19320.430496370194,13863.178218449204]
[187,3836290.4269460482,{"$f":"-'Residential Rental'!$E$88/12","v":33183.608714819398},{"$f":"'Residential Rental'!$E$86/12*B358","v":19251.114605277948},13932.494109541451,187,0,{"$f":"-'Residential Rental'!$E$94/12","v":0},{"$f":"'Residential Rental'!$E$92/12*G358","v":0},0,187,3836290.4269460482,33183.608714819398,19251.114605277948,13932.494109541451]
[188,3822288.270365959,{"$f":"-'Residential Rental'!$E$88/12","v":33183.608714819398},{"$f":"'Residential Rental'!$E$86/12*B359","v":19181.45213473024},14002.156580089159,188,0,{"$f":"-'Residential Rental'!$E$94/12","v":0},{"$f":"'Residential Rental'!$E$92/12*G359","v":0},0,188,3822288.270365959,33183.608714819398,19181.45213473024,14002.156580089159]
[189,3808216.1030029696,{"$f":"-'Residential Rental'!$E$88/12","v":33183.608714819398},{"$f":"'Residential Rental'!$E$86/12*B360","v":19111.441351829795},14072.167362989603,189,0,{"$f":"-'Residential Rental'!$E$94/12","v":0},{"$f":"'Residential Rental'!$E$92/12*G360","v":0},0,189,3808216.1030029696,33183.608714819398,19111.441351829795,14072.167362989603]
[190,3794073.5748031652,{"$f":"-'Residential Rental'!$E$88/12","v":33183.608714819398},{"$f":"'Residential Rental'!$E$86/12*B361","v":19041.080515014848},14142.52819980455,190,0,{"$f":"-'Residential Rental'!$E$94/12","v":0},{"$f":"'Residential Rental'!$E$92/12*G361","v":0},0,190,3794073.5748031652,33183.608714819398,19041.080515014848,14142.52819980455]
[191,3779860.3339623618,{"$f":"-'Residential Rental'!$E$88/12","v":33183.608714819398},{"$f":"'Residential Rental'!$E$86/12*B362","v":18970.367874015825},14213.240840803574,191,0,{"$f":"-'Residential Rental'!$E$94/12","v":0},{"$f":"'Residential Rental'!$E$92/12*G362","v":0},0,191,3779860.3339623618,33183.608714819398,18970.367874015825,14213.240840803574]
[192,3765576.0269173542,{"$f":"-'Residential Rental'!$E$88/12","v":33183.608714819398},{"$f":"'Residential Rental'!$E$86/12*B363","v":18899.301669811808},14284.30704500759,192,0,{"$f":"-'Residential Rental'!$E$94/12","v":0},{"$f":"'Residential Rental'!$E$92/12*G363","v":0},0,192,3765576.0269173542,33183.608714819398,18899.301669811808,{"$f":"J364+E364","v":14284.30704500759}]
[193,{"$f":"B364-E365","v":3751220.2983371215},{"$f":"-'Residential Rental'!$E$88/12","v":33183.608714819398},{"$f":"'Residential Rental'!$E$86/12*B364","v":18827.880134586772},{"$f":"C365-D365","v":14355.728580232626},193,{"$f":"G364-J365","v":0},{"$f":"-'Residential Rental'!$E$94/12","v":0},{"$f":"'Residential Rental'!$E$92/12*G364","v":0},{"$f":"H365-I365","v":0},193,{"$f":"G365+B365","v":3751220.2983371215},33183.608714819398,18827.880134586772,14355.728580232626]
[{"$f":"A365+1","v":194},3736792.7911139876,{"$f":"-'Residential Rental'!$E$88/12","v":33183.608714819398},{"$f":"'Residential Rental'!$E$86/12*B365","v":18756.101491685607},14427.507223133791,{"$f":"F365+1","v":194},0,{"$f":"-'Residential Rental'!$E$94/12","v":0},{"$f":"'Residential Rental'!$E$92/12*G365","v":0},0,{"$f":"K365+1","v":194},3736792.7911139876,33183.608714819398,18756.101491685607,14427.507223133791]
[195,3722293.1463547382,{"$f":"-'Residential Rental'!$E$88/12","v":33183.608714819398},{"$f":"'Residential Rental'!$E$86/12*B366","v":18683.96395556994},14499.644759249459,195,0,{"$f":"-'Residential Rental'!$E$94/12","v":0},{"$f":"'Residential Rental'!$E$92/12*G366","v":0},0,195,3722293.1463547382,33183.608714819398,18683.96395556994,14499.644759249459]
[196,3707721.0033716923,{"$f":"-'Residential Rental'!$E$88/12","v":33183.608714819398},{"$f":"'Residential Rental'!$E$86/12*B367","v":18611.465731773693},14572.142983045705,196,0,{"$f":"-'Residential Rental'!$E$94/12","v":0},{"$f":"'Residential Rental'!$E$92/12*G367","v":0},0,196,3707721.0033716923,33183.608714819398,18611.465731773693,14572.142983045705]
[197,3693075.9996737312,{"$f":"-'Residential Rental'!$E$88/12","v":33183.608714819398},{"$f":"'Residential Rental'!$E$86/12*B368","v":18538.605016858462},14645.003697960936,197,0,{"$f":"-'Residential Rental'!$E$94/12","v":0},{"$f":"'Residential Rental'!$E$92/12*G368","v":0},0,197,3693075.9996737312,33183.608714819398,18538.605016858462,14645.003697960936]
[198,3678357.7709572804,{"$f":"-'Residential Rental'!$E$88/12","v":33183.608714819398},{"$f":"'Residential Rental'!$E$86/12*B369","v":18465.379998368655},14718.228716450743,198,0,{"$f":"-'Residential Rental'!$E$94/12","v":0},{"$f":"'Residential Rental'!$E$92/12*G369","v":0},0,198,3678357.7709572804,33183.608714819398,18465.379998368655,14718.228716450743]
[199,3663565.9510972472,{"$f":"-'Residential Rental'!$E$88/12","v":33183.608714819398},{"$f":"'Residential Rental'!$E$86/12*B370","v":18391.788854786402},14791.819860032996,199,0,{"$f":"-'Residential Rental'!$E$94/12","v":0},{"$f":"'Residential Rental'!$E$92/12*G370","v":0},0,199,3663565.9510972472,33183.608714819398,18391.788854786402,14791.819860032996]
[200,3648700.1721379142,{"$f":"-'Residential Rental'!$E$88/12","v":33183.608714819398},{"$f":"'Residential Rental'!$E$86/12*B371","v":18317.829755486237},14865.778959333162,200,0,{"$f":"-'Residential Rental'!$E$94/12","v":0},{"$f":"'Residential Rental'!$E$92/12*G371","v":0},0,200,3648700.1721379142,33183.608714819398,18317.829755486237,14865.778959333162]
[201,3633760.0642837845,{"$f":"-'Residential Rental'!$E$88/12","v":33183.608714819398},{"$f":"'Residential Rental'!$E$86/12*B372","v":18243.500860689572},14940.107854129827,201,0,{"$f":"-'Residential Rental'!$E$94/12","v":0},{"$f":"'Residential Rental'!$E$92/12*G372","v":0},0,201,3633760.0642837845,33183.608714819398,18243.500860689572,14940.107854129827]
[202,3618745.2558903839,{"$f":"-'Residential Rental'!$E$88/12","v":33183.608714819398},{"$f":"'Residential Rental'!$E$86/12*B373","v":18168.800321418923},15014.808393400475,202,0,{"$f":"-'Residential Rental'!$E$94/12","v":0},{"$f":"'Residential Rental'!$E$92/12*G373","v":0},0,202,3618745.2558903839,33183.608714819398,18168.800321418923,15014.808393400475]
[203,3603655.3734550164,{"$f":"-'Residential Rental'!$E$88/12","v":33183.608714819398},{"$f":"'Residential Rental'!$E$86/12*B374","v":18093.726279451919},15089.882435367479,203,0,{"$f":"-'Residential Rental'!$E$94/12","v":0},{"$f":"'Residential Rental'!$E$92/12*G374","v":0},0,203,3603655.3734550164,33183.608714819398,18093.726279451919,15089.882435367479]
[204,3588490.0416074721,{"$f":"-'Residential Rental'!$E$88/12","v":33183.608714819398},{"$f":"'Residential Rental'!$E$86/12*B375","v":18018.276867275083},15165.331847544316,204,0,{"$f":"-'Residential Rental'!$E$94/12","v":0},{"$f":"'Residential Rental'!$E$92/12*G375","v":0},0,204,3588490.0416074721,33183.608714819398,18018.276867275083,15165.331847544316]
[205,3573248.8831006899,{"$f":"-'Residential Rental'!$E$88/12","v":33183.608714819398},{"$f":"'Residential Rental'!$E$86/12*B376","v":17942.45020803736},15241.158506782038,205,0,{"$f":"-'Residential Rental'!$E$94/12","v":0},{"$f":"'Residential Rental'!$E$92/12*G376","v":0},0,205,3573248.8831006899,33183.608714819398,17942.45020803736,15241.158506782038]
[206,3557931.5188013739,{"$f":"-'Residential Rental'!$E$88/12","v":33183.608714819398},{"$f":"'Residential Rental'!$E$86/12*B377","v":17866.24441550345},15317.364299315948,206,0,{"$f":"-'Residential Rental'!$E$94/12","v":0},{"$f":"'Residential Rental'!$E$92/12*G377","v":0},0,206,3557931.5188013739,33183.608714819398,17866.24441550345,15317.364299315948]
[207,3542537.5676805614,{"$f":"-'Residential Rental'!$E$88/12","v":33183.608714819398},{"$f":"'Residential Rental'!$E$86/12*B378","v":17789.657594006869},15393.95112081253,207,0,{"$f":"-'Residential Rental'!$E$94/12","v":0},{"$f":"'Residential Rental'!$E$92/12*G378","v":0},0,207,3542537.5676805614,33183.608714819398,17789.657594006869,15393.95112081253]
[208,3527066.6468041451,{"$f":"-'Residential Rental'!$E$88/12","v":33183.608714819398},{"$f":"'Residential Rental'!$E$86/12*B379","v":17712.687838402806},15470.920876416592,208,0,{"$f":"-'Residential Rental'!$E$94/12","v":0},{"$f":"'Residential Rental'!$E$92/12*G379","v":0},0,208,3527066.6468041451,33183.608714819398,17712.687838402806,15470.920876416592]
[209,3511518.3713233466,{"$f":"-'Residential Rental'!$E$88/12","v":33183.608714819398},{"$f":"'Residential Rental'!$E$86/12*B380","v":17635.333234020727},15548.275480798671,209,0,{"$f":"-'Residential Rental'!$E$94/12","v":0},{"$f":"'Residential Rental'!$E$92/12*G380","v":0},0,209,3511518.3713233466,33183.608714819398,17635.333234020727,15548.275480798671]
[210,3495892.3544651438,{"$f":"-'Residential Rental'!$E$88/12","v":33183.608714819398},{"$f":"'Residential Rental'!$E$86/12*B381","v":17557.591856616735},15626.016858202664,210,0,{"$f":"-'Residential Rental'!$E$94/12","v":0},{"$f":"'Residential Rental'!$E$92/12*G381","v":0},0,210,3495892.3544651438,33183.608714819398,17557.591856616735,15626.016858202664]
[211,3480188.2075226502,{"$f":"-'Residential Rental'!$E$88/12","v":33183.608714819398},{"$f":"'Residential Rental'!$E$86/12*B382","v":17479.461772325718},15704.14694249368,211,0,{"$f":"-'Residential Rental'!$E$94/12","v":0},{"$f":"'Residential Rental'!$E$92/12*G382","v":0},0,211,3480188.2075226502,33183.608714819398,17479.461772325718,15704.14694249368]
[212,3464405.5398454443,{"$f":"-'Residential Rental'!$E$88/12","v":33183.608714819398},{"$f":"'Residential Rental'!$E$86/12*B383","v":17400.941037613251},15782.667677206147,212,0,{"$f":"-'Residential Rental'!$E$94/12","v":0},{"$f":"'Residential Rental'!$E$92/12*G383","v":0},0,212,3464405.5398454443,33183.608714819398,17400.941037613251,15782.667677206147]
[213,3448543.9588298523,{"$f":"-'Residential Rental'!$E$88/12","v":33183.608714819398},{"$f":"'Residential Rental'!$E$86/12*B384","v":17322.027699227223},15861.581015592175,213,0,{"$f":"-'Residential Rental'!$E$94/12","v":0},{"$f":"'Residential Rental'!$E$92/12*G384","v":0},0,213,3448543.9588298523,33183.608714819398,17322.027699227223,15861.581015592175]
[214,3432603.0699091824,{"$f":"-'Residential Rental'!$E$88/12","v":33183.608714819398},{"$f":"'Residential Rental'!$E$86/12*B385","v":17242.719794149263},15940.888920670135,214,0,{"$f":"-'Residential Rental'!$E$94/12","v":0},{"$f":"'Residential Rental'!$E$92/12*G385","v":0},0,214,3432603.0699091824,33183.608714819398,17242.719794149263,15940.888920670135]
[215,3416582.4765439089,{"$f":"-'Residential Rental'!$E$88/12","v":33183.608714819398},{"$f":"'Residential Rental'!$E$86/12*B386","v":17163.015349545913},16020.593365273486,215,0,{"$f":"-'Residential Rental'!$E$94/12","v":0},{"$f":"'Residential Rental'!$E$92/12*G386","v":0},0,215,3416582.4765439089,33183.608714819398,17163.015349545913,16020.593365273486]
[216,3400481.7802118091,{"$f":"-'Residential Rental'!$E$88/12","v":33183.608714819398},{"$f":"'Residential Rental'!$E$86/12*B387","v":17082.912382719544},16100.696332099855,216,0,{"$f":"-'Residential Rental'!$E$94/12","v":0},{"$f":"'Residential Rental'!$E$92/12*G387","v":0},0,216,3400481.7802118091,33183.608714819398,17082.912382719544,16100.696332099855]
[217,3384300.5803980487,{"$f":"-'Residential Rental'!$E$88/12","v":33183.608714819398},{"$f":"'Residential Rental'!$E$86/12*B388","v":17002.408901059047},16181.199813760351,217,0,{"$f":"-'Residential Rental'!$E$94/12","v":0},{"$f":"'Residential Rental'!$E$92/12*G388","v":0},0,217,3384300.5803980487,33183.608714819398,17002.408901059047,16181.199813760351]
[218,3368038.4745852198,{"$f":"-'Residential Rental'!$E$88/12","v":33183.608714819398},{"$f":"'Residential Rental'!$E$86/12*B389","v":16921.502901990243},16262.105812829155,218,0,{"$f":"-'Residential Rental'!$E$94/12","v":0},{"$f":"'Residential Rental'!$E$92/12*G389","v":0},0,218,3368038.4745852198,33183.608714819398,16921.502901990243,16262.105812829155]
[219,3351695.0582433264,{"$f":"-'Residential Rental'!$E$88/12","v":33183.608714819398},{"$f":"'Residential Rental'!$E$86/12*B390","v":16840.1923729261},16343.416341893299,219,0,{"$f":"-'Residential Rental'!$E$94/12","v":0},{"$f":"'Residential Rental'!$E$92/12*G390","v":0},0,219,3351695.0582433264,33183.608714819398,16840.1923729261,16343.416341893299]
[220,3335269.9248197237,{"$f":"-'Residential Rental'!$E$88/12","v":33183.608714819398},{"$f":"'Residential Rental'!$E$86/12*B391","v":16758.475291216633},16425.133423602765,220,0,{"$f":"-'Residential Rental'!$E$94/12","v":0},{"$f":"'Residential Rental'!$E$92/12*G391","v":0},0,220,3335269.9248197237,33183.608714819398,16758.475291216633,16425.133423602765]
[221,3318762.665729003,{"$f":"-'Residential Rental'!$E$88/12","v":33183.608714819398},{"$f":"'Residential Rental'!$E$86/12*B392","v":16676.349624098621},16507.259090720778,221,0,{"$f":"-'Residential Rental'!$E$94/12","v":0},{"$f":"'Residential Rental'!$E$92/12*G392","v":0},0,221,3318762.665729003,33183.608714819398,16676.349624098621,16507.259090720778]
[222,3302172.8703428288,{"$f":"-'Residential Rental'!$E$88/12","v":33183.608714819398},{"$f":"'Residential Rental'!$E$86/12*B393","v":16593.813328645014},16589.795386174384,222,0,{"$f":"-'Residential Rental'!$E$94/12","v":0},{"$f":"'Residential Rental'!$E$92/12*G393","v":0},0,222,3302172.8703428288,33183.608714819398,16593.813328645014,16589.795386174384]
[223,3285500.1259797234,{"$f":"-'Residential Rental'!$E$88/12","v":33183.608714819398},{"$f":"'Residential Rental'!$E$86/12*B394","v":16510.864351714143},16672.744363105256,223,0,{"$f":"-'Residential Rental'!$E$94/12","v":0},{"$f":"'Residential Rental'!$E$92/12*G394","v":0},0,223,3285500.1259797234,33183.608714819398,16510.864351714143,16672.744363105256]
[224,3268744.0178948026,{"$f":"-'Residential Rental'!$E$88/12","v":33183.608714819398},{"$f":"'Residential Rental'!$E$86/12*B395","v":16427.500629898619},16756.108084920779,224,0,{"$f":"-'Residential Rental'!$E$94/12","v":0},{"$f":"'Residential Rental'!$E$92/12*G395","v":0},0,224,3268744.0178948026,33183.608714819398,16427.500629898619,16756.108084920779]
[225,3251904.1292694574,{"$f":"-'Residential Rental'!$E$88/12","v":33183.608714819398},{"$f":"'Residential Rental'!$E$86/12*B396","v":16343.720089474013},16839.888625345386,225,0,{"$f":"-'Residential Rental'!$E$94/12","v":0},{"$f":"'Residential Rental'!$E$92/12*G396","v":0},0,225,3251904.1292694574,33183.608714819398,16343.720089474013,16839.888625345386]
[226,3234980.0412009852,{"$f":"-'Residential Rental'!$E$88/12","v":33183.608714819398},{"$f":"'Residential Rental'!$E$86/12*B397","v":16259.520646347288},16924.088068472112,226,0,{"$f":"-'Residential Rental'!$E$94/12","v":0},{"$f":"'Residential Rental'!$E$92/12*G397","v":0},0,226,3234980.0412009852,33183.608714819398,16259.520646347288,16924.088068472112]
[227,3217971.3326921705,{"$f":"-'Residential Rental'!$E$88/12","v":33183.608714819398},{"$f":"'Residential Rental'!$E$86/12*B398","v":16174.900206004926},17008.708508814474,227,0,{"$f":"-'Residential Rental'!$E$94/12","v":0},{"$f":"'Residential Rental'!$E$92/12*G398","v":0},0,227,3217971.3326921705,33183.608714819398,16174.900206004926,17008.708508814474]
[228,3200877.5806408119,{"$f":"-'Residential Rental'!$E$88/12","v":33183.608714819398},{"$f":"'Residential Rental'!$E$86/12*B399","v":16089.856663460852},17093.752051358548,228,0,{"$f":"-'Residential Rental'!$E$94/12","v":0},{"$f":"'Residential Rental'!$E$92/12*G399","v":0},0,228,3200877.5806408119,33183.608714819398,16089.856663460852,17093.752051358548]
[229,3183698.3598291967,{"$f":"-'Residential Rental'!$E$88/12","v":33183.608714819398},{"$f":"'Residential Rental'!$E$86/12*B400","v":16004.38790320406},17179.220811615338,229,0,{"$f":"-'Residential Rental'!$E$94/12","v":0},{"$f":"'Residential Rental'!$E$92/12*G400","v":0},0,229,3183698.3598291967,33183.608714819398,16004.38790320406,17179.220811615338]
[230,3166433.2429135232,{"$f":"-'Residential Rental'!$E$88/12","v":33183.608714819398},{"$f":"'Residential Rental'!$E$86/12*B401","v":15918.491799145984},17265.116915673414,230,0,{"$f":"-'Residential Rental'!$E$94/12","v":0},{"$f":"'Residential Rental'!$E$92/12*G401","v":0},0,230,3166433.2429135232,33183.608714819398,15918.491799145984,17265.116915673414]
[231,3149081.8004132714,{"$f":"-'Residential Rental'!$E$88/12","v":33183.608714819398},{"$f":"'Residential Rental'!$E$86/12*B402","v":15832.166214567616},17351.442500251782,231,0,{"$f":"-'Residential Rental'!$E$94/12","v":0},{"$f":"'Residential Rental'!$E$92/12*G402","v":0},0,231,3149081.8004132714,33183.608714819398,15832.166214567616,17351.442500251782]
[232,3131643.6007005186,{"$f":"-'Residential Rental'!$E$88/12","v":33183.608714819398},{"$f":"'Residential Rental'!$E$86/12*B403","v":15745.409002066357},17438.199712753041,232,0,{"$f":"-'Residential Rental'!$E$94/12","v":0},{"$f":"'Residential Rental'!$E$92/12*G403","v":0},0,232,3131643.6007005186,33183.608714819398,15745.409002066357,17438.199712753041]
[233,3114118.2099892017,{"$f":"-'Residential Rental'!$E$88/12","v":33183.608714819398},{"$f":"'Residential Rental'!$E$86/12*B404","v":15658.218003502594},17525.390711316802,233,0,{"$f":"-'Residential Rental'!$E$94/12","v":0},{"$f":"'Residential Rental'!$E$92/12*G404","v":0},0,233,3114118.2099892017,33183.608714819398,15658.218003502594,17525.390711316802]
[234,3096505.1923243282,{"$f":"-'Residential Rental'!$E$88/12","v":33183.608714819398},{"$f":"'Residential Rental'!$E$86/12*B405","v":15570.59104994601},17613.01766487339,234,0,{"$f":"-'Residential Rental'!$E$94/12","v":0},{"$f":"'Residential Rental'!$E$92/12*G405","v":0},0,234,3096505.1923243282,33183.608714819398,15570.59104994601,17613.01766487339]
[235,3078804.1095711305,{"$f":"-'Residential Rental'!$E$88/12","v":33183.608714819398},{"$f":"'Residential Rental'!$E$86/12*B406","v":15482.525961621641},17701.082753197756,235,0,{"$f":"-'Residential Rental'!$E$94/12","v":0},{"$f":"'Residential Rental'!$E$92/12*G406","v":0},0,235,3078804.1095711305,33183.608714819398,15482.525961621641,17701.082753197756]
[236,3061014.5214041667,{"$f":"-'Residential Rental'!$E$88/12","v":33183.608714819398},{"$f":"'Residential Rental'!$E$86/12*B407","v":15394.020547855653},17789.588166963746,236,0,{"$f":"-'Residential Rental'!$E$94/12","v":0},{"$f":"'Residential Rental'!$E$92/12*G407","v":0},0,236,3061014.5214041667,33183.608714819398,15394.020547855653,17789.588166963746]
[237,3043135.9852963681,{"$f":"-'Residential Rental'!$E$88/12","v":33183.608714819398},{"$f":"'Residential Rental'!$E$86/12*B408","v":15305.072607020833},17878.536107798565,237,0,{"$f":"-'Residential Rental'!$E$94/12","v":0},{"$f":"'Residential Rental'!$E$92/12*G408","v":0},0,237,3043135.9852963681,33183.608714819398,15305.072607020833,17878.536107798565]
[238,3025168.0565080307,{"$f":"-'Residential Rental'!$E$88/12","v":33183.608714819398},{"$f":"'Residential Rental'!$E$86/12*B409","v":15215.67992648184},17967.928788337558,238,0,{"$f":"-'Residential Rental'!$E$94/12","v":0},{"$f":"'Residential Rental'!$E$92/12*G409","v":0},0,238,3025168.0565080307,33183.608714819398,15215.67992648184,17967.928788337558]
[239,3007110.2880757516,{"$f":"-'Residential Rental'!$E$88/12","v":33183.608714819398},{"$f":"'Residential Rental'!$E$86/12*B410","v":15125.840282540154},18057.768432279245,239,0,{"$f":"-'Residential Rental'!$E$94/12","v":0},{"$f":"'Residential Rental'!$E$92/12*G410","v":0},0,239,3007110.2880757516,33183.608714819398,15125.840282540154,18057.768432279245]
[240,2988962.2308013109,{"$f":"-'Residential Rental'!$E$88/12","v":33183.608714819398},{"$f":"'Residential Rental'!$E$86/12*B411","v":15035.551440378758},18148.057274440638,240,0,{"$f":"-'Residential Rental'!$E$94/12","v":0},{"$f":"'Residential Rental'!$E$92/12*G411","v":0},0,240,2988962.2308013109,33183.608714819398,15035.551440378758,18148.057274440638]
[241,2970723.433240498,{"$f":"-'Residential Rental'!$E$88/12","v":33183.608714819398},{"$f":"'Residential Rental'!$E$86/12*B412","v":14944.811154006555},18238.797560812844,241,0,{"$f":"-'Residential Rental'!$E$94/12","v":0},{"$f":"'Residential Rental'!$E$92/12*G412","v":0},0,241,2970723.433240498,33183.608714819398,14944.811154006555,18238.797560812844]
[242,2952393.441691881,{"$f":"-'Residential Rental'!$E$88/12","v":33183.608714819398},{"$f":"'Residential Rental'!$E$86/12*B413","v":14853.61716620249},18329.991548616908,242,0,{"$f":"-'Residential Rental'!$E$94/12","v":0},{"$f":"'Residential Rental'!$E$92/12*G413","v":0},0,242,2952393.441691881,33183.608714819398,14853.61716620249,18329.991548616908]
[243,2933971.8001855211,{"$f":"-'Residential Rental'!$E$88/12","v":33183.608714819398},{"$f":"'Residential Rental'!$E$86/12*B414","v":14761.967208459406},18421.641506359992,243,0,{"$f":"-'Residential Rental'!$E$94/12","v":0},{"$f":"'Residential Rental'!$E$92/12*G414","v":0},0,243,2933971.8001855211,33183.608714819398,14761.967208459406,18421.641506359992]
[244,2915458.0504716295,{"$f":"-'Residential Rental'!$E$88/12","v":33183.608714819398},{"$f":"'Residential Rental'!$E$86/12*B415","v":14669.859000927607},18513.74971389179,244,0,{"$f":"-'Residential Rental'!$E$94/12","v":0},{"$f":"'Residential Rental'!$E$92/12*G415","v":0},0,244,2915458.0504716295,33183.608714819398,14669.859000927607,18513.74971389179]
[245,2896851.7320091682,{"$f":"-'Residential Rental'!$E$88/12","v":33183.608714819398},{"$f":"'Residential Rental'!$E$86/12*B416","v":14577.290252358147},18606.318462461251,245,0,{"$f":"-'Residential Rental'!$E$94/12","v":0},{"$f":"'Residential Rental'!$E$92/12*G416","v":0},0,245,2896851.7320091682,33183.608714819398,14577.290252358147,18606.318462461251]
[246,2878152.3819543947,{"$f":"-'Residential Rental'!$E$88/12","v":33183.608714819398},{"$f":"'Residential Rental'!$E$86/12*B417","v":14484.258660045842},18699.350054773557,246,0,{"$f":"-'Residential Rental'!$E$94/12","v":0},{"$f":"'Residential Rental'!$E$92/12*G417","v":0},0,246,2878152.3819543947,33183.608714819398,14484.258660045842,18699.350054773557]
[247,2859359.5351493475,{"$f":"-'Residential Rental'!$E$88/12","v":33183.608714819398},{"$f":"'Residential Rental'!$E$86/12*B418","v":14390.761909771974},18792.846805047426,247,0,{"$f":"-'Residential Rental'!$E$94/12","v":0},{"$f":"'Residential Rental'!$E$92/12*G418","v":0},0,247,2859359.5351493475,33183.608714819398,14390.761909771974,18792.846805047426]
[248,2840472.724110275,{"$f":"-'Residential Rental'!$E$88/12","v":33183.608714819398},{"$f":"'Residential Rental'!$E$86/12*B419","v":14296.797675746739},18886.811039072658,248,0,{"$f":"-'Residential Rental'!$E$94/12","v":0},{"$f":"'Residential Rental'!$E$92/12*G419","v":0},0,248,2840472.724110275,33183.608714819398,14296.797675746739,18886.811039072658]
[249,2821491.4790160069,{"$f":"-'Residential Rental'!$E$88/12","v":33183.608714819398},{"$f":"'Residential Rental'!$E$86/12*B420","v":14202.363620551376},18981.245094268023,249,0,{"$f":"-'Residential Rental'!$E$94/12","v":0},{"$f":"'Residential Rental'!$E$92/12*G420","v":0},0,249,2821491.4790160069,33183.608714819398,14202.363620551376,18981.245094268023]
[250,2802415.3276962675,{"$f":"-'Residential Rental'!$E$88/12","v":33183.608714819398},{"$f":"'Residential Rental'!$E$86/12*B421","v":14107.457395080035},19076.151319739365,250,0,{"$f":"-'Residential Rental'!$E$94/12","v":0},{"$f":"'Residential Rental'!$E$92/12*G421","v":0},0,250,2802415.3276962675,33183.608714819398,14107.457395080035,19076.151319739365]
[251,2783243.7956199297,{"$f":"-'Residential Rental'!$E$88/12","v":33183.608714819398},{"$f":"'Residential Rental'!$E$86/12*B422","v":14012.076638481338},19171.532076338059,251,0,{"$f":"-'Residential Rental'!$E$94/12","v":0},{"$f":"'Residential Rental'!$E$92/12*G422","v":0},0,251,2783243.7956199297,33183.608714819398,14012.076638481338,19171.532076338059]
[252,2763976.4058832098,{"$f":"-'Residential Rental'!$E$88/12","v":33183.608714819398},{"$f":"'Residential Rental'!$E$86/12*B423","v":13916.218978099649},19267.38973671975,252,0,{"$f":"-'Residential Rental'!$E$94/12","v":0},{"$f":"'Residential Rental'!$E$92/12*G423","v":0},0,252,2763976.4058832098,33183.608714819398,13916.218978099649,19267.38973671975]
[253,2744612.6791978064,{"$f":"-'Residential Rental'!$E$88/12","v":33183.608714819398},{"$f":"'Residential Rental'!$E$86/12*B424","v":13819.882029416049},19363.726685403351,253,0,{"$f":"-'Residential Rental'!$E$94/12","v":0},{"$f":"'Residential Rental'!$E$92/12*G424","v":0},0,253,2744612.6791978064,33183.608714819398,13819.882029416049,19363.726685403351]
[254,2725152.1338789761,{"$f":"-'Residential Rental'!$E$88/12","v":33183.608714819398},{"$f":"'Residential Rental'!$E$86/12*B425","v":13723.063395989033},19460.545318830365,254,0,{"$f":"-'Residential Rental'!$E$94/12","v":0},{"$f":"'Residential Rental'!$E$92/12*G425","v":0},0,254,2725152.1338789761,33183.608714819398,13723.063395989033,19460.545318830365]
[255,2705594.2858335515,{"$f":"-'Residential Rental'!$E$88/12","v":33183.608714819398},{"$f":"'Residential Rental'!$E$86/12*B426","v":13625.76066939488},19557.848045424518,255,0,{"$f":"-'Residential Rental'!$E$94/12","v":0},{"$f":"'Residential Rental'!$E$92/12*G426","v":0},0,255,2705594.2858335515,33183.608714819398,13625.76066939488,19557.848045424518]
[256,2685938.6485478999,{"$f":"-'Residential Rental'!$E$88/12","v":33183.608714819398},{"$f":"'Residential Rental'!$E$86/12*B427","v":13527.971429167757},19655.637285651639,256,0,{"$f":"-'Residential Rental'!$E$94/12","v":0},{"$f":"'Residential Rental'!$E$92/12*G427","v":0},0,256,2685938.6485478999,33183.608714819398,13527.971429167757,19655.637285651639]
[257,{"$f":"B428-E429","v":2666184.7330758199},{"$f":"-'Residential Rental'!$E$88/12","v":33183.608714819398},{"$f":"'Residential Rental'!$E$86/12*B428","v":13429.6932427395},{"$f":"C429-D429","v":19753.915472079898},257,{"$f":"G428-J429","v":0},{"$f":"-'Residential Rental'!$E$94/12","v":0},{"$f":"'Residential Rental'!$E$92/12*G428","v":0},{"$f":"H429-I429","v":0},257,{"$f":"G429+B429","v":2666184.7330758199},33183.608714819398,13429.6932427395,19753.915472079898]
[{"$f":"A429+1","v":258},2646332.0480263797,{"$f":"-'Residential Rental'!$E$88/12","v":33183.608714819398},{"$f":"'Residential Rental'!$E$86/12*B429","v":13330.923665379099},19852.685049440297,{"$f":"F429+1","v":258},0,{"$f":"-'Residential Rental'!$E$94/12","v":0},{"$f":"'Residential Rental'!$E$92/12*G429","v":0},0,{"$f":"K429+1","v":258},2646332.0480263797,33183.608714819398,13330.923665379099,19852.685049440297]
[259,2626380.0995516921,{"$f":"-'Residential Rental'!$E$88/12","v":33183.608714819398},{"$f":"'Residential Rental'!$E$86/12*B430","v":13231.660240131898},19951.948474687502,259,0,{"$f":"-'Residential Rental'!$E$94/12","v":0},{"$f":"'Residential Rental'!$E$92/12*G430","v":0},0,259,2626380.0995516921,33183.608714819398,13231.660240131898,19951.948474687502]
[260,2606328.391334631,{"$f":"-'Residential Rental'!$E$88/12","v":33183.608714819398},{"$f":"'Residential Rental'!$E$86/12*B431","v":13131.900497758461},20051.708217060936,260,0,{"$f":"-'Residential Rental'!$E$94/12","v":0},{"$f":"'Residential Rental'!$E$92/12*G431","v":0},0,260,2606328.391334631,33183.608714819398,13131.900497758461,20051.708217060936]
[261,2586176.4245764846,{"$f":"-'Residential Rental'!$E$88/12","v":33183.608714819398},{"$f":"'Residential Rental'!$E$86/12*B432","v":13031.641956673155},20151.966758146242,261,0,{"$f":"-'Residential Rental'!$E$94/12","v":0},{"$f":"'Residential Rental'!$E$92/12*G432","v":0},0,261,2586176.4245764846,33183.608714819398,13031.641956673155,20151.966758146242]
[262,2565923.6979845478,{"$f":"-'Residential Rental'!$E$88/12","v":33183.608714819398},{"$f":"'Residential Rental'!$E$86/12*B433","v":12930.882122882424},20252.726591936975,262,0,{"$f":"-'Residential Rental'!$E$94/12","v":0},{"$f":"'Residential Rental'!$E$92/12*G433","v":0},0,262,2565923.6979845478,33183.608714819398,12930.882122882424,20252.726591936975]
[263,2545569.7077596514,{"$f":"-'Residential Rental'!$E$88/12","v":33183.608714819398},{"$f":"'Residential Rental'!$E$86/12*B434","v":12829.618489922739},20353.990224896661,263,0,{"$f":"-'Residential Rental'!$E$94/12","v":0},{"$f":"'Residential Rental'!$E$92/12*G434","v":0},0,263,2545569.7077596514,33183.608714819398,12829.618489922739,20353.990224896661]
[264,2525113.9475836302,{"$f":"-'Residential Rental'!$E$88/12","v":33183.608714819398},{"$f":"'Residential Rental'!$E$86/12*B435","v":12727.848538798256},20455.76017602114,264,0,{"$f":"-'Residential Rental'!$E$94/12","v":0},{"$f":"'Residential Rental'!$E$92/12*G435","v":0},0,264,2525113.9475836302,33183.608714819398,12727.848538798256,20455.76017602114]
[265,2504555.908606729,{"$f":"-'Residential Rental'!$E$88/12","v":33183.608714819398},{"$f":"'Residential Rental'!$E$86/12*B436","v":12625.569737918151},20558.038976901247,265,0,{"$f":"-'Residential Rental'!$E$94/12","v":0},{"$f":"'Residential Rental'!$E$92/12*G436","v":0},0,265,2504555.908606729,33183.608714819398,12625.569737918151,20558.038976901247]
[266,2483895.0794349434,{"$f":"-'Residential Rental'!$E$88/12","v":33183.608714819398},{"$f":"'Residential Rental'!$E$86/12*B437","v":12522.779543033645},20660.829171785754,266,0,{"$f":"-'Residential Rental'!$E$94/12","v":0},{"$f":"'Residential Rental'!$E$92/12*G437","v":0},0,266,2483895.0794349434,33183.608714819398,12522.779543033645,20660.829171785754]
[267,2463130.9461172987,{"$f":"-'Residential Rental'!$E$88/12","v":33183.608714819398},{"$f":"'Residential Rental'!$E$86/12*B438","v":12419.475397174718},20764.133317644679,267,0,{"$f":"-'Residential Rental'!$E$94/12","v":0},{"$f":"'Residential Rental'!$E$92/12*G438","v":0},0,267,2463130.9461172987,33183.608714819398,12419.475397174718,20764.133317644679]
[268,2442262.9921330656,{"$f":"-'Residential Rental'!$E$88/12","v":33183.608714819398},{"$f":"'Residential Rental'!$E$86/12*B439","v":12315.654730586493},20867.953984232903,268,0,{"$f":"-'Residential Rental'!$E$94/12","v":0},{"$f":"'Residential Rental'!$E$92/12*G439","v":0},0,268,2442262.9921330656,33183.608714819398,12315.654730586493,20867.953984232903]
[269,2421290.6983789117,{"$f":"-'Residential Rental'!$E$88/12","v":33183.608714819398},{"$f":"'Residential Rental'!$E$86/12*B440","v":12211.314960665328},20972.29375415407,269,0,{"$f":"-'Residential Rental'!$E$94/12","v":0},{"$f":"'Residential Rental'!$E$92/12*G440","v":0},0,269,2421290.6983789117,33183.608714819398,12211.314960665328,20972.29375415407]
[270,2400213.5431559868,{"$f":"-'Residential Rental'!$E$88/12","v":33183.608714819398},{"$f":"'Residential Rental'!$E$86/12*B441","v":12106.453491894559},21077.155222924841,270,0,{"$f":"-'Residential Rental'!$E$94/12","v":0},{"$f":"'Residential Rental'!$E$92/12*G441","v":0},0,270,2400213.5431559868,33183.608714819398,12106.453491894559,21077.155222924841]
[271,2379031.0021569473,{"$f":"-'Residential Rental'!$E$88/12","v":33183.608714819398},{"$f":"'Residential Rental'!$E$86/12*B442","v":12001.067715779935},21182.540999039462,271,0,{"$f":"-'Residential Rental'!$E$94/12","v":0},{"$f":"'Residential Rental'!$E$92/12*G442","v":0},0,271,2379031.0021569473,33183.608714819398,12001.067715779935,21182.540999039462]
[272,2357742.5484529128,{"$f":"-'Residential Rental'!$E$88/12","v":33183.608714819398},{"$f":"'Residential Rental'!$E$86/12*B443","v":11895.155010784736},21288.453704034662,272,0,{"$f":"-'Residential Rental'!$E$94/12","v":0},{"$f":"'Residential Rental'!$E$92/12*G443","v":0},0,272,2357742.5484529128,33183.608714819398,11895.155010784736,21288.453704034662]
[273,2336347.6524803578,{"$f":"-'Residential Rental'!$E$88/12","v":33183.608714819398},{"$f":"'Residential Rental'!$E$86/12*B444","v":11788.712742264564},21394.895972554834,273,0,{"$f":"-'Residential Rental'!$E$94/12","v":0},{"$f":"'Residential Rental'!$E$92/12*G444","v":0},0,273,2336347.6524803578,33183.608714819398,11788.712742264564,21394.895972554834]
[274,2314845.7820279403,{"$f":"-'Residential Rental'!$E$88/12","v":33183.608714819398},{"$f":"'Residential Rental'!$E$86/12*B445","v":11681.73826240179},21501.870452417606,274,0,{"$f":"-'Residential Rental'!$E$94/12","v":0},{"$f":"'Residential Rental'!$E$92/12*G445","v":0},0,274,2314845.7820279403,33183.608714819398,11681.73826240179,21501.870452417606]
[275,2293236.4022232606,{"$f":"-'Residential Rental'!$E$88/12","v":33183.608714819398},{"$f":"'Residential Rental'!$E$86/12*B446","v":11574.228910139702},21609.379804679695,275,0,{"$f":"-'Residential Rental'!$E$94/12","v":0},{"$f":"'Residential Rental'!$E$92/12*G446","v":0},0,275,2293236.4022232606,33183.608714819398,11574.228910139702,21609.379804679695]
[276,2271518.9755195575,{"$f":"-'Residential Rental'!$E$88/12","v":33183.608714819398},{"$f":"'Residential Rental'!$E$86/12*B447","v":11466.182011116303},21717.426703703095,276,0,{"$f":"-'Residential Rental'!$E$94/12","v":0},{"$f":"'Residential Rental'!$E$92/12*G447","v":0},0,276,2271518.9755195575,33183.608714819398,11466.182011116303,21717.426703703095]
[277,2249692.9616823359,{"$f":"-'Residential Rental'!$E$88/12","v":33183.608714819398},{"$f":"'Residential Rental'!$E$86/12*B448","v":11357.594877597787},21826.01383722161,277,0,{"$f":"-'Residential Rental'!$E$94/12","v":0},{"$f":"'Residential Rental'!$E$92/12*G448","v":0},0,277,2249692.9616823359,33183.608714819398,11357.594877597787,21826.01383722161]
[278,2227757.8177759284,{"$f":"-'Residential Rental'!$E$88/12","v":33183.608714819398},{"$f":"'Residential Rental'!$E$86/12*B449","v":11248.46480841168},21935.14390640772,278,0,{"$f":"-'Residential Rental'!$E$94/12","v":0},{"$f":"'Residential Rental'!$E$92/12*G449","v":0},0,278,2227757.8177759284,33183.608714819398,11248.46480841168,21935.14390640772]
[279,2205712.9981499887,{"$f":"-'Residential Rental'!$E$88/12","v":33183.608714819398},{"$f":"'Residential Rental'!$E$86/12*B450","v":11138.789088879643},22044.819625939755,279,0,{"$f":"-'Residential Rental'!$E$94/12","v":0},{"$f":"'Residential Rental'!$E$92/12*G450","v":0},0,279,2205712.9981499887,33183.608714819398,11138.789088879643,22044.819625939755]
[280,2183557.9544259193,{"$f":"-'Residential Rental'!$E$88/12","v":33183.608714819398},{"$f":"'Residential Rental'!$E$86/12*B451","v":11028.564990749945},22155.043724069452,280,0,{"$f":"-'Residential Rental'!$E$94/12","v":0},{"$f":"'Residential Rental'!$E$92/12*G451","v":0},0,280,2183557.9544259193,33183.608714819398,11028.564990749945,22155.043724069452]
[281,2161292.1354832295,{"$f":"-'Residential Rental'!$E$88/12","v":33183.608714819398},{"$f":"'Residential Rental'!$E$86/12*B452","v":10917.789772129598},22265.818942689802,281,0,{"$f":"-'Residential Rental'!$E$94/12","v":0},{"$f":"'Residential Rental'!$E$92/12*G452","v":0},0,281,2161292.1354832295,33183.608714819398,10917.789772129598,22265.818942689802]
[282,2138914.9874458262,{"$f":"-'Residential Rental'!$E$88/12","v":33183.608714819398},{"$f":"'Residential Rental'!$E$86/12*B453","v":10806.460677416148},22377.148037403251,282,0,{"$f":"-'Residential Rental'!$E$94/12","v":0},{"$f":"'Residential Rental'!$E$92/12*G453","v":0},0,282,2138914.9874458262,33183.608714819398,10806.460677416148,22377.148037403251]
[283,2116425.9536682358,{"$f":"-'Residential Rental'!$E$88/12","v":33183.608714819398},{"$f":"'Residential Rental'!$E$86/12*B454","v":10694.57493722913},22489.033777590266,283,0,{"$f":"-'Residential Rental'!$E$94/12","v":0},{"$f":"'Residential Rental'!$E$92/12*G454","v":0},0,283,2116425.9536682358,33183.608714819398,10694.57493722913,22489.033777590266]
[284,2093824.4747217577,{"$f":"-'Residential Rental'!$E$88/12","v":33183.608714819398},{"$f":"'Residential Rental'!$E$86/12*B455","v":10582.129768341179},22601.478946478219,284,0,{"$f":"-'Residential Rental'!$E$94/12","v":0},{"$f":"'Residential Rental'!$E$92/12*G455","v":0},0,284,2093824.4747217577,33183.608714819398,10582.129768341179,22601.478946478219]
[285,2071109.9883805471,{"$f":"-'Residential Rental'!$E$88/12","v":33183.608714819398},{"$f":"'Residential Rental'!$E$86/12*B456","v":10469.122373608789},22714.48634121061,285,0,{"$f":"-'Residential Rental'!$E$94/12","v":0},{"$f":"'Residential Rental'!$E$92/12*G456","v":0},0,285,2071109.9883805471,33183.608714819398,10469.122373608789,22714.48634121061]
[286,2048281.9296076305,{"$f":"-'Residential Rental'!$E$88/12","v":33183.608714819398},{"$f":"'Residential Rental'!$E$86/12*B457","v":10355.549941902736},22828.058772916662,286,0,{"$f":"-'Residential Rental'!$E$94/12","v":0},{"$f":"'Residential Rental'!$E$92/12*G457","v":0},0,286,2048281.9296076305,33183.608714819398,10355.549941902736,22828.058772916662]
[287,2025339.7305408493,{"$f":"-'Residential Rental'!$E$88/12","v":33183.608714819398},{"$f":"'Residential Rental'!$E$86/12*B458","v":10241.409648038152},22942.199066781246,287,0,{"$f":"-'Residential Rental'!$E$94/12","v":0},{"$f":"'Residential Rental'!$E$92/12*G458","v":0},0,287,2025339.7305408493,33183.608714819398,10241.409648038152,22942.199066781246]
[288,2002282.8204787341,{"$f":"-'Residential Rental'!$E$88/12","v":33183.608714819398},{"$f":"'Residential Rental'!$E$86/12*B459","v":10126.698652704246},23056.910062115152,288,0,{"$f":"-'Residential Rental'!$E$94/12","v":0},{"$f":"'Residential Rental'!$E$92/12*G459","v":0},0,288,2002282.8204787341,33183.608714819398,10126.698652704246,23056.910062115152]
[289,1979110.6258663083,{"$f":"-'Residential Rental'!$E$88/12","v":33183.608714819398},{"$f":"'Residential Rental'!$E$86/12*B460","v":10011.41410239367},23172.19461242573,289,0,{"$f":"-'Residential Rental'!$E$94/12","v":0},{"$f":"'Residential Rental'!$E$92/12*G460","v":0},0,289,1979110.6258663083,33183.608714819398,10011.41410239367,23172.19461242573]
[290,1955822.5702808206,{"$f":"-'Residential Rental'!$E$88/12","v":33183.608714819398},{"$f":"'Residential Rental'!$E$86/12*B461","v":9895.5531293315416},23288.055585487855,290,0,{"$f":"-'Residential Rental'!$E$94/12","v":0},{"$f":"'Residential Rental'!$E$92/12*G461","v":0},0,290,1955822.5702808206,33183.608714819398,9895.5531293315416,23288.055585487855]
[291,1932418.0744174053,{"$f":"-'Residential Rental'!$E$88/12","v":33183.608714819398},{"$f":"'Residential Rental'!$E$86/12*B462","v":9779.1128514041029},23404.495863415294,291,0,{"$f":"-'Residential Rental'!$E$94/12","v":0},{"$f":"'Residential Rental'!$E$92/12*G462","v":0},0,291,1932418.0744174053,33183.608714819398,9779.1128514041029,23404.495863415294]
[292,1908896.5560746728,{"$f":"-'Residential Rental'!$E$88/12","v":33183.608714819398},{"$f":"'Residential Rental'!$E$86/12*B463","v":9662.0903720870265},23521.518342732372,292,0,{"$f":"-'Residential Rental'!$E$94/12","v":0},{"$f":"'Residential Rental'!$E$92/12*G463","v":0},0,292,1908896.5560746728,33183.608714819398,9662.0903720870265,23521.518342732372]
[293,1885257.4301402268,{"$f":"-'Residential Rental'!$E$88/12","v":33183.608714819398},{"$f":"'Residential Rental'!$E$86/12*B464","v":9544.4827803733642},23639.125934446034,293,0,{"$f":"-'Residential Rental'!$E$94/12","v":0},{"$f":"'Residential Rental'!$E$92/12*G464","v":0},0,293,1885257.4301402268,33183.608714819398,9544.4827803733642,23639.125934446034]
[294,1861500.1085761087,{"$f":"-'Residential Rental'!$E$88/12","v":33183.608714819398},{"$f":"'Residential Rental'!$E$86/12*B465","v":9426.287150701135},23757.321564118261,294,0,{"$f":"-'Residential Rental'!$E$94/12","v":0},{"$f":"'Residential Rental'!$E$92/12*G465","v":0},0,294,1861500.1085761087,33183.608714819398,9426.287150701135,23757.321564118261]
[295,1837624.0004041698,{"$f":"-'Residential Rental'!$E$88/12","v":33183.608714819398},{"$f":"'Residential Rental'!$E$86/12*B466","v":9307.5005428805434},23876.108171938853,295,0,{"$f":"-'Residential Rental'!$E$94/12","v":0},{"$f":"'Residential Rental'!$E$92/12*G466","v":0},0,295,1837624.0004041698,33183.608714819398,9307.5005428805434,23876.108171938853]
[296,1813628.5116913712,{"$f":"-'Residential Rental'!$E$88/12","v":33183.608714819398},{"$f":"'Residential Rental'!$E$86/12*B467","v":9188.1200020208489},23995.488712798549,296,0,{"$f":"-'Residential Rental'!$E$94/12","v":0},{"$f":"'Residential Rental'!$E$92/12*G467","v":0},0,296,1813628.5116913712,33183.608714819398,9188.1200020208489,23995.488712798549]
[297,1789513.0455350087,{"$f":"-'Residential Rental'!$E$88/12","v":33183.608714819398},{"$f":"'Residential Rental'!$E$86/12*B468","v":9068.1425584568569},24115.466156362541,297,0,{"$f":"-'Residential Rental'!$E$94/12","v":0},{"$f":"'Residential Rental'!$E$92/12*G468","v":0},0,297,1789513.0455350087,33183.608714819398,9068.1425584568569,24115.466156362541]
[298,1765277.0020478643,{"$f":"-'Residential Rental'!$E$88/12","v":33183.608714819398},{"$f":"'Residential Rental'!$E$86/12*B469","v":8947.5652276750443},24236.043487144354,298,0,{"$f":"-'Residential Rental'!$E$94/12","v":0},{"$f":"'Residential Rental'!$E$92/12*G469","v":0},0,298,1765277.0020478643,33183.608714819398,8947.5652276750443,24236.043487144354]
[299,1740919.7783432843,{"$f":"-'Residential Rental'!$E$88/12","v":33183.608714819398},{"$f":"'Residential Rental'!$E$86/12*B470","v":8826.3850102393208},24357.223704580079,299,0,{"$f":"-'Residential Rental'!$E$94/12","v":0},{"$f":"'Residential Rental'!$E$92/12*G470","v":0},0,299,1740919.7783432843,33183.608714819398,8826.3850102393208,24357.223704580079]
[300,1716440.7685201813,{"$f":"-'Residential Rental'!$E$88/12","v":33183.608714819398},{"$f":"'Residential Rental'!$E$86/12*B471","v":8704.5988917164213},24479.009823102977,300,0,{"$f":"-'Residential Rental'!$E$94/12","v":0},{"$f":"'Residential Rental'!$E$92/12*G471","v":0},0,300,1716440.7685201813,33183.608714819398,8704.5988917164213,24479.009823102977]
[301,1691839.3636479629,{"$f":"-'Residential Rental'!$E$88/12","v":33183.608714819398},{"$f":"'Residential Rental'!$E$86/12*B472","v":8582.2038426009058},24601.404872218493,301,0,{"$f":"-'Residential Rental'!$E$94/12","v":0},{"$f":"'Residential Rental'!$E$92/12*G472","v":0},0,301,1691839.3636479629,33183.608714819398,8582.2038426009058,24601.404872218493]
[302,1667114.9517513833,{"$f":"-'Residential Rental'!$E$88/12","v":33183.608714819398},{"$f":"'Residential Rental'!$E$86/12*B473","v":8459.1968182398141},24724.411896579586,302,0,{"$f":"-'Residential Rental'!$E$94/12","v":0},{"$f":"'Residential Rental'!$E$92/12*G473","v":0},0,302,1667114.9517513833,33183.608714819398,8459.1968182398141,24724.411896579586]
[303,1642266.9177953207,{"$f":"-'Residential Rental'!$E$88/12","v":33183.608714819398},{"$f":"'Residential Rental'!$E$86/12*B474","v":8335.5747587569167},24848.033956062482,303,0,{"$f":"-'Residential Rental'!$E$94/12","v":0},{"$f":"'Residential Rental'!$E$92/12*G474","v":0},0,303,1642266.9177953207,33183.608714819398,8335.5747587569167,24848.033956062482]
[304,1617294.6436694779,{"$f":"-'Residential Rental'!$E$88/12","v":33183.608714819398},{"$f":"'Residential Rental'!$E$86/12*B475","v":8211.3345889766042},24972.274125842792,304,0,{"$f":"-'Residential Rental'!$E$94/12","v":0},{"$f":"'Residential Rental'!$E$92/12*G475","v":0},0,304,1617294.6436694779,33183.608714819398,8211.3345889766042,24972.274125842792]
[305,1592197.5081730059,{"$f":"-'Residential Rental'!$E$88/12","v":33183.608714819398},{"$f":"'Residential Rental'!$E$86/12*B476","v":8086.4732183473898},25097.135496472009,305,0,{"$f":"-'Residential Rental'!$E$94/12","v":0},{"$f":"'Residential Rental'!$E$92/12*G476","v":0},0,305,1592197.5081730059,33183.608714819398,8086.4732183473898,25097.135496472009]
[306,1566974.8869990516,{"$f":"-'Residential Rental'!$E$88/12","v":33183.608714819398},{"$f":"'Residential Rental'!$E$86/12*B477","v":7960.9875408650296},25222.621173954369,306,0,{"$f":"-'Residential Rental'!$E$94/12","v":0},{"$f":"'Residential Rental'!$E$92/12*G477","v":0},0,306,1566974.8869990516,33183.608714819398,7960.9875408650296,25222.621173954369]
[307,1541626.1527192274,{"$f":"-'Residential Rental'!$E$88/12","v":33183.608714819398},{"$f":"'Residential Rental'!$E$86/12*B478","v":7834.8744349952576},25348.734279824141,307,0,{"$f":"-'Residential Rental'!$E$94/12","v":0},{"$f":"'Residential Rental'!$E$92/12*G478","v":0},0,307,1541626.1527192274,33183.608714819398,7834.8744349952576,25348.734279824141]
[308,1516150.6747680041,{"$f":"-'Residential Rental'!$E$88/12","v":33183.608714819398},{"$f":"'Residential Rental'!$E$86/12*B479","v":7708.1307635961366},25475.477951223264,308,0,{"$f":"-'Residential Rental'!$E$94/12","v":0},{"$f":"'Residential Rental'!$E$92/12*G479","v":0},0,308,1516150.6747680041,33183.608714819398,7708.1307635961366,25475.477951223264]
[309,1490547.8194270248,{"$f":"-'Residential Rental'!$E$88/12","v":33183.608714819398},{"$f":"'Residential Rental'!$E$86/12*B480","v":7580.7533738400207},25602.855340979379,309,0,{"$f":"-'Residential Rental'!$E$94/12","v":0},{"$f":"'Residential Rental'!$E$92/12*G480","v":0},0,309,1490547.8194270248,33183.608714819398,7580.7533738400207,25602.855340979379]
[310,1464816.9498093405,{"$f":"-'Residential Rental'!$E$88/12","v":33183.608714819398},{"$f":"'Residential Rental'!$E$86/12*B481","v":7452.7390971351242},25730.869617684275,310,0,{"$f":"-'Residential Rental'!$E$94/12","v":0},{"$f":"'Residential Rental'!$E$92/12*G481","v":0},0,310,1464816.9498093405,33183.608714819398,7452.7390971351242,25730.869617684275]
[311,1438957.4258435678,{"$f":"-'Residential Rental'!$E$88/12","v":33183.608714819398},{"$f":"'Residential Rental'!$E$86/12*B482","v":7324.0847490467031},25859.523965772696,311,0,{"$f":"-'Residential Rental'!$E$94/12","v":0},{"$f":"'Residential Rental'!$E$92/12*G482","v":0},0,311,1438957.4258435678,33183.608714819398,7324.0847490467031,25859.523965772696]
[312,1412968.6042579662,{"$f":"-'Residential Rental'!$E$88/12","v":33183.608714819398},{"$f":"'Residential Rental'!$E$86/12*B483","v":7194.7871292178388},25988.821585601559,312,0,{"$f":"-'Residential Rental'!$E$94/12","v":0},{"$f":"'Residential Rental'!$E$92/12*G483","v":0},0,312,1412968.6042579662,33183.608714819398,7194.7871292178388,25988.821585601559]
[313,1386849.8385644366,{"$f":"-'Residential Rental'!$E$88/12","v":33183.608714819398},{"$f":"'Residential Rental'!$E$86/12*B484","v":7064.8430212898311},26118.765693529567,313,0,{"$f":"-'Residential Rental'!$E$94/12","v":0},{"$f":"'Residential Rental'!$E$92/12*G484","v":0},0,313,1386849.8385644366,33183.608714819398,7064.8430212898311,26118.765693529567]
[314,1360600.4790424395,{"$f":"-'Residential Rental'!$E$88/12","v":33183.608714819398},{"$f":"'Residential Rental'!$E$86/12*B485","v":6934.2491928221834},26249.359521997216,314,0,{"$f":"-'Residential Rental'!$E$94/12","v":0},{"$f":"'Residential Rental'!$E$92/12*G485","v":0},0,314,1360600.4790424395,33183.608714819398,6934.2491928221834,26249.359521997216]
[315,1334219.8727228323,{"$f":"-'Residential Rental'!$E$88/12","v":33183.608714819398},{"$f":"'Residential Rental'!$E$86/12*B486","v":6803.0023952121974},26380.606319607199,315,0,{"$f":"-'Residential Rental'!$E$94/12","v":0},{"$f":"'Residential Rental'!$E$92/12*G486","v":0},0,315,1334219.8727228323,33183.608714819398,6803.0023952121974,26380.606319607199]
[316,1307707.3633716269,{"$f":"-'Residential Rental'!$E$88/12","v":33183.608714819398},{"$f":"'Residential Rental'!$E$86/12*B487","v":6671.0993636141611},26512.509351205237,316,0,{"$f":"-'Residential Rental'!$E$94/12","v":0},{"$f":"'Residential Rental'!$E$92/12*G487","v":0},0,316,1307707.3633716269,33183.608714819398,6671.0993636141611,26512.509351205237]
[317,1281062.2914736657,{"$f":"-'Residential Rental'!$E$88/12","v":33183.608714819398},{"$f":"'Residential Rental'!$E$86/12*B488","v":6538.5368168581344},26645.071897961265,317,0,{"$f":"-'Residential Rental'!$E$94/12","v":0},{"$f":"'Residential Rental'!$E$92/12*G488","v":0},0,317,1281062.2914736657,33183.608714819398,6538.5368168581344,26645.071897961265]
[318,1254283.9942162146,{"$f":"-'Residential Rental'!$E$88/12","v":33183.608714819398},{"$f":"'Residential Rental'!$E$86/12*B489","v":6405.3114573683288},26778.297257451071,318,0,{"$f":"-'Residential Rental'!$E$94/12","v":0},{"$f":"'Residential Rental'!$E$92/12*G489","v":0},0,318,1254283.9942162146,33183.608714819398,6405.3114573683288,26778.297257451071]
[319,1227371.8054724764,{"$f":"-'Residential Rental'!$E$88/12","v":33183.608714819398},{"$f":"'Residential Rental'!$E$86/12*B490","v":6271.4199710810735},26912.188743738327,319,0,{"$f":"-'Residential Rental'!$E$94/12","v":0},{"$f":"'Residential Rental'!$E$92/12*G490","v":0},0,319,1227371.8054724764,33183.608714819398,6271.4199710810735,26912.188743738327]
[320,1200325.0557850194,{"$f":"-'Residential Rental'!$E$88/12","v":33183.608714819398},{"$f":"'Residential Rental'!$E$86/12*B491","v":6136.8590273623822},27046.749687457017,320,0,{"$f":"-'Residential Rental'!$E$94/12","v":0},{"$f":"'Residential Rental'!$E$92/12*G491","v":0},0,320,1200325.0557850194,33183.608714819398,6136.8590273623822,{"$f":"J492+E492","v":27046.749687457017}]
[321,{"$f":"B492-E493","v":1173143.0723491251},{"$f":"-'Residential Rental'!$E$88/12","v":33183.608714819398},{"$f":"'Residential Rental'!$E$86/12*B492","v":6001.6252789250975},{"$f":"C493-D493","v":27181.983435894301},321,{"$f":"G492-J493","v":0},{"$f":"-'Residential Rental'!$E$94/12","v":0},{"$f":"'Residential Rental'!$E$92/12*G492","v":0},{"$f":"H493-I493","v":0},321,{"$f":"G493+B493","v":1173143.0723491251},33183.608714819398,6001.6252789250975,27181.983435894301]
[{"$f":"A493+1","v":322},1145825.1789960512,{"$f":"-'Residential Rental'!$E$88/12","v":33183.608714819398},{"$f":"'Residential Rental'!$E$86/12*B493","v":5865.7153617456252},27317.893353073774,{"$f":"F493+1","v":322},0,{"$f":"-'Residential Rental'!$E$94/12","v":0},{"$f":"'Residential Rental'!$E$92/12*G493","v":0},0,{"$f":"K493+1","v":322},1145825.1789960512,33183.608714819398,5865.7153617456252,27317.893353073774]
[323,1118370.696176212,{"$f":"-'Residential Rental'!$E$88/12","v":33183.608714819398},{"$f":"'Residential Rental'!$E$86/12*B494","v":5729.1258949802559},27454.482819839141,323,0,{"$f":"-'Residential Rental'!$E$94/12","v":0},{"$f":"'Residential Rental'!$E$92/12*G494","v":0},0,323,1118370.696176212,33183.608714819398,5729.1258949802559,27454.482819839141]
[324,1090778.9409422737,{"$f":"-'Residential Rental'!$E$88/12","v":33183.608714819398},{"$f":"'Residential Rental'!$E$86/12*B495","v":5591.85348088106},27591.75523393834,324,0,{"$f":"-'Residential Rental'!$E$94/12","v":0},{"$f":"'Residential Rental'!$E$92/12*G495","v":0},0,324,1090778.9409422737,33183.608714819398,5591.85348088106,27591.75523393834]
[325,1063049.2269321657,{"$f":"-'Residential Rental'!$E$88/12","v":33183.608714819398},{"$f":"'Residential Rental'!$E$86/12*B496","v":5453.8947047113688},27729.714010108029,325,0,{"$f":"-'Residential Rental'!$E$94/12","v":0},{"$f":"'Residential Rental'!$E$92/12*G496","v":0},0,325,1063049.2269321657,33183.608714819398,5453.8947047113688,27729.714010108029]
[326,1035180.8643520072,{"$f":"-'Residential Rental'!$E$88/12","v":33183.608714819398},{"$f":"'Residential Rental'!$E$86/12*B497","v":5315.2461346608288},27868.362580158569,326,0,{"$f":"-'Residential Rental'!$E$94/12","v":0},{"$f":"'Residential Rental'!$E$92/12*G497","v":0},0,326,1035180.8643520072,33183.608714819398,5315.2461346608288,27868.362580158569]
[327,1007173.1599589478,{"$f":"-'Residential Rental'!$E$88/12","v":33183.608714819398},{"$f":"'Residential Rental'!$E$86/12*B498","v":5175.9043217600356},28007.704393059365,327,0,{"$f":"-'Residential Rental'!$E$94/12","v":0},{"$f":"'Residential Rental'!$E$92/12*G498","v":0},0,327,1007173.1599589478,33183.608714819398,5175.9043217600356,28007.704393059365]
[328,979025.41704392317,{"$f":"-'Residential Rental'!$E$88/12","v":33183.608714819398},{"$f":"'Residential Rental'!$E$86/12*B499","v":5035.8657997947394},28147.742915024661,328,0,{"$f":"-'Residential Rental'!$E$94/12","v":0},{"$f":"'Residential Rental'!$E$92/12*G499","v":0},0,328,979025.41704392317,33183.608714819398,5035.8657997947394,28147.742915024661]
[329,950736.93541432335,{"$f":"-'Residential Rental'!$E$88/12","v":33183.608714819398},{"$f":"'Residential Rental'!$E$86/12*B500","v":4895.1270852196158},28288.481629599781,329,0,{"$f":"-'Residential Rental'!$E$94/12","v":0},{"$f":"'Residential Rental'!$E$92/12*G500","v":0},0,329,950736.93541432335,33183.608714819398,4895.1270852196158,28288.481629599781]
[330,922307.01137657557,{"$f":"-'Residential Rental'!$E$88/12","v":33183.608714819398},{"$f":"'Residential Rental'!$E$86/12*B501","v":4753.6846770716165},28429.924037747784,330,0,{"$f":"-'Residential Rental'!$E$94/12","v":0},{"$f":"'Residential Rental'!$E$92/12*G501","v":0},0,330,922307.01137657557,33183.608714819398,4753.6846770716165,28429.924037747784]
[331,893734.93771863903,{"$f":"-'Residential Rental'!$E$88/12","v":33183.608714819398},{"$f":"'Residential Rental'!$E$86/12*B502","v":4611.5350568828781},28572.073657936518,331,0,{"$f":"-'Residential Rental'!$E$94/12","v":0},{"$f":"'Residential Rental'!$E$92/12*G502","v":0},0,331,893734.93771863903,33183.608714819398,4611.5350568828781,28572.073657936518]
[332,865020.00369241287,{"$f":"-'Residential Rental'!$E$88/12","v":33183.608714819398},{"$f":"'Residential Rental'!$E$86/12*B503","v":4468.6746885931952},28714.934026226205,332,0,{"$f":"-'Residential Rental'!$E$94/12","v":0},{"$f":"'Residential Rental'!$E$92/12*G503","v":0},0,332,865020.00369241287,33183.608714819398,4468.6746885931952,28714.934026226205]
[333,836161.49499605549,{"$f":"-'Residential Rental'!$E$88/12","v":33183.608714819398},{"$f":"'Residential Rental'!$E$86/12*B504","v":4325.1000184620643},28858.508696357334,333,0,{"$f":"-'Residential Rental'!$E$94/12","v":0},{"$f":"'Residential Rental'!$E$92/12*G504","v":0},0,333,836161.49499605549,33183.608714819398,4325.1000184620643,28858.508696357334]
[334,807158.69375621632,{"$f":"-'Residential Rental'!$E$88/12","v":33183.608714819398},{"$f":"'Residential Rental'!$E$86/12*B505","v":4180.8074749802772},29002.801239839122,334,0,{"$f":"-'Residential Rental'!$E$94/12","v":0},{"$f":"'Residential Rental'!$E$92/12*G505","v":0},0,334,807158.69375621632,33183.608714819398,4180.8074749802772,29002.801239839122]
[335,778010.87851017795,{"$f":"-'Residential Rental'!$E$88/12","v":33183.608714819398},{"$f":"'Residential Rental'!$E$86/12*B506","v":4035.7934687810816},29147.815246038317,335,0,{"$f":"-'Residential Rental'!$E$94/12","v":0},{"$f":"'Residential Rental'!$E$92/12*G506","v":0},0,335,778010.87851017795,33183.608714819398,4035.7934687810816,29147.815246038317]
[336,748717.32418790949,{"$f":"-'Residential Rental'!$E$88/12","v":33183.608714819398},{"$f":"'Residential Rental'!$E$86/12*B507","v":3890.05439255089},29293.554322268508,336,0,{"$f":"-'Residential Rental'!$E$94/12","v":0},{"$f":"'Residential Rental'!$E$92/12*G507","v":0},0,336,748717.32418790949,33183.608714819398,3890.05439255089,29293.554322268508]
[337,719277.30209402961,{"$f":"-'Residential Rental'!$E$88/12","v":33183.608714819398},{"$f":"'Residential Rental'!$E$86/12*B508","v":3743.5866209395476},29440.022093879852,337,0,{"$f":"-'Residential Rental'!$E$94/12","v":0},{"$f":"'Residential Rental'!$E$92/12*G508","v":0},0,337,719277.30209402961,33183.608714819398,3743.5866209395476,29440.022093879852]
[338,689690.07988968038,{"$f":"-'Residential Rental'!$E$88/12","v":33183.608714819398},{"$f":"'Residential Rental'!$E$86/12*B509","v":3596.3865104701481},29587.222204349251,338,0,{"$f":"-'Residential Rental'!$E$94/12","v":0},{"$f":"'Residential Rental'!$E$92/12*G509","v":0},0,338,689690.07988968038,33183.608714819398,3596.3865104701481,29587.222204349251]
[339,659954.92157430935,{"$f":"-'Residential Rental'!$E$88/12","v":33183.608714819398},{"$f":"'Residential Rental'!$E$86/12*B510","v":3448.4503994484021},29735.158315370994,339,0,{"$f":"-'Residential Rental'!$E$94/12","v":0},{"$f":"'Residential Rental'!$E$92/12*G510","v":0},0,339,659954.92157430935,33183.608714819398,3448.4503994484021,29735.158315370994]
[340,630071.08746736147,{"$f":"-'Residential Rental'!$E$88/12","v":33183.608714819398},{"$f":"'Residential Rental'!$E$86/12*B511","v":3299.7746078715468},29883.834106947852,340,0,{"$f":"-'Residential Rental'!$E$94/12","v":0},{"$f":"'Residential Rental'!$E$92/12*G511","v":0},0,340,630071.08746736147,33183.608714819398,3299.7746078715468,29883.834106947852]
[341,600037.83418987889,{"$f":"-'Residential Rental'!$E$88/12","v":33183.608714819398},{"$f":"'Residential Rental'!$E$86/12*B512","v":3150.3554373368074},30033.253277482592,341,0,{"$f":"-'Residential Rental'!$E$94/12","v":0},{"$f":"'Residential Rental'!$E$92/12*G512","v":0},0,341,600037.83418987889,33183.608714819398,3150.3554373368074,30033.253277482592]
[342,569854.41464600887,{"$f":"-'Residential Rental'!$E$88/12","v":33183.608714819398},{"$f":"'Residential Rental'!$E$86/12*B513","v":3000.1891709493943},30183.419543870004,342,0,{"$f":"-'Residential Rental'!$E$94/12","v":0},{"$f":"'Residential Rental'!$E$92/12*G513","v":0},0,342,569854.41464600887,33183.608714819398,3000.1891709493943,30183.419543870004]
[343,539520.07800441957,{"$f":"-'Residential Rental'!$E$88/12","v":33183.608714819398},{"$f":"'Residential Rental'!$E$86/12*B514","v":2849.2720732300445},30334.336641589354,343,0,{"$f":"-'Residential Rental'!$E$94/12","v":0},{"$f":"'Residential Rental'!$E$92/12*G514","v":0},0,343,539520.07800441957,33183.608714819398,2849.2720732300445,30334.336641589354]
[344,509034.06967962225,{"$f":"-'Residential Rental'!$E$88/12","v":33183.608714819398},{"$f":"'Residential Rental'!$E$86/12*B515","v":2697.6003900220981},30486.008324797302,344,0,{"$f":"-'Residential Rental'!$E$94/12","v":0},{"$f":"'Residential Rental'!$E$92/12*G515","v":0},0,344,509034.06967962225,33183.608714819398,2697.6003900220981,30486.008324797302]
[345,478395.63131320098,{"$f":"-'Residential Rental'!$E$88/12","v":33183.608714819398},{"$f":"'Residential Rental'!$E$86/12*B516","v":2545.1703483981114},30638.438366421287,345,0,{"$f":"-'Residential Rental'!$E$94/12","v":0},{"$f":"'Residential Rental'!$E$92/12*G516","v":0},0,345,478395.63131320098,33183.608714819398,2545.1703483981114,30638.438366421287]
[346,447604.0007549476,{"$f":"-'Residential Rental'!$E$88/12","v":33183.608714819398},{"$f":"'Residential Rental'!$E$86/12*B517","v":2391.9781565660051},30791.630558253393,346,0,{"$f":"-'Residential Rental'!$E$94/12","v":0},{"$f":"'Residential Rental'!$E$92/12*G517","v":0},0,346,447604.0007549476,33183.608714819398,2391.9781565660051,30791.630558253393]
[347,416658.41204390296,{"$f":"-'Residential Rental'!$E$88/12","v":33183.608714819398},{"$f":"'Residential Rental'!$E$86/12*B518","v":2238.0200037747381},30945.58871104466,347,0,{"$f":"-'Residential Rental'!$E$94/12","v":0},{"$f":"'Residential Rental'!$E$92/12*G518","v":0},0,347,416658.41204390296,33183.608714819398,2238.0200037747381,30945.58871104466]
[348,385558.09538930305,{"$f":"-'Residential Rental'!$E$88/12","v":33183.608714819398},{"$f":"'Residential Rental'!$E$86/12*B519","v":2083.292060219515},31100.316654599883,348,0,{"$f":"-'Residential Rental'!$E$94/12","v":0},{"$f":"'Residential Rental'!$E$92/12*G519","v":0},0,348,385558.09538930305,33183.608714819398,2083.292060219515,31100.316654599883]
[349,354302.27715143014,{"$f":"-'Residential Rental'!$E$88/12","v":33183.608714819398},{"$f":"'Residential Rental'!$E$86/12*B520","v":1927.7904769465154},31255.818237872882,349,0,{"$f":"-'Residential Rental'!$E$94/12","v":0},{"$f":"'Residential Rental'!$E$92/12*G520","v":0},0,349,354302.27715143014,33183.608714819398,1927.7904769465154,31255.818237872882]
[350,322890.17982236791,{"$f":"-'Residential Rental'!$E$88/12","v":33183.608714819398},{"$f":"'Residential Rental'!$E$86/12*B521","v":1771.5113857571507},31412.097329062246,350,0,{"$f":"-'Residential Rental'!$E$94/12","v":0},{"$f":"'Residential Rental'!$E$92/12*G521","v":0},0,350,322890.17982236791,33183.608714819398,1771.5113857571507,31412.097329062246]
[351,291321.02200666035,{"$f":"-'Residential Rental'!$E$88/12","v":33183.608714819398},{"$f":"'Residential Rental'!$E$86/12*B522","v":1614.4508991118396},31569.15781570756,351,0,{"$f":"-'Residential Rental'!$E$94/12","v":0},{"$f":"'Residential Rental'!$E$92/12*G522","v":0},0,351,291321.02200666035,33183.608714819398,1614.4508991118396,31569.15781570756]
[352,259594.01840187426,{"$f":"-'Residential Rental'!$E$88/12","v":33183.608714819398},{"$f":"'Residential Rental'!$E$86/12*B523","v":1456.6051100333018},31727.003604786096,352,0,{"$f":"-'Residential Rental'!$E$94/12","v":0},{"$f":"'Residential Rental'!$E$92/12*G523","v":0},0,352,259594.01840187426,33183.608714819398,1456.6051100333018,31727.003604786096]
[353,227708.37977906424,{"$f":"-'Residential Rental'!$E$88/12","v":33183.608714819398},{"$f":"'Residential Rental'!$E$86/12*B524","v":1297.9700920093712},31885.638622810027,353,0,{"$f":"-'Residential Rental'!$E$94/12","v":0},{"$f":"'Residential Rental'!$E$92/12*G524","v":0},0,353,227708.37977906424,33183.608714819398,1297.9700920093712,31885.638622810027]
[354,195663.31296314017,{"$f":"-'Residential Rental'!$E$88/12","v":33183.608714819398},{"$f":"'Residential Rental'!$E$86/12*B525","v":1138.5418988953213},32045.066815924078,354,0,{"$f":"-'Residential Rental'!$E$94/12","v":0},{"$f":"'Residential Rental'!$E$92/12*G525","v":0},0,354,195663.31296314017,33183.608714819398,1138.5418988953213,32045.066815924078]
[355,163458.02081313648,{"$f":"-'Residential Rental'!$E$88/12","v":33183.608714819398},{"$f":"'Residential Rental'!$E$86/12*B526","v":978.31656481570087},32205.292150003697,355,0,{"$f":"-'Residential Rental'!$E$94/12","v":0},{"$f":"'Residential Rental'!$E$92/12*G526","v":0},0,355,163458.02081313648,33183.608714819398,978.31656481570087,32205.292150003697]
[356,131091.70220238276,{"$f":"-'Residential Rental'!$E$88/12","v":33183.608714819398},{"$f":"'Residential Rental'!$E$86/12*B527","v":817.29010406568239},32366.318610753715,356,0,{"$f":"-'Residential Rental'!$E$94/12","v":0},{"$f":"'Residential Rental'!$E$92/12*G527","v":0},0,356,131091.70220238276,33183.608714819398,817.29010406568239,32366.318610753715]
[357,98563.551998575276,{"$f":"-'Residential Rental'!$E$88/12","v":33183.608714819398},{"$f":"'Residential Rental'!$E$86/12*B528","v":655.45851101191386},32528.150203807483,357,0,{"$f":"-'Residential Rental'!$E$94/12","v":0},{"$f":"'Residential Rental'!$E$92/12*G528","v":0},0,357,98563.551998575276,33183.608714819398,655.45851101191386,32528.150203807483]
[358,65872.76104374876,{"$f":"-'Residential Rental'!$E$88/12","v":33183.608714819398},{"$f":"'Residential Rental'!$E$86/12*B529","v":492.8177599928764},32690.790954826523,358,0,{"$f":"-'Residential Rental'!$E$94/12","v":0},{"$f":"'Residential Rental'!$E$92/12*G529","v":0},0,358,65872.76104374876,33183.608714819398,492.8177599928764,32690.790954826523]
[359,33018.516134148107,{"$f":"-'Residential Rental'!$E$88/12","v":33183.608714819398},{"$f":"'Residential Rental'!$E$86/12*B530","v":329.36380521874383},32854.244909600653,359,0,{"$f":"-'Residential Rental'!$E$94/12","v":0},{"$f":"'Residential Rental'!$E$92/12*G530","v":0},0,359,33018.516134148107,33183.608714819398,329.36380521874383,32854.244909600653]
[360,-5.5297277867794037E-10,{"$f":"-'Residential Rental'!$E$88/12","v":33183.608714819398},{"$f":"'Residential Rental'!$E$86/12*B531","v":165.09258067074055},33018.51613414866,360,0,{"$f":"-'Residential Rental'!$E$94/12","v":0},{"$f":"'Residential Rental'!$E$92/12*G531","v":0},0,360,-5.5297277867794037E-10,33183.608714819398,165.09258067074055,33018.51613414866]

{"sheet":"Retail","index":9,"n_rows":536,"n_cols":30,"rows_kept":536,"cut":false,"hidden":false,"merged":[]}
["ROI Template - Retail"]
[]
["Leveraging Tools",null,null,"Summary","User override ","TOTAL",null,"Investment Targets and Performance"]
["Tax Credits net to project",null,null,{"$f":"'Gap Financing Options'!E116","v":0},0,{"$f":"IF('Basic Financial'!$B$33=0,D4,0)","v":0},null,"Performance Indicator",null,null,null,"Target","Actual","NPV"]
["Fee Reductions",null,null,{"$f":"'Gap Financing Options'!E82","v":0},0,{"$f":"IF('Basic Financial'!$B$33=0,D5,0)","v":0},null,"Cash-on-Cash After Year 3",null,null,null,{"$f":"'Advanced Financial'!E64","v":0.1},{"$f":"G135","v":0.17048161991371172}]
["Grants",null,null,{"$f":"'Gap Financing Options'!E92","v":0},0,{"$f":"IF('Basic Financial'!$B$33=0,D6,('Basic Financial'!$B$33*'Development Costs'!E40))","v":0},null,"IRR on Project Cost (Unleveraged Return)",null,null,null,{"$f":"'Advanced Financial'!E65","v":0.12},{"$f":"N149","v":0.15407301844517329},{"$f":"N150","v":505699.20730262535}]
["Total Development Offsets (Contributions to Equity)",null,null,null,null,{"$f":"SUM(F4:F6)","v":0},null,"IRR on Investor Equity (Leveraged Return Before Tax)",null,null,null,{"$f":"'Advanced Financial'!E66","v":0.25},{"$f":"N157","v":0.24573494039427457},{"$f":"N158","v":-16143.140610957751}]
["Net Development Costs",null,null,null,null,{"$f":"(D57-F7)","v":2404942.1942316336},null,"Debt Service Coverage Ratio (Year 3)",null,null,null,{"$f":"'Advanced Financial'!E67","v":1.25},{"$f":"IFERROR(G129/G131,0)","v":2.5797169227571382}]
[null,null,null,null,null,null,null,"IRR on Public Participation",null,null,null,{"$f":"E112","v":0.05},{"$f":"N167","v":0},{"$f":"N168","v":0}]
[]
[]
[]
["Local Property Tax Rate Available for abatement",null,null,{"$f":"'Gap Financing Options'!E15","v":0}]
["Local Sales Tax Rate Available for abatement",null,null,{"$f":"'Gap Financing Options'!E31","v":0}]
[]
["Net Operating Income Analysis"]
["Total Development Costs",null,null,{"$f":"-'Development Costs'!D40","v":2404942.1942316336}]
["Project Feature",null,null,"Project","Rent"]
["Total project size, square feet",null,null,{"$f":"'Physical Outputs'!C29","v":9882.2247159489434},{"$f":"'Basic Financial'!B55","v":25},"per square foot/year"]
["Projected Sales per Square Foot",null,null,null,{"$f":"'Advanced Financial'!E75","v":350}]
["Other Income",null,null,{"$f":"'Advanced Financial'!E77","v":0.02}]
["Less: Vacancy",null,null,{"$f":"1-'Advanced Financial'!C32","v":5.0000000000000044E-2}]
["Less: Concessions, Bad Debt",null,null,{"$f":"'Advanced Financial'!E78","v":0.02}]
["Less: Operating Costs/sq.ft.",null,null,{"$f":"IFERROR((('Advanced Financial'!E79*E63)/'Physical Outputs'!C29),0)","v":7.8000000000000007}]
[]
["Initial Project Value Analysis"]
["Property Value (Year 1)"]
["Going in Cap Rate",null,null,{"$f":"'Advanced Financial'!E80","v":0.06}]
[]
["Debt Financing"]
["Primary Debt"]
["Maximum LTV",null,null,{"$f":"'Advanced Financial'!E87","v":0.6}]
["Rate",null,null,{"$f":"'Advanced Financial'!E88","v":0.06}]
["Amortization Period, Years",null,null,{"$f":"'Advanced Financial'!E89","v":30}]
["Public Leveraging Loan"]
["Maximum LTV",null,null,{"$f":"IF(D43=1,'Gap Financing Options'!E63,0)","v":0}]
["Rate",null,null,{"$f":"IF(D43=1,'Gap Financing Options'!E64,0)","v":0}]
["Amortization Period, Years",null,null,{"$f":"IF(D43=1,'Gap Financing Options'!E65,0)","v":0}]
["Public Participation"]
["Capital Investment",null,null,{"$f":"IF(D43=1,'Gap Financing Options'!E69,0)","v":0}]
["Annual Cash Throw Off",null,null,{"$f":"IF(D43=1,'Gap Financing Options'!E70,0)","v":0}]
["Share of Net Sales Price",null,null,{"$f":"IF(D43=1,'Gap Financing Options'!E71,0)","v":0}]
["Public Leveraging Loan Included in Analysis?(1=Yes; 0=No) ",null,null,{"$f":"'Gap Financing Options'!E62","v":0}]
["Target IRR",null,null,{"$f":"'Advanced Financial'!E68","v":0.05}]
[]
["Operating Statement"]
["GPI",null,"Escalation",{"$f":"'Advanced Financial'!E81","v":0.03}]
["EGI"]
["Less: Operating Costs",null,"Escalation",{"$f":"'Advanced Financial'!E82","v":0.03}]
[]
["Project Value",null,null,"Year 1"]
["Terminal Cap Rate, Gross Sales Price",null,null,{"$f":"'Advanced Financial'!E83","v":7.2999999999999995E-2}]
["Net Sales = Price Less Sales Cost",null,null,{"$f":"'Advanced Financial'!E84","v":0.05}]
[]
[]
["Net Operating Income Analysis"]
["Total Development Costs",null,null,{"$f":"D17","v":2404942.1942316336}]
["Development Costs Per Sq Ft",null,null,{"$f":"IFERROR(D57/D60,0)","v":243.36040348792031}]
["Project Feature",null,null,"Project","Rent"]
["Total project size, square feet",null,null,{"$f":"D19","v":9882.2247159489434},{"$f":"E19","v":25},"per square foot/year"]
["Projected Sales per Square Foot",null,null,null,{"$f":"E20","v":350}]
["Rental Income from Sales Assessment",null,null,null,{"$f":"(D60*E61)*'Advanced Financial'!E76","v":138351.1460232852}]
["Gross Potential Rent  (GPI)",null,null,null,{"$f":"(D60*E60)+E62","v":385406.7639220088}]
["Other Income",null,null,{"$f":"D21","v":0.02},{"$f":"D64*E63","v":7708.1352784401761}]
["Total Income",null,null,null,{"$f":"E63+E64","v":393114.899200449}]
["Less: Vacancy",null,null,{"$f":"D22","v":5.0000000000000044E-2},{"$f":"E65*D66","v":19655.744960022468}]
["Less: Concessions, Bad Debt",null,null,{"$f":"D23","v":0.02},{"$f":"E65*D67","v":7862.2979840089802}]
["Effective Gross Income  (EGI)",null,null,null,{"$f":"E65-E66-E67","v":365596.85625641758}]
["Less: Operating Costs/sq.ft.",null,null,{"$f":"D24","v":7.8000000000000007},{"$f":"D69*D60","v":77081.352784401766}]
["Net Operating Income",null,null,null,{"$f":"E68-E69","v":288515.50347201584}]
[]
["Initial Project Value Analysis"]
["CAP RATE (Yield to Costs)",null,null,{"$f":"IFERROR(E70/F8,0)","v":0.11996774981287857}]
["Debt Service",null,null,{"$f":"IFERROR(-E99,0)","v":103815.67359697835}]
["Cash Flow",null,null,{"$f":"E70-D74","v":184699.82987503748}]
["Return on Equity (Year 1)",null,null,{"$f":"IFERROR(D75/E104,0)","v":0.19200028000470098}]
["Property Value (Year 1)"]
["NOI",null,null,{"$f":"E70","v":288515.50347201584}]
["Going in Cap Rate",null,null,{"$f":"D28","v":0.06}]
["Project Market Value",null,null,{"$f":"IFERROR(D78/D79,0)","v":4808591.7245335979}]
["Net Project Value",null,null,{"$f":"D80-D57","v":2403649.5303019644}]
[]
["Debt Financing"]
["Primary Debt"]
["Total Value",null,null,null,{"$f":"IF(D80>D57,D57,D80)","v":2404942.1942316336}]
["Maximum LTV",null,null,{"$f":"D32","v":0.6},{"$f":"E85*D86","v":1442965.31653898}]
["Imputed Loan Amount",null,null,null,{"$f":"E86","v":1442965.31653898}]
["Rate",null,null,null,{"$f":"D33","v":0.06}]
["Amortization Period, Years",null,null,null,{"$f":"D34","v":30}]
["Annual Debt Service (Amortized)",null,null,null,{"$f":"IFERROR(PMT(E88/12,E89*12,E87)*12,0)","v":-103815.67359697835}]
["Public Leveraging Loan"]
["Maximum LTV",null,null,{"$f":"IF(D43=1,D36,0)","v":0},{"$f":"IF(E85*D92>'Gap Financing Options'!B73*'Development Costs'!E40,'Gap Financing Options'!B73*'Development Costs'!E40,E85*D92)","v":0}]
["Imputed Loan Amount",null,null,null,{"$f":"IF(AND(D43=1,'Basic Financial'!B33=0),E92+'Gap Financing Options'!E68,0)","v":0}]
["Rate",null,null,null,{"$f":"IF(D43=1,D37,0)","v":0}]
["Amortization Period, Years",null,null,null,{"$f":"IF(D43=1,D38,0)","v":0}]
["Annual Debt Service (Amortized)",null,null,null,{"$f":"IFERROR(PMT(E94/12,E95*12,E93)*12,0)","v":0}]
[]
["Total Debt",null,null,null,{"$f":"E87+E93","v":1442965.31653898}]
["Total Debt Service",null,null,null,{"$f":"E90+E96","v":-103815.67359697835}]
["Summary"]
["Total Development Costs",null,null,null,{"$f":"D57","v":2404942.1942316336}]
["Equity Required",null,null,null,{"$f":"IF(E101-E98<0,1,E101-E98)","v":961976.87769265356}]
["Total Development Offsets (Contributions to Equity)",null,null,null,{"$f":"F7","v":0}]
["Net Equity Required",null,null,null,{"$f":"E102-E103","v":961976.87769265356}]
["Total Project Cost",null,null,null,{"$f":"E101","v":2404942.1942316336}]
["Total Project Cost After Development Offsets",null,null,null,{"$f":"E105-E103","v":2404942.1942316336}]
["Public Participation"]
["Capital Investment",null,null,null,{"$f":"D40","v":0}]
["Annual Cash Throw Off",null,null,null,{"$f":"D41","v":0}]
["Share of Net Sales Price",null,null,null,{"$f":"D42","v":0}]
["Public Leveraging Loan Included in Analysis? ",null,null,"(1=Yes; 0=No)",{"$f":"D43","v":0}]
["Target IRR",null,null,null,{"$f":"D44","v":0.05}]
[]
[]
[]
["Operating Statement",null,null,null,"Year 1","Year 2","Year 3","Year 4","Year 5","Year 6","Year 7","Year 8","Year 9","Year 10"]
["GPI",null,"Escalation",{"$f":"D47","v":0.03},{"$f":"E63","v":385406.7639220088},{"$f":"E117*(1+$D$117)","v":396968.9668396691},408878.0358448592,421144.37692020502,433778.70822781121,446792.06947464554,460195.83155888494,474001.70650565147,488221.75770082104,502868.4104318457]
["Other Income",null,null,null,{"$f":"E64","v":7708.1352784401761},7939.3793367933813,8177.5607168971828,8422.8875384040984,8675.5741645562211,8935.8413894929072,9203.9166311776953,9480.0341301130265,9764.4351540164171,10057.36820863691]
["Total Income",null,null,null,{"$f":"E117+E118","v":393114.899200449},404908.34617646248,417055.59656175639,429567.2644586091,442454.28239236743,455727.91086413845,469399.74819006264,483481.74063576449,497986.19285483746,512925.77864048263]
["Less: Vacancy",null,null,{"$f":"D66","v":5.0000000000000044E-2},{"$f":"IF('Advanced Financial'!B32>0,(1-'Advanced Financial'!B32)*E119,$D$120*E119)","v":19655.744960022468},{"$f":"$D$120*F119","v":20245.417308823144},20852.779828087838,21478.363222930475,22122.714119618391,22786.395543206942,23469.987409503152,24174.087031788247,24899.309642741893,25646.288932024156]
["Less: Concessions, Market Loss",null,null,{"$f":"D67","v":0.02},{"$f":"$D$121*E119","v":7862.2979840089802},8098.1669235292502,8341.1119312351275,8591.3452891721827,8849.0856478473488,9114.558217282769,9387.9949638012531,9669.6348127152905,9959.7238570967493,10258.515572809652]
["EGI",null,null,null,{"$f":"E119-E120-E121","v":365596.85625641758},376564.7619441101,387861.70480243344,399497.55594650644,411482.48262490169,423826.95710364875,436541.76581675827,449638.01879126095,463127.15935499885,477020.97413564881]
["Less: Operating Costs",null,"Escalation",{"$f":"D49","v":0.03},{"$f":"E69","v":77081.352784401766},{"$f":"E123*(1+$D$123)","v":79393.793367933817},81775.607168971837,84228.875384040992,86755.74164556223,89358.413894929094,92039.166311776964,94800.341301130276,97644.351540164193,100573.68208636912]
["Less: Property Taxes",null,"Millage Rate",{"$f":"'Advanced Financial'!E60","v":0.02},{"$f":"$F8*$D124*'Advanced Financial'!$E61","v":36074.132913474503},{"$f":"$F8*$D124*'Advanced Financial'!$E61*(1+$D117)","v":37156.356900878738},{"$f":"$F8*$D124*'Advanced Financial'!$E61*(1+$D117)^2","v":38271.0476079051},{"$f":"$F8*$D124*'Advanced Financial'!$E61*(1+$D117)^3","v":39419.179036142254},{"$f":"$F8*$D124*'Advanced Financial'!$E61*(1+$D117)^4","v":40601.754407226515},{"$f":"$F8*$D124*'Advanced Financial'!$E61*(1+$D117)^5","v":41819.807039443309},{"$f":"$F8*$D124*'Advanced Financial'!$E61*(1+$D117)^6","v":43074.401250626615},{"$f":"$F8*$D124*'Advanced Financial'!$E61*(1+$D117)^7","v":44366.633288145415},{"$f":"$F8*$D124*'Advanced Financial'!$E61*(1+$D117)^8","v":45697.632286789769},{"$f":"$F8*$D124*'Advanced Financial'!$E61*(1+$D117)^9","v":47068.561255393462}]
["Plus: Property Tax Abatement",null,null,null,{"$f":"$D$13*'Advanced Financial'!$E61*$F8*'Gap Financing Options'!E17","v":0},{"$f":"$D$13*'Advanced Financial'!$E61*$F8*(1+$D$117)*'Gap Financing Options'!E18","v":0},{"$f":"$D$13*'Advanced Financial'!$E61*$F8*(1+$D$117)^2*'Gap Financing Options'!E19","v":0},{"$f":"$D$13*'Advanced Financial'!$E61*$F8*(1+$D$117)^3*'Gap Financing Options'!E20","v":0},{"$f":"$D$13*'Advanced Financial'!$E61*$F8*(1+$D$117)^4*'Gap Financing Options'!E21","v":0},{"$f":"$D$13*'Advanced Financial'!$E61*$F8*(1+$D$117)^5*'Gap Financing Options'!E22","v":0},{"$f":"$D$13*'Advanced Financial'!$E61*$F8*(1+$D$117)^6*'Gap Financing Options'!E23","v":0},{"$f":"$D$13*'Advanced Financial'!$E61*$F8*(1+$D$117)^7*'Gap Financing Options'!E24","v":0},{"$f":"$D$13*'Advanced Financial'!$E61*$F8*(1+$D$117)^8*'Gap Financing Options'!E25","v":0},{"$f":"$D$13*'Advanced Financial'!$E61*$F8*(1+$D$117)^9*'Gap Financing Options'!E26","v":0}]
["Plus: Sales Tax Abatement",null,null,null,{"$f":"$D$14*$E$61*$D$60*'Gap Financing Options'!E33","v":0},{"$f":"$D$14*$E$61*$D$60*(1+$D$117)*'Gap Financing Options'!E34","v":0},{"$f":"$D$14*$E$61*$D$60*(1+$D$117)^2*'Gap Financing Options'!E35","v":0},{"$f":"$D$14*$E$61*$D$60*(1+$D$117)^3*'Gap Financing Options'!E36","v":0},{"$f":"$D$14*$E$61*$D$60*(1+$D$117)^4*'Gap Financing Options'!E37","v":0},{"$f":"$D$14*$E$61*$D$60*(1+$D$117)^5*'Gap Financing Options'!E38","v":0},{"$f":"$D$14*$E$61*$D$60*(1+$D$117)^6*'Gap Financing Options'!E39","v":0},{"$f":"$D$14*$E$61*$D$60*(1+$D$117)^7*'Gap Financing Options'!E40","v":0},{"$f":"$D$14*$E$61*$D$60*(1+$D$117)^8*'Gap Financing Options'!E41","v":0},{"$f":"$D$14*$E$61*$D$60*(1+$D$117)^9*'Gap Financing Options'!E42","v":0}]
["Plus: Retainage of Property & Sales Taxes",null,null,null,{"$f":"'Gap Financing Options'!E48","v":0},{"$f":"('Gap Financing Options'!E49)","v":0},{"$f":"('Gap Financing Options'!E50)","v":0},{"$f":"'Gap Financing Options'!E51","v":0},{"$f":"'Gap Financing Options'!E52","v":0},{"$f":"'Gap Financing Options'!E53","v":0},{"$f":"'Gap Financing Options'!E54","v":0},{"$f":"'Gap Financing Options'!E55","v":0},{"$f":"'Gap Financing Options'!E56","v":0},{"$f":"'Gap Financing Options'!E57","v":0}]
["Cash Throw Off to Public Partner",null,null,null,{"$f":"-$E$109","v":0},0,0,0,0,0,0,0,0,0]
["NOI",null,null,null,{"$f":"E122-E124-E123+E125+E126+E127+E128","v":252441.3705585413},{"$f":"F122-F124-F123+F125+F126+F127+F128","v":260014.61167529755},267815.05002555647,275849.50152632321,284124.98657211295,292648.73616927635,301428.19825435471,310471.04420198523,319785.17552804487,329378.73079388624]
[]
["Less: Debt Service",null,null,null,{"$f":"-$E$99","v":103815.67359697835},103815.67359697835,103815.67359697835,103815.67359697835,103815.67359697835,103815.67359697835,103815.67359697835,103815.67359697835,103815.67359697835,103815.67359697835]
["Net Cash Flow",null,null,null,{"$f":"E129-E131","v":148625.69696156296},156198.93807831919,163999.37642857811,172033.82792934484,180309.31297513458,188833.06257229799,197612.52465737634,206655.37060500687,215969.50193106651,225563.05719690787]
[]
["Cap Rate",null,null,null,{"$f":"IFERROR(E129/$E$101,0)","v":0.10496774981287856},0.10811678230726492,0.11136028577648287,0.11470109434977736,0.1181421271802707,0.12168639099567884,0.12533698272554922,0.12909709220731566,0.13297000497353514,0.13695910512274123]
["Cash on Cash Return (Equity Dividend Rate)",null,null,null,{"$f":"IFERROR(E132/$E$104,0)","v":0.15450028000470098},{"$f":"IFERROR(F132/$E$104,0)","v":0.16237286124066685},0.17048161991371172,0.17883364134694799,0.18743622342318131,0.19629688296170164,0.20542336228637761,0.21482363599079368,0.22450591790634244,0.23447866827935759]
[]
["Project Value",null,null,"Year 0","Year 1","Year 2","Year 3","Year 4","Year 5","Year 6","Year 7","Year 8","Year 9","Year 10"]
["Terminal Cap Rate, Gross Sales Price",null,null,null,{"$f":"D52","v":7.2999999999999995E-2},null,null,null,null,null,null,null,null,{"$f":"IFERROR(N129/E138,0)","v":4512037.4081354281}]
["Net Sales = Price Less Sales Cost",null,null,null,{"$f":"D53","v":0.05},null,null,null,null,null,null,null,null,{"$f":"N138*(1-E139)","v":4286435.5377286561}]
["Less Mortgage Balance",null,null,null,null,null,null,null,null,null,null,null,null,{"$f":"AA185","v":1207555.9861207781}]
["Net Sales Proceeds",null,null,null,null,null,null,null,null,null,null,null,null,{"$f":"N139-N140","v":3078879.5516078779}]
[]
[]
["IRR - Unleveraged (Project Cost)",null,null,"Year 0","Year 1","Year 2","Year 3","Year 4","Year 5","Year 6","Year 7","Year 8","Year 9","Year 10"]
["Total Investment",null,null,{"$f":"-E106","v":-2404942.1942316336}]
["Project NOI",null,null,null,{"$f":"E129","v":252441.3705585413},{"$f":"F129","v":260014.61167529755},267815.05002555647,275849.50152632321,284124.98657211295,292648.73616927635,301428.19825435471,310471.04420198523,319785.17552804487,329378.73079388624]
["Net Sales Price",null,null,null,null,null,null,null,null,null,null,null,null,{"$f":"N139","v":4286435.5377286561}]
["Total",null,null,{"$f":"SUM(D145:D147)","v":-2404942.1942316336},{"$f":"SUM(E145:E147)","v":252441.3705585413},{"$f":"SUM(F145:F147)","v":260014.61167529755},267815.05002555647,275849.50152632321,284124.98657211295,292648.73616927635,301428.19825435471,310471.04420198523,319785.17552804487,4615814.268522542]
["IRR - Project Cost",null,null,null,null,null,null,null,null,null,null,null,null,{"$f":"IFERROR(IRR(D148:N148),0)","v":0.15407301844517329}]
["NPV - Project Cost",null,null,null,null,null,null,null,null,null,null,null,null,{"$f":"NPV(L6,D148:N148)","v":505699.20730262535}]
[]
["IRR - Leveraged (Before Tax)",null,null,"Year 0","Year 1","Year 2","Year 3","Year 4","Year 5","Year 6","Year 7","Year 8","Year 9","Year 10"]
["Original Investment (Equity)",null,null,{"$f":"-E104","v":-961976.87769265356}]
["Project Cash Flow",null,null,null,{"$f":"E132","v":148625.69696156296},156198.93807831919,163999.37642857811,172033.82792934484,180309.31297513458,188833.06257229799,197612.52465737634,206655.37060500687,215969.50193106651,225563.05719690787]
["Net Sales Proceeds",null,null,null,null,null,null,null,null,null,null,null,null,{"$f":"N141","v":3078879.5516078779}]
["Total",null,null,{"$f":"SUM(D153:D155)","v":-961976.87769265356},148625.69696156296,156198.93807831919,163999.37642857811,172033.82792934484,180309.31297513458,188833.06257229799,197612.52465737634,206655.37060500687,215969.50193106651,3304442.6088047856]
["IRR - Equity",null,null,null,null,null,null,null,null,null,null,null,null,{"$f":"IFERROR(IRR(D156:N156),0)","v":0.24573494039427457}]
["NPV - Equity",null,null,null,null,null,null,null,null,null,null,null,null,{"$f":"NPV(L7,D156:N156)","v":-16143.140610957751}]
[]
["IRR - Public Participation",null,null,"Year 0","Year 1","Year 2","Year 3","Year 4","Year 5","Year 6","Year 7","Year 8","Year 9","Year 10"]
["Original Investment (Equity)",null,null,{"$f":"-(E108+(E93*E111))","v":0}]
["Mezzanine Financing",null,null,null,{"$f":"-$E$96","v":0},0,0,0,0,0,0,0,0,0]
["Cash Throw Off",null,null,null,{"$f":"$E$109","v":0},0,0,0,0,0,0,0,0,0]
["Sale Proceeds",null,null,null,null,null,null,null,null,null,null,null,null,{"$f":"N155*E110","v":0}]
["Loan Balance",null,null,null,null,null,null,null,null,null,null,null,null,{"$f":"V185*E111","v":0}]
["Total",null,null,{"$f":"SUM(D161:D165)","v":0},{"$f":"SUM(E161:E165)","v":0},0,0,0,0,0,0,0,0,0]
["IRR - Equity",null,null,null,null,null,null,null,null,null,null,null,null,{"$f":"IFERROR(IRR(D166:N166),0)","v":0}]
["NPV - Equity",null,null,null,null,null,null,null,null,null,null,null,null,{"$f":"NPV(E112,D166:N166)","v":0}]
[]
[]
[]
["DEBT SERVICE MORTIZATION TABLES"]
["Primary Debt Amortization",null,null,null,null,"Low Interest Loan",null,null,null,null,"Total Debt Amortization",null,null,null,null,"Annual Debt Service Summary - Primary Debt",null,null,null,null,"Annual Debt Service Summary - Secondary Debt",null,null,null,null,"Annual Debt Service Summary - Total Debt"]
[]
["Period","Balance","Payment","Interest","Principal","Period","Balance","Payment","Interest","Principal","Period","Balance","Payment","Interest","Principal","Year","Balance","Payment","Interest","Principal","Year","Balance","Payment","Interest","Principal","Year","Balance","Payment","Interest","Principal"]
[0,{"$f":"E87","v":1442965.31653898},null,null,null,0,{"$f":"E93","v":0},null,null,null,0,{"$f":"B176+G176","v":1442965.31653898},null,null,null,1,{"$f":"B188","v":1425245.5334477904},{"$f":"SUM(C177:C188)","v":103815.67359697832},{"$f":"SUM(D177:D188)","v":86095.890505788862},{"$f":"SUM(E177:E188)","v":17719.783091189485},1,{"$f":"G188","v":0},{"$f":"SUM(H177:H188)","v":0},{"$f":"SUM(I177:I188)","v":0},{"$f":"SUM(J177:J188)","v":0},1,{"$f":"Q176+V176","v":1425245.5334477904},{"$f":"R176+W176","v":103815.67359697832},{"$f":"S176+X176","v":86095.890505788862},{"$f":"T176+Y176","v":17719.783091189485}]
[1,{"$f":"B176-E177","v":1441528.8369885935},{"$f":"-$E$90/12","v":8651.306133081529},{"$f":"B176*$E$88/12","v":7214.8265826948991},{"$f":"C177-D177","v":1436.4795503866299},1,{"$f":"G176-J177","v":0},{"$f":"-$E$96/12","v":0},{"$f":"G176*$E$94/12","v":0},{"$f":"H177-I177","v":0},1,{"$f":"G177+B177","v":1441528.8369885935},8651.306133081529,7214.8265826948991,1436.4795503866299,2,{"$f":"B200","v":1406432.8329088227},{"$f":"SUM(C189:C200)","v":103815.67359697832},{"$f":"SUM(D189:D200)","v":85002.973058010728},{"$f":"SUM(E189:E200)","v":18812.70053896762},2,{"$f":"G200","v":0},{"$f":"SUM(H189:H200)","v":0},{"$f":"SUM(I189:I200)","v":0},{"$f":"SUM(J189:J200)","v":0},2,{"$f":"Q177+V177","v":1406432.8329088227},{"$f":"R177+W177","v":103815.67359697832},{"$f":"S177+X177","v":85002.973058010728},{"$f":"T177+Y177","v":18812.70053896762}]
[{"$f":"A177+1","v":2},1440085.1750404548,8651.306133081529,{"$f":"B177*$E$88/12","v":7207.6441849429675},1443.6619481385615,{"$f":"F177+1","v":2},0,0,0,0,{"$f":"K177+1","v":2},1440085.1750404548,8651.306133081529,7207.6441849429675,1443.6619481385615,3,{"$f":"B212","v":1386459.8061653492},{"$f":"SUM(C201:C212)","v":103815.67359697832},{"$f":"SUM(D201:D212)","v":83842.64685350511},{"$f":"SUM(E201:E212)","v":19973.026743473249},3,{"$f":"G212","v":0},{"$f":"SUM(H201:H212)","v":0},{"$f":"SUM(I201:I212)","v":0},{"$f":"SUM(J201:J212)","v":0},3,1386459.8061653492,103815.67359697832,83842.64685350511,19973.026743473249]
[3,1438634.2947825757,8651.306133081529,{"$f":"B178*$E$88/12","v":7200.4258752022733},1450.8802578792556,3,0,0,0,0,3,1438634.2947825757,8651.306133081529,7200.4258752022733,1450.8802578792556,4,{"$f":"B224","v":1365254.8868360275},{"$f":"SUM(C213:C224)","v":103815.67359697832},{"$f":"SUM(D213:D224)","v":82610.754267656535},{"$f":"SUM(E213:E224)","v":21204.919329321816},4,{"$f":"G224","v":0},{"$f":"SUM(H213:H224)","v":0},{"$f":"SUM(I213:I224)","v":0},{"$f":"SUM(J213:J224)","v":0},4,1365254.8868360275,103815.67359697832,82610.754267656535,21204.919329321816]
[4,1437176.1601234071,8651.306133081529,{"$f":"B179*$E$88/12","v":7193.1714739128774},1458.1346591686515,4,0,0,0,0,4,1437176.1601234071,8651.306133081529,7193.1714739128774,1458.1346591686515,5,{"$f":"B236","v":1342742.0944817096},{"$f":"SUM(C225:C236)","v":103815.67359697832},{"$f":"SUM(D225:D236)","v":81302.881242660718},{"$f":"SUM(E225:E236)","v":22512.792354317626},5,{"$f":"G236","v":0},{"$f":"SUM(H225:H236)","v":0},{"$f":"SUM(I225:I236)","v":0},{"$f":"SUM(J225:J236)","v":0},5,1342742.0944817096,103815.67359697832,81302.881242660718,22512.792354317626]
[5,1435710.7347909426,8651.306133081529,7185.8808006170357,1465.4253324644933,5,0,0,0,0,5,1435710.7347909426,8651.306133081529,7185.8808006170357,1465.4253324644933,6,{"$f":"B248","v":1318840.7623560179},{"$f":"SUM(C237:C248)","v":103815.67359697832},{"$f":"SUM(D237:D248)","v":79914.341471286592},{"$f":"SUM(E237:E248)","v":23901.33212569177},6,{"$f":"G248","v":0},{"$f":"SUM(H237:H248)","v":0},{"$f":"SUM(I237:I248)","v":0},{"$f":"SUM(J237:J248)","v":0},6,1318840.7623560179,103815.67359697832,79914.341471286592,23901.33212569177]
[6,1434237.9823318159,8651.306133081529,7178.5536739547133,1472.7524591268157,6,0,0,0,0,6,1434237.9823318159,8651.306133081529,7178.5536739547133,1472.7524591268157,7,{"$f":"B260","v":1293465.2483641673},{"$f":"SUM(C249:C260)","v":103815.67359697832},{"$f":"SUM(D249:D260)","v":78440.159605127265},{"$f":"SUM(E249:E260)","v":25375.51399185109},7,{"$f":"G260","v":0},{"$f":"SUM(H249:H260)","v":0},{"$f":"SUM(I249:I260)","v":0},{"$f":"SUM(J249:J260)","v":0},7,1293465.2483641673,103815.67359697832,78440.159605127265,25375.51399185109]
[7,1432757.8661103933,8651.306133081529,7171.1899116590794,1480.1162214224496,7,0,0,0,0,7,1432757.8661103933,8651.306133081529,7171.1899116590794,1480.1162214224496,8,{"$f":"B272","v":1266524.6281943622},{"$f":"SUM(C261:C272)","v":103815.67359697832},{"$f":"SUM(D261:D272)","v":76875.053427172912},{"$f":"SUM(E261:E272)","v":26940.620169805428},8,{"$f":"G272","v":0},{"$f":"SUM(H261:H272)","v":0},{"$f":"SUM(I261:I272)","v":0},{"$f":"SUM(J261:J272)","v":0},8,1266524.6281943622,103815.67359697832,76875.053427172912,26940.620169805428]
[8,1431270.3493078637,8651.306133081529,7163.7893305519656,1487.5168025295634,8,0,0,0,0,8,1431270.3493078637,8651.306133081529,7163.7893305519656,1487.5168025295634,9,{"$f":"B284","v":1237922.3695222102},{"$f":"SUM(C273:C284)","v":103815.67359697832},{"$f":"SUM(D273:D284)","v":75213.41492482672},{"$f":"SUM(E273:E284)","v":28602.258672151635},9,{"$f":"G284","v":0},{"$f":"SUM(H273:H284)","v":0},{"$f":"SUM(I273:I284)","v":0},{"$f":"SUM(J273:J284)","v":0},9,1237922.3695222102,103815.67359697832,75213.41492482672,28602.258672151635]
[9,1429775.3949213214,8651.306133081529,7156.3517465393188,1494.9543865422102,9,0,0,0,0,9,1429775.3949213214,8651.306133081529,7156.3517465393188,1494.9543865422102,10,{"$f":"B296","v":1207555.9861207781},{"$f":"SUM(C285:C296)","v":103815.67359697832},{"$f":"SUM(D285:D296)","v":73449.290195545982},{"$f":"SUM(E285:E296)","v":30366.383401432358},10,{"$f":"G296","v":0},{"$f":"SUM(H285:H296)","v":0},{"$f":"SUM(I285:I296)","v":0},{"$f":"SUM(J285:J296)","v":0},10,{"$f":"Q185+V185","v":1207555.9861207781},{"$f":"R185+W185","v":103815.67359697832},{"$f":"S185+X185","v":73449.290195545982},{"$f":"T185+Y185","v":30366.383401432358}]
[10,1428272.9657628464,8651.306133081529,7148.8769746066064,1502.4291584749226,10,0,0,0,0,10,1428272.9657628464,8651.306133081529,7148.8769746066064,1502.4291584749226]
[11,1426763.024458579,8651.306133081529,7141.3648288142322,1509.9413042672968,11,0,0,0,0,11,1426763.024458579,8651.306133081529,7141.3648288142322,1509.9413042672968]
[12,1425245.5334477904,8651.306133081529,7133.8151222928946,1517.4910107886344,12,0,0,0,0,12,1425245.5334477904,8651.306133081529,7133.8151222928946,1517.4910107886344]
[13,1423720.4549819478,8651.306133081529,7126.2276672389517,1525.0784658425773,13,0,0,0,0,13,1423720.4549819478,8651.306133081529,7126.2276672389517,1525.0784658425773]
[14,1422187.751123776,8651.306133081529,7118.6022749097392,1532.7038581717898,14,0,0,0,0,14,1422187.751123776,8651.306133081529,7118.6022749097392,1532.7038581717898]
[15,1420647.3837463134,8651.306133081529,7110.9387556188804,1540.3673774626486,15,0,0,0,0,15,1420647.3837463134,8651.306133081529,7110.9387556188804,1540.3673774626486]
[16,1419099.3145319633,8651.306133081529,7103.2369187315671,1548.0692143499618,16,0,0,0,0,16,1419099.3145319633,8651.306133081529,7103.2369187315671,1548.0692143499618]
[17,1417543.5049715417,8651.306133081529,7095.4965726598166,1555.8095604217124,17,0,0,0,0,17,1417543.5049715417,8651.306133081529,7095.4965726598166,1555.8095604217124]
[18,1415979.916363318,8651.306133081529,7087.7175248577078,1563.5886082238212,18,0,0,0,0,18,1415979.916363318,8651.306133081529,7087.7175248577078,1563.5886082238212]
[19,1414408.5098120531,8651.306133081529,7079.8995818165895,1571.4065512649395,19,0,0,0,0,19,1414408.5098120531,8651.306133081529,7079.8995818165895,1571.4065512649395]
[20,1412829.2462280318,8651.306133081529,7072.0425490602647,1579.2635840212643,20,0,0,0,0,20,1412829.2462280318,8651.306133081529,7072.0425490602647,1579.2635840212643]
[21,1411242.0863260904,8651.306133081529,7064.1462311401592,1587.1599019413698,21,0,0,0,0,21,1411242.0863260904,8651.306133081529,7064.1462311401592,1587.1599019413698]
[22,1409646.9906246392,8651.306133081529,7056.2104316304512,1595.0957014510777,22,0,0,0,0,22,1409646.9906246392,8651.306133081529,7056.2104316304512,1595.0957014510777]
[23,1408043.9194446809,8651.306133081529,7048.2349531231957,1603.0711799583332,23,0,0,0,0,23,1408043.9194446809,8651.306133081529,7048.2349531231957,1603.0711799583332]
[24,1406432.8329088227,8651.306133081529,7040.219597223404,1611.086535858125,24,0,0,0,0,24,1406432.8329088227,8651.306133081529,7040.219597223404,1611.086535858125]
[25,1404813.6909402853,8651.306133081529,7032.1641645441132,1619.1419685374158,25,0,0,0,0,25,1404813.6909402853,8651.306133081529,7032.1641645441132,1619.1419685374158]
[26,1403186.4532619051,8651.306133081529,7024.0684547014271,1627.2376783801019,26,0,0,0,0,26,1403186.4532619051,8651.306133081529,7024.0684547014271,1627.2376783801019]
[27,1401551.0793951331,8651.306133081529,7015.9322663095254,1635.3738667720036,27,0,0,0,0,27,1401551.0793951331,8651.306133081529,7015.9322663095254,1635.3738667720036]
[28,1399907.5286590273,8651.306133081529,7007.7553969756655,1643.5507361058635,28,0,0,0,0,28,1399907.5286590273,8651.306133081529,7007.7553969756655,1643.5507361058635]
[29,1398255.7601692409,8651.306133081529,6999.5376432951371,1651.7684897863919,29,0,0,0,0,29,1398255.7601692409,8651.306133081529,6999.5376432951371,1651.7684897863919]
[30,1396595.7328370055,8651.306133081529,6991.2788008462039,1660.027332235325,30,0,0,0,0,30,1396595.7328370055,8651.306133081529,6991.2788008462039,1660.027332235325]
[31,1394927.405368109,8651.306133081529,6982.9786641850269,1668.3274688965021,31,0,0,0,0,31,1394927.405368109,8651.306133081529,6982.9786641850269,1668.3274688965021]
[32,1393250.7362618679,8651.306133081529,6974.6370268405444,1676.6691062409845,32,0,0,0,0,32,1393250.7362618679,8651.306133081529,6974.6370268405444,1676.6691062409845]
[33,1391565.6838100958,8651.306133081529,6966.2536813093393,1685.0524517721897,33,0,0,0,0,33,1391565.6838100958,8651.306133081529,6966.2536813093393,1685.0524517721897]
[34,1389872.2060960648,8651.306133081529,6957.8284190504783,1693.4777140310507,34,0,0,0,0,34,1389872.2060960648,8651.306133081529,6957.8284190504783,1693.4777140310507]
[35,1388170.2609934635,8651.306133081529,6949.3610304803233,1701.9451026012057,35,0,0,0,0,35,1388170.2609934635,8651.306133081529,6949.3610304803233,1701.9451026012057]
[36,1386459.8061653492,8651.306133081529,6940.8513049673165,1710.4548281142124,36,0,0,0,0,36,1386459.8061653492,8651.306133081529,6940.8513049673165,1710.4548281142124]
[37,1384740.7990630944,8651.306133081529,6932.2990308267463,1719.0071022547827,37,0,0,0,0,37,1384740.7990630944,8651.306133081529,6932.2990308267463,1719.0071022547827]
[38,1383013.1969253283,8651.306133081529,6923.7039953154717,1727.6021377660572,38,0,0,0,0,38,1383013.1969253283,8651.306133081529,6923.7039953154717,1727.6021377660572]
[39,1381276.9567768734,8651.306133081529,6915.0659846266417,1736.2401484548873,39,0,0,0,0,39,1381276.9567768734,8651.306133081529,6915.0659846266417,1736.2401484548873]
[40,1379532.0354276763,8651.306133081529,6906.3847838843676,1744.9213491971614,40,0,0,0,0,40,1379532.0354276763,8651.306133081529,6906.3847838843676,1744.9213491971614]
[41,1377778.3894717332,8651.306133081529,6897.6601771383803,1753.6459559431487,41,0,0,0,0,41,1377778.3894717332,8651.306133081529,6897.6601771383803,1753.6459559431487]
[42,1376015.9752860104,8651.306133081529,6888.8919473586657,1762.4141857228633,42,0,0,0,0,42,1376015.9752860104,8651.306133081529,6888.8919473586657,1762.4141857228633]
[43,1374244.7490293588,8651.306133081529,6880.0798764300516,1771.2262566514773,43,0,0,0,0,43,1374244.7490293588,8651.306133081529,6880.0798764300516,1771.2262566514773]
[44,1372464.6666414242,8651.306133081529,6871.2237451467945,1780.0823879347345,44,0,0,0,0,44,1372464.6666414242,8651.306133081529,6871.2237451467945,1780.0823879347345]
[45,1370675.6838415498,8651.306133081529,6862.3233332071204,1788.9827998744086,45,0,0,0,0,45,1370675.6838415498,8651.306133081529,6862.3233332071204,1788.9827998744086]
[46,1368877.756127676,8651.306133081529,6853.3784192077483,1797.9277138737807,46,0,0,0,0,46,1368877.756127676,8651.306133081529,6853.3784192077483,1797.9277138737807]
[47,1367070.8387752329,8651.306133081529,6844.38878063838,1806.917352443149,47,0,0,0,0,47,1367070.8387752329,8651.306133081529,6844.38878063838,1806.917352443149]
[48,1365254.8868360275,8651.306133081529,6835.3541938761637,1815.9519392053653,48,0,0,0,0,48,1365254.8868360275,8651.306133081529,6835.3541938761637,1815.9519392053653]
[49,1363429.8551371261,8651.306133081529,6826.2744341801372,1825.0316989013918,49,0,0,0,0,49,1363429.8551371261,8651.306133081529,6826.2744341801372,1825.0316989013918]
[50,1361595.69827973,8651.306133081529,6817.1492756856305,1834.1568573958984,50,0,0,0,0,50,1361595.69827973,8651.306133081529,6817.1492756856305,1834.1568573958984]
[51,1359752.3706380471,8651.306133081529,6807.9784913986505,1843.3276416828785,51,0,0,0,0,51,1359752.3706380471,8651.306133081529,6807.9784913986505,1843.3276416828785]
[52,1357899.8263581558,8651.306133081529,6798.7618531902344,1852.5442798912945,52,0,0,0,0,52,1357899.8263581558,8651.306133081529,6798.7618531902344,1852.5442798912945]
[53,1356038.019356865,8651.306133081529,6789.4991317907779,1861.807001290751,53,0,0,0,0,53,1356038.019356865,8651.306133081529,6789.4991317907779,1861.807001290751]
[54,1354166.9033205677,8651.306133081529,6780.1900967843249,1871.1160362972041,54,0,0,0,0,54,1354166.9033205677,8651.306133081529,6780.1900967843249,1871.1160362972041]
[55,1352286.431704089,8651.306133081529,6770.8345166028384,1880.4716164786905,55,0,0,0,0,55,1352286.431704089,8651.306133081529,6770.8345166028384,1880.4716164786905]
[56,1350396.5577295281,8651.306133081529,6761.4321585204452,1889.8739745610837,56,0,0,0,0,56,1350396.5577295281,8651.306133081529,6761.4321585204452,1889.8739745610837]
[57,1348497.2343850941,8651.306133081529,6751.9827886476405,1899.3233444338885,57,0,0,0,0,57,1348497.2343850941,8651.306133081529,6751.9827886476405,1899.3233444338885]
[58,1346588.4144239381,8651.306133081529,6742.4861719254704,1908.8199611560585,58,0,0,0,0,58,1346588.4144239381,8651.306133081529,6742.4861719254704,1908.8199611560585]
[59,1344670.0503629763,8651.306133081529,6732.9420721196902,1918.3640609618387,59,0,0,0,0,59,1344670.0503629763,8651.306133081529,6732.9420721196902,1918.3640609618387]
[60,1342742.0944817096,8651.306133081529,6723.3502518148816,1927.9558812666473,60,0,0,0,0,60,1342742.0944817096,8651.306133081529,6723.3502518148816,1927.9558812666473]
[61,1340804.4988210367,8651.306133081529,6713.7104724085475,1937.5956606729815,61,0,0,0,0,61,1340804.4988210367,8651.306133081529,6713.7104724085475,1937.5956606729815]
[62,1338857.2151820604,8651.306133081529,6704.0224941051829,1947.2836389763461,62,0,0,0,0,62,1338857.2151820604,8651.306133081529,6704.0224941051829,1947.2836389763461]
[63,1336900.1951248893,8651.306133081529,6694.2860759103014,1957.0200571712276,63,0,0,0,0,63,1336900.1951248893,8651.306133081529,6694.2860759103014,1957.0200571712276]
[64,1334933.3899674322,8651.306133081529,6684.5009756244463,1966.8051574570827,64,0,0,0,0,64,1334933.3899674322,8651.306133081529,6684.5009756244463,{"$f":"J240+E240","v":1966.8051574570827}]
[65,{"$f":"B240-E241","v":1332956.7507841878},{"$f":"-$E$90/12","v":8651.306133081529},6674.6669498371602,{"$f":"C241-D241","v":1976.6391832443687},65,{"$f":"G240-J241","v":0},{"$f":"-$E$96/12","v":0},{"$f":"G240*$E$94/12","v":0},{"$f":"H241-I241","v":0},65,{"$f":"G241+B241","v":1332956.7507841878},8651.306133081529,6674.6669498371602,1976.6391832443687]
[{"$f":"A241+1","v":66},1330970.2284050272,8651.306133081529,6664.7837539209386,1986.5223791605904,{"$f":"F241+1","v":66},0,0,0,0,{"$f":"K241+1","v":66},1330970.2284050272,8651.306133081529,6664.7837539209386,1986.5223791605904]
[67,1328973.7734139708,8651.306133081529,6654.8511420251352,1996.4549910563937,67,0,0,0,0,67,1328973.7734139708,8651.306133081529,6654.8511420251352,1996.4549910563937]
[68,1326967.3361479591,8651.306133081529,{"$f":"B243*$E$88/12","v":6644.8688670698539},2006.4372660116751,68,0,0,0,0,68,1326967.3361479591,8651.306133081529,6644.8688670698539,2006.4372660116751]
[69,1324950.8666956173,8651.306133081529,6634.8366807397952,2016.4694523417338,69,0,0,0,0,69,1324950.8666956173,8651.306133081529,6634.8366807397952,2016.4694523417338]
[70,1322924.3148960138,8651.306133081529,6624.7543334780867,2026.5517996034423,70,0,0,0,0,70,1322924.3148960138,8651.306133081529,6624.7543334780867,2026.5517996034423]
[71,1320887.6303374125,8651.306133081529,6614.6215744800684,2036.6845586014606,71,0,0,0,0,71,1320887.6303374125,8651.306133081529,6614.6215744800684,2036.6845586014606]
[72,1318840.7623560179,8651.306133081529,6604.4381516870626,2046.8679813944664,72,0,0,0,0,72,1318840.7623560179,8651.306133081529,6604.4381516870626,2046.8679813944664]
[73,1316783.6600347166,8651.306133081529,6594.2038117800903,2057.1023213014387,73,0,0,0,0,73,1316783.6600347166,8651.306133081529,6594.2038117800903,2057.1023213014387]
[74,1314716.2722018086,8651.306133081529,6583.9183001735828,2067.3878329079462,74,0,0,0,0,74,1314716.2722018086,8651.306133081529,6583.9183001735828,2067.3878329079462]
[75,1312638.5474297362,8651.306133081529,6573.5813610090436,2077.7247720724854,75,0,0,0,0,75,1312638.5474297362,8651.306133081529,6573.5813610090436,2077.7247720724854]
[76,1310550.4340338034,8651.306133081529,6563.1927371486809,2088.1133959328481,76,0,0,0,0,76,1310550.4340338034,8651.306133081529,6563.1927371486809,2088.1133959328481]
[77,1308451.880070891,8651.306133081529,6552.7521701690166,2098.5539629125124,77,0,0,0,0,77,1308451.880070891,8651.306133081529,6552.7521701690166,2098.5539629125124]
[78,1306342.833338164,8651.306133081529,6542.2594003544546,2109.0467327270744,78,0,0,0,0,78,1306342.833338164,8651.306133081529,6542.2594003544546,2109.0467327270744]
[79,1304223.2413717734,8651.306133081529,6531.7141666908201,2119.5919663907089,79,0,0,0,0,79,1304223.2413717734,8651.306133081529,6531.7141666908201,2119.5919663907089]
[80,1302093.0514455508,8651.306133081529,6521.1162068588674,2130.1899262226616,80,0,0,0,0,80,1302093.0514455508,8651.306133081529,6521.1162068588674,2130.1899262226616]
[81,1299952.210569697,8651.306133081529,6510.4652572277528,2140.8408758537762,81,0,0,0,0,81,1299952.210569697,8651.306133081529,6510.4652572277528,2140.8408758537762]
[82,1297800.6654894638,8651.306133081529,6499.7610528484847,2151.5450802330442,82,0,0,0,0,82,1297800.6654894638,8651.306133081529,6499.7610528484847,2151.5450802330442]
[83,1295638.3626838296,8651.306133081529,6489.003327447318,2162.3028056342109,83,0,0,0,0,83,1295638.3626838296,8651.306133081529,6489.003327447318,2162.3028056342109]
[84,1293465.2483641673,8651.306133081529,6478.1918134191474,2173.1143196623816,84,0,0,0,0,84,1293465.2483641673,8651.306133081529,6478.1918134191474,2173.1143196623816]
[85,1291281.2684729067,8651.306133081529,6467.326241820836,2183.979891260693,85,0,0,0,0,85,1291281.2684729067,8651.306133081529,6467.326241820836,2183.979891260693]
[86,1289086.3686821896,8651.306133081529,6456.4063423645339,2194.8997907169951,86,0,0,0,0,86,1289086.3686821896,8651.306133081529,6456.4063423645339,2194.8997907169951]
[87,1286880.4943925191,8651.306133081529,6445.4318434109482,2205.8742896705808,87,0,0,0,0,87,1286880.4943925191,8651.306133081529,6445.4318434109482,2205.8742896705808]
[88,1284663.5907314003,8651.306133081529,6434.4024719625959,2216.9036611189331,88,0,0,0,0,88,1284663.5907314003,8651.306133081529,6434.4024719625959,2216.9036611189331]
[89,1282435.6025519758,8651.306133081529,6423.3179536570015,2227.9881794245275,89,0,0,0,0,89,1282435.6025519758,8651.306133081529,6423.3179536570015,2227.9881794245275]
[90,1280196.4744316542,8651.306133081529,6412.1780127598786,2239.1281203216504,90,0,0,0,0,90,1280196.4744316542,8651.306133081529,6412.1780127598786,2239.1281203216504]
[91,1277946.150670731,8651.306133081529,6400.9823721582716,2250.3237609232574,91,0,0,0,0,91,1277946.150670731,8651.306133081529,6400.9823721582716,2250.3237609232574]
[92,1275684.5752910031,8651.306133081529,6389.730753353655,2261.575379727874,92,0,0,0,0,92,1275684.5752910031,8651.306133081529,6389.730753353655,2261.575379727874]
[93,1273411.6920343766,8651.306133081529,6378.4228764550144,2272.8832566265146,93,0,0,0,0,93,1273411.6920343766,8651.306133081529,6378.4228764550144,2272.8832566265146]
[94,1271127.4443614669,8651.306133081529,6367.0584601718829,2284.2476729096461,94,0,0,0,0,94,1271127.4443614669,8651.306133081529,6367.0584601718829,2284.2476729096461]
[95,1268831.7754501926,8651.306133081529,6355.6372218073338,2295.6689112741951,95,0,0,0,0,95,1268831.7754501926,8651.306133081529,6355.6372218073338,2295.6689112741951]
[96,1266524.6281943622,8651.306133081529,6344.1588772509631,2307.1472558305659,96,0,0,0,0,96,1266524.6281943622,8651.306133081529,6344.1588772509631,2307.1472558305659]
[97,1264205.9452022524,8651.306133081529,6332.6231409718102,2318.6829921097187,97,0,0,0,0,97,1264205.9452022524,8651.306133081529,6332.6231409718102,2318.6829921097187]
[98,1261875.6687951821,8651.306133081529,6321.0297260112611,2330.2764070702679,98,0,0,0,0,98,1261875.6687951821,8651.306133081529,6321.0297260112611,2330.2764070702679]
[99,1259533.7410060766,8651.306133081529,6309.37834397591,2341.927789105619,99,0,0,0,0,99,1259533.7410060766,8651.306133081529,6309.37834397591,2341.927789105619]
[100,1257180.1035780255,8651.306133081529,6297.6687050303817,2353.6374280511473,100,0,0,0,0,100,1257180.1035780255,8651.306133081529,6297.6687050303817,2353.6374280511473]
[101,1254814.697962834,8651.306133081529,6285.900517890127,2365.4056151914019,101,0,0,0,0,101,1254814.697962834,8651.306133081529,6285.900517890127,2365.4056151914019]
[102,1252437.4653195667,8651.306133081529,6274.07348981417,2377.232643267359,102,0,0,0,0,102,1252437.4653195667,8651.306133081529,6274.07348981417,2377.232643267359]
[103,1250048.346513083,8651.306133081529,6262.1873265978329,2389.1188064836961,103,0,0,0,0,103,1250048.346513083,8651.306133081529,6262.1873265978329,2389.1188064836961]
[104,1247647.2821125668,8651.306133081529,6250.2417325654142,2401.0644005161148,104,0,0,0,0,104,1247647.2821125668,8651.306133081529,6250.2417325654142,2401.0644005161148]
[105,1245234.212390048,8651.306133081529,6238.236410562833,2413.0697225186959,105,0,0,0,0,105,1245234.212390048,8651.306133081529,6238.236410562833,2413.0697225186959]
[106,1242809.0773189166,8651.306133081529,6226.1710619502401,2425.1350711312889,106,0,0,0,0,106,1242809.0773189166,8651.306133081529,6226.1710619502401,2425.1350711312889]
[107,1240371.8165724296,8651.306133081529,6214.0453865945829,2437.2607464869461,107,0,0,0,0,107,1240371.8165724296,8651.306133081529,6214.0453865945829,2437.2607464869461]
[108,1237922.3695222102,8651.306133081529,6201.8590828621482,2449.4470502193808,108,0,0,0,0,108,1237922.3695222102,8651.306133081529,6201.8590828621482,2449.4470502193808]
[109,1235460.6752367397,8651.306133081529,6189.6118476110505,2461.6942854704785,109,0,0,0,0,109,1235460.6752367397,8651.306133081529,6189.6118476110505,2461.6942854704785]
[110,1232986.6724798419,8651.306133081529,6177.3033761836987,2474.0027568978303,110,0,0,0,0,110,1232986.6724798419,8651.306133081529,6177.3033761836987,2474.0027568978303]
[111,1230500.2997091596,8651.306133081529,6164.9333623992088,2486.3727706823202,111,0,0,0,0,111,1230500.2997091596,8651.306133081529,6164.9333623992088,2486.3727706823202]
[112,1228001.495074624,8651.306133081529,6152.5014985457974,2498.8046345357316,112,0,0,0,0,112,1228001.495074624,8651.306133081529,6152.5014985457974,2498.8046345357316]
[113,1225490.1964169156,8651.306133081529,6140.0074753731196,2511.2986577084093,113,0,0,0,0,113,1225490.1964169156,8651.306133081529,6140.0074753731196,2511.2986577084093]
[114,1222966.3412659187,8651.306133081529,6127.4509820845778,2523.8551509969511,114,0,0,0,0,114,1222966.3412659187,8651.306133081529,6127.4509820845778,2523.8551509969511]
[115,1220429.8668391667,8651.306133081529,6114.8317063295935,2536.4744267519354,115,0,0,0,0,115,1220429.8668391667,8651.306133081529,6114.8317063295935,2536.4744267519354]
[116,1217880.7100402811,8651.306133081529,6102.1493341958339,2549.156798885695,116,0,0,0,0,116,1217880.7100402811,8651.306133081529,6102.1493341958339,2549.156798885695]
[117,1215318.807457401,8651.306133081529,6089.4035502014049,2561.9025828801241,117,0,0,0,0,117,1215318.807457401,8651.306133081529,6089.4035502014049,2561.9025828801241]
[118,1212744.0953616065,8651.306133081529,6076.5940372870036,2574.7120957945253,118,0,0,0,0,118,1212744.0953616065,8651.306133081529,6076.5940372870036,2574.7120957945253]
[119,1210156.509705333,8651.306133081529,6063.7204768080328,2587.5856562734962,119,0,0,0,0,119,1210156.509705333,8651.306133081529,6063.7204768080328,2587.5856562734962]
[120,1207555.9861207781,8651.306133081529,6050.7825485266649,2600.5235845548641,120,0,0,0,0,120,1207555.9861207781,8651.306133081529,6050.7825485266649,2600.5235845548641]
[121,1204942.4599183004,8651.306133081529,6037.7799306038905,2613.5262024776384,121,0,0,0,0,121,1204942.4599183004,8651.306133081529,6037.7799306038905,2613.5262024776384]
[122,1202315.8660848103,8651.306133081529,6024.7122995915015,2626.5938334900275,122,0,0,0,0,122,1202315.8660848103,8651.306133081529,6024.7122995915015,2626.5938334900275]
[123,1199676.1392821528,8651.306133081529,6011.5793304240515,2639.7268026574775,123,0,0,0,0,123,1199676.1392821528,8651.306133081529,6011.5793304240515,2639.7268026574775]
[124,1197023.2138454821,8651.306133081529,5998.3806964107634,2652.9254366707655,124,0,0,0,0,124,1197023.2138454821,8651.306133081529,5998.3806964107634,2652.9254366707655]
[125,1194357.0237816279,8651.306133081529,5985.1160692274098,2666.1900638541192,125,0,0,0,0,125,1194357.0237816279,8651.306133081529,5985.1160692274098,2666.1900638541192]
[126,1191677.5027674546,8651.306133081529,5971.7851189081384,2679.5210141733905,126,0,0,0,0,126,1191677.5027674546,8651.306133081529,5971.7851189081384,2679.5210141733905]
[127,1188984.5841482102,8651.306133081529,5958.3875138372723,2692.9186192442567,127,0,0,0,0,127,1188984.5841482102,8651.306133081529,5958.3875138372723,2692.9186192442567]
[128,1186278.2009358697,8651.306133081529,5944.9229207410508,2706.3832123404782,128,0,0,0,0,128,1186278.2009358697,8651.306133081529,5944.9229207410508,2706.3832123404782]
[129,{"$f":"B304-E305","v":1183558.2858074675},{"$f":"-$E$90/12","v":8651.306133081529},5931.391004679349,{"$f":"C305-D305","v":2719.91512840218},129,{"$f":"G304-J305","v":0},{"$f":"-$E$96/12","v":0},{"$f":"G304*$E$94/12","v":0},{"$f":"H305-I305","v":0},129,{"$f":"G305+B305","v":1183558.2858074675},8651.306133081529,5931.391004679349,2719.91512840218]
[{"$f":"A305+1","v":130},1180824.7711034233,8651.306133081529,5917.7914290373374,2733.5147040441916,{"$f":"F305+1","v":130},0,0,0,0,{"$f":"K305+1","v":130},1180824.7711034233,8651.306133081529,5917.7914290373374,2733.5147040441916]
[131,1178077.5888258589,8651.306133081529,5904.1238555171158,2747.1822775644132,131,0,0,0,0,131,1178077.5888258589,8651.306133081529,5904.1238555171158,2747.1822775644132]
[132,1175316.6706369068,8651.306133081529,{"$f":"B307*$E$88/12","v":5890.3879441292947},2760.9181889522342,132,0,0,0,0,132,1175316.6706369068,8651.306133081529,5890.3879441292947,2760.9181889522342]
[133,1172541.9478570097,8651.306133081529,5876.5833531845337,2774.7227798969952,133,0,0,0,0,133,1172541.9478570097,8651.306133081529,5876.5833531845337,2774.7227798969952]
[134,1169753.3514632133,8651.306133081529,5862.7097392850483,2788.5963937964807,134,0,0,0,0,134,1169753.3514632133,8651.306133081529,5862.7097392850483,2788.5963937964807]
[135,1166950.8120874478,8651.306133081529,5848.7667573160661,2802.5393757654629,135,0,0,0,0,135,1166950.8120874478,8651.306133081529,5848.7667573160661,2802.5393757654629]
[136,1164134.2600148036,8651.306133081529,5834.7540604372398,2816.5520726442892,136,0,0,0,0,136,1164134.2600148036,8651.306133081529,5834.7540604372398,2816.5520726442892]
[137,1161303.625181796,8651.306133081529,5820.6713000740174,2830.6348330075116,137,0,0,0,0,137,1161303.625181796,8651.306133081529,5820.6713000740174,2830.6348330075116]
[138,1158458.8371746235,8651.306133081529,5806.5181259089804,2844.7880071725485,138,0,0,0,0,138,1158458.8371746235,8651.306133081529,5806.5181259089804,2844.7880071725485]
[139,1155599.8252274152,8651.306133081529,5792.2941858731174,2859.0119472084116,139,0,0,0,0,139,1155599.8252274152,8651.306133081529,5792.2941858731174,2859.0119472084116]
[140,1152726.5182204708,8651.306133081529,5777.9991261370751,2873.3070069444539,140,0,0,0,0,140,1152726.5182204708,8651.306133081529,5777.9991261370751,2873.3070069444539]
[141,1149838.8446784916,8651.306133081529,5763.6325911023532,2887.6735419791758,141,0,0,0,0,141,1149838.8446784916,8651.306133081529,5763.6325911023532,2887.6735419791758]
[142,1146936.7327688024,8651.306133081529,5749.1942233924574,2902.1119096890716,142,0,0,0,0,142,1146936.7327688024,8651.306133081529,5749.1942233924574,2902.1119096890716]
[143,1144020.1102995649,8651.306133081529,5734.6836638440118,2916.6224692375172,143,0,0,0,0,143,1144020.1102995649,8651.306133081529,5734.6836638440118,2916.6224692375172]
[144,1141088.9047179811,8651.306133081529,5720.1005514978242,2931.2055815837048,144,0,0,0,0,144,1141088.9047179811,8651.306133081529,5720.1005514978242,2931.2055815837048]
[145,1138143.0431084896,8651.306133081529,5705.4445235899047,2945.8616094916242,145,0,0,0,0,145,1138143.0431084896,8651.306133081529,5705.4445235899047,2945.8616094916242]
[146,1135182.4521909505,8651.306133081529,5690.7152155424483,2960.5909175390807,146,0,0,0,0,146,1135182.4521909505,8651.306133081529,5690.7152155424483,2960.5909175390807]
[147,1132207.0583188238,8651.306133081529,5675.9122609547521,2975.3938721267768,147,0,0,0,0,147,1132207.0583188238,8651.306133081529,5675.9122609547521,2975.3938721267768]
[148,1129216.7874773364,8651.306133081529,5661.0352915941185,2990.2708414874105,148,0,0,0,0,148,1129216.7874773364,8651.306133081529,5661.0352915941185,2990.2708414874105]
[149,1126211.5652816414,8651.306133081529,5646.0839373866811,3005.2221956948479,149,0,0,0,0,149,1126211.5652816414,8651.306133081529,5646.0839373866811,3005.2221956948479]
[150,1123191.3169749682,8651.306133081529,5631.0578264082069,3020.2483066733221,150,0,0,0,0,150,1123191.3169749682,8651.306133081529,5631.0578264082069,3020.2483066733221]
[151,1120155.9674267615,8651.306133081529,5615.9565848748416,3035.3495482066874,151,0,0,0,0,151,1120155.9674267615,8651.306133081529,5615.9565848748416,3035.3495482066874]
[152,1117105.4411308139,8651.306133081529,5600.7798371338076,3050.5262959477213,152,0,0,0,0,152,1117105.4411308139,8651.306133081529,5600.7798371338076,3050.5262959477213]
[153,1114039.6622033864,8651.306133081529,5585.5272056540698,3065.7789274274592,153,0,0,0,0,153,1114039.6622033864,8651.306133081529,5585.5272056540698,3065.7789274274592]
[154,1110958.5543813219,8651.306133081529,5570.1983110169322,3081.1078220645968,154,0,0,0,0,154,1110958.5543813219,8651.306133081529,5570.1983110169322,3081.1078220645968]
[155,1107862.041020147,8651.306133081529,5554.7927719066092,3096.5133611749197,155,0,0,0,0,155,1107862.041020147,8651.306133081529,5554.7927719066092,3096.5133611749197]
[156,1104750.0450921662,8651.306133081529,5539.3102051007345,3111.9959279807945,156,0,0,0,0,156,1104750.0450921662,8651.306133081529,5539.3102051007345,3111.9959279807945]
[157,1101622.4891845456,8651.306133081529,5523.7502254608307,3127.5559076206982,157,0,0,0,0,157,1101622.4891845456,8651.306133081529,5523.7502254608307,3127.5559076206982]
[158,1098479.2954973867,8651.306133081529,5508.1124459227276,3143.1936871588014,158,0,0,0,0,158,1098479.2954973867,8651.306133081529,5508.1124459227276,3143.1936871588014]
[159,1095320.3858417922,8651.306133081529,5492.3964774869337,3158.9096555945953,159,0,0,0,0,159,1095320.3858417922,8651.306133081529,5492.3964774869337,3158.9096555945953]
[160,1092145.6816379197,8651.306133081529,5476.6019292089613,3174.7042038725676,160,0,0,0,0,160,1092145.6816379197,8651.306133081529,5476.6019292089613,3174.7042038725676]
[161,1088955.1039130278,8651.306133081529,5460.7284081895987,3190.5777248919303,161,0,0,0,0,161,1088955.1039130278,8651.306133081529,5460.7284081895987,3190.5777248919303]
[162,1085748.5732995113,8651.306133081529,5444.7755195651389,3206.5306135163901,162,0,0,0,0,162,1085748.5732995113,8651.306133081529,5444.7755195651389,3206.5306135163901]
[163,1082526.0100329274,8651.306133081529,5428.7428664975569,3222.5632665839721,163,0,0,0,0,163,1082526.0100329274,8651.306133081529,5428.7428664975569,3222.5632665839721]
[164,1079287.3339500106,8651.306133081529,5412.6300501646365,3238.6760829168925,164,0,0,0,0,164,1079287.3339500106,8651.306133081529,5412.6300501646365,3238.6760829168925]
[165,1076032.4644866791,8651.306133081529,5396.4366697500527,3254.8694633314763,165,0,0,0,0,165,1076032.4644866791,8651.306133081529,5396.4366697500527,3254.8694633314763]
[166,1072761.3206760308,8651.306133081529,5380.1623224333953,3271.1438106481337,166,0,0,0,0,166,1072761.3206760308,8651.306133081529,5380.1623224333953,3271.1438106481337]
[167,1069473.8211463294,8651.306133081529,5363.8066033801542,3287.4995297013747,167,0,0,0,0,167,1069473.8211463294,8651.306133081529,5363.8066033801542,3287.4995297013747]
[168,1066169.8841189796,8651.306133081529,5347.3691057316473,3303.9370273498816,168,0,0,0,0,168,1066169.8841189796,8651.306133081529,5347.3691057316473,3303.9370273498816]
[169,1062849.4274064929,8651.306133081529,5330.8494205948982,3320.4567124866307,169,0,0,0,0,169,1062849.4274064929,8651.306133081529,5330.8494205948982,3320.4567124866307]
[170,1059512.3684104439,8651.306133081529,5314.2471370324647,3337.0589960490643,170,0,0,0,0,170,1059512.3684104439,8651.306133081529,5314.2471370324647,3337.0589960490643]
[171,1056158.6241194145,8651.306133081529,5297.5618420522196,3353.7442910293094,171,0,0,0,0,171,1056158.6241194145,8651.306133081529,5297.5618420522196,3353.7442910293094]
[172,1052788.1111069301,8651.306133081529,5280.7931205970717,3370.5130124844572,172,0,0,0,0,172,1052788.1111069301,8651.306133081529,5280.7931205970717,3370.5130124844572]
[173,1049400.7455293832,8651.306133081529,5263.9405555346502,3387.3655775468787,173,0,0,0,0,173,1049400.7455293832,8651.306133081529,5263.9405555346502,3387.3655775468787]
[174,1045996.4431239485,8651.306133081529,5247.0037276469156,3404.3024054346133,174,0,0,0,0,174,1045996.4431239485,8651.306133081529,5247.0037276469156,3404.3024054346133]
[175,1042575.1192064867,8651.306133081529,5229.9822156197424,3421.3239174617866,175,0,0,0,0,175,1042575.1192064867,8651.306133081529,5229.9822156197424,3421.3239174617866]
[176,1039136.6886694377,8651.306133081529,5212.8755960324334,3438.4305370490956,176,0,0,0,0,176,1039136.6886694377,8651.306133081529,5212.8755960324334,3438.4305370490956]
[177,1035681.0659797033,8651.306133081529,5195.6834433471877,3455.6226897343413,177,0,0,0,0,177,1035681.0659797033,8651.306133081529,5195.6834433471877,3455.6226897343413]
[178,1032208.1651765204,8651.306133081529,5178.4053298985164,3472.9008031830126,178,0,0,0,0,178,1032208.1651765204,8651.306133081529,5178.4053298985164,3472.9008031830126]
[179,1028717.8998693214,8651.306133081529,5161.0408258826019,3490.2653071989271,179,0,0,0,0,179,1028717.8998693214,8651.306133081529,5161.0408258826019,3490.2653071989271]
[180,1025210.1832355865,8651.306133081529,5143.5894993466072,3507.7166337349217,180,0,0,0,0,180,1025210.1832355865,8651.306133081529,5143.5894993466072,3507.7166337349217]
[181,1021684.9280186829,8651.306133081529,5126.0509161779328,3525.2552169035962,181,0,0,0,0,181,1021684.9280186829,8651.306133081529,5126.0509161779328,3525.2552169035962]
[182,1018142.0465256948,8651.306133081529,5108.4246400934144,3542.8814929881146,182,0,0,0,0,182,1018142.0465256948,8651.306133081529,5108.4246400934144,3542.8814929881146]
[183,1014581.4506252417,8651.306133081529,5090.7102326284739,3560.595900453055,183,0,0,0,0,183,1014581.4506252417,8651.306133081529,5090.7102326284739,3560.595900453055]
[184,1011003.0517452864,8651.306133081529,5072.9072531262091,3578.3988799553199,184,0,0,0,0,184,1011003.0517452864,8651.306133081529,5072.9072531262091,3578.3988799553199]
[185,1007406.7608709313,8651.306133081529,5055.015258726432,3596.290874355097,185,0,0,0,0,185,1007406.7608709313,8651.306133081529,5055.015258726432,3596.290874355097]
[186,1003792.4885422045,8651.306133081529,5037.0338043546562,3614.2723287268727,186,0,0,0,0,186,1003792.4885422045,8651.306133081529,5037.0338043546562,3614.2723287268727]
[187,1000160.1448518339,8651.306133081529,5018.962442711022,3632.3436903705069,187,0,0,0,0,187,1000160.1448518339,8651.306133081529,5018.962442711022,3632.3436903705069]
[188,996509.63944301161,8651.306133081529,5000.8007242591693,3650.5054088223596,188,0,0,0,0,188,996509.63944301161,8651.306133081529,5000.8007242591693,3650.5054088223596]
[189,992840.88150714512,8651.306133081529,4982.5481972150583,3668.7579358664707,189,0,0,0,0,189,992840.88150714512,8651.306133081529,4982.5481972150583,3668.7579358664707]
[190,989153.7797815993,8651.306133081529,4964.2044075357253,3687.1017255458037,190,0,0,0,0,190,989153.7797815993,8651.306133081529,4964.2044075357253,3687.1017255458037]
[191,985448.24254742579,8651.306133081529,4945.7688989079961,3705.5372341735329,191,0,0,0,0,191,985448.24254742579,8651.306133081529,4945.7688989079961,3705.5372341735329]
[192,981724.1776270814,8651.306133081529,4927.241212737129,3724.0649203444,192,0,0,0,0,192,981724.1776270814,8651.306133081529,4927.241212737129,{"$f":"J368+E368","v":3724.0649203444}]
[193,{"$f":"B368-E369","v":977981.49238213524},{"$f":"-$E$90/12","v":8651.306133081529},4908.6208881354069,{"$f":"C369-D369","v":3742.6852449461221},193,{"$f":"G368-J369","v":0},{"$f":"-$E$96/12","v":0},{"$f":"G368*$E$94/12","v":0},{"$f":"H369-I369","v":0},193,{"$f":"G369+B369","v":977981.49238213524},8651.306133081529,4908.6208881354069,3742.6852449461221]
[{"$f":"A369+1","v":194},974220.09371096443,8651.306133081529,4889.9074619106759,3761.398671170853,{"$f":"F369+1","v":194},0,0,0,0,{"$f":"K369+1","v":194},974220.09371096443,8651.306133081529,4889.9074619106759,3761.398671170853]
[195,970439.88804643776,8651.306133081529,4871.1004685548223,3780.2056645267066,195,0,0,0,0,195,970439.88804643776,8651.306133081529,4871.1004685548223,3780.2056645267066]
[196,966640.78135358845,8651.306133081529,{"$f":"B371*$E$88/12","v":4852.1994402321889},3799.1066928493401,196,0,0,0,0,196,966640.78135358845,8651.306133081529,4852.1994402321889,3799.1066928493401]
[197,962822.6791272749,8651.306133081529,4833.2039067679425,3818.1022263135865,197,0,0,0,0,197,962822.6791272749,8651.306133081529,4833.2039067679425,3818.1022263135865]
[198,958985.48638982978,8651.306133081529,4814.1133956363747,3837.1927374451543,198,0,0,0,0,198,958985.48638982978,8651.306133081529,4814.1133956363747,3837.1927374451543]
[199,955129.1076886974,8651.306133081529,4794.9274319491487,3856.3787011323802,199,0,0,0,0,199,955129.1076886974,8651.306133081529,4794.9274319491487,3856.3787011323802]
[200,951253.44709405932,8651.306133081529,4775.6455384434867,3875.6605946380423,200,0,0,0,0,200,951253.44709405932,8651.306133081529,4775.6455384434867,3875.6605946380423]
[201,947358.40819644812,8651.306133081529,4756.2672354702963,3895.0388976112326,201,0,0,0,0,201,947358.40819644812,8651.306133081529,4756.2672354702963,3895.0388976112326]
[202,943443.89410434884,8651.306133081529,4736.7920409822409,3914.5140920992881,202,0,0,0,0,202,943443.89410434884,8651.306133081529,4736.7920409822409,3914.5140920992881]
[203,939509.80744178907,8651.306133081529,4717.2194705217435,3934.0866625597855,203,0,0,0,0,203,939509.80744178907,8651.306133081529,4717.2194705217435,3934.0866625597855]
[204,935556.05034591653,8651.306133081529,4697.5490372089453,3953.7570958725837,204,0,0,0,0,204,935556.05034591653,8651.306133081529,4697.5490372089453,3953.7570958725837]
[205,931582.52446456463,8651.306133081529,4677.7802517295822,3973.5258813519467,205,0,0,0,0,205,931582.52446456463,8651.306133081529,4677.7802517295822,3973.5258813519467]
[206,927589.13095380587,8651.306133081529,4657.9126223228232,3993.3935107587058,206,0,0,0,0,206,927589.13095380587,8651.306133081529,4657.9126223228232,3993.3935107587058]
[207,923575.77047549339,8651.306133081529,4637.9456547690288,4013.3604783125002,207,0,0,0,0,207,923575.77047549339,8651.306133081529,4637.9456547690288,4013.3604783125002]
[208,919542.34319478937,8651.306133081529,4617.8788523774665,4033.4272807040625,208,0,0,0,0,208,919542.34319478937,8651.306133081529,4617.8788523774665,4033.4272807040625]
[209,915488.74877768173,8651.306133081529,4597.7117159739464,4053.5944171075826,209,0,0,0,0,209,915488.74877768173,8651.306133081529,4597.7117159739464,4053.5944171075826]
[210,911414.88638848858,8651.306133081529,4577.4437438884079,4073.8623891931211,210,0,0,0,0,210,911414.88638848858,8651.306133081529,4577.4437438884079,4073.8623891931211]
[211,907320.65468734945,8651.306133081529,4557.074431942443,4094.231701139086,211,0,0,0,0,211,907320.65468734945,8651.306133081529,4557.074431942443,4094.231701139086]
[212,903205.95182770467,8651.306133081529,4536.6032734367473,4114.7028596447817,212,0,0,0,0,212,903205.95182770467,8651.306133081529,4536.6032734367473,4114.7028596447817]
[213,899070.67545376171,8651.306133081529,4516.0297591385233,4135.2763739430056,213,0,0,0,0,213,899070.67545376171,8651.306133081529,4516.0297591385233,4135.2763739430056]
[214,894914.72269794904,8651.306133081529,4495.3533772688088,4155.9527558127202,214,0,0,0,0,214,894914.72269794904,8651.306133081529,4495.3533772688088,4155.9527558127202]
[215,890737.99017835723,8651.306133081529,4474.5736134897452,4176.7325195917838,215,0,0,0,0,215,890737.99017835723,8651.306133081529,4474.5736134897452,4176.7325195917838]
[216,886540.37399616744,8651.306133081529,4453.6899508917859,4197.6161821897431,216,0,0,0,0,216,886540.37399616744,8651.306133081529,4453.6899508917859,4197.6161821897431]
[217,882321.76973306679,8651.306133081529,4432.7018699808368,4218.6042631006922,217,0,0,0,0,217,882321.76973306679,8651.306133081529,4432.7018699808368,4218.6042631006922]
[218,878082.07244865061,8651.306133081529,4411.6088486653343,4239.6972844161946,218,0,0,0,0,218,878082.07244865061,8651.306133081529,4411.6088486653343,4239.6972844161946]
[219,873821.17667781236,8651.306133081529,4390.4103622432531,4260.8957708382759,219,0,0,0,0,219,873821.17667781236,8651.306133081529,4390.4103622432531,4260.8957708382759]
[220,869538.97642811993,8651.306133081529,4369.1058833890611,4282.2002496924679,220,0,0,0,0,220,869538.97642811993,8651.306133081529,4369.1058833890611,4282.2002496924679]
[221,865235.36517717899,8651.306133081529,4347.6948821405995,4303.6112509409295,221,0,0,0,0,221,865235.36517717899,8651.306133081529,4347.6948821405995,4303.6112509409295]
[222,860910.23586998333,8651.306133081529,4326.1768258858947,4325.1293071956343,222,0,0,0,0,222,860910.23586998333,8651.306133081529,4326.1768258858947,4325.1293071956343]
[223,856563.48091625166,8651.306133081529,4304.5511793499163,4346.7549537316127,223,0,0,0,0,223,856563.48091625166,8651.306133081529,4304.5511793499163,4346.7549537316127]
[224,852194.99218775134,8651.306133081529,4282.8174045812584,4368.4887285002706,224,0,0,0,0,224,852194.99218775134,8651.306133081529,4282.8174045812584,4368.4887285002706]
[225,847804.66101560858,8651.306133081529,4260.9749609387563,4390.3311721427726,225,0,0,0,0,225,847804.66101560858,8651.306133081529,4260.9749609387563,4390.3311721427726]
[226,843392.37818760506,8651.306133081529,4239.0233050780425,4412.2828280034864,226,0,0,0,0,226,843392.37818760506,8651.306133081529,4239.0233050780425,4412.2828280034864]
[227,838958.0339454615,8651.306133081529,4216.9618909380251,4434.3442421435038,227,0,0,0,0,227,838958.0339454615,8651.306133081529,4216.9618909380251,4434.3442421435038]
[228,834501.51798210724,8651.306133081529,4194.7901697273073,4456.5159633542216,228,0,0,0,0,228,834501.51798210724,8651.306133081529,4194.7901697273073,4456.5159633542216]
[229,830022.71943893621,8651.306133081529,4172.5075899105359,4478.7985431709931,229,0,0,0,0,229,830022.71943893621,8651.306133081529,4172.5075899105359,4478.7985431709931]
[230,825521.52690304932,8651.306133081529,4150.1135971946815,4501.1925358868475,230,0,0,0,0,230,825521.52690304932,8651.306133081529,4150.1135971946815,4501.1925358868475]
[231,820997.82840448304,8651.306133081529,4127.607634515246,4523.698498566283,231,0,0,0,0,231,820997.82840448304,8651.306133081529,4127.607634515246,4523.698498566283]
[232,816451.51141342393,8651.306133081529,4104.9891420224149,4546.3169910591141,232,0,0,0,0,232,816451.51141342393,8651.306133081529,4104.9891420224149,4546.3169910591141]
[233,811882.46283740946,8651.306133081529,4082.2575570671197,4569.0485760144093,233,0,0,0,0,233,811882.46283740946,8651.306133081529,4082.2575570671197,4569.0485760144093]
[234,807290.56901851494,8651.306133081529,4059.4123141870473,4591.8938188944812,234,0,0,0,0,234,807290.56901851494,8651.306133081529,4059.4123141870473,4591.8938188944812]
[235,802675.71573052602,8651.306133081529,4036.452845092575,4614.8532879889535,235,0,0,0,0,235,802675.71573052602,8651.306133081529,4036.452845092575,4614.8532879889535]
[236,798037.78817609709,8651.306133081529,4013.37857865263,4637.9275544288994,236,0,0,0,0,236,798037.78817609709,8651.306133081529,4013.37857865263,4637.9275544288994]
[237,793376.67098389601,8651.306133081529,3990.1889408804855,4661.1171922010435,237,0,0,0,0,237,793376.67098389601,8651.306133081529,3990.1889408804855,4661.1171922010435]
[238,788692.24820573395,8651.306133081529,3966.8833549194801,4684.4227781620484,238,0,0,0,0,238,788692.24820573395,8651.306133081529,3966.8833549194801,4684.4227781620484]
[239,783984.40331368113,8651.306133081529,3943.4612410286695,4707.844892052859,239,0,0,0,0,239,783984.40331368113,8651.306133081529,3943.4612410286695,4707.844892052859]
[240,779253.01919716806,8651.306133081529,3919.9220165684055,4731.3841165131234,240,0,0,0,0,240,779253.01919716806,8651.306133081529,3919.9220165684055,4731.3841165131234]
[241,774497.97816007235,8651.306133081529,3896.2650959858402,4755.0410370956888,241,0,0,0,0,241,774497.97816007235,8651.306133081529,3896.2650959858402,4755.0410370956888]
[242,769719.16191779124,8651.306133081529,3872.4898908003615,4778.8162422811674,242,0,0,0,0,242,769719.16191779124,8651.306133081529,3872.4898908003615,4778.8162422811674]
[243,764916.45159429871,8651.306133081529,3848.5958095889559,4802.7103234925726,243,0,0,0,0,243,764916.45159429871,8651.306133081529,3848.5958095889559,4802.7103234925726]
[244,760089.72771918867,8651.306133081529,3824.5822579714932,4826.7238751100358,244,0,0,0,0,244,760089.72771918867,8651.306133081529,3824.5822579714932,4826.7238751100358]
[245,755238.8702247031,8651.306133081529,3800.4486385959431,4850.8574944855864,245,0,0,0,0,245,755238.8702247031,8651.306133081529,3800.4486385959431,4850.8574944855864]
[246,750363.75844274508,8651.306133081529,3776.1943511235154,4875.111781958014,246,0,0,0,0,246,750363.75844274508,8651.306133081529,3776.1943511235154,4875.111781958014]
[247,745464.27110187733,8651.306133081529,3751.8187922137254,4899.4873408678031,247,0,0,0,0,247,745464.27110187733,8651.306133081529,3751.8187922137254,4899.4873408678031]
[248,740540.28632430523,8651.306133081529,3727.3213555093862,4923.9847775721428,248,0,0,0,0,248,740540.28632430523,8651.306133081529,3727.3213555093862,4923.9847775721428]
[249,735591.68162284524,8651.306133081529,3702.7014316215259,4948.6047014600026,249,0,0,0,0,249,735591.68162284524,8651.306133081529,3702.7014316215259,4948.6047014600026]
[250,730618.33389787795,8651.306133081529,3677.9584081142261,4973.3477249673033,250,0,0,0,0,250,730618.33389787795,8651.306133081529,3677.9584081142261,4973.3477249673033]
[251,725620.11943428579,8651.306133081529,3653.0916694893895,4998.2144635921395,251,0,0,0,0,251,725620.11943428579,8651.306133081529,3653.0916694893895,4998.2144635921395]
[252,720596.9138983757,8651.306133081529,3628.1005971714289,5023.2055359100996,252,0,0,0,0,252,720596.9138983757,8651.306133081529,3628.1005971714289,5023.2055359100996]
[253,715548.59233478608,8651.306133081529,3602.9845694918786,5048.3215635896504,253,0,0,0,0,253,715548.59233478608,8651.306133081529,3602.9845694918786,5048.3215635896504]
[254,710475.02916337852,8651.306133081529,3577.74296167393,5073.5631714075989,254,0,0,0,0,254,710475.02916337852,8651.306133081529,3577.74296167393,5073.5631714075989]
[255,705376.09817611391,8651.306133081529,3552.3751458168922,5098.9309872646372,255,0,0,0,0,255,705376.09817611391,8651.306133081529,3552.3751458168922,5098.9309872646372]
[256,700251.67253391293,8651.306133081529,3526.8804908805691,5124.4256422009603,256,0,0,0,0,256,700251.67253391293,8651.306133081529,3526.8804908805691,5124.4256422009603]
[257,{"$f":"B432-E433","v":695101.62476350099},{"$f":"-$E$90/12","v":8651.306133081529},3501.2583626695646,{"$f":"C433-D433","v":5150.0477704119639},257,{"$f":"G432-J433","v":0},{"$f":"-$E$96/12","v":0},{"$f":"G432*$E$94/12","v":0},{"$f":"H433-I433","v":0},257,{"$f":"G433+B433","v":695101.62476350099},8651.306133081529,3501.2583626695646,5150.0477704119639]
[{"$f":"A433+1","v":258},689925.82675423694,8651.306133081529,3475.5081238175048,5175.7980092640246,{"$f":"F433+1","v":258},0,0,0,0,{"$f":"K433+1","v":258},689925.82675423694,8651.306133081529,3475.5081238175048,5175.7980092640246]
[259,684724.14975492656,8651.306133081529,3449.6291337711846,5201.6769993103444,259,0,0,0,0,259,684724.14975492656,8651.306133081529,3449.6291337711846,5201.6769993103444]
[260,679496.46437061962,8651.306133081529,{"$f":"B435*$E$88/12","v":3423.6207487746328},5227.6853843068966,260,0,0,0,0,260,679496.46437061962,8651.306133081529,3423.6207487746328,5227.6853843068966]
[261,674242.64055939124,8651.306133081529,3397.4823218530983,5253.8238112284307,261,0,0,0,0,261,674242.64055939124,8651.306133081529,3397.4823218530983,5253.8238112284307]
[262,668962.54762910667,8651.306133081529,3371.213202796956,5280.0929302845725,262,0,0,0,0,262,668962.54762910667,8651.306133081529,3371.213202796956,5280.0929302845725]
[263,663656.0542341707,8651.306133081529,3344.8127381455329,5306.4933949359965,263,0,0,0,0,263,663656.0542341707,8651.306133081529,3344.8127381455329,5306.4933949359965]
[264,658323.02837226004,8651.306133081529,3318.2802711708537,5333.0258619106753,264,0,0,0,0,264,658323.02837226004,8651.306133081529,3318.2802711708537,5333.0258619106753]
[265,652963.33738103986,8651.306133081529,3291.6151418613003,5359.6909912202282,265,0,0,0,0,265,652963.33738103986,8651.306133081529,3291.6151418613003,5359.6909912202282]
[266,647576.84793486353,8651.306133081529,3264.8166869051988,5386.4894461763306,266,0,0,0,0,266,647576.84793486353,8651.306133081529,3264.8166869051988,5386.4894461763306]
[267,642163.42604145629,8651.306133081529,3237.8842396743171,5413.4218934072123,267,0,0,0,0,267,642163.42604145629,8651.306133081529,3237.8842396743171,5413.4218934072123]
[268,636722.93703858205,8651.306133081529,3210.817130207281,5440.4890028742484,268,0,0,0,0,268,636722.93703858205,8651.306133081529,3210.817130207281,5440.4890028742484]
[269,631255.24559069343,8651.306133081529,3183.6146851929102,5467.6914478886192,269,0,0,0,0,269,631255.24559069343,8651.306133081529,3183.6146851929102,5467.6914478886192]
[270,625760.21568556537,8651.306133081529,3156.2762279534672,5495.0299051280617,270,0,0,0,0,270,625760.21568556537,8651.306133081529,3156.2762279534672,5495.0299051280617]
[271,620237.71063091164,8651.306133081529,3128.8010784278267,5522.5050546537022,271,0,0,0,0,271,620237.71063091164,8651.306133081529,3128.8010784278267,5522.5050546537022]
[272,614687.59305098467,8651.306133081529,3101.1885531545581,5550.1175799269713,272,0,0,0,0,272,614687.59305098467,8651.306133081529,3101.1885531545581,5550.1175799269713]
[273,609109.72488315811,8651.306133081529,3073.4379652549233,5577.8681678266057,273,0,0,0,0,273,609109.72488315811,8651.306133081529,3073.4379652549233,5577.8681678266057]
[274,603503.96737449232,8651.306133081529,3045.5486244157905,5605.757508665738,274,0,0,0,0,274,603503.96737449232,8651.306133081529,3045.5486244157905,5605.757508665738]
[275,597870.18107828323,8651.306133081529,3017.5198368724614,5633.7862962090676,275,0,0,0,0,275,597870.18107828323,8651.306133081529,3017.5198368724614,5633.7862962090676]
[276,592208.22585059307,8651.306133081529,2989.3509053914163,5661.9552276901122,276,0,0,0,0,276,592208.22585059307,8651.306133081529,2989.3509053914163,5661.9552276901122]
[277,586517.9608467645,8651.306133081529,2961.0411292529648,5690.2650038285647,277,0,0,0,0,277,586517.9608467645,8651.306133081529,2961.0411292529648,5690.2650038285647]
[278,580799.24451791681,8651.306133081529,2932.5898042338226,5718.7163288477059,278,0,0,0,0,278,580799.24451791681,8651.306133081529,2932.5898042338226,5718.7163288477059]
[279,575051.93460742489,8651.306133081529,2903.9962225895838,5747.3099104919456,279,0,0,0,0,279,575051.93460742489,8651.306133081529,2903.9962225895838,5747.3099104919456]
[280,569275.88814738044,8651.306133081529,2875.2596730371242,5776.0464600444047,280,0,0,0,0,280,569275.88814738044,8651.306133081529,2875.2596730371242,5776.0464600444047]
[281,563470.96145503584,8651.306133081529,2846.3794407369023,5804.9266923446266,281,0,0,0,0,281,563470.96145503584,8651.306133081529,2846.3794407369023,5804.9266923446266]
[282,557637.01012922951,8651.306133081529,2817.3548072751787,5833.9513258063507,282,0,0,0,0,282,557637.01012922951,8651.306133081529,2817.3548072751787,5833.9513258063507]
[283,551773.88904679415,8651.306133081529,2788.1850506461474,5863.121082435382,283,0,0,0,0,283,551773.88904679415,8651.306133081529,2788.1850506461474,5863.121082435382]
[284,545881.45235894655,8651.306133081529,2758.869445233971,5892.4366878475576,284,0,0,0,0,284,545881.45235894655,8651.306133081529,2758.869445233971,5892.4366878475576]
[285,539959.55348765978,8651.306133081529,2729.4072617947327,5921.8988712867958,285,0,0,0,0,285,539959.55348765978,8651.306133081529,2729.4072617947327,5921.8988712867958]
[286,534008.04512201657,8651.306133081529,2699.7977674382987,5951.5083656432307,286,0,0,0,0,286,534008.04512201657,8651.306133081529,2699.7977674382987,5951.5083656432307]
[287,528026.77921454515,8651.306133081529,2670.0402256100829,5981.2659074714466,287,0,0,0,0,287,528026.77921454515,8651.306133081529,2670.0402256100829,5981.2659074714466]
[288,522015.60697753634,8651.306133081529,2640.1338960727257,6011.1722370088028,288,0,0,0,0,288,522015.60697753634,8651.306133081529,2640.1338960727257,6011.1722370088028]
[289,515974.37887934252,8651.306133081529,2610.0780348876815,6041.2280981938475,289,0,0,0,0,289,515974.37887934252,8651.306133081529,2610.0780348876815,6041.2280981938475]
[290,509902.94464065769,8651.306133081529,2579.8718943967124,6071.4342386848166,290,0,0,0,0,290,509902.94464065769,8651.306133081529,2579.8718943967124,6071.4342386848166]
[291,503801.15323077946,8651.306133081529,2549.5147232032882,6101.7914098782403,291,0,0,0,0,291,503801.15323077946,8651.306133081529,2549.5147232032882,6101.7914098782403]
[292,497668.85286385182,8651.306133081529,2519.0057661538972,6132.3003669276313,292,0,0,0,0,292,497668.85286385182,8651.306133081529,2519.0057661538972,6132.3003669276313]
[293,491505.89099508955,8651.306133081529,2488.3442643192589,6162.9618687622697,293,0,0,0,0,293,491505.89099508955,8651.306133081529,2488.3442643192589,6162.9618687622697]
[294,485312.11431698344,8651.306133081529,2457.5294549754476,6193.7766781060818,294,0,0,0,0,294,485312.11431698344,8651.306133081529,2457.5294549754476,6193.7766781060818]
[295,479087.36875548685,8651.306133081529,2426.5605715849174,6224.7455614966111,295,0,0,0,0,295,479087.36875548685,8651.306133081529,2426.5605715849174,6224.7455614966111]
[296,472831.49946618278,8651.306133081529,2395.4368437774342,6255.8692893040952,296,0,0,0,0,296,472831.49946618278,8651.306133081529,2395.4368437774342,6255.8692893040952]
[297,466544.35083043214,8651.306133081529,2364.1574973309139,6287.1486357506146,297,0,0,0,0,297,466544.35083043214,8651.306133081529,2364.1574973309139,6287.1486357506146]
[298,460225.7664515028,8651.306133081529,2332.7217541521609,6318.5843789293685,298,0,0,0,0,298,460225.7664515028,8651.306133081529,2332.7217541521609,6318.5843789293685]
[299,453875.58915067877,8651.306133081529,2301.1288322575142,6350.1773008240143,299,0,0,0,0,299,453875.58915067877,8651.306133081529,2301.1288322575142,6350.1773008240143]
[300,447493.66096335062,8651.306133081529,2269.3779457533938,6381.9281873281352,300,0,0,0,0,300,447493.66096335062,8651.306133081529,2269.3779457533938,6381.9281873281352]
[301,441079.82313508587,8651.306133081529,2237.4683048167531,6413.8378282647755,301,0,0,0,0,301,441079.82313508587,8651.306133081529,2237.4683048167531,6413.8378282647755]
[302,434633.91611767979,8651.306133081529,2205.3991156754291,6445.9070174060998,302,0,0,0,0,302,434633.91611767979,8651.306133081529,2205.3991156754291,6445.9070174060998]
[303,428155.77956518665,8651.306133081529,2173.1695805883987,6478.1365524931298,303,0,0,0,0,303,428155.77956518665,8651.306133081529,2173.1695805883987,6478.1365524931298]
[304,421645.25232993107,8651.306133081529,2140.7788978259332,6510.5272352555958,304,0,0,0,0,304,421645.25232993107,8651.306133081529,2140.7788978259332,6510.5272352555958]
[305,415102.1724584992,8651.306133081529,2108.226261649655,6543.0798714318735,305,0,0,0,0,305,415102.1724584992,8651.306133081529,2108.226261649655,6543.0798714318735]
[306,408526.3771877102,8651.306133081529,2075.5108622924959,6575.7952707890327,306,0,0,0,0,306,408526.3771877102,8651.306133081529,2075.5108622924959,6575.7952707890327]
[307,401917.70294056722,8651.306133081529,2042.631885938551,6608.6742471429779,307,0,0,0,0,307,401917.70294056722,8651.306133081529,2042.631885938551,6608.6742471429779]
[308,395275.98532218853,8651.306133081529,2009.5885147028359,6641.7176183786933,308,0,0,0,0,308,395275.98532218853,8651.306133081529,2009.5885147028359,6641.7176183786933]
[309,388601.05911571794,8651.306133081529,1976.3799266109427,6674.9262064705863,309,0,0,0,0,309,388601.05911571794,8651.306133081529,1976.3799266109427,6674.9262064705863]
[310,381892.75827821501,8651.306133081529,1943.0052955785895,6708.3008375029394,310,0,0,0,0,310,381892.75827821501,8651.306133081529,1943.0052955785895,6708.3008375029394]
[311,375150.91593652457,8651.306133081529,1909.4637913910749,6741.8423416904543,311,0,0,0,0,311,375150.91593652457,8651.306133081529,1909.4637913910749,6741.8423416904543]
[312,368375.36438312568,8651.306133081529,1875.7545796826228,6775.5515533989064,312,0,0,0,0,312,368375.36438312568,8651.306133081529,1875.7545796826228,6775.5515533989064]
[313,361565.9350719598,8651.306133081529,1841.8768219156282,6809.4293111659008,313,0,0,0,0,313,361565.9350719598,8651.306133081529,1841.8768219156282,6809.4293111659008]
[314,354722.45861423807,8651.306133081529,1807.8296753597988,6843.4764577217302,314,0,0,0,0,314,354722.45861423807,8651.306133081529,1807.8296753597988,6843.4764577217302]
[315,347844.76477422775,8651.306133081529,1773.6122930711902,6877.693840010339,315,0,0,0,0,315,347844.76477422775,8651.306133081529,1773.6122930711902,6877.693840010339]
[316,340932.68246501737,8651.306133081529,1739.2238238711386,6912.0823092103901,316,0,0,0,0,316,340932.68246501737,8651.306133081529,1739.2238238711386,6912.0823092103901]
[317,333986.0397442609,8651.306133081529,1704.6634123250867,6946.642720756442,317,0,0,0,0,317,333986.0397442609,8651.306133081529,1704.6634123250867,6946.642720756442]
[318,327004.6638099007,8651.306133081529,1669.9301987213046,6981.3759343602242,318,0,0,0,0,318,327004.6638099007,8651.306133081529,1669.9301987213046,6981.3759343602242]
[319,319988.38099586865,8651.306133081529,1635.0233190495035,7016.2828140320253,319,0,0,0,0,319,319988.38099586865,8651.306133081529,1635.0233190495035,7016.2828140320253]
[320,312937.01676776644,8651.306133081529,1599.9419049793432,7051.3642281021857,320,0,0,0,0,320,312937.01676776644,8651.306133081529,1599.9419049793432,{"$f":"J496+E496","v":7051.3642281021857}]
[321,{"$f":"B496-E497","v":305850.39571852377},{"$f":"-$E$90/12","v":8651.306133081529},1564.685083838832,{"$f":"C497-D497","v":7086.6210492426972},321,{"$f":"G496-J497","v":0},{"$f":"-$E$96/12","v":0},{"$f":"G496*$E$94/12","v":0},{"$f":"H497-I497","v":0},321,{"$f":"G497+B497","v":305850.39571852377},8651.306133081529,1564.685083838832,7086.6210492426972]
[{"$f":"A497+1","v":322},298728.34156403487,8651.306133081529,1529.2519785926188,7122.0541544889102,{"$f":"F497+1","v":322},0,0,0,0,{"$f":"K497+1","v":322},298728.34156403487,8651.306133081529,1529.2519785926188,7122.0541544889102]
[323,291570.67713877349,8651.306133081529,1493.6417078201741,7157.6644252613551,323,0,0,0,0,323,291570.67713877349,8651.306133081529,1493.6417078201741,7157.6644252613551]
[324,284377.22439138585,8651.306133081529,{"$f":"B499*$E$88/12","v":1457.8533856938675},7193.4527473876615,324,0,0,0,0,324,284377.22439138585,8651.306133081529,1457.8533856938675,7193.4527473876615]
[325,277147.80438026128,8651.306133081529,1421.8861219569292,7229.4200111246,325,0,0,0,0,325,277147.80438026128,8651.306133081529,1421.8861219569292,7229.4200111246]
[326,269882.23726908106,8651.306133081529,1385.7390219013062,7265.567111180223,326,0,0,0,0,326,269882.23726908106,8651.306133081529,1385.7390219013062,7265.567111180223]
[327,262580.34232234495,8651.306133081529,1349.4111863454052,7301.8949467361235,327,0,0,0,0,327,262580.34232234495,8651.306133081529,1349.4111863454052,7301.8949467361235]
[328,255241.93790087514,8651.306133081529,1312.9017116117247,7338.4044214698042,328,0,0,0,0,328,255241.93790087514,8651.306133081529,1312.9017116117247,7338.4044214698042]
[329,247866.841457298,8651.306133081529,1276.2096895043758,7375.096443577153,329,0,0,0,0,329,247866.841457298,8651.306133081529,1276.2096895043758,7375.096443577153]
[330,240454.86953150295,8651.306133081529,1239.33420728649,7411.9719257950392,330,0,0,0,0,330,240454.86953150295,8651.306133081529,1239.33420728649,7411.9719257950392]
[331,233005.83774607893,8651.306133081529,1202.2743476575147,7449.0317854240147,331,0,0,0,0,331,233005.83774607893,8651.306133081529,1202.2743476575147,7449.0317854240147]
[332,225519.56080172781,8651.306133081529,1165.0291887303945,7486.2769443511343,332,0,0,0,0,332,225519.56080172781,8651.306133081529,1165.0291887303945,7486.2769443511343]
[333,217995.85247265492,8651.306133081529,1127.5978040086391,7523.7083290728897,333,0,0,0,0,333,217995.85247265492,8651.306133081529,1127.5978040086391,7523.7083290728897]
[334,210434.52560193668,8651.306133081529,1089.9792623632745,7561.3268707182542,334,0,0,0,0,334,210434.52560193668,8651.306133081529,1089.9792623632745,7561.3268707182542]
[335,202835.39209686485,8651.306133081529,1052.1726280096834,7599.1335050718453,335,0,0,0,0,335,202835.39209686485,8651.306133081529,1052.1726280096834,7599.1335050718453]
[336,195198.26292426765,8651.306133081529,1014.1769604843242,7637.1291725972051,336,0,0,0,0,336,195198.26292426765,8651.306133081529,1014.1769604843242,7637.1291725972051]
[337,187522.94810580745,8651.306133081529,975.99131462133812,7675.3148184601905,337,0,0,0,0,337,187522.94810580745,8651.306133081529,975.99131462133812,7675.3148184601905]
[338,179809.25671325496,8651.306133081529,937.61474052903714,7713.6913925524914,338,0,0,0,0,338,179809.25671325496,8651.306133081529,937.61474052903714,7713.6913925524914]
[339,172056.99686373971,8651.306133081529,899.04628356627472,7752.2598495152542,339,0,0,0,0,339,172056.99686373971,8651.306133081529,899.04628356627472,7752.2598495152542]
[340,164265.97571497687,8651.306133081529,860.28498431869855,7791.0211487628303,340,0,0,0,0,340,164265.97571497687,8651.306133081529,860.28498431869855,7791.0211487628303]
[341,156435.99946047022,8651.306133081529,821.32987857488433,7829.9762545066442,341,0,0,0,0,341,156435.99946047022,8651.306133081529,821.32987857488433,7829.9762545066442]
[342,148566.87332469106,8651.306133081529,782.17999730235113,7869.1261357791782,342,0,0,0,0,342,148566.87332469106,8651.306133081529,782.17999730235113,7869.1261357791782]
[343,140658.40155823299,8651.306133081529,742.83436662345514,7908.4717664580739,343,0,0,0,0,343,140658.40155823299,8651.306133081529,742.83436662345514,7908.4717664580739]
[344,132710.38743294263,8651.306133081529,703.29200779116491,7948.0141252903641,344,0,0,0,0,344,132710.38743294263,8651.306133081529,703.29200779116491,7948.0141252903641]
[345,124722.63323702582,8651.306133081529,663.55193716471319,7987.7541959168157,345,0,0,0,0,345,124722.63323702582,8651.306133081529,663.55193716471319,7987.7541959168157]
[346,116694.94027012942,8651.306133081529,623.61316618512899,8027.6929668964003,346,0,0,0,0,346,116694.94027012942,8651.306133081529,623.61316618512899,8027.6929668964003]
[347,108627.10883839853,8651.306133081529,583.47470135064702,8067.8314317308823,347,0,0,0,0,347,108627.10883839853,8651.306133081529,583.47470135064702,8067.8314317308823]
[348,100518.938249509,8651.306133081529,543.13554419199261,8108.1705888895367,348,0,0,0,0,348,100518.938249509,8651.306133081529,543.13554419199261,8108.1705888895367]
[349,92370.226807675004,8651.306133081529,502.59469124754497,8148.7114418339843,349,0,0,0,0,349,92370.226807675004,8651.306133081529,502.59469124754497,8148.7114418339843]
[350,84180.771808631849,8651.306133081529,461.85113403837499,8189.4549990431542,350,0,0,0,0,350,84180.771808631849,8651.306133081529,461.85113403837499,8189.4549990431542]
[351,75950.369534593483,8651.306133081529,420.90385904315923,8230.4022740383698,351,0,0,0,0,351,75950.369534593483,8651.306133081529,420.90385904315923,8230.4022740383698]
[352,67678.815249184918,8651.306133081529,379.75184767296741,8271.5542854085616,352,0,0,0,0,352,67678.815249184918,8651.306133081529,379.75184767296741,8271.5542854085616]
[353,59365.903192349317,8651.306133081529,338.39407624592457,8312.9120568356047,353,0,0,0,0,353,59365.903192349317,8651.306133081529,338.39407624592457,8312.9120568356047]
[354,51011.426575229532,8651.306133081529,296.82951596174661,8354.4766171197825,354,0,0,0,0,354,51011.426575229532,8651.306133081529,296.82951596174661,8354.4766171197825]
[355,42615.17757502415,8651.306133081529,255.05713287614765,8396.2490002053819,355,0,0,0,0,355,42615.17757502415,8651.306133081529,255.05713287614765,8396.2490002053819]
[356,34176.94732981774,8651.306133081529,213.07588787512074,8438.2302452064087,356,0,0,0,0,356,34176.94732981774,8651.306133081529,213.07588787512074,8438.2302452064087]
[357,25696.525933385299,8651.306133081529,170.88473664908869,8480.4213964324408,357,0,0,0,0,357,25696.525933385299,8651.306133081529,170.88473664908869,8480.4213964324408]
[358,17173.702429970697,8651.306133081529,128.4826296669265,8522.8235034146019,358,0,0,0,0,358,17173.702429970697,8651.306133081529,128.4826296669265,8522.8235034146019]
[359,8608.2648090390212,8651.306133081529,85.868512149853487,8565.4376209316761,359,0,0,0,0,359,8608.2648090390212,8651.306133081529,85.868512149853487,8565.4376209316761]
[360,2.68664734903723E-9,8651.306133081529,43.041324045195104,8608.2648090363346,360,0,0,0,0,360,2.68664734903723E-9,8651.306133081529,43.041324045195104,8608.2648090363346]

{"sheet":"Office","index":10,"n_rows":533,"n_cols":30,"rows_kept":533,"cut":false,"hidden":false,"merged":[]}
["ROI Template - Office"]
[]
["Leveraging Tools",null,null,"Summary","User override ","TOTAL",null,"Investment Targets and Performance"]
["Tax Credits net to project",null,null,{"$f":"'Gap Financing Options'!F116","v":0},0,{"$f":"IF('Basic Financial'!$B$33=0,D4,0)","v":0},null,"Performance Indicator",null,null,null,"Target","Actual","NPV"]
["Fee Reductions",null,null,{"$f":"'Gap Financing Options'!F82","v":0},0,{"$f":"IF('Basic Financial'!$B$33=0,D5,0)","v":0},null,"Cash-on-Cash After Year 3",null,null,null,{"$f":"'Advanced Financial'!F64","v":0.1},{"$f":"G132","v":0}]
["Grants",null,null,{"$f":"'Gap Financing Options'!F92","v":0},0,{"$f":"IF('Basic Financial'!$B$33=0,D6,('Basic Financial'!$B$33*SUM('Development Costs'!E41,'Development Costs'!E43,'Development Costs'!E44)))","v":0},null,"IRR on Project Cost (Unleveraged Return)",null,null,null,{"$f":"'Advanced Financial'!F65","v":0.12},{"$f":"N146","v":0},{"$f":"N147","v":0}]
["Total Development Offsets (Contributions to Equity)",null,null,null,null,{"$f":"SUM(F4:F6)","v":0},null,"IRR on Investor Equity (Leveraged Return Before Tax)",null,null,null,{"$f":"'Advanced Financial'!F66","v":0.25},{"$f":"N154","v":0},{"$f":"N155","v":0}]
["Net Development Costs",null,null,null,null,{"$f":"(D56-F7)","v":0},null,"Debt Service Coverage Ratio (Year 3)",null,null,null,{"$f":"'Advanced Financial'!F67","v":1.25},{"$f":"IFERROR(G126/G128,0)","v":0}]
[null,null,null,null,null,null,null,"IRR on Public Participation",null,null,null,{"$f":"E110","v":0.05},{"$f":"N164","v":0},{"$f":"N165","v":0}]
[]
[]
[]
["Local Property Tax Rate Available for abatement",null,null,{"$f":"'Gap Financing Options'!F15","v":0}]
["Local Sales Tax Rate Available for abatement",null,null,{"$f":"'Gap Financing Options'!F31","v":0}]
[]
["Net Operating Income Analysis"]
["Total Development Costs",null,null,{"$f":"-SUM('Development Costs'!D41,'Development Costs'!D43:D44)","v":0}]
["Project Feature",null,null,"Project","Rent"]
["Total project size, square feet",null,null,{"$f":"SUM('Physical Outputs'!B30,'Physical Outputs'!B32:B33)","v":0},{"$f":"IFERROR((('Basic Financial'!B56*'Physical Outputs'!B30)+('Basic Financial'!B58*'Physical Outputs'!B32)+('Basic Financial'!B59*'Physical Outputs'!B33))/SUM('Physical Outputs'!B30,'Physical Outputs'!B32:B33),0)","v":0},"per square foot/year","summed sq ft from off, pub and edu; took weighted average rent for all 3 as well"]
["Other Income (vending, fines)",null,null,{"$f":"'Advanced Financial'!F77","v":0.1}]
["Less: Vacancy",null,null,{"$f":"1-'Advanced Financial'!C33","v":5.0000000000000044E-2}]
["Less: Concessions, Bad Debt",null,null,{"$f":"'Advanced Financial'!F78","v":0.02}]
["Less: Operating Costs/sq.ft.",null,null,{"$f":"IFERROR((('Advanced Financial'!F79*E60)/'Physical Outputs'!C30),0)","v":0}]
[]
["Initial Project Value Analysis"]
["Property Value (Year 1)"]
["Going in Cap Rate",null,null,{"$f":"'Advanced Financial'!F80","v":7.2999999999999995E-2}]
[]
["Debt Financing"]
["Primary Debt"]
["Maximum LTV",null,null,{"$f":"'Advanced Financial'!F87","v":0.6}]
["Rate",null,null,{"$f":"'Advanced Financial'!F88","v":0.04}]
["Amortization Period, Years",null,null,{"$f":"'Advanced Financial'!F89","v":30}]
["Public Leveraging Loan"]
["Maximum LTV",null,null,{"$f":"IF(D42=1,'Gap Financing Options'!F63,0)","v":0}]
["Rate",null,null,{"$f":"IF(D42=1,'Gap Financing Options'!F64,0)","v":0}]
["Amortization Period, Years",null,null,{"$f":"IF(D42=1,'Gap Financing Options'!F65,0)","v":0}]
["Public Participation"]
["Capital Investment",null,null,{"$f":"IF(D42=1,'Gap Financing Options'!F69,0)","v":0}]
["Annual Cash Throw Off",null,null,{"$f":"IF(D42=1,'Gap Financing Options'!F70,0)","v":0}]
["Share of Net Sales Price",null,null,{"$f":"IF(D42=1,'Gap Financing Options'!F71,0)","v":0}]
["Public Leveraging Loan Included in Analysis?(1=Yes; 0=No)",null,null,{"$f":"'Gap Financing Options'!F62","v":0}]
["Target IRR",null,null,{"$f":"'Advanced Financial'!F68","v":0.05}]
[]
["Operating Statement"]
["GPI",null,"Escalation",{"$f":"'Advanced Financial'!F81","v":0.03}]
["EGI"]
["Less: Operating Costs",null,"Escalation",{"$f":"'Advanced Financial'!F82","v":0.03}]
[]
["Project Value",null,null,"Year 1"]
["Terminal Cap Rate, Gross Sales Price",null,null,{"$f":"'Advanced Financial'!F83","v":7.2999999999999995E-2}]
["Net Sales = Price Less Sales Cost",null,null,{"$f":"'Advanced Financial'!F84","v":0.05}]
[]
[]
["Net Operating Income Analysis"]
["Total Development Costs",null,null,{"$f":"D17","v":0}]
["Development Costs Per Sq Ft",null,null,{"$f":"IFERROR(D56/D59,0)","v":0}]
["Project Feature",null,null,"Project","Rent"]
["Total project size, square feet",null,null,{"$f":"D19","v":0},{"$f":"E19","v":0},"per square foot/year"]
["Gross Potential Rent  (GPI)",null,null,null,{"$f":"D59*E59","v":0}]
["Other Income (vending, fines)",null,null,{"$f":"D20","v":0.1},{"$f":"D61*E60","v":0}]
["Total Income",null,null,null,{"$f":"E60+E61","v":0}]
["Less: Vacancy",null,null,{"$f":"D21","v":5.0000000000000044E-2},{"$f":"E62*D63","v":0}]
["Less: Concessions, Bad Debt",null,null,{"$f":"D22","v":0.02},{"$f":"E62*D64","v":0}]
["Effective Gross Income  (EGI)",null,null,null,{"$f":"E62-E63-E64","v":0}]
["Less: Operating Costs/sq.ft.",null,null,{"$f":"D23","v":0},{"$f":"D66*D59","v":0}]
["Net Operating Income",null,null,null,{"$f":"E65-E66","v":0}]
[]
["Initial Project Value Analysis"]
["CAP RATE (Yield to Costs)",null,null,{"$f":"IF(F8=0,0,E67/F8)","v":0}]
["Debt Service",null,null,{"$f":"IFERROR(-E97,0)","v":0}]
["Cash Flow",null,null,{"$f":"E67-D71","v":0}]
["Return on Equity (Year 1)",null,null,{"$f":"IF(E102=0,0,D72/E102)","v":0}]
["Property Value (Year 1)"]
["NOI",null,null,{"$f":"E67","v":0}]
["Going in Cap Rate",null,null,{"$f":"D27","v":7.2999999999999995E-2}]
["Project Market Value",null,null,{"$f":"IF(D76=0,0,D75/D76)","v":0}]
["Net Project Value",null,null,{"$f":"D77-D56","v":0}]
[]
[]
["Debt Financing"]
["Primary Debt"]
["Total Value",null,null,null,{"$f":"IF(D77>D56,D56,D77)","v":0}]
["Maximum LTV",null,null,{"$f":"D31","v":0.6},{"$f":"E83*D84","v":0}]
["Imputed Loan Amount",null,null,null,{"$f":"E84","v":0}]
["Rate",null,null,null,{"$f":"D32","v":0.04}]
["Amortization Period, Years",null,null,null,{"$f":"D33","v":30}]
["Annual Debt Service (Amortized)",null,null,null,{"$f":"IFERROR((PMT(E86/12,E87*12,E85)*12),0)","v":0}]
["Public Leveraging Loan"]
["Maximum LTV",null,null,{"$f":"IF(D42=1,D35,0)","v":0},{"$f":"IF(E83*D90>'Development Costs'!E41*'Gap Financing Options'!B73,'Development Costs'!E41*'Gap Financing Options'!B73,E83*D90)","v":0}]
["Imputed Loan Amount",null,null,null,{"$f":"IF(AND(D42=1,'Basic Financial'!B33=0),E90+'Gap Financing Options'!F68,0)","v":0}]
["Rate",null,null,null,{"$f":"IF(D42=1,D36,0)","v":0}]
["Amortization Period, Years",null,null,null,{"$f":"IF(D42=1,D37,0)","v":0}]
["Annual Debt Service (Amortized)",null,null,null,{"$f":"IFERROR((PMT(E92/12,E93*12,E91)*12),0)","v":0}]
[]
["Total Debt",null,null,null,{"$f":"E85+E91","v":0}]
["Total Debt Service",null,null,null,{"$f":"E88+E94","v":0}]
["Summary"]
["Total Development Costs",null,null,null,{"$f":"D56","v":0}]
["Equity Required",null,null,null,{"$f":"IF(E99-E96<0,1,E99-E96)","v":0}]
["Total Development Offsets (Contributions to Equity)",null,null,null,{"$f":"F7","v":0}]
["Net Equity Required",null,null,null,{"$f":"E100-E101","v":0}]
["Total Project Cost",null,null,null,{"$f":"E99","v":0}]
["Total Project Cost After Development Offsets",null,null,null,{"$f":"E103-E101","v":0}]
["Public Participation"]
["Capital Investment",null,null,null,{"$f":"D39","v":0}]
["Annual Cash Throw Off",null,null,null,{"$f":"D40","v":0}]
["Share of Net Sales Price",null,null,null,{"$f":"D41","v":0}]
["Public Leveraging Loan Included in Analysis? ",null,null,"(1=Yes; 0=No)",{"$f":"D42","v":0}]
["Target IRR",null,null,null,{"$f":"D43","v":0.05}]
[]
[]
["Operating Statement",null,null,null,"Year 1","Year 2","Year 3","Year 4","Year 5","Year 6","Year 7","Year 8","Year 9","Year 10"]
["GPI",null,"Escalation",{"$f":"D46","v":0.03},{"$f":"E60","v":0},{"$f":"E114*(1+$D$114)","v":0},0,0,0,0,0,0,0,0]
["Other Income",null,null,null,{"$f":"E61","v":0},0,0,0,0,0,0,0,0,0]
["Total Income",null,null,null,{"$f":"E114+E115","v":0},0,0,0,0,0,0,0,0,0]
["Less: Vacancy",null,null,{"$f":"D63","v":5.0000000000000044E-2},{"$f":"IF('Advanced Financial'!B33>0,(1-'Advanced Financial'!B33)*E116,$D$117*E116)","v":0},{"$f":"$D$117*F116","v":0},0,0,0,0,0,0,0,0]
["Less: Concessions, Market Loss",null,null,{"$f":"D64","v":0.02},{"$f":"$D$118*E116","v":0},0,0,0,0,0,0,0,0,0]
["EGI",null,null,null,{"$f":"E116-E117-E118","v":0},0,0,0,0,0,0,0,0,0]
["Less: Operating Costs",null,"Escalation",{"$f":"D48","v":0.03},{"$f":"E66","v":0},{"$f":"E120*(1+$D$120)","v":0},0,0,0,0,0,0,0,0]
["Less: Property Taxes",null,"Millage Rate",{"$f":"'Advanced Financial'!F60","v":0.01},{"$f":"$F8*$D121*'Advanced Financial'!$F60","v":0},{"$f":"$F8*$D121*'Advanced Financial'!$F60*(1+$D$114)","v":0},{"$f":"$F8*$D121*'Advanced Financial'!$F60*(1+$D$114)^2","v":0},{"$f":"$F8*$D121*'Advanced Financial'!$F60*(1+$D$114)^3","v":0},{"$f":"$F8*$D121*'Advanced Financial'!$F60*(1+$D$114)^4","v":0},{"$f":"$F8*$D121*'Advanced Financial'!$F60*(1+$D$114)^5","v":0},{"$f":"$F8*$D121*'Advanced Financial'!$F60*(1+$D$114)^6","v":0},{"$f":"$F8*$D121*'Advanced Financial'!$F60*(1+$D$114)^7","v":0},{"$f":"$F8*$D121*'Advanced Financial'!$F60*(1+$D$114)^8","v":0},{"$f":"$F8*$D121*'Advanced Financial'!$F60*(1+$D$114)^9","v":0}]
["Plus: Property Tax Abatement",null,null,null,{"$f":"$D$13*'Advanced Financial'!$F61*$F8*'Gap Financing Options'!F17","v":0},{"$f":"$D$13*'Advanced Financial'!$F61*$F8*(1+$D$114)*'Gap Financing Options'!F18","v":0},{"$f":"$D$13*'Advanced Financial'!$F61*$F8*(1+$D$114)^2*'Gap Financing Options'!F19","v":0},{"$f":"$D$13*'Advanced Financial'!$F61*$F8*(1+$D$114)^3*'Gap Financing Options'!F20","v":0},{"$f":"$D$13*'Advanced Financial'!$F61*$F8*(1+$D$114)^4*'Gap Financing Options'!F21","v":0},{"$f":"$D$13*'Advanced Financial'!$F61*$F8*(1+$D$114)^5*'Gap Financing Options'!F22","v":0},{"$f":"$D$13*'Advanced Financial'!$F61*$F8*(1+$D$114)^6*'Gap Financing Options'!F23","v":0},{"$f":"$D$13*'Advanced Financial'!$F61*$F8*(1+$D$114)^7*'Gap Financing Options'!F24","v":0},{"$f":"$D$13*'Advanced Financial'!$F61*$F8*(1+$D$114)^8*'Gap Financing Options'!F25","v":0},{"$f":"$D$13*'Advanced Financial'!$F61*$F8*(1+$D$114)^9*'Gap Financing Options'!F26","v":0}]
["Plus Sales Tax Abatement",null,null,null,{"$f":"'Gap Financing Options'!F33*$D$14*E116","v":0},{"$f":"'Gap Financing Options'!F34*$D$14*F116","v":0},{"$f":"'Gap Financing Options'!F35*$D$14*G116","v":0},{"$f":"'Gap Financing Options'!F36*$D$14*H116","v":0},{"$f":"'Gap Financing Options'!F37*$D$14*I116","v":0},{"$f":"'Gap Financing Options'!F38*$D$14*J116","v":0},{"$f":"'Gap Financing Options'!F39*$D$14*K116","v":0},{"$f":"'Gap Financing Options'!F40*$D$14*L116","v":0},{"$f":"'Gap Financing Options'!F41*$D$14*M116","v":0},{"$f":"'Gap Financing Options'!F42*$D$14*N116","v":0}]
["Plus TIF + IRA Retainage of Taxes",null,null,null,{"$f":"'Gap Financing Options'!F48","v":0},{"$f":"'Gap Financing Options'!F49","v":0},{"$f":"'Gap Financing Options'!F50","v":0},{"$f":"'Gap Financing Options'!F51","v":0},{"$f":"'Gap Financing Options'!F52","v":0},{"$f":"'Gap Financing Options'!F53","v":0},{"$f":"'Gap Financing Options'!F54","v":0},{"$f":"'Gap Financing Options'!F55","v":0},{"$f":"'Gap Financing Options'!F56","v":0},{"$f":"'Gap Financing Options'!F57","v":0}]
["Cash Throw Off to Public Partner",null,null,null,{"$f":"-$E$107","v":0},0,0,0,0,0,0,0,0,0]
["NOI",null,null,null,{"$f":"E119-Industrial!E121-E120+Industrial!E122+E123+E124+E125","v":0},{"$f":"F119-Industrial!F121-F120+Industrial!F122+F123+F124+F125","v":0},{"$f":"G119-Industrial!G121-G120+Industrial!G122+G123+G124+G125","v":0},{"$f":"H119-Industrial!H121-H120+Industrial!H122+H123+H124+H125","v":0},{"$f":"I119-Industrial!I121-I120+Industrial!I122+I123+I124+I125","v":0},{"$f":"J119-Industrial!J121-J120+Industrial!J122+J123+J124+J125","v":0},{"$f":"K119-Industrial!K121-K120+Industrial!K122+K123+K124+K125","v":0},{"$f":"L119-Industrial!L121-L120+Industrial!L122+L123+L124+L125","v":0},{"$f":"M119-Industrial!M121-M120+Industrial!M122+M123+M124+M125","v":0},{"$f":"N119-Industrial!N121-N120+Industrial!N122+N123+N124+N125","v":0}]
[]
["Less: Debt Service",null,null,null,{"$f":"-$E$97","v":0},0,0,0,0,0,0,0,0,0]
["Net Cash Flow",null,null,null,{"$f":"E126-E128","v":0},0,0,0,0,0,0,0,0,0]
[]
["Cap Rate",null,null,null,{"$f":"IFERROR(E126/$E$99,0)","v":0},0,0,0,0,0,0,0,0,0]
["Cash on Cash Return (Equity Dividend Rate)",null,null,null,{"$f":"IFERROR(E129/$E$102,0)","v":0},{"$f":"IFERROR(F129/$E$102,0)","v":0},0,0,0,0,0,0,0,0]
[]
["Project Value",null,null,"Year 0","Year 1","Year 2","Year 3","Year 4","Year 5","Year 6","Year 7","Year 8","Year 9","Year 10"]
["Terminal Cap Rate, Gross Sales Price",null,null,null,{"$f":"D51","v":7.2999999999999995E-2},null,null,null,null,null,null,null,null,{"$f":"IFERROR(N126/E135,0)","v":0}]
["Net Sales = Price Less Sales Cost",null,null,null,{"$f":"D52","v":0.05},null,null,null,null,null,null,null,null,{"$f":"N135*(1-E136)","v":0}]
["Less Mortgage Balance",null,null,null,null,null,null,null,null,null,null,null,null,{"$f":"AA182","v":0}]
["Net Sales Proceeds",null,null,null,null,null,null,null,null,null,null,null,null,{"$f":"N136-N137","v":0}]
[]
[]
["IRR - Unleveraged (Project Cost)",null,null,"Year 0","Year 1","Year 2","Year 3","Year 4","Year 5","Year 6","Year 7","Year 8","Year 9","Year 10"]
["Total Investment",null,null,{"$f":"-E104","v":0}]
["Project NOI",null,null,null,{"$f":"E126","v":0},{"$f":"F126","v":0},0,0,0,0,0,0,0,0]
["Net Sales Price",null,null,null,null,null,null,null,null,null,null,null,null,{"$f":"N136","v":0}]
["Total",null,null,{"$f":"SUM(D142:D144)","v":0},{"$f":"SUM(E142:E144)","v":0},{"$f":"SUM(F142:F144)","v":0},0,0,0,0,0,0,0,0]
["IRR - Project Cost",null,null,null,null,null,null,null,null,null,null,null,null,{"$f":"IFERROR(IRR(D145:N145),0)","v":0}]
["NPV - Project Cost",null,null,null,null,null,null,null,null,null,null,null,null,{"$f":"NPV(L6,D145:N145)","v":0}]
[]
["IRR - Leveraged (Before Tax)",null,null,"Year 0","Year 1","Year 2","Year 3","Year 4","Year 5","Year 6","Year 7","Year 8","Year 9","Year 10"]
["Original Investment (Equity)",null,null,{"$f":"-E102","v":0}]
["Project Cash Flow",null,null,null,{"$f":"E129","v":0},0,0,0,0,0,0,0,0,0]
["Net Sales Proceeds",null,null,null,null,null,null,null,null,null,null,null,null,{"$f":"N138","v":0}]
["Total",null,null,{"$f":"SUM(D150:D152)","v":0},0,0,0,0,0,0,0,0,0,0]
["IRR - Equity",null,null,null,null,null,null,null,null,null,null,null,null,{"$f":"IFERROR(IRR(D153:N153),0)","v":0}]
["NPV - Equity",null,null,null,null,null,null,null,null,null,null,null,null,{"$f":"NPV(L7,D153:N153)","v":0}]
[]
["IRR - Public Participation",null,null,"Year 0","Year 1","Year 2","Year 3","Year 4","Year 5","Year 6","Year 7","Year 8","Year 9","Year 10"]
["Original Investment (Equity)",null,null,{"$f":"-(E106+(E91*E109))","v":0}]
["Mezzanine Financing",null,null,null,{"$f":"-$E$94","v":0},0,0,0,0,0,0,0,0,0]
["Cash Throw Off",null,null,null,{"$f":"$E$107","v":0},0,0,0,0,0,0,0,0,0]
["Sale Proceeds",null,null,null,null,null,null,null,null,null,null,null,null,{"$f":"N152*E108","v":0}]
["Loan Balance",null,null,null,null,null,null,null,null,null,null,null,null,{"$f":"V182*E109","v":0}]
["Total",null,null,{"$f":"SUM(D158:D162)","v":0},{"$f":"SUM(E158:E162)","v":0},0,0,0,0,0,0,0,0,0]
["IRR - Equity",null,null,null,null,null,null,null,null,null,null,null,null,{"$f":"IFERROR(IRR(D163:N163),0)","v":0}]
["NPV - Equity",null,null,null,null,null,null,null,null,null,null,null,null,{"$f":"NPV(E110,D163:N163)","v":0}]
[]
[]
[]
["DEBT SERVICE MORTIZATION TABLES"]
["Primary Debt Amortization",null,null,null,null,"Low Interest Loan",null,null,null,null,"Total Debt Amortization",null,null,null,null,"Annual Debt Service Summary - Primary Debt",null,null,null,null,"Annual Debt Service Summary - Secondary Debt",null,null,null,null,"Annual Debt Service Summary - Total Debt"]
[]
["Period","Balance","Payment","Interest","Principal","Period","Balance","Payment","Interest","Principal","Period","Balance","Payment","Interest","Principal","Year","Balance","Payment","Interest","Principal","Year","Balance","Payment","Interest","Principal","Year","Balance","Payment","Interest","Principal"]
[0,{"$f":"E85","v":0},null,null,null,0,{"$f":"E91","v":0},null,null,null,0,{"$f":"B173+G173","v":0},null,null,null,1,{"$f":"B185","v":0},{"$f":"SUM(C174:C185)","v":0},{"$f":"SUM(D174:D185)","v":0},{"$f":"SUM(E174:E185)","v":0},1,{"$f":"G185","v":0},{"$f":"SUM(H174:H185)","v":0},{"$f":"SUM(I174:I185)","v":0},{"$f":"SUM(J174:J185)","v":0},1,{"$f":"Q173+V173","v":0},{"$f":"R173+W173","v":0},0,{"$f":"T173+Y173","v":0}]
[1,{"$f":"B173-E174","v":0},{"$f":"-$E$88/12","v":0},{"$f":"B173*$E$86/12","v":0},{"$f":"C174-D174","v":0},1,{"$f":"G173-J174","v":0},{"$f":"-$E$94/12","v":0},{"$f":"G173*$E$92/12","v":0},{"$f":"H174-I174","v":0},1,{"$f":"G174+B174","v":0},0,0,0,2,{"$f":"B197","v":0},{"$f":"SUM(C186:C197)","v":0},{"$f":"SUM(D186:D197)","v":0},{"$f":"SUM(E186:E197)","v":0},2,{"$f":"G197","v":0},{"$f":"SUM(H186:H197)","v":0},{"$f":"SUM(I186:I197)","v":0},{"$f":"SUM(J186:J197)","v":0},2,{"$f":"Q174+V174","v":0},0,0,{"$f":"T174+Y174","v":0}]
[{"$f":"A174+1","v":2},0,0,{"$f":"B174*$E$86/12","v":0},0,{"$f":"F174+1","v":2},0,0,0,0,{"$f":"K174+1","v":2},0,0,0,0,3,{"$f":"B209","v":0},{"$f":"SUM(C198:C209)","v":0},{"$f":"SUM(D198:D209)","v":0},{"$f":"SUM(E198:E209)","v":0},3,{"$f":"G209","v":0},{"$f":"SUM(H198:H209)","v":0},{"$f":"SUM(I198:I209)","v":0},{"$f":"SUM(J198:J209)","v":0},3,0,0,0,0]
[3,0,0,0,0,3,0,0,0,0,3,0,0,0,0,4,{"$f":"B221","v":0},{"$f":"SUM(C210:C221)","v":0},{"$f":"SUM(D210:D221)","v":0},{"$f":"SUM(E210:E221)","v":0},4,{"$f":"G221","v":0},{"$f":"SUM(H210:H221)","v":0},{"$f":"SUM(I210:I221)","v":0},{"$f":"SUM(J210:J221)","v":0},4,0,0,0,0]
[4,0,0,0,0,4,0,0,0,0,4,0,0,0,0,5,{"$f":"B233","v":0},{"$f":"SUM(C222:C233)","v":0},{"$f":"SUM(D222:D233)","v":0},{"$f":"SUM(E222:E233)","v":0},5,{"$f":"G233","v":0},{"$f":"SUM(H222:H233)","v":0},{"$f":"SUM(I222:I233)","v":0},{"$f":"SUM(J222:J233)","v":0},5,0,0,0,0]
[5,0,0,0,0,5,0,0,0,0,5,0,0,0,0,6,{"$f":"B245","v":0},{"$f":"SUM(C234:C245)","v":0},{"$f":"SUM(D234:D245)","v":0},{"$f":"SUM(E234:E245)","v":0},6,{"$f":"G245","v":0},{"$f":"SUM(H234:H245)","v":0},{"$f":"SUM(I234:I245)","v":0},{"$f":"SUM(J234:J245)","v":0},6,0,0,0,0]
[6,0,0,0,0,6,0,0,0,0,6,0,0,0,0,7,{"$f":"B257","v":0},{"$f":"SUM(C246:C257)","v":0},{"$f":"SUM(D246:D257)","v":0},{"$f":"SUM(E246:E257)","v":0},7,{"$f":"G257","v":0},{"$f":"SUM(H246:H257)","v":0},{"$f":"SUM(I246:I257)","v":0},{"$f":"SUM(J246:J257)","v":0},7,0,0,0,0]
[7,0,0,0,0,7,0,0,0,0,7,0,0,0,0,8,{"$f":"B269","v":0},{"$f":"SUM(C258:C269)","v":0},{"$f":"SUM(D258:D269)","v":0},{"$f":"SUM(E258:E269)","v":0},8,{"$f":"G269","v":0},{"$f":"SUM(H258:H269)","v":0},{"$f":"SUM(I258:I269)","v":0},{"$f":"SUM(J258:J269)","v":0},8,0,0,0,0]
[8,0,0,0,0,8,0,0,0,0,8,0,0,0,0,9,{"$f":"B281","v":0},{"$f":"SUM(C270:C281)","v":0},{"$f":"SUM(D270:D281)","v":0},{"$f":"SUM(E270:E281)","v":0},9,{"$f":"G281","v":0},{"$f":"SUM(H270:H281)","v":0},{"$f":"SUM(I270:I281)","v":0},{"$f":"SUM(J270:J281)","v":0},9,0,0,0,0]
[9,0,0,0,0,9,0,0,0,0,9,0,0,0,0,10,{"$f":"B293","v":0},{"$f":"SUM(C282:C293)","v":0},{"$f":"SUM(D282:D293)","v":0},{"$f":"SUM(E282:E293)","v":0},10,{"$f":"G293","v":0},{"$f":"SUM(H282:H293)","v":0},{"$f":"SUM(I282:I293)","v":0},{"$f":"SUM(J282:J293)","v":0},10,{"$f":"Q182+V182","v":0},0,0,{"$f":"T182+Y182","v":0}]
[10,0,0,0,0,10,0,0,0,0,10,0,0,0,0]
[11,0,0,0,0,11,0,0,0,0,11,0,0,0,0]
[12,0,0,0,0,12,0,0,0,0,12,0,0,0,0]
[13,0,0,0,0,13,0,0,0,0,13,0,0,0,0]
[14,0,0,0,0,14,0,0,0,0,14,0,0,0,0]
[15,0,0,0,0,15,0,0,0,0,15,0,0,0,0]
[16,0,0,0,0,16,0,0,0,0,16,0,0,0,0]
[17,0,0,0,0,17,0,0,0,0,17,0,0,0,0]
[18,0,0,0,0,18,0,0,0,0,18,0,0,0,0]
[19,0,0,0,0,19,0,0,0,0,19,0,0,0,0]
[20,0,0,0,0,20,0,0,0,0,20,0,0,0,0]
[21,0,0,0,0,21,0,0,0,0,21,0,0,0,0]
[22,0,0,0,0,22,0,0,0,0,22,0,0,0,0]
[23,0,0,0,0,23,0,0,0,0,23,0,0,0,0]
[24,0,0,0,0,24,0,0,0,0,24,0,0,0,0]
[25,0,0,0,0,25,0,0,0,0,25,0,0,0,0]
[26,0,0,0,0,26,0,0,0,0,26,0,0,0,0]
[27,0,0,0,0,27,0,0,0,0,27,0,0,0,0]
[28,0,0,0,0,28,0,0,0,0,28,0,0,0,0]
[29,0,0,0,0,29,0,0,0,0,29,0,0,0,0]
[30,0,0,0,0,30,0,0,0,0,30,0,0,0,0]
[31,0,0,0,0,31,0,0,0,0,31,0,0,0,0]
[32,0,0,0,0,32,0,0,0,0,32,0,0,0,0]
[33,0,0,0,0,33,0,0,0,0,33,0,0,0,0]
[34,0,0,0,0,34,0,0,0,0,34,0,0,0,0]
[35,0,0,0,0,35,0,0,0,0,35,0,0,0,0]
[36,0,0,0,0,36,0,0,0,0,36,0,0,0,0]
[37,0,0,0,0,37,0,0,0,0,37,0,0,0,0]
[38,0,0,0,0,38,0,0,0,0,38,0,0,0,0]
[39,0,0,0,0,39,0,0,0,0,39,0,0,0,0]
[40,0,0,0,0,40,0,0,0,0,40,0,0,0,0]
[41,0,0,0,0,41,0,0,0,0,41,0,0,0,0]
[42,0,0,0,0,42,0,0,0,0,42,0,0,0,0]
[43,0,0,0,0,43,0,0,0,0,43,0,0,0,0]
[44,0,0,0,0,44,0,0,0,0,44,0,0,0,0]
[45,0,0,0,0,45,0,0,0,0,45,0,0,0,0]
[46,0,0,0,0,46,0,0,0,0,46,0,0,0,0]
[47,0,0,0,0,47,0,0,0,0,47,0,0,0,0]
[48,0,0,0,0,48,0,0,0,0,48,0,0,0,0]
[49,0,0,0,0,49,0,0,0,0,49,0,0,0,0]
[50,0,0,0,0,50,0,0,0,0,50,0,0,0,0]
[51,0,0,0,0,51,0,0,0,0,51,0,0,0,0]
[52,0,0,0,0,52,0,0,0,0,52,0,0,0,0]
[53,0,0,0,0,53,0,0,0,0,53,0,0,0,0]
[54,0,0,0,0,54,0,0,0,0,54,0,0,0,0]
[55,0,0,0,0,55,0,0,0,0,55,0,0,0,0]
[56,0,0,0,0,56,0,0,0,0,56,0,0,0,0]
[57,0,0,0,0,57,0,0,0,0,57,0,0,0,0]
[58,0,0,0,0,58,0,0,0,0,58,0,0,0,0]
[59,0,0,0,0,59,0,0,0,0,59,0,0,0,0]
[60,0,0,0,0,60,0,0,0,0,60,0,0,0,0]
[61,0,0,0,0,61,0,0,0,0,61,0,0,0,0]
[62,0,0,0,0,62,0,0,0,0,62,0,0,0,0]
[63,0,0,0,0,63,0,0,0,0,63,0,0,0,0]
[64,0,0,0,0,64,0,0,0,0,64,0,0,0,{"$f":"J237+E237","v":0}]
[65,{"$f":"B237-E238","v":0},{"$f":"-$E$88/12","v":0},0,{"$f":"C238-D238","v":0},65,{"$f":"G237-J238","v":0},{"$f":"-$E$94/12","v":0},{"$f":"G237*$E$92/12","v":0},{"$f":"H238-I238","v":0},65,{"$f":"G238+B238","v":0},0,0,0]
[{"$f":"A238+1","v":66},0,0,{"$f":"B238*$E$86/12","v":0},0,{"$f":"F238+1","v":66},0,0,0,0,{"$f":"K238+1","v":66},0,0,0,0]
[67,0,0,0,0,67,0,0,0,0,67,0,0,0,0]
[68,0,0,0,0,68,0,0,0,0,68,0,0,0,0]
[69,0,0,0,0,69,0,0,0,0,69,0,0,0,0]
[70,0,0,0,0,70,0,0,0,0,70,0,0,0,0]
[71,0,0,0,0,71,0,0,0,0,71,0,0,0,0]
[72,0,0,0,0,72,0,0,0,0,72,0,0,0,0]
[73,0,0,0,0,73,0,0,0,0,73,0,0,0,0]
[74,0,0,0,0,74,0,0,0,0,74,0,0,0,0]
[75,0,0,0,0,75,0,0,0,0,75,0,0,0,0]
[76,0,0,0,0,76,0,0,0,0,76,0,0,0,0]
[77,0,0,0,0,77,0,0,0,0,77,0,0,0,0]
[78,0,0,0,0,78,0,0,0,0,78,0,0,0,0]
[79,0,0,0,0,79,0,0,0,0,79,0,0,0,0]
[80,0,0,0,0,80,0,0,0,0,80,0,0,0,0]
[81,0,0,0,0,81,0,0,0,0,81,0,0,0,0]
[82,0,0,0,0,82,0,0,0,0,82,0,0,0,0]
[83,0,0,0,0,83,0,0,0,0,83,0,0,0,0]
[84,0,0,0,0,84,0,0,0,0,84,0,0,0,0]
[85,0,0,0,0,85,0,0,0,0,85,0,0,0,0]
[86,0,0,0,0,86,0,0,0,0,86,0,0,0,0]
[87,0,0,0,0,87,0,0,0,0,87,0,0,0,0]
[88,0,0,0,0,88,0,0,0,0,88,0,0,0,0]
[89,0,0,0,0,89,0,0,0,0,89,0,0,0,0]
[90,0,0,0,0,90,0,0,0,0,90,0,0,0,0]
[91,0,0,0,0,91,0,0,0,0,91,0,0,0,0]
[92,0,0,0,0,92,0,0,0,0,92,0,0,0,0]
[93,0,0,0,0,93,0,0,0,0,93,0,0,0,0]
[94,0,0,0,0,94,0,0,0,0,94,0,0,0,0]
[95,0,0,0,0,95,0,0,0,0,95,0,0,0,0]
[96,0,0,0,0,96,0,0,0,0,96,0,0,0,0]
[97,0,0,0,0,97,0,0,0,0,97,0,0,0,0]
[98,0,0,0,0,98,0,0,0,0,98,0,0,0,0]
[99,0,0,0,0,99,0,0,0,0,99,0,0,0,0]
[100,0,0,0,0,100,0,0,0,0,100,0,0,0,0]
[101,0,0,0,0,101,0,0,0,0,101,0,0,0,0]
[102,0,0,0,0,102,0,0,0,0,102,0,0,0,0]
[103,0,0,0,0,103,0,0,0,0,103,0,0,0,0]
[104,0,0,0,0,104,0,0,0,0,104,0,0,0,0]
[105,0,0,0,0,105,0,0,0,0,105,0,0,0,0]
[106,0,0,0,0,106,0,0,0,0,106,0,0,0,0]
[107,0,0,0,0,107,0,0,0,0,107,0,0,0,0]
[108,0,0,0,0,108,0,0,0,0,108,0,0,0,0]
[109,0,0,0,0,109,0,0,0,0,109,0,0,0,0]
[110,0,0,0,0,110,0,0,0,0,110,0,0,0,0]
[111,0,0,0,0,111,0,0,0,0,111,0,0,0,0]
[112,0,0,0,0,112,0,0,0,0,112,0,0,0,0]
[113,0,0,0,0,113,0,0,0,0,113,0,0,0,0]
[114,0,0,0,0,114,0,0,0,0,114,0,0,0,0]
[115,0,0,0,0,115,0,0,0,0,115,0,0,0,0]
[116,0,0,0,0,116,0,0,0,0,116,0,0,0,0]
[117,0,0,0,0,117,0,0,0,0,117,0,0,0,0]
[118,0,0,0,0,118,0,0,0,0,118,0,0,0,0]
[119,0,0,0,0,119,0,0,0,0,119,0,0,0,0]
[120,0,0,0,0,120,0,0,0,0,120,0,0,0,0]
[121,0,0,0,0,121,0,0,0,0,121,0,0,0,0]
[122,0,0,0,0,122,0,0,0,0,122,0,0,0,0]
[123,0,0,0,0,123,0,0,0,0,123,0,0,0,0]
[124,0,0,0,0,124,0,0,0,0,124,0,0,0,0]
[125,0,0,0,0,125,0,0,0,0,125,0,0,0,0]
[126,0,0,0,0,126,0,0,0,0,126,0,0,0,0]
[127,0,0,0,0,127,0,0,0,0,127,0,0,0,0]
[128,0,0,0,0,128,0,0,0,0,128,0,0,0,0]
[129,{"$f":"B301-E302","v":0},{"$f":"-$E$88/12","v":0},0,{"$f":"C302-D302","v":0},129,{"$f":"G301-J302","v":0},{"$f":"-$E$94/12","v":0},{"$f":"G301*$E$92/12","v":0},{"$f":"H302-I302","v":0},129,{"$f":"G302+B302","v":0},0,0,0]
[{"$f":"A302+1","v":130},0,0,{"$f":"B302*$E$86/12","v":0},0,{"$f":"F302+1","v":130},0,0,0,0,{"$f":"K302+1","v":130},0,0,0,0]
[131,0,0,0,0,131,0,0,0,0,131,0,0,0,0]
[132,0,0,0,0,132,0,0,0,0,132,0,0,0,0]
[133,0,0,0,0,133,0,0,0,0,133,0,0,0,0]
[134,0,0,0,0,134,0,0,0,0,134,0,0,0,0]
[135,0,0,0,0,135,0,0,0,0,135,0,0,0,0]
[136,0,0,0,0,136,0,0,0,0,136,0,0,0,0]
[137,0,0,0,0,137,0,0,0,0,137,0,0,0,0]
[138,0,0,0,0,138,0,0,0,0,138,0,0,0,0]
[139,0,0,0,0,139,0,0,0,0,139,0,0,0,0]
[140,0,0,0,0,140,0,0,0,0,140,0,0,0,0]
[141,0,0,0,0,141,0,0,0,0,141,0,0,0,0]
[142,0,0,0,0,142,0,0,0,0,142,0,0,0,0]
[143,0,0,0,0,143,0,0,0,0,143,0,0,0,0]
[144,0,0,0,0,144,0,0,0,0,144,0,0,0,0]
[145,0,0,0,0,145,0,0,0,0,145,0,0,0,0]
[146,0,0,0,0,146,0,0,0,0,146,0,0,0,0]
[147,0,0,0,0,147,0,0,0,0,147,0,0,0,0]
[148,0,0,0,0,148,0,0,0,0,148,0,0,0,0]
[149,0,0,0,0,149,0,0,0,0,149,0,0,0,0]
[150,0,0,0,0,150,0,0,0,0,150,0,0,0,0]
[151,0,0,0,0,151,0,0,0,0,151,0,0,0,0]
[152,0,0,0,0,152,0,0,0,0,152,0,0,0,0]
[153,0,0,0,0,153,0,0,0,0,153,0,0,0,0]
[154,0,0,0,0,154,0,0,0,0,154,0,0,0,0]
[155,0,0,0,0,155,0,0,0,0,155,0,0,0,0]
[156,0,0,0,0,156,0,0,0,0,156,0,0,0,0]
[157,0,0,0,0,157,0,0,0,0,157,0,0,0,0]
[158,0,0,0,0,158,0,0,0,0,158,0,0,0,0]
[159,0,0,0,0,159,0,0,0,0,159,0,0,0,0]
[160,0,0,0,0,160,0,0,0,0,160,0,0,0,0]
[161,0,0,0,0,161,0,0,0,0,161,0,0,0,0]
[162,0,0,0,0,162,0,0,0,0,162,0,0,0,0]
[163,0,0,0,0,163,0,0,0,0,163,0,0,0,0]
[164,0,0,0,0,164,0,0,0,0,164,0,0,0,0]
[165,0,0,0,0,165,0,0,0,0,165,0,0,0,0]
[166,0,0,0,0,166,0,0,0,0,166,0,0,0,0]
[167,0,0,0,0,167,0,0,0,0,167,0,0,0,0]
[168,0,0,0,0,168,0,0,0,0,168,0,0,0,0]
[169,0,0,0,0,169,0,0,0,0,169,0,0,0,0]
[170,0,0,0,0,170,0,0,0,0,170,0,0,0,0]
[171,0,0,0,0,171,0,0,0,0,171,0,0,0,0]
[172,0,0,0,0,172,0,0,0,0,172,0,0,0,0]
[173,0,0,0,0,173,0,0,0,0,173,0,0,0,0]
[174,0,0,0,0,174,0,0,0,0,174,0,0,0,0]
[175,0,0,0,0,175,0,0,0,0,175,0,0,0,0]
[176,0,0,0,0,176,0,0,0,0,176,0,0,0,0]
[177,0,0,0,0,177,0,0,0,0,177,0,0,0,0]
[178,0,0,0,0,178,0,0,0,0,178,0,0,0,0]
[179,0,0,0,0,179,0,0,0,0,179,0,0,0,0]
[180,0,0,0,0,180,0,0,0,0,180,0,0,0,0]
[181,0,0,0,0,181,0,0,0,0,181,0,0,0,0]
[182,0,0,0,0,182,0,0,0,0,182,0,0,0,0]
[183,0,0,0,0,183,0,0,0,0,183,0,0,0,0]
[184,0,0,0,0,184,0,0,0,0,184,0,0,0,0]
[185,0,0,0,0,185,0,0,0,0,185,0,0,0,0]
[186,0,0,0,0,186,0,0,0,0,186,0,0,0,0]
[187,0,0,0,0,187,0,0,0,0,187,0,0,0,0]
[188,0,0,0,0,188,0,0,0,0,188,0,0,0,0]
[189,0,0,0,0,189,0,0,0,0,189,0,0,0,0]
[190,0,0,0,0,190,0,0,0,0,190,0,0,0,0]
[191,0,0,0,0,191,0,0,0,0,191,0,0,0,0]
[192,0,0,0,0,192,0,0,0,0,192,0,0,0,{"$f":"J365+E365","v":0}]
[193,{"$f":"B365-E366","v":0},{"$f":"-$E$88/12","v":0},0,{"$f":"C366-D366","v":0},193,{"$f":"G365-J366","v":0},{"$f":"-$E$94/12","v":0},{"$f":"G365*$E$92/12","v":0},{"$f":"H366-I366","v":0},193,{"$f":"G366+B366","v":0},0,0,0]
[{"$f":"A366+1","v":194},0,0,{"$f":"B366*$E$86/12","v":0},0,{"$f":"F366+1","v":194},0,0,0,0,{"$f":"K366+1","v":194},0,0,0,0]
[195,0,0,0,0,195,0,0,0,0,195,0,0,0,0]
[196,0,0,0,0,196,0,0,0,0,196,0,0,0,0]
[197,0,0,0,0,197,0,0,0,0,197,0,0,0,0]
[198,0,0,0,0,198,0,0,0,0,198,0,0,0,0]
[199,0,0,0,0,199,0,0,0,0,199,0,0,0,0]
[200,0,0,0,0,200,0,0,0,0,200,0,0,0,0]
[201,0,0,0,0,201,0,0,0,0,201,0,0,0,0]
[202,0,0,0,0,202,0,0,0,0,202,0,0,0,0]
[203,0,0,0,0,203,0,0,0,0,203,0,0,0,0]
[204,0,0,0,0,204,0,0,0,0,204,0,0,0,0]
[205,0,0,0,0,205,0,0,0,0,205,0,0,0,0]
[206,0,0,0,0,206,0,0,0,0,206,0,0,0,0]
[207,0,0,0,0,207,0,0,0,0,207,0,0,0,0]
[208,0,0,0,0,208,0,0,0,0,208,0,0,0,0]
[209,0,0,0,0,209,0,0,0,0,209,0,0,0,0]
[210,0,0,0,0,210,0,0,0,0,210,0,0,0,0]
[211,0,0,0,0,211,0,0,0,0,211,0,0,0,0]
[212,0,0,0,0,212,0,0,0,0,212,0,0,0,0]
[213,0,0,0,0,213,0,0,0,0,213,0,0,0,0]
[214,0,0,0,0,214,0,0,0,0,214,0,0,0,0]
[215,0,0,0,0,215,0,0,0,0,215,0,0,0,0]
[216,0,0,0,0,216,0,0,0,0,216,0,0,0,0]
[217,0,0,0,0,217,0,0,0,0,217,0,0,0,0]
[218,0,0,0,0,218,0,0,0,0,218,0,0,0,0]
[219,0,0,0,0,219,0,0,0,0,219,0,0,0,0]
[220,0,0,0,0,220,0,0,0,0,220,0,0,0,0]
[221,0,0,0,0,221,0,0,0,0,221,0,0,0,0]
[222,0,0,0,0,222,0,0,0,0,222,0,0,0,0]
[223,0,0,0,0,223,0,0,0,0,223,0,0,0,0]
[224,0,0,0,0,224,0,0,0,0,224,0,0,0,0]
[225,0,0,0,0,225,0,0,0,0,225,0,0,0,0]
[226,0,0,0,0,226,0,0,0,0,226,0,0,0,0]
[227,0,0,0,0,227,0,0,0,0,227,0,0,0,0]
[228,0,0,0,0,228,0,0,0,0,228,0,0,0,0]
[229,0,0,0,0,229,0,0,0,0,229,0,0,0,0]
[230,0,0,0,0,230,0,0,0,0,230,0,0,0,0]
[231,0,0,0,0,231,0,0,0,0,231,0,0,0,0]
[232,0,0,0,0,232,0,0,0,0,232,0,0,0,0]
[233,0,0,0,0,233,0,0,0,0,233,0,0,0,0]
[234,0,0,0,0,234,0,0,0,0,234,0,0,0,0]
[235,0,0,0,0,235,0,0,0,0,235,0,0,0,0]
[236,0,0,0,0,236,0,0,0,0,236,0,0,0,0]
[237,0,0,0,0,237,0,0,0,0,237,0,0,0,0]
[238,0,0,0,0,238,0,0,0,0,238,0,0,0,0]
[239,0,0,0,0,239,0,0,0,0,239,0,0,0,0]
[240,0,0,0,0,240,0,0,0,0,240,0,0,0,0]
[241,0,0,0,0,241,0,0,0,0,241,0,0,0,0]
[242,0,0,0,0,242,0,0,0,0,242,0,0,0,0]
[243,0,0,0,0,243,0,0,0,0,243,0,0,0,0]
[244,0,0,0,0,244,0,0,0,0,244,0,0,0,0]
[245,0,0,0,0,245,0,0,0,0,245,0,0,0,0]
[246,0,0,0,0,246,0,0,0,0,246,0,0,0,0]
[247,0,0,0,0,247,0,0,0,0,247,0,0,0,0]
[248,0,0,0,0,248,0,0,0,0,248,0,0,0,0]
[249,0,0,0,0,249,0,0,0,0,249,0,0,0,0]
[250,0,0,0,0,250,0,0,0,0,250,0,0,0,0]
[251,0,0,0,0,251,0,0,0,0,251,0,0,0,0]
[252,0,0,0,0,252,0,0,0,0,252,0,0,0,0]
[253,0,0,0,0,253,0,0,0,0,253,0,0,0,0]
[254,0,0,0,0,254,0,0,0,0,254,0,0,0,0]
[255,0,0,0,0,255,0,0,0,0,255,0,0,0,0]
[256,0,0,0,0,256,0,0,0,0,256,0,0,0,0]
[257,{"$f":"B429-E430","v":0},{"$f":"-$E$88/12","v":0},0,{"$f":"C430-D430","v":0},257,{"$f":"G429-J430","v":0},{"$f":"-$E$94/12","v":0},{"$f":"G429*$E$92/12","v":0},{"$f":"H430-I430","v":0},257,{"$f":"G430+B430","v":0},0,0,0]
[{"$f":"A430+1","v":258},0,0,{"$f":"B430*$E$86/12","v":0},0,{"$f":"F430+1","v":258},0,0,0,0,{"$f":"K430+1","v":258},0,0,0,0]
[259,0,0,0,0,259,0,0,0,0,259,0,0,0,0]
[260,0,0,0,0,260,0,0,0,0,260,0,0,0,0]
[261,0,0,0,0,261,0,0,0,0,261,0,0,0,0]
[262,0,0,0,0,262,0,0,0,0,262,0,0,0,0]
[263,0,0,0,0,263,0,0,0,0,263,0,0,0,0]
[264,0,0,0,0,264,0,0,0,0,264,0,0,0,0]
[265,0,0,0,0,265,0,0,0,0,265,0,0,0,0]
[266,0,0,0,0,266,0,0,0,0,266,0,0,0,0]
[267,0,0,0,0,267,0,0,0,0,267,0,0,0,0]
[268,0,0,0,0,268,0,0,0,0,268,0,0,0,0]
[269,0,0,0,0,269,0,0,0,0,269,0,0,0,0]
[270,0,0,0,0,270,0,0,0,0,270,0,0,0,0]
[271,0,0,0,0,271,0,0,0,0,271,0,0,0,0]
[272,0,0,0,0,272,0,0,0,0,272,0,0,0,0]
[273,0,0,0,0,273,0,0,0,0,273,0,0,0,0]
[274,0,0,0,0,274,0,0,0,0,274,0,0,0,0]
[275,0,0,0,0,275,0,0,0,0,275,0,0,0,0]
[276,0,0,0,0,276,0,0,0,0,276,0,0,0,0]
[277,0,0,0,0,277,0,0,0,0,277,0,0,0,0]
[278,0,0,0,0,278,0,0,0,0,278,0,0,0,0]
[279,0,0,0,0,279,0,0,0,0,279,0,0,0,0]
[280,0,0,0,0,280,0,0,0,0,280,0,0,0,0]
[281,0,0,0,0,281,0,0,0,0,281,0,0,0,0]
[282,0,0,0,0,282,0,0,0,0,282,0,0,0,0]
[283,0,0,0,0,283,0,0,0,0,283,0,0,0,0]
[284,0,0,0,0,284,0,0,0,0,284,0,0,0,0]
[285,0,0,0,0,285,0,0,0,0,285,0,0,0,0]
[286,0,0,0,0,286,0,0,0,0,286,0,0,0,0]
[287,0,0,0,0,287,0,0,0,0,287,0,0,0,0]
[288,0,0,0,0,288,0,0,0,0,288,0,0,0,0]
[289,0,0,0,0,289,0,0,0,0,289,0,0,0,0]
[290,0,0,0,0,290,0,0,0,0,290,0,0,0,0]
[291,0,0,0,0,291,0,0,0,0,291,0,0,0,0]
[292,0,0,0,0,292,0,0,0,0,292,0,0,0,0]
[293,0,0,0,0,293,0,0,0,0,293,0,0,0,0]
[294,0,0,0,0,294,0,0,0,0,294,0,0,0,0]
[295,0,0,0,0,295,0,0,0,0,295,0,0,0,0]
[296,0,0,0,0,296,0,0,0,0,296,0,0,0,0]
[297,0,0,0,0,297,0,0,0,0,297,0,0,0,0]
[298,0,0,0,0,298,0,0,0,0,298,0,0,0,0]
[299,0,0,0,0,299,0,0,0,0,299,0,0,0,0]
[300,0,0,0,0,300,0,0,0,0,300,0,0,0,0]
[301,0,0,0,0,301,0,0,0,0,301,0,0,0,0]
[302,0,0,0,0,302,0,0,0,0,302,0,0,0,0]
[303,0,0,0,0,303,0,0,0,0,303,0,0,0,0]
[304,0,0,0,0,304,0,0,0,0,304,0,0,0,0]
[305,0,0,0,0,305,0,0,0,0,305,0,0,0,0]
[306,0,0,0,0,306,0,0,0,0,306,0,0,0,0]
[307,0,0,0,0,307,0,0,0,0,307,0,0,0,0]
[308,0,0,0,0,308,0,0,0,0,308,0,0,0,0]
[309,0,0,0,0,309,0,0,0,0,309,0,0,0,0]
[310,0,0,0,0,310,0,0,0,0,310,0,0,0,0]
[311,0,0,0,0,311,0,0,0,0,311,0,0,0,0]
[312,0,0,0,0,312,0,0,0,0,312,0,0,0,0]
[313,0,0,0,0,313,0,0,0,0,313,0,0,0,0]
[314,0,0,0,0,314,0,0,0,0,314,0,0,0,0]
[315,0,0,0,0,315,0,0,0,0,315,0,0,0,0]
[316,0,0,0,0,316,0,0,0,0,316,0,0,0,0]
[317,0,0,0,0,317,0,0,0,0,317,0,0,0,0]
[318,0,0,0,0,318,0,0,0,0,318,0,0,0,0]
[319,0,0,0,0,319,0,0,0,0,319,0,0,0,0]
[320,0,0,0,0,320,0,0,0,0,320,0,0,0,{"$f":"J493+E493","v":0}]
[321,{"$f":"B493-E494","v":0},{"$f":"-$E$88/12","v":0},0,{"$f":"C494-D494","v":0},321,{"$f":"G493-J494","v":0},{"$f":"-$E$94/12","v":0},{"$f":"G493*$E$92/12","v":0},{"$f":"H494-I494","v":0},321,{"$f":"G494+B494","v":0},0,0,0]
[{"$f":"A494+1","v":322},0,0,{"$f":"B494*$E$86/12","v":0},0,{"$f":"F494+1","v":322},0,0,0,0,{"$f":"K494+1","v":322},0,0,0,0]
[323,0,0,0,0,323,0,0,0,0,323,0,0,0,0]
[324,0,0,0,0,324,0,0,0,0,324,0,0,0,0]
[325,0,0,0,0,325,0,0,0,0,325,0,0,0,0]
[326,0,0,0,0,326,0,0,0,0,326,0,0,0,0]
[327,0,0,0,0,327,0,0,0,0,327,0,0,0,0]
[328,0,0,0,0,328,0,0,0,0,328,0,0,0,0]
[329,0,0,0,0,329,0,0,0,0,329,0,0,0,0]
[330,0,0,0,0,330,0,0,0,0,330,0,0,0,0]
[331,0,0,0,0,331,0,0,0,0,331,0,0,0,0]
[332,0,0,0,0,332,0,0,0,0,332,0,0,0,0]
[333,0,0,0,0,333,0,0,0,0,333,0,0,0,0]
[334,0,0,0,0,334,0,0,0,0,334,0,0,0,0]
[335,0,0,0,0,335,0,0,0,0,335,0,0,0,0]
[336,0,0,0,0,336,0,0,0,0,336,0,0,0,0]
[337,0,0,0,0,337,0,0,0,0,337,0,0,0,0]
[338,0,0,0,0,338,0,0,0,0,338,0,0,0,0]
[339,0,0,0,0,339,0,0,0,0,339,0,0,0,0]
[340,0,0,0,0,340,0,0,0,0,340,0,0,0,0]
[341,0,0,0,0,341,0,0,0,0,341,0,0,0,0]
[342,0,0,0,0,342,0,0,0,0,342,0,0,0,0]
[343,0,0,0,0,343,0,0,0,0,343,0,0,0,0]
[344,0,0,0,0,344,0,0,0,0,344,0,0,0,0]
[345,0,0,0,0,345,0,0,0,0,345,0,0,0,0]
[346,0,0,0,0,346,0,0,0,0,346,0,0,0,0]
[347,0,0,0,0,347,0,0,0,0,347,0,0,0,0]
[348,0,0,0,0,348,0,0,0,0,348,0,0,0,0]
[349,0,0,0,0,349,0,0,0,0,349,0,0,0,0]
[350,0,0,0,0,350,0,0,0,0,350,0,0,0,0]
[351,0,0,0,0,351,0,0,0,0,351,0,0,0,0]
[352,0,0,0,0,352,0,0,0,0,352,0,0,0,0]
[353,0,0,0,0,353,0,0,0,0,353,0,0,0,0]
[354,0,0,0,0,354,0,0,0,0,354,0,0,0,0]
[355,0,0,0,0,355,0,0,0,0,355,0,0,0,0]
[356,0,0,0,0,356,0,0,0,0,356,0,0,0,0]
[357,0,0,0,0,357,0,0,0,0,357,0,0,0,0]
[358,0,0,0,0,358,0,0,0,0,358,0,0,0,0]
[359,0,0,0,0,359,0,0,0,0,359,0,0,0,0]
[360,0,0,0,0,360,0,0,0,0,360,0,0,0,0]

{"sheet":"Industrial","index":11,"n_rows":532,"n_cols":30,"rows_kept":532,"cut":false,"hidden":false,"merged":[]}
["ROI Template - Industrial"]
[]
["Leveraging Tools",null,null,"Summary","User override ",null,null,"Investment Targets and Performance"]
["Tax Credits net to project",null,null,{"$f":"'Gap Financing Options'!G116","v":0},0,{"$f":"IF('Basic Financial'!$B$33=0,D4,0)","v":0},null,"Performance Indicator",null,null,null,"Target","Actual","NPV"]
["Fee Reductions",null,null,{"$f":"'Gap Financing Options'!G82","v":0},0,{"$f":"IF('Basic Financial'!$B$33=0,D5,0)","v":0},null,"Cash-on-Cash After Year 3",null,null,null,{"$f":"'Advanced Financial'!G64","v":0.1},{"$f":"G132","v":0}]
["Grants",null,null,{"$f":"'Gap Financing Options'!G92","v":0},0,{"$f":"IF('Basic Financial'!$B$33=0,D6,('Basic Financial'!$B$33*'Development Costs'!E42))","v":0},null,"IRR on Project Cost (Unleveraged Return)",null,null,null,{"$f":"'Advanced Financial'!G65","v":0.12},{"$f":"N146","v":0},{"$f":"N147","v":0}]
["Total Development Offsets (Contributions to Equity)",null,null,null,null,{"$f":"SUM(F4:F6)","v":0},null,"IRR on Investor Equity (Leveraged Return Before Tax)",null,null,null,{"$f":"'Advanced Financial'!G66","v":0.25},{"$f":"N154","v":0},{"$f":"N155","v":0}]
["Net Development Costs",null,null,null,null,{"$f":"(C56-F7)","v":0},null,"Debt Service Coverage Ratio (Year 3)",null,null,null,{"$f":"'Advanced Financial'!G67","v":1.25},{"$f":"IFERROR(G126/G128,0)","v":0}]
[null,null,null,null,null,null,null,"IRR on Public Participation",null,null,null,{"$f":"E109","v":0.05},{"$f":"N164","v":0},{"$f":"N165","v":0}]
[]
[]
[]
["Local Property Tax Rate Available for abatement",null,null,{"$f":"'Gap Financing Options'!G15","v":0}]
["Local Sales Tax Rate Available for abatement",null,null,{"$f":"'Gap Financing Options'!G31","v":0}]
[]
["Net Operating Income Analysis"]
["Total Development Costs",null,{"$f":"-'Development Costs'!D42","v":0}]
["Project Feature",null,"Project","Rent"]
["Total project size, square feet",null,{"$f":"'Physical Outputs'!C31","v":0},{"$f":"'Basic Financial'!B57","v":15},"per square foot/year"]
["Other Income (vending, fines)",null,{"$f":"'Advanced Financial'!G77","v":0.1}]
["Less: Vacancy",null,{"$f":"1-'Advanced Financial'!C34","v":5.0000000000000044E-2}]
["Less: Concessions, Bad Debt",null,{"$f":"'Advanced Financial'!G78","v":0.02}]
["Less: Operating Costs/sq.ft.",null,{"$f":"IFERROR((('Advanced Financial'!G79*D60)/'Physical Outputs'!C31),0)","v":0}]
[]
["Initial Project Value Analysis"]
["Property Value (Year 1)"]
["Going in Cap Rate",null,{"$f":"'Advanced Financial'!G80","v":7.2999999999999995E-2}]
[]
["Debt Financing"]
["Primary Debt"]
["Maximum LTV",null,null,{"$f":"'Advanced Financial'!G87","v":0.6}]
["Rate",null,null,{"$f":"'Advanced Financial'!G88","v":0.06}]
["Amortization Period, Years",null,null,{"$f":"'Advanced Financial'!G89","v":30}]
["Public Leveraging Loan"]
["Maximum LTV",null,null,{"$f":"IF(D42=1,'Gap Financing Options'!G63,0)","v":0}]
["Rate",null,null,{"$f":"IF(D42=1,'Gap Financing Options'!G64,0)","v":0}]
["Amortization Period, Years",null,null,{"$f":"IF(D42=1,'Gap Financing Options'!G65,0)","v":0}]
["Public Participation"]
["Capital Investment",null,null,{"$f":"IF(D42=1,'Gap Financing Options'!G69,0)","v":0}]
["Annual Cash Throw Off",null,null,{"$f":"IF(D42=1,'Gap Financing Options'!G70,0)","v":0}]
["Share of Net Sales Price",null,null,{"$f":"IF(D42=1,'Gap Financing Options'!G71,0)","v":0}]
["Public Leveraging Loan Included in Analysis?(1=Yes; 0=No) ",null,null,{"$f":"'Gap Financing Options'!G62","v":0}]
["Target IRR",null,null,{"$f":"'Advanced Financial'!G68","v":0.05}]
[]
["Operating Statement"]
["GPI",null,"Escalation",{"$f":"'Advanced Financial'!G81","v":0.03}]
["EGI"]
["Less: Operating Costs",null,"Escalation",{"$f":"'Advanced Financial'!G82","v":0.03}]
[]
["Project Value",null,null,"Year 1"]
["Terminal Cap Rate, Gross Sales Price",null,null,{"$f":"'Advanced Financial'!G83","v":0.08}]
["Net Sales = Price Less Sales Cost",null,null,{"$f":"'Advanced Financial'!G84","v":0.05}]
[]
[]
["Net Operating Income Analysis"]
["Total Development Costs",null,{"$f":"C17","v":0}]
["Development Costs Per Sq Ft",null,{"$f":"IFERROR(C56/C59,0)","v":0}]
["Project Feature",null,"Project","Rent"]
["Total project size, square feet",null,{"$f":"C19","v":0},{"$f":"D19","v":15},"per square foot/year"]
["Gross Potential Rent  (GPI)",null,null,{"$f":"C59*D59","v":0}]
["Other Income (vending, fines)",null,{"$f":"C20","v":0.1},{"$f":"C61*D60","v":0}]
["Total Income",null,null,{"$f":"D60+D61","v":0}]
["Less: Vacancy",null,{"$f":"C21","v":5.0000000000000044E-2},{"$f":"D62*C63","v":0}]
["Less: Concessions, Bad Debt",null,{"$f":"C22","v":0.02},{"$f":"D62*C64","v":0}]
["Effective Gross Income  (EGI)",null,null,{"$f":"D62-D63-D64","v":0}]
["Less: Operating Costs/sq.ft.",null,{"$f":"C23","v":0},{"$f":"C66*C59","v":0}]
["Net Operating Income",null,null,{"$f":"D65-D66","v":0}]
[]
["Initial Project Value Analysis"]
["CAP RATE (Yield to Costs)",null,{"$f":"IFERROR(D67/F8,0)","v":0}]
["Debt Service",null,{"$f":"IFERROR(-E96,0)","v":0}]
["Cash Flow",null,{"$f":"D67-C71","v":0}]
["Return on Equity (Year 1)",null,{"$f":"IFERROR(C72/E101,0)","v":0}]
["Property Value (Year 1)"]
["NOI",null,{"$f":"D67","v":0}]
["Going in Cap Rate",null,{"$f":"C27","v":7.2999999999999995E-2}]
["Project Market Value",null,{"$f":"IFERROR(C75/C76,0)","v":0}]
["Net Project Value",null,{"$f":"C77-C56","v":0}]
[]
["Debt Financing"]
["Primary Debt"]
["Total Value",null,null,null,{"$f":"IF(C77>C56,C56,C77)","v":0}]
["Maximum LTV",null,null,{"$f":"D31","v":0.6},{"$f":"E82*D83","v":0}]
["Imputed Loan Amount",null,null,null,{"$f":"E83","v":0}]
["Rate",null,null,null,{"$f":"D32","v":0.06}]
["Amortization Period, Years",null,null,null,{"$f":"D33","v":30}]
["Annual Debt Service (Amortized)",null,null,null,{"$f":"IFERROR(PMT(E85/12,E86*12,E84)*12,0)","v":0}]
["Public Leveraging Loan"]
["Maximum LTV",null,null,{"$f":"IF(D42=1,D35,0)","v":0},{"$f":"IF(E82*D89>'Development Costs'!E42*'Gap Financing Options'!B73,'Development Costs'!E42*'Gap Financing Options'!B73,E82*D89)","v":0}]
["Imputed Loan Amount",null,null,null,{"$f":"IF(AND(D42=1,'Basic Financial'!B33=0),E89+'Gap Financing Options'!G68,0)","v":0}]
["Rate",null,null,null,{"$f":"D36","v":0}]
["Amortization Period, Years",null,null,null,{"$f":"D37","v":0}]
["Annual Debt Service (Amortized)",null,null,null,{"$f":"IFERROR(PMT(E91/12,E92*12,E90)*12,0)","v":0}]
[]
["Total Debt",null,null,null,{"$f":"E84+E90","v":0}]
["Total Debt Service",null,null,null,{"$f":"E87+E93","v":0}]
["Summary"]
["Total Development Costs",null,null,null,{"$f":"C56","v":0}]
["Equity Required",null,null,null,{"$f":"IF(E98-E95<0,1,E98-E95)","v":0}]
["Total Development Offsets (Contributions to Equity)",null,null,null,{"$f":"F7","v":0}]
["Net Equity Required",null,null,null,{"$f":"E99-E100","v":0}]
["Total Project Cost",null,null,null,{"$f":"E98","v":0}]
["Total Project Cost After Development Offsets",null,null,null,{"$f":"E102-E100","v":0}]
["Public Participation"]
["Capital Investment",null,null,null,{"$f":"D39","v":0}]
["Annual Cash Throw Off",null,null,null,{"$f":"D40","v":0}]
["Share of Net Sales Price",null,null,null,{"$f":"D41","v":0}]
["Public Leveraging Loan Included in Analysis? ",null,null,"(1=Yes; 0=No)",{"$f":"D42","v":0}]
["Target IRR",null,null,null,{"$f":"D43","v":0.05}]
[]
[]
[]
["Operating Statement",null,null,null,"Year 1","Year 2","Year 3","Year 4","Year 5","Year 6","Year 7","Year 8","Year 9","Year 10"]
["GPI",null,"Escalation",{"$f":"D46","v":0.03},{"$f":"D60","v":0},{"$f":"E114*(1+$D$114)","v":0},0,0,0,0,0,0,0,0]
["Other Income",null,null,null,{"$f":"D61","v":0},0,0,0,0,0,0,0,0,0]
["Total Income",null,null,null,{"$f":"E114+E115","v":0},0,0,0,0,0,0,0,0,0]
["Less: Vacancy",null,null,{"$f":"C63","v":5.0000000000000044E-2},{"$f":"IF('Advanced Financial'!B34>0,(1-'Advanced Financial'!B34)*E116,$D$117*E116)","v":0},{"$f":"$D$117*F116","v":0},0,0,0,0,0,0,0,0]
["Less: Concessions, Market Loss",null,null,{"$f":"C64","v":0.02},{"$f":"$D$118*E116","v":0},0,0,0,0,0,0,0,0,0]
["EGI",null,null,null,{"$f":"E116-E117-E118","v":0},0,0,0,0,0,0,0,0,0]
["Less: Operating Costs",null,"Escalation",{"$f":"D48","v":0.03},{"$f":"D66","v":0},{"$f":"E120*(1+$D$120)","v":0},0,0,0,0,0,0,0,0]
["Less: Property Taxes",null,"Millage Rate",{"$f":"'Advanced Financial'!G60","v":0.01},{"$f":"$F8*$D121*'Advanced Financial'!$G60","v":0},{"$f":"$F8*$D121*'Advanced Financial'!$G60*(1+$D$114)","v":0},{"$f":"$F8*$D121*'Advanced Financial'!$G60*(1+$D$114)^2","v":0},{"$f":"$F8*$D121*'Advanced Financial'!$G60*(1+$D$114)^3","v":0},{"$f":"$F8*$D121*'Advanced Financial'!$G60*(1+$D$114)^4","v":0},{"$f":"$F8*$D121*'Advanced Financial'!$G60*(1+$D$114)^5","v":0},{"$f":"$F8*$D121*'Advanced Financial'!$G60*(1+$D$114)^6","v":0},{"$f":"$F8*$D121*'Advanced Financial'!$G60*(1+$D$114)^7","v":0},{"$f":"$F8*$D121*'Advanced Financial'!$G60*(1+$D$114)^8","v":0},{"$f":"$F8*$D121*'Advanced Financial'!$G60*(1+$D$114)^9","v":0}]
["Plus: Property Tax Abatement",null,null,null,{"$f":"$D$13*'Advanced Financial'!$G61*$F8*'Gap Financing Options'!G17","v":0},{"$f":"$D$13*'Advanced Financial'!$G61*$F8*(1+$D$114)*'Gap Financing Options'!G18","v":0},{"$f":"$D$13*'Advanced Financial'!$G61*$F8*(1+$D$114)^2*'Gap Financing Options'!G19","v":0},{"$f":"$D$13*'Advanced Financial'!$G61*$F8*(1+$D$114)^3*'Gap Financing Options'!G20","v":0},{"$f":"$D$13*'Advanced Financial'!$G61*$F8*(1+$D$114)^4*'Gap Financing Options'!G21","v":0},{"$f":"$D$13*'Advanced Financial'!$G61*$F8*(1+$D$114)^5*'Gap Financing Options'!G22","v":0},{"$f":"$D$13*'Advanced Financial'!$G61*$F8*(1+$D$114)^6*'Gap Financing Options'!G23","v":0},{"$f":"$D$13*'Advanced Financial'!$G61*$F8*(1+$D$114)^7*'Gap Financing Options'!G24","v":0},{"$f":"$D$13*'Advanced Financial'!$G61*$F8*(1+$D$114)^8*'Gap Financing Options'!G25","v":0},{"$f":"$D$13*'Advanced Financial'!$G61*$F8*(1+$D$114)^9*'Gap Financing Options'!G26","v":0}]
["Plus Sales Tax Abatement",null,null,null,{"$f":"'Gap Financing Options'!G33*$D$14*E116","v":0},{"$f":"'Gap Financing Options'!G33*$D$14*F116","v":0},{"$f":"'Gap Financing Options'!G35*$D$14*G116","v":0},{"$f":"'Gap Financing Options'!G36*$D$14*H116","v":0},{"$f":"'Gap Financing Options'!G37*$D$14*I116","v":0},{"$f":"'Gap Financing Options'!G38*$D$14*J116","v":0},{"$f":"'Gap Financing Options'!G39*$D$14*K116","v":0},{"$f":"'Gap Financing Options'!G40*$D$14*L116","v":0},{"$f":"'Gap Financing Options'!G41*$D$14*M116","v":0},{"$f":"'Gap Financing Options'!G42*$D$14*N116","v":0}]
["Plus TIF + IRA Retainage of Taxes",null,null,null,{"$f":"'Gap Financing Options'!G48","v":0},{"$f":"'Gap Financing Options'!G49","v":0},{"$f":"'Gap Financing Options'!G50","v":0},{"$f":"'Gap Financing Options'!G51","v":0},{"$f":"'Gap Financing Options'!G52","v":0},{"$f":"'Gap Financing Options'!G53","v":0},{"$f":"'Gap Financing Options'!G54","v":0},{"$f":"'Gap Financing Options'!G55","v":0},{"$f":"'Gap Financing Options'!G56","v":0},{"$f":"'Gap Financing Options'!G57","v":0}]
["Cash Throw Off to Public Partner",null,null,null,{"$f":"-$E$106","v":0},0,0,0,0,0,0,0,0,0]
["NOI",null,null,null,{"$f":"E119-E121-E120+E122+E123+E124+E125","v":0},{"$f":"F119-F121-F120+F122+F123+F124+F125","v":0},0,0,0,0,0,0,0,0]
[]
["Less: Debt Service",null,null,null,{"$f":"-$E$96","v":0},0,0,0,0,0,0,0,0,0]
["Net Cash Flow",null,null,null,{"$f":"E126-E128","v":0},0,0,0,0,0,0,0,0,0]
[]
["Cap Rate",null,null,null,{"$f":"IFERROR(E126/$E$98,0)","v":0},0,0,0,0,0,0,0,0,0]
["Cash on Cash Return (Equity Dividend Rate)",null,null,null,{"$f":"IFERROR(E129/$E$101,0)","v":0},{"$f":"IFERROR(F129/$E$101,0)","v":0},0,0,0,0,0,0,0,0]
[]
["Project Value",null,null,"Year 0","Year 1","Year 2","Year 3","Year 4","Year 5","Year 6","Year 7","Year 8","Year 9","Year 10"]
["Terminal Cap Rate, Gross Sales Price",null,null,null,{"$f":"D51","v":0.08},null,null,null,null,null,null,null,null,{"$f":"IFERROR(N126/E135,0)","v":0}]
["Net Sales = Price Less Sales Cost",null,null,null,{"$f":"D52","v":0.05},null,null,null,null,null,null,null,null,{"$f":"N135*(1-E136)","v":0}]
["Less Mortgage Balance",null,null,null,null,null,null,null,null,null,null,null,null,{"$f":"AA181","v":0}]
["Net Sales Proceeds",null,null,null,null,null,null,null,null,null,null,null,null,{"$f":"N136-N137","v":0}]
[]
[]
["IRR - Unleveraged (Project Cost)",null,null,"Year 0","Year 1","Year 2","Year 3","Year 4","Year 5","Year 6","Year 7","Year 8","Year 9","Year 10"]
["Total Investment",null,null,{"$f":"-E103","v":0}]
["Project NOI",null,null,null,{"$f":"E126","v":0},{"$f":"F126","v":0},0,0,0,0,0,0,0,0]
["Net Sales Price",null,null,null,null,null,null,null,null,null,null,null,null,{"$f":"N136","v":0}]
["Total",null,null,{"$f":"SUM(D142:D144)","v":0},{"$f":"SUM(E142:E144)","v":0},{"$f":"SUM(F142:F144)","v":0},0,0,0,0,0,0,0,0]
["IRR - Project Cost",null,null,null,null,null,null,null,null,null,null,null,null,{"$f":"IFERROR(IRR(D145:N145),0)","v":0}]
["NPV - Project Cost",null,null,null,null,null,null,null,null,null,null,null,null,{"$f":"NPV(L6,D145:N145)","v":0}]
[]
["IRR - Leveraged (Before Tax)",null,null,"Year 0","Year 1","Year 2","Year 3","Year 4","Year 5","Year 6","Year 7","Year 8","Year 9","Year 10"]
["Original Investment (Equity)",null,null,{"$f":"-E101","v":0}]
["Project Cash Flow",null,null,null,{"$f":"E129","v":0},0,0,0,0,0,0,0,0,0]
["Net Sales Proceeds",null,null,null,null,null,null,null,null,null,null,null,null,{"$f":"N138","v":0}]
["Total",null,null,{"$f":"SUM(D150:D152)","v":0},0,0,0,0,0,0,0,0,0,0]
["IRR - Equity",null,null,null,null,null,null,null,null,null,null,null,null,{"$f":"IFERROR(IRR(D153:N153),0)","v":0}]
["NPV - Equity",null,null,null,null,null,null,null,null,null,null,null,null,{"$f":"NPV(L7,D153:N153)","v":0}]
[]
["IRR - Public Participation",null,null,"Year 0","Year 1","Year 2","Year 3","Year 4","Year 5","Year 6","Year 7","Year 8","Year 9","Year 10"]
["Original Investment (Equity)",null,null,{"$f":"-(E105+(E90*E108))","v":0}]
["Mezzanine Financing",null,null,null,{"$f":"-$E$93","v":0},0,0,0,0,0,0,0,0,0]
["Cash Throw Off",null,null,null,{"$f":"$E$106","v":0},0,0,0,0,0,0,0,0,0]
["Sale Proceeds",null,null,null,null,null,null,null,null,null,null,null,null,{"$f":"N152*E107","v":0}]
["Loan Balance",null,null,null,null,null,null,null,null,null,null,null,null,{"$f":"V181*E108","v":0}]
["Total",null,null,{"$f":"SUM(D158:D162)","v":0},{"$f":"SUM(E158:E162)","v":0},0,0,0,0,0,0,0,0,0]
["IRR - Equity",null,null,null,null,null,null,null,null,null,null,null,null,{"$f":"IFERROR(IRR(D163:N163),0)","v":0}]
["NPV - Equity",null,null,null,null,null,null,null,null,null,null,null,null,{"$f":"NPV(E109,D163:N163)","v":0}]
[]
[]
["DEBT SERVICE MORTIZATION TABLES"]
["Primary Debt Amortization",null,null,null,null,"Low Interest Loan",null,null,null,null,"Total Debt Amortization",null,null,null,null,"Annual Debt Service Summary - Primary Debt",null,null,null,null,"Annual Debt Service Summary - Secondary Debt",null,null,null,null,"Annual Debt Service Summary - Total Debt"]
[]
["Period","Balance","Payment","Interest","Principal","Period","Balance","Payment","Interest","Principal","Period","Balance","Payment","Interest","Principal","Year","Balance","Payment","Interest","Principal","Year","Balance","Payment","Interest","Principal","Year","Balance","Payment","Interest","Principal"]
[0,{"$f":"E84","v":0},null,null,null,0,{"$f":"E90","v":0},null,null,null,0,{"$f":"B172+G172","v":0},null,null,null,1,{"$f":"B184","v":0},{"$f":"SUM(C173:C184)","v":0},{"$f":"SUM(D173:D184)","v":0},{"$f":"SUM(E173:E184)","v":0},1,{"$f":"G184","v":0},{"$f":"SUM(H173:H184)","v":0},{"$f":"SUM(I173:I184)","v":0},{"$f":"SUM(J173:J184)","v":0},1,{"$f":"Q172+V172","v":0},{"$f":"R172+W172","v":0},{"$f":"S172+X172","v":0},{"$f":"T172+Y172","v":0}]
[1,{"$f":"B172-E173","v":0},{"$f":"-$E$87/12","v":0},{"$f":"B172*$E$85/12","v":0},{"$f":"C173-D173","v":0},1,{"$f":"G172-J173","v":0},{"$f":"-$E$93/12","v":0},{"$f":"G172*$E$91/12","v":0},{"$f":"H173-I173","v":0},1,{"$f":"G173+B173","v":0},0,0,0,2,{"$f":"B196","v":0},{"$f":"SUM(C185:C196)","v":0},{"$f":"SUM(D185:D196)","v":0},{"$f":"SUM(E185:E196)","v":0},2,{"$f":"G196","v":0},{"$f":"SUM(H185:H196)","v":0},{"$f":"SUM(I185:I196)","v":0},{"$f":"SUM(J185:J196)","v":0},2,{"$f":"Q173+V173","v":0},{"$f":"R173+W173","v":0},{"$f":"S173+X173","v":0},{"$f":"T173+Y173","v":0}]
[{"$f":"A173+1","v":2},0,0,{"$f":"B173*$E$85/12","v":0},0,{"$f":"F173+1","v":2},0,0,0,0,{"$f":"K173+1","v":2},0,0,0,0,3,{"$f":"B208","v":0},{"$f":"SUM(C197:C208)","v":0},{"$f":"SUM(D197:D208)","v":0},{"$f":"SUM(E197:E208)","v":0},3,{"$f":"G208","v":0},{"$f":"SUM(H197:H208)","v":0},{"$f":"SUM(I197:I208)","v":0},{"$f":"SUM(J197:J208)","v":0},3,0,0,0,0]
[3,0,0,0,0,3,0,0,0,0,3,0,0,0,0,4,{"$f":"B220","v":0},{"$f":"SUM(C209:C220)","v":0},{"$f":"SUM(D209:D220)","v":0},{"$f":"SUM(E209:E220)","v":0},4,{"$f":"G220","v":0},{"$f":"SUM(H209:H220)","v":0},{"$f":"SUM(I209:I220)","v":0},{"$f":"SUM(J209:J220)","v":0},4,0,0,0,0]
[4,0,0,0,0,4,0,0,0,0,4,0,0,0,0,5,{"$f":"B232","v":0},{"$f":"SUM(C221:C232)","v":0},{"$f":"SUM(D221:D232)","v":0},{"$f":"SUM(E221:E232)","v":0},5,{"$f":"G232","v":0},{"$f":"SUM(H221:H232)","v":0},{"$f":"SUM(I221:I232)","v":0},{"$f":"SUM(J221:J232)","v":0},5,0,0,0,0]
[5,0,0,0,0,5,0,0,0,0,5,0,0,0,0,6,{"$f":"B244","v":0},{"$f":"SUM(C233:C244)","v":0},{"$f":"SUM(D233:D244)","v":0},{"$f":"SUM(E233:E244)","v":0},6,{"$f":"G244","v":0},{"$f":"SUM(H233:H244)","v":0},{"$f":"SUM(I233:I244)","v":0},{"$f":"SUM(J233:J244)","v":0},6,0,0,0,0]
[6,0,0,0,0,6,0,0,0,0,6,0,0,0,0,7,{"$f":"B256","v":0},{"$f":"SUM(C245:C256)","v":0},{"$f":"SUM(D245:D256)","v":0},{"$f":"SUM(E245:E256)","v":0},7,{"$f":"G256","v":0},{"$f":"SUM(H245:H256)","v":0},{"$f":"SUM(I245:I256)","v":0},{"$f":"SUM(J245:J256)","v":0},7,0,0,0,0]
[7,0,0,0,0,7,0,0,0,0,7,0,0,0,0,8,{"$f":"B268","v":0},{"$f":"SUM(C257:C268)","v":0},{"$f":"SUM(D257:D268)","v":0},{"$f":"SUM(E257:E268)","v":0},8,{"$f":"G268","v":0},{"$f":"SUM(H257:H268)","v":0},{"$f":"SUM(I257:I268)","v":0},{"$f":"SUM(J257:J268)","v":0},8,0,0,0,0]
[8,0,0,0,0,8,0,0,0,0,8,0,0,0,0,9,{"$f":"B280","v":0},{"$f":"SUM(C269:C280)","v":0},{"$f":"SUM(D269:D280)","v":0},{"$f":"SUM(E269:E280)","v":0},9,{"$f":"G280","v":0},{"$f":"SUM(H269:H280)","v":0},{"$f":"SUM(I269:I280)","v":0},{"$f":"SUM(J269:J280)","v":0},9,0,0,0,0]
[9,0,0,0,0,9,0,0,0,0,9,0,0,0,0,10,{"$f":"B292","v":0},{"$f":"SUM(C281:C292)","v":0},{"$f":"SUM(D281:D292)","v":0},{"$f":"SUM(E281:E292)","v":0},10,{"$f":"G292","v":0},{"$f":"SUM(H281:H292)","v":0},{"$f":"SUM(I281:I292)","v":0},{"$f":"SUM(J281:J292)","v":0},10,{"$f":"Q181+V181","v":0},0,0,{"$f":"T181+Y181","v":0}]
[10,0,0,0,0,10,0,0,0,0,10,0,0,0,0]
[11,0,0,0,0,11,0,0,0,0,11,0,0,0,0]
[12,0,0,0,0,12,0,0,0,0,12,0,0,0,0]
[13,0,0,0,0,13,0,0,0,0,13,0,0,0,0]
[14,0,0,0,0,14,0,0,0,0,14,0,0,0,0]
[15,0,0,0,0,15,0,0,0,0,15,0,0,0,0]
[16,0,0,0,0,16,0,0,0,0,16,0,0,0,0]
[17,0,0,0,0,17,0,0,0,0,17,0,0,0,0]
[18,0,0,0,0,18,0,0,0,0,18,0,0,0,0]
[19,0,0,0,0,19,0,0,0,0,19,0,0,0,0]
[20,0,0,0,0,20,0,0,0,0,20,0,0,0,0]
[21,0,0,0,0,21,0,0,0,0,21,0,0,0,0]
[22,0,0,0,0,22,0,0,0,0,22,0,0,0,0]
[23,0,0,0,0,23,0,0,0,0,23,0,0,0,0]
[24,0,0,0,0,24,0,0,0,0,24,0,0,0,0]
[25,0,0,0,0,25,0,0,0,0,25,0,0,0,0]
[26,0,0,0,0,26,0,0,0,0,26,0,0,0,0]
[27,0,0,0,0,27,0,0,0,0,27,0,0,0,0]
[28,0,0,0,0,28,0,0,0,0,28,0,0,0,0]
[29,0,0,0,0,29,0,0,0,0,29,0,0,0,0]
[30,0,0,0,0,30,0,0,0,0,30,0,0,0,0]
[31,0,0,0,0,31,0,0,0,0,31,0,0,0,0]
[32,0,0,0,0,32,0,0,0,0,32,0,0,0,0]
[33,0,0,0,0,33,0,0,0,0,33,0,0,0,0]
[34,0,0,0,0,34,0,0,0,0,34,0,0,0,0]
[35,0,0,0,0,35,0,0,0,0,35,0,0,0,0]
[36,0,0,0,0,36,0,0,0,0,36,0,0,0,0]
[37,0,0,0,0,37,0,0,0,0,37,0,0,0,0]
[38,0,0,0,0,38,0,0,0,0,38,0,0,0,0]
[39,0,0,0,0,39,0,0,0,0,39,0,0,0,0]
[40,0,0,0,0,40,0,0,0,0,40,0,0,0,0]
[41,0,0,0,0,41,0,0,0,0,41,0,0,0,0]
[42,0,0,0,0,42,0,0,0,0,42,0,0,0,0]
[43,0,0,0,0,43,0,0,0,0,43,0,0,0,0]
[44,0,0,0,0,44,0,0,0,0,44,0,0,0,0]
[45,0,0,0,0,45,0,0,0,0,45,0,0,0,0]
[46,0,0,0,0,46,0,0,0,0,46,0,0,0,0]
[47,0,0,0,0,47,0,0,0,0,47,0,0,0,0]
[48,0,0,0,0,48,0,0,0,0,48,0,0,0,0]
[49,0,0,0,0,49,0,0,0,0,49,0,0,0,0]
[50,0,0,0,0,50,0,0,0,0,50,0,0,0,0]
[51,0,0,0,0,51,0,0,0,0,51,0,0,0,0]
[52,0,0,0,0,52,0,0,0,0,52,0,0,0,0]
[53,0,0,0,0,53,0,0,0,0,53,0,0,0,0]
[54,0,0,0,0,54,0,0,0,0,54,0,0,0,0]
[55,0,0,0,0,55,0,0,0,0,55,0,0,0,0]
[56,0,0,0,0,56,0,0,0,0,56,0,0,0,0]
[57,0,0,0,0,57,0,0,0,0,57,0,0,0,0]
[58,0,0,0,0,58,0,0,0,0,58,0,0,0,0]
[59,0,0,0,0,59,0,0,0,0,59,0,0,0,0]
[60,0,0,0,0,60,0,0,0,0,60,0,0,0,0]
[61,0,0,0,0,61,0,0,0,0,61,0,0,0,0]
[62,0,0,0,0,62,0,0,0,0,62,0,0,0,0]
[63,0,0,0,0,63,0,0,0,0,63,0,0,0,0]
[64,0,0,0,0,64,0,0,0,0,64,0,0,0,{"$f":"J236+E236","v":0}]
[65,{"$f":"B236-E237","v":0},{"$f":"-$E$87/12","v":0},0,{"$f":"C237-D237","v":0},65,{"$f":"G236-J237","v":0},{"$f":"-$E$93/12","v":0},{"$f":"G236*$E$91/12","v":0},{"$f":"H237-I237","v":0},65,{"$f":"G237+B237","v":0},0,0,0]
[{"$f":"A237+1","v":66},0,0,{"$f":"B237*$E$85/12","v":0},0,{"$f":"F237+1","v":66},0,0,0,0,{"$f":"K237+1","v":66},0,0,0,0]
[67,0,0,0,0,67,0,0,0,0,67,0,0,0,0]
[68,0,0,0,0,68,0,0,0,0,68,0,0,0,0]
[69,0,0,0,0,69,0,0,0,0,69,0,0,0,0]
[70,0,0,0,0,70,0,0,0,0,70,0,0,0,0]
[71,0,0,0,0,71,0,0,0,0,71,0,0,0,0]
[72,0,0,0,0,72,0,0,0,0,72,0,0,0,0]
[73,0,0,0,0,73,0,0,0,0,73,0,0,0,0]
[74,0,0,0,0,74,0,0,0,0,74,0,0,0,0]
[75,0,0,0,0,75,0,0,0,0,75,0,0,0,0]
[76,0,0,0,0,76,0,0,0,0,76,0,0,0,0]
[77,0,0,0,0,77,0,0,0,0,77,0,0,0,0]
[78,0,0,0,0,78,0,0,0,0,78,0,0,0,0]
[79,0,0,0,0,79,0,0,0,0,79,0,0,0,0]
[80,0,0,0,0,80,0,0,0,0,80,0,0,0,0]
[81,0,0,0,0,81,0,0,0,0,81,0,0,0,0]
[82,0,0,0,0,82,0,0,0,0,82,0,0,0,0]
[83,0,0,0,0,83,0,0,0,0,83,0,0,0,0]
[84,0,0,0,0,84,0,0,0,0,84,0,0,0,0]
[85,0,0,0,0,85,0,0,0,0,85,0,0,0,0]
[86,0,0,0,0,86,0,0,0,0,86,0,0,0,0]
[87,0,0,0,0,87,0,0,0,0,87,0,0,0,0]
[88,0,0,0,0,88,0,0,0,0,88,0,0,0,0]
[89,0,0,0,0,89,0,0,0,0,89,0,0,0,0]
[90,0,0,0,0,90,0,0,0,0,90,0,0,0,0]
[91,0,0,0,0,91,0,0,0,0,91,0,0,0,0]
[92,0,0,0,0,92,0,0,0,0,92,0,0,0,0]
[93,0,0,0,0,93,0,0,0,0,93,0,0,0,0]
[94,0,0,0,0,94,0,0,0,0,94,0,0,0,0]
[95,0,0,0,0,95,0,0,0,0,95,0,0,0,0]
[96,0,0,0,0,96,0,0,0,0,96,0,0,0,0]
[97,0,0,0,0,97,0,0,0,0,97,0,0,0,0]
[98,0,0,0,0,98,0,0,0,0,98,0,0,0,0]
[99,0,0,0,0,99,0,0,0,0,99,0,0,0,0]
[100,0,0,0,0,100,0,0,0,0,100,0,0,0,0]
[101,0,0,0,0,101,0,0,0,0,101,0,0,0,0]
[102,0,0,0,0,102,0,0,0,0,102,0,0,0,0]
[103,0,0,0,0,103,0,0,0,0,103,0,0,0,0]
[104,0,0,0,0,104,0,0,0,0,104,0,0,0,0]
[105,0,0,0,0,105,0,0,0,0,105,0,0,0,0]
[106,0,0,0,0,106,0,0,0,0,106,0,0,0,0]
[107,0,0,0,0,107,0,0,0,0,107,0,0,0,0]
[108,0,0,0,0,108,0,0,0,0,108,0,0,0,0]
[109,0,0,0,0,109,0,0,0,0,109,0,0,0,0]
[110,0,0,0,0,110,0,0,0,0,110,0,0,0,0]
[111,0,0,0,0,111,0,0,0,0,111,0,0,0,0]
[112,0,0,0,0,112,0,0,0,0,112,0,0,0,0]
[113,0,0,0,0,113,0,0,0,0,113,0,0,0,0]
[114,0,0,0,0,114,0,0,0,0,114,0,0,0,0]
[115,0,0,0,0,115,0,0,0,0,115,0,0,0,0]
[116,0,0,0,0,116,0,0,0,0,116,0,0,0,0]
[117,0,0,0,0,117,0,0,0,0,117,0,0,0,0]
[118,0,0,0,0,118,0,0,0,0,118,0,0,0,0]
[119,0,0,0,0,119,0,0,0,0,119,0,0,0,0]
[120,0,0,0,0,120,0,0,0,0,120,0,0,0,0]
[121,0,0,0,0,121,0,0,0,0,121,0,0,0,0]
[122,0,0,0,0,122,0,0,0,0,122,0,0,0,0]
[123,0,0,0,0,123,0,0,0,0,123,0,0,0,0]
[124,0,0,0,0,124,0,0,0,0,124,0,0,0,0]
[125,0,0,0,0,125,0,0,0,0,125,0,0,0,0]
[126,0,0,0,0,126,0,0,0,0,126,0,0,0,0]
[127,0,0,0,0,127,0,0,0,0,127,0,0,0,0]
[128,0,0,0,0,128,0,0,0,0,128,0,0,0,0]
[129,{"$f":"B300-E301","v":0},{"$f":"-$E$87/12","v":0},0,{"$f":"C301-D301","v":0},129,{"$f":"G300-J301","v":0},{"$f":"-$E$93/12","v":0},{"$f":"G300*$E$91/12","v":0},{"$f":"H301-I301","v":0},129,{"$f":"G301+B301","v":0},0,0,0]
[{"$f":"A301+1","v":130},0,0,{"$f":"B301*$E$85/12","v":0},0,{"$f":"F301+1","v":130},0,0,0,0,{"$f":"K301+1","v":130},0,0,0,0]
[131,0,0,0,0,131,0,0,0,0,131,0,0,0,0]
[132,0,0,0,0,132,0,0,0,0,132,0,0,0,0]
[133,0,0,0,0,133,0,0,0,0,133,0,0,0,0]
[134,0,0,0,0,134,0,0,0,0,134,0,0,0,0]
[135,0,0,0,0,135,0,0,0,0,135,0,0,0,0]
[136,0,0,0,0,136,0,0,0,0,136,0,0,0,0]
[137,0,0,0,0,137,0,0,0,0,137,0,0,0,0]
[138,0,0,0,0,138,0,0,0,0,138,0,0,0,0]
[139,0,0,0,0,139,0,0,0,0,139,0,0,0,0]
[140,0,0,0,0,140,0,0,0,0,140,0,0,0,0]
[141,0,0,0,0,141,0,0,0,0,141,0,0,0,0]
[142,0,0,0,0,142,0,0,0,0,142,0,0,0,0]
[143,0,0,0,0,143,0,0,0,0,143,0,0,0,0]
[144,0,0,0,0,144,0,0,0,0,144,0,0,0,0]
[145,0,0,0,0,145,0,0,0,0,145,0,0,0,0]
[146,0,0,0,0,146,0,0,0,0,146,0,0,0,0]
[147,0,0,0,0,147,0,0,0,0,147,0,0,0,0]
[148,0,0,0,0,148,0,0,0,0,148,0,0,0,0]
[149,0,0,0,0,149,0,0,0,0,149,0,0,0,0]
[150,0,0,0,0,150,0,0,0,0,150,0,0,0,0]
[151,0,0,0,0,151,0,0,0,0,151,0,0,0,0]
[152,0,0,0,0,152,0,0,0,0,152,0,0,0,0]
[153,0,0,0,0,153,0,0,0,0,153,0,0,0,0]
[154,0,0,0,0,154,0,0,0,0,154,0,0,0,0]
[155,0,0,0,0,155,0,0,0,0,155,0,0,0,0]
[156,0,0,0,0,156,0,0,0,0,156,0,0,0,0]
[157,0,0,0,0,157,0,0,0,0,157,0,0,0,0]
[158,0,0,0,0,158,0,0,0,0,158,0,0,0,0]
[159,0,0,0,0,159,0,0,0,0,159,0,0,0,0]
[160,0,0,0,0,160,0,0,0,0,160,0,0,0,0]
[161,0,0,0,0,161,0,0,0,0,161,0,0,0,0]
[162,0,0,0,0,162,0,0,0,0,162,0,0,0,0]
[163,0,0,0,0,163,0,0,0,0,163,0,0,0,0]
[164,0,0,0,0,164,0,0,0,0,164,0,0,0,0]
[165,0,0,0,0,165,0,0,0,0,165,0,0,0,0]
[166,0,0,0,0,166,0,0,0,0,166,0,0,0,0]
[167,0,0,0,0,167,0,0,0,0,167,0,0,0,0]
[168,0,0,0,0,168,0,0,0,0,168,0,0,0,0]
[169,0,0,0,0,169,0,0,0,0,169,0,0,0,0]
[170,0,0,0,0,170,0,0,0,0,170,0,0,0,0]
[171,0,0,0,0,171,0,0,0,0,171,0,0,0,0]
[172,0,0,0,0,172,0,0,0,0,172,0,0,0,0]
[173,0,0,0,0,173,0,0,0,0,173,0,0,0,0]
[174,0,0,0,0,174,0,0,0,0,174,0,0,0,0]
[175,0,0,0,0,175,0,0,0,0,175,0,0,0,0]
[176,0,0,0,0,176,0,0,0,0,176,0,0,0,0]
[177,0,0,0,0,177,0,0,0,0,177,0,0,0,0]
[178,0,0,0,0,178,0,0,0,0,178,0,0,0,0]
[179,0,0,0,0,179,0,0,0,0,179,0,0,0,0]
[180,0,0,0,0,180,0,0,0,0,180,0,0,0,0]
[181,0,0,0,0,181,0,0,0,0,181,0,0,0,0]
[182,0,0,0,0,182,0,0,0,0,182,0,0,0,0]
[183,0,0,0,0,183,0,0,0,0,183,0,0,0,0]
[184,0,0,0,0,184,0,0,0,0,184,0,0,0,0]
[185,0,0,0,0,185,0,0,0,0,185,0,0,0,0]
[186,0,0,0,0,186,0,0,0,0,186,0,0,0,0]
[187,0,0,0,0,187,0,0,0,0,187,0,0,0,0]
[188,0,0,0,0,188,0,0,0,0,188,0,0,0,0]
[189,0,0,0,0,189,0,0,0,0,189,0,0,0,0]
[190,0,0,0,0,190,0,0,0,0,190,0,0,0,0]
[191,0,0,0,0,191,0,0,0,0,191,0,0,0,0]
[192,0,0,0,0,192,0,0,0,0,192,0,0,0,{"$f":"J364+E364","v":0}]
[193,{"$f":"B364-E365","v":0},{"$f":"-$E$87/12","v":0},0,{"$f":"C365-D365","v":0},193,{"$f":"G364-J365","v":0},{"$f":"-$E$93/12","v":0},{"$f":"G364*$E$91/12","v":0},{"$f":"H365-I365","v":0},193,{"$f":"G365+B365","v":0},0,0,0]
[{"$f":"A365+1","v":194},0,0,{"$f":"B365*$E$85/12","v":0},0,{"$f":"F365+1","v":194},0,0,0,0,{"$f":"K365+1","v":194},0,0,0,0]
[195,0,0,0,0,195,0,0,0,0,195,0,0,0,0]
[196,0,0,0,0,196,0,0,0,0,196,0,0,0,0]
[197,0,0,0,0,197,0,0,0,0,197,0,0,0,0]
[198,0,0,0,0,198,0,0,0,0,198,0,0,0,0]
[199,0,0,0,0,199,0,0,0,0,199,0,0,0,0]
[200,0,0,0,0,200,0,0,0,0,200,0,0,0,0]
[201,0,0,0,0,201,0,0,0,0,201,0,0,0,0]
[202,0,0,0,0,202,0,0,0,0,202,0,0,0,0]
[203,0,0,0,0,203,0,0,0,0,203,0,0,0,0]
[204,0,0,0,0,204,0,0,0,0,204,0,0,0,0]
[205,0,0,0,0,205,0,0,0,0,205,0,0,0,0]
[206,0,0,0,0,206,0,0,0,0,206,0,0,0,0]
[207,0,0,0,0,207,0,0,0,0,207,0,0,0,0]
[208,0,0,0,0,208,0,0,0,0,208,0,0,0,0]
[209,0,0,0,0,209,0,0,0,0,209,0,0,0,0]
[210,0,0,0,0,210,0,0,0,0,210,0,0,0,0]
[211,0,0,0,0,211,0,0,0,0,211,0,0,0,0]
[212,0,0,0,0,212,0,0,0,0,212,0,0,0,0]
[213,0,0,0,0,213,0,0,0,0,213,0,0,0,0]
[214,0,0,0,0,214,0,0,0,0,214,0,0,0,0]
[215,0,0,0,0,215,0,0,0,0,215,0,0,0,0]
[216,0,0,0,0,216,0,0,0,0,216,0,0,0,0]
[217,0,0,0,0,217,0,0,0,0,217,0,0,0,0]
[218,0,0,0,0,218,0,0,0,0,218,0,0,0,0]
[219,0,0,0,0,219,0,0,0,0,219,0,0,0,0]
[220,0,0,0,0,220,0,0,0,0,220,0,0,0,0]
[221,0,0,0,0,221,0,0,0,0,221,0,0,0,0]
[222,0,0,0,0,222,0,0,0,0,222,0,0,0,0]
[223,0,0,0,0,223,0,0,0,0,223,0,0,0,0]
[224,0,0,0,0,224,0,0,0,0,224,0,0,0,0]
[225,0,0,0,0,225,0,0,0,0,225,0,0,0,0]
[226,0,0,0,0,226,0,0,0,0,226,0,0,0,0]
[227,0,0,0,0,227,0,0,0,0,227,0,0,0,0]
[228,0,0,0,0,228,0,0,0,0,228,0,0,0,0]
[229,0,0,0,0,229,0,0,0,0,229,0,0,0,0]
[230,0,0,0,0,230,0,0,0,0,230,0,0,0,0]
[231,0,0,0,0,231,0,0,0,0,231,0,0,0,0]
[232,0,0,0,0,232,0,0,0,0,232,0,0,0,0]
[233,0,0,0,0,233,0,0,0,0,233,0,0,0,0]
[234,0,0,0,0,234,0,0,0,0,234,0,0,0,0]
[235,0,0,0,0,235,0,0,0,0,235,0,0,0,0]
[236,0,0,0,0,236,0,0,0,0,236,0,0,0,0]
[237,0,0,0,0,237,0,0,0,0,237,0,0,0,0]
[238,0,0,0,0,238,0,0,0,0,238,0,0,0,0]
[239,0,0,0,0,239,0,0,0,0,239,0,0,0,0]
[240,0,0,0,0,240,0,0,0,0,240,0,0,0,0]
[241,0,0,0,0,241,0,0,0,0,241,0,0,0,0]
[242,0,0,0,0,242,0,0,0,0,242,0,0,0,0]
[243,0,0,0,0,243,0,0,0,0,243,0,0,0,0]
[244,0,0,0,0,244,0,0,0,0,244,0,0,0,0]
[245,0,0,0,0,245,0,0,0,0,245,0,0,0,0]
[246,0,0,0,0,246,0,0,0,0,246,0,0,0,0]
[247,0,0,0,0,247,0,0,0,0,247,0,0,0,0]
[248,0,0,0,0,248,0,0,0,0,248,0,0,0,0]
[249,0,0,0,0,249,0,0,0,0,249,0,0,0,0]
[250,0,0,0,0,250,0,0,0,0,250,0,0,0,0]
[251,0,0,0,0,251,0,0,0,0,251,0,0,0,0]
[252,0,0,0,0,252,0,0,0,0,252,0,0,0,0]
[253,0,0,0,0,253,0,0,0,0,253,0,0,0,0]
[254,0,0,0,0,254,0,0,0,0,254,0,0,0,0]
[255,0,0,0,0,255,0,0,0,0,255,0,0,0,0]
[256,0,0,0,0,256,0,0,0,0,256,0,0,0,0]
[257,{"$f":"B428-E429","v":0},{"$f":"-$E$87/12","v":0},0,{"$f":"C429-D429","v":0},257,{"$f":"G428-J429","v":0},{"$f":"-$E$93/12","v":0},{"$f":"G428*$E$91/12","v":0},{"$f":"H429-I429","v":0},257,{"$f":"G429+B429","v":0},0,0,0]
[{"$f":"A429+1","v":258},0,0,{"$f":"B429*$E$85/12","v":0},0,{"$f":"F429+1","v":258},0,0,0,0,{"$f":"K429+1","v":258},0,0,0,0]
[259,0,0,0,0,259,0,0,0,0,259,0,0,0,0]
[260,0,0,0,0,260,0,0,0,0,260,0,0,0,0]
[261,0,0,0,0,261,0,0,0,0,261,0,0,0,0]
[262,0,0,0,0,262,0,0,0,0,262,0,0,0,0]
[263,0,0,0,0,263,0,0,0,0,263,0,0,0,0]
[264,0,0,0,0,264,0,0,0,0,264,0,0,0,0]
[265,0,0,0,0,265,0,0,0,0,265,0,0,0,0]
[266,0,0,0,0,266,0,0,0,0,266,0,0,0,0]
[267,0,0,0,0,267,0,0,0,0,267,0,0,0,0]
[268,0,0,0,0,268,0,0,0,0,268,0,0,0,0]
[269,0,0,0,0,269,0,0,0,0,269,0,0,0,0]
[270,0,0,0,0,270,0,0,0,0,270,0,0,0,0]
[271,0,0,0,0,271,0,0,0,0,271,0,0,0,0]
[272,0,0,0,0,272,0,0,0,0,272,0,0,0,0]
[273,0,0,0,0,273,0,0,0,0,273,0,0,0,0]
[274,0,0,0,0,274,0,0,0,0,274,0,0,0,0]
[275,0,0,0,0,275,0,0,0,0,275,0,0,0,0]
[276,0,0,0,0,276,0,0,0,0,276,0,0,0,0]
[277,0,0,0,0,277,0,0,0,0,277,0,0,0,0]
[278,0,0,0,0,278,0,0,0,0,278,0,0,0,0]
[279,0,0,0,0,279,0,0,0,0,279,0,0,0,0]
[280,0,0,0,0,280,0,0,0,0,280,0,0,0,0]
[281,0,0,0,0,281,0,0,0,0,281,0,0,0,0]
[282,0,0,0,0,282,0,0,0,0,282,0,0,0,0]
[283,0,0,0,0,283,0,0,0,0,283,0,0,0,0]
[284,0,0,0,0,284,0,0,0,0,284,0,0,0,0]
[285,0,0,0,0,285,0,0,0,0,285,0,0,0,0]
[286,0,0,0,0,286,0,0,0,0,286,0,0,0,0]
[287,0,0,0,0,287,0,0,0,0,287,0,0,0,0]
[288,0,0,0,0,288,0,0,0,0,288,0,0,0,0]
[289,0,0,0,0,289,0,0,0,0,289,0,0,0,0]
[290,0,0,0,0,290,0,0,0,0,290,0,0,0,0]
[291,0,0,0,0,291,0,0,0,0,291,0,0,0,0]
[292,0,0,0,0,292,0,0,0,0,292,0,0,0,0]
[293,0,0,0,0,293,0,0,0,0,293,0,0,0,0]
[294,0,0,0,0,294,0,0,0,0,294,0,0,0,0]
[295,0,0,0,0,295,0,0,0,0,295,0,0,0,0]
[296,0,0,0,0,296,0,0,0,0,296,0,0,0,0]
[297,0,0,0,0,297,0,0,0,0,297,0,0,0,0]
[298,0,0,0,0,298,0,0,0,0,298,0,0,0,0]
[299,0,0,0,0,299,0,0,0,0,299,0,0,0,0]
[300,0,0,0,0,300,0,0,0,0,300,0,0,0,0]
[301,0,0,0,0,301,0,0,0,0,301,0,0,0,0]
[302,0,0,0,0,302,0,0,0,0,302,0,0,0,0]
[303,0,0,0,0,303,0,0,0,0,303,0,0,0,0]
[304,0,0,0,0,304,0,0,0,0,304,0,0,0,0]
[305,0,0,0,0,305,0,0,0,0,305,0,0,0,0]
[306,0,0,0,0,306,0,0,0,0,306,0,0,0,0]
[307,0,0,0,0,307,0,0,0,0,307,0,0,0,0]
[308,0,0,0,0,308,0,0,0,0,308,0,0,0,0]
[309,0,0,0,0,309,0,0,0,0,309,0,0,0,0]
[310,0,0,0,0,310,0,0,0,0,310,0,0,0,0]
[311,0,0,0,0,311,0,0,0,0,311,0,0,0,0]
[312,0,0,0,0,312,0,0,0,0,312,0,0,0,0]
[313,0,0,0,0,313,0,0,0,0,313,0,0,0,0]
[314,0,0,0,0,314,0,0,0,0,314,0,0,0,0]
[315,0,0,0,0,315,0,0,0,0,315,0,0,0,0]
[316,0,0,0,0,316,0,0,0,0,316,0,0,0,0]
[317,0,0,0,0,317,0,0,0,0,317,0,0,0,0]
[318,0,0,0,0,318,0,0,0,0,318,0,0,0,0]
[319,0,0,0,0,319,0,0,0,0,319,0,0,0,0]
[320,0,0,0,0,320,0,0,0,0,320,0,0,0,{"$f":"J492+E492","v":0}]
[321,{"$f":"B492-E493","v":0},{"$f":"-$E$87/12","v":0},0,{"$f":"C493-D493","v":0},321,{"$f":"G492-J493","v":0},{"$f":"-$E$93/12","v":0},{"$f":"G492*$E$91/12","v":0},{"$f":"H493-I493","v":0},321,{"$f":"G493+B493","v":0},0,0,0]
[{"$f":"A493+1","v":322},0,0,{"$f":"B493*$E$85/12","v":0},0,{"$f":"F493+1","v":322},0,0,0,0,{"$f":"K493+1","v":322},0,0,0,0]
[323,0,0,0,0,323,0,0,0,0,323,0,0,0,0]
[324,0,0,0,0,324,0,0,0,0,324,0,0,0,0]
[325,0,0,0,0,325,0,0,0,0,325,0,0,0,0]
[326,0,0,0,0,326,0,0,0,0,326,0,0,0,0]
[327,0,0,0,0,327,0,0,0,0,327,0,0,0,0]
[328,0,0,0,0,328,0,0,0,0,328,0,0,0,0]
[329,0,0,0,0,329,0,0,0,0,329,0,0,0,0]
[330,0,0,0,0,330,0,0,0,0,330,0,0,0,0]
[331,0,0,0,0,331,0,0,0,0,331,0,0,0,0]
[332,0,0,0,0,332,0,0,0,0,332,0,0,0,0]
[333,0,0,0,0,333,0,0,0,0,333,0,0,0,0]
[334,0,0,0,0,334,0,0,0,0,334,0,0,0,0]
[335,0,0,0,0,335,0,0,0,0,335,0,0,0,0]
[336,0,0,0,0,336,0,0,0,0,336,0,0,0,0]
[337,0,0,0,0,337,0,0,0,0,337,0,0,0,0]
[338,0,0,0,0,338,0,0,0,0,338,0,0,0,0]
[339,0,0,0,0,339,0,0,0,0,339,0,0,0,0]
[340,0,0,0,0,340,0,0,0,0,340,0,0,0,0]
[341,0,0,0,0,341,0,0,0,0,341,0,0,0,0]
[342,0,0,0,0,342,0,0,0,0,342,0,0,0,0]
[343,0,0,0,0,343,0,0,0,0,343,0,0,0,0]
[344,0,0,0,0,344,0,0,0,0,344,0,0,0,0]
[345,0,0,0,0,345,0,0,0,0,345,0,0,0,0]
[346,0,0,0,0,346,0,0,0,0,346,0,0,0,0]
[347,0,0,0,0,347,0,0,0,0,347,0,0,0,0]
[348,0,0,0,0,348,0,0,0,0,348,0,0,0,0]
[349,0,0,0,0,349,0,0,0,0,349,0,0,0,0]
[350,0,0,0,0,350,0,0,0,0,350,0,0,0,0]
[351,0,0,0,0,351,0,0,0,0,351,0,0,0,0]
[352,0,0,0,0,352,0,0,0,0,352,0,0,0,0]
[353,0,0,0,0,353,0,0,0,0,353,0,0,0,0]
[354,0,0,0,0,354,0,0,0,0,354,0,0,0,0]
[355,0,0,0,0,355,0,0,0,0,355,0,0,0,0]
[356,0,0,0,0,356,0,0,0,0,356,0,0,0,0]
[357,0,0,0,0,357,0,0,0,0,357,0,0,0,0]
[358,0,0,0,0,358,0,0,0,0,358,0,0,0,0]
[359,0,0,0,0,359,0,0,0,0,359,0,0,0,0]
[360,0,0,0,0,360,0,0,0,0,360,0,0,0,0]

{"sheet":"Hotel","index":12,"n_rows":535,"n_cols":30,"rows_kept":535,"cut":false,"hidden":false,"merged":[]}
["ROI Template - Accommodation"]
[]
["Leveraging Tools",null,null,"Summary","User override ","TOTAL",null,"Investment Targets and Performance"]
["Tax Credits net to project",null,null,{"$f":"'Gap Financing Options'!D116","v":0},0,{"$f":"IF('Basic Financial'!$B$33=0,D4,0)","v":0},null,"Performance Indicator",null,null,null,"Target","Actual","NPV"]
["Fee Reductions",null,null,{"$f":"'Gap Financing Options'!D82","v":0},0,{"$f":"IF('Basic Financial'!$B$33=0,D5,0)","v":0},null,"Cash-on-Cash After Year 3",null,null,null,{"$f":"'Advanced Financial'!D64","v":0.1},{"$f":"G135","v":0}]
["Grants",null,null,{"$f":"'Gap Financing Options'!D92","v":0},0,{"$f":"IF('Basic Financial'!$B$33=0,D6,('Basic Financial'!$B$33*'Development Costs'!E45))","v":0},null,"IRR on Project Cost (Unleveraged Return)",null,null,null,{"$f":"'Advanced Financial'!D65","v":0.12},{"$f":"N149","v":0},{"$f":"N150","v":0},{"$f":"IF(N149=0, \"Check NPV for target\",\"\")","v":"Check NPV for target"}]
["Total Development Offsets (Contributions to Equity)",null,null,null,null,{"$f":"SUM(F4:F6)","v":0},null,"IRR on Investor Equity (Leveraged Return Before Tax)",null,null,null,{"$f":"'Advanced Financial'!D66","v":0.25},{"$f":"N157","v":0},{"$f":"N158","v":0},{"$f":"IF(N157=0, \"Check NPV for target\",\"\")","v":"Check NPV for target"}]
["Net Development Costs",null,null,null,null,{"$f":"(C58-F7)","v":0},null,"Debt Service Coverage Ratio (Year 3)",null,null,null,{"$f":"'Advanced Financial'!D67","v":1.25},{"$f":"IFERROR(G130/G131,0)","v":0}]
[null,null,null,null,null,null,null,"IRR on Public Participation",null,null,null,{"$f":"E112","v":0.05},{"$f":"N167","v":0},{"$f":"N168","v":0}]
[]
[]
[]
["Local Property Tax Rate Available for abatement",null,null,{"$f":"'Gap Financing Options'!D15","v":0}]
["Local Sales Tax Rate Available for abatement",null,null,{"$f":"'Gap Financing Options'!D31","v":0}]
[]
["Net Operating Income Analysis"]
["Total Development Costs",null,{"$f":"-'Development Costs'!D45","v":0}]
["Project Feature",null,"Project","Average Daily Rent"]
["Number of units",null,{"$f":"'Physical Outputs'!D34","v":0},{"$f":"'Basic Financial'!B60","v":50}]
["Total project size, square feet",null,{"$f":"'Physical Outputs'!C34","v":0}]
["Other Income",null,{"$f":"'Advanced Financial'!D77","v":0.1}]
["Less: Vacancy",null,{"$f":"1-'Advanced Financial'!C31","v":0.25}]
["Less: Concessions, Bad Debt",null,{"$f":"'Advanced Financial'!D78","v":0.02}]
["Less: Operating Costs (%of GPI)",null,{"$f":"'Advanced Financial'!D79","v":0.3}]
[]
["Initial Project Value Analysis"]
["Property Value (Year 1)"]
["Going in Cap Rate",null,null,{"$f":"'Advanced Financial'!D80","v":0.06}]
[]
["Debt Financing"]
["Primary Debt"]
["Maximum LTV",null,null,{"$f":"'Advanced Financial'!D87","v":0.6}]
["Rate",null,null,{"$f":"'Advanced Financial'!D88","v":0.06}]
["Amortization Period, Years",null,null,{"$f":"'Advanced Financial'!D89","v":30}]
["Public Leveraging Loan"]
["Maximum LTV",null,null,{"$f":"IF(D43=1,'Gap Financing Options'!D63,0)","v":0}]
["Rate",null,null,{"$f":"IF(D43=1,'Gap Financing Options'!D64,0)","v":0}]
["Amortization Period, Years",null,null,{"$f":"IF(D43=1,'Gap Financing Options'!D65,0)","v":0}]
["Public Participation"]
["Capital Recovery (from grants)",null,null,{"$f":"IF(D43=1,'Gap Financing Options'!D69,0)","v":0}]
["Annual Cash Throw Off",null,null,{"$f":"IF(D43=1,'Gap Financing Options'!D70,0)","v":0}]
["Share of Net Sales Price",null,null,{"$f":"IF(D43=1,'Gap Financing Options'!D71,0)","v":0}]
["Public Leveraging Loan Included in Analysis?(1=Yes; 0=No) ",null,null,{"$f":"'Gap Financing Options'!D62","v":0}]
["Target IRR",null,null,{"$f":"'Advanced Financial'!D68","v":0.05}]
[]
["Operating Statement"]
["GPI",null,"Escalation",{"$f":"'Advanced Financial'!D81","v":0.03}]
["EGI"]
["Less: Operating Costs",null,"Escalation",{"$f":"'Advanced Financial'!D82","v":0.03}]
[]
["Project Value",null,null,"Year 1"]
["Terminal Cap Rate, Gross Sales Price",null,null,{"$f":"'Advanced Financial'!D83","v":7.2999999999999995E-2}]
["Net Sales = Price Less Sales Cost",null,null,{"$f":"'Advanced Financial'!D84","v":0.05}]
[]
[]
[]
["Net Operating Income Analysis"]
["Total Development Costs",null,{"$f":"C17","v":0}]
["Development Costs Per Unit",null,{"$f":"IFERROR(C58/C61,0)","v":0}]
["Project Feature",null,"Project","Average Daily Rent","Total Rent @ 365 Days","Occupied Rooms"]
["Number of units",null,{"$f":"C19","v":0},{"$f":"D19","v":50}]
["Total project size, square feet",null,{"$f":"C20","v":0}]
["Gross Potential Rent  (GPI)",null,null,null,{"$f":"D61*C61*365","v":0}]
["Other Income",null,{"$f":"C21","v":0.1},null,{"$f":"C64*E63","v":0}]
["Total Income",null,null,null,{"$f":"E63+E64","v":0}]
["Less: Vacancy",null,{"$f":"C22","v":0.25},null,{"$f":"E65*C66","v":0},{"$f":"C61*(1-C66)*365","v":0}]
["Less: Concessions, Bad Debt",null,{"$f":"C23","v":0.02},null,{"$f":"E65*C67","v":0}]
["Effective Gross Income  (EGI)",null,null,null,{"$f":"E65-E66-E67","v":0}]
["Less: Operating Costs (%of GPI)",null,{"$f":"C24","v":0.3},null,{"$f":"C69*E63","v":0}]
["Net Operating Income",null,null,null,{"$f":"E68-E69","v":0}]
[]
["Initial Project Value Analysis"]
["CAP RATE (Yield to Costs)",null,null,{"$f":"IFERROR(E70/F8,0)","v":0}]
["Debt Service",null,null,{"$f":"IFERROR(-E99,0)","v":0}]
["Cash Flow",null,null,{"$f":"E70-D74","v":0}]
["Return on Equity (Year 1)",null,null,{"$f":"IFERROR(D75/E104,0)","v":0}]
["Property Value (Year 1)"]
["NOI",null,null,{"$f":"E70","v":0}]
["Going in Cap Rate",null,null,{"$f":"D28","v":0.06}]
["Project Market Value",null,null,{"$f":"IFERROR(D78/D79,0)","v":0}]
["Net Project Value",null,null,{"$f":"D80-C58","v":0}]
[]
["Debt Financing"]
["Primary Debt"]
["Total Value",null,null,null,{"$f":"IF(D80>C58,C58,D80)","v":0}]
["Maximum LTV",null,null,{"$f":"D32","v":0.6},{"$f":"E85*D86","v":0}]
["Imputed Loan Amount",null,null,null,{"$f":"E86","v":0}]
["Rate",null,null,null,{"$f":"D33","v":0.06}]
["Amortization Period, Years",null,null,null,{"$f":"D34","v":30}]
["Annual Debt Service (Amortized)",null,null,null,{"$f":"IFERROR(PMT(E88/12,E89*12,E87)*12,0)","v":0}]
["Public Leveraging Loan"]
["Maximum LTV",null,null,{"$f":"IF(D43=1,D36,0)","v":0},{"$f":"IF(E85*D92>'Development Costs'!E45*'Gap Financing Options'!B73,'Development Costs'!E45*'Gap Financing Options'!B73,E85*D92)","v":0}]
["Imputed Loan Amount",null,null,null,{"$f":"IF(AND(D43=1,'Basic Financial'!B33=0),E92+'Gap Financing Options'!D68,0)","v":0}]
["Rate",null,null,null,{"$f":"IF(D43=1,D37,0)","v":0}]
["Amortization Period, Years",null,null,null,{"$f":"D38","v":0}]
["Annual Debt Service (Amortized)",null,null,null,{"$f":"IFERROR(PMT(E94/12,E95*12,E93)*12,0)","v":0}]
[]
["Total Debt",null,null,null,{"$f":"E87+E93","v":0}]
["Total Debt Service",null,null,null,{"$f":"E90+E96","v":0}]
["Summary"]
["Total Development Costs",null,null,null,{"$f":"C58","v":0}]
["Equity Required",null,null,null,{"$f":"IF(E101-E98<0,1,E101-E98)","v":0}]
["Total Development Offsets (Contributions to Equity)",null,null,null,{"$f":"F7","v":0}]
["Net Equity Required",null,null,null,{"$f":"E102-E103","v":0}]
["Total Project Cost",null,null,null,{"$f":"E101","v":0}]
["Total Project Cost After Development Offsets",null,null,null,{"$f":"E105-E103","v":0}]
["Public Participation"]
["Capital Recovery (from grants)",null,null,null,{"$f":"D40","v":0}]
["Annual Cash Throw Off",null,null,null,{"$f":"D41","v":0}]
["Share of Net Sales Price",null,null,null,{"$f":"D42","v":0}]
["Public Leveraging Loan Included in Analysis? ",null,null,"(1=Yes; 0=No)",{"$f":"D43","v":0}]
["Target IRR",null,null,null,{"$f":"D44","v":0.05}]
[]
[]
[]
["Operating Statement",null,null,null,"Year 1","Year 2","Year 3","Year 4","Year 5","Year 6","Year 7","Year 8","Year 9","Year 10"]
["GPI",null,"Escalation",{"$f":"D47","v":0.03},{"$f":"E63","v":0},{"$f":"E117*(1+$D$117)","v":0},0,0,0,0,0,0,0,0]
["Other Income",null,null,null,{"$f":"E64","v":0},0,0,0,0,0,0,0,0,0]
["Total Income",null,null,null,{"$f":"E117+E118","v":0},0,0,0,0,0,0,0,0,0]
["Less: Vacancy",null,null,{"$f":"C66","v":0.25},{"$f":"$D$120*E119","v":0},0,0,0,0,0,0,0,0,0]
["Less: Concessions, Market Loss",null,null,{"$f":"C67","v":0.02},{"$f":"$D$121*E119","v":0},0,0,0,0,0,0,0,0,0]
["EGI",null,null,null,{"$f":"E119-E120-E121","v":0},0,0,0,0,0,0,0,0,0]
["Less: Operating Costs",null,"Escalation",{"$f":"D49","v":0.03},{"$f":"E69","v":0},{"$f":"E123*(1+$D$123)","v":0},0,0,0,0,0,0,0,0]
["Less: Property Taxes",null,"Millage Rate",{"$f":"'Advanced Financial'!D60","v":0.01},{"$f":"$F8*$D124*'Advanced Financial'!$D60","v":0},{"$f":"$F8*$D124*'Advanced Financial'!$D60*(1+$D117)","v":0},{"$f":"$F8*$D124*'Advanced Financial'!$D60*(1+$D117)^2","v":0},{"$f":"$F8*$D124*'Advanced Financial'!$D60*(1+$D117)^3","v":0},{"$f":"$F8*$D124*'Advanced Financial'!$D60*(1+$D117)^4","v":0},{"$f":"$F8*$D124*'Advanced Financial'!$D60*(1+$D117)^5","v":0},{"$f":"$F8*$D124*'Advanced Financial'!$D60*(1+$D117)^6","v":0},{"$f":"$F8*$D124*'Advanced Financial'!$D60*(1+$D117)^7","v":0},{"$f":"$F8*$D124*'Advanced Financial'!$D60*(1+$D117)^8","v":0},{"$f":"$F8*$D124*'Advanced Financial'!$D60*(1+$D117)^9","v":0}]
["Plus Property Tax Abatement",null,null,null,{"$f":"$D$13*'Advanced Financial'!$D61*$F8*'Gap Financing Options'!D17","v":0},{"$f":"$D$13*'Advanced Financial'!$D61*$F8*(1+$D$117)*'Gap Financing Options'!D18","v":0},{"$f":"$D$13*'Advanced Financial'!$D61*$F8*(1+$D$117)^2*'Gap Financing Options'!D19","v":0},{"$f":"$D$13*'Advanced Financial'!$D61*$F8*(1+$D$117)^3*'Gap Financing Options'!D20","v":0},{"$f":"$D$13*'Advanced Financial'!$D61*$F8*(1+$D$117)^4*'Gap Financing Options'!D21","v":0},{"$f":"$D$13*'Advanced Financial'!$D61*$F8*(1+$D$117)^5*'Gap Financing Options'!D22","v":0},{"$f":"$D$13*'Advanced Financial'!$D61*$F8*(1+$D$117)^6*'Gap Financing Options'!D23","v":0},{"$f":"$D$13*'Advanced Financial'!$D61*$F8*(1+$D$117)^7*'Gap Financing Options'!D24","v":0},{"$f":"$D$13*'Advanced Financial'!$D61*$F8*(1+$D$117)^8*'Gap Financing Options'!D25","v":0},{"$f":"$D$13*'Advanced Financial'!$D61*$F8*(1+$D$117)^9*'Gap Financing Options'!D26","v":0}]
["Plus Sales Tax Abatement",null,null,null,{"$f":"'Gap Financing Options'!D33*$D$14*E119","v":0},{"$f":"'Gap Financing Options'!D34*$D$14*F119","v":0},{"$f":"'Gap Financing Options'!D35*$D$14*G119","v":0},{"$f":"'Gap Financing Options'!D36*$D$14*H119","v":0},{"$f":"'Gap Financing Options'!D37*$D$14*I119","v":0},{"$f":"'Gap Financing Options'!D38*$D$14*J119","v":0},{"$f":"'Gap Financing Options'!D39*$D$14*K119","v":0},{"$f":"'Gap Financing Options'!D40*$D$14*L119","v":0},{"$f":"'Gap Financing Options'!D41*$D$14*M119","v":0},{"$f":"'Gap Financing Options'!D42*$D$14*N119","v":0}]
["Plus TIF + IRA Retainage of Taxes",null,null,null,{"$f":"'Gap Financing Options'!D48","v":0},{"$f":"'Gap Financing Options'!D49","v":0},{"$f":"'Gap Financing Options'!D50","v":0},{"$f":"'Gap Financing Options'!D51","v":0},{"$f":"'Gap Financing Options'!D52","v":0},{"$f":"'Gap Financing Options'!D53","v":0},{"$f":"'Gap Financing Options'!D54","v":0},{"$f":"'Gap Financing Options'!D55","v":0},{"$f":"'Gap Financing Options'!D56","v":0},{"$f":"'Gap Financing Options'!D57","v":0}]
["Less Cash Throw Off to Public Partner",null,null,null,{"$f":"-$E$109","v":0},0,0,0,0,0,0,0,0,0]
[]
["NOI",null,null,null,{"$f":"E122-E124-E123+E125+E126+E128+E127","v":0},{"$f":"F122-F124-F123+F125+F126+F128+F127","v":0},0,0,0,0,0,0,0,0]
["Less: Debt Service",null,null,null,{"$f":"-$E$99","v":0},0,0,0,0,0,0,0,0,0]
["Net Cash Flow",null,null,null,{"$f":"E130-E131","v":0},0,0,0,0,0,0,0,0,0]
[]
["Cap Rate",null,null,null,{"$f":"IFERROR(E130/$E$101,0)","v":0},0,0,0,0,0,0,0,0,0]
["Cash on Cash Return (Equity Dividend Rate)",null,null,null,{"$f":"IFERROR(E132/$E$104,0)","v":0},{"$f":"IFERROR(F132/$E$104,0)","v":0},0,0,0,0,0,0,0,0]
[]
["Project Value",null,null,"Year 0","Year 1","Year 2","Year 3","Year 4","Year 5","Year 6","Year 7","Year 8","Year 9","Year 10"]
["Terminal Cap Rate, Gross Sales Price",null,null,null,{"$f":"D52","v":7.2999999999999995E-2},null,null,null,null,null,null,null,null,{"$f":"IFERROR(N130/E138,0)","v":0}]
["Net Sales = Price Less Sales Cost",null,null,null,{"$f":"D53","v":0.05},null,null,null,null,null,null,null,null,{"$f":"N138*(1-E139)","v":0}]
["Less Mortgage Balance",null,null,null,null,null,null,null,null,null,null,null,null,{"$f":"AA184","v":0}]
["Net Sales Proceeds",null,null,null,null,null,null,null,null,null,null,null,null,{"$f":"N139-N140","v":0}]
[]
[]
["IRR - Unleveraged (Project Cost)",null,null,"Year 0","Year 1","Year 2","Year 3","Year 4","Year 5","Year 6","Year 7","Year 8","Year 9","Year 10"]
["Total Investment",null,null,{"$f":"-E106","v":0}]
["Project NOI",null,null,null,{"$f":"E130","v":0},0,0,0,0,0,0,0,0,0]
["Net Sales Price",null,null,null,null,null,null,null,null,null,null,null,null,{"$f":"N139","v":0}]
["Total",null,null,{"$f":"SUM(D145:D147)","v":0},{"$f":"SUM(E145:E147)","v":0},{"$f":"SUM(F145:F147)","v":0},0,0,0,0,0,0,0,0]
["IRR - Project Cost",null,null,null,null,null,null,null,null,null,null,null,null,{"$f":"IFERROR(IRR(D148:N148),0)","v":0}]
["NPV - Project Cost",null,null,null,null,null,null,null,null,null,null,null,null,{"$f":"NPV($L$6,D148:N148)","v":0}]
[]
["IRR - Leveraged (Before Tax)",null,null,"Year 0","Year 1","Year 2","Year 3","Year 4","Year 5","Year 6","Year 7","Year 8","Year 9","Year 10"]
["Original Investment (Equity)",null,null,{"$f":"-E104","v":0}]
["Project Cash Flow",null,null,null,{"$f":"E132","v":0},0,0,0,0,0,0,0,0,0]
["Net Sales Proceeds",null,null,null,null,null,null,null,null,null,null,null,null,{"$f":"N141","v":0}]
["Total",null,null,{"$f":"SUM(D153:D155)","v":0},{"$f":"SUM(E153:E155)","v":0},0,0,0,0,0,0,0,0,0]
["IRR - Equity",null,null,null,null,null,null,null,null,null,null,null,null,{"$f":"IFERROR(IRR(D156:N156),0)","v":0}]
["NPV - Equity",null,null,null,null,null,null,null,null,null,null,null,null,{"$f":"NPV($L$7,D156:N156)","v":0}]
[]
["IRR - Public Participation",null,null,"Year 0","Year 1","Year 2","Year 3","Year 4","Year 5","Year 6","Year 7","Year 8","Year 9","Year 10"]
["Original Investment (Equity)",null,null,{"$f":"-(E108+(E93*E111))","v":0}]
["Mezzanine Financing",null,null,null,{"$f":"-$E$96","v":0},0,0,0,0,0,0,0,0,0]
["Cash Throw Off",null,null,null,{"$f":"$E$109","v":0},0,0,0,0,0,0,0,0,0]
["Sale Proceeds",null,null,null,null,null,null,null,null,null,null,null,null,{"$f":"N155*E110","v":0}]
["Loan Balance",null,null,null,null,null,null,null,null,null,null,null,null,{"$f":"V184*E111","v":0}]
["Total",null,null,{"$f":"SUM(D161:D165)","v":0},{"$f":"SUM(E161:E165)","v":0},0,0,0,0,0,0,0,0,0]
["IRR - Equity",null,null,null,null,null,null,null,null,null,null,null,null,{"$f":"IFERROR(IRR(D166:N166),0)","v":0}]
["NPV - Equity",null,null,null,null,null,null,null,null,null,null,null,null,{"$f":"NPV($E$112,D166:N166)","v":0}]
[]
[]
["DEBT SERVICE MORTIZATION TABLES"]
["Primary Debt Amortization",null,null,null,null,"Low Interest Loan",null,null,null,null,"Total Debt Amortization",null,null,null,null,"Annual Debt Service Summary - Primary Debt",null,null,null,null,"Annual Debt Service Summary - Secondary Debt",null,null,null,null,"Annual Debt Service Summary - Total Debt"]
[]
["Period","Balance","Payment","Interest","Principal","Period","Balance","Payment","Interest","Principal","Period","Balance","Payment","Interest","Principal","Year","Balance","Payment","Interest","Principal","Year","Balance","Payment","Interest","Principal","Year","Balance","Payment","Interest","Principal"]
[0,{"$f":"E87","v":0},null,null,null,0,{"$f":"E93","v":0},null,null,null,0,{"$f":"B175+G175","v":0},null,null,null,1,{"$f":"B187","v":0},{"$f":"SUM(C176:C187)","v":0},{"$f":"SUM(D176:D187)","v":0},0,1,{"$f":"G187","v":0},{"$f":"SUM(H176:H187)","v":0},{"$f":"SUM(I176:I187)","v":0},{"$f":"SUM(J176:J187)","v":0},1,{"$f":"Q175+V175","v":0},{"$f":"R175+W175","v":0},0,{"$f":"T175+Y175","v":0}]
[1,{"$f":"B175-E176","v":0},{"$f":"-$E$90/12","v":0},{"$f":"$E$88/12*B175","v":0},{"$f":"C176-D176","v":0},1,{"$f":"G175-J176","v":0},{"$f":"-$E$96/12","v":0},{"$f":"$E$94/12*G175","v":0},{"$f":"H176-I176","v":0},1,{"$f":"G176+B176","v":0},0,0,0,2,{"$f":"B199","v":0},{"$f":"SUM(C188:C199)","v":0},{"$f":"SUM(D188:D199)","v":0},0,2,{"$f":"G199","v":0},{"$f":"SUM(H188:H199)","v":0},{"$f":"SUM(I188:I199)","v":0},{"$f":"SUM(J188:J199)","v":0},2,{"$f":"Q176+V176","v":0},{"$f":"R176+W176","v":0},{"$f":"S176+X176","v":0},{"$f":"T176+Y176","v":0}]
[{"$f":"A176+1","v":2},0,0,0,0,{"$f":"F176+1","v":2},0,0,0,0,{"$f":"K176+1","v":2},0,0,0,0,3,{"$f":"B211","v":0},{"$f":"SUM(C200:C211)","v":0},{"$f":"SUM(D200:D211)","v":0},0,3,{"$f":"G211","v":0},{"$f":"SUM(H200:H211)","v":0},{"$f":"SUM(I200:I211)","v":0},{"$f":"SUM(J200:J211)","v":0},3,0,0,0,0]
[3,0,0,0,0,3,0,0,0,0,3,0,0,0,0,4,{"$f":"B223","v":0},{"$f":"SUM(C212:C223)","v":0},{"$f":"SUM(D212:D223)","v":0},0,4,{"$f":"G223","v":0},{"$f":"SUM(H212:H223)","v":0},{"$f":"SUM(I212:I223)","v":0},{"$f":"SUM(J212:J223)","v":0},4,0,0,0,0]
[4,0,0,0,0,4,0,0,0,0,4,0,0,0,0,5,{"$f":"B235","v":0},{"$f":"SUM(C224:C235)","v":0},{"$f":"SUM(D224:D235)","v":0},0,5,{"$f":"G235","v":0},{"$f":"SUM(H224:H235)","v":0},{"$f":"SUM(I224:I235)","v":0},{"$f":"SUM(J224:J235)","v":0},5,0,0,0,0]
[5,0,0,0,0,5,0,0,0,0,5,0,0,0,0,6,{"$f":"B247","v":0},{"$f":"SUM(C236:C247)","v":0},{"$f":"SUM(D236:D247)","v":0},0,6,{"$f":"G247","v":0},{"$f":"SUM(H236:H247)","v":0},{"$f":"SUM(I236:I247)","v":0},{"$f":"SUM(J236:J247)","v":0},6,0,0,0,0]
[6,0,0,0,0,6,0,0,0,0,6,0,0,0,0,7,{"$f":"B259","v":0},{"$f":"SUM(C248:C259)","v":0},{"$f":"SUM(D248:D259)","v":0},0,7,{"$f":"G259","v":0},{"$f":"SUM(H248:H259)","v":0},{"$f":"SUM(I248:I259)","v":0},{"$f":"SUM(J248:J259)","v":0},7,0,0,0,0]
[7,0,0,0,0,7,0,0,0,0,7,0,0,0,0,8,{"$f":"B271","v":0},{"$f":"SUM(C260:C271)","v":0},{"$f":"SUM(D260:D271)","v":0},0,8,{"$f":"G271","v":0},{"$f":"SUM(H260:H271)","v":0},{"$f":"SUM(I260:I271)","v":0},{"$f":"SUM(J260:J271)","v":0},8,0,0,0,0]
[8,0,0,0,0,8,0,0,0,0,8,0,0,0,0,9,{"$f":"B283","v":0},{"$f":"SUM(C272:C283)","v":0},{"$f":"SUM(D272:D283)","v":0},0,9,{"$f":"G283","v":0},{"$f":"SUM(H272:H283)","v":0},{"$f":"SUM(I272:I283)","v":0},{"$f":"SUM(J272:J283)","v":0},9,0,0,0,0]
[9,0,0,0,0,9,0,0,0,0,9,0,0,0,0,10,{"$f":"B295","v":0},{"$f":"SUM(C284:C295)","v":0},{"$f":"SUM(D284:D295)","v":0},0,10,{"$f":"G295","v":0},{"$f":"SUM(H284:H295)","v":0},{"$f":"SUM(I284:I295)","v":0},{"$f":"SUM(J284:J295)","v":0},10,{"$f":"Q184+V184","v":0},{"$f":"R184+W184","v":0},0,{"$f":"T184+Y184","v":0}]
[10,0,0,0,0,10,0,0,0,0,10,0,0,0,0]
[11,0,0,0,0,11,0,0,0,0,11,0,0,0,0]
[12,0,0,0,0,12,0,0,0,0,12,0,0,0,0]
[13,0,0,0,0,13,0,0,0,0,13,0,0,0,0]
[14,0,0,0,0,14,0,0,0,0,14,0,0,0,0]
[15,0,0,0,0,15,0,0,0,0,15,0,0,0,0]
[16,0,0,0,0,16,0,0,0,0,16,0,0,0,0]
[17,0,0,0,0,17,0,0,0,0,17,0,0,0,0]
[18,0,0,0,0,18,0,0,0,0,18,0,0,0,0]
[19,0,0,0,0,19,0,0,0,0,19,0,0,0,0]
[20,0,0,0,0,20,0,0,0,0,20,0,0,0,0]
[21,0,0,0,0,21,0,0,0,0,21,0,0,0,0]
[22,0,0,0,0,22,0,0,0,0,22,0,0,0,0]
[23,0,0,0,0,23,0,0,0,0,23,0,0,0,0]
[24,0,0,0,0,24,0,0,0,0,24,0,0,0,0]
[25,0,0,0,0,25,0,0,0,0,25,0,0,0,0]
[26,0,0,0,0,26,0,0,0,0,26,0,0,0,0]
[27,0,0,0,0,27,0,0,0,0,27,0,0,0,0]
[28,0,0,0,0,28,0,0,0,0,28,0,0,0,0]
[29,0,0,0,0,29,0,0,0,0,29,0,0,0,0]
[30,0,0,0,0,30,0,0,0,0,30,0,0,0,0]
[31,0,0,0,0,31,0,0,0,0,31,0,0,0,0]
[32,0,0,0,0,32,0,0,0,0,32,0,0,0,0]
[33,0,0,0,0,33,0,0,0,0,33,0,0,0,0]
[34,0,0,0,0,34,0,0,0,0,34,0,0,0,0]
[35,0,0,0,0,35,0,0,0,0,35,0,0,0,0]
[36,0,0,0,0,36,0,0,0,0,36,0,0,0,0]
[37,0,0,0,0,37,0,0,0,0,37,0,0,0,0]
[38,0,0,0,0,38,0,0,0,0,38,0,0,0,0]
[39,0,0,0,0,39,0,0,0,0,39,0,0,0,0]
[40,0,0,0,0,40,0,0,0,0,40,0,0,0,0]
[41,0,0,0,0,41,0,0,0,0,41,0,0,0,0]
[42,0,0,0,0,42,0,0,0,0,42,0,0,0,0]
[43,0,0,0,0,43,0,0,0,0,43,0,0,0,0]
[44,0,0,0,0,44,0,0,0,0,44,0,0,0,0]
[45,0,0,0,0,45,0,0,0,0,45,0,0,0,0]
[46,0,0,0,0,46,0,0,0,0,46,0,0,0,0]
[47,0,0,0,0,47,0,0,0,0,47,0,0,0,0]
[48,0,0,0,0,48,0,0,0,0,48,0,0,0,0]
[49,0,0,0,0,49,0,0,0,0,49,0,0,0,0]
[50,0,0,0,0,50,0,0,0,0,50,0,0,0,0]
[51,0,0,0,0,51,0,0,0,0,51,0,0,0,0]
[52,0,0,0,0,52,0,0,0,0,52,0,0,0,0]
[53,0,0,0,0,53,0,0,0,0,53,0,0,0,0]
[54,0,0,0,0,54,0,0,0,0,54,0,0,0,0]
[55,0,0,0,0,55,0,0,0,0,55,0,0,0,0]
[56,0,0,0,0,56,0,0,0,0,56,0,0,0,0]
[57,0,0,0,0,57,0,0,0,0,57,0,0,0,0]
[58,0,0,0,0,58,0,0,0,0,58,0,0,0,0]
[59,0,0,0,0,59,0,0,0,0,59,0,0,0,0]
[60,0,0,0,0,60,0,0,0,0,60,0,0,0,0]
[61,0,0,0,0,61,0,0,0,0,61,0,0,0,0]
[62,0,0,0,0,62,0,0,0,0,62,0,0,0,0]
[63,0,0,0,0,63,0,0,0,0,63,0,0,0,0]
[64,0,0,0,0,64,0,0,0,0,64,0,0,0,{"$f":"J239+E239","v":0}]
[65,{"$f":"B239-E240","v":0},{"$f":"-$E$90/12","v":0},{"$f":"$E$88/12*B239","v":0},{"$f":"C240-D240","v":0},65,{"$f":"G239-J240","v":0},{"$f":"-$E$96/12","v":0},{"$f":"$E$94/12*G239","v":0},{"$f":"H240-I240","v":0},65,{"$f":"G240+B240","v":0},0,0,0]
[{"$f":"A240+1","v":66},0,0,0,0,{"$f":"F240+1","v":66},0,0,0,0,{"$f":"K240+1","v":66},0,0,0,0]
[67,0,0,0,0,67,0,0,0,0,67,0,0,0,0]
[68,0,0,0,0,68,0,0,0,0,68,0,0,0,0]
[69,0,0,0,0,69,0,0,0,0,69,0,0,0,0]
[70,0,0,0,0,70,0,0,0,0,70,0,0,0,0]
[71,0,0,0,0,71,0,0,0,0,71,0,0,0,0]
[72,0,0,0,0,72,0,0,0,0,72,0,0,0,0]
[73,0,0,0,0,73,0,0,0,0,73,0,0,0,0]
[74,0,0,0,0,74,0,0,0,0,74,0,0,0,0]
[75,0,0,0,0,75,0,0,0,0,75,0,0,0,0]
[76,0,0,0,0,76,0,0,0,0,76,0,0,0,0]
[77,0,0,0,0,77,0,0,0,0,77,0,0,0,0]
[78,0,0,0,0,78,0,0,0,0,78,0,0,0,0]
[79,0,0,0,0,79,0,0,0,0,79,0,0,0,0]
[80,0,0,0,0,80,0,0,0,0,80,0,0,0,0]
[81,0,0,0,0,81,0,0,0,0,81,0,0,0,0]
[82,0,0,0,0,82,0,0,0,0,82,0,0,0,0]
[83,0,0,0,0,83,0,0,0,0,83,0,0,0,0]
[84,0,0,0,0,84,0,0,0,0,84,0,0,0,0]
[85,0,0,0,0,85,0,0,0,0,85,0,0,0,0]
[86,0,0,0,0,86,0,0,0,0,86,0,0,0,0]
[87,0,0,0,0,87,0,0,0,0,87,0,0,0,0]
[88,0,0,0,0,88,0,0,0,0,88,0,0,0,0]
[89,0,0,0,0,89,0,0,0,0,89,0,0,0,0]
[90,0,0,0,0,90,0,0,0,0,90,0,0,0,0]
[91,0,0,0,0,91,0,0,0,0,91,0,0,0,0]
[92,0,0,0,0,92,0,0,0,0,92,0,0,0,0]
[93,0,0,0,0,93,0,0,0,0,93,0,0,0,0]
[94,0,0,0,0,94,0,0,0,0,94,0,0,0,0]
[95,0,0,0,0,95,0,0,0,0,95,0,0,0,0]
[96,0,0,0,0,96,0,0,0,0,96,0,0,0,0]
[97,0,0,0,0,97,0,0,0,0,97,0,0,0,0]
[98,0,0,0,0,98,0,0,0,0,98,0,0,0,0]
[99,0,0,0,0,99,0,0,0,0,99,0,0,0,0]
[100,0,0,0,0,100,0,0,0,0,100,0,0,0,0]
[101,0,0,0,0,101,0,0,0,0,101,0,0,0,0]
[102,0,0,0,0,102,0,0,0,0,102,0,0,0,0]
[103,0,0,0,0,103,0,0,0,0,103,0,0,0,0]
[104,0,0,0,0,104,0,0,0,0,104,0,0,0,0]
[105,0,0,0,0,105,0,0,0,0,105,0,0,0,0]
[106,0,0,0,0,106,0,0,0,0,106,0,0,0,0]
[107,0,0,0,0,107,0,0,0,0,107,0,0,0,0]
[108,0,0,0,0,108,0,0,0,0,108,0,0,0,0]
[109,0,0,0,0,109,0,0,0,0,109,0,0,0,0]
[110,0,0,0,0,110,0,0,0,0,110,0,0,0,0]
[111,0,0,0,0,111,0,0,0,0,111,0,0,0,0]
[112,0,0,0,0,112,0,0,0,0,112,0,0,0,0]
[113,0,0,0,0,113,0,0,0,0,113,0,0,0,0]
[114,0,0,0,0,114,0,0,0,0,114,0,0,0,0]
[115,0,0,0,0,115,0,0,0,0,115,0,0,0,0]
[116,0,0,0,0,116,0,0,0,0,116,0,0,0,0]
[117,0,0,0,0,117,0,0,0,0,117,0,0,0,0]
[118,0,0,0,0,118,0,0,0,0,118,0,0,0,0]
[119,0,0,0,0,119,0,0,0,0,119,0,0,0,0]
[120,0,0,0,0,120,0,0,0,0,120,0,0,0,0]
[121,0,0,0,0,121,0,0,0,0,121,0,0,0,0]
[122,0,0,0,0,122,0,0,0,0,122,0,0,0,0]
[123,0,0,0,0,123,0,0,0,0,123,0,0,0,0]
[124,0,0,0,0,124,0,0,0,0,124,0,0,0,0]
[125,0,0,0,0,125,0,0,0,0,125,0,0,0,0]
[126,0,0,0,0,126,0,0,0,0,126,0,0,0,0]
[127,0,0,0,0,127,0,0,0,0,127,0,0,0,0]
[128,0,0,0,0,128,0,0,0,0,128,0,0,0,0]
[129,{"$f":"B303-E304","v":0},{"$f":"-$E$90/12","v":0},{"$f":"$E$88/12*B303","v":0},{"$f":"C304-D304","v":0},129,{"$f":"G303-J304","v":0},{"$f":"-$E$96/12","v":0},{"$f":"$E$94/12*G303","v":0},{"$f":"H304-I304","v":0},129,{"$f":"G304+B304","v":0},0,0,0]
[{"$f":"A304+1","v":130},0,0,0,0,{"$f":"F304+1","v":130},0,0,0,0,{"$f":"K304+1","v":130},0,0,0,0]
[131,0,0,0,0,131,0,0,0,0,131,0,0,0,0]
[132,0,0,0,0,132,0,0,0,0,132,0,0,0,0]
[133,0,0,0,0,133,0,0,0,0,133,0,0,0,0]
[134,0,0,0,0,134,0,0,0,0,134,0,0,0,0]
[135,0,0,0,0,135,0,0,0,0,135,0,0,0,0]
[136,0,0,0,0,136,0,0,0,0,136,0,0,0,0]
[137,0,0,0,0,137,0,0,0,0,137,0,0,0,0]
[138,0,0,0,0,138,0,0,0,0,138,0,0,0,0]
[139,0,0,0,0,139,0,0,0,0,139,0,0,0,0]
[140,0,0,0,0,140,0,0,0,0,140,0,0,0,0]
[141,0,0,0,0,141,0,0,0,0,141,0,0,0,0]
[142,0,0,0,0,142,0,0,0,0,142,0,0,0,0]
[143,0,0,0,0,143,0,0,0,0,143,0,0,0,0]
[144,0,0,0,0,144,0,0,0,0,144,0,0,0,0]
[145,0,0,0,0,145,0,0,0,0,145,0,0,0,0]
[146,0,0,0,0,146,0,0,0,0,146,0,0,0,0]
[147,0,0,0,0,147,0,0,0,0,147,0,0,0,0]
[148,0,0,0,0,148,0,0,0,0,148,0,0,0,0]
[149,0,0,0,0,149,0,0,0,0,149,0,0,0,0]
[150,0,0,0,0,150,0,0,0,0,150,0,0,0,0]
[151,0,0,0,0,151,0,0,0,0,151,0,0,0,0]
[152,0,0,0,0,152,0,0,0,0,152,0,0,0,0]
[153,0,0,0,0,153,0,0,0,0,153,0,0,0,0]
[154,0,0,0,0,154,0,0,0,0,154,0,0,0,0]
[155,0,0,0,0,155,0,0,0,0,155,0,0,0,0]
[156,0,0,0,0,156,0,0,0,0,156,0,0,0,0]
[157,0,0,0,0,157,0,0,0,0,157,0,0,0,0]
[158,0,0,0,0,158,0,0,0,0,158,0,0,0,0]
[159,0,0,0,0,159,0,0,0,0,159,0,0,0,0]
[160,0,0,0,0,160,0,0,0,0,160,0,0,0,0]
[161,0,0,0,0,161,0,0,0,0,161,0,0,0,0]
[162,0,0,0,0,162,0,0,0,0,162,0,0,0,0]
[163,0,0,0,0,163,0,0,0,0,163,0,0,0,0]
[164,0,0,0,0,164,0,0,0,0,164,0,0,0,0]
[165,0,0,0,0,165,0,0,0,0,165,0,0,0,0]
[166,0,0,0,0,166,0,0,0,0,166,0,0,0,0]
[167,0,0,0,0,167,0,0,0,0,167,0,0,0,0]
[168,0,0,0,0,168,0,0,0,0,168,0,0,0,0]
[169,0,0,0,0,169,0,0,0,0,169,0,0,0,0]
[170,0,0,0,0,170,0,0,0,0,170,0,0,0,0]
[171,0,0,0,0,171,0,0,0,0,171,0,0,0,0]
[172,0,0,0,0,172,0,0,0,0,172,0,0,0,0]
[173,0,0,0,0,173,0,0,0,0,173,0,0,0,0]
[174,0,0,0,0,174,0,0,0,0,174,0,0,0,0]
[175,0,0,0,0,175,0,0,0,0,175,0,0,0,0]
[176,0,0,0,0,176,0,0,0,0,176,0,0,0,0]
[177,0,0,0,0,177,0,0,0,0,177,0,0,0,0]
[178,0,0,0,0,178,0,0,0,0,178,0,0,0,0]
[179,0,0,0,0,179,0,0,0,0,179,0,0,0,0]
[180,0,0,0,0,180,0,0,0,0,180,0,0,0,0]
[181,0,0,0,0,181,0,0,0,0,181,0,0,0,0]
[182,0,0,0,0,182,0,0,0,0,182,0,0,0,0]
[183,0,0,0,0,183,0,0,0,0,183,0,0,0,0]
[184,0,0,0,0,184,0,0,0,0,184,0,0,0,0]
[185,0,0,0,0,185,0,0,0,0,185,0,0,0,0]
[186,0,0,0,0,186,0,0,0,0,186,0,0,0,0]
[187,0,0,0,0,187,0,0,0,0,187,0,0,0,0]
[188,0,0,0,0,188,0,0,0,0,188,0,0,0,0]
[189,0,0,0,0,189,0,0,0,0,189,0,0,0,0]
[190,0,0,0,0,190,0,0,0,0,190,0,0,0,0]
[191,0,0,0,0,191,0,0,0,0,191,0,0,0,0]
[192,0,0,0,0,192,0,0,0,0,192,0,0,0,{"$f":"J367+E367","v":0}]
[193,{"$f":"B367-E368","v":0},{"$f":"-$E$90/12","v":0},{"$f":"$E$88/12*B367","v":0},{"$f":"C368-D368","v":0},193,{"$f":"G367-J368","v":0},{"$f":"-$E$96/12","v":0},{"$f":"$E$94/12*G367","v":0},{"$f":"H368-I368","v":0},193,{"$f":"G368+B368","v":0},0,0,0]
[{"$f":"A368+1","v":194},0,0,0,0,{"$f":"F368+1","v":194},0,0,0,0,{"$f":"K368+1","v":194},0,0,0,0]
[195,0,0,0,0,195,0,0,0,0,195,0,0,0,0]
[196,0,0,0,0,196,0,0,0,0,196,0,0,0,0]
[197,0,0,0,0,197,0,0,0,0,197,0,0,0,0]
[198,0,0,0,0,198,0,0,0,0,198,0,0,0,0]
[199,0,0,0,0,199,0,0,0,0,199,0,0,0,0]
[200,0,0,0,0,200,0,0,0,0,200,0,0,0,0]
[201,0,0,0,0,201,0,0,0,0,201,0,0,0,0]
[202,0,0,0,0,202,0,0,0,0,202,0,0,0,0]
[203,0,0,0,0,203,0,0,0,0,203,0,0,0,0]
[204,0,0,0,0,204,0,0,0,0,204,0,0,0,0]
[205,0,0,0,0,205,0,0,0,0,205,0,0,0,0]
[206,0,0,0,0,206,0,0,0,0,206,0,0,0,0]
[207,0,0,0,0,207,0,0,0,0,207,0,0,0,0]
[208,0,0,0,0,208,0,0,0,0,208,0,0,0,0]
[209,0,0,0,0,209,0,0,0,0,209,0,0,0,0]
[210,0,0,0,0,210,0,0,0,0,210,0,0,0,0]
[211,0,0,0,0,211,0,0,0,0,211,0,0,0,0]
[212,0,0,0,0,212,0,0,0,0,212,0,0,0,0]
[213,0,0,0,0,213,0,0,0,0,213,0,0,0,0]
[214,0,0,0,0,214,0,0,0,0,214,0,0,0,0]
[215,0,0,0,0,215,0,0,0,0,215,0,0,0,0]
[216,0,0,0,0,216,0,0,0,0,216,0,0,0,0]
[217,0,0,0,0,217,0,0,0,0,217,0,0,0,0]
[218,0,0,0,0,218,0,0,0,0,218,0,0,0,0]
[219,0,0,0,0,219,0,0,0,0,219,0,0,0,0]
[220,0,0,0,0,220,0,0,0,0,220,0,0,0,0]
[221,0,0,0,0,221,0,0,0,0,221,0,0,0,0]
[222,0,0,0,0,222,0,0,0,0,222,0,0,0,0]
[223,0,0,0,0,223,0,0,0,0,223,0,0,0,0]
[224,0,0,0,0,224,0,0,0,0,224,0,0,0,0]
[225,0,0,0,0,225,0,0,0,0,225,0,0,0,0]
[226,0,0,0,0,226,0,0,0,0,226,0,0,0,0]
[227,0,0,0,0,227,0,0,0,0,227,0,0,0,0]
[228,0,0,0,0,228,0,0,0,0,228,0,0,0,0]
[229,0,0,0,0,229,0,0,0,0,229,0,0,0,0]
[230,0,0,0,0,230,0,0,0,0,230,0,0,0,0]
[231,0,0,0,0,231,0,0,0,0,231,0,0,0,0]
[232,0,0,0,0,232,0,0,0,0,232,0,0,0,0]
[233,0,0,0,0,233,0,0,0,0,233,0,0,0,0]
[234,0,0,0,0,234,0,0,0,0,234,0,0,0,0]
[235,0,0,0,0,235,0,0,0,0,235,0,0,0,0]
[236,0,0,0,0,236,0,0,0,0,236,0,0,0,0]
[237,0,0,0,0,237,0,0,0,0,237,0,0,0,0]
[238,0,0,0,0,238,0,0,0,0,238,0,0,0,0]
[239,0,0,0,0,239,0,0,0,0,239,0,0,0,0]
[240,0,0,0,0,240,0,0,0,0,240,0,0,0,0]
[241,0,0,0,0,241,0,0,0,0,241,0,0,0,0]
[242,0,0,0,0,242,0,0,0,0,242,0,0,0,0]
[243,0,0,0,0,243,0,0,0,0,243,0,0,0,0]
[244,0,0,0,0,244,0,0,0,0,244,0,0,0,0]
[245,0,0,0,0,245,0,0,0,0,245,0,0,0,0]
[246,0,0,0,0,246,0,0,0,0,246,0,0,0,0]
[247,0,0,0,0,247,0,0,0,0,247,0,0,0,0]
[248,0,0,0,0,248,0,0,0,0,248,0,0,0,0]
[249,0,0,0,0,249,0,0,0,0,249,0,0,0,0]
[250,0,0,0,0,250,0,0,0,0,250,0,0,0,0]
[251,0,0,0,0,251,0,0,0,0,251,0,0,0,0]
[252,0,0,0,0,252,0,0,0,0,252,0,0,0,0]
[253,0,0,0,0,253,0,0,0,0,253,0,0,0,0]
[254,0,0,0,0,254,0,0,0,0,254,0,0,0,0]
[255,0,0,0,0,255,0,0,0,0,255,0,0,0,0]
[256,0,0,0,0,256,0,0,0,0,256,0,0,0,0]
[257,{"$f":"B431-E432","v":0},{"$f":"-$E$90/12","v":0},{"$f":"$E$88/12*B431","v":0},{"$f":"C432-D432","v":0},257,{"$f":"G431-J432","v":0},{"$f":"-$E$96/12","v":0},{"$f":"$E$94/12*G431","v":0},{"$f":"H432-I432","v":0},257,{"$f":"G432+B432","v":0},0,0,0]
[{"$f":"A432+1","v":258},0,0,0,0,{"$f":"F432+1","v":258},0,0,0,0,{"$f":"K432+1","v":258},0,0,0,0]
[259,0,0,0,0,259,0,0,0,0,259,0,0,0,0]
[260,0,0,0,0,260,0,0,0,0,260,0,0,0,0]
[261,0,0,0,0,261,0,0,0,0,261,0,0,0,0]
[262,0,0,0,0,262,0,0,0,0,262,0,0,0,0]
[263,0,0,0,0,263,0,0,0,0,263,0,0,0,0]
[264,0,0,0,0,264,0,0,0,0,264,0,0,0,0]
[265,0,0,0,0,265,0,0,0,0,265,0,0,0,0]
[266,0,0,0,0,266,0,0,0,0,266,0,0,0,0]
[267,0,0,0,0,267,0,0,0,0,267,0,0,0,0]
[268,0,0,0,0,268,0,0,0,0,268,0,0,0,0]
[269,0,0,0,0,269,0,0,0,0,269,0,0,0,0]
[270,0,0,0,0,270,0,0,0,0,270,0,0,0,0]
[271,0,0,0,0,271,0,0,0,0,271,0,0,0,0]
[272,0,0,0,0,272,0,0,0,0,272,0,0,0,0]
[273,0,0,0,0,273,0,0,0,0,273,0,0,0,0]
[274,0,0,0,0,274,0,0,0,0,274,0,0,0,0]
[275,0,0,0,0,275,0,0,0,0,275,0,0,0,0]
[276,0,0,0,0,276,0,0,0,0,276,0,0,0,0]
[277,0,0,0,0,277,0,0,0,0,277,0,0,0,0]
[278,0,0,0,0,278,0,0,0,0,278,0,0,0,0]
[279,0,0,0,0,279,0,0,0,0,279,0,0,0,0]
[280,0,0,0,0,280,0,0,0,0,280,0,0,0,0]
[281,0,0,0,0,281,0,0,0,0,281,0,0,0,0]
[282,0,0,0,0,282,0,0,0,0,282,0,0,0,0]
[283,0,0,0,0,283,0,0,0,0,283,0,0,0,0]
[284,0,0,0,0,284,0,0,0,0,284,0,0,0,0]
[285,0,0,0,0,285,0,0,0,0,285,0,0,0,0]
[286,0,0,0,0,286,0,0,0,0,286,0,0,0,0]
[287,0,0,0,0,287,0,0,0,0,287,0,0,0,0]
[288,0,0,0,0,288,0,0,0,0,288,0,0,0,0]
[289,0,0,0,0,289,0,0,0,0,289,0,0,0,0]
[290,0,0,0,0,290,0,0,0,0,290,0,0,0,0]
[291,0,0,0,0,291,0,0,0,0,291,0,0,0,0]
[292,0,0,0,0,292,0,0,0,0,292,0,0,0,0]
[293,0,0,0,0,293,0,0,0,0,293,0,0,0,0]
[294,0,0,0,0,294,0,0,0,0,294,0,0,0,0]
[295,0,0,0,0,295,0,0,0,0,295,0,0,0,0]
[296,0,0,0,0,296,0,0,0,0,296,0,0,0,0]
[297,0,0,0,0,297,0,0,0,0,297,0,0,0,0]
[298,0,0,0,0,298,0,0,0,0,298,0,0,0,0]
[299,0,0,0,0,299,0,0,0,0,299,0,0,0,0]
[300,0,0,0,0,300,0,0,0,0,300,0,0,0,0]
[301,0,0,0,0,301,0,0,0,0,301,0,0,0,0]
[302,0,0,0,0,302,0,0,0,0,302,0,0,0,0]
[303,0,0,0,0,303,0,0,0,0,303,0,0,0,0]
[304,0,0,0,0,304,0,0,0,0,304,0,0,0,0]
[305,0,0,0,0,305,0,0,0,0,305,0,0,0,0]
[306,0,0,0,0,306,0,0,0,0,306,0,0,0,0]
[307,0,0,0,0,307,0,0,0,0,307,0,0,0,0]
[308,0,0,0,0,308,0,0,0,0,308,0,0,0,0]
[309,0,0,0,0,309,0,0,0,0,309,0,0,0,0]
[310,0,0,0,0,310,0,0,0,0,310,0,0,0,0]
[311,0,0,0,0,311,0,0,0,0,311,0,0,0,0]
[312,0,0,0,0,312,0,0,0,0,312,0,0,0,0]
[313,0,0,0,0,313,0,0,0,0,313,0,0,0,0]
[314,0,0,0,0,314,0,0,0,0,314,0,0,0,0]
[315,0,0,0,0,315,0,0,0,0,315,0,0,0,0]
[316,0,0,0,0,316,0,0,0,0,316,0,0,0,0]
[317,0,0,0,0,317,0,0,0,0,317,0,0,0,0]
[318,0,0,0,0,318,0,0,0,0,318,0,0,0,0]
[319,0,0,0,0,319,0,0,0,0,319,0,0,0,0]
[320,0,0,0,0,320,0,0,0,0,320,0,0,0,{"$f":"J495+E495","v":0}]
[321,{"$f":"B495-E496","v":0},{"$f":"-$E$90/12","v":0},{"$f":"$E$88/12*B495","v":0},{"$f":"C496-D496","v":0},321,{"$f":"G495-J496","v":0},{"$f":"-$E$96/12","v":0},{"$f":"$E$94/12*G495","v":0},{"$f":"H496-I496","v":0},321,{"$f":"G496+B496","v":0},0,0,0]
[{"$f":"A496+1","v":322},0,0,0,0,{"$f":"F496+1","v":322},0,0,0,0,{"$f":"K496+1","v":322},0,0,0,0]
[323,0,0,0,0,323,0,0,0,0,323,0,0,0,0]
[324,0,0,0,0,324,0,0,0,0,324,0,0,0,0]
[325,0,0,0,0,325,0,0,0,0,325,0,0,0,0]
[326,0,0,0,0,326,0,0,0,0,326,0,0,0,0]
[327,0,0,0,0,327,0,0,0,0,327,0,0,0,0]
[328,0,0,0,0,328,0,0,0,0,328,0,0,0,0]
[329,0,0,0,0,329,0,0,0,0,329,0,0,0,0]
[330,0,0,0,0,330,0,0,0,0,330,0,0,0,0]
[331,0,0,0,0,331,0,0,0,0,331,0,0,0,0]
[332,0,0,0,0,332,0,0,0,0,332,0,0,0,0]
[333,0,0,0,0,333,0,0,0,0,333,0,0,0,0]
[334,0,0,0,0,334,0,0,0,0,334,0,0,0,0]
[335,0,0,0,0,335,0,0,0,0,335,0,0,0,0]
[336,0,0,0,0,336,0,0,0,0,336,0,0,0,0]
[337,0,0,0,0,337,0,0,0,0,337,0,0,0,0]
[338,0,0,0,0,338,0,0,0,0,338,0,0,0,0]
[339,0,0,0,0,339,0,0,0,0,339,0,0,0,0]
[340,0,0,0,0,340,0,0,0,0,340,0,0,0,0]
[341,0,0,0,0,341,0,0,0,0,341,0,0,0,0]
[342,0,0,0,0,342,0,0,0,0,342,0,0,0,0]
[343,0,0,0,0,343,0,0,0,0,343,0,0,0,0]
[344,0,0,0,0,344,0,0,0,0,344,0,0,0,0]
[345,0,0,0,0,345,0,0,0,0,345,0,0,0,0]
[346,0,0,0,0,346,0,0,0,0,346,0,0,0,0]
[347,0,0,0,0,347,0,0,0,0,347,0,0,0,0]
[348,0,0,0,0,348,0,0,0,0,348,0,0,0,0]
[349,0,0,0,0,349,0,0,0,0,349,0,0,0,0]
[350,0,0,0,0,350,0,0,0,0,350,0,0,0,0]
[351,0,0,0,0,351,0,0,0,0,351,0,0,0,0]
[352,0,0,0,0,352,0,0,0,0,352,0,0,0,0]
[353,0,0,0,0,353,0,0,0,0,353,0,0,0,0]
[354,0,0,0,0,354,0,0,0,0,354,0,0,0,0]
[355,0,0,0,0,355,0,0,0,0,355,0,0,0,0]
[356,0,0,0,0,356,0,0,0,0,356,0,0,0,0]
[357,0,0,0,0,357,0,0,0,0,357,0,0,0,0]
[358,0,0,0,0,358,0,0,0,0,358,0,0,0,0]
[359,0,0,0,0,359,0,0,0,0,359,0,0,0,0]
[360,0,0,0,0,360,0,0,0,0,360,0,0,0,0]

{"sheet":"Commercial Parking","index":13,"n_rows":536,"n_cols":30,"rows_kept":536,"cut":false,"hidden":false,"merged":[]}
["ROI Template - Commercial Parking"]
[]
["Leveraging Tools",null,null,"Summary","User override ","TOTAL",null,"Investment Targets and Performance"]
["Tax Credits net to project",null,null,{"$f":"'Gap Financing Options'!H116","v":0},0,{"$f":"IF('Basic Financial'!$B$33=0,D4,0)","v":0},null,"Performance Indicator",null,null,null,"Target","Actual","NPV"]
["Fee Reductions",null,null,{"$f":"'Gap Financing Options'!H82","v":0},0,{"$f":"IF('Basic Financial'!$B$33=0,D5,0)","v":0},null,"Cash-on-Cash After Year 3",null,null,null,{"$f":"'Advanced Financial'!H64","v":0.1},{"$f":"G135","v":0}]
["Grants",null,null,{"$f":"'Gap Financing Options'!H92","v":0},0,{"$f":"IF('Basic Financial'!$B$33=0,D6,('Basic Financial'!$B$33*'Development Costs'!E46))","v":0},null,"IRR on Project Cost (Unleveraged Return)",null,null,null,{"$f":"'Advanced Financial'!H65","v":0.12},{"$f":"N149","v":0},{"$f":"N150","v":0}]
["Total Development Offsets (Contributions to Equity)",null,null,null,null,{"$f":"SUM(F4:F6)","v":0},null,"IRR on Investor Equity (Leveraged Return Before Tax)",null,null,null,{"$f":"'Advanced Financial'!H66","v":0.25},{"$f":"N157","v":0},{"$f":"N158","v":0}]
["Net Development Costs",null,null,null,null,{"$f":"(D57-F7)","v":0},null,"Debt Service Coverage Ratio (Year 3)",null,null,null,{"$f":"'Advanced Financial'!H67","v":1.25},{"$f":"IFERROR(G129/G131,0)","v":0}]
[null,null,null,null,null,null,null,"IRR on Public Participation",null,null,null,{"$f":"E112","v":0.05},{"$f":"N167","v":0},{"$f":"N168","v":0}]
[]
[]
[]
["Local Property Tax Rate Available for abatement",null,null,{"$f":"'Gap Financing Options'!H15","v":0}]
["Local Sales Tax Rate Available for abatement",null,null,{"$f":"'Gap Financing Options'!H31","v":0}]
[]
["Net Operating Income Analysis"]
["Total Development Costs",null,null,{"$f":"-'Development Costs'!D46","v":0}]
["Project Feature",null,null,"Project","Rent"]
["Total project size, square feet",null,null,{"$f":"'Physical Outputs'!C35","v":0},{"$f":"('Basic Financial'!B61/'Physical Inputs'!C98)*'Advanced Financial'!B23*12*365","v":16.003846153846155},"per square foot/year"]
[]
["Other Income",null,null,{"$f":"'Advanced Financial'!H77","v":0}]
["Less: Vacancy",null,null,{"$f":"1-'Advanced Financial'!C35","v":0.30000000000000004}]
["Less: Concessions, Bad Debt",null,null,{"$f":"'Advanced Financial'!H78","v":0}]
["Less: Operating Costs/sq.ft.",null,null,{"$f":"'Advanced Financial'!H79/'Physical Inputs'!C98","v":3.0769230769230771}]
[]
["Initial Project Value Analysis"]
["Property Value (Year 1)"]
["Going in Cap Rate",null,null,{"$f":"'Advanced Financial'!H80","v":0}]
[]
["Debt Financing"]
["Primary Debt"]
["Maximum LTV",null,null,{"$f":"'Advanced Financial'!H87","v":0.6}]
["Rate",null,null,{"$f":"'Advanced Financial'!H88","v":0.06}]
["Amortization Period, Years",null,null,{"$f":"'Advanced Financial'!H89","v":30}]
["Public Leveraging Loan"]
["Maximum LTV",null,null,{"$f":"IF(D43=1,'Gap Financing Options'!I63,0)","v":0}]
["Rate",null,null,{"$f":"IF(D43=1,'Gap Financing Options'!I64,0)","v":0}]
["Amortization Period, Years",null,null,{"$f":"IF(D43=1,'Gap Financing Options'!I65,0)","v":0}]
["Public Participation"]
["Capital Investment",null,null,{"$f":"IF(D43=1,'Gap Financing Options'!I69,0)","v":0}]
["Annual Cash Throw Off",null,null,{"$f":"IF(D43=1,'Gap Financing Options'!I70,0)","v":0}]
["Share of Net Sales Price",null,null,{"$f":"IF(D43=1,'Gap Financing Options'!I71,0)","v":0}]
["Public Leveraging Loan Included in Analysis?(1=Yes; 0=No) ",null,null,{"$f":"'Gap Financing Options'!I62","v":0}]
["Target IRR",null,null,{"$f":"'Advanced Financial'!H68","v":0.05}]
[]
["Operating Statement"]
["GPI",null,"Escalation",{"$f":"'Advanced Financial'!H81","v":0}]
["EGI"]
["Less: Operating Costs",null,"Escalation",{"$f":"'Advanced Financial'!H82","v":0}]
[]
["Project Value",null,null,"Year 1"]
["Terminal Cap Rate, Gross Sales Price",null,null,{"$f":"'Advanced Financial'!H83","v":0}]
["Net Sales = Price Less Sales Cost",null,null,{"$f":"'Advanced Financial'!H84","v":0}]
[]
[]
["Net Operating Income Analysis"]
["Total Development Costs",null,null,{"$f":"D17","v":0}]
["Development Costs Per Sq Ft",null,null,{"$f":"IFERROR(D57/D60,0)","v":0}]
["Project Feature",null,null,"Project","Rent"]
["Total project size, square feet",null,null,{"$f":"D19","v":0},{"$f":"E19","v":16.003846153846155},"per square foot/year"]
["Projected Sales per Square Foot",null,null,null,{"$f":"E20","v":0}]
["Rental Income from Sales Assessment",null,null,null,{"$f":"(D60*E61)*'Advanced Financial'!H76","v":0}]
["Gross Potential Rent  (GPI)",null,null,null,{"$f":"(D60*E60)+E62","v":0}]
["Other Income",null,null,{"$f":"D21","v":0},{"$f":"D64*E63","v":0}]
["Total Income",null,null,null,{"$f":"E63+E64","v":0}]
["Less: Vacancy",null,null,{"$f":"D22","v":0.30000000000000004},{"$f":"E65*D66","v":0}]
["Less: Concessions, Bad Debt",null,null,{"$f":"D23","v":0},{"$f":"E65*D67","v":0}]
["Effective Gross Income  (EGI)",null,null,null,{"$f":"E65-E66-E67","v":0}]
["Less: Operating Costs/sq.ft.",null,null,{"$f":"D24","v":3.0769230769230771},{"$f":"D69*D60","v":0}]
["Net Operating Income",null,null,null,{"$f":"E68-E69","v":0}]
[]
["Initial Project Value Analysis"]
["CAP RATE (Yield to Costs)",null,null,{"$f":"IFERROR(E70/F8,0)","v":0}]
["Debt Service",null,null,{"$f":"IFERROR(-E99,0)","v":0}]
["Cash Flow",null,null,{"$f":"E70-D74","v":0}]
["Return on Equity (Year 1)",null,null,{"$f":"IFERROR(D75/E104,0)","v":0}]
["Property Value (Year 1)"]
["NOI",null,null,{"$f":"E70","v":0}]
["Going in Cap Rate",null,null,{"$f":"D28","v":0}]
["Project Market Value",null,null,{"$f":"IFERROR(D78/D79,0)","v":0}]
["Net Project Value",null,null,{"$f":"D80-D57","v":0}]
[]
["Debt Financing"]
["Primary Debt"]
["Total Value",null,null,null,{"$f":"IF(D80>D57,D57,D80)","v":0}]
["Maximum LTV",null,null,{"$f":"D32","v":0.6},{"$f":"E85*D86","v":0}]
["Imputed Loan Amount",null,null,null,{"$f":"E86","v":0}]
["Rate",null,null,null,{"$f":"D33","v":0.06}]
["Amortization Period, Years",null,null,null,{"$f":"D34","v":30}]
["Annual Debt Service (Amortized)",null,null,null,{"$f":"IFERROR(PMT(E88/12,E89*12,E87)*12,0)","v":0}]
["Public Leveraging Loan"]
["Maximum LTV",null,null,{"$f":"IF(D43=1,D36,0)","v":0},{"$f":"IF(E85*D92>'Gap Financing Options'!B73*'Development Costs'!E46,'Gap Financing Options'!B73*'Development Costs'!E46,E85*D92)","v":0}]
["Imputed Loan Amount",null,null,null,{"$f":"IF(AND(D43=1,'Basic Financial'!B33=0),E92+'Gap Financing Options'!I68,0)","v":0}]
["Rate",null,null,null,{"$f":"IF(D43=1,D37,0)","v":0}]
["Amortization Period, Years",null,null,null,{"$f":"IF(D43=1,D38,0)","v":0}]
["Annual Debt Service (Amortized)",null,null,null,{"$f":"IFERROR(PMT(E94/12,E95*12,E93)*12,0)","v":0}]
[]
["Total Debt",null,null,null,{"$f":"E87+E93","v":0}]
["Total Debt Service",null,null,null,{"$f":"E90+E96","v":0}]
["Summary"]
["Total Development Costs",null,null,null,{"$f":"D57","v":0}]
["Equity Required",null,null,null,{"$f":"IF(E101-E98<0,1,E101-E98)","v":0}]
["Total Development Offsets (Contributions to Equity)",null,null,null,{"$f":"F7","v":0}]
["Net Equity Required",null,null,null,{"$f":"E102-E103","v":0}]
["Total Project Cost",null,null,null,{"$f":"E101","v":0}]
["Total Project Cost After Development Offsets",null,null,null,{"$f":"E105-E103","v":0}]
["Public Participation"]
["Capital Investment",null,null,null,{"$f":"D40","v":0}]
["Annual Cash Throw Off",null,null,null,{"$f":"D41","v":0}]
["Share of Net Sales Price",null,null,null,{"$f":"D42","v":0}]
["Public Leveraging Loan Included in Analysis? ",null,null,"(1=Yes; 0=No)",{"$f":"D43","v":0}]
["Target IRR",null,null,null,{"$f":"D44","v":0.05}]
[]
[]
[]
["Operating Statement",null,null,null,"Year 1","Year 2","Year 3","Year 4","Year 5","Year 6","Year 7","Year 8","Year 9","Year 10"]
["GPI",null,"Escalation",{"$f":"D47","v":0},{"$f":"E63","v":0},{"$f":"E117*(1+$D$117)","v":0},0,0,0,0,0,0,0,0]
["Other Income",null,null,null,{"$f":"E64","v":0},0,0,0,0,0,0,0,0,0]
["Total Income",null,null,null,{"$f":"E117+E118","v":0},0,0,0,0,0,0,0,0,0]
["Less: Vacancy",null,null,{"$f":"D66","v":0.30000000000000004},{"$f":"$D$120*E119","v":0},0,0,0,0,0,0,0,0,0]
["Less: Concessions, Market Loss",null,null,{"$f":"D67","v":0},{"$f":"$D$121*E119","v":0},0,0,0,0,0,0,0,0,0]
["EGI",null,null,null,{"$f":"E119-E120-E121","v":0},0,0,0,0,0,0,0,0,0]
["Less: Operating Costs",null,"Escalation",{"$f":"D49","v":0},{"$f":"E69","v":0},{"$f":"E123*(1+$D$123)","v":0},0,0,0,0,0,0,0,0]
["Less: Property Taxes",null,"Millage Rate",{"$f":"'Advanced Financial'!H60","v":1.4999999999999999E-2},{"$f":"$F8*$D124*'Advanced Financial'!$H61","v":0},{"$f":"$F8*$D124*'Advanced Financial'!$H61*(1+$D117)","v":0},{"$f":"$F8*$D124*'Advanced Financial'!$H61*(1+$D117)^2","v":0},{"$f":"$F8*$D124*'Advanced Financial'!$H61*(1+$D117)^3","v":0},{"$f":"$F8*$D124*'Advanced Financial'!$H61*(1+$D117)^4","v":0},{"$f":"$F8*$D124*'Advanced Financial'!$H61*(1+$D117)^5","v":0},{"$f":"$F8*$D124*'Advanced Financial'!$H61*(1+$D117)^6","v":0},{"$f":"$F8*$D124*'Advanced Financial'!$H61*(1+$D117)^7","v":0},{"$f":"$F8*$D124*'Advanced Financial'!$H61*(1+$D117)^8","v":0},{"$f":"$F8*$D124*'Advanced Financial'!$H61*(1+$D117)^9","v":0}]
["Plus: Property Tax Abatement",null,null,null,{"$f":"$D$13*'Advanced Financial'!$H61*$F8*'Gap Financing Options'!H17","v":0},{"$f":"$D$13*'Advanced Financial'!$H61*$F8*(1+$D$117)*'Gap Financing Options'!H18","v":0},{"$f":"$D$13*'Advanced Financial'!$H61*$F8*(1+$D$117)^2*'Gap Financing Options'!H19","v":0},{"$f":"$D$13*'Advanced Financial'!$H61*$F8*(1+$D$117)^3*'Gap Financing Options'!H20","v":0},{"$f":"$D$13*'Advanced Financial'!$H61*$F8*(1+$D$117)^4*'Gap Financing Options'!H21","v":0},{"$f":"$D$13*'Advanced Financial'!$H61*$F8*(1+$D$117)^5*'Gap Financing Options'!H22","v":0},{"$f":"$D$13*'Advanced Financial'!$H61*$F8*(1+$D$117)^6*'Gap Financing Options'!H23","v":0},{"$f":"$D$13*'Advanced Financial'!$H61*$F8*(1+$D$117)^7*'Gap Financing Options'!H24","v":0},{"$f":"$D$13*'Advanced Financial'!$H61*$F8*(1+$D$117)^8*'Gap Financing Options'!H25","v":0},{"$f":"$D$13*'Advanced Financial'!$H61*$F8*(1+$D$117)^9*'Gap Financing Options'!H26","v":0}]
[]
[]
["Cash Throw Off to Public Partner",null,null,null,{"$f":"-$E$109","v":0},0,0,0,0,0,0,0,0,0]
["NOI",null,null,null,{"$f":"E122-E124-E123+E125+E126+E127+E128","v":0},{"$f":"F122-F124-F123+F125+F126+F127+F128","v":0},0,0,0,0,0,0,0,0]
[]
["Less: Debt Service",null,null,null,{"$f":"-$E$99","v":0},0,0,0,0,0,0,0,0,0]
["Net Cash Flow",null,null,null,{"$f":"E129-E131","v":0},0,0,0,0,0,0,0,0,0]
[]
["Cap Rate",null,null,null,{"$f":"IFERROR(E129/$E$101,0)","v":0},0,0,0,0,0,0,0,0,0]
["Cash on Cash Return (Equity Dividend Rate)",null,null,null,{"$f":"IFERROR(E132/$E$104,0)","v":0},{"$f":"IFERROR(F132/$E$104,0)","v":0},0,0,0,0,0,0,0,0]
[]
["Project Value",null,null,"Year 0","Year 1","Year 2","Year 3","Year 4","Year 5","Year 6","Year 7","Year 8","Year 9","Year 10"]
["Terminal Cap Rate, Gross Sales Price",null,null,null,{"$f":"D52","v":0},null,null,null,null,null,null,null,null,{"$f":"IFERROR(N129/E138,0)","v":0}]
["Net Sales = Price Less Sales Cost",null,null,null,{"$f":"D53","v":0},null,null,null,null,null,null,null,null,{"$f":"N138*(1-E139)","v":0}]
["Less Mortgage Balance",null,null,null,null,null,null,null,null,null,null,null,null,{"$f":"AA185","v":0}]
["Net Sales Proceeds",null,null,null,null,null,null,null,null,null,null,null,null,{"$f":"N139-N140","v":0}]
[]
[]
["IRR - Unleveraged (Project Cost)",null,null,"Year 0","Year 1","Year 2","Year 3","Year 4","Year 5","Year 6","Year 7","Year 8","Year 9","Year 10"]
["Total Investment",null,null,{"$f":"-E106","v":0}]
["Project NOI",null,null,null,{"$f":"E129","v":0},{"$f":"F129","v":0},0,0,0,0,0,0,0,0]
["Net Sales Price",null,null,null,null,null,null,null,null,null,null,null,null,{"$f":"N139","v":0}]
["Total",null,null,{"$f":"SUM(D145:D147)","v":0},{"$f":"SUM(E145:E147)","v":0},{"$f":"SUM(F145:F147)","v":0},0,0,0,0,0,0,0,0]
["IRR - Project Cost",null,null,null,null,null,null,null,null,null,null,null,null,{"$f":"IFERROR(IRR(D148:N148),0)","v":0}]
["NPV - Project Cost",null,null,null,null,null,null,null,null,null,null,null,null,{"$f":"NPV(L6,D148:N148)","v":0}]
[]
["IRR - Leveraged (Before Tax)",null,null,"Year 0","Year 1","Year 2","Year 3","Year 4","Year 5","Year 6","Year 7","Year 8","Year 9","Year 10"]
["Original Investment (Equity)",null,null,{"$f":"-E104","v":0}]
["Project Cash Flow",null,null,null,{"$f":"E132","v":0},0,0,0,0,0,0,0,0,0]
["Net Sales Proceeds",null,null,null,null,null,null,null,null,null,null,null,null,{"$f":"N141","v":0}]
["Total",null,null,{"$f":"SUM(D153:D155)","v":0},0,0,0,0,0,0,0,0,0,0]
["IRR - Equity",null,null,null,null,null,null,null,null,null,null,null,null,{"$f":"IFERROR(IRR(D156:N156),0)","v":0}]
["NPV - Equity",null,null,null,null,null,null,null,null,null,null,null,null,{"$f":"NPV(L7,D156:N156)","v":0}]
[]
["IRR - Public Participation",null,null,"Year 0","Year 1","Year 2","Year 3","Year 4","Year 5","Year 6","Year 7","Year 8","Year 9","Year 10"]
["Original Investment (Equity)",null,null,{"$f":"-(E108+(E93*E111))","v":0}]
["Mezzanine Financing",null,null,null,{"$f":"-$E$96","v":0},0,0,0,0,0,0,0,0,0]
["Cash Throw Off",null,null,null,{"$f":"$E$109","v":0},0,0,0,0,0,0,0,0,0]
["Sale Proceeds",null,null,null,null,null,null,null,null,null,null,null,null,{"$f":"N155*E110","v":0}]
["Loan Balance",null,null,null,null,null,null,null,null,null,null,null,null,{"$f":"V185*E111","v":0}]
["Total",null,null,{"$f":"SUM(D161:D165)","v":0},{"$f":"SUM(E161:E165)","v":0},0,0,0,0,0,0,0,0,0]
["IRR - Equity",null,null,null,null,null,null,null,null,null,null,null,null,{"$f":"IFERROR(IRR(D166:N166),0)","v":0}]
["NPV - Equity",null,null,null,null,null,null,null,null,null,null,null,null,{"$f":"NPV(E112,D166:N166)","v":0}]
[]
[]
[]
["DEBT SERVICE MORTIZATION TABLES"]
["Primary Debt Amortization",null,null,null,null,"Low Interest Loan",null,null,null,null,"Total Debt Amortization",null,null,null,null,"Annual Debt Service Summary - Primary Debt",null,null,null,null,"Annual Debt Service Summary - Secondary Debt",null,null,null,null,"Annual Debt Service Summary - Total Debt"]
[]
["Period","Balance","Payment","Interest","Principal","Period","Balance","Payment","Interest","Principal","Period","Balance","Payment","Interest","Principal","Year","Balance","Payment","Interest","Principal","Year","Balance","Payment","Interest","Principal","Year","Balance","Payment","Interest","Principal"]
[0,{"$f":"E87","v":0},null,null,null,0,{"$f":"E93","v":0},null,null,null,0,{"$f":"B176+G176","v":0},null,null,null,1,{"$f":"B188","v":0},{"$f":"SUM(C177:C188)","v":0},{"$f":"SUM(D177:D188)","v":0},{"$f":"SUM(E177:E188)","v":0},1,{"$f":"G188","v":0},{"$f":"SUM(H177:H188)","v":0},{"$f":"SUM(I177:I188)","v":0},{"$f":"SUM(J177:J188)","v":0},1,{"$f":"Q176+V176","v":0},{"$f":"R176+W176","v":0},{"$f":"S176+X176","v":0},{"$f":"T176+Y176","v":0}]
[1,{"$f":"B176-E177","v":0},{"$f":"-$E$90/12","v":0},{"$f":"B176*$E$88/12","v":0},{"$f":"C177-D177","v":0},1,{"$f":"G176-J177","v":0},{"$f":"-$E$96/12","v":0},{"$f":"G176*$E$94/12","v":0},{"$f":"H177-I177","v":0},1,{"$f":"G177+B177","v":0},0,0,0,2,{"$f":"B200","v":0},{"$f":"SUM(C189:C200)","v":0},{"$f":"SUM(D189:D200)","v":0},{"$f":"SUM(E189:E200)","v":0},2,{"$f":"G200","v":0},{"$f":"SUM(H189:H200)","v":0},{"$f":"SUM(I189:I200)","v":0},{"$f":"SUM(J189:J200)","v":0},2,{"$f":"Q177+V177","v":0},0,0,0]
[{"$f":"A177+1","v":2},0,0,{"$f":"B177*$E$88/12","v":0},0,{"$f":"F177+1","v":2},0,0,0,0,{"$f":"K177+1","v":2},0,0,0,0,3,{"$f":"B212","v":0},{"$f":"SUM(C201:C212)","v":0},{"$f":"SUM(D201:D212)","v":0},{"$f":"SUM(E201:E212)","v":0},3,{"$f":"G212","v":0},{"$f":"SUM(H201:H212)","v":0},{"$f":"SUM(I201:I212)","v":0},{"$f":"SUM(J201:J212)","v":0},3,0,0,0,0]
[3,0,0,{"$f":"B178*$E$88/12","v":0},0,3,0,0,0,0,3,0,0,0,0,4,{"$f":"B224","v":0},{"$f":"SUM(C213:C224)","v":0},{"$f":"SUM(D213:D224)","v":0},{"$f":"SUM(E213:E224)","v":0},4,{"$f":"G224","v":0},{"$f":"SUM(H213:H224)","v":0},{"$f":"SUM(I213:I224)","v":0},{"$f":"SUM(J213:J224)","v":0},4,0,0,0,0]
[4,0,0,{"$f":"B179*$E$88/12","v":0},0,4,0,0,0,0,4,0,0,0,0,5,{"$f":"B236","v":0},{"$f":"SUM(C225:C236)","v":0},{"$f":"SUM(D225:D236)","v":0},{"$f":"SUM(E225:E236)","v":0},5,{"$f":"G236","v":0},{"$f":"SUM(H225:H236)","v":0},{"$f":"SUM(I225:I236)","v":0},{"$f":"SUM(J225:J236)","v":0},5,0,0,0,0]
[5,0,0,0,0,5,0,0,0,0,5,0,0,0,0,6,{"$f":"B248","v":0},{"$f":"SUM(C237:C248)","v":0},{"$f":"SUM(D237:D248)","v":0},{"$f":"SUM(E237:E248)","v":0},6,{"$f":"G248","v":0},{"$f":"SUM(H237:H248)","v":0},{"$f":"SUM(I237:I248)","v":0},{"$f":"SUM(J237:J248)","v":0},6,0,0,0,0]
[6,0,0,0,0,6,0,0,0,0,6,0,0,0,0,7,{"$f":"B260","v":0},{"$f":"SUM(C249:C260)","v":0},{"$f":"SUM(D249:D260)","v":0},{"$f":"SUM(E249:E260)","v":0},7,{"$f":"G260","v":0},{"$f":"SUM(H249:H260)","v":0},{"$f":"SUM(I249:I260)","v":0},{"$f":"SUM(J249:J260)","v":0},7,0,0,0,0]
[7,0,0,0,0,7,0,0,0,0,7,0,0,0,0,8,{"$f":"B272","v":0},{"$f":"SUM(C261:C272)","v":0},{"$f":"SUM(D261:D272)","v":0},{"$f":"SUM(E261:E272)","v":0},8,{"$f":"G272","v":0},{"$f":"SUM(H261:H272)","v":0},{"$f":"SUM(I261:I272)","v":0},{"$f":"SUM(J261:J272)","v":0},8,0,0,0,0]
[8,0,0,0,0,8,0,0,0,0,8,0,0,0,0,9,{"$f":"B284","v":0},{"$f":"SUM(C273:C284)","v":0},{"$f":"SUM(D273:D284)","v":0},{"$f":"SUM(E273:E284)","v":0},9,{"$f":"G284","v":0},{"$f":"SUM(H273:H284)","v":0},{"$f":"SUM(I273:I284)","v":0},{"$f":"SUM(J273:J284)","v":0},9,0,0,0,0]
[9,0,0,0,0,9,0,0,0,0,9,0,0,0,0,10,{"$f":"B296","v":0},{"$f":"SUM(C285:C296)","v":0},{"$f":"SUM(D285:D296)","v":0},{"$f":"SUM(E285:E296)","v":0},10,{"$f":"G296","v":0},{"$f":"SUM(H285:H296)","v":0},{"$f":"SUM(I285:I296)","v":0},{"$f":"SUM(J285:J296)","v":0},10,{"$f":"Q185+V185","v":0},{"$f":"R185+W185","v":0},{"$f":"S185+X185","v":0},{"$f":"T185+Y185","v":0}]
[10,0,0,0,0,10,0,0,0,0,10,0,0,0,0]
[11,0,0,0,0,11,0,0,0,0,11,0,0,0,0]
[12,0,0,0,0,12,0,0,0,0,12,0,0,0,0]
[13,0,0,0,0,13,0,0,0,0,13,0,0,0,0]
[14,0,0,0,0,14,0,0,0,0,14,0,0,0,0]
[15,0,0,0,0,15,0,0,0,0,15,0,0,0,0]
[16,0,0,0,0,16,0,0,0,0,16,0,0,0,0]
[17,0,0,0,0,17,0,0,0,0,17,0,0,0,0]
[18,0,0,0,0,18,0,0,0,0,18,0,0,0,0]
[19,0,0,0,0,19,0,0,0,0,19,0,0,0,0]
[20,0,0,0,0,20,0,0,0,0,20,0,0,0,0]
[21,0,0,0,0,21,0,0,0,0,21,0,0,0,0]
[22,0,0,0,0,22,0,0,0,0,22,0,0,0,0]
[23,0,0,0,0,23,0,0,0,0,23,0,0,0,0]
[24,0,0,0,0,24,0,0,0,0,24,0,0,0,0]
[25,0,0,0,0,25,0,0,0,0,25,0,0,0,0]
[26,0,0,0,0,26,0,0,0,0,26,0,0,0,0]
[27,0,0,0,0,27,0,0,0,0,27,0,0,0,0]
[28,0,0,0,0,28,0,0,0,0,28,0,0,0,0]
[29,0,0,0,0,29,0,0,0,0,29,0,0,0,0]
[30,0,0,0,0,30,0,0,0,0,30,0,0,0,0]
[31,0,0,0,0,31,0,0,0,0,31,0,0,0,0]
[32,0,0,0,0,32,0,0,0,0,32,0,0,0,0]
[33,0,0,0,0,33,0,0,0,0,33,0,0,0,0]
[34,0,0,0,0,34,0,0,0,0,34,0,0,0,0]
[35,0,0,0,0,35,0,0,0,0,35,0,0,0,0]
[36,0,0,0,0,36,0,0,0,0,36,0,0,0,0]
[37,0,0,0,0,37,0,0,0,0,37,0,0,0,0]
[38,0,0,0,0,38,0,0,0,0,38,0,0,0,0]
[39,0,0,0,0,39,0,0,0,0,39,0,0,0,0]
[40,0,0,0,0,40,0,0,0,0,40,0,0,0,0]
[41,0,0,0,0,41,0,0,0,0,41,0,0,0,0]
[42,0,0,0,0,42,0,0,0,0,42,0,0,0,0]
[43,0,0,0,0,43,0,0,0,0,43,0,0,0,0]
[44,0,0,0,0,44,0,0,0,0,44,0,0,0,0]
[45,0,0,0,0,45,0,0,0,0,45,0,0,0,0]
[46,0,0,0,0,46,0,0,0,0,46,0,0,0,0]
[47,0,0,0,0,47,0,0,0,0,47,0,0,0,0]
[48,0,0,0,0,48,0,0,0,0,48,0,0,0,0]
[49,0,0,0,0,49,0,0,0,0,49,0,0,0,0]
[50,0,0,0,0,50,0,0,0,0,50,0,0,0,0]
[51,0,0,0,0,51,0,0,0,0,51,0,0,0,0]
[52,0,0,0,0,52,0,0,0,0,52,0,0,0,0]
[53,0,0,0,0,53,0,0,0,0,53,0,0,0,0]
[54,0,0,0,0,54,0,0,0,0,54,0,0,0,0]
[55,0,0,0,0,55,0,0,0,0,55,0,0,0,0]
[56,0,0,0,0,56,0,0,0,0,56,0,0,0,0]
[57,0,0,0,0,57,0,0,0,0,57,0,0,0,0]
[58,0,0,0,0,58,0,0,0,0,58,0,0,0,0]
[59,0,0,0,0,59,0,0,0,0,59,0,0,0,0]
[60,0,0,0,0,60,0,0,0,0,60,0,0,0,0]
[61,0,0,0,0,61,0,0,0,0,61,0,0,0,0]
[62,0,0,0,0,62,0,0,0,0,62,0,0,0,0]
[63,0,0,0,0,63,0,0,0,0,63,0,0,0,0]
[64,0,0,0,0,64,0,0,0,0,64,0,0,0,{"$f":"J240+E240","v":0}]
[65,{"$f":"B240-E241","v":0},{"$f":"-$E$90/12","v":0},0,{"$f":"C241-D241","v":0},65,{"$f":"G240-J241","v":0},{"$f":"-$E$96/12","v":0},{"$f":"G240*$E$94/12","v":0},{"$f":"H241-I241","v":0},65,{"$f":"G241+B241","v":0},0,0,0]
[{"$f":"A241+1","v":66},0,0,0,0,{"$f":"F241+1","v":66},0,0,0,0,{"$f":"K241+1","v":66},0,0,0,0]
[67,0,0,0,0,67,0,0,0,0,67,0,0,0,0]
[68,0,0,{"$f":"B243*$E$88/12","v":0},0,68,0,0,0,0,68,0,0,0,0]
[69,0,0,0,0,69,0,0,0,0,69,0,0,0,0]
[70,0,0,0,0,70,0,0,0,0,70,0,0,0,0]
[71,0,0,0,0,71,0,0,0,0,71,0,0,0,0]
[72,0,0,0,0,72,0,0,0,0,72,0,0,0,0]
[73,0,0,0,0,73,0,0,0,0,73,0,0,0,0]
[74,0,0,0,0,74,0,0,0,0,74,0,0,0,0]
[75,0,0,0,0,75,0,0,0,0,75,0,0,0,0]
[76,0,0,0,0,76,0,0,0,0,76,0,0,0,0]
[77,0,0,0,0,77,0,0,0,0,77,0,0,0,0]
[78,0,0,0,0,78,0,0,0,0,78,0,0,0,0]
[79,0,0,0,0,79,0,0,0,0,79,0,0,0,0]
[80,0,0,0,0,80,0,0,0,0,80,0,0,0,0]
[81,0,0,0,0,81,0,0,0,0,81,0,0,0,0]
[82,0,0,0,0,82,0,0,0,0,82,0,0,0,0]
[83,0,0,0,0,83,0,0,0,0,83,0,0,0,0]
[84,0,0,0,0,84,0,0,0,0,84,0,0,0,0]
[85,0,0,0,0,85,0,0,0,0,85,0,0,0,0]
[86,0,0,0,0,86,0,0,0,0,86,0,0,0,0]
[87,0,0,0,0,87,0,0,0,0,87,0,0,0,0]
[88,0,0,0,0,88,0,0,0,0,88,0,0,0,0]
[89,0,0,0,0,89,0,0,0,0,89,0,0,0,0]
[90,0,0,0,0,90,0,0,0,0,90,0,0,0,0]
[91,0,0,0,0,91,0,0,0,0,91,0,0,0,0]
[92,0,0,0,0,92,0,0,0,0,92,0,0,0,0]
[93,0,0,0,0,93,0,0,0,0,93,0,0,0,0]
[94,0,0,0,0,94,0,0,0,0,94,0,0,0,0]
[95,0,0,0,0,95,0,0,0,0,95,0,0,0,0]
[96,0,0,0,0,96,0,0,0,0,96,0,0,0,0]
[97,0,0,0,0,97,0,0,0,0,97,0,0,0,0]
[98,0,0,0,0,98,0,0,0,0,98,0,0,0,0]
[99,0,0,0,0,99,0,0,0,0,99,0,0,0,0]
[100,0,0,0,0,100,0,0,0,0,100,0,0,0,0]
[101,0,0,0,0,101,0,0,0,0,101,0,0,0,0]
[102,0,0,0,0,102,0,0,0,0,102,0,0,0,0]
[103,0,0,0,0,103,0,0,0,0,103,0,0,0,0]
[104,0,0,0,0,104,0,0,0,0,104,0,0,0,0]
[105,0,0,0,0,105,0,0,0,0,105,0,0,0,0]
[106,0,0,0,0,106,0,0,0,0,106,0,0,0,0]
[107,0,0,0,0,107,0,0,0,0,107,0,0,0,0]
[108,0,0,0,0,108,0,0,0,0,108,0,0,0,0]
[109,0,0,0,0,109,0,0,0,0,109,0,0,0,0]
[110,0,0,0,0,110,0,0,0,0,110,0,0,0,0]
[111,0,0,0,0,111,0,0,0,0,111,0,0,0,0]
[112,0,0,0,0,112,0,0,0,0,112,0,0,0,0]
[113,0,0,0,0,113,0,0,0,0,113,0,0,0,0]
[114,0,0,0,0,114,0,0,0,0,114,0,0,0,0]
[115,0,0,0,0,115,0,0,0,0,115,0,0,0,0]
[116,0,0,0,0,116,0,0,0,0,116,0,0,0,0]
[117,0,0,0,0,117,0,0,0,0,117,0,0,0,0]
[118,0,0,0,0,118,0,0,0,0,118,0,0,0,0]
[119,0,0,0,0,119,0,0,0,0,119,0,0,0,0]
[120,0,0,0,0,120,0,0,0,0,120,0,0,0,0]
[121,0,0,0,0,121,0,0,0,0,121,0,0,0,0]
[122,0,0,0,0,122,0,0,0,0,122,0,0,0,0]
[123,0,0,0,0,123,0,0,0,0,123,0,0,0,0]
[124,0,0,0,0,124,0,0,0,0,124,0,0,0,0]
[125,0,0,0,0,125,0,0,0,0,125,0,0,0,0]
[126,0,0,0,0,126,0,0,0,0,126,0,0,0,0]
[127,0,0,0,0,127,0,0,0,0,127,0,0,0,0]
[128,0,0,0,0,128,0,0,0,0,128,0,0,0,0]
[129,{"$f":"B304-E305","v":0},{"$f":"-$E$90/12","v":0},0,{"$f":"C305-D305","v":0},129,{"$f":"G304-J305","v":0},{"$f":"-$E$96/12","v":0},{"$f":"G304*$E$94/12","v":0},{"$f":"H305-I305","v":0},129,{"$f":"G305+B305","v":0},0,0,0]
[{"$f":"A305+1","v":130},0,0,0,0,{"$f":"F305+1","v":130},0,0,0,0,{"$f":"K305+1","v":130},0,0,0,0]
[131,0,0,0,0,131,0,0,0,0,131,0,0,0,0]
[132,0,0,{"$f":"B307*$E$88/12","v":0},0,132,0,0,0,0,132,0,0,0,0]
[133,0,0,0,0,133,0,0,0,0,133,0,0,0,0]
[134,0,0,0,0,134,0,0,0,0,134,0,0,0,0]
[135,0,0,0,0,135,0,0,0,0,135,0,0,0,0]
[136,0,0,0,0,136,0,0,0,0,136,0,0,0,0]
[137,0,0,0,0,137,0,0,0,0,137,0,0,0,0]
[138,0,0,0,0,138,0,0,0,0,138,0,0,0,0]
[139,0,0,0,0,139,0,0,0,0,139,0,0,0,0]
[140,0,0,0,0,140,0,0,0,0,140,0,0,0,0]
[141,0,0,0,0,141,0,0,0,0,141,0,0,0,0]
[142,0,0,0,0,142,0,0,0,0,142,0,0,0,0]
[143,0,0,0,0,143,0,0,0,0,143,0,0,0,0]
[144,0,0,0,0,144,0,0,0,0,144,0,0,0,0]
[145,0,0,0,0,145,0,0,0,0,145,0,0,0,0]
[146,0,0,0,0,146,0,0,0,0,146,0,0,0,0]
[147,0,0,0,0,147,0,0,0,0,147,0,0,0,0]
[148,0,0,0,0,148,0,0,0,0,148,0,0,0,0]
[149,0,0,0,0,149,0,0,0,0,149,0,0,0,0]
[150,0,0,0,0,150,0,0,0,0,150,0,0,0,0]
[151,0,0,0,0,151,0,0,0,0,151,0,0,0,0]
[152,0,0,0,0,152,0,0,0,0,152,0,0,0,0]
[153,0,0,0,0,153,0,0,0,0,153,0,0,0,0]
[154,0,0,0,0,154,0,0,0,0,154,0,0,0,0]
[155,0,0,0,0,155,0,0,0,0,155,0,0,0,0]
[156,0,0,0,0,156,0,0,0,0,156,0,0,0,0]
[157,0,0,0,0,157,0,0,0,0,157,0,0,0,0]
[158,0,0,0,0,158,0,0,0,0,158,0,0,0,0]
[159,0,0,0,0,159,0,0,0,0,159,0,0,0,0]
[160,0,0,0,0,160,0,0,0,0,160,0,0,0,0]
[161,0,0,0,0,161,0,0,0,0,161,0,0,0,0]
[162,0,0,0,0,162,0,0,0,0,162,0,0,0,0]
[163,0,0,0,0,163,0,0,0,0,163,0,0,0,0]
[164,0,0,0,0,164,0,0,0,0,164,0,0,0,0]
[165,0,0,0,0,165,0,0,0,0,165,0,0,0,0]
[166,0,0,0,0,166,0,0,0,0,166,0,0,0,0]
[167,0,0,0,0,167,0,0,0,0,167,0,0,0,0]
[168,0,0,0,0,168,0,0,0,0,168,0,0,0,0]
[169,0,0,0,0,169,0,0,0,0,169,0,0,0,0]
[170,0,0,0,0,170,0,0,0,0,170,0,0,0,0]
[171,0,0,0,0,171,0,0,0,0,171,0,0,0,0]
[172,0,0,0,0,172,0,0,0,0,172,0,0,0,0]
[173,0,0,0,0,173,0,0,0,0,173,0,0,0,0]
[174,0,0,0,0,174,0,0,0,0,174,0,0,0,0]
[175,0,0,0,0,175,0,0,0,0,175,0,0,0,0]
[176,0,0,0,0,176,0,0,0,0,176,0,0,0,0]
[177,0,0,0,0,177,0,0,0,0,177,0,0,0,0]
[178,0,0,0,0,178,0,0,0,0,178,0,0,0,0]
[179,0,0,0,0,179,0,0,0,0,179,0,0,0,0]
[180,0,0,0,0,180,0,0,0,0,180,0,0,0,0]
[181,0,0,0,0,181,0,0,0,0,181,0,0,0,0]
[182,0,0,0,0,182,0,0,0,0,182,0,0,0,0]
[183,0,0,0,0,183,0,0,0,0,183,0,0,0,0]
[184,0,0,0,0,184,0,0,0,0,184,0,0,0,0]
[185,0,0,0,0,185,0,0,0,0,185,0,0,0,0]
[186,0,0,0,0,186,0,0,0,0,186,0,0,0,0]
[187,0,0,0,0,187,0,0,0,0,187,0,0,0,0]
[188,0,0,0,0,188,0,0,0,0,188,0,0,0,0]
[189,0,0,0,0,189,0,0,0,0,189,0,0,0,0]
[190,0,0,0,0,190,0,0,0,0,190,0,0,0,0]
[191,0,0,0,0,191,0,0,0,0,191,0,0,0,0]
[192,0,0,0,0,192,0,0,0,0,192,0,0,0,{"$f":"J368+E368","v":0}]
[193,{"$f":"B368-E369","v":0},{"$f":"-$E$90/12","v":0},0,{"$f":"C369-D369","v":0},193,{"$f":"G368-J369","v":0},{"$f":"-$E$96/12","v":0},{"$f":"G368*$E$94/12","v":0},{"$f":"H369-I369","v":0},193,{"$f":"G369+B369","v":0},0,0,0]
[{"$f":"A369+1","v":194},0,0,0,0,{"$f":"F369+1","v":194},0,0,0,0,{"$f":"K369+1","v":194},0,0,0,0]
[195,0,0,0,0,195,0,0,0,0,195,0,0,0,0]
[196,0,0,{"$f":"B371*$E$88/12","v":0},0,196,0,0,0,0,196,0,0,0,0]
[197,0,0,0,0,197,0,0,0,0,197,0,0,0,0]
[198,0,0,0,0,198,0,0,0,0,198,0,0,0,0]
[199,0,0,0,0,199,0,0,0,0,199,0,0,0,0]
[200,0,0,0,0,200,0,0,0,0,200,0,0,0,0]
[201,0,0,0,0,201,0,0,0,0,201,0,0,0,0]
[202,0,0,0,0,202,0,0,0,0,202,0,0,0,0]
[203,0,0,0,0,203,0,0,0,0,203,0,0,0,0]
[204,0,0,0,0,204,0,0,0,0,204,0,0,0,0]
[205,0,0,0,0,205,0,0,0,0,205,0,0,0,0]
[206,0,0,0,0,206,0,0,0,0,206,0,0,0,0]
[207,0,0,0,0,207,0,0,0,0,207,0,0,0,0]
[208,0,0,0,0,208,0,0,0,0,208,0,0,0,0]
[209,0,0,0,0,209,0,0,0,0,209,0,0,0,0]
[210,0,0,0,0,210,0,0,0,0,210,0,0,0,0]
[211,0,0,0,0,211,0,0,0,0,211,0,0,0,0]
[212,0,0,0,0,212,0,0,0,0,212,0,0,0,0]
[213,0,0,0,0,213,0,0,0,0,213,0,0,0,0]
[214,0,0,0,0,214,0,0,0,0,214,0,0,0,0]
[215,0,0,0,0,215,0,0,0,0,215,0,0,0,0]
[216,0,0,0,0,216,0,0,0,0,216,0,0,0,0]
[217,0,0,0,0,217,0,0,0,0,217,0,0,0,0]
[218,0,0,0,0,218,0,0,0,0,218,0,0,0,0]
[219,0,0,0,0,219,0,0,0,0,219,0,0,0,0]
[220,0,0,0,0,220,0,0,0,0,220,0,0,0,0]
[221,0,0,0,0,221,0,0,0,0,221,0,0,0,0]
[222,0,0,0,0,222,0,0,0,0,222,0,0,0,0]
[223,0,0,0,0,223,0,0,0,0,223,0,0,0,0]
[224,0,0,0,0,224,0,0,0,0,224,0,0,0,0]
[225,0,0,0,0,225,0,0,0,0,225,0,0,0,0]
[226,0,0,0,0,226,0,0,0,0,226,0,0,0,0]
[227,0,0,0,0,227,0,0,0,0,227,0,0,0,0]
[228,0,0,0,0,228,0,0,0,0,228,0,0,0,0]
[229,0,0,0,0,229,0,0,0,0,229,0,0,0,0]
[230,0,0,0,0,230,0,0,0,0,230,0,0,0,0]
[231,0,0,0,0,231,0,0,0,0,231,0,0,0,0]
[232,0,0,0,0,232,0,0,0,0,232,0,0,0,0]
[233,0,0,0,0,233,0,0,0,0,233,0,0,0,0]
[234,0,0,0,0,234,0,0,0,0,234,0,0,0,0]
[235,0,0,0,0,235,0,0,0,0,235,0,0,0,0]
[236,0,0,0,0,236,0,0,0,0,236,0,0,0,0]
[237,0,0,0,0,237,0,0,0,0,237,0,0,0,0]
[238,0,0,0,0,238,0,0,0,0,238,0,0,0,0]
[239,0,0,0,0,239,0,0,0,0,239,0,0,0,0]
[240,0,0,0,0,240,0,0,0,0,240,0,0,0,0]
[241,0,0,0,0,241,0,0,0,0,241,0,0,0,0]
[242,0,0,0,0,242,0,0,0,0,242,0,0,0,0]
[243,0,0,0,0,243,0,0,0,0,243,0,0,0,0]
[244,0,0,0,0,244,0,0,0,0,244,0,0,0,0]
[245,0,0,0,0,245,0,0,0,0,245,0,0,0,0]
[246,0,0,0,0,246,0,0,0,0,246,0,0,0,0]
[247,0,0,0,0,247,0,0,0,0,247,0,0,0,0]
[248,0,0,0,0,248,0,0,0,0,248,0,0,0,0]
[249,0,0,0,0,249,0,0,0,0,249,0,0,0,0]
[250,0,0,0,0,250,0,0,0,0,250,0,0,0,0]
[251,0,0,0,0,251,0,0,0,0,251,0,0,0,0]
[252,0,0,0,0,252,0,0,0,0,252,0,0,0,0]
[253,0,0,0,0,253,0,0,0,0,253,0,0,0,0]
[254,0,0,0,0,254,0,0,0,0,254,0,0,0,0]
[255,0,0,0,0,255,0,0,0,0,255,0,0,0,0]
[256,0,0,0,0,256,0,0,0,0,256,0,0,0,0]
[257,{"$f":"B432-E433","v":0},{"$f":"-$E$90/12","v":0},0,{"$f":"C433-D433","v":0},257,{"$f":"G432-J433","v":0},{"$f":"-$E$96/12","v":0},{"$f":"G432*$E$94/12","v":0},{"$f":"H433-I433","v":0},257,{"$f":"G433+B433","v":0},0,0,0]
[{"$f":"A433+1","v":258},0,0,0,0,{"$f":"F433+1","v":258},0,0,0,0,{"$f":"K433+1","v":258},0,0,0,0]
[259,0,0,0,0,259,0,0,0,0,259,0,0,0,0]
[260,0,0,{"$f":"B435*$E$88/12","v":0},0,260,0,0,0,0,260,0,0,0,0]
[261,0,0,0,0,261,0,0,0,0,261,0,0,0,0]
[262,0,0,0,0,262,0,0,0,0,262,0,0,0,0]
[263,0,0,0,0,263,0,0,0,0,263,0,0,0,0]
[264,0,0,0,0,264,0,0,0,0,264,0,0,0,0]
[265,0,0,0,0,265,0,0,0,0,265,0,0,0,0]
[266,0,0,0,0,266,0,0,0,0,266,0,0,0,0]
[267,0,0,0,0,267,0,0,0,0,267,0,0,0,0]
[268,0,0,0,0,268,0,0,0,0,268,0,0,0,0]
[269,0,0,0,0,269,0,0,0,0,269,0,0,0,0]
[270,0,0,0,0,270,0,0,0,0,270,0,0,0,0]
[271,0,0,0,0,271,0,0,0,0,271,0,0,0,0]
[272,0,0,0,0,272,0,0,0,0,272,0,0,0,0]
[273,0,0,0,0,273,0,0,0,0,273,0,0,0,0]
[274,0,0,0,0,274,0,0,0,0,274,0,0,0,0]
[275,0,0,0,0,275,0,0,0,0,275,0,0,0,0]
[276,0,0,0,0,276,0,0,0,0,276,0,0,0,0]
[277,0,0,0,0,277,0,0,0,0,277,0,0,0,0]
[278,0,0,0,0,278,0,0,0,0,278,0,0,0,0]
[279,0,0,0,0,279,0,0,0,0,279,0,0,0,0]
[280,0,0,0,0,280,0,0,0,0,280,0,0,0,0]
[281,0,0,0,0,281,0,0,0,0,281,0,0,0,0]
[282,0,0,0,0,282,0,0,0,0,282,0,0,0,0]
[283,0,0,0,0,283,0,0,0,0,283,0,0,0,0]
[284,0,0,0,0,284,0,0,0,0,284,0,0,0,0]
[285,0,0,0,0,285,0,0,0,0,285,0,0,0,0]
[286,0,0,0,0,286,0,0,0,0,286,0,0,0,0]
[287,0,0,0,0,287,0,0,0,0,287,0,0,0,0]
[288,0,0,0,0,288,0,0,0,0,288,0,0,0,0]
[289,0,0,0,0,289,0,0,0,0,289,0,0,0,0]
[290,0,0,0,0,290,0,0,0,0,290,0,0,0,0]
[291,0,0,0,0,291,0,0,0,0,291,0,0,0,0]
[292,0,0,0,0,292,0,0,0,0,292,0,0,0,0]
[293,0,0,0,0,293,0,0,0,0,293,0,0,0,0]
[294,0,0,0,0,294,0,0,0,0,294,0,0,0,0]
[295,0,0,0,0,295,0,0,0,0,295,0,0,0,0]
[296,0,0,0,0,296,0,0,0,0,296,0,0,0,0]
[297,0,0,0,0,297,0,0,0,0,297,0,0,0,0]
[298,0,0,0,0,298,0,0,0,0,298,0,0,0,0]
[299,0,0,0,0,299,0,0,0,0,299,0,0,0,0]
[300,0,0,0,0,300,0,0,0,0,300,0,0,0,0]
[301,0,0,0,0,301,0,0,0,0,301,0,0,0,0]
[302,0,0,0,0,302,0,0,0,0,302,0,0,0,0]
[303,0,0,0,0,303,0,0,0,0,303,0,0,0,0]
[304,0,0,0,0,304,0,0,0,0,304,0,0,0,0]
[305,0,0,0,0,305,0,0,0,0,305,0,0,0,0]
[306,0,0,0,0,306,0,0,0,0,306,0,0,0,0]
[307,0,0,0,0,307,0,0,0,0,307,0,0,0,0]
[308,0,0,0,0,308,0,0,0,0,308,0,0,0,0]
[309,0,0,0,0,309,0,0,0,0,309,0,0,0,0]
[310,0,0,0,0,310,0,0,0,0,310,0,0,0,0]
[311,0,0,0,0,311,0,0,0,0,311,0,0,0,0]
[312,0,0,0,0,312,0,0,0,0,312,0,0,0,0]
[313,0,0,0,0,313,0,0,0,0,313,0,0,0,0]
[314,0,0,0,0,314,0,0,0,0,314,0,0,0,0]
[315,0,0,0,0,315,0,0,0,0,315,0,0,0,0]
[316,0,0,0,0,316,0,0,0,0,316,0,0,0,0]
[317,0,0,0,0,317,0,0,0,0,317,0,0,0,0]
[318,0,0,0,0,318,0,0,0,0,318,0,0,0,0]
[319,0,0,0,0,319,0,0,0,0,319,0,0,0,0]
[320,0,0,0,0,320,0,0,0,0,320,0,0,0,{"$f":"J496+E496","v":0}]
[321,{"$f":"B496-E497","v":0},{"$f":"-$E$90/12","v":0},0,{"$f":"C497-D497","v":0},321,{"$f":"G496-J497","v":0},{"$f":"-$E$96/12","v":0},{"$f":"G496*$E$94/12","v":0},{"$f":"H497-I497","v":0},321,{"$f":"G497+B497","v":0},0,0,0]
[{"$f":"A497+1","v":322},0,0,0,0,{"$f":"F497+1","v":322},0,0,0,0,{"$f":"K497+1","v":322},0,0,0,0]
[323,0,0,0,0,323,0,0,0,0,323,0,0,0,0]
[324,0,0,{"$f":"B499*$E$88/12","v":0},0,324,0,0,0,0,324,0,0,0,0]
[325,0,0,0,0,325,0,0,0,0,325,0,0,0,0]
[326,0,0,0,0,326,0,0,0,0,326,0,0,0,0]
[327,0,0,0,0,327,0,0,0,0,327,0,0,0,0]
[328,0,0,0,0,328,0,0,0,0,328,0,0,0,0]
[329,0,0,0,0,329,0,0,0,0,329,0,0,0,0]
[330,0,0,0,0,330,0,0,0,0,330,0,0,0,0]
[331,0,0,0,0,331,0,0,0,0,331,0,0,0,0]
[332,0,0,0,0,332,0,0,0,0,332,0,0,0,0]
[333,0,0,0,0,333,0,0,0,0,333,0,0,0,0]
[334,0,0,0,0,334,0,0,0,0,334,0,0,0,0]
[335,0,0,0,0,335,0,0,0,0,335,0,0,0,0]
[336,0,0,0,0,336,0,0,0,0,336,0,0,0,0]
[337,0,0,0,0,337,0,0,0,0,337,0,0,0,0]
[338,0,0,0,0,338,0,0,0,0,338,0,0,0,0]
[339,0,0,0,0,339,0,0,0,0,339,0,0,0,0]
[340,0,0,0,0,340,0,0,0,0,340,0,0,0,0]
[341,0,0,0,0,341,0,0,0,0,341,0,0,0,0]
[342,0,0,0,0,342,0,0,0,0,342,0,0,0,0]
[343,0,0,0,0,343,0,0,0,0,343,0,0,0,0]
[344,0,0,0,0,344,0,0,0,0,344,0,0,0,0]
[345,0,0,0,0,345,0,0,0,0,345,0,0,0,0]
[346,0,0,0,0,346,0,0,0,0,346,0,0,0,0]
[347,0,0,0,0,347,0,0,0,0,347,0,0,0,0]
[348,0,0,0,0,348,0,0,0,0,348,0,0,0,0]
[349,0,0,0,0,349,0,0,0,0,349,0,0,0,0]
[350,0,0,0,0,350,0,0,0,0,350,0,0,0,0]
[351,0,0,0,0,351,0,0,0,0,351,0,0,0,0]
[352,0,0,0,0,352,0,0,0,0,352,0,0,0,0]
[353,0,0,0,0,353,0,0,0,0,353,0,0,0,0]
[354,0,0,0,0,354,0,0,0,0,354,0,0,0,0]
[355,0,0,0,0,355,0,0,0,0,355,0,0,0,0]
[356,0,0,0,0,356,0,0,0,0,356,0,0,0,0]
[357,0,0,0,0,357,0,0,0,0,357,0,0,0,0]
[358,0,0,0,0,358,0,0,0,0,358,0,0,0,0]
[359,0,0,0,0,359,0,0,0,0,359,0,0,0,0]
[360,0,0,0,0,360,0,0,0,0,360,0,0,0,0]

{"sheet":"Mixed-Use Summary","index":14,"n_rows":509,"n_cols":29,"rows_kept":509,"cut":false,"hidden":false,"merged":[[20,14,20,15],[2,13,2,15],[2,9,2,10],[2,1,2,2],[2,3,2,4],[2,5,2,6],[2,7,2,8],[20,7,20,8],[20,5,20,6],[20,3,20,4],[20,1,20,2],[20,9,20,10],[2,11,2,12],[20,11,20,12]]}
[]
["Mixed-Use Performance Indicator"]
[null,"Residential (Rental)",null,"Office",null,"Retail",null," Accommodation",null,"Industrial",null,"Commercial Parking",null,"RENTAL SUMMARY",null,null,null,null,"Residential (Owner)"]
[null,"Target","Actual","Target","Actual","Target","Actual","Target","Actual","Target","Actual",null,null,"Target","Actual","NPV",null,null,"Target","Actual","With Leveraging Tools"]
["Cash-on-Cash (After Year 3)",{"$f":"'Residential Rental'!L5","v":0.1},{"$f":"'Residential Rental'!M5","v":4.3053342295733731E-2},{"$f":"Office!L5","v":0.1},{"$f":"Office!M5","v":0},{"$f":"Retail!L5","v":0.1},{"$f":"Retail!M5","v":0.17048161991371172},{"$f":"Hotel!L5","v":0.1},{"$f":"Hotel!M5","v":0},{"$f":"Industrial!L5","v":0.1},{"$f":"Industrial!M5","v":0},{"$f":"'Commercial Parking'!L5","v":0.1},{"$f":"'Commercial Parking'!M5","v":0},{"$f":"(B5*'Development Costs'!$E$39)+(D5*('Development Costs'!$E$41+'Development Costs'!$E$43+'Development Costs'!$E$44))+(F5*'Development Costs'!$E$40)+(H5*'Development Costs'!$E$45)+(J5*'Development Costs'!$E$42)+(L5*'Development Costs'!$E$46)","v":0.1},{"$f":"IFERROR(E106,0)","v":6.9405040242114052E-2},null,"Project Rate of Return",null,{"$f":"'Residential Owner'!B3","v":0.25},{"$f":"'Residential Owner'!B25","v":0},{"$f":"'Residential Owner'!B43","v":0}]
["IRR on Project Cost (Unleveraged Return)",{"$f":"'Residential Rental'!L6","v":0.12},{"$f":"'Residential Rental'!M6","v":6.0112830341974899E-2},{"$f":"Office!L6","v":0.12},{"$f":"Office!M6","v":0},{"$f":"Retail!L6","v":0.12},{"$f":"Retail!M6","v":0.15407301844517329},{"$f":"Hotel!L6","v":0.12},{"$f":"Hotel!M6","v":0},{"$f":"Industrial!L6","v":0.12},{"$f":"Industrial!M6","v":0},{"$f":"'Commercial Parking'!L6","v":0.12},{"$f":"'Commercial Parking'!M6","v":0},{"$f":"(B6*'Development Costs'!$E$39)+(D6*('Development Costs'!$E$41+'Development Costs'!$E$43+'Development Costs'!$E$44))+(F6*'Development Costs'!$E$40)+(H6*'Development Costs'!$E$45)+(J6*'Development Costs'!$E$42)+(L6*'Development Costs'!$E$46)","v":0.12000000000000001},{"$f":"IFERROR(L121,0)","v":8.430347662537141E-2},{"$f":"IFERROR(L122,0)","v":-2212281.6762575936},"Return to Equity",null,{"$f":"'Residential Owner'!B4","v":0.75},{"$f":"'Residential Owner'!B29","v":0},{"$f":"'Residential Owner'!B48","v":0}]
["IRR on Investor Equity (Leveraged Return Before Tax)",{"$f":"'Residential Rental'!L7","v":0.25},{"$f":"'Residential Rental'!M7","v":6.0839290837189974E-2},{"$f":"Office!L7","v":0.25},{"$f":"Office!M7","v":0},{"$f":"Retail!L7","v":0.25},{"$f":"Retail!M7","v":0.24573494039427457},{"$f":"Hotel!L7","v":0.25},{"$f":"Hotel!M7","v":0},{"$f":"Industrial!L7","v":0.25},{"$f":"Industrial!M7","v":0},{"$f":"'Commercial Parking'!L7","v":0.25},{"$f":"'Commercial Parking'!M7","v":0},{"$f":"(B7*'Development Costs'!$E$39)+(D7*('Development Costs'!$E$41+'Development Costs'!$E$43+'Development Costs'!$E$44))+(F7*'Development Costs'!$E$40)+(H7*'Development Costs'!$E$45)+(J7*'Development Costs'!$E$42)+(L7*'Development Costs'!$E$46)","v":0.25},{"$f":"IFERROR(L129,0)","v":0.11314156617272819},{"$f":"IFERROR(L130,0)","v":-2103564.4093058673}]
["Debt Service Coverage Ratio (Year 3)",{"$f":"'Residential Rental'!L8","v":1.25},{"$f":"'Residential Rental'!M8","v":1.3989409148050689},{"$f":"Office!L8","v":1.25},{"$f":"Office!M8","v":0},{"$f":"Retail!L8","v":1.25},{"$f":"Retail!M8","v":2.5797169227571382},{"$f":"Hotel!L8","v":1.25},{"$f":"Hotel!M8","v":0},{"$f":"Industrial!L8","v":1.25},{"$f":"Industrial!M8","v":0},{"$f":"'Commercial Parking'!L8","v":1.25},{"$f":"'Commercial Parking'!M8","v":0},{"$f":"(B8*'Development Costs'!$E$39)+(D8*('Development Costs'!$E$41+'Development Costs'!$E$43+'Development Costs'!$E$44))+(F8*'Development Costs'!$E$40)+(H8*'Development Costs'!$E$45)+(J8*'Development Costs'!$E$42)+(L8*'Development Costs'!$E$46)","v":1.25},{"$f":"IFERROR(E100/E102,0)","v":1.6431210393859557}]
["IRR on Public Participation",{"$f":"'Residential Rental'!L9","v":0.05},{"$f":"'Residential Rental'!M9","v":0},{"$f":"Office!L9","v":0.05},{"$f":"Office!M9","v":0},{"$f":"Retail!L9","v":0.05},{"$f":"Retail!M9","v":0},{"$f":"Hotel!L9","v":0.05},{"$f":"Hotel!M9","v":0},{"$f":"Industrial!L9","v":0.05},{"$f":"Industrial!M9","v":0},{"$f":"'Commercial Parking'!L9","v":0.05},{"$f":"'Commercial Parking'!M9","v":0},{"$f":"(B9*'Development Costs'!$E$39)+(D9*('Development Costs'!$E$41+'Development Costs'!$E$43+'Development Costs'!$E$44))+(F9*'Development Costs'!$E$40)+(H9*'Development Costs'!$E$45)+(J9*'Development Costs'!$E$42)+(L9*'Development Costs'!$E$46)","v":0.05},{"$f":"IFERROR(L139,0)","v":0},{"$f":"IFERROR(L140,0)","v":0}]
[]
[]
[]
["Public Leveraging Tools","Res. (Rental)","Office","Retail"," Accommodation","Industrial","Commercial Parking","Rental Summary","Res. (Owner)"]
["Tax Credits net to project",{"$f":"'Residential Rental'!F4","v":0},{"$f":"Office!F4","v":0},{"$f":"Retail!F4","v":0},{"$f":"Hotel!F4","v":0},{"$f":"Industrial!F4","v":0},{"$f":"'Commercial Parking'!F4","v":0},{"$f":"SUM(B14:G14)","v":0},{"$f":"'Residential Owner'!C7","v":0}]
["Fee Reductions",{"$f":"'Residential Rental'!F5","v":0},{"$f":"Office!F5","v":0},{"$f":"Retail!F5","v":0},{"$f":"Hotel!F5","v":0},{"$f":"Industrial!F5","v":0},{"$f":"'Commercial Parking'!F5","v":0},{"$f":"SUM(B15:G15)","v":0},{"$f":"'Residential Owner'!C8","v":0}]
["Grants",{"$f":"'Residential Rental'!F6","v":0},{"$f":"Office!F6","v":0},{"$f":"Retail!F6","v":0},{"$f":"Hotel!F6","v":0},{"$f":"Industrial!F6","v":0},{"$f":"'Commercial Parking'!F6","v":0},{"$f":"SUM(B16:G16)","v":0},{"$f":"'Residential Owner'!C9","v":0},"TOTAL"]
["Total Development Offsets (Contributions to Equity)",{"$f":"'Residential Rental'!F7","v":0},{"$f":"Office!F7","v":0},{"$f":"Retail!F7","v":0},{"$f":"Hotel!F7","v":0},{"$f":"Industrial!F7","v":0},{"$f":"'Commercial Parking'!F7","v":0},{"$f":"SUM(H14:H16)","v":0},{"$f":"SUM(I14:I16)","v":0},{"$f":"SUM(H17:I17)","v":0}]
["Net Development Costs",{"$f":"'Residential Rental'!F8","v":9224579.4481804911},{"$f":"Office!F8","v":0},{"$f":"Retail!F8","v":2404942.1942316336},{"$f":"Hotel!F8","v":0},{"$f":"Industrial!F8","v":0},{"$f":"'Commercial Parking'!F8","v":0},{"$f":"SUM(B18:G18)","v":11629521.642412124},{"$f":"'Residential Owner'!B40","v":0},{"$f":"SUM(H18:I18)","v":11629521.642412124}]
[]
[]
[null,"Residential (Rental)",null,"Office",null,"Retail",null,"Accommodation",null,"Industrial",null,"Commercial Parking",null,"Rental Summary","Residential (Owner)"]
["Total Development Costs",null,{"$f":"'Residential Rental'!C56","v":9224579.4481804911},null,{"$f":"Office!D56","v":0},null,{"$f":"Retail!D57","v":2404942.1942316336},null,{"$f":"Hotel!C58","v":0},null,{"$f":"Industrial!C56","v":0},null,{"$f":"'Commercial Parking'!D57","v":0},{"$f":"SUM(C22,E22,G22,I22,K22,M22)","v":11629521.642412124},"Total Development Costs",{"$f":"'Residential Owner'!B14","v":0}]
["Development Costs ( Per Unit or Per Sq.Ft)",null,{"$f":"'Residential Rental'!C57","v":214693.89070432412},null,{"$f":"Office!D57","v":0},null,{"$f":"Retail!D58","v":243.36040348792031},null,{"$f":"Hotel!C59","v":0},null,{"$f":"Industrial!C57","v":0},null,{"$f":"'Commercial Parking'!D58","v":0}]
["Net Operating Income Analysis ",null,null,null,null,null,null,null,null,null,null,null,null,null,"Project Baseline"]
["Project Feature","Project","Total","Project","Total","Project","Total","Project","Total","Project","Total","Project","Total","Project",null,"Project"]
["Number of units",{"$f":"'Residential Rental'!C18","v":42.966194417169319},null,null,null,null,null,{"$f":"Hotel!C19","v":0},null,null,null,null,null,{"$f":"SUM(B26,H26)","v":42.966194417169319},"     Residential Units",{"$f":"'Residential Owner'!B17","v":0}]
["Total project size, square feet",{"$f":"'Residential Rental'!C19","v":39528.898863795774},null,{"$f":"Office!D19","v":0},null,{"$f":"Retail!D19","v":9882.2247159489434},null,{"$f":"Hotel!C20","v":0},null,{"$f":"Industrial!C19","v":0},null,{"$f":"'Commercial Parking'!D19","v":0},null,{"$f":"SUM(B27,D27,F27,H27,J27,L27)","v":49411.123579744715},"     Average Unit Market Price",{"$f":"'Residential Owner'!B18","v":230000}]
["Total Rent (annual or $/sq.ft. per year)",{"$f":"'Residential Rental'!E60","v":61226.827044466278},null,{"$f":"Office!E19","v":0},null,{"$f":"Retail!E19","v":25},null,{"$f":"Hotel!D19","v":50},null,{"$f":"Industrial!D59","v":15},null,{"$f":"'Commercial Parking'!E19","v":16.003846153846155}]
["Projected Sales per Square Foot",null,null,null,null,{"$f":"Retail!E20","v":350},null,null,null,null,null,{"$f":"'Commercial Parking'!E20","v":0},null,{"$f":"IF(F27>0,F29,0)","v":350}]
["Rental Income from Sales Assessment",null,null,null,null,null,{"$f":"Retail!E62","v":138351.1460232852},null,null,null,null,null,{"$f":"'Commercial Parking'!E62","v":0},{"$f":"G30","v":138351.1460232852}]
["Gross Potential Rent  (GPI)",null,{"$f":"'Residential Rental'!E61","v":734721.92453359533},null,{"$f":"Office!E60","v":0},null,{"$f":"Retail!E63","v":385406.7639220088},null,{"$f":"Hotel!E63","v":0},null,{"$f":"Industrial!D60","v":0},null,{"$f":"'Commercial Parking'!E63","v":0},{"$f":"SUM(C31,E31,G31,I31,K31,M31)","v":1120128.688455604}]
["Other Income (vending, fines)",{"$f":"'Residential Rental'!C20","v":0.1},{"$f":"'Residential Rental'!E62","v":73472.19245335953},{"$f":"Office!D20","v":0.1},{"$f":"Office!E61","v":0},{"$f":"Retail!D21","v":0.02},{"$f":"Retail!E64","v":7708.1352784401761},{"$f":"Hotel!C21","v":0.1},{"$f":"Hotel!E64","v":0},{"$f":"Industrial!C61","v":0.1},{"$f":"Industrial!D61","v":0},{"$f":"'Commercial Parking'!D21","v":0},{"$f":"'Commercial Parking'!E64","v":0},81180.327731799713]
["Total Income",null,{"$f":"'Residential Rental'!E63","v":808194.11698695482},null,{"$f":"Office!E62","v":0},null,{"$f":"Retail!E65","v":393114.899200449},null,{"$f":"Hotel!E65","v":0},null,{"$f":"Industrial!D62","v":0},null,{"$f":"'Commercial Parking'!E65","v":0},1201309.0161874038]
["Less: Vacancy",{"$f":"'Residential Rental'!C21","v":5.0000000000000044E-2},{"$f":"'Residential Rental'!E64","v":40409.705849347774},{"$f":"Office!D21","v":5.0000000000000044E-2},{"$f":"Office!E63","v":0},{"$f":"Retail!D22","v":5.0000000000000044E-2},{"$f":"Retail!E66","v":19655.744960022468},{"$f":"Hotel!C22","v":0.25},{"$f":"Hotel!E66","v":0},{"$f":"Industrial!C63","v":5.0000000000000044E-2},{"$f":"Industrial!D63","v":0},{"$f":"'Commercial Parking'!D22","v":0.30000000000000004},{"$f":"'Commercial Parking'!E66","v":0},60065.450809370246]
["Less: Concessions, Bad Debt",{"$f":"'Residential Rental'!C22","v":0.02},{"$f":"'Residential Rental'!E65","v":16163.882339739097},{"$f":"Office!D22","v":0.02},{"$f":"Office!E64","v":0},{"$f":"Retail!D23","v":0.02},{"$f":"Retail!E67","v":7862.2979840089802},{"$f":"Hotel!C23","v":0.02},{"$f":"Hotel!E67","v":0},{"$f":"Industrial!C64","v":0.02},{"$f":"Industrial!D64","v":0},{"$f":"'Commercial Parking'!D23","v":0},{"$f":"'Commercial Parking'!E67","v":0},24026.180323748078]
["Effective Gross Income  (EGI)",null,{"$f":"'Residential Rental'!E66","v":751620.52879786794},null,{"$f":"Office!E65","v":0},null,{"$f":"Retail!E68","v":365596.85625641758},null,{"$f":"Hotel!E68","v":0},null,{"$f":"Industrial!D65","v":0},null,{"$f":"'Commercial Parking'!E68","v":0},1117217.3850542856]
["Less: Operating Costs ($/unit: $/sq.ft: %ofGPI)",{"$f":"'Residential Rental'!C23","v":2052},{"$f":"'Residential Rental'!E67","v":88166.630944031436},{"$f":"Office!D23","v":0},{"$f":"Office!E66","v":0},{"$f":"Retail!D24","v":7.8000000000000007},{"$f":"Retail!E69","v":77081.352784401766},{"$f":"Hotel!C24","v":0.3},{"$f":"Hotel!E69","v":0},{"$f":"Industrial!C66","v":0},{"$f":"Industrial!D66","v":0},{"$f":"'Commercial Parking'!D24","v":3.0769230769230771},{"$f":"'Commercial Parking'!E69","v":0},165247.9837284332]
["Net Operating Income",null,{"$f":"'Residential Rental'!E68","v":663453.89785383653},null,{"$f":"Office!E67","v":0},null,{"$f":"Retail!E70","v":288515.50347201584},null,{"$f":"Hotel!E70","v":0},null,{"$f":"Industrial!D67","v":0},null,{"$f":"'Commercial Parking'!E70","v":0},951969.40132585238]
[]
[]
["Initial Project Value Analysis","Res. (Rental)","Office","Retail"," Accommodation","Industrial","Commercial Parking","Rental Summary"]
["CAP RATE (Yield to Costs)",{"$f":"'Residential Rental'!C71","v":7.1922400536611988E-2},{"$f":"Office!D70","v":0},{"$f":"Retail!D73","v":0.11996774981287857},{"$f":"Hotel!D73","v":0},{"$f":"Industrial!C70","v":0},{"$f":"'Commercial Parking'!D73","v":0},{"$f":"N38/H18","v":8.1858001609806608E-2}]
["Debt Service",{"$f":"'Residential Rental'!C72","v":398203.30457783281},{"$f":"Office!D71","v":0},{"$f":"Retail!D74","v":103815.67359697835},{"$f":"Hotel!D74","v":0},{"$f":"Industrial!C71","v":0},{"$f":"'Commercial Parking'!D74","v":0},{"$f":"SUM(B43:G43)","v":502018.97817481117}]
["Cash Flow",{"$f":"'Residential Rental'!C73","v":265250.59327600372},{"$f":"Office!D72","v":0},{"$f":"Retail!D75","v":184699.82987503748},{"$f":"Hotel!D75","v":0},{"$f":"Industrial!C72","v":0},{"$f":"'Commercial Parking'!D75","v":0},{"$f":"SUM(B44:G44)","v":449950.42315104121}]
["Return on Equity (Year 1)",{"$f":"'Residential Rental'!C74","v":7.1886906814034549E-2},{"$f":"Office!D73","v":0},{"$f":"Retail!D76","v":0.19200028000470098},{"$f":"Hotel!D76","v":0},{"$f":"Industrial!C73","v":0},{"$f":"'Commercial Parking'!D76","v":0},{"$f":"H44/H75","v":9.6725909497021062E-2}]
["Property Value (Year 1)"]
["NOI",{"$f":"'Residential Rental'!C76","v":663453.89785383653},{"$f":"Office!D75","v":0},{"$f":"Retail!D78","v":288515.50347201584},{"$f":"Hotel!D78","v":0},{"$f":"Industrial!C75","v":0},{"$f":"'Commercial Parking'!D78","v":0},{"$f":"SUM(B47:G47)","v":951969.40132585238}]
["Going in Cap Rate",{"$f":"'Residential Rental'!C77","v":0.06},{"$f":"Office!D76","v":7.2999999999999995E-2},{"$f":"Retail!D79","v":0.06},{"$f":"Hotel!D79","v":0.06},{"$f":"Industrial!C76","v":7.2999999999999995E-2},{"$f":"'Commercial Parking'!D79","v":0},{"$f":"IFERROR(SUMPRODUCT(B18:G18,B48:G48)/H18,0)","v":6.0000000000000005E-2}]
["Project Market Value",{"$f":"'Residential Rental'!C78","v":11057564.96423061},{"$f":"Office!D77","v":0},{"$f":"Retail!D80","v":4808591.7245335979},{"$f":"Hotel!D80","v":0},{"$f":"Industrial!C77","v":0},{"$f":"'Commercial Parking'!D80","v":0},{"$f":"SUM(B49:G49)","v":15866156.688764207}]
["Net Project Value",{"$f":"'Residential Rental'!C79","v":1832985.516050119},{"$f":"Office!D78","v":0},{"$f":"Retail!D81","v":2403649.5303019644},{"$f":"Hotel!D81","v":0},{"$f":"Industrial!C78","v":0},{"$f":"'Commercial Parking'!D81","v":0},{"$f":"SUM(B50:G50)","v":4236635.0463520829}]
[]
[]
["Debt Financing","Res. (Rental)","Office","Retail"," Accommodation","Industrial","Commercial Parking","Rental Summary"]
["Primary Debt"]
["Total Value",{"$f":"'Residential Rental'!E83","v":9224579.4481804911},{"$f":"Office!E83","v":0},{"$f":"Retail!E85","v":2404942.1942316336},{"$f":"Hotel!E85","v":0},{"$f":"Industrial!E82","v":0},{"$f":"'Commercial Parking'!E85","v":0},{"$f":"IF(H49>N22,N22,H49)","v":11629521.642412124}]
["LTV Ratio",{"$f":"'Advanced Financial'!C87","v":0.6},{"$f":"'Advanced Financial'!F87","v":0.6},{"$f":"'Advanced Financial'!E87","v":0.6},{"$f":"'Advanced Financial'!D87","v":0.6},{"$f":"'Advanced Financial'!G87","v":0.6},{"$f":"'Advanced Financial'!E87","v":0.6},{"$f":"IFERROR(SUMPRODUCT(B18:G18,B56:G56)/H18,0)","v":0.6}]
["Maximum LTV",{"$f":"'Residential Rental'!E84","v":5534747.6689082943},{"$f":"Office!E84","v":0},{"$f":"Retail!E86","v":1442965.31653898},{"$f":"Hotel!E86","v":0},{"$f":"Industrial!E83","v":0},{"$f":"'Commercial Parking'!E86","v":0},{"$f":"SUM(B57:G57)","v":6977712.9854472745}]
["Imputed Loan Amount",{"$f":"'Residential Rental'!E85","v":5534747.6689082943},{"$f":"Office!E85","v":0},{"$f":"Retail!E87","v":1442965.31653898},{"$f":"Hotel!E87","v":0},{"$f":"Industrial!E84","v":0},{"$f":"'Commercial Parking'!E87","v":0},{"$f":"SUM(B58:G58)","v":6977712.9854472745}]
["Rate",{"$f":"'Residential Rental'!E86","v":0.06},{"$f":"Office!E86","v":0.04},{"$f":"Retail!E88","v":0.06},{"$f":"Hotel!E88","v":0.06},{"$f":"'Advanced Financial'!G88","v":0.06},{"$f":"'Commercial Parking'!E88","v":0.06},{"$f":"IFERROR(SUMPRODUCT(B18:G18,B59:G59)/H18,0)","v":6.0000000000000005E-2}]
["Amortization Period, Years",{"$f":"'Residential Rental'!E87","v":30},{"$f":"Office!E87","v":30},{"$f":"Retail!E89","v":30},{"$f":"Hotel!E89","v":30},{"$f":"'Advanced Financial'!G89","v":30},{"$f":"'Commercial Parking'!E89","v":30},{"$f":"IFERROR(SUMPRODUCT(B18:G18,B60:G60)/H18,0)","v":30}]
["Annual Debt Service (Amortized)",{"$f":"'Residential Rental'!E88","v":-398203.30457783281},{"$f":"Office!E88","v":0},{"$f":"Retail!E90","v":-103815.67359697835},{"$f":"Hotel!E90","v":0},{"$f":"Industrial!E87","v":0},{"$f":"'Commercial Parking'!E90","v":0},{"$f":"PMT(H59/12,H60*12,H58)*12","v":-502018.97817481111}]
["Public Leveraging Loan"]
["LTV Ratio",{"$f":"IF(B82=1,'Gap Financing Options'!C63,0)","v":0},{"$f":"IF(C82=1,'Gap Financing Options'!D63,0)","v":0},{"$f":"IF(D82=1,'Gap Financing Options'!E63,0)","v":0},{"$f":"IF(E82=1,'Gap Financing Options'!F63,0)","v":0},{"$f":"IF(F82=1,'Gap Financing Options'!G63,0)","v":0},{"$f":"IF(D82=1,'Gap Financing Options'!E63,0)","v":0},{"$f":"IFERROR(SUMPRODUCT(B18:G18,B63:G63)/H18,0)","v":0}]
["Maximum LTV",{"$f":"'Residential Rental'!E90","v":0},{"$f":"Office!E90","v":0},{"$f":"Retail!E92","v":0},{"$f":"Hotel!E92","v":0},{"$f":"Industrial!E89","v":0},{"$f":"'Commercial Parking'!E92","v":0},{"$f":"SUM(B64:G64)","v":0}]
["Imputed Loan Amount",{"$f":"'Residential Rental'!E91","v":0},{"$f":"Office!E91","v":0},{"$f":"Retail!E93","v":0},{"$f":"Hotel!E93","v":0},{"$f":"Industrial!E90","v":0},{"$f":"'Commercial Parking'!E93","v":0},{"$f":"SUM(B65:G65)","v":0}]
["Rate",{"$f":"'Residential Rental'!E92","v":0},{"$f":"Office!E92","v":0},{"$f":"Retail!E94","v":0},{"$f":"Hotel!E94","v":0},{"$f":"Industrial!E91","v":0},{"$f":"'Commercial Parking'!E94","v":0},{"$f":"IFERROR(SUMPRODUCT(B18:G18,B66:G66)/H18,0)","v":0}]
["Amortization Period, Years",{"$f":"'Residential Rental'!E93","v":0},{"$f":"Office!E93","v":0},{"$f":"Retail!E95","v":0},{"$f":"Hotel!E95","v":0},{"$f":"Industrial!E92","v":0},{"$f":"'Commercial Parking'!E95","v":0},{"$f":"IFERROR(SUMPRODUCT(B18:G18,B67:G67)/H18,0)","v":0}]
["Annual Debt Service (Amortized)",{"$f":"'Residential Rental'!E94","v":0},{"$f":"Office!E94","v":0},{"$f":"Retail!E96","v":0},{"$f":"Hotel!E96","v":0},{"$f":"Industrial!E93","v":0},{"$f":"'Commercial Parking'!E96","v":0},{"$f":"IFERROR((PMT(H66/12,H67*12,H65)*12),0)","v":0}]
["Total Debt",{"$f":"'Residential Rental'!E96","v":5534747.6689082943},{"$f":"Office!E96","v":0},{"$f":"Retail!E98","v":1442965.31653898},{"$f":"Hotel!E98","v":0},{"$f":"Industrial!E95","v":0},{"$f":"'Commercial Parking'!E98","v":0},{"$f":"SUM(B69:G69)","v":6977712.9854472745}]
["Total Debt Service",{"$f":"'Residential Rental'!E97","v":-398203.30457783281},{"$f":"Office!E97","v":0},{"$f":"Retail!E99","v":-103815.67359697835},{"$f":"Hotel!E99","v":0},{"$f":"Industrial!E96","v":0},{"$f":"'Commercial Parking'!E99","v":0},{"$f":"SUM(B70:G70)","v":-502018.97817481117}]
["Summary"]
["Total Development Costs",{"$f":"'Residential Rental'!E99","v":9224579.4481804911},{"$f":"Office!E99","v":0},{"$f":"Retail!E101","v":2404942.1942316336},{"$f":"Hotel!E101","v":0},{"$f":"Industrial!E98","v":0},{"$f":"'Commercial Parking'!E101","v":0},{"$f":"SUM(B72:G72)","v":11629521.642412124}]
["Equity Required",{"$f":"'Residential Rental'!E100","v":3689831.7792721968},{"$f":"Office!E100","v":0},{"$f":"Retail!E102","v":961976.87769265356},{"$f":"Hotel!E102","v":0},{"$f":"Industrial!E99","v":0},{"$f":"'Commercial Parking'!E102","v":0},4651808.6569648506]
["Total Development Offsets (Contributions to Equity)",{"$f":"'Residential Rental'!E101","v":0},{"$f":"Office!E101","v":0},{"$f":"Retail!E103","v":0},{"$f":"Hotel!E103","v":0},{"$f":"Industrial!E100","v":0},{"$f":"'Commercial Parking'!E103","v":0},0]
["Net Equity Required",{"$f":"'Residential Rental'!E102","v":3689831.7792721968},{"$f":"Office!E102","v":0},{"$f":"Retail!E104","v":961976.87769265356},{"$f":"Hotel!E104","v":0},{"$f":"Industrial!E101","v":0},{"$f":"'Commercial Parking'!E104","v":0},4651808.6569648506]
["Total Project Cost",{"$f":"'Residential Rental'!E103","v":9224579.4481804911},{"$f":"Office!E103","v":0},{"$f":"Retail!E105","v":2404942.1942316336},{"$f":"Hotel!E105","v":0},{"$f":"Industrial!E102","v":0},{"$f":"'Commercial Parking'!E105","v":0},11629521.642412124]
["Total Project Cost After Development Offsets",{"$f":"'Residential Rental'!E104","v":9224579.4481804911},{"$f":"Office!E104","v":0},{"$f":"Retail!E106","v":2404942.1942316336},{"$f":"Hotel!E106","v":0},{"$f":"Industrial!E103","v":0},{"$f":"'Commercial Parking'!E106","v":0},11629521.642412124]
["Public Participation"]
["Capital Investment",{"$f":"'Residential Rental'!E106","v":0},{"$f":"Office!E106","v":0},{"$f":"Retail!E108","v":0},{"$f":"Hotel!E108","v":0},{"$f":"Industrial!E105","v":0},{"$f":"'Commercial Parking'!E108","v":0},{"$f":"SUM(B79:G79)","v":0}]
["Annual Cash Throw Off",{"$f":"'Residential Rental'!E107","v":0},{"$f":"Office!E107","v":0},{"$f":"Retail!E109","v":0},{"$f":"Hotel!E109","v":0},{"$f":"Industrial!E106","v":0},{"$f":"'Commercial Parking'!E109","v":0},{"$f":"SUM(B80:G80)","v":0}]
["Share of Net Sales Price",{"$f":"'Residential Rental'!E108","v":0},{"$f":"Office!E108","v":0},{"$f":"Retail!E110","v":0},{"$f":"Hotel!E110","v":0},{"$f":"Industrial!E107","v":0},{"$f":"'Commercial Parking'!E110","v":0},{"$f":"IFERROR(SUMPRODUCT(B18:G18,B81:G81)/H18,0)","v":0}]
["Public Leveraging Loan Included in Analysis? ",{"$f":"'Residential Rental'!E109","v":0},{"$f":"Office!E109","v":0},{"$f":"Retail!E111","v":0},{"$f":"Hotel!E111","v":0},{"$f":"Industrial!E108","v":0},{"$f":"'Commercial Parking'!E111","v":0},{"$f":"IFERROR(SUMPRODUCT(B18:G18,B82:G82)/H18,0)","v":0}]
["Target IRR",{"$f":"'Residential Rental'!E110","v":0.05},{"$f":"Office!E110","v":0.05},{"$f":"Retail!E112","v":0.05},{"$f":"Hotel!E112","v":0.05},{"$f":"Industrial!E109","v":0.05},{"$f":"'Commercial Parking'!E112","v":0.05},{"$f":"IFERROR(SUMPRODUCT(B18:G18,B83:G83)/H18,0)","v":5.000000000000001E-2}]
[]
[]
["Operating Statement Summary","Escalation","Year 1","Year 2","Year 3","Year 4","Year 5","Year 6","Year 7","Year 8","Year 9","Year 10"]
["GPI",{"$f":"IFERROR(SUMPRODUCT('Advanced Financial'!C81:H81,B18:G18)/H18,0)","v":3.0000000000000002E-2},{"$f":"N31","v":1120128.688455604},{"$f":"C87*(1+$B$87)","v":1153732.5491092722},{"$f":"D87*(1+$B$87)","v":1188344.5255825503},{"$f":"E87*(1+$B$87)","v":1223994.8613500269},1260714.7071905278,1298536.1484062437,1337492.2328584311,1377616.9998441839,1418945.5098395094,1461513.8751346946]
["Other Income",null,{"$f":"N32","v":81180.327731799713},{"$f":"C88*(1+$B$87)","v":83615.737563753704},{"$f":"D88*(1+$B$87)","v":86124.209690666321},88707.935981386312,91369.174060827907,94110.249282652745,96933.556761132335,99841.563463966304,102836.81036788529,105921.91467892185]
["Total Income",null,{"$f":"C87+C88","v":1201309.0161874038},{"$f":"D87+D88","v":1237348.2866730259},1274468.7352732166,1312702.7973314133,1352083.8812513556,1392646.3976888964,1434425.7896195634,1477458.5633081503,1521782.3202073947,1567435.7898136165]
["Less: Vacancy",{"$f":"N34/$N$33","v":5.0000000000000044E-2},{"$f":"$B$90*C89","v":60065.450809370246},{"$f":"$B$90*D89","v":61867.414333651352},63723.436763660888,65635.139866570724,67604.19406256784,69632.319884444878,71721.28948097823,73872.928165407575,76089.116010369806,78371.789490680894]
["Less: Concessions, Market Loss",{"$f":"N35/$N$33","v":0.02},{"$f":"$B$91*C89","v":24026.180323748078},{"$f":"$B$91*D89","v":24746.965733460518},25489.374705464332,26254.055946628265,27041.677625027114,27852.927953777929,28688.515792391267,29549.171266163004,30435.646404147894,31348.715796272332]
["EGI",null,{"$f":"C89-C90-C91","v":1117217.3850542854},{"$f":"D89-D90-D91","v":1150733.906605914},1185255.9238040913,1220813.6015182142,1257438.0095637608,1295161.1498506737,1334015.984346194,1374036.4638765797,1415257.5577928771,1457715.2845266634]
["Less: Operating Costs",{"$f":"IFERROR(SUMPRODUCT('Advanced Financial'!C82:H82,B18:G18)/H18,0)","v":3.0000000000000002E-2},{"$f":"N37","v":165247.9837284332},{"$f":"C93*(1+$B$93)","v":170205.42324028621},{"$f":"D93*(1+$B$93)","v":175311.58593749479},180570.93351561963,185988.06152108824,191567.7033667209,197314.73446772253,203234.17650175421,209331.20179680682,215611.13785071103]
["Less: Property Taxes",null,{"$f":"SUM('Residential Rental'!E121,Office!E121,Retail!E124,Hotel!E124,Industrial!E121,'Commercial Parking'!E124)","v":174442.82463618187},{"$f":"SUM('Residential Rental'!F121,Office!F121,Retail!F124,Hotel!F124,Industrial!F121,'Commercial Parking'!F124)","v":179676.10937526732},{"$f":"SUM('Residential Rental'!G121,Office!G121,Retail!G124,Hotel!G124,Industrial!G121,'Commercial Parking'!G124)","v":185066.39265652531},{"$f":"SUM('Residential Rental'!H121,Office!H121,Retail!H124,Hotel!H124,Industrial!H121,'Commercial Parking'!H124)","v":190618.38443622109},{"$f":"SUM('Residential Rental'!I121,Office!I121,Retail!I124,Hotel!I124,Industrial!I121,'Commercial Parking'!I124)","v":196336.9359693077},{"$f":"SUM('Residential Rental'!J121,Office!J121,Retail!J124,Hotel!J124,Industrial!J121,'Commercial Parking'!J124)","v":202227.04404838695},{"$f":"SUM('Residential Rental'!K121,Office!K121,Retail!K124,Hotel!K124,Industrial!K121,'Commercial Parking'!K124)","v":208293.85536983854},{"$f":"SUM('Residential Rental'!L121,Office!L121,Retail!L124,Hotel!L124,Industrial!L121,'Commercial Parking'!L124)","v":214542.67103093374},{"$f":"SUM('Residential Rental'!M121,Office!M121,Retail!M124,Hotel!M124,Industrial!M121,'Commercial Parking'!M124)","v":220978.95116186171},{"$f":"SUM('Residential Rental'!N121,Office!N121,Retail!N124,Hotel!N124,Industrial!N121,'Commercial Parking'!N124)","v":227608.31969671758}]
["Plus: Property Tax Abatement",null,{"$f":"SUM('Residential Rental'!E122,Office!E122,Retail!E125,Hotel!E125,Industrial!E122,'Commercial Parking'!E125)","v":0},{"$f":"SUM('Residential Rental'!F122,Office!F122,Retail!F125,Hotel!F125,Industrial!F122,'Commercial Parking'!F125)","v":0},{"$f":"SUM('Residential Rental'!G122,Office!G122,Retail!G125,Hotel!G125,Industrial!G122,'Commercial Parking'!G125)","v":0},{"$f":"SUM('Residential Rental'!H122,Office!H122,Retail!H125,Hotel!H125,Industrial!H122,'Commercial Parking'!H125)","v":0},{"$f":"SUM('Residential Rental'!I122,Office!I122,Retail!I125,Hotel!I125,Industrial!I122,'Commercial Parking'!I125)","v":0},{"$f":"SUM('Residential Rental'!J122,Office!J122,Retail!J125,Hotel!J125,Industrial!J122,'Commercial Parking'!J125)","v":0},{"$f":"SUM('Residential Rental'!K122,Office!K122,Retail!K125,Hotel!K125,Industrial!K122,'Commercial Parking'!K125)","v":0},{"$f":"SUM('Residential Rental'!L122,Office!L122,Retail!L125,Hotel!L125,Industrial!L122,'Commercial Parking'!L125)","v":0},{"$f":"SUM('Residential Rental'!M122,Office!M122,Retail!M125,Hotel!M125,Industrial!M122,'Commercial Parking'!M125)","v":0},{"$f":"SUM('Residential Rental'!N122,Office!N122,Retail!N125,Hotel!N125,Industrial!N122,'Commercial Parking'!N125)","v":0}]
["Plus Sales Tax Abatement",null,{"$f":"SUM(Office!E123,Retail!E126,Hotel!E126,Industrial!E123,'Commercial Parking'!E126)","v":0},{"$f":"SUM(Office!F123,Retail!F126,Hotel!F126,Industrial!F123,'Commercial Parking'!F126)","v":0},{"$f":"SUM(Office!G123,Retail!G126,Hotel!G126,Industrial!G123,'Commercial Parking'!G126)","v":0},{"$f":"SUM(Office!H123,Retail!H126,Hotel!H126,Industrial!H123,'Commercial Parking'!H126)","v":0},{"$f":"SUM(Office!I123,Retail!I126,Hotel!I126,Industrial!I123,'Commercial Parking'!I126)","v":0},{"$f":"SUM(Office!J123,Retail!J126,Hotel!J126,Industrial!J123,'Commercial Parking'!J126)","v":0},{"$f":"SUM(Office!K123,Retail!K126,Hotel!K126,Industrial!K123,'Commercial Parking'!K126)","v":0},{"$f":"SUM(Office!L123,Retail!L126,Hotel!L126,Industrial!L123,'Commercial Parking'!L126)","v":0},{"$f":"SUM(Office!M123,Retail!M126,Hotel!M126,Industrial!M123,'Commercial Parking'!M126)","v":0},{"$f":"SUM(Office!N123,Retail!N126,Hotel!N126,Industrial!N123,'Commercial Parking'!N126)","v":0}]
["Plus TIF + IRA Retainage of Taxes",null,{"$f":"SUM('Residential Rental'!E124,Office!E124,Hotel!E127,Industrial!E124)","v":0},{"$f":"SUM('Residential Rental'!F124,Office!F124,Hotel!F127,Industrial!F124)","v":0},{"$f":"SUM('Residential Rental'!G124,Office!G124,Hotel!G127,Industrial!G124)","v":0},{"$f":"SUM('Residential Rental'!H124,Office!H124,Hotel!H127,Industrial!H124)","v":0},{"$f":"SUM('Residential Rental'!I124,Office!I124,Hotel!I127,Industrial!I124)","v":0},{"$f":"SUM('Residential Rental'!J124,Office!J124,Hotel!J127,Industrial!J124)","v":0},{"$f":"SUM('Residential Rental'!K124,Office!K124,Hotel!K127,Industrial!K124)","v":0},{"$f":"SUM('Residential Rental'!L124,Office!L124,Hotel!L127,Industrial!L124)","v":0},{"$f":"SUM('Residential Rental'!M124,Office!M124,Hotel!M127,Industrial!M124)","v":0},{"$f":"SUM('Residential Rental'!N124,Office!N124,Hotel!N127,Industrial!N124)","v":0}]
["Cash Throw Off to Public Partner",null,{"$f":"SUM('Residential Rental'!E123,Office!E125,Retail!E128,Hotel!E128,'Commercial Parking'!E128)","v":0},{"$f":"SUM('Residential Rental'!F123,Office!F125,Retail!F128,Hotel!F128,'Commercial Parking'!F128)","v":0},{"$f":"SUM('Residential Rental'!G123,Office!G125,Retail!G128,Hotel!G128,'Commercial Parking'!G128)","v":0},{"$f":"SUM('Residential Rental'!H123,Office!H125,Retail!H128,Hotel!H128,'Commercial Parking'!H128)","v":0},{"$f":"SUM('Residential Rental'!I123,Office!I125,Retail!I128,Hotel!I128,'Commercial Parking'!I128)","v":0},{"$f":"SUM('Residential Rental'!J123,Office!J125,Retail!J128,Hotel!J128,'Commercial Parking'!J128)","v":0},{"$f":"SUM('Residential Rental'!K123,Office!K125,Retail!K128,Hotel!K128,'Commercial Parking'!K128)","v":0},{"$f":"SUM('Residential Rental'!L123,Office!L125,Retail!L128,Hotel!L128,'Commercial Parking'!L128)","v":0},{"$f":"SUM('Residential Rental'!M123,Office!M125,Retail!M128,Hotel!M128,'Commercial Parking'!M128)","v":0},{"$f":"SUM('Residential Rental'!N123,Office!N125,Retail!N128,Hotel!N128)","v":0}]
["Plus: Retainage of Property & Sales Taxes",null,{"$f":"Retail!E127","v":0},{"$f":"Retail!F127","v":0},{"$f":"Retail!G127","v":0},{"$f":"Retail!H127","v":0},{"$f":"Retail!I127","v":0},{"$f":"Retail!J127","v":0},{"$f":"Retail!K127","v":0},{"$f":"Retail!L127","v":0},{"$f":"Retail!M127","v":0},{"$f":"Retail!N127","v":0}]
["NOI",null,{"$f":"C92-C94-C93+C95+C96+C97+C98+C99","v":777526.57668967033},{"$f":"D92-D94-D93+D95+D96+D97+D98+D99","v":800852.37399036053},824877.94521007116,849624.28356637352,875113.01207336481,901366.40243556595,928407.39450863283,956259.61634389171,984947.40483420854,1014495.8269792347]
[]
["Less: Debt Service",null,{"$f":"-$H$70","v":502018.97817481117},{"$f":"-$H$70","v":502018.97817481117},502018.97817481117,502018.97817481117,502018.97817481117,502018.97817481117,502018.97817481117,502018.97817481117,502018.97817481117,502018.97817481117]
["Net Cash Flow",null,{"$f":"C100-C102","v":275507.59851485916},{"$f":"D100-D102","v":298833.39581554936},322858.96703525999,347605.30539156235,373094.03389855364,399347.42426075478,426388.41633382166,454240.63816908054,482928.42665939737,512476.84880442353]
[]
["Cap Rate",null,{"$f":"C100/$H$72","v":6.685800160980658E-2},6.8863741658100788E-2,7.0929653907843795E-2,7.3057543525079136E-2,7.5249269830831508E-2,7.7506747925756472E-2,7.9831950363529164E-2,8.2226908874435026E-2,8.4693716140668091E-2,8.723452762488812E-2]
["Cash on Cash Return (Equity Dividend Rate)",null,{"$f":"IFERROR(C103/$H$75,0)","v":5.9225909497021022E-2},{"$f":"D103/$H$75","v":6.4240259617756534E-2},6.9405040242114052E-2,7.4724764285202389E-2,8.0204080049583334E-2,8.5847775286895744E-2,9.1660781381327452E-2,9.7648177658592114E-2,0.10381519582417477,0.11016722453472484]
[]
[]
["Project Value","Year 0","Year 1","Year 2","Year 3","Year 4","Year 5","Year 6","Year 7","Year 8","Year 9","Year 10"]
["Terminal Cap Rate, Gross Sales Price",null,{"$f":"IFERROR(SUMPRODUCT('Advanced Financial'!C83:H83,B18:G18)/H18,0)","v":7.2999999999999995E-2},null,null,null,null,null,null,null,null,{"$f":"L100/C110","v":13897203.109304586}]
["Net Sales = Price Less Sales Cost",null,{"$f":"IFERROR(SUMPRODUCT('Advanced Financial'!C84:H84,B18:G18)/H18,0)","v":5.000000000000001E-2},null,null,null,null,null,null,null,null,{"$f":"L110*(1-C111)","v":13202342.953839356}]
["Less Mortgage Balance",null,null,null,null,null,null,null,null,null,null,{"$f":"Z158","v":5839349.6977596451}]
["Net Sales Proceeds",null,null,null,null,null,null,null,null,null,null,{"$f":"L111-L112","v":7362993.256079711}]
[]
[]
["IRR - Unleveraged (Project Cost)","Year 0","Year 1","Year 2","Year 3","Year 4","Year 5","Year 6","Year 7","Year 8","Year 9","Year 10"]
["Total Investment",{"$f":"-H77","v":-11629521.642412124}]
["Project NOI",null,{"$f":"C100","v":777526.57668967033},{"$f":"D100","v":800852.37399036053},{"$f":"E100","v":824877.94521007116},{"$f":"F100","v":849624.28356637352},875113.01207336481,901366.40243556595,928407.39450863283,956259.61634389171,984947.40483420854,1014495.8269792347]
["Net Sales Price",null,null,null,null,null,null,null,null,null,null,{"$f":"L111","v":13202342.953839356}]
["Total",{"$f":"SUM(B117:B119)","v":-11629521.642412124},{"$f":"SUM(C117:C119)","v":777526.57668967033},800852.37399036053,824877.94521007116,849624.28356637352,875113.01207336481,901366.40243556595,928407.39450863283,956259.61634389171,984947.40483420854,14216838.780818591]
["IRR - Project Cost",null,null,null,null,null,null,null,null,null,null,{"$f":"IFERROR(IRR(B120:L120),0)","v":8.430347662537141E-2}]
["NPV - Project Cost",null,null,null,null,null,null,null,null,null,null,{"$f":"NPV(N6,B120:L120)","v":-2212281.6762575936}]
[]
["IRR - Leveraged (Before Tax)","Year 0","Year 1","Year 2","Year 3","Year 4","Year 5","Year 6","Year 7","Year 8","Year 9","Year 10"]
["Original Investment (Equity)",{"$f":"-H75","v":-4651808.6569648506}]
["Project Cash Flow",null,{"$f":"C103","v":275507.59851485916},{"$f":"D103","v":298833.39581554936},322858.96703525999,347605.30539156235,373094.03389855364,399347.42426075478,426388.41633382166,454240.63816908054,482928.42665939737,512476.84880442353]
["Net Sales Proceeds",null,null,null,null,null,null,null,null,null,null,{"$f":"L113","v":7362993.256079711}]
["Total",{"$f":"SUM(B125:B127)","v":-4651808.6569648506},{"$f":"SUM(C125:C127)","v":275507.59851485916},298833.39581554936,322858.96703525999,347605.30539156235,373094.03389855364,399347.42426075478,426388.41633382166,454240.63816908054,482928.42665939737,7875470.1048841346]
["IRR - Equity",null,null,null,null,null,null,null,null,null,null,{"$f":"IFERROR(IRR(B128:L128),0)","v":0.11314156617272819}]
["NPV - Equity",null,null,null,null,null,null,null,null,null,null,{"$f":"NPV(N7,B128:L128)","v":-2103564.4093058673}]
[]
["IRR - Public Participation","Year 0","Year 1","Year 2","Year 3","Year 4","Year 5","Year 6","Year 7","Year 8","Year 9","Year 10"]
["Original Investment (Equity)",{"$f":"-(H79+(H65*H82))","v":0}]
["Mezzanine Financing",null,{"$f":"-$H$68","v":0},{"$f":"-$H$68","v":0},0,0,0,0,0,0,0,0]
["Cash Throw Off",null,{"$f":"$H$80","v":0},{"$f":"SUM('Residential Rental'!F159,Office!F160,Retail!F163,Hotel!F163)","v":0},{"$f":"SUM('Residential Rental'!G159,Office!G160,Retail!G163,Hotel!G163)","v":0},{"$f":"SUM('Residential Rental'!H159,Office!H160,Retail!H163,Hotel!H163)","v":0},{"$f":"SUM('Residential Rental'!I159,Office!I160,Retail!I163,Hotel!I163)","v":0},{"$f":"SUM('Residential Rental'!J159,Office!J160,Retail!J163,Hotel!J163)","v":0},{"$f":"SUM('Residential Rental'!K159,Office!K160,Retail!K163,Hotel!K163)","v":0},{"$f":"SUM('Residential Rental'!L159,Office!L160,Retail!L163,Hotel!L163)","v":0},{"$f":"SUM('Residential Rental'!M159,Office!M160,Retail!M163,Hotel!M163)","v":0},{"$f":"SUM('Residential Rental'!N159,Office!N160,Retail!N163,Hotel!N163)","v":0}]
["Sale Proceeds",null,null,null,null,null,null,null,null,null,null,{"$f":"L127*H81","v":0}]
["Loan Balance",null,null,null,null,null,null,null,null,null,null,{"$f":"U158*H82","v":0}]
["Total",{"$f":"SUM(B133:B137)","v":0},{"$f":"SUM(C133:C137)","v":0},0,0,0,0,0,0,0,0,0]
["IRR - Equity",null,null,null,null,null,null,null,null,null,null,{"$f":"IFERROR(IRR(B138:L138),0)","v":0}]
["NPV - Equity",null,null,null,null,null,null,null,null,null,null,{"$f":"NPV(N9,B138:L138)","v":0}]
[]
[]
[]
[]
["DEBT SERVICE MORTIZATION TABLES"]
["Primary Debt Amortization",null,null,null,null,"Low Interest Loan",null,null,null,null,"Total Debt Amortization",null,null,null,"Annual Debt Service Summary - Primary Debt",null,null,null,null,"Annual Debt Service Summary - Secondary Debt",null,null,null,null,"Annual Debt Service Summary - Total Debt"]
[]
["Period","Balance","Payment","Interest","Principal","Period","Balance","Payment","Interest","Principal","Period","Balance","Payment","Principal","Year","Balance","Payment","Interest","Principal","Year","Balance","Payment","Interest","Principal","Year","Balance","Payment","Interest","Principal"]
[0,{"$f":"H57","v":6977712.9854472745},null,null,null,0,{"$f":"H65","v":0},null,null,null,0,{"$f":"B149+G149","v":6977712.9854472745},null,null,1,{"$f":"B161","v":6892025.8527369294},{"$f":"SUM(C150:C161)","v":502018.97817481105},{"$f":"SUM(D150:D161)","v":416331.84546446509},{"$f":"SUM(E150:E161)","v":85687.132710345904},1,{"$f":"G161","v":0},{"$f":"SUM(H150:H161)","v":0},{"$f":"SUM(I150:I161)","v":0},{"$f":"SUM(J150:J161)","v":0},1,{"$f":"P149+U149","v":6892025.8527369294},{"$f":"Q149+V149","v":502018.97817481105},416331.84546446509,85687.132710345904]
[1,{"$f":"B149-E150","v":6970766.6355266096},{"$f":"-$H$61/12","v":41834.914847900924},{"$f":"$H$59/12*B149","v":34888.564927236373},{"$f":"C150-D150","v":6946.3499206645502},1,{"$f":"G149-J150","v":0},{"$f":"-$H$68/12","v":0},{"$f":"$H$66/12*G149","v":0},{"$f":"H150-I150","v":0},1,{"$f":"G150+B150","v":6970766.6355266096},41834.914847900924,{"$f":"J150+E150","v":6946.3499206645502},2,{"$f":"B173","v":6801053.7251760671},{"$f":"SUM(C162:C173)","v":502018.97817481105},{"$f":"SUM(D162:D173)","v":411046.85061394807},{"$f":"SUM(E162:E173)","v":90972.127560862951},2,{"$f":"G173","v":0},{"$f":"SUM(H162:H173)","v":0},{"$f":"SUM(I162:I173)","v":0},{"$f":"SUM(J162:J173)","v":0},2,{"$f":"P150+U150","v":6801053.7251760671},{"$f":"Q150+V150","v":502018.97817481105},{"$f":"R150+W150","v":411046.85061394807},{"$f":"S150+X150","v":90972.127560862951}]
[{"$f":"A150+1","v":2},6963785.5538563421,{"$f":"-$H$61/12","v":41834.914847900924},{"$f":"$H$59/12*B150","v":34853.833177633045},6981.0816702678785,{"$f":"F150+1","v":2},0,{"$f":"-$H$68/12","v":0},{"$f":"$H$66/12*G150","v":0},0,{"$f":"K150+1","v":2},6963785.5538563421,41834.914847900924,6981.0816702678785,3,{"$f":"B185","v":6704470.6358465906},{"$f":"SUM(C174:C185)","v":502018.97817481105},{"$f":"SUM(D174:D185)","v":405435.88884533592},96583.089329475129,3,{"$f":"G185","v":0},{"$f":"SUM(H174:H185)","v":0},{"$f":"SUM(I174:I185)","v":0},{"$f":"SUM(J174:J185)","v":0},3,6704470.6358465906,502018.97817481105,405435.88884533592,96583.089329475129]
[3,6956769.5667777229,41834.914847900924,34818.927769281712,7015.9870786192114,3,{"$f":"G151-J152","v":0},0,0,0,3,6956769.5667777229,41834.914847900924,7015.9870786192114,4,{"$f":"B197","v":6601930.5129041607},{"$f":"SUM(C186:C197)","v":502018.97817481105},{"$f":"SUM(D186:D197)","v":399478.85523238045},102540.12294243072,4,{"$f":"G197","v":0},{"$f":"SUM(H186:H197)","v":0},{"$f":"SUM(I186:I197)","v":0},{"$f":"SUM(J186:J197)","v":0},4,6601930.5129041607,502018.97817481105,399478.85523238045,102540.12294243072]
[4,6949718.4997637104,41834.914847900924,34783.847833888613,7051.0670140123111,4,0,0,0,0,4,6949718.4997637104,41834.914847900924,7051.0670140123111,5,{"$f":"B209","v":6493065.9395503225},{"$f":"SUM(C198:C209)","v":502018.97817481105},{"$f":"SUM(D198:D209)","v":393154.40482097451},108864.57335383659,5,{"$f":"G209","v":0},{"$f":"SUM(H198:H209)","v":0},{"$f":"SUM(I198:I209)","v":0},{"$f":"SUM(J198:J209)","v":0},5,6493065.9395503225,502018.97817481105,393154.40482097451,108864.57335383659]
[5,6942632.1774146277,41834.914847900924,34748.592498818551,7086.322349082373,5,0,0,0,0,5,6942632.1774146277,41834.914847900924,7086.322349082373,6,{"$f":"B221","v":6377486.8375224601},{"$f":"SUM(C210:C221)","v":502018.97817481105},{"$f":"SUM(D210:D221)","v":386439.87614694744},115579.10202786358,6,{"$f":"G221","v":0},{"$f":"SUM(H210:H221)","v":0},{"$f":"SUM(I210:I221)","v":0},{"$f":"SUM(J210:J221)","v":0},6,6377486.8375224601,502018.97817481105,386439.87614694744,115579.10202786358]
[6,6935510.4234538004,41834.914847900924,34713.160887073136,7121.7539608277875,6,0,0,0,0,6,6935510.4234538004,41834.914847900924,7121.7539608277875,7,{"$f":"B233","v":6254779.0693842527},{"$f":"SUM(C222:C233)","v":502018.97817481105},{"$f":"SUM(D222:D233)","v":379311.21003660513},122707.76813820595,7,{"$f":"G233","v":0},{"$f":"SUM(H222:H233)","v":0},{"$f":"SUM(I222:I233)","v":0},{"$f":"SUM(J222:J233)","v":0},7,6254779.0693842527,502018.97817481105,379311.21003660513,122707.76813820595]
[7,6928353.0607231688,41834.914847900924,34677.552117269006,7157.3627306319177,7,0,0,0,0,7,6928353.0607231688,41834.914847900924,7157.3627306319177,8,{"$f":"B245","v":6124502.9546085056},{"$f":"SUM(C234:C245)","v":502018.97817481105},{"$f":"SUM(D234:D245)","v":371742.86339906417},130276.1147757469,8,{"$f":"G245","v":0},{"$f":"SUM(H234:H245)","v":0},{"$f":"SUM(I234:I245)","v":0},{"$f":"SUM(J234:J245)","v":0},8,6124502.9546085056,502018.97817481105,371742.86339906417,130276.1147757469]
[8,6921159.9111788841,41834.914847900924,34641.765303615844,7193.1495442850792,8,0,0,0,0,8,6921159.9111788841,41834.914847900924,7193.1495442850792,9,{"$f":"B257","v":5986191.6941351835},{"$f":"SUM(C246:C257)","v":502018.97817481105},{"$f":"SUM(D246:D257)","v":363707.71770148771},138311.26047332335,9,{"$f":"G257","v":0},{"$f":"SUM(H246:H257)","v":0},{"$f":"SUM(I246:I257)","v":0},{"$f":"SUM(J246:J257)","v":0},9,5986191.6941351835,502018.97817481105,363707.71770148771,138311.26047332335]
[9,6913930.7958868779,41834.914847900924,34605.799555894424,7229.1152920064997,9,0,0,0,0,9,6913930.7958868779,41834.914847900924,7229.1152920064997,10,{"$f":"B269","v":5839349.6977596451},{"$f":"SUM(C258:C269)","v":502018.97817481105},{"$f":"SUM(D258:D269)","v":355176.98179927235},146841.99637553873,10,{"$f":"G269","v":0},{"$f":"SUM(H258:H269)","v":0},{"$f":"SUM(I258:I269)","v":0},{"$f":"SUM(J258:J269)","v":0},10,5839349.6977596451,502018.97817481105,355176.98179927235,146841.99637553873]
[10,6906665.5350184115,41834.914847900924,34569.653979434392,7265.260868466532,10,0,0,0,0,10,6906665.5350184115,41834.914847900924,7265.260868466532]
[11,6899363.9478456024,41834.914847900924,34533.327675092056,7301.5871728088678,11,0,0,0,0,11,6899363.9478456024,41834.914847900924,7301.5871728088678]
[12,6892025.8527369294,41834.914847900924,34496.819739228013,7338.095108672911,12,0,0,0,0,12,6892025.8527369294,41834.914847900924,7338.095108672911]
[13,6884651.0671527134,41834.914847900924,34460.129263684648,7374.7855842162753,13,0,0,0,0,13,6884651.0671527134,41834.914847900924,7374.7855842162753]
[14,6877239.4076405764,41834.914847900924,34423.25533576357,7411.6595121373539,14,0,0,0,0,14,6877239.4076405764,41834.914847900924,7411.6595121373539]
[15,6869790.6898308787,41834.914847900924,34386.197038202881,7448.7178096980424,15,0,0,0,0,15,6869790.6898308787,41834.914847900924,7448.7178096980424]
[16,6862304.7284321319,41834.914847900924,34348.953449154396,7485.9613987465273,16,0,0,0,0,16,6862304.7284321319,41834.914847900924,7485.9613987465273]
[17,6854781.3372263918,41834.914847900924,34311.523642160661,7523.3912057402631,17,0,0,0,0,17,6854781.3372263918,41834.914847900924,7523.3912057402631]
[18,6847220.3290646225,41834.914847900924,34273.906686131959,7561.0081617689648,18,0,0,0,0,18,6847220.3290646225,41834.914847900924,7561.0081617689648]
[19,6839621.5158620449,41834.914847900924,34236.101645323113,7598.8132025778104,19,0,0,0,0,19,6839621.5158620449,41834.914847900924,7598.8132025778104]
[20,6831984.7085934542,41834.914847900924,34198.107579310228,7636.8072685906955,20,0,0,0,0,20,6831984.7085934542,41834.914847900924,7636.8072685906955]
[21,6824309.7172885202,41834.914847900924,34159.92354296727,7674.9913049336537,21,0,0,0,0,21,6824309.7172885202,41834.914847900924,7674.9913049336537]
[22,6816596.3510270622,41834.914847900924,34121.548586442601,7713.3662614583227,22,0,0,0,0,22,6816596.3510270622,41834.914847900924,7713.3662614583227]
[23,6808844.4179342967,41834.914847900924,34082.981755135312,7751.9330927656119,23,0,0,0,0,23,6808844.4179342967,41834.914847900924,7751.9330927656119]
[24,6801053.7251760671,41834.914847900924,34044.222089671486,7790.6927582294375,24,0,0,0,0,24,6801053.7251760671,41834.914847900924,7790.6927582294375]
[25,6793224.0789540466,41834.914847900924,34005.268625880337,7829.6462220205867,25,0,0,0,0,25,6793224.0789540466,41834.914847900924,7829.6462220205867]
[26,6785355.2845009156,41834.914847900924,33966.120394770231,7868.794453130693,26,0,0,0,0,26,6785355.2845009156,41834.914847900924,7868.794453130693]
[27,6777447.1460755188,41834.914847900924,33926.776422504576,7908.1384253963479,27,0,0,0,0,27,6777447.1460755188,41834.914847900924,7908.1384253963479]
[28,6769499.4669579957,41834.914847900924,33887.235730377593,7947.6791175233302,28,0,0,0,0,28,6769499.4669579957,41834.914847900924,7947.6791175233302]
[29,6761512.049444885,41834.914847900924,33847.49733478998,7987.4175131109441,29,0,0,0,0,29,6761512.049444885,41834.914847900924,7987.4175131109441]
[30,6753484.6948442087,41834.914847900924,33807.560247224428,8027.3546006764955,30,0,0,0,0,30,6753484.6948442087,41834.914847900924,8027.3546006764955]
[31,6745417.2034705291,41834.914847900924,33767.423474221046,8067.4913736798771,31,0,0,0,0,31,6745417.2034705291,41834.914847900924,8067.4913736798771]
[32,6737309.3746399805,41834.914847900924,33727.086017352645,8107.8288305482783,32,0,0,0,0,32,6737309.3746399805,41834.914847900924,8107.8288305482783]
[33,6729161.0066652792,41834.914847900924,33686.546873199906,8148.3679747010174,33,0,0,0,0,33,6729161.0066652792,41834.914847900924,{"$f":"J182+E182","v":8148.3679747010174}]
[34,6720971.8968507042,41834.914847900924,33645.805033326396,8189.1098145745273,34,0,0,0,0,34,6720971.8968507042,41834.914847900924,8189.1098145745273]
[35,6712741.8414870566,41834.914847900924,33604.859484253524,8230.0553636473996,35,0,0,0,0,35,6712741.8414870566,41834.914847900924,8230.0553636473996]
[36,6704470.6358465906,41834.914847900924,33563.709207435284,8271.2056404656396,36,0,0,0,0,36,6704470.6358465906,41834.914847900924,8271.2056404656396]
[37,6696158.0741779227,41834.914847900924,33522.353179232952,8312.5616686679714,37,0,0,0,0,37,6696158.0741779227,41834.914847900924,8312.5616686679714]
[38,6687803.9497009115,41834.914847900924,33480.790370889612,8354.1244770113117,38,0,0,0,0,38,6687803.9497009115,41834.914847900924,8354.1244770113117]
[39,6679408.0546015147,41834.914847900924,33439.019748504557,8395.8950993963663,39,0,0,0,0,39,6679408.0546015147,41834.914847900924,8395.8950993963663]
[40,6670970.1800266216,41834.914847900924,33397.040273007573,8437.8745748933507,40,0,0,0,0,40,6670970.1800266216,41834.914847900924,8437.8745748933507]
[41,6662490.1160788536,41834.914847900924,33354.850900133111,8480.0639477678124,41,0,0,0,0,41,6662490.1160788536,41834.914847900924,8480.0639477678124]
[42,6653967.6518113473,41834.914847900924,33312.450580394267,8522.4642675066571,42,0,0,0,0,42,6653967.6518113473,41834.914847900924,8522.4642675066571]
[43,6645402.5752225034,41834.914847900924,33269.838259056734,8565.0765888441892,43,0,0,0,0,43,6645402.5752225034,41834.914847900924,8565.0765888441892]
[44,6636794.6732507152,41834.914847900924,33227.012876112516,8607.9019717884075,44,0,0,0,0,44,6636794.6732507152,41834.914847900924,8607.9019717884075]
[45,6628143.7317690682,41834.914847900924,33183.97336625358,8650.9414816473436,45,0,0,0,0,45,6628143.7317690682,41834.914847900924,8650.9414816473436]
[46,6619449.5355800129,41834.914847900924,33140.718658845341,8694.1961890555831,46,0,0,0,0,46,6619449.5355800129,41834.914847900924,8694.1961890555831]
[47,6610711.8684100118,41834.914847900924,33097.247677900064,8737.6671700008592,47,0,0,0,0,47,6610711.8684100118,41834.914847900924,8737.6671700008592]
[48,6601930.5129041607,41834.914847900924,33053.559342050059,8781.3555058508646,48,0,0,0,0,48,6601930.5129041607,41834.914847900924,8781.3555058508646]
[49,6593105.2506207805,41834.914847900924,33009.652564520802,8825.2622833801215,49,0,0,0,0,49,6593105.2506207805,41834.914847900924,8825.2622833801215]
[50,6584235.8620259836,41834.914847900924,32965.526253103904,8869.3885947970193,50,0,0,0,0,50,6584235.8620259836,41834.914847900924,8869.3885947970193]
[51,6575322.1264882125,41834.914847900924,32921.179310129919,8913.7355377710046,51,0,0,0,0,51,6575322.1264882125,41834.914847900924,8913.7355377710046]
[52,6566363.8222727524,41834.914847900924,32876.610632441065,8958.3042154598588,52,0,0,0,0,52,6566363.8222727524,41834.914847900924,8958.3042154598588]
[53,6557360.7265362153,41834.914847900924,32831.819111363766,9003.0957365371578,53,0,0,0,0,53,6557360.7265362153,41834.914847900924,9003.0957365371578]
[54,6548312.6153209955,41834.914847900924,32786.803632681076,9048.1112152198475,54,0,0,0,0,54,6548312.6153209955,41834.914847900924,9048.1112152198475]
[55,6539219.2635496994,41834.914847900924,32741.563076604976,9093.3517712959474,55,0,0,0,0,55,6539219.2635496994,41834.914847900924,9093.3517712959474]
[56,6530080.4450195469,41834.914847900924,32696.096317748499,9138.8185301524245,56,0,0,0,0,56,6530080.4450195469,41834.914847900924,9138.8185301524245]
[57,6520895.9323967434,41834.914847900924,32650.402225097736,9184.5126228031877,57,0,0,0,0,57,6520895.9323967434,41834.914847900924,9184.5126228031877]
[58,6511665.4972108258,41834.914847900924,32604.479661983718,9230.4351859172057,58,0,0,0,0,58,6511665.4972108258,41834.914847900924,9230.4351859172057]
[59,6502388.9098489787,41834.914847900924,32558.327486054131,9276.5873618467922,59,0,0,0,0,59,6502388.9098489787,41834.914847900924,9276.5873618467922]
[60,6493065.9395503225,41834.914847900924,32511.944549244894,9322.9702986560296,60,0,0,0,0,60,6493065.9395503225,41834.914847900924,9322.9702986560296]
[61,6483696.3544001728,41834.914847900924,32465.329697751615,9369.5851501493089,61,0,0,0,0,61,6483696.3544001728,41834.914847900924,9369.5851501493089]
[62,6474279.9213242726,41834.914847900924,32418.481772000865,9416.4330759000586,62,0,0,0,0,62,6474279.9213242726,41834.914847900924,9416.4330759000586]
[63,6464816.4060829934,41834.914847900924,32371.399606621362,9463.5152412795615,63,0,0,0,0,63,6464816.4060829934,41834.914847900924,9463.5152412795615]
[64,6455305.5732655078,41834.914847900924,32324.082030414967,9510.8328174859562,64,0,0,0,0,64,6455305.5732655078,41834.914847900924,{"$f":"J213+E213","v":9510.8328174859562}]
[65,{"$f":"B213-E214","v":6445747.1862839349},41834.914847900924,32276.527866327539,{"$f":"C214-D214","v":9558.3869815733851},65,{"$f":"G213-J214","v":0},0,0,{"$f":"H214-I214","v":0},65,{"$f":"G214+B214","v":6445747.1862839349},41834.914847900924,9558.3869815733851]
[{"$f":"A214+1","v":66},6436141.0073674535,{"$f":"-$H$61/12","v":41834.914847900924},{"$f":"$H$59/12*B214","v":32228.735931419676},9606.1789164812471,{"$f":"F214+1","v":66},0,{"$f":"-$H$68/12","v":0},{"$f":"$H$66/12*G214","v":0},0,{"$f":"K214+1","v":66},6436141.0073674535,41834.914847900924,9606.1789164812471]
[67,6426486.7975563901,41834.914847900924,32180.705036837269,9654.2098110636543,67,0,0,0,0,67,6426486.7975563901,41834.914847900924,9654.2098110636543]
[68,6416784.3166962713,41834.914847900924,32132.433987781951,9702.4808601189725,68,0,0,0,0,68,6416784.3166962713,41834.914847900924,9702.4808601189725]
[69,6407033.3234318513,41834.914847900924,32083.921583481359,9750.9932644195651,69,0,0,0,0,69,6407033.3234318513,41834.914847900924,9750.9932644195651]
[70,6397233.57520111,41834.914847900924,32035.166617159259,9799.7482307416649,70,0,0,0,0,70,6397233.57520111,41834.914847900924,9799.7482307416649]
[71,6387384.828229215,41834.914847900924,31986.167876005551,9848.7469718953726,71,0,0,0,0,71,6387384.828229215,41834.914847900924,9848.7469718953726]
[72,6377486.8375224601,41834.914847900924,31936.924141146075,9897.9907067548484,72,0,0,0,0,72,6377486.8375224601,41834.914847900924,9897.9907067548484]
[73,6367539.3568621716,41834.914847900924,31887.4341876123,9947.4806602886238,73,0,0,0,0,73,6367539.3568621716,41834.914847900924,9947.4806602886238]
[74,6357542.1387985814,41834.914847900924,31837.696784310858,9997.2180635900659,74,0,0,0,0,74,6357542.1387985814,41834.914847900924,9997.2180635900659]
[75,6347494.934644673,41834.914847900924,31787.710693992907,10047.204153908016,75,0,0,0,0,75,6347494.934644673,41834.914847900924,10047.204153908016]
[76,6337397.4944699956,41834.914847900924,31737.474673223365,10097.440174677558,76,0,0,0,0,76,6337397.4944699956,41834.914847900924,10097.440174677558]
[77,6327249.5670944443,41834.914847900924,31686.987472349978,10147.927375550946,77,0,0,0,0,77,6327249.5670944443,41834.914847900924,10147.927375550946]
[78,6317050.9000820154,41834.914847900924,31636.247835472223,10198.667012428701,78,0,0,0,0,78,6317050.9000820154,41834.914847900924,10198.667012428701]
[79,6306801.2397345249,41834.914847900924,31585.254500410079,10249.660347490844,79,0,0,0,0,79,6306801.2397345249,41834.914847900924,10249.660347490844]
[80,6296500.3310852963,41834.914847900924,31534.006198672625,10300.908649228299,80,0,0,0,0,80,6296500.3310852963,41834.914847900924,10300.908649228299]
[81,6286147.9178928221,41834.914847900924,31482.501655426484,10352.41319247444,81,0,0,0,0,81,6286147.9178928221,41834.914847900924,10352.41319247444]
[82,6275743.7426343849,41834.914847900924,31430.739589464112,10404.175258436811,82,0,0,0,0,82,6275743.7426343849,41834.914847900924,10404.175258436811]
[83,6265287.5464996556,41834.914847900924,31378.718713171926,10456.196134728998,83,0,0,0,0,83,6265287.5464996556,41834.914847900924,10456.196134728998]
[84,6254779.0693842527,41834.914847900924,31326.437732498278,10508.477115402646,84,0,0,0,0,84,6254779.0693842527,41834.914847900924,10508.477115402646]
[85,6244218.0498832734,41834.914847900924,31273.895346921265,10561.019500979659,85,0,0,0,0,85,6244218.0498832734,41834.914847900924,10561.019500979659]
[86,6233604.2252847888,41834.914847900924,31221.090249416367,10613.824598484556,86,0,0,0,0,86,6233604.2252847888,41834.914847900924,10613.824598484556]
[87,6222937.3315633116,41834.914847900924,31168.021126423944,10666.893721476979,87,0,0,0,0,87,6222937.3315633116,41834.914847900924,10666.893721476979]
[88,6212217.1033732276,41834.914847900924,31114.686657816557,10720.228190084366,88,0,0,0,0,88,6212217.1033732276,41834.914847900924,10720.228190084366]
[89,6201443.2740421928,41834.914847900924,31061.08551686614,10773.829331034784,89,0,0,0,0,89,6201443.2740421928,41834.914847900924,10773.829331034784]
[90,6190615.5755645027,41834.914847900924,31007.216370210965,10827.698477689959,90,0,0,0,0,90,6190615.5755645027,41834.914847900924,10827.698477689959]
[91,6179733.738594424,41834.914847900924,30953.077877822514,10881.83697007841,91,0,0,0,0,91,6179733.738594424,41834.914847900924,10881.83697007841]
[92,6168797.4924394954,41834.914847900924,30898.668692972122,10936.246154928802,92,0,0,0,0,92,6168797.4924394954,41834.914847900924,10936.246154928802]
[93,6157806.5650537917,41834.914847900924,30843.987462197478,10990.927385703446,93,0,0,0,0,93,6157806.5650537917,41834.914847900924,10990.927385703446]
[94,6146760.6830311595,41834.914847900924,30789.032825268958,11045.882022631966,94,0,0,0,0,94,6146760.6830311595,41834.914847900924,11045.882022631966]
[95,6135659.5715984143,41834.914847900924,30733.803415155799,11101.111432745125,95,0,0,0,0,95,6135659.5715984143,41834.914847900924,11101.111432745125]
[96,6124502.9546085056,41834.914847900924,30678.297857992071,11156.616989908853,96,0,0,0,0,96,6124502.9546085056,41834.914847900924,11156.616989908853]
[97,6113290.5545336474,41834.914847900924,30622.514773042527,11212.400074858397,97,0,0,0,0,97,6113290.5545336474,41834.914847900924,11212.400074858397]
[98,6102022.0924584148,41834.914847900924,30566.452772668239,11268.462075232685,98,0,0,0,0,98,6102022.0924584148,41834.914847900924,11268.462075232685]
[99,6090697.2880728059,41834.914847900924,30510.110462292076,11324.804385608848,99,0,0,0,0,99,6090697.2880728059,41834.914847900924,11324.804385608848]
[100,6079315.859665269,41834.914847900924,30453.486440364031,11381.428407536892,100,0,0,0,0,100,6079315.859665269,41834.914847900924,11381.428407536892]
[101,6067877.5241156947,41834.914847900924,30396.579298326345,11438.335549574578,101,0,0,0,0,101,6067877.5241156947,41834.914847900924,11438.335549574578]
[102,6056381.9968883721,41834.914847900924,30339.387620578473,11495.527227322451,102,0,0,0,0,102,6056381.9968883721,41834.914847900924,11495.527227322451]
[103,6044828.9920249134,41834.914847900924,30281.90998444186,11553.004863459064,103,0,0,0,0,103,6044828.9920249134,41834.914847900924,11553.004863459064]
[104,6033218.2221371373,41834.914847900924,30224.144960124569,11610.769887776354,104,0,0,0,0,104,6033218.2221371373,41834.914847900924,11610.769887776354]
[105,6021549.3983999221,41834.914847900924,30166.091110685687,11668.823737215236,105,0,0,0,0,105,6021549.3983999221,41834.914847900924,11668.823737215236]
[106,6009822.2305440204,41834.914847900924,30107.746991999611,11727.167855901313,106,0,0,0,0,106,6009822.2305440204,41834.914847900924,11727.167855901313]
[107,5998036.42684884,41834.914847900924,30049.111152720103,11785.803695180821,107,0,0,0,0,107,5998036.42684884,41834.914847900924,11785.803695180821]
[108,5986191.6941351835,41834.914847900924,29990.182134244202,11844.732713656722,108,0,0,0,0,108,5986191.6941351835,41834.914847900924,11844.732713656722]
[109,5974287.7377579585,41834.914847900924,29930.95847067592,11903.956377225004,109,0,0,0,0,109,5974287.7377579585,41834.914847900924,11903.956377225004]
[110,5962324.2615988478,41834.914847900924,29871.438688789793,11963.476159111131,110,0,0,0,0,110,5962324.2615988478,41834.914847900924,11963.476159111131]
[111,5950300.968058941,41834.914847900924,29811.621307994239,12023.293539906685,111,0,0,0,0,111,5950300.968058941,41834.914847900924,12023.293539906685]
[112,5938217.5580513347,41834.914847900924,29751.504840294707,12083.410007606217,112,0,0,0,0,112,5938217.5580513347,41834.914847900924,12083.410007606217]
[113,5926073.7309936909,41834.914847900924,29691.087790256675,12143.827057644248,113,0,0,0,0,113,5926073.7309936909,41834.914847900924,12143.827057644248]
[114,5913869.184800758,41834.914847900924,29630.368654968453,12204.54619293247,114,0,0,0,0,114,5913869.184800758,41834.914847900924,12204.54619293247]
[115,5901603.6158768609,41834.914847900924,29569.345924003792,12265.568923897132,115,0,0,0,0,115,5901603.6158768609,41834.914847900924,12265.568923897132]
[116,5889276.7191083441,41834.914847900924,29508.018079384306,12326.896768516617,116,0,0,0,0,116,5889276.7191083441,41834.914847900924,12326.896768516617]
[117,5876888.187855985,41834.914847900924,29446.38359554172,12388.531252359204,117,0,0,0,0,117,5876888.187855985,41834.914847900924,12388.531252359204]
[118,5864437.7139473641,41834.914847900924,29384.440939279924,12450.473908620999,118,0,0,0,0,118,5864437.7139473641,41834.914847900924,12450.473908620999]
[119,5851924.9876691997,41834.914847900924,29322.18856973682,12512.726278164104,119,0,0,0,0,119,5851924.9876691997,41834.914847900924,12512.726278164104]
[120,5839349.6977596451,41834.914847900924,29259.624938345998,12575.289909554926,120,0,0,0,0,120,5839349.6977596451,41834.914847900924,12575.289909554926]
[121,5826711.5314005427,41834.914847900924,29196.748488798225,12638.166359102699,121,0,0,0,0,121,5826711.5314005427,41834.914847900924,12638.166359102699]
[122,5814010.1742096441,41834.914847900924,29133.557657002715,12701.357190898209,122,0,0,0,0,122,5814010.1742096441,41834.914847900924,12701.357190898209]
[123,5801245.3102327911,41834.914847900924,29070.050871048221,12764.863976852703,123,0,0,0,0,123,5801245.3102327911,41834.914847900924,12764.863976852703]
[124,5788416.621936054,41834.914847900924,29006.226551163956,12828.688296736967,124,0,0,0,0,124,5788416.621936054,41834.914847900924,12828.688296736967]
[125,5775523.7901978334,41834.914847900924,28942.083109680272,12892.831738220651,125,0,0,0,0,125,5775523.7901978334,41834.914847900924,12892.831738220651]
[126,5762566.4943009214,41834.914847900924,28877.618950989166,12957.295896911757,126,0,0,0,0,126,5762566.4943009214,41834.914847900924,12957.295896911757]
[127,5749544.4119245252,41834.914847900924,28812.832471504607,13022.082376396316,127,0,0,0,0,127,5749544.4119245252,41834.914847900924,13022.082376396316]
[128,5736457.2191362465,41834.914847900924,28747.722059622625,13087.192788278298,128,0,0,0,0,128,5736457.2191362465,41834.914847900924,{"$f":"J277+E277","v":13087.192788278298}]
[129,{"$f":"B277-E278","v":5723304.590384027},41834.914847900924,28682.286095681233,{"$f":"C278-D278","v":13152.628752219691},129,{"$f":"G277-J278","v":0},0,0,{"$f":"H278-I278","v":0},129,{"$f":"G278+B278","v":5723304.590384027},41834.914847900924,13152.628752219691]
[{"$f":"A278+1","v":130},5710086.1984880464,{"$f":"-$H$61/12","v":41834.914847900924},{"$f":"$H$59/12*B278","v":28616.522951920135},13218.391895980789,{"$f":"F278+1","v":130},0,{"$f":"-$H$68/12","v":0},{"$f":"$H$66/12*G278","v":0},0,{"$f":"K278+1","v":130},5710086.1984880464,41834.914847900924,13218.391895980789]
[131,5696801.7146325856,41834.914847900924,28550.430992440233,13284.48385546069,131,0,0,0,0,131,5696801.7146325856,41834.914847900924,13284.48385546069]
[132,5683450.8083578479,41834.914847900924,28484.00857316293,13350.906274737994,132,0,0,0,0,132,5683450.8083578479,41834.914847900924,13350.906274737994]
[133,5670033.1475517359,41834.914847900924,28417.254041789241,13417.660806111682,133,0,0,0,0,133,5670033.1475517359,41834.914847900924,13417.660806111682]
[134,5656548.3984415932,41834.914847900924,28350.165737758682,13484.749110142242,134,0,0,0,0,134,5656548.3984415932,41834.914847900924,13484.749110142242]
[135,5642996.2255859002,41834.914847900924,28282.741992207968,13552.172855692956,135,0,0,0,0,135,5642996.2255859002,41834.914847900924,13552.172855692956]
[136,5629376.291865929,41834.914847900924,28214.981127929503,13619.933719971421,136,0,0,0,0,136,5629376.291865929,41834.914847900924,13619.933719971421]
[137,5615688.2584773581,41834.914847900924,28146.881459329645,13688.033388571279,137,0,0,0,0,137,5615688.2584773581,41834.914847900924,13688.033388571279]
[138,5601931.7849218436,41834.914847900924,28078.441292386793,13756.473555514131,138,0,0,0,0,138,5601931.7849218436,41834.914847900924,13756.473555514131]
[139,5588106.5289985519,41834.914847900924,28009.658924609219,13825.255923291705,139,0,0,0,0,139,5588106.5289985519,41834.914847900924,13825.255923291705]
[140,5574212.1467956435,41834.914847900924,27940.53264499276,13894.382202908164,140,0,0,0,0,140,5574212.1467956435,41834.914847900924,13894.382202908164]
[141,5560248.292681721,41834.914847900924,27871.060733978218,13963.854113922705,141,0,0,0,0,141,5560248.292681721,41834.914847900924,13963.854113922705]
[142,5546214.6192972288,41834.914847900924,27801.241463408605,14033.673384492318,142,0,0,0,0,142,5546214.6192972288,41834.914847900924,14033.673384492318]
[143,5532110.7775458144,41834.914847900924,27731.073096486143,14103.84175141478,143,0,0,0,0,143,5532110.7775458144,41834.914847900924,14103.84175141478]
[144,5517936.4165856428,41834.914847900924,27660.553887729071,14174.360960171853,144,0,0,0,0,144,5517936.4165856428,41834.914847900924,14174.360960171853]
[145,5503691.1838206705,41834.914847900924,27589.682082928215,14245.232764972709,145,0,0,0,0,145,5503691.1838206705,41834.914847900924,14245.232764972709]
[146,5489374.7248918731,41834.914847900924,27518.455919103351,14316.458928797572,146,0,0,0,0,146,5489374.7248918731,41834.914847900924,14316.458928797572]
[147,5474986.6836684318,41834.914847900924,27446.873624459367,14388.041223441556,147,0,0,0,0,147,5474986.6836684318,41834.914847900924,14388.041223441556]
[148,5460526.7022388726,41834.914847900924,27374.93341834216,14459.981429558764,148,0,0,0,0,148,5460526.7022388726,41834.914847900924,14459.981429558764]
[149,5445994.4209021665,41834.914847900924,27302.633511194363,14532.281336706561,149,0,0,0,0,149,5445994.4209021665,41834.914847900924,14532.281336706561]
[150,5431389.4781587766,41834.914847900924,27229.972104510834,14604.942743390089,150,0,0,0,0,150,5431389.4781587766,41834.914847900924,14604.942743390089]
[151,5416711.5107016694,41834.914847900924,27156.947390793885,14677.967457107039,151,0,0,0,0,151,5416711.5107016694,41834.914847900924,14677.967457107039]
[152,5401960.1534072766,41834.914847900924,27083.557553508348,14751.357294392576,152,0,0,0,0,152,5401960.1534072766,41834.914847900924,14751.357294392576]
[153,5387135.0393264117,41834.914847900924,27009.800767036384,14825.11408086454,153,0,0,0,0,153,5387135.0393264117,41834.914847900924,14825.11408086454]
[154,5372235.7996751424,41834.914847900924,26935.675196632059,14899.239651268865,154,0,0,0,0,154,5372235.7996751424,41834.914847900924,14899.239651268865]
[155,5357262.0638256175,41834.914847900924,26861.178998375712,14973.735849525212,155,0,0,0,0,155,5357262.0638256175,41834.914847900924,14973.735849525212]
[156,5342213.4592968449,41834.914847900924,26786.31031912809,15048.604528772834,156,0,0,0,0,156,5342213.4592968449,41834.914847900924,15048.604528772834]
[157,5327089.6117454283,41834.914847900924,26711.067296484223,15123.8475514167,157,0,0,0,0,157,5327089.6117454283,41834.914847900924,15123.8475514167]
[158,5311890.1449562544,41834.914847900924,26635.448058727143,15199.466789173781,158,0,0,0,0,158,5311890.1449562544,41834.914847900924,15199.466789173781]
[159,5296614.6808331348,41834.914847900924,26559.450724781273,15275.464123119651,159,0,0,0,0,159,5296614.6808331348,41834.914847900924,15275.464123119651]
[160,5281262.8393893996,41834.914847900924,26483.073404165676,15351.841443735248,160,0,0,0,0,160,5281262.8393893996,41834.914847900924,{"$f":"J309+E309","v":15351.841443735248}]
[161,5265834.2387384456,41834.914847900924,26406.314196946998,15428.600650953926,161,0,0,0,0,161,5265834.2387384456,41834.914847900924,15428.600650953926]
[162,5250328.4950842373,41834.914847900924,26329.171193692229,15505.743654208694,162,0,0,0,0,162,5250328.4950842373,41834.914847900924,15505.743654208694]
[163,5234745.2227117578,41834.914847900924,26251.642475421188,15583.272372479736,163,0,0,0,0,163,5234745.2227117578,41834.914847900924,15583.272372479736]
[164,5219084.0339774154,41834.914847900924,26173.726113558791,15661.188734342133,164,0,0,0,0,164,5219084.0339774154,41834.914847900924,15661.188734342133]
[165,5203344.5392994015,41834.914847900924,26095.420169887078,15739.494678013845,165,0,0,0,0,165,5203344.5392994015,41834.914847900924,15739.494678013845]
[166,5187526.3471479975,41834.914847900924,26016.722696497007,15818.192151403917,166,0,0,0,0,166,5187526.3471479975,41834.914847900924,15818.192151403917]
[167,5171629.0640358366,41834.914847900924,25937.631735739989,15897.283112160934,167,0,0,0,0,167,5171629.0640358366,41834.914847900924,15897.283112160934]
[168,5155652.2945081145,41834.914847900924,25858.145320179185,15976.769527721739,168,0,0,0,0,168,5155652.2945081145,41834.914847900924,15976.769527721739]
[169,5139595.6411327543,41834.914847900924,25778.261472540573,16056.653375360351,169,0,0,0,0,169,5139595.6411327543,41834.914847900924,16056.653375360351]
[170,5123458.7044905173,41834.914847900924,25697.97820566377,16136.936642237153,170,0,0,0,0,170,5123458.7044905173,41834.914847900924,16136.936642237153]
[171,5107241.0831650691,41834.914847900924,25617.293522452586,16217.621325448337,171,0,0,0,0,171,5107241.0831650691,41834.914847900924,16217.621325448337]
[172,5090942.3737329934,41834.914847900924,25536.205415825345,16298.709432075579,172,0,0,0,0,172,5090942.3737329934,41834.914847900924,16298.709432075579]
[173,5074562.1707537575,41834.914847900924,25454.711868664966,16380.202979235957,173,0,0,0,0,173,5074562.1707537575,41834.914847900924,16380.202979235957]
[174,5058100.0667596254,41834.914847900924,25372.810853768788,16462.103994132136,174,0,0,0,0,174,5058100.0667596254,41834.914847900924,16462.103994132136]
[175,5041555.6522455225,41834.914847900924,25290.500333798129,16544.414514102795,175,0,0,0,0,175,5041555.6522455225,41834.914847900924,16544.414514102795]
[176,5024928.5156588489,41834.914847900924,25207.778261227613,16627.13658667331,176,0,0,0,0,176,5024928.5156588489,41834.914847900924,16627.13658667331]
[177,5008218.2433892423,41834.914847900924,25124.642578294246,16710.272269606678,177,0,0,0,0,177,5008218.2433892423,41834.914847900924,16710.272269606678]
[178,4991424.4197582873,41834.914847900924,25041.091216946214,16793.82363095471,178,0,0,0,0,178,4991424.4197582873,41834.914847900924,16793.82363095471]
[179,4974546.6270091776,41834.914847900924,24957.122098791438,16877.792749109485,179,0,0,0,0,179,4974546.6270091776,41834.914847900924,16877.792749109485]
[180,4957584.4452963229,41834.914847900924,24872.733135045888,16962.181712855036,180,0,0,0,0,180,4957584.4452963229,41834.914847900924,16962.181712855036]
[181,4940537.4526749039,41834.914847900924,24787.922226481616,17046.992621419307,181,0,0,0,0,181,4940537.4526749039,41834.914847900924,17046.992621419307]
[182,4923405.225090378,41834.914847900924,24702.687263374519,17132.227584526405,182,0,0,0,0,182,4923405.225090378,41834.914847900924,17132.227584526405]
[183,4906187.3363679294,41834.914847900924,24617.026125451892,17217.888722449032,183,0,0,0,0,183,4906187.3363679294,41834.914847900924,17217.888722449032]
[184,4888883.3582018679,41834.914847900924,24530.936681839648,17303.978166061275,184,0,0,0,0,184,4888883.3582018679,41834.914847900924,17303.978166061275]
[185,4871492.8601449765,41834.914847900924,24444.416791009338,17390.498056891585,185,0,0,0,0,185,4871492.8601449765,41834.914847900924,17390.498056891585]
[186,4854015.4095978001,41834.914847900924,24357.464300724881,17477.450547176042,186,0,0,0,0,186,4854015.4095978001,41834.914847900924,17477.450547176042]
[187,4836450.5717978878,41834.914847900924,24270.077047989002,17564.837799911922,187,0,0,0,0,187,4836450.5717978878,41834.914847900924,17564.837799911922]
[188,4818797.9098089766,41834.914847900924,24182.252858989439,17652.661988911485,188,0,0,0,0,188,4818797.9098089766,41834.914847900924,17652.661988911485]
[189,4801056.9845101209,41834.914847900924,24093.989549044883,17740.92529885604,189,0,0,0,0,189,4801056.9845101209,41834.914847900924,17740.92529885604]
[190,4783227.3545847703,41834.914847900924,24005.284922550603,17829.62992535032,190,0,0,0,0,190,4783227.3545847703,41834.914847900924,17829.62992535032]
[191,4765308.5765097933,41834.914847900924,23916.136772923852,17918.778074977072,191,0,0,0,0,191,4765308.5765097933,41834.914847900924,17918.778074977072]
[192,4747300.2045444418,41834.914847900924,23826.542882548965,18008.371965351958,192,0,0,0,0,192,4747300.2045444418,41834.914847900924,{"$f":"J341+E341","v":18008.371965351958}]
[193,{"$f":"B341-E342","v":4729201.7907192633},41834.914847900924,23736.501022722208,{"$f":"C342-D342","v":18098.413825178715},193,{"$f":"G341-J342","v":0},0,0,{"$f":"H342-I342","v":0},193,{"$f":"G342+B342","v":4729201.7907192633},41834.914847900924,18098.413825178715]
[{"$f":"A342+1","v":194},4711012.8848249586,{"$f":"-$H$61/12","v":41834.914847900924},{"$f":"$H$59/12*B342","v":23646.008953596316},18188.905894304608,{"$f":"F342+1","v":194},0,{"$f":"-$H$68/12","v":0},{"$f":"$H$66/12*G342","v":0},0,{"$f":"K342+1","v":194},4711012.8848249586,41834.914847900924,18188.905894304608]
[195,4692733.0344011821,41834.914847900924,23555.064424124794,18279.85042377613,195,0,0,0,0,195,4692733.0344011821,41834.914847900924,18279.85042377613]
[196,4674361.784725287,41834.914847900924,23463.665172005913,18371.249675895011,196,0,0,0,0,196,4674361.784725287,41834.914847900924,18371.249675895011]
[197,4655898.6788010122,41834.914847900924,23371.808923626435,18463.105924274489,197,0,0,0,0,197,4655898.6788010122,41834.914847900924,18463.105924274489]
[198,4637343.2573471162,41834.914847900924,23279.493394005061,18555.421453895862,198,0,0,0,0,198,4637343.2573471162,41834.914847900924,18555.421453895862]
[199,4618695.0587859508,41834.914847900924,23186.71628673558,18648.198561165344,199,0,0,0,0,199,4618695.0587859508,41834.914847900924,18648.198561165344]
[200,4599953.6192319794,41834.914847900924,23093.475293929754,18741.43955397117,200,0,0,0,0,200,4599953.6192319794,41834.914847900924,18741.43955397117]
[201,4581118.4724802384,41834.914847900924,22999.768096159896,18835.146751741027,201,0,0,0,0,201,4581118.4724802384,41834.914847900924,18835.146751741027]
[202,4562189.1499947384,41834.914847900924,22905.592362401192,18929.322485499732,202,0,0,0,0,202,4562189.1499947384,41834.914847900924,18929.322485499732]
[203,4543165.1808968112,41834.914847900924,22810.945749973693,19023.969097927231,203,0,0,0,0,203,4543165.1808968112,41834.914847900924,19023.969097927231]
[204,4524046.091953394,41834.914847900924,22715.825904484056,19119.088943416868,204,0,0,0,0,204,4524046.091953394,41834.914847900924,19119.088943416868]
[205,4504831.4075652603,41834.914847900924,22620.230459766972,19214.684388133952,205,0,0,0,0,205,4504831.4075652603,41834.914847900924,19214.684388133952]
[206,4485520.6497551855,41834.914847900924,22524.157037826302,19310.757810074621,206,0,0,0,0,206,4485520.6497551855,41834.914847900924,19310.757810074621]
[207,4466113.3381560603,41834.914847900924,22427.603248775929,19407.311599124994,207,0,0,0,0,207,4466113.3381560603,41834.914847900924,19407.311599124994]
[208,4446608.9899989394,41834.914847900924,22330.566690780302,19504.348157120621,208,0,0,0,0,208,4446608.9899989394,41834.914847900924,19504.348157120621]
[209,4427007.1201010328,41834.914847900924,22233.044949994699,19601.869897906225,209,0,0,0,0,209,4427007.1201010328,41834.914847900924,19601.869897906225]
[210,4407307.2408536375,41834.914847900924,22135.035600505165,19699.879247395758,210,0,0,0,0,210,4407307.2408536375,41834.914847900924,19699.879247395758]
[211,4387508.8622100046,41834.914847900924,22036.536204268188,19798.378643632735,211,0,0,0,0,211,4387508.8622100046,41834.914847900924,19798.378643632735]
[212,4367611.4916731538,41834.914847900924,21937.544311050024,19897.3705368509,212,0,0,0,0,212,4367611.4916731538,41834.914847900924,19897.3705368509]
[213,4347614.634283619,41834.914847900924,21838.057458365769,19996.857389535155,213,0,0,0,0,213,4347614.634283619,41834.914847900924,19996.857389535155]
[214,4327517.7926071361,41834.914847900924,21738.073171418095,20096.841676482829,214,0,0,0,0,214,4327517.7926071361,41834.914847900924,20096.841676482829]
[215,4307320.4667222705,41834.914847900924,21637.58896303568,20197.325884865244,215,0,0,0,0,215,4307320.4667222705,41834.914847900924,20197.325884865244]
[216,4287022.1542079812,41834.914847900924,21536.602333611354,20298.31251428957,216,0,0,0,0,216,4287022.1542079812,41834.914847900924,20298.31251428957]
[217,4266622.3501311205,41834.914847900924,21435.110771039905,20399.804076861019,217,0,0,0,0,217,4266622.3501311205,41834.914847900924,20399.804076861019]
[218,4246120.5470338752,41834.914847900924,21333.111750655604,20501.80309724532,218,0,0,0,0,218,4246120.5470338752,41834.914847900924,20501.80309724532]
[219,4225516.2349211434,41834.914847900924,21230.602735169377,20604.312112731546,219,0,0,0,0,219,4225516.2349211434,41834.914847900924,20604.312112731546]
[220,4204808.9012478478,41834.914847900924,21127.581174605719,20707.333673295205,220,0,0,0,0,220,4204808.9012478478,41834.914847900924,20707.333673295205]
[221,4183998.030906186,41834.914847900924,21024.044506239239,20810.870341661685,221,0,0,0,0,221,4183998.030906186,41834.914847900924,20810.870341661685]
[222,4163083.1062128162,41834.914847900924,20919.990154530929,20914.924693369994,222,0,0,0,0,222,4163083.1062128162,41834.914847900924,20914.924693369994]
[223,4142063.6068959795,41834.914847900924,20815.415531064082,21019.499316836842,223,0,0,0,0,223,4142063.6068959795,41834.914847900924,21019.499316836842]
[224,4120939.0100825583,41834.914847900924,20710.318034479897,21124.596813421027,224,0,0,0,0,224,4120939.0100825583,41834.914847900924,21124.596813421027]
[225,4099708.79028507,41834.914847900924,20604.695050412793,21230.219797488131,225,0,0,0,0,225,4099708.79028507,41834.914847900924,21230.219797488131]
[226,4078372.4193885946,41834.914847900924,20498.543951425348,21336.370896475575,226,0,0,0,0,226,4078372.4193885946,41834.914847900924,21336.370896475575]
[227,4056929.3666376364,41834.914847900924,20391.862096942972,21443.052750957952,227,0,0,0,0,227,4056929.3666376364,41834.914847900924,21443.052750957952]
[228,4035379.0986229237,41834.914847900924,20284.646833188184,21550.268014712739,228,0,0,0,0,228,4035379.0986229237,41834.914847900924,21550.268014712739]
[229,4013721.0792681375,41834.914847900924,20176.895493114618,21658.019354786305,229,0,0,0,0,229,4013721.0792681375,41834.914847900924,21658.019354786305]
[230,3991954.7698165774,41834.914847900924,20068.605396340688,21766.309451560235,230,0,0,0,0,230,3991954.7698165774,41834.914847900924,21766.309451560235]
[231,3970079.6288177595,41834.914847900924,19959.773849082889,21875.140998818035,231,0,0,0,0,231,3970079.6288177595,41834.914847900924,21875.140998818035]
[232,3948095.1121139475,41834.914847900924,19850.398144088798,21984.516703812125,232,0,0,0,0,232,3948095.1121139475,41834.914847900924,21984.516703812125]
[233,3926000.6728266166,41834.914847900924,19740.475560569739,22094.439287331184,233,0,0,0,0,233,3926000.6728266166,41834.914847900924,22094.439287331184]
[234,3903795.7613428487,41834.914847900924,19630.003364133085,22204.911483767839,234,0,0,0,0,234,3903795.7613428487,41834.914847900924,22204.911483767839]
[235,3881479.8253016621,41834.914847900924,19518.978806714244,22315.93604118668,235,0,0,0,0,235,3881479.8253016621,41834.914847900924,22315.93604118668]
[236,3859052.3095802693,41834.914847900924,19407.39912650831,22427.515721392614,236,0,0,0,0,236,3859052.3095802693,41834.914847900924,22427.515721392614]
[237,3836512.6562802698,41834.914847900924,19295.261547901348,22539.653299999576,237,0,0,0,0,237,3836512.6562802698,41834.914847900924,22539.653299999576]
[238,3813860.3047137703,41834.914847900924,19182.563281401348,22652.351566499576,238,0,0,0,0,238,3813860.3047137703,41834.914847900924,22652.351566499576]
[239,3791094.6913894382,41834.914847900924,19069.301523568851,22765.613324332073,239,0,0,0,0,239,3791094.6913894382,41834.914847900924,22765.613324332073]
[240,3768215.2499984843,41834.914847900924,18955.473456947191,22879.441390953732,240,0,0,0,0,240,3768215.2499984843,41834.914847900924,22879.441390953732]
[241,3745221.4114005757,41834.914847900924,18841.07624999242,22993.838597908503,241,0,0,0,0,241,3745221.4114005757,41834.914847900924,22993.838597908503]
[242,3722112.6036096774,41834.914847900924,18726.107057002879,23108.807790898045,242,0,0,0,0,242,3722112.6036096774,41834.914847900924,23108.807790898045]
[243,3698888.251779825,41834.914847900924,18610.563018048386,23224.351829852538,243,0,0,0,0,243,3698888.251779825,41834.914847900924,23224.351829852538]
[244,3675547.7781908233,41834.914847900924,18494.441258899125,23340.473589001798,244,0,0,0,0,244,3675547.7781908233,41834.914847900924,23340.473589001798]
[245,3652090.6022338765,41834.914847900924,18377.738890954115,23457.175956946809,245,0,0,0,0,245,3652090.6022338765,41834.914847900924,23457.175956946809]
[246,3628516.1403971449,41834.914847900924,18260.453011169382,23574.461836731542,246,0,0,0,0,246,3628516.1403971449,41834.914847900924,23574.461836731542]
[247,3604823.8062512297,41834.914847900924,18142.580701985724,23692.3341459152,247,0,0,0,0,247,3604823.8062512297,41834.914847900924,23692.3341459152]
[248,3581013.0104345852,41834.914847900924,18024.119031256148,23810.795816644775,248,0,0,0,0,248,3581013.0104345852,41834.914847900924,23810.795816644775]
[249,3557083.1606388572,41834.914847900924,17905.065052172926,23929.849795727998,249,0,0,0,0,249,3557083.1606388572,41834.914847900924,23929.849795727998]
[250,3533033.6615941506,41834.914847900924,17785.415803194286,24049.499044706638,250,0,0,0,0,250,3533033.6615941506,41834.914847900924,24049.499044706638]
[251,3508863.9150542202,41834.914847900924,17665.168307970755,24169.746539930169,251,0,0,0,0,251,3508863.9150542202,41834.914847900924,24169.746539930169]
[252,3484573.3197815903,41834.914847900924,17544.3195752711,24290.595272629824,252,0,0,0,0,252,3484573.3197815903,41834.914847900924,24290.595272629824]
[253,3460161.2715325975,41834.914847900924,17422.866598907953,24412.048248992971,253,0,0,0,0,253,3460161.2715325975,41834.914847900924,24412.048248992971]
[254,3435627.1630423595,41834.914847900924,17300.806357662987,24534.108490237937,254,0,0,0,0,254,3435627.1630423595,41834.914847900924,24534.108490237937]
[255,3410970.3840096705,41834.914847900924,17178.135815211797,24656.779032689126,255,0,0,0,0,255,3410970.3840096705,41834.914847900924,24656.779032689126]
[256,3386190.3210818181,41834.914847900924,17054.851920048353,24780.06292785257,256,0,0,0,0,256,3386190.3210818181,41834.914847900924,{"$f":"J405+E405","v":24780.06292785257}]
[257,{"$f":"B405-E406","v":3361286.3578393264},41834.914847900924,16930.951605409089,{"$f":"C406-D406","v":24903.963242491835},257,{"$f":"G405-J406","v":0},0,0,{"$f":"H406-I406","v":0},257,{"$f":"G406+B406","v":3361286.3578393264},41834.914847900924,24903.963242491835]
[{"$f":"A406+1","v":258},3336257.8747806223,{"$f":"-$H$61/12","v":41834.914847900924},{"$f":"$H$59/12*B406","v":16806.431789196631},25028.483058704292,{"$f":"F406+1","v":258},0,{"$f":"-$H$68/12","v":0},{"$f":"$H$66/12*G406","v":0},0,{"$f":"K406+1","v":258},3336257.8747806223,41834.914847900924,25028.483058704292]
[259,3311104.2493066243,41834.914847900924,16681.289373903113,25153.62547399781,259,0,0,0,0,259,3311104.2493066243,41834.914847900924,25153.62547399781]
[260,3285824.8557052566,41834.914847900924,16555.521246533121,25279.393601367803,260,0,0,0,0,260,3285824.8557052566,41834.914847900924,25279.393601367803]
[261,3260419.0651358818,41834.914847900924,16429.124278526284,25405.79056937464,261,0,0,0,0,261,3260419.0651358818,41834.914847900924,25405.79056937464]
[262,3234886.2456136602,41834.914847900924,16302.095325679409,25532.819522221514,262,0,0,0,0,262,3234886.2456136602,41834.914847900924,25532.819522221514]
[263,3209225.7619938278,41834.914847900924,16174.431228068301,25660.483619832623,263,0,0,0,0,263,3209225.7619938278,41834.914847900924,25660.483619832623]
[264,3183436.9759558961,41834.914847900924,16046.128809969139,25788.786037931786,264,0,0,0,0,264,3183436.9759558961,41834.914847900924,25788.786037931786]
[265,3157519.2459877748,41834.914847900924,15917.184879779481,25917.729968121443,265,0,0,0,0,265,3157519.2459877748,41834.914847900924,25917.729968121443]
[266,3131471.927369813,41834.914847900924,15787.596229938874,26047.31861796205,266,0,0,0,0,266,3131471.927369813,41834.914847900924,26047.31861796205]
[267,3105294.3721587611,41834.914847900924,15657.359636849065,26177.555211051858,267,0,0,0,0,267,3105294.3721587611,41834.914847900924,26177.555211051858]
[268,3078985.9291716539,41834.914847900924,15526.471860793807,26308.442987107119,268,0,0,0,0,268,3078985.9291716539,41834.914847900924,26308.442987107119]
[269,3052545.9439696111,41834.914847900924,15394.92964585827,26439.985202042655,269,0,0,0,0,269,3052545.9439696111,41834.914847900924,26439.985202042655]
[270,3025973.7588415584,41834.914847900924,15262.729719848056,26572.185128052868,270,0,0,0,0,270,3025973.7588415584,41834.914847900924,26572.185128052868]
[271,2999268.7127878652,41834.914847900924,15129.868794207792,26705.046053693131,271,0,0,0,0,271,2999268.7127878652,41834.914847900924,26705.046053693131]
[272,2972430.1415039035,41834.914847900924,14996.343563939326,26838.571283961595,272,0,0,0,0,272,2972430.1415039035,41834.914847900924,26838.571283961595]
[273,2945457.3773635221,41834.914847900924,14862.150707519519,26972.764140381405,273,0,0,0,0,273,2945457.3773635221,41834.914847900924,26972.764140381405]
[274,2918349.7494024388,41834.914847900924,14727.28688681761,27107.627961083315,274,0,0,0,0,274,2918349.7494024388,41834.914847900924,27107.627961083315]
[275,2891106.5833015502,41834.914847900924,14591.748747012194,27243.166100888731,275,0,0,0,0,275,2891106.5833015502,41834.914847900924,27243.166100888731]
[276,2863727.2013701573,41834.914847900924,14455.532916507751,27379.381931393174,276,0,0,0,0,276,2863727.2013701573,41834.914847900924,27379.381931393174]
[277,2836210.922529107,41834.914847900924,14318.636006850787,27516.278841050138,277,0,0,0,0,277,2836210.922529107,41834.914847900924,27516.278841050138]
[278,2808557.0622938517,41834.914847900924,14181.054612645536,27653.860235255386,278,0,0,0,0,278,2808557.0622938517,41834.914847900924,27653.860235255386]
[279,2780764.93275742,41834.914847900924,14042.785311469259,27792.129536431665,279,0,0,0,0,279,2780764.93275742,41834.914847900924,27792.129536431665]
[280,2752833.8425733061,41834.914847900924,13903.8246637871,27931.090184113826,280,0,0,0,0,280,2752833.8425733061,41834.914847900924,27931.090184113826]
[281,2724763.0969382715,41834.914847900924,13764.169212866531,28070.745635034393,281,0,0,0,0,281,2724763.0969382715,41834.914847900924,28070.745635034393]
[282,2696551.9975750619,41834.914847900924,13623.815484691359,28211.099363209563,282,0,0,0,0,282,2696551.9975750619,41834.914847900924,28211.099363209563]
[283,2668199.8427150361,41834.914847900924,13482.75998787531,28352.154860025614,283,0,0,0,0,283,2668199.8427150361,41834.914847900924,28352.154860025614]
[284,2639705.9270807104,41834.914847900924,13340.999213575182,28493.915634325742,284,0,0,0,0,284,2639705.9270807104,41834.914847900924,28493.915634325742]
[285,2611069.5418682131,41834.914847900924,13198.529635403553,28636.385212497371,285,0,0,0,0,285,2611069.5418682131,41834.914847900924,28636.385212497371]
[286,2582289.9747296534,41834.914847900924,13055.347709341066,28779.567138559858,286,0,0,0,0,286,2582289.9747296534,41834.914847900924,28779.567138559858]
[287,2553366.5097554009,41834.914847900924,12911.449873648267,28923.464974252656,287,0,0,0,0,287,2553366.5097554009,41834.914847900924,28923.464974252656]
[288,2524298.427456277,41834.914847900924,12766.832548777005,29068.082299123918,288,0,0,0,0,288,2524298.427456277,41834.914847900924,{"$f":"J437+E437","v":29068.082299123918}]
[289,2495085.0047456576,41834.914847900924,12621.492137281384,29213.422710619539,289,0,0,0,0,289,2495085.0047456576,41834.914847900924,29213.422710619539]
[290,2465725.514921485,41834.914847900924,12475.425023728289,29359.489824172633,290,0,0,0,0,290,2465725.514921485,41834.914847900924,29359.489824172633]
[291,2436219.2276481916,41834.914847900924,12328.627574607424,29506.287273293499,291,0,0,0,0,291,2436219.2276481916,41834.914847900924,29506.287273293499]
[292,2406565.4089385318,41834.914847900924,12181.096138240959,29653.818709659965,292,0,0,0,0,292,2406565.4089385318,41834.914847900924,29653.818709659965]
[293,2376763.3211353235,41834.914847900924,12032.82704469266,29802.087803208262,293,0,0,0,0,293,2376763.3211353235,41834.914847900924,29802.087803208262]
[294,2346812.2228930993,41834.914847900924,11883.816605676619,29951.098242224303,294,0,0,0,0,294,2346812.2228930993,41834.914847900924,29951.098242224303]
[295,2316711.369159664,41834.914847900924,11734.061114465496,30100.853733435426,295,0,0,0,0,295,2316711.369159664,41834.914847900924,30100.853733435426]
[296,2286460.0111575616,41834.914847900924,11583.556845798321,30251.358002102603,296,0,0,0,0,296,2286460.0111575616,41834.914847900924,30251.358002102603]
[297,2256057.3963654484,41834.914847900924,11432.300055787808,30402.614792113116,297,0,0,0,0,297,2256057.3963654484,41834.914847900924,30402.614792113116]
[298,2225502.7684993749,41834.914847900924,11280.286981827243,30554.627866073679,298,0,0,0,0,298,2225502.7684993749,41834.914847900924,30554.627866073679]
[299,2194795.3674939708,41834.914847900924,11127.513842496874,30707.401005404048,299,0,0,0,0,299,2194795.3674939708,41834.914847900924,30707.401005404048]
[300,2163934.4294835399,41834.914847900924,10973.976837469854,30860.938010431069,300,0,0,0,0,300,2163934.4294835399,41834.914847900924,30860.938010431069]
[301,2132919.1867830567,41834.914847900924,10819.672147417699,31015.242700483224,301,0,0,0,0,301,2132919.1867830567,41834.914847900924,31015.242700483224]
[302,2101748.8678690712,41834.914847900924,10664.595933915283,31170.31891398564,302,0,0,0,0,302,2101748.8678690712,41834.914847900924,31170.31891398564]
[303,2070422.6973605156,41834.914847900924,10508.744339345356,31326.170508555566,303,0,0,0,0,303,2070422.6973605156,41834.914847900924,31326.170508555566]
[304,2038939.8959994172,41834.914847900924,10352.113486802578,31482.801361098347,304,0,0,0,0,304,2038939.8959994172,41834.914847900924,31482.801361098347]
[305,2007299.6806315132,41834.914847900924,10194.699479997085,31640.215367903838,305,0,0,0,0,305,2007299.6806315132,41834.914847900924,31640.215367903838]
[306,1975501.26418677,41834.914847900924,10036.498403157566,31798.416444743358,306,0,0,0,0,306,1975501.26418677,41834.914847900924,31798.416444743358]
[307,1943543.8556598029,41834.914847900924,9877.5063209338496,31957.408526967076,307,0,0,0,0,307,1943543.8556598029,41834.914847900924,31957.408526967076]
[308,1911426.6600902011,41834.914847900924,9717.7192782990151,32117.195569601907,308,0,0,0,0,308,1911426.6600902011,41834.914847900924,32117.195569601907]
[309,1879148.8785427511,41834.914847900924,9557.1333004510052,32277.781547449918,309,0,0,0,0,309,1879148.8785427511,41834.914847900924,32277.781547449918]
[310,1846709.708087564,41834.914847900924,9395.7443927137556,32439.170455187166,310,0,0,0,0,310,1846709.708087564,41834.914847900924,32439.170455187166]
[311,1814108.3417801009,41834.914847900924,9233.5485404378196,32601.366307463104,311,0,0,0,0,311,1814108.3417801009,41834.914847900924,32601.366307463104]
[312,1781343.9686411005,41834.914847900924,9070.5417089005041,32764.373139000418,312,0,0,0,0,312,1781343.9686411005,41834.914847900924,32764.373139000418]
[313,1748415.7736364051,41834.914847900924,8906.7198432055029,32928.195004695423,313,0,0,0,0,313,1748415.7736364051,41834.914847900924,32928.195004695423]
[314,1715322.9376566862,41834.914847900924,8742.078868182025,33092.835979718897,314,0,0,0,0,314,1715322.9376566862,41834.914847900924,33092.835979718897]
[315,1682064.6374970686,41834.914847900924,8576.614688283431,33258.300159617495,315,0,0,0,0,315,1682064.6374970686,41834.914847900924,33258.300159617495]
[316,1648640.0458366531,41834.914847900924,8410.3231874853427,33424.591660415579,316,0,0,0,0,316,1648640.0458366531,41834.914847900924,33424.591660415579]
[317,1615048.3312179355,41834.914847900924,8243.200229183265,33591.714618717655,317,0,0,0,0,317,1615048.3312179355,41834.914847900924,33591.714618717655]
[318,1581288.6580261244,41834.914847900924,8075.2416560896781,33759.673191811249,318,0,0,0,0,318,1581288.6580261244,41834.914847900924,33759.673191811249]
[319,1547360.186468354,41834.914847900924,7906.4432901306218,33928.471557770303,319,0,0,0,0,319,1547360.186468354,41834.914847900924,33928.471557770303]
[320,1513262.0725527948,41834.914847900924,7736.80093234177,34098.113915559152,320,0,0,0,0,320,1513262.0725527948,41834.914847900924,{"$f":"J469+E469","v":34098.113915559152}]
[321,{"$f":"B469-E470","v":1478993.4680676579},41834.914847900924,7566.3103627639739,{"$f":"C470-D470","v":34268.604485136952},321,{"$f":"G469-J470","v":0},0,0,{"$f":"H470-I470","v":0},321,{"$f":"G470+B470","v":1478993.4680676579},41834.914847900924,34268.604485136952]
[{"$f":"A470+1","v":322},1444553.5205600953,{"$f":"-$H$61/12","v":41834.914847900924},{"$f":"$H$59/12*B470","v":7394.9673403382894},34439.947507562632,{"$f":"F470+1","v":322},0,{"$f":"-$H$68/12","v":0},{"$f":"$H$66/12*G470","v":0},0,{"$f":"K470+1","v":322},1444553.5205600953,41834.914847900924,34439.947507562632]
[323,1409941.3733149949,41834.914847900924,7222.7676028004771,34612.147245100445,323,0,0,0,0,323,1409941.3733149949,41834.914847900924,34612.147245100445]
[324,1375156.1653336689,41834.914847900924,7049.7068665749748,34785.207981325948,324,0,0,0,0,324,1375156.1653336689,41834.914847900924,34785.207981325948]
[325,1340197.0313124363,41834.914847900924,6875.7808266683451,34959.134021232581,325,0,0,0,0,325,1340197.0313124363,41834.914847900924,34959.134021232581]
[326,1305063.1016210977,41834.914847900924,6700.9851565621821,35133.929691338744,326,0,0,0,0,326,1305063.1016210977,41834.914847900924,35133.929691338744]
[327,1269753.5022813021,41834.914847900924,6525.3155081054883,35309.599339795437,327,0,0,0,0,327,1269753.5022813021,41834.914847900924,35309.599339795437]
[328,1234267.3549448077,41834.914847900924,6348.7675114065105,35486.14733649441,328,0,0,0,0,328,1234267.3549448077,41834.914847900924,35486.14733649441]
[329,1198603.7768716309,41834.914847900924,6171.3367747240391,35663.578073176883,329,0,0,0,0,329,1198603.7768716309,41834.914847900924,35663.578073176883]
[330,1162761.8809080881,41834.914847900924,5993.0188843581545,35841.895963542767,330,0,0,0,0,330,1162761.8809080881,41834.914847900924,35841.895963542767]
[331,1126740.7754647275,41834.914847900924,5813.8094045404405,36021.10544336048,331,0,0,0,0,331,1126740.7754647275,41834.914847900924,36021.10544336048]
[332,1090539.5644941502,41834.914847900924,5633.7038773236382,36201.210970577289,332,0,0,0,0,332,1090539.5644941502,41834.914847900924,36201.210970577289]
[333,1054157.3474687201,41834.914847900924,5452.6978224707509,36382.217025430175,333,0,0,0,0,333,1054157.3474687201,41834.914847900924,36382.217025430175]
[334,1017593.2193581627,41834.914847900924,5270.7867373436002,36564.128110557322,334,0,0,0,0,334,1017593.2193581627,41834.914847900924,36564.128110557322]
[335,980846.2706070526,41834.914847900924,5087.9660967908139,36746.948751110111,335,0,0,0,0,335,980846.2706070526,41834.914847900924,36746.948751110111]
[336,943915.58711218694,41834.914847900924,4904.2313530352631,36930.683494865661,336,0,0,0,0,336,943915.58711218694,41834.914847900924,36930.683494865661]
[337,906800.25019984692,41834.914847900924,4719.5779355609347,37115.33691233999,337,0,0,0,0,337,906800.25019984692,41834.914847900924,37115.33691233999]
[338,869499.33660294523,41834.914847900924,4534.0012509992348,37300.913596901686,338,0,0,0,0,338,869499.33660294523,41834.914847900924,37300.913596901686]
[339,832011.91843805905,41834.914847900924,4347.4966830147259,37487.4181648862,339,0,0,0,0,339,832011.91843805905,41834.914847900924,37487.4181648862]
[340,794337.06318234839,41834.914847900924,4160.059592190295,37674.85525571063,340,0,0,0,0,340,794337.06318234839,41834.914847900924,37674.85525571063]
[341,756473.83365035919,41834.914847900924,3971.6853159117422,37863.229531989178,341,0,0,0,0,341,756473.83365035919,41834.914847900924,37863.229531989178]
[342,718421.28797071008,41834.914847900924,3782.3691682517961,38052.545679649127,342,0,0,0,0,342,718421.28797071008,41834.914847900924,38052.545679649127]
[343,680178.47956266266,41834.914847900924,3592.1064398535505,38242.808408047371,343,0,0,0,0,343,680178.47956266266,41834.914847900924,38242.808408047371]
[344,641744.45711257507,41834.914847900924,3400.8923978133134,38434.022450087607,344,0,0,0,0,344,641744.45711257507,41834.914847900924,38434.022450087607]
[345,603118.26455023699,41834.914847900924,3208.7222855628752,38626.192562338052,345,0,0,0,0,345,603118.26455023699,41834.914847900924,38626.192562338052]
[346,564298.94102508726,41834.914847900924,3015.5913227511851,38819.323525149739,346,0,0,0,0,346,564298.94102508726,41834.914847900924,38819.323525149739]
[347,525285.52088231174,41834.914847900924,2821.4947051254362,39013.420142775489,347,0,0,0,0,347,525285.52088231174,41834.914847900924,39013.420142775489]
[348,486077.03363882238,41834.914847900924,2626.4276044115586,39208.487243489362,348,0,0,0,0,348,486077.03363882238,41834.914847900924,39208.487243489362]
[349,446672.50395911559,41834.914847900924,2430.3851681941119,39404.529679706815,349,0,0,0,0,349,446672.50395911559,41834.914847900924,39404.529679706815]
[350,407070.95163101028,41834.914847900924,2233.362519795578,39601.552328105347,350,0,0,0,0,350,407070.95163101028,41834.914847900924,39601.552328105347]
[351,367271.39154126443,41834.914847900924,2035.3547581550515,39799.560089745872,351,0,0,0,0,351,367271.39154126443,41834.914847900924,39799.560089745872]
[352,327272.83365106984,41834.914847900924,1836.3569577063222,39998.557890194599,352,0,0,0,0,352,327272.83365106984,41834.914847900924,39998.557890194599]
[353,287074.28297142428,41834.914847900924,1636.3641682553493,40198.550679645574,353,0,0,0,0,353,287074.28297142428,41834.914847900924,40198.550679645574]
[354,246674.73953838047,41834.914847900924,1435.3714148571214,40399.5434330438,354,0,0,0,0,354,246674.73953838047,41834.914847900924,40399.5434330438]
[355,206073.19838817144,41834.914847900924,1233.3736976919024,40601.541150209021,355,0,0,0,0,355,206073.19838817144,41834.914847900924,40601.541150209021]
[356,165268.64953221136,41834.914847900924,1030.3659919408572,40804.548855960064,356,0,0,0,0,356,165268.64953221136,41834.914847900924,40804.548855960064]
[357,124260.07793197149,41834.914847900924,826.34324766105681,41008.571600239869,357,0,0,0,0,357,124260.07793197149,41834.914847900924,41008.571600239869]
[358,83046.46347373043,41834.914847900924,621.3003896598575,41213.614458241063,358,0,0,0,0,358,83046.46347373043,41834.914847900924,41213.614458241063]
[359,41626.780943198159,41834.914847900924,415.23231736865216,41419.682530532271,359,0,0,0,0,359,41626.780943198159,41834.914847900924,41419.682530532271]
[360,1.3227690942585468E-8,41834.914847900924,208.13390471599081,41626.780943184931,360,0,0,0,0,360,1.3227690942585468E-8,41834.914847900924,41626.780943184931]

{"sheet":"Building Envelope Calculator","index":15,"n_rows":151,"n_cols":8,"rows_kept":151,"cut":false,"hidden":false,"merged":[[96,0,96,2],[109,0,109,2]]}
["Building Envelope Calculator"]
["Land Uses"]
["Streets",{"$f":"'Physical Inputs'!B22*(1-'Physical Inputs'!B24)","v":0}]
["Landscaping",{"$f":"'Physical Inputs'!B22*'Physical Inputs'!B26","v":0}]
["Land for Building and Parking",{"$f":"'Physical Inputs'!B22-'Building Envelope Calculator'!B4-B3","v":43560}]
["Total Lot Size",{"$f":"SUM(B3:B5)","v":43560}]
[]
["Maximum Building"]
["Maximum Building Square Footage",{"$f":"B5*'Physical Inputs'!B27","v":174240}]
["Maximum Building Footprint",{"$f":"B9/'Physical Inputs'!B27","v":43560}]
["Residential Underbuild",{"$f":"IF('Physical Inputs'!B37=\"Multifamily\",'Advanced Financial'!B21,1)","v":0.85}]
[]
["IF UNDERGROUND AND TUCK UNDER BUT NO SURFACE/STRUCTURE"]
[null,"Maximum Square Footage by Use","Maximum Underground or Surface Parking Spaces Possible","Maximum Required Parking Area for Full Build-out"]
[{"$f":"'Physical Inputs'!A37","v":"Residential"},{"$f":"($B$9-$B$23)*'Physical Inputs'!B39","v":121968},{"$f":"IF('Physical Inputs'!B59=0,0,(B15/('Physical Inputs'!B59/'Building Envelope Calculator'!B11))*'Physical Inputs'!B73)","v":140.85978260869564}]
[{"$f":"'Physical Inputs'!A40","v":"Retail"},{"$f":"($B$9-$B$23)*'Physical Inputs'!B40","v":30492},{"$f":"((B16/1000)*'Physical Inputs'!B74)","v":60.984000000000002}]
[{"$f":"'Physical Inputs'!A41","v":"Office"},{"$f":"($B$9-$B$23)*'Physical Inputs'!B41","v":0},{"$f":"((B17/1000)*'Physical Inputs'!B75)","v":0}]
[{"$f":"'Physical Inputs'!A42","v":"Industrial"},{"$f":"($B$9-$B$23)*'Physical Inputs'!B42","v":0},{"$f":"(B18/1000)*'Physical Inputs'!B76","v":0}]
[{"$f":"'Physical Inputs'!A43","v":"Public"},{"$f":"($B$9-$B$23)*'Physical Inputs'!B43","v":0},{"$f":"(B19/1000)*'Physical Inputs'!B77","v":0}]
["Educational",{"$f":"($B$9-$B$23)*'Physical Inputs'!B44","v":0},{"$f":"(B20/1000)*'Physical Inputs'!B78","v":0}]
[{"$f":"'Physical Inputs'!A45","v":"Hotel/Motel"},{"$f":"($B$9-$B$23)*'Physical Inputs'!B45","v":0},{"$f":"IF('Physical Inputs'!B68=0,0,(B21/('Physical Inputs'!B68/'Advanced Financial'!B22))*'Physical Inputs'!B79)","v":0}]
[{"$f":"'Physical Inputs'!A46","v":"Commercial Parking"},{"$f":"($B$9-$B$23)*'Physical Inputs'!B46*'Advanced Financial'!B23","v":0},{"$f":"B22/'Physical Inputs'!C98","v":0}]
["Internal parking",{"$f":"'Physical Inputs'!B83*B10","v":21780},{"$f":"B23/'Physical Inputs'!C98","v":83.769230769230774}]
["Total",{"$f":"SUM(B15:B23)","v":174240},{"$f":"SUM(C15:C21)+C23","v":285.61301337792645}]
["Total (subtracts internal and Commercial parking)",null,{"$f":"SUM(C15:C21)-SUM(C23)","v":118.07455183946487},{"$f":"C25*'Physical Inputs'!C98","v":30699.383478260868}]
[]
["Maximum Parking Spaces Required",{"$f":"SUM(C15:C21)","v":201.84378260869565}]
["Underground Parking Spaces Provided",{"$f":"IF(AND('Physical Inputs'!B86>0,'Physical Inputs'!B89=\"yes\"),(('Physical Inputs'!B22*'Physical Inputs'!B86)/'Physical Inputs'!C96),IF('Physical Inputs'!B86>0,(('Physical Inputs'!B22*'Physical Inputs'!B86)/'Physical Inputs'!C98),0))","v":0}]
["Internal / Tuck-Under Spaces Provided",{"$f":"C23","v":83.769230769230774}]
["Surplus / Deficit",{"$f":"(B28+B29)-B27","v":-118.07455183946487}]
[]
["External Spaces Required Per 1000 SF of Building Envelope",{"$f":"(C25/(B24/1000))","v":0.67765468227424741},{"$f":"(C24/((B24-B23)/1000))","v":1.8733635929288104}]
["Maximum Spaces Underground",{"$f":"(B6/'Physical Inputs'!C98)*'Physical Inputs'!B86","v":0}]
["Adjusted Spaces Underground",{"$f":"IF(C25<B33,C25,B33)","v":0}]
["Remainder Required Per 1000 SF Surface or Structure",{"$f":"IF(B32<0,0,B32)","v":0.67765468227424741}]
[]
["Total Parking and Building Footprint (Lot minus landscaping)",{"$f":"B5","v":43560}]
["Square Feet of Building that can be supported by tuck under and UG parking",{"$f":"IF(B32=0,0,((1000/B32)*B34))","v":0}]
["Adjusted SF of Building Represented by Building with tuck under and UG Parking",{"$f":"IF(B38>B9,B9,B38)","v":0}]
["Footprint of Building Represented by tuck under and UG Parking",{"$f":"B39/'Physical Inputs'!B27","v":0}]
["Adjustment if Over Total Footprint",{"$f":"IF(B40>B37,B37,B40)","v":0}]
["Remaining Part of Footprint Needed for Building and Above Grade Parking (This is \"unused\" if there isn't any other parking added)",{"$f":"B37-B41","v":43560}]
[]
["Square Footage by Use (if no surface/structured parking)","Building SF Possible with Underground and Tuck-Under ","Spaces Required"]
[{"$f":"A15","v":"Residential"},{"$f":"IF($B$27>=($B$28+$B$29),($B$39*D45),B15)","v":0},{"$f":"IF('Physical Inputs'!B59=0,0,(B45/('Physical Inputs'!B59/'Building Envelope Calculator'!B11))*'Physical Inputs'!B73)","v":0},{"$f":"(1-$D$53)*'Physical Inputs'!B39","v":0.70000000000000007}]
["Retail",0,{"$f":"(B46/1000)*'Physical Inputs'!B74","v":0},{"$f":"(1-$D$53)*'Physical Inputs'!B40","v":0.17500000000000002}]
["Office",0,{"$f":"(B47/1000)*'Physical Inputs'!B75","v":0},{"$f":"(1-$D$53)*'Physical Inputs'!B41","v":0}]
["Industrial",0,{"$f":"(B48/1000)*'Physical Inputs'!B76","v":0},{"$f":"(1-$D$53)*'Physical Inputs'!B42","v":0}]
["Public",0,{"$f":"(B49/1000)*'Physical Inputs'!B77","v":0},{"$f":"(1-$D$53)*'Physical Inputs'!B43","v":0}]
["Educational",0,{"$f":"(B50/1000)*'Physical Inputs'!B78","v":0},{"$f":"(1-$D$53)*'Physical Inputs'!B44","v":0}]
["Hotel/Motel",0,{"$f":"IF('Physical Inputs'!B68=0,0,(B51/('Physical Inputs'!B68/'Advanced Financial'!B22))*'Physical Inputs'!B79)","v":0},{"$f":"(1-$D$53)*'Physical Inputs'!B45","v":0}]
["Commercial Parking",0,{"$f":"B52/'Physical Inputs'!C98","v":0},{"$f":"(1-$D$53)*'Physical Inputs'!B46","v":0}]
["Internal parking",0,{"$f":"B53/'Physical Inputs'!C98","v":0},{"$f":"IF('Physical Inputs'!B83=0,0,1/('Physical Inputs'!B27/'Physical Inputs'!B83))","v":0.125}]
[null,{"$f":"SUM(B45:B53)","v":0},{"$f":"SUM(C45:C52)","v":0},"spaces required"]
[null,null,{"$f":"SUM(C45:C51)-C53","v":0},"spaces not internal"]
[]
[]
["Building Footprint",{"$f":"B39/'Physical Inputs'!B27","v":0}]
["Landscaping Footprint",{"$f":"B4","v":0}]
["Parking Footprint",{"$f":"0","v":0}]
["Unused Footprint",{"$f":"B6-(SUM(B58:B60))","v":43560}]
[]
["IF SURFACE/STRUCTURE"]
[null,"Parking Footprint Ratio","Building Footprint Ratio"]
["Space Per Building 1000 sf",{"$f":"B35*'Physical Inputs'!C98","v":176.19021739130432},1000]
["Footprint Space Per Building SF (divide by number of levels)",{"$f":"IF('Physical Inputs'!B82=0,0,B65/'Physical Inputs'!B82)","v":176.19021739130432},{"$f":"(C65/'Physical Inputs'!B27)","v":250},{"$f":"(B42/(B66+C66))","v":102.20788329358957},"building to available lot area factor (lot minus landscaping)"]
[null,{"$f":"B66*D66","v":18008.029176602609},{"$f":"C66*D66","v":25551.970823397394}]
[]
["ABOVE GRADE PARKING?",{"$f":"IF(OR('Physical Inputs'!B82>0,'Physical Inputs'!B82+'Physical Inputs'!B86+'Physical Inputs'!B83=0),1,0)","v":1}]
["Above Grade Parking Footprint",{"$f":"IF(B69=1,B67,0)","v":18008.029176602609}]
["Building Footprint (That Needs to Supported by the Above Grade Parking)",{"$f":"IF(B69=1,C67,0)","v":25551.970823397394}]
["Adjusted Total Building Footprint",{"$f":"IF(B69=1,(B41+B71),B41)","v":25551.970823397394},"this adds the building footprint represented by the underground and above grade parking"]
["Above Grade Parking Footprint",{"$f":"B70","v":18008.029176602609}]
["Unused Space",{"$f":"B5-(B72+B73)","v":0}]
["Adjusted Maximum Building Square Footage",{"$f":"B72*'Physical Inputs'!B27","v":102207.88329358958}]
[]
[]
["Building Footprint",{"$f":"B72","v":25551.970823397394}]
["Landscaping Footprint",{"$f":"B4","v":0}]
["Parking Footprint",{"$f":"B73","v":18008.029176602609}]
["Unused Footprint",{"$f":"B74","v":0}]
[]
["Square Footage by Use (if surface/structured parking)","Building SF Possible (with no underbuild)","Spaces Required"]
[{"$f":"A15","v":"Residential"},{"$f":"($B$75-$B$92)*'Physical Inputs'!B39","v":71545.518305512713},{"$f":"IF('Physical Inputs'!B59=0,0,(B84/('Physical Inputs'!B59/'Building Envelope Calculator'!B11))*'Physical Inputs'!B73)","v":82.627296956094824}]
["Retail",{"$f":"($B$75-$B$92)*'Physical Inputs'!B40","v":17886.379576378178},{"$f":"(B85/1000)*'Physical Inputs'!B74","v":35.772759152756358}]
["Office",{"$f":"($B$75-$B$92)*'Physical Inputs'!B41","v":0},{"$f":"(B86/1000)*'Physical Inputs'!B75","v":0}]
["Industrial",{"$f":"($B$75-$B$92)*'Physical Inputs'!B42","v":0},{"$f":"(B87/1000)*'Physical Inputs'!B76","v":0}]
["Public",{"$f":"($B$75-$B$92)*'Physical Inputs'!B43","v":0},{"$f":"(B88/1000)*'Physical Inputs'!B77","v":0}]
["Educational",{"$f":"($B$75-$B$92)*'Physical Inputs'!B44","v":0},{"$f":"(B89/1000)*'Physical Inputs'!B78","v":0}]
["Hotel/Motel",{"$f":"($B$75-$B$92)*'Physical Inputs'!B45","v":0},{"$f":"IF('Physical Inputs'!B68=0,0,(B90/('Physical Inputs'!B68/'Advanced Financial'!B22))*'Physical Inputs'!B79)","v":0}]
["Commercial Parking",{"$f":"($B$75-$B$92)*'Physical Inputs'!B46","v":0},{"$f":"B91/'Physical Inputs'!C98","v":0}]
["Internal parking",{"$f":"(B75/'Physical Inputs'!B27)*'Physical Inputs'!B83","v":12775.985411698697},{"$f":"B92/'Physical Inputs'!C98","v":49.138405429610373},"spaces required"]
["Total",{"$f":"SUM(B84:B92)","v":102207.88329358959},{"$f":"SUM(C84:C89)","v":118.40005610885117},"spaces not internal"]
[null,null,{"$f":"C93-C92","v":69.261650679240802}]
[]
[]
["Square Footage by Use (without Underbuild)"]
["SUMMARY","SF","PARKING SPACES"]
[{"$f":"A84","v":"Residential"},{"$f":"IF($B$69>0,B84,B45)","v":71545.518305512713},{"$f":"IF($B$30>=0,C15,C84)","v":82.627296956094824}]
["Retail",17886.379576378178,35.772759152756358]
["Office",0,0]
["Industrial",0,0]
["Public",0,0]
["Educational",0,0]
["Hotel/Motel",0,0]
["Commercial Parking",0,0]
["Internal parking",12775.985411698697,49.138405429610373]
["Total",{"$f":"SUM(B99:B107)","v":102207.88329358959}]
[]
["Square Footage by Use (with Underbuild)"]
[]
[null,null,"Parking Spaces"]
[{"$f":"A99","v":"Residential"},{"$f":"B99*'Physical Inputs'!$B$28","v":46504.586898583264},{"$f":"C99*'Physical Inputs'!$B$28","v":53.707743021461638}]
["Retail",{"$f":"B100*'Physical Inputs'!$B$28","v":11626.146724645816},{"$f":"C100*'Physical Inputs'!$B$28","v":23.252293449291635}]
["Office",{"$f":"B101*'Physical Inputs'!$B$28","v":0},{"$f":"C101*'Physical Inputs'!$B$28","v":0}]
["Industrial",{"$f":"B102*'Physical Inputs'!$B$28","v":0},{"$f":"C102*'Physical Inputs'!$B$28","v":0}]
["Public",{"$f":"B103*'Physical Inputs'!$B$28","v":0},{"$f":"C103*'Physical Inputs'!$B$28","v":0}]
["Educational",{"$f":"B104*'Physical Inputs'!$B$28","v":0},{"$f":"C104*'Physical Inputs'!$B$28","v":0}]
["Hotel/Motel",{"$f":"B105*'Physical Inputs'!$B$28","v":0},{"$f":"C105*'Physical Inputs'!$B$28","v":0}]
["Commercial Parking",{"$f":"B106*'Physical Inputs'!$B$28","v":0},{"$f":"C106*'Physical Inputs'!$B$28","v":0}]
[{"$f":"A107","v":"Internal parking"},{"$f":"B107*'Physical Inputs'!$B$28","v":8304.3905176041535},null,{"$f":"B121/'Physical Inputs'!C98","v":31.939963529246743},"spaces required by building uses"]
["Total",{"$f":"SUM(B113:B121)","v":66435.124140833243},{"$f":"SUM(C113:C119)","v":76.960036470753266}]
[]
[]
["Pre-Underbuild"]
["Building Footprint",{"$f":"IF($B$69>0,B78,B58)","v":25551.970823397394}]
["Landscaping Footprint",{"$f":"IF($B$69>0,B79,B59)","v":0}]
["Parking Footprint",{"$f":"IF($B$69>0,B80,B60)","v":18008.029176602609}]
["Unused Footprint",{"$f":"IF($B$69>0,B81,B61)","v":0}]
[]
[]
["Post-Underbuild"]
["Building Footprint",{"$f":"B126","v":25551.970823397394}]
["Landscaping Footprint",{"$f":"B127","v":0}]
["Parking Footprint",{"$f":"G147","v":11705.218964791697}]
["Unused Footprint",{"$f":"B129+(B128-G147)","v":6302.8102118109127}]
[]
[]
["Spaces"]
["Surface/Structured",{"$f":"(C151-(B141+B143))","v":45.020072941506527}]
["Underground",{"$f":"IF(B148-D151>0,B148-D151,0)","v":0}]
["Commercial Parking",{"$f":"C120","v":0}]
["Internal (Tuck Under or Sandwich)",{"$f":"B150","v":31.939963529246743}]
[]
[]
["Parking","SPACES PROVIDED","SPACES REQUIRED","EXCESS PARKING","EXCESS PARKING ELIMINATED",null,"CALCULATE NEW SF OF PARKING"]
["Surface/Structured",{"$f":"IF(B69>0,(B73*'Physical Inputs'!B82)/'Physical Inputs'!C98,0)","v":69.261650679240802},null,null,null,{"$f":"B140*'Physical Inputs'!C98","v":11705.218964791697},{"$f":"IF(F147<'Physical Inputs'!C98,0,(F147/'Physical Inputs'!B82))","v":11705.218964791697},"adjusted parking footprint"]
["Underground",{"$f":"B28","v":0},null,null,null,null,{"$f":"(B141*'Physical Inputs'!C98)/B6","v":0},"adjusted number of parking levels"]
["Commercial Parking",{"$f":"B142","v":0},{"$f":"B142","v":0},null,null,null,{"$f":"B142*'Physical Inputs'!C98","v":0}]
["Internal (Tuck Under or Sandwich)",{"$f":"D121","v":31.939963529246743},null,null,null,null,{"$f":"B143","v":31.939963529246743}]
["Total",{"$f":"SUM(B147:B148)+B150","v":101.20161420848754},{"$f":"IF('Physical Inputs'!B86+'Physical Inputs'!B82+'Physical Inputs'!B83=0,0,SUM(C113:C119))","v":76.960036470753266},{"$f":"B151-C151","v":24.241577737734275},{"$f":"SUM(B140:B143)","v":76.960036470753266}]

{"sheet":"Development Costs","index":16,"n_rows":47,"n_cols":7,"rows_kept":47,"cut":false,"hidden":false,"merged":[[39,6,44,6]]}
["PROJECT DEVELOPMENT COSTS"]
[]
["Pre Development Costs"]
[null,"due diligence",null,null,{"$f":"-'Advanced Financial'!B39","v":0}]
[null,"land carry (% of raw land cost)",{"$f":"'Advanced Financial'!B40","v":0.05},null,{"$f":"C5*E8*1","v":0}]
[null,"land entitlement / legal fees (% raw land)",{"$f":"'Advanced Financial'!B41","v":0.02},null,{"$f":"(C6*E8)","v":0}]
[null,"professional fees (% of hard costs)",{"$f":"'Advanced Financial'!B42","v":0.05},null,{"$f":"(C7*SUM(E12:E23))","v":-474673.47664469085}]
[null,"Raw land",null,null,{"$f":"-'Basic Financial'!B30","v":0}]
[]
["Development Costs"]
[null,"Building Construction Costs"]
[null,"Demolition Costs",null,null,{"$f":"-'Advanced Financial'!B45","v":0}]
[null,"Site Development Costs",{"$f":"'Advanced Financial'!B46","v":0},null,{"$f":"-('Physical Inputs'!B22*C13)","v":0}]
[null,"Brownfield Remediation Costs $/sf",{"$f":"'Advanced Financial'!B47","v":0},null,{"$f":"-C14*'Physical Inputs'!B22","v":0}]
[null,"Residential Construction Costs $/sf",{"$f":"'Basic Financial'!B20","v":160},null,{"$f":"-C15*'Physical Outputs'!B28","v":-7440733.9037733227}]
[null,"Retail Construction Costs $/sf",{"$f":"'Basic Financial'!B21","v":110},null,{"$f":"-C16*'Physical Outputs'!B29","v":-1278876.1397110398}]
[null,"Office Construction Costs $/sf",{"$f":"'Basic Financial'!B22","v":95},null,{"$f":"-C17*'Physical Outputs'!B30","v":0}]
[null,"Industrial Construction Costs $/sf",{"$f":"'Basic Financial'!B23","v":95},null,{"$f":"-C18*'Physical Outputs'!B31","v":0}]
[null,"Public Construction Costs $/sf",{"$f":"'Basic Financial'!B24","v":95},null,{"$f":"-C19*'Physical Outputs'!B32","v":0}]
[null,"Education Construction Costs $/sf",{"$f":"'Basic Financial'!B25","v":100},null,{"$f":"-C20*'Physical Outputs'!B33","v":0}]
[null,"Hotel/Motel Construction Costs $/sf",{"$f":"'Basic Financial'!B26","v":120},null,{"$f":"-C21*'Physical Outputs'!B34","v":0}]
[null,"Additional Infrastructure enhancement costs",null,null,{"$f":"-'Advanced Financial'!B48","v":0}]
[null,"Parking Construction",null,null,{"$f":"(-'Basic Financial'!B64*'Physical Outputs'!B54)+(-'Basic Financial'!B65*'Physical Outputs'!B55)+(-'Basic Financial'!B66*'Physical Outputs'!B56)+(-'Basic Financial'!B67*'Physical Outputs'!B58)+(-'Basic Financial'!B27*'Physical Outputs'!B57)","v":-773859.4894094544}]
[]
[null,"Indirect Costs "]
[null,"impact fees",null,null,{"$f":"-'Advanced Financial'!B51*'Physical Outputs'!D37+-('Advanced Financial'!B52*'Physical Outputs'!E37)","v":-214830.97208584659}]
[null,"building permits",null,null,{"$f":"-'Advanced Financial'!B53","v":-5000}]
[null,"insurance during construction",null,null,{"$f":"'Advanced Financial'!B55*SUM('Development Costs'!E4:E23)","v":-99681.430095385076}]
[null,"taxes during construction (% raw land)",null,null,{"$f":"-'Advanced Financial'!B54*'Basic Financial'!B30","v":0}]
[]
["Developer Fee",null,null,null,{"$f":"'Advanced Financial'!B56*SUM(E12:E29)","v":-392519.27740300196}]
[]
["Contingency",null,null,null,{"$f":"'Advanced Financial'!B57*SUM(E12:E23)","v":-949346.95328938169}]
[]
["SUBTOTAL DEVELOPMENT & LAND COSTS",null,null,null,{"$f":"SUM(E4:E33)","v":-11629521.642412124}]
[]
["Cost Allocation"]
[null,"Development and Land Costs (Excluding Parking)","Parking Costs","Total Costs by Use"]
[{"$f":"'Physical Inputs'!A73","v":"Residential"},{"$f":"($E$35-$E$23)*('Physical Inputs'!B39/SUM('Physical Inputs'!B$39:B$46))","v":-8684529.7224021368},{"$f":"IFERROR(('Physical Outputs'!B43/'Physical Outputs'!$B$51),0)*'Development Costs'!$E$23","v":-540049.72577835491},{"$f":"SUM(B39:C39)","v":-9224579.4481804911},{"$f":"D39/$D$47","v":0.79320368729002899}]
[{"$f":"'Physical Inputs'!A74","v":"Retail"},{"$f":"($E$35-$E$23)*('Physical Inputs'!B40/SUM('Physical Inputs'!B$39:B$46))","v":-2171132.4306005342},{"$f":"IFERROR(('Physical Outputs'!B44/'Physical Outputs'!$B$51),0)*'Development Costs'!$E$23","v":-233809.76363109957},-2404942.1942316336,0.20679631270997104,null,"need to exclude parking from getting counted in development costs.  It's parking only"]
[{"$f":"'Physical Inputs'!A75","v":"Office"},{"$f":"($E$35-$E$23)*('Physical Inputs'!B41/SUM('Physical Inputs'!B$39:B$46))","v":0},{"$f":"IFERROR(('Physical Outputs'!B45/'Physical Outputs'!$B$51),0)*'Development Costs'!$E$23","v":0},0,0]
[{"$f":"'Physical Inputs'!A76","v":"Industrial"},{"$f":"($E$35-$E$23)*('Physical Inputs'!B42/SUM('Physical Inputs'!B$39:B$46))","v":0},{"$f":"IFERROR(('Physical Outputs'!B46/'Physical Outputs'!$B$51),0)*'Development Costs'!$E$23","v":0},0,0]
[{"$f":"'Physical Inputs'!A77","v":"Public"},{"$f":"($E$35-$E$23)*('Physical Inputs'!B43/SUM('Physical Inputs'!B$39:B$46))","v":0},{"$f":"IFERROR(('Physical Outputs'!B47/'Physical Outputs'!$B$51),0)*'Development Costs'!$E$23","v":0},0,0]
[{"$f":"'Physical Inputs'!A78","v":"Educational"},{"$f":"($E$35-$E$23)*('Physical Inputs'!B44/SUM('Physical Inputs'!B$39:B$46))","v":0},{"$f":"IFERROR(('Physical Outputs'!B48/'Physical Outputs'!$B$51),0)*'Development Costs'!$E$23","v":0},0,0]
[{"$f":"'Physical Inputs'!A79","v":"Hotel/Motel"},{"$f":"($E$35-$E$23)*('Physical Inputs'!B45/SUM('Physical Inputs'!B$39:B$46))","v":0},{"$f":"IFERROR(('Physical Outputs'!B49/'Physical Outputs'!$B$51),0)*'Development Costs'!$E$23","v":0},0,0]
["Commercial Parking",{"$f":"($E$35-$E$23)*('Physical Inputs'!B46/SUM('Physical Inputs'!B$39:B$46))","v":0},{"$f":"IFERROR(('Physical Outputs'!B50/'Physical Outputs'!$B$51),0)*'Development Costs'!$E$23","v":0},0,0]
["Total",{"$f":"SUM(B39:B46)","v":-10855662.153002672},{"$f":"SUM(C39:C46)","v":-773859.48940945452},{"$f":"SUM(D39:D46)","v":-11629521.642412124}]

{"sheet":"Scenario Spreadsheet","index":17,"n_rows":7,"n_cols":59,"rows_kept":7,"cut":false,"hidden":false,"merged":[[2,41,2,43],[2,44,2,49],[2,50,2,52],[2,53,2,55],[2,26,2,27],[2,29,2,31],[2,32,2,34],[2,35,2,37],[2,38,2,40],[2,24,2,25],[1,0,2,0],[2,1,2,7],[2,16,2,19],[2,20,2,23],[2,8,2,15]]}
[]
["Outputs for Envision Tomorrow Scenario Spreadsheet",null,null,null,null,null,null,null,null,null,null,null,null,null,null,null,null,null,null,null,null,null,null,null,null,null,null,null,null,null," "]
[null,null,null,null,null,null,null,null,"Building Square Footage Mix (%)",null,null,null,null,null,null,null,"Residential",null,null,null,"Household",null,null,null,"Residential Rent",null,"Residential Sales Price",null,"Employment","Retail",null,null,"Office",null,null,"Industrial",null,null,"Public / Civic",null,null,"Educational",null,null,"Hotel / Hospitality",null,null,null,null,null,"Commercial Parking",null,null,"Parking",null,null,"Land Cost","Project Value","Subsidy"]
["Building Name","Lot Size","Building Lot Coverage","Landscaping Lot Coverage","Parking Lot Coverage","Height (Stories)","Floor Area Ratio (FAR)","Total Bldg Sq Ft","Residential","Retail","Office","Industrial","Public/Civic","Educational","Hotel / Hospitality","Commercial Parking","Residential Sq Ft","Net Sq Ft per Unit","Gross Sq Ft per Unit","Dwelling Units / Acre","Type of Housing","Percent Renter","Percent Owner","Estimated Household Income","Rent ($/SqFt)","Avg Rent ($/Mo.)","Sales Price ($/SqFt)","Avg Sales Price ($)","Total Jobs / Acre","Retail Gross Sq Ft","Space per  Employee","Retail Employees / Acre","Office Gross Sq Ft","Space per Employee","Office Employees / Acre","Industrial Gross Sq Ft","Space per Employee","Industrial Employees / Acre","Public / Civic Gross Sq Ft","Space per Employee","Public / Civic Employees / Acre","Educational Gross Sq Ft","Space per Employee","Educational Employees / Acre","Hospitality Gross Sq Ft","Space per Employee","Hospitality Employees / Acre","Net Space per Hotel Room","Gross Space per Hotel Room","Hotel Rooms / Acre","Shared Parking Gross Sq Ft","Space per Employee","Shared Parking Employees/Acre","Parking Spaces","Parking SqFt","Parking Cost ($)","Land Cost ($/SqFt)","Project Value ($)","Subsidy ($)"]
[{"$f":"'Physical Inputs'!B20","v":"Mixed-Use Building"},{"$f":"'Physical Inputs'!B22","v":43560},{"$f":"'Physical Outputs'!B20/'Physical Inputs'!B22","v":0.58659253497239194},{"$f":"('Physical Outputs'!B21+'Physical Outputs'!B23)/'Physical Inputs'!B22","v":0.14469261275966283},{"$f":"'Physical Outputs'!B22/'Physical Inputs'!B22","v":0.26871485226794528},{"$f":"'Physical Inputs'!B27","v":4},{"$f":"('Physical Outputs'!B37-'Physical Outputs'!B36)/'Physical Inputs'!B22","v":1.3344980170621921},{"$f":"'Physical Outputs'!B37-'Physical Outputs'!B36","v":58130.733623229091},{"$f":"'Physical Inputs'!B39","v":0.8},{"$f":"'Physical Inputs'!B40","v":0.2},{"$f":"'Physical Inputs'!B41","v":0},{"$f":"'Physical Inputs'!B42","v":0},{"$f":"'Physical Inputs'!B43","v":0},{"$f":"'Physical Inputs'!B44","v":0},{"$f":"'Physical Inputs'!B45","v":0},{"$f":"'Physical Inputs'!B46","v":0},{"$f":"I5*H5","v":46504.586898583279},{"$f":"IF('Physical Outputs'!C28=0,0,('Physical Outputs'!C28/'Physical Outputs'!D28))","v":920},{"$f":"IF('Physical Outputs'!B28=0,0,('Physical Outputs'!B28/'Physical Outputs'!D28))","v":1082.3529411764705},{"$f":"'Physical Outputs'!F37","v":42.966194417169319},{"$f":"IF(Q5=0,\"\",IF('Physical Inputs'!B37=\"Single Family\",\"SF\",IF('Physical Inputs'!B37=\"Multifamily\",\"MF\",IF('Physical Inputs'!B37=\"Townhome\",\"TH\",IF('Physical Inputs'!B37=\"Mobile Home\",\"MH\",IF('Physical Inputs'!B37=\"None\",\"\"))))))","v":"MF"},{"$f":"IF('Physical Inputs'!B38=\"Owner\",0,IF('Physical Inputs'!B38=\"Renter\",1,IF('Physical Inputs'!B38=\"None\",0)))","v":1},{"$f":"IF(V5=\"\",0,1-V5)","v":0},{"$f":"IF(V5=1,Z5*12*3,IF(V5=0,AB5*0.006*12*3,IF(OR(V5>0,V5<1),AVERAGE(Z5*12*3,AB5*0.006*12*3))))","v":49680},{"$f":"IF(RentalPct>0,'Basic Financial'!B49,0)","v":1.5},{"$f":"R5*Y5","v":1380},{"$f":"IF(W5>0,'Basic Financial'!B52,0)","v":0},{"$f":"AA5*R5","v":0},{"$f":"'Physical Outputs'!G37","v":9.3307758624765782},{"$f":"J5*H5","v":11626.14672464582},{"$f":"'Physical Inputs'!B62","v":1246},{"$f":"IF(AE5=0,0,AD5/AE5)","v":9.33077586247658},{"$f":"K5*H5","v":0},{"$f":"'Physical Inputs'!B63","v":434},{"$f":"IF(AH5=0,0,AG5/AH5)","v":0},{"$f":"L5*$H$5","v":0},{"$f":"'Physical Inputs'!B64","v":2306},{"$f":"IF(AK5=0,0,AJ5/AK5)","v":0},{"$f":"O5*$H$5","v":0},{"$f":"'Physical Inputs'!B65","v":800},{"$f":"IF(AN5=0,0,AM5/AN5)","v":0},{"$f":"N5*$H$5","v":0},{"$f":"'Physical Inputs'!B66","v":800},{"$f":"IF(AQ5=0,0,AP5/AQ5)","v":0},{"$f":"O5*$H$5","v":0},{"$f":"'Physical Inputs'!B67","v":1000},{"$f":"'Physical Outputs'!F34","v":0},{"$f":"IF('Physical Outputs'!C34=0,0,('Physical Outputs'!C34/'Physical Outputs'!D34))","v":0},{"$f":"IF('Physical Outputs'!B34=0,0,('Physical Outputs'!B34/'Physical Outputs'!D34))","v":0},{"$f":"IF(AW5=0,0,AS5/AW5)","v":0},{"$f":"P5*$H$5","v":0},{"$f":"'Physical Inputs'!B69","v":20000},{"$f":"'Physical Outputs'!E35","v":0},{"$f":"'Physical Outputs'!B51","v":76.960036470753266},{"$f":"'Physical Outputs'!C51","v":20009.609482395852},{"$f":"-'Basic Financial'!B72","v":773859.4894094544},{"$f":"'Basic Financial'!C30","v":0},{"$f":"-'Basic Financial'!B73","v":11629521.642412124},{"$f":"IF('Basic Financial'!B33>0,'Basic Financial'!B33,'Basic Financial'!B34)","v":0}]
[]
[null,null,null,null,null,null,"Does not include internal parking","Gross sf w/o internal parking",null,null,null,null,null,null,null,null,null,"Averages market rate and affordable unit size","Averages market rate and affordable unit size"]

{"sheet":"PRINT_SUMMARY","index":18,"n_rows":61,"n_cols":14,"rows_kept":61,"cut":false,"hidden":false,"merged":[]}
[null,{"$f":"'Physical Inputs'!B20","v":"Mixed-Use Building"}]
[null,{"$f":"'Physical Inputs'!B21","v":"Your City, USA"}]
[]
[]
[null,"BUILDING FORM"]
[null,"Lot area",null,null,{"$f":"'Physical Inputs'!B22","v":43560},"sf"]
[null,"Lot area",null,null,{"$f":"'Physical Inputs'!B23","v":1},"acres"]
[null,"Building Footprint",null,null,{"$f":"'Physical Outputs'!B20","v":25551.970823397394},"sf"]
[null,"Parking Footprint (Adjacent)",null,null,{"$f":"'Physical Outputs'!B22","v":11705.218964791697},"sf"]
[null,"Height",null,null,{"$f":"'Physical Inputs'!B27","v":4},"stories"]
[null,"Floor-area ratio",null,null,{"$f":"'Physical Inputs'!B6","v":1.5251405909282196},"FAR"]
[]
[]
[null,"DEVELOPMENT PROGRAM"]
[null,"Use",null,null,"Gross","Net"]
[null,"Residential",null,null,{"$f":"'Physical Outputs'!B28","v":46504.586898583264},{"$f":"'Physical Outputs'!C28","v":39528.898863795774}]
[null,"Retail",null,null,{"$f":"'Physical Outputs'!B29","v":11626.146724645816},{"$f":"'Physical Outputs'!C29","v":9882.2247159489434}]
[null,"Office",null,null,{"$f":"'Physical Outputs'!B30","v":0},{"$f":"'Physical Outputs'!C30","v":0}]
[null,"Industrial",null,null,{"$f":"'Physical Outputs'!B31","v":0},{"$f":"'Physical Outputs'!C31","v":0}]
[null,"Public",null,null,{"$f":"'Physical Outputs'!B32","v":0},{"$f":"'Physical Outputs'!C32","v":0}]
[null,"Educational",null,null,{"$f":"'Physical Outputs'!B33","v":0},{"$f":"'Physical Outputs'!C33","v":0}]
[null,"Hotel/Motel",null,null,{"$f":"'Physical Outputs'!B34","v":0},{"$f":"'Physical Outputs'!C34","v":0}]
[null,"Internal Parking",null,null,{"$f":"'Physical Outputs'!B36","v":8304.3905176041535},{"$f":"'Physical Outputs'!C36","v":8304.3905176041535}]
[]
[]
[null,"UNITS AND EMPLOYEES"]
[null,"Housing Units",null,null,{"$f":"'Physical Outputs'!D37","v":42.966194417169319},{"$f":"IF('Physical Outputs'!F37=0,\"N/A\",'Physical Outputs'!F37)","v":42.966194417169319},"/acre"]
[null,"Average unit size",null,null,{"$f":"IF(F27=\"N/A\",\"N/A\",'Physical Inputs'!B58)","v":0},"sf"]
[null,"Employees",null,null,{"$f":"'Physical Inputs'!B3","v":9.3307758624765782},{"$f":"'Physical Outputs'!G37","v":9.3307758624765782},"/acre"]
[]
[]
[null,"PARKING & OPEN SPACE",null,null,null,null,null,null,"RENTS AND SALES PRICES"]
[null,"Residential",null,null,{"$f":"'Physical Outputs'!B43","v":53.707743021461638},{"$f":"'Physical Inputs'!B73","v":1.25},"/ per unit",null,"Residential Unit Sales Price",null,null,{"$f":"IF('Physical Inputs'!B38=\"Owner\",'Basic Financial'!D48,\"N/A\")","v":"N/A"},{"$f":"IF('Physical Inputs'!$B$38=\"owner\",'Basic Financial'!B48,\"N/A\")","v":"N/A"},"/sf"]
[null,"Retail",null,null,{"$f":"'Physical Outputs'!B44","v":23.252293449291635},{"$f":"'Physical Inputs'!B74","v":2},"/ 1000 sq ft",null,"Residential Unit Rent",null,null,{"$f":"IF('Physical Inputs'!$B$38=\"renter\",'Basic Financial'!E45,\"N/A\")","v":650},{"$f":"IF('Physical Inputs'!$B$38=\"renter\",'Basic Financial'!B45,\"N/A\")","v":1},"/sf"]
[null,"Office",null,null,{"$f":"'Physical Outputs'!B45","v":0},{"$f":"'Physical Inputs'!B75","v":0},"/ 1000 sq ft",null,"Retail rent (sf/year)",null,null,{"$f":"IF('Physical Inputs'!B40=0,\"N/A\",'Basic Financial'!B51)","v":"$ / Sq Ft"},"/sf (triple net)"]
[null,"Industrial",null,null,{"$f":"'Physical Outputs'!B46","v":0},{"$f":"'Physical Inputs'!B76","v":0},"/ 1000 sq ft",null,"Office rent (sf/year)",null,null,{"$f":"IF('Physical Inputs'!B41=0,\"N/A\",'Basic Financial'!B52)","v":"N/A"},"/sf (triple net)"]
[null,"Public",null,null,{"$f":"'Physical Outputs'!B47","v":0},{"$f":"'Physical Inputs'!B77","v":0},"/ 1000 sq ft",null,"Industrial (sf/year)",null,null,{"$f":"IF('Physical Inputs'!B42=0,\"N/A\",'Basic Financial'!B53)","v":"N/A"},"/sf (triple net)"]
[null,"Educational",null,null,{"$f":"'Physical Outputs'!B48","v":0},{"$f":"'Physical Inputs'!B78","v":0},"/ 1000 sq ft",null,"Hotel/Motel ($/night)",null,null,{"$f":"IF('Physical Inputs'!B45=0,\"N/A\",'Basic Financial'!B56)","v":"N/A"},"/ room / night"]
[null,"Hotel/Motel",null,null,{"$f":"'Physical Outputs'!B49","v":0},{"$f":"'Physical Inputs'!B79","v":2},"/ per room"]
[null,"Parking Structure",null,null,{"$f":"IF('Physical Inputs'!B82=\"yes\",'Physical Outputs'!B59,0)","v":0}]
[null,"Total parking spaces",null,null,{"$f":"'Physical Outputs'!B51","v":76.960036470753266}]
[null,"Landscaping and open space area",null,null,{"$f":"'Physical Inputs'!B26","v":0}]
[]
[null,null,null,null,null,null,null,null,"FINANCIAL PERFORMANCE"]
[null,"CONSTRUCTION COSTS",null,null,null,null,null,null,"Rental"]
[null,"TOTAL COSTS",null,null,{"$f":"SUM(E47,E48,E57,E58)","v":11629521.642412122},null,null,null,{"$f":"'Mixed-Use Summary'!A5","v":"Cash-on-Cash (After Year 3)"},null,null,null,{"$f":"'Mixed-Use Summary'!O5","v":6.9405040242114052E-2}]
[null,"Land Costs",null,null,{"$f":"-'Development Costs'!E8","v":0},{"$f":"'Basic Financial'!C30","v":0},"/sf",null,{"$f":"'Mixed-Use Summary'!A6","v":"IRR on Project Cost (Unleveraged Return)"},null,null,null,{"$f":"'Mixed-Use Summary'!O6","v":8.430347662537141E-2}]
[null,"Hard Costs",null,null,{"$f":"SUM(E49:E56)","v":9493469.532893816},null,null,null,{"$f":"'Mixed-Use Summary'!A7","v":"IRR on Investor Equity (Leveraged Return Before Tax)"},null,null,null,{"$f":"'Mixed-Use Summary'!O7","v":0.11314156617272819}]
[null,"Residential",null,null,{"$f":"-'Development Costs'!E15","v":7440733.9037733227},{"$f":"'Development Costs'!C15","v":160},"/sf",null,{"$f":"'Mixed-Use Summary'!A8","v":"Debt Service Coverage Ratio (Year 3)"},null,null,null,{"$f":"'Mixed-Use Summary'!O8","v":1.6431210393859557}]
[null,"Retail",null,null,{"$f":"-'Development Costs'!E16","v":1278876.1397110398},{"$f":"'Development Costs'!C16","v":110},"/sf",null,"Owner"]
[null,"Office",null,null,{"$f":"-'Development Costs'!E17","v":0},{"$f":"'Development Costs'!C17","v":95},"/sf",null,{"$f":"'Mixed-Use Summary'!Q5","v":"Project Rate of Return"},null,null,null,{"$f":"'Mixed-Use Summary'!T5","v":0}]
[null,"Industrial",null,null,{"$f":"-'Development Costs'!E18","v":0},{"$f":"'Development Costs'!C18","v":95},null,null,{"$f":"'Mixed-Use Summary'!Q6","v":"Return to Equity"},null,null,null,{"$f":"'Mixed-Use Summary'!T6","v":0}]
[null,"Public",null,null,{"$f":"-'Development Costs'!E19","v":0},{"$f":"'Development Costs'!C19","v":95}]
[null,"Educational",null,null,{"$f":"-'Development Costs'!E20","v":0},{"$f":"'Development Costs'!C20","v":100}]
[null,"Hotel/Motel",null,null,{"$f":"-'Development Costs'!E21","v":0},{"$f":"'Development Costs'!C21","v":120}]
[null,"Internal Parking",null,null,{"$f":"-'Development Costs'!E23","v":773859.4894094544},{"$f":"'Development Costs'!C23","v":0}]
[null,"Soft Costs",null,null,{"$f":"-SUM('Development Costs'!E4:E7,'Development Costs'!E26:E33)","v":2136052.1095183063}]
[null,"Other Costs",null,null,{"$f":"SUM(E59:E61)","v":0}]
[null,"Demolition Costs",null,null,{"$f":"'Development Costs'!E12","v":0}]
[null,"Site Development Costs",null,null,{"$f":"'Development Costs'!E13","v":0}]
[null,"Additional Infrastructure",null,null,{"$f":"'Development Costs'!E22","v":0}]

{"sheet":"DV-IDENTITY-0","index":19,"n_rows":159,"n_cols":256,"rows_kept":159,"cut":false,"hidden":true,"merged":[]}
[{"$f":"IF('Quick Start Guide'!1:1,\"Vi9bc32mhwA=\",0)","v":0},{"$f":"AND('Quick Start Guide'!A1,\"Vi9bc32mhwE=\")","v":{"$error":"#VALUE!"}},{"$f":"AND('Quick Start Guide'!B1,\"Vi9bc32mhwI=\")","v":{"$error":"#VALUE!"}},{"$f":"AND('Quick Start Guide'!C1,\"Vi9bc32mhwM=\")","v":{"$error":"#VALUE!"}},{"$f":"AND('Quick Start Guide'!D1,\"Vi9bc32mhwQ=\")","v":{"$error":"#VALUE!"}},{"$f":"AND('Quick Start Guide'!E1,\"Vi9bc32mhwU=\")","v":{"$error":"#VALUE!"}},{"$f":"AND('Quick Start Guide'!#REF!,\"Vi9bc32mhwY=\")","v":{"$error":"#REF!"}},{"$f":"AND('Quick Start Guide'!#REF!,\"Vi9bc32mhwc=\")","v":{"$error":"#REF!"}},{"$f":"AND('Quick Start Guide'!#REF!,\"Vi9bc32mhwg=\")","v":{"$error":"#REF!"}},{"$f":"AND('Quick Start Guide'!#REF!,\"Vi9bc32mhwk=\")","v":{"$error":"#REF!"}},{"$f":"AND('Quick Start Guide'!#REF!,\"Vi9bc32mhwo=\")","v":{"$error":"#REF!"}},{"$f":"AND('Quick Start Guide'!F1,\"Vi9bc32mhws=\")","v":{"$error":"#VALUE!"}},{"$f":"AND('Quick Start Guide'!G1,\"Vi9bc32mhww=\")","v":{"$error":"#VALUE!"}},{"$f":"AND('Quick Start Guide'!H1,\"Vi9bc32mhw0=\")","v":{"$error":"#VALUE!"}},{"$f":"AND('Quick Start Guide'!I1,\"Vi9bc32mhw4=\")","v":{"$error":"#VALUE!"}},{"$f":"AND('Quick Start Guide'!J1,\"Vi9bc32mhw8=\")","v":{"$error":"#VALUE!"}},{"$f":"IF('Quick Start Guide'!2:2,\"Vi9bc32mhxA=\",0)","v":0},{"$f":"AND('Quick Start Guide'!A2,\"Vi9bc32mhxE=\")","v":{"$error":"#VALUE!"}},{"$f":"AND('Quick Start Guide'!B2,\"Vi9bc32mhxI=\")","v":{"$error":"#VALUE!"}},{"$f":"AND('Quick Start Guide'!C2,\"Vi9bc32mhxM=\")","v":{"$error":"#VALUE!"}},{"$f":"AND('Quick Start Guide'!D2,\"Vi9bc32mhxQ=\")","v":{"$error":"#VALUE!"}},{"$f":"AND('Quick Start Guide'!E2,\"Vi9bc32mhxU=\")","v":{"$error":"#VALUE!"}},{"$f":"AND('Quick Start Guide'!#REF!,\"Vi9bc32mhxY=\")","v":{"$error":"#REF!"}},{"$f":"AND('Quick Start Guide'!#REF!,\"Vi9bc32mhxc=\")","v":{"$error":"#REF!"}},{"$f":"AND('Quick Start Guide'!#REF!,\"Vi9bc32mhxg=\")","v":{"$error":"#REF!"}},{"$f":"AND('Quick Start Guide'!#REF!,\"Vi9bc32mhxk=\")","v":{"$error":"#REF!"}},{"$f":"AND('Quick Start Guide'!#REF!,\"Vi9bc32mhxo=\")","v":{"$error":"#REF!"}},{"$f":"AND('Quick Start Guide'!F2,\"Vi9bc32mhxs=\")","v":{"$error":"#VALUE!"}},{"$f":"AND('Quick Start Guide'!G2,\"Vi9bc32mhxw=\")","v":{"$error":"#VALUE!"}},{"$f":"AND('Quick Start Guide'!H2,\"Vi9bc32mhx0=\")","v":{"$error":"#VALUE!"}},{"$f":"AND('Quick Start Guide'!I2,\"Vi9bc32mhx4=\")","v":{"$error":"#VALUE!"}},{"$f":"AND('Quick Start Guide'!J2,\"Vi9bc32mhx8=\")","v":{"$error":"#VALUE!"}},{"$f":"IF('Quick Start Guide'!3:3,\"Vi9bc32mhyA=\",0)","v":0},{"$f":"AND('Quick Start Guide'!A3,\"Vi9bc32mhyE=\")","v":{"$error":"#VALUE!"}},{"$f":"AND('Quick Start Guide'!B3,\"Vi9bc32mhyI=\")","v":{"$error":"#VALUE!"}},{"$f":"AND('Quick Start Guide'!C3,\"Vi9bc32mhyM=\")","v":{"$error":"#VALUE!"}},{"$f":"AND('Quick Start Guide'!D3,\"Vi9bc32mhyQ=\")","v":{"$error":"#VALUE!"}},{"$f":"AND('Quick Start Guide'!E3,\"Vi9bc32mhyU=\")","v":{"$error":"#VALUE!"}},{"$f":"AND('Quick Start Guide'!#REF!,\"Vi9bc32mhyY=\")","v":{"$error":"#REF!"}},{"$f":"AND('Quick Start Guide'!#REF!,\"Vi9bc32mhyc=\")","v":{"$error":"#REF!"}},{"$f":"AND('Quick Start Guide'!#REF!,\"Vi9bc32mhyg=\")","v":{"$error":"#REF!"}},{"$f":"AND('Quick Start Guide'!#REF!,\"Vi9bc32mhyk=\")","v":{"$error":"#REF!"}},{"$f":"AND('Quick Start Guide'!#REF!,\"Vi9bc32mhyo=\")","v":{"$error":"#REF!"}},{"$f":"AND('Quick Start Guide'!F3,\"Vi9bc32mhys=\")","v":{"$error":"#VALUE!"}},{"$f":"AND('Quick Start Guide'!G3,\"Vi9bc32mhyw=\")","v":{"$error":"#VALUE!"}},{"$f":"AND('Quick Start Guide'!H3,\"Vi9bc32mhy0=\")","v":{"$error":"#VALUE!"}},{"$f":"AND('Quick Start Guide'!I3,\"Vi9bc32mhy4=\")","v":{"$error":"#VALUE!"}},{"$f":"AND('Quick Start Guide'!J3,\"Vi9bc32mhy8=\")","v":{"$error":"#VALUE!"}},{"$f":"IF('Quick Start Guide'!4:4,\"Vi9bc32mhzA=\",0)","v":0},{"$f":"AND('Quick Start Guide'!A4,\"Vi9bc32mhzE=\")","v":{"$error":"#VALUE!"}},{"$f":"AND('Quick Start Guide'!B4,\"Vi9bc32mhzI=\")","v":{"$error":"#VALUE!"}},{"$f":"AND('Quick Start Guide'!C4,\"Vi9bc32mhzM=\")","v":{"$error":"#VALUE!"}},{"$f":"AND('Quick Start Guide'!D4,\"Vi9bc32mhzQ=\")","v":{"$error":"#VALUE!"}},{"$f":"AND('Quick Start Guide'!E4,\"Vi9bc32mhzU=\")","v":{"$error":"#VALUE!"}},{"$f":"AND('Quick Start Guide'!#REF!,\"Vi9bc32mhzY=\")","v":{"$error":"#REF!"}},{"$f":"AND('Quick Start Guide'!#REF!,\"Vi9bc32mhzc=\")","v":{"$error":"#REF!"}},{"$f":"AND('Quick Start Guide'!#REF!,\"Vi9bc32mhzg=\")","v":{"$error":"#REF!"}},{"$f":"AND('Quick Start Guide'!#REF!,\"Vi9bc32mhzk=\")","v":{"$error":"#REF!"}},{"$f":"AND('Quick Start Guide'!#REF!,\"Vi9bc32mhzo=\")","v":{"$error":"#REF!"}},{"$f":"AND('Quick Start Guide'!F4,\"Vi9bc32mhzs=\")","v":{"$error":"#VALUE!"}},{"$f":"AND('Quick Start Guide'!G4,\"Vi9bc32mhzw=\")","v":{"$error":"#VALUE!"}},{"$f":"AND('Quick Start Guide'!H4,\"Vi9bc32mhz0=\")","v":{"$error":"#VALUE!"}},{"$f":"AND('Quick Start Guide'!I4,\"Vi9bc32mhz4=\")","v":{"$error":"#VALUE!"}},{"$f":"AND('Quick Start Guide'!J4,\"Vi9bc32mhz8=\")","v":{"$error":"#VALUE!"}},{"$f":"IF('Quick Start Guide'!5:5,\"Vi9bc32mh0A=\",0)","v":0},{"$f":"AND('Quick Start Guide'!A5,\"Vi9bc32mh0E=\")","v":{"$error":"#VALUE!"}},{"$f":"AND('Quick Start Guide'!B5,\"Vi9bc32mh0I=\")","v":{"$error":"#VALUE!"}},{"$f":"AND('Quick Start Guide'!C5,\"Vi9bc32mh0M=\")","v":{"$error":"#VALUE!"}},{"$f":"AND('Quick Start Guide'!D5,\"Vi9bc32mh0Q=\")","v":{"$error":"#VALUE!"}},{"$f":"AND('Quick Start Guide'!E5,\"Vi9bc32mh0U=\")","v":{"$error":"#VALUE!"}},{"$f":"AND('Quick Start Guide'!#REF!,\"Vi9bc32mh0Y=\")","v":{"$error":"#REF!"}},{"$f":"AND('Quick Start Guide'!#REF!,\"Vi9bc32mh0c=\")","v":{"$error":"#REF!"}},{"$f":"AND('Quick Start Guide'!#REF!,\"Vi9bc32mh0g=\")","v":{"$error":"#REF!"}},{"$f":"AND('Quick Start Guide'!#REF!,\"Vi9bc32mh0k=\")","v":{"$error":"#REF!"}},{"$f":"AND('Quick Start Guide'!#REF!,\"Vi9bc32mh0o=\")","v":{"$error":"#REF!"}},{"$f":"AND('Quick Start Guide'!F5,\"Vi9bc32mh0s=\")","v":{"$error":"#VALUE!"}},{"$f":"AND('Quick Start Guide'!G5,\"Vi9bc32mh0w=\")","v":{"$error":"#VALUE!"}},{"$f":"AND('Quick Start Guide'!H5,\"Vi9bc32mh00=\")","v":{"$error":"#VALUE!"}},{"$f":"AND('Quick Start Guide'!I5,\"Vi9bc32mh04=\")","v":{"$error":"#VALUE!"}},{"$f":"AND('Quick Start Guide'!J5,\"Vi9bc32mh08=\")","v":{"$error":"#VALUE!"}},{"$f":"IF('Quick Start Guide'!6:6,\"Vi9bc32mh1A=\",0)","v":0},{"$f":"AND('Quick Start Guide'!A6,\"Vi9bc32mh1E=\")","v":{"$error":"#VALUE!"}},{"$f":"AND('Quick Start Guide'!B6,\"Vi9bc32mh1I=\")","v":{"$error":"#VALUE!"}},{"$f":"AND('Quick Start Guide'!C6,\"Vi9bc32mh1M=\")","v":{"$error":"#VALUE!"}},{"$f":"AND('Quick Start Guide'!D6,\"Vi9bc32mh1Q=\")","v":{"$error":"#VALUE!"}},{"$f":"AND('Quick Start Guide'!E6,\"Vi9bc32mh1U=\")","v":{"$error":"#VALUE!"}},{"$f":"AND('Quick Start Guide'!#REF!,\"Vi9bc32mh1Y=\")","v":{"$error":"#REF!"}},{"$f":"AND('Quick Start Guide'!#REF!,\"Vi9bc32mh1c=\")","v":{"$error":"#REF!"}},{"$f":"AND('Quick Start Guide'!#REF!,\"Vi9bc32mh1g=\")","v":{"$error":"#REF!"}},{"$f":"AND('Quick Start Guide'!#REF!,\"Vi9bc32mh1k=\")","v":{"$error":"#REF!"}},{"$f":"AND('Quick Start Guide'!#REF!,\"Vi9bc32mh1o=\")","v":{"$error":"#REF!"}},{"$f":"AND('Quick Start Guide'!F6,\"Vi9bc32mh1s=\")","v":{"$error":"#VALUE!"}},{"$f":"AND('Quick Start Guide'!G6,\"Vi9bc32mh1w=\")","v":{"$error":"#VALUE!"}},{"$f":"AND('Quick Start Guide'!H6,\"Vi9bc32mh10=\")","v":{"$error":"#VALUE!"}},{"$f":"AND('Quick Start Guide'!I6,\"Vi9bc32mh14=\")","v":{"$error":"#VALUE!"}},{"$f":"AND('Quick Start Guide'!J6,\"Vi9bc32mh18=\")","v":{"$error":"#VALUE!"}},{"$f":"IF('Quick Start Guide'!7:7,\"Vi9bc32mh2A=\",0)","v":0},{"$f":"AND('Quick Start Guide'!A7,\"Vi9bc32mh2E=\")","v":{"$error":"#VALUE!"}},{"$f":"AND('Quick Start Guide'!B7,\"Vi9bc32mh2I=\")","v":{"$error":"#VALUE!"}},{"$f":"AND('Quick Start Guide'!C7,\"Vi9bc32mh2M=\")","v":{"$error":"#VALUE!"}},{"$f":"AND('Quick Start Guide'!D7,\"Vi9bc32mh2Q=\")","v":{"$error":"#VALUE!"}},{"$f":"AND('Quick Start Guide'!E7,\"Vi9bc32mh2U=\")","v":{"$error":"#VALUE!"}},{"$f":"AND('Quick Start Guide'!#REF!,\"Vi9bc32mh2Y=\")","v":{"$error":"#REF!"}},{"$f":"AND('Quick Start Guide'!#REF!,\"Vi9bc32mh2c=\")","v":{"$error":"#REF!"}},{"$f":"AND('Quick Start Guide'!#REF!,\"Vi9bc32mh2g=\")","v":{"$error":"#REF!"}},{"$f":"AND('Quick Start Guide'!#REF!,\"Vi9bc32mh2k=\")","v":{"$error":"#REF!"}},{"$f":"AND('Quick Start Guide'!#REF!,\"Vi9bc32mh2o=\")","v":{"$error":"#REF!"}},{"$f":"AND('Quick Start Guide'!F7,\"Vi9bc32mh2s=\")","v":{"$error":"#VALUE!"}},{"$f":"AND('Quick Start Guide'!G7,\"Vi9bc32mh2w=\")","v":{"$error":"#VALUE!"}},{"$f":"AND('Quick Start Guide'!H7,\"Vi9bc32mh20=\")","v":{"$error":"#VALUE!"}},{"$f":"AND('Quick Start Guide'!I7,\"Vi9bc32mh24=\")","v":{"$error":"#VALUE!"}},{"$f":"AND('Quick Start Guide'!J7,\"Vi9bc32mh28=\")","v":{"$error":"#VALUE!"}},{"$f":"IF('Quick Start Guide'!8:8,\"Vi9bc32mh3A=\",0)","v":0},{"$f":"AND('Quick Start Guide'!A8,\"Vi9bc32mh3E=\")","v":{"$error":"#VALUE!"}},{"$f":"AND('Quick Start Guide'!B8,\"Vi9bc32mh3I=\")","v":{"$error":"#VALUE!"}},{"$f":"AND('Quick Start Guide'!C8,\"Vi9bc32mh3M=\")","v":{"$error":"#VALUE!"}},{"$f":"AND('Quick Start Guide'!D8,\"Vi9bc32mh3Q=\")","v":{"$error":"#VALUE!"}},{"$f":"AND('Quick Start Guide'!E8,\"Vi9bc32mh3U=\")","v":{"$error":"#VALUE!"}},{"$f":"AND('Quick Start Guide'!#REF!,\"Vi9bc32mh3Y=\")","v":{"$error":"#REF!"}},{"$f":"AND('Quick Start Guide'!#REF!,\"Vi9bc32mh3c=\")","v":{"$error":"#REF!"}},{"$f":"AND('Quick Start Guide'!#REF!,\"Vi9bc32mh3g=\")","v":{"$error":"#REF!"}},{"$f":"AND('Quick Start Guide'!#REF!,\"Vi9bc32mh3k=\")","v":{"$error":"#REF!"}},{"$f":"AND('Quick Start Guide'!#REF!,\"Vi9bc32mh3o=\")","v":{"$error":"#REF!"}},{"$f":"AND('Quick Start Guide'!F8,\"Vi9bc32mh3s=\")","v":{"$error":"#VALUE!"}},{"$f":"AND('Quick Start Guide'!G8,\"Vi9bc32mh3w=\")","v":{"$error":"#VALUE!"}},{"$f":"AND('Quick Start Guide'!H8,\"Vi9bc32mh30=\")","v":{"$error":"#VALUE!"}},{"$f":"AND('Quick Start Guide'!I8,\"Vi9bc32mh34=\")","v":{"$error":"#VALUE!"}},{"$f":"AND('Quick Start Guide'!J8,\"Vi9bc32mh38=\")","v":{"$error":"#VALUE!"}},{"$f":"IF('Quick Start Guide'!9:9,\"Vi9bc32mh4A=\",0)","v":0},{"$f":"AND('Quick Start Guide'!A9,\"Vi9bc32mh4E=\")","v":{"$error":"#VALUE!"}},{"$f":"AND('Quick Start Guide'!B9,\"Vi9bc32mh4I=\")","v":{"$error":"#VALUE!"}},{"$f":"AND('Quick Start Guide'!C9,\"Vi9bc32mh4M=\")","v":{"$error":"#VALUE!"}},{"$f":"AND('Quick Start Guide'!D9,\"Vi9bc32mh4Q=\")","v":{"$error":"#VALUE!"}},{"$f":"AND('Quick Start Guide'!E9,\"Vi9bc32mh4U=\")","v":{"$error":"#VALUE!"}},{"$f":"AND('Quick Start Guide'!#REF!,\"Vi9bc32mh4Y=\")","v":{"$error":"#REF!"}},{"$f":"AND('Quick Start Guide'!#REF!,\"Vi9bc32mh4c=\")","v":{"$error":"#REF!"}},{"$f":"AND('Quick Start Guide'!#REF!,\"Vi9bc32mh4g=\")","v":{"$error":"#REF!"}},{"$f":"AND('Quick Start Guide'!#REF!,\"Vi9bc32mh4k=\")","v":{"$error":"#REF!"}},{"$f":"AND('Quick Start Guide'!#REF!,\"Vi9bc32mh4o=\")","v":{"$error":"#REF!"}},{"$f":"AND('Quick Start Guide'!F9,\"Vi9bc32mh4s=\")","v":{"$error":"#VALUE!"}},{"$f":"AND('Quick Start Guide'!G9,\"Vi9bc32mh4w=\")","v":{"$error":"#VALUE!"}},{"$f":"AND('Quick Start Guide'!H9,\"Vi9bc32mh40=\")","v":{"$error":"#VALUE!"}},{"$f":"AND('Quick Start Guide'!I9,\"Vi9bc32mh44=\")","v":{"$error":"#VALUE!"}},{"$f":"AND('Quick Start Guide'!J9,\"Vi9bc32mh48=\")","v":{"$error":"#VALUE!"}},{"$f":"IF('Quick Start Guide'!10:10,\"Vi9bc32mh5A=\",0)","v":0},{"$f":"AND('Quick Start Guide'!A10,\"Vi9bc32mh5E=\")","v":{"$error":"#VALUE!"}},{"$f":"AND('Quick Start Guide'!B10,\"Vi9bc32mh5I=\")","v":{"$error":"#VALUE!"}},{"$f":"AND('Quick Start Guide'!C10,\"Vi9bc32mh5M=\")","v":{"$error":"#VALUE!"}},{"$f":"AND('Quick Start Guide'!D10,\"Vi9bc32mh5Q=\")","v":{"$error":"#VALUE!"}},{"$f":"AND('Quick Start Guide'!E10,\"Vi9bc32mh5U=\")","v":{"$error":"#VALUE!"}},{"$f":"AND('Quick Start Guide'!#REF!,\"Vi9bc32mh5Y=\")","v":{"$error":"#REF!"}},{"$f":"AND('Quick Start Guide'!#REF!,\"Vi9bc32mh5c=\")","v":{"$error":"#REF!"}},{"$f":"AND('Quick Start Guide'!#REF!,\"Vi9bc32mh5g=\")","v":{"$error":"#REF!"}},{"$f":"AND('Quick Start Guide'!#REF!,\"Vi9bc32mh5k=\")","v":{"$error":"#REF!"}},{"$f":"AND('Quick Start Guide'!#REF!,\"Vi9bc32mh5o=\")","v":{"$error":"#REF!"}},{"$f":"AND('Quick Start Guide'!F10,\"Vi9bc32mh5s=\")","v":{"$error":"#VALUE!"}},{"$f":"AND('Quick Start Guide'!G10,\"Vi9bc32mh5w=\")","v":{"$error":"#VALUE!"}},{"$f":"AND('Quick Start Guide'!H10,\"Vi9bc32mh50=\")","v":{"$error":"#VALUE!"}},{"$f":"AND('Quick Start Guide'!I10,\"Vi9bc32mh54=\")","v":{"$error":"#VALUE!"}},{"$f":"AND('Quick Start Guide'!J10,\"Vi9bc32mh58=\")","v":{"$error":"#VALUE!"}},{"$f":"IF('Quick Start Guide'!#REF!,\"Vi9bc32mh6A=\",0)","v":{"$error":"#REF!"}},{"$f":"AND('Quick Start Guide'!#REF!,\"Vi9bc32mh6E=\")","v":{"$error":"#REF!"}},{"$f":"AND('Quick Start Guide'!#REF!,\"Vi9bc32mh6I=\")","v":{"$error":"#REF!"}},{"$f":"AND('Quick Start Guide'!#REF!,\"Vi9bc32mh6M=\")","v":{"$error":"#REF!"}},{"$f":"AND('Quick Start Guide'!#REF!,\"Vi9bc32mh6Q=\")","v":{"$error":"#REF!"}},{"$f":"AND('Quick Start Guide'!#REF!,\"Vi9bc32mh6U=\")","v":{"$error":"#REF!"}},{"$f":"AND('Quick Start Guide'!#REF!,\"Vi9bc32mh6Y=\")","v":{"$error":"#REF!"}},{"$f":"AND('Quick Start Guide'!#REF!,\"Vi9bc32mh6c=\")","v":{"$error":"#REF!"}},{"$f":"AND('Quick Start Guide'!#REF!,\"Vi9bc32mh6g=\")","v":{"$error":"#REF!"}},{"$f":"AND('Quick Start Guide'!#REF!,\"Vi9bc32mh6k=\")","v":{"$error":"#REF!"}},{"$f":"AND('Quick Start Guide'!#REF!,\"Vi9bc32mh6o=\")","v":{"$error":"#REF!"}},{"$f":"AND('Quick Start Guide'!#REF!,\"Vi9bc32mh6s=\")","v":{"$error":"#REF!"}},{"$f":"AND('Quick Start Guide'!#REF!,\"Vi9bc32mh6w=\")","v":{"$error":"#REF!"}},{"$f":"AND('Quick Start Guide'!#REF!,\"Vi9bc32mh60=\")","v":{"$error":"#REF!"}},{"$f":"AND('Quick Start Guide'!#REF!,\"Vi9bc32mh64=\")","v":{"$error":"#REF!"}},{"$f":"AND('Quick Start Guide'!#REF!,\"Vi9bc32mh68=\")","v":{"$error":"#REF!"}},{"$f":"IF('Quick Start Guide'!11:11,\"Vi9bc32mh7A=\",0)","v":0},{"$f":"AND('Quick Start Guide'!A11,\"Vi9bc32mh7E=\")","v":{"$error":"#VALUE!"}},{"$f":"AND('Quick Start Guide'!B11,\"Vi9bc32mh7I=\")","v":{"$error":"#VALUE!"}},{"$f":"AND('Quick Start Guide'!C11,\"Vi9bc32mh7M=\")","v":{"$error":"#VALUE!"}},{"$f":"AND('Quick Start Guide'!D11,\"Vi9bc32mh7Q=\")","v":{"$error":"#VALUE!"}},{"$f":"AND('Quick Start Guide'!E11,\"Vi9bc32mh7U=\")","v":{"$error":"#VALUE!"}},{"$f":"AND('Quick Start Guide'!#REF!,\"Vi9bc32mh7Y=\")","v":{"$error":"#REF!"}},{"$f":"AND('Quick Start Guide'!#REF!,\"Vi9bc32mh7c=\")","v":{"$error":"#REF!"}},{"$f":"AND('Quick Start Guide'!#REF!,\"Vi9bc32mh7g=\")","v":{"$error":"#REF!"}},{"$f":"AND('Quick Start Guide'!#REF!,\"Vi9bc32mh7k=\")","v":{"$error":"#REF!"}},{"$f":"AND('Quick Start Guide'!#REF!,\"Vi9bc32mh7o=\")","v":{"$error":"#REF!"}},{"$f":"AND('Quick Start Guide'!F11,\"Vi9bc32mh7s=\")","v":{"$error":"#VALUE!"}},{"$f":"AND('Quick Start Guide'!G11,\"Vi9bc32mh7w=\")","v":{"$error":"#VALUE!"}},{"$f":"AND('Quick Start Guide'!H11,\"Vi9bc32mh70=\")","v":{"$error":"#VALUE!"}},{"$f":"AND('Quick Start Guide'!I11,\"Vi9bc32mh74=\")","v":{"$error":"#VALUE!"}},{"$f":"AND('Quick Start Guide'!J11,\"Vi9bc32mh78=\")","v":{"$error":"#VALUE!"}},{"$f":"IF('Quick Start Guide'!12:12,\"Vi9bc32mh8A=\",0)","v":0},{"$f":"AND('Quick Start Guide'!A12,\"Vi9bc32mh8E=\")","v":{"$error":"#VALUE!"}},{"$f":"AND('Quick Start Guide'!B12,\"Vi9bc32mh8I=\")","v":{"$error":"#VALUE!"}},{"$f":"AND('Quick Start Guide'!C12,\"Vi9bc32mh8M=\")","v":{"$error":"#VALUE!"}},{"$f":"AND('Quick Start Guide'!D12,\"Vi9bc32mh8Q=\")","v":{"$error":"#VALUE!"}},{"$f":"AND('Quick Start Guide'!E12,\"Vi9bc32mh8U=\")","v":{"$error":"#VALUE!"}},{"$f":"AND('Quick Start Guide'!#REF!,\"Vi9bc32mh8Y=\")","v":{"$error":"#REF!"}},{"$f":"AND('Quick Start Guide'!#REF!,\"Vi9bc32mh8c=\")","v":{"$error":"#REF!"}},{"$f":"AND('Quick Start Guide'!#REF!,\"Vi9bc32mh8g=\")","v":{"$error":"#REF!"}},{"$f":"AND('Quick Start Guide'!#REF!,\"Vi9bc32mh8k=\")","v":{"$error":"#REF!"}},{"$f":"AND('Quick Start Guide'!#REF!,\"Vi9bc32mh8o=\")","v":{"$error":"#REF!"}},{"$f":"AND('Quick Start Guide'!F12,\"Vi9bc32mh8s=\")","v":{"$error":"#VALUE!"}},{"$f":"AND('Quick Start Guide'!G12,\"Vi9bc32mh8w=\")","v":{"$error":"#VALUE!"}},{"$f":"AND('Quick Start Guide'!H12,\"Vi9bc32mh80=\")","v":{"$error":"#VALUE!"}},{"$f":"AND('Quick Start Guide'!I12,\"Vi9bc32mh84=\")","v":{"$error":"#VALUE!"}},{"$f":"AND('Quick Start Guide'!J12,\"Vi9bc32mh88=\")","v":{"$error":"#VALUE!"}},{"$f":"IF('Quick Start Guide'!13:13,\"Vi9bc32mh9A=\",0)","v":0},{"$f":"AND('Quick Start Guide'!A13,\"Vi9bc32mh9E=\")","v":{"$error":"#VALUE!"}},{"$f":"AND('Quick Start Guide'!B13,\"Vi9bc32mh9I=\")","v":{"$error":"#VALUE!"}},{"$f":"AND('Quick Start Guide'!C13,\"Vi9bc32mh9M=\")","v":{"$error":"#VALUE!"}},{"$f":"AND('Quick Start Guide'!D13,\"Vi9bc32mh9Q=\")","v":{"$error":"#VALUE!"}},{"$f":"AND('Quick Start Guide'!E13,\"Vi9bc32mh9U=\")","v":{"$error":"#VALUE!"}},{"$f":"AND('Quick Start Guide'!#REF!,\"Vi9bc32mh9Y=\")","v":{"$error":"#REF!"}},{"$f":"AND('Quick Start Guide'!#REF!,\"Vi9bc32mh9c=\")","v":{"$error":"#REF!"}},{"$f":"AND('Quick Start Guide'!#REF!,\"Vi9bc32mh9g=\")","v":{"$error":"#REF!"}},{"$f":"AND('Quick Start Guide'!#REF!,\"Vi9bc32mh9k=\")","v":{"$error":"#REF!"}},{"$f":"AND('Quick Start Guide'!#REF!,\"Vi9bc32mh9o=\")","v":{"$error":"#REF!"}},{"$f":"AND('Quick Start Guide'!F13,\"Vi9bc32mh9s=\")","v":{"$error":"#VALUE!"}},{"$f":"AND('Quick Start Guide'!G13,\"Vi9bc32mh9w=\")","v":{"$error":"#VALUE!"}},{"$f":"AND('Quick Start Guide'!H13,\"Vi9bc32mh90=\")","v":{"$error":"#VALUE!"}},{"$f":"AND('Quick Start Guide'!I13,\"Vi9bc32mh94=\")","v":{"$error":"#VALUE!"}},{"$f":"AND('Quick Start Guide'!J13,\"Vi9bc32mh98=\")","v":{"$error":"#VALUE!"}},{"$f":"IF('Quick Start Guide'!14:14,\"Vi9bc32mh+A=\",0)","v":0},{"$f":"AND('Quick Start Guide'!A14,\"Vi9bc32mh+E=\")","v":{"$error":"#VALUE!"}},{"$f":"AND('Quick Start Guide'!B14,\"Vi9bc32mh+I=\")","v":{"$error":"#VALUE!"}},{"$f":"AND('Quick Start Guide'!C14,\"Vi9bc32mh+M=\")","v":{"$error":"#VALUE!"}},{"$f":"AND('Quick Start Guide'!D14,\"Vi9bc32mh+Q=\")","v":{"$error":"#VALUE!"}},{"$f":"AND('Quick Start Guide'!E14,\"Vi9bc32mh+U=\")","v":{"$error":"#VALUE!"}},{"$f":"AND('Quick Start Guide'!#REF!,\"Vi9bc32mh+Y=\")","v":{"$error":"#REF!"}},{"$f":"AND('Quick Start Guide'!#REF!,\"Vi9bc32mh+c=\")","v":{"$error":"#REF!"}},{"$f":"AND('Quick Start Guide'!#REF!,\"Vi9bc32mh+g=\")","v":{"$error":"#REF!"}},{"$f":"AND('Quick Start Guide'!#REF!,\"Vi9bc32mh+k=\")","v":{"$error":"#REF!"}},{"$f":"AND('Quick Start Guide'!#REF!,\"Vi9bc32mh+o=\")","v":{"$error":"#REF!"}},{"$f":"AND('Quick Start Guide'!F14,\"Vi9bc32mh+s=\")","v":{"$error":"#VALUE!"}},{"$f":"AND('Quick Start Guide'!G14,\"Vi9bc32mh+w=\")","v":{"$error":"#VALUE!"}},{"$f":"AND('Quick Start Guide'!H14,\"Vi9bc32mh+0=\")","v":{"$error":"#VALUE!"}},{"$f":"AND('Quick Start Guide'!I14,\"Vi9bc32mh+4=\")","v":{"$error":"#VALUE!"}},{"$f":"AND('Quick Start Guide'!J14,\"Vi9bc32mh+8=\")","v":{"$error":"#VALUE!"}},{"$f":"IF('Quick Start Guide'!15:15,\"Vi9bc32mh/A=\",0)","v":0},{"$f":"AND('Quick Start Guide'!A15,\"Vi9bc32mh/E=\")","v":{"$error":"#VALUE!"}},{"$f":"AND('Quick Start Guide'!B15,\"Vi9bc32mh/I=\")","v":{"$error":"#VALUE!"}},{"$f":"AND('Quick Start Guide'!C15,\"Vi9bc32mh/M=\")","v":{"$error":"#VALUE!"}},{"$f":"AND('Quick Start Guide'!D15,\"Vi9bc32mh/Q=\")","v":{"$error":"#VALUE!"}},{"$f":"AND('Quick Start Guide'!E15,\"Vi9bc32mh/U=\")","v":{"$error":"#VALUE!"}},{"$f":"AND('Quick Start Guide'!#REF!,\"Vi9bc32mh/Y=\")","v":{"$error":"#REF!"}},{"$f":"AND('Quick Start Guide'!#REF!,\"Vi9bc32mh/c=\")","v":{"$error":"#REF!"}},{"$f":"AND('Quick Start Guide'!#REF!,\"Vi9bc32mh/g=\")","v":{"$error":"#REF!"}},{"$f":"AND('Quick Start Guide'!#REF!,\"Vi9bc32mh/k=\")","v":{"$error":"#REF!"}},{"$f":"AND('Quick Start Guide'!#REF!,\"Vi9bc32mh/o=\")","v":{"$error":"#REF!"}},{"$f":"AND('Quick Start Guide'!F15,\"Vi9bc32mh/s=\")","v":{"$error":"#VALUE!"}},{"$f":"AND('Quick Start Guide'!G15,\"Vi9bc32mh/w=\")","v":{"$error":"#VALUE!"}},{"$f":"AND('Quick Start Guide'!H15,\"Vi9bc32mh/0=\")","v":{"$error":"#VALUE!"}},{"$f":"AND('Quick Start Guide'!I15,\"Vi9bc32mh/4=\")","v":{"$error":"#VALUE!"}},{"$f":"AND('Quick Start Guide'!J15,\"Vi9bc32mh/8=\")","v":{"$error":"#VALUE!"}}]
[{"$f":"IF('Quick Start Guide'!16:16,\"Xj7tfHFSWwA=\",0)","v":0},{"$f":"AND('Quick Start Guide'!A16,\"Xj7tfHFSWwE=\")","v":{"$error":"#VALUE!"}},{"$f":"AND('Quick Start Guide'!B16,\"Xj7tfHFSWwI=\")","v":{"$error":"#VALUE!"}},{"$f":"AND('Quick Start Guide'!C16,\"Xj7tfHFSWwM=\")","v":{"$error":"#VALUE!"}},{"$f":"AND('Quick Start Guide'!D16,\"Xj7tfHFSWwQ=\")","v":{"$error":"#VALUE!"}},{"$f":"AND('Quick Start Guide'!E16,\"Xj7tfHFSWwU=\")","v":{"$error":"#VALUE!"}},{"$f":"AND('Quick Start Guide'!#REF!,\"Xj7tfHFSWwY=\")","v":{"$error":"#REF!"}},{"$f":"AND('Quick Start Guide'!#REF!,\"Xj7tfHFSWwc=\")","v":{"$error":"#REF!"}},{"$f":"AND('Quick Start Guide'!#REF!,\"Xj7tfHFSWwg=\")","v":{"$error":"#REF!"}},{"$f":"AND('Quick Start Guide'!#REF!,\"Xj7tfHFSWwk=\")","v":{"$error":"#REF!"}},{"$f":"AND('Quick Start Guide'!#REF!,\"Xj7tfHFSWwo=\")","v":{"$error":"#REF!"}},{"$f":"AND('Quick Start Guide'!F16,\"Xj7tfHFSWws=\")","v":{"$error":"#VALUE!"}},{"$f":"AND('Quick Start Guide'!G16,\"Xj7tfHFSWww=\")","v":{"$error":"#VALUE!"}},{"$f":"AND('Quick Start Guide'!H16,\"Xj7tfHFSWw0=\")","v":{"$error":"#VALUE!"}},{"$f":"AND('Quick Start Guide'!I16,\"Xj7tfHFSWw4=\")","v":{"$error":"#VALUE!"}},{"$f":"AND('Quick Start Guide'!J16,\"Xj7tfHFSWw8=\")","v":{"$error":"#VALUE!"}},{"$f":"IF('Quick Start Guide'!17:17,\"Xj7tfHFSWxA=\",0)","v":0},{"$f":"AND('Quick Start Guide'!A17,\"Xj7tfHFSWxE=\")","v":{"$error":"#VALUE!"}},{"$f":"AND('Quick Start Guide'!B17,\"Xj7tfHFSWxI=\")","v":{"$error":"#VALUE!"}},{"$f":"AND('Quick Start Guide'!C17,\"Xj7tfHFSWxM=\")","v":{"$error":"#VALUE!"}},{"$f":"AND('Quick Start Guide'!D17,\"Xj7tfHFSWxQ=\")","v":{"$error":"#VALUE!"}},{"$f":"AND('Quick Start Guide'!E17,\"Xj7tfHFSWxU=\")","v":{"$error":"#VALUE!"}},{"$f":"AND('Quick Start Guide'!#REF!,\"Xj7tfHFSWxY=\")","v":{"$error":"#REF!"}},{"$f":"AND('Quick Start Guide'!#REF!,\"Xj7tfHFSWxc=\")","v":{"$error":"#REF!"}},{"$f":"AND('Quick Start Guide'!#REF!,\"Xj7tfHFSWxg=\")","v":{"$error":"#REF!"}},{"$f":"AND('Quick Start Guide'!#REF!,\"Xj7tfHFSWxk=\")","v":{"$error":"#REF!"}},{"$f":"AND('Quick Start Guide'!#REF!,\"Xj7tfHFSWxo=\")","v":{"$error":"#REF!"}},{"$f":"AND('Quick Start Guide'!F17,\"Xj7tfHFSWxs=\")","v":{"$error":"#VALUE!"}},{"$f":"AND('Quick Start Guide'!G17,\"Xj7tfHFSWxw=\")","v":{"$error":"#VALUE!"}},{"$f":"AND('Quick Start Guide'!H17,\"Xj7tfHFSWx0=\")","v":{"$error":"#VALUE!"}},{"$f":"AND('Quick Start Guide'!I17,\"Xj7tfHFSWx4=\")","v":{"$error":"#VALUE!"}},{"$f":"AND('Quick Start Guide'!J17,\"Xj7tfHFSWx8=\")","v":{"$error":"#VALUE!"}},{"$f":"IF('Quick Start Guide'!18:18,\"Xj7tfHFSWyA=\",0)","v":0},{"$f":"AND('Quick Start Guide'!A18,\"Xj7tfHFSWyE=\")","v":{"$error":"#VALUE!"}},{"$f":"AND('Quick Start Guide'!B18,\"Xj7tfHFSWyI=\")","v":{"$error":"#VALUE!"}},{"$f":"AND('Quick Start Guide'!C18,\"Xj7tfHFSWyM=\")","v":{"$error":"#VALUE!"}},{"$f":"AND('Quick Start Guide'!D18,\"Xj7tfHFSWyQ=\")","v":{"$error":"#VALUE!"}},{"$f":"AND('Quick Start Guide'!E18,\"Xj7tfHFSWyU=\")","v":{"$error":"#VALUE!"}},{"$f":"AND('Quick Start Guide'!#REF!,\"Xj7tfHFSWyY=\")","v":{"$error":"#REF!"}},{"$f":"AND('Quick Start Guide'!#REF!,\"Xj7tfHFSWyc=\")","v":{"$error":"#REF!"}},{"$f":"AND('Quick Start Guide'!#REF!,\"Xj7tfHFSWyg=\")","v":{"$error":"#REF!"}},{"$f":"AND('Quick Start Guide'!#REF!,\"Xj7tfHFSWyk=\")","v":{"$error":"#REF!"}},{"$f":"AND('Quick Start Guide'!#REF!,\"Xj7tfHFSWyo=\")","v":{"$error":"#REF!"}},{"$f":"AND('Quick Start Guide'!F18,\"Xj7tfHFSWys=\")","v":{"$error":"#VALUE!"}},{"$f":"AND('Quick Start Guide'!G18,\"Xj7tfHFSWyw=\")","v":{"$error":"#VALUE!"}},{"$f":"AND('Quick Start Guide'!H18,\"Xj7tfHFSWy0=\")","v":{"$error":"#VALUE!"}},{"$f":"AND('Quick Start Guide'!I18,\"Xj7tfHFSWy4=\")","v":{"$error":"#VALUE!"}},{"$f":"AND('Quick Start Guide'!J18,\"Xj7tfHFSWy8=\")","v":{"$error":"#VALUE!"}},{"$f":"IF('Quick Start Guide'!19:19,\"Xj7tfHFSWzA=\",0)","v":0},{"$f":"AND('Quick Start Guide'!A19,\"Xj7tfHFSWzE=\")","v":{"$error":"#VALUE!"}},{"$f":"AND('Quick Start Guide'!B19,\"Xj7tfHFSWzI=\")","v":{"$error":"#VALUE!"}},{"$f":"AND('Quick Start Guide'!C19,\"Xj7tfHFSWzM=\")","v":{"$error":"#VALUE!"}},{"$f":"AND('Quick Start Guide'!D19,\"Xj7tfHFSWzQ=\")","v":{"$error":"#VALUE!"}},{"$f":"AND('Quick Start Guide'!E19,\"Xj7tfHFSWzU=\")","v":{"$error":"#VALUE!"}},{"$f":"AND('Quick Start Guide'!#REF!,\"Xj7tfHFSWzY=\")","v":{"$error":"#REF!"}},{"$f":"AND('Quick Start Guide'!#REF!,\"Xj7tfHFSWzc=\")","v":{"$error":"#REF!"}},{"$f":"AND('Quick Start Guide'!#REF!,\"Xj7tfHFSWzg=\")","v":{"$error":"#REF!"}},{"$f":"AND('Quick Start Guide'!#REF!,\"Xj7tfHFSWzk=\")","v":{"$error":"#REF!"}},{"$f":"AND('Quick Start Guide'!#REF!,\"Xj7tfHFSWzo=\")","v":{"$error":"#REF!"}},{"$f":"AND('Quick Start Guide'!F19,\"Xj7tfHFSWzs=\")","v":{"$error":"#VALUE!"}},{"$f":"AND('Quick Start Guide'!G19,\"Xj7tfHFSWzw=\")","v":{"$error":"#VALUE!"}},{"$f":"AND('Quick Start Guide'!H19,\"Xj7tfHFSWz0=\")","v":{"$error":"#VALUE!"}},{"$f":"AND('Quick Start Guide'!I19,\"Xj7tfHFSWz4=\")","v":{"$error":"#VALUE!"}},{"$f":"AND('Quick Start Guide'!J19,\"Xj7tfHFSWz8=\")","v":{"$error":"#VALUE!"}},{"$f":"IF('Quick Start Guide'!20:20,\"Xj7tfHFSW0A=\",0)","v":0},{"$f":"AND('Quick Start Guide'!A20,\"Xj7tfHFSW0E=\")","v":{"$error":"#VALUE!"}},{"$f":"AND('Quick Start Guide'!B20,\"Xj7tfHFSW0I=\")","v":{"$error":"#VALUE!"}},{"$f":"AND('Quick Start Guide'!C20,\"Xj7tfHFSW0M=\")","v":{"$error":"#VALUE!"}},{"$f":"AND('Quick Start Guide'!D20,\"Xj7tfHFSW0Q=\")","v":{"$error":"#VALUE!"}},{"$f":"AND('Quick Start Guide'!E20,\"Xj7tfHFSW0U=\")","v":{"$error":"#VALUE!"}},{"$f":"AND('Quick Start Guide'!#REF!,\"Xj7tfHFSW0Y=\")","v":{"$error":"#REF!"}},{"$f":"AND('Quick Start Guide'!#REF!,\"Xj7tfHFSW0c=\")","v":{"$error":"#REF!"}},{"$f":"AND('Quick Start Guide'!#REF!,\"Xj7tfHFSW0g=\")","v":{"$error":"#REF!"}},{"$f":"AND('Quick Start Guide'!#REF!,\"Xj7tfHFSW0k=\")","v":{"$error":"#REF!"}},{"$f":"AND('Quick Start Guide'!#REF!,\"Xj7tfHFSW0o=\")","v":{"$error":"#REF!"}},{"$f":"AND('Quick Start Guide'!F20,\"Xj7tfHFSW0s=\")","v":{"$error":"#VALUE!"}},{"$f":"AND('Quick Start Guide'!G20,\"Xj7tfHFSW0w=\")","v":{"$error":"#VALUE!"}},{"$f":"AND('Quick Start Guide'!H20,\"Xj7tfHFSW00=\")","v":{"$error":"#VALUE!"}},{"$f":"AND('Quick Start Guide'!I20,\"Xj7tfHFSW04=\")","v":{"$error":"#VALUE!"}},{"$f":"AND('Quick Start Guide'!J20,\"Xj7tfHFSW08=\")","v":{"$error":"#VALUE!"}},{"$f":"IF('Quick Start Guide'!21:21,\"Xj7tfHFSW1A=\",0)","v":0},{"$f":"AND('Quick Start Guide'!A21,\"Xj7tfHFSW1E=\")","v":{"$error":"#VALUE!"}},{"$f":"AND('Quick Start Guide'!B21,\"Xj7tfHFSW1I=\")","v":{"$error":"#VALUE!"}},{"$f":"AND('Quick Start Guide'!C21,\"Xj7tfHFSW1M=\")","v":{"$error":"#VALUE!"}},{"$f":"AND('Quick Start Guide'!D21,\"Xj7tfHFSW1Q=\")","v":{"$error":"#VALUE!"}},{"$f":"AND('Quick Start Guide'!E21,\"Xj7tfHFSW1U=\")","v":{"$error":"#VALUE!"}},{"$f":"AND('Quick Start Guide'!#REF!,\"Xj7tfHFSW1Y=\")","v":{"$error":"#REF!"}},{"$f":"AND('Quick Start Guide'!#REF!,\"Xj7tfHFSW1c=\")","v":{"$error":"#REF!"}},{"$f":"AND('Quick Start Guide'!#REF!,\"Xj7tfHFSW1g=\")","v":{"$error":"#REF!"}},{"$f":"AND('Quick Start Guide'!#REF!,\"Xj7tfHFSW1k=\")","v":{"$error":"#REF!"}},{"$f":"AND('Quick Start Guide'!#REF!,\"Xj7tfHFSW1o=\")","v":{"$error":"#REF!"}},{"$f":"AND('Quick Start Guide'!F21,\"Xj7tfHFSW1s=\")","v":{"$error":"#VALUE!"}},{"$f":"AND('Quick Start Guide'!G21,\"Xj7tfHFSW1w=\")","v":{"$error":"#VALUE!"}},{"$f":"AND('Quick Start Guide'!H21,\"Xj7tfHFSW10=\")","v":{"$error":"#VALUE!"}},{"$f":"AND('Quick Start Guide'!I21,\"Xj7tfHFSW14=\")","v":{"$error":"#VALUE!"}},{"$f":"AND('Quick Start Guide'!J21,\"Xj7tfHFSW18=\")","v":{"$error":"#VALUE!"}},{"$f":"IF('Quick Start Guide'!22:22,\"Xj7tfHFSW2A=\",0)","v":0},{"$f":"AND('Quick Start Guide'!A22,\"Xj7tfHFSW2E=\")","v":{"$error":"#VALUE!"}},{"$f":"AND('Quick Start Guide'!B22,\"Xj7tfHFSW2I=\")","v":{"$error":"#VALUE!"}},{"$f":"AND('Quick Start Guide'!C22,\"Xj7tfHFSW2M=\")","v":{"$error":"#VALUE!"}},{"$f":"AND('Quick Start Guide'!D22,\"Xj7tfHFSW2Q=\")","v":{"$error":"#VALUE!"}},{"$f":"AND('Quick Start Guide'!E22,\"Xj7tfHFSW2U=\")","v":{"$error":"#VALUE!"}},{"$f":"AND('Quick Start Guide'!#REF!,\"Xj7tfHFSW2Y=\")","v":{"$error":"#REF!"}},{"$f":"AND('Quick Start Guide'!#REF!,\"Xj7tfHFSW2c=\")","v":{"$error":"#REF!"}},{"$f":"AND('Quick Start Guide'!#REF!,\"Xj7tfHFSW2g=\")","v":{"$error":"#REF!"}},{"$f":"AND('Quick Start Guide'!#REF!,\"Xj7tfHFSW2k=\")","v":{"$error":"#REF!"}},{"$f":"AND('Quick Start Guide'!#REF!,\"Xj7tfHFSW2o=\")","v":{"$error":"#REF!"}},{"$f":"AND('Quick Start Guide'!F22,\"Xj7tfHFSW2s=\")","v":{"$error":"#VALUE!"}},{"$f":"AND('Quick Start Guide'!G22,\"Xj7tfHFSW2w=\")","v":{"$error":"#VALUE!"}},{"$f":"AND('Quick Start Guide'!H22,\"Xj7tfHFSW20=\")","v":{"$error":"#VALUE!"}},{"$f":"AND('Quick Start Guide'!I22,\"Xj7tfHFSW24=\")","v":{"$error":"#VALUE!"}},{"$f":"AND('Quick Start Guide'!J22,\"Xj7tfHFSW28=\")","v":{"$error":"#VALUE!"}},{"$f":"IF('Quick Start Guide'!23:23,\"Xj7tfHFSW3A=\",0)","v":0},{"$f":"AND('Quick Start Guide'!A23,\"Xj7tfHFSW3E=\")","v":{"$error":"#VALUE!"}},{"$f":"AND('Quick Start Guide'!B23,\"Xj7tfHFSW3I=\")","v":{"$error":"#VALUE!"}},{"$f":"AND('Quick Start Guide'!C23,\"Xj7tfHFSW3M=\")","v":{"$error":"#VALUE!"}},{"$f":"AND('Quick Start Guide'!D23,\"Xj7tfHFSW3Q=\")","v":{"$error":"#VALUE!"}},{"$f":"AND('Quick Start Guide'!E23,\"Xj7tfHFSW3U=\")","v":{"$error":"#VALUE!"}},{"$f":"AND('Quick Start Guide'!#REF!,\"Xj7tfHFSW3Y=\")","v":{"$error":"#REF!"}},{"$f":"AND('Quick Start Guide'!#REF!,\"Xj7tfHFSW3c=\")","v":{"$error":"#REF!"}},{"$f":"AND('Quick Start Guide'!#REF!,\"Xj7tfHFSW3g=\")","v":{"$error":"#REF!"}},{"$f":"AND('Quick Start Guide'!#REF!,\"Xj7tfHFSW3k=\")","v":{"$error":"#REF!"}},{"$f":"AND('Quick Start Guide'!#REF!,\"Xj7tfHFSW3o=\")","v":{"$error":"#REF!"}},{"$f":"AND('Quick Start Guide'!F23,\"Xj7tfHFSW3s=\")","v":{"$error":"#VALUE!"}},{"$f":"AND('Quick Start Guide'!G23,\"Xj7tfHFSW3w=\")","v":{"$error":"#VALUE!"}},{"$f":"AND('Quick Start Guide'!H23,\"Xj7tfHFSW30=\")","v":{"$error":"#VALUE!"}},{"$f":"AND('Quick Start Guide'!I23,\"Xj7tfHFSW34=\")","v":{"$error":"#VALUE!"}},{"$f":"AND('Quick Start Guide'!J23,\"Xj7tfHFSW38=\")","v":{"$error":"#VALUE!"}},{"$f":"IF('Quick Start Guide'!24:24,\"Xj7tfHFSW4A=\",0)","v":0},{"$f":"AND('Quick Start Guide'!A24,\"Xj7tfHFSW4E=\")","v":{"$error":"#VALUE!"}},{"$f":"AND('Quick Start Guide'!B24,\"Xj7tfHFSW4I=\")","v":{"$error":"#VALUE!"}},{"$f":"AND('Quick Start Guide'!C24,\"Xj7tfHFSW4M=\")","v":{"$error":"#VALUE!"}},{"$f":"AND('Quick Start Guide'!D24,\"Xj7tfHFSW4Q=\")","v":{"$error":"#VALUE!"}},{"$f":"AND('Quick Start Guide'!E24,\"Xj7tfHFSW4U=\")","v":{"$error":"#VALUE!"}},{"$f":"AND('Quick Start Guide'!#REF!,\"Xj7tfHFSW4Y=\")","v":{"$error":"#REF!"}},{"$f":"AND('Quick Start Guide'!#REF!,\"Xj7tfHFSW4c=\")","v":{"$error":"#REF!"}},{"$f":"AND('Quick Start Guide'!#REF!,\"Xj7tfHFSW4g=\")","v":{"$error":"#REF!"}},{"$f":"AND('Quick Start Guide'!#REF!,\"Xj7tfHFSW4k=\")","v":{"$error":"#REF!"}},{"$f":"AND('Quick Start Guide'!#REF!,\"Xj7tfHFSW4o=\")","v":{"$error":"#REF!"}},{"$f":"AND('Quick Start Guide'!F24,\"Xj7tfHFSW4s=\")","v":{"$error":"#VALUE!"}},{"$f":"AND('Quick Start Guide'!G24,\"Xj7tfHFSW4w=\")","v":{"$error":"#VALUE!"}},{"$f":"AND('Quick Start Guide'!H24,\"Xj7tfHFSW40=\")","v":{"$error":"#VALUE!"}},{"$f":"AND('Quick Start Guide'!I24,\"Xj7tfHFSW44=\")","v":{"$error":"#VALUE!"}},{"$f":"AND('Quick Start Guide'!J24,\"Xj7tfHFSW48=\")","v":{"$error":"#VALUE!"}},{"$f":"IF('Quick Start Guide'!25:25,\"Xj7tfHFSW5A=\",0)","v":0},{"$f":"AND('Quick Start Guide'!A25,\"Xj7tfHFSW5E=\")","v":{"$error":"#VALUE!"}},{"$f":"AND('Quick Start Guide'!B25,\"Xj7tfHFSW5I=\")","v":{"$error":"#VALUE!"}},{"$f":"AND('Quick Start Guide'!C25,\"Xj7tfHFSW5M=\")","v":{"$error":"#VALUE!"}},{"$f":"AND('Quick Start Guide'!D25,\"Xj7tfHFSW5Q=\")","v":{"$error":"#VALUE!"}},{"$f":"AND('Quick Start Guide'!E25,\"Xj7tfHFSW5U=\")","v":{"$error":"#VALUE!"}},{"$f":"AND('Quick Start Guide'!#REF!,\"Xj7tfHFSW5Y=\")","v":{"$error":"#REF!"}},{"$f":"AND('Quick Start Guide'!#REF!,\"Xj7tfHFSW5c=\")","v":{"$error":"#REF!"}},{"$f":"AND('Quick Start Guide'!#REF!,\"Xj7tfHFSW5g=\")","v":{"$error":"#REF!"}},{"$f":"AND('Quick Start Guide'!#REF!,\"Xj7tfHFSW5k=\")","v":{"$error":"#REF!"}},{"$f":"AND('Quick Start Guide'!#REF!,\"Xj7tfHFSW5o=\")","v":{"$error":"#REF!"}},{"$f":"AND('Quick Start Guide'!F25,\"Xj7tfHFSW5s=\")","v":{"$error":"#VALUE!"}},{"$f":"AND('Quick Start Guide'!G25,\"Xj7tfHFSW5w=\")","v":{"$error":"#VALUE!"}},{"$f":"AND('Quick Start Guide'!H25,\"Xj7tfHFSW50=\")","v":{"$error":"#VALUE!"}},{"$f":"AND('Quick Start Guide'!I25,\"Xj7tfHFSW54=\")","v":{"$error":"#VALUE!"}},{"$f":"AND('Quick Start Guide'!J25,\"Xj7tfHFSW58=\")","v":{"$error":"#VALUE!"}},{"$f":"IF('Quick Start Guide'!26:26,\"Xj7tfHFSW6A=\",0)","v":0},{"$f":"AND('Quick Start Guide'!A26,\"Xj7tfHFSW6E=\")","v":{"$error":"#VALUE!"}},{"$f":"AND('Quick Start Guide'!B26,\"Xj7tfHFSW6I=\")","v":{"$error":"#VALUE!"}},{"$f":"AND('Quick Start Guide'!C26,\"Xj7tfHFSW6M=\")","v":{"$error":"#VALUE!"}},{"$f":"AND('Quick Start Guide'!D26,\"Xj7tfHFSW6Q=\")","v":{"$error":"#VALUE!"}},{"$f":"AND('Quick Start Guide'!E26,\"Xj7tfHFSW6U=\")","v":{"$error":"#VALUE!"}},{"$f":"AND('Quick Start Guide'!#REF!,\"Xj7tfHFSW6Y=\")","v":{"$error":"#REF!"}},{"$f":"AND('Quick Start Guide'!#REF!,\"Xj7tfHFSW6c=\")","v":{"$error":"#REF!"}},{"$f":"AND('Quick Start Guide'!#REF!,\"Xj7tfHFSW6g=\")","v":{"$error":"#REF!"}},{"$f":"AND('Quick Start Guide'!#REF!,\"Xj7tfHFSW6k=\")","v":{"$error":"#REF!"}},{"$f":"AND('Quick Start Guide'!#REF!,\"Xj7tfHFSW6o=\")","v":{"$error":"#REF!"}},{"$f":"AND('Quick Start Guide'!F26,\"Xj7tfHFSW6s=\")","v":{"$error":"#VALUE!"}},{"$f":"AND('Quick Start Guide'!G26,\"Xj7tfHFSW6w=\")","v":{"$error":"#VALUE!"}},{"$f":"AND('Quick Start Guide'!H26,\"Xj7tfHFSW60=\")","v":{"$error":"#VALUE!"}},{"$f":"AND('Quick Start Guide'!I26,\"Xj7tfHFSW64=\")","v":{"$error":"#VALUE!"}},{"$f":"AND('Quick Start Guide'!J26,\"Xj7tfHFSW68=\")","v":{"$error":"#VALUE!"}},{"$f":"IF('Quick Start Guide'!27:27,\"Xj7tfHFSW7A=\",0)","v":0},{"$f":"AND('Quick Start Guide'!A27,\"Xj7tfHFSW7E=\")","v":{"$error":"#VALUE!"}},{"$f":"AND('Quick Start Guide'!B27,\"Xj7tfHFSW7I=\")","v":{"$error":"#VALUE!"}},{"$f":"AND('Quick Start Guide'!C27,\"Xj7tfHFSW7M=\")","v":{"$error":"#VALUE!"}},{"$f":"AND('Quick Start Guide'!D27,\"Xj7tfHFSW7Q=\")","v":{"$error":"#VALUE!"}},{"$f":"AND('Quick Start Guide'!E27,\"Xj7tfHFSW7U=\")","v":{"$error":"#VALUE!"}},{"$f":"AND('Quick Start Guide'!#REF!,\"Xj7tfHFSW7Y=\")","v":{"$error":"#REF!"}},{"$f":"AND('Quick Start Guide'!#REF!,\"Xj7tfHFSW7c=\")","v":{"$error":"#REF!"}},{"$f":"AND('Quick Start Guide'!#REF!,\"Xj7tfHFSW7g=\")","v":{"$error":"#REF!"}},{"$f":"AND('Quick Start Guide'!#REF!,\"Xj7tfHFSW7k=\")","v":{"$error":"#REF!"}},{"$f":"AND('Quick Start Guide'!#REF!,\"Xj7tfHFSW7o=\")","v":{"$error":"#REF!"}},{"$f":"AND('Quick Start Guide'!F27,\"Xj7tfHFSW7s=\")","v":{"$error":"#VALUE!"}},{"$f":"AND('Quick Start Guide'!G27,\"Xj7tfHFSW7w=\")","v":{"$error":"#VALUE!"}},{"$f":"AND('Quick Start Guide'!H27,\"Xj7tfHFSW70=\")","v":{"$error":"#VALUE!"}},{"$f":"AND('Quick Start Guide'!I27,\"Xj7tfHFSW74=\")","v":{"$error":"#VALUE!"}},{"$f":"AND('Quick Start Guide'!J27,\"Xj7tfHFSW78=\")","v":{"$error":"#VALUE!"}},{"$f":"IF('Quick Start Guide'!28:28,\"Xj7tfHFSW8A=\",0)","v":0},{"$f":"AND('Quick Start Guide'!A28,\"Xj7tfHFSW8E=\")","v":{"$error":"#VALUE!"}},{"$f":"AND('Quick Start Guide'!B28,\"Xj7tfHFSW8I=\")","v":{"$error":"#VALUE!"}},{"$f":"AND('Quick Start Guide'!C28,\"Xj7tfHFSW8M=\")","v":{"$error":"#VALUE!"}},{"$f":"AND('Quick Start Guide'!D28,\"Xj7tfHFSW8Q=\")","v":{"$error":"#VALUE!"}},{"$f":"AND('Quick Start Guide'!E28,\"Xj7tfHFSW8U=\")","v":{"$error":"#VALUE!"}},{"$f":"AND('Quick Start Guide'!#REF!,\"Xj7tfHFSW8Y=\")","v":{"$error":"#REF!"}},{"$f":"AND('Quick Start Guide'!#REF!,\"Xj7tfHFSW8c=\")","v":{"$error":"#REF!"}},{"$f":"AND('Quick Start Guide'!#REF!,\"Xj7tfHFSW8g=\")","v":{"$error":"#REF!"}},{"$f":"AND('Quick Start Guide'!#REF!,\"Xj7tfHFSW8k=\")","v":{"$error":"#REF!"}},{"$f":"AND('Quick Start Guide'!#REF!,\"Xj7tfHFSW8o=\")","v":{"$error":"#REF!"}},{"$f":"AND('Quick Start Guide'!F28,\"Xj7tfHFSW8s=\")","v":{"$error":"#VALUE!"}},{"$f":"AND('Quick Start Guide'!G28,\"Xj7tfHFSW8w=\")","v":{"$error":"#VALUE!"}},{"$f":"AND('Quick Start Guide'!H28,\"Xj7tfHFSW80=\")","v":{"$error":"#VALUE!"}},{"$f":"AND('Quick Start Guide'!I28,\"Xj7tfHFSW84=\")","v":{"$error":"#VALUE!"}},{"$f":"AND('Quick Start Guide'!J28,\"Xj7tfHFSW88=\")","v":{"$error":"#VALUE!"}},{"$f":"IF('Quick Start Guide'!#REF!,\"Xj7tfHFSW9A=\",0)","v":{"$error":"#REF!"}},{"$f":"AND('Quick Start Guide'!#REF!,\"Xj7tfHFSW9E=\")","v":{"$error":"#REF!"}},{"$f":"AND('Quick Start Guide'!#REF!,\"Xj7tfHFSW9I=\")","v":{"$error":"#REF!"}},{"$f":"AND('Quick Start Guide'!#REF!,\"Xj7tfHFSW9M=\")","v":{"$error":"#REF!"}},{"$f":"AND('Quick Start Guide'!#REF!,\"Xj7tfHFSW9Q=\")","v":{"$error":"#REF!"}},{"$f":"AND('Quick Start Guide'!#REF!,\"Xj7tfHFSW9U=\")","v":{"$error":"#REF!"}},{"$f":"AND('Quick Start Guide'!#REF!,\"Xj7tfHFSW9Y=\")","v":{"$error":"#REF!"}},{"$f":"AND('Quick Start Guide'!#REF!,\"Xj7tfHFSW9c=\")","v":{"$error":"#REF!"}},{"$f":"AND('Quick Start Guide'!#REF!,\"Xj7tfHFSW9g=\")","v":{"$error":"#REF!"}},{"$f":"AND('Quick Start Guide'!#REF!,\"Xj7tfHFSW9k=\")","v":{"$error":"#REF!"}},{"$f":"AND('Quick Start Guide'!#REF!,\"Xj7tfHFSW9o=\")","v":{"$error":"#REF!"}},{"$f":"AND('Quick Start Guide'!#REF!,\"Xj7tfHFSW9s=\")","v":{"$error":"#REF!"}},{"$f":"AND('Quick Start Guide'!#REF!,\"Xj7tfHFSW9w=\")","v":{"$error":"#REF!"}},{"$f":"AND('Quick Start Guide'!#REF!,\"Xj7tfHFSW90=\")","v":{"$error":"#REF!"}},{"$f":"AND('Quick Start Guide'!#REF!,\"Xj7tfHFSW94=\")","v":{"$error":"#REF!"}},{"$f":"AND('Quick Start Guide'!#REF!,\"Xj7tfHFSW98=\")","v":{"$error":"#REF!"}},{"$f":"IF('Quick Start Guide'!39:39,\"Xj7tfHFSW+A=\",0)","v":0},{"$f":"AND('Quick Start Guide'!A39,\"Xj7tfHFSW+E=\")","v":{"$error":"#VALUE!"}},{"$f":"AND('Quick Start Guide'!B39,\"Xj7tfHFSW+I=\")","v":{"$error":"#VALUE!"}},{"$f":"AND('Quick Start Guide'!C39,\"Xj7tfHFSW+M=\")","v":{"$error":"#VALUE!"}},{"$f":"AND('Quick Start Guide'!D39,\"Xj7tfHFSW+Q=\")","v":{"$error":"#VALUE!"}},{"$f":"AND('Quick Start Guide'!E39,\"Xj7tfHFSW+U=\")","v":{"$error":"#VALUE!"}},{"$f":"AND('Quick Start Guide'!#REF!,\"Xj7tfHFSW+Y=\")","v":{"$error":"#REF!"}},{"$f":"AND('Quick Start Guide'!#REF!,\"Xj7tfHFSW+c=\")","v":{"$error":"#REF!"}},{"$f":"AND('Quick Start Guide'!#REF!,\"Xj7tfHFSW+g=\")","v":{"$error":"#REF!"}},{"$f":"AND('Quick Start Guide'!#REF!,\"Xj7tfHFSW+k=\")","v":{"$error":"#REF!"}},{"$f":"AND('Quick Start Guide'!#REF!,\"Xj7tfHFSW+o=\")","v":{"$error":"#REF!"}},{"$f":"AND('Quick Start Guide'!F39,\"Xj7tfHFSW+s=\")","v":{"$error":"#VALUE!"}},{"$f":"AND('Quick Start Guide'!G39,\"Xj7tfHFSW+w=\")","v":{"$error":"#VALUE!"}},{"$f":"AND('Quick Start Guide'!H39,\"Xj7tfHFSW+0=\")","v":{"$error":"#VALUE!"}},{"$f":"AND('Quick Start Guide'!I39,\"Xj7tfHFSW+4=\")","v":{"$error":"#VALUE!"}},{"$f":"AND('Quick Start Guide'!J39,\"Xj7tfHFSW+8=\")","v":{"$error":"#VALUE!"}},{"$f":"IF('Quick Start Guide'!40:40,\"Xj7tfHFSW/A=\",0)","v":0},{"$f":"AND('Quick Start Guide'!A40,\"Xj7tfHFSW/E=\")","v":{"$error":"#VALUE!"}},{"$f":"AND('Quick Start Guide'!B40,\"Xj7tfHFSW/I=\")","v":{"$error":"#VALUE!"}},{"$f":"AND('Quick Start Guide'!C40,\"Xj7tfHFSW/M=\")","v":{"$error":"#VALUE!"}},{"$f":"AND('Quick Start Guide'!D40,\"Xj7tfHFSW/Q=\")","v":{"$error":"#VALUE!"}},{"$f":"AND('Quick Start Guide'!E40,\"Xj7tfHFSW/U=\")","v":{"$error":"#VALUE!"}},{"$f":"AND('Quick Start Guide'!#REF!,\"Xj7tfHFSW/Y=\")","v":{"$error":"#REF!"}},{"$f":"AND('Quick Start Guide'!#REF!,\"Xj7tfHFSW/c=\")","v":{"$error":"#REF!"}},{"$f":"AND('Quick Start Guide'!#REF!,\"Xj7tfHFSW/g=\")","v":{"$error":"#REF!"}},{"$f":"AND('Quick Start Guide'!#REF!,\"Xj7tfHFSW/k=\")","v":{"$error":"#REF!"}},{"$f":"AND('Quick Start Guide'!#REF!,\"Xj7tfHFSW/o=\")","v":{"$error":"#REF!"}},{"$f":"AND('Quick Start Guide'!F40,\"Xj7tfHFSW/s=\")","v":{"$error":"#VALUE!"}},{"$f":"AND('Quick Start Guide'!G40,\"Xj7tfHFSW/w=\")","v":{"$error":"#VALUE!"}},{"$f":"AND('Quick Start Guide'!H40,\"Xj7tfHFSW/0=\")","v":{"$error":"#VALUE!"}},{"$f":"AND('Quick Start Guide'!I40,\"Xj7tfHFSW/4=\")","v":{"$error":"#VALUE!"}},{"$f":"AND('Quick Start Guide'!J40,\"Xj7tfHFSW/8=\")","v":{"$error":"#VALUE!"}}]
[{"$f":"IF('Quick Start Guide'!41:41,\"Qr+hlzh+CgA=\",0)","v":0},{"$f":"AND('Quick Start Guide'!B41,\"Qr+hlzh+CgE=\")","v":{"$error":"#VALUE!"}},{"$f":"IF('Quick Start Guide'!#REF!,\"Qr+hlzh+CgI=\",0)","v":{"$error":"#REF!"}},{"$f":"IF('Quick Start Guide'!42:42,\"Qr+hlzh+CgM=\",0)","v":0},{"$f":"IF('Quick Start Guide'!44:44,\"Qr+hlzh+CgQ=\",0)","v":0},{"$f":"IF('Quick Start Guide'!45:45,\"Qr+hlzh+CgU=\",0)","v":0},{"$f":"IF('Quick Start Guide'!#REF!,\"Qr+hlzh+CgY=\",0)","v":{"$error":"#REF!"}},{"$f":"IF('Quick Start Guide'!#REF!,\"Qr+hlzh+Cgc=\",0)","v":{"$error":"#REF!"}},{"$f":"IF('Quick Start Guide'!#REF!,\"Qr+hlzh+Cgg=\",0)","v":{"$error":"#REF!"}},{"$f":"IF('Quick Start Guide'!#REF!,\"Qr+hlzh+Cgk=\",0)","v":{"$error":"#REF!"}},{"$f":"IF('Quick Start Guide'!#REF!,\"Qr+hlzh+Cgo=\",0)","v":{"$error":"#REF!"}},{"$f":"IF('Quick Start Guide'!#REF!,\"Qr+hlzh+Cgs=\",0)","v":{"$error":"#REF!"}},{"$f":"IF('Quick Start Guide'!#REF!,\"Qr+hlzh+Cgw=\",0)","v":{"$error":"#REF!"}},{"$f":"IF('Quick Start Guide'!#REF!,\"Qr+hlzh+Cg0=\",0)","v":{"$error":"#REF!"}},{"$f":"IF('Quick Start Guide'!#REF!,\"Qr+hlzh+Cg4=\",0)","v":{"$error":"#REF!"}},{"$f":"IF('Quick Start Guide'!#REF!,\"Qr+hlzh+Cg8=\",0)","v":{"$error":"#REF!"}},{"$f":"IF('Quick Start Guide'!A:A,\"Qr+hlzh+ChA=\",0)","v":0},{"$f":"IF('Quick Start Guide'!B:B,\"Qr+hlzh+ChE=\",0)","v":0},{"$f":"IF('Quick Start Guide'!C:C,\"Qr+hlzh+ChI=\",0)","v":0},{"$f":"IF('Quick Start Guide'!D:D,\"Qr+hlzh+ChM=\",0)","v":0},{"$f":"IF('Quick Start Guide'!E:E,\"Qr+hlzh+ChQ=\",0)","v":0},{"$f":"IF('Quick Start Guide'!#REF!,\"Qr+hlzh+ChU=\",0)","v":{"$error":"#REF!"}},{"$f":"IF('Quick Start Guide'!#REF!,\"Qr+hlzh+ChY=\",0)","v":{"$error":"#REF!"}},{"$f":"IF('Quick Start Guide'!#REF!,\"Qr+hlzh+Chc=\",0)","v":{"$error":"#REF!"}},{"$f":"IF('Quick Start Guide'!#REF!,\"Qr+hlzh+Chg=\",0)","v":{"$error":"#REF!"}},{"$f":"IF('Quick Start Guide'!#REF!,\"Qr+hlzh+Chk=\",0)","v":{"$error":"#REF!"}},{"$f":"IF('Quick Start Guide'!F:F,\"Qr+hlzh+Cho=\",0)","v":0},{"$f":"IF('Quick Start Guide'!G:G,\"Qr+hlzh+Chs=\",0)","v":0},{"$f":"IF('Quick Start Guide'!H:H,\"Qr+hlzh+Chw=\",0)","v":0},{"$f":"IF('Quick Start Guide'!I:I,\"Qr+hlzh+Ch0=\",0)","v":0},{"$f":"IF('Quick Start Guide'!J:J,\"Qr+hlzh+Ch4=\",0)","v":0},{"$f":"IF('Physical Inputs'!#REF!,\"Qr+hlzh+Ch8=\",0)","v":{"$error":"#REF!"}},{"$f":"AND('Physical Inputs'!A19,\"Qr+hlzh+CiA=\")","v":{"$error":"#VALUE!"}},{"$f":"AND('Physical Inputs'!#REF!,\"Qr+hlzh+CiE=\")","v":{"$error":"#REF!"}},{"$f":"AND('Physical Inputs'!#REF!,\"Qr+hlzh+CiI=\")","v":{"$error":"#REF!"}},{"$f":"AND('Physical Inputs'!#REF!,\"Qr+hlzh+CiM=\")","v":{"$error":"#REF!"}},{"$f":"AND('Physical Inputs'!#REF!,\"Qr+hlzh+CiQ=\")","v":{"$error":"#REF!"}},{"$f":"AND('Physical Inputs'!#REF!,\"Qr+hlzh+CiU=\")","v":{"$error":"#REF!"}},{"$f":"AND('Physical Outputs'!A19,\"Qr+hlzh+CiY=\")","v":{"$error":"#VALUE!"}},{"$f":"AND('Physical Inputs'!#REF!,\"Qr+hlzh+Cic=\")","v":{"$error":"#REF!"}},{"$f":"AND('Physical Inputs'!#REF!,\"Qr+hlzh+Cig=\")","v":{"$error":"#REF!"}},{"$f":"AND('Physical Inputs'!#REF!,\"Qr+hlzh+Cik=\")","v":{"$error":"#REF!"}},{"$f":"AND('Physical Inputs'!#REF!,\"Qr+hlzh+Cio=\")","v":{"$error":"#REF!"}},{"$f":"AND('Physical Inputs'!#REF!,\"Qr+hlzh+Cis=\")","v":{"$error":"#REF!"}},{"$f":"AND('Physical Inputs'!#REF!,\"Qr+hlzh+Ciw=\")","v":{"$error":"#REF!"}},{"$f":"AND('Physical Inputs'!#REF!,\"Qr+hlzh+Ci0=\")","v":{"$error":"#REF!"}},{"$f":"AND('Physical Inputs'!#REF!,\"Qr+hlzh+Ci4=\")","v":{"$error":"#REF!"}},{"$f":"AND('Physical Inputs'!#REF!,\"Qr+hlzh+Ci8=\")","v":{"$error":"#REF!"}},{"$f":"AND('Physical Inputs'!#REF!,\"Qr+hlzh+CjA=\")","v":{"$error":"#REF!"}},{"$f":"AND('Physical Inputs'!#REF!,\"Qr+hlzh+CjE=\")","v":{"$error":"#REF!"}},{"$f":"AND('Physical Inputs'!#REF!,\"Qr+hlzh+CjI=\")","v":{"$error":"#REF!"}},{"$f":"AND('Physical Inputs'!#REF!,\"Qr+hlzh+CjM=\")","v":{"$error":"#REF!"}},{"$f":"AND('Physical Inputs'!#REF!,\"Qr+hlzh+CjQ=\")","v":{"$error":"#REF!"}},{"$f":"AND('Physical Inputs'!#REF!,\"Qr+hlzh+CjU=\")","v":{"$error":"#REF!"}},{"$f":"IF('Physical Inputs'!19:19,\"Qr+hlzh+CjY=\",0)","v":0},{"$f":"AND('Physical Inputs'!#REF!,\"Qr+hlzh+Cjc=\")","v":{"$error":"#REF!"}},{"$f":"AND('Physical Inputs'!B19,\"Qr+hlzh+Cjg=\")","v":{"$error":"#VALUE!"}},{"$f":"AND('Physical Inputs'!C19,\"Qr+hlzh+Cjk=\")","v":{"$error":"#VALUE!"}},{"$f":"AND('Physical Inputs'!D19,\"Qr+hlzh+Cjo=\")","v":{"$error":"#VALUE!"}},{"$f":"AND('Physical Inputs'!E19,\"Qr+hlzh+Cjs=\")","v":{"$error":"#VALUE!"}},{"$f":"AND('Physical Inputs'!#REF!,\"Qr+hlzh+Cjw=\")","v":{"$error":"#REF!"}},{"$f":"AND('Physical Inputs'!#REF!,\"Qr+hlzh+Cj0=\")","v":{"$error":"#REF!"}},{"$f":"AND('Physical Outputs'!B19,\"Qr+hlzh+Cj4=\")","v":{"$error":"#VALUE!"}},{"$f":"AND('Physical Outputs'!C19,\"Qr+hlzh+Cj8=\")","v":{"$error":"#VALUE!"}},{"$f":"AND('Physical Outputs'!D19,\"Qr+hlzh+CkA=\")","v":{"$error":"#VALUE!"}},{"$f":"AND('Physical Outputs'!E19,\"Qr+hlzh+CkE=\")","v":{"$error":"#VALUE!"}},{"$f":"AND('Physical Outputs'!F19,\"Qr+hlzh+CkI=\")","v":{"$error":"#VALUE!"}},{"$f":"AND('Physical Outputs'!G19,\"Qr+hlzh+CkM=\")","v":{"$error":"#VALUE!"}},{"$f":"AND('Physical Inputs'!L19,\"Qr+hlzh+CkQ=\")","v":{"$error":"#VALUE!"}},{"$f":"AND('Physical Inputs'!M19,\"Qr+hlzh+CkU=\")","v":{"$error":"#VALUE!"}},{"$f":"AND('Physical Inputs'!N19,\"Qr+hlzh+CkY=\")","v":{"$error":"#VALUE!"}},{"$f":"AND('Physical Inputs'!O19,\"Qr+hlzh+Ckc=\")","v":{"$error":"#VALUE!"}},{"$f":"AND('Physical Inputs'!A162,\"Qr+hlzh+Ckg=\")","v":{"$error":"#VALUE!"}},{"$f":"AND('Physical Inputs'!A167,\"Qr+hlzh+Ckk=\")","v":{"$error":"#VALUE!"}},{"$f":"AND('Physical Inputs'!R19,\"Qr+hlzh+Cko=\")","v":{"$error":"#VALUE!"}},{"$f":"AND('Physical Inputs'!S19,\"Qr+hlzh+Cks=\")","v":{"$error":"#VALUE!"}},{"$f":"AND('Physical Inputs'!T19,\"Qr+hlzh+Ckw=\")","v":{"$error":"#VALUE!"}},{"$f":"IF('Physical Inputs'!20:20,\"Qr+hlzh+Ck0=\",0)","v":0},{"$f":"AND('Physical Inputs'!A20,\"Qr+hlzh+Ck4=\")","v":{"$error":"#VALUE!"}},{"$f":"AND('Physical Inputs'!B20,\"Qr+hlzh+Ck8=\")","v":{"$error":"#VALUE!"}},{"$f":"AND('Physical Inputs'!C20,\"Qr+hlzh+ClA=\")","v":{"$error":"#VALUE!"}},{"$f":"AND('Physical Inputs'!D20,\"Qr+hlzh+ClE=\")","v":{"$error":"#VALUE!"}},{"$f":"AND('Physical Inputs'!E20,\"Qr+hlzh+ClI=\")","v":{"$error":"#VALUE!"}},{"$f":"AND('Physical Inputs'!#REF!,\"Qr+hlzh+ClM=\")","v":{"$error":"#REF!"}},{"$f":"AND('Physical Outputs'!A20,\"Qr+hlzh+ClQ=\")","v":{"$error":"#VALUE!"}},{"$f":"AND('Physical Outputs'!B20,\"Qr+hlzh+ClU=\")","v":{"$error":"#VALUE!"}},{"$f":"AND('Physical Outputs'!C20,\"Qr+hlzh+ClY=\")","v":{"$error":"#VALUE!"}},{"$f":"AND('Physical Outputs'!D20,\"Qr+hlzh+Clc=\")","v":{"$error":"#VALUE!"}},{"$f":"AND('Physical Outputs'!E20,\"Qr+hlzh+Clg=\")","v":{"$error":"#VALUE!"}},{"$f":"AND('Physical Outputs'!F20,\"Qr+hlzh+Clk=\")","v":{"$error":"#VALUE!"}},{"$f":"AND('Physical Outputs'!G20,\"Qr+hlzh+Clo=\")","v":{"$error":"#VALUE!"}},{"$f":"AND('Physical Inputs'!L20,\"Qr+hlzh+Cls=\")","v":{"$error":"#VALUE!"}},{"$f":"AND('Physical Inputs'!M20,\"Qr+hlzh+Clw=\")","v":{"$error":"#VALUE!"}},{"$f":"AND('Physical Inputs'!N20,\"Qr+hlzh+Cl0=\")","v":{"$error":"#VALUE!"}},{"$f":"AND('Physical Inputs'!O20,\"Qr+hlzh+Cl4=\")","v":{"$error":"#VALUE!"}},{"$f":"AND('Physical Inputs'!A163,\"Qr+hlzh+Cl8=\")","v":{"$error":"#VALUE!"}},{"$f":"AND('Physical Inputs'!A168,\"Qr+hlzh+CmA=\")","v":{"$error":"#VALUE!"}},{"$f":"AND('Physical Inputs'!R20,\"Qr+hlzh+CmE=\")","v":{"$error":"#VALUE!"}},{"$f":"AND('Physical Inputs'!S20,\"Qr+hlzh+CmI=\")","v":{"$error":"#VALUE!"}},{"$f":"AND('Physical Inputs'!T20,\"Qr+hlzh+CmM=\")","v":{"$error":"#VALUE!"}},{"$f":"IF('Physical Inputs'!21:21,\"Qr+hlzh+CmQ=\",0)","v":0},{"$f":"AND('Physical Inputs'!A21,\"Qr+hlzh+CmU=\")","v":{"$error":"#VALUE!"}},{"$f":"AND('Physical Inputs'!B21,\"Qr+hlzh+CmY=\")","v":{"$error":"#VALUE!"}},{"$f":"AND('Physical Inputs'!C21,\"Qr+hlzh+Cmc=\")","v":{"$error":"#VALUE!"}},{"$f":"AND('Physical Inputs'!D21,\"Qr+hlzh+Cmg=\")","v":{"$error":"#VALUE!"}},{"$f":"AND('Physical Inputs'!E21,\"Qr+hlzh+Cmk=\")","v":{"$error":"#VALUE!"}},{"$f":"AND('Physical Inputs'!#REF!,\"Qr+hlzh+Cmo=\")","v":{"$error":"#REF!"}},{"$f":"AND('Physical Outputs'!A21,\"Qr+hlzh+Cms=\")","v":{"$error":"#VALUE!"}},{"$f":"AND('Physical Outputs'!B21,\"Qr+hlzh+Cmw=\")","v":{"$error":"#VALUE!"}},{"$f":"AND('Physical Outputs'!C21,\"Qr+hlzh+Cm0=\")","v":{"$error":"#VALUE!"}},{"$f":"AND('Physical Outputs'!D21,\"Qr+hlzh+Cm4=\")","v":{"$error":"#VALUE!"}},{"$f":"AND('Physical Outputs'!E21,\"Qr+hlzh+Cm8=\")","v":{"$error":"#VALUE!"}},{"$f":"AND('Physical Outputs'!F21,\"Qr+hlzh+CnA=\")","v":{"$error":"#VALUE!"}},{"$f":"AND('Physical Outputs'!G21,\"Qr+hlzh+CnE=\")","v":{"$error":"#VALUE!"}},{"$f":"AND('Physical Inputs'!L21,\"Qr+hlzh+CnI=\")","v":{"$error":"#VALUE!"}},{"$f":"AND('Physical Inputs'!M21,\"Qr+hlzh+CnM=\")","v":{"$error":"#VALUE!"}},{"$f":"AND('Physical Inputs'!N21,\"Qr+hlzh+CnQ=\")","v":{"$error":"#VALUE!"}},{"$f":"AND('Physical Inputs'!O21,\"Qr+hlzh+CnU=\")","v":{"$error":"#VALUE!"}},{"$f":"AND('Physical Inputs'!A164,\"Qr+hlzh+CnY=\")","v":{"$error":"#VALUE!"}},{"$f":"AND('Physical Inputs'!A169,\"Qr+hlzh+Cnc=\")","v":{"$error":"#VALUE!"}},{"$f":"AND('Physical Inputs'!R21,\"Qr+hlzh+Cng=\")","v":{"$error":"#VALUE!"}},{"$f":"AND('Physical Inputs'!S21,\"Qr+hlzh+Cnk=\")","v":{"$error":"#VALUE!"}},{"$f":"AND('Physical Inputs'!T21,\"Qr+hlzh+Cno=\")","v":{"$error":"#VALUE!"}},{"$f":"IF('Physical Inputs'!22:22,\"Qr+hlzh+Cns=\",0)","v":0},{"$f":"AND('Physical Inputs'!A22,\"Qr+hlzh+Cnw=\")","v":{"$error":"#VALUE!"}},{"$f":"AND('Physical Inputs'!B22,\"Qr+hlzh+Cn0=\")","v":{"$error":"#VALUE!"}},{"$f":"AND('Physical Inputs'!C22,\"Qr+hlzh+Cn4=\")","v":{"$error":"#VALUE!"}},{"$f":"AND('Physical Inputs'!D22,\"Qr+hlzh+Cn8=\")","v":{"$error":"#VALUE!"}},{"$f":"AND('Physical Inputs'!E22,\"Qr+hlzh+CoA=\")","v":{"$error":"#VALUE!"}},{"$f":"AND('Physical Inputs'!#REF!,\"Qr+hlzh+CoE=\")","v":{"$error":"#REF!"}},{"$f":"AND('Physical Outputs'!A22,\"Qr+hlzh+CoI=\")","v":{"$error":"#VALUE!"}},{"$f":"AND('Physical Outputs'!B22,\"Qr+hlzh+CoM=\")","v":{"$error":"#VALUE!"}},{"$f":"AND('Physical Outputs'!C22,\"Qr+hlzh+CoQ=\")","v":{"$error":"#VALUE!"}},{"$f":"AND('Physical Outputs'!D22,\"Qr+hlzh+CoU=\")","v":{"$error":"#VALUE!"}},{"$f":"AND('Physical Outputs'!E22,\"Qr+hlzh+CoY=\")","v":{"$error":"#VALUE!"}},{"$f":"AND('Physical Outputs'!F22,\"Qr+hlzh+Coc=\")","v":{"$error":"#VALUE!"}},{"$f":"AND('Physical Outputs'!G22,\"Qr+hlzh+Cog=\")","v":{"$error":"#VALUE!"}},{"$f":"AND('Physical Inputs'!L22,\"Qr+hlzh+Cok=\")","v":{"$error":"#VALUE!"}},{"$f":"AND('Physical Inputs'!M22,\"Qr+hlzh+Coo=\")","v":{"$error":"#VALUE!"}},{"$f":"AND('Physical Inputs'!N22,\"Qr+hlzh+Cos=\")","v":{"$error":"#VALUE!"}},{"$f":"AND('Physical Inputs'!O22,\"Qr+hlzh+Cow=\")","v":{"$error":"#VALUE!"}},{"$f":"AND('Physical Inputs'!#REF!,\"Qr+hlzh+Co0=\")","v":{"$error":"#REF!"}},{"$f":"AND('Physical Inputs'!A170,\"Qr+hlzh+Co4=\")","v":{"$error":"#VALUE!"}},{"$f":"AND('Physical Inputs'!R22,\"Qr+hlzh+Co8=\")","v":{"$error":"#VALUE!"}},{"$f":"AND('Physical Inputs'!S22,\"Qr+hlzh+CpA=\")","v":{"$error":"#VALUE!"}},{"$f":"AND('Physical Inputs'!T22,\"Qr+hlzh+CpE=\")","v":{"$error":"#VALUE!"}},{"$f":"IF('Physical Inputs'!23:23,\"Qr+hlzh+CpI=\",0)","v":0},{"$f":"AND('Physical Inputs'!A23,\"Qr+hlzh+CpM=\")","v":{"$error":"#VALUE!"}},{"$f":"AND('Physical Inputs'!B23,\"Qr+hlzh+CpQ=\")","v":{"$error":"#VALUE!"}},{"$f":"AND('Physical Inputs'!C23,\"Qr+hlzh+CpU=\")","v":{"$error":"#VALUE!"}},{"$f":"AND('Physical Inputs'!D23,\"Qr+hlzh+CpY=\")","v":{"$error":"#VALUE!"}},{"$f":"AND('Physical Inputs'!E23,\"Qr+hlzh+Cpc=\")","v":{"$error":"#VALUE!"}},{"$f":"AND('Physical Inputs'!#REF!,\"Qr+hlzh+Cpg=\")","v":{"$error":"#REF!"}},{"$f":"AND('Physical Outputs'!A23,\"Qr+hlzh+Cpk=\")","v":{"$error":"#VALUE!"}},{"$f":"AND('Physical Outputs'!B23,\"Qr+hlzh+Cpo=\")","v":{"$error":"#VALUE!"}},{"$f":"AND('Physical Outputs'!C23,\"Qr+hlzh+Cps=\")","v":{"$error":"#VALUE!"}},{"$f":"AND('Physical Outputs'!D23,\"Qr+hlzh+Cpw=\")","v":{"$error":"#VALUE!"}},{"$f":"AND('Physical Outputs'!E23,\"Qr+hlzh+Cp0=\")","v":{"$error":"#VALUE!"}},{"$f":"AND('Physical Outputs'!F23,\"Qr+hlzh+Cp4=\")","v":{"$error":"#VALUE!"}},{"$f":"AND('Physical Outputs'!G23,\"Qr+hlzh+Cp8=\")","v":{"$error":"#VALUE!"}},{"$f":"AND('Physical Inputs'!L23,\"Qr+hlzh+CqA=\")","v":{"$error":"#VALUE!"}},{"$f":"AND('Physical Inputs'!M23,\"Qr+hlzh+CqE=\")","v":{"$error":"#VALUE!"}},{"$f":"AND('Physical Inputs'!N23,\"Qr+hlzh+CqI=\")","v":{"$error":"#VALUE!"}},{"$f":"AND('Physical Inputs'!O23,\"Qr+hlzh+CqM=\")","v":{"$error":"#VALUE!"}},{"$f":"AND('Physical Inputs'!#REF!,\"Qr+hlzh+CqQ=\")","v":{"$error":"#REF!"}},{"$f":"AND('Physical Inputs'!#REF!,\"Qr+hlzh+CqU=\")","v":{"$error":"#REF!"}},{"$f":"AND('Physical Inputs'!R23,\"Qr+hlzh+CqY=\")","v":{"$error":"#VALUE!"}},{"$f":"AND('Physical Inputs'!S23,\"Qr+hlzh+Cqc=\")","v":{"$error":"#VALUE!"}},{"$f":"AND('Physical Inputs'!T23,\"Qr+hlzh+Cqg=\")","v":{"$error":"#VALUE!"}},{"$f":"IF('Physical Inputs'!24:24,\"Qr+hlzh+Cqk=\",0)","v":0},{"$f":"AND('Physical Inputs'!A24,\"Qr+hlzh+Cqo=\")","v":{"$error":"#VALUE!"}},{"$f":"AND('Physical Inputs'!B24,\"Qr+hlzh+Cqs=\")","v":{"$error":"#VALUE!"}},{"$f":"AND('Physical Inputs'!C24,\"Qr+hlzh+Cqw=\")","v":{"$error":"#VALUE!"}},{"$f":"AND('Physical Inputs'!D24,\"Qr+hlzh+Cq0=\")","v":{"$error":"#VALUE!"}},{"$f":"AND('Physical Inputs'!E24,\"Qr+hlzh+Cq4=\")","v":{"$error":"#VALUE!"}},{"$f":"AND('Physical Inputs'!#REF!,\"Qr+hlzh+Cq8=\")","v":{"$error":"#REF!"}},{"$f":"AND('Physical Outputs'!A25,\"Qr+hlzh+CrA=\")","v":{"$error":"#VALUE!"}},{"$f":"AND('Physical Outputs'!B25,\"Qr+hlzh+CrE=\")","v":{"$error":"#VALUE!"}},{"$f":"AND('Physical Outputs'!C25,\"Qr+hlzh+CrI=\")","v":{"$error":"#VALUE!"}},{"$f":"AND('Physical Outputs'!D25,\"Qr+hlzh+CrM=\")","v":{"$error":"#VALUE!"}},{"$f":"AND('Physical Outputs'!E25,\"Qr+hlzh+CrQ=\")","v":{"$error":"#VALUE!"}},{"$f":"AND('Physical Outputs'!F25,\"Qr+hlzh+CrU=\")","v":{"$error":"#VALUE!"}},{"$f":"AND('Physical Outputs'!G25,\"Qr+hlzh+CrY=\")","v":{"$error":"#VALUE!"}},{"$f":"AND('Physical Inputs'!L24,\"Qr+hlzh+Crc=\")","v":{"$error":"#VALUE!"}},{"$f":"AND('Physical Inputs'!M24,\"Qr+hlzh+Crg=\")","v":{"$error":"#VALUE!"}},{"$f":"AND('Physical Inputs'!N24,\"Qr+hlzh+Crk=\")","v":{"$error":"#VALUE!"}},{"$f":"AND('Physical Inputs'!O24,\"Qr+hlzh+Cro=\")","v":{"$error":"#VALUE!"}},{"$f":"AND('Physical Inputs'!#REF!,\"Qr+hlzh+Crs=\")","v":{"$error":"#REF!"}},{"$f":"AND('Physical Inputs'!Q24,\"Qr+hlzh+Crw=\")","v":{"$error":"#VALUE!"}},{"$f":"AND('Physical Inputs'!R24,\"Qr+hlzh+Cr0=\")","v":{"$error":"#VALUE!"}},{"$f":"AND('Physical Inputs'!S24,\"Qr+hlzh+Cr4=\")","v":{"$error":"#VALUE!"}},{"$f":"AND('Physical Inputs'!T24,\"Qr+hlzh+Cr8=\")","v":{"$error":"#VALUE!"}},{"$f":"IF('Physical Inputs'!26:26,\"Qr+hlzh+CsA=\",0)","v":0},{"$f":"AND('Physical Inputs'!A26,\"Qr+hlzh+CsE=\")","v":{"$error":"#VALUE!"}},{"$f":"AND('Physical Inputs'!B26,\"Qr+hlzh+CsI=\")","v":{"$error":"#VALUE!"}},{"$f":"AND('Physical Inputs'!C26,\"Qr+hlzh+CsM=\")","v":{"$error":"#VALUE!"}},{"$f":"AND('Physical Inputs'!D26,\"Qr+hlzh+CsQ=\")","v":{"$error":"#VALUE!"}},{"$f":"AND('Physical Inputs'!E26,\"Qr+hlzh+CsU=\")","v":{"$error":"#VALUE!"}},{"$f":"AND('Physical Inputs'!#REF!,\"Qr+hlzh+CsY=\")","v":{"$error":"#REF!"}},{"$f":"AND('Physical Inputs'!#REF!,\"Qr+hlzh+Csc=\")","v":{"$error":"#REF!"}},{"$f":"AND('Physical Inputs'!#REF!,\"Qr+hlzh+Csg=\")","v":{"$error":"#REF!"}},{"$f":"AND('Physical Inputs'!#REF!,\"Qr+hlzh+Csk=\")","v":{"$error":"#REF!"}},{"$f":"AND('Physical Inputs'!#REF!,\"Qr+hlzh+Cso=\")","v":{"$error":"#REF!"}},{"$f":"AND('Physical Inputs'!#REF!,\"Qr+hlzh+Css=\")","v":{"$error":"#REF!"}},{"$f":"AND('Physical Inputs'!#REF!,\"Qr+hlzh+Csw=\")","v":{"$error":"#REF!"}},{"$f":"AND('Physical Inputs'!#REF!,\"Qr+hlzh+Cs0=\")","v":{"$error":"#REF!"}},{"$f":"AND('Physical Inputs'!L26,\"Qr+hlzh+Cs4=\")","v":{"$error":"#VALUE!"}},{"$f":"AND('Physical Inputs'!M26,\"Qr+hlzh+Cs8=\")","v":{"$error":"#VALUE!"}},{"$f":"AND('Physical Inputs'!N26,\"Qr+hlzh+CtA=\")","v":{"$error":"#VALUE!"}},{"$f":"AND('Physical Inputs'!O26,\"Qr+hlzh+CtE=\")","v":{"$error":"#VALUE!"}},{"$f":"AND('Physical Inputs'!#REF!,\"Qr+hlzh+CtI=\")","v":{"$error":"#REF!"}},{"$f":"AND('Physical Inputs'!Q26,\"Qr+hlzh+CtM=\")","v":{"$error":"#VALUE!"}},{"$f":"AND('Physical Inputs'!R26,\"Qr+hlzh+CtQ=\")","v":{"$error":"#VALUE!"}},{"$f":"AND('Physical Inputs'!S26,\"Qr+hlzh+CtU=\")","v":{"$error":"#VALUE!"}},{"$f":"AND('Physical Inputs'!T26,\"Qr+hlzh+CtY=\")","v":{"$error":"#VALUE!"}},{"$f":"IF('Physical Inputs'!27:27,\"Qr+hlzh+Ctc=\",0)","v":0},{"$f":"AND('Physical Inputs'!A27,\"Qr+hlzh+Ctg=\")","v":{"$error":"#VALUE!"}},{"$f":"AND('Physical Inputs'!B27,\"Qr+hlzh+Ctk=\")","v":{"$error":"#VALUE!"}},{"$f":"AND('Physical Inputs'!C27,\"Qr+hlzh+Cto=\")","v":{"$error":"#VALUE!"}},{"$f":"AND('Physical Inputs'!D27,\"Qr+hlzh+Cts=\")","v":{"$error":"#VALUE!"}},{"$f":"AND('Physical Inputs'!E27,\"Qr+hlzh+Ctw=\")","v":{"$error":"#VALUE!"}},{"$f":"AND('Physical Inputs'!#REF!,\"Qr+hlzh+Ct0=\")","v":{"$error":"#REF!"}},{"$f":"AND('Physical Outputs'!A24,\"Qr+hlzh+Ct4=\")","v":{"$error":"#VALUE!"}},{"$f":"AND('Physical Outputs'!B24,\"Qr+hlzh+Ct8=\")","v":{"$error":"#VALUE!"}},{"$f":"AND('Physical Outputs'!C24,\"Qr+hlzh+CuA=\")","v":{"$error":"#VALUE!"}},{"$f":"AND('Physical Outputs'!D24,\"Qr+hlzh+CuE=\")","v":{"$error":"#VALUE!"}},{"$f":"AND('Physical Outputs'!E24,\"Qr+hlzh+CuI=\")","v":{"$error":"#VALUE!"}},{"$f":"AND('Physical Outputs'!F24,\"Qr+hlzh+CuM=\")","v":{"$error":"#VALUE!"}},{"$f":"AND('Physical Outputs'!G24,\"Qr+hlzh+CuQ=\")","v":{"$error":"#VALUE!"}},{"$f":"AND('Physical Inputs'!L27,\"Qr+hlzh+CuU=\")","v":{"$error":"#VALUE!"}},{"$f":"AND('Physical Inputs'!M27,\"Qr+hlzh+CuY=\")","v":{"$error":"#VALUE!"}},{"$f":"AND('Physical Inputs'!N27,\"Qr+hlzh+Cuc=\")","v":{"$error":"#VALUE!"}},{"$f":"AND('Physical Inputs'!O27,\"Qr+hlzh+Cug=\")","v":{"$error":"#VALUE!"}},{"$f":"AND('Physical Inputs'!#REF!,\"Qr+hlzh+Cuk=\")","v":{"$error":"#REF!"}},{"$f":"AND('Physical Inputs'!Q27,\"Qr+hlzh+Cuo=\")","v":{"$error":"#VALUE!"}},{"$f":"AND('Physical Inputs'!R27,\"Qr+hlzh+Cus=\")","v":{"$error":"#VALUE!"}},{"$f":"AND('Physical Inputs'!S27,\"Qr+hlzh+Cuw=\")","v":{"$error":"#VALUE!"}},{"$f":"AND('Physical Inputs'!T27,\"Qr+hlzh+Cu0=\")","v":{"$error":"#VALUE!"}},{"$f":"IF('Physical Inputs'!28:28,\"Qr+hlzh+Cu4=\",0)","v":0},{"$f":"AND('Physical Inputs'!A28,\"Qr+hlzh+Cu8=\")","v":{"$error":"#VALUE!"}},{"$f":"AND('Physical Inputs'!B28,\"Qr+hlzh+CvA=\")","v":{"$error":"#VALUE!"}},{"$f":"AND('Physical Inputs'!C28,\"Qr+hlzh+CvE=\")","v":{"$error":"#VALUE!"}},{"$f":"AND('Physical Inputs'!D28,\"Qr+hlzh+CvI=\")","v":{"$error":"#VALUE!"}},{"$f":"AND('Physical Inputs'!E28,\"Qr+hlzh+CvM=\")","v":{"$error":"#VALUE!"}},{"$f":"AND('Physical Inputs'!#REF!,\"Qr+hlzh+CvQ=\")","v":{"$error":"#REF!"}},{"$f":"AND('Physical Inputs'!#REF!,\"Qr+hlzh+CvU=\")","v":{"$error":"#REF!"}},{"$f":"AND('Physical Inputs'!#REF!,\"Qr+hlzh+CvY=\")","v":{"$error":"#REF!"}},{"$f":"AND('Physical Inputs'!#REF!,\"Qr+hlzh+Cvc=\")","v":{"$error":"#REF!"}},{"$f":"AND('Physical Inputs'!#REF!,\"Qr+hlzh+Cvg=\")","v":{"$error":"#REF!"}},{"$f":"AND('Physical Inputs'!#REF!,\"Qr+hlzh+Cvk=\")","v":{"$error":"#REF!"}},{"$f":"AND('Physical Inputs'!#REF!,\"Qr+hlzh+Cvo=\")","v":{"$error":"#REF!"}},{"$f":"AND('Physical Inputs'!#REF!,\"Qr+hlzh+Cvs=\")","v":{"$error":"#REF!"}},{"$f":"AND('Physical Inputs'!L28,\"Qr+hlzh+Cvw=\")","v":{"$error":"#VALUE!"}},{"$f":"AND('Physical Inputs'!M28,\"Qr+hlzh+Cv0=\")","v":{"$error":"#VALUE!"}},{"$f":"AND('Physical Inputs'!N28,\"Qr+hlzh+Cv4=\")","v":{"$error":"#VALUE!"}},{"$f":"AND('Physical Inputs'!O28,\"Qr+hlzh+Cv8=\")","v":{"$error":"#VALUE!"}}]
[{"$f":"AND('Physical Inputs'!#REF!,\"fVWUhS6oHgA=\")","v":{"$error":"#REF!"}},{"$f":"AND('Physical Inputs'!Q28,\"fVWUhS6oHgE=\")","v":{"$error":"#VALUE!"}},{"$f":"AND('Physical Inputs'!R28,\"fVWUhS6oHgI=\")","v":{"$error":"#VALUE!"}},{"$f":"AND('Physical Inputs'!S28,\"fVWUhS6oHgM=\")","v":{"$error":"#VALUE!"}},{"$f":"AND('Physical Inputs'!T28,\"fVWUhS6oHgQ=\")","v":{"$error":"#VALUE!"}},{"$f":"IF('Physical Inputs'!29:29,\"fVWUhS6oHgU=\",0)","v":0},{"$f":"AND('Physical Inputs'!A29,\"fVWUhS6oHgY=\")","v":{"$error":"#VALUE!"}},{"$f":"AND('Physical Inputs'!B29,\"fVWUhS6oHgc=\")","v":{"$error":"#VALUE!"}},{"$f":"AND('Physical Inputs'!C29,\"fVWUhS6oHgg=\")","v":{"$error":"#VALUE!"}},{"$f":"AND('Physical Inputs'!D29,\"fVWUhS6oHgk=\")","v":{"$error":"#VALUE!"}},{"$f":"AND('Physical Inputs'!E29,\"fVWUhS6oHgo=\")","v":{"$error":"#VALUE!"}},{"$f":"AND('Physical Inputs'!#REF!,\"fVWUhS6oHgs=\")","v":{"$error":"#REF!"}},{"$f":"AND('Physical Outputs'!A27,\"fVWUhS6oHgw=\")","v":{"$error":"#VALUE!"}},{"$f":"AND('Physical Outputs'!B27,\"fVWUhS6oHg0=\")","v":{"$error":"#VALUE!"}},{"$f":"AND('Physical Outputs'!C27,\"fVWUhS6oHg4=\")","v":{"$error":"#VALUE!"}},{"$f":"AND('Physical Outputs'!D27,\"fVWUhS6oHg8=\")","v":{"$error":"#VALUE!"}},{"$f":"AND('Physical Outputs'!E27,\"fVWUhS6oHhA=\")","v":{"$error":"#VALUE!"}},{"$f":"AND('Physical Outputs'!F27,\"fVWUhS6oHhE=\")","v":{"$error":"#VALUE!"}},{"$f":"AND('Physical Outputs'!G27,\"fVWUhS6oHhI=\")","v":{"$error":"#VALUE!"}},{"$f":"AND('Physical Inputs'!L29,\"fVWUhS6oHhM=\")","v":{"$error":"#VALUE!"}},{"$f":"AND('Physical Inputs'!M29,\"fVWUhS6oHhQ=\")","v":{"$error":"#VALUE!"}},{"$f":"AND('Physical Inputs'!N29,\"fVWUhS6oHhU=\")","v":{"$error":"#VALUE!"}},{"$f":"AND('Physical Inputs'!O29,\"fVWUhS6oHhY=\")","v":{"$error":"#VALUE!"}},{"$f":"AND('Physical Inputs'!#REF!,\"fVWUhS6oHhc=\")","v":{"$error":"#REF!"}},{"$f":"AND('Physical Inputs'!Q29,\"fVWUhS6oHhg=\")","v":{"$error":"#VALUE!"}},{"$f":"AND('Physical Inputs'!R29,\"fVWUhS6oHhk=\")","v":{"$error":"#VALUE!"}},{"$f":"AND('Physical Inputs'!S29,\"fVWUhS6oHho=\")","v":{"$error":"#VALUE!"}},{"$f":"AND('Physical Inputs'!T29,\"fVWUhS6oHhs=\")","v":{"$error":"#VALUE!"}},{"$f":"IF('Physical Inputs'!31:31,\"fVWUhS6oHhw=\",0)","v":0},{"$f":"AND('Physical Inputs'!A31,\"fVWUhS6oHh0=\")","v":{"$error":"#VALUE!"}},{"$f":"AND('Physical Inputs'!B31,\"fVWUhS6oHh4=\")","v":{"$error":"#VALUE!"}},{"$f":"AND('Physical Inputs'!C31,\"fVWUhS6oHh8=\")","v":{"$error":"#VALUE!"}},{"$f":"AND('Physical Inputs'!B32,\"fVWUhS6oHiA=\")","v":{"$error":"#VALUE!"}},{"$f":"AND('Physical Inputs'!E31,\"fVWUhS6oHiE=\")","v":{"$error":"#VALUE!"}},{"$f":"AND('Physical Inputs'!#REF!,\"fVWUhS6oHiI=\")","v":{"$error":"#REF!"}},{"$f":"AND('Physical Outputs'!A28,\"fVWUhS6oHiM=\")","v":{"$error":"#VALUE!"}},{"$f":"AND('Physical Outputs'!B28,\"fVWUhS6oHiQ=\")","v":{"$error":"#VALUE!"}},{"$f":"AND('Physical Outputs'!C28,\"fVWUhS6oHiU=\")","v":{"$error":"#VALUE!"}},{"$f":"AND('Physical Outputs'!D28,\"fVWUhS6oHiY=\")","v":{"$error":"#VALUE!"}},{"$f":"AND('Physical Outputs'!E28,\"fVWUhS6oHic=\")","v":{"$error":"#VALUE!"}},{"$f":"AND('Physical Outputs'!F28,\"fVWUhS6oHig=\")","v":{"$error":"#VALUE!"}},{"$f":"AND('Physical Outputs'!G28,\"fVWUhS6oHik=\")","v":{"$error":"#VALUE!"}},{"$f":"AND('Physical Inputs'!L31,\"fVWUhS6oHio=\")","v":{"$error":"#VALUE!"}},{"$f":"AND('Physical Inputs'!M31,\"fVWUhS6oHis=\")","v":{"$error":"#VALUE!"}},{"$f":"AND('Physical Inputs'!N31,\"fVWUhS6oHiw=\")","v":{"$error":"#VALUE!"}},{"$f":"AND('Physical Inputs'!O31,\"fVWUhS6oHi0=\")","v":{"$error":"#VALUE!"}},{"$f":"AND('Physical Inputs'!P31,\"fVWUhS6oHi4=\")","v":{"$error":"#VALUE!"}},{"$f":"AND('Physical Inputs'!Q31,\"fVWUhS6oHi8=\")","v":{"$error":"#VALUE!"}},{"$f":"AND('Physical Inputs'!R31,\"fVWUhS6oHjA=\")","v":{"$error":"#VALUE!"}},{"$f":"AND('Physical Inputs'!S31,\"fVWUhS6oHjE=\")","v":{"$error":"#VALUE!"}},{"$f":"AND('Physical Inputs'!T31,\"fVWUhS6oHjI=\")","v":{"$error":"#VALUE!"}},{"$f":"IF('Physical Inputs'!33:33,\"fVWUhS6oHjM=\",0)","v":0},{"$f":"AND('Physical Inputs'!A33,\"fVWUhS6oHjQ=\")","v":{"$error":"#VALUE!"}},{"$f":"AND('Physical Inputs'!B33,\"fVWUhS6oHjU=\")","v":{"$error":"#VALUE!"}},{"$f":"AND('Physical Inputs'!C33,\"fVWUhS6oHjY=\")","v":{"$error":"#VALUE!"}},{"$f":"AND('Physical Inputs'!B34,\"fVWUhS6oHjc=\")","v":{"$error":"#VALUE!"}},{"$f":"AND('Physical Inputs'!C34,\"fVWUhS6oHjg=\")","v":{"$error":"#VALUE!"}},{"$f":"AND('Physical Inputs'!#REF!,\"fVWUhS6oHjk=\")","v":{"$error":"#REF!"}},{"$f":"AND('Physical Outputs'!A34,\"fVWUhS6oHjo=\")","v":{"$error":"#VALUE!"}},{"$f":"AND('Physical Outputs'!B34,\"fVWUhS6oHjs=\")","v":{"$error":"#VALUE!"}},{"$f":"AND('Physical Outputs'!C34,\"fVWUhS6oHjw=\")","v":{"$error":"#VALUE!"}},{"$f":"AND('Physical Outputs'!D34,\"fVWUhS6oHj0=\")","v":{"$error":"#VALUE!"}},{"$f":"AND('Physical Outputs'!E34,\"fVWUhS6oHj4=\")","v":{"$error":"#VALUE!"}},{"$f":"AND('Physical Outputs'!F34,\"fVWUhS6oHj8=\")","v":{"$error":"#VALUE!"}},{"$f":"AND('Physical Outputs'!G34,\"fVWUhS6oHkA=\")","v":{"$error":"#VALUE!"}},{"$f":"AND('Physical Inputs'!L33,\"fVWUhS6oHkE=\")","v":{"$error":"#VALUE!"}},{"$f":"AND('Physical Inputs'!M33,\"fVWUhS6oHkI=\")","v":{"$error":"#VALUE!"}},{"$f":"AND('Physical Inputs'!N33,\"fVWUhS6oHkM=\")","v":{"$error":"#VALUE!"}},{"$f":"AND('Physical Inputs'!O33,\"fVWUhS6oHkQ=\")","v":{"$error":"#VALUE!"}},{"$f":"AND('Physical Inputs'!P33,\"fVWUhS6oHkU=\")","v":{"$error":"#VALUE!"}},{"$f":"AND('Physical Inputs'!Q33,\"fVWUhS6oHkY=\")","v":{"$error":"#VALUE!"}},{"$f":"AND('Physical Inputs'!R33,\"fVWUhS6oHkc=\")","v":{"$error":"#VALUE!"}},{"$f":"AND('Physical Inputs'!S33,\"fVWUhS6oHkg=\")","v":{"$error":"#VALUE!"}},{"$f":"AND('Physical Inputs'!T33,\"fVWUhS6oHkk=\")","v":{"$error":"#VALUE!"}},{"$f":"IF('Physical Inputs'!35:35,\"fVWUhS6oHko=\",0)","v":0},{"$f":"AND('Physical Inputs'!A35,\"fVWUhS6oHks=\")","v":{"$error":"#VALUE!"}},{"$f":"AND('Physical Inputs'!B35,\"fVWUhS6oHkw=\")","v":{"$error":"#VALUE!"}},{"$f":"AND('Physical Inputs'!C35,\"fVWUhS6oHk0=\")","v":{"$error":"#VALUE!"}},{"$f":"AND('Physical Inputs'!D35,\"fVWUhS6oHk4=\")","v":{"$error":"#VALUE!"}},{"$f":"AND('Physical Inputs'!E35,\"fVWUhS6oHk8=\")","v":{"$error":"#VALUE!"}},{"$f":"AND('Physical Inputs'!#REF!,\"fVWUhS6oHlA=\")","v":{"$error":"#REF!"}},{"$f":"AND('Physical Outputs'!A29,\"fVWUhS6oHlE=\")","v":{"$error":"#VALUE!"}},{"$f":"AND('Physical Outputs'!B29,\"fVWUhS6oHlI=\")","v":{"$error":"#VALUE!"}},{"$f":"AND('Physical Outputs'!C29,\"fVWUhS6oHlM=\")","v":{"$error":"#VALUE!"}},{"$f":"AND('Physical Outputs'!D29,\"fVWUhS6oHlQ=\")","v":{"$error":"#VALUE!"}},{"$f":"AND('Physical Outputs'!E29,\"fVWUhS6oHlU=\")","v":{"$error":"#VALUE!"}},{"$f":"AND('Physical Outputs'!F29,\"fVWUhS6oHlY=\")","v":{"$error":"#VALUE!"}},{"$f":"AND('Physical Outputs'!G29,\"fVWUhS6oHlc=\")","v":{"$error":"#VALUE!"}},{"$f":"AND('Physical Inputs'!L35,\"fVWUhS6oHlg=\")","v":{"$error":"#VALUE!"}},{"$f":"AND('Physical Inputs'!M35,\"fVWUhS6oHlk=\")","v":{"$error":"#VALUE!"}},{"$f":"AND('Physical Inputs'!N35,\"fVWUhS6oHlo=\")","v":{"$error":"#VALUE!"}},{"$f":"AND('Physical Inputs'!O35,\"fVWUhS6oHls=\")","v":{"$error":"#VALUE!"}},{"$f":"AND('Physical Inputs'!P35,\"fVWUhS6oHlw=\")","v":{"$error":"#VALUE!"}},{"$f":"AND('Physical Inputs'!Q35,\"fVWUhS6oHl0=\")","v":{"$error":"#VALUE!"}},{"$f":"AND('Physical Inputs'!R35,\"fVWUhS6oHl4=\")","v":{"$error":"#VALUE!"}},{"$f":"AND('Physical Inputs'!S35,\"fVWUhS6oHl8=\")","v":{"$error":"#VALUE!"}},{"$f":"AND('Physical Inputs'!T35,\"fVWUhS6oHmA=\")","v":{"$error":"#VALUE!"}},{"$f":"IF('Physical Inputs'!82:82,\"fVWUhS6oHmE=\",0)","v":0},{"$f":"AND('Physical Inputs'!A81,\"fVWUhS6oHmI=\")","v":{"$error":"#VALUE!"}},{"$f":"AND('Physical Inputs'!B81,\"fVWUhS6oHmM=\")","v":{"$error":"#VALUE!"}},{"$f":"AND('Physical Inputs'!C81,\"fVWUhS6oHmQ=\")","v":{"$error":"#VALUE!"}},{"$f":"AND('Physical Inputs'!D81,\"fVWUhS6oHmU=\")","v":{"$error":"#VALUE!"}},{"$f":"AND('Physical Inputs'!E81,\"fVWUhS6oHmY=\")","v":{"$error":"#VALUE!"}},{"$f":"AND('Physical Inputs'!#REF!,\"fVWUhS6oHmc=\")","v":{"$error":"#REF!"}},{"$f":"AND('Physical Outputs'!A30,\"fVWUhS6oHmg=\")","v":{"$error":"#VALUE!"}},{"$f":"AND('Physical Outputs'!B30,\"fVWUhS6oHmk=\")","v":{"$error":"#VALUE!"}},{"$f":"AND('Physical Outputs'!C30,\"fVWUhS6oHmo=\")","v":{"$error":"#VALUE!"}},{"$f":"AND('Physical Outputs'!D30,\"fVWUhS6oHms=\")","v":{"$error":"#VALUE!"}},{"$f":"AND('Physical Outputs'!E30,\"fVWUhS6oHmw=\")","v":{"$error":"#VALUE!"}},{"$f":"AND('Physical Outputs'!F30,\"fVWUhS6oHm0=\")","v":{"$error":"#VALUE!"}},{"$f":"AND('Physical Outputs'!G30,\"fVWUhS6oHm4=\")","v":{"$error":"#VALUE!"}},{"$f":"AND('Physical Inputs'!L82,\"fVWUhS6oHm8=\")","v":{"$error":"#VALUE!"}},{"$f":"AND('Physical Inputs'!M82,\"fVWUhS6oHnA=\")","v":{"$error":"#VALUE!"}},{"$f":"AND('Physical Inputs'!N82,\"fVWUhS6oHnE=\")","v":{"$error":"#VALUE!"}},{"$f":"AND('Physical Inputs'!O82,\"fVWUhS6oHnI=\")","v":{"$error":"#VALUE!"}},{"$f":"AND('Physical Inputs'!P82,\"fVWUhS6oHnM=\")","v":{"$error":"#VALUE!"}},{"$f":"AND('Physical Inputs'!Q82,\"fVWUhS6oHnQ=\")","v":{"$error":"#VALUE!"}},{"$f":"AND('Physical Inputs'!R82,\"fVWUhS6oHnU=\")","v":{"$error":"#VALUE!"}},{"$f":"AND('Physical Inputs'!S82,\"fVWUhS6oHnY=\")","v":{"$error":"#VALUE!"}},{"$f":"AND('Physical Inputs'!T82,\"fVWUhS6oHnc=\")","v":{"$error":"#VALUE!"}},{"$f":"IF('Physical Inputs'!#REF!,\"fVWUhS6oHng=\",0)","v":{"$error":"#REF!"}},{"$f":"AND('Physical Inputs'!A82,\"fVWUhS6oHnk=\")","v":{"$error":"#VALUE!"}},{"$f":"AND('Physical Inputs'!B82,\"fVWUhS6oHno=\")","v":{"$error":"#VALUE!"}},{"$f":"AND('Physical Inputs'!C82,\"fVWUhS6oHns=\")","v":{"$error":"#VALUE!"}},{"$f":"AND('Physical Inputs'!A85,\"fVWUhS6oHnw=\")","v":{"$error":"#VALUE!"}},{"$f":"AND('Physical Inputs'!#REF!,\"fVWUhS6oHn0=\")","v":{"$error":"#REF!"}},{"$f":"AND('Physical Inputs'!#REF!,\"fVWUhS6oHn4=\")","v":{"$error":"#REF!"}},{"$f":"AND('Physical Outputs'!A31,\"fVWUhS6oHn8=\")","v":{"$error":"#VALUE!"}},{"$f":"AND('Physical Outputs'!B31,\"fVWUhS6oHoA=\")","v":{"$error":"#VALUE!"}},{"$f":"AND('Physical Outputs'!C31,\"fVWUhS6oHoE=\")","v":{"$error":"#VALUE!"}},{"$f":"AND('Physical Outputs'!D31,\"fVWUhS6oHoI=\")","v":{"$error":"#VALUE!"}},{"$f":"AND('Physical Outputs'!E31,\"fVWUhS6oHoM=\")","v":{"$error":"#VALUE!"}},{"$f":"AND('Physical Outputs'!F31,\"fVWUhS6oHoQ=\")","v":{"$error":"#VALUE!"}},{"$f":"AND('Physical Outputs'!G31,\"fVWUhS6oHoU=\")","v":{"$error":"#VALUE!"}},{"$f":"AND('Physical Inputs'!#REF!,\"fVWUhS6oHoY=\")","v":{"$error":"#REF!"}},{"$f":"AND('Physical Inputs'!#REF!,\"fVWUhS6oHoc=\")","v":{"$error":"#REF!"}},{"$f":"AND('Physical Inputs'!#REF!,\"fVWUhS6oHog=\")","v":{"$error":"#REF!"}},{"$f":"AND('Physical Inputs'!#REF!,\"fVWUhS6oHok=\")","v":{"$error":"#REF!"}},{"$f":"AND('Physical Inputs'!#REF!,\"fVWUhS6oHoo=\")","v":{"$error":"#REF!"}},{"$f":"AND('Physical Inputs'!#REF!,\"fVWUhS6oHos=\")","v":{"$error":"#REF!"}},{"$f":"AND('Physical Inputs'!#REF!,\"fVWUhS6oHow=\")","v":{"$error":"#REF!"}},{"$f":"AND('Physical Inputs'!#REF!,\"fVWUhS6oHo0=\")","v":{"$error":"#REF!"}},{"$f":"AND('Physical Inputs'!#REF!,\"fVWUhS6oHo4=\")","v":{"$error":"#REF!"}},{"$f":"IF('Physical Inputs'!84:84,\"fVWUhS6oHo8=\",0)","v":0},{"$f":"AND('Physical Inputs'!A83,\"fVWUhS6oHpA=\")","v":{"$error":"#VALUE!"}},{"$f":"AND('Physical Inputs'!B83,\"fVWUhS6oHpE=\")","v":{"$error":"#VALUE!"}},{"$f":"AND('Physical Inputs'!C83,\"fVWUhS6oHpI=\")","v":{"$error":"#VALUE!"}},{"$f":"AND('Physical Inputs'!B85,\"fVWUhS6oHpM=\")","v":{"$error":"#VALUE!"}},{"$f":"AND('Physical Inputs'!C85,\"fVWUhS6oHpQ=\")","v":{"$error":"#VALUE!"}},{"$f":"AND('Physical Inputs'!#REF!,\"fVWUhS6oHpU=\")","v":{"$error":"#REF!"}},{"$f":"AND('Physical Outputs'!A32,\"fVWUhS6oHpY=\")","v":{"$error":"#VALUE!"}},{"$f":"AND('Physical Outputs'!B32,\"fVWUhS6oHpc=\")","v":{"$error":"#VALUE!"}},{"$f":"AND('Physical Outputs'!C32,\"fVWUhS6oHpg=\")","v":{"$error":"#VALUE!"}},{"$f":"AND('Physical Outputs'!D32,\"fVWUhS6oHpk=\")","v":{"$error":"#VALUE!"}},{"$f":"AND('Physical Outputs'!E32,\"fVWUhS6oHpo=\")","v":{"$error":"#VALUE!"}},{"$f":"AND('Physical Outputs'!F32,\"fVWUhS6oHps=\")","v":{"$error":"#VALUE!"}},{"$f":"AND('Physical Outputs'!G32,\"fVWUhS6oHpw=\")","v":{"$error":"#VALUE!"}},{"$f":"AND('Physical Inputs'!L84,\"fVWUhS6oHp0=\")","v":{"$error":"#VALUE!"}},{"$f":"AND('Physical Inputs'!M84,\"fVWUhS6oHp4=\")","v":{"$error":"#VALUE!"}},{"$f":"AND('Physical Inputs'!N84,\"fVWUhS6oHp8=\")","v":{"$error":"#VALUE!"}},{"$f":"AND('Physical Inputs'!O84,\"fVWUhS6oHqA=\")","v":{"$error":"#VALUE!"}},{"$f":"AND('Physical Inputs'!P84,\"fVWUhS6oHqE=\")","v":{"$error":"#VALUE!"}},{"$f":"AND('Physical Inputs'!Q84,\"fVWUhS6oHqI=\")","v":{"$error":"#VALUE!"}},{"$f":"AND('Physical Inputs'!R84,\"fVWUhS6oHqM=\")","v":{"$error":"#VALUE!"}},{"$f":"AND('Physical Inputs'!S84,\"fVWUhS6oHqQ=\")","v":{"$error":"#VALUE!"}},{"$f":"AND('Physical Inputs'!T84,\"fVWUhS6oHqU=\")","v":{"$error":"#VALUE!"}},{"$f":"IF('Physical Inputs'!86:86,\"fVWUhS6oHqY=\",0)","v":0},{"$f":"AND('Physical Inputs'!A86,\"fVWUhS6oHqc=\")","v":{"$error":"#VALUE!"}},{"$f":"AND('Physical Inputs'!B86,\"fVWUhS6oHqg=\")","v":{"$error":"#VALUE!"}},{"$f":"AND('Physical Inputs'!C86,\"fVWUhS6oHqk=\")","v":{"$error":"#VALUE!"}},{"$f":"AND('Physical Inputs'!B87,\"fVWUhS6oHqo=\")","v":{"$error":"#VALUE!"}},{"$f":"AND('Physical Inputs'!C87,\"fVWUhS6oHqs=\")","v":{"$error":"#VALUE!"}},{"$f":"AND('Physical Inputs'!#REF!,\"fVWUhS6oHqw=\")","v":{"$error":"#REF!"}},{"$f":"AND('Physical Outputs'!A36,\"fVWUhS6oHq0=\")","v":{"$error":"#VALUE!"}},{"$f":"AND('Physical Outputs'!B36,\"fVWUhS6oHq4=\")","v":{"$error":"#VALUE!"}},{"$f":"AND('Physical Outputs'!C36,\"fVWUhS6oHq8=\")","v":{"$error":"#VALUE!"}},{"$f":"AND('Physical Outputs'!D36,\"fVWUhS6oHrA=\")","v":{"$error":"#VALUE!"}},{"$f":"AND('Physical Outputs'!E36,\"fVWUhS6oHrE=\")","v":{"$error":"#VALUE!"}},{"$f":"AND('Physical Outputs'!F36,\"fVWUhS6oHrI=\")","v":{"$error":"#VALUE!"}},{"$f":"AND('Physical Outputs'!G36,\"fVWUhS6oHrM=\")","v":{"$error":"#VALUE!"}},{"$f":"AND('Physical Inputs'!L86,\"fVWUhS6oHrQ=\")","v":{"$error":"#VALUE!"}},{"$f":"AND('Physical Inputs'!M86,\"fVWUhS6oHrU=\")","v":{"$error":"#VALUE!"}},{"$f":"AND('Physical Inputs'!N86,\"fVWUhS6oHrY=\")","v":{"$error":"#VALUE!"}},{"$f":"AND('Physical Inputs'!O86,\"fVWUhS6oHrc=\")","v":{"$error":"#VALUE!"}},{"$f":"AND('Physical Inputs'!P86,\"fVWUhS6oHrg=\")","v":{"$error":"#VALUE!"}},{"$f":"AND('Physical Inputs'!Q86,\"fVWUhS6oHrk=\")","v":{"$error":"#VALUE!"}},{"$f":"AND('Physical Inputs'!R86,\"fVWUhS6oHro=\")","v":{"$error":"#VALUE!"}},{"$f":"AND('Physical Inputs'!S86,\"fVWUhS6oHrs=\")","v":{"$error":"#VALUE!"}},{"$f":"AND('Physical Inputs'!T86,\"fVWUhS6oHrw=\")","v":{"$error":"#VALUE!"}},{"$f":"IF('Physical Inputs'!88:88,\"fVWUhS6oHr0=\",0)","v":0},{"$f":"AND('Physical Inputs'!A88,\"fVWUhS6oHr4=\")","v":{"$error":"#VALUE!"}},{"$f":"AND('Physical Inputs'!B88,\"fVWUhS6oHr8=\")","v":{"$error":"#VALUE!"}},{"$f":"AND('Physical Inputs'!C88,\"fVWUhS6oHsA=\")","v":{"$error":"#VALUE!"}},{"$f":"AND('Physical Inputs'!D88,\"fVWUhS6oHsE=\")","v":{"$error":"#VALUE!"}},{"$f":"AND('Physical Inputs'!E88,\"fVWUhS6oHsI=\")","v":{"$error":"#VALUE!"}},{"$f":"AND('Physical Inputs'!#REF!,\"fVWUhS6oHsM=\")","v":{"$error":"#REF!"}},{"$f":"AND('Physical Outputs'!A37,\"fVWUhS6oHsQ=\")","v":{"$error":"#VALUE!"}},{"$f":"AND('Physical Outputs'!B37,\"fVWUhS6oHsU=\")","v":{"$error":"#VALUE!"}},{"$f":"AND('Physical Outputs'!C37,\"fVWUhS6oHsY=\")","v":{"$error":"#VALUE!"}},{"$f":"AND('Physical Outputs'!D37,\"fVWUhS6oHsc=\")","v":{"$error":"#VALUE!"}},{"$f":"AND('Physical Outputs'!E37,\"fVWUhS6oHsg=\")","v":{"$error":"#VALUE!"}},{"$f":"AND('Physical Outputs'!F37,\"fVWUhS6oHsk=\")","v":{"$error":"#VALUE!"}},{"$f":"AND('Physical Outputs'!G37,\"fVWUhS6oHso=\")","v":{"$error":"#VALUE!"}},{"$f":"AND('Physical Inputs'!L88,\"fVWUhS6oHss=\")","v":{"$error":"#VALUE!"}},{"$f":"AND('Physical Inputs'!M88,\"fVWUhS6oHsw=\")","v":{"$error":"#VALUE!"}},{"$f":"AND('Physical Inputs'!N88,\"fVWUhS6oHs0=\")","v":{"$error":"#VALUE!"}},{"$f":"AND('Physical Inputs'!O88,\"fVWUhS6oHs4=\")","v":{"$error":"#VALUE!"}},{"$f":"AND('Physical Inputs'!P88,\"fVWUhS6oHs8=\")","v":{"$error":"#VALUE!"}},{"$f":"AND('Physical Inputs'!Q88,\"fVWUhS6oHtA=\")","v":{"$error":"#VALUE!"}},{"$f":"AND('Physical Inputs'!R88,\"fVWUhS6oHtE=\")","v":{"$error":"#VALUE!"}},{"$f":"AND('Physical Inputs'!S88,\"fVWUhS6oHtI=\")","v":{"$error":"#VALUE!"}},{"$f":"AND('Physical Inputs'!T88,\"fVWUhS6oHtM=\")","v":{"$error":"#VALUE!"}},{"$f":"IF('Physical Inputs'!#REF!,\"fVWUhS6oHtQ=\",0)","v":{"$error":"#REF!"}},{"$f":"AND('Physical Inputs'!#REF!,\"fVWUhS6oHtU=\")","v":{"$error":"#REF!"}},{"$f":"AND('Physical Inputs'!#REF!,\"fVWUhS6oHtY=\")","v":{"$error":"#REF!"}},{"$f":"AND('Physical Inputs'!#REF!,\"fVWUhS6oHtc=\")","v":{"$error":"#REF!"}},{"$f":"AND('Physical Inputs'!#REF!,\"fVWUhS6oHtg=\")","v":{"$error":"#REF!"}},{"$f":"AND('Physical Inputs'!#REF!,\"fVWUhS6oHtk=\")","v":{"$error":"#REF!"}},{"$f":"AND('Physical Inputs'!#REF!,\"fVWUhS6oHto=\")","v":{"$error":"#REF!"}},{"$f":"AND('Physical Outputs'!A38,\"fVWUhS6oHts=\")","v":{"$error":"#VALUE!"}},{"$f":"AND('Physical Outputs'!B38,\"fVWUhS6oHtw=\")","v":{"$error":"#VALUE!"}},{"$f":"AND('Physical Outputs'!C38,\"fVWUhS6oHt0=\")","v":{"$error":"#VALUE!"}},{"$f":"AND('Physical Outputs'!D38,\"fVWUhS6oHt4=\")","v":{"$error":"#VALUE!"}},{"$f":"AND('Physical Outputs'!E38,\"fVWUhS6oHt8=\")","v":{"$error":"#VALUE!"}},{"$f":"AND('Physical Outputs'!F38,\"fVWUhS6oHuA=\")","v":{"$error":"#VALUE!"}},{"$f":"AND('Physical Outputs'!G38,\"fVWUhS6oHuE=\")","v":{"$error":"#VALUE!"}},{"$f":"AND('Physical Inputs'!#REF!,\"fVWUhS6oHuI=\")","v":{"$error":"#REF!"}},{"$f":"AND('Physical Inputs'!#REF!,\"fVWUhS6oHuM=\")","v":{"$error":"#REF!"}},{"$f":"AND('Physical Inputs'!#REF!,\"fVWUhS6oHuQ=\")","v":{"$error":"#REF!"}},{"$f":"AND('Physical Inputs'!#REF!,\"fVWUhS6oHuU=\")","v":{"$error":"#REF!"}},{"$f":"AND('Physical Inputs'!#REF!,\"fVWUhS6oHuY=\")","v":{"$error":"#REF!"}},{"$f":"AND('Physical Inputs'!#REF!,\"fVWUhS6oHuc=\")","v":{"$error":"#REF!"}},{"$f":"AND('Physical Inputs'!#REF!,\"fVWUhS6oHug=\")","v":{"$error":"#REF!"}},{"$f":"AND('Physical Inputs'!#REF!,\"fVWUhS6oHuk=\")","v":{"$error":"#REF!"}},{"$f":"AND('Physical Inputs'!#REF!,\"fVWUhS6oHuo=\")","v":{"$error":"#REF!"}},{"$f":"IF('Physical Inputs'!36:36,\"fVWUhS6oHus=\",0)","v":0},{"$f":"AND('Physical Inputs'!A36,\"fVWUhS6oHuw=\")","v":{"$error":"#VALUE!"}},{"$f":"AND('Physical Inputs'!B36,\"fVWUhS6oHu0=\")","v":{"$error":"#VALUE!"}},{"$f":"AND('Physical Inputs'!C36,\"fVWUhS6oHu4=\")","v":{"$error":"#VALUE!"}},{"$f":"AND('Physical Inputs'!D36,\"fVWUhS6oHu8=\")","v":{"$error":"#VALUE!"}},{"$f":"AND('Physical Inputs'!E36,\"fVWUhS6oHvA=\")","v":{"$error":"#VALUE!"}},{"$f":"AND('Physical Inputs'!#REF!,\"fVWUhS6oHvE=\")","v":{"$error":"#REF!"}},{"$f":"AND('Physical Inputs'!#REF!,\"fVWUhS6oHvI=\")","v":{"$error":"#REF!"}},{"$f":"AND('Physical Inputs'!#REF!,\"fVWUhS6oHvM=\")","v":{"$error":"#REF!"}},{"$f":"AND('Physical Inputs'!#REF!,\"fVWUhS6oHvQ=\")","v":{"$error":"#REF!"}},{"$f":"AND('Physical Inputs'!#REF!,\"fVWUhS6oHvU=\")","v":{"$error":"#REF!"}},{"$f":"AND('Physical Inputs'!#REF!,\"fVWUhS6oHvY=\")","v":{"$error":"#REF!"}},{"$f":"AND('Physical Outputs'!F60,\"fVWUhS6oHvc=\")","v":{"$error":"#VALUE!"}},{"$f":"AND('Physical Outputs'!G60,\"fVWUhS6oHvg=\")","v":{"$error":"#VALUE!"}},{"$f":"AND('Physical Inputs'!L36,\"fVWUhS6oHvk=\")","v":{"$error":"#VALUE!"}},{"$f":"AND('Physical Inputs'!M36,\"fVWUhS6oHvo=\")","v":{"$error":"#VALUE!"}},{"$f":"AND('Physical Inputs'!N36,\"fVWUhS6oHvs=\")","v":{"$error":"#VALUE!"}},{"$f":"AND('Physical Inputs'!O36,\"fVWUhS6oHvw=\")","v":{"$error":"#VALUE!"}},{"$f":"AND('Physical Inputs'!P36,\"fVWUhS6oHv0=\")","v":{"$error":"#VALUE!"}},{"$f":"AND('Physical Inputs'!Q36,\"fVWUhS6oHv4=\")","v":{"$error":"#VALUE!"}},{"$f":"AND('Physical Inputs'!R36,\"fVWUhS6oHv8=\")","v":{"$error":"#VALUE!"}}]
[{"$f":"AND('Physical Inputs'!S36,\"UpYBtQ76DAA=\")","v":{"$error":"#VALUE!"}},{"$f":"AND('Physical Inputs'!T36,\"UpYBtQ76DAE=\")","v":{"$error":"#VALUE!"}},{"$f":"IF('Physical Inputs'!37:37,\"UpYBtQ76DAI=\",0)","v":{"$error":"#VALUE!"}},{"$f":"AND('Physical Inputs'!A37,\"UpYBtQ76DAM=\")","v":{"$error":"#VALUE!"}},{"$f":"AND('Physical Inputs'!B38,\"UpYBtQ76DAQ=\")","v":{"$error":"#VALUE!"}},{"$f":"AND('Physical Inputs'!C38,\"UpYBtQ76DAU=\")","v":{"$error":"#VALUE!"}},{"$f":"AND('Physical Inputs'!D37,\"UpYBtQ76DAY=\")","v":{"$error":"#VALUE!"}},{"$f":"AND('Physical Inputs'!E37,\"UpYBtQ76DAc=\")","v":{"$error":"#VALUE!"}},{"$f":"AND('Physical Inputs'!#REF!,\"UpYBtQ76DAg=\")","v":{"$error":"#REF!"}},{"$f":"AND('Physical Inputs'!#REF!,\"UpYBtQ76DAk=\")","v":{"$error":"#REF!"}},{"$f":"AND('Physical Inputs'!A2,\"UpYBtQ76DAo=\")","v":{"$error":"#VALUE!"}},{"$f":"AND('Physical Inputs'!#REF!,\"UpYBtQ76DAs=\")","v":{"$error":"#REF!"}},{"$f":"AND('Physical Inputs'!B2,\"UpYBtQ76DAw=\")","v":{"$error":"#VALUE!"}},{"$f":"AND('Physical Inputs'!#REF!,\"UpYBtQ76DA0=\")","v":{"$error":"#REF!"}},{"$f":"AND('Physical Inputs'!J37,\"UpYBtQ76DA4=\")","v":{"$error":"#VALUE!"}},{"$f":"AND('Physical Inputs'!K37,\"UpYBtQ76DA8=\")","v":{"$error":"#VALUE!"}},{"$f":"AND('Physical Inputs'!L37,\"UpYBtQ76DBA=\")","v":{"$error":"#VALUE!"}},{"$f":"AND('Physical Inputs'!M37,\"UpYBtQ76DBE=\")","v":{"$error":"#VALUE!"}},{"$f":"AND('Physical Inputs'!N37,\"UpYBtQ76DBI=\")","v":{"$error":"#VALUE!"}},{"$f":"AND('Physical Inputs'!O37,\"UpYBtQ76DBM=\")","v":{"$error":"#VALUE!"}},{"$f":"AND('Physical Inputs'!P37,\"UpYBtQ76DBQ=\")","v":{"$error":"#VALUE!"}},{"$f":"AND('Physical Inputs'!Q37,\"UpYBtQ76DBU=\")","v":{"$error":"#VALUE!"}},{"$f":"AND('Physical Inputs'!R37,\"UpYBtQ76DBY=\")","v":{"$error":"#VALUE!"}},{"$f":"AND('Physical Inputs'!S37,\"UpYBtQ76DBc=\")","v":{"$error":"#VALUE!"}},{"$f":"AND('Physical Inputs'!T37,\"UpYBtQ76DBg=\")","v":{"$error":"#VALUE!"}},{"$f":"IF('Physical Inputs'!38:38,\"UpYBtQ76DBk=\",0)","v":0},{"$f":"AND('Physical Inputs'!A38,\"UpYBtQ76DBo=\")","v":{"$error":"#VALUE!"}},{"$f":"AND('Physical Inputs'!B37,\"UpYBtQ76DBs=\")","v":{"$error":"#VALUE!"}},{"$f":"AND('Physical Inputs'!C37,\"UpYBtQ76DBw=\")","v":{"$error":"#VALUE!"}},{"$f":"AND('Physical Inputs'!D38,\"UpYBtQ76DB0=\")","v":{"$error":"#VALUE!"}},{"$f":"AND('Physical Inputs'!E38,\"UpYBtQ76DB4=\")","v":{"$error":"#VALUE!"}},{"$f":"AND('Physical Inputs'!#REF!,\"UpYBtQ76DB8=\")","v":{"$error":"#REF!"}},{"$f":"AND('Physical Inputs'!#REF!,\"UpYBtQ76DCA=\")","v":{"$error":"#REF!"}},{"$f":"AND('Physical Inputs'!#REF!,\"UpYBtQ76DCE=\")","v":{"$error":"#REF!"}},{"$f":"AND('Physical Inputs'!#REF!,\"UpYBtQ76DCI=\")","v":{"$error":"#REF!"}},{"$f":"AND('Physical Inputs'!#REF!,\"UpYBtQ76DCM=\")","v":{"$error":"#REF!"}},{"$f":"AND('Physical Inputs'!#REF!,\"UpYBtQ76DCQ=\")","v":{"$error":"#REF!"}},{"$f":"AND('Physical Inputs'!J38,\"UpYBtQ76DCU=\")","v":{"$error":"#VALUE!"}},{"$f":"AND('Physical Inputs'!K38,\"UpYBtQ76DCY=\")","v":{"$error":"#VALUE!"}},{"$f":"AND('Physical Inputs'!L38,\"UpYBtQ76DCc=\")","v":{"$error":"#VALUE!"}},{"$f":"AND('Physical Inputs'!M38,\"UpYBtQ76DCg=\")","v":{"$error":"#VALUE!"}},{"$f":"AND('Physical Inputs'!N38,\"UpYBtQ76DCk=\")","v":{"$error":"#VALUE!"}},{"$f":"AND('Physical Inputs'!O38,\"UpYBtQ76DCo=\")","v":{"$error":"#VALUE!"}},{"$f":"AND('Physical Inputs'!P38,\"UpYBtQ76DCs=\")","v":{"$error":"#VALUE!"}},{"$f":"AND('Physical Inputs'!Q38,\"UpYBtQ76DCw=\")","v":{"$error":"#VALUE!"}},{"$f":"AND('Physical Inputs'!R38,\"UpYBtQ76DC0=\")","v":{"$error":"#VALUE!"}},{"$f":"AND('Physical Inputs'!S38,\"UpYBtQ76DC4=\")","v":{"$error":"#VALUE!"}},{"$f":"AND('Physical Inputs'!T38,\"UpYBtQ76DC8=\")","v":{"$error":"#VALUE!"}},{"$f":"IF('Physical Inputs'!39:39,\"UpYBtQ76DDA=\",0)","v":0},{"$f":"AND('Physical Inputs'!A39,\"UpYBtQ76DDE=\")","v":{"$error":"#VALUE!"}},{"$f":"AND('Physical Inputs'!B39,\"UpYBtQ76DDI=\")","v":{"$error":"#VALUE!"}},{"$f":"AND('Physical Inputs'!C39,\"UpYBtQ76DDM=\")","v":{"$error":"#VALUE!"}},{"$f":"AND('Physical Inputs'!D39,\"UpYBtQ76DDQ=\")","v":{"$error":"#VALUE!"}},{"$f":"AND('Physical Inputs'!E39,\"UpYBtQ76DDU=\")","v":{"$error":"#VALUE!"}},{"$f":"AND('Physical Inputs'!#REF!,\"UpYBtQ76DDY=\")","v":{"$error":"#REF!"}},{"$f":"AND('Physical Inputs'!#REF!,\"UpYBtQ76DDc=\")","v":{"$error":"#REF!"}},{"$f":"AND('Physical Inputs'!A3,\"UpYBtQ76DDg=\")","v":{"$error":"#VALUE!"}},{"$f":"AND('Physical Inputs'!B3,\"UpYBtQ76DDk=\")","v":{"$error":"#VALUE!"}},{"$f":"AND('Physical Inputs'!C6,\"UpYBtQ76DDo=\")","v":{"$error":"#VALUE!"}},{"$f":"AND('Physical Inputs'!A14,\"UpYBtQ76DDs=\")","v":{"$error":"#VALUE!"}},{"$f":"AND('Physical Inputs'!J39,\"UpYBtQ76DDw=\")","v":{"$error":"#VALUE!"}},{"$f":"AND('Physical Inputs'!K39,\"UpYBtQ76DD0=\")","v":{"$error":"#VALUE!"}},{"$f":"AND('Physical Inputs'!L39,\"UpYBtQ76DD4=\")","v":{"$error":"#VALUE!"}},{"$f":"AND('Physical Inputs'!M39,\"UpYBtQ76DD8=\")","v":{"$error":"#VALUE!"}},{"$f":"AND('Physical Inputs'!N39,\"UpYBtQ76DEA=\")","v":{"$error":"#VALUE!"}},{"$f":"AND('Physical Inputs'!O39,\"UpYBtQ76DEE=\")","v":{"$error":"#VALUE!"}},{"$f":"AND('Physical Inputs'!P39,\"UpYBtQ76DEI=\")","v":{"$error":"#VALUE!"}},{"$f":"AND('Physical Inputs'!Q39,\"UpYBtQ76DEM=\")","v":{"$error":"#VALUE!"}},{"$f":"AND('Physical Inputs'!R39,\"UpYBtQ76DEQ=\")","v":{"$error":"#VALUE!"}},{"$f":"AND('Physical Inputs'!S39,\"UpYBtQ76DEU=\")","v":{"$error":"#VALUE!"}},{"$f":"AND('Physical Inputs'!T39,\"UpYBtQ76DEY=\")","v":{"$error":"#VALUE!"}},{"$f":"IF('Physical Inputs'!40:40,\"UpYBtQ76DEc=\",0)","v":0},{"$f":"AND('Physical Inputs'!A45,\"UpYBtQ76DEg=\")","v":{"$error":"#VALUE!"}},{"$f":"AND('Physical Inputs'!B45,\"UpYBtQ76DEk=\")","v":{"$error":"#VALUE!"}},{"$f":"AND('Physical Inputs'!C40,\"UpYBtQ76DEo=\")","v":{"$error":"#VALUE!"}},{"$f":"AND('Physical Inputs'!D40,\"UpYBtQ76DEs=\")","v":{"$error":"#VALUE!"}},{"$f":"AND('Physical Inputs'!E40,\"UpYBtQ76DEw=\")","v":{"$error":"#VALUE!"}},{"$f":"AND('Physical Inputs'!#REF!,\"UpYBtQ76DE0=\")","v":{"$error":"#REF!"}},{"$f":"AND('Physical Inputs'!#REF!,\"UpYBtQ76DE4=\")","v":{"$error":"#REF!"}},{"$f":"AND('Physical Inputs'!A4,\"UpYBtQ76DE8=\")","v":{"$error":"#VALUE!"}},{"$f":"AND('Physical Inputs'!#REF!,\"UpYBtQ76DFA=\")","v":{"$error":"#REF!"}},{"$f":"AND('Physical Inputs'!#REF!,\"UpYBtQ76DFE=\")","v":{"$error":"#REF!"}},{"$f":"AND('Physical Inputs'!B4,\"UpYBtQ76DFI=\")","v":{"$error":"#VALUE!"}},{"$f":"AND('Physical Inputs'!J40,\"UpYBtQ76DFM=\")","v":{"$error":"#VALUE!"}},{"$f":"AND('Physical Inputs'!K40,\"UpYBtQ76DFQ=\")","v":{"$error":"#VALUE!"}},{"$f":"AND('Physical Inputs'!L40,\"UpYBtQ76DFU=\")","v":{"$error":"#VALUE!"}},{"$f":"AND('Physical Inputs'!M40,\"UpYBtQ76DFY=\")","v":{"$error":"#VALUE!"}},{"$f":"AND('Physical Inputs'!N40,\"UpYBtQ76DFc=\")","v":{"$error":"#VALUE!"}},{"$f":"AND('Physical Inputs'!O40,\"UpYBtQ76DFg=\")","v":{"$error":"#VALUE!"}},{"$f":"AND('Physical Inputs'!P40,\"UpYBtQ76DFk=\")","v":{"$error":"#VALUE!"}},{"$f":"AND('Physical Inputs'!Q40,\"UpYBtQ76DFo=\")","v":{"$error":"#VALUE!"}},{"$f":"AND('Physical Inputs'!R40,\"UpYBtQ76DFs=\")","v":{"$error":"#VALUE!"}},{"$f":"AND('Physical Inputs'!S40,\"UpYBtQ76DFw=\")","v":{"$error":"#VALUE!"}},{"$f":"AND('Physical Inputs'!T40,\"UpYBtQ76DF0=\")","v":{"$error":"#VALUE!"}},{"$f":"IF('Physical Inputs'!41:41,\"UpYBtQ76DF4=\",0)","v":0},{"$f":"AND('Physical Inputs'!A40,\"UpYBtQ76DF8=\")","v":{"$error":"#VALUE!"}},{"$f":"AND('Physical Inputs'!B40,\"UpYBtQ76DGA=\")","v":{"$error":"#VALUE!"}},{"$f":"AND('Physical Inputs'!C41,\"UpYBtQ76DGE=\")","v":{"$error":"#VALUE!"}},{"$f":"AND('Physical Inputs'!D41,\"UpYBtQ76DGI=\")","v":{"$error":"#VALUE!"}},{"$f":"AND('Physical Inputs'!E41,\"UpYBtQ76DGM=\")","v":{"$error":"#VALUE!"}},{"$f":"AND('Physical Inputs'!#REF!,\"UpYBtQ76DGQ=\")","v":{"$error":"#REF!"}},{"$f":"AND('Physical Inputs'!#REF!,\"UpYBtQ76DGU=\")","v":{"$error":"#REF!"}},{"$f":"AND('Physical Inputs'!A5,\"UpYBtQ76DGY=\")","v":{"$error":"#VALUE!"}},{"$f":"AND('Physical Inputs'!#REF!,\"UpYBtQ76DGc=\")","v":{"$error":"#REF!"}},{"$f":"AND('Physical Inputs'!#REF!,\"UpYBtQ76DGg=\")","v":{"$error":"#REF!"}},{"$f":"AND('Physical Inputs'!B5,\"UpYBtQ76DGk=\")","v":{"$error":"#VALUE!"}},{"$f":"AND('Physical Inputs'!J41,\"UpYBtQ76DGo=\")","v":{"$error":"#VALUE!"}},{"$f":"AND('Physical Inputs'!K41,\"UpYBtQ76DGs=\")","v":{"$error":"#VALUE!"}},{"$f":"AND('Physical Inputs'!L41,\"UpYBtQ76DGw=\")","v":{"$error":"#VALUE!"}},{"$f":"AND('Physical Inputs'!M41,\"UpYBtQ76DG0=\")","v":{"$error":"#VALUE!"}},{"$f":"AND('Physical Inputs'!N41,\"UpYBtQ76DG4=\")","v":{"$error":"#VALUE!"}},{"$f":"AND('Physical Inputs'!O41,\"UpYBtQ76DG8=\")","v":{"$error":"#VALUE!"}},{"$f":"AND('Physical Inputs'!P41,\"UpYBtQ76DHA=\")","v":{"$error":"#VALUE!"}},{"$f":"AND('Physical Inputs'!Q41,\"UpYBtQ76DHE=\")","v":{"$error":"#VALUE!"}},{"$f":"AND('Physical Inputs'!R41,\"UpYBtQ76DHI=\")","v":{"$error":"#VALUE!"}},{"$f":"AND('Physical Inputs'!S41,\"UpYBtQ76DHM=\")","v":{"$error":"#VALUE!"}},{"$f":"AND('Physical Inputs'!T41,\"UpYBtQ76DHQ=\")","v":{"$error":"#VALUE!"}},{"$f":"IF('Physical Inputs'!42:42,\"UpYBtQ76DHU=\",0)","v":0},{"$f":"AND('Physical Inputs'!#REF!,\"UpYBtQ76DHY=\")","v":{"$error":"#REF!"}},{"$f":"AND('Physical Inputs'!#REF!,\"UpYBtQ76DHc=\")","v":{"$error":"#REF!"}},{"$f":"AND('Physical Inputs'!#REF!,\"UpYBtQ76DHg=\")","v":{"$error":"#REF!"}},{"$f":"AND('Physical Inputs'!#REF!,\"UpYBtQ76DHk=\")","v":{"$error":"#REF!"}},{"$f":"AND('Physical Inputs'!E42,\"UpYBtQ76DHo=\")","v":{"$error":"#VALUE!"}},{"$f":"AND('Physical Inputs'!#REF!,\"UpYBtQ76DHs=\")","v":{"$error":"#REF!"}},{"$f":"AND('Physical Inputs'!#REF!,\"UpYBtQ76DHw=\")","v":{"$error":"#REF!"}},{"$f":"AND('Physical Inputs'!A6,\"UpYBtQ76DH0=\")","v":{"$error":"#VALUE!"}},{"$f":"AND('Physical Inputs'!#REF!,\"UpYBtQ76DH4=\")","v":{"$error":"#REF!"}},{"$f":"AND('Physical Inputs'!#REF!,\"UpYBtQ76DH8=\")","v":{"$error":"#REF!"}},{"$f":"AND('Physical Inputs'!B6,\"UpYBtQ76DIA=\")","v":{"$error":"#VALUE!"}},{"$f":"AND('Physical Inputs'!J42,\"UpYBtQ76DIE=\")","v":{"$error":"#VALUE!"}},{"$f":"AND('Physical Inputs'!K42,\"UpYBtQ76DII=\")","v":{"$error":"#VALUE!"}},{"$f":"AND('Physical Inputs'!L42,\"UpYBtQ76DIM=\")","v":{"$error":"#VALUE!"}},{"$f":"AND('Physical Inputs'!M42,\"UpYBtQ76DIQ=\")","v":{"$error":"#VALUE!"}},{"$f":"AND('Physical Inputs'!N42,\"UpYBtQ76DIU=\")","v":{"$error":"#VALUE!"}},{"$f":"AND('Physical Inputs'!O42,\"UpYBtQ76DIY=\")","v":{"$error":"#VALUE!"}},{"$f":"AND('Physical Inputs'!P42,\"UpYBtQ76DIc=\")","v":{"$error":"#VALUE!"}},{"$f":"AND('Physical Inputs'!Q42,\"UpYBtQ76DIg=\")","v":{"$error":"#VALUE!"}},{"$f":"AND('Physical Inputs'!R42,\"UpYBtQ76DIk=\")","v":{"$error":"#VALUE!"}},{"$f":"AND('Physical Inputs'!S42,\"UpYBtQ76DIo=\")","v":{"$error":"#VALUE!"}},{"$f":"AND('Physical Inputs'!T42,\"UpYBtQ76DIs=\")","v":{"$error":"#VALUE!"}},{"$f":"IF('Physical Inputs'!#REF!,\"UpYBtQ76DIw=\",0)","v":{"$error":"#REF!"}},{"$f":"AND('Physical Inputs'!A42,\"UpYBtQ76DI0=\")","v":{"$error":"#VALUE!"}},{"$f":"AND('Physical Inputs'!B42,\"UpYBtQ76DI4=\")","v":{"$error":"#VALUE!"}},{"$f":"AND('Physical Inputs'!C45,\"UpYBtQ76DI8=\")","v":{"$error":"#VALUE!"}},{"$f":"AND('Physical Inputs'!D45,\"UpYBtQ76DJA=\")","v":{"$error":"#VALUE!"}},{"$f":"AND('Physical Inputs'!#REF!,\"UpYBtQ76DJE=\")","v":{"$error":"#REF!"}},{"$f":"AND('Physical Inputs'!#REF!,\"UpYBtQ76DJI=\")","v":{"$error":"#REF!"}},{"$f":"AND('Physical Inputs'!#REF!,\"UpYBtQ76DJM=\")","v":{"$error":"#REF!"}},{"$f":"AND('Physical Inputs'!#REF!,\"UpYBtQ76DJQ=\")","v":{"$error":"#REF!"}},{"$f":"AND('Physical Inputs'!#REF!,\"UpYBtQ76DJU=\")","v":{"$error":"#REF!"}},{"$f":"AND('Physical Inputs'!#REF!,\"UpYBtQ76DJY=\")","v":{"$error":"#REF!"}},{"$f":"AND('Physical Inputs'!#REF!,\"UpYBtQ76DJc=\")","v":{"$error":"#REF!"}},{"$f":"AND('Physical Inputs'!#REF!,\"UpYBtQ76DJg=\")","v":{"$error":"#REF!"}},{"$f":"AND('Physical Inputs'!#REF!,\"UpYBtQ76DJk=\")","v":{"$error":"#REF!"}},{"$f":"AND('Physical Inputs'!#REF!,\"UpYBtQ76DJo=\")","v":{"$error":"#REF!"}},{"$f":"AND('Physical Inputs'!#REF!,\"UpYBtQ76DJs=\")","v":{"$error":"#REF!"}},{"$f":"AND('Physical Inputs'!#REF!,\"UpYBtQ76DJw=\")","v":{"$error":"#REF!"}},{"$f":"AND('Physical Inputs'!#REF!,\"UpYBtQ76DJ0=\")","v":{"$error":"#REF!"}},{"$f":"AND('Physical Inputs'!#REF!,\"UpYBtQ76DJ4=\")","v":{"$error":"#REF!"}},{"$f":"AND('Physical Inputs'!#REF!,\"UpYBtQ76DJ8=\")","v":{"$error":"#REF!"}},{"$f":"AND('Physical Inputs'!#REF!,\"UpYBtQ76DKA=\")","v":{"$error":"#REF!"}},{"$f":"AND('Physical Inputs'!#REF!,\"UpYBtQ76DKE=\")","v":{"$error":"#REF!"}},{"$f":"AND('Physical Inputs'!#REF!,\"UpYBtQ76DKI=\")","v":{"$error":"#REF!"}},{"$f":"IF('Physical Inputs'!47:47,\"UpYBtQ76DKM=\",0)","v":0},{"$f":"AND('Physical Inputs'!A43,\"UpYBtQ76DKQ=\")","v":{"$error":"#VALUE!"}},{"$f":"AND('Physical Inputs'!B43,\"UpYBtQ76DKU=\")","v":{"$error":"#VALUE!"}},{"$f":"AND('Physical Inputs'!#REF!,\"UpYBtQ76DKY=\")","v":{"$error":"#REF!"}},{"$f":"AND('Physical Inputs'!#REF!,\"UpYBtQ76DKc=\")","v":{"$error":"#REF!"}},{"$f":"AND('Physical Inputs'!E47,\"UpYBtQ76DKg=\")","v":{"$error":"#VALUE!"}},{"$f":"AND('Physical Inputs'!#REF!,\"UpYBtQ76DKk=\")","v":{"$error":"#REF!"}},{"$f":"AND('Physical Inputs'!#REF!,\"UpYBtQ76DKo=\")","v":{"$error":"#REF!"}},{"$f":"AND('Physical Inputs'!F47,\"UpYBtQ76DKs=\")","v":{"$error":"#VALUE!"}},{"$f":"AND('Physical Inputs'!G47,\"UpYBtQ76DKw=\")","v":{"$error":"#VALUE!"}},{"$f":"AND('Physical Inputs'!H47,\"UpYBtQ76DK0=\")","v":{"$error":"#VALUE!"}},{"$f":"AND('Physical Inputs'!I47,\"UpYBtQ76DK4=\")","v":{"$error":"#VALUE!"}},{"$f":"AND('Physical Inputs'!J47,\"UpYBtQ76DK8=\")","v":{"$error":"#VALUE!"}},{"$f":"AND('Physical Inputs'!K47,\"UpYBtQ76DLA=\")","v":{"$error":"#VALUE!"}},{"$f":"AND('Physical Inputs'!L47,\"UpYBtQ76DLE=\")","v":{"$error":"#VALUE!"}},{"$f":"AND('Physical Inputs'!M47,\"UpYBtQ76DLI=\")","v":{"$error":"#VALUE!"}},{"$f":"AND('Physical Inputs'!N47,\"UpYBtQ76DLM=\")","v":{"$error":"#VALUE!"}},{"$f":"AND('Physical Inputs'!O47,\"UpYBtQ76DLQ=\")","v":{"$error":"#VALUE!"}},{"$f":"AND('Physical Inputs'!P47,\"UpYBtQ76DLU=\")","v":{"$error":"#VALUE!"}},{"$f":"AND('Physical Inputs'!Q47,\"UpYBtQ76DLY=\")","v":{"$error":"#VALUE!"}},{"$f":"AND('Physical Inputs'!R47,\"UpYBtQ76DLc=\")","v":{"$error":"#VALUE!"}},{"$f":"AND('Physical Inputs'!S47,\"UpYBtQ76DLg=\")","v":{"$error":"#VALUE!"}},{"$f":"AND('Physical Inputs'!T47,\"UpYBtQ76DLk=\")","v":{"$error":"#VALUE!"}},{"$f":"IF('Physical Inputs'!48:48,\"UpYBtQ76DLo=\",0)","v":0},{"$f":"AND('Physical Inputs'!A47,\"UpYBtQ76DLs=\")","v":{"$error":"#VALUE!"}},{"$f":"AND('Physical Inputs'!B47,\"UpYBtQ76DLw=\")","v":{"$error":"#VALUE!"}},{"$f":"AND('Physical Inputs'!C47,\"UpYBtQ76DL0=\")","v":{"$error":"#VALUE!"}},{"$f":"AND('Physical Inputs'!D47,\"UpYBtQ76DL4=\")","v":{"$error":"#VALUE!"}},{"$f":"AND('Physical Inputs'!E48,\"UpYBtQ76DL8=\")","v":{"$error":"#VALUE!"}},{"$f":"AND('Physical Inputs'!#REF!,\"UpYBtQ76DMA=\")","v":{"$error":"#REF!"}},{"$f":"AND('Physical Inputs'!#REF!,\"UpYBtQ76DME=\")","v":{"$error":"#REF!"}},{"$f":"AND('Physical Inputs'!F48,\"UpYBtQ76DMI=\")","v":{"$error":"#VALUE!"}},{"$f":"AND('Physical Inputs'!G48,\"UpYBtQ76DMM=\")","v":{"$error":"#VALUE!"}},{"$f":"AND('Physical Inputs'!H48,\"UpYBtQ76DMQ=\")","v":{"$error":"#VALUE!"}},{"$f":"AND('Physical Inputs'!I48,\"UpYBtQ76DMU=\")","v":{"$error":"#VALUE!"}},{"$f":"AND('Physical Inputs'!J48,\"UpYBtQ76DMY=\")","v":{"$error":"#VALUE!"}},{"$f":"AND('Physical Inputs'!K48,\"UpYBtQ76DMc=\")","v":{"$error":"#VALUE!"}},{"$f":"AND('Physical Inputs'!L48,\"UpYBtQ76DMg=\")","v":{"$error":"#VALUE!"}},{"$f":"AND('Physical Inputs'!M48,\"UpYBtQ76DMk=\")","v":{"$error":"#VALUE!"}},{"$f":"AND('Physical Inputs'!N48,\"UpYBtQ76DMo=\")","v":{"$error":"#VALUE!"}},{"$f":"AND('Physical Inputs'!O48,\"UpYBtQ76DMs=\")","v":{"$error":"#VALUE!"}},{"$f":"AND('Physical Inputs'!P48,\"UpYBtQ76DMw=\")","v":{"$error":"#VALUE!"}},{"$f":"AND('Physical Inputs'!Q48,\"UpYBtQ76DM0=\")","v":{"$error":"#VALUE!"}},{"$f":"AND('Physical Inputs'!R48,\"UpYBtQ76DM4=\")","v":{"$error":"#VALUE!"}},{"$f":"AND('Physical Inputs'!S48,\"UpYBtQ76DM8=\")","v":{"$error":"#VALUE!"}},{"$f":"AND('Physical Inputs'!T48,\"UpYBtQ76DNA=\")","v":{"$error":"#VALUE!"}},{"$f":"IF('Physical Inputs'!#REF!,\"UpYBtQ76DNE=\",0)","v":{"$error":"#REF!"}},{"$f":"AND('Physical Inputs'!A61,\"UpYBtQ76DNI=\")","v":{"$error":"#VALUE!"}},{"$f":"AND('Physical Inputs'!B61,\"UpYBtQ76DNM=\")","v":{"$error":"#VALUE!"}},{"$f":"AND('Physical Inputs'!C61,\"UpYBtQ76DNQ=\")","v":{"$error":"#VALUE!"}},{"$f":"AND('Physical Inputs'!D61,\"UpYBtQ76DNU=\")","v":{"$error":"#VALUE!"}},{"$f":"AND('Physical Inputs'!E61,\"UpYBtQ76DNY=\")","v":{"$error":"#VALUE!"}},{"$f":"AND('Physical Inputs'!#REF!,\"UpYBtQ76DNc=\")","v":{"$error":"#REF!"}},{"$f":"AND('Physical Inputs'!#REF!,\"UpYBtQ76DNg=\")","v":{"$error":"#REF!"}},{"$f":"AND('Physical Inputs'!#REF!,\"UpYBtQ76DNk=\")","v":{"$error":"#REF!"}},{"$f":"AND('Physical Inputs'!#REF!,\"UpYBtQ76DNo=\")","v":{"$error":"#REF!"}},{"$f":"AND('Physical Inputs'!#REF!,\"UpYBtQ76DNs=\")","v":{"$error":"#REF!"}},{"$f":"AND('Physical Inputs'!#REF!,\"UpYBtQ76DNw=\")","v":{"$error":"#REF!"}},{"$f":"AND('Physical Inputs'!#REF!,\"UpYBtQ76DN0=\")","v":{"$error":"#REF!"}},{"$f":"AND('Physical Inputs'!#REF!,\"UpYBtQ76DN4=\")","v":{"$error":"#REF!"}},{"$f":"AND('Physical Inputs'!#REF!,\"UpYBtQ76DN8=\")","v":{"$error":"#REF!"}},{"$f":"AND('Physical Inputs'!#REF!,\"UpYBtQ76DOA=\")","v":{"$error":"#REF!"}},{"$f":"AND('Physical Inputs'!#REF!,\"UpYBtQ76DOE=\")","v":{"$error":"#REF!"}},{"$f":"AND('Physical Inputs'!#REF!,\"UpYBtQ76DOI=\")","v":{"$error":"#REF!"}},{"$f":"AND('Physical Inputs'!#REF!,\"UpYBtQ76DOM=\")","v":{"$error":"#REF!"}},{"$f":"AND('Physical Inputs'!#REF!,\"UpYBtQ76DOQ=\")","v":{"$error":"#REF!"}},{"$f":"AND('Physical Inputs'!#REF!,\"UpYBtQ76DOU=\")","v":{"$error":"#REF!"}},{"$f":"AND('Physical Inputs'!#REF!,\"UpYBtQ76DOY=\")","v":{"$error":"#REF!"}},{"$f":"AND('Physical Inputs'!#REF!,\"UpYBtQ76DOc=\")","v":{"$error":"#REF!"}},{"$f":"IF('Physical Inputs'!62:62,\"UpYBtQ76DOg=\",0)","v":0},{"$f":"AND('Physical Inputs'!#REF!,\"UpYBtQ76DOk=\")","v":{"$error":"#REF!"}},{"$f":"AND('Physical Inputs'!B59,\"UpYBtQ76DOo=\")","v":{"$error":"#VALUE!"}},{"$f":"AND('Physical Inputs'!#REF!,\"UpYBtQ76DOs=\")","v":{"$error":"#REF!"}},{"$f":"AND('Physical Inputs'!#REF!,\"UpYBtQ76DOw=\")","v":{"$error":"#REF!"}},{"$f":"AND('Physical Inputs'!E62,\"UpYBtQ76DO0=\")","v":{"$error":"#VALUE!"}},{"$f":"AND('Physical Inputs'!#REF!,\"UpYBtQ76DO4=\")","v":{"$error":"#REF!"}},{"$f":"AND('Physical Inputs'!#REF!,\"UpYBtQ76DO8=\")","v":{"$error":"#REF!"}},{"$f":"AND('Physical Inputs'!F62,\"UpYBtQ76DPA=\")","v":{"$error":"#VALUE!"}},{"$f":"AND('Physical Inputs'!G62,\"UpYBtQ76DPE=\")","v":{"$error":"#VALUE!"}},{"$f":"AND('Physical Inputs'!H62,\"UpYBtQ76DPI=\")","v":{"$error":"#VALUE!"}},{"$f":"AND('Physical Inputs'!I62,\"UpYBtQ76DPM=\")","v":{"$error":"#VALUE!"}},{"$f":"AND('Physical Inputs'!J62,\"UpYBtQ76DPQ=\")","v":{"$error":"#VALUE!"}},{"$f":"AND('Physical Inputs'!K62,\"UpYBtQ76DPU=\")","v":{"$error":"#VALUE!"}},{"$f":"AND('Physical Inputs'!L62,\"UpYBtQ76DPY=\")","v":{"$error":"#VALUE!"}},{"$f":"AND('Physical Inputs'!M62,\"UpYBtQ76DPc=\")","v":{"$error":"#VALUE!"}},{"$f":"AND('Physical Inputs'!N62,\"UpYBtQ76DPg=\")","v":{"$error":"#VALUE!"}},{"$f":"AND('Physical Inputs'!O62,\"UpYBtQ76DPk=\")","v":{"$error":"#VALUE!"}},{"$f":"AND('Physical Inputs'!P62,\"UpYBtQ76DPo=\")","v":{"$error":"#VALUE!"}},{"$f":"AND('Physical Inputs'!Q62,\"UpYBtQ76DPs=\")","v":{"$error":"#VALUE!"}},{"$f":"AND('Physical Inputs'!R62,\"UpYBtQ76DPw=\")","v":{"$error":"#VALUE!"}},{"$f":"AND('Physical Inputs'!S62,\"UpYBtQ76DP0=\")","v":{"$error":"#VALUE!"}},{"$f":"AND('Physical Inputs'!T62,\"UpYBtQ76DP4=\")","v":{"$error":"#VALUE!"}},{"$f":"IF('Physical Inputs'!63:63,\"UpYBtQ76DP8=\",0)","v":0}]
[{"$f":"AND('Physical Inputs'!A68,\"e0q11TnSCAA=\")","v":{"$error":"#VALUE!"}},{"$f":"AND('Physical Inputs'!B68,\"e0q11TnSCAE=\")","v":{"$error":"#VALUE!"}},{"$f":"AND('Physical Inputs'!C62,\"e0q11TnSCAI=\")","v":{"$error":"#VALUE!"}},{"$f":"AND('Physical Inputs'!D62,\"e0q11TnSCAM=\")","v":{"$error":"#VALUE!"}},{"$f":"AND('Physical Inputs'!E63,\"e0q11TnSCAQ=\")","v":{"$error":"#VALUE!"}},{"$f":"AND('Physical Inputs'!#REF!,\"e0q11TnSCAU=\")","v":{"$error":"#REF!"}},{"$f":"AND('Physical Inputs'!#REF!,\"e0q11TnSCAY=\")","v":{"$error":"#REF!"}},{"$f":"AND('Physical Inputs'!F63,\"e0q11TnSCAc=\")","v":{"$error":"#VALUE!"}},{"$f":"AND('Physical Inputs'!G63,\"e0q11TnSCAg=\")","v":{"$error":"#VALUE!"}},{"$f":"AND('Physical Inputs'!H63,\"e0q11TnSCAk=\")","v":{"$error":"#VALUE!"}},{"$f":"AND('Physical Inputs'!I63,\"e0q11TnSCAo=\")","v":{"$error":"#VALUE!"}},{"$f":"AND('Physical Inputs'!J63,\"e0q11TnSCAs=\")","v":{"$error":"#VALUE!"}},{"$f":"AND('Physical Inputs'!K63,\"e0q11TnSCAw=\")","v":{"$error":"#VALUE!"}},{"$f":"AND('Physical Inputs'!L63,\"e0q11TnSCA0=\")","v":{"$error":"#VALUE!"}},{"$f":"AND('Physical Inputs'!M63,\"e0q11TnSCA4=\")","v":{"$error":"#VALUE!"}},{"$f":"AND('Physical Inputs'!N63,\"e0q11TnSCA8=\")","v":{"$error":"#VALUE!"}},{"$f":"AND('Physical Inputs'!O63,\"e0q11TnSCBA=\")","v":{"$error":"#VALUE!"}},{"$f":"AND('Physical Inputs'!P63,\"e0q11TnSCBE=\")","v":{"$error":"#VALUE!"}},{"$f":"AND('Physical Inputs'!Q63,\"e0q11TnSCBI=\")","v":{"$error":"#VALUE!"}},{"$f":"AND('Physical Inputs'!R63,\"e0q11TnSCBM=\")","v":{"$error":"#VALUE!"}},{"$f":"AND('Physical Inputs'!S63,\"e0q11TnSCBQ=\")","v":{"$error":"#VALUE!"}},{"$f":"AND('Physical Inputs'!T63,\"e0q11TnSCBU=\")","v":{"$error":"#VALUE!"}},{"$f":"IF('Physical Inputs'!64:64,\"e0q11TnSCBY=\",0)","v":0},{"$f":"AND('Physical Inputs'!A62,\"e0q11TnSCBc=\")","v":{"$error":"#VALUE!"}},{"$f":"AND('Physical Inputs'!B62,\"e0q11TnSCBg=\")","v":{"$error":"#VALUE!"}},{"$f":"AND('Physical Inputs'!C63,\"e0q11TnSCBk=\")","v":{"$error":"#VALUE!"}},{"$f":"AND('Physical Inputs'!D63,\"e0q11TnSCBo=\")","v":{"$error":"#VALUE!"}},{"$f":"AND('Physical Inputs'!E64,\"e0q11TnSCBs=\")","v":{"$error":"#VALUE!"}},{"$f":"AND('Physical Inputs'!#REF!,\"e0q11TnSCBw=\")","v":{"$error":"#REF!"}},{"$f":"AND('Physical Inputs'!#REF!,\"e0q11TnSCB0=\")","v":{"$error":"#REF!"}},{"$f":"AND('Physical Inputs'!F64,\"e0q11TnSCB4=\")","v":{"$error":"#VALUE!"}},{"$f":"AND('Physical Inputs'!G64,\"e0q11TnSCB8=\")","v":{"$error":"#VALUE!"}},{"$f":"AND('Physical Inputs'!H64,\"e0q11TnSCCA=\")","v":{"$error":"#VALUE!"}},{"$f":"AND('Physical Inputs'!I64,\"e0q11TnSCCE=\")","v":{"$error":"#VALUE!"}},{"$f":"AND('Physical Inputs'!J64,\"e0q11TnSCCI=\")","v":{"$error":"#VALUE!"}},{"$f":"AND('Physical Inputs'!K64,\"e0q11TnSCCM=\")","v":{"$error":"#VALUE!"}},{"$f":"AND('Physical Inputs'!L64,\"e0q11TnSCCQ=\")","v":{"$error":"#VALUE!"}},{"$f":"AND('Physical Inputs'!M64,\"e0q11TnSCCU=\")","v":{"$error":"#VALUE!"}},{"$f":"AND('Physical Inputs'!N64,\"e0q11TnSCCY=\")","v":{"$error":"#VALUE!"}},{"$f":"AND('Physical Inputs'!O64,\"e0q11TnSCCc=\")","v":{"$error":"#VALUE!"}},{"$f":"AND('Physical Inputs'!P64,\"e0q11TnSCCg=\")","v":{"$error":"#VALUE!"}},{"$f":"AND('Physical Inputs'!Q64,\"e0q11TnSCCk=\")","v":{"$error":"#VALUE!"}},{"$f":"AND('Physical Inputs'!R64,\"e0q11TnSCCo=\")","v":{"$error":"#VALUE!"}},{"$f":"AND('Physical Inputs'!S64,\"e0q11TnSCCs=\")","v":{"$error":"#VALUE!"}},{"$f":"AND('Physical Inputs'!T64,\"e0q11TnSCCw=\")","v":{"$error":"#VALUE!"}},{"$f":"IF('Physical Inputs'!69:69,\"e0q11TnSCC0=\",0)","v":0},{"$f":"AND('Physical Inputs'!A63,\"e0q11TnSCC4=\")","v":{"$error":"#VALUE!"}},{"$f":"AND('Physical Inputs'!B63,\"e0q11TnSCC8=\")","v":{"$error":"#VALUE!"}},{"$f":"AND('Physical Inputs'!C64,\"e0q11TnSCDA=\")","v":{"$error":"#VALUE!"}},{"$f":"AND('Physical Inputs'!D64,\"e0q11TnSCDE=\")","v":{"$error":"#VALUE!"}},{"$f":"AND('Physical Inputs'!E69,\"e0q11TnSCDI=\")","v":{"$error":"#VALUE!"}},{"$f":"AND('Physical Inputs'!#REF!,\"e0q11TnSCDM=\")","v":{"$error":"#REF!"}},{"$f":"AND('Physical Inputs'!#REF!,\"e0q11TnSCDQ=\")","v":{"$error":"#REF!"}},{"$f":"AND('Physical Inputs'!F69,\"e0q11TnSCDU=\")","v":{"$error":"#VALUE!"}},{"$f":"AND('Physical Inputs'!G69,\"e0q11TnSCDY=\")","v":{"$error":"#VALUE!"}},{"$f":"AND('Physical Inputs'!H69,\"e0q11TnSCDc=\")","v":{"$error":"#VALUE!"}},{"$f":"AND('Physical Inputs'!I69,\"e0q11TnSCDg=\")","v":{"$error":"#VALUE!"}},{"$f":"AND('Physical Inputs'!J69,\"e0q11TnSCDk=\")","v":{"$error":"#VALUE!"}},{"$f":"AND('Physical Inputs'!K69,\"e0q11TnSCDo=\")","v":{"$error":"#VALUE!"}},{"$f":"AND('Physical Inputs'!L69,\"e0q11TnSCDs=\")","v":{"$error":"#VALUE!"}},{"$f":"AND('Physical Inputs'!M69,\"e0q11TnSCDw=\")","v":{"$error":"#VALUE!"}},{"$f":"AND('Physical Inputs'!N69,\"e0q11TnSCD0=\")","v":{"$error":"#VALUE!"}},{"$f":"AND('Physical Inputs'!O69,\"e0q11TnSCD4=\")","v":{"$error":"#VALUE!"}},{"$f":"AND('Physical Inputs'!P69,\"e0q11TnSCD8=\")","v":{"$error":"#VALUE!"}},{"$f":"AND('Physical Inputs'!Q69,\"e0q11TnSCEA=\")","v":{"$error":"#VALUE!"}},{"$f":"AND('Physical Inputs'!R69,\"e0q11TnSCEE=\")","v":{"$error":"#VALUE!"}},{"$f":"AND('Physical Inputs'!S69,\"e0q11TnSCEI=\")","v":{"$error":"#VALUE!"}},{"$f":"AND('Physical Inputs'!T69,\"e0q11TnSCEM=\")","v":{"$error":"#VALUE!"}},{"$f":"IF('Physical Inputs'!65:65,\"e0q11TnSCEQ=\",0)","v":0},{"$f":"AND('Physical Inputs'!A64,\"e0q11TnSCEU=\")","v":{"$error":"#VALUE!"}},{"$f":"AND('Physical Inputs'!B64,\"e0q11TnSCEY=\")","v":{"$error":"#VALUE!"}},{"$f":"AND('Physical Inputs'!C68,\"e0q11TnSCEc=\")","v":{"$error":"#VALUE!"}},{"$f":"AND('Physical Inputs'!D69,\"e0q11TnSCEg=\")","v":{"$error":"#VALUE!"}},{"$f":"AND('Physical Inputs'!E65,\"e0q11TnSCEk=\")","v":{"$error":"#VALUE!"}},{"$f":"AND('Physical Inputs'!#REF!,\"e0q11TnSCEo=\")","v":{"$error":"#REF!"}},{"$f":"AND('Physical Inputs'!#REF!,\"e0q11TnSCEs=\")","v":{"$error":"#REF!"}},{"$f":"AND('Physical Inputs'!F65,\"e0q11TnSCEw=\")","v":{"$error":"#VALUE!"}},{"$f":"AND('Physical Inputs'!G65,\"e0q11TnSCE0=\")","v":{"$error":"#VALUE!"}},{"$f":"AND('Physical Inputs'!H65,\"e0q11TnSCE4=\")","v":{"$error":"#VALUE!"}},{"$f":"AND('Physical Inputs'!I65,\"e0q11TnSCE8=\")","v":{"$error":"#VALUE!"}},{"$f":"AND('Physical Inputs'!J65,\"e0q11TnSCFA=\")","v":{"$error":"#VALUE!"}},{"$f":"AND('Physical Inputs'!K65,\"e0q11TnSCFE=\")","v":{"$error":"#VALUE!"}},{"$f":"AND('Physical Inputs'!L65,\"e0q11TnSCFI=\")","v":{"$error":"#VALUE!"}},{"$f":"AND('Physical Inputs'!M65,\"e0q11TnSCFM=\")","v":{"$error":"#VALUE!"}},{"$f":"AND('Physical Inputs'!N65,\"e0q11TnSCFQ=\")","v":{"$error":"#VALUE!"}},{"$f":"AND('Physical Inputs'!O65,\"e0q11TnSCFU=\")","v":{"$error":"#VALUE!"}},{"$f":"AND('Physical Inputs'!P65,\"e0q11TnSCFY=\")","v":{"$error":"#VALUE!"}},{"$f":"AND('Physical Inputs'!Q65,\"e0q11TnSCFc=\")","v":{"$error":"#VALUE!"}},{"$f":"AND('Physical Inputs'!R65,\"e0q11TnSCFg=\")","v":{"$error":"#VALUE!"}},{"$f":"AND('Physical Inputs'!S65,\"e0q11TnSCFk=\")","v":{"$error":"#VALUE!"}},{"$f":"AND('Physical Inputs'!T65,\"e0q11TnSCFo=\")","v":{"$error":"#VALUE!"}},{"$f":"IF('Physical Inputs'!66:66,\"e0q11TnSCFs=\",0)","v":0},{"$f":"AND('Physical Inputs'!A65,\"e0q11TnSCFw=\")","v":{"$error":"#VALUE!"}},{"$f":"AND('Physical Inputs'!B65,\"e0q11TnSCF0=\")","v":{"$error":"#VALUE!"}},{"$f":"AND('Physical Inputs'!C65,\"e0q11TnSCF4=\")","v":{"$error":"#VALUE!"}},{"$f":"AND('Physical Inputs'!D65,\"e0q11TnSCF8=\")","v":{"$error":"#VALUE!"}},{"$f":"AND('Physical Inputs'!E66,\"e0q11TnSCGA=\")","v":{"$error":"#VALUE!"}},{"$f":"AND('Physical Inputs'!#REF!,\"e0q11TnSCGE=\")","v":{"$error":"#REF!"}},{"$f":"AND('Physical Inputs'!#REF!,\"e0q11TnSCGI=\")","v":{"$error":"#REF!"}},{"$f":"AND('Physical Inputs'!F66,\"e0q11TnSCGM=\")","v":{"$error":"#VALUE!"}},{"$f":"AND('Physical Inputs'!G66,\"e0q11TnSCGQ=\")","v":{"$error":"#VALUE!"}},{"$f":"AND('Physical Inputs'!H66,\"e0q11TnSCGU=\")","v":{"$error":"#VALUE!"}},{"$f":"AND('Physical Inputs'!I66,\"e0q11TnSCGY=\")","v":{"$error":"#VALUE!"}},{"$f":"AND('Physical Inputs'!J66,\"e0q11TnSCGc=\")","v":{"$error":"#VALUE!"}},{"$f":"AND('Physical Inputs'!K66,\"e0q11TnSCGg=\")","v":{"$error":"#VALUE!"}},{"$f":"AND('Physical Inputs'!L66,\"e0q11TnSCGk=\")","v":{"$error":"#VALUE!"}},{"$f":"AND('Physical Inputs'!M66,\"e0q11TnSCGo=\")","v":{"$error":"#VALUE!"}},{"$f":"AND('Physical Inputs'!N66,\"e0q11TnSCGs=\")","v":{"$error":"#VALUE!"}},{"$f":"AND('Physical Inputs'!O66,\"e0q11TnSCGw=\")","v":{"$error":"#VALUE!"}},{"$f":"AND('Physical Inputs'!P66,\"e0q11TnSCG0=\")","v":{"$error":"#VALUE!"}},{"$f":"AND('Physical Inputs'!Q66,\"e0q11TnSCG4=\")","v":{"$error":"#VALUE!"}},{"$f":"AND('Physical Inputs'!R66,\"e0q11TnSCG8=\")","v":{"$error":"#VALUE!"}},{"$f":"AND('Physical Inputs'!S66,\"e0q11TnSCHA=\")","v":{"$error":"#VALUE!"}},{"$f":"AND('Physical Inputs'!T66,\"e0q11TnSCHE=\")","v":{"$error":"#VALUE!"}},{"$f":"IF('Physical Inputs'!112:112,\"e0q11TnSCHI=\",0)","v":0},{"$f":"AND('Physical Inputs'!A112,\"e0q11TnSCHM=\")","v":{"$error":"#VALUE!"}},{"$f":"AND('Physical Inputs'!B112,\"e0q11TnSCHQ=\")","v":{"$error":"#VALUE!"}},{"$f":"AND('Physical Inputs'!#REF!,\"e0q11TnSCHU=\")","v":{"$error":"#REF!"}},{"$f":"AND('Physical Inputs'!#REF!,\"e0q11TnSCHY=\")","v":{"$error":"#REF!"}},{"$f":"AND('Physical Inputs'!E112,\"e0q11TnSCHc=\")","v":{"$error":"#VALUE!"}},{"$f":"AND('Physical Inputs'!#REF!,\"e0q11TnSCHg=\")","v":{"$error":"#REF!"}},{"$f":"AND('Physical Inputs'!#REF!,\"e0q11TnSCHk=\")","v":{"$error":"#REF!"}},{"$f":"AND('Physical Inputs'!F112,\"e0q11TnSCHo=\")","v":{"$error":"#VALUE!"}},{"$f":"AND('Physical Inputs'!G112,\"e0q11TnSCHs=\")","v":{"$error":"#VALUE!"}},{"$f":"AND('Physical Inputs'!H112,\"e0q11TnSCHw=\")","v":{"$error":"#VALUE!"}},{"$f":"AND('Physical Inputs'!I112,\"e0q11TnSCH0=\")","v":{"$error":"#VALUE!"}},{"$f":"AND('Physical Inputs'!J112,\"e0q11TnSCH4=\")","v":{"$error":"#VALUE!"}},{"$f":"AND('Physical Inputs'!K112,\"e0q11TnSCH8=\")","v":{"$error":"#VALUE!"}},{"$f":"AND('Physical Inputs'!L112,\"e0q11TnSCIA=\")","v":{"$error":"#VALUE!"}},{"$f":"AND('Physical Inputs'!M112,\"e0q11TnSCIE=\")","v":{"$error":"#VALUE!"}},{"$f":"AND('Physical Inputs'!N112,\"e0q11TnSCII=\")","v":{"$error":"#VALUE!"}},{"$f":"AND('Physical Inputs'!O112,\"e0q11TnSCIM=\")","v":{"$error":"#VALUE!"}},{"$f":"AND('Physical Inputs'!P112,\"e0q11TnSCIQ=\")","v":{"$error":"#VALUE!"}},{"$f":"AND('Physical Inputs'!Q112,\"e0q11TnSCIU=\")","v":{"$error":"#VALUE!"}},{"$f":"AND('Physical Inputs'!R112,\"e0q11TnSCIY=\")","v":{"$error":"#VALUE!"}},{"$f":"AND('Physical Inputs'!S112,\"e0q11TnSCIc=\")","v":{"$error":"#VALUE!"}},{"$f":"AND('Physical Inputs'!T112,\"e0q11TnSCIg=\")","v":{"$error":"#VALUE!"}},{"$f":"IF('Physical Inputs'!#REF!,\"e0q11TnSCIk=\",0)","v":{"$error":"#REF!"}},{"$f":"AND('Physical Inputs'!#REF!,\"e0q11TnSCIo=\")","v":{"$error":"#REF!"}},{"$f":"AND('Physical Inputs'!#REF!,\"e0q11TnSCIs=\")","v":{"$error":"#REF!"}},{"$f":"AND('Physical Inputs'!#REF!,\"e0q11TnSCIw=\")","v":{"$error":"#REF!"}},{"$f":"AND('Physical Inputs'!#REF!,\"e0q11TnSCI0=\")","v":{"$error":"#REF!"}},{"$f":"AND('Physical Inputs'!#REF!,\"e0q11TnSCI4=\")","v":{"$error":"#REF!"}},{"$f":"AND('Physical Inputs'!#REF!,\"e0q11TnSCI8=\")","v":{"$error":"#REF!"}},{"$f":"AND('Physical Inputs'!#REF!,\"e0q11TnSCJA=\")","v":{"$error":"#REF!"}},{"$f":"AND('Physical Inputs'!#REF!,\"e0q11TnSCJE=\")","v":{"$error":"#REF!"}},{"$f":"AND('Physical Inputs'!#REF!,\"e0q11TnSCJI=\")","v":{"$error":"#REF!"}},{"$f":"AND('Physical Inputs'!#REF!,\"e0q11TnSCJM=\")","v":{"$error":"#REF!"}},{"$f":"AND('Physical Inputs'!#REF!,\"e0q11TnSCJQ=\")","v":{"$error":"#REF!"}},{"$f":"AND('Physical Inputs'!#REF!,\"e0q11TnSCJU=\")","v":{"$error":"#REF!"}},{"$f":"AND('Physical Inputs'!#REF!,\"e0q11TnSCJY=\")","v":{"$error":"#REF!"}},{"$f":"AND('Physical Inputs'!#REF!,\"e0q11TnSCJc=\")","v":{"$error":"#REF!"}},{"$f":"AND('Physical Inputs'!#REF!,\"e0q11TnSCJg=\")","v":{"$error":"#REF!"}},{"$f":"AND('Physical Inputs'!#REF!,\"e0q11TnSCJk=\")","v":{"$error":"#REF!"}},{"$f":"AND('Physical Inputs'!#REF!,\"e0q11TnSCJo=\")","v":{"$error":"#REF!"}},{"$f":"AND('Physical Inputs'!#REF!,\"e0q11TnSCJs=\")","v":{"$error":"#REF!"}},{"$f":"AND('Physical Inputs'!#REF!,\"e0q11TnSCJw=\")","v":{"$error":"#REF!"}},{"$f":"AND('Physical Inputs'!#REF!,\"e0q11TnSCJ0=\")","v":{"$error":"#REF!"}},{"$f":"AND('Physical Inputs'!#REF!,\"e0q11TnSCJ4=\")","v":{"$error":"#REF!"}},{"$f":"AND('Physical Inputs'!#REF!,\"e0q11TnSCJ8=\")","v":{"$error":"#REF!"}},{"$f":"IF('Physical Inputs'!#REF!,\"e0q11TnSCKA=\",0)","v":{"$error":"#REF!"}},{"$f":"AND('Physical Inputs'!#REF!,\"e0q11TnSCKE=\")","v":{"$error":"#REF!"}},{"$f":"AND('Physical Inputs'!#REF!,\"e0q11TnSCKI=\")","v":{"$error":"#REF!"}},{"$f":"AND('Physical Inputs'!#REF!,\"e0q11TnSCKM=\")","v":{"$error":"#REF!"}},{"$f":"AND('Physical Inputs'!#REF!,\"e0q11TnSCKQ=\")","v":{"$error":"#REF!"}},{"$f":"AND('Physical Inputs'!#REF!,\"e0q11TnSCKU=\")","v":{"$error":"#REF!"}},{"$f":"AND('Physical Inputs'!#REF!,\"e0q11TnSCKY=\")","v":{"$error":"#REF!"}},{"$f":"AND('Physical Inputs'!#REF!,\"e0q11TnSCKc=\")","v":{"$error":"#REF!"}},{"$f":"AND('Physical Inputs'!#REF!,\"e0q11TnSCKg=\")","v":{"$error":"#REF!"}},{"$f":"AND('Physical Inputs'!#REF!,\"e0q11TnSCKk=\")","v":{"$error":"#REF!"}},{"$f":"AND('Physical Inputs'!#REF!,\"e0q11TnSCKo=\")","v":{"$error":"#REF!"}},{"$f":"AND('Physical Inputs'!#REF!,\"e0q11TnSCKs=\")","v":{"$error":"#REF!"}},{"$f":"AND('Physical Inputs'!#REF!,\"e0q11TnSCKw=\")","v":{"$error":"#REF!"}},{"$f":"AND('Physical Inputs'!#REF!,\"e0q11TnSCK0=\")","v":{"$error":"#REF!"}},{"$f":"AND('Physical Inputs'!#REF!,\"e0q11TnSCK4=\")","v":{"$error":"#REF!"}},{"$f":"AND('Physical Inputs'!#REF!,\"e0q11TnSCK8=\")","v":{"$error":"#REF!"}},{"$f":"AND('Physical Inputs'!#REF!,\"e0q11TnSCLA=\")","v":{"$error":"#REF!"}},{"$f":"AND('Physical Inputs'!#REF!,\"e0q11TnSCLE=\")","v":{"$error":"#REF!"}},{"$f":"AND('Physical Inputs'!#REF!,\"e0q11TnSCLI=\")","v":{"$error":"#REF!"}},{"$f":"AND('Physical Inputs'!#REF!,\"e0q11TnSCLM=\")","v":{"$error":"#REF!"}},{"$f":"AND('Physical Inputs'!#REF!,\"e0q11TnSCLQ=\")","v":{"$error":"#REF!"}},{"$f":"AND('Physical Inputs'!#REF!,\"e0q11TnSCLU=\")","v":{"$error":"#REF!"}},{"$f":"AND('Physical Inputs'!#REF!,\"e0q11TnSCLY=\")","v":{"$error":"#REF!"}},{"$f":"IF('Physical Inputs'!#REF!,\"e0q11TnSCLc=\",0)","v":{"$error":"#REF!"}},{"$f":"IF('Physical Outputs'!19:19,\"e0q11TnSCLg=\",0)","v":0},{"$f":"IF('Physical Outputs'!20:20,\"e0q11TnSCLk=\",0)","v":0},{"$f":"IF('Physical Outputs'!21:21,\"e0q11TnSCLo=\",0)","v":0},{"$f":"IF('Physical Outputs'!22:22,\"e0q11TnSCLs=\",0)","v":0},{"$f":"IF('Physical Outputs'!23:23,\"e0q11TnSCLw=\",0)","v":0},{"$f":"IF('Physical Outputs'!25:25,\"e0q11TnSCL0=\",0)","v":0},{"$f":"IF('Physical Inputs'!#REF!,\"e0q11TnSCL4=\",0)","v":{"$error":"#REF!"}},{"$f":"IF('Physical Outputs'!24:24,\"e0q11TnSCL8=\",0)","v":0},{"$f":"IF('Physical Inputs'!#REF!,\"e0q11TnSCMA=\",0)","v":{"$error":"#REF!"}},{"$f":"IF('Physical Outputs'!27:27,\"e0q11TnSCME=\",0)","v":0},{"$f":"IF('Physical Outputs'!28:28,\"e0q11TnSCMI=\",0)","v":0},{"$f":"IF('Physical Outputs'!34:34,\"e0q11TnSCMM=\",0)","v":0},{"$f":"IF('Physical Outputs'!29:29,\"e0q11TnSCMQ=\",0)","v":0},{"$f":"IF('Physical Outputs'!30:30,\"e0q11TnSCMU=\",0)","v":0},{"$f":"IF('Physical Outputs'!31:31,\"e0q11TnSCMY=\",0)","v":0},{"$f":"IF('Physical Outputs'!32:32,\"e0q11TnSCMc=\",0)","v":0},{"$f":"IF('Physical Outputs'!36:36,\"e0q11TnSCMg=\",0)","v":0},{"$f":"IF('Physical Outputs'!37:37,\"e0q11TnSCMk=\",0)","v":0},{"$f":"IF('Physical Outputs'!38:38,\"e0q11TnSCMo=\",0)","v":0},{"$f":"IF('Physical Outputs'!60:60,\"e0q11TnSCMs=\",0)","v":0},{"$f":"IF('Physical Inputs'!150:150,\"e0q11TnSCMw=\",0)","v":0},{"$f":"IF('Physical Inputs'!151:151,\"e0q11TnSCM0=\",0)","v":0},{"$f":"IF('Physical Inputs'!152:152,\"e0q11TnSCM4=\",0)","v":0},{"$f":"IF('Physical Inputs'!153:153,\"e0q11TnSCM8=\",0)","v":0},{"$f":"IF('Physical Inputs'!154:154,\"e0q11TnSCNA=\",0)","v":0},{"$f":"IF('Physical Inputs'!155:155,\"e0q11TnSCNE=\",0)","v":0},{"$f":"IF('Physical Inputs'!156:156,\"e0q11TnSCNI=\",0)","v":0},{"$f":"IF('Physical Inputs'!157:157,\"e0q11TnSCNM=\",0)","v":0},{"$f":"IF('Physical Inputs'!158:158,\"e0q11TnSCNQ=\",0)","v":0},{"$f":"IF('Physical Inputs'!159:159,\"e0q11TnSCNU=\",0)","v":0},{"$f":"IF('Physical Inputs'!160:160,\"e0q11TnSCNY=\",0)","v":0},{"$f":"IF('Physical Inputs'!161:161,\"e0q11TnSCNc=\",0)","v":0},{"$f":"IF('Physical Inputs'!162:162,\"e0q11TnSCNg=\",0)","v":0},{"$f":"IF('Physical Inputs'!163:163,\"e0q11TnSCNk=\",0)","v":0},{"$f":"IF('Physical Inputs'!164:164,\"e0q11TnSCNo=\",0)","v":0},{"$f":"IF('Physical Inputs'!165:165,\"e0q11TnSCNs=\",0)","v":0},{"$f":"IF('Physical Inputs'!166:166,\"e0q11TnSCNw=\",0)","v":0},{"$f":"IF('Physical Inputs'!167:167,\"e0q11TnSCN0=\",0)","v":0},{"$f":"IF('Physical Inputs'!168:168,\"e0q11TnSCN4=\",0)","v":0},{"$f":"IF('Physical Inputs'!169:169,\"e0q11TnSCN8=\",0)","v":0},{"$f":"IF('Physical Inputs'!170:170,\"e0q11TnSCOA=\",0)","v":0},{"$f":"IF('Physical Inputs'!174:174,\"e0q11TnSCOE=\",0)","v":0},{"$f":"IF('Physical Inputs'!175:175,\"e0q11TnSCOI=\",0)","v":0},{"$f":"IF('Physical Inputs'!176:176,\"e0q11TnSCOM=\",0)","v":0},{"$f":"IF('Physical Inputs'!177:177,\"e0q11TnSCOQ=\",0)","v":0},{"$f":"IF('Physical Inputs'!178:178,\"e0q11TnSCOU=\",0)","v":0},{"$f":"IF('Physical Inputs'!179:179,\"e0q11TnSCOY=\",0)","v":0},{"$f":"IF('Physical Inputs'!180:180,\"e0q11TnSCOc=\",0)","v":0},{"$f":"IF('Physical Inputs'!181:181,\"e0q11TnSCOg=\",0)","v":0},{"$f":"IF('Physical Inputs'!182:182,\"e0q11TnSCOk=\",0)","v":0},{"$f":"IF('Physical Inputs'!183:183,\"e0q11TnSCOo=\",0)","v":0},{"$f":"IF('Physical Inputs'!184:184,\"e0q11TnSCOs=\",0)","v":0},{"$f":"IF('Physical Inputs'!185:185,\"e0q11TnSCOw=\",0)","v":0},{"$f":"IF('Physical Inputs'!186:186,\"e0q11TnSCO0=\",0)","v":0},{"$f":"IF('Physical Inputs'!187:187,\"e0q11TnSCO4=\",0)","v":0},{"$f":"IF('Physical Inputs'!188:188,\"e0q11TnSCO8=\",0)","v":0},{"$f":"IF('Physical Inputs'!189:189,\"e0q11TnSCPA=\",0)","v":0},{"$f":"IF('Physical Inputs'!190:190,\"e0q11TnSCPE=\",0)","v":0},{"$f":"IF('Physical Inputs'!191:191,\"e0q11TnSCPI=\",0)","v":0},{"$f":"IF('Physical Inputs'!192:192,\"e0q11TnSCPM=\",0)","v":0},{"$f":"IF('Physical Inputs'!193:193,\"e0q11TnSCPQ=\",0)","v":0},{"$f":"IF('Physical Inputs'!194:194,\"e0q11TnSCPU=\",0)","v":0},{"$f":"IF('Physical Inputs'!195:195,\"e0q11TnSCPY=\",0)","v":0},{"$f":"IF('Physical Inputs'!196:196,\"e0q11TnSCPc=\",0)","v":0},{"$f":"IF('Physical Inputs'!197:197,\"e0q11TnSCPg=\",0)","v":0},{"$f":"IF('Physical Inputs'!198:198,\"e0q11TnSCPk=\",0)","v":0},{"$f":"IF('Physical Inputs'!199:199,\"e0q11TnSCPo=\",0)","v":0},{"$f":"IF('Physical Inputs'!200:200,\"e0q11TnSCPs=\",0)","v":0},{"$f":"IF('Physical Inputs'!201:201,\"e0q11TnSCPw=\",0)","v":0},{"$f":"IF('Physical Inputs'!202:202,\"e0q11TnSCP0=\",0)","v":0},{"$f":"IF('Physical Inputs'!203:203,\"e0q11TnSCP4=\",0)","v":0},{"$f":"IF('Physical Inputs'!204:204,\"e0q11TnSCP8=\",0)","v":0}]
[{"$f":"IF('Physical Inputs'!205:205,\"QhW7vQg3EAA=\",0)","v":0},{"$f":"IF('Physical Inputs'!206:206,\"QhW7vQg3EAE=\",0)","v":0},{"$f":"IF('Physical Inputs'!207:207,\"QhW7vQg3EAI=\",0)","v":0},{"$f":"IF('Physical Inputs'!208:208,\"QhW7vQg3EAM=\",0)","v":0},{"$f":"IF('Physical Inputs'!209:209,\"QhW7vQg3EAQ=\",0)","v":0},{"$f":"IF('Physical Inputs'!210:210,\"QhW7vQg3EAU=\",0)","v":0},{"$f":"IF('Physical Inputs'!211:211,\"QhW7vQg3EAY=\",0)","v":0},{"$f":"IF('Physical Inputs'!212:212,\"QhW7vQg3EAc=\",0)","v":0},{"$f":"IF('Physical Inputs'!213:213,\"QhW7vQg3EAg=\",0)","v":0},{"$f":"IF('Physical Inputs'!214:214,\"QhW7vQg3EAk=\",0)","v":0},{"$f":"IF('Physical Inputs'!215:215,\"QhW7vQg3EAo=\",0)","v":0},{"$f":"IF('Physical Inputs'!216:216,\"QhW7vQg3EAs=\",0)","v":0},{"$f":"IF('Physical Inputs'!217:217,\"QhW7vQg3EAw=\",0)","v":0},{"$f":"IF('Physical Inputs'!218:218,\"QhW7vQg3EA0=\",0)","v":0},{"$f":"IF('Physical Inputs'!219:219,\"QhW7vQg3EA4=\",0)","v":0},{"$f":"IF('Physical Inputs'!220:220,\"QhW7vQg3EA8=\",0)","v":0},{"$f":"IF('Physical Inputs'!221:221,\"QhW7vQg3EBA=\",0)","v":0},{"$f":"IF('Physical Inputs'!222:222,\"QhW7vQg3EBE=\",0)","v":0},{"$f":"IF('Physical Inputs'!223:223,\"QhW7vQg3EBI=\",0)","v":0},{"$f":"IF('Physical Inputs'!224:224,\"QhW7vQg3EBM=\",0)","v":0},{"$f":"IF('Physical Inputs'!225:225,\"QhW7vQg3EBQ=\",0)","v":0},{"$f":"IF('Physical Inputs'!226:226,\"QhW7vQg3EBU=\",0)","v":0},{"$f":"IF('Physical Inputs'!227:227,\"QhW7vQg3EBY=\",0)","v":0},{"$f":"IF('Physical Inputs'!228:228,\"QhW7vQg3EBc=\",0)","v":0},{"$f":"IF('Physical Inputs'!229:229,\"QhW7vQg3EBg=\",0)","v":0},{"$f":"IF('Physical Inputs'!230:230,\"QhW7vQg3EBk=\",0)","v":0},{"$f":"IF('Physical Inputs'!231:231,\"QhW7vQg3EBo=\",0)","v":0},{"$f":"IF('Physical Inputs'!232:232,\"QhW7vQg3EBs=\",0)","v":0},{"$f":"IF('Physical Inputs'!233:233,\"QhW7vQg3EBw=\",0)","v":0},{"$f":"IF('Physical Inputs'!234:234,\"QhW7vQg3EB0=\",0)","v":0},{"$f":"IF('Physical Inputs'!235:235,\"QhW7vQg3EB4=\",0)","v":0},{"$f":"IF('Physical Inputs'!236:236,\"QhW7vQg3EB8=\",0)","v":0},{"$f":"IF('Physical Inputs'!237:237,\"QhW7vQg3ECA=\",0)","v":0},{"$f":"IF('Physical Inputs'!238:238,\"QhW7vQg3ECE=\",0)","v":0},{"$f":"IF('Physical Inputs'!239:239,\"QhW7vQg3ECI=\",0)","v":0},{"$f":"IF('Physical Inputs'!240:240,\"QhW7vQg3ECM=\",0)","v":0},{"$f":"IF('Physical Inputs'!241:241,\"QhW7vQg3ECQ=\",0)","v":0},{"$f":"IF('Physical Inputs'!242:242,\"QhW7vQg3ECU=\",0)","v":0},{"$f":"IF('Physical Inputs'!243:243,\"QhW7vQg3ECY=\",0)","v":0},{"$f":"IF('Physical Inputs'!244:244,\"QhW7vQg3ECc=\",0)","v":0},{"$f":"IF('Physical Inputs'!245:245,\"QhW7vQg3ECg=\",0)","v":0},{"$f":"IF('Physical Inputs'!246:246,\"QhW7vQg3ECk=\",0)","v":0},{"$f":"IF('Physical Inputs'!247:247,\"QhW7vQg3ECo=\",0)","v":0},{"$f":"IF('Physical Inputs'!248:248,\"QhW7vQg3ECs=\",0)","v":0},{"$f":"IF('Physical Inputs'!249:249,\"QhW7vQg3ECw=\",0)","v":0},{"$f":"IF('Physical Inputs'!250:250,\"QhW7vQg3EC0=\",0)","v":0},{"$f":"IF('Physical Inputs'!251:251,\"QhW7vQg3EC4=\",0)","v":0},{"$f":"IF('Physical Inputs'!252:252,\"QhW7vQg3EC8=\",0)","v":0},{"$f":"IF('Physical Inputs'!253:253,\"QhW7vQg3EDA=\",0)","v":0},{"$f":"IF('Physical Inputs'!254:254,\"QhW7vQg3EDE=\",0)","v":0},{"$f":"IF('Physical Inputs'!255:255,\"QhW7vQg3EDI=\",0)","v":0},{"$f":"IF('Physical Inputs'!256:256,\"QhW7vQg3EDM=\",0)","v":0},{"$f":"IF('Physical Inputs'!257:257,\"QhW7vQg3EDQ=\",0)","v":0},{"$f":"IF('Physical Inputs'!258:258,\"QhW7vQg3EDU=\",0)","v":0},{"$f":"IF('Physical Inputs'!259:259,\"QhW7vQg3EDY=\",0)","v":0},{"$f":"IF('Physical Inputs'!260:260,\"QhW7vQg3EDc=\",0)","v":0},{"$f":"IF('Physical Inputs'!261:261,\"QhW7vQg3EDg=\",0)","v":0},{"$f":"IF('Physical Inputs'!262:262,\"QhW7vQg3EDk=\",0)","v":0},{"$f":"IF('Physical Inputs'!263:263,\"QhW7vQg3EDo=\",0)","v":0},{"$f":"IF('Physical Inputs'!264:264,\"QhW7vQg3EDs=\",0)","v":0},{"$f":"IF('Physical Inputs'!265:265,\"QhW7vQg3EDw=\",0)","v":0},{"$f":"IF('Physical Inputs'!266:266,\"QhW7vQg3ED0=\",0)","v":0},{"$f":"IF('Physical Inputs'!267:267,\"QhW7vQg3ED4=\",0)","v":0},{"$f":"IF('Physical Inputs'!268:268,\"QhW7vQg3ED8=\",0)","v":0},{"$f":"IF('Physical Inputs'!269:269,\"QhW7vQg3EEA=\",0)","v":0},{"$f":"IF('Physical Inputs'!270:270,\"QhW7vQg3EEE=\",0)","v":0},{"$f":"IF('Physical Inputs'!271:271,\"QhW7vQg3EEI=\",0)","v":0},{"$f":"IF('Physical Inputs'!272:272,\"QhW7vQg3EEM=\",0)","v":0},{"$f":"IF('Physical Inputs'!273:273,\"QhW7vQg3EEQ=\",0)","v":0},{"$f":"IF('Physical Inputs'!274:274,\"QhW7vQg3EEU=\",0)","v":0},{"$f":"IF('Physical Inputs'!275:275,\"QhW7vQg3EEY=\",0)","v":0},{"$f":"IF('Physical Inputs'!276:276,\"QhW7vQg3EEc=\",0)","v":0},{"$f":"IF('Physical Inputs'!277:277,\"QhW7vQg3EEg=\",0)","v":0},{"$f":"IF('Physical Inputs'!278:278,\"QhW7vQg3EEk=\",0)","v":0},{"$f":"IF('Physical Inputs'!279:279,\"QhW7vQg3EEo=\",0)","v":0},{"$f":"IF('Physical Inputs'!280:280,\"QhW7vQg3EEs=\",0)","v":0},{"$f":"IF('Physical Inputs'!281:281,\"QhW7vQg3EEw=\",0)","v":0},{"$f":"IF('Physical Inputs'!282:282,\"QhW7vQg3EE0=\",0)","v":0},{"$f":"IF('Physical Inputs'!283:283,\"QhW7vQg3EE4=\",0)","v":0},{"$f":"IF('Physical Inputs'!284:284,\"QhW7vQg3EE8=\",0)","v":0},{"$f":"IF('Physical Inputs'!285:285,\"QhW7vQg3EFA=\",0)","v":0},{"$f":"IF('Physical Inputs'!286:286,\"QhW7vQg3EFE=\",0)","v":0},{"$f":"IF('Physical Inputs'!287:287,\"QhW7vQg3EFI=\",0)","v":0},{"$f":"IF('Physical Inputs'!288:288,\"QhW7vQg3EFM=\",0)","v":0},{"$f":"IF('Physical Inputs'!289:289,\"QhW7vQg3EFQ=\",0)","v":0},{"$f":"IF('Physical Inputs'!290:290,\"QhW7vQg3EFU=\",0)","v":0},{"$f":"IF('Physical Inputs'!291:291,\"QhW7vQg3EFY=\",0)","v":0},{"$f":"IF('Physical Inputs'!292:292,\"QhW7vQg3EFc=\",0)","v":0},{"$f":"IF('Physical Inputs'!293:293,\"QhW7vQg3EFg=\",0)","v":0},{"$f":"IF('Physical Inputs'!294:294,\"QhW7vQg3EFk=\",0)","v":0},{"$f":"IF('Physical Inputs'!295:295,\"QhW7vQg3EFo=\",0)","v":0},{"$f":"IF('Physical Inputs'!296:296,\"QhW7vQg3EFs=\",0)","v":0},{"$f":"IF('Physical Inputs'!297:297,\"QhW7vQg3EFw=\",0)","v":0},{"$f":"IF('Physical Inputs'!298:298,\"QhW7vQg3EF0=\",0)","v":0},{"$f":"IF('Physical Inputs'!299:299,\"QhW7vQg3EF4=\",0)","v":0},{"$f":"IF('Physical Inputs'!300:300,\"QhW7vQg3EF8=\",0)","v":0},{"$f":"IF('Physical Inputs'!301:301,\"QhW7vQg3EGA=\",0)","v":0},{"$f":"IF('Physical Inputs'!302:302,\"QhW7vQg3EGE=\",0)","v":0},{"$f":"IF('Physical Inputs'!303:303,\"QhW7vQg3EGI=\",0)","v":0},{"$f":"IF('Physical Inputs'!304:304,\"QhW7vQg3EGM=\",0)","v":0},{"$f":"IF('Physical Inputs'!305:305,\"QhW7vQg3EGQ=\",0)","v":0},{"$f":"IF('Physical Inputs'!306:306,\"QhW7vQg3EGU=\",0)","v":0},{"$f":"IF('Physical Inputs'!307:307,\"QhW7vQg3EGY=\",0)","v":0},{"$f":"IF('Physical Inputs'!308:308,\"QhW7vQg3EGc=\",0)","v":0},{"$f":"IF('Physical Inputs'!309:309,\"QhW7vQg3EGg=\",0)","v":0},{"$f":"IF('Physical Inputs'!310:310,\"QhW7vQg3EGk=\",0)","v":0},{"$f":"IF('Physical Inputs'!311:311,\"QhW7vQg3EGo=\",0)","v":0},{"$f":"IF('Physical Inputs'!312:312,\"QhW7vQg3EGs=\",0)","v":0},{"$f":"IF('Physical Inputs'!313:313,\"QhW7vQg3EGw=\",0)","v":0},{"$f":"IF('Physical Inputs'!314:314,\"QhW7vQg3EG0=\",0)","v":0},{"$f":"IF('Physical Inputs'!315:315,\"QhW7vQg3EG4=\",0)","v":0},{"$f":"IF('Physical Inputs'!316:316,\"QhW7vQg3EG8=\",0)","v":0},{"$f":"IF('Physical Inputs'!317:317,\"QhW7vQg3EHA=\",0)","v":0},{"$f":"IF('Physical Inputs'!318:318,\"QhW7vQg3EHE=\",0)","v":0},{"$f":"IF('Physical Inputs'!319:319,\"QhW7vQg3EHI=\",0)","v":0},{"$f":"IF('Physical Inputs'!320:320,\"QhW7vQg3EHM=\",0)","v":0},{"$f":"IF('Physical Inputs'!321:321,\"QhW7vQg3EHQ=\",0)","v":0},{"$f":"IF('Physical Inputs'!322:322,\"QhW7vQg3EHU=\",0)","v":0},{"$f":"IF('Physical Inputs'!323:323,\"QhW7vQg3EHY=\",0)","v":0},{"$f":"IF('Physical Inputs'!324:324,\"QhW7vQg3EHc=\",0)","v":0},{"$f":"IF('Physical Inputs'!325:325,\"QhW7vQg3EHg=\",0)","v":0},{"$f":"IF('Physical Inputs'!326:326,\"QhW7vQg3EHk=\",0)","v":0},{"$f":"IF('Physical Inputs'!327:327,\"QhW7vQg3EHo=\",0)","v":0},{"$f":"IF('Physical Inputs'!328:328,\"QhW7vQg3EHs=\",0)","v":0},{"$f":"IF('Physical Inputs'!329:329,\"QhW7vQg3EHw=\",0)","v":0},{"$f":"IF('Physical Inputs'!330:330,\"QhW7vQg3EH0=\",0)","v":0},{"$f":"IF('Physical Inputs'!331:331,\"QhW7vQg3EH4=\",0)","v":0},{"$f":"IF('Physical Inputs'!332:332,\"QhW7vQg3EH8=\",0)","v":0},{"$f":"IF('Physical Inputs'!333:333,\"QhW7vQg3EIA=\",0)","v":0},{"$f":"IF('Physical Inputs'!334:334,\"QhW7vQg3EIE=\",0)","v":0},{"$f":"IF('Physical Inputs'!335:335,\"QhW7vQg3EII=\",0)","v":0},{"$f":"IF('Physical Inputs'!336:336,\"QhW7vQg3EIM=\",0)","v":0},{"$f":"IF('Physical Inputs'!337:337,\"QhW7vQg3EIQ=\",0)","v":0},{"$f":"IF('Physical Inputs'!338:338,\"QhW7vQg3EIU=\",0)","v":0},{"$f":"IF('Physical Inputs'!339:339,\"QhW7vQg3EIY=\",0)","v":0},{"$f":"IF('Physical Inputs'!340:340,\"QhW7vQg3EIc=\",0)","v":0},{"$f":"IF('Physical Inputs'!341:341,\"QhW7vQg3EIg=\",0)","v":0},{"$f":"IF('Physical Inputs'!342:342,\"QhW7vQg3EIk=\",0)","v":0},{"$f":"IF('Physical Inputs'!343:343,\"QhW7vQg3EIo=\",0)","v":0},{"$f":"IF('Physical Inputs'!344:344,\"QhW7vQg3EIs=\",0)","v":0},{"$f":"IF('Physical Inputs'!345:345,\"QhW7vQg3EIw=\",0)","v":0},{"$f":"IF('Physical Inputs'!346:346,\"QhW7vQg3EI0=\",0)","v":0},{"$f":"IF('Physical Inputs'!347:347,\"QhW7vQg3EI4=\",0)","v":0},{"$f":"IF('Physical Inputs'!348:348,\"QhW7vQg3EI8=\",0)","v":0},{"$f":"IF('Physical Inputs'!349:349,\"QhW7vQg3EJA=\",0)","v":0},{"$f":"IF('Physical Inputs'!350:350,\"QhW7vQg3EJE=\",0)","v":0},{"$f":"IF('Physical Inputs'!351:351,\"QhW7vQg3EJI=\",0)","v":0},{"$f":"IF('Physical Inputs'!352:352,\"QhW7vQg3EJM=\",0)","v":0},{"$f":"IF('Physical Inputs'!353:353,\"QhW7vQg3EJQ=\",0)","v":0},{"$f":"IF('Physical Inputs'!354:354,\"QhW7vQg3EJU=\",0)","v":0},{"$f":"IF('Physical Inputs'!355:355,\"QhW7vQg3EJY=\",0)","v":0},{"$f":"IF('Physical Inputs'!356:356,\"QhW7vQg3EJc=\",0)","v":0},{"$f":"IF('Physical Inputs'!357:357,\"QhW7vQg3EJg=\",0)","v":0},{"$f":"IF('Physical Inputs'!358:358,\"QhW7vQg3EJk=\",0)","v":0},{"$f":"IF('Physical Inputs'!359:359,\"QhW7vQg3EJo=\",0)","v":0},{"$f":"IF('Physical Inputs'!360:360,\"QhW7vQg3EJs=\",0)","v":0},{"$f":"IF('Physical Inputs'!361:361,\"QhW7vQg3EJw=\",0)","v":0},{"$f":"IF('Physical Inputs'!362:362,\"QhW7vQg3EJ0=\",0)","v":0},{"$f":"IF('Physical Inputs'!363:363,\"QhW7vQg3EJ4=\",0)","v":0},{"$f":"IF('Physical Inputs'!364:364,\"QhW7vQg3EJ8=\",0)","v":0},{"$f":"IF('Physical Inputs'!365:365,\"QhW7vQg3EKA=\",0)","v":0},{"$f":"IF('Physical Inputs'!366:366,\"QhW7vQg3EKE=\",0)","v":0},{"$f":"IF('Physical Inputs'!367:367,\"QhW7vQg3EKI=\",0)","v":0},{"$f":"IF('Physical Inputs'!368:368,\"QhW7vQg3EKM=\",0)","v":0},{"$f":"IF('Physical Inputs'!369:369,\"QhW7vQg3EKQ=\",0)","v":0},{"$f":"IF('Physical Inputs'!370:370,\"QhW7vQg3EKU=\",0)","v":0},{"$f":"IF('Physical Inputs'!371:371,\"QhW7vQg3EKY=\",0)","v":0},{"$f":"IF('Physical Inputs'!372:372,\"QhW7vQg3EKc=\",0)","v":0},{"$f":"IF('Physical Inputs'!373:373,\"QhW7vQg3EKg=\",0)","v":0},{"$f":"IF('Physical Inputs'!374:374,\"QhW7vQg3EKk=\",0)","v":0},{"$f":"IF('Physical Inputs'!375:375,\"QhW7vQg3EKo=\",0)","v":0},{"$f":"IF('Physical Inputs'!376:376,\"QhW7vQg3EKs=\",0)","v":0},{"$f":"IF('Physical Inputs'!377:377,\"QhW7vQg3EKw=\",0)","v":0},{"$f":"IF('Physical Inputs'!378:378,\"QhW7vQg3EK0=\",0)","v":0},{"$f":"IF('Physical Inputs'!379:379,\"QhW7vQg3EK4=\",0)","v":0},{"$f":"IF('Physical Inputs'!380:380,\"QhW7vQg3EK8=\",0)","v":0},{"$f":"IF('Physical Inputs'!381:381,\"QhW7vQg3ELA=\",0)","v":0},{"$f":"IF('Physical Inputs'!382:382,\"QhW7vQg3ELE=\",0)","v":0},{"$f":"IF('Physical Inputs'!383:383,\"QhW7vQg3ELI=\",0)","v":0},{"$f":"IF('Physical Inputs'!384:384,\"QhW7vQg3ELM=\",0)","v":0},{"$f":"IF('Physical Inputs'!385:385,\"QhW7vQg3ELQ=\",0)","v":0},{"$f":"IF('Physical Inputs'!386:386,\"QhW7vQg3ELU=\",0)","v":0},{"$f":"IF('Physical Inputs'!387:387,\"QhW7vQg3ELY=\",0)","v":0},{"$f":"IF('Physical Inputs'!388:388,\"QhW7vQg3ELc=\",0)","v":0},{"$f":"IF('Physical Inputs'!389:389,\"QhW7vQg3ELg=\",0)","v":0},{"$f":"IF('Physical Inputs'!390:390,\"QhW7vQg3ELk=\",0)","v":0},{"$f":"IF('Physical Inputs'!391:391,\"QhW7vQg3ELo=\",0)","v":0},{"$f":"IF('Physical Inputs'!392:392,\"QhW7vQg3ELs=\",0)","v":0},{"$f":"IF('Physical Inputs'!393:393,\"QhW7vQg3ELw=\",0)","v":0},{"$f":"IF('Physical Inputs'!394:394,\"QhW7vQg3EL0=\",0)","v":0},{"$f":"IF('Physical Inputs'!395:395,\"QhW7vQg3EL4=\",0)","v":0},{"$f":"IF('Physical Inputs'!396:396,\"QhW7vQg3EL8=\",0)","v":0},{"$f":"IF('Physical Inputs'!397:397,\"QhW7vQg3EMA=\",0)","v":0},{"$f":"IF('Physical Inputs'!398:398,\"QhW7vQg3EME=\",0)","v":0},{"$f":"IF('Physical Inputs'!399:399,\"QhW7vQg3EMI=\",0)","v":0},{"$f":"IF('Physical Inputs'!400:400,\"QhW7vQg3EMM=\",0)","v":0},{"$f":"IF('Physical Inputs'!401:401,\"QhW7vQg3EMQ=\",0)","v":0},{"$f":"IF('Physical Inputs'!402:402,\"QhW7vQg3EMU=\",0)","v":0},{"$f":"IF('Physical Inputs'!403:403,\"QhW7vQg3EMY=\",0)","v":0},{"$f":"IF('Physical Inputs'!404:404,\"QhW7vQg3EMc=\",0)","v":0},{"$f":"IF('Physical Inputs'!405:405,\"QhW7vQg3EMg=\",0)","v":0},{"$f":"IF('Physical Inputs'!406:406,\"QhW7vQg3EMk=\",0)","v":0},{"$f":"IF('Physical Inputs'!407:407,\"QhW7vQg3EMo=\",0)","v":0},{"$f":"IF('Physical Inputs'!408:408,\"QhW7vQg3EMs=\",0)","v":0},{"$f":"IF('Physical Inputs'!409:409,\"QhW7vQg3EMw=\",0)","v":0},{"$f":"IF('Physical Inputs'!410:410,\"QhW7vQg3EM0=\",0)","v":0},{"$f":"IF('Physical Inputs'!411:411,\"QhW7vQg3EM4=\",0)","v":0},{"$f":"IF('Physical Inputs'!412:412,\"QhW7vQg3EM8=\",0)","v":0},{"$f":"IF('Physical Inputs'!413:413,\"QhW7vQg3ENA=\",0)","v":0},{"$f":"IF('Physical Inputs'!414:414,\"QhW7vQg3ENE=\",0)","v":0},{"$f":"IF('Physical Inputs'!415:415,\"QhW7vQg3ENI=\",0)","v":0},{"$f":"IF('Physical Inputs'!416:416,\"QhW7vQg3ENM=\",0)","v":0},{"$f":"IF('Physical Inputs'!417:417,\"QhW7vQg3ENQ=\",0)","v":0},{"$f":"IF('Physical Inputs'!418:418,\"QhW7vQg3ENU=\",0)","v":0},{"$f":"IF('Physical Inputs'!419:419,\"QhW7vQg3ENY=\",0)","v":0},{"$f":"IF('Physical Inputs'!420:420,\"QhW7vQg3ENc=\",0)","v":0},{"$f":"IF('Physical Inputs'!421:421,\"QhW7vQg3ENg=\",0)","v":0},{"$f":"IF('Physical Inputs'!422:422,\"QhW7vQg3ENk=\",0)","v":0},{"$f":"IF('Physical Inputs'!423:423,\"QhW7vQg3ENo=\",0)","v":0},{"$f":"IF('Physical Inputs'!424:424,\"QhW7vQg3ENs=\",0)","v":0},{"$f":"IF('Physical Inputs'!425:425,\"QhW7vQg3ENw=\",0)","v":0},{"$f":"IF('Physical Inputs'!426:426,\"QhW7vQg3EN0=\",0)","v":0},{"$f":"IF('Physical Inputs'!427:427,\"QhW7vQg3EN4=\",0)","v":0},{"$f":"IF('Physical Inputs'!428:428,\"QhW7vQg3EN8=\",0)","v":0},{"$f":"IF('Physical Inputs'!429:429,\"QhW7vQg3EOA=\",0)","v":0},{"$f":"IF('Physical Inputs'!430:430,\"QhW7vQg3EOE=\",0)","v":0},{"$f":"IF('Physical Inputs'!431:431,\"QhW7vQg3EOI=\",0)","v":0},{"$f":"IF('Physical Inputs'!432:432,\"QhW7vQg3EOM=\",0)","v":0},{"$f":"IF('Physical Inputs'!433:433,\"QhW7vQg3EOQ=\",0)","v":0},{"$f":"IF('Physical Inputs'!434:434,\"QhW7vQg3EOU=\",0)","v":0},{"$f":"IF('Physical Inputs'!435:435,\"QhW7vQg3EOY=\",0)","v":0},{"$f":"IF('Physical Inputs'!436:436,\"QhW7vQg3EOc=\",0)","v":0},{"$f":"IF('Physical Inputs'!437:437,\"QhW7vQg3EOg=\",0)","v":0},{"$f":"IF('Physical Inputs'!438:438,\"QhW7vQg3EOk=\",0)","v":0},{"$f":"IF('Physical Inputs'!439:439,\"QhW7vQg3EOo=\",0)","v":0},{"$f":"IF('Physical Inputs'!440:440,\"QhW7vQg3EOs=\",0)","v":0},{"$f":"IF('Physical Inputs'!441:441,\"QhW7vQg3EOw=\",0)","v":0},{"$f":"IF('Physical Inputs'!442:442,\"QhW7vQg3EO0=\",0)","v":0},{"$f":"IF('Physical Inputs'!443:443,\"QhW7vQg3EO4=\",0)","v":0},{"$f":"IF('Physical Inputs'!444:444,\"QhW7vQg3EO8=\",0)","v":0},{"$f":"IF('Physical Inputs'!445:445,\"QhW7vQg3EPA=\",0)","v":0},{"$f":"IF('Physical Inputs'!446:446,\"QhW7vQg3EPE=\",0)","v":0},{"$f":"IF('Physical Inputs'!447:447,\"QhW7vQg3EPI=\",0)","v":0},{"$f":"IF('Physical Inputs'!448:448,\"QhW7vQg3EPM=\",0)","v":0},{"$f":"IF('Physical Inputs'!449:449,\"QhW7vQg3EPQ=\",0)","v":0},{"$f":"IF('Physical Inputs'!450:450,\"QhW7vQg3EPU=\",0)","v":0},{"$f":"IF('Physical Inputs'!451:451,\"QhW7vQg3EPY=\",0)","v":0},{"$f":"IF('Physical Inputs'!452:452,\"QhW7vQg3EPc=\",0)","v":0},{"$f":"IF('Physical Inputs'!453:453,\"QhW7vQg3EPg=\",0)","v":0},{"$f":"IF('Physical Inputs'!454:454,\"QhW7vQg3EPk=\",0)","v":0},{"$f":"IF('Physical Inputs'!455:455,\"QhW7vQg3EPo=\",0)","v":0},{"$f":"IF('Physical Inputs'!456:456,\"QhW7vQg3EPs=\",0)","v":0},{"$f":"IF('Physical Inputs'!457:457,\"QhW7vQg3EPw=\",0)","v":0},{"$f":"IF('Physical Inputs'!458:458,\"QhW7vQg3EP0=\",0)","v":0},{"$f":"IF('Physical Inputs'!459:459,\"QhW7vQg3EP4=\",0)","v":0},{"$f":"IF('Physical Inputs'!460:460,\"QhW7vQg3EP8=\",0)","v":0}]
[{"$f":"IF('Physical Inputs'!461:461,\"VE1IoE0l8gA=\",0)","v":0},{"$f":"IF('Physical Inputs'!462:462,\"VE1IoE0l8gE=\",0)","v":0},{"$f":"IF('Physical Inputs'!463:463,\"VE1IoE0l8gI=\",0)","v":0},{"$f":"IF('Physical Inputs'!464:464,\"VE1IoE0l8gM=\",0)","v":0},{"$f":"IF('Physical Inputs'!465:465,\"VE1IoE0l8gQ=\",0)","v":0},{"$f":"IF('Physical Inputs'!466:466,\"VE1IoE0l8gU=\",0)","v":0},{"$f":"IF('Physical Inputs'!467:467,\"VE1IoE0l8gY=\",0)","v":0},{"$f":"IF('Physical Inputs'!468:468,\"VE1IoE0l8gc=\",0)","v":0},{"$f":"IF('Physical Inputs'!469:469,\"VE1IoE0l8gg=\",0)","v":0},{"$f":"IF('Physical Inputs'!470:470,\"VE1IoE0l8gk=\",0)","v":0},{"$f":"IF('Physical Inputs'!471:471,\"VE1IoE0l8go=\",0)","v":0},{"$f":"IF('Physical Inputs'!472:472,\"VE1IoE0l8gs=\",0)","v":0},{"$f":"IF('Physical Inputs'!473:473,\"VE1IoE0l8gw=\",0)","v":0},{"$f":"IF('Physical Inputs'!474:474,\"VE1IoE0l8g0=\",0)","v":0},{"$f":"IF('Physical Inputs'!475:475,\"VE1IoE0l8g4=\",0)","v":0},{"$f":"IF('Physical Inputs'!476:476,\"VE1IoE0l8g8=\",0)","v":0},{"$f":"IF('Physical Inputs'!477:477,\"VE1IoE0l8hA=\",0)","v":0},{"$f":"IF('Physical Inputs'!478:478,\"VE1IoE0l8hE=\",0)","v":0},{"$f":"IF('Physical Inputs'!479:479,\"VE1IoE0l8hI=\",0)","v":0},{"$f":"IF('Physical Inputs'!480:480,\"VE1IoE0l8hM=\",0)","v":0},{"$f":"IF('Physical Inputs'!481:481,\"VE1IoE0l8hQ=\",0)","v":0},{"$f":"IF('Physical Inputs'!482:482,\"VE1IoE0l8hU=\",0)","v":0},{"$f":"IF('Physical Inputs'!483:483,\"VE1IoE0l8hY=\",0)","v":0},{"$f":"IF('Physical Inputs'!484:484,\"VE1IoE0l8hc=\",0)","v":0},{"$f":"IF('Physical Inputs'!485:485,\"VE1IoE0l8hg=\",0)","v":0},{"$f":"IF('Physical Inputs'!486:486,\"VE1IoE0l8hk=\",0)","v":0},{"$f":"IF('Physical Inputs'!487:487,\"VE1IoE0l8ho=\",0)","v":0},{"$f":"IF('Physical Inputs'!488:488,\"VE1IoE0l8hs=\",0)","v":0},{"$f":"IF('Physical Inputs'!489:489,\"VE1IoE0l8hw=\",0)","v":0},{"$f":"IF('Physical Inputs'!490:490,\"VE1IoE0l8h0=\",0)","v":0},{"$f":"IF('Physical Inputs'!491:491,\"VE1IoE0l8h4=\",0)","v":0},{"$f":"IF('Physical Inputs'!492:492,\"VE1IoE0l8h8=\",0)","v":0},{"$f":"IF('Physical Inputs'!493:493,\"VE1IoE0l8iA=\",0)","v":0},{"$f":"IF('Physical Inputs'!494:494,\"VE1IoE0l8iE=\",0)","v":0},{"$f":"IF('Physical Inputs'!495:495,\"VE1IoE0l8iI=\",0)","v":0},{"$f":"IF('Physical Inputs'!496:496,\"VE1IoE0l8iM=\",0)","v":0},{"$f":"IF('Physical Inputs'!497:497,\"VE1IoE0l8iQ=\",0)","v":0},{"$f":"IF('Physical Inputs'!498:498,\"VE1IoE0l8iU=\",0)","v":0},{"$f":"IF('Physical Inputs'!499:499,\"VE1IoE0l8iY=\",0)","v":0},{"$f":"IF('Physical Inputs'!500:500,\"VE1IoE0l8ic=\",0)","v":0},{"$f":"IF('Physical Inputs'!501:501,\"VE1IoE0l8ig=\",0)","v":0},{"$f":"IF('Physical Inputs'!502:502,\"VE1IoE0l8ik=\",0)","v":0},{"$f":"IF('Physical Inputs'!503:503,\"VE1IoE0l8io=\",0)","v":0},{"$f":"IF('Physical Inputs'!504:504,\"VE1IoE0l8is=\",0)","v":0},{"$f":"IF('Physical Inputs'!505:505,\"VE1IoE0l8iw=\",0)","v":0},{"$f":"IF('Physical Inputs'!506:506,\"VE1IoE0l8i0=\",0)","v":0},{"$f":"IF('Physical Inputs'!507:507,\"VE1IoE0l8i4=\",0)","v":0},{"$f":"IF('Physical Inputs'!508:508,\"VE1IoE0l8i8=\",0)","v":0},{"$f":"IF('Physical Inputs'!509:509,\"VE1IoE0l8jA=\",0)","v":0},{"$f":"IF('Physical Inputs'!510:510,\"VE1IoE0l8jE=\",0)","v":0},{"$f":"IF('Physical Inputs'!511:511,\"VE1IoE0l8jI=\",0)","v":0},{"$f":"IF('Physical Inputs'!512:512,\"VE1IoE0l8jM=\",0)","v":0},{"$f":"IF('Physical Inputs'!513:513,\"VE1IoE0l8jQ=\",0)","v":0},{"$f":"IF('Physical Inputs'!514:514,\"VE1IoE0l8jU=\",0)","v":0},{"$f":"IF('Physical Inputs'!515:515,\"VE1IoE0l8jY=\",0)","v":0},{"$f":"IF('Physical Inputs'!516:516,\"VE1IoE0l8jc=\",0)","v":0},{"$f":"IF('Physical Inputs'!517:517,\"VE1IoE0l8jg=\",0)","v":0},{"$f":"IF('Physical Inputs'!518:518,\"VE1IoE0l8jk=\",0)","v":0},{"$f":"IF('Physical Inputs'!519:519,\"VE1IoE0l8jo=\",0)","v":0},{"$f":"IF('Physical Inputs'!520:520,\"VE1IoE0l8js=\",0)","v":0},{"$f":"IF('Physical Inputs'!521:521,\"VE1IoE0l8jw=\",0)","v":0},{"$f":"IF('Physical Inputs'!522:522,\"VE1IoE0l8j0=\",0)","v":0},{"$f":"IF('Physical Inputs'!523:523,\"VE1IoE0l8j4=\",0)","v":0},{"$f":"IF('Physical Inputs'!524:524,\"VE1IoE0l8j8=\",0)","v":0},{"$f":"IF('Physical Inputs'!525:525,\"VE1IoE0l8kA=\",0)","v":0},{"$f":"IF('Physical Inputs'!526:526,\"VE1IoE0l8kE=\",0)","v":0},{"$f":"IF('Physical Inputs'!527:527,\"VE1IoE0l8kI=\",0)","v":0},{"$f":"IF('Physical Inputs'!528:528,\"VE1IoE0l8kM=\",0)","v":0},{"$f":"IF('Physical Inputs'!529:529,\"VE1IoE0l8kQ=\",0)","v":0},{"$f":"IF('Physical Inputs'!530:530,\"VE1IoE0l8kU=\",0)","v":0},{"$f":"IF('Physical Inputs'!531:531,\"VE1IoE0l8kY=\",0)","v":0},{"$f":"IF('Physical Inputs'!532:532,\"VE1IoE0l8kc=\",0)","v":0},{"$f":"IF('Physical Inputs'!533:533,\"VE1IoE0l8kg=\",0)","v":0},{"$f":"IF('Physical Inputs'!534:534,\"VE1IoE0l8kk=\",0)","v":0},{"$f":"IF('Physical Inputs'!535:535,\"VE1IoE0l8ko=\",0)","v":0},{"$f":"IF('Physical Inputs'!536:536,\"VE1IoE0l8ks=\",0)","v":0},{"$f":"IF('Physical Inputs'!537:537,\"VE1IoE0l8kw=\",0)","v":0},{"$f":"IF('Physical Inputs'!538:538,\"VE1IoE0l8k0=\",0)","v":0},{"$f":"IF('Physical Inputs'!539:539,\"VE1IoE0l8k4=\",0)","v":0},{"$f":"IF('Physical Inputs'!540:540,\"VE1IoE0l8k8=\",0)","v":0},{"$f":"IF('Physical Inputs'!541:541,\"VE1IoE0l8lA=\",0)","v":0},{"$f":"IF('Physical Inputs'!542:542,\"VE1IoE0l8lE=\",0)","v":0},{"$f":"IF('Physical Inputs'!543:543,\"VE1IoE0l8lI=\",0)","v":0},{"$f":"IF('Physical Inputs'!544:544,\"VE1IoE0l8lM=\",0)","v":0},{"$f":"IF('Physical Inputs'!545:545,\"VE1IoE0l8lQ=\",0)","v":0},{"$f":"IF('Physical Inputs'!546:546,\"VE1IoE0l8lU=\",0)","v":0},{"$f":"IF('Physical Inputs'!547:547,\"VE1IoE0l8lY=\",0)","v":0},{"$f":"IF('Physical Inputs'!548:548,\"VE1IoE0l8lc=\",0)","v":0},{"$f":"IF('Physical Inputs'!549:549,\"VE1IoE0l8lg=\",0)","v":0},{"$f":"IF('Physical Inputs'!550:550,\"VE1IoE0l8lk=\",0)","v":0},{"$f":"IF('Physical Inputs'!551:551,\"VE1IoE0l8lo=\",0)","v":0},{"$f":"IF('Physical Inputs'!552:552,\"VE1IoE0l8ls=\",0)","v":0},{"$f":"IF('Physical Inputs'!553:553,\"VE1IoE0l8lw=\",0)","v":0},{"$f":"IF('Physical Inputs'!554:554,\"VE1IoE0l8l0=\",0)","v":0},{"$f":"IF('Physical Inputs'!555:555,\"VE1IoE0l8l4=\",0)","v":0},{"$f":"IF('Physical Inputs'!556:556,\"VE1IoE0l8l8=\",0)","v":0},{"$f":"IF('Physical Inputs'!557:557,\"VE1IoE0l8mA=\",0)","v":0},{"$f":"IF('Physical Inputs'!558:558,\"VE1IoE0l8mE=\",0)","v":0},{"$f":"IF('Physical Inputs'!559:559,\"VE1IoE0l8mI=\",0)","v":0},{"$f":"IF('Physical Inputs'!560:560,\"VE1IoE0l8mM=\",0)","v":0},{"$f":"IF('Physical Inputs'!561:561,\"VE1IoE0l8mQ=\",0)","v":0},{"$f":"IF('Physical Inputs'!562:562,\"VE1IoE0l8mU=\",0)","v":0},{"$f":"IF('Physical Inputs'!563:563,\"VE1IoE0l8mY=\",0)","v":0},{"$f":"IF('Physical Inputs'!564:564,\"VE1IoE0l8mc=\",0)","v":0},{"$f":"IF('Physical Inputs'!565:565,\"VE1IoE0l8mg=\",0)","v":0},{"$f":"IF('Physical Inputs'!566:566,\"VE1IoE0l8mk=\",0)","v":0},{"$f":"IF('Physical Inputs'!567:567,\"VE1IoE0l8mo=\",0)","v":0},{"$f":"IF('Physical Inputs'!568:568,\"VE1IoE0l8ms=\",0)","v":0},{"$f":"IF('Physical Inputs'!569:569,\"VE1IoE0l8mw=\",0)","v":0},{"$f":"IF('Physical Inputs'!570:570,\"VE1IoE0l8m0=\",0)","v":0},{"$f":"IF('Physical Inputs'!571:571,\"VE1IoE0l8m4=\",0)","v":0},{"$f":"IF('Physical Inputs'!572:572,\"VE1IoE0l8m8=\",0)","v":0},{"$f":"IF('Physical Inputs'!573:573,\"VE1IoE0l8nA=\",0)","v":0},{"$f":"IF('Physical Inputs'!574:574,\"VE1IoE0l8nE=\",0)","v":0},{"$f":"IF('Physical Inputs'!575:575,\"VE1IoE0l8nI=\",0)","v":0},{"$f":"IF('Physical Inputs'!576:576,\"VE1IoE0l8nM=\",0)","v":0},{"$f":"IF('Physical Inputs'!577:577,\"VE1IoE0l8nQ=\",0)","v":0},{"$f":"IF('Physical Inputs'!578:578,\"VE1IoE0l8nU=\",0)","v":0},{"$f":"IF('Physical Inputs'!579:579,\"VE1IoE0l8nY=\",0)","v":0},{"$f":"IF('Physical Inputs'!580:580,\"VE1IoE0l8nc=\",0)","v":0},{"$f":"IF('Physical Inputs'!581:581,\"VE1IoE0l8ng=\",0)","v":0},{"$f":"IF('Physical Inputs'!582:582,\"VE1IoE0l8nk=\",0)","v":0},{"$f":"IF('Physical Inputs'!583:583,\"VE1IoE0l8no=\",0)","v":0},{"$f":"IF('Physical Inputs'!584:584,\"VE1IoE0l8ns=\",0)","v":0},{"$f":"IF('Physical Inputs'!585:585,\"VE1IoE0l8nw=\",0)","v":0},{"$f":"IF('Physical Inputs'!586:586,\"VE1IoE0l8n0=\",0)","v":0},{"$f":"IF('Physical Inputs'!587:587,\"VE1IoE0l8n4=\",0)","v":0},{"$f":"IF('Physical Inputs'!588:588,\"VE1IoE0l8n8=\",0)","v":0},{"$f":"IF('Physical Inputs'!589:589,\"VE1IoE0l8oA=\",0)","v":0},{"$f":"IF('Physical Inputs'!590:590,\"VE1IoE0l8oE=\",0)","v":0},{"$f":"IF('Physical Inputs'!591:591,\"VE1IoE0l8oI=\",0)","v":0},{"$f":"IF('Physical Inputs'!592:592,\"VE1IoE0l8oM=\",0)","v":0},{"$f":"IF('Physical Inputs'!593:593,\"VE1IoE0l8oQ=\",0)","v":0},{"$f":"IF('Physical Inputs'!594:594,\"VE1IoE0l8oU=\",0)","v":0},{"$f":"IF('Physical Inputs'!595:595,\"VE1IoE0l8oY=\",0)","v":0},{"$f":"IF('Physical Inputs'!596:596,\"VE1IoE0l8oc=\",0)","v":0},{"$f":"IF('Physical Inputs'!597:597,\"VE1IoE0l8og=\",0)","v":0},{"$f":"IF('Physical Inputs'!598:598,\"VE1IoE0l8ok=\",0)","v":0},{"$f":"IF('Physical Inputs'!599:599,\"VE1IoE0l8oo=\",0)","v":0},{"$f":"IF('Physical Inputs'!600:600,\"VE1IoE0l8os=\",0)","v":0},{"$f":"IF('Physical Inputs'!601:601,\"VE1IoE0l8ow=\",0)","v":0},{"$f":"IF('Physical Inputs'!602:602,\"VE1IoE0l8o0=\",0)","v":0},{"$f":"IF('Physical Inputs'!603:603,\"VE1IoE0l8o4=\",0)","v":0},{"$f":"IF('Physical Inputs'!604:604,\"VE1IoE0l8o8=\",0)","v":0},{"$f":"IF('Physical Inputs'!605:605,\"VE1IoE0l8pA=\",0)","v":0},{"$f":"IF('Physical Inputs'!606:606,\"VE1IoE0l8pE=\",0)","v":0},{"$f":"IF('Physical Inputs'!607:607,\"VE1IoE0l8pI=\",0)","v":0},{"$f":"IF('Physical Inputs'!608:608,\"VE1IoE0l8pM=\",0)","v":0},{"$f":"IF('Physical Inputs'!609:609,\"VE1IoE0l8pQ=\",0)","v":0},{"$f":"IF('Physical Inputs'!610:610,\"VE1IoE0l8pU=\",0)","v":0},{"$f":"IF('Physical Inputs'!611:611,\"VE1IoE0l8pY=\",0)","v":0},{"$f":"IF('Physical Inputs'!612:612,\"VE1IoE0l8pc=\",0)","v":0},{"$f":"IF('Physical Inputs'!613:613,\"VE1IoE0l8pg=\",0)","v":0},{"$f":"IF('Physical Inputs'!614:614,\"VE1IoE0l8pk=\",0)","v":0},{"$f":"IF('Physical Inputs'!615:615,\"VE1IoE0l8po=\",0)","v":0},{"$f":"IF('Physical Inputs'!616:616,\"VE1IoE0l8ps=\",0)","v":0},{"$f":"IF('Physical Inputs'!617:617,\"VE1IoE0l8pw=\",0)","v":0},{"$f":"IF('Physical Inputs'!618:618,\"VE1IoE0l8p0=\",0)","v":0},{"$f":"IF('Physical Inputs'!619:619,\"VE1IoE0l8p4=\",0)","v":0},{"$f":"IF('Physical Inputs'!620:620,\"VE1IoE0l8p8=\",0)","v":0},{"$f":"IF('Physical Inputs'!621:621,\"VE1IoE0l8qA=\",0)","v":0},{"$f":"IF('Physical Inputs'!622:622,\"VE1IoE0l8qE=\",0)","v":0},{"$f":"IF('Physical Inputs'!623:623,\"VE1IoE0l8qI=\",0)","v":0},{"$f":"IF('Physical Inputs'!624:624,\"VE1IoE0l8qM=\",0)","v":0},{"$f":"IF('Physical Inputs'!625:625,\"VE1IoE0l8qQ=\",0)","v":0},{"$f":"IF('Physical Inputs'!626:626,\"VE1IoE0l8qU=\",0)","v":0},{"$f":"IF('Physical Inputs'!627:627,\"VE1IoE0l8qY=\",0)","v":0},{"$f":"IF('Physical Inputs'!628:628,\"VE1IoE0l8qc=\",0)","v":0},{"$f":"IF('Physical Inputs'!629:629,\"VE1IoE0l8qg=\",0)","v":0},{"$f":"IF('Physical Inputs'!630:630,\"VE1IoE0l8qk=\",0)","v":0},{"$f":"IF('Physical Inputs'!631:631,\"VE1IoE0l8qo=\",0)","v":0},{"$f":"IF('Physical Inputs'!632:632,\"VE1IoE0l8qs=\",0)","v":0},{"$f":"IF('Physical Inputs'!633:633,\"VE1IoE0l8qw=\",0)","v":0},{"$f":"IF('Physical Inputs'!634:634,\"VE1IoE0l8q0=\",0)","v":0},{"$f":"IF('Physical Inputs'!635:635,\"VE1IoE0l8q4=\",0)","v":0},{"$f":"IF('Physical Inputs'!636:636,\"VE1IoE0l8q8=\",0)","v":0},{"$f":"IF('Physical Inputs'!637:637,\"VE1IoE0l8rA=\",0)","v":0},{"$f":"IF('Physical Inputs'!638:638,\"VE1IoE0l8rE=\",0)","v":0},{"$f":"IF('Physical Inputs'!639:639,\"VE1IoE0l8rI=\",0)","v":0},{"$f":"IF('Physical Inputs'!640:640,\"VE1IoE0l8rM=\",0)","v":0},{"$f":"IF('Physical Inputs'!641:641,\"VE1IoE0l8rQ=\",0)","v":0},{"$f":"IF('Physical Inputs'!642:642,\"VE1IoE0l8rU=\",0)","v":0},{"$f":"IF('Physical Inputs'!643:643,\"VE1IoE0l8rY=\",0)","v":0},{"$f":"IF('Physical Inputs'!644:644,\"VE1IoE0l8rc=\",0)","v":0},{"$f":"IF('Physical Inputs'!645:645,\"VE1IoE0l8rg=\",0)","v":0},{"$f":"IF('Physical Inputs'!646:646,\"VE1IoE0l8rk=\",0)","v":0},{"$f":"IF('Physical Inputs'!647:647,\"VE1IoE0l8ro=\",0)","v":0},{"$f":"IF('Physical Inputs'!648:648,\"VE1IoE0l8rs=\",0)","v":0},{"$f":"IF('Physical Inputs'!649:649,\"VE1IoE0l8rw=\",0)","v":0},{"$f":"IF('Physical Inputs'!650:650,\"VE1IoE0l8r0=\",0)","v":0},{"$f":"IF('Physical Inputs'!651:651,\"VE1IoE0l8r4=\",0)","v":0},{"$f":"IF('Physical Inputs'!652:652,\"VE1IoE0l8r8=\",0)","v":0},{"$f":"IF('Physical Inputs'!653:653,\"VE1IoE0l8sA=\",0)","v":0},{"$f":"IF('Physical Inputs'!654:654,\"VE1IoE0l8sE=\",0)","v":0},{"$f":"IF('Physical Inputs'!655:655,\"VE1IoE0l8sI=\",0)","v":0},{"$f":"IF('Physical Inputs'!656:656,\"VE1IoE0l8sM=\",0)","v":0},{"$f":"IF('Physical Inputs'!657:657,\"VE1IoE0l8sQ=\",0)","v":0},{"$f":"IF('Physical Inputs'!658:658,\"VE1IoE0l8sU=\",0)","v":0},{"$f":"IF('Physical Inputs'!659:659,\"VE1IoE0l8sY=\",0)","v":0},{"$f":"IF('Physical Inputs'!660:660,\"VE1IoE0l8sc=\",0)","v":0},{"$f":"IF('Physical Inputs'!661:661,\"VE1IoE0l8sg=\",0)","v":0},{"$f":"IF('Physical Inputs'!662:662,\"VE1IoE0l8sk=\",0)","v":0},{"$f":"IF('Physical Inputs'!663:663,\"VE1IoE0l8so=\",0)","v":0},{"$f":"IF('Physical Inputs'!664:664,\"VE1IoE0l8ss=\",0)","v":0},{"$f":"IF('Physical Inputs'!665:665,\"VE1IoE0l8sw=\",0)","v":0},{"$f":"IF('Physical Inputs'!666:666,\"VE1IoE0l8s0=\",0)","v":0},{"$f":"IF('Physical Inputs'!667:667,\"VE1IoE0l8s4=\",0)","v":0},{"$f":"IF('Physical Inputs'!668:668,\"VE1IoE0l8s8=\",0)","v":0},{"$f":"IF('Physical Inputs'!669:669,\"VE1IoE0l8tA=\",0)","v":0},{"$f":"IF('Physical Inputs'!670:670,\"VE1IoE0l8tE=\",0)","v":0},{"$f":"IF('Physical Inputs'!671:671,\"VE1IoE0l8tI=\",0)","v":0},{"$f":"IF('Physical Inputs'!672:672,\"VE1IoE0l8tM=\",0)","v":0},{"$f":"IF('Physical Inputs'!673:673,\"VE1IoE0l8tQ=\",0)","v":0},{"$f":"IF('Physical Inputs'!674:674,\"VE1IoE0l8tU=\",0)","v":0},{"$f":"IF('Physical Inputs'!675:675,\"VE1IoE0l8tY=\",0)","v":0},{"$f":"IF('Physical Inputs'!676:676,\"VE1IoE0l8tc=\",0)","v":0},{"$f":"IF('Physical Inputs'!677:677,\"VE1IoE0l8tg=\",0)","v":0},{"$f":"IF('Physical Inputs'!678:678,\"VE1IoE0l8tk=\",0)","v":0},{"$f":"IF('Physical Inputs'!679:679,\"VE1IoE0l8to=\",0)","v":0},{"$f":"IF('Physical Inputs'!680:680,\"VE1IoE0l8ts=\",0)","v":0},{"$f":"IF('Physical Inputs'!681:681,\"VE1IoE0l8tw=\",0)","v":0},{"$f":"IF('Physical Inputs'!682:682,\"VE1IoE0l8t0=\",0)","v":0},{"$f":"IF('Physical Inputs'!683:683,\"VE1IoE0l8t4=\",0)","v":0},{"$f":"IF('Physical Inputs'!684:684,\"VE1IoE0l8t8=\",0)","v":0},{"$f":"IF('Physical Inputs'!685:685,\"VE1IoE0l8uA=\",0)","v":0},{"$f":"IF('Physical Inputs'!686:686,\"VE1IoE0l8uE=\",0)","v":0},{"$f":"IF('Physical Inputs'!687:687,\"VE1IoE0l8uI=\",0)","v":0},{"$f":"IF('Physical Inputs'!688:688,\"VE1IoE0l8uM=\",0)","v":0},{"$f":"IF('Physical Inputs'!689:689,\"VE1IoE0l8uQ=\",0)","v":0},{"$f":"IF('Physical Inputs'!690:690,\"VE1IoE0l8uU=\",0)","v":0},{"$f":"IF('Physical Inputs'!691:691,\"VE1IoE0l8uY=\",0)","v":0},{"$f":"IF('Physical Inputs'!692:692,\"VE1IoE0l8uc=\",0)","v":0},{"$f":"IF('Physical Inputs'!693:693,\"VE1IoE0l8ug=\",0)","v":0},{"$f":"IF('Physical Inputs'!694:694,\"VE1IoE0l8uk=\",0)","v":0},{"$f":"IF('Physical Inputs'!695:695,\"VE1IoE0l8uo=\",0)","v":0},{"$f":"IF('Physical Inputs'!696:696,\"VE1IoE0l8us=\",0)","v":0},{"$f":"IF('Physical Inputs'!697:697,\"VE1IoE0l8uw=\",0)","v":0},{"$f":"IF('Physical Inputs'!698:698,\"VE1IoE0l8u0=\",0)","v":0},{"$f":"IF('Physical Inputs'!699:699,\"VE1IoE0l8u4=\",0)","v":0},{"$f":"IF('Physical Inputs'!700:700,\"VE1IoE0l8u8=\",0)","v":0},{"$f":"IF('Physical Inputs'!701:701,\"VE1IoE0l8vA=\",0)","v":0},{"$f":"IF('Physical Inputs'!702:702,\"VE1IoE0l8vE=\",0)","v":0},{"$f":"IF('Physical Inputs'!703:703,\"VE1IoE0l8vI=\",0)","v":0},{"$f":"IF('Physical Inputs'!704:704,\"VE1IoE0l8vM=\",0)","v":0},{"$f":"IF('Physical Inputs'!705:705,\"VE1IoE0l8vQ=\",0)","v":0},{"$f":"IF('Physical Inputs'!706:706,\"VE1IoE0l8vU=\",0)","v":0},{"$f":"IF('Physical Inputs'!707:707,\"VE1IoE0l8vY=\",0)","v":0},{"$f":"IF('Physical Inputs'!708:708,\"VE1IoE0l8vc=\",0)","v":0},{"$f":"IF('Physical Inputs'!709:709,\"VE1IoE0l8vg=\",0)","v":0},{"$f":"IF('Physical Inputs'!710:710,\"VE1IoE0l8vk=\",0)","v":0},{"$f":"IF('Physical Inputs'!711:711,\"VE1IoE0l8vo=\",0)","v":0},{"$f":"IF('Physical Inputs'!712:712,\"VE1IoE0l8vs=\",0)","v":0},{"$f":"IF('Physical Inputs'!713:713,\"VE1IoE0l8vw=\",0)","v":0},{"$f":"IF('Physical Inputs'!714:714,\"VE1IoE0l8v0=\",0)","v":0},{"$f":"IF('Physical Inputs'!715:715,\"VE1IoE0l8v4=\",0)","v":0},{"$f":"IF('Physical Inputs'!716:716,\"VE1IoE0l8v8=\",0)","v":0}]
[{"$f":"IF('Physical Inputs'!717:717,\"CgQSSUdWgQA=\",0)","v":0},{"$f":"IF('Physical Inputs'!A:A,\"CgQSSUdWgQE=\",0)","v":{"$error":"#VALUE!"}},{"$f":"IF('Physical Inputs'!B:B,\"CgQSSUdWgQI=\",0)","v":{"$error":"#VALUE!"}},{"$f":"IF('Physical Inputs'!C:C,\"CgQSSUdWgQM=\",0)","v":{"$error":"#VALUE!"}},{"$f":"IF('Physical Inputs'!D:D,\"CgQSSUdWgQQ=\",0)","v":0},{"$f":"IF('Physical Inputs'!E:E,\"CgQSSUdWgQU=\",0)","v":0},{"$f":"IF('Physical Inputs'!#REF!,\"CgQSSUdWgQY=\",0)","v":{"$error":"#REF!"}},{"$f":"IF('Physical Inputs'!#REF!,\"CgQSSUdWgQc=\",0)","v":{"$error":"#REF!"}},{"$f":"IF('Physical Inputs'!F:F,\"CgQSSUdWgQg=\",0)","v":0},{"$f":"IF('Physical Inputs'!G:G,\"CgQSSUdWgQk=\",0)","v":0},{"$f":"IF('Physical Inputs'!H:H,\"CgQSSUdWgQo=\",0)","v":0},{"$f":"IF('Physical Inputs'!I:I,\"CgQSSUdWgQs=\",0)","v":0},{"$f":"IF('Physical Inputs'!J:J,\"CgQSSUdWgQw=\",0)","v":0},{"$f":"IF('Physical Inputs'!K:K,\"CgQSSUdWgQ0=\",0)","v":0},{"$f":"IF('Physical Inputs'!L:L,\"CgQSSUdWgQ4=\",0)","v":0},{"$f":"IF('Physical Inputs'!M:M,\"CgQSSUdWgQ8=\",0)","v":0},{"$f":"IF('Physical Inputs'!N:N,\"CgQSSUdWgRA=\",0)","v":0},{"$f":"IF('Physical Inputs'!O:O,\"CgQSSUdWgRE=\",0)","v":0},{"$f":"IF('Physical Inputs'!P:P,\"CgQSSUdWgRI=\",0)","v":0},{"$f":"IF('Physical Inputs'!Q:Q,\"CgQSSUdWgRM=\",0)","v":0},{"$f":"IF('Physical Inputs'!R:R,\"CgQSSUdWgRQ=\",0)","v":0},{"$f":"IF('Physical Inputs'!S:S,\"CgQSSUdWgRU=\",0)","v":0},{"$f":"IF('Physical Inputs'!T:T,\"CgQSSUdWgRY=\",0)","v":0},{"$f":"IF('Physical Inputs'!91:91,\"CgQSSUdWgRc=\",0)","v":0},{"$f":"AND('Physical Inputs'!A91,\"CgQSSUdWgRg=\")","v":{"$error":"#VALUE!"}},{"$f":"AND('Physical Inputs'!B91,\"CgQSSUdWgRk=\")","v":{"$error":"#VALUE!"}},{"$f":"AND('Physical Inputs'!C91,\"CgQSSUdWgRo=\")","v":{"$error":"#VALUE!"}},{"$f":"AND('Physical Inputs'!D91,\"CgQSSUdWgRs=\")","v":{"$error":"#VALUE!"}},{"$f":"AND('Physical Inputs'!E91,\"CgQSSUdWgRw=\")","v":{"$error":"#VALUE!"}},{"$f":"AND(#REF!,\"CgQSSUdWgR0=\")","v":{"$error":"#REF!"}},{"$f":"AND(#REF!,\"CgQSSUdWgR4=\")","v":{"$error":"#REF!"}},{"$f":"AND('Physical Inputs'!#REF!,\"CgQSSUdWgR8=\")","v":{"$error":"#REF!"}},{"$f":"AND('Physical Inputs'!#REF!,\"CgQSSUdWgSA=\")","v":{"$error":"#REF!"}},{"$f":"AND('Physical Inputs'!F91,\"CgQSSUdWgSE=\")","v":{"$error":"#VALUE!"}},{"$f":"IF(#REF!,\"CgQSSUdWgSI=\",0)","v":{"$error":"#REF!"}},{"$f":"AND(#REF!,\"CgQSSUdWgSM=\")","v":{"$error":"#REF!"}},{"$f":"AND(#REF!,\"CgQSSUdWgSQ=\")","v":{"$error":"#REF!"}},{"$f":"AND(#REF!,\"CgQSSUdWgSU=\")","v":{"$error":"#REF!"}},{"$f":"AND(#REF!,\"CgQSSUdWgSY=\")","v":{"$error":"#REF!"}},{"$f":"AND(#REF!,\"CgQSSUdWgSc=\")","v":{"$error":"#REF!"}},{"$f":"AND(#REF!,\"CgQSSUdWgSg=\")","v":{"$error":"#REF!"}},{"$f":"AND(#REF!,\"CgQSSUdWgSk=\")","v":{"$error":"#REF!"}},{"$f":"AND(#REF!,\"CgQSSUdWgSo=\")","v":{"$error":"#REF!"}},{"$f":"AND(#REF!,\"CgQSSUdWgSs=\")","v":{"$error":"#REF!"}},{"$f":"AND(#REF!,\"CgQSSUdWgSw=\")","v":{"$error":"#REF!"}},{"$f":"IF('Physical Inputs'!92:92,\"CgQSSUdWgS0=\",0)","v":0},{"$f":"AND('Physical Inputs'!A92,\"CgQSSUdWgS4=\")","v":{"$error":"#VALUE!"}},{"$f":"AND('Physical Inputs'!B92,\"CgQSSUdWgS8=\")","v":{"$error":"#VALUE!"}},{"$f":"AND('Physical Inputs'!C92,\"CgQSSUdWgTA=\")","v":{"$error":"#VALUE!"}},{"$f":"AND('Physical Inputs'!D92,\"CgQSSUdWgTE=\")","v":{"$error":"#VALUE!"}},{"$f":"AND('Physical Inputs'!E92,\"CgQSSUdWgTI=\")","v":{"$error":"#VALUE!"}},{"$f":"AND(#REF!,\"CgQSSUdWgTM=\")","v":{"$error":"#REF!"}},{"$f":"AND(#REF!,\"CgQSSUdWgTQ=\")","v":{"$error":"#REF!"}},{"$f":"AND('Physical Inputs'!#REF!,\"CgQSSUdWgTU=\")","v":{"$error":"#REF!"}},{"$f":"AND('Physical Inputs'!#REF!,\"CgQSSUdWgTY=\")","v":{"$error":"#REF!"}},{"$f":"AND('Physical Inputs'!F92,\"CgQSSUdWgTc=\")","v":{"$error":"#VALUE!"}},{"$f":"IF('Physical Inputs'!93:93,\"CgQSSUdWgTg=\",0)","v":0},{"$f":"AND('Physical Inputs'!A93,\"CgQSSUdWgTk=\")","v":{"$error":"#VALUE!"}},{"$f":"AND('Physical Inputs'!B93,\"CgQSSUdWgTo=\")","v":{"$error":"#VALUE!"}},{"$f":"AND('Physical Inputs'!C93,\"CgQSSUdWgTs=\")","v":{"$error":"#VALUE!"}},{"$f":"AND('Physical Inputs'!D93,\"CgQSSUdWgTw=\")","v":{"$error":"#VALUE!"}},{"$f":"AND('Physical Inputs'!#REF!,\"CgQSSUdWgT0=\")","v":{"$error":"#REF!"}},{"$f":"AND(#REF!,\"CgQSSUdWgT4=\")","v":{"$error":"#REF!"}},{"$f":"AND(#REF!,\"CgQSSUdWgT8=\")","v":{"$error":"#REF!"}},{"$f":"AND('Physical Inputs'!#REF!,\"CgQSSUdWgUA=\")","v":{"$error":"#REF!"}},{"$f":"AND('Physical Inputs'!#REF!,\"CgQSSUdWgUE=\")","v":{"$error":"#REF!"}},{"$f":"AND('Physical Inputs'!F93,\"CgQSSUdWgUI=\")","v":{"$error":"#VALUE!"}},{"$f":"IF('Physical Inputs'!94:94,\"CgQSSUdWgUM=\",0)","v":0},{"$f":"AND('Physical Inputs'!A94,\"CgQSSUdWgUQ=\")","v":{"$error":"#VALUE!"}},{"$f":"AND('Physical Inputs'!B94,\"CgQSSUdWgUU=\")","v":{"$error":"#VALUE!"}},{"$f":"AND('Physical Inputs'!C94,\"CgQSSUdWgUY=\")","v":{"$error":"#VALUE!"}},{"$f":"AND('Physical Inputs'!D94,\"CgQSSUdWgUc=\")","v":{"$error":"#VALUE!"}},{"$f":"AND('Physical Inputs'!#REF!,\"CgQSSUdWgUg=\")","v":{"$error":"#REF!"}},{"$f":"AND(#REF!,\"CgQSSUdWgUk=\")","v":{"$error":"#REF!"}},{"$f":"AND(#REF!,\"CgQSSUdWgUo=\")","v":{"$error":"#REF!"}},{"$f":"AND('Physical Inputs'!#REF!,\"CgQSSUdWgUs=\")","v":{"$error":"#REF!"}},{"$f":"AND('Physical Inputs'!#REF!,\"CgQSSUdWgUw=\")","v":{"$error":"#REF!"}},{"$f":"AND('Physical Inputs'!F94,\"CgQSSUdWgU0=\")","v":{"$error":"#VALUE!"}},{"$f":"IF('Physical Inputs'!95:95,\"CgQSSUdWgU4=\",0)","v":0},{"$f":"AND('Physical Inputs'!A95,\"CgQSSUdWgU8=\")","v":{"$error":"#VALUE!"}},{"$f":"AND('Physical Inputs'!B95,\"CgQSSUdWgVA=\")","v":{"$error":"#VALUE!"}},{"$f":"AND('Physical Inputs'!C95,\"CgQSSUdWgVE=\")","v":{"$error":"#VALUE!"}},{"$f":"AND('Physical Inputs'!D95,\"CgQSSUdWgVI=\")","v":{"$error":"#VALUE!"}},{"$f":"AND('Physical Inputs'!E95,\"CgQSSUdWgVM=\")","v":{"$error":"#VALUE!"}},{"$f":"AND(#REF!,\"CgQSSUdWgVQ=\")","v":{"$error":"#REF!"}},{"$f":"AND(#REF!,\"CgQSSUdWgVU=\")","v":{"$error":"#REF!"}},{"$f":"AND('Physical Inputs'!#REF!,\"CgQSSUdWgVY=\")","v":{"$error":"#REF!"}},{"$f":"AND('Physical Inputs'!#REF!,\"CgQSSUdWgVc=\")","v":{"$error":"#REF!"}},{"$f":"AND('Physical Inputs'!F95,\"CgQSSUdWgVg=\")","v":{"$error":"#VALUE!"}},{"$f":"IF('Physical Inputs'!96:96,\"CgQSSUdWgVk=\",0)","v":0},{"$f":"AND('Physical Inputs'!A96,\"CgQSSUdWgVo=\")","v":{"$error":"#VALUE!"}},{"$f":"AND('Physical Inputs'!B96,\"CgQSSUdWgVs=\")","v":{"$error":"#VALUE!"}},{"$f":"AND('Physical Inputs'!C96,\"CgQSSUdWgVw=\")","v":{"$error":"#VALUE!"}},{"$f":"AND('Physical Inputs'!D96,\"CgQSSUdWgV0=\")","v":{"$error":"#VALUE!"}},{"$f":"AND('Physical Inputs'!E96,\"CgQSSUdWgV4=\")","v":{"$error":"#VALUE!"}},{"$f":"AND(#REF!,\"CgQSSUdWgV8=\")","v":{"$error":"#REF!"}},{"$f":"AND(#REF!,\"CgQSSUdWgWA=\")","v":{"$error":"#REF!"}},{"$f":"AND('Physical Inputs'!#REF!,\"CgQSSUdWgWE=\")","v":{"$error":"#REF!"}},{"$f":"AND('Physical Inputs'!#REF!,\"CgQSSUdWgWI=\")","v":{"$error":"#REF!"}},{"$f":"AND('Physical Inputs'!F96,\"CgQSSUdWgWM=\")","v":{"$error":"#VALUE!"}},{"$f":"IF('Physical Inputs'!98:98,\"CgQSSUdWgWQ=\",0)","v":0},{"$f":"AND('Physical Inputs'!A97,\"CgQSSUdWgWU=\")","v":{"$error":"#VALUE!"}},{"$f":"AND('Physical Inputs'!B97,\"CgQSSUdWgWY=\")","v":{"$error":"#VALUE!"}},{"$f":"AND('Physical Inputs'!C97,\"CgQSSUdWgWc=\")","v":{"$error":"#VALUE!"}},{"$f":"AND('Physical Inputs'!D97,\"CgQSSUdWgWg=\")","v":{"$error":"#VALUE!"}},{"$f":"AND('Physical Inputs'!E98,\"CgQSSUdWgWk=\")","v":{"$error":"#VALUE!"}},{"$f":"AND(#REF!,\"CgQSSUdWgWo=\")","v":{"$error":"#REF!"}},{"$f":"AND(#REF!,\"CgQSSUdWgWs=\")","v":{"$error":"#REF!"}},{"$f":"AND('Physical Inputs'!#REF!,\"CgQSSUdWgWw=\")","v":{"$error":"#REF!"}},{"$f":"AND('Physical Inputs'!#REF!,\"CgQSSUdWgW0=\")","v":{"$error":"#REF!"}},{"$f":"AND('Physical Inputs'!F98,\"CgQSSUdWgW4=\")","v":{"$error":"#VALUE!"}},{"$f":"IF('Physical Inputs'!99:99,\"CgQSSUdWgW8=\",0)","v":0},{"$f":"AND('Physical Inputs'!A99,\"CgQSSUdWgXA=\")","v":{"$error":"#VALUE!"}},{"$f":"AND('Physical Inputs'!B99,\"CgQSSUdWgXE=\")","v":{"$error":"#VALUE!"}},{"$f":"AND('Physical Inputs'!C99,\"CgQSSUdWgXI=\")","v":{"$error":"#VALUE!"}},{"$f":"AND('Physical Inputs'!D99,\"CgQSSUdWgXM=\")","v":{"$error":"#VALUE!"}},{"$f":"AND('Physical Inputs'!#REF!,\"CgQSSUdWgXQ=\")","v":{"$error":"#REF!"}},{"$f":"AND(#REF!,\"CgQSSUdWgXU=\")","v":{"$error":"#REF!"}},{"$f":"AND(#REF!,\"CgQSSUdWgXY=\")","v":{"$error":"#REF!"}},{"$f":"AND('Physical Inputs'!#REF!,\"CgQSSUdWgXc=\")","v":{"$error":"#REF!"}},{"$f":"AND('Physical Inputs'!#REF!,\"CgQSSUdWgXg=\")","v":{"$error":"#REF!"}},{"$f":"AND('Physical Inputs'!F99,\"CgQSSUdWgXk=\")","v":{"$error":"#VALUE!"}},{"$f":"IF('Physical Inputs'!#REF!,\"CgQSSUdWgXo=\",0)","v":{"$error":"#REF!"}},{"$f":"AND('Physical Inputs'!#REF!,\"CgQSSUdWgXs=\")","v":{"$error":"#REF!"}},{"$f":"AND('Physical Inputs'!#REF!,\"CgQSSUdWgXw=\")","v":{"$error":"#REF!"}},{"$f":"AND('Physical Inputs'!#REF!,\"CgQSSUdWgX0=\")","v":{"$error":"#REF!"}},{"$f":"AND('Physical Inputs'!#REF!,\"CgQSSUdWgX4=\")","v":{"$error":"#REF!"}},{"$f":"AND('Physical Inputs'!#REF!,\"CgQSSUdWgX8=\")","v":{"$error":"#REF!"}},{"$f":"AND(#REF!,\"CgQSSUdWgYA=\")","v":{"$error":"#REF!"}},{"$f":"AND(#REF!,\"CgQSSUdWgYE=\")","v":{"$error":"#REF!"}},{"$f":"AND('Physical Inputs'!#REF!,\"CgQSSUdWgYI=\")","v":{"$error":"#REF!"}},{"$f":"AND('Physical Inputs'!#REF!,\"CgQSSUdWgYM=\")","v":{"$error":"#REF!"}},{"$f":"AND('Physical Inputs'!#REF!,\"CgQSSUdWgYQ=\")","v":{"$error":"#REF!"}},{"$f":"IF('Physical Inputs'!101:101,\"CgQSSUdWgYU=\",0)","v":0},{"$f":"AND('Physical Inputs'!A101,\"CgQSSUdWgYY=\")","v":{"$error":"#VALUE!"}},{"$f":"AND(#REF!,\"CgQSSUdWgYc=\")","v":{"$error":"#REF!"}},{"$f":"AND('Physical Inputs'!B101,\"CgQSSUdWgYg=\")","v":{"$error":"#VALUE!"}},{"$f":"AND('Physical Inputs'!C101,\"CgQSSUdWgYk=\")","v":{"$error":"#VALUE!"}},{"$f":"AND('Physical Inputs'!E101,\"CgQSSUdWgYo=\")","v":{"$error":"#VALUE!"}},{"$f":"AND(#REF!,\"CgQSSUdWgYs=\")","v":{"$error":"#REF!"}},{"$f":"AND(#REF!,\"CgQSSUdWgYw=\")","v":{"$error":"#REF!"}},{"$f":"AND('Physical Inputs'!#REF!,\"CgQSSUdWgY0=\")","v":{"$error":"#REF!"}},{"$f":"AND('Physical Inputs'!#REF!,\"CgQSSUdWgY4=\")","v":{"$error":"#REF!"}},{"$f":"AND('Physical Inputs'!F101,\"CgQSSUdWgY8=\")","v":{"$error":"#VALUE!"}},{"$f":"IF('Physical Inputs'!102:102,\"CgQSSUdWgZA=\",0)","v":0},{"$f":"AND('Physical Inputs'!A102,\"CgQSSUdWgZE=\")","v":{"$error":"#VALUE!"}},{"$f":"AND(#REF!,\"CgQSSUdWgZI=\")","v":{"$error":"#REF!"}},{"$f":"AND('Physical Inputs'!B102,\"CgQSSUdWgZM=\")","v":{"$error":"#VALUE!"}},{"$f":"AND('Physical Inputs'!C102,\"CgQSSUdWgZQ=\")","v":{"$error":"#VALUE!"}},{"$f":"AND('Physical Inputs'!D102,\"CgQSSUdWgZU=\")","v":{"$error":"#VALUE!"}},{"$f":"AND(#REF!,\"CgQSSUdWgZY=\")","v":{"$error":"#REF!"}},{"$f":"AND(#REF!,\"CgQSSUdWgZc=\")","v":{"$error":"#REF!"}},{"$f":"AND('Physical Inputs'!#REF!,\"CgQSSUdWgZg=\")","v":{"$error":"#REF!"}},{"$f":"AND('Physical Inputs'!#REF!,\"CgQSSUdWgZk=\")","v":{"$error":"#REF!"}},{"$f":"AND('Physical Inputs'!F102,\"CgQSSUdWgZo=\")","v":{"$error":"#VALUE!"}},{"$f":"IF('Physical Inputs'!103:103,\"CgQSSUdWgZs=\",0)","v":0},{"$f":"AND('Physical Inputs'!A103,\"CgQSSUdWgZw=\")","v":{"$error":"#VALUE!"}},{"$f":"AND(#REF!,\"CgQSSUdWgZ0=\")","v":{"$error":"#REF!"}},{"$f":"AND('Physical Inputs'!B103,\"CgQSSUdWgZ4=\")","v":{"$error":"#VALUE!"}},{"$f":"AND('Physical Inputs'!C103,\"CgQSSUdWgZ8=\")","v":{"$error":"#VALUE!"}},{"$f":"AND('Physical Inputs'!D103,\"CgQSSUdWgaA=\")","v":{"$error":"#VALUE!"}},{"$f":"AND(#REF!,\"CgQSSUdWgaE=\")","v":{"$error":"#REF!"}},{"$f":"AND(#REF!,\"CgQSSUdWgaI=\")","v":{"$error":"#REF!"}},{"$f":"AND('Physical Inputs'!#REF!,\"CgQSSUdWgaM=\")","v":{"$error":"#REF!"}},{"$f":"AND('Physical Inputs'!#REF!,\"CgQSSUdWgaQ=\")","v":{"$error":"#REF!"}},{"$f":"AND('Physical Inputs'!F103,\"CgQSSUdWgaU=\")","v":{"$error":"#VALUE!"}},{"$f":"IF('Physical Inputs'!104:104,\"CgQSSUdWgaY=\",0)","v":0},{"$f":"AND('Physical Inputs'!A104,\"CgQSSUdWgac=\")","v":{"$error":"#VALUE!"}},{"$f":"AND(#REF!,\"CgQSSUdWgag=\")","v":{"$error":"#REF!"}},{"$f":"AND('Physical Inputs'!B104,\"CgQSSUdWgak=\")","v":{"$error":"#VALUE!"}},{"$f":"AND('Physical Inputs'!C104,\"CgQSSUdWgao=\")","v":{"$error":"#VALUE!"}},{"$f":"AND('Physical Inputs'!D104,\"CgQSSUdWgas=\")","v":{"$error":"#VALUE!"}},{"$f":"AND(#REF!,\"CgQSSUdWgaw=\")","v":{"$error":"#REF!"}},{"$f":"AND(#REF!,\"CgQSSUdWga0=\")","v":{"$error":"#REF!"}},{"$f":"AND('Physical Inputs'!#REF!,\"CgQSSUdWga4=\")","v":{"$error":"#REF!"}},{"$f":"AND('Physical Inputs'!#REF!,\"CgQSSUdWga8=\")","v":{"$error":"#REF!"}},{"$f":"AND('Physical Inputs'!F104,\"CgQSSUdWgbA=\")","v":{"$error":"#VALUE!"}},{"$f":"IF('Physical Inputs'!105:105,\"CgQSSUdWgbE=\",0)","v":0},{"$f":"AND('Physical Inputs'!A105,\"CgQSSUdWgbI=\")","v":{"$error":"#VALUE!"}},{"$f":"AND(#REF!,\"CgQSSUdWgbM=\")","v":{"$error":"#REF!"}},{"$f":"AND('Physical Inputs'!B105,\"CgQSSUdWgbQ=\")","v":{"$error":"#VALUE!"}},{"$f":"AND('Physical Inputs'!C105,\"CgQSSUdWgbU=\")","v":{"$error":"#VALUE!"}},{"$f":"AND('Physical Inputs'!D105,\"CgQSSUdWgbY=\")","v":{"$error":"#VALUE!"}},{"$f":"AND(#REF!,\"CgQSSUdWgbc=\")","v":{"$error":"#REF!"}},{"$f":"AND(#REF!,\"CgQSSUdWgbg=\")","v":{"$error":"#REF!"}},{"$f":"AND('Physical Inputs'!#REF!,\"CgQSSUdWgbk=\")","v":{"$error":"#REF!"}},{"$f":"AND('Physical Inputs'!#REF!,\"CgQSSUdWgbo=\")","v":{"$error":"#REF!"}},{"$f":"AND('Physical Inputs'!F105,\"CgQSSUdWgbs=\")","v":{"$error":"#VALUE!"}},{"$f":"IF('Physical Inputs'!106:106,\"CgQSSUdWgbw=\",0)","v":0},{"$f":"AND('Physical Inputs'!A106,\"CgQSSUdWgb0=\")","v":{"$error":"#VALUE!"}},{"$f":"AND(#REF!,\"CgQSSUdWgb4=\")","v":{"$error":"#REF!"}},{"$f":"AND('Physical Inputs'!B106,\"CgQSSUdWgb8=\")","v":{"$error":"#VALUE!"}},{"$f":"AND('Physical Inputs'!C106,\"CgQSSUdWgcA=\")","v":{"$error":"#VALUE!"}},{"$f":"AND('Physical Inputs'!D106,\"CgQSSUdWgcE=\")","v":{"$error":"#VALUE!"}},{"$f":"AND(#REF!,\"CgQSSUdWgcI=\")","v":{"$error":"#REF!"}},{"$f":"AND(#REF!,\"CgQSSUdWgcM=\")","v":{"$error":"#REF!"}},{"$f":"AND('Physical Inputs'!#REF!,\"CgQSSUdWgcQ=\")","v":{"$error":"#REF!"}},{"$f":"AND('Physical Inputs'!#REF!,\"CgQSSUdWgcU=\")","v":{"$error":"#REF!"}},{"$f":"AND('Physical Inputs'!F106,\"CgQSSUdWgcY=\")","v":{"$error":"#VALUE!"}},{"$f":"IF('Physical Inputs'!107:107,\"CgQSSUdWgcc=\",0)","v":0},{"$f":"AND('Physical Inputs'!A107,\"CgQSSUdWgcg=\")","v":{"$error":"#VALUE!"}},{"$f":"AND(#REF!,\"CgQSSUdWgck=\")","v":{"$error":"#REF!"}},{"$f":"AND('Physical Inputs'!B107,\"CgQSSUdWgco=\")","v":{"$error":"#VALUE!"}},{"$f":"AND('Physical Inputs'!C107,\"CgQSSUdWgcs=\")","v":{"$error":"#VALUE!"}},{"$f":"AND('Physical Inputs'!D107,\"CgQSSUdWgcw=\")","v":{"$error":"#VALUE!"}},{"$f":"AND(#REF!,\"CgQSSUdWgc0=\")","v":{"$error":"#REF!"}},{"$f":"AND(#REF!,\"CgQSSUdWgc4=\")","v":{"$error":"#REF!"}},{"$f":"AND('Physical Inputs'!#REF!,\"CgQSSUdWgc8=\")","v":{"$error":"#REF!"}},{"$f":"AND('Physical Inputs'!#REF!,\"CgQSSUdWgdA=\")","v":{"$error":"#REF!"}},{"$f":"AND('Physical Inputs'!F107,\"CgQSSUdWgdE=\")","v":{"$error":"#VALUE!"}},{"$f":"IF('Physical Inputs'!108:108,\"CgQSSUdWgdI=\",0)","v":0},{"$f":"AND('Physical Inputs'!A108,\"CgQSSUdWgdM=\")","v":{"$error":"#VALUE!"}},{"$f":"AND(#REF!,\"CgQSSUdWgdQ=\")","v":{"$error":"#REF!"}},{"$f":"AND('Physical Inputs'!B108,\"CgQSSUdWgdU=\")","v":{"$error":"#VALUE!"}},{"$f":"AND('Physical Inputs'!C108,\"CgQSSUdWgdY=\")","v":{"$error":"#VALUE!"}},{"$f":"AND('Physical Inputs'!D108,\"CgQSSUdWgdc=\")","v":{"$error":"#VALUE!"}},{"$f":"AND(#REF!,\"CgQSSUdWgdg=\")","v":{"$error":"#REF!"}},{"$f":"AND(#REF!,\"CgQSSUdWgdk=\")","v":{"$error":"#REF!"}},{"$f":"AND('Physical Inputs'!#REF!,\"CgQSSUdWgdo=\")","v":{"$error":"#REF!"}},{"$f":"AND('Physical Inputs'!#REF!,\"CgQSSUdWgds=\")","v":{"$error":"#REF!"}},{"$f":"AND('Physical Inputs'!F108,\"CgQSSUdWgdw=\")","v":{"$error":"#VALUE!"}},{"$f":"IF('Physical Inputs'!109:109,\"CgQSSUdWgd0=\",0)","v":0},{"$f":"AND('Physical Inputs'!A109,\"CgQSSUdWgd4=\")","v":{"$error":"#VALUE!"}},{"$f":"AND(#REF!,\"CgQSSUdWgd8=\")","v":{"$error":"#REF!"}},{"$f":"AND('Physical Inputs'!B109,\"CgQSSUdWgeA=\")","v":{"$error":"#VALUE!"}},{"$f":"AND('Physical Inputs'!C109,\"CgQSSUdWgeE=\")","v":{"$error":"#VALUE!"}},{"$f":"AND('Physical Inputs'!D109,\"CgQSSUdWgeI=\")","v":{"$error":"#VALUE!"}},{"$f":"AND(#REF!,\"CgQSSUdWgeM=\")","v":{"$error":"#REF!"}},{"$f":"AND(#REF!,\"CgQSSUdWgeQ=\")","v":{"$error":"#REF!"}},{"$f":"AND('Physical Inputs'!#REF!,\"CgQSSUdWgeU=\")","v":{"$error":"#REF!"}},{"$f":"AND('Physical Inputs'!#REF!,\"CgQSSUdWgeY=\")","v":{"$error":"#REF!"}},{"$f":"AND('Physical Inputs'!F109,\"CgQSSUdWgec=\")","v":{"$error":"#VALUE!"}},{"$f":"IF('Physical Inputs'!110:110,\"CgQSSUdWgeg=\",0)","v":0},{"$f":"AND('Physical Inputs'!A110,\"CgQSSUdWgek=\")","v":{"$error":"#VALUE!"}},{"$f":"AND(#REF!,\"CgQSSUdWgeo=\")","v":{"$error":"#REF!"}},{"$f":"AND('Physical Inputs'!B110,\"CgQSSUdWges=\")","v":{"$error":"#VALUE!"}},{"$f":"AND('Physical Inputs'!C110,\"CgQSSUdWgew=\")","v":{"$error":"#VALUE!"}},{"$f":"AND('Physical Inputs'!D110,\"CgQSSUdWge0=\")","v":{"$error":"#VALUE!"}},{"$f":"AND(#REF!,\"CgQSSUdWge4=\")","v":{"$error":"#REF!"}},{"$f":"AND(#REF!,\"CgQSSUdWge8=\")","v":{"$error":"#REF!"}},{"$f":"AND('Physical Inputs'!#REF!,\"CgQSSUdWgfA=\")","v":{"$error":"#REF!"}},{"$f":"AND('Physical Inputs'!#REF!,\"CgQSSUdWgfE=\")","v":{"$error":"#REF!"}},{"$f":"AND('Physical Inputs'!F110,\"CgQSSUdWgfI=\")","v":{"$error":"#VALUE!"}},{"$f":"IF('Physical Inputs'!111:111,\"CgQSSUdWgfM=\",0)","v":0},{"$f":"AND('Physical Inputs'!A111,\"CgQSSUdWgfQ=\")","v":{"$error":"#VALUE!"}},{"$f":"AND(#REF!,\"CgQSSUdWgfU=\")","v":{"$error":"#REF!"}},{"$f":"AND('Physical Inputs'!B111,\"CgQSSUdWgfY=\")","v":{"$error":"#VALUE!"}},{"$f":"AND('Physical Inputs'!C111,\"CgQSSUdWgfc=\")","v":{"$error":"#VALUE!"}},{"$f":"AND('Physical Inputs'!D111,\"CgQSSUdWgfg=\")","v":{"$error":"#VALUE!"}},{"$f":"AND(#REF!,\"CgQSSUdWgfk=\")","v":{"$error":"#REF!"}},{"$f":"AND(#REF!,\"CgQSSUdWgfo=\")","v":{"$error":"#REF!"}},{"$f":"AND('Physical Inputs'!#REF!,\"CgQSSUdWgfs=\")","v":{"$error":"#REF!"}},{"$f":"AND('Physical Inputs'!#REF!,\"CgQSSUdWgfw=\")","v":{"$error":"#REF!"}},{"$f":"AND('Physical Inputs'!F111,\"CgQSSUdWgf0=\")","v":{"$error":"#VALUE!"}},{"$f":"IF(#REF!,\"CgQSSUdWgf4=\",0)","v":{"$error":"#REF!"}},{"$f":"AND(#REF!,\"CgQSSUdWgf8=\")","v":{"$error":"#REF!"}}]
[{"$f":"AND(#REF!,\"PWj5rhts6gA=\")","v":{"$error":"#REF!"}},{"$f":"AND(#REF!,\"PWj5rhts6gE=\")","v":{"$error":"#REF!"}},{"$f":"AND(#REF!,\"PWj5rhts6gI=\")","v":{"$error":"#REF!"}},{"$f":"AND(#REF!,\"PWj5rhts6gM=\")","v":{"$error":"#REF!"}},{"$f":"AND(#REF!,\"PWj5rhts6gQ=\")","v":{"$error":"#REF!"}},{"$f":"AND(#REF!,\"PWj5rhts6gU=\")","v":{"$error":"#REF!"}},{"$f":"AND(#REF!,\"PWj5rhts6gY=\")","v":{"$error":"#REF!"}},{"$f":"AND(#REF!,\"PWj5rhts6gc=\")","v":{"$error":"#REF!"}},{"$f":"AND(#REF!,\"PWj5rhts6gg=\")","v":{"$error":"#REF!"}},{"$f":"IF(#REF!,\"PWj5rhts6gk=\",0)","v":{"$error":"#REF!"}},{"$f":"AND(#REF!,\"PWj5rhts6go=\")","v":{"$error":"#REF!"}},{"$f":"AND(#REF!,\"PWj5rhts6gs=\")","v":{"$error":"#REF!"}},{"$f":"AND(#REF!,\"PWj5rhts6gw=\")","v":{"$error":"#REF!"}},{"$f":"AND(#REF!,\"PWj5rhts6g0=\")","v":{"$error":"#REF!"}},{"$f":"AND(#REF!,\"PWj5rhts6g4=\")","v":{"$error":"#REF!"}},{"$f":"AND(#REF!,\"PWj5rhts6g8=\")","v":{"$error":"#REF!"}},{"$f":"AND(#REF!,\"PWj5rhts6hA=\")","v":{"$error":"#REF!"}},{"$f":"AND(#REF!,\"PWj5rhts6hE=\")","v":{"$error":"#REF!"}},{"$f":"AND(#REF!,\"PWj5rhts6hI=\")","v":{"$error":"#REF!"}},{"$f":"AND(#REF!,\"PWj5rhts6hM=\")","v":{"$error":"#REF!"}},{"$f":"IF(#REF!,\"PWj5rhts6hQ=\",0)","v":{"$error":"#REF!"}},{"$f":"AND(#REF!,\"PWj5rhts6hU=\")","v":{"$error":"#REF!"}},{"$f":"AND(#REF!,\"PWj5rhts6hY=\")","v":{"$error":"#REF!"}},{"$f":"AND(#REF!,\"PWj5rhts6hc=\")","v":{"$error":"#REF!"}},{"$f":"AND(#REF!,\"PWj5rhts6hg=\")","v":{"$error":"#REF!"}},{"$f":"AND(#REF!,\"PWj5rhts6hk=\")","v":{"$error":"#REF!"}},{"$f":"AND(#REF!,\"PWj5rhts6ho=\")","v":{"$error":"#REF!"}},{"$f":"AND(#REF!,\"PWj5rhts6hs=\")","v":{"$error":"#REF!"}},{"$f":"AND(#REF!,\"PWj5rhts6hw=\")","v":{"$error":"#REF!"}},{"$f":"AND(#REF!,\"PWj5rhts6h0=\")","v":{"$error":"#REF!"}},{"$f":"AND(#REF!,\"PWj5rhts6h4=\")","v":{"$error":"#REF!"}},{"$f":"IF(#REF!,\"PWj5rhts6h8=\",0)","v":{"$error":"#REF!"}},{"$f":"AND(#REF!,\"PWj5rhts6iA=\")","v":{"$error":"#REF!"}},{"$f":"AND(#REF!,\"PWj5rhts6iE=\")","v":{"$error":"#REF!"}},{"$f":"AND(#REF!,\"PWj5rhts6iI=\")","v":{"$error":"#REF!"}},{"$f":"AND(#REF!,\"PWj5rhts6iM=\")","v":{"$error":"#REF!"}},{"$f":"AND(#REF!,\"PWj5rhts6iQ=\")","v":{"$error":"#REF!"}},{"$f":"AND(#REF!,\"PWj5rhts6iU=\")","v":{"$error":"#REF!"}},{"$f":"AND(#REF!,\"PWj5rhts6iY=\")","v":{"$error":"#REF!"}},{"$f":"AND(#REF!,\"PWj5rhts6ic=\")","v":{"$error":"#REF!"}},{"$f":"AND(#REF!,\"PWj5rhts6ig=\")","v":{"$error":"#REF!"}},{"$f":"AND(#REF!,\"PWj5rhts6ik=\")","v":{"$error":"#REF!"}},{"$f":"IF(#REF!,\"PWj5rhts6io=\",0)","v":{"$error":"#REF!"}},{"$f":"AND(#REF!,\"PWj5rhts6is=\")","v":{"$error":"#REF!"}},{"$f":"AND(#REF!,\"PWj5rhts6iw=\")","v":{"$error":"#REF!"}},{"$f":"AND(#REF!,\"PWj5rhts6i0=\")","v":{"$error":"#REF!"}},{"$f":"AND(#REF!,\"PWj5rhts6i4=\")","v":{"$error":"#REF!"}},{"$f":"AND(#REF!,\"PWj5rhts6i8=\")","v":{"$error":"#REF!"}},{"$f":"AND(#REF!,\"PWj5rhts6jA=\")","v":{"$error":"#REF!"}},{"$f":"AND(#REF!,\"PWj5rhts6jE=\")","v":{"$error":"#REF!"}},{"$f":"AND(#REF!,\"PWj5rhts6jI=\")","v":{"$error":"#REF!"}},{"$f":"AND(#REF!,\"PWj5rhts6jM=\")","v":{"$error":"#REF!"}},{"$f":"AND(#REF!,\"PWj5rhts6jQ=\")","v":{"$error":"#REF!"}},{"$f":"IF(#REF!,\"PWj5rhts6jU=\",0)","v":{"$error":"#REF!"}},{"$f":"AND('Physical Inputs'!#REF!,\"PWj5rhts6jY=\")","v":{"$error":"#REF!"}},{"$f":"AND(#REF!,\"PWj5rhts6jc=\")","v":{"$error":"#REF!"}},{"$f":"AND(#REF!,\"PWj5rhts6jg=\")","v":{"$error":"#REF!"}},{"$f":"AND(#REF!,\"PWj5rhts6jk=\")","v":{"$error":"#REF!"}},{"$f":"AND(#REF!,\"PWj5rhts6jo=\")","v":{"$error":"#REF!"}},{"$f":"AND(#REF!,\"PWj5rhts6js=\")","v":{"$error":"#REF!"}},{"$f":"AND(#REF!,\"PWj5rhts6jw=\")","v":{"$error":"#REF!"}},{"$f":"AND(#REF!,\"PWj5rhts6j0=\")","v":{"$error":"#REF!"}},{"$f":"AND(#REF!,\"PWj5rhts6j4=\")","v":{"$error":"#REF!"}},{"$f":"AND(#REF!,\"PWj5rhts6j8=\")","v":{"$error":"#REF!"}},{"$f":"IF(#REF!,\"PWj5rhts6kA=\",0)","v":{"$error":"#REF!"}},{"$f":"AND('Physical Inputs'!#REF!,\"PWj5rhts6kE=\")","v":{"$error":"#REF!"}},{"$f":"AND(#REF!,\"PWj5rhts6kI=\")","v":{"$error":"#REF!"}},{"$f":"AND(#REF!,\"PWj5rhts6kM=\")","v":{"$error":"#REF!"}},{"$f":"AND(#REF!,\"PWj5rhts6kQ=\")","v":{"$error":"#REF!"}},{"$f":"AND(#REF!,\"PWj5rhts6kU=\")","v":{"$error":"#REF!"}},{"$f":"AND(#REF!,\"PWj5rhts6kY=\")","v":{"$error":"#REF!"}},{"$f":"AND(#REF!,\"PWj5rhts6kc=\")","v":{"$error":"#REF!"}},{"$f":"AND(#REF!,\"PWj5rhts6kg=\")","v":{"$error":"#REF!"}},{"$f":"AND(#REF!,\"PWj5rhts6kk=\")","v":{"$error":"#REF!"}},{"$f":"AND(#REF!,\"PWj5rhts6ko=\")","v":{"$error":"#REF!"}},{"$f":"IF(#REF!,\"PWj5rhts6ks=\",0)","v":{"$error":"#REF!"}},{"$f":"IF(#REF!,\"PWj5rhts6kw=\",0)","v":{"$error":"#REF!"}},{"$f":"IF(#REF!,\"PWj5rhts6k0=\",0)","v":{"$error":"#REF!"}},{"$f":"IF(#REF!,\"PWj5rhts6k4=\",0)","v":{"$error":"#REF!"}},{"$f":"IF(#REF!,\"PWj5rhts6k8=\",0)","v":{"$error":"#REF!"}},{"$f":"IF(#REF!,\"PWj5rhts6lA=\",0)","v":{"$error":"#REF!"}},{"$f":"IF(#REF!,\"PWj5rhts6lE=\",0)","v":{"$error":"#REF!"}},{"$f":"IF(#REF!,\"PWj5rhts6lI=\",0)","v":{"$error":"#REF!"}},{"$f":"IF(#REF!,\"PWj5rhts6lM=\",0)","v":{"$error":"#REF!"}},{"$f":"IF(#REF!,\"PWj5rhts6lQ=\",0)","v":{"$error":"#REF!"}},{"$f":"IF('Physical Inputs'!#REF!,\"PWj5rhts6lU=\",0)","v":{"$error":"#REF!"}},{"$f":"AND('Physical Inputs'!#REF!,\"PWj5rhts6lY=\")","v":{"$error":"#REF!"}},{"$f":"AND('Physical Inputs'!#REF!,\"PWj5rhts6lc=\")","v":{"$error":"#REF!"}},{"$f":"AND('Physical Inputs'!#REF!,\"PWj5rhts6lg=\")","v":{"$error":"#REF!"}},{"$f":"AND('Physical Inputs'!#REF!,\"PWj5rhts6lk=\")","v":{"$error":"#REF!"}},{"$f":"AND('Physical Outputs'!A39,\"PWj5rhts6lo=\")","v":{"$error":"#VALUE!"}},{"$f":"AND('Physical Outputs'!B39,\"PWj5rhts6ls=\")","v":{"$error":"#VALUE!"}},{"$f":"AND('Physical Outputs'!C39,\"PWj5rhts6lw=\")","v":{"$error":"#VALUE!"}},{"$f":"AND('Physical Inputs'!#REF!,\"PWj5rhts6l0=\")","v":{"$error":"#REF!"}},{"$f":"AND('Physical Inputs'!#REF!,\"PWj5rhts6l4=\")","v":{"$error":"#REF!"}},{"$f":"IF(#REF!,\"PWj5rhts6l8=\",0)","v":{"$error":"#REF!"}},{"$f":"AND(#REF!,\"PWj5rhts6mA=\")","v":{"$error":"#REF!"}},{"$f":"AND(#REF!,\"PWj5rhts6mE=\")","v":{"$error":"#REF!"}},{"$f":"AND(#REF!,\"PWj5rhts6mI=\")","v":{"$error":"#REF!"}},{"$f":"AND(#REF!,\"PWj5rhts6mM=\")","v":{"$error":"#REF!"}},{"$f":"AND('Physical Outputs'!A42,\"PWj5rhts6mQ=\")","v":{"$error":"#VALUE!"}},{"$f":"AND('Physical Outputs'!B42,\"PWj5rhts6mU=\")","v":{"$error":"#VALUE!"}},{"$f":"AND('Physical Outputs'!C42,\"PWj5rhts6mY=\")","v":{"$error":"#VALUE!"}},{"$f":"AND(#REF!,\"PWj5rhts6mc=\")","v":{"$error":"#REF!"}},{"$f":"AND('Physical Inputs'!A172,\"PWj5rhts6mg=\")","v":{"$error":"#VALUE!"}},{"$f":"IF('Physical Inputs'!#REF!,\"PWj5rhts6mk=\",0)","v":{"$error":"#REF!"}},{"$f":"AND('Physical Inputs'!#REF!,\"PWj5rhts6mo=\")","v":{"$error":"#REF!"}},{"$f":"AND('Physical Inputs'!E94,\"PWj5rhts6ms=\")","v":{"$error":"#VALUE!"}},{"$f":"AND('Physical Inputs'!#REF!,\"PWj5rhts6mw=\")","v":{"$error":"#REF!"}},{"$f":"AND('Physical Inputs'!#REF!,\"PWj5rhts6m0=\")","v":{"$error":"#REF!"}},{"$f":"AND('Physical Outputs'!A43,\"PWj5rhts6m4=\")","v":{"$error":"#VALUE!"}},{"$f":"AND('Physical Outputs'!B43,\"PWj5rhts6m8=\")","v":{"$error":"#VALUE!"}},{"$f":"AND('Physical Outputs'!C43,\"PWj5rhts6nA=\")","v":{"$error":"#VALUE!"}},{"$f":"AND('Physical Inputs'!#REF!,\"PWj5rhts6nE=\")","v":{"$error":"#REF!"}},{"$f":"AND('Physical Inputs'!A173,\"PWj5rhts6nI=\")","v":{"$error":"#VALUE!"}},{"$f":"IF('Physical Inputs'!#REF!,\"PWj5rhts6nM=\",0)","v":{"$error":"#REF!"}},{"$f":"AND('Physical Inputs'!#REF!,\"PWj5rhts6nQ=\")","v":{"$error":"#REF!"}},{"$f":"AND('Physical Inputs'!C98,\"PWj5rhts6nU=\")","v":{"$error":"#VALUE!"}},{"$f":"AND('Physical Inputs'!#REF!,\"PWj5rhts6nY=\")","v":{"$error":"#REF!"}},{"$f":"AND('Physical Inputs'!#REF!,\"PWj5rhts6nc=\")","v":{"$error":"#REF!"}},{"$f":"AND('Physical Outputs'!A49,\"PWj5rhts6ng=\")","v":{"$error":"#VALUE!"}},{"$f":"AND('Physical Outputs'!B49,\"PWj5rhts6nk=\")","v":{"$error":"#VALUE!"}},{"$f":"AND('Physical Outputs'!C49,\"PWj5rhts6no=\")","v":{"$error":"#VALUE!"}},{"$f":"AND('Physical Inputs'!#REF!,\"PWj5rhts6ns=\")","v":{"$error":"#REF!"}},{"$f":"AND(#REF!,\"PWj5rhts6nw=\")","v":{"$error":"#REF!"}},{"$f":"IF('Physical Inputs'!#REF!,\"PWj5rhts6n0=\",0)","v":{"$error":"#REF!"}},{"$f":"AND('Physical Inputs'!#REF!,\"PWj5rhts6n4=\")","v":{"$error":"#REF!"}},{"$f":"AND(#REF!,\"PWj5rhts6n8=\")","v":{"$error":"#REF!"}},{"$f":"AND(#REF!,\"PWj5rhts6oA=\")","v":{"$error":"#REF!"}},{"$f":"AND('Physical Inputs'!#REF!,\"PWj5rhts6oE=\")","v":{"$error":"#REF!"}},{"$f":"AND('Physical Outputs'!A44,\"PWj5rhts6oI=\")","v":{"$error":"#VALUE!"}},{"$f":"AND('Physical Outputs'!B44,\"PWj5rhts6oM=\")","v":{"$error":"#VALUE!"}},{"$f":"AND('Physical Outputs'!C44,\"PWj5rhts6oQ=\")","v":{"$error":"#VALUE!"}},{"$f":"AND('Physical Inputs'!#REF!,\"PWj5rhts6oU=\")","v":{"$error":"#REF!"}},{"$f":"AND(#REF!,\"PWj5rhts6oY=\")","v":{"$error":"#REF!"}},{"$f":"IF('Physical Inputs'!89:89,\"PWj5rhts6oc=\",0)","v":0},{"$f":"AND('Physical Inputs'!A89,\"PWj5rhts6og=\")","v":{"$error":"#VALUE!"}},{"$f":"AND('Physical Inputs'!B89,\"PWj5rhts6ok=\")","v":{"$error":"#VALUE!"}},{"$f":"AND('Physical Inputs'!C89,\"PWj5rhts6oo=\")","v":{"$error":"#VALUE!"}},{"$f":"AND('Physical Inputs'!D89,\"PWj5rhts6os=\")","v":{"$error":"#VALUE!"}},{"$f":"AND('Physical Outputs'!A45,\"PWj5rhts6ow=\")","v":{"$error":"#VALUE!"}},{"$f":"AND('Physical Outputs'!B45,\"PWj5rhts6o0=\")","v":{"$error":"#VALUE!"}},{"$f":"AND('Physical Outputs'!C45,\"PWj5rhts6o4=\")","v":{"$error":"#VALUE!"}},{"$f":"AND('Physical Inputs'!#REF!,\"PWj5rhts6o8=\")","v":{"$error":"#REF!"}},{"$f":"AND('Physical Inputs'!#REF!,\"PWj5rhts6pA=\")","v":{"$error":"#REF!"}},{"$f":"IF('Basic Financial'!53:53,\"PWj5rhts6pE=\",0)","v":0},{"$f":"AND('Basic Financial'!A53,\"PWj5rhts6pI=\")","v":{"$error":"#VALUE!"}},{"$f":"AND('Basic Financial'!B53,\"PWj5rhts6pM=\")","v":{"$error":"#VALUE!"}},{"$f":"AND('Basic Financial'!C53,\"PWj5rhts6pQ=\")","v":{"$error":"#VALUE!"}},{"$f":"AND('Basic Financial'!D53,\"PWj5rhts6pU=\")","v":{"$error":"#VALUE!"}},{"$f":"AND('Physical Outputs'!A46,\"PWj5rhts6pY=\")","v":{"$error":"#VALUE!"}},{"$f":"AND('Physical Outputs'!B46,\"PWj5rhts6pc=\")","v":{"$error":"#VALUE!"}},{"$f":"AND('Physical Outputs'!C46,\"PWj5rhts6pg=\")","v":{"$error":"#VALUE!"}},{"$f":"AND('Basic Financial'!F53,\"PWj5rhts6pk=\")","v":{"$error":"#VALUE!"}},{"$f":"AND('Basic Financial'!G53,\"PWj5rhts6po=\")","v":{"$error":"#VALUE!"}},{"$f":"IF('Basic Financial'!63:63,\"PWj5rhts6ps=\",0)","v":0},{"$f":"AND('Basic Financial'!A63,\"PWj5rhts6pw=\")","v":{"$error":"#VALUE!"}},{"$f":"AND('Basic Financial'!B63,\"PWj5rhts6p0=\")","v":{"$error":"#VALUE!"}},{"$f":"AND('Basic Financial'!C63,\"PWj5rhts6p4=\")","v":{"$error":"#VALUE!"}},{"$f":"AND('Basic Financial'!D63,\"PWj5rhts6p8=\")","v":{"$error":"#VALUE!"}},{"$f":"AND('Physical Outputs'!A47,\"PWj5rhts6qA=\")","v":{"$error":"#VALUE!"}},{"$f":"AND('Physical Outputs'!B47,\"PWj5rhts6qE=\")","v":{"$error":"#VALUE!"}},{"$f":"AND('Physical Outputs'!C47,\"PWj5rhts6qI=\")","v":{"$error":"#VALUE!"}},{"$f":"AND('Basic Financial'!F63,\"PWj5rhts6qM=\")","v":{"$error":"#VALUE!"}},{"$f":"AND('Basic Financial'!G63,\"PWj5rhts6qQ=\")","v":{"$error":"#VALUE!"}},{"$f":"IF('Basic Financial'!64:64,\"PWj5rhts6qU=\",0)","v":0},{"$f":"AND('Basic Financial'!A64,\"PWj5rhts6qY=\")","v":{"$error":"#VALUE!"}},{"$f":"AND('Basic Financial'!B64,\"PWj5rhts6qc=\")","v":{"$error":"#VALUE!"}},{"$f":"AND('Basic Financial'!C64,\"PWj5rhts6qg=\")","v":{"$error":"#VALUE!"}},{"$f":"AND('Basic Financial'!D64,\"PWj5rhts6qk=\")","v":{"$error":"#VALUE!"}},{"$f":"AND('Physical Outputs'!A51,\"PWj5rhts6qo=\")","v":{"$error":"#VALUE!"}},{"$f":"AND('Physical Outputs'!B51,\"PWj5rhts6qs=\")","v":{"$error":"#VALUE!"}},{"$f":"AND('Physical Outputs'!C51,\"PWj5rhts6qw=\")","v":{"$error":"#VALUE!"}},{"$f":"AND('Basic Financial'!F64,\"PWj5rhts6q0=\")","v":{"$error":"#VALUE!"}},{"$f":"AND('Basic Financial'!G64,\"PWj5rhts6q4=\")","v":{"$error":"#VALUE!"}},{"$f":"IF('Basic Financial'!65:65,\"PWj5rhts6q8=\",0)","v":0},{"$f":"AND('Basic Financial'!A65,\"PWj5rhts6rA=\")","v":{"$error":"#VALUE!"}},{"$f":"AND('Basic Financial'!B65,\"PWj5rhts6rE=\")","v":{"$error":"#VALUE!"}},{"$f":"AND('Basic Financial'!C65,\"PWj5rhts6rI=\")","v":{"$error":"#VALUE!"}},{"$f":"AND('Basic Financial'!D65,\"PWj5rhts6rM=\")","v":{"$error":"#VALUE!"}},{"$f":"AND('Physical Outputs'!A52,\"PWj5rhts6rQ=\")","v":{"$error":"#VALUE!"}},{"$f":"AND('Physical Outputs'!B52,\"PWj5rhts6rU=\")","v":{"$error":"#VALUE!"}},{"$f":"AND('Physical Outputs'!C52,\"PWj5rhts6rY=\")","v":{"$error":"#VALUE!"}},{"$f":"AND('Basic Financial'!F65,\"PWj5rhts6rc=\")","v":{"$error":"#VALUE!"}},{"$f":"AND('Basic Financial'!G65,\"PWj5rhts6rg=\")","v":{"$error":"#VALUE!"}},{"$f":"IF('Basic Financial'!66:66,\"PWj5rhts6rk=\",0)","v":0},{"$f":"AND('Basic Financial'!A66,\"PWj5rhts6ro=\")","v":{"$error":"#VALUE!"}},{"$f":"AND('Basic Financial'!B66,\"PWj5rhts6rs=\")","v":{"$error":"#VALUE!"}},{"$f":"AND('Basic Financial'!C66,\"PWj5rhts6rw=\")","v":{"$error":"#VALUE!"}},{"$f":"AND('Basic Financial'!D66,\"PWj5rhts6r0=\")","v":{"$error":"#VALUE!"}},{"$f":"AND('Physical Outputs'!A40,\"PWj5rhts6r4=\")","v":{"$error":"#VALUE!"}},{"$f":"AND('Physical Outputs'!B40,\"PWj5rhts6r8=\")","v":{"$error":"#VALUE!"}},{"$f":"AND('Physical Outputs'!C40,\"PWj5rhts6sA=\")","v":{"$error":"#VALUE!"}},{"$f":"AND('Basic Financial'!F66,\"PWj5rhts6sE=\")","v":{"$error":"#VALUE!"}},{"$f":"AND('Basic Financial'!G66,\"PWj5rhts6sI=\")","v":{"$error":"#VALUE!"}},{"$f":"IF('Basic Financial'!67:67,\"PWj5rhts6sM=\",0)","v":0},{"$f":"AND('Basic Financial'!A67,\"PWj5rhts6sQ=\")","v":{"$error":"#VALUE!"}},{"$f":"AND('Basic Financial'!B67,\"PWj5rhts6sU=\")","v":{"$error":"#VALUE!"}},{"$f":"AND('Basic Financial'!C67,\"PWj5rhts6sY=\")","v":{"$error":"#VALUE!"}},{"$f":"AND('Basic Financial'!D67,\"PWj5rhts6sc=\")","v":{"$error":"#VALUE!"}},{"$f":"AND('Physical Outputs'!A41,\"PWj5rhts6sg=\")","v":{"$error":"#VALUE!"}},{"$f":"AND('Physical Outputs'!B41,\"PWj5rhts6sk=\")","v":{"$error":"#VALUE!"}},{"$f":"AND('Physical Outputs'!C41,\"PWj5rhts6so=\")","v":{"$error":"#VALUE!"}},{"$f":"AND('Basic Financial'!F67,\"PWj5rhts6ss=\")","v":{"$error":"#VALUE!"}},{"$f":"AND('Basic Financial'!G67,\"PWj5rhts6sw=\")","v":{"$error":"#VALUE!"}},{"$f":"IF('Basic Financial'!68:68,\"PWj5rhts6s0=\",0)","v":0},{"$f":"AND('Basic Financial'!A68,\"PWj5rhts6s4=\")","v":{"$error":"#VALUE!"}},{"$f":"AND('Basic Financial'!B68,\"PWj5rhts6s8=\")","v":{"$error":"#VALUE!"}},{"$f":"AND('Basic Financial'!C68,\"PWj5rhts6tA=\")","v":{"$error":"#VALUE!"}},{"$f":"AND('Basic Financial'!D68,\"PWj5rhts6tE=\")","v":{"$error":"#VALUE!"}},{"$f":"AND('Physical Outputs'!A53,\"PWj5rhts6tI=\")","v":{"$error":"#VALUE!"}},{"$f":"AND('Physical Outputs'!B53,\"PWj5rhts6tM=\")","v":{"$error":"#VALUE!"}},{"$f":"AND('Physical Outputs'!C53,\"PWj5rhts6tQ=\")","v":{"$error":"#VALUE!"}},{"$f":"AND('Basic Financial'!F68,\"PWj5rhts6tU=\")","v":{"$error":"#VALUE!"}},{"$f":"AND('Basic Financial'!G68,\"PWj5rhts6tY=\")","v":{"$error":"#VALUE!"}},{"$f":"IF('Basic Financial'!69:69,\"PWj5rhts6tc=\",0)","v":0},{"$f":"AND('Basic Financial'!A69,\"PWj5rhts6tg=\")","v":{"$error":"#VALUE!"}},{"$f":"AND('Basic Financial'!B69,\"PWj5rhts6tk=\")","v":{"$error":"#VALUE!"}},{"$f":"AND('Basic Financial'!C69,\"PWj5rhts6to=\")","v":{"$error":"#VALUE!"}},{"$f":"AND('Basic Financial'!D69,\"PWj5rhts6ts=\")","v":{"$error":"#VALUE!"}},{"$f":"AND('Physical Outputs'!A54,\"PWj5rhts6tw=\")","v":{"$error":"#VALUE!"}},{"$f":"AND('Physical Outputs'!B54,\"PWj5rhts6t0=\")","v":{"$error":"#VALUE!"}},{"$f":"AND('Physical Outputs'!C54,\"PWj5rhts6t4=\")","v":{"$error":"#VALUE!"}},{"$f":"AND('Basic Financial'!F69,\"PWj5rhts6t8=\")","v":{"$error":"#VALUE!"}},{"$f":"AND('Basic Financial'!G69,\"PWj5rhts6uA=\")","v":{"$error":"#VALUE!"}},{"$f":"IF('Physical Inputs'!73:73,\"PWj5rhts6uE=\",0)","v":0},{"$f":"AND('Physical Inputs'!A72,\"PWj5rhts6uI=\")","v":{"$error":"#VALUE!"}},{"$f":"AND('Physical Inputs'!B72,\"PWj5rhts6uM=\")","v":{"$error":"#VALUE!"}},{"$f":"AND('Physical Inputs'!C72,\"PWj5rhts6uQ=\")","v":{"$error":"#VALUE!"}},{"$f":"AND('Physical Inputs'!D72,\"PWj5rhts6uU=\")","v":{"$error":"#VALUE!"}},{"$f":"AND('Physical Outputs'!A55,\"PWj5rhts6uY=\")","v":{"$error":"#VALUE!"}},{"$f":"AND('Physical Outputs'!B55,\"PWj5rhts6uc=\")","v":{"$error":"#VALUE!"}},{"$f":"AND('Physical Outputs'!C55,\"PWj5rhts6ug=\")","v":{"$error":"#VALUE!"}},{"$f":"AND('Physical Inputs'!#REF!,\"PWj5rhts6uk=\")","v":{"$error":"#REF!"}},{"$f":"AND('Physical Inputs'!#REF!,\"PWj5rhts6uo=\")","v":{"$error":"#REF!"}},{"$f":"IF('Physical Inputs'!74:74,\"PWj5rhts6us=\",0)","v":0},{"$f":"AND('Physical Inputs'!A73,\"PWj5rhts6uw=\")","v":{"$error":"#VALUE!"}},{"$f":"AND('Physical Inputs'!B73,\"PWj5rhts6u0=\")","v":{"$error":"#VALUE!"}},{"$f":"AND('Physical Inputs'!C73,\"PWj5rhts6u4=\")","v":{"$error":"#VALUE!"}},{"$f":"AND('Physical Inputs'!D73,\"PWj5rhts6u8=\")","v":{"$error":"#VALUE!"}},{"$f":"AND('Physical Outputs'!A56,\"PWj5rhts6vA=\")","v":{"$error":"#VALUE!"}},{"$f":"AND('Physical Outputs'!B56,\"PWj5rhts6vE=\")","v":{"$error":"#VALUE!"}},{"$f":"AND('Physical Outputs'!C56,\"PWj5rhts6vI=\")","v":{"$error":"#VALUE!"}},{"$f":"AND('Physical Inputs'!#REF!,\"PWj5rhts6vM=\")","v":{"$error":"#REF!"}},{"$f":"AND('Physical Inputs'!#REF!,\"PWj5rhts6vQ=\")","v":{"$error":"#REF!"}},{"$f":"IF('Physical Inputs'!75:75,\"PWj5rhts6vU=\",0)","v":0},{"$f":"AND('Physical Inputs'!A79,\"PWj5rhts6vY=\")","v":{"$error":"#VALUE!"}},{"$f":"AND('Physical Inputs'!B79,\"PWj5rhts6vc=\")","v":{"$error":"#VALUE!"}},{"$f":"AND('Physical Inputs'!C74,\"PWj5rhts6vg=\")","v":{"$error":"#VALUE!"}},{"$f":"AND('Physical Inputs'!D74,\"PWj5rhts6vk=\")","v":{"$error":"#VALUE!"}},{"$f":"AND('Physical Outputs'!A58,\"PWj5rhts6vo=\")","v":{"$error":"#VALUE!"}},{"$f":"AND('Physical Outputs'!B58,\"PWj5rhts6vs=\")","v":{"$error":"#VALUE!"}},{"$f":"AND('Physical Outputs'!C58,\"PWj5rhts6vw=\")","v":{"$error":"#VALUE!"}},{"$f":"AND('Physical Inputs'!#REF!,\"PWj5rhts6v0=\")","v":{"$error":"#REF!"}},{"$f":"AND('Physical Inputs'!#REF!,\"PWj5rhts6v4=\")","v":{"$error":"#REF!"}},{"$f":"IF('Physical Inputs'!76:76,\"PWj5rhts6v8=\",0)","v":0}]
[{"$f":"AND('Physical Inputs'!A74,\"DXDf8kBFSgA=\")","v":{"$error":"#VALUE!"}},{"$f":"AND('Physical Inputs'!B74,\"DXDf8kBFSgE=\")","v":{"$error":"#VALUE!"}},{"$f":"AND('Physical Inputs'!C75,\"DXDf8kBFSgI=\")","v":{"$error":"#VALUE!"}},{"$f":"AND('Physical Inputs'!D75,\"DXDf8kBFSgM=\")","v":{"$error":"#VALUE!"}},{"$f":"AND('Physical Outputs'!A59,\"DXDf8kBFSgQ=\")","v":{"$error":"#VALUE!"}},{"$f":"AND('Physical Outputs'!B59,\"DXDf8kBFSgU=\")","v":{"$error":"#VALUE!"}},{"$f":"AND('Physical Outputs'!C59,\"DXDf8kBFSgY=\")","v":{"$error":"#VALUE!"}},{"$f":"AND('Physical Inputs'!#REF!,\"DXDf8kBFSgc=\")","v":{"$error":"#REF!"}},{"$f":"AND('Physical Inputs'!#REF!,\"DXDf8kBFSgg=\")","v":{"$error":"#REF!"}},{"$f":"IF('Physical Inputs'!79:79,\"DXDf8kBFSgk=\",0)","v":0},{"$f":"AND('Physical Inputs'!A75,\"DXDf8kBFSgo=\")","v":{"$error":"#VALUE!"}},{"$f":"AND('Physical Inputs'!B75,\"DXDf8kBFSgs=\")","v":{"$error":"#VALUE!"}},{"$f":"AND('Physical Inputs'!C76,\"DXDf8kBFSgw=\")","v":{"$error":"#VALUE!"}},{"$f":"AND('Physical Inputs'!D76,\"DXDf8kBFSg0=\")","v":{"$error":"#VALUE!"}},{"$f":"AND('Physical Inputs'!E79,\"DXDf8kBFSg4=\")","v":{"$error":"#VALUE!"}},{"$f":"AND(#REF!,\"DXDf8kBFSg8=\")","v":{"$error":"#REF!"}},{"$f":"AND(#REF!,\"DXDf8kBFShA=\")","v":{"$error":"#REF!"}},{"$f":"AND('Physical Inputs'!#REF!,\"DXDf8kBFShE=\")","v":{"$error":"#REF!"}},{"$f":"AND('Physical Inputs'!#REF!,\"DXDf8kBFShI=\")","v":{"$error":"#REF!"}},{"$f":"IF('Physical Inputs'!77:77,\"DXDf8kBFShM=\",0)","v":0},{"$f":"AND('Physical Inputs'!A76,\"DXDf8kBFShQ=\")","v":{"$error":"#VALUE!"}},{"$f":"AND('Physical Inputs'!B76,\"DXDf8kBFShU=\")","v":{"$error":"#VALUE!"}},{"$f":"AND('Physical Inputs'!C79,\"DXDf8kBFShY=\")","v":{"$error":"#VALUE!"}},{"$f":"AND('Physical Inputs'!D79,\"DXDf8kBFShc=\")","v":{"$error":"#VALUE!"}},{"$f":"AND('Physical Inputs'!E77,\"DXDf8kBFShg=\")","v":{"$error":"#VALUE!"}},{"$f":"AND(#REF!,\"DXDf8kBFShk=\")","v":{"$error":"#REF!"}},{"$f":"AND(#REF!,\"DXDf8kBFSho=\")","v":{"$error":"#REF!"}},{"$f":"AND('Physical Inputs'!#REF!,\"DXDf8kBFShs=\")","v":{"$error":"#REF!"}},{"$f":"AND('Physical Inputs'!#REF!,\"DXDf8kBFShw=\")","v":{"$error":"#REF!"}},{"$f":"IF('Physical Inputs'!80:80,\"DXDf8kBFSh0=\",0)","v":0},{"$f":"AND('Physical Inputs'!A77,\"DXDf8kBFSh4=\")","v":{"$error":"#VALUE!"}},{"$f":"AND('Physical Inputs'!B77,\"DXDf8kBFSh8=\")","v":{"$error":"#VALUE!"}},{"$f":"AND('Physical Inputs'!C77,\"DXDf8kBFSiA=\")","v":{"$error":"#VALUE!"}},{"$f":"AND('Physical Inputs'!D77,\"DXDf8kBFSiE=\")","v":{"$error":"#VALUE!"}},{"$f":"AND('Physical Inputs'!E80,\"DXDf8kBFSiI=\")","v":{"$error":"#VALUE!"}},{"$f":"AND(#REF!,\"DXDf8kBFSiM=\")","v":{"$error":"#REF!"}},{"$f":"AND(#REF!,\"DXDf8kBFSiQ=\")","v":{"$error":"#REF!"}},{"$f":"AND('Physical Inputs'!#REF!,\"DXDf8kBFSiU=\")","v":{"$error":"#REF!"}},{"$f":"AND('Physical Inputs'!#REF!,\"DXDf8kBFSiY=\")","v":{"$error":"#REF!"}},{"$f":"IF(#REF!,\"DXDf8kBFSic=\",0)","v":{"$error":"#REF!"}},{"$f":"AND(#REF!,\"DXDf8kBFSig=\")","v":{"$error":"#REF!"}},{"$f":"AND(#REF!,\"DXDf8kBFSik=\")","v":{"$error":"#REF!"}},{"$f":"AND(#REF!,\"DXDf8kBFSio=\")","v":{"$error":"#REF!"}},{"$f":"AND(#REF!,\"DXDf8kBFSis=\")","v":{"$error":"#REF!"}},{"$f":"AND(#REF!,\"DXDf8kBFSiw=\")","v":{"$error":"#REF!"}},{"$f":"AND(#REF!,\"DXDf8kBFSi0=\")","v":{"$error":"#REF!"}},{"$f":"AND(#REF!,\"DXDf8kBFSi4=\")","v":{"$error":"#REF!"}},{"$f":"AND(#REF!,\"DXDf8kBFSi8=\")","v":{"$error":"#REF!"}},{"$f":"AND(#REF!,\"DXDf8kBFSjA=\")","v":{"$error":"#REF!"}},{"$f":"IF('Physical Outputs'!39:39,\"DXDf8kBFSjE=\",0)","v":0},{"$f":"AND(#REF!,\"DXDf8kBFSjI=\")","v":{"$error":"#REF!"}},{"$f":"AND(#REF!,\"DXDf8kBFSjM=\")","v":{"$error":"#REF!"}},{"$f":"AND(#REF!,\"DXDf8kBFSjQ=\")","v":{"$error":"#REF!"}},{"$f":"AND(#REF!,\"DXDf8kBFSjU=\")","v":{"$error":"#REF!"}},{"$f":"AND(#REF!,\"DXDf8kBFSjY=\")","v":{"$error":"#REF!"}},{"$f":"AND(#REF!,\"DXDf8kBFSjc=\")","v":{"$error":"#REF!"}},{"$f":"AND(#REF!,\"DXDf8kBFSjg=\")","v":{"$error":"#REF!"}},{"$f":"AND('Physical Outputs'!F39,\"DXDf8kBFSjk=\")","v":{"$error":"#VALUE!"}},{"$f":"AND('Physical Outputs'!G39,\"DXDf8kBFSjo=\")","v":{"$error":"#VALUE!"}},{"$f":"IF('Physical Outputs'!42:42,\"DXDf8kBFSjs=\",0)","v":0},{"$f":"AND(#REF!,\"DXDf8kBFSjw=\")","v":{"$error":"#REF!"}},{"$f":"AND(#REF!,\"DXDf8kBFSj0=\")","v":{"$error":"#REF!"}},{"$f":"AND(#REF!,\"DXDf8kBFSj4=\")","v":{"$error":"#REF!"}},{"$f":"AND(#REF!,\"DXDf8kBFSj8=\")","v":{"$error":"#REF!"}},{"$f":"AND(#REF!,\"DXDf8kBFSkA=\")","v":{"$error":"#REF!"}},{"$f":"AND(#REF!,\"DXDf8kBFSkE=\")","v":{"$error":"#REF!"}},{"$f":"AND(#REF!,\"DXDf8kBFSkI=\")","v":{"$error":"#REF!"}},{"$f":"AND('Physical Outputs'!F42,\"DXDf8kBFSkM=\")","v":{"$error":"#VALUE!"}},{"$f":"AND('Physical Outputs'!G42,\"DXDf8kBFSkQ=\")","v":{"$error":"#VALUE!"}},{"$f":"IF('Physical Outputs'!43:43,\"DXDf8kBFSkU=\",0)","v":0},{"$f":"AND(#REF!,\"DXDf8kBFSkY=\")","v":{"$error":"#REF!"}},{"$f":"AND(#REF!,\"DXDf8kBFSkc=\")","v":{"$error":"#REF!"}},{"$f":"AND(#REF!,\"DXDf8kBFSkg=\")","v":{"$error":"#REF!"}},{"$f":"AND(#REF!,\"DXDf8kBFSkk=\")","v":{"$error":"#REF!"}},{"$f":"AND(#REF!,\"DXDf8kBFSko=\")","v":{"$error":"#REF!"}},{"$f":"AND(#REF!,\"DXDf8kBFSks=\")","v":{"$error":"#REF!"}},{"$f":"AND(#REF!,\"DXDf8kBFSkw=\")","v":{"$error":"#REF!"}},{"$f":"AND('Physical Outputs'!F43,\"DXDf8kBFSk0=\")","v":{"$error":"#VALUE!"}},{"$f":"AND('Physical Outputs'!G43,\"DXDf8kBFSk4=\")","v":{"$error":"#VALUE!"}},{"$f":"IF('Physical Outputs'!49:49,\"DXDf8kBFSk8=\",0)","v":0},{"$f":"AND(#REF!,\"DXDf8kBFSlA=\")","v":{"$error":"#REF!"}},{"$f":"AND(#REF!,\"DXDf8kBFSlE=\")","v":{"$error":"#REF!"}},{"$f":"AND(#REF!,\"DXDf8kBFSlI=\")","v":{"$error":"#REF!"}},{"$f":"AND(#REF!,\"DXDf8kBFSlM=\")","v":{"$error":"#REF!"}},{"$f":"AND(#REF!,\"DXDf8kBFSlQ=\")","v":{"$error":"#REF!"}},{"$f":"AND(#REF!,\"DXDf8kBFSlU=\")","v":{"$error":"#REF!"}},{"$f":"AND(#REF!,\"DXDf8kBFSlY=\")","v":{"$error":"#REF!"}},{"$f":"AND('Physical Outputs'!F49,\"DXDf8kBFSlc=\")","v":{"$error":"#VALUE!"}},{"$f":"AND('Physical Outputs'!G49,\"DXDf8kBFSlg=\")","v":{"$error":"#VALUE!"}},{"$f":"IF('Physical Outputs'!44:44,\"DXDf8kBFSlk=\",0)","v":0},{"$f":"AND(#REF!,\"DXDf8kBFSlo=\")","v":{"$error":"#REF!"}},{"$f":"AND(#REF!,\"DXDf8kBFSls=\")","v":{"$error":"#REF!"}},{"$f":"AND(#REF!,\"DXDf8kBFSlw=\")","v":{"$error":"#REF!"}},{"$f":"AND(#REF!,\"DXDf8kBFSl0=\")","v":{"$error":"#REF!"}},{"$f":"AND(#REF!,\"DXDf8kBFSl4=\")","v":{"$error":"#REF!"}},{"$f":"AND(#REF!,\"DXDf8kBFSl8=\")","v":{"$error":"#REF!"}},{"$f":"AND(#REF!,\"DXDf8kBFSmA=\")","v":{"$error":"#REF!"}},{"$f":"AND('Physical Outputs'!F44,\"DXDf8kBFSmE=\")","v":{"$error":"#VALUE!"}},{"$f":"AND('Physical Outputs'!G44,\"DXDf8kBFSmI=\")","v":{"$error":"#VALUE!"}},{"$f":"IF('Physical Outputs'!45:45,\"DXDf8kBFSmM=\",0)","v":0},{"$f":"AND(#REF!,\"DXDf8kBFSmQ=\")","v":{"$error":"#REF!"}},{"$f":"AND(#REF!,\"DXDf8kBFSmU=\")","v":{"$error":"#REF!"}},{"$f":"AND(#REF!,\"DXDf8kBFSmY=\")","v":{"$error":"#REF!"}},{"$f":"AND(#REF!,\"DXDf8kBFSmc=\")","v":{"$error":"#REF!"}},{"$f":"AND(#REF!,\"DXDf8kBFSmg=\")","v":{"$error":"#REF!"}},{"$f":"AND(#REF!,\"DXDf8kBFSmk=\")","v":{"$error":"#REF!"}},{"$f":"AND(#REF!,\"DXDf8kBFSmo=\")","v":{"$error":"#REF!"}},{"$f":"AND('Physical Outputs'!F45,\"DXDf8kBFSms=\")","v":{"$error":"#VALUE!"}},{"$f":"AND('Physical Outputs'!G45,\"DXDf8kBFSmw=\")","v":{"$error":"#VALUE!"}},{"$f":"IF('Physical Outputs'!46:46,\"DXDf8kBFSm0=\",0)","v":0},{"$f":"AND(#REF!,\"DXDf8kBFSm4=\")","v":{"$error":"#REF!"}},{"$f":"AND(#REF!,\"DXDf8kBFSm8=\")","v":{"$error":"#REF!"}},{"$f":"AND(#REF!,\"DXDf8kBFSnA=\")","v":{"$error":"#REF!"}},{"$f":"AND(#REF!,\"DXDf8kBFSnE=\")","v":{"$error":"#REF!"}},{"$f":"AND(#REF!,\"DXDf8kBFSnI=\")","v":{"$error":"#REF!"}},{"$f":"AND(#REF!,\"DXDf8kBFSnM=\")","v":{"$error":"#REF!"}},{"$f":"AND(#REF!,\"DXDf8kBFSnQ=\")","v":{"$error":"#REF!"}},{"$f":"AND('Physical Outputs'!F46,\"DXDf8kBFSnU=\")","v":{"$error":"#VALUE!"}},{"$f":"AND('Physical Outputs'!G46,\"DXDf8kBFSnY=\")","v":{"$error":"#VALUE!"}},{"$f":"IF('Physical Outputs'!47:47,\"DXDf8kBFSnc=\",0)","v":0},{"$f":"AND(#REF!,\"DXDf8kBFSng=\")","v":{"$error":"#REF!"}},{"$f":"AND(#REF!,\"DXDf8kBFSnk=\")","v":{"$error":"#REF!"}},{"$f":"AND(#REF!,\"DXDf8kBFSno=\")","v":{"$error":"#REF!"}},{"$f":"AND('Physical Outputs'!D47,\"DXDf8kBFSns=\")","v":{"$error":"#VALUE!"}},{"$f":"AND('Physical Outputs'!E47,\"DXDf8kBFSnw=\")","v":{"$error":"#VALUE!"}},{"$f":"AND(#REF!,\"DXDf8kBFSn0=\")","v":{"$error":"#REF!"}},{"$f":"AND(#REF!,\"DXDf8kBFSn4=\")","v":{"$error":"#REF!"}},{"$f":"AND('Physical Outputs'!F47,\"DXDf8kBFSn8=\")","v":{"$error":"#VALUE!"}},{"$f":"AND('Physical Outputs'!G47,\"DXDf8kBFSoA=\")","v":{"$error":"#VALUE!"}},{"$f":"IF('Physical Outputs'!51:51,\"DXDf8kBFSoE=\",0)","v":0},{"$f":"AND(#REF!,\"DXDf8kBFSoI=\")","v":{"$error":"#REF!"}},{"$f":"AND(#REF!,\"DXDf8kBFSoM=\")","v":{"$error":"#REF!"}},{"$f":"AND(#REF!,\"DXDf8kBFSoQ=\")","v":{"$error":"#REF!"}},{"$f":"AND('Physical Outputs'!D51,\"DXDf8kBFSoU=\")","v":{"$error":"#VALUE!"}},{"$f":"AND('Physical Outputs'!E51,\"DXDf8kBFSoY=\")","v":{"$error":"#VALUE!"}},{"$f":"AND(#REF!,\"DXDf8kBFSoc=\")","v":{"$error":"#REF!"}},{"$f":"AND(#REF!,\"DXDf8kBFSog=\")","v":{"$error":"#REF!"}},{"$f":"AND('Physical Outputs'!F51,\"DXDf8kBFSok=\")","v":{"$error":"#VALUE!"}},{"$f":"AND('Physical Outputs'!G51,\"DXDf8kBFSoo=\")","v":{"$error":"#VALUE!"}},{"$f":"IF('Physical Outputs'!52:52,\"DXDf8kBFSos=\",0)","v":0},{"$f":"AND(#REF!,\"DXDf8kBFSow=\")","v":{"$error":"#REF!"}},{"$f":"AND(#REF!,\"DXDf8kBFSo0=\")","v":{"$error":"#REF!"}},{"$f":"AND(#REF!,\"DXDf8kBFSo4=\")","v":{"$error":"#REF!"}},{"$f":"AND('Physical Outputs'!D52,\"DXDf8kBFSo8=\")","v":{"$error":"#VALUE!"}},{"$f":"AND('Physical Outputs'!E52,\"DXDf8kBFSpA=\")","v":{"$error":"#VALUE!"}},{"$f":"AND(#REF!,\"DXDf8kBFSpE=\")","v":{"$error":"#REF!"}},{"$f":"AND(#REF!,\"DXDf8kBFSpI=\")","v":{"$error":"#REF!"}},{"$f":"AND('Physical Outputs'!F52,\"DXDf8kBFSpM=\")","v":{"$error":"#VALUE!"}},{"$f":"AND('Physical Outputs'!G52,\"DXDf8kBFSpQ=\")","v":{"$error":"#VALUE!"}},{"$f":"IF('Physical Outputs'!40:40,\"DXDf8kBFSpU=\",0)","v":0},{"$f":"AND(#REF!,\"DXDf8kBFSpY=\")","v":{"$error":"#REF!"}},{"$f":"AND(#REF!,\"DXDf8kBFSpc=\")","v":{"$error":"#REF!"}},{"$f":"AND(#REF!,\"DXDf8kBFSpg=\")","v":{"$error":"#REF!"}},{"$f":"AND('Physical Outputs'!D40,\"DXDf8kBFSpk=\")","v":{"$error":"#VALUE!"}},{"$f":"AND('Physical Outputs'!E40,\"DXDf8kBFSpo=\")","v":{"$error":"#VALUE!"}},{"$f":"AND(#REF!,\"DXDf8kBFSps=\")","v":{"$error":"#REF!"}},{"$f":"AND(#REF!,\"DXDf8kBFSpw=\")","v":{"$error":"#REF!"}},{"$f":"AND('Physical Outputs'!F40,\"DXDf8kBFSp0=\")","v":{"$error":"#VALUE!"}},{"$f":"AND('Physical Outputs'!G40,\"DXDf8kBFSp4=\")","v":{"$error":"#VALUE!"}},{"$f":"IF('Physical Outputs'!41:41,\"DXDf8kBFSp8=\",0)","v":0},{"$f":"AND(#REF!,\"DXDf8kBFSqA=\")","v":{"$error":"#REF!"}},{"$f":"AND(#REF!,\"DXDf8kBFSqE=\")","v":{"$error":"#REF!"}},{"$f":"AND(#REF!,\"DXDf8kBFSqI=\")","v":{"$error":"#REF!"}},{"$f":"AND('Physical Outputs'!D41,\"DXDf8kBFSqM=\")","v":{"$error":"#VALUE!"}},{"$f":"AND('Physical Outputs'!E41,\"DXDf8kBFSqQ=\")","v":{"$error":"#VALUE!"}},{"$f":"AND(#REF!,\"DXDf8kBFSqU=\")","v":{"$error":"#REF!"}},{"$f":"AND(#REF!,\"DXDf8kBFSqY=\")","v":{"$error":"#REF!"}},{"$f":"AND('Physical Outputs'!F41,\"DXDf8kBFSqc=\")","v":{"$error":"#VALUE!"}},{"$f":"AND('Physical Outputs'!G41,\"DXDf8kBFSqg=\")","v":{"$error":"#VALUE!"}},{"$f":"IF('Physical Outputs'!53:53,\"DXDf8kBFSqk=\",0)","v":0},{"$f":"AND(#REF!,\"DXDf8kBFSqo=\")","v":{"$error":"#REF!"}},{"$f":"AND(#REF!,\"DXDf8kBFSqs=\")","v":{"$error":"#REF!"}},{"$f":"AND(#REF!,\"DXDf8kBFSqw=\")","v":{"$error":"#REF!"}},{"$f":"AND('Physical Outputs'!D53,\"DXDf8kBFSq0=\")","v":{"$error":"#VALUE!"}},{"$f":"AND('Physical Outputs'!E53,\"DXDf8kBFSq4=\")","v":{"$error":"#VALUE!"}},{"$f":"AND(#REF!,\"DXDf8kBFSq8=\")","v":{"$error":"#REF!"}},{"$f":"AND(#REF!,\"DXDf8kBFSrA=\")","v":{"$error":"#REF!"}},{"$f":"AND('Physical Outputs'!F53,\"DXDf8kBFSrE=\")","v":{"$error":"#VALUE!"}},{"$f":"AND('Physical Outputs'!G53,\"DXDf8kBFSrI=\")","v":{"$error":"#VALUE!"}},{"$f":"IF('Physical Outputs'!54:54,\"DXDf8kBFSrM=\",0)","v":0},{"$f":"AND(#REF!,\"DXDf8kBFSrQ=\")","v":{"$error":"#REF!"}},{"$f":"AND(#REF!,\"DXDf8kBFSrU=\")","v":{"$error":"#REF!"}},{"$f":"AND(#REF!,\"DXDf8kBFSrY=\")","v":{"$error":"#REF!"}},{"$f":"AND('Physical Outputs'!D54,\"DXDf8kBFSrc=\")","v":{"$error":"#VALUE!"}},{"$f":"AND('Physical Outputs'!E54,\"DXDf8kBFSrg=\")","v":{"$error":"#VALUE!"}},{"$f":"AND(#REF!,\"DXDf8kBFSrk=\")","v":{"$error":"#REF!"}},{"$f":"AND(#REF!,\"DXDf8kBFSro=\")","v":{"$error":"#REF!"}},{"$f":"AND('Physical Outputs'!F54,\"DXDf8kBFSrs=\")","v":{"$error":"#VALUE!"}},{"$f":"AND('Physical Outputs'!G54,\"DXDf8kBFSrw=\")","v":{"$error":"#VALUE!"}},{"$f":"IF('Physical Outputs'!55:55,\"DXDf8kBFSr0=\",0)","v":0},{"$f":"AND(#REF!,\"DXDf8kBFSr4=\")","v":{"$error":"#REF!"}},{"$f":"AND(#REF!,\"DXDf8kBFSr8=\")","v":{"$error":"#REF!"}},{"$f":"AND(#REF!,\"DXDf8kBFSsA=\")","v":{"$error":"#REF!"}},{"$f":"AND('Physical Outputs'!D55,\"DXDf8kBFSsE=\")","v":{"$error":"#VALUE!"}},{"$f":"AND('Physical Outputs'!E55,\"DXDf8kBFSsI=\")","v":{"$error":"#VALUE!"}},{"$f":"AND(#REF!,\"DXDf8kBFSsM=\")","v":{"$error":"#REF!"}},{"$f":"AND(#REF!,\"DXDf8kBFSsQ=\")","v":{"$error":"#REF!"}},{"$f":"AND('Physical Outputs'!F55,\"DXDf8kBFSsU=\")","v":{"$error":"#VALUE!"}},{"$f":"AND('Physical Outputs'!G55,\"DXDf8kBFSsY=\")","v":{"$error":"#VALUE!"}},{"$f":"IF('Physical Outputs'!56:56,\"DXDf8kBFSsc=\",0)","v":0},{"$f":"AND(#REF!,\"DXDf8kBFSsg=\")","v":{"$error":"#REF!"}},{"$f":"AND(#REF!,\"DXDf8kBFSsk=\")","v":{"$error":"#REF!"}},{"$f":"AND(#REF!,\"DXDf8kBFSso=\")","v":{"$error":"#REF!"}},{"$f":"AND('Physical Outputs'!D56,\"DXDf8kBFSss=\")","v":{"$error":"#VALUE!"}},{"$f":"AND('Physical Outputs'!E56,\"DXDf8kBFSsw=\")","v":{"$error":"#VALUE!"}},{"$f":"AND(#REF!,\"DXDf8kBFSs0=\")","v":{"$error":"#REF!"}},{"$f":"AND(#REF!,\"DXDf8kBFSs4=\")","v":{"$error":"#REF!"}},{"$f":"AND('Physical Outputs'!F56,\"DXDf8kBFSs8=\")","v":{"$error":"#VALUE!"}},{"$f":"AND('Physical Outputs'!G56,\"DXDf8kBFStA=\")","v":{"$error":"#VALUE!"}},{"$f":"IF('Physical Outputs'!58:58,\"DXDf8kBFStE=\",0)","v":0},{"$f":"AND(#REF!,\"DXDf8kBFStI=\")","v":{"$error":"#REF!"}},{"$f":"AND(#REF!,\"DXDf8kBFStM=\")","v":{"$error":"#REF!"}},{"$f":"AND(#REF!,\"DXDf8kBFStQ=\")","v":{"$error":"#REF!"}},{"$f":"AND('Physical Outputs'!D58,\"DXDf8kBFStU=\")","v":{"$error":"#VALUE!"}},{"$f":"AND('Physical Outputs'!E58,\"DXDf8kBFStY=\")","v":{"$error":"#VALUE!"}},{"$f":"AND(#REF!,\"DXDf8kBFStc=\")","v":{"$error":"#REF!"}},{"$f":"AND(#REF!,\"DXDf8kBFStg=\")","v":{"$error":"#REF!"}},{"$f":"AND('Physical Outputs'!F58,\"DXDf8kBFStk=\")","v":{"$error":"#VALUE!"}},{"$f":"AND('Physical Outputs'!G58,\"DXDf8kBFSto=\")","v":{"$error":"#VALUE!"}},{"$f":"IF('Physical Outputs'!59:59,\"DXDf8kBFSts=\",0)","v":0},{"$f":"AND(#REF!,\"DXDf8kBFStw=\")","v":{"$error":"#REF!"}},{"$f":"AND(#REF!,\"DXDf8kBFSt0=\")","v":{"$error":"#REF!"}},{"$f":"AND(#REF!,\"DXDf8kBFSt4=\")","v":{"$error":"#REF!"}},{"$f":"AND('Physical Outputs'!D59,\"DXDf8kBFSt8=\")","v":{"$error":"#VALUE!"}},{"$f":"AND('Physical Outputs'!E59,\"DXDf8kBFSuA=\")","v":{"$error":"#VALUE!"}},{"$f":"AND(#REF!,\"DXDf8kBFSuE=\")","v":{"$error":"#REF!"}},{"$f":"AND(#REF!,\"DXDf8kBFSuI=\")","v":{"$error":"#REF!"}},{"$f":"AND('Physical Outputs'!F59,\"DXDf8kBFSuM=\")","v":{"$error":"#VALUE!"}},{"$f":"AND('Physical Outputs'!G59,\"DXDf8kBFSuQ=\")","v":{"$error":"#VALUE!"}},{"$f":"IF(#REF!,\"DXDf8kBFSuU=\",0)","v":{"$error":"#REF!"}},{"$f":"AND(#REF!,\"DXDf8kBFSuY=\")","v":{"$error":"#REF!"}},{"$f":"AND(#REF!,\"DXDf8kBFSuc=\")","v":{"$error":"#REF!"}},{"$f":"AND(#REF!,\"DXDf8kBFSug=\")","v":{"$error":"#REF!"}},{"$f":"AND(#REF!,\"DXDf8kBFSuk=\")","v":{"$error":"#REF!"}},{"$f":"AND(#REF!,\"DXDf8kBFSuo=\")","v":{"$error":"#REF!"}},{"$f":"AND(#REF!,\"DXDf8kBFSus=\")","v":{"$error":"#REF!"}},{"$f":"AND(#REF!,\"DXDf8kBFSuw=\")","v":{"$error":"#REF!"}},{"$f":"AND(#REF!,\"DXDf8kBFSu0=\")","v":{"$error":"#REF!"}},{"$f":"AND(#REF!,\"DXDf8kBFSu4=\")","v":{"$error":"#REF!"}},{"$f":"IF(#REF!,\"DXDf8kBFSu8=\",0)","v":{"$error":"#REF!"}},{"$f":"IF(#REF!,\"DXDf8kBFSvA=\",0)","v":{"$error":"#REF!"}},{"$f":"IF(#REF!,\"DXDf8kBFSvE=\",0)","v":{"$error":"#REF!"}},{"$f":"IF(#REF!,\"DXDf8kBFSvI=\",0)","v":{"$error":"#REF!"}},{"$f":"IF(#REF!,\"DXDf8kBFSvM=\",0)","v":{"$error":"#REF!"}},{"$f":"IF(#REF!,\"DXDf8kBFSvQ=\",0)","v":{"$error":"#REF!"}},{"$f":"IF(#REF!,\"DXDf8kBFSvU=\",0)","v":{"$error":"#REF!"}},{"$f":"IF(#REF!,\"DXDf8kBFSvY=\",0)","v":{"$error":"#REF!"}},{"$f":"IF(#REF!,\"DXDf8kBFSvc=\",0)","v":{"$error":"#REF!"}},{"$f":"IF('Basic Financial'!#REF!,\"DXDf8kBFSvg=\",0)","v":{"$error":"#REF!"}},{"$f":"AND('Basic Financial'!#REF!,\"DXDf8kBFSvk=\")","v":{"$error":"#REF!"}},{"$f":"AND('Basic Financial'!#REF!,\"DXDf8kBFSvo=\")","v":{"$error":"#REF!"}},{"$f":"AND('Basic Financial'!#REF!,\"DXDf8kBFSvs=\")","v":{"$error":"#REF!"}},{"$f":"AND('Basic Financial'!#REF!,\"DXDf8kBFSvw=\")","v":{"$error":"#REF!"}},{"$f":"AND('Basic Financial'!#REF!,\"DXDf8kBFSv0=\")","v":{"$error":"#REF!"}},{"$f":"AND('Basic Financial'!#REF!,\"DXDf8kBFSv4=\")","v":{"$error":"#REF!"}},{"$f":"AND('Basic Financial'!A70,\"DXDf8kBFSv8=\")","v":{"$error":"#VALUE!"}}]
[{"$f":"AND('Basic Financial'!B70,\"FEl9cnRKbQA=\")","v":{"$error":"#VALUE!"}},{"$f":"AND('Basic Financial'!C70,\"FEl9cnRKbQE=\")","v":{"$error":"#VALUE!"}},{"$f":"AND('Basic Financial'!D70,\"FEl9cnRKbQI=\")","v":{"$error":"#VALUE!"}},{"$f":"AND('Basic Financial'!E70,\"FEl9cnRKbQM=\")","v":{"$error":"#VALUE!"}},{"$f":"AND('Basic Financial'!#REF!,\"FEl9cnRKbQQ=\")","v":{"$error":"#REF!"}},{"$f":"AND('Basic Financial'!#REF!,\"FEl9cnRKbQU=\")","v":{"$error":"#REF!"}},{"$f":"IF('Basic Financial'!#REF!,\"FEl9cnRKbQY=\",0)","v":{"$error":"#REF!"}},{"$f":"AND('Basic Financial'!#REF!,\"FEl9cnRKbQc=\")","v":{"$error":"#REF!"}},{"$f":"AND('Basic Financial'!#REF!,\"FEl9cnRKbQg=\")","v":{"$error":"#REF!"}},{"$f":"AND('Basic Financial'!#REF!,\"FEl9cnRKbQk=\")","v":{"$error":"#REF!"}},{"$f":"AND('Basic Financial'!#REF!,\"FEl9cnRKbQo=\")","v":{"$error":"#REF!"}},{"$f":"AND('Basic Financial'!#REF!,\"FEl9cnRKbQs=\")","v":{"$error":"#REF!"}},{"$f":"AND('Basic Financial'!#REF!,\"FEl9cnRKbQw=\")","v":{"$error":"#REF!"}},{"$f":"AND('Basic Financial'!#REF!,\"FEl9cnRKbQ0=\")","v":{"$error":"#REF!"}},{"$f":"AND('Basic Financial'!#REF!,\"FEl9cnRKbQ4=\")","v":{"$error":"#REF!"}},{"$f":"AND('Basic Financial'!#REF!,\"FEl9cnRKbQ8=\")","v":{"$error":"#REF!"}},{"$f":"AND('Basic Financial'!#REF!,\"FEl9cnRKbRA=\")","v":{"$error":"#REF!"}},{"$f":"AND('Basic Financial'!#REF!,\"FEl9cnRKbRE=\")","v":{"$error":"#REF!"}},{"$f":"AND('Basic Financial'!#REF!,\"FEl9cnRKbRI=\")","v":{"$error":"#REF!"}},{"$f":"AND('Basic Financial'!#REF!,\"FEl9cnRKbRM=\")","v":{"$error":"#REF!"}},{"$f":"IF('Basic Financial'!19:19,\"FEl9cnRKbRQ=\",0)","v":0},{"$f":"AND('Basic Financial'!A19,\"FEl9cnRKbRU=\")","v":{"$error":"#VALUE!"}},{"$f":"AND('Basic Financial'!B19,\"FEl9cnRKbRY=\")","v":{"$error":"#VALUE!"}},{"$f":"AND('Basic Financial'!C19,\"FEl9cnRKbRc=\")","v":{"$error":"#VALUE!"}},{"$f":"AND('Basic Financial'!D19,\"FEl9cnRKbRg=\")","v":{"$error":"#VALUE!"}},{"$f":"AND('Basic Financial'!E19,\"FEl9cnRKbRk=\")","v":{"$error":"#VALUE!"}},{"$f":"AND('Basic Financial'!#REF!,\"FEl9cnRKbRo=\")","v":{"$error":"#REF!"}},{"$f":"AND('Basic Financial'!#REF!,\"FEl9cnRKbRs=\")","v":{"$error":"#REF!"}},{"$f":"AND('Basic Financial'!#REF!,\"FEl9cnRKbRw=\")","v":{"$error":"#REF!"}},{"$f":"AND('Basic Financial'!#REF!,\"FEl9cnRKbR0=\")","v":{"$error":"#REF!"}},{"$f":"AND('Basic Financial'!#REF!,\"FEl9cnRKbR4=\")","v":{"$error":"#REF!"}},{"$f":"AND('Basic Financial'!#REF!,\"FEl9cnRKbR8=\")","v":{"$error":"#REF!"}},{"$f":"AND('Basic Financial'!L19,\"FEl9cnRKbSA=\")","v":{"$error":"#VALUE!"}},{"$f":"AND('Basic Financial'!M19,\"FEl9cnRKbSE=\")","v":{"$error":"#VALUE!"}},{"$f":"IF('Basic Financial'!20:20,\"FEl9cnRKbSI=\",0)","v":0},{"$f":"AND('Basic Financial'!A20,\"FEl9cnRKbSM=\")","v":{"$error":"#VALUE!"}},{"$f":"AND('Basic Financial'!B20,\"FEl9cnRKbSQ=\")","v":{"$error":"#VALUE!"}},{"$f":"AND('Basic Financial'!C20,\"FEl9cnRKbSU=\")","v":{"$error":"#VALUE!"}},{"$f":"AND('Basic Financial'!#REF!,\"FEl9cnRKbSY=\")","v":{"$error":"#REF!"}},{"$f":"AND('Basic Financial'!#REF!,\"FEl9cnRKbSc=\")","v":{"$error":"#REF!"}},{"$f":"AND('Basic Financial'!#REF!,\"FEl9cnRKbSg=\")","v":{"$error":"#REF!"}},{"$f":"AND('Basic Financial'!A71,\"FEl9cnRKbSk=\")","v":{"$error":"#VALUE!"}},{"$f":"AND('Basic Financial'!B71,\"FEl9cnRKbSo=\")","v":{"$error":"#VALUE!"}},{"$f":"AND('Basic Financial'!C71,\"FEl9cnRKbSs=\")","v":{"$error":"#VALUE!"}},{"$f":"AND('Basic Financial'!D71,\"FEl9cnRKbSw=\")","v":{"$error":"#VALUE!"}},{"$f":"AND('Basic Financial'!E71,\"FEl9cnRKbS0=\")","v":{"$error":"#VALUE!"}},{"$f":"AND('Basic Financial'!L20,\"FEl9cnRKbS4=\")","v":{"$error":"#VALUE!"}},{"$f":"AND('Basic Financial'!M20,\"FEl9cnRKbS8=\")","v":{"$error":"#VALUE!"}},{"$f":"IF('Basic Financial'!27:27,\"FEl9cnRKbTA=\",0)","v":0},{"$f":"AND('Basic Financial'!A26,\"FEl9cnRKbTE=\")","v":{"$error":"#VALUE!"}},{"$f":"AND('Basic Financial'!B26,\"FEl9cnRKbTI=\")","v":{"$error":"#VALUE!"}},{"$f":"AND('Basic Financial'!C27,\"FEl9cnRKbTM=\")","v":{"$error":"#VALUE!"}},{"$f":"AND('Basic Financial'!D27,\"FEl9cnRKbTQ=\")","v":{"$error":"#VALUE!"}},{"$f":"AND('Basic Financial'!E27,\"FEl9cnRKbTU=\")","v":{"$error":"#VALUE!"}},{"$f":"AND('Basic Financial'!#REF!,\"FEl9cnRKbTY=\")","v":{"$error":"#REF!"}},{"$f":"AND('Basic Financial'!A72,\"FEl9cnRKbTc=\")","v":{"$error":"#VALUE!"}},{"$f":"AND('Basic Financial'!B72,\"FEl9cnRKbTg=\")","v":{"$error":"#VALUE!"}},{"$f":"AND('Basic Financial'!C72,\"FEl9cnRKbTk=\")","v":{"$error":"#VALUE!"}},{"$f":"AND('Basic Financial'!D72,\"FEl9cnRKbTo=\")","v":{"$error":"#VALUE!"}},{"$f":"AND('Basic Financial'!E72,\"FEl9cnRKbTs=\")","v":{"$error":"#VALUE!"}},{"$f":"AND('Basic Financial'!L27,\"FEl9cnRKbTw=\")","v":{"$error":"#VALUE!"}},{"$f":"AND('Basic Financial'!M27,\"FEl9cnRKbT0=\")","v":{"$error":"#VALUE!"}},{"$f":"IF('Basic Financial'!21:21,\"FEl9cnRKbT4=\",0)","v":0},{"$f":"AND('Basic Financial'!A21,\"FEl9cnRKbT8=\")","v":{"$error":"#VALUE!"}},{"$f":"AND('Basic Financial'!B21,\"FEl9cnRKbUA=\")","v":{"$error":"#VALUE!"}},{"$f":"AND('Basic Financial'!C21,\"FEl9cnRKbUE=\")","v":{"$error":"#VALUE!"}},{"$f":"AND('Basic Financial'!D21,\"FEl9cnRKbUI=\")","v":{"$error":"#VALUE!"}},{"$f":"AND('Basic Financial'!E21,\"FEl9cnRKbUM=\")","v":{"$error":"#VALUE!"}},{"$f":"AND('Basic Financial'!#REF!,\"FEl9cnRKbUQ=\")","v":{"$error":"#REF!"}},{"$f":"AND('Basic Financial'!#REF!,\"FEl9cnRKbUU=\")","v":{"$error":"#REF!"}},{"$f":"AND('Basic Financial'!#REF!,\"FEl9cnRKbUY=\")","v":{"$error":"#REF!"}},{"$f":"AND('Basic Financial'!#REF!,\"FEl9cnRKbUc=\")","v":{"$error":"#REF!"}},{"$f":"AND('Basic Financial'!D73,\"FEl9cnRKbUg=\")","v":{"$error":"#VALUE!"}},{"$f":"AND('Basic Financial'!E73,\"FEl9cnRKbUk=\")","v":{"$error":"#VALUE!"}},{"$f":"AND('Basic Financial'!L21,\"FEl9cnRKbUo=\")","v":{"$error":"#VALUE!"}},{"$f":"AND('Basic Financial'!M21,\"FEl9cnRKbUs=\")","v":{"$error":"#VALUE!"}},{"$f":"IF('Basic Financial'!22:22,\"FEl9cnRKbUw=\",0)","v":0},{"$f":"AND('Basic Financial'!A22,\"FEl9cnRKbU0=\")","v":{"$error":"#VALUE!"}},{"$f":"AND('Basic Financial'!B22,\"FEl9cnRKbU4=\")","v":{"$error":"#VALUE!"}},{"$f":"AND('Basic Financial'!C22,\"FEl9cnRKbU8=\")","v":{"$error":"#VALUE!"}},{"$f":"AND('Basic Financial'!D22,\"FEl9cnRKbVA=\")","v":{"$error":"#VALUE!"}},{"$f":"AND('Basic Financial'!E22,\"FEl9cnRKbVE=\")","v":{"$error":"#VALUE!"}},{"$f":"AND('Basic Financial'!#REF!,\"FEl9cnRKbVI=\")","v":{"$error":"#REF!"}},{"$f":"AND('Basic Financial'!#REF!,\"FEl9cnRKbVM=\")","v":{"$error":"#REF!"}},{"$f":"AND('Basic Financial'!#REF!,\"FEl9cnRKbVQ=\")","v":{"$error":"#REF!"}},{"$f":"AND('Basic Financial'!#REF!,\"FEl9cnRKbVU=\")","v":{"$error":"#REF!"}},{"$f":"AND('Basic Financial'!#REF!,\"FEl9cnRKbVY=\")","v":{"$error":"#REF!"}},{"$f":"AND('Basic Financial'!#REF!,\"FEl9cnRKbVc=\")","v":{"$error":"#REF!"}},{"$f":"AND('Basic Financial'!L22,\"FEl9cnRKbVg=\")","v":{"$error":"#VALUE!"}},{"$f":"AND('Basic Financial'!M22,\"FEl9cnRKbVk=\")","v":{"$error":"#VALUE!"}},{"$f":"IF('Basic Financial'!23:23,\"FEl9cnRKbVo=\",0)","v":0},{"$f":"AND('Basic Financial'!A23,\"FEl9cnRKbVs=\")","v":{"$error":"#VALUE!"}},{"$f":"AND('Basic Financial'!B23,\"FEl9cnRKbVw=\")","v":{"$error":"#VALUE!"}},{"$f":"AND('Basic Financial'!C23,\"FEl9cnRKbV0=\")","v":{"$error":"#VALUE!"}},{"$f":"AND('Basic Financial'!D23,\"FEl9cnRKbV4=\")","v":{"$error":"#VALUE!"}},{"$f":"AND('Basic Financial'!E23,\"FEl9cnRKbV8=\")","v":{"$error":"#VALUE!"}},{"$f":"AND('Basic Financial'!#REF!,\"FEl9cnRKbWA=\")","v":{"$error":"#REF!"}},{"$f":"AND('Basic Financial'!#REF!,\"FEl9cnRKbWE=\")","v":{"$error":"#REF!"}},{"$f":"AND('Basic Financial'!#REF!,\"FEl9cnRKbWI=\")","v":{"$error":"#REF!"}},{"$f":"AND('Basic Financial'!#REF!,\"FEl9cnRKbWM=\")","v":{"$error":"#REF!"}},{"$f":"AND('Basic Financial'!#REF!,\"FEl9cnRKbWQ=\")","v":{"$error":"#REF!"}},{"$f":"AND('Basic Financial'!#REF!,\"FEl9cnRKbWU=\")","v":{"$error":"#REF!"}},{"$f":"AND('Basic Financial'!L23,\"FEl9cnRKbWY=\")","v":{"$error":"#VALUE!"}},{"$f":"AND('Basic Financial'!M23,\"FEl9cnRKbWc=\")","v":{"$error":"#VALUE!"}},{"$f":"IF('Basic Financial'!24:24,\"FEl9cnRKbWg=\",0)","v":0},{"$f":"AND('Basic Financial'!A24,\"FEl9cnRKbWk=\")","v":{"$error":"#VALUE!"}},{"$f":"AND('Basic Financial'!B24,\"FEl9cnRKbWo=\")","v":{"$error":"#VALUE!"}},{"$f":"AND('Basic Financial'!C24,\"FEl9cnRKbWs=\")","v":{"$error":"#VALUE!"}},{"$f":"AND('Basic Financial'!D24,\"FEl9cnRKbWw=\")","v":{"$error":"#VALUE!"}},{"$f":"AND('Basic Financial'!E24,\"FEl9cnRKbW0=\")","v":{"$error":"#VALUE!"}},{"$f":"AND('Basic Financial'!#REF!,\"FEl9cnRKbW4=\")","v":{"$error":"#REF!"}},{"$f":"AND('Basic Financial'!A73,\"FEl9cnRKbW8=\")","v":{"$error":"#VALUE!"}},{"$f":"AND('Basic Financial'!B73,\"FEl9cnRKbXA=\")","v":{"$error":"#VALUE!"}},{"$f":"AND('Basic Financial'!C73,\"FEl9cnRKbXE=\")","v":{"$error":"#VALUE!"}},{"$f":"AND('Basic Financial'!D74,\"FEl9cnRKbXI=\")","v":{"$error":"#VALUE!"}},{"$f":"AND('Basic Financial'!E74,\"FEl9cnRKbXM=\")","v":{"$error":"#VALUE!"}},{"$f":"AND('Basic Financial'!L24,\"FEl9cnRKbXQ=\")","v":{"$error":"#VALUE!"}},{"$f":"AND('Basic Financial'!M24,\"FEl9cnRKbXU=\")","v":{"$error":"#VALUE!"}},{"$f":"IF('Basic Financial'!30:30,\"FEl9cnRKbXY=\",0)","v":0},{"$f":"AND('Basic Financial'!A30,\"FEl9cnRKbXc=\")","v":{"$error":"#VALUE!"}},{"$f":"AND('Basic Financial'!B30,\"FEl9cnRKbXg=\")","v":{"$error":"#VALUE!"}},{"$f":"AND('Basic Financial'!C30,\"FEl9cnRKbXk=\")","v":{"$error":"#VALUE!"}},{"$f":"AND('Basic Financial'!D30,\"FEl9cnRKbXo=\")","v":{"$error":"#VALUE!"}},{"$f":"AND('Basic Financial'!E30,\"FEl9cnRKbXs=\")","v":{"$error":"#VALUE!"}},{"$f":"AND('Basic Financial'!#REF!,\"FEl9cnRKbXw=\")","v":{"$error":"#REF!"}},{"$f":"AND('Basic Financial'!#REF!,\"FEl9cnRKbX0=\")","v":{"$error":"#REF!"}},{"$f":"AND('Basic Financial'!#REF!,\"FEl9cnRKbX4=\")","v":{"$error":"#REF!"}},{"$f":"AND('Basic Financial'!#REF!,\"FEl9cnRKbX8=\")","v":{"$error":"#REF!"}},{"$f":"AND('Basic Financial'!#REF!,\"FEl9cnRKbYA=\")","v":{"$error":"#REF!"}},{"$f":"AND('Basic Financial'!#REF!,\"FEl9cnRKbYE=\")","v":{"$error":"#REF!"}},{"$f":"AND('Basic Financial'!L30,\"FEl9cnRKbYI=\")","v":{"$error":"#VALUE!"}},{"$f":"AND('Basic Financial'!M30,\"FEl9cnRKbYM=\")","v":{"$error":"#VALUE!"}},{"$f":"IF('Basic Financial'!33:33,\"FEl9cnRKbYQ=\",0)","v":0},{"$f":"AND('Basic Financial'!A33,\"FEl9cnRKbYU=\")","v":{"$error":"#VALUE!"}},{"$f":"AND('Basic Financial'!B33,\"FEl9cnRKbYY=\")","v":{"$error":"#VALUE!"}},{"$f":"AND('Basic Financial'!C33,\"FEl9cnRKbYc=\")","v":{"$error":"#VALUE!"}},{"$f":"AND('Basic Financial'!#REF!,\"FEl9cnRKbYg=\")","v":{"$error":"#REF!"}},{"$f":"AND('Basic Financial'!E33,\"FEl9cnRKbYk=\")","v":{"$error":"#VALUE!"}},{"$f":"AND('Basic Financial'!#REF!,\"FEl9cnRKbYo=\")","v":{"$error":"#REF!"}},{"$f":"AND('Basic Financial'!#REF!,\"FEl9cnRKbYs=\")","v":{"$error":"#REF!"}},{"$f":"AND('Basic Financial'!#REF!,\"FEl9cnRKbYw=\")","v":{"$error":"#REF!"}},{"$f":"AND('Basic Financial'!#REF!,\"FEl9cnRKbY0=\")","v":{"$error":"#REF!"}},{"$f":"AND('Basic Financial'!#REF!,\"FEl9cnRKbY4=\")","v":{"$error":"#REF!"}},{"$f":"AND('Basic Financial'!#REF!,\"FEl9cnRKbY8=\")","v":{"$error":"#REF!"}},{"$f":"AND('Basic Financial'!L33,\"FEl9cnRKbZA=\")","v":{"$error":"#VALUE!"}},{"$f":"AND('Basic Financial'!M33,\"FEl9cnRKbZE=\")","v":{"$error":"#VALUE!"}},{"$f":"IF('Basic Financial'!54:54,\"FEl9cnRKbZI=\",0)","v":0},{"$f":"AND('Basic Financial'!A54,\"FEl9cnRKbZM=\")","v":{"$error":"#VALUE!"}},{"$f":"AND('Basic Financial'!B54,\"FEl9cnRKbZQ=\")","v":{"$error":"#VALUE!"}},{"$f":"AND('Basic Financial'!C54,\"FEl9cnRKbZU=\")","v":{"$error":"#VALUE!"}},{"$f":"AND('Basic Financial'!D54,\"FEl9cnRKbZY=\")","v":{"$error":"#VALUE!"}},{"$f":"AND('Basic Financial'!E54,\"FEl9cnRKbZc=\")","v":{"$error":"#VALUE!"}},{"$f":"AND('Basic Financial'!#REF!,\"FEl9cnRKbZg=\")","v":{"$error":"#REF!"}},{"$f":"AND('Basic Financial'!#REF!,\"FEl9cnRKbZk=\")","v":{"$error":"#REF!"}},{"$f":"AND('Basic Financial'!#REF!,\"FEl9cnRKbZo=\")","v":{"$error":"#REF!"}},{"$f":"AND('Basic Financial'!#REF!,\"FEl9cnRKbZs=\")","v":{"$error":"#REF!"}},{"$f":"AND('Basic Financial'!#REF!,\"FEl9cnRKbZw=\")","v":{"$error":"#REF!"}},{"$f":"AND('Basic Financial'!#REF!,\"FEl9cnRKbZ0=\")","v":{"$error":"#REF!"}},{"$f":"AND('Basic Financial'!L54,\"FEl9cnRKbZ4=\")","v":{"$error":"#VALUE!"}},{"$f":"AND('Basic Financial'!M54,\"FEl9cnRKbZ8=\")","v":{"$error":"#VALUE!"}},{"$f":"IF('Basic Financial'!#REF!,\"FEl9cnRKbaA=\",0)","v":{"$error":"#REF!"}},{"$f":"AND('Basic Financial'!#REF!,\"FEl9cnRKbaE=\")","v":{"$error":"#REF!"}},{"$f":"AND('Basic Financial'!B49,\"FEl9cnRKbaI=\")","v":{"$error":"#VALUE!"}},{"$f":"AND('Basic Financial'!E49,\"FEl9cnRKbaM=\")","v":{"$error":"#VALUE!"}},{"$f":"AND('Basic Financial'!#REF!,\"FEl9cnRKbaQ=\")","v":{"$error":"#REF!"}},{"$f":"AND('Basic Financial'!#REF!,\"FEl9cnRKbaU=\")","v":{"$error":"#REF!"}},{"$f":"AND('Basic Financial'!#REF!,\"FEl9cnRKbaY=\")","v":{"$error":"#REF!"}},{"$f":"AND('Basic Financial'!#REF!,\"FEl9cnRKbac=\")","v":{"$error":"#REF!"}},{"$f":"AND('Basic Financial'!#REF!,\"FEl9cnRKbag=\")","v":{"$error":"#REF!"}},{"$f":"AND('Basic Financial'!#REF!,\"FEl9cnRKbak=\")","v":{"$error":"#REF!"}},{"$f":"AND('Basic Financial'!#REF!,\"FEl9cnRKbao=\")","v":{"$error":"#REF!"}},{"$f":"AND('Basic Financial'!#REF!,\"FEl9cnRKbas=\")","v":{"$error":"#REF!"}},{"$f":"AND('Basic Financial'!#REF!,\"FEl9cnRKbaw=\")","v":{"$error":"#REF!"}},{"$f":"AND('Basic Financial'!#REF!,\"FEl9cnRKba0=\")","v":{"$error":"#REF!"}},{"$f":"IF('Basic Financial'!61:61,\"FEl9cnRKba4=\",0)","v":0},{"$f":"AND('Basic Financial'!A60,\"FEl9cnRKba8=\")","v":{"$error":"#VALUE!"}},{"$f":"AND('Basic Financial'!B60,\"FEl9cnRKbbA=\")","v":{"$error":"#VALUE!"}},{"$f":"AND('Basic Financial'!#REF!,\"FEl9cnRKbbE=\")","v":{"$error":"#REF!"}},{"$f":"AND('Basic Financial'!C60,\"FEl9cnRKbbI=\")","v":{"$error":"#VALUE!"}},{"$f":"AND('Basic Financial'!E61,\"FEl9cnRKbbM=\")","v":{"$error":"#VALUE!"}},{"$f":"AND('Basic Financial'!F61,\"FEl9cnRKbbQ=\")","v":{"$error":"#VALUE!"}},{"$f":"AND('Advanced Financial'!#REF!,\"FEl9cnRKbbU=\")","v":{"$error":"#REF!"}},{"$f":"AND('Advanced Financial'!#REF!,\"FEl9cnRKbbY=\")","v":{"$error":"#REF!"}},{"$f":"AND('Advanced Financial'!#REF!,\"FEl9cnRKbbc=\")","v":{"$error":"#REF!"}},{"$f":"AND('Advanced Financial'!#REF!,\"FEl9cnRKbbg=\")","v":{"$error":"#REF!"}},{"$f":"AND('Advanced Financial'!#REF!,\"FEl9cnRKbbk=\")","v":{"$error":"#REF!"}},{"$f":"AND('Basic Financial'!L61,\"FEl9cnRKbbo=\")","v":{"$error":"#VALUE!"}},{"$f":"AND('Basic Financial'!M61,\"FEl9cnRKbbs=\")","v":{"$error":"#VALUE!"}},{"$f":"IF('Basic Financial'!#REF!,\"FEl9cnRKbbw=\",0)","v":{"$error":"#REF!"}},{"$f":"AND('Basic Financial'!#REF!,\"FEl9cnRKbb0=\")","v":{"$error":"#REF!"}},{"$f":"AND('Basic Financial'!#REF!,\"FEl9cnRKbb4=\")","v":{"$error":"#REF!"}},{"$f":"AND('Basic Financial'!#REF!,\"FEl9cnRKbb8=\")","v":{"$error":"#REF!"}},{"$f":"AND('Basic Financial'!#REF!,\"FEl9cnRKbcA=\")","v":{"$error":"#REF!"}},{"$f":"AND('Basic Financial'!#REF!,\"FEl9cnRKbcE=\")","v":{"$error":"#REF!"}},{"$f":"AND('Basic Financial'!#REF!,\"FEl9cnRKbcI=\")","v":{"$error":"#REF!"}},{"$f":"AND('Basic Financial'!#REF!,\"FEl9cnRKbcM=\")","v":{"$error":"#REF!"}},{"$f":"AND('Basic Financial'!#REF!,\"FEl9cnRKbcQ=\")","v":{"$error":"#REF!"}},{"$f":"AND('Basic Financial'!#REF!,\"FEl9cnRKbcU=\")","v":{"$error":"#REF!"}},{"$f":"AND('Basic Financial'!#REF!,\"FEl9cnRKbcY=\")","v":{"$error":"#REF!"}},{"$f":"AND('Basic Financial'!#REF!,\"FEl9cnRKbcc=\")","v":{"$error":"#REF!"}},{"$f":"AND('Basic Financial'!#REF!,\"FEl9cnRKbcg=\")","v":{"$error":"#REF!"}},{"$f":"AND('Basic Financial'!#REF!,\"FEl9cnRKbck=\")","v":{"$error":"#REF!"}},{"$f":"IF('Basic Financial'!55:55,\"FEl9cnRKbco=\",0)","v":0},{"$f":"AND('Basic Financial'!A55,\"FEl9cnRKbcs=\")","v":{"$error":"#VALUE!"}},{"$f":"AND('Basic Financial'!B55,\"FEl9cnRKbcw=\")","v":{"$error":"#VALUE!"}},{"$f":"AND('Basic Financial'!#REF!,\"FEl9cnRKbc0=\")","v":{"$error":"#REF!"}},{"$f":"AND('Basic Financial'!C55,\"FEl9cnRKbc4=\")","v":{"$error":"#VALUE!"}},{"$f":"AND('Basic Financial'!E55,\"FEl9cnRKbc8=\")","v":{"$error":"#VALUE!"}},{"$f":"AND('Basic Financial'!F55,\"FEl9cnRKbdA=\")","v":{"$error":"#VALUE!"}},{"$f":"AND('Basic Financial'!#REF!,\"FEl9cnRKbdE=\")","v":{"$error":"#REF!"}},{"$f":"AND('Basic Financial'!#REF!,\"FEl9cnRKbdI=\")","v":{"$error":"#REF!"}},{"$f":"AND('Basic Financial'!#REF!,\"FEl9cnRKbdM=\")","v":{"$error":"#REF!"}},{"$f":"AND('Basic Financial'!#REF!,\"FEl9cnRKbdQ=\")","v":{"$error":"#REF!"}},{"$f":"AND('Basic Financial'!#REF!,\"FEl9cnRKbdU=\")","v":{"$error":"#REF!"}},{"$f":"AND('Basic Financial'!L55,\"FEl9cnRKbdY=\")","v":{"$error":"#VALUE!"}},{"$f":"AND('Basic Financial'!M55,\"FEl9cnRKbdc=\")","v":{"$error":"#VALUE!"}},{"$f":"IF('Basic Financial'!56:56,\"FEl9cnRKbdg=\",0)","v":0},{"$f":"AND('Basic Financial'!A56,\"FEl9cnRKbdk=\")","v":{"$error":"#VALUE!"}},{"$f":"AND('Basic Financial'!B56,\"FEl9cnRKbdo=\")","v":{"$error":"#VALUE!"}},{"$f":"AND('Basic Financial'!#REF!,\"FEl9cnRKbds=\")","v":{"$error":"#REF!"}},{"$f":"AND('Basic Financial'!C56,\"FEl9cnRKbdw=\")","v":{"$error":"#VALUE!"}},{"$f":"AND('Basic Financial'!E56,\"FEl9cnRKbd0=\")","v":{"$error":"#VALUE!"}},{"$f":"AND('Basic Financial'!F56,\"FEl9cnRKbd4=\")","v":{"$error":"#VALUE!"}},{"$f":"AND('Basic Financial'!#REF!,\"FEl9cnRKbd8=\")","v":{"$error":"#REF!"}},{"$f":"AND('Basic Financial'!#REF!,\"FEl9cnRKbeA=\")","v":{"$error":"#REF!"}},{"$f":"AND('Basic Financial'!#REF!,\"FEl9cnRKbeE=\")","v":{"$error":"#REF!"}},{"$f":"AND('Basic Financial'!#REF!,\"FEl9cnRKbeI=\")","v":{"$error":"#REF!"}},{"$f":"AND('Basic Financial'!#REF!,\"FEl9cnRKbeM=\")","v":{"$error":"#REF!"}},{"$f":"AND('Basic Financial'!L56,\"FEl9cnRKbeQ=\")","v":{"$error":"#VALUE!"}},{"$f":"AND('Basic Financial'!M56,\"FEl9cnRKbeU=\")","v":{"$error":"#VALUE!"}},{"$f":"IF('Basic Financial'!57:57,\"FEl9cnRKbeY=\",0)","v":0},{"$f":"AND('Basic Financial'!A57,\"FEl9cnRKbec=\")","v":{"$error":"#VALUE!"}},{"$f":"AND('Basic Financial'!B57,\"FEl9cnRKbeg=\")","v":{"$error":"#VALUE!"}},{"$f":"AND('Basic Financial'!#REF!,\"FEl9cnRKbek=\")","v":{"$error":"#REF!"}},{"$f":"AND('Basic Financial'!C57,\"FEl9cnRKbeo=\")","v":{"$error":"#VALUE!"}},{"$f":"AND('Basic Financial'!E57,\"FEl9cnRKbes=\")","v":{"$error":"#VALUE!"}},{"$f":"AND('Basic Financial'!F57,\"FEl9cnRKbew=\")","v":{"$error":"#VALUE!"}},{"$f":"AND('Basic Financial'!#REF!,\"FEl9cnRKbe0=\")","v":{"$error":"#REF!"}},{"$f":"AND('Basic Financial'!#REF!,\"FEl9cnRKbe4=\")","v":{"$error":"#REF!"}},{"$f":"AND('Basic Financial'!#REF!,\"FEl9cnRKbe8=\")","v":{"$error":"#REF!"}},{"$f":"AND('Basic Financial'!#REF!,\"FEl9cnRKbfA=\")","v":{"$error":"#REF!"}},{"$f":"AND('Basic Financial'!#REF!,\"FEl9cnRKbfE=\")","v":{"$error":"#REF!"}},{"$f":"AND('Basic Financial'!L57,\"FEl9cnRKbfI=\")","v":{"$error":"#VALUE!"}},{"$f":"AND('Basic Financial'!M57,\"FEl9cnRKbfM=\")","v":{"$error":"#VALUE!"}},{"$f":"IF('Basic Financial'!58:58,\"FEl9cnRKbfQ=\",0)","v":0},{"$f":"AND('Basic Financial'!A58,\"FEl9cnRKbfU=\")","v":{"$error":"#VALUE!"}},{"$f":"AND('Basic Financial'!B58,\"FEl9cnRKbfY=\")","v":{"$error":"#VALUE!"}},{"$f":"AND('Basic Financial'!#REF!,\"FEl9cnRKbfc=\")","v":{"$error":"#REF!"}},{"$f":"AND('Basic Financial'!C58,\"FEl9cnRKbfg=\")","v":{"$error":"#VALUE!"}},{"$f":"AND('Basic Financial'!E58,\"FEl9cnRKbfk=\")","v":{"$error":"#VALUE!"}},{"$f":"AND('Basic Financial'!#REF!,\"FEl9cnRKbfo=\")","v":{"$error":"#REF!"}},{"$f":"AND('Basic Financial'!#REF!,\"FEl9cnRKbfs=\")","v":{"$error":"#REF!"}},{"$f":"AND('Basic Financial'!#REF!,\"FEl9cnRKbfw=\")","v":{"$error":"#REF!"}},{"$f":"AND('Basic Financial'!#REF!,\"FEl9cnRKbf0=\")","v":{"$error":"#REF!"}},{"$f":"AND('Basic Financial'!#REF!,\"FEl9cnRKbf4=\")","v":{"$error":"#REF!"}},{"$f":"AND('Basic Financial'!#REF!,\"FEl9cnRKbf8=\")","v":{"$error":"#REF!"}}]
[{"$f":"AND('Basic Financial'!L58,\"IaI1Dl5/tgA=\")","v":{"$error":"#VALUE!"}},{"$f":"AND('Basic Financial'!M58,\"IaI1Dl5/tgE=\")","v":{"$error":"#VALUE!"}},{"$f":"IF('Basic Financial'!62:62,\"IaI1Dl5/tgI=\",0)","v":0},{"$f":"AND('Basic Financial'!A62,\"IaI1Dl5/tgM=\")","v":{"$error":"#VALUE!"}},{"$f":"AND('Basic Financial'!B62,\"IaI1Dl5/tgQ=\")","v":{"$error":"#VALUE!"}},{"$f":"AND('Basic Financial'!C62,\"IaI1Dl5/tgU=\")","v":{"$error":"#VALUE!"}},{"$f":"AND('Basic Financial'!D62,\"IaI1Dl5/tgY=\")","v":{"$error":"#VALUE!"}},{"$f":"AND('Basic Financial'!E62,\"IaI1Dl5/tgc=\")","v":{"$error":"#VALUE!"}},{"$f":"AND('Basic Financial'!#REF!,\"IaI1Dl5/tgg=\")","v":{"$error":"#REF!"}},{"$f":"AND('Basic Financial'!#REF!,\"IaI1Dl5/tgk=\")","v":{"$error":"#REF!"}},{"$f":"AND('Basic Financial'!#REF!,\"IaI1Dl5/tgo=\")","v":{"$error":"#REF!"}},{"$f":"AND('Basic Financial'!#REF!,\"IaI1Dl5/tgs=\")","v":{"$error":"#REF!"}},{"$f":"AND('Basic Financial'!#REF!,\"IaI1Dl5/tgw=\")","v":{"$error":"#REF!"}},{"$f":"AND('Basic Financial'!#REF!,\"IaI1Dl5/tg0=\")","v":{"$error":"#REF!"}},{"$f":"AND('Basic Financial'!L62,\"IaI1Dl5/tg4=\")","v":{"$error":"#VALUE!"}},{"$f":"AND('Basic Financial'!M62,\"IaI1Dl5/tg8=\")","v":{"$error":"#VALUE!"}},{"$f":"IF('Basic Financial'!51:51,\"IaI1Dl5/thA=\",0)","v":0},{"$f":"AND('Basic Financial'!A51,\"IaI1Dl5/thE=\")","v":{"$error":"#VALUE!"}},{"$f":"AND('Basic Financial'!B51,\"IaI1Dl5/thI=\")","v":{"$error":"#VALUE!"}},{"$f":"AND('Basic Financial'!D51,\"IaI1Dl5/thM=\")","v":{"$error":"#VALUE!"}},{"$f":"AND('Basic Financial'!#REF!,\"IaI1Dl5/thQ=\")","v":{"$error":"#REF!"}},{"$f":"AND('Basic Financial'!E51,\"IaI1Dl5/thU=\")","v":{"$error":"#VALUE!"}},{"$f":"AND('Basic Financial'!#REF!,\"IaI1Dl5/thY=\")","v":{"$error":"#REF!"}},{"$f":"AND('Basic Financial'!#REF!,\"IaI1Dl5/thc=\")","v":{"$error":"#REF!"}},{"$f":"AND('Basic Financial'!#REF!,\"IaI1Dl5/thg=\")","v":{"$error":"#REF!"}},{"$f":"AND('Basic Financial'!#REF!,\"IaI1Dl5/thk=\")","v":{"$error":"#REF!"}},{"$f":"AND('Basic Financial'!#REF!,\"IaI1Dl5/tho=\")","v":{"$error":"#REF!"}},{"$f":"AND('Basic Financial'!#REF!,\"IaI1Dl5/ths=\")","v":{"$error":"#REF!"}},{"$f":"AND('Basic Financial'!L51,\"IaI1Dl5/thw=\")","v":{"$error":"#VALUE!"}},{"$f":"AND('Basic Financial'!M51,\"IaI1Dl5/th0=\")","v":{"$error":"#VALUE!"}},{"$f":"IF('Basic Financial'!52:52,\"IaI1Dl5/th4=\",0)","v":0},{"$f":"AND('Basic Financial'!A52,\"IaI1Dl5/th8=\")","v":{"$error":"#VALUE!"}},{"$f":"AND('Basic Financial'!B52,\"IaI1Dl5/tiA=\")","v":{"$error":"#VALUE!"}},{"$f":"AND('Basic Financial'!D52,\"IaI1Dl5/tiE=\")","v":{"$error":"#VALUE!"}},{"$f":"AND('Basic Financial'!#REF!,\"IaI1Dl5/tiI=\")","v":{"$error":"#REF!"}},{"$f":"AND('Basic Financial'!E52,\"IaI1Dl5/tiM=\")","v":{"$error":"#VALUE!"}},{"$f":"AND('Basic Financial'!#REF!,\"IaI1Dl5/tiQ=\")","v":{"$error":"#REF!"}},{"$f":"AND('Basic Financial'!#REF!,\"IaI1Dl5/tiU=\")","v":{"$error":"#REF!"}},{"$f":"AND('Basic Financial'!#REF!,\"IaI1Dl5/tiY=\")","v":{"$error":"#REF!"}},{"$f":"AND('Basic Financial'!#REF!,\"IaI1Dl5/tic=\")","v":{"$error":"#REF!"}},{"$f":"AND('Basic Financial'!#REF!,\"IaI1Dl5/tig=\")","v":{"$error":"#REF!"}},{"$f":"AND('Basic Financial'!#REF!,\"IaI1Dl5/tik=\")","v":{"$error":"#REF!"}},{"$f":"AND('Basic Financial'!L52,\"IaI1Dl5/tio=\")","v":{"$error":"#VALUE!"}},{"$f":"AND('Basic Financial'!M52,\"IaI1Dl5/tis=\")","v":{"$error":"#VALUE!"}},{"$f":"IF('Basic Financial'!#REF!,\"IaI1Dl5/tiw=\",0)","v":{"$error":"#REF!"}},{"$f":"AND('Basic Financial'!#REF!,\"IaI1Dl5/ti0=\")","v":{"$error":"#REF!"}},{"$f":"AND('Basic Financial'!#REF!,\"IaI1Dl5/ti4=\")","v":{"$error":"#REF!"}},{"$f":"AND('Basic Financial'!#REF!,\"IaI1Dl5/ti8=\")","v":{"$error":"#REF!"}},{"$f":"AND('Basic Financial'!#REF!,\"IaI1Dl5/tjA=\")","v":{"$error":"#REF!"}},{"$f":"AND('Basic Financial'!#REF!,\"IaI1Dl5/tjE=\")","v":{"$error":"#REF!"}},{"$f":"AND('Basic Financial'!#REF!,\"IaI1Dl5/tjI=\")","v":{"$error":"#REF!"}},{"$f":"AND('Advanced Financial'!A26,\"IaI1Dl5/tjM=\")","v":{"$error":"#VALUE!"}},{"$f":"AND('Advanced Financial'!B26,\"IaI1Dl5/tjQ=\")","v":{"$error":"#VALUE!"}},{"$f":"AND('Basic Financial'!#REF!,\"IaI1Dl5/tjU=\")","v":{"$error":"#REF!"}},{"$f":"AND('Basic Financial'!#REF!,\"IaI1Dl5/tjY=\")","v":{"$error":"#REF!"}},{"$f":"AND('Basic Financial'!#REF!,\"IaI1Dl5/tjc=\")","v":{"$error":"#REF!"}},{"$f":"AND('Basic Financial'!#REF!,\"IaI1Dl5/tjg=\")","v":{"$error":"#REF!"}},{"$f":"AND('Basic Financial'!#REF!,\"IaI1Dl5/tjk=\")","v":{"$error":"#REF!"}},{"$f":"IF('Physical Inputs'!81:81,\"IaI1Dl5/tjo=\",0)","v":0},{"$f":"AND('Physical Inputs'!A80,\"IaI1Dl5/tjs=\")","v":{"$error":"#VALUE!"}},{"$f":"AND('Physical Inputs'!B80,\"IaI1Dl5/tjw=\")","v":{"$error":"#VALUE!"}},{"$f":"AND('Physical Inputs'!C80,\"IaI1Dl5/tj0=\")","v":{"$error":"#VALUE!"}},{"$f":"AND('Physical Inputs'!D80,\"IaI1Dl5/tj4=\")","v":{"$error":"#VALUE!"}},{"$f":"AND('Physical Inputs'!#REF!,\"IaI1Dl5/tj8=\")","v":{"$error":"#REF!"}},{"$f":"AND('Basic Financial'!#REF!,\"IaI1Dl5/tkA=\")","v":{"$error":"#REF!"}},{"$f":"AND('Basic Financial'!#REF!,\"IaI1Dl5/tkE=\")","v":{"$error":"#REF!"}},{"$f":"AND('Basic Financial'!#REF!,\"IaI1Dl5/tkI=\")","v":{"$error":"#REF!"}},{"$f":"AND('Physical Inputs'!G81,\"IaI1Dl5/tkM=\")","v":{"$error":"#VALUE!"}},{"$f":"AND('Physical Inputs'!H81,\"IaI1Dl5/tkQ=\")","v":{"$error":"#VALUE!"}},{"$f":"AND('Physical Inputs'!I81,\"IaI1Dl5/tkU=\")","v":{"$error":"#VALUE!"}},{"$f":"AND('Physical Inputs'!J81,\"IaI1Dl5/tkY=\")","v":{"$error":"#VALUE!"}},{"$f":"AND('Physical Inputs'!K81,\"IaI1Dl5/tkc=\")","v":{"$error":"#VALUE!"}},{"$f":"IF('Basic Financial'!#REF!,\"IaI1Dl5/tkg=\",0)","v":{"$error":"#REF!"}},{"$f":"AND('Basic Financial'!#REF!,\"IaI1Dl5/tkk=\")","v":{"$error":"#REF!"}},{"$f":"AND('Basic Financial'!#REF!,\"IaI1Dl5/tko=\")","v":{"$error":"#REF!"}},{"$f":"AND('Basic Financial'!#REF!,\"IaI1Dl5/tks=\")","v":{"$error":"#REF!"}},{"$f":"AND('Basic Financial'!#REF!,\"IaI1Dl5/tkw=\")","v":{"$error":"#REF!"}},{"$f":"AND('Basic Financial'!#REF!,\"IaI1Dl5/tk0=\")","v":{"$error":"#REF!"}},{"$f":"AND('Basic Financial'!#REF!,\"IaI1Dl5/tk4=\")","v":{"$error":"#REF!"}},{"$f":"AND('Basic Financial'!#REF!,\"IaI1Dl5/tk8=\")","v":{"$error":"#REF!"}},{"$f":"AND('Basic Financial'!#REF!,\"IaI1Dl5/tlA=\")","v":{"$error":"#REF!"}},{"$f":"AND('Basic Financial'!#REF!,\"IaI1Dl5/tlE=\")","v":{"$error":"#REF!"}},{"$f":"AND('Basic Financial'!#REF!,\"IaI1Dl5/tlI=\")","v":{"$error":"#REF!"}},{"$f":"AND('Basic Financial'!#REF!,\"IaI1Dl5/tlM=\")","v":{"$error":"#REF!"}},{"$f":"AND('Basic Financial'!#REF!,\"IaI1Dl5/tlQ=\")","v":{"$error":"#REF!"}},{"$f":"AND('Basic Financial'!#REF!,\"IaI1Dl5/tlU=\")","v":{"$error":"#REF!"}},{"$f":"IF('Basic Financial'!#REF!,\"IaI1Dl5/tlY=\",0)","v":{"$error":"#REF!"}},{"$f":"AND('Basic Financial'!#REF!,\"IaI1Dl5/tlc=\")","v":{"$error":"#REF!"}},{"$f":"AND('Basic Financial'!#REF!,\"IaI1Dl5/tlg=\")","v":{"$error":"#REF!"}},{"$f":"AND('Basic Financial'!#REF!,\"IaI1Dl5/tlk=\")","v":{"$error":"#REF!"}},{"$f":"AND('Basic Financial'!#REF!,\"IaI1Dl5/tlo=\")","v":{"$error":"#REF!"}},{"$f":"AND('Basic Financial'!#REF!,\"IaI1Dl5/tls=\")","v":{"$error":"#REF!"}},{"$f":"AND('Basic Financial'!#REF!,\"IaI1Dl5/tlw=\")","v":{"$error":"#REF!"}},{"$f":"AND('Basic Financial'!#REF!,\"IaI1Dl5/tl0=\")","v":{"$error":"#REF!"}},{"$f":"AND('Basic Financial'!#REF!,\"IaI1Dl5/tl4=\")","v":{"$error":"#REF!"}},{"$f":"AND('Basic Financial'!#REF!,\"IaI1Dl5/tl8=\")","v":{"$error":"#REF!"}},{"$f":"AND('Basic Financial'!#REF!,\"IaI1Dl5/tmA=\")","v":{"$error":"#REF!"}},{"$f":"AND('Basic Financial'!#REF!,\"IaI1Dl5/tmE=\")","v":{"$error":"#REF!"}},{"$f":"AND('Basic Financial'!#REF!,\"IaI1Dl5/tmI=\")","v":{"$error":"#REF!"}},{"$f":"AND('Basic Financial'!#REF!,\"IaI1Dl5/tmM=\")","v":{"$error":"#REF!"}},{"$f":"IF('Basic Financial'!#REF!,\"IaI1Dl5/tmQ=\",0)","v":{"$error":"#REF!"}},{"$f":"AND('Basic Financial'!#REF!,\"IaI1Dl5/tmU=\")","v":{"$error":"#REF!"}},{"$f":"AND('Basic Financial'!#REF!,\"IaI1Dl5/tmY=\")","v":{"$error":"#REF!"}},{"$f":"AND('Basic Financial'!#REF!,\"IaI1Dl5/tmc=\")","v":{"$error":"#REF!"}},{"$f":"AND('Basic Financial'!#REF!,\"IaI1Dl5/tmg=\")","v":{"$error":"#REF!"}},{"$f":"AND('Basic Financial'!#REF!,\"IaI1Dl5/tmk=\")","v":{"$error":"#REF!"}},{"$f":"AND('Basic Financial'!#REF!,\"IaI1Dl5/tmo=\")","v":{"$error":"#REF!"}},{"$f":"AND('Basic Financial'!#REF!,\"IaI1Dl5/tms=\")","v":{"$error":"#REF!"}},{"$f":"AND('Basic Financial'!#REF!,\"IaI1Dl5/tmw=\")","v":{"$error":"#REF!"}},{"$f":"AND('Basic Financial'!#REF!,\"IaI1Dl5/tm0=\")","v":{"$error":"#REF!"}},{"$f":"AND('Basic Financial'!#REF!,\"IaI1Dl5/tm4=\")","v":{"$error":"#REF!"}},{"$f":"AND('Basic Financial'!#REF!,\"IaI1Dl5/tm8=\")","v":{"$error":"#REF!"}},{"$f":"AND('Basic Financial'!#REF!,\"IaI1Dl5/tnA=\")","v":{"$error":"#REF!"}},{"$f":"AND('Basic Financial'!#REF!,\"IaI1Dl5/tnE=\")","v":{"$error":"#REF!"}},{"$f":"IF('Basic Financial'!#REF!,\"IaI1Dl5/tnI=\",0)","v":{"$error":"#REF!"}},{"$f":"AND('Basic Financial'!#REF!,\"IaI1Dl5/tnM=\")","v":{"$error":"#REF!"}},{"$f":"AND('Basic Financial'!#REF!,\"IaI1Dl5/tnQ=\")","v":{"$error":"#REF!"}},{"$f":"AND('Basic Financial'!#REF!,\"IaI1Dl5/tnU=\")","v":{"$error":"#REF!"}},{"$f":"AND('Basic Financial'!#REF!,\"IaI1Dl5/tnY=\")","v":{"$error":"#REF!"}},{"$f":"AND('Basic Financial'!#REF!,\"IaI1Dl5/tnc=\")","v":{"$error":"#REF!"}},{"$f":"AND('Basic Financial'!#REF!,\"IaI1Dl5/tng=\")","v":{"$error":"#REF!"}},{"$f":"AND('Basic Financial'!#REF!,\"IaI1Dl5/tnk=\")","v":{"$error":"#REF!"}},{"$f":"AND('Basic Financial'!#REF!,\"IaI1Dl5/tno=\")","v":{"$error":"#REF!"}},{"$f":"AND('Basic Financial'!#REF!,\"IaI1Dl5/tns=\")","v":{"$error":"#REF!"}},{"$f":"AND('Basic Financial'!#REF!,\"IaI1Dl5/tnw=\")","v":{"$error":"#REF!"}},{"$f":"AND('Basic Financial'!#REF!,\"IaI1Dl5/tn0=\")","v":{"$error":"#REF!"}},{"$f":"AND('Basic Financial'!#REF!,\"IaI1Dl5/tn4=\")","v":{"$error":"#REF!"}},{"$f":"AND('Basic Financial'!#REF!,\"IaI1Dl5/tn8=\")","v":{"$error":"#REF!"}},{"$f":"IF('Basic Financial'!#REF!,\"IaI1Dl5/toA=\",0)","v":{"$error":"#REF!"}},{"$f":"AND('Basic Financial'!#REF!,\"IaI1Dl5/toE=\")","v":{"$error":"#REF!"}},{"$f":"AND('Basic Financial'!#REF!,\"IaI1Dl5/toI=\")","v":{"$error":"#REF!"}},{"$f":"AND('Basic Financial'!#REF!,\"IaI1Dl5/toM=\")","v":{"$error":"#REF!"}},{"$f":"AND('Basic Financial'!#REF!,\"IaI1Dl5/toQ=\")","v":{"$error":"#REF!"}},{"$f":"AND('Basic Financial'!#REF!,\"IaI1Dl5/toU=\")","v":{"$error":"#REF!"}},{"$f":"AND('Basic Financial'!#REF!,\"IaI1Dl5/toY=\")","v":{"$error":"#REF!"}},{"$f":"AND('Basic Financial'!#REF!,\"IaI1Dl5/toc=\")","v":{"$error":"#REF!"}},{"$f":"AND('Basic Financial'!#REF!,\"IaI1Dl5/tog=\")","v":{"$error":"#REF!"}},{"$f":"AND('Basic Financial'!#REF!,\"IaI1Dl5/tok=\")","v":{"$error":"#REF!"}},{"$f":"AND('Basic Financial'!#REF!,\"IaI1Dl5/too=\")","v":{"$error":"#REF!"}},{"$f":"AND('Basic Financial'!#REF!,\"IaI1Dl5/tos=\")","v":{"$error":"#REF!"}},{"$f":"AND('Basic Financial'!#REF!,\"IaI1Dl5/tow=\")","v":{"$error":"#REF!"}},{"$f":"AND('Basic Financial'!#REF!,\"IaI1Dl5/to0=\")","v":{"$error":"#REF!"}},{"$f":"IF('Basic Financial'!#REF!,\"IaI1Dl5/to4=\",0)","v":{"$error":"#REF!"}},{"$f":"AND('Basic Financial'!#REF!,\"IaI1Dl5/to8=\")","v":{"$error":"#REF!"}},{"$f":"AND('Basic Financial'!#REF!,\"IaI1Dl5/tpA=\")","v":{"$error":"#REF!"}},{"$f":"AND('Basic Financial'!#REF!,\"IaI1Dl5/tpE=\")","v":{"$error":"#REF!"}},{"$f":"AND('Basic Financial'!#REF!,\"IaI1Dl5/tpI=\")","v":{"$error":"#REF!"}},{"$f":"AND('Basic Financial'!#REF!,\"IaI1Dl5/tpM=\")","v":{"$error":"#REF!"}},{"$f":"AND('Basic Financial'!#REF!,\"IaI1Dl5/tpQ=\")","v":{"$error":"#REF!"}},{"$f":"AND('Basic Financial'!#REF!,\"IaI1Dl5/tpU=\")","v":{"$error":"#REF!"}},{"$f":"AND('Basic Financial'!#REF!,\"IaI1Dl5/tpY=\")","v":{"$error":"#REF!"}},{"$f":"AND('Basic Financial'!#REF!,\"IaI1Dl5/tpc=\")","v":{"$error":"#REF!"}},{"$f":"AND('Basic Financial'!#REF!,\"IaI1Dl5/tpg=\")","v":{"$error":"#REF!"}},{"$f":"AND('Basic Financial'!#REF!,\"IaI1Dl5/tpk=\")","v":{"$error":"#REF!"}},{"$f":"AND('Basic Financial'!#REF!,\"IaI1Dl5/tpo=\")","v":{"$error":"#REF!"}},{"$f":"AND('Basic Financial'!#REF!,\"IaI1Dl5/tps=\")","v":{"$error":"#REF!"}},{"$f":"IF('Basic Financial'!#REF!,\"IaI1Dl5/tpw=\",0)","v":{"$error":"#REF!"}},{"$f":"AND('Basic Financial'!#REF!,\"IaI1Dl5/tp0=\")","v":{"$error":"#REF!"}},{"$f":"AND('Basic Financial'!#REF!,\"IaI1Dl5/tp4=\")","v":{"$error":"#REF!"}},{"$f":"AND('Basic Financial'!#REF!,\"IaI1Dl5/tp8=\")","v":{"$error":"#REF!"}},{"$f":"AND('Basic Financial'!#REF!,\"IaI1Dl5/tqA=\")","v":{"$error":"#REF!"}},{"$f":"AND('Basic Financial'!#REF!,\"IaI1Dl5/tqE=\")","v":{"$error":"#REF!"}},{"$f":"AND('Basic Financial'!#REF!,\"IaI1Dl5/tqI=\")","v":{"$error":"#REF!"}},{"$f":"AND('Basic Financial'!#REF!,\"IaI1Dl5/tqM=\")","v":{"$error":"#REF!"}},{"$f":"AND('Basic Financial'!#REF!,\"IaI1Dl5/tqQ=\")","v":{"$error":"#REF!"}},{"$f":"AND('Basic Financial'!#REF!,\"IaI1Dl5/tqU=\")","v":{"$error":"#REF!"}},{"$f":"AND('Basic Financial'!#REF!,\"IaI1Dl5/tqY=\")","v":{"$error":"#REF!"}},{"$f":"AND('Basic Financial'!#REF!,\"IaI1Dl5/tqc=\")","v":{"$error":"#REF!"}},{"$f":"AND('Basic Financial'!#REF!,\"IaI1Dl5/tqg=\")","v":{"$error":"#REF!"}},{"$f":"AND('Basic Financial'!#REF!,\"IaI1Dl5/tqk=\")","v":{"$error":"#REF!"}},{"$f":"IF('Basic Financial'!#REF!,\"IaI1Dl5/tqo=\",0)","v":{"$error":"#REF!"}},{"$f":"AND('Basic Financial'!#REF!,\"IaI1Dl5/tqs=\")","v":{"$error":"#REF!"}},{"$f":"AND('Basic Financial'!#REF!,\"IaI1Dl5/tqw=\")","v":{"$error":"#REF!"}},{"$f":"AND('Basic Financial'!#REF!,\"IaI1Dl5/tq0=\")","v":{"$error":"#REF!"}},{"$f":"AND('Basic Financial'!#REF!,\"IaI1Dl5/tq4=\")","v":{"$error":"#REF!"}},{"$f":"AND('Basic Financial'!#REF!,\"IaI1Dl5/tq8=\")","v":{"$error":"#REF!"}},{"$f":"AND('Basic Financial'!#REF!,\"IaI1Dl5/trA=\")","v":{"$error":"#REF!"}},{"$f":"AND('Basic Financial'!#REF!,\"IaI1Dl5/trE=\")","v":{"$error":"#REF!"}},{"$f":"AND('Basic Financial'!#REF!,\"IaI1Dl5/trI=\")","v":{"$error":"#REF!"}},{"$f":"AND('Basic Financial'!#REF!,\"IaI1Dl5/trM=\")","v":{"$error":"#REF!"}},{"$f":"AND('Basic Financial'!#REF!,\"IaI1Dl5/trQ=\")","v":{"$error":"#REF!"}},{"$f":"AND('Basic Financial'!#REF!,\"IaI1Dl5/trU=\")","v":{"$error":"#REF!"}},{"$f":"AND('Basic Financial'!#REF!,\"IaI1Dl5/trY=\")","v":{"$error":"#REF!"}},{"$f":"AND('Basic Financial'!#REF!,\"IaI1Dl5/trc=\")","v":{"$error":"#REF!"}},{"$f":"IF('Basic Financial'!#REF!,\"IaI1Dl5/trg=\",0)","v":{"$error":"#REF!"}},{"$f":"AND('Basic Financial'!#REF!,\"IaI1Dl5/trk=\")","v":{"$error":"#REF!"}},{"$f":"AND('Basic Financial'!#REF!,\"IaI1Dl5/tro=\")","v":{"$error":"#REF!"}},{"$f":"AND('Basic Financial'!#REF!,\"IaI1Dl5/trs=\")","v":{"$error":"#REF!"}},{"$f":"AND('Basic Financial'!#REF!,\"IaI1Dl5/trw=\")","v":{"$error":"#REF!"}},{"$f":"AND('Basic Financial'!#REF!,\"IaI1Dl5/tr0=\")","v":{"$error":"#REF!"}},{"$f":"AND('Basic Financial'!#REF!,\"IaI1Dl5/tr4=\")","v":{"$error":"#REF!"}},{"$f":"AND('Basic Financial'!#REF!,\"IaI1Dl5/tr8=\")","v":{"$error":"#REF!"}},{"$f":"AND('Basic Financial'!#REF!,\"IaI1Dl5/tsA=\")","v":{"$error":"#REF!"}},{"$f":"AND('Basic Financial'!#REF!,\"IaI1Dl5/tsE=\")","v":{"$error":"#REF!"}},{"$f":"AND('Basic Financial'!#REF!,\"IaI1Dl5/tsI=\")","v":{"$error":"#REF!"}},{"$f":"AND('Basic Financial'!#REF!,\"IaI1Dl5/tsM=\")","v":{"$error":"#REF!"}},{"$f":"AND('Basic Financial'!#REF!,\"IaI1Dl5/tsQ=\")","v":{"$error":"#REF!"}},{"$f":"AND('Basic Financial'!#REF!,\"IaI1Dl5/tsU=\")","v":{"$error":"#REF!"}},{"$f":"IF('Basic Financial'!#REF!,\"IaI1Dl5/tsY=\",0)","v":{"$error":"#REF!"}},{"$f":"AND('Basic Financial'!#REF!,\"IaI1Dl5/tsc=\")","v":{"$error":"#REF!"}},{"$f":"AND('Basic Financial'!#REF!,\"IaI1Dl5/tsg=\")","v":{"$error":"#REF!"}},{"$f":"AND('Basic Financial'!#REF!,\"IaI1Dl5/tsk=\")","v":{"$error":"#REF!"}},{"$f":"AND('Basic Financial'!#REF!,\"IaI1Dl5/tso=\")","v":{"$error":"#REF!"}},{"$f":"AND('Basic Financial'!#REF!,\"IaI1Dl5/tss=\")","v":{"$error":"#REF!"}},{"$f":"AND('Basic Financial'!#REF!,\"IaI1Dl5/tsw=\")","v":{"$error":"#REF!"}},{"$f":"AND('Basic Financial'!#REF!,\"IaI1Dl5/ts0=\")","v":{"$error":"#REF!"}},{"$f":"AND('Basic Financial'!#REF!,\"IaI1Dl5/ts4=\")","v":{"$error":"#REF!"}},{"$f":"AND('Basic Financial'!#REF!,\"IaI1Dl5/ts8=\")","v":{"$error":"#REF!"}},{"$f":"AND('Basic Financial'!#REF!,\"IaI1Dl5/ttA=\")","v":{"$error":"#REF!"}},{"$f":"AND('Basic Financial'!#REF!,\"IaI1Dl5/ttE=\")","v":{"$error":"#REF!"}},{"$f":"AND('Basic Financial'!#REF!,\"IaI1Dl5/ttI=\")","v":{"$error":"#REF!"}},{"$f":"AND('Basic Financial'!#REF!,\"IaI1Dl5/ttM=\")","v":{"$error":"#REF!"}},{"$f":"IF('Basic Financial'!#REF!,\"IaI1Dl5/ttQ=\",0)","v":{"$error":"#REF!"}},{"$f":"AND('Basic Financial'!#REF!,\"IaI1Dl5/ttU=\")","v":{"$error":"#REF!"}},{"$f":"AND('Basic Financial'!#REF!,\"IaI1Dl5/ttY=\")","v":{"$error":"#REF!"}},{"$f":"AND('Basic Financial'!#REF!,\"IaI1Dl5/ttc=\")","v":{"$error":"#REF!"}},{"$f":"AND('Basic Financial'!#REF!,\"IaI1Dl5/ttg=\")","v":{"$error":"#REF!"}},{"$f":"AND('Basic Financial'!#REF!,\"IaI1Dl5/ttk=\")","v":{"$error":"#REF!"}},{"$f":"AND('Basic Financial'!#REF!,\"IaI1Dl5/tto=\")","v":{"$error":"#REF!"}},{"$f":"AND('Basic Financial'!#REF!,\"IaI1Dl5/tts=\")","v":{"$error":"#REF!"}},{"$f":"AND('Basic Financial'!#REF!,\"IaI1Dl5/ttw=\")","v":{"$error":"#REF!"}},{"$f":"AND('Basic Financial'!#REF!,\"IaI1Dl5/tt0=\")","v":{"$error":"#REF!"}},{"$f":"AND('Basic Financial'!#REF!,\"IaI1Dl5/tt4=\")","v":{"$error":"#REF!"}},{"$f":"AND('Basic Financial'!#REF!,\"IaI1Dl5/tt8=\")","v":{"$error":"#REF!"}},{"$f":"AND('Basic Financial'!#REF!,\"IaI1Dl5/tuA=\")","v":{"$error":"#REF!"}},{"$f":"AND('Basic Financial'!#REF!,\"IaI1Dl5/tuE=\")","v":{"$error":"#REF!"}},{"$f":"IF('Basic Financial'!#REF!,\"IaI1Dl5/tuI=\",0)","v":{"$error":"#REF!"}},{"$f":"AND('Basic Financial'!#REF!,\"IaI1Dl5/tuM=\")","v":{"$error":"#REF!"}},{"$f":"AND('Basic Financial'!#REF!,\"IaI1Dl5/tuQ=\")","v":{"$error":"#REF!"}},{"$f":"AND('Basic Financial'!#REF!,\"IaI1Dl5/tuU=\")","v":{"$error":"#REF!"}},{"$f":"AND('Basic Financial'!#REF!,\"IaI1Dl5/tuY=\")","v":{"$error":"#REF!"}},{"$f":"AND('Basic Financial'!#REF!,\"IaI1Dl5/tuc=\")","v":{"$error":"#REF!"}},{"$f":"AND('Basic Financial'!#REF!,\"IaI1Dl5/tug=\")","v":{"$error":"#REF!"}},{"$f":"AND('Basic Financial'!#REF!,\"IaI1Dl5/tuk=\")","v":{"$error":"#REF!"}},{"$f":"AND('Basic Financial'!#REF!,\"IaI1Dl5/tuo=\")","v":{"$error":"#REF!"}},{"$f":"AND('Basic Financial'!#REF!,\"IaI1Dl5/tus=\")","v":{"$error":"#REF!"}},{"$f":"AND('Basic Financial'!#REF!,\"IaI1Dl5/tuw=\")","v":{"$error":"#REF!"}},{"$f":"AND('Basic Financial'!#REF!,\"IaI1Dl5/tu0=\")","v":{"$error":"#REF!"}},{"$f":"AND('Basic Financial'!#REF!,\"IaI1Dl5/tu4=\")","v":{"$error":"#REF!"}},{"$f":"AND('Basic Financial'!#REF!,\"IaI1Dl5/tu8=\")","v":{"$error":"#REF!"}},{"$f":"IF('Basic Financial'!#REF!,\"IaI1Dl5/tvA=\",0)","v":{"$error":"#REF!"}},{"$f":"AND('Basic Financial'!#REF!,\"IaI1Dl5/tvE=\")","v":{"$error":"#REF!"}},{"$f":"AND('Basic Financial'!#REF!,\"IaI1Dl5/tvI=\")","v":{"$error":"#REF!"}},{"$f":"AND('Basic Financial'!#REF!,\"IaI1Dl5/tvM=\")","v":{"$error":"#REF!"}},{"$f":"AND('Basic Financial'!#REF!,\"IaI1Dl5/tvQ=\")","v":{"$error":"#REF!"}},{"$f":"AND('Basic Financial'!#REF!,\"IaI1Dl5/tvU=\")","v":{"$error":"#REF!"}},{"$f":"AND('Basic Financial'!#REF!,\"IaI1Dl5/tvY=\")","v":{"$error":"#REF!"}},{"$f":"AND('Basic Financial'!#REF!,\"IaI1Dl5/tvc=\")","v":{"$error":"#REF!"}},{"$f":"AND('Basic Financial'!#REF!,\"IaI1Dl5/tvg=\")","v":{"$error":"#REF!"}},{"$f":"AND('Basic Financial'!#REF!,\"IaI1Dl5/tvk=\")","v":{"$error":"#REF!"}},{"$f":"AND('Basic Financial'!#REF!,\"IaI1Dl5/tvo=\")","v":{"$error":"#REF!"}},{"$f":"AND('Basic Financial'!#REF!,\"IaI1Dl5/tvs=\")","v":{"$error":"#REF!"}},{"$f":"AND('Basic Financial'!#REF!,\"IaI1Dl5/tvw=\")","v":{"$error":"#REF!"}},{"$f":"AND('Basic Financial'!#REF!,\"IaI1Dl5/tv0=\")","v":{"$error":"#REF!"}},{"$f":"IF('Basic Financial'!#REF!,\"IaI1Dl5/tv4=\",0)","v":{"$error":"#REF!"}},{"$f":"AND('Basic Financial'!#REF!,\"IaI1Dl5/tv8=\")","v":{"$error":"#REF!"}}]
[{"$f":"AND('Basic Financial'!#REF!,\"MxOUwGSJkQA=\")","v":{"$error":"#REF!"}},{"$f":"AND('Basic Financial'!#REF!,\"MxOUwGSJkQE=\")","v":{"$error":"#REF!"}},{"$f":"AND('Basic Financial'!#REF!,\"MxOUwGSJkQI=\")","v":{"$error":"#REF!"}},{"$f":"AND('Basic Financial'!#REF!,\"MxOUwGSJkQM=\")","v":{"$error":"#REF!"}},{"$f":"AND('Basic Financial'!#REF!,\"MxOUwGSJkQQ=\")","v":{"$error":"#REF!"}},{"$f":"AND('Basic Financial'!#REF!,\"MxOUwGSJkQU=\")","v":{"$error":"#REF!"}},{"$f":"AND('Basic Financial'!#REF!,\"MxOUwGSJkQY=\")","v":{"$error":"#REF!"}},{"$f":"AND('Basic Financial'!#REF!,\"MxOUwGSJkQc=\")","v":{"$error":"#REF!"}},{"$f":"AND('Basic Financial'!#REF!,\"MxOUwGSJkQg=\")","v":{"$error":"#REF!"}},{"$f":"AND('Basic Financial'!#REF!,\"MxOUwGSJkQk=\")","v":{"$error":"#REF!"}},{"$f":"AND('Basic Financial'!#REF!,\"MxOUwGSJkQo=\")","v":{"$error":"#REF!"}},{"$f":"AND('Basic Financial'!#REF!,\"MxOUwGSJkQs=\")","v":{"$error":"#REF!"}},{"$f":"IF('Basic Financial'!#REF!,\"MxOUwGSJkQw=\",0)","v":{"$error":"#REF!"}},{"$f":"AND('Basic Financial'!#REF!,\"MxOUwGSJkQ0=\")","v":{"$error":"#REF!"}},{"$f":"AND('Basic Financial'!#REF!,\"MxOUwGSJkQ4=\")","v":{"$error":"#REF!"}},{"$f":"AND('Basic Financial'!#REF!,\"MxOUwGSJkQ8=\")","v":{"$error":"#REF!"}},{"$f":"AND('Basic Financial'!#REF!,\"MxOUwGSJkRA=\")","v":{"$error":"#REF!"}},{"$f":"AND('Basic Financial'!#REF!,\"MxOUwGSJkRE=\")","v":{"$error":"#REF!"}},{"$f":"AND('Basic Financial'!#REF!,\"MxOUwGSJkRI=\")","v":{"$error":"#REF!"}},{"$f":"AND('Basic Financial'!#REF!,\"MxOUwGSJkRM=\")","v":{"$error":"#REF!"}},{"$f":"AND('Basic Financial'!#REF!,\"MxOUwGSJkRQ=\")","v":{"$error":"#REF!"}},{"$f":"AND('Basic Financial'!#REF!,\"MxOUwGSJkRU=\")","v":{"$error":"#REF!"}},{"$f":"AND('Basic Financial'!#REF!,\"MxOUwGSJkRY=\")","v":{"$error":"#REF!"}},{"$f":"AND('Basic Financial'!#REF!,\"MxOUwGSJkRc=\")","v":{"$error":"#REF!"}},{"$f":"AND('Basic Financial'!#REF!,\"MxOUwGSJkRg=\")","v":{"$error":"#REF!"}},{"$f":"AND('Basic Financial'!#REF!,\"MxOUwGSJkRk=\")","v":{"$error":"#REF!"}},{"$f":"IF('Basic Financial'!#REF!,\"MxOUwGSJkRo=\",0)","v":{"$error":"#REF!"}},{"$f":"AND('Basic Financial'!#REF!,\"MxOUwGSJkRs=\")","v":{"$error":"#REF!"}},{"$f":"AND('Basic Financial'!#REF!,\"MxOUwGSJkRw=\")","v":{"$error":"#REF!"}},{"$f":"AND('Basic Financial'!#REF!,\"MxOUwGSJkR0=\")","v":{"$error":"#REF!"}},{"$f":"AND('Basic Financial'!#REF!,\"MxOUwGSJkR4=\")","v":{"$error":"#REF!"}},{"$f":"AND('Basic Financial'!#REF!,\"MxOUwGSJkR8=\")","v":{"$error":"#REF!"}},{"$f":"AND('Basic Financial'!#REF!,\"MxOUwGSJkSA=\")","v":{"$error":"#REF!"}},{"$f":"AND('Basic Financial'!#REF!,\"MxOUwGSJkSE=\")","v":{"$error":"#REF!"}},{"$f":"AND('Basic Financial'!#REF!,\"MxOUwGSJkSI=\")","v":{"$error":"#REF!"}},{"$f":"AND('Basic Financial'!#REF!,\"MxOUwGSJkSM=\")","v":{"$error":"#REF!"}},{"$f":"AND('Basic Financial'!#REF!,\"MxOUwGSJkSQ=\")","v":{"$error":"#REF!"}},{"$f":"AND('Basic Financial'!#REF!,\"MxOUwGSJkSU=\")","v":{"$error":"#REF!"}},{"$f":"AND('Basic Financial'!#REF!,\"MxOUwGSJkSY=\")","v":{"$error":"#REF!"}},{"$f":"AND('Basic Financial'!#REF!,\"MxOUwGSJkSc=\")","v":{"$error":"#REF!"}},{"$f":"IF('Basic Financial'!#REF!,\"MxOUwGSJkSg=\",0)","v":{"$error":"#REF!"}},{"$f":"AND('Basic Financial'!#REF!,\"MxOUwGSJkSk=\")","v":{"$error":"#REF!"}},{"$f":"AND('Basic Financial'!#REF!,\"MxOUwGSJkSo=\")","v":{"$error":"#REF!"}},{"$f":"AND('Basic Financial'!#REF!,\"MxOUwGSJkSs=\")","v":{"$error":"#REF!"}},{"$f":"AND('Basic Financial'!#REF!,\"MxOUwGSJkSw=\")","v":{"$error":"#REF!"}},{"$f":"AND('Basic Financial'!#REF!,\"MxOUwGSJkS0=\")","v":{"$error":"#REF!"}},{"$f":"AND('Basic Financial'!#REF!,\"MxOUwGSJkS4=\")","v":{"$error":"#REF!"}},{"$f":"AND('Basic Financial'!#REF!,\"MxOUwGSJkS8=\")","v":{"$error":"#REF!"}},{"$f":"AND('Basic Financial'!#REF!,\"MxOUwGSJkTA=\")","v":{"$error":"#REF!"}},{"$f":"AND('Basic Financial'!#REF!,\"MxOUwGSJkTE=\")","v":{"$error":"#REF!"}},{"$f":"AND('Basic Financial'!#REF!,\"MxOUwGSJkTI=\")","v":{"$error":"#REF!"}},{"$f":"AND('Basic Financial'!#REF!,\"MxOUwGSJkTM=\")","v":{"$error":"#REF!"}},{"$f":"AND('Basic Financial'!#REF!,\"MxOUwGSJkTQ=\")","v":{"$error":"#REF!"}},{"$f":"AND('Basic Financial'!#REF!,\"MxOUwGSJkTU=\")","v":{"$error":"#REF!"}},{"$f":"IF('Basic Financial'!#REF!,\"MxOUwGSJkTY=\",0)","v":{"$error":"#REF!"}},{"$f":"AND('Basic Financial'!#REF!,\"MxOUwGSJkTc=\")","v":{"$error":"#REF!"}},{"$f":"AND('Basic Financial'!#REF!,\"MxOUwGSJkTg=\")","v":{"$error":"#REF!"}},{"$f":"AND('Basic Financial'!#REF!,\"MxOUwGSJkTk=\")","v":{"$error":"#REF!"}},{"$f":"AND('Basic Financial'!#REF!,\"MxOUwGSJkTo=\")","v":{"$error":"#REF!"}},{"$f":"AND('Basic Financial'!#REF!,\"MxOUwGSJkTs=\")","v":{"$error":"#REF!"}},{"$f":"AND('Basic Financial'!#REF!,\"MxOUwGSJkTw=\")","v":{"$error":"#REF!"}},{"$f":"AND('Basic Financial'!#REF!,\"MxOUwGSJkT0=\")","v":{"$error":"#REF!"}},{"$f":"AND('Basic Financial'!#REF!,\"MxOUwGSJkT4=\")","v":{"$error":"#REF!"}},{"$f":"AND('Basic Financial'!#REF!,\"MxOUwGSJkT8=\")","v":{"$error":"#REF!"}},{"$f":"AND('Basic Financial'!#REF!,\"MxOUwGSJkUA=\")","v":{"$error":"#REF!"}},{"$f":"AND('Basic Financial'!#REF!,\"MxOUwGSJkUE=\")","v":{"$error":"#REF!"}},{"$f":"AND('Basic Financial'!#REF!,\"MxOUwGSJkUI=\")","v":{"$error":"#REF!"}},{"$f":"AND('Basic Financial'!#REF!,\"MxOUwGSJkUM=\")","v":{"$error":"#REF!"}},{"$f":"IF('Basic Financial'!#REF!,\"MxOUwGSJkUQ=\",0)","v":{"$error":"#REF!"}},{"$f":"AND('Basic Financial'!#REF!,\"MxOUwGSJkUU=\")","v":{"$error":"#REF!"}},{"$f":"AND('Basic Financial'!#REF!,\"MxOUwGSJkUY=\")","v":{"$error":"#REF!"}},{"$f":"AND('Basic Financial'!#REF!,\"MxOUwGSJkUc=\")","v":{"$error":"#REF!"}},{"$f":"AND('Basic Financial'!#REF!,\"MxOUwGSJkUg=\")","v":{"$error":"#REF!"}},{"$f":"AND('Basic Financial'!#REF!,\"MxOUwGSJkUk=\")","v":{"$error":"#REF!"}},{"$f":"AND('Basic Financial'!#REF!,\"MxOUwGSJkUo=\")","v":{"$error":"#REF!"}},{"$f":"AND('Basic Financial'!#REF!,\"MxOUwGSJkUs=\")","v":{"$error":"#REF!"}},{"$f":"AND('Basic Financial'!#REF!,\"MxOUwGSJkUw=\")","v":{"$error":"#REF!"}},{"$f":"AND('Basic Financial'!#REF!,\"MxOUwGSJkU0=\")","v":{"$error":"#REF!"}},{"$f":"AND('Basic Financial'!#REF!,\"MxOUwGSJkU4=\")","v":{"$error":"#REF!"}},{"$f":"AND('Basic Financial'!#REF!,\"MxOUwGSJkU8=\")","v":{"$error":"#REF!"}},{"$f":"AND('Basic Financial'!#REF!,\"MxOUwGSJkVA=\")","v":{"$error":"#REF!"}},{"$f":"AND('Basic Financial'!#REF!,\"MxOUwGSJkVE=\")","v":{"$error":"#REF!"}},{"$f":"IF('Basic Financial'!#REF!,\"MxOUwGSJkVI=\",0)","v":{"$error":"#REF!"}},{"$f":"AND('Basic Financial'!#REF!,\"MxOUwGSJkVM=\")","v":{"$error":"#REF!"}},{"$f":"AND('Basic Financial'!#REF!,\"MxOUwGSJkVQ=\")","v":{"$error":"#REF!"}},{"$f":"AND('Basic Financial'!#REF!,\"MxOUwGSJkVU=\")","v":{"$error":"#REF!"}},{"$f":"AND('Basic Financial'!#REF!,\"MxOUwGSJkVY=\")","v":{"$error":"#REF!"}},{"$f":"AND('Basic Financial'!#REF!,\"MxOUwGSJkVc=\")","v":{"$error":"#REF!"}},{"$f":"AND('Basic Financial'!#REF!,\"MxOUwGSJkVg=\")","v":{"$error":"#REF!"}},{"$f":"AND('Basic Financial'!#REF!,\"MxOUwGSJkVk=\")","v":{"$error":"#REF!"}},{"$f":"AND('Basic Financial'!#REF!,\"MxOUwGSJkVo=\")","v":{"$error":"#REF!"}},{"$f":"AND('Basic Financial'!#REF!,\"MxOUwGSJkVs=\")","v":{"$error":"#REF!"}},{"$f":"AND('Basic Financial'!#REF!,\"MxOUwGSJkVw=\")","v":{"$error":"#REF!"}},{"$f":"AND('Basic Financial'!#REF!,\"MxOUwGSJkV0=\")","v":{"$error":"#REF!"}},{"$f":"AND('Basic Financial'!#REF!,\"MxOUwGSJkV4=\")","v":{"$error":"#REF!"}},{"$f":"AND('Basic Financial'!#REF!,\"MxOUwGSJkV8=\")","v":{"$error":"#REF!"}},{"$f":"IF('Basic Financial'!#REF!,\"MxOUwGSJkWA=\",0)","v":{"$error":"#REF!"}},{"$f":"AND('Basic Financial'!#REF!,\"MxOUwGSJkWE=\")","v":{"$error":"#REF!"}},{"$f":"AND('Basic Financial'!#REF!,\"MxOUwGSJkWI=\")","v":{"$error":"#REF!"}},{"$f":"AND('Basic Financial'!#REF!,\"MxOUwGSJkWM=\")","v":{"$error":"#REF!"}},{"$f":"AND('Basic Financial'!#REF!,\"MxOUwGSJkWQ=\")","v":{"$error":"#REF!"}},{"$f":"AND('Basic Financial'!#REF!,\"MxOUwGSJkWU=\")","v":{"$error":"#REF!"}},{"$f":"AND('Basic Financial'!#REF!,\"MxOUwGSJkWY=\")","v":{"$error":"#REF!"}},{"$f":"AND('Basic Financial'!#REF!,\"MxOUwGSJkWc=\")","v":{"$error":"#REF!"}},{"$f":"AND('Basic Financial'!#REF!,\"MxOUwGSJkWg=\")","v":{"$error":"#REF!"}},{"$f":"AND('Basic Financial'!#REF!,\"MxOUwGSJkWk=\")","v":{"$error":"#REF!"}},{"$f":"AND('Basic Financial'!#REF!,\"MxOUwGSJkWo=\")","v":{"$error":"#REF!"}},{"$f":"AND('Basic Financial'!#REF!,\"MxOUwGSJkWs=\")","v":{"$error":"#REF!"}},{"$f":"AND('Basic Financial'!#REF!,\"MxOUwGSJkWw=\")","v":{"$error":"#REF!"}},{"$f":"AND('Basic Financial'!#REF!,\"MxOUwGSJkW0=\")","v":{"$error":"#REF!"}},{"$f":"IF('Basic Financial'!#REF!,\"MxOUwGSJkW4=\",0)","v":{"$error":"#REF!"}},{"$f":"AND('Basic Financial'!#REF!,\"MxOUwGSJkW8=\")","v":{"$error":"#REF!"}},{"$f":"AND('Basic Financial'!#REF!,\"MxOUwGSJkXA=\")","v":{"$error":"#REF!"}},{"$f":"AND('Basic Financial'!#REF!,\"MxOUwGSJkXE=\")","v":{"$error":"#REF!"}},{"$f":"AND('Basic Financial'!#REF!,\"MxOUwGSJkXI=\")","v":{"$error":"#REF!"}},{"$f":"AND('Basic Financial'!#REF!,\"MxOUwGSJkXM=\")","v":{"$error":"#REF!"}},{"$f":"AND('Basic Financial'!#REF!,\"MxOUwGSJkXQ=\")","v":{"$error":"#REF!"}},{"$f":"AND('Basic Financial'!#REF!,\"MxOUwGSJkXU=\")","v":{"$error":"#REF!"}},{"$f":"AND('Basic Financial'!#REF!,\"MxOUwGSJkXY=\")","v":{"$error":"#REF!"}},{"$f":"AND('Basic Financial'!#REF!,\"MxOUwGSJkXc=\")","v":{"$error":"#REF!"}},{"$f":"AND('Basic Financial'!#REF!,\"MxOUwGSJkXg=\")","v":{"$error":"#REF!"}},{"$f":"AND('Basic Financial'!#REF!,\"MxOUwGSJkXk=\")","v":{"$error":"#REF!"}},{"$f":"AND('Basic Financial'!#REF!,\"MxOUwGSJkXo=\")","v":{"$error":"#REF!"}},{"$f":"AND('Basic Financial'!#REF!,\"MxOUwGSJkXs=\")","v":{"$error":"#REF!"}},{"$f":"IF('Basic Financial'!#REF!,\"MxOUwGSJkXw=\",0)","v":{"$error":"#REF!"}},{"$f":"AND('Basic Financial'!#REF!,\"MxOUwGSJkX0=\")","v":{"$error":"#REF!"}},{"$f":"AND('Basic Financial'!#REF!,\"MxOUwGSJkX4=\")","v":{"$error":"#REF!"}},{"$f":"AND('Basic Financial'!#REF!,\"MxOUwGSJkX8=\")","v":{"$error":"#REF!"}},{"$f":"AND('Basic Financial'!#REF!,\"MxOUwGSJkYA=\")","v":{"$error":"#REF!"}},{"$f":"AND('Basic Financial'!#REF!,\"MxOUwGSJkYE=\")","v":{"$error":"#REF!"}},{"$f":"AND('Basic Financial'!#REF!,\"MxOUwGSJkYI=\")","v":{"$error":"#REF!"}},{"$f":"AND('Basic Financial'!#REF!,\"MxOUwGSJkYM=\")","v":{"$error":"#REF!"}},{"$f":"AND('Basic Financial'!#REF!,\"MxOUwGSJkYQ=\")","v":{"$error":"#REF!"}},{"$f":"AND('Basic Financial'!#REF!,\"MxOUwGSJkYU=\")","v":{"$error":"#REF!"}},{"$f":"AND('Basic Financial'!#REF!,\"MxOUwGSJkYY=\")","v":{"$error":"#REF!"}},{"$f":"AND('Basic Financial'!#REF!,\"MxOUwGSJkYc=\")","v":{"$error":"#REF!"}},{"$f":"AND('Basic Financial'!#REF!,\"MxOUwGSJkYg=\")","v":{"$error":"#REF!"}},{"$f":"AND('Basic Financial'!#REF!,\"MxOUwGSJkYk=\")","v":{"$error":"#REF!"}},{"$f":"IF('Basic Financial'!#REF!,\"MxOUwGSJkYo=\",0)","v":{"$error":"#REF!"}},{"$f":"AND('Basic Financial'!#REF!,\"MxOUwGSJkYs=\")","v":{"$error":"#REF!"}},{"$f":"AND('Basic Financial'!#REF!,\"MxOUwGSJkYw=\")","v":{"$error":"#REF!"}},{"$f":"AND('Basic Financial'!#REF!,\"MxOUwGSJkY0=\")","v":{"$error":"#REF!"}},{"$f":"AND('Basic Financial'!#REF!,\"MxOUwGSJkY4=\")","v":{"$error":"#REF!"}},{"$f":"AND('Basic Financial'!#REF!,\"MxOUwGSJkY8=\")","v":{"$error":"#REF!"}},{"$f":"AND('Basic Financial'!#REF!,\"MxOUwGSJkZA=\")","v":{"$error":"#REF!"}},{"$f":"AND('Basic Financial'!#REF!,\"MxOUwGSJkZE=\")","v":{"$error":"#REF!"}},{"$f":"AND('Basic Financial'!#REF!,\"MxOUwGSJkZI=\")","v":{"$error":"#REF!"}},{"$f":"AND('Basic Financial'!#REF!,\"MxOUwGSJkZM=\")","v":{"$error":"#REF!"}},{"$f":"AND('Basic Financial'!#REF!,\"MxOUwGSJkZQ=\")","v":{"$error":"#REF!"}},{"$f":"AND('Basic Financial'!#REF!,\"MxOUwGSJkZU=\")","v":{"$error":"#REF!"}},{"$f":"AND('Basic Financial'!#REF!,\"MxOUwGSJkZY=\")","v":{"$error":"#REF!"}},{"$f":"AND('Basic Financial'!#REF!,\"MxOUwGSJkZc=\")","v":{"$error":"#REF!"}},{"$f":"IF('Basic Financial'!#REF!,\"MxOUwGSJkZg=\",0)","v":{"$error":"#REF!"}},{"$f":"AND('Basic Financial'!#REF!,\"MxOUwGSJkZk=\")","v":{"$error":"#REF!"}},{"$f":"AND('Basic Financial'!#REF!,\"MxOUwGSJkZo=\")","v":{"$error":"#REF!"}},{"$f":"AND('Basic Financial'!#REF!,\"MxOUwGSJkZs=\")","v":{"$error":"#REF!"}},{"$f":"AND('Basic Financial'!#REF!,\"MxOUwGSJkZw=\")","v":{"$error":"#REF!"}},{"$f":"AND('Basic Financial'!#REF!,\"MxOUwGSJkZ0=\")","v":{"$error":"#REF!"}},{"$f":"AND('Basic Financial'!#REF!,\"MxOUwGSJkZ4=\")","v":{"$error":"#REF!"}},{"$f":"AND('Basic Financial'!#REF!,\"MxOUwGSJkZ8=\")","v":{"$error":"#REF!"}},{"$f":"AND('Basic Financial'!#REF!,\"MxOUwGSJkaA=\")","v":{"$error":"#REF!"}},{"$f":"AND('Basic Financial'!#REF!,\"MxOUwGSJkaE=\")","v":{"$error":"#REF!"}},{"$f":"AND('Basic Financial'!#REF!,\"MxOUwGSJkaI=\")","v":{"$error":"#REF!"}},{"$f":"AND('Basic Financial'!#REF!,\"MxOUwGSJkaM=\")","v":{"$error":"#REF!"}},{"$f":"AND('Basic Financial'!#REF!,\"MxOUwGSJkaQ=\")","v":{"$error":"#REF!"}},{"$f":"AND('Basic Financial'!#REF!,\"MxOUwGSJkaU=\")","v":{"$error":"#REF!"}},{"$f":"IF('Basic Financial'!#REF!,\"MxOUwGSJkaY=\",0)","v":{"$error":"#REF!"}},{"$f":"AND('Basic Financial'!#REF!,\"MxOUwGSJkac=\")","v":{"$error":"#REF!"}},{"$f":"AND('Basic Financial'!#REF!,\"MxOUwGSJkag=\")","v":{"$error":"#REF!"}},{"$f":"AND('Basic Financial'!#REF!,\"MxOUwGSJkak=\")","v":{"$error":"#REF!"}},{"$f":"AND('Basic Financial'!#REF!,\"MxOUwGSJkao=\")","v":{"$error":"#REF!"}},{"$f":"AND('Basic Financial'!#REF!,\"MxOUwGSJkas=\")","v":{"$error":"#REF!"}},{"$f":"AND('Basic Financial'!#REF!,\"MxOUwGSJkaw=\")","v":{"$error":"#REF!"}},{"$f":"AND('Basic Financial'!#REF!,\"MxOUwGSJka0=\")","v":{"$error":"#REF!"}},{"$f":"AND('Basic Financial'!#REF!,\"MxOUwGSJka4=\")","v":{"$error":"#REF!"}},{"$f":"AND('Basic Financial'!#REF!,\"MxOUwGSJka8=\")","v":{"$error":"#REF!"}},{"$f":"AND('Basic Financial'!#REF!,\"MxOUwGSJkbA=\")","v":{"$error":"#REF!"}},{"$f":"AND('Basic Financial'!#REF!,\"MxOUwGSJkbE=\")","v":{"$error":"#REF!"}},{"$f":"AND('Basic Financial'!#REF!,\"MxOUwGSJkbI=\")","v":{"$error":"#REF!"}},{"$f":"AND('Basic Financial'!#REF!,\"MxOUwGSJkbM=\")","v":{"$error":"#REF!"}},{"$f":"IF('Basic Financial'!#REF!,\"MxOUwGSJkbQ=\",0)","v":{"$error":"#REF!"}},{"$f":"AND('Basic Financial'!#REF!,\"MxOUwGSJkbU=\")","v":{"$error":"#REF!"}},{"$f":"AND('Basic Financial'!#REF!,\"MxOUwGSJkbY=\")","v":{"$error":"#REF!"}},{"$f":"AND('Basic Financial'!#REF!,\"MxOUwGSJkbc=\")","v":{"$error":"#REF!"}},{"$f":"AND('Basic Financial'!#REF!,\"MxOUwGSJkbg=\")","v":{"$error":"#REF!"}},{"$f":"AND('Basic Financial'!#REF!,\"MxOUwGSJkbk=\")","v":{"$error":"#REF!"}},{"$f":"AND('Basic Financial'!#REF!,\"MxOUwGSJkbo=\")","v":{"$error":"#REF!"}},{"$f":"AND('Basic Financial'!#REF!,\"MxOUwGSJkbs=\")","v":{"$error":"#REF!"}},{"$f":"AND('Basic Financial'!#REF!,\"MxOUwGSJkbw=\")","v":{"$error":"#REF!"}},{"$f":"AND('Basic Financial'!#REF!,\"MxOUwGSJkb0=\")","v":{"$error":"#REF!"}},{"$f":"AND('Basic Financial'!#REF!,\"MxOUwGSJkb4=\")","v":{"$error":"#REF!"}},{"$f":"AND('Basic Financial'!#REF!,\"MxOUwGSJkb8=\")","v":{"$error":"#REF!"}},{"$f":"AND('Basic Financial'!#REF!,\"MxOUwGSJkcA=\")","v":{"$error":"#REF!"}},{"$f":"AND('Basic Financial'!#REF!,\"MxOUwGSJkcE=\")","v":{"$error":"#REF!"}},{"$f":"IF('Basic Financial'!#REF!,\"MxOUwGSJkcI=\",0)","v":{"$error":"#REF!"}},{"$f":"AND('Basic Financial'!#REF!,\"MxOUwGSJkcM=\")","v":{"$error":"#REF!"}},{"$f":"AND('Basic Financial'!#REF!,\"MxOUwGSJkcQ=\")","v":{"$error":"#REF!"}},{"$f":"AND('Basic Financial'!#REF!,\"MxOUwGSJkcU=\")","v":{"$error":"#REF!"}},{"$f":"AND('Basic Financial'!#REF!,\"MxOUwGSJkcY=\")","v":{"$error":"#REF!"}},{"$f":"AND('Basic Financial'!#REF!,\"MxOUwGSJkcc=\")","v":{"$error":"#REF!"}},{"$f":"AND('Basic Financial'!#REF!,\"MxOUwGSJkcg=\")","v":{"$error":"#REF!"}},{"$f":"AND('Basic Financial'!#REF!,\"MxOUwGSJkck=\")","v":{"$error":"#REF!"}},{"$f":"AND('Basic Financial'!#REF!,\"MxOUwGSJkco=\")","v":{"$error":"#REF!"}},{"$f":"AND('Basic Financial'!#REF!,\"MxOUwGSJkcs=\")","v":{"$error":"#REF!"}},{"$f":"AND('Basic Financial'!#REF!,\"MxOUwGSJkcw=\")","v":{"$error":"#REF!"}},{"$f":"AND('Basic Financial'!#REF!,\"MxOUwGSJkc0=\")","v":{"$error":"#REF!"}},{"$f":"AND('Basic Financial'!#REF!,\"MxOUwGSJkc4=\")","v":{"$error":"#REF!"}},{"$f":"AND('Basic Financial'!#REF!,\"MxOUwGSJkc8=\")","v":{"$error":"#REF!"}},{"$f":"IF('Basic Financial'!#REF!,\"MxOUwGSJkdA=\",0)","v":{"$error":"#REF!"}},{"$f":"AND('Basic Financial'!#REF!,\"MxOUwGSJkdE=\")","v":{"$error":"#REF!"}},{"$f":"AND('Basic Financial'!#REF!,\"MxOUwGSJkdI=\")","v":{"$error":"#REF!"}},{"$f":"AND('Basic Financial'!#REF!,\"MxOUwGSJkdM=\")","v":{"$error":"#REF!"}},{"$f":"AND('Basic Financial'!#REF!,\"MxOUwGSJkdQ=\")","v":{"$error":"#REF!"}},{"$f":"AND('Basic Financial'!#REF!,\"MxOUwGSJkdU=\")","v":{"$error":"#REF!"}},{"$f":"AND('Basic Financial'!#REF!,\"MxOUwGSJkdY=\")","v":{"$error":"#REF!"}},{"$f":"AND('Basic Financial'!#REF!,\"MxOUwGSJkdc=\")","v":{"$error":"#REF!"}},{"$f":"AND('Basic Financial'!#REF!,\"MxOUwGSJkdg=\")","v":{"$error":"#REF!"}},{"$f":"AND('Basic Financial'!#REF!,\"MxOUwGSJkdk=\")","v":{"$error":"#REF!"}},{"$f":"AND('Basic Financial'!#REF!,\"MxOUwGSJkdo=\")","v":{"$error":"#REF!"}},{"$f":"AND('Basic Financial'!#REF!,\"MxOUwGSJkds=\")","v":{"$error":"#REF!"}},{"$f":"AND('Basic Financial'!#REF!,\"MxOUwGSJkdw=\")","v":{"$error":"#REF!"}},{"$f":"AND('Basic Financial'!#REF!,\"MxOUwGSJkd0=\")","v":{"$error":"#REF!"}},{"$f":"IF('Basic Financial'!#REF!,\"MxOUwGSJkd4=\",0)","v":{"$error":"#REF!"}},{"$f":"AND('Basic Financial'!#REF!,\"MxOUwGSJkd8=\")","v":{"$error":"#REF!"}},{"$f":"AND('Basic Financial'!#REF!,\"MxOUwGSJkeA=\")","v":{"$error":"#REF!"}},{"$f":"AND('Basic Financial'!#REF!,\"MxOUwGSJkeE=\")","v":{"$error":"#REF!"}},{"$f":"AND('Basic Financial'!#REF!,\"MxOUwGSJkeI=\")","v":{"$error":"#REF!"}},{"$f":"AND('Basic Financial'!#REF!,\"MxOUwGSJkeM=\")","v":{"$error":"#REF!"}},{"$f":"AND('Basic Financial'!#REF!,\"MxOUwGSJkeQ=\")","v":{"$error":"#REF!"}},{"$f":"AND('Basic Financial'!#REF!,\"MxOUwGSJkeU=\")","v":{"$error":"#REF!"}},{"$f":"AND('Basic Financial'!#REF!,\"MxOUwGSJkeY=\")","v":{"$error":"#REF!"}},{"$f":"AND('Basic Financial'!#REF!,\"MxOUwGSJkec=\")","v":{"$error":"#REF!"}},{"$f":"AND('Basic Financial'!#REF!,\"MxOUwGSJkeg=\")","v":{"$error":"#REF!"}},{"$f":"AND('Basic Financial'!#REF!,\"MxOUwGSJkek=\")","v":{"$error":"#REF!"}},{"$f":"AND('Basic Financial'!#REF!,\"MxOUwGSJkeo=\")","v":{"$error":"#REF!"}},{"$f":"AND('Basic Financial'!#REF!,\"MxOUwGSJkes=\")","v":{"$error":"#REF!"}},{"$f":"IF('Basic Financial'!#REF!,\"MxOUwGSJkew=\",0)","v":{"$error":"#REF!"}},{"$f":"AND('Basic Financial'!#REF!,\"MxOUwGSJke0=\")","v":{"$error":"#REF!"}},{"$f":"AND('Basic Financial'!#REF!,\"MxOUwGSJke4=\")","v":{"$error":"#REF!"}},{"$f":"AND('Basic Financial'!#REF!,\"MxOUwGSJke8=\")","v":{"$error":"#REF!"}},{"$f":"AND('Basic Financial'!#REF!,\"MxOUwGSJkfA=\")","v":{"$error":"#REF!"}},{"$f":"AND('Basic Financial'!#REF!,\"MxOUwGSJkfE=\")","v":{"$error":"#REF!"}},{"$f":"AND('Basic Financial'!#REF!,\"MxOUwGSJkfI=\")","v":{"$error":"#REF!"}},{"$f":"AND('Basic Financial'!#REF!,\"MxOUwGSJkfM=\")","v":{"$error":"#REF!"}},{"$f":"AND('Basic Financial'!#REF!,\"MxOUwGSJkfQ=\")","v":{"$error":"#REF!"}},{"$f":"AND('Basic Financial'!#REF!,\"MxOUwGSJkfU=\")","v":{"$error":"#REF!"}},{"$f":"AND('Basic Financial'!#REF!,\"MxOUwGSJkfY=\")","v":{"$error":"#REF!"}},{"$f":"AND('Basic Financial'!#REF!,\"MxOUwGSJkfc=\")","v":{"$error":"#REF!"}},{"$f":"AND('Basic Financial'!#REF!,\"MxOUwGSJkfg=\")","v":{"$error":"#REF!"}},{"$f":"AND('Basic Financial'!#REF!,\"MxOUwGSJkfk=\")","v":{"$error":"#REF!"}},{"$f":"IF('Basic Financial'!#REF!,\"MxOUwGSJkfo=\",0)","v":{"$error":"#REF!"}},{"$f":"AND('Basic Financial'!#REF!,\"MxOUwGSJkfs=\")","v":{"$error":"#REF!"}},{"$f":"AND('Basic Financial'!#REF!,\"MxOUwGSJkfw=\")","v":{"$error":"#REF!"}},{"$f":"AND('Basic Financial'!#REF!,\"MxOUwGSJkf0=\")","v":{"$error":"#REF!"}},{"$f":"AND('Basic Financial'!#REF!,\"MxOUwGSJkf4=\")","v":{"$error":"#REF!"}},{"$f":"AND('Basic Financial'!#REF!,\"MxOUwGSJkf8=\")","v":{"$error":"#REF!"}}]
[{"$f":"AND('Basic Financial'!#REF!,\"dFk3N1VGVAA=\")","v":{"$error":"#REF!"}},{"$f":"AND('Basic Financial'!#REF!,\"dFk3N1VGVAE=\")","v":{"$error":"#REF!"}},{"$f":"AND('Basic Financial'!#REF!,\"dFk3N1VGVAI=\")","v":{"$error":"#REF!"}},{"$f":"AND('Basic Financial'!#REF!,\"dFk3N1VGVAM=\")","v":{"$error":"#REF!"}},{"$f":"AND('Basic Financial'!#REF!,\"dFk3N1VGVAQ=\")","v":{"$error":"#REF!"}},{"$f":"AND('Basic Financial'!#REF!,\"dFk3N1VGVAU=\")","v":{"$error":"#REF!"}},{"$f":"AND('Basic Financial'!#REF!,\"dFk3N1VGVAY=\")","v":{"$error":"#REF!"}},{"$f":"AND('Basic Financial'!#REF!,\"dFk3N1VGVAc=\")","v":{"$error":"#REF!"}},{"$f":"IF('Basic Financial'!#REF!,\"dFk3N1VGVAg=\",0)","v":{"$error":"#REF!"}},{"$f":"AND('Basic Financial'!#REF!,\"dFk3N1VGVAk=\")","v":{"$error":"#REF!"}},{"$f":"AND('Basic Financial'!#REF!,\"dFk3N1VGVAo=\")","v":{"$error":"#REF!"}},{"$f":"AND('Basic Financial'!#REF!,\"dFk3N1VGVAs=\")","v":{"$error":"#REF!"}},{"$f":"AND('Basic Financial'!#REF!,\"dFk3N1VGVAw=\")","v":{"$error":"#REF!"}},{"$f":"AND('Basic Financial'!#REF!,\"dFk3N1VGVA0=\")","v":{"$error":"#REF!"}},{"$f":"AND('Basic Financial'!#REF!,\"dFk3N1VGVA4=\")","v":{"$error":"#REF!"}},{"$f":"AND('Basic Financial'!#REF!,\"dFk3N1VGVA8=\")","v":{"$error":"#REF!"}},{"$f":"AND('Basic Financial'!#REF!,\"dFk3N1VGVBA=\")","v":{"$error":"#REF!"}},{"$f":"AND('Basic Financial'!#REF!,\"dFk3N1VGVBE=\")","v":{"$error":"#REF!"}},{"$f":"AND('Basic Financial'!#REF!,\"dFk3N1VGVBI=\")","v":{"$error":"#REF!"}},{"$f":"AND('Basic Financial'!#REF!,\"dFk3N1VGVBM=\")","v":{"$error":"#REF!"}},{"$f":"AND('Basic Financial'!#REF!,\"dFk3N1VGVBQ=\")","v":{"$error":"#REF!"}},{"$f":"AND('Basic Financial'!#REF!,\"dFk3N1VGVBU=\")","v":{"$error":"#REF!"}},{"$f":"IF('Basic Financial'!#REF!,\"dFk3N1VGVBY=\",0)","v":{"$error":"#REF!"}},{"$f":"AND('Basic Financial'!#REF!,\"dFk3N1VGVBc=\")","v":{"$error":"#REF!"}},{"$f":"AND('Basic Financial'!#REF!,\"dFk3N1VGVBg=\")","v":{"$error":"#REF!"}},{"$f":"AND('Basic Financial'!#REF!,\"dFk3N1VGVBk=\")","v":{"$error":"#REF!"}},{"$f":"AND('Basic Financial'!#REF!,\"dFk3N1VGVBo=\")","v":{"$error":"#REF!"}},{"$f":"AND('Basic Financial'!#REF!,\"dFk3N1VGVBs=\")","v":{"$error":"#REF!"}},{"$f":"AND('Basic Financial'!#REF!,\"dFk3N1VGVBw=\")","v":{"$error":"#REF!"}},{"$f":"AND('Basic Financial'!#REF!,\"dFk3N1VGVB0=\")","v":{"$error":"#REF!"}},{"$f":"AND('Basic Financial'!#REF!,\"dFk3N1VGVB4=\")","v":{"$error":"#REF!"}},{"$f":"AND('Basic Financial'!#REF!,\"dFk3N1VGVB8=\")","v":{"$error":"#REF!"}},{"$f":"AND('Basic Financial'!#REF!,\"dFk3N1VGVCA=\")","v":{"$error":"#REF!"}},{"$f":"AND('Basic Financial'!#REF!,\"dFk3N1VGVCE=\")","v":{"$error":"#REF!"}},{"$f":"AND('Basic Financial'!#REF!,\"dFk3N1VGVCI=\")","v":{"$error":"#REF!"}},{"$f":"AND('Basic Financial'!#REF!,\"dFk3N1VGVCM=\")","v":{"$error":"#REF!"}},{"$f":"IF('Basic Financial'!#REF!,\"dFk3N1VGVCQ=\",0)","v":{"$error":"#REF!"}},{"$f":"AND('Basic Financial'!#REF!,\"dFk3N1VGVCU=\")","v":{"$error":"#REF!"}},{"$f":"AND('Basic Financial'!#REF!,\"dFk3N1VGVCY=\")","v":{"$error":"#REF!"}},{"$f":"AND('Basic Financial'!#REF!,\"dFk3N1VGVCc=\")","v":{"$error":"#REF!"}},{"$f":"AND('Basic Financial'!#REF!,\"dFk3N1VGVCg=\")","v":{"$error":"#REF!"}},{"$f":"AND('Basic Financial'!#REF!,\"dFk3N1VGVCk=\")","v":{"$error":"#REF!"}},{"$f":"AND('Basic Financial'!#REF!,\"dFk3N1VGVCo=\")","v":{"$error":"#REF!"}},{"$f":"AND('Basic Financial'!#REF!,\"dFk3N1VGVCs=\")","v":{"$error":"#REF!"}},{"$f":"AND('Basic Financial'!#REF!,\"dFk3N1VGVCw=\")","v":{"$error":"#REF!"}},{"$f":"AND('Basic Financial'!#REF!,\"dFk3N1VGVC0=\")","v":{"$error":"#REF!"}},{"$f":"AND('Basic Financial'!#REF!,\"dFk3N1VGVC4=\")","v":{"$error":"#REF!"}},{"$f":"AND('Basic Financial'!#REF!,\"dFk3N1VGVC8=\")","v":{"$error":"#REF!"}},{"$f":"AND('Basic Financial'!#REF!,\"dFk3N1VGVDA=\")","v":{"$error":"#REF!"}},{"$f":"AND('Basic Financial'!#REF!,\"dFk3N1VGVDE=\")","v":{"$error":"#REF!"}},{"$f":"IF('Basic Financial'!#REF!,\"dFk3N1VGVDI=\",0)","v":{"$error":"#REF!"}},{"$f":"AND('Basic Financial'!#REF!,\"dFk3N1VGVDM=\")","v":{"$error":"#REF!"}},{"$f":"AND('Basic Financial'!#REF!,\"dFk3N1VGVDQ=\")","v":{"$error":"#REF!"}},{"$f":"AND('Basic Financial'!#REF!,\"dFk3N1VGVDU=\")","v":{"$error":"#REF!"}},{"$f":"AND('Basic Financial'!#REF!,\"dFk3N1VGVDY=\")","v":{"$error":"#REF!"}},{"$f":"AND('Basic Financial'!#REF!,\"dFk3N1VGVDc=\")","v":{"$error":"#REF!"}},{"$f":"AND('Basic Financial'!#REF!,\"dFk3N1VGVDg=\")","v":{"$error":"#REF!"}},{"$f":"AND('Basic Financial'!#REF!,\"dFk3N1VGVDk=\")","v":{"$error":"#REF!"}},{"$f":"AND('Basic Financial'!#REF!,\"dFk3N1VGVDo=\")","v":{"$error":"#REF!"}},{"$f":"AND('Basic Financial'!#REF!,\"dFk3N1VGVDs=\")","v":{"$error":"#REF!"}},{"$f":"AND('Basic Financial'!#REF!,\"dFk3N1VGVDw=\")","v":{"$error":"#REF!"}},{"$f":"AND('Basic Financial'!#REF!,\"dFk3N1VGVD0=\")","v":{"$error":"#REF!"}},{"$f":"AND('Basic Financial'!#REF!,\"dFk3N1VGVD4=\")","v":{"$error":"#REF!"}},{"$f":"AND('Basic Financial'!#REF!,\"dFk3N1VGVD8=\")","v":{"$error":"#REF!"}},{"$f":"IF('Basic Financial'!#REF!,\"dFk3N1VGVEA=\",0)","v":{"$error":"#REF!"}},{"$f":"AND('Basic Financial'!#REF!,\"dFk3N1VGVEE=\")","v":{"$error":"#REF!"}},{"$f":"AND('Basic Financial'!#REF!,\"dFk3N1VGVEI=\")","v":{"$error":"#REF!"}},{"$f":"AND('Basic Financial'!#REF!,\"dFk3N1VGVEM=\")","v":{"$error":"#REF!"}},{"$f":"AND('Basic Financial'!#REF!,\"dFk3N1VGVEQ=\")","v":{"$error":"#REF!"}},{"$f":"AND('Basic Financial'!#REF!,\"dFk3N1VGVEU=\")","v":{"$error":"#REF!"}},{"$f":"AND('Basic Financial'!#REF!,\"dFk3N1VGVEY=\")","v":{"$error":"#REF!"}},{"$f":"AND('Basic Financial'!#REF!,\"dFk3N1VGVEc=\")","v":{"$error":"#REF!"}},{"$f":"AND('Basic Financial'!#REF!,\"dFk3N1VGVEg=\")","v":{"$error":"#REF!"}},{"$f":"AND('Basic Financial'!#REF!,\"dFk3N1VGVEk=\")","v":{"$error":"#REF!"}},{"$f":"AND('Basic Financial'!#REF!,\"dFk3N1VGVEo=\")","v":{"$error":"#REF!"}},{"$f":"AND('Basic Financial'!#REF!,\"dFk3N1VGVEs=\")","v":{"$error":"#REF!"}},{"$f":"AND('Basic Financial'!#REF!,\"dFk3N1VGVEw=\")","v":{"$error":"#REF!"}},{"$f":"AND('Basic Financial'!#REF!,\"dFk3N1VGVE0=\")","v":{"$error":"#REF!"}},{"$f":"IF('Basic Financial'!#REF!,\"dFk3N1VGVE4=\",0)","v":{"$error":"#REF!"}},{"$f":"AND('Basic Financial'!#REF!,\"dFk3N1VGVE8=\")","v":{"$error":"#REF!"}},{"$f":"AND('Basic Financial'!#REF!,\"dFk3N1VGVFA=\")","v":{"$error":"#REF!"}},{"$f":"AND('Basic Financial'!#REF!,\"dFk3N1VGVFE=\")","v":{"$error":"#REF!"}},{"$f":"AND('Basic Financial'!#REF!,\"dFk3N1VGVFI=\")","v":{"$error":"#REF!"}},{"$f":"AND('Basic Financial'!#REF!,\"dFk3N1VGVFM=\")","v":{"$error":"#REF!"}},{"$f":"AND('Basic Financial'!#REF!,\"dFk3N1VGVFQ=\")","v":{"$error":"#REF!"}},{"$f":"AND('Basic Financial'!#REF!,\"dFk3N1VGVFU=\")","v":{"$error":"#REF!"}},{"$f":"AND('Basic Financial'!#REF!,\"dFk3N1VGVFY=\")","v":{"$error":"#REF!"}},{"$f":"AND('Basic Financial'!#REF!,\"dFk3N1VGVFc=\")","v":{"$error":"#REF!"}},{"$f":"AND('Basic Financial'!#REF!,\"dFk3N1VGVFg=\")","v":{"$error":"#REF!"}},{"$f":"AND('Basic Financial'!#REF!,\"dFk3N1VGVFk=\")","v":{"$error":"#REF!"}},{"$f":"AND('Basic Financial'!#REF!,\"dFk3N1VGVFo=\")","v":{"$error":"#REF!"}},{"$f":"AND('Basic Financial'!#REF!,\"dFk3N1VGVFs=\")","v":{"$error":"#REF!"}},{"$f":"IF('Basic Financial'!#REF!,\"dFk3N1VGVFw=\",0)","v":{"$error":"#REF!"}},{"$f":"AND('Basic Financial'!#REF!,\"dFk3N1VGVF0=\")","v":{"$error":"#REF!"}},{"$f":"AND('Basic Financial'!#REF!,\"dFk3N1VGVF4=\")","v":{"$error":"#REF!"}},{"$f":"AND('Basic Financial'!#REF!,\"dFk3N1VGVF8=\")","v":{"$error":"#REF!"}},{"$f":"AND('Basic Financial'!#REF!,\"dFk3N1VGVGA=\")","v":{"$error":"#REF!"}},{"$f":"AND('Basic Financial'!#REF!,\"dFk3N1VGVGE=\")","v":{"$error":"#REF!"}},{"$f":"AND('Basic Financial'!#REF!,\"dFk3N1VGVGI=\")","v":{"$error":"#REF!"}},{"$f":"AND('Basic Financial'!#REF!,\"dFk3N1VGVGM=\")","v":{"$error":"#REF!"}},{"$f":"AND('Basic Financial'!#REF!,\"dFk3N1VGVGQ=\")","v":{"$error":"#REF!"}},{"$f":"AND('Basic Financial'!#REF!,\"dFk3N1VGVGU=\")","v":{"$error":"#REF!"}},{"$f":"AND('Basic Financial'!#REF!,\"dFk3N1VGVGY=\")","v":{"$error":"#REF!"}},{"$f":"AND('Basic Financial'!#REF!,\"dFk3N1VGVGc=\")","v":{"$error":"#REF!"}},{"$f":"AND('Basic Financial'!#REF!,\"dFk3N1VGVGg=\")","v":{"$error":"#REF!"}},{"$f":"AND('Basic Financial'!#REF!,\"dFk3N1VGVGk=\")","v":{"$error":"#REF!"}},{"$f":"IF('Basic Financial'!#REF!,\"dFk3N1VGVGo=\",0)","v":{"$error":"#REF!"}},{"$f":"AND('Basic Financial'!#REF!,\"dFk3N1VGVGs=\")","v":{"$error":"#REF!"}},{"$f":"AND('Basic Financial'!#REF!,\"dFk3N1VGVGw=\")","v":{"$error":"#REF!"}},{"$f":"AND('Basic Financial'!#REF!,\"dFk3N1VGVG0=\")","v":{"$error":"#REF!"}},{"$f":"AND('Basic Financial'!#REF!,\"dFk3N1VGVG4=\")","v":{"$error":"#REF!"}},{"$f":"AND('Basic Financial'!#REF!,\"dFk3N1VGVG8=\")","v":{"$error":"#REF!"}},{"$f":"AND('Basic Financial'!#REF!,\"dFk3N1VGVHA=\")","v":{"$error":"#REF!"}},{"$f":"AND('Basic Financial'!#REF!,\"dFk3N1VGVHE=\")","v":{"$error":"#REF!"}},{"$f":"AND('Basic Financial'!#REF!,\"dFk3N1VGVHI=\")","v":{"$error":"#REF!"}},{"$f":"AND('Basic Financial'!#REF!,\"dFk3N1VGVHM=\")","v":{"$error":"#REF!"}},{"$f":"AND('Basic Financial'!#REF!,\"dFk3N1VGVHQ=\")","v":{"$error":"#REF!"}},{"$f":"AND('Basic Financial'!#REF!,\"dFk3N1VGVHU=\")","v":{"$error":"#REF!"}},{"$f":"AND('Basic Financial'!#REF!,\"dFk3N1VGVHY=\")","v":{"$error":"#REF!"}},{"$f":"AND('Basic Financial'!#REF!,\"dFk3N1VGVHc=\")","v":{"$error":"#REF!"}},{"$f":"IF('Basic Financial'!#REF!,\"dFk3N1VGVHg=\",0)","v":{"$error":"#REF!"}},{"$f":"AND('Basic Financial'!#REF!,\"dFk3N1VGVHk=\")","v":{"$error":"#REF!"}},{"$f":"AND('Basic Financial'!#REF!,\"dFk3N1VGVHo=\")","v":{"$error":"#REF!"}},{"$f":"AND('Basic Financial'!#REF!,\"dFk3N1VGVHs=\")","v":{"$error":"#REF!"}},{"$f":"AND('Basic Financial'!#REF!,\"dFk3N1VGVHw=\")","v":{"$error":"#REF!"}},{"$f":"AND('Basic Financial'!#REF!,\"dFk3N1VGVH0=\")","v":{"$error":"#REF!"}},{"$f":"AND('Basic Financial'!#REF!,\"dFk3N1VGVH4=\")","v":{"$error":"#REF!"}},{"$f":"AND('Basic Financial'!#REF!,\"dFk3N1VGVH8=\")","v":{"$error":"#REF!"}},{"$f":"AND('Basic Financial'!#REF!,\"dFk3N1VGVIA=\")","v":{"$error":"#REF!"}},{"$f":"AND('Basic Financial'!#REF!,\"dFk3N1VGVIE=\")","v":{"$error":"#REF!"}},{"$f":"AND('Basic Financial'!#REF!,\"dFk3N1VGVII=\")","v":{"$error":"#REF!"}},{"$f":"AND('Basic Financial'!#REF!,\"dFk3N1VGVIM=\")","v":{"$error":"#REF!"}},{"$f":"AND('Basic Financial'!#REF!,\"dFk3N1VGVIQ=\")","v":{"$error":"#REF!"}},{"$f":"AND('Basic Financial'!#REF!,\"dFk3N1VGVIU=\")","v":{"$error":"#REF!"}},{"$f":"IF('Basic Financial'!#REF!,\"dFk3N1VGVIY=\",0)","v":{"$error":"#REF!"}},{"$f":"AND('Basic Financial'!#REF!,\"dFk3N1VGVIc=\")","v":{"$error":"#REF!"}},{"$f":"AND('Basic Financial'!#REF!,\"dFk3N1VGVIg=\")","v":{"$error":"#REF!"}},{"$f":"AND('Basic Financial'!#REF!,\"dFk3N1VGVIk=\")","v":{"$error":"#REF!"}},{"$f":"AND('Basic Financial'!#REF!,\"dFk3N1VGVIo=\")","v":{"$error":"#REF!"}},{"$f":"AND('Basic Financial'!#REF!,\"dFk3N1VGVIs=\")","v":{"$error":"#REF!"}},{"$f":"AND('Basic Financial'!#REF!,\"dFk3N1VGVIw=\")","v":{"$error":"#REF!"}},{"$f":"AND('Basic Financial'!#REF!,\"dFk3N1VGVI0=\")","v":{"$error":"#REF!"}},{"$f":"AND('Basic Financial'!#REF!,\"dFk3N1VGVI4=\")","v":{"$error":"#REF!"}},{"$f":"AND('Basic Financial'!#REF!,\"dFk3N1VGVI8=\")","v":{"$error":"#REF!"}},{"$f":"AND('Basic Financial'!#REF!,\"dFk3N1VGVJA=\")","v":{"$error":"#REF!"}},{"$f":"AND('Basic Financial'!#REF!,\"dFk3N1VGVJE=\")","v":{"$error":"#REF!"}},{"$f":"AND('Basic Financial'!#REF!,\"dFk3N1VGVJI=\")","v":{"$error":"#REF!"}},{"$f":"AND('Basic Financial'!#REF!,\"dFk3N1VGVJM=\")","v":{"$error":"#REF!"}},{"$f":"IF('Basic Financial'!#REF!,\"dFk3N1VGVJQ=\",0)","v":{"$error":"#REF!"}},{"$f":"AND('Basic Financial'!#REF!,\"dFk3N1VGVJU=\")","v":{"$error":"#REF!"}},{"$f":"AND('Basic Financial'!#REF!,\"dFk3N1VGVJY=\")","v":{"$error":"#REF!"}},{"$f":"AND('Basic Financial'!#REF!,\"dFk3N1VGVJc=\")","v":{"$error":"#REF!"}},{"$f":"AND('Basic Financial'!#REF!,\"dFk3N1VGVJg=\")","v":{"$error":"#REF!"}},{"$f":"AND('Basic Financial'!#REF!,\"dFk3N1VGVJk=\")","v":{"$error":"#REF!"}},{"$f":"AND('Basic Financial'!#REF!,\"dFk3N1VGVJo=\")","v":{"$error":"#REF!"}},{"$f":"AND('Basic Financial'!#REF!,\"dFk3N1VGVJs=\")","v":{"$error":"#REF!"}},{"$f":"AND('Basic Financial'!#REF!,\"dFk3N1VGVJw=\")","v":{"$error":"#REF!"}},{"$f":"AND('Basic Financial'!#REF!,\"dFk3N1VGVJ0=\")","v":{"$error":"#REF!"}},{"$f":"AND('Basic Financial'!#REF!,\"dFk3N1VGVJ4=\")","v":{"$error":"#REF!"}},{"$f":"AND('Basic Financial'!#REF!,\"dFk3N1VGVJ8=\")","v":{"$error":"#REF!"}},{"$f":"AND('Basic Financial'!#REF!,\"dFk3N1VGVKA=\")","v":{"$error":"#REF!"}},{"$f":"AND('Basic Financial'!#REF!,\"dFk3N1VGVKE=\")","v":{"$error":"#REF!"}},{"$f":"IF('Basic Financial'!#REF!,\"dFk3N1VGVKI=\",0)","v":{"$error":"#REF!"}},{"$f":"AND('Basic Financial'!#REF!,\"dFk3N1VGVKM=\")","v":{"$error":"#REF!"}},{"$f":"AND('Basic Financial'!#REF!,\"dFk3N1VGVKQ=\")","v":{"$error":"#REF!"}},{"$f":"AND('Basic Financial'!#REF!,\"dFk3N1VGVKU=\")","v":{"$error":"#REF!"}},{"$f":"AND('Basic Financial'!#REF!,\"dFk3N1VGVKY=\")","v":{"$error":"#REF!"}},{"$f":"AND('Basic Financial'!#REF!,\"dFk3N1VGVKc=\")","v":{"$error":"#REF!"}},{"$f":"AND('Basic Financial'!#REF!,\"dFk3N1VGVKg=\")","v":{"$error":"#REF!"}},{"$f":"AND('Basic Financial'!#REF!,\"dFk3N1VGVKk=\")","v":{"$error":"#REF!"}},{"$f":"AND('Basic Financial'!#REF!,\"dFk3N1VGVKo=\")","v":{"$error":"#REF!"}},{"$f":"AND('Basic Financial'!#REF!,\"dFk3N1VGVKs=\")","v":{"$error":"#REF!"}},{"$f":"AND('Basic Financial'!#REF!,\"dFk3N1VGVKw=\")","v":{"$error":"#REF!"}},{"$f":"AND('Basic Financial'!#REF!,\"dFk3N1VGVK0=\")","v":{"$error":"#REF!"}},{"$f":"AND('Basic Financial'!#REF!,\"dFk3N1VGVK4=\")","v":{"$error":"#REF!"}},{"$f":"AND('Basic Financial'!#REF!,\"dFk3N1VGVK8=\")","v":{"$error":"#REF!"}},{"$f":"IF('Basic Financial'!#REF!,\"dFk3N1VGVLA=\",0)","v":{"$error":"#REF!"}},{"$f":"AND('Basic Financial'!#REF!,\"dFk3N1VGVLE=\")","v":{"$error":"#REF!"}},{"$f":"AND('Basic Financial'!#REF!,\"dFk3N1VGVLI=\")","v":{"$error":"#REF!"}},{"$f":"AND('Basic Financial'!#REF!,\"dFk3N1VGVLM=\")","v":{"$error":"#REF!"}},{"$f":"AND('Basic Financial'!#REF!,\"dFk3N1VGVLQ=\")","v":{"$error":"#REF!"}},{"$f":"AND('Basic Financial'!#REF!,\"dFk3N1VGVLU=\")","v":{"$error":"#REF!"}},{"$f":"AND('Basic Financial'!#REF!,\"dFk3N1VGVLY=\")","v":{"$error":"#REF!"}},{"$f":"AND('Basic Financial'!#REF!,\"dFk3N1VGVLc=\")","v":{"$error":"#REF!"}},{"$f":"AND('Basic Financial'!#REF!,\"dFk3N1VGVLg=\")","v":{"$error":"#REF!"}},{"$f":"AND('Basic Financial'!#REF!,\"dFk3N1VGVLk=\")","v":{"$error":"#REF!"}},{"$f":"AND('Basic Financial'!#REF!,\"dFk3N1VGVLo=\")","v":{"$error":"#REF!"}},{"$f":"AND('Basic Financial'!#REF!,\"dFk3N1VGVLs=\")","v":{"$error":"#REF!"}},{"$f":"AND('Basic Financial'!#REF!,\"dFk3N1VGVLw=\")","v":{"$error":"#REF!"}},{"$f":"AND('Basic Financial'!#REF!,\"dFk3N1VGVL0=\")","v":{"$error":"#REF!"}},{"$f":"IF('Basic Financial'!#REF!,\"dFk3N1VGVL4=\",0)","v":{"$error":"#REF!"}},{"$f":"AND('Basic Financial'!#REF!,\"dFk3N1VGVL8=\")","v":{"$error":"#REF!"}},{"$f":"AND('Basic Financial'!#REF!,\"dFk3N1VGVMA=\")","v":{"$error":"#REF!"}},{"$f":"AND('Basic Financial'!#REF!,\"dFk3N1VGVME=\")","v":{"$error":"#REF!"}},{"$f":"AND('Basic Financial'!#REF!,\"dFk3N1VGVMI=\")","v":{"$error":"#REF!"}},{"$f":"AND('Basic Financial'!#REF!,\"dFk3N1VGVMM=\")","v":{"$error":"#REF!"}},{"$f":"AND('Basic Financial'!#REF!,\"dFk3N1VGVMQ=\")","v":{"$error":"#REF!"}},{"$f":"AND('Basic Financial'!#REF!,\"dFk3N1VGVMU=\")","v":{"$error":"#REF!"}},{"$f":"AND('Basic Financial'!#REF!,\"dFk3N1VGVMY=\")","v":{"$error":"#REF!"}},{"$f":"AND('Basic Financial'!#REF!,\"dFk3N1VGVMc=\")","v":{"$error":"#REF!"}},{"$f":"AND('Basic Financial'!#REF!,\"dFk3N1VGVMg=\")","v":{"$error":"#REF!"}},{"$f":"AND('Basic Financial'!#REF!,\"dFk3N1VGVMk=\")","v":{"$error":"#REF!"}},{"$f":"AND('Basic Financial'!#REF!,\"dFk3N1VGVMo=\")","v":{"$error":"#REF!"}},{"$f":"AND('Basic Financial'!#REF!,\"dFk3N1VGVMs=\")","v":{"$error":"#REF!"}},{"$f":"IF('Basic Financial'!#REF!,\"dFk3N1VGVMw=\",0)","v":{"$error":"#REF!"}},{"$f":"AND('Basic Financial'!#REF!,\"dFk3N1VGVM0=\")","v":{"$error":"#REF!"}},{"$f":"AND('Basic Financial'!#REF!,\"dFk3N1VGVM4=\")","v":{"$error":"#REF!"}},{"$f":"AND('Basic Financial'!#REF!,\"dFk3N1VGVM8=\")","v":{"$error":"#REF!"}},{"$f":"AND('Basic Financial'!#REF!,\"dFk3N1VGVNA=\")","v":{"$error":"#REF!"}},{"$f":"AND('Basic Financial'!#REF!,\"dFk3N1VGVNE=\")","v":{"$error":"#REF!"}},{"$f":"AND('Basic Financial'!#REF!,\"dFk3N1VGVNI=\")","v":{"$error":"#REF!"}},{"$f":"AND('Basic Financial'!#REF!,\"dFk3N1VGVNM=\")","v":{"$error":"#REF!"}},{"$f":"AND('Basic Financial'!#REF!,\"dFk3N1VGVNQ=\")","v":{"$error":"#REF!"}},{"$f":"AND('Basic Financial'!#REF!,\"dFk3N1VGVNU=\")","v":{"$error":"#REF!"}},{"$f":"AND('Basic Financial'!#REF!,\"dFk3N1VGVNY=\")","v":{"$error":"#REF!"}},{"$f":"AND('Basic Financial'!#REF!,\"dFk3N1VGVNc=\")","v":{"$error":"#REF!"}},{"$f":"AND('Basic Financial'!#REF!,\"dFk3N1VGVNg=\")","v":{"$error":"#REF!"}},{"$f":"AND('Basic Financial'!#REF!,\"dFk3N1VGVNk=\")","v":{"$error":"#REF!"}},{"$f":"IF('Basic Financial'!#REF!,\"dFk3N1VGVNo=\",0)","v":{"$error":"#REF!"}},{"$f":"AND('Basic Financial'!#REF!,\"dFk3N1VGVNs=\")","v":{"$error":"#REF!"}},{"$f":"AND('Basic Financial'!#REF!,\"dFk3N1VGVNw=\")","v":{"$error":"#REF!"}},{"$f":"AND('Basic Financial'!#REF!,\"dFk3N1VGVN0=\")","v":{"$error":"#REF!"}},{"$f":"AND('Basic Financial'!#REF!,\"dFk3N1VGVN4=\")","v":{"$error":"#REF!"}},{"$f":"AND('Basic Financial'!#REF!,\"dFk3N1VGVN8=\")","v":{"$error":"#REF!"}},{"$f":"AND('Basic Financial'!#REF!,\"dFk3N1VGVOA=\")","v":{"$error":"#REF!"}},{"$f":"AND('Basic Financial'!#REF!,\"dFk3N1VGVOE=\")","v":{"$error":"#REF!"}},{"$f":"AND('Basic Financial'!#REF!,\"dFk3N1VGVOI=\")","v":{"$error":"#REF!"}},{"$f":"AND('Basic Financial'!#REF!,\"dFk3N1VGVOM=\")","v":{"$error":"#REF!"}},{"$f":"AND('Basic Financial'!#REF!,\"dFk3N1VGVOQ=\")","v":{"$error":"#REF!"}},{"$f":"AND('Basic Financial'!#REF!,\"dFk3N1VGVOU=\")","v":{"$error":"#REF!"}},{"$f":"AND('Basic Financial'!#REF!,\"dFk3N1VGVOY=\")","v":{"$error":"#REF!"}},{"$f":"AND('Basic Financial'!#REF!,\"dFk3N1VGVOc=\")","v":{"$error":"#REF!"}},{"$f":"IF('Basic Financial'!#REF!,\"dFk3N1VGVOg=\",0)","v":{"$error":"#REF!"}},{"$f":"AND('Basic Financial'!#REF!,\"dFk3N1VGVOk=\")","v":{"$error":"#REF!"}},{"$f":"AND('Basic Financial'!#REF!,\"dFk3N1VGVOo=\")","v":{"$error":"#REF!"}},{"$f":"AND('Basic Financial'!#REF!,\"dFk3N1VGVOs=\")","v":{"$error":"#REF!"}},{"$f":"AND('Basic Financial'!#REF!,\"dFk3N1VGVOw=\")","v":{"$error":"#REF!"}},{"$f":"AND('Basic Financial'!#REF!,\"dFk3N1VGVO0=\")","v":{"$error":"#REF!"}},{"$f":"AND('Basic Financial'!#REF!,\"dFk3N1VGVO4=\")","v":{"$error":"#REF!"}},{"$f":"AND('Basic Financial'!#REF!,\"dFk3N1VGVO8=\")","v":{"$error":"#REF!"}},{"$f":"AND('Basic Financial'!#REF!,\"dFk3N1VGVPA=\")","v":{"$error":"#REF!"}},{"$f":"AND('Basic Financial'!#REF!,\"dFk3N1VGVPE=\")","v":{"$error":"#REF!"}},{"$f":"AND('Basic Financial'!#REF!,\"dFk3N1VGVPI=\")","v":{"$error":"#REF!"}},{"$f":"AND('Basic Financial'!#REF!,\"dFk3N1VGVPM=\")","v":{"$error":"#REF!"}},{"$f":"AND('Basic Financial'!#REF!,\"dFk3N1VGVPQ=\")","v":{"$error":"#REF!"}},{"$f":"AND('Basic Financial'!#REF!,\"dFk3N1VGVPU=\")","v":{"$error":"#REF!"}},{"$f":"IF('Basic Financial'!#REF!,\"dFk3N1VGVPY=\",0)","v":{"$error":"#REF!"}},{"$f":"AND('Basic Financial'!#REF!,\"dFk3N1VGVPc=\")","v":{"$error":"#REF!"}},{"$f":"AND('Basic Financial'!#REF!,\"dFk3N1VGVPg=\")","v":{"$error":"#REF!"}},{"$f":"AND('Basic Financial'!#REF!,\"dFk3N1VGVPk=\")","v":{"$error":"#REF!"}},{"$f":"AND('Basic Financial'!#REF!,\"dFk3N1VGVPo=\")","v":{"$error":"#REF!"}},{"$f":"AND('Basic Financial'!#REF!,\"dFk3N1VGVPs=\")","v":{"$error":"#REF!"}},{"$f":"AND('Basic Financial'!#REF!,\"dFk3N1VGVPw=\")","v":{"$error":"#REF!"}},{"$f":"AND('Basic Financial'!#REF!,\"dFk3N1VGVP0=\")","v":{"$error":"#REF!"}},{"$f":"AND('Basic Financial'!#REF!,\"dFk3N1VGVP4=\")","v":{"$error":"#REF!"}},{"$f":"AND('Basic Financial'!#REF!,\"dFk3N1VGVP8=\")","v":{"$error":"#REF!"}}]
[{"$f":"AND('Basic Financial'!#REF!,\"ImGQXgCu1QA=\")","v":{"$error":"#REF!"}},{"$f":"AND('Basic Financial'!#REF!,\"ImGQXgCu1QE=\")","v":{"$error":"#REF!"}},{"$f":"AND('Basic Financial'!#REF!,\"ImGQXgCu1QI=\")","v":{"$error":"#REF!"}},{"$f":"AND('Basic Financial'!#REF!,\"ImGQXgCu1QM=\")","v":{"$error":"#REF!"}},{"$f":"IF('Basic Financial'!#REF!,\"ImGQXgCu1QQ=\",0)","v":{"$error":"#REF!"}},{"$f":"AND('Basic Financial'!#REF!,\"ImGQXgCu1QU=\")","v":{"$error":"#REF!"}},{"$f":"AND('Basic Financial'!#REF!,\"ImGQXgCu1QY=\")","v":{"$error":"#REF!"}},{"$f":"AND('Basic Financial'!#REF!,\"ImGQXgCu1Qc=\")","v":{"$error":"#REF!"}},{"$f":"AND('Basic Financial'!#REF!,\"ImGQXgCu1Qg=\")","v":{"$error":"#REF!"}},{"$f":"AND('Basic Financial'!#REF!,\"ImGQXgCu1Qk=\")","v":{"$error":"#REF!"}},{"$f":"AND('Basic Financial'!#REF!,\"ImGQXgCu1Qo=\")","v":{"$error":"#REF!"}},{"$f":"AND('Basic Financial'!#REF!,\"ImGQXgCu1Qs=\")","v":{"$error":"#REF!"}},{"$f":"AND('Basic Financial'!#REF!,\"ImGQXgCu1Qw=\")","v":{"$error":"#REF!"}},{"$f":"AND('Basic Financial'!#REF!,\"ImGQXgCu1Q0=\")","v":{"$error":"#REF!"}},{"$f":"AND('Basic Financial'!#REF!,\"ImGQXgCu1Q4=\")","v":{"$error":"#REF!"}},{"$f":"AND('Basic Financial'!#REF!,\"ImGQXgCu1Q8=\")","v":{"$error":"#REF!"}},{"$f":"AND('Basic Financial'!#REF!,\"ImGQXgCu1RA=\")","v":{"$error":"#REF!"}},{"$f":"AND('Basic Financial'!#REF!,\"ImGQXgCu1RE=\")","v":{"$error":"#REF!"}},{"$f":"IF('Basic Financial'!#REF!,\"ImGQXgCu1RI=\",0)","v":{"$error":"#REF!"}},{"$f":"AND('Basic Financial'!#REF!,\"ImGQXgCu1RM=\")","v":{"$error":"#REF!"}},{"$f":"AND('Basic Financial'!#REF!,\"ImGQXgCu1RQ=\")","v":{"$error":"#REF!"}},{"$f":"AND('Basic Financial'!#REF!,\"ImGQXgCu1RU=\")","v":{"$error":"#REF!"}},{"$f":"AND('Basic Financial'!#REF!,\"ImGQXgCu1RY=\")","v":{"$error":"#REF!"}},{"$f":"AND('Basic Financial'!#REF!,\"ImGQXgCu1Rc=\")","v":{"$error":"#REF!"}},{"$f":"AND('Basic Financial'!#REF!,\"ImGQXgCu1Rg=\")","v":{"$error":"#REF!"}},{"$f":"AND('Basic Financial'!#REF!,\"ImGQXgCu1Rk=\")","v":{"$error":"#REF!"}},{"$f":"AND('Basic Financial'!#REF!,\"ImGQXgCu1Ro=\")","v":{"$error":"#REF!"}},{"$f":"AND('Basic Financial'!#REF!,\"ImGQXgCu1Rs=\")","v":{"$error":"#REF!"}},{"$f":"AND('Basic Financial'!#REF!,\"ImGQXgCu1Rw=\")","v":{"$error":"#REF!"}},{"$f":"AND('Basic Financial'!#REF!,\"ImGQXgCu1R0=\")","v":{"$error":"#REF!"}},{"$f":"AND('Basic Financial'!#REF!,\"ImGQXgCu1R4=\")","v":{"$error":"#REF!"}},{"$f":"AND('Basic Financial'!#REF!,\"ImGQXgCu1R8=\")","v":{"$error":"#REF!"}},{"$f":"IF('Basic Financial'!#REF!,\"ImGQXgCu1SA=\",0)","v":{"$error":"#REF!"}},{"$f":"AND('Basic Financial'!#REF!,\"ImGQXgCu1SE=\")","v":{"$error":"#REF!"}},{"$f":"AND('Basic Financial'!#REF!,\"ImGQXgCu1SI=\")","v":{"$error":"#REF!"}},{"$f":"AND('Basic Financial'!#REF!,\"ImGQXgCu1SM=\")","v":{"$error":"#REF!"}},{"$f":"AND('Basic Financial'!#REF!,\"ImGQXgCu1SQ=\")","v":{"$error":"#REF!"}},{"$f":"AND('Basic Financial'!#REF!,\"ImGQXgCu1SU=\")","v":{"$error":"#REF!"}},{"$f":"AND('Basic Financial'!#REF!,\"ImGQXgCu1SY=\")","v":{"$error":"#REF!"}},{"$f":"AND('Basic Financial'!#REF!,\"ImGQXgCu1Sc=\")","v":{"$error":"#REF!"}},{"$f":"AND('Basic Financial'!#REF!,\"ImGQXgCu1Sg=\")","v":{"$error":"#REF!"}},{"$f":"AND('Basic Financial'!#REF!,\"ImGQXgCu1Sk=\")","v":{"$error":"#REF!"}},{"$f":"AND('Basic Financial'!#REF!,\"ImGQXgCu1So=\")","v":{"$error":"#REF!"}},{"$f":"AND('Basic Financial'!#REF!,\"ImGQXgCu1Ss=\")","v":{"$error":"#REF!"}},{"$f":"AND('Basic Financial'!#REF!,\"ImGQXgCu1Sw=\")","v":{"$error":"#REF!"}},{"$f":"AND('Basic Financial'!#REF!,\"ImGQXgCu1S0=\")","v":{"$error":"#REF!"}},{"$f":"IF('Basic Financial'!#REF!,\"ImGQXgCu1S4=\",0)","v":{"$error":"#REF!"}},{"$f":"AND('Basic Financial'!#REF!,\"ImGQXgCu1S8=\")","v":{"$error":"#REF!"}},{"$f":"AND('Basic Financial'!#REF!,\"ImGQXgCu1TA=\")","v":{"$error":"#REF!"}},{"$f":"AND('Basic Financial'!#REF!,\"ImGQXgCu1TE=\")","v":{"$error":"#REF!"}},{"$f":"AND('Basic Financial'!#REF!,\"ImGQXgCu1TI=\")","v":{"$error":"#REF!"}},{"$f":"AND('Basic Financial'!#REF!,\"ImGQXgCu1TM=\")","v":{"$error":"#REF!"}},{"$f":"AND('Basic Financial'!#REF!,\"ImGQXgCu1TQ=\")","v":{"$error":"#REF!"}},{"$f":"AND('Basic Financial'!#REF!,\"ImGQXgCu1TU=\")","v":{"$error":"#REF!"}},{"$f":"AND('Basic Financial'!#REF!,\"ImGQXgCu1TY=\")","v":{"$error":"#REF!"}},{"$f":"AND('Basic Financial'!#REF!,\"ImGQXgCu1Tc=\")","v":{"$error":"#REF!"}},{"$f":"AND('Basic Financial'!#REF!,\"ImGQXgCu1Tg=\")","v":{"$error":"#REF!"}},{"$f":"AND('Basic Financial'!#REF!,\"ImGQXgCu1Tk=\")","v":{"$error":"#REF!"}},{"$f":"AND('Basic Financial'!#REF!,\"ImGQXgCu1To=\")","v":{"$error":"#REF!"}},{"$f":"AND('Basic Financial'!#REF!,\"ImGQXgCu1Ts=\")","v":{"$error":"#REF!"}},{"$f":"IF('Basic Financial'!#REF!,\"ImGQXgCu1Tw=\",0)","v":{"$error":"#REF!"}},{"$f":"AND('Basic Financial'!#REF!,\"ImGQXgCu1T0=\")","v":{"$error":"#REF!"}},{"$f":"AND('Basic Financial'!#REF!,\"ImGQXgCu1T4=\")","v":{"$error":"#REF!"}},{"$f":"AND('Basic Financial'!#REF!,\"ImGQXgCu1T8=\")","v":{"$error":"#REF!"}},{"$f":"AND('Basic Financial'!#REF!,\"ImGQXgCu1UA=\")","v":{"$error":"#REF!"}},{"$f":"AND('Basic Financial'!#REF!,\"ImGQXgCu1UE=\")","v":{"$error":"#REF!"}},{"$f":"AND('Basic Financial'!#REF!,\"ImGQXgCu1UI=\")","v":{"$error":"#REF!"}},{"$f":"AND('Basic Financial'!#REF!,\"ImGQXgCu1UM=\")","v":{"$error":"#REF!"}},{"$f":"AND('Basic Financial'!#REF!,\"ImGQXgCu1UQ=\")","v":{"$error":"#REF!"}},{"$f":"AND('Basic Financial'!#REF!,\"ImGQXgCu1UU=\")","v":{"$error":"#REF!"}},{"$f":"AND('Basic Financial'!#REF!,\"ImGQXgCu1UY=\")","v":{"$error":"#REF!"}},{"$f":"AND('Basic Financial'!#REF!,\"ImGQXgCu1Uc=\")","v":{"$error":"#REF!"}},{"$f":"AND('Basic Financial'!#REF!,\"ImGQXgCu1Ug=\")","v":{"$error":"#REF!"}},{"$f":"AND('Basic Financial'!#REF!,\"ImGQXgCu1Uk=\")","v":{"$error":"#REF!"}},{"$f":"IF('Basic Financial'!#REF!,\"ImGQXgCu1Uo=\",0)","v":{"$error":"#REF!"}},{"$f":"AND('Basic Financial'!#REF!,\"ImGQXgCu1Us=\")","v":{"$error":"#REF!"}},{"$f":"AND('Basic Financial'!#REF!,\"ImGQXgCu1Uw=\")","v":{"$error":"#REF!"}},{"$f":"AND('Basic Financial'!#REF!,\"ImGQXgCu1U0=\")","v":{"$error":"#REF!"}},{"$f":"AND('Basic Financial'!#REF!,\"ImGQXgCu1U4=\")","v":{"$error":"#REF!"}},{"$f":"AND('Basic Financial'!#REF!,\"ImGQXgCu1U8=\")","v":{"$error":"#REF!"}},{"$f":"AND('Basic Financial'!#REF!,\"ImGQXgCu1VA=\")","v":{"$error":"#REF!"}},{"$f":"AND('Basic Financial'!#REF!,\"ImGQXgCu1VE=\")","v":{"$error":"#REF!"}},{"$f":"AND('Basic Financial'!#REF!,\"ImGQXgCu1VI=\")","v":{"$error":"#REF!"}},{"$f":"AND('Basic Financial'!#REF!,\"ImGQXgCu1VM=\")","v":{"$error":"#REF!"}},{"$f":"AND('Basic Financial'!#REF!,\"ImGQXgCu1VQ=\")","v":{"$error":"#REF!"}},{"$f":"AND('Basic Financial'!#REF!,\"ImGQXgCu1VU=\")","v":{"$error":"#REF!"}},{"$f":"AND('Basic Financial'!#REF!,\"ImGQXgCu1VY=\")","v":{"$error":"#REF!"}},{"$f":"AND('Basic Financial'!#REF!,\"ImGQXgCu1Vc=\")","v":{"$error":"#REF!"}},{"$f":"IF('Basic Financial'!#REF!,\"ImGQXgCu1Vg=\",0)","v":{"$error":"#REF!"}},{"$f":"AND('Basic Financial'!#REF!,\"ImGQXgCu1Vk=\")","v":{"$error":"#REF!"}},{"$f":"AND('Basic Financial'!#REF!,\"ImGQXgCu1Vo=\")","v":{"$error":"#REF!"}},{"$f":"AND('Basic Financial'!#REF!,\"ImGQXgCu1Vs=\")","v":{"$error":"#REF!"}},{"$f":"AND('Basic Financial'!#REF!,\"ImGQXgCu1Vw=\")","v":{"$error":"#REF!"}},{"$f":"AND('Basic Financial'!#REF!,\"ImGQXgCu1V0=\")","v":{"$error":"#REF!"}},{"$f":"AND('Basic Financial'!#REF!,\"ImGQXgCu1V4=\")","v":{"$error":"#REF!"}},{"$f":"AND('Basic Financial'!#REF!,\"ImGQXgCu1V8=\")","v":{"$error":"#REF!"}},{"$f":"AND('Basic Financial'!#REF!,\"ImGQXgCu1WA=\")","v":{"$error":"#REF!"}},{"$f":"AND('Basic Financial'!#REF!,\"ImGQXgCu1WE=\")","v":{"$error":"#REF!"}},{"$f":"AND('Basic Financial'!#REF!,\"ImGQXgCu1WI=\")","v":{"$error":"#REF!"}},{"$f":"AND('Basic Financial'!#REF!,\"ImGQXgCu1WM=\")","v":{"$error":"#REF!"}},{"$f":"AND('Basic Financial'!#REF!,\"ImGQXgCu1WQ=\")","v":{"$error":"#REF!"}},{"$f":"AND('Basic Financial'!#REF!,\"ImGQXgCu1WU=\")","v":{"$error":"#REF!"}},{"$f":"IF('Basic Financial'!#REF!,\"ImGQXgCu1WY=\",0)","v":{"$error":"#REF!"}},{"$f":"AND('Basic Financial'!#REF!,\"ImGQXgCu1Wc=\")","v":{"$error":"#REF!"}},{"$f":"AND('Basic Financial'!#REF!,\"ImGQXgCu1Wg=\")","v":{"$error":"#REF!"}},{"$f":"AND('Basic Financial'!#REF!,\"ImGQXgCu1Wk=\")","v":{"$error":"#REF!"}},{"$f":"AND('Basic Financial'!#REF!,\"ImGQXgCu1Wo=\")","v":{"$error":"#REF!"}},{"$f":"AND('Basic Financial'!#REF!,\"ImGQXgCu1Ws=\")","v":{"$error":"#REF!"}},{"$f":"AND('Basic Financial'!#REF!,\"ImGQXgCu1Ww=\")","v":{"$error":"#REF!"}},{"$f":"AND('Basic Financial'!#REF!,\"ImGQXgCu1W0=\")","v":{"$error":"#REF!"}},{"$f":"AND('Basic Financial'!#REF!,\"ImGQXgCu1W4=\")","v":{"$error":"#REF!"}},{"$f":"AND('Basic Financial'!#REF!,\"ImGQXgCu1W8=\")","v":{"$error":"#REF!"}},{"$f":"AND('Basic Financial'!#REF!,\"ImGQXgCu1XA=\")","v":{"$error":"#REF!"}},{"$f":"AND('Basic Financial'!#REF!,\"ImGQXgCu1XE=\")","v":{"$error":"#REF!"}},{"$f":"AND('Basic Financial'!#REF!,\"ImGQXgCu1XI=\")","v":{"$error":"#REF!"}},{"$f":"AND('Basic Financial'!#REF!,\"ImGQXgCu1XM=\")","v":{"$error":"#REF!"}},{"$f":"IF('Basic Financial'!#REF!,\"ImGQXgCu1XQ=\",0)","v":{"$error":"#REF!"}},{"$f":"AND('Basic Financial'!#REF!,\"ImGQXgCu1XU=\")","v":{"$error":"#REF!"}},{"$f":"AND('Basic Financial'!#REF!,\"ImGQXgCu1XY=\")","v":{"$error":"#REF!"}},{"$f":"AND('Basic Financial'!#REF!,\"ImGQXgCu1Xc=\")","v":{"$error":"#REF!"}},{"$f":"AND('Basic Financial'!#REF!,\"ImGQXgCu1Xg=\")","v":{"$error":"#REF!"}},{"$f":"AND('Basic Financial'!#REF!,\"ImGQXgCu1Xk=\")","v":{"$error":"#REF!"}},{"$f":"AND('Basic Financial'!#REF!,\"ImGQXgCu1Xo=\")","v":{"$error":"#REF!"}},{"$f":"AND('Basic Financial'!#REF!,\"ImGQXgCu1Xs=\")","v":{"$error":"#REF!"}},{"$f":"AND('Basic Financial'!#REF!,\"ImGQXgCu1Xw=\")","v":{"$error":"#REF!"}},{"$f":"AND('Basic Financial'!#REF!,\"ImGQXgCu1X0=\")","v":{"$error":"#REF!"}},{"$f":"AND('Basic Financial'!#REF!,\"ImGQXgCu1X4=\")","v":{"$error":"#REF!"}},{"$f":"AND('Basic Financial'!#REF!,\"ImGQXgCu1X8=\")","v":{"$error":"#REF!"}},{"$f":"AND('Basic Financial'!#REF!,\"ImGQXgCu1YA=\")","v":{"$error":"#REF!"}},{"$f":"AND('Basic Financial'!#REF!,\"ImGQXgCu1YE=\")","v":{"$error":"#REF!"}},{"$f":"IF('Basic Financial'!#REF!,\"ImGQXgCu1YI=\",0)","v":{"$error":"#REF!"}},{"$f":"AND('Basic Financial'!#REF!,\"ImGQXgCu1YM=\")","v":{"$error":"#REF!"}},{"$f":"AND('Basic Financial'!#REF!,\"ImGQXgCu1YQ=\")","v":{"$error":"#REF!"}},{"$f":"AND('Basic Financial'!#REF!,\"ImGQXgCu1YU=\")","v":{"$error":"#REF!"}},{"$f":"AND('Basic Financial'!#REF!,\"ImGQXgCu1YY=\")","v":{"$error":"#REF!"}},{"$f":"AND('Basic Financial'!#REF!,\"ImGQXgCu1Yc=\")","v":{"$error":"#REF!"}},{"$f":"AND('Basic Financial'!#REF!,\"ImGQXgCu1Yg=\")","v":{"$error":"#REF!"}},{"$f":"AND('Basic Financial'!#REF!,\"ImGQXgCu1Yk=\")","v":{"$error":"#REF!"}},{"$f":"AND('Basic Financial'!#REF!,\"ImGQXgCu1Yo=\")","v":{"$error":"#REF!"}},{"$f":"AND('Basic Financial'!#REF!,\"ImGQXgCu1Ys=\")","v":{"$error":"#REF!"}},{"$f":"AND('Basic Financial'!#REF!,\"ImGQXgCu1Yw=\")","v":{"$error":"#REF!"}},{"$f":"AND('Basic Financial'!#REF!,\"ImGQXgCu1Y0=\")","v":{"$error":"#REF!"}},{"$f":"AND('Basic Financial'!#REF!,\"ImGQXgCu1Y4=\")","v":{"$error":"#REF!"}},{"$f":"AND('Basic Financial'!#REF!,\"ImGQXgCu1Y8=\")","v":{"$error":"#REF!"}},{"$f":"IF('Basic Financial'!#REF!,\"ImGQXgCu1ZA=\",0)","v":{"$error":"#REF!"}},{"$f":"AND('Basic Financial'!#REF!,\"ImGQXgCu1ZE=\")","v":{"$error":"#REF!"}},{"$f":"AND('Basic Financial'!#REF!,\"ImGQXgCu1ZI=\")","v":{"$error":"#REF!"}},{"$f":"AND('Basic Financial'!#REF!,\"ImGQXgCu1ZM=\")","v":{"$error":"#REF!"}},{"$f":"AND('Basic Financial'!#REF!,\"ImGQXgCu1ZQ=\")","v":{"$error":"#REF!"}},{"$f":"AND('Basic Financial'!#REF!,\"ImGQXgCu1ZU=\")","v":{"$error":"#REF!"}},{"$f":"AND('Basic Financial'!#REF!,\"ImGQXgCu1ZY=\")","v":{"$error":"#REF!"}},{"$f":"AND('Basic Financial'!#REF!,\"ImGQXgCu1Zc=\")","v":{"$error":"#REF!"}},{"$f":"AND('Basic Financial'!#REF!,\"ImGQXgCu1Zg=\")","v":{"$error":"#REF!"}},{"$f":"AND('Basic Financial'!#REF!,\"ImGQXgCu1Zk=\")","v":{"$error":"#REF!"}},{"$f":"AND('Basic Financial'!#REF!,\"ImGQXgCu1Zo=\")","v":{"$error":"#REF!"}},{"$f":"AND('Basic Financial'!#REF!,\"ImGQXgCu1Zs=\")","v":{"$error":"#REF!"}},{"$f":"AND('Basic Financial'!#REF!,\"ImGQXgCu1Zw=\")","v":{"$error":"#REF!"}},{"$f":"AND('Basic Financial'!#REF!,\"ImGQXgCu1Z0=\")","v":{"$error":"#REF!"}},{"$f":"IF('Basic Financial'!#REF!,\"ImGQXgCu1Z4=\",0)","v":{"$error":"#REF!"}},{"$f":"AND('Basic Financial'!#REF!,\"ImGQXgCu1Z8=\")","v":{"$error":"#REF!"}},{"$f":"AND('Basic Financial'!#REF!,\"ImGQXgCu1aA=\")","v":{"$error":"#REF!"}},{"$f":"AND('Basic Financial'!#REF!,\"ImGQXgCu1aE=\")","v":{"$error":"#REF!"}},{"$f":"AND('Basic Financial'!#REF!,\"ImGQXgCu1aI=\")","v":{"$error":"#REF!"}},{"$f":"AND('Basic Financial'!#REF!,\"ImGQXgCu1aM=\")","v":{"$error":"#REF!"}},{"$f":"AND('Basic Financial'!#REF!,\"ImGQXgCu1aQ=\")","v":{"$error":"#REF!"}},{"$f":"AND('Basic Financial'!#REF!,\"ImGQXgCu1aU=\")","v":{"$error":"#REF!"}},{"$f":"AND('Basic Financial'!#REF!,\"ImGQXgCu1aY=\")","v":{"$error":"#REF!"}},{"$f":"AND('Basic Financial'!#REF!,\"ImGQXgCu1ac=\")","v":{"$error":"#REF!"}},{"$f":"AND('Basic Financial'!#REF!,\"ImGQXgCu1ag=\")","v":{"$error":"#REF!"}},{"$f":"AND('Basic Financial'!#REF!,\"ImGQXgCu1ak=\")","v":{"$error":"#REF!"}},{"$f":"AND('Basic Financial'!#REF!,\"ImGQXgCu1ao=\")","v":{"$error":"#REF!"}},{"$f":"AND('Basic Financial'!#REF!,\"ImGQXgCu1as=\")","v":{"$error":"#REF!"}},{"$f":"IF('Basic Financial'!#REF!,\"ImGQXgCu1aw=\",0)","v":{"$error":"#REF!"}},{"$f":"AND('Basic Financial'!#REF!,\"ImGQXgCu1a0=\")","v":{"$error":"#REF!"}},{"$f":"AND('Basic Financial'!#REF!,\"ImGQXgCu1a4=\")","v":{"$error":"#REF!"}},{"$f":"AND('Basic Financial'!#REF!,\"ImGQXgCu1a8=\")","v":{"$error":"#REF!"}},{"$f":"AND('Basic Financial'!#REF!,\"ImGQXgCu1bA=\")","v":{"$error":"#REF!"}},{"$f":"AND('Basic Financial'!#REF!,\"ImGQXgCu1bE=\")","v":{"$error":"#REF!"}},{"$f":"AND('Basic Financial'!#REF!,\"ImGQXgCu1bI=\")","v":{"$error":"#REF!"}},{"$f":"AND('Basic Financial'!#REF!,\"ImGQXgCu1bM=\")","v":{"$error":"#REF!"}},{"$f":"AND('Basic Financial'!#REF!,\"ImGQXgCu1bQ=\")","v":{"$error":"#REF!"}},{"$f":"AND('Basic Financial'!#REF!,\"ImGQXgCu1bU=\")","v":{"$error":"#REF!"}},{"$f":"AND('Basic Financial'!#REF!,\"ImGQXgCu1bY=\")","v":{"$error":"#REF!"}},{"$f":"AND('Basic Financial'!#REF!,\"ImGQXgCu1bc=\")","v":{"$error":"#REF!"}},{"$f":"AND('Basic Financial'!#REF!,\"ImGQXgCu1bg=\")","v":{"$error":"#REF!"}},{"$f":"AND('Basic Financial'!#REF!,\"ImGQXgCu1bk=\")","v":{"$error":"#REF!"}},{"$f":"IF('Basic Financial'!#REF!,\"ImGQXgCu1bo=\",0)","v":{"$error":"#REF!"}},{"$f":"AND('Basic Financial'!#REF!,\"ImGQXgCu1bs=\")","v":{"$error":"#REF!"}},{"$f":"AND('Basic Financial'!#REF!,\"ImGQXgCu1bw=\")","v":{"$error":"#REF!"}},{"$f":"AND('Basic Financial'!#REF!,\"ImGQXgCu1b0=\")","v":{"$error":"#REF!"}},{"$f":"AND('Basic Financial'!#REF!,\"ImGQXgCu1b4=\")","v":{"$error":"#REF!"}},{"$f":"AND('Basic Financial'!#REF!,\"ImGQXgCu1b8=\")","v":{"$error":"#REF!"}},{"$f":"AND('Basic Financial'!#REF!,\"ImGQXgCu1cA=\")","v":{"$error":"#REF!"}},{"$f":"AND('Basic Financial'!#REF!,\"ImGQXgCu1cE=\")","v":{"$error":"#REF!"}},{"$f":"AND('Basic Financial'!#REF!,\"ImGQXgCu1cI=\")","v":{"$error":"#REF!"}},{"$f":"AND('Basic Financial'!#REF!,\"ImGQXgCu1cM=\")","v":{"$error":"#REF!"}},{"$f":"AND('Basic Financial'!#REF!,\"ImGQXgCu1cQ=\")","v":{"$error":"#REF!"}},{"$f":"AND('Basic Financial'!#REF!,\"ImGQXgCu1cU=\")","v":{"$error":"#REF!"}},{"$f":"AND('Basic Financial'!#REF!,\"ImGQXgCu1cY=\")","v":{"$error":"#REF!"}},{"$f":"AND('Basic Financial'!#REF!,\"ImGQXgCu1cc=\")","v":{"$error":"#REF!"}},{"$f":"IF('Basic Financial'!#REF!,\"ImGQXgCu1cg=\",0)","v":{"$error":"#REF!"}},{"$f":"AND('Basic Financial'!#REF!,\"ImGQXgCu1ck=\")","v":{"$error":"#REF!"}},{"$f":"AND('Basic Financial'!#REF!,\"ImGQXgCu1co=\")","v":{"$error":"#REF!"}},{"$f":"AND('Basic Financial'!#REF!,\"ImGQXgCu1cs=\")","v":{"$error":"#REF!"}},{"$f":"AND('Basic Financial'!#REF!,\"ImGQXgCu1cw=\")","v":{"$error":"#REF!"}},{"$f":"AND('Basic Financial'!#REF!,\"ImGQXgCu1c0=\")","v":{"$error":"#REF!"}},{"$f":"AND('Basic Financial'!#REF!,\"ImGQXgCu1c4=\")","v":{"$error":"#REF!"}},{"$f":"AND('Basic Financial'!#REF!,\"ImGQXgCu1c8=\")","v":{"$error":"#REF!"}},{"$f":"AND('Basic Financial'!#REF!,\"ImGQXgCu1dA=\")","v":{"$error":"#REF!"}},{"$f":"AND('Basic Financial'!#REF!,\"ImGQXgCu1dE=\")","v":{"$error":"#REF!"}},{"$f":"AND('Basic Financial'!#REF!,\"ImGQXgCu1dI=\")","v":{"$error":"#REF!"}},{"$f":"AND('Basic Financial'!#REF!,\"ImGQXgCu1dM=\")","v":{"$error":"#REF!"}},{"$f":"AND('Basic Financial'!#REF!,\"ImGQXgCu1dQ=\")","v":{"$error":"#REF!"}},{"$f":"AND('Basic Financial'!#REF!,\"ImGQXgCu1dU=\")","v":{"$error":"#REF!"}},{"$f":"IF('Basic Financial'!#REF!,\"ImGQXgCu1dY=\",0)","v":{"$error":"#REF!"}},{"$f":"AND('Basic Financial'!#REF!,\"ImGQXgCu1dc=\")","v":{"$error":"#REF!"}},{"$f":"AND('Basic Financial'!#REF!,\"ImGQXgCu1dg=\")","v":{"$error":"#REF!"}},{"$f":"AND('Basic Financial'!#REF!,\"ImGQXgCu1dk=\")","v":{"$error":"#REF!"}},{"$f":"AND('Basic Financial'!#REF!,\"ImGQXgCu1do=\")","v":{"$error":"#REF!"}},{"$f":"AND('Basic Financial'!#REF!,\"ImGQXgCu1ds=\")","v":{"$error":"#REF!"}},{"$f":"AND('Basic Financial'!#REF!,\"ImGQXgCu1dw=\")","v":{"$error":"#REF!"}},{"$f":"AND('Basic Financial'!#REF!,\"ImGQXgCu1d0=\")","v":{"$error":"#REF!"}},{"$f":"AND('Basic Financial'!#REF!,\"ImGQXgCu1d4=\")","v":{"$error":"#REF!"}},{"$f":"AND('Basic Financial'!#REF!,\"ImGQXgCu1d8=\")","v":{"$error":"#REF!"}},{"$f":"AND('Basic Financial'!#REF!,\"ImGQXgCu1eA=\")","v":{"$error":"#REF!"}},{"$f":"AND('Basic Financial'!#REF!,\"ImGQXgCu1eE=\")","v":{"$error":"#REF!"}},{"$f":"AND('Basic Financial'!#REF!,\"ImGQXgCu1eI=\")","v":{"$error":"#REF!"}},{"$f":"AND('Basic Financial'!#REF!,\"ImGQXgCu1eM=\")","v":{"$error":"#REF!"}},{"$f":"IF('Basic Financial'!#REF!,\"ImGQXgCu1eQ=\",0)","v":{"$error":"#REF!"}},{"$f":"AND('Basic Financial'!#REF!,\"ImGQXgCu1eU=\")","v":{"$error":"#REF!"}},{"$f":"AND('Basic Financial'!#REF!,\"ImGQXgCu1eY=\")","v":{"$error":"#REF!"}},{"$f":"AND('Basic Financial'!#REF!,\"ImGQXgCu1ec=\")","v":{"$error":"#REF!"}},{"$f":"AND('Basic Financial'!#REF!,\"ImGQXgCu1eg=\")","v":{"$error":"#REF!"}},{"$f":"AND('Basic Financial'!#REF!,\"ImGQXgCu1ek=\")","v":{"$error":"#REF!"}},{"$f":"AND('Basic Financial'!#REF!,\"ImGQXgCu1eo=\")","v":{"$error":"#REF!"}},{"$f":"AND('Basic Financial'!#REF!,\"ImGQXgCu1es=\")","v":{"$error":"#REF!"}},{"$f":"AND('Basic Financial'!#REF!,\"ImGQXgCu1ew=\")","v":{"$error":"#REF!"}},{"$f":"AND('Basic Financial'!#REF!,\"ImGQXgCu1e0=\")","v":{"$error":"#REF!"}},{"$f":"AND('Basic Financial'!#REF!,\"ImGQXgCu1e4=\")","v":{"$error":"#REF!"}},{"$f":"AND('Basic Financial'!#REF!,\"ImGQXgCu1e8=\")","v":{"$error":"#REF!"}},{"$f":"AND('Basic Financial'!#REF!,\"ImGQXgCu1fA=\")","v":{"$error":"#REF!"}},{"$f":"AND('Basic Financial'!#REF!,\"ImGQXgCu1fE=\")","v":{"$error":"#REF!"}},{"$f":"IF('Basic Financial'!#REF!,\"ImGQXgCu1fI=\",0)","v":{"$error":"#REF!"}},{"$f":"AND('Basic Financial'!#REF!,\"ImGQXgCu1fM=\")","v":{"$error":"#REF!"}},{"$f":"AND('Basic Financial'!#REF!,\"ImGQXgCu1fQ=\")","v":{"$error":"#REF!"}},{"$f":"AND('Basic Financial'!#REF!,\"ImGQXgCu1fU=\")","v":{"$error":"#REF!"}},{"$f":"AND('Basic Financial'!#REF!,\"ImGQXgCu1fY=\")","v":{"$error":"#REF!"}},{"$f":"AND('Basic Financial'!#REF!,\"ImGQXgCu1fc=\")","v":{"$error":"#REF!"}},{"$f":"AND('Basic Financial'!#REF!,\"ImGQXgCu1fg=\")","v":{"$error":"#REF!"}},{"$f":"AND('Basic Financial'!#REF!,\"ImGQXgCu1fk=\")","v":{"$error":"#REF!"}},{"$f":"AND('Basic Financial'!#REF!,\"ImGQXgCu1fo=\")","v":{"$error":"#REF!"}},{"$f":"AND('Basic Financial'!#REF!,\"ImGQXgCu1fs=\")","v":{"$error":"#REF!"}},{"$f":"AND('Basic Financial'!#REF!,\"ImGQXgCu1fw=\")","v":{"$error":"#REF!"}},{"$f":"AND('Basic Financial'!#REF!,\"ImGQXgCu1f0=\")","v":{"$error":"#REF!"}},{"$f":"AND('Basic Financial'!#REF!,\"ImGQXgCu1f4=\")","v":{"$error":"#REF!"}},{"$f":"AND('Basic Financial'!#REF!,\"ImGQXgCu1f8=\")","v":{"$error":"#REF!"}}]
[{"$f":"IF('Basic Financial'!#REF!,\"alO1szmB0wA=\",0)","v":{"$error":"#REF!"}},{"$f":"AND('Basic Financial'!#REF!,\"alO1szmB0wE=\")","v":{"$error":"#REF!"}},{"$f":"AND('Basic Financial'!#REF!,\"alO1szmB0wI=\")","v":{"$error":"#REF!"}},{"$f":"AND('Basic Financial'!#REF!,\"alO1szmB0wM=\")","v":{"$error":"#REF!"}},{"$f":"AND('Basic Financial'!#REF!,\"alO1szmB0wQ=\")","v":{"$error":"#REF!"}},{"$f":"AND('Basic Financial'!#REF!,\"alO1szmB0wU=\")","v":{"$error":"#REF!"}},{"$f":"AND('Basic Financial'!#REF!,\"alO1szmB0wY=\")","v":{"$error":"#REF!"}},{"$f":"AND('Basic Financial'!#REF!,\"alO1szmB0wc=\")","v":{"$error":"#REF!"}},{"$f":"AND('Basic Financial'!#REF!,\"alO1szmB0wg=\")","v":{"$error":"#REF!"}},{"$f":"AND('Basic Financial'!#REF!,\"alO1szmB0wk=\")","v":{"$error":"#REF!"}},{"$f":"AND('Basic Financial'!#REF!,\"alO1szmB0wo=\")","v":{"$error":"#REF!"}},{"$f":"AND('Basic Financial'!#REF!,\"alO1szmB0ws=\")","v":{"$error":"#REF!"}},{"$f":"AND('Basic Financial'!#REF!,\"alO1szmB0ww=\")","v":{"$error":"#REF!"}},{"$f":"AND('Basic Financial'!#REF!,\"alO1szmB0w0=\")","v":{"$error":"#REF!"}},{"$f":"IF('Basic Financial'!#REF!,\"alO1szmB0w4=\",0)","v":{"$error":"#REF!"}},{"$f":"AND('Basic Financial'!#REF!,\"alO1szmB0w8=\")","v":{"$error":"#REF!"}},{"$f":"AND('Basic Financial'!#REF!,\"alO1szmB0xA=\")","v":{"$error":"#REF!"}},{"$f":"AND('Basic Financial'!#REF!,\"alO1szmB0xE=\")","v":{"$error":"#REF!"}},{"$f":"AND('Basic Financial'!#REF!,\"alO1szmB0xI=\")","v":{"$error":"#REF!"}},{"$f":"AND('Basic Financial'!#REF!,\"alO1szmB0xM=\")","v":{"$error":"#REF!"}},{"$f":"AND('Basic Financial'!#REF!,\"alO1szmB0xQ=\")","v":{"$error":"#REF!"}},{"$f":"AND('Basic Financial'!#REF!,\"alO1szmB0xU=\")","v":{"$error":"#REF!"}},{"$f":"AND('Basic Financial'!#REF!,\"alO1szmB0xY=\")","v":{"$error":"#REF!"}},{"$f":"AND('Basic Financial'!#REF!,\"alO1szmB0xc=\")","v":{"$error":"#REF!"}},{"$f":"AND('Basic Financial'!#REF!,\"alO1szmB0xg=\")","v":{"$error":"#REF!"}},{"$f":"AND('Basic Financial'!#REF!,\"alO1szmB0xk=\")","v":{"$error":"#REF!"}},{"$f":"AND('Basic Financial'!#REF!,\"alO1szmB0xo=\")","v":{"$error":"#REF!"}},{"$f":"AND('Basic Financial'!#REF!,\"alO1szmB0xs=\")","v":{"$error":"#REF!"}},{"$f":"IF('Basic Financial'!#REF!,\"alO1szmB0xw=\",0)","v":{"$error":"#REF!"}},{"$f":"AND('Basic Financial'!#REF!,\"alO1szmB0x0=\")","v":{"$error":"#REF!"}},{"$f":"AND('Basic Financial'!#REF!,\"alO1szmB0x4=\")","v":{"$error":"#REF!"}},{"$f":"AND('Basic Financial'!#REF!,\"alO1szmB0x8=\")","v":{"$error":"#REF!"}},{"$f":"AND('Basic Financial'!#REF!,\"alO1szmB0yA=\")","v":{"$error":"#REF!"}},{"$f":"AND('Basic Financial'!#REF!,\"alO1szmB0yE=\")","v":{"$error":"#REF!"}},{"$f":"AND('Basic Financial'!#REF!,\"alO1szmB0yI=\")","v":{"$error":"#REF!"}},{"$f":"AND('Basic Financial'!#REF!,\"alO1szmB0yM=\")","v":{"$error":"#REF!"}},{"$f":"AND('Basic Financial'!#REF!,\"alO1szmB0yQ=\")","v":{"$error":"#REF!"}},{"$f":"AND('Basic Financial'!#REF!,\"alO1szmB0yU=\")","v":{"$error":"#REF!"}},{"$f":"AND('Basic Financial'!#REF!,\"alO1szmB0yY=\")","v":{"$error":"#REF!"}},{"$f":"AND('Basic Financial'!#REF!,\"alO1szmB0yc=\")","v":{"$error":"#REF!"}},{"$f":"AND('Basic Financial'!#REF!,\"alO1szmB0yg=\")","v":{"$error":"#REF!"}},{"$f":"AND('Basic Financial'!#REF!,\"alO1szmB0yk=\")","v":{"$error":"#REF!"}},{"$f":"IF('Basic Financial'!A:A,\"alO1szmB0yo=\",0)","v":{"$error":"#VALUE!"}},{"$f":"IF('Basic Financial'!B:B,\"alO1szmB0ys=\",0)","v":"alO1szmB0ys="},{"$f":"IF('Basic Financial'!C:C,\"alO1szmB0yw=\",0)","v":{"$error":"#VALUE!"}},{"$f":"IF('Basic Financial'!D:D,\"alO1szmB0y0=\",0)","v":0},{"$f":"IF('Basic Financial'!E:E,\"alO1szmB0y4=\",0)","v":0},{"$f":"IF('Basic Financial'!F:F,\"alO1szmB0y8=\",0)","v":0},{"$f":"IF('Basic Financial'!G:G,\"alO1szmB0zA=\",0)","v":0},{"$f":"IF('Basic Financial'!H:H,\"alO1szmB0zE=\",0)","v":0},{"$f":"IF('Basic Financial'!I:I,\"alO1szmB0zI=\",0)","v":0},{"$f":"IF('Basic Financial'!J:J,\"alO1szmB0zM=\",0)","v":0},{"$f":"IF('Basic Financial'!K:K,\"alO1szmB0zQ=\",0)","v":0},{"$f":"IF('Basic Financial'!L:L,\"alO1szmB0zU=\",0)","v":0},{"$f":"IF('Basic Financial'!M:M,\"alO1szmB0zY=\",0)","v":0},{"$f":"IF(#REF!,\"alO1szmB0zc=\",0)","v":{"$error":"#REF!"}},{"$f":"AND(#REF!,\"alO1szmB0zg=\")","v":{"$error":"#REF!"}},{"$f":"AND(#REF!,\"alO1szmB0zk=\")","v":{"$error":"#REF!"}},{"$f":"AND(#REF!,\"alO1szmB0zo=\")","v":{"$error":"#REF!"}},{"$f":"AND(#REF!,\"alO1szmB0zs=\")","v":{"$error":"#REF!"}},{"$f":"AND(#REF!,\"alO1szmB0zw=\")","v":{"$error":"#REF!"}},{"$f":"AND(#REF!,\"alO1szmB0z0=\")","v":{"$error":"#REF!"}},{"$f":"AND(#REF!,\"alO1szmB0z4=\")","v":{"$error":"#REF!"}},{"$f":"AND(#REF!,\"alO1szmB0z8=\")","v":{"$error":"#REF!"}},{"$f":"IF(#REF!,\"alO1szmB00A=\",0)","v":{"$error":"#REF!"}},{"$f":"AND(#REF!,\"alO1szmB00E=\")","v":{"$error":"#REF!"}},{"$f":"AND(#REF!,\"alO1szmB00I=\")","v":{"$error":"#REF!"}},{"$f":"AND(#REF!,\"alO1szmB00M=\")","v":{"$error":"#REF!"}},{"$f":"AND(#REF!,\"alO1szmB00Q=\")","v":{"$error":"#REF!"}},{"$f":"AND(#REF!,\"alO1szmB00U=\")","v":{"$error":"#REF!"}},{"$f":"AND(#REF!,\"alO1szmB00Y=\")","v":{"$error":"#REF!"}},{"$f":"AND(#REF!,\"alO1szmB00c=\")","v":{"$error":"#REF!"}},{"$f":"AND(#REF!,\"alO1szmB00g=\")","v":{"$error":"#REF!"}},{"$f":"IF(#REF!,\"alO1szmB00k=\",0)","v":{"$error":"#REF!"}},{"$f":"AND(#REF!,\"alO1szmB00o=\")","v":{"$error":"#REF!"}},{"$f":"AND(#REF!,\"alO1szmB00s=\")","v":{"$error":"#REF!"}},{"$f":"AND(#REF!,\"alO1szmB00w=\")","v":{"$error":"#REF!"}},{"$f":"AND(#REF!,\"alO1szmB000=\")","v":{"$error":"#REF!"}},{"$f":"AND(#REF!,\"alO1szmB004=\")","v":{"$error":"#REF!"}},{"$f":"AND(#REF!,\"alO1szmB008=\")","v":{"$error":"#REF!"}},{"$f":"AND(#REF!,\"alO1szmB01A=\")","v":{"$error":"#REF!"}},{"$f":"AND(#REF!,\"alO1szmB01E=\")","v":{"$error":"#REF!"}},{"$f":"IF(#REF!,\"alO1szmB01I=\",0)","v":{"$error":"#REF!"}},{"$f":"AND(#REF!,\"alO1szmB01M=\")","v":{"$error":"#REF!"}},{"$f":"AND(#REF!,\"alO1szmB01Q=\")","v":{"$error":"#REF!"}},{"$f":"AND(#REF!,\"alO1szmB01U=\")","v":{"$error":"#REF!"}},{"$f":"AND(#REF!,\"alO1szmB01Y=\")","v":{"$error":"#REF!"}},{"$f":"AND(#REF!,\"alO1szmB01c=\")","v":{"$error":"#REF!"}},{"$f":"AND(#REF!,\"alO1szmB01g=\")","v":{"$error":"#REF!"}},{"$f":"AND(#REF!,\"alO1szmB01k=\")","v":{"$error":"#REF!"}},{"$f":"AND(#REF!,\"alO1szmB01o=\")","v":{"$error":"#REF!"}},{"$f":"IF(#REF!,\"alO1szmB01s=\",0)","v":{"$error":"#REF!"}},{"$f":"AND(#REF!,\"alO1szmB01w=\")","v":{"$error":"#REF!"}},{"$f":"AND(#REF!,\"alO1szmB010=\")","v":{"$error":"#REF!"}},{"$f":"AND(#REF!,\"alO1szmB014=\")","v":{"$error":"#REF!"}},{"$f":"AND(#REF!,\"alO1szmB018=\")","v":{"$error":"#REF!"}},{"$f":"AND(#REF!,\"alO1szmB02A=\")","v":{"$error":"#REF!"}},{"$f":"AND(#REF!,\"alO1szmB02E=\")","v":{"$error":"#REF!"}},{"$f":"AND(#REF!,\"alO1szmB02I=\")","v":{"$error":"#REF!"}},{"$f":"AND(#REF!,\"alO1szmB02M=\")","v":{"$error":"#REF!"}},{"$f":"IF(#REF!,\"alO1szmB02Q=\",0)","v":{"$error":"#REF!"}},{"$f":"AND(#REF!,\"alO1szmB02U=\")","v":{"$error":"#REF!"}},{"$f":"AND(#REF!,\"alO1szmB02Y=\")","v":{"$error":"#REF!"}},{"$f":"AND(#REF!,\"alO1szmB02c=\")","v":{"$error":"#REF!"}},{"$f":"AND(#REF!,\"alO1szmB02g=\")","v":{"$error":"#REF!"}},{"$f":"AND(#REF!,\"alO1szmB02k=\")","v":{"$error":"#REF!"}},{"$f":"AND(#REF!,\"alO1szmB02o=\")","v":{"$error":"#REF!"}},{"$f":"AND(#REF!,\"alO1szmB02s=\")","v":{"$error":"#REF!"}},{"$f":"AND(#REF!,\"alO1szmB02w=\")","v":{"$error":"#REF!"}},{"$f":"IF(#REF!,\"alO1szmB020=\",0)","v":{"$error":"#REF!"}},{"$f":"AND(#REF!,\"alO1szmB024=\")","v":{"$error":"#REF!"}},{"$f":"AND(#REF!,\"alO1szmB028=\")","v":{"$error":"#REF!"}},{"$f":"AND(#REF!,\"alO1szmB03A=\")","v":{"$error":"#REF!"}},{"$f":"AND(#REF!,\"alO1szmB03E=\")","v":{"$error":"#REF!"}},{"$f":"AND(#REF!,\"alO1szmB03I=\")","v":{"$error":"#REF!"}},{"$f":"AND(#REF!,\"alO1szmB03M=\")","v":{"$error":"#REF!"}},{"$f":"AND(#REF!,\"alO1szmB03Q=\")","v":{"$error":"#REF!"}},{"$f":"AND(#REF!,\"alO1szmB03U=\")","v":{"$error":"#REF!"}},{"$f":"IF(#REF!,\"alO1szmB03Y=\",0)","v":{"$error":"#REF!"}},{"$f":"AND(#REF!,\"alO1szmB03c=\")","v":{"$error":"#REF!"}},{"$f":"AND(#REF!,\"alO1szmB03g=\")","v":{"$error":"#REF!"}},{"$f":"AND(#REF!,\"alO1szmB03k=\")","v":{"$error":"#REF!"}},{"$f":"AND(#REF!,\"alO1szmB03o=\")","v":{"$error":"#REF!"}},{"$f":"AND(#REF!,\"alO1szmB03s=\")","v":{"$error":"#REF!"}},{"$f":"AND(#REF!,\"alO1szmB03w=\")","v":{"$error":"#REF!"}},{"$f":"AND(#REF!,\"alO1szmB030=\")","v":{"$error":"#REF!"}},{"$f":"AND(#REF!,\"alO1szmB034=\")","v":{"$error":"#REF!"}},{"$f":"IF(#REF!,\"alO1szmB038=\",0)","v":{"$error":"#REF!"}},{"$f":"AND(#REF!,\"alO1szmB04A=\")","v":{"$error":"#REF!"}},{"$f":"AND(#REF!,\"alO1szmB04E=\")","v":{"$error":"#REF!"}},{"$f":"AND(#REF!,\"alO1szmB04I=\")","v":{"$error":"#REF!"}},{"$f":"AND(#REF!,\"alO1szmB04M=\")","v":{"$error":"#REF!"}},{"$f":"AND(#REF!,\"alO1szmB04Q=\")","v":{"$error":"#REF!"}},{"$f":"AND(#REF!,\"alO1szmB04U=\")","v":{"$error":"#REF!"}},{"$f":"AND(#REF!,\"alO1szmB04Y=\")","v":{"$error":"#REF!"}},{"$f":"AND(#REF!,\"alO1szmB04c=\")","v":{"$error":"#REF!"}},{"$f":"IF(#REF!,\"alO1szmB04g=\",0)","v":{"$error":"#REF!"}},{"$f":"AND(#REF!,\"alO1szmB04k=\")","v":{"$error":"#REF!"}},{"$f":"AND(#REF!,\"alO1szmB04o=\")","v":{"$error":"#REF!"}},{"$f":"AND(#REF!,\"alO1szmB04s=\")","v":{"$error":"#REF!"}},{"$f":"AND(#REF!,\"alO1szmB04w=\")","v":{"$error":"#REF!"}},{"$f":"AND(#REF!,\"alO1szmB040=\")","v":{"$error":"#REF!"}},{"$f":"AND(#REF!,\"alO1szmB044=\")","v":{"$error":"#REF!"}},{"$f":"AND(#REF!,\"alO1szmB048=\")","v":{"$error":"#REF!"}},{"$f":"AND(#REF!,\"alO1szmB05A=\")","v":{"$error":"#REF!"}},{"$f":"IF(#REF!,\"alO1szmB05E=\",0)","v":{"$error":"#REF!"}},{"$f":"AND(#REF!,\"alO1szmB05I=\")","v":{"$error":"#REF!"}},{"$f":"AND(#REF!,\"alO1szmB05M=\")","v":{"$error":"#REF!"}},{"$f":"AND(#REF!,\"alO1szmB05Q=\")","v":{"$error":"#REF!"}},{"$f":"AND(#REF!,\"alO1szmB05U=\")","v":{"$error":"#REF!"}},{"$f":"AND(#REF!,\"alO1szmB05Y=\")","v":{"$error":"#REF!"}},{"$f":"AND(#REF!,\"alO1szmB05c=\")","v":{"$error":"#REF!"}},{"$f":"AND(#REF!,\"alO1szmB05g=\")","v":{"$error":"#REF!"}},{"$f":"AND(#REF!,\"alO1szmB05k=\")","v":{"$error":"#REF!"}},{"$f":"IF(#REF!,\"alO1szmB05o=\",0)","v":{"$error":"#REF!"}},{"$f":"AND(#REF!,\"alO1szmB05s=\")","v":{"$error":"#REF!"}},{"$f":"AND(#REF!,\"alO1szmB05w=\")","v":{"$error":"#REF!"}},{"$f":"AND(#REF!,\"alO1szmB050=\")","v":{"$error":"#REF!"}},{"$f":"AND(#REF!,\"alO1szmB054=\")","v":{"$error":"#REF!"}},{"$f":"AND(#REF!,\"alO1szmB058=\")","v":{"$error":"#REF!"}},{"$f":"AND(#REF!,\"alO1szmB06A=\")","v":{"$error":"#REF!"}},{"$f":"AND(#REF!,\"alO1szmB06E=\")","v":{"$error":"#REF!"}},{"$f":"AND(#REF!,\"alO1szmB06I=\")","v":{"$error":"#REF!"}},{"$f":"IF(#REF!,\"alO1szmB06M=\",0)","v":{"$error":"#REF!"}},{"$f":"AND(#REF!,\"alO1szmB06Q=\")","v":{"$error":"#REF!"}},{"$f":"AND(#REF!,\"alO1szmB06U=\")","v":{"$error":"#REF!"}},{"$f":"AND(#REF!,\"alO1szmB06Y=\")","v":{"$error":"#REF!"}},{"$f":"AND(#REF!,\"alO1szmB06c=\")","v":{"$error":"#REF!"}},{"$f":"AND(#REF!,\"alO1szmB06g=\")","v":{"$error":"#REF!"}},{"$f":"AND(#REF!,\"alO1szmB06k=\")","v":{"$error":"#REF!"}},{"$f":"AND(#REF!,\"alO1szmB06o=\")","v":{"$error":"#REF!"}},{"$f":"AND(#REF!,\"alO1szmB06s=\")","v":{"$error":"#REF!"}},{"$f":"IF(#REF!,\"alO1szmB06w=\",0)","v":{"$error":"#REF!"}},{"$f":"AND(#REF!,\"alO1szmB060=\")","v":{"$error":"#REF!"}},{"$f":"AND(#REF!,\"alO1szmB064=\")","v":{"$error":"#REF!"}},{"$f":"AND(#REF!,\"alO1szmB068=\")","v":{"$error":"#REF!"}},{"$f":"AND(#REF!,\"alO1szmB07A=\")","v":{"$error":"#REF!"}},{"$f":"AND(#REF!,\"alO1szmB07E=\")","v":{"$error":"#REF!"}},{"$f":"AND(#REF!,\"alO1szmB07I=\")","v":{"$error":"#REF!"}},{"$f":"AND(#REF!,\"alO1szmB07M=\")","v":{"$error":"#REF!"}},{"$f":"AND(#REF!,\"alO1szmB07Q=\")","v":{"$error":"#REF!"}},{"$f":"IF(#REF!,\"alO1szmB07U=\",0)","v":{"$error":"#REF!"}},{"$f":"AND(#REF!,\"alO1szmB07Y=\")","v":{"$error":"#REF!"}},{"$f":"AND(#REF!,\"alO1szmB07c=\")","v":{"$error":"#REF!"}},{"$f":"AND(#REF!,\"alO1szmB07g=\")","v":{"$error":"#REF!"}},{"$f":"AND(#REF!,\"alO1szmB07k=\")","v":{"$error":"#REF!"}},{"$f":"AND(#REF!,\"alO1szmB07o=\")","v":{"$error":"#REF!"}},{"$f":"AND(#REF!,\"alO1szmB07s=\")","v":{"$error":"#REF!"}},{"$f":"AND(#REF!,\"alO1szmB07w=\")","v":{"$error":"#REF!"}},{"$f":"AND(#REF!,\"alO1szmB070=\")","v":{"$error":"#REF!"}},{"$f":"IF(#REF!,\"alO1szmB074=\",0)","v":{"$error":"#REF!"}},{"$f":"AND(#REF!,\"alO1szmB078=\")","v":{"$error":"#REF!"}},{"$f":"AND(#REF!,\"alO1szmB08A=\")","v":{"$error":"#REF!"}},{"$f":"AND(#REF!,\"alO1szmB08E=\")","v":{"$error":"#REF!"}},{"$f":"AND(#REF!,\"alO1szmB08I=\")","v":{"$error":"#REF!"}},{"$f":"AND(#REF!,\"alO1szmB08M=\")","v":{"$error":"#REF!"}},{"$f":"AND(#REF!,\"alO1szmB08Q=\")","v":{"$error":"#REF!"}},{"$f":"AND(#REF!,\"alO1szmB08U=\")","v":{"$error":"#REF!"}},{"$f":"AND(#REF!,\"alO1szmB08Y=\")","v":{"$error":"#REF!"}},{"$f":"IF(#REF!,\"alO1szmB08c=\",0)","v":{"$error":"#REF!"}},{"$f":"AND(#REF!,\"alO1szmB08g=\")","v":{"$error":"#REF!"}},{"$f":"AND(#REF!,\"alO1szmB08k=\")","v":{"$error":"#REF!"}},{"$f":"AND(#REF!,\"alO1szmB08o=\")","v":{"$error":"#REF!"}},{"$f":"AND(#REF!,\"alO1szmB08s=\")","v":{"$error":"#REF!"}},{"$f":"AND(#REF!,\"alO1szmB08w=\")","v":{"$error":"#REF!"}},{"$f":"AND(#REF!,\"alO1szmB080=\")","v":{"$error":"#REF!"}},{"$f":"AND(#REF!,\"alO1szmB084=\")","v":{"$error":"#REF!"}},{"$f":"AND(#REF!,\"alO1szmB088=\")","v":{"$error":"#REF!"}},{"$f":"IF(#REF!,\"alO1szmB09A=\",0)","v":{"$error":"#REF!"}},{"$f":"AND(#REF!,\"alO1szmB09E=\")","v":{"$error":"#REF!"}},{"$f":"AND(#REF!,\"alO1szmB09I=\")","v":{"$error":"#REF!"}},{"$f":"AND(#REF!,\"alO1szmB09M=\")","v":{"$error":"#REF!"}},{"$f":"AND(#REF!,\"alO1szmB09Q=\")","v":{"$error":"#REF!"}},{"$f":"AND(#REF!,\"alO1szmB09U=\")","v":{"$error":"#REF!"}},{"$f":"AND(#REF!,\"alO1szmB09Y=\")","v":{"$error":"#REF!"}},{"$f":"AND(#REF!,\"alO1szmB09c=\")","v":{"$error":"#REF!"}},{"$f":"AND(#REF!,\"alO1szmB09g=\")","v":{"$error":"#REF!"}},{"$f":"IF(#REF!,\"alO1szmB09k=\",0)","v":{"$error":"#REF!"}},{"$f":"AND(#REF!,\"alO1szmB09o=\")","v":{"$error":"#REF!"}},{"$f":"AND(#REF!,\"alO1szmB09s=\")","v":{"$error":"#REF!"}},{"$f":"AND(#REF!,\"alO1szmB09w=\")","v":{"$error":"#REF!"}},{"$f":"AND(#REF!,\"alO1szmB090=\")","v":{"$error":"#REF!"}},{"$f":"AND(#REF!,\"alO1szmB094=\")","v":{"$error":"#REF!"}},{"$f":"AND(#REF!,\"alO1szmB098=\")","v":{"$error":"#REF!"}},{"$f":"AND(#REF!,\"alO1szmB0+A=\")","v":{"$error":"#REF!"}},{"$f":"AND(#REF!,\"alO1szmB0+E=\")","v":{"$error":"#REF!"}},{"$f":"IF(#REF!,\"alO1szmB0+I=\",0)","v":{"$error":"#REF!"}},{"$f":"AND(#REF!,\"alO1szmB0+M=\")","v":{"$error":"#REF!"}},{"$f":"AND(#REF!,\"alO1szmB0+Q=\")","v":{"$error":"#REF!"}},{"$f":"AND(#REF!,\"alO1szmB0+U=\")","v":{"$error":"#REF!"}},{"$f":"AND(#REF!,\"alO1szmB0+Y=\")","v":{"$error":"#REF!"}},{"$f":"AND(#REF!,\"alO1szmB0+c=\")","v":{"$error":"#REF!"}},{"$f":"AND(#REF!,\"alO1szmB0+g=\")","v":{"$error":"#REF!"}},{"$f":"AND(#REF!,\"alO1szmB0+k=\")","v":{"$error":"#REF!"}},{"$f":"AND(#REF!,\"alO1szmB0+o=\")","v":{"$error":"#REF!"}},{"$f":"IF(#REF!,\"alO1szmB0+s=\",0)","v":{"$error":"#REF!"}},{"$f":"AND(#REF!,\"alO1szmB0+w=\")","v":{"$error":"#REF!"}},{"$f":"AND(#REF!,\"alO1szmB0+0=\")","v":{"$error":"#REF!"}},{"$f":"AND(#REF!,\"alO1szmB0+4=\")","v":{"$error":"#REF!"}},{"$f":"AND(#REF!,\"alO1szmB0+8=\")","v":{"$error":"#REF!"}},{"$f":"AND(#REF!,\"alO1szmB0/A=\")","v":{"$error":"#REF!"}},{"$f":"AND(#REF!,\"alO1szmB0/E=\")","v":{"$error":"#REF!"}},{"$f":"AND(#REF!,\"alO1szmB0/I=\")","v":{"$error":"#REF!"}},{"$f":"AND(#REF!,\"alO1szmB0/M=\")","v":{"$error":"#REF!"}},{"$f":"IF(#REF!,\"alO1szmB0/Q=\",0)","v":{"$error":"#REF!"}},{"$f":"AND(#REF!,\"alO1szmB0/U=\")","v":{"$error":"#REF!"}},{"$f":"AND(#REF!,\"alO1szmB0/Y=\")","v":{"$error":"#REF!"}},{"$f":"AND(#REF!,\"alO1szmB0/c=\")","v":{"$error":"#REF!"}},{"$f":"AND(#REF!,\"alO1szmB0/g=\")","v":{"$error":"#REF!"}},{"$f":"AND(#REF!,\"alO1szmB0/k=\")","v":{"$error":"#REF!"}},{"$f":"AND(#REF!,\"alO1szmB0/o=\")","v":{"$error":"#REF!"}},{"$f":"AND(#REF!,\"alO1szmB0/s=\")","v":{"$error":"#REF!"}},{"$f":"AND(#REF!,\"alO1szmB0/w=\")","v":{"$error":"#REF!"}},{"$f":"IF(#REF!,\"alO1szmB0/0=\",0)","v":{"$error":"#REF!"}},{"$f":"AND(#REF!,\"alO1szmB0/4=\")","v":{"$error":"#REF!"}},{"$f":"AND(#REF!,\"alO1szmB0/8=\")","v":{"$error":"#REF!"}}]
[{"$f":"AND(#REF!,\"fzcMKnSpZQA=\")","v":{"$error":"#REF!"}},{"$f":"AND(#REF!,\"fzcMKnSpZQE=\")","v":{"$error":"#REF!"}},{"$f":"AND(#REF!,\"fzcMKnSpZQI=\")","v":{"$error":"#REF!"}},{"$f":"AND(#REF!,\"fzcMKnSpZQM=\")","v":{"$error":"#REF!"}},{"$f":"AND(#REF!,\"fzcMKnSpZQQ=\")","v":{"$error":"#REF!"}},{"$f":"AND(#REF!,\"fzcMKnSpZQU=\")","v":{"$error":"#REF!"}},{"$f":"IF(#REF!,\"fzcMKnSpZQY=\",0)","v":{"$error":"#REF!"}},{"$f":"AND(#REF!,\"fzcMKnSpZQc=\")","v":{"$error":"#REF!"}},{"$f":"AND(#REF!,\"fzcMKnSpZQg=\")","v":{"$error":"#REF!"}},{"$f":"AND(#REF!,\"fzcMKnSpZQk=\")","v":{"$error":"#REF!"}},{"$f":"AND(#REF!,\"fzcMKnSpZQo=\")","v":{"$error":"#REF!"}},{"$f":"AND(#REF!,\"fzcMKnSpZQs=\")","v":{"$error":"#REF!"}},{"$f":"AND(#REF!,\"fzcMKnSpZQw=\")","v":{"$error":"#REF!"}},{"$f":"AND(#REF!,\"fzcMKnSpZQ0=\")","v":{"$error":"#REF!"}},{"$f":"AND(#REF!,\"fzcMKnSpZQ4=\")","v":{"$error":"#REF!"}},{"$f":"IF(#REF!,\"fzcMKnSpZQ8=\",0)","v":{"$error":"#REF!"}},{"$f":"AND(#REF!,\"fzcMKnSpZRA=\")","v":{"$error":"#REF!"}},{"$f":"AND(#REF!,\"fzcMKnSpZRE=\")","v":{"$error":"#REF!"}},{"$f":"AND(#REF!,\"fzcMKnSpZRI=\")","v":{"$error":"#REF!"}},{"$f":"AND(#REF!,\"fzcMKnSpZRM=\")","v":{"$error":"#REF!"}},{"$f":"AND(#REF!,\"fzcMKnSpZRQ=\")","v":{"$error":"#REF!"}},{"$f":"AND(#REF!,\"fzcMKnSpZRU=\")","v":{"$error":"#REF!"}},{"$f":"AND(#REF!,\"fzcMKnSpZRY=\")","v":{"$error":"#REF!"}},{"$f":"AND(#REF!,\"fzcMKnSpZRc=\")","v":{"$error":"#REF!"}},{"$f":"IF(#REF!,\"fzcMKnSpZRg=\",0)","v":{"$error":"#REF!"}},{"$f":"AND(#REF!,\"fzcMKnSpZRk=\")","v":{"$error":"#REF!"}},{"$f":"AND(#REF!,\"fzcMKnSpZRo=\")","v":{"$error":"#REF!"}},{"$f":"AND(#REF!,\"fzcMKnSpZRs=\")","v":{"$error":"#REF!"}},{"$f":"AND(#REF!,\"fzcMKnSpZRw=\")","v":{"$error":"#REF!"}},{"$f":"AND(#REF!,\"fzcMKnSpZR0=\")","v":{"$error":"#REF!"}},{"$f":"AND(#REF!,\"fzcMKnSpZR4=\")","v":{"$error":"#REF!"}},{"$f":"AND(#REF!,\"fzcMKnSpZR8=\")","v":{"$error":"#REF!"}},{"$f":"AND(#REF!,\"fzcMKnSpZSA=\")","v":{"$error":"#REF!"}},{"$f":"IF(#REF!,\"fzcMKnSpZSE=\",0)","v":{"$error":"#REF!"}},{"$f":"AND(#REF!,\"fzcMKnSpZSI=\")","v":{"$error":"#REF!"}},{"$f":"AND(#REF!,\"fzcMKnSpZSM=\")","v":{"$error":"#REF!"}},{"$f":"AND(#REF!,\"fzcMKnSpZSQ=\")","v":{"$error":"#REF!"}},{"$f":"AND(#REF!,\"fzcMKnSpZSU=\")","v":{"$error":"#REF!"}},{"$f":"AND(#REF!,\"fzcMKnSpZSY=\")","v":{"$error":"#REF!"}},{"$f":"AND(#REF!,\"fzcMKnSpZSc=\")","v":{"$error":"#REF!"}},{"$f":"AND(#REF!,\"fzcMKnSpZSg=\")","v":{"$error":"#REF!"}},{"$f":"AND(#REF!,\"fzcMKnSpZSk=\")","v":{"$error":"#REF!"}},{"$f":"IF(#REF!,\"fzcMKnSpZSo=\",0)","v":{"$error":"#REF!"}},{"$f":"AND(#REF!,\"fzcMKnSpZSs=\")","v":{"$error":"#REF!"}},{"$f":"AND(#REF!,\"fzcMKnSpZSw=\")","v":{"$error":"#REF!"}},{"$f":"AND(#REF!,\"fzcMKnSpZS0=\")","v":{"$error":"#REF!"}},{"$f":"AND(#REF!,\"fzcMKnSpZS4=\")","v":{"$error":"#REF!"}},{"$f":"AND(#REF!,\"fzcMKnSpZS8=\")","v":{"$error":"#REF!"}},{"$f":"AND(#REF!,\"fzcMKnSpZTA=\")","v":{"$error":"#REF!"}},{"$f":"AND(#REF!,\"fzcMKnSpZTE=\")","v":{"$error":"#REF!"}},{"$f":"AND(#REF!,\"fzcMKnSpZTI=\")","v":{"$error":"#REF!"}},{"$f":"IF(#REF!,\"fzcMKnSpZTM=\",0)","v":{"$error":"#REF!"}},{"$f":"AND(#REF!,\"fzcMKnSpZTQ=\")","v":{"$error":"#REF!"}},{"$f":"AND(#REF!,\"fzcMKnSpZTU=\")","v":{"$error":"#REF!"}},{"$f":"AND(#REF!,\"fzcMKnSpZTY=\")","v":{"$error":"#REF!"}},{"$f":"AND(#REF!,\"fzcMKnSpZTc=\")","v":{"$error":"#REF!"}},{"$f":"AND(#REF!,\"fzcMKnSpZTg=\")","v":{"$error":"#REF!"}},{"$f":"AND(#REF!,\"fzcMKnSpZTk=\")","v":{"$error":"#REF!"}},{"$f":"AND(#REF!,\"fzcMKnSpZTo=\")","v":{"$error":"#REF!"}},{"$f":"AND(#REF!,\"fzcMKnSpZTs=\")","v":{"$error":"#REF!"}},{"$f":"IF(#REF!,\"fzcMKnSpZTw=\",0)","v":{"$error":"#REF!"}},{"$f":"AND(#REF!,\"fzcMKnSpZT0=\")","v":{"$error":"#REF!"}},{"$f":"AND(#REF!,\"fzcMKnSpZT4=\")","v":{"$error":"#REF!"}},{"$f":"AND(#REF!,\"fzcMKnSpZT8=\")","v":{"$error":"#REF!"}},{"$f":"AND(#REF!,\"fzcMKnSpZUA=\")","v":{"$error":"#REF!"}},{"$f":"AND(#REF!,\"fzcMKnSpZUE=\")","v":{"$error":"#REF!"}},{"$f":"AND(#REF!,\"fzcMKnSpZUI=\")","v":{"$error":"#REF!"}},{"$f":"AND(#REF!,\"fzcMKnSpZUM=\")","v":{"$error":"#REF!"}},{"$f":"AND(#REF!,\"fzcMKnSpZUQ=\")","v":{"$error":"#REF!"}},{"$f":"IF(#REF!,\"fzcMKnSpZUU=\",0)","v":{"$error":"#REF!"}},{"$f":"AND(#REF!,\"fzcMKnSpZUY=\")","v":{"$error":"#REF!"}},{"$f":"AND(#REF!,\"fzcMKnSpZUc=\")","v":{"$error":"#REF!"}},{"$f":"AND(#REF!,\"fzcMKnSpZUg=\")","v":{"$error":"#REF!"}},{"$f":"AND(#REF!,\"fzcMKnSpZUk=\")","v":{"$error":"#REF!"}},{"$f":"AND(#REF!,\"fzcMKnSpZUo=\")","v":{"$error":"#REF!"}},{"$f":"AND(#REF!,\"fzcMKnSpZUs=\")","v":{"$error":"#REF!"}},{"$f":"AND(#REF!,\"fzcMKnSpZUw=\")","v":{"$error":"#REF!"}},{"$f":"AND(#REF!,\"fzcMKnSpZU0=\")","v":{"$error":"#REF!"}},{"$f":"IF(#REF!,\"fzcMKnSpZU4=\",0)","v":{"$error":"#REF!"}},{"$f":"AND(#REF!,\"fzcMKnSpZU8=\")","v":{"$error":"#REF!"}},{"$f":"AND(#REF!,\"fzcMKnSpZVA=\")","v":{"$error":"#REF!"}},{"$f":"AND(#REF!,\"fzcMKnSpZVE=\")","v":{"$error":"#REF!"}},{"$f":"AND(#REF!,\"fzcMKnSpZVI=\")","v":{"$error":"#REF!"}},{"$f":"AND(#REF!,\"fzcMKnSpZVM=\")","v":{"$error":"#REF!"}},{"$f":"AND(#REF!,\"fzcMKnSpZVQ=\")","v":{"$error":"#REF!"}},{"$f":"AND(#REF!,\"fzcMKnSpZVU=\")","v":{"$error":"#REF!"}},{"$f":"AND(#REF!,\"fzcMKnSpZVY=\")","v":{"$error":"#REF!"}},{"$f":"IF(#REF!,\"fzcMKnSpZVc=\",0)","v":{"$error":"#REF!"}},{"$f":"AND(#REF!,\"fzcMKnSpZVg=\")","v":{"$error":"#REF!"}},{"$f":"AND(#REF!,\"fzcMKnSpZVk=\")","v":{"$error":"#REF!"}},{"$f":"AND(#REF!,\"fzcMKnSpZVo=\")","v":{"$error":"#REF!"}},{"$f":"AND(#REF!,\"fzcMKnSpZVs=\")","v":{"$error":"#REF!"}},{"$f":"AND(#REF!,\"fzcMKnSpZVw=\")","v":{"$error":"#REF!"}},{"$f":"AND(#REF!,\"fzcMKnSpZV0=\")","v":{"$error":"#REF!"}},{"$f":"AND(#REF!,\"fzcMKnSpZV4=\")","v":{"$error":"#REF!"}},{"$f":"AND(#REF!,\"fzcMKnSpZV8=\")","v":{"$error":"#REF!"}},{"$f":"IF(#REF!,\"fzcMKnSpZWA=\",0)","v":{"$error":"#REF!"}},{"$f":"AND(#REF!,\"fzcMKnSpZWE=\")","v":{"$error":"#REF!"}},{"$f":"AND(#REF!,\"fzcMKnSpZWI=\")","v":{"$error":"#REF!"}},{"$f":"AND(#REF!,\"fzcMKnSpZWM=\")","v":{"$error":"#REF!"}},{"$f":"AND(#REF!,\"fzcMKnSpZWQ=\")","v":{"$error":"#REF!"}},{"$f":"AND(#REF!,\"fzcMKnSpZWU=\")","v":{"$error":"#REF!"}},{"$f":"AND(#REF!,\"fzcMKnSpZWY=\")","v":{"$error":"#REF!"}},{"$f":"AND(#REF!,\"fzcMKnSpZWc=\")","v":{"$error":"#REF!"}},{"$f":"AND(#REF!,\"fzcMKnSpZWg=\")","v":{"$error":"#REF!"}},{"$f":"IF(#REF!,\"fzcMKnSpZWk=\",0)","v":{"$error":"#REF!"}},{"$f":"AND(#REF!,\"fzcMKnSpZWo=\")","v":{"$error":"#REF!"}},{"$f":"AND(#REF!,\"fzcMKnSpZWs=\")","v":{"$error":"#REF!"}},{"$f":"AND(#REF!,\"fzcMKnSpZWw=\")","v":{"$error":"#REF!"}},{"$f":"AND(#REF!,\"fzcMKnSpZW0=\")","v":{"$error":"#REF!"}},{"$f":"AND(#REF!,\"fzcMKnSpZW4=\")","v":{"$error":"#REF!"}},{"$f":"AND(#REF!,\"fzcMKnSpZW8=\")","v":{"$error":"#REF!"}},{"$f":"AND(#REF!,\"fzcMKnSpZXA=\")","v":{"$error":"#REF!"}},{"$f":"AND(#REF!,\"fzcMKnSpZXE=\")","v":{"$error":"#REF!"}},{"$f":"IF(#REF!,\"fzcMKnSpZXI=\",0)","v":{"$error":"#REF!"}},{"$f":"AND(#REF!,\"fzcMKnSpZXM=\")","v":{"$error":"#REF!"}},{"$f":"AND(#REF!,\"fzcMKnSpZXQ=\")","v":{"$error":"#REF!"}},{"$f":"AND(#REF!,\"fzcMKnSpZXU=\")","v":{"$error":"#REF!"}},{"$f":"AND(#REF!,\"fzcMKnSpZXY=\")","v":{"$error":"#REF!"}},{"$f":"AND(#REF!,\"fzcMKnSpZXc=\")","v":{"$error":"#REF!"}},{"$f":"AND(#REF!,\"fzcMKnSpZXg=\")","v":{"$error":"#REF!"}},{"$f":"AND(#REF!,\"fzcMKnSpZXk=\")","v":{"$error":"#REF!"}},{"$f":"AND(#REF!,\"fzcMKnSpZXo=\")","v":{"$error":"#REF!"}},{"$f":"IF(#REF!,\"fzcMKnSpZXs=\",0)","v":{"$error":"#REF!"}},{"$f":"AND(#REF!,\"fzcMKnSpZXw=\")","v":{"$error":"#REF!"}},{"$f":"AND(#REF!,\"fzcMKnSpZX0=\")","v":{"$error":"#REF!"}},{"$f":"AND(#REF!,\"fzcMKnSpZX4=\")","v":{"$error":"#REF!"}},{"$f":"AND(#REF!,\"fzcMKnSpZX8=\")","v":{"$error":"#REF!"}},{"$f":"AND(#REF!,\"fzcMKnSpZYA=\")","v":{"$error":"#REF!"}},{"$f":"AND(#REF!,\"fzcMKnSpZYE=\")","v":{"$error":"#REF!"}},{"$f":"AND(#REF!,\"fzcMKnSpZYI=\")","v":{"$error":"#REF!"}},{"$f":"AND(#REF!,\"fzcMKnSpZYM=\")","v":{"$error":"#REF!"}},{"$f":"IF(#REF!,\"fzcMKnSpZYQ=\",0)","v":{"$error":"#REF!"}},{"$f":"AND(#REF!,\"fzcMKnSpZYU=\")","v":{"$error":"#REF!"}},{"$f":"AND(#REF!,\"fzcMKnSpZYY=\")","v":{"$error":"#REF!"}},{"$f":"AND(#REF!,\"fzcMKnSpZYc=\")","v":{"$error":"#REF!"}},{"$f":"AND(#REF!,\"fzcMKnSpZYg=\")","v":{"$error":"#REF!"}},{"$f":"AND(#REF!,\"fzcMKnSpZYk=\")","v":{"$error":"#REF!"}},{"$f":"AND(#REF!,\"fzcMKnSpZYo=\")","v":{"$error":"#REF!"}},{"$f":"AND(#REF!,\"fzcMKnSpZYs=\")","v":{"$error":"#REF!"}},{"$f":"AND(#REF!,\"fzcMKnSpZYw=\")","v":{"$error":"#REF!"}},{"$f":"IF(#REF!,\"fzcMKnSpZY0=\",0)","v":{"$error":"#REF!"}},{"$f":"AND(#REF!,\"fzcMKnSpZY4=\")","v":{"$error":"#REF!"}},{"$f":"AND(#REF!,\"fzcMKnSpZY8=\")","v":{"$error":"#REF!"}},{"$f":"AND(#REF!,\"fzcMKnSpZZA=\")","v":{"$error":"#REF!"}},{"$f":"AND(#REF!,\"fzcMKnSpZZE=\")","v":{"$error":"#REF!"}},{"$f":"AND(#REF!,\"fzcMKnSpZZI=\")","v":{"$error":"#REF!"}},{"$f":"AND(#REF!,\"fzcMKnSpZZM=\")","v":{"$error":"#REF!"}},{"$f":"AND(#REF!,\"fzcMKnSpZZQ=\")","v":{"$error":"#REF!"}},{"$f":"AND(#REF!,\"fzcMKnSpZZU=\")","v":{"$error":"#REF!"}},{"$f":"IF(#REF!,\"fzcMKnSpZZY=\",0)","v":{"$error":"#REF!"}},{"$f":"AND(#REF!,\"fzcMKnSpZZc=\")","v":{"$error":"#REF!"}},{"$f":"AND(#REF!,\"fzcMKnSpZZg=\")","v":{"$error":"#REF!"}},{"$f":"AND(#REF!,\"fzcMKnSpZZk=\")","v":{"$error":"#REF!"}},{"$f":"AND(#REF!,\"fzcMKnSpZZo=\")","v":{"$error":"#REF!"}},{"$f":"AND(#REF!,\"fzcMKnSpZZs=\")","v":{"$error":"#REF!"}},{"$f":"AND(#REF!,\"fzcMKnSpZZw=\")","v":{"$error":"#REF!"}},{"$f":"AND(#REF!,\"fzcMKnSpZZ0=\")","v":{"$error":"#REF!"}},{"$f":"AND(#REF!,\"fzcMKnSpZZ4=\")","v":{"$error":"#REF!"}},{"$f":"IF(#REF!,\"fzcMKnSpZZ8=\",0)","v":{"$error":"#REF!"}},{"$f":"AND(#REF!,\"fzcMKnSpZaA=\")","v":{"$error":"#REF!"}},{"$f":"AND(#REF!,\"fzcMKnSpZaE=\")","v":{"$error":"#REF!"}},{"$f":"AND(#REF!,\"fzcMKnSpZaI=\")","v":{"$error":"#REF!"}},{"$f":"AND(#REF!,\"fzcMKnSpZaM=\")","v":{"$error":"#REF!"}},{"$f":"AND(#REF!,\"fzcMKnSpZaQ=\")","v":{"$error":"#REF!"}},{"$f":"AND(#REF!,\"fzcMKnSpZaU=\")","v":{"$error":"#REF!"}},{"$f":"AND(#REF!,\"fzcMKnSpZaY=\")","v":{"$error":"#REF!"}},{"$f":"AND(#REF!,\"fzcMKnSpZac=\")","v":{"$error":"#REF!"}},{"$f":"IF(#REF!,\"fzcMKnSpZag=\",0)","v":{"$error":"#REF!"}},{"$f":"AND(#REF!,\"fzcMKnSpZak=\")","v":{"$error":"#REF!"}},{"$f":"AND(#REF!,\"fzcMKnSpZao=\")","v":{"$error":"#REF!"}},{"$f":"AND(#REF!,\"fzcMKnSpZas=\")","v":{"$error":"#REF!"}},{"$f":"AND(#REF!,\"fzcMKnSpZaw=\")","v":{"$error":"#REF!"}},{"$f":"AND(#REF!,\"fzcMKnSpZa0=\")","v":{"$error":"#REF!"}},{"$f":"AND(#REF!,\"fzcMKnSpZa4=\")","v":{"$error":"#REF!"}},{"$f":"AND(#REF!,\"fzcMKnSpZa8=\")","v":{"$error":"#REF!"}},{"$f":"AND(#REF!,\"fzcMKnSpZbA=\")","v":{"$error":"#REF!"}},{"$f":"IF(#REF!,\"fzcMKnSpZbE=\",0)","v":{"$error":"#REF!"}},{"$f":"AND(#REF!,\"fzcMKnSpZbI=\")","v":{"$error":"#REF!"}},{"$f":"AND(#REF!,\"fzcMKnSpZbM=\")","v":{"$error":"#REF!"}},{"$f":"AND(#REF!,\"fzcMKnSpZbQ=\")","v":{"$error":"#REF!"}},{"$f":"AND(#REF!,\"fzcMKnSpZbU=\")","v":{"$error":"#REF!"}},{"$f":"AND(#REF!,\"fzcMKnSpZbY=\")","v":{"$error":"#REF!"}},{"$f":"AND(#REF!,\"fzcMKnSpZbc=\")","v":{"$error":"#REF!"}},{"$f":"AND(#REF!,\"fzcMKnSpZbg=\")","v":{"$error":"#REF!"}},{"$f":"AND(#REF!,\"fzcMKnSpZbk=\")","v":{"$error":"#REF!"}},{"$f":"IF(#REF!,\"fzcMKnSpZbo=\",0)","v":{"$error":"#REF!"}},{"$f":"AND(#REF!,\"fzcMKnSpZbs=\")","v":{"$error":"#REF!"}},{"$f":"AND(#REF!,\"fzcMKnSpZbw=\")","v":{"$error":"#REF!"}},{"$f":"AND(#REF!,\"fzcMKnSpZb0=\")","v":{"$error":"#REF!"}},{"$f":"AND(#REF!,\"fzcMKnSpZb4=\")","v":{"$error":"#REF!"}},{"$f":"AND(#REF!,\"fzcMKnSpZb8=\")","v":{"$error":"#REF!"}},{"$f":"AND(#REF!,\"fzcMKnSpZcA=\")","v":{"$error":"#REF!"}},{"$f":"AND(#REF!,\"fzcMKnSpZcE=\")","v":{"$error":"#REF!"}},{"$f":"AND(#REF!,\"fzcMKnSpZcI=\")","v":{"$error":"#REF!"}},{"$f":"IF(#REF!,\"fzcMKnSpZcM=\",0)","v":{"$error":"#REF!"}},{"$f":"AND(#REF!,\"fzcMKnSpZcQ=\")","v":{"$error":"#REF!"}},{"$f":"AND(#REF!,\"fzcMKnSpZcU=\")","v":{"$error":"#REF!"}},{"$f":"AND(#REF!,\"fzcMKnSpZcY=\")","v":{"$error":"#REF!"}},{"$f":"AND(#REF!,\"fzcMKnSpZcc=\")","v":{"$error":"#REF!"}},{"$f":"AND(#REF!,\"fzcMKnSpZcg=\")","v":{"$error":"#REF!"}},{"$f":"AND(#REF!,\"fzcMKnSpZck=\")","v":{"$error":"#REF!"}},{"$f":"AND(#REF!,\"fzcMKnSpZco=\")","v":{"$error":"#REF!"}},{"$f":"AND(#REF!,\"fzcMKnSpZcs=\")","v":{"$error":"#REF!"}},{"$f":"IF(#REF!,\"fzcMKnSpZcw=\",0)","v":{"$error":"#REF!"}},{"$f":"AND(#REF!,\"fzcMKnSpZc0=\")","v":{"$error":"#REF!"}},{"$f":"AND(#REF!,\"fzcMKnSpZc4=\")","v":{"$error":"#REF!"}},{"$f":"AND(#REF!,\"fzcMKnSpZc8=\")","v":{"$error":"#REF!"}},{"$f":"AND(#REF!,\"fzcMKnSpZdA=\")","v":{"$error":"#REF!"}},{"$f":"AND(#REF!,\"fzcMKnSpZdE=\")","v":{"$error":"#REF!"}},{"$f":"AND(#REF!,\"fzcMKnSpZdI=\")","v":{"$error":"#REF!"}},{"$f":"AND(#REF!,\"fzcMKnSpZdM=\")","v":{"$error":"#REF!"}},{"$f":"AND(#REF!,\"fzcMKnSpZdQ=\")","v":{"$error":"#REF!"}},{"$f":"IF(#REF!,\"fzcMKnSpZdU=\",0)","v":{"$error":"#REF!"}},{"$f":"AND(#REF!,\"fzcMKnSpZdY=\")","v":{"$error":"#REF!"}},{"$f":"AND(#REF!,\"fzcMKnSpZdc=\")","v":{"$error":"#REF!"}},{"$f":"AND(#REF!,\"fzcMKnSpZdg=\")","v":{"$error":"#REF!"}},{"$f":"AND(#REF!,\"fzcMKnSpZdk=\")","v":{"$error":"#REF!"}},{"$f":"AND(#REF!,\"fzcMKnSpZdo=\")","v":{"$error":"#REF!"}},{"$f":"AND(#REF!,\"fzcMKnSpZds=\")","v":{"$error":"#REF!"}},{"$f":"AND(#REF!,\"fzcMKnSpZdw=\")","v":{"$error":"#REF!"}},{"$f":"AND(#REF!,\"fzcMKnSpZd0=\")","v":{"$error":"#REF!"}},{"$f":"IF(#REF!,\"fzcMKnSpZd4=\",0)","v":{"$error":"#REF!"}},{"$f":"AND(#REF!,\"fzcMKnSpZd8=\")","v":{"$error":"#REF!"}},{"$f":"AND(#REF!,\"fzcMKnSpZeA=\")","v":{"$error":"#REF!"}},{"$f":"AND(#REF!,\"fzcMKnSpZeE=\")","v":{"$error":"#REF!"}},{"$f":"AND(#REF!,\"fzcMKnSpZeI=\")","v":{"$error":"#REF!"}},{"$f":"AND(#REF!,\"fzcMKnSpZeM=\")","v":{"$error":"#REF!"}},{"$f":"AND(#REF!,\"fzcMKnSpZeQ=\")","v":{"$error":"#REF!"}},{"$f":"AND(#REF!,\"fzcMKnSpZeU=\")","v":{"$error":"#REF!"}},{"$f":"AND(#REF!,\"fzcMKnSpZeY=\")","v":{"$error":"#REF!"}},{"$f":"IF(#REF!,\"fzcMKnSpZec=\",0)","v":{"$error":"#REF!"}},{"$f":"AND(#REF!,\"fzcMKnSpZeg=\")","v":{"$error":"#REF!"}},{"$f":"AND(#REF!,\"fzcMKnSpZek=\")","v":{"$error":"#REF!"}},{"$f":"AND(#REF!,\"fzcMKnSpZeo=\")","v":{"$error":"#REF!"}},{"$f":"AND(#REF!,\"fzcMKnSpZes=\")","v":{"$error":"#REF!"}},{"$f":"AND(#REF!,\"fzcMKnSpZew=\")","v":{"$error":"#REF!"}},{"$f":"AND(#REF!,\"fzcMKnSpZe0=\")","v":{"$error":"#REF!"}},{"$f":"AND(#REF!,\"fzcMKnSpZe4=\")","v":{"$error":"#REF!"}},{"$f":"AND(#REF!,\"fzcMKnSpZe8=\")","v":{"$error":"#REF!"}},{"$f":"IF(#REF!,\"fzcMKnSpZfA=\",0)","v":{"$error":"#REF!"}},{"$f":"AND(#REF!,\"fzcMKnSpZfE=\")","v":{"$error":"#REF!"}},{"$f":"AND(#REF!,\"fzcMKnSpZfI=\")","v":{"$error":"#REF!"}},{"$f":"AND(#REF!,\"fzcMKnSpZfM=\")","v":{"$error":"#REF!"}},{"$f":"AND(#REF!,\"fzcMKnSpZfQ=\")","v":{"$error":"#REF!"}},{"$f":"AND(#REF!,\"fzcMKnSpZfU=\")","v":{"$error":"#REF!"}},{"$f":"AND(#REF!,\"fzcMKnSpZfY=\")","v":{"$error":"#REF!"}},{"$f":"AND(#REF!,\"fzcMKnSpZfc=\")","v":{"$error":"#REF!"}},{"$f":"AND(#REF!,\"fzcMKnSpZfg=\")","v":{"$error":"#REF!"}},{"$f":"IF(#REF!,\"fzcMKnSpZfk=\",0)","v":{"$error":"#REF!"}},{"$f":"AND(#REF!,\"fzcMKnSpZfo=\")","v":{"$error":"#REF!"}},{"$f":"AND(#REF!,\"fzcMKnSpZfs=\")","v":{"$error":"#REF!"}},{"$f":"AND(#REF!,\"fzcMKnSpZfw=\")","v":{"$error":"#REF!"}},{"$f":"AND(#REF!,\"fzcMKnSpZf0=\")","v":{"$error":"#REF!"}},{"$f":"AND(#REF!,\"fzcMKnSpZf4=\")","v":{"$error":"#REF!"}},{"$f":"AND(#REF!,\"fzcMKnSpZf8=\")","v":{"$error":"#REF!"}}]
[{"$f":"AND(#REF!,\"fr6h/WnH7AA=\")","v":{"$error":"#REF!"}},{"$f":"AND(#REF!,\"fr6h/WnH7AE=\")","v":{"$error":"#REF!"}},{"$f":"IF(#REF!,\"fr6h/WnH7AI=\",0)","v":{"$error":"#REF!"}},{"$f":"AND(#REF!,\"fr6h/WnH7AM=\")","v":{"$error":"#REF!"}},{"$f":"AND(#REF!,\"fr6h/WnH7AQ=\")","v":{"$error":"#REF!"}},{"$f":"AND(#REF!,\"fr6h/WnH7AU=\")","v":{"$error":"#REF!"}},{"$f":"AND(#REF!,\"fr6h/WnH7AY=\")","v":{"$error":"#REF!"}},{"$f":"AND(#REF!,\"fr6h/WnH7Ac=\")","v":{"$error":"#REF!"}},{"$f":"AND(#REF!,\"fr6h/WnH7Ag=\")","v":{"$error":"#REF!"}},{"$f":"AND(#REF!,\"fr6h/WnH7Ak=\")","v":{"$error":"#REF!"}},{"$f":"AND(#REF!,\"fr6h/WnH7Ao=\")","v":{"$error":"#REF!"}},{"$f":"IF(#REF!,\"fr6h/WnH7As=\",0)","v":{"$error":"#REF!"}},{"$f":"AND(#REF!,\"fr6h/WnH7Aw=\")","v":{"$error":"#REF!"}},{"$f":"AND(#REF!,\"fr6h/WnH7A0=\")","v":{"$error":"#REF!"}},{"$f":"AND(#REF!,\"fr6h/WnH7A4=\")","v":{"$error":"#REF!"}},{"$f":"AND(#REF!,\"fr6h/WnH7A8=\")","v":{"$error":"#REF!"}},{"$f":"AND(#REF!,\"fr6h/WnH7BA=\")","v":{"$error":"#REF!"}},{"$f":"AND(#REF!,\"fr6h/WnH7BE=\")","v":{"$error":"#REF!"}},{"$f":"AND(#REF!,\"fr6h/WnH7BI=\")","v":{"$error":"#REF!"}},{"$f":"AND(#REF!,\"fr6h/WnH7BM=\")","v":{"$error":"#REF!"}},{"$f":"IF(#REF!,\"fr6h/WnH7BQ=\",0)","v":{"$error":"#REF!"}},{"$f":"AND(#REF!,\"fr6h/WnH7BU=\")","v":{"$error":"#REF!"}},{"$f":"AND(#REF!,\"fr6h/WnH7BY=\")","v":{"$error":"#REF!"}},{"$f":"AND(#REF!,\"fr6h/WnH7Bc=\")","v":{"$error":"#REF!"}},{"$f":"AND(#REF!,\"fr6h/WnH7Bg=\")","v":{"$error":"#REF!"}},{"$f":"AND(#REF!,\"fr6h/WnH7Bk=\")","v":{"$error":"#REF!"}},{"$f":"AND(#REF!,\"fr6h/WnH7Bo=\")","v":{"$error":"#REF!"}},{"$f":"AND(#REF!,\"fr6h/WnH7Bs=\")","v":{"$error":"#REF!"}},{"$f":"AND(#REF!,\"fr6h/WnH7Bw=\")","v":{"$error":"#REF!"}},{"$f":"IF(#REF!,\"fr6h/WnH7B0=\",0)","v":{"$error":"#REF!"}},{"$f":"AND(#REF!,\"fr6h/WnH7B4=\")","v":{"$error":"#REF!"}},{"$f":"AND(#REF!,\"fr6h/WnH7B8=\")","v":{"$error":"#REF!"}},{"$f":"AND(#REF!,\"fr6h/WnH7CA=\")","v":{"$error":"#REF!"}},{"$f":"AND(#REF!,\"fr6h/WnH7CE=\")","v":{"$error":"#REF!"}},{"$f":"AND(#REF!,\"fr6h/WnH7CI=\")","v":{"$error":"#REF!"}},{"$f":"AND(#REF!,\"fr6h/WnH7CM=\")","v":{"$error":"#REF!"}},{"$f":"AND(#REF!,\"fr6h/WnH7CQ=\")","v":{"$error":"#REF!"}},{"$f":"AND(#REF!,\"fr6h/WnH7CU=\")","v":{"$error":"#REF!"}},{"$f":"IF(#REF!,\"fr6h/WnH7CY=\",0)","v":{"$error":"#REF!"}},{"$f":"AND(#REF!,\"fr6h/WnH7Cc=\")","v":{"$error":"#REF!"}},{"$f":"AND(#REF!,\"fr6h/WnH7Cg=\")","v":{"$error":"#REF!"}},{"$f":"AND(#REF!,\"fr6h/WnH7Ck=\")","v":{"$error":"#REF!"}},{"$f":"AND(#REF!,\"fr6h/WnH7Co=\")","v":{"$error":"#REF!"}},{"$f":"AND(#REF!,\"fr6h/WnH7Cs=\")","v":{"$error":"#REF!"}},{"$f":"AND(#REF!,\"fr6h/WnH7Cw=\")","v":{"$error":"#REF!"}},{"$f":"AND(#REF!,\"fr6h/WnH7C0=\")","v":{"$error":"#REF!"}},{"$f":"AND(#REF!,\"fr6h/WnH7C4=\")","v":{"$error":"#REF!"}},{"$f":"IF(#REF!,\"fr6h/WnH7C8=\",0)","v":{"$error":"#REF!"}},{"$f":"AND(#REF!,\"fr6h/WnH7DA=\")","v":{"$error":"#REF!"}},{"$f":"AND(#REF!,\"fr6h/WnH7DE=\")","v":{"$error":"#REF!"}},{"$f":"AND(#REF!,\"fr6h/WnH7DI=\")","v":{"$error":"#REF!"}},{"$f":"AND(#REF!,\"fr6h/WnH7DM=\")","v":{"$error":"#REF!"}},{"$f":"AND(#REF!,\"fr6h/WnH7DQ=\")","v":{"$error":"#REF!"}},{"$f":"AND(#REF!,\"fr6h/WnH7DU=\")","v":{"$error":"#REF!"}},{"$f":"AND(#REF!,\"fr6h/WnH7DY=\")","v":{"$error":"#REF!"}},{"$f":"AND(#REF!,\"fr6h/WnH7Dc=\")","v":{"$error":"#REF!"}},{"$f":"IF(#REF!,\"fr6h/WnH7Dg=\",0)","v":{"$error":"#REF!"}},{"$f":"AND(#REF!,\"fr6h/WnH7Dk=\")","v":{"$error":"#REF!"}},{"$f":"AND(#REF!,\"fr6h/WnH7Do=\")","v":{"$error":"#REF!"}},{"$f":"AND(#REF!,\"fr6h/WnH7Ds=\")","v":{"$error":"#REF!"}},{"$f":"AND(#REF!,\"fr6h/WnH7Dw=\")","v":{"$error":"#REF!"}},{"$f":"AND(#REF!,\"fr6h/WnH7D0=\")","v":{"$error":"#REF!"}},{"$f":"AND(#REF!,\"fr6h/WnH7D4=\")","v":{"$error":"#REF!"}},{"$f":"AND(#REF!,\"fr6h/WnH7D8=\")","v":{"$error":"#REF!"}},{"$f":"AND(#REF!,\"fr6h/WnH7EA=\")","v":{"$error":"#REF!"}},{"$f":"IF(#REF!,\"fr6h/WnH7EE=\",0)","v":{"$error":"#REF!"}},{"$f":"AND(#REF!,\"fr6h/WnH7EI=\")","v":{"$error":"#REF!"}},{"$f":"AND(#REF!,\"fr6h/WnH7EM=\")","v":{"$error":"#REF!"}},{"$f":"AND(#REF!,\"fr6h/WnH7EQ=\")","v":{"$error":"#REF!"}},{"$f":"AND(#REF!,\"fr6h/WnH7EU=\")","v":{"$error":"#REF!"}},{"$f":"AND(#REF!,\"fr6h/WnH7EY=\")","v":{"$error":"#REF!"}},{"$f":"AND(#REF!,\"fr6h/WnH7Ec=\")","v":{"$error":"#REF!"}},{"$f":"AND(#REF!,\"fr6h/WnH7Eg=\")","v":{"$error":"#REF!"}},{"$f":"AND(#REF!,\"fr6h/WnH7Ek=\")","v":{"$error":"#REF!"}},{"$f":"IF(#REF!,\"fr6h/WnH7Eo=\",0)","v":{"$error":"#REF!"}},{"$f":"AND(#REF!,\"fr6h/WnH7Es=\")","v":{"$error":"#REF!"}},{"$f":"AND(#REF!,\"fr6h/WnH7Ew=\")","v":{"$error":"#REF!"}},{"$f":"AND(#REF!,\"fr6h/WnH7E0=\")","v":{"$error":"#REF!"}},{"$f":"AND(#REF!,\"fr6h/WnH7E4=\")","v":{"$error":"#REF!"}},{"$f":"AND(#REF!,\"fr6h/WnH7E8=\")","v":{"$error":"#REF!"}},{"$f":"AND(#REF!,\"fr6h/WnH7FA=\")","v":{"$error":"#REF!"}},{"$f":"AND(#REF!,\"fr6h/WnH7FE=\")","v":{"$error":"#REF!"}},{"$f":"AND(#REF!,\"fr6h/WnH7FI=\")","v":{"$error":"#REF!"}},{"$f":"IF(#REF!,\"fr6h/WnH7FM=\",0)","v":{"$error":"#REF!"}},{"$f":"AND(#REF!,\"fr6h/WnH7FQ=\")","v":{"$error":"#REF!"}},{"$f":"AND(#REF!,\"fr6h/WnH7FU=\")","v":{"$error":"#REF!"}},{"$f":"AND(#REF!,\"fr6h/WnH7FY=\")","v":{"$error":"#REF!"}},{"$f":"AND(#REF!,\"fr6h/WnH7Fc=\")","v":{"$error":"#REF!"}},{"$f":"AND(#REF!,\"fr6h/WnH7Fg=\")","v":{"$error":"#REF!"}},{"$f":"AND(#REF!,\"fr6h/WnH7Fk=\")","v":{"$error":"#REF!"}},{"$f":"AND(#REF!,\"fr6h/WnH7Fo=\")","v":{"$error":"#REF!"}},{"$f":"AND(#REF!,\"fr6h/WnH7Fs=\")","v":{"$error":"#REF!"}},{"$f":"IF(#REF!,\"fr6h/WnH7Fw=\",0)","v":{"$error":"#REF!"}},{"$f":"AND(#REF!,\"fr6h/WnH7F0=\")","v":{"$error":"#REF!"}},{"$f":"AND(#REF!,\"fr6h/WnH7F4=\")","v":{"$error":"#REF!"}},{"$f":"AND(#REF!,\"fr6h/WnH7F8=\")","v":{"$error":"#REF!"}},{"$f":"AND(#REF!,\"fr6h/WnH7GA=\")","v":{"$error":"#REF!"}},{"$f":"AND(#REF!,\"fr6h/WnH7GE=\")","v":{"$error":"#REF!"}},{"$f":"AND(#REF!,\"fr6h/WnH7GI=\")","v":{"$error":"#REF!"}},{"$f":"AND(#REF!,\"fr6h/WnH7GM=\")","v":{"$error":"#REF!"}},{"$f":"AND(#REF!,\"fr6h/WnH7GQ=\")","v":{"$error":"#REF!"}},{"$f":"IF(#REF!,\"fr6h/WnH7GU=\",0)","v":{"$error":"#REF!"}},{"$f":"AND(#REF!,\"fr6h/WnH7GY=\")","v":{"$error":"#REF!"}},{"$f":"AND(#REF!,\"fr6h/WnH7Gc=\")","v":{"$error":"#REF!"}},{"$f":"AND(#REF!,\"fr6h/WnH7Gg=\")","v":{"$error":"#REF!"}},{"$f":"AND(#REF!,\"fr6h/WnH7Gk=\")","v":{"$error":"#REF!"}},{"$f":"AND(#REF!,\"fr6h/WnH7Go=\")","v":{"$error":"#REF!"}},{"$f":"AND(#REF!,\"fr6h/WnH7Gs=\")","v":{"$error":"#REF!"}},{"$f":"AND(#REF!,\"fr6h/WnH7Gw=\")","v":{"$error":"#REF!"}},{"$f":"AND(#REF!,\"fr6h/WnH7G0=\")","v":{"$error":"#REF!"}},{"$f":"IF(#REF!,\"fr6h/WnH7G4=\",0)","v":{"$error":"#REF!"}},{"$f":"AND(#REF!,\"fr6h/WnH7G8=\")","v":{"$error":"#REF!"}},{"$f":"AND(#REF!,\"fr6h/WnH7HA=\")","v":{"$error":"#REF!"}},{"$f":"AND(#REF!,\"fr6h/WnH7HE=\")","v":{"$error":"#REF!"}},{"$f":"AND(#REF!,\"fr6h/WnH7HI=\")","v":{"$error":"#REF!"}},{"$f":"AND(#REF!,\"fr6h/WnH7HM=\")","v":{"$error":"#REF!"}},{"$f":"AND(#REF!,\"fr6h/WnH7HQ=\")","v":{"$error":"#REF!"}},{"$f":"AND(#REF!,\"fr6h/WnH7HU=\")","v":{"$error":"#REF!"}},{"$f":"AND(#REF!,\"fr6h/WnH7HY=\")","v":{"$error":"#REF!"}},{"$f":"IF(#REF!,\"fr6h/WnH7Hc=\",0)","v":{"$error":"#REF!"}},{"$f":"AND(#REF!,\"fr6h/WnH7Hg=\")","v":{"$error":"#REF!"}},{"$f":"AND(#REF!,\"fr6h/WnH7Hk=\")","v":{"$error":"#REF!"}},{"$f":"AND(#REF!,\"fr6h/WnH7Ho=\")","v":{"$error":"#REF!"}},{"$f":"AND(#REF!,\"fr6h/WnH7Hs=\")","v":{"$error":"#REF!"}},{"$f":"AND(#REF!,\"fr6h/WnH7Hw=\")","v":{"$error":"#REF!"}},{"$f":"AND(#REF!,\"fr6h/WnH7H0=\")","v":{"$error":"#REF!"}},{"$f":"AND(#REF!,\"fr6h/WnH7H4=\")","v":{"$error":"#REF!"}},{"$f":"AND(#REF!,\"fr6h/WnH7H8=\")","v":{"$error":"#REF!"}},{"$f":"IF(#REF!,\"fr6h/WnH7IA=\",0)","v":{"$error":"#REF!"}},{"$f":"AND(#REF!,\"fr6h/WnH7IE=\")","v":{"$error":"#REF!"}},{"$f":"AND(#REF!,\"fr6h/WnH7II=\")","v":{"$error":"#REF!"}},{"$f":"AND(#REF!,\"fr6h/WnH7IM=\")","v":{"$error":"#REF!"}},{"$f":"AND(#REF!,\"fr6h/WnH7IQ=\")","v":{"$error":"#REF!"}},{"$f":"AND(#REF!,\"fr6h/WnH7IU=\")","v":{"$error":"#REF!"}},{"$f":"AND(#REF!,\"fr6h/WnH7IY=\")","v":{"$error":"#REF!"}},{"$f":"AND(#REF!,\"fr6h/WnH7Ic=\")","v":{"$error":"#REF!"}},{"$f":"AND(#REF!,\"fr6h/WnH7Ig=\")","v":{"$error":"#REF!"}},{"$f":"IF(#REF!,\"fr6h/WnH7Ik=\",0)","v":{"$error":"#REF!"}},{"$f":"AND(#REF!,\"fr6h/WnH7Io=\")","v":{"$error":"#REF!"}},{"$f":"AND(#REF!,\"fr6h/WnH7Is=\")","v":{"$error":"#REF!"}},{"$f":"AND(#REF!,\"fr6h/WnH7Iw=\")","v":{"$error":"#REF!"}},{"$f":"AND(#REF!,\"fr6h/WnH7I0=\")","v":{"$error":"#REF!"}},{"$f":"AND(#REF!,\"fr6h/WnH7I4=\")","v":{"$error":"#REF!"}},{"$f":"AND(#REF!,\"fr6h/WnH7I8=\")","v":{"$error":"#REF!"}},{"$f":"AND(#REF!,\"fr6h/WnH7JA=\")","v":{"$error":"#REF!"}},{"$f":"AND(#REF!,\"fr6h/WnH7JE=\")","v":{"$error":"#REF!"}},{"$f":"IF(#REF!,\"fr6h/WnH7JI=\",0)","v":{"$error":"#REF!"}},{"$f":"AND(#REF!,\"fr6h/WnH7JM=\")","v":{"$error":"#REF!"}},{"$f":"AND(#REF!,\"fr6h/WnH7JQ=\")","v":{"$error":"#REF!"}},{"$f":"AND(#REF!,\"fr6h/WnH7JU=\")","v":{"$error":"#REF!"}},{"$f":"AND(#REF!,\"fr6h/WnH7JY=\")","v":{"$error":"#REF!"}},{"$f":"AND(#REF!,\"fr6h/WnH7Jc=\")","v":{"$error":"#REF!"}},{"$f":"AND(#REF!,\"fr6h/WnH7Jg=\")","v":{"$error":"#REF!"}},{"$f":"AND(#REF!,\"fr6h/WnH7Jk=\")","v":{"$error":"#REF!"}},{"$f":"AND(#REF!,\"fr6h/WnH7Jo=\")","v":{"$error":"#REF!"}},{"$f":"IF(#REF!,\"fr6h/WnH7Js=\",0)","v":{"$error":"#REF!"}},{"$f":"AND(#REF!,\"fr6h/WnH7Jw=\")","v":{"$error":"#REF!"}},{"$f":"AND(#REF!,\"fr6h/WnH7J0=\")","v":{"$error":"#REF!"}},{"$f":"AND(#REF!,\"fr6h/WnH7J4=\")","v":{"$error":"#REF!"}},{"$f":"AND(#REF!,\"fr6h/WnH7J8=\")","v":{"$error":"#REF!"}},{"$f":"AND(#REF!,\"fr6h/WnH7KA=\")","v":{"$error":"#REF!"}},{"$f":"AND(#REF!,\"fr6h/WnH7KE=\")","v":{"$error":"#REF!"}},{"$f":"AND(#REF!,\"fr6h/WnH7KI=\")","v":{"$error":"#REF!"}},{"$f":"AND(#REF!,\"fr6h/WnH7KM=\")","v":{"$error":"#REF!"}},{"$f":"IF(#REF!,\"fr6h/WnH7KQ=\",0)","v":{"$error":"#REF!"}},{"$f":"AND(#REF!,\"fr6h/WnH7KU=\")","v":{"$error":"#REF!"}},{"$f":"AND(#REF!,\"fr6h/WnH7KY=\")","v":{"$error":"#REF!"}},{"$f":"AND(#REF!,\"fr6h/WnH7Kc=\")","v":{"$error":"#REF!"}},{"$f":"AND(#REF!,\"fr6h/WnH7Kg=\")","v":{"$error":"#REF!"}},{"$f":"AND(#REF!,\"fr6h/WnH7Kk=\")","v":{"$error":"#REF!"}},{"$f":"AND(#REF!,\"fr6h/WnH7Ko=\")","v":{"$error":"#REF!"}},{"$f":"AND(#REF!,\"fr6h/WnH7Ks=\")","v":{"$error":"#REF!"}},{"$f":"AND(#REF!,\"fr6h/WnH7Kw=\")","v":{"$error":"#REF!"}},{"$f":"IF(#REF!,\"fr6h/WnH7K0=\",0)","v":{"$error":"#REF!"}},{"$f":"AND(#REF!,\"fr6h/WnH7K4=\")","v":{"$error":"#REF!"}},{"$f":"AND(#REF!,\"fr6h/WnH7K8=\")","v":{"$error":"#REF!"}},{"$f":"AND(#REF!,\"fr6h/WnH7LA=\")","v":{"$error":"#REF!"}},{"$f":"AND(#REF!,\"fr6h/WnH7LE=\")","v":{"$error":"#REF!"}},{"$f":"AND(#REF!,\"fr6h/WnH7LI=\")","v":{"$error":"#REF!"}},{"$f":"AND(#REF!,\"fr6h/WnH7LM=\")","v":{"$error":"#REF!"}},{"$f":"AND(#REF!,\"fr6h/WnH7LQ=\")","v":{"$error":"#REF!"}},{"$f":"AND(#REF!,\"fr6h/WnH7LU=\")","v":{"$error":"#REF!"}},{"$f":"IF(#REF!,\"fr6h/WnH7LY=\",0)","v":{"$error":"#REF!"}},{"$f":"AND(#REF!,\"fr6h/WnH7Lc=\")","v":{"$error":"#REF!"}},{"$f":"AND(#REF!,\"fr6h/WnH7Lg=\")","v":{"$error":"#REF!"}},{"$f":"AND(#REF!,\"fr6h/WnH7Lk=\")","v":{"$error":"#REF!"}},{"$f":"AND(#REF!,\"fr6h/WnH7Lo=\")","v":{"$error":"#REF!"}},{"$f":"AND(#REF!,\"fr6h/WnH7Ls=\")","v":{"$error":"#REF!"}},{"$f":"AND(#REF!,\"fr6h/WnH7Lw=\")","v":{"$error":"#REF!"}},{"$f":"AND(#REF!,\"fr6h/WnH7L0=\")","v":{"$error":"#REF!"}},{"$f":"AND(#REF!,\"fr6h/WnH7L4=\")","v":{"$error":"#REF!"}},{"$f":"IF(#REF!,\"fr6h/WnH7L8=\",0)","v":{"$error":"#REF!"}},{"$f":"AND(#REF!,\"fr6h/WnH7MA=\")","v":{"$error":"#REF!"}},{"$f":"AND(#REF!,\"fr6h/WnH7ME=\")","v":{"$error":"#REF!"}},{"$f":"AND(#REF!,\"fr6h/WnH7MI=\")","v":{"$error":"#REF!"}},{"$f":"AND(#REF!,\"fr6h/WnH7MM=\")","v":{"$error":"#REF!"}},{"$f":"AND(#REF!,\"fr6h/WnH7MQ=\")","v":{"$error":"#REF!"}},{"$f":"AND(#REF!,\"fr6h/WnH7MU=\")","v":{"$error":"#REF!"}},{"$f":"AND(#REF!,\"fr6h/WnH7MY=\")","v":{"$error":"#REF!"}},{"$f":"AND(#REF!,\"fr6h/WnH7Mc=\")","v":{"$error":"#REF!"}},{"$f":"IF(#REF!,\"fr6h/WnH7Mg=\",0)","v":{"$error":"#REF!"}},{"$f":"AND(#REF!,\"fr6h/WnH7Mk=\")","v":{"$error":"#REF!"}},{"$f":"AND(#REF!,\"fr6h/WnH7Mo=\")","v":{"$error":"#REF!"}},{"$f":"AND(#REF!,\"fr6h/WnH7Ms=\")","v":{"$error":"#REF!"}},{"$f":"AND(#REF!,\"fr6h/WnH7Mw=\")","v":{"$error":"#REF!"}},{"$f":"AND(#REF!,\"fr6h/WnH7M0=\")","v":{"$error":"#REF!"}},{"$f":"AND(#REF!,\"fr6h/WnH7M4=\")","v":{"$error":"#REF!"}},{"$f":"AND(#REF!,\"fr6h/WnH7M8=\")","v":{"$error":"#REF!"}},{"$f":"AND(#REF!,\"fr6h/WnH7NA=\")","v":{"$error":"#REF!"}},{"$f":"IF(#REF!,\"fr6h/WnH7NE=\",0)","v":{"$error":"#REF!"}},{"$f":"AND(#REF!,\"fr6h/WnH7NI=\")","v":{"$error":"#REF!"}},{"$f":"AND(#REF!,\"fr6h/WnH7NM=\")","v":{"$error":"#REF!"}},{"$f":"AND(#REF!,\"fr6h/WnH7NQ=\")","v":{"$error":"#REF!"}},{"$f":"AND(#REF!,\"fr6h/WnH7NU=\")","v":{"$error":"#REF!"}},{"$f":"AND(#REF!,\"fr6h/WnH7NY=\")","v":{"$error":"#REF!"}},{"$f":"AND(#REF!,\"fr6h/WnH7Nc=\")","v":{"$error":"#REF!"}},{"$f":"AND(#REF!,\"fr6h/WnH7Ng=\")","v":{"$error":"#REF!"}},{"$f":"AND(#REF!,\"fr6h/WnH7Nk=\")","v":{"$error":"#REF!"}},{"$f":"IF(#REF!,\"fr6h/WnH7No=\",0)","v":{"$error":"#REF!"}},{"$f":"AND(#REF!,\"fr6h/WnH7Ns=\")","v":{"$error":"#REF!"}},{"$f":"AND(#REF!,\"fr6h/WnH7Nw=\")","v":{"$error":"#REF!"}},{"$f":"AND(#REF!,\"fr6h/WnH7N0=\")","v":{"$error":"#REF!"}},{"$f":"AND(#REF!,\"fr6h/WnH7N4=\")","v":{"$error":"#REF!"}},{"$f":"AND(#REF!,\"fr6h/WnH7N8=\")","v":{"$error":"#REF!"}},{"$f":"AND(#REF!,\"fr6h/WnH7OA=\")","v":{"$error":"#REF!"}},{"$f":"AND(#REF!,\"fr6h/WnH7OE=\")","v":{"$error":"#REF!"}},{"$f":"AND(#REF!,\"fr6h/WnH7OI=\")","v":{"$error":"#REF!"}},{"$f":"IF(#REF!,\"fr6h/WnH7OM=\",0)","v":{"$error":"#REF!"}},{"$f":"AND(#REF!,\"fr6h/WnH7OQ=\")","v":{"$error":"#REF!"}},{"$f":"AND(#REF!,\"fr6h/WnH7OU=\")","v":{"$error":"#REF!"}},{"$f":"AND(#REF!,\"fr6h/WnH7OY=\")","v":{"$error":"#REF!"}},{"$f":"AND(#REF!,\"fr6h/WnH7Oc=\")","v":{"$error":"#REF!"}},{"$f":"AND(#REF!,\"fr6h/WnH7Og=\")","v":{"$error":"#REF!"}},{"$f":"AND(#REF!,\"fr6h/WnH7Ok=\")","v":{"$error":"#REF!"}},{"$f":"AND(#REF!,\"fr6h/WnH7Oo=\")","v":{"$error":"#REF!"}},{"$f":"AND(#REF!,\"fr6h/WnH7Os=\")","v":{"$error":"#REF!"}},{"$f":"IF(#REF!,\"fr6h/WnH7Ow=\",0)","v":{"$error":"#REF!"}},{"$f":"AND(#REF!,\"fr6h/WnH7O0=\")","v":{"$error":"#REF!"}},{"$f":"AND(#REF!,\"fr6h/WnH7O4=\")","v":{"$error":"#REF!"}},{"$f":"AND(#REF!,\"fr6h/WnH7O8=\")","v":{"$error":"#REF!"}},{"$f":"AND(#REF!,\"fr6h/WnH7PA=\")","v":{"$error":"#REF!"}},{"$f":"AND(#REF!,\"fr6h/WnH7PE=\")","v":{"$error":"#REF!"}},{"$f":"AND(#REF!,\"fr6h/WnH7PI=\")","v":{"$error":"#REF!"}},{"$f":"AND(#REF!,\"fr6h/WnH7PM=\")","v":{"$error":"#REF!"}},{"$f":"AND(#REF!,\"fr6h/WnH7PQ=\")","v":{"$error":"#REF!"}},{"$f":"IF(#REF!,\"fr6h/WnH7PU=\",0)","v":{"$error":"#REF!"}},{"$f":"AND(#REF!,\"fr6h/WnH7PY=\")","v":{"$error":"#REF!"}},{"$f":"AND(#REF!,\"fr6h/WnH7Pc=\")","v":{"$error":"#REF!"}},{"$f":"AND(#REF!,\"fr6h/WnH7Pg=\")","v":{"$error":"#REF!"}},{"$f":"AND(#REF!,\"fr6h/WnH7Pk=\")","v":{"$error":"#REF!"}},{"$f":"AND(#REF!,\"fr6h/WnH7Po=\")","v":{"$error":"#REF!"}},{"$f":"AND(#REF!,\"fr6h/WnH7Ps=\")","v":{"$error":"#REF!"}},{"$f":"AND(#REF!,\"fr6h/WnH7Pw=\")","v":{"$error":"#REF!"}},{"$f":"AND(#REF!,\"fr6h/WnH7P0=\")","v":{"$error":"#REF!"}},{"$f":"IF(#REF!,\"fr6h/WnH7P4=\",0)","v":{"$error":"#REF!"}},{"$f":"AND(#REF!,\"fr6h/WnH7P8=\")","v":{"$error":"#REF!"}}]
[{"$f":"AND(#REF!,\"dkCObT8JywA=\")","v":{"$error":"#REF!"}},{"$f":"AND(#REF!,\"dkCObT8JywE=\")","v":{"$error":"#REF!"}},{"$f":"AND(#REF!,\"dkCObT8JywI=\")","v":{"$error":"#REF!"}},{"$f":"AND(#REF!,\"dkCObT8JywM=\")","v":{"$error":"#REF!"}},{"$f":"AND(#REF!,\"dkCObT8JywQ=\")","v":{"$error":"#REF!"}},{"$f":"AND(#REF!,\"dkCObT8JywU=\")","v":{"$error":"#REF!"}},{"$f":"AND(#REF!,\"dkCObT8JywY=\")","v":{"$error":"#REF!"}},{"$f":"IF(#REF!,\"dkCObT8Jywc=\",0)","v":{"$error":"#REF!"}},{"$f":"AND(#REF!,\"dkCObT8Jywg=\")","v":{"$error":"#REF!"}},{"$f":"AND(#REF!,\"dkCObT8Jywk=\")","v":{"$error":"#REF!"}},{"$f":"AND(#REF!,\"dkCObT8Jywo=\")","v":{"$error":"#REF!"}},{"$f":"AND(#REF!,\"dkCObT8Jyws=\")","v":{"$error":"#REF!"}},{"$f":"AND(#REF!,\"dkCObT8Jyww=\")","v":{"$error":"#REF!"}},{"$f":"AND(#REF!,\"dkCObT8Jyw0=\")","v":{"$error":"#REF!"}},{"$f":"AND(#REF!,\"dkCObT8Jyw4=\")","v":{"$error":"#REF!"}},{"$f":"AND(#REF!,\"dkCObT8Jyw8=\")","v":{"$error":"#REF!"}},{"$f":"IF(#REF!,\"dkCObT8JyxA=\",0)","v":{"$error":"#REF!"}},{"$f":"AND(#REF!,\"dkCObT8JyxE=\")","v":{"$error":"#REF!"}},{"$f":"AND(#REF!,\"dkCObT8JyxI=\")","v":{"$error":"#REF!"}},{"$f":"AND(#REF!,\"dkCObT8JyxM=\")","v":{"$error":"#REF!"}},{"$f":"AND(#REF!,\"dkCObT8JyxQ=\")","v":{"$error":"#REF!"}},{"$f":"AND(#REF!,\"dkCObT8JyxU=\")","v":{"$error":"#REF!"}},{"$f":"AND(#REF!,\"dkCObT8JyxY=\")","v":{"$error":"#REF!"}},{"$f":"AND(#REF!,\"dkCObT8Jyxc=\")","v":{"$error":"#REF!"}},{"$f":"AND(#REF!,\"dkCObT8Jyxg=\")","v":{"$error":"#REF!"}},{"$f":"IF(#REF!,\"dkCObT8Jyxk=\",0)","v":{"$error":"#REF!"}},{"$f":"AND(#REF!,\"dkCObT8Jyxo=\")","v":{"$error":"#REF!"}},{"$f":"AND(#REF!,\"dkCObT8Jyxs=\")","v":{"$error":"#REF!"}},{"$f":"AND(#REF!,\"dkCObT8Jyxw=\")","v":{"$error":"#REF!"}},{"$f":"AND(#REF!,\"dkCObT8Jyx0=\")","v":{"$error":"#REF!"}},{"$f":"AND(#REF!,\"dkCObT8Jyx4=\")","v":{"$error":"#REF!"}},{"$f":"AND(#REF!,\"dkCObT8Jyx8=\")","v":{"$error":"#REF!"}},{"$f":"AND(#REF!,\"dkCObT8JyyA=\")","v":{"$error":"#REF!"}},{"$f":"AND(#REF!,\"dkCObT8JyyE=\")","v":{"$error":"#REF!"}},{"$f":"IF(#REF!,\"dkCObT8JyyI=\",0)","v":{"$error":"#REF!"}},{"$f":"IF(#REF!,\"dkCObT8JyyM=\",0)","v":{"$error":"#REF!"}},{"$f":"IF(#REF!,\"dkCObT8JyyQ=\",0)","v":{"$error":"#REF!"}},{"$f":"IF(#REF!,\"dkCObT8JyyU=\",0)","v":{"$error":"#REF!"}},{"$f":"IF(#REF!,\"dkCObT8JyyY=\",0)","v":{"$error":"#REF!"}},{"$f":"IF(#REF!,\"dkCObT8Jyyc=\",0)","v":{"$error":"#REF!"}},{"$f":"IF(#REF!,\"dkCObT8Jyyg=\",0)","v":{"$error":"#REF!"}},{"$f":"IF(#REF!,\"dkCObT8Jyyk=\",0)","v":{"$error":"#REF!"}},{"$f":"IF(#REF!,\"dkCObT8Jyyo=\",0)","v":{"$error":"#REF!"}},{"$f":"IF(#REF!,\"dkCObT8Jyys=\",0)","v":{"$error":"#REF!"}},{"$f":"IF(#REF!,\"dkCObT8Jyyw=\",0)","v":{"$error":"#REF!"}},{"$f":"IF(#REF!,\"dkCObT8Jyy0=\",0)","v":{"$error":"#REF!"}},{"$f":"IF(#REF!,\"dkCObT8Jyy4=\",0)","v":{"$error":"#REF!"}},{"$f":"IF(#REF!,\"dkCObT8Jyy8=\",0)","v":{"$error":"#REF!"}},{"$f":"IF(#REF!,\"dkCObT8JyzA=\",0)","v":{"$error":"#REF!"}},{"$f":"IF(#REF!,\"dkCObT8JyzE=\",0)","v":{"$error":"#REF!"}},{"$f":"IF(#REF!,\"dkCObT8JyzI=\",0)","v":{"$error":"#REF!"}},{"$f":"IF(#REF!,\"dkCObT8JyzM=\",0)","v":{"$error":"#REF!"}},{"$f":"IF(#REF!,\"dkCObT8JyzQ=\",0)","v":{"$error":"#REF!"}},{"$f":"IF(#REF!,\"dkCObT8JyzU=\",0)","v":{"$error":"#REF!"}},{"$f":"IF(#REF!,\"dkCObT8JyzY=\",0)","v":{"$error":"#REF!"}},{"$f":"IF(#REF!,\"dkCObT8Jyzc=\",0)","v":{"$error":"#REF!"}},{"$f":"IF(#REF!,\"dkCObT8Jyzg=\",0)","v":{"$error":"#REF!"}},{"$f":"IF(#REF!,\"dkCObT8Jyzk=\",0)","v":{"$error":"#REF!"}},{"$f":"AND(#REF!,\"dkCObT8Jyzo=\")","v":{"$error":"#REF!"}},{"$f":"AND(#REF!,\"dkCObT8Jyzs=\")","v":{"$error":"#REF!"}},{"$f":"AND(#REF!,\"dkCObT8Jyzw=\")","v":{"$error":"#REF!"}},{"$f":"AND(#REF!,\"dkCObT8Jyz0=\")","v":{"$error":"#REF!"}},{"$f":"AND(#REF!,\"dkCObT8Jyz4=\")","v":{"$error":"#REF!"}},{"$f":"AND(#REF!,\"dkCObT8Jyz8=\")","v":{"$error":"#REF!"}},{"$f":"AND(#REF!,\"dkCObT8Jy0A=\")","v":{"$error":"#REF!"}},{"$f":"AND(#REF!,\"dkCObT8Jy0E=\")","v":{"$error":"#REF!"}},{"$f":"AND(#REF!,\"dkCObT8Jy0I=\")","v":{"$error":"#REF!"}},{"$f":"AND(#REF!,\"dkCObT8Jy0M=\")","v":{"$error":"#REF!"}},{"$f":"AND(#REF!,\"dkCObT8Jy0Q=\")","v":{"$error":"#REF!"}},{"$f":"AND(#REF!,\"dkCObT8Jy0U=\")","v":{"$error":"#REF!"}},{"$f":"AND(#REF!,\"dkCObT8Jy0Y=\")","v":{"$error":"#REF!"}},{"$f":"AND(#REF!,\"dkCObT8Jy0c=\")","v":{"$error":"#REF!"}},{"$f":"AND(#REF!,\"dkCObT8Jy0g=\")","v":{"$error":"#REF!"}},{"$f":"AND(#REF!,\"dkCObT8Jy0k=\")","v":{"$error":"#REF!"}},{"$f":"AND(#REF!,\"dkCObT8Jy0o=\")","v":{"$error":"#REF!"}},{"$f":"AND(#REF!,\"dkCObT8Jy0s=\")","v":{"$error":"#REF!"}},{"$f":"AND(#REF!,\"dkCObT8Jy0w=\")","v":{"$error":"#REF!"}},{"$f":"AND(#REF!,\"dkCObT8Jy00=\")","v":{"$error":"#REF!"}},{"$f":"AND(#REF!,\"dkCObT8Jy04=\")","v":{"$error":"#REF!"}},{"$f":"AND(#REF!,\"dkCObT8Jy08=\")","v":{"$error":"#REF!"}},{"$f":"AND(#REF!,\"dkCObT8Jy1A=\")","v":{"$error":"#REF!"}},{"$f":"AND(#REF!,\"dkCObT8Jy1E=\")","v":{"$error":"#REF!"}},{"$f":"AND(#REF!,\"dkCObT8Jy1I=\")","v":{"$error":"#REF!"}},{"$f":"AND(#REF!,\"dkCObT8Jy1M=\")","v":{"$error":"#REF!"}},{"$f":"AND(#REF!,\"dkCObT8Jy1Q=\")","v":{"$error":"#REF!"}},{"$f":"AND(#REF!,\"dkCObT8Jy1U=\")","v":{"$error":"#REF!"}},{"$f":"AND(#REF!,\"dkCObT8Jy1Y=\")","v":{"$error":"#REF!"}},{"$f":"AND(#REF!,\"dkCObT8Jy1c=\")","v":{"$error":"#REF!"}},{"$f":"AND(#REF!,\"dkCObT8Jy1g=\")","v":{"$error":"#REF!"}},{"$f":"AND(#REF!,\"dkCObT8Jy1k=\")","v":{"$error":"#REF!"}},{"$f":"AND(#REF!,\"dkCObT8Jy1o=\")","v":{"$error":"#REF!"}},{"$f":"AND(#REF!,\"dkCObT8Jy1s=\")","v":{"$error":"#REF!"}},{"$f":"AND(#REF!,\"dkCObT8Jy1w=\")","v":{"$error":"#REF!"}},{"$f":"AND(#REF!,\"dkCObT8Jy10=\")","v":{"$error":"#REF!"}},{"$f":"AND(#REF!,\"dkCObT8Jy14=\")","v":{"$error":"#REF!"}},{"$f":"AND(#REF!,\"dkCObT8Jy18=\")","v":{"$error":"#REF!"}},{"$f":"AND(#REF!,\"dkCObT8Jy2A=\")","v":{"$error":"#REF!"}},{"$f":"AND(#REF!,\"dkCObT8Jy2E=\")","v":{"$error":"#REF!"}},{"$f":"AND(#REF!,\"dkCObT8Jy2I=\")","v":{"$error":"#REF!"}},{"$f":"AND(#REF!,\"dkCObT8Jy2M=\")","v":{"$error":"#REF!"}},{"$f":"AND(#REF!,\"dkCObT8Jy2Q=\")","v":{"$error":"#REF!"}},{"$f":"AND(#REF!,\"dkCObT8Jy2U=\")","v":{"$error":"#REF!"}},{"$f":"AND(#REF!,\"dkCObT8Jy2Y=\")","v":{"$error":"#REF!"}},{"$f":"AND(#REF!,\"dkCObT8Jy2c=\")","v":{"$error":"#REF!"}},{"$f":"AND(#REF!,\"dkCObT8Jy2g=\")","v":{"$error":"#REF!"}},{"$f":"AND(#REF!,\"dkCObT8Jy2k=\")","v":{"$error":"#REF!"}},{"$f":"AND(#REF!,\"dkCObT8Jy2o=\")","v":{"$error":"#REF!"}},{"$f":"AND(#REF!,\"dkCObT8Jy2s=\")","v":{"$error":"#REF!"}},{"$f":"AND(#REF!,\"dkCObT8Jy2w=\")","v":{"$error":"#REF!"}},{"$f":"AND(#REF!,\"dkCObT8Jy20=\")","v":{"$error":"#REF!"}},{"$f":"AND(#REF!,\"dkCObT8Jy24=\")","v":{"$error":"#REF!"}},{"$f":"AND(#REF!,\"dkCObT8Jy28=\")","v":{"$error":"#REF!"}},{"$f":"AND(#REF!,\"dkCObT8Jy3A=\")","v":{"$error":"#REF!"}},{"$f":"AND(#REF!,\"dkCObT8Jy3E=\")","v":{"$error":"#REF!"}},{"$f":"AND(#REF!,\"dkCObT8Jy3I=\")","v":{"$error":"#REF!"}},{"$f":"AND(#REF!,\"dkCObT8Jy3M=\")","v":{"$error":"#REF!"}},{"$f":"AND(#REF!,\"dkCObT8Jy3Q=\")","v":{"$error":"#REF!"}},{"$f":"AND(#REF!,\"dkCObT8Jy3U=\")","v":{"$error":"#REF!"}},{"$f":"AND(#REF!,\"dkCObT8Jy3Y=\")","v":{"$error":"#REF!"}},{"$f":"AND(#REF!,\"dkCObT8Jy3c=\")","v":{"$error":"#REF!"}},{"$f":"AND(#REF!,\"dkCObT8Jy3g=\")","v":{"$error":"#REF!"}},{"$f":"AND(#REF!,\"dkCObT8Jy3k=\")","v":{"$error":"#REF!"}},{"$f":"AND(#REF!,\"dkCObT8Jy3o=\")","v":{"$error":"#REF!"}},{"$f":"AND(#REF!,\"dkCObT8Jy3s=\")","v":{"$error":"#REF!"}},{"$f":"AND(#REF!,\"dkCObT8Jy3w=\")","v":{"$error":"#REF!"}},{"$f":"AND(#REF!,\"dkCObT8Jy30=\")","v":{"$error":"#REF!"}},{"$f":"AND(#REF!,\"dkCObT8Jy34=\")","v":{"$error":"#REF!"}},{"$f":"AND(#REF!,\"dkCObT8Jy38=\")","v":{"$error":"#REF!"}},{"$f":"AND(#REF!,\"dkCObT8Jy4A=\")","v":{"$error":"#REF!"}},{"$f":"AND(#REF!,\"dkCObT8Jy4E=\")","v":{"$error":"#REF!"}},{"$f":"AND(#REF!,\"dkCObT8Jy4I=\")","v":{"$error":"#REF!"}},{"$f":"AND(#REF!,\"dkCObT8Jy4M=\")","v":{"$error":"#REF!"}},{"$f":"AND(#REF!,\"dkCObT8Jy4Q=\")","v":{"$error":"#REF!"}},{"$f":"AND(#REF!,\"dkCObT8Jy4U=\")","v":{"$error":"#REF!"}},{"$f":"AND(#REF!,\"dkCObT8Jy4Y=\")","v":{"$error":"#REF!"}},{"$f":"AND(#REF!,\"dkCObT8Jy4c=\")","v":{"$error":"#REF!"}},{"$f":"AND(#REF!,\"dkCObT8Jy4g=\")","v":{"$error":"#REF!"}},{"$f":"AND(#REF!,\"dkCObT8Jy4k=\")","v":{"$error":"#REF!"}},{"$f":"AND(#REF!,\"dkCObT8Jy4o=\")","v":{"$error":"#REF!"}},{"$f":"AND(#REF!,\"dkCObT8Jy4s=\")","v":{"$error":"#REF!"}},{"$f":"AND(#REF!,\"dkCObT8Jy4w=\")","v":{"$error":"#REF!"}},{"$f":"AND(#REF!,\"dkCObT8Jy40=\")","v":{"$error":"#REF!"}},{"$f":"AND(#REF!,\"dkCObT8Jy44=\")","v":{"$error":"#REF!"}},{"$f":"AND(#REF!,\"dkCObT8Jy48=\")","v":{"$error":"#REF!"}},{"$f":"AND(#REF!,\"dkCObT8Jy5A=\")","v":{"$error":"#REF!"}},{"$f":"AND(#REF!,\"dkCObT8Jy5E=\")","v":{"$error":"#REF!"}},{"$f":"AND(#REF!,\"dkCObT8Jy5I=\")","v":{"$error":"#REF!"}},{"$f":"AND(#REF!,\"dkCObT8Jy5M=\")","v":{"$error":"#REF!"}},{"$f":"AND(#REF!,\"dkCObT8Jy5Q=\")","v":{"$error":"#REF!"}},{"$f":"AND(#REF!,\"dkCObT8Jy5U=\")","v":{"$error":"#REF!"}},{"$f":"AND(#REF!,\"dkCObT8Jy5Y=\")","v":{"$error":"#REF!"}},{"$f":"AND(#REF!,\"dkCObT8Jy5c=\")","v":{"$error":"#REF!"}},{"$f":"AND(#REF!,\"dkCObT8Jy5g=\")","v":{"$error":"#REF!"}},{"$f":"AND(#REF!,\"dkCObT8Jy5k=\")","v":{"$error":"#REF!"}},{"$f":"AND(#REF!,\"dkCObT8Jy5o=\")","v":{"$error":"#REF!"}},{"$f":"AND(#REF!,\"dkCObT8Jy5s=\")","v":{"$error":"#REF!"}},{"$f":"AND(#REF!,\"dkCObT8Jy5w=\")","v":{"$error":"#REF!"}},{"$f":"AND(#REF!,\"dkCObT8Jy50=\")","v":{"$error":"#REF!"}},{"$f":"AND(#REF!,\"dkCObT8Jy54=\")","v":{"$error":"#REF!"}},{"$f":"AND(#REF!,\"dkCObT8Jy58=\")","v":{"$error":"#REF!"}},{"$f":"AND(#REF!,\"dkCObT8Jy6A=\")","v":{"$error":"#REF!"}},{"$f":"AND(#REF!,\"dkCObT8Jy6E=\")","v":{"$error":"#REF!"}},{"$f":"AND(#REF!,\"dkCObT8Jy6I=\")","v":{"$error":"#REF!"}},{"$f":"AND(#REF!,\"dkCObT8Jy6M=\")","v":{"$error":"#REF!"}},{"$f":"AND(#REF!,\"dkCObT8Jy6Q=\")","v":{"$error":"#REF!"}},{"$f":"AND(#REF!,\"dkCObT8Jy6U=\")","v":{"$error":"#REF!"}},{"$f":"AND(#REF!,\"dkCObT8Jy6Y=\")","v":{"$error":"#REF!"}},{"$f":"AND(#REF!,\"dkCObT8Jy6c=\")","v":{"$error":"#REF!"}},{"$f":"AND(#REF!,\"dkCObT8Jy6g=\")","v":{"$error":"#REF!"}},{"$f":"AND(#REF!,\"dkCObT8Jy6k=\")","v":{"$error":"#REF!"}},{"$f":"AND(#REF!,\"dkCObT8Jy6o=\")","v":{"$error":"#REF!"}},{"$f":"AND(#REF!,\"dkCObT8Jy6s=\")","v":{"$error":"#REF!"}},{"$f":"AND(#REF!,\"dkCObT8Jy6w=\")","v":{"$error":"#REF!"}},{"$f":"AND(#REF!,\"dkCObT8Jy60=\")","v":{"$error":"#REF!"}},{"$f":"AND(#REF!,\"dkCObT8Jy64=\")","v":{"$error":"#REF!"}},{"$f":"AND(#REF!,\"dkCObT8Jy68=\")","v":{"$error":"#REF!"}},{"$f":"AND(#REF!,\"dkCObT8Jy7A=\")","v":{"$error":"#REF!"}},{"$f":"AND(#REF!,\"dkCObT8Jy7E=\")","v":{"$error":"#REF!"}},{"$f":"AND(#REF!,\"dkCObT8Jy7I=\")","v":{"$error":"#REF!"}},{"$f":"AND(#REF!,\"dkCObT8Jy7M=\")","v":{"$error":"#REF!"}},{"$f":"AND(#REF!,\"dkCObT8Jy7Q=\")","v":{"$error":"#REF!"}},{"$f":"AND(#REF!,\"dkCObT8Jy7U=\")","v":{"$error":"#REF!"}},{"$f":"AND(#REF!,\"dkCObT8Jy7Y=\")","v":{"$error":"#REF!"}},{"$f":"AND(#REF!,\"dkCObT8Jy7c=\")","v":{"$error":"#REF!"}},{"$f":"AND(#REF!,\"dkCObT8Jy7g=\")","v":{"$error":"#REF!"}},{"$f":"AND(#REF!,\"dkCObT8Jy7k=\")","v":{"$error":"#REF!"}},{"$f":"AND(#REF!,\"dkCObT8Jy7o=\")","v":{"$error":"#REF!"}},{"$f":"AND(#REF!,\"dkCObT8Jy7s=\")","v":{"$error":"#REF!"}},{"$f":"AND(#REF!,\"dkCObT8Jy7w=\")","v":{"$error":"#REF!"}},{"$f":"AND(#REF!,\"dkCObT8Jy70=\")","v":{"$error":"#REF!"}},{"$f":"AND(#REF!,\"dkCObT8Jy74=\")","v":{"$error":"#REF!"}},{"$f":"AND(#REF!,\"dkCObT8Jy78=\")","v":{"$error":"#REF!"}},{"$f":"AND(#REF!,\"dkCObT8Jy8A=\")","v":{"$error":"#REF!"}},{"$f":"AND(#REF!,\"dkCObT8Jy8E=\")","v":{"$error":"#REF!"}},{"$f":"AND(#REF!,\"dkCObT8Jy8I=\")","v":{"$error":"#REF!"}},{"$f":"AND(#REF!,\"dkCObT8Jy8M=\")","v":{"$error":"#REF!"}},{"$f":"AND(#REF!,\"dkCObT8Jy8Q=\")","v":{"$error":"#REF!"}},{"$f":"AND(#REF!,\"dkCObT8Jy8U=\")","v":{"$error":"#REF!"}},{"$f":"AND(#REF!,\"dkCObT8Jy8Y=\")","v":{"$error":"#REF!"}},{"$f":"AND(#REF!,\"dkCObT8Jy8c=\")","v":{"$error":"#REF!"}},{"$f":"AND(#REF!,\"dkCObT8Jy8g=\")","v":{"$error":"#REF!"}},{"$f":"AND(#REF!,\"dkCObT8Jy8k=\")","v":{"$error":"#REF!"}},{"$f":"AND(#REF!,\"dkCObT8Jy8o=\")","v":{"$error":"#REF!"}},{"$f":"AND(#REF!,\"dkCObT8Jy8s=\")","v":{"$error":"#REF!"}},{"$f":"AND(#REF!,\"dkCObT8Jy8w=\")","v":{"$error":"#REF!"}},{"$f":"AND(#REF!,\"dkCObT8Jy80=\")","v":{"$error":"#REF!"}},{"$f":"AND(#REF!,\"dkCObT8Jy84=\")","v":{"$error":"#REF!"}},{"$f":"AND(#REF!,\"dkCObT8Jy88=\")","v":{"$error":"#REF!"}},{"$f":"AND(#REF!,\"dkCObT8Jy9A=\")","v":{"$error":"#REF!"}},{"$f":"AND(#REF!,\"dkCObT8Jy9E=\")","v":{"$error":"#REF!"}},{"$f":"AND(#REF!,\"dkCObT8Jy9I=\")","v":{"$error":"#REF!"}},{"$f":"AND(#REF!,\"dkCObT8Jy9M=\")","v":{"$error":"#REF!"}},{"$f":"AND(#REF!,\"dkCObT8Jy9Q=\")","v":{"$error":"#REF!"}},{"$f":"AND(#REF!,\"dkCObT8Jy9U=\")","v":{"$error":"#REF!"}},{"$f":"AND(#REF!,\"dkCObT8Jy9Y=\")","v":{"$error":"#REF!"}},{"$f":"AND(#REF!,\"dkCObT8Jy9c=\")","v":{"$error":"#REF!"}},{"$f":"AND(#REF!,\"dkCObT8Jy9g=\")","v":{"$error":"#REF!"}},{"$f":"AND(#REF!,\"dkCObT8Jy9k=\")","v":{"$error":"#REF!"}},{"$f":"AND(#REF!,\"dkCObT8Jy9o=\")","v":{"$error":"#REF!"}},{"$f":"AND(#REF!,\"dkCObT8Jy9s=\")","v":{"$error":"#REF!"}},{"$f":"AND(#REF!,\"dkCObT8Jy9w=\")","v":{"$error":"#REF!"}},{"$f":"AND(#REF!,\"dkCObT8Jy90=\")","v":{"$error":"#REF!"}},{"$f":"AND(#REF!,\"dkCObT8Jy94=\")","v":{"$error":"#REF!"}},{"$f":"AND(#REF!,\"dkCObT8Jy98=\")","v":{"$error":"#REF!"}},{"$f":"AND(#REF!,\"dkCObT8Jy+A=\")","v":{"$error":"#REF!"}},{"$f":"AND(#REF!,\"dkCObT8Jy+E=\")","v":{"$error":"#REF!"}},{"$f":"AND(#REF!,\"dkCObT8Jy+I=\")","v":{"$error":"#REF!"}},{"$f":"AND(#REF!,\"dkCObT8Jy+M=\")","v":{"$error":"#REF!"}},{"$f":"AND(#REF!,\"dkCObT8Jy+Q=\")","v":{"$error":"#REF!"}},{"$f":"AND(#REF!,\"dkCObT8Jy+U=\")","v":{"$error":"#REF!"}},{"$f":"AND(#REF!,\"dkCObT8Jy+Y=\")","v":{"$error":"#REF!"}},{"$f":"AND(#REF!,\"dkCObT8Jy+c=\")","v":{"$error":"#REF!"}},{"$f":"AND(#REF!,\"dkCObT8Jy+g=\")","v":{"$error":"#REF!"}},{"$f":"AND(#REF!,\"dkCObT8Jy+k=\")","v":{"$error":"#REF!"}},{"$f":"AND(#REF!,\"dkCObT8Jy+o=\")","v":{"$error":"#REF!"}},{"$f":"AND(#REF!,\"dkCObT8Jy+s=\")","v":{"$error":"#REF!"}},{"$f":"AND(#REF!,\"dkCObT8Jy+w=\")","v":{"$error":"#REF!"}},{"$f":"AND(#REF!,\"dkCObT8Jy+0=\")","v":{"$error":"#REF!"}},{"$f":"AND(#REF!,\"dkCObT8Jy+4=\")","v":{"$error":"#REF!"}},{"$f":"AND(#REF!,\"dkCObT8Jy+8=\")","v":{"$error":"#REF!"}},{"$f":"AND(#REF!,\"dkCObT8Jy/A=\")","v":{"$error":"#REF!"}},{"$f":"AND(#REF!,\"dkCObT8Jy/E=\")","v":{"$error":"#REF!"}},{"$f":"AND(#REF!,\"dkCObT8Jy/I=\")","v":{"$error":"#REF!"}},{"$f":"AND(#REF!,\"dkCObT8Jy/M=\")","v":{"$error":"#REF!"}},{"$f":"AND(#REF!,\"dkCObT8Jy/Q=\")","v":{"$error":"#REF!"}},{"$f":"AND(#REF!,\"dkCObT8Jy/U=\")","v":{"$error":"#REF!"}},{"$f":"AND(#REF!,\"dkCObT8Jy/Y=\")","v":{"$error":"#REF!"}},{"$f":"AND(#REF!,\"dkCObT8Jy/c=\")","v":{"$error":"#REF!"}},{"$f":"AND(#REF!,\"dkCObT8Jy/g=\")","v":{"$error":"#REF!"}},{"$f":"AND(#REF!,\"dkCObT8Jy/k=\")","v":{"$error":"#REF!"}},{"$f":"AND(#REF!,\"dkCObT8Jy/o=\")","v":{"$error":"#REF!"}},{"$f":"AND(#REF!,\"dkCObT8Jy/s=\")","v":{"$error":"#REF!"}},{"$f":"AND(#REF!,\"dkCObT8Jy/w=\")","v":{"$error":"#REF!"}},{"$f":"AND(#REF!,\"dkCObT8Jy/0=\")","v":{"$error":"#REF!"}},{"$f":"AND(#REF!,\"dkCObT8Jy/4=\")","v":{"$error":"#REF!"}},{"$f":"AND(#REF!,\"dkCObT8Jy/8=\")","v":{"$error":"#REF!"}}]
[{"$f":"IF(#REF!,\"aco112bjdQA=\",0)","v":{"$error":"#REF!"}},{"$f":"AND(#REF!,\"aco112bjdQE=\")","v":{"$error":"#REF!"}},{"$f":"AND(#REF!,\"aco112bjdQI=\")","v":{"$error":"#REF!"}},{"$f":"AND(#REF!,\"aco112bjdQM=\")","v":{"$error":"#REF!"}},{"$f":"AND(#REF!,\"aco112bjdQQ=\")","v":{"$error":"#REF!"}},{"$f":"AND(#REF!,\"aco112bjdQU=\")","v":{"$error":"#REF!"}},{"$f":"AND(#REF!,\"aco112bjdQY=\")","v":{"$error":"#REF!"}},{"$f":"AND(#REF!,\"aco112bjdQc=\")","v":{"$error":"#REF!"}},{"$f":"AND(#REF!,\"aco112bjdQg=\")","v":{"$error":"#REF!"}},{"$f":"AND(#REF!,\"aco112bjdQk=\")","v":{"$error":"#REF!"}},{"$f":"AND(#REF!,\"aco112bjdQo=\")","v":{"$error":"#REF!"}},{"$f":"AND(#REF!,\"aco112bjdQs=\")","v":{"$error":"#REF!"}},{"$f":"AND(#REF!,\"aco112bjdQw=\")","v":{"$error":"#REF!"}},{"$f":"AND(#REF!,\"aco112bjdQ0=\")","v":{"$error":"#REF!"}},{"$f":"AND(#REF!,\"aco112bjdQ4=\")","v":{"$error":"#REF!"}},{"$f":"AND(#REF!,\"aco112bjdQ8=\")","v":{"$error":"#REF!"}},{"$f":"AND(#REF!,\"aco112bjdRA=\")","v":{"$error":"#REF!"}},{"$f":"AND(#REF!,\"aco112bjdRE=\")","v":{"$error":"#REF!"}},{"$f":"AND(#REF!,\"aco112bjdRI=\")","v":{"$error":"#REF!"}},{"$f":"AND(#REF!,\"aco112bjdRM=\")","v":{"$error":"#REF!"}},{"$f":"AND(#REF!,\"aco112bjdRQ=\")","v":{"$error":"#REF!"}},{"$f":"AND(#REF!,\"aco112bjdRU=\")","v":{"$error":"#REF!"}},{"$f":"AND(#REF!,\"aco112bjdRY=\")","v":{"$error":"#REF!"}},{"$f":"AND(#REF!,\"aco112bjdRc=\")","v":{"$error":"#REF!"}},{"$f":"AND(#REF!,\"aco112bjdRg=\")","v":{"$error":"#REF!"}},{"$f":"AND(#REF!,\"aco112bjdRk=\")","v":{"$error":"#REF!"}},{"$f":"AND(#REF!,\"aco112bjdRo=\")","v":{"$error":"#REF!"}},{"$f":"AND(#REF!,\"aco112bjdRs=\")","v":{"$error":"#REF!"}},{"$f":"AND(#REF!,\"aco112bjdRw=\")","v":{"$error":"#REF!"}},{"$f":"AND(#REF!,\"aco112bjdR0=\")","v":{"$error":"#REF!"}},{"$f":"AND(#REF!,\"aco112bjdR4=\")","v":{"$error":"#REF!"}},{"$f":"AND(#REF!,\"aco112bjdR8=\")","v":{"$error":"#REF!"}},{"$f":"AND(#REF!,\"aco112bjdSA=\")","v":{"$error":"#REF!"}},{"$f":"AND(#REF!,\"aco112bjdSE=\")","v":{"$error":"#REF!"}},{"$f":"AND(#REF!,\"aco112bjdSI=\")","v":{"$error":"#REF!"}},{"$f":"AND(#REF!,\"aco112bjdSM=\")","v":{"$error":"#REF!"}},{"$f":"AND(#REF!,\"aco112bjdSQ=\")","v":{"$error":"#REF!"}},{"$f":"AND(#REF!,\"aco112bjdSU=\")","v":{"$error":"#REF!"}},{"$f":"AND(#REF!,\"aco112bjdSY=\")","v":{"$error":"#REF!"}},{"$f":"AND(#REF!,\"aco112bjdSc=\")","v":{"$error":"#REF!"}},{"$f":"AND(#REF!,\"aco112bjdSg=\")","v":{"$error":"#REF!"}},{"$f":"AND(#REF!,\"aco112bjdSk=\")","v":{"$error":"#REF!"}},{"$f":"AND(#REF!,\"aco112bjdSo=\")","v":{"$error":"#REF!"}},{"$f":"AND(#REF!,\"aco112bjdSs=\")","v":{"$error":"#REF!"}},{"$f":"AND(#REF!,\"aco112bjdSw=\")","v":{"$error":"#REF!"}},{"$f":"AND(#REF!,\"aco112bjdS0=\")","v":{"$error":"#REF!"}},{"$f":"AND(#REF!,\"aco112bjdS4=\")","v":{"$error":"#REF!"}},{"$f":"AND(#REF!,\"aco112bjdS8=\")","v":{"$error":"#REF!"}},{"$f":"AND(#REF!,\"aco112bjdTA=\")","v":{"$error":"#REF!"}},{"$f":"AND(#REF!,\"aco112bjdTE=\")","v":{"$error":"#REF!"}},{"$f":"AND(#REF!,\"aco112bjdTI=\")","v":{"$error":"#REF!"}},{"$f":"AND(#REF!,\"aco112bjdTM=\")","v":{"$error":"#REF!"}},{"$f":"AND(#REF!,\"aco112bjdTQ=\")","v":{"$error":"#REF!"}},{"$f":"AND(#REF!,\"aco112bjdTU=\")","v":{"$error":"#REF!"}},{"$f":"AND(#REF!,\"aco112bjdTY=\")","v":{"$error":"#REF!"}},{"$f":"AND(#REF!,\"aco112bjdTc=\")","v":{"$error":"#REF!"}},{"$f":"AND(#REF!,\"aco112bjdTg=\")","v":{"$error":"#REF!"}},{"$f":"AND(#REF!,\"aco112bjdTk=\")","v":{"$error":"#REF!"}},{"$f":"AND(#REF!,\"aco112bjdTo=\")","v":{"$error":"#REF!"}},{"$f":"AND(#REF!,\"aco112bjdTs=\")","v":{"$error":"#REF!"}},{"$f":"AND(#REF!,\"aco112bjdTw=\")","v":{"$error":"#REF!"}},{"$f":"AND(#REF!,\"aco112bjdT0=\")","v":{"$error":"#REF!"}},{"$f":"AND(#REF!,\"aco112bjdT4=\")","v":{"$error":"#REF!"}},{"$f":"AND(#REF!,\"aco112bjdT8=\")","v":{"$error":"#REF!"}},{"$f":"AND(#REF!,\"aco112bjdUA=\")","v":{"$error":"#REF!"}},{"$f":"AND(#REF!,\"aco112bjdUE=\")","v":{"$error":"#REF!"}},{"$f":"AND(#REF!,\"aco112bjdUI=\")","v":{"$error":"#REF!"}},{"$f":"AND(#REF!,\"aco112bjdUM=\")","v":{"$error":"#REF!"}},{"$f":"AND(#REF!,\"aco112bjdUQ=\")","v":{"$error":"#REF!"}},{"$f":"AND(#REF!,\"aco112bjdUU=\")","v":{"$error":"#REF!"}},{"$f":"AND(#REF!,\"aco112bjdUY=\")","v":{"$error":"#REF!"}},{"$f":"AND(#REF!,\"aco112bjdUc=\")","v":{"$error":"#REF!"}},{"$f":"AND(#REF!,\"aco112bjdUg=\")","v":{"$error":"#REF!"}},{"$f":"AND(#REF!,\"aco112bjdUk=\")","v":{"$error":"#REF!"}},{"$f":"AND(#REF!,\"aco112bjdUo=\")","v":{"$error":"#REF!"}},{"$f":"AND(#REF!,\"aco112bjdUs=\")","v":{"$error":"#REF!"}},{"$f":"AND(#REF!,\"aco112bjdUw=\")","v":{"$error":"#REF!"}},{"$f":"AND(#REF!,\"aco112bjdU0=\")","v":{"$error":"#REF!"}},{"$f":"AND(#REF!,\"aco112bjdU4=\")","v":{"$error":"#REF!"}},{"$f":"AND(#REF!,\"aco112bjdU8=\")","v":{"$error":"#REF!"}},{"$f":"AND(#REF!,\"aco112bjdVA=\")","v":{"$error":"#REF!"}},{"$f":"AND(#REF!,\"aco112bjdVE=\")","v":{"$error":"#REF!"}},{"$f":"AND(#REF!,\"aco112bjdVI=\")","v":{"$error":"#REF!"}},{"$f":"AND(#REF!,\"aco112bjdVM=\")","v":{"$error":"#REF!"}},{"$f":"AND(#REF!,\"aco112bjdVQ=\")","v":{"$error":"#REF!"}},{"$f":"AND(#REF!,\"aco112bjdVU=\")","v":{"$error":"#REF!"}},{"$f":"AND(#REF!,\"aco112bjdVY=\")","v":{"$error":"#REF!"}},{"$f":"AND(#REF!,\"aco112bjdVc=\")","v":{"$error":"#REF!"}},{"$f":"AND(#REF!,\"aco112bjdVg=\")","v":{"$error":"#REF!"}},{"$f":"AND(#REF!,\"aco112bjdVk=\")","v":{"$error":"#REF!"}},{"$f":"AND(#REF!,\"aco112bjdVo=\")","v":{"$error":"#REF!"}},{"$f":"AND(#REF!,\"aco112bjdVs=\")","v":{"$error":"#REF!"}},{"$f":"AND(#REF!,\"aco112bjdVw=\")","v":{"$error":"#REF!"}},{"$f":"AND(#REF!,\"aco112bjdV0=\")","v":{"$error":"#REF!"}},{"$f":"AND(#REF!,\"aco112bjdV4=\")","v":{"$error":"#REF!"}},{"$f":"AND(#REF!,\"aco112bjdV8=\")","v":{"$error":"#REF!"}},{"$f":"AND(#REF!,\"aco112bjdWA=\")","v":{"$error":"#REF!"}},{"$f":"AND(#REF!,\"aco112bjdWE=\")","v":{"$error":"#REF!"}},{"$f":"AND(#REF!,\"aco112bjdWI=\")","v":{"$error":"#REF!"}},{"$f":"AND(#REF!,\"aco112bjdWM=\")","v":{"$error":"#REF!"}},{"$f":"AND(#REF!,\"aco112bjdWQ=\")","v":{"$error":"#REF!"}},{"$f":"AND(#REF!,\"aco112bjdWU=\")","v":{"$error":"#REF!"}},{"$f":"AND(#REF!,\"aco112bjdWY=\")","v":{"$error":"#REF!"}},{"$f":"AND(#REF!,\"aco112bjdWc=\")","v":{"$error":"#REF!"}},{"$f":"AND(#REF!,\"aco112bjdWg=\")","v":{"$error":"#REF!"}},{"$f":"AND(#REF!,\"aco112bjdWk=\")","v":{"$error":"#REF!"}},{"$f":"AND(#REF!,\"aco112bjdWo=\")","v":{"$error":"#REF!"}},{"$f":"AND(#REF!,\"aco112bjdWs=\")","v":{"$error":"#REF!"}},{"$f":"AND(#REF!,\"aco112bjdWw=\")","v":{"$error":"#REF!"}},{"$f":"AND(#REF!,\"aco112bjdW0=\")","v":{"$error":"#REF!"}},{"$f":"AND(#REF!,\"aco112bjdW4=\")","v":{"$error":"#REF!"}},{"$f":"AND(#REF!,\"aco112bjdW8=\")","v":{"$error":"#REF!"}},{"$f":"AND(#REF!,\"aco112bjdXA=\")","v":{"$error":"#REF!"}},{"$f":"AND(#REF!,\"aco112bjdXE=\")","v":{"$error":"#REF!"}},{"$f":"AND(#REF!,\"aco112bjdXI=\")","v":{"$error":"#REF!"}},{"$f":"AND(#REF!,\"aco112bjdXM=\")","v":{"$error":"#REF!"}},{"$f":"AND(#REF!,\"aco112bjdXQ=\")","v":{"$error":"#REF!"}},{"$f":"AND(#REF!,\"aco112bjdXU=\")","v":{"$error":"#REF!"}},{"$f":"AND(#REF!,\"aco112bjdXY=\")","v":{"$error":"#REF!"}},{"$f":"AND(#REF!,\"aco112bjdXc=\")","v":{"$error":"#REF!"}},{"$f":"AND(#REF!,\"aco112bjdXg=\")","v":{"$error":"#REF!"}},{"$f":"AND(#REF!,\"aco112bjdXk=\")","v":{"$error":"#REF!"}},{"$f":"AND(#REF!,\"aco112bjdXo=\")","v":{"$error":"#REF!"}},{"$f":"AND(#REF!,\"aco112bjdXs=\")","v":{"$error":"#REF!"}},{"$f":"AND(#REF!,\"aco112bjdXw=\")","v":{"$error":"#REF!"}},{"$f":"AND(#REF!,\"aco112bjdX0=\")","v":{"$error":"#REF!"}},{"$f":"AND(#REF!,\"aco112bjdX4=\")","v":{"$error":"#REF!"}},{"$f":"AND(#REF!,\"aco112bjdX8=\")","v":{"$error":"#REF!"}},{"$f":"AND(#REF!,\"aco112bjdYA=\")","v":{"$error":"#REF!"}},{"$f":"AND(#REF!,\"aco112bjdYE=\")","v":{"$error":"#REF!"}},{"$f":"AND(#REF!,\"aco112bjdYI=\")","v":{"$error":"#REF!"}},{"$f":"AND(#REF!,\"aco112bjdYM=\")","v":{"$error":"#REF!"}},{"$f":"AND(#REF!,\"aco112bjdYQ=\")","v":{"$error":"#REF!"}},{"$f":"AND(#REF!,\"aco112bjdYU=\")","v":{"$error":"#REF!"}},{"$f":"AND(#REF!,\"aco112bjdYY=\")","v":{"$error":"#REF!"}},{"$f":"AND(#REF!,\"aco112bjdYc=\")","v":{"$error":"#REF!"}},{"$f":"AND(#REF!,\"aco112bjdYg=\")","v":{"$error":"#REF!"}},{"$f":"AND(#REF!,\"aco112bjdYk=\")","v":{"$error":"#REF!"}},{"$f":"AND(#REF!,\"aco112bjdYo=\")","v":{"$error":"#REF!"}},{"$f":"AND(#REF!,\"aco112bjdYs=\")","v":{"$error":"#REF!"}},{"$f":"AND(#REF!,\"aco112bjdYw=\")","v":{"$error":"#REF!"}},{"$f":"AND(#REF!,\"aco112bjdY0=\")","v":{"$error":"#REF!"}},{"$f":"AND(#REF!,\"aco112bjdY4=\")","v":{"$error":"#REF!"}},{"$f":"AND(#REF!,\"aco112bjdY8=\")","v":{"$error":"#REF!"}},{"$f":"AND(#REF!,\"aco112bjdZA=\")","v":{"$error":"#REF!"}},{"$f":"AND(#REF!,\"aco112bjdZE=\")","v":{"$error":"#REF!"}},{"$f":"AND(#REF!,\"aco112bjdZI=\")","v":{"$error":"#REF!"}},{"$f":"AND(#REF!,\"aco112bjdZM=\")","v":{"$error":"#REF!"}},{"$f":"AND(#REF!,\"aco112bjdZQ=\")","v":{"$error":"#REF!"}},{"$f":"AND(#REF!,\"aco112bjdZU=\")","v":{"$error":"#REF!"}},{"$f":"AND(#REF!,\"aco112bjdZY=\")","v":{"$error":"#REF!"}},{"$f":"AND(#REF!,\"aco112bjdZc=\")","v":{"$error":"#REF!"}},{"$f":"AND(#REF!,\"aco112bjdZg=\")","v":{"$error":"#REF!"}},{"$f":"AND(#REF!,\"aco112bjdZk=\")","v":{"$error":"#REF!"}},{"$f":"AND(#REF!,\"aco112bjdZo=\")","v":{"$error":"#REF!"}},{"$f":"AND(#REF!,\"aco112bjdZs=\")","v":{"$error":"#REF!"}},{"$f":"AND(#REF!,\"aco112bjdZw=\")","v":{"$error":"#REF!"}},{"$f":"AND(#REF!,\"aco112bjdZ0=\")","v":{"$error":"#REF!"}},{"$f":"AND(#REF!,\"aco112bjdZ4=\")","v":{"$error":"#REF!"}},{"$f":"AND(#REF!,\"aco112bjdZ8=\")","v":{"$error":"#REF!"}},{"$f":"AND(#REF!,\"aco112bjdaA=\")","v":{"$error":"#REF!"}},{"$f":"AND(#REF!,\"aco112bjdaE=\")","v":{"$error":"#REF!"}},{"$f":"AND(#REF!,\"aco112bjdaI=\")","v":{"$error":"#REF!"}},{"$f":"AND(#REF!,\"aco112bjdaM=\")","v":{"$error":"#REF!"}},{"$f":"AND(#REF!,\"aco112bjdaQ=\")","v":{"$error":"#REF!"}},{"$f":"AND(#REF!,\"aco112bjdaU=\")","v":{"$error":"#REF!"}},{"$f":"AND(#REF!,\"aco112bjdaY=\")","v":{"$error":"#REF!"}},{"$f":"AND(#REF!,\"aco112bjdac=\")","v":{"$error":"#REF!"}},{"$f":"AND(#REF!,\"aco112bjdag=\")","v":{"$error":"#REF!"}},{"$f":"AND(#REF!,\"aco112bjdak=\")","v":{"$error":"#REF!"}},{"$f":"AND(#REF!,\"aco112bjdao=\")","v":{"$error":"#REF!"}},{"$f":"AND(#REF!,\"aco112bjdas=\")","v":{"$error":"#REF!"}},{"$f":"AND(#REF!,\"aco112bjdaw=\")","v":{"$error":"#REF!"}},{"$f":"AND(#REF!,\"aco112bjda0=\")","v":{"$error":"#REF!"}},{"$f":"AND(#REF!,\"aco112bjda4=\")","v":{"$error":"#REF!"}},{"$f":"AND(#REF!,\"aco112bjda8=\")","v":{"$error":"#REF!"}},{"$f":"AND(#REF!,\"aco112bjdbA=\")","v":{"$error":"#REF!"}},{"$f":"AND(#REF!,\"aco112bjdbE=\")","v":{"$error":"#REF!"}},{"$f":"AND(#REF!,\"aco112bjdbI=\")","v":{"$error":"#REF!"}},{"$f":"AND(#REF!,\"aco112bjdbM=\")","v":{"$error":"#REF!"}},{"$f":"AND(#REF!,\"aco112bjdbQ=\")","v":{"$error":"#REF!"}},{"$f":"AND(#REF!,\"aco112bjdbU=\")","v":{"$error":"#REF!"}},{"$f":"AND(#REF!,\"aco112bjdbY=\")","v":{"$error":"#REF!"}},{"$f":"AND(#REF!,\"aco112bjdbc=\")","v":{"$error":"#REF!"}},{"$f":"AND(#REF!,\"aco112bjdbg=\")","v":{"$error":"#REF!"}},{"$f":"AND(#REF!,\"aco112bjdbk=\")","v":{"$error":"#REF!"}},{"$f":"AND(#REF!,\"aco112bjdbo=\")","v":{"$error":"#REF!"}},{"$f":"AND(#REF!,\"aco112bjdbs=\")","v":{"$error":"#REF!"}},{"$f":"AND(#REF!,\"aco112bjdbw=\")","v":{"$error":"#REF!"}},{"$f":"AND(#REF!,\"aco112bjdb0=\")","v":{"$error":"#REF!"}},{"$f":"AND(#REF!,\"aco112bjdb4=\")","v":{"$error":"#REF!"}},{"$f":"AND(#REF!,\"aco112bjdb8=\")","v":{"$error":"#REF!"}},{"$f":"AND(#REF!,\"aco112bjdcA=\")","v":{"$error":"#REF!"}},{"$f":"AND(#REF!,\"aco112bjdcE=\")","v":{"$error":"#REF!"}},{"$f":"AND(#REF!,\"aco112bjdcI=\")","v":{"$error":"#REF!"}},{"$f":"AND(#REF!,\"aco112bjdcM=\")","v":{"$error":"#REF!"}},{"$f":"AND(#REF!,\"aco112bjdcQ=\")","v":{"$error":"#REF!"}},{"$f":"AND(#REF!,\"aco112bjdcU=\")","v":{"$error":"#REF!"}},{"$f":"AND(#REF!,\"aco112bjdcY=\")","v":{"$error":"#REF!"}},{"$f":"IF(#REF!,\"aco112bjdcc=\",0)","v":{"$error":"#REF!"}},{"$f":"AND(#REF!,\"aco112bjdcg=\")","v":{"$error":"#REF!"}},{"$f":"AND(#REF!,\"aco112bjdck=\")","v":{"$error":"#REF!"}},{"$f":"AND(#REF!,\"aco112bjdco=\")","v":{"$error":"#REF!"}},{"$f":"AND(#REF!,\"aco112bjdcs=\")","v":{"$error":"#REF!"}},{"$f":"AND(#REF!,\"aco112bjdcw=\")","v":{"$error":"#REF!"}},{"$f":"AND(#REF!,\"aco112bjdc0=\")","v":{"$error":"#REF!"}},{"$f":"AND(#REF!,\"aco112bjdc4=\")","v":{"$error":"#REF!"}},{"$f":"AND(#REF!,\"aco112bjdc8=\")","v":{"$error":"#REF!"}},{"$f":"AND(#REF!,\"aco112bjddA=\")","v":{"$error":"#REF!"}},{"$f":"AND(#REF!,\"aco112bjddE=\")","v":{"$error":"#REF!"}},{"$f":"AND(#REF!,\"aco112bjddI=\")","v":{"$error":"#REF!"}},{"$f":"AND(#REF!,\"aco112bjddM=\")","v":{"$error":"#REF!"}},{"$f":"AND(#REF!,\"aco112bjddQ=\")","v":{"$error":"#REF!"}},{"$f":"AND(#REF!,\"aco112bjddU=\")","v":{"$error":"#REF!"}},{"$f":"AND(#REF!,\"aco112bjddY=\")","v":{"$error":"#REF!"}},{"$f":"AND(#REF!,\"aco112bjddc=\")","v":{"$error":"#REF!"}},{"$f":"AND(#REF!,\"aco112bjddg=\")","v":{"$error":"#REF!"}},{"$f":"AND(#REF!,\"aco112bjddk=\")","v":{"$error":"#REF!"}},{"$f":"AND(#REF!,\"aco112bjddo=\")","v":{"$error":"#REF!"}},{"$f":"AND(#REF!,\"aco112bjdds=\")","v":{"$error":"#REF!"}},{"$f":"AND(#REF!,\"aco112bjddw=\")","v":{"$error":"#REF!"}},{"$f":"AND(#REF!,\"aco112bjdd0=\")","v":{"$error":"#REF!"}},{"$f":"AND(#REF!,\"aco112bjdd4=\")","v":{"$error":"#REF!"}},{"$f":"AND(#REF!,\"aco112bjdd8=\")","v":{"$error":"#REF!"}},{"$f":"AND(#REF!,\"aco112bjdeA=\")","v":{"$error":"#REF!"}},{"$f":"AND(#REF!,\"aco112bjdeE=\")","v":{"$error":"#REF!"}},{"$f":"AND(#REF!,\"aco112bjdeI=\")","v":{"$error":"#REF!"}},{"$f":"AND(#REF!,\"aco112bjdeM=\")","v":{"$error":"#REF!"}},{"$f":"AND(#REF!,\"aco112bjdeQ=\")","v":{"$error":"#REF!"}},{"$f":"AND(#REF!,\"aco112bjdeU=\")","v":{"$error":"#REF!"}},{"$f":"AND(#REF!,\"aco112bjdeY=\")","v":{"$error":"#REF!"}},{"$f":"AND(#REF!,\"aco112bjdec=\")","v":{"$error":"#REF!"}},{"$f":"AND(#REF!,\"aco112bjdeg=\")","v":{"$error":"#REF!"}},{"$f":"AND(#REF!,\"aco112bjdek=\")","v":{"$error":"#REF!"}},{"$f":"AND(#REF!,\"aco112bjdeo=\")","v":{"$error":"#REF!"}},{"$f":"AND(#REF!,\"aco112bjdes=\")","v":{"$error":"#REF!"}},{"$f":"AND(#REF!,\"aco112bjdew=\")","v":{"$error":"#REF!"}},{"$f":"AND(#REF!,\"aco112bjde0=\")","v":{"$error":"#REF!"}},{"$f":"AND(#REF!,\"aco112bjde4=\")","v":{"$error":"#REF!"}},{"$f":"AND(#REF!,\"aco112bjde8=\")","v":{"$error":"#REF!"}},{"$f":"AND(#REF!,\"aco112bjdfA=\")","v":{"$error":"#REF!"}},{"$f":"AND(#REF!,\"aco112bjdfE=\")","v":{"$error":"#REF!"}},{"$f":"AND(#REF!,\"aco112bjdfI=\")","v":{"$error":"#REF!"}},{"$f":"AND(#REF!,\"aco112bjdfM=\")","v":{"$error":"#REF!"}},{"$f":"AND(#REF!,\"aco112bjdfQ=\")","v":{"$error":"#REF!"}},{"$f":"AND(#REF!,\"aco112bjdfU=\")","v":{"$error":"#REF!"}},{"$f":"AND(#REF!,\"aco112bjdfY=\")","v":{"$error":"#REF!"}},{"$f":"AND(#REF!,\"aco112bjdfc=\")","v":{"$error":"#REF!"}},{"$f":"AND(#REF!,\"aco112bjdfg=\")","v":{"$error":"#REF!"}},{"$f":"AND(#REF!,\"aco112bjdfk=\")","v":{"$error":"#REF!"}},{"$f":"AND(#REF!,\"aco112bjdfo=\")","v":{"$error":"#REF!"}},{"$f":"AND(#REF!,\"aco112bjdfs=\")","v":{"$error":"#REF!"}},{"$f":"AND(#REF!,\"aco112bjdfw=\")","v":{"$error":"#REF!"}},{"$f":"AND(#REF!,\"aco112bjdf0=\")","v":{"$error":"#REF!"}},{"$f":"AND(#REF!,\"aco112bjdf4=\")","v":{"$error":"#REF!"}},{"$f":"AND(#REF!,\"aco112bjdf8=\")","v":{"$error":"#REF!"}}]
[{"$f":"AND(#REF!,\"Coks6A1eZAA=\")","v":{"$error":"#REF!"}},{"$f":"AND(#REF!,\"Coks6A1eZAE=\")","v":{"$error":"#REF!"}},{"$f":"AND(#REF!,\"Coks6A1eZAI=\")","v":{"$error":"#REF!"}},{"$f":"AND(#REF!,\"Coks6A1eZAM=\")","v":{"$error":"#REF!"}},{"$f":"AND(#REF!,\"Coks6A1eZAQ=\")","v":{"$error":"#REF!"}},{"$f":"AND(#REF!,\"Coks6A1eZAU=\")","v":{"$error":"#REF!"}},{"$f":"AND(#REF!,\"Coks6A1eZAY=\")","v":{"$error":"#REF!"}},{"$f":"AND(#REF!,\"Coks6A1eZAc=\")","v":{"$error":"#REF!"}},{"$f":"AND(#REF!,\"Coks6A1eZAg=\")","v":{"$error":"#REF!"}},{"$f":"AND(#REF!,\"Coks6A1eZAk=\")","v":{"$error":"#REF!"}},{"$f":"AND(#REF!,\"Coks6A1eZAo=\")","v":{"$error":"#REF!"}},{"$f":"AND(#REF!,\"Coks6A1eZAs=\")","v":{"$error":"#REF!"}},{"$f":"AND(#REF!,\"Coks6A1eZAw=\")","v":{"$error":"#REF!"}},{"$f":"AND(#REF!,\"Coks6A1eZA0=\")","v":{"$error":"#REF!"}},{"$f":"AND(#REF!,\"Coks6A1eZA4=\")","v":{"$error":"#REF!"}},{"$f":"AND(#REF!,\"Coks6A1eZA8=\")","v":{"$error":"#REF!"}},{"$f":"AND(#REF!,\"Coks6A1eZBA=\")","v":{"$error":"#REF!"}},{"$f":"AND(#REF!,\"Coks6A1eZBE=\")","v":{"$error":"#REF!"}},{"$f":"AND(#REF!,\"Coks6A1eZBI=\")","v":{"$error":"#REF!"}},{"$f":"AND(#REF!,\"Coks6A1eZBM=\")","v":{"$error":"#REF!"}},{"$f":"AND(#REF!,\"Coks6A1eZBQ=\")","v":{"$error":"#REF!"}},{"$f":"AND(#REF!,\"Coks6A1eZBU=\")","v":{"$error":"#REF!"}},{"$f":"AND(#REF!,\"Coks6A1eZBY=\")","v":{"$error":"#REF!"}},{"$f":"AND(#REF!,\"Coks6A1eZBc=\")","v":{"$error":"#REF!"}},{"$f":"AND(#REF!,\"Coks6A1eZBg=\")","v":{"$error":"#REF!"}},{"$f":"AND(#REF!,\"Coks6A1eZBk=\")","v":{"$error":"#REF!"}},{"$f":"AND(#REF!,\"Coks6A1eZBo=\")","v":{"$error":"#REF!"}},{"$f":"AND(#REF!,\"Coks6A1eZBs=\")","v":{"$error":"#REF!"}},{"$f":"AND(#REF!,\"Coks6A1eZBw=\")","v":{"$error":"#REF!"}},{"$f":"AND(#REF!,\"Coks6A1eZB0=\")","v":{"$error":"#REF!"}},{"$f":"AND(#REF!,\"Coks6A1eZB4=\")","v":{"$error":"#REF!"}},{"$f":"AND(#REF!,\"Coks6A1eZB8=\")","v":{"$error":"#REF!"}},{"$f":"AND(#REF!,\"Coks6A1eZCA=\")","v":{"$error":"#REF!"}},{"$f":"AND(#REF!,\"Coks6A1eZCE=\")","v":{"$error":"#REF!"}},{"$f":"AND(#REF!,\"Coks6A1eZCI=\")","v":{"$error":"#REF!"}},{"$f":"AND(#REF!,\"Coks6A1eZCM=\")","v":{"$error":"#REF!"}},{"$f":"AND(#REF!,\"Coks6A1eZCQ=\")","v":{"$error":"#REF!"}},{"$f":"AND(#REF!,\"Coks6A1eZCU=\")","v":{"$error":"#REF!"}},{"$f":"AND(#REF!,\"Coks6A1eZCY=\")","v":{"$error":"#REF!"}},{"$f":"AND(#REF!,\"Coks6A1eZCc=\")","v":{"$error":"#REF!"}},{"$f":"AND(#REF!,\"Coks6A1eZCg=\")","v":{"$error":"#REF!"}},{"$f":"AND(#REF!,\"Coks6A1eZCk=\")","v":{"$error":"#REF!"}},{"$f":"AND(#REF!,\"Coks6A1eZCo=\")","v":{"$error":"#REF!"}},{"$f":"AND(#REF!,\"Coks6A1eZCs=\")","v":{"$error":"#REF!"}},{"$f":"AND(#REF!,\"Coks6A1eZCw=\")","v":{"$error":"#REF!"}},{"$f":"AND(#REF!,\"Coks6A1eZC0=\")","v":{"$error":"#REF!"}},{"$f":"AND(#REF!,\"Coks6A1eZC4=\")","v":{"$error":"#REF!"}},{"$f":"AND(#REF!,\"Coks6A1eZC8=\")","v":{"$error":"#REF!"}},{"$f":"AND(#REF!,\"Coks6A1eZDA=\")","v":{"$error":"#REF!"}},{"$f":"AND(#REF!,\"Coks6A1eZDE=\")","v":{"$error":"#REF!"}},{"$f":"AND(#REF!,\"Coks6A1eZDI=\")","v":{"$error":"#REF!"}},{"$f":"AND(#REF!,\"Coks6A1eZDM=\")","v":{"$error":"#REF!"}},{"$f":"AND(#REF!,\"Coks6A1eZDQ=\")","v":{"$error":"#REF!"}},{"$f":"AND(#REF!,\"Coks6A1eZDU=\")","v":{"$error":"#REF!"}},{"$f":"AND(#REF!,\"Coks6A1eZDY=\")","v":{"$error":"#REF!"}},{"$f":"AND(#REF!,\"Coks6A1eZDc=\")","v":{"$error":"#REF!"}},{"$f":"AND(#REF!,\"Coks6A1eZDg=\")","v":{"$error":"#REF!"}},{"$f":"AND(#REF!,\"Coks6A1eZDk=\")","v":{"$error":"#REF!"}},{"$f":"AND(#REF!,\"Coks6A1eZDo=\")","v":{"$error":"#REF!"}},{"$f":"AND(#REF!,\"Coks6A1eZDs=\")","v":{"$error":"#REF!"}},{"$f":"AND(#REF!,\"Coks6A1eZDw=\")","v":{"$error":"#REF!"}},{"$f":"AND(#REF!,\"Coks6A1eZD0=\")","v":{"$error":"#REF!"}},{"$f":"AND(#REF!,\"Coks6A1eZD4=\")","v":{"$error":"#REF!"}},{"$f":"AND(#REF!,\"Coks6A1eZD8=\")","v":{"$error":"#REF!"}},{"$f":"AND(#REF!,\"Coks6A1eZEA=\")","v":{"$error":"#REF!"}},{"$f":"AND(#REF!,\"Coks6A1eZEE=\")","v":{"$error":"#REF!"}},{"$f":"AND(#REF!,\"Coks6A1eZEI=\")","v":{"$error":"#REF!"}},{"$f":"AND(#REF!,\"Coks6A1eZEM=\")","v":{"$error":"#REF!"}},{"$f":"AND(#REF!,\"Coks6A1eZEQ=\")","v":{"$error":"#REF!"}},{"$f":"AND(#REF!,\"Coks6A1eZEU=\")","v":{"$error":"#REF!"}},{"$f":"AND(#REF!,\"Coks6A1eZEY=\")","v":{"$error":"#REF!"}},{"$f":"AND(#REF!,\"Coks6A1eZEc=\")","v":{"$error":"#REF!"}},{"$f":"AND(#REF!,\"Coks6A1eZEg=\")","v":{"$error":"#REF!"}},{"$f":"AND(#REF!,\"Coks6A1eZEk=\")","v":{"$error":"#REF!"}},{"$f":"AND(#REF!,\"Coks6A1eZEo=\")","v":{"$error":"#REF!"}},{"$f":"AND(#REF!,\"Coks6A1eZEs=\")","v":{"$error":"#REF!"}},{"$f":"AND(#REF!,\"Coks6A1eZEw=\")","v":{"$error":"#REF!"}},{"$f":"AND(#REF!,\"Coks6A1eZE0=\")","v":{"$error":"#REF!"}},{"$f":"AND(#REF!,\"Coks6A1eZE4=\")","v":{"$error":"#REF!"}},{"$f":"AND(#REF!,\"Coks6A1eZE8=\")","v":{"$error":"#REF!"}},{"$f":"AND(#REF!,\"Coks6A1eZFA=\")","v":{"$error":"#REF!"}},{"$f":"AND(#REF!,\"Coks6A1eZFE=\")","v":{"$error":"#REF!"}},{"$f":"AND(#REF!,\"Coks6A1eZFI=\")","v":{"$error":"#REF!"}},{"$f":"AND(#REF!,\"Coks6A1eZFM=\")","v":{"$error":"#REF!"}},{"$f":"AND(#REF!,\"Coks6A1eZFQ=\")","v":{"$error":"#REF!"}},{"$f":"AND(#REF!,\"Coks6A1eZFU=\")","v":{"$error":"#REF!"}},{"$f":"AND(#REF!,\"Coks6A1eZFY=\")","v":{"$error":"#REF!"}},{"$f":"AND(#REF!,\"Coks6A1eZFc=\")","v":{"$error":"#REF!"}},{"$f":"AND(#REF!,\"Coks6A1eZFg=\")","v":{"$error":"#REF!"}},{"$f":"AND(#REF!,\"Coks6A1eZFk=\")","v":{"$error":"#REF!"}},{"$f":"AND(#REF!,\"Coks6A1eZFo=\")","v":{"$error":"#REF!"}},{"$f":"AND(#REF!,\"Coks6A1eZFs=\")","v":{"$error":"#REF!"}},{"$f":"AND(#REF!,\"Coks6A1eZFw=\")","v":{"$error":"#REF!"}},{"$f":"AND(#REF!,\"Coks6A1eZF0=\")","v":{"$error":"#REF!"}},{"$f":"AND(#REF!,\"Coks6A1eZF4=\")","v":{"$error":"#REF!"}},{"$f":"AND(#REF!,\"Coks6A1eZF8=\")","v":{"$error":"#REF!"}},{"$f":"AND(#REF!,\"Coks6A1eZGA=\")","v":{"$error":"#REF!"}},{"$f":"AND(#REF!,\"Coks6A1eZGE=\")","v":{"$error":"#REF!"}},{"$f":"AND(#REF!,\"Coks6A1eZGI=\")","v":{"$error":"#REF!"}},{"$f":"AND(#REF!,\"Coks6A1eZGM=\")","v":{"$error":"#REF!"}},{"$f":"AND(#REF!,\"Coks6A1eZGQ=\")","v":{"$error":"#REF!"}},{"$f":"AND(#REF!,\"Coks6A1eZGU=\")","v":{"$error":"#REF!"}},{"$f":"AND(#REF!,\"Coks6A1eZGY=\")","v":{"$error":"#REF!"}},{"$f":"AND(#REF!,\"Coks6A1eZGc=\")","v":{"$error":"#REF!"}},{"$f":"AND(#REF!,\"Coks6A1eZGg=\")","v":{"$error":"#REF!"}},{"$f":"AND(#REF!,\"Coks6A1eZGk=\")","v":{"$error":"#REF!"}},{"$f":"AND(#REF!,\"Coks6A1eZGo=\")","v":{"$error":"#REF!"}},{"$f":"AND(#REF!,\"Coks6A1eZGs=\")","v":{"$error":"#REF!"}},{"$f":"AND(#REF!,\"Coks6A1eZGw=\")","v":{"$error":"#REF!"}},{"$f":"AND(#REF!,\"Coks6A1eZG0=\")","v":{"$error":"#REF!"}},{"$f":"AND(#REF!,\"Coks6A1eZG4=\")","v":{"$error":"#REF!"}},{"$f":"AND(#REF!,\"Coks6A1eZG8=\")","v":{"$error":"#REF!"}},{"$f":"AND(#REF!,\"Coks6A1eZHA=\")","v":{"$error":"#REF!"}},{"$f":"AND(#REF!,\"Coks6A1eZHE=\")","v":{"$error":"#REF!"}},{"$f":"AND(#REF!,\"Coks6A1eZHI=\")","v":{"$error":"#REF!"}},{"$f":"AND(#REF!,\"Coks6A1eZHM=\")","v":{"$error":"#REF!"}},{"$f":"AND(#REF!,\"Coks6A1eZHQ=\")","v":{"$error":"#REF!"}},{"$f":"AND(#REF!,\"Coks6A1eZHU=\")","v":{"$error":"#REF!"}},{"$f":"AND(#REF!,\"Coks6A1eZHY=\")","v":{"$error":"#REF!"}},{"$f":"AND(#REF!,\"Coks6A1eZHc=\")","v":{"$error":"#REF!"}},{"$f":"AND(#REF!,\"Coks6A1eZHg=\")","v":{"$error":"#REF!"}},{"$f":"AND(#REF!,\"Coks6A1eZHk=\")","v":{"$error":"#REF!"}},{"$f":"AND(#REF!,\"Coks6A1eZHo=\")","v":{"$error":"#REF!"}},{"$f":"AND(#REF!,\"Coks6A1eZHs=\")","v":{"$error":"#REF!"}},{"$f":"AND(#REF!,\"Coks6A1eZHw=\")","v":{"$error":"#REF!"}},{"$f":"AND(#REF!,\"Coks6A1eZH0=\")","v":{"$error":"#REF!"}},{"$f":"AND(#REF!,\"Coks6A1eZH4=\")","v":{"$error":"#REF!"}},{"$f":"AND(#REF!,\"Coks6A1eZH8=\")","v":{"$error":"#REF!"}},{"$f":"AND(#REF!,\"Coks6A1eZIA=\")","v":{"$error":"#REF!"}},{"$f":"AND(#REF!,\"Coks6A1eZIE=\")","v":{"$error":"#REF!"}},{"$f":"AND(#REF!,\"Coks6A1eZII=\")","v":{"$error":"#REF!"}},{"$f":"AND(#REF!,\"Coks6A1eZIM=\")","v":{"$error":"#REF!"}},{"$f":"AND(#REF!,\"Coks6A1eZIQ=\")","v":{"$error":"#REF!"}},{"$f":"AND(#REF!,\"Coks6A1eZIU=\")","v":{"$error":"#REF!"}},{"$f":"AND(#REF!,\"Coks6A1eZIY=\")","v":{"$error":"#REF!"}},{"$f":"AND(#REF!,\"Coks6A1eZIc=\")","v":{"$error":"#REF!"}},{"$f":"AND(#REF!,\"Coks6A1eZIg=\")","v":{"$error":"#REF!"}},{"$f":"AND(#REF!,\"Coks6A1eZIk=\")","v":{"$error":"#REF!"}},{"$f":"AND(#REF!,\"Coks6A1eZIo=\")","v":{"$error":"#REF!"}},{"$f":"AND(#REF!,\"Coks6A1eZIs=\")","v":{"$error":"#REF!"}},{"$f":"AND(#REF!,\"Coks6A1eZIw=\")","v":{"$error":"#REF!"}},{"$f":"AND(#REF!,\"Coks6A1eZI0=\")","v":{"$error":"#REF!"}},{"$f":"IF(#REF!,\"Coks6A1eZI4=\",0)","v":{"$error":"#REF!"}},{"$f":"AND(#REF!,\"Coks6A1eZI8=\")","v":{"$error":"#REF!"}},{"$f":"AND(#REF!,\"Coks6A1eZJA=\")","v":{"$error":"#REF!"}},{"$f":"AND(#REF!,\"Coks6A1eZJE=\")","v":{"$error":"#REF!"}},{"$f":"AND(#REF!,\"Coks6A1eZJI=\")","v":{"$error":"#REF!"}},{"$f":"AND(#REF!,\"Coks6A1eZJM=\")","v":{"$error":"#REF!"}},{"$f":"AND(#REF!,\"Coks6A1eZJQ=\")","v":{"$error":"#REF!"}},{"$f":"AND(#REF!,\"Coks6A1eZJU=\")","v":{"$error":"#REF!"}},{"$f":"AND(#REF!,\"Coks6A1eZJY=\")","v":{"$error":"#REF!"}},{"$f":"AND(#REF!,\"Coks6A1eZJc=\")","v":{"$error":"#REF!"}},{"$f":"AND(#REF!,\"Coks6A1eZJg=\")","v":{"$error":"#REF!"}},{"$f":"AND(#REF!,\"Coks6A1eZJk=\")","v":{"$error":"#REF!"}},{"$f":"AND(#REF!,\"Coks6A1eZJo=\")","v":{"$error":"#REF!"}},{"$f":"AND(#REF!,\"Coks6A1eZJs=\")","v":{"$error":"#REF!"}},{"$f":"AND(#REF!,\"Coks6A1eZJw=\")","v":{"$error":"#REF!"}},{"$f":"AND(#REF!,\"Coks6A1eZJ0=\")","v":{"$error":"#REF!"}},{"$f":"AND(#REF!,\"Coks6A1eZJ4=\")","v":{"$error":"#REF!"}},{"$f":"AND(#REF!,\"Coks6A1eZJ8=\")","v":{"$error":"#REF!"}},{"$f":"AND(#REF!,\"Coks6A1eZKA=\")","v":{"$error":"#REF!"}},{"$f":"AND(#REF!,\"Coks6A1eZKE=\")","v":{"$error":"#REF!"}},{"$f":"AND(#REF!,\"Coks6A1eZKI=\")","v":{"$error":"#REF!"}},{"$f":"AND(#REF!,\"Coks6A1eZKM=\")","v":{"$error":"#REF!"}},{"$f":"AND(#REF!,\"Coks6A1eZKQ=\")","v":{"$error":"#REF!"}},{"$f":"AND(#REF!,\"Coks6A1eZKU=\")","v":{"$error":"#REF!"}},{"$f":"AND(#REF!,\"Coks6A1eZKY=\")","v":{"$error":"#REF!"}},{"$f":"AND(#REF!,\"Coks6A1eZKc=\")","v":{"$error":"#REF!"}},{"$f":"AND(#REF!,\"Coks6A1eZKg=\")","v":{"$error":"#REF!"}},{"$f":"AND(#REF!,\"Coks6A1eZKk=\")","v":{"$error":"#REF!"}},{"$f":"AND(#REF!,\"Coks6A1eZKo=\")","v":{"$error":"#REF!"}},{"$f":"AND(#REF!,\"Coks6A1eZKs=\")","v":{"$error":"#REF!"}},{"$f":"AND(#REF!,\"Coks6A1eZKw=\")","v":{"$error":"#REF!"}},{"$f":"AND(#REF!,\"Coks6A1eZK0=\")","v":{"$error":"#REF!"}},{"$f":"AND(#REF!,\"Coks6A1eZK4=\")","v":{"$error":"#REF!"}},{"$f":"AND(#REF!,\"Coks6A1eZK8=\")","v":{"$error":"#REF!"}},{"$f":"AND(#REF!,\"Coks6A1eZLA=\")","v":{"$error":"#REF!"}},{"$f":"AND(#REF!,\"Coks6A1eZLE=\")","v":{"$error":"#REF!"}},{"$f":"AND(#REF!,\"Coks6A1eZLI=\")","v":{"$error":"#REF!"}},{"$f":"AND(#REF!,\"Coks6A1eZLM=\")","v":{"$error":"#REF!"}},{"$f":"AND(#REF!,\"Coks6A1eZLQ=\")","v":{"$error":"#REF!"}},{"$f":"AND(#REF!,\"Coks6A1eZLU=\")","v":{"$error":"#REF!"}},{"$f":"AND(#REF!,\"Coks6A1eZLY=\")","v":{"$error":"#REF!"}},{"$f":"AND(#REF!,\"Coks6A1eZLc=\")","v":{"$error":"#REF!"}},{"$f":"AND(#REF!,\"Coks6A1eZLg=\")","v":{"$error":"#REF!"}},{"$f":"AND(#REF!,\"Coks6A1eZLk=\")","v":{"$error":"#REF!"}},{"$f":"AND(#REF!,\"Coks6A1eZLo=\")","v":{"$error":"#REF!"}},{"$f":"AND(#REF!,\"Coks6A1eZLs=\")","v":{"$error":"#REF!"}},{"$f":"AND(#REF!,\"Coks6A1eZLw=\")","v":{"$error":"#REF!"}},{"$f":"AND(#REF!,\"Coks6A1eZL0=\")","v":{"$error":"#REF!"}},{"$f":"AND(#REF!,\"Coks6A1eZL4=\")","v":{"$error":"#REF!"}},{"$f":"AND(#REF!,\"Coks6A1eZL8=\")","v":{"$error":"#REF!"}},{"$f":"AND(#REF!,\"Coks6A1eZMA=\")","v":{"$error":"#REF!"}},{"$f":"AND(#REF!,\"Coks6A1eZME=\")","v":{"$error":"#REF!"}},{"$f":"AND(#REF!,\"Coks6A1eZMI=\")","v":{"$error":"#REF!"}},{"$f":"AND(#REF!,\"Coks6A1eZMM=\")","v":{"$error":"#REF!"}},{"$f":"AND(#REF!,\"Coks6A1eZMQ=\")","v":{"$error":"#REF!"}},{"$f":"AND(#REF!,\"Coks6A1eZMU=\")","v":{"$error":"#REF!"}},{"$f":"AND(#REF!,\"Coks6A1eZMY=\")","v":{"$error":"#REF!"}},{"$f":"AND(#REF!,\"Coks6A1eZMc=\")","v":{"$error":"#REF!"}},{"$f":"AND(#REF!,\"Coks6A1eZMg=\")","v":{"$error":"#REF!"}},{"$f":"AND(#REF!,\"Coks6A1eZMk=\")","v":{"$error":"#REF!"}},{"$f":"AND(#REF!,\"Coks6A1eZMo=\")","v":{"$error":"#REF!"}},{"$f":"AND(#REF!,\"Coks6A1eZMs=\")","v":{"$error":"#REF!"}},{"$f":"AND(#REF!,\"Coks6A1eZMw=\")","v":{"$error":"#REF!"}},{"$f":"AND(#REF!,\"Coks6A1eZM0=\")","v":{"$error":"#REF!"}},{"$f":"AND(#REF!,\"Coks6A1eZM4=\")","v":{"$error":"#REF!"}},{"$f":"AND(#REF!,\"Coks6A1eZM8=\")","v":{"$error":"#REF!"}},{"$f":"AND(#REF!,\"Coks6A1eZNA=\")","v":{"$error":"#REF!"}},{"$f":"AND(#REF!,\"Coks6A1eZNE=\")","v":{"$error":"#REF!"}},{"$f":"AND(#REF!,\"Coks6A1eZNI=\")","v":{"$error":"#REF!"}},{"$f":"AND(#REF!,\"Coks6A1eZNM=\")","v":{"$error":"#REF!"}},{"$f":"AND(#REF!,\"Coks6A1eZNQ=\")","v":{"$error":"#REF!"}},{"$f":"AND(#REF!,\"Coks6A1eZNU=\")","v":{"$error":"#REF!"}},{"$f":"AND(#REF!,\"Coks6A1eZNY=\")","v":{"$error":"#REF!"}},{"$f":"AND(#REF!,\"Coks6A1eZNc=\")","v":{"$error":"#REF!"}},{"$f":"AND(#REF!,\"Coks6A1eZNg=\")","v":{"$error":"#REF!"}},{"$f":"AND(#REF!,\"Coks6A1eZNk=\")","v":{"$error":"#REF!"}},{"$f":"AND(#REF!,\"Coks6A1eZNo=\")","v":{"$error":"#REF!"}},{"$f":"AND(#REF!,\"Coks6A1eZNs=\")","v":{"$error":"#REF!"}},{"$f":"AND(#REF!,\"Coks6A1eZNw=\")","v":{"$error":"#REF!"}},{"$f":"AND(#REF!,\"Coks6A1eZN0=\")","v":{"$error":"#REF!"}},{"$f":"AND(#REF!,\"Coks6A1eZN4=\")","v":{"$error":"#REF!"}},{"$f":"AND(#REF!,\"Coks6A1eZN8=\")","v":{"$error":"#REF!"}},{"$f":"AND(#REF!,\"Coks6A1eZOA=\")","v":{"$error":"#REF!"}},{"$f":"AND(#REF!,\"Coks6A1eZOE=\")","v":{"$error":"#REF!"}},{"$f":"AND(#REF!,\"Coks6A1eZOI=\")","v":{"$error":"#REF!"}},{"$f":"AND(#REF!,\"Coks6A1eZOM=\")","v":{"$error":"#REF!"}},{"$f":"AND(#REF!,\"Coks6A1eZOQ=\")","v":{"$error":"#REF!"}},{"$f":"AND(#REF!,\"Coks6A1eZOU=\")","v":{"$error":"#REF!"}},{"$f":"AND(#REF!,\"Coks6A1eZOY=\")","v":{"$error":"#REF!"}},{"$f":"AND(#REF!,\"Coks6A1eZOc=\")","v":{"$error":"#REF!"}},{"$f":"AND(#REF!,\"Coks6A1eZOg=\")","v":{"$error":"#REF!"}},{"$f":"AND(#REF!,\"Coks6A1eZOk=\")","v":{"$error":"#REF!"}},{"$f":"AND(#REF!,\"Coks6A1eZOo=\")","v":{"$error":"#REF!"}},{"$f":"AND(#REF!,\"Coks6A1eZOs=\")","v":{"$error":"#REF!"}},{"$f":"AND(#REF!,\"Coks6A1eZOw=\")","v":{"$error":"#REF!"}},{"$f":"AND(#REF!,\"Coks6A1eZO0=\")","v":{"$error":"#REF!"}},{"$f":"AND(#REF!,\"Coks6A1eZO4=\")","v":{"$error":"#REF!"}},{"$f":"AND(#REF!,\"Coks6A1eZO8=\")","v":{"$error":"#REF!"}},{"$f":"AND(#REF!,\"Coks6A1eZPA=\")","v":{"$error":"#REF!"}},{"$f":"AND(#REF!,\"Coks6A1eZPE=\")","v":{"$error":"#REF!"}},{"$f":"AND(#REF!,\"Coks6A1eZPI=\")","v":{"$error":"#REF!"}},{"$f":"AND(#REF!,\"Coks6A1eZPM=\")","v":{"$error":"#REF!"}},{"$f":"AND(#REF!,\"Coks6A1eZPQ=\")","v":{"$error":"#REF!"}},{"$f":"AND(#REF!,\"Coks6A1eZPU=\")","v":{"$error":"#REF!"}},{"$f":"AND(#REF!,\"Coks6A1eZPY=\")","v":{"$error":"#REF!"}},{"$f":"AND(#REF!,\"Coks6A1eZPc=\")","v":{"$error":"#REF!"}},{"$f":"AND(#REF!,\"Coks6A1eZPg=\")","v":{"$error":"#REF!"}},{"$f":"AND(#REF!,\"Coks6A1eZPk=\")","v":{"$error":"#REF!"}},{"$f":"AND(#REF!,\"Coks6A1eZPo=\")","v":{"$error":"#REF!"}},{"$f":"AND(#REF!,\"Coks6A1eZPs=\")","v":{"$error":"#REF!"}},{"$f":"AND(#REF!,\"Coks6A1eZPw=\")","v":{"$error":"#REF!"}},{"$f":"AND(#REF!,\"Coks6A1eZP0=\")","v":{"$error":"#REF!"}},{"$f":"AND(#REF!,\"Coks6A1eZP4=\")","v":{"$error":"#REF!"}},{"$f":"AND(#REF!,\"Coks6A1eZP8=\")","v":{"$error":"#REF!"}}]
[{"$f":"AND(#REF!,\"G79YbRp5DwA=\")","v":{"$error":"#REF!"}},{"$f":"AND(#REF!,\"G79YbRp5DwE=\")","v":{"$error":"#REF!"}},{"$f":"AND(#REF!,\"G79YbRp5DwI=\")","v":{"$error":"#REF!"}},{"$f":"AND(#REF!,\"G79YbRp5DwM=\")","v":{"$error":"#REF!"}},{"$f":"AND(#REF!,\"G79YbRp5DwQ=\")","v":{"$error":"#REF!"}},{"$f":"AND(#REF!,\"G79YbRp5DwU=\")","v":{"$error":"#REF!"}},{"$f":"AND(#REF!,\"G79YbRp5DwY=\")","v":{"$error":"#REF!"}},{"$f":"AND(#REF!,\"G79YbRp5Dwc=\")","v":{"$error":"#REF!"}},{"$f":"AND(#REF!,\"G79YbRp5Dwg=\")","v":{"$error":"#REF!"}},{"$f":"AND(#REF!,\"G79YbRp5Dwk=\")","v":{"$error":"#REF!"}},{"$f":"AND(#REF!,\"G79YbRp5Dwo=\")","v":{"$error":"#REF!"}},{"$f":"AND(#REF!,\"G79YbRp5Dws=\")","v":{"$error":"#REF!"}},{"$f":"AND(#REF!,\"G79YbRp5Dww=\")","v":{"$error":"#REF!"}},{"$f":"AND(#REF!,\"G79YbRp5Dw0=\")","v":{"$error":"#REF!"}},{"$f":"AND(#REF!,\"G79YbRp5Dw4=\")","v":{"$error":"#REF!"}},{"$f":"AND(#REF!,\"G79YbRp5Dw8=\")","v":{"$error":"#REF!"}},{"$f":"AND(#REF!,\"G79YbRp5DxA=\")","v":{"$error":"#REF!"}},{"$f":"AND(#REF!,\"G79YbRp5DxE=\")","v":{"$error":"#REF!"}},{"$f":"AND(#REF!,\"G79YbRp5DxI=\")","v":{"$error":"#REF!"}},{"$f":"AND(#REF!,\"G79YbRp5DxM=\")","v":{"$error":"#REF!"}},{"$f":"AND(#REF!,\"G79YbRp5DxQ=\")","v":{"$error":"#REF!"}},{"$f":"AND(#REF!,\"G79YbRp5DxU=\")","v":{"$error":"#REF!"}},{"$f":"AND(#REF!,\"G79YbRp5DxY=\")","v":{"$error":"#REF!"}},{"$f":"AND(#REF!,\"G79YbRp5Dxc=\")","v":{"$error":"#REF!"}},{"$f":"AND(#REF!,\"G79YbRp5Dxg=\")","v":{"$error":"#REF!"}},{"$f":"AND(#REF!,\"G79YbRp5Dxk=\")","v":{"$error":"#REF!"}},{"$f":"AND(#REF!,\"G79YbRp5Dxo=\")","v":{"$error":"#REF!"}},{"$f":"AND(#REF!,\"G79YbRp5Dxs=\")","v":{"$error":"#REF!"}},{"$f":"AND(#REF!,\"G79YbRp5Dxw=\")","v":{"$error":"#REF!"}},{"$f":"AND(#REF!,\"G79YbRp5Dx0=\")","v":{"$error":"#REF!"}},{"$f":"AND(#REF!,\"G79YbRp5Dx4=\")","v":{"$error":"#REF!"}},{"$f":"AND(#REF!,\"G79YbRp5Dx8=\")","v":{"$error":"#REF!"}},{"$f":"AND(#REF!,\"G79YbRp5DyA=\")","v":{"$error":"#REF!"}},{"$f":"AND(#REF!,\"G79YbRp5DyE=\")","v":{"$error":"#REF!"}},{"$f":"AND(#REF!,\"G79YbRp5DyI=\")","v":{"$error":"#REF!"}},{"$f":"AND(#REF!,\"G79YbRp5DyM=\")","v":{"$error":"#REF!"}},{"$f":"AND(#REF!,\"G79YbRp5DyQ=\")","v":{"$error":"#REF!"}},{"$f":"AND(#REF!,\"G79YbRp5DyU=\")","v":{"$error":"#REF!"}},{"$f":"AND(#REF!,\"G79YbRp5DyY=\")","v":{"$error":"#REF!"}},{"$f":"AND(#REF!,\"G79YbRp5Dyc=\")","v":{"$error":"#REF!"}},{"$f":"AND(#REF!,\"G79YbRp5Dyg=\")","v":{"$error":"#REF!"}},{"$f":"AND(#REF!,\"G79YbRp5Dyk=\")","v":{"$error":"#REF!"}},{"$f":"AND(#REF!,\"G79YbRp5Dyo=\")","v":{"$error":"#REF!"}},{"$f":"AND(#REF!,\"G79YbRp5Dys=\")","v":{"$error":"#REF!"}},{"$f":"AND(#REF!,\"G79YbRp5Dyw=\")","v":{"$error":"#REF!"}},{"$f":"AND(#REF!,\"G79YbRp5Dy0=\")","v":{"$error":"#REF!"}},{"$f":"AND(#REF!,\"G79YbRp5Dy4=\")","v":{"$error":"#REF!"}},{"$f":"AND(#REF!,\"G79YbRp5Dy8=\")","v":{"$error":"#REF!"}},{"$f":"AND(#REF!,\"G79YbRp5DzA=\")","v":{"$error":"#REF!"}},{"$f":"AND(#REF!,\"G79YbRp5DzE=\")","v":{"$error":"#REF!"}},{"$f":"AND(#REF!,\"G79YbRp5DzI=\")","v":{"$error":"#REF!"}},{"$f":"AND(#REF!,\"G79YbRp5DzM=\")","v":{"$error":"#REF!"}},{"$f":"AND(#REF!,\"G79YbRp5DzQ=\")","v":{"$error":"#REF!"}},{"$f":"AND(#REF!,\"G79YbRp5DzU=\")","v":{"$error":"#REF!"}},{"$f":"AND(#REF!,\"G79YbRp5DzY=\")","v":{"$error":"#REF!"}},{"$f":"AND(#REF!,\"G79YbRp5Dzc=\")","v":{"$error":"#REF!"}},{"$f":"AND(#REF!,\"G79YbRp5Dzg=\")","v":{"$error":"#REF!"}},{"$f":"AND(#REF!,\"G79YbRp5Dzk=\")","v":{"$error":"#REF!"}},{"$f":"AND(#REF!,\"G79YbRp5Dzo=\")","v":{"$error":"#REF!"}},{"$f":"AND(#REF!,\"G79YbRp5Dzs=\")","v":{"$error":"#REF!"}},{"$f":"AND(#REF!,\"G79YbRp5Dzw=\")","v":{"$error":"#REF!"}},{"$f":"AND(#REF!,\"G79YbRp5Dz0=\")","v":{"$error":"#REF!"}},{"$f":"AND(#REF!,\"G79YbRp5Dz4=\")","v":{"$error":"#REF!"}},{"$f":"AND(#REF!,\"G79YbRp5Dz8=\")","v":{"$error":"#REF!"}},{"$f":"AND(#REF!,\"G79YbRp5D0A=\")","v":{"$error":"#REF!"}},{"$f":"AND(#REF!,\"G79YbRp5D0E=\")","v":{"$error":"#REF!"}},{"$f":"AND(#REF!,\"G79YbRp5D0I=\")","v":{"$error":"#REF!"}},{"$f":"AND(#REF!,\"G79YbRp5D0M=\")","v":{"$error":"#REF!"}},{"$f":"AND(#REF!,\"G79YbRp5D0Q=\")","v":{"$error":"#REF!"}},{"$f":"AND(#REF!,\"G79YbRp5D0U=\")","v":{"$error":"#REF!"}},{"$f":"AND(#REF!,\"G79YbRp5D0Y=\")","v":{"$error":"#REF!"}},{"$f":"AND(#REF!,\"G79YbRp5D0c=\")","v":{"$error":"#REF!"}},{"$f":"AND(#REF!,\"G79YbRp5D0g=\")","v":{"$error":"#REF!"}},{"$f":"AND(#REF!,\"G79YbRp5D0k=\")","v":{"$error":"#REF!"}},{"$f":"AND(#REF!,\"G79YbRp5D0o=\")","v":{"$error":"#REF!"}},{"$f":"AND(#REF!,\"G79YbRp5D0s=\")","v":{"$error":"#REF!"}},{"$f":"AND(#REF!,\"G79YbRp5D0w=\")","v":{"$error":"#REF!"}},{"$f":"AND(#REF!,\"G79YbRp5D00=\")","v":{"$error":"#REF!"}},{"$f":"AND(#REF!,\"G79YbRp5D04=\")","v":{"$error":"#REF!"}},{"$f":"AND(#REF!,\"G79YbRp5D08=\")","v":{"$error":"#REF!"}},{"$f":"AND(#REF!,\"G79YbRp5D1A=\")","v":{"$error":"#REF!"}},{"$f":"AND(#REF!,\"G79YbRp5D1E=\")","v":{"$error":"#REF!"}},{"$f":"AND(#REF!,\"G79YbRp5D1I=\")","v":{"$error":"#REF!"}},{"$f":"AND(#REF!,\"G79YbRp5D1M=\")","v":{"$error":"#REF!"}},{"$f":"AND(#REF!,\"G79YbRp5D1Q=\")","v":{"$error":"#REF!"}},{"$f":"IF(#REF!,\"G79YbRp5D1U=\",0)","v":{"$error":"#REF!"}},{"$f":"AND(#REF!,\"G79YbRp5D1Y=\")","v":{"$error":"#REF!"}},{"$f":"AND(#REF!,\"G79YbRp5D1c=\")","v":{"$error":"#REF!"}},{"$f":"AND(#REF!,\"G79YbRp5D1g=\")","v":{"$error":"#REF!"}},{"$f":"AND(#REF!,\"G79YbRp5D1k=\")","v":{"$error":"#REF!"}},{"$f":"AND(#REF!,\"G79YbRp5D1o=\")","v":{"$error":"#REF!"}},{"$f":"AND(#REF!,\"G79YbRp5D1s=\")","v":{"$error":"#REF!"}},{"$f":"AND(#REF!,\"G79YbRp5D1w=\")","v":{"$error":"#REF!"}},{"$f":"AND(#REF!,\"G79YbRp5D10=\")","v":{"$error":"#REF!"}},{"$f":"AND(#REF!,\"G79YbRp5D14=\")","v":{"$error":"#REF!"}},{"$f":"AND(#REF!,\"G79YbRp5D18=\")","v":{"$error":"#REF!"}},{"$f":"AND(#REF!,\"G79YbRp5D2A=\")","v":{"$error":"#REF!"}},{"$f":"AND(#REF!,\"G79YbRp5D2E=\")","v":{"$error":"#REF!"}},{"$f":"AND(#REF!,\"G79YbRp5D2I=\")","v":{"$error":"#REF!"}},{"$f":"AND(#REF!,\"G79YbRp5D2M=\")","v":{"$error":"#REF!"}},{"$f":"AND(#REF!,\"G79YbRp5D2Q=\")","v":{"$error":"#REF!"}},{"$f":"AND(#REF!,\"G79YbRp5D2U=\")","v":{"$error":"#REF!"}},{"$f":"AND(#REF!,\"G79YbRp5D2Y=\")","v":{"$error":"#REF!"}},{"$f":"AND(#REF!,\"G79YbRp5D2c=\")","v":{"$error":"#REF!"}},{"$f":"AND(#REF!,\"G79YbRp5D2g=\")","v":{"$error":"#REF!"}},{"$f":"AND(#REF!,\"G79YbRp5D2k=\")","v":{"$error":"#REF!"}},{"$f":"AND(#REF!,\"G79YbRp5D2o=\")","v":{"$error":"#REF!"}},{"$f":"AND(#REF!,\"G79YbRp5D2s=\")","v":{"$error":"#REF!"}},{"$f":"AND(#REF!,\"G79YbRp5D2w=\")","v":{"$error":"#REF!"}},{"$f":"AND(#REF!,\"G79YbRp5D20=\")","v":{"$error":"#REF!"}},{"$f":"AND(#REF!,\"G79YbRp5D24=\")","v":{"$error":"#REF!"}},{"$f":"AND(#REF!,\"G79YbRp5D28=\")","v":{"$error":"#REF!"}},{"$f":"AND(#REF!,\"G79YbRp5D3A=\")","v":{"$error":"#REF!"}},{"$f":"AND(#REF!,\"G79YbRp5D3E=\")","v":{"$error":"#REF!"}},{"$f":"AND(#REF!,\"G79YbRp5D3I=\")","v":{"$error":"#REF!"}},{"$f":"AND(#REF!,\"G79YbRp5D3M=\")","v":{"$error":"#REF!"}},{"$f":"AND(#REF!,\"G79YbRp5D3Q=\")","v":{"$error":"#REF!"}},{"$f":"AND(#REF!,\"G79YbRp5D3U=\")","v":{"$error":"#REF!"}},{"$f":"AND(#REF!,\"G79YbRp5D3Y=\")","v":{"$error":"#REF!"}},{"$f":"AND(#REF!,\"G79YbRp5D3c=\")","v":{"$error":"#REF!"}},{"$f":"AND(#REF!,\"G79YbRp5D3g=\")","v":{"$error":"#REF!"}},{"$f":"AND(#REF!,\"G79YbRp5D3k=\")","v":{"$error":"#REF!"}},{"$f":"AND(#REF!,\"G79YbRp5D3o=\")","v":{"$error":"#REF!"}},{"$f":"AND(#REF!,\"G79YbRp5D3s=\")","v":{"$error":"#REF!"}},{"$f":"AND(#REF!,\"G79YbRp5D3w=\")","v":{"$error":"#REF!"}},{"$f":"AND(#REF!,\"G79YbRp5D30=\")","v":{"$error":"#REF!"}},{"$f":"AND(#REF!,\"G79YbRp5D34=\")","v":{"$error":"#REF!"}},{"$f":"AND(#REF!,\"G79YbRp5D38=\")","v":{"$error":"#REF!"}},{"$f":"AND(#REF!,\"G79YbRp5D4A=\")","v":{"$error":"#REF!"}},{"$f":"AND(#REF!,\"G79YbRp5D4E=\")","v":{"$error":"#REF!"}},{"$f":"AND(#REF!,\"G79YbRp5D4I=\")","v":{"$error":"#REF!"}},{"$f":"AND(#REF!,\"G79YbRp5D4M=\")","v":{"$error":"#REF!"}},{"$f":"AND(#REF!,\"G79YbRp5D4Q=\")","v":{"$error":"#REF!"}},{"$f":"AND(#REF!,\"G79YbRp5D4U=\")","v":{"$error":"#REF!"}},{"$f":"AND(#REF!,\"G79YbRp5D4Y=\")","v":{"$error":"#REF!"}},{"$f":"AND(#REF!,\"G79YbRp5D4c=\")","v":{"$error":"#REF!"}},{"$f":"AND(#REF!,\"G79YbRp5D4g=\")","v":{"$error":"#REF!"}},{"$f":"AND(#REF!,\"G79YbRp5D4k=\")","v":{"$error":"#REF!"}},{"$f":"AND(#REF!,\"G79YbRp5D4o=\")","v":{"$error":"#REF!"}},{"$f":"AND(#REF!,\"G79YbRp5D4s=\")","v":{"$error":"#REF!"}},{"$f":"AND(#REF!,\"G79YbRp5D4w=\")","v":{"$error":"#REF!"}},{"$f":"AND(#REF!,\"G79YbRp5D40=\")","v":{"$error":"#REF!"}},{"$f":"AND(#REF!,\"G79YbRp5D44=\")","v":{"$error":"#REF!"}},{"$f":"AND(#REF!,\"G79YbRp5D48=\")","v":{"$error":"#REF!"}},{"$f":"AND(#REF!,\"G79YbRp5D5A=\")","v":{"$error":"#REF!"}},{"$f":"AND(#REF!,\"G79YbRp5D5E=\")","v":{"$error":"#REF!"}},{"$f":"AND(#REF!,\"G79YbRp5D5I=\")","v":{"$error":"#REF!"}},{"$f":"AND(#REF!,\"G79YbRp5D5M=\")","v":{"$error":"#REF!"}},{"$f":"AND(#REF!,\"G79YbRp5D5Q=\")","v":{"$error":"#REF!"}},{"$f":"AND(#REF!,\"G79YbRp5D5U=\")","v":{"$error":"#REF!"}},{"$f":"AND(#REF!,\"G79YbRp5D5Y=\")","v":{"$error":"#REF!"}},{"$f":"AND(#REF!,\"G79YbRp5D5c=\")","v":{"$error":"#REF!"}},{"$f":"AND(#REF!,\"G79YbRp5D5g=\")","v":{"$error":"#REF!"}},{"$f":"AND(#REF!,\"G79YbRp5D5k=\")","v":{"$error":"#REF!"}},{"$f":"AND(#REF!,\"G79YbRp5D5o=\")","v":{"$error":"#REF!"}},{"$f":"AND(#REF!,\"G79YbRp5D5s=\")","v":{"$error":"#REF!"}},{"$f":"AND(#REF!,\"G79YbRp5D5w=\")","v":{"$error":"#REF!"}},{"$f":"AND(#REF!,\"G79YbRp5D50=\")","v":{"$error":"#REF!"}},{"$f":"AND(#REF!,\"G79YbRp5D54=\")","v":{"$error":"#REF!"}},{"$f":"AND(#REF!,\"G79YbRp5D58=\")","v":{"$error":"#REF!"}},{"$f":"AND(#REF!,\"G79YbRp5D6A=\")","v":{"$error":"#REF!"}},{"$f":"AND(#REF!,\"G79YbRp5D6E=\")","v":{"$error":"#REF!"}},{"$f":"AND(#REF!,\"G79YbRp5D6I=\")","v":{"$error":"#REF!"}},{"$f":"AND(#REF!,\"G79YbRp5D6M=\")","v":{"$error":"#REF!"}},{"$f":"AND(#REF!,\"G79YbRp5D6Q=\")","v":{"$error":"#REF!"}},{"$f":"AND(#REF!,\"G79YbRp5D6U=\")","v":{"$error":"#REF!"}},{"$f":"AND(#REF!,\"G79YbRp5D6Y=\")","v":{"$error":"#REF!"}},{"$f":"AND(#REF!,\"G79YbRp5D6c=\")","v":{"$error":"#REF!"}},{"$f":"AND(#REF!,\"G79YbRp5D6g=\")","v":{"$error":"#REF!"}},{"$f":"AND(#REF!,\"G79YbRp5D6k=\")","v":{"$error":"#REF!"}},{"$f":"AND(#REF!,\"G79YbRp5D6o=\")","v":{"$error":"#REF!"}},{"$f":"AND(#REF!,\"G79YbRp5D6s=\")","v":{"$error":"#REF!"}},{"$f":"AND(#REF!,\"G79YbRp5D6w=\")","v":{"$error":"#REF!"}},{"$f":"AND(#REF!,\"G79YbRp5D60=\")","v":{"$error":"#REF!"}},{"$f":"AND(#REF!,\"G79YbRp5D64=\")","v":{"$error":"#REF!"}},{"$f":"AND(#REF!,\"G79YbRp5D68=\")","v":{"$error":"#REF!"}},{"$f":"AND(#REF!,\"G79YbRp5D7A=\")","v":{"$error":"#REF!"}},{"$f":"AND(#REF!,\"G79YbRp5D7E=\")","v":{"$error":"#REF!"}},{"$f":"AND(#REF!,\"G79YbRp5D7I=\")","v":{"$error":"#REF!"}},{"$f":"AND(#REF!,\"G79YbRp5D7M=\")","v":{"$error":"#REF!"}},{"$f":"AND(#REF!,\"G79YbRp5D7Q=\")","v":{"$error":"#REF!"}},{"$f":"AND(#REF!,\"G79YbRp5D7U=\")","v":{"$error":"#REF!"}},{"$f":"AND(#REF!,\"G79YbRp5D7Y=\")","v":{"$error":"#REF!"}},{"$f":"AND(#REF!,\"G79YbRp5D7c=\")","v":{"$error":"#REF!"}},{"$f":"AND(#REF!,\"G79YbRp5D7g=\")","v":{"$error":"#REF!"}},{"$f":"AND(#REF!,\"G79YbRp5D7k=\")","v":{"$error":"#REF!"}},{"$f":"AND(#REF!,\"G79YbRp5D7o=\")","v":{"$error":"#REF!"}},{"$f":"AND(#REF!,\"G79YbRp5D7s=\")","v":{"$error":"#REF!"}},{"$f":"AND(#REF!,\"G79YbRp5D7w=\")","v":{"$error":"#REF!"}},{"$f":"AND(#REF!,\"G79YbRp5D70=\")","v":{"$error":"#REF!"}},{"$f":"AND(#REF!,\"G79YbRp5D74=\")","v":{"$error":"#REF!"}},{"$f":"AND(#REF!,\"G79YbRp5D78=\")","v":{"$error":"#REF!"}},{"$f":"AND(#REF!,\"G79YbRp5D8A=\")","v":{"$error":"#REF!"}},{"$f":"AND(#REF!,\"G79YbRp5D8E=\")","v":{"$error":"#REF!"}},{"$f":"AND(#REF!,\"G79YbRp5D8I=\")","v":{"$error":"#REF!"}},{"$f":"AND(#REF!,\"G79YbRp5D8M=\")","v":{"$error":"#REF!"}},{"$f":"AND(#REF!,\"G79YbRp5D8Q=\")","v":{"$error":"#REF!"}},{"$f":"AND(#REF!,\"G79YbRp5D8U=\")","v":{"$error":"#REF!"}},{"$f":"AND(#REF!,\"G79YbRp5D8Y=\")","v":{"$error":"#REF!"}},{"$f":"AND(#REF!,\"G79YbRp5D8c=\")","v":{"$error":"#REF!"}},{"$f":"AND(#REF!,\"G79YbRp5D8g=\")","v":{"$error":"#REF!"}},{"$f":"AND(#REF!,\"G79YbRp5D8k=\")","v":{"$error":"#REF!"}},{"$f":"AND(#REF!,\"G79YbRp5D8o=\")","v":{"$error":"#REF!"}},{"$f":"AND(#REF!,\"G79YbRp5D8s=\")","v":{"$error":"#REF!"}},{"$f":"AND(#REF!,\"G79YbRp5D8w=\")","v":{"$error":"#REF!"}},{"$f":"AND(#REF!,\"G79YbRp5D80=\")","v":{"$error":"#REF!"}},{"$f":"AND(#REF!,\"G79YbRp5D84=\")","v":{"$error":"#REF!"}},{"$f":"AND(#REF!,\"G79YbRp5D88=\")","v":{"$error":"#REF!"}},{"$f":"AND(#REF!,\"G79YbRp5D9A=\")","v":{"$error":"#REF!"}},{"$f":"AND(#REF!,\"G79YbRp5D9E=\")","v":{"$error":"#REF!"}},{"$f":"AND(#REF!,\"G79YbRp5D9I=\")","v":{"$error":"#REF!"}},{"$f":"AND(#REF!,\"G79YbRp5D9M=\")","v":{"$error":"#REF!"}},{"$f":"AND(#REF!,\"G79YbRp5D9Q=\")","v":{"$error":"#REF!"}},{"$f":"AND(#REF!,\"G79YbRp5D9U=\")","v":{"$error":"#REF!"}},{"$f":"AND(#REF!,\"G79YbRp5D9Y=\")","v":{"$error":"#REF!"}},{"$f":"AND(#REF!,\"G79YbRp5D9c=\")","v":{"$error":"#REF!"}},{"$f":"AND(#REF!,\"G79YbRp5D9g=\")","v":{"$error":"#REF!"}},{"$f":"AND(#REF!,\"G79YbRp5D9k=\")","v":{"$error":"#REF!"}},{"$f":"AND(#REF!,\"G79YbRp5D9o=\")","v":{"$error":"#REF!"}},{"$f":"AND(#REF!,\"G79YbRp5D9s=\")","v":{"$error":"#REF!"}},{"$f":"AND(#REF!,\"G79YbRp5D9w=\")","v":{"$error":"#REF!"}},{"$f":"AND(#REF!,\"G79YbRp5D90=\")","v":{"$error":"#REF!"}},{"$f":"AND(#REF!,\"G79YbRp5D94=\")","v":{"$error":"#REF!"}},{"$f":"AND(#REF!,\"G79YbRp5D98=\")","v":{"$error":"#REF!"}},{"$f":"AND(#REF!,\"G79YbRp5D+A=\")","v":{"$error":"#REF!"}},{"$f":"AND(#REF!,\"G79YbRp5D+E=\")","v":{"$error":"#REF!"}},{"$f":"AND(#REF!,\"G79YbRp5D+I=\")","v":{"$error":"#REF!"}},{"$f":"AND(#REF!,\"G79YbRp5D+M=\")","v":{"$error":"#REF!"}},{"$f":"AND(#REF!,\"G79YbRp5D+Q=\")","v":{"$error":"#REF!"}},{"$f":"AND(#REF!,\"G79YbRp5D+U=\")","v":{"$error":"#REF!"}},{"$f":"AND(#REF!,\"G79YbRp5D+Y=\")","v":{"$error":"#REF!"}},{"$f":"AND(#REF!,\"G79YbRp5D+c=\")","v":{"$error":"#REF!"}},{"$f":"AND(#REF!,\"G79YbRp5D+g=\")","v":{"$error":"#REF!"}},{"$f":"AND(#REF!,\"G79YbRp5D+k=\")","v":{"$error":"#REF!"}},{"$f":"AND(#REF!,\"G79YbRp5D+o=\")","v":{"$error":"#REF!"}},{"$f":"AND(#REF!,\"G79YbRp5D+s=\")","v":{"$error":"#REF!"}},{"$f":"AND(#REF!,\"G79YbRp5D+w=\")","v":{"$error":"#REF!"}},{"$f":"AND(#REF!,\"G79YbRp5D+0=\")","v":{"$error":"#REF!"}},{"$f":"AND(#REF!,\"G79YbRp5D+4=\")","v":{"$error":"#REF!"}},{"$f":"AND(#REF!,\"G79YbRp5D+8=\")","v":{"$error":"#REF!"}},{"$f":"AND(#REF!,\"G79YbRp5D/A=\")","v":{"$error":"#REF!"}},{"$f":"AND(#REF!,\"G79YbRp5D/E=\")","v":{"$error":"#REF!"}},{"$f":"AND(#REF!,\"G79YbRp5D/I=\")","v":{"$error":"#REF!"}},{"$f":"AND(#REF!,\"G79YbRp5D/M=\")","v":{"$error":"#REF!"}},{"$f":"AND(#REF!,\"G79YbRp5D/Q=\")","v":{"$error":"#REF!"}},{"$f":"AND(#REF!,\"G79YbRp5D/U=\")","v":{"$error":"#REF!"}},{"$f":"AND(#REF!,\"G79YbRp5D/Y=\")","v":{"$error":"#REF!"}},{"$f":"AND(#REF!,\"G79YbRp5D/c=\")","v":{"$error":"#REF!"}},{"$f":"AND(#REF!,\"G79YbRp5D/g=\")","v":{"$error":"#REF!"}},{"$f":"AND(#REF!,\"G79YbRp5D/k=\")","v":{"$error":"#REF!"}},{"$f":"AND(#REF!,\"G79YbRp5D/o=\")","v":{"$error":"#REF!"}},{"$f":"AND(#REF!,\"G79YbRp5D/s=\")","v":{"$error":"#REF!"}},{"$f":"AND(#REF!,\"G79YbRp5D/w=\")","v":{"$error":"#REF!"}},{"$f":"AND(#REF!,\"G79YbRp5D/0=\")","v":{"$error":"#REF!"}},{"$f":"AND(#REF!,\"G79YbRp5D/4=\")","v":{"$error":"#REF!"}},{"$f":"AND(#REF!,\"G79YbRp5D/8=\")","v":{"$error":"#REF!"}}]
[{"$f":"AND(#REF!,\"VEseujBkowA=\")","v":{"$error":"#REF!"}},{"$f":"AND(#REF!,\"VEseujBkowE=\")","v":{"$error":"#REF!"}},{"$f":"AND(#REF!,\"VEseujBkowI=\")","v":{"$error":"#REF!"}},{"$f":"AND(#REF!,\"VEseujBkowM=\")","v":{"$error":"#REF!"}},{"$f":"AND(#REF!,\"VEseujBkowQ=\")","v":{"$error":"#REF!"}},{"$f":"AND(#REF!,\"VEseujBkowU=\")","v":{"$error":"#REF!"}},{"$f":"AND(#REF!,\"VEseujBkowY=\")","v":{"$error":"#REF!"}},{"$f":"AND(#REF!,\"VEseujBkowc=\")","v":{"$error":"#REF!"}},{"$f":"AND(#REF!,\"VEseujBkowg=\")","v":{"$error":"#REF!"}},{"$f":"AND(#REF!,\"VEseujBkowk=\")","v":{"$error":"#REF!"}},{"$f":"AND(#REF!,\"VEseujBkowo=\")","v":{"$error":"#REF!"}},{"$f":"AND(#REF!,\"VEseujBkows=\")","v":{"$error":"#REF!"}},{"$f":"AND(#REF!,\"VEseujBkoww=\")","v":{"$error":"#REF!"}},{"$f":"AND(#REF!,\"VEseujBkow0=\")","v":{"$error":"#REF!"}},{"$f":"AND(#REF!,\"VEseujBkow4=\")","v":{"$error":"#REF!"}},{"$f":"AND(#REF!,\"VEseujBkow8=\")","v":{"$error":"#REF!"}},{"$f":"AND(#REF!,\"VEseujBkoxA=\")","v":{"$error":"#REF!"}},{"$f":"AND(#REF!,\"VEseujBkoxE=\")","v":{"$error":"#REF!"}},{"$f":"AND(#REF!,\"VEseujBkoxI=\")","v":{"$error":"#REF!"}},{"$f":"AND(#REF!,\"VEseujBkoxM=\")","v":{"$error":"#REF!"}},{"$f":"AND(#REF!,\"VEseujBkoxQ=\")","v":{"$error":"#REF!"}},{"$f":"AND(#REF!,\"VEseujBkoxU=\")","v":{"$error":"#REF!"}},{"$f":"AND(#REF!,\"VEseujBkoxY=\")","v":{"$error":"#REF!"}},{"$f":"AND(#REF!,\"VEseujBkoxc=\")","v":{"$error":"#REF!"}},{"$f":"AND(#REF!,\"VEseujBkoxg=\")","v":{"$error":"#REF!"}},{"$f":"AND(#REF!,\"VEseujBkoxk=\")","v":{"$error":"#REF!"}},{"$f":"AND(#REF!,\"VEseujBkoxo=\")","v":{"$error":"#REF!"}},{"$f":"AND(#REF!,\"VEseujBkoxs=\")","v":{"$error":"#REF!"}},{"$f":"IF(#REF!,\"VEseujBkoxw=\",0)","v":{"$error":"#REF!"}},{"$f":"AND(#REF!,\"VEseujBkox0=\")","v":{"$error":"#REF!"}},{"$f":"AND(#REF!,\"VEseujBkox4=\")","v":{"$error":"#REF!"}},{"$f":"AND(#REF!,\"VEseujBkox8=\")","v":{"$error":"#REF!"}},{"$f":"AND(#REF!,\"VEseujBkoyA=\")","v":{"$error":"#REF!"}},{"$f":"AND(#REF!,\"VEseujBkoyE=\")","v":{"$error":"#REF!"}},{"$f":"AND(#REF!,\"VEseujBkoyI=\")","v":{"$error":"#REF!"}},{"$f":"AND(#REF!,\"VEseujBkoyM=\")","v":{"$error":"#REF!"}},{"$f":"AND(#REF!,\"VEseujBkoyQ=\")","v":{"$error":"#REF!"}},{"$f":"AND(#REF!,\"VEseujBkoyU=\")","v":{"$error":"#REF!"}},{"$f":"AND(#REF!,\"VEseujBkoyY=\")","v":{"$error":"#REF!"}},{"$f":"AND(#REF!,\"VEseujBkoyc=\")","v":{"$error":"#REF!"}},{"$f":"AND(#REF!,\"VEseujBkoyg=\")","v":{"$error":"#REF!"}},{"$f":"AND(#REF!,\"VEseujBkoyk=\")","v":{"$error":"#REF!"}},{"$f":"AND(#REF!,\"VEseujBkoyo=\")","v":{"$error":"#REF!"}},{"$f":"AND(#REF!,\"VEseujBkoys=\")","v":{"$error":"#REF!"}},{"$f":"AND(#REF!,\"VEseujBkoyw=\")","v":{"$error":"#REF!"}},{"$f":"AND(#REF!,\"VEseujBkoy0=\")","v":{"$error":"#REF!"}},{"$f":"AND(#REF!,\"VEseujBkoy4=\")","v":{"$error":"#REF!"}},{"$f":"AND(#REF!,\"VEseujBkoy8=\")","v":{"$error":"#REF!"}},{"$f":"AND(#REF!,\"VEseujBkozA=\")","v":{"$error":"#REF!"}},{"$f":"AND(#REF!,\"VEseujBkozE=\")","v":{"$error":"#REF!"}},{"$f":"AND(#REF!,\"VEseujBkozI=\")","v":{"$error":"#REF!"}},{"$f":"AND(#REF!,\"VEseujBkozM=\")","v":{"$error":"#REF!"}},{"$f":"AND(#REF!,\"VEseujBkozQ=\")","v":{"$error":"#REF!"}},{"$f":"AND(#REF!,\"VEseujBkozU=\")","v":{"$error":"#REF!"}},{"$f":"AND(#REF!,\"VEseujBkozY=\")","v":{"$error":"#REF!"}},{"$f":"AND(#REF!,\"VEseujBkozc=\")","v":{"$error":"#REF!"}},{"$f":"AND(#REF!,\"VEseujBkozg=\")","v":{"$error":"#REF!"}},{"$f":"AND(#REF!,\"VEseujBkozk=\")","v":{"$error":"#REF!"}},{"$f":"AND(#REF!,\"VEseujBkozo=\")","v":{"$error":"#REF!"}},{"$f":"AND(#REF!,\"VEseujBkozs=\")","v":{"$error":"#REF!"}},{"$f":"AND(#REF!,\"VEseujBkozw=\")","v":{"$error":"#REF!"}},{"$f":"AND(#REF!,\"VEseujBkoz0=\")","v":{"$error":"#REF!"}},{"$f":"AND(#REF!,\"VEseujBkoz4=\")","v":{"$error":"#REF!"}},{"$f":"AND(#REF!,\"VEseujBkoz8=\")","v":{"$error":"#REF!"}},{"$f":"AND(#REF!,\"VEseujBko0A=\")","v":{"$error":"#REF!"}},{"$f":"AND(#REF!,\"VEseujBko0E=\")","v":{"$error":"#REF!"}},{"$f":"AND(#REF!,\"VEseujBko0I=\")","v":{"$error":"#REF!"}},{"$f":"AND(#REF!,\"VEseujBko0M=\")","v":{"$error":"#REF!"}},{"$f":"AND(#REF!,\"VEseujBko0Q=\")","v":{"$error":"#REF!"}},{"$f":"AND(#REF!,\"VEseujBko0U=\")","v":{"$error":"#REF!"}},{"$f":"AND(#REF!,\"VEseujBko0Y=\")","v":{"$error":"#REF!"}},{"$f":"AND(#REF!,\"VEseujBko0c=\")","v":{"$error":"#REF!"}},{"$f":"AND(#REF!,\"VEseujBko0g=\")","v":{"$error":"#REF!"}},{"$f":"AND(#REF!,\"VEseujBko0k=\")","v":{"$error":"#REF!"}},{"$f":"AND(#REF!,\"VEseujBko0o=\")","v":{"$error":"#REF!"}},{"$f":"AND(#REF!,\"VEseujBko0s=\")","v":{"$error":"#REF!"}},{"$f":"AND(#REF!,\"VEseujBko0w=\")","v":{"$error":"#REF!"}},{"$f":"AND(#REF!,\"VEseujBko00=\")","v":{"$error":"#REF!"}},{"$f":"AND(#REF!,\"VEseujBko04=\")","v":{"$error":"#REF!"}},{"$f":"AND(#REF!,\"VEseujBko08=\")","v":{"$error":"#REF!"}},{"$f":"AND(#REF!,\"VEseujBko1A=\")","v":{"$error":"#REF!"}},{"$f":"AND(#REF!,\"VEseujBko1E=\")","v":{"$error":"#REF!"}},{"$f":"AND(#REF!,\"VEseujBko1I=\")","v":{"$error":"#REF!"}},{"$f":"AND(#REF!,\"VEseujBko1M=\")","v":{"$error":"#REF!"}},{"$f":"AND(#REF!,\"VEseujBko1Q=\")","v":{"$error":"#REF!"}},{"$f":"AND(#REF!,\"VEseujBko1U=\")","v":{"$error":"#REF!"}},{"$f":"AND(#REF!,\"VEseujBko1Y=\")","v":{"$error":"#REF!"}},{"$f":"AND(#REF!,\"VEseujBko1c=\")","v":{"$error":"#REF!"}},{"$f":"AND(#REF!,\"VEseujBko1g=\")","v":{"$error":"#REF!"}},{"$f":"AND(#REF!,\"VEseujBko1k=\")","v":{"$error":"#REF!"}},{"$f":"AND(#REF!,\"VEseujBko1o=\")","v":{"$error":"#REF!"}},{"$f":"AND(#REF!,\"VEseujBko1s=\")","v":{"$error":"#REF!"}},{"$f":"AND(#REF!,\"VEseujBko1w=\")","v":{"$error":"#REF!"}},{"$f":"AND(#REF!,\"VEseujBko10=\")","v":{"$error":"#REF!"}},{"$f":"AND(#REF!,\"VEseujBko14=\")","v":{"$error":"#REF!"}},{"$f":"AND(#REF!,\"VEseujBko18=\")","v":{"$error":"#REF!"}},{"$f":"AND(#REF!,\"VEseujBko2A=\")","v":{"$error":"#REF!"}},{"$f":"AND(#REF!,\"VEseujBko2E=\")","v":{"$error":"#REF!"}},{"$f":"AND(#REF!,\"VEseujBko2I=\")","v":{"$error":"#REF!"}},{"$f":"AND(#REF!,\"VEseujBko2M=\")","v":{"$error":"#REF!"}},{"$f":"AND(#REF!,\"VEseujBko2Q=\")","v":{"$error":"#REF!"}},{"$f":"AND(#REF!,\"VEseujBko2U=\")","v":{"$error":"#REF!"}},{"$f":"AND(#REF!,\"VEseujBko2Y=\")","v":{"$error":"#REF!"}},{"$f":"AND(#REF!,\"VEseujBko2c=\")","v":{"$error":"#REF!"}},{"$f":"AND(#REF!,\"VEseujBko2g=\")","v":{"$error":"#REF!"}},{"$f":"AND(#REF!,\"VEseujBko2k=\")","v":{"$error":"#REF!"}},{"$f":"AND(#REF!,\"VEseujBko2o=\")","v":{"$error":"#REF!"}},{"$f":"AND(#REF!,\"VEseujBko2s=\")","v":{"$error":"#REF!"}},{"$f":"AND(#REF!,\"VEseujBko2w=\")","v":{"$error":"#REF!"}},{"$f":"AND(#REF!,\"VEseujBko20=\")","v":{"$error":"#REF!"}},{"$f":"AND(#REF!,\"VEseujBko24=\")","v":{"$error":"#REF!"}},{"$f":"AND(#REF!,\"VEseujBko28=\")","v":{"$error":"#REF!"}},{"$f":"AND(#REF!,\"VEseujBko3A=\")","v":{"$error":"#REF!"}},{"$f":"AND(#REF!,\"VEseujBko3E=\")","v":{"$error":"#REF!"}},{"$f":"AND(#REF!,\"VEseujBko3I=\")","v":{"$error":"#REF!"}},{"$f":"AND(#REF!,\"VEseujBko3M=\")","v":{"$error":"#REF!"}},{"$f":"AND(#REF!,\"VEseujBko3Q=\")","v":{"$error":"#REF!"}},{"$f":"AND(#REF!,\"VEseujBko3U=\")","v":{"$error":"#REF!"}},{"$f":"AND(#REF!,\"VEseujBko3Y=\")","v":{"$error":"#REF!"}},{"$f":"AND(#REF!,\"VEseujBko3c=\")","v":{"$error":"#REF!"}},{"$f":"AND(#REF!,\"VEseujBko3g=\")","v":{"$error":"#REF!"}},{"$f":"AND(#REF!,\"VEseujBko3k=\")","v":{"$error":"#REF!"}},{"$f":"AND(#REF!,\"VEseujBko3o=\")","v":{"$error":"#REF!"}},{"$f":"AND(#REF!,\"VEseujBko3s=\")","v":{"$error":"#REF!"}},{"$f":"AND(#REF!,\"VEseujBko3w=\")","v":{"$error":"#REF!"}},{"$f":"AND(#REF!,\"VEseujBko30=\")","v":{"$error":"#REF!"}},{"$f":"AND(#REF!,\"VEseujBko34=\")","v":{"$error":"#REF!"}},{"$f":"AND(#REF!,\"VEseujBko38=\")","v":{"$error":"#REF!"}},{"$f":"AND(#REF!,\"VEseujBko4A=\")","v":{"$error":"#REF!"}},{"$f":"AND(#REF!,\"VEseujBko4E=\")","v":{"$error":"#REF!"}},{"$f":"AND(#REF!,\"VEseujBko4I=\")","v":{"$error":"#REF!"}},{"$f":"AND(#REF!,\"VEseujBko4M=\")","v":{"$error":"#REF!"}},{"$f":"AND(#REF!,\"VEseujBko4Q=\")","v":{"$error":"#REF!"}},{"$f":"AND(#REF!,\"VEseujBko4U=\")","v":{"$error":"#REF!"}},{"$f":"AND(#REF!,\"VEseujBko4Y=\")","v":{"$error":"#REF!"}},{"$f":"AND(#REF!,\"VEseujBko4c=\")","v":{"$error":"#REF!"}},{"$f":"AND(#REF!,\"VEseujBko4g=\")","v":{"$error":"#REF!"}},{"$f":"AND(#REF!,\"VEseujBko4k=\")","v":{"$error":"#REF!"}},{"$f":"AND(#REF!,\"VEseujBko4o=\")","v":{"$error":"#REF!"}},{"$f":"AND(#REF!,\"VEseujBko4s=\")","v":{"$error":"#REF!"}},{"$f":"AND(#REF!,\"VEseujBko4w=\")","v":{"$error":"#REF!"}},{"$f":"AND(#REF!,\"VEseujBko40=\")","v":{"$error":"#REF!"}},{"$f":"AND(#REF!,\"VEseujBko44=\")","v":{"$error":"#REF!"}},{"$f":"AND(#REF!,\"VEseujBko48=\")","v":{"$error":"#REF!"}},{"$f":"AND(#REF!,\"VEseujBko5A=\")","v":{"$error":"#REF!"}},{"$f":"AND(#REF!,\"VEseujBko5E=\")","v":{"$error":"#REF!"}},{"$f":"AND(#REF!,\"VEseujBko5I=\")","v":{"$error":"#REF!"}},{"$f":"AND(#REF!,\"VEseujBko5M=\")","v":{"$error":"#REF!"}},{"$f":"AND(#REF!,\"VEseujBko5Q=\")","v":{"$error":"#REF!"}},{"$f":"AND(#REF!,\"VEseujBko5U=\")","v":{"$error":"#REF!"}},{"$f":"AND(#REF!,\"VEseujBko5Y=\")","v":{"$error":"#REF!"}},{"$f":"AND(#REF!,\"VEseujBko5c=\")","v":{"$error":"#REF!"}},{"$f":"AND(#REF!,\"VEseujBko5g=\")","v":{"$error":"#REF!"}},{"$f":"AND(#REF!,\"VEseujBko5k=\")","v":{"$error":"#REF!"}},{"$f":"AND(#REF!,\"VEseujBko5o=\")","v":{"$error":"#REF!"}},{"$f":"AND(#REF!,\"VEseujBko5s=\")","v":{"$error":"#REF!"}},{"$f":"AND(#REF!,\"VEseujBko5w=\")","v":{"$error":"#REF!"}},{"$f":"AND(#REF!,\"VEseujBko50=\")","v":{"$error":"#REF!"}},{"$f":"AND(#REF!,\"VEseujBko54=\")","v":{"$error":"#REF!"}},{"$f":"AND(#REF!,\"VEseujBko58=\")","v":{"$error":"#REF!"}},{"$f":"AND(#REF!,\"VEseujBko6A=\")","v":{"$error":"#REF!"}},{"$f":"AND(#REF!,\"VEseujBko6E=\")","v":{"$error":"#REF!"}},{"$f":"AND(#REF!,\"VEseujBko6I=\")","v":{"$error":"#REF!"}},{"$f":"AND(#REF!,\"VEseujBko6M=\")","v":{"$error":"#REF!"}},{"$f":"AND(#REF!,\"VEseujBko6Q=\")","v":{"$error":"#REF!"}},{"$f":"AND(#REF!,\"VEseujBko6U=\")","v":{"$error":"#REF!"}},{"$f":"AND(#REF!,\"VEseujBko6Y=\")","v":{"$error":"#REF!"}},{"$f":"AND(#REF!,\"VEseujBko6c=\")","v":{"$error":"#REF!"}},{"$f":"AND(#REF!,\"VEseujBko6g=\")","v":{"$error":"#REF!"}},{"$f":"AND(#REF!,\"VEseujBko6k=\")","v":{"$error":"#REF!"}},{"$f":"AND(#REF!,\"VEseujBko6o=\")","v":{"$error":"#REF!"}},{"$f":"AND(#REF!,\"VEseujBko6s=\")","v":{"$error":"#REF!"}},{"$f":"AND(#REF!,\"VEseujBko6w=\")","v":{"$error":"#REF!"}},{"$f":"AND(#REF!,\"VEseujBko60=\")","v":{"$error":"#REF!"}},{"$f":"AND(#REF!,\"VEseujBko64=\")","v":{"$error":"#REF!"}},{"$f":"AND(#REF!,\"VEseujBko68=\")","v":{"$error":"#REF!"}},{"$f":"AND(#REF!,\"VEseujBko7A=\")","v":{"$error":"#REF!"}},{"$f":"AND(#REF!,\"VEseujBko7E=\")","v":{"$error":"#REF!"}},{"$f":"AND(#REF!,\"VEseujBko7I=\")","v":{"$error":"#REF!"}},{"$f":"AND(#REF!,\"VEseujBko7M=\")","v":{"$error":"#REF!"}},{"$f":"AND(#REF!,\"VEseujBko7Q=\")","v":{"$error":"#REF!"}},{"$f":"AND(#REF!,\"VEseujBko7U=\")","v":{"$error":"#REF!"}},{"$f":"AND(#REF!,\"VEseujBko7Y=\")","v":{"$error":"#REF!"}},{"$f":"AND(#REF!,\"VEseujBko7c=\")","v":{"$error":"#REF!"}},{"$f":"AND(#REF!,\"VEseujBko7g=\")","v":{"$error":"#REF!"}},{"$f":"AND(#REF!,\"VEseujBko7k=\")","v":{"$error":"#REF!"}},{"$f":"AND(#REF!,\"VEseujBko7o=\")","v":{"$error":"#REF!"}},{"$f":"AND(#REF!,\"VEseujBko7s=\")","v":{"$error":"#REF!"}},{"$f":"AND(#REF!,\"VEseujBko7w=\")","v":{"$error":"#REF!"}},{"$f":"AND(#REF!,\"VEseujBko70=\")","v":{"$error":"#REF!"}},{"$f":"AND(#REF!,\"VEseujBko74=\")","v":{"$error":"#REF!"}},{"$f":"AND(#REF!,\"VEseujBko78=\")","v":{"$error":"#REF!"}},{"$f":"AND(#REF!,\"VEseujBko8A=\")","v":{"$error":"#REF!"}},{"$f":"AND(#REF!,\"VEseujBko8E=\")","v":{"$error":"#REF!"}},{"$f":"AND(#REF!,\"VEseujBko8I=\")","v":{"$error":"#REF!"}},{"$f":"AND(#REF!,\"VEseujBko8M=\")","v":{"$error":"#REF!"}},{"$f":"AND(#REF!,\"VEseujBko8Q=\")","v":{"$error":"#REF!"}},{"$f":"AND(#REF!,\"VEseujBko8U=\")","v":{"$error":"#REF!"}},{"$f":"AND(#REF!,\"VEseujBko8Y=\")","v":{"$error":"#REF!"}},{"$f":"AND(#REF!,\"VEseujBko8c=\")","v":{"$error":"#REF!"}},{"$f":"AND(#REF!,\"VEseujBko8g=\")","v":{"$error":"#REF!"}},{"$f":"AND(#REF!,\"VEseujBko8k=\")","v":{"$error":"#REF!"}},{"$f":"AND(#REF!,\"VEseujBko8o=\")","v":{"$error":"#REF!"}},{"$f":"AND(#REF!,\"VEseujBko8s=\")","v":{"$error":"#REF!"}},{"$f":"AND(#REF!,\"VEseujBko8w=\")","v":{"$error":"#REF!"}},{"$f":"AND(#REF!,\"VEseujBko80=\")","v":{"$error":"#REF!"}},{"$f":"AND(#REF!,\"VEseujBko84=\")","v":{"$error":"#REF!"}},{"$f":"AND(#REF!,\"VEseujBko88=\")","v":{"$error":"#REF!"}},{"$f":"AND(#REF!,\"VEseujBko9A=\")","v":{"$error":"#REF!"}},{"$f":"AND(#REF!,\"VEseujBko9E=\")","v":{"$error":"#REF!"}},{"$f":"AND(#REF!,\"VEseujBko9I=\")","v":{"$error":"#REF!"}},{"$f":"AND(#REF!,\"VEseujBko9M=\")","v":{"$error":"#REF!"}},{"$f":"AND(#REF!,\"VEseujBko9Q=\")","v":{"$error":"#REF!"}},{"$f":"AND(#REF!,\"VEseujBko9U=\")","v":{"$error":"#REF!"}},{"$f":"AND(#REF!,\"VEseujBko9Y=\")","v":{"$error":"#REF!"}},{"$f":"AND(#REF!,\"VEseujBko9c=\")","v":{"$error":"#REF!"}},{"$f":"AND(#REF!,\"VEseujBko9g=\")","v":{"$error":"#REF!"}},{"$f":"AND(#REF!,\"VEseujBko9k=\")","v":{"$error":"#REF!"}},{"$f":"AND(#REF!,\"VEseujBko9o=\")","v":{"$error":"#REF!"}},{"$f":"AND(#REF!,\"VEseujBko9s=\")","v":{"$error":"#REF!"}},{"$f":"AND(#REF!,\"VEseujBko9w=\")","v":{"$error":"#REF!"}},{"$f":"AND(#REF!,\"VEseujBko90=\")","v":{"$error":"#REF!"}},{"$f":"AND(#REF!,\"VEseujBko94=\")","v":{"$error":"#REF!"}},{"$f":"AND(#REF!,\"VEseujBko98=\")","v":{"$error":"#REF!"}},{"$f":"AND(#REF!,\"VEseujBko+A=\")","v":{"$error":"#REF!"}},{"$f":"AND(#REF!,\"VEseujBko+E=\")","v":{"$error":"#REF!"}},{"$f":"AND(#REF!,\"VEseujBko+I=\")","v":{"$error":"#REF!"}},{"$f":"IF(#REF!,\"VEseujBko+M=\",0)","v":{"$error":"#REF!"}},{"$f":"AND(#REF!,\"VEseujBko+Q=\")","v":{"$error":"#REF!"}},{"$f":"AND(#REF!,\"VEseujBko+U=\")","v":{"$error":"#REF!"}},{"$f":"AND(#REF!,\"VEseujBko+Y=\")","v":{"$error":"#REF!"}},{"$f":"AND(#REF!,\"VEseujBko+c=\")","v":{"$error":"#REF!"}},{"$f":"AND(#REF!,\"VEseujBko+g=\")","v":{"$error":"#REF!"}},{"$f":"AND(#REF!,\"VEseujBko+k=\")","v":{"$error":"#REF!"}},{"$f":"AND(#REF!,\"VEseujBko+o=\")","v":{"$error":"#REF!"}},{"$f":"AND(#REF!,\"VEseujBko+s=\")","v":{"$error":"#REF!"}},{"$f":"AND(#REF!,\"VEseujBko+w=\")","v":{"$error":"#REF!"}},{"$f":"AND(#REF!,\"VEseujBko+0=\")","v":{"$error":"#REF!"}},{"$f":"AND(#REF!,\"VEseujBko+4=\")","v":{"$error":"#REF!"}},{"$f":"AND(#REF!,\"VEseujBko+8=\")","v":{"$error":"#REF!"}},{"$f":"AND(#REF!,\"VEseujBko/A=\")","v":{"$error":"#REF!"}},{"$f":"AND(#REF!,\"VEseujBko/E=\")","v":{"$error":"#REF!"}},{"$f":"AND(#REF!,\"VEseujBko/I=\")","v":{"$error":"#REF!"}},{"$f":"AND(#REF!,\"VEseujBko/M=\")","v":{"$error":"#REF!"}},{"$f":"AND(#REF!,\"VEseujBko/Q=\")","v":{"$error":"#REF!"}},{"$f":"AND(#REF!,\"VEseujBko/U=\")","v":{"$error":"#REF!"}},{"$f":"AND(#REF!,\"VEseujBko/Y=\")","v":{"$error":"#REF!"}},{"$f":"AND(#REF!,\"VEseujBko/c=\")","v":{"$error":"#REF!"}},{"$f":"AND(#REF!,\"VEseujBko/g=\")","v":{"$error":"#REF!"}},{"$f":"AND(#REF!,\"VEseujBko/k=\")","v":{"$error":"#REF!"}},{"$f":"AND(#REF!,\"VEseujBko/o=\")","v":{"$error":"#REF!"}},{"$f":"AND(#REF!,\"VEseujBko/s=\")","v":{"$error":"#REF!"}},{"$f":"AND(#REF!,\"VEseujBko/w=\")","v":{"$error":"#REF!"}},{"$f":"AND(#REF!,\"VEseujBko/0=\")","v":{"$error":"#REF!"}},{"$f":"AND(#REF!,\"VEseujBko/4=\")","v":{"$error":"#REF!"}},{"$f":"AND(#REF!,\"VEseujBko/8=\")","v":{"$error":"#REF!"}}]
[{"$f":"AND(#REF!,\"KHxd9gjRNQA=\")","v":{"$error":"#REF!"}},{"$f":"AND(#REF!,\"KHxd9gjRNQE=\")","v":{"$error":"#REF!"}},{"$f":"AND(#REF!,\"KHxd9gjRNQI=\")","v":{"$error":"#REF!"}},{"$f":"AND(#REF!,\"KHxd9gjRNQM=\")","v":{"$error":"#REF!"}},{"$f":"AND(#REF!,\"KHxd9gjRNQQ=\")","v":{"$error":"#REF!"}},{"$f":"AND(#REF!,\"KHxd9gjRNQU=\")","v":{"$error":"#REF!"}},{"$f":"AND(#REF!,\"KHxd9gjRNQY=\")","v":{"$error":"#REF!"}},{"$f":"AND(#REF!,\"KHxd9gjRNQc=\")","v":{"$error":"#REF!"}},{"$f":"AND(#REF!,\"KHxd9gjRNQg=\")","v":{"$error":"#REF!"}},{"$f":"AND(#REF!,\"KHxd9gjRNQk=\")","v":{"$error":"#REF!"}},{"$f":"AND(#REF!,\"KHxd9gjRNQo=\")","v":{"$error":"#REF!"}},{"$f":"AND(#REF!,\"KHxd9gjRNQs=\")","v":{"$error":"#REF!"}},{"$f":"AND(#REF!,\"KHxd9gjRNQw=\")","v":{"$error":"#REF!"}},{"$f":"AND(#REF!,\"KHxd9gjRNQ0=\")","v":{"$error":"#REF!"}},{"$f":"AND(#REF!,\"KHxd9gjRNQ4=\")","v":{"$error":"#REF!"}},{"$f":"AND(#REF!,\"KHxd9gjRNQ8=\")","v":{"$error":"#REF!"}},{"$f":"AND(#REF!,\"KHxd9gjRNRA=\")","v":{"$error":"#REF!"}},{"$f":"AND(#REF!,\"KHxd9gjRNRE=\")","v":{"$error":"#REF!"}},{"$f":"AND(#REF!,\"KHxd9gjRNRI=\")","v":{"$error":"#REF!"}},{"$f":"AND(#REF!,\"KHxd9gjRNRM=\")","v":{"$error":"#REF!"}},{"$f":"AND(#REF!,\"KHxd9gjRNRQ=\")","v":{"$error":"#REF!"}},{"$f":"AND(#REF!,\"KHxd9gjRNRU=\")","v":{"$error":"#REF!"}},{"$f":"AND(#REF!,\"KHxd9gjRNRY=\")","v":{"$error":"#REF!"}},{"$f":"AND(#REF!,\"KHxd9gjRNRc=\")","v":{"$error":"#REF!"}},{"$f":"AND(#REF!,\"KHxd9gjRNRg=\")","v":{"$error":"#REF!"}},{"$f":"AND(#REF!,\"KHxd9gjRNRk=\")","v":{"$error":"#REF!"}},{"$f":"AND(#REF!,\"KHxd9gjRNRo=\")","v":{"$error":"#REF!"}},{"$f":"AND(#REF!,\"KHxd9gjRNRs=\")","v":{"$error":"#REF!"}},{"$f":"AND(#REF!,\"KHxd9gjRNRw=\")","v":{"$error":"#REF!"}},{"$f":"AND(#REF!,\"KHxd9gjRNR0=\")","v":{"$error":"#REF!"}},{"$f":"AND(#REF!,\"KHxd9gjRNR4=\")","v":{"$error":"#REF!"}},{"$f":"AND(#REF!,\"KHxd9gjRNR8=\")","v":{"$error":"#REF!"}},{"$f":"AND(#REF!,\"KHxd9gjRNSA=\")","v":{"$error":"#REF!"}},{"$f":"AND(#REF!,\"KHxd9gjRNSE=\")","v":{"$error":"#REF!"}},{"$f":"AND(#REF!,\"KHxd9gjRNSI=\")","v":{"$error":"#REF!"}},{"$f":"AND(#REF!,\"KHxd9gjRNSM=\")","v":{"$error":"#REF!"}},{"$f":"AND(#REF!,\"KHxd9gjRNSQ=\")","v":{"$error":"#REF!"}},{"$f":"AND(#REF!,\"KHxd9gjRNSU=\")","v":{"$error":"#REF!"}},{"$f":"AND(#REF!,\"KHxd9gjRNSY=\")","v":{"$error":"#REF!"}},{"$f":"AND(#REF!,\"KHxd9gjRNSc=\")","v":{"$error":"#REF!"}},{"$f":"AND(#REF!,\"KHxd9gjRNSg=\")","v":{"$error":"#REF!"}},{"$f":"AND(#REF!,\"KHxd9gjRNSk=\")","v":{"$error":"#REF!"}},{"$f":"AND(#REF!,\"KHxd9gjRNSo=\")","v":{"$error":"#REF!"}},{"$f":"AND(#REF!,\"KHxd9gjRNSs=\")","v":{"$error":"#REF!"}},{"$f":"AND(#REF!,\"KHxd9gjRNSw=\")","v":{"$error":"#REF!"}},{"$f":"AND(#REF!,\"KHxd9gjRNS0=\")","v":{"$error":"#REF!"}},{"$f":"AND(#REF!,\"KHxd9gjRNS4=\")","v":{"$error":"#REF!"}},{"$f":"AND(#REF!,\"KHxd9gjRNS8=\")","v":{"$error":"#REF!"}},{"$f":"AND(#REF!,\"KHxd9gjRNTA=\")","v":{"$error":"#REF!"}},{"$f":"AND(#REF!,\"KHxd9gjRNTE=\")","v":{"$error":"#REF!"}},{"$f":"AND(#REF!,\"KHxd9gjRNTI=\")","v":{"$error":"#REF!"}},{"$f":"AND(#REF!,\"KHxd9gjRNTM=\")","v":{"$error":"#REF!"}},{"$f":"AND(#REF!,\"KHxd9gjRNTQ=\")","v":{"$error":"#REF!"}},{"$f":"AND(#REF!,\"KHxd9gjRNTU=\")","v":{"$error":"#REF!"}},{"$f":"AND(#REF!,\"KHxd9gjRNTY=\")","v":{"$error":"#REF!"}},{"$f":"AND(#REF!,\"KHxd9gjRNTc=\")","v":{"$error":"#REF!"}},{"$f":"AND(#REF!,\"KHxd9gjRNTg=\")","v":{"$error":"#REF!"}},{"$f":"AND(#REF!,\"KHxd9gjRNTk=\")","v":{"$error":"#REF!"}},{"$f":"AND(#REF!,\"KHxd9gjRNTo=\")","v":{"$error":"#REF!"}},{"$f":"AND(#REF!,\"KHxd9gjRNTs=\")","v":{"$error":"#REF!"}},{"$f":"AND(#REF!,\"KHxd9gjRNTw=\")","v":{"$error":"#REF!"}},{"$f":"AND(#REF!,\"KHxd9gjRNT0=\")","v":{"$error":"#REF!"}},{"$f":"AND(#REF!,\"KHxd9gjRNT4=\")","v":{"$error":"#REF!"}},{"$f":"AND(#REF!,\"KHxd9gjRNT8=\")","v":{"$error":"#REF!"}},{"$f":"AND(#REF!,\"KHxd9gjRNUA=\")","v":{"$error":"#REF!"}},{"$f":"AND(#REF!,\"KHxd9gjRNUE=\")","v":{"$error":"#REF!"}},{"$f":"AND(#REF!,\"KHxd9gjRNUI=\")","v":{"$error":"#REF!"}},{"$f":"AND(#REF!,\"KHxd9gjRNUM=\")","v":{"$error":"#REF!"}},{"$f":"AND(#REF!,\"KHxd9gjRNUQ=\")","v":{"$error":"#REF!"}},{"$f":"AND(#REF!,\"KHxd9gjRNUU=\")","v":{"$error":"#REF!"}},{"$f":"AND(#REF!,\"KHxd9gjRNUY=\")","v":{"$error":"#REF!"}},{"$f":"AND(#REF!,\"KHxd9gjRNUc=\")","v":{"$error":"#REF!"}},{"$f":"AND(#REF!,\"KHxd9gjRNUg=\")","v":{"$error":"#REF!"}},{"$f":"AND(#REF!,\"KHxd9gjRNUk=\")","v":{"$error":"#REF!"}},{"$f":"AND(#REF!,\"KHxd9gjRNUo=\")","v":{"$error":"#REF!"}},{"$f":"AND(#REF!,\"KHxd9gjRNUs=\")","v":{"$error":"#REF!"}},{"$f":"AND(#REF!,\"KHxd9gjRNUw=\")","v":{"$error":"#REF!"}},{"$f":"AND(#REF!,\"KHxd9gjRNU0=\")","v":{"$error":"#REF!"}},{"$f":"AND(#REF!,\"KHxd9gjRNU4=\")","v":{"$error":"#REF!"}},{"$f":"AND(#REF!,\"KHxd9gjRNU8=\")","v":{"$error":"#REF!"}},{"$f":"AND(#REF!,\"KHxd9gjRNVA=\")","v":{"$error":"#REF!"}},{"$f":"AND(#REF!,\"KHxd9gjRNVE=\")","v":{"$error":"#REF!"}},{"$f":"AND(#REF!,\"KHxd9gjRNVI=\")","v":{"$error":"#REF!"}},{"$f":"AND(#REF!,\"KHxd9gjRNVM=\")","v":{"$error":"#REF!"}},{"$f":"AND(#REF!,\"KHxd9gjRNVQ=\")","v":{"$error":"#REF!"}},{"$f":"AND(#REF!,\"KHxd9gjRNVU=\")","v":{"$error":"#REF!"}},{"$f":"AND(#REF!,\"KHxd9gjRNVY=\")","v":{"$error":"#REF!"}},{"$f":"AND(#REF!,\"KHxd9gjRNVc=\")","v":{"$error":"#REF!"}},{"$f":"AND(#REF!,\"KHxd9gjRNVg=\")","v":{"$error":"#REF!"}},{"$f":"AND(#REF!,\"KHxd9gjRNVk=\")","v":{"$error":"#REF!"}},{"$f":"AND(#REF!,\"KHxd9gjRNVo=\")","v":{"$error":"#REF!"}},{"$f":"AND(#REF!,\"KHxd9gjRNVs=\")","v":{"$error":"#REF!"}},{"$f":"AND(#REF!,\"KHxd9gjRNVw=\")","v":{"$error":"#REF!"}},{"$f":"AND(#REF!,\"KHxd9gjRNV0=\")","v":{"$error":"#REF!"}},{"$f":"AND(#REF!,\"KHxd9gjRNV4=\")","v":{"$error":"#REF!"}},{"$f":"AND(#REF!,\"KHxd9gjRNV8=\")","v":{"$error":"#REF!"}},{"$f":"AND(#REF!,\"KHxd9gjRNWA=\")","v":{"$error":"#REF!"}},{"$f":"AND(#REF!,\"KHxd9gjRNWE=\")","v":{"$error":"#REF!"}},{"$f":"AND(#REF!,\"KHxd9gjRNWI=\")","v":{"$error":"#REF!"}},{"$f":"AND(#REF!,\"KHxd9gjRNWM=\")","v":{"$error":"#REF!"}},{"$f":"AND(#REF!,\"KHxd9gjRNWQ=\")","v":{"$error":"#REF!"}},{"$f":"AND(#REF!,\"KHxd9gjRNWU=\")","v":{"$error":"#REF!"}},{"$f":"AND(#REF!,\"KHxd9gjRNWY=\")","v":{"$error":"#REF!"}},{"$f":"AND(#REF!,\"KHxd9gjRNWc=\")","v":{"$error":"#REF!"}},{"$f":"AND(#REF!,\"KHxd9gjRNWg=\")","v":{"$error":"#REF!"}},{"$f":"AND(#REF!,\"KHxd9gjRNWk=\")","v":{"$error":"#REF!"}},{"$f":"AND(#REF!,\"KHxd9gjRNWo=\")","v":{"$error":"#REF!"}},{"$f":"AND(#REF!,\"KHxd9gjRNWs=\")","v":{"$error":"#REF!"}},{"$f":"AND(#REF!,\"KHxd9gjRNWw=\")","v":{"$error":"#REF!"}},{"$f":"AND(#REF!,\"KHxd9gjRNW0=\")","v":{"$error":"#REF!"}},{"$f":"AND(#REF!,\"KHxd9gjRNW4=\")","v":{"$error":"#REF!"}},{"$f":"AND(#REF!,\"KHxd9gjRNW8=\")","v":{"$error":"#REF!"}},{"$f":"AND(#REF!,\"KHxd9gjRNXA=\")","v":{"$error":"#REF!"}},{"$f":"AND(#REF!,\"KHxd9gjRNXE=\")","v":{"$error":"#REF!"}},{"$f":"AND(#REF!,\"KHxd9gjRNXI=\")","v":{"$error":"#REF!"}},{"$f":"AND(#REF!,\"KHxd9gjRNXM=\")","v":{"$error":"#REF!"}},{"$f":"AND(#REF!,\"KHxd9gjRNXQ=\")","v":{"$error":"#REF!"}},{"$f":"AND(#REF!,\"KHxd9gjRNXU=\")","v":{"$error":"#REF!"}},{"$f":"AND(#REF!,\"KHxd9gjRNXY=\")","v":{"$error":"#REF!"}},{"$f":"AND(#REF!,\"KHxd9gjRNXc=\")","v":{"$error":"#REF!"}},{"$f":"AND(#REF!,\"KHxd9gjRNXg=\")","v":{"$error":"#REF!"}},{"$f":"AND(#REF!,\"KHxd9gjRNXk=\")","v":{"$error":"#REF!"}},{"$f":"AND(#REF!,\"KHxd9gjRNXo=\")","v":{"$error":"#REF!"}},{"$f":"AND(#REF!,\"KHxd9gjRNXs=\")","v":{"$error":"#REF!"}},{"$f":"AND(#REF!,\"KHxd9gjRNXw=\")","v":{"$error":"#REF!"}},{"$f":"AND(#REF!,\"KHxd9gjRNX0=\")","v":{"$error":"#REF!"}},{"$f":"AND(#REF!,\"KHxd9gjRNX4=\")","v":{"$error":"#REF!"}},{"$f":"AND(#REF!,\"KHxd9gjRNX8=\")","v":{"$error":"#REF!"}},{"$f":"AND(#REF!,\"KHxd9gjRNYA=\")","v":{"$error":"#REF!"}},{"$f":"AND(#REF!,\"KHxd9gjRNYE=\")","v":{"$error":"#REF!"}},{"$f":"AND(#REF!,\"KHxd9gjRNYI=\")","v":{"$error":"#REF!"}},{"$f":"AND(#REF!,\"KHxd9gjRNYM=\")","v":{"$error":"#REF!"}},{"$f":"AND(#REF!,\"KHxd9gjRNYQ=\")","v":{"$error":"#REF!"}},{"$f":"AND(#REF!,\"KHxd9gjRNYU=\")","v":{"$error":"#REF!"}},{"$f":"AND(#REF!,\"KHxd9gjRNYY=\")","v":{"$error":"#REF!"}},{"$f":"AND(#REF!,\"KHxd9gjRNYc=\")","v":{"$error":"#REF!"}},{"$f":"AND(#REF!,\"KHxd9gjRNYg=\")","v":{"$error":"#REF!"}},{"$f":"AND(#REF!,\"KHxd9gjRNYk=\")","v":{"$error":"#REF!"}},{"$f":"AND(#REF!,\"KHxd9gjRNYo=\")","v":{"$error":"#REF!"}},{"$f":"AND(#REF!,\"KHxd9gjRNYs=\")","v":{"$error":"#REF!"}},{"$f":"AND(#REF!,\"KHxd9gjRNYw=\")","v":{"$error":"#REF!"}},{"$f":"AND(#REF!,\"KHxd9gjRNY0=\")","v":{"$error":"#REF!"}},{"$f":"AND(#REF!,\"KHxd9gjRNY4=\")","v":{"$error":"#REF!"}},{"$f":"AND(#REF!,\"KHxd9gjRNY8=\")","v":{"$error":"#REF!"}},{"$f":"AND(#REF!,\"KHxd9gjRNZA=\")","v":{"$error":"#REF!"}},{"$f":"AND(#REF!,\"KHxd9gjRNZE=\")","v":{"$error":"#REF!"}},{"$f":"AND(#REF!,\"KHxd9gjRNZI=\")","v":{"$error":"#REF!"}},{"$f":"AND(#REF!,\"KHxd9gjRNZM=\")","v":{"$error":"#REF!"}},{"$f":"AND(#REF!,\"KHxd9gjRNZQ=\")","v":{"$error":"#REF!"}},{"$f":"AND(#REF!,\"KHxd9gjRNZU=\")","v":{"$error":"#REF!"}},{"$f":"AND(#REF!,\"KHxd9gjRNZY=\")","v":{"$error":"#REF!"}},{"$f":"AND(#REF!,\"KHxd9gjRNZc=\")","v":{"$error":"#REF!"}},{"$f":"AND(#REF!,\"KHxd9gjRNZg=\")","v":{"$error":"#REF!"}},{"$f":"AND(#REF!,\"KHxd9gjRNZk=\")","v":{"$error":"#REF!"}},{"$f":"AND(#REF!,\"KHxd9gjRNZo=\")","v":{"$error":"#REF!"}},{"$f":"AND(#REF!,\"KHxd9gjRNZs=\")","v":{"$error":"#REF!"}},{"$f":"AND(#REF!,\"KHxd9gjRNZw=\")","v":{"$error":"#REF!"}},{"$f":"AND(#REF!,\"KHxd9gjRNZ0=\")","v":{"$error":"#REF!"}},{"$f":"AND(#REF!,\"KHxd9gjRNZ4=\")","v":{"$error":"#REF!"}},{"$f":"AND(#REF!,\"KHxd9gjRNZ8=\")","v":{"$error":"#REF!"}},{"$f":"AND(#REF!,\"KHxd9gjRNaA=\")","v":{"$error":"#REF!"}},{"$f":"AND(#REF!,\"KHxd9gjRNaE=\")","v":{"$error":"#REF!"}},{"$f":"AND(#REF!,\"KHxd9gjRNaI=\")","v":{"$error":"#REF!"}},{"$f":"AND(#REF!,\"KHxd9gjRNaM=\")","v":{"$error":"#REF!"}},{"$f":"AND(#REF!,\"KHxd9gjRNaQ=\")","v":{"$error":"#REF!"}},{"$f":"AND(#REF!,\"KHxd9gjRNaU=\")","v":{"$error":"#REF!"}},{"$f":"AND(#REF!,\"KHxd9gjRNaY=\")","v":{"$error":"#REF!"}},{"$f":"AND(#REF!,\"KHxd9gjRNac=\")","v":{"$error":"#REF!"}},{"$f":"AND(#REF!,\"KHxd9gjRNag=\")","v":{"$error":"#REF!"}},{"$f":"AND(#REF!,\"KHxd9gjRNak=\")","v":{"$error":"#REF!"}},{"$f":"IF(#REF!,\"KHxd9gjRNao=\",0)","v":{"$error":"#REF!"}},{"$f":"AND(#REF!,\"KHxd9gjRNas=\")","v":{"$error":"#REF!"}},{"$f":"AND(#REF!,\"KHxd9gjRNaw=\")","v":{"$error":"#REF!"}},{"$f":"AND(#REF!,\"KHxd9gjRNa0=\")","v":{"$error":"#REF!"}},{"$f":"AND(#REF!,\"KHxd9gjRNa4=\")","v":{"$error":"#REF!"}},{"$f":"AND(#REF!,\"KHxd9gjRNa8=\")","v":{"$error":"#REF!"}},{"$f":"AND(#REF!,\"KHxd9gjRNbA=\")","v":{"$error":"#REF!"}},{"$f":"AND(#REF!,\"KHxd9gjRNbE=\")","v":{"$error":"#REF!"}},{"$f":"AND(#REF!,\"KHxd9gjRNbI=\")","v":{"$error":"#REF!"}},{"$f":"AND(#REF!,\"KHxd9gjRNbM=\")","v":{"$error":"#REF!"}},{"$f":"AND(#REF!,\"KHxd9gjRNbQ=\")","v":{"$error":"#REF!"}},{"$f":"AND(#REF!,\"KHxd9gjRNbU=\")","v":{"$error":"#REF!"}},{"$f":"AND(#REF!,\"KHxd9gjRNbY=\")","v":{"$error":"#REF!"}},{"$f":"AND(#REF!,\"KHxd9gjRNbc=\")","v":{"$error":"#REF!"}},{"$f":"AND(#REF!,\"KHxd9gjRNbg=\")","v":{"$error":"#REF!"}},{"$f":"AND(#REF!,\"KHxd9gjRNbk=\")","v":{"$error":"#REF!"}},{"$f":"AND(#REF!,\"KHxd9gjRNbo=\")","v":{"$error":"#REF!"}},{"$f":"AND(#REF!,\"KHxd9gjRNbs=\")","v":{"$error":"#REF!"}},{"$f":"AND(#REF!,\"KHxd9gjRNbw=\")","v":{"$error":"#REF!"}},{"$f":"AND(#REF!,\"KHxd9gjRNb0=\")","v":{"$error":"#REF!"}},{"$f":"AND(#REF!,\"KHxd9gjRNb4=\")","v":{"$error":"#REF!"}},{"$f":"AND(#REF!,\"KHxd9gjRNb8=\")","v":{"$error":"#REF!"}},{"$f":"AND(#REF!,\"KHxd9gjRNcA=\")","v":{"$error":"#REF!"}},{"$f":"AND(#REF!,\"KHxd9gjRNcE=\")","v":{"$error":"#REF!"}},{"$f":"AND(#REF!,\"KHxd9gjRNcI=\")","v":{"$error":"#REF!"}},{"$f":"AND(#REF!,\"KHxd9gjRNcM=\")","v":{"$error":"#REF!"}},{"$f":"AND(#REF!,\"KHxd9gjRNcQ=\")","v":{"$error":"#REF!"}},{"$f":"AND(#REF!,\"KHxd9gjRNcU=\")","v":{"$error":"#REF!"}},{"$f":"AND(#REF!,\"KHxd9gjRNcY=\")","v":{"$error":"#REF!"}},{"$f":"AND(#REF!,\"KHxd9gjRNcc=\")","v":{"$error":"#REF!"}},{"$f":"AND(#REF!,\"KHxd9gjRNcg=\")","v":{"$error":"#REF!"}},{"$f":"AND(#REF!,\"KHxd9gjRNck=\")","v":{"$error":"#REF!"}},{"$f":"AND(#REF!,\"KHxd9gjRNco=\")","v":{"$error":"#REF!"}},{"$f":"AND(#REF!,\"KHxd9gjRNcs=\")","v":{"$error":"#REF!"}},{"$f":"AND(#REF!,\"KHxd9gjRNcw=\")","v":{"$error":"#REF!"}},{"$f":"AND(#REF!,\"KHxd9gjRNc0=\")","v":{"$error":"#REF!"}},{"$f":"AND(#REF!,\"KHxd9gjRNc4=\")","v":{"$error":"#REF!"}},{"$f":"AND(#REF!,\"KHxd9gjRNc8=\")","v":{"$error":"#REF!"}},{"$f":"AND(#REF!,\"KHxd9gjRNdA=\")","v":{"$error":"#REF!"}},{"$f":"AND(#REF!,\"KHxd9gjRNdE=\")","v":{"$error":"#REF!"}},{"$f":"AND(#REF!,\"KHxd9gjRNdI=\")","v":{"$error":"#REF!"}},{"$f":"AND(#REF!,\"KHxd9gjRNdM=\")","v":{"$error":"#REF!"}},{"$f":"AND(#REF!,\"KHxd9gjRNdQ=\")","v":{"$error":"#REF!"}},{"$f":"AND(#REF!,\"KHxd9gjRNdU=\")","v":{"$error":"#REF!"}},{"$f":"AND(#REF!,\"KHxd9gjRNdY=\")","v":{"$error":"#REF!"}},{"$f":"AND(#REF!,\"KHxd9gjRNdc=\")","v":{"$error":"#REF!"}},{"$f":"AND(#REF!,\"KHxd9gjRNdg=\")","v":{"$error":"#REF!"}},{"$f":"AND(#REF!,\"KHxd9gjRNdk=\")","v":{"$error":"#REF!"}},{"$f":"AND(#REF!,\"KHxd9gjRNdo=\")","v":{"$error":"#REF!"}},{"$f":"AND(#REF!,\"KHxd9gjRNds=\")","v":{"$error":"#REF!"}},{"$f":"AND(#REF!,\"KHxd9gjRNdw=\")","v":{"$error":"#REF!"}},{"$f":"AND(#REF!,\"KHxd9gjRNd0=\")","v":{"$error":"#REF!"}},{"$f":"AND(#REF!,\"KHxd9gjRNd4=\")","v":{"$error":"#REF!"}},{"$f":"AND(#REF!,\"KHxd9gjRNd8=\")","v":{"$error":"#REF!"}},{"$f":"AND(#REF!,\"KHxd9gjRNeA=\")","v":{"$error":"#REF!"}},{"$f":"AND(#REF!,\"KHxd9gjRNeE=\")","v":{"$error":"#REF!"}},{"$f":"AND(#REF!,\"KHxd9gjRNeI=\")","v":{"$error":"#REF!"}},{"$f":"AND(#REF!,\"KHxd9gjRNeM=\")","v":{"$error":"#REF!"}},{"$f":"AND(#REF!,\"KHxd9gjRNeQ=\")","v":{"$error":"#REF!"}},{"$f":"AND(#REF!,\"KHxd9gjRNeU=\")","v":{"$error":"#REF!"}},{"$f":"AND(#REF!,\"KHxd9gjRNeY=\")","v":{"$error":"#REF!"}},{"$f":"AND(#REF!,\"KHxd9gjRNec=\")","v":{"$error":"#REF!"}},{"$f":"AND(#REF!,\"KHxd9gjRNeg=\")","v":{"$error":"#REF!"}},{"$f":"AND(#REF!,\"KHxd9gjRNek=\")","v":{"$error":"#REF!"}},{"$f":"AND(#REF!,\"KHxd9gjRNeo=\")","v":{"$error":"#REF!"}},{"$f":"AND(#REF!,\"KHxd9gjRNes=\")","v":{"$error":"#REF!"}},{"$f":"AND(#REF!,\"KHxd9gjRNew=\")","v":{"$error":"#REF!"}},{"$f":"AND(#REF!,\"KHxd9gjRNe0=\")","v":{"$error":"#REF!"}},{"$f":"AND(#REF!,\"KHxd9gjRNe4=\")","v":{"$error":"#REF!"}},{"$f":"AND(#REF!,\"KHxd9gjRNe8=\")","v":{"$error":"#REF!"}},{"$f":"AND(#REF!,\"KHxd9gjRNfA=\")","v":{"$error":"#REF!"}},{"$f":"AND(#REF!,\"KHxd9gjRNfE=\")","v":{"$error":"#REF!"}},{"$f":"AND(#REF!,\"KHxd9gjRNfI=\")","v":{"$error":"#REF!"}},{"$f":"AND(#REF!,\"KHxd9gjRNfM=\")","v":{"$error":"#REF!"}},{"$f":"AND(#REF!,\"KHxd9gjRNfQ=\")","v":{"$error":"#REF!"}},{"$f":"AND(#REF!,\"KHxd9gjRNfU=\")","v":{"$error":"#REF!"}},{"$f":"AND(#REF!,\"KHxd9gjRNfY=\")","v":{"$error":"#REF!"}},{"$f":"AND(#REF!,\"KHxd9gjRNfc=\")","v":{"$error":"#REF!"}},{"$f":"AND(#REF!,\"KHxd9gjRNfg=\")","v":{"$error":"#REF!"}},{"$f":"AND(#REF!,\"KHxd9gjRNfk=\")","v":{"$error":"#REF!"}},{"$f":"AND(#REF!,\"KHxd9gjRNfo=\")","v":{"$error":"#REF!"}},{"$f":"AND(#REF!,\"KHxd9gjRNfs=\")","v":{"$error":"#REF!"}},{"$f":"AND(#REF!,\"KHxd9gjRNfw=\")","v":{"$error":"#REF!"}},{"$f":"AND(#REF!,\"KHxd9gjRNf0=\")","v":{"$error":"#REF!"}},{"$f":"AND(#REF!,\"KHxd9gjRNf4=\")","v":{"$error":"#REF!"}},{"$f":"AND(#REF!,\"KHxd9gjRNf8=\")","v":{"$error":"#REF!"}}]
[{"$f":"AND(#REF!,\"AAPiESsgIgA=\")","v":{"$error":"#REF!"}},{"$f":"AND(#REF!,\"AAPiESsgIgE=\")","v":{"$error":"#REF!"}},{"$f":"AND(#REF!,\"AAPiESsgIgI=\")","v":{"$error":"#REF!"}},{"$f":"AND(#REF!,\"AAPiESsgIgM=\")","v":{"$error":"#REF!"}},{"$f":"AND(#REF!,\"AAPiESsgIgQ=\")","v":{"$error":"#REF!"}},{"$f":"AND(#REF!,\"AAPiESsgIgU=\")","v":{"$error":"#REF!"}},{"$f":"AND(#REF!,\"AAPiESsgIgY=\")","v":{"$error":"#REF!"}},{"$f":"AND(#REF!,\"AAPiESsgIgc=\")","v":{"$error":"#REF!"}},{"$f":"AND(#REF!,\"AAPiESsgIgg=\")","v":{"$error":"#REF!"}},{"$f":"AND(#REF!,\"AAPiESsgIgk=\")","v":{"$error":"#REF!"}},{"$f":"AND(#REF!,\"AAPiESsgIgo=\")","v":{"$error":"#REF!"}},{"$f":"AND(#REF!,\"AAPiESsgIgs=\")","v":{"$error":"#REF!"}},{"$f":"AND(#REF!,\"AAPiESsgIgw=\")","v":{"$error":"#REF!"}},{"$f":"AND(#REF!,\"AAPiESsgIg0=\")","v":{"$error":"#REF!"}},{"$f":"AND(#REF!,\"AAPiESsgIg4=\")","v":{"$error":"#REF!"}},{"$f":"AND(#REF!,\"AAPiESsgIg8=\")","v":{"$error":"#REF!"}},{"$f":"AND(#REF!,\"AAPiESsgIhA=\")","v":{"$error":"#REF!"}},{"$f":"AND(#REF!,\"AAPiESsgIhE=\")","v":{"$error":"#REF!"}},{"$f":"AND(#REF!,\"AAPiESsgIhI=\")","v":{"$error":"#REF!"}},{"$f":"AND(#REF!,\"AAPiESsgIhM=\")","v":{"$error":"#REF!"}},{"$f":"AND(#REF!,\"AAPiESsgIhQ=\")","v":{"$error":"#REF!"}},{"$f":"AND(#REF!,\"AAPiESsgIhU=\")","v":{"$error":"#REF!"}},{"$f":"AND(#REF!,\"AAPiESsgIhY=\")","v":{"$error":"#REF!"}},{"$f":"AND(#REF!,\"AAPiESsgIhc=\")","v":{"$error":"#REF!"}},{"$f":"AND(#REF!,\"AAPiESsgIhg=\")","v":{"$error":"#REF!"}},{"$f":"AND(#REF!,\"AAPiESsgIhk=\")","v":{"$error":"#REF!"}},{"$f":"AND(#REF!,\"AAPiESsgIho=\")","v":{"$error":"#REF!"}},{"$f":"AND(#REF!,\"AAPiESsgIhs=\")","v":{"$error":"#REF!"}},{"$f":"AND(#REF!,\"AAPiESsgIhw=\")","v":{"$error":"#REF!"}},{"$f":"AND(#REF!,\"AAPiESsgIh0=\")","v":{"$error":"#REF!"}},{"$f":"AND(#REF!,\"AAPiESsgIh4=\")","v":{"$error":"#REF!"}},{"$f":"AND(#REF!,\"AAPiESsgIh8=\")","v":{"$error":"#REF!"}},{"$f":"AND(#REF!,\"AAPiESsgIiA=\")","v":{"$error":"#REF!"}},{"$f":"AND(#REF!,\"AAPiESsgIiE=\")","v":{"$error":"#REF!"}},{"$f":"AND(#REF!,\"AAPiESsgIiI=\")","v":{"$error":"#REF!"}},{"$f":"AND(#REF!,\"AAPiESsgIiM=\")","v":{"$error":"#REF!"}},{"$f":"AND(#REF!,\"AAPiESsgIiQ=\")","v":{"$error":"#REF!"}},{"$f":"AND(#REF!,\"AAPiESsgIiU=\")","v":{"$error":"#REF!"}},{"$f":"AND(#REF!,\"AAPiESsgIiY=\")","v":{"$error":"#REF!"}},{"$f":"AND(#REF!,\"AAPiESsgIic=\")","v":{"$error":"#REF!"}},{"$f":"AND(#REF!,\"AAPiESsgIig=\")","v":{"$error":"#REF!"}},{"$f":"AND(#REF!,\"AAPiESsgIik=\")","v":{"$error":"#REF!"}},{"$f":"AND(#REF!,\"AAPiESsgIio=\")","v":{"$error":"#REF!"}},{"$f":"AND(#REF!,\"AAPiESsgIis=\")","v":{"$error":"#REF!"}},{"$f":"AND(#REF!,\"AAPiESsgIiw=\")","v":{"$error":"#REF!"}},{"$f":"AND(#REF!,\"AAPiESsgIi0=\")","v":{"$error":"#REF!"}},{"$f":"AND(#REF!,\"AAPiESsgIi4=\")","v":{"$error":"#REF!"}},{"$f":"AND(#REF!,\"AAPiESsgIi8=\")","v":{"$error":"#REF!"}},{"$f":"AND(#REF!,\"AAPiESsgIjA=\")","v":{"$error":"#REF!"}},{"$f":"AND(#REF!,\"AAPiESsgIjE=\")","v":{"$error":"#REF!"}},{"$f":"AND(#REF!,\"AAPiESsgIjI=\")","v":{"$error":"#REF!"}},{"$f":"AND(#REF!,\"AAPiESsgIjM=\")","v":{"$error":"#REF!"}},{"$f":"AND(#REF!,\"AAPiESsgIjQ=\")","v":{"$error":"#REF!"}},{"$f":"AND(#REF!,\"AAPiESsgIjU=\")","v":{"$error":"#REF!"}},{"$f":"AND(#REF!,\"AAPiESsgIjY=\")","v":{"$error":"#REF!"}},{"$f":"AND(#REF!,\"AAPiESsgIjc=\")","v":{"$error":"#REF!"}},{"$f":"AND(#REF!,\"AAPiESsgIjg=\")","v":{"$error":"#REF!"}},{"$f":"AND(#REF!,\"AAPiESsgIjk=\")","v":{"$error":"#REF!"}},{"$f":"AND(#REF!,\"AAPiESsgIjo=\")","v":{"$error":"#REF!"}},{"$f":"AND(#REF!,\"AAPiESsgIjs=\")","v":{"$error":"#REF!"}},{"$f":"AND(#REF!,\"AAPiESsgIjw=\")","v":{"$error":"#REF!"}},{"$f":"AND(#REF!,\"AAPiESsgIj0=\")","v":{"$error":"#REF!"}},{"$f":"AND(#REF!,\"AAPiESsgIj4=\")","v":{"$error":"#REF!"}},{"$f":"AND(#REF!,\"AAPiESsgIj8=\")","v":{"$error":"#REF!"}},{"$f":"AND(#REF!,\"AAPiESsgIkA=\")","v":{"$error":"#REF!"}},{"$f":"AND(#REF!,\"AAPiESsgIkE=\")","v":{"$error":"#REF!"}},{"$f":"AND(#REF!,\"AAPiESsgIkI=\")","v":{"$error":"#REF!"}},{"$f":"AND(#REF!,\"AAPiESsgIkM=\")","v":{"$error":"#REF!"}},{"$f":"AND(#REF!,\"AAPiESsgIkQ=\")","v":{"$error":"#REF!"}},{"$f":"AND(#REF!,\"AAPiESsgIkU=\")","v":{"$error":"#REF!"}},{"$f":"AND(#REF!,\"AAPiESsgIkY=\")","v":{"$error":"#REF!"}},{"$f":"AND(#REF!,\"AAPiESsgIkc=\")","v":{"$error":"#REF!"}},{"$f":"AND(#REF!,\"AAPiESsgIkg=\")","v":{"$error":"#REF!"}},{"$f":"AND(#REF!,\"AAPiESsgIkk=\")","v":{"$error":"#REF!"}},{"$f":"AND(#REF!,\"AAPiESsgIko=\")","v":{"$error":"#REF!"}},{"$f":"AND(#REF!,\"AAPiESsgIks=\")","v":{"$error":"#REF!"}},{"$f":"AND(#REF!,\"AAPiESsgIkw=\")","v":{"$error":"#REF!"}},{"$f":"AND(#REF!,\"AAPiESsgIk0=\")","v":{"$error":"#REF!"}},{"$f":"AND(#REF!,\"AAPiESsgIk4=\")","v":{"$error":"#REF!"}},{"$f":"AND(#REF!,\"AAPiESsgIk8=\")","v":{"$error":"#REF!"}},{"$f":"AND(#REF!,\"AAPiESsgIlA=\")","v":{"$error":"#REF!"}},{"$f":"AND(#REF!,\"AAPiESsgIlE=\")","v":{"$error":"#REF!"}},{"$f":"AND(#REF!,\"AAPiESsgIlI=\")","v":{"$error":"#REF!"}},{"$f":"AND(#REF!,\"AAPiESsgIlM=\")","v":{"$error":"#REF!"}},{"$f":"AND(#REF!,\"AAPiESsgIlQ=\")","v":{"$error":"#REF!"}},{"$f":"AND(#REF!,\"AAPiESsgIlU=\")","v":{"$error":"#REF!"}},{"$f":"AND(#REF!,\"AAPiESsgIlY=\")","v":{"$error":"#REF!"}},{"$f":"AND(#REF!,\"AAPiESsgIlc=\")","v":{"$error":"#REF!"}},{"$f":"AND(#REF!,\"AAPiESsgIlg=\")","v":{"$error":"#REF!"}},{"$f":"AND(#REF!,\"AAPiESsgIlk=\")","v":{"$error":"#REF!"}},{"$f":"AND(#REF!,\"AAPiESsgIlo=\")","v":{"$error":"#REF!"}},{"$f":"AND(#REF!,\"AAPiESsgIls=\")","v":{"$error":"#REF!"}},{"$f":"AND(#REF!,\"AAPiESsgIlw=\")","v":{"$error":"#REF!"}},{"$f":"AND(#REF!,\"AAPiESsgIl0=\")","v":{"$error":"#REF!"}},{"$f":"AND(#REF!,\"AAPiESsgIl4=\")","v":{"$error":"#REF!"}},{"$f":"AND(#REF!,\"AAPiESsgIl8=\")","v":{"$error":"#REF!"}},{"$f":"AND(#REF!,\"AAPiESsgImA=\")","v":{"$error":"#REF!"}},{"$f":"AND(#REF!,\"AAPiESsgImE=\")","v":{"$error":"#REF!"}},{"$f":"AND(#REF!,\"AAPiESsgImI=\")","v":{"$error":"#REF!"}},{"$f":"AND(#REF!,\"AAPiESsgImM=\")","v":{"$error":"#REF!"}},{"$f":"AND(#REF!,\"AAPiESsgImQ=\")","v":{"$error":"#REF!"}},{"$f":"AND(#REF!,\"AAPiESsgImU=\")","v":{"$error":"#REF!"}},{"$f":"AND(#REF!,\"AAPiESsgImY=\")","v":{"$error":"#REF!"}},{"$f":"AND(#REF!,\"AAPiESsgImc=\")","v":{"$error":"#REF!"}},{"$f":"AND(#REF!,\"AAPiESsgImg=\")","v":{"$error":"#REF!"}},{"$f":"AND(#REF!,\"AAPiESsgImk=\")","v":{"$error":"#REF!"}},{"$f":"AND(#REF!,\"AAPiESsgImo=\")","v":{"$error":"#REF!"}},{"$f":"AND(#REF!,\"AAPiESsgIms=\")","v":{"$error":"#REF!"}},{"$f":"AND(#REF!,\"AAPiESsgImw=\")","v":{"$error":"#REF!"}},{"$f":"AND(#REF!,\"AAPiESsgIm0=\")","v":{"$error":"#REF!"}},{"$f":"AND(#REF!,\"AAPiESsgIm4=\")","v":{"$error":"#REF!"}},{"$f":"AND(#REF!,\"AAPiESsgIm8=\")","v":{"$error":"#REF!"}},{"$f":"AND(#REF!,\"AAPiESsgInA=\")","v":{"$error":"#REF!"}},{"$f":"IF(#REF!,\"AAPiESsgInE=\",0)","v":{"$error":"#REF!"}},{"$f":"AND(#REF!,\"AAPiESsgInI=\")","v":{"$error":"#REF!"}},{"$f":"AND(#REF!,\"AAPiESsgInM=\")","v":{"$error":"#REF!"}},{"$f":"AND(#REF!,\"AAPiESsgInQ=\")","v":{"$error":"#REF!"}},{"$f":"AND(#REF!,\"AAPiESsgInU=\")","v":{"$error":"#REF!"}},{"$f":"AND(#REF!,\"AAPiESsgInY=\")","v":{"$error":"#REF!"}},{"$f":"AND(#REF!,\"AAPiESsgInc=\")","v":{"$error":"#REF!"}},{"$f":"AND(#REF!,\"AAPiESsgIng=\")","v":{"$error":"#REF!"}},{"$f":"AND(#REF!,\"AAPiESsgInk=\")","v":{"$error":"#REF!"}},{"$f":"AND(#REF!,\"AAPiESsgIno=\")","v":{"$error":"#REF!"}},{"$f":"AND(#REF!,\"AAPiESsgIns=\")","v":{"$error":"#REF!"}},{"$f":"AND(#REF!,\"AAPiESsgInw=\")","v":{"$error":"#REF!"}},{"$f":"AND(#REF!,\"AAPiESsgIn0=\")","v":{"$error":"#REF!"}},{"$f":"AND(#REF!,\"AAPiESsgIn4=\")","v":{"$error":"#REF!"}},{"$f":"AND(#REF!,\"AAPiESsgIn8=\")","v":{"$error":"#REF!"}},{"$f":"AND(#REF!,\"AAPiESsgIoA=\")","v":{"$error":"#REF!"}},{"$f":"AND(#REF!,\"AAPiESsgIoE=\")","v":{"$error":"#REF!"}},{"$f":"AND(#REF!,\"AAPiESsgIoI=\")","v":{"$error":"#REF!"}},{"$f":"AND(#REF!,\"AAPiESsgIoM=\")","v":{"$error":"#REF!"}},{"$f":"AND(#REF!,\"AAPiESsgIoQ=\")","v":{"$error":"#REF!"}},{"$f":"AND(#REF!,\"AAPiESsgIoU=\")","v":{"$error":"#REF!"}},{"$f":"AND(#REF!,\"AAPiESsgIoY=\")","v":{"$error":"#REF!"}},{"$f":"AND(#REF!,\"AAPiESsgIoc=\")","v":{"$error":"#REF!"}},{"$f":"AND(#REF!,\"AAPiESsgIog=\")","v":{"$error":"#REF!"}},{"$f":"AND(#REF!,\"AAPiESsgIok=\")","v":{"$error":"#REF!"}},{"$f":"AND(#REF!,\"AAPiESsgIoo=\")","v":{"$error":"#REF!"}},{"$f":"AND(#REF!,\"AAPiESsgIos=\")","v":{"$error":"#REF!"}},{"$f":"AND(#REF!,\"AAPiESsgIow=\")","v":{"$error":"#REF!"}},{"$f":"AND(#REF!,\"AAPiESsgIo0=\")","v":{"$error":"#REF!"}},{"$f":"AND(#REF!,\"AAPiESsgIo4=\")","v":{"$error":"#REF!"}},{"$f":"AND(#REF!,\"AAPiESsgIo8=\")","v":{"$error":"#REF!"}},{"$f":"AND(#REF!,\"AAPiESsgIpA=\")","v":{"$error":"#REF!"}},{"$f":"AND(#REF!,\"AAPiESsgIpE=\")","v":{"$error":"#REF!"}},{"$f":"AND(#REF!,\"AAPiESsgIpI=\")","v":{"$error":"#REF!"}},{"$f":"AND(#REF!,\"AAPiESsgIpM=\")","v":{"$error":"#REF!"}},{"$f":"AND(#REF!,\"AAPiESsgIpQ=\")","v":{"$error":"#REF!"}},{"$f":"AND(#REF!,\"AAPiESsgIpU=\")","v":{"$error":"#REF!"}},{"$f":"AND(#REF!,\"AAPiESsgIpY=\")","v":{"$error":"#REF!"}},{"$f":"AND(#REF!,\"AAPiESsgIpc=\")","v":{"$error":"#REF!"}},{"$f":"AND(#REF!,\"AAPiESsgIpg=\")","v":{"$error":"#REF!"}},{"$f":"AND(#REF!,\"AAPiESsgIpk=\")","v":{"$error":"#REF!"}},{"$f":"AND(#REF!,\"AAPiESsgIpo=\")","v":{"$error":"#REF!"}},{"$f":"AND(#REF!,\"AAPiESsgIps=\")","v":{"$error":"#REF!"}},{"$f":"AND(#REF!,\"AAPiESsgIpw=\")","v":{"$error":"#REF!"}},{"$f":"AND(#REF!,\"AAPiESsgIp0=\")","v":{"$error":"#REF!"}},{"$f":"AND(#REF!,\"AAPiESsgIp4=\")","v":{"$error":"#REF!"}},{"$f":"AND(#REF!,\"AAPiESsgIp8=\")","v":{"$error":"#REF!"}},{"$f":"AND(#REF!,\"AAPiESsgIqA=\")","v":{"$error":"#REF!"}},{"$f":"AND(#REF!,\"AAPiESsgIqE=\")","v":{"$error":"#REF!"}},{"$f":"AND(#REF!,\"AAPiESsgIqI=\")","v":{"$error":"#REF!"}},{"$f":"AND(#REF!,\"AAPiESsgIqM=\")","v":{"$error":"#REF!"}},{"$f":"AND(#REF!,\"AAPiESsgIqQ=\")","v":{"$error":"#REF!"}},{"$f":"AND(#REF!,\"AAPiESsgIqU=\")","v":{"$error":"#REF!"}},{"$f":"AND(#REF!,\"AAPiESsgIqY=\")","v":{"$error":"#REF!"}},{"$f":"AND(#REF!,\"AAPiESsgIqc=\")","v":{"$error":"#REF!"}},{"$f":"AND(#REF!,\"AAPiESsgIqg=\")","v":{"$error":"#REF!"}},{"$f":"AND(#REF!,\"AAPiESsgIqk=\")","v":{"$error":"#REF!"}},{"$f":"AND(#REF!,\"AAPiESsgIqo=\")","v":{"$error":"#REF!"}},{"$f":"AND(#REF!,\"AAPiESsgIqs=\")","v":{"$error":"#REF!"}},{"$f":"AND(#REF!,\"AAPiESsgIqw=\")","v":{"$error":"#REF!"}},{"$f":"AND(#REF!,\"AAPiESsgIq0=\")","v":{"$error":"#REF!"}},{"$f":"AND(#REF!,\"AAPiESsgIq4=\")","v":{"$error":"#REF!"}},{"$f":"AND(#REF!,\"AAPiESsgIq8=\")","v":{"$error":"#REF!"}},{"$f":"AND(#REF!,\"AAPiESsgIrA=\")","v":{"$error":"#REF!"}},{"$f":"AND(#REF!,\"AAPiESsgIrE=\")","v":{"$error":"#REF!"}},{"$f":"AND(#REF!,\"AAPiESsgIrI=\")","v":{"$error":"#REF!"}},{"$f":"AND(#REF!,\"AAPiESsgIrM=\")","v":{"$error":"#REF!"}},{"$f":"AND(#REF!,\"AAPiESsgIrQ=\")","v":{"$error":"#REF!"}},{"$f":"AND(#REF!,\"AAPiESsgIrU=\")","v":{"$error":"#REF!"}},{"$f":"AND(#REF!,\"AAPiESsgIrY=\")","v":{"$error":"#REF!"}},{"$f":"AND(#REF!,\"AAPiESsgIrc=\")","v":{"$error":"#REF!"}},{"$f":"AND(#REF!,\"AAPiESsgIrg=\")","v":{"$error":"#REF!"}},{"$f":"AND(#REF!,\"AAPiESsgIrk=\")","v":{"$error":"#REF!"}},{"$f":"AND(#REF!,\"AAPiESsgIro=\")","v":{"$error":"#REF!"}},{"$f":"AND(#REF!,\"AAPiESsgIrs=\")","v":{"$error":"#REF!"}},{"$f":"AND(#REF!,\"AAPiESsgIrw=\")","v":{"$error":"#REF!"}},{"$f":"AND(#REF!,\"AAPiESsgIr0=\")","v":{"$error":"#REF!"}},{"$f":"AND(#REF!,\"AAPiESsgIr4=\")","v":{"$error":"#REF!"}},{"$f":"AND(#REF!,\"AAPiESsgIr8=\")","v":{"$error":"#REF!"}},{"$f":"AND(#REF!,\"AAPiESsgIsA=\")","v":{"$error":"#REF!"}},{"$f":"AND(#REF!,\"AAPiESsgIsE=\")","v":{"$error":"#REF!"}},{"$f":"AND(#REF!,\"AAPiESsgIsI=\")","v":{"$error":"#REF!"}},{"$f":"AND(#REF!,\"AAPiESsgIsM=\")","v":{"$error":"#REF!"}},{"$f":"AND(#REF!,\"AAPiESsgIsQ=\")","v":{"$error":"#REF!"}},{"$f":"AND(#REF!,\"AAPiESsgIsU=\")","v":{"$error":"#REF!"}},{"$f":"AND(#REF!,\"AAPiESsgIsY=\")","v":{"$error":"#REF!"}},{"$f":"AND(#REF!,\"AAPiESsgIsc=\")","v":{"$error":"#REF!"}},{"$f":"AND(#REF!,\"AAPiESsgIsg=\")","v":{"$error":"#REF!"}},{"$f":"AND(#REF!,\"AAPiESsgIsk=\")","v":{"$error":"#REF!"}},{"$f":"AND(#REF!,\"AAPiESsgIso=\")","v":{"$error":"#REF!"}},{"$f":"AND(#REF!,\"AAPiESsgIss=\")","v":{"$error":"#REF!"}},{"$f":"AND(#REF!,\"AAPiESsgIsw=\")","v":{"$error":"#REF!"}},{"$f":"AND(#REF!,\"AAPiESsgIs0=\")","v":{"$error":"#REF!"}},{"$f":"AND(#REF!,\"AAPiESsgIs4=\")","v":{"$error":"#REF!"}},{"$f":"AND(#REF!,\"AAPiESsgIs8=\")","v":{"$error":"#REF!"}},{"$f":"AND(#REF!,\"AAPiESsgItA=\")","v":{"$error":"#REF!"}},{"$f":"AND(#REF!,\"AAPiESsgItE=\")","v":{"$error":"#REF!"}},{"$f":"AND(#REF!,\"AAPiESsgItI=\")","v":{"$error":"#REF!"}},{"$f":"AND(#REF!,\"AAPiESsgItM=\")","v":{"$error":"#REF!"}},{"$f":"AND(#REF!,\"AAPiESsgItQ=\")","v":{"$error":"#REF!"}},{"$f":"AND(#REF!,\"AAPiESsgItU=\")","v":{"$error":"#REF!"}},{"$f":"AND(#REF!,\"AAPiESsgItY=\")","v":{"$error":"#REF!"}},{"$f":"AND(#REF!,\"AAPiESsgItc=\")","v":{"$error":"#REF!"}},{"$f":"AND(#REF!,\"AAPiESsgItg=\")","v":{"$error":"#REF!"}},{"$f":"AND(#REF!,\"AAPiESsgItk=\")","v":{"$error":"#REF!"}},{"$f":"AND(#REF!,\"AAPiESsgIto=\")","v":{"$error":"#REF!"}},{"$f":"AND(#REF!,\"AAPiESsgIts=\")","v":{"$error":"#REF!"}},{"$f":"AND(#REF!,\"AAPiESsgItw=\")","v":{"$error":"#REF!"}},{"$f":"AND(#REF!,\"AAPiESsgIt0=\")","v":{"$error":"#REF!"}},{"$f":"AND(#REF!,\"AAPiESsgIt4=\")","v":{"$error":"#REF!"}},{"$f":"AND(#REF!,\"AAPiESsgIt8=\")","v":{"$error":"#REF!"}},{"$f":"AND(#REF!,\"AAPiESsgIuA=\")","v":{"$error":"#REF!"}},{"$f":"AND(#REF!,\"AAPiESsgIuE=\")","v":{"$error":"#REF!"}},{"$f":"AND(#REF!,\"AAPiESsgIuI=\")","v":{"$error":"#REF!"}},{"$f":"AND(#REF!,\"AAPiESsgIuM=\")","v":{"$error":"#REF!"}},{"$f":"AND(#REF!,\"AAPiESsgIuQ=\")","v":{"$error":"#REF!"}},{"$f":"AND(#REF!,\"AAPiESsgIuU=\")","v":{"$error":"#REF!"}},{"$f":"AND(#REF!,\"AAPiESsgIuY=\")","v":{"$error":"#REF!"}},{"$f":"AND(#REF!,\"AAPiESsgIuc=\")","v":{"$error":"#REF!"}},{"$f":"AND(#REF!,\"AAPiESsgIug=\")","v":{"$error":"#REF!"}},{"$f":"AND(#REF!,\"AAPiESsgIuk=\")","v":{"$error":"#REF!"}},{"$f":"AND(#REF!,\"AAPiESsgIuo=\")","v":{"$error":"#REF!"}},{"$f":"AND(#REF!,\"AAPiESsgIus=\")","v":{"$error":"#REF!"}},{"$f":"AND(#REF!,\"AAPiESsgIuw=\")","v":{"$error":"#REF!"}},{"$f":"AND(#REF!,\"AAPiESsgIu0=\")","v":{"$error":"#REF!"}},{"$f":"AND(#REF!,\"AAPiESsgIu4=\")","v":{"$error":"#REF!"}},{"$f":"AND(#REF!,\"AAPiESsgIu8=\")","v":{"$error":"#REF!"}},{"$f":"AND(#REF!,\"AAPiESsgIvA=\")","v":{"$error":"#REF!"}},{"$f":"AND(#REF!,\"AAPiESsgIvE=\")","v":{"$error":"#REF!"}},{"$f":"AND(#REF!,\"AAPiESsgIvI=\")","v":{"$error":"#REF!"}},{"$f":"AND(#REF!,\"AAPiESsgIvM=\")","v":{"$error":"#REF!"}},{"$f":"AND(#REF!,\"AAPiESsgIvQ=\")","v":{"$error":"#REF!"}},{"$f":"AND(#REF!,\"AAPiESsgIvU=\")","v":{"$error":"#REF!"}},{"$f":"AND(#REF!,\"AAPiESsgIvY=\")","v":{"$error":"#REF!"}},{"$f":"AND(#REF!,\"AAPiESsgIvc=\")","v":{"$error":"#REF!"}},{"$f":"AND(#REF!,\"AAPiESsgIvg=\")","v":{"$error":"#REF!"}},{"$f":"AND(#REF!,\"AAPiESsgIvk=\")","v":{"$error":"#REF!"}},{"$f":"AND(#REF!,\"AAPiESsgIvo=\")","v":{"$error":"#REF!"}},{"$f":"AND(#REF!,\"AAPiESsgIvs=\")","v":{"$error":"#REF!"}},{"$f":"AND(#REF!,\"AAPiESsgIvw=\")","v":{"$error":"#REF!"}},{"$f":"AND(#REF!,\"AAPiESsgIv0=\")","v":{"$error":"#REF!"}},{"$f":"AND(#REF!,\"AAPiESsgIv4=\")","v":{"$error":"#REF!"}},{"$f":"AND(#REF!,\"AAPiESsgIv8=\")","v":{"$error":"#REF!"}}]
[{"$f":"AND(#REF!,\"cLR4uX1CQAA=\")","v":{"$error":"#REF!"}},{"$f":"AND(#REF!,\"cLR4uX1CQAE=\")","v":{"$error":"#REF!"}},{"$f":"AND(#REF!,\"cLR4uX1CQAI=\")","v":{"$error":"#REF!"}},{"$f":"AND(#REF!,\"cLR4uX1CQAM=\")","v":{"$error":"#REF!"}},{"$f":"AND(#REF!,\"cLR4uX1CQAQ=\")","v":{"$error":"#REF!"}},{"$f":"AND(#REF!,\"cLR4uX1CQAU=\")","v":{"$error":"#REF!"}},{"$f":"AND(#REF!,\"cLR4uX1CQAY=\")","v":{"$error":"#REF!"}},{"$f":"AND(#REF!,\"cLR4uX1CQAc=\")","v":{"$error":"#REF!"}},{"$f":"AND(#REF!,\"cLR4uX1CQAg=\")","v":{"$error":"#REF!"}},{"$f":"AND(#REF!,\"cLR4uX1CQAk=\")","v":{"$error":"#REF!"}},{"$f":"AND(#REF!,\"cLR4uX1CQAo=\")","v":{"$error":"#REF!"}},{"$f":"AND(#REF!,\"cLR4uX1CQAs=\")","v":{"$error":"#REF!"}},{"$f":"AND(#REF!,\"cLR4uX1CQAw=\")","v":{"$error":"#REF!"}},{"$f":"AND(#REF!,\"cLR4uX1CQA0=\")","v":{"$error":"#REF!"}},{"$f":"AND(#REF!,\"cLR4uX1CQA4=\")","v":{"$error":"#REF!"}},{"$f":"AND(#REF!,\"cLR4uX1CQA8=\")","v":{"$error":"#REF!"}},{"$f":"AND(#REF!,\"cLR4uX1CQBA=\")","v":{"$error":"#REF!"}},{"$f":"AND(#REF!,\"cLR4uX1CQBE=\")","v":{"$error":"#REF!"}},{"$f":"AND(#REF!,\"cLR4uX1CQBI=\")","v":{"$error":"#REF!"}},{"$f":"AND(#REF!,\"cLR4uX1CQBM=\")","v":{"$error":"#REF!"}},{"$f":"AND(#REF!,\"cLR4uX1CQBQ=\")","v":{"$error":"#REF!"}},{"$f":"AND(#REF!,\"cLR4uX1CQBU=\")","v":{"$error":"#REF!"}},{"$f":"AND(#REF!,\"cLR4uX1CQBY=\")","v":{"$error":"#REF!"}},{"$f":"AND(#REF!,\"cLR4uX1CQBc=\")","v":{"$error":"#REF!"}},{"$f":"AND(#REF!,\"cLR4uX1CQBg=\")","v":{"$error":"#REF!"}},{"$f":"AND(#REF!,\"cLR4uX1CQBk=\")","v":{"$error":"#REF!"}},{"$f":"AND(#REF!,\"cLR4uX1CQBo=\")","v":{"$error":"#REF!"}},{"$f":"AND(#REF!,\"cLR4uX1CQBs=\")","v":{"$error":"#REF!"}},{"$f":"AND(#REF!,\"cLR4uX1CQBw=\")","v":{"$error":"#REF!"}},{"$f":"AND(#REF!,\"cLR4uX1CQB0=\")","v":{"$error":"#REF!"}},{"$f":"AND(#REF!,\"cLR4uX1CQB4=\")","v":{"$error":"#REF!"}},{"$f":"AND(#REF!,\"cLR4uX1CQB8=\")","v":{"$error":"#REF!"}},{"$f":"AND(#REF!,\"cLR4uX1CQCA=\")","v":{"$error":"#REF!"}},{"$f":"AND(#REF!,\"cLR4uX1CQCE=\")","v":{"$error":"#REF!"}},{"$f":"AND(#REF!,\"cLR4uX1CQCI=\")","v":{"$error":"#REF!"}},{"$f":"AND(#REF!,\"cLR4uX1CQCM=\")","v":{"$error":"#REF!"}},{"$f":"AND(#REF!,\"cLR4uX1CQCQ=\")","v":{"$error":"#REF!"}},{"$f":"AND(#REF!,\"cLR4uX1CQCU=\")","v":{"$error":"#REF!"}},{"$f":"AND(#REF!,\"cLR4uX1CQCY=\")","v":{"$error":"#REF!"}},{"$f":"AND(#REF!,\"cLR4uX1CQCc=\")","v":{"$error":"#REF!"}},{"$f":"AND(#REF!,\"cLR4uX1CQCg=\")","v":{"$error":"#REF!"}},{"$f":"AND(#REF!,\"cLR4uX1CQCk=\")","v":{"$error":"#REF!"}},{"$f":"AND(#REF!,\"cLR4uX1CQCo=\")","v":{"$error":"#REF!"}},{"$f":"AND(#REF!,\"cLR4uX1CQCs=\")","v":{"$error":"#REF!"}},{"$f":"AND(#REF!,\"cLR4uX1CQCw=\")","v":{"$error":"#REF!"}},{"$f":"AND(#REF!,\"cLR4uX1CQC0=\")","v":{"$error":"#REF!"}},{"$f":"AND(#REF!,\"cLR4uX1CQC4=\")","v":{"$error":"#REF!"}},{"$f":"AND(#REF!,\"cLR4uX1CQC8=\")","v":{"$error":"#REF!"}},{"$f":"AND(#REF!,\"cLR4uX1CQDA=\")","v":{"$error":"#REF!"}},{"$f":"AND(#REF!,\"cLR4uX1CQDE=\")","v":{"$error":"#REF!"}},{"$f":"AND(#REF!,\"cLR4uX1CQDI=\")","v":{"$error":"#REF!"}},{"$f":"AND(#REF!,\"cLR4uX1CQDM=\")","v":{"$error":"#REF!"}},{"$f":"AND(#REF!,\"cLR4uX1CQDQ=\")","v":{"$error":"#REF!"}},{"$f":"AND(#REF!,\"cLR4uX1CQDU=\")","v":{"$error":"#REF!"}},{"$f":"AND(#REF!,\"cLR4uX1CQDY=\")","v":{"$error":"#REF!"}},{"$f":"AND(#REF!,\"cLR4uX1CQDc=\")","v":{"$error":"#REF!"}},{"$f":"IF(#REF!,\"cLR4uX1CQDg=\",0)","v":{"$error":"#REF!"}},{"$f":"AND(#REF!,\"cLR4uX1CQDk=\")","v":{"$error":"#REF!"}},{"$f":"AND(#REF!,\"cLR4uX1CQDo=\")","v":{"$error":"#REF!"}},{"$f":"AND(#REF!,\"cLR4uX1CQDs=\")","v":{"$error":"#REF!"}},{"$f":"AND(#REF!,\"cLR4uX1CQDw=\")","v":{"$error":"#REF!"}},{"$f":"AND(#REF!,\"cLR4uX1CQD0=\")","v":{"$error":"#REF!"}},{"$f":"AND(#REF!,\"cLR4uX1CQD4=\")","v":{"$error":"#REF!"}},{"$f":"AND(#REF!,\"cLR4uX1CQD8=\")","v":{"$error":"#REF!"}},{"$f":"AND(#REF!,\"cLR4uX1CQEA=\")","v":{"$error":"#REF!"}},{"$f":"AND(#REF!,\"cLR4uX1CQEE=\")","v":{"$error":"#REF!"}},{"$f":"AND(#REF!,\"cLR4uX1CQEI=\")","v":{"$error":"#REF!"}},{"$f":"AND(#REF!,\"cLR4uX1CQEM=\")","v":{"$error":"#REF!"}},{"$f":"AND(#REF!,\"cLR4uX1CQEQ=\")","v":{"$error":"#REF!"}},{"$f":"AND(#REF!,\"cLR4uX1CQEU=\")","v":{"$error":"#REF!"}},{"$f":"AND(#REF!,\"cLR4uX1CQEY=\")","v":{"$error":"#REF!"}},{"$f":"AND(#REF!,\"cLR4uX1CQEc=\")","v":{"$error":"#REF!"}},{"$f":"AND(#REF!,\"cLR4uX1CQEg=\")","v":{"$error":"#REF!"}},{"$f":"AND(#REF!,\"cLR4uX1CQEk=\")","v":{"$error":"#REF!"}},{"$f":"AND(#REF!,\"cLR4uX1CQEo=\")","v":{"$error":"#REF!"}},{"$f":"AND(#REF!,\"cLR4uX1CQEs=\")","v":{"$error":"#REF!"}},{"$f":"AND(#REF!,\"cLR4uX1CQEw=\")","v":{"$error":"#REF!"}},{"$f":"AND(#REF!,\"cLR4uX1CQE0=\")","v":{"$error":"#REF!"}},{"$f":"AND(#REF!,\"cLR4uX1CQE4=\")","v":{"$error":"#REF!"}},{"$f":"AND(#REF!,\"cLR4uX1CQE8=\")","v":{"$error":"#REF!"}},{"$f":"AND(#REF!,\"cLR4uX1CQFA=\")","v":{"$error":"#REF!"}},{"$f":"AND(#REF!,\"cLR4uX1CQFE=\")","v":{"$error":"#REF!"}},{"$f":"AND(#REF!,\"cLR4uX1CQFI=\")","v":{"$error":"#REF!"}},{"$f":"AND(#REF!,\"cLR4uX1CQFM=\")","v":{"$error":"#REF!"}},{"$f":"AND(#REF!,\"cLR4uX1CQFQ=\")","v":{"$error":"#REF!"}},{"$f":"AND(#REF!,\"cLR4uX1CQFU=\")","v":{"$error":"#REF!"}},{"$f":"AND(#REF!,\"cLR4uX1CQFY=\")","v":{"$error":"#REF!"}},{"$f":"AND(#REF!,\"cLR4uX1CQFc=\")","v":{"$error":"#REF!"}},{"$f":"AND(#REF!,\"cLR4uX1CQFg=\")","v":{"$error":"#REF!"}},{"$f":"AND(#REF!,\"cLR4uX1CQFk=\")","v":{"$error":"#REF!"}},{"$f":"AND(#REF!,\"cLR4uX1CQFo=\")","v":{"$error":"#REF!"}},{"$f":"AND(#REF!,\"cLR4uX1CQFs=\")","v":{"$error":"#REF!"}},{"$f":"AND(#REF!,\"cLR4uX1CQFw=\")","v":{"$error":"#REF!"}},{"$f":"AND(#REF!,\"cLR4uX1CQF0=\")","v":{"$error":"#REF!"}},{"$f":"AND(#REF!,\"cLR4uX1CQF4=\")","v":{"$error":"#REF!"}},{"$f":"AND(#REF!,\"cLR4uX1CQF8=\")","v":{"$error":"#REF!"}},{"$f":"AND(#REF!,\"cLR4uX1CQGA=\")","v":{"$error":"#REF!"}},{"$f":"AND(#REF!,\"cLR4uX1CQGE=\")","v":{"$error":"#REF!"}},{"$f":"AND(#REF!,\"cLR4uX1CQGI=\")","v":{"$error":"#REF!"}},{"$f":"AND(#REF!,\"cLR4uX1CQGM=\")","v":{"$error":"#REF!"}},{"$f":"AND(#REF!,\"cLR4uX1CQGQ=\")","v":{"$error":"#REF!"}},{"$f":"AND(#REF!,\"cLR4uX1CQGU=\")","v":{"$error":"#REF!"}},{"$f":"AND(#REF!,\"cLR4uX1CQGY=\")","v":{"$error":"#REF!"}},{"$f":"AND(#REF!,\"cLR4uX1CQGc=\")","v":{"$error":"#REF!"}},{"$f":"AND(#REF!,\"cLR4uX1CQGg=\")","v":{"$error":"#REF!"}},{"$f":"AND(#REF!,\"cLR4uX1CQGk=\")","v":{"$error":"#REF!"}},{"$f":"AND(#REF!,\"cLR4uX1CQGo=\")","v":{"$error":"#REF!"}},{"$f":"AND(#REF!,\"cLR4uX1CQGs=\")","v":{"$error":"#REF!"}},{"$f":"AND(#REF!,\"cLR4uX1CQGw=\")","v":{"$error":"#REF!"}},{"$f":"AND(#REF!,\"cLR4uX1CQG0=\")","v":{"$error":"#REF!"}},{"$f":"AND(#REF!,\"cLR4uX1CQG4=\")","v":{"$error":"#REF!"}},{"$f":"AND(#REF!,\"cLR4uX1CQG8=\")","v":{"$error":"#REF!"}},{"$f":"AND(#REF!,\"cLR4uX1CQHA=\")","v":{"$error":"#REF!"}},{"$f":"AND(#REF!,\"cLR4uX1CQHE=\")","v":{"$error":"#REF!"}},{"$f":"AND(#REF!,\"cLR4uX1CQHI=\")","v":{"$error":"#REF!"}},{"$f":"AND(#REF!,\"cLR4uX1CQHM=\")","v":{"$error":"#REF!"}},{"$f":"AND(#REF!,\"cLR4uX1CQHQ=\")","v":{"$error":"#REF!"}},{"$f":"AND(#REF!,\"cLR4uX1CQHU=\")","v":{"$error":"#REF!"}},{"$f":"AND(#REF!,\"cLR4uX1CQHY=\")","v":{"$error":"#REF!"}},{"$f":"AND(#REF!,\"cLR4uX1CQHc=\")","v":{"$error":"#REF!"}},{"$f":"AND(#REF!,\"cLR4uX1CQHg=\")","v":{"$error":"#REF!"}},{"$f":"AND(#REF!,\"cLR4uX1CQHk=\")","v":{"$error":"#REF!"}},{"$f":"AND(#REF!,\"cLR4uX1CQHo=\")","v":{"$error":"#REF!"}},{"$f":"AND(#REF!,\"cLR4uX1CQHs=\")","v":{"$error":"#REF!"}},{"$f":"AND(#REF!,\"cLR4uX1CQHw=\")","v":{"$error":"#REF!"}},{"$f":"AND(#REF!,\"cLR4uX1CQH0=\")","v":{"$error":"#REF!"}},{"$f":"AND(#REF!,\"cLR4uX1CQH4=\")","v":{"$error":"#REF!"}},{"$f":"AND(#REF!,\"cLR4uX1CQH8=\")","v":{"$error":"#REF!"}},{"$f":"AND(#REF!,\"cLR4uX1CQIA=\")","v":{"$error":"#REF!"}},{"$f":"AND(#REF!,\"cLR4uX1CQIE=\")","v":{"$error":"#REF!"}},{"$f":"AND(#REF!,\"cLR4uX1CQII=\")","v":{"$error":"#REF!"}},{"$f":"AND(#REF!,\"cLR4uX1CQIM=\")","v":{"$error":"#REF!"}},{"$f":"AND(#REF!,\"cLR4uX1CQIQ=\")","v":{"$error":"#REF!"}},{"$f":"AND(#REF!,\"cLR4uX1CQIU=\")","v":{"$error":"#REF!"}},{"$f":"AND(#REF!,\"cLR4uX1CQIY=\")","v":{"$error":"#REF!"}},{"$f":"AND(#REF!,\"cLR4uX1CQIc=\")","v":{"$error":"#REF!"}},{"$f":"AND(#REF!,\"cLR4uX1CQIg=\")","v":{"$error":"#REF!"}},{"$f":"AND(#REF!,\"cLR4uX1CQIk=\")","v":{"$error":"#REF!"}},{"$f":"AND(#REF!,\"cLR4uX1CQIo=\")","v":{"$error":"#REF!"}},{"$f":"AND(#REF!,\"cLR4uX1CQIs=\")","v":{"$error":"#REF!"}},{"$f":"AND(#REF!,\"cLR4uX1CQIw=\")","v":{"$error":"#REF!"}},{"$f":"AND(#REF!,\"cLR4uX1CQI0=\")","v":{"$error":"#REF!"}},{"$f":"AND(#REF!,\"cLR4uX1CQI4=\")","v":{"$error":"#REF!"}},{"$f":"AND(#REF!,\"cLR4uX1CQI8=\")","v":{"$error":"#REF!"}},{"$f":"AND(#REF!,\"cLR4uX1CQJA=\")","v":{"$error":"#REF!"}},{"$f":"AND(#REF!,\"cLR4uX1CQJE=\")","v":{"$error":"#REF!"}},{"$f":"AND(#REF!,\"cLR4uX1CQJI=\")","v":{"$error":"#REF!"}},{"$f":"AND(#REF!,\"cLR4uX1CQJM=\")","v":{"$error":"#REF!"}},{"$f":"AND(#REF!,\"cLR4uX1CQJQ=\")","v":{"$error":"#REF!"}},{"$f":"AND(#REF!,\"cLR4uX1CQJU=\")","v":{"$error":"#REF!"}},{"$f":"AND(#REF!,\"cLR4uX1CQJY=\")","v":{"$error":"#REF!"}},{"$f":"AND(#REF!,\"cLR4uX1CQJc=\")","v":{"$error":"#REF!"}},{"$f":"AND(#REF!,\"cLR4uX1CQJg=\")","v":{"$error":"#REF!"}},{"$f":"AND(#REF!,\"cLR4uX1CQJk=\")","v":{"$error":"#REF!"}},{"$f":"AND(#REF!,\"cLR4uX1CQJo=\")","v":{"$error":"#REF!"}},{"$f":"AND(#REF!,\"cLR4uX1CQJs=\")","v":{"$error":"#REF!"}},{"$f":"AND(#REF!,\"cLR4uX1CQJw=\")","v":{"$error":"#REF!"}},{"$f":"AND(#REF!,\"cLR4uX1CQJ0=\")","v":{"$error":"#REF!"}},{"$f":"AND(#REF!,\"cLR4uX1CQJ4=\")","v":{"$error":"#REF!"}},{"$f":"AND(#REF!,\"cLR4uX1CQJ8=\")","v":{"$error":"#REF!"}},{"$f":"AND(#REF!,\"cLR4uX1CQKA=\")","v":{"$error":"#REF!"}},{"$f":"AND(#REF!,\"cLR4uX1CQKE=\")","v":{"$error":"#REF!"}},{"$f":"AND(#REF!,\"cLR4uX1CQKI=\")","v":{"$error":"#REF!"}},{"$f":"AND(#REF!,\"cLR4uX1CQKM=\")","v":{"$error":"#REF!"}},{"$f":"AND(#REF!,\"cLR4uX1CQKQ=\")","v":{"$error":"#REF!"}},{"$f":"AND(#REF!,\"cLR4uX1CQKU=\")","v":{"$error":"#REF!"}},{"$f":"AND(#REF!,\"cLR4uX1CQKY=\")","v":{"$error":"#REF!"}},{"$f":"AND(#REF!,\"cLR4uX1CQKc=\")","v":{"$error":"#REF!"}},{"$f":"AND(#REF!,\"cLR4uX1CQKg=\")","v":{"$error":"#REF!"}},{"$f":"AND(#REF!,\"cLR4uX1CQKk=\")","v":{"$error":"#REF!"}},{"$f":"AND(#REF!,\"cLR4uX1CQKo=\")","v":{"$error":"#REF!"}},{"$f":"AND(#REF!,\"cLR4uX1CQKs=\")","v":{"$error":"#REF!"}},{"$f":"AND(#REF!,\"cLR4uX1CQKw=\")","v":{"$error":"#REF!"}},{"$f":"AND(#REF!,\"cLR4uX1CQK0=\")","v":{"$error":"#REF!"}},{"$f":"AND(#REF!,\"cLR4uX1CQK4=\")","v":{"$error":"#REF!"}},{"$f":"AND(#REF!,\"cLR4uX1CQK8=\")","v":{"$error":"#REF!"}},{"$f":"AND(#REF!,\"cLR4uX1CQLA=\")","v":{"$error":"#REF!"}},{"$f":"AND(#REF!,\"cLR4uX1CQLE=\")","v":{"$error":"#REF!"}},{"$f":"AND(#REF!,\"cLR4uX1CQLI=\")","v":{"$error":"#REF!"}},{"$f":"AND(#REF!,\"cLR4uX1CQLM=\")","v":{"$error":"#REF!"}},{"$f":"AND(#REF!,\"cLR4uX1CQLQ=\")","v":{"$error":"#REF!"}},{"$f":"AND(#REF!,\"cLR4uX1CQLU=\")","v":{"$error":"#REF!"}},{"$f":"AND(#REF!,\"cLR4uX1CQLY=\")","v":{"$error":"#REF!"}},{"$f":"AND(#REF!,\"cLR4uX1CQLc=\")","v":{"$error":"#REF!"}},{"$f":"AND(#REF!,\"cLR4uX1CQLg=\")","v":{"$error":"#REF!"}},{"$f":"AND(#REF!,\"cLR4uX1CQLk=\")","v":{"$error":"#REF!"}},{"$f":"AND(#REF!,\"cLR4uX1CQLo=\")","v":{"$error":"#REF!"}},{"$f":"AND(#REF!,\"cLR4uX1CQLs=\")","v":{"$error":"#REF!"}},{"$f":"AND(#REF!,\"cLR4uX1CQLw=\")","v":{"$error":"#REF!"}},{"$f":"AND(#REF!,\"cLR4uX1CQL0=\")","v":{"$error":"#REF!"}},{"$f":"AND(#REF!,\"cLR4uX1CQL4=\")","v":{"$error":"#REF!"}},{"$f":"AND(#REF!,\"cLR4uX1CQL8=\")","v":{"$error":"#REF!"}},{"$f":"AND(#REF!,\"cLR4uX1CQMA=\")","v":{"$error":"#REF!"}},{"$f":"AND(#REF!,\"cLR4uX1CQME=\")","v":{"$error":"#REF!"}},{"$f":"AND(#REF!,\"cLR4uX1CQMI=\")","v":{"$error":"#REF!"}},{"$f":"AND(#REF!,\"cLR4uX1CQMM=\")","v":{"$error":"#REF!"}},{"$f":"AND(#REF!,\"cLR4uX1CQMQ=\")","v":{"$error":"#REF!"}},{"$f":"AND(#REF!,\"cLR4uX1CQMU=\")","v":{"$error":"#REF!"}},{"$f":"AND(#REF!,\"cLR4uX1CQMY=\")","v":{"$error":"#REF!"}},{"$f":"AND(#REF!,\"cLR4uX1CQMc=\")","v":{"$error":"#REF!"}},{"$f":"AND(#REF!,\"cLR4uX1CQMg=\")","v":{"$error":"#REF!"}},{"$f":"AND(#REF!,\"cLR4uX1CQMk=\")","v":{"$error":"#REF!"}},{"$f":"AND(#REF!,\"cLR4uX1CQMo=\")","v":{"$error":"#REF!"}},{"$f":"AND(#REF!,\"cLR4uX1CQMs=\")","v":{"$error":"#REF!"}},{"$f":"AND(#REF!,\"cLR4uX1CQMw=\")","v":{"$error":"#REF!"}},{"$f":"AND(#REF!,\"cLR4uX1CQM0=\")","v":{"$error":"#REF!"}},{"$f":"AND(#REF!,\"cLR4uX1CQM4=\")","v":{"$error":"#REF!"}},{"$f":"AND(#REF!,\"cLR4uX1CQM8=\")","v":{"$error":"#REF!"}},{"$f":"AND(#REF!,\"cLR4uX1CQNA=\")","v":{"$error":"#REF!"}},{"$f":"AND(#REF!,\"cLR4uX1CQNE=\")","v":{"$error":"#REF!"}},{"$f":"AND(#REF!,\"cLR4uX1CQNI=\")","v":{"$error":"#REF!"}},{"$f":"AND(#REF!,\"cLR4uX1CQNM=\")","v":{"$error":"#REF!"}},{"$f":"AND(#REF!,\"cLR4uX1CQNQ=\")","v":{"$error":"#REF!"}},{"$f":"AND(#REF!,\"cLR4uX1CQNU=\")","v":{"$error":"#REF!"}},{"$f":"AND(#REF!,\"cLR4uX1CQNY=\")","v":{"$error":"#REF!"}},{"$f":"AND(#REF!,\"cLR4uX1CQNc=\")","v":{"$error":"#REF!"}},{"$f":"AND(#REF!,\"cLR4uX1CQNg=\")","v":{"$error":"#REF!"}},{"$f":"AND(#REF!,\"cLR4uX1CQNk=\")","v":{"$error":"#REF!"}},{"$f":"AND(#REF!,\"cLR4uX1CQNo=\")","v":{"$error":"#REF!"}},{"$f":"AND(#REF!,\"cLR4uX1CQNs=\")","v":{"$error":"#REF!"}},{"$f":"AND(#REF!,\"cLR4uX1CQNw=\")","v":{"$error":"#REF!"}},{"$f":"AND(#REF!,\"cLR4uX1CQN0=\")","v":{"$error":"#REF!"}},{"$f":"AND(#REF!,\"cLR4uX1CQN4=\")","v":{"$error":"#REF!"}},{"$f":"AND(#REF!,\"cLR4uX1CQN8=\")","v":{"$error":"#REF!"}},{"$f":"AND(#REF!,\"cLR4uX1CQOA=\")","v":{"$error":"#REF!"}},{"$f":"AND(#REF!,\"cLR4uX1CQOE=\")","v":{"$error":"#REF!"}},{"$f":"AND(#REF!,\"cLR4uX1CQOI=\")","v":{"$error":"#REF!"}},{"$f":"AND(#REF!,\"cLR4uX1CQOM=\")","v":{"$error":"#REF!"}},{"$f":"AND(#REF!,\"cLR4uX1CQOQ=\")","v":{"$error":"#REF!"}},{"$f":"AND(#REF!,\"cLR4uX1CQOU=\")","v":{"$error":"#REF!"}},{"$f":"AND(#REF!,\"cLR4uX1CQOY=\")","v":{"$error":"#REF!"}},{"$f":"AND(#REF!,\"cLR4uX1CQOc=\")","v":{"$error":"#REF!"}},{"$f":"AND(#REF!,\"cLR4uX1CQOg=\")","v":{"$error":"#REF!"}},{"$f":"AND(#REF!,\"cLR4uX1CQOk=\")","v":{"$error":"#REF!"}},{"$f":"AND(#REF!,\"cLR4uX1CQOo=\")","v":{"$error":"#REF!"}},{"$f":"AND(#REF!,\"cLR4uX1CQOs=\")","v":{"$error":"#REF!"}},{"$f":"AND(#REF!,\"cLR4uX1CQOw=\")","v":{"$error":"#REF!"}},{"$f":"AND(#REF!,\"cLR4uX1CQO0=\")","v":{"$error":"#REF!"}},{"$f":"AND(#REF!,\"cLR4uX1CQO4=\")","v":{"$error":"#REF!"}},{"$f":"AND(#REF!,\"cLR4uX1CQO8=\")","v":{"$error":"#REF!"}},{"$f":"AND(#REF!,\"cLR4uX1CQPA=\")","v":{"$error":"#REF!"}},{"$f":"AND(#REF!,\"cLR4uX1CQPE=\")","v":{"$error":"#REF!"}},{"$f":"AND(#REF!,\"cLR4uX1CQPI=\")","v":{"$error":"#REF!"}},{"$f":"AND(#REF!,\"cLR4uX1CQPM=\")","v":{"$error":"#REF!"}},{"$f":"AND(#REF!,\"cLR4uX1CQPQ=\")","v":{"$error":"#REF!"}},{"$f":"AND(#REF!,\"cLR4uX1CQPU=\")","v":{"$error":"#REF!"}},{"$f":"AND(#REF!,\"cLR4uX1CQPY=\")","v":{"$error":"#REF!"}},{"$f":"AND(#REF!,\"cLR4uX1CQPc=\")","v":{"$error":"#REF!"}},{"$f":"AND(#REF!,\"cLR4uX1CQPg=\")","v":{"$error":"#REF!"}},{"$f":"AND(#REF!,\"cLR4uX1CQPk=\")","v":{"$error":"#REF!"}},{"$f":"AND(#REF!,\"cLR4uX1CQPo=\")","v":{"$error":"#REF!"}},{"$f":"AND(#REF!,\"cLR4uX1CQPs=\")","v":{"$error":"#REF!"}},{"$f":"AND(#REF!,\"cLR4uX1CQPw=\")","v":{"$error":"#REF!"}},{"$f":"AND(#REF!,\"cLR4uX1CQP0=\")","v":{"$error":"#REF!"}},{"$f":"AND(#REF!,\"cLR4uX1CQP4=\")","v":{"$error":"#REF!"}},{"$f":"IF(#REF!,\"cLR4uX1CQP8=\",0)","v":{"$error":"#REF!"}}]
[{"$f":"AND(#REF!,\"dUOzcBXqEQA=\")","v":{"$error":"#REF!"}},{"$f":"AND(#REF!,\"dUOzcBXqEQE=\")","v":{"$error":"#REF!"}},{"$f":"AND(#REF!,\"dUOzcBXqEQI=\")","v":{"$error":"#REF!"}},{"$f":"AND(#REF!,\"dUOzcBXqEQM=\")","v":{"$error":"#REF!"}},{"$f":"AND(#REF!,\"dUOzcBXqEQQ=\")","v":{"$error":"#REF!"}},{"$f":"AND(#REF!,\"dUOzcBXqEQU=\")","v":{"$error":"#REF!"}},{"$f":"AND(#REF!,\"dUOzcBXqEQY=\")","v":{"$error":"#REF!"}},{"$f":"AND(#REF!,\"dUOzcBXqEQc=\")","v":{"$error":"#REF!"}},{"$f":"AND(#REF!,\"dUOzcBXqEQg=\")","v":{"$error":"#REF!"}},{"$f":"AND(#REF!,\"dUOzcBXqEQk=\")","v":{"$error":"#REF!"}},{"$f":"AND(#REF!,\"dUOzcBXqEQo=\")","v":{"$error":"#REF!"}},{"$f":"AND(#REF!,\"dUOzcBXqEQs=\")","v":{"$error":"#REF!"}},{"$f":"AND(#REF!,\"dUOzcBXqEQw=\")","v":{"$error":"#REF!"}},{"$f":"AND(#REF!,\"dUOzcBXqEQ0=\")","v":{"$error":"#REF!"}},{"$f":"AND(#REF!,\"dUOzcBXqEQ4=\")","v":{"$error":"#REF!"}},{"$f":"AND(#REF!,\"dUOzcBXqEQ8=\")","v":{"$error":"#REF!"}},{"$f":"AND(#REF!,\"dUOzcBXqERA=\")","v":{"$error":"#REF!"}},{"$f":"AND(#REF!,\"dUOzcBXqERE=\")","v":{"$error":"#REF!"}},{"$f":"AND(#REF!,\"dUOzcBXqERI=\")","v":{"$error":"#REF!"}},{"$f":"AND(#REF!,\"dUOzcBXqERM=\")","v":{"$error":"#REF!"}},{"$f":"AND(#REF!,\"dUOzcBXqERQ=\")","v":{"$error":"#REF!"}},{"$f":"AND(#REF!,\"dUOzcBXqERU=\")","v":{"$error":"#REF!"}},{"$f":"AND(#REF!,\"dUOzcBXqERY=\")","v":{"$error":"#REF!"}},{"$f":"AND(#REF!,\"dUOzcBXqERc=\")","v":{"$error":"#REF!"}},{"$f":"AND(#REF!,\"dUOzcBXqERg=\")","v":{"$error":"#REF!"}},{"$f":"AND(#REF!,\"dUOzcBXqERk=\")","v":{"$error":"#REF!"}},{"$f":"AND(#REF!,\"dUOzcBXqERo=\")","v":{"$error":"#REF!"}},{"$f":"AND(#REF!,\"dUOzcBXqERs=\")","v":{"$error":"#REF!"}},{"$f":"AND(#REF!,\"dUOzcBXqERw=\")","v":{"$error":"#REF!"}},{"$f":"AND(#REF!,\"dUOzcBXqER0=\")","v":{"$error":"#REF!"}},{"$f":"AND(#REF!,\"dUOzcBXqER4=\")","v":{"$error":"#REF!"}},{"$f":"AND(#REF!,\"dUOzcBXqER8=\")","v":{"$error":"#REF!"}},{"$f":"AND(#REF!,\"dUOzcBXqESA=\")","v":{"$error":"#REF!"}},{"$f":"AND(#REF!,\"dUOzcBXqESE=\")","v":{"$error":"#REF!"}},{"$f":"AND(#REF!,\"dUOzcBXqESI=\")","v":{"$error":"#REF!"}},{"$f":"AND(#REF!,\"dUOzcBXqESM=\")","v":{"$error":"#REF!"}},{"$f":"AND(#REF!,\"dUOzcBXqESQ=\")","v":{"$error":"#REF!"}},{"$f":"AND(#REF!,\"dUOzcBXqESU=\")","v":{"$error":"#REF!"}},{"$f":"AND(#REF!,\"dUOzcBXqESY=\")","v":{"$error":"#REF!"}},{"$f":"AND(#REF!,\"dUOzcBXqESc=\")","v":{"$error":"#REF!"}},{"$f":"AND(#REF!,\"dUOzcBXqESg=\")","v":{"$error":"#REF!"}},{"$f":"AND(#REF!,\"dUOzcBXqESk=\")","v":{"$error":"#REF!"}},{"$f":"AND(#REF!,\"dUOzcBXqESo=\")","v":{"$error":"#REF!"}},{"$f":"AND(#REF!,\"dUOzcBXqESs=\")","v":{"$error":"#REF!"}},{"$f":"AND(#REF!,\"dUOzcBXqESw=\")","v":{"$error":"#REF!"}},{"$f":"AND(#REF!,\"dUOzcBXqES0=\")","v":{"$error":"#REF!"}},{"$f":"AND(#REF!,\"dUOzcBXqES4=\")","v":{"$error":"#REF!"}},{"$f":"AND(#REF!,\"dUOzcBXqES8=\")","v":{"$error":"#REF!"}},{"$f":"AND(#REF!,\"dUOzcBXqETA=\")","v":{"$error":"#REF!"}},{"$f":"AND(#REF!,\"dUOzcBXqETE=\")","v":{"$error":"#REF!"}},{"$f":"AND(#REF!,\"dUOzcBXqETI=\")","v":{"$error":"#REF!"}},{"$f":"AND(#REF!,\"dUOzcBXqETM=\")","v":{"$error":"#REF!"}},{"$f":"AND(#REF!,\"dUOzcBXqETQ=\")","v":{"$error":"#REF!"}},{"$f":"AND(#REF!,\"dUOzcBXqETU=\")","v":{"$error":"#REF!"}},{"$f":"AND(#REF!,\"dUOzcBXqETY=\")","v":{"$error":"#REF!"}},{"$f":"AND(#REF!,\"dUOzcBXqETc=\")","v":{"$error":"#REF!"}},{"$f":"AND(#REF!,\"dUOzcBXqETg=\")","v":{"$error":"#REF!"}},{"$f":"AND(#REF!,\"dUOzcBXqETk=\")","v":{"$error":"#REF!"}},{"$f":"AND(#REF!,\"dUOzcBXqETo=\")","v":{"$error":"#REF!"}},{"$f":"AND(#REF!,\"dUOzcBXqETs=\")","v":{"$error":"#REF!"}},{"$f":"AND(#REF!,\"dUOzcBXqETw=\")","v":{"$error":"#REF!"}},{"$f":"AND(#REF!,\"dUOzcBXqET0=\")","v":{"$error":"#REF!"}},{"$f":"AND(#REF!,\"dUOzcBXqET4=\")","v":{"$error":"#REF!"}},{"$f":"AND(#REF!,\"dUOzcBXqET8=\")","v":{"$error":"#REF!"}},{"$f":"AND(#REF!,\"dUOzcBXqEUA=\")","v":{"$error":"#REF!"}},{"$f":"AND(#REF!,\"dUOzcBXqEUE=\")","v":{"$error":"#REF!"}},{"$f":"AND(#REF!,\"dUOzcBXqEUI=\")","v":{"$error":"#REF!"}},{"$f":"AND(#REF!,\"dUOzcBXqEUM=\")","v":{"$error":"#REF!"}},{"$f":"AND(#REF!,\"dUOzcBXqEUQ=\")","v":{"$error":"#REF!"}},{"$f":"AND(#REF!,\"dUOzcBXqEUU=\")","v":{"$error":"#REF!"}},{"$f":"AND(#REF!,\"dUOzcBXqEUY=\")","v":{"$error":"#REF!"}},{"$f":"AND(#REF!,\"dUOzcBXqEUc=\")","v":{"$error":"#REF!"}},{"$f":"AND(#REF!,\"dUOzcBXqEUg=\")","v":{"$error":"#REF!"}},{"$f":"AND(#REF!,\"dUOzcBXqEUk=\")","v":{"$error":"#REF!"}},{"$f":"AND(#REF!,\"dUOzcBXqEUo=\")","v":{"$error":"#REF!"}},{"$f":"AND(#REF!,\"dUOzcBXqEUs=\")","v":{"$error":"#REF!"}},{"$f":"AND(#REF!,\"dUOzcBXqEUw=\")","v":{"$error":"#REF!"}},{"$f":"AND(#REF!,\"dUOzcBXqEU0=\")","v":{"$error":"#REF!"}},{"$f":"AND(#REF!,\"dUOzcBXqEU4=\")","v":{"$error":"#REF!"}},{"$f":"AND(#REF!,\"dUOzcBXqEU8=\")","v":{"$error":"#REF!"}},{"$f":"AND(#REF!,\"dUOzcBXqEVA=\")","v":{"$error":"#REF!"}},{"$f":"AND(#REF!,\"dUOzcBXqEVE=\")","v":{"$error":"#REF!"}},{"$f":"AND(#REF!,\"dUOzcBXqEVI=\")","v":{"$error":"#REF!"}},{"$f":"AND(#REF!,\"dUOzcBXqEVM=\")","v":{"$error":"#REF!"}},{"$f":"AND(#REF!,\"dUOzcBXqEVQ=\")","v":{"$error":"#REF!"}},{"$f":"AND(#REF!,\"dUOzcBXqEVU=\")","v":{"$error":"#REF!"}},{"$f":"AND(#REF!,\"dUOzcBXqEVY=\")","v":{"$error":"#REF!"}},{"$f":"AND(#REF!,\"dUOzcBXqEVc=\")","v":{"$error":"#REF!"}},{"$f":"AND(#REF!,\"dUOzcBXqEVg=\")","v":{"$error":"#REF!"}},{"$f":"AND(#REF!,\"dUOzcBXqEVk=\")","v":{"$error":"#REF!"}},{"$f":"AND(#REF!,\"dUOzcBXqEVo=\")","v":{"$error":"#REF!"}},{"$f":"AND(#REF!,\"dUOzcBXqEVs=\")","v":{"$error":"#REF!"}},{"$f":"AND(#REF!,\"dUOzcBXqEVw=\")","v":{"$error":"#REF!"}},{"$f":"AND(#REF!,\"dUOzcBXqEV0=\")","v":{"$error":"#REF!"}},{"$f":"AND(#REF!,\"dUOzcBXqEV4=\")","v":{"$error":"#REF!"}},{"$f":"AND(#REF!,\"dUOzcBXqEV8=\")","v":{"$error":"#REF!"}},{"$f":"AND(#REF!,\"dUOzcBXqEWA=\")","v":{"$error":"#REF!"}},{"$f":"AND(#REF!,\"dUOzcBXqEWE=\")","v":{"$error":"#REF!"}},{"$f":"AND(#REF!,\"dUOzcBXqEWI=\")","v":{"$error":"#REF!"}},{"$f":"AND(#REF!,\"dUOzcBXqEWM=\")","v":{"$error":"#REF!"}},{"$f":"AND(#REF!,\"dUOzcBXqEWQ=\")","v":{"$error":"#REF!"}},{"$f":"AND(#REF!,\"dUOzcBXqEWU=\")","v":{"$error":"#REF!"}},{"$f":"AND(#REF!,\"dUOzcBXqEWY=\")","v":{"$error":"#REF!"}},{"$f":"AND(#REF!,\"dUOzcBXqEWc=\")","v":{"$error":"#REF!"}},{"$f":"AND(#REF!,\"dUOzcBXqEWg=\")","v":{"$error":"#REF!"}},{"$f":"AND(#REF!,\"dUOzcBXqEWk=\")","v":{"$error":"#REF!"}},{"$f":"AND(#REF!,\"dUOzcBXqEWo=\")","v":{"$error":"#REF!"}},{"$f":"AND(#REF!,\"dUOzcBXqEWs=\")","v":{"$error":"#REF!"}},{"$f":"AND(#REF!,\"dUOzcBXqEWw=\")","v":{"$error":"#REF!"}},{"$f":"AND(#REF!,\"dUOzcBXqEW0=\")","v":{"$error":"#REF!"}},{"$f":"AND(#REF!,\"dUOzcBXqEW4=\")","v":{"$error":"#REF!"}},{"$f":"AND(#REF!,\"dUOzcBXqEW8=\")","v":{"$error":"#REF!"}},{"$f":"AND(#REF!,\"dUOzcBXqEXA=\")","v":{"$error":"#REF!"}},{"$f":"AND(#REF!,\"dUOzcBXqEXE=\")","v":{"$error":"#REF!"}},{"$f":"AND(#REF!,\"dUOzcBXqEXI=\")","v":{"$error":"#REF!"}},{"$f":"AND(#REF!,\"dUOzcBXqEXM=\")","v":{"$error":"#REF!"}},{"$f":"AND(#REF!,\"dUOzcBXqEXQ=\")","v":{"$error":"#REF!"}},{"$f":"AND(#REF!,\"dUOzcBXqEXU=\")","v":{"$error":"#REF!"}},{"$f":"AND(#REF!,\"dUOzcBXqEXY=\")","v":{"$error":"#REF!"}},{"$f":"AND(#REF!,\"dUOzcBXqEXc=\")","v":{"$error":"#REF!"}},{"$f":"AND(#REF!,\"dUOzcBXqEXg=\")","v":{"$error":"#REF!"}},{"$f":"AND(#REF!,\"dUOzcBXqEXk=\")","v":{"$error":"#REF!"}},{"$f":"AND(#REF!,\"dUOzcBXqEXo=\")","v":{"$error":"#REF!"}},{"$f":"AND(#REF!,\"dUOzcBXqEXs=\")","v":{"$error":"#REF!"}},{"$f":"AND(#REF!,\"dUOzcBXqEXw=\")","v":{"$error":"#REF!"}},{"$f":"AND(#REF!,\"dUOzcBXqEX0=\")","v":{"$error":"#REF!"}},{"$f":"AND(#REF!,\"dUOzcBXqEX4=\")","v":{"$error":"#REF!"}},{"$f":"AND(#REF!,\"dUOzcBXqEX8=\")","v":{"$error":"#REF!"}},{"$f":"AND(#REF!,\"dUOzcBXqEYA=\")","v":{"$error":"#REF!"}},{"$f":"AND(#REF!,\"dUOzcBXqEYE=\")","v":{"$error":"#REF!"}},{"$f":"AND(#REF!,\"dUOzcBXqEYI=\")","v":{"$error":"#REF!"}},{"$f":"AND(#REF!,\"dUOzcBXqEYM=\")","v":{"$error":"#REF!"}},{"$f":"AND(#REF!,\"dUOzcBXqEYQ=\")","v":{"$error":"#REF!"}},{"$f":"AND(#REF!,\"dUOzcBXqEYU=\")","v":{"$error":"#REF!"}},{"$f":"AND(#REF!,\"dUOzcBXqEYY=\")","v":{"$error":"#REF!"}},{"$f":"AND(#REF!,\"dUOzcBXqEYc=\")","v":{"$error":"#REF!"}},{"$f":"AND(#REF!,\"dUOzcBXqEYg=\")","v":{"$error":"#REF!"}},{"$f":"AND(#REF!,\"dUOzcBXqEYk=\")","v":{"$error":"#REF!"}},{"$f":"AND(#REF!,\"dUOzcBXqEYo=\")","v":{"$error":"#REF!"}},{"$f":"AND(#REF!,\"dUOzcBXqEYs=\")","v":{"$error":"#REF!"}},{"$f":"AND(#REF!,\"dUOzcBXqEYw=\")","v":{"$error":"#REF!"}},{"$f":"AND(#REF!,\"dUOzcBXqEY0=\")","v":{"$error":"#REF!"}},{"$f":"AND(#REF!,\"dUOzcBXqEY4=\")","v":{"$error":"#REF!"}},{"$f":"AND(#REF!,\"dUOzcBXqEY8=\")","v":{"$error":"#REF!"}},{"$f":"AND(#REF!,\"dUOzcBXqEZA=\")","v":{"$error":"#REF!"}},{"$f":"AND(#REF!,\"dUOzcBXqEZE=\")","v":{"$error":"#REF!"}},{"$f":"AND(#REF!,\"dUOzcBXqEZI=\")","v":{"$error":"#REF!"}},{"$f":"AND(#REF!,\"dUOzcBXqEZM=\")","v":{"$error":"#REF!"}},{"$f":"AND(#REF!,\"dUOzcBXqEZQ=\")","v":{"$error":"#REF!"}},{"$f":"AND(#REF!,\"dUOzcBXqEZU=\")","v":{"$error":"#REF!"}},{"$f":"AND(#REF!,\"dUOzcBXqEZY=\")","v":{"$error":"#REF!"}},{"$f":"AND(#REF!,\"dUOzcBXqEZc=\")","v":{"$error":"#REF!"}},{"$f":"AND(#REF!,\"dUOzcBXqEZg=\")","v":{"$error":"#REF!"}},{"$f":"AND(#REF!,\"dUOzcBXqEZk=\")","v":{"$error":"#REF!"}},{"$f":"AND(#REF!,\"dUOzcBXqEZo=\")","v":{"$error":"#REF!"}},{"$f":"AND(#REF!,\"dUOzcBXqEZs=\")","v":{"$error":"#REF!"}},{"$f":"AND(#REF!,\"dUOzcBXqEZw=\")","v":{"$error":"#REF!"}},{"$f":"AND(#REF!,\"dUOzcBXqEZ0=\")","v":{"$error":"#REF!"}},{"$f":"AND(#REF!,\"dUOzcBXqEZ4=\")","v":{"$error":"#REF!"}},{"$f":"AND(#REF!,\"dUOzcBXqEZ8=\")","v":{"$error":"#REF!"}},{"$f":"AND(#REF!,\"dUOzcBXqEaA=\")","v":{"$error":"#REF!"}},{"$f":"AND(#REF!,\"dUOzcBXqEaE=\")","v":{"$error":"#REF!"}},{"$f":"AND(#REF!,\"dUOzcBXqEaI=\")","v":{"$error":"#REF!"}},{"$f":"AND(#REF!,\"dUOzcBXqEaM=\")","v":{"$error":"#REF!"}},{"$f":"AND(#REF!,\"dUOzcBXqEaQ=\")","v":{"$error":"#REF!"}},{"$f":"AND(#REF!,\"dUOzcBXqEaU=\")","v":{"$error":"#REF!"}},{"$f":"AND(#REF!,\"dUOzcBXqEaY=\")","v":{"$error":"#REF!"}},{"$f":"AND(#REF!,\"dUOzcBXqEac=\")","v":{"$error":"#REF!"}},{"$f":"AND(#REF!,\"dUOzcBXqEag=\")","v":{"$error":"#REF!"}},{"$f":"AND(#REF!,\"dUOzcBXqEak=\")","v":{"$error":"#REF!"}},{"$f":"AND(#REF!,\"dUOzcBXqEao=\")","v":{"$error":"#REF!"}},{"$f":"AND(#REF!,\"dUOzcBXqEas=\")","v":{"$error":"#REF!"}},{"$f":"AND(#REF!,\"dUOzcBXqEaw=\")","v":{"$error":"#REF!"}},{"$f":"AND(#REF!,\"dUOzcBXqEa0=\")","v":{"$error":"#REF!"}},{"$f":"AND(#REF!,\"dUOzcBXqEa4=\")","v":{"$error":"#REF!"}},{"$f":"AND(#REF!,\"dUOzcBXqEa8=\")","v":{"$error":"#REF!"}},{"$f":"AND(#REF!,\"dUOzcBXqEbA=\")","v":{"$error":"#REF!"}},{"$f":"AND(#REF!,\"dUOzcBXqEbE=\")","v":{"$error":"#REF!"}},{"$f":"AND(#REF!,\"dUOzcBXqEbI=\")","v":{"$error":"#REF!"}},{"$f":"AND(#REF!,\"dUOzcBXqEbM=\")","v":{"$error":"#REF!"}},{"$f":"AND(#REF!,\"dUOzcBXqEbQ=\")","v":{"$error":"#REF!"}},{"$f":"AND(#REF!,\"dUOzcBXqEbU=\")","v":{"$error":"#REF!"}},{"$f":"AND(#REF!,\"dUOzcBXqEbY=\")","v":{"$error":"#REF!"}},{"$f":"AND(#REF!,\"dUOzcBXqEbc=\")","v":{"$error":"#REF!"}},{"$f":"AND(#REF!,\"dUOzcBXqEbg=\")","v":{"$error":"#REF!"}},{"$f":"AND(#REF!,\"dUOzcBXqEbk=\")","v":{"$error":"#REF!"}},{"$f":"AND(#REF!,\"dUOzcBXqEbo=\")","v":{"$error":"#REF!"}},{"$f":"AND(#REF!,\"dUOzcBXqEbs=\")","v":{"$error":"#REF!"}},{"$f":"AND(#REF!,\"dUOzcBXqEbw=\")","v":{"$error":"#REF!"}},{"$f":"AND(#REF!,\"dUOzcBXqEb0=\")","v":{"$error":"#REF!"}},{"$f":"AND(#REF!,\"dUOzcBXqEb4=\")","v":{"$error":"#REF!"}},{"$f":"AND(#REF!,\"dUOzcBXqEb8=\")","v":{"$error":"#REF!"}},{"$f":"AND(#REF!,\"dUOzcBXqEcA=\")","v":{"$error":"#REF!"}},{"$f":"AND(#REF!,\"dUOzcBXqEcE=\")","v":{"$error":"#REF!"}},{"$f":"AND(#REF!,\"dUOzcBXqEcI=\")","v":{"$error":"#REF!"}},{"$f":"AND(#REF!,\"dUOzcBXqEcM=\")","v":{"$error":"#REF!"}},{"$f":"AND(#REF!,\"dUOzcBXqEcQ=\")","v":{"$error":"#REF!"}},{"$f":"AND(#REF!,\"dUOzcBXqEcU=\")","v":{"$error":"#REF!"}},{"$f":"IF(#REF!,\"dUOzcBXqEcY=\",0)","v":{"$error":"#REF!"}},{"$f":"AND(#REF!,\"dUOzcBXqEcc=\")","v":{"$error":"#REF!"}},{"$f":"AND(#REF!,\"dUOzcBXqEcg=\")","v":{"$error":"#REF!"}},{"$f":"AND(#REF!,\"dUOzcBXqEck=\")","v":{"$error":"#REF!"}},{"$f":"AND(#REF!,\"dUOzcBXqEco=\")","v":{"$error":"#REF!"}},{"$f":"AND(#REF!,\"dUOzcBXqEcs=\")","v":{"$error":"#REF!"}},{"$f":"AND(#REF!,\"dUOzcBXqEcw=\")","v":{"$error":"#REF!"}},{"$f":"AND(#REF!,\"dUOzcBXqEc0=\")","v":{"$error":"#REF!"}},{"$f":"AND(#REF!,\"dUOzcBXqEc4=\")","v":{"$error":"#REF!"}},{"$f":"AND(#REF!,\"dUOzcBXqEc8=\")","v":{"$error":"#REF!"}},{"$f":"AND(#REF!,\"dUOzcBXqEdA=\")","v":{"$error":"#REF!"}},{"$f":"AND(#REF!,\"dUOzcBXqEdE=\")","v":{"$error":"#REF!"}},{"$f":"AND(#REF!,\"dUOzcBXqEdI=\")","v":{"$error":"#REF!"}},{"$f":"AND(#REF!,\"dUOzcBXqEdM=\")","v":{"$error":"#REF!"}},{"$f":"AND(#REF!,\"dUOzcBXqEdQ=\")","v":{"$error":"#REF!"}},{"$f":"AND(#REF!,\"dUOzcBXqEdU=\")","v":{"$error":"#REF!"}},{"$f":"AND(#REF!,\"dUOzcBXqEdY=\")","v":{"$error":"#REF!"}},{"$f":"AND(#REF!,\"dUOzcBXqEdc=\")","v":{"$error":"#REF!"}},{"$f":"AND(#REF!,\"dUOzcBXqEdg=\")","v":{"$error":"#REF!"}},{"$f":"AND(#REF!,\"dUOzcBXqEdk=\")","v":{"$error":"#REF!"}},{"$f":"AND(#REF!,\"dUOzcBXqEdo=\")","v":{"$error":"#REF!"}},{"$f":"AND(#REF!,\"dUOzcBXqEds=\")","v":{"$error":"#REF!"}},{"$f":"AND(#REF!,\"dUOzcBXqEdw=\")","v":{"$error":"#REF!"}},{"$f":"AND(#REF!,\"dUOzcBXqEd0=\")","v":{"$error":"#REF!"}},{"$f":"AND(#REF!,\"dUOzcBXqEd4=\")","v":{"$error":"#REF!"}},{"$f":"AND(#REF!,\"dUOzcBXqEd8=\")","v":{"$error":"#REF!"}},{"$f":"AND(#REF!,\"dUOzcBXqEeA=\")","v":{"$error":"#REF!"}},{"$f":"AND(#REF!,\"dUOzcBXqEeE=\")","v":{"$error":"#REF!"}},{"$f":"AND(#REF!,\"dUOzcBXqEeI=\")","v":{"$error":"#REF!"}},{"$f":"AND(#REF!,\"dUOzcBXqEeM=\")","v":{"$error":"#REF!"}},{"$f":"AND(#REF!,\"dUOzcBXqEeQ=\")","v":{"$error":"#REF!"}},{"$f":"AND(#REF!,\"dUOzcBXqEeU=\")","v":{"$error":"#REF!"}},{"$f":"AND(#REF!,\"dUOzcBXqEeY=\")","v":{"$error":"#REF!"}},{"$f":"AND(#REF!,\"dUOzcBXqEec=\")","v":{"$error":"#REF!"}},{"$f":"AND(#REF!,\"dUOzcBXqEeg=\")","v":{"$error":"#REF!"}},{"$f":"AND(#REF!,\"dUOzcBXqEek=\")","v":{"$error":"#REF!"}},{"$f":"AND(#REF!,\"dUOzcBXqEeo=\")","v":{"$error":"#REF!"}},{"$f":"AND(#REF!,\"dUOzcBXqEes=\")","v":{"$error":"#REF!"}},{"$f":"AND(#REF!,\"dUOzcBXqEew=\")","v":{"$error":"#REF!"}},{"$f":"AND(#REF!,\"dUOzcBXqEe0=\")","v":{"$error":"#REF!"}},{"$f":"AND(#REF!,\"dUOzcBXqEe4=\")","v":{"$error":"#REF!"}},{"$f":"AND(#REF!,\"dUOzcBXqEe8=\")","v":{"$error":"#REF!"}},{"$f":"AND(#REF!,\"dUOzcBXqEfA=\")","v":{"$error":"#REF!"}},{"$f":"AND(#REF!,\"dUOzcBXqEfE=\")","v":{"$error":"#REF!"}},{"$f":"AND(#REF!,\"dUOzcBXqEfI=\")","v":{"$error":"#REF!"}},{"$f":"AND(#REF!,\"dUOzcBXqEfM=\")","v":{"$error":"#REF!"}},{"$f":"AND(#REF!,\"dUOzcBXqEfQ=\")","v":{"$error":"#REF!"}},{"$f":"AND(#REF!,\"dUOzcBXqEfU=\")","v":{"$error":"#REF!"}},{"$f":"AND(#REF!,\"dUOzcBXqEfY=\")","v":{"$error":"#REF!"}},{"$f":"AND(#REF!,\"dUOzcBXqEfc=\")","v":{"$error":"#REF!"}},{"$f":"AND(#REF!,\"dUOzcBXqEfg=\")","v":{"$error":"#REF!"}},{"$f":"AND(#REF!,\"dUOzcBXqEfk=\")","v":{"$error":"#REF!"}},{"$f":"AND(#REF!,\"dUOzcBXqEfo=\")","v":{"$error":"#REF!"}},{"$f":"AND(#REF!,\"dUOzcBXqEfs=\")","v":{"$error":"#REF!"}},{"$f":"AND(#REF!,\"dUOzcBXqEfw=\")","v":{"$error":"#REF!"}},{"$f":"AND(#REF!,\"dUOzcBXqEf0=\")","v":{"$error":"#REF!"}},{"$f":"AND(#REF!,\"dUOzcBXqEf4=\")","v":{"$error":"#REF!"}},{"$f":"AND(#REF!,\"dUOzcBXqEf8=\")","v":{"$error":"#REF!"}}]
[{"$f":"AND(#REF!,\"aV0KK2n0fwA=\")","v":{"$error":"#REF!"}},{"$f":"AND(#REF!,\"aV0KK2n0fwE=\")","v":{"$error":"#REF!"}},{"$f":"AND(#REF!,\"aV0KK2n0fwI=\")","v":{"$error":"#REF!"}},{"$f":"AND(#REF!,\"aV0KK2n0fwM=\")","v":{"$error":"#REF!"}},{"$f":"AND(#REF!,\"aV0KK2n0fwQ=\")","v":{"$error":"#REF!"}},{"$f":"AND(#REF!,\"aV0KK2n0fwU=\")","v":{"$error":"#REF!"}},{"$f":"AND(#REF!,\"aV0KK2n0fwY=\")","v":{"$error":"#REF!"}},{"$f":"AND(#REF!,\"aV0KK2n0fwc=\")","v":{"$error":"#REF!"}},{"$f":"AND(#REF!,\"aV0KK2n0fwg=\")","v":{"$error":"#REF!"}},{"$f":"AND(#REF!,\"aV0KK2n0fwk=\")","v":{"$error":"#REF!"}},{"$f":"AND(#REF!,\"aV0KK2n0fwo=\")","v":{"$error":"#REF!"}},{"$f":"AND(#REF!,\"aV0KK2n0fws=\")","v":{"$error":"#REF!"}},{"$f":"AND(#REF!,\"aV0KK2n0fww=\")","v":{"$error":"#REF!"}},{"$f":"AND(#REF!,\"aV0KK2n0fw0=\")","v":{"$error":"#REF!"}},{"$f":"AND(#REF!,\"aV0KK2n0fw4=\")","v":{"$error":"#REF!"}},{"$f":"AND(#REF!,\"aV0KK2n0fw8=\")","v":{"$error":"#REF!"}},{"$f":"AND(#REF!,\"aV0KK2n0fxA=\")","v":{"$error":"#REF!"}},{"$f":"AND(#REF!,\"aV0KK2n0fxE=\")","v":{"$error":"#REF!"}},{"$f":"AND(#REF!,\"aV0KK2n0fxI=\")","v":{"$error":"#REF!"}},{"$f":"AND(#REF!,\"aV0KK2n0fxM=\")","v":{"$error":"#REF!"}},{"$f":"AND(#REF!,\"aV0KK2n0fxQ=\")","v":{"$error":"#REF!"}},{"$f":"AND(#REF!,\"aV0KK2n0fxU=\")","v":{"$error":"#REF!"}},{"$f":"AND(#REF!,\"aV0KK2n0fxY=\")","v":{"$error":"#REF!"}},{"$f":"AND(#REF!,\"aV0KK2n0fxc=\")","v":{"$error":"#REF!"}},{"$f":"AND(#REF!,\"aV0KK2n0fxg=\")","v":{"$error":"#REF!"}},{"$f":"AND(#REF!,\"aV0KK2n0fxk=\")","v":{"$error":"#REF!"}},{"$f":"AND(#REF!,\"aV0KK2n0fxo=\")","v":{"$error":"#REF!"}},{"$f":"AND(#REF!,\"aV0KK2n0fxs=\")","v":{"$error":"#REF!"}},{"$f":"AND(#REF!,\"aV0KK2n0fxw=\")","v":{"$error":"#REF!"}},{"$f":"AND(#REF!,\"aV0KK2n0fx0=\")","v":{"$error":"#REF!"}},{"$f":"AND(#REF!,\"aV0KK2n0fx4=\")","v":{"$error":"#REF!"}},{"$f":"AND(#REF!,\"aV0KK2n0fx8=\")","v":{"$error":"#REF!"}},{"$f":"AND(#REF!,\"aV0KK2n0fyA=\")","v":{"$error":"#REF!"}},{"$f":"AND(#REF!,\"aV0KK2n0fyE=\")","v":{"$error":"#REF!"}},{"$f":"AND(#REF!,\"aV0KK2n0fyI=\")","v":{"$error":"#REF!"}},{"$f":"AND(#REF!,\"aV0KK2n0fyM=\")","v":{"$error":"#REF!"}},{"$f":"AND(#REF!,\"aV0KK2n0fyQ=\")","v":{"$error":"#REF!"}},{"$f":"AND(#REF!,\"aV0KK2n0fyU=\")","v":{"$error":"#REF!"}},{"$f":"AND(#REF!,\"aV0KK2n0fyY=\")","v":{"$error":"#REF!"}},{"$f":"AND(#REF!,\"aV0KK2n0fyc=\")","v":{"$error":"#REF!"}},{"$f":"AND(#REF!,\"aV0KK2n0fyg=\")","v":{"$error":"#REF!"}},{"$f":"AND(#REF!,\"aV0KK2n0fyk=\")","v":{"$error":"#REF!"}},{"$f":"AND(#REF!,\"aV0KK2n0fyo=\")","v":{"$error":"#REF!"}},{"$f":"AND(#REF!,\"aV0KK2n0fys=\")","v":{"$error":"#REF!"}},{"$f":"AND(#REF!,\"aV0KK2n0fyw=\")","v":{"$error":"#REF!"}},{"$f":"AND(#REF!,\"aV0KK2n0fy0=\")","v":{"$error":"#REF!"}},{"$f":"AND(#REF!,\"aV0KK2n0fy4=\")","v":{"$error":"#REF!"}},{"$f":"AND(#REF!,\"aV0KK2n0fy8=\")","v":{"$error":"#REF!"}},{"$f":"AND(#REF!,\"aV0KK2n0fzA=\")","v":{"$error":"#REF!"}},{"$f":"AND(#REF!,\"aV0KK2n0fzE=\")","v":{"$error":"#REF!"}},{"$f":"AND(#REF!,\"aV0KK2n0fzI=\")","v":{"$error":"#REF!"}},{"$f":"AND(#REF!,\"aV0KK2n0fzM=\")","v":{"$error":"#REF!"}},{"$f":"AND(#REF!,\"aV0KK2n0fzQ=\")","v":{"$error":"#REF!"}},{"$f":"AND(#REF!,\"aV0KK2n0fzU=\")","v":{"$error":"#REF!"}},{"$f":"AND(#REF!,\"aV0KK2n0fzY=\")","v":{"$error":"#REF!"}},{"$f":"AND(#REF!,\"aV0KK2n0fzc=\")","v":{"$error":"#REF!"}},{"$f":"AND(#REF!,\"aV0KK2n0fzg=\")","v":{"$error":"#REF!"}},{"$f":"AND(#REF!,\"aV0KK2n0fzk=\")","v":{"$error":"#REF!"}},{"$f":"AND(#REF!,\"aV0KK2n0fzo=\")","v":{"$error":"#REF!"}},{"$f":"AND(#REF!,\"aV0KK2n0fzs=\")","v":{"$error":"#REF!"}},{"$f":"AND(#REF!,\"aV0KK2n0fzw=\")","v":{"$error":"#REF!"}},{"$f":"AND(#REF!,\"aV0KK2n0fz0=\")","v":{"$error":"#REF!"}},{"$f":"AND(#REF!,\"aV0KK2n0fz4=\")","v":{"$error":"#REF!"}},{"$f":"AND(#REF!,\"aV0KK2n0fz8=\")","v":{"$error":"#REF!"}},{"$f":"AND(#REF!,\"aV0KK2n0f0A=\")","v":{"$error":"#REF!"}},{"$f":"AND(#REF!,\"aV0KK2n0f0E=\")","v":{"$error":"#REF!"}},{"$f":"AND(#REF!,\"aV0KK2n0f0I=\")","v":{"$error":"#REF!"}},{"$f":"AND(#REF!,\"aV0KK2n0f0M=\")","v":{"$error":"#REF!"}},{"$f":"AND(#REF!,\"aV0KK2n0f0Q=\")","v":{"$error":"#REF!"}},{"$f":"AND(#REF!,\"aV0KK2n0f0U=\")","v":{"$error":"#REF!"}},{"$f":"AND(#REF!,\"aV0KK2n0f0Y=\")","v":{"$error":"#REF!"}},{"$f":"AND(#REF!,\"aV0KK2n0f0c=\")","v":{"$error":"#REF!"}},{"$f":"AND(#REF!,\"aV0KK2n0f0g=\")","v":{"$error":"#REF!"}},{"$f":"AND(#REF!,\"aV0KK2n0f0k=\")","v":{"$error":"#REF!"}},{"$f":"AND(#REF!,\"aV0KK2n0f0o=\")","v":{"$error":"#REF!"}},{"$f":"AND(#REF!,\"aV0KK2n0f0s=\")","v":{"$error":"#REF!"}},{"$f":"AND(#REF!,\"aV0KK2n0f0w=\")","v":{"$error":"#REF!"}},{"$f":"AND(#REF!,\"aV0KK2n0f00=\")","v":{"$error":"#REF!"}},{"$f":"AND(#REF!,\"aV0KK2n0f04=\")","v":{"$error":"#REF!"}},{"$f":"AND(#REF!,\"aV0KK2n0f08=\")","v":{"$error":"#REF!"}},{"$f":"AND(#REF!,\"aV0KK2n0f1A=\")","v":{"$error":"#REF!"}},{"$f":"AND(#REF!,\"aV0KK2n0f1E=\")","v":{"$error":"#REF!"}},{"$f":"AND(#REF!,\"aV0KK2n0f1I=\")","v":{"$error":"#REF!"}},{"$f":"AND(#REF!,\"aV0KK2n0f1M=\")","v":{"$error":"#REF!"}},{"$f":"AND(#REF!,\"aV0KK2n0f1Q=\")","v":{"$error":"#REF!"}},{"$f":"AND(#REF!,\"aV0KK2n0f1U=\")","v":{"$error":"#REF!"}},{"$f":"AND(#REF!,\"aV0KK2n0f1Y=\")","v":{"$error":"#REF!"}},{"$f":"AND(#REF!,\"aV0KK2n0f1c=\")","v":{"$error":"#REF!"}},{"$f":"AND(#REF!,\"aV0KK2n0f1g=\")","v":{"$error":"#REF!"}},{"$f":"AND(#REF!,\"aV0KK2n0f1k=\")","v":{"$error":"#REF!"}},{"$f":"AND(#REF!,\"aV0KK2n0f1o=\")","v":{"$error":"#REF!"}},{"$f":"AND(#REF!,\"aV0KK2n0f1s=\")","v":{"$error":"#REF!"}},{"$f":"AND(#REF!,\"aV0KK2n0f1w=\")","v":{"$error":"#REF!"}},{"$f":"AND(#REF!,\"aV0KK2n0f10=\")","v":{"$error":"#REF!"}},{"$f":"AND(#REF!,\"aV0KK2n0f14=\")","v":{"$error":"#REF!"}},{"$f":"AND(#REF!,\"aV0KK2n0f18=\")","v":{"$error":"#REF!"}},{"$f":"AND(#REF!,\"aV0KK2n0f2A=\")","v":{"$error":"#REF!"}},{"$f":"AND(#REF!,\"aV0KK2n0f2E=\")","v":{"$error":"#REF!"}},{"$f":"AND(#REF!,\"aV0KK2n0f2I=\")","v":{"$error":"#REF!"}},{"$f":"AND(#REF!,\"aV0KK2n0f2M=\")","v":{"$error":"#REF!"}},{"$f":"AND(#REF!,\"aV0KK2n0f2Q=\")","v":{"$error":"#REF!"}},{"$f":"AND(#REF!,\"aV0KK2n0f2U=\")","v":{"$error":"#REF!"}},{"$f":"AND(#REF!,\"aV0KK2n0f2Y=\")","v":{"$error":"#REF!"}},{"$f":"AND(#REF!,\"aV0KK2n0f2c=\")","v":{"$error":"#REF!"}},{"$f":"AND(#REF!,\"aV0KK2n0f2g=\")","v":{"$error":"#REF!"}},{"$f":"AND(#REF!,\"aV0KK2n0f2k=\")","v":{"$error":"#REF!"}},{"$f":"AND(#REF!,\"aV0KK2n0f2o=\")","v":{"$error":"#REF!"}},{"$f":"AND(#REF!,\"aV0KK2n0f2s=\")","v":{"$error":"#REF!"}},{"$f":"AND(#REF!,\"aV0KK2n0f2w=\")","v":{"$error":"#REF!"}},{"$f":"AND(#REF!,\"aV0KK2n0f20=\")","v":{"$error":"#REF!"}},{"$f":"AND(#REF!,\"aV0KK2n0f24=\")","v":{"$error":"#REF!"}},{"$f":"AND(#REF!,\"aV0KK2n0f28=\")","v":{"$error":"#REF!"}},{"$f":"AND(#REF!,\"aV0KK2n0f3A=\")","v":{"$error":"#REF!"}},{"$f":"AND(#REF!,\"aV0KK2n0f3E=\")","v":{"$error":"#REF!"}},{"$f":"AND(#REF!,\"aV0KK2n0f3I=\")","v":{"$error":"#REF!"}},{"$f":"AND(#REF!,\"aV0KK2n0f3M=\")","v":{"$error":"#REF!"}},{"$f":"AND(#REF!,\"aV0KK2n0f3Q=\")","v":{"$error":"#REF!"}},{"$f":"AND(#REF!,\"aV0KK2n0f3U=\")","v":{"$error":"#REF!"}},{"$f":"AND(#REF!,\"aV0KK2n0f3Y=\")","v":{"$error":"#REF!"}},{"$f":"AND(#REF!,\"aV0KK2n0f3c=\")","v":{"$error":"#REF!"}},{"$f":"AND(#REF!,\"aV0KK2n0f3g=\")","v":{"$error":"#REF!"}},{"$f":"AND(#REF!,\"aV0KK2n0f3k=\")","v":{"$error":"#REF!"}},{"$f":"AND(#REF!,\"aV0KK2n0f3o=\")","v":{"$error":"#REF!"}},{"$f":"AND(#REF!,\"aV0KK2n0f3s=\")","v":{"$error":"#REF!"}},{"$f":"AND(#REF!,\"aV0KK2n0f3w=\")","v":{"$error":"#REF!"}},{"$f":"AND(#REF!,\"aV0KK2n0f30=\")","v":{"$error":"#REF!"}},{"$f":"AND(#REF!,\"aV0KK2n0f34=\")","v":{"$error":"#REF!"}},{"$f":"AND(#REF!,\"aV0KK2n0f38=\")","v":{"$error":"#REF!"}},{"$f":"AND(#REF!,\"aV0KK2n0f4A=\")","v":{"$error":"#REF!"}},{"$f":"AND(#REF!,\"aV0KK2n0f4E=\")","v":{"$error":"#REF!"}},{"$f":"AND(#REF!,\"aV0KK2n0f4I=\")","v":{"$error":"#REF!"}},{"$f":"AND(#REF!,\"aV0KK2n0f4M=\")","v":{"$error":"#REF!"}},{"$f":"AND(#REF!,\"aV0KK2n0f4Q=\")","v":{"$error":"#REF!"}},{"$f":"AND(#REF!,\"aV0KK2n0f4U=\")","v":{"$error":"#REF!"}},{"$f":"AND(#REF!,\"aV0KK2n0f4Y=\")","v":{"$error":"#REF!"}},{"$f":"AND(#REF!,\"aV0KK2n0f4c=\")","v":{"$error":"#REF!"}},{"$f":"AND(#REF!,\"aV0KK2n0f4g=\")","v":{"$error":"#REF!"}},{"$f":"AND(#REF!,\"aV0KK2n0f4k=\")","v":{"$error":"#REF!"}},{"$f":"AND(#REF!,\"aV0KK2n0f4o=\")","v":{"$error":"#REF!"}},{"$f":"AND(#REF!,\"aV0KK2n0f4s=\")","v":{"$error":"#REF!"}},{"$f":"AND(#REF!,\"aV0KK2n0f4w=\")","v":{"$error":"#REF!"}},{"$f":"IF(#REF!,\"aV0KK2n0f40=\",0)","v":{"$error":"#REF!"}},{"$f":"AND(#REF!,\"aV0KK2n0f44=\")","v":{"$error":"#REF!"}},{"$f":"AND(#REF!,\"aV0KK2n0f48=\")","v":{"$error":"#REF!"}},{"$f":"AND(#REF!,\"aV0KK2n0f5A=\")","v":{"$error":"#REF!"}},{"$f":"AND(#REF!,\"aV0KK2n0f5E=\")","v":{"$error":"#REF!"}},{"$f":"AND(#REF!,\"aV0KK2n0f5I=\")","v":{"$error":"#REF!"}},{"$f":"AND(#REF!,\"aV0KK2n0f5M=\")","v":{"$error":"#REF!"}},{"$f":"AND(#REF!,\"aV0KK2n0f5Q=\")","v":{"$error":"#REF!"}},{"$f":"AND(#REF!,\"aV0KK2n0f5U=\")","v":{"$error":"#REF!"}},{"$f":"AND(#REF!,\"aV0KK2n0f5Y=\")","v":{"$error":"#REF!"}},{"$f":"AND(#REF!,\"aV0KK2n0f5c=\")","v":{"$error":"#REF!"}},{"$f":"AND(#REF!,\"aV0KK2n0f5g=\")","v":{"$error":"#REF!"}},{"$f":"AND(#REF!,\"aV0KK2n0f5k=\")","v":{"$error":"#REF!"}},{"$f":"AND(#REF!,\"aV0KK2n0f5o=\")","v":{"$error":"#REF!"}},{"$f":"AND(#REF!,\"aV0KK2n0f5s=\")","v":{"$error":"#REF!"}},{"$f":"AND(#REF!,\"aV0KK2n0f5w=\")","v":{"$error":"#REF!"}},{"$f":"AND(#REF!,\"aV0KK2n0f50=\")","v":{"$error":"#REF!"}},{"$f":"AND(#REF!,\"aV0KK2n0f54=\")","v":{"$error":"#REF!"}},{"$f":"AND(#REF!,\"aV0KK2n0f58=\")","v":{"$error":"#REF!"}},{"$f":"AND(#REF!,\"aV0KK2n0f6A=\")","v":{"$error":"#REF!"}},{"$f":"AND(#REF!,\"aV0KK2n0f6E=\")","v":{"$error":"#REF!"}},{"$f":"AND(#REF!,\"aV0KK2n0f6I=\")","v":{"$error":"#REF!"}},{"$f":"AND(#REF!,\"aV0KK2n0f6M=\")","v":{"$error":"#REF!"}},{"$f":"AND(#REF!,\"aV0KK2n0f6Q=\")","v":{"$error":"#REF!"}},{"$f":"AND(#REF!,\"aV0KK2n0f6U=\")","v":{"$error":"#REF!"}},{"$f":"AND(#REF!,\"aV0KK2n0f6Y=\")","v":{"$error":"#REF!"}},{"$f":"AND(#REF!,\"aV0KK2n0f6c=\")","v":{"$error":"#REF!"}},{"$f":"AND(#REF!,\"aV0KK2n0f6g=\")","v":{"$error":"#REF!"}},{"$f":"AND(#REF!,\"aV0KK2n0f6k=\")","v":{"$error":"#REF!"}},{"$f":"AND(#REF!,\"aV0KK2n0f6o=\")","v":{"$error":"#REF!"}},{"$f":"AND(#REF!,\"aV0KK2n0f6s=\")","v":{"$error":"#REF!"}},{"$f":"AND(#REF!,\"aV0KK2n0f6w=\")","v":{"$error":"#REF!"}},{"$f":"AND(#REF!,\"aV0KK2n0f60=\")","v":{"$error":"#REF!"}},{"$f":"AND(#REF!,\"aV0KK2n0f64=\")","v":{"$error":"#REF!"}},{"$f":"AND(#REF!,\"aV0KK2n0f68=\")","v":{"$error":"#REF!"}},{"$f":"AND(#REF!,\"aV0KK2n0f7A=\")","v":{"$error":"#REF!"}},{"$f":"AND(#REF!,\"aV0KK2n0f7E=\")","v":{"$error":"#REF!"}},{"$f":"AND(#REF!,\"aV0KK2n0f7I=\")","v":{"$error":"#REF!"}},{"$f":"AND(#REF!,\"aV0KK2n0f7M=\")","v":{"$error":"#REF!"}},{"$f":"AND(#REF!,\"aV0KK2n0f7Q=\")","v":{"$error":"#REF!"}},{"$f":"AND(#REF!,\"aV0KK2n0f7U=\")","v":{"$error":"#REF!"}},{"$f":"AND(#REF!,\"aV0KK2n0f7Y=\")","v":{"$error":"#REF!"}},{"$f":"AND(#REF!,\"aV0KK2n0f7c=\")","v":{"$error":"#REF!"}},{"$f":"AND(#REF!,\"aV0KK2n0f7g=\")","v":{"$error":"#REF!"}},{"$f":"AND(#REF!,\"aV0KK2n0f7k=\")","v":{"$error":"#REF!"}},{"$f":"AND(#REF!,\"aV0KK2n0f7o=\")","v":{"$error":"#REF!"}},{"$f":"AND(#REF!,\"aV0KK2n0f7s=\")","v":{"$error":"#REF!"}},{"$f":"AND(#REF!,\"aV0KK2n0f7w=\")","v":{"$error":"#REF!"}},{"$f":"AND(#REF!,\"aV0KK2n0f70=\")","v":{"$error":"#REF!"}},{"$f":"AND(#REF!,\"aV0KK2n0f74=\")","v":{"$error":"#REF!"}},{"$f":"AND(#REF!,\"aV0KK2n0f78=\")","v":{"$error":"#REF!"}},{"$f":"AND(#REF!,\"aV0KK2n0f8A=\")","v":{"$error":"#REF!"}},{"$f":"AND(#REF!,\"aV0KK2n0f8E=\")","v":{"$error":"#REF!"}},{"$f":"AND(#REF!,\"aV0KK2n0f8I=\")","v":{"$error":"#REF!"}},{"$f":"AND(#REF!,\"aV0KK2n0f8M=\")","v":{"$error":"#REF!"}},{"$f":"AND(#REF!,\"aV0KK2n0f8Q=\")","v":{"$error":"#REF!"}},{"$f":"AND(#REF!,\"aV0KK2n0f8U=\")","v":{"$error":"#REF!"}},{"$f":"AND(#REF!,\"aV0KK2n0f8Y=\")","v":{"$error":"#REF!"}},{"$f":"AND(#REF!,\"aV0KK2n0f8c=\")","v":{"$error":"#REF!"}},{"$f":"AND(#REF!,\"aV0KK2n0f8g=\")","v":{"$error":"#REF!"}},{"$f":"AND(#REF!,\"aV0KK2n0f8k=\")","v":{"$error":"#REF!"}},{"$f":"AND(#REF!,\"aV0KK2n0f8o=\")","v":{"$error":"#REF!"}},{"$f":"AND(#REF!,\"aV0KK2n0f8s=\")","v":{"$error":"#REF!"}},{"$f":"AND(#REF!,\"aV0KK2n0f8w=\")","v":{"$error":"#REF!"}},{"$f":"AND(#REF!,\"aV0KK2n0f80=\")","v":{"$error":"#REF!"}},{"$f":"AND(#REF!,\"aV0KK2n0f84=\")","v":{"$error":"#REF!"}},{"$f":"AND(#REF!,\"aV0KK2n0f88=\")","v":{"$error":"#REF!"}},{"$f":"AND(#REF!,\"aV0KK2n0f9A=\")","v":{"$error":"#REF!"}},{"$f":"AND(#REF!,\"aV0KK2n0f9E=\")","v":{"$error":"#REF!"}},{"$f":"AND(#REF!,\"aV0KK2n0f9I=\")","v":{"$error":"#REF!"}},{"$f":"AND(#REF!,\"aV0KK2n0f9M=\")","v":{"$error":"#REF!"}},{"$f":"AND(#REF!,\"aV0KK2n0f9Q=\")","v":{"$error":"#REF!"}},{"$f":"AND(#REF!,\"aV0KK2n0f9U=\")","v":{"$error":"#REF!"}},{"$f":"AND(#REF!,\"aV0KK2n0f9Y=\")","v":{"$error":"#REF!"}},{"$f":"AND(#REF!,\"aV0KK2n0f9c=\")","v":{"$error":"#REF!"}},{"$f":"AND(#REF!,\"aV0KK2n0f9g=\")","v":{"$error":"#REF!"}},{"$f":"AND(#REF!,\"aV0KK2n0f9k=\")","v":{"$error":"#REF!"}},{"$f":"AND(#REF!,\"aV0KK2n0f9o=\")","v":{"$error":"#REF!"}},{"$f":"AND(#REF!,\"aV0KK2n0f9s=\")","v":{"$error":"#REF!"}},{"$f":"AND(#REF!,\"aV0KK2n0f9w=\")","v":{"$error":"#REF!"}},{"$f":"AND(#REF!,\"aV0KK2n0f90=\")","v":{"$error":"#REF!"}},{"$f":"AND(#REF!,\"aV0KK2n0f94=\")","v":{"$error":"#REF!"}},{"$f":"AND(#REF!,\"aV0KK2n0f98=\")","v":{"$error":"#REF!"}},{"$f":"AND(#REF!,\"aV0KK2n0f+A=\")","v":{"$error":"#REF!"}},{"$f":"AND(#REF!,\"aV0KK2n0f+E=\")","v":{"$error":"#REF!"}},{"$f":"AND(#REF!,\"aV0KK2n0f+I=\")","v":{"$error":"#REF!"}},{"$f":"AND(#REF!,\"aV0KK2n0f+M=\")","v":{"$error":"#REF!"}},{"$f":"AND(#REF!,\"aV0KK2n0f+Q=\")","v":{"$error":"#REF!"}},{"$f":"AND(#REF!,\"aV0KK2n0f+U=\")","v":{"$error":"#REF!"}},{"$f":"AND(#REF!,\"aV0KK2n0f+Y=\")","v":{"$error":"#REF!"}},{"$f":"AND(#REF!,\"aV0KK2n0f+c=\")","v":{"$error":"#REF!"}},{"$f":"AND(#REF!,\"aV0KK2n0f+g=\")","v":{"$error":"#REF!"}},{"$f":"AND(#REF!,\"aV0KK2n0f+k=\")","v":{"$error":"#REF!"}},{"$f":"AND(#REF!,\"aV0KK2n0f+o=\")","v":{"$error":"#REF!"}},{"$f":"AND(#REF!,\"aV0KK2n0f+s=\")","v":{"$error":"#REF!"}},{"$f":"AND(#REF!,\"aV0KK2n0f+w=\")","v":{"$error":"#REF!"}},{"$f":"AND(#REF!,\"aV0KK2n0f+0=\")","v":{"$error":"#REF!"}},{"$f":"AND(#REF!,\"aV0KK2n0f+4=\")","v":{"$error":"#REF!"}},{"$f":"AND(#REF!,\"aV0KK2n0f+8=\")","v":{"$error":"#REF!"}},{"$f":"AND(#REF!,\"aV0KK2n0f/A=\")","v":{"$error":"#REF!"}},{"$f":"AND(#REF!,\"aV0KK2n0f/E=\")","v":{"$error":"#REF!"}},{"$f":"AND(#REF!,\"aV0KK2n0f/I=\")","v":{"$error":"#REF!"}},{"$f":"AND(#REF!,\"aV0KK2n0f/M=\")","v":{"$error":"#REF!"}},{"$f":"AND(#REF!,\"aV0KK2n0f/Q=\")","v":{"$error":"#REF!"}},{"$f":"AND(#REF!,\"aV0KK2n0f/U=\")","v":{"$error":"#REF!"}},{"$f":"AND(#REF!,\"aV0KK2n0f/Y=\")","v":{"$error":"#REF!"}},{"$f":"AND(#REF!,\"aV0KK2n0f/c=\")","v":{"$error":"#REF!"}},{"$f":"AND(#REF!,\"aV0KK2n0f/g=\")","v":{"$error":"#REF!"}},{"$f":"AND(#REF!,\"aV0KK2n0f/k=\")","v":{"$error":"#REF!"}},{"$f":"AND(#REF!,\"aV0KK2n0f/o=\")","v":{"$error":"#REF!"}},{"$f":"AND(#REF!,\"aV0KK2n0f/s=\")","v":{"$error":"#REF!"}},{"$f":"AND(#REF!,\"aV0KK2n0f/w=\")","v":{"$error":"#REF!"}},{"$f":"AND(#REF!,\"aV0KK2n0f/0=\")","v":{"$error":"#REF!"}},{"$f":"AND(#REF!,\"aV0KK2n0f/4=\")","v":{"$error":"#REF!"}},{"$f":"AND(#REF!,\"aV0KK2n0f/8=\")","v":{"$error":"#REF!"}}]
[{"$f":"AND(#REF!,\"T7AmBGQ/6gA=\")","v":{"$error":"#REF!"}},{"$f":"AND(#REF!,\"T7AmBGQ/6gE=\")","v":{"$error":"#REF!"}},{"$f":"AND(#REF!,\"T7AmBGQ/6gI=\")","v":{"$error":"#REF!"}},{"$f":"AND(#REF!,\"T7AmBGQ/6gM=\")","v":{"$error":"#REF!"}},{"$f":"AND(#REF!,\"T7AmBGQ/6gQ=\")","v":{"$error":"#REF!"}},{"$f":"AND(#REF!,\"T7AmBGQ/6gU=\")","v":{"$error":"#REF!"}},{"$f":"AND(#REF!,\"T7AmBGQ/6gY=\")","v":{"$error":"#REF!"}},{"$f":"AND(#REF!,\"T7AmBGQ/6gc=\")","v":{"$error":"#REF!"}},{"$f":"AND(#REF!,\"T7AmBGQ/6gg=\")","v":{"$error":"#REF!"}},{"$f":"AND(#REF!,\"T7AmBGQ/6gk=\")","v":{"$error":"#REF!"}},{"$f":"AND(#REF!,\"T7AmBGQ/6go=\")","v":{"$error":"#REF!"}},{"$f":"AND(#REF!,\"T7AmBGQ/6gs=\")","v":{"$error":"#REF!"}},{"$f":"AND(#REF!,\"T7AmBGQ/6gw=\")","v":{"$error":"#REF!"}},{"$f":"AND(#REF!,\"T7AmBGQ/6g0=\")","v":{"$error":"#REF!"}},{"$f":"AND(#REF!,\"T7AmBGQ/6g4=\")","v":{"$error":"#REF!"}},{"$f":"AND(#REF!,\"T7AmBGQ/6g8=\")","v":{"$error":"#REF!"}},{"$f":"AND(#REF!,\"T7AmBGQ/6hA=\")","v":{"$error":"#REF!"}},{"$f":"AND(#REF!,\"T7AmBGQ/6hE=\")","v":{"$error":"#REF!"}},{"$f":"AND(#REF!,\"T7AmBGQ/6hI=\")","v":{"$error":"#REF!"}},{"$f":"AND(#REF!,\"T7AmBGQ/6hM=\")","v":{"$error":"#REF!"}},{"$f":"AND(#REF!,\"T7AmBGQ/6hQ=\")","v":{"$error":"#REF!"}},{"$f":"AND(#REF!,\"T7AmBGQ/6hU=\")","v":{"$error":"#REF!"}},{"$f":"AND(#REF!,\"T7AmBGQ/6hY=\")","v":{"$error":"#REF!"}},{"$f":"AND(#REF!,\"T7AmBGQ/6hc=\")","v":{"$error":"#REF!"}},{"$f":"AND(#REF!,\"T7AmBGQ/6hg=\")","v":{"$error":"#REF!"}},{"$f":"AND(#REF!,\"T7AmBGQ/6hk=\")","v":{"$error":"#REF!"}},{"$f":"AND(#REF!,\"T7AmBGQ/6ho=\")","v":{"$error":"#REF!"}},{"$f":"AND(#REF!,\"T7AmBGQ/6hs=\")","v":{"$error":"#REF!"}},{"$f":"AND(#REF!,\"T7AmBGQ/6hw=\")","v":{"$error":"#REF!"}},{"$f":"AND(#REF!,\"T7AmBGQ/6h0=\")","v":{"$error":"#REF!"}},{"$f":"AND(#REF!,\"T7AmBGQ/6h4=\")","v":{"$error":"#REF!"}},{"$f":"AND(#REF!,\"T7AmBGQ/6h8=\")","v":{"$error":"#REF!"}},{"$f":"AND(#REF!,\"T7AmBGQ/6iA=\")","v":{"$error":"#REF!"}},{"$f":"AND(#REF!,\"T7AmBGQ/6iE=\")","v":{"$error":"#REF!"}},{"$f":"AND(#REF!,\"T7AmBGQ/6iI=\")","v":{"$error":"#REF!"}},{"$f":"AND(#REF!,\"T7AmBGQ/6iM=\")","v":{"$error":"#REF!"}},{"$f":"AND(#REF!,\"T7AmBGQ/6iQ=\")","v":{"$error":"#REF!"}},{"$f":"AND(#REF!,\"T7AmBGQ/6iU=\")","v":{"$error":"#REF!"}},{"$f":"AND(#REF!,\"T7AmBGQ/6iY=\")","v":{"$error":"#REF!"}},{"$f":"AND(#REF!,\"T7AmBGQ/6ic=\")","v":{"$error":"#REF!"}},{"$f":"AND(#REF!,\"T7AmBGQ/6ig=\")","v":{"$error":"#REF!"}},{"$f":"AND(#REF!,\"T7AmBGQ/6ik=\")","v":{"$error":"#REF!"}},{"$f":"AND(#REF!,\"T7AmBGQ/6io=\")","v":{"$error":"#REF!"}},{"$f":"AND(#REF!,\"T7AmBGQ/6is=\")","v":{"$error":"#REF!"}},{"$f":"AND(#REF!,\"T7AmBGQ/6iw=\")","v":{"$error":"#REF!"}},{"$f":"AND(#REF!,\"T7AmBGQ/6i0=\")","v":{"$error":"#REF!"}},{"$f":"AND(#REF!,\"T7AmBGQ/6i4=\")","v":{"$error":"#REF!"}},{"$f":"AND(#REF!,\"T7AmBGQ/6i8=\")","v":{"$error":"#REF!"}},{"$f":"AND(#REF!,\"T7AmBGQ/6jA=\")","v":{"$error":"#REF!"}},{"$f":"AND(#REF!,\"T7AmBGQ/6jE=\")","v":{"$error":"#REF!"}},{"$f":"AND(#REF!,\"T7AmBGQ/6jI=\")","v":{"$error":"#REF!"}},{"$f":"AND(#REF!,\"T7AmBGQ/6jM=\")","v":{"$error":"#REF!"}},{"$f":"AND(#REF!,\"T7AmBGQ/6jQ=\")","v":{"$error":"#REF!"}},{"$f":"AND(#REF!,\"T7AmBGQ/6jU=\")","v":{"$error":"#REF!"}},{"$f":"AND(#REF!,\"T7AmBGQ/6jY=\")","v":{"$error":"#REF!"}},{"$f":"AND(#REF!,\"T7AmBGQ/6jc=\")","v":{"$error":"#REF!"}},{"$f":"AND(#REF!,\"T7AmBGQ/6jg=\")","v":{"$error":"#REF!"}},{"$f":"AND(#REF!,\"T7AmBGQ/6jk=\")","v":{"$error":"#REF!"}},{"$f":"AND(#REF!,\"T7AmBGQ/6jo=\")","v":{"$error":"#REF!"}},{"$f":"AND(#REF!,\"T7AmBGQ/6js=\")","v":{"$error":"#REF!"}},{"$f":"AND(#REF!,\"T7AmBGQ/6jw=\")","v":{"$error":"#REF!"}},{"$f":"AND(#REF!,\"T7AmBGQ/6j0=\")","v":{"$error":"#REF!"}},{"$f":"AND(#REF!,\"T7AmBGQ/6j4=\")","v":{"$error":"#REF!"}},{"$f":"AND(#REF!,\"T7AmBGQ/6j8=\")","v":{"$error":"#REF!"}},{"$f":"AND(#REF!,\"T7AmBGQ/6kA=\")","v":{"$error":"#REF!"}},{"$f":"AND(#REF!,\"T7AmBGQ/6kE=\")","v":{"$error":"#REF!"}},{"$f":"AND(#REF!,\"T7AmBGQ/6kI=\")","v":{"$error":"#REF!"}},{"$f":"AND(#REF!,\"T7AmBGQ/6kM=\")","v":{"$error":"#REF!"}},{"$f":"AND(#REF!,\"T7AmBGQ/6kQ=\")","v":{"$error":"#REF!"}},{"$f":"AND(#REF!,\"T7AmBGQ/6kU=\")","v":{"$error":"#REF!"}},{"$f":"AND(#REF!,\"T7AmBGQ/6kY=\")","v":{"$error":"#REF!"}},{"$f":"AND(#REF!,\"T7AmBGQ/6kc=\")","v":{"$error":"#REF!"}},{"$f":"AND(#REF!,\"T7AmBGQ/6kg=\")","v":{"$error":"#REF!"}},{"$f":"AND(#REF!,\"T7AmBGQ/6kk=\")","v":{"$error":"#REF!"}},{"$f":"AND(#REF!,\"T7AmBGQ/6ko=\")","v":{"$error":"#REF!"}},{"$f":"AND(#REF!,\"T7AmBGQ/6ks=\")","v":{"$error":"#REF!"}},{"$f":"AND(#REF!,\"T7AmBGQ/6kw=\")","v":{"$error":"#REF!"}},{"$f":"AND(#REF!,\"T7AmBGQ/6k0=\")","v":{"$error":"#REF!"}},{"$f":"AND(#REF!,\"T7AmBGQ/6k4=\")","v":{"$error":"#REF!"}},{"$f":"AND(#REF!,\"T7AmBGQ/6k8=\")","v":{"$error":"#REF!"}},{"$f":"AND(#REF!,\"T7AmBGQ/6lA=\")","v":{"$error":"#REF!"}},{"$f":"AND(#REF!,\"T7AmBGQ/6lE=\")","v":{"$error":"#REF!"}},{"$f":"AND(#REF!,\"T7AmBGQ/6lI=\")","v":{"$error":"#REF!"}},{"$f":"AND(#REF!,\"T7AmBGQ/6lM=\")","v":{"$error":"#REF!"}},{"$f":"IF(#REF!,\"T7AmBGQ/6lQ=\",0)","v":{"$error":"#REF!"}},{"$f":"AND(#REF!,\"T7AmBGQ/6lU=\")","v":{"$error":"#REF!"}},{"$f":"AND(#REF!,\"T7AmBGQ/6lY=\")","v":{"$error":"#REF!"}},{"$f":"AND(#REF!,\"T7AmBGQ/6lc=\")","v":{"$error":"#REF!"}},{"$f":"AND(#REF!,\"T7AmBGQ/6lg=\")","v":{"$error":"#REF!"}},{"$f":"AND(#REF!,\"T7AmBGQ/6lk=\")","v":{"$error":"#REF!"}},{"$f":"AND(#REF!,\"T7AmBGQ/6lo=\")","v":{"$error":"#REF!"}},{"$f":"AND(#REF!,\"T7AmBGQ/6ls=\")","v":{"$error":"#REF!"}},{"$f":"AND(#REF!,\"T7AmBGQ/6lw=\")","v":{"$error":"#REF!"}},{"$f":"AND(#REF!,\"T7AmBGQ/6l0=\")","v":{"$error":"#REF!"}},{"$f":"AND(#REF!,\"T7AmBGQ/6l4=\")","v":{"$error":"#REF!"}},{"$f":"AND(#REF!,\"T7AmBGQ/6l8=\")","v":{"$error":"#REF!"}},{"$f":"AND(#REF!,\"T7AmBGQ/6mA=\")","v":{"$error":"#REF!"}},{"$f":"AND(#REF!,\"T7AmBGQ/6mE=\")","v":{"$error":"#REF!"}},{"$f":"AND(#REF!,\"T7AmBGQ/6mI=\")","v":{"$error":"#REF!"}},{"$f":"AND(#REF!,\"T7AmBGQ/6mM=\")","v":{"$error":"#REF!"}},{"$f":"AND(#REF!,\"T7AmBGQ/6mQ=\")","v":{"$error":"#REF!"}},{"$f":"AND(#REF!,\"T7AmBGQ/6mU=\")","v":{"$error":"#REF!"}},{"$f":"AND(#REF!,\"T7AmBGQ/6mY=\")","v":{"$error":"#REF!"}},{"$f":"AND(#REF!,\"T7AmBGQ/6mc=\")","v":{"$error":"#REF!"}},{"$f":"AND(#REF!,\"T7AmBGQ/6mg=\")","v":{"$error":"#REF!"}},{"$f":"AND(#REF!,\"T7AmBGQ/6mk=\")","v":{"$error":"#REF!"}},{"$f":"AND(#REF!,\"T7AmBGQ/6mo=\")","v":{"$error":"#REF!"}},{"$f":"AND(#REF!,\"T7AmBGQ/6ms=\")","v":{"$error":"#REF!"}},{"$f":"AND(#REF!,\"T7AmBGQ/6mw=\")","v":{"$error":"#REF!"}},{"$f":"AND(#REF!,\"T7AmBGQ/6m0=\")","v":{"$error":"#REF!"}},{"$f":"AND(#REF!,\"T7AmBGQ/6m4=\")","v":{"$error":"#REF!"}},{"$f":"AND(#REF!,\"T7AmBGQ/6m8=\")","v":{"$error":"#REF!"}},{"$f":"AND(#REF!,\"T7AmBGQ/6nA=\")","v":{"$error":"#REF!"}},{"$f":"AND(#REF!,\"T7AmBGQ/6nE=\")","v":{"$error":"#REF!"}},{"$f":"AND(#REF!,\"T7AmBGQ/6nI=\")","v":{"$error":"#REF!"}},{"$f":"AND(#REF!,\"T7AmBGQ/6nM=\")","v":{"$error":"#REF!"}},{"$f":"AND(#REF!,\"T7AmBGQ/6nQ=\")","v":{"$error":"#REF!"}},{"$f":"AND(#REF!,\"T7AmBGQ/6nU=\")","v":{"$error":"#REF!"}},{"$f":"AND(#REF!,\"T7AmBGQ/6nY=\")","v":{"$error":"#REF!"}},{"$f":"AND(#REF!,\"T7AmBGQ/6nc=\")","v":{"$error":"#REF!"}},{"$f":"AND(#REF!,\"T7AmBGQ/6ng=\")","v":{"$error":"#REF!"}},{"$f":"AND(#REF!,\"T7AmBGQ/6nk=\")","v":{"$error":"#REF!"}},{"$f":"AND(#REF!,\"T7AmBGQ/6no=\")","v":{"$error":"#REF!"}},{"$f":"AND(#REF!,\"T7AmBGQ/6ns=\")","v":{"$error":"#REF!"}},{"$f":"AND(#REF!,\"T7AmBGQ/6nw=\")","v":{"$error":"#REF!"}},{"$f":"AND(#REF!,\"T7AmBGQ/6n0=\")","v":{"$error":"#REF!"}},{"$f":"AND(#REF!,\"T7AmBGQ/6n4=\")","v":{"$error":"#REF!"}},{"$f":"AND(#REF!,\"T7AmBGQ/6n8=\")","v":{"$error":"#REF!"}},{"$f":"AND(#REF!,\"T7AmBGQ/6oA=\")","v":{"$error":"#REF!"}},{"$f":"AND(#REF!,\"T7AmBGQ/6oE=\")","v":{"$error":"#REF!"}},{"$f":"AND(#REF!,\"T7AmBGQ/6oI=\")","v":{"$error":"#REF!"}},{"$f":"AND(#REF!,\"T7AmBGQ/6oM=\")","v":{"$error":"#REF!"}},{"$f":"AND(#REF!,\"T7AmBGQ/6oQ=\")","v":{"$error":"#REF!"}},{"$f":"AND(#REF!,\"T7AmBGQ/6oU=\")","v":{"$error":"#REF!"}},{"$f":"AND(#REF!,\"T7AmBGQ/6oY=\")","v":{"$error":"#REF!"}},{"$f":"AND(#REF!,\"T7AmBGQ/6oc=\")","v":{"$error":"#REF!"}},{"$f":"AND(#REF!,\"T7AmBGQ/6og=\")","v":{"$error":"#REF!"}},{"$f":"AND(#REF!,\"T7AmBGQ/6ok=\")","v":{"$error":"#REF!"}},{"$f":"AND(#REF!,\"T7AmBGQ/6oo=\")","v":{"$error":"#REF!"}},{"$f":"AND(#REF!,\"T7AmBGQ/6os=\")","v":{"$error":"#REF!"}},{"$f":"AND(#REF!,\"T7AmBGQ/6ow=\")","v":{"$error":"#REF!"}},{"$f":"AND(#REF!,\"T7AmBGQ/6o0=\")","v":{"$error":"#REF!"}},{"$f":"AND(#REF!,\"T7AmBGQ/6o4=\")","v":{"$error":"#REF!"}},{"$f":"AND(#REF!,\"T7AmBGQ/6o8=\")","v":{"$error":"#REF!"}},{"$f":"AND(#REF!,\"T7AmBGQ/6pA=\")","v":{"$error":"#REF!"}},{"$f":"AND(#REF!,\"T7AmBGQ/6pE=\")","v":{"$error":"#REF!"}},{"$f":"AND(#REF!,\"T7AmBGQ/6pI=\")","v":{"$error":"#REF!"}},{"$f":"AND(#REF!,\"T7AmBGQ/6pM=\")","v":{"$error":"#REF!"}},{"$f":"AND(#REF!,\"T7AmBGQ/6pQ=\")","v":{"$error":"#REF!"}},{"$f":"AND(#REF!,\"T7AmBGQ/6pU=\")","v":{"$error":"#REF!"}},{"$f":"AND(#REF!,\"T7AmBGQ/6pY=\")","v":{"$error":"#REF!"}},{"$f":"AND(#REF!,\"T7AmBGQ/6pc=\")","v":{"$error":"#REF!"}},{"$f":"AND(#REF!,\"T7AmBGQ/6pg=\")","v":{"$error":"#REF!"}},{"$f":"AND(#REF!,\"T7AmBGQ/6pk=\")","v":{"$error":"#REF!"}},{"$f":"AND(#REF!,\"T7AmBGQ/6po=\")","v":{"$error":"#REF!"}},{"$f":"AND(#REF!,\"T7AmBGQ/6ps=\")","v":{"$error":"#REF!"}},{"$f":"AND(#REF!,\"T7AmBGQ/6pw=\")","v":{"$error":"#REF!"}},{"$f":"AND(#REF!,\"T7AmBGQ/6p0=\")","v":{"$error":"#REF!"}},{"$f":"AND(#REF!,\"T7AmBGQ/6p4=\")","v":{"$error":"#REF!"}},{"$f":"AND(#REF!,\"T7AmBGQ/6p8=\")","v":{"$error":"#REF!"}},{"$f":"AND(#REF!,\"T7AmBGQ/6qA=\")","v":{"$error":"#REF!"}},{"$f":"AND(#REF!,\"T7AmBGQ/6qE=\")","v":{"$error":"#REF!"}},{"$f":"AND(#REF!,\"T7AmBGQ/6qI=\")","v":{"$error":"#REF!"}},{"$f":"AND(#REF!,\"T7AmBGQ/6qM=\")","v":{"$error":"#REF!"}},{"$f":"AND(#REF!,\"T7AmBGQ/6qQ=\")","v":{"$error":"#REF!"}},{"$f":"AND(#REF!,\"T7AmBGQ/6qU=\")","v":{"$error":"#REF!"}},{"$f":"AND(#REF!,\"T7AmBGQ/6qY=\")","v":{"$error":"#REF!"}},{"$f":"AND(#REF!,\"T7AmBGQ/6qc=\")","v":{"$error":"#REF!"}},{"$f":"AND(#REF!,\"T7AmBGQ/6qg=\")","v":{"$error":"#REF!"}},{"$f":"AND(#REF!,\"T7AmBGQ/6qk=\")","v":{"$error":"#REF!"}},{"$f":"AND(#REF!,\"T7AmBGQ/6qo=\")","v":{"$error":"#REF!"}},{"$f":"AND(#REF!,\"T7AmBGQ/6qs=\")","v":{"$error":"#REF!"}},{"$f":"AND(#REF!,\"T7AmBGQ/6qw=\")","v":{"$error":"#REF!"}},{"$f":"AND(#REF!,\"T7AmBGQ/6q0=\")","v":{"$error":"#REF!"}},{"$f":"AND(#REF!,\"T7AmBGQ/6q4=\")","v":{"$error":"#REF!"}},{"$f":"AND(#REF!,\"T7AmBGQ/6q8=\")","v":{"$error":"#REF!"}},{"$f":"AND(#REF!,\"T7AmBGQ/6rA=\")","v":{"$error":"#REF!"}},{"$f":"AND(#REF!,\"T7AmBGQ/6rE=\")","v":{"$error":"#REF!"}},{"$f":"AND(#REF!,\"T7AmBGQ/6rI=\")","v":{"$error":"#REF!"}},{"$f":"AND(#REF!,\"T7AmBGQ/6rM=\")","v":{"$error":"#REF!"}},{"$f":"AND(#REF!,\"T7AmBGQ/6rQ=\")","v":{"$error":"#REF!"}},{"$f":"AND(#REF!,\"T7AmBGQ/6rU=\")","v":{"$error":"#REF!"}},{"$f":"AND(#REF!,\"T7AmBGQ/6rY=\")","v":{"$error":"#REF!"}},{"$f":"AND(#REF!,\"T7AmBGQ/6rc=\")","v":{"$error":"#REF!"}},{"$f":"AND(#REF!,\"T7AmBGQ/6rg=\")","v":{"$error":"#REF!"}},{"$f":"AND(#REF!,\"T7AmBGQ/6rk=\")","v":{"$error":"#REF!"}},{"$f":"AND(#REF!,\"T7AmBGQ/6ro=\")","v":{"$error":"#REF!"}},{"$f":"AND(#REF!,\"T7AmBGQ/6rs=\")","v":{"$error":"#REF!"}},{"$f":"AND(#REF!,\"T7AmBGQ/6rw=\")","v":{"$error":"#REF!"}},{"$f":"AND(#REF!,\"T7AmBGQ/6r0=\")","v":{"$error":"#REF!"}},{"$f":"AND(#REF!,\"T7AmBGQ/6r4=\")","v":{"$error":"#REF!"}},{"$f":"AND(#REF!,\"T7AmBGQ/6r8=\")","v":{"$error":"#REF!"}},{"$f":"AND(#REF!,\"T7AmBGQ/6sA=\")","v":{"$error":"#REF!"}},{"$f":"AND(#REF!,\"T7AmBGQ/6sE=\")","v":{"$error":"#REF!"}},{"$f":"AND(#REF!,\"T7AmBGQ/6sI=\")","v":{"$error":"#REF!"}},{"$f":"AND(#REF!,\"T7AmBGQ/6sM=\")","v":{"$error":"#REF!"}},{"$f":"AND(#REF!,\"T7AmBGQ/6sQ=\")","v":{"$error":"#REF!"}},{"$f":"AND(#REF!,\"T7AmBGQ/6sU=\")","v":{"$error":"#REF!"}},{"$f":"AND(#REF!,\"T7AmBGQ/6sY=\")","v":{"$error":"#REF!"}},{"$f":"AND(#REF!,\"T7AmBGQ/6sc=\")","v":{"$error":"#REF!"}},{"$f":"AND(#REF!,\"T7AmBGQ/6sg=\")","v":{"$error":"#REF!"}},{"$f":"AND(#REF!,\"T7AmBGQ/6sk=\")","v":{"$error":"#REF!"}},{"$f":"AND(#REF!,\"T7AmBGQ/6so=\")","v":{"$error":"#REF!"}},{"$f":"AND(#REF!,\"T7AmBGQ/6ss=\")","v":{"$error":"#REF!"}},{"$f":"AND(#REF!,\"T7AmBGQ/6sw=\")","v":{"$error":"#REF!"}},{"$f":"AND(#REF!,\"T7AmBGQ/6s0=\")","v":{"$error":"#REF!"}},{"$f":"AND(#REF!,\"T7AmBGQ/6s4=\")","v":{"$error":"#REF!"}},{"$f":"AND(#REF!,\"T7AmBGQ/6s8=\")","v":{"$error":"#REF!"}},{"$f":"AND(#REF!,\"T7AmBGQ/6tA=\")","v":{"$error":"#REF!"}},{"$f":"AND(#REF!,\"T7AmBGQ/6tE=\")","v":{"$error":"#REF!"}},{"$f":"AND(#REF!,\"T7AmBGQ/6tI=\")","v":{"$error":"#REF!"}},{"$f":"AND(#REF!,\"T7AmBGQ/6tM=\")","v":{"$error":"#REF!"}},{"$f":"AND(#REF!,\"T7AmBGQ/6tQ=\")","v":{"$error":"#REF!"}},{"$f":"AND(#REF!,\"T7AmBGQ/6tU=\")","v":{"$error":"#REF!"}},{"$f":"AND(#REF!,\"T7AmBGQ/6tY=\")","v":{"$error":"#REF!"}},{"$f":"AND(#REF!,\"T7AmBGQ/6tc=\")","v":{"$error":"#REF!"}},{"$f":"AND(#REF!,\"T7AmBGQ/6tg=\")","v":{"$error":"#REF!"}},{"$f":"AND(#REF!,\"T7AmBGQ/6tk=\")","v":{"$error":"#REF!"}},{"$f":"AND(#REF!,\"T7AmBGQ/6to=\")","v":{"$error":"#REF!"}},{"$f":"AND(#REF!,\"T7AmBGQ/6ts=\")","v":{"$error":"#REF!"}},{"$f":"AND(#REF!,\"T7AmBGQ/6tw=\")","v":{"$error":"#REF!"}},{"$f":"AND(#REF!,\"T7AmBGQ/6t0=\")","v":{"$error":"#REF!"}},{"$f":"AND(#REF!,\"T7AmBGQ/6t4=\")","v":{"$error":"#REF!"}},{"$f":"AND(#REF!,\"T7AmBGQ/6t8=\")","v":{"$error":"#REF!"}},{"$f":"AND(#REF!,\"T7AmBGQ/6uA=\")","v":{"$error":"#REF!"}},{"$f":"AND(#REF!,\"T7AmBGQ/6uE=\")","v":{"$error":"#REF!"}},{"$f":"AND(#REF!,\"T7AmBGQ/6uI=\")","v":{"$error":"#REF!"}},{"$f":"AND(#REF!,\"T7AmBGQ/6uM=\")","v":{"$error":"#REF!"}},{"$f":"AND(#REF!,\"T7AmBGQ/6uQ=\")","v":{"$error":"#REF!"}},{"$f":"AND(#REF!,\"T7AmBGQ/6uU=\")","v":{"$error":"#REF!"}},{"$f":"AND(#REF!,\"T7AmBGQ/6uY=\")","v":{"$error":"#REF!"}},{"$f":"AND(#REF!,\"T7AmBGQ/6uc=\")","v":{"$error":"#REF!"}},{"$f":"AND(#REF!,\"T7AmBGQ/6ug=\")","v":{"$error":"#REF!"}},{"$f":"AND(#REF!,\"T7AmBGQ/6uk=\")","v":{"$error":"#REF!"}},{"$f":"AND(#REF!,\"T7AmBGQ/6uo=\")","v":{"$error":"#REF!"}},{"$f":"AND(#REF!,\"T7AmBGQ/6us=\")","v":{"$error":"#REF!"}},{"$f":"AND(#REF!,\"T7AmBGQ/6uw=\")","v":{"$error":"#REF!"}},{"$f":"AND(#REF!,\"T7AmBGQ/6u0=\")","v":{"$error":"#REF!"}},{"$f":"AND(#REF!,\"T7AmBGQ/6u4=\")","v":{"$error":"#REF!"}},{"$f":"AND(#REF!,\"T7AmBGQ/6u8=\")","v":{"$error":"#REF!"}},{"$f":"AND(#REF!,\"T7AmBGQ/6vA=\")","v":{"$error":"#REF!"}},{"$f":"AND(#REF!,\"T7AmBGQ/6vE=\")","v":{"$error":"#REF!"}},{"$f":"AND(#REF!,\"T7AmBGQ/6vI=\")","v":{"$error":"#REF!"}},{"$f":"AND(#REF!,\"T7AmBGQ/6vM=\")","v":{"$error":"#REF!"}},{"$f":"AND(#REF!,\"T7AmBGQ/6vQ=\")","v":{"$error":"#REF!"}},{"$f":"AND(#REF!,\"T7AmBGQ/6vU=\")","v":{"$error":"#REF!"}},{"$f":"AND(#REF!,\"T7AmBGQ/6vY=\")","v":{"$error":"#REF!"}},{"$f":"AND(#REF!,\"T7AmBGQ/6vc=\")","v":{"$error":"#REF!"}},{"$f":"AND(#REF!,\"T7AmBGQ/6vg=\")","v":{"$error":"#REF!"}},{"$f":"AND(#REF!,\"T7AmBGQ/6vk=\")","v":{"$error":"#REF!"}},{"$f":"AND(#REF!,\"T7AmBGQ/6vo=\")","v":{"$error":"#REF!"}},{"$f":"AND(#REF!,\"T7AmBGQ/6vs=\")","v":{"$error":"#REF!"}},{"$f":"AND(#REF!,\"T7AmBGQ/6vw=\")","v":{"$error":"#REF!"}},{"$f":"AND(#REF!,\"T7AmBGQ/6v0=\")","v":{"$error":"#REF!"}},{"$f":"AND(#REF!,\"T7AmBGQ/6v4=\")","v":{"$error":"#REF!"}},{"$f":"AND(#REF!,\"T7AmBGQ/6v8=\")","v":{"$error":"#REF!"}}]
[{"$f":"AND(#REF!,\"BWp1phjMAwA=\")","v":{"$error":"#REF!"}},{"$f":"AND(#REF!,\"BWp1phjMAwE=\")","v":{"$error":"#REF!"}},{"$f":"AND(#REF!,\"BWp1phjMAwI=\")","v":{"$error":"#REF!"}},{"$f":"AND(#REF!,\"BWp1phjMAwM=\")","v":{"$error":"#REF!"}},{"$f":"AND(#REF!,\"BWp1phjMAwQ=\")","v":{"$error":"#REF!"}},{"$f":"AND(#REF!,\"BWp1phjMAwU=\")","v":{"$error":"#REF!"}},{"$f":"AND(#REF!,\"BWp1phjMAwY=\")","v":{"$error":"#REF!"}},{"$f":"AND(#REF!,\"BWp1phjMAwc=\")","v":{"$error":"#REF!"}},{"$f":"AND(#REF!,\"BWp1phjMAwg=\")","v":{"$error":"#REF!"}},{"$f":"AND(#REF!,\"BWp1phjMAwk=\")","v":{"$error":"#REF!"}},{"$f":"AND(#REF!,\"BWp1phjMAwo=\")","v":{"$error":"#REF!"}},{"$f":"AND(#REF!,\"BWp1phjMAws=\")","v":{"$error":"#REF!"}},{"$f":"AND(#REF!,\"BWp1phjMAww=\")","v":{"$error":"#REF!"}},{"$f":"AND(#REF!,\"BWp1phjMAw0=\")","v":{"$error":"#REF!"}},{"$f":"AND(#REF!,\"BWp1phjMAw4=\")","v":{"$error":"#REF!"}},{"$f":"AND(#REF!,\"BWp1phjMAw8=\")","v":{"$error":"#REF!"}},{"$f":"AND(#REF!,\"BWp1phjMAxA=\")","v":{"$error":"#REF!"}},{"$f":"AND(#REF!,\"BWp1phjMAxE=\")","v":{"$error":"#REF!"}},{"$f":"AND(#REF!,\"BWp1phjMAxI=\")","v":{"$error":"#REF!"}},{"$f":"AND(#REF!,\"BWp1phjMAxM=\")","v":{"$error":"#REF!"}},{"$f":"AND(#REF!,\"BWp1phjMAxQ=\")","v":{"$error":"#REF!"}},{"$f":"AND(#REF!,\"BWp1phjMAxU=\")","v":{"$error":"#REF!"}},{"$f":"AND(#REF!,\"BWp1phjMAxY=\")","v":{"$error":"#REF!"}},{"$f":"AND(#REF!,\"BWp1phjMAxc=\")","v":{"$error":"#REF!"}},{"$f":"AND(#REF!,\"BWp1phjMAxg=\")","v":{"$error":"#REF!"}},{"$f":"AND(#REF!,\"BWp1phjMAxk=\")","v":{"$error":"#REF!"}},{"$f":"AND(#REF!,\"BWp1phjMAxo=\")","v":{"$error":"#REF!"}},{"$f":"IF(#REF!,\"BWp1phjMAxs=\",0)","v":{"$error":"#REF!"}},{"$f":"AND(#REF!,\"BWp1phjMAxw=\")","v":{"$error":"#REF!"}},{"$f":"AND(#REF!,\"BWp1phjMAx0=\")","v":{"$error":"#REF!"}},{"$f":"AND(#REF!,\"BWp1phjMAx4=\")","v":{"$error":"#REF!"}},{"$f":"AND(#REF!,\"BWp1phjMAx8=\")","v":{"$error":"#REF!"}},{"$f":"AND(#REF!,\"BWp1phjMAyA=\")","v":{"$error":"#REF!"}},{"$f":"AND(#REF!,\"BWp1phjMAyE=\")","v":{"$error":"#REF!"}},{"$f":"AND(#REF!,\"BWp1phjMAyI=\")","v":{"$error":"#REF!"}},{"$f":"AND(#REF!,\"BWp1phjMAyM=\")","v":{"$error":"#REF!"}},{"$f":"AND(#REF!,\"BWp1phjMAyQ=\")","v":{"$error":"#REF!"}},{"$f":"AND(#REF!,\"BWp1phjMAyU=\")","v":{"$error":"#REF!"}},{"$f":"AND(#REF!,\"BWp1phjMAyY=\")","v":{"$error":"#REF!"}},{"$f":"AND(#REF!,\"BWp1phjMAyc=\")","v":{"$error":"#REF!"}},{"$f":"AND(#REF!,\"BWp1phjMAyg=\")","v":{"$error":"#REF!"}},{"$f":"AND(#REF!,\"BWp1phjMAyk=\")","v":{"$error":"#REF!"}},{"$f":"AND(#REF!,\"BWp1phjMAyo=\")","v":{"$error":"#REF!"}},{"$f":"AND(#REF!,\"BWp1phjMAys=\")","v":{"$error":"#REF!"}},{"$f":"AND(#REF!,\"BWp1phjMAyw=\")","v":{"$error":"#REF!"}},{"$f":"AND(#REF!,\"BWp1phjMAy0=\")","v":{"$error":"#REF!"}},{"$f":"AND(#REF!,\"BWp1phjMAy4=\")","v":{"$error":"#REF!"}},{"$f":"AND(#REF!,\"BWp1phjMAy8=\")","v":{"$error":"#REF!"}},{"$f":"AND(#REF!,\"BWp1phjMAzA=\")","v":{"$error":"#REF!"}},{"$f":"AND(#REF!,\"BWp1phjMAzE=\")","v":{"$error":"#REF!"}},{"$f":"AND(#REF!,\"BWp1phjMAzI=\")","v":{"$error":"#REF!"}},{"$f":"AND(#REF!,\"BWp1phjMAzM=\")","v":{"$error":"#REF!"}},{"$f":"AND(#REF!,\"BWp1phjMAzQ=\")","v":{"$error":"#REF!"}},{"$f":"AND(#REF!,\"BWp1phjMAzU=\")","v":{"$error":"#REF!"}},{"$f":"AND(#REF!,\"BWp1phjMAzY=\")","v":{"$error":"#REF!"}},{"$f":"AND(#REF!,\"BWp1phjMAzc=\")","v":{"$error":"#REF!"}},{"$f":"AND(#REF!,\"BWp1phjMAzg=\")","v":{"$error":"#REF!"}},{"$f":"AND(#REF!,\"BWp1phjMAzk=\")","v":{"$error":"#REF!"}},{"$f":"AND(#REF!,\"BWp1phjMAzo=\")","v":{"$error":"#REF!"}},{"$f":"AND(#REF!,\"BWp1phjMAzs=\")","v":{"$error":"#REF!"}},{"$f":"AND(#REF!,\"BWp1phjMAzw=\")","v":{"$error":"#REF!"}},{"$f":"AND(#REF!,\"BWp1phjMAz0=\")","v":{"$error":"#REF!"}},{"$f":"AND(#REF!,\"BWp1phjMAz4=\")","v":{"$error":"#REF!"}},{"$f":"AND(#REF!,\"BWp1phjMAz8=\")","v":{"$error":"#REF!"}},{"$f":"AND(#REF!,\"BWp1phjMA0A=\")","v":{"$error":"#REF!"}},{"$f":"AND(#REF!,\"BWp1phjMA0E=\")","v":{"$error":"#REF!"}},{"$f":"AND(#REF!,\"BWp1phjMA0I=\")","v":{"$error":"#REF!"}},{"$f":"AND(#REF!,\"BWp1phjMA0M=\")","v":{"$error":"#REF!"}},{"$f":"AND(#REF!,\"BWp1phjMA0Q=\")","v":{"$error":"#REF!"}},{"$f":"AND(#REF!,\"BWp1phjMA0U=\")","v":{"$error":"#REF!"}},{"$f":"AND(#REF!,\"BWp1phjMA0Y=\")","v":{"$error":"#REF!"}},{"$f":"AND(#REF!,\"BWp1phjMA0c=\")","v":{"$error":"#REF!"}},{"$f":"AND(#REF!,\"BWp1phjMA0g=\")","v":{"$error":"#REF!"}},{"$f":"AND(#REF!,\"BWp1phjMA0k=\")","v":{"$error":"#REF!"}},{"$f":"AND(#REF!,\"BWp1phjMA0o=\")","v":{"$error":"#REF!"}},{"$f":"AND(#REF!,\"BWp1phjMA0s=\")","v":{"$error":"#REF!"}},{"$f":"AND(#REF!,\"BWp1phjMA0w=\")","v":{"$error":"#REF!"}},{"$f":"AND(#REF!,\"BWp1phjMA00=\")","v":{"$error":"#REF!"}},{"$f":"AND(#REF!,\"BWp1phjMA04=\")","v":{"$error":"#REF!"}},{"$f":"AND(#REF!,\"BWp1phjMA08=\")","v":{"$error":"#REF!"}},{"$f":"AND(#REF!,\"BWp1phjMA1A=\")","v":{"$error":"#REF!"}},{"$f":"AND(#REF!,\"BWp1phjMA1E=\")","v":{"$error":"#REF!"}},{"$f":"AND(#REF!,\"BWp1phjMA1I=\")","v":{"$error":"#REF!"}},{"$f":"AND(#REF!,\"BWp1phjMA1M=\")","v":{"$error":"#REF!"}},{"$f":"AND(#REF!,\"BWp1phjMA1Q=\")","v":{"$error":"#REF!"}},{"$f":"AND(#REF!,\"BWp1phjMA1U=\")","v":{"$error":"#REF!"}},{"$f":"AND(#REF!,\"BWp1phjMA1Y=\")","v":{"$error":"#REF!"}},{"$f":"AND(#REF!,\"BWp1phjMA1c=\")","v":{"$error":"#REF!"}},{"$f":"AND(#REF!,\"BWp1phjMA1g=\")","v":{"$error":"#REF!"}},{"$f":"AND(#REF!,\"BWp1phjMA1k=\")","v":{"$error":"#REF!"}},{"$f":"AND(#REF!,\"BWp1phjMA1o=\")","v":{"$error":"#REF!"}},{"$f":"AND(#REF!,\"BWp1phjMA1s=\")","v":{"$error":"#REF!"}},{"$f":"AND(#REF!,\"BWp1phjMA1w=\")","v":{"$error":"#REF!"}},{"$f":"AND(#REF!,\"BWp1phjMA10=\")","v":{"$error":"#REF!"}},{"$f":"AND(#REF!,\"BWp1phjMA14=\")","v":{"$error":"#REF!"}},{"$f":"AND(#REF!,\"BWp1phjMA18=\")","v":{"$error":"#REF!"}},{"$f":"AND(#REF!,\"BWp1phjMA2A=\")","v":{"$error":"#REF!"}},{"$f":"AND(#REF!,\"BWp1phjMA2E=\")","v":{"$error":"#REF!"}},{"$f":"AND(#REF!,\"BWp1phjMA2I=\")","v":{"$error":"#REF!"}},{"$f":"AND(#REF!,\"BWp1phjMA2M=\")","v":{"$error":"#REF!"}},{"$f":"AND(#REF!,\"BWp1phjMA2Q=\")","v":{"$error":"#REF!"}},{"$f":"AND(#REF!,\"BWp1phjMA2U=\")","v":{"$error":"#REF!"}},{"$f":"AND(#REF!,\"BWp1phjMA2Y=\")","v":{"$error":"#REF!"}},{"$f":"AND(#REF!,\"BWp1phjMA2c=\")","v":{"$error":"#REF!"}},{"$f":"AND(#REF!,\"BWp1phjMA2g=\")","v":{"$error":"#REF!"}},{"$f":"AND(#REF!,\"BWp1phjMA2k=\")","v":{"$error":"#REF!"}},{"$f":"AND(#REF!,\"BWp1phjMA2o=\")","v":{"$error":"#REF!"}},{"$f":"AND(#REF!,\"BWp1phjMA2s=\")","v":{"$error":"#REF!"}},{"$f":"AND(#REF!,\"BWp1phjMA2w=\")","v":{"$error":"#REF!"}},{"$f":"AND(#REF!,\"BWp1phjMA20=\")","v":{"$error":"#REF!"}},{"$f":"AND(#REF!,\"BWp1phjMA24=\")","v":{"$error":"#REF!"}},{"$f":"AND(#REF!,\"BWp1phjMA28=\")","v":{"$error":"#REF!"}},{"$f":"AND(#REF!,\"BWp1phjMA3A=\")","v":{"$error":"#REF!"}},{"$f":"AND(#REF!,\"BWp1phjMA3E=\")","v":{"$error":"#REF!"}},{"$f":"AND(#REF!,\"BWp1phjMA3I=\")","v":{"$error":"#REF!"}},{"$f":"AND(#REF!,\"BWp1phjMA3M=\")","v":{"$error":"#REF!"}},{"$f":"AND(#REF!,\"BWp1phjMA3Q=\")","v":{"$error":"#REF!"}},{"$f":"AND(#REF!,\"BWp1phjMA3U=\")","v":{"$error":"#REF!"}},{"$f":"AND(#REF!,\"BWp1phjMA3Y=\")","v":{"$error":"#REF!"}},{"$f":"AND(#REF!,\"BWp1phjMA3c=\")","v":{"$error":"#REF!"}},{"$f":"AND(#REF!,\"BWp1phjMA3g=\")","v":{"$error":"#REF!"}},{"$f":"AND(#REF!,\"BWp1phjMA3k=\")","v":{"$error":"#REF!"}},{"$f":"AND(#REF!,\"BWp1phjMA3o=\")","v":{"$error":"#REF!"}},{"$f":"AND(#REF!,\"BWp1phjMA3s=\")","v":{"$error":"#REF!"}},{"$f":"AND(#REF!,\"BWp1phjMA3w=\")","v":{"$error":"#REF!"}},{"$f":"AND(#REF!,\"BWp1phjMA30=\")","v":{"$error":"#REF!"}},{"$f":"AND(#REF!,\"BWp1phjMA34=\")","v":{"$error":"#REF!"}},{"$f":"AND(#REF!,\"BWp1phjMA38=\")","v":{"$error":"#REF!"}},{"$f":"AND(#REF!,\"BWp1phjMA4A=\")","v":{"$error":"#REF!"}},{"$f":"AND(#REF!,\"BWp1phjMA4E=\")","v":{"$error":"#REF!"}},{"$f":"AND(#REF!,\"BWp1phjMA4I=\")","v":{"$error":"#REF!"}},{"$f":"AND(#REF!,\"BWp1phjMA4M=\")","v":{"$error":"#REF!"}},{"$f":"AND(#REF!,\"BWp1phjMA4Q=\")","v":{"$error":"#REF!"}},{"$f":"AND(#REF!,\"BWp1phjMA4U=\")","v":{"$error":"#REF!"}},{"$f":"AND(#REF!,\"BWp1phjMA4Y=\")","v":{"$error":"#REF!"}},{"$f":"AND(#REF!,\"BWp1phjMA4c=\")","v":{"$error":"#REF!"}},{"$f":"AND(#REF!,\"BWp1phjMA4g=\")","v":{"$error":"#REF!"}},{"$f":"AND(#REF!,\"BWp1phjMA4k=\")","v":{"$error":"#REF!"}},{"$f":"AND(#REF!,\"BWp1phjMA4o=\")","v":{"$error":"#REF!"}},{"$f":"AND(#REF!,\"BWp1phjMA4s=\")","v":{"$error":"#REF!"}},{"$f":"AND(#REF!,\"BWp1phjMA4w=\")","v":{"$error":"#REF!"}},{"$f":"AND(#REF!,\"BWp1phjMA40=\")","v":{"$error":"#REF!"}},{"$f":"AND(#REF!,\"BWp1phjMA44=\")","v":{"$error":"#REF!"}},{"$f":"AND(#REF!,\"BWp1phjMA48=\")","v":{"$error":"#REF!"}},{"$f":"AND(#REF!,\"BWp1phjMA5A=\")","v":{"$error":"#REF!"}},{"$f":"AND(#REF!,\"BWp1phjMA5E=\")","v":{"$error":"#REF!"}},{"$f":"AND(#REF!,\"BWp1phjMA5I=\")","v":{"$error":"#REF!"}},{"$f":"AND(#REF!,\"BWp1phjMA5M=\")","v":{"$error":"#REF!"}},{"$f":"AND(#REF!,\"BWp1phjMA5Q=\")","v":{"$error":"#REF!"}},{"$f":"AND(#REF!,\"BWp1phjMA5U=\")","v":{"$error":"#REF!"}},{"$f":"AND(#REF!,\"BWp1phjMA5Y=\")","v":{"$error":"#REF!"}},{"$f":"AND(#REF!,\"BWp1phjMA5c=\")","v":{"$error":"#REF!"}},{"$f":"AND(#REF!,\"BWp1phjMA5g=\")","v":{"$error":"#REF!"}},{"$f":"AND(#REF!,\"BWp1phjMA5k=\")","v":{"$error":"#REF!"}},{"$f":"AND(#REF!,\"BWp1phjMA5o=\")","v":{"$error":"#REF!"}},{"$f":"AND(#REF!,\"BWp1phjMA5s=\")","v":{"$error":"#REF!"}},{"$f":"AND(#REF!,\"BWp1phjMA5w=\")","v":{"$error":"#REF!"}},{"$f":"AND(#REF!,\"BWp1phjMA50=\")","v":{"$error":"#REF!"}},{"$f":"AND(#REF!,\"BWp1phjMA54=\")","v":{"$error":"#REF!"}},{"$f":"AND(#REF!,\"BWp1phjMA58=\")","v":{"$error":"#REF!"}},{"$f":"AND(#REF!,\"BWp1phjMA6A=\")","v":{"$error":"#REF!"}},{"$f":"AND(#REF!,\"BWp1phjMA6E=\")","v":{"$error":"#REF!"}},{"$f":"AND(#REF!,\"BWp1phjMA6I=\")","v":{"$error":"#REF!"}},{"$f":"AND(#REF!,\"BWp1phjMA6M=\")","v":{"$error":"#REF!"}},{"$f":"AND(#REF!,\"BWp1phjMA6Q=\")","v":{"$error":"#REF!"}},{"$f":"AND(#REF!,\"BWp1phjMA6U=\")","v":{"$error":"#REF!"}},{"$f":"AND(#REF!,\"BWp1phjMA6Y=\")","v":{"$error":"#REF!"}},{"$f":"AND(#REF!,\"BWp1phjMA6c=\")","v":{"$error":"#REF!"}},{"$f":"AND(#REF!,\"BWp1phjMA6g=\")","v":{"$error":"#REF!"}},{"$f":"AND(#REF!,\"BWp1phjMA6k=\")","v":{"$error":"#REF!"}},{"$f":"AND(#REF!,\"BWp1phjMA6o=\")","v":{"$error":"#REF!"}},{"$f":"AND(#REF!,\"BWp1phjMA6s=\")","v":{"$error":"#REF!"}},{"$f":"AND(#REF!,\"BWp1phjMA6w=\")","v":{"$error":"#REF!"}},{"$f":"AND(#REF!,\"BWp1phjMA60=\")","v":{"$error":"#REF!"}},{"$f":"AND(#REF!,\"BWp1phjMA64=\")","v":{"$error":"#REF!"}},{"$f":"AND(#REF!,\"BWp1phjMA68=\")","v":{"$error":"#REF!"}},{"$f":"AND(#REF!,\"BWp1phjMA7A=\")","v":{"$error":"#REF!"}},{"$f":"AND(#REF!,\"BWp1phjMA7E=\")","v":{"$error":"#REF!"}},{"$f":"AND(#REF!,\"BWp1phjMA7I=\")","v":{"$error":"#REF!"}},{"$f":"AND(#REF!,\"BWp1phjMA7M=\")","v":{"$error":"#REF!"}},{"$f":"AND(#REF!,\"BWp1phjMA7Q=\")","v":{"$error":"#REF!"}},{"$f":"AND(#REF!,\"BWp1phjMA7U=\")","v":{"$error":"#REF!"}},{"$f":"AND(#REF!,\"BWp1phjMA7Y=\")","v":{"$error":"#REF!"}},{"$f":"AND(#REF!,\"BWp1phjMA7c=\")","v":{"$error":"#REF!"}},{"$f":"AND(#REF!,\"BWp1phjMA7g=\")","v":{"$error":"#REF!"}},{"$f":"AND(#REF!,\"BWp1phjMA7k=\")","v":{"$error":"#REF!"}},{"$f":"AND(#REF!,\"BWp1phjMA7o=\")","v":{"$error":"#REF!"}},{"$f":"AND(#REF!,\"BWp1phjMA7s=\")","v":{"$error":"#REF!"}},{"$f":"AND(#REF!,\"BWp1phjMA7w=\")","v":{"$error":"#REF!"}},{"$f":"AND(#REF!,\"BWp1phjMA70=\")","v":{"$error":"#REF!"}},{"$f":"AND(#REF!,\"BWp1phjMA74=\")","v":{"$error":"#REF!"}},{"$f":"AND(#REF!,\"BWp1phjMA78=\")","v":{"$error":"#REF!"}},{"$f":"AND(#REF!,\"BWp1phjMA8A=\")","v":{"$error":"#REF!"}},{"$f":"AND(#REF!,\"BWp1phjMA8E=\")","v":{"$error":"#REF!"}},{"$f":"AND(#REF!,\"BWp1phjMA8I=\")","v":{"$error":"#REF!"}},{"$f":"AND(#REF!,\"BWp1phjMA8M=\")","v":{"$error":"#REF!"}},{"$f":"AND(#REF!,\"BWp1phjMA8Q=\")","v":{"$error":"#REF!"}},{"$f":"AND(#REF!,\"BWp1phjMA8U=\")","v":{"$error":"#REF!"}},{"$f":"AND(#REF!,\"BWp1phjMA8Y=\")","v":{"$error":"#REF!"}},{"$f":"AND(#REF!,\"BWp1phjMA8c=\")","v":{"$error":"#REF!"}},{"$f":"AND(#REF!,\"BWp1phjMA8g=\")","v":{"$error":"#REF!"}},{"$f":"AND(#REF!,\"BWp1phjMA8k=\")","v":{"$error":"#REF!"}},{"$f":"AND(#REF!,\"BWp1phjMA8o=\")","v":{"$error":"#REF!"}},{"$f":"AND(#REF!,\"BWp1phjMA8s=\")","v":{"$error":"#REF!"}},{"$f":"AND(#REF!,\"BWp1phjMA8w=\")","v":{"$error":"#REF!"}},{"$f":"AND(#REF!,\"BWp1phjMA80=\")","v":{"$error":"#REF!"}},{"$f":"AND(#REF!,\"BWp1phjMA84=\")","v":{"$error":"#REF!"}},{"$f":"AND(#REF!,\"BWp1phjMA88=\")","v":{"$error":"#REF!"}},{"$f":"AND(#REF!,\"BWp1phjMA9A=\")","v":{"$error":"#REF!"}},{"$f":"AND(#REF!,\"BWp1phjMA9E=\")","v":{"$error":"#REF!"}},{"$f":"AND(#REF!,\"BWp1phjMA9I=\")","v":{"$error":"#REF!"}},{"$f":"AND(#REF!,\"BWp1phjMA9M=\")","v":{"$error":"#REF!"}},{"$f":"AND(#REF!,\"BWp1phjMA9Q=\")","v":{"$error":"#REF!"}},{"$f":"AND(#REF!,\"BWp1phjMA9U=\")","v":{"$error":"#REF!"}},{"$f":"AND(#REF!,\"BWp1phjMA9Y=\")","v":{"$error":"#REF!"}},{"$f":"AND(#REF!,\"BWp1phjMA9c=\")","v":{"$error":"#REF!"}},{"$f":"AND(#REF!,\"BWp1phjMA9g=\")","v":{"$error":"#REF!"}},{"$f":"AND(#REF!,\"BWp1phjMA9k=\")","v":{"$error":"#REF!"}},{"$f":"AND(#REF!,\"BWp1phjMA9o=\")","v":{"$error":"#REF!"}},{"$f":"AND(#REF!,\"BWp1phjMA9s=\")","v":{"$error":"#REF!"}},{"$f":"AND(#REF!,\"BWp1phjMA9w=\")","v":{"$error":"#REF!"}},{"$f":"AND(#REF!,\"BWp1phjMA90=\")","v":{"$error":"#REF!"}},{"$f":"AND(#REF!,\"BWp1phjMA94=\")","v":{"$error":"#REF!"}},{"$f":"AND(#REF!,\"BWp1phjMA98=\")","v":{"$error":"#REF!"}},{"$f":"AND(#REF!,\"BWp1phjMA+A=\")","v":{"$error":"#REF!"}},{"$f":"AND(#REF!,\"BWp1phjMA+E=\")","v":{"$error":"#REF!"}},{"$f":"IF(#REF!,\"BWp1phjMA+I=\",0)","v":{"$error":"#REF!"}},{"$f":"AND(#REF!,\"BWp1phjMA+M=\")","v":{"$error":"#REF!"}},{"$f":"AND(#REF!,\"BWp1phjMA+Q=\")","v":{"$error":"#REF!"}},{"$f":"AND(#REF!,\"BWp1phjMA+U=\")","v":{"$error":"#REF!"}},{"$f":"AND(#REF!,\"BWp1phjMA+Y=\")","v":{"$error":"#REF!"}},{"$f":"AND(#REF!,\"BWp1phjMA+c=\")","v":{"$error":"#REF!"}},{"$f":"AND(#REF!,\"BWp1phjMA+g=\")","v":{"$error":"#REF!"}},{"$f":"AND(#REF!,\"BWp1phjMA+k=\")","v":{"$error":"#REF!"}},{"$f":"AND(#REF!,\"BWp1phjMA+o=\")","v":{"$error":"#REF!"}},{"$f":"AND(#REF!,\"BWp1phjMA+s=\")","v":{"$error":"#REF!"}},{"$f":"AND(#REF!,\"BWp1phjMA+w=\")","v":{"$error":"#REF!"}},{"$f":"AND(#REF!,\"BWp1phjMA+0=\")","v":{"$error":"#REF!"}},{"$f":"AND(#REF!,\"BWp1phjMA+4=\")","v":{"$error":"#REF!"}},{"$f":"AND(#REF!,\"BWp1phjMA+8=\")","v":{"$error":"#REF!"}},{"$f":"AND(#REF!,\"BWp1phjMA/A=\")","v":{"$error":"#REF!"}},{"$f":"AND(#REF!,\"BWp1phjMA/E=\")","v":{"$error":"#REF!"}},{"$f":"AND(#REF!,\"BWp1phjMA/I=\")","v":{"$error":"#REF!"}},{"$f":"AND(#REF!,\"BWp1phjMA/M=\")","v":{"$error":"#REF!"}},{"$f":"AND(#REF!,\"BWp1phjMA/Q=\")","v":{"$error":"#REF!"}},{"$f":"AND(#REF!,\"BWp1phjMA/U=\")","v":{"$error":"#REF!"}},{"$f":"AND(#REF!,\"BWp1phjMA/Y=\")","v":{"$error":"#REF!"}},{"$f":"AND(#REF!,\"BWp1phjMA/c=\")","v":{"$error":"#REF!"}},{"$f":"AND(#REF!,\"BWp1phjMA/g=\")","v":{"$error":"#REF!"}},{"$f":"AND(#REF!,\"BWp1phjMA/k=\")","v":{"$error":"#REF!"}},{"$f":"AND(#REF!,\"BWp1phjMA/o=\")","v":{"$error":"#REF!"}},{"$f":"AND(#REF!,\"BWp1phjMA/s=\")","v":{"$error":"#REF!"}},{"$f":"AND(#REF!,\"BWp1phjMA/w=\")","v":{"$error":"#REF!"}},{"$f":"AND(#REF!,\"BWp1phjMA/0=\")","v":{"$error":"#REF!"}},{"$f":"AND(#REF!,\"BWp1phjMA/4=\")","v":{"$error":"#REF!"}},{"$f":"AND(#REF!,\"BWp1phjMA/8=\")","v":{"$error":"#REF!"}}]
[{"$f":"AND(#REF!,\"Ok7nKn1PrAA=\")","v":{"$error":"#REF!"}},{"$f":"AND(#REF!,\"Ok7nKn1PrAE=\")","v":{"$error":"#REF!"}},{"$f":"AND(#REF!,\"Ok7nKn1PrAI=\")","v":{"$error":"#REF!"}},{"$f":"AND(#REF!,\"Ok7nKn1PrAM=\")","v":{"$error":"#REF!"}},{"$f":"AND(#REF!,\"Ok7nKn1PrAQ=\")","v":{"$error":"#REF!"}},{"$f":"AND(#REF!,\"Ok7nKn1PrAU=\")","v":{"$error":"#REF!"}},{"$f":"AND(#REF!,\"Ok7nKn1PrAY=\")","v":{"$error":"#REF!"}},{"$f":"AND(#REF!,\"Ok7nKn1PrAc=\")","v":{"$error":"#REF!"}},{"$f":"AND(#REF!,\"Ok7nKn1PrAg=\")","v":{"$error":"#REF!"}},{"$f":"AND(#REF!,\"Ok7nKn1PrAk=\")","v":{"$error":"#REF!"}},{"$f":"AND(#REF!,\"Ok7nKn1PrAo=\")","v":{"$error":"#REF!"}},{"$f":"AND(#REF!,\"Ok7nKn1PrAs=\")","v":{"$error":"#REF!"}},{"$f":"AND(#REF!,\"Ok7nKn1PrAw=\")","v":{"$error":"#REF!"}},{"$f":"AND(#REF!,\"Ok7nKn1PrA0=\")","v":{"$error":"#REF!"}},{"$f":"AND(#REF!,\"Ok7nKn1PrA4=\")","v":{"$error":"#REF!"}},{"$f":"AND(#REF!,\"Ok7nKn1PrA8=\")","v":{"$error":"#REF!"}},{"$f":"AND(#REF!,\"Ok7nKn1PrBA=\")","v":{"$error":"#REF!"}},{"$f":"AND(#REF!,\"Ok7nKn1PrBE=\")","v":{"$error":"#REF!"}},{"$f":"AND(#REF!,\"Ok7nKn1PrBI=\")","v":{"$error":"#REF!"}},{"$f":"AND(#REF!,\"Ok7nKn1PrBM=\")","v":{"$error":"#REF!"}},{"$f":"AND(#REF!,\"Ok7nKn1PrBQ=\")","v":{"$error":"#REF!"}},{"$f":"AND(#REF!,\"Ok7nKn1PrBU=\")","v":{"$error":"#REF!"}},{"$f":"AND(#REF!,\"Ok7nKn1PrBY=\")","v":{"$error":"#REF!"}},{"$f":"AND(#REF!,\"Ok7nKn1PrBc=\")","v":{"$error":"#REF!"}},{"$f":"AND(#REF!,\"Ok7nKn1PrBg=\")","v":{"$error":"#REF!"}},{"$f":"AND(#REF!,\"Ok7nKn1PrBk=\")","v":{"$error":"#REF!"}},{"$f":"AND(#REF!,\"Ok7nKn1PrBo=\")","v":{"$error":"#REF!"}},{"$f":"AND(#REF!,\"Ok7nKn1PrBs=\")","v":{"$error":"#REF!"}},{"$f":"AND(#REF!,\"Ok7nKn1PrBw=\")","v":{"$error":"#REF!"}},{"$f":"AND(#REF!,\"Ok7nKn1PrB0=\")","v":{"$error":"#REF!"}},{"$f":"AND(#REF!,\"Ok7nKn1PrB4=\")","v":{"$error":"#REF!"}},{"$f":"AND(#REF!,\"Ok7nKn1PrB8=\")","v":{"$error":"#REF!"}},{"$f":"AND(#REF!,\"Ok7nKn1PrCA=\")","v":{"$error":"#REF!"}},{"$f":"AND(#REF!,\"Ok7nKn1PrCE=\")","v":{"$error":"#REF!"}},{"$f":"AND(#REF!,\"Ok7nKn1PrCI=\")","v":{"$error":"#REF!"}},{"$f":"AND(#REF!,\"Ok7nKn1PrCM=\")","v":{"$error":"#REF!"}},{"$f":"AND(#REF!,\"Ok7nKn1PrCQ=\")","v":{"$error":"#REF!"}},{"$f":"AND(#REF!,\"Ok7nKn1PrCU=\")","v":{"$error":"#REF!"}},{"$f":"AND(#REF!,\"Ok7nKn1PrCY=\")","v":{"$error":"#REF!"}},{"$f":"AND(#REF!,\"Ok7nKn1PrCc=\")","v":{"$error":"#REF!"}},{"$f":"AND(#REF!,\"Ok7nKn1PrCg=\")","v":{"$error":"#REF!"}},{"$f":"AND(#REF!,\"Ok7nKn1PrCk=\")","v":{"$error":"#REF!"}},{"$f":"AND(#REF!,\"Ok7nKn1PrCo=\")","v":{"$error":"#REF!"}},{"$f":"AND(#REF!,\"Ok7nKn1PrCs=\")","v":{"$error":"#REF!"}},{"$f":"AND(#REF!,\"Ok7nKn1PrCw=\")","v":{"$error":"#REF!"}},{"$f":"AND(#REF!,\"Ok7nKn1PrC0=\")","v":{"$error":"#REF!"}},{"$f":"AND(#REF!,\"Ok7nKn1PrC4=\")","v":{"$error":"#REF!"}},{"$f":"AND(#REF!,\"Ok7nKn1PrC8=\")","v":{"$error":"#REF!"}},{"$f":"AND(#REF!,\"Ok7nKn1PrDA=\")","v":{"$error":"#REF!"}},{"$f":"AND(#REF!,\"Ok7nKn1PrDE=\")","v":{"$error":"#REF!"}},{"$f":"AND(#REF!,\"Ok7nKn1PrDI=\")","v":{"$error":"#REF!"}},{"$f":"AND(#REF!,\"Ok7nKn1PrDM=\")","v":{"$error":"#REF!"}},{"$f":"AND(#REF!,\"Ok7nKn1PrDQ=\")","v":{"$error":"#REF!"}},{"$f":"AND(#REF!,\"Ok7nKn1PrDU=\")","v":{"$error":"#REF!"}},{"$f":"AND(#REF!,\"Ok7nKn1PrDY=\")","v":{"$error":"#REF!"}},{"$f":"AND(#REF!,\"Ok7nKn1PrDc=\")","v":{"$error":"#REF!"}},{"$f":"AND(#REF!,\"Ok7nKn1PrDg=\")","v":{"$error":"#REF!"}},{"$f":"AND(#REF!,\"Ok7nKn1PrDk=\")","v":{"$error":"#REF!"}},{"$f":"AND(#REF!,\"Ok7nKn1PrDo=\")","v":{"$error":"#REF!"}},{"$f":"AND(#REF!,\"Ok7nKn1PrDs=\")","v":{"$error":"#REF!"}},{"$f":"AND(#REF!,\"Ok7nKn1PrDw=\")","v":{"$error":"#REF!"}},{"$f":"AND(#REF!,\"Ok7nKn1PrD0=\")","v":{"$error":"#REF!"}},{"$f":"AND(#REF!,\"Ok7nKn1PrD4=\")","v":{"$error":"#REF!"}},{"$f":"AND(#REF!,\"Ok7nKn1PrD8=\")","v":{"$error":"#REF!"}},{"$f":"AND(#REF!,\"Ok7nKn1PrEA=\")","v":{"$error":"#REF!"}},{"$f":"AND(#REF!,\"Ok7nKn1PrEE=\")","v":{"$error":"#REF!"}},{"$f":"AND(#REF!,\"Ok7nKn1PrEI=\")","v":{"$error":"#REF!"}},{"$f":"AND(#REF!,\"Ok7nKn1PrEM=\")","v":{"$error":"#REF!"}},{"$f":"AND(#REF!,\"Ok7nKn1PrEQ=\")","v":{"$error":"#REF!"}},{"$f":"AND(#REF!,\"Ok7nKn1PrEU=\")","v":{"$error":"#REF!"}},{"$f":"AND(#REF!,\"Ok7nKn1PrEY=\")","v":{"$error":"#REF!"}},{"$f":"AND(#REF!,\"Ok7nKn1PrEc=\")","v":{"$error":"#REF!"}},{"$f":"AND(#REF!,\"Ok7nKn1PrEg=\")","v":{"$error":"#REF!"}},{"$f":"AND(#REF!,\"Ok7nKn1PrEk=\")","v":{"$error":"#REF!"}},{"$f":"AND(#REF!,\"Ok7nKn1PrEo=\")","v":{"$error":"#REF!"}},{"$f":"AND(#REF!,\"Ok7nKn1PrEs=\")","v":{"$error":"#REF!"}},{"$f":"AND(#REF!,\"Ok7nKn1PrEw=\")","v":{"$error":"#REF!"}},{"$f":"AND(#REF!,\"Ok7nKn1PrE0=\")","v":{"$error":"#REF!"}},{"$f":"AND(#REF!,\"Ok7nKn1PrE4=\")","v":{"$error":"#REF!"}},{"$f":"AND(#REF!,\"Ok7nKn1PrE8=\")","v":{"$error":"#REF!"}},{"$f":"AND(#REF!,\"Ok7nKn1PrFA=\")","v":{"$error":"#REF!"}},{"$f":"AND(#REF!,\"Ok7nKn1PrFE=\")","v":{"$error":"#REF!"}},{"$f":"AND(#REF!,\"Ok7nKn1PrFI=\")","v":{"$error":"#REF!"}},{"$f":"AND(#REF!,\"Ok7nKn1PrFM=\")","v":{"$error":"#REF!"}},{"$f":"AND(#REF!,\"Ok7nKn1PrFQ=\")","v":{"$error":"#REF!"}},{"$f":"AND(#REF!,\"Ok7nKn1PrFU=\")","v":{"$error":"#REF!"}},{"$f":"AND(#REF!,\"Ok7nKn1PrFY=\")","v":{"$error":"#REF!"}},{"$f":"AND(#REF!,\"Ok7nKn1PrFc=\")","v":{"$error":"#REF!"}},{"$f":"AND(#REF!,\"Ok7nKn1PrFg=\")","v":{"$error":"#REF!"}},{"$f":"AND(#REF!,\"Ok7nKn1PrFk=\")","v":{"$error":"#REF!"}},{"$f":"AND(#REF!,\"Ok7nKn1PrFo=\")","v":{"$error":"#REF!"}},{"$f":"AND(#REF!,\"Ok7nKn1PrFs=\")","v":{"$error":"#REF!"}},{"$f":"AND(#REF!,\"Ok7nKn1PrFw=\")","v":{"$error":"#REF!"}},{"$f":"AND(#REF!,\"Ok7nKn1PrF0=\")","v":{"$error":"#REF!"}},{"$f":"AND(#REF!,\"Ok7nKn1PrF4=\")","v":{"$error":"#REF!"}},{"$f":"AND(#REF!,\"Ok7nKn1PrF8=\")","v":{"$error":"#REF!"}},{"$f":"AND(#REF!,\"Ok7nKn1PrGA=\")","v":{"$error":"#REF!"}},{"$f":"AND(#REF!,\"Ok7nKn1PrGE=\")","v":{"$error":"#REF!"}},{"$f":"AND(#REF!,\"Ok7nKn1PrGI=\")","v":{"$error":"#REF!"}},{"$f":"AND(#REF!,\"Ok7nKn1PrGM=\")","v":{"$error":"#REF!"}},{"$f":"AND(#REF!,\"Ok7nKn1PrGQ=\")","v":{"$error":"#REF!"}},{"$f":"AND(#REF!,\"Ok7nKn1PrGU=\")","v":{"$error":"#REF!"}},{"$f":"AND(#REF!,\"Ok7nKn1PrGY=\")","v":{"$error":"#REF!"}},{"$f":"AND(#REF!,\"Ok7nKn1PrGc=\")","v":{"$error":"#REF!"}},{"$f":"AND(#REF!,\"Ok7nKn1PrGg=\")","v":{"$error":"#REF!"}},{"$f":"AND(#REF!,\"Ok7nKn1PrGk=\")","v":{"$error":"#REF!"}},{"$f":"AND(#REF!,\"Ok7nKn1PrGo=\")","v":{"$error":"#REF!"}},{"$f":"AND(#REF!,\"Ok7nKn1PrGs=\")","v":{"$error":"#REF!"}},{"$f":"AND(#REF!,\"Ok7nKn1PrGw=\")","v":{"$error":"#REF!"}},{"$f":"AND(#REF!,\"Ok7nKn1PrG0=\")","v":{"$error":"#REF!"}},{"$f":"AND(#REF!,\"Ok7nKn1PrG4=\")","v":{"$error":"#REF!"}},{"$f":"AND(#REF!,\"Ok7nKn1PrG8=\")","v":{"$error":"#REF!"}},{"$f":"AND(#REF!,\"Ok7nKn1PrHA=\")","v":{"$error":"#REF!"}},{"$f":"AND(#REF!,\"Ok7nKn1PrHE=\")","v":{"$error":"#REF!"}},{"$f":"AND(#REF!,\"Ok7nKn1PrHI=\")","v":{"$error":"#REF!"}},{"$f":"AND(#REF!,\"Ok7nKn1PrHM=\")","v":{"$error":"#REF!"}},{"$f":"AND(#REF!,\"Ok7nKn1PrHQ=\")","v":{"$error":"#REF!"}},{"$f":"AND(#REF!,\"Ok7nKn1PrHU=\")","v":{"$error":"#REF!"}},{"$f":"AND(#REF!,\"Ok7nKn1PrHY=\")","v":{"$error":"#REF!"}},{"$f":"AND(#REF!,\"Ok7nKn1PrHc=\")","v":{"$error":"#REF!"}},{"$f":"AND(#REF!,\"Ok7nKn1PrHg=\")","v":{"$error":"#REF!"}},{"$f":"AND(#REF!,\"Ok7nKn1PrHk=\")","v":{"$error":"#REF!"}},{"$f":"AND(#REF!,\"Ok7nKn1PrHo=\")","v":{"$error":"#REF!"}},{"$f":"AND(#REF!,\"Ok7nKn1PrHs=\")","v":{"$error":"#REF!"}},{"$f":"AND(#REF!,\"Ok7nKn1PrHw=\")","v":{"$error":"#REF!"}},{"$f":"AND(#REF!,\"Ok7nKn1PrH0=\")","v":{"$error":"#REF!"}},{"$f":"AND(#REF!,\"Ok7nKn1PrH4=\")","v":{"$error":"#REF!"}},{"$f":"AND(#REF!,\"Ok7nKn1PrH8=\")","v":{"$error":"#REF!"}},{"$f":"AND(#REF!,\"Ok7nKn1PrIA=\")","v":{"$error":"#REF!"}},{"$f":"AND(#REF!,\"Ok7nKn1PrIE=\")","v":{"$error":"#REF!"}},{"$f":"AND(#REF!,\"Ok7nKn1PrII=\")","v":{"$error":"#REF!"}},{"$f":"AND(#REF!,\"Ok7nKn1PrIM=\")","v":{"$error":"#REF!"}},{"$f":"AND(#REF!,\"Ok7nKn1PrIQ=\")","v":{"$error":"#REF!"}},{"$f":"AND(#REF!,\"Ok7nKn1PrIU=\")","v":{"$error":"#REF!"}},{"$f":"AND(#REF!,\"Ok7nKn1PrIY=\")","v":{"$error":"#REF!"}},{"$f":"AND(#REF!,\"Ok7nKn1PrIc=\")","v":{"$error":"#REF!"}},{"$f":"AND(#REF!,\"Ok7nKn1PrIg=\")","v":{"$error":"#REF!"}},{"$f":"AND(#REF!,\"Ok7nKn1PrIk=\")","v":{"$error":"#REF!"}},{"$f":"AND(#REF!,\"Ok7nKn1PrIo=\")","v":{"$error":"#REF!"}},{"$f":"AND(#REF!,\"Ok7nKn1PrIs=\")","v":{"$error":"#REF!"}},{"$f":"AND(#REF!,\"Ok7nKn1PrIw=\")","v":{"$error":"#REF!"}},{"$f":"AND(#REF!,\"Ok7nKn1PrI0=\")","v":{"$error":"#REF!"}},{"$f":"AND(#REF!,\"Ok7nKn1PrI4=\")","v":{"$error":"#REF!"}},{"$f":"AND(#REF!,\"Ok7nKn1PrI8=\")","v":{"$error":"#REF!"}},{"$f":"AND(#REF!,\"Ok7nKn1PrJA=\")","v":{"$error":"#REF!"}},{"$f":"AND(#REF!,\"Ok7nKn1PrJE=\")","v":{"$error":"#REF!"}},{"$f":"AND(#REF!,\"Ok7nKn1PrJI=\")","v":{"$error":"#REF!"}},{"$f":"AND(#REF!,\"Ok7nKn1PrJM=\")","v":{"$error":"#REF!"}},{"$f":"AND(#REF!,\"Ok7nKn1PrJQ=\")","v":{"$error":"#REF!"}},{"$f":"AND(#REF!,\"Ok7nKn1PrJU=\")","v":{"$error":"#REF!"}},{"$f":"AND(#REF!,\"Ok7nKn1PrJY=\")","v":{"$error":"#REF!"}},{"$f":"AND(#REF!,\"Ok7nKn1PrJc=\")","v":{"$error":"#REF!"}},{"$f":"AND(#REF!,\"Ok7nKn1PrJg=\")","v":{"$error":"#REF!"}},{"$f":"AND(#REF!,\"Ok7nKn1PrJk=\")","v":{"$error":"#REF!"}},{"$f":"AND(#REF!,\"Ok7nKn1PrJo=\")","v":{"$error":"#REF!"}},{"$f":"AND(#REF!,\"Ok7nKn1PrJs=\")","v":{"$error":"#REF!"}},{"$f":"AND(#REF!,\"Ok7nKn1PrJw=\")","v":{"$error":"#REF!"}},{"$f":"AND(#REF!,\"Ok7nKn1PrJ0=\")","v":{"$error":"#REF!"}},{"$f":"AND(#REF!,\"Ok7nKn1PrJ4=\")","v":{"$error":"#REF!"}},{"$f":"AND(#REF!,\"Ok7nKn1PrJ8=\")","v":{"$error":"#REF!"}},{"$f":"AND(#REF!,\"Ok7nKn1PrKA=\")","v":{"$error":"#REF!"}},{"$f":"AND(#REF!,\"Ok7nKn1PrKE=\")","v":{"$error":"#REF!"}},{"$f":"AND(#REF!,\"Ok7nKn1PrKI=\")","v":{"$error":"#REF!"}},{"$f":"AND(#REF!,\"Ok7nKn1PrKM=\")","v":{"$error":"#REF!"}},{"$f":"AND(#REF!,\"Ok7nKn1PrKQ=\")","v":{"$error":"#REF!"}},{"$f":"AND(#REF!,\"Ok7nKn1PrKU=\")","v":{"$error":"#REF!"}},{"$f":"AND(#REF!,\"Ok7nKn1PrKY=\")","v":{"$error":"#REF!"}},{"$f":"AND(#REF!,\"Ok7nKn1PrKc=\")","v":{"$error":"#REF!"}},{"$f":"AND(#REF!,\"Ok7nKn1PrKg=\")","v":{"$error":"#REF!"}},{"$f":"IF(#REF!,\"Ok7nKn1PrKk=\",0)","v":{"$error":"#REF!"}},{"$f":"AND(#REF!,\"Ok7nKn1PrKo=\")","v":{"$error":"#REF!"}},{"$f":"AND(#REF!,\"Ok7nKn1PrKs=\")","v":{"$error":"#REF!"}},{"$f":"AND(#REF!,\"Ok7nKn1PrKw=\")","v":{"$error":"#REF!"}},{"$f":"AND(#REF!,\"Ok7nKn1PrK0=\")","v":{"$error":"#REF!"}},{"$f":"AND(#REF!,\"Ok7nKn1PrK4=\")","v":{"$error":"#REF!"}},{"$f":"AND(#REF!,\"Ok7nKn1PrK8=\")","v":{"$error":"#REF!"}},{"$f":"AND(#REF!,\"Ok7nKn1PrLA=\")","v":{"$error":"#REF!"}},{"$f":"AND(#REF!,\"Ok7nKn1PrLE=\")","v":{"$error":"#REF!"}},{"$f":"AND(#REF!,\"Ok7nKn1PrLI=\")","v":{"$error":"#REF!"}},{"$f":"AND(#REF!,\"Ok7nKn1PrLM=\")","v":{"$error":"#REF!"}},{"$f":"AND(#REF!,\"Ok7nKn1PrLQ=\")","v":{"$error":"#REF!"}},{"$f":"AND(#REF!,\"Ok7nKn1PrLU=\")","v":{"$error":"#REF!"}},{"$f":"AND(#REF!,\"Ok7nKn1PrLY=\")","v":{"$error":"#REF!"}},{"$f":"AND(#REF!,\"Ok7nKn1PrLc=\")","v":{"$error":"#REF!"}},{"$f":"AND(#REF!,\"Ok7nKn1PrLg=\")","v":{"$error":"#REF!"}},{"$f":"AND(#REF!,\"Ok7nKn1PrLk=\")","v":{"$error":"#REF!"}},{"$f":"AND(#REF!,\"Ok7nKn1PrLo=\")","v":{"$error":"#REF!"}},{"$f":"AND(#REF!,\"Ok7nKn1PrLs=\")","v":{"$error":"#REF!"}},{"$f":"AND(#REF!,\"Ok7nKn1PrLw=\")","v":{"$error":"#REF!"}},{"$f":"AND(#REF!,\"Ok7nKn1PrL0=\")","v":{"$error":"#REF!"}},{"$f":"AND(#REF!,\"Ok7nKn1PrL4=\")","v":{"$error":"#REF!"}},{"$f":"AND(#REF!,\"Ok7nKn1PrL8=\")","v":{"$error":"#REF!"}},{"$f":"AND(#REF!,\"Ok7nKn1PrMA=\")","v":{"$error":"#REF!"}},{"$f":"AND(#REF!,\"Ok7nKn1PrME=\")","v":{"$error":"#REF!"}},{"$f":"AND(#REF!,\"Ok7nKn1PrMI=\")","v":{"$error":"#REF!"}},{"$f":"AND(#REF!,\"Ok7nKn1PrMM=\")","v":{"$error":"#REF!"}},{"$f":"AND(#REF!,\"Ok7nKn1PrMQ=\")","v":{"$error":"#REF!"}},{"$f":"AND(#REF!,\"Ok7nKn1PrMU=\")","v":{"$error":"#REF!"}},{"$f":"AND(#REF!,\"Ok7nKn1PrMY=\")","v":{"$error":"#REF!"}},{"$f":"AND(#REF!,\"Ok7nKn1PrMc=\")","v":{"$error":"#REF!"}},{"$f":"AND(#REF!,\"Ok7nKn1PrMg=\")","v":{"$error":"#REF!"}},{"$f":"AND(#REF!,\"Ok7nKn1PrMk=\")","v":{"$error":"#REF!"}},{"$f":"AND(#REF!,\"Ok7nKn1PrMo=\")","v":{"$error":"#REF!"}},{"$f":"AND(#REF!,\"Ok7nKn1PrMs=\")","v":{"$error":"#REF!"}},{"$f":"AND(#REF!,\"Ok7nKn1PrMw=\")","v":{"$error":"#REF!"}},{"$f":"AND(#REF!,\"Ok7nKn1PrM0=\")","v":{"$error":"#REF!"}},{"$f":"AND(#REF!,\"Ok7nKn1PrM4=\")","v":{"$error":"#REF!"}},{"$f":"AND(#REF!,\"Ok7nKn1PrM8=\")","v":{"$error":"#REF!"}},{"$f":"AND(#REF!,\"Ok7nKn1PrNA=\")","v":{"$error":"#REF!"}},{"$f":"AND(#REF!,\"Ok7nKn1PrNE=\")","v":{"$error":"#REF!"}},{"$f":"AND(#REF!,\"Ok7nKn1PrNI=\")","v":{"$error":"#REF!"}},{"$f":"AND(#REF!,\"Ok7nKn1PrNM=\")","v":{"$error":"#REF!"}},{"$f":"AND(#REF!,\"Ok7nKn1PrNQ=\")","v":{"$error":"#REF!"}},{"$f":"AND(#REF!,\"Ok7nKn1PrNU=\")","v":{"$error":"#REF!"}},{"$f":"AND(#REF!,\"Ok7nKn1PrNY=\")","v":{"$error":"#REF!"}},{"$f":"AND(#REF!,\"Ok7nKn1PrNc=\")","v":{"$error":"#REF!"}},{"$f":"AND(#REF!,\"Ok7nKn1PrNg=\")","v":{"$error":"#REF!"}},{"$f":"AND(#REF!,\"Ok7nKn1PrNk=\")","v":{"$error":"#REF!"}},{"$f":"AND(#REF!,\"Ok7nKn1PrNo=\")","v":{"$error":"#REF!"}},{"$f":"AND(#REF!,\"Ok7nKn1PrNs=\")","v":{"$error":"#REF!"}},{"$f":"AND(#REF!,\"Ok7nKn1PrNw=\")","v":{"$error":"#REF!"}},{"$f":"AND(#REF!,\"Ok7nKn1PrN0=\")","v":{"$error":"#REF!"}},{"$f":"AND(#REF!,\"Ok7nKn1PrN4=\")","v":{"$error":"#REF!"}},{"$f":"AND(#REF!,\"Ok7nKn1PrN8=\")","v":{"$error":"#REF!"}},{"$f":"AND(#REF!,\"Ok7nKn1PrOA=\")","v":{"$error":"#REF!"}},{"$f":"AND(#REF!,\"Ok7nKn1PrOE=\")","v":{"$error":"#REF!"}},{"$f":"AND(#REF!,\"Ok7nKn1PrOI=\")","v":{"$error":"#REF!"}},{"$f":"AND(#REF!,\"Ok7nKn1PrOM=\")","v":{"$error":"#REF!"}},{"$f":"AND(#REF!,\"Ok7nKn1PrOQ=\")","v":{"$error":"#REF!"}},{"$f":"AND(#REF!,\"Ok7nKn1PrOU=\")","v":{"$error":"#REF!"}},{"$f":"AND(#REF!,\"Ok7nKn1PrOY=\")","v":{"$error":"#REF!"}},{"$f":"AND(#REF!,\"Ok7nKn1PrOc=\")","v":{"$error":"#REF!"}},{"$f":"AND(#REF!,\"Ok7nKn1PrOg=\")","v":{"$error":"#REF!"}},{"$f":"AND(#REF!,\"Ok7nKn1PrOk=\")","v":{"$error":"#REF!"}},{"$f":"AND(#REF!,\"Ok7nKn1PrOo=\")","v":{"$error":"#REF!"}},{"$f":"AND(#REF!,\"Ok7nKn1PrOs=\")","v":{"$error":"#REF!"}},{"$f":"AND(#REF!,\"Ok7nKn1PrOw=\")","v":{"$error":"#REF!"}},{"$f":"AND(#REF!,\"Ok7nKn1PrO0=\")","v":{"$error":"#REF!"}},{"$f":"AND(#REF!,\"Ok7nKn1PrO4=\")","v":{"$error":"#REF!"}},{"$f":"AND(#REF!,\"Ok7nKn1PrO8=\")","v":{"$error":"#REF!"}},{"$f":"AND(#REF!,\"Ok7nKn1PrPA=\")","v":{"$error":"#REF!"}},{"$f":"AND(#REF!,\"Ok7nKn1PrPE=\")","v":{"$error":"#REF!"}},{"$f":"AND(#REF!,\"Ok7nKn1PrPI=\")","v":{"$error":"#REF!"}},{"$f":"AND(#REF!,\"Ok7nKn1PrPM=\")","v":{"$error":"#REF!"}},{"$f":"AND(#REF!,\"Ok7nKn1PrPQ=\")","v":{"$error":"#REF!"}},{"$f":"AND(#REF!,\"Ok7nKn1PrPU=\")","v":{"$error":"#REF!"}},{"$f":"AND(#REF!,\"Ok7nKn1PrPY=\")","v":{"$error":"#REF!"}},{"$f":"AND(#REF!,\"Ok7nKn1PrPc=\")","v":{"$error":"#REF!"}},{"$f":"AND(#REF!,\"Ok7nKn1PrPg=\")","v":{"$error":"#REF!"}},{"$f":"AND(#REF!,\"Ok7nKn1PrPk=\")","v":{"$error":"#REF!"}},{"$f":"AND(#REF!,\"Ok7nKn1PrPo=\")","v":{"$error":"#REF!"}},{"$f":"AND(#REF!,\"Ok7nKn1PrPs=\")","v":{"$error":"#REF!"}},{"$f":"AND(#REF!,\"Ok7nKn1PrPw=\")","v":{"$error":"#REF!"}},{"$f":"AND(#REF!,\"Ok7nKn1PrP0=\")","v":{"$error":"#REF!"}},{"$f":"AND(#REF!,\"Ok7nKn1PrP4=\")","v":{"$error":"#REF!"}},{"$f":"AND(#REF!,\"Ok7nKn1PrP8=\")","v":{"$error":"#REF!"}}]
[{"$f":"AND(#REF!,\"bJh8Gnqb4AA=\")","v":{"$error":"#REF!"}},{"$f":"AND(#REF!,\"bJh8Gnqb4AE=\")","v":{"$error":"#REF!"}},{"$f":"AND(#REF!,\"bJh8Gnqb4AI=\")","v":{"$error":"#REF!"}},{"$f":"AND(#REF!,\"bJh8Gnqb4AM=\")","v":{"$error":"#REF!"}},{"$f":"AND(#REF!,\"bJh8Gnqb4AQ=\")","v":{"$error":"#REF!"}},{"$f":"AND(#REF!,\"bJh8Gnqb4AU=\")","v":{"$error":"#REF!"}},{"$f":"AND(#REF!,\"bJh8Gnqb4AY=\")","v":{"$error":"#REF!"}},{"$f":"AND(#REF!,\"bJh8Gnqb4Ac=\")","v":{"$error":"#REF!"}},{"$f":"AND(#REF!,\"bJh8Gnqb4Ag=\")","v":{"$error":"#REF!"}},{"$f":"AND(#REF!,\"bJh8Gnqb4Ak=\")","v":{"$error":"#REF!"}},{"$f":"AND(#REF!,\"bJh8Gnqb4Ao=\")","v":{"$error":"#REF!"}},{"$f":"AND(#REF!,\"bJh8Gnqb4As=\")","v":{"$error":"#REF!"}},{"$f":"AND(#REF!,\"bJh8Gnqb4Aw=\")","v":{"$error":"#REF!"}},{"$f":"AND(#REF!,\"bJh8Gnqb4A0=\")","v":{"$error":"#REF!"}},{"$f":"AND(#REF!,\"bJh8Gnqb4A4=\")","v":{"$error":"#REF!"}},{"$f":"AND(#REF!,\"bJh8Gnqb4A8=\")","v":{"$error":"#REF!"}},{"$f":"AND(#REF!,\"bJh8Gnqb4BA=\")","v":{"$error":"#REF!"}},{"$f":"AND(#REF!,\"bJh8Gnqb4BE=\")","v":{"$error":"#REF!"}},{"$f":"AND(#REF!,\"bJh8Gnqb4BI=\")","v":{"$error":"#REF!"}},{"$f":"AND(#REF!,\"bJh8Gnqb4BM=\")","v":{"$error":"#REF!"}},{"$f":"AND(#REF!,\"bJh8Gnqb4BQ=\")","v":{"$error":"#REF!"}},{"$f":"AND(#REF!,\"bJh8Gnqb4BU=\")","v":{"$error":"#REF!"}},{"$f":"AND(#REF!,\"bJh8Gnqb4BY=\")","v":{"$error":"#REF!"}},{"$f":"AND(#REF!,\"bJh8Gnqb4Bc=\")","v":{"$error":"#REF!"}},{"$f":"AND(#REF!,\"bJh8Gnqb4Bg=\")","v":{"$error":"#REF!"}},{"$f":"AND(#REF!,\"bJh8Gnqb4Bk=\")","v":{"$error":"#REF!"}},{"$f":"AND(#REF!,\"bJh8Gnqb4Bo=\")","v":{"$error":"#REF!"}},{"$f":"AND(#REF!,\"bJh8Gnqb4Bs=\")","v":{"$error":"#REF!"}},{"$f":"AND(#REF!,\"bJh8Gnqb4Bw=\")","v":{"$error":"#REF!"}},{"$f":"AND(#REF!,\"bJh8Gnqb4B0=\")","v":{"$error":"#REF!"}},{"$f":"AND(#REF!,\"bJh8Gnqb4B4=\")","v":{"$error":"#REF!"}},{"$f":"AND(#REF!,\"bJh8Gnqb4B8=\")","v":{"$error":"#REF!"}},{"$f":"AND(#REF!,\"bJh8Gnqb4CA=\")","v":{"$error":"#REF!"}},{"$f":"AND(#REF!,\"bJh8Gnqb4CE=\")","v":{"$error":"#REF!"}},{"$f":"AND(#REF!,\"bJh8Gnqb4CI=\")","v":{"$error":"#REF!"}},{"$f":"AND(#REF!,\"bJh8Gnqb4CM=\")","v":{"$error":"#REF!"}},{"$f":"AND(#REF!,\"bJh8Gnqb4CQ=\")","v":{"$error":"#REF!"}},{"$f":"AND(#REF!,\"bJh8Gnqb4CU=\")","v":{"$error":"#REF!"}},{"$f":"AND(#REF!,\"bJh8Gnqb4CY=\")","v":{"$error":"#REF!"}},{"$f":"AND(#REF!,\"bJh8Gnqb4Cc=\")","v":{"$error":"#REF!"}},{"$f":"AND(#REF!,\"bJh8Gnqb4Cg=\")","v":{"$error":"#REF!"}},{"$f":"AND(#REF!,\"bJh8Gnqb4Ck=\")","v":{"$error":"#REF!"}},{"$f":"AND(#REF!,\"bJh8Gnqb4Co=\")","v":{"$error":"#REF!"}},{"$f":"AND(#REF!,\"bJh8Gnqb4Cs=\")","v":{"$error":"#REF!"}},{"$f":"AND(#REF!,\"bJh8Gnqb4Cw=\")","v":{"$error":"#REF!"}},{"$f":"AND(#REF!,\"bJh8Gnqb4C0=\")","v":{"$error":"#REF!"}},{"$f":"AND(#REF!,\"bJh8Gnqb4C4=\")","v":{"$error":"#REF!"}},{"$f":"AND(#REF!,\"bJh8Gnqb4C8=\")","v":{"$error":"#REF!"}},{"$f":"AND(#REF!,\"bJh8Gnqb4DA=\")","v":{"$error":"#REF!"}},{"$f":"AND(#REF!,\"bJh8Gnqb4DE=\")","v":{"$error":"#REF!"}},{"$f":"AND(#REF!,\"bJh8Gnqb4DI=\")","v":{"$error":"#REF!"}},{"$f":"AND(#REF!,\"bJh8Gnqb4DM=\")","v":{"$error":"#REF!"}},{"$f":"AND(#REF!,\"bJh8Gnqb4DQ=\")","v":{"$error":"#REF!"}},{"$f":"AND(#REF!,\"bJh8Gnqb4DU=\")","v":{"$error":"#REF!"}},{"$f":"AND(#REF!,\"bJh8Gnqb4DY=\")","v":{"$error":"#REF!"}},{"$f":"AND(#REF!,\"bJh8Gnqb4Dc=\")","v":{"$error":"#REF!"}},{"$f":"AND(#REF!,\"bJh8Gnqb4Dg=\")","v":{"$error":"#REF!"}},{"$f":"AND(#REF!,\"bJh8Gnqb4Dk=\")","v":{"$error":"#REF!"}},{"$f":"AND(#REF!,\"bJh8Gnqb4Do=\")","v":{"$error":"#REF!"}},{"$f":"AND(#REF!,\"bJh8Gnqb4Ds=\")","v":{"$error":"#REF!"}},{"$f":"AND(#REF!,\"bJh8Gnqb4Dw=\")","v":{"$error":"#REF!"}},{"$f":"AND(#REF!,\"bJh8Gnqb4D0=\")","v":{"$error":"#REF!"}},{"$f":"AND(#REF!,\"bJh8Gnqb4D4=\")","v":{"$error":"#REF!"}},{"$f":"AND(#REF!,\"bJh8Gnqb4D8=\")","v":{"$error":"#REF!"}},{"$f":"AND(#REF!,\"bJh8Gnqb4EA=\")","v":{"$error":"#REF!"}},{"$f":"AND(#REF!,\"bJh8Gnqb4EE=\")","v":{"$error":"#REF!"}},{"$f":"AND(#REF!,\"bJh8Gnqb4EI=\")","v":{"$error":"#REF!"}},{"$f":"AND(#REF!,\"bJh8Gnqb4EM=\")","v":{"$error":"#REF!"}},{"$f":"AND(#REF!,\"bJh8Gnqb4EQ=\")","v":{"$error":"#REF!"}},{"$f":"AND(#REF!,\"bJh8Gnqb4EU=\")","v":{"$error":"#REF!"}},{"$f":"AND(#REF!,\"bJh8Gnqb4EY=\")","v":{"$error":"#REF!"}},{"$f":"AND(#REF!,\"bJh8Gnqb4Ec=\")","v":{"$error":"#REF!"}},{"$f":"AND(#REF!,\"bJh8Gnqb4Eg=\")","v":{"$error":"#REF!"}},{"$f":"AND(#REF!,\"bJh8Gnqb4Ek=\")","v":{"$error":"#REF!"}},{"$f":"AND(#REF!,\"bJh8Gnqb4Eo=\")","v":{"$error":"#REF!"}},{"$f":"AND(#REF!,\"bJh8Gnqb4Es=\")","v":{"$error":"#REF!"}},{"$f":"AND(#REF!,\"bJh8Gnqb4Ew=\")","v":{"$error":"#REF!"}},{"$f":"AND(#REF!,\"bJh8Gnqb4E0=\")","v":{"$error":"#REF!"}},{"$f":"AND(#REF!,\"bJh8Gnqb4E4=\")","v":{"$error":"#REF!"}},{"$f":"AND(#REF!,\"bJh8Gnqb4E8=\")","v":{"$error":"#REF!"}},{"$f":"AND(#REF!,\"bJh8Gnqb4FA=\")","v":{"$error":"#REF!"}},{"$f":"AND(#REF!,\"bJh8Gnqb4FE=\")","v":{"$error":"#REF!"}},{"$f":"AND(#REF!,\"bJh8Gnqb4FI=\")","v":{"$error":"#REF!"}},{"$f":"AND(#REF!,\"bJh8Gnqb4FM=\")","v":{"$error":"#REF!"}},{"$f":"AND(#REF!,\"bJh8Gnqb4FQ=\")","v":{"$error":"#REF!"}},{"$f":"AND(#REF!,\"bJh8Gnqb4FU=\")","v":{"$error":"#REF!"}},{"$f":"AND(#REF!,\"bJh8Gnqb4FY=\")","v":{"$error":"#REF!"}},{"$f":"AND(#REF!,\"bJh8Gnqb4Fc=\")","v":{"$error":"#REF!"}},{"$f":"AND(#REF!,\"bJh8Gnqb4Fg=\")","v":{"$error":"#REF!"}},{"$f":"AND(#REF!,\"bJh8Gnqb4Fk=\")","v":{"$error":"#REF!"}},{"$f":"AND(#REF!,\"bJh8Gnqb4Fo=\")","v":{"$error":"#REF!"}},{"$f":"AND(#REF!,\"bJh8Gnqb4Fs=\")","v":{"$error":"#REF!"}},{"$f":"AND(#REF!,\"bJh8Gnqb4Fw=\")","v":{"$error":"#REF!"}},{"$f":"AND(#REF!,\"bJh8Gnqb4F0=\")","v":{"$error":"#REF!"}},{"$f":"AND(#REF!,\"bJh8Gnqb4F4=\")","v":{"$error":"#REF!"}},{"$f":"AND(#REF!,\"bJh8Gnqb4F8=\")","v":{"$error":"#REF!"}},{"$f":"AND(#REF!,\"bJh8Gnqb4GA=\")","v":{"$error":"#REF!"}},{"$f":"AND(#REF!,\"bJh8Gnqb4GE=\")","v":{"$error":"#REF!"}},{"$f":"AND(#REF!,\"bJh8Gnqb4GI=\")","v":{"$error":"#REF!"}},{"$f":"AND(#REF!,\"bJh8Gnqb4GM=\")","v":{"$error":"#REF!"}},{"$f":"AND(#REF!,\"bJh8Gnqb4GQ=\")","v":{"$error":"#REF!"}},{"$f":"AND(#REF!,\"bJh8Gnqb4GU=\")","v":{"$error":"#REF!"}},{"$f":"AND(#REF!,\"bJh8Gnqb4GY=\")","v":{"$error":"#REF!"}},{"$f":"AND(#REF!,\"bJh8Gnqb4Gc=\")","v":{"$error":"#REF!"}},{"$f":"AND(#REF!,\"bJh8Gnqb4Gg=\")","v":{"$error":"#REF!"}},{"$f":"AND(#REF!,\"bJh8Gnqb4Gk=\")","v":{"$error":"#REF!"}},{"$f":"AND(#REF!,\"bJh8Gnqb4Go=\")","v":{"$error":"#REF!"}},{"$f":"AND(#REF!,\"bJh8Gnqb4Gs=\")","v":{"$error":"#REF!"}},{"$f":"AND(#REF!,\"bJh8Gnqb4Gw=\")","v":{"$error":"#REF!"}},{"$f":"AND(#REF!,\"bJh8Gnqb4G0=\")","v":{"$error":"#REF!"}},{"$f":"AND(#REF!,\"bJh8Gnqb4G4=\")","v":{"$error":"#REF!"}},{"$f":"AND(#REF!,\"bJh8Gnqb4G8=\")","v":{"$error":"#REF!"}},{"$f":"IF(#REF!,\"bJh8Gnqb4HA=\",0)","v":{"$error":"#REF!"}},{"$f":"AND(#REF!,\"bJh8Gnqb4HE=\")","v":{"$error":"#REF!"}},{"$f":"AND(#REF!,\"bJh8Gnqb4HI=\")","v":{"$error":"#REF!"}},{"$f":"AND(#REF!,\"bJh8Gnqb4HM=\")","v":{"$error":"#REF!"}},{"$f":"AND(#REF!,\"bJh8Gnqb4HQ=\")","v":{"$error":"#REF!"}},{"$f":"AND(#REF!,\"bJh8Gnqb4HU=\")","v":{"$error":"#REF!"}},{"$f":"AND(#REF!,\"bJh8Gnqb4HY=\")","v":{"$error":"#REF!"}},{"$f":"AND(#REF!,\"bJh8Gnqb4Hc=\")","v":{"$error":"#REF!"}},{"$f":"AND(#REF!,\"bJh8Gnqb4Hg=\")","v":{"$error":"#REF!"}},{"$f":"AND(#REF!,\"bJh8Gnqb4Hk=\")","v":{"$error":"#REF!"}},{"$f":"AND(#REF!,\"bJh8Gnqb4Ho=\")","v":{"$error":"#REF!"}},{"$f":"AND(#REF!,\"bJh8Gnqb4Hs=\")","v":{"$error":"#REF!"}},{"$f":"AND(#REF!,\"bJh8Gnqb4Hw=\")","v":{"$error":"#REF!"}},{"$f":"AND(#REF!,\"bJh8Gnqb4H0=\")","v":{"$error":"#REF!"}},{"$f":"AND(#REF!,\"bJh8Gnqb4H4=\")","v":{"$error":"#REF!"}},{"$f":"AND(#REF!,\"bJh8Gnqb4H8=\")","v":{"$error":"#REF!"}},{"$f":"AND(#REF!,\"bJh8Gnqb4IA=\")","v":{"$error":"#REF!"}},{"$f":"AND(#REF!,\"bJh8Gnqb4IE=\")","v":{"$error":"#REF!"}},{"$f":"AND(#REF!,\"bJh8Gnqb4II=\")","v":{"$error":"#REF!"}},{"$f":"AND(#REF!,\"bJh8Gnqb4IM=\")","v":{"$error":"#REF!"}},{"$f":"AND(#REF!,\"bJh8Gnqb4IQ=\")","v":{"$error":"#REF!"}},{"$f":"AND(#REF!,\"bJh8Gnqb4IU=\")","v":{"$error":"#REF!"}},{"$f":"AND(#REF!,\"bJh8Gnqb4IY=\")","v":{"$error":"#REF!"}},{"$f":"AND(#REF!,\"bJh8Gnqb4Ic=\")","v":{"$error":"#REF!"}},{"$f":"AND(#REF!,\"bJh8Gnqb4Ig=\")","v":{"$error":"#REF!"}},{"$f":"AND(#REF!,\"bJh8Gnqb4Ik=\")","v":{"$error":"#REF!"}},{"$f":"AND(#REF!,\"bJh8Gnqb4Io=\")","v":{"$error":"#REF!"}},{"$f":"AND(#REF!,\"bJh8Gnqb4Is=\")","v":{"$error":"#REF!"}},{"$f":"AND(#REF!,\"bJh8Gnqb4Iw=\")","v":{"$error":"#REF!"}},{"$f":"AND(#REF!,\"bJh8Gnqb4I0=\")","v":{"$error":"#REF!"}},{"$f":"AND(#REF!,\"bJh8Gnqb4I4=\")","v":{"$error":"#REF!"}},{"$f":"AND(#REF!,\"bJh8Gnqb4I8=\")","v":{"$error":"#REF!"}},{"$f":"AND(#REF!,\"bJh8Gnqb4JA=\")","v":{"$error":"#REF!"}},{"$f":"AND(#REF!,\"bJh8Gnqb4JE=\")","v":{"$error":"#REF!"}},{"$f":"AND(#REF!,\"bJh8Gnqb4JI=\")","v":{"$error":"#REF!"}},{"$f":"AND(#REF!,\"bJh8Gnqb4JM=\")","v":{"$error":"#REF!"}},{"$f":"AND(#REF!,\"bJh8Gnqb4JQ=\")","v":{"$error":"#REF!"}},{"$f":"AND(#REF!,\"bJh8Gnqb4JU=\")","v":{"$error":"#REF!"}},{"$f":"AND(#REF!,\"bJh8Gnqb4JY=\")","v":{"$error":"#REF!"}},{"$f":"AND(#REF!,\"bJh8Gnqb4Jc=\")","v":{"$error":"#REF!"}},{"$f":"AND(#REF!,\"bJh8Gnqb4Jg=\")","v":{"$error":"#REF!"}},{"$f":"AND(#REF!,\"bJh8Gnqb4Jk=\")","v":{"$error":"#REF!"}},{"$f":"AND(#REF!,\"bJh8Gnqb4Jo=\")","v":{"$error":"#REF!"}},{"$f":"AND(#REF!,\"bJh8Gnqb4Js=\")","v":{"$error":"#REF!"}},{"$f":"AND(#REF!,\"bJh8Gnqb4Jw=\")","v":{"$error":"#REF!"}},{"$f":"AND(#REF!,\"bJh8Gnqb4J0=\")","v":{"$error":"#REF!"}},{"$f":"AND(#REF!,\"bJh8Gnqb4J4=\")","v":{"$error":"#REF!"}},{"$f":"AND(#REF!,\"bJh8Gnqb4J8=\")","v":{"$error":"#REF!"}},{"$f":"AND(#REF!,\"bJh8Gnqb4KA=\")","v":{"$error":"#REF!"}},{"$f":"AND(#REF!,\"bJh8Gnqb4KE=\")","v":{"$error":"#REF!"}},{"$f":"AND(#REF!,\"bJh8Gnqb4KI=\")","v":{"$error":"#REF!"}},{"$f":"AND(#REF!,\"bJh8Gnqb4KM=\")","v":{"$error":"#REF!"}},{"$f":"AND(#REF!,\"bJh8Gnqb4KQ=\")","v":{"$error":"#REF!"}},{"$f":"AND(#REF!,\"bJh8Gnqb4KU=\")","v":{"$error":"#REF!"}},{"$f":"AND(#REF!,\"bJh8Gnqb4KY=\")","v":{"$error":"#REF!"}},{"$f":"AND(#REF!,\"bJh8Gnqb4Kc=\")","v":{"$error":"#REF!"}},{"$f":"AND(#REF!,\"bJh8Gnqb4Kg=\")","v":{"$error":"#REF!"}},{"$f":"AND(#REF!,\"bJh8Gnqb4Kk=\")","v":{"$error":"#REF!"}},{"$f":"AND(#REF!,\"bJh8Gnqb4Ko=\")","v":{"$error":"#REF!"}},{"$f":"AND(#REF!,\"bJh8Gnqb4Ks=\")","v":{"$error":"#REF!"}},{"$f":"AND(#REF!,\"bJh8Gnqb4Kw=\")","v":{"$error":"#REF!"}},{"$f":"AND(#REF!,\"bJh8Gnqb4K0=\")","v":{"$error":"#REF!"}},{"$f":"AND(#REF!,\"bJh8Gnqb4K4=\")","v":{"$error":"#REF!"}},{"$f":"AND(#REF!,\"bJh8Gnqb4K8=\")","v":{"$error":"#REF!"}},{"$f":"AND(#REF!,\"bJh8Gnqb4LA=\")","v":{"$error":"#REF!"}},{"$f":"AND(#REF!,\"bJh8Gnqb4LE=\")","v":{"$error":"#REF!"}},{"$f":"AND(#REF!,\"bJh8Gnqb4LI=\")","v":{"$error":"#REF!"}},{"$f":"AND(#REF!,\"bJh8Gnqb4LM=\")","v":{"$error":"#REF!"}},{"$f":"AND(#REF!,\"bJh8Gnqb4LQ=\")","v":{"$error":"#REF!"}},{"$f":"AND(#REF!,\"bJh8Gnqb4LU=\")","v":{"$error":"#REF!"}},{"$f":"AND(#REF!,\"bJh8Gnqb4LY=\")","v":{"$error":"#REF!"}},{"$f":"AND(#REF!,\"bJh8Gnqb4Lc=\")","v":{"$error":"#REF!"}},{"$f":"AND(#REF!,\"bJh8Gnqb4Lg=\")","v":{"$error":"#REF!"}},{"$f":"AND(#REF!,\"bJh8Gnqb4Lk=\")","v":{"$error":"#REF!"}},{"$f":"AND(#REF!,\"bJh8Gnqb4Lo=\")","v":{"$error":"#REF!"}},{"$f":"AND(#REF!,\"bJh8Gnqb4Ls=\")","v":{"$error":"#REF!"}},{"$f":"AND(#REF!,\"bJh8Gnqb4Lw=\")","v":{"$error":"#REF!"}},{"$f":"AND(#REF!,\"bJh8Gnqb4L0=\")","v":{"$error":"#REF!"}},{"$f":"AND(#REF!,\"bJh8Gnqb4L4=\")","v":{"$error":"#REF!"}},{"$f":"AND(#REF!,\"bJh8Gnqb4L8=\")","v":{"$error":"#REF!"}},{"$f":"AND(#REF!,\"bJh8Gnqb4MA=\")","v":{"$error":"#REF!"}},{"$f":"AND(#REF!,\"bJh8Gnqb4ME=\")","v":{"$error":"#REF!"}},{"$f":"AND(#REF!,\"bJh8Gnqb4MI=\")","v":{"$error":"#REF!"}},{"$f":"AND(#REF!,\"bJh8Gnqb4MM=\")","v":{"$error":"#REF!"}},{"$f":"AND(#REF!,\"bJh8Gnqb4MQ=\")","v":{"$error":"#REF!"}},{"$f":"AND(#REF!,\"bJh8Gnqb4MU=\")","v":{"$error":"#REF!"}},{"$f":"AND(#REF!,\"bJh8Gnqb4MY=\")","v":{"$error":"#REF!"}},{"$f":"AND(#REF!,\"bJh8Gnqb4Mc=\")","v":{"$error":"#REF!"}},{"$f":"AND(#REF!,\"bJh8Gnqb4Mg=\")","v":{"$error":"#REF!"}},{"$f":"AND(#REF!,\"bJh8Gnqb4Mk=\")","v":{"$error":"#REF!"}},{"$f":"AND(#REF!,\"bJh8Gnqb4Mo=\")","v":{"$error":"#REF!"}},{"$f":"AND(#REF!,\"bJh8Gnqb4Ms=\")","v":{"$error":"#REF!"}},{"$f":"AND(#REF!,\"bJh8Gnqb4Mw=\")","v":{"$error":"#REF!"}},{"$f":"AND(#REF!,\"bJh8Gnqb4M0=\")","v":{"$error":"#REF!"}},{"$f":"AND(#REF!,\"bJh8Gnqb4M4=\")","v":{"$error":"#REF!"}},{"$f":"AND(#REF!,\"bJh8Gnqb4M8=\")","v":{"$error":"#REF!"}},{"$f":"AND(#REF!,\"bJh8Gnqb4NA=\")","v":{"$error":"#REF!"}},{"$f":"AND(#REF!,\"bJh8Gnqb4NE=\")","v":{"$error":"#REF!"}},{"$f":"AND(#REF!,\"bJh8Gnqb4NI=\")","v":{"$error":"#REF!"}},{"$f":"AND(#REF!,\"bJh8Gnqb4NM=\")","v":{"$error":"#REF!"}},{"$f":"AND(#REF!,\"bJh8Gnqb4NQ=\")","v":{"$error":"#REF!"}},{"$f":"AND(#REF!,\"bJh8Gnqb4NU=\")","v":{"$error":"#REF!"}},{"$f":"AND(#REF!,\"bJh8Gnqb4NY=\")","v":{"$error":"#REF!"}},{"$f":"AND(#REF!,\"bJh8Gnqb4Nc=\")","v":{"$error":"#REF!"}},{"$f":"AND(#REF!,\"bJh8Gnqb4Ng=\")","v":{"$error":"#REF!"}},{"$f":"AND(#REF!,\"bJh8Gnqb4Nk=\")","v":{"$error":"#REF!"}},{"$f":"AND(#REF!,\"bJh8Gnqb4No=\")","v":{"$error":"#REF!"}},{"$f":"AND(#REF!,\"bJh8Gnqb4Ns=\")","v":{"$error":"#REF!"}},{"$f":"AND(#REF!,\"bJh8Gnqb4Nw=\")","v":{"$error":"#REF!"}},{"$f":"AND(#REF!,\"bJh8Gnqb4N0=\")","v":{"$error":"#REF!"}},{"$f":"AND(#REF!,\"bJh8Gnqb4N4=\")","v":{"$error":"#REF!"}},{"$f":"AND(#REF!,\"bJh8Gnqb4N8=\")","v":{"$error":"#REF!"}},{"$f":"AND(#REF!,\"bJh8Gnqb4OA=\")","v":{"$error":"#REF!"}},{"$f":"AND(#REF!,\"bJh8Gnqb4OE=\")","v":{"$error":"#REF!"}},{"$f":"AND(#REF!,\"bJh8Gnqb4OI=\")","v":{"$error":"#REF!"}},{"$f":"AND(#REF!,\"bJh8Gnqb4OM=\")","v":{"$error":"#REF!"}},{"$f":"AND(#REF!,\"bJh8Gnqb4OQ=\")","v":{"$error":"#REF!"}},{"$f":"AND(#REF!,\"bJh8Gnqb4OU=\")","v":{"$error":"#REF!"}},{"$f":"AND(#REF!,\"bJh8Gnqb4OY=\")","v":{"$error":"#REF!"}},{"$f":"AND(#REF!,\"bJh8Gnqb4Oc=\")","v":{"$error":"#REF!"}},{"$f":"AND(#REF!,\"bJh8Gnqb4Og=\")","v":{"$error":"#REF!"}},{"$f":"AND(#REF!,\"bJh8Gnqb4Ok=\")","v":{"$error":"#REF!"}},{"$f":"AND(#REF!,\"bJh8Gnqb4Oo=\")","v":{"$error":"#REF!"}},{"$f":"AND(#REF!,\"bJh8Gnqb4Os=\")","v":{"$error":"#REF!"}},{"$f":"AND(#REF!,\"bJh8Gnqb4Ow=\")","v":{"$error":"#REF!"}},{"$f":"AND(#REF!,\"bJh8Gnqb4O0=\")","v":{"$error":"#REF!"}},{"$f":"AND(#REF!,\"bJh8Gnqb4O4=\")","v":{"$error":"#REF!"}},{"$f":"AND(#REF!,\"bJh8Gnqb4O8=\")","v":{"$error":"#REF!"}},{"$f":"AND(#REF!,\"bJh8Gnqb4PA=\")","v":{"$error":"#REF!"}},{"$f":"AND(#REF!,\"bJh8Gnqb4PE=\")","v":{"$error":"#REF!"}},{"$f":"AND(#REF!,\"bJh8Gnqb4PI=\")","v":{"$error":"#REF!"}},{"$f":"AND(#REF!,\"bJh8Gnqb4PM=\")","v":{"$error":"#REF!"}},{"$f":"AND(#REF!,\"bJh8Gnqb4PQ=\")","v":{"$error":"#REF!"}},{"$f":"AND(#REF!,\"bJh8Gnqb4PU=\")","v":{"$error":"#REF!"}},{"$f":"AND(#REF!,\"bJh8Gnqb4PY=\")","v":{"$error":"#REF!"}},{"$f":"AND(#REF!,\"bJh8Gnqb4Pc=\")","v":{"$error":"#REF!"}},{"$f":"AND(#REF!,\"bJh8Gnqb4Pg=\")","v":{"$error":"#REF!"}},{"$f":"AND(#REF!,\"bJh8Gnqb4Pk=\")","v":{"$error":"#REF!"}},{"$f":"AND(#REF!,\"bJh8Gnqb4Po=\")","v":{"$error":"#REF!"}},{"$f":"AND(#REF!,\"bJh8Gnqb4Ps=\")","v":{"$error":"#REF!"}},{"$f":"AND(#REF!,\"bJh8Gnqb4Pw=\")","v":{"$error":"#REF!"}},{"$f":"AND(#REF!,\"bJh8Gnqb4P0=\")","v":{"$error":"#REF!"}},{"$f":"AND(#REF!,\"bJh8Gnqb4P4=\")","v":{"$error":"#REF!"}},{"$f":"AND(#REF!,\"bJh8Gnqb4P8=\")","v":{"$error":"#REF!"}}]
[{"$f":"AND(#REF!,\"T35SsQiT6AA=\")","v":{"$error":"#REF!"}},{"$f":"AND(#REF!,\"T35SsQiT6AE=\")","v":{"$error":"#REF!"}},{"$f":"AND(#REF!,\"T35SsQiT6AI=\")","v":{"$error":"#REF!"}},{"$f":"AND(#REF!,\"T35SsQiT6AM=\")","v":{"$error":"#REF!"}},{"$f":"AND(#REF!,\"T35SsQiT6AQ=\")","v":{"$error":"#REF!"}},{"$f":"AND(#REF!,\"T35SsQiT6AU=\")","v":{"$error":"#REF!"}},{"$f":"AND(#REF!,\"T35SsQiT6AY=\")","v":{"$error":"#REF!"}},{"$f":"AND(#REF!,\"T35SsQiT6Ac=\")","v":{"$error":"#REF!"}},{"$f":"AND(#REF!,\"T35SsQiT6Ag=\")","v":{"$error":"#REF!"}},{"$f":"AND(#REF!,\"T35SsQiT6Ak=\")","v":{"$error":"#REF!"}},{"$f":"AND(#REF!,\"T35SsQiT6Ao=\")","v":{"$error":"#REF!"}},{"$f":"AND(#REF!,\"T35SsQiT6As=\")","v":{"$error":"#REF!"}},{"$f":"AND(#REF!,\"T35SsQiT6Aw=\")","v":{"$error":"#REF!"}},{"$f":"AND(#REF!,\"T35SsQiT6A0=\")","v":{"$error":"#REF!"}},{"$f":"AND(#REF!,\"T35SsQiT6A4=\")","v":{"$error":"#REF!"}},{"$f":"AND(#REF!,\"T35SsQiT6A8=\")","v":{"$error":"#REF!"}},{"$f":"AND(#REF!,\"T35SsQiT6BA=\")","v":{"$error":"#REF!"}},{"$f":"AND(#REF!,\"T35SsQiT6BE=\")","v":{"$error":"#REF!"}},{"$f":"AND(#REF!,\"T35SsQiT6BI=\")","v":{"$error":"#REF!"}},{"$f":"AND(#REF!,\"T35SsQiT6BM=\")","v":{"$error":"#REF!"}},{"$f":"AND(#REF!,\"T35SsQiT6BQ=\")","v":{"$error":"#REF!"}},{"$f":"AND(#REF!,\"T35SsQiT6BU=\")","v":{"$error":"#REF!"}},{"$f":"AND(#REF!,\"T35SsQiT6BY=\")","v":{"$error":"#REF!"}},{"$f":"AND(#REF!,\"T35SsQiT6Bc=\")","v":{"$error":"#REF!"}},{"$f":"AND(#REF!,\"T35SsQiT6Bg=\")","v":{"$error":"#REF!"}},{"$f":"AND(#REF!,\"T35SsQiT6Bk=\")","v":{"$error":"#REF!"}},{"$f":"AND(#REF!,\"T35SsQiT6Bo=\")","v":{"$error":"#REF!"}},{"$f":"AND(#REF!,\"T35SsQiT6Bs=\")","v":{"$error":"#REF!"}},{"$f":"AND(#REF!,\"T35SsQiT6Bw=\")","v":{"$error":"#REF!"}},{"$f":"AND(#REF!,\"T35SsQiT6B0=\")","v":{"$error":"#REF!"}},{"$f":"AND(#REF!,\"T35SsQiT6B4=\")","v":{"$error":"#REF!"}},{"$f":"AND(#REF!,\"T35SsQiT6B8=\")","v":{"$error":"#REF!"}},{"$f":"AND(#REF!,\"T35SsQiT6CA=\")","v":{"$error":"#REF!"}},{"$f":"AND(#REF!,\"T35SsQiT6CE=\")","v":{"$error":"#REF!"}},{"$f":"AND(#REF!,\"T35SsQiT6CI=\")","v":{"$error":"#REF!"}},{"$f":"AND(#REF!,\"T35SsQiT6CM=\")","v":{"$error":"#REF!"}},{"$f":"AND(#REF!,\"T35SsQiT6CQ=\")","v":{"$error":"#REF!"}},{"$f":"AND(#REF!,\"T35SsQiT6CU=\")","v":{"$error":"#REF!"}},{"$f":"AND(#REF!,\"T35SsQiT6CY=\")","v":{"$error":"#REF!"}},{"$f":"AND(#REF!,\"T35SsQiT6Cc=\")","v":{"$error":"#REF!"}},{"$f":"AND(#REF!,\"T35SsQiT6Cg=\")","v":{"$error":"#REF!"}},{"$f":"AND(#REF!,\"T35SsQiT6Ck=\")","v":{"$error":"#REF!"}},{"$f":"AND(#REF!,\"T35SsQiT6Co=\")","v":{"$error":"#REF!"}},{"$f":"AND(#REF!,\"T35SsQiT6Cs=\")","v":{"$error":"#REF!"}},{"$f":"AND(#REF!,\"T35SsQiT6Cw=\")","v":{"$error":"#REF!"}},{"$f":"AND(#REF!,\"T35SsQiT6C0=\")","v":{"$error":"#REF!"}},{"$f":"AND(#REF!,\"T35SsQiT6C4=\")","v":{"$error":"#REF!"}},{"$f":"AND(#REF!,\"T35SsQiT6C8=\")","v":{"$error":"#REF!"}},{"$f":"AND(#REF!,\"T35SsQiT6DA=\")","v":{"$error":"#REF!"}},{"$f":"AND(#REF!,\"T35SsQiT6DE=\")","v":{"$error":"#REF!"}},{"$f":"AND(#REF!,\"T35SsQiT6DI=\")","v":{"$error":"#REF!"}},{"$f":"AND(#REF!,\"T35SsQiT6DM=\")","v":{"$error":"#REF!"}},{"$f":"AND(#REF!,\"T35SsQiT6DQ=\")","v":{"$error":"#REF!"}},{"$f":"AND(#REF!,\"T35SsQiT6DU=\")","v":{"$error":"#REF!"}},{"$f":"AND(#REF!,\"T35SsQiT6DY=\")","v":{"$error":"#REF!"}},{"$f":"IF(#REF!,\"T35SsQiT6Dc=\",0)","v":{"$error":"#REF!"}},{"$f":"AND(#REF!,\"T35SsQiT6Dg=\")","v":{"$error":"#REF!"}},{"$f":"AND(#REF!,\"T35SsQiT6Dk=\")","v":{"$error":"#REF!"}},{"$f":"AND(#REF!,\"T35SsQiT6Do=\")","v":{"$error":"#REF!"}},{"$f":"AND(#REF!,\"T35SsQiT6Ds=\")","v":{"$error":"#REF!"}},{"$f":"AND(#REF!,\"T35SsQiT6Dw=\")","v":{"$error":"#REF!"}},{"$f":"AND(#REF!,\"T35SsQiT6D0=\")","v":{"$error":"#REF!"}},{"$f":"AND(#REF!,\"T35SsQiT6D4=\")","v":{"$error":"#REF!"}},{"$f":"AND(#REF!,\"T35SsQiT6D8=\")","v":{"$error":"#REF!"}},{"$f":"AND(#REF!,\"T35SsQiT6EA=\")","v":{"$error":"#REF!"}},{"$f":"AND(#REF!,\"T35SsQiT6EE=\")","v":{"$error":"#REF!"}},{"$f":"AND(#REF!,\"T35SsQiT6EI=\")","v":{"$error":"#REF!"}},{"$f":"AND(#REF!,\"T35SsQiT6EM=\")","v":{"$error":"#REF!"}},{"$f":"AND(#REF!,\"T35SsQiT6EQ=\")","v":{"$error":"#REF!"}},{"$f":"AND(#REF!,\"T35SsQiT6EU=\")","v":{"$error":"#REF!"}},{"$f":"AND(#REF!,\"T35SsQiT6EY=\")","v":{"$error":"#REF!"}},{"$f":"AND(#REF!,\"T35SsQiT6Ec=\")","v":{"$error":"#REF!"}},{"$f":"AND(#REF!,\"T35SsQiT6Eg=\")","v":{"$error":"#REF!"}},{"$f":"AND(#REF!,\"T35SsQiT6Ek=\")","v":{"$error":"#REF!"}},{"$f":"AND(#REF!,\"T35SsQiT6Eo=\")","v":{"$error":"#REF!"}},{"$f":"AND(#REF!,\"T35SsQiT6Es=\")","v":{"$error":"#REF!"}},{"$f":"AND(#REF!,\"T35SsQiT6Ew=\")","v":{"$error":"#REF!"}},{"$f":"AND(#REF!,\"T35SsQiT6E0=\")","v":{"$error":"#REF!"}},{"$f":"AND(#REF!,\"T35SsQiT6E4=\")","v":{"$error":"#REF!"}},{"$f":"AND(#REF!,\"T35SsQiT6E8=\")","v":{"$error":"#REF!"}},{"$f":"AND(#REF!,\"T35SsQiT6FA=\")","v":{"$error":"#REF!"}},{"$f":"AND(#REF!,\"T35SsQiT6FE=\")","v":{"$error":"#REF!"}},{"$f":"AND(#REF!,\"T35SsQiT6FI=\")","v":{"$error":"#REF!"}},{"$f":"AND(#REF!,\"T35SsQiT6FM=\")","v":{"$error":"#REF!"}},{"$f":"AND(#REF!,\"T35SsQiT6FQ=\")","v":{"$error":"#REF!"}},{"$f":"AND(#REF!,\"T35SsQiT6FU=\")","v":{"$error":"#REF!"}},{"$f":"AND(#REF!,\"T35SsQiT6FY=\")","v":{"$error":"#REF!"}},{"$f":"AND(#REF!,\"T35SsQiT6Fc=\")","v":{"$error":"#REF!"}},{"$f":"AND(#REF!,\"T35SsQiT6Fg=\")","v":{"$error":"#REF!"}},{"$f":"AND(#REF!,\"T35SsQiT6Fk=\")","v":{"$error":"#REF!"}},{"$f":"AND(#REF!,\"T35SsQiT6Fo=\")","v":{"$error":"#REF!"}},{"$f":"AND(#REF!,\"T35SsQiT6Fs=\")","v":{"$error":"#REF!"}},{"$f":"AND(#REF!,\"T35SsQiT6Fw=\")","v":{"$error":"#REF!"}},{"$f":"AND(#REF!,\"T35SsQiT6F0=\")","v":{"$error":"#REF!"}},{"$f":"AND(#REF!,\"T35SsQiT6F4=\")","v":{"$error":"#REF!"}},{"$f":"AND(#REF!,\"T35SsQiT6F8=\")","v":{"$error":"#REF!"}},{"$f":"AND(#REF!,\"T35SsQiT6GA=\")","v":{"$error":"#REF!"}},{"$f":"AND(#REF!,\"T35SsQiT6GE=\")","v":{"$error":"#REF!"}},{"$f":"AND(#REF!,\"T35SsQiT6GI=\")","v":{"$error":"#REF!"}},{"$f":"AND(#REF!,\"T35SsQiT6GM=\")","v":{"$error":"#REF!"}},{"$f":"AND(#REF!,\"T35SsQiT6GQ=\")","v":{"$error":"#REF!"}},{"$f":"AND(#REF!,\"T35SsQiT6GU=\")","v":{"$error":"#REF!"}},{"$f":"AND(#REF!,\"T35SsQiT6GY=\")","v":{"$error":"#REF!"}},{"$f":"AND(#REF!,\"T35SsQiT6Gc=\")","v":{"$error":"#REF!"}},{"$f":"AND(#REF!,\"T35SsQiT6Gg=\")","v":{"$error":"#REF!"}},{"$f":"AND(#REF!,\"T35SsQiT6Gk=\")","v":{"$error":"#REF!"}},{"$f":"AND(#REF!,\"T35SsQiT6Go=\")","v":{"$error":"#REF!"}},{"$f":"AND(#REF!,\"T35SsQiT6Gs=\")","v":{"$error":"#REF!"}},{"$f":"AND(#REF!,\"T35SsQiT6Gw=\")","v":{"$error":"#REF!"}},{"$f":"AND(#REF!,\"T35SsQiT6G0=\")","v":{"$error":"#REF!"}},{"$f":"AND(#REF!,\"T35SsQiT6G4=\")","v":{"$error":"#REF!"}},{"$f":"AND(#REF!,\"T35SsQiT6G8=\")","v":{"$error":"#REF!"}},{"$f":"AND(#REF!,\"T35SsQiT6HA=\")","v":{"$error":"#REF!"}},{"$f":"AND(#REF!,\"T35SsQiT6HE=\")","v":{"$error":"#REF!"}},{"$f":"AND(#REF!,\"T35SsQiT6HI=\")","v":{"$error":"#REF!"}},{"$f":"AND(#REF!,\"T35SsQiT6HM=\")","v":{"$error":"#REF!"}},{"$f":"AND(#REF!,\"T35SsQiT6HQ=\")","v":{"$error":"#REF!"}},{"$f":"AND(#REF!,\"T35SsQiT6HU=\")","v":{"$error":"#REF!"}},{"$f":"AND(#REF!,\"T35SsQiT6HY=\")","v":{"$error":"#REF!"}},{"$f":"AND(#REF!,\"T35SsQiT6Hc=\")","v":{"$error":"#REF!"}},{"$f":"AND(#REF!,\"T35SsQiT6Hg=\")","v":{"$error":"#REF!"}},{"$f":"AND(#REF!,\"T35SsQiT6Hk=\")","v":{"$error":"#REF!"}},{"$f":"AND(#REF!,\"T35SsQiT6Ho=\")","v":{"$error":"#REF!"}},{"$f":"AND(#REF!,\"T35SsQiT6Hs=\")","v":{"$error":"#REF!"}},{"$f":"AND(#REF!,\"T35SsQiT6Hw=\")","v":{"$error":"#REF!"}},{"$f":"AND(#REF!,\"T35SsQiT6H0=\")","v":{"$error":"#REF!"}},{"$f":"AND(#REF!,\"T35SsQiT6H4=\")","v":{"$error":"#REF!"}},{"$f":"AND(#REF!,\"T35SsQiT6H8=\")","v":{"$error":"#REF!"}},{"$f":"AND(#REF!,\"T35SsQiT6IA=\")","v":{"$error":"#REF!"}},{"$f":"AND(#REF!,\"T35SsQiT6IE=\")","v":{"$error":"#REF!"}},{"$f":"AND(#REF!,\"T35SsQiT6II=\")","v":{"$error":"#REF!"}},{"$f":"AND(#REF!,\"T35SsQiT6IM=\")","v":{"$error":"#REF!"}},{"$f":"AND(#REF!,\"T35SsQiT6IQ=\")","v":{"$error":"#REF!"}},{"$f":"AND(#REF!,\"T35SsQiT6IU=\")","v":{"$error":"#REF!"}},{"$f":"AND(#REF!,\"T35SsQiT6IY=\")","v":{"$error":"#REF!"}},{"$f":"AND(#REF!,\"T35SsQiT6Ic=\")","v":{"$error":"#REF!"}},{"$f":"AND(#REF!,\"T35SsQiT6Ig=\")","v":{"$error":"#REF!"}},{"$f":"AND(#REF!,\"T35SsQiT6Ik=\")","v":{"$error":"#REF!"}},{"$f":"AND(#REF!,\"T35SsQiT6Io=\")","v":{"$error":"#REF!"}},{"$f":"AND(#REF!,\"T35SsQiT6Is=\")","v":{"$error":"#REF!"}},{"$f":"AND(#REF!,\"T35SsQiT6Iw=\")","v":{"$error":"#REF!"}},{"$f":"AND(#REF!,\"T35SsQiT6I0=\")","v":{"$error":"#REF!"}},{"$f":"AND(#REF!,\"T35SsQiT6I4=\")","v":{"$error":"#REF!"}},{"$f":"AND(#REF!,\"T35SsQiT6I8=\")","v":{"$error":"#REF!"}},{"$f":"AND(#REF!,\"T35SsQiT6JA=\")","v":{"$error":"#REF!"}},{"$f":"AND(#REF!,\"T35SsQiT6JE=\")","v":{"$error":"#REF!"}},{"$f":"AND(#REF!,\"T35SsQiT6JI=\")","v":{"$error":"#REF!"}},{"$f":"AND(#REF!,\"T35SsQiT6JM=\")","v":{"$error":"#REF!"}},{"$f":"AND(#REF!,\"T35SsQiT6JQ=\")","v":{"$error":"#REF!"}},{"$f":"AND(#REF!,\"T35SsQiT6JU=\")","v":{"$error":"#REF!"}},{"$f":"AND(#REF!,\"T35SsQiT6JY=\")","v":{"$error":"#REF!"}},{"$f":"AND(#REF!,\"T35SsQiT6Jc=\")","v":{"$error":"#REF!"}},{"$f":"AND(#REF!,\"T35SsQiT6Jg=\")","v":{"$error":"#REF!"}},{"$f":"AND(#REF!,\"T35SsQiT6Jk=\")","v":{"$error":"#REF!"}},{"$f":"AND(#REF!,\"T35SsQiT6Jo=\")","v":{"$error":"#REF!"}},{"$f":"AND(#REF!,\"T35SsQiT6Js=\")","v":{"$error":"#REF!"}},{"$f":"AND(#REF!,\"T35SsQiT6Jw=\")","v":{"$error":"#REF!"}},{"$f":"AND(#REF!,\"T35SsQiT6J0=\")","v":{"$error":"#REF!"}},{"$f":"AND(#REF!,\"T35SsQiT6J4=\")","v":{"$error":"#REF!"}},{"$f":"AND(#REF!,\"T35SsQiT6J8=\")","v":{"$error":"#REF!"}},{"$f":"AND(#REF!,\"T35SsQiT6KA=\")","v":{"$error":"#REF!"}},{"$f":"AND(#REF!,\"T35SsQiT6KE=\")","v":{"$error":"#REF!"}},{"$f":"AND(#REF!,\"T35SsQiT6KI=\")","v":{"$error":"#REF!"}},{"$f":"AND(#REF!,\"T35SsQiT6KM=\")","v":{"$error":"#REF!"}},{"$f":"AND(#REF!,\"T35SsQiT6KQ=\")","v":{"$error":"#REF!"}},{"$f":"AND(#REF!,\"T35SsQiT6KU=\")","v":{"$error":"#REF!"}},{"$f":"AND(#REF!,\"T35SsQiT6KY=\")","v":{"$error":"#REF!"}},{"$f":"AND(#REF!,\"T35SsQiT6Kc=\")","v":{"$error":"#REF!"}},{"$f":"AND(#REF!,\"T35SsQiT6Kg=\")","v":{"$error":"#REF!"}},{"$f":"AND(#REF!,\"T35SsQiT6Kk=\")","v":{"$error":"#REF!"}},{"$f":"AND(#REF!,\"T35SsQiT6Ko=\")","v":{"$error":"#REF!"}},{"$f":"AND(#REF!,\"T35SsQiT6Ks=\")","v":{"$error":"#REF!"}},{"$f":"AND(#REF!,\"T35SsQiT6Kw=\")","v":{"$error":"#REF!"}},{"$f":"AND(#REF!,\"T35SsQiT6K0=\")","v":{"$error":"#REF!"}},{"$f":"AND(#REF!,\"T35SsQiT6K4=\")","v":{"$error":"#REF!"}},{"$f":"AND(#REF!,\"T35SsQiT6K8=\")","v":{"$error":"#REF!"}},{"$f":"AND(#REF!,\"T35SsQiT6LA=\")","v":{"$error":"#REF!"}},{"$f":"AND(#REF!,\"T35SsQiT6LE=\")","v":{"$error":"#REF!"}},{"$f":"AND(#REF!,\"T35SsQiT6LI=\")","v":{"$error":"#REF!"}},{"$f":"AND(#REF!,\"T35SsQiT6LM=\")","v":{"$error":"#REF!"}},{"$f":"AND(#REF!,\"T35SsQiT6LQ=\")","v":{"$error":"#REF!"}},{"$f":"AND(#REF!,\"T35SsQiT6LU=\")","v":{"$error":"#REF!"}},{"$f":"AND(#REF!,\"T35SsQiT6LY=\")","v":{"$error":"#REF!"}},{"$f":"AND(#REF!,\"T35SsQiT6Lc=\")","v":{"$error":"#REF!"}},{"$f":"AND(#REF!,\"T35SsQiT6Lg=\")","v":{"$error":"#REF!"}},{"$f":"AND(#REF!,\"T35SsQiT6Lk=\")","v":{"$error":"#REF!"}},{"$f":"AND(#REF!,\"T35SsQiT6Lo=\")","v":{"$error":"#REF!"}},{"$f":"AND(#REF!,\"T35SsQiT6Ls=\")","v":{"$error":"#REF!"}},{"$f":"AND(#REF!,\"T35SsQiT6Lw=\")","v":{"$error":"#REF!"}},{"$f":"AND(#REF!,\"T35SsQiT6L0=\")","v":{"$error":"#REF!"}},{"$f":"AND(#REF!,\"T35SsQiT6L4=\")","v":{"$error":"#REF!"}},{"$f":"AND(#REF!,\"T35SsQiT6L8=\")","v":{"$error":"#REF!"}},{"$f":"AND(#REF!,\"T35SsQiT6MA=\")","v":{"$error":"#REF!"}},{"$f":"AND(#REF!,\"T35SsQiT6ME=\")","v":{"$error":"#REF!"}},{"$f":"AND(#REF!,\"T35SsQiT6MI=\")","v":{"$error":"#REF!"}},{"$f":"AND(#REF!,\"T35SsQiT6MM=\")","v":{"$error":"#REF!"}},{"$f":"AND(#REF!,\"T35SsQiT6MQ=\")","v":{"$error":"#REF!"}},{"$f":"AND(#REF!,\"T35SsQiT6MU=\")","v":{"$error":"#REF!"}},{"$f":"AND(#REF!,\"T35SsQiT6MY=\")","v":{"$error":"#REF!"}},{"$f":"AND(#REF!,\"T35SsQiT6Mc=\")","v":{"$error":"#REF!"}},{"$f":"AND(#REF!,\"T35SsQiT6Mg=\")","v":{"$error":"#REF!"}},{"$f":"AND(#REF!,\"T35SsQiT6Mk=\")","v":{"$error":"#REF!"}},{"$f":"AND(#REF!,\"T35SsQiT6Mo=\")","v":{"$error":"#REF!"}},{"$f":"AND(#REF!,\"T35SsQiT6Ms=\")","v":{"$error":"#REF!"}},{"$f":"AND(#REF!,\"T35SsQiT6Mw=\")","v":{"$error":"#REF!"}},{"$f":"AND(#REF!,\"T35SsQiT6M0=\")","v":{"$error":"#REF!"}},{"$f":"AND(#REF!,\"T35SsQiT6M4=\")","v":{"$error":"#REF!"}},{"$f":"AND(#REF!,\"T35SsQiT6M8=\")","v":{"$error":"#REF!"}},{"$f":"AND(#REF!,\"T35SsQiT6NA=\")","v":{"$error":"#REF!"}},{"$f":"AND(#REF!,\"T35SsQiT6NE=\")","v":{"$error":"#REF!"}},{"$f":"AND(#REF!,\"T35SsQiT6NI=\")","v":{"$error":"#REF!"}},{"$f":"AND(#REF!,\"T35SsQiT6NM=\")","v":{"$error":"#REF!"}},{"$f":"AND(#REF!,\"T35SsQiT6NQ=\")","v":{"$error":"#REF!"}},{"$f":"AND(#REF!,\"T35SsQiT6NU=\")","v":{"$error":"#REF!"}},{"$f":"AND(#REF!,\"T35SsQiT6NY=\")","v":{"$error":"#REF!"}},{"$f":"AND(#REF!,\"T35SsQiT6Nc=\")","v":{"$error":"#REF!"}},{"$f":"AND(#REF!,\"T35SsQiT6Ng=\")","v":{"$error":"#REF!"}},{"$f":"AND(#REF!,\"T35SsQiT6Nk=\")","v":{"$error":"#REF!"}},{"$f":"AND(#REF!,\"T35SsQiT6No=\")","v":{"$error":"#REF!"}},{"$f":"AND(#REF!,\"T35SsQiT6Ns=\")","v":{"$error":"#REF!"}},{"$f":"AND(#REF!,\"T35SsQiT6Nw=\")","v":{"$error":"#REF!"}},{"$f":"AND(#REF!,\"T35SsQiT6N0=\")","v":{"$error":"#REF!"}},{"$f":"AND(#REF!,\"T35SsQiT6N4=\")","v":{"$error":"#REF!"}},{"$f":"AND(#REF!,\"T35SsQiT6N8=\")","v":{"$error":"#REF!"}},{"$f":"AND(#REF!,\"T35SsQiT6OA=\")","v":{"$error":"#REF!"}},{"$f":"AND(#REF!,\"T35SsQiT6OE=\")","v":{"$error":"#REF!"}},{"$f":"AND(#REF!,\"T35SsQiT6OI=\")","v":{"$error":"#REF!"}},{"$f":"AND(#REF!,\"T35SsQiT6OM=\")","v":{"$error":"#REF!"}},{"$f":"AND(#REF!,\"T35SsQiT6OQ=\")","v":{"$error":"#REF!"}},{"$f":"AND(#REF!,\"T35SsQiT6OU=\")","v":{"$error":"#REF!"}},{"$f":"AND(#REF!,\"T35SsQiT6OY=\")","v":{"$error":"#REF!"}},{"$f":"AND(#REF!,\"T35SsQiT6Oc=\")","v":{"$error":"#REF!"}},{"$f":"AND(#REF!,\"T35SsQiT6Og=\")","v":{"$error":"#REF!"}},{"$f":"AND(#REF!,\"T35SsQiT6Ok=\")","v":{"$error":"#REF!"}},{"$f":"AND(#REF!,\"T35SsQiT6Oo=\")","v":{"$error":"#REF!"}},{"$f":"AND(#REF!,\"T35SsQiT6Os=\")","v":{"$error":"#REF!"}},{"$f":"AND(#REF!,\"T35SsQiT6Ow=\")","v":{"$error":"#REF!"}},{"$f":"AND(#REF!,\"T35SsQiT6O0=\")","v":{"$error":"#REF!"}},{"$f":"AND(#REF!,\"T35SsQiT6O4=\")","v":{"$error":"#REF!"}},{"$f":"AND(#REF!,\"T35SsQiT6O8=\")","v":{"$error":"#REF!"}},{"$f":"AND(#REF!,\"T35SsQiT6PA=\")","v":{"$error":"#REF!"}},{"$f":"AND(#REF!,\"T35SsQiT6PE=\")","v":{"$error":"#REF!"}},{"$f":"AND(#REF!,\"T35SsQiT6PI=\")","v":{"$error":"#REF!"}},{"$f":"AND(#REF!,\"T35SsQiT6PM=\")","v":{"$error":"#REF!"}},{"$f":"AND(#REF!,\"T35SsQiT6PQ=\")","v":{"$error":"#REF!"}},{"$f":"AND(#REF!,\"T35SsQiT6PU=\")","v":{"$error":"#REF!"}},{"$f":"AND(#REF!,\"T35SsQiT6PY=\")","v":{"$error":"#REF!"}},{"$f":"AND(#REF!,\"T35SsQiT6Pc=\")","v":{"$error":"#REF!"}},{"$f":"AND(#REF!,\"T35SsQiT6Pg=\")","v":{"$error":"#REF!"}},{"$f":"AND(#REF!,\"T35SsQiT6Pk=\")","v":{"$error":"#REF!"}},{"$f":"AND(#REF!,\"T35SsQiT6Po=\")","v":{"$error":"#REF!"}},{"$f":"AND(#REF!,\"T35SsQiT6Ps=\")","v":{"$error":"#REF!"}},{"$f":"AND(#REF!,\"T35SsQiT6Pw=\")","v":{"$error":"#REF!"}},{"$f":"AND(#REF!,\"T35SsQiT6P0=\")","v":{"$error":"#REF!"}},{"$f":"IF(#REF!,\"T35SsQiT6P4=\",0)","v":{"$error":"#REF!"}},{"$f":"AND(#REF!,\"T35SsQiT6P8=\")","v":{"$error":"#REF!"}}]
[{"$f":"AND(#REF!,\"CQAD9V+j4gA=\")","v":{"$error":"#REF!"}},{"$f":"AND(#REF!,\"CQAD9V+j4gE=\")","v":{"$error":"#REF!"}},{"$f":"AND(#REF!,\"CQAD9V+j4gI=\")","v":{"$error":"#REF!"}},{"$f":"AND(#REF!,\"CQAD9V+j4gM=\")","v":{"$error":"#REF!"}},{"$f":"AND(#REF!,\"CQAD9V+j4gQ=\")","v":{"$error":"#REF!"}},{"$f":"AND(#REF!,\"CQAD9V+j4gU=\")","v":{"$error":"#REF!"}},{"$f":"AND(#REF!,\"CQAD9V+j4gY=\")","v":{"$error":"#REF!"}},{"$f":"AND(#REF!,\"CQAD9V+j4gc=\")","v":{"$error":"#REF!"}},{"$f":"AND(#REF!,\"CQAD9V+j4gg=\")","v":{"$error":"#REF!"}},{"$f":"AND(#REF!,\"CQAD9V+j4gk=\")","v":{"$error":"#REF!"}},{"$f":"AND(#REF!,\"CQAD9V+j4go=\")","v":{"$error":"#REF!"}},{"$f":"AND(#REF!,\"CQAD9V+j4gs=\")","v":{"$error":"#REF!"}},{"$f":"AND(#REF!,\"CQAD9V+j4gw=\")","v":{"$error":"#REF!"}},{"$f":"AND(#REF!,\"CQAD9V+j4g0=\")","v":{"$error":"#REF!"}},{"$f":"AND(#REF!,\"CQAD9V+j4g4=\")","v":{"$error":"#REF!"}},{"$f":"AND(#REF!,\"CQAD9V+j4g8=\")","v":{"$error":"#REF!"}},{"$f":"AND(#REF!,\"CQAD9V+j4hA=\")","v":{"$error":"#REF!"}},{"$f":"AND(#REF!,\"CQAD9V+j4hE=\")","v":{"$error":"#REF!"}},{"$f":"AND(#REF!,\"CQAD9V+j4hI=\")","v":{"$error":"#REF!"}},{"$f":"AND(#REF!,\"CQAD9V+j4hM=\")","v":{"$error":"#REF!"}},{"$f":"AND(#REF!,\"CQAD9V+j4hQ=\")","v":{"$error":"#REF!"}},{"$f":"AND(#REF!,\"CQAD9V+j4hU=\")","v":{"$error":"#REF!"}},{"$f":"AND(#REF!,\"CQAD9V+j4hY=\")","v":{"$error":"#REF!"}},{"$f":"AND(#REF!,\"CQAD9V+j4hc=\")","v":{"$error":"#REF!"}},{"$f":"AND(#REF!,\"CQAD9V+j4hg=\")","v":{"$error":"#REF!"}},{"$f":"AND(#REF!,\"CQAD9V+j4hk=\")","v":{"$error":"#REF!"}},{"$f":"AND(#REF!,\"CQAD9V+j4ho=\")","v":{"$error":"#REF!"}},{"$f":"AND(#REF!,\"CQAD9V+j4hs=\")","v":{"$error":"#REF!"}},{"$f":"AND(#REF!,\"CQAD9V+j4hw=\")","v":{"$error":"#REF!"}},{"$f":"AND(#REF!,\"CQAD9V+j4h0=\")","v":{"$error":"#REF!"}},{"$f":"AND(#REF!,\"CQAD9V+j4h4=\")","v":{"$error":"#REF!"}},{"$f":"AND(#REF!,\"CQAD9V+j4h8=\")","v":{"$error":"#REF!"}},{"$f":"AND(#REF!,\"CQAD9V+j4iA=\")","v":{"$error":"#REF!"}},{"$f":"AND(#REF!,\"CQAD9V+j4iE=\")","v":{"$error":"#REF!"}},{"$f":"AND(#REF!,\"CQAD9V+j4iI=\")","v":{"$error":"#REF!"}},{"$f":"AND(#REF!,\"CQAD9V+j4iM=\")","v":{"$error":"#REF!"}},{"$f":"AND(#REF!,\"CQAD9V+j4iQ=\")","v":{"$error":"#REF!"}},{"$f":"AND(#REF!,\"CQAD9V+j4iU=\")","v":{"$error":"#REF!"}},{"$f":"AND(#REF!,\"CQAD9V+j4iY=\")","v":{"$error":"#REF!"}},{"$f":"AND(#REF!,\"CQAD9V+j4ic=\")","v":{"$error":"#REF!"}},{"$f":"AND(#REF!,\"CQAD9V+j4ig=\")","v":{"$error":"#REF!"}},{"$f":"AND(#REF!,\"CQAD9V+j4ik=\")","v":{"$error":"#REF!"}},{"$f":"AND(#REF!,\"CQAD9V+j4io=\")","v":{"$error":"#REF!"}},{"$f":"AND(#REF!,\"CQAD9V+j4is=\")","v":{"$error":"#REF!"}},{"$f":"AND(#REF!,\"CQAD9V+j4iw=\")","v":{"$error":"#REF!"}},{"$f":"AND(#REF!,\"CQAD9V+j4i0=\")","v":{"$error":"#REF!"}},{"$f":"AND(#REF!,\"CQAD9V+j4i4=\")","v":{"$error":"#REF!"}},{"$f":"AND(#REF!,\"CQAD9V+j4i8=\")","v":{"$error":"#REF!"}},{"$f":"AND(#REF!,\"CQAD9V+j4jA=\")","v":{"$error":"#REF!"}},{"$f":"AND(#REF!,\"CQAD9V+j4jE=\")","v":{"$error":"#REF!"}},{"$f":"AND(#REF!,\"CQAD9V+j4jI=\")","v":{"$error":"#REF!"}},{"$f":"AND(#REF!,\"CQAD9V+j4jM=\")","v":{"$error":"#REF!"}},{"$f":"AND(#REF!,\"CQAD9V+j4jQ=\")","v":{"$error":"#REF!"}},{"$f":"AND(#REF!,\"CQAD9V+j4jU=\")","v":{"$error":"#REF!"}},{"$f":"AND(#REF!,\"CQAD9V+j4jY=\")","v":{"$error":"#REF!"}},{"$f":"AND(#REF!,\"CQAD9V+j4jc=\")","v":{"$error":"#REF!"}},{"$f":"AND(#REF!,\"CQAD9V+j4jg=\")","v":{"$error":"#REF!"}},{"$f":"AND(#REF!,\"CQAD9V+j4jk=\")","v":{"$error":"#REF!"}},{"$f":"AND(#REF!,\"CQAD9V+j4jo=\")","v":{"$error":"#REF!"}},{"$f":"AND(#REF!,\"CQAD9V+j4js=\")","v":{"$error":"#REF!"}},{"$f":"AND(#REF!,\"CQAD9V+j4jw=\")","v":{"$error":"#REF!"}},{"$f":"AND(#REF!,\"CQAD9V+j4j0=\")","v":{"$error":"#REF!"}},{"$f":"AND(#REF!,\"CQAD9V+j4j4=\")","v":{"$error":"#REF!"}},{"$f":"AND(#REF!,\"CQAD9V+j4j8=\")","v":{"$error":"#REF!"}},{"$f":"AND(#REF!,\"CQAD9V+j4kA=\")","v":{"$error":"#REF!"}},{"$f":"AND(#REF!,\"CQAD9V+j4kE=\")","v":{"$error":"#REF!"}},{"$f":"AND(#REF!,\"CQAD9V+j4kI=\")","v":{"$error":"#REF!"}},{"$f":"AND(#REF!,\"CQAD9V+j4kM=\")","v":{"$error":"#REF!"}},{"$f":"AND(#REF!,\"CQAD9V+j4kQ=\")","v":{"$error":"#REF!"}},{"$f":"AND(#REF!,\"CQAD9V+j4kU=\")","v":{"$error":"#REF!"}},{"$f":"AND(#REF!,\"CQAD9V+j4kY=\")","v":{"$error":"#REF!"}},{"$f":"AND(#REF!,\"CQAD9V+j4kc=\")","v":{"$error":"#REF!"}},{"$f":"AND(#REF!,\"CQAD9V+j4kg=\")","v":{"$error":"#REF!"}},{"$f":"AND(#REF!,\"CQAD9V+j4kk=\")","v":{"$error":"#REF!"}},{"$f":"AND(#REF!,\"CQAD9V+j4ko=\")","v":{"$error":"#REF!"}},{"$f":"AND(#REF!,\"CQAD9V+j4ks=\")","v":{"$error":"#REF!"}},{"$f":"AND(#REF!,\"CQAD9V+j4kw=\")","v":{"$error":"#REF!"}},{"$f":"AND(#REF!,\"CQAD9V+j4k0=\")","v":{"$error":"#REF!"}},{"$f":"AND(#REF!,\"CQAD9V+j4k4=\")","v":{"$error":"#REF!"}},{"$f":"AND(#REF!,\"CQAD9V+j4k8=\")","v":{"$error":"#REF!"}},{"$f":"AND(#REF!,\"CQAD9V+j4lA=\")","v":{"$error":"#REF!"}},{"$f":"AND(#REF!,\"CQAD9V+j4lE=\")","v":{"$error":"#REF!"}},{"$f":"AND(#REF!,\"CQAD9V+j4lI=\")","v":{"$error":"#REF!"}},{"$f":"AND(#REF!,\"CQAD9V+j4lM=\")","v":{"$error":"#REF!"}},{"$f":"AND(#REF!,\"CQAD9V+j4lQ=\")","v":{"$error":"#REF!"}},{"$f":"AND(#REF!,\"CQAD9V+j4lU=\")","v":{"$error":"#REF!"}},{"$f":"AND(#REF!,\"CQAD9V+j4lY=\")","v":{"$error":"#REF!"}},{"$f":"AND(#REF!,\"CQAD9V+j4lc=\")","v":{"$error":"#REF!"}},{"$f":"AND(#REF!,\"CQAD9V+j4lg=\")","v":{"$error":"#REF!"}},{"$f":"AND(#REF!,\"CQAD9V+j4lk=\")","v":{"$error":"#REF!"}},{"$f":"AND(#REF!,\"CQAD9V+j4lo=\")","v":{"$error":"#REF!"}},{"$f":"AND(#REF!,\"CQAD9V+j4ls=\")","v":{"$error":"#REF!"}},{"$f":"AND(#REF!,\"CQAD9V+j4lw=\")","v":{"$error":"#REF!"}},{"$f":"AND(#REF!,\"CQAD9V+j4l0=\")","v":{"$error":"#REF!"}},{"$f":"AND(#REF!,\"CQAD9V+j4l4=\")","v":{"$error":"#REF!"}},{"$f":"AND(#REF!,\"CQAD9V+j4l8=\")","v":{"$error":"#REF!"}},{"$f":"AND(#REF!,\"CQAD9V+j4mA=\")","v":{"$error":"#REF!"}},{"$f":"AND(#REF!,\"CQAD9V+j4mE=\")","v":{"$error":"#REF!"}},{"$f":"AND(#REF!,\"CQAD9V+j4mI=\")","v":{"$error":"#REF!"}},{"$f":"AND(#REF!,\"CQAD9V+j4mM=\")","v":{"$error":"#REF!"}},{"$f":"AND(#REF!,\"CQAD9V+j4mQ=\")","v":{"$error":"#REF!"}},{"$f":"AND(#REF!,\"CQAD9V+j4mU=\")","v":{"$error":"#REF!"}},{"$f":"AND(#REF!,\"CQAD9V+j4mY=\")","v":{"$error":"#REF!"}},{"$f":"AND(#REF!,\"CQAD9V+j4mc=\")","v":{"$error":"#REF!"}},{"$f":"AND(#REF!,\"CQAD9V+j4mg=\")","v":{"$error":"#REF!"}},{"$f":"AND(#REF!,\"CQAD9V+j4mk=\")","v":{"$error":"#REF!"}},{"$f":"AND(#REF!,\"CQAD9V+j4mo=\")","v":{"$error":"#REF!"}},{"$f":"AND(#REF!,\"CQAD9V+j4ms=\")","v":{"$error":"#REF!"}},{"$f":"AND(#REF!,\"CQAD9V+j4mw=\")","v":{"$error":"#REF!"}},{"$f":"AND(#REF!,\"CQAD9V+j4m0=\")","v":{"$error":"#REF!"}},{"$f":"AND(#REF!,\"CQAD9V+j4m4=\")","v":{"$error":"#REF!"}},{"$f":"AND(#REF!,\"CQAD9V+j4m8=\")","v":{"$error":"#REF!"}},{"$f":"AND(#REF!,\"CQAD9V+j4nA=\")","v":{"$error":"#REF!"}},{"$f":"AND(#REF!,\"CQAD9V+j4nE=\")","v":{"$error":"#REF!"}},{"$f":"AND(#REF!,\"CQAD9V+j4nI=\")","v":{"$error":"#REF!"}},{"$f":"AND(#REF!,\"CQAD9V+j4nM=\")","v":{"$error":"#REF!"}},{"$f":"AND(#REF!,\"CQAD9V+j4nQ=\")","v":{"$error":"#REF!"}},{"$f":"AND(#REF!,\"CQAD9V+j4nU=\")","v":{"$error":"#REF!"}},{"$f":"AND(#REF!,\"CQAD9V+j4nY=\")","v":{"$error":"#REF!"}},{"$f":"AND(#REF!,\"CQAD9V+j4nc=\")","v":{"$error":"#REF!"}},{"$f":"AND(#REF!,\"CQAD9V+j4ng=\")","v":{"$error":"#REF!"}},{"$f":"AND(#REF!,\"CQAD9V+j4nk=\")","v":{"$error":"#REF!"}},{"$f":"AND(#REF!,\"CQAD9V+j4no=\")","v":{"$error":"#REF!"}},{"$f":"AND(#REF!,\"CQAD9V+j4ns=\")","v":{"$error":"#REF!"}},{"$f":"AND(#REF!,\"CQAD9V+j4nw=\")","v":{"$error":"#REF!"}},{"$f":"AND(#REF!,\"CQAD9V+j4n0=\")","v":{"$error":"#REF!"}},{"$f":"AND(#REF!,\"CQAD9V+j4n4=\")","v":{"$error":"#REF!"}},{"$f":"AND(#REF!,\"CQAD9V+j4n8=\")","v":{"$error":"#REF!"}},{"$f":"AND(#REF!,\"CQAD9V+j4oA=\")","v":{"$error":"#REF!"}},{"$f":"AND(#REF!,\"CQAD9V+j4oE=\")","v":{"$error":"#REF!"}},{"$f":"AND(#REF!,\"CQAD9V+j4oI=\")","v":{"$error":"#REF!"}},{"$f":"AND(#REF!,\"CQAD9V+j4oM=\")","v":{"$error":"#REF!"}},{"$f":"AND(#REF!,\"CQAD9V+j4oQ=\")","v":{"$error":"#REF!"}},{"$f":"AND(#REF!,\"CQAD9V+j4oU=\")","v":{"$error":"#REF!"}},{"$f":"AND(#REF!,\"CQAD9V+j4oY=\")","v":{"$error":"#REF!"}},{"$f":"AND(#REF!,\"CQAD9V+j4oc=\")","v":{"$error":"#REF!"}},{"$f":"AND(#REF!,\"CQAD9V+j4og=\")","v":{"$error":"#REF!"}},{"$f":"AND(#REF!,\"CQAD9V+j4ok=\")","v":{"$error":"#REF!"}},{"$f":"AND(#REF!,\"CQAD9V+j4oo=\")","v":{"$error":"#REF!"}},{"$f":"AND(#REF!,\"CQAD9V+j4os=\")","v":{"$error":"#REF!"}},{"$f":"AND(#REF!,\"CQAD9V+j4ow=\")","v":{"$error":"#REF!"}},{"$f":"AND(#REF!,\"CQAD9V+j4o0=\")","v":{"$error":"#REF!"}},{"$f":"AND(#REF!,\"CQAD9V+j4o4=\")","v":{"$error":"#REF!"}},{"$f":"AND(#REF!,\"CQAD9V+j4o8=\")","v":{"$error":"#REF!"}},{"$f":"AND(#REF!,\"CQAD9V+j4pA=\")","v":{"$error":"#REF!"}},{"$f":"AND(#REF!,\"CQAD9V+j4pE=\")","v":{"$error":"#REF!"}},{"$f":"AND(#REF!,\"CQAD9V+j4pI=\")","v":{"$error":"#REF!"}},{"$f":"AND(#REF!,\"CQAD9V+j4pM=\")","v":{"$error":"#REF!"}},{"$f":"AND(#REF!,\"CQAD9V+j4pQ=\")","v":{"$error":"#REF!"}},{"$f":"AND(#REF!,\"CQAD9V+j4pU=\")","v":{"$error":"#REF!"}},{"$f":"AND(#REF!,\"CQAD9V+j4pY=\")","v":{"$error":"#REF!"}},{"$f":"AND(#REF!,\"CQAD9V+j4pc=\")","v":{"$error":"#REF!"}},{"$f":"AND(#REF!,\"CQAD9V+j4pg=\")","v":{"$error":"#REF!"}},{"$f":"AND(#REF!,\"CQAD9V+j4pk=\")","v":{"$error":"#REF!"}},{"$f":"AND(#REF!,\"CQAD9V+j4po=\")","v":{"$error":"#REF!"}},{"$f":"AND(#REF!,\"CQAD9V+j4ps=\")","v":{"$error":"#REF!"}},{"$f":"AND(#REF!,\"CQAD9V+j4pw=\")","v":{"$error":"#REF!"}},{"$f":"AND(#REF!,\"CQAD9V+j4p0=\")","v":{"$error":"#REF!"}},{"$f":"AND(#REF!,\"CQAD9V+j4p4=\")","v":{"$error":"#REF!"}},{"$f":"AND(#REF!,\"CQAD9V+j4p8=\")","v":{"$error":"#REF!"}},{"$f":"AND(#REF!,\"CQAD9V+j4qA=\")","v":{"$error":"#REF!"}},{"$f":"AND(#REF!,\"CQAD9V+j4qE=\")","v":{"$error":"#REF!"}},{"$f":"AND(#REF!,\"CQAD9V+j4qI=\")","v":{"$error":"#REF!"}},{"$f":"AND(#REF!,\"CQAD9V+j4qM=\")","v":{"$error":"#REF!"}},{"$f":"AND(#REF!,\"CQAD9V+j4qQ=\")","v":{"$error":"#REF!"}},{"$f":"AND(#REF!,\"CQAD9V+j4qU=\")","v":{"$error":"#REF!"}},{"$f":"AND(#REF!,\"CQAD9V+j4qY=\")","v":{"$error":"#REF!"}},{"$f":"AND(#REF!,\"CQAD9V+j4qc=\")","v":{"$error":"#REF!"}},{"$f":"AND(#REF!,\"CQAD9V+j4qg=\")","v":{"$error":"#REF!"}},{"$f":"AND(#REF!,\"CQAD9V+j4qk=\")","v":{"$error":"#REF!"}},{"$f":"AND(#REF!,\"CQAD9V+j4qo=\")","v":{"$error":"#REF!"}},{"$f":"AND(#REF!,\"CQAD9V+j4qs=\")","v":{"$error":"#REF!"}},{"$f":"AND(#REF!,\"CQAD9V+j4qw=\")","v":{"$error":"#REF!"}},{"$f":"AND(#REF!,\"CQAD9V+j4q0=\")","v":{"$error":"#REF!"}},{"$f":"AND(#REF!,\"CQAD9V+j4q4=\")","v":{"$error":"#REF!"}},{"$f":"AND(#REF!,\"CQAD9V+j4q8=\")","v":{"$error":"#REF!"}},{"$f":"AND(#REF!,\"CQAD9V+j4rA=\")","v":{"$error":"#REF!"}},{"$f":"AND(#REF!,\"CQAD9V+j4rE=\")","v":{"$error":"#REF!"}},{"$f":"AND(#REF!,\"CQAD9V+j4rI=\")","v":{"$error":"#REF!"}},{"$f":"AND(#REF!,\"CQAD9V+j4rM=\")","v":{"$error":"#REF!"}},{"$f":"AND(#REF!,\"CQAD9V+j4rQ=\")","v":{"$error":"#REF!"}},{"$f":"AND(#REF!,\"CQAD9V+j4rU=\")","v":{"$error":"#REF!"}},{"$f":"AND(#REF!,\"CQAD9V+j4rY=\")","v":{"$error":"#REF!"}},{"$f":"AND(#REF!,\"CQAD9V+j4rc=\")","v":{"$error":"#REF!"}},{"$f":"AND(#REF!,\"CQAD9V+j4rg=\")","v":{"$error":"#REF!"}},{"$f":"AND(#REF!,\"CQAD9V+j4rk=\")","v":{"$error":"#REF!"}},{"$f":"AND(#REF!,\"CQAD9V+j4ro=\")","v":{"$error":"#REF!"}},{"$f":"AND(#REF!,\"CQAD9V+j4rs=\")","v":{"$error":"#REF!"}},{"$f":"AND(#REF!,\"CQAD9V+j4rw=\")","v":{"$error":"#REF!"}},{"$f":"AND(#REF!,\"CQAD9V+j4r0=\")","v":{"$error":"#REF!"}},{"$f":"AND(#REF!,\"CQAD9V+j4r4=\")","v":{"$error":"#REF!"}},{"$f":"AND(#REF!,\"CQAD9V+j4r8=\")","v":{"$error":"#REF!"}},{"$f":"AND(#REF!,\"CQAD9V+j4sA=\")","v":{"$error":"#REF!"}},{"$f":"AND(#REF!,\"CQAD9V+j4sE=\")","v":{"$error":"#REF!"}},{"$f":"AND(#REF!,\"CQAD9V+j4sI=\")","v":{"$error":"#REF!"}},{"$f":"AND(#REF!,\"CQAD9V+j4sM=\")","v":{"$error":"#REF!"}},{"$f":"AND(#REF!,\"CQAD9V+j4sQ=\")","v":{"$error":"#REF!"}},{"$f":"IF(#REF!,\"CQAD9V+j4sU=\",0)","v":{"$error":"#REF!"}},{"$f":"AND(#REF!,\"CQAD9V+j4sY=\")","v":{"$error":"#REF!"}},{"$f":"AND(#REF!,\"CQAD9V+j4sc=\")","v":{"$error":"#REF!"}},{"$f":"AND(#REF!,\"CQAD9V+j4sg=\")","v":{"$error":"#REF!"}},{"$f":"AND(#REF!,\"CQAD9V+j4sk=\")","v":{"$error":"#REF!"}},{"$f":"AND(#REF!,\"CQAD9V+j4so=\")","v":{"$error":"#REF!"}},{"$f":"AND(#REF!,\"CQAD9V+j4ss=\")","v":{"$error":"#REF!"}},{"$f":"AND(#REF!,\"CQAD9V+j4sw=\")","v":{"$error":"#REF!"}},{"$f":"AND(#REF!,\"CQAD9V+j4s0=\")","v":{"$error":"#REF!"}},{"$f":"AND(#REF!,\"CQAD9V+j4s4=\")","v":{"$error":"#REF!"}},{"$f":"AND(#REF!,\"CQAD9V+j4s8=\")","v":{"$error":"#REF!"}},{"$f":"AND(#REF!,\"CQAD9V+j4tA=\")","v":{"$error":"#REF!"}},{"$f":"AND(#REF!,\"CQAD9V+j4tE=\")","v":{"$error":"#REF!"}},{"$f":"AND(#REF!,\"CQAD9V+j4tI=\")","v":{"$error":"#REF!"}},{"$f":"AND(#REF!,\"CQAD9V+j4tM=\")","v":{"$error":"#REF!"}},{"$f":"AND(#REF!,\"CQAD9V+j4tQ=\")","v":{"$error":"#REF!"}},{"$f":"AND(#REF!,\"CQAD9V+j4tU=\")","v":{"$error":"#REF!"}},{"$f":"AND(#REF!,\"CQAD9V+j4tY=\")","v":{"$error":"#REF!"}},{"$f":"AND(#REF!,\"CQAD9V+j4tc=\")","v":{"$error":"#REF!"}},{"$f":"AND(#REF!,\"CQAD9V+j4tg=\")","v":{"$error":"#REF!"}},{"$f":"AND(#REF!,\"CQAD9V+j4tk=\")","v":{"$error":"#REF!"}},{"$f":"AND(#REF!,\"CQAD9V+j4to=\")","v":{"$error":"#REF!"}},{"$f":"AND(#REF!,\"CQAD9V+j4ts=\")","v":{"$error":"#REF!"}},{"$f":"AND(#REF!,\"CQAD9V+j4tw=\")","v":{"$error":"#REF!"}},{"$f":"AND(#REF!,\"CQAD9V+j4t0=\")","v":{"$error":"#REF!"}},{"$f":"AND(#REF!,\"CQAD9V+j4t4=\")","v":{"$error":"#REF!"}},{"$f":"AND(#REF!,\"CQAD9V+j4t8=\")","v":{"$error":"#REF!"}},{"$f":"AND(#REF!,\"CQAD9V+j4uA=\")","v":{"$error":"#REF!"}},{"$f":"AND(#REF!,\"CQAD9V+j4uE=\")","v":{"$error":"#REF!"}},{"$f":"AND(#REF!,\"CQAD9V+j4uI=\")","v":{"$error":"#REF!"}},{"$f":"AND(#REF!,\"CQAD9V+j4uM=\")","v":{"$error":"#REF!"}},{"$f":"AND(#REF!,\"CQAD9V+j4uQ=\")","v":{"$error":"#REF!"}},{"$f":"AND(#REF!,\"CQAD9V+j4uU=\")","v":{"$error":"#REF!"}},{"$f":"AND(#REF!,\"CQAD9V+j4uY=\")","v":{"$error":"#REF!"}},{"$f":"AND(#REF!,\"CQAD9V+j4uc=\")","v":{"$error":"#REF!"}},{"$f":"AND(#REF!,\"CQAD9V+j4ug=\")","v":{"$error":"#REF!"}},{"$f":"AND(#REF!,\"CQAD9V+j4uk=\")","v":{"$error":"#REF!"}},{"$f":"AND(#REF!,\"CQAD9V+j4uo=\")","v":{"$error":"#REF!"}},{"$f":"AND(#REF!,\"CQAD9V+j4us=\")","v":{"$error":"#REF!"}},{"$f":"AND(#REF!,\"CQAD9V+j4uw=\")","v":{"$error":"#REF!"}},{"$f":"AND(#REF!,\"CQAD9V+j4u0=\")","v":{"$error":"#REF!"}},{"$f":"AND(#REF!,\"CQAD9V+j4u4=\")","v":{"$error":"#REF!"}},{"$f":"AND(#REF!,\"CQAD9V+j4u8=\")","v":{"$error":"#REF!"}},{"$f":"AND(#REF!,\"CQAD9V+j4vA=\")","v":{"$error":"#REF!"}},{"$f":"AND(#REF!,\"CQAD9V+j4vE=\")","v":{"$error":"#REF!"}},{"$f":"AND(#REF!,\"CQAD9V+j4vI=\")","v":{"$error":"#REF!"}},{"$f":"AND(#REF!,\"CQAD9V+j4vM=\")","v":{"$error":"#REF!"}},{"$f":"AND(#REF!,\"CQAD9V+j4vQ=\")","v":{"$error":"#REF!"}},{"$f":"AND(#REF!,\"CQAD9V+j4vU=\")","v":{"$error":"#REF!"}},{"$f":"AND(#REF!,\"CQAD9V+j4vY=\")","v":{"$error":"#REF!"}},{"$f":"AND(#REF!,\"CQAD9V+j4vc=\")","v":{"$error":"#REF!"}},{"$f":"AND(#REF!,\"CQAD9V+j4vg=\")","v":{"$error":"#REF!"}},{"$f":"AND(#REF!,\"CQAD9V+j4vk=\")","v":{"$error":"#REF!"}},{"$f":"AND(#REF!,\"CQAD9V+j4vo=\")","v":{"$error":"#REF!"}},{"$f":"AND(#REF!,\"CQAD9V+j4vs=\")","v":{"$error":"#REF!"}},{"$f":"AND(#REF!,\"CQAD9V+j4vw=\")","v":{"$error":"#REF!"}},{"$f":"AND(#REF!,\"CQAD9V+j4v0=\")","v":{"$error":"#REF!"}},{"$f":"AND(#REF!,\"CQAD9V+j4v4=\")","v":{"$error":"#REF!"}},{"$f":"AND(#REF!,\"CQAD9V+j4v8=\")","v":{"$error":"#REF!"}}]
[{"$f":"AND(#REF!,\"TmdQ6yA8JQA=\")","v":{"$error":"#REF!"}},{"$f":"AND(#REF!,\"TmdQ6yA8JQE=\")","v":{"$error":"#REF!"}},{"$f":"AND(#REF!,\"TmdQ6yA8JQI=\")","v":{"$error":"#REF!"}},{"$f":"AND(#REF!,\"TmdQ6yA8JQM=\")","v":{"$error":"#REF!"}},{"$f":"AND(#REF!,\"TmdQ6yA8JQQ=\")","v":{"$error":"#REF!"}},{"$f":"AND(#REF!,\"TmdQ6yA8JQU=\")","v":{"$error":"#REF!"}},{"$f":"AND(#REF!,\"TmdQ6yA8JQY=\")","v":{"$error":"#REF!"}},{"$f":"AND(#REF!,\"TmdQ6yA8JQc=\")","v":{"$error":"#REF!"}},{"$f":"AND(#REF!,\"TmdQ6yA8JQg=\")","v":{"$error":"#REF!"}},{"$f":"AND(#REF!,\"TmdQ6yA8JQk=\")","v":{"$error":"#REF!"}},{"$f":"AND(#REF!,\"TmdQ6yA8JQo=\")","v":{"$error":"#REF!"}},{"$f":"AND(#REF!,\"TmdQ6yA8JQs=\")","v":{"$error":"#REF!"}},{"$f":"AND(#REF!,\"TmdQ6yA8JQw=\")","v":{"$error":"#REF!"}},{"$f":"AND(#REF!,\"TmdQ6yA8JQ0=\")","v":{"$error":"#REF!"}},{"$f":"AND(#REF!,\"TmdQ6yA8JQ4=\")","v":{"$error":"#REF!"}},{"$f":"AND(#REF!,\"TmdQ6yA8JQ8=\")","v":{"$error":"#REF!"}},{"$f":"AND(#REF!,\"TmdQ6yA8JRA=\")","v":{"$error":"#REF!"}},{"$f":"AND(#REF!,\"TmdQ6yA8JRE=\")","v":{"$error":"#REF!"}},{"$f":"AND(#REF!,\"TmdQ6yA8JRI=\")","v":{"$error":"#REF!"}},{"$f":"AND(#REF!,\"TmdQ6yA8JRM=\")","v":{"$error":"#REF!"}},{"$f":"AND(#REF!,\"TmdQ6yA8JRQ=\")","v":{"$error":"#REF!"}},{"$f":"AND(#REF!,\"TmdQ6yA8JRU=\")","v":{"$error":"#REF!"}},{"$f":"AND(#REF!,\"TmdQ6yA8JRY=\")","v":{"$error":"#REF!"}},{"$f":"AND(#REF!,\"TmdQ6yA8JRc=\")","v":{"$error":"#REF!"}},{"$f":"AND(#REF!,\"TmdQ6yA8JRg=\")","v":{"$error":"#REF!"}},{"$f":"AND(#REF!,\"TmdQ6yA8JRk=\")","v":{"$error":"#REF!"}},{"$f":"AND(#REF!,\"TmdQ6yA8JRo=\")","v":{"$error":"#REF!"}},{"$f":"AND(#REF!,\"TmdQ6yA8JRs=\")","v":{"$error":"#REF!"}},{"$f":"AND(#REF!,\"TmdQ6yA8JRw=\")","v":{"$error":"#REF!"}},{"$f":"AND(#REF!,\"TmdQ6yA8JR0=\")","v":{"$error":"#REF!"}},{"$f":"AND(#REF!,\"TmdQ6yA8JR4=\")","v":{"$error":"#REF!"}},{"$f":"AND(#REF!,\"TmdQ6yA8JR8=\")","v":{"$error":"#REF!"}},{"$f":"AND(#REF!,\"TmdQ6yA8JSA=\")","v":{"$error":"#REF!"}},{"$f":"AND(#REF!,\"TmdQ6yA8JSE=\")","v":{"$error":"#REF!"}},{"$f":"AND(#REF!,\"TmdQ6yA8JSI=\")","v":{"$error":"#REF!"}},{"$f":"AND(#REF!,\"TmdQ6yA8JSM=\")","v":{"$error":"#REF!"}},{"$f":"AND(#REF!,\"TmdQ6yA8JSQ=\")","v":{"$error":"#REF!"}},{"$f":"AND(#REF!,\"TmdQ6yA8JSU=\")","v":{"$error":"#REF!"}},{"$f":"AND(#REF!,\"TmdQ6yA8JSY=\")","v":{"$error":"#REF!"}},{"$f":"AND(#REF!,\"TmdQ6yA8JSc=\")","v":{"$error":"#REF!"}},{"$f":"AND(#REF!,\"TmdQ6yA8JSg=\")","v":{"$error":"#REF!"}},{"$f":"AND(#REF!,\"TmdQ6yA8JSk=\")","v":{"$error":"#REF!"}},{"$f":"AND(#REF!,\"TmdQ6yA8JSo=\")","v":{"$error":"#REF!"}},{"$f":"AND(#REF!,\"TmdQ6yA8JSs=\")","v":{"$error":"#REF!"}},{"$f":"AND(#REF!,\"TmdQ6yA8JSw=\")","v":{"$error":"#REF!"}},{"$f":"AND(#REF!,\"TmdQ6yA8JS0=\")","v":{"$error":"#REF!"}},{"$f":"AND(#REF!,\"TmdQ6yA8JS4=\")","v":{"$error":"#REF!"}},{"$f":"AND(#REF!,\"TmdQ6yA8JS8=\")","v":{"$error":"#REF!"}},{"$f":"AND(#REF!,\"TmdQ6yA8JTA=\")","v":{"$error":"#REF!"}},{"$f":"AND(#REF!,\"TmdQ6yA8JTE=\")","v":{"$error":"#REF!"}},{"$f":"AND(#REF!,\"TmdQ6yA8JTI=\")","v":{"$error":"#REF!"}},{"$f":"AND(#REF!,\"TmdQ6yA8JTM=\")","v":{"$error":"#REF!"}},{"$f":"AND(#REF!,\"TmdQ6yA8JTQ=\")","v":{"$error":"#REF!"}},{"$f":"AND(#REF!,\"TmdQ6yA8JTU=\")","v":{"$error":"#REF!"}},{"$f":"AND(#REF!,\"TmdQ6yA8JTY=\")","v":{"$error":"#REF!"}},{"$f":"AND(#REF!,\"TmdQ6yA8JTc=\")","v":{"$error":"#REF!"}},{"$f":"AND(#REF!,\"TmdQ6yA8JTg=\")","v":{"$error":"#REF!"}},{"$f":"AND(#REF!,\"TmdQ6yA8JTk=\")","v":{"$error":"#REF!"}},{"$f":"AND(#REF!,\"TmdQ6yA8JTo=\")","v":{"$error":"#REF!"}},{"$f":"AND(#REF!,\"TmdQ6yA8JTs=\")","v":{"$error":"#REF!"}},{"$f":"AND(#REF!,\"TmdQ6yA8JTw=\")","v":{"$error":"#REF!"}},{"$f":"AND(#REF!,\"TmdQ6yA8JT0=\")","v":{"$error":"#REF!"}},{"$f":"AND(#REF!,\"TmdQ6yA8JT4=\")","v":{"$error":"#REF!"}},{"$f":"AND(#REF!,\"TmdQ6yA8JT8=\")","v":{"$error":"#REF!"}},{"$f":"AND(#REF!,\"TmdQ6yA8JUA=\")","v":{"$error":"#REF!"}},{"$f":"AND(#REF!,\"TmdQ6yA8JUE=\")","v":{"$error":"#REF!"}},{"$f":"AND(#REF!,\"TmdQ6yA8JUI=\")","v":{"$error":"#REF!"}},{"$f":"AND(#REF!,\"TmdQ6yA8JUM=\")","v":{"$error":"#REF!"}},{"$f":"AND(#REF!,\"TmdQ6yA8JUQ=\")","v":{"$error":"#REF!"}},{"$f":"AND(#REF!,\"TmdQ6yA8JUU=\")","v":{"$error":"#REF!"}},{"$f":"AND(#REF!,\"TmdQ6yA8JUY=\")","v":{"$error":"#REF!"}},{"$f":"AND(#REF!,\"TmdQ6yA8JUc=\")","v":{"$error":"#REF!"}},{"$f":"AND(#REF!,\"TmdQ6yA8JUg=\")","v":{"$error":"#REF!"}},{"$f":"AND(#REF!,\"TmdQ6yA8JUk=\")","v":{"$error":"#REF!"}},{"$f":"AND(#REF!,\"TmdQ6yA8JUo=\")","v":{"$error":"#REF!"}},{"$f":"AND(#REF!,\"TmdQ6yA8JUs=\")","v":{"$error":"#REF!"}},{"$f":"AND(#REF!,\"TmdQ6yA8JUw=\")","v":{"$error":"#REF!"}},{"$f":"AND(#REF!,\"TmdQ6yA8JU0=\")","v":{"$error":"#REF!"}},{"$f":"AND(#REF!,\"TmdQ6yA8JU4=\")","v":{"$error":"#REF!"}},{"$f":"AND(#REF!,\"TmdQ6yA8JU8=\")","v":{"$error":"#REF!"}},{"$f":"AND(#REF!,\"TmdQ6yA8JVA=\")","v":{"$error":"#REF!"}},{"$f":"AND(#REF!,\"TmdQ6yA8JVE=\")","v":{"$error":"#REF!"}},{"$f":"AND(#REF!,\"TmdQ6yA8JVI=\")","v":{"$error":"#REF!"}},{"$f":"AND(#REF!,\"TmdQ6yA8JVM=\")","v":{"$error":"#REF!"}},{"$f":"AND(#REF!,\"TmdQ6yA8JVQ=\")","v":{"$error":"#REF!"}},{"$f":"AND(#REF!,\"TmdQ6yA8JVU=\")","v":{"$error":"#REF!"}},{"$f":"AND(#REF!,\"TmdQ6yA8JVY=\")","v":{"$error":"#REF!"}},{"$f":"AND(#REF!,\"TmdQ6yA8JVc=\")","v":{"$error":"#REF!"}},{"$f":"AND(#REF!,\"TmdQ6yA8JVg=\")","v":{"$error":"#REF!"}},{"$f":"AND(#REF!,\"TmdQ6yA8JVk=\")","v":{"$error":"#REF!"}},{"$f":"AND(#REF!,\"TmdQ6yA8JVo=\")","v":{"$error":"#REF!"}},{"$f":"AND(#REF!,\"TmdQ6yA8JVs=\")","v":{"$error":"#REF!"}},{"$f":"AND(#REF!,\"TmdQ6yA8JVw=\")","v":{"$error":"#REF!"}},{"$f":"AND(#REF!,\"TmdQ6yA8JV0=\")","v":{"$error":"#REF!"}},{"$f":"AND(#REF!,\"TmdQ6yA8JV4=\")","v":{"$error":"#REF!"}},{"$f":"AND(#REF!,\"TmdQ6yA8JV8=\")","v":{"$error":"#REF!"}},{"$f":"AND(#REF!,\"TmdQ6yA8JWA=\")","v":{"$error":"#REF!"}},{"$f":"AND(#REF!,\"TmdQ6yA8JWE=\")","v":{"$error":"#REF!"}},{"$f":"AND(#REF!,\"TmdQ6yA8JWI=\")","v":{"$error":"#REF!"}},{"$f":"AND(#REF!,\"TmdQ6yA8JWM=\")","v":{"$error":"#REF!"}},{"$f":"AND(#REF!,\"TmdQ6yA8JWQ=\")","v":{"$error":"#REF!"}},{"$f":"AND(#REF!,\"TmdQ6yA8JWU=\")","v":{"$error":"#REF!"}},{"$f":"AND(#REF!,\"TmdQ6yA8JWY=\")","v":{"$error":"#REF!"}},{"$f":"AND(#REF!,\"TmdQ6yA8JWc=\")","v":{"$error":"#REF!"}},{"$f":"AND(#REF!,\"TmdQ6yA8JWg=\")","v":{"$error":"#REF!"}},{"$f":"AND(#REF!,\"TmdQ6yA8JWk=\")","v":{"$error":"#REF!"}},{"$f":"AND(#REF!,\"TmdQ6yA8JWo=\")","v":{"$error":"#REF!"}},{"$f":"AND(#REF!,\"TmdQ6yA8JWs=\")","v":{"$error":"#REF!"}},{"$f":"AND(#REF!,\"TmdQ6yA8JWw=\")","v":{"$error":"#REF!"}},{"$f":"AND(#REF!,\"TmdQ6yA8JW0=\")","v":{"$error":"#REF!"}},{"$f":"AND(#REF!,\"TmdQ6yA8JW4=\")","v":{"$error":"#REF!"}},{"$f":"AND(#REF!,\"TmdQ6yA8JW8=\")","v":{"$error":"#REF!"}},{"$f":"AND(#REF!,\"TmdQ6yA8JXA=\")","v":{"$error":"#REF!"}},{"$f":"AND(#REF!,\"TmdQ6yA8JXE=\")","v":{"$error":"#REF!"}},{"$f":"AND(#REF!,\"TmdQ6yA8JXI=\")","v":{"$error":"#REF!"}},{"$f":"AND(#REF!,\"TmdQ6yA8JXM=\")","v":{"$error":"#REF!"}},{"$f":"AND(#REF!,\"TmdQ6yA8JXQ=\")","v":{"$error":"#REF!"}},{"$f":"AND(#REF!,\"TmdQ6yA8JXU=\")","v":{"$error":"#REF!"}},{"$f":"AND(#REF!,\"TmdQ6yA8JXY=\")","v":{"$error":"#REF!"}},{"$f":"AND(#REF!,\"TmdQ6yA8JXc=\")","v":{"$error":"#REF!"}},{"$f":"AND(#REF!,\"TmdQ6yA8JXg=\")","v":{"$error":"#REF!"}},{"$f":"AND(#REF!,\"TmdQ6yA8JXk=\")","v":{"$error":"#REF!"}},{"$f":"AND(#REF!,\"TmdQ6yA8JXo=\")","v":{"$error":"#REF!"}},{"$f":"AND(#REF!,\"TmdQ6yA8JXs=\")","v":{"$error":"#REF!"}},{"$f":"AND(#REF!,\"TmdQ6yA8JXw=\")","v":{"$error":"#REF!"}},{"$f":"AND(#REF!,\"TmdQ6yA8JX0=\")","v":{"$error":"#REF!"}},{"$f":"AND(#REF!,\"TmdQ6yA8JX4=\")","v":{"$error":"#REF!"}},{"$f":"AND(#REF!,\"TmdQ6yA8JX8=\")","v":{"$error":"#REF!"}},{"$f":"AND(#REF!,\"TmdQ6yA8JYA=\")","v":{"$error":"#REF!"}},{"$f":"AND(#REF!,\"TmdQ6yA8JYE=\")","v":{"$error":"#REF!"}},{"$f":"AND(#REF!,\"TmdQ6yA8JYI=\")","v":{"$error":"#REF!"}},{"$f":"AND(#REF!,\"TmdQ6yA8JYM=\")","v":{"$error":"#REF!"}},{"$f":"AND(#REF!,\"TmdQ6yA8JYQ=\")","v":{"$error":"#REF!"}},{"$f":"AND(#REF!,\"TmdQ6yA8JYU=\")","v":{"$error":"#REF!"}},{"$f":"AND(#REF!,\"TmdQ6yA8JYY=\")","v":{"$error":"#REF!"}},{"$f":"AND(#REF!,\"TmdQ6yA8JYc=\")","v":{"$error":"#REF!"}},{"$f":"AND(#REF!,\"TmdQ6yA8JYg=\")","v":{"$error":"#REF!"}},{"$f":"AND(#REF!,\"TmdQ6yA8JYk=\")","v":{"$error":"#REF!"}},{"$f":"AND(#REF!,\"TmdQ6yA8JYo=\")","v":{"$error":"#REF!"}},{"$f":"AND(#REF!,\"TmdQ6yA8JYs=\")","v":{"$error":"#REF!"}},{"$f":"IF(#REF!,\"TmdQ6yA8JYw=\",0)","v":{"$error":"#REF!"}},{"$f":"AND(#REF!,\"TmdQ6yA8JY0=\")","v":{"$error":"#REF!"}},{"$f":"AND(#REF!,\"TmdQ6yA8JY4=\")","v":{"$error":"#REF!"}},{"$f":"AND(#REF!,\"TmdQ6yA8JY8=\")","v":{"$error":"#REF!"}},{"$f":"AND(#REF!,\"TmdQ6yA8JZA=\")","v":{"$error":"#REF!"}},{"$f":"AND(#REF!,\"TmdQ6yA8JZE=\")","v":{"$error":"#REF!"}},{"$f":"AND(#REF!,\"TmdQ6yA8JZI=\")","v":{"$error":"#REF!"}},{"$f":"AND(#REF!,\"TmdQ6yA8JZM=\")","v":{"$error":"#REF!"}},{"$f":"AND(#REF!,\"TmdQ6yA8JZQ=\")","v":{"$error":"#REF!"}},{"$f":"AND(#REF!,\"TmdQ6yA8JZU=\")","v":{"$error":"#REF!"}},{"$f":"AND(#REF!,\"TmdQ6yA8JZY=\")","v":{"$error":"#REF!"}},{"$f":"AND(#REF!,\"TmdQ6yA8JZc=\")","v":{"$error":"#REF!"}},{"$f":"AND(#REF!,\"TmdQ6yA8JZg=\")","v":{"$error":"#REF!"}},{"$f":"AND(#REF!,\"TmdQ6yA8JZk=\")","v":{"$error":"#REF!"}},{"$f":"AND(#REF!,\"TmdQ6yA8JZo=\")","v":{"$error":"#REF!"}},{"$f":"AND(#REF!,\"TmdQ6yA8JZs=\")","v":{"$error":"#REF!"}},{"$f":"AND(#REF!,\"TmdQ6yA8JZw=\")","v":{"$error":"#REF!"}},{"$f":"AND(#REF!,\"TmdQ6yA8JZ0=\")","v":{"$error":"#REF!"}},{"$f":"AND(#REF!,\"TmdQ6yA8JZ4=\")","v":{"$error":"#REF!"}},{"$f":"AND(#REF!,\"TmdQ6yA8JZ8=\")","v":{"$error":"#REF!"}},{"$f":"AND(#REF!,\"TmdQ6yA8JaA=\")","v":{"$error":"#REF!"}},{"$f":"AND(#REF!,\"TmdQ6yA8JaE=\")","v":{"$error":"#REF!"}},{"$f":"AND(#REF!,\"TmdQ6yA8JaI=\")","v":{"$error":"#REF!"}},{"$f":"AND(#REF!,\"TmdQ6yA8JaM=\")","v":{"$error":"#REF!"}},{"$f":"AND(#REF!,\"TmdQ6yA8JaQ=\")","v":{"$error":"#REF!"}},{"$f":"AND(#REF!,\"TmdQ6yA8JaU=\")","v":{"$error":"#REF!"}},{"$f":"AND(#REF!,\"TmdQ6yA8JaY=\")","v":{"$error":"#REF!"}},{"$f":"AND(#REF!,\"TmdQ6yA8Jac=\")","v":{"$error":"#REF!"}},{"$f":"AND(#REF!,\"TmdQ6yA8Jag=\")","v":{"$error":"#REF!"}},{"$f":"AND(#REF!,\"TmdQ6yA8Jak=\")","v":{"$error":"#REF!"}},{"$f":"AND(#REF!,\"TmdQ6yA8Jao=\")","v":{"$error":"#REF!"}},{"$f":"AND(#REF!,\"TmdQ6yA8Jas=\")","v":{"$error":"#REF!"}},{"$f":"AND(#REF!,\"TmdQ6yA8Jaw=\")","v":{"$error":"#REF!"}},{"$f":"AND(#REF!,\"TmdQ6yA8Ja0=\")","v":{"$error":"#REF!"}},{"$f":"AND(#REF!,\"TmdQ6yA8Ja4=\")","v":{"$error":"#REF!"}},{"$f":"AND(#REF!,\"TmdQ6yA8Ja8=\")","v":{"$error":"#REF!"}},{"$f":"AND(#REF!,\"TmdQ6yA8JbA=\")","v":{"$error":"#REF!"}},{"$f":"AND(#REF!,\"TmdQ6yA8JbE=\")","v":{"$error":"#REF!"}},{"$f":"AND(#REF!,\"TmdQ6yA8JbI=\")","v":{"$error":"#REF!"}},{"$f":"AND(#REF!,\"TmdQ6yA8JbM=\")","v":{"$error":"#REF!"}},{"$f":"AND(#REF!,\"TmdQ6yA8JbQ=\")","v":{"$error":"#REF!"}},{"$f":"AND(#REF!,\"TmdQ6yA8JbU=\")","v":{"$error":"#REF!"}},{"$f":"AND(#REF!,\"TmdQ6yA8JbY=\")","v":{"$error":"#REF!"}},{"$f":"AND(#REF!,\"TmdQ6yA8Jbc=\")","v":{"$error":"#REF!"}},{"$f":"AND(#REF!,\"TmdQ6yA8Jbg=\")","v":{"$error":"#REF!"}},{"$f":"AND(#REF!,\"TmdQ6yA8Jbk=\")","v":{"$error":"#REF!"}},{"$f":"AND(#REF!,\"TmdQ6yA8Jbo=\")","v":{"$error":"#REF!"}},{"$f":"AND(#REF!,\"TmdQ6yA8Jbs=\")","v":{"$error":"#REF!"}},{"$f":"AND(#REF!,\"TmdQ6yA8Jbw=\")","v":{"$error":"#REF!"}},{"$f":"AND(#REF!,\"TmdQ6yA8Jb0=\")","v":{"$error":"#REF!"}},{"$f":"AND(#REF!,\"TmdQ6yA8Jb4=\")","v":{"$error":"#REF!"}},{"$f":"AND(#REF!,\"TmdQ6yA8Jb8=\")","v":{"$error":"#REF!"}},{"$f":"AND(#REF!,\"TmdQ6yA8JcA=\")","v":{"$error":"#REF!"}},{"$f":"AND(#REF!,\"TmdQ6yA8JcE=\")","v":{"$error":"#REF!"}},{"$f":"AND(#REF!,\"TmdQ6yA8JcI=\")","v":{"$error":"#REF!"}},{"$f":"AND(#REF!,\"TmdQ6yA8JcM=\")","v":{"$error":"#REF!"}},{"$f":"AND(#REF!,\"TmdQ6yA8JcQ=\")","v":{"$error":"#REF!"}},{"$f":"AND(#REF!,\"TmdQ6yA8JcU=\")","v":{"$error":"#REF!"}},{"$f":"AND(#REF!,\"TmdQ6yA8JcY=\")","v":{"$error":"#REF!"}},{"$f":"AND(#REF!,\"TmdQ6yA8Jcc=\")","v":{"$error":"#REF!"}},{"$f":"AND(#REF!,\"TmdQ6yA8Jcg=\")","v":{"$error":"#REF!"}},{"$f":"AND(#REF!,\"TmdQ6yA8Jck=\")","v":{"$error":"#REF!"}},{"$f":"AND(#REF!,\"TmdQ6yA8Jco=\")","v":{"$error":"#REF!"}},{"$f":"AND(#REF!,\"TmdQ6yA8Jcs=\")","v":{"$error":"#REF!"}},{"$f":"AND(#REF!,\"TmdQ6yA8Jcw=\")","v":{"$error":"#REF!"}},{"$f":"AND(#REF!,\"TmdQ6yA8Jc0=\")","v":{"$error":"#REF!"}},{"$f":"AND(#REF!,\"TmdQ6yA8Jc4=\")","v":{"$error":"#REF!"}},{"$f":"AND(#REF!,\"TmdQ6yA8Jc8=\")","v":{"$error":"#REF!"}},{"$f":"AND(#REF!,\"TmdQ6yA8JdA=\")","v":{"$error":"#REF!"}},{"$f":"AND(#REF!,\"TmdQ6yA8JdE=\")","v":{"$error":"#REF!"}},{"$f":"AND(#REF!,\"TmdQ6yA8JdI=\")","v":{"$error":"#REF!"}},{"$f":"AND(#REF!,\"TmdQ6yA8JdM=\")","v":{"$error":"#REF!"}},{"$f":"AND(#REF!,\"TmdQ6yA8JdQ=\")","v":{"$error":"#REF!"}},{"$f":"AND(#REF!,\"TmdQ6yA8JdU=\")","v":{"$error":"#REF!"}},{"$f":"AND(#REF!,\"TmdQ6yA8JdY=\")","v":{"$error":"#REF!"}},{"$f":"AND(#REF!,\"TmdQ6yA8Jdc=\")","v":{"$error":"#REF!"}},{"$f":"AND(#REF!,\"TmdQ6yA8Jdg=\")","v":{"$error":"#REF!"}},{"$f":"AND(#REF!,\"TmdQ6yA8Jdk=\")","v":{"$error":"#REF!"}},{"$f":"AND(#REF!,\"TmdQ6yA8Jdo=\")","v":{"$error":"#REF!"}},{"$f":"AND(#REF!,\"TmdQ6yA8Jds=\")","v":{"$error":"#REF!"}},{"$f":"AND(#REF!,\"TmdQ6yA8Jdw=\")","v":{"$error":"#REF!"}},{"$f":"AND(#REF!,\"TmdQ6yA8Jd0=\")","v":{"$error":"#REF!"}},{"$f":"AND(#REF!,\"TmdQ6yA8Jd4=\")","v":{"$error":"#REF!"}},{"$f":"AND(#REF!,\"TmdQ6yA8Jd8=\")","v":{"$error":"#REF!"}},{"$f":"AND(#REF!,\"TmdQ6yA8JeA=\")","v":{"$error":"#REF!"}},{"$f":"AND(#REF!,\"TmdQ6yA8JeE=\")","v":{"$error":"#REF!"}},{"$f":"AND(#REF!,\"TmdQ6yA8JeI=\")","v":{"$error":"#REF!"}},{"$f":"AND(#REF!,\"TmdQ6yA8JeM=\")","v":{"$error":"#REF!"}},{"$f":"AND(#REF!,\"TmdQ6yA8JeQ=\")","v":{"$error":"#REF!"}},{"$f":"AND(#REF!,\"TmdQ6yA8JeU=\")","v":{"$error":"#REF!"}},{"$f":"AND(#REF!,\"TmdQ6yA8JeY=\")","v":{"$error":"#REF!"}},{"$f":"AND(#REF!,\"TmdQ6yA8Jec=\")","v":{"$error":"#REF!"}},{"$f":"AND(#REF!,\"TmdQ6yA8Jeg=\")","v":{"$error":"#REF!"}},{"$f":"AND(#REF!,\"TmdQ6yA8Jek=\")","v":{"$error":"#REF!"}},{"$f":"AND(#REF!,\"TmdQ6yA8Jeo=\")","v":{"$error":"#REF!"}},{"$f":"AND(#REF!,\"TmdQ6yA8Jes=\")","v":{"$error":"#REF!"}},{"$f":"AND(#REF!,\"TmdQ6yA8Jew=\")","v":{"$error":"#REF!"}},{"$f":"AND(#REF!,\"TmdQ6yA8Je0=\")","v":{"$error":"#REF!"}},{"$f":"AND(#REF!,\"TmdQ6yA8Je4=\")","v":{"$error":"#REF!"}},{"$f":"AND(#REF!,\"TmdQ6yA8Je8=\")","v":{"$error":"#REF!"}},{"$f":"AND(#REF!,\"TmdQ6yA8JfA=\")","v":{"$error":"#REF!"}},{"$f":"AND(#REF!,\"TmdQ6yA8JfE=\")","v":{"$error":"#REF!"}},{"$f":"AND(#REF!,\"TmdQ6yA8JfI=\")","v":{"$error":"#REF!"}},{"$f":"AND(#REF!,\"TmdQ6yA8JfM=\")","v":{"$error":"#REF!"}},{"$f":"AND(#REF!,\"TmdQ6yA8JfQ=\")","v":{"$error":"#REF!"}},{"$f":"AND(#REF!,\"TmdQ6yA8JfU=\")","v":{"$error":"#REF!"}},{"$f":"AND(#REF!,\"TmdQ6yA8JfY=\")","v":{"$error":"#REF!"}},{"$f":"AND(#REF!,\"TmdQ6yA8Jfc=\")","v":{"$error":"#REF!"}},{"$f":"AND(#REF!,\"TmdQ6yA8Jfg=\")","v":{"$error":"#REF!"}},{"$f":"AND(#REF!,\"TmdQ6yA8Jfk=\")","v":{"$error":"#REF!"}},{"$f":"AND(#REF!,\"TmdQ6yA8Jfo=\")","v":{"$error":"#REF!"}},{"$f":"AND(#REF!,\"TmdQ6yA8Jfs=\")","v":{"$error":"#REF!"}},{"$f":"AND(#REF!,\"TmdQ6yA8Jfw=\")","v":{"$error":"#REF!"}},{"$f":"AND(#REF!,\"TmdQ6yA8Jf0=\")","v":{"$error":"#REF!"}},{"$f":"AND(#REF!,\"TmdQ6yA8Jf4=\")","v":{"$error":"#REF!"}},{"$f":"AND(#REF!,\"TmdQ6yA8Jf8=\")","v":{"$error":"#REF!"}}]
[{"$f":"AND(#REF!,\"URXzUH5fLgA=\")","v":{"$error":"#REF!"}},{"$f":"AND(#REF!,\"URXzUH5fLgE=\")","v":{"$error":"#REF!"}},{"$f":"AND(#REF!,\"URXzUH5fLgI=\")","v":{"$error":"#REF!"}},{"$f":"AND(#REF!,\"URXzUH5fLgM=\")","v":{"$error":"#REF!"}},{"$f":"AND(#REF!,\"URXzUH5fLgQ=\")","v":{"$error":"#REF!"}},{"$f":"AND(#REF!,\"URXzUH5fLgU=\")","v":{"$error":"#REF!"}},{"$f":"AND(#REF!,\"URXzUH5fLgY=\")","v":{"$error":"#REF!"}},{"$f":"AND(#REF!,\"URXzUH5fLgc=\")","v":{"$error":"#REF!"}},{"$f":"AND(#REF!,\"URXzUH5fLgg=\")","v":{"$error":"#REF!"}},{"$f":"AND(#REF!,\"URXzUH5fLgk=\")","v":{"$error":"#REF!"}},{"$f":"AND(#REF!,\"URXzUH5fLgo=\")","v":{"$error":"#REF!"}},{"$f":"AND(#REF!,\"URXzUH5fLgs=\")","v":{"$error":"#REF!"}},{"$f":"AND(#REF!,\"URXzUH5fLgw=\")","v":{"$error":"#REF!"}},{"$f":"AND(#REF!,\"URXzUH5fLg0=\")","v":{"$error":"#REF!"}},{"$f":"AND(#REF!,\"URXzUH5fLg4=\")","v":{"$error":"#REF!"}},{"$f":"AND(#REF!,\"URXzUH5fLg8=\")","v":{"$error":"#REF!"}},{"$f":"AND(#REF!,\"URXzUH5fLhA=\")","v":{"$error":"#REF!"}},{"$f":"AND(#REF!,\"URXzUH5fLhE=\")","v":{"$error":"#REF!"}},{"$f":"AND(#REF!,\"URXzUH5fLhI=\")","v":{"$error":"#REF!"}},{"$f":"AND(#REF!,\"URXzUH5fLhM=\")","v":{"$error":"#REF!"}},{"$f":"AND(#REF!,\"URXzUH5fLhQ=\")","v":{"$error":"#REF!"}},{"$f":"AND(#REF!,\"URXzUH5fLhU=\")","v":{"$error":"#REF!"}},{"$f":"AND(#REF!,\"URXzUH5fLhY=\")","v":{"$error":"#REF!"}},{"$f":"AND(#REF!,\"URXzUH5fLhc=\")","v":{"$error":"#REF!"}},{"$f":"AND(#REF!,\"URXzUH5fLhg=\")","v":{"$error":"#REF!"}},{"$f":"AND(#REF!,\"URXzUH5fLhk=\")","v":{"$error":"#REF!"}},{"$f":"AND(#REF!,\"URXzUH5fLho=\")","v":{"$error":"#REF!"}},{"$f":"AND(#REF!,\"URXzUH5fLhs=\")","v":{"$error":"#REF!"}},{"$f":"AND(#REF!,\"URXzUH5fLhw=\")","v":{"$error":"#REF!"}},{"$f":"AND(#REF!,\"URXzUH5fLh0=\")","v":{"$error":"#REF!"}},{"$f":"AND(#REF!,\"URXzUH5fLh4=\")","v":{"$error":"#REF!"}},{"$f":"AND(#REF!,\"URXzUH5fLh8=\")","v":{"$error":"#REF!"}},{"$f":"AND(#REF!,\"URXzUH5fLiA=\")","v":{"$error":"#REF!"}},{"$f":"AND(#REF!,\"URXzUH5fLiE=\")","v":{"$error":"#REF!"}},{"$f":"AND(#REF!,\"URXzUH5fLiI=\")","v":{"$error":"#REF!"}},{"$f":"AND(#REF!,\"URXzUH5fLiM=\")","v":{"$error":"#REF!"}},{"$f":"AND(#REF!,\"URXzUH5fLiQ=\")","v":{"$error":"#REF!"}},{"$f":"AND(#REF!,\"URXzUH5fLiU=\")","v":{"$error":"#REF!"}},{"$f":"AND(#REF!,\"URXzUH5fLiY=\")","v":{"$error":"#REF!"}},{"$f":"AND(#REF!,\"URXzUH5fLic=\")","v":{"$error":"#REF!"}},{"$f":"AND(#REF!,\"URXzUH5fLig=\")","v":{"$error":"#REF!"}},{"$f":"AND(#REF!,\"URXzUH5fLik=\")","v":{"$error":"#REF!"}},{"$f":"AND(#REF!,\"URXzUH5fLio=\")","v":{"$error":"#REF!"}},{"$f":"AND(#REF!,\"URXzUH5fLis=\")","v":{"$error":"#REF!"}},{"$f":"AND(#REF!,\"URXzUH5fLiw=\")","v":{"$error":"#REF!"}},{"$f":"AND(#REF!,\"URXzUH5fLi0=\")","v":{"$error":"#REF!"}},{"$f":"AND(#REF!,\"URXzUH5fLi4=\")","v":{"$error":"#REF!"}},{"$f":"AND(#REF!,\"URXzUH5fLi8=\")","v":{"$error":"#REF!"}},{"$f":"AND(#REF!,\"URXzUH5fLjA=\")","v":{"$error":"#REF!"}},{"$f":"AND(#REF!,\"URXzUH5fLjE=\")","v":{"$error":"#REF!"}},{"$f":"AND(#REF!,\"URXzUH5fLjI=\")","v":{"$error":"#REF!"}},{"$f":"AND(#REF!,\"URXzUH5fLjM=\")","v":{"$error":"#REF!"}},{"$f":"AND(#REF!,\"URXzUH5fLjQ=\")","v":{"$error":"#REF!"}},{"$f":"AND(#REF!,\"URXzUH5fLjU=\")","v":{"$error":"#REF!"}},{"$f":"AND(#REF!,\"URXzUH5fLjY=\")","v":{"$error":"#REF!"}},{"$f":"AND(#REF!,\"URXzUH5fLjc=\")","v":{"$error":"#REF!"}},{"$f":"AND(#REF!,\"URXzUH5fLjg=\")","v":{"$error":"#REF!"}},{"$f":"AND(#REF!,\"URXzUH5fLjk=\")","v":{"$error":"#REF!"}},{"$f":"AND(#REF!,\"URXzUH5fLjo=\")","v":{"$error":"#REF!"}},{"$f":"AND(#REF!,\"URXzUH5fLjs=\")","v":{"$error":"#REF!"}},{"$f":"AND(#REF!,\"URXzUH5fLjw=\")","v":{"$error":"#REF!"}},{"$f":"AND(#REF!,\"URXzUH5fLj0=\")","v":{"$error":"#REF!"}},{"$f":"AND(#REF!,\"URXzUH5fLj4=\")","v":{"$error":"#REF!"}},{"$f":"AND(#REF!,\"URXzUH5fLj8=\")","v":{"$error":"#REF!"}},{"$f":"AND(#REF!,\"URXzUH5fLkA=\")","v":{"$error":"#REF!"}},{"$f":"AND(#REF!,\"URXzUH5fLkE=\")","v":{"$error":"#REF!"}},{"$f":"AND(#REF!,\"URXzUH5fLkI=\")","v":{"$error":"#REF!"}},{"$f":"AND(#REF!,\"URXzUH5fLkM=\")","v":{"$error":"#REF!"}},{"$f":"AND(#REF!,\"URXzUH5fLkQ=\")","v":{"$error":"#REF!"}},{"$f":"AND(#REF!,\"URXzUH5fLkU=\")","v":{"$error":"#REF!"}},{"$f":"AND(#REF!,\"URXzUH5fLkY=\")","v":{"$error":"#REF!"}},{"$f":"AND(#REF!,\"URXzUH5fLkc=\")","v":{"$error":"#REF!"}},{"$f":"AND(#REF!,\"URXzUH5fLkg=\")","v":{"$error":"#REF!"}},{"$f":"AND(#REF!,\"URXzUH5fLkk=\")","v":{"$error":"#REF!"}},{"$f":"AND(#REF!,\"URXzUH5fLko=\")","v":{"$error":"#REF!"}},{"$f":"AND(#REF!,\"URXzUH5fLks=\")","v":{"$error":"#REF!"}},{"$f":"AND(#REF!,\"URXzUH5fLkw=\")","v":{"$error":"#REF!"}},{"$f":"AND(#REF!,\"URXzUH5fLk0=\")","v":{"$error":"#REF!"}},{"$f":"AND(#REF!,\"URXzUH5fLk4=\")","v":{"$error":"#REF!"}},{"$f":"AND(#REF!,\"URXzUH5fLk8=\")","v":{"$error":"#REF!"}},{"$f":"AND(#REF!,\"URXzUH5fLlA=\")","v":{"$error":"#REF!"}},{"$f":"AND(#REF!,\"URXzUH5fLlE=\")","v":{"$error":"#REF!"}},{"$f":"AND(#REF!,\"URXzUH5fLlI=\")","v":{"$error":"#REF!"}},{"$f":"IF(#REF!,\"URXzUH5fLlM=\",0)","v":{"$error":"#REF!"}},{"$f":"AND(#REF!,\"URXzUH5fLlQ=\")","v":{"$error":"#REF!"}},{"$f":"AND(#REF!,\"URXzUH5fLlU=\")","v":{"$error":"#REF!"}},{"$f":"AND(#REF!,\"URXzUH5fLlY=\")","v":{"$error":"#REF!"}},{"$f":"AND(#REF!,\"URXzUH5fLlc=\")","v":{"$error":"#REF!"}},{"$f":"AND(#REF!,\"URXzUH5fLlg=\")","v":{"$error":"#REF!"}},{"$f":"AND(#REF!,\"URXzUH5fLlk=\")","v":{"$error":"#REF!"}},{"$f":"AND(#REF!,\"URXzUH5fLlo=\")","v":{"$error":"#REF!"}},{"$f":"AND(#REF!,\"URXzUH5fLls=\")","v":{"$error":"#REF!"}},{"$f":"AND(#REF!,\"URXzUH5fLlw=\")","v":{"$error":"#REF!"}},{"$f":"AND(#REF!,\"URXzUH5fLl0=\")","v":{"$error":"#REF!"}},{"$f":"AND(#REF!,\"URXzUH5fLl4=\")","v":{"$error":"#REF!"}},{"$f":"AND(#REF!,\"URXzUH5fLl8=\")","v":{"$error":"#REF!"}},{"$f":"AND(#REF!,\"URXzUH5fLmA=\")","v":{"$error":"#REF!"}},{"$f":"AND(#REF!,\"URXzUH5fLmE=\")","v":{"$error":"#REF!"}},{"$f":"AND(#REF!,\"URXzUH5fLmI=\")","v":{"$error":"#REF!"}},{"$f":"AND(#REF!,\"URXzUH5fLmM=\")","v":{"$error":"#REF!"}},{"$f":"AND(#REF!,\"URXzUH5fLmQ=\")","v":{"$error":"#REF!"}},{"$f":"AND(#REF!,\"URXzUH5fLmU=\")","v":{"$error":"#REF!"}},{"$f":"AND(#REF!,\"URXzUH5fLmY=\")","v":{"$error":"#REF!"}},{"$f":"AND(#REF!,\"URXzUH5fLmc=\")","v":{"$error":"#REF!"}},{"$f":"AND(#REF!,\"URXzUH5fLmg=\")","v":{"$error":"#REF!"}},{"$f":"AND(#REF!,\"URXzUH5fLmk=\")","v":{"$error":"#REF!"}},{"$f":"AND(#REF!,\"URXzUH5fLmo=\")","v":{"$error":"#REF!"}},{"$f":"AND(#REF!,\"URXzUH5fLms=\")","v":{"$error":"#REF!"}},{"$f":"AND(#REF!,\"URXzUH5fLmw=\")","v":{"$error":"#REF!"}},{"$f":"AND(#REF!,\"URXzUH5fLm0=\")","v":{"$error":"#REF!"}},{"$f":"AND(#REF!,\"URXzUH5fLm4=\")","v":{"$error":"#REF!"}},{"$f":"AND(#REF!,\"URXzUH5fLm8=\")","v":{"$error":"#REF!"}},{"$f":"AND(#REF!,\"URXzUH5fLnA=\")","v":{"$error":"#REF!"}},{"$f":"AND(#REF!,\"URXzUH5fLnE=\")","v":{"$error":"#REF!"}},{"$f":"AND(#REF!,\"URXzUH5fLnI=\")","v":{"$error":"#REF!"}},{"$f":"AND(#REF!,\"URXzUH5fLnM=\")","v":{"$error":"#REF!"}},{"$f":"AND(#REF!,\"URXzUH5fLnQ=\")","v":{"$error":"#REF!"}},{"$f":"AND(#REF!,\"URXzUH5fLnU=\")","v":{"$error":"#REF!"}},{"$f":"AND(#REF!,\"URXzUH5fLnY=\")","v":{"$error":"#REF!"}},{"$f":"AND(#REF!,\"URXzUH5fLnc=\")","v":{"$error":"#REF!"}},{"$f":"AND(#REF!,\"URXzUH5fLng=\")","v":{"$error":"#REF!"}},{"$f":"AND(#REF!,\"URXzUH5fLnk=\")","v":{"$error":"#REF!"}},{"$f":"AND(#REF!,\"URXzUH5fLno=\")","v":{"$error":"#REF!"}},{"$f":"AND(#REF!,\"URXzUH5fLns=\")","v":{"$error":"#REF!"}},{"$f":"AND(#REF!,\"URXzUH5fLnw=\")","v":{"$error":"#REF!"}},{"$f":"AND(#REF!,\"URXzUH5fLn0=\")","v":{"$error":"#REF!"}},{"$f":"AND(#REF!,\"URXzUH5fLn4=\")","v":{"$error":"#REF!"}},{"$f":"AND(#REF!,\"URXzUH5fLn8=\")","v":{"$error":"#REF!"}},{"$f":"AND(#REF!,\"URXzUH5fLoA=\")","v":{"$error":"#REF!"}},{"$f":"AND(#REF!,\"URXzUH5fLoE=\")","v":{"$error":"#REF!"}},{"$f":"AND(#REF!,\"URXzUH5fLoI=\")","v":{"$error":"#REF!"}},{"$f":"AND(#REF!,\"URXzUH5fLoM=\")","v":{"$error":"#REF!"}},{"$f":"AND(#REF!,\"URXzUH5fLoQ=\")","v":{"$error":"#REF!"}},{"$f":"AND(#REF!,\"URXzUH5fLoU=\")","v":{"$error":"#REF!"}},{"$f":"AND(#REF!,\"URXzUH5fLoY=\")","v":{"$error":"#REF!"}},{"$f":"AND(#REF!,\"URXzUH5fLoc=\")","v":{"$error":"#REF!"}},{"$f":"AND(#REF!,\"URXzUH5fLog=\")","v":{"$error":"#REF!"}},{"$f":"AND(#REF!,\"URXzUH5fLok=\")","v":{"$error":"#REF!"}},{"$f":"AND(#REF!,\"URXzUH5fLoo=\")","v":{"$error":"#REF!"}},{"$f":"AND(#REF!,\"URXzUH5fLos=\")","v":{"$error":"#REF!"}},{"$f":"AND(#REF!,\"URXzUH5fLow=\")","v":{"$error":"#REF!"}},{"$f":"AND(#REF!,\"URXzUH5fLo0=\")","v":{"$error":"#REF!"}},{"$f":"AND(#REF!,\"URXzUH5fLo4=\")","v":{"$error":"#REF!"}},{"$f":"AND(#REF!,\"URXzUH5fLo8=\")","v":{"$error":"#REF!"}},{"$f":"AND(#REF!,\"URXzUH5fLpA=\")","v":{"$error":"#REF!"}},{"$f":"AND(#REF!,\"URXzUH5fLpE=\")","v":{"$error":"#REF!"}},{"$f":"AND(#REF!,\"URXzUH5fLpI=\")","v":{"$error":"#REF!"}},{"$f":"AND(#REF!,\"URXzUH5fLpM=\")","v":{"$error":"#REF!"}},{"$f":"AND(#REF!,\"URXzUH5fLpQ=\")","v":{"$error":"#REF!"}},{"$f":"AND(#REF!,\"URXzUH5fLpU=\")","v":{"$error":"#REF!"}},{"$f":"AND(#REF!,\"URXzUH5fLpY=\")","v":{"$error":"#REF!"}},{"$f":"AND(#REF!,\"URXzUH5fLpc=\")","v":{"$error":"#REF!"}},{"$f":"AND(#REF!,\"URXzUH5fLpg=\")","v":{"$error":"#REF!"}},{"$f":"AND(#REF!,\"URXzUH5fLpk=\")","v":{"$error":"#REF!"}},{"$f":"AND(#REF!,\"URXzUH5fLpo=\")","v":{"$error":"#REF!"}},{"$f":"AND(#REF!,\"URXzUH5fLps=\")","v":{"$error":"#REF!"}},{"$f":"AND(#REF!,\"URXzUH5fLpw=\")","v":{"$error":"#REF!"}},{"$f":"AND(#REF!,\"URXzUH5fLp0=\")","v":{"$error":"#REF!"}},{"$f":"AND(#REF!,\"URXzUH5fLp4=\")","v":{"$error":"#REF!"}},{"$f":"AND(#REF!,\"URXzUH5fLp8=\")","v":{"$error":"#REF!"}},{"$f":"AND(#REF!,\"URXzUH5fLqA=\")","v":{"$error":"#REF!"}},{"$f":"AND(#REF!,\"URXzUH5fLqE=\")","v":{"$error":"#REF!"}},{"$f":"AND(#REF!,\"URXzUH5fLqI=\")","v":{"$error":"#REF!"}},{"$f":"AND(#REF!,\"URXzUH5fLqM=\")","v":{"$error":"#REF!"}},{"$f":"AND(#REF!,\"URXzUH5fLqQ=\")","v":{"$error":"#REF!"}},{"$f":"AND(#REF!,\"URXzUH5fLqU=\")","v":{"$error":"#REF!"}},{"$f":"AND(#REF!,\"URXzUH5fLqY=\")","v":{"$error":"#REF!"}},{"$f":"AND(#REF!,\"URXzUH5fLqc=\")","v":{"$error":"#REF!"}},{"$f":"AND(#REF!,\"URXzUH5fLqg=\")","v":{"$error":"#REF!"}},{"$f":"AND(#REF!,\"URXzUH5fLqk=\")","v":{"$error":"#REF!"}},{"$f":"AND(#REF!,\"URXzUH5fLqo=\")","v":{"$error":"#REF!"}},{"$f":"AND(#REF!,\"URXzUH5fLqs=\")","v":{"$error":"#REF!"}},{"$f":"AND(#REF!,\"URXzUH5fLqw=\")","v":{"$error":"#REF!"}},{"$f":"AND(#REF!,\"URXzUH5fLq0=\")","v":{"$error":"#REF!"}},{"$f":"AND(#REF!,\"URXzUH5fLq4=\")","v":{"$error":"#REF!"}},{"$f":"AND(#REF!,\"URXzUH5fLq8=\")","v":{"$error":"#REF!"}},{"$f":"AND(#REF!,\"URXzUH5fLrA=\")","v":{"$error":"#REF!"}},{"$f":"AND(#REF!,\"URXzUH5fLrE=\")","v":{"$error":"#REF!"}},{"$f":"AND(#REF!,\"URXzUH5fLrI=\")","v":{"$error":"#REF!"}},{"$f":"AND(#REF!,\"URXzUH5fLrM=\")","v":{"$error":"#REF!"}},{"$f":"AND(#REF!,\"URXzUH5fLrQ=\")","v":{"$error":"#REF!"}},{"$f":"AND(#REF!,\"URXzUH5fLrU=\")","v":{"$error":"#REF!"}},{"$f":"AND(#REF!,\"URXzUH5fLrY=\")","v":{"$error":"#REF!"}},{"$f":"AND(#REF!,\"URXzUH5fLrc=\")","v":{"$error":"#REF!"}},{"$f":"AND(#REF!,\"URXzUH5fLrg=\")","v":{"$error":"#REF!"}},{"$f":"AND(#REF!,\"URXzUH5fLrk=\")","v":{"$error":"#REF!"}},{"$f":"AND(#REF!,\"URXzUH5fLro=\")","v":{"$error":"#REF!"}},{"$f":"AND(#REF!,\"URXzUH5fLrs=\")","v":{"$error":"#REF!"}},{"$f":"AND(#REF!,\"URXzUH5fLrw=\")","v":{"$error":"#REF!"}},{"$f":"AND(#REF!,\"URXzUH5fLr0=\")","v":{"$error":"#REF!"}},{"$f":"AND(#REF!,\"URXzUH5fLr4=\")","v":{"$error":"#REF!"}},{"$f":"AND(#REF!,\"URXzUH5fLr8=\")","v":{"$error":"#REF!"}},{"$f":"AND(#REF!,\"URXzUH5fLsA=\")","v":{"$error":"#REF!"}},{"$f":"AND(#REF!,\"URXzUH5fLsE=\")","v":{"$error":"#REF!"}},{"$f":"AND(#REF!,\"URXzUH5fLsI=\")","v":{"$error":"#REF!"}},{"$f":"AND(#REF!,\"URXzUH5fLsM=\")","v":{"$error":"#REF!"}},{"$f":"AND(#REF!,\"URXzUH5fLsQ=\")","v":{"$error":"#REF!"}},{"$f":"AND(#REF!,\"URXzUH5fLsU=\")","v":{"$error":"#REF!"}},{"$f":"AND(#REF!,\"URXzUH5fLsY=\")","v":{"$error":"#REF!"}},{"$f":"AND(#REF!,\"URXzUH5fLsc=\")","v":{"$error":"#REF!"}},{"$f":"AND(#REF!,\"URXzUH5fLsg=\")","v":{"$error":"#REF!"}},{"$f":"AND(#REF!,\"URXzUH5fLsk=\")","v":{"$error":"#REF!"}},{"$f":"AND(#REF!,\"URXzUH5fLso=\")","v":{"$error":"#REF!"}},{"$f":"AND(#REF!,\"URXzUH5fLss=\")","v":{"$error":"#REF!"}},{"$f":"AND(#REF!,\"URXzUH5fLsw=\")","v":{"$error":"#REF!"}},{"$f":"AND(#REF!,\"URXzUH5fLs0=\")","v":{"$error":"#REF!"}},{"$f":"AND(#REF!,\"URXzUH5fLs4=\")","v":{"$error":"#REF!"}},{"$f":"AND(#REF!,\"URXzUH5fLs8=\")","v":{"$error":"#REF!"}},{"$f":"AND(#REF!,\"URXzUH5fLtA=\")","v":{"$error":"#REF!"}},{"$f":"AND(#REF!,\"URXzUH5fLtE=\")","v":{"$error":"#REF!"}},{"$f":"AND(#REF!,\"URXzUH5fLtI=\")","v":{"$error":"#REF!"}},{"$f":"AND(#REF!,\"URXzUH5fLtM=\")","v":{"$error":"#REF!"}},{"$f":"AND(#REF!,\"URXzUH5fLtQ=\")","v":{"$error":"#REF!"}},{"$f":"AND(#REF!,\"URXzUH5fLtU=\")","v":{"$error":"#REF!"}},{"$f":"AND(#REF!,\"URXzUH5fLtY=\")","v":{"$error":"#REF!"}},{"$f":"AND(#REF!,\"URXzUH5fLtc=\")","v":{"$error":"#REF!"}},{"$f":"AND(#REF!,\"URXzUH5fLtg=\")","v":{"$error":"#REF!"}},{"$f":"AND(#REF!,\"URXzUH5fLtk=\")","v":{"$error":"#REF!"}},{"$f":"AND(#REF!,\"URXzUH5fLto=\")","v":{"$error":"#REF!"}},{"$f":"AND(#REF!,\"URXzUH5fLts=\")","v":{"$error":"#REF!"}},{"$f":"AND(#REF!,\"URXzUH5fLtw=\")","v":{"$error":"#REF!"}},{"$f":"AND(#REF!,\"URXzUH5fLt0=\")","v":{"$error":"#REF!"}},{"$f":"AND(#REF!,\"URXzUH5fLt4=\")","v":{"$error":"#REF!"}},{"$f":"AND(#REF!,\"URXzUH5fLt8=\")","v":{"$error":"#REF!"}},{"$f":"AND(#REF!,\"URXzUH5fLuA=\")","v":{"$error":"#REF!"}},{"$f":"AND(#REF!,\"URXzUH5fLuE=\")","v":{"$error":"#REF!"}},{"$f":"AND(#REF!,\"URXzUH5fLuI=\")","v":{"$error":"#REF!"}},{"$f":"AND(#REF!,\"URXzUH5fLuM=\")","v":{"$error":"#REF!"}},{"$f":"AND(#REF!,\"URXzUH5fLuQ=\")","v":{"$error":"#REF!"}},{"$f":"AND(#REF!,\"URXzUH5fLuU=\")","v":{"$error":"#REF!"}},{"$f":"AND(#REF!,\"URXzUH5fLuY=\")","v":{"$error":"#REF!"}},{"$f":"AND(#REF!,\"URXzUH5fLuc=\")","v":{"$error":"#REF!"}},{"$f":"AND(#REF!,\"URXzUH5fLug=\")","v":{"$error":"#REF!"}},{"$f":"AND(#REF!,\"URXzUH5fLuk=\")","v":{"$error":"#REF!"}},{"$f":"AND(#REF!,\"URXzUH5fLuo=\")","v":{"$error":"#REF!"}},{"$f":"AND(#REF!,\"URXzUH5fLus=\")","v":{"$error":"#REF!"}},{"$f":"AND(#REF!,\"URXzUH5fLuw=\")","v":{"$error":"#REF!"}},{"$f":"AND(#REF!,\"URXzUH5fLu0=\")","v":{"$error":"#REF!"}},{"$f":"AND(#REF!,\"URXzUH5fLu4=\")","v":{"$error":"#REF!"}},{"$f":"AND(#REF!,\"URXzUH5fLu8=\")","v":{"$error":"#REF!"}},{"$f":"AND(#REF!,\"URXzUH5fLvA=\")","v":{"$error":"#REF!"}},{"$f":"AND(#REF!,\"URXzUH5fLvE=\")","v":{"$error":"#REF!"}},{"$f":"AND(#REF!,\"URXzUH5fLvI=\")","v":{"$error":"#REF!"}},{"$f":"AND(#REF!,\"URXzUH5fLvM=\")","v":{"$error":"#REF!"}},{"$f":"AND(#REF!,\"URXzUH5fLvQ=\")","v":{"$error":"#REF!"}},{"$f":"AND(#REF!,\"URXzUH5fLvU=\")","v":{"$error":"#REF!"}},{"$f":"AND(#REF!,\"URXzUH5fLvY=\")","v":{"$error":"#REF!"}},{"$f":"AND(#REF!,\"URXzUH5fLvc=\")","v":{"$error":"#REF!"}},{"$f":"AND(#REF!,\"URXzUH5fLvg=\")","v":{"$error":"#REF!"}},{"$f":"AND(#REF!,\"URXzUH5fLvk=\")","v":{"$error":"#REF!"}},{"$f":"AND(#REF!,\"URXzUH5fLvo=\")","v":{"$error":"#REF!"}},{"$f":"AND(#REF!,\"URXzUH5fLvs=\")","v":{"$error":"#REF!"}},{"$f":"AND(#REF!,\"URXzUH5fLvw=\")","v":{"$error":"#REF!"}},{"$f":"AND(#REF!,\"URXzUH5fLv0=\")","v":{"$error":"#REF!"}},{"$f":"AND(#REF!,\"URXzUH5fLv4=\")","v":{"$error":"#REF!"}},{"$f":"AND(#REF!,\"URXzUH5fLv8=\")","v":{"$error":"#REF!"}}]
[{"$f":"AND(#REF!,\"MaK0sCaNagA=\")","v":{"$error":"#REF!"}},{"$f":"AND(#REF!,\"MaK0sCaNagE=\")","v":{"$error":"#REF!"}},{"$f":"AND(#REF!,\"MaK0sCaNagI=\")","v":{"$error":"#REF!"}},{"$f":"AND(#REF!,\"MaK0sCaNagM=\")","v":{"$error":"#REF!"}},{"$f":"AND(#REF!,\"MaK0sCaNagQ=\")","v":{"$error":"#REF!"}},{"$f":"AND(#REF!,\"MaK0sCaNagU=\")","v":{"$error":"#REF!"}},{"$f":"AND(#REF!,\"MaK0sCaNagY=\")","v":{"$error":"#REF!"}},{"$f":"AND(#REF!,\"MaK0sCaNagc=\")","v":{"$error":"#REF!"}},{"$f":"AND(#REF!,\"MaK0sCaNagg=\")","v":{"$error":"#REF!"}},{"$f":"AND(#REF!,\"MaK0sCaNagk=\")","v":{"$error":"#REF!"}},{"$f":"AND(#REF!,\"MaK0sCaNago=\")","v":{"$error":"#REF!"}},{"$f":"AND(#REF!,\"MaK0sCaNags=\")","v":{"$error":"#REF!"}},{"$f":"AND(#REF!,\"MaK0sCaNagw=\")","v":{"$error":"#REF!"}},{"$f":"AND(#REF!,\"MaK0sCaNag0=\")","v":{"$error":"#REF!"}},{"$f":"AND(#REF!,\"MaK0sCaNag4=\")","v":{"$error":"#REF!"}},{"$f":"AND(#REF!,\"MaK0sCaNag8=\")","v":{"$error":"#REF!"}},{"$f":"AND(#REF!,\"MaK0sCaNahA=\")","v":{"$error":"#REF!"}},{"$f":"AND(#REF!,\"MaK0sCaNahE=\")","v":{"$error":"#REF!"}},{"$f":"AND(#REF!,\"MaK0sCaNahI=\")","v":{"$error":"#REF!"}},{"$f":"AND(#REF!,\"MaK0sCaNahM=\")","v":{"$error":"#REF!"}},{"$f":"AND(#REF!,\"MaK0sCaNahQ=\")","v":{"$error":"#REF!"}},{"$f":"AND(#REF!,\"MaK0sCaNahU=\")","v":{"$error":"#REF!"}},{"$f":"AND(#REF!,\"MaK0sCaNahY=\")","v":{"$error":"#REF!"}},{"$f":"AND(#REF!,\"MaK0sCaNahc=\")","v":{"$error":"#REF!"}},{"$f":"AND(#REF!,\"MaK0sCaNahg=\")","v":{"$error":"#REF!"}},{"$f":"AND(#REF!,\"MaK0sCaNahk=\")","v":{"$error":"#REF!"}},{"$f":"IF(#REF!,\"MaK0sCaNaho=\",0)","v":{"$error":"#REF!"}},{"$f":"AND(#REF!,\"MaK0sCaNahs=\")","v":{"$error":"#REF!"}},{"$f":"AND(#REF!,\"MaK0sCaNahw=\")","v":{"$error":"#REF!"}},{"$f":"AND(#REF!,\"MaK0sCaNah0=\")","v":{"$error":"#REF!"}},{"$f":"AND(#REF!,\"MaK0sCaNah4=\")","v":{"$error":"#REF!"}},{"$f":"AND(#REF!,\"MaK0sCaNah8=\")","v":{"$error":"#REF!"}},{"$f":"AND(#REF!,\"MaK0sCaNaiA=\")","v":{"$error":"#REF!"}},{"$f":"AND(#REF!,\"MaK0sCaNaiE=\")","v":{"$error":"#REF!"}},{"$f":"AND(#REF!,\"MaK0sCaNaiI=\")","v":{"$error":"#REF!"}},{"$f":"AND(#REF!,\"MaK0sCaNaiM=\")","v":{"$error":"#REF!"}},{"$f":"AND(#REF!,\"MaK0sCaNaiQ=\")","v":{"$error":"#REF!"}},{"$f":"AND(#REF!,\"MaK0sCaNaiU=\")","v":{"$error":"#REF!"}},{"$f":"AND(#REF!,\"MaK0sCaNaiY=\")","v":{"$error":"#REF!"}},{"$f":"AND(#REF!,\"MaK0sCaNaic=\")","v":{"$error":"#REF!"}},{"$f":"AND(#REF!,\"MaK0sCaNaig=\")","v":{"$error":"#REF!"}},{"$f":"AND(#REF!,\"MaK0sCaNaik=\")","v":{"$error":"#REF!"}},{"$f":"AND(#REF!,\"MaK0sCaNaio=\")","v":{"$error":"#REF!"}},{"$f":"AND(#REF!,\"MaK0sCaNais=\")","v":{"$error":"#REF!"}},{"$f":"AND(#REF!,\"MaK0sCaNaiw=\")","v":{"$error":"#REF!"}},{"$f":"AND(#REF!,\"MaK0sCaNai0=\")","v":{"$error":"#REF!"}},{"$f":"AND(#REF!,\"MaK0sCaNai4=\")","v":{"$error":"#REF!"}},{"$f":"AND(#REF!,\"MaK0sCaNai8=\")","v":{"$error":"#REF!"}},{"$f":"AND(#REF!,\"MaK0sCaNajA=\")","v":{"$error":"#REF!"}},{"$f":"AND(#REF!,\"MaK0sCaNajE=\")","v":{"$error":"#REF!"}},{"$f":"AND(#REF!,\"MaK0sCaNajI=\")","v":{"$error":"#REF!"}},{"$f":"AND(#REF!,\"MaK0sCaNajM=\")","v":{"$error":"#REF!"}},{"$f":"AND(#REF!,\"MaK0sCaNajQ=\")","v":{"$error":"#REF!"}},{"$f":"AND(#REF!,\"MaK0sCaNajU=\")","v":{"$error":"#REF!"}},{"$f":"AND(#REF!,\"MaK0sCaNajY=\")","v":{"$error":"#REF!"}},{"$f":"AND(#REF!,\"MaK0sCaNajc=\")","v":{"$error":"#REF!"}},{"$f":"AND(#REF!,\"MaK0sCaNajg=\")","v":{"$error":"#REF!"}},{"$f":"AND(#REF!,\"MaK0sCaNajk=\")","v":{"$error":"#REF!"}},{"$f":"AND(#REF!,\"MaK0sCaNajo=\")","v":{"$error":"#REF!"}},{"$f":"AND(#REF!,\"MaK0sCaNajs=\")","v":{"$error":"#REF!"}},{"$f":"AND(#REF!,\"MaK0sCaNajw=\")","v":{"$error":"#REF!"}},{"$f":"AND(#REF!,\"MaK0sCaNaj0=\")","v":{"$error":"#REF!"}},{"$f":"AND(#REF!,\"MaK0sCaNaj4=\")","v":{"$error":"#REF!"}},{"$f":"AND(#REF!,\"MaK0sCaNaj8=\")","v":{"$error":"#REF!"}},{"$f":"AND(#REF!,\"MaK0sCaNakA=\")","v":{"$error":"#REF!"}},{"$f":"AND(#REF!,\"MaK0sCaNakE=\")","v":{"$error":"#REF!"}},{"$f":"AND(#REF!,\"MaK0sCaNakI=\")","v":{"$error":"#REF!"}},{"$f":"AND(#REF!,\"MaK0sCaNakM=\")","v":{"$error":"#REF!"}},{"$f":"AND(#REF!,\"MaK0sCaNakQ=\")","v":{"$error":"#REF!"}},{"$f":"AND(#REF!,\"MaK0sCaNakU=\")","v":{"$error":"#REF!"}},{"$f":"AND(#REF!,\"MaK0sCaNakY=\")","v":{"$error":"#REF!"}},{"$f":"AND(#REF!,\"MaK0sCaNakc=\")","v":{"$error":"#REF!"}},{"$f":"AND(#REF!,\"MaK0sCaNakg=\")","v":{"$error":"#REF!"}},{"$f":"AND(#REF!,\"MaK0sCaNakk=\")","v":{"$error":"#REF!"}},{"$f":"AND(#REF!,\"MaK0sCaNako=\")","v":{"$error":"#REF!"}},{"$f":"AND(#REF!,\"MaK0sCaNaks=\")","v":{"$error":"#REF!"}},{"$f":"AND(#REF!,\"MaK0sCaNakw=\")","v":{"$error":"#REF!"}},{"$f":"AND(#REF!,\"MaK0sCaNak0=\")","v":{"$error":"#REF!"}},{"$f":"AND(#REF!,\"MaK0sCaNak4=\")","v":{"$error":"#REF!"}},{"$f":"AND(#REF!,\"MaK0sCaNak8=\")","v":{"$error":"#REF!"}},{"$f":"AND(#REF!,\"MaK0sCaNalA=\")","v":{"$error":"#REF!"}},{"$f":"AND(#REF!,\"MaK0sCaNalE=\")","v":{"$error":"#REF!"}},{"$f":"AND(#REF!,\"MaK0sCaNalI=\")","v":{"$error":"#REF!"}},{"$f":"AND(#REF!,\"MaK0sCaNalM=\")","v":{"$error":"#REF!"}},{"$f":"AND(#REF!,\"MaK0sCaNalQ=\")","v":{"$error":"#REF!"}},{"$f":"AND(#REF!,\"MaK0sCaNalU=\")","v":{"$error":"#REF!"}},{"$f":"AND(#REF!,\"MaK0sCaNalY=\")","v":{"$error":"#REF!"}},{"$f":"AND(#REF!,\"MaK0sCaNalc=\")","v":{"$error":"#REF!"}},{"$f":"AND(#REF!,\"MaK0sCaNalg=\")","v":{"$error":"#REF!"}},{"$f":"AND(#REF!,\"MaK0sCaNalk=\")","v":{"$error":"#REF!"}},{"$f":"AND(#REF!,\"MaK0sCaNalo=\")","v":{"$error":"#REF!"}},{"$f":"AND(#REF!,\"MaK0sCaNals=\")","v":{"$error":"#REF!"}},{"$f":"AND(#REF!,\"MaK0sCaNalw=\")","v":{"$error":"#REF!"}},{"$f":"AND(#REF!,\"MaK0sCaNal0=\")","v":{"$error":"#REF!"}},{"$f":"AND(#REF!,\"MaK0sCaNal4=\")","v":{"$error":"#REF!"}},{"$f":"AND(#REF!,\"MaK0sCaNal8=\")","v":{"$error":"#REF!"}},{"$f":"AND(#REF!,\"MaK0sCaNamA=\")","v":{"$error":"#REF!"}},{"$f":"AND(#REF!,\"MaK0sCaNamE=\")","v":{"$error":"#REF!"}},{"$f":"AND(#REF!,\"MaK0sCaNamI=\")","v":{"$error":"#REF!"}},{"$f":"AND(#REF!,\"MaK0sCaNamM=\")","v":{"$error":"#REF!"}},{"$f":"AND(#REF!,\"MaK0sCaNamQ=\")","v":{"$error":"#REF!"}},{"$f":"AND(#REF!,\"MaK0sCaNamU=\")","v":{"$error":"#REF!"}},{"$f":"AND(#REF!,\"MaK0sCaNamY=\")","v":{"$error":"#REF!"}},{"$f":"AND(#REF!,\"MaK0sCaNamc=\")","v":{"$error":"#REF!"}},{"$f":"AND(#REF!,\"MaK0sCaNamg=\")","v":{"$error":"#REF!"}},{"$f":"AND(#REF!,\"MaK0sCaNamk=\")","v":{"$error":"#REF!"}},{"$f":"AND(#REF!,\"MaK0sCaNamo=\")","v":{"$error":"#REF!"}},{"$f":"AND(#REF!,\"MaK0sCaNams=\")","v":{"$error":"#REF!"}},{"$f":"AND(#REF!,\"MaK0sCaNamw=\")","v":{"$error":"#REF!"}},{"$f":"AND(#REF!,\"MaK0sCaNam0=\")","v":{"$error":"#REF!"}},{"$f":"AND(#REF!,\"MaK0sCaNam4=\")","v":{"$error":"#REF!"}},{"$f":"AND(#REF!,\"MaK0sCaNam8=\")","v":{"$error":"#REF!"}},{"$f":"AND(#REF!,\"MaK0sCaNanA=\")","v":{"$error":"#REF!"}},{"$f":"AND(#REF!,\"MaK0sCaNanE=\")","v":{"$error":"#REF!"}},{"$f":"AND(#REF!,\"MaK0sCaNanI=\")","v":{"$error":"#REF!"}},{"$f":"AND(#REF!,\"MaK0sCaNanM=\")","v":{"$error":"#REF!"}},{"$f":"AND(#REF!,\"MaK0sCaNanQ=\")","v":{"$error":"#REF!"}},{"$f":"AND(#REF!,\"MaK0sCaNanU=\")","v":{"$error":"#REF!"}},{"$f":"AND(#REF!,\"MaK0sCaNanY=\")","v":{"$error":"#REF!"}},{"$f":"AND(#REF!,\"MaK0sCaNanc=\")","v":{"$error":"#REF!"}},{"$f":"AND(#REF!,\"MaK0sCaNang=\")","v":{"$error":"#REF!"}},{"$f":"AND(#REF!,\"MaK0sCaNank=\")","v":{"$error":"#REF!"}},{"$f":"AND(#REF!,\"MaK0sCaNano=\")","v":{"$error":"#REF!"}},{"$f":"AND(#REF!,\"MaK0sCaNans=\")","v":{"$error":"#REF!"}},{"$f":"AND(#REF!,\"MaK0sCaNanw=\")","v":{"$error":"#REF!"}},{"$f":"AND(#REF!,\"MaK0sCaNan0=\")","v":{"$error":"#REF!"}},{"$f":"AND(#REF!,\"MaK0sCaNan4=\")","v":{"$error":"#REF!"}},{"$f":"AND(#REF!,\"MaK0sCaNan8=\")","v":{"$error":"#REF!"}},{"$f":"AND(#REF!,\"MaK0sCaNaoA=\")","v":{"$error":"#REF!"}},{"$f":"AND(#REF!,\"MaK0sCaNaoE=\")","v":{"$error":"#REF!"}},{"$f":"AND(#REF!,\"MaK0sCaNaoI=\")","v":{"$error":"#REF!"}},{"$f":"AND(#REF!,\"MaK0sCaNaoM=\")","v":{"$error":"#REF!"}},{"$f":"AND(#REF!,\"MaK0sCaNaoQ=\")","v":{"$error":"#REF!"}},{"$f":"AND(#REF!,\"MaK0sCaNaoU=\")","v":{"$error":"#REF!"}},{"$f":"AND(#REF!,\"MaK0sCaNaoY=\")","v":{"$error":"#REF!"}},{"$f":"AND(#REF!,\"MaK0sCaNaoc=\")","v":{"$error":"#REF!"}},{"$f":"AND(#REF!,\"MaK0sCaNaog=\")","v":{"$error":"#REF!"}},{"$f":"AND(#REF!,\"MaK0sCaNaok=\")","v":{"$error":"#REF!"}},{"$f":"AND(#REF!,\"MaK0sCaNaoo=\")","v":{"$error":"#REF!"}},{"$f":"AND(#REF!,\"MaK0sCaNaos=\")","v":{"$error":"#REF!"}},{"$f":"AND(#REF!,\"MaK0sCaNaow=\")","v":{"$error":"#REF!"}},{"$f":"AND(#REF!,\"MaK0sCaNao0=\")","v":{"$error":"#REF!"}},{"$f":"AND(#REF!,\"MaK0sCaNao4=\")","v":{"$error":"#REF!"}},{"$f":"AND(#REF!,\"MaK0sCaNao8=\")","v":{"$error":"#REF!"}},{"$f":"AND(#REF!,\"MaK0sCaNapA=\")","v":{"$error":"#REF!"}},{"$f":"AND(#REF!,\"MaK0sCaNapE=\")","v":{"$error":"#REF!"}},{"$f":"AND(#REF!,\"MaK0sCaNapI=\")","v":{"$error":"#REF!"}},{"$f":"AND(#REF!,\"MaK0sCaNapM=\")","v":{"$error":"#REF!"}},{"$f":"AND(#REF!,\"MaK0sCaNapQ=\")","v":{"$error":"#REF!"}},{"$f":"AND(#REF!,\"MaK0sCaNapU=\")","v":{"$error":"#REF!"}},{"$f":"AND(#REF!,\"MaK0sCaNapY=\")","v":{"$error":"#REF!"}},{"$f":"AND(#REF!,\"MaK0sCaNapc=\")","v":{"$error":"#REF!"}},{"$f":"AND(#REF!,\"MaK0sCaNapg=\")","v":{"$error":"#REF!"}},{"$f":"AND(#REF!,\"MaK0sCaNapk=\")","v":{"$error":"#REF!"}},{"$f":"AND(#REF!,\"MaK0sCaNapo=\")","v":{"$error":"#REF!"}},{"$f":"AND(#REF!,\"MaK0sCaNaps=\")","v":{"$error":"#REF!"}},{"$f":"AND(#REF!,\"MaK0sCaNapw=\")","v":{"$error":"#REF!"}},{"$f":"AND(#REF!,\"MaK0sCaNap0=\")","v":{"$error":"#REF!"}},{"$f":"AND(#REF!,\"MaK0sCaNap4=\")","v":{"$error":"#REF!"}},{"$f":"AND(#REF!,\"MaK0sCaNap8=\")","v":{"$error":"#REF!"}},{"$f":"AND(#REF!,\"MaK0sCaNaqA=\")","v":{"$error":"#REF!"}},{"$f":"AND(#REF!,\"MaK0sCaNaqE=\")","v":{"$error":"#REF!"}},{"$f":"AND(#REF!,\"MaK0sCaNaqI=\")","v":{"$error":"#REF!"}},{"$f":"AND(#REF!,\"MaK0sCaNaqM=\")","v":{"$error":"#REF!"}},{"$f":"AND(#REF!,\"MaK0sCaNaqQ=\")","v":{"$error":"#REF!"}},{"$f":"AND(#REF!,\"MaK0sCaNaqU=\")","v":{"$error":"#REF!"}},{"$f":"AND(#REF!,\"MaK0sCaNaqY=\")","v":{"$error":"#REF!"}},{"$f":"AND(#REF!,\"MaK0sCaNaqc=\")","v":{"$error":"#REF!"}},{"$f":"AND(#REF!,\"MaK0sCaNaqg=\")","v":{"$error":"#REF!"}},{"$f":"AND(#REF!,\"MaK0sCaNaqk=\")","v":{"$error":"#REF!"}},{"$f":"AND(#REF!,\"MaK0sCaNaqo=\")","v":{"$error":"#REF!"}},{"$f":"AND(#REF!,\"MaK0sCaNaqs=\")","v":{"$error":"#REF!"}},{"$f":"AND(#REF!,\"MaK0sCaNaqw=\")","v":{"$error":"#REF!"}},{"$f":"AND(#REF!,\"MaK0sCaNaq0=\")","v":{"$error":"#REF!"}},{"$f":"AND(#REF!,\"MaK0sCaNaq4=\")","v":{"$error":"#REF!"}},{"$f":"AND(#REF!,\"MaK0sCaNaq8=\")","v":{"$error":"#REF!"}},{"$f":"AND(#REF!,\"MaK0sCaNarA=\")","v":{"$error":"#REF!"}},{"$f":"AND(#REF!,\"MaK0sCaNarE=\")","v":{"$error":"#REF!"}},{"$f":"AND(#REF!,\"MaK0sCaNarI=\")","v":{"$error":"#REF!"}},{"$f":"AND(#REF!,\"MaK0sCaNarM=\")","v":{"$error":"#REF!"}},{"$f":"AND(#REF!,\"MaK0sCaNarQ=\")","v":{"$error":"#REF!"}},{"$f":"AND(#REF!,\"MaK0sCaNarU=\")","v":{"$error":"#REF!"}},{"$f":"AND(#REF!,\"MaK0sCaNarY=\")","v":{"$error":"#REF!"}},{"$f":"AND(#REF!,\"MaK0sCaNarc=\")","v":{"$error":"#REF!"}},{"$f":"AND(#REF!,\"MaK0sCaNarg=\")","v":{"$error":"#REF!"}},{"$f":"AND(#REF!,\"MaK0sCaNark=\")","v":{"$error":"#REF!"}},{"$f":"AND(#REF!,\"MaK0sCaNaro=\")","v":{"$error":"#REF!"}},{"$f":"AND(#REF!,\"MaK0sCaNars=\")","v":{"$error":"#REF!"}},{"$f":"AND(#REF!,\"MaK0sCaNarw=\")","v":{"$error":"#REF!"}},{"$f":"AND(#REF!,\"MaK0sCaNar0=\")","v":{"$error":"#REF!"}},{"$f":"AND(#REF!,\"MaK0sCaNar4=\")","v":{"$error":"#REF!"}},{"$f":"AND(#REF!,\"MaK0sCaNar8=\")","v":{"$error":"#REF!"}},{"$f":"AND(#REF!,\"MaK0sCaNasA=\")","v":{"$error":"#REF!"}},{"$f":"AND(#REF!,\"MaK0sCaNasE=\")","v":{"$error":"#REF!"}},{"$f":"AND(#REF!,\"MaK0sCaNasI=\")","v":{"$error":"#REF!"}},{"$f":"AND(#REF!,\"MaK0sCaNasM=\")","v":{"$error":"#REF!"}},{"$f":"AND(#REF!,\"MaK0sCaNasQ=\")","v":{"$error":"#REF!"}},{"$f":"AND(#REF!,\"MaK0sCaNasU=\")","v":{"$error":"#REF!"}},{"$f":"AND(#REF!,\"MaK0sCaNasY=\")","v":{"$error":"#REF!"}},{"$f":"AND(#REF!,\"MaK0sCaNasc=\")","v":{"$error":"#REF!"}},{"$f":"AND(#REF!,\"MaK0sCaNasg=\")","v":{"$error":"#REF!"}},{"$f":"AND(#REF!,\"MaK0sCaNask=\")","v":{"$error":"#REF!"}},{"$f":"AND(#REF!,\"MaK0sCaNaso=\")","v":{"$error":"#REF!"}},{"$f":"AND(#REF!,\"MaK0sCaNass=\")","v":{"$error":"#REF!"}},{"$f":"AND(#REF!,\"MaK0sCaNasw=\")","v":{"$error":"#REF!"}},{"$f":"AND(#REF!,\"MaK0sCaNas0=\")","v":{"$error":"#REF!"}},{"$f":"AND(#REF!,\"MaK0sCaNas4=\")","v":{"$error":"#REF!"}},{"$f":"AND(#REF!,\"MaK0sCaNas8=\")","v":{"$error":"#REF!"}},{"$f":"AND(#REF!,\"MaK0sCaNatA=\")","v":{"$error":"#REF!"}},{"$f":"AND(#REF!,\"MaK0sCaNatE=\")","v":{"$error":"#REF!"}},{"$f":"AND(#REF!,\"MaK0sCaNatI=\")","v":{"$error":"#REF!"}},{"$f":"AND(#REF!,\"MaK0sCaNatM=\")","v":{"$error":"#REF!"}},{"$f":"AND(#REF!,\"MaK0sCaNatQ=\")","v":{"$error":"#REF!"}},{"$f":"AND(#REF!,\"MaK0sCaNatU=\")","v":{"$error":"#REF!"}},{"$f":"AND(#REF!,\"MaK0sCaNatY=\")","v":{"$error":"#REF!"}},{"$f":"AND(#REF!,\"MaK0sCaNatc=\")","v":{"$error":"#REF!"}},{"$f":"AND(#REF!,\"MaK0sCaNatg=\")","v":{"$error":"#REF!"}},{"$f":"AND(#REF!,\"MaK0sCaNatk=\")","v":{"$error":"#REF!"}},{"$f":"AND(#REF!,\"MaK0sCaNato=\")","v":{"$error":"#REF!"}},{"$f":"AND(#REF!,\"MaK0sCaNats=\")","v":{"$error":"#REF!"}},{"$f":"AND(#REF!,\"MaK0sCaNatw=\")","v":{"$error":"#REF!"}},{"$f":"AND(#REF!,\"MaK0sCaNat0=\")","v":{"$error":"#REF!"}},{"$f":"AND(#REF!,\"MaK0sCaNat4=\")","v":{"$error":"#REF!"}},{"$f":"AND(#REF!,\"MaK0sCaNat8=\")","v":{"$error":"#REF!"}},{"$f":"AND(#REF!,\"MaK0sCaNauA=\")","v":{"$error":"#REF!"}},{"$f":"IF(#REF!,\"MaK0sCaNauE=\",0)","v":{"$error":"#REF!"}},{"$f":"AND(#REF!,\"MaK0sCaNauI=\")","v":{"$error":"#REF!"}},{"$f":"AND(#REF!,\"MaK0sCaNauM=\")","v":{"$error":"#REF!"}},{"$f":"AND(#REF!,\"MaK0sCaNauQ=\")","v":{"$error":"#REF!"}},{"$f":"AND(#REF!,\"MaK0sCaNauU=\")","v":{"$error":"#REF!"}},{"$f":"AND(#REF!,\"MaK0sCaNauY=\")","v":{"$error":"#REF!"}},{"$f":"AND(#REF!,\"MaK0sCaNauc=\")","v":{"$error":"#REF!"}},{"$f":"AND(#REF!,\"MaK0sCaNaug=\")","v":{"$error":"#REF!"}},{"$f":"AND(#REF!,\"MaK0sCaNauk=\")","v":{"$error":"#REF!"}},{"$f":"AND(#REF!,\"MaK0sCaNauo=\")","v":{"$error":"#REF!"}},{"$f":"AND(#REF!,\"MaK0sCaNaus=\")","v":{"$error":"#REF!"}},{"$f":"AND(#REF!,\"MaK0sCaNauw=\")","v":{"$error":"#REF!"}},{"$f":"AND(#REF!,\"MaK0sCaNau0=\")","v":{"$error":"#REF!"}},{"$f":"AND(#REF!,\"MaK0sCaNau4=\")","v":{"$error":"#REF!"}},{"$f":"AND(#REF!,\"MaK0sCaNau8=\")","v":{"$error":"#REF!"}},{"$f":"AND(#REF!,\"MaK0sCaNavA=\")","v":{"$error":"#REF!"}},{"$f":"AND(#REF!,\"MaK0sCaNavE=\")","v":{"$error":"#REF!"}},{"$f":"AND(#REF!,\"MaK0sCaNavI=\")","v":{"$error":"#REF!"}},{"$f":"AND(#REF!,\"MaK0sCaNavM=\")","v":{"$error":"#REF!"}},{"$f":"AND(#REF!,\"MaK0sCaNavQ=\")","v":{"$error":"#REF!"}},{"$f":"AND(#REF!,\"MaK0sCaNavU=\")","v":{"$error":"#REF!"}},{"$f":"AND(#REF!,\"MaK0sCaNavY=\")","v":{"$error":"#REF!"}},{"$f":"AND(#REF!,\"MaK0sCaNavc=\")","v":{"$error":"#REF!"}},{"$f":"AND(#REF!,\"MaK0sCaNavg=\")","v":{"$error":"#REF!"}},{"$f":"AND(#REF!,\"MaK0sCaNavk=\")","v":{"$error":"#REF!"}},{"$f":"AND(#REF!,\"MaK0sCaNavo=\")","v":{"$error":"#REF!"}},{"$f":"AND(#REF!,\"MaK0sCaNavs=\")","v":{"$error":"#REF!"}},{"$f":"AND(#REF!,\"MaK0sCaNavw=\")","v":{"$error":"#REF!"}},{"$f":"AND(#REF!,\"MaK0sCaNav0=\")","v":{"$error":"#REF!"}},{"$f":"AND(#REF!,\"MaK0sCaNav4=\")","v":{"$error":"#REF!"}},{"$f":"AND(#REF!,\"MaK0sCaNav8=\")","v":{"$error":"#REF!"}}]
[{"$f":"AND(#REF!,\"NbwdKgbrGQA=\")","v":{"$error":"#REF!"}},{"$f":"AND(#REF!,\"NbwdKgbrGQE=\")","v":{"$error":"#REF!"}},{"$f":"AND(#REF!,\"NbwdKgbrGQI=\")","v":{"$error":"#REF!"}},{"$f":"AND(#REF!,\"NbwdKgbrGQM=\")","v":{"$error":"#REF!"}},{"$f":"AND(#REF!,\"NbwdKgbrGQQ=\")","v":{"$error":"#REF!"}},{"$f":"AND(#REF!,\"NbwdKgbrGQU=\")","v":{"$error":"#REF!"}},{"$f":"AND(#REF!,\"NbwdKgbrGQY=\")","v":{"$error":"#REF!"}},{"$f":"AND(#REF!,\"NbwdKgbrGQc=\")","v":{"$error":"#REF!"}},{"$f":"AND(#REF!,\"NbwdKgbrGQg=\")","v":{"$error":"#REF!"}},{"$f":"AND(#REF!,\"NbwdKgbrGQk=\")","v":{"$error":"#REF!"}},{"$f":"AND(#REF!,\"NbwdKgbrGQo=\")","v":{"$error":"#REF!"}},{"$f":"AND(#REF!,\"NbwdKgbrGQs=\")","v":{"$error":"#REF!"}},{"$f":"AND(#REF!,\"NbwdKgbrGQw=\")","v":{"$error":"#REF!"}},{"$f":"AND(#REF!,\"NbwdKgbrGQ0=\")","v":{"$error":"#REF!"}},{"$f":"AND(#REF!,\"NbwdKgbrGQ4=\")","v":{"$error":"#REF!"}},{"$f":"AND(#REF!,\"NbwdKgbrGQ8=\")","v":{"$error":"#REF!"}},{"$f":"AND(#REF!,\"NbwdKgbrGRA=\")","v":{"$error":"#REF!"}},{"$f":"AND(#REF!,\"NbwdKgbrGRE=\")","v":{"$error":"#REF!"}},{"$f":"AND(#REF!,\"NbwdKgbrGRI=\")","v":{"$error":"#REF!"}},{"$f":"AND(#REF!,\"NbwdKgbrGRM=\")","v":{"$error":"#REF!"}},{"$f":"AND(#REF!,\"NbwdKgbrGRQ=\")","v":{"$error":"#REF!"}},{"$f":"AND(#REF!,\"NbwdKgbrGRU=\")","v":{"$error":"#REF!"}},{"$f":"AND(#REF!,\"NbwdKgbrGRY=\")","v":{"$error":"#REF!"}},{"$f":"AND(#REF!,\"NbwdKgbrGRc=\")","v":{"$error":"#REF!"}},{"$f":"AND(#REF!,\"NbwdKgbrGRg=\")","v":{"$error":"#REF!"}},{"$f":"AND(#REF!,\"NbwdKgbrGRk=\")","v":{"$error":"#REF!"}},{"$f":"AND(#REF!,\"NbwdKgbrGRo=\")","v":{"$error":"#REF!"}},{"$f":"AND(#REF!,\"NbwdKgbrGRs=\")","v":{"$error":"#REF!"}},{"$f":"AND(#REF!,\"NbwdKgbrGRw=\")","v":{"$error":"#REF!"}},{"$f":"AND(#REF!,\"NbwdKgbrGR0=\")","v":{"$error":"#REF!"}},{"$f":"AND(#REF!,\"NbwdKgbrGR4=\")","v":{"$error":"#REF!"}},{"$f":"AND(#REF!,\"NbwdKgbrGR8=\")","v":{"$error":"#REF!"}},{"$f":"AND(#REF!,\"NbwdKgbrGSA=\")","v":{"$error":"#REF!"}},{"$f":"AND(#REF!,\"NbwdKgbrGSE=\")","v":{"$error":"#REF!"}},{"$f":"AND(#REF!,\"NbwdKgbrGSI=\")","v":{"$error":"#REF!"}},{"$f":"AND(#REF!,\"NbwdKgbrGSM=\")","v":{"$error":"#REF!"}},{"$f":"AND(#REF!,\"NbwdKgbrGSQ=\")","v":{"$error":"#REF!"}},{"$f":"AND(#REF!,\"NbwdKgbrGSU=\")","v":{"$error":"#REF!"}},{"$f":"AND(#REF!,\"NbwdKgbrGSY=\")","v":{"$error":"#REF!"}},{"$f":"AND(#REF!,\"NbwdKgbrGSc=\")","v":{"$error":"#REF!"}},{"$f":"AND(#REF!,\"NbwdKgbrGSg=\")","v":{"$error":"#REF!"}},{"$f":"AND(#REF!,\"NbwdKgbrGSk=\")","v":{"$error":"#REF!"}},{"$f":"AND(#REF!,\"NbwdKgbrGSo=\")","v":{"$error":"#REF!"}},{"$f":"AND(#REF!,\"NbwdKgbrGSs=\")","v":{"$error":"#REF!"}},{"$f":"AND(#REF!,\"NbwdKgbrGSw=\")","v":{"$error":"#REF!"}},{"$f":"AND(#REF!,\"NbwdKgbrGS0=\")","v":{"$error":"#REF!"}},{"$f":"AND(#REF!,\"NbwdKgbrGS4=\")","v":{"$error":"#REF!"}},{"$f":"AND(#REF!,\"NbwdKgbrGS8=\")","v":{"$error":"#REF!"}},{"$f":"AND(#REF!,\"NbwdKgbrGTA=\")","v":{"$error":"#REF!"}},{"$f":"AND(#REF!,\"NbwdKgbrGTE=\")","v":{"$error":"#REF!"}},{"$f":"AND(#REF!,\"NbwdKgbrGTI=\")","v":{"$error":"#REF!"}},{"$f":"AND(#REF!,\"NbwdKgbrGTM=\")","v":{"$error":"#REF!"}},{"$f":"AND(#REF!,\"NbwdKgbrGTQ=\")","v":{"$error":"#REF!"}},{"$f":"AND(#REF!,\"NbwdKgbrGTU=\")","v":{"$error":"#REF!"}},{"$f":"AND(#REF!,\"NbwdKgbrGTY=\")","v":{"$error":"#REF!"}},{"$f":"AND(#REF!,\"NbwdKgbrGTc=\")","v":{"$error":"#REF!"}},{"$f":"AND(#REF!,\"NbwdKgbrGTg=\")","v":{"$error":"#REF!"}},{"$f":"AND(#REF!,\"NbwdKgbrGTk=\")","v":{"$error":"#REF!"}},{"$f":"AND(#REF!,\"NbwdKgbrGTo=\")","v":{"$error":"#REF!"}},{"$f":"AND(#REF!,\"NbwdKgbrGTs=\")","v":{"$error":"#REF!"}},{"$f":"AND(#REF!,\"NbwdKgbrGTw=\")","v":{"$error":"#REF!"}},{"$f":"AND(#REF!,\"NbwdKgbrGT0=\")","v":{"$error":"#REF!"}},{"$f":"AND(#REF!,\"NbwdKgbrGT4=\")","v":{"$error":"#REF!"}},{"$f":"AND(#REF!,\"NbwdKgbrGT8=\")","v":{"$error":"#REF!"}},{"$f":"AND(#REF!,\"NbwdKgbrGUA=\")","v":{"$error":"#REF!"}},{"$f":"AND(#REF!,\"NbwdKgbrGUE=\")","v":{"$error":"#REF!"}},{"$f":"AND(#REF!,\"NbwdKgbrGUI=\")","v":{"$error":"#REF!"}},{"$f":"AND(#REF!,\"NbwdKgbrGUM=\")","v":{"$error":"#REF!"}},{"$f":"AND(#REF!,\"NbwdKgbrGUQ=\")","v":{"$error":"#REF!"}},{"$f":"AND(#REF!,\"NbwdKgbrGUU=\")","v":{"$error":"#REF!"}},{"$f":"AND(#REF!,\"NbwdKgbrGUY=\")","v":{"$error":"#REF!"}},{"$f":"AND(#REF!,\"NbwdKgbrGUc=\")","v":{"$error":"#REF!"}},{"$f":"AND(#REF!,\"NbwdKgbrGUg=\")","v":{"$error":"#REF!"}},{"$f":"AND(#REF!,\"NbwdKgbrGUk=\")","v":{"$error":"#REF!"}},{"$f":"AND(#REF!,\"NbwdKgbrGUo=\")","v":{"$error":"#REF!"}},{"$f":"AND(#REF!,\"NbwdKgbrGUs=\")","v":{"$error":"#REF!"}},{"$f":"AND(#REF!,\"NbwdKgbrGUw=\")","v":{"$error":"#REF!"}},{"$f":"AND(#REF!,\"NbwdKgbrGU0=\")","v":{"$error":"#REF!"}},{"$f":"AND(#REF!,\"NbwdKgbrGU4=\")","v":{"$error":"#REF!"}},{"$f":"AND(#REF!,\"NbwdKgbrGU8=\")","v":{"$error":"#REF!"}},{"$f":"AND(#REF!,\"NbwdKgbrGVA=\")","v":{"$error":"#REF!"}},{"$f":"AND(#REF!,\"NbwdKgbrGVE=\")","v":{"$error":"#REF!"}},{"$f":"AND(#REF!,\"NbwdKgbrGVI=\")","v":{"$error":"#REF!"}},{"$f":"AND(#REF!,\"NbwdKgbrGVM=\")","v":{"$error":"#REF!"}},{"$f":"AND(#REF!,\"NbwdKgbrGVQ=\")","v":{"$error":"#REF!"}},{"$f":"AND(#REF!,\"NbwdKgbrGVU=\")","v":{"$error":"#REF!"}},{"$f":"AND(#REF!,\"NbwdKgbrGVY=\")","v":{"$error":"#REF!"}},{"$f":"AND(#REF!,\"NbwdKgbrGVc=\")","v":{"$error":"#REF!"}},{"$f":"AND(#REF!,\"NbwdKgbrGVg=\")","v":{"$error":"#REF!"}},{"$f":"AND(#REF!,\"NbwdKgbrGVk=\")","v":{"$error":"#REF!"}},{"$f":"AND(#REF!,\"NbwdKgbrGVo=\")","v":{"$error":"#REF!"}},{"$f":"AND(#REF!,\"NbwdKgbrGVs=\")","v":{"$error":"#REF!"}},{"$f":"AND(#REF!,\"NbwdKgbrGVw=\")","v":{"$error":"#REF!"}},{"$f":"AND(#REF!,\"NbwdKgbrGV0=\")","v":{"$error":"#REF!"}},{"$f":"AND(#REF!,\"NbwdKgbrGV4=\")","v":{"$error":"#REF!"}},{"$f":"AND(#REF!,\"NbwdKgbrGV8=\")","v":{"$error":"#REF!"}},{"$f":"AND(#REF!,\"NbwdKgbrGWA=\")","v":{"$error":"#REF!"}},{"$f":"AND(#REF!,\"NbwdKgbrGWE=\")","v":{"$error":"#REF!"}},{"$f":"AND(#REF!,\"NbwdKgbrGWI=\")","v":{"$error":"#REF!"}},{"$f":"AND(#REF!,\"NbwdKgbrGWM=\")","v":{"$error":"#REF!"}},{"$f":"AND(#REF!,\"NbwdKgbrGWQ=\")","v":{"$error":"#REF!"}},{"$f":"AND(#REF!,\"NbwdKgbrGWU=\")","v":{"$error":"#REF!"}},{"$f":"AND(#REF!,\"NbwdKgbrGWY=\")","v":{"$error":"#REF!"}},{"$f":"AND(#REF!,\"NbwdKgbrGWc=\")","v":{"$error":"#REF!"}},{"$f":"AND(#REF!,\"NbwdKgbrGWg=\")","v":{"$error":"#REF!"}},{"$f":"AND(#REF!,\"NbwdKgbrGWk=\")","v":{"$error":"#REF!"}},{"$f":"AND(#REF!,\"NbwdKgbrGWo=\")","v":{"$error":"#REF!"}},{"$f":"AND(#REF!,\"NbwdKgbrGWs=\")","v":{"$error":"#REF!"}},{"$f":"AND(#REF!,\"NbwdKgbrGWw=\")","v":{"$error":"#REF!"}},{"$f":"AND(#REF!,\"NbwdKgbrGW0=\")","v":{"$error":"#REF!"}},{"$f":"AND(#REF!,\"NbwdKgbrGW4=\")","v":{"$error":"#REF!"}},{"$f":"AND(#REF!,\"NbwdKgbrGW8=\")","v":{"$error":"#REF!"}},{"$f":"AND(#REF!,\"NbwdKgbrGXA=\")","v":{"$error":"#REF!"}},{"$f":"AND(#REF!,\"NbwdKgbrGXE=\")","v":{"$error":"#REF!"}},{"$f":"AND(#REF!,\"NbwdKgbrGXI=\")","v":{"$error":"#REF!"}},{"$f":"AND(#REF!,\"NbwdKgbrGXM=\")","v":{"$error":"#REF!"}},{"$f":"AND(#REF!,\"NbwdKgbrGXQ=\")","v":{"$error":"#REF!"}},{"$f":"AND(#REF!,\"NbwdKgbrGXU=\")","v":{"$error":"#REF!"}},{"$f":"AND(#REF!,\"NbwdKgbrGXY=\")","v":{"$error":"#REF!"}},{"$f":"AND(#REF!,\"NbwdKgbrGXc=\")","v":{"$error":"#REF!"}},{"$f":"AND(#REF!,\"NbwdKgbrGXg=\")","v":{"$error":"#REF!"}},{"$f":"AND(#REF!,\"NbwdKgbrGXk=\")","v":{"$error":"#REF!"}},{"$f":"AND(#REF!,\"NbwdKgbrGXo=\")","v":{"$error":"#REF!"}},{"$f":"AND(#REF!,\"NbwdKgbrGXs=\")","v":{"$error":"#REF!"}},{"$f":"AND(#REF!,\"NbwdKgbrGXw=\")","v":{"$error":"#REF!"}},{"$f":"AND(#REF!,\"NbwdKgbrGX0=\")","v":{"$error":"#REF!"}},{"$f":"AND(#REF!,\"NbwdKgbrGX4=\")","v":{"$error":"#REF!"}},{"$f":"AND(#REF!,\"NbwdKgbrGX8=\")","v":{"$error":"#REF!"}},{"$f":"AND(#REF!,\"NbwdKgbrGYA=\")","v":{"$error":"#REF!"}},{"$f":"AND(#REF!,\"NbwdKgbrGYE=\")","v":{"$error":"#REF!"}},{"$f":"AND(#REF!,\"NbwdKgbrGYI=\")","v":{"$error":"#REF!"}},{"$f":"AND(#REF!,\"NbwdKgbrGYM=\")","v":{"$error":"#REF!"}},{"$f":"AND(#REF!,\"NbwdKgbrGYQ=\")","v":{"$error":"#REF!"}},{"$f":"AND(#REF!,\"NbwdKgbrGYU=\")","v":{"$error":"#REF!"}},{"$f":"AND(#REF!,\"NbwdKgbrGYY=\")","v":{"$error":"#REF!"}},{"$f":"AND(#REF!,\"NbwdKgbrGYc=\")","v":{"$error":"#REF!"}},{"$f":"AND(#REF!,\"NbwdKgbrGYg=\")","v":{"$error":"#REF!"}},{"$f":"AND(#REF!,\"NbwdKgbrGYk=\")","v":{"$error":"#REF!"}},{"$f":"AND(#REF!,\"NbwdKgbrGYo=\")","v":{"$error":"#REF!"}},{"$f":"AND(#REF!,\"NbwdKgbrGYs=\")","v":{"$error":"#REF!"}},{"$f":"AND(#REF!,\"NbwdKgbrGYw=\")","v":{"$error":"#REF!"}},{"$f":"AND(#REF!,\"NbwdKgbrGY0=\")","v":{"$error":"#REF!"}},{"$f":"AND(#REF!,\"NbwdKgbrGY4=\")","v":{"$error":"#REF!"}},{"$f":"AND(#REF!,\"NbwdKgbrGY8=\")","v":{"$error":"#REF!"}},{"$f":"AND(#REF!,\"NbwdKgbrGZA=\")","v":{"$error":"#REF!"}},{"$f":"AND(#REF!,\"NbwdKgbrGZE=\")","v":{"$error":"#REF!"}},{"$f":"AND(#REF!,\"NbwdKgbrGZI=\")","v":{"$error":"#REF!"}},{"$f":"AND(#REF!,\"NbwdKgbrGZM=\")","v":{"$error":"#REF!"}},{"$f":"AND(#REF!,\"NbwdKgbrGZQ=\")","v":{"$error":"#REF!"}},{"$f":"AND(#REF!,\"NbwdKgbrGZU=\")","v":{"$error":"#REF!"}},{"$f":"AND(#REF!,\"NbwdKgbrGZY=\")","v":{"$error":"#REF!"}},{"$f":"AND(#REF!,\"NbwdKgbrGZc=\")","v":{"$error":"#REF!"}},{"$f":"AND(#REF!,\"NbwdKgbrGZg=\")","v":{"$error":"#REF!"}},{"$f":"AND(#REF!,\"NbwdKgbrGZk=\")","v":{"$error":"#REF!"}},{"$f":"AND(#REF!,\"NbwdKgbrGZo=\")","v":{"$error":"#REF!"}},{"$f":"AND(#REF!,\"NbwdKgbrGZs=\")","v":{"$error":"#REF!"}},{"$f":"AND(#REF!,\"NbwdKgbrGZw=\")","v":{"$error":"#REF!"}},{"$f":"AND(#REF!,\"NbwdKgbrGZ0=\")","v":{"$error":"#REF!"}},{"$f":"AND(#REF!,\"NbwdKgbrGZ4=\")","v":{"$error":"#REF!"}},{"$f":"AND(#REF!,\"NbwdKgbrGZ8=\")","v":{"$error":"#REF!"}},{"$f":"AND(#REF!,\"NbwdKgbrGaA=\")","v":{"$error":"#REF!"}},{"$f":"AND(#REF!,\"NbwdKgbrGaE=\")","v":{"$error":"#REF!"}},{"$f":"AND(#REF!,\"NbwdKgbrGaI=\")","v":{"$error":"#REF!"}},{"$f":"AND(#REF!,\"NbwdKgbrGaM=\")","v":{"$error":"#REF!"}},{"$f":"AND(#REF!,\"NbwdKgbrGaQ=\")","v":{"$error":"#REF!"}},{"$f":"AND(#REF!,\"NbwdKgbrGaU=\")","v":{"$error":"#REF!"}},{"$f":"AND(#REF!,\"NbwdKgbrGaY=\")","v":{"$error":"#REF!"}},{"$f":"AND(#REF!,\"NbwdKgbrGac=\")","v":{"$error":"#REF!"}},{"$f":"IF(#REF!,\"NbwdKgbrGag=\",0)","v":{"$error":"#REF!"}},{"$f":"AND(#REF!,\"NbwdKgbrGak=\")","v":{"$error":"#REF!"}},{"$f":"AND(#REF!,\"NbwdKgbrGao=\")","v":{"$error":"#REF!"}},{"$f":"AND(#REF!,\"NbwdKgbrGas=\")","v":{"$error":"#REF!"}},{"$f":"AND(#REF!,\"NbwdKgbrGaw=\")","v":{"$error":"#REF!"}},{"$f":"AND(#REF!,\"NbwdKgbrGa0=\")","v":{"$error":"#REF!"}},{"$f":"AND(#REF!,\"NbwdKgbrGa4=\")","v":{"$error":"#REF!"}},{"$f":"AND(#REF!,\"NbwdKgbrGa8=\")","v":{"$error":"#REF!"}},{"$f":"AND(#REF!,\"NbwdKgbrGbA=\")","v":{"$error":"#REF!"}},{"$f":"AND(#REF!,\"NbwdKgbrGbE=\")","v":{"$error":"#REF!"}},{"$f":"AND(#REF!,\"NbwdKgbrGbI=\")","v":{"$error":"#REF!"}},{"$f":"AND(#REF!,\"NbwdKgbrGbM=\")","v":{"$error":"#REF!"}},{"$f":"AND(#REF!,\"NbwdKgbrGbQ=\")","v":{"$error":"#REF!"}},{"$f":"AND(#REF!,\"NbwdKgbrGbU=\")","v":{"$error":"#REF!"}},{"$f":"AND(#REF!,\"NbwdKgbrGbY=\")","v":{"$error":"#REF!"}},{"$f":"AND(#REF!,\"NbwdKgbrGbc=\")","v":{"$error":"#REF!"}},{"$f":"AND(#REF!,\"NbwdKgbrGbg=\")","v":{"$error":"#REF!"}},{"$f":"AND(#REF!,\"NbwdKgbrGbk=\")","v":{"$error":"#REF!"}},{"$f":"AND(#REF!,\"NbwdKgbrGbo=\")","v":{"$error":"#REF!"}},{"$f":"AND(#REF!,\"NbwdKgbrGbs=\")","v":{"$error":"#REF!"}},{"$f":"AND(#REF!,\"NbwdKgbrGbw=\")","v":{"$error":"#REF!"}},{"$f":"AND(#REF!,\"NbwdKgbrGb0=\")","v":{"$error":"#REF!"}},{"$f":"AND(#REF!,\"NbwdKgbrGb4=\")","v":{"$error":"#REF!"}},{"$f":"AND(#REF!,\"NbwdKgbrGb8=\")","v":{"$error":"#REF!"}},{"$f":"AND(#REF!,\"NbwdKgbrGcA=\")","v":{"$error":"#REF!"}},{"$f":"AND(#REF!,\"NbwdKgbrGcE=\")","v":{"$error":"#REF!"}},{"$f":"AND(#REF!,\"NbwdKgbrGcI=\")","v":{"$error":"#REF!"}},{"$f":"AND(#REF!,\"NbwdKgbrGcM=\")","v":{"$error":"#REF!"}},{"$f":"AND(#REF!,\"NbwdKgbrGcQ=\")","v":{"$error":"#REF!"}},{"$f":"AND(#REF!,\"NbwdKgbrGcU=\")","v":{"$error":"#REF!"}},{"$f":"AND(#REF!,\"NbwdKgbrGcY=\")","v":{"$error":"#REF!"}},{"$f":"AND(#REF!,\"NbwdKgbrGcc=\")","v":{"$error":"#REF!"}},{"$f":"AND(#REF!,\"NbwdKgbrGcg=\")","v":{"$error":"#REF!"}},{"$f":"AND(#REF!,\"NbwdKgbrGck=\")","v":{"$error":"#REF!"}},{"$f":"AND(#REF!,\"NbwdKgbrGco=\")","v":{"$error":"#REF!"}},{"$f":"AND(#REF!,\"NbwdKgbrGcs=\")","v":{"$error":"#REF!"}},{"$f":"AND(#REF!,\"NbwdKgbrGcw=\")","v":{"$error":"#REF!"}},{"$f":"AND(#REF!,\"NbwdKgbrGc0=\")","v":{"$error":"#REF!"}},{"$f":"AND(#REF!,\"NbwdKgbrGc4=\")","v":{"$error":"#REF!"}},{"$f":"AND(#REF!,\"NbwdKgbrGc8=\")","v":{"$error":"#REF!"}},{"$f":"AND(#REF!,\"NbwdKgbrGdA=\")","v":{"$error":"#REF!"}},{"$f":"AND(#REF!,\"NbwdKgbrGdE=\")","v":{"$error":"#REF!"}},{"$f":"AND(#REF!,\"NbwdKgbrGdI=\")","v":{"$error":"#REF!"}},{"$f":"AND(#REF!,\"NbwdKgbrGdM=\")","v":{"$error":"#REF!"}},{"$f":"AND(#REF!,\"NbwdKgbrGdQ=\")","v":{"$error":"#REF!"}},{"$f":"AND(#REF!,\"NbwdKgbrGdU=\")","v":{"$error":"#REF!"}},{"$f":"AND(#REF!,\"NbwdKgbrGdY=\")","v":{"$error":"#REF!"}},{"$f":"AND(#REF!,\"NbwdKgbrGdc=\")","v":{"$error":"#REF!"}},{"$f":"AND(#REF!,\"NbwdKgbrGdg=\")","v":{"$error":"#REF!"}},{"$f":"AND(#REF!,\"NbwdKgbrGdk=\")","v":{"$error":"#REF!"}},{"$f":"AND(#REF!,\"NbwdKgbrGdo=\")","v":{"$error":"#REF!"}},{"$f":"AND(#REF!,\"NbwdKgbrGds=\")","v":{"$error":"#REF!"}},{"$f":"AND(#REF!,\"NbwdKgbrGdw=\")","v":{"$error":"#REF!"}},{"$f":"AND(#REF!,\"NbwdKgbrGd0=\")","v":{"$error":"#REF!"}},{"$f":"AND(#REF!,\"NbwdKgbrGd4=\")","v":{"$error":"#REF!"}},{"$f":"AND(#REF!,\"NbwdKgbrGd8=\")","v":{"$error":"#REF!"}},{"$f":"AND(#REF!,\"NbwdKgbrGeA=\")","v":{"$error":"#REF!"}},{"$f":"AND(#REF!,\"NbwdKgbrGeE=\")","v":{"$error":"#REF!"}},{"$f":"AND(#REF!,\"NbwdKgbrGeI=\")","v":{"$error":"#REF!"}},{"$f":"AND(#REF!,\"NbwdKgbrGeM=\")","v":{"$error":"#REF!"}},{"$f":"AND(#REF!,\"NbwdKgbrGeQ=\")","v":{"$error":"#REF!"}},{"$f":"AND(#REF!,\"NbwdKgbrGeU=\")","v":{"$error":"#REF!"}},{"$f":"AND(#REF!,\"NbwdKgbrGeY=\")","v":{"$error":"#REF!"}},{"$f":"AND(#REF!,\"NbwdKgbrGec=\")","v":{"$error":"#REF!"}},{"$f":"AND(#REF!,\"NbwdKgbrGeg=\")","v":{"$error":"#REF!"}},{"$f":"AND(#REF!,\"NbwdKgbrGek=\")","v":{"$error":"#REF!"}},{"$f":"AND(#REF!,\"NbwdKgbrGeo=\")","v":{"$error":"#REF!"}},{"$f":"AND(#REF!,\"NbwdKgbrGes=\")","v":{"$error":"#REF!"}},{"$f":"AND(#REF!,\"NbwdKgbrGew=\")","v":{"$error":"#REF!"}},{"$f":"AND(#REF!,\"NbwdKgbrGe0=\")","v":{"$error":"#REF!"}},{"$f":"AND(#REF!,\"NbwdKgbrGe4=\")","v":{"$error":"#REF!"}},{"$f":"AND(#REF!,\"NbwdKgbrGe8=\")","v":{"$error":"#REF!"}},{"$f":"AND(#REF!,\"NbwdKgbrGfA=\")","v":{"$error":"#REF!"}},{"$f":"AND(#REF!,\"NbwdKgbrGfE=\")","v":{"$error":"#REF!"}},{"$f":"AND(#REF!,\"NbwdKgbrGfI=\")","v":{"$error":"#REF!"}},{"$f":"AND(#REF!,\"NbwdKgbrGfM=\")","v":{"$error":"#REF!"}},{"$f":"AND(#REF!,\"NbwdKgbrGfQ=\")","v":{"$error":"#REF!"}},{"$f":"AND(#REF!,\"NbwdKgbrGfU=\")","v":{"$error":"#REF!"}},{"$f":"AND(#REF!,\"NbwdKgbrGfY=\")","v":{"$error":"#REF!"}},{"$f":"AND(#REF!,\"NbwdKgbrGfc=\")","v":{"$error":"#REF!"}},{"$f":"AND(#REF!,\"NbwdKgbrGfg=\")","v":{"$error":"#REF!"}},{"$f":"AND(#REF!,\"NbwdKgbrGfk=\")","v":{"$error":"#REF!"}},{"$f":"AND(#REF!,\"NbwdKgbrGfo=\")","v":{"$error":"#REF!"}},{"$f":"AND(#REF!,\"NbwdKgbrGfs=\")","v":{"$error":"#REF!"}},{"$f":"AND(#REF!,\"NbwdKgbrGfw=\")","v":{"$error":"#REF!"}},{"$f":"AND(#REF!,\"NbwdKgbrGf0=\")","v":{"$error":"#REF!"}},{"$f":"AND(#REF!,\"NbwdKgbrGf4=\")","v":{"$error":"#REF!"}},{"$f":"AND(#REF!,\"NbwdKgbrGf8=\")","v":{"$error":"#REF!"}}]
[{"$f":"AND(#REF!,\"WIsVcQcpJQA=\")","v":{"$error":"#REF!"}},{"$f":"AND(#REF!,\"WIsVcQcpJQE=\")","v":{"$error":"#REF!"}},{"$f":"AND(#REF!,\"WIsVcQcpJQI=\")","v":{"$error":"#REF!"}},{"$f":"AND(#REF!,\"WIsVcQcpJQM=\")","v":{"$error":"#REF!"}},{"$f":"AND(#REF!,\"WIsVcQcpJQQ=\")","v":{"$error":"#REF!"}},{"$f":"AND(#REF!,\"WIsVcQcpJQU=\")","v":{"$error":"#REF!"}},{"$f":"AND(#REF!,\"WIsVcQcpJQY=\")","v":{"$error":"#REF!"}},{"$f":"AND(#REF!,\"WIsVcQcpJQc=\")","v":{"$error":"#REF!"}},{"$f":"AND(#REF!,\"WIsVcQcpJQg=\")","v":{"$error":"#REF!"}},{"$f":"AND(#REF!,\"WIsVcQcpJQk=\")","v":{"$error":"#REF!"}},{"$f":"AND(#REF!,\"WIsVcQcpJQo=\")","v":{"$error":"#REF!"}},{"$f":"AND(#REF!,\"WIsVcQcpJQs=\")","v":{"$error":"#REF!"}},{"$f":"AND(#REF!,\"WIsVcQcpJQw=\")","v":{"$error":"#REF!"}},{"$f":"AND(#REF!,\"WIsVcQcpJQ0=\")","v":{"$error":"#REF!"}},{"$f":"AND(#REF!,\"WIsVcQcpJQ4=\")","v":{"$error":"#REF!"}},{"$f":"AND(#REF!,\"WIsVcQcpJQ8=\")","v":{"$error":"#REF!"}},{"$f":"AND(#REF!,\"WIsVcQcpJRA=\")","v":{"$error":"#REF!"}},{"$f":"AND(#REF!,\"WIsVcQcpJRE=\")","v":{"$error":"#REF!"}},{"$f":"AND(#REF!,\"WIsVcQcpJRI=\")","v":{"$error":"#REF!"}},{"$f":"AND(#REF!,\"WIsVcQcpJRM=\")","v":{"$error":"#REF!"}},{"$f":"AND(#REF!,\"WIsVcQcpJRQ=\")","v":{"$error":"#REF!"}},{"$f":"AND(#REF!,\"WIsVcQcpJRU=\")","v":{"$error":"#REF!"}},{"$f":"AND(#REF!,\"WIsVcQcpJRY=\")","v":{"$error":"#REF!"}},{"$f":"AND(#REF!,\"WIsVcQcpJRc=\")","v":{"$error":"#REF!"}},{"$f":"AND(#REF!,\"WIsVcQcpJRg=\")","v":{"$error":"#REF!"}},{"$f":"AND(#REF!,\"WIsVcQcpJRk=\")","v":{"$error":"#REF!"}},{"$f":"AND(#REF!,\"WIsVcQcpJRo=\")","v":{"$error":"#REF!"}},{"$f":"AND(#REF!,\"WIsVcQcpJRs=\")","v":{"$error":"#REF!"}},{"$f":"AND(#REF!,\"WIsVcQcpJRw=\")","v":{"$error":"#REF!"}},{"$f":"AND(#REF!,\"WIsVcQcpJR0=\")","v":{"$error":"#REF!"}},{"$f":"AND(#REF!,\"WIsVcQcpJR4=\")","v":{"$error":"#REF!"}},{"$f":"AND(#REF!,\"WIsVcQcpJR8=\")","v":{"$error":"#REF!"}},{"$f":"AND(#REF!,\"WIsVcQcpJSA=\")","v":{"$error":"#REF!"}},{"$f":"AND(#REF!,\"WIsVcQcpJSE=\")","v":{"$error":"#REF!"}},{"$f":"AND(#REF!,\"WIsVcQcpJSI=\")","v":{"$error":"#REF!"}},{"$f":"AND(#REF!,\"WIsVcQcpJSM=\")","v":{"$error":"#REF!"}},{"$f":"AND(#REF!,\"WIsVcQcpJSQ=\")","v":{"$error":"#REF!"}},{"$f":"AND(#REF!,\"WIsVcQcpJSU=\")","v":{"$error":"#REF!"}},{"$f":"AND(#REF!,\"WIsVcQcpJSY=\")","v":{"$error":"#REF!"}},{"$f":"AND(#REF!,\"WIsVcQcpJSc=\")","v":{"$error":"#REF!"}},{"$f":"AND(#REF!,\"WIsVcQcpJSg=\")","v":{"$error":"#REF!"}},{"$f":"AND(#REF!,\"WIsVcQcpJSk=\")","v":{"$error":"#REF!"}},{"$f":"AND(#REF!,\"WIsVcQcpJSo=\")","v":{"$error":"#REF!"}},{"$f":"AND(#REF!,\"WIsVcQcpJSs=\")","v":{"$error":"#REF!"}},{"$f":"AND(#REF!,\"WIsVcQcpJSw=\")","v":{"$error":"#REF!"}},{"$f":"AND(#REF!,\"WIsVcQcpJS0=\")","v":{"$error":"#REF!"}},{"$f":"AND(#REF!,\"WIsVcQcpJS4=\")","v":{"$error":"#REF!"}},{"$f":"AND(#REF!,\"WIsVcQcpJS8=\")","v":{"$error":"#REF!"}},{"$f":"AND(#REF!,\"WIsVcQcpJTA=\")","v":{"$error":"#REF!"}},{"$f":"AND(#REF!,\"WIsVcQcpJTE=\")","v":{"$error":"#REF!"}},{"$f":"AND(#REF!,\"WIsVcQcpJTI=\")","v":{"$error":"#REF!"}},{"$f":"AND(#REF!,\"WIsVcQcpJTM=\")","v":{"$error":"#REF!"}},{"$f":"AND(#REF!,\"WIsVcQcpJTQ=\")","v":{"$error":"#REF!"}},{"$f":"AND(#REF!,\"WIsVcQcpJTU=\")","v":{"$error":"#REF!"}},{"$f":"AND(#REF!,\"WIsVcQcpJTY=\")","v":{"$error":"#REF!"}},{"$f":"AND(#REF!,\"WIsVcQcpJTc=\")","v":{"$error":"#REF!"}},{"$f":"AND(#REF!,\"WIsVcQcpJTg=\")","v":{"$error":"#REF!"}},{"$f":"AND(#REF!,\"WIsVcQcpJTk=\")","v":{"$error":"#REF!"}},{"$f":"AND(#REF!,\"WIsVcQcpJTo=\")","v":{"$error":"#REF!"}},{"$f":"AND(#REF!,\"WIsVcQcpJTs=\")","v":{"$error":"#REF!"}},{"$f":"AND(#REF!,\"WIsVcQcpJTw=\")","v":{"$error":"#REF!"}},{"$f":"AND(#REF!,\"WIsVcQcpJT0=\")","v":{"$error":"#REF!"}},{"$f":"AND(#REF!,\"WIsVcQcpJT4=\")","v":{"$error":"#REF!"}},{"$f":"AND(#REF!,\"WIsVcQcpJT8=\")","v":{"$error":"#REF!"}},{"$f":"AND(#REF!,\"WIsVcQcpJUA=\")","v":{"$error":"#REF!"}},{"$f":"AND(#REF!,\"WIsVcQcpJUE=\")","v":{"$error":"#REF!"}},{"$f":"AND(#REF!,\"WIsVcQcpJUI=\")","v":{"$error":"#REF!"}},{"$f":"AND(#REF!,\"WIsVcQcpJUM=\")","v":{"$error":"#REF!"}},{"$f":"AND(#REF!,\"WIsVcQcpJUQ=\")","v":{"$error":"#REF!"}},{"$f":"AND(#REF!,\"WIsVcQcpJUU=\")","v":{"$error":"#REF!"}},{"$f":"AND(#REF!,\"WIsVcQcpJUY=\")","v":{"$error":"#REF!"}},{"$f":"AND(#REF!,\"WIsVcQcpJUc=\")","v":{"$error":"#REF!"}},{"$f":"AND(#REF!,\"WIsVcQcpJUg=\")","v":{"$error":"#REF!"}},{"$f":"AND(#REF!,\"WIsVcQcpJUk=\")","v":{"$error":"#REF!"}},{"$f":"AND(#REF!,\"WIsVcQcpJUo=\")","v":{"$error":"#REF!"}},{"$f":"AND(#REF!,\"WIsVcQcpJUs=\")","v":{"$error":"#REF!"}},{"$f":"AND(#REF!,\"WIsVcQcpJUw=\")","v":{"$error":"#REF!"}},{"$f":"AND(#REF!,\"WIsVcQcpJU0=\")","v":{"$error":"#REF!"}},{"$f":"AND(#REF!,\"WIsVcQcpJU4=\")","v":{"$error":"#REF!"}},{"$f":"AND(#REF!,\"WIsVcQcpJU8=\")","v":{"$error":"#REF!"}},{"$f":"AND(#REF!,\"WIsVcQcpJVA=\")","v":{"$error":"#REF!"}},{"$f":"AND(#REF!,\"WIsVcQcpJVE=\")","v":{"$error":"#REF!"}},{"$f":"AND(#REF!,\"WIsVcQcpJVI=\")","v":{"$error":"#REF!"}},{"$f":"AND(#REF!,\"WIsVcQcpJVM=\")","v":{"$error":"#REF!"}},{"$f":"AND(#REF!,\"WIsVcQcpJVQ=\")","v":{"$error":"#REF!"}},{"$f":"AND(#REF!,\"WIsVcQcpJVU=\")","v":{"$error":"#REF!"}},{"$f":"AND(#REF!,\"WIsVcQcpJVY=\")","v":{"$error":"#REF!"}},{"$f":"AND(#REF!,\"WIsVcQcpJVc=\")","v":{"$error":"#REF!"}},{"$f":"AND(#REF!,\"WIsVcQcpJVg=\")","v":{"$error":"#REF!"}},{"$f":"AND(#REF!,\"WIsVcQcpJVk=\")","v":{"$error":"#REF!"}},{"$f":"AND(#REF!,\"WIsVcQcpJVo=\")","v":{"$error":"#REF!"}},{"$f":"AND(#REF!,\"WIsVcQcpJVs=\")","v":{"$error":"#REF!"}},{"$f":"AND(#REF!,\"WIsVcQcpJVw=\")","v":{"$error":"#REF!"}},{"$f":"AND(#REF!,\"WIsVcQcpJV0=\")","v":{"$error":"#REF!"}},{"$f":"AND(#REF!,\"WIsVcQcpJV4=\")","v":{"$error":"#REF!"}},{"$f":"AND(#REF!,\"WIsVcQcpJV8=\")","v":{"$error":"#REF!"}},{"$f":"AND(#REF!,\"WIsVcQcpJWA=\")","v":{"$error":"#REF!"}},{"$f":"AND(#REF!,\"WIsVcQcpJWE=\")","v":{"$error":"#REF!"}},{"$f":"AND(#REF!,\"WIsVcQcpJWI=\")","v":{"$error":"#REF!"}},{"$f":"AND(#REF!,\"WIsVcQcpJWM=\")","v":{"$error":"#REF!"}},{"$f":"AND(#REF!,\"WIsVcQcpJWQ=\")","v":{"$error":"#REF!"}},{"$f":"AND(#REF!,\"WIsVcQcpJWU=\")","v":{"$error":"#REF!"}},{"$f":"AND(#REF!,\"WIsVcQcpJWY=\")","v":{"$error":"#REF!"}},{"$f":"AND(#REF!,\"WIsVcQcpJWc=\")","v":{"$error":"#REF!"}},{"$f":"AND(#REF!,\"WIsVcQcpJWg=\")","v":{"$error":"#REF!"}},{"$f":"AND(#REF!,\"WIsVcQcpJWk=\")","v":{"$error":"#REF!"}},{"$f":"AND(#REF!,\"WIsVcQcpJWo=\")","v":{"$error":"#REF!"}},{"$f":"AND(#REF!,\"WIsVcQcpJWs=\")","v":{"$error":"#REF!"}},{"$f":"AND(#REF!,\"WIsVcQcpJWw=\")","v":{"$error":"#REF!"}},{"$f":"AND(#REF!,\"WIsVcQcpJW0=\")","v":{"$error":"#REF!"}},{"$f":"AND(#REF!,\"WIsVcQcpJW4=\")","v":{"$error":"#REF!"}},{"$f":"IF(#REF!,\"WIsVcQcpJW8=\",0)","v":{"$error":"#REF!"}},{"$f":"AND(#REF!,\"WIsVcQcpJXA=\")","v":{"$error":"#REF!"}},{"$f":"AND(#REF!,\"WIsVcQcpJXE=\")","v":{"$error":"#REF!"}},{"$f":"AND(#REF!,\"WIsVcQcpJXI=\")","v":{"$error":"#REF!"}},{"$f":"AND(#REF!,\"WIsVcQcpJXM=\")","v":{"$error":"#REF!"}},{"$f":"AND(#REF!,\"WIsVcQcpJXQ=\")","v":{"$error":"#REF!"}},{"$f":"AND(#REF!,\"WIsVcQcpJXU=\")","v":{"$error":"#REF!"}},{"$f":"AND(#REF!,\"WIsVcQcpJXY=\")","v":{"$error":"#REF!"}},{"$f":"AND(#REF!,\"WIsVcQcpJXc=\")","v":{"$error":"#REF!"}},{"$f":"AND(#REF!,\"WIsVcQcpJXg=\")","v":{"$error":"#REF!"}},{"$f":"AND(#REF!,\"WIsVcQcpJXk=\")","v":{"$error":"#REF!"}},{"$f":"AND(#REF!,\"WIsVcQcpJXo=\")","v":{"$error":"#REF!"}},{"$f":"AND(#REF!,\"WIsVcQcpJXs=\")","v":{"$error":"#REF!"}},{"$f":"AND(#REF!,\"WIsVcQcpJXw=\")","v":{"$error":"#REF!"}},{"$f":"AND(#REF!,\"WIsVcQcpJX0=\")","v":{"$error":"#REF!"}},{"$f":"AND(#REF!,\"WIsVcQcpJX4=\")","v":{"$error":"#REF!"}},{"$f":"AND(#REF!,\"WIsVcQcpJX8=\")","v":{"$error":"#REF!"}},{"$f":"AND(#REF!,\"WIsVcQcpJYA=\")","v":{"$error":"#REF!"}},{"$f":"AND(#REF!,\"WIsVcQcpJYE=\")","v":{"$error":"#REF!"}},{"$f":"AND(#REF!,\"WIsVcQcpJYI=\")","v":{"$error":"#REF!"}},{"$f":"AND(#REF!,\"WIsVcQcpJYM=\")","v":{"$error":"#REF!"}},{"$f":"AND(#REF!,\"WIsVcQcpJYQ=\")","v":{"$error":"#REF!"}},{"$f":"AND(#REF!,\"WIsVcQcpJYU=\")","v":{"$error":"#REF!"}},{"$f":"AND(#REF!,\"WIsVcQcpJYY=\")","v":{"$error":"#REF!"}},{"$f":"AND(#REF!,\"WIsVcQcpJYc=\")","v":{"$error":"#REF!"}},{"$f":"AND(#REF!,\"WIsVcQcpJYg=\")","v":{"$error":"#REF!"}},{"$f":"AND(#REF!,\"WIsVcQcpJYk=\")","v":{"$error":"#REF!"}},{"$f":"AND(#REF!,\"WIsVcQcpJYo=\")","v":{"$error":"#REF!"}},{"$f":"AND(#REF!,\"WIsVcQcpJYs=\")","v":{"$error":"#REF!"}},{"$f":"AND(#REF!,\"WIsVcQcpJYw=\")","v":{"$error":"#REF!"}},{"$f":"AND(#REF!,\"WIsVcQcpJY0=\")","v":{"$error":"#REF!"}},{"$f":"AND(#REF!,\"WIsVcQcpJY4=\")","v":{"$error":"#REF!"}},{"$f":"AND(#REF!,\"WIsVcQcpJY8=\")","v":{"$error":"#REF!"}},{"$f":"AND(#REF!,\"WIsVcQcpJZA=\")","v":{"$error":"#REF!"}},{"$f":"AND(#REF!,\"WIsVcQcpJZE=\")","v":{"$error":"#REF!"}},{"$f":"AND(#REF!,\"WIsVcQcpJZI=\")","v":{"$error":"#REF!"}},{"$f":"AND(#REF!,\"WIsVcQcpJZM=\")","v":{"$error":"#REF!"}},{"$f":"AND(#REF!,\"WIsVcQcpJZQ=\")","v":{"$error":"#REF!"}},{"$f":"AND(#REF!,\"WIsVcQcpJZU=\")","v":{"$error":"#REF!"}},{"$f":"AND(#REF!,\"WIsVcQcpJZY=\")","v":{"$error":"#REF!"}},{"$f":"AND(#REF!,\"WIsVcQcpJZc=\")","v":{"$error":"#REF!"}},{"$f":"AND(#REF!,\"WIsVcQcpJZg=\")","v":{"$error":"#REF!"}},{"$f":"AND(#REF!,\"WIsVcQcpJZk=\")","v":{"$error":"#REF!"}},{"$f":"AND(#REF!,\"WIsVcQcpJZo=\")","v":{"$error":"#REF!"}},{"$f":"AND(#REF!,\"WIsVcQcpJZs=\")","v":{"$error":"#REF!"}},{"$f":"AND(#REF!,\"WIsVcQcpJZw=\")","v":{"$error":"#REF!"}},{"$f":"AND(#REF!,\"WIsVcQcpJZ0=\")","v":{"$error":"#REF!"}},{"$f":"AND(#REF!,\"WIsVcQcpJZ4=\")","v":{"$error":"#REF!"}},{"$f":"AND(#REF!,\"WIsVcQcpJZ8=\")","v":{"$error":"#REF!"}},{"$f":"AND(#REF!,\"WIsVcQcpJaA=\")","v":{"$error":"#REF!"}},{"$f":"AND(#REF!,\"WIsVcQcpJaE=\")","v":{"$error":"#REF!"}},{"$f":"AND(#REF!,\"WIsVcQcpJaI=\")","v":{"$error":"#REF!"}},{"$f":"AND(#REF!,\"WIsVcQcpJaM=\")","v":{"$error":"#REF!"}},{"$f":"AND(#REF!,\"WIsVcQcpJaQ=\")","v":{"$error":"#REF!"}},{"$f":"AND(#REF!,\"WIsVcQcpJaU=\")","v":{"$error":"#REF!"}},{"$f":"AND(#REF!,\"WIsVcQcpJaY=\")","v":{"$error":"#REF!"}},{"$f":"AND(#REF!,\"WIsVcQcpJac=\")","v":{"$error":"#REF!"}},{"$f":"AND(#REF!,\"WIsVcQcpJag=\")","v":{"$error":"#REF!"}},{"$f":"AND(#REF!,\"WIsVcQcpJak=\")","v":{"$error":"#REF!"}},{"$f":"AND(#REF!,\"WIsVcQcpJao=\")","v":{"$error":"#REF!"}},{"$f":"AND(#REF!,\"WIsVcQcpJas=\")","v":{"$error":"#REF!"}},{"$f":"AND(#REF!,\"WIsVcQcpJaw=\")","v":{"$error":"#REF!"}},{"$f":"AND(#REF!,\"WIsVcQcpJa0=\")","v":{"$error":"#REF!"}},{"$f":"AND(#REF!,\"WIsVcQcpJa4=\")","v":{"$error":"#REF!"}},{"$f":"AND(#REF!,\"WIsVcQcpJa8=\")","v":{"$error":"#REF!"}},{"$f":"AND(#REF!,\"WIsVcQcpJbA=\")","v":{"$error":"#REF!"}},{"$f":"AND(#REF!,\"WIsVcQcpJbE=\")","v":{"$error":"#REF!"}},{"$f":"AND(#REF!,\"WIsVcQcpJbI=\")","v":{"$error":"#REF!"}},{"$f":"AND(#REF!,\"WIsVcQcpJbM=\")","v":{"$error":"#REF!"}},{"$f":"AND(#REF!,\"WIsVcQcpJbQ=\")","v":{"$error":"#REF!"}},{"$f":"AND(#REF!,\"WIsVcQcpJbU=\")","v":{"$error":"#REF!"}},{"$f":"AND(#REF!,\"WIsVcQcpJbY=\")","v":{"$error":"#REF!"}},{"$f":"AND(#REF!,\"WIsVcQcpJbc=\")","v":{"$error":"#REF!"}},{"$f":"AND(#REF!,\"WIsVcQcpJbg=\")","v":{"$error":"#REF!"}},{"$f":"AND(#REF!,\"WIsVcQcpJbk=\")","v":{"$error":"#REF!"}},{"$f":"AND(#REF!,\"WIsVcQcpJbo=\")","v":{"$error":"#REF!"}},{"$f":"AND(#REF!,\"WIsVcQcpJbs=\")","v":{"$error":"#REF!"}},{"$f":"AND(#REF!,\"WIsVcQcpJbw=\")","v":{"$error":"#REF!"}},{"$f":"AND(#REF!,\"WIsVcQcpJb0=\")","v":{"$error":"#REF!"}},{"$f":"AND(#REF!,\"WIsVcQcpJb4=\")","v":{"$error":"#REF!"}},{"$f":"AND(#REF!,\"WIsVcQcpJb8=\")","v":{"$error":"#REF!"}},{"$f":"AND(#REF!,\"WIsVcQcpJcA=\")","v":{"$error":"#REF!"}},{"$f":"AND(#REF!,\"WIsVcQcpJcE=\")","v":{"$error":"#REF!"}},{"$f":"AND(#REF!,\"WIsVcQcpJcI=\")","v":{"$error":"#REF!"}},{"$f":"AND(#REF!,\"WIsVcQcpJcM=\")","v":{"$error":"#REF!"}},{"$f":"AND(#REF!,\"WIsVcQcpJcQ=\")","v":{"$error":"#REF!"}},{"$f":"AND(#REF!,\"WIsVcQcpJcU=\")","v":{"$error":"#REF!"}},{"$f":"AND(#REF!,\"WIsVcQcpJcY=\")","v":{"$error":"#REF!"}},{"$f":"AND(#REF!,\"WIsVcQcpJcc=\")","v":{"$error":"#REF!"}},{"$f":"AND(#REF!,\"WIsVcQcpJcg=\")","v":{"$error":"#REF!"}},{"$f":"AND(#REF!,\"WIsVcQcpJck=\")","v":{"$error":"#REF!"}},{"$f":"AND(#REF!,\"WIsVcQcpJco=\")","v":{"$error":"#REF!"}},{"$f":"AND(#REF!,\"WIsVcQcpJcs=\")","v":{"$error":"#REF!"}},{"$f":"AND(#REF!,\"WIsVcQcpJcw=\")","v":{"$error":"#REF!"}},{"$f":"AND(#REF!,\"WIsVcQcpJc0=\")","v":{"$error":"#REF!"}},{"$f":"AND(#REF!,\"WIsVcQcpJc4=\")","v":{"$error":"#REF!"}},{"$f":"AND(#REF!,\"WIsVcQcpJc8=\")","v":{"$error":"#REF!"}},{"$f":"AND(#REF!,\"WIsVcQcpJdA=\")","v":{"$error":"#REF!"}},{"$f":"AND(#REF!,\"WIsVcQcpJdE=\")","v":{"$error":"#REF!"}},{"$f":"AND(#REF!,\"WIsVcQcpJdI=\")","v":{"$error":"#REF!"}},{"$f":"AND(#REF!,\"WIsVcQcpJdM=\")","v":{"$error":"#REF!"}},{"$f":"AND(#REF!,\"WIsVcQcpJdQ=\")","v":{"$error":"#REF!"}},{"$f":"AND(#REF!,\"WIsVcQcpJdU=\")","v":{"$error":"#REF!"}},{"$f":"AND(#REF!,\"WIsVcQcpJdY=\")","v":{"$error":"#REF!"}},{"$f":"AND(#REF!,\"WIsVcQcpJdc=\")","v":{"$error":"#REF!"}},{"$f":"AND(#REF!,\"WIsVcQcpJdg=\")","v":{"$error":"#REF!"}},{"$f":"AND(#REF!,\"WIsVcQcpJdk=\")","v":{"$error":"#REF!"}},{"$f":"AND(#REF!,\"WIsVcQcpJdo=\")","v":{"$error":"#REF!"}},{"$f":"AND(#REF!,\"WIsVcQcpJds=\")","v":{"$error":"#REF!"}},{"$f":"AND(#REF!,\"WIsVcQcpJdw=\")","v":{"$error":"#REF!"}},{"$f":"AND(#REF!,\"WIsVcQcpJd0=\")","v":{"$error":"#REF!"}},{"$f":"AND(#REF!,\"WIsVcQcpJd4=\")","v":{"$error":"#REF!"}},{"$f":"AND(#REF!,\"WIsVcQcpJd8=\")","v":{"$error":"#REF!"}},{"$f":"AND(#REF!,\"WIsVcQcpJeA=\")","v":{"$error":"#REF!"}},{"$f":"AND(#REF!,\"WIsVcQcpJeE=\")","v":{"$error":"#REF!"}},{"$f":"AND(#REF!,\"WIsVcQcpJeI=\")","v":{"$error":"#REF!"}},{"$f":"AND(#REF!,\"WIsVcQcpJeM=\")","v":{"$error":"#REF!"}},{"$f":"AND(#REF!,\"WIsVcQcpJeQ=\")","v":{"$error":"#REF!"}},{"$f":"AND(#REF!,\"WIsVcQcpJeU=\")","v":{"$error":"#REF!"}},{"$f":"AND(#REF!,\"WIsVcQcpJeY=\")","v":{"$error":"#REF!"}},{"$f":"AND(#REF!,\"WIsVcQcpJec=\")","v":{"$error":"#REF!"}},{"$f":"AND(#REF!,\"WIsVcQcpJeg=\")","v":{"$error":"#REF!"}},{"$f":"AND(#REF!,\"WIsVcQcpJek=\")","v":{"$error":"#REF!"}},{"$f":"AND(#REF!,\"WIsVcQcpJeo=\")","v":{"$error":"#REF!"}},{"$f":"AND(#REF!,\"WIsVcQcpJes=\")","v":{"$error":"#REF!"}},{"$f":"AND(#REF!,\"WIsVcQcpJew=\")","v":{"$error":"#REF!"}},{"$f":"AND(#REF!,\"WIsVcQcpJe0=\")","v":{"$error":"#REF!"}},{"$f":"AND(#REF!,\"WIsVcQcpJe4=\")","v":{"$error":"#REF!"}},{"$f":"AND(#REF!,\"WIsVcQcpJe8=\")","v":{"$error":"#REF!"}},{"$f":"AND(#REF!,\"WIsVcQcpJfA=\")","v":{"$error":"#REF!"}},{"$f":"AND(#REF!,\"WIsVcQcpJfE=\")","v":{"$error":"#REF!"}},{"$f":"AND(#REF!,\"WIsVcQcpJfI=\")","v":{"$error":"#REF!"}},{"$f":"AND(#REF!,\"WIsVcQcpJfM=\")","v":{"$error":"#REF!"}},{"$f":"AND(#REF!,\"WIsVcQcpJfQ=\")","v":{"$error":"#REF!"}},{"$f":"AND(#REF!,\"WIsVcQcpJfU=\")","v":{"$error":"#REF!"}},{"$f":"AND(#REF!,\"WIsVcQcpJfY=\")","v":{"$error":"#REF!"}},{"$f":"AND(#REF!,\"WIsVcQcpJfc=\")","v":{"$error":"#REF!"}},{"$f":"AND(#REF!,\"WIsVcQcpJfg=\")","v":{"$error":"#REF!"}},{"$f":"AND(#REF!,\"WIsVcQcpJfk=\")","v":{"$error":"#REF!"}},{"$f":"AND(#REF!,\"WIsVcQcpJfo=\")","v":{"$error":"#REF!"}},{"$f":"AND(#REF!,\"WIsVcQcpJfs=\")","v":{"$error":"#REF!"}},{"$f":"AND(#REF!,\"WIsVcQcpJfw=\")","v":{"$error":"#REF!"}},{"$f":"AND(#REF!,\"WIsVcQcpJf0=\")","v":{"$error":"#REF!"}},{"$f":"AND(#REF!,\"WIsVcQcpJf4=\")","v":{"$error":"#REF!"}},{"$f":"AND(#REF!,\"WIsVcQcpJf8=\")","v":{"$error":"#REF!"}}]
[{"$f":"AND(#REF!,\"CjSYRAKu8QA=\")","v":{"$error":"#REF!"}},{"$f":"AND(#REF!,\"CjSYRAKu8QE=\")","v":{"$error":"#REF!"}},{"$f":"AND(#REF!,\"CjSYRAKu8QI=\")","v":{"$error":"#REF!"}},{"$f":"AND(#REF!,\"CjSYRAKu8QM=\")","v":{"$error":"#REF!"}},{"$f":"AND(#REF!,\"CjSYRAKu8QQ=\")","v":{"$error":"#REF!"}},{"$f":"AND(#REF!,\"CjSYRAKu8QU=\")","v":{"$error":"#REF!"}},{"$f":"AND(#REF!,\"CjSYRAKu8QY=\")","v":{"$error":"#REF!"}},{"$f":"AND(#REF!,\"CjSYRAKu8Qc=\")","v":{"$error":"#REF!"}},{"$f":"AND(#REF!,\"CjSYRAKu8Qg=\")","v":{"$error":"#REF!"}},{"$f":"AND(#REF!,\"CjSYRAKu8Qk=\")","v":{"$error":"#REF!"}},{"$f":"AND(#REF!,\"CjSYRAKu8Qo=\")","v":{"$error":"#REF!"}},{"$f":"AND(#REF!,\"CjSYRAKu8Qs=\")","v":{"$error":"#REF!"}},{"$f":"AND(#REF!,\"CjSYRAKu8Qw=\")","v":{"$error":"#REF!"}},{"$f":"AND(#REF!,\"CjSYRAKu8Q0=\")","v":{"$error":"#REF!"}},{"$f":"AND(#REF!,\"CjSYRAKu8Q4=\")","v":{"$error":"#REF!"}},{"$f":"AND(#REF!,\"CjSYRAKu8Q8=\")","v":{"$error":"#REF!"}},{"$f":"AND(#REF!,\"CjSYRAKu8RA=\")","v":{"$error":"#REF!"}},{"$f":"AND(#REF!,\"CjSYRAKu8RE=\")","v":{"$error":"#REF!"}},{"$f":"AND(#REF!,\"CjSYRAKu8RI=\")","v":{"$error":"#REF!"}},{"$f":"AND(#REF!,\"CjSYRAKu8RM=\")","v":{"$error":"#REF!"}},{"$f":"AND(#REF!,\"CjSYRAKu8RQ=\")","v":{"$error":"#REF!"}},{"$f":"AND(#REF!,\"CjSYRAKu8RU=\")","v":{"$error":"#REF!"}},{"$f":"AND(#REF!,\"CjSYRAKu8RY=\")","v":{"$error":"#REF!"}},{"$f":"AND(#REF!,\"CjSYRAKu8Rc=\")","v":{"$error":"#REF!"}},{"$f":"AND(#REF!,\"CjSYRAKu8Rg=\")","v":{"$error":"#REF!"}},{"$f":"AND(#REF!,\"CjSYRAKu8Rk=\")","v":{"$error":"#REF!"}},{"$f":"AND(#REF!,\"CjSYRAKu8Ro=\")","v":{"$error":"#REF!"}},{"$f":"AND(#REF!,\"CjSYRAKu8Rs=\")","v":{"$error":"#REF!"}},{"$f":"AND(#REF!,\"CjSYRAKu8Rw=\")","v":{"$error":"#REF!"}},{"$f":"AND(#REF!,\"CjSYRAKu8R0=\")","v":{"$error":"#REF!"}},{"$f":"AND(#REF!,\"CjSYRAKu8R4=\")","v":{"$error":"#REF!"}},{"$f":"AND(#REF!,\"CjSYRAKu8R8=\")","v":{"$error":"#REF!"}},{"$f":"AND(#REF!,\"CjSYRAKu8SA=\")","v":{"$error":"#REF!"}},{"$f":"AND(#REF!,\"CjSYRAKu8SE=\")","v":{"$error":"#REF!"}},{"$f":"AND(#REF!,\"CjSYRAKu8SI=\")","v":{"$error":"#REF!"}},{"$f":"AND(#REF!,\"CjSYRAKu8SM=\")","v":{"$error":"#REF!"}},{"$f":"AND(#REF!,\"CjSYRAKu8SQ=\")","v":{"$error":"#REF!"}},{"$f":"AND(#REF!,\"CjSYRAKu8SU=\")","v":{"$error":"#REF!"}},{"$f":"AND(#REF!,\"CjSYRAKu8SY=\")","v":{"$error":"#REF!"}},{"$f":"AND(#REF!,\"CjSYRAKu8Sc=\")","v":{"$error":"#REF!"}},{"$f":"AND(#REF!,\"CjSYRAKu8Sg=\")","v":{"$error":"#REF!"}},{"$f":"AND(#REF!,\"CjSYRAKu8Sk=\")","v":{"$error":"#REF!"}},{"$f":"AND(#REF!,\"CjSYRAKu8So=\")","v":{"$error":"#REF!"}},{"$f":"AND(#REF!,\"CjSYRAKu8Ss=\")","v":{"$error":"#REF!"}},{"$f":"AND(#REF!,\"CjSYRAKu8Sw=\")","v":{"$error":"#REF!"}},{"$f":"AND(#REF!,\"CjSYRAKu8S0=\")","v":{"$error":"#REF!"}},{"$f":"AND(#REF!,\"CjSYRAKu8S4=\")","v":{"$error":"#REF!"}},{"$f":"AND(#REF!,\"CjSYRAKu8S8=\")","v":{"$error":"#REF!"}},{"$f":"AND(#REF!,\"CjSYRAKu8TA=\")","v":{"$error":"#REF!"}},{"$f":"AND(#REF!,\"CjSYRAKu8TE=\")","v":{"$error":"#REF!"}},{"$f":"AND(#REF!,\"CjSYRAKu8TI=\")","v":{"$error":"#REF!"}},{"$f":"AND(#REF!,\"CjSYRAKu8TM=\")","v":{"$error":"#REF!"}},{"$f":"AND(#REF!,\"CjSYRAKu8TQ=\")","v":{"$error":"#REF!"}},{"$f":"AND(#REF!,\"CjSYRAKu8TU=\")","v":{"$error":"#REF!"}},{"$f":"IF(#REF!,\"CjSYRAKu8TY=\",0)","v":{"$error":"#REF!"}},{"$f":"AND(#REF!,\"CjSYRAKu8Tc=\")","v":{"$error":"#REF!"}},{"$f":"AND(#REF!,\"CjSYRAKu8Tg=\")","v":{"$error":"#REF!"}},{"$f":"AND(#REF!,\"CjSYRAKu8Tk=\")","v":{"$error":"#REF!"}},{"$f":"AND(#REF!,\"CjSYRAKu8To=\")","v":{"$error":"#REF!"}},{"$f":"AND(#REF!,\"CjSYRAKu8Ts=\")","v":{"$error":"#REF!"}},{"$f":"AND(#REF!,\"CjSYRAKu8Tw=\")","v":{"$error":"#REF!"}},{"$f":"AND(#REF!,\"CjSYRAKu8T0=\")","v":{"$error":"#REF!"}},{"$f":"AND(#REF!,\"CjSYRAKu8T4=\")","v":{"$error":"#REF!"}},{"$f":"AND(#REF!,\"CjSYRAKu8T8=\")","v":{"$error":"#REF!"}},{"$f":"AND(#REF!,\"CjSYRAKu8UA=\")","v":{"$error":"#REF!"}},{"$f":"AND(#REF!,\"CjSYRAKu8UE=\")","v":{"$error":"#REF!"}},{"$f":"AND(#REF!,\"CjSYRAKu8UI=\")","v":{"$error":"#REF!"}},{"$f":"AND(#REF!,\"CjSYRAKu8UM=\")","v":{"$error":"#REF!"}},{"$f":"AND(#REF!,\"CjSYRAKu8UQ=\")","v":{"$error":"#REF!"}},{"$f":"AND(#REF!,\"CjSYRAKu8UU=\")","v":{"$error":"#REF!"}},{"$f":"AND(#REF!,\"CjSYRAKu8UY=\")","v":{"$error":"#REF!"}},{"$f":"AND(#REF!,\"CjSYRAKu8Uc=\")","v":{"$error":"#REF!"}},{"$f":"AND(#REF!,\"CjSYRAKu8Ug=\")","v":{"$error":"#REF!"}},{"$f":"AND(#REF!,\"CjSYRAKu8Uk=\")","v":{"$error":"#REF!"}},{"$f":"AND(#REF!,\"CjSYRAKu8Uo=\")","v":{"$error":"#REF!"}},{"$f":"AND(#REF!,\"CjSYRAKu8Us=\")","v":{"$error":"#REF!"}},{"$f":"AND(#REF!,\"CjSYRAKu8Uw=\")","v":{"$error":"#REF!"}},{"$f":"AND(#REF!,\"CjSYRAKu8U0=\")","v":{"$error":"#REF!"}},{"$f":"AND(#REF!,\"CjSYRAKu8U4=\")","v":{"$error":"#REF!"}},{"$f":"AND(#REF!,\"CjSYRAKu8U8=\")","v":{"$error":"#REF!"}},{"$f":"AND(#REF!,\"CjSYRAKu8VA=\")","v":{"$error":"#REF!"}},{"$f":"AND(#REF!,\"CjSYRAKu8VE=\")","v":{"$error":"#REF!"}},{"$f":"AND(#REF!,\"CjSYRAKu8VI=\")","v":{"$error":"#REF!"}},{"$f":"AND(#REF!,\"CjSYRAKu8VM=\")","v":{"$error":"#REF!"}},{"$f":"AND(#REF!,\"CjSYRAKu8VQ=\")","v":{"$error":"#REF!"}},{"$f":"AND(#REF!,\"CjSYRAKu8VU=\")","v":{"$error":"#REF!"}},{"$f":"AND(#REF!,\"CjSYRAKu8VY=\")","v":{"$error":"#REF!"}},{"$f":"AND(#REF!,\"CjSYRAKu8Vc=\")","v":{"$error":"#REF!"}},{"$f":"AND(#REF!,\"CjSYRAKu8Vg=\")","v":{"$error":"#REF!"}},{"$f":"AND(#REF!,\"CjSYRAKu8Vk=\")","v":{"$error":"#REF!"}},{"$f":"AND(#REF!,\"CjSYRAKu8Vo=\")","v":{"$error":"#REF!"}},{"$f":"AND(#REF!,\"CjSYRAKu8Vs=\")","v":{"$error":"#REF!"}},{"$f":"AND(#REF!,\"CjSYRAKu8Vw=\")","v":{"$error":"#REF!"}},{"$f":"AND(#REF!,\"CjSYRAKu8V0=\")","v":{"$error":"#REF!"}},{"$f":"AND(#REF!,\"CjSYRAKu8V4=\")","v":{"$error":"#REF!"}},{"$f":"AND(#REF!,\"CjSYRAKu8V8=\")","v":{"$error":"#REF!"}},{"$f":"AND(#REF!,\"CjSYRAKu8WA=\")","v":{"$error":"#REF!"}},{"$f":"AND(#REF!,\"CjSYRAKu8WE=\")","v":{"$error":"#REF!"}},{"$f":"AND(#REF!,\"CjSYRAKu8WI=\")","v":{"$error":"#REF!"}},{"$f":"AND(#REF!,\"CjSYRAKu8WM=\")","v":{"$error":"#REF!"}},{"$f":"AND(#REF!,\"CjSYRAKu8WQ=\")","v":{"$error":"#REF!"}},{"$f":"AND(#REF!,\"CjSYRAKu8WU=\")","v":{"$error":"#REF!"}},{"$f":"AND(#REF!,\"CjSYRAKu8WY=\")","v":{"$error":"#REF!"}},{"$f":"AND(#REF!,\"CjSYRAKu8Wc=\")","v":{"$error":"#REF!"}},{"$f":"AND(#REF!,\"CjSYRAKu8Wg=\")","v":{"$error":"#REF!"}},{"$f":"AND(#REF!,\"CjSYRAKu8Wk=\")","v":{"$error":"#REF!"}},{"$f":"AND(#REF!,\"CjSYRAKu8Wo=\")","v":{"$error":"#REF!"}},{"$f":"AND(#REF!,\"CjSYRAKu8Ws=\")","v":{"$error":"#REF!"}},{"$f":"AND(#REF!,\"CjSYRAKu8Ww=\")","v":{"$error":"#REF!"}},{"$f":"AND(#REF!,\"CjSYRAKu8W0=\")","v":{"$error":"#REF!"}},{"$f":"AND(#REF!,\"CjSYRAKu8W4=\")","v":{"$error":"#REF!"}},{"$f":"AND(#REF!,\"CjSYRAKu8W8=\")","v":{"$error":"#REF!"}},{"$f":"AND(#REF!,\"CjSYRAKu8XA=\")","v":{"$error":"#REF!"}},{"$f":"AND(#REF!,\"CjSYRAKu8XE=\")","v":{"$error":"#REF!"}},{"$f":"AND(#REF!,\"CjSYRAKu8XI=\")","v":{"$error":"#REF!"}},{"$f":"AND(#REF!,\"CjSYRAKu8XM=\")","v":{"$error":"#REF!"}},{"$f":"AND(#REF!,\"CjSYRAKu8XQ=\")","v":{"$error":"#REF!"}},{"$f":"AND(#REF!,\"CjSYRAKu8XU=\")","v":{"$error":"#REF!"}},{"$f":"AND(#REF!,\"CjSYRAKu8XY=\")","v":{"$error":"#REF!"}},{"$f":"AND(#REF!,\"CjSYRAKu8Xc=\")","v":{"$error":"#REF!"}},{"$f":"AND(#REF!,\"CjSYRAKu8Xg=\")","v":{"$error":"#REF!"}},{"$f":"AND(#REF!,\"CjSYRAKu8Xk=\")","v":{"$error":"#REF!"}},{"$f":"AND(#REF!,\"CjSYRAKu8Xo=\")","v":{"$error":"#REF!"}},{"$f":"AND(#REF!,\"CjSYRAKu8Xs=\")","v":{"$error":"#REF!"}},{"$f":"AND(#REF!,\"CjSYRAKu8Xw=\")","v":{"$error":"#REF!"}},{"$f":"AND(#REF!,\"CjSYRAKu8X0=\")","v":{"$error":"#REF!"}},{"$f":"AND(#REF!,\"CjSYRAKu8X4=\")","v":{"$error":"#REF!"}},{"$f":"AND(#REF!,\"CjSYRAKu8X8=\")","v":{"$error":"#REF!"}},{"$f":"AND(#REF!,\"CjSYRAKu8YA=\")","v":{"$error":"#REF!"}},{"$f":"AND(#REF!,\"CjSYRAKu8YE=\")","v":{"$error":"#REF!"}},{"$f":"AND(#REF!,\"CjSYRAKu8YI=\")","v":{"$error":"#REF!"}},{"$f":"AND(#REF!,\"CjSYRAKu8YM=\")","v":{"$error":"#REF!"}},{"$f":"AND(#REF!,\"CjSYRAKu8YQ=\")","v":{"$error":"#REF!"}},{"$f":"AND(#REF!,\"CjSYRAKu8YU=\")","v":{"$error":"#REF!"}},{"$f":"AND(#REF!,\"CjSYRAKu8YY=\")","v":{"$error":"#REF!"}},{"$f":"AND(#REF!,\"CjSYRAKu8Yc=\")","v":{"$error":"#REF!"}},{"$f":"AND(#REF!,\"CjSYRAKu8Yg=\")","v":{"$error":"#REF!"}},{"$f":"AND(#REF!,\"CjSYRAKu8Yk=\")","v":{"$error":"#REF!"}},{"$f":"AND(#REF!,\"CjSYRAKu8Yo=\")","v":{"$error":"#REF!"}},{"$f":"AND(#REF!,\"CjSYRAKu8Ys=\")","v":{"$error":"#REF!"}},{"$f":"AND(#REF!,\"CjSYRAKu8Yw=\")","v":{"$error":"#REF!"}},{"$f":"AND(#REF!,\"CjSYRAKu8Y0=\")","v":{"$error":"#REF!"}},{"$f":"AND(#REF!,\"CjSYRAKu8Y4=\")","v":{"$error":"#REF!"}},{"$f":"AND(#REF!,\"CjSYRAKu8Y8=\")","v":{"$error":"#REF!"}},{"$f":"AND(#REF!,\"CjSYRAKu8ZA=\")","v":{"$error":"#REF!"}},{"$f":"AND(#REF!,\"CjSYRAKu8ZE=\")","v":{"$error":"#REF!"}},{"$f":"AND(#REF!,\"CjSYRAKu8ZI=\")","v":{"$error":"#REF!"}},{"$f":"AND(#REF!,\"CjSYRAKu8ZM=\")","v":{"$error":"#REF!"}},{"$f":"AND(#REF!,\"CjSYRAKu8ZQ=\")","v":{"$error":"#REF!"}},{"$f":"AND(#REF!,\"CjSYRAKu8ZU=\")","v":{"$error":"#REF!"}},{"$f":"AND(#REF!,\"CjSYRAKu8ZY=\")","v":{"$error":"#REF!"}},{"$f":"AND(#REF!,\"CjSYRAKu8Zc=\")","v":{"$error":"#REF!"}},{"$f":"AND(#REF!,\"CjSYRAKu8Zg=\")","v":{"$error":"#REF!"}},{"$f":"AND(#REF!,\"CjSYRAKu8Zk=\")","v":{"$error":"#REF!"}},{"$f":"AND(#REF!,\"CjSYRAKu8Zo=\")","v":{"$error":"#REF!"}},{"$f":"AND(#REF!,\"CjSYRAKu8Zs=\")","v":{"$error":"#REF!"}},{"$f":"AND(#REF!,\"CjSYRAKu8Zw=\")","v":{"$error":"#REF!"}},{"$f":"AND(#REF!,\"CjSYRAKu8Z0=\")","v":{"$error":"#REF!"}},{"$f":"AND(#REF!,\"CjSYRAKu8Z4=\")","v":{"$error":"#REF!"}},{"$f":"AND(#REF!,\"CjSYRAKu8Z8=\")","v":{"$error":"#REF!"}},{"$f":"AND(#REF!,\"CjSYRAKu8aA=\")","v":{"$error":"#REF!"}},{"$f":"AND(#REF!,\"CjSYRAKu8aE=\")","v":{"$error":"#REF!"}},{"$f":"AND(#REF!,\"CjSYRAKu8aI=\")","v":{"$error":"#REF!"}},{"$f":"AND(#REF!,\"CjSYRAKu8aM=\")","v":{"$error":"#REF!"}},{"$f":"AND(#REF!,\"CjSYRAKu8aQ=\")","v":{"$error":"#REF!"}},{"$f":"AND(#REF!,\"CjSYRAKu8aU=\")","v":{"$error":"#REF!"}},{"$f":"AND(#REF!,\"CjSYRAKu8aY=\")","v":{"$error":"#REF!"}},{"$f":"AND(#REF!,\"CjSYRAKu8ac=\")","v":{"$error":"#REF!"}},{"$f":"AND(#REF!,\"CjSYRAKu8ag=\")","v":{"$error":"#REF!"}},{"$f":"AND(#REF!,\"CjSYRAKu8ak=\")","v":{"$error":"#REF!"}},{"$f":"AND(#REF!,\"CjSYRAKu8ao=\")","v":{"$error":"#REF!"}},{"$f":"AND(#REF!,\"CjSYRAKu8as=\")","v":{"$error":"#REF!"}},{"$f":"AND(#REF!,\"CjSYRAKu8aw=\")","v":{"$error":"#REF!"}},{"$f":"AND(#REF!,\"CjSYRAKu8a0=\")","v":{"$error":"#REF!"}},{"$f":"AND(#REF!,\"CjSYRAKu8a4=\")","v":{"$error":"#REF!"}},{"$f":"AND(#REF!,\"CjSYRAKu8a8=\")","v":{"$error":"#REF!"}},{"$f":"AND(#REF!,\"CjSYRAKu8bA=\")","v":{"$error":"#REF!"}},{"$f":"AND(#REF!,\"CjSYRAKu8bE=\")","v":{"$error":"#REF!"}},{"$f":"AND(#REF!,\"CjSYRAKu8bI=\")","v":{"$error":"#REF!"}},{"$f":"AND(#REF!,\"CjSYRAKu8bM=\")","v":{"$error":"#REF!"}},{"$f":"AND(#REF!,\"CjSYRAKu8bQ=\")","v":{"$error":"#REF!"}},{"$f":"AND(#REF!,\"CjSYRAKu8bU=\")","v":{"$error":"#REF!"}},{"$f":"AND(#REF!,\"CjSYRAKu8bY=\")","v":{"$error":"#REF!"}},{"$f":"AND(#REF!,\"CjSYRAKu8bc=\")","v":{"$error":"#REF!"}},{"$f":"AND(#REF!,\"CjSYRAKu8bg=\")","v":{"$error":"#REF!"}},{"$f":"AND(#REF!,\"CjSYRAKu8bk=\")","v":{"$error":"#REF!"}},{"$f":"AND(#REF!,\"CjSYRAKu8bo=\")","v":{"$error":"#REF!"}},{"$f":"AND(#REF!,\"CjSYRAKu8bs=\")","v":{"$error":"#REF!"}},{"$f":"AND(#REF!,\"CjSYRAKu8bw=\")","v":{"$error":"#REF!"}},{"$f":"AND(#REF!,\"CjSYRAKu8b0=\")","v":{"$error":"#REF!"}},{"$f":"AND(#REF!,\"CjSYRAKu8b4=\")","v":{"$error":"#REF!"}},{"$f":"AND(#REF!,\"CjSYRAKu8b8=\")","v":{"$error":"#REF!"}},{"$f":"AND(#REF!,\"CjSYRAKu8cA=\")","v":{"$error":"#REF!"}},{"$f":"AND(#REF!,\"CjSYRAKu8cE=\")","v":{"$error":"#REF!"}},{"$f":"AND(#REF!,\"CjSYRAKu8cI=\")","v":{"$error":"#REF!"}},{"$f":"AND(#REF!,\"CjSYRAKu8cM=\")","v":{"$error":"#REF!"}},{"$f":"AND(#REF!,\"CjSYRAKu8cQ=\")","v":{"$error":"#REF!"}},{"$f":"AND(#REF!,\"CjSYRAKu8cU=\")","v":{"$error":"#REF!"}},{"$f":"AND(#REF!,\"CjSYRAKu8cY=\")","v":{"$error":"#REF!"}},{"$f":"AND(#REF!,\"CjSYRAKu8cc=\")","v":{"$error":"#REF!"}},{"$f":"AND(#REF!,\"CjSYRAKu8cg=\")","v":{"$error":"#REF!"}},{"$f":"AND(#REF!,\"CjSYRAKu8ck=\")","v":{"$error":"#REF!"}},{"$f":"AND(#REF!,\"CjSYRAKu8co=\")","v":{"$error":"#REF!"}},{"$f":"AND(#REF!,\"CjSYRAKu8cs=\")","v":{"$error":"#REF!"}},{"$f":"AND(#REF!,\"CjSYRAKu8cw=\")","v":{"$error":"#REF!"}},{"$f":"AND(#REF!,\"CjSYRAKu8c0=\")","v":{"$error":"#REF!"}},{"$f":"AND(#REF!,\"CjSYRAKu8c4=\")","v":{"$error":"#REF!"}},{"$f":"AND(#REF!,\"CjSYRAKu8c8=\")","v":{"$error":"#REF!"}},{"$f":"AND(#REF!,\"CjSYRAKu8dA=\")","v":{"$error":"#REF!"}},{"$f":"AND(#REF!,\"CjSYRAKu8dE=\")","v":{"$error":"#REF!"}},{"$f":"AND(#REF!,\"CjSYRAKu8dI=\")","v":{"$error":"#REF!"}},{"$f":"AND(#REF!,\"CjSYRAKu8dM=\")","v":{"$error":"#REF!"}},{"$f":"AND(#REF!,\"CjSYRAKu8dQ=\")","v":{"$error":"#REF!"}},{"$f":"AND(#REF!,\"CjSYRAKu8dU=\")","v":{"$error":"#REF!"}},{"$f":"AND(#REF!,\"CjSYRAKu8dY=\")","v":{"$error":"#REF!"}},{"$f":"AND(#REF!,\"CjSYRAKu8dc=\")","v":{"$error":"#REF!"}},{"$f":"AND(#REF!,\"CjSYRAKu8dg=\")","v":{"$error":"#REF!"}},{"$f":"AND(#REF!,\"CjSYRAKu8dk=\")","v":{"$error":"#REF!"}},{"$f":"AND(#REF!,\"CjSYRAKu8do=\")","v":{"$error":"#REF!"}},{"$f":"AND(#REF!,\"CjSYRAKu8ds=\")","v":{"$error":"#REF!"}},{"$f":"AND(#REF!,\"CjSYRAKu8dw=\")","v":{"$error":"#REF!"}},{"$f":"AND(#REF!,\"CjSYRAKu8d0=\")","v":{"$error":"#REF!"}},{"$f":"AND(#REF!,\"CjSYRAKu8d4=\")","v":{"$error":"#REF!"}},{"$f":"AND(#REF!,\"CjSYRAKu8d8=\")","v":{"$error":"#REF!"}},{"$f":"AND(#REF!,\"CjSYRAKu8eA=\")","v":{"$error":"#REF!"}},{"$f":"AND(#REF!,\"CjSYRAKu8eE=\")","v":{"$error":"#REF!"}},{"$f":"AND(#REF!,\"CjSYRAKu8eI=\")","v":{"$error":"#REF!"}},{"$f":"AND(#REF!,\"CjSYRAKu8eM=\")","v":{"$error":"#REF!"}},{"$f":"AND(#REF!,\"CjSYRAKu8eQ=\")","v":{"$error":"#REF!"}},{"$f":"AND(#REF!,\"CjSYRAKu8eU=\")","v":{"$error":"#REF!"}},{"$f":"AND(#REF!,\"CjSYRAKu8eY=\")","v":{"$error":"#REF!"}},{"$f":"AND(#REF!,\"CjSYRAKu8ec=\")","v":{"$error":"#REF!"}},{"$f":"AND(#REF!,\"CjSYRAKu8eg=\")","v":{"$error":"#REF!"}},{"$f":"AND(#REF!,\"CjSYRAKu8ek=\")","v":{"$error":"#REF!"}},{"$f":"AND(#REF!,\"CjSYRAKu8eo=\")","v":{"$error":"#REF!"}},{"$f":"AND(#REF!,\"CjSYRAKu8es=\")","v":{"$error":"#REF!"}},{"$f":"AND(#REF!,\"CjSYRAKu8ew=\")","v":{"$error":"#REF!"}},{"$f":"AND(#REF!,\"CjSYRAKu8e0=\")","v":{"$error":"#REF!"}},{"$f":"AND(#REF!,\"CjSYRAKu8e4=\")","v":{"$error":"#REF!"}},{"$f":"AND(#REF!,\"CjSYRAKu8e8=\")","v":{"$error":"#REF!"}},{"$f":"AND(#REF!,\"CjSYRAKu8fA=\")","v":{"$error":"#REF!"}},{"$f":"AND(#REF!,\"CjSYRAKu8fE=\")","v":{"$error":"#REF!"}},{"$f":"AND(#REF!,\"CjSYRAKu8fI=\")","v":{"$error":"#REF!"}},{"$f":"AND(#REF!,\"CjSYRAKu8fM=\")","v":{"$error":"#REF!"}},{"$f":"AND(#REF!,\"CjSYRAKu8fQ=\")","v":{"$error":"#REF!"}},{"$f":"AND(#REF!,\"CjSYRAKu8fU=\")","v":{"$error":"#REF!"}},{"$f":"AND(#REF!,\"CjSYRAKu8fY=\")","v":{"$error":"#REF!"}},{"$f":"AND(#REF!,\"CjSYRAKu8fc=\")","v":{"$error":"#REF!"}},{"$f":"AND(#REF!,\"CjSYRAKu8fg=\")","v":{"$error":"#REF!"}},{"$f":"AND(#REF!,\"CjSYRAKu8fk=\")","v":{"$error":"#REF!"}},{"$f":"AND(#REF!,\"CjSYRAKu8fo=\")","v":{"$error":"#REF!"}},{"$f":"AND(#REF!,\"CjSYRAKu8fs=\")","v":{"$error":"#REF!"}},{"$f":"AND(#REF!,\"CjSYRAKu8fw=\")","v":{"$error":"#REF!"}},{"$f":"IF(#REF!,\"CjSYRAKu8f0=\",0)","v":{"$error":"#REF!"}},{"$f":"AND(#REF!,\"CjSYRAKu8f4=\")","v":{"$error":"#REF!"}},{"$f":"AND(#REF!,\"CjSYRAKu8f8=\")","v":{"$error":"#REF!"}}]
[{"$f":"AND(#REF!,\"PA0zhWuIAQA=\")","v":{"$error":"#REF!"}},{"$f":"AND(#REF!,\"PA0zhWuIAQE=\")","v":{"$error":"#REF!"}},{"$f":"AND(#REF!,\"PA0zhWuIAQI=\")","v":{"$error":"#REF!"}},{"$f":"AND(#REF!,\"PA0zhWuIAQM=\")","v":{"$error":"#REF!"}},{"$f":"AND(#REF!,\"PA0zhWuIAQQ=\")","v":{"$error":"#REF!"}},{"$f":"AND(#REF!,\"PA0zhWuIAQU=\")","v":{"$error":"#REF!"}},{"$f":"AND(#REF!,\"PA0zhWuIAQY=\")","v":{"$error":"#REF!"}},{"$f":"AND(#REF!,\"PA0zhWuIAQc=\")","v":{"$error":"#REF!"}},{"$f":"AND(#REF!,\"PA0zhWuIAQg=\")","v":{"$error":"#REF!"}},{"$f":"AND(#REF!,\"PA0zhWuIAQk=\")","v":{"$error":"#REF!"}},{"$f":"AND(#REF!,\"PA0zhWuIAQo=\")","v":{"$error":"#REF!"}},{"$f":"AND(#REF!,\"PA0zhWuIAQs=\")","v":{"$error":"#REF!"}},{"$f":"AND(#REF!,\"PA0zhWuIAQw=\")","v":{"$error":"#REF!"}},{"$f":"AND(#REF!,\"PA0zhWuIAQ0=\")","v":{"$error":"#REF!"}},{"$f":"AND(#REF!,\"PA0zhWuIAQ4=\")","v":{"$error":"#REF!"}},{"$f":"AND(#REF!,\"PA0zhWuIAQ8=\")","v":{"$error":"#REF!"}},{"$f":"AND(#REF!,\"PA0zhWuIARA=\")","v":{"$error":"#REF!"}},{"$f":"AND(#REF!,\"PA0zhWuIARE=\")","v":{"$error":"#REF!"}},{"$f":"AND(#REF!,\"PA0zhWuIARI=\")","v":{"$error":"#REF!"}},{"$f":"AND(#REF!,\"PA0zhWuIARM=\")","v":{"$error":"#REF!"}},{"$f":"AND(#REF!,\"PA0zhWuIARQ=\")","v":{"$error":"#REF!"}},{"$f":"AND(#REF!,\"PA0zhWuIARU=\")","v":{"$error":"#REF!"}},{"$f":"AND(#REF!,\"PA0zhWuIARY=\")","v":{"$error":"#REF!"}},{"$f":"AND(#REF!,\"PA0zhWuIARc=\")","v":{"$error":"#REF!"}},{"$f":"AND(#REF!,\"PA0zhWuIARg=\")","v":{"$error":"#REF!"}},{"$f":"AND(#REF!,\"PA0zhWuIARk=\")","v":{"$error":"#REF!"}},{"$f":"AND(#REF!,\"PA0zhWuIARo=\")","v":{"$error":"#REF!"}},{"$f":"AND(#REF!,\"PA0zhWuIARs=\")","v":{"$error":"#REF!"}},{"$f":"AND(#REF!,\"PA0zhWuIARw=\")","v":{"$error":"#REF!"}},{"$f":"AND(#REF!,\"PA0zhWuIAR0=\")","v":{"$error":"#REF!"}},{"$f":"AND(#REF!,\"PA0zhWuIAR4=\")","v":{"$error":"#REF!"}},{"$f":"AND(#REF!,\"PA0zhWuIAR8=\")","v":{"$error":"#REF!"}},{"$f":"AND(#REF!,\"PA0zhWuIASA=\")","v":{"$error":"#REF!"}},{"$f":"AND(#REF!,\"PA0zhWuIASE=\")","v":{"$error":"#REF!"}},{"$f":"AND(#REF!,\"PA0zhWuIASI=\")","v":{"$error":"#REF!"}},{"$f":"AND(#REF!,\"PA0zhWuIASM=\")","v":{"$error":"#REF!"}},{"$f":"AND(#REF!,\"PA0zhWuIASQ=\")","v":{"$error":"#REF!"}},{"$f":"AND(#REF!,\"PA0zhWuIASU=\")","v":{"$error":"#REF!"}},{"$f":"AND(#REF!,\"PA0zhWuIASY=\")","v":{"$error":"#REF!"}},{"$f":"AND(#REF!,\"PA0zhWuIASc=\")","v":{"$error":"#REF!"}},{"$f":"AND(#REF!,\"PA0zhWuIASg=\")","v":{"$error":"#REF!"}},{"$f":"AND(#REF!,\"PA0zhWuIASk=\")","v":{"$error":"#REF!"}},{"$f":"AND(#REF!,\"PA0zhWuIASo=\")","v":{"$error":"#REF!"}},{"$f":"AND(#REF!,\"PA0zhWuIASs=\")","v":{"$error":"#REF!"}},{"$f":"AND(#REF!,\"PA0zhWuIASw=\")","v":{"$error":"#REF!"}},{"$f":"AND(#REF!,\"PA0zhWuIAS0=\")","v":{"$error":"#REF!"}},{"$f":"AND(#REF!,\"PA0zhWuIAS4=\")","v":{"$error":"#REF!"}},{"$f":"AND(#REF!,\"PA0zhWuIAS8=\")","v":{"$error":"#REF!"}},{"$f":"AND(#REF!,\"PA0zhWuIATA=\")","v":{"$error":"#REF!"}},{"$f":"AND(#REF!,\"PA0zhWuIATE=\")","v":{"$error":"#REF!"}},{"$f":"AND(#REF!,\"PA0zhWuIATI=\")","v":{"$error":"#REF!"}},{"$f":"AND(#REF!,\"PA0zhWuIATM=\")","v":{"$error":"#REF!"}},{"$f":"AND(#REF!,\"PA0zhWuIATQ=\")","v":{"$error":"#REF!"}},{"$f":"AND(#REF!,\"PA0zhWuIATU=\")","v":{"$error":"#REF!"}},{"$f":"AND(#REF!,\"PA0zhWuIATY=\")","v":{"$error":"#REF!"}},{"$f":"AND(#REF!,\"PA0zhWuIATc=\")","v":{"$error":"#REF!"}},{"$f":"AND(#REF!,\"PA0zhWuIATg=\")","v":{"$error":"#REF!"}},{"$f":"AND(#REF!,\"PA0zhWuIATk=\")","v":{"$error":"#REF!"}},{"$f":"AND(#REF!,\"PA0zhWuIATo=\")","v":{"$error":"#REF!"}},{"$f":"AND(#REF!,\"PA0zhWuIATs=\")","v":{"$error":"#REF!"}},{"$f":"AND(#REF!,\"PA0zhWuIATw=\")","v":{"$error":"#REF!"}},{"$f":"AND(#REF!,\"PA0zhWuIAT0=\")","v":{"$error":"#REF!"}},{"$f":"AND(#REF!,\"PA0zhWuIAT4=\")","v":{"$error":"#REF!"}},{"$f":"AND(#REF!,\"PA0zhWuIAT8=\")","v":{"$error":"#REF!"}},{"$f":"AND(#REF!,\"PA0zhWuIAUA=\")","v":{"$error":"#REF!"}},{"$f":"AND(#REF!,\"PA0zhWuIAUE=\")","v":{"$error":"#REF!"}},{"$f":"AND(#REF!,\"PA0zhWuIAUI=\")","v":{"$error":"#REF!"}},{"$f":"AND(#REF!,\"PA0zhWuIAUM=\")","v":{"$error":"#REF!"}},{"$f":"AND(#REF!,\"PA0zhWuIAUQ=\")","v":{"$error":"#REF!"}},{"$f":"AND(#REF!,\"PA0zhWuIAUU=\")","v":{"$error":"#REF!"}},{"$f":"AND(#REF!,\"PA0zhWuIAUY=\")","v":{"$error":"#REF!"}},{"$f":"AND(#REF!,\"PA0zhWuIAUc=\")","v":{"$error":"#REF!"}},{"$f":"AND(#REF!,\"PA0zhWuIAUg=\")","v":{"$error":"#REF!"}},{"$f":"AND(#REF!,\"PA0zhWuIAUk=\")","v":{"$error":"#REF!"}},{"$f":"AND(#REF!,\"PA0zhWuIAUo=\")","v":{"$error":"#REF!"}},{"$f":"AND(#REF!,\"PA0zhWuIAUs=\")","v":{"$error":"#REF!"}},{"$f":"AND(#REF!,\"PA0zhWuIAUw=\")","v":{"$error":"#REF!"}},{"$f":"AND(#REF!,\"PA0zhWuIAU0=\")","v":{"$error":"#REF!"}},{"$f":"AND(#REF!,\"PA0zhWuIAU4=\")","v":{"$error":"#REF!"}},{"$f":"AND(#REF!,\"PA0zhWuIAU8=\")","v":{"$error":"#REF!"}},{"$f":"AND(#REF!,\"PA0zhWuIAVA=\")","v":{"$error":"#REF!"}},{"$f":"AND(#REF!,\"PA0zhWuIAVE=\")","v":{"$error":"#REF!"}},{"$f":"AND(#REF!,\"PA0zhWuIAVI=\")","v":{"$error":"#REF!"}},{"$f":"AND(#REF!,\"PA0zhWuIAVM=\")","v":{"$error":"#REF!"}},{"$f":"AND(#REF!,\"PA0zhWuIAVQ=\")","v":{"$error":"#REF!"}},{"$f":"AND(#REF!,\"PA0zhWuIAVU=\")","v":{"$error":"#REF!"}},{"$f":"AND(#REF!,\"PA0zhWuIAVY=\")","v":{"$error":"#REF!"}},{"$f":"AND(#REF!,\"PA0zhWuIAVc=\")","v":{"$error":"#REF!"}},{"$f":"AND(#REF!,\"PA0zhWuIAVg=\")","v":{"$error":"#REF!"}},{"$f":"AND(#REF!,\"PA0zhWuIAVk=\")","v":{"$error":"#REF!"}},{"$f":"AND(#REF!,\"PA0zhWuIAVo=\")","v":{"$error":"#REF!"}},{"$f":"AND(#REF!,\"PA0zhWuIAVs=\")","v":{"$error":"#REF!"}},{"$f":"AND(#REF!,\"PA0zhWuIAVw=\")","v":{"$error":"#REF!"}},{"$f":"AND(#REF!,\"PA0zhWuIAV0=\")","v":{"$error":"#REF!"}},{"$f":"AND(#REF!,\"PA0zhWuIAV4=\")","v":{"$error":"#REF!"}},{"$f":"AND(#REF!,\"PA0zhWuIAV8=\")","v":{"$error":"#REF!"}},{"$f":"AND(#REF!,\"PA0zhWuIAWA=\")","v":{"$error":"#REF!"}},{"$f":"AND(#REF!,\"PA0zhWuIAWE=\")","v":{"$error":"#REF!"}},{"$f":"AND(#REF!,\"PA0zhWuIAWI=\")","v":{"$error":"#REF!"}},{"$f":"AND(#REF!,\"PA0zhWuIAWM=\")","v":{"$error":"#REF!"}},{"$f":"AND(#REF!,\"PA0zhWuIAWQ=\")","v":{"$error":"#REF!"}},{"$f":"AND(#REF!,\"PA0zhWuIAWU=\")","v":{"$error":"#REF!"}},{"$f":"AND(#REF!,\"PA0zhWuIAWY=\")","v":{"$error":"#REF!"}},{"$f":"AND(#REF!,\"PA0zhWuIAWc=\")","v":{"$error":"#REF!"}},{"$f":"AND(#REF!,\"PA0zhWuIAWg=\")","v":{"$error":"#REF!"}},{"$f":"AND(#REF!,\"PA0zhWuIAWk=\")","v":{"$error":"#REF!"}},{"$f":"AND(#REF!,\"PA0zhWuIAWo=\")","v":{"$error":"#REF!"}},{"$f":"AND(#REF!,\"PA0zhWuIAWs=\")","v":{"$error":"#REF!"}},{"$f":"AND(#REF!,\"PA0zhWuIAWw=\")","v":{"$error":"#REF!"}},{"$f":"AND(#REF!,\"PA0zhWuIAW0=\")","v":{"$error":"#REF!"}},{"$f":"AND(#REF!,\"PA0zhWuIAW4=\")","v":{"$error":"#REF!"}},{"$f":"AND(#REF!,\"PA0zhWuIAW8=\")","v":{"$error":"#REF!"}},{"$f":"AND(#REF!,\"PA0zhWuIAXA=\")","v":{"$error":"#REF!"}},{"$f":"AND(#REF!,\"PA0zhWuIAXE=\")","v":{"$error":"#REF!"}},{"$f":"AND(#REF!,\"PA0zhWuIAXI=\")","v":{"$error":"#REF!"}},{"$f":"AND(#REF!,\"PA0zhWuIAXM=\")","v":{"$error":"#REF!"}},{"$f":"AND(#REF!,\"PA0zhWuIAXQ=\")","v":{"$error":"#REF!"}},{"$f":"AND(#REF!,\"PA0zhWuIAXU=\")","v":{"$error":"#REF!"}},{"$f":"AND(#REF!,\"PA0zhWuIAXY=\")","v":{"$error":"#REF!"}},{"$f":"AND(#REF!,\"PA0zhWuIAXc=\")","v":{"$error":"#REF!"}},{"$f":"AND(#REF!,\"PA0zhWuIAXg=\")","v":{"$error":"#REF!"}},{"$f":"AND(#REF!,\"PA0zhWuIAXk=\")","v":{"$error":"#REF!"}},{"$f":"AND(#REF!,\"PA0zhWuIAXo=\")","v":{"$error":"#REF!"}},{"$f":"AND(#REF!,\"PA0zhWuIAXs=\")","v":{"$error":"#REF!"}},{"$f":"AND(#REF!,\"PA0zhWuIAXw=\")","v":{"$error":"#REF!"}},{"$f":"AND(#REF!,\"PA0zhWuIAX0=\")","v":{"$error":"#REF!"}},{"$f":"AND(#REF!,\"PA0zhWuIAX4=\")","v":{"$error":"#REF!"}},{"$f":"AND(#REF!,\"PA0zhWuIAX8=\")","v":{"$error":"#REF!"}},{"$f":"AND(#REF!,\"PA0zhWuIAYA=\")","v":{"$error":"#REF!"}},{"$f":"AND(#REF!,\"PA0zhWuIAYE=\")","v":{"$error":"#REF!"}},{"$f":"AND(#REF!,\"PA0zhWuIAYI=\")","v":{"$error":"#REF!"}},{"$f":"AND(#REF!,\"PA0zhWuIAYM=\")","v":{"$error":"#REF!"}},{"$f":"AND(#REF!,\"PA0zhWuIAYQ=\")","v":{"$error":"#REF!"}},{"$f":"AND(#REF!,\"PA0zhWuIAYU=\")","v":{"$error":"#REF!"}},{"$f":"AND(#REF!,\"PA0zhWuIAYY=\")","v":{"$error":"#REF!"}},{"$f":"AND(#REF!,\"PA0zhWuIAYc=\")","v":{"$error":"#REF!"}},{"$f":"AND(#REF!,\"PA0zhWuIAYg=\")","v":{"$error":"#REF!"}},{"$f":"AND(#REF!,\"PA0zhWuIAYk=\")","v":{"$error":"#REF!"}},{"$f":"AND(#REF!,\"PA0zhWuIAYo=\")","v":{"$error":"#REF!"}},{"$f":"AND(#REF!,\"PA0zhWuIAYs=\")","v":{"$error":"#REF!"}},{"$f":"AND(#REF!,\"PA0zhWuIAYw=\")","v":{"$error":"#REF!"}},{"$f":"AND(#REF!,\"PA0zhWuIAY0=\")","v":{"$error":"#REF!"}},{"$f":"AND(#REF!,\"PA0zhWuIAY4=\")","v":{"$error":"#REF!"}},{"$f":"AND(#REF!,\"PA0zhWuIAY8=\")","v":{"$error":"#REF!"}},{"$f":"AND(#REF!,\"PA0zhWuIAZA=\")","v":{"$error":"#REF!"}},{"$f":"AND(#REF!,\"PA0zhWuIAZE=\")","v":{"$error":"#REF!"}},{"$f":"AND(#REF!,\"PA0zhWuIAZI=\")","v":{"$error":"#REF!"}},{"$f":"AND(#REF!,\"PA0zhWuIAZM=\")","v":{"$error":"#REF!"}},{"$f":"AND(#REF!,\"PA0zhWuIAZQ=\")","v":{"$error":"#REF!"}},{"$f":"AND(#REF!,\"PA0zhWuIAZU=\")","v":{"$error":"#REF!"}},{"$f":"AND(#REF!,\"PA0zhWuIAZY=\")","v":{"$error":"#REF!"}},{"$f":"AND(#REF!,\"PA0zhWuIAZc=\")","v":{"$error":"#REF!"}},{"$f":"AND(#REF!,\"PA0zhWuIAZg=\")","v":{"$error":"#REF!"}},{"$f":"AND(#REF!,\"PA0zhWuIAZk=\")","v":{"$error":"#REF!"}},{"$f":"AND(#REF!,\"PA0zhWuIAZo=\")","v":{"$error":"#REF!"}},{"$f":"AND(#REF!,\"PA0zhWuIAZs=\")","v":{"$error":"#REF!"}},{"$f":"AND(#REF!,\"PA0zhWuIAZw=\")","v":{"$error":"#REF!"}},{"$f":"AND(#REF!,\"PA0zhWuIAZ0=\")","v":{"$error":"#REF!"}},{"$f":"AND(#REF!,\"PA0zhWuIAZ4=\")","v":{"$error":"#REF!"}},{"$f":"AND(#REF!,\"PA0zhWuIAZ8=\")","v":{"$error":"#REF!"}},{"$f":"AND(#REF!,\"PA0zhWuIAaA=\")","v":{"$error":"#REF!"}},{"$f":"AND(#REF!,\"PA0zhWuIAaE=\")","v":{"$error":"#REF!"}},{"$f":"AND(#REF!,\"PA0zhWuIAaI=\")","v":{"$error":"#REF!"}},{"$f":"AND(#REF!,\"PA0zhWuIAaM=\")","v":{"$error":"#REF!"}},{"$f":"AND(#REF!,\"PA0zhWuIAaQ=\")","v":{"$error":"#REF!"}},{"$f":"AND(#REF!,\"PA0zhWuIAaU=\")","v":{"$error":"#REF!"}},{"$f":"AND(#REF!,\"PA0zhWuIAaY=\")","v":{"$error":"#REF!"}},{"$f":"AND(#REF!,\"PA0zhWuIAac=\")","v":{"$error":"#REF!"}},{"$f":"AND(#REF!,\"PA0zhWuIAag=\")","v":{"$error":"#REF!"}},{"$f":"AND(#REF!,\"PA0zhWuIAak=\")","v":{"$error":"#REF!"}},{"$f":"AND(#REF!,\"PA0zhWuIAao=\")","v":{"$error":"#REF!"}},{"$f":"AND(#REF!,\"PA0zhWuIAas=\")","v":{"$error":"#REF!"}},{"$f":"AND(#REF!,\"PA0zhWuIAaw=\")","v":{"$error":"#REF!"}},{"$f":"AND(#REF!,\"PA0zhWuIAa0=\")","v":{"$error":"#REF!"}},{"$f":"AND(#REF!,\"PA0zhWuIAa4=\")","v":{"$error":"#REF!"}},{"$f":"AND(#REF!,\"PA0zhWuIAa8=\")","v":{"$error":"#REF!"}},{"$f":"AND(#REF!,\"PA0zhWuIAbA=\")","v":{"$error":"#REF!"}},{"$f":"AND(#REF!,\"PA0zhWuIAbE=\")","v":{"$error":"#REF!"}},{"$f":"AND(#REF!,\"PA0zhWuIAbI=\")","v":{"$error":"#REF!"}},{"$f":"AND(#REF!,\"PA0zhWuIAbM=\")","v":{"$error":"#REF!"}},{"$f":"AND(#REF!,\"PA0zhWuIAbQ=\")","v":{"$error":"#REF!"}},{"$f":"AND(#REF!,\"PA0zhWuIAbU=\")","v":{"$error":"#REF!"}},{"$f":"AND(#REF!,\"PA0zhWuIAbY=\")","v":{"$error":"#REF!"}},{"$f":"AND(#REF!,\"PA0zhWuIAbc=\")","v":{"$error":"#REF!"}},{"$f":"AND(#REF!,\"PA0zhWuIAbg=\")","v":{"$error":"#REF!"}},{"$f":"AND(#REF!,\"PA0zhWuIAbk=\")","v":{"$error":"#REF!"}},{"$f":"AND(#REF!,\"PA0zhWuIAbo=\")","v":{"$error":"#REF!"}},{"$f":"AND(#REF!,\"PA0zhWuIAbs=\")","v":{"$error":"#REF!"}},{"$f":"AND(#REF!,\"PA0zhWuIAbw=\")","v":{"$error":"#REF!"}},{"$f":"AND(#REF!,\"PA0zhWuIAb0=\")","v":{"$error":"#REF!"}},{"$f":"AND(#REF!,\"PA0zhWuIAb4=\")","v":{"$error":"#REF!"}},{"$f":"AND(#REF!,\"PA0zhWuIAb8=\")","v":{"$error":"#REF!"}},{"$f":"AND(#REF!,\"PA0zhWuIAcA=\")","v":{"$error":"#REF!"}},{"$f":"AND(#REF!,\"PA0zhWuIAcE=\")","v":{"$error":"#REF!"}},{"$f":"AND(#REF!,\"PA0zhWuIAcI=\")","v":{"$error":"#REF!"}},{"$f":"AND(#REF!,\"PA0zhWuIAcM=\")","v":{"$error":"#REF!"}},{"$f":"IF(#REF!,\"PA0zhWuIAcQ=\",0)","v":{"$error":"#REF!"}},{"$f":"AND(#REF!,\"PA0zhWuIAcU=\")","v":{"$error":"#REF!"}},{"$f":"AND(#REF!,\"PA0zhWuIAcY=\")","v":{"$error":"#REF!"}},{"$f":"AND(#REF!,\"PA0zhWuIAcc=\")","v":{"$error":"#REF!"}},{"$f":"AND(#REF!,\"PA0zhWuIAcg=\")","v":{"$error":"#REF!"}},{"$f":"AND(#REF!,\"PA0zhWuIAck=\")","v":{"$error":"#REF!"}},{"$f":"AND(#REF!,\"PA0zhWuIAco=\")","v":{"$error":"#REF!"}},{"$f":"AND(#REF!,\"PA0zhWuIAcs=\")","v":{"$error":"#REF!"}},{"$f":"AND(#REF!,\"PA0zhWuIAcw=\")","v":{"$error":"#REF!"}},{"$f":"AND(#REF!,\"PA0zhWuIAc0=\")","v":{"$error":"#REF!"}},{"$f":"AND(#REF!,\"PA0zhWuIAc4=\")","v":{"$error":"#REF!"}},{"$f":"AND(#REF!,\"PA0zhWuIAc8=\")","v":{"$error":"#REF!"}},{"$f":"AND(#REF!,\"PA0zhWuIAdA=\")","v":{"$error":"#REF!"}},{"$f":"AND(#REF!,\"PA0zhWuIAdE=\")","v":{"$error":"#REF!"}},{"$f":"AND(#REF!,\"PA0zhWuIAdI=\")","v":{"$error":"#REF!"}},{"$f":"AND(#REF!,\"PA0zhWuIAdM=\")","v":{"$error":"#REF!"}},{"$f":"AND(#REF!,\"PA0zhWuIAdQ=\")","v":{"$error":"#REF!"}},{"$f":"AND(#REF!,\"PA0zhWuIAdU=\")","v":{"$error":"#REF!"}},{"$f":"AND(#REF!,\"PA0zhWuIAdY=\")","v":{"$error":"#REF!"}},{"$f":"AND(#REF!,\"PA0zhWuIAdc=\")","v":{"$error":"#REF!"}},{"$f":"AND(#REF!,\"PA0zhWuIAdg=\")","v":{"$error":"#REF!"}},{"$f":"AND(#REF!,\"PA0zhWuIAdk=\")","v":{"$error":"#REF!"}},{"$f":"AND(#REF!,\"PA0zhWuIAdo=\")","v":{"$error":"#REF!"}},{"$f":"AND(#REF!,\"PA0zhWuIAds=\")","v":{"$error":"#REF!"}},{"$f":"AND(#REF!,\"PA0zhWuIAdw=\")","v":{"$error":"#REF!"}},{"$f":"AND(#REF!,\"PA0zhWuIAd0=\")","v":{"$error":"#REF!"}},{"$f":"AND(#REF!,\"PA0zhWuIAd4=\")","v":{"$error":"#REF!"}},{"$f":"AND(#REF!,\"PA0zhWuIAd8=\")","v":{"$error":"#REF!"}},{"$f":"AND(#REF!,\"PA0zhWuIAeA=\")","v":{"$error":"#REF!"}},{"$f":"AND(#REF!,\"PA0zhWuIAeE=\")","v":{"$error":"#REF!"}},{"$f":"AND(#REF!,\"PA0zhWuIAeI=\")","v":{"$error":"#REF!"}},{"$f":"AND(#REF!,\"PA0zhWuIAeM=\")","v":{"$error":"#REF!"}},{"$f":"AND(#REF!,\"PA0zhWuIAeQ=\")","v":{"$error":"#REF!"}},{"$f":"AND(#REF!,\"PA0zhWuIAeU=\")","v":{"$error":"#REF!"}},{"$f":"AND(#REF!,\"PA0zhWuIAeY=\")","v":{"$error":"#REF!"}},{"$f":"AND(#REF!,\"PA0zhWuIAec=\")","v":{"$error":"#REF!"}},{"$f":"AND(#REF!,\"PA0zhWuIAeg=\")","v":{"$error":"#REF!"}},{"$f":"AND(#REF!,\"PA0zhWuIAek=\")","v":{"$error":"#REF!"}},{"$f":"AND(#REF!,\"PA0zhWuIAeo=\")","v":{"$error":"#REF!"}},{"$f":"AND(#REF!,\"PA0zhWuIAes=\")","v":{"$error":"#REF!"}},{"$f":"AND(#REF!,\"PA0zhWuIAew=\")","v":{"$error":"#REF!"}},{"$f":"AND(#REF!,\"PA0zhWuIAe0=\")","v":{"$error":"#REF!"}},{"$f":"AND(#REF!,\"PA0zhWuIAe4=\")","v":{"$error":"#REF!"}},{"$f":"AND(#REF!,\"PA0zhWuIAe8=\")","v":{"$error":"#REF!"}},{"$f":"AND(#REF!,\"PA0zhWuIAfA=\")","v":{"$error":"#REF!"}},{"$f":"AND(#REF!,\"PA0zhWuIAfE=\")","v":{"$error":"#REF!"}},{"$f":"AND(#REF!,\"PA0zhWuIAfI=\")","v":{"$error":"#REF!"}},{"$f":"AND(#REF!,\"PA0zhWuIAfM=\")","v":{"$error":"#REF!"}},{"$f":"AND(#REF!,\"PA0zhWuIAfQ=\")","v":{"$error":"#REF!"}},{"$f":"AND(#REF!,\"PA0zhWuIAfU=\")","v":{"$error":"#REF!"}},{"$f":"AND(#REF!,\"PA0zhWuIAfY=\")","v":{"$error":"#REF!"}},{"$f":"AND(#REF!,\"PA0zhWuIAfc=\")","v":{"$error":"#REF!"}},{"$f":"AND(#REF!,\"PA0zhWuIAfg=\")","v":{"$error":"#REF!"}},{"$f":"AND(#REF!,\"PA0zhWuIAfk=\")","v":{"$error":"#REF!"}},{"$f":"AND(#REF!,\"PA0zhWuIAfo=\")","v":{"$error":"#REF!"}},{"$f":"AND(#REF!,\"PA0zhWuIAfs=\")","v":{"$error":"#REF!"}},{"$f":"AND(#REF!,\"PA0zhWuIAfw=\")","v":{"$error":"#REF!"}},{"$f":"AND(#REF!,\"PA0zhWuIAf0=\")","v":{"$error":"#REF!"}},{"$f":"AND(#REF!,\"PA0zhWuIAf4=\")","v":{"$error":"#REF!"}},{"$f":"AND(#REF!,\"PA0zhWuIAf8=\")","v":{"$error":"#REF!"}}]
[{"$f":"AND(#REF!,\"VUJyzXdBbQA=\")","v":{"$error":"#REF!"}},{"$f":"AND(#REF!,\"VUJyzXdBbQE=\")","v":{"$error":"#REF!"}},{"$f":"AND(#REF!,\"VUJyzXdBbQI=\")","v":{"$error":"#REF!"}},{"$f":"AND(#REF!,\"VUJyzXdBbQM=\")","v":{"$error":"#REF!"}},{"$f":"AND(#REF!,\"VUJyzXdBbQQ=\")","v":{"$error":"#REF!"}},{"$f":"AND(#REF!,\"VUJyzXdBbQU=\")","v":{"$error":"#REF!"}},{"$f":"AND(#REF!,\"VUJyzXdBbQY=\")","v":{"$error":"#REF!"}},{"$f":"AND(#REF!,\"VUJyzXdBbQc=\")","v":{"$error":"#REF!"}},{"$f":"AND(#REF!,\"VUJyzXdBbQg=\")","v":{"$error":"#REF!"}},{"$f":"AND(#REF!,\"VUJyzXdBbQk=\")","v":{"$error":"#REF!"}},{"$f":"AND(#REF!,\"VUJyzXdBbQo=\")","v":{"$error":"#REF!"}},{"$f":"AND(#REF!,\"VUJyzXdBbQs=\")","v":{"$error":"#REF!"}},{"$f":"AND(#REF!,\"VUJyzXdBbQw=\")","v":{"$error":"#REF!"}},{"$f":"AND(#REF!,\"VUJyzXdBbQ0=\")","v":{"$error":"#REF!"}},{"$f":"AND(#REF!,\"VUJyzXdBbQ4=\")","v":{"$error":"#REF!"}},{"$f":"AND(#REF!,\"VUJyzXdBbQ8=\")","v":{"$error":"#REF!"}},{"$f":"AND(#REF!,\"VUJyzXdBbRA=\")","v":{"$error":"#REF!"}},{"$f":"AND(#REF!,\"VUJyzXdBbRE=\")","v":{"$error":"#REF!"}},{"$f":"AND(#REF!,\"VUJyzXdBbRI=\")","v":{"$error":"#REF!"}},{"$f":"AND(#REF!,\"VUJyzXdBbRM=\")","v":{"$error":"#REF!"}},{"$f":"AND(#REF!,\"VUJyzXdBbRQ=\")","v":{"$error":"#REF!"}},{"$f":"AND(#REF!,\"VUJyzXdBbRU=\")","v":{"$error":"#REF!"}},{"$f":"AND(#REF!,\"VUJyzXdBbRY=\")","v":{"$error":"#REF!"}},{"$f":"AND(#REF!,\"VUJyzXdBbRc=\")","v":{"$error":"#REF!"}},{"$f":"AND(#REF!,\"VUJyzXdBbRg=\")","v":{"$error":"#REF!"}},{"$f":"AND(#REF!,\"VUJyzXdBbRk=\")","v":{"$error":"#REF!"}},{"$f":"AND(#REF!,\"VUJyzXdBbRo=\")","v":{"$error":"#REF!"}},{"$f":"AND(#REF!,\"VUJyzXdBbRs=\")","v":{"$error":"#REF!"}},{"$f":"AND(#REF!,\"VUJyzXdBbRw=\")","v":{"$error":"#REF!"}},{"$f":"AND(#REF!,\"VUJyzXdBbR0=\")","v":{"$error":"#REF!"}},{"$f":"AND(#REF!,\"VUJyzXdBbR4=\")","v":{"$error":"#REF!"}},{"$f":"AND(#REF!,\"VUJyzXdBbR8=\")","v":{"$error":"#REF!"}},{"$f":"AND(#REF!,\"VUJyzXdBbSA=\")","v":{"$error":"#REF!"}},{"$f":"AND(#REF!,\"VUJyzXdBbSE=\")","v":{"$error":"#REF!"}},{"$f":"AND(#REF!,\"VUJyzXdBbSI=\")","v":{"$error":"#REF!"}},{"$f":"AND(#REF!,\"VUJyzXdBbSM=\")","v":{"$error":"#REF!"}},{"$f":"AND(#REF!,\"VUJyzXdBbSQ=\")","v":{"$error":"#REF!"}},{"$f":"AND(#REF!,\"VUJyzXdBbSU=\")","v":{"$error":"#REF!"}},{"$f":"AND(#REF!,\"VUJyzXdBbSY=\")","v":{"$error":"#REF!"}},{"$f":"AND(#REF!,\"VUJyzXdBbSc=\")","v":{"$error":"#REF!"}},{"$f":"AND(#REF!,\"VUJyzXdBbSg=\")","v":{"$error":"#REF!"}},{"$f":"AND(#REF!,\"VUJyzXdBbSk=\")","v":{"$error":"#REF!"}},{"$f":"AND(#REF!,\"VUJyzXdBbSo=\")","v":{"$error":"#REF!"}},{"$f":"AND(#REF!,\"VUJyzXdBbSs=\")","v":{"$error":"#REF!"}},{"$f":"AND(#REF!,\"VUJyzXdBbSw=\")","v":{"$error":"#REF!"}},{"$f":"AND(#REF!,\"VUJyzXdBbS0=\")","v":{"$error":"#REF!"}},{"$f":"AND(#REF!,\"VUJyzXdBbS4=\")","v":{"$error":"#REF!"}},{"$f":"AND(#REF!,\"VUJyzXdBbS8=\")","v":{"$error":"#REF!"}},{"$f":"AND(#REF!,\"VUJyzXdBbTA=\")","v":{"$error":"#REF!"}},{"$f":"AND(#REF!,\"VUJyzXdBbTE=\")","v":{"$error":"#REF!"}},{"$f":"AND(#REF!,\"VUJyzXdBbTI=\")","v":{"$error":"#REF!"}},{"$f":"AND(#REF!,\"VUJyzXdBbTM=\")","v":{"$error":"#REF!"}},{"$f":"AND(#REF!,\"VUJyzXdBbTQ=\")","v":{"$error":"#REF!"}},{"$f":"AND(#REF!,\"VUJyzXdBbTU=\")","v":{"$error":"#REF!"}},{"$f":"AND(#REF!,\"VUJyzXdBbTY=\")","v":{"$error":"#REF!"}},{"$f":"AND(#REF!,\"VUJyzXdBbTc=\")","v":{"$error":"#REF!"}},{"$f":"AND(#REF!,\"VUJyzXdBbTg=\")","v":{"$error":"#REF!"}},{"$f":"AND(#REF!,\"VUJyzXdBbTk=\")","v":{"$error":"#REF!"}},{"$f":"AND(#REF!,\"VUJyzXdBbTo=\")","v":{"$error":"#REF!"}},{"$f":"AND(#REF!,\"VUJyzXdBbTs=\")","v":{"$error":"#REF!"}},{"$f":"AND(#REF!,\"VUJyzXdBbTw=\")","v":{"$error":"#REF!"}},{"$f":"AND(#REF!,\"VUJyzXdBbT0=\")","v":{"$error":"#REF!"}},{"$f":"AND(#REF!,\"VUJyzXdBbT4=\")","v":{"$error":"#REF!"}},{"$f":"AND(#REF!,\"VUJyzXdBbT8=\")","v":{"$error":"#REF!"}},{"$f":"AND(#REF!,\"VUJyzXdBbUA=\")","v":{"$error":"#REF!"}},{"$f":"AND(#REF!,\"VUJyzXdBbUE=\")","v":{"$error":"#REF!"}},{"$f":"AND(#REF!,\"VUJyzXdBbUI=\")","v":{"$error":"#REF!"}},{"$f":"AND(#REF!,\"VUJyzXdBbUM=\")","v":{"$error":"#REF!"}},{"$f":"AND(#REF!,\"VUJyzXdBbUQ=\")","v":{"$error":"#REF!"}},{"$f":"AND(#REF!,\"VUJyzXdBbUU=\")","v":{"$error":"#REF!"}},{"$f":"AND(#REF!,\"VUJyzXdBbUY=\")","v":{"$error":"#REF!"}},{"$f":"AND(#REF!,\"VUJyzXdBbUc=\")","v":{"$error":"#REF!"}},{"$f":"AND(#REF!,\"VUJyzXdBbUg=\")","v":{"$error":"#REF!"}},{"$f":"AND(#REF!,\"VUJyzXdBbUk=\")","v":{"$error":"#REF!"}},{"$f":"AND(#REF!,\"VUJyzXdBbUo=\")","v":{"$error":"#REF!"}},{"$f":"AND(#REF!,\"VUJyzXdBbUs=\")","v":{"$error":"#REF!"}},{"$f":"AND(#REF!,\"VUJyzXdBbUw=\")","v":{"$error":"#REF!"}},{"$f":"AND(#REF!,\"VUJyzXdBbU0=\")","v":{"$error":"#REF!"}},{"$f":"AND(#REF!,\"VUJyzXdBbU4=\")","v":{"$error":"#REF!"}},{"$f":"AND(#REF!,\"VUJyzXdBbU8=\")","v":{"$error":"#REF!"}},{"$f":"AND(#REF!,\"VUJyzXdBbVA=\")","v":{"$error":"#REF!"}},{"$f":"AND(#REF!,\"VUJyzXdBbVE=\")","v":{"$error":"#REF!"}},{"$f":"AND(#REF!,\"VUJyzXdBbVI=\")","v":{"$error":"#REF!"}},{"$f":"AND(#REF!,\"VUJyzXdBbVM=\")","v":{"$error":"#REF!"}},{"$f":"AND(#REF!,\"VUJyzXdBbVQ=\")","v":{"$error":"#REF!"}},{"$f":"AND(#REF!,\"VUJyzXdBbVU=\")","v":{"$error":"#REF!"}},{"$f":"AND(#REF!,\"VUJyzXdBbVY=\")","v":{"$error":"#REF!"}},{"$f":"AND(#REF!,\"VUJyzXdBbVc=\")","v":{"$error":"#REF!"}},{"$f":"AND(#REF!,\"VUJyzXdBbVg=\")","v":{"$error":"#REF!"}},{"$f":"AND(#REF!,\"VUJyzXdBbVk=\")","v":{"$error":"#REF!"}},{"$f":"AND(#REF!,\"VUJyzXdBbVo=\")","v":{"$error":"#REF!"}},{"$f":"AND(#REF!,\"VUJyzXdBbVs=\")","v":{"$error":"#REF!"}},{"$f":"AND(#REF!,\"VUJyzXdBbVw=\")","v":{"$error":"#REF!"}},{"$f":"AND(#REF!,\"VUJyzXdBbV0=\")","v":{"$error":"#REF!"}},{"$f":"AND(#REF!,\"VUJyzXdBbV4=\")","v":{"$error":"#REF!"}},{"$f":"AND(#REF!,\"VUJyzXdBbV8=\")","v":{"$error":"#REF!"}},{"$f":"AND(#REF!,\"VUJyzXdBbWA=\")","v":{"$error":"#REF!"}},{"$f":"AND(#REF!,\"VUJyzXdBbWE=\")","v":{"$error":"#REF!"}},{"$f":"AND(#REF!,\"VUJyzXdBbWI=\")","v":{"$error":"#REF!"}},{"$f":"AND(#REF!,\"VUJyzXdBbWM=\")","v":{"$error":"#REF!"}},{"$f":"AND(#REF!,\"VUJyzXdBbWQ=\")","v":{"$error":"#REF!"}},{"$f":"AND(#REF!,\"VUJyzXdBbWU=\")","v":{"$error":"#REF!"}},{"$f":"AND(#REF!,\"VUJyzXdBbWY=\")","v":{"$error":"#REF!"}},{"$f":"AND(#REF!,\"VUJyzXdBbWc=\")","v":{"$error":"#REF!"}},{"$f":"AND(#REF!,\"VUJyzXdBbWg=\")","v":{"$error":"#REF!"}},{"$f":"AND(#REF!,\"VUJyzXdBbWk=\")","v":{"$error":"#REF!"}},{"$f":"AND(#REF!,\"VUJyzXdBbWo=\")","v":{"$error":"#REF!"}},{"$f":"AND(#REF!,\"VUJyzXdBbWs=\")","v":{"$error":"#REF!"}},{"$f":"AND(#REF!,\"VUJyzXdBbWw=\")","v":{"$error":"#REF!"}},{"$f":"AND(#REF!,\"VUJyzXdBbW0=\")","v":{"$error":"#REF!"}},{"$f":"AND(#REF!,\"VUJyzXdBbW4=\")","v":{"$error":"#REF!"}},{"$f":"AND(#REF!,\"VUJyzXdBbW8=\")","v":{"$error":"#REF!"}},{"$f":"AND(#REF!,\"VUJyzXdBbXA=\")","v":{"$error":"#REF!"}},{"$f":"AND(#REF!,\"VUJyzXdBbXE=\")","v":{"$error":"#REF!"}},{"$f":"AND(#REF!,\"VUJyzXdBbXI=\")","v":{"$error":"#REF!"}},{"$f":"AND(#REF!,\"VUJyzXdBbXM=\")","v":{"$error":"#REF!"}},{"$f":"AND(#REF!,\"VUJyzXdBbXQ=\")","v":{"$error":"#REF!"}},{"$f":"AND(#REF!,\"VUJyzXdBbXU=\")","v":{"$error":"#REF!"}},{"$f":"AND(#REF!,\"VUJyzXdBbXY=\")","v":{"$error":"#REF!"}},{"$f":"AND(#REF!,\"VUJyzXdBbXc=\")","v":{"$error":"#REF!"}},{"$f":"AND(#REF!,\"VUJyzXdBbXg=\")","v":{"$error":"#REF!"}},{"$f":"AND(#REF!,\"VUJyzXdBbXk=\")","v":{"$error":"#REF!"}},{"$f":"AND(#REF!,\"VUJyzXdBbXo=\")","v":{"$error":"#REF!"}},{"$f":"AND(#REF!,\"VUJyzXdBbXs=\")","v":{"$error":"#REF!"}},{"$f":"AND(#REF!,\"VUJyzXdBbXw=\")","v":{"$error":"#REF!"}},{"$f":"AND(#REF!,\"VUJyzXdBbX0=\")","v":{"$error":"#REF!"}},{"$f":"AND(#REF!,\"VUJyzXdBbX4=\")","v":{"$error":"#REF!"}},{"$f":"AND(#REF!,\"VUJyzXdBbX8=\")","v":{"$error":"#REF!"}},{"$f":"AND(#REF!,\"VUJyzXdBbYA=\")","v":{"$error":"#REF!"}},{"$f":"AND(#REF!,\"VUJyzXdBbYE=\")","v":{"$error":"#REF!"}},{"$f":"AND(#REF!,\"VUJyzXdBbYI=\")","v":{"$error":"#REF!"}},{"$f":"AND(#REF!,\"VUJyzXdBbYM=\")","v":{"$error":"#REF!"}},{"$f":"AND(#REF!,\"VUJyzXdBbYQ=\")","v":{"$error":"#REF!"}},{"$f":"AND(#REF!,\"VUJyzXdBbYU=\")","v":{"$error":"#REF!"}},{"$f":"AND(#REF!,\"VUJyzXdBbYY=\")","v":{"$error":"#REF!"}},{"$f":"AND(#REF!,\"VUJyzXdBbYc=\")","v":{"$error":"#REF!"}},{"$f":"AND(#REF!,\"VUJyzXdBbYg=\")","v":{"$error":"#REF!"}},{"$f":"AND(#REF!,\"VUJyzXdBbYk=\")","v":{"$error":"#REF!"}},{"$f":"AND(#REF!,\"VUJyzXdBbYo=\")","v":{"$error":"#REF!"}},{"$f":"IF(#REF!,\"VUJyzXdBbYs=\",0)","v":{"$error":"#REF!"}},{"$f":"AND(#REF!,\"VUJyzXdBbYw=\")","v":{"$error":"#REF!"}},{"$f":"AND(#REF!,\"VUJyzXdBbY0=\")","v":{"$error":"#REF!"}},{"$f":"AND(#REF!,\"VUJyzXdBbY4=\")","v":{"$error":"#REF!"}},{"$f":"AND(#REF!,\"VUJyzXdBbY8=\")","v":{"$error":"#REF!"}},{"$f":"AND(#REF!,\"VUJyzXdBbZA=\")","v":{"$error":"#REF!"}},{"$f":"AND(#REF!,\"VUJyzXdBbZE=\")","v":{"$error":"#REF!"}},{"$f":"AND(#REF!,\"VUJyzXdBbZI=\")","v":{"$error":"#REF!"}},{"$f":"AND(#REF!,\"VUJyzXdBbZM=\")","v":{"$error":"#REF!"}},{"$f":"AND(#REF!,\"VUJyzXdBbZQ=\")","v":{"$error":"#REF!"}},{"$f":"AND(#REF!,\"VUJyzXdBbZU=\")","v":{"$error":"#REF!"}},{"$f":"AND(#REF!,\"VUJyzXdBbZY=\")","v":{"$error":"#REF!"}},{"$f":"AND(#REF!,\"VUJyzXdBbZc=\")","v":{"$error":"#REF!"}},{"$f":"AND(#REF!,\"VUJyzXdBbZg=\")","v":{"$error":"#REF!"}},{"$f":"AND(#REF!,\"VUJyzXdBbZk=\")","v":{"$error":"#REF!"}},{"$f":"AND(#REF!,\"VUJyzXdBbZo=\")","v":{"$error":"#REF!"}},{"$f":"AND(#REF!,\"VUJyzXdBbZs=\")","v":{"$error":"#REF!"}},{"$f":"AND(#REF!,\"VUJyzXdBbZw=\")","v":{"$error":"#REF!"}},{"$f":"AND(#REF!,\"VUJyzXdBbZ0=\")","v":{"$error":"#REF!"}},{"$f":"AND(#REF!,\"VUJyzXdBbZ4=\")","v":{"$error":"#REF!"}},{"$f":"AND(#REF!,\"VUJyzXdBbZ8=\")","v":{"$error":"#REF!"}},{"$f":"AND(#REF!,\"VUJyzXdBbaA=\")","v":{"$error":"#REF!"}},{"$f":"AND(#REF!,\"VUJyzXdBbaE=\")","v":{"$error":"#REF!"}},{"$f":"AND(#REF!,\"VUJyzXdBbaI=\")","v":{"$error":"#REF!"}},{"$f":"AND(#REF!,\"VUJyzXdBbaM=\")","v":{"$error":"#REF!"}},{"$f":"AND(#REF!,\"VUJyzXdBbaQ=\")","v":{"$error":"#REF!"}},{"$f":"AND(#REF!,\"VUJyzXdBbaU=\")","v":{"$error":"#REF!"}},{"$f":"AND(#REF!,\"VUJyzXdBbaY=\")","v":{"$error":"#REF!"}},{"$f":"AND(#REF!,\"VUJyzXdBbac=\")","v":{"$error":"#REF!"}},{"$f":"AND(#REF!,\"VUJyzXdBbag=\")","v":{"$error":"#REF!"}},{"$f":"AND(#REF!,\"VUJyzXdBbak=\")","v":{"$error":"#REF!"}},{"$f":"AND(#REF!,\"VUJyzXdBbao=\")","v":{"$error":"#REF!"}},{"$f":"AND(#REF!,\"VUJyzXdBbas=\")","v":{"$error":"#REF!"}},{"$f":"AND(#REF!,\"VUJyzXdBbaw=\")","v":{"$error":"#REF!"}},{"$f":"AND(#REF!,\"VUJyzXdBba0=\")","v":{"$error":"#REF!"}},{"$f":"AND(#REF!,\"VUJyzXdBba4=\")","v":{"$error":"#REF!"}},{"$f":"AND(#REF!,\"VUJyzXdBba8=\")","v":{"$error":"#REF!"}},{"$f":"AND(#REF!,\"VUJyzXdBbbA=\")","v":{"$error":"#REF!"}},{"$f":"AND(#REF!,\"VUJyzXdBbbE=\")","v":{"$error":"#REF!"}},{"$f":"AND(#REF!,\"VUJyzXdBbbI=\")","v":{"$error":"#REF!"}},{"$f":"AND(#REF!,\"VUJyzXdBbbM=\")","v":{"$error":"#REF!"}},{"$f":"AND(#REF!,\"VUJyzXdBbbQ=\")","v":{"$error":"#REF!"}},{"$f":"AND(#REF!,\"VUJyzXdBbbU=\")","v":{"$error":"#REF!"}},{"$f":"AND(#REF!,\"VUJyzXdBbbY=\")","v":{"$error":"#REF!"}},{"$f":"AND(#REF!,\"VUJyzXdBbbc=\")","v":{"$error":"#REF!"}},{"$f":"AND(#REF!,\"VUJyzXdBbbg=\")","v":{"$error":"#REF!"}},{"$f":"AND(#REF!,\"VUJyzXdBbbk=\")","v":{"$error":"#REF!"}},{"$f":"AND(#REF!,\"VUJyzXdBbbo=\")","v":{"$error":"#REF!"}},{"$f":"AND(#REF!,\"VUJyzXdBbbs=\")","v":{"$error":"#REF!"}},{"$f":"AND(#REF!,\"VUJyzXdBbbw=\")","v":{"$error":"#REF!"}},{"$f":"AND(#REF!,\"VUJyzXdBbb0=\")","v":{"$error":"#REF!"}},{"$f":"AND(#REF!,\"VUJyzXdBbb4=\")","v":{"$error":"#REF!"}},{"$f":"AND(#REF!,\"VUJyzXdBbb8=\")","v":{"$error":"#REF!"}},{"$f":"AND(#REF!,\"VUJyzXdBbcA=\")","v":{"$error":"#REF!"}},{"$f":"AND(#REF!,\"VUJyzXdBbcE=\")","v":{"$error":"#REF!"}},{"$f":"AND(#REF!,\"VUJyzXdBbcI=\")","v":{"$error":"#REF!"}},{"$f":"AND(#REF!,\"VUJyzXdBbcM=\")","v":{"$error":"#REF!"}},{"$f":"AND(#REF!,\"VUJyzXdBbcQ=\")","v":{"$error":"#REF!"}},{"$f":"AND(#REF!,\"VUJyzXdBbcU=\")","v":{"$error":"#REF!"}},{"$f":"AND(#REF!,\"VUJyzXdBbcY=\")","v":{"$error":"#REF!"}},{"$f":"AND(#REF!,\"VUJyzXdBbcc=\")","v":{"$error":"#REF!"}},{"$f":"AND(#REF!,\"VUJyzXdBbcg=\")","v":{"$error":"#REF!"}},{"$f":"AND(#REF!,\"VUJyzXdBbck=\")","v":{"$error":"#REF!"}},{"$f":"AND(#REF!,\"VUJyzXdBbco=\")","v":{"$error":"#REF!"}},{"$f":"AND(#REF!,\"VUJyzXdBbcs=\")","v":{"$error":"#REF!"}},{"$f":"AND(#REF!,\"VUJyzXdBbcw=\")","v":{"$error":"#REF!"}},{"$f":"AND(#REF!,\"VUJyzXdBbc0=\")","v":{"$error":"#REF!"}},{"$f":"AND(#REF!,\"VUJyzXdBbc4=\")","v":{"$error":"#REF!"}},{"$f":"AND(#REF!,\"VUJyzXdBbc8=\")","v":{"$error":"#REF!"}},{"$f":"AND(#REF!,\"VUJyzXdBbdA=\")","v":{"$error":"#REF!"}},{"$f":"AND(#REF!,\"VUJyzXdBbdE=\")","v":{"$error":"#REF!"}},{"$f":"AND(#REF!,\"VUJyzXdBbdI=\")","v":{"$error":"#REF!"}},{"$f":"AND(#REF!,\"VUJyzXdBbdM=\")","v":{"$error":"#REF!"}},{"$f":"AND(#REF!,\"VUJyzXdBbdQ=\")","v":{"$error":"#REF!"}},{"$f":"AND(#REF!,\"VUJyzXdBbdU=\")","v":{"$error":"#REF!"}},{"$f":"AND(#REF!,\"VUJyzXdBbdY=\")","v":{"$error":"#REF!"}},{"$f":"AND(#REF!,\"VUJyzXdBbdc=\")","v":{"$error":"#REF!"}},{"$f":"AND(#REF!,\"VUJyzXdBbdg=\")","v":{"$error":"#REF!"}},{"$f":"AND(#REF!,\"VUJyzXdBbdk=\")","v":{"$error":"#REF!"}},{"$f":"AND(#REF!,\"VUJyzXdBbdo=\")","v":{"$error":"#REF!"}},{"$f":"AND(#REF!,\"VUJyzXdBbds=\")","v":{"$error":"#REF!"}},{"$f":"AND(#REF!,\"VUJyzXdBbdw=\")","v":{"$error":"#REF!"}},{"$f":"AND(#REF!,\"VUJyzXdBbd0=\")","v":{"$error":"#REF!"}},{"$f":"AND(#REF!,\"VUJyzXdBbd4=\")","v":{"$error":"#REF!"}},{"$f":"AND(#REF!,\"VUJyzXdBbd8=\")","v":{"$error":"#REF!"}},{"$f":"AND(#REF!,\"VUJyzXdBbeA=\")","v":{"$error":"#REF!"}},{"$f":"AND(#REF!,\"VUJyzXdBbeE=\")","v":{"$error":"#REF!"}},{"$f":"AND(#REF!,\"VUJyzXdBbeI=\")","v":{"$error":"#REF!"}},{"$f":"AND(#REF!,\"VUJyzXdBbeM=\")","v":{"$error":"#REF!"}},{"$f":"AND(#REF!,\"VUJyzXdBbeQ=\")","v":{"$error":"#REF!"}},{"$f":"AND(#REF!,\"VUJyzXdBbeU=\")","v":{"$error":"#REF!"}},{"$f":"AND(#REF!,\"VUJyzXdBbeY=\")","v":{"$error":"#REF!"}},{"$f":"AND(#REF!,\"VUJyzXdBbec=\")","v":{"$error":"#REF!"}},{"$f":"AND(#REF!,\"VUJyzXdBbeg=\")","v":{"$error":"#REF!"}},{"$f":"AND(#REF!,\"VUJyzXdBbek=\")","v":{"$error":"#REF!"}},{"$f":"AND(#REF!,\"VUJyzXdBbeo=\")","v":{"$error":"#REF!"}},{"$f":"AND(#REF!,\"VUJyzXdBbes=\")","v":{"$error":"#REF!"}},{"$f":"AND(#REF!,\"VUJyzXdBbew=\")","v":{"$error":"#REF!"}},{"$f":"AND(#REF!,\"VUJyzXdBbe0=\")","v":{"$error":"#REF!"}},{"$f":"AND(#REF!,\"VUJyzXdBbe4=\")","v":{"$error":"#REF!"}},{"$f":"AND(#REF!,\"VUJyzXdBbe8=\")","v":{"$error":"#REF!"}},{"$f":"AND(#REF!,\"VUJyzXdBbfA=\")","v":{"$error":"#REF!"}},{"$f":"AND(#REF!,\"VUJyzXdBbfE=\")","v":{"$error":"#REF!"}},{"$f":"AND(#REF!,\"VUJyzXdBbfI=\")","v":{"$error":"#REF!"}},{"$f":"AND(#REF!,\"VUJyzXdBbfM=\")","v":{"$error":"#REF!"}},{"$f":"AND(#REF!,\"VUJyzXdBbfQ=\")","v":{"$error":"#REF!"}},{"$f":"AND(#REF!,\"VUJyzXdBbfU=\")","v":{"$error":"#REF!"}},{"$f":"AND(#REF!,\"VUJyzXdBbfY=\")","v":{"$error":"#REF!"}},{"$f":"AND(#REF!,\"VUJyzXdBbfc=\")","v":{"$error":"#REF!"}},{"$f":"AND(#REF!,\"VUJyzXdBbfg=\")","v":{"$error":"#REF!"}},{"$f":"AND(#REF!,\"VUJyzXdBbfk=\")","v":{"$error":"#REF!"}},{"$f":"AND(#REF!,\"VUJyzXdBbfo=\")","v":{"$error":"#REF!"}},{"$f":"AND(#REF!,\"VUJyzXdBbfs=\")","v":{"$error":"#REF!"}},{"$f":"AND(#REF!,\"VUJyzXdBbfw=\")","v":{"$error":"#REF!"}},{"$f":"AND(#REF!,\"VUJyzXdBbf0=\")","v":{"$error":"#REF!"}},{"$f":"AND(#REF!,\"VUJyzXdBbf4=\")","v":{"$error":"#REF!"}},{"$f":"AND(#REF!,\"VUJyzXdBbf8=\")","v":{"$error":"#REF!"}}]
[{"$f":"AND(#REF!,\"D/pczm0RdQA=\")","v":{"$error":"#REF!"}},{"$f":"AND(#REF!,\"D/pczm0RdQE=\")","v":{"$error":"#REF!"}},{"$f":"AND(#REF!,\"D/pczm0RdQI=\")","v":{"$error":"#REF!"}},{"$f":"AND(#REF!,\"D/pczm0RdQM=\")","v":{"$error":"#REF!"}},{"$f":"AND(#REF!,\"D/pczm0RdQQ=\")","v":{"$error":"#REF!"}},{"$f":"AND(#REF!,\"D/pczm0RdQU=\")","v":{"$error":"#REF!"}},{"$f":"AND(#REF!,\"D/pczm0RdQY=\")","v":{"$error":"#REF!"}},{"$f":"AND(#REF!,\"D/pczm0RdQc=\")","v":{"$error":"#REF!"}},{"$f":"AND(#REF!,\"D/pczm0RdQg=\")","v":{"$error":"#REF!"}},{"$f":"AND(#REF!,\"D/pczm0RdQk=\")","v":{"$error":"#REF!"}},{"$f":"AND(#REF!,\"D/pczm0RdQo=\")","v":{"$error":"#REF!"}},{"$f":"AND(#REF!,\"D/pczm0RdQs=\")","v":{"$error":"#REF!"}},{"$f":"AND(#REF!,\"D/pczm0RdQw=\")","v":{"$error":"#REF!"}},{"$f":"AND(#REF!,\"D/pczm0RdQ0=\")","v":{"$error":"#REF!"}},{"$f":"AND(#REF!,\"D/pczm0RdQ4=\")","v":{"$error":"#REF!"}},{"$f":"AND(#REF!,\"D/pczm0RdQ8=\")","v":{"$error":"#REF!"}},{"$f":"AND(#REF!,\"D/pczm0RdRA=\")","v":{"$error":"#REF!"}},{"$f":"AND(#REF!,\"D/pczm0RdRE=\")","v":{"$error":"#REF!"}},{"$f":"AND(#REF!,\"D/pczm0RdRI=\")","v":{"$error":"#REF!"}},{"$f":"AND(#REF!,\"D/pczm0RdRM=\")","v":{"$error":"#REF!"}},{"$f":"AND(#REF!,\"D/pczm0RdRQ=\")","v":{"$error":"#REF!"}},{"$f":"AND(#REF!,\"D/pczm0RdRU=\")","v":{"$error":"#REF!"}},{"$f":"AND(#REF!,\"D/pczm0RdRY=\")","v":{"$error":"#REF!"}},{"$f":"AND(#REF!,\"D/pczm0RdRc=\")","v":{"$error":"#REF!"}},{"$f":"AND(#REF!,\"D/pczm0RdRg=\")","v":{"$error":"#REF!"}},{"$f":"AND(#REF!,\"D/pczm0RdRk=\")","v":{"$error":"#REF!"}},{"$f":"AND(#REF!,\"D/pczm0RdRo=\")","v":{"$error":"#REF!"}},{"$f":"AND(#REF!,\"D/pczm0RdRs=\")","v":{"$error":"#REF!"}},{"$f":"AND(#REF!,\"D/pczm0RdRw=\")","v":{"$error":"#REF!"}},{"$f":"AND(#REF!,\"D/pczm0RdR0=\")","v":{"$error":"#REF!"}},{"$f":"AND(#REF!,\"D/pczm0RdR4=\")","v":{"$error":"#REF!"}},{"$f":"AND(#REF!,\"D/pczm0RdR8=\")","v":{"$error":"#REF!"}},{"$f":"AND(#REF!,\"D/pczm0RdSA=\")","v":{"$error":"#REF!"}},{"$f":"AND(#REF!,\"D/pczm0RdSE=\")","v":{"$error":"#REF!"}},{"$f":"AND(#REF!,\"D/pczm0RdSI=\")","v":{"$error":"#REF!"}},{"$f":"AND(#REF!,\"D/pczm0RdSM=\")","v":{"$error":"#REF!"}},{"$f":"AND(#REF!,\"D/pczm0RdSQ=\")","v":{"$error":"#REF!"}},{"$f":"AND(#REF!,\"D/pczm0RdSU=\")","v":{"$error":"#REF!"}},{"$f":"AND(#REF!,\"D/pczm0RdSY=\")","v":{"$error":"#REF!"}},{"$f":"AND(#REF!,\"D/pczm0RdSc=\")","v":{"$error":"#REF!"}},{"$f":"AND(#REF!,\"D/pczm0RdSg=\")","v":{"$error":"#REF!"}},{"$f":"AND(#REF!,\"D/pczm0RdSk=\")","v":{"$error":"#REF!"}},{"$f":"AND(#REF!,\"D/pczm0RdSo=\")","v":{"$error":"#REF!"}},{"$f":"AND(#REF!,\"D/pczm0RdSs=\")","v":{"$error":"#REF!"}},{"$f":"AND(#REF!,\"D/pczm0RdSw=\")","v":{"$error":"#REF!"}},{"$f":"AND(#REF!,\"D/pczm0RdS0=\")","v":{"$error":"#REF!"}},{"$f":"AND(#REF!,\"D/pczm0RdS4=\")","v":{"$error":"#REF!"}},{"$f":"AND(#REF!,\"D/pczm0RdS8=\")","v":{"$error":"#REF!"}},{"$f":"AND(#REF!,\"D/pczm0RdTA=\")","v":{"$error":"#REF!"}},{"$f":"AND(#REF!,\"D/pczm0RdTE=\")","v":{"$error":"#REF!"}},{"$f":"AND(#REF!,\"D/pczm0RdTI=\")","v":{"$error":"#REF!"}},{"$f":"AND(#REF!,\"D/pczm0RdTM=\")","v":{"$error":"#REF!"}},{"$f":"AND(#REF!,\"D/pczm0RdTQ=\")","v":{"$error":"#REF!"}},{"$f":"AND(#REF!,\"D/pczm0RdTU=\")","v":{"$error":"#REF!"}},{"$f":"AND(#REF!,\"D/pczm0RdTY=\")","v":{"$error":"#REF!"}},{"$f":"AND(#REF!,\"D/pczm0RdTc=\")","v":{"$error":"#REF!"}},{"$f":"AND(#REF!,\"D/pczm0RdTg=\")","v":{"$error":"#REF!"}},{"$f":"AND(#REF!,\"D/pczm0RdTk=\")","v":{"$error":"#REF!"}},{"$f":"AND(#REF!,\"D/pczm0RdTo=\")","v":{"$error":"#REF!"}},{"$f":"AND(#REF!,\"D/pczm0RdTs=\")","v":{"$error":"#REF!"}},{"$f":"AND(#REF!,\"D/pczm0RdTw=\")","v":{"$error":"#REF!"}},{"$f":"AND(#REF!,\"D/pczm0RdT0=\")","v":{"$error":"#REF!"}},{"$f":"AND(#REF!,\"D/pczm0RdT4=\")","v":{"$error":"#REF!"}},{"$f":"AND(#REF!,\"D/pczm0RdT8=\")","v":{"$error":"#REF!"}},{"$f":"AND(#REF!,\"D/pczm0RdUA=\")","v":{"$error":"#REF!"}},{"$f":"AND(#REF!,\"D/pczm0RdUE=\")","v":{"$error":"#REF!"}},{"$f":"AND(#REF!,\"D/pczm0RdUI=\")","v":{"$error":"#REF!"}},{"$f":"AND(#REF!,\"D/pczm0RdUM=\")","v":{"$error":"#REF!"}},{"$f":"AND(#REF!,\"D/pczm0RdUQ=\")","v":{"$error":"#REF!"}},{"$f":"AND(#REF!,\"D/pczm0RdUU=\")","v":{"$error":"#REF!"}},{"$f":"AND(#REF!,\"D/pczm0RdUY=\")","v":{"$error":"#REF!"}},{"$f":"AND(#REF!,\"D/pczm0RdUc=\")","v":{"$error":"#REF!"}},{"$f":"AND(#REF!,\"D/pczm0RdUg=\")","v":{"$error":"#REF!"}},{"$f":"AND(#REF!,\"D/pczm0RdUk=\")","v":{"$error":"#REF!"}},{"$f":"AND(#REF!,\"D/pczm0RdUo=\")","v":{"$error":"#REF!"}},{"$f":"AND(#REF!,\"D/pczm0RdUs=\")","v":{"$error":"#REF!"}},{"$f":"AND(#REF!,\"D/pczm0RdUw=\")","v":{"$error":"#REF!"}},{"$f":"AND(#REF!,\"D/pczm0RdU0=\")","v":{"$error":"#REF!"}},{"$f":"AND(#REF!,\"D/pczm0RdU4=\")","v":{"$error":"#REF!"}},{"$f":"AND(#REF!,\"D/pczm0RdU8=\")","v":{"$error":"#REF!"}},{"$f":"AND(#REF!,\"D/pczm0RdVA=\")","v":{"$error":"#REF!"}},{"$f":"AND(#REF!,\"D/pczm0RdVE=\")","v":{"$error":"#REF!"}},{"$f":"IF(#REF!,\"D/pczm0RdVI=\",0)","v":{"$error":"#REF!"}},{"$f":"AND(#REF!,\"D/pczm0RdVM=\")","v":{"$error":"#REF!"}},{"$f":"AND(#REF!,\"D/pczm0RdVQ=\")","v":{"$error":"#REF!"}},{"$f":"AND(#REF!,\"D/pczm0RdVU=\")","v":{"$error":"#REF!"}},{"$f":"AND(#REF!,\"D/pczm0RdVY=\")","v":{"$error":"#REF!"}},{"$f":"AND(#REF!,\"D/pczm0RdVc=\")","v":{"$error":"#REF!"}},{"$f":"AND(#REF!,\"D/pczm0RdVg=\")","v":{"$error":"#REF!"}},{"$f":"AND(#REF!,\"D/pczm0RdVk=\")","v":{"$error":"#REF!"}},{"$f":"AND(#REF!,\"D/pczm0RdVo=\")","v":{"$error":"#REF!"}},{"$f":"AND(#REF!,\"D/pczm0RdVs=\")","v":{"$error":"#REF!"}},{"$f":"AND(#REF!,\"D/pczm0RdVw=\")","v":{"$error":"#REF!"}},{"$f":"AND(#REF!,\"D/pczm0RdV0=\")","v":{"$error":"#REF!"}},{"$f":"AND(#REF!,\"D/pczm0RdV4=\")","v":{"$error":"#REF!"}},{"$f":"AND(#REF!,\"D/pczm0RdV8=\")","v":{"$error":"#REF!"}},{"$f":"AND(#REF!,\"D/pczm0RdWA=\")","v":{"$error":"#REF!"}},{"$f":"AND(#REF!,\"D/pczm0RdWE=\")","v":{"$error":"#REF!"}},{"$f":"AND(#REF!,\"D/pczm0RdWI=\")","v":{"$error":"#REF!"}},{"$f":"AND(#REF!,\"D/pczm0RdWM=\")","v":{"$error":"#REF!"}},{"$f":"AND(#REF!,\"D/pczm0RdWQ=\")","v":{"$error":"#REF!"}},{"$f":"AND(#REF!,\"D/pczm0RdWU=\")","v":{"$error":"#REF!"}},{"$f":"AND(#REF!,\"D/pczm0RdWY=\")","v":{"$error":"#REF!"}},{"$f":"AND(#REF!,\"D/pczm0RdWc=\")","v":{"$error":"#REF!"}},{"$f":"AND(#REF!,\"D/pczm0RdWg=\")","v":{"$error":"#REF!"}},{"$f":"AND(#REF!,\"D/pczm0RdWk=\")","v":{"$error":"#REF!"}},{"$f":"AND(#REF!,\"D/pczm0RdWo=\")","v":{"$error":"#REF!"}},{"$f":"AND(#REF!,\"D/pczm0RdWs=\")","v":{"$error":"#REF!"}},{"$f":"AND(#REF!,\"D/pczm0RdWw=\")","v":{"$error":"#REF!"}},{"$f":"AND(#REF!,\"D/pczm0RdW0=\")","v":{"$error":"#REF!"}},{"$f":"AND(#REF!,\"D/pczm0RdW4=\")","v":{"$error":"#REF!"}},{"$f":"AND(#REF!,\"D/pczm0RdW8=\")","v":{"$error":"#REF!"}},{"$f":"AND(#REF!,\"D/pczm0RdXA=\")","v":{"$error":"#REF!"}},{"$f":"AND(#REF!,\"D/pczm0RdXE=\")","v":{"$error":"#REF!"}},{"$f":"AND(#REF!,\"D/pczm0RdXI=\")","v":{"$error":"#REF!"}},{"$f":"AND(#REF!,\"D/pczm0RdXM=\")","v":{"$error":"#REF!"}},{"$f":"AND(#REF!,\"D/pczm0RdXQ=\")","v":{"$error":"#REF!"}},{"$f":"AND(#REF!,\"D/pczm0RdXU=\")","v":{"$error":"#REF!"}},{"$f":"AND(#REF!,\"D/pczm0RdXY=\")","v":{"$error":"#REF!"}},{"$f":"AND(#REF!,\"D/pczm0RdXc=\")","v":{"$error":"#REF!"}},{"$f":"AND(#REF!,\"D/pczm0RdXg=\")","v":{"$error":"#REF!"}},{"$f":"AND(#REF!,\"D/pczm0RdXk=\")","v":{"$error":"#REF!"}},{"$f":"AND(#REF!,\"D/pczm0RdXo=\")","v":{"$error":"#REF!"}},{"$f":"AND(#REF!,\"D/pczm0RdXs=\")","v":{"$error":"#REF!"}},{"$f":"AND(#REF!,\"D/pczm0RdXw=\")","v":{"$error":"#REF!"}},{"$f":"AND(#REF!,\"D/pczm0RdX0=\")","v":{"$error":"#REF!"}},{"$f":"AND(#REF!,\"D/pczm0RdX4=\")","v":{"$error":"#REF!"}},{"$f":"AND(#REF!,\"D/pczm0RdX8=\")","v":{"$error":"#REF!"}},{"$f":"AND(#REF!,\"D/pczm0RdYA=\")","v":{"$error":"#REF!"}},{"$f":"AND(#REF!,\"D/pczm0RdYE=\")","v":{"$error":"#REF!"}},{"$f":"AND(#REF!,\"D/pczm0RdYI=\")","v":{"$error":"#REF!"}},{"$f":"AND(#REF!,\"D/pczm0RdYM=\")","v":{"$error":"#REF!"}},{"$f":"AND(#REF!,\"D/pczm0RdYQ=\")","v":{"$error":"#REF!"}},{"$f":"AND(#REF!,\"D/pczm0RdYU=\")","v":{"$error":"#REF!"}},{"$f":"AND(#REF!,\"D/pczm0RdYY=\")","v":{"$error":"#REF!"}},{"$f":"AND(#REF!,\"D/pczm0RdYc=\")","v":{"$error":"#REF!"}},{"$f":"AND(#REF!,\"D/pczm0RdYg=\")","v":{"$error":"#REF!"}},{"$f":"AND(#REF!,\"D/pczm0RdYk=\")","v":{"$error":"#REF!"}},{"$f":"AND(#REF!,\"D/pczm0RdYo=\")","v":{"$error":"#REF!"}},{"$f":"AND(#REF!,\"D/pczm0RdYs=\")","v":{"$error":"#REF!"}},{"$f":"AND(#REF!,\"D/pczm0RdYw=\")","v":{"$error":"#REF!"}},{"$f":"AND(#REF!,\"D/pczm0RdY0=\")","v":{"$error":"#REF!"}},{"$f":"AND(#REF!,\"D/pczm0RdY4=\")","v":{"$error":"#REF!"}},{"$f":"AND(#REF!,\"D/pczm0RdY8=\")","v":{"$error":"#REF!"}},{"$f":"AND(#REF!,\"D/pczm0RdZA=\")","v":{"$error":"#REF!"}},{"$f":"AND(#REF!,\"D/pczm0RdZE=\")","v":{"$error":"#REF!"}},{"$f":"AND(#REF!,\"D/pczm0RdZI=\")","v":{"$error":"#REF!"}},{"$f":"AND(#REF!,\"D/pczm0RdZM=\")","v":{"$error":"#REF!"}},{"$f":"AND(#REF!,\"D/pczm0RdZQ=\")","v":{"$error":"#REF!"}},{"$f":"AND(#REF!,\"D/pczm0RdZU=\")","v":{"$error":"#REF!"}},{"$f":"AND(#REF!,\"D/pczm0RdZY=\")","v":{"$error":"#REF!"}},{"$f":"AND(#REF!,\"D/pczm0RdZc=\")","v":{"$error":"#REF!"}},{"$f":"AND(#REF!,\"D/pczm0RdZg=\")","v":{"$error":"#REF!"}},{"$f":"AND(#REF!,\"D/pczm0RdZk=\")","v":{"$error":"#REF!"}},{"$f":"AND(#REF!,\"D/pczm0RdZo=\")","v":{"$error":"#REF!"}},{"$f":"AND(#REF!,\"D/pczm0RdZs=\")","v":{"$error":"#REF!"}},{"$f":"AND(#REF!,\"D/pczm0RdZw=\")","v":{"$error":"#REF!"}},{"$f":"AND(#REF!,\"D/pczm0RdZ0=\")","v":{"$error":"#REF!"}},{"$f":"AND(#REF!,\"D/pczm0RdZ4=\")","v":{"$error":"#REF!"}},{"$f":"AND(#REF!,\"D/pczm0RdZ8=\")","v":{"$error":"#REF!"}},{"$f":"AND(#REF!,\"D/pczm0RdaA=\")","v":{"$error":"#REF!"}},{"$f":"AND(#REF!,\"D/pczm0RdaE=\")","v":{"$error":"#REF!"}},{"$f":"AND(#REF!,\"D/pczm0RdaI=\")","v":{"$error":"#REF!"}},{"$f":"AND(#REF!,\"D/pczm0RdaM=\")","v":{"$error":"#REF!"}},{"$f":"AND(#REF!,\"D/pczm0RdaQ=\")","v":{"$error":"#REF!"}},{"$f":"AND(#REF!,\"D/pczm0RdaU=\")","v":{"$error":"#REF!"}},{"$f":"AND(#REF!,\"D/pczm0RdaY=\")","v":{"$error":"#REF!"}},{"$f":"AND(#REF!,\"D/pczm0Rdac=\")","v":{"$error":"#REF!"}},{"$f":"AND(#REF!,\"D/pczm0Rdag=\")","v":{"$error":"#REF!"}},{"$f":"AND(#REF!,\"D/pczm0Rdak=\")","v":{"$error":"#REF!"}},{"$f":"AND(#REF!,\"D/pczm0Rdao=\")","v":{"$error":"#REF!"}},{"$f":"AND(#REF!,\"D/pczm0Rdas=\")","v":{"$error":"#REF!"}},{"$f":"AND(#REF!,\"D/pczm0Rdaw=\")","v":{"$error":"#REF!"}},{"$f":"AND(#REF!,\"D/pczm0Rda0=\")","v":{"$error":"#REF!"}},{"$f":"AND(#REF!,\"D/pczm0Rda4=\")","v":{"$error":"#REF!"}},{"$f":"AND(#REF!,\"D/pczm0Rda8=\")","v":{"$error":"#REF!"}},{"$f":"AND(#REF!,\"D/pczm0RdbA=\")","v":{"$error":"#REF!"}},{"$f":"AND(#REF!,\"D/pczm0RdbE=\")","v":{"$error":"#REF!"}},{"$f":"AND(#REF!,\"D/pczm0RdbI=\")","v":{"$error":"#REF!"}},{"$f":"AND(#REF!,\"D/pczm0RdbM=\")","v":{"$error":"#REF!"}},{"$f":"AND(#REF!,\"D/pczm0RdbQ=\")","v":{"$error":"#REF!"}},{"$f":"AND(#REF!,\"D/pczm0RdbU=\")","v":{"$error":"#REF!"}},{"$f":"AND(#REF!,\"D/pczm0RdbY=\")","v":{"$error":"#REF!"}},{"$f":"AND(#REF!,\"D/pczm0Rdbc=\")","v":{"$error":"#REF!"}},{"$f":"AND(#REF!,\"D/pczm0Rdbg=\")","v":{"$error":"#REF!"}},{"$f":"AND(#REF!,\"D/pczm0Rdbk=\")","v":{"$error":"#REF!"}},{"$f":"AND(#REF!,\"D/pczm0Rdbo=\")","v":{"$error":"#REF!"}},{"$f":"AND(#REF!,\"D/pczm0Rdbs=\")","v":{"$error":"#REF!"}},{"$f":"AND(#REF!,\"D/pczm0Rdbw=\")","v":{"$error":"#REF!"}},{"$f":"AND(#REF!,\"D/pczm0Rdb0=\")","v":{"$error":"#REF!"}},{"$f":"AND(#REF!,\"D/pczm0Rdb4=\")","v":{"$error":"#REF!"}},{"$f":"AND(#REF!,\"D/pczm0Rdb8=\")","v":{"$error":"#REF!"}},{"$f":"AND(#REF!,\"D/pczm0RdcA=\")","v":{"$error":"#REF!"}},{"$f":"AND(#REF!,\"D/pczm0RdcE=\")","v":{"$error":"#REF!"}},{"$f":"AND(#REF!,\"D/pczm0RdcI=\")","v":{"$error":"#REF!"}},{"$f":"AND(#REF!,\"D/pczm0RdcM=\")","v":{"$error":"#REF!"}},{"$f":"AND(#REF!,\"D/pczm0RdcQ=\")","v":{"$error":"#REF!"}},{"$f":"AND(#REF!,\"D/pczm0RdcU=\")","v":{"$error":"#REF!"}},{"$f":"AND(#REF!,\"D/pczm0RdcY=\")","v":{"$error":"#REF!"}},{"$f":"AND(#REF!,\"D/pczm0Rdcc=\")","v":{"$error":"#REF!"}},{"$f":"AND(#REF!,\"D/pczm0Rdcg=\")","v":{"$error":"#REF!"}},{"$f":"AND(#REF!,\"D/pczm0Rdck=\")","v":{"$error":"#REF!"}},{"$f":"AND(#REF!,\"D/pczm0Rdco=\")","v":{"$error":"#REF!"}},{"$f":"AND(#REF!,\"D/pczm0Rdcs=\")","v":{"$error":"#REF!"}},{"$f":"AND(#REF!,\"D/pczm0Rdcw=\")","v":{"$error":"#REF!"}},{"$f":"AND(#REF!,\"D/pczm0Rdc0=\")","v":{"$error":"#REF!"}},{"$f":"AND(#REF!,\"D/pczm0Rdc4=\")","v":{"$error":"#REF!"}},{"$f":"AND(#REF!,\"D/pczm0Rdc8=\")","v":{"$error":"#REF!"}},{"$f":"AND(#REF!,\"D/pczm0RddA=\")","v":{"$error":"#REF!"}},{"$f":"AND(#REF!,\"D/pczm0RddE=\")","v":{"$error":"#REF!"}},{"$f":"AND(#REF!,\"D/pczm0RddI=\")","v":{"$error":"#REF!"}},{"$f":"AND(#REF!,\"D/pczm0RddM=\")","v":{"$error":"#REF!"}},{"$f":"AND(#REF!,\"D/pczm0RddQ=\")","v":{"$error":"#REF!"}},{"$f":"AND(#REF!,\"D/pczm0RddU=\")","v":{"$error":"#REF!"}},{"$f":"AND(#REF!,\"D/pczm0RddY=\")","v":{"$error":"#REF!"}},{"$f":"AND(#REF!,\"D/pczm0Rddc=\")","v":{"$error":"#REF!"}},{"$f":"AND(#REF!,\"D/pczm0Rddg=\")","v":{"$error":"#REF!"}},{"$f":"AND(#REF!,\"D/pczm0Rddk=\")","v":{"$error":"#REF!"}},{"$f":"AND(#REF!,\"D/pczm0Rddo=\")","v":{"$error":"#REF!"}},{"$f":"AND(#REF!,\"D/pczm0Rdds=\")","v":{"$error":"#REF!"}},{"$f":"AND(#REF!,\"D/pczm0Rddw=\")","v":{"$error":"#REF!"}},{"$f":"AND(#REF!,\"D/pczm0Rdd0=\")","v":{"$error":"#REF!"}},{"$f":"AND(#REF!,\"D/pczm0Rdd4=\")","v":{"$error":"#REF!"}},{"$f":"AND(#REF!,\"D/pczm0Rdd8=\")","v":{"$error":"#REF!"}},{"$f":"AND(#REF!,\"D/pczm0RdeA=\")","v":{"$error":"#REF!"}},{"$f":"AND(#REF!,\"D/pczm0RdeE=\")","v":{"$error":"#REF!"}},{"$f":"AND(#REF!,\"D/pczm0RdeI=\")","v":{"$error":"#REF!"}},{"$f":"AND(#REF!,\"D/pczm0RdeM=\")","v":{"$error":"#REF!"}},{"$f":"AND(#REF!,\"D/pczm0RdeQ=\")","v":{"$error":"#REF!"}},{"$f":"AND(#REF!,\"D/pczm0RdeU=\")","v":{"$error":"#REF!"}},{"$f":"AND(#REF!,\"D/pczm0RdeY=\")","v":{"$error":"#REF!"}},{"$f":"AND(#REF!,\"D/pczm0Rdec=\")","v":{"$error":"#REF!"}},{"$f":"AND(#REF!,\"D/pczm0Rdeg=\")","v":{"$error":"#REF!"}},{"$f":"AND(#REF!,\"D/pczm0Rdek=\")","v":{"$error":"#REF!"}},{"$f":"AND(#REF!,\"D/pczm0Rdeo=\")","v":{"$error":"#REF!"}},{"$f":"AND(#REF!,\"D/pczm0Rdes=\")","v":{"$error":"#REF!"}},{"$f":"AND(#REF!,\"D/pczm0Rdew=\")","v":{"$error":"#REF!"}},{"$f":"AND(#REF!,\"D/pczm0Rde0=\")","v":{"$error":"#REF!"}},{"$f":"AND(#REF!,\"D/pczm0Rde4=\")","v":{"$error":"#REF!"}},{"$f":"AND(#REF!,\"D/pczm0Rde8=\")","v":{"$error":"#REF!"}},{"$f":"AND(#REF!,\"D/pczm0RdfA=\")","v":{"$error":"#REF!"}},{"$f":"AND(#REF!,\"D/pczm0RdfE=\")","v":{"$error":"#REF!"}},{"$f":"AND(#REF!,\"D/pczm0RdfI=\")","v":{"$error":"#REF!"}},{"$f":"AND(#REF!,\"D/pczm0RdfM=\")","v":{"$error":"#REF!"}},{"$f":"AND(#REF!,\"D/pczm0RdfQ=\")","v":{"$error":"#REF!"}},{"$f":"AND(#REF!,\"D/pczm0RdfU=\")","v":{"$error":"#REF!"}},{"$f":"AND(#REF!,\"D/pczm0RdfY=\")","v":{"$error":"#REF!"}},{"$f":"AND(#REF!,\"D/pczm0Rdfc=\")","v":{"$error":"#REF!"}},{"$f":"AND(#REF!,\"D/pczm0Rdfg=\")","v":{"$error":"#REF!"}},{"$f":"AND(#REF!,\"D/pczm0Rdfk=\")","v":{"$error":"#REF!"}},{"$f":"AND(#REF!,\"D/pczm0Rdfo=\")","v":{"$error":"#REF!"}},{"$f":"AND(#REF!,\"D/pczm0Rdfs=\")","v":{"$error":"#REF!"}},{"$f":"AND(#REF!,\"D/pczm0Rdfw=\")","v":{"$error":"#REF!"}},{"$f":"AND(#REF!,\"D/pczm0Rdf0=\")","v":{"$error":"#REF!"}},{"$f":"AND(#REF!,\"D/pczm0Rdf4=\")","v":{"$error":"#REF!"}},{"$f":"AND(#REF!,\"D/pczm0Rdf8=\")","v":{"$error":"#REF!"}}]
[{"$f":"AND(#REF!,\"RD4gB2lM+gA=\")","v":{"$error":"#REF!"}},{"$f":"AND(#REF!,\"RD4gB2lM+gE=\")","v":{"$error":"#REF!"}},{"$f":"AND(#REF!,\"RD4gB2lM+gI=\")","v":{"$error":"#REF!"}},{"$f":"AND(#REF!,\"RD4gB2lM+gM=\")","v":{"$error":"#REF!"}},{"$f":"AND(#REF!,\"RD4gB2lM+gQ=\")","v":{"$error":"#REF!"}},{"$f":"AND(#REF!,\"RD4gB2lM+gU=\")","v":{"$error":"#REF!"}},{"$f":"AND(#REF!,\"RD4gB2lM+gY=\")","v":{"$error":"#REF!"}},{"$f":"AND(#REF!,\"RD4gB2lM+gc=\")","v":{"$error":"#REF!"}},{"$f":"AND(#REF!,\"RD4gB2lM+gg=\")","v":{"$error":"#REF!"}},{"$f":"AND(#REF!,\"RD4gB2lM+gk=\")","v":{"$error":"#REF!"}},{"$f":"AND(#REF!,\"RD4gB2lM+go=\")","v":{"$error":"#REF!"}},{"$f":"AND(#REF!,\"RD4gB2lM+gs=\")","v":{"$error":"#REF!"}},{"$f":"AND(#REF!,\"RD4gB2lM+gw=\")","v":{"$error":"#REF!"}},{"$f":"AND(#REF!,\"RD4gB2lM+g0=\")","v":{"$error":"#REF!"}},{"$f":"AND(#REF!,\"RD4gB2lM+g4=\")","v":{"$error":"#REF!"}},{"$f":"AND(#REF!,\"RD4gB2lM+g8=\")","v":{"$error":"#REF!"}},{"$f":"AND(#REF!,\"RD4gB2lM+hA=\")","v":{"$error":"#REF!"}},{"$f":"AND(#REF!,\"RD4gB2lM+hE=\")","v":{"$error":"#REF!"}},{"$f":"AND(#REF!,\"RD4gB2lM+hI=\")","v":{"$error":"#REF!"}},{"$f":"AND(#REF!,\"RD4gB2lM+hM=\")","v":{"$error":"#REF!"}},{"$f":"AND(#REF!,\"RD4gB2lM+hQ=\")","v":{"$error":"#REF!"}},{"$f":"AND(#REF!,\"RD4gB2lM+hU=\")","v":{"$error":"#REF!"}},{"$f":"AND(#REF!,\"RD4gB2lM+hY=\")","v":{"$error":"#REF!"}},{"$f":"AND(#REF!,\"RD4gB2lM+hc=\")","v":{"$error":"#REF!"}},{"$f":"AND(#REF!,\"RD4gB2lM+hg=\")","v":{"$error":"#REF!"}},{"$f":"IF(#REF!,\"RD4gB2lM+hk=\",0)","v":{"$error":"#REF!"}},{"$f":"AND(#REF!,\"RD4gB2lM+ho=\")","v":{"$error":"#REF!"}},{"$f":"AND(#REF!,\"RD4gB2lM+hs=\")","v":{"$error":"#REF!"}},{"$f":"AND(#REF!,\"RD4gB2lM+hw=\")","v":{"$error":"#REF!"}},{"$f":"AND(#REF!,\"RD4gB2lM+h0=\")","v":{"$error":"#REF!"}},{"$f":"AND(#REF!,\"RD4gB2lM+h4=\")","v":{"$error":"#REF!"}},{"$f":"AND(#REF!,\"RD4gB2lM+h8=\")","v":{"$error":"#REF!"}},{"$f":"AND(#REF!,\"RD4gB2lM+iA=\")","v":{"$error":"#REF!"}},{"$f":"AND(#REF!,\"RD4gB2lM+iE=\")","v":{"$error":"#REF!"}},{"$f":"AND(#REF!,\"RD4gB2lM+iI=\")","v":{"$error":"#REF!"}},{"$f":"AND(#REF!,\"RD4gB2lM+iM=\")","v":{"$error":"#REF!"}},{"$f":"AND(#REF!,\"RD4gB2lM+iQ=\")","v":{"$error":"#REF!"}},{"$f":"AND(#REF!,\"RD4gB2lM+iU=\")","v":{"$error":"#REF!"}},{"$f":"AND(#REF!,\"RD4gB2lM+iY=\")","v":{"$error":"#REF!"}},{"$f":"AND(#REF!,\"RD4gB2lM+ic=\")","v":{"$error":"#REF!"}},{"$f":"AND(#REF!,\"RD4gB2lM+ig=\")","v":{"$error":"#REF!"}},{"$f":"AND(#REF!,\"RD4gB2lM+ik=\")","v":{"$error":"#REF!"}},{"$f":"AND(#REF!,\"RD4gB2lM+io=\")","v":{"$error":"#REF!"}},{"$f":"AND(#REF!,\"RD4gB2lM+is=\")","v":{"$error":"#REF!"}},{"$f":"AND(#REF!,\"RD4gB2lM+iw=\")","v":{"$error":"#REF!"}},{"$f":"AND(#REF!,\"RD4gB2lM+i0=\")","v":{"$error":"#REF!"}},{"$f":"AND(#REF!,\"RD4gB2lM+i4=\")","v":{"$error":"#REF!"}},{"$f":"AND(#REF!,\"RD4gB2lM+i8=\")","v":{"$error":"#REF!"}},{"$f":"AND(#REF!,\"RD4gB2lM+jA=\")","v":{"$error":"#REF!"}},{"$f":"AND(#REF!,\"RD4gB2lM+jE=\")","v":{"$error":"#REF!"}},{"$f":"AND(#REF!,\"RD4gB2lM+jI=\")","v":{"$error":"#REF!"}},{"$f":"AND(#REF!,\"RD4gB2lM+jM=\")","v":{"$error":"#REF!"}},{"$f":"AND(#REF!,\"RD4gB2lM+jQ=\")","v":{"$error":"#REF!"}},{"$f":"AND(#REF!,\"RD4gB2lM+jU=\")","v":{"$error":"#REF!"}},{"$f":"AND(#REF!,\"RD4gB2lM+jY=\")","v":{"$error":"#REF!"}},{"$f":"AND(#REF!,\"RD4gB2lM+jc=\")","v":{"$error":"#REF!"}},{"$f":"AND(#REF!,\"RD4gB2lM+jg=\")","v":{"$error":"#REF!"}},{"$f":"AND(#REF!,\"RD4gB2lM+jk=\")","v":{"$error":"#REF!"}},{"$f":"AND(#REF!,\"RD4gB2lM+jo=\")","v":{"$error":"#REF!"}},{"$f":"AND(#REF!,\"RD4gB2lM+js=\")","v":{"$error":"#REF!"}},{"$f":"AND(#REF!,\"RD4gB2lM+jw=\")","v":{"$error":"#REF!"}},{"$f":"AND(#REF!,\"RD4gB2lM+j0=\")","v":{"$error":"#REF!"}},{"$f":"AND(#REF!,\"RD4gB2lM+j4=\")","v":{"$error":"#REF!"}},{"$f":"AND(#REF!,\"RD4gB2lM+j8=\")","v":{"$error":"#REF!"}},{"$f":"AND(#REF!,\"RD4gB2lM+kA=\")","v":{"$error":"#REF!"}},{"$f":"AND(#REF!,\"RD4gB2lM+kE=\")","v":{"$error":"#REF!"}},{"$f":"AND(#REF!,\"RD4gB2lM+kI=\")","v":{"$error":"#REF!"}},{"$f":"AND(#REF!,\"RD4gB2lM+kM=\")","v":{"$error":"#REF!"}},{"$f":"AND(#REF!,\"RD4gB2lM+kQ=\")","v":{"$error":"#REF!"}},{"$f":"AND(#REF!,\"RD4gB2lM+kU=\")","v":{"$error":"#REF!"}},{"$f":"AND(#REF!,\"RD4gB2lM+kY=\")","v":{"$error":"#REF!"}},{"$f":"AND(#REF!,\"RD4gB2lM+kc=\")","v":{"$error":"#REF!"}},{"$f":"AND(#REF!,\"RD4gB2lM+kg=\")","v":{"$error":"#REF!"}},{"$f":"AND(#REF!,\"RD4gB2lM+kk=\")","v":{"$error":"#REF!"}},{"$f":"AND(#REF!,\"RD4gB2lM+ko=\")","v":{"$error":"#REF!"}},{"$f":"AND(#REF!,\"RD4gB2lM+ks=\")","v":{"$error":"#REF!"}},{"$f":"AND(#REF!,\"RD4gB2lM+kw=\")","v":{"$error":"#REF!"}},{"$f":"AND(#REF!,\"RD4gB2lM+k0=\")","v":{"$error":"#REF!"}},{"$f":"AND(#REF!,\"RD4gB2lM+k4=\")","v":{"$error":"#REF!"}},{"$f":"AND(#REF!,\"RD4gB2lM+k8=\")","v":{"$error":"#REF!"}},{"$f":"AND(#REF!,\"RD4gB2lM+lA=\")","v":{"$error":"#REF!"}},{"$f":"AND(#REF!,\"RD4gB2lM+lE=\")","v":{"$error":"#REF!"}},{"$f":"AND(#REF!,\"RD4gB2lM+lI=\")","v":{"$error":"#REF!"}},{"$f":"AND(#REF!,\"RD4gB2lM+lM=\")","v":{"$error":"#REF!"}},{"$f":"AND(#REF!,\"RD4gB2lM+lQ=\")","v":{"$error":"#REF!"}},{"$f":"AND(#REF!,\"RD4gB2lM+lU=\")","v":{"$error":"#REF!"}},{"$f":"AND(#REF!,\"RD4gB2lM+lY=\")","v":{"$error":"#REF!"}},{"$f":"AND(#REF!,\"RD4gB2lM+lc=\")","v":{"$error":"#REF!"}},{"$f":"AND(#REF!,\"RD4gB2lM+lg=\")","v":{"$error":"#REF!"}},{"$f":"AND(#REF!,\"RD4gB2lM+lk=\")","v":{"$error":"#REF!"}},{"$f":"AND(#REF!,\"RD4gB2lM+lo=\")","v":{"$error":"#REF!"}},{"$f":"AND(#REF!,\"RD4gB2lM+ls=\")","v":{"$error":"#REF!"}},{"$f":"AND(#REF!,\"RD4gB2lM+lw=\")","v":{"$error":"#REF!"}},{"$f":"AND(#REF!,\"RD4gB2lM+l0=\")","v":{"$error":"#REF!"}},{"$f":"AND(#REF!,\"RD4gB2lM+l4=\")","v":{"$error":"#REF!"}},{"$f":"AND(#REF!,\"RD4gB2lM+l8=\")","v":{"$error":"#REF!"}},{"$f":"AND(#REF!,\"RD4gB2lM+mA=\")","v":{"$error":"#REF!"}},{"$f":"AND(#REF!,\"RD4gB2lM+mE=\")","v":{"$error":"#REF!"}},{"$f":"AND(#REF!,\"RD4gB2lM+mI=\")","v":{"$error":"#REF!"}},{"$f":"AND(#REF!,\"RD4gB2lM+mM=\")","v":{"$error":"#REF!"}},{"$f":"AND(#REF!,\"RD4gB2lM+mQ=\")","v":{"$error":"#REF!"}},{"$f":"AND(#REF!,\"RD4gB2lM+mU=\")","v":{"$error":"#REF!"}},{"$f":"AND(#REF!,\"RD4gB2lM+mY=\")","v":{"$error":"#REF!"}},{"$f":"AND(#REF!,\"RD4gB2lM+mc=\")","v":{"$error":"#REF!"}},{"$f":"AND(#REF!,\"RD4gB2lM+mg=\")","v":{"$error":"#REF!"}},{"$f":"AND(#REF!,\"RD4gB2lM+mk=\")","v":{"$error":"#REF!"}},{"$f":"AND(#REF!,\"RD4gB2lM+mo=\")","v":{"$error":"#REF!"}},{"$f":"AND(#REF!,\"RD4gB2lM+ms=\")","v":{"$error":"#REF!"}},{"$f":"AND(#REF!,\"RD4gB2lM+mw=\")","v":{"$error":"#REF!"}},{"$f":"AND(#REF!,\"RD4gB2lM+m0=\")","v":{"$error":"#REF!"}},{"$f":"AND(#REF!,\"RD4gB2lM+m4=\")","v":{"$error":"#REF!"}},{"$f":"AND(#REF!,\"RD4gB2lM+m8=\")","v":{"$error":"#REF!"}},{"$f":"AND(#REF!,\"RD4gB2lM+nA=\")","v":{"$error":"#REF!"}},{"$f":"AND(#REF!,\"RD4gB2lM+nE=\")","v":{"$error":"#REF!"}},{"$f":"AND(#REF!,\"RD4gB2lM+nI=\")","v":{"$error":"#REF!"}},{"$f":"AND(#REF!,\"RD4gB2lM+nM=\")","v":{"$error":"#REF!"}},{"$f":"AND(#REF!,\"RD4gB2lM+nQ=\")","v":{"$error":"#REF!"}},{"$f":"AND(#REF!,\"RD4gB2lM+nU=\")","v":{"$error":"#REF!"}},{"$f":"AND(#REF!,\"RD4gB2lM+nY=\")","v":{"$error":"#REF!"}},{"$f":"AND(#REF!,\"RD4gB2lM+nc=\")","v":{"$error":"#REF!"}},{"$f":"AND(#REF!,\"RD4gB2lM+ng=\")","v":{"$error":"#REF!"}},{"$f":"AND(#REF!,\"RD4gB2lM+nk=\")","v":{"$error":"#REF!"}},{"$f":"AND(#REF!,\"RD4gB2lM+no=\")","v":{"$error":"#REF!"}},{"$f":"AND(#REF!,\"RD4gB2lM+ns=\")","v":{"$error":"#REF!"}},{"$f":"AND(#REF!,\"RD4gB2lM+nw=\")","v":{"$error":"#REF!"}},{"$f":"AND(#REF!,\"RD4gB2lM+n0=\")","v":{"$error":"#REF!"}},{"$f":"AND(#REF!,\"RD4gB2lM+n4=\")","v":{"$error":"#REF!"}},{"$f":"AND(#REF!,\"RD4gB2lM+n8=\")","v":{"$error":"#REF!"}},{"$f":"AND(#REF!,\"RD4gB2lM+oA=\")","v":{"$error":"#REF!"}},{"$f":"AND(#REF!,\"RD4gB2lM+oE=\")","v":{"$error":"#REF!"}},{"$f":"AND(#REF!,\"RD4gB2lM+oI=\")","v":{"$error":"#REF!"}},{"$f":"AND(#REF!,\"RD4gB2lM+oM=\")","v":{"$error":"#REF!"}},{"$f":"AND(#REF!,\"RD4gB2lM+oQ=\")","v":{"$error":"#REF!"}},{"$f":"AND(#REF!,\"RD4gB2lM+oU=\")","v":{"$error":"#REF!"}},{"$f":"AND(#REF!,\"RD4gB2lM+oY=\")","v":{"$error":"#REF!"}},{"$f":"AND(#REF!,\"RD4gB2lM+oc=\")","v":{"$error":"#REF!"}},{"$f":"AND(#REF!,\"RD4gB2lM+og=\")","v":{"$error":"#REF!"}},{"$f":"AND(#REF!,\"RD4gB2lM+ok=\")","v":{"$error":"#REF!"}},{"$f":"AND(#REF!,\"RD4gB2lM+oo=\")","v":{"$error":"#REF!"}},{"$f":"AND(#REF!,\"RD4gB2lM+os=\")","v":{"$error":"#REF!"}},{"$f":"AND(#REF!,\"RD4gB2lM+ow=\")","v":{"$error":"#REF!"}},{"$f":"AND(#REF!,\"RD4gB2lM+o0=\")","v":{"$error":"#REF!"}},{"$f":"AND(#REF!,\"RD4gB2lM+o4=\")","v":{"$error":"#REF!"}},{"$f":"AND(#REF!,\"RD4gB2lM+o8=\")","v":{"$error":"#REF!"}},{"$f":"AND(#REF!,\"RD4gB2lM+pA=\")","v":{"$error":"#REF!"}},{"$f":"AND(#REF!,\"RD4gB2lM+pE=\")","v":{"$error":"#REF!"}},{"$f":"AND(#REF!,\"RD4gB2lM+pI=\")","v":{"$error":"#REF!"}},{"$f":"AND(#REF!,\"RD4gB2lM+pM=\")","v":{"$error":"#REF!"}},{"$f":"AND(#REF!,\"RD4gB2lM+pQ=\")","v":{"$error":"#REF!"}},{"$f":"AND(#REF!,\"RD4gB2lM+pU=\")","v":{"$error":"#REF!"}},{"$f":"AND(#REF!,\"RD4gB2lM+pY=\")","v":{"$error":"#REF!"}},{"$f":"AND(#REF!,\"RD4gB2lM+pc=\")","v":{"$error":"#REF!"}},{"$f":"AND(#REF!,\"RD4gB2lM+pg=\")","v":{"$error":"#REF!"}},{"$f":"AND(#REF!,\"RD4gB2lM+pk=\")","v":{"$error":"#REF!"}},{"$f":"AND(#REF!,\"RD4gB2lM+po=\")","v":{"$error":"#REF!"}},{"$f":"AND(#REF!,\"RD4gB2lM+ps=\")","v":{"$error":"#REF!"}},{"$f":"AND(#REF!,\"RD4gB2lM+pw=\")","v":{"$error":"#REF!"}},{"$f":"AND(#REF!,\"RD4gB2lM+p0=\")","v":{"$error":"#REF!"}},{"$f":"AND(#REF!,\"RD4gB2lM+p4=\")","v":{"$error":"#REF!"}},{"$f":"AND(#REF!,\"RD4gB2lM+p8=\")","v":{"$error":"#REF!"}},{"$f":"AND(#REF!,\"RD4gB2lM+qA=\")","v":{"$error":"#REF!"}},{"$f":"AND(#REF!,\"RD4gB2lM+qE=\")","v":{"$error":"#REF!"}},{"$f":"AND(#REF!,\"RD4gB2lM+qI=\")","v":{"$error":"#REF!"}},{"$f":"AND(#REF!,\"RD4gB2lM+qM=\")","v":{"$error":"#REF!"}},{"$f":"AND(#REF!,\"RD4gB2lM+qQ=\")","v":{"$error":"#REF!"}},{"$f":"AND(#REF!,\"RD4gB2lM+qU=\")","v":{"$error":"#REF!"}},{"$f":"AND(#REF!,\"RD4gB2lM+qY=\")","v":{"$error":"#REF!"}},{"$f":"AND(#REF!,\"RD4gB2lM+qc=\")","v":{"$error":"#REF!"}},{"$f":"AND(#REF!,\"RD4gB2lM+qg=\")","v":{"$error":"#REF!"}},{"$f":"AND(#REF!,\"RD4gB2lM+qk=\")","v":{"$error":"#REF!"}},{"$f":"AND(#REF!,\"RD4gB2lM+qo=\")","v":{"$error":"#REF!"}},{"$f":"AND(#REF!,\"RD4gB2lM+qs=\")","v":{"$error":"#REF!"}},{"$f":"AND(#REF!,\"RD4gB2lM+qw=\")","v":{"$error":"#REF!"}},{"$f":"AND(#REF!,\"RD4gB2lM+q0=\")","v":{"$error":"#REF!"}},{"$f":"AND(#REF!,\"RD4gB2lM+q4=\")","v":{"$error":"#REF!"}},{"$f":"AND(#REF!,\"RD4gB2lM+q8=\")","v":{"$error":"#REF!"}},{"$f":"AND(#REF!,\"RD4gB2lM+rA=\")","v":{"$error":"#REF!"}},{"$f":"AND(#REF!,\"RD4gB2lM+rE=\")","v":{"$error":"#REF!"}},{"$f":"AND(#REF!,\"RD4gB2lM+rI=\")","v":{"$error":"#REF!"}},{"$f":"AND(#REF!,\"RD4gB2lM+rM=\")","v":{"$error":"#REF!"}},{"$f":"AND(#REF!,\"RD4gB2lM+rQ=\")","v":{"$error":"#REF!"}},{"$f":"AND(#REF!,\"RD4gB2lM+rU=\")","v":{"$error":"#REF!"}},{"$f":"AND(#REF!,\"RD4gB2lM+rY=\")","v":{"$error":"#REF!"}},{"$f":"AND(#REF!,\"RD4gB2lM+rc=\")","v":{"$error":"#REF!"}},{"$f":"AND(#REF!,\"RD4gB2lM+rg=\")","v":{"$error":"#REF!"}},{"$f":"AND(#REF!,\"RD4gB2lM+rk=\")","v":{"$error":"#REF!"}},{"$f":"AND(#REF!,\"RD4gB2lM+ro=\")","v":{"$error":"#REF!"}},{"$f":"AND(#REF!,\"RD4gB2lM+rs=\")","v":{"$error":"#REF!"}},{"$f":"AND(#REF!,\"RD4gB2lM+rw=\")","v":{"$error":"#REF!"}},{"$f":"AND(#REF!,\"RD4gB2lM+r0=\")","v":{"$error":"#REF!"}},{"$f":"AND(#REF!,\"RD4gB2lM+r4=\")","v":{"$error":"#REF!"}},{"$f":"AND(#REF!,\"RD4gB2lM+r8=\")","v":{"$error":"#REF!"}},{"$f":"AND(#REF!,\"RD4gB2lM+sA=\")","v":{"$error":"#REF!"}},{"$f":"AND(#REF!,\"RD4gB2lM+sE=\")","v":{"$error":"#REF!"}},{"$f":"AND(#REF!,\"RD4gB2lM+sI=\")","v":{"$error":"#REF!"}},{"$f":"AND(#REF!,\"RD4gB2lM+sM=\")","v":{"$error":"#REF!"}},{"$f":"AND(#REF!,\"RD4gB2lM+sQ=\")","v":{"$error":"#REF!"}},{"$f":"AND(#REF!,\"RD4gB2lM+sU=\")","v":{"$error":"#REF!"}},{"$f":"AND(#REF!,\"RD4gB2lM+sY=\")","v":{"$error":"#REF!"}},{"$f":"AND(#REF!,\"RD4gB2lM+sc=\")","v":{"$error":"#REF!"}},{"$f":"AND(#REF!,\"RD4gB2lM+sg=\")","v":{"$error":"#REF!"}},{"$f":"AND(#REF!,\"RD4gB2lM+sk=\")","v":{"$error":"#REF!"}},{"$f":"AND(#REF!,\"RD4gB2lM+so=\")","v":{"$error":"#REF!"}},{"$f":"AND(#REF!,\"RD4gB2lM+ss=\")","v":{"$error":"#REF!"}},{"$f":"AND(#REF!,\"RD4gB2lM+sw=\")","v":{"$error":"#REF!"}},{"$f":"AND(#REF!,\"RD4gB2lM+s0=\")","v":{"$error":"#REF!"}},{"$f":"AND(#REF!,\"RD4gB2lM+s4=\")","v":{"$error":"#REF!"}},{"$f":"AND(#REF!,\"RD4gB2lM+s8=\")","v":{"$error":"#REF!"}},{"$f":"AND(#REF!,\"RD4gB2lM+tA=\")","v":{"$error":"#REF!"}},{"$f":"AND(#REF!,\"RD4gB2lM+tE=\")","v":{"$error":"#REF!"}},{"$f":"AND(#REF!,\"RD4gB2lM+tI=\")","v":{"$error":"#REF!"}},{"$f":"AND(#REF!,\"RD4gB2lM+tM=\")","v":{"$error":"#REF!"}},{"$f":"AND(#REF!,\"RD4gB2lM+tQ=\")","v":{"$error":"#REF!"}},{"$f":"AND(#REF!,\"RD4gB2lM+tU=\")","v":{"$error":"#REF!"}},{"$f":"AND(#REF!,\"RD4gB2lM+tY=\")","v":{"$error":"#REF!"}},{"$f":"AND(#REF!,\"RD4gB2lM+tc=\")","v":{"$error":"#REF!"}},{"$f":"AND(#REF!,\"RD4gB2lM+tg=\")","v":{"$error":"#REF!"}},{"$f":"AND(#REF!,\"RD4gB2lM+tk=\")","v":{"$error":"#REF!"}},{"$f":"AND(#REF!,\"RD4gB2lM+to=\")","v":{"$error":"#REF!"}},{"$f":"AND(#REF!,\"RD4gB2lM+ts=\")","v":{"$error":"#REF!"}},{"$f":"AND(#REF!,\"RD4gB2lM+tw=\")","v":{"$error":"#REF!"}},{"$f":"AND(#REF!,\"RD4gB2lM+t0=\")","v":{"$error":"#REF!"}},{"$f":"AND(#REF!,\"RD4gB2lM+t4=\")","v":{"$error":"#REF!"}},{"$f":"AND(#REF!,\"RD4gB2lM+t8=\")","v":{"$error":"#REF!"}},{"$f":"IF(#REF!,\"RD4gB2lM+uA=\",0)","v":{"$error":"#REF!"}},{"$f":"AND(#REF!,\"RD4gB2lM+uE=\")","v":{"$error":"#REF!"}},{"$f":"AND(#REF!,\"RD4gB2lM+uI=\")","v":{"$error":"#REF!"}},{"$f":"AND(#REF!,\"RD4gB2lM+uM=\")","v":{"$error":"#REF!"}},{"$f":"AND(#REF!,\"RD4gB2lM+uQ=\")","v":{"$error":"#REF!"}},{"$f":"AND(#REF!,\"RD4gB2lM+uU=\")","v":{"$error":"#REF!"}},{"$f":"AND(#REF!,\"RD4gB2lM+uY=\")","v":{"$error":"#REF!"}},{"$f":"AND(#REF!,\"RD4gB2lM+uc=\")","v":{"$error":"#REF!"}},{"$f":"AND(#REF!,\"RD4gB2lM+ug=\")","v":{"$error":"#REF!"}},{"$f":"AND(#REF!,\"RD4gB2lM+uk=\")","v":{"$error":"#REF!"}},{"$f":"AND(#REF!,\"RD4gB2lM+uo=\")","v":{"$error":"#REF!"}},{"$f":"AND(#REF!,\"RD4gB2lM+us=\")","v":{"$error":"#REF!"}},{"$f":"AND(#REF!,\"RD4gB2lM+uw=\")","v":{"$error":"#REF!"}},{"$f":"AND(#REF!,\"RD4gB2lM+u0=\")","v":{"$error":"#REF!"}},{"$f":"AND(#REF!,\"RD4gB2lM+u4=\")","v":{"$error":"#REF!"}},{"$f":"AND(#REF!,\"RD4gB2lM+u8=\")","v":{"$error":"#REF!"}},{"$f":"AND(#REF!,\"RD4gB2lM+vA=\")","v":{"$error":"#REF!"}},{"$f":"AND(#REF!,\"RD4gB2lM+vE=\")","v":{"$error":"#REF!"}},{"$f":"AND(#REF!,\"RD4gB2lM+vI=\")","v":{"$error":"#REF!"}},{"$f":"AND(#REF!,\"RD4gB2lM+vM=\")","v":{"$error":"#REF!"}},{"$f":"AND(#REF!,\"RD4gB2lM+vQ=\")","v":{"$error":"#REF!"}},{"$f":"AND(#REF!,\"RD4gB2lM+vU=\")","v":{"$error":"#REF!"}},{"$f":"AND(#REF!,\"RD4gB2lM+vY=\")","v":{"$error":"#REF!"}},{"$f":"AND(#REF!,\"RD4gB2lM+vc=\")","v":{"$error":"#REF!"}},{"$f":"AND(#REF!,\"RD4gB2lM+vg=\")","v":{"$error":"#REF!"}},{"$f":"AND(#REF!,\"RD4gB2lM+vk=\")","v":{"$error":"#REF!"}},{"$f":"AND(#REF!,\"RD4gB2lM+vo=\")","v":{"$error":"#REF!"}},{"$f":"AND(#REF!,\"RD4gB2lM+vs=\")","v":{"$error":"#REF!"}},{"$f":"AND(#REF!,\"RD4gB2lM+vw=\")","v":{"$error":"#REF!"}},{"$f":"AND(#REF!,\"RD4gB2lM+v0=\")","v":{"$error":"#REF!"}},{"$f":"AND(#REF!,\"RD4gB2lM+v4=\")","v":{"$error":"#REF!"}},{"$f":"AND(#REF!,\"RD4gB2lM+v8=\")","v":{"$error":"#REF!"}}]
[{"$f":"AND(#REF!,\"C0xbyhTKIgA=\")","v":{"$error":"#REF!"}},{"$f":"AND(#REF!,\"C0xbyhTKIgE=\")","v":{"$error":"#REF!"}},{"$f":"AND(#REF!,\"C0xbyhTKIgI=\")","v":{"$error":"#REF!"}},{"$f":"AND(#REF!,\"C0xbyhTKIgM=\")","v":{"$error":"#REF!"}},{"$f":"AND(#REF!,\"C0xbyhTKIgQ=\")","v":{"$error":"#REF!"}},{"$f":"AND(#REF!,\"C0xbyhTKIgU=\")","v":{"$error":"#REF!"}},{"$f":"AND(#REF!,\"C0xbyhTKIgY=\")","v":{"$error":"#REF!"}},{"$f":"AND(#REF!,\"C0xbyhTKIgc=\")","v":{"$error":"#REF!"}},{"$f":"AND(#REF!,\"C0xbyhTKIgg=\")","v":{"$error":"#REF!"}},{"$f":"AND(#REF!,\"C0xbyhTKIgk=\")","v":{"$error":"#REF!"}},{"$f":"AND(#REF!,\"C0xbyhTKIgo=\")","v":{"$error":"#REF!"}},{"$f":"AND(#REF!,\"C0xbyhTKIgs=\")","v":{"$error":"#REF!"}},{"$f":"AND(#REF!,\"C0xbyhTKIgw=\")","v":{"$error":"#REF!"}},{"$f":"AND(#REF!,\"C0xbyhTKIg0=\")","v":{"$error":"#REF!"}},{"$f":"AND(#REF!,\"C0xbyhTKIg4=\")","v":{"$error":"#REF!"}},{"$f":"AND(#REF!,\"C0xbyhTKIg8=\")","v":{"$error":"#REF!"}},{"$f":"AND(#REF!,\"C0xbyhTKIhA=\")","v":{"$error":"#REF!"}},{"$f":"AND(#REF!,\"C0xbyhTKIhE=\")","v":{"$error":"#REF!"}},{"$f":"AND(#REF!,\"C0xbyhTKIhI=\")","v":{"$error":"#REF!"}},{"$f":"AND(#REF!,\"C0xbyhTKIhM=\")","v":{"$error":"#REF!"}},{"$f":"AND(#REF!,\"C0xbyhTKIhQ=\")","v":{"$error":"#REF!"}},{"$f":"AND(#REF!,\"C0xbyhTKIhU=\")","v":{"$error":"#REF!"}},{"$f":"AND(#REF!,\"C0xbyhTKIhY=\")","v":{"$error":"#REF!"}},{"$f":"AND(#REF!,\"C0xbyhTKIhc=\")","v":{"$error":"#REF!"}},{"$f":"AND(#REF!,\"C0xbyhTKIhg=\")","v":{"$error":"#REF!"}},{"$f":"AND(#REF!,\"C0xbyhTKIhk=\")","v":{"$error":"#REF!"}},{"$f":"AND(#REF!,\"C0xbyhTKIho=\")","v":{"$error":"#REF!"}},{"$f":"AND(#REF!,\"C0xbyhTKIhs=\")","v":{"$error":"#REF!"}},{"$f":"AND(#REF!,\"C0xbyhTKIhw=\")","v":{"$error":"#REF!"}},{"$f":"AND(#REF!,\"C0xbyhTKIh0=\")","v":{"$error":"#REF!"}},{"$f":"AND(#REF!,\"C0xbyhTKIh4=\")","v":{"$error":"#REF!"}},{"$f":"AND(#REF!,\"C0xbyhTKIh8=\")","v":{"$error":"#REF!"}},{"$f":"AND(#REF!,\"C0xbyhTKIiA=\")","v":{"$error":"#REF!"}},{"$f":"AND(#REF!,\"C0xbyhTKIiE=\")","v":{"$error":"#REF!"}},{"$f":"AND(#REF!,\"C0xbyhTKIiI=\")","v":{"$error":"#REF!"}},{"$f":"AND(#REF!,\"C0xbyhTKIiM=\")","v":{"$error":"#REF!"}},{"$f":"AND(#REF!,\"C0xbyhTKIiQ=\")","v":{"$error":"#REF!"}},{"$f":"AND(#REF!,\"C0xbyhTKIiU=\")","v":{"$error":"#REF!"}},{"$f":"AND(#REF!,\"C0xbyhTKIiY=\")","v":{"$error":"#REF!"}},{"$f":"AND(#REF!,\"C0xbyhTKIic=\")","v":{"$error":"#REF!"}},{"$f":"AND(#REF!,\"C0xbyhTKIig=\")","v":{"$error":"#REF!"}},{"$f":"AND(#REF!,\"C0xbyhTKIik=\")","v":{"$error":"#REF!"}},{"$f":"AND(#REF!,\"C0xbyhTKIio=\")","v":{"$error":"#REF!"}},{"$f":"AND(#REF!,\"C0xbyhTKIis=\")","v":{"$error":"#REF!"}},{"$f":"AND(#REF!,\"C0xbyhTKIiw=\")","v":{"$error":"#REF!"}},{"$f":"AND(#REF!,\"C0xbyhTKIi0=\")","v":{"$error":"#REF!"}},{"$f":"AND(#REF!,\"C0xbyhTKIi4=\")","v":{"$error":"#REF!"}},{"$f":"AND(#REF!,\"C0xbyhTKIi8=\")","v":{"$error":"#REF!"}},{"$f":"AND(#REF!,\"C0xbyhTKIjA=\")","v":{"$error":"#REF!"}},{"$f":"AND(#REF!,\"C0xbyhTKIjE=\")","v":{"$error":"#REF!"}},{"$f":"AND(#REF!,\"C0xbyhTKIjI=\")","v":{"$error":"#REF!"}},{"$f":"AND(#REF!,\"C0xbyhTKIjM=\")","v":{"$error":"#REF!"}},{"$f":"AND(#REF!,\"C0xbyhTKIjQ=\")","v":{"$error":"#REF!"}},{"$f":"AND(#REF!,\"C0xbyhTKIjU=\")","v":{"$error":"#REF!"}},{"$f":"AND(#REF!,\"C0xbyhTKIjY=\")","v":{"$error":"#REF!"}},{"$f":"AND(#REF!,\"C0xbyhTKIjc=\")","v":{"$error":"#REF!"}},{"$f":"AND(#REF!,\"C0xbyhTKIjg=\")","v":{"$error":"#REF!"}},{"$f":"AND(#REF!,\"C0xbyhTKIjk=\")","v":{"$error":"#REF!"}},{"$f":"AND(#REF!,\"C0xbyhTKIjo=\")","v":{"$error":"#REF!"}},{"$f":"AND(#REF!,\"C0xbyhTKIjs=\")","v":{"$error":"#REF!"}},{"$f":"AND(#REF!,\"C0xbyhTKIjw=\")","v":{"$error":"#REF!"}},{"$f":"AND(#REF!,\"C0xbyhTKIj0=\")","v":{"$error":"#REF!"}},{"$f":"AND(#REF!,\"C0xbyhTKIj4=\")","v":{"$error":"#REF!"}},{"$f":"AND(#REF!,\"C0xbyhTKIj8=\")","v":{"$error":"#REF!"}},{"$f":"AND(#REF!,\"C0xbyhTKIkA=\")","v":{"$error":"#REF!"}},{"$f":"AND(#REF!,\"C0xbyhTKIkE=\")","v":{"$error":"#REF!"}},{"$f":"AND(#REF!,\"C0xbyhTKIkI=\")","v":{"$error":"#REF!"}},{"$f":"AND(#REF!,\"C0xbyhTKIkM=\")","v":{"$error":"#REF!"}},{"$f":"AND(#REF!,\"C0xbyhTKIkQ=\")","v":{"$error":"#REF!"}},{"$f":"AND(#REF!,\"C0xbyhTKIkU=\")","v":{"$error":"#REF!"}},{"$f":"AND(#REF!,\"C0xbyhTKIkY=\")","v":{"$error":"#REF!"}},{"$f":"AND(#REF!,\"C0xbyhTKIkc=\")","v":{"$error":"#REF!"}},{"$f":"AND(#REF!,\"C0xbyhTKIkg=\")","v":{"$error":"#REF!"}},{"$f":"AND(#REF!,\"C0xbyhTKIkk=\")","v":{"$error":"#REF!"}},{"$f":"AND(#REF!,\"C0xbyhTKIko=\")","v":{"$error":"#REF!"}},{"$f":"AND(#REF!,\"C0xbyhTKIks=\")","v":{"$error":"#REF!"}},{"$f":"AND(#REF!,\"C0xbyhTKIkw=\")","v":{"$error":"#REF!"}},{"$f":"AND(#REF!,\"C0xbyhTKIk0=\")","v":{"$error":"#REF!"}},{"$f":"AND(#REF!,\"C0xbyhTKIk4=\")","v":{"$error":"#REF!"}},{"$f":"AND(#REF!,\"C0xbyhTKIk8=\")","v":{"$error":"#REF!"}},{"$f":"AND(#REF!,\"C0xbyhTKIlA=\")","v":{"$error":"#REF!"}},{"$f":"AND(#REF!,\"C0xbyhTKIlE=\")","v":{"$error":"#REF!"}},{"$f":"AND(#REF!,\"C0xbyhTKIlI=\")","v":{"$error":"#REF!"}},{"$f":"AND(#REF!,\"C0xbyhTKIlM=\")","v":{"$error":"#REF!"}},{"$f":"AND(#REF!,\"C0xbyhTKIlQ=\")","v":{"$error":"#REF!"}},{"$f":"AND(#REF!,\"C0xbyhTKIlU=\")","v":{"$error":"#REF!"}},{"$f":"AND(#REF!,\"C0xbyhTKIlY=\")","v":{"$error":"#REF!"}},{"$f":"AND(#REF!,\"C0xbyhTKIlc=\")","v":{"$error":"#REF!"}},{"$f":"AND(#REF!,\"C0xbyhTKIlg=\")","v":{"$error":"#REF!"}},{"$f":"AND(#REF!,\"C0xbyhTKIlk=\")","v":{"$error":"#REF!"}},{"$f":"AND(#REF!,\"C0xbyhTKIlo=\")","v":{"$error":"#REF!"}},{"$f":"AND(#REF!,\"C0xbyhTKIls=\")","v":{"$error":"#REF!"}},{"$f":"AND(#REF!,\"C0xbyhTKIlw=\")","v":{"$error":"#REF!"}},{"$f":"AND(#REF!,\"C0xbyhTKIl0=\")","v":{"$error":"#REF!"}},{"$f":"AND(#REF!,\"C0xbyhTKIl4=\")","v":{"$error":"#REF!"}},{"$f":"AND(#REF!,\"C0xbyhTKIl8=\")","v":{"$error":"#REF!"}},{"$f":"AND(#REF!,\"C0xbyhTKImA=\")","v":{"$error":"#REF!"}},{"$f":"AND(#REF!,\"C0xbyhTKImE=\")","v":{"$error":"#REF!"}},{"$f":"AND(#REF!,\"C0xbyhTKImI=\")","v":{"$error":"#REF!"}},{"$f":"AND(#REF!,\"C0xbyhTKImM=\")","v":{"$error":"#REF!"}},{"$f":"AND(#REF!,\"C0xbyhTKImQ=\")","v":{"$error":"#REF!"}},{"$f":"AND(#REF!,\"C0xbyhTKImU=\")","v":{"$error":"#REF!"}},{"$f":"AND(#REF!,\"C0xbyhTKImY=\")","v":{"$error":"#REF!"}},{"$f":"AND(#REF!,\"C0xbyhTKImc=\")","v":{"$error":"#REF!"}},{"$f":"AND(#REF!,\"C0xbyhTKImg=\")","v":{"$error":"#REF!"}},{"$f":"AND(#REF!,\"C0xbyhTKImk=\")","v":{"$error":"#REF!"}},{"$f":"AND(#REF!,\"C0xbyhTKImo=\")","v":{"$error":"#REF!"}},{"$f":"AND(#REF!,\"C0xbyhTKIms=\")","v":{"$error":"#REF!"}},{"$f":"AND(#REF!,\"C0xbyhTKImw=\")","v":{"$error":"#REF!"}},{"$f":"AND(#REF!,\"C0xbyhTKIm0=\")","v":{"$error":"#REF!"}},{"$f":"AND(#REF!,\"C0xbyhTKIm4=\")","v":{"$error":"#REF!"}},{"$f":"AND(#REF!,\"C0xbyhTKIm8=\")","v":{"$error":"#REF!"}},{"$f":"AND(#REF!,\"C0xbyhTKInA=\")","v":{"$error":"#REF!"}},{"$f":"AND(#REF!,\"C0xbyhTKInE=\")","v":{"$error":"#REF!"}},{"$f":"AND(#REF!,\"C0xbyhTKInI=\")","v":{"$error":"#REF!"}},{"$f":"AND(#REF!,\"C0xbyhTKInM=\")","v":{"$error":"#REF!"}},{"$f":"AND(#REF!,\"C0xbyhTKInQ=\")","v":{"$error":"#REF!"}},{"$f":"AND(#REF!,\"C0xbyhTKInU=\")","v":{"$error":"#REF!"}},{"$f":"AND(#REF!,\"C0xbyhTKInY=\")","v":{"$error":"#REF!"}},{"$f":"AND(#REF!,\"C0xbyhTKInc=\")","v":{"$error":"#REF!"}},{"$f":"AND(#REF!,\"C0xbyhTKIng=\")","v":{"$error":"#REF!"}},{"$f":"AND(#REF!,\"C0xbyhTKInk=\")","v":{"$error":"#REF!"}},{"$f":"AND(#REF!,\"C0xbyhTKIno=\")","v":{"$error":"#REF!"}},{"$f":"AND(#REF!,\"C0xbyhTKIns=\")","v":{"$error":"#REF!"}},{"$f":"AND(#REF!,\"C0xbyhTKInw=\")","v":{"$error":"#REF!"}},{"$f":"AND(#REF!,\"C0xbyhTKIn0=\")","v":{"$error":"#REF!"}},{"$f":"AND(#REF!,\"C0xbyhTKIn4=\")","v":{"$error":"#REF!"}},{"$f":"AND(#REF!,\"C0xbyhTKIn8=\")","v":{"$error":"#REF!"}},{"$f":"AND(#REF!,\"C0xbyhTKIoA=\")","v":{"$error":"#REF!"}},{"$f":"AND(#REF!,\"C0xbyhTKIoE=\")","v":{"$error":"#REF!"}},{"$f":"AND(#REF!,\"C0xbyhTKIoI=\")","v":{"$error":"#REF!"}},{"$f":"AND(#REF!,\"C0xbyhTKIoM=\")","v":{"$error":"#REF!"}},{"$f":"AND(#REF!,\"C0xbyhTKIoQ=\")","v":{"$error":"#REF!"}},{"$f":"AND(#REF!,\"C0xbyhTKIoU=\")","v":{"$error":"#REF!"}},{"$f":"AND(#REF!,\"C0xbyhTKIoY=\")","v":{"$error":"#REF!"}},{"$f":"AND(#REF!,\"C0xbyhTKIoc=\")","v":{"$error":"#REF!"}},{"$f":"AND(#REF!,\"C0xbyhTKIog=\")","v":{"$error":"#REF!"}},{"$f":"AND(#REF!,\"C0xbyhTKIok=\")","v":{"$error":"#REF!"}},{"$f":"AND(#REF!,\"C0xbyhTKIoo=\")","v":{"$error":"#REF!"}},{"$f":"AND(#REF!,\"C0xbyhTKIos=\")","v":{"$error":"#REF!"}},{"$f":"AND(#REF!,\"C0xbyhTKIow=\")","v":{"$error":"#REF!"}},{"$f":"AND(#REF!,\"C0xbyhTKIo0=\")","v":{"$error":"#REF!"}},{"$f":"AND(#REF!,\"C0xbyhTKIo4=\")","v":{"$error":"#REF!"}},{"$f":"AND(#REF!,\"C0xbyhTKIo8=\")","v":{"$error":"#REF!"}},{"$f":"AND(#REF!,\"C0xbyhTKIpA=\")","v":{"$error":"#REF!"}},{"$f":"AND(#REF!,\"C0xbyhTKIpE=\")","v":{"$error":"#REF!"}},{"$f":"AND(#REF!,\"C0xbyhTKIpI=\")","v":{"$error":"#REF!"}},{"$f":"AND(#REF!,\"C0xbyhTKIpM=\")","v":{"$error":"#REF!"}},{"$f":"AND(#REF!,\"C0xbyhTKIpQ=\")","v":{"$error":"#REF!"}},{"$f":"AND(#REF!,\"C0xbyhTKIpU=\")","v":{"$error":"#REF!"}},{"$f":"AND(#REF!,\"C0xbyhTKIpY=\")","v":{"$error":"#REF!"}},{"$f":"AND(#REF!,\"C0xbyhTKIpc=\")","v":{"$error":"#REF!"}},{"$f":"AND(#REF!,\"C0xbyhTKIpg=\")","v":{"$error":"#REF!"}},{"$f":"AND(#REF!,\"C0xbyhTKIpk=\")","v":{"$error":"#REF!"}},{"$f":"AND(#REF!,\"C0xbyhTKIpo=\")","v":{"$error":"#REF!"}},{"$f":"AND(#REF!,\"C0xbyhTKIps=\")","v":{"$error":"#REF!"}},{"$f":"AND(#REF!,\"C0xbyhTKIpw=\")","v":{"$error":"#REF!"}},{"$f":"AND(#REF!,\"C0xbyhTKIp0=\")","v":{"$error":"#REF!"}},{"$f":"AND(#REF!,\"C0xbyhTKIp4=\")","v":{"$error":"#REF!"}},{"$f":"AND(#REF!,\"C0xbyhTKIp8=\")","v":{"$error":"#REF!"}},{"$f":"AND(#REF!,\"C0xbyhTKIqA=\")","v":{"$error":"#REF!"}},{"$f":"AND(#REF!,\"C0xbyhTKIqE=\")","v":{"$error":"#REF!"}},{"$f":"AND(#REF!,\"C0xbyhTKIqI=\")","v":{"$error":"#REF!"}},{"$f":"AND(#REF!,\"C0xbyhTKIqM=\")","v":{"$error":"#REF!"}},{"$f":"AND(#REF!,\"C0xbyhTKIqQ=\")","v":{"$error":"#REF!"}},{"$f":"AND(#REF!,\"C0xbyhTKIqU=\")","v":{"$error":"#REF!"}},{"$f":"AND(#REF!,\"C0xbyhTKIqY=\")","v":{"$error":"#REF!"}},{"$f":"IF(#REF!,\"C0xbyhTKIqc=\",0)","v":{"$error":"#REF!"}},{"$f":"AND(#REF!,\"C0xbyhTKIqg=\")","v":{"$error":"#REF!"}},{"$f":"AND(#REF!,\"C0xbyhTKIqk=\")","v":{"$error":"#REF!"}},{"$f":"AND(#REF!,\"C0xbyhTKIqo=\")","v":{"$error":"#REF!"}},{"$f":"AND(#REF!,\"C0xbyhTKIqs=\")","v":{"$error":"#REF!"}},{"$f":"AND(#REF!,\"C0xbyhTKIqw=\")","v":{"$error":"#REF!"}},{"$f":"AND(#REF!,\"C0xbyhTKIq0=\")","v":{"$error":"#REF!"}},{"$f":"AND(#REF!,\"C0xbyhTKIq4=\")","v":{"$error":"#REF!"}},{"$f":"AND(#REF!,\"C0xbyhTKIq8=\")","v":{"$error":"#REF!"}},{"$f":"AND(#REF!,\"C0xbyhTKIrA=\")","v":{"$error":"#REF!"}},{"$f":"AND(#REF!,\"C0xbyhTKIrE=\")","v":{"$error":"#REF!"}},{"$f":"AND(#REF!,\"C0xbyhTKIrI=\")","v":{"$error":"#REF!"}},{"$f":"AND(#REF!,\"C0xbyhTKIrM=\")","v":{"$error":"#REF!"}},{"$f":"AND(#REF!,\"C0xbyhTKIrQ=\")","v":{"$error":"#REF!"}},{"$f":"AND(#REF!,\"C0xbyhTKIrU=\")","v":{"$error":"#REF!"}},{"$f":"AND(#REF!,\"C0xbyhTKIrY=\")","v":{"$error":"#REF!"}},{"$f":"AND(#REF!,\"C0xbyhTKIrc=\")","v":{"$error":"#REF!"}},{"$f":"AND(#REF!,\"C0xbyhTKIrg=\")","v":{"$error":"#REF!"}},{"$f":"AND(#REF!,\"C0xbyhTKIrk=\")","v":{"$error":"#REF!"}},{"$f":"AND(#REF!,\"C0xbyhTKIro=\")","v":{"$error":"#REF!"}},{"$f":"AND(#REF!,\"C0xbyhTKIrs=\")","v":{"$error":"#REF!"}},{"$f":"AND(#REF!,\"C0xbyhTKIrw=\")","v":{"$error":"#REF!"}},{"$f":"AND(#REF!,\"C0xbyhTKIr0=\")","v":{"$error":"#REF!"}},{"$f":"AND(#REF!,\"C0xbyhTKIr4=\")","v":{"$error":"#REF!"}},{"$f":"AND(#REF!,\"C0xbyhTKIr8=\")","v":{"$error":"#REF!"}},{"$f":"AND(#REF!,\"C0xbyhTKIsA=\")","v":{"$error":"#REF!"}},{"$f":"AND(#REF!,\"C0xbyhTKIsE=\")","v":{"$error":"#REF!"}},{"$f":"AND(#REF!,\"C0xbyhTKIsI=\")","v":{"$error":"#REF!"}},{"$f":"AND(#REF!,\"C0xbyhTKIsM=\")","v":{"$error":"#REF!"}},{"$f":"AND(#REF!,\"C0xbyhTKIsQ=\")","v":{"$error":"#REF!"}},{"$f":"AND(#REF!,\"C0xbyhTKIsU=\")","v":{"$error":"#REF!"}},{"$f":"AND(#REF!,\"C0xbyhTKIsY=\")","v":{"$error":"#REF!"}},{"$f":"AND(#REF!,\"C0xbyhTKIsc=\")","v":{"$error":"#REF!"}},{"$f":"AND(#REF!,\"C0xbyhTKIsg=\")","v":{"$error":"#REF!"}},{"$f":"AND(#REF!,\"C0xbyhTKIsk=\")","v":{"$error":"#REF!"}},{"$f":"AND(#REF!,\"C0xbyhTKIso=\")","v":{"$error":"#REF!"}},{"$f":"AND(#REF!,\"C0xbyhTKIss=\")","v":{"$error":"#REF!"}},{"$f":"AND(#REF!,\"C0xbyhTKIsw=\")","v":{"$error":"#REF!"}},{"$f":"AND(#REF!,\"C0xbyhTKIs0=\")","v":{"$error":"#REF!"}},{"$f":"AND(#REF!,\"C0xbyhTKIs4=\")","v":{"$error":"#REF!"}},{"$f":"AND(#REF!,\"C0xbyhTKIs8=\")","v":{"$error":"#REF!"}},{"$f":"AND(#REF!,\"C0xbyhTKItA=\")","v":{"$error":"#REF!"}},{"$f":"AND(#REF!,\"C0xbyhTKItE=\")","v":{"$error":"#REF!"}},{"$f":"AND(#REF!,\"C0xbyhTKItI=\")","v":{"$error":"#REF!"}},{"$f":"AND(#REF!,\"C0xbyhTKItM=\")","v":{"$error":"#REF!"}},{"$f":"AND(#REF!,\"C0xbyhTKItQ=\")","v":{"$error":"#REF!"}},{"$f":"AND(#REF!,\"C0xbyhTKItU=\")","v":{"$error":"#REF!"}},{"$f":"AND(#REF!,\"C0xbyhTKItY=\")","v":{"$error":"#REF!"}},{"$f":"AND(#REF!,\"C0xbyhTKItc=\")","v":{"$error":"#REF!"}},{"$f":"AND(#REF!,\"C0xbyhTKItg=\")","v":{"$error":"#REF!"}},{"$f":"AND(#REF!,\"C0xbyhTKItk=\")","v":{"$error":"#REF!"}},{"$f":"AND(#REF!,\"C0xbyhTKIto=\")","v":{"$error":"#REF!"}},{"$f":"AND(#REF!,\"C0xbyhTKIts=\")","v":{"$error":"#REF!"}},{"$f":"AND(#REF!,\"C0xbyhTKItw=\")","v":{"$error":"#REF!"}},{"$f":"AND(#REF!,\"C0xbyhTKIt0=\")","v":{"$error":"#REF!"}},{"$f":"AND(#REF!,\"C0xbyhTKIt4=\")","v":{"$error":"#REF!"}},{"$f":"AND(#REF!,\"C0xbyhTKIt8=\")","v":{"$error":"#REF!"}},{"$f":"AND(#REF!,\"C0xbyhTKIuA=\")","v":{"$error":"#REF!"}},{"$f":"AND(#REF!,\"C0xbyhTKIuE=\")","v":{"$error":"#REF!"}},{"$f":"AND(#REF!,\"C0xbyhTKIuI=\")","v":{"$error":"#REF!"}},{"$f":"AND(#REF!,\"C0xbyhTKIuM=\")","v":{"$error":"#REF!"}},{"$f":"AND(#REF!,\"C0xbyhTKIuQ=\")","v":{"$error":"#REF!"}},{"$f":"AND(#REF!,\"C0xbyhTKIuU=\")","v":{"$error":"#REF!"}},{"$f":"AND(#REF!,\"C0xbyhTKIuY=\")","v":{"$error":"#REF!"}},{"$f":"AND(#REF!,\"C0xbyhTKIuc=\")","v":{"$error":"#REF!"}},{"$f":"AND(#REF!,\"C0xbyhTKIug=\")","v":{"$error":"#REF!"}},{"$f":"AND(#REF!,\"C0xbyhTKIuk=\")","v":{"$error":"#REF!"}},{"$f":"AND(#REF!,\"C0xbyhTKIuo=\")","v":{"$error":"#REF!"}},{"$f":"AND(#REF!,\"C0xbyhTKIus=\")","v":{"$error":"#REF!"}},{"$f":"AND(#REF!,\"C0xbyhTKIuw=\")","v":{"$error":"#REF!"}},{"$f":"AND(#REF!,\"C0xbyhTKIu0=\")","v":{"$error":"#REF!"}},{"$f":"AND(#REF!,\"C0xbyhTKIu4=\")","v":{"$error":"#REF!"}},{"$f":"AND(#REF!,\"C0xbyhTKIu8=\")","v":{"$error":"#REF!"}},{"$f":"AND(#REF!,\"C0xbyhTKIvA=\")","v":{"$error":"#REF!"}},{"$f":"AND(#REF!,\"C0xbyhTKIvE=\")","v":{"$error":"#REF!"}},{"$f":"AND(#REF!,\"C0xbyhTKIvI=\")","v":{"$error":"#REF!"}},{"$f":"AND(#REF!,\"C0xbyhTKIvM=\")","v":{"$error":"#REF!"}},{"$f":"AND(#REF!,\"C0xbyhTKIvQ=\")","v":{"$error":"#REF!"}},{"$f":"AND(#REF!,\"C0xbyhTKIvU=\")","v":{"$error":"#REF!"}},{"$f":"AND(#REF!,\"C0xbyhTKIvY=\")","v":{"$error":"#REF!"}},{"$f":"AND(#REF!,\"C0xbyhTKIvc=\")","v":{"$error":"#REF!"}},{"$f":"AND(#REF!,\"C0xbyhTKIvg=\")","v":{"$error":"#REF!"}},{"$f":"AND(#REF!,\"C0xbyhTKIvk=\")","v":{"$error":"#REF!"}},{"$f":"AND(#REF!,\"C0xbyhTKIvo=\")","v":{"$error":"#REF!"}},{"$f":"AND(#REF!,\"C0xbyhTKIvs=\")","v":{"$error":"#REF!"}},{"$f":"AND(#REF!,\"C0xbyhTKIvw=\")","v":{"$error":"#REF!"}},{"$f":"AND(#REF!,\"C0xbyhTKIv0=\")","v":{"$error":"#REF!"}},{"$f":"AND(#REF!,\"C0xbyhTKIv4=\")","v":{"$error":"#REF!"}},{"$f":"AND(#REF!,\"C0xbyhTKIv8=\")","v":{"$error":"#REF!"}}]
[{"$f":"AND(#REF!,\"GhfGyRIAowA=\")","v":{"$error":"#REF!"}},{"$f":"AND(#REF!,\"GhfGyRIAowE=\")","v":{"$error":"#REF!"}},{"$f":"AND(#REF!,\"GhfGyRIAowI=\")","v":{"$error":"#REF!"}},{"$f":"AND(#REF!,\"GhfGyRIAowM=\")","v":{"$error":"#REF!"}},{"$f":"AND(#REF!,\"GhfGyRIAowQ=\")","v":{"$error":"#REF!"}},{"$f":"AND(#REF!,\"GhfGyRIAowU=\")","v":{"$error":"#REF!"}},{"$f":"AND(#REF!,\"GhfGyRIAowY=\")","v":{"$error":"#REF!"}},{"$f":"AND(#REF!,\"GhfGyRIAowc=\")","v":{"$error":"#REF!"}},{"$f":"AND(#REF!,\"GhfGyRIAowg=\")","v":{"$error":"#REF!"}},{"$f":"AND(#REF!,\"GhfGyRIAowk=\")","v":{"$error":"#REF!"}},{"$f":"AND(#REF!,\"GhfGyRIAowo=\")","v":{"$error":"#REF!"}},{"$f":"AND(#REF!,\"GhfGyRIAows=\")","v":{"$error":"#REF!"}},{"$f":"AND(#REF!,\"GhfGyRIAoww=\")","v":{"$error":"#REF!"}},{"$f":"AND(#REF!,\"GhfGyRIAow0=\")","v":{"$error":"#REF!"}},{"$f":"AND(#REF!,\"GhfGyRIAow4=\")","v":{"$error":"#REF!"}},{"$f":"AND(#REF!,\"GhfGyRIAow8=\")","v":{"$error":"#REF!"}},{"$f":"AND(#REF!,\"GhfGyRIAoxA=\")","v":{"$error":"#REF!"}},{"$f":"AND(#REF!,\"GhfGyRIAoxE=\")","v":{"$error":"#REF!"}},{"$f":"AND(#REF!,\"GhfGyRIAoxI=\")","v":{"$error":"#REF!"}},{"$f":"AND(#REF!,\"GhfGyRIAoxM=\")","v":{"$error":"#REF!"}},{"$f":"AND(#REF!,\"GhfGyRIAoxQ=\")","v":{"$error":"#REF!"}},{"$f":"AND(#REF!,\"GhfGyRIAoxU=\")","v":{"$error":"#REF!"}},{"$f":"AND(#REF!,\"GhfGyRIAoxY=\")","v":{"$error":"#REF!"}},{"$f":"AND(#REF!,\"GhfGyRIAoxc=\")","v":{"$error":"#REF!"}},{"$f":"AND(#REF!,\"GhfGyRIAoxg=\")","v":{"$error":"#REF!"}},{"$f":"AND(#REF!,\"GhfGyRIAoxk=\")","v":{"$error":"#REF!"}},{"$f":"AND(#REF!,\"GhfGyRIAoxo=\")","v":{"$error":"#REF!"}},{"$f":"AND(#REF!,\"GhfGyRIAoxs=\")","v":{"$error":"#REF!"}},{"$f":"AND(#REF!,\"GhfGyRIAoxw=\")","v":{"$error":"#REF!"}},{"$f":"AND(#REF!,\"GhfGyRIAox0=\")","v":{"$error":"#REF!"}},{"$f":"AND(#REF!,\"GhfGyRIAox4=\")","v":{"$error":"#REF!"}},{"$f":"AND(#REF!,\"GhfGyRIAox8=\")","v":{"$error":"#REF!"}},{"$f":"AND(#REF!,\"GhfGyRIAoyA=\")","v":{"$error":"#REF!"}},{"$f":"AND(#REF!,\"GhfGyRIAoyE=\")","v":{"$error":"#REF!"}},{"$f":"AND(#REF!,\"GhfGyRIAoyI=\")","v":{"$error":"#REF!"}},{"$f":"AND(#REF!,\"GhfGyRIAoyM=\")","v":{"$error":"#REF!"}},{"$f":"AND(#REF!,\"GhfGyRIAoyQ=\")","v":{"$error":"#REF!"}},{"$f":"AND(#REF!,\"GhfGyRIAoyU=\")","v":{"$error":"#REF!"}},{"$f":"AND(#REF!,\"GhfGyRIAoyY=\")","v":{"$error":"#REF!"}},{"$f":"AND(#REF!,\"GhfGyRIAoyc=\")","v":{"$error":"#REF!"}},{"$f":"AND(#REF!,\"GhfGyRIAoyg=\")","v":{"$error":"#REF!"}},{"$f":"AND(#REF!,\"GhfGyRIAoyk=\")","v":{"$error":"#REF!"}},{"$f":"AND(#REF!,\"GhfGyRIAoyo=\")","v":{"$error":"#REF!"}},{"$f":"AND(#REF!,\"GhfGyRIAoys=\")","v":{"$error":"#REF!"}},{"$f":"AND(#REF!,\"GhfGyRIAoyw=\")","v":{"$error":"#REF!"}},{"$f":"AND(#REF!,\"GhfGyRIAoy0=\")","v":{"$error":"#REF!"}},{"$f":"AND(#REF!,\"GhfGyRIAoy4=\")","v":{"$error":"#REF!"}},{"$f":"AND(#REF!,\"GhfGyRIAoy8=\")","v":{"$error":"#REF!"}},{"$f":"AND(#REF!,\"GhfGyRIAozA=\")","v":{"$error":"#REF!"}},{"$f":"AND(#REF!,\"GhfGyRIAozE=\")","v":{"$error":"#REF!"}},{"$f":"AND(#REF!,\"GhfGyRIAozI=\")","v":{"$error":"#REF!"}},{"$f":"AND(#REF!,\"GhfGyRIAozM=\")","v":{"$error":"#REF!"}},{"$f":"AND(#REF!,\"GhfGyRIAozQ=\")","v":{"$error":"#REF!"}},{"$f":"AND(#REF!,\"GhfGyRIAozU=\")","v":{"$error":"#REF!"}},{"$f":"AND(#REF!,\"GhfGyRIAozY=\")","v":{"$error":"#REF!"}},{"$f":"AND(#REF!,\"GhfGyRIAozc=\")","v":{"$error":"#REF!"}},{"$f":"AND(#REF!,\"GhfGyRIAozg=\")","v":{"$error":"#REF!"}},{"$f":"AND(#REF!,\"GhfGyRIAozk=\")","v":{"$error":"#REF!"}},{"$f":"AND(#REF!,\"GhfGyRIAozo=\")","v":{"$error":"#REF!"}},{"$f":"AND(#REF!,\"GhfGyRIAozs=\")","v":{"$error":"#REF!"}},{"$f":"AND(#REF!,\"GhfGyRIAozw=\")","v":{"$error":"#REF!"}},{"$f":"AND(#REF!,\"GhfGyRIAoz0=\")","v":{"$error":"#REF!"}},{"$f":"AND(#REF!,\"GhfGyRIAoz4=\")","v":{"$error":"#REF!"}},{"$f":"AND(#REF!,\"GhfGyRIAoz8=\")","v":{"$error":"#REF!"}},{"$f":"AND(#REF!,\"GhfGyRIAo0A=\")","v":{"$error":"#REF!"}},{"$f":"AND(#REF!,\"GhfGyRIAo0E=\")","v":{"$error":"#REF!"}},{"$f":"AND(#REF!,\"GhfGyRIAo0I=\")","v":{"$error":"#REF!"}},{"$f":"AND(#REF!,\"GhfGyRIAo0M=\")","v":{"$error":"#REF!"}},{"$f":"AND(#REF!,\"GhfGyRIAo0Q=\")","v":{"$error":"#REF!"}},{"$f":"AND(#REF!,\"GhfGyRIAo0U=\")","v":{"$error":"#REF!"}},{"$f":"AND(#REF!,\"GhfGyRIAo0Y=\")","v":{"$error":"#REF!"}},{"$f":"AND(#REF!,\"GhfGyRIAo0c=\")","v":{"$error":"#REF!"}},{"$f":"AND(#REF!,\"GhfGyRIAo0g=\")","v":{"$error":"#REF!"}},{"$f":"AND(#REF!,\"GhfGyRIAo0k=\")","v":{"$error":"#REF!"}},{"$f":"AND(#REF!,\"GhfGyRIAo0o=\")","v":{"$error":"#REF!"}},{"$f":"AND(#REF!,\"GhfGyRIAo0s=\")","v":{"$error":"#REF!"}},{"$f":"AND(#REF!,\"GhfGyRIAo0w=\")","v":{"$error":"#REF!"}},{"$f":"AND(#REF!,\"GhfGyRIAo00=\")","v":{"$error":"#REF!"}},{"$f":"AND(#REF!,\"GhfGyRIAo04=\")","v":{"$error":"#REF!"}},{"$f":"AND(#REF!,\"GhfGyRIAo08=\")","v":{"$error":"#REF!"}},{"$f":"AND(#REF!,\"GhfGyRIAo1A=\")","v":{"$error":"#REF!"}},{"$f":"AND(#REF!,\"GhfGyRIAo1E=\")","v":{"$error":"#REF!"}},{"$f":"AND(#REF!,\"GhfGyRIAo1I=\")","v":{"$error":"#REF!"}},{"$f":"AND(#REF!,\"GhfGyRIAo1M=\")","v":{"$error":"#REF!"}},{"$f":"AND(#REF!,\"GhfGyRIAo1Q=\")","v":{"$error":"#REF!"}},{"$f":"AND(#REF!,\"GhfGyRIAo1U=\")","v":{"$error":"#REF!"}},{"$f":"AND(#REF!,\"GhfGyRIAo1Y=\")","v":{"$error":"#REF!"}},{"$f":"AND(#REF!,\"GhfGyRIAo1c=\")","v":{"$error":"#REF!"}},{"$f":"AND(#REF!,\"GhfGyRIAo1g=\")","v":{"$error":"#REF!"}},{"$f":"AND(#REF!,\"GhfGyRIAo1k=\")","v":{"$error":"#REF!"}},{"$f":"AND(#REF!,\"GhfGyRIAo1o=\")","v":{"$error":"#REF!"}},{"$f":"AND(#REF!,\"GhfGyRIAo1s=\")","v":{"$error":"#REF!"}},{"$f":"AND(#REF!,\"GhfGyRIAo1w=\")","v":{"$error":"#REF!"}},{"$f":"AND(#REF!,\"GhfGyRIAo10=\")","v":{"$error":"#REF!"}},{"$f":"AND(#REF!,\"GhfGyRIAo14=\")","v":{"$error":"#REF!"}},{"$f":"AND(#REF!,\"GhfGyRIAo18=\")","v":{"$error":"#REF!"}},{"$f":"AND(#REF!,\"GhfGyRIAo2A=\")","v":{"$error":"#REF!"}},{"$f":"AND(#REF!,\"GhfGyRIAo2E=\")","v":{"$error":"#REF!"}},{"$f":"AND(#REF!,\"GhfGyRIAo2I=\")","v":{"$error":"#REF!"}},{"$f":"AND(#REF!,\"GhfGyRIAo2M=\")","v":{"$error":"#REF!"}},{"$f":"AND(#REF!,\"GhfGyRIAo2Q=\")","v":{"$error":"#REF!"}},{"$f":"AND(#REF!,\"GhfGyRIAo2U=\")","v":{"$error":"#REF!"}},{"$f":"AND(#REF!,\"GhfGyRIAo2Y=\")","v":{"$error":"#REF!"}},{"$f":"AND(#REF!,\"GhfGyRIAo2c=\")","v":{"$error":"#REF!"}},{"$f":"AND(#REF!,\"GhfGyRIAo2g=\")","v":{"$error":"#REF!"}},{"$f":"AND(#REF!,\"GhfGyRIAo2k=\")","v":{"$error":"#REF!"}},{"$f":"AND(#REF!,\"GhfGyRIAo2o=\")","v":{"$error":"#REF!"}},{"$f":"AND(#REF!,\"GhfGyRIAo2s=\")","v":{"$error":"#REF!"}},{"$f":"AND(#REF!,\"GhfGyRIAo2w=\")","v":{"$error":"#REF!"}},{"$f":"AND(#REF!,\"GhfGyRIAo20=\")","v":{"$error":"#REF!"}},{"$f":"IF(#REF!,\"GhfGyRIAo24=\",0)","v":{"$error":"#REF!"}},{"$f":"AND(#REF!,\"GhfGyRIAo28=\")","v":{"$error":"#REF!"}},{"$f":"AND(#REF!,\"GhfGyRIAo3A=\")","v":{"$error":"#REF!"}},{"$f":"AND(#REF!,\"GhfGyRIAo3E=\")","v":{"$error":"#REF!"}},{"$f":"AND(#REF!,\"GhfGyRIAo3I=\")","v":{"$error":"#REF!"}},{"$f":"AND(#REF!,\"GhfGyRIAo3M=\")","v":{"$error":"#REF!"}},{"$f":"AND(#REF!,\"GhfGyRIAo3Q=\")","v":{"$error":"#REF!"}},{"$f":"AND(#REF!,\"GhfGyRIAo3U=\")","v":{"$error":"#REF!"}},{"$f":"AND(#REF!,\"GhfGyRIAo3Y=\")","v":{"$error":"#REF!"}},{"$f":"AND(#REF!,\"GhfGyRIAo3c=\")","v":{"$error":"#REF!"}},{"$f":"AND(#REF!,\"GhfGyRIAo3g=\")","v":{"$error":"#REF!"}},{"$f":"AND(#REF!,\"GhfGyRIAo3k=\")","v":{"$error":"#REF!"}},{"$f":"AND(#REF!,\"GhfGyRIAo3o=\")","v":{"$error":"#REF!"}},{"$f":"AND(#REF!,\"GhfGyRIAo3s=\")","v":{"$error":"#REF!"}},{"$f":"AND(#REF!,\"GhfGyRIAo3w=\")","v":{"$error":"#REF!"}},{"$f":"AND(#REF!,\"GhfGyRIAo30=\")","v":{"$error":"#REF!"}},{"$f":"AND(#REF!,\"GhfGyRIAo34=\")","v":{"$error":"#REF!"}},{"$f":"AND(#REF!,\"GhfGyRIAo38=\")","v":{"$error":"#REF!"}},{"$f":"AND(#REF!,\"GhfGyRIAo4A=\")","v":{"$error":"#REF!"}},{"$f":"AND(#REF!,\"GhfGyRIAo4E=\")","v":{"$error":"#REF!"}},{"$f":"AND(#REF!,\"GhfGyRIAo4I=\")","v":{"$error":"#REF!"}},{"$f":"AND(#REF!,\"GhfGyRIAo4M=\")","v":{"$error":"#REF!"}},{"$f":"AND(#REF!,\"GhfGyRIAo4Q=\")","v":{"$error":"#REF!"}},{"$f":"AND(#REF!,\"GhfGyRIAo4U=\")","v":{"$error":"#REF!"}},{"$f":"AND(#REF!,\"GhfGyRIAo4Y=\")","v":{"$error":"#REF!"}},{"$f":"AND(#REF!,\"GhfGyRIAo4c=\")","v":{"$error":"#REF!"}},{"$f":"AND(#REF!,\"GhfGyRIAo4g=\")","v":{"$error":"#REF!"}},{"$f":"AND(#REF!,\"GhfGyRIAo4k=\")","v":{"$error":"#REF!"}},{"$f":"AND(#REF!,\"GhfGyRIAo4o=\")","v":{"$error":"#REF!"}},{"$f":"AND(#REF!,\"GhfGyRIAo4s=\")","v":{"$error":"#REF!"}},{"$f":"AND(#REF!,\"GhfGyRIAo4w=\")","v":{"$error":"#REF!"}},{"$f":"AND(#REF!,\"GhfGyRIAo40=\")","v":{"$error":"#REF!"}},{"$f":"AND(#REF!,\"GhfGyRIAo44=\")","v":{"$error":"#REF!"}},{"$f":"AND(#REF!,\"GhfGyRIAo48=\")","v":{"$error":"#REF!"}},{"$f":"AND(#REF!,\"GhfGyRIAo5A=\")","v":{"$error":"#REF!"}},{"$f":"AND(#REF!,\"GhfGyRIAo5E=\")","v":{"$error":"#REF!"}},{"$f":"AND(#REF!,\"GhfGyRIAo5I=\")","v":{"$error":"#REF!"}},{"$f":"AND(#REF!,\"GhfGyRIAo5M=\")","v":{"$error":"#REF!"}},{"$f":"AND(#REF!,\"GhfGyRIAo5Q=\")","v":{"$error":"#REF!"}},{"$f":"AND(#REF!,\"GhfGyRIAo5U=\")","v":{"$error":"#REF!"}},{"$f":"AND(#REF!,\"GhfGyRIAo5Y=\")","v":{"$error":"#REF!"}},{"$f":"AND(#REF!,\"GhfGyRIAo5c=\")","v":{"$error":"#REF!"}},{"$f":"AND(#REF!,\"GhfGyRIAo5g=\")","v":{"$error":"#REF!"}},{"$f":"AND(#REF!,\"GhfGyRIAo5k=\")","v":{"$error":"#REF!"}},{"$f":"AND(#REF!,\"GhfGyRIAo5o=\")","v":{"$error":"#REF!"}},{"$f":"AND(#REF!,\"GhfGyRIAo5s=\")","v":{"$error":"#REF!"}},{"$f":"AND(#REF!,\"GhfGyRIAo5w=\")","v":{"$error":"#REF!"}},{"$f":"AND(#REF!,\"GhfGyRIAo50=\")","v":{"$error":"#REF!"}},{"$f":"AND(#REF!,\"GhfGyRIAo54=\")","v":{"$error":"#REF!"}},{"$f":"AND(#REF!,\"GhfGyRIAo58=\")","v":{"$error":"#REF!"}},{"$f":"AND(#REF!,\"GhfGyRIAo6A=\")","v":{"$error":"#REF!"}},{"$f":"AND(#REF!,\"GhfGyRIAo6E=\")","v":{"$error":"#REF!"}},{"$f":"AND(#REF!,\"GhfGyRIAo6I=\")","v":{"$error":"#REF!"}},{"$f":"AND(#REF!,\"GhfGyRIAo6M=\")","v":{"$error":"#REF!"}},{"$f":"AND(#REF!,\"GhfGyRIAo6Q=\")","v":{"$error":"#REF!"}},{"$f":"AND(#REF!,\"GhfGyRIAo6U=\")","v":{"$error":"#REF!"}},{"$f":"AND(#REF!,\"GhfGyRIAo6Y=\")","v":{"$error":"#REF!"}},{"$f":"AND(#REF!,\"GhfGyRIAo6c=\")","v":{"$error":"#REF!"}},{"$f":"AND(#REF!,\"GhfGyRIAo6g=\")","v":{"$error":"#REF!"}},{"$f":"AND(#REF!,\"GhfGyRIAo6k=\")","v":{"$error":"#REF!"}},{"$f":"AND(#REF!,\"GhfGyRIAo6o=\")","v":{"$error":"#REF!"}},{"$f":"AND(#REF!,\"GhfGyRIAo6s=\")","v":{"$error":"#REF!"}},{"$f":"AND(#REF!,\"GhfGyRIAo6w=\")","v":{"$error":"#REF!"}},{"$f":"AND(#REF!,\"GhfGyRIAo60=\")","v":{"$error":"#REF!"}},{"$f":"AND(#REF!,\"GhfGyRIAo64=\")","v":{"$error":"#REF!"}},{"$f":"AND(#REF!,\"GhfGyRIAo68=\")","v":{"$error":"#REF!"}},{"$f":"AND(#REF!,\"GhfGyRIAo7A=\")","v":{"$error":"#REF!"}},{"$f":"AND(#REF!,\"GhfGyRIAo7E=\")","v":{"$error":"#REF!"}},{"$f":"AND(#REF!,\"GhfGyRIAo7I=\")","v":{"$error":"#REF!"}},{"$f":"AND(#REF!,\"GhfGyRIAo7M=\")","v":{"$error":"#REF!"}},{"$f":"AND(#REF!,\"GhfGyRIAo7Q=\")","v":{"$error":"#REF!"}},{"$f":"AND(#REF!,\"GhfGyRIAo7U=\")","v":{"$error":"#REF!"}},{"$f":"AND(#REF!,\"GhfGyRIAo7Y=\")","v":{"$error":"#REF!"}},{"$f":"AND(#REF!,\"GhfGyRIAo7c=\")","v":{"$error":"#REF!"}},{"$f":"AND(#REF!,\"GhfGyRIAo7g=\")","v":{"$error":"#REF!"}},{"$f":"AND(#REF!,\"GhfGyRIAo7k=\")","v":{"$error":"#REF!"}},{"$f":"AND(#REF!,\"GhfGyRIAo7o=\")","v":{"$error":"#REF!"}},{"$f":"AND(#REF!,\"GhfGyRIAo7s=\")","v":{"$error":"#REF!"}},{"$f":"AND(#REF!,\"GhfGyRIAo7w=\")","v":{"$error":"#REF!"}},{"$f":"AND(#REF!,\"GhfGyRIAo70=\")","v":{"$error":"#REF!"}},{"$f":"AND(#REF!,\"GhfGyRIAo74=\")","v":{"$error":"#REF!"}},{"$f":"AND(#REF!,\"GhfGyRIAo78=\")","v":{"$error":"#REF!"}},{"$f":"AND(#REF!,\"GhfGyRIAo8A=\")","v":{"$error":"#REF!"}},{"$f":"AND(#REF!,\"GhfGyRIAo8E=\")","v":{"$error":"#REF!"}},{"$f":"AND(#REF!,\"GhfGyRIAo8I=\")","v":{"$error":"#REF!"}},{"$f":"AND(#REF!,\"GhfGyRIAo8M=\")","v":{"$error":"#REF!"}},{"$f":"AND(#REF!,\"GhfGyRIAo8Q=\")","v":{"$error":"#REF!"}},{"$f":"AND(#REF!,\"GhfGyRIAo8U=\")","v":{"$error":"#REF!"}},{"$f":"AND(#REF!,\"GhfGyRIAo8Y=\")","v":{"$error":"#REF!"}},{"$f":"AND(#REF!,\"GhfGyRIAo8c=\")","v":{"$error":"#REF!"}},{"$f":"AND(#REF!,\"GhfGyRIAo8g=\")","v":{"$error":"#REF!"}},{"$f":"AND(#REF!,\"GhfGyRIAo8k=\")","v":{"$error":"#REF!"}},{"$f":"AND(#REF!,\"GhfGyRIAo8o=\")","v":{"$error":"#REF!"}},{"$f":"AND(#REF!,\"GhfGyRIAo8s=\")","v":{"$error":"#REF!"}},{"$f":"AND(#REF!,\"GhfGyRIAo8w=\")","v":{"$error":"#REF!"}},{"$f":"AND(#REF!,\"GhfGyRIAo80=\")","v":{"$error":"#REF!"}},{"$f":"AND(#REF!,\"GhfGyRIAo84=\")","v":{"$error":"#REF!"}},{"$f":"AND(#REF!,\"GhfGyRIAo88=\")","v":{"$error":"#REF!"}},{"$f":"AND(#REF!,\"GhfGyRIAo9A=\")","v":{"$error":"#REF!"}},{"$f":"AND(#REF!,\"GhfGyRIAo9E=\")","v":{"$error":"#REF!"}},{"$f":"AND(#REF!,\"GhfGyRIAo9I=\")","v":{"$error":"#REF!"}},{"$f":"AND(#REF!,\"GhfGyRIAo9M=\")","v":{"$error":"#REF!"}},{"$f":"AND(#REF!,\"GhfGyRIAo9Q=\")","v":{"$error":"#REF!"}},{"$f":"AND(#REF!,\"GhfGyRIAo9U=\")","v":{"$error":"#REF!"}},{"$f":"AND(#REF!,\"GhfGyRIAo9Y=\")","v":{"$error":"#REF!"}},{"$f":"AND(#REF!,\"GhfGyRIAo9c=\")","v":{"$error":"#REF!"}},{"$f":"AND(#REF!,\"GhfGyRIAo9g=\")","v":{"$error":"#REF!"}},{"$f":"AND(#REF!,\"GhfGyRIAo9k=\")","v":{"$error":"#REF!"}},{"$f":"AND(#REF!,\"GhfGyRIAo9o=\")","v":{"$error":"#REF!"}},{"$f":"AND(#REF!,\"GhfGyRIAo9s=\")","v":{"$error":"#REF!"}},{"$f":"AND(#REF!,\"GhfGyRIAo9w=\")","v":{"$error":"#REF!"}},{"$f":"AND(#REF!,\"GhfGyRIAo90=\")","v":{"$error":"#REF!"}},{"$f":"AND(#REF!,\"GhfGyRIAo94=\")","v":{"$error":"#REF!"}},{"$f":"AND(#REF!,\"GhfGyRIAo98=\")","v":{"$error":"#REF!"}},{"$f":"AND(#REF!,\"GhfGyRIAo+A=\")","v":{"$error":"#REF!"}},{"$f":"AND(#REF!,\"GhfGyRIAo+E=\")","v":{"$error":"#REF!"}},{"$f":"AND(#REF!,\"GhfGyRIAo+I=\")","v":{"$error":"#REF!"}},{"$f":"AND(#REF!,\"GhfGyRIAo+M=\")","v":{"$error":"#REF!"}},{"$f":"AND(#REF!,\"GhfGyRIAo+Q=\")","v":{"$error":"#REF!"}},{"$f":"AND(#REF!,\"GhfGyRIAo+U=\")","v":{"$error":"#REF!"}},{"$f":"AND(#REF!,\"GhfGyRIAo+Y=\")","v":{"$error":"#REF!"}},{"$f":"AND(#REF!,\"GhfGyRIAo+c=\")","v":{"$error":"#REF!"}},{"$f":"AND(#REF!,\"GhfGyRIAo+g=\")","v":{"$error":"#REF!"}},{"$f":"AND(#REF!,\"GhfGyRIAo+k=\")","v":{"$error":"#REF!"}},{"$f":"AND(#REF!,\"GhfGyRIAo+o=\")","v":{"$error":"#REF!"}},{"$f":"AND(#REF!,\"GhfGyRIAo+s=\")","v":{"$error":"#REF!"}},{"$f":"AND(#REF!,\"GhfGyRIAo+w=\")","v":{"$error":"#REF!"}},{"$f":"AND(#REF!,\"GhfGyRIAo+0=\")","v":{"$error":"#REF!"}},{"$f":"AND(#REF!,\"GhfGyRIAo+4=\")","v":{"$error":"#REF!"}},{"$f":"AND(#REF!,\"GhfGyRIAo+8=\")","v":{"$error":"#REF!"}},{"$f":"AND(#REF!,\"GhfGyRIAo/A=\")","v":{"$error":"#REF!"}},{"$f":"AND(#REF!,\"GhfGyRIAo/E=\")","v":{"$error":"#REF!"}},{"$f":"AND(#REF!,\"GhfGyRIAo/I=\")","v":{"$error":"#REF!"}},{"$f":"AND(#REF!,\"GhfGyRIAo/M=\")","v":{"$error":"#REF!"}},{"$f":"AND(#REF!,\"GhfGyRIAo/Q=\")","v":{"$error":"#REF!"}},{"$f":"AND(#REF!,\"GhfGyRIAo/U=\")","v":{"$error":"#REF!"}},{"$f":"AND(#REF!,\"GhfGyRIAo/Y=\")","v":{"$error":"#REF!"}},{"$f":"AND(#REF!,\"GhfGyRIAo/c=\")","v":{"$error":"#REF!"}},{"$f":"AND(#REF!,\"GhfGyRIAo/g=\")","v":{"$error":"#REF!"}},{"$f":"AND(#REF!,\"GhfGyRIAo/k=\")","v":{"$error":"#REF!"}},{"$f":"AND(#REF!,\"GhfGyRIAo/o=\")","v":{"$error":"#REF!"}},{"$f":"AND(#REF!,\"GhfGyRIAo/s=\")","v":{"$error":"#REF!"}},{"$f":"AND(#REF!,\"GhfGyRIAo/w=\")","v":{"$error":"#REF!"}},{"$f":"AND(#REF!,\"GhfGyRIAo/0=\")","v":{"$error":"#REF!"}},{"$f":"AND(#REF!,\"GhfGyRIAo/4=\")","v":{"$error":"#REF!"}},{"$f":"AND(#REF!,\"GhfGyRIAo/8=\")","v":{"$error":"#REF!"}}]
[{"$f":"AND(#REF!,\"OZ9VpVD+MgA=\")","v":{"$error":"#REF!"}},{"$f":"AND(#REF!,\"OZ9VpVD+MgE=\")","v":{"$error":"#REF!"}},{"$f":"AND(#REF!,\"OZ9VpVD+MgI=\")","v":{"$error":"#REF!"}},{"$f":"AND(#REF!,\"OZ9VpVD+MgM=\")","v":{"$error":"#REF!"}},{"$f":"AND(#REF!,\"OZ9VpVD+MgQ=\")","v":{"$error":"#REF!"}},{"$f":"AND(#REF!,\"OZ9VpVD+MgU=\")","v":{"$error":"#REF!"}},{"$f":"AND(#REF!,\"OZ9VpVD+MgY=\")","v":{"$error":"#REF!"}},{"$f":"AND(#REF!,\"OZ9VpVD+Mgc=\")","v":{"$error":"#REF!"}},{"$f":"AND(#REF!,\"OZ9VpVD+Mgg=\")","v":{"$error":"#REF!"}},{"$f":"AND(#REF!,\"OZ9VpVD+Mgk=\")","v":{"$error":"#REF!"}},{"$f":"AND(#REF!,\"OZ9VpVD+Mgo=\")","v":{"$error":"#REF!"}},{"$f":"AND(#REF!,\"OZ9VpVD+Mgs=\")","v":{"$error":"#REF!"}},{"$f":"AND(#REF!,\"OZ9VpVD+Mgw=\")","v":{"$error":"#REF!"}},{"$f":"AND(#REF!,\"OZ9VpVD+Mg0=\")","v":{"$error":"#REF!"}},{"$f":"AND(#REF!,\"OZ9VpVD+Mg4=\")","v":{"$error":"#REF!"}},{"$f":"AND(#REF!,\"OZ9VpVD+Mg8=\")","v":{"$error":"#REF!"}},{"$f":"AND(#REF!,\"OZ9VpVD+MhA=\")","v":{"$error":"#REF!"}},{"$f":"AND(#REF!,\"OZ9VpVD+MhE=\")","v":{"$error":"#REF!"}},{"$f":"AND(#REF!,\"OZ9VpVD+MhI=\")","v":{"$error":"#REF!"}},{"$f":"AND(#REF!,\"OZ9VpVD+MhM=\")","v":{"$error":"#REF!"}},{"$f":"AND(#REF!,\"OZ9VpVD+MhQ=\")","v":{"$error":"#REF!"}},{"$f":"AND(#REF!,\"OZ9VpVD+MhU=\")","v":{"$error":"#REF!"}},{"$f":"AND(#REF!,\"OZ9VpVD+MhY=\")","v":{"$error":"#REF!"}},{"$f":"AND(#REF!,\"OZ9VpVD+Mhc=\")","v":{"$error":"#REF!"}},{"$f":"AND(#REF!,\"OZ9VpVD+Mhg=\")","v":{"$error":"#REF!"}},{"$f":"AND(#REF!,\"OZ9VpVD+Mhk=\")","v":{"$error":"#REF!"}},{"$f":"AND(#REF!,\"OZ9VpVD+Mho=\")","v":{"$error":"#REF!"}},{"$f":"AND(#REF!,\"OZ9VpVD+Mhs=\")","v":{"$error":"#REF!"}},{"$f":"AND(#REF!,\"OZ9VpVD+Mhw=\")","v":{"$error":"#REF!"}},{"$f":"AND(#REF!,\"OZ9VpVD+Mh0=\")","v":{"$error":"#REF!"}},{"$f":"AND(#REF!,\"OZ9VpVD+Mh4=\")","v":{"$error":"#REF!"}},{"$f":"AND(#REF!,\"OZ9VpVD+Mh8=\")","v":{"$error":"#REF!"}},{"$f":"AND(#REF!,\"OZ9VpVD+MiA=\")","v":{"$error":"#REF!"}},{"$f":"AND(#REF!,\"OZ9VpVD+MiE=\")","v":{"$error":"#REF!"}},{"$f":"AND(#REF!,\"OZ9VpVD+MiI=\")","v":{"$error":"#REF!"}},{"$f":"AND(#REF!,\"OZ9VpVD+MiM=\")","v":{"$error":"#REF!"}},{"$f":"AND(#REF!,\"OZ9VpVD+MiQ=\")","v":{"$error":"#REF!"}},{"$f":"AND(#REF!,\"OZ9VpVD+MiU=\")","v":{"$error":"#REF!"}},{"$f":"AND(#REF!,\"OZ9VpVD+MiY=\")","v":{"$error":"#REF!"}},{"$f":"AND(#REF!,\"OZ9VpVD+Mic=\")","v":{"$error":"#REF!"}},{"$f":"AND(#REF!,\"OZ9VpVD+Mig=\")","v":{"$error":"#REF!"}},{"$f":"AND(#REF!,\"OZ9VpVD+Mik=\")","v":{"$error":"#REF!"}},{"$f":"AND(#REF!,\"OZ9VpVD+Mio=\")","v":{"$error":"#REF!"}},{"$f":"AND(#REF!,\"OZ9VpVD+Mis=\")","v":{"$error":"#REF!"}},{"$f":"AND(#REF!,\"OZ9VpVD+Miw=\")","v":{"$error":"#REF!"}},{"$f":"AND(#REF!,\"OZ9VpVD+Mi0=\")","v":{"$error":"#REF!"}},{"$f":"AND(#REF!,\"OZ9VpVD+Mi4=\")","v":{"$error":"#REF!"}},{"$f":"AND(#REF!,\"OZ9VpVD+Mi8=\")","v":{"$error":"#REF!"}},{"$f":"AND(#REF!,\"OZ9VpVD+MjA=\")","v":{"$error":"#REF!"}},{"$f":"AND(#REF!,\"OZ9VpVD+MjE=\")","v":{"$error":"#REF!"}},{"$f":"AND(#REF!,\"OZ9VpVD+MjI=\")","v":{"$error":"#REF!"}},{"$f":"AND(#REF!,\"OZ9VpVD+MjM=\")","v":{"$error":"#REF!"}},{"$f":"AND(#REF!,\"OZ9VpVD+MjQ=\")","v":{"$error":"#REF!"}},{"$f":"IF(#REF!,\"OZ9VpVD+MjU=\",0)","v":{"$error":"#REF!"}},{"$f":"AND(#REF!,\"OZ9VpVD+MjY=\")","v":{"$error":"#REF!"}},{"$f":"AND(#REF!,\"OZ9VpVD+Mjc=\")","v":{"$error":"#REF!"}},{"$f":"AND(#REF!,\"OZ9VpVD+Mjg=\")","v":{"$error":"#REF!"}},{"$f":"AND(#REF!,\"OZ9VpVD+Mjk=\")","v":{"$error":"#REF!"}},{"$f":"AND(#REF!,\"OZ9VpVD+Mjo=\")","v":{"$error":"#REF!"}},{"$f":"AND(#REF!,\"OZ9VpVD+Mjs=\")","v":{"$error":"#REF!"}},{"$f":"AND(#REF!,\"OZ9VpVD+Mjw=\")","v":{"$error":"#REF!"}},{"$f":"AND(#REF!,\"OZ9VpVD+Mj0=\")","v":{"$error":"#REF!"}},{"$f":"AND(#REF!,\"OZ9VpVD+Mj4=\")","v":{"$error":"#REF!"}},{"$f":"AND(#REF!,\"OZ9VpVD+Mj8=\")","v":{"$error":"#REF!"}},{"$f":"AND(#REF!,\"OZ9VpVD+MkA=\")","v":{"$error":"#REF!"}},{"$f":"AND(#REF!,\"OZ9VpVD+MkE=\")","v":{"$error":"#REF!"}},{"$f":"AND(#REF!,\"OZ9VpVD+MkI=\")","v":{"$error":"#REF!"}},{"$f":"AND(#REF!,\"OZ9VpVD+MkM=\")","v":{"$error":"#REF!"}},{"$f":"AND(#REF!,\"OZ9VpVD+MkQ=\")","v":{"$error":"#REF!"}},{"$f":"AND(#REF!,\"OZ9VpVD+MkU=\")","v":{"$error":"#REF!"}},{"$f":"AND(#REF!,\"OZ9VpVD+MkY=\")","v":{"$error":"#REF!"}},{"$f":"AND(#REF!,\"OZ9VpVD+Mkc=\")","v":{"$error":"#REF!"}},{"$f":"AND(#REF!,\"OZ9VpVD+Mkg=\")","v":{"$error":"#REF!"}},{"$f":"AND(#REF!,\"OZ9VpVD+Mkk=\")","v":{"$error":"#REF!"}},{"$f":"AND(#REF!,\"OZ9VpVD+Mko=\")","v":{"$error":"#REF!"}},{"$f":"AND(#REF!,\"OZ9VpVD+Mks=\")","v":{"$error":"#REF!"}},{"$f":"AND(#REF!,\"OZ9VpVD+Mkw=\")","v":{"$error":"#REF!"}},{"$f":"AND(#REF!,\"OZ9VpVD+Mk0=\")","v":{"$error":"#REF!"}},{"$f":"AND(#REF!,\"OZ9VpVD+Mk4=\")","v":{"$error":"#REF!"}},{"$f":"AND(#REF!,\"OZ9VpVD+Mk8=\")","v":{"$error":"#REF!"}},{"$f":"AND(#REF!,\"OZ9VpVD+MlA=\")","v":{"$error":"#REF!"}},{"$f":"AND(#REF!,\"OZ9VpVD+MlE=\")","v":{"$error":"#REF!"}},{"$f":"AND(#REF!,\"OZ9VpVD+MlI=\")","v":{"$error":"#REF!"}},{"$f":"AND(#REF!,\"OZ9VpVD+MlM=\")","v":{"$error":"#REF!"}},{"$f":"AND(#REF!,\"OZ9VpVD+MlQ=\")","v":{"$error":"#REF!"}},{"$f":"AND(#REF!,\"OZ9VpVD+MlU=\")","v":{"$error":"#REF!"}},{"$f":"AND(#REF!,\"OZ9VpVD+MlY=\")","v":{"$error":"#REF!"}},{"$f":"AND(#REF!,\"OZ9VpVD+Mlc=\")","v":{"$error":"#REF!"}},{"$f":"AND(#REF!,\"OZ9VpVD+Mlg=\")","v":{"$error":"#REF!"}},{"$f":"AND(#REF!,\"OZ9VpVD+Mlk=\")","v":{"$error":"#REF!"}},{"$f":"AND(#REF!,\"OZ9VpVD+Mlo=\")","v":{"$error":"#REF!"}},{"$f":"AND(#REF!,\"OZ9VpVD+Mls=\")","v":{"$error":"#REF!"}},{"$f":"AND(#REF!,\"OZ9VpVD+Mlw=\")","v":{"$error":"#REF!"}},{"$f":"AND(#REF!,\"OZ9VpVD+Ml0=\")","v":{"$error":"#REF!"}},{"$f":"AND(#REF!,\"OZ9VpVD+Ml4=\")","v":{"$error":"#REF!"}},{"$f":"AND(#REF!,\"OZ9VpVD+Ml8=\")","v":{"$error":"#REF!"}},{"$f":"AND(#REF!,\"OZ9VpVD+MmA=\")","v":{"$error":"#REF!"}},{"$f":"AND(#REF!,\"OZ9VpVD+MmE=\")","v":{"$error":"#REF!"}},{"$f":"AND(#REF!,\"OZ9VpVD+MmI=\")","v":{"$error":"#REF!"}},{"$f":"AND(#REF!,\"OZ9VpVD+MmM=\")","v":{"$error":"#REF!"}},{"$f":"AND(#REF!,\"OZ9VpVD+MmQ=\")","v":{"$error":"#REF!"}},{"$f":"AND(#REF!,\"OZ9VpVD+MmU=\")","v":{"$error":"#REF!"}},{"$f":"AND(#REF!,\"OZ9VpVD+MmY=\")","v":{"$error":"#REF!"}},{"$f":"AND(#REF!,\"OZ9VpVD+Mmc=\")","v":{"$error":"#REF!"}},{"$f":"AND(#REF!,\"OZ9VpVD+Mmg=\")","v":{"$error":"#REF!"}},{"$f":"AND(#REF!,\"OZ9VpVD+Mmk=\")","v":{"$error":"#REF!"}},{"$f":"AND(#REF!,\"OZ9VpVD+Mmo=\")","v":{"$error":"#REF!"}},{"$f":"AND(#REF!,\"OZ9VpVD+Mms=\")","v":{"$error":"#REF!"}},{"$f":"AND(#REF!,\"OZ9VpVD+Mmw=\")","v":{"$error":"#REF!"}},{"$f":"AND(#REF!,\"OZ9VpVD+Mm0=\")","v":{"$error":"#REF!"}},{"$f":"AND(#REF!,\"OZ9VpVD+Mm4=\")","v":{"$error":"#REF!"}},{"$f":"AND(#REF!,\"OZ9VpVD+Mm8=\")","v":{"$error":"#REF!"}},{"$f":"AND(#REF!,\"OZ9VpVD+MnA=\")","v":{"$error":"#REF!"}},{"$f":"AND(#REF!,\"OZ9VpVD+MnE=\")","v":{"$error":"#REF!"}},{"$f":"AND(#REF!,\"OZ9VpVD+MnI=\")","v":{"$error":"#REF!"}},{"$f":"AND(#REF!,\"OZ9VpVD+MnM=\")","v":{"$error":"#REF!"}},{"$f":"AND(#REF!,\"OZ9VpVD+MnQ=\")","v":{"$error":"#REF!"}},{"$f":"AND(#REF!,\"OZ9VpVD+MnU=\")","v":{"$error":"#REF!"}},{"$f":"AND(#REF!,\"OZ9VpVD+MnY=\")","v":{"$error":"#REF!"}},{"$f":"AND(#REF!,\"OZ9VpVD+Mnc=\")","v":{"$error":"#REF!"}},{"$f":"AND(#REF!,\"OZ9VpVD+Mng=\")","v":{"$error":"#REF!"}},{"$f":"AND(#REF!,\"OZ9VpVD+Mnk=\")","v":{"$error":"#REF!"}},{"$f":"AND(#REF!,\"OZ9VpVD+Mno=\")","v":{"$error":"#REF!"}},{"$f":"AND(#REF!,\"OZ9VpVD+Mns=\")","v":{"$error":"#REF!"}},{"$f":"AND(#REF!,\"OZ9VpVD+Mnw=\")","v":{"$error":"#REF!"}},{"$f":"AND(#REF!,\"OZ9VpVD+Mn0=\")","v":{"$error":"#REF!"}},{"$f":"AND(#REF!,\"OZ9VpVD+Mn4=\")","v":{"$error":"#REF!"}},{"$f":"AND(#REF!,\"OZ9VpVD+Mn8=\")","v":{"$error":"#REF!"}},{"$f":"AND(#REF!,\"OZ9VpVD+MoA=\")","v":{"$error":"#REF!"}},{"$f":"AND(#REF!,\"OZ9VpVD+MoE=\")","v":{"$error":"#REF!"}},{"$f":"AND(#REF!,\"OZ9VpVD+MoI=\")","v":{"$error":"#REF!"}},{"$f":"AND(#REF!,\"OZ9VpVD+MoM=\")","v":{"$error":"#REF!"}},{"$f":"AND(#REF!,\"OZ9VpVD+MoQ=\")","v":{"$error":"#REF!"}},{"$f":"AND(#REF!,\"OZ9VpVD+MoU=\")","v":{"$error":"#REF!"}},{"$f":"AND(#REF!,\"OZ9VpVD+MoY=\")","v":{"$error":"#REF!"}},{"$f":"AND(#REF!,\"OZ9VpVD+Moc=\")","v":{"$error":"#REF!"}},{"$f":"AND(#REF!,\"OZ9VpVD+Mog=\")","v":{"$error":"#REF!"}},{"$f":"AND(#REF!,\"OZ9VpVD+Mok=\")","v":{"$error":"#REF!"}},{"$f":"AND(#REF!,\"OZ9VpVD+Moo=\")","v":{"$error":"#REF!"}},{"$f":"AND(#REF!,\"OZ9VpVD+Mos=\")","v":{"$error":"#REF!"}},{"$f":"AND(#REF!,\"OZ9VpVD+Mow=\")","v":{"$error":"#REF!"}},{"$f":"AND(#REF!,\"OZ9VpVD+Mo0=\")","v":{"$error":"#REF!"}},{"$f":"AND(#REF!,\"OZ9VpVD+Mo4=\")","v":{"$error":"#REF!"}},{"$f":"AND(#REF!,\"OZ9VpVD+Mo8=\")","v":{"$error":"#REF!"}},{"$f":"AND(#REF!,\"OZ9VpVD+MpA=\")","v":{"$error":"#REF!"}},{"$f":"AND(#REF!,\"OZ9VpVD+MpE=\")","v":{"$error":"#REF!"}},{"$f":"AND(#REF!,\"OZ9VpVD+MpI=\")","v":{"$error":"#REF!"}},{"$f":"AND(#REF!,\"OZ9VpVD+MpM=\")","v":{"$error":"#REF!"}},{"$f":"AND(#REF!,\"OZ9VpVD+MpQ=\")","v":{"$error":"#REF!"}},{"$f":"AND(#REF!,\"OZ9VpVD+MpU=\")","v":{"$error":"#REF!"}},{"$f":"AND(#REF!,\"OZ9VpVD+MpY=\")","v":{"$error":"#REF!"}},{"$f":"AND(#REF!,\"OZ9VpVD+Mpc=\")","v":{"$error":"#REF!"}},{"$f":"AND(#REF!,\"OZ9VpVD+Mpg=\")","v":{"$error":"#REF!"}},{"$f":"AND(#REF!,\"OZ9VpVD+Mpk=\")","v":{"$error":"#REF!"}},{"$f":"AND(#REF!,\"OZ9VpVD+Mpo=\")","v":{"$error":"#REF!"}},{"$f":"AND(#REF!,\"OZ9VpVD+Mps=\")","v":{"$error":"#REF!"}},{"$f":"AND(#REF!,\"OZ9VpVD+Mpw=\")","v":{"$error":"#REF!"}},{"$f":"AND(#REF!,\"OZ9VpVD+Mp0=\")","v":{"$error":"#REF!"}},{"$f":"AND(#REF!,\"OZ9VpVD+Mp4=\")","v":{"$error":"#REF!"}},{"$f":"AND(#REF!,\"OZ9VpVD+Mp8=\")","v":{"$error":"#REF!"}},{"$f":"AND(#REF!,\"OZ9VpVD+MqA=\")","v":{"$error":"#REF!"}},{"$f":"AND(#REF!,\"OZ9VpVD+MqE=\")","v":{"$error":"#REF!"}},{"$f":"AND(#REF!,\"OZ9VpVD+MqI=\")","v":{"$error":"#REF!"}},{"$f":"AND(#REF!,\"OZ9VpVD+MqM=\")","v":{"$error":"#REF!"}},{"$f":"AND(#REF!,\"OZ9VpVD+MqQ=\")","v":{"$error":"#REF!"}},{"$f":"AND(#REF!,\"OZ9VpVD+MqU=\")","v":{"$error":"#REF!"}},{"$f":"AND(#REF!,\"OZ9VpVD+MqY=\")","v":{"$error":"#REF!"}},{"$f":"AND(#REF!,\"OZ9VpVD+Mqc=\")","v":{"$error":"#REF!"}},{"$f":"AND(#REF!,\"OZ9VpVD+Mqg=\")","v":{"$error":"#REF!"}},{"$f":"AND(#REF!,\"OZ9VpVD+Mqk=\")","v":{"$error":"#REF!"}},{"$f":"AND(#REF!,\"OZ9VpVD+Mqo=\")","v":{"$error":"#REF!"}},{"$f":"AND(#REF!,\"OZ9VpVD+Mqs=\")","v":{"$error":"#REF!"}},{"$f":"AND(#REF!,\"OZ9VpVD+Mqw=\")","v":{"$error":"#REF!"}},{"$f":"AND(#REF!,\"OZ9VpVD+Mq0=\")","v":{"$error":"#REF!"}},{"$f":"AND(#REF!,\"OZ9VpVD+Mq4=\")","v":{"$error":"#REF!"}},{"$f":"AND(#REF!,\"OZ9VpVD+Mq8=\")","v":{"$error":"#REF!"}},{"$f":"AND(#REF!,\"OZ9VpVD+MrA=\")","v":{"$error":"#REF!"}},{"$f":"AND(#REF!,\"OZ9VpVD+MrE=\")","v":{"$error":"#REF!"}},{"$f":"AND(#REF!,\"OZ9VpVD+MrI=\")","v":{"$error":"#REF!"}},{"$f":"AND(#REF!,\"OZ9VpVD+MrM=\")","v":{"$error":"#REF!"}},{"$f":"AND(#REF!,\"OZ9VpVD+MrQ=\")","v":{"$error":"#REF!"}},{"$f":"AND(#REF!,\"OZ9VpVD+MrU=\")","v":{"$error":"#REF!"}},{"$f":"AND(#REF!,\"OZ9VpVD+MrY=\")","v":{"$error":"#REF!"}},{"$f":"AND(#REF!,\"OZ9VpVD+Mrc=\")","v":{"$error":"#REF!"}},{"$f":"AND(#REF!,\"OZ9VpVD+Mrg=\")","v":{"$error":"#REF!"}},{"$f":"AND(#REF!,\"OZ9VpVD+Mrk=\")","v":{"$error":"#REF!"}},{"$f":"AND(#REF!,\"OZ9VpVD+Mro=\")","v":{"$error":"#REF!"}},{"$f":"AND(#REF!,\"OZ9VpVD+Mrs=\")","v":{"$error":"#REF!"}},{"$f":"AND(#REF!,\"OZ9VpVD+Mrw=\")","v":{"$error":"#REF!"}},{"$f":"AND(#REF!,\"OZ9VpVD+Mr0=\")","v":{"$error":"#REF!"}},{"$f":"AND(#REF!,\"OZ9VpVD+Mr4=\")","v":{"$error":"#REF!"}},{"$f":"AND(#REF!,\"OZ9VpVD+Mr8=\")","v":{"$error":"#REF!"}},{"$f":"AND(#REF!,\"OZ9VpVD+MsA=\")","v":{"$error":"#REF!"}},{"$f":"AND(#REF!,\"OZ9VpVD+MsE=\")","v":{"$error":"#REF!"}},{"$f":"AND(#REF!,\"OZ9VpVD+MsI=\")","v":{"$error":"#REF!"}},{"$f":"AND(#REF!,\"OZ9VpVD+MsM=\")","v":{"$error":"#REF!"}},{"$f":"AND(#REF!,\"OZ9VpVD+MsQ=\")","v":{"$error":"#REF!"}},{"$f":"AND(#REF!,\"OZ9VpVD+MsU=\")","v":{"$error":"#REF!"}},{"$f":"AND(#REF!,\"OZ9VpVD+MsY=\")","v":{"$error":"#REF!"}},{"$f":"AND(#REF!,\"OZ9VpVD+Msc=\")","v":{"$error":"#REF!"}},{"$f":"AND(#REF!,\"OZ9VpVD+Msg=\")","v":{"$error":"#REF!"}},{"$f":"AND(#REF!,\"OZ9VpVD+Msk=\")","v":{"$error":"#REF!"}},{"$f":"AND(#REF!,\"OZ9VpVD+Mso=\")","v":{"$error":"#REF!"}},{"$f":"AND(#REF!,\"OZ9VpVD+Mss=\")","v":{"$error":"#REF!"}},{"$f":"AND(#REF!,\"OZ9VpVD+Msw=\")","v":{"$error":"#REF!"}},{"$f":"AND(#REF!,\"OZ9VpVD+Ms0=\")","v":{"$error":"#REF!"}},{"$f":"AND(#REF!,\"OZ9VpVD+Ms4=\")","v":{"$error":"#REF!"}},{"$f":"AND(#REF!,\"OZ9VpVD+Ms8=\")","v":{"$error":"#REF!"}},{"$f":"AND(#REF!,\"OZ9VpVD+MtA=\")","v":{"$error":"#REF!"}},{"$f":"AND(#REF!,\"OZ9VpVD+MtE=\")","v":{"$error":"#REF!"}},{"$f":"AND(#REF!,\"OZ9VpVD+MtI=\")","v":{"$error":"#REF!"}},{"$f":"AND(#REF!,\"OZ9VpVD+MtM=\")","v":{"$error":"#REF!"}},{"$f":"AND(#REF!,\"OZ9VpVD+MtQ=\")","v":{"$error":"#REF!"}},{"$f":"AND(#REF!,\"OZ9VpVD+MtU=\")","v":{"$error":"#REF!"}},{"$f":"AND(#REF!,\"OZ9VpVD+MtY=\")","v":{"$error":"#REF!"}},{"$f":"AND(#REF!,\"OZ9VpVD+Mtc=\")","v":{"$error":"#REF!"}},{"$f":"AND(#REF!,\"OZ9VpVD+Mtg=\")","v":{"$error":"#REF!"}},{"$f":"AND(#REF!,\"OZ9VpVD+Mtk=\")","v":{"$error":"#REF!"}},{"$f":"AND(#REF!,\"OZ9VpVD+Mto=\")","v":{"$error":"#REF!"}},{"$f":"AND(#REF!,\"OZ9VpVD+Mts=\")","v":{"$error":"#REF!"}},{"$f":"AND(#REF!,\"OZ9VpVD+Mtw=\")","v":{"$error":"#REF!"}},{"$f":"AND(#REF!,\"OZ9VpVD+Mt0=\")","v":{"$error":"#REF!"}},{"$f":"AND(#REF!,\"OZ9VpVD+Mt4=\")","v":{"$error":"#REF!"}},{"$f":"AND(#REF!,\"OZ9VpVD+Mt8=\")","v":{"$error":"#REF!"}},{"$f":"AND(#REF!,\"OZ9VpVD+MuA=\")","v":{"$error":"#REF!"}},{"$f":"AND(#REF!,\"OZ9VpVD+MuE=\")","v":{"$error":"#REF!"}},{"$f":"AND(#REF!,\"OZ9VpVD+MuI=\")","v":{"$error":"#REF!"}},{"$f":"AND(#REF!,\"OZ9VpVD+MuM=\")","v":{"$error":"#REF!"}},{"$f":"AND(#REF!,\"OZ9VpVD+MuQ=\")","v":{"$error":"#REF!"}},{"$f":"AND(#REF!,\"OZ9VpVD+MuU=\")","v":{"$error":"#REF!"}},{"$f":"AND(#REF!,\"OZ9VpVD+MuY=\")","v":{"$error":"#REF!"}},{"$f":"AND(#REF!,\"OZ9VpVD+Muc=\")","v":{"$error":"#REF!"}},{"$f":"AND(#REF!,\"OZ9VpVD+Mug=\")","v":{"$error":"#REF!"}},{"$f":"AND(#REF!,\"OZ9VpVD+Muk=\")","v":{"$error":"#REF!"}},{"$f":"AND(#REF!,\"OZ9VpVD+Muo=\")","v":{"$error":"#REF!"}},{"$f":"AND(#REF!,\"OZ9VpVD+Mus=\")","v":{"$error":"#REF!"}},{"$f":"AND(#REF!,\"OZ9VpVD+Muw=\")","v":{"$error":"#REF!"}},{"$f":"AND(#REF!,\"OZ9VpVD+Mu0=\")","v":{"$error":"#REF!"}},{"$f":"AND(#REF!,\"OZ9VpVD+Mu4=\")","v":{"$error":"#REF!"}},{"$f":"AND(#REF!,\"OZ9VpVD+Mu8=\")","v":{"$error":"#REF!"}},{"$f":"AND(#REF!,\"OZ9VpVD+MvA=\")","v":{"$error":"#REF!"}},{"$f":"AND(#REF!,\"OZ9VpVD+MvE=\")","v":{"$error":"#REF!"}},{"$f":"AND(#REF!,\"OZ9VpVD+MvI=\")","v":{"$error":"#REF!"}},{"$f":"AND(#REF!,\"OZ9VpVD+MvM=\")","v":{"$error":"#REF!"}},{"$f":"AND(#REF!,\"OZ9VpVD+MvQ=\")","v":{"$error":"#REF!"}},{"$f":"AND(#REF!,\"OZ9VpVD+MvU=\")","v":{"$error":"#REF!"}},{"$f":"AND(#REF!,\"OZ9VpVD+MvY=\")","v":{"$error":"#REF!"}},{"$f":"AND(#REF!,\"OZ9VpVD+Mvc=\")","v":{"$error":"#REF!"}},{"$f":"AND(#REF!,\"OZ9VpVD+Mvg=\")","v":{"$error":"#REF!"}},{"$f":"AND(#REF!,\"OZ9VpVD+Mvk=\")","v":{"$error":"#REF!"}},{"$f":"AND(#REF!,\"OZ9VpVD+Mvo=\")","v":{"$error":"#REF!"}},{"$f":"AND(#REF!,\"OZ9VpVD+Mvs=\")","v":{"$error":"#REF!"}},{"$f":"IF(#REF!,\"OZ9VpVD+Mvw=\",0)","v":{"$error":"#REF!"}},{"$f":"AND(#REF!,\"OZ9VpVD+Mv0=\")","v":{"$error":"#REF!"}},{"$f":"AND(#REF!,\"OZ9VpVD+Mv4=\")","v":{"$error":"#REF!"}},{"$f":"AND(#REF!,\"OZ9VpVD+Mv8=\")","v":{"$error":"#REF!"}}]
[{"$f":"AND(#REF!,\"LJSOTg05gAA=\")","v":{"$error":"#REF!"}},{"$f":"AND(#REF!,\"LJSOTg05gAE=\")","v":{"$error":"#REF!"}},{"$f":"AND(#REF!,\"LJSOTg05gAI=\")","v":{"$error":"#REF!"}},{"$f":"AND(#REF!,\"LJSOTg05gAM=\")","v":{"$error":"#REF!"}},{"$f":"AND(#REF!,\"LJSOTg05gAQ=\")","v":{"$error":"#REF!"}},{"$f":"AND(#REF!,\"LJSOTg05gAU=\")","v":{"$error":"#REF!"}},{"$f":"AND(#REF!,\"LJSOTg05gAY=\")","v":{"$error":"#REF!"}},{"$f":"AND(#REF!,\"LJSOTg05gAc=\")","v":{"$error":"#REF!"}},{"$f":"AND(#REF!,\"LJSOTg05gAg=\")","v":{"$error":"#REF!"}},{"$f":"AND(#REF!,\"LJSOTg05gAk=\")","v":{"$error":"#REF!"}},{"$f":"AND(#REF!,\"LJSOTg05gAo=\")","v":{"$error":"#REF!"}},{"$f":"AND(#REF!,\"LJSOTg05gAs=\")","v":{"$error":"#REF!"}},{"$f":"AND(#REF!,\"LJSOTg05gAw=\")","v":{"$error":"#REF!"}},{"$f":"AND(#REF!,\"LJSOTg05gA0=\")","v":{"$error":"#REF!"}},{"$f":"AND(#REF!,\"LJSOTg05gA4=\")","v":{"$error":"#REF!"}},{"$f":"AND(#REF!,\"LJSOTg05gA8=\")","v":{"$error":"#REF!"}},{"$f":"AND(#REF!,\"LJSOTg05gBA=\")","v":{"$error":"#REF!"}},{"$f":"AND(#REF!,\"LJSOTg05gBE=\")","v":{"$error":"#REF!"}},{"$f":"AND(#REF!,\"LJSOTg05gBI=\")","v":{"$error":"#REF!"}},{"$f":"AND(#REF!,\"LJSOTg05gBM=\")","v":{"$error":"#REF!"}},{"$f":"AND(#REF!,\"LJSOTg05gBQ=\")","v":{"$error":"#REF!"}},{"$f":"AND(#REF!,\"LJSOTg05gBU=\")","v":{"$error":"#REF!"}},{"$f":"AND(#REF!,\"LJSOTg05gBY=\")","v":{"$error":"#REF!"}},{"$f":"AND(#REF!,\"LJSOTg05gBc=\")","v":{"$error":"#REF!"}},{"$f":"AND(#REF!,\"LJSOTg05gBg=\")","v":{"$error":"#REF!"}},{"$f":"AND(#REF!,\"LJSOTg05gBk=\")","v":{"$error":"#REF!"}},{"$f":"AND(#REF!,\"LJSOTg05gBo=\")","v":{"$error":"#REF!"}},{"$f":"AND(#REF!,\"LJSOTg05gBs=\")","v":{"$error":"#REF!"}},{"$f":"AND(#REF!,\"LJSOTg05gBw=\")","v":{"$error":"#REF!"}},{"$f":"AND(#REF!,\"LJSOTg05gB0=\")","v":{"$error":"#REF!"}},{"$f":"AND(#REF!,\"LJSOTg05gB4=\")","v":{"$error":"#REF!"}},{"$f":"AND(#REF!,\"LJSOTg05gB8=\")","v":{"$error":"#REF!"}},{"$f":"AND(#REF!,\"LJSOTg05gCA=\")","v":{"$error":"#REF!"}},{"$f":"AND(#REF!,\"LJSOTg05gCE=\")","v":{"$error":"#REF!"}},{"$f":"AND(#REF!,\"LJSOTg05gCI=\")","v":{"$error":"#REF!"}},{"$f":"AND(#REF!,\"LJSOTg05gCM=\")","v":{"$error":"#REF!"}},{"$f":"AND(#REF!,\"LJSOTg05gCQ=\")","v":{"$error":"#REF!"}},{"$f":"AND(#REF!,\"LJSOTg05gCU=\")","v":{"$error":"#REF!"}},{"$f":"AND(#REF!,\"LJSOTg05gCY=\")","v":{"$error":"#REF!"}},{"$f":"AND(#REF!,\"LJSOTg05gCc=\")","v":{"$error":"#REF!"}},{"$f":"AND(#REF!,\"LJSOTg05gCg=\")","v":{"$error":"#REF!"}},{"$f":"AND(#REF!,\"LJSOTg05gCk=\")","v":{"$error":"#REF!"}},{"$f":"AND(#REF!,\"LJSOTg05gCo=\")","v":{"$error":"#REF!"}},{"$f":"AND(#REF!,\"LJSOTg05gCs=\")","v":{"$error":"#REF!"}},{"$f":"AND(#REF!,\"LJSOTg05gCw=\")","v":{"$error":"#REF!"}},{"$f":"AND(#REF!,\"LJSOTg05gC0=\")","v":{"$error":"#REF!"}},{"$f":"AND(#REF!,\"LJSOTg05gC4=\")","v":{"$error":"#REF!"}},{"$f":"AND(#REF!,\"LJSOTg05gC8=\")","v":{"$error":"#REF!"}},{"$f":"AND(#REF!,\"LJSOTg05gDA=\")","v":{"$error":"#REF!"}},{"$f":"AND(#REF!,\"LJSOTg05gDE=\")","v":{"$error":"#REF!"}},{"$f":"AND(#REF!,\"LJSOTg05gDI=\")","v":{"$error":"#REF!"}},{"$f":"AND(#REF!,\"LJSOTg05gDM=\")","v":{"$error":"#REF!"}},{"$f":"AND(#REF!,\"LJSOTg05gDQ=\")","v":{"$error":"#REF!"}},{"$f":"AND(#REF!,\"LJSOTg05gDU=\")","v":{"$error":"#REF!"}},{"$f":"AND(#REF!,\"LJSOTg05gDY=\")","v":{"$error":"#REF!"}},{"$f":"AND(#REF!,\"LJSOTg05gDc=\")","v":{"$error":"#REF!"}},{"$f":"AND(#REF!,\"LJSOTg05gDg=\")","v":{"$error":"#REF!"}},{"$f":"AND(#REF!,\"LJSOTg05gDk=\")","v":{"$error":"#REF!"}},{"$f":"AND(#REF!,\"LJSOTg05gDo=\")","v":{"$error":"#REF!"}},{"$f":"AND(#REF!,\"LJSOTg05gDs=\")","v":{"$error":"#REF!"}},{"$f":"AND(#REF!,\"LJSOTg05gDw=\")","v":{"$error":"#REF!"}},{"$f":"AND(#REF!,\"LJSOTg05gD0=\")","v":{"$error":"#REF!"}},{"$f":"AND(#REF!,\"LJSOTg05gD4=\")","v":{"$error":"#REF!"}},{"$f":"AND(#REF!,\"LJSOTg05gD8=\")","v":{"$error":"#REF!"}},{"$f":"AND(#REF!,\"LJSOTg05gEA=\")","v":{"$error":"#REF!"}},{"$f":"AND(#REF!,\"LJSOTg05gEE=\")","v":{"$error":"#REF!"}},{"$f":"AND(#REF!,\"LJSOTg05gEI=\")","v":{"$error":"#REF!"}},{"$f":"AND(#REF!,\"LJSOTg05gEM=\")","v":{"$error":"#REF!"}},{"$f":"AND(#REF!,\"LJSOTg05gEQ=\")","v":{"$error":"#REF!"}},{"$f":"AND(#REF!,\"LJSOTg05gEU=\")","v":{"$error":"#REF!"}},{"$f":"AND(#REF!,\"LJSOTg05gEY=\")","v":{"$error":"#REF!"}},{"$f":"AND(#REF!,\"LJSOTg05gEc=\")","v":{"$error":"#REF!"}},{"$f":"AND(#REF!,\"LJSOTg05gEg=\")","v":{"$error":"#REF!"}},{"$f":"AND(#REF!,\"LJSOTg05gEk=\")","v":{"$error":"#REF!"}},{"$f":"AND(#REF!,\"LJSOTg05gEo=\")","v":{"$error":"#REF!"}},{"$f":"AND(#REF!,\"LJSOTg05gEs=\")","v":{"$error":"#REF!"}},{"$f":"AND(#REF!,\"LJSOTg05gEw=\")","v":{"$error":"#REF!"}},{"$f":"AND(#REF!,\"LJSOTg05gE0=\")","v":{"$error":"#REF!"}},{"$f":"AND(#REF!,\"LJSOTg05gE4=\")","v":{"$error":"#REF!"}},{"$f":"AND(#REF!,\"LJSOTg05gE8=\")","v":{"$error":"#REF!"}},{"$f":"AND(#REF!,\"LJSOTg05gFA=\")","v":{"$error":"#REF!"}},{"$f":"AND(#REF!,\"LJSOTg05gFE=\")","v":{"$error":"#REF!"}},{"$f":"AND(#REF!,\"LJSOTg05gFI=\")","v":{"$error":"#REF!"}},{"$f":"AND(#REF!,\"LJSOTg05gFM=\")","v":{"$error":"#REF!"}},{"$f":"AND(#REF!,\"LJSOTg05gFQ=\")","v":{"$error":"#REF!"}},{"$f":"AND(#REF!,\"LJSOTg05gFU=\")","v":{"$error":"#REF!"}},{"$f":"AND(#REF!,\"LJSOTg05gFY=\")","v":{"$error":"#REF!"}},{"$f":"AND(#REF!,\"LJSOTg05gFc=\")","v":{"$error":"#REF!"}},{"$f":"AND(#REF!,\"LJSOTg05gFg=\")","v":{"$error":"#REF!"}},{"$f":"AND(#REF!,\"LJSOTg05gFk=\")","v":{"$error":"#REF!"}},{"$f":"AND(#REF!,\"LJSOTg05gFo=\")","v":{"$error":"#REF!"}},{"$f":"AND(#REF!,\"LJSOTg05gFs=\")","v":{"$error":"#REF!"}},{"$f":"AND(#REF!,\"LJSOTg05gFw=\")","v":{"$error":"#REF!"}},{"$f":"AND(#REF!,\"LJSOTg05gF0=\")","v":{"$error":"#REF!"}},{"$f":"AND(#REF!,\"LJSOTg05gF4=\")","v":{"$error":"#REF!"}},{"$f":"AND(#REF!,\"LJSOTg05gF8=\")","v":{"$error":"#REF!"}},{"$f":"AND(#REF!,\"LJSOTg05gGA=\")","v":{"$error":"#REF!"}},{"$f":"AND(#REF!,\"LJSOTg05gGE=\")","v":{"$error":"#REF!"}},{"$f":"AND(#REF!,\"LJSOTg05gGI=\")","v":{"$error":"#REF!"}},{"$f":"AND(#REF!,\"LJSOTg05gGM=\")","v":{"$error":"#REF!"}},{"$f":"AND(#REF!,\"LJSOTg05gGQ=\")","v":{"$error":"#REF!"}},{"$f":"AND(#REF!,\"LJSOTg05gGU=\")","v":{"$error":"#REF!"}},{"$f":"AND(#REF!,\"LJSOTg05gGY=\")","v":{"$error":"#REF!"}},{"$f":"AND(#REF!,\"LJSOTg05gGc=\")","v":{"$error":"#REF!"}},{"$f":"AND(#REF!,\"LJSOTg05gGg=\")","v":{"$error":"#REF!"}},{"$f":"AND(#REF!,\"LJSOTg05gGk=\")","v":{"$error":"#REF!"}},{"$f":"AND(#REF!,\"LJSOTg05gGo=\")","v":{"$error":"#REF!"}},{"$f":"AND(#REF!,\"LJSOTg05gGs=\")","v":{"$error":"#REF!"}},{"$f":"AND(#REF!,\"LJSOTg05gGw=\")","v":{"$error":"#REF!"}},{"$f":"AND(#REF!,\"LJSOTg05gG0=\")","v":{"$error":"#REF!"}},{"$f":"AND(#REF!,\"LJSOTg05gG4=\")","v":{"$error":"#REF!"}},{"$f":"AND(#REF!,\"LJSOTg05gG8=\")","v":{"$error":"#REF!"}},{"$f":"AND(#REF!,\"LJSOTg05gHA=\")","v":{"$error":"#REF!"}},{"$f":"AND(#REF!,\"LJSOTg05gHE=\")","v":{"$error":"#REF!"}},{"$f":"AND(#REF!,\"LJSOTg05gHI=\")","v":{"$error":"#REF!"}},{"$f":"AND(#REF!,\"LJSOTg05gHM=\")","v":{"$error":"#REF!"}},{"$f":"AND(#REF!,\"LJSOTg05gHQ=\")","v":{"$error":"#REF!"}},{"$f":"AND(#REF!,\"LJSOTg05gHU=\")","v":{"$error":"#REF!"}},{"$f":"AND(#REF!,\"LJSOTg05gHY=\")","v":{"$error":"#REF!"}},{"$f":"AND(#REF!,\"LJSOTg05gHc=\")","v":{"$error":"#REF!"}},{"$f":"AND(#REF!,\"LJSOTg05gHg=\")","v":{"$error":"#REF!"}},{"$f":"AND(#REF!,\"LJSOTg05gHk=\")","v":{"$error":"#REF!"}},{"$f":"AND(#REF!,\"LJSOTg05gHo=\")","v":{"$error":"#REF!"}},{"$f":"AND(#REF!,\"LJSOTg05gHs=\")","v":{"$error":"#REF!"}},{"$f":"AND(#REF!,\"LJSOTg05gHw=\")","v":{"$error":"#REF!"}},{"$f":"AND(#REF!,\"LJSOTg05gH0=\")","v":{"$error":"#REF!"}},{"$f":"AND(#REF!,\"LJSOTg05gH4=\")","v":{"$error":"#REF!"}},{"$f":"AND(#REF!,\"LJSOTg05gH8=\")","v":{"$error":"#REF!"}},{"$f":"AND(#REF!,\"LJSOTg05gIA=\")","v":{"$error":"#REF!"}},{"$f":"AND(#REF!,\"LJSOTg05gIE=\")","v":{"$error":"#REF!"}},{"$f":"AND(#REF!,\"LJSOTg05gII=\")","v":{"$error":"#REF!"}},{"$f":"AND(#REF!,\"LJSOTg05gIM=\")","v":{"$error":"#REF!"}},{"$f":"AND(#REF!,\"LJSOTg05gIQ=\")","v":{"$error":"#REF!"}},{"$f":"AND(#REF!,\"LJSOTg05gIU=\")","v":{"$error":"#REF!"}},{"$f":"AND(#REF!,\"LJSOTg05gIY=\")","v":{"$error":"#REF!"}},{"$f":"AND(#REF!,\"LJSOTg05gIc=\")","v":{"$error":"#REF!"}},{"$f":"AND(#REF!,\"LJSOTg05gIg=\")","v":{"$error":"#REF!"}},{"$f":"AND(#REF!,\"LJSOTg05gIk=\")","v":{"$error":"#REF!"}},{"$f":"AND(#REF!,\"LJSOTg05gIo=\")","v":{"$error":"#REF!"}},{"$f":"AND(#REF!,\"LJSOTg05gIs=\")","v":{"$error":"#REF!"}},{"$f":"AND(#REF!,\"LJSOTg05gIw=\")","v":{"$error":"#REF!"}},{"$f":"AND(#REF!,\"LJSOTg05gI0=\")","v":{"$error":"#REF!"}},{"$f":"AND(#REF!,\"LJSOTg05gI4=\")","v":{"$error":"#REF!"}},{"$f":"AND(#REF!,\"LJSOTg05gI8=\")","v":{"$error":"#REF!"}},{"$f":"AND(#REF!,\"LJSOTg05gJA=\")","v":{"$error":"#REF!"}},{"$f":"AND(#REF!,\"LJSOTg05gJE=\")","v":{"$error":"#REF!"}},{"$f":"AND(#REF!,\"LJSOTg05gJI=\")","v":{"$error":"#REF!"}},{"$f":"AND(#REF!,\"LJSOTg05gJM=\")","v":{"$error":"#REF!"}},{"$f":"AND(#REF!,\"LJSOTg05gJQ=\")","v":{"$error":"#REF!"}},{"$f":"AND(#REF!,\"LJSOTg05gJU=\")","v":{"$error":"#REF!"}},{"$f":"AND(#REF!,\"LJSOTg05gJY=\")","v":{"$error":"#REF!"}},{"$f":"AND(#REF!,\"LJSOTg05gJc=\")","v":{"$error":"#REF!"}},{"$f":"AND(#REF!,\"LJSOTg05gJg=\")","v":{"$error":"#REF!"}},{"$f":"AND(#REF!,\"LJSOTg05gJk=\")","v":{"$error":"#REF!"}},{"$f":"AND(#REF!,\"LJSOTg05gJo=\")","v":{"$error":"#REF!"}},{"$f":"AND(#REF!,\"LJSOTg05gJs=\")","v":{"$error":"#REF!"}},{"$f":"AND(#REF!,\"LJSOTg05gJw=\")","v":{"$error":"#REF!"}},{"$f":"AND(#REF!,\"LJSOTg05gJ0=\")","v":{"$error":"#REF!"}},{"$f":"AND(#REF!,\"LJSOTg05gJ4=\")","v":{"$error":"#REF!"}},{"$f":"AND(#REF!,\"LJSOTg05gJ8=\")","v":{"$error":"#REF!"}},{"$f":"AND(#REF!,\"LJSOTg05gKA=\")","v":{"$error":"#REF!"}},{"$f":"AND(#REF!,\"LJSOTg05gKE=\")","v":{"$error":"#REF!"}},{"$f":"AND(#REF!,\"LJSOTg05gKI=\")","v":{"$error":"#REF!"}},{"$f":"AND(#REF!,\"LJSOTg05gKM=\")","v":{"$error":"#REF!"}},{"$f":"AND(#REF!,\"LJSOTg05gKQ=\")","v":{"$error":"#REF!"}},{"$f":"AND(#REF!,\"LJSOTg05gKU=\")","v":{"$error":"#REF!"}},{"$f":"AND(#REF!,\"LJSOTg05gKY=\")","v":{"$error":"#REF!"}},{"$f":"AND(#REF!,\"LJSOTg05gKc=\")","v":{"$error":"#REF!"}},{"$f":"AND(#REF!,\"LJSOTg05gKg=\")","v":{"$error":"#REF!"}},{"$f":"AND(#REF!,\"LJSOTg05gKk=\")","v":{"$error":"#REF!"}},{"$f":"AND(#REF!,\"LJSOTg05gKo=\")","v":{"$error":"#REF!"}},{"$f":"AND(#REF!,\"LJSOTg05gKs=\")","v":{"$error":"#REF!"}},{"$f":"AND(#REF!,\"LJSOTg05gKw=\")","v":{"$error":"#REF!"}},{"$f":"AND(#REF!,\"LJSOTg05gK0=\")","v":{"$error":"#REF!"}},{"$f":"AND(#REF!,\"LJSOTg05gK4=\")","v":{"$error":"#REF!"}},{"$f":"AND(#REF!,\"LJSOTg05gK8=\")","v":{"$error":"#REF!"}},{"$f":"AND(#REF!,\"LJSOTg05gLA=\")","v":{"$error":"#REF!"}},{"$f":"AND(#REF!,\"LJSOTg05gLE=\")","v":{"$error":"#REF!"}},{"$f":"AND(#REF!,\"LJSOTg05gLI=\")","v":{"$error":"#REF!"}},{"$f":"AND(#REF!,\"LJSOTg05gLM=\")","v":{"$error":"#REF!"}},{"$f":"AND(#REF!,\"LJSOTg05gLQ=\")","v":{"$error":"#REF!"}},{"$f":"AND(#REF!,\"LJSOTg05gLU=\")","v":{"$error":"#REF!"}},{"$f":"AND(#REF!,\"LJSOTg05gLY=\")","v":{"$error":"#REF!"}},{"$f":"AND(#REF!,\"LJSOTg05gLc=\")","v":{"$error":"#REF!"}},{"$f":"AND(#REF!,\"LJSOTg05gLg=\")","v":{"$error":"#REF!"}},{"$f":"AND(#REF!,\"LJSOTg05gLk=\")","v":{"$error":"#REF!"}},{"$f":"AND(#REF!,\"LJSOTg05gLo=\")","v":{"$error":"#REF!"}},{"$f":"AND(#REF!,\"LJSOTg05gLs=\")","v":{"$error":"#REF!"}},{"$f":"AND(#REF!,\"LJSOTg05gLw=\")","v":{"$error":"#REF!"}},{"$f":"AND(#REF!,\"LJSOTg05gL0=\")","v":{"$error":"#REF!"}},{"$f":"AND(#REF!,\"LJSOTg05gL4=\")","v":{"$error":"#REF!"}},{"$f":"AND(#REF!,\"LJSOTg05gL8=\")","v":{"$error":"#REF!"}},{"$f":"AND(#REF!,\"LJSOTg05gMA=\")","v":{"$error":"#REF!"}},{"$f":"AND(#REF!,\"LJSOTg05gME=\")","v":{"$error":"#REF!"}},{"$f":"AND(#REF!,\"LJSOTg05gMI=\")","v":{"$error":"#REF!"}},{"$f":"IF(#REF!,\"LJSOTg05gMM=\",0)","v":{"$error":"#REF!"}},{"$f":"AND(#REF!,\"LJSOTg05gMQ=\")","v":{"$error":"#REF!"}},{"$f":"AND(#REF!,\"LJSOTg05gMU=\")","v":{"$error":"#REF!"}},{"$f":"AND(#REF!,\"LJSOTg05gMY=\")","v":{"$error":"#REF!"}},{"$f":"AND(#REF!,\"LJSOTg05gMc=\")","v":{"$error":"#REF!"}},{"$f":"AND(#REF!,\"LJSOTg05gMg=\")","v":{"$error":"#REF!"}},{"$f":"AND(#REF!,\"LJSOTg05gMk=\")","v":{"$error":"#REF!"}},{"$f":"AND(#REF!,\"LJSOTg05gMo=\")","v":{"$error":"#REF!"}},{"$f":"AND(#REF!,\"LJSOTg05gMs=\")","v":{"$error":"#REF!"}},{"$f":"AND(#REF!,\"LJSOTg05gMw=\")","v":{"$error":"#REF!"}},{"$f":"AND(#REF!,\"LJSOTg05gM0=\")","v":{"$error":"#REF!"}},{"$f":"AND(#REF!,\"LJSOTg05gM4=\")","v":{"$error":"#REF!"}},{"$f":"AND(#REF!,\"LJSOTg05gM8=\")","v":{"$error":"#REF!"}},{"$f":"AND(#REF!,\"LJSOTg05gNA=\")","v":{"$error":"#REF!"}},{"$f":"AND(#REF!,\"LJSOTg05gNE=\")","v":{"$error":"#REF!"}},{"$f":"AND(#REF!,\"LJSOTg05gNI=\")","v":{"$error":"#REF!"}},{"$f":"AND(#REF!,\"LJSOTg05gNM=\")","v":{"$error":"#REF!"}},{"$f":"AND(#REF!,\"LJSOTg05gNQ=\")","v":{"$error":"#REF!"}},{"$f":"AND(#REF!,\"LJSOTg05gNU=\")","v":{"$error":"#REF!"}},{"$f":"AND(#REF!,\"LJSOTg05gNY=\")","v":{"$error":"#REF!"}},{"$f":"AND(#REF!,\"LJSOTg05gNc=\")","v":{"$error":"#REF!"}},{"$f":"AND(#REF!,\"LJSOTg05gNg=\")","v":{"$error":"#REF!"}},{"$f":"AND(#REF!,\"LJSOTg05gNk=\")","v":{"$error":"#REF!"}},{"$f":"AND(#REF!,\"LJSOTg05gNo=\")","v":{"$error":"#REF!"}},{"$f":"AND(#REF!,\"LJSOTg05gNs=\")","v":{"$error":"#REF!"}},{"$f":"AND(#REF!,\"LJSOTg05gNw=\")","v":{"$error":"#REF!"}},{"$f":"AND(#REF!,\"LJSOTg05gN0=\")","v":{"$error":"#REF!"}},{"$f":"AND(#REF!,\"LJSOTg05gN4=\")","v":{"$error":"#REF!"}},{"$f":"AND(#REF!,\"LJSOTg05gN8=\")","v":{"$error":"#REF!"}},{"$f":"AND(#REF!,\"LJSOTg05gOA=\")","v":{"$error":"#REF!"}},{"$f":"AND(#REF!,\"LJSOTg05gOE=\")","v":{"$error":"#REF!"}},{"$f":"AND(#REF!,\"LJSOTg05gOI=\")","v":{"$error":"#REF!"}},{"$f":"AND(#REF!,\"LJSOTg05gOM=\")","v":{"$error":"#REF!"}},{"$f":"AND(#REF!,\"LJSOTg05gOQ=\")","v":{"$error":"#REF!"}},{"$f":"AND(#REF!,\"LJSOTg05gOU=\")","v":{"$error":"#REF!"}},{"$f":"AND(#REF!,\"LJSOTg05gOY=\")","v":{"$error":"#REF!"}},{"$f":"AND(#REF!,\"LJSOTg05gOc=\")","v":{"$error":"#REF!"}},{"$f":"AND(#REF!,\"LJSOTg05gOg=\")","v":{"$error":"#REF!"}},{"$f":"AND(#REF!,\"LJSOTg05gOk=\")","v":{"$error":"#REF!"}},{"$f":"AND(#REF!,\"LJSOTg05gOo=\")","v":{"$error":"#REF!"}},{"$f":"AND(#REF!,\"LJSOTg05gOs=\")","v":{"$error":"#REF!"}},{"$f":"AND(#REF!,\"LJSOTg05gOw=\")","v":{"$error":"#REF!"}},{"$f":"AND(#REF!,\"LJSOTg05gO0=\")","v":{"$error":"#REF!"}},{"$f":"AND(#REF!,\"LJSOTg05gO4=\")","v":{"$error":"#REF!"}},{"$f":"AND(#REF!,\"LJSOTg05gO8=\")","v":{"$error":"#REF!"}},{"$f":"AND(#REF!,\"LJSOTg05gPA=\")","v":{"$error":"#REF!"}},{"$f":"AND(#REF!,\"LJSOTg05gPE=\")","v":{"$error":"#REF!"}},{"$f":"AND(#REF!,\"LJSOTg05gPI=\")","v":{"$error":"#REF!"}},{"$f":"AND(#REF!,\"LJSOTg05gPM=\")","v":{"$error":"#REF!"}},{"$f":"AND(#REF!,\"LJSOTg05gPQ=\")","v":{"$error":"#REF!"}},{"$f":"AND(#REF!,\"LJSOTg05gPU=\")","v":{"$error":"#REF!"}},{"$f":"AND(#REF!,\"LJSOTg05gPY=\")","v":{"$error":"#REF!"}},{"$f":"AND(#REF!,\"LJSOTg05gPc=\")","v":{"$error":"#REF!"}},{"$f":"AND(#REF!,\"LJSOTg05gPg=\")","v":{"$error":"#REF!"}},{"$f":"AND(#REF!,\"LJSOTg05gPk=\")","v":{"$error":"#REF!"}},{"$f":"AND(#REF!,\"LJSOTg05gPo=\")","v":{"$error":"#REF!"}},{"$f":"AND(#REF!,\"LJSOTg05gPs=\")","v":{"$error":"#REF!"}},{"$f":"AND(#REF!,\"LJSOTg05gPw=\")","v":{"$error":"#REF!"}},{"$f":"AND(#REF!,\"LJSOTg05gP0=\")","v":{"$error":"#REF!"}},{"$f":"AND(#REF!,\"LJSOTg05gP4=\")","v":{"$error":"#REF!"}},{"$f":"AND(#REF!,\"LJSOTg05gP8=\")","v":{"$error":"#REF!"}}]
[{"$f":"AND(#REF!,\"IMXoTyEjeAA=\")","v":{"$error":"#REF!"}},{"$f":"AND(#REF!,\"IMXoTyEjeAE=\")","v":{"$error":"#REF!"}},{"$f":"AND(#REF!,\"IMXoTyEjeAI=\")","v":{"$error":"#REF!"}},{"$f":"AND(#REF!,\"IMXoTyEjeAM=\")","v":{"$error":"#REF!"}},{"$f":"AND(#REF!,\"IMXoTyEjeAQ=\")","v":{"$error":"#REF!"}},{"$f":"AND(#REF!,\"IMXoTyEjeAU=\")","v":{"$error":"#REF!"}},{"$f":"AND(#REF!,\"IMXoTyEjeAY=\")","v":{"$error":"#REF!"}},{"$f":"AND(#REF!,\"IMXoTyEjeAc=\")","v":{"$error":"#REF!"}},{"$f":"AND(#REF!,\"IMXoTyEjeAg=\")","v":{"$error":"#REF!"}},{"$f":"AND(#REF!,\"IMXoTyEjeAk=\")","v":{"$error":"#REF!"}},{"$f":"AND(#REF!,\"IMXoTyEjeAo=\")","v":{"$error":"#REF!"}},{"$f":"AND(#REF!,\"IMXoTyEjeAs=\")","v":{"$error":"#REF!"}},{"$f":"AND(#REF!,\"IMXoTyEjeAw=\")","v":{"$error":"#REF!"}},{"$f":"AND(#REF!,\"IMXoTyEjeA0=\")","v":{"$error":"#REF!"}},{"$f":"AND(#REF!,\"IMXoTyEjeA4=\")","v":{"$error":"#REF!"}},{"$f":"AND(#REF!,\"IMXoTyEjeA8=\")","v":{"$error":"#REF!"}},{"$f":"AND(#REF!,\"IMXoTyEjeBA=\")","v":{"$error":"#REF!"}},{"$f":"AND(#REF!,\"IMXoTyEjeBE=\")","v":{"$error":"#REF!"}},{"$f":"AND(#REF!,\"IMXoTyEjeBI=\")","v":{"$error":"#REF!"}},{"$f":"AND(#REF!,\"IMXoTyEjeBM=\")","v":{"$error":"#REF!"}},{"$f":"AND(#REF!,\"IMXoTyEjeBQ=\")","v":{"$error":"#REF!"}},{"$f":"AND(#REF!,\"IMXoTyEjeBU=\")","v":{"$error":"#REF!"}},{"$f":"AND(#REF!,\"IMXoTyEjeBY=\")","v":{"$error":"#REF!"}},{"$f":"AND(#REF!,\"IMXoTyEjeBc=\")","v":{"$error":"#REF!"}},{"$f":"AND(#REF!,\"IMXoTyEjeBg=\")","v":{"$error":"#REF!"}},{"$f":"AND(#REF!,\"IMXoTyEjeBk=\")","v":{"$error":"#REF!"}},{"$f":"AND(#REF!,\"IMXoTyEjeBo=\")","v":{"$error":"#REF!"}},{"$f":"AND(#REF!,\"IMXoTyEjeBs=\")","v":{"$error":"#REF!"}},{"$f":"AND(#REF!,\"IMXoTyEjeBw=\")","v":{"$error":"#REF!"}},{"$f":"AND(#REF!,\"IMXoTyEjeB0=\")","v":{"$error":"#REF!"}},{"$f":"AND(#REF!,\"IMXoTyEjeB4=\")","v":{"$error":"#REF!"}},{"$f":"AND(#REF!,\"IMXoTyEjeB8=\")","v":{"$error":"#REF!"}},{"$f":"AND(#REF!,\"IMXoTyEjeCA=\")","v":{"$error":"#REF!"}},{"$f":"AND(#REF!,\"IMXoTyEjeCE=\")","v":{"$error":"#REF!"}},{"$f":"AND(#REF!,\"IMXoTyEjeCI=\")","v":{"$error":"#REF!"}},{"$f":"AND(#REF!,\"IMXoTyEjeCM=\")","v":{"$error":"#REF!"}},{"$f":"AND(#REF!,\"IMXoTyEjeCQ=\")","v":{"$error":"#REF!"}},{"$f":"AND(#REF!,\"IMXoTyEjeCU=\")","v":{"$error":"#REF!"}},{"$f":"AND(#REF!,\"IMXoTyEjeCY=\")","v":{"$error":"#REF!"}},{"$f":"AND(#REF!,\"IMXoTyEjeCc=\")","v":{"$error":"#REF!"}},{"$f":"AND(#REF!,\"IMXoTyEjeCg=\")","v":{"$error":"#REF!"}},{"$f":"AND(#REF!,\"IMXoTyEjeCk=\")","v":{"$error":"#REF!"}},{"$f":"AND(#REF!,\"IMXoTyEjeCo=\")","v":{"$error":"#REF!"}},{"$f":"AND(#REF!,\"IMXoTyEjeCs=\")","v":{"$error":"#REF!"}},{"$f":"AND(#REF!,\"IMXoTyEjeCw=\")","v":{"$error":"#REF!"}},{"$f":"AND(#REF!,\"IMXoTyEjeC0=\")","v":{"$error":"#REF!"}},{"$f":"AND(#REF!,\"IMXoTyEjeC4=\")","v":{"$error":"#REF!"}},{"$f":"AND(#REF!,\"IMXoTyEjeC8=\")","v":{"$error":"#REF!"}},{"$f":"AND(#REF!,\"IMXoTyEjeDA=\")","v":{"$error":"#REF!"}},{"$f":"AND(#REF!,\"IMXoTyEjeDE=\")","v":{"$error":"#REF!"}},{"$f":"AND(#REF!,\"IMXoTyEjeDI=\")","v":{"$error":"#REF!"}},{"$f":"AND(#REF!,\"IMXoTyEjeDM=\")","v":{"$error":"#REF!"}},{"$f":"AND(#REF!,\"IMXoTyEjeDQ=\")","v":{"$error":"#REF!"}},{"$f":"AND(#REF!,\"IMXoTyEjeDU=\")","v":{"$error":"#REF!"}},{"$f":"AND(#REF!,\"IMXoTyEjeDY=\")","v":{"$error":"#REF!"}},{"$f":"AND(#REF!,\"IMXoTyEjeDc=\")","v":{"$error":"#REF!"}},{"$f":"AND(#REF!,\"IMXoTyEjeDg=\")","v":{"$error":"#REF!"}},{"$f":"AND(#REF!,\"IMXoTyEjeDk=\")","v":{"$error":"#REF!"}},{"$f":"AND(#REF!,\"IMXoTyEjeDo=\")","v":{"$error":"#REF!"}},{"$f":"AND(#REF!,\"IMXoTyEjeDs=\")","v":{"$error":"#REF!"}},{"$f":"AND(#REF!,\"IMXoTyEjeDw=\")","v":{"$error":"#REF!"}},{"$f":"AND(#REF!,\"IMXoTyEjeD0=\")","v":{"$error":"#REF!"}},{"$f":"AND(#REF!,\"IMXoTyEjeD4=\")","v":{"$error":"#REF!"}},{"$f":"AND(#REF!,\"IMXoTyEjeD8=\")","v":{"$error":"#REF!"}},{"$f":"AND(#REF!,\"IMXoTyEjeEA=\")","v":{"$error":"#REF!"}},{"$f":"AND(#REF!,\"IMXoTyEjeEE=\")","v":{"$error":"#REF!"}},{"$f":"AND(#REF!,\"IMXoTyEjeEI=\")","v":{"$error":"#REF!"}},{"$f":"AND(#REF!,\"IMXoTyEjeEM=\")","v":{"$error":"#REF!"}},{"$f":"AND(#REF!,\"IMXoTyEjeEQ=\")","v":{"$error":"#REF!"}},{"$f":"AND(#REF!,\"IMXoTyEjeEU=\")","v":{"$error":"#REF!"}},{"$f":"AND(#REF!,\"IMXoTyEjeEY=\")","v":{"$error":"#REF!"}},{"$f":"AND(#REF!,\"IMXoTyEjeEc=\")","v":{"$error":"#REF!"}},{"$f":"AND(#REF!,\"IMXoTyEjeEg=\")","v":{"$error":"#REF!"}},{"$f":"AND(#REF!,\"IMXoTyEjeEk=\")","v":{"$error":"#REF!"}},{"$f":"AND(#REF!,\"IMXoTyEjeEo=\")","v":{"$error":"#REF!"}},{"$f":"AND(#REF!,\"IMXoTyEjeEs=\")","v":{"$error":"#REF!"}},{"$f":"AND(#REF!,\"IMXoTyEjeEw=\")","v":{"$error":"#REF!"}},{"$f":"AND(#REF!,\"IMXoTyEjeE0=\")","v":{"$error":"#REF!"}},{"$f":"AND(#REF!,\"IMXoTyEjeE4=\")","v":{"$error":"#REF!"}},{"$f":"AND(#REF!,\"IMXoTyEjeE8=\")","v":{"$error":"#REF!"}},{"$f":"AND(#REF!,\"IMXoTyEjeFA=\")","v":{"$error":"#REF!"}},{"$f":"AND(#REF!,\"IMXoTyEjeFE=\")","v":{"$error":"#REF!"}},{"$f":"AND(#REF!,\"IMXoTyEjeFI=\")","v":{"$error":"#REF!"}},{"$f":"AND(#REF!,\"IMXoTyEjeFM=\")","v":{"$error":"#REF!"}},{"$f":"AND(#REF!,\"IMXoTyEjeFQ=\")","v":{"$error":"#REF!"}},{"$f":"AND(#REF!,\"IMXoTyEjeFU=\")","v":{"$error":"#REF!"}},{"$f":"AND(#REF!,\"IMXoTyEjeFY=\")","v":{"$error":"#REF!"}},{"$f":"AND(#REF!,\"IMXoTyEjeFc=\")","v":{"$error":"#REF!"}},{"$f":"AND(#REF!,\"IMXoTyEjeFg=\")","v":{"$error":"#REF!"}},{"$f":"AND(#REF!,\"IMXoTyEjeFk=\")","v":{"$error":"#REF!"}},{"$f":"AND(#REF!,\"IMXoTyEjeFo=\")","v":{"$error":"#REF!"}},{"$f":"AND(#REF!,\"IMXoTyEjeFs=\")","v":{"$error":"#REF!"}},{"$f":"AND(#REF!,\"IMXoTyEjeFw=\")","v":{"$error":"#REF!"}},{"$f":"AND(#REF!,\"IMXoTyEjeF0=\")","v":{"$error":"#REF!"}},{"$f":"AND(#REF!,\"IMXoTyEjeF4=\")","v":{"$error":"#REF!"}},{"$f":"AND(#REF!,\"IMXoTyEjeF8=\")","v":{"$error":"#REF!"}},{"$f":"AND(#REF!,\"IMXoTyEjeGA=\")","v":{"$error":"#REF!"}},{"$f":"AND(#REF!,\"IMXoTyEjeGE=\")","v":{"$error":"#REF!"}},{"$f":"AND(#REF!,\"IMXoTyEjeGI=\")","v":{"$error":"#REF!"}},{"$f":"AND(#REF!,\"IMXoTyEjeGM=\")","v":{"$error":"#REF!"}},{"$f":"AND(#REF!,\"IMXoTyEjeGQ=\")","v":{"$error":"#REF!"}},{"$f":"AND(#REF!,\"IMXoTyEjeGU=\")","v":{"$error":"#REF!"}},{"$f":"AND(#REF!,\"IMXoTyEjeGY=\")","v":{"$error":"#REF!"}},{"$f":"AND(#REF!,\"IMXoTyEjeGc=\")","v":{"$error":"#REF!"}},{"$f":"AND(#REF!,\"IMXoTyEjeGg=\")","v":{"$error":"#REF!"}},{"$f":"AND(#REF!,\"IMXoTyEjeGk=\")","v":{"$error":"#REF!"}},{"$f":"AND(#REF!,\"IMXoTyEjeGo=\")","v":{"$error":"#REF!"}},{"$f":"AND(#REF!,\"IMXoTyEjeGs=\")","v":{"$error":"#REF!"}},{"$f":"AND(#REF!,\"IMXoTyEjeGw=\")","v":{"$error":"#REF!"}},{"$f":"AND(#REF!,\"IMXoTyEjeG0=\")","v":{"$error":"#REF!"}},{"$f":"AND(#REF!,\"IMXoTyEjeG4=\")","v":{"$error":"#REF!"}},{"$f":"AND(#REF!,\"IMXoTyEjeG8=\")","v":{"$error":"#REF!"}},{"$f":"AND(#REF!,\"IMXoTyEjeHA=\")","v":{"$error":"#REF!"}},{"$f":"AND(#REF!,\"IMXoTyEjeHE=\")","v":{"$error":"#REF!"}},{"$f":"AND(#REF!,\"IMXoTyEjeHI=\")","v":{"$error":"#REF!"}},{"$f":"AND(#REF!,\"IMXoTyEjeHM=\")","v":{"$error":"#REF!"}},{"$f":"AND(#REF!,\"IMXoTyEjeHQ=\")","v":{"$error":"#REF!"}},{"$f":"AND(#REF!,\"IMXoTyEjeHU=\")","v":{"$error":"#REF!"}},{"$f":"AND(#REF!,\"IMXoTyEjeHY=\")","v":{"$error":"#REF!"}},{"$f":"AND(#REF!,\"IMXoTyEjeHc=\")","v":{"$error":"#REF!"}},{"$f":"AND(#REF!,\"IMXoTyEjeHg=\")","v":{"$error":"#REF!"}},{"$f":"AND(#REF!,\"IMXoTyEjeHk=\")","v":{"$error":"#REF!"}},{"$f":"AND(#REF!,\"IMXoTyEjeHo=\")","v":{"$error":"#REF!"}},{"$f":"AND(#REF!,\"IMXoTyEjeHs=\")","v":{"$error":"#REF!"}},{"$f":"AND(#REF!,\"IMXoTyEjeHw=\")","v":{"$error":"#REF!"}},{"$f":"AND(#REF!,\"IMXoTyEjeH0=\")","v":{"$error":"#REF!"}},{"$f":"AND(#REF!,\"IMXoTyEjeH4=\")","v":{"$error":"#REF!"}},{"$f":"AND(#REF!,\"IMXoTyEjeH8=\")","v":{"$error":"#REF!"}},{"$f":"AND(#REF!,\"IMXoTyEjeIA=\")","v":{"$error":"#REF!"}},{"$f":"AND(#REF!,\"IMXoTyEjeIE=\")","v":{"$error":"#REF!"}},{"$f":"AND(#REF!,\"IMXoTyEjeII=\")","v":{"$error":"#REF!"}},{"$f":"AND(#REF!,\"IMXoTyEjeIM=\")","v":{"$error":"#REF!"}},{"$f":"AND(#REF!,\"IMXoTyEjeIQ=\")","v":{"$error":"#REF!"}},{"$f":"AND(#REF!,\"IMXoTyEjeIU=\")","v":{"$error":"#REF!"}},{"$f":"AND(#REF!,\"IMXoTyEjeIY=\")","v":{"$error":"#REF!"}},{"$f":"AND(#REF!,\"IMXoTyEjeIc=\")","v":{"$error":"#REF!"}},{"$f":"AND(#REF!,\"IMXoTyEjeIg=\")","v":{"$error":"#REF!"}},{"$f":"AND(#REF!,\"IMXoTyEjeIk=\")","v":{"$error":"#REF!"}},{"$f":"IF(#REF!,\"IMXoTyEjeIo=\",0)","v":{"$error":"#REF!"}},{"$f":"AND(#REF!,\"IMXoTyEjeIs=\")","v":{"$error":"#REF!"}},{"$f":"AND(#REF!,\"IMXoTyEjeIw=\")","v":{"$error":"#REF!"}},{"$f":"AND(#REF!,\"IMXoTyEjeI0=\")","v":{"$error":"#REF!"}},{"$f":"AND(#REF!,\"IMXoTyEjeI4=\")","v":{"$error":"#REF!"}},{"$f":"AND(#REF!,\"IMXoTyEjeI8=\")","v":{"$error":"#REF!"}},{"$f":"AND(#REF!,\"IMXoTyEjeJA=\")","v":{"$error":"#REF!"}},{"$f":"AND(#REF!,\"IMXoTyEjeJE=\")","v":{"$error":"#REF!"}},{"$f":"AND(#REF!,\"IMXoTyEjeJI=\")","v":{"$error":"#REF!"}},{"$f":"AND(#REF!,\"IMXoTyEjeJM=\")","v":{"$error":"#REF!"}},{"$f":"AND(#REF!,\"IMXoTyEjeJQ=\")","v":{"$error":"#REF!"}},{"$f":"AND(#REF!,\"IMXoTyEjeJU=\")","v":{"$error":"#REF!"}},{"$f":"AND(#REF!,\"IMXoTyEjeJY=\")","v":{"$error":"#REF!"}},{"$f":"AND(#REF!,\"IMXoTyEjeJc=\")","v":{"$error":"#REF!"}},{"$f":"AND(#REF!,\"IMXoTyEjeJg=\")","v":{"$error":"#REF!"}},{"$f":"AND(#REF!,\"IMXoTyEjeJk=\")","v":{"$error":"#REF!"}},{"$f":"AND(#REF!,\"IMXoTyEjeJo=\")","v":{"$error":"#REF!"}},{"$f":"AND(#REF!,\"IMXoTyEjeJs=\")","v":{"$error":"#REF!"}},{"$f":"AND(#REF!,\"IMXoTyEjeJw=\")","v":{"$error":"#REF!"}},{"$f":"AND(#REF!,\"IMXoTyEjeJ0=\")","v":{"$error":"#REF!"}},{"$f":"AND(#REF!,\"IMXoTyEjeJ4=\")","v":{"$error":"#REF!"}},{"$f":"AND(#REF!,\"IMXoTyEjeJ8=\")","v":{"$error":"#REF!"}},{"$f":"AND(#REF!,\"IMXoTyEjeKA=\")","v":{"$error":"#REF!"}},{"$f":"AND(#REF!,\"IMXoTyEjeKE=\")","v":{"$error":"#REF!"}},{"$f":"AND(#REF!,\"IMXoTyEjeKI=\")","v":{"$error":"#REF!"}},{"$f":"AND(#REF!,\"IMXoTyEjeKM=\")","v":{"$error":"#REF!"}},{"$f":"AND(#REF!,\"IMXoTyEjeKQ=\")","v":{"$error":"#REF!"}},{"$f":"AND(#REF!,\"IMXoTyEjeKU=\")","v":{"$error":"#REF!"}},{"$f":"AND(#REF!,\"IMXoTyEjeKY=\")","v":{"$error":"#REF!"}},{"$f":"AND(#REF!,\"IMXoTyEjeKc=\")","v":{"$error":"#REF!"}},{"$f":"AND(#REF!,\"IMXoTyEjeKg=\")","v":{"$error":"#REF!"}},{"$f":"AND(#REF!,\"IMXoTyEjeKk=\")","v":{"$error":"#REF!"}},{"$f":"AND(#REF!,\"IMXoTyEjeKo=\")","v":{"$error":"#REF!"}},{"$f":"AND(#REF!,\"IMXoTyEjeKs=\")","v":{"$error":"#REF!"}},{"$f":"AND(#REF!,\"IMXoTyEjeKw=\")","v":{"$error":"#REF!"}},{"$f":"AND(#REF!,\"IMXoTyEjeK0=\")","v":{"$error":"#REF!"}},{"$f":"AND(#REF!,\"IMXoTyEjeK4=\")","v":{"$error":"#REF!"}},{"$f":"AND(#REF!,\"IMXoTyEjeK8=\")","v":{"$error":"#REF!"}},{"$f":"AND(#REF!,\"IMXoTyEjeLA=\")","v":{"$error":"#REF!"}},{"$f":"AND(#REF!,\"IMXoTyEjeLE=\")","v":{"$error":"#REF!"}},{"$f":"AND(#REF!,\"IMXoTyEjeLI=\")","v":{"$error":"#REF!"}},{"$f":"AND(#REF!,\"IMXoTyEjeLM=\")","v":{"$error":"#REF!"}},{"$f":"AND(#REF!,\"IMXoTyEjeLQ=\")","v":{"$error":"#REF!"}},{"$f":"AND(#REF!,\"IMXoTyEjeLU=\")","v":{"$error":"#REF!"}},{"$f":"AND(#REF!,\"IMXoTyEjeLY=\")","v":{"$error":"#REF!"}},{"$f":"AND(#REF!,\"IMXoTyEjeLc=\")","v":{"$error":"#REF!"}},{"$f":"AND(#REF!,\"IMXoTyEjeLg=\")","v":{"$error":"#REF!"}},{"$f":"AND(#REF!,\"IMXoTyEjeLk=\")","v":{"$error":"#REF!"}},{"$f":"AND(#REF!,\"IMXoTyEjeLo=\")","v":{"$error":"#REF!"}},{"$f":"AND(#REF!,\"IMXoTyEjeLs=\")","v":{"$error":"#REF!"}},{"$f":"AND(#REF!,\"IMXoTyEjeLw=\")","v":{"$error":"#REF!"}},{"$f":"AND(#REF!,\"IMXoTyEjeL0=\")","v":{"$error":"#REF!"}},{"$f":"AND(#REF!,\"IMXoTyEjeL4=\")","v":{"$error":"#REF!"}},{"$f":"AND(#REF!,\"IMXoTyEjeL8=\")","v":{"$error":"#REF!"}},{"$f":"AND(#REF!,\"IMXoTyEjeMA=\")","v":{"$error":"#REF!"}},{"$f":"AND(#REF!,\"IMXoTyEjeME=\")","v":{"$error":"#REF!"}},{"$f":"AND(#REF!,\"IMXoTyEjeMI=\")","v":{"$error":"#REF!"}},{"$f":"AND(#REF!,\"IMXoTyEjeMM=\")","v":{"$error":"#REF!"}},{"$f":"AND(#REF!,\"IMXoTyEjeMQ=\")","v":{"$error":"#REF!"}},{"$f":"AND(#REF!,\"IMXoTyEjeMU=\")","v":{"$error":"#REF!"}},{"$f":"AND(#REF!,\"IMXoTyEjeMY=\")","v":{"$error":"#REF!"}},{"$f":"AND(#REF!,\"IMXoTyEjeMc=\")","v":{"$error":"#REF!"}},{"$f":"AND(#REF!,\"IMXoTyEjeMg=\")","v":{"$error":"#REF!"}},{"$f":"AND(#REF!,\"IMXoTyEjeMk=\")","v":{"$error":"#REF!"}},{"$f":"AND(#REF!,\"IMXoTyEjeMo=\")","v":{"$error":"#REF!"}},{"$f":"AND(#REF!,\"IMXoTyEjeMs=\")","v":{"$error":"#REF!"}},{"$f":"AND(#REF!,\"IMXoTyEjeMw=\")","v":{"$error":"#REF!"}},{"$f":"AND(#REF!,\"IMXoTyEjeM0=\")","v":{"$error":"#REF!"}},{"$f":"AND(#REF!,\"IMXoTyEjeM4=\")","v":{"$error":"#REF!"}},{"$f":"AND(#REF!,\"IMXoTyEjeM8=\")","v":{"$error":"#REF!"}},{"$f":"AND(#REF!,\"IMXoTyEjeNA=\")","v":{"$error":"#REF!"}},{"$f":"AND(#REF!,\"IMXoTyEjeNE=\")","v":{"$error":"#REF!"}},{"$f":"AND(#REF!,\"IMXoTyEjeNI=\")","v":{"$error":"#REF!"}},{"$f":"AND(#REF!,\"IMXoTyEjeNM=\")","v":{"$error":"#REF!"}},{"$f":"AND(#REF!,\"IMXoTyEjeNQ=\")","v":{"$error":"#REF!"}},{"$f":"AND(#REF!,\"IMXoTyEjeNU=\")","v":{"$error":"#REF!"}},{"$f":"AND(#REF!,\"IMXoTyEjeNY=\")","v":{"$error":"#REF!"}},{"$f":"AND(#REF!,\"IMXoTyEjeNc=\")","v":{"$error":"#REF!"}},{"$f":"AND(#REF!,\"IMXoTyEjeNg=\")","v":{"$error":"#REF!"}},{"$f":"AND(#REF!,\"IMXoTyEjeNk=\")","v":{"$error":"#REF!"}},{"$f":"AND(#REF!,\"IMXoTyEjeNo=\")","v":{"$error":"#REF!"}},{"$f":"AND(#REF!,\"IMXoTyEjeNs=\")","v":{"$error":"#REF!"}},{"$f":"AND(#REF!,\"IMXoTyEjeNw=\")","v":{"$error":"#REF!"}},{"$f":"AND(#REF!,\"IMXoTyEjeN0=\")","v":{"$error":"#REF!"}},{"$f":"AND(#REF!,\"IMXoTyEjeN4=\")","v":{"$error":"#REF!"}},{"$f":"AND(#REF!,\"IMXoTyEjeN8=\")","v":{"$error":"#REF!"}},{"$f":"AND(#REF!,\"IMXoTyEjeOA=\")","v":{"$error":"#REF!"}},{"$f":"AND(#REF!,\"IMXoTyEjeOE=\")","v":{"$error":"#REF!"}},{"$f":"AND(#REF!,\"IMXoTyEjeOI=\")","v":{"$error":"#REF!"}},{"$f":"AND(#REF!,\"IMXoTyEjeOM=\")","v":{"$error":"#REF!"}},{"$f":"AND(#REF!,\"IMXoTyEjeOQ=\")","v":{"$error":"#REF!"}},{"$f":"AND(#REF!,\"IMXoTyEjeOU=\")","v":{"$error":"#REF!"}},{"$f":"AND(#REF!,\"IMXoTyEjeOY=\")","v":{"$error":"#REF!"}},{"$f":"AND(#REF!,\"IMXoTyEjeOc=\")","v":{"$error":"#REF!"}},{"$f":"AND(#REF!,\"IMXoTyEjeOg=\")","v":{"$error":"#REF!"}},{"$f":"AND(#REF!,\"IMXoTyEjeOk=\")","v":{"$error":"#REF!"}},{"$f":"AND(#REF!,\"IMXoTyEjeOo=\")","v":{"$error":"#REF!"}},{"$f":"AND(#REF!,\"IMXoTyEjeOs=\")","v":{"$error":"#REF!"}},{"$f":"AND(#REF!,\"IMXoTyEjeOw=\")","v":{"$error":"#REF!"}},{"$f":"AND(#REF!,\"IMXoTyEjeO0=\")","v":{"$error":"#REF!"}},{"$f":"AND(#REF!,\"IMXoTyEjeO4=\")","v":{"$error":"#REF!"}},{"$f":"AND(#REF!,\"IMXoTyEjeO8=\")","v":{"$error":"#REF!"}},{"$f":"AND(#REF!,\"IMXoTyEjePA=\")","v":{"$error":"#REF!"}},{"$f":"AND(#REF!,\"IMXoTyEjePE=\")","v":{"$error":"#REF!"}},{"$f":"AND(#REF!,\"IMXoTyEjePI=\")","v":{"$error":"#REF!"}},{"$f":"AND(#REF!,\"IMXoTyEjePM=\")","v":{"$error":"#REF!"}},{"$f":"AND(#REF!,\"IMXoTyEjePQ=\")","v":{"$error":"#REF!"}},{"$f":"AND(#REF!,\"IMXoTyEjePU=\")","v":{"$error":"#REF!"}},{"$f":"AND(#REF!,\"IMXoTyEjePY=\")","v":{"$error":"#REF!"}},{"$f":"AND(#REF!,\"IMXoTyEjePc=\")","v":{"$error":"#REF!"}},{"$f":"AND(#REF!,\"IMXoTyEjePg=\")","v":{"$error":"#REF!"}},{"$f":"AND(#REF!,\"IMXoTyEjePk=\")","v":{"$error":"#REF!"}},{"$f":"AND(#REF!,\"IMXoTyEjePo=\")","v":{"$error":"#REF!"}},{"$f":"AND(#REF!,\"IMXoTyEjePs=\")","v":{"$error":"#REF!"}},{"$f":"AND(#REF!,\"IMXoTyEjePw=\")","v":{"$error":"#REF!"}},{"$f":"AND(#REF!,\"IMXoTyEjeP0=\")","v":{"$error":"#REF!"}},{"$f":"AND(#REF!,\"IMXoTyEjeP4=\")","v":{"$error":"#REF!"}},{"$f":"AND(#REF!,\"IMXoTyEjeP8=\")","v":{"$error":"#REF!"}}]
[{"$f":"AND(#REF!,\"Svq8XUu3NgA=\")","v":{"$error":"#REF!"}},{"$f":"AND(#REF!,\"Svq8XUu3NgE=\")","v":{"$error":"#REF!"}},{"$f":"AND(#REF!,\"Svq8XUu3NgI=\")","v":{"$error":"#REF!"}},{"$f":"AND(#REF!,\"Svq8XUu3NgM=\")","v":{"$error":"#REF!"}},{"$f":"AND(#REF!,\"Svq8XUu3NgQ=\")","v":{"$error":"#REF!"}},{"$f":"AND(#REF!,\"Svq8XUu3NgU=\")","v":{"$error":"#REF!"}},{"$f":"AND(#REF!,\"Svq8XUu3NgY=\")","v":{"$error":"#REF!"}},{"$f":"AND(#REF!,\"Svq8XUu3Ngc=\")","v":{"$error":"#REF!"}},{"$f":"AND(#REF!,\"Svq8XUu3Ngg=\")","v":{"$error":"#REF!"}},{"$f":"AND(#REF!,\"Svq8XUu3Ngk=\")","v":{"$error":"#REF!"}},{"$f":"AND(#REF!,\"Svq8XUu3Ngo=\")","v":{"$error":"#REF!"}},{"$f":"AND(#REF!,\"Svq8XUu3Ngs=\")","v":{"$error":"#REF!"}},{"$f":"AND(#REF!,\"Svq8XUu3Ngw=\")","v":{"$error":"#REF!"}},{"$f":"AND(#REF!,\"Svq8XUu3Ng0=\")","v":{"$error":"#REF!"}},{"$f":"AND(#REF!,\"Svq8XUu3Ng4=\")","v":{"$error":"#REF!"}},{"$f":"AND(#REF!,\"Svq8XUu3Ng8=\")","v":{"$error":"#REF!"}},{"$f":"AND(#REF!,\"Svq8XUu3NhA=\")","v":{"$error":"#REF!"}},{"$f":"AND(#REF!,\"Svq8XUu3NhE=\")","v":{"$error":"#REF!"}},{"$f":"AND(#REF!,\"Svq8XUu3NhI=\")","v":{"$error":"#REF!"}},{"$f":"AND(#REF!,\"Svq8XUu3NhM=\")","v":{"$error":"#REF!"}},{"$f":"AND(#REF!,\"Svq8XUu3NhQ=\")","v":{"$error":"#REF!"}},{"$f":"AND(#REF!,\"Svq8XUu3NhU=\")","v":{"$error":"#REF!"}},{"$f":"AND(#REF!,\"Svq8XUu3NhY=\")","v":{"$error":"#REF!"}},{"$f":"AND(#REF!,\"Svq8XUu3Nhc=\")","v":{"$error":"#REF!"}},{"$f":"AND(#REF!,\"Svq8XUu3Nhg=\")","v":{"$error":"#REF!"}},{"$f":"AND(#REF!,\"Svq8XUu3Nhk=\")","v":{"$error":"#REF!"}},{"$f":"AND(#REF!,\"Svq8XUu3Nho=\")","v":{"$error":"#REF!"}},{"$f":"AND(#REF!,\"Svq8XUu3Nhs=\")","v":{"$error":"#REF!"}},{"$f":"AND(#REF!,\"Svq8XUu3Nhw=\")","v":{"$error":"#REF!"}},{"$f":"AND(#REF!,\"Svq8XUu3Nh0=\")","v":{"$error":"#REF!"}},{"$f":"AND(#REF!,\"Svq8XUu3Nh4=\")","v":{"$error":"#REF!"}},{"$f":"AND(#REF!,\"Svq8XUu3Nh8=\")","v":{"$error":"#REF!"}},{"$f":"AND(#REF!,\"Svq8XUu3NiA=\")","v":{"$error":"#REF!"}},{"$f":"AND(#REF!,\"Svq8XUu3NiE=\")","v":{"$error":"#REF!"}},{"$f":"AND(#REF!,\"Svq8XUu3NiI=\")","v":{"$error":"#REF!"}},{"$f":"AND(#REF!,\"Svq8XUu3NiM=\")","v":{"$error":"#REF!"}},{"$f":"AND(#REF!,\"Svq8XUu3NiQ=\")","v":{"$error":"#REF!"}},{"$f":"AND(#REF!,\"Svq8XUu3NiU=\")","v":{"$error":"#REF!"}},{"$f":"AND(#REF!,\"Svq8XUu3NiY=\")","v":{"$error":"#REF!"}},{"$f":"AND(#REF!,\"Svq8XUu3Nic=\")","v":{"$error":"#REF!"}},{"$f":"AND(#REF!,\"Svq8XUu3Nig=\")","v":{"$error":"#REF!"}},{"$f":"AND(#REF!,\"Svq8XUu3Nik=\")","v":{"$error":"#REF!"}},{"$f":"AND(#REF!,\"Svq8XUu3Nio=\")","v":{"$error":"#REF!"}},{"$f":"AND(#REF!,\"Svq8XUu3Nis=\")","v":{"$error":"#REF!"}},{"$f":"AND(#REF!,\"Svq8XUu3Niw=\")","v":{"$error":"#REF!"}},{"$f":"AND(#REF!,\"Svq8XUu3Ni0=\")","v":{"$error":"#REF!"}},{"$f":"AND(#REF!,\"Svq8XUu3Ni4=\")","v":{"$error":"#REF!"}},{"$f":"AND(#REF!,\"Svq8XUu3Ni8=\")","v":{"$error":"#REF!"}},{"$f":"AND(#REF!,\"Svq8XUu3NjA=\")","v":{"$error":"#REF!"}},{"$f":"AND(#REF!,\"Svq8XUu3NjE=\")","v":{"$error":"#REF!"}},{"$f":"AND(#REF!,\"Svq8XUu3NjI=\")","v":{"$error":"#REF!"}},{"$f":"AND(#REF!,\"Svq8XUu3NjM=\")","v":{"$error":"#REF!"}},{"$f":"AND(#REF!,\"Svq8XUu3NjQ=\")","v":{"$error":"#REF!"}},{"$f":"AND(#REF!,\"Svq8XUu3NjU=\")","v":{"$error":"#REF!"}},{"$f":"AND(#REF!,\"Svq8XUu3NjY=\")","v":{"$error":"#REF!"}},{"$f":"AND(#REF!,\"Svq8XUu3Njc=\")","v":{"$error":"#REF!"}},{"$f":"AND(#REF!,\"Svq8XUu3Njg=\")","v":{"$error":"#REF!"}},{"$f":"AND(#REF!,\"Svq8XUu3Njk=\")","v":{"$error":"#REF!"}},{"$f":"AND(#REF!,\"Svq8XUu3Njo=\")","v":{"$error":"#REF!"}},{"$f":"AND(#REF!,\"Svq8XUu3Njs=\")","v":{"$error":"#REF!"}},{"$f":"AND(#REF!,\"Svq8XUu3Njw=\")","v":{"$error":"#REF!"}},{"$f":"AND(#REF!,\"Svq8XUu3Nj0=\")","v":{"$error":"#REF!"}},{"$f":"AND(#REF!,\"Svq8XUu3Nj4=\")","v":{"$error":"#REF!"}},{"$f":"AND(#REF!,\"Svq8XUu3Nj8=\")","v":{"$error":"#REF!"}},{"$f":"AND(#REF!,\"Svq8XUu3NkA=\")","v":{"$error":"#REF!"}},{"$f":"AND(#REF!,\"Svq8XUu3NkE=\")","v":{"$error":"#REF!"}},{"$f":"AND(#REF!,\"Svq8XUu3NkI=\")","v":{"$error":"#REF!"}},{"$f":"AND(#REF!,\"Svq8XUu3NkM=\")","v":{"$error":"#REF!"}},{"$f":"AND(#REF!,\"Svq8XUu3NkQ=\")","v":{"$error":"#REF!"}},{"$f":"AND(#REF!,\"Svq8XUu3NkU=\")","v":{"$error":"#REF!"}},{"$f":"AND(#REF!,\"Svq8XUu3NkY=\")","v":{"$error":"#REF!"}},{"$f":"AND(#REF!,\"Svq8XUu3Nkc=\")","v":{"$error":"#REF!"}},{"$f":"AND(#REF!,\"Svq8XUu3Nkg=\")","v":{"$error":"#REF!"}},{"$f":"AND(#REF!,\"Svq8XUu3Nkk=\")","v":{"$error":"#REF!"}},{"$f":"AND(#REF!,\"Svq8XUu3Nko=\")","v":{"$error":"#REF!"}},{"$f":"AND(#REF!,\"Svq8XUu3Nks=\")","v":{"$error":"#REF!"}},{"$f":"AND(#REF!,\"Svq8XUu3Nkw=\")","v":{"$error":"#REF!"}},{"$f":"AND(#REF!,\"Svq8XUu3Nk0=\")","v":{"$error":"#REF!"}},{"$f":"AND(#REF!,\"Svq8XUu3Nk4=\")","v":{"$error":"#REF!"}},{"$f":"AND(#REF!,\"Svq8XUu3Nk8=\")","v":{"$error":"#REF!"}},{"$f":"AND(#REF!,\"Svq8XUu3NlA=\")","v":{"$error":"#REF!"}},{"$f":"IF(#REF!,\"Svq8XUu3NlE=\",0)","v":{"$error":"#REF!"}},{"$f":"AND(#REF!,\"Svq8XUu3NlI=\")","v":{"$error":"#REF!"}},{"$f":"AND(#REF!,\"Svq8XUu3NlM=\")","v":{"$error":"#REF!"}},{"$f":"AND(#REF!,\"Svq8XUu3NlQ=\")","v":{"$error":"#REF!"}},{"$f":"AND(#REF!,\"Svq8XUu3NlU=\")","v":{"$error":"#REF!"}},{"$f":"AND(#REF!,\"Svq8XUu3NlY=\")","v":{"$error":"#REF!"}},{"$f":"AND(#REF!,\"Svq8XUu3Nlc=\")","v":{"$error":"#REF!"}},{"$f":"AND(#REF!,\"Svq8XUu3Nlg=\")","v":{"$error":"#REF!"}},{"$f":"AND(#REF!,\"Svq8XUu3Nlk=\")","v":{"$error":"#REF!"}},{"$f":"AND(#REF!,\"Svq8XUu3Nlo=\")","v":{"$error":"#REF!"}},{"$f":"AND(#REF!,\"Svq8XUu3Nls=\")","v":{"$error":"#REF!"}},{"$f":"AND(#REF!,\"Svq8XUu3Nlw=\")","v":{"$error":"#REF!"}},{"$f":"AND(#REF!,\"Svq8XUu3Nl0=\")","v":{"$error":"#REF!"}},{"$f":"AND(#REF!,\"Svq8XUu3Nl4=\")","v":{"$error":"#REF!"}},{"$f":"AND(#REF!,\"Svq8XUu3Nl8=\")","v":{"$error":"#REF!"}},{"$f":"AND(#REF!,\"Svq8XUu3NmA=\")","v":{"$error":"#REF!"}},{"$f":"AND(#REF!,\"Svq8XUu3NmE=\")","v":{"$error":"#REF!"}},{"$f":"AND(#REF!,\"Svq8XUu3NmI=\")","v":{"$error":"#REF!"}},{"$f":"AND(#REF!,\"Svq8XUu3NmM=\")","v":{"$error":"#REF!"}},{"$f":"AND(#REF!,\"Svq8XUu3NmQ=\")","v":{"$error":"#REF!"}},{"$f":"AND(#REF!,\"Svq8XUu3NmU=\")","v":{"$error":"#REF!"}},{"$f":"AND(#REF!,\"Svq8XUu3NmY=\")","v":{"$error":"#REF!"}},{"$f":"AND(#REF!,\"Svq8XUu3Nmc=\")","v":{"$error":"#REF!"}},{"$f":"AND(#REF!,\"Svq8XUu3Nmg=\")","v":{"$error":"#REF!"}},{"$f":"AND(#REF!,\"Svq8XUu3Nmk=\")","v":{"$error":"#REF!"}},{"$f":"AND(#REF!,\"Svq8XUu3Nmo=\")","v":{"$error":"#REF!"}},{"$f":"AND(#REF!,\"Svq8XUu3Nms=\")","v":{"$error":"#REF!"}},{"$f":"AND(#REF!,\"Svq8XUu3Nmw=\")","v":{"$error":"#REF!"}},{"$f":"AND(#REF!,\"Svq8XUu3Nm0=\")","v":{"$error":"#REF!"}},{"$f":"AND(#REF!,\"Svq8XUu3Nm4=\")","v":{"$error":"#REF!"}},{"$f":"AND(#REF!,\"Svq8XUu3Nm8=\")","v":{"$error":"#REF!"}},{"$f":"AND(#REF!,\"Svq8XUu3NnA=\")","v":{"$error":"#REF!"}},{"$f":"AND(#REF!,\"Svq8XUu3NnE=\")","v":{"$error":"#REF!"}},{"$f":"AND(#REF!,\"Svq8XUu3NnI=\")","v":{"$error":"#REF!"}},{"$f":"AND(#REF!,\"Svq8XUu3NnM=\")","v":{"$error":"#REF!"}},{"$f":"AND(#REF!,\"Svq8XUu3NnQ=\")","v":{"$error":"#REF!"}},{"$f":"AND(#REF!,\"Svq8XUu3NnU=\")","v":{"$error":"#REF!"}},{"$f":"AND(#REF!,\"Svq8XUu3NnY=\")","v":{"$error":"#REF!"}},{"$f":"AND(#REF!,\"Svq8XUu3Nnc=\")","v":{"$error":"#REF!"}},{"$f":"AND(#REF!,\"Svq8XUu3Nng=\")","v":{"$error":"#REF!"}},{"$f":"AND(#REF!,\"Svq8XUu3Nnk=\")","v":{"$error":"#REF!"}},{"$f":"AND(#REF!,\"Svq8XUu3Nno=\")","v":{"$error":"#REF!"}},{"$f":"AND(#REF!,\"Svq8XUu3Nns=\")","v":{"$error":"#REF!"}},{"$f":"AND(#REF!,\"Svq8XUu3Nnw=\")","v":{"$error":"#REF!"}},{"$f":"AND(#REF!,\"Svq8XUu3Nn0=\")","v":{"$error":"#REF!"}},{"$f":"AND(#REF!,\"Svq8XUu3Nn4=\")","v":{"$error":"#REF!"}},{"$f":"AND(#REF!,\"Svq8XUu3Nn8=\")","v":{"$error":"#REF!"}},{"$f":"AND(#REF!,\"Svq8XUu3NoA=\")","v":{"$error":"#REF!"}},{"$f":"AND(#REF!,\"Svq8XUu3NoE=\")","v":{"$error":"#REF!"}},{"$f":"AND(#REF!,\"Svq8XUu3NoI=\")","v":{"$error":"#REF!"}},{"$f":"AND(#REF!,\"Svq8XUu3NoM=\")","v":{"$error":"#REF!"}},{"$f":"AND(#REF!,\"Svq8XUu3NoQ=\")","v":{"$error":"#REF!"}},{"$f":"AND(#REF!,\"Svq8XUu3NoU=\")","v":{"$error":"#REF!"}},{"$f":"AND(#REF!,\"Svq8XUu3NoY=\")","v":{"$error":"#REF!"}},{"$f":"AND(#REF!,\"Svq8XUu3Noc=\")","v":{"$error":"#REF!"}},{"$f":"AND(#REF!,\"Svq8XUu3Nog=\")","v":{"$error":"#REF!"}},{"$f":"AND(#REF!,\"Svq8XUu3Nok=\")","v":{"$error":"#REF!"}},{"$f":"AND(#REF!,\"Svq8XUu3Noo=\")","v":{"$error":"#REF!"}},{"$f":"AND(#REF!,\"Svq8XUu3Nos=\")","v":{"$error":"#REF!"}},{"$f":"AND(#REF!,\"Svq8XUu3Now=\")","v":{"$error":"#REF!"}},{"$f":"AND(#REF!,\"Svq8XUu3No0=\")","v":{"$error":"#REF!"}},{"$f":"AND(#REF!,\"Svq8XUu3No4=\")","v":{"$error":"#REF!"}},{"$f":"AND(#REF!,\"Svq8XUu3No8=\")","v":{"$error":"#REF!"}},{"$f":"AND(#REF!,\"Svq8XUu3NpA=\")","v":{"$error":"#REF!"}},{"$f":"AND(#REF!,\"Svq8XUu3NpE=\")","v":{"$error":"#REF!"}},{"$f":"AND(#REF!,\"Svq8XUu3NpI=\")","v":{"$error":"#REF!"}},{"$f":"AND(#REF!,\"Svq8XUu3NpM=\")","v":{"$error":"#REF!"}},{"$f":"AND(#REF!,\"Svq8XUu3NpQ=\")","v":{"$error":"#REF!"}},{"$f":"AND(#REF!,\"Svq8XUu3NpU=\")","v":{"$error":"#REF!"}},{"$f":"AND(#REF!,\"Svq8XUu3NpY=\")","v":{"$error":"#REF!"}},{"$f":"AND(#REF!,\"Svq8XUu3Npc=\")","v":{"$error":"#REF!"}},{"$f":"AND(#REF!,\"Svq8XUu3Npg=\")","v":{"$error":"#REF!"}},{"$f":"AND(#REF!,\"Svq8XUu3Npk=\")","v":{"$error":"#REF!"}},{"$f":"AND(#REF!,\"Svq8XUu3Npo=\")","v":{"$error":"#REF!"}},{"$f":"AND(#REF!,\"Svq8XUu3Nps=\")","v":{"$error":"#REF!"}},{"$f":"AND(#REF!,\"Svq8XUu3Npw=\")","v":{"$error":"#REF!"}},{"$f":"AND(#REF!,\"Svq8XUu3Np0=\")","v":{"$error":"#REF!"}},{"$f":"AND(#REF!,\"Svq8XUu3Np4=\")","v":{"$error":"#REF!"}},{"$f":"AND(#REF!,\"Svq8XUu3Np8=\")","v":{"$error":"#REF!"}},{"$f":"AND(#REF!,\"Svq8XUu3NqA=\")","v":{"$error":"#REF!"}},{"$f":"AND(#REF!,\"Svq8XUu3NqE=\")","v":{"$error":"#REF!"}},{"$f":"AND(#REF!,\"Svq8XUu3NqI=\")","v":{"$error":"#REF!"}},{"$f":"AND(#REF!,\"Svq8XUu3NqM=\")","v":{"$error":"#REF!"}},{"$f":"AND(#REF!,\"Svq8XUu3NqQ=\")","v":{"$error":"#REF!"}},{"$f":"AND(#REF!,\"Svq8XUu3NqU=\")","v":{"$error":"#REF!"}},{"$f":"AND(#REF!,\"Svq8XUu3NqY=\")","v":{"$error":"#REF!"}},{"$f":"AND(#REF!,\"Svq8XUu3Nqc=\")","v":{"$error":"#REF!"}},{"$f":"AND(#REF!,\"Svq8XUu3Nqg=\")","v":{"$error":"#REF!"}},{"$f":"AND(#REF!,\"Svq8XUu3Nqk=\")","v":{"$error":"#REF!"}},{"$f":"AND(#REF!,\"Svq8XUu3Nqo=\")","v":{"$error":"#REF!"}},{"$f":"AND(#REF!,\"Svq8XUu3Nqs=\")","v":{"$error":"#REF!"}},{"$f":"AND(#REF!,\"Svq8XUu3Nqw=\")","v":{"$error":"#REF!"}},{"$f":"AND(#REF!,\"Svq8XUu3Nq0=\")","v":{"$error":"#REF!"}},{"$f":"AND(#REF!,\"Svq8XUu3Nq4=\")","v":{"$error":"#REF!"}},{"$f":"AND(#REF!,\"Svq8XUu3Nq8=\")","v":{"$error":"#REF!"}},{"$f":"AND(#REF!,\"Svq8XUu3NrA=\")","v":{"$error":"#REF!"}},{"$f":"AND(#REF!,\"Svq8XUu3NrE=\")","v":{"$error":"#REF!"}},{"$f":"AND(#REF!,\"Svq8XUu3NrI=\")","v":{"$error":"#REF!"}},{"$f":"AND(#REF!,\"Svq8XUu3NrM=\")","v":{"$error":"#REF!"}},{"$f":"AND(#REF!,\"Svq8XUu3NrQ=\")","v":{"$error":"#REF!"}},{"$f":"AND(#REF!,\"Svq8XUu3NrU=\")","v":{"$error":"#REF!"}},{"$f":"AND(#REF!,\"Svq8XUu3NrY=\")","v":{"$error":"#REF!"}},{"$f":"AND(#REF!,\"Svq8XUu3Nrc=\")","v":{"$error":"#REF!"}},{"$f":"AND(#REF!,\"Svq8XUu3Nrg=\")","v":{"$error":"#REF!"}},{"$f":"AND(#REF!,\"Svq8XUu3Nrk=\")","v":{"$error":"#REF!"}},{"$f":"AND(#REF!,\"Svq8XUu3Nro=\")","v":{"$error":"#REF!"}},{"$f":"AND(#REF!,\"Svq8XUu3Nrs=\")","v":{"$error":"#REF!"}},{"$f":"AND(#REF!,\"Svq8XUu3Nrw=\")","v":{"$error":"#REF!"}},{"$f":"AND(#REF!,\"Svq8XUu3Nr0=\")","v":{"$error":"#REF!"}},{"$f":"AND(#REF!,\"Svq8XUu3Nr4=\")","v":{"$error":"#REF!"}},{"$f":"AND(#REF!,\"Svq8XUu3Nr8=\")","v":{"$error":"#REF!"}},{"$f":"AND(#REF!,\"Svq8XUu3NsA=\")","v":{"$error":"#REF!"}},{"$f":"AND(#REF!,\"Svq8XUu3NsE=\")","v":{"$error":"#REF!"}},{"$f":"AND(#REF!,\"Svq8XUu3NsI=\")","v":{"$error":"#REF!"}},{"$f":"AND(#REF!,\"Svq8XUu3NsM=\")","v":{"$error":"#REF!"}},{"$f":"AND(#REF!,\"Svq8XUu3NsQ=\")","v":{"$error":"#REF!"}},{"$f":"AND(#REF!,\"Svq8XUu3NsU=\")","v":{"$error":"#REF!"}},{"$f":"AND(#REF!,\"Svq8XUu3NsY=\")","v":{"$error":"#REF!"}},{"$f":"AND(#REF!,\"Svq8XUu3Nsc=\")","v":{"$error":"#REF!"}},{"$f":"AND(#REF!,\"Svq8XUu3Nsg=\")","v":{"$error":"#REF!"}},{"$f":"AND(#REF!,\"Svq8XUu3Nsk=\")","v":{"$error":"#REF!"}},{"$f":"AND(#REF!,\"Svq8XUu3Nso=\")","v":{"$error":"#REF!"}},{"$f":"AND(#REF!,\"Svq8XUu3Nss=\")","v":{"$error":"#REF!"}},{"$f":"AND(#REF!,\"Svq8XUu3Nsw=\")","v":{"$error":"#REF!"}},{"$f":"AND(#REF!,\"Svq8XUu3Ns0=\")","v":{"$error":"#REF!"}},{"$f":"AND(#REF!,\"Svq8XUu3Ns4=\")","v":{"$error":"#REF!"}},{"$f":"AND(#REF!,\"Svq8XUu3Ns8=\")","v":{"$error":"#REF!"}},{"$f":"AND(#REF!,\"Svq8XUu3NtA=\")","v":{"$error":"#REF!"}},{"$f":"AND(#REF!,\"Svq8XUu3NtE=\")","v":{"$error":"#REF!"}},{"$f":"AND(#REF!,\"Svq8XUu3NtI=\")","v":{"$error":"#REF!"}},{"$f":"AND(#REF!,\"Svq8XUu3NtM=\")","v":{"$error":"#REF!"}},{"$f":"AND(#REF!,\"Svq8XUu3NtQ=\")","v":{"$error":"#REF!"}},{"$f":"AND(#REF!,\"Svq8XUu3NtU=\")","v":{"$error":"#REF!"}},{"$f":"AND(#REF!,\"Svq8XUu3NtY=\")","v":{"$error":"#REF!"}},{"$f":"AND(#REF!,\"Svq8XUu3Ntc=\")","v":{"$error":"#REF!"}},{"$f":"AND(#REF!,\"Svq8XUu3Ntg=\")","v":{"$error":"#REF!"}},{"$f":"AND(#REF!,\"Svq8XUu3Ntk=\")","v":{"$error":"#REF!"}},{"$f":"AND(#REF!,\"Svq8XUu3Nto=\")","v":{"$error":"#REF!"}},{"$f":"AND(#REF!,\"Svq8XUu3Nts=\")","v":{"$error":"#REF!"}},{"$f":"AND(#REF!,\"Svq8XUu3Ntw=\")","v":{"$error":"#REF!"}},{"$f":"AND(#REF!,\"Svq8XUu3Nt0=\")","v":{"$error":"#REF!"}},{"$f":"AND(#REF!,\"Svq8XUu3Nt4=\")","v":{"$error":"#REF!"}},{"$f":"AND(#REF!,\"Svq8XUu3Nt8=\")","v":{"$error":"#REF!"}},{"$f":"AND(#REF!,\"Svq8XUu3NuA=\")","v":{"$error":"#REF!"}},{"$f":"AND(#REF!,\"Svq8XUu3NuE=\")","v":{"$error":"#REF!"}},{"$f":"AND(#REF!,\"Svq8XUu3NuI=\")","v":{"$error":"#REF!"}},{"$f":"AND(#REF!,\"Svq8XUu3NuM=\")","v":{"$error":"#REF!"}},{"$f":"AND(#REF!,\"Svq8XUu3NuQ=\")","v":{"$error":"#REF!"}},{"$f":"AND(#REF!,\"Svq8XUu3NuU=\")","v":{"$error":"#REF!"}},{"$f":"AND(#REF!,\"Svq8XUu3NuY=\")","v":{"$error":"#REF!"}},{"$f":"AND(#REF!,\"Svq8XUu3Nuc=\")","v":{"$error":"#REF!"}},{"$f":"AND(#REF!,\"Svq8XUu3Nug=\")","v":{"$error":"#REF!"}},{"$f":"AND(#REF!,\"Svq8XUu3Nuk=\")","v":{"$error":"#REF!"}},{"$f":"AND(#REF!,\"Svq8XUu3Nuo=\")","v":{"$error":"#REF!"}},{"$f":"AND(#REF!,\"Svq8XUu3Nus=\")","v":{"$error":"#REF!"}},{"$f":"AND(#REF!,\"Svq8XUu3Nuw=\")","v":{"$error":"#REF!"}},{"$f":"AND(#REF!,\"Svq8XUu3Nu0=\")","v":{"$error":"#REF!"}},{"$f":"AND(#REF!,\"Svq8XUu3Nu4=\")","v":{"$error":"#REF!"}},{"$f":"AND(#REF!,\"Svq8XUu3Nu8=\")","v":{"$error":"#REF!"}},{"$f":"AND(#REF!,\"Svq8XUu3NvA=\")","v":{"$error":"#REF!"}},{"$f":"AND(#REF!,\"Svq8XUu3NvE=\")","v":{"$error":"#REF!"}},{"$f":"AND(#REF!,\"Svq8XUu3NvI=\")","v":{"$error":"#REF!"}},{"$f":"AND(#REF!,\"Svq8XUu3NvM=\")","v":{"$error":"#REF!"}},{"$f":"AND(#REF!,\"Svq8XUu3NvQ=\")","v":{"$error":"#REF!"}},{"$f":"AND(#REF!,\"Svq8XUu3NvU=\")","v":{"$error":"#REF!"}},{"$f":"AND(#REF!,\"Svq8XUu3NvY=\")","v":{"$error":"#REF!"}},{"$f":"AND(#REF!,\"Svq8XUu3Nvc=\")","v":{"$error":"#REF!"}},{"$f":"AND(#REF!,\"Svq8XUu3Nvg=\")","v":{"$error":"#REF!"}},{"$f":"AND(#REF!,\"Svq8XUu3Nvk=\")","v":{"$error":"#REF!"}},{"$f":"AND(#REF!,\"Svq8XUu3Nvo=\")","v":{"$error":"#REF!"}},{"$f":"AND(#REF!,\"Svq8XUu3Nvs=\")","v":{"$error":"#REF!"}},{"$f":"AND(#REF!,\"Svq8XUu3Nvw=\")","v":{"$error":"#REF!"}},{"$f":"AND(#REF!,\"Svq8XUu3Nv0=\")","v":{"$error":"#REF!"}},{"$f":"AND(#REF!,\"Svq8XUu3Nv4=\")","v":{"$error":"#REF!"}},{"$f":"AND(#REF!,\"Svq8XUu3Nv8=\")","v":{"$error":"#REF!"}}]
[{"$f":"AND(#REF!,\"J2SfQ0jYewA=\")","v":{"$error":"#REF!"}},{"$f":"AND(#REF!,\"J2SfQ0jYewE=\")","v":{"$error":"#REF!"}},{"$f":"AND(#REF!,\"J2SfQ0jYewI=\")","v":{"$error":"#REF!"}},{"$f":"AND(#REF!,\"J2SfQ0jYewM=\")","v":{"$error":"#REF!"}},{"$f":"AND(#REF!,\"J2SfQ0jYewQ=\")","v":{"$error":"#REF!"}},{"$f":"AND(#REF!,\"J2SfQ0jYewU=\")","v":{"$error":"#REF!"}},{"$f":"AND(#REF!,\"J2SfQ0jYewY=\")","v":{"$error":"#REF!"}},{"$f":"AND(#REF!,\"J2SfQ0jYewc=\")","v":{"$error":"#REF!"}},{"$f":"AND(#REF!,\"J2SfQ0jYewg=\")","v":{"$error":"#REF!"}},{"$f":"AND(#REF!,\"J2SfQ0jYewk=\")","v":{"$error":"#REF!"}},{"$f":"AND(#REF!,\"J2SfQ0jYewo=\")","v":{"$error":"#REF!"}},{"$f":"AND(#REF!,\"J2SfQ0jYews=\")","v":{"$error":"#REF!"}},{"$f":"AND(#REF!,\"J2SfQ0jYeww=\")","v":{"$error":"#REF!"}},{"$f":"AND(#REF!,\"J2SfQ0jYew0=\")","v":{"$error":"#REF!"}},{"$f":"AND(#REF!,\"J2SfQ0jYew4=\")","v":{"$error":"#REF!"}},{"$f":"AND(#REF!,\"J2SfQ0jYew8=\")","v":{"$error":"#REF!"}},{"$f":"AND(#REF!,\"J2SfQ0jYexA=\")","v":{"$error":"#REF!"}},{"$f":"AND(#REF!,\"J2SfQ0jYexE=\")","v":{"$error":"#REF!"}},{"$f":"AND(#REF!,\"J2SfQ0jYexI=\")","v":{"$error":"#REF!"}},{"$f":"AND(#REF!,\"J2SfQ0jYexM=\")","v":{"$error":"#REF!"}},{"$f":"AND(#REF!,\"J2SfQ0jYexQ=\")","v":{"$error":"#REF!"}},{"$f":"AND(#REF!,\"J2SfQ0jYexU=\")","v":{"$error":"#REF!"}},{"$f":"AND(#REF!,\"J2SfQ0jYexY=\")","v":{"$error":"#REF!"}},{"$f":"AND(#REF!,\"J2SfQ0jYexc=\")","v":{"$error":"#REF!"}},{"$f":"IF(#REF!,\"J2SfQ0jYexg=\",0)","v":{"$error":"#REF!"}},{"$f":"AND(#REF!,\"J2SfQ0jYexk=\")","v":{"$error":"#REF!"}},{"$f":"AND(#REF!,\"J2SfQ0jYexo=\")","v":{"$error":"#REF!"}},{"$f":"AND(#REF!,\"J2SfQ0jYexs=\")","v":{"$error":"#REF!"}},{"$f":"AND(#REF!,\"J2SfQ0jYexw=\")","v":{"$error":"#REF!"}},{"$f":"AND(#REF!,\"J2SfQ0jYex0=\")","v":{"$error":"#REF!"}},{"$f":"AND(#REF!,\"J2SfQ0jYex4=\")","v":{"$error":"#REF!"}},{"$f":"AND(#REF!,\"J2SfQ0jYex8=\")","v":{"$error":"#REF!"}},{"$f":"AND(#REF!,\"J2SfQ0jYeyA=\")","v":{"$error":"#REF!"}},{"$f":"AND(#REF!,\"J2SfQ0jYeyE=\")","v":{"$error":"#REF!"}},{"$f":"AND(#REF!,\"J2SfQ0jYeyI=\")","v":{"$error":"#REF!"}},{"$f":"AND(#REF!,\"J2SfQ0jYeyM=\")","v":{"$error":"#REF!"}},{"$f":"AND(#REF!,\"J2SfQ0jYeyQ=\")","v":{"$error":"#REF!"}},{"$f":"AND(#REF!,\"J2SfQ0jYeyU=\")","v":{"$error":"#REF!"}},{"$f":"AND(#REF!,\"J2SfQ0jYeyY=\")","v":{"$error":"#REF!"}},{"$f":"AND(#REF!,\"J2SfQ0jYeyc=\")","v":{"$error":"#REF!"}},{"$f":"AND(#REF!,\"J2SfQ0jYeyg=\")","v":{"$error":"#REF!"}},{"$f":"AND(#REF!,\"J2SfQ0jYeyk=\")","v":{"$error":"#REF!"}},{"$f":"AND(#REF!,\"J2SfQ0jYeyo=\")","v":{"$error":"#REF!"}},{"$f":"AND(#REF!,\"J2SfQ0jYeys=\")","v":{"$error":"#REF!"}},{"$f":"AND(#REF!,\"J2SfQ0jYeyw=\")","v":{"$error":"#REF!"}},{"$f":"AND(#REF!,\"J2SfQ0jYey0=\")","v":{"$error":"#REF!"}},{"$f":"AND(#REF!,\"J2SfQ0jYey4=\")","v":{"$error":"#REF!"}},{"$f":"AND(#REF!,\"J2SfQ0jYey8=\")","v":{"$error":"#REF!"}},{"$f":"AND(#REF!,\"J2SfQ0jYezA=\")","v":{"$error":"#REF!"}},{"$f":"AND(#REF!,\"J2SfQ0jYezE=\")","v":{"$error":"#REF!"}},{"$f":"AND(#REF!,\"J2SfQ0jYezI=\")","v":{"$error":"#REF!"}},{"$f":"AND(#REF!,\"J2SfQ0jYezM=\")","v":{"$error":"#REF!"}},{"$f":"AND(#REF!,\"J2SfQ0jYezQ=\")","v":{"$error":"#REF!"}},{"$f":"AND(#REF!,\"J2SfQ0jYezU=\")","v":{"$error":"#REF!"}},{"$f":"AND(#REF!,\"J2SfQ0jYezY=\")","v":{"$error":"#REF!"}},{"$f":"AND(#REF!,\"J2SfQ0jYezc=\")","v":{"$error":"#REF!"}},{"$f":"AND(#REF!,\"J2SfQ0jYezg=\")","v":{"$error":"#REF!"}},{"$f":"AND(#REF!,\"J2SfQ0jYezk=\")","v":{"$error":"#REF!"}},{"$f":"AND(#REF!,\"J2SfQ0jYezo=\")","v":{"$error":"#REF!"}},{"$f":"AND(#REF!,\"J2SfQ0jYezs=\")","v":{"$error":"#REF!"}},{"$f":"AND(#REF!,\"J2SfQ0jYezw=\")","v":{"$error":"#REF!"}},{"$f":"AND(#REF!,\"J2SfQ0jYez0=\")","v":{"$error":"#REF!"}},{"$f":"AND(#REF!,\"J2SfQ0jYez4=\")","v":{"$error":"#REF!"}},{"$f":"AND(#REF!,\"J2SfQ0jYez8=\")","v":{"$error":"#REF!"}},{"$f":"AND(#REF!,\"J2SfQ0jYe0A=\")","v":{"$error":"#REF!"}},{"$f":"AND(#REF!,\"J2SfQ0jYe0E=\")","v":{"$error":"#REF!"}},{"$f":"AND(#REF!,\"J2SfQ0jYe0I=\")","v":{"$error":"#REF!"}},{"$f":"AND(#REF!,\"J2SfQ0jYe0M=\")","v":{"$error":"#REF!"}},{"$f":"AND(#REF!,\"J2SfQ0jYe0Q=\")","v":{"$error":"#REF!"}},{"$f":"AND(#REF!,\"J2SfQ0jYe0U=\")","v":{"$error":"#REF!"}},{"$f":"AND(#REF!,\"J2SfQ0jYe0Y=\")","v":{"$error":"#REF!"}},{"$f":"AND(#REF!,\"J2SfQ0jYe0c=\")","v":{"$error":"#REF!"}},{"$f":"AND(#REF!,\"J2SfQ0jYe0g=\")","v":{"$error":"#REF!"}},{"$f":"AND(#REF!,\"J2SfQ0jYe0k=\")","v":{"$error":"#REF!"}},{"$f":"AND(#REF!,\"J2SfQ0jYe0o=\")","v":{"$error":"#REF!"}},{"$f":"AND(#REF!,\"J2SfQ0jYe0s=\")","v":{"$error":"#REF!"}},{"$f":"AND(#REF!,\"J2SfQ0jYe0w=\")","v":{"$error":"#REF!"}},{"$f":"AND(#REF!,\"J2SfQ0jYe00=\")","v":{"$error":"#REF!"}},{"$f":"AND(#REF!,\"J2SfQ0jYe04=\")","v":{"$error":"#REF!"}},{"$f":"AND(#REF!,\"J2SfQ0jYe08=\")","v":{"$error":"#REF!"}},{"$f":"AND(#REF!,\"J2SfQ0jYe1A=\")","v":{"$error":"#REF!"}},{"$f":"AND(#REF!,\"J2SfQ0jYe1E=\")","v":{"$error":"#REF!"}},{"$f":"AND(#REF!,\"J2SfQ0jYe1I=\")","v":{"$error":"#REF!"}},{"$f":"AND(#REF!,\"J2SfQ0jYe1M=\")","v":{"$error":"#REF!"}},{"$f":"AND(#REF!,\"J2SfQ0jYe1Q=\")","v":{"$error":"#REF!"}},{"$f":"AND(#REF!,\"J2SfQ0jYe1U=\")","v":{"$error":"#REF!"}},{"$f":"AND(#REF!,\"J2SfQ0jYe1Y=\")","v":{"$error":"#REF!"}},{"$f":"AND(#REF!,\"J2SfQ0jYe1c=\")","v":{"$error":"#REF!"}},{"$f":"AND(#REF!,\"J2SfQ0jYe1g=\")","v":{"$error":"#REF!"}},{"$f":"AND(#REF!,\"J2SfQ0jYe1k=\")","v":{"$error":"#REF!"}},{"$f":"AND(#REF!,\"J2SfQ0jYe1o=\")","v":{"$error":"#REF!"}},{"$f":"AND(#REF!,\"J2SfQ0jYe1s=\")","v":{"$error":"#REF!"}},{"$f":"AND(#REF!,\"J2SfQ0jYe1w=\")","v":{"$error":"#REF!"}},{"$f":"AND(#REF!,\"J2SfQ0jYe10=\")","v":{"$error":"#REF!"}},{"$f":"AND(#REF!,\"J2SfQ0jYe14=\")","v":{"$error":"#REF!"}},{"$f":"AND(#REF!,\"J2SfQ0jYe18=\")","v":{"$error":"#REF!"}},{"$f":"AND(#REF!,\"J2SfQ0jYe2A=\")","v":{"$error":"#REF!"}},{"$f":"AND(#REF!,\"J2SfQ0jYe2E=\")","v":{"$error":"#REF!"}},{"$f":"AND(#REF!,\"J2SfQ0jYe2I=\")","v":{"$error":"#REF!"}},{"$f":"AND(#REF!,\"J2SfQ0jYe2M=\")","v":{"$error":"#REF!"}},{"$f":"AND(#REF!,\"J2SfQ0jYe2Q=\")","v":{"$error":"#REF!"}},{"$f":"AND(#REF!,\"J2SfQ0jYe2U=\")","v":{"$error":"#REF!"}},{"$f":"AND(#REF!,\"J2SfQ0jYe2Y=\")","v":{"$error":"#REF!"}},{"$f":"AND(#REF!,\"J2SfQ0jYe2c=\")","v":{"$error":"#REF!"}},{"$f":"AND(#REF!,\"J2SfQ0jYe2g=\")","v":{"$error":"#REF!"}},{"$f":"AND(#REF!,\"J2SfQ0jYe2k=\")","v":{"$error":"#REF!"}},{"$f":"AND(#REF!,\"J2SfQ0jYe2o=\")","v":{"$error":"#REF!"}},{"$f":"AND(#REF!,\"J2SfQ0jYe2s=\")","v":{"$error":"#REF!"}},{"$f":"AND(#REF!,\"J2SfQ0jYe2w=\")","v":{"$error":"#REF!"}},{"$f":"AND(#REF!,\"J2SfQ0jYe20=\")","v":{"$error":"#REF!"}},{"$f":"AND(#REF!,\"J2SfQ0jYe24=\")","v":{"$error":"#REF!"}},{"$f":"AND(#REF!,\"J2SfQ0jYe28=\")","v":{"$error":"#REF!"}},{"$f":"AND(#REF!,\"J2SfQ0jYe3A=\")","v":{"$error":"#REF!"}},{"$f":"AND(#REF!,\"J2SfQ0jYe3E=\")","v":{"$error":"#REF!"}},{"$f":"AND(#REF!,\"J2SfQ0jYe3I=\")","v":{"$error":"#REF!"}},{"$f":"AND(#REF!,\"J2SfQ0jYe3M=\")","v":{"$error":"#REF!"}},{"$f":"AND(#REF!,\"J2SfQ0jYe3Q=\")","v":{"$error":"#REF!"}},{"$f":"AND(#REF!,\"J2SfQ0jYe3U=\")","v":{"$error":"#REF!"}},{"$f":"AND(#REF!,\"J2SfQ0jYe3Y=\")","v":{"$error":"#REF!"}},{"$f":"AND(#REF!,\"J2SfQ0jYe3c=\")","v":{"$error":"#REF!"}},{"$f":"AND(#REF!,\"J2SfQ0jYe3g=\")","v":{"$error":"#REF!"}},{"$f":"AND(#REF!,\"J2SfQ0jYe3k=\")","v":{"$error":"#REF!"}},{"$f":"AND(#REF!,\"J2SfQ0jYe3o=\")","v":{"$error":"#REF!"}},{"$f":"AND(#REF!,\"J2SfQ0jYe3s=\")","v":{"$error":"#REF!"}},{"$f":"AND(#REF!,\"J2SfQ0jYe3w=\")","v":{"$error":"#REF!"}},{"$f":"AND(#REF!,\"J2SfQ0jYe30=\")","v":{"$error":"#REF!"}},{"$f":"AND(#REF!,\"J2SfQ0jYe34=\")","v":{"$error":"#REF!"}},{"$f":"AND(#REF!,\"J2SfQ0jYe38=\")","v":{"$error":"#REF!"}},{"$f":"AND(#REF!,\"J2SfQ0jYe4A=\")","v":{"$error":"#REF!"}},{"$f":"AND(#REF!,\"J2SfQ0jYe4E=\")","v":{"$error":"#REF!"}},{"$f":"AND(#REF!,\"J2SfQ0jYe4I=\")","v":{"$error":"#REF!"}},{"$f":"AND(#REF!,\"J2SfQ0jYe4M=\")","v":{"$error":"#REF!"}},{"$f":"AND(#REF!,\"J2SfQ0jYe4Q=\")","v":{"$error":"#REF!"}},{"$f":"AND(#REF!,\"J2SfQ0jYe4U=\")","v":{"$error":"#REF!"}},{"$f":"AND(#REF!,\"J2SfQ0jYe4Y=\")","v":{"$error":"#REF!"}},{"$f":"AND(#REF!,\"J2SfQ0jYe4c=\")","v":{"$error":"#REF!"}},{"$f":"AND(#REF!,\"J2SfQ0jYe4g=\")","v":{"$error":"#REF!"}},{"$f":"AND(#REF!,\"J2SfQ0jYe4k=\")","v":{"$error":"#REF!"}},{"$f":"AND(#REF!,\"J2SfQ0jYe4o=\")","v":{"$error":"#REF!"}},{"$f":"AND(#REF!,\"J2SfQ0jYe4s=\")","v":{"$error":"#REF!"}},{"$f":"AND(#REF!,\"J2SfQ0jYe4w=\")","v":{"$error":"#REF!"}},{"$f":"AND(#REF!,\"J2SfQ0jYe40=\")","v":{"$error":"#REF!"}},{"$f":"AND(#REF!,\"J2SfQ0jYe44=\")","v":{"$error":"#REF!"}},{"$f":"AND(#REF!,\"J2SfQ0jYe48=\")","v":{"$error":"#REF!"}},{"$f":"AND(#REF!,\"J2SfQ0jYe5A=\")","v":{"$error":"#REF!"}},{"$f":"AND(#REF!,\"J2SfQ0jYe5E=\")","v":{"$error":"#REF!"}},{"$f":"AND(#REF!,\"J2SfQ0jYe5I=\")","v":{"$error":"#REF!"}},{"$f":"AND(#REF!,\"J2SfQ0jYe5M=\")","v":{"$error":"#REF!"}},{"$f":"AND(#REF!,\"J2SfQ0jYe5Q=\")","v":{"$error":"#REF!"}},{"$f":"AND(#REF!,\"J2SfQ0jYe5U=\")","v":{"$error":"#REF!"}},{"$f":"AND(#REF!,\"J2SfQ0jYe5Y=\")","v":{"$error":"#REF!"}},{"$f":"AND(#REF!,\"J2SfQ0jYe5c=\")","v":{"$error":"#REF!"}},{"$f":"AND(#REF!,\"J2SfQ0jYe5g=\")","v":{"$error":"#REF!"}},{"$f":"AND(#REF!,\"J2SfQ0jYe5k=\")","v":{"$error":"#REF!"}},{"$f":"AND(#REF!,\"J2SfQ0jYe5o=\")","v":{"$error":"#REF!"}},{"$f":"AND(#REF!,\"J2SfQ0jYe5s=\")","v":{"$error":"#REF!"}},{"$f":"AND(#REF!,\"J2SfQ0jYe5w=\")","v":{"$error":"#REF!"}},{"$f":"AND(#REF!,\"J2SfQ0jYe50=\")","v":{"$error":"#REF!"}},{"$f":"AND(#REF!,\"J2SfQ0jYe54=\")","v":{"$error":"#REF!"}},{"$f":"AND(#REF!,\"J2SfQ0jYe58=\")","v":{"$error":"#REF!"}},{"$f":"AND(#REF!,\"J2SfQ0jYe6A=\")","v":{"$error":"#REF!"}},{"$f":"AND(#REF!,\"J2SfQ0jYe6E=\")","v":{"$error":"#REF!"}},{"$f":"AND(#REF!,\"J2SfQ0jYe6I=\")","v":{"$error":"#REF!"}},{"$f":"AND(#REF!,\"J2SfQ0jYe6M=\")","v":{"$error":"#REF!"}},{"$f":"AND(#REF!,\"J2SfQ0jYe6Q=\")","v":{"$error":"#REF!"}},{"$f":"AND(#REF!,\"J2SfQ0jYe6U=\")","v":{"$error":"#REF!"}},{"$f":"AND(#REF!,\"J2SfQ0jYe6Y=\")","v":{"$error":"#REF!"}},{"$f":"AND(#REF!,\"J2SfQ0jYe6c=\")","v":{"$error":"#REF!"}},{"$f":"AND(#REF!,\"J2SfQ0jYe6g=\")","v":{"$error":"#REF!"}},{"$f":"AND(#REF!,\"J2SfQ0jYe6k=\")","v":{"$error":"#REF!"}},{"$f":"AND(#REF!,\"J2SfQ0jYe6o=\")","v":{"$error":"#REF!"}},{"$f":"AND(#REF!,\"J2SfQ0jYe6s=\")","v":{"$error":"#REF!"}},{"$f":"AND(#REF!,\"J2SfQ0jYe6w=\")","v":{"$error":"#REF!"}},{"$f":"AND(#REF!,\"J2SfQ0jYe60=\")","v":{"$error":"#REF!"}},{"$f":"AND(#REF!,\"J2SfQ0jYe64=\")","v":{"$error":"#REF!"}},{"$f":"AND(#REF!,\"J2SfQ0jYe68=\")","v":{"$error":"#REF!"}},{"$f":"AND(#REF!,\"J2SfQ0jYe7A=\")","v":{"$error":"#REF!"}},{"$f":"AND(#REF!,\"J2SfQ0jYe7E=\")","v":{"$error":"#REF!"}},{"$f":"AND(#REF!,\"J2SfQ0jYe7I=\")","v":{"$error":"#REF!"}},{"$f":"AND(#REF!,\"J2SfQ0jYe7M=\")","v":{"$error":"#REF!"}},{"$f":"AND(#REF!,\"J2SfQ0jYe7Q=\")","v":{"$error":"#REF!"}},{"$f":"AND(#REF!,\"J2SfQ0jYe7U=\")","v":{"$error":"#REF!"}},{"$f":"AND(#REF!,\"J2SfQ0jYe7Y=\")","v":{"$error":"#REF!"}},{"$f":"AND(#REF!,\"J2SfQ0jYe7c=\")","v":{"$error":"#REF!"}},{"$f":"AND(#REF!,\"J2SfQ0jYe7g=\")","v":{"$error":"#REF!"}},{"$f":"AND(#REF!,\"J2SfQ0jYe7k=\")","v":{"$error":"#REF!"}},{"$f":"AND(#REF!,\"J2SfQ0jYe7o=\")","v":{"$error":"#REF!"}},{"$f":"AND(#REF!,\"J2SfQ0jYe7s=\")","v":{"$error":"#REF!"}},{"$f":"AND(#REF!,\"J2SfQ0jYe7w=\")","v":{"$error":"#REF!"}},{"$f":"AND(#REF!,\"J2SfQ0jYe70=\")","v":{"$error":"#REF!"}},{"$f":"AND(#REF!,\"J2SfQ0jYe74=\")","v":{"$error":"#REF!"}},{"$f":"AND(#REF!,\"J2SfQ0jYe78=\")","v":{"$error":"#REF!"}},{"$f":"AND(#REF!,\"J2SfQ0jYe8A=\")","v":{"$error":"#REF!"}},{"$f":"AND(#REF!,\"J2SfQ0jYe8E=\")","v":{"$error":"#REF!"}},{"$f":"AND(#REF!,\"J2SfQ0jYe8I=\")","v":{"$error":"#REF!"}},{"$f":"AND(#REF!,\"J2SfQ0jYe8M=\")","v":{"$error":"#REF!"}},{"$f":"AND(#REF!,\"J2SfQ0jYe8Q=\")","v":{"$error":"#REF!"}},{"$f":"AND(#REF!,\"J2SfQ0jYe8U=\")","v":{"$error":"#REF!"}},{"$f":"AND(#REF!,\"J2SfQ0jYe8Y=\")","v":{"$error":"#REF!"}},{"$f":"AND(#REF!,\"J2SfQ0jYe8c=\")","v":{"$error":"#REF!"}},{"$f":"AND(#REF!,\"J2SfQ0jYe8g=\")","v":{"$error":"#REF!"}},{"$f":"AND(#REF!,\"J2SfQ0jYe8k=\")","v":{"$error":"#REF!"}},{"$f":"AND(#REF!,\"J2SfQ0jYe8o=\")","v":{"$error":"#REF!"}},{"$f":"AND(#REF!,\"J2SfQ0jYe8s=\")","v":{"$error":"#REF!"}},{"$f":"AND(#REF!,\"J2SfQ0jYe8w=\")","v":{"$error":"#REF!"}},{"$f":"AND(#REF!,\"J2SfQ0jYe80=\")","v":{"$error":"#REF!"}},{"$f":"AND(#REF!,\"J2SfQ0jYe84=\")","v":{"$error":"#REF!"}},{"$f":"AND(#REF!,\"J2SfQ0jYe88=\")","v":{"$error":"#REF!"}},{"$f":"AND(#REF!,\"J2SfQ0jYe9A=\")","v":{"$error":"#REF!"}},{"$f":"AND(#REF!,\"J2SfQ0jYe9E=\")","v":{"$error":"#REF!"}},{"$f":"AND(#REF!,\"J2SfQ0jYe9I=\")","v":{"$error":"#REF!"}},{"$f":"AND(#REF!,\"J2SfQ0jYe9M=\")","v":{"$error":"#REF!"}},{"$f":"AND(#REF!,\"J2SfQ0jYe9Q=\")","v":{"$error":"#REF!"}},{"$f":"AND(#REF!,\"J2SfQ0jYe9U=\")","v":{"$error":"#REF!"}},{"$f":"AND(#REF!,\"J2SfQ0jYe9Y=\")","v":{"$error":"#REF!"}},{"$f":"AND(#REF!,\"J2SfQ0jYe9c=\")","v":{"$error":"#REF!"}},{"$f":"AND(#REF!,\"J2SfQ0jYe9g=\")","v":{"$error":"#REF!"}},{"$f":"AND(#REF!,\"J2SfQ0jYe9k=\")","v":{"$error":"#REF!"}},{"$f":"AND(#REF!,\"J2SfQ0jYe9o=\")","v":{"$error":"#REF!"}},{"$f":"AND(#REF!,\"J2SfQ0jYe9s=\")","v":{"$error":"#REF!"}},{"$f":"AND(#REF!,\"J2SfQ0jYe9w=\")","v":{"$error":"#REF!"}},{"$f":"AND(#REF!,\"J2SfQ0jYe90=\")","v":{"$error":"#REF!"}},{"$f":"AND(#REF!,\"J2SfQ0jYe94=\")","v":{"$error":"#REF!"}},{"$f":"IF(#REF!,\"J2SfQ0jYe98=\",0)","v":{"$error":"#REF!"}},{"$f":"AND(#REF!,\"J2SfQ0jYe+A=\")","v":{"$error":"#REF!"}},{"$f":"AND(#REF!,\"J2SfQ0jYe+E=\")","v":{"$error":"#REF!"}},{"$f":"AND(#REF!,\"J2SfQ0jYe+I=\")","v":{"$error":"#REF!"}},{"$f":"AND(#REF!,\"J2SfQ0jYe+M=\")","v":{"$error":"#REF!"}},{"$f":"AND(#REF!,\"J2SfQ0jYe+Q=\")","v":{"$error":"#REF!"}},{"$f":"AND(#REF!,\"J2SfQ0jYe+U=\")","v":{"$error":"#REF!"}},{"$f":"AND(#REF!,\"J2SfQ0jYe+Y=\")","v":{"$error":"#REF!"}},{"$f":"AND(#REF!,\"J2SfQ0jYe+c=\")","v":{"$error":"#REF!"}},{"$f":"AND(#REF!,\"J2SfQ0jYe+g=\")","v":{"$error":"#REF!"}},{"$f":"AND(#REF!,\"J2SfQ0jYe+k=\")","v":{"$error":"#REF!"}},{"$f":"AND(#REF!,\"J2SfQ0jYe+o=\")","v":{"$error":"#REF!"}},{"$f":"AND(#REF!,\"J2SfQ0jYe+s=\")","v":{"$error":"#REF!"}},{"$f":"AND(#REF!,\"J2SfQ0jYe+w=\")","v":{"$error":"#REF!"}},{"$f":"AND(#REF!,\"J2SfQ0jYe+0=\")","v":{"$error":"#REF!"}},{"$f":"AND(#REF!,\"J2SfQ0jYe+4=\")","v":{"$error":"#REF!"}},{"$f":"AND(#REF!,\"J2SfQ0jYe+8=\")","v":{"$error":"#REF!"}},{"$f":"AND(#REF!,\"J2SfQ0jYe/A=\")","v":{"$error":"#REF!"}},{"$f":"AND(#REF!,\"J2SfQ0jYe/E=\")","v":{"$error":"#REF!"}},{"$f":"AND(#REF!,\"J2SfQ0jYe/I=\")","v":{"$error":"#REF!"}},{"$f":"AND(#REF!,\"J2SfQ0jYe/M=\")","v":{"$error":"#REF!"}},{"$f":"AND(#REF!,\"J2SfQ0jYe/Q=\")","v":{"$error":"#REF!"}},{"$f":"AND(#REF!,\"J2SfQ0jYe/U=\")","v":{"$error":"#REF!"}},{"$f":"AND(#REF!,\"J2SfQ0jYe/Y=\")","v":{"$error":"#REF!"}},{"$f":"AND(#REF!,\"J2SfQ0jYe/c=\")","v":{"$error":"#REF!"}},{"$f":"AND(#REF!,\"J2SfQ0jYe/g=\")","v":{"$error":"#REF!"}},{"$f":"AND(#REF!,\"J2SfQ0jYe/k=\")","v":{"$error":"#REF!"}},{"$f":"AND(#REF!,\"J2SfQ0jYe/o=\")","v":{"$error":"#REF!"}},{"$f":"AND(#REF!,\"J2SfQ0jYe/s=\")","v":{"$error":"#REF!"}},{"$f":"AND(#REF!,\"J2SfQ0jYe/w=\")","v":{"$error":"#REF!"}},{"$f":"AND(#REF!,\"J2SfQ0jYe/0=\")","v":{"$error":"#REF!"}},{"$f":"AND(#REF!,\"J2SfQ0jYe/4=\")","v":{"$error":"#REF!"}},{"$f":"AND(#REF!,\"J2SfQ0jYe/8=\")","v":{"$error":"#REF!"}}]
[{"$f":"AND(#REF!,\"OmnkVl/HvAA=\")","v":{"$error":"#REF!"}},{"$f":"AND(#REF!,\"OmnkVl/HvAE=\")","v":{"$error":"#REF!"}},{"$f":"AND(#REF!,\"OmnkVl/HvAI=\")","v":{"$error":"#REF!"}},{"$f":"AND(#REF!,\"OmnkVl/HvAM=\")","v":{"$error":"#REF!"}},{"$f":"AND(#REF!,\"OmnkVl/HvAQ=\")","v":{"$error":"#REF!"}},{"$f":"AND(#REF!,\"OmnkVl/HvAU=\")","v":{"$error":"#REF!"}},{"$f":"AND(#REF!,\"OmnkVl/HvAY=\")","v":{"$error":"#REF!"}},{"$f":"AND(#REF!,\"OmnkVl/HvAc=\")","v":{"$error":"#REF!"}},{"$f":"AND(#REF!,\"OmnkVl/HvAg=\")","v":{"$error":"#REF!"}},{"$f":"AND(#REF!,\"OmnkVl/HvAk=\")","v":{"$error":"#REF!"}},{"$f":"AND(#REF!,\"OmnkVl/HvAo=\")","v":{"$error":"#REF!"}},{"$f":"AND(#REF!,\"OmnkVl/HvAs=\")","v":{"$error":"#REF!"}},{"$f":"AND(#REF!,\"OmnkVl/HvAw=\")","v":{"$error":"#REF!"}},{"$f":"AND(#REF!,\"OmnkVl/HvA0=\")","v":{"$error":"#REF!"}},{"$f":"AND(#REF!,\"OmnkVl/HvA4=\")","v":{"$error":"#REF!"}},{"$f":"AND(#REF!,\"OmnkVl/HvA8=\")","v":{"$error":"#REF!"}},{"$f":"AND(#REF!,\"OmnkVl/HvBA=\")","v":{"$error":"#REF!"}},{"$f":"AND(#REF!,\"OmnkVl/HvBE=\")","v":{"$error":"#REF!"}},{"$f":"AND(#REF!,\"OmnkVl/HvBI=\")","v":{"$error":"#REF!"}},{"$f":"AND(#REF!,\"OmnkVl/HvBM=\")","v":{"$error":"#REF!"}},{"$f":"AND(#REF!,\"OmnkVl/HvBQ=\")","v":{"$error":"#REF!"}},{"$f":"AND(#REF!,\"OmnkVl/HvBU=\")","v":{"$error":"#REF!"}},{"$f":"AND(#REF!,\"OmnkVl/HvBY=\")","v":{"$error":"#REF!"}},{"$f":"AND(#REF!,\"OmnkVl/HvBc=\")","v":{"$error":"#REF!"}},{"$f":"AND(#REF!,\"OmnkVl/HvBg=\")","v":{"$error":"#REF!"}},{"$f":"AND(#REF!,\"OmnkVl/HvBk=\")","v":{"$error":"#REF!"}},{"$f":"AND(#REF!,\"OmnkVl/HvBo=\")","v":{"$error":"#REF!"}},{"$f":"AND(#REF!,\"OmnkVl/HvBs=\")","v":{"$error":"#REF!"}},{"$f":"AND(#REF!,\"OmnkVl/HvBw=\")","v":{"$error":"#REF!"}},{"$f":"AND(#REF!,\"OmnkVl/HvB0=\")","v":{"$error":"#REF!"}},{"$f":"AND(#REF!,\"OmnkVl/HvB4=\")","v":{"$error":"#REF!"}},{"$f":"AND(#REF!,\"OmnkVl/HvB8=\")","v":{"$error":"#REF!"}},{"$f":"AND(#REF!,\"OmnkVl/HvCA=\")","v":{"$error":"#REF!"}},{"$f":"AND(#REF!,\"OmnkVl/HvCE=\")","v":{"$error":"#REF!"}},{"$f":"AND(#REF!,\"OmnkVl/HvCI=\")","v":{"$error":"#REF!"}},{"$f":"AND(#REF!,\"OmnkVl/HvCM=\")","v":{"$error":"#REF!"}},{"$f":"AND(#REF!,\"OmnkVl/HvCQ=\")","v":{"$error":"#REF!"}},{"$f":"AND(#REF!,\"OmnkVl/HvCU=\")","v":{"$error":"#REF!"}},{"$f":"AND(#REF!,\"OmnkVl/HvCY=\")","v":{"$error":"#REF!"}},{"$f":"AND(#REF!,\"OmnkVl/HvCc=\")","v":{"$error":"#REF!"}},{"$f":"AND(#REF!,\"OmnkVl/HvCg=\")","v":{"$error":"#REF!"}},{"$f":"AND(#REF!,\"OmnkVl/HvCk=\")","v":{"$error":"#REF!"}},{"$f":"AND(#REF!,\"OmnkVl/HvCo=\")","v":{"$error":"#REF!"}},{"$f":"AND(#REF!,\"OmnkVl/HvCs=\")","v":{"$error":"#REF!"}},{"$f":"AND(#REF!,\"OmnkVl/HvCw=\")","v":{"$error":"#REF!"}},{"$f":"AND(#REF!,\"OmnkVl/HvC0=\")","v":{"$error":"#REF!"}},{"$f":"AND(#REF!,\"OmnkVl/HvC4=\")","v":{"$error":"#REF!"}},{"$f":"AND(#REF!,\"OmnkVl/HvC8=\")","v":{"$error":"#REF!"}},{"$f":"AND(#REF!,\"OmnkVl/HvDA=\")","v":{"$error":"#REF!"}},{"$f":"AND(#REF!,\"OmnkVl/HvDE=\")","v":{"$error":"#REF!"}},{"$f":"AND(#REF!,\"OmnkVl/HvDI=\")","v":{"$error":"#REF!"}},{"$f":"AND(#REF!,\"OmnkVl/HvDM=\")","v":{"$error":"#REF!"}},{"$f":"AND(#REF!,\"OmnkVl/HvDQ=\")","v":{"$error":"#REF!"}},{"$f":"AND(#REF!,\"OmnkVl/HvDU=\")","v":{"$error":"#REF!"}},{"$f":"AND(#REF!,\"OmnkVl/HvDY=\")","v":{"$error":"#REF!"}},{"$f":"AND(#REF!,\"OmnkVl/HvDc=\")","v":{"$error":"#REF!"}},{"$f":"AND(#REF!,\"OmnkVl/HvDg=\")","v":{"$error":"#REF!"}},{"$f":"AND(#REF!,\"OmnkVl/HvDk=\")","v":{"$error":"#REF!"}},{"$f":"AND(#REF!,\"OmnkVl/HvDo=\")","v":{"$error":"#REF!"}},{"$f":"AND(#REF!,\"OmnkVl/HvDs=\")","v":{"$error":"#REF!"}},{"$f":"AND(#REF!,\"OmnkVl/HvDw=\")","v":{"$error":"#REF!"}},{"$f":"AND(#REF!,\"OmnkVl/HvD0=\")","v":{"$error":"#REF!"}},{"$f":"AND(#REF!,\"OmnkVl/HvD4=\")","v":{"$error":"#REF!"}},{"$f":"AND(#REF!,\"OmnkVl/HvD8=\")","v":{"$error":"#REF!"}},{"$f":"AND(#REF!,\"OmnkVl/HvEA=\")","v":{"$error":"#REF!"}},{"$f":"AND(#REF!,\"OmnkVl/HvEE=\")","v":{"$error":"#REF!"}},{"$f":"AND(#REF!,\"OmnkVl/HvEI=\")","v":{"$error":"#REF!"}},{"$f":"AND(#REF!,\"OmnkVl/HvEM=\")","v":{"$error":"#REF!"}},{"$f":"AND(#REF!,\"OmnkVl/HvEQ=\")","v":{"$error":"#REF!"}},{"$f":"AND(#REF!,\"OmnkVl/HvEU=\")","v":{"$error":"#REF!"}},{"$f":"AND(#REF!,\"OmnkVl/HvEY=\")","v":{"$error":"#REF!"}},{"$f":"AND(#REF!,\"OmnkVl/HvEc=\")","v":{"$error":"#REF!"}},{"$f":"AND(#REF!,\"OmnkVl/HvEg=\")","v":{"$error":"#REF!"}},{"$f":"AND(#REF!,\"OmnkVl/HvEk=\")","v":{"$error":"#REF!"}},{"$f":"AND(#REF!,\"OmnkVl/HvEo=\")","v":{"$error":"#REF!"}},{"$f":"AND(#REF!,\"OmnkVl/HvEs=\")","v":{"$error":"#REF!"}},{"$f":"AND(#REF!,\"OmnkVl/HvEw=\")","v":{"$error":"#REF!"}},{"$f":"AND(#REF!,\"OmnkVl/HvE0=\")","v":{"$error":"#REF!"}},{"$f":"AND(#REF!,\"OmnkVl/HvE4=\")","v":{"$error":"#REF!"}},{"$f":"AND(#REF!,\"OmnkVl/HvE8=\")","v":{"$error":"#REF!"}},{"$f":"AND(#REF!,\"OmnkVl/HvFA=\")","v":{"$error":"#REF!"}},{"$f":"AND(#REF!,\"OmnkVl/HvFE=\")","v":{"$error":"#REF!"}},{"$f":"AND(#REF!,\"OmnkVl/HvFI=\")","v":{"$error":"#REF!"}},{"$f":"AND(#REF!,\"OmnkVl/HvFM=\")","v":{"$error":"#REF!"}},{"$f":"AND(#REF!,\"OmnkVl/HvFQ=\")","v":{"$error":"#REF!"}},{"$f":"AND(#REF!,\"OmnkVl/HvFU=\")","v":{"$error":"#REF!"}},{"$f":"AND(#REF!,\"OmnkVl/HvFY=\")","v":{"$error":"#REF!"}},{"$f":"AND(#REF!,\"OmnkVl/HvFc=\")","v":{"$error":"#REF!"}},{"$f":"AND(#REF!,\"OmnkVl/HvFg=\")","v":{"$error":"#REF!"}},{"$f":"AND(#REF!,\"OmnkVl/HvFk=\")","v":{"$error":"#REF!"}},{"$f":"AND(#REF!,\"OmnkVl/HvFo=\")","v":{"$error":"#REF!"}},{"$f":"AND(#REF!,\"OmnkVl/HvFs=\")","v":{"$error":"#REF!"}},{"$f":"AND(#REF!,\"OmnkVl/HvFw=\")","v":{"$error":"#REF!"}},{"$f":"AND(#REF!,\"OmnkVl/HvF0=\")","v":{"$error":"#REF!"}},{"$f":"AND(#REF!,\"OmnkVl/HvF4=\")","v":{"$error":"#REF!"}},{"$f":"AND(#REF!,\"OmnkVl/HvF8=\")","v":{"$error":"#REF!"}},{"$f":"AND(#REF!,\"OmnkVl/HvGA=\")","v":{"$error":"#REF!"}},{"$f":"AND(#REF!,\"OmnkVl/HvGE=\")","v":{"$error":"#REF!"}},{"$f":"AND(#REF!,\"OmnkVl/HvGI=\")","v":{"$error":"#REF!"}},{"$f":"AND(#REF!,\"OmnkVl/HvGM=\")","v":{"$error":"#REF!"}},{"$f":"AND(#REF!,\"OmnkVl/HvGQ=\")","v":{"$error":"#REF!"}},{"$f":"AND(#REF!,\"OmnkVl/HvGU=\")","v":{"$error":"#REF!"}},{"$f":"AND(#REF!,\"OmnkVl/HvGY=\")","v":{"$error":"#REF!"}},{"$f":"AND(#REF!,\"OmnkVl/HvGc=\")","v":{"$error":"#REF!"}},{"$f":"AND(#REF!,\"OmnkVl/HvGg=\")","v":{"$error":"#REF!"}},{"$f":"AND(#REF!,\"OmnkVl/HvGk=\")","v":{"$error":"#REF!"}},{"$f":"AND(#REF!,\"OmnkVl/HvGo=\")","v":{"$error":"#REF!"}},{"$f":"AND(#REF!,\"OmnkVl/HvGs=\")","v":{"$error":"#REF!"}},{"$f":"AND(#REF!,\"OmnkVl/HvGw=\")","v":{"$error":"#REF!"}},{"$f":"AND(#REF!,\"OmnkVl/HvG0=\")","v":{"$error":"#REF!"}},{"$f":"AND(#REF!,\"OmnkVl/HvG4=\")","v":{"$error":"#REF!"}},{"$f":"AND(#REF!,\"OmnkVl/HvG8=\")","v":{"$error":"#REF!"}},{"$f":"AND(#REF!,\"OmnkVl/HvHA=\")","v":{"$error":"#REF!"}},{"$f":"AND(#REF!,\"OmnkVl/HvHE=\")","v":{"$error":"#REF!"}},{"$f":"AND(#REF!,\"OmnkVl/HvHI=\")","v":{"$error":"#REF!"}},{"$f":"AND(#REF!,\"OmnkVl/HvHM=\")","v":{"$error":"#REF!"}},{"$f":"AND(#REF!,\"OmnkVl/HvHQ=\")","v":{"$error":"#REF!"}},{"$f":"AND(#REF!,\"OmnkVl/HvHU=\")","v":{"$error":"#REF!"}},{"$f":"AND(#REF!,\"OmnkVl/HvHY=\")","v":{"$error":"#REF!"}},{"$f":"AND(#REF!,\"OmnkVl/HvHc=\")","v":{"$error":"#REF!"}},{"$f":"AND(#REF!,\"OmnkVl/HvHg=\")","v":{"$error":"#REF!"}},{"$f":"AND(#REF!,\"OmnkVl/HvHk=\")","v":{"$error":"#REF!"}},{"$f":"AND(#REF!,\"OmnkVl/HvHo=\")","v":{"$error":"#REF!"}},{"$f":"AND(#REF!,\"OmnkVl/HvHs=\")","v":{"$error":"#REF!"}},{"$f":"AND(#REF!,\"OmnkVl/HvHw=\")","v":{"$error":"#REF!"}},{"$f":"AND(#REF!,\"OmnkVl/HvH0=\")","v":{"$error":"#REF!"}},{"$f":"AND(#REF!,\"OmnkVl/HvH4=\")","v":{"$error":"#REF!"}},{"$f":"AND(#REF!,\"OmnkVl/HvH8=\")","v":{"$error":"#REF!"}},{"$f":"AND(#REF!,\"OmnkVl/HvIA=\")","v":{"$error":"#REF!"}},{"$f":"AND(#REF!,\"OmnkVl/HvIE=\")","v":{"$error":"#REF!"}},{"$f":"AND(#REF!,\"OmnkVl/HvII=\")","v":{"$error":"#REF!"}},{"$f":"AND(#REF!,\"OmnkVl/HvIM=\")","v":{"$error":"#REF!"}},{"$f":"AND(#REF!,\"OmnkVl/HvIQ=\")","v":{"$error":"#REF!"}},{"$f":"AND(#REF!,\"OmnkVl/HvIU=\")","v":{"$error":"#REF!"}},{"$f":"AND(#REF!,\"OmnkVl/HvIY=\")","v":{"$error":"#REF!"}},{"$f":"AND(#REF!,\"OmnkVl/HvIc=\")","v":{"$error":"#REF!"}},{"$f":"AND(#REF!,\"OmnkVl/HvIg=\")","v":{"$error":"#REF!"}},{"$f":"AND(#REF!,\"OmnkVl/HvIk=\")","v":{"$error":"#REF!"}},{"$f":"AND(#REF!,\"OmnkVl/HvIo=\")","v":{"$error":"#REF!"}},{"$f":"AND(#REF!,\"OmnkVl/HvIs=\")","v":{"$error":"#REF!"}},{"$f":"AND(#REF!,\"OmnkVl/HvIw=\")","v":{"$error":"#REF!"}},{"$f":"AND(#REF!,\"OmnkVl/HvI0=\")","v":{"$error":"#REF!"}},{"$f":"AND(#REF!,\"OmnkVl/HvI4=\")","v":{"$error":"#REF!"}},{"$f":"AND(#REF!,\"OmnkVl/HvI8=\")","v":{"$error":"#REF!"}},{"$f":"AND(#REF!,\"OmnkVl/HvJA=\")","v":{"$error":"#REF!"}},{"$f":"AND(#REF!,\"OmnkVl/HvJE=\")","v":{"$error":"#REF!"}},{"$f":"AND(#REF!,\"OmnkVl/HvJI=\")","v":{"$error":"#REF!"}},{"$f":"AND(#REF!,\"OmnkVl/HvJM=\")","v":{"$error":"#REF!"}},{"$f":"AND(#REF!,\"OmnkVl/HvJQ=\")","v":{"$error":"#REF!"}},{"$f":"AND(#REF!,\"OmnkVl/HvJU=\")","v":{"$error":"#REF!"}},{"$f":"AND(#REF!,\"OmnkVl/HvJY=\")","v":{"$error":"#REF!"}},{"$f":"AND(#REF!,\"OmnkVl/HvJc=\")","v":{"$error":"#REF!"}},{"$f":"AND(#REF!,\"OmnkVl/HvJg=\")","v":{"$error":"#REF!"}},{"$f":"AND(#REF!,\"OmnkVl/HvJk=\")","v":{"$error":"#REF!"}},{"$f":"AND(#REF!,\"OmnkVl/HvJo=\")","v":{"$error":"#REF!"}},{"$f":"AND(#REF!,\"OmnkVl/HvJs=\")","v":{"$error":"#REF!"}},{"$f":"AND(#REF!,\"OmnkVl/HvJw=\")","v":{"$error":"#REF!"}},{"$f":"AND(#REF!,\"OmnkVl/HvJ0=\")","v":{"$error":"#REF!"}},{"$f":"AND(#REF!,\"OmnkVl/HvJ4=\")","v":{"$error":"#REF!"}},{"$f":"AND(#REF!,\"OmnkVl/HvJ8=\")","v":{"$error":"#REF!"}},{"$f":"AND(#REF!,\"OmnkVl/HvKA=\")","v":{"$error":"#REF!"}},{"$f":"AND(#REF!,\"OmnkVl/HvKE=\")","v":{"$error":"#REF!"}},{"$f":"AND(#REF!,\"OmnkVl/HvKI=\")","v":{"$error":"#REF!"}},{"$f":"AND(#REF!,\"OmnkVl/HvKM=\")","v":{"$error":"#REF!"}},{"$f":"AND(#REF!,\"OmnkVl/HvKQ=\")","v":{"$error":"#REF!"}},{"$f":"AND(#REF!,\"OmnkVl/HvKU=\")","v":{"$error":"#REF!"}},{"$f":"IF(#REF!,\"OmnkVl/HvKY=\",0)","v":{"$error":"#REF!"}},{"$f":"AND(#REF!,\"OmnkVl/HvKc=\")","v":{"$error":"#REF!"}},{"$f":"AND(#REF!,\"OmnkVl/HvKg=\")","v":{"$error":"#REF!"}},{"$f":"AND(#REF!,\"OmnkVl/HvKk=\")","v":{"$error":"#REF!"}},{"$f":"AND(#REF!,\"OmnkVl/HvKo=\")","v":{"$error":"#REF!"}},{"$f":"AND(#REF!,\"OmnkVl/HvKs=\")","v":{"$error":"#REF!"}},{"$f":"AND(#REF!,\"OmnkVl/HvKw=\")","v":{"$error":"#REF!"}},{"$f":"AND(#REF!,\"OmnkVl/HvK0=\")","v":{"$error":"#REF!"}},{"$f":"AND(#REF!,\"OmnkVl/HvK4=\")","v":{"$error":"#REF!"}},{"$f":"AND(#REF!,\"OmnkVl/HvK8=\")","v":{"$error":"#REF!"}},{"$f":"AND(#REF!,\"OmnkVl/HvLA=\")","v":{"$error":"#REF!"}},{"$f":"AND(#REF!,\"OmnkVl/HvLE=\")","v":{"$error":"#REF!"}},{"$f":"AND(#REF!,\"OmnkVl/HvLI=\")","v":{"$error":"#REF!"}},{"$f":"AND(#REF!,\"OmnkVl/HvLM=\")","v":{"$error":"#REF!"}},{"$f":"AND(#REF!,\"OmnkVl/HvLQ=\")","v":{"$error":"#REF!"}},{"$f":"AND(#REF!,\"OmnkVl/HvLU=\")","v":{"$error":"#REF!"}},{"$f":"AND(#REF!,\"OmnkVl/HvLY=\")","v":{"$error":"#REF!"}},{"$f":"AND(#REF!,\"OmnkVl/HvLc=\")","v":{"$error":"#REF!"}},{"$f":"AND(#REF!,\"OmnkVl/HvLg=\")","v":{"$error":"#REF!"}},{"$f":"AND(#REF!,\"OmnkVl/HvLk=\")","v":{"$error":"#REF!"}},{"$f":"AND(#REF!,\"OmnkVl/HvLo=\")","v":{"$error":"#REF!"}},{"$f":"AND(#REF!,\"OmnkVl/HvLs=\")","v":{"$error":"#REF!"}},{"$f":"AND(#REF!,\"OmnkVl/HvLw=\")","v":{"$error":"#REF!"}},{"$f":"AND(#REF!,\"OmnkVl/HvL0=\")","v":{"$error":"#REF!"}},{"$f":"AND(#REF!,\"OmnkVl/HvL4=\")","v":{"$error":"#REF!"}},{"$f":"AND(#REF!,\"OmnkVl/HvL8=\")","v":{"$error":"#REF!"}},{"$f":"AND(#REF!,\"OmnkVl/HvMA=\")","v":{"$error":"#REF!"}},{"$f":"AND(#REF!,\"OmnkVl/HvME=\")","v":{"$error":"#REF!"}},{"$f":"AND(#REF!,\"OmnkVl/HvMI=\")","v":{"$error":"#REF!"}},{"$f":"AND(#REF!,\"OmnkVl/HvMM=\")","v":{"$error":"#REF!"}},{"$f":"AND(#REF!,\"OmnkVl/HvMQ=\")","v":{"$error":"#REF!"}},{"$f":"AND(#REF!,\"OmnkVl/HvMU=\")","v":{"$error":"#REF!"}},{"$f":"AND(#REF!,\"OmnkVl/HvMY=\")","v":{"$error":"#REF!"}},{"$f":"AND(#REF!,\"OmnkVl/HvMc=\")","v":{"$error":"#REF!"}},{"$f":"AND(#REF!,\"OmnkVl/HvMg=\")","v":{"$error":"#REF!"}},{"$f":"AND(#REF!,\"OmnkVl/HvMk=\")","v":{"$error":"#REF!"}},{"$f":"AND(#REF!,\"OmnkVl/HvMo=\")","v":{"$error":"#REF!"}},{"$f":"AND(#REF!,\"OmnkVl/HvMs=\")","v":{"$error":"#REF!"}},{"$f":"AND(#REF!,\"OmnkVl/HvMw=\")","v":{"$error":"#REF!"}},{"$f":"AND(#REF!,\"OmnkVl/HvM0=\")","v":{"$error":"#REF!"}},{"$f":"AND(#REF!,\"OmnkVl/HvM4=\")","v":{"$error":"#REF!"}},{"$f":"AND(#REF!,\"OmnkVl/HvM8=\")","v":{"$error":"#REF!"}},{"$f":"AND(#REF!,\"OmnkVl/HvNA=\")","v":{"$error":"#REF!"}},{"$f":"AND(#REF!,\"OmnkVl/HvNE=\")","v":{"$error":"#REF!"}},{"$f":"AND(#REF!,\"OmnkVl/HvNI=\")","v":{"$error":"#REF!"}},{"$f":"AND(#REF!,\"OmnkVl/HvNM=\")","v":{"$error":"#REF!"}},{"$f":"AND(#REF!,\"OmnkVl/HvNQ=\")","v":{"$error":"#REF!"}},{"$f":"AND(#REF!,\"OmnkVl/HvNU=\")","v":{"$error":"#REF!"}},{"$f":"AND(#REF!,\"OmnkVl/HvNY=\")","v":{"$error":"#REF!"}},{"$f":"AND(#REF!,\"OmnkVl/HvNc=\")","v":{"$error":"#REF!"}},{"$f":"AND(#REF!,\"OmnkVl/HvNg=\")","v":{"$error":"#REF!"}},{"$f":"AND(#REF!,\"OmnkVl/HvNk=\")","v":{"$error":"#REF!"}},{"$f":"AND(#REF!,\"OmnkVl/HvNo=\")","v":{"$error":"#REF!"}},{"$f":"AND(#REF!,\"OmnkVl/HvNs=\")","v":{"$error":"#REF!"}},{"$f":"AND(#REF!,\"OmnkVl/HvNw=\")","v":{"$error":"#REF!"}},{"$f":"AND(#REF!,\"OmnkVl/HvN0=\")","v":{"$error":"#REF!"}},{"$f":"AND(#REF!,\"OmnkVl/HvN4=\")","v":{"$error":"#REF!"}},{"$f":"AND(#REF!,\"OmnkVl/HvN8=\")","v":{"$error":"#REF!"}},{"$f":"AND(#REF!,\"OmnkVl/HvOA=\")","v":{"$error":"#REF!"}},{"$f":"AND(#REF!,\"OmnkVl/HvOE=\")","v":{"$error":"#REF!"}},{"$f":"AND(#REF!,\"OmnkVl/HvOI=\")","v":{"$error":"#REF!"}},{"$f":"AND(#REF!,\"OmnkVl/HvOM=\")","v":{"$error":"#REF!"}},{"$f":"AND(#REF!,\"OmnkVl/HvOQ=\")","v":{"$error":"#REF!"}},{"$f":"AND(#REF!,\"OmnkVl/HvOU=\")","v":{"$error":"#REF!"}},{"$f":"AND(#REF!,\"OmnkVl/HvOY=\")","v":{"$error":"#REF!"}},{"$f":"AND(#REF!,\"OmnkVl/HvOc=\")","v":{"$error":"#REF!"}},{"$f":"AND(#REF!,\"OmnkVl/HvOg=\")","v":{"$error":"#REF!"}},{"$f":"AND(#REF!,\"OmnkVl/HvOk=\")","v":{"$error":"#REF!"}},{"$f":"AND(#REF!,\"OmnkVl/HvOo=\")","v":{"$error":"#REF!"}},{"$f":"AND(#REF!,\"OmnkVl/HvOs=\")","v":{"$error":"#REF!"}},{"$f":"AND(#REF!,\"OmnkVl/HvOw=\")","v":{"$error":"#REF!"}},{"$f":"AND(#REF!,\"OmnkVl/HvO0=\")","v":{"$error":"#REF!"}},{"$f":"AND(#REF!,\"OmnkVl/HvO4=\")","v":{"$error":"#REF!"}},{"$f":"AND(#REF!,\"OmnkVl/HvO8=\")","v":{"$error":"#REF!"}},{"$f":"AND(#REF!,\"OmnkVl/HvPA=\")","v":{"$error":"#REF!"}},{"$f":"AND(#REF!,\"OmnkVl/HvPE=\")","v":{"$error":"#REF!"}},{"$f":"AND(#REF!,\"OmnkVl/HvPI=\")","v":{"$error":"#REF!"}},{"$f":"AND(#REF!,\"OmnkVl/HvPM=\")","v":{"$error":"#REF!"}},{"$f":"AND(#REF!,\"OmnkVl/HvPQ=\")","v":{"$error":"#REF!"}},{"$f":"AND(#REF!,\"OmnkVl/HvPU=\")","v":{"$error":"#REF!"}},{"$f":"AND(#REF!,\"OmnkVl/HvPY=\")","v":{"$error":"#REF!"}},{"$f":"AND(#REF!,\"OmnkVl/HvPc=\")","v":{"$error":"#REF!"}},{"$f":"AND(#REF!,\"OmnkVl/HvPg=\")","v":{"$error":"#REF!"}},{"$f":"AND(#REF!,\"OmnkVl/HvPk=\")","v":{"$error":"#REF!"}},{"$f":"AND(#REF!,\"OmnkVl/HvPo=\")","v":{"$error":"#REF!"}},{"$f":"AND(#REF!,\"OmnkVl/HvPs=\")","v":{"$error":"#REF!"}},{"$f":"AND(#REF!,\"OmnkVl/HvPw=\")","v":{"$error":"#REF!"}},{"$f":"AND(#REF!,\"OmnkVl/HvP0=\")","v":{"$error":"#REF!"}},{"$f":"AND(#REF!,\"OmnkVl/HvP4=\")","v":{"$error":"#REF!"}},{"$f":"AND(#REF!,\"OmnkVl/HvP8=\")","v":{"$error":"#REF!"}}]
[{"$f":"AND(#REF!,\"WgovQHJVSgA=\")","v":{"$error":"#REF!"}},{"$f":"AND(#REF!,\"WgovQHJVSgE=\")","v":{"$error":"#REF!"}},{"$f":"AND(#REF!,\"WgovQHJVSgI=\")","v":{"$error":"#REF!"}},{"$f":"AND(#REF!,\"WgovQHJVSgM=\")","v":{"$error":"#REF!"}},{"$f":"AND(#REF!,\"WgovQHJVSgQ=\")","v":{"$error":"#REF!"}},{"$f":"AND(#REF!,\"WgovQHJVSgU=\")","v":{"$error":"#REF!"}},{"$f":"AND(#REF!,\"WgovQHJVSgY=\")","v":{"$error":"#REF!"}},{"$f":"AND(#REF!,\"WgovQHJVSgc=\")","v":{"$error":"#REF!"}},{"$f":"AND(#REF!,\"WgovQHJVSgg=\")","v":{"$error":"#REF!"}},{"$f":"AND(#REF!,\"WgovQHJVSgk=\")","v":{"$error":"#REF!"}},{"$f":"AND(#REF!,\"WgovQHJVSgo=\")","v":{"$error":"#REF!"}},{"$f":"AND(#REF!,\"WgovQHJVSgs=\")","v":{"$error":"#REF!"}},{"$f":"AND(#REF!,\"WgovQHJVSgw=\")","v":{"$error":"#REF!"}},{"$f":"AND(#REF!,\"WgovQHJVSg0=\")","v":{"$error":"#REF!"}},{"$f":"AND(#REF!,\"WgovQHJVSg4=\")","v":{"$error":"#REF!"}},{"$f":"AND(#REF!,\"WgovQHJVSg8=\")","v":{"$error":"#REF!"}},{"$f":"AND(#REF!,\"WgovQHJVShA=\")","v":{"$error":"#REF!"}},{"$f":"AND(#REF!,\"WgovQHJVShE=\")","v":{"$error":"#REF!"}},{"$f":"AND(#REF!,\"WgovQHJVShI=\")","v":{"$error":"#REF!"}},{"$f":"AND(#REF!,\"WgovQHJVShM=\")","v":{"$error":"#REF!"}},{"$f":"AND(#REF!,\"WgovQHJVShQ=\")","v":{"$error":"#REF!"}},{"$f":"AND(#REF!,\"WgovQHJVShU=\")","v":{"$error":"#REF!"}},{"$f":"AND(#REF!,\"WgovQHJVShY=\")","v":{"$error":"#REF!"}},{"$f":"AND(#REF!,\"WgovQHJVShc=\")","v":{"$error":"#REF!"}},{"$f":"AND(#REF!,\"WgovQHJVShg=\")","v":{"$error":"#REF!"}},{"$f":"AND(#REF!,\"WgovQHJVShk=\")","v":{"$error":"#REF!"}},{"$f":"AND(#REF!,\"WgovQHJVSho=\")","v":{"$error":"#REF!"}},{"$f":"AND(#REF!,\"WgovQHJVShs=\")","v":{"$error":"#REF!"}},{"$f":"AND(#REF!,\"WgovQHJVShw=\")","v":{"$error":"#REF!"}},{"$f":"AND(#REF!,\"WgovQHJVSh0=\")","v":{"$error":"#REF!"}},{"$f":"AND(#REF!,\"WgovQHJVSh4=\")","v":{"$error":"#REF!"}},{"$f":"AND(#REF!,\"WgovQHJVSh8=\")","v":{"$error":"#REF!"}},{"$f":"AND(#REF!,\"WgovQHJVSiA=\")","v":{"$error":"#REF!"}},{"$f":"AND(#REF!,\"WgovQHJVSiE=\")","v":{"$error":"#REF!"}},{"$f":"AND(#REF!,\"WgovQHJVSiI=\")","v":{"$error":"#REF!"}},{"$f":"AND(#REF!,\"WgovQHJVSiM=\")","v":{"$error":"#REF!"}},{"$f":"AND(#REF!,\"WgovQHJVSiQ=\")","v":{"$error":"#REF!"}},{"$f":"AND(#REF!,\"WgovQHJVSiU=\")","v":{"$error":"#REF!"}},{"$f":"AND(#REF!,\"WgovQHJVSiY=\")","v":{"$error":"#REF!"}},{"$f":"AND(#REF!,\"WgovQHJVSic=\")","v":{"$error":"#REF!"}},{"$f":"AND(#REF!,\"WgovQHJVSig=\")","v":{"$error":"#REF!"}},{"$f":"AND(#REF!,\"WgovQHJVSik=\")","v":{"$error":"#REF!"}},{"$f":"AND(#REF!,\"WgovQHJVSio=\")","v":{"$error":"#REF!"}},{"$f":"AND(#REF!,\"WgovQHJVSis=\")","v":{"$error":"#REF!"}},{"$f":"AND(#REF!,\"WgovQHJVSiw=\")","v":{"$error":"#REF!"}},{"$f":"AND(#REF!,\"WgovQHJVSi0=\")","v":{"$error":"#REF!"}},{"$f":"AND(#REF!,\"WgovQHJVSi4=\")","v":{"$error":"#REF!"}},{"$f":"AND(#REF!,\"WgovQHJVSi8=\")","v":{"$error":"#REF!"}},{"$f":"AND(#REF!,\"WgovQHJVSjA=\")","v":{"$error":"#REF!"}},{"$f":"AND(#REF!,\"WgovQHJVSjE=\")","v":{"$error":"#REF!"}},{"$f":"AND(#REF!,\"WgovQHJVSjI=\")","v":{"$error":"#REF!"}},{"$f":"AND(#REF!,\"WgovQHJVSjM=\")","v":{"$error":"#REF!"}},{"$f":"AND(#REF!,\"WgovQHJVSjQ=\")","v":{"$error":"#REF!"}},{"$f":"AND(#REF!,\"WgovQHJVSjU=\")","v":{"$error":"#REF!"}},{"$f":"AND(#REF!,\"WgovQHJVSjY=\")","v":{"$error":"#REF!"}},{"$f":"AND(#REF!,\"WgovQHJVSjc=\")","v":{"$error":"#REF!"}},{"$f":"AND(#REF!,\"WgovQHJVSjg=\")","v":{"$error":"#REF!"}},{"$f":"AND(#REF!,\"WgovQHJVSjk=\")","v":{"$error":"#REF!"}},{"$f":"AND(#REF!,\"WgovQHJVSjo=\")","v":{"$error":"#REF!"}},{"$f":"AND(#REF!,\"WgovQHJVSjs=\")","v":{"$error":"#REF!"}},{"$f":"AND(#REF!,\"WgovQHJVSjw=\")","v":{"$error":"#REF!"}},{"$f":"AND(#REF!,\"WgovQHJVSj0=\")","v":{"$error":"#REF!"}},{"$f":"AND(#REF!,\"WgovQHJVSj4=\")","v":{"$error":"#REF!"}},{"$f":"AND(#REF!,\"WgovQHJVSj8=\")","v":{"$error":"#REF!"}},{"$f":"AND(#REF!,\"WgovQHJVSkA=\")","v":{"$error":"#REF!"}},{"$f":"AND(#REF!,\"WgovQHJVSkE=\")","v":{"$error":"#REF!"}},{"$f":"AND(#REF!,\"WgovQHJVSkI=\")","v":{"$error":"#REF!"}},{"$f":"AND(#REF!,\"WgovQHJVSkM=\")","v":{"$error":"#REF!"}},{"$f":"AND(#REF!,\"WgovQHJVSkQ=\")","v":{"$error":"#REF!"}},{"$f":"AND(#REF!,\"WgovQHJVSkU=\")","v":{"$error":"#REF!"}},{"$f":"AND(#REF!,\"WgovQHJVSkY=\")","v":{"$error":"#REF!"}},{"$f":"AND(#REF!,\"WgovQHJVSkc=\")","v":{"$error":"#REF!"}},{"$f":"AND(#REF!,\"WgovQHJVSkg=\")","v":{"$error":"#REF!"}},{"$f":"AND(#REF!,\"WgovQHJVSkk=\")","v":{"$error":"#REF!"}},{"$f":"AND(#REF!,\"WgovQHJVSko=\")","v":{"$error":"#REF!"}},{"$f":"AND(#REF!,\"WgovQHJVSks=\")","v":{"$error":"#REF!"}},{"$f":"AND(#REF!,\"WgovQHJVSkw=\")","v":{"$error":"#REF!"}},{"$f":"AND(#REF!,\"WgovQHJVSk0=\")","v":{"$error":"#REF!"}},{"$f":"AND(#REF!,\"WgovQHJVSk4=\")","v":{"$error":"#REF!"}},{"$f":"AND(#REF!,\"WgovQHJVSk8=\")","v":{"$error":"#REF!"}},{"$f":"AND(#REF!,\"WgovQHJVSlA=\")","v":{"$error":"#REF!"}},{"$f":"AND(#REF!,\"WgovQHJVSlE=\")","v":{"$error":"#REF!"}},{"$f":"AND(#REF!,\"WgovQHJVSlI=\")","v":{"$error":"#REF!"}},{"$f":"AND(#REF!,\"WgovQHJVSlM=\")","v":{"$error":"#REF!"}},{"$f":"AND(#REF!,\"WgovQHJVSlQ=\")","v":{"$error":"#REF!"}},{"$f":"AND(#REF!,\"WgovQHJVSlU=\")","v":{"$error":"#REF!"}},{"$f":"AND(#REF!,\"WgovQHJVSlY=\")","v":{"$error":"#REF!"}},{"$f":"AND(#REF!,\"WgovQHJVSlc=\")","v":{"$error":"#REF!"}},{"$f":"AND(#REF!,\"WgovQHJVSlg=\")","v":{"$error":"#REF!"}},{"$f":"AND(#REF!,\"WgovQHJVSlk=\")","v":{"$error":"#REF!"}},{"$f":"AND(#REF!,\"WgovQHJVSlo=\")","v":{"$error":"#REF!"}},{"$f":"AND(#REF!,\"WgovQHJVSls=\")","v":{"$error":"#REF!"}},{"$f":"AND(#REF!,\"WgovQHJVSlw=\")","v":{"$error":"#REF!"}},{"$f":"AND(#REF!,\"WgovQHJVSl0=\")","v":{"$error":"#REF!"}},{"$f":"AND(#REF!,\"WgovQHJVSl4=\")","v":{"$error":"#REF!"}},{"$f":"AND(#REF!,\"WgovQHJVSl8=\")","v":{"$error":"#REF!"}},{"$f":"AND(#REF!,\"WgovQHJVSmA=\")","v":{"$error":"#REF!"}},{"$f":"AND(#REF!,\"WgovQHJVSmE=\")","v":{"$error":"#REF!"}},{"$f":"AND(#REF!,\"WgovQHJVSmI=\")","v":{"$error":"#REF!"}},{"$f":"AND(#REF!,\"WgovQHJVSmM=\")","v":{"$error":"#REF!"}},{"$f":"AND(#REF!,\"WgovQHJVSmQ=\")","v":{"$error":"#REF!"}},{"$f":"AND(#REF!,\"WgovQHJVSmU=\")","v":{"$error":"#REF!"}},{"$f":"AND(#REF!,\"WgovQHJVSmY=\")","v":{"$error":"#REF!"}},{"$f":"AND(#REF!,\"WgovQHJVSmc=\")","v":{"$error":"#REF!"}},{"$f":"AND(#REF!,\"WgovQHJVSmg=\")","v":{"$error":"#REF!"}},{"$f":"AND(#REF!,\"WgovQHJVSmk=\")","v":{"$error":"#REF!"}},{"$f":"AND(#REF!,\"WgovQHJVSmo=\")","v":{"$error":"#REF!"}},{"$f":"AND(#REF!,\"WgovQHJVSms=\")","v":{"$error":"#REF!"}},{"$f":"AND(#REF!,\"WgovQHJVSmw=\")","v":{"$error":"#REF!"}},{"$f":"IF(#REF!,\"WgovQHJVSm0=\",0)","v":{"$error":"#REF!"}},{"$f":"AND(#REF!,\"WgovQHJVSm4=\")","v":{"$error":"#REF!"}},{"$f":"AND(#REF!,\"WgovQHJVSm8=\")","v":{"$error":"#REF!"}},{"$f":"AND(#REF!,\"WgovQHJVSnA=\")","v":{"$error":"#REF!"}},{"$f":"AND(#REF!,\"WgovQHJVSnE=\")","v":{"$error":"#REF!"}},{"$f":"AND(#REF!,\"WgovQHJVSnI=\")","v":{"$error":"#REF!"}},{"$f":"AND(#REF!,\"WgovQHJVSnM=\")","v":{"$error":"#REF!"}},{"$f":"AND(#REF!,\"WgovQHJVSnQ=\")","v":{"$error":"#REF!"}},{"$f":"AND(#REF!,\"WgovQHJVSnU=\")","v":{"$error":"#REF!"}},{"$f":"AND(#REF!,\"WgovQHJVSnY=\")","v":{"$error":"#REF!"}},{"$f":"AND(#REF!,\"WgovQHJVSnc=\")","v":{"$error":"#REF!"}},{"$f":"AND(#REF!,\"WgovQHJVSng=\")","v":{"$error":"#REF!"}},{"$f":"AND(#REF!,\"WgovQHJVSnk=\")","v":{"$error":"#REF!"}},{"$f":"AND(#REF!,\"WgovQHJVSno=\")","v":{"$error":"#REF!"}},{"$f":"AND(#REF!,\"WgovQHJVSns=\")","v":{"$error":"#REF!"}},{"$f":"AND(#REF!,\"WgovQHJVSnw=\")","v":{"$error":"#REF!"}},{"$f":"AND(#REF!,\"WgovQHJVSn0=\")","v":{"$error":"#REF!"}},{"$f":"AND(#REF!,\"WgovQHJVSn4=\")","v":{"$error":"#REF!"}},{"$f":"AND(#REF!,\"WgovQHJVSn8=\")","v":{"$error":"#REF!"}},{"$f":"AND(#REF!,\"WgovQHJVSoA=\")","v":{"$error":"#REF!"}},{"$f":"AND(#REF!,\"WgovQHJVSoE=\")","v":{"$error":"#REF!"}},{"$f":"AND(#REF!,\"WgovQHJVSoI=\")","v":{"$error":"#REF!"}},{"$f":"AND(#REF!,\"WgovQHJVSoM=\")","v":{"$error":"#REF!"}},{"$f":"AND(#REF!,\"WgovQHJVSoQ=\")","v":{"$error":"#REF!"}},{"$f":"AND(#REF!,\"WgovQHJVSoU=\")","v":{"$error":"#REF!"}},{"$f":"AND(#REF!,\"WgovQHJVSoY=\")","v":{"$error":"#REF!"}},{"$f":"AND(#REF!,\"WgovQHJVSoc=\")","v":{"$error":"#REF!"}},{"$f":"AND(#REF!,\"WgovQHJVSog=\")","v":{"$error":"#REF!"}},{"$f":"AND(#REF!,\"WgovQHJVSok=\")","v":{"$error":"#REF!"}},{"$f":"AND(#REF!,\"WgovQHJVSoo=\")","v":{"$error":"#REF!"}},{"$f":"AND(#REF!,\"WgovQHJVSos=\")","v":{"$error":"#REF!"}},{"$f":"AND(#REF!,\"WgovQHJVSow=\")","v":{"$error":"#REF!"}},{"$f":"AND(#REF!,\"WgovQHJVSo0=\")","v":{"$error":"#REF!"}},{"$f":"AND(#REF!,\"WgovQHJVSo4=\")","v":{"$error":"#REF!"}},{"$f":"AND(#REF!,\"WgovQHJVSo8=\")","v":{"$error":"#REF!"}},{"$f":"AND(#REF!,\"WgovQHJVSpA=\")","v":{"$error":"#REF!"}},{"$f":"AND(#REF!,\"WgovQHJVSpE=\")","v":{"$error":"#REF!"}},{"$f":"AND(#REF!,\"WgovQHJVSpI=\")","v":{"$error":"#REF!"}},{"$f":"AND(#REF!,\"WgovQHJVSpM=\")","v":{"$error":"#REF!"}},{"$f":"AND(#REF!,\"WgovQHJVSpQ=\")","v":{"$error":"#REF!"}},{"$f":"AND(#REF!,\"WgovQHJVSpU=\")","v":{"$error":"#REF!"}},{"$f":"AND(#REF!,\"WgovQHJVSpY=\")","v":{"$error":"#REF!"}},{"$f":"AND(#REF!,\"WgovQHJVSpc=\")","v":{"$error":"#REF!"}},{"$f":"AND(#REF!,\"WgovQHJVSpg=\")","v":{"$error":"#REF!"}},{"$f":"AND(#REF!,\"WgovQHJVSpk=\")","v":{"$error":"#REF!"}},{"$f":"AND(#REF!,\"WgovQHJVSpo=\")","v":{"$error":"#REF!"}},{"$f":"AND(#REF!,\"WgovQHJVSps=\")","v":{"$error":"#REF!"}},{"$f":"AND(#REF!,\"WgovQHJVSpw=\")","v":{"$error":"#REF!"}},{"$f":"AND(#REF!,\"WgovQHJVSp0=\")","v":{"$error":"#REF!"}},{"$f":"AND(#REF!,\"WgovQHJVSp4=\")","v":{"$error":"#REF!"}},{"$f":"AND(#REF!,\"WgovQHJVSp8=\")","v":{"$error":"#REF!"}},{"$f":"AND(#REF!,\"WgovQHJVSqA=\")","v":{"$error":"#REF!"}},{"$f":"AND(#REF!,\"WgovQHJVSqE=\")","v":{"$error":"#REF!"}},{"$f":"AND(#REF!,\"WgovQHJVSqI=\")","v":{"$error":"#REF!"}},{"$f":"AND(#REF!,\"WgovQHJVSqM=\")","v":{"$error":"#REF!"}},{"$f":"AND(#REF!,\"WgovQHJVSqQ=\")","v":{"$error":"#REF!"}},{"$f":"AND(#REF!,\"WgovQHJVSqU=\")","v":{"$error":"#REF!"}},{"$f":"AND(#REF!,\"WgovQHJVSqY=\")","v":{"$error":"#REF!"}},{"$f":"AND(#REF!,\"WgovQHJVSqc=\")","v":{"$error":"#REF!"}},{"$f":"AND(#REF!,\"WgovQHJVSqg=\")","v":{"$error":"#REF!"}},{"$f":"AND(#REF!,\"WgovQHJVSqk=\")","v":{"$error":"#REF!"}},{"$f":"AND(#REF!,\"WgovQHJVSqo=\")","v":{"$error":"#REF!"}},{"$f":"AND(#REF!,\"WgovQHJVSqs=\")","v":{"$error":"#REF!"}},{"$f":"AND(#REF!,\"WgovQHJVSqw=\")","v":{"$error":"#REF!"}},{"$f":"AND(#REF!,\"WgovQHJVSq0=\")","v":{"$error":"#REF!"}},{"$f":"AND(#REF!,\"WgovQHJVSq4=\")","v":{"$error":"#REF!"}},{"$f":"AND(#REF!,\"WgovQHJVSq8=\")","v":{"$error":"#REF!"}},{"$f":"AND(#REF!,\"WgovQHJVSrA=\")","v":{"$error":"#REF!"}},{"$f":"AND(#REF!,\"WgovQHJVSrE=\")","v":{"$error":"#REF!"}},{"$f":"AND(#REF!,\"WgovQHJVSrI=\")","v":{"$error":"#REF!"}},{"$f":"AND(#REF!,\"WgovQHJVSrM=\")","v":{"$error":"#REF!"}},{"$f":"AND(#REF!,\"WgovQHJVSrQ=\")","v":{"$error":"#REF!"}},{"$f":"AND(#REF!,\"WgovQHJVSrU=\")","v":{"$error":"#REF!"}},{"$f":"AND(#REF!,\"WgovQHJVSrY=\")","v":{"$error":"#REF!"}},{"$f":"AND(#REF!,\"WgovQHJVSrc=\")","v":{"$error":"#REF!"}},{"$f":"AND(#REF!,\"WgovQHJVSrg=\")","v":{"$error":"#REF!"}},{"$f":"AND(#REF!,\"WgovQHJVSrk=\")","v":{"$error":"#REF!"}},{"$f":"AND(#REF!,\"WgovQHJVSro=\")","v":{"$error":"#REF!"}},{"$f":"AND(#REF!,\"WgovQHJVSrs=\")","v":{"$error":"#REF!"}},{"$f":"AND(#REF!,\"WgovQHJVSrw=\")","v":{"$error":"#REF!"}},{"$f":"AND(#REF!,\"WgovQHJVSr0=\")","v":{"$error":"#REF!"}},{"$f":"AND(#REF!,\"WgovQHJVSr4=\")","v":{"$error":"#REF!"}},{"$f":"AND(#REF!,\"WgovQHJVSr8=\")","v":{"$error":"#REF!"}},{"$f":"AND(#REF!,\"WgovQHJVSsA=\")","v":{"$error":"#REF!"}},{"$f":"AND(#REF!,\"WgovQHJVSsE=\")","v":{"$error":"#REF!"}},{"$f":"AND(#REF!,\"WgovQHJVSsI=\")","v":{"$error":"#REF!"}},{"$f":"AND(#REF!,\"WgovQHJVSsM=\")","v":{"$error":"#REF!"}},{"$f":"AND(#REF!,\"WgovQHJVSsQ=\")","v":{"$error":"#REF!"}},{"$f":"AND(#REF!,\"WgovQHJVSsU=\")","v":{"$error":"#REF!"}},{"$f":"AND(#REF!,\"WgovQHJVSsY=\")","v":{"$error":"#REF!"}},{"$f":"AND(#REF!,\"WgovQHJVSsc=\")","v":{"$error":"#REF!"}},{"$f":"AND(#REF!,\"WgovQHJVSsg=\")","v":{"$error":"#REF!"}},{"$f":"AND(#REF!,\"WgovQHJVSsk=\")","v":{"$error":"#REF!"}},{"$f":"AND(#REF!,\"WgovQHJVSso=\")","v":{"$error":"#REF!"}},{"$f":"AND(#REF!,\"WgovQHJVSss=\")","v":{"$error":"#REF!"}},{"$f":"AND(#REF!,\"WgovQHJVSsw=\")","v":{"$error":"#REF!"}},{"$f":"AND(#REF!,\"WgovQHJVSs0=\")","v":{"$error":"#REF!"}},{"$f":"AND(#REF!,\"WgovQHJVSs4=\")","v":{"$error":"#REF!"}},{"$f":"AND(#REF!,\"WgovQHJVSs8=\")","v":{"$error":"#REF!"}},{"$f":"AND(#REF!,\"WgovQHJVStA=\")","v":{"$error":"#REF!"}},{"$f":"AND(#REF!,\"WgovQHJVStE=\")","v":{"$error":"#REF!"}},{"$f":"AND(#REF!,\"WgovQHJVStI=\")","v":{"$error":"#REF!"}},{"$f":"AND(#REF!,\"WgovQHJVStM=\")","v":{"$error":"#REF!"}},{"$f":"AND(#REF!,\"WgovQHJVStQ=\")","v":{"$error":"#REF!"}},{"$f":"AND(#REF!,\"WgovQHJVStU=\")","v":{"$error":"#REF!"}},{"$f":"AND(#REF!,\"WgovQHJVStY=\")","v":{"$error":"#REF!"}},{"$f":"AND(#REF!,\"WgovQHJVStc=\")","v":{"$error":"#REF!"}},{"$f":"AND(#REF!,\"WgovQHJVStg=\")","v":{"$error":"#REF!"}},{"$f":"AND(#REF!,\"WgovQHJVStk=\")","v":{"$error":"#REF!"}},{"$f":"AND(#REF!,\"WgovQHJVSto=\")","v":{"$error":"#REF!"}},{"$f":"AND(#REF!,\"WgovQHJVSts=\")","v":{"$error":"#REF!"}},{"$f":"AND(#REF!,\"WgovQHJVStw=\")","v":{"$error":"#REF!"}},{"$f":"AND(#REF!,\"WgovQHJVSt0=\")","v":{"$error":"#REF!"}},{"$f":"AND(#REF!,\"WgovQHJVSt4=\")","v":{"$error":"#REF!"}},{"$f":"AND(#REF!,\"WgovQHJVSt8=\")","v":{"$error":"#REF!"}},{"$f":"AND(#REF!,\"WgovQHJVSuA=\")","v":{"$error":"#REF!"}},{"$f":"AND(#REF!,\"WgovQHJVSuE=\")","v":{"$error":"#REF!"}},{"$f":"AND(#REF!,\"WgovQHJVSuI=\")","v":{"$error":"#REF!"}},{"$f":"AND(#REF!,\"WgovQHJVSuM=\")","v":{"$error":"#REF!"}},{"$f":"AND(#REF!,\"WgovQHJVSuQ=\")","v":{"$error":"#REF!"}},{"$f":"AND(#REF!,\"WgovQHJVSuU=\")","v":{"$error":"#REF!"}},{"$f":"AND(#REF!,\"WgovQHJVSuY=\")","v":{"$error":"#REF!"}},{"$f":"AND(#REF!,\"WgovQHJVSuc=\")","v":{"$error":"#REF!"}},{"$f":"AND(#REF!,\"WgovQHJVSug=\")","v":{"$error":"#REF!"}},{"$f":"AND(#REF!,\"WgovQHJVSuk=\")","v":{"$error":"#REF!"}},{"$f":"AND(#REF!,\"WgovQHJVSuo=\")","v":{"$error":"#REF!"}},{"$f":"AND(#REF!,\"WgovQHJVSus=\")","v":{"$error":"#REF!"}},{"$f":"AND(#REF!,\"WgovQHJVSuw=\")","v":{"$error":"#REF!"}},{"$f":"AND(#REF!,\"WgovQHJVSu0=\")","v":{"$error":"#REF!"}},{"$f":"AND(#REF!,\"WgovQHJVSu4=\")","v":{"$error":"#REF!"}},{"$f":"AND(#REF!,\"WgovQHJVSu8=\")","v":{"$error":"#REF!"}},{"$f":"AND(#REF!,\"WgovQHJVSvA=\")","v":{"$error":"#REF!"}},{"$f":"AND(#REF!,\"WgovQHJVSvE=\")","v":{"$error":"#REF!"}},{"$f":"AND(#REF!,\"WgovQHJVSvI=\")","v":{"$error":"#REF!"}},{"$f":"AND(#REF!,\"WgovQHJVSvM=\")","v":{"$error":"#REF!"}},{"$f":"AND(#REF!,\"WgovQHJVSvQ=\")","v":{"$error":"#REF!"}},{"$f":"AND(#REF!,\"WgovQHJVSvU=\")","v":{"$error":"#REF!"}},{"$f":"AND(#REF!,\"WgovQHJVSvY=\")","v":{"$error":"#REF!"}},{"$f":"AND(#REF!,\"WgovQHJVSvc=\")","v":{"$error":"#REF!"}},{"$f":"AND(#REF!,\"WgovQHJVSvg=\")","v":{"$error":"#REF!"}},{"$f":"AND(#REF!,\"WgovQHJVSvk=\")","v":{"$error":"#REF!"}},{"$f":"AND(#REF!,\"WgovQHJVSvo=\")","v":{"$error":"#REF!"}},{"$f":"AND(#REF!,\"WgovQHJVSvs=\")","v":{"$error":"#REF!"}},{"$f":"AND(#REF!,\"WgovQHJVSvw=\")","v":{"$error":"#REF!"}},{"$f":"AND(#REF!,\"WgovQHJVSv0=\")","v":{"$error":"#REF!"}},{"$f":"AND(#REF!,\"WgovQHJVSv4=\")","v":{"$error":"#REF!"}},{"$f":"AND(#REF!,\"WgovQHJVSv8=\")","v":{"$error":"#REF!"}}]
[{"$f":"AND(#REF!,\"S5+LeE62SAA=\")","v":{"$error":"#REF!"}},{"$f":"AND(#REF!,\"S5+LeE62SAE=\")","v":{"$error":"#REF!"}},{"$f":"AND(#REF!,\"S5+LeE62SAI=\")","v":{"$error":"#REF!"}},{"$f":"AND(#REF!,\"S5+LeE62SAM=\")","v":{"$error":"#REF!"}},{"$f":"AND(#REF!,\"S5+LeE62SAQ=\")","v":{"$error":"#REF!"}},{"$f":"AND(#REF!,\"S5+LeE62SAU=\")","v":{"$error":"#REF!"}},{"$f":"AND(#REF!,\"S5+LeE62SAY=\")","v":{"$error":"#REF!"}},{"$f":"AND(#REF!,\"S5+LeE62SAc=\")","v":{"$error":"#REF!"}},{"$f":"AND(#REF!,\"S5+LeE62SAg=\")","v":{"$error":"#REF!"}},{"$f":"AND(#REF!,\"S5+LeE62SAk=\")","v":{"$error":"#REF!"}},{"$f":"AND(#REF!,\"S5+LeE62SAo=\")","v":{"$error":"#REF!"}},{"$f":"AND(#REF!,\"S5+LeE62SAs=\")","v":{"$error":"#REF!"}},{"$f":"AND(#REF!,\"S5+LeE62SAw=\")","v":{"$error":"#REF!"}},{"$f":"AND(#REF!,\"S5+LeE62SA0=\")","v":{"$error":"#REF!"}},{"$f":"AND(#REF!,\"S5+LeE62SA4=\")","v":{"$error":"#REF!"}},{"$f":"AND(#REF!,\"S5+LeE62SA8=\")","v":{"$error":"#REF!"}},{"$f":"AND(#REF!,\"S5+LeE62SBA=\")","v":{"$error":"#REF!"}},{"$f":"AND(#REF!,\"S5+LeE62SBE=\")","v":{"$error":"#REF!"}},{"$f":"AND(#REF!,\"S5+LeE62SBI=\")","v":{"$error":"#REF!"}},{"$f":"AND(#REF!,\"S5+LeE62SBM=\")","v":{"$error":"#REF!"}},{"$f":"AND(#REF!,\"S5+LeE62SBQ=\")","v":{"$error":"#REF!"}},{"$f":"AND(#REF!,\"S5+LeE62SBU=\")","v":{"$error":"#REF!"}},{"$f":"AND(#REF!,\"S5+LeE62SBY=\")","v":{"$error":"#REF!"}},{"$f":"AND(#REF!,\"S5+LeE62SBc=\")","v":{"$error":"#REF!"}},{"$f":"AND(#REF!,\"S5+LeE62SBg=\")","v":{"$error":"#REF!"}},{"$f":"AND(#REF!,\"S5+LeE62SBk=\")","v":{"$error":"#REF!"}},{"$f":"AND(#REF!,\"S5+LeE62SBo=\")","v":{"$error":"#REF!"}},{"$f":"AND(#REF!,\"S5+LeE62SBs=\")","v":{"$error":"#REF!"}},{"$f":"AND(#REF!,\"S5+LeE62SBw=\")","v":{"$error":"#REF!"}},{"$f":"AND(#REF!,\"S5+LeE62SB0=\")","v":{"$error":"#REF!"}},{"$f":"AND(#REF!,\"S5+LeE62SB4=\")","v":{"$error":"#REF!"}},{"$f":"AND(#REF!,\"S5+LeE62SB8=\")","v":{"$error":"#REF!"}},{"$f":"AND(#REF!,\"S5+LeE62SCA=\")","v":{"$error":"#REF!"}},{"$f":"AND(#REF!,\"S5+LeE62SCE=\")","v":{"$error":"#REF!"}},{"$f":"AND(#REF!,\"S5+LeE62SCI=\")","v":{"$error":"#REF!"}},{"$f":"AND(#REF!,\"S5+LeE62SCM=\")","v":{"$error":"#REF!"}},{"$f":"AND(#REF!,\"S5+LeE62SCQ=\")","v":{"$error":"#REF!"}},{"$f":"AND(#REF!,\"S5+LeE62SCU=\")","v":{"$error":"#REF!"}},{"$f":"AND(#REF!,\"S5+LeE62SCY=\")","v":{"$error":"#REF!"}},{"$f":"AND(#REF!,\"S5+LeE62SCc=\")","v":{"$error":"#REF!"}},{"$f":"AND(#REF!,\"S5+LeE62SCg=\")","v":{"$error":"#REF!"}},{"$f":"AND(#REF!,\"S5+LeE62SCk=\")","v":{"$error":"#REF!"}},{"$f":"AND(#REF!,\"S5+LeE62SCo=\")","v":{"$error":"#REF!"}},{"$f":"AND(#REF!,\"S5+LeE62SCs=\")","v":{"$error":"#REF!"}},{"$f":"AND(#REF!,\"S5+LeE62SCw=\")","v":{"$error":"#REF!"}},{"$f":"AND(#REF!,\"S5+LeE62SC0=\")","v":{"$error":"#REF!"}},{"$f":"AND(#REF!,\"S5+LeE62SC4=\")","v":{"$error":"#REF!"}},{"$f":"AND(#REF!,\"S5+LeE62SC8=\")","v":{"$error":"#REF!"}},{"$f":"AND(#REF!,\"S5+LeE62SDA=\")","v":{"$error":"#REF!"}},{"$f":"AND(#REF!,\"S5+LeE62SDE=\")","v":{"$error":"#REF!"}},{"$f":"AND(#REF!,\"S5+LeE62SDI=\")","v":{"$error":"#REF!"}},{"$f":"AND(#REF!,\"S5+LeE62SDM=\")","v":{"$error":"#REF!"}},{"$f":"IF(#REF!,\"S5+LeE62SDQ=\",0)","v":{"$error":"#REF!"}},{"$f":"AND(#REF!,\"S5+LeE62SDU=\")","v":{"$error":"#REF!"}},{"$f":"AND(#REF!,\"S5+LeE62SDY=\")","v":{"$error":"#REF!"}},{"$f":"AND(#REF!,\"S5+LeE62SDc=\")","v":{"$error":"#REF!"}},{"$f":"AND(#REF!,\"S5+LeE62SDg=\")","v":{"$error":"#REF!"}},{"$f":"AND(#REF!,\"S5+LeE62SDk=\")","v":{"$error":"#REF!"}},{"$f":"AND(#REF!,\"S5+LeE62SDo=\")","v":{"$error":"#REF!"}},{"$f":"AND(#REF!,\"S5+LeE62SDs=\")","v":{"$error":"#REF!"}},{"$f":"AND(#REF!,\"S5+LeE62SDw=\")","v":{"$error":"#REF!"}},{"$f":"AND(#REF!,\"S5+LeE62SD0=\")","v":{"$error":"#REF!"}},{"$f":"AND(#REF!,\"S5+LeE62SD4=\")","v":{"$error":"#REF!"}},{"$f":"AND(#REF!,\"S5+LeE62SD8=\")","v":{"$error":"#REF!"}},{"$f":"AND(#REF!,\"S5+LeE62SEA=\")","v":{"$error":"#REF!"}},{"$f":"AND(#REF!,\"S5+LeE62SEE=\")","v":{"$error":"#REF!"}},{"$f":"AND(#REF!,\"S5+LeE62SEI=\")","v":{"$error":"#REF!"}},{"$f":"AND(#REF!,\"S5+LeE62SEM=\")","v":{"$error":"#REF!"}},{"$f":"AND(#REF!,\"S5+LeE62SEQ=\")","v":{"$error":"#REF!"}},{"$f":"AND(#REF!,\"S5+LeE62SEU=\")","v":{"$error":"#REF!"}},{"$f":"AND(#REF!,\"S5+LeE62SEY=\")","v":{"$error":"#REF!"}},{"$f":"AND(#REF!,\"S5+LeE62SEc=\")","v":{"$error":"#REF!"}},{"$f":"AND(#REF!,\"S5+LeE62SEg=\")","v":{"$error":"#REF!"}},{"$f":"AND(#REF!,\"S5+LeE62SEk=\")","v":{"$error":"#REF!"}},{"$f":"AND(#REF!,\"S5+LeE62SEo=\")","v":{"$error":"#REF!"}},{"$f":"AND(#REF!,\"S5+LeE62SEs=\")","v":{"$error":"#REF!"}},{"$f":"AND(#REF!,\"S5+LeE62SEw=\")","v":{"$error":"#REF!"}},{"$f":"AND(#REF!,\"S5+LeE62SE0=\")","v":{"$error":"#REF!"}},{"$f":"AND(#REF!,\"S5+LeE62SE4=\")","v":{"$error":"#REF!"}},{"$f":"AND(#REF!,\"S5+LeE62SE8=\")","v":{"$error":"#REF!"}},{"$f":"AND(#REF!,\"S5+LeE62SFA=\")","v":{"$error":"#REF!"}},{"$f":"AND(#REF!,\"S5+LeE62SFE=\")","v":{"$error":"#REF!"}},{"$f":"AND(#REF!,\"S5+LeE62SFI=\")","v":{"$error":"#REF!"}},{"$f":"AND(#REF!,\"S5+LeE62SFM=\")","v":{"$error":"#REF!"}},{"$f":"AND(#REF!,\"S5+LeE62SFQ=\")","v":{"$error":"#REF!"}},{"$f":"AND(#REF!,\"S5+LeE62SFU=\")","v":{"$error":"#REF!"}},{"$f":"AND(#REF!,\"S5+LeE62SFY=\")","v":{"$error":"#REF!"}},{"$f":"AND(#REF!,\"S5+LeE62SFc=\")","v":{"$error":"#REF!"}},{"$f":"AND(#REF!,\"S5+LeE62SFg=\")","v":{"$error":"#REF!"}},{"$f":"AND(#REF!,\"S5+LeE62SFk=\")","v":{"$error":"#REF!"}},{"$f":"AND(#REF!,\"S5+LeE62SFo=\")","v":{"$error":"#REF!"}},{"$f":"AND(#REF!,\"S5+LeE62SFs=\")","v":{"$error":"#REF!"}},{"$f":"AND(#REF!,\"S5+LeE62SFw=\")","v":{"$error":"#REF!"}},{"$f":"AND(#REF!,\"S5+LeE62SF0=\")","v":{"$error":"#REF!"}},{"$f":"AND(#REF!,\"S5+LeE62SF4=\")","v":{"$error":"#REF!"}},{"$f":"AND(#REF!,\"S5+LeE62SF8=\")","v":{"$error":"#REF!"}},{"$f":"AND(#REF!,\"S5+LeE62SGA=\")","v":{"$error":"#REF!"}},{"$f":"AND(#REF!,\"S5+LeE62SGE=\")","v":{"$error":"#REF!"}},{"$f":"AND(#REF!,\"S5+LeE62SGI=\")","v":{"$error":"#REF!"}},{"$f":"AND(#REF!,\"S5+LeE62SGM=\")","v":{"$error":"#REF!"}},{"$f":"AND(#REF!,\"S5+LeE62SGQ=\")","v":{"$error":"#REF!"}},{"$f":"AND(#REF!,\"S5+LeE62SGU=\")","v":{"$error":"#REF!"}},{"$f":"AND(#REF!,\"S5+LeE62SGY=\")","v":{"$error":"#REF!"}},{"$f":"AND(#REF!,\"S5+LeE62SGc=\")","v":{"$error":"#REF!"}},{"$f":"AND(#REF!,\"S5+LeE62SGg=\")","v":{"$error":"#REF!"}},{"$f":"AND(#REF!,\"S5+LeE62SGk=\")","v":{"$error":"#REF!"}},{"$f":"AND(#REF!,\"S5+LeE62SGo=\")","v":{"$error":"#REF!"}},{"$f":"AND(#REF!,\"S5+LeE62SGs=\")","v":{"$error":"#REF!"}},{"$f":"AND(#REF!,\"S5+LeE62SGw=\")","v":{"$error":"#REF!"}},{"$f":"AND(#REF!,\"S5+LeE62SG0=\")","v":{"$error":"#REF!"}},{"$f":"AND(#REF!,\"S5+LeE62SG4=\")","v":{"$error":"#REF!"}},{"$f":"AND(#REF!,\"S5+LeE62SG8=\")","v":{"$error":"#REF!"}},{"$f":"AND(#REF!,\"S5+LeE62SHA=\")","v":{"$error":"#REF!"}},{"$f":"AND(#REF!,\"S5+LeE62SHE=\")","v":{"$error":"#REF!"}},{"$f":"AND(#REF!,\"S5+LeE62SHI=\")","v":{"$error":"#REF!"}},{"$f":"AND(#REF!,\"S5+LeE62SHM=\")","v":{"$error":"#REF!"}},{"$f":"AND(#REF!,\"S5+LeE62SHQ=\")","v":{"$error":"#REF!"}},{"$f":"AND(#REF!,\"S5+LeE62SHU=\")","v":{"$error":"#REF!"}},{"$f":"AND(#REF!,\"S5+LeE62SHY=\")","v":{"$error":"#REF!"}},{"$f":"AND(#REF!,\"S5+LeE62SHc=\")","v":{"$error":"#REF!"}},{"$f":"AND(#REF!,\"S5+LeE62SHg=\")","v":{"$error":"#REF!"}},{"$f":"AND(#REF!,\"S5+LeE62SHk=\")","v":{"$error":"#REF!"}},{"$f":"AND(#REF!,\"S5+LeE62SHo=\")","v":{"$error":"#REF!"}},{"$f":"AND(#REF!,\"S5+LeE62SHs=\")","v":{"$error":"#REF!"}},{"$f":"AND(#REF!,\"S5+LeE62SHw=\")","v":{"$error":"#REF!"}},{"$f":"AND(#REF!,\"S5+LeE62SH0=\")","v":{"$error":"#REF!"}},{"$f":"AND(#REF!,\"S5+LeE62SH4=\")","v":{"$error":"#REF!"}},{"$f":"AND(#REF!,\"S5+LeE62SH8=\")","v":{"$error":"#REF!"}},{"$f":"AND(#REF!,\"S5+LeE62SIA=\")","v":{"$error":"#REF!"}},{"$f":"AND(#REF!,\"S5+LeE62SIE=\")","v":{"$error":"#REF!"}},{"$f":"AND(#REF!,\"S5+LeE62SII=\")","v":{"$error":"#REF!"}},{"$f":"AND(#REF!,\"S5+LeE62SIM=\")","v":{"$error":"#REF!"}},{"$f":"AND(#REF!,\"S5+LeE62SIQ=\")","v":{"$error":"#REF!"}},{"$f":"AND(#REF!,\"S5+LeE62SIU=\")","v":{"$error":"#REF!"}},{"$f":"AND(#REF!,\"S5+LeE62SIY=\")","v":{"$error":"#REF!"}},{"$f":"AND(#REF!,\"S5+LeE62SIc=\")","v":{"$error":"#REF!"}},{"$f":"AND(#REF!,\"S5+LeE62SIg=\")","v":{"$error":"#REF!"}},{"$f":"AND(#REF!,\"S5+LeE62SIk=\")","v":{"$error":"#REF!"}},{"$f":"AND(#REF!,\"S5+LeE62SIo=\")","v":{"$error":"#REF!"}},{"$f":"AND(#REF!,\"S5+LeE62SIs=\")","v":{"$error":"#REF!"}},{"$f":"AND(#REF!,\"S5+LeE62SIw=\")","v":{"$error":"#REF!"}},{"$f":"AND(#REF!,\"S5+LeE62SI0=\")","v":{"$error":"#REF!"}},{"$f":"AND(#REF!,\"S5+LeE62SI4=\")","v":{"$error":"#REF!"}},{"$f":"AND(#REF!,\"S5+LeE62SI8=\")","v":{"$error":"#REF!"}},{"$f":"AND(#REF!,\"S5+LeE62SJA=\")","v":{"$error":"#REF!"}},{"$f":"AND(#REF!,\"S5+LeE62SJE=\")","v":{"$error":"#REF!"}},{"$f":"AND(#REF!,\"S5+LeE62SJI=\")","v":{"$error":"#REF!"}},{"$f":"AND(#REF!,\"S5+LeE62SJM=\")","v":{"$error":"#REF!"}},{"$f":"AND(#REF!,\"S5+LeE62SJQ=\")","v":{"$error":"#REF!"}},{"$f":"AND(#REF!,\"S5+LeE62SJU=\")","v":{"$error":"#REF!"}},{"$f":"AND(#REF!,\"S5+LeE62SJY=\")","v":{"$error":"#REF!"}},{"$f":"AND(#REF!,\"S5+LeE62SJc=\")","v":{"$error":"#REF!"}},{"$f":"AND(#REF!,\"S5+LeE62SJg=\")","v":{"$error":"#REF!"}},{"$f":"AND(#REF!,\"S5+LeE62SJk=\")","v":{"$error":"#REF!"}},{"$f":"AND(#REF!,\"S5+LeE62SJo=\")","v":{"$error":"#REF!"}},{"$f":"AND(#REF!,\"S5+LeE62SJs=\")","v":{"$error":"#REF!"}},{"$f":"AND(#REF!,\"S5+LeE62SJw=\")","v":{"$error":"#REF!"}},{"$f":"AND(#REF!,\"S5+LeE62SJ0=\")","v":{"$error":"#REF!"}},{"$f":"AND(#REF!,\"S5+LeE62SJ4=\")","v":{"$error":"#REF!"}},{"$f":"AND(#REF!,\"S5+LeE62SJ8=\")","v":{"$error":"#REF!"}},{"$f":"AND(#REF!,\"S5+LeE62SKA=\")","v":{"$error":"#REF!"}},{"$f":"AND(#REF!,\"S5+LeE62SKE=\")","v":{"$error":"#REF!"}},{"$f":"AND(#REF!,\"S5+LeE62SKI=\")","v":{"$error":"#REF!"}},{"$f":"AND(#REF!,\"S5+LeE62SKM=\")","v":{"$error":"#REF!"}},{"$f":"AND(#REF!,\"S5+LeE62SKQ=\")","v":{"$error":"#REF!"}},{"$f":"AND(#REF!,\"S5+LeE62SKU=\")","v":{"$error":"#REF!"}},{"$f":"AND(#REF!,\"S5+LeE62SKY=\")","v":{"$error":"#REF!"}},{"$f":"AND(#REF!,\"S5+LeE62SKc=\")","v":{"$error":"#REF!"}},{"$f":"AND(#REF!,\"S5+LeE62SKg=\")","v":{"$error":"#REF!"}},{"$f":"AND(#REF!,\"S5+LeE62SKk=\")","v":{"$error":"#REF!"}},{"$f":"AND(#REF!,\"S5+LeE62SKo=\")","v":{"$error":"#REF!"}},{"$f":"AND(#REF!,\"S5+LeE62SKs=\")","v":{"$error":"#REF!"}},{"$f":"AND(#REF!,\"S5+LeE62SKw=\")","v":{"$error":"#REF!"}},{"$f":"AND(#REF!,\"S5+LeE62SK0=\")","v":{"$error":"#REF!"}},{"$f":"AND(#REF!,\"S5+LeE62SK4=\")","v":{"$error":"#REF!"}},{"$f":"AND(#REF!,\"S5+LeE62SK8=\")","v":{"$error":"#REF!"}},{"$f":"AND(#REF!,\"S5+LeE62SLA=\")","v":{"$error":"#REF!"}},{"$f":"AND(#REF!,\"S5+LeE62SLE=\")","v":{"$error":"#REF!"}},{"$f":"AND(#REF!,\"S5+LeE62SLI=\")","v":{"$error":"#REF!"}},{"$f":"AND(#REF!,\"S5+LeE62SLM=\")","v":{"$error":"#REF!"}},{"$f":"AND(#REF!,\"S5+LeE62SLQ=\")","v":{"$error":"#REF!"}},{"$f":"AND(#REF!,\"S5+LeE62SLU=\")","v":{"$error":"#REF!"}},{"$f":"AND(#REF!,\"S5+LeE62SLY=\")","v":{"$error":"#REF!"}},{"$f":"AND(#REF!,\"S5+LeE62SLc=\")","v":{"$error":"#REF!"}},{"$f":"AND(#REF!,\"S5+LeE62SLg=\")","v":{"$error":"#REF!"}},{"$f":"AND(#REF!,\"S5+LeE62SLk=\")","v":{"$error":"#REF!"}},{"$f":"AND(#REF!,\"S5+LeE62SLo=\")","v":{"$error":"#REF!"}},{"$f":"AND(#REF!,\"S5+LeE62SLs=\")","v":{"$error":"#REF!"}},{"$f":"AND(#REF!,\"S5+LeE62SLw=\")","v":{"$error":"#REF!"}},{"$f":"AND(#REF!,\"S5+LeE62SL0=\")","v":{"$error":"#REF!"}},{"$f":"AND(#REF!,\"S5+LeE62SL4=\")","v":{"$error":"#REF!"}},{"$f":"AND(#REF!,\"S5+LeE62SL8=\")","v":{"$error":"#REF!"}},{"$f":"AND(#REF!,\"S5+LeE62SMA=\")","v":{"$error":"#REF!"}},{"$f":"AND(#REF!,\"S5+LeE62SME=\")","v":{"$error":"#REF!"}},{"$f":"AND(#REF!,\"S5+LeE62SMI=\")","v":{"$error":"#REF!"}},{"$f":"AND(#REF!,\"S5+LeE62SMM=\")","v":{"$error":"#REF!"}},{"$f":"AND(#REF!,\"S5+LeE62SMQ=\")","v":{"$error":"#REF!"}},{"$f":"AND(#REF!,\"S5+LeE62SMU=\")","v":{"$error":"#REF!"}},{"$f":"AND(#REF!,\"S5+LeE62SMY=\")","v":{"$error":"#REF!"}},{"$f":"AND(#REF!,\"S5+LeE62SMc=\")","v":{"$error":"#REF!"}},{"$f":"AND(#REF!,\"S5+LeE62SMg=\")","v":{"$error":"#REF!"}},{"$f":"AND(#REF!,\"S5+LeE62SMk=\")","v":{"$error":"#REF!"}},{"$f":"AND(#REF!,\"S5+LeE62SMo=\")","v":{"$error":"#REF!"}},{"$f":"AND(#REF!,\"S5+LeE62SMs=\")","v":{"$error":"#REF!"}},{"$f":"AND(#REF!,\"S5+LeE62SMw=\")","v":{"$error":"#REF!"}},{"$f":"AND(#REF!,\"S5+LeE62SM0=\")","v":{"$error":"#REF!"}},{"$f":"AND(#REF!,\"S5+LeE62SM4=\")","v":{"$error":"#REF!"}},{"$f":"AND(#REF!,\"S5+LeE62SM8=\")","v":{"$error":"#REF!"}},{"$f":"AND(#REF!,\"S5+LeE62SNA=\")","v":{"$error":"#REF!"}},{"$f":"AND(#REF!,\"S5+LeE62SNE=\")","v":{"$error":"#REF!"}},{"$f":"AND(#REF!,\"S5+LeE62SNI=\")","v":{"$error":"#REF!"}},{"$f":"AND(#REF!,\"S5+LeE62SNM=\")","v":{"$error":"#REF!"}},{"$f":"AND(#REF!,\"S5+LeE62SNQ=\")","v":{"$error":"#REF!"}},{"$f":"AND(#REF!,\"S5+LeE62SNU=\")","v":{"$error":"#REF!"}},{"$f":"AND(#REF!,\"S5+LeE62SNY=\")","v":{"$error":"#REF!"}},{"$f":"AND(#REF!,\"S5+LeE62SNc=\")","v":{"$error":"#REF!"}},{"$f":"AND(#REF!,\"S5+LeE62SNg=\")","v":{"$error":"#REF!"}},{"$f":"AND(#REF!,\"S5+LeE62SNk=\")","v":{"$error":"#REF!"}},{"$f":"AND(#REF!,\"S5+LeE62SNo=\")","v":{"$error":"#REF!"}},{"$f":"AND(#REF!,\"S5+LeE62SNs=\")","v":{"$error":"#REF!"}},{"$f":"AND(#REF!,\"S5+LeE62SNw=\")","v":{"$error":"#REF!"}},{"$f":"AND(#REF!,\"S5+LeE62SN0=\")","v":{"$error":"#REF!"}},{"$f":"AND(#REF!,\"S5+LeE62SN4=\")","v":{"$error":"#REF!"}},{"$f":"AND(#REF!,\"S5+LeE62SN8=\")","v":{"$error":"#REF!"}},{"$f":"AND(#REF!,\"S5+LeE62SOA=\")","v":{"$error":"#REF!"}},{"$f":"AND(#REF!,\"S5+LeE62SOE=\")","v":{"$error":"#REF!"}},{"$f":"AND(#REF!,\"S5+LeE62SOI=\")","v":{"$error":"#REF!"}},{"$f":"AND(#REF!,\"S5+LeE62SOM=\")","v":{"$error":"#REF!"}},{"$f":"AND(#REF!,\"S5+LeE62SOQ=\")","v":{"$error":"#REF!"}},{"$f":"AND(#REF!,\"S5+LeE62SOU=\")","v":{"$error":"#REF!"}},{"$f":"AND(#REF!,\"S5+LeE62SOY=\")","v":{"$error":"#REF!"}},{"$f":"AND(#REF!,\"S5+LeE62SOc=\")","v":{"$error":"#REF!"}},{"$f":"AND(#REF!,\"S5+LeE62SOg=\")","v":{"$error":"#REF!"}},{"$f":"AND(#REF!,\"S5+LeE62SOk=\")","v":{"$error":"#REF!"}},{"$f":"AND(#REF!,\"S5+LeE62SOo=\")","v":{"$error":"#REF!"}},{"$f":"AND(#REF!,\"S5+LeE62SOs=\")","v":{"$error":"#REF!"}},{"$f":"AND(#REF!,\"S5+LeE62SOw=\")","v":{"$error":"#REF!"}},{"$f":"AND(#REF!,\"S5+LeE62SO0=\")","v":{"$error":"#REF!"}},{"$f":"AND(#REF!,\"S5+LeE62SO4=\")","v":{"$error":"#REF!"}},{"$f":"AND(#REF!,\"S5+LeE62SO8=\")","v":{"$error":"#REF!"}},{"$f":"AND(#REF!,\"S5+LeE62SPA=\")","v":{"$error":"#REF!"}},{"$f":"AND(#REF!,\"S5+LeE62SPE=\")","v":{"$error":"#REF!"}},{"$f":"AND(#REF!,\"S5+LeE62SPI=\")","v":{"$error":"#REF!"}},{"$f":"AND(#REF!,\"S5+LeE62SPM=\")","v":{"$error":"#REF!"}},{"$f":"AND(#REF!,\"S5+LeE62SPQ=\")","v":{"$error":"#REF!"}},{"$f":"AND(#REF!,\"S5+LeE62SPU=\")","v":{"$error":"#REF!"}},{"$f":"AND(#REF!,\"S5+LeE62SPY=\")","v":{"$error":"#REF!"}},{"$f":"AND(#REF!,\"S5+LeE62SPc=\")","v":{"$error":"#REF!"}},{"$f":"AND(#REF!,\"S5+LeE62SPg=\")","v":{"$error":"#REF!"}},{"$f":"AND(#REF!,\"S5+LeE62SPk=\")","v":{"$error":"#REF!"}},{"$f":"AND(#REF!,\"S5+LeE62SPo=\")","v":{"$error":"#REF!"}},{"$f":"IF(#REF!,\"S5+LeE62SPs=\",0)","v":{"$error":"#REF!"}},{"$f":"AND(#REF!,\"S5+LeE62SPw=\")","v":{"$error":"#REF!"}},{"$f":"AND(#REF!,\"S5+LeE62SP0=\")","v":{"$error":"#REF!"}},{"$f":"AND(#REF!,\"S5+LeE62SP4=\")","v":{"$error":"#REF!"}},{"$f":"AND(#REF!,\"S5+LeE62SP8=\")","v":{"$error":"#REF!"}}]
[{"$f":"AND(#REF!,\"YC30NmJx8QA=\")","v":{"$error":"#REF!"}},{"$f":"AND(#REF!,\"YC30NmJx8QE=\")","v":{"$error":"#REF!"}},{"$f":"AND(#REF!,\"YC30NmJx8QI=\")","v":{"$error":"#REF!"}},{"$f":"AND(#REF!,\"YC30NmJx8QM=\")","v":{"$error":"#REF!"}},{"$f":"AND(#REF!,\"YC30NmJx8QQ=\")","v":{"$error":"#REF!"}},{"$f":"AND(#REF!,\"YC30NmJx8QU=\")","v":{"$error":"#REF!"}},{"$f":"AND(#REF!,\"YC30NmJx8QY=\")","v":{"$error":"#REF!"}},{"$f":"AND(#REF!,\"YC30NmJx8Qc=\")","v":{"$error":"#REF!"}},{"$f":"AND(#REF!,\"YC30NmJx8Qg=\")","v":{"$error":"#REF!"}},{"$f":"AND(#REF!,\"YC30NmJx8Qk=\")","v":{"$error":"#REF!"}},{"$f":"AND(#REF!,\"YC30NmJx8Qo=\")","v":{"$error":"#REF!"}},{"$f":"AND(#REF!,\"YC30NmJx8Qs=\")","v":{"$error":"#REF!"}},{"$f":"AND(#REF!,\"YC30NmJx8Qw=\")","v":{"$error":"#REF!"}},{"$f":"AND(#REF!,\"YC30NmJx8Q0=\")","v":{"$error":"#REF!"}},{"$f":"AND(#REF!,\"YC30NmJx8Q4=\")","v":{"$error":"#REF!"}},{"$f":"AND(#REF!,\"YC30NmJx8Q8=\")","v":{"$error":"#REF!"}},{"$f":"AND(#REF!,\"YC30NmJx8RA=\")","v":{"$error":"#REF!"}},{"$f":"AND(#REF!,\"YC30NmJx8RE=\")","v":{"$error":"#REF!"}},{"$f":"AND(#REF!,\"YC30NmJx8RI=\")","v":{"$error":"#REF!"}},{"$f":"AND(#REF!,\"YC30NmJx8RM=\")","v":{"$error":"#REF!"}},{"$f":"AND(#REF!,\"YC30NmJx8RQ=\")","v":{"$error":"#REF!"}},{"$f":"AND(#REF!,\"YC30NmJx8RU=\")","v":{"$error":"#REF!"}},{"$f":"AND(#REF!,\"YC30NmJx8RY=\")","v":{"$error":"#REF!"}},{"$f":"AND(#REF!,\"YC30NmJx8Rc=\")","v":{"$error":"#REF!"}},{"$f":"AND(#REF!,\"YC30NmJx8Rg=\")","v":{"$error":"#REF!"}},{"$f":"AND(#REF!,\"YC30NmJx8Rk=\")","v":{"$error":"#REF!"}},{"$f":"AND(#REF!,\"YC30NmJx8Ro=\")","v":{"$error":"#REF!"}},{"$f":"AND(#REF!,\"YC30NmJx8Rs=\")","v":{"$error":"#REF!"}},{"$f":"AND(#REF!,\"YC30NmJx8Rw=\")","v":{"$error":"#REF!"}},{"$f":"AND(#REF!,\"YC30NmJx8R0=\")","v":{"$error":"#REF!"}},{"$f":"AND(#REF!,\"YC30NmJx8R4=\")","v":{"$error":"#REF!"}},{"$f":"AND(#REF!,\"YC30NmJx8R8=\")","v":{"$error":"#REF!"}},{"$f":"AND(#REF!,\"YC30NmJx8SA=\")","v":{"$error":"#REF!"}},{"$f":"AND(#REF!,\"YC30NmJx8SE=\")","v":{"$error":"#REF!"}},{"$f":"AND(#REF!,\"YC30NmJx8SI=\")","v":{"$error":"#REF!"}},{"$f":"AND(#REF!,\"YC30NmJx8SM=\")","v":{"$error":"#REF!"}},{"$f":"AND(#REF!,\"YC30NmJx8SQ=\")","v":{"$error":"#REF!"}},{"$f":"AND(#REF!,\"YC30NmJx8SU=\")","v":{"$error":"#REF!"}},{"$f":"AND(#REF!,\"YC30NmJx8SY=\")","v":{"$error":"#REF!"}},{"$f":"AND(#REF!,\"YC30NmJx8Sc=\")","v":{"$error":"#REF!"}},{"$f":"AND(#REF!,\"YC30NmJx8Sg=\")","v":{"$error":"#REF!"}},{"$f":"AND(#REF!,\"YC30NmJx8Sk=\")","v":{"$error":"#REF!"}},{"$f":"AND(#REF!,\"YC30NmJx8So=\")","v":{"$error":"#REF!"}},{"$f":"AND(#REF!,\"YC30NmJx8Ss=\")","v":{"$error":"#REF!"}},{"$f":"AND(#REF!,\"YC30NmJx8Sw=\")","v":{"$error":"#REF!"}},{"$f":"AND(#REF!,\"YC30NmJx8S0=\")","v":{"$error":"#REF!"}},{"$f":"AND(#REF!,\"YC30NmJx8S4=\")","v":{"$error":"#REF!"}},{"$f":"AND(#REF!,\"YC30NmJx8S8=\")","v":{"$error":"#REF!"}},{"$f":"AND(#REF!,\"YC30NmJx8TA=\")","v":{"$error":"#REF!"}},{"$f":"AND(#REF!,\"YC30NmJx8TE=\")","v":{"$error":"#REF!"}},{"$f":"AND(#REF!,\"YC30NmJx8TI=\")","v":{"$error":"#REF!"}},{"$f":"AND(#REF!,\"YC30NmJx8TM=\")","v":{"$error":"#REF!"}},{"$f":"AND(#REF!,\"YC30NmJx8TQ=\")","v":{"$error":"#REF!"}},{"$f":"AND(#REF!,\"YC30NmJx8TU=\")","v":{"$error":"#REF!"}},{"$f":"AND(#REF!,\"YC30NmJx8TY=\")","v":{"$error":"#REF!"}},{"$f":"AND(#REF!,\"YC30NmJx8Tc=\")","v":{"$error":"#REF!"}},{"$f":"AND(#REF!,\"YC30NmJx8Tg=\")","v":{"$error":"#REF!"}},{"$f":"AND(#REF!,\"YC30NmJx8Tk=\")","v":{"$error":"#REF!"}},{"$f":"AND(#REF!,\"YC30NmJx8To=\")","v":{"$error":"#REF!"}},{"$f":"AND(#REF!,\"YC30NmJx8Ts=\")","v":{"$error":"#REF!"}},{"$f":"AND(#REF!,\"YC30NmJx8Tw=\")","v":{"$error":"#REF!"}},{"$f":"AND(#REF!,\"YC30NmJx8T0=\")","v":{"$error":"#REF!"}},{"$f":"AND(#REF!,\"YC30NmJx8T4=\")","v":{"$error":"#REF!"}},{"$f":"AND(#REF!,\"YC30NmJx8T8=\")","v":{"$error":"#REF!"}},{"$f":"AND(#REF!,\"YC30NmJx8UA=\")","v":{"$error":"#REF!"}},{"$f":"AND(#REF!,\"YC30NmJx8UE=\")","v":{"$error":"#REF!"}},{"$f":"AND(#REF!,\"YC30NmJx8UI=\")","v":{"$error":"#REF!"}},{"$f":"AND(#REF!,\"YC30NmJx8UM=\")","v":{"$error":"#REF!"}},{"$f":"AND(#REF!,\"YC30NmJx8UQ=\")","v":{"$error":"#REF!"}},{"$f":"AND(#REF!,\"YC30NmJx8UU=\")","v":{"$error":"#REF!"}},{"$f":"AND(#REF!,\"YC30NmJx8UY=\")","v":{"$error":"#REF!"}},{"$f":"AND(#REF!,\"YC30NmJx8Uc=\")","v":{"$error":"#REF!"}},{"$f":"AND(#REF!,\"YC30NmJx8Ug=\")","v":{"$error":"#REF!"}},{"$f":"AND(#REF!,\"YC30NmJx8Uk=\")","v":{"$error":"#REF!"}},{"$f":"AND(#REF!,\"YC30NmJx8Uo=\")","v":{"$error":"#REF!"}},{"$f":"AND(#REF!,\"YC30NmJx8Us=\")","v":{"$error":"#REF!"}},{"$f":"AND(#REF!,\"YC30NmJx8Uw=\")","v":{"$error":"#REF!"}},{"$f":"AND(#REF!,\"YC30NmJx8U0=\")","v":{"$error":"#REF!"}},{"$f":"AND(#REF!,\"YC30NmJx8U4=\")","v":{"$error":"#REF!"}},{"$f":"AND(#REF!,\"YC30NmJx8U8=\")","v":{"$error":"#REF!"}},{"$f":"AND(#REF!,\"YC30NmJx8VA=\")","v":{"$error":"#REF!"}},{"$f":"AND(#REF!,\"YC30NmJx8VE=\")","v":{"$error":"#REF!"}},{"$f":"AND(#REF!,\"YC30NmJx8VI=\")","v":{"$error":"#REF!"}},{"$f":"AND(#REF!,\"YC30NmJx8VM=\")","v":{"$error":"#REF!"}},{"$f":"AND(#REF!,\"YC30NmJx8VQ=\")","v":{"$error":"#REF!"}},{"$f":"AND(#REF!,\"YC30NmJx8VU=\")","v":{"$error":"#REF!"}},{"$f":"AND(#REF!,\"YC30NmJx8VY=\")","v":{"$error":"#REF!"}},{"$f":"AND(#REF!,\"YC30NmJx8Vc=\")","v":{"$error":"#REF!"}},{"$f":"AND(#REF!,\"YC30NmJx8Vg=\")","v":{"$error":"#REF!"}},{"$f":"AND(#REF!,\"YC30NmJx8Vk=\")","v":{"$error":"#REF!"}},{"$f":"AND(#REF!,\"YC30NmJx8Vo=\")","v":{"$error":"#REF!"}},{"$f":"AND(#REF!,\"YC30NmJx8Vs=\")","v":{"$error":"#REF!"}},{"$f":"AND(#REF!,\"YC30NmJx8Vw=\")","v":{"$error":"#REF!"}},{"$f":"AND(#REF!,\"YC30NmJx8V0=\")","v":{"$error":"#REF!"}},{"$f":"AND(#REF!,\"YC30NmJx8V4=\")","v":{"$error":"#REF!"}},{"$f":"AND(#REF!,\"YC30NmJx8V8=\")","v":{"$error":"#REF!"}},{"$f":"AND(#REF!,\"YC30NmJx8WA=\")","v":{"$error":"#REF!"}},{"$f":"AND(#REF!,\"YC30NmJx8WE=\")","v":{"$error":"#REF!"}},{"$f":"AND(#REF!,\"YC30NmJx8WI=\")","v":{"$error":"#REF!"}},{"$f":"AND(#REF!,\"YC30NmJx8WM=\")","v":{"$error":"#REF!"}},{"$f":"AND(#REF!,\"YC30NmJx8WQ=\")","v":{"$error":"#REF!"}},{"$f":"AND(#REF!,\"YC30NmJx8WU=\")","v":{"$error":"#REF!"}},{"$f":"AND(#REF!,\"YC30NmJx8WY=\")","v":{"$error":"#REF!"}},{"$f":"AND(#REF!,\"YC30NmJx8Wc=\")","v":{"$error":"#REF!"}},{"$f":"AND(#REF!,\"YC30NmJx8Wg=\")","v":{"$error":"#REF!"}},{"$f":"AND(#REF!,\"YC30NmJx8Wk=\")","v":{"$error":"#REF!"}},{"$f":"AND(#REF!,\"YC30NmJx8Wo=\")","v":{"$error":"#REF!"}},{"$f":"AND(#REF!,\"YC30NmJx8Ws=\")","v":{"$error":"#REF!"}},{"$f":"AND(#REF!,\"YC30NmJx8Ww=\")","v":{"$error":"#REF!"}},{"$f":"AND(#REF!,\"YC30NmJx8W0=\")","v":{"$error":"#REF!"}},{"$f":"AND(#REF!,\"YC30NmJx8W4=\")","v":{"$error":"#REF!"}},{"$f":"AND(#REF!,\"YC30NmJx8W8=\")","v":{"$error":"#REF!"}},{"$f":"AND(#REF!,\"YC30NmJx8XA=\")","v":{"$error":"#REF!"}},{"$f":"AND(#REF!,\"YC30NmJx8XE=\")","v":{"$error":"#REF!"}},{"$f":"AND(#REF!,\"YC30NmJx8XI=\")","v":{"$error":"#REF!"}},{"$f":"AND(#REF!,\"YC30NmJx8XM=\")","v":{"$error":"#REF!"}},{"$f":"AND(#REF!,\"YC30NmJx8XQ=\")","v":{"$error":"#REF!"}},{"$f":"AND(#REF!,\"YC30NmJx8XU=\")","v":{"$error":"#REF!"}},{"$f":"AND(#REF!,\"YC30NmJx8XY=\")","v":{"$error":"#REF!"}},{"$f":"AND(#REF!,\"YC30NmJx8Xc=\")","v":{"$error":"#REF!"}},{"$f":"AND(#REF!,\"YC30NmJx8Xg=\")","v":{"$error":"#REF!"}},{"$f":"AND(#REF!,\"YC30NmJx8Xk=\")","v":{"$error":"#REF!"}},{"$f":"AND(#REF!,\"YC30NmJx8Xo=\")","v":{"$error":"#REF!"}},{"$f":"AND(#REF!,\"YC30NmJx8Xs=\")","v":{"$error":"#REF!"}},{"$f":"AND(#REF!,\"YC30NmJx8Xw=\")","v":{"$error":"#REF!"}},{"$f":"AND(#REF!,\"YC30NmJx8X0=\")","v":{"$error":"#REF!"}},{"$f":"AND(#REF!,\"YC30NmJx8X4=\")","v":{"$error":"#REF!"}},{"$f":"AND(#REF!,\"YC30NmJx8X8=\")","v":{"$error":"#REF!"}},{"$f":"AND(#REF!,\"YC30NmJx8YA=\")","v":{"$error":"#REF!"}},{"$f":"AND(#REF!,\"YC30NmJx8YE=\")","v":{"$error":"#REF!"}},{"$f":"AND(#REF!,\"YC30NmJx8YI=\")","v":{"$error":"#REF!"}},{"$f":"AND(#REF!,\"YC30NmJx8YM=\")","v":{"$error":"#REF!"}},{"$f":"AND(#REF!,\"YC30NmJx8YQ=\")","v":{"$error":"#REF!"}},{"$f":"AND(#REF!,\"YC30NmJx8YU=\")","v":{"$error":"#REF!"}},{"$f":"AND(#REF!,\"YC30NmJx8YY=\")","v":{"$error":"#REF!"}},{"$f":"AND(#REF!,\"YC30NmJx8Yc=\")","v":{"$error":"#REF!"}},{"$f":"AND(#REF!,\"YC30NmJx8Yg=\")","v":{"$error":"#REF!"}},{"$f":"AND(#REF!,\"YC30NmJx8Yk=\")","v":{"$error":"#REF!"}},{"$f":"AND(#REF!,\"YC30NmJx8Yo=\")","v":{"$error":"#REF!"}},{"$f":"AND(#REF!,\"YC30NmJx8Ys=\")","v":{"$error":"#REF!"}},{"$f":"AND(#REF!,\"YC30NmJx8Yw=\")","v":{"$error":"#REF!"}},{"$f":"AND(#REF!,\"YC30NmJx8Y0=\")","v":{"$error":"#REF!"}},{"$f":"AND(#REF!,\"YC30NmJx8Y4=\")","v":{"$error":"#REF!"}},{"$f":"AND(#REF!,\"YC30NmJx8Y8=\")","v":{"$error":"#REF!"}},{"$f":"AND(#REF!,\"YC30NmJx8ZA=\")","v":{"$error":"#REF!"}},{"$f":"AND(#REF!,\"YC30NmJx8ZE=\")","v":{"$error":"#REF!"}},{"$f":"AND(#REF!,\"YC30NmJx8ZI=\")","v":{"$error":"#REF!"}},{"$f":"AND(#REF!,\"YC30NmJx8ZM=\")","v":{"$error":"#REF!"}},{"$f":"AND(#REF!,\"YC30NmJx8ZQ=\")","v":{"$error":"#REF!"}},{"$f":"AND(#REF!,\"YC30NmJx8ZU=\")","v":{"$error":"#REF!"}},{"$f":"AND(#REF!,\"YC30NmJx8ZY=\")","v":{"$error":"#REF!"}},{"$f":"AND(#REF!,\"YC30NmJx8Zc=\")","v":{"$error":"#REF!"}},{"$f":"AND(#REF!,\"YC30NmJx8Zg=\")","v":{"$error":"#REF!"}},{"$f":"AND(#REF!,\"YC30NmJx8Zk=\")","v":{"$error":"#REF!"}},{"$f":"AND(#REF!,\"YC30NmJx8Zo=\")","v":{"$error":"#REF!"}},{"$f":"AND(#REF!,\"YC30NmJx8Zs=\")","v":{"$error":"#REF!"}},{"$f":"AND(#REF!,\"YC30NmJx8Zw=\")","v":{"$error":"#REF!"}},{"$f":"AND(#REF!,\"YC30NmJx8Z0=\")","v":{"$error":"#REF!"}},{"$f":"AND(#REF!,\"YC30NmJx8Z4=\")","v":{"$error":"#REF!"}},{"$f":"AND(#REF!,\"YC30NmJx8Z8=\")","v":{"$error":"#REF!"}},{"$f":"AND(#REF!,\"YC30NmJx8aA=\")","v":{"$error":"#REF!"}},{"$f":"AND(#REF!,\"YC30NmJx8aE=\")","v":{"$error":"#REF!"}},{"$f":"AND(#REF!,\"YC30NmJx8aI=\")","v":{"$error":"#REF!"}},{"$f":"AND(#REF!,\"YC30NmJx8aM=\")","v":{"$error":"#REF!"}},{"$f":"AND(#REF!,\"YC30NmJx8aQ=\")","v":{"$error":"#REF!"}},{"$f":"AND(#REF!,\"YC30NmJx8aU=\")","v":{"$error":"#REF!"}},{"$f":"AND(#REF!,\"YC30NmJx8aY=\")","v":{"$error":"#REF!"}},{"$f":"AND(#REF!,\"YC30NmJx8ac=\")","v":{"$error":"#REF!"}},{"$f":"AND(#REF!,\"YC30NmJx8ag=\")","v":{"$error":"#REF!"}},{"$f":"AND(#REF!,\"YC30NmJx8ak=\")","v":{"$error":"#REF!"}},{"$f":"AND(#REF!,\"YC30NmJx8ao=\")","v":{"$error":"#REF!"}},{"$f":"AND(#REF!,\"YC30NmJx8as=\")","v":{"$error":"#REF!"}},{"$f":"AND(#REF!,\"YC30NmJx8aw=\")","v":{"$error":"#REF!"}},{"$f":"AND(#REF!,\"YC30NmJx8a0=\")","v":{"$error":"#REF!"}},{"$f":"AND(#REF!,\"YC30NmJx8a4=\")","v":{"$error":"#REF!"}},{"$f":"AND(#REF!,\"YC30NmJx8a8=\")","v":{"$error":"#REF!"}},{"$f":"AND(#REF!,\"YC30NmJx8bA=\")","v":{"$error":"#REF!"}},{"$f":"AND(#REF!,\"YC30NmJx8bE=\")","v":{"$error":"#REF!"}},{"$f":"AND(#REF!,\"YC30NmJx8bI=\")","v":{"$error":"#REF!"}},{"$f":"AND(#REF!,\"YC30NmJx8bM=\")","v":{"$error":"#REF!"}},{"$f":"AND(#REF!,\"YC30NmJx8bQ=\")","v":{"$error":"#REF!"}},{"$f":"AND(#REF!,\"YC30NmJx8bU=\")","v":{"$error":"#REF!"}},{"$f":"AND(#REF!,\"YC30NmJx8bY=\")","v":{"$error":"#REF!"}},{"$f":"AND(#REF!,\"YC30NmJx8bc=\")","v":{"$error":"#REF!"}},{"$f":"AND(#REF!,\"YC30NmJx8bg=\")","v":{"$error":"#REF!"}},{"$f":"AND(#REF!,\"YC30NmJx8bk=\")","v":{"$error":"#REF!"}},{"$f":"AND(#REF!,\"YC30NmJx8bo=\")","v":{"$error":"#REF!"}},{"$f":"AND(#REF!,\"YC30NmJx8bs=\")","v":{"$error":"#REF!"}},{"$f":"AND(#REF!,\"YC30NmJx8bw=\")","v":{"$error":"#REF!"}},{"$f":"AND(#REF!,\"YC30NmJx8b0=\")","v":{"$error":"#REF!"}},{"$f":"AND(#REF!,\"YC30NmJx8b4=\")","v":{"$error":"#REF!"}},{"$f":"AND(#REF!,\"YC30NmJx8b8=\")","v":{"$error":"#REF!"}},{"$f":"AND(#REF!,\"YC30NmJx8cA=\")","v":{"$error":"#REF!"}},{"$f":"AND(#REF!,\"YC30NmJx8cE=\")","v":{"$error":"#REF!"}},{"$f":"IF(#REF!,\"YC30NmJx8cI=\",0)","v":{"$error":"#REF!"}},{"$f":"AND(#REF!,\"YC30NmJx8cM=\")","v":{"$error":"#REF!"}},{"$f":"AND(#REF!,\"YC30NmJx8cQ=\")","v":{"$error":"#REF!"}},{"$f":"AND(#REF!,\"YC30NmJx8cU=\")","v":{"$error":"#REF!"}},{"$f":"AND(#REF!,\"YC30NmJx8cY=\")","v":{"$error":"#REF!"}},{"$f":"AND(#REF!,\"YC30NmJx8cc=\")","v":{"$error":"#REF!"}},{"$f":"AND(#REF!,\"YC30NmJx8cg=\")","v":{"$error":"#REF!"}},{"$f":"AND(#REF!,\"YC30NmJx8ck=\")","v":{"$error":"#REF!"}},{"$f":"AND(#REF!,\"YC30NmJx8co=\")","v":{"$error":"#REF!"}},{"$f":"AND(#REF!,\"YC30NmJx8cs=\")","v":{"$error":"#REF!"}},{"$f":"AND(#REF!,\"YC30NmJx8cw=\")","v":{"$error":"#REF!"}},{"$f":"AND(#REF!,\"YC30NmJx8c0=\")","v":{"$error":"#REF!"}},{"$f":"AND(#REF!,\"YC30NmJx8c4=\")","v":{"$error":"#REF!"}},{"$f":"AND(#REF!,\"YC30NmJx8c8=\")","v":{"$error":"#REF!"}},{"$f":"AND(#REF!,\"YC30NmJx8dA=\")","v":{"$error":"#REF!"}},{"$f":"AND(#REF!,\"YC30NmJx8dE=\")","v":{"$error":"#REF!"}},{"$f":"AND(#REF!,\"YC30NmJx8dI=\")","v":{"$error":"#REF!"}},{"$f":"AND(#REF!,\"YC30NmJx8dM=\")","v":{"$error":"#REF!"}},{"$f":"AND(#REF!,\"YC30NmJx8dQ=\")","v":{"$error":"#REF!"}},{"$f":"AND(#REF!,\"YC30NmJx8dU=\")","v":{"$error":"#REF!"}},{"$f":"AND(#REF!,\"YC30NmJx8dY=\")","v":{"$error":"#REF!"}},{"$f":"AND(#REF!,\"YC30NmJx8dc=\")","v":{"$error":"#REF!"}},{"$f":"AND(#REF!,\"YC30NmJx8dg=\")","v":{"$error":"#REF!"}},{"$f":"AND(#REF!,\"YC30NmJx8dk=\")","v":{"$error":"#REF!"}},{"$f":"AND(#REF!,\"YC30NmJx8do=\")","v":{"$error":"#REF!"}},{"$f":"AND(#REF!,\"YC30NmJx8ds=\")","v":{"$error":"#REF!"}},{"$f":"AND(#REF!,\"YC30NmJx8dw=\")","v":{"$error":"#REF!"}},{"$f":"AND(#REF!,\"YC30NmJx8d0=\")","v":{"$error":"#REF!"}},{"$f":"AND(#REF!,\"YC30NmJx8d4=\")","v":{"$error":"#REF!"}},{"$f":"AND(#REF!,\"YC30NmJx8d8=\")","v":{"$error":"#REF!"}},{"$f":"AND(#REF!,\"YC30NmJx8eA=\")","v":{"$error":"#REF!"}},{"$f":"AND(#REF!,\"YC30NmJx8eE=\")","v":{"$error":"#REF!"}},{"$f":"AND(#REF!,\"YC30NmJx8eI=\")","v":{"$error":"#REF!"}},{"$f":"AND(#REF!,\"YC30NmJx8eM=\")","v":{"$error":"#REF!"}},{"$f":"AND(#REF!,\"YC30NmJx8eQ=\")","v":{"$error":"#REF!"}},{"$f":"AND(#REF!,\"YC30NmJx8eU=\")","v":{"$error":"#REF!"}},{"$f":"AND(#REF!,\"YC30NmJx8eY=\")","v":{"$error":"#REF!"}},{"$f":"AND(#REF!,\"YC30NmJx8ec=\")","v":{"$error":"#REF!"}},{"$f":"AND(#REF!,\"YC30NmJx8eg=\")","v":{"$error":"#REF!"}},{"$f":"AND(#REF!,\"YC30NmJx8ek=\")","v":{"$error":"#REF!"}},{"$f":"AND(#REF!,\"YC30NmJx8eo=\")","v":{"$error":"#REF!"}},{"$f":"AND(#REF!,\"YC30NmJx8es=\")","v":{"$error":"#REF!"}},{"$f":"AND(#REF!,\"YC30NmJx8ew=\")","v":{"$error":"#REF!"}},{"$f":"AND(#REF!,\"YC30NmJx8e0=\")","v":{"$error":"#REF!"}},{"$f":"AND(#REF!,\"YC30NmJx8e4=\")","v":{"$error":"#REF!"}},{"$f":"AND(#REF!,\"YC30NmJx8e8=\")","v":{"$error":"#REF!"}},{"$f":"AND(#REF!,\"YC30NmJx8fA=\")","v":{"$error":"#REF!"}},{"$f":"AND(#REF!,\"YC30NmJx8fE=\")","v":{"$error":"#REF!"}},{"$f":"AND(#REF!,\"YC30NmJx8fI=\")","v":{"$error":"#REF!"}},{"$f":"AND(#REF!,\"YC30NmJx8fM=\")","v":{"$error":"#REF!"}},{"$f":"AND(#REF!,\"YC30NmJx8fQ=\")","v":{"$error":"#REF!"}},{"$f":"AND(#REF!,\"YC30NmJx8fU=\")","v":{"$error":"#REF!"}},{"$f":"AND(#REF!,\"YC30NmJx8fY=\")","v":{"$error":"#REF!"}},{"$f":"AND(#REF!,\"YC30NmJx8fc=\")","v":{"$error":"#REF!"}},{"$f":"AND(#REF!,\"YC30NmJx8fg=\")","v":{"$error":"#REF!"}},{"$f":"AND(#REF!,\"YC30NmJx8fk=\")","v":{"$error":"#REF!"}},{"$f":"AND(#REF!,\"YC30NmJx8fo=\")","v":{"$error":"#REF!"}},{"$f":"AND(#REF!,\"YC30NmJx8fs=\")","v":{"$error":"#REF!"}},{"$f":"AND(#REF!,\"YC30NmJx8fw=\")","v":{"$error":"#REF!"}},{"$f":"AND(#REF!,\"YC30NmJx8f0=\")","v":{"$error":"#REF!"}},{"$f":"AND(#REF!,\"YC30NmJx8f4=\")","v":{"$error":"#REF!"}},{"$f":"AND(#REF!,\"YC30NmJx8f8=\")","v":{"$error":"#REF!"}}]
[{"$f":"AND(#REF!,\"EWlqLEiHAAA=\")","v":{"$error":"#REF!"}},{"$f":"AND(#REF!,\"EWlqLEiHAAE=\")","v":{"$error":"#REF!"}},{"$f":"AND(#REF!,\"EWlqLEiHAAI=\")","v":{"$error":"#REF!"}},{"$f":"AND(#REF!,\"EWlqLEiHAAM=\")","v":{"$error":"#REF!"}},{"$f":"AND(#REF!,\"EWlqLEiHAAQ=\")","v":{"$error":"#REF!"}},{"$f":"AND(#REF!,\"EWlqLEiHAAU=\")","v":{"$error":"#REF!"}},{"$f":"AND(#REF!,\"EWlqLEiHAAY=\")","v":{"$error":"#REF!"}},{"$f":"AND(#REF!,\"EWlqLEiHAAc=\")","v":{"$error":"#REF!"}},{"$f":"AND(#REF!,\"EWlqLEiHAAg=\")","v":{"$error":"#REF!"}},{"$f":"AND(#REF!,\"EWlqLEiHAAk=\")","v":{"$error":"#REF!"}},{"$f":"AND(#REF!,\"EWlqLEiHAAo=\")","v":{"$error":"#REF!"}},{"$f":"AND(#REF!,\"EWlqLEiHAAs=\")","v":{"$error":"#REF!"}},{"$f":"AND(#REF!,\"EWlqLEiHAAw=\")","v":{"$error":"#REF!"}},{"$f":"AND(#REF!,\"EWlqLEiHAA0=\")","v":{"$error":"#REF!"}},{"$f":"AND(#REF!,\"EWlqLEiHAA4=\")","v":{"$error":"#REF!"}},{"$f":"AND(#REF!,\"EWlqLEiHAA8=\")","v":{"$error":"#REF!"}},{"$f":"AND(#REF!,\"EWlqLEiHABA=\")","v":{"$error":"#REF!"}},{"$f":"AND(#REF!,\"EWlqLEiHABE=\")","v":{"$error":"#REF!"}},{"$f":"AND(#REF!,\"EWlqLEiHABI=\")","v":{"$error":"#REF!"}},{"$f":"AND(#REF!,\"EWlqLEiHABM=\")","v":{"$error":"#REF!"}},{"$f":"AND(#REF!,\"EWlqLEiHABQ=\")","v":{"$error":"#REF!"}},{"$f":"AND(#REF!,\"EWlqLEiHABU=\")","v":{"$error":"#REF!"}},{"$f":"AND(#REF!,\"EWlqLEiHABY=\")","v":{"$error":"#REF!"}},{"$f":"AND(#REF!,\"EWlqLEiHABc=\")","v":{"$error":"#REF!"}},{"$f":"AND(#REF!,\"EWlqLEiHABg=\")","v":{"$error":"#REF!"}},{"$f":"AND(#REF!,\"EWlqLEiHABk=\")","v":{"$error":"#REF!"}},{"$f":"AND(#REF!,\"EWlqLEiHABo=\")","v":{"$error":"#REF!"}},{"$f":"AND(#REF!,\"EWlqLEiHABs=\")","v":{"$error":"#REF!"}},{"$f":"AND(#REF!,\"EWlqLEiHABw=\")","v":{"$error":"#REF!"}},{"$f":"AND(#REF!,\"EWlqLEiHAB0=\")","v":{"$error":"#REF!"}},{"$f":"AND(#REF!,\"EWlqLEiHAB4=\")","v":{"$error":"#REF!"}},{"$f":"AND(#REF!,\"EWlqLEiHAB8=\")","v":{"$error":"#REF!"}},{"$f":"AND(#REF!,\"EWlqLEiHACA=\")","v":{"$error":"#REF!"}},{"$f":"AND(#REF!,\"EWlqLEiHACE=\")","v":{"$error":"#REF!"}},{"$f":"AND(#REF!,\"EWlqLEiHACI=\")","v":{"$error":"#REF!"}},{"$f":"AND(#REF!,\"EWlqLEiHACM=\")","v":{"$error":"#REF!"}},{"$f":"AND(#REF!,\"EWlqLEiHACQ=\")","v":{"$error":"#REF!"}},{"$f":"AND(#REF!,\"EWlqLEiHACU=\")","v":{"$error":"#REF!"}},{"$f":"AND(#REF!,\"EWlqLEiHACY=\")","v":{"$error":"#REF!"}},{"$f":"AND(#REF!,\"EWlqLEiHACc=\")","v":{"$error":"#REF!"}},{"$f":"AND(#REF!,\"EWlqLEiHACg=\")","v":{"$error":"#REF!"}},{"$f":"AND(#REF!,\"EWlqLEiHACk=\")","v":{"$error":"#REF!"}},{"$f":"AND(#REF!,\"EWlqLEiHACo=\")","v":{"$error":"#REF!"}},{"$f":"AND(#REF!,\"EWlqLEiHACs=\")","v":{"$error":"#REF!"}},{"$f":"AND(#REF!,\"EWlqLEiHACw=\")","v":{"$error":"#REF!"}},{"$f":"AND(#REF!,\"EWlqLEiHAC0=\")","v":{"$error":"#REF!"}},{"$f":"AND(#REF!,\"EWlqLEiHAC4=\")","v":{"$error":"#REF!"}},{"$f":"AND(#REF!,\"EWlqLEiHAC8=\")","v":{"$error":"#REF!"}},{"$f":"AND(#REF!,\"EWlqLEiHADA=\")","v":{"$error":"#REF!"}},{"$f":"AND(#REF!,\"EWlqLEiHADE=\")","v":{"$error":"#REF!"}},{"$f":"AND(#REF!,\"EWlqLEiHADI=\")","v":{"$error":"#REF!"}},{"$f":"AND(#REF!,\"EWlqLEiHADM=\")","v":{"$error":"#REF!"}},{"$f":"AND(#REF!,\"EWlqLEiHADQ=\")","v":{"$error":"#REF!"}},{"$f":"AND(#REF!,\"EWlqLEiHADU=\")","v":{"$error":"#REF!"}},{"$f":"AND(#REF!,\"EWlqLEiHADY=\")","v":{"$error":"#REF!"}},{"$f":"AND(#REF!,\"EWlqLEiHADc=\")","v":{"$error":"#REF!"}},{"$f":"AND(#REF!,\"EWlqLEiHADg=\")","v":{"$error":"#REF!"}},{"$f":"AND(#REF!,\"EWlqLEiHADk=\")","v":{"$error":"#REF!"}},{"$f":"AND(#REF!,\"EWlqLEiHADo=\")","v":{"$error":"#REF!"}},{"$f":"AND(#REF!,\"EWlqLEiHADs=\")","v":{"$error":"#REF!"}},{"$f":"AND(#REF!,\"EWlqLEiHADw=\")","v":{"$error":"#REF!"}},{"$f":"AND(#REF!,\"EWlqLEiHAD0=\")","v":{"$error":"#REF!"}},{"$f":"AND(#REF!,\"EWlqLEiHAD4=\")","v":{"$error":"#REF!"}},{"$f":"AND(#REF!,\"EWlqLEiHAD8=\")","v":{"$error":"#REF!"}},{"$f":"AND(#REF!,\"EWlqLEiHAEA=\")","v":{"$error":"#REF!"}},{"$f":"AND(#REF!,\"EWlqLEiHAEE=\")","v":{"$error":"#REF!"}},{"$f":"AND(#REF!,\"EWlqLEiHAEI=\")","v":{"$error":"#REF!"}},{"$f":"AND(#REF!,\"EWlqLEiHAEM=\")","v":{"$error":"#REF!"}},{"$f":"AND(#REF!,\"EWlqLEiHAEQ=\")","v":{"$error":"#REF!"}},{"$f":"AND(#REF!,\"EWlqLEiHAEU=\")","v":{"$error":"#REF!"}},{"$f":"AND(#REF!,\"EWlqLEiHAEY=\")","v":{"$error":"#REF!"}},{"$f":"AND(#REF!,\"EWlqLEiHAEc=\")","v":{"$error":"#REF!"}},{"$f":"AND(#REF!,\"EWlqLEiHAEg=\")","v":{"$error":"#REF!"}},{"$f":"AND(#REF!,\"EWlqLEiHAEk=\")","v":{"$error":"#REF!"}},{"$f":"AND(#REF!,\"EWlqLEiHAEo=\")","v":{"$error":"#REF!"}},{"$f":"AND(#REF!,\"EWlqLEiHAEs=\")","v":{"$error":"#REF!"}},{"$f":"AND(#REF!,\"EWlqLEiHAEw=\")","v":{"$error":"#REF!"}},{"$f":"AND(#REF!,\"EWlqLEiHAE0=\")","v":{"$error":"#REF!"}},{"$f":"AND(#REF!,\"EWlqLEiHAE4=\")","v":{"$error":"#REF!"}},{"$f":"AND(#REF!,\"EWlqLEiHAE8=\")","v":{"$error":"#REF!"}},{"$f":"AND(#REF!,\"EWlqLEiHAFA=\")","v":{"$error":"#REF!"}},{"$f":"AND(#REF!,\"EWlqLEiHAFE=\")","v":{"$error":"#REF!"}},{"$f":"AND(#REF!,\"EWlqLEiHAFI=\")","v":{"$error":"#REF!"}},{"$f":"AND(#REF!,\"EWlqLEiHAFM=\")","v":{"$error":"#REF!"}},{"$f":"AND(#REF!,\"EWlqLEiHAFQ=\")","v":{"$error":"#REF!"}},{"$f":"AND(#REF!,\"EWlqLEiHAFU=\")","v":{"$error":"#REF!"}},{"$f":"AND(#REF!,\"EWlqLEiHAFY=\")","v":{"$error":"#REF!"}},{"$f":"AND(#REF!,\"EWlqLEiHAFc=\")","v":{"$error":"#REF!"}},{"$f":"AND(#REF!,\"EWlqLEiHAFg=\")","v":{"$error":"#REF!"}},{"$f":"AND(#REF!,\"EWlqLEiHAFk=\")","v":{"$error":"#REF!"}},{"$f":"AND(#REF!,\"EWlqLEiHAFo=\")","v":{"$error":"#REF!"}},{"$f":"AND(#REF!,\"EWlqLEiHAFs=\")","v":{"$error":"#REF!"}},{"$f":"AND(#REF!,\"EWlqLEiHAFw=\")","v":{"$error":"#REF!"}},{"$f":"AND(#REF!,\"EWlqLEiHAF0=\")","v":{"$error":"#REF!"}},{"$f":"AND(#REF!,\"EWlqLEiHAF4=\")","v":{"$error":"#REF!"}},{"$f":"AND(#REF!,\"EWlqLEiHAF8=\")","v":{"$error":"#REF!"}},{"$f":"AND(#REF!,\"EWlqLEiHAGA=\")","v":{"$error":"#REF!"}},{"$f":"AND(#REF!,\"EWlqLEiHAGE=\")","v":{"$error":"#REF!"}},{"$f":"AND(#REF!,\"EWlqLEiHAGI=\")","v":{"$error":"#REF!"}},{"$f":"AND(#REF!,\"EWlqLEiHAGM=\")","v":{"$error":"#REF!"}},{"$f":"AND(#REF!,\"EWlqLEiHAGQ=\")","v":{"$error":"#REF!"}},{"$f":"AND(#REF!,\"EWlqLEiHAGU=\")","v":{"$error":"#REF!"}},{"$f":"AND(#REF!,\"EWlqLEiHAGY=\")","v":{"$error":"#REF!"}},{"$f":"AND(#REF!,\"EWlqLEiHAGc=\")","v":{"$error":"#REF!"}},{"$f":"AND(#REF!,\"EWlqLEiHAGg=\")","v":{"$error":"#REF!"}},{"$f":"AND(#REF!,\"EWlqLEiHAGk=\")","v":{"$error":"#REF!"}},{"$f":"AND(#REF!,\"EWlqLEiHAGo=\")","v":{"$error":"#REF!"}},{"$f":"AND(#REF!,\"EWlqLEiHAGs=\")","v":{"$error":"#REF!"}},{"$f":"AND(#REF!,\"EWlqLEiHAGw=\")","v":{"$error":"#REF!"}},{"$f":"AND(#REF!,\"EWlqLEiHAG0=\")","v":{"$error":"#REF!"}},{"$f":"AND(#REF!,\"EWlqLEiHAG4=\")","v":{"$error":"#REF!"}},{"$f":"AND(#REF!,\"EWlqLEiHAG8=\")","v":{"$error":"#REF!"}},{"$f":"AND(#REF!,\"EWlqLEiHAHA=\")","v":{"$error":"#REF!"}},{"$f":"AND(#REF!,\"EWlqLEiHAHE=\")","v":{"$error":"#REF!"}},{"$f":"AND(#REF!,\"EWlqLEiHAHI=\")","v":{"$error":"#REF!"}},{"$f":"AND(#REF!,\"EWlqLEiHAHM=\")","v":{"$error":"#REF!"}},{"$f":"AND(#REF!,\"EWlqLEiHAHQ=\")","v":{"$error":"#REF!"}},{"$f":"AND(#REF!,\"EWlqLEiHAHU=\")","v":{"$error":"#REF!"}},{"$f":"AND(#REF!,\"EWlqLEiHAHY=\")","v":{"$error":"#REF!"}},{"$f":"AND(#REF!,\"EWlqLEiHAHc=\")","v":{"$error":"#REF!"}},{"$f":"AND(#REF!,\"EWlqLEiHAHg=\")","v":{"$error":"#REF!"}},{"$f":"AND(#REF!,\"EWlqLEiHAHk=\")","v":{"$error":"#REF!"}},{"$f":"AND(#REF!,\"EWlqLEiHAHo=\")","v":{"$error":"#REF!"}},{"$f":"AND(#REF!,\"EWlqLEiHAHs=\")","v":{"$error":"#REF!"}},{"$f":"AND(#REF!,\"EWlqLEiHAHw=\")","v":{"$error":"#REF!"}},{"$f":"AND(#REF!,\"EWlqLEiHAH0=\")","v":{"$error":"#REF!"}},{"$f":"AND(#REF!,\"EWlqLEiHAH4=\")","v":{"$error":"#REF!"}},{"$f":"AND(#REF!,\"EWlqLEiHAH8=\")","v":{"$error":"#REF!"}},{"$f":"AND(#REF!,\"EWlqLEiHAIA=\")","v":{"$error":"#REF!"}},{"$f":"AND(#REF!,\"EWlqLEiHAIE=\")","v":{"$error":"#REF!"}},{"$f":"AND(#REF!,\"EWlqLEiHAII=\")","v":{"$error":"#REF!"}},{"$f":"AND(#REF!,\"EWlqLEiHAIM=\")","v":{"$error":"#REF!"}},{"$f":"AND(#REF!,\"EWlqLEiHAIQ=\")","v":{"$error":"#REF!"}},{"$f":"AND(#REF!,\"EWlqLEiHAIU=\")","v":{"$error":"#REF!"}},{"$f":"AND(#REF!,\"EWlqLEiHAIY=\")","v":{"$error":"#REF!"}},{"$f":"AND(#REF!,\"EWlqLEiHAIc=\")","v":{"$error":"#REF!"}},{"$f":"AND(#REF!,\"EWlqLEiHAIg=\")","v":{"$error":"#REF!"}},{"$f":"IF(#REF!,\"EWlqLEiHAIk=\",0)","v":{"$error":"#REF!"}},{"$f":"AND(#REF!,\"EWlqLEiHAIo=\")","v":{"$error":"#REF!"}},{"$f":"AND(#REF!,\"EWlqLEiHAIs=\")","v":{"$error":"#REF!"}},{"$f":"AND(#REF!,\"EWlqLEiHAIw=\")","v":{"$error":"#REF!"}},{"$f":"AND(#REF!,\"EWlqLEiHAI0=\")","v":{"$error":"#REF!"}},{"$f":"AND(#REF!,\"EWlqLEiHAI4=\")","v":{"$error":"#REF!"}},{"$f":"AND(#REF!,\"EWlqLEiHAI8=\")","v":{"$error":"#REF!"}},{"$f":"AND(#REF!,\"EWlqLEiHAJA=\")","v":{"$error":"#REF!"}},{"$f":"AND(#REF!,\"EWlqLEiHAJE=\")","v":{"$error":"#REF!"}},{"$f":"AND(#REF!,\"EWlqLEiHAJI=\")","v":{"$error":"#REF!"}},{"$f":"AND(#REF!,\"EWlqLEiHAJM=\")","v":{"$error":"#REF!"}},{"$f":"AND(#REF!,\"EWlqLEiHAJQ=\")","v":{"$error":"#REF!"}},{"$f":"AND(#REF!,\"EWlqLEiHAJU=\")","v":{"$error":"#REF!"}},{"$f":"AND(#REF!,\"EWlqLEiHAJY=\")","v":{"$error":"#REF!"}},{"$f":"AND(#REF!,\"EWlqLEiHAJc=\")","v":{"$error":"#REF!"}},{"$f":"AND(#REF!,\"EWlqLEiHAJg=\")","v":{"$error":"#REF!"}},{"$f":"AND(#REF!,\"EWlqLEiHAJk=\")","v":{"$error":"#REF!"}},{"$f":"AND(#REF!,\"EWlqLEiHAJo=\")","v":{"$error":"#REF!"}},{"$f":"AND(#REF!,\"EWlqLEiHAJs=\")","v":{"$error":"#REF!"}},{"$f":"AND(#REF!,\"EWlqLEiHAJw=\")","v":{"$error":"#REF!"}},{"$f":"AND(#REF!,\"EWlqLEiHAJ0=\")","v":{"$error":"#REF!"}},{"$f":"AND(#REF!,\"EWlqLEiHAJ4=\")","v":{"$error":"#REF!"}},{"$f":"AND(#REF!,\"EWlqLEiHAJ8=\")","v":{"$error":"#REF!"}},{"$f":"AND(#REF!,\"EWlqLEiHAKA=\")","v":{"$error":"#REF!"}},{"$f":"AND(#REF!,\"EWlqLEiHAKE=\")","v":{"$error":"#REF!"}},{"$f":"AND(#REF!,\"EWlqLEiHAKI=\")","v":{"$error":"#REF!"}},{"$f":"AND(#REF!,\"EWlqLEiHAKM=\")","v":{"$error":"#REF!"}},{"$f":"AND(#REF!,\"EWlqLEiHAKQ=\")","v":{"$error":"#REF!"}},{"$f":"AND(#REF!,\"EWlqLEiHAKU=\")","v":{"$error":"#REF!"}},{"$f":"AND(#REF!,\"EWlqLEiHAKY=\")","v":{"$error":"#REF!"}},{"$f":"AND(#REF!,\"EWlqLEiHAKc=\")","v":{"$error":"#REF!"}},{"$f":"AND(#REF!,\"EWlqLEiHAKg=\")","v":{"$error":"#REF!"}},{"$f":"AND(#REF!,\"EWlqLEiHAKk=\")","v":{"$error":"#REF!"}},{"$f":"AND(#REF!,\"EWlqLEiHAKo=\")","v":{"$error":"#REF!"}},{"$f":"AND(#REF!,\"EWlqLEiHAKs=\")","v":{"$error":"#REF!"}},{"$f":"AND(#REF!,\"EWlqLEiHAKw=\")","v":{"$error":"#REF!"}},{"$f":"AND(#REF!,\"EWlqLEiHAK0=\")","v":{"$error":"#REF!"}},{"$f":"AND(#REF!,\"EWlqLEiHAK4=\")","v":{"$error":"#REF!"}},{"$f":"AND(#REF!,\"EWlqLEiHAK8=\")","v":{"$error":"#REF!"}},{"$f":"AND(#REF!,\"EWlqLEiHALA=\")","v":{"$error":"#REF!"}},{"$f":"AND(#REF!,\"EWlqLEiHALE=\")","v":{"$error":"#REF!"}},{"$f":"AND(#REF!,\"EWlqLEiHALI=\")","v":{"$error":"#REF!"}},{"$f":"AND(#REF!,\"EWlqLEiHALM=\")","v":{"$error":"#REF!"}},{"$f":"AND(#REF!,\"EWlqLEiHALQ=\")","v":{"$error":"#REF!"}},{"$f":"AND(#REF!,\"EWlqLEiHALU=\")","v":{"$error":"#REF!"}},{"$f":"AND(#REF!,\"EWlqLEiHALY=\")","v":{"$error":"#REF!"}},{"$f":"AND(#REF!,\"EWlqLEiHALc=\")","v":{"$error":"#REF!"}},{"$f":"AND(#REF!,\"EWlqLEiHALg=\")","v":{"$error":"#REF!"}},{"$f":"AND(#REF!,\"EWlqLEiHALk=\")","v":{"$error":"#REF!"}},{"$f":"AND(#REF!,\"EWlqLEiHALo=\")","v":{"$error":"#REF!"}},{"$f":"AND(#REF!,\"EWlqLEiHALs=\")","v":{"$error":"#REF!"}},{"$f":"AND(#REF!,\"EWlqLEiHALw=\")","v":{"$error":"#REF!"}},{"$f":"AND(#REF!,\"EWlqLEiHAL0=\")","v":{"$error":"#REF!"}},{"$f":"AND(#REF!,\"EWlqLEiHAL4=\")","v":{"$error":"#REF!"}},{"$f":"AND(#REF!,\"EWlqLEiHAL8=\")","v":{"$error":"#REF!"}},{"$f":"AND(#REF!,\"EWlqLEiHAMA=\")","v":{"$error":"#REF!"}},{"$f":"AND(#REF!,\"EWlqLEiHAME=\")","v":{"$error":"#REF!"}},{"$f":"AND(#REF!,\"EWlqLEiHAMI=\")","v":{"$error":"#REF!"}},{"$f":"AND(#REF!,\"EWlqLEiHAMM=\")","v":{"$error":"#REF!"}},{"$f":"AND(#REF!,\"EWlqLEiHAMQ=\")","v":{"$error":"#REF!"}},{"$f":"AND(#REF!,\"EWlqLEiHAMU=\")","v":{"$error":"#REF!"}},{"$f":"AND(#REF!,\"EWlqLEiHAMY=\")","v":{"$error":"#REF!"}},{"$f":"AND(#REF!,\"EWlqLEiHAMc=\")","v":{"$error":"#REF!"}},{"$f":"AND(#REF!,\"EWlqLEiHAMg=\")","v":{"$error":"#REF!"}},{"$f":"AND(#REF!,\"EWlqLEiHAMk=\")","v":{"$error":"#REF!"}},{"$f":"AND(#REF!,\"EWlqLEiHAMo=\")","v":{"$error":"#REF!"}},{"$f":"AND(#REF!,\"EWlqLEiHAMs=\")","v":{"$error":"#REF!"}},{"$f":"AND(#REF!,\"EWlqLEiHAMw=\")","v":{"$error":"#REF!"}},{"$f":"AND(#REF!,\"EWlqLEiHAM0=\")","v":{"$error":"#REF!"}},{"$f":"AND(#REF!,\"EWlqLEiHAM4=\")","v":{"$error":"#REF!"}},{"$f":"AND(#REF!,\"EWlqLEiHAM8=\")","v":{"$error":"#REF!"}},{"$f":"AND(#REF!,\"EWlqLEiHANA=\")","v":{"$error":"#REF!"}},{"$f":"AND(#REF!,\"EWlqLEiHANE=\")","v":{"$error":"#REF!"}},{"$f":"AND(#REF!,\"EWlqLEiHANI=\")","v":{"$error":"#REF!"}},{"$f":"AND(#REF!,\"EWlqLEiHANM=\")","v":{"$error":"#REF!"}},{"$f":"AND(#REF!,\"EWlqLEiHANQ=\")","v":{"$error":"#REF!"}},{"$f":"AND(#REF!,\"EWlqLEiHANU=\")","v":{"$error":"#REF!"}},{"$f":"AND(#REF!,\"EWlqLEiHANY=\")","v":{"$error":"#REF!"}},{"$f":"AND(#REF!,\"EWlqLEiHANc=\")","v":{"$error":"#REF!"}},{"$f":"AND(#REF!,\"EWlqLEiHANg=\")","v":{"$error":"#REF!"}},{"$f":"AND(#REF!,\"EWlqLEiHANk=\")","v":{"$error":"#REF!"}},{"$f":"AND(#REF!,\"EWlqLEiHANo=\")","v":{"$error":"#REF!"}},{"$f":"AND(#REF!,\"EWlqLEiHANs=\")","v":{"$error":"#REF!"}},{"$f":"AND(#REF!,\"EWlqLEiHANw=\")","v":{"$error":"#REF!"}},{"$f":"AND(#REF!,\"EWlqLEiHAN0=\")","v":{"$error":"#REF!"}},{"$f":"AND(#REF!,\"EWlqLEiHAN4=\")","v":{"$error":"#REF!"}},{"$f":"AND(#REF!,\"EWlqLEiHAN8=\")","v":{"$error":"#REF!"}},{"$f":"AND(#REF!,\"EWlqLEiHAOA=\")","v":{"$error":"#REF!"}},{"$f":"AND(#REF!,\"EWlqLEiHAOE=\")","v":{"$error":"#REF!"}},{"$f":"AND(#REF!,\"EWlqLEiHAOI=\")","v":{"$error":"#REF!"}},{"$f":"AND(#REF!,\"EWlqLEiHAOM=\")","v":{"$error":"#REF!"}},{"$f":"AND(#REF!,\"EWlqLEiHAOQ=\")","v":{"$error":"#REF!"}},{"$f":"AND(#REF!,\"EWlqLEiHAOU=\")","v":{"$error":"#REF!"}},{"$f":"AND(#REF!,\"EWlqLEiHAOY=\")","v":{"$error":"#REF!"}},{"$f":"AND(#REF!,\"EWlqLEiHAOc=\")","v":{"$error":"#REF!"}},{"$f":"AND(#REF!,\"EWlqLEiHAOg=\")","v":{"$error":"#REF!"}},{"$f":"AND(#REF!,\"EWlqLEiHAOk=\")","v":{"$error":"#REF!"}},{"$f":"AND(#REF!,\"EWlqLEiHAOo=\")","v":{"$error":"#REF!"}},{"$f":"AND(#REF!,\"EWlqLEiHAOs=\")","v":{"$error":"#REF!"}},{"$f":"AND(#REF!,\"EWlqLEiHAOw=\")","v":{"$error":"#REF!"}},{"$f":"AND(#REF!,\"EWlqLEiHAO0=\")","v":{"$error":"#REF!"}},{"$f":"AND(#REF!,\"EWlqLEiHAO4=\")","v":{"$error":"#REF!"}},{"$f":"AND(#REF!,\"EWlqLEiHAO8=\")","v":{"$error":"#REF!"}},{"$f":"AND(#REF!,\"EWlqLEiHAPA=\")","v":{"$error":"#REF!"}},{"$f":"AND(#REF!,\"EWlqLEiHAPE=\")","v":{"$error":"#REF!"}},{"$f":"AND(#REF!,\"EWlqLEiHAPI=\")","v":{"$error":"#REF!"}},{"$f":"AND(#REF!,\"EWlqLEiHAPM=\")","v":{"$error":"#REF!"}},{"$f":"AND(#REF!,\"EWlqLEiHAPQ=\")","v":{"$error":"#REF!"}},{"$f":"AND(#REF!,\"EWlqLEiHAPU=\")","v":{"$error":"#REF!"}},{"$f":"AND(#REF!,\"EWlqLEiHAPY=\")","v":{"$error":"#REF!"}},{"$f":"AND(#REF!,\"EWlqLEiHAPc=\")","v":{"$error":"#REF!"}},{"$f":"AND(#REF!,\"EWlqLEiHAPg=\")","v":{"$error":"#REF!"}},{"$f":"AND(#REF!,\"EWlqLEiHAPk=\")","v":{"$error":"#REF!"}},{"$f":"AND(#REF!,\"EWlqLEiHAPo=\")","v":{"$error":"#REF!"}},{"$f":"AND(#REF!,\"EWlqLEiHAPs=\")","v":{"$error":"#REF!"}},{"$f":"AND(#REF!,\"EWlqLEiHAPw=\")","v":{"$error":"#REF!"}},{"$f":"AND(#REF!,\"EWlqLEiHAP0=\")","v":{"$error":"#REF!"}},{"$f":"AND(#REF!,\"EWlqLEiHAP4=\")","v":{"$error":"#REF!"}},{"$f":"AND(#REF!,\"EWlqLEiHAP8=\")","v":{"$error":"#REF!"}}]
[{"$f":"AND(#REF!,\"WgtSVAK7hAA=\")","v":{"$error":"#REF!"}},{"$f":"AND(#REF!,\"WgtSVAK7hAE=\")","v":{"$error":"#REF!"}},{"$f":"AND(#REF!,\"WgtSVAK7hAI=\")","v":{"$error":"#REF!"}},{"$f":"AND(#REF!,\"WgtSVAK7hAM=\")","v":{"$error":"#REF!"}},{"$f":"AND(#REF!,\"WgtSVAK7hAQ=\")","v":{"$error":"#REF!"}},{"$f":"AND(#REF!,\"WgtSVAK7hAU=\")","v":{"$error":"#REF!"}},{"$f":"AND(#REF!,\"WgtSVAK7hAY=\")","v":{"$error":"#REF!"}},{"$f":"AND(#REF!,\"WgtSVAK7hAc=\")","v":{"$error":"#REF!"}},{"$f":"AND(#REF!,\"WgtSVAK7hAg=\")","v":{"$error":"#REF!"}},{"$f":"AND(#REF!,\"WgtSVAK7hAk=\")","v":{"$error":"#REF!"}},{"$f":"AND(#REF!,\"WgtSVAK7hAo=\")","v":{"$error":"#REF!"}},{"$f":"AND(#REF!,\"WgtSVAK7hAs=\")","v":{"$error":"#REF!"}},{"$f":"AND(#REF!,\"WgtSVAK7hAw=\")","v":{"$error":"#REF!"}},{"$f":"AND(#REF!,\"WgtSVAK7hA0=\")","v":{"$error":"#REF!"}},{"$f":"AND(#REF!,\"WgtSVAK7hA4=\")","v":{"$error":"#REF!"}},{"$f":"AND(#REF!,\"WgtSVAK7hA8=\")","v":{"$error":"#REF!"}},{"$f":"AND(#REF!,\"WgtSVAK7hBA=\")","v":{"$error":"#REF!"}},{"$f":"AND(#REF!,\"WgtSVAK7hBE=\")","v":{"$error":"#REF!"}},{"$f":"AND(#REF!,\"WgtSVAK7hBI=\")","v":{"$error":"#REF!"}},{"$f":"AND(#REF!,\"WgtSVAK7hBM=\")","v":{"$error":"#REF!"}},{"$f":"AND(#REF!,\"WgtSVAK7hBQ=\")","v":{"$error":"#REF!"}},{"$f":"AND(#REF!,\"WgtSVAK7hBU=\")","v":{"$error":"#REF!"}},{"$f":"AND(#REF!,\"WgtSVAK7hBY=\")","v":{"$error":"#REF!"}},{"$f":"AND(#REF!,\"WgtSVAK7hBc=\")","v":{"$error":"#REF!"}},{"$f":"AND(#REF!,\"WgtSVAK7hBg=\")","v":{"$error":"#REF!"}},{"$f":"AND(#REF!,\"WgtSVAK7hBk=\")","v":{"$error":"#REF!"}},{"$f":"AND(#REF!,\"WgtSVAK7hBo=\")","v":{"$error":"#REF!"}},{"$f":"AND(#REF!,\"WgtSVAK7hBs=\")","v":{"$error":"#REF!"}},{"$f":"AND(#REF!,\"WgtSVAK7hBw=\")","v":{"$error":"#REF!"}},{"$f":"AND(#REF!,\"WgtSVAK7hB0=\")","v":{"$error":"#REF!"}},{"$f":"AND(#REF!,\"WgtSVAK7hB4=\")","v":{"$error":"#REF!"}},{"$f":"AND(#REF!,\"WgtSVAK7hB8=\")","v":{"$error":"#REF!"}},{"$f":"AND(#REF!,\"WgtSVAK7hCA=\")","v":{"$error":"#REF!"}},{"$f":"AND(#REF!,\"WgtSVAK7hCE=\")","v":{"$error":"#REF!"}},{"$f":"AND(#REF!,\"WgtSVAK7hCI=\")","v":{"$error":"#REF!"}},{"$f":"AND(#REF!,\"WgtSVAK7hCM=\")","v":{"$error":"#REF!"}},{"$f":"AND(#REF!,\"WgtSVAK7hCQ=\")","v":{"$error":"#REF!"}},{"$f":"AND(#REF!,\"WgtSVAK7hCU=\")","v":{"$error":"#REF!"}},{"$f":"AND(#REF!,\"WgtSVAK7hCY=\")","v":{"$error":"#REF!"}},{"$f":"AND(#REF!,\"WgtSVAK7hCc=\")","v":{"$error":"#REF!"}},{"$f":"AND(#REF!,\"WgtSVAK7hCg=\")","v":{"$error":"#REF!"}},{"$f":"AND(#REF!,\"WgtSVAK7hCk=\")","v":{"$error":"#REF!"}},{"$f":"AND(#REF!,\"WgtSVAK7hCo=\")","v":{"$error":"#REF!"}},{"$f":"AND(#REF!,\"WgtSVAK7hCs=\")","v":{"$error":"#REF!"}},{"$f":"AND(#REF!,\"WgtSVAK7hCw=\")","v":{"$error":"#REF!"}},{"$f":"AND(#REF!,\"WgtSVAK7hC0=\")","v":{"$error":"#REF!"}},{"$f":"AND(#REF!,\"WgtSVAK7hC4=\")","v":{"$error":"#REF!"}},{"$f":"AND(#REF!,\"WgtSVAK7hC8=\")","v":{"$error":"#REF!"}},{"$f":"AND(#REF!,\"WgtSVAK7hDA=\")","v":{"$error":"#REF!"}},{"$f":"AND(#REF!,\"WgtSVAK7hDE=\")","v":{"$error":"#REF!"}},{"$f":"AND(#REF!,\"WgtSVAK7hDI=\")","v":{"$error":"#REF!"}},{"$f":"AND(#REF!,\"WgtSVAK7hDM=\")","v":{"$error":"#REF!"}},{"$f":"AND(#REF!,\"WgtSVAK7hDQ=\")","v":{"$error":"#REF!"}},{"$f":"AND(#REF!,\"WgtSVAK7hDU=\")","v":{"$error":"#REF!"}},{"$f":"AND(#REF!,\"WgtSVAK7hDY=\")","v":{"$error":"#REF!"}},{"$f":"AND(#REF!,\"WgtSVAK7hDc=\")","v":{"$error":"#REF!"}},{"$f":"AND(#REF!,\"WgtSVAK7hDg=\")","v":{"$error":"#REF!"}},{"$f":"AND(#REF!,\"WgtSVAK7hDk=\")","v":{"$error":"#REF!"}},{"$f":"AND(#REF!,\"WgtSVAK7hDo=\")","v":{"$error":"#REF!"}},{"$f":"AND(#REF!,\"WgtSVAK7hDs=\")","v":{"$error":"#REF!"}},{"$f":"AND(#REF!,\"WgtSVAK7hDw=\")","v":{"$error":"#REF!"}},{"$f":"AND(#REF!,\"WgtSVAK7hD0=\")","v":{"$error":"#REF!"}},{"$f":"AND(#REF!,\"WgtSVAK7hD4=\")","v":{"$error":"#REF!"}},{"$f":"AND(#REF!,\"WgtSVAK7hD8=\")","v":{"$error":"#REF!"}},{"$f":"AND(#REF!,\"WgtSVAK7hEA=\")","v":{"$error":"#REF!"}},{"$f":"AND(#REF!,\"WgtSVAK7hEE=\")","v":{"$error":"#REF!"}},{"$f":"AND(#REF!,\"WgtSVAK7hEI=\")","v":{"$error":"#REF!"}},{"$f":"AND(#REF!,\"WgtSVAK7hEM=\")","v":{"$error":"#REF!"}},{"$f":"AND(#REF!,\"WgtSVAK7hEQ=\")","v":{"$error":"#REF!"}},{"$f":"AND(#REF!,\"WgtSVAK7hEU=\")","v":{"$error":"#REF!"}},{"$f":"AND(#REF!,\"WgtSVAK7hEY=\")","v":{"$error":"#REF!"}},{"$f":"AND(#REF!,\"WgtSVAK7hEc=\")","v":{"$error":"#REF!"}},{"$f":"AND(#REF!,\"WgtSVAK7hEg=\")","v":{"$error":"#REF!"}},{"$f":"AND(#REF!,\"WgtSVAK7hEk=\")","v":{"$error":"#REF!"}},{"$f":"AND(#REF!,\"WgtSVAK7hEo=\")","v":{"$error":"#REF!"}},{"$f":"AND(#REF!,\"WgtSVAK7hEs=\")","v":{"$error":"#REF!"}},{"$f":"AND(#REF!,\"WgtSVAK7hEw=\")","v":{"$error":"#REF!"}},{"$f":"AND(#REF!,\"WgtSVAK7hE0=\")","v":{"$error":"#REF!"}},{"$f":"AND(#REF!,\"WgtSVAK7hE4=\")","v":{"$error":"#REF!"}},{"$f":"AND(#REF!,\"WgtSVAK7hE8=\")","v":{"$error":"#REF!"}},{"$f":"IF(#REF!,\"WgtSVAK7hFA=\",0)","v":{"$error":"#REF!"}},{"$f":"AND(#REF!,\"WgtSVAK7hFE=\")","v":{"$error":"#REF!"}},{"$f":"AND(#REF!,\"WgtSVAK7hFI=\")","v":{"$error":"#REF!"}},{"$f":"AND(#REF!,\"WgtSVAK7hFM=\")","v":{"$error":"#REF!"}},{"$f":"AND(#REF!,\"WgtSVAK7hFQ=\")","v":{"$error":"#REF!"}},{"$f":"AND(#REF!,\"WgtSVAK7hFU=\")","v":{"$error":"#REF!"}},{"$f":"AND(#REF!,\"WgtSVAK7hFY=\")","v":{"$error":"#REF!"}},{"$f":"AND(#REF!,\"WgtSVAK7hFc=\")","v":{"$error":"#REF!"}},{"$f":"AND(#REF!,\"WgtSVAK7hFg=\")","v":{"$error":"#REF!"}},{"$f":"AND(#REF!,\"WgtSVAK7hFk=\")","v":{"$error":"#REF!"}},{"$f":"AND(#REF!,\"WgtSVAK7hFo=\")","v":{"$error":"#REF!"}},{"$f":"AND(#REF!,\"WgtSVAK7hFs=\")","v":{"$error":"#REF!"}},{"$f":"AND(#REF!,\"WgtSVAK7hFw=\")","v":{"$error":"#REF!"}},{"$f":"AND(#REF!,\"WgtSVAK7hF0=\")","v":{"$error":"#REF!"}},{"$f":"AND(#REF!,\"WgtSVAK7hF4=\")","v":{"$error":"#REF!"}},{"$f":"AND(#REF!,\"WgtSVAK7hF8=\")","v":{"$error":"#REF!"}},{"$f":"AND(#REF!,\"WgtSVAK7hGA=\")","v":{"$error":"#REF!"}},{"$f":"AND(#REF!,\"WgtSVAK7hGE=\")","v":{"$error":"#REF!"}},{"$f":"AND(#REF!,\"WgtSVAK7hGI=\")","v":{"$error":"#REF!"}},{"$f":"AND(#REF!,\"WgtSVAK7hGM=\")","v":{"$error":"#REF!"}},{"$f":"AND(#REF!,\"WgtSVAK7hGQ=\")","v":{"$error":"#REF!"}},{"$f":"AND(#REF!,\"WgtSVAK7hGU=\")","v":{"$error":"#REF!"}},{"$f":"AND(#REF!,\"WgtSVAK7hGY=\")","v":{"$error":"#REF!"}},{"$f":"AND(#REF!,\"WgtSVAK7hGc=\")","v":{"$error":"#REF!"}},{"$f":"AND(#REF!,\"WgtSVAK7hGg=\")","v":{"$error":"#REF!"}},{"$f":"AND(#REF!,\"WgtSVAK7hGk=\")","v":{"$error":"#REF!"}},{"$f":"AND(#REF!,\"WgtSVAK7hGo=\")","v":{"$error":"#REF!"}},{"$f":"AND(#REF!,\"WgtSVAK7hGs=\")","v":{"$error":"#REF!"}},{"$f":"AND(#REF!,\"WgtSVAK7hGw=\")","v":{"$error":"#REF!"}},{"$f":"AND(#REF!,\"WgtSVAK7hG0=\")","v":{"$error":"#REF!"}},{"$f":"AND(#REF!,\"WgtSVAK7hG4=\")","v":{"$error":"#REF!"}},{"$f":"AND(#REF!,\"WgtSVAK7hG8=\")","v":{"$error":"#REF!"}},{"$f":"AND(#REF!,\"WgtSVAK7hHA=\")","v":{"$error":"#REF!"}},{"$f":"AND(#REF!,\"WgtSVAK7hHE=\")","v":{"$error":"#REF!"}},{"$f":"AND(#REF!,\"WgtSVAK7hHI=\")","v":{"$error":"#REF!"}},{"$f":"AND(#REF!,\"WgtSVAK7hHM=\")","v":{"$error":"#REF!"}},{"$f":"AND(#REF!,\"WgtSVAK7hHQ=\")","v":{"$error":"#REF!"}},{"$f":"AND(#REF!,\"WgtSVAK7hHU=\")","v":{"$error":"#REF!"}},{"$f":"AND(#REF!,\"WgtSVAK7hHY=\")","v":{"$error":"#REF!"}},{"$f":"AND(#REF!,\"WgtSVAK7hHc=\")","v":{"$error":"#REF!"}},{"$f":"AND(#REF!,\"WgtSVAK7hHg=\")","v":{"$error":"#REF!"}},{"$f":"AND(#REF!,\"WgtSVAK7hHk=\")","v":{"$error":"#REF!"}},{"$f":"AND(#REF!,\"WgtSVAK7hHo=\")","v":{"$error":"#REF!"}},{"$f":"AND(#REF!,\"WgtSVAK7hHs=\")","v":{"$error":"#REF!"}},{"$f":"AND(#REF!,\"WgtSVAK7hHw=\")","v":{"$error":"#REF!"}},{"$f":"AND(#REF!,\"WgtSVAK7hH0=\")","v":{"$error":"#REF!"}},{"$f":"AND(#REF!,\"WgtSVAK7hH4=\")","v":{"$error":"#REF!"}},{"$f":"AND(#REF!,\"WgtSVAK7hH8=\")","v":{"$error":"#REF!"}},{"$f":"AND(#REF!,\"WgtSVAK7hIA=\")","v":{"$error":"#REF!"}},{"$f":"AND(#REF!,\"WgtSVAK7hIE=\")","v":{"$error":"#REF!"}},{"$f":"AND(#REF!,\"WgtSVAK7hII=\")","v":{"$error":"#REF!"}},{"$f":"AND(#REF!,\"WgtSVAK7hIM=\")","v":{"$error":"#REF!"}},{"$f":"AND(#REF!,\"WgtSVAK7hIQ=\")","v":{"$error":"#REF!"}},{"$f":"AND(#REF!,\"WgtSVAK7hIU=\")","v":{"$error":"#REF!"}},{"$f":"AND(#REF!,\"WgtSVAK7hIY=\")","v":{"$error":"#REF!"}},{"$f":"AND(#REF!,\"WgtSVAK7hIc=\")","v":{"$error":"#REF!"}},{"$f":"AND(#REF!,\"WgtSVAK7hIg=\")","v":{"$error":"#REF!"}},{"$f":"AND(#REF!,\"WgtSVAK7hIk=\")","v":{"$error":"#REF!"}},{"$f":"AND(#REF!,\"WgtSVAK7hIo=\")","v":{"$error":"#REF!"}},{"$f":"AND(#REF!,\"WgtSVAK7hIs=\")","v":{"$error":"#REF!"}},{"$f":"AND(#REF!,\"WgtSVAK7hIw=\")","v":{"$error":"#REF!"}},{"$f":"AND(#REF!,\"WgtSVAK7hI0=\")","v":{"$error":"#REF!"}},{"$f":"AND(#REF!,\"WgtSVAK7hI4=\")","v":{"$error":"#REF!"}},{"$f":"AND(#REF!,\"WgtSVAK7hI8=\")","v":{"$error":"#REF!"}},{"$f":"AND(#REF!,\"WgtSVAK7hJA=\")","v":{"$error":"#REF!"}},{"$f":"AND(#REF!,\"WgtSVAK7hJE=\")","v":{"$error":"#REF!"}},{"$f":"AND(#REF!,\"WgtSVAK7hJI=\")","v":{"$error":"#REF!"}},{"$f":"AND(#REF!,\"WgtSVAK7hJM=\")","v":{"$error":"#REF!"}},{"$f":"AND(#REF!,\"WgtSVAK7hJQ=\")","v":{"$error":"#REF!"}},{"$f":"AND(#REF!,\"WgtSVAK7hJU=\")","v":{"$error":"#REF!"}},{"$f":"AND(#REF!,\"WgtSVAK7hJY=\")","v":{"$error":"#REF!"}},{"$f":"AND(#REF!,\"WgtSVAK7hJc=\")","v":{"$error":"#REF!"}},{"$f":"AND(#REF!,\"WgtSVAK7hJg=\")","v":{"$error":"#REF!"}},{"$f":"AND(#REF!,\"WgtSVAK7hJk=\")","v":{"$error":"#REF!"}},{"$f":"AND(#REF!,\"WgtSVAK7hJo=\")","v":{"$error":"#REF!"}},{"$f":"AND(#REF!,\"WgtSVAK7hJs=\")","v":{"$error":"#REF!"}},{"$f":"AND(#REF!,\"WgtSVAK7hJw=\")","v":{"$error":"#REF!"}},{"$f":"AND(#REF!,\"WgtSVAK7hJ0=\")","v":{"$error":"#REF!"}},{"$f":"AND(#REF!,\"WgtSVAK7hJ4=\")","v":{"$error":"#REF!"}},{"$f":"AND(#REF!,\"WgtSVAK7hJ8=\")","v":{"$error":"#REF!"}},{"$f":"AND(#REF!,\"WgtSVAK7hKA=\")","v":{"$error":"#REF!"}},{"$f":"AND(#REF!,\"WgtSVAK7hKE=\")","v":{"$error":"#REF!"}},{"$f":"AND(#REF!,\"WgtSVAK7hKI=\")","v":{"$error":"#REF!"}},{"$f":"AND(#REF!,\"WgtSVAK7hKM=\")","v":{"$error":"#REF!"}},{"$f":"AND(#REF!,\"WgtSVAK7hKQ=\")","v":{"$error":"#REF!"}},{"$f":"AND(#REF!,\"WgtSVAK7hKU=\")","v":{"$error":"#REF!"}},{"$f":"AND(#REF!,\"WgtSVAK7hKY=\")","v":{"$error":"#REF!"}},{"$f":"AND(#REF!,\"WgtSVAK7hKc=\")","v":{"$error":"#REF!"}},{"$f":"AND(#REF!,\"WgtSVAK7hKg=\")","v":{"$error":"#REF!"}},{"$f":"AND(#REF!,\"WgtSVAK7hKk=\")","v":{"$error":"#REF!"}},{"$f":"AND(#REF!,\"WgtSVAK7hKo=\")","v":{"$error":"#REF!"}},{"$f":"AND(#REF!,\"WgtSVAK7hKs=\")","v":{"$error":"#REF!"}},{"$f":"AND(#REF!,\"WgtSVAK7hKw=\")","v":{"$error":"#REF!"}},{"$f":"AND(#REF!,\"WgtSVAK7hK0=\")","v":{"$error":"#REF!"}},{"$f":"AND(#REF!,\"WgtSVAK7hK4=\")","v":{"$error":"#REF!"}},{"$f":"AND(#REF!,\"WgtSVAK7hK8=\")","v":{"$error":"#REF!"}},{"$f":"AND(#REF!,\"WgtSVAK7hLA=\")","v":{"$error":"#REF!"}},{"$f":"AND(#REF!,\"WgtSVAK7hLE=\")","v":{"$error":"#REF!"}},{"$f":"AND(#REF!,\"WgtSVAK7hLI=\")","v":{"$error":"#REF!"}},{"$f":"AND(#REF!,\"WgtSVAK7hLM=\")","v":{"$error":"#REF!"}},{"$f":"AND(#REF!,\"WgtSVAK7hLQ=\")","v":{"$error":"#REF!"}},{"$f":"AND(#REF!,\"WgtSVAK7hLU=\")","v":{"$error":"#REF!"}},{"$f":"AND(#REF!,\"WgtSVAK7hLY=\")","v":{"$error":"#REF!"}},{"$f":"AND(#REF!,\"WgtSVAK7hLc=\")","v":{"$error":"#REF!"}},{"$f":"AND(#REF!,\"WgtSVAK7hLg=\")","v":{"$error":"#REF!"}},{"$f":"AND(#REF!,\"WgtSVAK7hLk=\")","v":{"$error":"#REF!"}},{"$f":"AND(#REF!,\"WgtSVAK7hLo=\")","v":{"$error":"#REF!"}},{"$f":"AND(#REF!,\"WgtSVAK7hLs=\")","v":{"$error":"#REF!"}},{"$f":"AND(#REF!,\"WgtSVAK7hLw=\")","v":{"$error":"#REF!"}},{"$f":"AND(#REF!,\"WgtSVAK7hL0=\")","v":{"$error":"#REF!"}},{"$f":"AND(#REF!,\"WgtSVAK7hL4=\")","v":{"$error":"#REF!"}},{"$f":"AND(#REF!,\"WgtSVAK7hL8=\")","v":{"$error":"#REF!"}},{"$f":"AND(#REF!,\"WgtSVAK7hMA=\")","v":{"$error":"#REF!"}},{"$f":"AND(#REF!,\"WgtSVAK7hME=\")","v":{"$error":"#REF!"}},{"$f":"AND(#REF!,\"WgtSVAK7hMI=\")","v":{"$error":"#REF!"}},{"$f":"AND(#REF!,\"WgtSVAK7hMM=\")","v":{"$error":"#REF!"}},{"$f":"AND(#REF!,\"WgtSVAK7hMQ=\")","v":{"$error":"#REF!"}},{"$f":"AND(#REF!,\"WgtSVAK7hMU=\")","v":{"$error":"#REF!"}},{"$f":"AND(#REF!,\"WgtSVAK7hMY=\")","v":{"$error":"#REF!"}},{"$f":"AND(#REF!,\"WgtSVAK7hMc=\")","v":{"$error":"#REF!"}},{"$f":"AND(#REF!,\"WgtSVAK7hMg=\")","v":{"$error":"#REF!"}},{"$f":"AND(#REF!,\"WgtSVAK7hMk=\")","v":{"$error":"#REF!"}},{"$f":"AND(#REF!,\"WgtSVAK7hMo=\")","v":{"$error":"#REF!"}},{"$f":"AND(#REF!,\"WgtSVAK7hMs=\")","v":{"$error":"#REF!"}},{"$f":"AND(#REF!,\"WgtSVAK7hMw=\")","v":{"$error":"#REF!"}},{"$f":"AND(#REF!,\"WgtSVAK7hM0=\")","v":{"$error":"#REF!"}},{"$f":"AND(#REF!,\"WgtSVAK7hM4=\")","v":{"$error":"#REF!"}},{"$f":"AND(#REF!,\"WgtSVAK7hM8=\")","v":{"$error":"#REF!"}},{"$f":"AND(#REF!,\"WgtSVAK7hNA=\")","v":{"$error":"#REF!"}},{"$f":"AND(#REF!,\"WgtSVAK7hNE=\")","v":{"$error":"#REF!"}},{"$f":"AND(#REF!,\"WgtSVAK7hNI=\")","v":{"$error":"#REF!"}},{"$f":"AND(#REF!,\"WgtSVAK7hNM=\")","v":{"$error":"#REF!"}},{"$f":"AND(#REF!,\"WgtSVAK7hNQ=\")","v":{"$error":"#REF!"}},{"$f":"AND(#REF!,\"WgtSVAK7hNU=\")","v":{"$error":"#REF!"}},{"$f":"AND(#REF!,\"WgtSVAK7hNY=\")","v":{"$error":"#REF!"}},{"$f":"AND(#REF!,\"WgtSVAK7hNc=\")","v":{"$error":"#REF!"}},{"$f":"AND(#REF!,\"WgtSVAK7hNg=\")","v":{"$error":"#REF!"}},{"$f":"AND(#REF!,\"WgtSVAK7hNk=\")","v":{"$error":"#REF!"}},{"$f":"AND(#REF!,\"WgtSVAK7hNo=\")","v":{"$error":"#REF!"}},{"$f":"AND(#REF!,\"WgtSVAK7hNs=\")","v":{"$error":"#REF!"}},{"$f":"AND(#REF!,\"WgtSVAK7hNw=\")","v":{"$error":"#REF!"}},{"$f":"AND(#REF!,\"WgtSVAK7hN0=\")","v":{"$error":"#REF!"}},{"$f":"AND(#REF!,\"WgtSVAK7hN4=\")","v":{"$error":"#REF!"}},{"$f":"AND(#REF!,\"WgtSVAK7hN8=\")","v":{"$error":"#REF!"}},{"$f":"AND(#REF!,\"WgtSVAK7hOA=\")","v":{"$error":"#REF!"}},{"$f":"AND(#REF!,\"WgtSVAK7hOE=\")","v":{"$error":"#REF!"}},{"$f":"AND(#REF!,\"WgtSVAK7hOI=\")","v":{"$error":"#REF!"}},{"$f":"AND(#REF!,\"WgtSVAK7hOM=\")","v":{"$error":"#REF!"}},{"$f":"AND(#REF!,\"WgtSVAK7hOQ=\")","v":{"$error":"#REF!"}},{"$f":"AND(#REF!,\"WgtSVAK7hOU=\")","v":{"$error":"#REF!"}},{"$f":"AND(#REF!,\"WgtSVAK7hOY=\")","v":{"$error":"#REF!"}},{"$f":"AND(#REF!,\"WgtSVAK7hOc=\")","v":{"$error":"#REF!"}},{"$f":"AND(#REF!,\"WgtSVAK7hOg=\")","v":{"$error":"#REF!"}},{"$f":"AND(#REF!,\"WgtSVAK7hOk=\")","v":{"$error":"#REF!"}},{"$f":"AND(#REF!,\"WgtSVAK7hOo=\")","v":{"$error":"#REF!"}},{"$f":"AND(#REF!,\"WgtSVAK7hOs=\")","v":{"$error":"#REF!"}},{"$f":"AND(#REF!,\"WgtSVAK7hOw=\")","v":{"$error":"#REF!"}},{"$f":"AND(#REF!,\"WgtSVAK7hO0=\")","v":{"$error":"#REF!"}},{"$f":"AND(#REF!,\"WgtSVAK7hO4=\")","v":{"$error":"#REF!"}},{"$f":"AND(#REF!,\"WgtSVAK7hO8=\")","v":{"$error":"#REF!"}},{"$f":"AND(#REF!,\"WgtSVAK7hPA=\")","v":{"$error":"#REF!"}},{"$f":"AND(#REF!,\"WgtSVAK7hPE=\")","v":{"$error":"#REF!"}},{"$f":"AND(#REF!,\"WgtSVAK7hPI=\")","v":{"$error":"#REF!"}},{"$f":"AND(#REF!,\"WgtSVAK7hPM=\")","v":{"$error":"#REF!"}},{"$f":"AND(#REF!,\"WgtSVAK7hPQ=\")","v":{"$error":"#REF!"}},{"$f":"AND(#REF!,\"WgtSVAK7hPU=\")","v":{"$error":"#REF!"}},{"$f":"AND(#REF!,\"WgtSVAK7hPY=\")","v":{"$error":"#REF!"}},{"$f":"AND(#REF!,\"WgtSVAK7hPc=\")","v":{"$error":"#REF!"}},{"$f":"AND(#REF!,\"WgtSVAK7hPg=\")","v":{"$error":"#REF!"}},{"$f":"AND(#REF!,\"WgtSVAK7hPk=\")","v":{"$error":"#REF!"}},{"$f":"AND(#REF!,\"WgtSVAK7hPo=\")","v":{"$error":"#REF!"}},{"$f":"AND(#REF!,\"WgtSVAK7hPs=\")","v":{"$error":"#REF!"}},{"$f":"AND(#REF!,\"WgtSVAK7hPw=\")","v":{"$error":"#REF!"}},{"$f":"AND(#REF!,\"WgtSVAK7hP0=\")","v":{"$error":"#REF!"}},{"$f":"AND(#REF!,\"WgtSVAK7hP4=\")","v":{"$error":"#REF!"}},{"$f":"AND(#REF!,\"WgtSVAK7hP8=\")","v":{"$error":"#REF!"}}]
[{"$f":"AND(#REF!,\"XL7PhE7G5QA=\")","v":{"$error":"#REF!"}},{"$f":"AND(#REF!,\"XL7PhE7G5QE=\")","v":{"$error":"#REF!"}},{"$f":"AND(#REF!,\"XL7PhE7G5QI=\")","v":{"$error":"#REF!"}},{"$f":"AND(#REF!,\"XL7PhE7G5QM=\")","v":{"$error":"#REF!"}},{"$f":"AND(#REF!,\"XL7PhE7G5QQ=\")","v":{"$error":"#REF!"}},{"$f":"AND(#REF!,\"XL7PhE7G5QU=\")","v":{"$error":"#REF!"}},{"$f":"AND(#REF!,\"XL7PhE7G5QY=\")","v":{"$error":"#REF!"}},{"$f":"AND(#REF!,\"XL7PhE7G5Qc=\")","v":{"$error":"#REF!"}},{"$f":"AND(#REF!,\"XL7PhE7G5Qg=\")","v":{"$error":"#REF!"}},{"$f":"AND(#REF!,\"XL7PhE7G5Qk=\")","v":{"$error":"#REF!"}},{"$f":"AND(#REF!,\"XL7PhE7G5Qo=\")","v":{"$error":"#REF!"}},{"$f":"AND(#REF!,\"XL7PhE7G5Qs=\")","v":{"$error":"#REF!"}},{"$f":"AND(#REF!,\"XL7PhE7G5Qw=\")","v":{"$error":"#REF!"}},{"$f":"AND(#REF!,\"XL7PhE7G5Q0=\")","v":{"$error":"#REF!"}},{"$f":"AND(#REF!,\"XL7PhE7G5Q4=\")","v":{"$error":"#REF!"}},{"$f":"AND(#REF!,\"XL7PhE7G5Q8=\")","v":{"$error":"#REF!"}},{"$f":"AND(#REF!,\"XL7PhE7G5RA=\")","v":{"$error":"#REF!"}},{"$f":"AND(#REF!,\"XL7PhE7G5RE=\")","v":{"$error":"#REF!"}},{"$f":"AND(#REF!,\"XL7PhE7G5RI=\")","v":{"$error":"#REF!"}},{"$f":"AND(#REF!,\"XL7PhE7G5RM=\")","v":{"$error":"#REF!"}},{"$f":"AND(#REF!,\"XL7PhE7G5RQ=\")","v":{"$error":"#REF!"}},{"$f":"AND(#REF!,\"XL7PhE7G5RU=\")","v":{"$error":"#REF!"}},{"$f":"AND(#REF!,\"XL7PhE7G5RY=\")","v":{"$error":"#REF!"}},{"$f":"IF(#REF!,\"XL7PhE7G5Rc=\",0)","v":{"$error":"#REF!"}},{"$f":"AND(#REF!,\"XL7PhE7G5Rg=\")","v":{"$error":"#REF!"}},{"$f":"AND(#REF!,\"XL7PhE7G5Rk=\")","v":{"$error":"#REF!"}},{"$f":"AND(#REF!,\"XL7PhE7G5Ro=\")","v":{"$error":"#REF!"}},{"$f":"AND(#REF!,\"XL7PhE7G5Rs=\")","v":{"$error":"#REF!"}},{"$f":"AND(#REF!,\"XL7PhE7G5Rw=\")","v":{"$error":"#REF!"}},{"$f":"AND(#REF!,\"XL7PhE7G5R0=\")","v":{"$error":"#REF!"}},{"$f":"AND(#REF!,\"XL7PhE7G5R4=\")","v":{"$error":"#REF!"}},{"$f":"AND(#REF!,\"XL7PhE7G5R8=\")","v":{"$error":"#REF!"}},{"$f":"AND(#REF!,\"XL7PhE7G5SA=\")","v":{"$error":"#REF!"}},{"$f":"AND(#REF!,\"XL7PhE7G5SE=\")","v":{"$error":"#REF!"}},{"$f":"AND(#REF!,\"XL7PhE7G5SI=\")","v":{"$error":"#REF!"}},{"$f":"AND(#REF!,\"XL7PhE7G5SM=\")","v":{"$error":"#REF!"}},{"$f":"AND(#REF!,\"XL7PhE7G5SQ=\")","v":{"$error":"#REF!"}},{"$f":"AND(#REF!,\"XL7PhE7G5SU=\")","v":{"$error":"#REF!"}},{"$f":"AND(#REF!,\"XL7PhE7G5SY=\")","v":{"$error":"#REF!"}},{"$f":"AND(#REF!,\"XL7PhE7G5Sc=\")","v":{"$error":"#REF!"}},{"$f":"AND(#REF!,\"XL7PhE7G5Sg=\")","v":{"$error":"#REF!"}},{"$f":"AND(#REF!,\"XL7PhE7G5Sk=\")","v":{"$error":"#REF!"}},{"$f":"AND(#REF!,\"XL7PhE7G5So=\")","v":{"$error":"#REF!"}},{"$f":"AND(#REF!,\"XL7PhE7G5Ss=\")","v":{"$error":"#REF!"}},{"$f":"AND(#REF!,\"XL7PhE7G5Sw=\")","v":{"$error":"#REF!"}},{"$f":"AND(#REF!,\"XL7PhE7G5S0=\")","v":{"$error":"#REF!"}},{"$f":"AND(#REF!,\"XL7PhE7G5S4=\")","v":{"$error":"#REF!"}},{"$f":"AND(#REF!,\"XL7PhE7G5S8=\")","v":{"$error":"#REF!"}},{"$f":"AND(#REF!,\"XL7PhE7G5TA=\")","v":{"$error":"#REF!"}},{"$f":"AND(#REF!,\"XL7PhE7G5TE=\")","v":{"$error":"#REF!"}},{"$f":"AND(#REF!,\"XL7PhE7G5TI=\")","v":{"$error":"#REF!"}},{"$f":"AND(#REF!,\"XL7PhE7G5TM=\")","v":{"$error":"#REF!"}},{"$f":"AND(#REF!,\"XL7PhE7G5TQ=\")","v":{"$error":"#REF!"}},{"$f":"AND(#REF!,\"XL7PhE7G5TU=\")","v":{"$error":"#REF!"}},{"$f":"AND(#REF!,\"XL7PhE7G5TY=\")","v":{"$error":"#REF!"}},{"$f":"AND(#REF!,\"XL7PhE7G5Tc=\")","v":{"$error":"#REF!"}},{"$f":"AND(#REF!,\"XL7PhE7G5Tg=\")","v":{"$error":"#REF!"}},{"$f":"AND(#REF!,\"XL7PhE7G5Tk=\")","v":{"$error":"#REF!"}},{"$f":"AND(#REF!,\"XL7PhE7G5To=\")","v":{"$error":"#REF!"}},{"$f":"AND(#REF!,\"XL7PhE7G5Ts=\")","v":{"$error":"#REF!"}},{"$f":"AND(#REF!,\"XL7PhE7G5Tw=\")","v":{"$error":"#REF!"}},{"$f":"AND(#REF!,\"XL7PhE7G5T0=\")","v":{"$error":"#REF!"}},{"$f":"AND(#REF!,\"XL7PhE7G5T4=\")","v":{"$error":"#REF!"}},{"$f":"AND(#REF!,\"XL7PhE7G5T8=\")","v":{"$error":"#REF!"}},{"$f":"AND(#REF!,\"XL7PhE7G5UA=\")","v":{"$error":"#REF!"}},{"$f":"AND(#REF!,\"XL7PhE7G5UE=\")","v":{"$error":"#REF!"}},{"$f":"AND(#REF!,\"XL7PhE7G5UI=\")","v":{"$error":"#REF!"}},{"$f":"AND(#REF!,\"XL7PhE7G5UM=\")","v":{"$error":"#REF!"}},{"$f":"AND(#REF!,\"XL7PhE7G5UQ=\")","v":{"$error":"#REF!"}},{"$f":"AND(#REF!,\"XL7PhE7G5UU=\")","v":{"$error":"#REF!"}},{"$f":"AND(#REF!,\"XL7PhE7G5UY=\")","v":{"$error":"#REF!"}},{"$f":"AND(#REF!,\"XL7PhE7G5Uc=\")","v":{"$error":"#REF!"}},{"$f":"AND(#REF!,\"XL7PhE7G5Ug=\")","v":{"$error":"#REF!"}},{"$f":"AND(#REF!,\"XL7PhE7G5Uk=\")","v":{"$error":"#REF!"}},{"$f":"AND(#REF!,\"XL7PhE7G5Uo=\")","v":{"$error":"#REF!"}},{"$f":"AND(#REF!,\"XL7PhE7G5Us=\")","v":{"$error":"#REF!"}},{"$f":"AND(#REF!,\"XL7PhE7G5Uw=\")","v":{"$error":"#REF!"}},{"$f":"AND(#REF!,\"XL7PhE7G5U0=\")","v":{"$error":"#REF!"}},{"$f":"AND(#REF!,\"XL7PhE7G5U4=\")","v":{"$error":"#REF!"}},{"$f":"AND(#REF!,\"XL7PhE7G5U8=\")","v":{"$error":"#REF!"}},{"$f":"AND(#REF!,\"XL7PhE7G5VA=\")","v":{"$error":"#REF!"}},{"$f":"AND(#REF!,\"XL7PhE7G5VE=\")","v":{"$error":"#REF!"}},{"$f":"AND(#REF!,\"XL7PhE7G5VI=\")","v":{"$error":"#REF!"}},{"$f":"AND(#REF!,\"XL7PhE7G5VM=\")","v":{"$error":"#REF!"}},{"$f":"AND(#REF!,\"XL7PhE7G5VQ=\")","v":{"$error":"#REF!"}},{"$f":"AND(#REF!,\"XL7PhE7G5VU=\")","v":{"$error":"#REF!"}},{"$f":"AND(#REF!,\"XL7PhE7G5VY=\")","v":{"$error":"#REF!"}},{"$f":"AND(#REF!,\"XL7PhE7G5Vc=\")","v":{"$error":"#REF!"}},{"$f":"AND(#REF!,\"XL7PhE7G5Vg=\")","v":{"$error":"#REF!"}},{"$f":"AND(#REF!,\"XL7PhE7G5Vk=\")","v":{"$error":"#REF!"}},{"$f":"AND(#REF!,\"XL7PhE7G5Vo=\")","v":{"$error":"#REF!"}},{"$f":"AND(#REF!,\"XL7PhE7G5Vs=\")","v":{"$error":"#REF!"}},{"$f":"AND(#REF!,\"XL7PhE7G5Vw=\")","v":{"$error":"#REF!"}},{"$f":"AND(#REF!,\"XL7PhE7G5V0=\")","v":{"$error":"#REF!"}},{"$f":"AND(#REF!,\"XL7PhE7G5V4=\")","v":{"$error":"#REF!"}},{"$f":"AND(#REF!,\"XL7PhE7G5V8=\")","v":{"$error":"#REF!"}},{"$f":"AND(#REF!,\"XL7PhE7G5WA=\")","v":{"$error":"#REF!"}},{"$f":"AND(#REF!,\"XL7PhE7G5WE=\")","v":{"$error":"#REF!"}},{"$f":"AND(#REF!,\"XL7PhE7G5WI=\")","v":{"$error":"#REF!"}},{"$f":"AND(#REF!,\"XL7PhE7G5WM=\")","v":{"$error":"#REF!"}},{"$f":"AND(#REF!,\"XL7PhE7G5WQ=\")","v":{"$error":"#REF!"}},{"$f":"AND(#REF!,\"XL7PhE7G5WU=\")","v":{"$error":"#REF!"}},{"$f":"AND(#REF!,\"XL7PhE7G5WY=\")","v":{"$error":"#REF!"}},{"$f":"AND(#REF!,\"XL7PhE7G5Wc=\")","v":{"$error":"#REF!"}},{"$f":"AND(#REF!,\"XL7PhE7G5Wg=\")","v":{"$error":"#REF!"}},{"$f":"AND(#REF!,\"XL7PhE7G5Wk=\")","v":{"$error":"#REF!"}},{"$f":"AND(#REF!,\"XL7PhE7G5Wo=\")","v":{"$error":"#REF!"}},{"$f":"AND(#REF!,\"XL7PhE7G5Ws=\")","v":{"$error":"#REF!"}},{"$f":"AND(#REF!,\"XL7PhE7G5Ww=\")","v":{"$error":"#REF!"}},{"$f":"AND(#REF!,\"XL7PhE7G5W0=\")","v":{"$error":"#REF!"}},{"$f":"AND(#REF!,\"XL7PhE7G5W4=\")","v":{"$error":"#REF!"}},{"$f":"AND(#REF!,\"XL7PhE7G5W8=\")","v":{"$error":"#REF!"}},{"$f":"AND(#REF!,\"XL7PhE7G5XA=\")","v":{"$error":"#REF!"}},{"$f":"AND(#REF!,\"XL7PhE7G5XE=\")","v":{"$error":"#REF!"}},{"$f":"AND(#REF!,\"XL7PhE7G5XI=\")","v":{"$error":"#REF!"}},{"$f":"AND(#REF!,\"XL7PhE7G5XM=\")","v":{"$error":"#REF!"}},{"$f":"AND(#REF!,\"XL7PhE7G5XQ=\")","v":{"$error":"#REF!"}},{"$f":"AND(#REF!,\"XL7PhE7G5XU=\")","v":{"$error":"#REF!"}},{"$f":"AND(#REF!,\"XL7PhE7G5XY=\")","v":{"$error":"#REF!"}},{"$f":"AND(#REF!,\"XL7PhE7G5Xc=\")","v":{"$error":"#REF!"}},{"$f":"AND(#REF!,\"XL7PhE7G5Xg=\")","v":{"$error":"#REF!"}},{"$f":"AND(#REF!,\"XL7PhE7G5Xk=\")","v":{"$error":"#REF!"}},{"$f":"AND(#REF!,\"XL7PhE7G5Xo=\")","v":{"$error":"#REF!"}},{"$f":"AND(#REF!,\"XL7PhE7G5Xs=\")","v":{"$error":"#REF!"}},{"$f":"AND(#REF!,\"XL7PhE7G5Xw=\")","v":{"$error":"#REF!"}},{"$f":"AND(#REF!,\"XL7PhE7G5X0=\")","v":{"$error":"#REF!"}},{"$f":"AND(#REF!,\"XL7PhE7G5X4=\")","v":{"$error":"#REF!"}},{"$f":"AND(#REF!,\"XL7PhE7G5X8=\")","v":{"$error":"#REF!"}},{"$f":"AND(#REF!,\"XL7PhE7G5YA=\")","v":{"$error":"#REF!"}},{"$f":"AND(#REF!,\"XL7PhE7G5YE=\")","v":{"$error":"#REF!"}},{"$f":"AND(#REF!,\"XL7PhE7G5YI=\")","v":{"$error":"#REF!"}},{"$f":"AND(#REF!,\"XL7PhE7G5YM=\")","v":{"$error":"#REF!"}},{"$f":"AND(#REF!,\"XL7PhE7G5YQ=\")","v":{"$error":"#REF!"}},{"$f":"AND(#REF!,\"XL7PhE7G5YU=\")","v":{"$error":"#REF!"}},{"$f":"AND(#REF!,\"XL7PhE7G5YY=\")","v":{"$error":"#REF!"}},{"$f":"AND(#REF!,\"XL7PhE7G5Yc=\")","v":{"$error":"#REF!"}},{"$f":"AND(#REF!,\"XL7PhE7G5Yg=\")","v":{"$error":"#REF!"}},{"$f":"AND(#REF!,\"XL7PhE7G5Yk=\")","v":{"$error":"#REF!"}},{"$f":"AND(#REF!,\"XL7PhE7G5Yo=\")","v":{"$error":"#REF!"}},{"$f":"AND(#REF!,\"XL7PhE7G5Ys=\")","v":{"$error":"#REF!"}},{"$f":"AND(#REF!,\"XL7PhE7G5Yw=\")","v":{"$error":"#REF!"}},{"$f":"AND(#REF!,\"XL7PhE7G5Y0=\")","v":{"$error":"#REF!"}},{"$f":"AND(#REF!,\"XL7PhE7G5Y4=\")","v":{"$error":"#REF!"}},{"$f":"AND(#REF!,\"XL7PhE7G5Y8=\")","v":{"$error":"#REF!"}},{"$f":"AND(#REF!,\"XL7PhE7G5ZA=\")","v":{"$error":"#REF!"}},{"$f":"AND(#REF!,\"XL7PhE7G5ZE=\")","v":{"$error":"#REF!"}},{"$f":"AND(#REF!,\"XL7PhE7G5ZI=\")","v":{"$error":"#REF!"}},{"$f":"AND(#REF!,\"XL7PhE7G5ZM=\")","v":{"$error":"#REF!"}},{"$f":"AND(#REF!,\"XL7PhE7G5ZQ=\")","v":{"$error":"#REF!"}},{"$f":"AND(#REF!,\"XL7PhE7G5ZU=\")","v":{"$error":"#REF!"}},{"$f":"AND(#REF!,\"XL7PhE7G5ZY=\")","v":{"$error":"#REF!"}},{"$f":"AND(#REF!,\"XL7PhE7G5Zc=\")","v":{"$error":"#REF!"}},{"$f":"AND(#REF!,\"XL7PhE7G5Zg=\")","v":{"$error":"#REF!"}},{"$f":"AND(#REF!,\"XL7PhE7G5Zk=\")","v":{"$error":"#REF!"}},{"$f":"AND(#REF!,\"XL7PhE7G5Zo=\")","v":{"$error":"#REF!"}},{"$f":"AND(#REF!,\"XL7PhE7G5Zs=\")","v":{"$error":"#REF!"}},{"$f":"AND(#REF!,\"XL7PhE7G5Zw=\")","v":{"$error":"#REF!"}},{"$f":"AND(#REF!,\"XL7PhE7G5Z0=\")","v":{"$error":"#REF!"}},{"$f":"AND(#REF!,\"XL7PhE7G5Z4=\")","v":{"$error":"#REF!"}},{"$f":"AND(#REF!,\"XL7PhE7G5Z8=\")","v":{"$error":"#REF!"}},{"$f":"AND(#REF!,\"XL7PhE7G5aA=\")","v":{"$error":"#REF!"}},{"$f":"AND(#REF!,\"XL7PhE7G5aE=\")","v":{"$error":"#REF!"}},{"$f":"AND(#REF!,\"XL7PhE7G5aI=\")","v":{"$error":"#REF!"}},{"$f":"AND(#REF!,\"XL7PhE7G5aM=\")","v":{"$error":"#REF!"}},{"$f":"AND(#REF!,\"XL7PhE7G5aQ=\")","v":{"$error":"#REF!"}},{"$f":"AND(#REF!,\"XL7PhE7G5aU=\")","v":{"$error":"#REF!"}},{"$f":"AND(#REF!,\"XL7PhE7G5aY=\")","v":{"$error":"#REF!"}},{"$f":"AND(#REF!,\"XL7PhE7G5ac=\")","v":{"$error":"#REF!"}},{"$f":"AND(#REF!,\"XL7PhE7G5ag=\")","v":{"$error":"#REF!"}},{"$f":"AND(#REF!,\"XL7PhE7G5ak=\")","v":{"$error":"#REF!"}},{"$f":"AND(#REF!,\"XL7PhE7G5ao=\")","v":{"$error":"#REF!"}},{"$f":"AND(#REF!,\"XL7PhE7G5as=\")","v":{"$error":"#REF!"}},{"$f":"AND(#REF!,\"XL7PhE7G5aw=\")","v":{"$error":"#REF!"}},{"$f":"AND(#REF!,\"XL7PhE7G5a0=\")","v":{"$error":"#REF!"}},{"$f":"AND(#REF!,\"XL7PhE7G5a4=\")","v":{"$error":"#REF!"}},{"$f":"AND(#REF!,\"XL7PhE7G5a8=\")","v":{"$error":"#REF!"}},{"$f":"AND(#REF!,\"XL7PhE7G5bA=\")","v":{"$error":"#REF!"}},{"$f":"AND(#REF!,\"XL7PhE7G5bE=\")","v":{"$error":"#REF!"}},{"$f":"AND(#REF!,\"XL7PhE7G5bI=\")","v":{"$error":"#REF!"}},{"$f":"AND(#REF!,\"XL7PhE7G5bM=\")","v":{"$error":"#REF!"}},{"$f":"AND(#REF!,\"XL7PhE7G5bQ=\")","v":{"$error":"#REF!"}},{"$f":"AND(#REF!,\"XL7PhE7G5bU=\")","v":{"$error":"#REF!"}},{"$f":"AND(#REF!,\"XL7PhE7G5bY=\")","v":{"$error":"#REF!"}},{"$f":"AND(#REF!,\"XL7PhE7G5bc=\")","v":{"$error":"#REF!"}},{"$f":"AND(#REF!,\"XL7PhE7G5bg=\")","v":{"$error":"#REF!"}},{"$f":"AND(#REF!,\"XL7PhE7G5bk=\")","v":{"$error":"#REF!"}},{"$f":"AND(#REF!,\"XL7PhE7G5bo=\")","v":{"$error":"#REF!"}},{"$f":"AND(#REF!,\"XL7PhE7G5bs=\")","v":{"$error":"#REF!"}},{"$f":"AND(#REF!,\"XL7PhE7G5bw=\")","v":{"$error":"#REF!"}},{"$f":"AND(#REF!,\"XL7PhE7G5b0=\")","v":{"$error":"#REF!"}},{"$f":"AND(#REF!,\"XL7PhE7G5b4=\")","v":{"$error":"#REF!"}},{"$f":"AND(#REF!,\"XL7PhE7G5b8=\")","v":{"$error":"#REF!"}},{"$f":"AND(#REF!,\"XL7PhE7G5cA=\")","v":{"$error":"#REF!"}},{"$f":"AND(#REF!,\"XL7PhE7G5cE=\")","v":{"$error":"#REF!"}},{"$f":"AND(#REF!,\"XL7PhE7G5cI=\")","v":{"$error":"#REF!"}},{"$f":"AND(#REF!,\"XL7PhE7G5cM=\")","v":{"$error":"#REF!"}},{"$f":"AND(#REF!,\"XL7PhE7G5cQ=\")","v":{"$error":"#REF!"}},{"$f":"AND(#REF!,\"XL7PhE7G5cU=\")","v":{"$error":"#REF!"}},{"$f":"AND(#REF!,\"XL7PhE7G5cY=\")","v":{"$error":"#REF!"}},{"$f":"AND(#REF!,\"XL7PhE7G5cc=\")","v":{"$error":"#REF!"}},{"$f":"AND(#REF!,\"XL7PhE7G5cg=\")","v":{"$error":"#REF!"}},{"$f":"AND(#REF!,\"XL7PhE7G5ck=\")","v":{"$error":"#REF!"}},{"$f":"AND(#REF!,\"XL7PhE7G5co=\")","v":{"$error":"#REF!"}},{"$f":"AND(#REF!,\"XL7PhE7G5cs=\")","v":{"$error":"#REF!"}},{"$f":"AND(#REF!,\"XL7PhE7G5cw=\")","v":{"$error":"#REF!"}},{"$f":"AND(#REF!,\"XL7PhE7G5c0=\")","v":{"$error":"#REF!"}},{"$f":"AND(#REF!,\"XL7PhE7G5c4=\")","v":{"$error":"#REF!"}},{"$f":"AND(#REF!,\"XL7PhE7G5c8=\")","v":{"$error":"#REF!"}},{"$f":"AND(#REF!,\"XL7PhE7G5dA=\")","v":{"$error":"#REF!"}},{"$f":"AND(#REF!,\"XL7PhE7G5dE=\")","v":{"$error":"#REF!"}},{"$f":"AND(#REF!,\"XL7PhE7G5dI=\")","v":{"$error":"#REF!"}},{"$f":"AND(#REF!,\"XL7PhE7G5dM=\")","v":{"$error":"#REF!"}},{"$f":"AND(#REF!,\"XL7PhE7G5dQ=\")","v":{"$error":"#REF!"}},{"$f":"AND(#REF!,\"XL7PhE7G5dU=\")","v":{"$error":"#REF!"}},{"$f":"AND(#REF!,\"XL7PhE7G5dY=\")","v":{"$error":"#REF!"}},{"$f":"AND(#REF!,\"XL7PhE7G5dc=\")","v":{"$error":"#REF!"}},{"$f":"AND(#REF!,\"XL7PhE7G5dg=\")","v":{"$error":"#REF!"}},{"$f":"AND(#REF!,\"XL7PhE7G5dk=\")","v":{"$error":"#REF!"}},{"$f":"AND(#REF!,\"XL7PhE7G5do=\")","v":{"$error":"#REF!"}},{"$f":"AND(#REF!,\"XL7PhE7G5ds=\")","v":{"$error":"#REF!"}},{"$f":"AND(#REF!,\"XL7PhE7G5dw=\")","v":{"$error":"#REF!"}},{"$f":"AND(#REF!,\"XL7PhE7G5d0=\")","v":{"$error":"#REF!"}},{"$f":"IF(#REF!,\"XL7PhE7G5d4=\",0)","v":{"$error":"#REF!"}},{"$f":"AND(#REF!,\"XL7PhE7G5d8=\")","v":{"$error":"#REF!"}},{"$f":"AND(#REF!,\"XL7PhE7G5eA=\")","v":{"$error":"#REF!"}},{"$f":"AND(#REF!,\"XL7PhE7G5eE=\")","v":{"$error":"#REF!"}},{"$f":"AND(#REF!,\"XL7PhE7G5eI=\")","v":{"$error":"#REF!"}},{"$f":"AND(#REF!,\"XL7PhE7G5eM=\")","v":{"$error":"#REF!"}},{"$f":"AND(#REF!,\"XL7PhE7G5eQ=\")","v":{"$error":"#REF!"}},{"$f":"AND(#REF!,\"XL7PhE7G5eU=\")","v":{"$error":"#REF!"}},{"$f":"AND(#REF!,\"XL7PhE7G5eY=\")","v":{"$error":"#REF!"}},{"$f":"AND(#REF!,\"XL7PhE7G5ec=\")","v":{"$error":"#REF!"}},{"$f":"AND(#REF!,\"XL7PhE7G5eg=\")","v":{"$error":"#REF!"}},{"$f":"AND(#REF!,\"XL7PhE7G5ek=\")","v":{"$error":"#REF!"}},{"$f":"AND(#REF!,\"XL7PhE7G5eo=\")","v":{"$error":"#REF!"}},{"$f":"AND(#REF!,\"XL7PhE7G5es=\")","v":{"$error":"#REF!"}},{"$f":"AND(#REF!,\"XL7PhE7G5ew=\")","v":{"$error":"#REF!"}},{"$f":"AND(#REF!,\"XL7PhE7G5e0=\")","v":{"$error":"#REF!"}},{"$f":"AND(#REF!,\"XL7PhE7G5e4=\")","v":{"$error":"#REF!"}},{"$f":"AND(#REF!,\"XL7PhE7G5e8=\")","v":{"$error":"#REF!"}},{"$f":"AND(#REF!,\"XL7PhE7G5fA=\")","v":{"$error":"#REF!"}},{"$f":"AND(#REF!,\"XL7PhE7G5fE=\")","v":{"$error":"#REF!"}},{"$f":"AND(#REF!,\"XL7PhE7G5fI=\")","v":{"$error":"#REF!"}},{"$f":"AND(#REF!,\"XL7PhE7G5fM=\")","v":{"$error":"#REF!"}},{"$f":"AND(#REF!,\"XL7PhE7G5fQ=\")","v":{"$error":"#REF!"}},{"$f":"AND(#REF!,\"XL7PhE7G5fU=\")","v":{"$error":"#REF!"}},{"$f":"AND(#REF!,\"XL7PhE7G5fY=\")","v":{"$error":"#REF!"}},{"$f":"AND(#REF!,\"XL7PhE7G5fc=\")","v":{"$error":"#REF!"}},{"$f":"AND(#REF!,\"XL7PhE7G5fg=\")","v":{"$error":"#REF!"}},{"$f":"AND(#REF!,\"XL7PhE7G5fk=\")","v":{"$error":"#REF!"}},{"$f":"AND(#REF!,\"XL7PhE7G5fo=\")","v":{"$error":"#REF!"}},{"$f":"AND(#REF!,\"XL7PhE7G5fs=\")","v":{"$error":"#REF!"}},{"$f":"AND(#REF!,\"XL7PhE7G5fw=\")","v":{"$error":"#REF!"}},{"$f":"AND(#REF!,\"XL7PhE7G5f0=\")","v":{"$error":"#REF!"}},{"$f":"AND(#REF!,\"XL7PhE7G5f4=\")","v":{"$error":"#REF!"}},{"$f":"AND(#REF!,\"XL7PhE7G5f8=\")","v":{"$error":"#REF!"}}]
[{"$f":"AND(#REF!,\"KA06CXVXDgA=\")","v":{"$error":"#REF!"}},{"$f":"AND(#REF!,\"KA06CXVXDgE=\")","v":{"$error":"#REF!"}},{"$f":"AND(#REF!,\"KA06CXVXDgI=\")","v":{"$error":"#REF!"}},{"$f":"AND(#REF!,\"KA06CXVXDgM=\")","v":{"$error":"#REF!"}},{"$f":"AND(#REF!,\"KA06CXVXDgQ=\")","v":{"$error":"#REF!"}},{"$f":"AND(#REF!,\"KA06CXVXDgU=\")","v":{"$error":"#REF!"}},{"$f":"AND(#REF!,\"KA06CXVXDgY=\")","v":{"$error":"#REF!"}},{"$f":"AND(#REF!,\"KA06CXVXDgc=\")","v":{"$error":"#REF!"}},{"$f":"AND(#REF!,\"KA06CXVXDgg=\")","v":{"$error":"#REF!"}},{"$f":"AND(#REF!,\"KA06CXVXDgk=\")","v":{"$error":"#REF!"}},{"$f":"AND(#REF!,\"KA06CXVXDgo=\")","v":{"$error":"#REF!"}},{"$f":"AND(#REF!,\"KA06CXVXDgs=\")","v":{"$error":"#REF!"}},{"$f":"AND(#REF!,\"KA06CXVXDgw=\")","v":{"$error":"#REF!"}},{"$f":"AND(#REF!,\"KA06CXVXDg0=\")","v":{"$error":"#REF!"}},{"$f":"AND(#REF!,\"KA06CXVXDg4=\")","v":{"$error":"#REF!"}},{"$f":"AND(#REF!,\"KA06CXVXDg8=\")","v":{"$error":"#REF!"}},{"$f":"AND(#REF!,\"KA06CXVXDhA=\")","v":{"$error":"#REF!"}},{"$f":"AND(#REF!,\"KA06CXVXDhE=\")","v":{"$error":"#REF!"}},{"$f":"AND(#REF!,\"KA06CXVXDhI=\")","v":{"$error":"#REF!"}},{"$f":"AND(#REF!,\"KA06CXVXDhM=\")","v":{"$error":"#REF!"}},{"$f":"AND(#REF!,\"KA06CXVXDhQ=\")","v":{"$error":"#REF!"}},{"$f":"AND(#REF!,\"KA06CXVXDhU=\")","v":{"$error":"#REF!"}},{"$f":"AND(#REF!,\"KA06CXVXDhY=\")","v":{"$error":"#REF!"}},{"$f":"AND(#REF!,\"KA06CXVXDhc=\")","v":{"$error":"#REF!"}},{"$f":"AND(#REF!,\"KA06CXVXDhg=\")","v":{"$error":"#REF!"}},{"$f":"AND(#REF!,\"KA06CXVXDhk=\")","v":{"$error":"#REF!"}},{"$f":"AND(#REF!,\"KA06CXVXDho=\")","v":{"$error":"#REF!"}},{"$f":"AND(#REF!,\"KA06CXVXDhs=\")","v":{"$error":"#REF!"}},{"$f":"AND(#REF!,\"KA06CXVXDhw=\")","v":{"$error":"#REF!"}},{"$f":"AND(#REF!,\"KA06CXVXDh0=\")","v":{"$error":"#REF!"}},{"$f":"AND(#REF!,\"KA06CXVXDh4=\")","v":{"$error":"#REF!"}},{"$f":"AND(#REF!,\"KA06CXVXDh8=\")","v":{"$error":"#REF!"}},{"$f":"AND(#REF!,\"KA06CXVXDiA=\")","v":{"$error":"#REF!"}},{"$f":"AND(#REF!,\"KA06CXVXDiE=\")","v":{"$error":"#REF!"}},{"$f":"AND(#REF!,\"KA06CXVXDiI=\")","v":{"$error":"#REF!"}},{"$f":"AND(#REF!,\"KA06CXVXDiM=\")","v":{"$error":"#REF!"}},{"$f":"AND(#REF!,\"KA06CXVXDiQ=\")","v":{"$error":"#REF!"}},{"$f":"AND(#REF!,\"KA06CXVXDiU=\")","v":{"$error":"#REF!"}},{"$f":"AND(#REF!,\"KA06CXVXDiY=\")","v":{"$error":"#REF!"}},{"$f":"AND(#REF!,\"KA06CXVXDic=\")","v":{"$error":"#REF!"}},{"$f":"AND(#REF!,\"KA06CXVXDig=\")","v":{"$error":"#REF!"}},{"$f":"AND(#REF!,\"KA06CXVXDik=\")","v":{"$error":"#REF!"}},{"$f":"AND(#REF!,\"KA06CXVXDio=\")","v":{"$error":"#REF!"}},{"$f":"AND(#REF!,\"KA06CXVXDis=\")","v":{"$error":"#REF!"}},{"$f":"AND(#REF!,\"KA06CXVXDiw=\")","v":{"$error":"#REF!"}},{"$f":"AND(#REF!,\"KA06CXVXDi0=\")","v":{"$error":"#REF!"}},{"$f":"AND(#REF!,\"KA06CXVXDi4=\")","v":{"$error":"#REF!"}},{"$f":"AND(#REF!,\"KA06CXVXDi8=\")","v":{"$error":"#REF!"}},{"$f":"AND(#REF!,\"KA06CXVXDjA=\")","v":{"$error":"#REF!"}},{"$f":"AND(#REF!,\"KA06CXVXDjE=\")","v":{"$error":"#REF!"}},{"$f":"AND(#REF!,\"KA06CXVXDjI=\")","v":{"$error":"#REF!"}},{"$f":"AND(#REF!,\"KA06CXVXDjM=\")","v":{"$error":"#REF!"}},{"$f":"AND(#REF!,\"KA06CXVXDjQ=\")","v":{"$error":"#REF!"}},{"$f":"AND(#REF!,\"KA06CXVXDjU=\")","v":{"$error":"#REF!"}},{"$f":"AND(#REF!,\"KA06CXVXDjY=\")","v":{"$error":"#REF!"}},{"$f":"AND(#REF!,\"KA06CXVXDjc=\")","v":{"$error":"#REF!"}},{"$f":"AND(#REF!,\"KA06CXVXDjg=\")","v":{"$error":"#REF!"}},{"$f":"AND(#REF!,\"KA06CXVXDjk=\")","v":{"$error":"#REF!"}},{"$f":"AND(#REF!,\"KA06CXVXDjo=\")","v":{"$error":"#REF!"}},{"$f":"AND(#REF!,\"KA06CXVXDjs=\")","v":{"$error":"#REF!"}},{"$f":"AND(#REF!,\"KA06CXVXDjw=\")","v":{"$error":"#REF!"}},{"$f":"AND(#REF!,\"KA06CXVXDj0=\")","v":{"$error":"#REF!"}},{"$f":"AND(#REF!,\"KA06CXVXDj4=\")","v":{"$error":"#REF!"}},{"$f":"AND(#REF!,\"KA06CXVXDj8=\")","v":{"$error":"#REF!"}},{"$f":"AND(#REF!,\"KA06CXVXDkA=\")","v":{"$error":"#REF!"}},{"$f":"AND(#REF!,\"KA06CXVXDkE=\")","v":{"$error":"#REF!"}},{"$f":"AND(#REF!,\"KA06CXVXDkI=\")","v":{"$error":"#REF!"}},{"$f":"AND(#REF!,\"KA06CXVXDkM=\")","v":{"$error":"#REF!"}},{"$f":"AND(#REF!,\"KA06CXVXDkQ=\")","v":{"$error":"#REF!"}},{"$f":"AND(#REF!,\"KA06CXVXDkU=\")","v":{"$error":"#REF!"}},{"$f":"AND(#REF!,\"KA06CXVXDkY=\")","v":{"$error":"#REF!"}},{"$f":"AND(#REF!,\"KA06CXVXDkc=\")","v":{"$error":"#REF!"}},{"$f":"AND(#REF!,\"KA06CXVXDkg=\")","v":{"$error":"#REF!"}},{"$f":"AND(#REF!,\"KA06CXVXDkk=\")","v":{"$error":"#REF!"}},{"$f":"AND(#REF!,\"KA06CXVXDko=\")","v":{"$error":"#REF!"}},{"$f":"AND(#REF!,\"KA06CXVXDks=\")","v":{"$error":"#REF!"}},{"$f":"AND(#REF!,\"KA06CXVXDkw=\")","v":{"$error":"#REF!"}},{"$f":"AND(#REF!,\"KA06CXVXDk0=\")","v":{"$error":"#REF!"}},{"$f":"AND(#REF!,\"KA06CXVXDk4=\")","v":{"$error":"#REF!"}},{"$f":"AND(#REF!,\"KA06CXVXDk8=\")","v":{"$error":"#REF!"}},{"$f":"AND(#REF!,\"KA06CXVXDlA=\")","v":{"$error":"#REF!"}},{"$f":"AND(#REF!,\"KA06CXVXDlE=\")","v":{"$error":"#REF!"}},{"$f":"AND(#REF!,\"KA06CXVXDlI=\")","v":{"$error":"#REF!"}},{"$f":"AND(#REF!,\"KA06CXVXDlM=\")","v":{"$error":"#REF!"}},{"$f":"AND(#REF!,\"KA06CXVXDlQ=\")","v":{"$error":"#REF!"}},{"$f":"AND(#REF!,\"KA06CXVXDlU=\")","v":{"$error":"#REF!"}},{"$f":"AND(#REF!,\"KA06CXVXDlY=\")","v":{"$error":"#REF!"}},{"$f":"AND(#REF!,\"KA06CXVXDlc=\")","v":{"$error":"#REF!"}},{"$f":"AND(#REF!,\"KA06CXVXDlg=\")","v":{"$error":"#REF!"}},{"$f":"AND(#REF!,\"KA06CXVXDlk=\")","v":{"$error":"#REF!"}},{"$f":"AND(#REF!,\"KA06CXVXDlo=\")","v":{"$error":"#REF!"}},{"$f":"AND(#REF!,\"KA06CXVXDls=\")","v":{"$error":"#REF!"}},{"$f":"AND(#REF!,\"KA06CXVXDlw=\")","v":{"$error":"#REF!"}},{"$f":"AND(#REF!,\"KA06CXVXDl0=\")","v":{"$error":"#REF!"}},{"$f":"AND(#REF!,\"KA06CXVXDl4=\")","v":{"$error":"#REF!"}},{"$f":"AND(#REF!,\"KA06CXVXDl8=\")","v":{"$error":"#REF!"}},{"$f":"AND(#REF!,\"KA06CXVXDmA=\")","v":{"$error":"#REF!"}},{"$f":"AND(#REF!,\"KA06CXVXDmE=\")","v":{"$error":"#REF!"}},{"$f":"AND(#REF!,\"KA06CXVXDmI=\")","v":{"$error":"#REF!"}},{"$f":"AND(#REF!,\"KA06CXVXDmM=\")","v":{"$error":"#REF!"}},{"$f":"AND(#REF!,\"KA06CXVXDmQ=\")","v":{"$error":"#REF!"}},{"$f":"AND(#REF!,\"KA06CXVXDmU=\")","v":{"$error":"#REF!"}},{"$f":"AND(#REF!,\"KA06CXVXDmY=\")","v":{"$error":"#REF!"}},{"$f":"AND(#REF!,\"KA06CXVXDmc=\")","v":{"$error":"#REF!"}},{"$f":"AND(#REF!,\"KA06CXVXDmg=\")","v":{"$error":"#REF!"}},{"$f":"AND(#REF!,\"KA06CXVXDmk=\")","v":{"$error":"#REF!"}},{"$f":"AND(#REF!,\"KA06CXVXDmo=\")","v":{"$error":"#REF!"}},{"$f":"AND(#REF!,\"KA06CXVXDms=\")","v":{"$error":"#REF!"}},{"$f":"AND(#REF!,\"KA06CXVXDmw=\")","v":{"$error":"#REF!"}},{"$f":"AND(#REF!,\"KA06CXVXDm0=\")","v":{"$error":"#REF!"}},{"$f":"AND(#REF!,\"KA06CXVXDm4=\")","v":{"$error":"#REF!"}},{"$f":"AND(#REF!,\"KA06CXVXDm8=\")","v":{"$error":"#REF!"}},{"$f":"AND(#REF!,\"KA06CXVXDnA=\")","v":{"$error":"#REF!"}},{"$f":"AND(#REF!,\"KA06CXVXDnE=\")","v":{"$error":"#REF!"}},{"$f":"AND(#REF!,\"KA06CXVXDnI=\")","v":{"$error":"#REF!"}},{"$f":"AND(#REF!,\"KA06CXVXDnM=\")","v":{"$error":"#REF!"}},{"$f":"AND(#REF!,\"KA06CXVXDnQ=\")","v":{"$error":"#REF!"}},{"$f":"AND(#REF!,\"KA06CXVXDnU=\")","v":{"$error":"#REF!"}},{"$f":"AND(#REF!,\"KA06CXVXDnY=\")","v":{"$error":"#REF!"}},{"$f":"AND(#REF!,\"KA06CXVXDnc=\")","v":{"$error":"#REF!"}},{"$f":"AND(#REF!,\"KA06CXVXDng=\")","v":{"$error":"#REF!"}},{"$f":"AND(#REF!,\"KA06CXVXDnk=\")","v":{"$error":"#REF!"}},{"$f":"AND(#REF!,\"KA06CXVXDno=\")","v":{"$error":"#REF!"}},{"$f":"AND(#REF!,\"KA06CXVXDns=\")","v":{"$error":"#REF!"}},{"$f":"AND(#REF!,\"KA06CXVXDnw=\")","v":{"$error":"#REF!"}},{"$f":"AND(#REF!,\"KA06CXVXDn0=\")","v":{"$error":"#REF!"}},{"$f":"AND(#REF!,\"KA06CXVXDn4=\")","v":{"$error":"#REF!"}},{"$f":"AND(#REF!,\"KA06CXVXDn8=\")","v":{"$error":"#REF!"}},{"$f":"AND(#REF!,\"KA06CXVXDoA=\")","v":{"$error":"#REF!"}},{"$f":"AND(#REF!,\"KA06CXVXDoE=\")","v":{"$error":"#REF!"}},{"$f":"AND(#REF!,\"KA06CXVXDoI=\")","v":{"$error":"#REF!"}},{"$f":"AND(#REF!,\"KA06CXVXDoM=\")","v":{"$error":"#REF!"}},{"$f":"AND(#REF!,\"KA06CXVXDoQ=\")","v":{"$error":"#REF!"}},{"$f":"AND(#REF!,\"KA06CXVXDoU=\")","v":{"$error":"#REF!"}},{"$f":"AND(#REF!,\"KA06CXVXDoY=\")","v":{"$error":"#REF!"}},{"$f":"AND(#REF!,\"KA06CXVXDoc=\")","v":{"$error":"#REF!"}},{"$f":"AND(#REF!,\"KA06CXVXDog=\")","v":{"$error":"#REF!"}},{"$f":"AND(#REF!,\"KA06CXVXDok=\")","v":{"$error":"#REF!"}},{"$f":"AND(#REF!,\"KA06CXVXDoo=\")","v":{"$error":"#REF!"}},{"$f":"AND(#REF!,\"KA06CXVXDos=\")","v":{"$error":"#REF!"}},{"$f":"AND(#REF!,\"KA06CXVXDow=\")","v":{"$error":"#REF!"}},{"$f":"AND(#REF!,\"KA06CXVXDo0=\")","v":{"$error":"#REF!"}},{"$f":"AND(#REF!,\"KA06CXVXDo4=\")","v":{"$error":"#REF!"}},{"$f":"AND(#REF!,\"KA06CXVXDo8=\")","v":{"$error":"#REF!"}},{"$f":"AND(#REF!,\"KA06CXVXDpA=\")","v":{"$error":"#REF!"}},{"$f":"AND(#REF!,\"KA06CXVXDpE=\")","v":{"$error":"#REF!"}},{"$f":"AND(#REF!,\"KA06CXVXDpI=\")","v":{"$error":"#REF!"}},{"$f":"AND(#REF!,\"KA06CXVXDpM=\")","v":{"$error":"#REF!"}},{"$f":"AND(#REF!,\"KA06CXVXDpQ=\")","v":{"$error":"#REF!"}},{"$f":"AND(#REF!,\"KA06CXVXDpU=\")","v":{"$error":"#REF!"}},{"$f":"AND(#REF!,\"KA06CXVXDpY=\")","v":{"$error":"#REF!"}},{"$f":"AND(#REF!,\"KA06CXVXDpc=\")","v":{"$error":"#REF!"}},{"$f":"AND(#REF!,\"KA06CXVXDpg=\")","v":{"$error":"#REF!"}},{"$f":"AND(#REF!,\"KA06CXVXDpk=\")","v":{"$error":"#REF!"}},{"$f":"AND(#REF!,\"KA06CXVXDpo=\")","v":{"$error":"#REF!"}},{"$f":"AND(#REF!,\"KA06CXVXDps=\")","v":{"$error":"#REF!"}},{"$f":"AND(#REF!,\"KA06CXVXDpw=\")","v":{"$error":"#REF!"}},{"$f":"AND(#REF!,\"KA06CXVXDp0=\")","v":{"$error":"#REF!"}},{"$f":"AND(#REF!,\"KA06CXVXDp4=\")","v":{"$error":"#REF!"}},{"$f":"AND(#REF!,\"KA06CXVXDp8=\")","v":{"$error":"#REF!"}},{"$f":"AND(#REF!,\"KA06CXVXDqA=\")","v":{"$error":"#REF!"}},{"$f":"AND(#REF!,\"KA06CXVXDqE=\")","v":{"$error":"#REF!"}},{"$f":"AND(#REF!,\"KA06CXVXDqI=\")","v":{"$error":"#REF!"}},{"$f":"AND(#REF!,\"KA06CXVXDqM=\")","v":{"$error":"#REF!"}},{"$f":"AND(#REF!,\"KA06CXVXDqQ=\")","v":{"$error":"#REF!"}},{"$f":"IF(#REF!,\"KA06CXVXDqU=\",0)","v":{"$error":"#REF!"}},{"$f":"AND(#REF!,\"KA06CXVXDqY=\")","v":{"$error":"#REF!"}},{"$f":"AND(#REF!,\"KA06CXVXDqc=\")","v":{"$error":"#REF!"}},{"$f":"AND(#REF!,\"KA06CXVXDqg=\")","v":{"$error":"#REF!"}},{"$f":"AND(#REF!,\"KA06CXVXDqk=\")","v":{"$error":"#REF!"}},{"$f":"AND(#REF!,\"KA06CXVXDqo=\")","v":{"$error":"#REF!"}},{"$f":"AND(#REF!,\"KA06CXVXDqs=\")","v":{"$error":"#REF!"}},{"$f":"AND(#REF!,\"KA06CXVXDqw=\")","v":{"$error":"#REF!"}},{"$f":"AND(#REF!,\"KA06CXVXDq0=\")","v":{"$error":"#REF!"}},{"$f":"AND(#REF!,\"KA06CXVXDq4=\")","v":{"$error":"#REF!"}},{"$f":"AND(#REF!,\"KA06CXVXDq8=\")","v":{"$error":"#REF!"}},{"$f":"AND(#REF!,\"KA06CXVXDrA=\")","v":{"$error":"#REF!"}},{"$f":"AND(#REF!,\"KA06CXVXDrE=\")","v":{"$error":"#REF!"}},{"$f":"AND(#REF!,\"KA06CXVXDrI=\")","v":{"$error":"#REF!"}},{"$f":"AND(#REF!,\"KA06CXVXDrM=\")","v":{"$error":"#REF!"}},{"$f":"AND(#REF!,\"KA06CXVXDrQ=\")","v":{"$error":"#REF!"}},{"$f":"AND(#REF!,\"KA06CXVXDrU=\")","v":{"$error":"#REF!"}},{"$f":"AND(#REF!,\"KA06CXVXDrY=\")","v":{"$error":"#REF!"}},{"$f":"AND(#REF!,\"KA06CXVXDrc=\")","v":{"$error":"#REF!"}},{"$f":"AND(#REF!,\"KA06CXVXDrg=\")","v":{"$error":"#REF!"}},{"$f":"AND(#REF!,\"KA06CXVXDrk=\")","v":{"$error":"#REF!"}},{"$f":"AND(#REF!,\"KA06CXVXDro=\")","v":{"$error":"#REF!"}},{"$f":"AND(#REF!,\"KA06CXVXDrs=\")","v":{"$error":"#REF!"}},{"$f":"AND(#REF!,\"KA06CXVXDrw=\")","v":{"$error":"#REF!"}},{"$f":"AND(#REF!,\"KA06CXVXDr0=\")","v":{"$error":"#REF!"}},{"$f":"AND(#REF!,\"KA06CXVXDr4=\")","v":{"$error":"#REF!"}},{"$f":"AND(#REF!,\"KA06CXVXDr8=\")","v":{"$error":"#REF!"}},{"$f":"AND(#REF!,\"KA06CXVXDsA=\")","v":{"$error":"#REF!"}},{"$f":"AND(#REF!,\"KA06CXVXDsE=\")","v":{"$error":"#REF!"}},{"$f":"AND(#REF!,\"KA06CXVXDsI=\")","v":{"$error":"#REF!"}},{"$f":"AND(#REF!,\"KA06CXVXDsM=\")","v":{"$error":"#REF!"}},{"$f":"AND(#REF!,\"KA06CXVXDsQ=\")","v":{"$error":"#REF!"}},{"$f":"AND(#REF!,\"KA06CXVXDsU=\")","v":{"$error":"#REF!"}},{"$f":"AND(#REF!,\"KA06CXVXDsY=\")","v":{"$error":"#REF!"}},{"$f":"AND(#REF!,\"KA06CXVXDsc=\")","v":{"$error":"#REF!"}},{"$f":"AND(#REF!,\"KA06CXVXDsg=\")","v":{"$error":"#REF!"}},{"$f":"AND(#REF!,\"KA06CXVXDsk=\")","v":{"$error":"#REF!"}},{"$f":"AND(#REF!,\"KA06CXVXDso=\")","v":{"$error":"#REF!"}},{"$f":"AND(#REF!,\"KA06CXVXDss=\")","v":{"$error":"#REF!"}},{"$f":"AND(#REF!,\"KA06CXVXDsw=\")","v":{"$error":"#REF!"}},{"$f":"AND(#REF!,\"KA06CXVXDs0=\")","v":{"$error":"#REF!"}},{"$f":"AND(#REF!,\"KA06CXVXDs4=\")","v":{"$error":"#REF!"}},{"$f":"AND(#REF!,\"KA06CXVXDs8=\")","v":{"$error":"#REF!"}},{"$f":"AND(#REF!,\"KA06CXVXDtA=\")","v":{"$error":"#REF!"}},{"$f":"AND(#REF!,\"KA06CXVXDtE=\")","v":{"$error":"#REF!"}},{"$f":"AND(#REF!,\"KA06CXVXDtI=\")","v":{"$error":"#REF!"}},{"$f":"AND(#REF!,\"KA06CXVXDtM=\")","v":{"$error":"#REF!"}},{"$f":"AND(#REF!,\"KA06CXVXDtQ=\")","v":{"$error":"#REF!"}},{"$f":"AND(#REF!,\"KA06CXVXDtU=\")","v":{"$error":"#REF!"}},{"$f":"AND(#REF!,\"KA06CXVXDtY=\")","v":{"$error":"#REF!"}},{"$f":"AND(#REF!,\"KA06CXVXDtc=\")","v":{"$error":"#REF!"}},{"$f":"AND(#REF!,\"KA06CXVXDtg=\")","v":{"$error":"#REF!"}},{"$f":"AND(#REF!,\"KA06CXVXDtk=\")","v":{"$error":"#REF!"}},{"$f":"AND(#REF!,\"KA06CXVXDto=\")","v":{"$error":"#REF!"}},{"$f":"AND(#REF!,\"KA06CXVXDts=\")","v":{"$error":"#REF!"}},{"$f":"AND(#REF!,\"KA06CXVXDtw=\")","v":{"$error":"#REF!"}},{"$f":"AND(#REF!,\"KA06CXVXDt0=\")","v":{"$error":"#REF!"}},{"$f":"AND(#REF!,\"KA06CXVXDt4=\")","v":{"$error":"#REF!"}},{"$f":"AND(#REF!,\"KA06CXVXDt8=\")","v":{"$error":"#REF!"}},{"$f":"AND(#REF!,\"KA06CXVXDuA=\")","v":{"$error":"#REF!"}},{"$f":"AND(#REF!,\"KA06CXVXDuE=\")","v":{"$error":"#REF!"}},{"$f":"AND(#REF!,\"KA06CXVXDuI=\")","v":{"$error":"#REF!"}},{"$f":"AND(#REF!,\"KA06CXVXDuM=\")","v":{"$error":"#REF!"}},{"$f":"AND(#REF!,\"KA06CXVXDuQ=\")","v":{"$error":"#REF!"}},{"$f":"AND(#REF!,\"KA06CXVXDuU=\")","v":{"$error":"#REF!"}},{"$f":"AND(#REF!,\"KA06CXVXDuY=\")","v":{"$error":"#REF!"}},{"$f":"AND(#REF!,\"KA06CXVXDuc=\")","v":{"$error":"#REF!"}},{"$f":"AND(#REF!,\"KA06CXVXDug=\")","v":{"$error":"#REF!"}},{"$f":"AND(#REF!,\"KA06CXVXDuk=\")","v":{"$error":"#REF!"}},{"$f":"AND(#REF!,\"KA06CXVXDuo=\")","v":{"$error":"#REF!"}},{"$f":"AND(#REF!,\"KA06CXVXDus=\")","v":{"$error":"#REF!"}},{"$f":"AND(#REF!,\"KA06CXVXDuw=\")","v":{"$error":"#REF!"}},{"$f":"AND(#REF!,\"KA06CXVXDu0=\")","v":{"$error":"#REF!"}},{"$f":"AND(#REF!,\"KA06CXVXDu4=\")","v":{"$error":"#REF!"}},{"$f":"AND(#REF!,\"KA06CXVXDu8=\")","v":{"$error":"#REF!"}},{"$f":"AND(#REF!,\"KA06CXVXDvA=\")","v":{"$error":"#REF!"}},{"$f":"AND(#REF!,\"KA06CXVXDvE=\")","v":{"$error":"#REF!"}},{"$f":"AND(#REF!,\"KA06CXVXDvI=\")","v":{"$error":"#REF!"}},{"$f":"AND(#REF!,\"KA06CXVXDvM=\")","v":{"$error":"#REF!"}},{"$f":"AND(#REF!,\"KA06CXVXDvQ=\")","v":{"$error":"#REF!"}},{"$f":"AND(#REF!,\"KA06CXVXDvU=\")","v":{"$error":"#REF!"}},{"$f":"AND(#REF!,\"KA06CXVXDvY=\")","v":{"$error":"#REF!"}},{"$f":"AND(#REF!,\"KA06CXVXDvc=\")","v":{"$error":"#REF!"}},{"$f":"AND(#REF!,\"KA06CXVXDvg=\")","v":{"$error":"#REF!"}},{"$f":"AND(#REF!,\"KA06CXVXDvk=\")","v":{"$error":"#REF!"}},{"$f":"AND(#REF!,\"KA06CXVXDvo=\")","v":{"$error":"#REF!"}},{"$f":"AND(#REF!,\"KA06CXVXDvs=\")","v":{"$error":"#REF!"}},{"$f":"AND(#REF!,\"KA06CXVXDvw=\")","v":{"$error":"#REF!"}},{"$f":"AND(#REF!,\"KA06CXVXDv0=\")","v":{"$error":"#REF!"}},{"$f":"AND(#REF!,\"KA06CXVXDv4=\")","v":{"$error":"#REF!"}},{"$f":"AND(#REF!,\"KA06CXVXDv8=\")","v":{"$error":"#REF!"}}]
[{"$f":"AND(#REF!,\"aqGDf2Js3QA=\")","v":{"$error":"#REF!"}},{"$f":"AND(#REF!,\"aqGDf2Js3QE=\")","v":{"$error":"#REF!"}},{"$f":"AND(#REF!,\"aqGDf2Js3QI=\")","v":{"$error":"#REF!"}},{"$f":"AND(#REF!,\"aqGDf2Js3QM=\")","v":{"$error":"#REF!"}},{"$f":"AND(#REF!,\"aqGDf2Js3QQ=\")","v":{"$error":"#REF!"}},{"$f":"AND(#REF!,\"aqGDf2Js3QU=\")","v":{"$error":"#REF!"}},{"$f":"AND(#REF!,\"aqGDf2Js3QY=\")","v":{"$error":"#REF!"}},{"$f":"AND(#REF!,\"aqGDf2Js3Qc=\")","v":{"$error":"#REF!"}},{"$f":"AND(#REF!,\"aqGDf2Js3Qg=\")","v":{"$error":"#REF!"}},{"$f":"AND(#REF!,\"aqGDf2Js3Qk=\")","v":{"$error":"#REF!"}},{"$f":"AND(#REF!,\"aqGDf2Js3Qo=\")","v":{"$error":"#REF!"}},{"$f":"AND(#REF!,\"aqGDf2Js3Qs=\")","v":{"$error":"#REF!"}},{"$f":"AND(#REF!,\"aqGDf2Js3Qw=\")","v":{"$error":"#REF!"}},{"$f":"AND(#REF!,\"aqGDf2Js3Q0=\")","v":{"$error":"#REF!"}},{"$f":"AND(#REF!,\"aqGDf2Js3Q4=\")","v":{"$error":"#REF!"}},{"$f":"AND(#REF!,\"aqGDf2Js3Q8=\")","v":{"$error":"#REF!"}},{"$f":"AND(#REF!,\"aqGDf2Js3RA=\")","v":{"$error":"#REF!"}},{"$f":"AND(#REF!,\"aqGDf2Js3RE=\")","v":{"$error":"#REF!"}},{"$f":"AND(#REF!,\"aqGDf2Js3RI=\")","v":{"$error":"#REF!"}},{"$f":"AND(#REF!,\"aqGDf2Js3RM=\")","v":{"$error":"#REF!"}},{"$f":"AND(#REF!,\"aqGDf2Js3RQ=\")","v":{"$error":"#REF!"}},{"$f":"AND(#REF!,\"aqGDf2Js3RU=\")","v":{"$error":"#REF!"}},{"$f":"AND(#REF!,\"aqGDf2Js3RY=\")","v":{"$error":"#REF!"}},{"$f":"AND(#REF!,\"aqGDf2Js3Rc=\")","v":{"$error":"#REF!"}},{"$f":"AND(#REF!,\"aqGDf2Js3Rg=\")","v":{"$error":"#REF!"}},{"$f":"AND(#REF!,\"aqGDf2Js3Rk=\")","v":{"$error":"#REF!"}},{"$f":"AND(#REF!,\"aqGDf2Js3Ro=\")","v":{"$error":"#REF!"}},{"$f":"AND(#REF!,\"aqGDf2Js3Rs=\")","v":{"$error":"#REF!"}},{"$f":"AND(#REF!,\"aqGDf2Js3Rw=\")","v":{"$error":"#REF!"}},{"$f":"AND(#REF!,\"aqGDf2Js3R0=\")","v":{"$error":"#REF!"}},{"$f":"AND(#REF!,\"aqGDf2Js3R4=\")","v":{"$error":"#REF!"}},{"$f":"AND(#REF!,\"aqGDf2Js3R8=\")","v":{"$error":"#REF!"}},{"$f":"AND(#REF!,\"aqGDf2Js3SA=\")","v":{"$error":"#REF!"}},{"$f":"AND(#REF!,\"aqGDf2Js3SE=\")","v":{"$error":"#REF!"}},{"$f":"AND(#REF!,\"aqGDf2Js3SI=\")","v":{"$error":"#REF!"}},{"$f":"AND(#REF!,\"aqGDf2Js3SM=\")","v":{"$error":"#REF!"}},{"$f":"AND(#REF!,\"aqGDf2Js3SQ=\")","v":{"$error":"#REF!"}},{"$f":"AND(#REF!,\"aqGDf2Js3SU=\")","v":{"$error":"#REF!"}},{"$f":"AND(#REF!,\"aqGDf2Js3SY=\")","v":{"$error":"#REF!"}},{"$f":"AND(#REF!,\"aqGDf2Js3Sc=\")","v":{"$error":"#REF!"}},{"$f":"AND(#REF!,\"aqGDf2Js3Sg=\")","v":{"$error":"#REF!"}},{"$f":"AND(#REF!,\"aqGDf2Js3Sk=\")","v":{"$error":"#REF!"}},{"$f":"AND(#REF!,\"aqGDf2Js3So=\")","v":{"$error":"#REF!"}},{"$f":"AND(#REF!,\"aqGDf2Js3Ss=\")","v":{"$error":"#REF!"}},{"$f":"AND(#REF!,\"aqGDf2Js3Sw=\")","v":{"$error":"#REF!"}},{"$f":"AND(#REF!,\"aqGDf2Js3S0=\")","v":{"$error":"#REF!"}},{"$f":"AND(#REF!,\"aqGDf2Js3S4=\")","v":{"$error":"#REF!"}},{"$f":"AND(#REF!,\"aqGDf2Js3S8=\")","v":{"$error":"#REF!"}},{"$f":"AND(#REF!,\"aqGDf2Js3TA=\")","v":{"$error":"#REF!"}},{"$f":"AND(#REF!,\"aqGDf2Js3TE=\")","v":{"$error":"#REF!"}},{"$f":"AND(#REF!,\"aqGDf2Js3TI=\")","v":{"$error":"#REF!"}},{"$f":"AND(#REF!,\"aqGDf2Js3TM=\")","v":{"$error":"#REF!"}},{"$f":"AND(#REF!,\"aqGDf2Js3TQ=\")","v":{"$error":"#REF!"}},{"$f":"AND(#REF!,\"aqGDf2Js3TU=\")","v":{"$error":"#REF!"}},{"$f":"AND(#REF!,\"aqGDf2Js3TY=\")","v":{"$error":"#REF!"}},{"$f":"AND(#REF!,\"aqGDf2Js3Tc=\")","v":{"$error":"#REF!"}},{"$f":"AND(#REF!,\"aqGDf2Js3Tg=\")","v":{"$error":"#REF!"}},{"$f":"AND(#REF!,\"aqGDf2Js3Tk=\")","v":{"$error":"#REF!"}},{"$f":"AND(#REF!,\"aqGDf2Js3To=\")","v":{"$error":"#REF!"}},{"$f":"AND(#REF!,\"aqGDf2Js3Ts=\")","v":{"$error":"#REF!"}},{"$f":"AND(#REF!,\"aqGDf2Js3Tw=\")","v":{"$error":"#REF!"}},{"$f":"AND(#REF!,\"aqGDf2Js3T0=\")","v":{"$error":"#REF!"}},{"$f":"AND(#REF!,\"aqGDf2Js3T4=\")","v":{"$error":"#REF!"}},{"$f":"AND(#REF!,\"aqGDf2Js3T8=\")","v":{"$error":"#REF!"}},{"$f":"AND(#REF!,\"aqGDf2Js3UA=\")","v":{"$error":"#REF!"}},{"$f":"AND(#REF!,\"aqGDf2Js3UE=\")","v":{"$error":"#REF!"}},{"$f":"AND(#REF!,\"aqGDf2Js3UI=\")","v":{"$error":"#REF!"}},{"$f":"AND(#REF!,\"aqGDf2Js3UM=\")","v":{"$error":"#REF!"}},{"$f":"AND(#REF!,\"aqGDf2Js3UQ=\")","v":{"$error":"#REF!"}},{"$f":"AND(#REF!,\"aqGDf2Js3UU=\")","v":{"$error":"#REF!"}},{"$f":"AND(#REF!,\"aqGDf2Js3UY=\")","v":{"$error":"#REF!"}},{"$f":"AND(#REF!,\"aqGDf2Js3Uc=\")","v":{"$error":"#REF!"}},{"$f":"AND(#REF!,\"aqGDf2Js3Ug=\")","v":{"$error":"#REF!"}},{"$f":"AND(#REF!,\"aqGDf2Js3Uk=\")","v":{"$error":"#REF!"}},{"$f":"AND(#REF!,\"aqGDf2Js3Uo=\")","v":{"$error":"#REF!"}},{"$f":"AND(#REF!,\"aqGDf2Js3Us=\")","v":{"$error":"#REF!"}},{"$f":"AND(#REF!,\"aqGDf2Js3Uw=\")","v":{"$error":"#REF!"}},{"$f":"AND(#REF!,\"aqGDf2Js3U0=\")","v":{"$error":"#REF!"}},{"$f":"AND(#REF!,\"aqGDf2Js3U4=\")","v":{"$error":"#REF!"}},{"$f":"AND(#REF!,\"aqGDf2Js3U8=\")","v":{"$error":"#REF!"}},{"$f":"AND(#REF!,\"aqGDf2Js3VA=\")","v":{"$error":"#REF!"}},{"$f":"AND(#REF!,\"aqGDf2Js3VE=\")","v":{"$error":"#REF!"}},{"$f":"AND(#REF!,\"aqGDf2Js3VI=\")","v":{"$error":"#REF!"}},{"$f":"AND(#REF!,\"aqGDf2Js3VM=\")","v":{"$error":"#REF!"}},{"$f":"AND(#REF!,\"aqGDf2Js3VQ=\")","v":{"$error":"#REF!"}},{"$f":"AND(#REF!,\"aqGDf2Js3VU=\")","v":{"$error":"#REF!"}},{"$f":"AND(#REF!,\"aqGDf2Js3VY=\")","v":{"$error":"#REF!"}},{"$f":"AND(#REF!,\"aqGDf2Js3Vc=\")","v":{"$error":"#REF!"}},{"$f":"AND(#REF!,\"aqGDf2Js3Vg=\")","v":{"$error":"#REF!"}},{"$f":"AND(#REF!,\"aqGDf2Js3Vk=\")","v":{"$error":"#REF!"}},{"$f":"AND(#REF!,\"aqGDf2Js3Vo=\")","v":{"$error":"#REF!"}},{"$f":"AND(#REF!,\"aqGDf2Js3Vs=\")","v":{"$error":"#REF!"}},{"$f":"AND(#REF!,\"aqGDf2Js3Vw=\")","v":{"$error":"#REF!"}},{"$f":"AND(#REF!,\"aqGDf2Js3V0=\")","v":{"$error":"#REF!"}},{"$f":"AND(#REF!,\"aqGDf2Js3V4=\")","v":{"$error":"#REF!"}},{"$f":"AND(#REF!,\"aqGDf2Js3V8=\")","v":{"$error":"#REF!"}},{"$f":"AND(#REF!,\"aqGDf2Js3WA=\")","v":{"$error":"#REF!"}},{"$f":"AND(#REF!,\"aqGDf2Js3WE=\")","v":{"$error":"#REF!"}},{"$f":"AND(#REF!,\"aqGDf2Js3WI=\")","v":{"$error":"#REF!"}},{"$f":"AND(#REF!,\"aqGDf2Js3WM=\")","v":{"$error":"#REF!"}},{"$f":"AND(#REF!,\"aqGDf2Js3WQ=\")","v":{"$error":"#REF!"}},{"$f":"AND(#REF!,\"aqGDf2Js3WU=\")","v":{"$error":"#REF!"}},{"$f":"AND(#REF!,\"aqGDf2Js3WY=\")","v":{"$error":"#REF!"}},{"$f":"AND(#REF!,\"aqGDf2Js3Wc=\")","v":{"$error":"#REF!"}},{"$f":"AND(#REF!,\"aqGDf2Js3Wg=\")","v":{"$error":"#REF!"}},{"$f":"AND(#REF!,\"aqGDf2Js3Wk=\")","v":{"$error":"#REF!"}},{"$f":"AND(#REF!,\"aqGDf2Js3Wo=\")","v":{"$error":"#REF!"}},{"$f":"AND(#REF!,\"aqGDf2Js3Ws=\")","v":{"$error":"#REF!"}},{"$f":"IF(#REF!,\"aqGDf2Js3Ww=\",0)","v":{"$error":"#REF!"}},{"$f":"AND(#REF!,\"aqGDf2Js3W0=\")","v":{"$error":"#REF!"}},{"$f":"AND(#REF!,\"aqGDf2Js3W4=\")","v":{"$error":"#REF!"}},{"$f":"AND(#REF!,\"aqGDf2Js3W8=\")","v":{"$error":"#REF!"}},{"$f":"AND(#REF!,\"aqGDf2Js3XA=\")","v":{"$error":"#REF!"}},{"$f":"AND(#REF!,\"aqGDf2Js3XE=\")","v":{"$error":"#REF!"}},{"$f":"AND(#REF!,\"aqGDf2Js3XI=\")","v":{"$error":"#REF!"}},{"$f":"AND(#REF!,\"aqGDf2Js3XM=\")","v":{"$error":"#REF!"}},{"$f":"AND(#REF!,\"aqGDf2Js3XQ=\")","v":{"$error":"#REF!"}},{"$f":"AND(#REF!,\"aqGDf2Js3XU=\")","v":{"$error":"#REF!"}},{"$f":"AND(#REF!,\"aqGDf2Js3XY=\")","v":{"$error":"#REF!"}},{"$f":"AND(#REF!,\"aqGDf2Js3Xc=\")","v":{"$error":"#REF!"}},{"$f":"AND(#REF!,\"aqGDf2Js3Xg=\")","v":{"$error":"#REF!"}},{"$f":"AND(#REF!,\"aqGDf2Js3Xk=\")","v":{"$error":"#REF!"}},{"$f":"AND(#REF!,\"aqGDf2Js3Xo=\")","v":{"$error":"#REF!"}},{"$f":"AND(#REF!,\"aqGDf2Js3Xs=\")","v":{"$error":"#REF!"}},{"$f":"AND(#REF!,\"aqGDf2Js3Xw=\")","v":{"$error":"#REF!"}},{"$f":"AND(#REF!,\"aqGDf2Js3X0=\")","v":{"$error":"#REF!"}},{"$f":"AND(#REF!,\"aqGDf2Js3X4=\")","v":{"$error":"#REF!"}},{"$f":"AND(#REF!,\"aqGDf2Js3X8=\")","v":{"$error":"#REF!"}},{"$f":"AND(#REF!,\"aqGDf2Js3YA=\")","v":{"$error":"#REF!"}},{"$f":"AND(#REF!,\"aqGDf2Js3YE=\")","v":{"$error":"#REF!"}},{"$f":"AND(#REF!,\"aqGDf2Js3YI=\")","v":{"$error":"#REF!"}},{"$f":"AND(#REF!,\"aqGDf2Js3YM=\")","v":{"$error":"#REF!"}},{"$f":"AND(#REF!,\"aqGDf2Js3YQ=\")","v":{"$error":"#REF!"}},{"$f":"AND(#REF!,\"aqGDf2Js3YU=\")","v":{"$error":"#REF!"}},{"$f":"AND(#REF!,\"aqGDf2Js3YY=\")","v":{"$error":"#REF!"}},{"$f":"AND(#REF!,\"aqGDf2Js3Yc=\")","v":{"$error":"#REF!"}},{"$f":"AND(#REF!,\"aqGDf2Js3Yg=\")","v":{"$error":"#REF!"}},{"$f":"AND(#REF!,\"aqGDf2Js3Yk=\")","v":{"$error":"#REF!"}},{"$f":"AND(#REF!,\"aqGDf2Js3Yo=\")","v":{"$error":"#REF!"}},{"$f":"AND(#REF!,\"aqGDf2Js3Ys=\")","v":{"$error":"#REF!"}},{"$f":"AND(#REF!,\"aqGDf2Js3Yw=\")","v":{"$error":"#REF!"}},{"$f":"AND(#REF!,\"aqGDf2Js3Y0=\")","v":{"$error":"#REF!"}},{"$f":"AND(#REF!,\"aqGDf2Js3Y4=\")","v":{"$error":"#REF!"}},{"$f":"AND(#REF!,\"aqGDf2Js3Y8=\")","v":{"$error":"#REF!"}},{"$f":"AND(#REF!,\"aqGDf2Js3ZA=\")","v":{"$error":"#REF!"}},{"$f":"AND(#REF!,\"aqGDf2Js3ZE=\")","v":{"$error":"#REF!"}},{"$f":"AND(#REF!,\"aqGDf2Js3ZI=\")","v":{"$error":"#REF!"}},{"$f":"AND(#REF!,\"aqGDf2Js3ZM=\")","v":{"$error":"#REF!"}},{"$f":"AND(#REF!,\"aqGDf2Js3ZQ=\")","v":{"$error":"#REF!"}},{"$f":"AND(#REF!,\"aqGDf2Js3ZU=\")","v":{"$error":"#REF!"}},{"$f":"AND(#REF!,\"aqGDf2Js3ZY=\")","v":{"$error":"#REF!"}},{"$f":"AND(#REF!,\"aqGDf2Js3Zc=\")","v":{"$error":"#REF!"}},{"$f":"AND(#REF!,\"aqGDf2Js3Zg=\")","v":{"$error":"#REF!"}},{"$f":"AND(#REF!,\"aqGDf2Js3Zk=\")","v":{"$error":"#REF!"}},{"$f":"AND(#REF!,\"aqGDf2Js3Zo=\")","v":{"$error":"#REF!"}},{"$f":"AND(#REF!,\"aqGDf2Js3Zs=\")","v":{"$error":"#REF!"}},{"$f":"AND(#REF!,\"aqGDf2Js3Zw=\")","v":{"$error":"#REF!"}},{"$f":"AND(#REF!,\"aqGDf2Js3Z0=\")","v":{"$error":"#REF!"}},{"$f":"AND(#REF!,\"aqGDf2Js3Z4=\")","v":{"$error":"#REF!"}},{"$f":"AND(#REF!,\"aqGDf2Js3Z8=\")","v":{"$error":"#REF!"}},{"$f":"AND(#REF!,\"aqGDf2Js3aA=\")","v":{"$error":"#REF!"}},{"$f":"AND(#REF!,\"aqGDf2Js3aE=\")","v":{"$error":"#REF!"}},{"$f":"AND(#REF!,\"aqGDf2Js3aI=\")","v":{"$error":"#REF!"}},{"$f":"AND(#REF!,\"aqGDf2Js3aM=\")","v":{"$error":"#REF!"}},{"$f":"AND(#REF!,\"aqGDf2Js3aQ=\")","v":{"$error":"#REF!"}},{"$f":"AND(#REF!,\"aqGDf2Js3aU=\")","v":{"$error":"#REF!"}},{"$f":"AND(#REF!,\"aqGDf2Js3aY=\")","v":{"$error":"#REF!"}},{"$f":"AND(#REF!,\"aqGDf2Js3ac=\")","v":{"$error":"#REF!"}},{"$f":"AND(#REF!,\"aqGDf2Js3ag=\")","v":{"$error":"#REF!"}},{"$f":"AND(#REF!,\"aqGDf2Js3ak=\")","v":{"$error":"#REF!"}},{"$f":"AND(#REF!,\"aqGDf2Js3ao=\")","v":{"$error":"#REF!"}},{"$f":"AND(#REF!,\"aqGDf2Js3as=\")","v":{"$error":"#REF!"}},{"$f":"AND(#REF!,\"aqGDf2Js3aw=\")","v":{"$error":"#REF!"}},{"$f":"AND(#REF!,\"aqGDf2Js3a0=\")","v":{"$error":"#REF!"}},{"$f":"AND(#REF!,\"aqGDf2Js3a4=\")","v":{"$error":"#REF!"}},{"$f":"AND(#REF!,\"aqGDf2Js3a8=\")","v":{"$error":"#REF!"}},{"$f":"AND(#REF!,\"aqGDf2Js3bA=\")","v":{"$error":"#REF!"}},{"$f":"AND(#REF!,\"aqGDf2Js3bE=\")","v":{"$error":"#REF!"}},{"$f":"AND(#REF!,\"aqGDf2Js3bI=\")","v":{"$error":"#REF!"}},{"$f":"AND(#REF!,\"aqGDf2Js3bM=\")","v":{"$error":"#REF!"}},{"$f":"AND(#REF!,\"aqGDf2Js3bQ=\")","v":{"$error":"#REF!"}},{"$f":"AND(#REF!,\"aqGDf2Js3bU=\")","v":{"$error":"#REF!"}},{"$f":"AND(#REF!,\"aqGDf2Js3bY=\")","v":{"$error":"#REF!"}},{"$f":"AND(#REF!,\"aqGDf2Js3bc=\")","v":{"$error":"#REF!"}},{"$f":"AND(#REF!,\"aqGDf2Js3bg=\")","v":{"$error":"#REF!"}},{"$f":"AND(#REF!,\"aqGDf2Js3bk=\")","v":{"$error":"#REF!"}},{"$f":"AND(#REF!,\"aqGDf2Js3bo=\")","v":{"$error":"#REF!"}},{"$f":"AND(#REF!,\"aqGDf2Js3bs=\")","v":{"$error":"#REF!"}},{"$f":"AND(#REF!,\"aqGDf2Js3bw=\")","v":{"$error":"#REF!"}},{"$f":"AND(#REF!,\"aqGDf2Js3b0=\")","v":{"$error":"#REF!"}},{"$f":"AND(#REF!,\"aqGDf2Js3b4=\")","v":{"$error":"#REF!"}},{"$f":"AND(#REF!,\"aqGDf2Js3b8=\")","v":{"$error":"#REF!"}},{"$f":"AND(#REF!,\"aqGDf2Js3cA=\")","v":{"$error":"#REF!"}},{"$f":"AND(#REF!,\"aqGDf2Js3cE=\")","v":{"$error":"#REF!"}},{"$f":"AND(#REF!,\"aqGDf2Js3cI=\")","v":{"$error":"#REF!"}},{"$f":"AND(#REF!,\"aqGDf2Js3cM=\")","v":{"$error":"#REF!"}},{"$f":"AND(#REF!,\"aqGDf2Js3cQ=\")","v":{"$error":"#REF!"}},{"$f":"AND(#REF!,\"aqGDf2Js3cU=\")","v":{"$error":"#REF!"}},{"$f":"AND(#REF!,\"aqGDf2Js3cY=\")","v":{"$error":"#REF!"}},{"$f":"AND(#REF!,\"aqGDf2Js3cc=\")","v":{"$error":"#REF!"}},{"$f":"AND(#REF!,\"aqGDf2Js3cg=\")","v":{"$error":"#REF!"}},{"$f":"AND(#REF!,\"aqGDf2Js3ck=\")","v":{"$error":"#REF!"}},{"$f":"AND(#REF!,\"aqGDf2Js3co=\")","v":{"$error":"#REF!"}},{"$f":"AND(#REF!,\"aqGDf2Js3cs=\")","v":{"$error":"#REF!"}},{"$f":"AND(#REF!,\"aqGDf2Js3cw=\")","v":{"$error":"#REF!"}},{"$f":"AND(#REF!,\"aqGDf2Js3c0=\")","v":{"$error":"#REF!"}},{"$f":"AND(#REF!,\"aqGDf2Js3c4=\")","v":{"$error":"#REF!"}},{"$f":"AND(#REF!,\"aqGDf2Js3c8=\")","v":{"$error":"#REF!"}},{"$f":"AND(#REF!,\"aqGDf2Js3dA=\")","v":{"$error":"#REF!"}},{"$f":"AND(#REF!,\"aqGDf2Js3dE=\")","v":{"$error":"#REF!"}},{"$f":"AND(#REF!,\"aqGDf2Js3dI=\")","v":{"$error":"#REF!"}},{"$f":"AND(#REF!,\"aqGDf2Js3dM=\")","v":{"$error":"#REF!"}},{"$f":"AND(#REF!,\"aqGDf2Js3dQ=\")","v":{"$error":"#REF!"}},{"$f":"AND(#REF!,\"aqGDf2Js3dU=\")","v":{"$error":"#REF!"}},{"$f":"AND(#REF!,\"aqGDf2Js3dY=\")","v":{"$error":"#REF!"}},{"$f":"AND(#REF!,\"aqGDf2Js3dc=\")","v":{"$error":"#REF!"}},{"$f":"AND(#REF!,\"aqGDf2Js3dg=\")","v":{"$error":"#REF!"}},{"$f":"AND(#REF!,\"aqGDf2Js3dk=\")","v":{"$error":"#REF!"}},{"$f":"AND(#REF!,\"aqGDf2Js3do=\")","v":{"$error":"#REF!"}},{"$f":"AND(#REF!,\"aqGDf2Js3ds=\")","v":{"$error":"#REF!"}},{"$f":"AND(#REF!,\"aqGDf2Js3dw=\")","v":{"$error":"#REF!"}},{"$f":"AND(#REF!,\"aqGDf2Js3d0=\")","v":{"$error":"#REF!"}},{"$f":"AND(#REF!,\"aqGDf2Js3d4=\")","v":{"$error":"#REF!"}},{"$f":"AND(#REF!,\"aqGDf2Js3d8=\")","v":{"$error":"#REF!"}},{"$f":"AND(#REF!,\"aqGDf2Js3eA=\")","v":{"$error":"#REF!"}},{"$f":"AND(#REF!,\"aqGDf2Js3eE=\")","v":{"$error":"#REF!"}},{"$f":"AND(#REF!,\"aqGDf2Js3eI=\")","v":{"$error":"#REF!"}},{"$f":"AND(#REF!,\"aqGDf2Js3eM=\")","v":{"$error":"#REF!"}},{"$f":"AND(#REF!,\"aqGDf2Js3eQ=\")","v":{"$error":"#REF!"}},{"$f":"AND(#REF!,\"aqGDf2Js3eU=\")","v":{"$error":"#REF!"}},{"$f":"AND(#REF!,\"aqGDf2Js3eY=\")","v":{"$error":"#REF!"}},{"$f":"AND(#REF!,\"aqGDf2Js3ec=\")","v":{"$error":"#REF!"}},{"$f":"AND(#REF!,\"aqGDf2Js3eg=\")","v":{"$error":"#REF!"}},{"$f":"AND(#REF!,\"aqGDf2Js3ek=\")","v":{"$error":"#REF!"}},{"$f":"AND(#REF!,\"aqGDf2Js3eo=\")","v":{"$error":"#REF!"}},{"$f":"AND(#REF!,\"aqGDf2Js3es=\")","v":{"$error":"#REF!"}},{"$f":"AND(#REF!,\"aqGDf2Js3ew=\")","v":{"$error":"#REF!"}},{"$f":"AND(#REF!,\"aqGDf2Js3e0=\")","v":{"$error":"#REF!"}},{"$f":"AND(#REF!,\"aqGDf2Js3e4=\")","v":{"$error":"#REF!"}},{"$f":"AND(#REF!,\"aqGDf2Js3e8=\")","v":{"$error":"#REF!"}},{"$f":"AND(#REF!,\"aqGDf2Js3fA=\")","v":{"$error":"#REF!"}},{"$f":"AND(#REF!,\"aqGDf2Js3fE=\")","v":{"$error":"#REF!"}},{"$f":"AND(#REF!,\"aqGDf2Js3fI=\")","v":{"$error":"#REF!"}},{"$f":"AND(#REF!,\"aqGDf2Js3fM=\")","v":{"$error":"#REF!"}},{"$f":"AND(#REF!,\"aqGDf2Js3fQ=\")","v":{"$error":"#REF!"}},{"$f":"AND(#REF!,\"aqGDf2Js3fU=\")","v":{"$error":"#REF!"}},{"$f":"AND(#REF!,\"aqGDf2Js3fY=\")","v":{"$error":"#REF!"}},{"$f":"AND(#REF!,\"aqGDf2Js3fc=\")","v":{"$error":"#REF!"}},{"$f":"AND(#REF!,\"aqGDf2Js3fg=\")","v":{"$error":"#REF!"}},{"$f":"AND(#REF!,\"aqGDf2Js3fk=\")","v":{"$error":"#REF!"}},{"$f":"AND(#REF!,\"aqGDf2Js3fo=\")","v":{"$error":"#REF!"}},{"$f":"AND(#REF!,\"aqGDf2Js3fs=\")","v":{"$error":"#REF!"}},{"$f":"AND(#REF!,\"aqGDf2Js3fw=\")","v":{"$error":"#REF!"}},{"$f":"AND(#REF!,\"aqGDf2Js3f0=\")","v":{"$error":"#REF!"}},{"$f":"AND(#REF!,\"aqGDf2Js3f4=\")","v":{"$error":"#REF!"}},{"$f":"AND(#REF!,\"aqGDf2Js3f8=\")","v":{"$error":"#REF!"}}]
[{"$f":"AND(#REF!,\"RFXIPR+zCQA=\")","v":{"$error":"#REF!"}},{"$f":"AND(#REF!,\"RFXIPR+zCQE=\")","v":{"$error":"#REF!"}},{"$f":"AND(#REF!,\"RFXIPR+zCQI=\")","v":{"$error":"#REF!"}},{"$f":"AND(#REF!,\"RFXIPR+zCQM=\")","v":{"$error":"#REF!"}},{"$f":"AND(#REF!,\"RFXIPR+zCQQ=\")","v":{"$error":"#REF!"}},{"$f":"AND(#REF!,\"RFXIPR+zCQU=\")","v":{"$error":"#REF!"}},{"$f":"AND(#REF!,\"RFXIPR+zCQY=\")","v":{"$error":"#REF!"}},{"$f":"AND(#REF!,\"RFXIPR+zCQc=\")","v":{"$error":"#REF!"}},{"$f":"AND(#REF!,\"RFXIPR+zCQg=\")","v":{"$error":"#REF!"}},{"$f":"AND(#REF!,\"RFXIPR+zCQk=\")","v":{"$error":"#REF!"}},{"$f":"AND(#REF!,\"RFXIPR+zCQo=\")","v":{"$error":"#REF!"}},{"$f":"AND(#REF!,\"RFXIPR+zCQs=\")","v":{"$error":"#REF!"}},{"$f":"AND(#REF!,\"RFXIPR+zCQw=\")","v":{"$error":"#REF!"}},{"$f":"AND(#REF!,\"RFXIPR+zCQ0=\")","v":{"$error":"#REF!"}},{"$f":"AND(#REF!,\"RFXIPR+zCQ4=\")","v":{"$error":"#REF!"}},{"$f":"AND(#REF!,\"RFXIPR+zCQ8=\")","v":{"$error":"#REF!"}},{"$f":"AND(#REF!,\"RFXIPR+zCRA=\")","v":{"$error":"#REF!"}},{"$f":"AND(#REF!,\"RFXIPR+zCRE=\")","v":{"$error":"#REF!"}},{"$f":"AND(#REF!,\"RFXIPR+zCRI=\")","v":{"$error":"#REF!"}},{"$f":"AND(#REF!,\"RFXIPR+zCRM=\")","v":{"$error":"#REF!"}},{"$f":"AND(#REF!,\"RFXIPR+zCRQ=\")","v":{"$error":"#REF!"}},{"$f":"AND(#REF!,\"RFXIPR+zCRU=\")","v":{"$error":"#REF!"}},{"$f":"AND(#REF!,\"RFXIPR+zCRY=\")","v":{"$error":"#REF!"}},{"$f":"AND(#REF!,\"RFXIPR+zCRc=\")","v":{"$error":"#REF!"}},{"$f":"AND(#REF!,\"RFXIPR+zCRg=\")","v":{"$error":"#REF!"}},{"$f":"AND(#REF!,\"RFXIPR+zCRk=\")","v":{"$error":"#REF!"}},{"$f":"AND(#REF!,\"RFXIPR+zCRo=\")","v":{"$error":"#REF!"}},{"$f":"AND(#REF!,\"RFXIPR+zCRs=\")","v":{"$error":"#REF!"}},{"$f":"AND(#REF!,\"RFXIPR+zCRw=\")","v":{"$error":"#REF!"}},{"$f":"AND(#REF!,\"RFXIPR+zCR0=\")","v":{"$error":"#REF!"}},{"$f":"AND(#REF!,\"RFXIPR+zCR4=\")","v":{"$error":"#REF!"}},{"$f":"AND(#REF!,\"RFXIPR+zCR8=\")","v":{"$error":"#REF!"}},{"$f":"AND(#REF!,\"RFXIPR+zCSA=\")","v":{"$error":"#REF!"}},{"$f":"AND(#REF!,\"RFXIPR+zCSE=\")","v":{"$error":"#REF!"}},{"$f":"AND(#REF!,\"RFXIPR+zCSI=\")","v":{"$error":"#REF!"}},{"$f":"AND(#REF!,\"RFXIPR+zCSM=\")","v":{"$error":"#REF!"}},{"$f":"AND(#REF!,\"RFXIPR+zCSQ=\")","v":{"$error":"#REF!"}},{"$f":"AND(#REF!,\"RFXIPR+zCSU=\")","v":{"$error":"#REF!"}},{"$f":"AND(#REF!,\"RFXIPR+zCSY=\")","v":{"$error":"#REF!"}},{"$f":"AND(#REF!,\"RFXIPR+zCSc=\")","v":{"$error":"#REF!"}},{"$f":"AND(#REF!,\"RFXIPR+zCSg=\")","v":{"$error":"#REF!"}},{"$f":"AND(#REF!,\"RFXIPR+zCSk=\")","v":{"$error":"#REF!"}},{"$f":"AND(#REF!,\"RFXIPR+zCSo=\")","v":{"$error":"#REF!"}},{"$f":"AND(#REF!,\"RFXIPR+zCSs=\")","v":{"$error":"#REF!"}},{"$f":"AND(#REF!,\"RFXIPR+zCSw=\")","v":{"$error":"#REF!"}},{"$f":"AND(#REF!,\"RFXIPR+zCS0=\")","v":{"$error":"#REF!"}},{"$f":"AND(#REF!,\"RFXIPR+zCS4=\")","v":{"$error":"#REF!"}},{"$f":"AND(#REF!,\"RFXIPR+zCS8=\")","v":{"$error":"#REF!"}},{"$f":"AND(#REF!,\"RFXIPR+zCTA=\")","v":{"$error":"#REF!"}},{"$f":"AND(#REF!,\"RFXIPR+zCTE=\")","v":{"$error":"#REF!"}},{"$f":"AND(#REF!,\"RFXIPR+zCTI=\")","v":{"$error":"#REF!"}},{"$f":"IF(#REF!,\"RFXIPR+zCTM=\",0)","v":{"$error":"#REF!"}},{"$f":"AND(#REF!,\"RFXIPR+zCTQ=\")","v":{"$error":"#REF!"}},{"$f":"AND(#REF!,\"RFXIPR+zCTU=\")","v":{"$error":"#REF!"}},{"$f":"AND(#REF!,\"RFXIPR+zCTY=\")","v":{"$error":"#REF!"}},{"$f":"AND(#REF!,\"RFXIPR+zCTc=\")","v":{"$error":"#REF!"}},{"$f":"AND(#REF!,\"RFXIPR+zCTg=\")","v":{"$error":"#REF!"}},{"$f":"AND(#REF!,\"RFXIPR+zCTk=\")","v":{"$error":"#REF!"}},{"$f":"AND(#REF!,\"RFXIPR+zCTo=\")","v":{"$error":"#REF!"}},{"$f":"AND(#REF!,\"RFXIPR+zCTs=\")","v":{"$error":"#REF!"}},{"$f":"AND(#REF!,\"RFXIPR+zCTw=\")","v":{"$error":"#REF!"}},{"$f":"AND(#REF!,\"RFXIPR+zCT0=\")","v":{"$error":"#REF!"}},{"$f":"AND(#REF!,\"RFXIPR+zCT4=\")","v":{"$error":"#REF!"}},{"$f":"AND(#REF!,\"RFXIPR+zCT8=\")","v":{"$error":"#REF!"}},{"$f":"AND(#REF!,\"RFXIPR+zCUA=\")","v":{"$error":"#REF!"}},{"$f":"AND(#REF!,\"RFXIPR+zCUE=\")","v":{"$error":"#REF!"}},{"$f":"AND(#REF!,\"RFXIPR+zCUI=\")","v":{"$error":"#REF!"}},{"$f":"AND(#REF!,\"RFXIPR+zCUM=\")","v":{"$error":"#REF!"}},{"$f":"AND(#REF!,\"RFXIPR+zCUQ=\")","v":{"$error":"#REF!"}},{"$f":"AND(#REF!,\"RFXIPR+zCUU=\")","v":{"$error":"#REF!"}},{"$f":"AND(#REF!,\"RFXIPR+zCUY=\")","v":{"$error":"#REF!"}},{"$f":"AND(#REF!,\"RFXIPR+zCUc=\")","v":{"$error":"#REF!"}},{"$f":"AND(#REF!,\"RFXIPR+zCUg=\")","v":{"$error":"#REF!"}},{"$f":"AND(#REF!,\"RFXIPR+zCUk=\")","v":{"$error":"#REF!"}},{"$f":"AND(#REF!,\"RFXIPR+zCUo=\")","v":{"$error":"#REF!"}},{"$f":"AND(#REF!,\"RFXIPR+zCUs=\")","v":{"$error":"#REF!"}},{"$f":"AND(#REF!,\"RFXIPR+zCUw=\")","v":{"$error":"#REF!"}},{"$f":"AND(#REF!,\"RFXIPR+zCU0=\")","v":{"$error":"#REF!"}},{"$f":"AND(#REF!,\"RFXIPR+zCU4=\")","v":{"$error":"#REF!"}},{"$f":"AND(#REF!,\"RFXIPR+zCU8=\")","v":{"$error":"#REF!"}},{"$f":"AND(#REF!,\"RFXIPR+zCVA=\")","v":{"$error":"#REF!"}},{"$f":"AND(#REF!,\"RFXIPR+zCVE=\")","v":{"$error":"#REF!"}},{"$f":"AND(#REF!,\"RFXIPR+zCVI=\")","v":{"$error":"#REF!"}},{"$f":"AND(#REF!,\"RFXIPR+zCVM=\")","v":{"$error":"#REF!"}},{"$f":"AND(#REF!,\"RFXIPR+zCVQ=\")","v":{"$error":"#REF!"}},{"$f":"AND(#REF!,\"RFXIPR+zCVU=\")","v":{"$error":"#REF!"}},{"$f":"AND(#REF!,\"RFXIPR+zCVY=\")","v":{"$error":"#REF!"}},{"$f":"AND(#REF!,\"RFXIPR+zCVc=\")","v":{"$error":"#REF!"}},{"$f":"AND(#REF!,\"RFXIPR+zCVg=\")","v":{"$error":"#REF!"}},{"$f":"AND(#REF!,\"RFXIPR+zCVk=\")","v":{"$error":"#REF!"}},{"$f":"AND(#REF!,\"RFXIPR+zCVo=\")","v":{"$error":"#REF!"}},{"$f":"AND(#REF!,\"RFXIPR+zCVs=\")","v":{"$error":"#REF!"}},{"$f":"AND(#REF!,\"RFXIPR+zCVw=\")","v":{"$error":"#REF!"}},{"$f":"AND(#REF!,\"RFXIPR+zCV0=\")","v":{"$error":"#REF!"}},{"$f":"AND(#REF!,\"RFXIPR+zCV4=\")","v":{"$error":"#REF!"}},{"$f":"AND(#REF!,\"RFXIPR+zCV8=\")","v":{"$error":"#REF!"}},{"$f":"AND(#REF!,\"RFXIPR+zCWA=\")","v":{"$error":"#REF!"}},{"$f":"AND(#REF!,\"RFXIPR+zCWE=\")","v":{"$error":"#REF!"}},{"$f":"AND(#REF!,\"RFXIPR+zCWI=\")","v":{"$error":"#REF!"}},{"$f":"AND(#REF!,\"RFXIPR+zCWM=\")","v":{"$error":"#REF!"}},{"$f":"AND(#REF!,\"RFXIPR+zCWQ=\")","v":{"$error":"#REF!"}},{"$f":"AND(#REF!,\"RFXIPR+zCWU=\")","v":{"$error":"#REF!"}},{"$f":"AND(#REF!,\"RFXIPR+zCWY=\")","v":{"$error":"#REF!"}},{"$f":"AND(#REF!,\"RFXIPR+zCWc=\")","v":{"$error":"#REF!"}},{"$f":"AND(#REF!,\"RFXIPR+zCWg=\")","v":{"$error":"#REF!"}},{"$f":"AND(#REF!,\"RFXIPR+zCWk=\")","v":{"$error":"#REF!"}},{"$f":"AND(#REF!,\"RFXIPR+zCWo=\")","v":{"$error":"#REF!"}},{"$f":"AND(#REF!,\"RFXIPR+zCWs=\")","v":{"$error":"#REF!"}},{"$f":"AND(#REF!,\"RFXIPR+zCWw=\")","v":{"$error":"#REF!"}},{"$f":"AND(#REF!,\"RFXIPR+zCW0=\")","v":{"$error":"#REF!"}},{"$f":"AND(#REF!,\"RFXIPR+zCW4=\")","v":{"$error":"#REF!"}},{"$f":"AND(#REF!,\"RFXIPR+zCW8=\")","v":{"$error":"#REF!"}},{"$f":"AND(#REF!,\"RFXIPR+zCXA=\")","v":{"$error":"#REF!"}},{"$f":"AND(#REF!,\"RFXIPR+zCXE=\")","v":{"$error":"#REF!"}},{"$f":"AND(#REF!,\"RFXIPR+zCXI=\")","v":{"$error":"#REF!"}},{"$f":"AND(#REF!,\"RFXIPR+zCXM=\")","v":{"$error":"#REF!"}},{"$f":"AND(#REF!,\"RFXIPR+zCXQ=\")","v":{"$error":"#REF!"}},{"$f":"AND(#REF!,\"RFXIPR+zCXU=\")","v":{"$error":"#REF!"}},{"$f":"AND(#REF!,\"RFXIPR+zCXY=\")","v":{"$error":"#REF!"}},{"$f":"AND(#REF!,\"RFXIPR+zCXc=\")","v":{"$error":"#REF!"}},{"$f":"AND(#REF!,\"RFXIPR+zCXg=\")","v":{"$error":"#REF!"}},{"$f":"AND(#REF!,\"RFXIPR+zCXk=\")","v":{"$error":"#REF!"}},{"$f":"AND(#REF!,\"RFXIPR+zCXo=\")","v":{"$error":"#REF!"}},{"$f":"AND(#REF!,\"RFXIPR+zCXs=\")","v":{"$error":"#REF!"}},{"$f":"AND(#REF!,\"RFXIPR+zCXw=\")","v":{"$error":"#REF!"}},{"$f":"AND(#REF!,\"RFXIPR+zCX0=\")","v":{"$error":"#REF!"}},{"$f":"AND(#REF!,\"RFXIPR+zCX4=\")","v":{"$error":"#REF!"}},{"$f":"AND(#REF!,\"RFXIPR+zCX8=\")","v":{"$error":"#REF!"}},{"$f":"AND(#REF!,\"RFXIPR+zCYA=\")","v":{"$error":"#REF!"}},{"$f":"AND(#REF!,\"RFXIPR+zCYE=\")","v":{"$error":"#REF!"}},{"$f":"AND(#REF!,\"RFXIPR+zCYI=\")","v":{"$error":"#REF!"}},{"$f":"AND(#REF!,\"RFXIPR+zCYM=\")","v":{"$error":"#REF!"}},{"$f":"AND(#REF!,\"RFXIPR+zCYQ=\")","v":{"$error":"#REF!"}},{"$f":"AND(#REF!,\"RFXIPR+zCYU=\")","v":{"$error":"#REF!"}},{"$f":"AND(#REF!,\"RFXIPR+zCYY=\")","v":{"$error":"#REF!"}},{"$f":"AND(#REF!,\"RFXIPR+zCYc=\")","v":{"$error":"#REF!"}},{"$f":"AND(#REF!,\"RFXIPR+zCYg=\")","v":{"$error":"#REF!"}},{"$f":"AND(#REF!,\"RFXIPR+zCYk=\")","v":{"$error":"#REF!"}},{"$f":"AND(#REF!,\"RFXIPR+zCYo=\")","v":{"$error":"#REF!"}},{"$f":"AND(#REF!,\"RFXIPR+zCYs=\")","v":{"$error":"#REF!"}},{"$f":"AND(#REF!,\"RFXIPR+zCYw=\")","v":{"$error":"#REF!"}},{"$f":"AND(#REF!,\"RFXIPR+zCY0=\")","v":{"$error":"#REF!"}},{"$f":"AND(#REF!,\"RFXIPR+zCY4=\")","v":{"$error":"#REF!"}},{"$f":"AND(#REF!,\"RFXIPR+zCY8=\")","v":{"$error":"#REF!"}},{"$f":"AND(#REF!,\"RFXIPR+zCZA=\")","v":{"$error":"#REF!"}},{"$f":"AND(#REF!,\"RFXIPR+zCZE=\")","v":{"$error":"#REF!"}},{"$f":"AND(#REF!,\"RFXIPR+zCZI=\")","v":{"$error":"#REF!"}},{"$f":"AND(#REF!,\"RFXIPR+zCZM=\")","v":{"$error":"#REF!"}},{"$f":"AND(#REF!,\"RFXIPR+zCZQ=\")","v":{"$error":"#REF!"}},{"$f":"AND(#REF!,\"RFXIPR+zCZU=\")","v":{"$error":"#REF!"}},{"$f":"AND(#REF!,\"RFXIPR+zCZY=\")","v":{"$error":"#REF!"}},{"$f":"AND(#REF!,\"RFXIPR+zCZc=\")","v":{"$error":"#REF!"}},{"$f":"AND(#REF!,\"RFXIPR+zCZg=\")","v":{"$error":"#REF!"}},{"$f":"AND(#REF!,\"RFXIPR+zCZk=\")","v":{"$error":"#REF!"}},{"$f":"AND(#REF!,\"RFXIPR+zCZo=\")","v":{"$error":"#REF!"}},{"$f":"AND(#REF!,\"RFXIPR+zCZs=\")","v":{"$error":"#REF!"}},{"$f":"AND(#REF!,\"RFXIPR+zCZw=\")","v":{"$error":"#REF!"}},{"$f":"AND(#REF!,\"RFXIPR+zCZ0=\")","v":{"$error":"#REF!"}},{"$f":"AND(#REF!,\"RFXIPR+zCZ4=\")","v":{"$error":"#REF!"}},{"$f":"AND(#REF!,\"RFXIPR+zCZ8=\")","v":{"$error":"#REF!"}},{"$f":"AND(#REF!,\"RFXIPR+zCaA=\")","v":{"$error":"#REF!"}},{"$f":"AND(#REF!,\"RFXIPR+zCaE=\")","v":{"$error":"#REF!"}},{"$f":"AND(#REF!,\"RFXIPR+zCaI=\")","v":{"$error":"#REF!"}},{"$f":"AND(#REF!,\"RFXIPR+zCaM=\")","v":{"$error":"#REF!"}},{"$f":"AND(#REF!,\"RFXIPR+zCaQ=\")","v":{"$error":"#REF!"}},{"$f":"AND(#REF!,\"RFXIPR+zCaU=\")","v":{"$error":"#REF!"}},{"$f":"AND(#REF!,\"RFXIPR+zCaY=\")","v":{"$error":"#REF!"}},{"$f":"AND(#REF!,\"RFXIPR+zCac=\")","v":{"$error":"#REF!"}},{"$f":"AND(#REF!,\"RFXIPR+zCag=\")","v":{"$error":"#REF!"}},{"$f":"AND(#REF!,\"RFXIPR+zCak=\")","v":{"$error":"#REF!"}},{"$f":"AND(#REF!,\"RFXIPR+zCao=\")","v":{"$error":"#REF!"}},{"$f":"AND(#REF!,\"RFXIPR+zCas=\")","v":{"$error":"#REF!"}},{"$f":"AND(#REF!,\"RFXIPR+zCaw=\")","v":{"$error":"#REF!"}},{"$f":"AND(#REF!,\"RFXIPR+zCa0=\")","v":{"$error":"#REF!"}},{"$f":"AND(#REF!,\"RFXIPR+zCa4=\")","v":{"$error":"#REF!"}},{"$f":"AND(#REF!,\"RFXIPR+zCa8=\")","v":{"$error":"#REF!"}},{"$f":"AND(#REF!,\"RFXIPR+zCbA=\")","v":{"$error":"#REF!"}},{"$f":"AND(#REF!,\"RFXIPR+zCbE=\")","v":{"$error":"#REF!"}},{"$f":"AND(#REF!,\"RFXIPR+zCbI=\")","v":{"$error":"#REF!"}},{"$f":"AND(#REF!,\"RFXIPR+zCbM=\")","v":{"$error":"#REF!"}},{"$f":"AND(#REF!,\"RFXIPR+zCbQ=\")","v":{"$error":"#REF!"}},{"$f":"AND(#REF!,\"RFXIPR+zCbU=\")","v":{"$error":"#REF!"}},{"$f":"AND(#REF!,\"RFXIPR+zCbY=\")","v":{"$error":"#REF!"}},{"$f":"AND(#REF!,\"RFXIPR+zCbc=\")","v":{"$error":"#REF!"}},{"$f":"AND(#REF!,\"RFXIPR+zCbg=\")","v":{"$error":"#REF!"}},{"$f":"AND(#REF!,\"RFXIPR+zCbk=\")","v":{"$error":"#REF!"}},{"$f":"AND(#REF!,\"RFXIPR+zCbo=\")","v":{"$error":"#REF!"}},{"$f":"AND(#REF!,\"RFXIPR+zCbs=\")","v":{"$error":"#REF!"}},{"$f":"AND(#REF!,\"RFXIPR+zCbw=\")","v":{"$error":"#REF!"}},{"$f":"AND(#REF!,\"RFXIPR+zCb0=\")","v":{"$error":"#REF!"}},{"$f":"AND(#REF!,\"RFXIPR+zCb4=\")","v":{"$error":"#REF!"}},{"$f":"AND(#REF!,\"RFXIPR+zCb8=\")","v":{"$error":"#REF!"}},{"$f":"AND(#REF!,\"RFXIPR+zCcA=\")","v":{"$error":"#REF!"}},{"$f":"AND(#REF!,\"RFXIPR+zCcE=\")","v":{"$error":"#REF!"}},{"$f":"AND(#REF!,\"RFXIPR+zCcI=\")","v":{"$error":"#REF!"}},{"$f":"AND(#REF!,\"RFXIPR+zCcM=\")","v":{"$error":"#REF!"}},{"$f":"AND(#REF!,\"RFXIPR+zCcQ=\")","v":{"$error":"#REF!"}},{"$f":"AND(#REF!,\"RFXIPR+zCcU=\")","v":{"$error":"#REF!"}},{"$f":"AND(#REF!,\"RFXIPR+zCcY=\")","v":{"$error":"#REF!"}},{"$f":"AND(#REF!,\"RFXIPR+zCcc=\")","v":{"$error":"#REF!"}},{"$f":"AND(#REF!,\"RFXIPR+zCcg=\")","v":{"$error":"#REF!"}},{"$f":"AND(#REF!,\"RFXIPR+zCck=\")","v":{"$error":"#REF!"}},{"$f":"AND(#REF!,\"RFXIPR+zCco=\")","v":{"$error":"#REF!"}},{"$f":"AND(#REF!,\"RFXIPR+zCcs=\")","v":{"$error":"#REF!"}},{"$f":"AND(#REF!,\"RFXIPR+zCcw=\")","v":{"$error":"#REF!"}},{"$f":"AND(#REF!,\"RFXIPR+zCc0=\")","v":{"$error":"#REF!"}},{"$f":"AND(#REF!,\"RFXIPR+zCc4=\")","v":{"$error":"#REF!"}},{"$f":"AND(#REF!,\"RFXIPR+zCc8=\")","v":{"$error":"#REF!"}},{"$f":"AND(#REF!,\"RFXIPR+zCdA=\")","v":{"$error":"#REF!"}},{"$f":"AND(#REF!,\"RFXIPR+zCdE=\")","v":{"$error":"#REF!"}},{"$f":"AND(#REF!,\"RFXIPR+zCdI=\")","v":{"$error":"#REF!"}},{"$f":"AND(#REF!,\"RFXIPR+zCdM=\")","v":{"$error":"#REF!"}},{"$f":"AND(#REF!,\"RFXIPR+zCdQ=\")","v":{"$error":"#REF!"}},{"$f":"AND(#REF!,\"RFXIPR+zCdU=\")","v":{"$error":"#REF!"}},{"$f":"AND(#REF!,\"RFXIPR+zCdY=\")","v":{"$error":"#REF!"}},{"$f":"AND(#REF!,\"RFXIPR+zCdc=\")","v":{"$error":"#REF!"}},{"$f":"AND(#REF!,\"RFXIPR+zCdg=\")","v":{"$error":"#REF!"}},{"$f":"AND(#REF!,\"RFXIPR+zCdk=\")","v":{"$error":"#REF!"}},{"$f":"AND(#REF!,\"RFXIPR+zCdo=\")","v":{"$error":"#REF!"}},{"$f":"AND(#REF!,\"RFXIPR+zCds=\")","v":{"$error":"#REF!"}},{"$f":"AND(#REF!,\"RFXIPR+zCdw=\")","v":{"$error":"#REF!"}},{"$f":"AND(#REF!,\"RFXIPR+zCd0=\")","v":{"$error":"#REF!"}},{"$f":"AND(#REF!,\"RFXIPR+zCd4=\")","v":{"$error":"#REF!"}},{"$f":"AND(#REF!,\"RFXIPR+zCd8=\")","v":{"$error":"#REF!"}},{"$f":"AND(#REF!,\"RFXIPR+zCeA=\")","v":{"$error":"#REF!"}},{"$f":"AND(#REF!,\"RFXIPR+zCeE=\")","v":{"$error":"#REF!"}},{"$f":"AND(#REF!,\"RFXIPR+zCeI=\")","v":{"$error":"#REF!"}},{"$f":"AND(#REF!,\"RFXIPR+zCeM=\")","v":{"$error":"#REF!"}},{"$f":"AND(#REF!,\"RFXIPR+zCeQ=\")","v":{"$error":"#REF!"}},{"$f":"AND(#REF!,\"RFXIPR+zCeU=\")","v":{"$error":"#REF!"}},{"$f":"AND(#REF!,\"RFXIPR+zCeY=\")","v":{"$error":"#REF!"}},{"$f":"AND(#REF!,\"RFXIPR+zCec=\")","v":{"$error":"#REF!"}},{"$f":"AND(#REF!,\"RFXIPR+zCeg=\")","v":{"$error":"#REF!"}},{"$f":"AND(#REF!,\"RFXIPR+zCek=\")","v":{"$error":"#REF!"}},{"$f":"AND(#REF!,\"RFXIPR+zCeo=\")","v":{"$error":"#REF!"}},{"$f":"AND(#REF!,\"RFXIPR+zCes=\")","v":{"$error":"#REF!"}},{"$f":"AND(#REF!,\"RFXIPR+zCew=\")","v":{"$error":"#REF!"}},{"$f":"AND(#REF!,\"RFXIPR+zCe0=\")","v":{"$error":"#REF!"}},{"$f":"AND(#REF!,\"RFXIPR+zCe4=\")","v":{"$error":"#REF!"}},{"$f":"AND(#REF!,\"RFXIPR+zCe8=\")","v":{"$error":"#REF!"}},{"$f":"AND(#REF!,\"RFXIPR+zCfA=\")","v":{"$error":"#REF!"}},{"$f":"AND(#REF!,\"RFXIPR+zCfE=\")","v":{"$error":"#REF!"}},{"$f":"AND(#REF!,\"RFXIPR+zCfI=\")","v":{"$error":"#REF!"}},{"$f":"AND(#REF!,\"RFXIPR+zCfM=\")","v":{"$error":"#REF!"}},{"$f":"AND(#REF!,\"RFXIPR+zCfQ=\")","v":{"$error":"#REF!"}},{"$f":"AND(#REF!,\"RFXIPR+zCfU=\")","v":{"$error":"#REF!"}},{"$f":"AND(#REF!,\"RFXIPR+zCfY=\")","v":{"$error":"#REF!"}},{"$f":"AND(#REF!,\"RFXIPR+zCfc=\")","v":{"$error":"#REF!"}},{"$f":"AND(#REF!,\"RFXIPR+zCfg=\")","v":{"$error":"#REF!"}},{"$f":"AND(#REF!,\"RFXIPR+zCfk=\")","v":{"$error":"#REF!"}},{"$f":"IF(#REF!,\"RFXIPR+zCfo=\",0)","v":{"$error":"#REF!"}},{"$f":"AND(#REF!,\"RFXIPR+zCfs=\")","v":{"$error":"#REF!"}},{"$f":"AND(#REF!,\"RFXIPR+zCfw=\")","v":{"$error":"#REF!"}},{"$f":"AND(#REF!,\"RFXIPR+zCf0=\")","v":{"$error":"#REF!"}},{"$f":"AND(#REF!,\"RFXIPR+zCf4=\")","v":{"$error":"#REF!"}},{"$f":"AND(#REF!,\"RFXIPR+zCf8=\")","v":{"$error":"#REF!"}}]
[{"$f":"AND(#REF!,\"VFeG4DmdLgA=\")","v":{"$error":"#REF!"}},{"$f":"AND(#REF!,\"VFeG4DmdLgE=\")","v":{"$error":"#REF!"}},{"$f":"AND(#REF!,\"VFeG4DmdLgI=\")","v":{"$error":"#REF!"}},{"$f":"AND(#REF!,\"VFeG4DmdLgM=\")","v":{"$error":"#REF!"}},{"$f":"AND(#REF!,\"VFeG4DmdLgQ=\")","v":{"$error":"#REF!"}},{"$f":"AND(#REF!,\"VFeG4DmdLgU=\")","v":{"$error":"#REF!"}},{"$f":"AND(#REF!,\"VFeG4DmdLgY=\")","v":{"$error":"#REF!"}},{"$f":"AND(#REF!,\"VFeG4DmdLgc=\")","v":{"$error":"#REF!"}},{"$f":"AND(#REF!,\"VFeG4DmdLgg=\")","v":{"$error":"#REF!"}},{"$f":"AND(#REF!,\"VFeG4DmdLgk=\")","v":{"$error":"#REF!"}},{"$f":"AND(#REF!,\"VFeG4DmdLgo=\")","v":{"$error":"#REF!"}},{"$f":"AND(#REF!,\"VFeG4DmdLgs=\")","v":{"$error":"#REF!"}},{"$f":"AND(#REF!,\"VFeG4DmdLgw=\")","v":{"$error":"#REF!"}},{"$f":"AND(#REF!,\"VFeG4DmdLg0=\")","v":{"$error":"#REF!"}},{"$f":"AND(#REF!,\"VFeG4DmdLg4=\")","v":{"$error":"#REF!"}},{"$f":"AND(#REF!,\"VFeG4DmdLg8=\")","v":{"$error":"#REF!"}},{"$f":"AND(#REF!,\"VFeG4DmdLhA=\")","v":{"$error":"#REF!"}},{"$f":"AND(#REF!,\"VFeG4DmdLhE=\")","v":{"$error":"#REF!"}},{"$f":"AND(#REF!,\"VFeG4DmdLhI=\")","v":{"$error":"#REF!"}},{"$f":"AND(#REF!,\"VFeG4DmdLhM=\")","v":{"$error":"#REF!"}},{"$f":"AND(#REF!,\"VFeG4DmdLhQ=\")","v":{"$error":"#REF!"}},{"$f":"AND(#REF!,\"VFeG4DmdLhU=\")","v":{"$error":"#REF!"}},{"$f":"AND(#REF!,\"VFeG4DmdLhY=\")","v":{"$error":"#REF!"}},{"$f":"AND(#REF!,\"VFeG4DmdLhc=\")","v":{"$error":"#REF!"}},{"$f":"AND(#REF!,\"VFeG4DmdLhg=\")","v":{"$error":"#REF!"}},{"$f":"AND(#REF!,\"VFeG4DmdLhk=\")","v":{"$error":"#REF!"}},{"$f":"AND(#REF!,\"VFeG4DmdLho=\")","v":{"$error":"#REF!"}},{"$f":"AND(#REF!,\"VFeG4DmdLhs=\")","v":{"$error":"#REF!"}},{"$f":"AND(#REF!,\"VFeG4DmdLhw=\")","v":{"$error":"#REF!"}},{"$f":"AND(#REF!,\"VFeG4DmdLh0=\")","v":{"$error":"#REF!"}},{"$f":"AND(#REF!,\"VFeG4DmdLh4=\")","v":{"$error":"#REF!"}},{"$f":"AND(#REF!,\"VFeG4DmdLh8=\")","v":{"$error":"#REF!"}},{"$f":"AND(#REF!,\"VFeG4DmdLiA=\")","v":{"$error":"#REF!"}},{"$f":"AND(#REF!,\"VFeG4DmdLiE=\")","v":{"$error":"#REF!"}},{"$f":"AND(#REF!,\"VFeG4DmdLiI=\")","v":{"$error":"#REF!"}},{"$f":"AND(#REF!,\"VFeG4DmdLiM=\")","v":{"$error":"#REF!"}},{"$f":"AND(#REF!,\"VFeG4DmdLiQ=\")","v":{"$error":"#REF!"}},{"$f":"AND(#REF!,\"VFeG4DmdLiU=\")","v":{"$error":"#REF!"}},{"$f":"AND(#REF!,\"VFeG4DmdLiY=\")","v":{"$error":"#REF!"}},{"$f":"AND(#REF!,\"VFeG4DmdLic=\")","v":{"$error":"#REF!"}},{"$f":"AND(#REF!,\"VFeG4DmdLig=\")","v":{"$error":"#REF!"}},{"$f":"AND(#REF!,\"VFeG4DmdLik=\")","v":{"$error":"#REF!"}},{"$f":"AND(#REF!,\"VFeG4DmdLio=\")","v":{"$error":"#REF!"}},{"$f":"AND(#REF!,\"VFeG4DmdLis=\")","v":{"$error":"#REF!"}},{"$f":"AND(#REF!,\"VFeG4DmdLiw=\")","v":{"$error":"#REF!"}},{"$f":"AND(#REF!,\"VFeG4DmdLi0=\")","v":{"$error":"#REF!"}},{"$f":"AND(#REF!,\"VFeG4DmdLi4=\")","v":{"$error":"#REF!"}},{"$f":"AND(#REF!,\"VFeG4DmdLi8=\")","v":{"$error":"#REF!"}},{"$f":"AND(#REF!,\"VFeG4DmdLjA=\")","v":{"$error":"#REF!"}},{"$f":"AND(#REF!,\"VFeG4DmdLjE=\")","v":{"$error":"#REF!"}},{"$f":"AND(#REF!,\"VFeG4DmdLjI=\")","v":{"$error":"#REF!"}},{"$f":"AND(#REF!,\"VFeG4DmdLjM=\")","v":{"$error":"#REF!"}},{"$f":"AND(#REF!,\"VFeG4DmdLjQ=\")","v":{"$error":"#REF!"}},{"$f":"AND(#REF!,\"VFeG4DmdLjU=\")","v":{"$error":"#REF!"}},{"$f":"AND(#REF!,\"VFeG4DmdLjY=\")","v":{"$error":"#REF!"}},{"$f":"AND(#REF!,\"VFeG4DmdLjc=\")","v":{"$error":"#REF!"}},{"$f":"AND(#REF!,\"VFeG4DmdLjg=\")","v":{"$error":"#REF!"}},{"$f":"AND(#REF!,\"VFeG4DmdLjk=\")","v":{"$error":"#REF!"}},{"$f":"AND(#REF!,\"VFeG4DmdLjo=\")","v":{"$error":"#REF!"}},{"$f":"AND(#REF!,\"VFeG4DmdLjs=\")","v":{"$error":"#REF!"}},{"$f":"AND(#REF!,\"VFeG4DmdLjw=\")","v":{"$error":"#REF!"}},{"$f":"AND(#REF!,\"VFeG4DmdLj0=\")","v":{"$error":"#REF!"}},{"$f":"AND(#REF!,\"VFeG4DmdLj4=\")","v":{"$error":"#REF!"}},{"$f":"AND(#REF!,\"VFeG4DmdLj8=\")","v":{"$error":"#REF!"}},{"$f":"AND(#REF!,\"VFeG4DmdLkA=\")","v":{"$error":"#REF!"}},{"$f":"AND(#REF!,\"VFeG4DmdLkE=\")","v":{"$error":"#REF!"}},{"$f":"AND(#REF!,\"VFeG4DmdLkI=\")","v":{"$error":"#REF!"}},{"$f":"AND(#REF!,\"VFeG4DmdLkM=\")","v":{"$error":"#REF!"}},{"$f":"AND(#REF!,\"VFeG4DmdLkQ=\")","v":{"$error":"#REF!"}},{"$f":"AND(#REF!,\"VFeG4DmdLkU=\")","v":{"$error":"#REF!"}},{"$f":"AND(#REF!,\"VFeG4DmdLkY=\")","v":{"$error":"#REF!"}},{"$f":"AND(#REF!,\"VFeG4DmdLkc=\")","v":{"$error":"#REF!"}},{"$f":"AND(#REF!,\"VFeG4DmdLkg=\")","v":{"$error":"#REF!"}},{"$f":"AND(#REF!,\"VFeG4DmdLkk=\")","v":{"$error":"#REF!"}},{"$f":"AND(#REF!,\"VFeG4DmdLko=\")","v":{"$error":"#REF!"}},{"$f":"AND(#REF!,\"VFeG4DmdLks=\")","v":{"$error":"#REF!"}},{"$f":"AND(#REF!,\"VFeG4DmdLkw=\")","v":{"$error":"#REF!"}},{"$f":"AND(#REF!,\"VFeG4DmdLk0=\")","v":{"$error":"#REF!"}},{"$f":"AND(#REF!,\"VFeG4DmdLk4=\")","v":{"$error":"#REF!"}},{"$f":"AND(#REF!,\"VFeG4DmdLk8=\")","v":{"$error":"#REF!"}},{"$f":"AND(#REF!,\"VFeG4DmdLlA=\")","v":{"$error":"#REF!"}},{"$f":"AND(#REF!,\"VFeG4DmdLlE=\")","v":{"$error":"#REF!"}},{"$f":"AND(#REF!,\"VFeG4DmdLlI=\")","v":{"$error":"#REF!"}},{"$f":"AND(#REF!,\"VFeG4DmdLlM=\")","v":{"$error":"#REF!"}},{"$f":"AND(#REF!,\"VFeG4DmdLlQ=\")","v":{"$error":"#REF!"}},{"$f":"AND(#REF!,\"VFeG4DmdLlU=\")","v":{"$error":"#REF!"}},{"$f":"AND(#REF!,\"VFeG4DmdLlY=\")","v":{"$error":"#REF!"}},{"$f":"AND(#REF!,\"VFeG4DmdLlc=\")","v":{"$error":"#REF!"}},{"$f":"AND(#REF!,\"VFeG4DmdLlg=\")","v":{"$error":"#REF!"}},{"$f":"AND(#REF!,\"VFeG4DmdLlk=\")","v":{"$error":"#REF!"}},{"$f":"AND(#REF!,\"VFeG4DmdLlo=\")","v":{"$error":"#REF!"}},{"$f":"AND(#REF!,\"VFeG4DmdLls=\")","v":{"$error":"#REF!"}},{"$f":"AND(#REF!,\"VFeG4DmdLlw=\")","v":{"$error":"#REF!"}},{"$f":"AND(#REF!,\"VFeG4DmdLl0=\")","v":{"$error":"#REF!"}},{"$f":"AND(#REF!,\"VFeG4DmdLl4=\")","v":{"$error":"#REF!"}},{"$f":"AND(#REF!,\"VFeG4DmdLl8=\")","v":{"$error":"#REF!"}},{"$f":"AND(#REF!,\"VFeG4DmdLmA=\")","v":{"$error":"#REF!"}},{"$f":"AND(#REF!,\"VFeG4DmdLmE=\")","v":{"$error":"#REF!"}},{"$f":"AND(#REF!,\"VFeG4DmdLmI=\")","v":{"$error":"#REF!"}},{"$f":"AND(#REF!,\"VFeG4DmdLmM=\")","v":{"$error":"#REF!"}},{"$f":"AND(#REF!,\"VFeG4DmdLmQ=\")","v":{"$error":"#REF!"}},{"$f":"AND(#REF!,\"VFeG4DmdLmU=\")","v":{"$error":"#REF!"}},{"$f":"AND(#REF!,\"VFeG4DmdLmY=\")","v":{"$error":"#REF!"}},{"$f":"AND(#REF!,\"VFeG4DmdLmc=\")","v":{"$error":"#REF!"}},{"$f":"AND(#REF!,\"VFeG4DmdLmg=\")","v":{"$error":"#REF!"}},{"$f":"AND(#REF!,\"VFeG4DmdLmk=\")","v":{"$error":"#REF!"}},{"$f":"AND(#REF!,\"VFeG4DmdLmo=\")","v":{"$error":"#REF!"}},{"$f":"AND(#REF!,\"VFeG4DmdLms=\")","v":{"$error":"#REF!"}},{"$f":"AND(#REF!,\"VFeG4DmdLmw=\")","v":{"$error":"#REF!"}},{"$f":"AND(#REF!,\"VFeG4DmdLm0=\")","v":{"$error":"#REF!"}},{"$f":"AND(#REF!,\"VFeG4DmdLm4=\")","v":{"$error":"#REF!"}},{"$f":"AND(#REF!,\"VFeG4DmdLm8=\")","v":{"$error":"#REF!"}},{"$f":"AND(#REF!,\"VFeG4DmdLnA=\")","v":{"$error":"#REF!"}},{"$f":"AND(#REF!,\"VFeG4DmdLnE=\")","v":{"$error":"#REF!"}},{"$f":"AND(#REF!,\"VFeG4DmdLnI=\")","v":{"$error":"#REF!"}},{"$f":"AND(#REF!,\"VFeG4DmdLnM=\")","v":{"$error":"#REF!"}},{"$f":"AND(#REF!,\"VFeG4DmdLnQ=\")","v":{"$error":"#REF!"}},{"$f":"AND(#REF!,\"VFeG4DmdLnU=\")","v":{"$error":"#REF!"}},{"$f":"AND(#REF!,\"VFeG4DmdLnY=\")","v":{"$error":"#REF!"}},{"$f":"AND(#REF!,\"VFeG4DmdLnc=\")","v":{"$error":"#REF!"}},{"$f":"AND(#REF!,\"VFeG4DmdLng=\")","v":{"$error":"#REF!"}},{"$f":"AND(#REF!,\"VFeG4DmdLnk=\")","v":{"$error":"#REF!"}},{"$f":"AND(#REF!,\"VFeG4DmdLno=\")","v":{"$error":"#REF!"}},{"$f":"AND(#REF!,\"VFeG4DmdLns=\")","v":{"$error":"#REF!"}},{"$f":"AND(#REF!,\"VFeG4DmdLnw=\")","v":{"$error":"#REF!"}},{"$f":"AND(#REF!,\"VFeG4DmdLn0=\")","v":{"$error":"#REF!"}},{"$f":"AND(#REF!,\"VFeG4DmdLn4=\")","v":{"$error":"#REF!"}},{"$f":"AND(#REF!,\"VFeG4DmdLn8=\")","v":{"$error":"#REF!"}},{"$f":"AND(#REF!,\"VFeG4DmdLoA=\")","v":{"$error":"#REF!"}},{"$f":"AND(#REF!,\"VFeG4DmdLoE=\")","v":{"$error":"#REF!"}},{"$f":"AND(#REF!,\"VFeG4DmdLoI=\")","v":{"$error":"#REF!"}},{"$f":"AND(#REF!,\"VFeG4DmdLoM=\")","v":{"$error":"#REF!"}},{"$f":"AND(#REF!,\"VFeG4DmdLoQ=\")","v":{"$error":"#REF!"}},{"$f":"AND(#REF!,\"VFeG4DmdLoU=\")","v":{"$error":"#REF!"}},{"$f":"AND(#REF!,\"VFeG4DmdLoY=\")","v":{"$error":"#REF!"}},{"$f":"AND(#REF!,\"VFeG4DmdLoc=\")","v":{"$error":"#REF!"}},{"$f":"AND(#REF!,\"VFeG4DmdLog=\")","v":{"$error":"#REF!"}},{"$f":"AND(#REF!,\"VFeG4DmdLok=\")","v":{"$error":"#REF!"}},{"$f":"AND(#REF!,\"VFeG4DmdLoo=\")","v":{"$error":"#REF!"}},{"$f":"AND(#REF!,\"VFeG4DmdLos=\")","v":{"$error":"#REF!"}},{"$f":"AND(#REF!,\"VFeG4DmdLow=\")","v":{"$error":"#REF!"}},{"$f":"AND(#REF!,\"VFeG4DmdLo0=\")","v":{"$error":"#REF!"}},{"$f":"AND(#REF!,\"VFeG4DmdLo4=\")","v":{"$error":"#REF!"}},{"$f":"AND(#REF!,\"VFeG4DmdLo8=\")","v":{"$error":"#REF!"}},{"$f":"AND(#REF!,\"VFeG4DmdLpA=\")","v":{"$error":"#REF!"}},{"$f":"AND(#REF!,\"VFeG4DmdLpE=\")","v":{"$error":"#REF!"}},{"$f":"AND(#REF!,\"VFeG4DmdLpI=\")","v":{"$error":"#REF!"}},{"$f":"AND(#REF!,\"VFeG4DmdLpM=\")","v":{"$error":"#REF!"}},{"$f":"AND(#REF!,\"VFeG4DmdLpQ=\")","v":{"$error":"#REF!"}},{"$f":"AND(#REF!,\"VFeG4DmdLpU=\")","v":{"$error":"#REF!"}},{"$f":"AND(#REF!,\"VFeG4DmdLpY=\")","v":{"$error":"#REF!"}},{"$f":"AND(#REF!,\"VFeG4DmdLpc=\")","v":{"$error":"#REF!"}},{"$f":"AND(#REF!,\"VFeG4DmdLpg=\")","v":{"$error":"#REF!"}},{"$f":"AND(#REF!,\"VFeG4DmdLpk=\")","v":{"$error":"#REF!"}},{"$f":"AND(#REF!,\"VFeG4DmdLpo=\")","v":{"$error":"#REF!"}},{"$f":"AND(#REF!,\"VFeG4DmdLps=\")","v":{"$error":"#REF!"}},{"$f":"AND(#REF!,\"VFeG4DmdLpw=\")","v":{"$error":"#REF!"}},{"$f":"AND(#REF!,\"VFeG4DmdLp0=\")","v":{"$error":"#REF!"}},{"$f":"AND(#REF!,\"VFeG4DmdLp4=\")","v":{"$error":"#REF!"}},{"$f":"AND(#REF!,\"VFeG4DmdLp8=\")","v":{"$error":"#REF!"}},{"$f":"AND(#REF!,\"VFeG4DmdLqA=\")","v":{"$error":"#REF!"}},{"$f":"AND(#REF!,\"VFeG4DmdLqE=\")","v":{"$error":"#REF!"}},{"$f":"AND(#REF!,\"VFeG4DmdLqI=\")","v":{"$error":"#REF!"}},{"$f":"AND(#REF!,\"VFeG4DmdLqM=\")","v":{"$error":"#REF!"}},{"$f":"AND(#REF!,\"VFeG4DmdLqQ=\")","v":{"$error":"#REF!"}},{"$f":"AND(#REF!,\"VFeG4DmdLqU=\")","v":{"$error":"#REF!"}},{"$f":"AND(#REF!,\"VFeG4DmdLqY=\")","v":{"$error":"#REF!"}},{"$f":"AND(#REF!,\"VFeG4DmdLqc=\")","v":{"$error":"#REF!"}},{"$f":"AND(#REF!,\"VFeG4DmdLqg=\")","v":{"$error":"#REF!"}},{"$f":"AND(#REF!,\"VFeG4DmdLqk=\")","v":{"$error":"#REF!"}},{"$f":"AND(#REF!,\"VFeG4DmdLqo=\")","v":{"$error":"#REF!"}},{"$f":"AND(#REF!,\"VFeG4DmdLqs=\")","v":{"$error":"#REF!"}},{"$f":"AND(#REF!,\"VFeG4DmdLqw=\")","v":{"$error":"#REF!"}},{"$f":"AND(#REF!,\"VFeG4DmdLq0=\")","v":{"$error":"#REF!"}},{"$f":"AND(#REF!,\"VFeG4DmdLq4=\")","v":{"$error":"#REF!"}},{"$f":"AND(#REF!,\"VFeG4DmdLq8=\")","v":{"$error":"#REF!"}},{"$f":"AND(#REF!,\"VFeG4DmdLrA=\")","v":{"$error":"#REF!"}},{"$f":"AND(#REF!,\"VFeG4DmdLrE=\")","v":{"$error":"#REF!"}},{"$f":"AND(#REF!,\"VFeG4DmdLrI=\")","v":{"$error":"#REF!"}},{"$f":"AND(#REF!,\"VFeG4DmdLrM=\")","v":{"$error":"#REF!"}},{"$f":"AND(#REF!,\"VFeG4DmdLrQ=\")","v":{"$error":"#REF!"}},{"$f":"AND(#REF!,\"VFeG4DmdLrU=\")","v":{"$error":"#REF!"}},{"$f":"AND(#REF!,\"VFeG4DmdLrY=\")","v":{"$error":"#REF!"}},{"$f":"AND(#REF!,\"VFeG4DmdLrc=\")","v":{"$error":"#REF!"}},{"$f":"AND(#REF!,\"VFeG4DmdLrg=\")","v":{"$error":"#REF!"}},{"$f":"AND(#REF!,\"VFeG4DmdLrk=\")","v":{"$error":"#REF!"}},{"$f":"AND(#REF!,\"VFeG4DmdLro=\")","v":{"$error":"#REF!"}},{"$f":"AND(#REF!,\"VFeG4DmdLrs=\")","v":{"$error":"#REF!"}},{"$f":"AND(#REF!,\"VFeG4DmdLrw=\")","v":{"$error":"#REF!"}},{"$f":"AND(#REF!,\"VFeG4DmdLr0=\")","v":{"$error":"#REF!"}},{"$f":"AND(#REF!,\"VFeG4DmdLr4=\")","v":{"$error":"#REF!"}},{"$f":"AND(#REF!,\"VFeG4DmdLr8=\")","v":{"$error":"#REF!"}},{"$f":"AND(#REF!,\"VFeG4DmdLsA=\")","v":{"$error":"#REF!"}},{"$f":"IF(#REF!,\"VFeG4DmdLsE=\",0)","v":{"$error":"#REF!"}},{"$f":"AND(#REF!,\"VFeG4DmdLsI=\")","v":{"$error":"#REF!"}},{"$f":"AND(#REF!,\"VFeG4DmdLsM=\")","v":{"$error":"#REF!"}},{"$f":"AND(#REF!,\"VFeG4DmdLsQ=\")","v":{"$error":"#REF!"}},{"$f":"AND(#REF!,\"VFeG4DmdLsU=\")","v":{"$error":"#REF!"}},{"$f":"AND(#REF!,\"VFeG4DmdLsY=\")","v":{"$error":"#REF!"}},{"$f":"AND(#REF!,\"VFeG4DmdLsc=\")","v":{"$error":"#REF!"}},{"$f":"AND(#REF!,\"VFeG4DmdLsg=\")","v":{"$error":"#REF!"}},{"$f":"AND(#REF!,\"VFeG4DmdLsk=\")","v":{"$error":"#REF!"}},{"$f":"AND(#REF!,\"VFeG4DmdLso=\")","v":{"$error":"#REF!"}},{"$f":"AND(#REF!,\"VFeG4DmdLss=\")","v":{"$error":"#REF!"}},{"$f":"AND(#REF!,\"VFeG4DmdLsw=\")","v":{"$error":"#REF!"}},{"$f":"AND(#REF!,\"VFeG4DmdLs0=\")","v":{"$error":"#REF!"}},{"$f":"AND(#REF!,\"VFeG4DmdLs4=\")","v":{"$error":"#REF!"}},{"$f":"AND(#REF!,\"VFeG4DmdLs8=\")","v":{"$error":"#REF!"}},{"$f":"AND(#REF!,\"VFeG4DmdLtA=\")","v":{"$error":"#REF!"}},{"$f":"AND(#REF!,\"VFeG4DmdLtE=\")","v":{"$error":"#REF!"}},{"$f":"AND(#REF!,\"VFeG4DmdLtI=\")","v":{"$error":"#REF!"}},{"$f":"AND(#REF!,\"VFeG4DmdLtM=\")","v":{"$error":"#REF!"}},{"$f":"AND(#REF!,\"VFeG4DmdLtQ=\")","v":{"$error":"#REF!"}},{"$f":"AND(#REF!,\"VFeG4DmdLtU=\")","v":{"$error":"#REF!"}},{"$f":"AND(#REF!,\"VFeG4DmdLtY=\")","v":{"$error":"#REF!"}},{"$f":"AND(#REF!,\"VFeG4DmdLtc=\")","v":{"$error":"#REF!"}},{"$f":"AND(#REF!,\"VFeG4DmdLtg=\")","v":{"$error":"#REF!"}},{"$f":"AND(#REF!,\"VFeG4DmdLtk=\")","v":{"$error":"#REF!"}},{"$f":"AND(#REF!,\"VFeG4DmdLto=\")","v":{"$error":"#REF!"}},{"$f":"AND(#REF!,\"VFeG4DmdLts=\")","v":{"$error":"#REF!"}},{"$f":"AND(#REF!,\"VFeG4DmdLtw=\")","v":{"$error":"#REF!"}},{"$f":"AND(#REF!,\"VFeG4DmdLt0=\")","v":{"$error":"#REF!"}},{"$f":"AND(#REF!,\"VFeG4DmdLt4=\")","v":{"$error":"#REF!"}},{"$f":"AND(#REF!,\"VFeG4DmdLt8=\")","v":{"$error":"#REF!"}},{"$f":"AND(#REF!,\"VFeG4DmdLuA=\")","v":{"$error":"#REF!"}},{"$f":"AND(#REF!,\"VFeG4DmdLuE=\")","v":{"$error":"#REF!"}},{"$f":"AND(#REF!,\"VFeG4DmdLuI=\")","v":{"$error":"#REF!"}},{"$f":"AND(#REF!,\"VFeG4DmdLuM=\")","v":{"$error":"#REF!"}},{"$f":"AND(#REF!,\"VFeG4DmdLuQ=\")","v":{"$error":"#REF!"}},{"$f":"AND(#REF!,\"VFeG4DmdLuU=\")","v":{"$error":"#REF!"}},{"$f":"AND(#REF!,\"VFeG4DmdLuY=\")","v":{"$error":"#REF!"}},{"$f":"AND(#REF!,\"VFeG4DmdLuc=\")","v":{"$error":"#REF!"}},{"$f":"AND(#REF!,\"VFeG4DmdLug=\")","v":{"$error":"#REF!"}},{"$f":"AND(#REF!,\"VFeG4DmdLuk=\")","v":{"$error":"#REF!"}},{"$f":"AND(#REF!,\"VFeG4DmdLuo=\")","v":{"$error":"#REF!"}},{"$f":"AND(#REF!,\"VFeG4DmdLus=\")","v":{"$error":"#REF!"}},{"$f":"AND(#REF!,\"VFeG4DmdLuw=\")","v":{"$error":"#REF!"}},{"$f":"AND(#REF!,\"VFeG4DmdLu0=\")","v":{"$error":"#REF!"}},{"$f":"AND(#REF!,\"VFeG4DmdLu4=\")","v":{"$error":"#REF!"}},{"$f":"AND(#REF!,\"VFeG4DmdLu8=\")","v":{"$error":"#REF!"}},{"$f":"AND(#REF!,\"VFeG4DmdLvA=\")","v":{"$error":"#REF!"}},{"$f":"AND(#REF!,\"VFeG4DmdLvE=\")","v":{"$error":"#REF!"}},{"$f":"AND(#REF!,\"VFeG4DmdLvI=\")","v":{"$error":"#REF!"}},{"$f":"AND(#REF!,\"VFeG4DmdLvM=\")","v":{"$error":"#REF!"}},{"$f":"AND(#REF!,\"VFeG4DmdLvQ=\")","v":{"$error":"#REF!"}},{"$f":"AND(#REF!,\"VFeG4DmdLvU=\")","v":{"$error":"#REF!"}},{"$f":"AND(#REF!,\"VFeG4DmdLvY=\")","v":{"$error":"#REF!"}},{"$f":"AND(#REF!,\"VFeG4DmdLvc=\")","v":{"$error":"#REF!"}},{"$f":"AND(#REF!,\"VFeG4DmdLvg=\")","v":{"$error":"#REF!"}},{"$f":"AND(#REF!,\"VFeG4DmdLvk=\")","v":{"$error":"#REF!"}},{"$f":"AND(#REF!,\"VFeG4DmdLvo=\")","v":{"$error":"#REF!"}},{"$f":"AND(#REF!,\"VFeG4DmdLvs=\")","v":{"$error":"#REF!"}},{"$f":"AND(#REF!,\"VFeG4DmdLvw=\")","v":{"$error":"#REF!"}},{"$f":"AND(#REF!,\"VFeG4DmdLv0=\")","v":{"$error":"#REF!"}},{"$f":"AND(#REF!,\"VFeG4DmdLv4=\")","v":{"$error":"#REF!"}},{"$f":"AND(#REF!,\"VFeG4DmdLv8=\")","v":{"$error":"#REF!"}}]
[{"$f":"AND(#REF!,\"BiResj8VTwA=\")","v":{"$error":"#REF!"}},{"$f":"AND(#REF!,\"BiResj8VTwE=\")","v":{"$error":"#REF!"}},{"$f":"AND(#REF!,\"BiResj8VTwI=\")","v":{"$error":"#REF!"}},{"$f":"AND(#REF!,\"BiResj8VTwM=\")","v":{"$error":"#REF!"}},{"$f":"AND(#REF!,\"BiResj8VTwQ=\")","v":{"$error":"#REF!"}},{"$f":"AND(#REF!,\"BiResj8VTwU=\")","v":{"$error":"#REF!"}},{"$f":"AND(#REF!,\"BiResj8VTwY=\")","v":{"$error":"#REF!"}},{"$f":"AND(#REF!,\"BiResj8VTwc=\")","v":{"$error":"#REF!"}},{"$f":"AND(#REF!,\"BiResj8VTwg=\")","v":{"$error":"#REF!"}},{"$f":"AND(#REF!,\"BiResj8VTwk=\")","v":{"$error":"#REF!"}},{"$f":"AND(#REF!,\"BiResj8VTwo=\")","v":{"$error":"#REF!"}},{"$f":"AND(#REF!,\"BiResj8VTws=\")","v":{"$error":"#REF!"}},{"$f":"AND(#REF!,\"BiResj8VTww=\")","v":{"$error":"#REF!"}},{"$f":"AND(#REF!,\"BiResj8VTw0=\")","v":{"$error":"#REF!"}},{"$f":"AND(#REF!,\"BiResj8VTw4=\")","v":{"$error":"#REF!"}},{"$f":"AND(#REF!,\"BiResj8VTw8=\")","v":{"$error":"#REF!"}},{"$f":"AND(#REF!,\"BiResj8VTxA=\")","v":{"$error":"#REF!"}},{"$f":"AND(#REF!,\"BiResj8VTxE=\")","v":{"$error":"#REF!"}},{"$f":"AND(#REF!,\"BiResj8VTxI=\")","v":{"$error":"#REF!"}},{"$f":"AND(#REF!,\"BiResj8VTxM=\")","v":{"$error":"#REF!"}},{"$f":"AND(#REF!,\"BiResj8VTxQ=\")","v":{"$error":"#REF!"}},{"$f":"AND(#REF!,\"BiResj8VTxU=\")","v":{"$error":"#REF!"}},{"$f":"AND(#REF!,\"BiResj8VTxY=\")","v":{"$error":"#REF!"}},{"$f":"AND(#REF!,\"BiResj8VTxc=\")","v":{"$error":"#REF!"}},{"$f":"AND(#REF!,\"BiResj8VTxg=\")","v":{"$error":"#REF!"}},{"$f":"AND(#REF!,\"BiResj8VTxk=\")","v":{"$error":"#REF!"}},{"$f":"AND(#REF!,\"BiResj8VTxo=\")","v":{"$error":"#REF!"}},{"$f":"AND(#REF!,\"BiResj8VTxs=\")","v":{"$error":"#REF!"}},{"$f":"AND(#REF!,\"BiResj8VTxw=\")","v":{"$error":"#REF!"}},{"$f":"AND(#REF!,\"BiResj8VTx0=\")","v":{"$error":"#REF!"}},{"$f":"AND(#REF!,\"BiResj8VTx4=\")","v":{"$error":"#REF!"}},{"$f":"AND(#REF!,\"BiResj8VTx8=\")","v":{"$error":"#REF!"}},{"$f":"AND(#REF!,\"BiResj8VTyA=\")","v":{"$error":"#REF!"}},{"$f":"AND(#REF!,\"BiResj8VTyE=\")","v":{"$error":"#REF!"}},{"$f":"AND(#REF!,\"BiResj8VTyI=\")","v":{"$error":"#REF!"}},{"$f":"AND(#REF!,\"BiResj8VTyM=\")","v":{"$error":"#REF!"}},{"$f":"AND(#REF!,\"BiResj8VTyQ=\")","v":{"$error":"#REF!"}},{"$f":"AND(#REF!,\"BiResj8VTyU=\")","v":{"$error":"#REF!"}},{"$f":"AND(#REF!,\"BiResj8VTyY=\")","v":{"$error":"#REF!"}},{"$f":"AND(#REF!,\"BiResj8VTyc=\")","v":{"$error":"#REF!"}},{"$f":"AND(#REF!,\"BiResj8VTyg=\")","v":{"$error":"#REF!"}},{"$f":"AND(#REF!,\"BiResj8VTyk=\")","v":{"$error":"#REF!"}},{"$f":"AND(#REF!,\"BiResj8VTyo=\")","v":{"$error":"#REF!"}},{"$f":"AND(#REF!,\"BiResj8VTys=\")","v":{"$error":"#REF!"}},{"$f":"AND(#REF!,\"BiResj8VTyw=\")","v":{"$error":"#REF!"}},{"$f":"AND(#REF!,\"BiResj8VTy0=\")","v":{"$error":"#REF!"}},{"$f":"AND(#REF!,\"BiResj8VTy4=\")","v":{"$error":"#REF!"}},{"$f":"AND(#REF!,\"BiResj8VTy8=\")","v":{"$error":"#REF!"}},{"$f":"AND(#REF!,\"BiResj8VTzA=\")","v":{"$error":"#REF!"}},{"$f":"AND(#REF!,\"BiResj8VTzE=\")","v":{"$error":"#REF!"}},{"$f":"AND(#REF!,\"BiResj8VTzI=\")","v":{"$error":"#REF!"}},{"$f":"AND(#REF!,\"BiResj8VTzM=\")","v":{"$error":"#REF!"}},{"$f":"AND(#REF!,\"BiResj8VTzQ=\")","v":{"$error":"#REF!"}},{"$f":"AND(#REF!,\"BiResj8VTzU=\")","v":{"$error":"#REF!"}},{"$f":"AND(#REF!,\"BiResj8VTzY=\")","v":{"$error":"#REF!"}},{"$f":"AND(#REF!,\"BiResj8VTzc=\")","v":{"$error":"#REF!"}},{"$f":"AND(#REF!,\"BiResj8VTzg=\")","v":{"$error":"#REF!"}},{"$f":"AND(#REF!,\"BiResj8VTzk=\")","v":{"$error":"#REF!"}},{"$f":"AND(#REF!,\"BiResj8VTzo=\")","v":{"$error":"#REF!"}},{"$f":"AND(#REF!,\"BiResj8VTzs=\")","v":{"$error":"#REF!"}},{"$f":"AND(#REF!,\"BiResj8VTzw=\")","v":{"$error":"#REF!"}},{"$f":"AND(#REF!,\"BiResj8VTz0=\")","v":{"$error":"#REF!"}},{"$f":"AND(#REF!,\"BiResj8VTz4=\")","v":{"$error":"#REF!"}},{"$f":"AND(#REF!,\"BiResj8VTz8=\")","v":{"$error":"#REF!"}},{"$f":"AND(#REF!,\"BiResj8VT0A=\")","v":{"$error":"#REF!"}},{"$f":"AND(#REF!,\"BiResj8VT0E=\")","v":{"$error":"#REF!"}},{"$f":"AND(#REF!,\"BiResj8VT0I=\")","v":{"$error":"#REF!"}},{"$f":"AND(#REF!,\"BiResj8VT0M=\")","v":{"$error":"#REF!"}},{"$f":"AND(#REF!,\"BiResj8VT0Q=\")","v":{"$error":"#REF!"}},{"$f":"AND(#REF!,\"BiResj8VT0U=\")","v":{"$error":"#REF!"}},{"$f":"AND(#REF!,\"BiResj8VT0Y=\")","v":{"$error":"#REF!"}},{"$f":"AND(#REF!,\"BiResj8VT0c=\")","v":{"$error":"#REF!"}},{"$f":"AND(#REF!,\"BiResj8VT0g=\")","v":{"$error":"#REF!"}},{"$f":"AND(#REF!,\"BiResj8VT0k=\")","v":{"$error":"#REF!"}},{"$f":"AND(#REF!,\"BiResj8VT0o=\")","v":{"$error":"#REF!"}},{"$f":"AND(#REF!,\"BiResj8VT0s=\")","v":{"$error":"#REF!"}},{"$f":"AND(#REF!,\"BiResj8VT0w=\")","v":{"$error":"#REF!"}},{"$f":"AND(#REF!,\"BiResj8VT00=\")","v":{"$error":"#REF!"}},{"$f":"AND(#REF!,\"BiResj8VT04=\")","v":{"$error":"#REF!"}},{"$f":"AND(#REF!,\"BiResj8VT08=\")","v":{"$error":"#REF!"}},{"$f":"AND(#REF!,\"BiResj8VT1A=\")","v":{"$error":"#REF!"}},{"$f":"AND(#REF!,\"BiResj8VT1E=\")","v":{"$error":"#REF!"}},{"$f":"AND(#REF!,\"BiResj8VT1I=\")","v":{"$error":"#REF!"}},{"$f":"AND(#REF!,\"BiResj8VT1M=\")","v":{"$error":"#REF!"}},{"$f":"AND(#REF!,\"BiResj8VT1Q=\")","v":{"$error":"#REF!"}},{"$f":"AND(#REF!,\"BiResj8VT1U=\")","v":{"$error":"#REF!"}},{"$f":"AND(#REF!,\"BiResj8VT1Y=\")","v":{"$error":"#REF!"}},{"$f":"AND(#REF!,\"BiResj8VT1c=\")","v":{"$error":"#REF!"}},{"$f":"AND(#REF!,\"BiResj8VT1g=\")","v":{"$error":"#REF!"}},{"$f":"AND(#REF!,\"BiResj8VT1k=\")","v":{"$error":"#REF!"}},{"$f":"AND(#REF!,\"BiResj8VT1o=\")","v":{"$error":"#REF!"}},{"$f":"AND(#REF!,\"BiResj8VT1s=\")","v":{"$error":"#REF!"}},{"$f":"AND(#REF!,\"BiResj8VT1w=\")","v":{"$error":"#REF!"}},{"$f":"AND(#REF!,\"BiResj8VT10=\")","v":{"$error":"#REF!"}},{"$f":"AND(#REF!,\"BiResj8VT14=\")","v":{"$error":"#REF!"}},{"$f":"AND(#REF!,\"BiResj8VT18=\")","v":{"$error":"#REF!"}},{"$f":"AND(#REF!,\"BiResj8VT2A=\")","v":{"$error":"#REF!"}},{"$f":"AND(#REF!,\"BiResj8VT2E=\")","v":{"$error":"#REF!"}},{"$f":"AND(#REF!,\"BiResj8VT2I=\")","v":{"$error":"#REF!"}},{"$f":"AND(#REF!,\"BiResj8VT2M=\")","v":{"$error":"#REF!"}},{"$f":"AND(#REF!,\"BiResj8VT2Q=\")","v":{"$error":"#REF!"}},{"$f":"AND(#REF!,\"BiResj8VT2U=\")","v":{"$error":"#REF!"}},{"$f":"AND(#REF!,\"BiResj8VT2Y=\")","v":{"$error":"#REF!"}},{"$f":"AND(#REF!,\"BiResj8VT2c=\")","v":{"$error":"#REF!"}},{"$f":"AND(#REF!,\"BiResj8VT2g=\")","v":{"$error":"#REF!"}},{"$f":"AND(#REF!,\"BiResj8VT2k=\")","v":{"$error":"#REF!"}},{"$f":"AND(#REF!,\"BiResj8VT2o=\")","v":{"$error":"#REF!"}},{"$f":"AND(#REF!,\"BiResj8VT2s=\")","v":{"$error":"#REF!"}},{"$f":"AND(#REF!,\"BiResj8VT2w=\")","v":{"$error":"#REF!"}},{"$f":"AND(#REF!,\"BiResj8VT20=\")","v":{"$error":"#REF!"}},{"$f":"AND(#REF!,\"BiResj8VT24=\")","v":{"$error":"#REF!"}},{"$f":"AND(#REF!,\"BiResj8VT28=\")","v":{"$error":"#REF!"}},{"$f":"AND(#REF!,\"BiResj8VT3A=\")","v":{"$error":"#REF!"}},{"$f":"AND(#REF!,\"BiResj8VT3E=\")","v":{"$error":"#REF!"}},{"$f":"AND(#REF!,\"BiResj8VT3I=\")","v":{"$error":"#REF!"}},{"$f":"AND(#REF!,\"BiResj8VT3M=\")","v":{"$error":"#REF!"}},{"$f":"AND(#REF!,\"BiResj8VT3Q=\")","v":{"$error":"#REF!"}},{"$f":"AND(#REF!,\"BiResj8VT3U=\")","v":{"$error":"#REF!"}},{"$f":"AND(#REF!,\"BiResj8VT3Y=\")","v":{"$error":"#REF!"}},{"$f":"AND(#REF!,\"BiResj8VT3c=\")","v":{"$error":"#REF!"}},{"$f":"AND(#REF!,\"BiResj8VT3g=\")","v":{"$error":"#REF!"}},{"$f":"AND(#REF!,\"BiResj8VT3k=\")","v":{"$error":"#REF!"}},{"$f":"AND(#REF!,\"BiResj8VT3o=\")","v":{"$error":"#REF!"}},{"$f":"AND(#REF!,\"BiResj8VT3s=\")","v":{"$error":"#REF!"}},{"$f":"AND(#REF!,\"BiResj8VT3w=\")","v":{"$error":"#REF!"}},{"$f":"AND(#REF!,\"BiResj8VT30=\")","v":{"$error":"#REF!"}},{"$f":"AND(#REF!,\"BiResj8VT34=\")","v":{"$error":"#REF!"}},{"$f":"AND(#REF!,\"BiResj8VT38=\")","v":{"$error":"#REF!"}},{"$f":"AND(#REF!,\"BiResj8VT4A=\")","v":{"$error":"#REF!"}},{"$f":"AND(#REF!,\"BiResj8VT4E=\")","v":{"$error":"#REF!"}},{"$f":"AND(#REF!,\"BiResj8VT4I=\")","v":{"$error":"#REF!"}},{"$f":"AND(#REF!,\"BiResj8VT4M=\")","v":{"$error":"#REF!"}},{"$f":"AND(#REF!,\"BiResj8VT4Q=\")","v":{"$error":"#REF!"}},{"$f":"AND(#REF!,\"BiResj8VT4U=\")","v":{"$error":"#REF!"}},{"$f":"AND(#REF!,\"BiResj8VT4Y=\")","v":{"$error":"#REF!"}},{"$f":"AND(#REF!,\"BiResj8VT4c=\")","v":{"$error":"#REF!"}},{"$f":"IF(#REF!,\"BiResj8VT4g=\",0)","v":{"$error":"#REF!"}},{"$f":"AND(#REF!,\"BiResj8VT4k=\")","v":{"$error":"#REF!"}},{"$f":"AND(#REF!,\"BiResj8VT4o=\")","v":{"$error":"#REF!"}},{"$f":"AND(#REF!,\"BiResj8VT4s=\")","v":{"$error":"#REF!"}},{"$f":"AND(#REF!,\"BiResj8VT4w=\")","v":{"$error":"#REF!"}},{"$f":"AND(#REF!,\"BiResj8VT40=\")","v":{"$error":"#REF!"}},{"$f":"AND(#REF!,\"BiResj8VT44=\")","v":{"$error":"#REF!"}},{"$f":"AND(#REF!,\"BiResj8VT48=\")","v":{"$error":"#REF!"}},{"$f":"AND(#REF!,\"BiResj8VT5A=\")","v":{"$error":"#REF!"}},{"$f":"AND(#REF!,\"BiResj8VT5E=\")","v":{"$error":"#REF!"}},{"$f":"AND(#REF!,\"BiResj8VT5I=\")","v":{"$error":"#REF!"}},{"$f":"AND(#REF!,\"BiResj8VT5M=\")","v":{"$error":"#REF!"}},{"$f":"AND(#REF!,\"BiResj8VT5Q=\")","v":{"$error":"#REF!"}},{"$f":"AND(#REF!,\"BiResj8VT5U=\")","v":{"$error":"#REF!"}},{"$f":"AND(#REF!,\"BiResj8VT5Y=\")","v":{"$error":"#REF!"}},{"$f":"AND(#REF!,\"BiResj8VT5c=\")","v":{"$error":"#REF!"}},{"$f":"AND(#REF!,\"BiResj8VT5g=\")","v":{"$error":"#REF!"}},{"$f":"AND(#REF!,\"BiResj8VT5k=\")","v":{"$error":"#REF!"}},{"$f":"AND(#REF!,\"BiResj8VT5o=\")","v":{"$error":"#REF!"}},{"$f":"AND(#REF!,\"BiResj8VT5s=\")","v":{"$error":"#REF!"}},{"$f":"AND(#REF!,\"BiResj8VT5w=\")","v":{"$error":"#REF!"}},{"$f":"AND(#REF!,\"BiResj8VT50=\")","v":{"$error":"#REF!"}},{"$f":"AND(#REF!,\"BiResj8VT54=\")","v":{"$error":"#REF!"}},{"$f":"AND(#REF!,\"BiResj8VT58=\")","v":{"$error":"#REF!"}},{"$f":"AND(#REF!,\"BiResj8VT6A=\")","v":{"$error":"#REF!"}},{"$f":"AND(#REF!,\"BiResj8VT6E=\")","v":{"$error":"#REF!"}},{"$f":"AND(#REF!,\"BiResj8VT6I=\")","v":{"$error":"#REF!"}},{"$f":"AND(#REF!,\"BiResj8VT6M=\")","v":{"$error":"#REF!"}},{"$f":"AND(#REF!,\"BiResj8VT6Q=\")","v":{"$error":"#REF!"}},{"$f":"AND(#REF!,\"BiResj8VT6U=\")","v":{"$error":"#REF!"}},{"$f":"AND(#REF!,\"BiResj8VT6Y=\")","v":{"$error":"#REF!"}},{"$f":"AND(#REF!,\"BiResj8VT6c=\")","v":{"$error":"#REF!"}},{"$f":"AND(#REF!,\"BiResj8VT6g=\")","v":{"$error":"#REF!"}},{"$f":"AND(#REF!,\"BiResj8VT6k=\")","v":{"$error":"#REF!"}},{"$f":"AND(#REF!,\"BiResj8VT6o=\")","v":{"$error":"#REF!"}},{"$f":"AND(#REF!,\"BiResj8VT6s=\")","v":{"$error":"#REF!"}},{"$f":"AND(#REF!,\"BiResj8VT6w=\")","v":{"$error":"#REF!"}},{"$f":"AND(#REF!,\"BiResj8VT60=\")","v":{"$error":"#REF!"}},{"$f":"AND(#REF!,\"BiResj8VT64=\")","v":{"$error":"#REF!"}},{"$f":"AND(#REF!,\"BiResj8VT68=\")","v":{"$error":"#REF!"}},{"$f":"AND(#REF!,\"BiResj8VT7A=\")","v":{"$error":"#REF!"}},{"$f":"AND(#REF!,\"BiResj8VT7E=\")","v":{"$error":"#REF!"}},{"$f":"AND(#REF!,\"BiResj8VT7I=\")","v":{"$error":"#REF!"}},{"$f":"AND(#REF!,\"BiResj8VT7M=\")","v":{"$error":"#REF!"}},{"$f":"AND(#REF!,\"BiResj8VT7Q=\")","v":{"$error":"#REF!"}},{"$f":"AND(#REF!,\"BiResj8VT7U=\")","v":{"$error":"#REF!"}},{"$f":"AND(#REF!,\"BiResj8VT7Y=\")","v":{"$error":"#REF!"}},{"$f":"AND(#REF!,\"BiResj8VT7c=\")","v":{"$error":"#REF!"}},{"$f":"AND(#REF!,\"BiResj8VT7g=\")","v":{"$error":"#REF!"}},{"$f":"AND(#REF!,\"BiResj8VT7k=\")","v":{"$error":"#REF!"}},{"$f":"AND(#REF!,\"BiResj8VT7o=\")","v":{"$error":"#REF!"}},{"$f":"AND(#REF!,\"BiResj8VT7s=\")","v":{"$error":"#REF!"}},{"$f":"AND(#REF!,\"BiResj8VT7w=\")","v":{"$error":"#REF!"}},{"$f":"AND(#REF!,\"BiResj8VT70=\")","v":{"$error":"#REF!"}},{"$f":"AND(#REF!,\"BiResj8VT74=\")","v":{"$error":"#REF!"}},{"$f":"AND(#REF!,\"BiResj8VT78=\")","v":{"$error":"#REF!"}},{"$f":"AND(#REF!,\"BiResj8VT8A=\")","v":{"$error":"#REF!"}},{"$f":"AND(#REF!,\"BiResj8VT8E=\")","v":{"$error":"#REF!"}},{"$f":"AND(#REF!,\"BiResj8VT8I=\")","v":{"$error":"#REF!"}},{"$f":"AND(#REF!,\"BiResj8VT8M=\")","v":{"$error":"#REF!"}},{"$f":"AND(#REF!,\"BiResj8VT8Q=\")","v":{"$error":"#REF!"}},{"$f":"AND(#REF!,\"BiResj8VT8U=\")","v":{"$error":"#REF!"}},{"$f":"AND(#REF!,\"BiResj8VT8Y=\")","v":{"$error":"#REF!"}},{"$f":"AND(#REF!,\"BiResj8VT8c=\")","v":{"$error":"#REF!"}},{"$f":"AND(#REF!,\"BiResj8VT8g=\")","v":{"$error":"#REF!"}},{"$f":"AND(#REF!,\"BiResj8VT8k=\")","v":{"$error":"#REF!"}},{"$f":"AND(#REF!,\"BiResj8VT8o=\")","v":{"$error":"#REF!"}},{"$f":"AND(#REF!,\"BiResj8VT8s=\")","v":{"$error":"#REF!"}},{"$f":"AND(#REF!,\"BiResj8VT8w=\")","v":{"$error":"#REF!"}},{"$f":"AND(#REF!,\"BiResj8VT80=\")","v":{"$error":"#REF!"}},{"$f":"AND(#REF!,\"BiResj8VT84=\")","v":{"$error":"#REF!"}},{"$f":"AND(#REF!,\"BiResj8VT88=\")","v":{"$error":"#REF!"}},{"$f":"AND(#REF!,\"BiResj8VT9A=\")","v":{"$error":"#REF!"}},{"$f":"AND(#REF!,\"BiResj8VT9E=\")","v":{"$error":"#REF!"}},{"$f":"AND(#REF!,\"BiResj8VT9I=\")","v":{"$error":"#REF!"}},{"$f":"AND(#REF!,\"BiResj8VT9M=\")","v":{"$error":"#REF!"}},{"$f":"AND(#REF!,\"BiResj8VT9Q=\")","v":{"$error":"#REF!"}},{"$f":"AND(#REF!,\"BiResj8VT9U=\")","v":{"$error":"#REF!"}},{"$f":"AND(#REF!,\"BiResj8VT9Y=\")","v":{"$error":"#REF!"}},{"$f":"AND(#REF!,\"BiResj8VT9c=\")","v":{"$error":"#REF!"}},{"$f":"AND(#REF!,\"BiResj8VT9g=\")","v":{"$error":"#REF!"}},{"$f":"AND(#REF!,\"BiResj8VT9k=\")","v":{"$error":"#REF!"}},{"$f":"AND(#REF!,\"BiResj8VT9o=\")","v":{"$error":"#REF!"}},{"$f":"AND(#REF!,\"BiResj8VT9s=\")","v":{"$error":"#REF!"}},{"$f":"AND(#REF!,\"BiResj8VT9w=\")","v":{"$error":"#REF!"}},{"$f":"AND(#REF!,\"BiResj8VT90=\")","v":{"$error":"#REF!"}},{"$f":"AND(#REF!,\"BiResj8VT94=\")","v":{"$error":"#REF!"}},{"$f":"AND(#REF!,\"BiResj8VT98=\")","v":{"$error":"#REF!"}},{"$f":"AND(#REF!,\"BiResj8VT+A=\")","v":{"$error":"#REF!"}},{"$f":"AND(#REF!,\"BiResj8VT+E=\")","v":{"$error":"#REF!"}},{"$f":"AND(#REF!,\"BiResj8VT+I=\")","v":{"$error":"#REF!"}},{"$f":"AND(#REF!,\"BiResj8VT+M=\")","v":{"$error":"#REF!"}},{"$f":"AND(#REF!,\"BiResj8VT+Q=\")","v":{"$error":"#REF!"}},{"$f":"AND(#REF!,\"BiResj8VT+U=\")","v":{"$error":"#REF!"}},{"$f":"AND(#REF!,\"BiResj8VT+Y=\")","v":{"$error":"#REF!"}},{"$f":"AND(#REF!,\"BiResj8VT+c=\")","v":{"$error":"#REF!"}},{"$f":"AND(#REF!,\"BiResj8VT+g=\")","v":{"$error":"#REF!"}},{"$f":"AND(#REF!,\"BiResj8VT+k=\")","v":{"$error":"#REF!"}},{"$f":"AND(#REF!,\"BiResj8VT+o=\")","v":{"$error":"#REF!"}},{"$f":"AND(#REF!,\"BiResj8VT+s=\")","v":{"$error":"#REF!"}},{"$f":"AND(#REF!,\"BiResj8VT+w=\")","v":{"$error":"#REF!"}},{"$f":"AND(#REF!,\"BiResj8VT+0=\")","v":{"$error":"#REF!"}},{"$f":"AND(#REF!,\"BiResj8VT+4=\")","v":{"$error":"#REF!"}},{"$f":"AND(#REF!,\"BiResj8VT+8=\")","v":{"$error":"#REF!"}},{"$f":"AND(#REF!,\"BiResj8VT/A=\")","v":{"$error":"#REF!"}},{"$f":"AND(#REF!,\"BiResj8VT/E=\")","v":{"$error":"#REF!"}},{"$f":"AND(#REF!,\"BiResj8VT/I=\")","v":{"$error":"#REF!"}},{"$f":"AND(#REF!,\"BiResj8VT/M=\")","v":{"$error":"#REF!"}},{"$f":"AND(#REF!,\"BiResj8VT/Q=\")","v":{"$error":"#REF!"}},{"$f":"AND(#REF!,\"BiResj8VT/U=\")","v":{"$error":"#REF!"}},{"$f":"AND(#REF!,\"BiResj8VT/Y=\")","v":{"$error":"#REF!"}},{"$f":"AND(#REF!,\"BiResj8VT/c=\")","v":{"$error":"#REF!"}},{"$f":"AND(#REF!,\"BiResj8VT/g=\")","v":{"$error":"#REF!"}},{"$f":"AND(#REF!,\"BiResj8VT/k=\")","v":{"$error":"#REF!"}},{"$f":"AND(#REF!,\"BiResj8VT/o=\")","v":{"$error":"#REF!"}},{"$f":"AND(#REF!,\"BiResj8VT/s=\")","v":{"$error":"#REF!"}},{"$f":"AND(#REF!,\"BiResj8VT/w=\")","v":{"$error":"#REF!"}},{"$f":"AND(#REF!,\"BiResj8VT/0=\")","v":{"$error":"#REF!"}},{"$f":"AND(#REF!,\"BiResj8VT/4=\")","v":{"$error":"#REF!"}},{"$f":"AND(#REF!,\"BiResj8VT/8=\")","v":{"$error":"#REF!"}}]
[{"$f":"AND(#REF!,\"RL/YvWCkgQA=\")","v":{"$error":"#REF!"}},{"$f":"AND(#REF!,\"RL/YvWCkgQE=\")","v":{"$error":"#REF!"}},{"$f":"AND(#REF!,\"RL/YvWCkgQI=\")","v":{"$error":"#REF!"}},{"$f":"AND(#REF!,\"RL/YvWCkgQM=\")","v":{"$error":"#REF!"}},{"$f":"AND(#REF!,\"RL/YvWCkgQQ=\")","v":{"$error":"#REF!"}},{"$f":"AND(#REF!,\"RL/YvWCkgQU=\")","v":{"$error":"#REF!"}},{"$f":"AND(#REF!,\"RL/YvWCkgQY=\")","v":{"$error":"#REF!"}},{"$f":"AND(#REF!,\"RL/YvWCkgQc=\")","v":{"$error":"#REF!"}},{"$f":"AND(#REF!,\"RL/YvWCkgQg=\")","v":{"$error":"#REF!"}},{"$f":"AND(#REF!,\"RL/YvWCkgQk=\")","v":{"$error":"#REF!"}},{"$f":"AND(#REF!,\"RL/YvWCkgQo=\")","v":{"$error":"#REF!"}},{"$f":"AND(#REF!,\"RL/YvWCkgQs=\")","v":{"$error":"#REF!"}},{"$f":"AND(#REF!,\"RL/YvWCkgQw=\")","v":{"$error":"#REF!"}},{"$f":"AND(#REF!,\"RL/YvWCkgQ0=\")","v":{"$error":"#REF!"}},{"$f":"AND(#REF!,\"RL/YvWCkgQ4=\")","v":{"$error":"#REF!"}},{"$f":"AND(#REF!,\"RL/YvWCkgQ8=\")","v":{"$error":"#REF!"}},{"$f":"AND(#REF!,\"RL/YvWCkgRA=\")","v":{"$error":"#REF!"}},{"$f":"AND(#REF!,\"RL/YvWCkgRE=\")","v":{"$error":"#REF!"}},{"$f":"AND(#REF!,\"RL/YvWCkgRI=\")","v":{"$error":"#REF!"}},{"$f":"AND(#REF!,\"RL/YvWCkgRM=\")","v":{"$error":"#REF!"}},{"$f":"AND(#REF!,\"RL/YvWCkgRQ=\")","v":{"$error":"#REF!"}},{"$f":"AND(#REF!,\"RL/YvWCkgRU=\")","v":{"$error":"#REF!"}},{"$f":"AND(#REF!,\"RL/YvWCkgRY=\")","v":{"$error":"#REF!"}},{"$f":"AND(#REF!,\"RL/YvWCkgRc=\")","v":{"$error":"#REF!"}},{"$f":"AND(#REF!,\"RL/YvWCkgRg=\")","v":{"$error":"#REF!"}},{"$f":"AND(#REF!,\"RL/YvWCkgRk=\")","v":{"$error":"#REF!"}},{"$f":"AND(#REF!,\"RL/YvWCkgRo=\")","v":{"$error":"#REF!"}},{"$f":"AND(#REF!,\"RL/YvWCkgRs=\")","v":{"$error":"#REF!"}},{"$f":"AND(#REF!,\"RL/YvWCkgRw=\")","v":{"$error":"#REF!"}},{"$f":"AND(#REF!,\"RL/YvWCkgR0=\")","v":{"$error":"#REF!"}},{"$f":"AND(#REF!,\"RL/YvWCkgR4=\")","v":{"$error":"#REF!"}},{"$f":"AND(#REF!,\"RL/YvWCkgR8=\")","v":{"$error":"#REF!"}},{"$f":"AND(#REF!,\"RL/YvWCkgSA=\")","v":{"$error":"#REF!"}},{"$f":"AND(#REF!,\"RL/YvWCkgSE=\")","v":{"$error":"#REF!"}},{"$f":"AND(#REF!,\"RL/YvWCkgSI=\")","v":{"$error":"#REF!"}},{"$f":"AND(#REF!,\"RL/YvWCkgSM=\")","v":{"$error":"#REF!"}},{"$f":"AND(#REF!,\"RL/YvWCkgSQ=\")","v":{"$error":"#REF!"}},{"$f":"AND(#REF!,\"RL/YvWCkgSU=\")","v":{"$error":"#REF!"}},{"$f":"AND(#REF!,\"RL/YvWCkgSY=\")","v":{"$error":"#REF!"}},{"$f":"AND(#REF!,\"RL/YvWCkgSc=\")","v":{"$error":"#REF!"}},{"$f":"AND(#REF!,\"RL/YvWCkgSg=\")","v":{"$error":"#REF!"}},{"$f":"AND(#REF!,\"RL/YvWCkgSk=\")","v":{"$error":"#REF!"}},{"$f":"AND(#REF!,\"RL/YvWCkgSo=\")","v":{"$error":"#REF!"}},{"$f":"AND(#REF!,\"RL/YvWCkgSs=\")","v":{"$error":"#REF!"}},{"$f":"AND(#REF!,\"RL/YvWCkgSw=\")","v":{"$error":"#REF!"}},{"$f":"AND(#REF!,\"RL/YvWCkgS0=\")","v":{"$error":"#REF!"}},{"$f":"AND(#REF!,\"RL/YvWCkgS4=\")","v":{"$error":"#REF!"}},{"$f":"AND(#REF!,\"RL/YvWCkgS8=\")","v":{"$error":"#REF!"}},{"$f":"AND(#REF!,\"RL/YvWCkgTA=\")","v":{"$error":"#REF!"}},{"$f":"AND(#REF!,\"RL/YvWCkgTE=\")","v":{"$error":"#REF!"}},{"$f":"AND(#REF!,\"RL/YvWCkgTI=\")","v":{"$error":"#REF!"}},{"$f":"AND(#REF!,\"RL/YvWCkgTM=\")","v":{"$error":"#REF!"}},{"$f":"AND(#REF!,\"RL/YvWCkgTQ=\")","v":{"$error":"#REF!"}},{"$f":"AND(#REF!,\"RL/YvWCkgTU=\")","v":{"$error":"#REF!"}},{"$f":"AND(#REF!,\"RL/YvWCkgTY=\")","v":{"$error":"#REF!"}},{"$f":"AND(#REF!,\"RL/YvWCkgTc=\")","v":{"$error":"#REF!"}},{"$f":"AND(#REF!,\"RL/YvWCkgTg=\")","v":{"$error":"#REF!"}},{"$f":"AND(#REF!,\"RL/YvWCkgTk=\")","v":{"$error":"#REF!"}},{"$f":"AND(#REF!,\"RL/YvWCkgTo=\")","v":{"$error":"#REF!"}},{"$f":"AND(#REF!,\"RL/YvWCkgTs=\")","v":{"$error":"#REF!"}},{"$f":"AND(#REF!,\"RL/YvWCkgTw=\")","v":{"$error":"#REF!"}},{"$f":"AND(#REF!,\"RL/YvWCkgT0=\")","v":{"$error":"#REF!"}},{"$f":"AND(#REF!,\"RL/YvWCkgT4=\")","v":{"$error":"#REF!"}},{"$f":"AND(#REF!,\"RL/YvWCkgT8=\")","v":{"$error":"#REF!"}},{"$f":"AND(#REF!,\"RL/YvWCkgUA=\")","v":{"$error":"#REF!"}},{"$f":"AND(#REF!,\"RL/YvWCkgUE=\")","v":{"$error":"#REF!"}},{"$f":"AND(#REF!,\"RL/YvWCkgUI=\")","v":{"$error":"#REF!"}},{"$f":"AND(#REF!,\"RL/YvWCkgUM=\")","v":{"$error":"#REF!"}},{"$f":"AND(#REF!,\"RL/YvWCkgUQ=\")","v":{"$error":"#REF!"}},{"$f":"AND(#REF!,\"RL/YvWCkgUU=\")","v":{"$error":"#REF!"}},{"$f":"AND(#REF!,\"RL/YvWCkgUY=\")","v":{"$error":"#REF!"}},{"$f":"AND(#REF!,\"RL/YvWCkgUc=\")","v":{"$error":"#REF!"}},{"$f":"AND(#REF!,\"RL/YvWCkgUg=\")","v":{"$error":"#REF!"}},{"$f":"AND(#REF!,\"RL/YvWCkgUk=\")","v":{"$error":"#REF!"}},{"$f":"AND(#REF!,\"RL/YvWCkgUo=\")","v":{"$error":"#REF!"}},{"$f":"AND(#REF!,\"RL/YvWCkgUs=\")","v":{"$error":"#REF!"}},{"$f":"AND(#REF!,\"RL/YvWCkgUw=\")","v":{"$error":"#REF!"}},{"$f":"AND(#REF!,\"RL/YvWCkgU0=\")","v":{"$error":"#REF!"}},{"$f":"AND(#REF!,\"RL/YvWCkgU4=\")","v":{"$error":"#REF!"}},{"$f":"IF(#REF!,\"RL/YvWCkgU8=\",0)","v":{"$error":"#REF!"}},{"$f":"AND(#REF!,\"RL/YvWCkgVA=\")","v":{"$error":"#REF!"}},{"$f":"AND(#REF!,\"RL/YvWCkgVE=\")","v":{"$error":"#REF!"}},{"$f":"AND(#REF!,\"RL/YvWCkgVI=\")","v":{"$error":"#REF!"}},{"$f":"AND(#REF!,\"RL/YvWCkgVM=\")","v":{"$error":"#REF!"}},{"$f":"AND(#REF!,\"RL/YvWCkgVQ=\")","v":{"$error":"#REF!"}},{"$f":"AND(#REF!,\"RL/YvWCkgVU=\")","v":{"$error":"#REF!"}},{"$f":"AND(#REF!,\"RL/YvWCkgVY=\")","v":{"$error":"#REF!"}},{"$f":"AND(#REF!,\"RL/YvWCkgVc=\")","v":{"$error":"#REF!"}},{"$f":"AND(#REF!,\"RL/YvWCkgVg=\")","v":{"$error":"#REF!"}},{"$f":"AND(#REF!,\"RL/YvWCkgVk=\")","v":{"$error":"#REF!"}},{"$f":"AND(#REF!,\"RL/YvWCkgVo=\")","v":{"$error":"#REF!"}},{"$f":"AND(#REF!,\"RL/YvWCkgVs=\")","v":{"$error":"#REF!"}},{"$f":"AND(#REF!,\"RL/YvWCkgVw=\")","v":{"$error":"#REF!"}},{"$f":"AND(#REF!,\"RL/YvWCkgV0=\")","v":{"$error":"#REF!"}},{"$f":"AND(#REF!,\"RL/YvWCkgV4=\")","v":{"$error":"#REF!"}},{"$f":"AND(#REF!,\"RL/YvWCkgV8=\")","v":{"$error":"#REF!"}},{"$f":"AND(#REF!,\"RL/YvWCkgWA=\")","v":{"$error":"#REF!"}},{"$f":"AND(#REF!,\"RL/YvWCkgWE=\")","v":{"$error":"#REF!"}},{"$f":"AND(#REF!,\"RL/YvWCkgWI=\")","v":{"$error":"#REF!"}},{"$f":"AND(#REF!,\"RL/YvWCkgWM=\")","v":{"$error":"#REF!"}},{"$f":"AND(#REF!,\"RL/YvWCkgWQ=\")","v":{"$error":"#REF!"}},{"$f":"AND(#REF!,\"RL/YvWCkgWU=\")","v":{"$error":"#REF!"}},{"$f":"AND(#REF!,\"RL/YvWCkgWY=\")","v":{"$error":"#REF!"}},{"$f":"AND(#REF!,\"RL/YvWCkgWc=\")","v":{"$error":"#REF!"}},{"$f":"AND(#REF!,\"RL/YvWCkgWg=\")","v":{"$error":"#REF!"}},{"$f":"AND(#REF!,\"RL/YvWCkgWk=\")","v":{"$error":"#REF!"}},{"$f":"AND(#REF!,\"RL/YvWCkgWo=\")","v":{"$error":"#REF!"}},{"$f":"AND(#REF!,\"RL/YvWCkgWs=\")","v":{"$error":"#REF!"}},{"$f":"AND(#REF!,\"RL/YvWCkgWw=\")","v":{"$error":"#REF!"}},{"$f":"AND(#REF!,\"RL/YvWCkgW0=\")","v":{"$error":"#REF!"}},{"$f":"AND(#REF!,\"RL/YvWCkgW4=\")","v":{"$error":"#REF!"}},{"$f":"AND(#REF!,\"RL/YvWCkgW8=\")","v":{"$error":"#REF!"}},{"$f":"AND(#REF!,\"RL/YvWCkgXA=\")","v":{"$error":"#REF!"}},{"$f":"AND(#REF!,\"RL/YvWCkgXE=\")","v":{"$error":"#REF!"}},{"$f":"AND(#REF!,\"RL/YvWCkgXI=\")","v":{"$error":"#REF!"}},{"$f":"AND(#REF!,\"RL/YvWCkgXM=\")","v":{"$error":"#REF!"}},{"$f":"AND(#REF!,\"RL/YvWCkgXQ=\")","v":{"$error":"#REF!"}},{"$f":"AND(#REF!,\"RL/YvWCkgXU=\")","v":{"$error":"#REF!"}},{"$f":"AND(#REF!,\"RL/YvWCkgXY=\")","v":{"$error":"#REF!"}},{"$f":"AND(#REF!,\"RL/YvWCkgXc=\")","v":{"$error":"#REF!"}},{"$f":"AND(#REF!,\"RL/YvWCkgXg=\")","v":{"$error":"#REF!"}},{"$f":"AND(#REF!,\"RL/YvWCkgXk=\")","v":{"$error":"#REF!"}},{"$f":"AND(#REF!,\"RL/YvWCkgXo=\")","v":{"$error":"#REF!"}},{"$f":"AND(#REF!,\"RL/YvWCkgXs=\")","v":{"$error":"#REF!"}},{"$f":"AND(#REF!,\"RL/YvWCkgXw=\")","v":{"$error":"#REF!"}},{"$f":"AND(#REF!,\"RL/YvWCkgX0=\")","v":{"$error":"#REF!"}},{"$f":"AND(#REF!,\"RL/YvWCkgX4=\")","v":{"$error":"#REF!"}},{"$f":"AND(#REF!,\"RL/YvWCkgX8=\")","v":{"$error":"#REF!"}},{"$f":"AND(#REF!,\"RL/YvWCkgYA=\")","v":{"$error":"#REF!"}},{"$f":"AND(#REF!,\"RL/YvWCkgYE=\")","v":{"$error":"#REF!"}},{"$f":"AND(#REF!,\"RL/YvWCkgYI=\")","v":{"$error":"#REF!"}},{"$f":"AND(#REF!,\"RL/YvWCkgYM=\")","v":{"$error":"#REF!"}},{"$f":"AND(#REF!,\"RL/YvWCkgYQ=\")","v":{"$error":"#REF!"}},{"$f":"AND(#REF!,\"RL/YvWCkgYU=\")","v":{"$error":"#REF!"}},{"$f":"AND(#REF!,\"RL/YvWCkgYY=\")","v":{"$error":"#REF!"}},{"$f":"AND(#REF!,\"RL/YvWCkgYc=\")","v":{"$error":"#REF!"}},{"$f":"AND(#REF!,\"RL/YvWCkgYg=\")","v":{"$error":"#REF!"}},{"$f":"AND(#REF!,\"RL/YvWCkgYk=\")","v":{"$error":"#REF!"}},{"$f":"AND(#REF!,\"RL/YvWCkgYo=\")","v":{"$error":"#REF!"}},{"$f":"AND(#REF!,\"RL/YvWCkgYs=\")","v":{"$error":"#REF!"}},{"$f":"AND(#REF!,\"RL/YvWCkgYw=\")","v":{"$error":"#REF!"}},{"$f":"AND(#REF!,\"RL/YvWCkgY0=\")","v":{"$error":"#REF!"}},{"$f":"AND(#REF!,\"RL/YvWCkgY4=\")","v":{"$error":"#REF!"}},{"$f":"AND(#REF!,\"RL/YvWCkgY8=\")","v":{"$error":"#REF!"}},{"$f":"AND(#REF!,\"RL/YvWCkgZA=\")","v":{"$error":"#REF!"}},{"$f":"AND(#REF!,\"RL/YvWCkgZE=\")","v":{"$error":"#REF!"}},{"$f":"AND(#REF!,\"RL/YvWCkgZI=\")","v":{"$error":"#REF!"}},{"$f":"AND(#REF!,\"RL/YvWCkgZM=\")","v":{"$error":"#REF!"}},{"$f":"AND(#REF!,\"RL/YvWCkgZQ=\")","v":{"$error":"#REF!"}},{"$f":"AND(#REF!,\"RL/YvWCkgZU=\")","v":{"$error":"#REF!"}},{"$f":"AND(#REF!,\"RL/YvWCkgZY=\")","v":{"$error":"#REF!"}},{"$f":"AND(#REF!,\"RL/YvWCkgZc=\")","v":{"$error":"#REF!"}},{"$f":"AND(#REF!,\"RL/YvWCkgZg=\")","v":{"$error":"#REF!"}},{"$f":"AND(#REF!,\"RL/YvWCkgZk=\")","v":{"$error":"#REF!"}},{"$f":"AND(#REF!,\"RL/YvWCkgZo=\")","v":{"$error":"#REF!"}},{"$f":"AND(#REF!,\"RL/YvWCkgZs=\")","v":{"$error":"#REF!"}},{"$f":"AND(#REF!,\"RL/YvWCkgZw=\")","v":{"$error":"#REF!"}},{"$f":"AND(#REF!,\"RL/YvWCkgZ0=\")","v":{"$error":"#REF!"}},{"$f":"AND(#REF!,\"RL/YvWCkgZ4=\")","v":{"$error":"#REF!"}},{"$f":"AND(#REF!,\"RL/YvWCkgZ8=\")","v":{"$error":"#REF!"}},{"$f":"AND(#REF!,\"RL/YvWCkgaA=\")","v":{"$error":"#REF!"}},{"$f":"AND(#REF!,\"RL/YvWCkgaE=\")","v":{"$error":"#REF!"}},{"$f":"AND(#REF!,\"RL/YvWCkgaI=\")","v":{"$error":"#REF!"}},{"$f":"AND(#REF!,\"RL/YvWCkgaM=\")","v":{"$error":"#REF!"}},{"$f":"AND(#REF!,\"RL/YvWCkgaQ=\")","v":{"$error":"#REF!"}},{"$f":"AND(#REF!,\"RL/YvWCkgaU=\")","v":{"$error":"#REF!"}},{"$f":"AND(#REF!,\"RL/YvWCkgaY=\")","v":{"$error":"#REF!"}},{"$f":"AND(#REF!,\"RL/YvWCkgac=\")","v":{"$error":"#REF!"}},{"$f":"AND(#REF!,\"RL/YvWCkgag=\")","v":{"$error":"#REF!"}},{"$f":"AND(#REF!,\"RL/YvWCkgak=\")","v":{"$error":"#REF!"}},{"$f":"AND(#REF!,\"RL/YvWCkgao=\")","v":{"$error":"#REF!"}},{"$f":"AND(#REF!,\"RL/YvWCkgas=\")","v":{"$error":"#REF!"}},{"$f":"AND(#REF!,\"RL/YvWCkgaw=\")","v":{"$error":"#REF!"}},{"$f":"AND(#REF!,\"RL/YvWCkga0=\")","v":{"$error":"#REF!"}},{"$f":"AND(#REF!,\"RL/YvWCkga4=\")","v":{"$error":"#REF!"}},{"$f":"AND(#REF!,\"RL/YvWCkga8=\")","v":{"$error":"#REF!"}},{"$f":"AND(#REF!,\"RL/YvWCkgbA=\")","v":{"$error":"#REF!"}},{"$f":"AND(#REF!,\"RL/YvWCkgbE=\")","v":{"$error":"#REF!"}},{"$f":"AND(#REF!,\"RL/YvWCkgbI=\")","v":{"$error":"#REF!"}},{"$f":"AND(#REF!,\"RL/YvWCkgbM=\")","v":{"$error":"#REF!"}},{"$f":"AND(#REF!,\"RL/YvWCkgbQ=\")","v":{"$error":"#REF!"}},{"$f":"AND(#REF!,\"RL/YvWCkgbU=\")","v":{"$error":"#REF!"}},{"$f":"AND(#REF!,\"RL/YvWCkgbY=\")","v":{"$error":"#REF!"}},{"$f":"AND(#REF!,\"RL/YvWCkgbc=\")","v":{"$error":"#REF!"}},{"$f":"AND(#REF!,\"RL/YvWCkgbg=\")","v":{"$error":"#REF!"}},{"$f":"AND(#REF!,\"RL/YvWCkgbk=\")","v":{"$error":"#REF!"}},{"$f":"AND(#REF!,\"RL/YvWCkgbo=\")","v":{"$error":"#REF!"}},{"$f":"AND(#REF!,\"RL/YvWCkgbs=\")","v":{"$error":"#REF!"}},{"$f":"AND(#REF!,\"RL/YvWCkgbw=\")","v":{"$error":"#REF!"}},{"$f":"AND(#REF!,\"RL/YvWCkgb0=\")","v":{"$error":"#REF!"}},{"$f":"AND(#REF!,\"RL/YvWCkgb4=\")","v":{"$error":"#REF!"}},{"$f":"AND(#REF!,\"RL/YvWCkgb8=\")","v":{"$error":"#REF!"}},{"$f":"AND(#REF!,\"RL/YvWCkgcA=\")","v":{"$error":"#REF!"}},{"$f":"AND(#REF!,\"RL/YvWCkgcE=\")","v":{"$error":"#REF!"}},{"$f":"AND(#REF!,\"RL/YvWCkgcI=\")","v":{"$error":"#REF!"}},{"$f":"AND(#REF!,\"RL/YvWCkgcM=\")","v":{"$error":"#REF!"}},{"$f":"AND(#REF!,\"RL/YvWCkgcQ=\")","v":{"$error":"#REF!"}},{"$f":"AND(#REF!,\"RL/YvWCkgcU=\")","v":{"$error":"#REF!"}},{"$f":"AND(#REF!,\"RL/YvWCkgcY=\")","v":{"$error":"#REF!"}},{"$f":"AND(#REF!,\"RL/YvWCkgcc=\")","v":{"$error":"#REF!"}},{"$f":"AND(#REF!,\"RL/YvWCkgcg=\")","v":{"$error":"#REF!"}},{"$f":"AND(#REF!,\"RL/YvWCkgck=\")","v":{"$error":"#REF!"}},{"$f":"AND(#REF!,\"RL/YvWCkgco=\")","v":{"$error":"#REF!"}},{"$f":"AND(#REF!,\"RL/YvWCkgcs=\")","v":{"$error":"#REF!"}},{"$f":"AND(#REF!,\"RL/YvWCkgcw=\")","v":{"$error":"#REF!"}},{"$f":"AND(#REF!,\"RL/YvWCkgc0=\")","v":{"$error":"#REF!"}},{"$f":"AND(#REF!,\"RL/YvWCkgc4=\")","v":{"$error":"#REF!"}},{"$f":"AND(#REF!,\"RL/YvWCkgc8=\")","v":{"$error":"#REF!"}},{"$f":"AND(#REF!,\"RL/YvWCkgdA=\")","v":{"$error":"#REF!"}},{"$f":"AND(#REF!,\"RL/YvWCkgdE=\")","v":{"$error":"#REF!"}},{"$f":"AND(#REF!,\"RL/YvWCkgdI=\")","v":{"$error":"#REF!"}},{"$f":"AND(#REF!,\"RL/YvWCkgdM=\")","v":{"$error":"#REF!"}},{"$f":"AND(#REF!,\"RL/YvWCkgdQ=\")","v":{"$error":"#REF!"}},{"$f":"AND(#REF!,\"RL/YvWCkgdU=\")","v":{"$error":"#REF!"}},{"$f":"AND(#REF!,\"RL/YvWCkgdY=\")","v":{"$error":"#REF!"}},{"$f":"AND(#REF!,\"RL/YvWCkgdc=\")","v":{"$error":"#REF!"}},{"$f":"AND(#REF!,\"RL/YvWCkgdg=\")","v":{"$error":"#REF!"}},{"$f":"AND(#REF!,\"RL/YvWCkgdk=\")","v":{"$error":"#REF!"}},{"$f":"AND(#REF!,\"RL/YvWCkgdo=\")","v":{"$error":"#REF!"}},{"$f":"AND(#REF!,\"RL/YvWCkgds=\")","v":{"$error":"#REF!"}},{"$f":"AND(#REF!,\"RL/YvWCkgdw=\")","v":{"$error":"#REF!"}},{"$f":"AND(#REF!,\"RL/YvWCkgd0=\")","v":{"$error":"#REF!"}},{"$f":"AND(#REF!,\"RL/YvWCkgd4=\")","v":{"$error":"#REF!"}},{"$f":"AND(#REF!,\"RL/YvWCkgd8=\")","v":{"$error":"#REF!"}},{"$f":"AND(#REF!,\"RL/YvWCkgeA=\")","v":{"$error":"#REF!"}},{"$f":"AND(#REF!,\"RL/YvWCkgeE=\")","v":{"$error":"#REF!"}},{"$f":"AND(#REF!,\"RL/YvWCkgeI=\")","v":{"$error":"#REF!"}},{"$f":"AND(#REF!,\"RL/YvWCkgeM=\")","v":{"$error":"#REF!"}},{"$f":"AND(#REF!,\"RL/YvWCkgeQ=\")","v":{"$error":"#REF!"}},{"$f":"AND(#REF!,\"RL/YvWCkgeU=\")","v":{"$error":"#REF!"}},{"$f":"AND(#REF!,\"RL/YvWCkgeY=\")","v":{"$error":"#REF!"}},{"$f":"AND(#REF!,\"RL/YvWCkgec=\")","v":{"$error":"#REF!"}},{"$f":"AND(#REF!,\"RL/YvWCkgeg=\")","v":{"$error":"#REF!"}},{"$f":"AND(#REF!,\"RL/YvWCkgek=\")","v":{"$error":"#REF!"}},{"$f":"AND(#REF!,\"RL/YvWCkgeo=\")","v":{"$error":"#REF!"}},{"$f":"AND(#REF!,\"RL/YvWCkges=\")","v":{"$error":"#REF!"}},{"$f":"AND(#REF!,\"RL/YvWCkgew=\")","v":{"$error":"#REF!"}},{"$f":"AND(#REF!,\"RL/YvWCkge0=\")","v":{"$error":"#REF!"}},{"$f":"AND(#REF!,\"RL/YvWCkge4=\")","v":{"$error":"#REF!"}},{"$f":"AND(#REF!,\"RL/YvWCkge8=\")","v":{"$error":"#REF!"}},{"$f":"AND(#REF!,\"RL/YvWCkgfA=\")","v":{"$error":"#REF!"}},{"$f":"AND(#REF!,\"RL/YvWCkgfE=\")","v":{"$error":"#REF!"}},{"$f":"AND(#REF!,\"RL/YvWCkgfI=\")","v":{"$error":"#REF!"}},{"$f":"AND(#REF!,\"RL/YvWCkgfM=\")","v":{"$error":"#REF!"}},{"$f":"AND(#REF!,\"RL/YvWCkgfQ=\")","v":{"$error":"#REF!"}},{"$f":"AND(#REF!,\"RL/YvWCkgfU=\")","v":{"$error":"#REF!"}},{"$f":"AND(#REF!,\"RL/YvWCkgfY=\")","v":{"$error":"#REF!"}},{"$f":"AND(#REF!,\"RL/YvWCkgfc=\")","v":{"$error":"#REF!"}},{"$f":"AND(#REF!,\"RL/YvWCkgfg=\")","v":{"$error":"#REF!"}},{"$f":"AND(#REF!,\"RL/YvWCkgfk=\")","v":{"$error":"#REF!"}},{"$f":"AND(#REF!,\"RL/YvWCkgfo=\")","v":{"$error":"#REF!"}},{"$f":"AND(#REF!,\"RL/YvWCkgfs=\")","v":{"$error":"#REF!"}},{"$f":"AND(#REF!,\"RL/YvWCkgfw=\")","v":{"$error":"#REF!"}},{"$f":"AND(#REF!,\"RL/YvWCkgf0=\")","v":{"$error":"#REF!"}},{"$f":"AND(#REF!,\"RL/YvWCkgf4=\")","v":{"$error":"#REF!"}},{"$f":"AND(#REF!,\"RL/YvWCkgf8=\")","v":{"$error":"#REF!"}}]
[{"$f":"AND(#REF!,\"efjcKiiCnQA=\")","v":{"$error":"#REF!"}},{"$f":"AND(#REF!,\"efjcKiiCnQE=\")","v":{"$error":"#REF!"}},{"$f":"AND(#REF!,\"efjcKiiCnQI=\")","v":{"$error":"#REF!"}},{"$f":"AND(#REF!,\"efjcKiiCnQM=\")","v":{"$error":"#REF!"}},{"$f":"AND(#REF!,\"efjcKiiCnQQ=\")","v":{"$error":"#REF!"}},{"$f":"AND(#REF!,\"efjcKiiCnQU=\")","v":{"$error":"#REF!"}},{"$f":"AND(#REF!,\"efjcKiiCnQY=\")","v":{"$error":"#REF!"}},{"$f":"AND(#REF!,\"efjcKiiCnQc=\")","v":{"$error":"#REF!"}},{"$f":"AND(#REF!,\"efjcKiiCnQg=\")","v":{"$error":"#REF!"}},{"$f":"AND(#REF!,\"efjcKiiCnQk=\")","v":{"$error":"#REF!"}},{"$f":"AND(#REF!,\"efjcKiiCnQo=\")","v":{"$error":"#REF!"}},{"$f":"AND(#REF!,\"efjcKiiCnQs=\")","v":{"$error":"#REF!"}},{"$f":"AND(#REF!,\"efjcKiiCnQw=\")","v":{"$error":"#REF!"}},{"$f":"AND(#REF!,\"efjcKiiCnQ0=\")","v":{"$error":"#REF!"}},{"$f":"AND(#REF!,\"efjcKiiCnQ4=\")","v":{"$error":"#REF!"}},{"$f":"AND(#REF!,\"efjcKiiCnQ8=\")","v":{"$error":"#REF!"}},{"$f":"AND(#REF!,\"efjcKiiCnRA=\")","v":{"$error":"#REF!"}},{"$f":"AND(#REF!,\"efjcKiiCnRE=\")","v":{"$error":"#REF!"}},{"$f":"AND(#REF!,\"efjcKiiCnRI=\")","v":{"$error":"#REF!"}},{"$f":"AND(#REF!,\"efjcKiiCnRM=\")","v":{"$error":"#REF!"}},{"$f":"AND(#REF!,\"efjcKiiCnRQ=\")","v":{"$error":"#REF!"}},{"$f":"AND(#REF!,\"efjcKiiCnRU=\")","v":{"$error":"#REF!"}},{"$f":"IF(#REF!,\"efjcKiiCnRY=\",0)","v":{"$error":"#REF!"}},{"$f":"AND(#REF!,\"efjcKiiCnRc=\")","v":{"$error":"#REF!"}},{"$f":"AND(#REF!,\"efjcKiiCnRg=\")","v":{"$error":"#REF!"}},{"$f":"AND(#REF!,\"efjcKiiCnRk=\")","v":{"$error":"#REF!"}},{"$f":"AND(#REF!,\"efjcKiiCnRo=\")","v":{"$error":"#REF!"}},{"$f":"AND(#REF!,\"efjcKiiCnRs=\")","v":{"$error":"#REF!"}},{"$f":"AND(#REF!,\"efjcKiiCnRw=\")","v":{"$error":"#REF!"}},{"$f":"AND(#REF!,\"efjcKiiCnR0=\")","v":{"$error":"#REF!"}},{"$f":"AND(#REF!,\"efjcKiiCnR4=\")","v":{"$error":"#REF!"}},{"$f":"AND(#REF!,\"efjcKiiCnR8=\")","v":{"$error":"#REF!"}},{"$f":"AND(#REF!,\"efjcKiiCnSA=\")","v":{"$error":"#REF!"}},{"$f":"AND(#REF!,\"efjcKiiCnSE=\")","v":{"$error":"#REF!"}},{"$f":"AND(#REF!,\"efjcKiiCnSI=\")","v":{"$error":"#REF!"}},{"$f":"AND(#REF!,\"efjcKiiCnSM=\")","v":{"$error":"#REF!"}},{"$f":"AND(#REF!,\"efjcKiiCnSQ=\")","v":{"$error":"#REF!"}},{"$f":"AND(#REF!,\"efjcKiiCnSU=\")","v":{"$error":"#REF!"}},{"$f":"AND(#REF!,\"efjcKiiCnSY=\")","v":{"$error":"#REF!"}},{"$f":"AND(#REF!,\"efjcKiiCnSc=\")","v":{"$error":"#REF!"}},{"$f":"AND(#REF!,\"efjcKiiCnSg=\")","v":{"$error":"#REF!"}},{"$f":"AND(#REF!,\"efjcKiiCnSk=\")","v":{"$error":"#REF!"}},{"$f":"AND(#REF!,\"efjcKiiCnSo=\")","v":{"$error":"#REF!"}},{"$f":"AND(#REF!,\"efjcKiiCnSs=\")","v":{"$error":"#REF!"}},{"$f":"AND(#REF!,\"efjcKiiCnSw=\")","v":{"$error":"#REF!"}},{"$f":"AND(#REF!,\"efjcKiiCnS0=\")","v":{"$error":"#REF!"}},{"$f":"AND(#REF!,\"efjcKiiCnS4=\")","v":{"$error":"#REF!"}},{"$f":"AND(#REF!,\"efjcKiiCnS8=\")","v":{"$error":"#REF!"}},{"$f":"AND(#REF!,\"efjcKiiCnTA=\")","v":{"$error":"#REF!"}},{"$f":"AND(#REF!,\"efjcKiiCnTE=\")","v":{"$error":"#REF!"}},{"$f":"AND(#REF!,\"efjcKiiCnTI=\")","v":{"$error":"#REF!"}},{"$f":"AND(#REF!,\"efjcKiiCnTM=\")","v":{"$error":"#REF!"}},{"$f":"AND(#REF!,\"efjcKiiCnTQ=\")","v":{"$error":"#REF!"}},{"$f":"AND(#REF!,\"efjcKiiCnTU=\")","v":{"$error":"#REF!"}},{"$f":"AND(#REF!,\"efjcKiiCnTY=\")","v":{"$error":"#REF!"}},{"$f":"AND(#REF!,\"efjcKiiCnTc=\")","v":{"$error":"#REF!"}},{"$f":"AND(#REF!,\"efjcKiiCnTg=\")","v":{"$error":"#REF!"}},{"$f":"AND(#REF!,\"efjcKiiCnTk=\")","v":{"$error":"#REF!"}},{"$f":"AND(#REF!,\"efjcKiiCnTo=\")","v":{"$error":"#REF!"}},{"$f":"AND(#REF!,\"efjcKiiCnTs=\")","v":{"$error":"#REF!"}},{"$f":"AND(#REF!,\"efjcKiiCnTw=\")","v":{"$error":"#REF!"}},{"$f":"AND(#REF!,\"efjcKiiCnT0=\")","v":{"$error":"#REF!"}},{"$f":"AND(#REF!,\"efjcKiiCnT4=\")","v":{"$error":"#REF!"}},{"$f":"AND(#REF!,\"efjcKiiCnT8=\")","v":{"$error":"#REF!"}},{"$f":"AND(#REF!,\"efjcKiiCnUA=\")","v":{"$error":"#REF!"}},{"$f":"AND(#REF!,\"efjcKiiCnUE=\")","v":{"$error":"#REF!"}},{"$f":"AND(#REF!,\"efjcKiiCnUI=\")","v":{"$error":"#REF!"}},{"$f":"AND(#REF!,\"efjcKiiCnUM=\")","v":{"$error":"#REF!"}},{"$f":"AND(#REF!,\"efjcKiiCnUQ=\")","v":{"$error":"#REF!"}},{"$f":"AND(#REF!,\"efjcKiiCnUU=\")","v":{"$error":"#REF!"}},{"$f":"AND(#REF!,\"efjcKiiCnUY=\")","v":{"$error":"#REF!"}},{"$f":"AND(#REF!,\"efjcKiiCnUc=\")","v":{"$error":"#REF!"}},{"$f":"AND(#REF!,\"efjcKiiCnUg=\")","v":{"$error":"#REF!"}},{"$f":"AND(#REF!,\"efjcKiiCnUk=\")","v":{"$error":"#REF!"}},{"$f":"AND(#REF!,\"efjcKiiCnUo=\")","v":{"$error":"#REF!"}},{"$f":"AND(#REF!,\"efjcKiiCnUs=\")","v":{"$error":"#REF!"}},{"$f":"AND(#REF!,\"efjcKiiCnUw=\")","v":{"$error":"#REF!"}},{"$f":"AND(#REF!,\"efjcKiiCnU0=\")","v":{"$error":"#REF!"}},{"$f":"AND(#REF!,\"efjcKiiCnU4=\")","v":{"$error":"#REF!"}},{"$f":"AND(#REF!,\"efjcKiiCnU8=\")","v":{"$error":"#REF!"}},{"$f":"AND(#REF!,\"efjcKiiCnVA=\")","v":{"$error":"#REF!"}},{"$f":"AND(#REF!,\"efjcKiiCnVE=\")","v":{"$error":"#REF!"}},{"$f":"AND(#REF!,\"efjcKiiCnVI=\")","v":{"$error":"#REF!"}},{"$f":"AND(#REF!,\"efjcKiiCnVM=\")","v":{"$error":"#REF!"}},{"$f":"AND(#REF!,\"efjcKiiCnVQ=\")","v":{"$error":"#REF!"}},{"$f":"AND(#REF!,\"efjcKiiCnVU=\")","v":{"$error":"#REF!"}},{"$f":"AND(#REF!,\"efjcKiiCnVY=\")","v":{"$error":"#REF!"}},{"$f":"AND(#REF!,\"efjcKiiCnVc=\")","v":{"$error":"#REF!"}},{"$f":"AND(#REF!,\"efjcKiiCnVg=\")","v":{"$error":"#REF!"}},{"$f":"AND(#REF!,\"efjcKiiCnVk=\")","v":{"$error":"#REF!"}},{"$f":"AND(#REF!,\"efjcKiiCnVo=\")","v":{"$error":"#REF!"}},{"$f":"AND(#REF!,\"efjcKiiCnVs=\")","v":{"$error":"#REF!"}},{"$f":"AND(#REF!,\"efjcKiiCnVw=\")","v":{"$error":"#REF!"}},{"$f":"AND(#REF!,\"efjcKiiCnV0=\")","v":{"$error":"#REF!"}},{"$f":"AND(#REF!,\"efjcKiiCnV4=\")","v":{"$error":"#REF!"}},{"$f":"AND(#REF!,\"efjcKiiCnV8=\")","v":{"$error":"#REF!"}},{"$f":"AND(#REF!,\"efjcKiiCnWA=\")","v":{"$error":"#REF!"}},{"$f":"AND(#REF!,\"efjcKiiCnWE=\")","v":{"$error":"#REF!"}},{"$f":"AND(#REF!,\"efjcKiiCnWI=\")","v":{"$error":"#REF!"}},{"$f":"AND(#REF!,\"efjcKiiCnWM=\")","v":{"$error":"#REF!"}},{"$f":"AND(#REF!,\"efjcKiiCnWQ=\")","v":{"$error":"#REF!"}},{"$f":"AND(#REF!,\"efjcKiiCnWU=\")","v":{"$error":"#REF!"}},{"$f":"AND(#REF!,\"efjcKiiCnWY=\")","v":{"$error":"#REF!"}},{"$f":"AND(#REF!,\"efjcKiiCnWc=\")","v":{"$error":"#REF!"}},{"$f":"AND(#REF!,\"efjcKiiCnWg=\")","v":{"$error":"#REF!"}},{"$f":"AND(#REF!,\"efjcKiiCnWk=\")","v":{"$error":"#REF!"}},{"$f":"AND(#REF!,\"efjcKiiCnWo=\")","v":{"$error":"#REF!"}},{"$f":"AND(#REF!,\"efjcKiiCnWs=\")","v":{"$error":"#REF!"}},{"$f":"AND(#REF!,\"efjcKiiCnWw=\")","v":{"$error":"#REF!"}},{"$f":"AND(#REF!,\"efjcKiiCnW0=\")","v":{"$error":"#REF!"}},{"$f":"AND(#REF!,\"efjcKiiCnW4=\")","v":{"$error":"#REF!"}},{"$f":"AND(#REF!,\"efjcKiiCnW8=\")","v":{"$error":"#REF!"}},{"$f":"AND(#REF!,\"efjcKiiCnXA=\")","v":{"$error":"#REF!"}},{"$f":"AND(#REF!,\"efjcKiiCnXE=\")","v":{"$error":"#REF!"}},{"$f":"AND(#REF!,\"efjcKiiCnXI=\")","v":{"$error":"#REF!"}},{"$f":"AND(#REF!,\"efjcKiiCnXM=\")","v":{"$error":"#REF!"}},{"$f":"AND(#REF!,\"efjcKiiCnXQ=\")","v":{"$error":"#REF!"}},{"$f":"AND(#REF!,\"efjcKiiCnXU=\")","v":{"$error":"#REF!"}},{"$f":"AND(#REF!,\"efjcKiiCnXY=\")","v":{"$error":"#REF!"}},{"$f":"AND(#REF!,\"efjcKiiCnXc=\")","v":{"$error":"#REF!"}},{"$f":"AND(#REF!,\"efjcKiiCnXg=\")","v":{"$error":"#REF!"}},{"$f":"AND(#REF!,\"efjcKiiCnXk=\")","v":{"$error":"#REF!"}},{"$f":"AND(#REF!,\"efjcKiiCnXo=\")","v":{"$error":"#REF!"}},{"$f":"AND(#REF!,\"efjcKiiCnXs=\")","v":{"$error":"#REF!"}},{"$f":"AND(#REF!,\"efjcKiiCnXw=\")","v":{"$error":"#REF!"}},{"$f":"AND(#REF!,\"efjcKiiCnX0=\")","v":{"$error":"#REF!"}},{"$f":"AND(#REF!,\"efjcKiiCnX4=\")","v":{"$error":"#REF!"}},{"$f":"AND(#REF!,\"efjcKiiCnX8=\")","v":{"$error":"#REF!"}},{"$f":"AND(#REF!,\"efjcKiiCnYA=\")","v":{"$error":"#REF!"}},{"$f":"AND(#REF!,\"efjcKiiCnYE=\")","v":{"$error":"#REF!"}},{"$f":"AND(#REF!,\"efjcKiiCnYI=\")","v":{"$error":"#REF!"}},{"$f":"AND(#REF!,\"efjcKiiCnYM=\")","v":{"$error":"#REF!"}},{"$f":"AND(#REF!,\"efjcKiiCnYQ=\")","v":{"$error":"#REF!"}},{"$f":"AND(#REF!,\"efjcKiiCnYU=\")","v":{"$error":"#REF!"}},{"$f":"AND(#REF!,\"efjcKiiCnYY=\")","v":{"$error":"#REF!"}},{"$f":"AND(#REF!,\"efjcKiiCnYc=\")","v":{"$error":"#REF!"}},{"$f":"AND(#REF!,\"efjcKiiCnYg=\")","v":{"$error":"#REF!"}},{"$f":"AND(#REF!,\"efjcKiiCnYk=\")","v":{"$error":"#REF!"}},{"$f":"AND(#REF!,\"efjcKiiCnYo=\")","v":{"$error":"#REF!"}},{"$f":"AND(#REF!,\"efjcKiiCnYs=\")","v":{"$error":"#REF!"}},{"$f":"AND(#REF!,\"efjcKiiCnYw=\")","v":{"$error":"#REF!"}},{"$f":"AND(#REF!,\"efjcKiiCnY0=\")","v":{"$error":"#REF!"}},{"$f":"AND(#REF!,\"efjcKiiCnY4=\")","v":{"$error":"#REF!"}},{"$f":"AND(#REF!,\"efjcKiiCnY8=\")","v":{"$error":"#REF!"}},{"$f":"AND(#REF!,\"efjcKiiCnZA=\")","v":{"$error":"#REF!"}},{"$f":"AND(#REF!,\"efjcKiiCnZE=\")","v":{"$error":"#REF!"}},{"$f":"AND(#REF!,\"efjcKiiCnZI=\")","v":{"$error":"#REF!"}},{"$f":"AND(#REF!,\"efjcKiiCnZM=\")","v":{"$error":"#REF!"}},{"$f":"AND(#REF!,\"efjcKiiCnZQ=\")","v":{"$error":"#REF!"}},{"$f":"AND(#REF!,\"efjcKiiCnZU=\")","v":{"$error":"#REF!"}},{"$f":"AND(#REF!,\"efjcKiiCnZY=\")","v":{"$error":"#REF!"}},{"$f":"AND(#REF!,\"efjcKiiCnZc=\")","v":{"$error":"#REF!"}},{"$f":"AND(#REF!,\"efjcKiiCnZg=\")","v":{"$error":"#REF!"}},{"$f":"AND(#REF!,\"efjcKiiCnZk=\")","v":{"$error":"#REF!"}},{"$f":"AND(#REF!,\"efjcKiiCnZo=\")","v":{"$error":"#REF!"}},{"$f":"AND(#REF!,\"efjcKiiCnZs=\")","v":{"$error":"#REF!"}},{"$f":"AND(#REF!,\"efjcKiiCnZw=\")","v":{"$error":"#REF!"}},{"$f":"AND(#REF!,\"efjcKiiCnZ0=\")","v":{"$error":"#REF!"}},{"$f":"AND(#REF!,\"efjcKiiCnZ4=\")","v":{"$error":"#REF!"}},{"$f":"AND(#REF!,\"efjcKiiCnZ8=\")","v":{"$error":"#REF!"}},{"$f":"AND(#REF!,\"efjcKiiCnaA=\")","v":{"$error":"#REF!"}},{"$f":"AND(#REF!,\"efjcKiiCnaE=\")","v":{"$error":"#REF!"}},{"$f":"AND(#REF!,\"efjcKiiCnaI=\")","v":{"$error":"#REF!"}},{"$f":"AND(#REF!,\"efjcKiiCnaM=\")","v":{"$error":"#REF!"}},{"$f":"AND(#REF!,\"efjcKiiCnaQ=\")","v":{"$error":"#REF!"}},{"$f":"AND(#REF!,\"efjcKiiCnaU=\")","v":{"$error":"#REF!"}},{"$f":"AND(#REF!,\"efjcKiiCnaY=\")","v":{"$error":"#REF!"}},{"$f":"AND(#REF!,\"efjcKiiCnac=\")","v":{"$error":"#REF!"}},{"$f":"AND(#REF!,\"efjcKiiCnag=\")","v":{"$error":"#REF!"}},{"$f":"AND(#REF!,\"efjcKiiCnak=\")","v":{"$error":"#REF!"}},{"$f":"AND(#REF!,\"efjcKiiCnao=\")","v":{"$error":"#REF!"}},{"$f":"AND(#REF!,\"efjcKiiCnas=\")","v":{"$error":"#REF!"}},{"$f":"AND(#REF!,\"efjcKiiCnaw=\")","v":{"$error":"#REF!"}},{"$f":"AND(#REF!,\"efjcKiiCna0=\")","v":{"$error":"#REF!"}},{"$f":"AND(#REF!,\"efjcKiiCna4=\")","v":{"$error":"#REF!"}},{"$f":"AND(#REF!,\"efjcKiiCna8=\")","v":{"$error":"#REF!"}},{"$f":"AND(#REF!,\"efjcKiiCnbA=\")","v":{"$error":"#REF!"}},{"$f":"AND(#REF!,\"efjcKiiCnbE=\")","v":{"$error":"#REF!"}},{"$f":"AND(#REF!,\"efjcKiiCnbI=\")","v":{"$error":"#REF!"}},{"$f":"AND(#REF!,\"efjcKiiCnbM=\")","v":{"$error":"#REF!"}},{"$f":"AND(#REF!,\"efjcKiiCnbQ=\")","v":{"$error":"#REF!"}},{"$f":"AND(#REF!,\"efjcKiiCnbU=\")","v":{"$error":"#REF!"}},{"$f":"AND(#REF!,\"efjcKiiCnbY=\")","v":{"$error":"#REF!"}},{"$f":"AND(#REF!,\"efjcKiiCnbc=\")","v":{"$error":"#REF!"}},{"$f":"AND(#REF!,\"efjcKiiCnbg=\")","v":{"$error":"#REF!"}},{"$f":"AND(#REF!,\"efjcKiiCnbk=\")","v":{"$error":"#REF!"}},{"$f":"AND(#REF!,\"efjcKiiCnbo=\")","v":{"$error":"#REF!"}},{"$f":"AND(#REF!,\"efjcKiiCnbs=\")","v":{"$error":"#REF!"}},{"$f":"AND(#REF!,\"efjcKiiCnbw=\")","v":{"$error":"#REF!"}},{"$f":"AND(#REF!,\"efjcKiiCnb0=\")","v":{"$error":"#REF!"}},{"$f":"AND(#REF!,\"efjcKiiCnb4=\")","v":{"$error":"#REF!"}},{"$f":"AND(#REF!,\"efjcKiiCnb8=\")","v":{"$error":"#REF!"}},{"$f":"AND(#REF!,\"efjcKiiCncA=\")","v":{"$error":"#REF!"}},{"$f":"AND(#REF!,\"efjcKiiCncE=\")","v":{"$error":"#REF!"}},{"$f":"AND(#REF!,\"efjcKiiCncI=\")","v":{"$error":"#REF!"}},{"$f":"AND(#REF!,\"efjcKiiCncM=\")","v":{"$error":"#REF!"}},{"$f":"AND(#REF!,\"efjcKiiCncQ=\")","v":{"$error":"#REF!"}},{"$f":"AND(#REF!,\"efjcKiiCncU=\")","v":{"$error":"#REF!"}},{"$f":"AND(#REF!,\"efjcKiiCncY=\")","v":{"$error":"#REF!"}},{"$f":"AND(#REF!,\"efjcKiiCncc=\")","v":{"$error":"#REF!"}},{"$f":"AND(#REF!,\"efjcKiiCncg=\")","v":{"$error":"#REF!"}},{"$f":"AND(#REF!,\"efjcKiiCnck=\")","v":{"$error":"#REF!"}},{"$f":"AND(#REF!,\"efjcKiiCnco=\")","v":{"$error":"#REF!"}},{"$f":"AND(#REF!,\"efjcKiiCncs=\")","v":{"$error":"#REF!"}},{"$f":"AND(#REF!,\"efjcKiiCncw=\")","v":{"$error":"#REF!"}},{"$f":"AND(#REF!,\"efjcKiiCnc0=\")","v":{"$error":"#REF!"}},{"$f":"AND(#REF!,\"efjcKiiCnc4=\")","v":{"$error":"#REF!"}},{"$f":"AND(#REF!,\"efjcKiiCnc8=\")","v":{"$error":"#REF!"}},{"$f":"AND(#REF!,\"efjcKiiCndA=\")","v":{"$error":"#REF!"}},{"$f":"AND(#REF!,\"efjcKiiCndE=\")","v":{"$error":"#REF!"}},{"$f":"AND(#REF!,\"efjcKiiCndI=\")","v":{"$error":"#REF!"}},{"$f":"AND(#REF!,\"efjcKiiCndM=\")","v":{"$error":"#REF!"}},{"$f":"AND(#REF!,\"efjcKiiCndQ=\")","v":{"$error":"#REF!"}},{"$f":"AND(#REF!,\"efjcKiiCndU=\")","v":{"$error":"#REF!"}},{"$f":"AND(#REF!,\"efjcKiiCndY=\")","v":{"$error":"#REF!"}},{"$f":"AND(#REF!,\"efjcKiiCndc=\")","v":{"$error":"#REF!"}},{"$f":"AND(#REF!,\"efjcKiiCndg=\")","v":{"$error":"#REF!"}},{"$f":"AND(#REF!,\"efjcKiiCndk=\")","v":{"$error":"#REF!"}},{"$f":"AND(#REF!,\"efjcKiiCndo=\")","v":{"$error":"#REF!"}},{"$f":"AND(#REF!,\"efjcKiiCnds=\")","v":{"$error":"#REF!"}},{"$f":"AND(#REF!,\"efjcKiiCndw=\")","v":{"$error":"#REF!"}},{"$f":"IF(#REF!,\"efjcKiiCnd0=\",0)","v":{"$error":"#REF!"}},{"$f":"AND(#REF!,\"efjcKiiCnd4=\")","v":{"$error":"#REF!"}},{"$f":"AND(#REF!,\"efjcKiiCnd8=\")","v":{"$error":"#REF!"}},{"$f":"AND(#REF!,\"efjcKiiCneA=\")","v":{"$error":"#REF!"}},{"$f":"AND(#REF!,\"efjcKiiCneE=\")","v":{"$error":"#REF!"}},{"$f":"AND(#REF!,\"efjcKiiCneI=\")","v":{"$error":"#REF!"}},{"$f":"AND(#REF!,\"efjcKiiCneM=\")","v":{"$error":"#REF!"}},{"$f":"AND(#REF!,\"efjcKiiCneQ=\")","v":{"$error":"#REF!"}},{"$f":"AND(#REF!,\"efjcKiiCneU=\")","v":{"$error":"#REF!"}},{"$f":"AND(#REF!,\"efjcKiiCneY=\")","v":{"$error":"#REF!"}},{"$f":"AND(#REF!,\"efjcKiiCnec=\")","v":{"$error":"#REF!"}},{"$f":"AND(#REF!,\"efjcKiiCneg=\")","v":{"$error":"#REF!"}},{"$f":"AND(#REF!,\"efjcKiiCnek=\")","v":{"$error":"#REF!"}},{"$f":"AND(#REF!,\"efjcKiiCneo=\")","v":{"$error":"#REF!"}},{"$f":"AND(#REF!,\"efjcKiiCnes=\")","v":{"$error":"#REF!"}},{"$f":"AND(#REF!,\"efjcKiiCnew=\")","v":{"$error":"#REF!"}},{"$f":"AND(#REF!,\"efjcKiiCne0=\")","v":{"$error":"#REF!"}},{"$f":"AND(#REF!,\"efjcKiiCne4=\")","v":{"$error":"#REF!"}},{"$f":"AND(#REF!,\"efjcKiiCne8=\")","v":{"$error":"#REF!"}},{"$f":"AND(#REF!,\"efjcKiiCnfA=\")","v":{"$error":"#REF!"}},{"$f":"AND(#REF!,\"efjcKiiCnfE=\")","v":{"$error":"#REF!"}},{"$f":"AND(#REF!,\"efjcKiiCnfI=\")","v":{"$error":"#REF!"}},{"$f":"AND(#REF!,\"efjcKiiCnfM=\")","v":{"$error":"#REF!"}},{"$f":"AND(#REF!,\"efjcKiiCnfQ=\")","v":{"$error":"#REF!"}},{"$f":"AND(#REF!,\"efjcKiiCnfU=\")","v":{"$error":"#REF!"}},{"$f":"AND(#REF!,\"efjcKiiCnfY=\")","v":{"$error":"#REF!"}},{"$f":"AND(#REF!,\"efjcKiiCnfc=\")","v":{"$error":"#REF!"}},{"$f":"AND(#REF!,\"efjcKiiCnfg=\")","v":{"$error":"#REF!"}},{"$f":"AND(#REF!,\"efjcKiiCnfk=\")","v":{"$error":"#REF!"}},{"$f":"AND(#REF!,\"efjcKiiCnfo=\")","v":{"$error":"#REF!"}},{"$f":"AND(#REF!,\"efjcKiiCnfs=\")","v":{"$error":"#REF!"}},{"$f":"AND(#REF!,\"efjcKiiCnfw=\")","v":{"$error":"#REF!"}},{"$f":"AND(#REF!,\"efjcKiiCnf0=\")","v":{"$error":"#REF!"}},{"$f":"AND(#REF!,\"efjcKiiCnf4=\")","v":{"$error":"#REF!"}},{"$f":"AND(#REF!,\"efjcKiiCnf8=\")","v":{"$error":"#REF!"}}]
[{"$f":"AND(#REF!,\"ZiUwuDdnnQA=\")","v":{"$error":"#REF!"}},{"$f":"AND(#REF!,\"ZiUwuDdnnQE=\")","v":{"$error":"#REF!"}},{"$f":"AND(#REF!,\"ZiUwuDdnnQI=\")","v":{"$error":"#REF!"}},{"$f":"AND(#REF!,\"ZiUwuDdnnQM=\")","v":{"$error":"#REF!"}},{"$f":"AND(#REF!,\"ZiUwuDdnnQQ=\")","v":{"$error":"#REF!"}},{"$f":"AND(#REF!,\"ZiUwuDdnnQU=\")","v":{"$error":"#REF!"}},{"$f":"AND(#REF!,\"ZiUwuDdnnQY=\")","v":{"$error":"#REF!"}},{"$f":"AND(#REF!,\"ZiUwuDdnnQc=\")","v":{"$error":"#REF!"}},{"$f":"AND(#REF!,\"ZiUwuDdnnQg=\")","v":{"$error":"#REF!"}},{"$f":"AND(#REF!,\"ZiUwuDdnnQk=\")","v":{"$error":"#REF!"}},{"$f":"AND(#REF!,\"ZiUwuDdnnQo=\")","v":{"$error":"#REF!"}},{"$f":"AND(#REF!,\"ZiUwuDdnnQs=\")","v":{"$error":"#REF!"}},{"$f":"AND(#REF!,\"ZiUwuDdnnQw=\")","v":{"$error":"#REF!"}},{"$f":"AND(#REF!,\"ZiUwuDdnnQ0=\")","v":{"$error":"#REF!"}},{"$f":"AND(#REF!,\"ZiUwuDdnnQ4=\")","v":{"$error":"#REF!"}},{"$f":"AND(#REF!,\"ZiUwuDdnnQ8=\")","v":{"$error":"#REF!"}},{"$f":"AND(#REF!,\"ZiUwuDdnnRA=\")","v":{"$error":"#REF!"}},{"$f":"AND(#REF!,\"ZiUwuDdnnRE=\")","v":{"$error":"#REF!"}},{"$f":"AND(#REF!,\"ZiUwuDdnnRI=\")","v":{"$error":"#REF!"}},{"$f":"AND(#REF!,\"ZiUwuDdnnRM=\")","v":{"$error":"#REF!"}},{"$f":"AND(#REF!,\"ZiUwuDdnnRQ=\")","v":{"$error":"#REF!"}},{"$f":"AND(#REF!,\"ZiUwuDdnnRU=\")","v":{"$error":"#REF!"}},{"$f":"AND(#REF!,\"ZiUwuDdnnRY=\")","v":{"$error":"#REF!"}},{"$f":"AND(#REF!,\"ZiUwuDdnnRc=\")","v":{"$error":"#REF!"}},{"$f":"AND(#REF!,\"ZiUwuDdnnRg=\")","v":{"$error":"#REF!"}},{"$f":"AND(#REF!,\"ZiUwuDdnnRk=\")","v":{"$error":"#REF!"}},{"$f":"AND(#REF!,\"ZiUwuDdnnRo=\")","v":{"$error":"#REF!"}},{"$f":"AND(#REF!,\"ZiUwuDdnnRs=\")","v":{"$error":"#REF!"}},{"$f":"AND(#REF!,\"ZiUwuDdnnRw=\")","v":{"$error":"#REF!"}},{"$f":"AND(#REF!,\"ZiUwuDdnnR0=\")","v":{"$error":"#REF!"}},{"$f":"AND(#REF!,\"ZiUwuDdnnR4=\")","v":{"$error":"#REF!"}},{"$f":"AND(#REF!,\"ZiUwuDdnnR8=\")","v":{"$error":"#REF!"}},{"$f":"AND(#REF!,\"ZiUwuDdnnSA=\")","v":{"$error":"#REF!"}},{"$f":"AND(#REF!,\"ZiUwuDdnnSE=\")","v":{"$error":"#REF!"}},{"$f":"AND(#REF!,\"ZiUwuDdnnSI=\")","v":{"$error":"#REF!"}},{"$f":"AND(#REF!,\"ZiUwuDdnnSM=\")","v":{"$error":"#REF!"}},{"$f":"AND(#REF!,\"ZiUwuDdnnSQ=\")","v":{"$error":"#REF!"}},{"$f":"AND(#REF!,\"ZiUwuDdnnSU=\")","v":{"$error":"#REF!"}},{"$f":"AND(#REF!,\"ZiUwuDdnnSY=\")","v":{"$error":"#REF!"}},{"$f":"AND(#REF!,\"ZiUwuDdnnSc=\")","v":{"$error":"#REF!"}},{"$f":"AND(#REF!,\"ZiUwuDdnnSg=\")","v":{"$error":"#REF!"}},{"$f":"AND(#REF!,\"ZiUwuDdnnSk=\")","v":{"$error":"#REF!"}},{"$f":"AND(#REF!,\"ZiUwuDdnnSo=\")","v":{"$error":"#REF!"}},{"$f":"AND(#REF!,\"ZiUwuDdnnSs=\")","v":{"$error":"#REF!"}},{"$f":"AND(#REF!,\"ZiUwuDdnnSw=\")","v":{"$error":"#REF!"}},{"$f":"AND(#REF!,\"ZiUwuDdnnS0=\")","v":{"$error":"#REF!"}},{"$f":"AND(#REF!,\"ZiUwuDdnnS4=\")","v":{"$error":"#REF!"}},{"$f":"AND(#REF!,\"ZiUwuDdnnS8=\")","v":{"$error":"#REF!"}},{"$f":"AND(#REF!,\"ZiUwuDdnnTA=\")","v":{"$error":"#REF!"}},{"$f":"AND(#REF!,\"ZiUwuDdnnTE=\")","v":{"$error":"#REF!"}},{"$f":"AND(#REF!,\"ZiUwuDdnnTI=\")","v":{"$error":"#REF!"}},{"$f":"AND(#REF!,\"ZiUwuDdnnTM=\")","v":{"$error":"#REF!"}},{"$f":"AND(#REF!,\"ZiUwuDdnnTQ=\")","v":{"$error":"#REF!"}},{"$f":"AND(#REF!,\"ZiUwuDdnnTU=\")","v":{"$error":"#REF!"}},{"$f":"AND(#REF!,\"ZiUwuDdnnTY=\")","v":{"$error":"#REF!"}},{"$f":"AND(#REF!,\"ZiUwuDdnnTc=\")","v":{"$error":"#REF!"}},{"$f":"AND(#REF!,\"ZiUwuDdnnTg=\")","v":{"$error":"#REF!"}},{"$f":"AND(#REF!,\"ZiUwuDdnnTk=\")","v":{"$error":"#REF!"}},{"$f":"AND(#REF!,\"ZiUwuDdnnTo=\")","v":{"$error":"#REF!"}},{"$f":"AND(#REF!,\"ZiUwuDdnnTs=\")","v":{"$error":"#REF!"}},{"$f":"AND(#REF!,\"ZiUwuDdnnTw=\")","v":{"$error":"#REF!"}},{"$f":"AND(#REF!,\"ZiUwuDdnnT0=\")","v":{"$error":"#REF!"}},{"$f":"AND(#REF!,\"ZiUwuDdnnT4=\")","v":{"$error":"#REF!"}},{"$f":"AND(#REF!,\"ZiUwuDdnnT8=\")","v":{"$error":"#REF!"}},{"$f":"AND(#REF!,\"ZiUwuDdnnUA=\")","v":{"$error":"#REF!"}},{"$f":"AND(#REF!,\"ZiUwuDdnnUE=\")","v":{"$error":"#REF!"}},{"$f":"AND(#REF!,\"ZiUwuDdnnUI=\")","v":{"$error":"#REF!"}},{"$f":"AND(#REF!,\"ZiUwuDdnnUM=\")","v":{"$error":"#REF!"}},{"$f":"AND(#REF!,\"ZiUwuDdnnUQ=\")","v":{"$error":"#REF!"}},{"$f":"AND(#REF!,\"ZiUwuDdnnUU=\")","v":{"$error":"#REF!"}},{"$f":"AND(#REF!,\"ZiUwuDdnnUY=\")","v":{"$error":"#REF!"}},{"$f":"AND(#REF!,\"ZiUwuDdnnUc=\")","v":{"$error":"#REF!"}},{"$f":"AND(#REF!,\"ZiUwuDdnnUg=\")","v":{"$error":"#REF!"}},{"$f":"AND(#REF!,\"ZiUwuDdnnUk=\")","v":{"$error":"#REF!"}},{"$f":"AND(#REF!,\"ZiUwuDdnnUo=\")","v":{"$error":"#REF!"}},{"$f":"AND(#REF!,\"ZiUwuDdnnUs=\")","v":{"$error":"#REF!"}},{"$f":"AND(#REF!,\"ZiUwuDdnnUw=\")","v":{"$error":"#REF!"}},{"$f":"AND(#REF!,\"ZiUwuDdnnU0=\")","v":{"$error":"#REF!"}},{"$f":"AND(#REF!,\"ZiUwuDdnnU4=\")","v":{"$error":"#REF!"}},{"$f":"AND(#REF!,\"ZiUwuDdnnU8=\")","v":{"$error":"#REF!"}},{"$f":"AND(#REF!,\"ZiUwuDdnnVA=\")","v":{"$error":"#REF!"}},{"$f":"AND(#REF!,\"ZiUwuDdnnVE=\")","v":{"$error":"#REF!"}},{"$f":"AND(#REF!,\"ZiUwuDdnnVI=\")","v":{"$error":"#REF!"}},{"$f":"AND(#REF!,\"ZiUwuDdnnVM=\")","v":{"$error":"#REF!"}},{"$f":"AND(#REF!,\"ZiUwuDdnnVQ=\")","v":{"$error":"#REF!"}},{"$f":"AND(#REF!,\"ZiUwuDdnnVU=\")","v":{"$error":"#REF!"}},{"$f":"AND(#REF!,\"ZiUwuDdnnVY=\")","v":{"$error":"#REF!"}},{"$f":"AND(#REF!,\"ZiUwuDdnnVc=\")","v":{"$error":"#REF!"}},{"$f":"AND(#REF!,\"ZiUwuDdnnVg=\")","v":{"$error":"#REF!"}},{"$f":"AND(#REF!,\"ZiUwuDdnnVk=\")","v":{"$error":"#REF!"}},{"$f":"AND(#REF!,\"ZiUwuDdnnVo=\")","v":{"$error":"#REF!"}},{"$f":"AND(#REF!,\"ZiUwuDdnnVs=\")","v":{"$error":"#REF!"}},{"$f":"AND(#REF!,\"ZiUwuDdnnVw=\")","v":{"$error":"#REF!"}},{"$f":"AND(#REF!,\"ZiUwuDdnnV0=\")","v":{"$error":"#REF!"}},{"$f":"AND(#REF!,\"ZiUwuDdnnV4=\")","v":{"$error":"#REF!"}},{"$f":"AND(#REF!,\"ZiUwuDdnnV8=\")","v":{"$error":"#REF!"}},{"$f":"AND(#REF!,\"ZiUwuDdnnWA=\")","v":{"$error":"#REF!"}},{"$f":"AND(#REF!,\"ZiUwuDdnnWE=\")","v":{"$error":"#REF!"}},{"$f":"AND(#REF!,\"ZiUwuDdnnWI=\")","v":{"$error":"#REF!"}},{"$f":"AND(#REF!,\"ZiUwuDdnnWM=\")","v":{"$error":"#REF!"}},{"$f":"AND(#REF!,\"ZiUwuDdnnWQ=\")","v":{"$error":"#REF!"}},{"$f":"AND(#REF!,\"ZiUwuDdnnWU=\")","v":{"$error":"#REF!"}},{"$f":"AND(#REF!,\"ZiUwuDdnnWY=\")","v":{"$error":"#REF!"}},{"$f":"AND(#REF!,\"ZiUwuDdnnWc=\")","v":{"$error":"#REF!"}},{"$f":"AND(#REF!,\"ZiUwuDdnnWg=\")","v":{"$error":"#REF!"}},{"$f":"AND(#REF!,\"ZiUwuDdnnWk=\")","v":{"$error":"#REF!"}},{"$f":"AND(#REF!,\"ZiUwuDdnnWo=\")","v":{"$error":"#REF!"}},{"$f":"AND(#REF!,\"ZiUwuDdnnWs=\")","v":{"$error":"#REF!"}},{"$f":"AND(#REF!,\"ZiUwuDdnnWw=\")","v":{"$error":"#REF!"}},{"$f":"AND(#REF!,\"ZiUwuDdnnW0=\")","v":{"$error":"#REF!"}},{"$f":"AND(#REF!,\"ZiUwuDdnnW4=\")","v":{"$error":"#REF!"}},{"$f":"AND(#REF!,\"ZiUwuDdnnW8=\")","v":{"$error":"#REF!"}},{"$f":"AND(#REF!,\"ZiUwuDdnnXA=\")","v":{"$error":"#REF!"}},{"$f":"AND(#REF!,\"ZiUwuDdnnXE=\")","v":{"$error":"#REF!"}},{"$f":"AND(#REF!,\"ZiUwuDdnnXI=\")","v":{"$error":"#REF!"}},{"$f":"AND(#REF!,\"ZiUwuDdnnXM=\")","v":{"$error":"#REF!"}},{"$f":"AND(#REF!,\"ZiUwuDdnnXQ=\")","v":{"$error":"#REF!"}},{"$f":"AND(#REF!,\"ZiUwuDdnnXU=\")","v":{"$error":"#REF!"}},{"$f":"AND(#REF!,\"ZiUwuDdnnXY=\")","v":{"$error":"#REF!"}},{"$f":"AND(#REF!,\"ZiUwuDdnnXc=\")","v":{"$error":"#REF!"}},{"$f":"AND(#REF!,\"ZiUwuDdnnXg=\")","v":{"$error":"#REF!"}},{"$f":"AND(#REF!,\"ZiUwuDdnnXk=\")","v":{"$error":"#REF!"}},{"$f":"AND(#REF!,\"ZiUwuDdnnXo=\")","v":{"$error":"#REF!"}},{"$f":"AND(#REF!,\"ZiUwuDdnnXs=\")","v":{"$error":"#REF!"}},{"$f":"AND(#REF!,\"ZiUwuDdnnXw=\")","v":{"$error":"#REF!"}},{"$f":"AND(#REF!,\"ZiUwuDdnnX0=\")","v":{"$error":"#REF!"}},{"$f":"AND(#REF!,\"ZiUwuDdnnX4=\")","v":{"$error":"#REF!"}},{"$f":"AND(#REF!,\"ZiUwuDdnnX8=\")","v":{"$error":"#REF!"}},{"$f":"AND(#REF!,\"ZiUwuDdnnYA=\")","v":{"$error":"#REF!"}},{"$f":"AND(#REF!,\"ZiUwuDdnnYE=\")","v":{"$error":"#REF!"}},{"$f":"AND(#REF!,\"ZiUwuDdnnYI=\")","v":{"$error":"#REF!"}},{"$f":"AND(#REF!,\"ZiUwuDdnnYM=\")","v":{"$error":"#REF!"}},{"$f":"AND(#REF!,\"ZiUwuDdnnYQ=\")","v":{"$error":"#REF!"}},{"$f":"AND(#REF!,\"ZiUwuDdnnYU=\")","v":{"$error":"#REF!"}},{"$f":"AND(#REF!,\"ZiUwuDdnnYY=\")","v":{"$error":"#REF!"}},{"$f":"AND(#REF!,\"ZiUwuDdnnYc=\")","v":{"$error":"#REF!"}},{"$f":"AND(#REF!,\"ZiUwuDdnnYg=\")","v":{"$error":"#REF!"}},{"$f":"AND(#REF!,\"ZiUwuDdnnYk=\")","v":{"$error":"#REF!"}},{"$f":"AND(#REF!,\"ZiUwuDdnnYo=\")","v":{"$error":"#REF!"}},{"$f":"AND(#REF!,\"ZiUwuDdnnYs=\")","v":{"$error":"#REF!"}},{"$f":"AND(#REF!,\"ZiUwuDdnnYw=\")","v":{"$error":"#REF!"}},{"$f":"AND(#REF!,\"ZiUwuDdnnY0=\")","v":{"$error":"#REF!"}},{"$f":"AND(#REF!,\"ZiUwuDdnnY4=\")","v":{"$error":"#REF!"}},{"$f":"AND(#REF!,\"ZiUwuDdnnY8=\")","v":{"$error":"#REF!"}},{"$f":"AND(#REF!,\"ZiUwuDdnnZA=\")","v":{"$error":"#REF!"}},{"$f":"AND(#REF!,\"ZiUwuDdnnZE=\")","v":{"$error":"#REF!"}},{"$f":"AND(#REF!,\"ZiUwuDdnnZI=\")","v":{"$error":"#REF!"}},{"$f":"AND(#REF!,\"ZiUwuDdnnZM=\")","v":{"$error":"#REF!"}},{"$f":"AND(#REF!,\"ZiUwuDdnnZQ=\")","v":{"$error":"#REF!"}},{"$f":"AND(#REF!,\"ZiUwuDdnnZU=\")","v":{"$error":"#REF!"}},{"$f":"AND(#REF!,\"ZiUwuDdnnZY=\")","v":{"$error":"#REF!"}},{"$f":"AND(#REF!,\"ZiUwuDdnnZc=\")","v":{"$error":"#REF!"}},{"$f":"AND(#REF!,\"ZiUwuDdnnZg=\")","v":{"$error":"#REF!"}},{"$f":"AND(#REF!,\"ZiUwuDdnnZk=\")","v":{"$error":"#REF!"}},{"$f":"AND(#REF!,\"ZiUwuDdnnZo=\")","v":{"$error":"#REF!"}},{"$f":"AND(#REF!,\"ZiUwuDdnnZs=\")","v":{"$error":"#REF!"}},{"$f":"AND(#REF!,\"ZiUwuDdnnZw=\")","v":{"$error":"#REF!"}},{"$f":"AND(#REF!,\"ZiUwuDdnnZ0=\")","v":{"$error":"#REF!"}},{"$f":"AND(#REF!,\"ZiUwuDdnnZ4=\")","v":{"$error":"#REF!"}},{"$f":"AND(#REF!,\"ZiUwuDdnnZ8=\")","v":{"$error":"#REF!"}},{"$f":"AND(#REF!,\"ZiUwuDdnnaA=\")","v":{"$error":"#REF!"}},{"$f":"AND(#REF!,\"ZiUwuDdnnaE=\")","v":{"$error":"#REF!"}},{"$f":"AND(#REF!,\"ZiUwuDdnnaI=\")","v":{"$error":"#REF!"}},{"$f":"AND(#REF!,\"ZiUwuDdnnaM=\")","v":{"$error":"#REF!"}},{"$f":"IF(#REF!,\"ZiUwuDdnnaQ=\",0)","v":{"$error":"#REF!"}},{"$f":"AND(#REF!,\"ZiUwuDdnnaU=\")","v":{"$error":"#REF!"}},{"$f":"AND(#REF!,\"ZiUwuDdnnaY=\")","v":{"$error":"#REF!"}},{"$f":"AND(#REF!,\"ZiUwuDdnnac=\")","v":{"$error":"#REF!"}},{"$f":"AND(#REF!,\"ZiUwuDdnnag=\")","v":{"$error":"#REF!"}},{"$f":"AND(#REF!,\"ZiUwuDdnnak=\")","v":{"$error":"#REF!"}},{"$f":"AND(#REF!,\"ZiUwuDdnnao=\")","v":{"$error":"#REF!"}},{"$f":"AND(#REF!,\"ZiUwuDdnnas=\")","v":{"$error":"#REF!"}},{"$f":"AND(#REF!,\"ZiUwuDdnnaw=\")","v":{"$error":"#REF!"}},{"$f":"AND(#REF!,\"ZiUwuDdnna0=\")","v":{"$error":"#REF!"}},{"$f":"AND(#REF!,\"ZiUwuDdnna4=\")","v":{"$error":"#REF!"}},{"$f":"AND(#REF!,\"ZiUwuDdnna8=\")","v":{"$error":"#REF!"}},{"$f":"AND(#REF!,\"ZiUwuDdnnbA=\")","v":{"$error":"#REF!"}},{"$f":"AND(#REF!,\"ZiUwuDdnnbE=\")","v":{"$error":"#REF!"}},{"$f":"AND(#REF!,\"ZiUwuDdnnbI=\")","v":{"$error":"#REF!"}},{"$f":"AND(#REF!,\"ZiUwuDdnnbM=\")","v":{"$error":"#REF!"}},{"$f":"AND(#REF!,\"ZiUwuDdnnbQ=\")","v":{"$error":"#REF!"}},{"$f":"AND(#REF!,\"ZiUwuDdnnbU=\")","v":{"$error":"#REF!"}},{"$f":"AND(#REF!,\"ZiUwuDdnnbY=\")","v":{"$error":"#REF!"}},{"$f":"AND(#REF!,\"ZiUwuDdnnbc=\")","v":{"$error":"#REF!"}},{"$f":"AND(#REF!,\"ZiUwuDdnnbg=\")","v":{"$error":"#REF!"}},{"$f":"AND(#REF!,\"ZiUwuDdnnbk=\")","v":{"$error":"#REF!"}},{"$f":"AND(#REF!,\"ZiUwuDdnnbo=\")","v":{"$error":"#REF!"}},{"$f":"AND(#REF!,\"ZiUwuDdnnbs=\")","v":{"$error":"#REF!"}},{"$f":"AND(#REF!,\"ZiUwuDdnnbw=\")","v":{"$error":"#REF!"}},{"$f":"AND(#REF!,\"ZiUwuDdnnb0=\")","v":{"$error":"#REF!"}},{"$f":"AND(#REF!,\"ZiUwuDdnnb4=\")","v":{"$error":"#REF!"}},{"$f":"AND(#REF!,\"ZiUwuDdnnb8=\")","v":{"$error":"#REF!"}},{"$f":"AND(#REF!,\"ZiUwuDdnncA=\")","v":{"$error":"#REF!"}},{"$f":"AND(#REF!,\"ZiUwuDdnncE=\")","v":{"$error":"#REF!"}},{"$f":"AND(#REF!,\"ZiUwuDdnncI=\")","v":{"$error":"#REF!"}},{"$f":"AND(#REF!,\"ZiUwuDdnncM=\")","v":{"$error":"#REF!"}},{"$f":"AND(#REF!,\"ZiUwuDdnncQ=\")","v":{"$error":"#REF!"}},{"$f":"AND(#REF!,\"ZiUwuDdnncU=\")","v":{"$error":"#REF!"}},{"$f":"AND(#REF!,\"ZiUwuDdnncY=\")","v":{"$error":"#REF!"}},{"$f":"AND(#REF!,\"ZiUwuDdnncc=\")","v":{"$error":"#REF!"}},{"$f":"AND(#REF!,\"ZiUwuDdnncg=\")","v":{"$error":"#REF!"}},{"$f":"AND(#REF!,\"ZiUwuDdnnck=\")","v":{"$error":"#REF!"}},{"$f":"AND(#REF!,\"ZiUwuDdnnco=\")","v":{"$error":"#REF!"}},{"$f":"AND(#REF!,\"ZiUwuDdnncs=\")","v":{"$error":"#REF!"}},{"$f":"AND(#REF!,\"ZiUwuDdnncw=\")","v":{"$error":"#REF!"}},{"$f":"AND(#REF!,\"ZiUwuDdnnc0=\")","v":{"$error":"#REF!"}},{"$f":"AND(#REF!,\"ZiUwuDdnnc4=\")","v":{"$error":"#REF!"}},{"$f":"AND(#REF!,\"ZiUwuDdnnc8=\")","v":{"$error":"#REF!"}},{"$f":"AND(#REF!,\"ZiUwuDdnndA=\")","v":{"$error":"#REF!"}},{"$f":"AND(#REF!,\"ZiUwuDdnndE=\")","v":{"$error":"#REF!"}},{"$f":"AND(#REF!,\"ZiUwuDdnndI=\")","v":{"$error":"#REF!"}},{"$f":"AND(#REF!,\"ZiUwuDdnndM=\")","v":{"$error":"#REF!"}},{"$f":"AND(#REF!,\"ZiUwuDdnndQ=\")","v":{"$error":"#REF!"}},{"$f":"AND(#REF!,\"ZiUwuDdnndU=\")","v":{"$error":"#REF!"}},{"$f":"AND(#REF!,\"ZiUwuDdnndY=\")","v":{"$error":"#REF!"}},{"$f":"AND(#REF!,\"ZiUwuDdnndc=\")","v":{"$error":"#REF!"}},{"$f":"AND(#REF!,\"ZiUwuDdnndg=\")","v":{"$error":"#REF!"}},{"$f":"AND(#REF!,\"ZiUwuDdnndk=\")","v":{"$error":"#REF!"}},{"$f":"AND(#REF!,\"ZiUwuDdnndo=\")","v":{"$error":"#REF!"}},{"$f":"AND(#REF!,\"ZiUwuDdnnds=\")","v":{"$error":"#REF!"}},{"$f":"AND(#REF!,\"ZiUwuDdnndw=\")","v":{"$error":"#REF!"}},{"$f":"AND(#REF!,\"ZiUwuDdnnd0=\")","v":{"$error":"#REF!"}},{"$f":"AND(#REF!,\"ZiUwuDdnnd4=\")","v":{"$error":"#REF!"}},{"$f":"AND(#REF!,\"ZiUwuDdnnd8=\")","v":{"$error":"#REF!"}},{"$f":"AND(#REF!,\"ZiUwuDdnneA=\")","v":{"$error":"#REF!"}},{"$f":"AND(#REF!,\"ZiUwuDdnneE=\")","v":{"$error":"#REF!"}},{"$f":"AND(#REF!,\"ZiUwuDdnneI=\")","v":{"$error":"#REF!"}},{"$f":"AND(#REF!,\"ZiUwuDdnneM=\")","v":{"$error":"#REF!"}},{"$f":"AND(#REF!,\"ZiUwuDdnneQ=\")","v":{"$error":"#REF!"}},{"$f":"AND(#REF!,\"ZiUwuDdnneU=\")","v":{"$error":"#REF!"}},{"$f":"AND(#REF!,\"ZiUwuDdnneY=\")","v":{"$error":"#REF!"}},{"$f":"AND(#REF!,\"ZiUwuDdnnec=\")","v":{"$error":"#REF!"}},{"$f":"AND(#REF!,\"ZiUwuDdnneg=\")","v":{"$error":"#REF!"}},{"$f":"AND(#REF!,\"ZiUwuDdnnek=\")","v":{"$error":"#REF!"}},{"$f":"AND(#REF!,\"ZiUwuDdnneo=\")","v":{"$error":"#REF!"}},{"$f":"AND(#REF!,\"ZiUwuDdnnes=\")","v":{"$error":"#REF!"}},{"$f":"AND(#REF!,\"ZiUwuDdnnew=\")","v":{"$error":"#REF!"}},{"$f":"AND(#REF!,\"ZiUwuDdnne0=\")","v":{"$error":"#REF!"}},{"$f":"AND(#REF!,\"ZiUwuDdnne4=\")","v":{"$error":"#REF!"}},{"$f":"AND(#REF!,\"ZiUwuDdnne8=\")","v":{"$error":"#REF!"}},{"$f":"AND(#REF!,\"ZiUwuDdnnfA=\")","v":{"$error":"#REF!"}},{"$f":"AND(#REF!,\"ZiUwuDdnnfE=\")","v":{"$error":"#REF!"}},{"$f":"AND(#REF!,\"ZiUwuDdnnfI=\")","v":{"$error":"#REF!"}},{"$f":"AND(#REF!,\"ZiUwuDdnnfM=\")","v":{"$error":"#REF!"}},{"$f":"AND(#REF!,\"ZiUwuDdnnfQ=\")","v":{"$error":"#REF!"}},{"$f":"AND(#REF!,\"ZiUwuDdnnfU=\")","v":{"$error":"#REF!"}},{"$f":"AND(#REF!,\"ZiUwuDdnnfY=\")","v":{"$error":"#REF!"}},{"$f":"AND(#REF!,\"ZiUwuDdnnfc=\")","v":{"$error":"#REF!"}},{"$f":"AND(#REF!,\"ZiUwuDdnnfg=\")","v":{"$error":"#REF!"}},{"$f":"AND(#REF!,\"ZiUwuDdnnfk=\")","v":{"$error":"#REF!"}},{"$f":"AND(#REF!,\"ZiUwuDdnnfo=\")","v":{"$error":"#REF!"}},{"$f":"AND(#REF!,\"ZiUwuDdnnfs=\")","v":{"$error":"#REF!"}},{"$f":"AND(#REF!,\"ZiUwuDdnnfw=\")","v":{"$error":"#REF!"}},{"$f":"AND(#REF!,\"ZiUwuDdnnf0=\")","v":{"$error":"#REF!"}},{"$f":"AND(#REF!,\"ZiUwuDdnnf4=\")","v":{"$error":"#REF!"}},{"$f":"AND(#REF!,\"ZiUwuDdnnf8=\")","v":{"$error":"#REF!"}}]
[{"$f":"AND(#REF!,\"PC5poT59YQA=\")","v":{"$error":"#REF!"}},{"$f":"AND(#REF!,\"PC5poT59YQE=\")","v":{"$error":"#REF!"}},{"$f":"AND(#REF!,\"PC5poT59YQI=\")","v":{"$error":"#REF!"}},{"$f":"AND(#REF!,\"PC5poT59YQM=\")","v":{"$error":"#REF!"}},{"$f":"AND(#REF!,\"PC5poT59YQQ=\")","v":{"$error":"#REF!"}},{"$f":"AND(#REF!,\"PC5poT59YQU=\")","v":{"$error":"#REF!"}},{"$f":"AND(#REF!,\"PC5poT59YQY=\")","v":{"$error":"#REF!"}},{"$f":"AND(#REF!,\"PC5poT59YQc=\")","v":{"$error":"#REF!"}},{"$f":"AND(#REF!,\"PC5poT59YQg=\")","v":{"$error":"#REF!"}},{"$f":"AND(#REF!,\"PC5poT59YQk=\")","v":{"$error":"#REF!"}},{"$f":"AND(#REF!,\"PC5poT59YQo=\")","v":{"$error":"#REF!"}},{"$f":"AND(#REF!,\"PC5poT59YQs=\")","v":{"$error":"#REF!"}},{"$f":"AND(#REF!,\"PC5poT59YQw=\")","v":{"$error":"#REF!"}},{"$f":"AND(#REF!,\"PC5poT59YQ0=\")","v":{"$error":"#REF!"}},{"$f":"AND(#REF!,\"PC5poT59YQ4=\")","v":{"$error":"#REF!"}},{"$f":"AND(#REF!,\"PC5poT59YQ8=\")","v":{"$error":"#REF!"}},{"$f":"AND(#REF!,\"PC5poT59YRA=\")","v":{"$error":"#REF!"}},{"$f":"AND(#REF!,\"PC5poT59YRE=\")","v":{"$error":"#REF!"}},{"$f":"AND(#REF!,\"PC5poT59YRI=\")","v":{"$error":"#REF!"}},{"$f":"AND(#REF!,\"PC5poT59YRM=\")","v":{"$error":"#REF!"}},{"$f":"AND(#REF!,\"PC5poT59YRQ=\")","v":{"$error":"#REF!"}},{"$f":"AND(#REF!,\"PC5poT59YRU=\")","v":{"$error":"#REF!"}},{"$f":"AND(#REF!,\"PC5poT59YRY=\")","v":{"$error":"#REF!"}},{"$f":"AND(#REF!,\"PC5poT59YRc=\")","v":{"$error":"#REF!"}},{"$f":"AND(#REF!,\"PC5poT59YRg=\")","v":{"$error":"#REF!"}},{"$f":"AND(#REF!,\"PC5poT59YRk=\")","v":{"$error":"#REF!"}},{"$f":"AND(#REF!,\"PC5poT59YRo=\")","v":{"$error":"#REF!"}},{"$f":"AND(#REF!,\"PC5poT59YRs=\")","v":{"$error":"#REF!"}},{"$f":"AND(#REF!,\"PC5poT59YRw=\")","v":{"$error":"#REF!"}},{"$f":"AND(#REF!,\"PC5poT59YR0=\")","v":{"$error":"#REF!"}},{"$f":"AND(#REF!,\"PC5poT59YR4=\")","v":{"$error":"#REF!"}},{"$f":"AND(#REF!,\"PC5poT59YR8=\")","v":{"$error":"#REF!"}},{"$f":"AND(#REF!,\"PC5poT59YSA=\")","v":{"$error":"#REF!"}},{"$f":"AND(#REF!,\"PC5poT59YSE=\")","v":{"$error":"#REF!"}},{"$f":"AND(#REF!,\"PC5poT59YSI=\")","v":{"$error":"#REF!"}},{"$f":"AND(#REF!,\"PC5poT59YSM=\")","v":{"$error":"#REF!"}},{"$f":"AND(#REF!,\"PC5poT59YSQ=\")","v":{"$error":"#REF!"}},{"$f":"AND(#REF!,\"PC5poT59YSU=\")","v":{"$error":"#REF!"}},{"$f":"AND(#REF!,\"PC5poT59YSY=\")","v":{"$error":"#REF!"}},{"$f":"AND(#REF!,\"PC5poT59YSc=\")","v":{"$error":"#REF!"}},{"$f":"AND(#REF!,\"PC5poT59YSg=\")","v":{"$error":"#REF!"}},{"$f":"AND(#REF!,\"PC5poT59YSk=\")","v":{"$error":"#REF!"}},{"$f":"AND(#REF!,\"PC5poT59YSo=\")","v":{"$error":"#REF!"}},{"$f":"AND(#REF!,\"PC5poT59YSs=\")","v":{"$error":"#REF!"}},{"$f":"AND(#REF!,\"PC5poT59YSw=\")","v":{"$error":"#REF!"}},{"$f":"AND(#REF!,\"PC5poT59YS0=\")","v":{"$error":"#REF!"}},{"$f":"AND(#REF!,\"PC5poT59YS4=\")","v":{"$error":"#REF!"}},{"$f":"AND(#REF!,\"PC5poT59YS8=\")","v":{"$error":"#REF!"}},{"$f":"AND(#REF!,\"PC5poT59YTA=\")","v":{"$error":"#REF!"}},{"$f":"AND(#REF!,\"PC5poT59YTE=\")","v":{"$error":"#REF!"}},{"$f":"AND(#REF!,\"PC5poT59YTI=\")","v":{"$error":"#REF!"}},{"$f":"AND(#REF!,\"PC5poT59YTM=\")","v":{"$error":"#REF!"}},{"$f":"AND(#REF!,\"PC5poT59YTQ=\")","v":{"$error":"#REF!"}},{"$f":"AND(#REF!,\"PC5poT59YTU=\")","v":{"$error":"#REF!"}},{"$f":"AND(#REF!,\"PC5poT59YTY=\")","v":{"$error":"#REF!"}},{"$f":"AND(#REF!,\"PC5poT59YTc=\")","v":{"$error":"#REF!"}},{"$f":"AND(#REF!,\"PC5poT59YTg=\")","v":{"$error":"#REF!"}},{"$f":"AND(#REF!,\"PC5poT59YTk=\")","v":{"$error":"#REF!"}},{"$f":"AND(#REF!,\"PC5poT59YTo=\")","v":{"$error":"#REF!"}},{"$f":"AND(#REF!,\"PC5poT59YTs=\")","v":{"$error":"#REF!"}},{"$f":"AND(#REF!,\"PC5poT59YTw=\")","v":{"$error":"#REF!"}},{"$f":"AND(#REF!,\"PC5poT59YT0=\")","v":{"$error":"#REF!"}},{"$f":"AND(#REF!,\"PC5poT59YT4=\")","v":{"$error":"#REF!"}},{"$f":"AND(#REF!,\"PC5poT59YT8=\")","v":{"$error":"#REF!"}},{"$f":"AND(#REF!,\"PC5poT59YUA=\")","v":{"$error":"#REF!"}},{"$f":"AND(#REF!,\"PC5poT59YUE=\")","v":{"$error":"#REF!"}},{"$f":"AND(#REF!,\"PC5poT59YUI=\")","v":{"$error":"#REF!"}},{"$f":"AND(#REF!,\"PC5poT59YUM=\")","v":{"$error":"#REF!"}},{"$f":"AND(#REF!,\"PC5poT59YUQ=\")","v":{"$error":"#REF!"}},{"$f":"AND(#REF!,\"PC5poT59YUU=\")","v":{"$error":"#REF!"}},{"$f":"AND(#REF!,\"PC5poT59YUY=\")","v":{"$error":"#REF!"}},{"$f":"AND(#REF!,\"PC5poT59YUc=\")","v":{"$error":"#REF!"}},{"$f":"AND(#REF!,\"PC5poT59YUg=\")","v":{"$error":"#REF!"}},{"$f":"AND(#REF!,\"PC5poT59YUk=\")","v":{"$error":"#REF!"}},{"$f":"AND(#REF!,\"PC5poT59YUo=\")","v":{"$error":"#REF!"}},{"$f":"AND(#REF!,\"PC5poT59YUs=\")","v":{"$error":"#REF!"}},{"$f":"AND(#REF!,\"PC5poT59YUw=\")","v":{"$error":"#REF!"}},{"$f":"AND(#REF!,\"PC5poT59YU0=\")","v":{"$error":"#REF!"}},{"$f":"AND(#REF!,\"PC5poT59YU4=\")","v":{"$error":"#REF!"}},{"$f":"AND(#REF!,\"PC5poT59YU8=\")","v":{"$error":"#REF!"}},{"$f":"AND(#REF!,\"PC5poT59YVA=\")","v":{"$error":"#REF!"}},{"$f":"AND(#REF!,\"PC5poT59YVE=\")","v":{"$error":"#REF!"}},{"$f":"AND(#REF!,\"PC5poT59YVI=\")","v":{"$error":"#REF!"}},{"$f":"AND(#REF!,\"PC5poT59YVM=\")","v":{"$error":"#REF!"}},{"$f":"AND(#REF!,\"PC5poT59YVQ=\")","v":{"$error":"#REF!"}},{"$f":"AND(#REF!,\"PC5poT59YVU=\")","v":{"$error":"#REF!"}},{"$f":"AND(#REF!,\"PC5poT59YVY=\")","v":{"$error":"#REF!"}},{"$f":"AND(#REF!,\"PC5poT59YVc=\")","v":{"$error":"#REF!"}},{"$f":"AND(#REF!,\"PC5poT59YVg=\")","v":{"$error":"#REF!"}},{"$f":"AND(#REF!,\"PC5poT59YVk=\")","v":{"$error":"#REF!"}},{"$f":"AND(#REF!,\"PC5poT59YVo=\")","v":{"$error":"#REF!"}},{"$f":"AND(#REF!,\"PC5poT59YVs=\")","v":{"$error":"#REF!"}},{"$f":"AND(#REF!,\"PC5poT59YVw=\")","v":{"$error":"#REF!"}},{"$f":"AND(#REF!,\"PC5poT59YV0=\")","v":{"$error":"#REF!"}},{"$f":"AND(#REF!,\"PC5poT59YV4=\")","v":{"$error":"#REF!"}},{"$f":"AND(#REF!,\"PC5poT59YV8=\")","v":{"$error":"#REF!"}},{"$f":"AND(#REF!,\"PC5poT59YWA=\")","v":{"$error":"#REF!"}},{"$f":"AND(#REF!,\"PC5poT59YWE=\")","v":{"$error":"#REF!"}},{"$f":"AND(#REF!,\"PC5poT59YWI=\")","v":{"$error":"#REF!"}},{"$f":"AND(#REF!,\"PC5poT59YWM=\")","v":{"$error":"#REF!"}},{"$f":"AND(#REF!,\"PC5poT59YWQ=\")","v":{"$error":"#REF!"}},{"$f":"AND(#REF!,\"PC5poT59YWU=\")","v":{"$error":"#REF!"}},{"$f":"AND(#REF!,\"PC5poT59YWY=\")","v":{"$error":"#REF!"}},{"$f":"AND(#REF!,\"PC5poT59YWc=\")","v":{"$error":"#REF!"}},{"$f":"AND(#REF!,\"PC5poT59YWg=\")","v":{"$error":"#REF!"}},{"$f":"AND(#REF!,\"PC5poT59YWk=\")","v":{"$error":"#REF!"}},{"$f":"AND(#REF!,\"PC5poT59YWo=\")","v":{"$error":"#REF!"}},{"$f":"IF(#REF!,\"PC5poT59YWs=\",0)","v":{"$error":"#REF!"}},{"$f":"AND(#REF!,\"PC5poT59YWw=\")","v":{"$error":"#REF!"}},{"$f":"AND(#REF!,\"PC5poT59YW0=\")","v":{"$error":"#REF!"}},{"$f":"AND(#REF!,\"PC5poT59YW4=\")","v":{"$error":"#REF!"}},{"$f":"AND(#REF!,\"PC5poT59YW8=\")","v":{"$error":"#REF!"}},{"$f":"AND(#REF!,\"PC5poT59YXA=\")","v":{"$error":"#REF!"}},{"$f":"AND(#REF!,\"PC5poT59YXE=\")","v":{"$error":"#REF!"}},{"$f":"AND(#REF!,\"PC5poT59YXI=\")","v":{"$error":"#REF!"}},{"$f":"AND(#REF!,\"PC5poT59YXM=\")","v":{"$error":"#REF!"}},{"$f":"AND(#REF!,\"PC5poT59YXQ=\")","v":{"$error":"#REF!"}},{"$f":"AND(#REF!,\"PC5poT59YXU=\")","v":{"$error":"#REF!"}},{"$f":"AND(#REF!,\"PC5poT59YXY=\")","v":{"$error":"#REF!"}},{"$f":"AND(#REF!,\"PC5poT59YXc=\")","v":{"$error":"#REF!"}},{"$f":"AND(#REF!,\"PC5poT59YXg=\")","v":{"$error":"#REF!"}},{"$f":"AND(#REF!,\"PC5poT59YXk=\")","v":{"$error":"#REF!"}},{"$f":"AND(#REF!,\"PC5poT59YXo=\")","v":{"$error":"#REF!"}},{"$f":"AND(#REF!,\"PC5poT59YXs=\")","v":{"$error":"#REF!"}},{"$f":"AND(#REF!,\"PC5poT59YXw=\")","v":{"$error":"#REF!"}},{"$f":"AND(#REF!,\"PC5poT59YX0=\")","v":{"$error":"#REF!"}},{"$f":"AND(#REF!,\"PC5poT59YX4=\")","v":{"$error":"#REF!"}},{"$f":"AND(#REF!,\"PC5poT59YX8=\")","v":{"$error":"#REF!"}},{"$f":"AND(#REF!,\"PC5poT59YYA=\")","v":{"$error":"#REF!"}},{"$f":"AND(#REF!,\"PC5poT59YYE=\")","v":{"$error":"#REF!"}},{"$f":"AND(#REF!,\"PC5poT59YYI=\")","v":{"$error":"#REF!"}},{"$f":"AND(#REF!,\"PC5poT59YYM=\")","v":{"$error":"#REF!"}},{"$f":"AND(#REF!,\"PC5poT59YYQ=\")","v":{"$error":"#REF!"}},{"$f":"AND(#REF!,\"PC5poT59YYU=\")","v":{"$error":"#REF!"}},{"$f":"AND(#REF!,\"PC5poT59YYY=\")","v":{"$error":"#REF!"}},{"$f":"AND(#REF!,\"PC5poT59YYc=\")","v":{"$error":"#REF!"}},{"$f":"AND(#REF!,\"PC5poT59YYg=\")","v":{"$error":"#REF!"}},{"$f":"AND(#REF!,\"PC5poT59YYk=\")","v":{"$error":"#REF!"}},{"$f":"AND(#REF!,\"PC5poT59YYo=\")","v":{"$error":"#REF!"}},{"$f":"AND(#REF!,\"PC5poT59YYs=\")","v":{"$error":"#REF!"}},{"$f":"AND(#REF!,\"PC5poT59YYw=\")","v":{"$error":"#REF!"}},{"$f":"AND(#REF!,\"PC5poT59YY0=\")","v":{"$error":"#REF!"}},{"$f":"AND(#REF!,\"PC5poT59YY4=\")","v":{"$error":"#REF!"}},{"$f":"AND(#REF!,\"PC5poT59YY8=\")","v":{"$error":"#REF!"}},{"$f":"AND(#REF!,\"PC5poT59YZA=\")","v":{"$error":"#REF!"}},{"$f":"AND(#REF!,\"PC5poT59YZE=\")","v":{"$error":"#REF!"}},{"$f":"AND(#REF!,\"PC5poT59YZI=\")","v":{"$error":"#REF!"}},{"$f":"AND(#REF!,\"PC5poT59YZM=\")","v":{"$error":"#REF!"}},{"$f":"AND(#REF!,\"PC5poT59YZQ=\")","v":{"$error":"#REF!"}},{"$f":"AND(#REF!,\"PC5poT59YZU=\")","v":{"$error":"#REF!"}},{"$f":"AND(#REF!,\"PC5poT59YZY=\")","v":{"$error":"#REF!"}},{"$f":"AND(#REF!,\"PC5poT59YZc=\")","v":{"$error":"#REF!"}},{"$f":"AND(#REF!,\"PC5poT59YZg=\")","v":{"$error":"#REF!"}},{"$f":"AND(#REF!,\"PC5poT59YZk=\")","v":{"$error":"#REF!"}},{"$f":"AND(#REF!,\"PC5poT59YZo=\")","v":{"$error":"#REF!"}},{"$f":"AND(#REF!,\"PC5poT59YZs=\")","v":{"$error":"#REF!"}},{"$f":"AND(#REF!,\"PC5poT59YZw=\")","v":{"$error":"#REF!"}},{"$f":"AND(#REF!,\"PC5poT59YZ0=\")","v":{"$error":"#REF!"}},{"$f":"AND(#REF!,\"PC5poT59YZ4=\")","v":{"$error":"#REF!"}},{"$f":"AND(#REF!,\"PC5poT59YZ8=\")","v":{"$error":"#REF!"}},{"$f":"AND(#REF!,\"PC5poT59YaA=\")","v":{"$error":"#REF!"}},{"$f":"AND(#REF!,\"PC5poT59YaE=\")","v":{"$error":"#REF!"}},{"$f":"AND(#REF!,\"PC5poT59YaI=\")","v":{"$error":"#REF!"}},{"$f":"AND(#REF!,\"PC5poT59YaM=\")","v":{"$error":"#REF!"}},{"$f":"AND(#REF!,\"PC5poT59YaQ=\")","v":{"$error":"#REF!"}},{"$f":"AND(#REF!,\"PC5poT59YaU=\")","v":{"$error":"#REF!"}},{"$f":"AND(#REF!,\"PC5poT59YaY=\")","v":{"$error":"#REF!"}},{"$f":"AND(#REF!,\"PC5poT59Yac=\")","v":{"$error":"#REF!"}},{"$f":"AND(#REF!,\"PC5poT59Yag=\")","v":{"$error":"#REF!"}},{"$f":"AND(#REF!,\"PC5poT59Yak=\")","v":{"$error":"#REF!"}},{"$f":"AND(#REF!,\"PC5poT59Yao=\")","v":{"$error":"#REF!"}},{"$f":"AND(#REF!,\"PC5poT59Yas=\")","v":{"$error":"#REF!"}},{"$f":"AND(#REF!,\"PC5poT59Yaw=\")","v":{"$error":"#REF!"}},{"$f":"AND(#REF!,\"PC5poT59Ya0=\")","v":{"$error":"#REF!"}},{"$f":"AND(#REF!,\"PC5poT59Ya4=\")","v":{"$error":"#REF!"}},{"$f":"AND(#REF!,\"PC5poT59Ya8=\")","v":{"$error":"#REF!"}},{"$f":"AND(#REF!,\"PC5poT59YbA=\")","v":{"$error":"#REF!"}},{"$f":"AND(#REF!,\"PC5poT59YbE=\")","v":{"$error":"#REF!"}},{"$f":"AND(#REF!,\"PC5poT59YbI=\")","v":{"$error":"#REF!"}},{"$f":"AND(#REF!,\"PC5poT59YbM=\")","v":{"$error":"#REF!"}},{"$f":"AND(#REF!,\"PC5poT59YbQ=\")","v":{"$error":"#REF!"}},{"$f":"AND(#REF!,\"PC5poT59YbU=\")","v":{"$error":"#REF!"}},{"$f":"AND(#REF!,\"PC5poT59YbY=\")","v":{"$error":"#REF!"}},{"$f":"AND(#REF!,\"PC5poT59Ybc=\")","v":{"$error":"#REF!"}},{"$f":"AND(#REF!,\"PC5poT59Ybg=\")","v":{"$error":"#REF!"}},{"$f":"AND(#REF!,\"PC5poT59Ybk=\")","v":{"$error":"#REF!"}},{"$f":"AND(#REF!,\"PC5poT59Ybo=\")","v":{"$error":"#REF!"}},{"$f":"AND(#REF!,\"PC5poT59Ybs=\")","v":{"$error":"#REF!"}},{"$f":"AND(#REF!,\"PC5poT59Ybw=\")","v":{"$error":"#REF!"}},{"$f":"AND(#REF!,\"PC5poT59Yb0=\")","v":{"$error":"#REF!"}},{"$f":"AND(#REF!,\"PC5poT59Yb4=\")","v":{"$error":"#REF!"}},{"$f":"AND(#REF!,\"PC5poT59Yb8=\")","v":{"$error":"#REF!"}},{"$f":"AND(#REF!,\"PC5poT59YcA=\")","v":{"$error":"#REF!"}},{"$f":"AND(#REF!,\"PC5poT59YcE=\")","v":{"$error":"#REF!"}},{"$f":"AND(#REF!,\"PC5poT59YcI=\")","v":{"$error":"#REF!"}},{"$f":"AND(#REF!,\"PC5poT59YcM=\")","v":{"$error":"#REF!"}},{"$f":"AND(#REF!,\"PC5poT59YcQ=\")","v":{"$error":"#REF!"}},{"$f":"AND(#REF!,\"PC5poT59YcU=\")","v":{"$error":"#REF!"}},{"$f":"AND(#REF!,\"PC5poT59YcY=\")","v":{"$error":"#REF!"}},{"$f":"AND(#REF!,\"PC5poT59Ycc=\")","v":{"$error":"#REF!"}},{"$f":"AND(#REF!,\"PC5poT59Ycg=\")","v":{"$error":"#REF!"}},{"$f":"AND(#REF!,\"PC5poT59Yck=\")","v":{"$error":"#REF!"}},{"$f":"AND(#REF!,\"PC5poT59Yco=\")","v":{"$error":"#REF!"}},{"$f":"AND(#REF!,\"PC5poT59Ycs=\")","v":{"$error":"#REF!"}},{"$f":"AND(#REF!,\"PC5poT59Ycw=\")","v":{"$error":"#REF!"}},{"$f":"AND(#REF!,\"PC5poT59Yc0=\")","v":{"$error":"#REF!"}},{"$f":"AND(#REF!,\"PC5poT59Yc4=\")","v":{"$error":"#REF!"}},{"$f":"AND(#REF!,\"PC5poT59Yc8=\")","v":{"$error":"#REF!"}},{"$f":"AND(#REF!,\"PC5poT59YdA=\")","v":{"$error":"#REF!"}},{"$f":"AND(#REF!,\"PC5poT59YdE=\")","v":{"$error":"#REF!"}},{"$f":"AND(#REF!,\"PC5poT59YdI=\")","v":{"$error":"#REF!"}},{"$f":"AND(#REF!,\"PC5poT59YdM=\")","v":{"$error":"#REF!"}},{"$f":"AND(#REF!,\"PC5poT59YdQ=\")","v":{"$error":"#REF!"}},{"$f":"AND(#REF!,\"PC5poT59YdU=\")","v":{"$error":"#REF!"}},{"$f":"AND(#REF!,\"PC5poT59YdY=\")","v":{"$error":"#REF!"}},{"$f":"AND(#REF!,\"PC5poT59Ydc=\")","v":{"$error":"#REF!"}},{"$f":"AND(#REF!,\"PC5poT59Ydg=\")","v":{"$error":"#REF!"}},{"$f":"AND(#REF!,\"PC5poT59Ydk=\")","v":{"$error":"#REF!"}},{"$f":"AND(#REF!,\"PC5poT59Ydo=\")","v":{"$error":"#REF!"}},{"$f":"AND(#REF!,\"PC5poT59Yds=\")","v":{"$error":"#REF!"}},{"$f":"AND(#REF!,\"PC5poT59Ydw=\")","v":{"$error":"#REF!"}},{"$f":"AND(#REF!,\"PC5poT59Yd0=\")","v":{"$error":"#REF!"}},{"$f":"AND(#REF!,\"PC5poT59Yd4=\")","v":{"$error":"#REF!"}},{"$f":"AND(#REF!,\"PC5poT59Yd8=\")","v":{"$error":"#REF!"}},{"$f":"AND(#REF!,\"PC5poT59YeA=\")","v":{"$error":"#REF!"}},{"$f":"AND(#REF!,\"PC5poT59YeE=\")","v":{"$error":"#REF!"}},{"$f":"AND(#REF!,\"PC5poT59YeI=\")","v":{"$error":"#REF!"}},{"$f":"AND(#REF!,\"PC5poT59YeM=\")","v":{"$error":"#REF!"}},{"$f":"AND(#REF!,\"PC5poT59YeQ=\")","v":{"$error":"#REF!"}},{"$f":"AND(#REF!,\"PC5poT59YeU=\")","v":{"$error":"#REF!"}},{"$f":"AND(#REF!,\"PC5poT59YeY=\")","v":{"$error":"#REF!"}},{"$f":"AND(#REF!,\"PC5poT59Yec=\")","v":{"$error":"#REF!"}},{"$f":"AND(#REF!,\"PC5poT59Yeg=\")","v":{"$error":"#REF!"}},{"$f":"AND(#REF!,\"PC5poT59Yek=\")","v":{"$error":"#REF!"}},{"$f":"AND(#REF!,\"PC5poT59Yeo=\")","v":{"$error":"#REF!"}},{"$f":"AND(#REF!,\"PC5poT59Yes=\")","v":{"$error":"#REF!"}},{"$f":"AND(#REF!,\"PC5poT59Yew=\")","v":{"$error":"#REF!"}},{"$f":"AND(#REF!,\"PC5poT59Ye0=\")","v":{"$error":"#REF!"}},{"$f":"AND(#REF!,\"PC5poT59Ye4=\")","v":{"$error":"#REF!"}},{"$f":"AND(#REF!,\"PC5poT59Ye8=\")","v":{"$error":"#REF!"}},{"$f":"AND(#REF!,\"PC5poT59YfA=\")","v":{"$error":"#REF!"}},{"$f":"AND(#REF!,\"PC5poT59YfE=\")","v":{"$error":"#REF!"}},{"$f":"AND(#REF!,\"PC5poT59YfI=\")","v":{"$error":"#REF!"}},{"$f":"AND(#REF!,\"PC5poT59YfM=\")","v":{"$error":"#REF!"}},{"$f":"AND(#REF!,\"PC5poT59YfQ=\")","v":{"$error":"#REF!"}},{"$f":"AND(#REF!,\"PC5poT59YfU=\")","v":{"$error":"#REF!"}},{"$f":"AND(#REF!,\"PC5poT59YfY=\")","v":{"$error":"#REF!"}},{"$f":"AND(#REF!,\"PC5poT59Yfc=\")","v":{"$error":"#REF!"}},{"$f":"AND(#REF!,\"PC5poT59Yfg=\")","v":{"$error":"#REF!"}},{"$f":"AND(#REF!,\"PC5poT59Yfk=\")","v":{"$error":"#REF!"}},{"$f":"AND(#REF!,\"PC5poT59Yfo=\")","v":{"$error":"#REF!"}},{"$f":"AND(#REF!,\"PC5poT59Yfs=\")","v":{"$error":"#REF!"}},{"$f":"AND(#REF!,\"PC5poT59Yfw=\")","v":{"$error":"#REF!"}},{"$f":"AND(#REF!,\"PC5poT59Yf0=\")","v":{"$error":"#REF!"}},{"$f":"AND(#REF!,\"PC5poT59Yf4=\")","v":{"$error":"#REF!"}},{"$f":"AND(#REF!,\"PC5poT59Yf8=\")","v":{"$error":"#REF!"}}]
[{"$f":"AND(#REF!,\"W0pSRHM0uAA=\")","v":{"$error":"#REF!"}},{"$f":"AND(#REF!,\"W0pSRHM0uAE=\")","v":{"$error":"#REF!"}},{"$f":"AND(#REF!,\"W0pSRHM0uAI=\")","v":{"$error":"#REF!"}},{"$f":"AND(#REF!,\"W0pSRHM0uAM=\")","v":{"$error":"#REF!"}},{"$f":"AND(#REF!,\"W0pSRHM0uAQ=\")","v":{"$error":"#REF!"}},{"$f":"AND(#REF!,\"W0pSRHM0uAU=\")","v":{"$error":"#REF!"}},{"$f":"AND(#REF!,\"W0pSRHM0uAY=\")","v":{"$error":"#REF!"}},{"$f":"AND(#REF!,\"W0pSRHM0uAc=\")","v":{"$error":"#REF!"}},{"$f":"AND(#REF!,\"W0pSRHM0uAg=\")","v":{"$error":"#REF!"}},{"$f":"AND(#REF!,\"W0pSRHM0uAk=\")","v":{"$error":"#REF!"}},{"$f":"AND(#REF!,\"W0pSRHM0uAo=\")","v":{"$error":"#REF!"}},{"$f":"AND(#REF!,\"W0pSRHM0uAs=\")","v":{"$error":"#REF!"}},{"$f":"AND(#REF!,\"W0pSRHM0uAw=\")","v":{"$error":"#REF!"}},{"$f":"AND(#REF!,\"W0pSRHM0uA0=\")","v":{"$error":"#REF!"}},{"$f":"AND(#REF!,\"W0pSRHM0uA4=\")","v":{"$error":"#REF!"}},{"$f":"AND(#REF!,\"W0pSRHM0uA8=\")","v":{"$error":"#REF!"}},{"$f":"AND(#REF!,\"W0pSRHM0uBA=\")","v":{"$error":"#REF!"}},{"$f":"AND(#REF!,\"W0pSRHM0uBE=\")","v":{"$error":"#REF!"}},{"$f":"AND(#REF!,\"W0pSRHM0uBI=\")","v":{"$error":"#REF!"}},{"$f":"AND(#REF!,\"W0pSRHM0uBM=\")","v":{"$error":"#REF!"}},{"$f":"AND(#REF!,\"W0pSRHM0uBQ=\")","v":{"$error":"#REF!"}},{"$f":"AND(#REF!,\"W0pSRHM0uBU=\")","v":{"$error":"#REF!"}},{"$f":"AND(#REF!,\"W0pSRHM0uBY=\")","v":{"$error":"#REF!"}},{"$f":"AND(#REF!,\"W0pSRHM0uBc=\")","v":{"$error":"#REF!"}},{"$f":"AND(#REF!,\"W0pSRHM0uBg=\")","v":{"$error":"#REF!"}},{"$f":"AND(#REF!,\"W0pSRHM0uBk=\")","v":{"$error":"#REF!"}},{"$f":"AND(#REF!,\"W0pSRHM0uBo=\")","v":{"$error":"#REF!"}},{"$f":"AND(#REF!,\"W0pSRHM0uBs=\")","v":{"$error":"#REF!"}},{"$f":"AND(#REF!,\"W0pSRHM0uBw=\")","v":{"$error":"#REF!"}},{"$f":"AND(#REF!,\"W0pSRHM0uB0=\")","v":{"$error":"#REF!"}},{"$f":"AND(#REF!,\"W0pSRHM0uB4=\")","v":{"$error":"#REF!"}},{"$f":"AND(#REF!,\"W0pSRHM0uB8=\")","v":{"$error":"#REF!"}},{"$f":"AND(#REF!,\"W0pSRHM0uCA=\")","v":{"$error":"#REF!"}},{"$f":"AND(#REF!,\"W0pSRHM0uCE=\")","v":{"$error":"#REF!"}},{"$f":"AND(#REF!,\"W0pSRHM0uCI=\")","v":{"$error":"#REF!"}},{"$f":"AND(#REF!,\"W0pSRHM0uCM=\")","v":{"$error":"#REF!"}},{"$f":"AND(#REF!,\"W0pSRHM0uCQ=\")","v":{"$error":"#REF!"}},{"$f":"AND(#REF!,\"W0pSRHM0uCU=\")","v":{"$error":"#REF!"}},{"$f":"AND(#REF!,\"W0pSRHM0uCY=\")","v":{"$error":"#REF!"}},{"$f":"AND(#REF!,\"W0pSRHM0uCc=\")","v":{"$error":"#REF!"}},{"$f":"AND(#REF!,\"W0pSRHM0uCg=\")","v":{"$error":"#REF!"}},{"$f":"AND(#REF!,\"W0pSRHM0uCk=\")","v":{"$error":"#REF!"}},{"$f":"AND(#REF!,\"W0pSRHM0uCo=\")","v":{"$error":"#REF!"}},{"$f":"AND(#REF!,\"W0pSRHM0uCs=\")","v":{"$error":"#REF!"}},{"$f":"AND(#REF!,\"W0pSRHM0uCw=\")","v":{"$error":"#REF!"}},{"$f":"AND(#REF!,\"W0pSRHM0uC0=\")","v":{"$error":"#REF!"}},{"$f":"AND(#REF!,\"W0pSRHM0uC4=\")","v":{"$error":"#REF!"}},{"$f":"AND(#REF!,\"W0pSRHM0uC8=\")","v":{"$error":"#REF!"}},{"$f":"AND(#REF!,\"W0pSRHM0uDA=\")","v":{"$error":"#REF!"}},{"$f":"AND(#REF!,\"W0pSRHM0uDE=\")","v":{"$error":"#REF!"}},{"$f":"IF(#REF!,\"W0pSRHM0uDI=\",0)","v":{"$error":"#REF!"}},{"$f":"AND(#REF!,\"W0pSRHM0uDM=\")","v":{"$error":"#REF!"}},{"$f":"AND(#REF!,\"W0pSRHM0uDQ=\")","v":{"$error":"#REF!"}},{"$f":"AND(#REF!,\"W0pSRHM0uDU=\")","v":{"$error":"#REF!"}},{"$f":"AND(#REF!,\"W0pSRHM0uDY=\")","v":{"$error":"#REF!"}},{"$f":"AND(#REF!,\"W0pSRHM0uDc=\")","v":{"$error":"#REF!"}},{"$f":"AND(#REF!,\"W0pSRHM0uDg=\")","v":{"$error":"#REF!"}},{"$f":"AND(#REF!,\"W0pSRHM0uDk=\")","v":{"$error":"#REF!"}},{"$f":"AND(#REF!,\"W0pSRHM0uDo=\")","v":{"$error":"#REF!"}},{"$f":"AND(#REF!,\"W0pSRHM0uDs=\")","v":{"$error":"#REF!"}},{"$f":"AND(#REF!,\"W0pSRHM0uDw=\")","v":{"$error":"#REF!"}},{"$f":"AND(#REF!,\"W0pSRHM0uD0=\")","v":{"$error":"#REF!"}},{"$f":"AND(#REF!,\"W0pSRHM0uD4=\")","v":{"$error":"#REF!"}},{"$f":"AND(#REF!,\"W0pSRHM0uD8=\")","v":{"$error":"#REF!"}},{"$f":"AND(#REF!,\"W0pSRHM0uEA=\")","v":{"$error":"#REF!"}},{"$f":"AND(#REF!,\"W0pSRHM0uEE=\")","v":{"$error":"#REF!"}},{"$f":"AND(#REF!,\"W0pSRHM0uEI=\")","v":{"$error":"#REF!"}},{"$f":"AND(#REF!,\"W0pSRHM0uEM=\")","v":{"$error":"#REF!"}},{"$f":"AND(#REF!,\"W0pSRHM0uEQ=\")","v":{"$error":"#REF!"}},{"$f":"AND(#REF!,\"W0pSRHM0uEU=\")","v":{"$error":"#REF!"}},{"$f":"AND(#REF!,\"W0pSRHM0uEY=\")","v":{"$error":"#REF!"}},{"$f":"AND(#REF!,\"W0pSRHM0uEc=\")","v":{"$error":"#REF!"}},{"$f":"AND(#REF!,\"W0pSRHM0uEg=\")","v":{"$error":"#REF!"}},{"$f":"AND(#REF!,\"W0pSRHM0uEk=\")","v":{"$error":"#REF!"}},{"$f":"AND(#REF!,\"W0pSRHM0uEo=\")","v":{"$error":"#REF!"}},{"$f":"AND(#REF!,\"W0pSRHM0uEs=\")","v":{"$error":"#REF!"}},{"$f":"AND(#REF!,\"W0pSRHM0uEw=\")","v":{"$error":"#REF!"}},{"$f":"AND(#REF!,\"W0pSRHM0uE0=\")","v":{"$error":"#REF!"}},{"$f":"AND(#REF!,\"W0pSRHM0uE4=\")","v":{"$error":"#REF!"}},{"$f":"AND(#REF!,\"W0pSRHM0uE8=\")","v":{"$error":"#REF!"}},{"$f":"AND(#REF!,\"W0pSRHM0uFA=\")","v":{"$error":"#REF!"}},{"$f":"AND(#REF!,\"W0pSRHM0uFE=\")","v":{"$error":"#REF!"}},{"$f":"AND(#REF!,\"W0pSRHM0uFI=\")","v":{"$error":"#REF!"}},{"$f":"AND(#REF!,\"W0pSRHM0uFM=\")","v":{"$error":"#REF!"}},{"$f":"AND(#REF!,\"W0pSRHM0uFQ=\")","v":{"$error":"#REF!"}},{"$f":"AND(#REF!,\"W0pSRHM0uFU=\")","v":{"$error":"#REF!"}},{"$f":"AND(#REF!,\"W0pSRHM0uFY=\")","v":{"$error":"#REF!"}},{"$f":"AND(#REF!,\"W0pSRHM0uFc=\")","v":{"$error":"#REF!"}},{"$f":"AND(#REF!,\"W0pSRHM0uFg=\")","v":{"$error":"#REF!"}},{"$f":"AND(#REF!,\"W0pSRHM0uFk=\")","v":{"$error":"#REF!"}},{"$f":"AND(#REF!,\"W0pSRHM0uFo=\")","v":{"$error":"#REF!"}},{"$f":"AND(#REF!,\"W0pSRHM0uFs=\")","v":{"$error":"#REF!"}},{"$f":"AND(#REF!,\"W0pSRHM0uFw=\")","v":{"$error":"#REF!"}},{"$f":"AND(#REF!,\"W0pSRHM0uF0=\")","v":{"$error":"#REF!"}},{"$f":"AND(#REF!,\"W0pSRHM0uF4=\")","v":{"$error":"#REF!"}},{"$f":"AND(#REF!,\"W0pSRHM0uF8=\")","v":{"$error":"#REF!"}},{"$f":"AND(#REF!,\"W0pSRHM0uGA=\")","v":{"$error":"#REF!"}},{"$f":"AND(#REF!,\"W0pSRHM0uGE=\")","v":{"$error":"#REF!"}},{"$f":"AND(#REF!,\"W0pSRHM0uGI=\")","v":{"$error":"#REF!"}},{"$f":"AND(#REF!,\"W0pSRHM0uGM=\")","v":{"$error":"#REF!"}},{"$f":"AND(#REF!,\"W0pSRHM0uGQ=\")","v":{"$error":"#REF!"}},{"$f":"AND(#REF!,\"W0pSRHM0uGU=\")","v":{"$error":"#REF!"}},{"$f":"AND(#REF!,\"W0pSRHM0uGY=\")","v":{"$error":"#REF!"}},{"$f":"AND(#REF!,\"W0pSRHM0uGc=\")","v":{"$error":"#REF!"}},{"$f":"AND(#REF!,\"W0pSRHM0uGg=\")","v":{"$error":"#REF!"}},{"$f":"AND(#REF!,\"W0pSRHM0uGk=\")","v":{"$error":"#REF!"}},{"$f":"AND(#REF!,\"W0pSRHM0uGo=\")","v":{"$error":"#REF!"}},{"$f":"AND(#REF!,\"W0pSRHM0uGs=\")","v":{"$error":"#REF!"}},{"$f":"AND(#REF!,\"W0pSRHM0uGw=\")","v":{"$error":"#REF!"}},{"$f":"AND(#REF!,\"W0pSRHM0uG0=\")","v":{"$error":"#REF!"}},{"$f":"AND(#REF!,\"W0pSRHM0uG4=\")","v":{"$error":"#REF!"}},{"$f":"AND(#REF!,\"W0pSRHM0uG8=\")","v":{"$error":"#REF!"}},{"$f":"AND(#REF!,\"W0pSRHM0uHA=\")","v":{"$error":"#REF!"}},{"$f":"AND(#REF!,\"W0pSRHM0uHE=\")","v":{"$error":"#REF!"}},{"$f":"AND(#REF!,\"W0pSRHM0uHI=\")","v":{"$error":"#REF!"}},{"$f":"AND(#REF!,\"W0pSRHM0uHM=\")","v":{"$error":"#REF!"}},{"$f":"AND(#REF!,\"W0pSRHM0uHQ=\")","v":{"$error":"#REF!"}},{"$f":"AND(#REF!,\"W0pSRHM0uHU=\")","v":{"$error":"#REF!"}},{"$f":"AND(#REF!,\"W0pSRHM0uHY=\")","v":{"$error":"#REF!"}},{"$f":"AND(#REF!,\"W0pSRHM0uHc=\")","v":{"$error":"#REF!"}},{"$f":"AND(#REF!,\"W0pSRHM0uHg=\")","v":{"$error":"#REF!"}},{"$f":"AND(#REF!,\"W0pSRHM0uHk=\")","v":{"$error":"#REF!"}},{"$f":"AND(#REF!,\"W0pSRHM0uHo=\")","v":{"$error":"#REF!"}},{"$f":"AND(#REF!,\"W0pSRHM0uHs=\")","v":{"$error":"#REF!"}},{"$f":"AND(#REF!,\"W0pSRHM0uHw=\")","v":{"$error":"#REF!"}},{"$f":"AND(#REF!,\"W0pSRHM0uH0=\")","v":{"$error":"#REF!"}},{"$f":"AND(#REF!,\"W0pSRHM0uH4=\")","v":{"$error":"#REF!"}},{"$f":"AND(#REF!,\"W0pSRHM0uH8=\")","v":{"$error":"#REF!"}},{"$f":"AND(#REF!,\"W0pSRHM0uIA=\")","v":{"$error":"#REF!"}},{"$f":"AND(#REF!,\"W0pSRHM0uIE=\")","v":{"$error":"#REF!"}},{"$f":"AND(#REF!,\"W0pSRHM0uII=\")","v":{"$error":"#REF!"}},{"$f":"AND(#REF!,\"W0pSRHM0uIM=\")","v":{"$error":"#REF!"}},{"$f":"AND(#REF!,\"W0pSRHM0uIQ=\")","v":{"$error":"#REF!"}},{"$f":"AND(#REF!,\"W0pSRHM0uIU=\")","v":{"$error":"#REF!"}},{"$f":"AND(#REF!,\"W0pSRHM0uIY=\")","v":{"$error":"#REF!"}},{"$f":"AND(#REF!,\"W0pSRHM0uIc=\")","v":{"$error":"#REF!"}},{"$f":"AND(#REF!,\"W0pSRHM0uIg=\")","v":{"$error":"#REF!"}},{"$f":"AND(#REF!,\"W0pSRHM0uIk=\")","v":{"$error":"#REF!"}},{"$f":"AND(#REF!,\"W0pSRHM0uIo=\")","v":{"$error":"#REF!"}},{"$f":"AND(#REF!,\"W0pSRHM0uIs=\")","v":{"$error":"#REF!"}},{"$f":"AND(#REF!,\"W0pSRHM0uIw=\")","v":{"$error":"#REF!"}},{"$f":"AND(#REF!,\"W0pSRHM0uI0=\")","v":{"$error":"#REF!"}},{"$f":"AND(#REF!,\"W0pSRHM0uI4=\")","v":{"$error":"#REF!"}},{"$f":"AND(#REF!,\"W0pSRHM0uI8=\")","v":{"$error":"#REF!"}},{"$f":"AND(#REF!,\"W0pSRHM0uJA=\")","v":{"$error":"#REF!"}},{"$f":"AND(#REF!,\"W0pSRHM0uJE=\")","v":{"$error":"#REF!"}},{"$f":"AND(#REF!,\"W0pSRHM0uJI=\")","v":{"$error":"#REF!"}},{"$f":"AND(#REF!,\"W0pSRHM0uJM=\")","v":{"$error":"#REF!"}},{"$f":"AND(#REF!,\"W0pSRHM0uJQ=\")","v":{"$error":"#REF!"}},{"$f":"AND(#REF!,\"W0pSRHM0uJU=\")","v":{"$error":"#REF!"}},{"$f":"AND(#REF!,\"W0pSRHM0uJY=\")","v":{"$error":"#REF!"}},{"$f":"AND(#REF!,\"W0pSRHM0uJc=\")","v":{"$error":"#REF!"}},{"$f":"AND(#REF!,\"W0pSRHM0uJg=\")","v":{"$error":"#REF!"}},{"$f":"AND(#REF!,\"W0pSRHM0uJk=\")","v":{"$error":"#REF!"}},{"$f":"AND(#REF!,\"W0pSRHM0uJo=\")","v":{"$error":"#REF!"}},{"$f":"AND(#REF!,\"W0pSRHM0uJs=\")","v":{"$error":"#REF!"}},{"$f":"AND(#REF!,\"W0pSRHM0uJw=\")","v":{"$error":"#REF!"}},{"$f":"AND(#REF!,\"W0pSRHM0uJ0=\")","v":{"$error":"#REF!"}},{"$f":"AND(#REF!,\"W0pSRHM0uJ4=\")","v":{"$error":"#REF!"}},{"$f":"AND(#REF!,\"W0pSRHM0uJ8=\")","v":{"$error":"#REF!"}},{"$f":"AND(#REF!,\"W0pSRHM0uKA=\")","v":{"$error":"#REF!"}},{"$f":"AND(#REF!,\"W0pSRHM0uKE=\")","v":{"$error":"#REF!"}},{"$f":"AND(#REF!,\"W0pSRHM0uKI=\")","v":{"$error":"#REF!"}},{"$f":"AND(#REF!,\"W0pSRHM0uKM=\")","v":{"$error":"#REF!"}},{"$f":"AND(#REF!,\"W0pSRHM0uKQ=\")","v":{"$error":"#REF!"}},{"$f":"AND(#REF!,\"W0pSRHM0uKU=\")","v":{"$error":"#REF!"}},{"$f":"AND(#REF!,\"W0pSRHM0uKY=\")","v":{"$error":"#REF!"}},{"$f":"AND(#REF!,\"W0pSRHM0uKc=\")","v":{"$error":"#REF!"}},{"$f":"AND(#REF!,\"W0pSRHM0uKg=\")","v":{"$error":"#REF!"}},{"$f":"AND(#REF!,\"W0pSRHM0uKk=\")","v":{"$error":"#REF!"}},{"$f":"AND(#REF!,\"W0pSRHM0uKo=\")","v":{"$error":"#REF!"}},{"$f":"AND(#REF!,\"W0pSRHM0uKs=\")","v":{"$error":"#REF!"}},{"$f":"AND(#REF!,\"W0pSRHM0uKw=\")","v":{"$error":"#REF!"}},{"$f":"AND(#REF!,\"W0pSRHM0uK0=\")","v":{"$error":"#REF!"}},{"$f":"AND(#REF!,\"W0pSRHM0uK4=\")","v":{"$error":"#REF!"}},{"$f":"AND(#REF!,\"W0pSRHM0uK8=\")","v":{"$error":"#REF!"}},{"$f":"AND(#REF!,\"W0pSRHM0uLA=\")","v":{"$error":"#REF!"}},{"$f":"AND(#REF!,\"W0pSRHM0uLE=\")","v":{"$error":"#REF!"}},{"$f":"AND(#REF!,\"W0pSRHM0uLI=\")","v":{"$error":"#REF!"}},{"$f":"AND(#REF!,\"W0pSRHM0uLM=\")","v":{"$error":"#REF!"}},{"$f":"AND(#REF!,\"W0pSRHM0uLQ=\")","v":{"$error":"#REF!"}},{"$f":"AND(#REF!,\"W0pSRHM0uLU=\")","v":{"$error":"#REF!"}},{"$f":"AND(#REF!,\"W0pSRHM0uLY=\")","v":{"$error":"#REF!"}},{"$f":"AND(#REF!,\"W0pSRHM0uLc=\")","v":{"$error":"#REF!"}},{"$f":"AND(#REF!,\"W0pSRHM0uLg=\")","v":{"$error":"#REF!"}},{"$f":"AND(#REF!,\"W0pSRHM0uLk=\")","v":{"$error":"#REF!"}},{"$f":"AND(#REF!,\"W0pSRHM0uLo=\")","v":{"$error":"#REF!"}},{"$f":"AND(#REF!,\"W0pSRHM0uLs=\")","v":{"$error":"#REF!"}},{"$f":"AND(#REF!,\"W0pSRHM0uLw=\")","v":{"$error":"#REF!"}},{"$f":"AND(#REF!,\"W0pSRHM0uL0=\")","v":{"$error":"#REF!"}},{"$f":"AND(#REF!,\"W0pSRHM0uL4=\")","v":{"$error":"#REF!"}},{"$f":"AND(#REF!,\"W0pSRHM0uL8=\")","v":{"$error":"#REF!"}},{"$f":"AND(#REF!,\"W0pSRHM0uMA=\")","v":{"$error":"#REF!"}},{"$f":"AND(#REF!,\"W0pSRHM0uME=\")","v":{"$error":"#REF!"}},{"$f":"AND(#REF!,\"W0pSRHM0uMI=\")","v":{"$error":"#REF!"}},{"$f":"AND(#REF!,\"W0pSRHM0uMM=\")","v":{"$error":"#REF!"}},{"$f":"AND(#REF!,\"W0pSRHM0uMQ=\")","v":{"$error":"#REF!"}},{"$f":"AND(#REF!,\"W0pSRHM0uMU=\")","v":{"$error":"#REF!"}},{"$f":"AND(#REF!,\"W0pSRHM0uMY=\")","v":{"$error":"#REF!"}},{"$f":"AND(#REF!,\"W0pSRHM0uMc=\")","v":{"$error":"#REF!"}},{"$f":"AND(#REF!,\"W0pSRHM0uMg=\")","v":{"$error":"#REF!"}},{"$f":"AND(#REF!,\"W0pSRHM0uMk=\")","v":{"$error":"#REF!"}},{"$f":"AND(#REF!,\"W0pSRHM0uMo=\")","v":{"$error":"#REF!"}},{"$f":"AND(#REF!,\"W0pSRHM0uMs=\")","v":{"$error":"#REF!"}},{"$f":"AND(#REF!,\"W0pSRHM0uMw=\")","v":{"$error":"#REF!"}},{"$f":"AND(#REF!,\"W0pSRHM0uM0=\")","v":{"$error":"#REF!"}},{"$f":"AND(#REF!,\"W0pSRHM0uM4=\")","v":{"$error":"#REF!"}},{"$f":"AND(#REF!,\"W0pSRHM0uM8=\")","v":{"$error":"#REF!"}},{"$f":"AND(#REF!,\"W0pSRHM0uNA=\")","v":{"$error":"#REF!"}},{"$f":"AND(#REF!,\"W0pSRHM0uNE=\")","v":{"$error":"#REF!"}},{"$f":"AND(#REF!,\"W0pSRHM0uNI=\")","v":{"$error":"#REF!"}},{"$f":"AND(#REF!,\"W0pSRHM0uNM=\")","v":{"$error":"#REF!"}},{"$f":"AND(#REF!,\"W0pSRHM0uNQ=\")","v":{"$error":"#REF!"}},{"$f":"AND(#REF!,\"W0pSRHM0uNU=\")","v":{"$error":"#REF!"}},{"$f":"AND(#REF!,\"W0pSRHM0uNY=\")","v":{"$error":"#REF!"}},{"$f":"AND(#REF!,\"W0pSRHM0uNc=\")","v":{"$error":"#REF!"}},{"$f":"AND(#REF!,\"W0pSRHM0uNg=\")","v":{"$error":"#REF!"}},{"$f":"AND(#REF!,\"W0pSRHM0uNk=\")","v":{"$error":"#REF!"}},{"$f":"AND(#REF!,\"W0pSRHM0uNo=\")","v":{"$error":"#REF!"}},{"$f":"AND(#REF!,\"W0pSRHM0uNs=\")","v":{"$error":"#REF!"}},{"$f":"AND(#REF!,\"W0pSRHM0uNw=\")","v":{"$error":"#REF!"}},{"$f":"AND(#REF!,\"W0pSRHM0uN0=\")","v":{"$error":"#REF!"}},{"$f":"AND(#REF!,\"W0pSRHM0uN4=\")","v":{"$error":"#REF!"}},{"$f":"AND(#REF!,\"W0pSRHM0uN8=\")","v":{"$error":"#REF!"}},{"$f":"AND(#REF!,\"W0pSRHM0uOA=\")","v":{"$error":"#REF!"}},{"$f":"AND(#REF!,\"W0pSRHM0uOE=\")","v":{"$error":"#REF!"}},{"$f":"AND(#REF!,\"W0pSRHM0uOI=\")","v":{"$error":"#REF!"}},{"$f":"AND(#REF!,\"W0pSRHM0uOM=\")","v":{"$error":"#REF!"}},{"$f":"AND(#REF!,\"W0pSRHM0uOQ=\")","v":{"$error":"#REF!"}},{"$f":"AND(#REF!,\"W0pSRHM0uOU=\")","v":{"$error":"#REF!"}},{"$f":"AND(#REF!,\"W0pSRHM0uOY=\")","v":{"$error":"#REF!"}},{"$f":"AND(#REF!,\"W0pSRHM0uOc=\")","v":{"$error":"#REF!"}},{"$f":"AND(#REF!,\"W0pSRHM0uOg=\")","v":{"$error":"#REF!"}},{"$f":"AND(#REF!,\"W0pSRHM0uOk=\")","v":{"$error":"#REF!"}},{"$f":"AND(#REF!,\"W0pSRHM0uOo=\")","v":{"$error":"#REF!"}},{"$f":"AND(#REF!,\"W0pSRHM0uOs=\")","v":{"$error":"#REF!"}},{"$f":"AND(#REF!,\"W0pSRHM0uOw=\")","v":{"$error":"#REF!"}},{"$f":"AND(#REF!,\"W0pSRHM0uO0=\")","v":{"$error":"#REF!"}},{"$f":"AND(#REF!,\"W0pSRHM0uO4=\")","v":{"$error":"#REF!"}},{"$f":"AND(#REF!,\"W0pSRHM0uO8=\")","v":{"$error":"#REF!"}},{"$f":"AND(#REF!,\"W0pSRHM0uPA=\")","v":{"$error":"#REF!"}},{"$f":"AND(#REF!,\"W0pSRHM0uPE=\")","v":{"$error":"#REF!"}},{"$f":"AND(#REF!,\"W0pSRHM0uPI=\")","v":{"$error":"#REF!"}},{"$f":"AND(#REF!,\"W0pSRHM0uPM=\")","v":{"$error":"#REF!"}},{"$f":"AND(#REF!,\"W0pSRHM0uPQ=\")","v":{"$error":"#REF!"}},{"$f":"AND(#REF!,\"W0pSRHM0uPU=\")","v":{"$error":"#REF!"}},{"$f":"AND(#REF!,\"W0pSRHM0uPY=\")","v":{"$error":"#REF!"}},{"$f":"AND(#REF!,\"W0pSRHM0uPc=\")","v":{"$error":"#REF!"}},{"$f":"AND(#REF!,\"W0pSRHM0uPg=\")","v":{"$error":"#REF!"}},{"$f":"IF(#REF!,\"W0pSRHM0uPk=\",0)","v":{"$error":"#REF!"}},{"$f":"AND(#REF!,\"W0pSRHM0uPo=\")","v":{"$error":"#REF!"}},{"$f":"AND(#REF!,\"W0pSRHM0uPs=\")","v":{"$error":"#REF!"}},{"$f":"AND(#REF!,\"W0pSRHM0uPw=\")","v":{"$error":"#REF!"}},{"$f":"AND(#REF!,\"W0pSRHM0uP0=\")","v":{"$error":"#REF!"}},{"$f":"AND(#REF!,\"W0pSRHM0uP4=\")","v":{"$error":"#REF!"}},{"$f":"AND(#REF!,\"W0pSRHM0uP8=\")","v":{"$error":"#REF!"}}]
[{"$f":"AND(#REF!,\"MR4dn3V6tgA=\")","v":{"$error":"#REF!"}},{"$f":"AND(#REF!,\"MR4dn3V6tgE=\")","v":{"$error":"#REF!"}},{"$f":"AND(#REF!,\"MR4dn3V6tgI=\")","v":{"$error":"#REF!"}},{"$f":"AND(#REF!,\"MR4dn3V6tgM=\")","v":{"$error":"#REF!"}},{"$f":"AND(#REF!,\"MR4dn3V6tgQ=\")","v":{"$error":"#REF!"}},{"$f":"AND(#REF!,\"MR4dn3V6tgU=\")","v":{"$error":"#REF!"}},{"$f":"AND(#REF!,\"MR4dn3V6tgY=\")","v":{"$error":"#REF!"}},{"$f":"AND(#REF!,\"MR4dn3V6tgc=\")","v":{"$error":"#REF!"}},{"$f":"AND(#REF!,\"MR4dn3V6tgg=\")","v":{"$error":"#REF!"}},{"$f":"AND(#REF!,\"MR4dn3V6tgk=\")","v":{"$error":"#REF!"}},{"$f":"AND(#REF!,\"MR4dn3V6tgo=\")","v":{"$error":"#REF!"}},{"$f":"AND(#REF!,\"MR4dn3V6tgs=\")","v":{"$error":"#REF!"}},{"$f":"AND(#REF!,\"MR4dn3V6tgw=\")","v":{"$error":"#REF!"}},{"$f":"AND(#REF!,\"MR4dn3V6tg0=\")","v":{"$error":"#REF!"}},{"$f":"AND(#REF!,\"MR4dn3V6tg4=\")","v":{"$error":"#REF!"}},{"$f":"AND(#REF!,\"MR4dn3V6tg8=\")","v":{"$error":"#REF!"}},{"$f":"AND(#REF!,\"MR4dn3V6thA=\")","v":{"$error":"#REF!"}},{"$f":"AND(#REF!,\"MR4dn3V6thE=\")","v":{"$error":"#REF!"}},{"$f":"AND(#REF!,\"MR4dn3V6thI=\")","v":{"$error":"#REF!"}},{"$f":"AND(#REF!,\"MR4dn3V6thM=\")","v":{"$error":"#REF!"}},{"$f":"AND(#REF!,\"MR4dn3V6thQ=\")","v":{"$error":"#REF!"}},{"$f":"AND(#REF!,\"MR4dn3V6thU=\")","v":{"$error":"#REF!"}},{"$f":"AND(#REF!,\"MR4dn3V6thY=\")","v":{"$error":"#REF!"}},{"$f":"AND(#REF!,\"MR4dn3V6thc=\")","v":{"$error":"#REF!"}},{"$f":"AND(#REF!,\"MR4dn3V6thg=\")","v":{"$error":"#REF!"}},{"$f":"AND(#REF!,\"MR4dn3V6thk=\")","v":{"$error":"#REF!"}},{"$f":"AND(#REF!,\"MR4dn3V6tho=\")","v":{"$error":"#REF!"}},{"$f":"AND(#REF!,\"MR4dn3V6ths=\")","v":{"$error":"#REF!"}},{"$f":"AND(#REF!,\"MR4dn3V6thw=\")","v":{"$error":"#REF!"}},{"$f":"AND(#REF!,\"MR4dn3V6th0=\")","v":{"$error":"#REF!"}},{"$f":"AND(#REF!,\"MR4dn3V6th4=\")","v":{"$error":"#REF!"}},{"$f":"AND(#REF!,\"MR4dn3V6th8=\")","v":{"$error":"#REF!"}},{"$f":"AND(#REF!,\"MR4dn3V6tiA=\")","v":{"$error":"#REF!"}},{"$f":"AND(#REF!,\"MR4dn3V6tiE=\")","v":{"$error":"#REF!"}},{"$f":"AND(#REF!,\"MR4dn3V6tiI=\")","v":{"$error":"#REF!"}},{"$f":"AND(#REF!,\"MR4dn3V6tiM=\")","v":{"$error":"#REF!"}},{"$f":"AND(#REF!,\"MR4dn3V6tiQ=\")","v":{"$error":"#REF!"}},{"$f":"AND(#REF!,\"MR4dn3V6tiU=\")","v":{"$error":"#REF!"}},{"$f":"AND(#REF!,\"MR4dn3V6tiY=\")","v":{"$error":"#REF!"}},{"$f":"AND(#REF!,\"MR4dn3V6tic=\")","v":{"$error":"#REF!"}},{"$f":"AND(#REF!,\"MR4dn3V6tig=\")","v":{"$error":"#REF!"}},{"$f":"AND(#REF!,\"MR4dn3V6tik=\")","v":{"$error":"#REF!"}},{"$f":"AND(#REF!,\"MR4dn3V6tio=\")","v":{"$error":"#REF!"}},{"$f":"AND(#REF!,\"MR4dn3V6tis=\")","v":{"$error":"#REF!"}},{"$f":"AND(#REF!,\"MR4dn3V6tiw=\")","v":{"$error":"#REF!"}},{"$f":"AND(#REF!,\"MR4dn3V6ti0=\")","v":{"$error":"#REF!"}},{"$f":"AND(#REF!,\"MR4dn3V6ti4=\")","v":{"$error":"#REF!"}},{"$f":"AND(#REF!,\"MR4dn3V6ti8=\")","v":{"$error":"#REF!"}},{"$f":"AND(#REF!,\"MR4dn3V6tjA=\")","v":{"$error":"#REF!"}},{"$f":"AND(#REF!,\"MR4dn3V6tjE=\")","v":{"$error":"#REF!"}},{"$f":"AND(#REF!,\"MR4dn3V6tjI=\")","v":{"$error":"#REF!"}},{"$f":"AND(#REF!,\"MR4dn3V6tjM=\")","v":{"$error":"#REF!"}},{"$f":"AND(#REF!,\"MR4dn3V6tjQ=\")","v":{"$error":"#REF!"}},{"$f":"AND(#REF!,\"MR4dn3V6tjU=\")","v":{"$error":"#REF!"}},{"$f":"AND(#REF!,\"MR4dn3V6tjY=\")","v":{"$error":"#REF!"}},{"$f":"AND(#REF!,\"MR4dn3V6tjc=\")","v":{"$error":"#REF!"}},{"$f":"AND(#REF!,\"MR4dn3V6tjg=\")","v":{"$error":"#REF!"}},{"$f":"AND(#REF!,\"MR4dn3V6tjk=\")","v":{"$error":"#REF!"}},{"$f":"AND(#REF!,\"MR4dn3V6tjo=\")","v":{"$error":"#REF!"}},{"$f":"AND(#REF!,\"MR4dn3V6tjs=\")","v":{"$error":"#REF!"}},{"$f":"AND(#REF!,\"MR4dn3V6tjw=\")","v":{"$error":"#REF!"}},{"$f":"AND(#REF!,\"MR4dn3V6tj0=\")","v":{"$error":"#REF!"}},{"$f":"AND(#REF!,\"MR4dn3V6tj4=\")","v":{"$error":"#REF!"}},{"$f":"AND(#REF!,\"MR4dn3V6tj8=\")","v":{"$error":"#REF!"}},{"$f":"AND(#REF!,\"MR4dn3V6tkA=\")","v":{"$error":"#REF!"}},{"$f":"AND(#REF!,\"MR4dn3V6tkE=\")","v":{"$error":"#REF!"}},{"$f":"AND(#REF!,\"MR4dn3V6tkI=\")","v":{"$error":"#REF!"}},{"$f":"AND(#REF!,\"MR4dn3V6tkM=\")","v":{"$error":"#REF!"}},{"$f":"AND(#REF!,\"MR4dn3V6tkQ=\")","v":{"$error":"#REF!"}},{"$f":"AND(#REF!,\"MR4dn3V6tkU=\")","v":{"$error":"#REF!"}},{"$f":"AND(#REF!,\"MR4dn3V6tkY=\")","v":{"$error":"#REF!"}},{"$f":"AND(#REF!,\"MR4dn3V6tkc=\")","v":{"$error":"#REF!"}},{"$f":"AND(#REF!,\"MR4dn3V6tkg=\")","v":{"$error":"#REF!"}},{"$f":"AND(#REF!,\"MR4dn3V6tkk=\")","v":{"$error":"#REF!"}},{"$f":"AND(#REF!,\"MR4dn3V6tko=\")","v":{"$error":"#REF!"}},{"$f":"AND(#REF!,\"MR4dn3V6tks=\")","v":{"$error":"#REF!"}},{"$f":"AND(#REF!,\"MR4dn3V6tkw=\")","v":{"$error":"#REF!"}},{"$f":"AND(#REF!,\"MR4dn3V6tk0=\")","v":{"$error":"#REF!"}},{"$f":"AND(#REF!,\"MR4dn3V6tk4=\")","v":{"$error":"#REF!"}},{"$f":"AND(#REF!,\"MR4dn3V6tk8=\")","v":{"$error":"#REF!"}},{"$f":"AND(#REF!,\"MR4dn3V6tlA=\")","v":{"$error":"#REF!"}},{"$f":"AND(#REF!,\"MR4dn3V6tlE=\")","v":{"$error":"#REF!"}},{"$f":"AND(#REF!,\"MR4dn3V6tlI=\")","v":{"$error":"#REF!"}},{"$f":"AND(#REF!,\"MR4dn3V6tlM=\")","v":{"$error":"#REF!"}},{"$f":"AND(#REF!,\"MR4dn3V6tlQ=\")","v":{"$error":"#REF!"}},{"$f":"AND(#REF!,\"MR4dn3V6tlU=\")","v":{"$error":"#REF!"}},{"$f":"AND(#REF!,\"MR4dn3V6tlY=\")","v":{"$error":"#REF!"}},{"$f":"AND(#REF!,\"MR4dn3V6tlc=\")","v":{"$error":"#REF!"}},{"$f":"AND(#REF!,\"MR4dn3V6tlg=\")","v":{"$error":"#REF!"}},{"$f":"AND(#REF!,\"MR4dn3V6tlk=\")","v":{"$error":"#REF!"}},{"$f":"AND(#REF!,\"MR4dn3V6tlo=\")","v":{"$error":"#REF!"}},{"$f":"AND(#REF!,\"MR4dn3V6tls=\")","v":{"$error":"#REF!"}},{"$f":"AND(#REF!,\"MR4dn3V6tlw=\")","v":{"$error":"#REF!"}},{"$f":"AND(#REF!,\"MR4dn3V6tl0=\")","v":{"$error":"#REF!"}},{"$f":"AND(#REF!,\"MR4dn3V6tl4=\")","v":{"$error":"#REF!"}},{"$f":"AND(#REF!,\"MR4dn3V6tl8=\")","v":{"$error":"#REF!"}},{"$f":"AND(#REF!,\"MR4dn3V6tmA=\")","v":{"$error":"#REF!"}},{"$f":"AND(#REF!,\"MR4dn3V6tmE=\")","v":{"$error":"#REF!"}},{"$f":"AND(#REF!,\"MR4dn3V6tmI=\")","v":{"$error":"#REF!"}},{"$f":"AND(#REF!,\"MR4dn3V6tmM=\")","v":{"$error":"#REF!"}},{"$f":"AND(#REF!,\"MR4dn3V6tmQ=\")","v":{"$error":"#REF!"}},{"$f":"AND(#REF!,\"MR4dn3V6tmU=\")","v":{"$error":"#REF!"}},{"$f":"AND(#REF!,\"MR4dn3V6tmY=\")","v":{"$error":"#REF!"}},{"$f":"AND(#REF!,\"MR4dn3V6tmc=\")","v":{"$error":"#REF!"}},{"$f":"AND(#REF!,\"MR4dn3V6tmg=\")","v":{"$error":"#REF!"}},{"$f":"AND(#REF!,\"MR4dn3V6tmk=\")","v":{"$error":"#REF!"}},{"$f":"AND(#REF!,\"MR4dn3V6tmo=\")","v":{"$error":"#REF!"}},{"$f":"AND(#REF!,\"MR4dn3V6tms=\")","v":{"$error":"#REF!"}},{"$f":"AND(#REF!,\"MR4dn3V6tmw=\")","v":{"$error":"#REF!"}},{"$f":"AND(#REF!,\"MR4dn3V6tm0=\")","v":{"$error":"#REF!"}},{"$f":"AND(#REF!,\"MR4dn3V6tm4=\")","v":{"$error":"#REF!"}},{"$f":"AND(#REF!,\"MR4dn3V6tm8=\")","v":{"$error":"#REF!"}},{"$f":"AND(#REF!,\"MR4dn3V6tnA=\")","v":{"$error":"#REF!"}},{"$f":"AND(#REF!,\"MR4dn3V6tnE=\")","v":{"$error":"#REF!"}},{"$f":"AND(#REF!,\"MR4dn3V6tnI=\")","v":{"$error":"#REF!"}},{"$f":"AND(#REF!,\"MR4dn3V6tnM=\")","v":{"$error":"#REF!"}},{"$f":"AND(#REF!,\"MR4dn3V6tnQ=\")","v":{"$error":"#REF!"}},{"$f":"AND(#REF!,\"MR4dn3V6tnU=\")","v":{"$error":"#REF!"}},{"$f":"AND(#REF!,\"MR4dn3V6tnY=\")","v":{"$error":"#REF!"}},{"$f":"AND(#REF!,\"MR4dn3V6tnc=\")","v":{"$error":"#REF!"}},{"$f":"AND(#REF!,\"MR4dn3V6tng=\")","v":{"$error":"#REF!"}},{"$f":"AND(#REF!,\"MR4dn3V6tnk=\")","v":{"$error":"#REF!"}},{"$f":"AND(#REF!,\"MR4dn3V6tno=\")","v":{"$error":"#REF!"}},{"$f":"AND(#REF!,\"MR4dn3V6tns=\")","v":{"$error":"#REF!"}},{"$f":"AND(#REF!,\"MR4dn3V6tnw=\")","v":{"$error":"#REF!"}},{"$f":"AND(#REF!,\"MR4dn3V6tn0=\")","v":{"$error":"#REF!"}},{"$f":"AND(#REF!,\"MR4dn3V6tn4=\")","v":{"$error":"#REF!"}},{"$f":"AND(#REF!,\"MR4dn3V6tn8=\")","v":{"$error":"#REF!"}},{"$f":"AND(#REF!,\"MR4dn3V6toA=\")","v":{"$error":"#REF!"}},{"$f":"AND(#REF!,\"MR4dn3V6toE=\")","v":{"$error":"#REF!"}},{"$f":"AND(#REF!,\"MR4dn3V6toI=\")","v":{"$error":"#REF!"}},{"$f":"AND(#REF!,\"MR4dn3V6toM=\")","v":{"$error":"#REF!"}},{"$f":"AND(#REF!,\"MR4dn3V6toQ=\")","v":{"$error":"#REF!"}},{"$f":"AND(#REF!,\"MR4dn3V6toU=\")","v":{"$error":"#REF!"}},{"$f":"AND(#REF!,\"MR4dn3V6toY=\")","v":{"$error":"#REF!"}},{"$f":"AND(#REF!,\"MR4dn3V6toc=\")","v":{"$error":"#REF!"}},{"$f":"AND(#REF!,\"MR4dn3V6tog=\")","v":{"$error":"#REF!"}},{"$f":"AND(#REF!,\"MR4dn3V6tok=\")","v":{"$error":"#REF!"}},{"$f":"AND(#REF!,\"MR4dn3V6too=\")","v":{"$error":"#REF!"}},{"$f":"AND(#REF!,\"MR4dn3V6tos=\")","v":{"$error":"#REF!"}},{"$f":"AND(#REF!,\"MR4dn3V6tow=\")","v":{"$error":"#REF!"}},{"$f":"AND(#REF!,\"MR4dn3V6to0=\")","v":{"$error":"#REF!"}},{"$f":"AND(#REF!,\"MR4dn3V6to4=\")","v":{"$error":"#REF!"}},{"$f":"AND(#REF!,\"MR4dn3V6to8=\")","v":{"$error":"#REF!"}},{"$f":"AND(#REF!,\"MR4dn3V6tpA=\")","v":{"$error":"#REF!"}},{"$f":"AND(#REF!,\"MR4dn3V6tpE=\")","v":{"$error":"#REF!"}},{"$f":"AND(#REF!,\"MR4dn3V6tpI=\")","v":{"$error":"#REF!"}},{"$f":"AND(#REF!,\"MR4dn3V6tpM=\")","v":{"$error":"#REF!"}},{"$f":"AND(#REF!,\"MR4dn3V6tpQ=\")","v":{"$error":"#REF!"}},{"$f":"AND(#REF!,\"MR4dn3V6tpU=\")","v":{"$error":"#REF!"}},{"$f":"AND(#REF!,\"MR4dn3V6tpY=\")","v":{"$error":"#REF!"}},{"$f":"AND(#REF!,\"MR4dn3V6tpc=\")","v":{"$error":"#REF!"}},{"$f":"AND(#REF!,\"MR4dn3V6tpg=\")","v":{"$error":"#REF!"}},{"$f":"AND(#REF!,\"MR4dn3V6tpk=\")","v":{"$error":"#REF!"}},{"$f":"AND(#REF!,\"MR4dn3V6tpo=\")","v":{"$error":"#REF!"}},{"$f":"AND(#REF!,\"MR4dn3V6tps=\")","v":{"$error":"#REF!"}},{"$f":"AND(#REF!,\"MR4dn3V6tpw=\")","v":{"$error":"#REF!"}},{"$f":"AND(#REF!,\"MR4dn3V6tp0=\")","v":{"$error":"#REF!"}},{"$f":"AND(#REF!,\"MR4dn3V6tp4=\")","v":{"$error":"#REF!"}},{"$f":"AND(#REF!,\"MR4dn3V6tp8=\")","v":{"$error":"#REF!"}},{"$f":"AND(#REF!,\"MR4dn3V6tqA=\")","v":{"$error":"#REF!"}},{"$f":"AND(#REF!,\"MR4dn3V6tqE=\")","v":{"$error":"#REF!"}},{"$f":"AND(#REF!,\"MR4dn3V6tqI=\")","v":{"$error":"#REF!"}},{"$f":"AND(#REF!,\"MR4dn3V6tqM=\")","v":{"$error":"#REF!"}},{"$f":"AND(#REF!,\"MR4dn3V6tqQ=\")","v":{"$error":"#REF!"}},{"$f":"AND(#REF!,\"MR4dn3V6tqU=\")","v":{"$error":"#REF!"}},{"$f":"AND(#REF!,\"MR4dn3V6tqY=\")","v":{"$error":"#REF!"}},{"$f":"AND(#REF!,\"MR4dn3V6tqc=\")","v":{"$error":"#REF!"}},{"$f":"AND(#REF!,\"MR4dn3V6tqg=\")","v":{"$error":"#REF!"}},{"$f":"AND(#REF!,\"MR4dn3V6tqk=\")","v":{"$error":"#REF!"}},{"$f":"AND(#REF!,\"MR4dn3V6tqo=\")","v":{"$error":"#REF!"}},{"$f":"AND(#REF!,\"MR4dn3V6tqs=\")","v":{"$error":"#REF!"}},{"$f":"AND(#REF!,\"MR4dn3V6tqw=\")","v":{"$error":"#REF!"}},{"$f":"AND(#REF!,\"MR4dn3V6tq0=\")","v":{"$error":"#REF!"}},{"$f":"AND(#REF!,\"MR4dn3V6tq4=\")","v":{"$error":"#REF!"}},{"$f":"AND(#REF!,\"MR4dn3V6tq8=\")","v":{"$error":"#REF!"}},{"$f":"AND(#REF!,\"MR4dn3V6trA=\")","v":{"$error":"#REF!"}},{"$f":"AND(#REF!,\"MR4dn3V6trE=\")","v":{"$error":"#REF!"}},{"$f":"AND(#REF!,\"MR4dn3V6trI=\")","v":{"$error":"#REF!"}},{"$f":"AND(#REF!,\"MR4dn3V6trM=\")","v":{"$error":"#REF!"}},{"$f":"AND(#REF!,\"MR4dn3V6trQ=\")","v":{"$error":"#REF!"}},{"$f":"AND(#REF!,\"MR4dn3V6trU=\")","v":{"$error":"#REF!"}},{"$f":"AND(#REF!,\"MR4dn3V6trY=\")","v":{"$error":"#REF!"}},{"$f":"AND(#REF!,\"MR4dn3V6trc=\")","v":{"$error":"#REF!"}},{"$f":"AND(#REF!,\"MR4dn3V6trg=\")","v":{"$error":"#REF!"}},{"$f":"AND(#REF!,\"MR4dn3V6trk=\")","v":{"$error":"#REF!"}},{"$f":"AND(#REF!,\"MR4dn3V6tro=\")","v":{"$error":"#REF!"}},{"$f":"AND(#REF!,\"MR4dn3V6trs=\")","v":{"$error":"#REF!"}},{"$f":"AND(#REF!,\"MR4dn3V6trw=\")","v":{"$error":"#REF!"}},{"$f":"AND(#REF!,\"MR4dn3V6tr0=\")","v":{"$error":"#REF!"}},{"$f":"AND(#REF!,\"MR4dn3V6tr4=\")","v":{"$error":"#REF!"}},{"$f":"AND(#REF!,\"MR4dn3V6tr8=\")","v":{"$error":"#REF!"}},{"$f":"IF(#REF!,\"MR4dn3V6tsA=\",0)","v":{"$error":"#REF!"}},{"$f":"AND(#REF!,\"MR4dn3V6tsE=\")","v":{"$error":"#REF!"}},{"$f":"AND(#REF!,\"MR4dn3V6tsI=\")","v":{"$error":"#REF!"}},{"$f":"AND(#REF!,\"MR4dn3V6tsM=\")","v":{"$error":"#REF!"}},{"$f":"AND(#REF!,\"MR4dn3V6tsQ=\")","v":{"$error":"#REF!"}},{"$f":"AND(#REF!,\"MR4dn3V6tsU=\")","v":{"$error":"#REF!"}},{"$f":"AND(#REF!,\"MR4dn3V6tsY=\")","v":{"$error":"#REF!"}},{"$f":"AND(#REF!,\"MR4dn3V6tsc=\")","v":{"$error":"#REF!"}},{"$f":"AND(#REF!,\"MR4dn3V6tsg=\")","v":{"$error":"#REF!"}},{"$f":"AND(#REF!,\"MR4dn3V6tsk=\")","v":{"$error":"#REF!"}},{"$f":"AND(#REF!,\"MR4dn3V6tso=\")","v":{"$error":"#REF!"}},{"$f":"AND(#REF!,\"MR4dn3V6tss=\")","v":{"$error":"#REF!"}},{"$f":"AND(#REF!,\"MR4dn3V6tsw=\")","v":{"$error":"#REF!"}},{"$f":"AND(#REF!,\"MR4dn3V6ts0=\")","v":{"$error":"#REF!"}},{"$f":"AND(#REF!,\"MR4dn3V6ts4=\")","v":{"$error":"#REF!"}},{"$f":"AND(#REF!,\"MR4dn3V6ts8=\")","v":{"$error":"#REF!"}},{"$f":"AND(#REF!,\"MR4dn3V6ttA=\")","v":{"$error":"#REF!"}},{"$f":"AND(#REF!,\"MR4dn3V6ttE=\")","v":{"$error":"#REF!"}},{"$f":"AND(#REF!,\"MR4dn3V6ttI=\")","v":{"$error":"#REF!"}},{"$f":"AND(#REF!,\"MR4dn3V6ttM=\")","v":{"$error":"#REF!"}},{"$f":"AND(#REF!,\"MR4dn3V6ttQ=\")","v":{"$error":"#REF!"}},{"$f":"AND(#REF!,\"MR4dn3V6ttU=\")","v":{"$error":"#REF!"}},{"$f":"AND(#REF!,\"MR4dn3V6ttY=\")","v":{"$error":"#REF!"}},{"$f":"AND(#REF!,\"MR4dn3V6ttc=\")","v":{"$error":"#REF!"}},{"$f":"AND(#REF!,\"MR4dn3V6ttg=\")","v":{"$error":"#REF!"}},{"$f":"AND(#REF!,\"MR4dn3V6ttk=\")","v":{"$error":"#REF!"}},{"$f":"AND(#REF!,\"MR4dn3V6tto=\")","v":{"$error":"#REF!"}},{"$f":"AND(#REF!,\"MR4dn3V6tts=\")","v":{"$error":"#REF!"}},{"$f":"AND(#REF!,\"MR4dn3V6ttw=\")","v":{"$error":"#REF!"}},{"$f":"AND(#REF!,\"MR4dn3V6tt0=\")","v":{"$error":"#REF!"}},{"$f":"AND(#REF!,\"MR4dn3V6tt4=\")","v":{"$error":"#REF!"}},{"$f":"AND(#REF!,\"MR4dn3V6tt8=\")","v":{"$error":"#REF!"}},{"$f":"AND(#REF!,\"MR4dn3V6tuA=\")","v":{"$error":"#REF!"}},{"$f":"AND(#REF!,\"MR4dn3V6tuE=\")","v":{"$error":"#REF!"}},{"$f":"AND(#REF!,\"MR4dn3V6tuI=\")","v":{"$error":"#REF!"}},{"$f":"AND(#REF!,\"MR4dn3V6tuM=\")","v":{"$error":"#REF!"}},{"$f":"AND(#REF!,\"MR4dn3V6tuQ=\")","v":{"$error":"#REF!"}},{"$f":"AND(#REF!,\"MR4dn3V6tuU=\")","v":{"$error":"#REF!"}},{"$f":"AND(#REF!,\"MR4dn3V6tuY=\")","v":{"$error":"#REF!"}},{"$f":"AND(#REF!,\"MR4dn3V6tuc=\")","v":{"$error":"#REF!"}},{"$f":"AND(#REF!,\"MR4dn3V6tug=\")","v":{"$error":"#REF!"}},{"$f":"AND(#REF!,\"MR4dn3V6tuk=\")","v":{"$error":"#REF!"}},{"$f":"AND(#REF!,\"MR4dn3V6tuo=\")","v":{"$error":"#REF!"}},{"$f":"AND(#REF!,\"MR4dn3V6tus=\")","v":{"$error":"#REF!"}},{"$f":"AND(#REF!,\"MR4dn3V6tuw=\")","v":{"$error":"#REF!"}},{"$f":"AND(#REF!,\"MR4dn3V6tu0=\")","v":{"$error":"#REF!"}},{"$f":"AND(#REF!,\"MR4dn3V6tu4=\")","v":{"$error":"#REF!"}},{"$f":"AND(#REF!,\"MR4dn3V6tu8=\")","v":{"$error":"#REF!"}},{"$f":"AND(#REF!,\"MR4dn3V6tvA=\")","v":{"$error":"#REF!"}},{"$f":"AND(#REF!,\"MR4dn3V6tvE=\")","v":{"$error":"#REF!"}},{"$f":"AND(#REF!,\"MR4dn3V6tvI=\")","v":{"$error":"#REF!"}},{"$f":"AND(#REF!,\"MR4dn3V6tvM=\")","v":{"$error":"#REF!"}},{"$f":"AND(#REF!,\"MR4dn3V6tvQ=\")","v":{"$error":"#REF!"}},{"$f":"AND(#REF!,\"MR4dn3V6tvU=\")","v":{"$error":"#REF!"}},{"$f":"AND(#REF!,\"MR4dn3V6tvY=\")","v":{"$error":"#REF!"}},{"$f":"AND(#REF!,\"MR4dn3V6tvc=\")","v":{"$error":"#REF!"}},{"$f":"AND(#REF!,\"MR4dn3V6tvg=\")","v":{"$error":"#REF!"}},{"$f":"AND(#REF!,\"MR4dn3V6tvk=\")","v":{"$error":"#REF!"}},{"$f":"AND(#REF!,\"MR4dn3V6tvo=\")","v":{"$error":"#REF!"}},{"$f":"AND(#REF!,\"MR4dn3V6tvs=\")","v":{"$error":"#REF!"}},{"$f":"AND(#REF!,\"MR4dn3V6tvw=\")","v":{"$error":"#REF!"}},{"$f":"AND(#REF!,\"MR4dn3V6tv0=\")","v":{"$error":"#REF!"}},{"$f":"AND(#REF!,\"MR4dn3V6tv4=\")","v":{"$error":"#REF!"}},{"$f":"AND(#REF!,\"MR4dn3V6tv8=\")","v":{"$error":"#REF!"}}]
[{"$f":"AND(#REF!,\"HTc+jB2lEgA=\")","v":{"$error":"#REF!"}},{"$f":"AND(#REF!,\"HTc+jB2lEgE=\")","v":{"$error":"#REF!"}},{"$f":"AND(#REF!,\"HTc+jB2lEgI=\")","v":{"$error":"#REF!"}},{"$f":"AND(#REF!,\"HTc+jB2lEgM=\")","v":{"$error":"#REF!"}},{"$f":"AND(#REF!,\"HTc+jB2lEgQ=\")","v":{"$error":"#REF!"}},{"$f":"AND(#REF!,\"HTc+jB2lEgU=\")","v":{"$error":"#REF!"}},{"$f":"AND(#REF!,\"HTc+jB2lEgY=\")","v":{"$error":"#REF!"}},{"$f":"AND(#REF!,\"HTc+jB2lEgc=\")","v":{"$error":"#REF!"}},{"$f":"AND(#REF!,\"HTc+jB2lEgg=\")","v":{"$error":"#REF!"}},{"$f":"AND(#REF!,\"HTc+jB2lEgk=\")","v":{"$error":"#REF!"}},{"$f":"AND(#REF!,\"HTc+jB2lEgo=\")","v":{"$error":"#REF!"}},{"$f":"AND(#REF!,\"HTc+jB2lEgs=\")","v":{"$error":"#REF!"}},{"$f":"AND(#REF!,\"HTc+jB2lEgw=\")","v":{"$error":"#REF!"}},{"$f":"AND(#REF!,\"HTc+jB2lEg0=\")","v":{"$error":"#REF!"}},{"$f":"AND(#REF!,\"HTc+jB2lEg4=\")","v":{"$error":"#REF!"}},{"$f":"AND(#REF!,\"HTc+jB2lEg8=\")","v":{"$error":"#REF!"}},{"$f":"AND(#REF!,\"HTc+jB2lEhA=\")","v":{"$error":"#REF!"}},{"$f":"AND(#REF!,\"HTc+jB2lEhE=\")","v":{"$error":"#REF!"}},{"$f":"AND(#REF!,\"HTc+jB2lEhI=\")","v":{"$error":"#REF!"}},{"$f":"AND(#REF!,\"HTc+jB2lEhM=\")","v":{"$error":"#REF!"}},{"$f":"AND(#REF!,\"HTc+jB2lEhQ=\")","v":{"$error":"#REF!"}},{"$f":"AND(#REF!,\"HTc+jB2lEhU=\")","v":{"$error":"#REF!"}},{"$f":"AND(#REF!,\"HTc+jB2lEhY=\")","v":{"$error":"#REF!"}},{"$f":"AND(#REF!,\"HTc+jB2lEhc=\")","v":{"$error":"#REF!"}},{"$f":"AND(#REF!,\"HTc+jB2lEhg=\")","v":{"$error":"#REF!"}},{"$f":"AND(#REF!,\"HTc+jB2lEhk=\")","v":{"$error":"#REF!"}},{"$f":"AND(#REF!,\"HTc+jB2lEho=\")","v":{"$error":"#REF!"}},{"$f":"AND(#REF!,\"HTc+jB2lEhs=\")","v":{"$error":"#REF!"}},{"$f":"AND(#REF!,\"HTc+jB2lEhw=\")","v":{"$error":"#REF!"}},{"$f":"AND(#REF!,\"HTc+jB2lEh0=\")","v":{"$error":"#REF!"}},{"$f":"AND(#REF!,\"HTc+jB2lEh4=\")","v":{"$error":"#REF!"}},{"$f":"AND(#REF!,\"HTc+jB2lEh8=\")","v":{"$error":"#REF!"}},{"$f":"AND(#REF!,\"HTc+jB2lEiA=\")","v":{"$error":"#REF!"}},{"$f":"AND(#REF!,\"HTc+jB2lEiE=\")","v":{"$error":"#REF!"}},{"$f":"AND(#REF!,\"HTc+jB2lEiI=\")","v":{"$error":"#REF!"}},{"$f":"AND(#REF!,\"HTc+jB2lEiM=\")","v":{"$error":"#REF!"}},{"$f":"AND(#REF!,\"HTc+jB2lEiQ=\")","v":{"$error":"#REF!"}},{"$f":"AND(#REF!,\"HTc+jB2lEiU=\")","v":{"$error":"#REF!"}},{"$f":"AND(#REF!,\"HTc+jB2lEiY=\")","v":{"$error":"#REF!"}},{"$f":"AND(#REF!,\"HTc+jB2lEic=\")","v":{"$error":"#REF!"}},{"$f":"AND(#REF!,\"HTc+jB2lEig=\")","v":{"$error":"#REF!"}},{"$f":"AND(#REF!,\"HTc+jB2lEik=\")","v":{"$error":"#REF!"}},{"$f":"AND(#REF!,\"HTc+jB2lEio=\")","v":{"$error":"#REF!"}},{"$f":"AND(#REF!,\"HTc+jB2lEis=\")","v":{"$error":"#REF!"}},{"$f":"AND(#REF!,\"HTc+jB2lEiw=\")","v":{"$error":"#REF!"}},{"$f":"AND(#REF!,\"HTc+jB2lEi0=\")","v":{"$error":"#REF!"}},{"$f":"AND(#REF!,\"HTc+jB2lEi4=\")","v":{"$error":"#REF!"}},{"$f":"AND(#REF!,\"HTc+jB2lEi8=\")","v":{"$error":"#REF!"}},{"$f":"AND(#REF!,\"HTc+jB2lEjA=\")","v":{"$error":"#REF!"}},{"$f":"AND(#REF!,\"HTc+jB2lEjE=\")","v":{"$error":"#REF!"}},{"$f":"AND(#REF!,\"HTc+jB2lEjI=\")","v":{"$error":"#REF!"}},{"$f":"AND(#REF!,\"HTc+jB2lEjM=\")","v":{"$error":"#REF!"}},{"$f":"AND(#REF!,\"HTc+jB2lEjQ=\")","v":{"$error":"#REF!"}},{"$f":"AND(#REF!,\"HTc+jB2lEjU=\")","v":{"$error":"#REF!"}},{"$f":"AND(#REF!,\"HTc+jB2lEjY=\")","v":{"$error":"#REF!"}},{"$f":"AND(#REF!,\"HTc+jB2lEjc=\")","v":{"$error":"#REF!"}},{"$f":"AND(#REF!,\"HTc+jB2lEjg=\")","v":{"$error":"#REF!"}},{"$f":"AND(#REF!,\"HTc+jB2lEjk=\")","v":{"$error":"#REF!"}},{"$f":"AND(#REF!,\"HTc+jB2lEjo=\")","v":{"$error":"#REF!"}},{"$f":"AND(#REF!,\"HTc+jB2lEjs=\")","v":{"$error":"#REF!"}},{"$f":"AND(#REF!,\"HTc+jB2lEjw=\")","v":{"$error":"#REF!"}},{"$f":"AND(#REF!,\"HTc+jB2lEj0=\")","v":{"$error":"#REF!"}},{"$f":"AND(#REF!,\"HTc+jB2lEj4=\")","v":{"$error":"#REF!"}},{"$f":"AND(#REF!,\"HTc+jB2lEj8=\")","v":{"$error":"#REF!"}},{"$f":"AND(#REF!,\"HTc+jB2lEkA=\")","v":{"$error":"#REF!"}},{"$f":"AND(#REF!,\"HTc+jB2lEkE=\")","v":{"$error":"#REF!"}},{"$f":"AND(#REF!,\"HTc+jB2lEkI=\")","v":{"$error":"#REF!"}},{"$f":"AND(#REF!,\"HTc+jB2lEkM=\")","v":{"$error":"#REF!"}},{"$f":"AND(#REF!,\"HTc+jB2lEkQ=\")","v":{"$error":"#REF!"}},{"$f":"AND(#REF!,\"HTc+jB2lEkU=\")","v":{"$error":"#REF!"}},{"$f":"AND(#REF!,\"HTc+jB2lEkY=\")","v":{"$error":"#REF!"}},{"$f":"AND(#REF!,\"HTc+jB2lEkc=\")","v":{"$error":"#REF!"}},{"$f":"AND(#REF!,\"HTc+jB2lEkg=\")","v":{"$error":"#REF!"}},{"$f":"AND(#REF!,\"HTc+jB2lEkk=\")","v":{"$error":"#REF!"}},{"$f":"AND(#REF!,\"HTc+jB2lEko=\")","v":{"$error":"#REF!"}},{"$f":"AND(#REF!,\"HTc+jB2lEks=\")","v":{"$error":"#REF!"}},{"$f":"AND(#REF!,\"HTc+jB2lEkw=\")","v":{"$error":"#REF!"}},{"$f":"AND(#REF!,\"HTc+jB2lEk0=\")","v":{"$error":"#REF!"}},{"$f":"AND(#REF!,\"HTc+jB2lEk4=\")","v":{"$error":"#REF!"}},{"$f":"AND(#REF!,\"HTc+jB2lEk8=\")","v":{"$error":"#REF!"}},{"$f":"AND(#REF!,\"HTc+jB2lElA=\")","v":{"$error":"#REF!"}},{"$f":"AND(#REF!,\"HTc+jB2lElE=\")","v":{"$error":"#REF!"}},{"$f":"AND(#REF!,\"HTc+jB2lElI=\")","v":{"$error":"#REF!"}},{"$f":"AND(#REF!,\"HTc+jB2lElM=\")","v":{"$error":"#REF!"}},{"$f":"AND(#REF!,\"HTc+jB2lElQ=\")","v":{"$error":"#REF!"}},{"$f":"AND(#REF!,\"HTc+jB2lElU=\")","v":{"$error":"#REF!"}},{"$f":"AND(#REF!,\"HTc+jB2lElY=\")","v":{"$error":"#REF!"}},{"$f":"AND(#REF!,\"HTc+jB2lElc=\")","v":{"$error":"#REF!"}},{"$f":"AND(#REF!,\"HTc+jB2lElg=\")","v":{"$error":"#REF!"}},{"$f":"AND(#REF!,\"HTc+jB2lElk=\")","v":{"$error":"#REF!"}},{"$f":"AND(#REF!,\"HTc+jB2lElo=\")","v":{"$error":"#REF!"}},{"$f":"AND(#REF!,\"HTc+jB2lEls=\")","v":{"$error":"#REF!"}},{"$f":"AND(#REF!,\"HTc+jB2lElw=\")","v":{"$error":"#REF!"}},{"$f":"AND(#REF!,\"HTc+jB2lEl0=\")","v":{"$error":"#REF!"}},{"$f":"AND(#REF!,\"HTc+jB2lEl4=\")","v":{"$error":"#REF!"}},{"$f":"AND(#REF!,\"HTc+jB2lEl8=\")","v":{"$error":"#REF!"}},{"$f":"AND(#REF!,\"HTc+jB2lEmA=\")","v":{"$error":"#REF!"}},{"$f":"AND(#REF!,\"HTc+jB2lEmE=\")","v":{"$error":"#REF!"}},{"$f":"AND(#REF!,\"HTc+jB2lEmI=\")","v":{"$error":"#REF!"}},{"$f":"AND(#REF!,\"HTc+jB2lEmM=\")","v":{"$error":"#REF!"}},{"$f":"AND(#REF!,\"HTc+jB2lEmQ=\")","v":{"$error":"#REF!"}},{"$f":"AND(#REF!,\"HTc+jB2lEmU=\")","v":{"$error":"#REF!"}},{"$f":"AND(#REF!,\"HTc+jB2lEmY=\")","v":{"$error":"#REF!"}},{"$f":"AND(#REF!,\"HTc+jB2lEmc=\")","v":{"$error":"#REF!"}},{"$f":"AND(#REF!,\"HTc+jB2lEmg=\")","v":{"$error":"#REF!"}},{"$f":"AND(#REF!,\"HTc+jB2lEmk=\")","v":{"$error":"#REF!"}},{"$f":"AND(#REF!,\"HTc+jB2lEmo=\")","v":{"$error":"#REF!"}},{"$f":"AND(#REF!,\"HTc+jB2lEms=\")","v":{"$error":"#REF!"}},{"$f":"AND(#REF!,\"HTc+jB2lEmw=\")","v":{"$error":"#REF!"}},{"$f":"AND(#REF!,\"HTc+jB2lEm0=\")","v":{"$error":"#REF!"}},{"$f":"AND(#REF!,\"HTc+jB2lEm4=\")","v":{"$error":"#REF!"}},{"$f":"AND(#REF!,\"HTc+jB2lEm8=\")","v":{"$error":"#REF!"}},{"$f":"AND(#REF!,\"HTc+jB2lEnA=\")","v":{"$error":"#REF!"}},{"$f":"AND(#REF!,\"HTc+jB2lEnE=\")","v":{"$error":"#REF!"}},{"$f":"AND(#REF!,\"HTc+jB2lEnI=\")","v":{"$error":"#REF!"}},{"$f":"AND(#REF!,\"HTc+jB2lEnM=\")","v":{"$error":"#REF!"}},{"$f":"AND(#REF!,\"HTc+jB2lEnQ=\")","v":{"$error":"#REF!"}},{"$f":"AND(#REF!,\"HTc+jB2lEnU=\")","v":{"$error":"#REF!"}},{"$f":"AND(#REF!,\"HTc+jB2lEnY=\")","v":{"$error":"#REF!"}},{"$f":"AND(#REF!,\"HTc+jB2lEnc=\")","v":{"$error":"#REF!"}},{"$f":"AND(#REF!,\"HTc+jB2lEng=\")","v":{"$error":"#REF!"}},{"$f":"AND(#REF!,\"HTc+jB2lEnk=\")","v":{"$error":"#REF!"}},{"$f":"AND(#REF!,\"HTc+jB2lEno=\")","v":{"$error":"#REF!"}},{"$f":"AND(#REF!,\"HTc+jB2lEns=\")","v":{"$error":"#REF!"}},{"$f":"AND(#REF!,\"HTc+jB2lEnw=\")","v":{"$error":"#REF!"}},{"$f":"AND(#REF!,\"HTc+jB2lEn0=\")","v":{"$error":"#REF!"}},{"$f":"AND(#REF!,\"HTc+jB2lEn4=\")","v":{"$error":"#REF!"}},{"$f":"AND(#REF!,\"HTc+jB2lEn8=\")","v":{"$error":"#REF!"}},{"$f":"AND(#REF!,\"HTc+jB2lEoA=\")","v":{"$error":"#REF!"}},{"$f":"AND(#REF!,\"HTc+jB2lEoE=\")","v":{"$error":"#REF!"}},{"$f":"AND(#REF!,\"HTc+jB2lEoI=\")","v":{"$error":"#REF!"}},{"$f":"AND(#REF!,\"HTc+jB2lEoM=\")","v":{"$error":"#REF!"}},{"$f":"AND(#REF!,\"HTc+jB2lEoQ=\")","v":{"$error":"#REF!"}},{"$f":"AND(#REF!,\"HTc+jB2lEoU=\")","v":{"$error":"#REF!"}},{"$f":"AND(#REF!,\"HTc+jB2lEoY=\")","v":{"$error":"#REF!"}},{"$f":"IF(#REF!,\"HTc+jB2lEoc=\",0)","v":{"$error":"#REF!"}},{"$f":"AND(#REF!,\"HTc+jB2lEog=\")","v":{"$error":"#REF!"}},{"$f":"AND(#REF!,\"HTc+jB2lEok=\")","v":{"$error":"#REF!"}},{"$f":"AND(#REF!,\"HTc+jB2lEoo=\")","v":{"$error":"#REF!"}},{"$f":"AND(#REF!,\"HTc+jB2lEos=\")","v":{"$error":"#REF!"}},{"$f":"AND(#REF!,\"HTc+jB2lEow=\")","v":{"$error":"#REF!"}},{"$f":"AND(#REF!,\"HTc+jB2lEo0=\")","v":{"$error":"#REF!"}},{"$f":"AND(#REF!,\"HTc+jB2lEo4=\")","v":{"$error":"#REF!"}},{"$f":"AND(#REF!,\"HTc+jB2lEo8=\")","v":{"$error":"#REF!"}},{"$f":"AND(#REF!,\"HTc+jB2lEpA=\")","v":{"$error":"#REF!"}},{"$f":"AND(#REF!,\"HTc+jB2lEpE=\")","v":{"$error":"#REF!"}},{"$f":"AND(#REF!,\"HTc+jB2lEpI=\")","v":{"$error":"#REF!"}},{"$f":"AND(#REF!,\"HTc+jB2lEpM=\")","v":{"$error":"#REF!"}},{"$f":"AND(#REF!,\"HTc+jB2lEpQ=\")","v":{"$error":"#REF!"}},{"$f":"AND(#REF!,\"HTc+jB2lEpU=\")","v":{"$error":"#REF!"}},{"$f":"AND(#REF!,\"HTc+jB2lEpY=\")","v":{"$error":"#REF!"}},{"$f":"AND(#REF!,\"HTc+jB2lEpc=\")","v":{"$error":"#REF!"}},{"$f":"AND(#REF!,\"HTc+jB2lEpg=\")","v":{"$error":"#REF!"}},{"$f":"AND(#REF!,\"HTc+jB2lEpk=\")","v":{"$error":"#REF!"}},{"$f":"AND(#REF!,\"HTc+jB2lEpo=\")","v":{"$error":"#REF!"}},{"$f":"AND(#REF!,\"HTc+jB2lEps=\")","v":{"$error":"#REF!"}},{"$f":"AND(#REF!,\"HTc+jB2lEpw=\")","v":{"$error":"#REF!"}},{"$f":"AND(#REF!,\"HTc+jB2lEp0=\")","v":{"$error":"#REF!"}},{"$f":"AND(#REF!,\"HTc+jB2lEp4=\")","v":{"$error":"#REF!"}},{"$f":"AND(#REF!,\"HTc+jB2lEp8=\")","v":{"$error":"#REF!"}},{"$f":"AND(#REF!,\"HTc+jB2lEqA=\")","v":{"$error":"#REF!"}},{"$f":"AND(#REF!,\"HTc+jB2lEqE=\")","v":{"$error":"#REF!"}},{"$f":"AND(#REF!,\"HTc+jB2lEqI=\")","v":{"$error":"#REF!"}},{"$f":"AND(#REF!,\"HTc+jB2lEqM=\")","v":{"$error":"#REF!"}},{"$f":"AND(#REF!,\"HTc+jB2lEqQ=\")","v":{"$error":"#REF!"}},{"$f":"AND(#REF!,\"HTc+jB2lEqU=\")","v":{"$error":"#REF!"}},{"$f":"AND(#REF!,\"HTc+jB2lEqY=\")","v":{"$error":"#REF!"}},{"$f":"AND(#REF!,\"HTc+jB2lEqc=\")","v":{"$error":"#REF!"}},{"$f":"AND(#REF!,\"HTc+jB2lEqg=\")","v":{"$error":"#REF!"}},{"$f":"AND(#REF!,\"HTc+jB2lEqk=\")","v":{"$error":"#REF!"}},{"$f":"AND(#REF!,\"HTc+jB2lEqo=\")","v":{"$error":"#REF!"}},{"$f":"AND(#REF!,\"HTc+jB2lEqs=\")","v":{"$error":"#REF!"}},{"$f":"AND(#REF!,\"HTc+jB2lEqw=\")","v":{"$error":"#REF!"}},{"$f":"AND(#REF!,\"HTc+jB2lEq0=\")","v":{"$error":"#REF!"}},{"$f":"AND(#REF!,\"HTc+jB2lEq4=\")","v":{"$error":"#REF!"}},{"$f":"AND(#REF!,\"HTc+jB2lEq8=\")","v":{"$error":"#REF!"}},{"$f":"AND(#REF!,\"HTc+jB2lErA=\")","v":{"$error":"#REF!"}},{"$f":"AND(#REF!,\"HTc+jB2lErE=\")","v":{"$error":"#REF!"}},{"$f":"AND(#REF!,\"HTc+jB2lErI=\")","v":{"$error":"#REF!"}},{"$f":"AND(#REF!,\"HTc+jB2lErM=\")","v":{"$error":"#REF!"}},{"$f":"AND(#REF!,\"HTc+jB2lErQ=\")","v":{"$error":"#REF!"}},{"$f":"AND(#REF!,\"HTc+jB2lErU=\")","v":{"$error":"#REF!"}},{"$f":"AND(#REF!,\"HTc+jB2lErY=\")","v":{"$error":"#REF!"}},{"$f":"AND(#REF!,\"HTc+jB2lErc=\")","v":{"$error":"#REF!"}},{"$f":"AND(#REF!,\"HTc+jB2lErg=\")","v":{"$error":"#REF!"}},{"$f":"AND(#REF!,\"HTc+jB2lErk=\")","v":{"$error":"#REF!"}},{"$f":"AND(#REF!,\"HTc+jB2lEro=\")","v":{"$error":"#REF!"}},{"$f":"AND(#REF!,\"HTc+jB2lErs=\")","v":{"$error":"#REF!"}},{"$f":"AND(#REF!,\"HTc+jB2lErw=\")","v":{"$error":"#REF!"}},{"$f":"AND(#REF!,\"HTc+jB2lEr0=\")","v":{"$error":"#REF!"}},{"$f":"AND(#REF!,\"HTc+jB2lEr4=\")","v":{"$error":"#REF!"}},{"$f":"AND(#REF!,\"HTc+jB2lEr8=\")","v":{"$error":"#REF!"}},{"$f":"AND(#REF!,\"HTc+jB2lEsA=\")","v":{"$error":"#REF!"}},{"$f":"AND(#REF!,\"HTc+jB2lEsE=\")","v":{"$error":"#REF!"}},{"$f":"AND(#REF!,\"HTc+jB2lEsI=\")","v":{"$error":"#REF!"}},{"$f":"AND(#REF!,\"HTc+jB2lEsM=\")","v":{"$error":"#REF!"}},{"$f":"AND(#REF!,\"HTc+jB2lEsQ=\")","v":{"$error":"#REF!"}},{"$f":"AND(#REF!,\"HTc+jB2lEsU=\")","v":{"$error":"#REF!"}},{"$f":"AND(#REF!,\"HTc+jB2lEsY=\")","v":{"$error":"#REF!"}},{"$f":"AND(#REF!,\"HTc+jB2lEsc=\")","v":{"$error":"#REF!"}},{"$f":"AND(#REF!,\"HTc+jB2lEsg=\")","v":{"$error":"#REF!"}},{"$f":"AND(#REF!,\"HTc+jB2lEsk=\")","v":{"$error":"#REF!"}},{"$f":"AND(#REF!,\"HTc+jB2lEso=\")","v":{"$error":"#REF!"}},{"$f":"AND(#REF!,\"HTc+jB2lEss=\")","v":{"$error":"#REF!"}},{"$f":"AND(#REF!,\"HTc+jB2lEsw=\")","v":{"$error":"#REF!"}},{"$f":"AND(#REF!,\"HTc+jB2lEs0=\")","v":{"$error":"#REF!"}},{"$f":"AND(#REF!,\"HTc+jB2lEs4=\")","v":{"$error":"#REF!"}},{"$f":"AND(#REF!,\"HTc+jB2lEs8=\")","v":{"$error":"#REF!"}},{"$f":"AND(#REF!,\"HTc+jB2lEtA=\")","v":{"$error":"#REF!"}},{"$f":"AND(#REF!,\"HTc+jB2lEtE=\")","v":{"$error":"#REF!"}},{"$f":"AND(#REF!,\"HTc+jB2lEtI=\")","v":{"$error":"#REF!"}},{"$f":"AND(#REF!,\"HTc+jB2lEtM=\")","v":{"$error":"#REF!"}},{"$f":"AND(#REF!,\"HTc+jB2lEtQ=\")","v":{"$error":"#REF!"}},{"$f":"AND(#REF!,\"HTc+jB2lEtU=\")","v":{"$error":"#REF!"}},{"$f":"AND(#REF!,\"HTc+jB2lEtY=\")","v":{"$error":"#REF!"}},{"$f":"AND(#REF!,\"HTc+jB2lEtc=\")","v":{"$error":"#REF!"}},{"$f":"AND(#REF!,\"HTc+jB2lEtg=\")","v":{"$error":"#REF!"}},{"$f":"AND(#REF!,\"HTc+jB2lEtk=\")","v":{"$error":"#REF!"}},{"$f":"AND(#REF!,\"HTc+jB2lEto=\")","v":{"$error":"#REF!"}},{"$f":"AND(#REF!,\"HTc+jB2lEts=\")","v":{"$error":"#REF!"}},{"$f":"AND(#REF!,\"HTc+jB2lEtw=\")","v":{"$error":"#REF!"}},{"$f":"AND(#REF!,\"HTc+jB2lEt0=\")","v":{"$error":"#REF!"}},{"$f":"AND(#REF!,\"HTc+jB2lEt4=\")","v":{"$error":"#REF!"}},{"$f":"AND(#REF!,\"HTc+jB2lEt8=\")","v":{"$error":"#REF!"}},{"$f":"AND(#REF!,\"HTc+jB2lEuA=\")","v":{"$error":"#REF!"}},{"$f":"AND(#REF!,\"HTc+jB2lEuE=\")","v":{"$error":"#REF!"}},{"$f":"AND(#REF!,\"HTc+jB2lEuI=\")","v":{"$error":"#REF!"}},{"$f":"AND(#REF!,\"HTc+jB2lEuM=\")","v":{"$error":"#REF!"}},{"$f":"AND(#REF!,\"HTc+jB2lEuQ=\")","v":{"$error":"#REF!"}},{"$f":"AND(#REF!,\"HTc+jB2lEuU=\")","v":{"$error":"#REF!"}},{"$f":"AND(#REF!,\"HTc+jB2lEuY=\")","v":{"$error":"#REF!"}},{"$f":"AND(#REF!,\"HTc+jB2lEuc=\")","v":{"$error":"#REF!"}},{"$f":"AND(#REF!,\"HTc+jB2lEug=\")","v":{"$error":"#REF!"}},{"$f":"AND(#REF!,\"HTc+jB2lEuk=\")","v":{"$error":"#REF!"}},{"$f":"AND(#REF!,\"HTc+jB2lEuo=\")","v":{"$error":"#REF!"}},{"$f":"AND(#REF!,\"HTc+jB2lEus=\")","v":{"$error":"#REF!"}},{"$f":"AND(#REF!,\"HTc+jB2lEuw=\")","v":{"$error":"#REF!"}},{"$f":"AND(#REF!,\"HTc+jB2lEu0=\")","v":{"$error":"#REF!"}},{"$f":"AND(#REF!,\"HTc+jB2lEu4=\")","v":{"$error":"#REF!"}},{"$f":"AND(#REF!,\"HTc+jB2lEu8=\")","v":{"$error":"#REF!"}},{"$f":"AND(#REF!,\"HTc+jB2lEvA=\")","v":{"$error":"#REF!"}},{"$f":"AND(#REF!,\"HTc+jB2lEvE=\")","v":{"$error":"#REF!"}},{"$f":"AND(#REF!,\"HTc+jB2lEvI=\")","v":{"$error":"#REF!"}},{"$f":"AND(#REF!,\"HTc+jB2lEvM=\")","v":{"$error":"#REF!"}},{"$f":"AND(#REF!,\"HTc+jB2lEvQ=\")","v":{"$error":"#REF!"}},{"$f":"AND(#REF!,\"HTc+jB2lEvU=\")","v":{"$error":"#REF!"}},{"$f":"AND(#REF!,\"HTc+jB2lEvY=\")","v":{"$error":"#REF!"}},{"$f":"AND(#REF!,\"HTc+jB2lEvc=\")","v":{"$error":"#REF!"}},{"$f":"AND(#REF!,\"HTc+jB2lEvg=\")","v":{"$error":"#REF!"}},{"$f":"AND(#REF!,\"HTc+jB2lEvk=\")","v":{"$error":"#REF!"}},{"$f":"AND(#REF!,\"HTc+jB2lEvo=\")","v":{"$error":"#REF!"}},{"$f":"AND(#REF!,\"HTc+jB2lEvs=\")","v":{"$error":"#REF!"}},{"$f":"AND(#REF!,\"HTc+jB2lEvw=\")","v":{"$error":"#REF!"}},{"$f":"AND(#REF!,\"HTc+jB2lEv0=\")","v":{"$error":"#REF!"}},{"$f":"AND(#REF!,\"HTc+jB2lEv4=\")","v":{"$error":"#REF!"}},{"$f":"AND(#REF!,\"HTc+jB2lEv8=\")","v":{"$error":"#REF!"}}]
[{"$f":"AND(#REF!,\"IXHqEnWH1wA=\")","v":{"$error":"#REF!"}},{"$f":"AND(#REF!,\"IXHqEnWH1wE=\")","v":{"$error":"#REF!"}},{"$f":"AND(#REF!,\"IXHqEnWH1wI=\")","v":{"$error":"#REF!"}},{"$f":"AND(#REF!,\"IXHqEnWH1wM=\")","v":{"$error":"#REF!"}},{"$f":"AND(#REF!,\"IXHqEnWH1wQ=\")","v":{"$error":"#REF!"}},{"$f":"AND(#REF!,\"IXHqEnWH1wU=\")","v":{"$error":"#REF!"}},{"$f":"AND(#REF!,\"IXHqEnWH1wY=\")","v":{"$error":"#REF!"}},{"$f":"AND(#REF!,\"IXHqEnWH1wc=\")","v":{"$error":"#REF!"}},{"$f":"AND(#REF!,\"IXHqEnWH1wg=\")","v":{"$error":"#REF!"}},{"$f":"AND(#REF!,\"IXHqEnWH1wk=\")","v":{"$error":"#REF!"}},{"$f":"AND(#REF!,\"IXHqEnWH1wo=\")","v":{"$error":"#REF!"}},{"$f":"AND(#REF!,\"IXHqEnWH1ws=\")","v":{"$error":"#REF!"}},{"$f":"AND(#REF!,\"IXHqEnWH1ww=\")","v":{"$error":"#REF!"}},{"$f":"AND(#REF!,\"IXHqEnWH1w0=\")","v":{"$error":"#REF!"}},{"$f":"AND(#REF!,\"IXHqEnWH1w4=\")","v":{"$error":"#REF!"}},{"$f":"AND(#REF!,\"IXHqEnWH1w8=\")","v":{"$error":"#REF!"}},{"$f":"AND(#REF!,\"IXHqEnWH1xA=\")","v":{"$error":"#REF!"}},{"$f":"AND(#REF!,\"IXHqEnWH1xE=\")","v":{"$error":"#REF!"}},{"$f":"AND(#REF!,\"IXHqEnWH1xI=\")","v":{"$error":"#REF!"}},{"$f":"AND(#REF!,\"IXHqEnWH1xM=\")","v":{"$error":"#REF!"}},{"$f":"AND(#REF!,\"IXHqEnWH1xQ=\")","v":{"$error":"#REF!"}},{"$f":"AND(#REF!,\"IXHqEnWH1xU=\")","v":{"$error":"#REF!"}},{"$f":"AND(#REF!,\"IXHqEnWH1xY=\")","v":{"$error":"#REF!"}},{"$f":"AND(#REF!,\"IXHqEnWH1xc=\")","v":{"$error":"#REF!"}},{"$f":"AND(#REF!,\"IXHqEnWH1xg=\")","v":{"$error":"#REF!"}},{"$f":"AND(#REF!,\"IXHqEnWH1xk=\")","v":{"$error":"#REF!"}},{"$f":"AND(#REF!,\"IXHqEnWH1xo=\")","v":{"$error":"#REF!"}},{"$f":"AND(#REF!,\"IXHqEnWH1xs=\")","v":{"$error":"#REF!"}},{"$f":"AND(#REF!,\"IXHqEnWH1xw=\")","v":{"$error":"#REF!"}},{"$f":"AND(#REF!,\"IXHqEnWH1x0=\")","v":{"$error":"#REF!"}},{"$f":"AND(#REF!,\"IXHqEnWH1x4=\")","v":{"$error":"#REF!"}},{"$f":"AND(#REF!,\"IXHqEnWH1x8=\")","v":{"$error":"#REF!"}},{"$f":"AND(#REF!,\"IXHqEnWH1yA=\")","v":{"$error":"#REF!"}},{"$f":"AND(#REF!,\"IXHqEnWH1yE=\")","v":{"$error":"#REF!"}},{"$f":"AND(#REF!,\"IXHqEnWH1yI=\")","v":{"$error":"#REF!"}},{"$f":"AND(#REF!,\"IXHqEnWH1yM=\")","v":{"$error":"#REF!"}},{"$f":"AND(#REF!,\"IXHqEnWH1yQ=\")","v":{"$error":"#REF!"}},{"$f":"AND(#REF!,\"IXHqEnWH1yU=\")","v":{"$error":"#REF!"}},{"$f":"AND(#REF!,\"IXHqEnWH1yY=\")","v":{"$error":"#REF!"}},{"$f":"AND(#REF!,\"IXHqEnWH1yc=\")","v":{"$error":"#REF!"}},{"$f":"AND(#REF!,\"IXHqEnWH1yg=\")","v":{"$error":"#REF!"}},{"$f":"AND(#REF!,\"IXHqEnWH1yk=\")","v":{"$error":"#REF!"}},{"$f":"AND(#REF!,\"IXHqEnWH1yo=\")","v":{"$error":"#REF!"}},{"$f":"AND(#REF!,\"IXHqEnWH1ys=\")","v":{"$error":"#REF!"}},{"$f":"AND(#REF!,\"IXHqEnWH1yw=\")","v":{"$error":"#REF!"}},{"$f":"AND(#REF!,\"IXHqEnWH1y0=\")","v":{"$error":"#REF!"}},{"$f":"AND(#REF!,\"IXHqEnWH1y4=\")","v":{"$error":"#REF!"}},{"$f":"AND(#REF!,\"IXHqEnWH1y8=\")","v":{"$error":"#REF!"}},{"$f":"AND(#REF!,\"IXHqEnWH1zA=\")","v":{"$error":"#REF!"}},{"$f":"AND(#REF!,\"IXHqEnWH1zE=\")","v":{"$error":"#REF!"}},{"$f":"AND(#REF!,\"IXHqEnWH1zI=\")","v":{"$error":"#REF!"}},{"$f":"AND(#REF!,\"IXHqEnWH1zM=\")","v":{"$error":"#REF!"}},{"$f":"AND(#REF!,\"IXHqEnWH1zQ=\")","v":{"$error":"#REF!"}},{"$f":"AND(#REF!,\"IXHqEnWH1zU=\")","v":{"$error":"#REF!"}},{"$f":"AND(#REF!,\"IXHqEnWH1zY=\")","v":{"$error":"#REF!"}},{"$f":"AND(#REF!,\"IXHqEnWH1zc=\")","v":{"$error":"#REF!"}},{"$f":"AND(#REF!,\"IXHqEnWH1zg=\")","v":{"$error":"#REF!"}},{"$f":"AND(#REF!,\"IXHqEnWH1zk=\")","v":{"$error":"#REF!"}},{"$f":"AND(#REF!,\"IXHqEnWH1zo=\")","v":{"$error":"#REF!"}},{"$f":"AND(#REF!,\"IXHqEnWH1zs=\")","v":{"$error":"#REF!"}},{"$f":"AND(#REF!,\"IXHqEnWH1zw=\")","v":{"$error":"#REF!"}},{"$f":"AND(#REF!,\"IXHqEnWH1z0=\")","v":{"$error":"#REF!"}},{"$f":"AND(#REF!,\"IXHqEnWH1z4=\")","v":{"$error":"#REF!"}},{"$f":"AND(#REF!,\"IXHqEnWH1z8=\")","v":{"$error":"#REF!"}},{"$f":"AND(#REF!,\"IXHqEnWH10A=\")","v":{"$error":"#REF!"}},{"$f":"AND(#REF!,\"IXHqEnWH10E=\")","v":{"$error":"#REF!"}},{"$f":"AND(#REF!,\"IXHqEnWH10I=\")","v":{"$error":"#REF!"}},{"$f":"AND(#REF!,\"IXHqEnWH10M=\")","v":{"$error":"#REF!"}},{"$f":"AND(#REF!,\"IXHqEnWH10Q=\")","v":{"$error":"#REF!"}},{"$f":"AND(#REF!,\"IXHqEnWH10U=\")","v":{"$error":"#REF!"}},{"$f":"AND(#REF!,\"IXHqEnWH10Y=\")","v":{"$error":"#REF!"}},{"$f":"AND(#REF!,\"IXHqEnWH10c=\")","v":{"$error":"#REF!"}},{"$f":"AND(#REF!,\"IXHqEnWH10g=\")","v":{"$error":"#REF!"}},{"$f":"AND(#REF!,\"IXHqEnWH10k=\")","v":{"$error":"#REF!"}},{"$f":"AND(#REF!,\"IXHqEnWH10o=\")","v":{"$error":"#REF!"}},{"$f":"AND(#REF!,\"IXHqEnWH10s=\")","v":{"$error":"#REF!"}},{"$f":"AND(#REF!,\"IXHqEnWH10w=\")","v":{"$error":"#REF!"}},{"$f":"AND(#REF!,\"IXHqEnWH100=\")","v":{"$error":"#REF!"}},{"$f":"IF(#REF!,\"IXHqEnWH104=\",0)","v":{"$error":"#REF!"}},{"$f":"AND(#REF!,\"IXHqEnWH108=\")","v":{"$error":"#REF!"}},{"$f":"AND(#REF!,\"IXHqEnWH11A=\")","v":{"$error":"#REF!"}},{"$f":"AND(#REF!,\"IXHqEnWH11E=\")","v":{"$error":"#REF!"}},{"$f":"AND(#REF!,\"IXHqEnWH11I=\")","v":{"$error":"#REF!"}},{"$f":"AND(#REF!,\"IXHqEnWH11M=\")","v":{"$error":"#REF!"}},{"$f":"AND(#REF!,\"IXHqEnWH11Q=\")","v":{"$error":"#REF!"}},{"$f":"AND(#REF!,\"IXHqEnWH11U=\")","v":{"$error":"#REF!"}},{"$f":"AND(#REF!,\"IXHqEnWH11Y=\")","v":{"$error":"#REF!"}},{"$f":"AND(#REF!,\"IXHqEnWH11c=\")","v":{"$error":"#REF!"}},{"$f":"AND(#REF!,\"IXHqEnWH11g=\")","v":{"$error":"#REF!"}},{"$f":"AND(#REF!,\"IXHqEnWH11k=\")","v":{"$error":"#REF!"}},{"$f":"AND(#REF!,\"IXHqEnWH11o=\")","v":{"$error":"#REF!"}},{"$f":"AND(#REF!,\"IXHqEnWH11s=\")","v":{"$error":"#REF!"}},{"$f":"AND(#REF!,\"IXHqEnWH11w=\")","v":{"$error":"#REF!"}},{"$f":"AND(#REF!,\"IXHqEnWH110=\")","v":{"$error":"#REF!"}},{"$f":"AND(#REF!,\"IXHqEnWH114=\")","v":{"$error":"#REF!"}},{"$f":"AND(#REF!,\"IXHqEnWH118=\")","v":{"$error":"#REF!"}},{"$f":"AND(#REF!,\"IXHqEnWH12A=\")","v":{"$error":"#REF!"}},{"$f":"AND(#REF!,\"IXHqEnWH12E=\")","v":{"$error":"#REF!"}},{"$f":"AND(#REF!,\"IXHqEnWH12I=\")","v":{"$error":"#REF!"}},{"$f":"AND(#REF!,\"IXHqEnWH12M=\")","v":{"$error":"#REF!"}},{"$f":"AND(#REF!,\"IXHqEnWH12Q=\")","v":{"$error":"#REF!"}},{"$f":"AND(#REF!,\"IXHqEnWH12U=\")","v":{"$error":"#REF!"}},{"$f":"AND(#REF!,\"IXHqEnWH12Y=\")","v":{"$error":"#REF!"}},{"$f":"AND(#REF!,\"IXHqEnWH12c=\")","v":{"$error":"#REF!"}},{"$f":"AND(#REF!,\"IXHqEnWH12g=\")","v":{"$error":"#REF!"}},{"$f":"AND(#REF!,\"IXHqEnWH12k=\")","v":{"$error":"#REF!"}},{"$f":"AND(#REF!,\"IXHqEnWH12o=\")","v":{"$error":"#REF!"}},{"$f":"AND(#REF!,\"IXHqEnWH12s=\")","v":{"$error":"#REF!"}},{"$f":"AND(#REF!,\"IXHqEnWH12w=\")","v":{"$error":"#REF!"}},{"$f":"AND(#REF!,\"IXHqEnWH120=\")","v":{"$error":"#REF!"}},{"$f":"AND(#REF!,\"IXHqEnWH124=\")","v":{"$error":"#REF!"}},{"$f":"AND(#REF!,\"IXHqEnWH128=\")","v":{"$error":"#REF!"}},{"$f":"AND(#REF!,\"IXHqEnWH13A=\")","v":{"$error":"#REF!"}},{"$f":"AND(#REF!,\"IXHqEnWH13E=\")","v":{"$error":"#REF!"}},{"$f":"AND(#REF!,\"IXHqEnWH13I=\")","v":{"$error":"#REF!"}},{"$f":"AND(#REF!,\"IXHqEnWH13M=\")","v":{"$error":"#REF!"}},{"$f":"AND(#REF!,\"IXHqEnWH13Q=\")","v":{"$error":"#REF!"}},{"$f":"AND(#REF!,\"IXHqEnWH13U=\")","v":{"$error":"#REF!"}},{"$f":"AND(#REF!,\"IXHqEnWH13Y=\")","v":{"$error":"#REF!"}},{"$f":"AND(#REF!,\"IXHqEnWH13c=\")","v":{"$error":"#REF!"}},{"$f":"AND(#REF!,\"IXHqEnWH13g=\")","v":{"$error":"#REF!"}},{"$f":"AND(#REF!,\"IXHqEnWH13k=\")","v":{"$error":"#REF!"}},{"$f":"AND(#REF!,\"IXHqEnWH13o=\")","v":{"$error":"#REF!"}},{"$f":"AND(#REF!,\"IXHqEnWH13s=\")","v":{"$error":"#REF!"}},{"$f":"AND(#REF!,\"IXHqEnWH13w=\")","v":{"$error":"#REF!"}},{"$f":"AND(#REF!,\"IXHqEnWH130=\")","v":{"$error":"#REF!"}},{"$f":"AND(#REF!,\"IXHqEnWH134=\")","v":{"$error":"#REF!"}},{"$f":"AND(#REF!,\"IXHqEnWH138=\")","v":{"$error":"#REF!"}},{"$f":"AND(#REF!,\"IXHqEnWH14A=\")","v":{"$error":"#REF!"}},{"$f":"AND(#REF!,\"IXHqEnWH14E=\")","v":{"$error":"#REF!"}},{"$f":"AND(#REF!,\"IXHqEnWH14I=\")","v":{"$error":"#REF!"}},{"$f":"AND(#REF!,\"IXHqEnWH14M=\")","v":{"$error":"#REF!"}},{"$f":"AND(#REF!,\"IXHqEnWH14Q=\")","v":{"$error":"#REF!"}},{"$f":"AND(#REF!,\"IXHqEnWH14U=\")","v":{"$error":"#REF!"}},{"$f":"AND(#REF!,\"IXHqEnWH14Y=\")","v":{"$error":"#REF!"}},{"$f":"AND(#REF!,\"IXHqEnWH14c=\")","v":{"$error":"#REF!"}},{"$f":"AND(#REF!,\"IXHqEnWH14g=\")","v":{"$error":"#REF!"}},{"$f":"AND(#REF!,\"IXHqEnWH14k=\")","v":{"$error":"#REF!"}},{"$f":"AND(#REF!,\"IXHqEnWH14o=\")","v":{"$error":"#REF!"}},{"$f":"AND(#REF!,\"IXHqEnWH14s=\")","v":{"$error":"#REF!"}},{"$f":"AND(#REF!,\"IXHqEnWH14w=\")","v":{"$error":"#REF!"}},{"$f":"AND(#REF!,\"IXHqEnWH140=\")","v":{"$error":"#REF!"}},{"$f":"AND(#REF!,\"IXHqEnWH144=\")","v":{"$error":"#REF!"}},{"$f":"AND(#REF!,\"IXHqEnWH148=\")","v":{"$error":"#REF!"}},{"$f":"AND(#REF!,\"IXHqEnWH15A=\")","v":{"$error":"#REF!"}},{"$f":"AND(#REF!,\"IXHqEnWH15E=\")","v":{"$error":"#REF!"}},{"$f":"AND(#REF!,\"IXHqEnWH15I=\")","v":{"$error":"#REF!"}},{"$f":"AND(#REF!,\"IXHqEnWH15M=\")","v":{"$error":"#REF!"}},{"$f":"AND(#REF!,\"IXHqEnWH15Q=\")","v":{"$error":"#REF!"}},{"$f":"AND(#REF!,\"IXHqEnWH15U=\")","v":{"$error":"#REF!"}},{"$f":"AND(#REF!,\"IXHqEnWH15Y=\")","v":{"$error":"#REF!"}},{"$f":"AND(#REF!,\"IXHqEnWH15c=\")","v":{"$error":"#REF!"}},{"$f":"AND(#REF!,\"IXHqEnWH15g=\")","v":{"$error":"#REF!"}},{"$f":"AND(#REF!,\"IXHqEnWH15k=\")","v":{"$error":"#REF!"}},{"$f":"AND(#REF!,\"IXHqEnWH15o=\")","v":{"$error":"#REF!"}},{"$f":"AND(#REF!,\"IXHqEnWH15s=\")","v":{"$error":"#REF!"}},{"$f":"AND(#REF!,\"IXHqEnWH15w=\")","v":{"$error":"#REF!"}},{"$f":"AND(#REF!,\"IXHqEnWH150=\")","v":{"$error":"#REF!"}},{"$f":"AND(#REF!,\"IXHqEnWH154=\")","v":{"$error":"#REF!"}},{"$f":"AND(#REF!,\"IXHqEnWH158=\")","v":{"$error":"#REF!"}},{"$f":"AND(#REF!,\"IXHqEnWH16A=\")","v":{"$error":"#REF!"}},{"$f":"AND(#REF!,\"IXHqEnWH16E=\")","v":{"$error":"#REF!"}},{"$f":"AND(#REF!,\"IXHqEnWH16I=\")","v":{"$error":"#REF!"}},{"$f":"AND(#REF!,\"IXHqEnWH16M=\")","v":{"$error":"#REF!"}},{"$f":"AND(#REF!,\"IXHqEnWH16Q=\")","v":{"$error":"#REF!"}},{"$f":"AND(#REF!,\"IXHqEnWH16U=\")","v":{"$error":"#REF!"}},{"$f":"AND(#REF!,\"IXHqEnWH16Y=\")","v":{"$error":"#REF!"}},{"$f":"AND(#REF!,\"IXHqEnWH16c=\")","v":{"$error":"#REF!"}},{"$f":"AND(#REF!,\"IXHqEnWH16g=\")","v":{"$error":"#REF!"}},{"$f":"AND(#REF!,\"IXHqEnWH16k=\")","v":{"$error":"#REF!"}},{"$f":"AND(#REF!,\"IXHqEnWH16o=\")","v":{"$error":"#REF!"}},{"$f":"AND(#REF!,\"IXHqEnWH16s=\")","v":{"$error":"#REF!"}},{"$f":"AND(#REF!,\"IXHqEnWH16w=\")","v":{"$error":"#REF!"}},{"$f":"AND(#REF!,\"IXHqEnWH160=\")","v":{"$error":"#REF!"}},{"$f":"AND(#REF!,\"IXHqEnWH164=\")","v":{"$error":"#REF!"}},{"$f":"AND(#REF!,\"IXHqEnWH168=\")","v":{"$error":"#REF!"}},{"$f":"AND(#REF!,\"IXHqEnWH17A=\")","v":{"$error":"#REF!"}},{"$f":"AND(#REF!,\"IXHqEnWH17E=\")","v":{"$error":"#REF!"}},{"$f":"AND(#REF!,\"IXHqEnWH17I=\")","v":{"$error":"#REF!"}},{"$f":"AND(#REF!,\"IXHqEnWH17M=\")","v":{"$error":"#REF!"}},{"$f":"AND(#REF!,\"IXHqEnWH17Q=\")","v":{"$error":"#REF!"}},{"$f":"AND(#REF!,\"IXHqEnWH17U=\")","v":{"$error":"#REF!"}},{"$f":"AND(#REF!,\"IXHqEnWH17Y=\")","v":{"$error":"#REF!"}},{"$f":"AND(#REF!,\"IXHqEnWH17c=\")","v":{"$error":"#REF!"}},{"$f":"AND(#REF!,\"IXHqEnWH17g=\")","v":{"$error":"#REF!"}},{"$f":"AND(#REF!,\"IXHqEnWH17k=\")","v":{"$error":"#REF!"}},{"$f":"AND(#REF!,\"IXHqEnWH17o=\")","v":{"$error":"#REF!"}},{"$f":"AND(#REF!,\"IXHqEnWH17s=\")","v":{"$error":"#REF!"}},{"$f":"AND(#REF!,\"IXHqEnWH17w=\")","v":{"$error":"#REF!"}},{"$f":"AND(#REF!,\"IXHqEnWH170=\")","v":{"$error":"#REF!"}},{"$f":"AND(#REF!,\"IXHqEnWH174=\")","v":{"$error":"#REF!"}},{"$f":"AND(#REF!,\"IXHqEnWH178=\")","v":{"$error":"#REF!"}},{"$f":"AND(#REF!,\"IXHqEnWH18A=\")","v":{"$error":"#REF!"}},{"$f":"AND(#REF!,\"IXHqEnWH18E=\")","v":{"$error":"#REF!"}},{"$f":"AND(#REF!,\"IXHqEnWH18I=\")","v":{"$error":"#REF!"}},{"$f":"AND(#REF!,\"IXHqEnWH18M=\")","v":{"$error":"#REF!"}},{"$f":"AND(#REF!,\"IXHqEnWH18Q=\")","v":{"$error":"#REF!"}},{"$f":"AND(#REF!,\"IXHqEnWH18U=\")","v":{"$error":"#REF!"}},{"$f":"AND(#REF!,\"IXHqEnWH18Y=\")","v":{"$error":"#REF!"}},{"$f":"AND(#REF!,\"IXHqEnWH18c=\")","v":{"$error":"#REF!"}},{"$f":"AND(#REF!,\"IXHqEnWH18g=\")","v":{"$error":"#REF!"}},{"$f":"AND(#REF!,\"IXHqEnWH18k=\")","v":{"$error":"#REF!"}},{"$f":"AND(#REF!,\"IXHqEnWH18o=\")","v":{"$error":"#REF!"}},{"$f":"AND(#REF!,\"IXHqEnWH18s=\")","v":{"$error":"#REF!"}},{"$f":"AND(#REF!,\"IXHqEnWH18w=\")","v":{"$error":"#REF!"}},{"$f":"AND(#REF!,\"IXHqEnWH180=\")","v":{"$error":"#REF!"}},{"$f":"AND(#REF!,\"IXHqEnWH184=\")","v":{"$error":"#REF!"}},{"$f":"AND(#REF!,\"IXHqEnWH188=\")","v":{"$error":"#REF!"}},{"$f":"AND(#REF!,\"IXHqEnWH19A=\")","v":{"$error":"#REF!"}},{"$f":"AND(#REF!,\"IXHqEnWH19E=\")","v":{"$error":"#REF!"}},{"$f":"AND(#REF!,\"IXHqEnWH19I=\")","v":{"$error":"#REF!"}},{"$f":"AND(#REF!,\"IXHqEnWH19M=\")","v":{"$error":"#REF!"}},{"$f":"AND(#REF!,\"IXHqEnWH19Q=\")","v":{"$error":"#REF!"}},{"$f":"AND(#REF!,\"IXHqEnWH19U=\")","v":{"$error":"#REF!"}},{"$f":"AND(#REF!,\"IXHqEnWH19Y=\")","v":{"$error":"#REF!"}},{"$f":"AND(#REF!,\"IXHqEnWH19c=\")","v":{"$error":"#REF!"}},{"$f":"AND(#REF!,\"IXHqEnWH19g=\")","v":{"$error":"#REF!"}},{"$f":"AND(#REF!,\"IXHqEnWH19k=\")","v":{"$error":"#REF!"}},{"$f":"AND(#REF!,\"IXHqEnWH19o=\")","v":{"$error":"#REF!"}},{"$f":"AND(#REF!,\"IXHqEnWH19s=\")","v":{"$error":"#REF!"}},{"$f":"AND(#REF!,\"IXHqEnWH19w=\")","v":{"$error":"#REF!"}},{"$f":"AND(#REF!,\"IXHqEnWH190=\")","v":{"$error":"#REF!"}},{"$f":"AND(#REF!,\"IXHqEnWH194=\")","v":{"$error":"#REF!"}},{"$f":"AND(#REF!,\"IXHqEnWH198=\")","v":{"$error":"#REF!"}},{"$f":"AND(#REF!,\"IXHqEnWH1+A=\")","v":{"$error":"#REF!"}},{"$f":"AND(#REF!,\"IXHqEnWH1+E=\")","v":{"$error":"#REF!"}},{"$f":"AND(#REF!,\"IXHqEnWH1+I=\")","v":{"$error":"#REF!"}},{"$f":"AND(#REF!,\"IXHqEnWH1+M=\")","v":{"$error":"#REF!"}},{"$f":"AND(#REF!,\"IXHqEnWH1+Q=\")","v":{"$error":"#REF!"}},{"$f":"AND(#REF!,\"IXHqEnWH1+U=\")","v":{"$error":"#REF!"}},{"$f":"AND(#REF!,\"IXHqEnWH1+Y=\")","v":{"$error":"#REF!"}},{"$f":"AND(#REF!,\"IXHqEnWH1+c=\")","v":{"$error":"#REF!"}},{"$f":"AND(#REF!,\"IXHqEnWH1+g=\")","v":{"$error":"#REF!"}},{"$f":"AND(#REF!,\"IXHqEnWH1+k=\")","v":{"$error":"#REF!"}},{"$f":"AND(#REF!,\"IXHqEnWH1+o=\")","v":{"$error":"#REF!"}},{"$f":"AND(#REF!,\"IXHqEnWH1+s=\")","v":{"$error":"#REF!"}},{"$f":"AND(#REF!,\"IXHqEnWH1+w=\")","v":{"$error":"#REF!"}},{"$f":"AND(#REF!,\"IXHqEnWH1+0=\")","v":{"$error":"#REF!"}},{"$f":"AND(#REF!,\"IXHqEnWH1+4=\")","v":{"$error":"#REF!"}},{"$f":"AND(#REF!,\"IXHqEnWH1+8=\")","v":{"$error":"#REF!"}},{"$f":"AND(#REF!,\"IXHqEnWH1/A=\")","v":{"$error":"#REF!"}},{"$f":"AND(#REF!,\"IXHqEnWH1/E=\")","v":{"$error":"#REF!"}},{"$f":"AND(#REF!,\"IXHqEnWH1/I=\")","v":{"$error":"#REF!"}},{"$f":"AND(#REF!,\"IXHqEnWH1/M=\")","v":{"$error":"#REF!"}},{"$f":"AND(#REF!,\"IXHqEnWH1/Q=\")","v":{"$error":"#REF!"}},{"$f":"AND(#REF!,\"IXHqEnWH1/U=\")","v":{"$error":"#REF!"}},{"$f":"AND(#REF!,\"IXHqEnWH1/Y=\")","v":{"$error":"#REF!"}},{"$f":"AND(#REF!,\"IXHqEnWH1/c=\")","v":{"$error":"#REF!"}},{"$f":"AND(#REF!,\"IXHqEnWH1/g=\")","v":{"$error":"#REF!"}},{"$f":"AND(#REF!,\"IXHqEnWH1/k=\")","v":{"$error":"#REF!"}},{"$f":"AND(#REF!,\"IXHqEnWH1/o=\")","v":{"$error":"#REF!"}},{"$f":"AND(#REF!,\"IXHqEnWH1/s=\")","v":{"$error":"#REF!"}},{"$f":"AND(#REF!,\"IXHqEnWH1/w=\")","v":{"$error":"#REF!"}},{"$f":"AND(#REF!,\"IXHqEnWH1/0=\")","v":{"$error":"#REF!"}},{"$f":"AND(#REF!,\"IXHqEnWH1/4=\")","v":{"$error":"#REF!"}},{"$f":"AND(#REF!,\"IXHqEnWH1/8=\")","v":{"$error":"#REF!"}}]
[{"$f":"AND(#REF!,\"CR8GkyjaagA=\")","v":{"$error":"#REF!"}},{"$f":"AND(#REF!,\"CR8GkyjaagE=\")","v":{"$error":"#REF!"}},{"$f":"AND(#REF!,\"CR8GkyjaagI=\")","v":{"$error":"#REF!"}},{"$f":"AND(#REF!,\"CR8GkyjaagM=\")","v":{"$error":"#REF!"}},{"$f":"AND(#REF!,\"CR8GkyjaagQ=\")","v":{"$error":"#REF!"}},{"$f":"AND(#REF!,\"CR8GkyjaagU=\")","v":{"$error":"#REF!"}},{"$f":"AND(#REF!,\"CR8GkyjaagY=\")","v":{"$error":"#REF!"}},{"$f":"AND(#REF!,\"CR8Gkyjaagc=\")","v":{"$error":"#REF!"}},{"$f":"AND(#REF!,\"CR8Gkyjaagg=\")","v":{"$error":"#REF!"}},{"$f":"AND(#REF!,\"CR8Gkyjaagk=\")","v":{"$error":"#REF!"}},{"$f":"AND(#REF!,\"CR8Gkyjaago=\")","v":{"$error":"#REF!"}},{"$f":"AND(#REF!,\"CR8Gkyjaags=\")","v":{"$error":"#REF!"}},{"$f":"AND(#REF!,\"CR8Gkyjaagw=\")","v":{"$error":"#REF!"}},{"$f":"AND(#REF!,\"CR8Gkyjaag0=\")","v":{"$error":"#REF!"}},{"$f":"AND(#REF!,\"CR8Gkyjaag4=\")","v":{"$error":"#REF!"}},{"$f":"AND(#REF!,\"CR8Gkyjaag8=\")","v":{"$error":"#REF!"}},{"$f":"AND(#REF!,\"CR8GkyjaahA=\")","v":{"$error":"#REF!"}},{"$f":"AND(#REF!,\"CR8GkyjaahE=\")","v":{"$error":"#REF!"}},{"$f":"AND(#REF!,\"CR8GkyjaahI=\")","v":{"$error":"#REF!"}},{"$f":"AND(#REF!,\"CR8GkyjaahM=\")","v":{"$error":"#REF!"}},{"$f":"AND(#REF!,\"CR8GkyjaahQ=\")","v":{"$error":"#REF!"}},{"$f":"IF(#REF!,\"CR8GkyjaahU=\",0)","v":{"$error":"#REF!"}},{"$f":"AND(#REF!,\"CR8GkyjaahY=\")","v":{"$error":"#REF!"}},{"$f":"AND(#REF!,\"CR8Gkyjaahc=\")","v":{"$error":"#REF!"}},{"$f":"AND(#REF!,\"CR8Gkyjaahg=\")","v":{"$error":"#REF!"}},{"$f":"AND(#REF!,\"CR8Gkyjaahk=\")","v":{"$error":"#REF!"}},{"$f":"AND(#REF!,\"CR8Gkyjaaho=\")","v":{"$error":"#REF!"}},{"$f":"AND(#REF!,\"CR8Gkyjaahs=\")","v":{"$error":"#REF!"}},{"$f":"AND(#REF!,\"CR8Gkyjaahw=\")","v":{"$error":"#REF!"}},{"$f":"AND(#REF!,\"CR8Gkyjaah0=\")","v":{"$error":"#REF!"}},{"$f":"AND(#REF!,\"CR8Gkyjaah4=\")","v":{"$error":"#REF!"}},{"$f":"AND(#REF!,\"CR8Gkyjaah8=\")","v":{"$error":"#REF!"}},{"$f":"AND(#REF!,\"CR8GkyjaaiA=\")","v":{"$error":"#REF!"}},{"$f":"AND(#REF!,\"CR8GkyjaaiE=\")","v":{"$error":"#REF!"}},{"$f":"AND(#REF!,\"CR8GkyjaaiI=\")","v":{"$error":"#REF!"}},{"$f":"AND(#REF!,\"CR8GkyjaaiM=\")","v":{"$error":"#REF!"}},{"$f":"AND(#REF!,\"CR8GkyjaaiQ=\")","v":{"$error":"#REF!"}},{"$f":"AND(#REF!,\"CR8GkyjaaiU=\")","v":{"$error":"#REF!"}},{"$f":"AND(#REF!,\"CR8GkyjaaiY=\")","v":{"$error":"#REF!"}},{"$f":"AND(#REF!,\"CR8Gkyjaaic=\")","v":{"$error":"#REF!"}},{"$f":"AND(#REF!,\"CR8Gkyjaaig=\")","v":{"$error":"#REF!"}},{"$f":"AND(#REF!,\"CR8Gkyjaaik=\")","v":{"$error":"#REF!"}},{"$f":"AND(#REF!,\"CR8Gkyjaaio=\")","v":{"$error":"#REF!"}},{"$f":"AND(#REF!,\"CR8Gkyjaais=\")","v":{"$error":"#REF!"}},{"$f":"AND(#REF!,\"CR8Gkyjaaiw=\")","v":{"$error":"#REF!"}},{"$f":"AND(#REF!,\"CR8Gkyjaai0=\")","v":{"$error":"#REF!"}},{"$f":"AND(#REF!,\"CR8Gkyjaai4=\")","v":{"$error":"#REF!"}},{"$f":"AND(#REF!,\"CR8Gkyjaai8=\")","v":{"$error":"#REF!"}},{"$f":"AND(#REF!,\"CR8GkyjaajA=\")","v":{"$error":"#REF!"}},{"$f":"AND(#REF!,\"CR8GkyjaajE=\")","v":{"$error":"#REF!"}},{"$f":"AND(#REF!,\"CR8GkyjaajI=\")","v":{"$error":"#REF!"}},{"$f":"AND(#REF!,\"CR8GkyjaajM=\")","v":{"$error":"#REF!"}},{"$f":"AND(#REF!,\"CR8GkyjaajQ=\")","v":{"$error":"#REF!"}},{"$f":"AND(#REF!,\"CR8GkyjaajU=\")","v":{"$error":"#REF!"}},{"$f":"AND(#REF!,\"CR8GkyjaajY=\")","v":{"$error":"#REF!"}},{"$f":"AND(#REF!,\"CR8Gkyjaajc=\")","v":{"$error":"#REF!"}},{"$f":"AND(#REF!,\"CR8Gkyjaajg=\")","v":{"$error":"#REF!"}},{"$f":"AND(#REF!,\"CR8Gkyjaajk=\")","v":{"$error":"#REF!"}},{"$f":"AND(#REF!,\"CR8Gkyjaajo=\")","v":{"$error":"#REF!"}},{"$f":"AND(#REF!,\"CR8Gkyjaajs=\")","v":{"$error":"#REF!"}},{"$f":"AND(#REF!,\"CR8Gkyjaajw=\")","v":{"$error":"#REF!"}},{"$f":"AND(#REF!,\"CR8Gkyjaaj0=\")","v":{"$error":"#REF!"}},{"$f":"AND(#REF!,\"CR8Gkyjaaj4=\")","v":{"$error":"#REF!"}},{"$f":"AND(#REF!,\"CR8Gkyjaaj8=\")","v":{"$error":"#REF!"}},{"$f":"AND(#REF!,\"CR8GkyjaakA=\")","v":{"$error":"#REF!"}},{"$f":"AND(#REF!,\"CR8GkyjaakE=\")","v":{"$error":"#REF!"}},{"$f":"AND(#REF!,\"CR8GkyjaakI=\")","v":{"$error":"#REF!"}},{"$f":"AND(#REF!,\"CR8GkyjaakM=\")","v":{"$error":"#REF!"}},{"$f":"AND(#REF!,\"CR8GkyjaakQ=\")","v":{"$error":"#REF!"}},{"$f":"AND(#REF!,\"CR8GkyjaakU=\")","v":{"$error":"#REF!"}},{"$f":"AND(#REF!,\"CR8GkyjaakY=\")","v":{"$error":"#REF!"}},{"$f":"AND(#REF!,\"CR8Gkyjaakc=\")","v":{"$error":"#REF!"}},{"$f":"AND(#REF!,\"CR8Gkyjaakg=\")","v":{"$error":"#REF!"}},{"$f":"AND(#REF!,\"CR8Gkyjaakk=\")","v":{"$error":"#REF!"}},{"$f":"AND(#REF!,\"CR8Gkyjaako=\")","v":{"$error":"#REF!"}},{"$f":"AND(#REF!,\"CR8Gkyjaaks=\")","v":{"$error":"#REF!"}},{"$f":"AND(#REF!,\"CR8Gkyjaakw=\")","v":{"$error":"#REF!"}},{"$f":"AND(#REF!,\"CR8Gkyjaak0=\")","v":{"$error":"#REF!"}},{"$f":"AND(#REF!,\"CR8Gkyjaak4=\")","v":{"$error":"#REF!"}},{"$f":"AND(#REF!,\"CR8Gkyjaak8=\")","v":{"$error":"#REF!"}},{"$f":"AND(#REF!,\"CR8GkyjaalA=\")","v":{"$error":"#REF!"}},{"$f":"AND(#REF!,\"CR8GkyjaalE=\")","v":{"$error":"#REF!"}},{"$f":"AND(#REF!,\"CR8GkyjaalI=\")","v":{"$error":"#REF!"}},{"$f":"AND(#REF!,\"CR8GkyjaalM=\")","v":{"$error":"#REF!"}},{"$f":"AND(#REF!,\"CR8GkyjaalQ=\")","v":{"$error":"#REF!"}},{"$f":"AND(#REF!,\"CR8GkyjaalU=\")","v":{"$error":"#REF!"}},{"$f":"AND(#REF!,\"CR8GkyjaalY=\")","v":{"$error":"#REF!"}},{"$f":"AND(#REF!,\"CR8Gkyjaalc=\")","v":{"$error":"#REF!"}},{"$f":"AND(#REF!,\"CR8Gkyjaalg=\")","v":{"$error":"#REF!"}},{"$f":"AND(#REF!,\"CR8Gkyjaalk=\")","v":{"$error":"#REF!"}},{"$f":"AND(#REF!,\"CR8Gkyjaalo=\")","v":{"$error":"#REF!"}},{"$f":"AND(#REF!,\"CR8Gkyjaals=\")","v":{"$error":"#REF!"}},{"$f":"AND(#REF!,\"CR8Gkyjaalw=\")","v":{"$error":"#REF!"}},{"$f":"AND(#REF!,\"CR8Gkyjaal0=\")","v":{"$error":"#REF!"}},{"$f":"AND(#REF!,\"CR8Gkyjaal4=\")","v":{"$error":"#REF!"}},{"$f":"AND(#REF!,\"CR8Gkyjaal8=\")","v":{"$error":"#REF!"}},{"$f":"AND(#REF!,\"CR8GkyjaamA=\")","v":{"$error":"#REF!"}},{"$f":"AND(#REF!,\"CR8GkyjaamE=\")","v":{"$error":"#REF!"}},{"$f":"AND(#REF!,\"CR8GkyjaamI=\")","v":{"$error":"#REF!"}},{"$f":"AND(#REF!,\"CR8GkyjaamM=\")","v":{"$error":"#REF!"}},{"$f":"AND(#REF!,\"CR8GkyjaamQ=\")","v":{"$error":"#REF!"}},{"$f":"AND(#REF!,\"CR8GkyjaamU=\")","v":{"$error":"#REF!"}},{"$f":"AND(#REF!,\"CR8GkyjaamY=\")","v":{"$error":"#REF!"}},{"$f":"AND(#REF!,\"CR8Gkyjaamc=\")","v":{"$error":"#REF!"}},{"$f":"AND(#REF!,\"CR8Gkyjaamg=\")","v":{"$error":"#REF!"}},{"$f":"AND(#REF!,\"CR8Gkyjaamk=\")","v":{"$error":"#REF!"}},{"$f":"AND(#REF!,\"CR8Gkyjaamo=\")","v":{"$error":"#REF!"}},{"$f":"AND(#REF!,\"CR8Gkyjaams=\")","v":{"$error":"#REF!"}},{"$f":"AND(#REF!,\"CR8Gkyjaamw=\")","v":{"$error":"#REF!"}},{"$f":"AND(#REF!,\"CR8Gkyjaam0=\")","v":{"$error":"#REF!"}},{"$f":"AND(#REF!,\"CR8Gkyjaam4=\")","v":{"$error":"#REF!"}},{"$f":"AND(#REF!,\"CR8Gkyjaam8=\")","v":{"$error":"#REF!"}},{"$f":"AND(#REF!,\"CR8GkyjaanA=\")","v":{"$error":"#REF!"}},{"$f":"AND(#REF!,\"CR8GkyjaanE=\")","v":{"$error":"#REF!"}},{"$f":"AND(#REF!,\"CR8GkyjaanI=\")","v":{"$error":"#REF!"}},{"$f":"AND(#REF!,\"CR8GkyjaanM=\")","v":{"$error":"#REF!"}},{"$f":"AND(#REF!,\"CR8GkyjaanQ=\")","v":{"$error":"#REF!"}},{"$f":"AND(#REF!,\"CR8GkyjaanU=\")","v":{"$error":"#REF!"}},{"$f":"AND(#REF!,\"CR8GkyjaanY=\")","v":{"$error":"#REF!"}},{"$f":"AND(#REF!,\"CR8Gkyjaanc=\")","v":{"$error":"#REF!"}},{"$f":"AND(#REF!,\"CR8Gkyjaang=\")","v":{"$error":"#REF!"}},{"$f":"AND(#REF!,\"CR8Gkyjaank=\")","v":{"$error":"#REF!"}},{"$f":"AND(#REF!,\"CR8Gkyjaano=\")","v":{"$error":"#REF!"}},{"$f":"AND(#REF!,\"CR8Gkyjaans=\")","v":{"$error":"#REF!"}},{"$f":"AND(#REF!,\"CR8Gkyjaanw=\")","v":{"$error":"#REF!"}},{"$f":"AND(#REF!,\"CR8Gkyjaan0=\")","v":{"$error":"#REF!"}},{"$f":"AND(#REF!,\"CR8Gkyjaan4=\")","v":{"$error":"#REF!"}},{"$f":"AND(#REF!,\"CR8Gkyjaan8=\")","v":{"$error":"#REF!"}},{"$f":"AND(#REF!,\"CR8GkyjaaoA=\")","v":{"$error":"#REF!"}},{"$f":"AND(#REF!,\"CR8GkyjaaoE=\")","v":{"$error":"#REF!"}},{"$f":"AND(#REF!,\"CR8GkyjaaoI=\")","v":{"$error":"#REF!"}},{"$f":"AND(#REF!,\"CR8GkyjaaoM=\")","v":{"$error":"#REF!"}},{"$f":"AND(#REF!,\"CR8GkyjaaoQ=\")","v":{"$error":"#REF!"}},{"$f":"AND(#REF!,\"CR8GkyjaaoU=\")","v":{"$error":"#REF!"}},{"$f":"AND(#REF!,\"CR8GkyjaaoY=\")","v":{"$error":"#REF!"}},{"$f":"AND(#REF!,\"CR8Gkyjaaoc=\")","v":{"$error":"#REF!"}},{"$f":"AND(#REF!,\"CR8Gkyjaaog=\")","v":{"$error":"#REF!"}},{"$f":"AND(#REF!,\"CR8Gkyjaaok=\")","v":{"$error":"#REF!"}},{"$f":"AND(#REF!,\"CR8Gkyjaaoo=\")","v":{"$error":"#REF!"}},{"$f":"AND(#REF!,\"CR8Gkyjaaos=\")","v":{"$error":"#REF!"}},{"$f":"AND(#REF!,\"CR8Gkyjaaow=\")","v":{"$error":"#REF!"}},{"$f":"AND(#REF!,\"CR8Gkyjaao0=\")","v":{"$error":"#REF!"}},{"$f":"AND(#REF!,\"CR8Gkyjaao4=\")","v":{"$error":"#REF!"}},{"$f":"AND(#REF!,\"CR8Gkyjaao8=\")","v":{"$error":"#REF!"}},{"$f":"AND(#REF!,\"CR8GkyjaapA=\")","v":{"$error":"#REF!"}},{"$f":"AND(#REF!,\"CR8GkyjaapE=\")","v":{"$error":"#REF!"}},{"$f":"AND(#REF!,\"CR8GkyjaapI=\")","v":{"$error":"#REF!"}},{"$f":"AND(#REF!,\"CR8GkyjaapM=\")","v":{"$error":"#REF!"}},{"$f":"AND(#REF!,\"CR8GkyjaapQ=\")","v":{"$error":"#REF!"}},{"$f":"AND(#REF!,\"CR8GkyjaapU=\")","v":{"$error":"#REF!"}},{"$f":"AND(#REF!,\"CR8GkyjaapY=\")","v":{"$error":"#REF!"}},{"$f":"AND(#REF!,\"CR8Gkyjaapc=\")","v":{"$error":"#REF!"}},{"$f":"AND(#REF!,\"CR8Gkyjaapg=\")","v":{"$error":"#REF!"}},{"$f":"AND(#REF!,\"CR8Gkyjaapk=\")","v":{"$error":"#REF!"}},{"$f":"AND(#REF!,\"CR8Gkyjaapo=\")","v":{"$error":"#REF!"}},{"$f":"AND(#REF!,\"CR8Gkyjaaps=\")","v":{"$error":"#REF!"}},{"$f":"AND(#REF!,\"CR8Gkyjaapw=\")","v":{"$error":"#REF!"}},{"$f":"AND(#REF!,\"CR8Gkyjaap0=\")","v":{"$error":"#REF!"}},{"$f":"AND(#REF!,\"CR8Gkyjaap4=\")","v":{"$error":"#REF!"}},{"$f":"AND(#REF!,\"CR8Gkyjaap8=\")","v":{"$error":"#REF!"}},{"$f":"AND(#REF!,\"CR8GkyjaaqA=\")","v":{"$error":"#REF!"}},{"$f":"AND(#REF!,\"CR8GkyjaaqE=\")","v":{"$error":"#REF!"}},{"$f":"AND(#REF!,\"CR8GkyjaaqI=\")","v":{"$error":"#REF!"}},{"$f":"AND(#REF!,\"CR8GkyjaaqM=\")","v":{"$error":"#REF!"}},{"$f":"AND(#REF!,\"CR8GkyjaaqQ=\")","v":{"$error":"#REF!"}},{"$f":"AND(#REF!,\"CR8GkyjaaqU=\")","v":{"$error":"#REF!"}},{"$f":"AND(#REF!,\"CR8GkyjaaqY=\")","v":{"$error":"#REF!"}},{"$f":"AND(#REF!,\"CR8Gkyjaaqc=\")","v":{"$error":"#REF!"}},{"$f":"AND(#REF!,\"CR8Gkyjaaqg=\")","v":{"$error":"#REF!"}},{"$f":"AND(#REF!,\"CR8Gkyjaaqk=\")","v":{"$error":"#REF!"}},{"$f":"AND(#REF!,\"CR8Gkyjaaqo=\")","v":{"$error":"#REF!"}},{"$f":"AND(#REF!,\"CR8Gkyjaaqs=\")","v":{"$error":"#REF!"}},{"$f":"AND(#REF!,\"CR8Gkyjaaqw=\")","v":{"$error":"#REF!"}},{"$f":"AND(#REF!,\"CR8Gkyjaaq0=\")","v":{"$error":"#REF!"}},{"$f":"AND(#REF!,\"CR8Gkyjaaq4=\")","v":{"$error":"#REF!"}},{"$f":"AND(#REF!,\"CR8Gkyjaaq8=\")","v":{"$error":"#REF!"}},{"$f":"AND(#REF!,\"CR8GkyjaarA=\")","v":{"$error":"#REF!"}},{"$f":"AND(#REF!,\"CR8GkyjaarE=\")","v":{"$error":"#REF!"}},{"$f":"AND(#REF!,\"CR8GkyjaarI=\")","v":{"$error":"#REF!"}},{"$f":"AND(#REF!,\"CR8GkyjaarM=\")","v":{"$error":"#REF!"}},{"$f":"AND(#REF!,\"CR8GkyjaarQ=\")","v":{"$error":"#REF!"}},{"$f":"AND(#REF!,\"CR8GkyjaarU=\")","v":{"$error":"#REF!"}},{"$f":"AND(#REF!,\"CR8GkyjaarY=\")","v":{"$error":"#REF!"}},{"$f":"AND(#REF!,\"CR8Gkyjaarc=\")","v":{"$error":"#REF!"}},{"$f":"AND(#REF!,\"CR8Gkyjaarg=\")","v":{"$error":"#REF!"}},{"$f":"AND(#REF!,\"CR8Gkyjaark=\")","v":{"$error":"#REF!"}},{"$f":"AND(#REF!,\"CR8Gkyjaaro=\")","v":{"$error":"#REF!"}},{"$f":"AND(#REF!,\"CR8Gkyjaars=\")","v":{"$error":"#REF!"}},{"$f":"AND(#REF!,\"CR8Gkyjaarw=\")","v":{"$error":"#REF!"}},{"$f":"AND(#REF!,\"CR8Gkyjaar0=\")","v":{"$error":"#REF!"}},{"$f":"AND(#REF!,\"CR8Gkyjaar4=\")","v":{"$error":"#REF!"}},{"$f":"AND(#REF!,\"CR8Gkyjaar8=\")","v":{"$error":"#REF!"}},{"$f":"AND(#REF!,\"CR8GkyjaasA=\")","v":{"$error":"#REF!"}},{"$f":"AND(#REF!,\"CR8GkyjaasE=\")","v":{"$error":"#REF!"}},{"$f":"AND(#REF!,\"CR8GkyjaasI=\")","v":{"$error":"#REF!"}},{"$f":"AND(#REF!,\"CR8GkyjaasM=\")","v":{"$error":"#REF!"}},{"$f":"AND(#REF!,\"CR8GkyjaasQ=\")","v":{"$error":"#REF!"}},{"$f":"AND(#REF!,\"CR8GkyjaasU=\")","v":{"$error":"#REF!"}},{"$f":"AND(#REF!,\"CR8GkyjaasY=\")","v":{"$error":"#REF!"}},{"$f":"AND(#REF!,\"CR8Gkyjaasc=\")","v":{"$error":"#REF!"}},{"$f":"AND(#REF!,\"CR8Gkyjaasg=\")","v":{"$error":"#REF!"}},{"$f":"AND(#REF!,\"CR8Gkyjaask=\")","v":{"$error":"#REF!"}},{"$f":"AND(#REF!,\"CR8Gkyjaaso=\")","v":{"$error":"#REF!"}},{"$f":"AND(#REF!,\"CR8Gkyjaass=\")","v":{"$error":"#REF!"}},{"$f":"AND(#REF!,\"CR8Gkyjaasw=\")","v":{"$error":"#REF!"}},{"$f":"AND(#REF!,\"CR8Gkyjaas0=\")","v":{"$error":"#REF!"}},{"$f":"AND(#REF!,\"CR8Gkyjaas4=\")","v":{"$error":"#REF!"}},{"$f":"AND(#REF!,\"CR8Gkyjaas8=\")","v":{"$error":"#REF!"}},{"$f":"AND(#REF!,\"CR8GkyjaatA=\")","v":{"$error":"#REF!"}},{"$f":"AND(#REF!,\"CR8GkyjaatE=\")","v":{"$error":"#REF!"}},{"$f":"AND(#REF!,\"CR8GkyjaatI=\")","v":{"$error":"#REF!"}},{"$f":"AND(#REF!,\"CR8GkyjaatM=\")","v":{"$error":"#REF!"}},{"$f":"AND(#REF!,\"CR8GkyjaatQ=\")","v":{"$error":"#REF!"}},{"$f":"AND(#REF!,\"CR8GkyjaatU=\")","v":{"$error":"#REF!"}},{"$f":"AND(#REF!,\"CR8GkyjaatY=\")","v":{"$error":"#REF!"}},{"$f":"AND(#REF!,\"CR8Gkyjaatc=\")","v":{"$error":"#REF!"}},{"$f":"AND(#REF!,\"CR8Gkyjaatg=\")","v":{"$error":"#REF!"}},{"$f":"AND(#REF!,\"CR8Gkyjaatk=\")","v":{"$error":"#REF!"}},{"$f":"AND(#REF!,\"CR8Gkyjaato=\")","v":{"$error":"#REF!"}},{"$f":"AND(#REF!,\"CR8Gkyjaats=\")","v":{"$error":"#REF!"}},{"$f":"IF(#REF!,\"CR8Gkyjaatw=\",0)","v":{"$error":"#REF!"}},{"$f":"AND(#REF!,\"CR8Gkyjaat0=\")","v":{"$error":"#REF!"}},{"$f":"AND(#REF!,\"CR8Gkyjaat4=\")","v":{"$error":"#REF!"}},{"$f":"AND(#REF!,\"CR8Gkyjaat8=\")","v":{"$error":"#REF!"}},{"$f":"AND(#REF!,\"CR8GkyjaauA=\")","v":{"$error":"#REF!"}},{"$f":"AND(#REF!,\"CR8GkyjaauE=\")","v":{"$error":"#REF!"}},{"$f":"AND(#REF!,\"CR8GkyjaauI=\")","v":{"$error":"#REF!"}},{"$f":"AND(#REF!,\"CR8GkyjaauM=\")","v":{"$error":"#REF!"}},{"$f":"AND(#REF!,\"CR8GkyjaauQ=\")","v":{"$error":"#REF!"}},{"$f":"AND(#REF!,\"CR8GkyjaauU=\")","v":{"$error":"#REF!"}},{"$f":"AND(#REF!,\"CR8GkyjaauY=\")","v":{"$error":"#REF!"}},{"$f":"AND(#REF!,\"CR8Gkyjaauc=\")","v":{"$error":"#REF!"}},{"$f":"AND(#REF!,\"CR8Gkyjaaug=\")","v":{"$error":"#REF!"}},{"$f":"AND(#REF!,\"CR8Gkyjaauk=\")","v":{"$error":"#REF!"}},{"$f":"AND(#REF!,\"CR8Gkyjaauo=\")","v":{"$error":"#REF!"}},{"$f":"AND(#REF!,\"CR8Gkyjaaus=\")","v":{"$error":"#REF!"}},{"$f":"AND(#REF!,\"CR8Gkyjaauw=\")","v":{"$error":"#REF!"}},{"$f":"AND(#REF!,\"CR8Gkyjaau0=\")","v":{"$error":"#REF!"}},{"$f":"AND(#REF!,\"CR8Gkyjaau4=\")","v":{"$error":"#REF!"}},{"$f":"AND(#REF!,\"CR8Gkyjaau8=\")","v":{"$error":"#REF!"}},{"$f":"AND(#REF!,\"CR8GkyjaavA=\")","v":{"$error":"#REF!"}},{"$f":"AND(#REF!,\"CR8GkyjaavE=\")","v":{"$error":"#REF!"}},{"$f":"AND(#REF!,\"CR8GkyjaavI=\")","v":{"$error":"#REF!"}},{"$f":"AND(#REF!,\"CR8GkyjaavM=\")","v":{"$error":"#REF!"}},{"$f":"AND(#REF!,\"CR8GkyjaavQ=\")","v":{"$error":"#REF!"}},{"$f":"AND(#REF!,\"CR8GkyjaavU=\")","v":{"$error":"#REF!"}},{"$f":"AND(#REF!,\"CR8GkyjaavY=\")","v":{"$error":"#REF!"}},{"$f":"AND(#REF!,\"CR8Gkyjaavc=\")","v":{"$error":"#REF!"}},{"$f":"AND(#REF!,\"CR8Gkyjaavg=\")","v":{"$error":"#REF!"}},{"$f":"AND(#REF!,\"CR8Gkyjaavk=\")","v":{"$error":"#REF!"}},{"$f":"AND(#REF!,\"CR8Gkyjaavo=\")","v":{"$error":"#REF!"}},{"$f":"AND(#REF!,\"CR8Gkyjaavs=\")","v":{"$error":"#REF!"}},{"$f":"AND(#REF!,\"CR8Gkyjaavw=\")","v":{"$error":"#REF!"}},{"$f":"AND(#REF!,\"CR8Gkyjaav0=\")","v":{"$error":"#REF!"}},{"$f":"AND(#REF!,\"CR8Gkyjaav4=\")","v":{"$error":"#REF!"}},{"$f":"AND(#REF!,\"CR8Gkyjaav8=\")","v":{"$error":"#REF!"}}]
[{"$f":"AND(#REF!,\"A2C4NFGQxgA=\")","v":{"$error":"#REF!"}},{"$f":"AND(#REF!,\"A2C4NFGQxgE=\")","v":{"$error":"#REF!"}},{"$f":"AND(#REF!,\"A2C4NFGQxgI=\")","v":{"$error":"#REF!"}},{"$f":"AND(#REF!,\"A2C4NFGQxgM=\")","v":{"$error":"#REF!"}},{"$f":"AND(#REF!,\"A2C4NFGQxgQ=\")","v":{"$error":"#REF!"}},{"$f":"AND(#REF!,\"A2C4NFGQxgU=\")","v":{"$error":"#REF!"}},{"$f":"AND(#REF!,\"A2C4NFGQxgY=\")","v":{"$error":"#REF!"}},{"$f":"AND(#REF!,\"A2C4NFGQxgc=\")","v":{"$error":"#REF!"}},{"$f":"AND(#REF!,\"A2C4NFGQxgg=\")","v":{"$error":"#REF!"}},{"$f":"AND(#REF!,\"A2C4NFGQxgk=\")","v":{"$error":"#REF!"}},{"$f":"AND(#REF!,\"A2C4NFGQxgo=\")","v":{"$error":"#REF!"}},{"$f":"AND(#REF!,\"A2C4NFGQxgs=\")","v":{"$error":"#REF!"}},{"$f":"AND(#REF!,\"A2C4NFGQxgw=\")","v":{"$error":"#REF!"}},{"$f":"AND(#REF!,\"A2C4NFGQxg0=\")","v":{"$error":"#REF!"}},{"$f":"AND(#REF!,\"A2C4NFGQxg4=\")","v":{"$error":"#REF!"}},{"$f":"AND(#REF!,\"A2C4NFGQxg8=\")","v":{"$error":"#REF!"}},{"$f":"AND(#REF!,\"A2C4NFGQxhA=\")","v":{"$error":"#REF!"}},{"$f":"AND(#REF!,\"A2C4NFGQxhE=\")","v":{"$error":"#REF!"}},{"$f":"AND(#REF!,\"A2C4NFGQxhI=\")","v":{"$error":"#REF!"}},{"$f":"AND(#REF!,\"A2C4NFGQxhM=\")","v":{"$error":"#REF!"}},{"$f":"AND(#REF!,\"A2C4NFGQxhQ=\")","v":{"$error":"#REF!"}},{"$f":"AND(#REF!,\"A2C4NFGQxhU=\")","v":{"$error":"#REF!"}},{"$f":"AND(#REF!,\"A2C4NFGQxhY=\")","v":{"$error":"#REF!"}},{"$f":"AND(#REF!,\"A2C4NFGQxhc=\")","v":{"$error":"#REF!"}},{"$f":"AND(#REF!,\"A2C4NFGQxhg=\")","v":{"$error":"#REF!"}},{"$f":"AND(#REF!,\"A2C4NFGQxhk=\")","v":{"$error":"#REF!"}},{"$f":"AND(#REF!,\"A2C4NFGQxho=\")","v":{"$error":"#REF!"}},{"$f":"AND(#REF!,\"A2C4NFGQxhs=\")","v":{"$error":"#REF!"}},{"$f":"AND(#REF!,\"A2C4NFGQxhw=\")","v":{"$error":"#REF!"}},{"$f":"AND(#REF!,\"A2C4NFGQxh0=\")","v":{"$error":"#REF!"}},{"$f":"AND(#REF!,\"A2C4NFGQxh4=\")","v":{"$error":"#REF!"}},{"$f":"AND(#REF!,\"A2C4NFGQxh8=\")","v":{"$error":"#REF!"}},{"$f":"AND(#REF!,\"A2C4NFGQxiA=\")","v":{"$error":"#REF!"}},{"$f":"AND(#REF!,\"A2C4NFGQxiE=\")","v":{"$error":"#REF!"}},{"$f":"AND(#REF!,\"A2C4NFGQxiI=\")","v":{"$error":"#REF!"}},{"$f":"AND(#REF!,\"A2C4NFGQxiM=\")","v":{"$error":"#REF!"}},{"$f":"AND(#REF!,\"A2C4NFGQxiQ=\")","v":{"$error":"#REF!"}},{"$f":"AND(#REF!,\"A2C4NFGQxiU=\")","v":{"$error":"#REF!"}},{"$f":"AND(#REF!,\"A2C4NFGQxiY=\")","v":{"$error":"#REF!"}},{"$f":"AND(#REF!,\"A2C4NFGQxic=\")","v":{"$error":"#REF!"}},{"$f":"AND(#REF!,\"A2C4NFGQxig=\")","v":{"$error":"#REF!"}},{"$f":"AND(#REF!,\"A2C4NFGQxik=\")","v":{"$error":"#REF!"}},{"$f":"AND(#REF!,\"A2C4NFGQxio=\")","v":{"$error":"#REF!"}},{"$f":"AND(#REF!,\"A2C4NFGQxis=\")","v":{"$error":"#REF!"}},{"$f":"AND(#REF!,\"A2C4NFGQxiw=\")","v":{"$error":"#REF!"}},{"$f":"AND(#REF!,\"A2C4NFGQxi0=\")","v":{"$error":"#REF!"}},{"$f":"AND(#REF!,\"A2C4NFGQxi4=\")","v":{"$error":"#REF!"}},{"$f":"AND(#REF!,\"A2C4NFGQxi8=\")","v":{"$error":"#REF!"}},{"$f":"AND(#REF!,\"A2C4NFGQxjA=\")","v":{"$error":"#REF!"}},{"$f":"AND(#REF!,\"A2C4NFGQxjE=\")","v":{"$error":"#REF!"}},{"$f":"AND(#REF!,\"A2C4NFGQxjI=\")","v":{"$error":"#REF!"}},{"$f":"AND(#REF!,\"A2C4NFGQxjM=\")","v":{"$error":"#REF!"}},{"$f":"AND(#REF!,\"A2C4NFGQxjQ=\")","v":{"$error":"#REF!"}},{"$f":"AND(#REF!,\"A2C4NFGQxjU=\")","v":{"$error":"#REF!"}},{"$f":"AND(#REF!,\"A2C4NFGQxjY=\")","v":{"$error":"#REF!"}},{"$f":"AND(#REF!,\"A2C4NFGQxjc=\")","v":{"$error":"#REF!"}},{"$f":"AND(#REF!,\"A2C4NFGQxjg=\")","v":{"$error":"#REF!"}},{"$f":"AND(#REF!,\"A2C4NFGQxjk=\")","v":{"$error":"#REF!"}},{"$f":"AND(#REF!,\"A2C4NFGQxjo=\")","v":{"$error":"#REF!"}},{"$f":"AND(#REF!,\"A2C4NFGQxjs=\")","v":{"$error":"#REF!"}},{"$f":"AND(#REF!,\"A2C4NFGQxjw=\")","v":{"$error":"#REF!"}},{"$f":"AND(#REF!,\"A2C4NFGQxj0=\")","v":{"$error":"#REF!"}},{"$f":"AND(#REF!,\"A2C4NFGQxj4=\")","v":{"$error":"#REF!"}},{"$f":"AND(#REF!,\"A2C4NFGQxj8=\")","v":{"$error":"#REF!"}},{"$f":"AND(#REF!,\"A2C4NFGQxkA=\")","v":{"$error":"#REF!"}},{"$f":"AND(#REF!,\"A2C4NFGQxkE=\")","v":{"$error":"#REF!"}},{"$f":"AND(#REF!,\"A2C4NFGQxkI=\")","v":{"$error":"#REF!"}},{"$f":"AND(#REF!,\"A2C4NFGQxkM=\")","v":{"$error":"#REF!"}},{"$f":"AND(#REF!,\"A2C4NFGQxkQ=\")","v":{"$error":"#REF!"}},{"$f":"AND(#REF!,\"A2C4NFGQxkU=\")","v":{"$error":"#REF!"}},{"$f":"AND(#REF!,\"A2C4NFGQxkY=\")","v":{"$error":"#REF!"}},{"$f":"AND(#REF!,\"A2C4NFGQxkc=\")","v":{"$error":"#REF!"}},{"$f":"AND(#REF!,\"A2C4NFGQxkg=\")","v":{"$error":"#REF!"}},{"$f":"AND(#REF!,\"A2C4NFGQxkk=\")","v":{"$error":"#REF!"}},{"$f":"AND(#REF!,\"A2C4NFGQxko=\")","v":{"$error":"#REF!"}},{"$f":"AND(#REF!,\"A2C4NFGQxks=\")","v":{"$error":"#REF!"}},{"$f":"AND(#REF!,\"A2C4NFGQxkw=\")","v":{"$error":"#REF!"}},{"$f":"AND(#REF!,\"A2C4NFGQxk0=\")","v":{"$error":"#REF!"}},{"$f":"AND(#REF!,\"A2C4NFGQxk4=\")","v":{"$error":"#REF!"}},{"$f":"AND(#REF!,\"A2C4NFGQxk8=\")","v":{"$error":"#REF!"}},{"$f":"AND(#REF!,\"A2C4NFGQxlA=\")","v":{"$error":"#REF!"}},{"$f":"AND(#REF!,\"A2C4NFGQxlE=\")","v":{"$error":"#REF!"}},{"$f":"AND(#REF!,\"A2C4NFGQxlI=\")","v":{"$error":"#REF!"}},{"$f":"AND(#REF!,\"A2C4NFGQxlM=\")","v":{"$error":"#REF!"}},{"$f":"AND(#REF!,\"A2C4NFGQxlQ=\")","v":{"$error":"#REF!"}},{"$f":"AND(#REF!,\"A2C4NFGQxlU=\")","v":{"$error":"#REF!"}},{"$f":"AND(#REF!,\"A2C4NFGQxlY=\")","v":{"$error":"#REF!"}},{"$f":"AND(#REF!,\"A2C4NFGQxlc=\")","v":{"$error":"#REF!"}},{"$f":"AND(#REF!,\"A2C4NFGQxlg=\")","v":{"$error":"#REF!"}},{"$f":"AND(#REF!,\"A2C4NFGQxlk=\")","v":{"$error":"#REF!"}},{"$f":"AND(#REF!,\"A2C4NFGQxlo=\")","v":{"$error":"#REF!"}},{"$f":"AND(#REF!,\"A2C4NFGQxls=\")","v":{"$error":"#REF!"}},{"$f":"AND(#REF!,\"A2C4NFGQxlw=\")","v":{"$error":"#REF!"}},{"$f":"AND(#REF!,\"A2C4NFGQxl0=\")","v":{"$error":"#REF!"}},{"$f":"AND(#REF!,\"A2C4NFGQxl4=\")","v":{"$error":"#REF!"}},{"$f":"AND(#REF!,\"A2C4NFGQxl8=\")","v":{"$error":"#REF!"}},{"$f":"AND(#REF!,\"A2C4NFGQxmA=\")","v":{"$error":"#REF!"}},{"$f":"AND(#REF!,\"A2C4NFGQxmE=\")","v":{"$error":"#REF!"}},{"$f":"AND(#REF!,\"A2C4NFGQxmI=\")","v":{"$error":"#REF!"}},{"$f":"AND(#REF!,\"A2C4NFGQxmM=\")","v":{"$error":"#REF!"}},{"$f":"AND(#REF!,\"A2C4NFGQxmQ=\")","v":{"$error":"#REF!"}},{"$f":"AND(#REF!,\"A2C4NFGQxmU=\")","v":{"$error":"#REF!"}},{"$f":"AND(#REF!,\"A2C4NFGQxmY=\")","v":{"$error":"#REF!"}},{"$f":"AND(#REF!,\"A2C4NFGQxmc=\")","v":{"$error":"#REF!"}},{"$f":"AND(#REF!,\"A2C4NFGQxmg=\")","v":{"$error":"#REF!"}},{"$f":"AND(#REF!,\"A2C4NFGQxmk=\")","v":{"$error":"#REF!"}},{"$f":"AND(#REF!,\"A2C4NFGQxmo=\")","v":{"$error":"#REF!"}},{"$f":"AND(#REF!,\"A2C4NFGQxms=\")","v":{"$error":"#REF!"}},{"$f":"AND(#REF!,\"A2C4NFGQxmw=\")","v":{"$error":"#REF!"}},{"$f":"AND(#REF!,\"A2C4NFGQxm0=\")","v":{"$error":"#REF!"}},{"$f":"AND(#REF!,\"A2C4NFGQxm4=\")","v":{"$error":"#REF!"}},{"$f":"AND(#REF!,\"A2C4NFGQxm8=\")","v":{"$error":"#REF!"}},{"$f":"AND(#REF!,\"A2C4NFGQxnA=\")","v":{"$error":"#REF!"}},{"$f":"AND(#REF!,\"A2C4NFGQxnE=\")","v":{"$error":"#REF!"}},{"$f":"AND(#REF!,\"A2C4NFGQxnI=\")","v":{"$error":"#REF!"}},{"$f":"AND(#REF!,\"A2C4NFGQxnM=\")","v":{"$error":"#REF!"}},{"$f":"AND(#REF!,\"A2C4NFGQxnQ=\")","v":{"$error":"#REF!"}},{"$f":"AND(#REF!,\"A2C4NFGQxnU=\")","v":{"$error":"#REF!"}},{"$f":"AND(#REF!,\"A2C4NFGQxnY=\")","v":{"$error":"#REF!"}},{"$f":"AND(#REF!,\"A2C4NFGQxnc=\")","v":{"$error":"#REF!"}},{"$f":"AND(#REF!,\"A2C4NFGQxng=\")","v":{"$error":"#REF!"}},{"$f":"AND(#REF!,\"A2C4NFGQxnk=\")","v":{"$error":"#REF!"}},{"$f":"AND(#REF!,\"A2C4NFGQxno=\")","v":{"$error":"#REF!"}},{"$f":"AND(#REF!,\"A2C4NFGQxns=\")","v":{"$error":"#REF!"}},{"$f":"AND(#REF!,\"A2C4NFGQxnw=\")","v":{"$error":"#REF!"}},{"$f":"AND(#REF!,\"A2C4NFGQxn0=\")","v":{"$error":"#REF!"}},{"$f":"AND(#REF!,\"A2C4NFGQxn4=\")","v":{"$error":"#REF!"}},{"$f":"AND(#REF!,\"A2C4NFGQxn8=\")","v":{"$error":"#REF!"}},{"$f":"AND(#REF!,\"A2C4NFGQxoA=\")","v":{"$error":"#REF!"}},{"$f":"AND(#REF!,\"A2C4NFGQxoE=\")","v":{"$error":"#REF!"}},{"$f":"AND(#REF!,\"A2C4NFGQxoI=\")","v":{"$error":"#REF!"}},{"$f":"AND(#REF!,\"A2C4NFGQxoM=\")","v":{"$error":"#REF!"}},{"$f":"AND(#REF!,\"A2C4NFGQxoQ=\")","v":{"$error":"#REF!"}},{"$f":"AND(#REF!,\"A2C4NFGQxoU=\")","v":{"$error":"#REF!"}},{"$f":"AND(#REF!,\"A2C4NFGQxoY=\")","v":{"$error":"#REF!"}},{"$f":"AND(#REF!,\"A2C4NFGQxoc=\")","v":{"$error":"#REF!"}},{"$f":"AND(#REF!,\"A2C4NFGQxog=\")","v":{"$error":"#REF!"}},{"$f":"AND(#REF!,\"A2C4NFGQxok=\")","v":{"$error":"#REF!"}},{"$f":"AND(#REF!,\"A2C4NFGQxoo=\")","v":{"$error":"#REF!"}},{"$f":"AND(#REF!,\"A2C4NFGQxos=\")","v":{"$error":"#REF!"}},{"$f":"AND(#REF!,\"A2C4NFGQxow=\")","v":{"$error":"#REF!"}},{"$f":"AND(#REF!,\"A2C4NFGQxo0=\")","v":{"$error":"#REF!"}},{"$f":"AND(#REF!,\"A2C4NFGQxo4=\")","v":{"$error":"#REF!"}},{"$f":"AND(#REF!,\"A2C4NFGQxo8=\")","v":{"$error":"#REF!"}},{"$f":"AND(#REF!,\"A2C4NFGQxpA=\")","v":{"$error":"#REF!"}},{"$f":"AND(#REF!,\"A2C4NFGQxpE=\")","v":{"$error":"#REF!"}},{"$f":"AND(#REF!,\"A2C4NFGQxpI=\")","v":{"$error":"#REF!"}},{"$f":"AND(#REF!,\"A2C4NFGQxpM=\")","v":{"$error":"#REF!"}},{"$f":"AND(#REF!,\"A2C4NFGQxpQ=\")","v":{"$error":"#REF!"}},{"$f":"AND(#REF!,\"A2C4NFGQxpU=\")","v":{"$error":"#REF!"}},{"$f":"AND(#REF!,\"A2C4NFGQxpY=\")","v":{"$error":"#REF!"}},{"$f":"AND(#REF!,\"A2C4NFGQxpc=\")","v":{"$error":"#REF!"}},{"$f":"AND(#REF!,\"A2C4NFGQxpg=\")","v":{"$error":"#REF!"}},{"$f":"AND(#REF!,\"A2C4NFGQxpk=\")","v":{"$error":"#REF!"}},{"$f":"AND(#REF!,\"A2C4NFGQxpo=\")","v":{"$error":"#REF!"}},{"$f":"AND(#REF!,\"A2C4NFGQxps=\")","v":{"$error":"#REF!"}},{"$f":"AND(#REF!,\"A2C4NFGQxpw=\")","v":{"$error":"#REF!"}},{"$f":"AND(#REF!,\"A2C4NFGQxp0=\")","v":{"$error":"#REF!"}},{"$f":"AND(#REF!,\"A2C4NFGQxp4=\")","v":{"$error":"#REF!"}},{"$f":"AND(#REF!,\"A2C4NFGQxp8=\")","v":{"$error":"#REF!"}},{"$f":"AND(#REF!,\"A2C4NFGQxqA=\")","v":{"$error":"#REF!"}},{"$f":"AND(#REF!,\"A2C4NFGQxqE=\")","v":{"$error":"#REF!"}},{"$f":"AND(#REF!,\"A2C4NFGQxqI=\")","v":{"$error":"#REF!"}},{"$f":"IF(#REF!,\"A2C4NFGQxqM=\",0)","v":{"$error":"#REF!"}},{"$f":"AND(#REF!,\"A2C4NFGQxqQ=\")","v":{"$error":"#REF!"}},{"$f":"AND(#REF!,\"A2C4NFGQxqU=\")","v":{"$error":"#REF!"}},{"$f":"AND(#REF!,\"A2C4NFGQxqY=\")","v":{"$error":"#REF!"}},{"$f":"AND(#REF!,\"A2C4NFGQxqc=\")","v":{"$error":"#REF!"}},{"$f":"AND(#REF!,\"A2C4NFGQxqg=\")","v":{"$error":"#REF!"}},{"$f":"AND(#REF!,\"A2C4NFGQxqk=\")","v":{"$error":"#REF!"}},{"$f":"AND(#REF!,\"A2C4NFGQxqo=\")","v":{"$error":"#REF!"}},{"$f":"AND(#REF!,\"A2C4NFGQxqs=\")","v":{"$error":"#REF!"}},{"$f":"AND(#REF!,\"A2C4NFGQxqw=\")","v":{"$error":"#REF!"}},{"$f":"AND(#REF!,\"A2C4NFGQxq0=\")","v":{"$error":"#REF!"}},{"$f":"AND(#REF!,\"A2C4NFGQxq4=\")","v":{"$error":"#REF!"}},{"$f":"AND(#REF!,\"A2C4NFGQxq8=\")","v":{"$error":"#REF!"}},{"$f":"AND(#REF!,\"A2C4NFGQxrA=\")","v":{"$error":"#REF!"}},{"$f":"AND(#REF!,\"A2C4NFGQxrE=\")","v":{"$error":"#REF!"}},{"$f":"AND(#REF!,\"A2C4NFGQxrI=\")","v":{"$error":"#REF!"}},{"$f":"AND(#REF!,\"A2C4NFGQxrM=\")","v":{"$error":"#REF!"}},{"$f":"AND(#REF!,\"A2C4NFGQxrQ=\")","v":{"$error":"#REF!"}},{"$f":"AND(#REF!,\"A2C4NFGQxrU=\")","v":{"$error":"#REF!"}},{"$f":"AND(#REF!,\"A2C4NFGQxrY=\")","v":{"$error":"#REF!"}},{"$f":"AND(#REF!,\"A2C4NFGQxrc=\")","v":{"$error":"#REF!"}},{"$f":"AND(#REF!,\"A2C4NFGQxrg=\")","v":{"$error":"#REF!"}},{"$f":"AND(#REF!,\"A2C4NFGQxrk=\")","v":{"$error":"#REF!"}},{"$f":"AND(#REF!,\"A2C4NFGQxro=\")","v":{"$error":"#REF!"}},{"$f":"AND(#REF!,\"A2C4NFGQxrs=\")","v":{"$error":"#REF!"}},{"$f":"AND(#REF!,\"A2C4NFGQxrw=\")","v":{"$error":"#REF!"}},{"$f":"AND(#REF!,\"A2C4NFGQxr0=\")","v":{"$error":"#REF!"}},{"$f":"AND(#REF!,\"A2C4NFGQxr4=\")","v":{"$error":"#REF!"}},{"$f":"AND(#REF!,\"A2C4NFGQxr8=\")","v":{"$error":"#REF!"}},{"$f":"AND(#REF!,\"A2C4NFGQxsA=\")","v":{"$error":"#REF!"}},{"$f":"AND(#REF!,\"A2C4NFGQxsE=\")","v":{"$error":"#REF!"}},{"$f":"AND(#REF!,\"A2C4NFGQxsI=\")","v":{"$error":"#REF!"}},{"$f":"AND(#REF!,\"A2C4NFGQxsM=\")","v":{"$error":"#REF!"}},{"$f":"AND(#REF!,\"A2C4NFGQxsQ=\")","v":{"$error":"#REF!"}},{"$f":"AND(#REF!,\"A2C4NFGQxsU=\")","v":{"$error":"#REF!"}},{"$f":"AND(#REF!,\"A2C4NFGQxsY=\")","v":{"$error":"#REF!"}},{"$f":"AND(#REF!,\"A2C4NFGQxsc=\")","v":{"$error":"#REF!"}},{"$f":"AND(#REF!,\"A2C4NFGQxsg=\")","v":{"$error":"#REF!"}},{"$f":"AND(#REF!,\"A2C4NFGQxsk=\")","v":{"$error":"#REF!"}},{"$f":"AND(#REF!,\"A2C4NFGQxso=\")","v":{"$error":"#REF!"}},{"$f":"AND(#REF!,\"A2C4NFGQxss=\")","v":{"$error":"#REF!"}},{"$f":"AND(#REF!,\"A2C4NFGQxsw=\")","v":{"$error":"#REF!"}},{"$f":"AND(#REF!,\"A2C4NFGQxs0=\")","v":{"$error":"#REF!"}},{"$f":"AND(#REF!,\"A2C4NFGQxs4=\")","v":{"$error":"#REF!"}},{"$f":"AND(#REF!,\"A2C4NFGQxs8=\")","v":{"$error":"#REF!"}},{"$f":"AND(#REF!,\"A2C4NFGQxtA=\")","v":{"$error":"#REF!"}},{"$f":"AND(#REF!,\"A2C4NFGQxtE=\")","v":{"$error":"#REF!"}},{"$f":"AND(#REF!,\"A2C4NFGQxtI=\")","v":{"$error":"#REF!"}},{"$f":"AND(#REF!,\"A2C4NFGQxtM=\")","v":{"$error":"#REF!"}},{"$f":"AND(#REF!,\"A2C4NFGQxtQ=\")","v":{"$error":"#REF!"}},{"$f":"AND(#REF!,\"A2C4NFGQxtU=\")","v":{"$error":"#REF!"}},{"$f":"AND(#REF!,\"A2C4NFGQxtY=\")","v":{"$error":"#REF!"}},{"$f":"AND(#REF!,\"A2C4NFGQxtc=\")","v":{"$error":"#REF!"}},{"$f":"AND(#REF!,\"A2C4NFGQxtg=\")","v":{"$error":"#REF!"}},{"$f":"AND(#REF!,\"A2C4NFGQxtk=\")","v":{"$error":"#REF!"}},{"$f":"AND(#REF!,\"A2C4NFGQxto=\")","v":{"$error":"#REF!"}},{"$f":"AND(#REF!,\"A2C4NFGQxts=\")","v":{"$error":"#REF!"}},{"$f":"AND(#REF!,\"A2C4NFGQxtw=\")","v":{"$error":"#REF!"}},{"$f":"AND(#REF!,\"A2C4NFGQxt0=\")","v":{"$error":"#REF!"}},{"$f":"AND(#REF!,\"A2C4NFGQxt4=\")","v":{"$error":"#REF!"}},{"$f":"AND(#REF!,\"A2C4NFGQxt8=\")","v":{"$error":"#REF!"}},{"$f":"AND(#REF!,\"A2C4NFGQxuA=\")","v":{"$error":"#REF!"}},{"$f":"AND(#REF!,\"A2C4NFGQxuE=\")","v":{"$error":"#REF!"}},{"$f":"AND(#REF!,\"A2C4NFGQxuI=\")","v":{"$error":"#REF!"}},{"$f":"AND(#REF!,\"A2C4NFGQxuM=\")","v":{"$error":"#REF!"}},{"$f":"AND(#REF!,\"A2C4NFGQxuQ=\")","v":{"$error":"#REF!"}},{"$f":"AND(#REF!,\"A2C4NFGQxuU=\")","v":{"$error":"#REF!"}},{"$f":"AND(#REF!,\"A2C4NFGQxuY=\")","v":{"$error":"#REF!"}},{"$f":"AND(#REF!,\"A2C4NFGQxuc=\")","v":{"$error":"#REF!"}},{"$f":"AND(#REF!,\"A2C4NFGQxug=\")","v":{"$error":"#REF!"}},{"$f":"AND(#REF!,\"A2C4NFGQxuk=\")","v":{"$error":"#REF!"}},{"$f":"AND(#REF!,\"A2C4NFGQxuo=\")","v":{"$error":"#REF!"}},{"$f":"AND(#REF!,\"A2C4NFGQxus=\")","v":{"$error":"#REF!"}},{"$f":"AND(#REF!,\"A2C4NFGQxuw=\")","v":{"$error":"#REF!"}},{"$f":"AND(#REF!,\"A2C4NFGQxu0=\")","v":{"$error":"#REF!"}},{"$f":"AND(#REF!,\"A2C4NFGQxu4=\")","v":{"$error":"#REF!"}},{"$f":"AND(#REF!,\"A2C4NFGQxu8=\")","v":{"$error":"#REF!"}},{"$f":"AND(#REF!,\"A2C4NFGQxvA=\")","v":{"$error":"#REF!"}},{"$f":"AND(#REF!,\"A2C4NFGQxvE=\")","v":{"$error":"#REF!"}},{"$f":"AND(#REF!,\"A2C4NFGQxvI=\")","v":{"$error":"#REF!"}},{"$f":"AND(#REF!,\"A2C4NFGQxvM=\")","v":{"$error":"#REF!"}},{"$f":"AND(#REF!,\"A2C4NFGQxvQ=\")","v":{"$error":"#REF!"}},{"$f":"AND(#REF!,\"A2C4NFGQxvU=\")","v":{"$error":"#REF!"}},{"$f":"AND(#REF!,\"A2C4NFGQxvY=\")","v":{"$error":"#REF!"}},{"$f":"AND(#REF!,\"A2C4NFGQxvc=\")","v":{"$error":"#REF!"}},{"$f":"AND(#REF!,\"A2C4NFGQxvg=\")","v":{"$error":"#REF!"}},{"$f":"AND(#REF!,\"A2C4NFGQxvk=\")","v":{"$error":"#REF!"}},{"$f":"AND(#REF!,\"A2C4NFGQxvo=\")","v":{"$error":"#REF!"}},{"$f":"AND(#REF!,\"A2C4NFGQxvs=\")","v":{"$error":"#REF!"}},{"$f":"AND(#REF!,\"A2C4NFGQxvw=\")","v":{"$error":"#REF!"}},{"$f":"AND(#REF!,\"A2C4NFGQxv0=\")","v":{"$error":"#REF!"}},{"$f":"AND(#REF!,\"A2C4NFGQxv4=\")","v":{"$error":"#REF!"}},{"$f":"AND(#REF!,\"A2C4NFGQxv8=\")","v":{"$error":"#REF!"}}]
[{"$f":"AND(#REF!,\"N/VRgDbj0QA=\")","v":{"$error":"#REF!"}},{"$f":"AND(#REF!,\"N/VRgDbj0QE=\")","v":{"$error":"#REF!"}},{"$f":"AND(#REF!,\"N/VRgDbj0QI=\")","v":{"$error":"#REF!"}},{"$f":"AND(#REF!,\"N/VRgDbj0QM=\")","v":{"$error":"#REF!"}},{"$f":"AND(#REF!,\"N/VRgDbj0QQ=\")","v":{"$error":"#REF!"}},{"$f":"AND(#REF!,\"N/VRgDbj0QU=\")","v":{"$error":"#REF!"}},{"$f":"AND(#REF!,\"N/VRgDbj0QY=\")","v":{"$error":"#REF!"}},{"$f":"AND(#REF!,\"N/VRgDbj0Qc=\")","v":{"$error":"#REF!"}},{"$f":"AND(#REF!,\"N/VRgDbj0Qg=\")","v":{"$error":"#REF!"}},{"$f":"AND(#REF!,\"N/VRgDbj0Qk=\")","v":{"$error":"#REF!"}},{"$f":"AND(#REF!,\"N/VRgDbj0Qo=\")","v":{"$error":"#REF!"}},{"$f":"AND(#REF!,\"N/VRgDbj0Qs=\")","v":{"$error":"#REF!"}},{"$f":"AND(#REF!,\"N/VRgDbj0Qw=\")","v":{"$error":"#REF!"}},{"$f":"AND(#REF!,\"N/VRgDbj0Q0=\")","v":{"$error":"#REF!"}},{"$f":"AND(#REF!,\"N/VRgDbj0Q4=\")","v":{"$error":"#REF!"}},{"$f":"AND(#REF!,\"N/VRgDbj0Q8=\")","v":{"$error":"#REF!"}},{"$f":"AND(#REF!,\"N/VRgDbj0RA=\")","v":{"$error":"#REF!"}},{"$f":"AND(#REF!,\"N/VRgDbj0RE=\")","v":{"$error":"#REF!"}},{"$f":"AND(#REF!,\"N/VRgDbj0RI=\")","v":{"$error":"#REF!"}},{"$f":"AND(#REF!,\"N/VRgDbj0RM=\")","v":{"$error":"#REF!"}},{"$f":"AND(#REF!,\"N/VRgDbj0RQ=\")","v":{"$error":"#REF!"}},{"$f":"AND(#REF!,\"N/VRgDbj0RU=\")","v":{"$error":"#REF!"}},{"$f":"AND(#REF!,\"N/VRgDbj0RY=\")","v":{"$error":"#REF!"}},{"$f":"AND(#REF!,\"N/VRgDbj0Rc=\")","v":{"$error":"#REF!"}},{"$f":"AND(#REF!,\"N/VRgDbj0Rg=\")","v":{"$error":"#REF!"}},{"$f":"AND(#REF!,\"N/VRgDbj0Rk=\")","v":{"$error":"#REF!"}},{"$f":"AND(#REF!,\"N/VRgDbj0Ro=\")","v":{"$error":"#REF!"}},{"$f":"AND(#REF!,\"N/VRgDbj0Rs=\")","v":{"$error":"#REF!"}},{"$f":"AND(#REF!,\"N/VRgDbj0Rw=\")","v":{"$error":"#REF!"}},{"$f":"AND(#REF!,\"N/VRgDbj0R0=\")","v":{"$error":"#REF!"}},{"$f":"AND(#REF!,\"N/VRgDbj0R4=\")","v":{"$error":"#REF!"}},{"$f":"AND(#REF!,\"N/VRgDbj0R8=\")","v":{"$error":"#REF!"}},{"$f":"AND(#REF!,\"N/VRgDbj0SA=\")","v":{"$error":"#REF!"}},{"$f":"AND(#REF!,\"N/VRgDbj0SE=\")","v":{"$error":"#REF!"}},{"$f":"AND(#REF!,\"N/VRgDbj0SI=\")","v":{"$error":"#REF!"}},{"$f":"AND(#REF!,\"N/VRgDbj0SM=\")","v":{"$error":"#REF!"}},{"$f":"AND(#REF!,\"N/VRgDbj0SQ=\")","v":{"$error":"#REF!"}},{"$f":"AND(#REF!,\"N/VRgDbj0SU=\")","v":{"$error":"#REF!"}},{"$f":"AND(#REF!,\"N/VRgDbj0SY=\")","v":{"$error":"#REF!"}},{"$f":"AND(#REF!,\"N/VRgDbj0Sc=\")","v":{"$error":"#REF!"}},{"$f":"AND(#REF!,\"N/VRgDbj0Sg=\")","v":{"$error":"#REF!"}},{"$f":"AND(#REF!,\"N/VRgDbj0Sk=\")","v":{"$error":"#REF!"}},{"$f":"AND(#REF!,\"N/VRgDbj0So=\")","v":{"$error":"#REF!"}},{"$f":"AND(#REF!,\"N/VRgDbj0Ss=\")","v":{"$error":"#REF!"}},{"$f":"AND(#REF!,\"N/VRgDbj0Sw=\")","v":{"$error":"#REF!"}},{"$f":"AND(#REF!,\"N/VRgDbj0S0=\")","v":{"$error":"#REF!"}},{"$f":"AND(#REF!,\"N/VRgDbj0S4=\")","v":{"$error":"#REF!"}},{"$f":"AND(#REF!,\"N/VRgDbj0S8=\")","v":{"$error":"#REF!"}},{"$f":"AND(#REF!,\"N/VRgDbj0TA=\")","v":{"$error":"#REF!"}},{"$f":"AND(#REF!,\"N/VRgDbj0TE=\")","v":{"$error":"#REF!"}},{"$f":"AND(#REF!,\"N/VRgDbj0TI=\")","v":{"$error":"#REF!"}},{"$f":"AND(#REF!,\"N/VRgDbj0TM=\")","v":{"$error":"#REF!"}},{"$f":"AND(#REF!,\"N/VRgDbj0TQ=\")","v":{"$error":"#REF!"}},{"$f":"AND(#REF!,\"N/VRgDbj0TU=\")","v":{"$error":"#REF!"}},{"$f":"AND(#REF!,\"N/VRgDbj0TY=\")","v":{"$error":"#REF!"}},{"$f":"AND(#REF!,\"N/VRgDbj0Tc=\")","v":{"$error":"#REF!"}},{"$f":"AND(#REF!,\"N/VRgDbj0Tg=\")","v":{"$error":"#REF!"}},{"$f":"AND(#REF!,\"N/VRgDbj0Tk=\")","v":{"$error":"#REF!"}},{"$f":"AND(#REF!,\"N/VRgDbj0To=\")","v":{"$error":"#REF!"}},{"$f":"AND(#REF!,\"N/VRgDbj0Ts=\")","v":{"$error":"#REF!"}},{"$f":"AND(#REF!,\"N/VRgDbj0Tw=\")","v":{"$error":"#REF!"}},{"$f":"AND(#REF!,\"N/VRgDbj0T0=\")","v":{"$error":"#REF!"}},{"$f":"AND(#REF!,\"N/VRgDbj0T4=\")","v":{"$error":"#REF!"}},{"$f":"AND(#REF!,\"N/VRgDbj0T8=\")","v":{"$error":"#REF!"}},{"$f":"AND(#REF!,\"N/VRgDbj0UA=\")","v":{"$error":"#REF!"}},{"$f":"AND(#REF!,\"N/VRgDbj0UE=\")","v":{"$error":"#REF!"}},{"$f":"AND(#REF!,\"N/VRgDbj0UI=\")","v":{"$error":"#REF!"}},{"$f":"AND(#REF!,\"N/VRgDbj0UM=\")","v":{"$error":"#REF!"}},{"$f":"AND(#REF!,\"N/VRgDbj0UQ=\")","v":{"$error":"#REF!"}},{"$f":"AND(#REF!,\"N/VRgDbj0UU=\")","v":{"$error":"#REF!"}},{"$f":"AND(#REF!,\"N/VRgDbj0UY=\")","v":{"$error":"#REF!"}},{"$f":"AND(#REF!,\"N/VRgDbj0Uc=\")","v":{"$error":"#REF!"}},{"$f":"AND(#REF!,\"N/VRgDbj0Ug=\")","v":{"$error":"#REF!"}},{"$f":"AND(#REF!,\"N/VRgDbj0Uk=\")","v":{"$error":"#REF!"}},{"$f":"AND(#REF!,\"N/VRgDbj0Uo=\")","v":{"$error":"#REF!"}},{"$f":"AND(#REF!,\"N/VRgDbj0Us=\")","v":{"$error":"#REF!"}},{"$f":"AND(#REF!,\"N/VRgDbj0Uw=\")","v":{"$error":"#REF!"}},{"$f":"AND(#REF!,\"N/VRgDbj0U0=\")","v":{"$error":"#REF!"}},{"$f":"AND(#REF!,\"N/VRgDbj0U4=\")","v":{"$error":"#REF!"}},{"$f":"AND(#REF!,\"N/VRgDbj0U8=\")","v":{"$error":"#REF!"}},{"$f":"AND(#REF!,\"N/VRgDbj0VA=\")","v":{"$error":"#REF!"}},{"$f":"AND(#REF!,\"N/VRgDbj0VE=\")","v":{"$error":"#REF!"}},{"$f":"AND(#REF!,\"N/VRgDbj0VI=\")","v":{"$error":"#REF!"}},{"$f":"AND(#REF!,\"N/VRgDbj0VM=\")","v":{"$error":"#REF!"}},{"$f":"AND(#REF!,\"N/VRgDbj0VQ=\")","v":{"$error":"#REF!"}},{"$f":"AND(#REF!,\"N/VRgDbj0VU=\")","v":{"$error":"#REF!"}},{"$f":"AND(#REF!,\"N/VRgDbj0VY=\")","v":{"$error":"#REF!"}},{"$f":"AND(#REF!,\"N/VRgDbj0Vc=\")","v":{"$error":"#REF!"}},{"$f":"AND(#REF!,\"N/VRgDbj0Vg=\")","v":{"$error":"#REF!"}},{"$f":"AND(#REF!,\"N/VRgDbj0Vk=\")","v":{"$error":"#REF!"}},{"$f":"AND(#REF!,\"N/VRgDbj0Vo=\")","v":{"$error":"#REF!"}},{"$f":"AND(#REF!,\"N/VRgDbj0Vs=\")","v":{"$error":"#REF!"}},{"$f":"AND(#REF!,\"N/VRgDbj0Vw=\")","v":{"$error":"#REF!"}},{"$f":"AND(#REF!,\"N/VRgDbj0V0=\")","v":{"$error":"#REF!"}},{"$f":"AND(#REF!,\"N/VRgDbj0V4=\")","v":{"$error":"#REF!"}},{"$f":"AND(#REF!,\"N/VRgDbj0V8=\")","v":{"$error":"#REF!"}},{"$f":"AND(#REF!,\"N/VRgDbj0WA=\")","v":{"$error":"#REF!"}},{"$f":"AND(#REF!,\"N/VRgDbj0WE=\")","v":{"$error":"#REF!"}},{"$f":"AND(#REF!,\"N/VRgDbj0WI=\")","v":{"$error":"#REF!"}},{"$f":"AND(#REF!,\"N/VRgDbj0WM=\")","v":{"$error":"#REF!"}},{"$f":"AND(#REF!,\"N/VRgDbj0WQ=\")","v":{"$error":"#REF!"}},{"$f":"AND(#REF!,\"N/VRgDbj0WU=\")","v":{"$error":"#REF!"}},{"$f":"AND(#REF!,\"N/VRgDbj0WY=\")","v":{"$error":"#REF!"}},{"$f":"AND(#REF!,\"N/VRgDbj0Wc=\")","v":{"$error":"#REF!"}},{"$f":"AND(#REF!,\"N/VRgDbj0Wg=\")","v":{"$error":"#REF!"}},{"$f":"AND(#REF!,\"N/VRgDbj0Wk=\")","v":{"$error":"#REF!"}},{"$f":"IF(#REF!,\"N/VRgDbj0Wo=\",0)","v":{"$error":"#REF!"}},{"$f":"AND(#REF!,\"N/VRgDbj0Ws=\")","v":{"$error":"#REF!"}},{"$f":"AND(#REF!,\"N/VRgDbj0Ww=\")","v":{"$error":"#REF!"}},{"$f":"AND(#REF!,\"N/VRgDbj0W0=\")","v":{"$error":"#REF!"}},{"$f":"AND(#REF!,\"N/VRgDbj0W4=\")","v":{"$error":"#REF!"}},{"$f":"AND(#REF!,\"N/VRgDbj0W8=\")","v":{"$error":"#REF!"}},{"$f":"AND(#REF!,\"N/VRgDbj0XA=\")","v":{"$error":"#REF!"}},{"$f":"AND(#REF!,\"N/VRgDbj0XE=\")","v":{"$error":"#REF!"}},{"$f":"AND(#REF!,\"N/VRgDbj0XI=\")","v":{"$error":"#REF!"}},{"$f":"AND(#REF!,\"N/VRgDbj0XM=\")","v":{"$error":"#REF!"}},{"$f":"AND(#REF!,\"N/VRgDbj0XQ=\")","v":{"$error":"#REF!"}},{"$f":"AND(#REF!,\"N/VRgDbj0XU=\")","v":{"$error":"#REF!"}},{"$f":"AND(#REF!,\"N/VRgDbj0XY=\")","v":{"$error":"#REF!"}},{"$f":"AND(#REF!,\"N/VRgDbj0Xc=\")","v":{"$error":"#REF!"}},{"$f":"AND(#REF!,\"N/VRgDbj0Xg=\")","v":{"$error":"#REF!"}},{"$f":"AND(#REF!,\"N/VRgDbj0Xk=\")","v":{"$error":"#REF!"}},{"$f":"AND(#REF!,\"N/VRgDbj0Xo=\")","v":{"$error":"#REF!"}},{"$f":"AND(#REF!,\"N/VRgDbj0Xs=\")","v":{"$error":"#REF!"}},{"$f":"AND(#REF!,\"N/VRgDbj0Xw=\")","v":{"$error":"#REF!"}},{"$f":"AND(#REF!,\"N/VRgDbj0X0=\")","v":{"$error":"#REF!"}},{"$f":"AND(#REF!,\"N/VRgDbj0X4=\")","v":{"$error":"#REF!"}},{"$f":"AND(#REF!,\"N/VRgDbj0X8=\")","v":{"$error":"#REF!"}},{"$f":"AND(#REF!,\"N/VRgDbj0YA=\")","v":{"$error":"#REF!"}},{"$f":"AND(#REF!,\"N/VRgDbj0YE=\")","v":{"$error":"#REF!"}},{"$f":"AND(#REF!,\"N/VRgDbj0YI=\")","v":{"$error":"#REF!"}},{"$f":"AND(#REF!,\"N/VRgDbj0YM=\")","v":{"$error":"#REF!"}},{"$f":"AND(#REF!,\"N/VRgDbj0YQ=\")","v":{"$error":"#REF!"}},{"$f":"AND(#REF!,\"N/VRgDbj0YU=\")","v":{"$error":"#REF!"}},{"$f":"AND(#REF!,\"N/VRgDbj0YY=\")","v":{"$error":"#REF!"}},{"$f":"AND(#REF!,\"N/VRgDbj0Yc=\")","v":{"$error":"#REF!"}},{"$f":"AND(#REF!,\"N/VRgDbj0Yg=\")","v":{"$error":"#REF!"}},{"$f":"AND(#REF!,\"N/VRgDbj0Yk=\")","v":{"$error":"#REF!"}},{"$f":"AND(#REF!,\"N/VRgDbj0Yo=\")","v":{"$error":"#REF!"}},{"$f":"AND(#REF!,\"N/VRgDbj0Ys=\")","v":{"$error":"#REF!"}},{"$f":"AND(#REF!,\"N/VRgDbj0Yw=\")","v":{"$error":"#REF!"}},{"$f":"AND(#REF!,\"N/VRgDbj0Y0=\")","v":{"$error":"#REF!"}},{"$f":"AND(#REF!,\"N/VRgDbj0Y4=\")","v":{"$error":"#REF!"}},{"$f":"AND(#REF!,\"N/VRgDbj0Y8=\")","v":{"$error":"#REF!"}},{"$f":"AND(#REF!,\"N/VRgDbj0ZA=\")","v":{"$error":"#REF!"}},{"$f":"AND(#REF!,\"N/VRgDbj0ZE=\")","v":{"$error":"#REF!"}},{"$f":"AND(#REF!,\"N/VRgDbj0ZI=\")","v":{"$error":"#REF!"}},{"$f":"AND(#REF!,\"N/VRgDbj0ZM=\")","v":{"$error":"#REF!"}},{"$f":"AND(#REF!,\"N/VRgDbj0ZQ=\")","v":{"$error":"#REF!"}},{"$f":"AND(#REF!,\"N/VRgDbj0ZU=\")","v":{"$error":"#REF!"}},{"$f":"AND(#REF!,\"N/VRgDbj0ZY=\")","v":{"$error":"#REF!"}},{"$f":"AND(#REF!,\"N/VRgDbj0Zc=\")","v":{"$error":"#REF!"}},{"$f":"AND(#REF!,\"N/VRgDbj0Zg=\")","v":{"$error":"#REF!"}},{"$f":"AND(#REF!,\"N/VRgDbj0Zk=\")","v":{"$error":"#REF!"}},{"$f":"AND(#REF!,\"N/VRgDbj0Zo=\")","v":{"$error":"#REF!"}},{"$f":"AND(#REF!,\"N/VRgDbj0Zs=\")","v":{"$error":"#REF!"}},{"$f":"AND(#REF!,\"N/VRgDbj0Zw=\")","v":{"$error":"#REF!"}},{"$f":"AND(#REF!,\"N/VRgDbj0Z0=\")","v":{"$error":"#REF!"}},{"$f":"AND(#REF!,\"N/VRgDbj0Z4=\")","v":{"$error":"#REF!"}},{"$f":"AND(#REF!,\"N/VRgDbj0Z8=\")","v":{"$error":"#REF!"}},{"$f":"AND(#REF!,\"N/VRgDbj0aA=\")","v":{"$error":"#REF!"}},{"$f":"AND(#REF!,\"N/VRgDbj0aE=\")","v":{"$error":"#REF!"}},{"$f":"AND(#REF!,\"N/VRgDbj0aI=\")","v":{"$error":"#REF!"}},{"$f":"AND(#REF!,\"N/VRgDbj0aM=\")","v":{"$error":"#REF!"}},{"$f":"AND(#REF!,\"N/VRgDbj0aQ=\")","v":{"$error":"#REF!"}},{"$f":"AND(#REF!,\"N/VRgDbj0aU=\")","v":{"$error":"#REF!"}},{"$f":"AND(#REF!,\"N/VRgDbj0aY=\")","v":{"$error":"#REF!"}},{"$f":"AND(#REF!,\"N/VRgDbj0ac=\")","v":{"$error":"#REF!"}},{"$f":"AND(#REF!,\"N/VRgDbj0ag=\")","v":{"$error":"#REF!"}},{"$f":"AND(#REF!,\"N/VRgDbj0ak=\")","v":{"$error":"#REF!"}},{"$f":"AND(#REF!,\"N/VRgDbj0ao=\")","v":{"$error":"#REF!"}},{"$f":"AND(#REF!,\"N/VRgDbj0as=\")","v":{"$error":"#REF!"}},{"$f":"AND(#REF!,\"N/VRgDbj0aw=\")","v":{"$error":"#REF!"}},{"$f":"AND(#REF!,\"N/VRgDbj0a0=\")","v":{"$error":"#REF!"}},{"$f":"AND(#REF!,\"N/VRgDbj0a4=\")","v":{"$error":"#REF!"}},{"$f":"AND(#REF!,\"N/VRgDbj0a8=\")","v":{"$error":"#REF!"}},{"$f":"AND(#REF!,\"N/VRgDbj0bA=\")","v":{"$error":"#REF!"}},{"$f":"AND(#REF!,\"N/VRgDbj0bE=\")","v":{"$error":"#REF!"}},{"$f":"AND(#REF!,\"N/VRgDbj0bI=\")","v":{"$error":"#REF!"}},{"$f":"AND(#REF!,\"N/VRgDbj0bM=\")","v":{"$error":"#REF!"}},{"$f":"AND(#REF!,\"N/VRgDbj0bQ=\")","v":{"$error":"#REF!"}},{"$f":"AND(#REF!,\"N/VRgDbj0bU=\")","v":{"$error":"#REF!"}},{"$f":"AND(#REF!,\"N/VRgDbj0bY=\")","v":{"$error":"#REF!"}},{"$f":"AND(#REF!,\"N/VRgDbj0bc=\")","v":{"$error":"#REF!"}},{"$f":"AND(#REF!,\"N/VRgDbj0bg=\")","v":{"$error":"#REF!"}},{"$f":"AND(#REF!,\"N/VRgDbj0bk=\")","v":{"$error":"#REF!"}},{"$f":"AND(#REF!,\"N/VRgDbj0bo=\")","v":{"$error":"#REF!"}},{"$f":"AND(#REF!,\"N/VRgDbj0bs=\")","v":{"$error":"#REF!"}},{"$f":"AND(#REF!,\"N/VRgDbj0bw=\")","v":{"$error":"#REF!"}},{"$f":"AND(#REF!,\"N/VRgDbj0b0=\")","v":{"$error":"#REF!"}},{"$f":"AND(#REF!,\"N/VRgDbj0b4=\")","v":{"$error":"#REF!"}},{"$f":"AND(#REF!,\"N/VRgDbj0b8=\")","v":{"$error":"#REF!"}},{"$f":"AND(#REF!,\"N/VRgDbj0cA=\")","v":{"$error":"#REF!"}},{"$f":"AND(#REF!,\"N/VRgDbj0cE=\")","v":{"$error":"#REF!"}},{"$f":"AND(#REF!,\"N/VRgDbj0cI=\")","v":{"$error":"#REF!"}},{"$f":"AND(#REF!,\"N/VRgDbj0cM=\")","v":{"$error":"#REF!"}},{"$f":"AND(#REF!,\"N/VRgDbj0cQ=\")","v":{"$error":"#REF!"}},{"$f":"AND(#REF!,\"N/VRgDbj0cU=\")","v":{"$error":"#REF!"}},{"$f":"AND(#REF!,\"N/VRgDbj0cY=\")","v":{"$error":"#REF!"}},{"$f":"AND(#REF!,\"N/VRgDbj0cc=\")","v":{"$error":"#REF!"}},{"$f":"AND(#REF!,\"N/VRgDbj0cg=\")","v":{"$error":"#REF!"}},{"$f":"AND(#REF!,\"N/VRgDbj0ck=\")","v":{"$error":"#REF!"}},{"$f":"AND(#REF!,\"N/VRgDbj0co=\")","v":{"$error":"#REF!"}},{"$f":"AND(#REF!,\"N/VRgDbj0cs=\")","v":{"$error":"#REF!"}},{"$f":"AND(#REF!,\"N/VRgDbj0cw=\")","v":{"$error":"#REF!"}},{"$f":"AND(#REF!,\"N/VRgDbj0c0=\")","v":{"$error":"#REF!"}},{"$f":"AND(#REF!,\"N/VRgDbj0c4=\")","v":{"$error":"#REF!"}},{"$f":"AND(#REF!,\"N/VRgDbj0c8=\")","v":{"$error":"#REF!"}},{"$f":"AND(#REF!,\"N/VRgDbj0dA=\")","v":{"$error":"#REF!"}},{"$f":"AND(#REF!,\"N/VRgDbj0dE=\")","v":{"$error":"#REF!"}},{"$f":"AND(#REF!,\"N/VRgDbj0dI=\")","v":{"$error":"#REF!"}},{"$f":"AND(#REF!,\"N/VRgDbj0dM=\")","v":{"$error":"#REF!"}},{"$f":"AND(#REF!,\"N/VRgDbj0dQ=\")","v":{"$error":"#REF!"}},{"$f":"AND(#REF!,\"N/VRgDbj0dU=\")","v":{"$error":"#REF!"}},{"$f":"AND(#REF!,\"N/VRgDbj0dY=\")","v":{"$error":"#REF!"}},{"$f":"AND(#REF!,\"N/VRgDbj0dc=\")","v":{"$error":"#REF!"}},{"$f":"AND(#REF!,\"N/VRgDbj0dg=\")","v":{"$error":"#REF!"}},{"$f":"AND(#REF!,\"N/VRgDbj0dk=\")","v":{"$error":"#REF!"}},{"$f":"AND(#REF!,\"N/VRgDbj0do=\")","v":{"$error":"#REF!"}},{"$f":"AND(#REF!,\"N/VRgDbj0ds=\")","v":{"$error":"#REF!"}},{"$f":"AND(#REF!,\"N/VRgDbj0dw=\")","v":{"$error":"#REF!"}},{"$f":"AND(#REF!,\"N/VRgDbj0d0=\")","v":{"$error":"#REF!"}},{"$f":"AND(#REF!,\"N/VRgDbj0d4=\")","v":{"$error":"#REF!"}},{"$f":"AND(#REF!,\"N/VRgDbj0d8=\")","v":{"$error":"#REF!"}},{"$f":"AND(#REF!,\"N/VRgDbj0eA=\")","v":{"$error":"#REF!"}},{"$f":"AND(#REF!,\"N/VRgDbj0eE=\")","v":{"$error":"#REF!"}},{"$f":"AND(#REF!,\"N/VRgDbj0eI=\")","v":{"$error":"#REF!"}},{"$f":"AND(#REF!,\"N/VRgDbj0eM=\")","v":{"$error":"#REF!"}},{"$f":"AND(#REF!,\"N/VRgDbj0eQ=\")","v":{"$error":"#REF!"}},{"$f":"AND(#REF!,\"N/VRgDbj0eU=\")","v":{"$error":"#REF!"}},{"$f":"AND(#REF!,\"N/VRgDbj0eY=\")","v":{"$error":"#REF!"}},{"$f":"AND(#REF!,\"N/VRgDbj0ec=\")","v":{"$error":"#REF!"}},{"$f":"AND(#REF!,\"N/VRgDbj0eg=\")","v":{"$error":"#REF!"}},{"$f":"AND(#REF!,\"N/VRgDbj0ek=\")","v":{"$error":"#REF!"}},{"$f":"AND(#REF!,\"N/VRgDbj0eo=\")","v":{"$error":"#REF!"}},{"$f":"AND(#REF!,\"N/VRgDbj0es=\")","v":{"$error":"#REF!"}},{"$f":"AND(#REF!,\"N/VRgDbj0ew=\")","v":{"$error":"#REF!"}},{"$f":"AND(#REF!,\"N/VRgDbj0e0=\")","v":{"$error":"#REF!"}},{"$f":"AND(#REF!,\"N/VRgDbj0e4=\")","v":{"$error":"#REF!"}},{"$f":"AND(#REF!,\"N/VRgDbj0e8=\")","v":{"$error":"#REF!"}},{"$f":"AND(#REF!,\"N/VRgDbj0fA=\")","v":{"$error":"#REF!"}},{"$f":"AND(#REF!,\"N/VRgDbj0fE=\")","v":{"$error":"#REF!"}},{"$f":"AND(#REF!,\"N/VRgDbj0fI=\")","v":{"$error":"#REF!"}},{"$f":"AND(#REF!,\"N/VRgDbj0fM=\")","v":{"$error":"#REF!"}},{"$f":"AND(#REF!,\"N/VRgDbj0fQ=\")","v":{"$error":"#REF!"}},{"$f":"AND(#REF!,\"N/VRgDbj0fU=\")","v":{"$error":"#REF!"}},{"$f":"AND(#REF!,\"N/VRgDbj0fY=\")","v":{"$error":"#REF!"}},{"$f":"AND(#REF!,\"N/VRgDbj0fc=\")","v":{"$error":"#REF!"}},{"$f":"AND(#REF!,\"N/VRgDbj0fg=\")","v":{"$error":"#REF!"}},{"$f":"AND(#REF!,\"N/VRgDbj0fk=\")","v":{"$error":"#REF!"}},{"$f":"AND(#REF!,\"N/VRgDbj0fo=\")","v":{"$error":"#REF!"}},{"$f":"AND(#REF!,\"N/VRgDbj0fs=\")","v":{"$error":"#REF!"}},{"$f":"AND(#REF!,\"N/VRgDbj0fw=\")","v":{"$error":"#REF!"}},{"$f":"AND(#REF!,\"N/VRgDbj0f0=\")","v":{"$error":"#REF!"}},{"$f":"AND(#REF!,\"N/VRgDbj0f4=\")","v":{"$error":"#REF!"}},{"$f":"AND(#REF!,\"N/VRgDbj0f8=\")","v":{"$error":"#REF!"}}]
[{"$f":"AND(#REF!,\"dD9jSF3NqQA=\")","v":{"$error":"#REF!"}},{"$f":"AND(#REF!,\"dD9jSF3NqQE=\")","v":{"$error":"#REF!"}},{"$f":"AND(#REF!,\"dD9jSF3NqQI=\")","v":{"$error":"#REF!"}},{"$f":"AND(#REF!,\"dD9jSF3NqQM=\")","v":{"$error":"#REF!"}},{"$f":"AND(#REF!,\"dD9jSF3NqQQ=\")","v":{"$error":"#REF!"}},{"$f":"AND(#REF!,\"dD9jSF3NqQU=\")","v":{"$error":"#REF!"}},{"$f":"AND(#REF!,\"dD9jSF3NqQY=\")","v":{"$error":"#REF!"}},{"$f":"AND(#REF!,\"dD9jSF3NqQc=\")","v":{"$error":"#REF!"}},{"$f":"AND(#REF!,\"dD9jSF3NqQg=\")","v":{"$error":"#REF!"}},{"$f":"AND(#REF!,\"dD9jSF3NqQk=\")","v":{"$error":"#REF!"}},{"$f":"AND(#REF!,\"dD9jSF3NqQo=\")","v":{"$error":"#REF!"}},{"$f":"AND(#REF!,\"dD9jSF3NqQs=\")","v":{"$error":"#REF!"}},{"$f":"AND(#REF!,\"dD9jSF3NqQw=\")","v":{"$error":"#REF!"}},{"$f":"AND(#REF!,\"dD9jSF3NqQ0=\")","v":{"$error":"#REF!"}},{"$f":"AND(#REF!,\"dD9jSF3NqQ4=\")","v":{"$error":"#REF!"}},{"$f":"AND(#REF!,\"dD9jSF3NqQ8=\")","v":{"$error":"#REF!"}},{"$f":"AND(#REF!,\"dD9jSF3NqRA=\")","v":{"$error":"#REF!"}},{"$f":"AND(#REF!,\"dD9jSF3NqRE=\")","v":{"$error":"#REF!"}},{"$f":"AND(#REF!,\"dD9jSF3NqRI=\")","v":{"$error":"#REF!"}},{"$f":"AND(#REF!,\"dD9jSF3NqRM=\")","v":{"$error":"#REF!"}},{"$f":"AND(#REF!,\"dD9jSF3NqRQ=\")","v":{"$error":"#REF!"}},{"$f":"AND(#REF!,\"dD9jSF3NqRU=\")","v":{"$error":"#REF!"}},{"$f":"AND(#REF!,\"dD9jSF3NqRY=\")","v":{"$error":"#REF!"}},{"$f":"AND(#REF!,\"dD9jSF3NqRc=\")","v":{"$error":"#REF!"}},{"$f":"AND(#REF!,\"dD9jSF3NqRg=\")","v":{"$error":"#REF!"}},{"$f":"AND(#REF!,\"dD9jSF3NqRk=\")","v":{"$error":"#REF!"}},{"$f":"AND(#REF!,\"dD9jSF3NqRo=\")","v":{"$error":"#REF!"}},{"$f":"AND(#REF!,\"dD9jSF3NqRs=\")","v":{"$error":"#REF!"}},{"$f":"AND(#REF!,\"dD9jSF3NqRw=\")","v":{"$error":"#REF!"}},{"$f":"AND(#REF!,\"dD9jSF3NqR0=\")","v":{"$error":"#REF!"}},{"$f":"AND(#REF!,\"dD9jSF3NqR4=\")","v":{"$error":"#REF!"}},{"$f":"AND(#REF!,\"dD9jSF3NqR8=\")","v":{"$error":"#REF!"}},{"$f":"AND(#REF!,\"dD9jSF3NqSA=\")","v":{"$error":"#REF!"}},{"$f":"AND(#REF!,\"dD9jSF3NqSE=\")","v":{"$error":"#REF!"}},{"$f":"AND(#REF!,\"dD9jSF3NqSI=\")","v":{"$error":"#REF!"}},{"$f":"AND(#REF!,\"dD9jSF3NqSM=\")","v":{"$error":"#REF!"}},{"$f":"AND(#REF!,\"dD9jSF3NqSQ=\")","v":{"$error":"#REF!"}},{"$f":"AND(#REF!,\"dD9jSF3NqSU=\")","v":{"$error":"#REF!"}},{"$f":"AND(#REF!,\"dD9jSF3NqSY=\")","v":{"$error":"#REF!"}},{"$f":"AND(#REF!,\"dD9jSF3NqSc=\")","v":{"$error":"#REF!"}},{"$f":"AND(#REF!,\"dD9jSF3NqSg=\")","v":{"$error":"#REF!"}},{"$f":"AND(#REF!,\"dD9jSF3NqSk=\")","v":{"$error":"#REF!"}},{"$f":"AND(#REF!,\"dD9jSF3NqSo=\")","v":{"$error":"#REF!"}},{"$f":"AND(#REF!,\"dD9jSF3NqSs=\")","v":{"$error":"#REF!"}},{"$f":"AND(#REF!,\"dD9jSF3NqSw=\")","v":{"$error":"#REF!"}},{"$f":"AND(#REF!,\"dD9jSF3NqS0=\")","v":{"$error":"#REF!"}},{"$f":"AND(#REF!,\"dD9jSF3NqS4=\")","v":{"$error":"#REF!"}},{"$f":"AND(#REF!,\"dD9jSF3NqS8=\")","v":{"$error":"#REF!"}},{"$f":"AND(#REF!,\"dD9jSF3NqTA=\")","v":{"$error":"#REF!"}},{"$f":"IF(#REF!,\"dD9jSF3NqTE=\",0)","v":{"$error":"#REF!"}},{"$f":"AND(#REF!,\"dD9jSF3NqTI=\")","v":{"$error":"#REF!"}},{"$f":"AND(#REF!,\"dD9jSF3NqTM=\")","v":{"$error":"#REF!"}},{"$f":"AND(#REF!,\"dD9jSF3NqTQ=\")","v":{"$error":"#REF!"}},{"$f":"AND(#REF!,\"dD9jSF3NqTU=\")","v":{"$error":"#REF!"}},{"$f":"AND(#REF!,\"dD9jSF3NqTY=\")","v":{"$error":"#REF!"}},{"$f":"AND(#REF!,\"dD9jSF3NqTc=\")","v":{"$error":"#REF!"}},{"$f":"AND(#REF!,\"dD9jSF3NqTg=\")","v":{"$error":"#REF!"}},{"$f":"AND(#REF!,\"dD9jSF3NqTk=\")","v":{"$error":"#REF!"}},{"$f":"AND(#REF!,\"dD9jSF3NqTo=\")","v":{"$error":"#REF!"}},{"$f":"AND(#REF!,\"dD9jSF3NqTs=\")","v":{"$error":"#REF!"}},{"$f":"AND(#REF!,\"dD9jSF3NqTw=\")","v":{"$error":"#REF!"}},{"$f":"AND(#REF!,\"dD9jSF3NqT0=\")","v":{"$error":"#REF!"}},{"$f":"AND(#REF!,\"dD9jSF3NqT4=\")","v":{"$error":"#REF!"}},{"$f":"AND(#REF!,\"dD9jSF3NqT8=\")","v":{"$error":"#REF!"}},{"$f":"AND(#REF!,\"dD9jSF3NqUA=\")","v":{"$error":"#REF!"}},{"$f":"AND(#REF!,\"dD9jSF3NqUE=\")","v":{"$error":"#REF!"}},{"$f":"AND(#REF!,\"dD9jSF3NqUI=\")","v":{"$error":"#REF!"}},{"$f":"AND(#REF!,\"dD9jSF3NqUM=\")","v":{"$error":"#REF!"}},{"$f":"AND(#REF!,\"dD9jSF3NqUQ=\")","v":{"$error":"#REF!"}},{"$f":"AND(#REF!,\"dD9jSF3NqUU=\")","v":{"$error":"#REF!"}},{"$f":"AND(#REF!,\"dD9jSF3NqUY=\")","v":{"$error":"#REF!"}},{"$f":"AND(#REF!,\"dD9jSF3NqUc=\")","v":{"$error":"#REF!"}},{"$f":"AND(#REF!,\"dD9jSF3NqUg=\")","v":{"$error":"#REF!"}},{"$f":"AND(#REF!,\"dD9jSF3NqUk=\")","v":{"$error":"#REF!"}},{"$f":"AND(#REF!,\"dD9jSF3NqUo=\")","v":{"$error":"#REF!"}},{"$f":"AND(#REF!,\"dD9jSF3NqUs=\")","v":{"$error":"#REF!"}},{"$f":"AND(#REF!,\"dD9jSF3NqUw=\")","v":{"$error":"#REF!"}},{"$f":"AND(#REF!,\"dD9jSF3NqU0=\")","v":{"$error":"#REF!"}},{"$f":"AND(#REF!,\"dD9jSF3NqU4=\")","v":{"$error":"#REF!"}},{"$f":"AND(#REF!,\"dD9jSF3NqU8=\")","v":{"$error":"#REF!"}},{"$f":"AND(#REF!,\"dD9jSF3NqVA=\")","v":{"$error":"#REF!"}},{"$f":"AND(#REF!,\"dD9jSF3NqVE=\")","v":{"$error":"#REF!"}},{"$f":"AND(#REF!,\"dD9jSF3NqVI=\")","v":{"$error":"#REF!"}},{"$f":"AND(#REF!,\"dD9jSF3NqVM=\")","v":{"$error":"#REF!"}},{"$f":"AND(#REF!,\"dD9jSF3NqVQ=\")","v":{"$error":"#REF!"}},{"$f":"AND(#REF!,\"dD9jSF3NqVU=\")","v":{"$error":"#REF!"}},{"$f":"AND(#REF!,\"dD9jSF3NqVY=\")","v":{"$error":"#REF!"}},{"$f":"AND(#REF!,\"dD9jSF3NqVc=\")","v":{"$error":"#REF!"}},{"$f":"AND(#REF!,\"dD9jSF3NqVg=\")","v":{"$error":"#REF!"}},{"$f":"AND(#REF!,\"dD9jSF3NqVk=\")","v":{"$error":"#REF!"}},{"$f":"AND(#REF!,\"dD9jSF3NqVo=\")","v":{"$error":"#REF!"}},{"$f":"AND(#REF!,\"dD9jSF3NqVs=\")","v":{"$error":"#REF!"}},{"$f":"AND(#REF!,\"dD9jSF3NqVw=\")","v":{"$error":"#REF!"}},{"$f":"AND(#REF!,\"dD9jSF3NqV0=\")","v":{"$error":"#REF!"}},{"$f":"AND(#REF!,\"dD9jSF3NqV4=\")","v":{"$error":"#REF!"}},{"$f":"AND(#REF!,\"dD9jSF3NqV8=\")","v":{"$error":"#REF!"}},{"$f":"AND(#REF!,\"dD9jSF3NqWA=\")","v":{"$error":"#REF!"}},{"$f":"AND(#REF!,\"dD9jSF3NqWE=\")","v":{"$error":"#REF!"}},{"$f":"AND(#REF!,\"dD9jSF3NqWI=\")","v":{"$error":"#REF!"}},{"$f":"AND(#REF!,\"dD9jSF3NqWM=\")","v":{"$error":"#REF!"}},{"$f":"AND(#REF!,\"dD9jSF3NqWQ=\")","v":{"$error":"#REF!"}},{"$f":"AND(#REF!,\"dD9jSF3NqWU=\")","v":{"$error":"#REF!"}},{"$f":"AND(#REF!,\"dD9jSF3NqWY=\")","v":{"$error":"#REF!"}},{"$f":"AND(#REF!,\"dD9jSF3NqWc=\")","v":{"$error":"#REF!"}},{"$f":"AND(#REF!,\"dD9jSF3NqWg=\")","v":{"$error":"#REF!"}},{"$f":"AND(#REF!,\"dD9jSF3NqWk=\")","v":{"$error":"#REF!"}},{"$f":"AND(#REF!,\"dD9jSF3NqWo=\")","v":{"$error":"#REF!"}},{"$f":"AND(#REF!,\"dD9jSF3NqWs=\")","v":{"$error":"#REF!"}},{"$f":"AND(#REF!,\"dD9jSF3NqWw=\")","v":{"$error":"#REF!"}},{"$f":"AND(#REF!,\"dD9jSF3NqW0=\")","v":{"$error":"#REF!"}},{"$f":"AND(#REF!,\"dD9jSF3NqW4=\")","v":{"$error":"#REF!"}},{"$f":"AND(#REF!,\"dD9jSF3NqW8=\")","v":{"$error":"#REF!"}},{"$f":"AND(#REF!,\"dD9jSF3NqXA=\")","v":{"$error":"#REF!"}},{"$f":"AND(#REF!,\"dD9jSF3NqXE=\")","v":{"$error":"#REF!"}},{"$f":"AND(#REF!,\"dD9jSF3NqXI=\")","v":{"$error":"#REF!"}},{"$f":"AND(#REF!,\"dD9jSF3NqXM=\")","v":{"$error":"#REF!"}},{"$f":"AND(#REF!,\"dD9jSF3NqXQ=\")","v":{"$error":"#REF!"}},{"$f":"AND(#REF!,\"dD9jSF3NqXU=\")","v":{"$error":"#REF!"}},{"$f":"AND(#REF!,\"dD9jSF3NqXY=\")","v":{"$error":"#REF!"}},{"$f":"AND(#REF!,\"dD9jSF3NqXc=\")","v":{"$error":"#REF!"}},{"$f":"AND(#REF!,\"dD9jSF3NqXg=\")","v":{"$error":"#REF!"}},{"$f":"AND(#REF!,\"dD9jSF3NqXk=\")","v":{"$error":"#REF!"}},{"$f":"AND(#REF!,\"dD9jSF3NqXo=\")","v":{"$error":"#REF!"}},{"$f":"AND(#REF!,\"dD9jSF3NqXs=\")","v":{"$error":"#REF!"}},{"$f":"AND(#REF!,\"dD9jSF3NqXw=\")","v":{"$error":"#REF!"}},{"$f":"AND(#REF!,\"dD9jSF3NqX0=\")","v":{"$error":"#REF!"}},{"$f":"AND(#REF!,\"dD9jSF3NqX4=\")","v":{"$error":"#REF!"}},{"$f":"AND(#REF!,\"dD9jSF3NqX8=\")","v":{"$error":"#REF!"}},{"$f":"AND(#REF!,\"dD9jSF3NqYA=\")","v":{"$error":"#REF!"}},{"$f":"AND(#REF!,\"dD9jSF3NqYE=\")","v":{"$error":"#REF!"}},{"$f":"AND(#REF!,\"dD9jSF3NqYI=\")","v":{"$error":"#REF!"}},{"$f":"AND(#REF!,\"dD9jSF3NqYM=\")","v":{"$error":"#REF!"}},{"$f":"AND(#REF!,\"dD9jSF3NqYQ=\")","v":{"$error":"#REF!"}},{"$f":"AND(#REF!,\"dD9jSF3NqYU=\")","v":{"$error":"#REF!"}},{"$f":"AND(#REF!,\"dD9jSF3NqYY=\")","v":{"$error":"#REF!"}},{"$f":"AND(#REF!,\"dD9jSF3NqYc=\")","v":{"$error":"#REF!"}},{"$f":"AND(#REF!,\"dD9jSF3NqYg=\")","v":{"$error":"#REF!"}},{"$f":"AND(#REF!,\"dD9jSF3NqYk=\")","v":{"$error":"#REF!"}},{"$f":"AND(#REF!,\"dD9jSF3NqYo=\")","v":{"$error":"#REF!"}},{"$f":"AND(#REF!,\"dD9jSF3NqYs=\")","v":{"$error":"#REF!"}},{"$f":"AND(#REF!,\"dD9jSF3NqYw=\")","v":{"$error":"#REF!"}},{"$f":"AND(#REF!,\"dD9jSF3NqY0=\")","v":{"$error":"#REF!"}},{"$f":"AND(#REF!,\"dD9jSF3NqY4=\")","v":{"$error":"#REF!"}},{"$f":"AND(#REF!,\"dD9jSF3NqY8=\")","v":{"$error":"#REF!"}},{"$f":"AND(#REF!,\"dD9jSF3NqZA=\")","v":{"$error":"#REF!"}},{"$f":"AND(#REF!,\"dD9jSF3NqZE=\")","v":{"$error":"#REF!"}},{"$f":"AND(#REF!,\"dD9jSF3NqZI=\")","v":{"$error":"#REF!"}},{"$f":"AND(#REF!,\"dD9jSF3NqZM=\")","v":{"$error":"#REF!"}},{"$f":"AND(#REF!,\"dD9jSF3NqZQ=\")","v":{"$error":"#REF!"}},{"$f":"AND(#REF!,\"dD9jSF3NqZU=\")","v":{"$error":"#REF!"}},{"$f":"AND(#REF!,\"dD9jSF3NqZY=\")","v":{"$error":"#REF!"}},{"$f":"AND(#REF!,\"dD9jSF3NqZc=\")","v":{"$error":"#REF!"}},{"$f":"AND(#REF!,\"dD9jSF3NqZg=\")","v":{"$error":"#REF!"}},{"$f":"AND(#REF!,\"dD9jSF3NqZk=\")","v":{"$error":"#REF!"}},{"$f":"AND(#REF!,\"dD9jSF3NqZo=\")","v":{"$error":"#REF!"}},{"$f":"AND(#REF!,\"dD9jSF3NqZs=\")","v":{"$error":"#REF!"}},{"$f":"AND(#REF!,\"dD9jSF3NqZw=\")","v":{"$error":"#REF!"}},{"$f":"AND(#REF!,\"dD9jSF3NqZ0=\")","v":{"$error":"#REF!"}},{"$f":"AND(#REF!,\"dD9jSF3NqZ4=\")","v":{"$error":"#REF!"}},{"$f":"AND(#REF!,\"dD9jSF3NqZ8=\")","v":{"$error":"#REF!"}},{"$f":"AND(#REF!,\"dD9jSF3NqaA=\")","v":{"$error":"#REF!"}},{"$f":"AND(#REF!,\"dD9jSF3NqaE=\")","v":{"$error":"#REF!"}},{"$f":"AND(#REF!,\"dD9jSF3NqaI=\")","v":{"$error":"#REF!"}},{"$f":"AND(#REF!,\"dD9jSF3NqaM=\")","v":{"$error":"#REF!"}},{"$f":"AND(#REF!,\"dD9jSF3NqaQ=\")","v":{"$error":"#REF!"}},{"$f":"AND(#REF!,\"dD9jSF3NqaU=\")","v":{"$error":"#REF!"}},{"$f":"AND(#REF!,\"dD9jSF3NqaY=\")","v":{"$error":"#REF!"}},{"$f":"AND(#REF!,\"dD9jSF3Nqac=\")","v":{"$error":"#REF!"}},{"$f":"AND(#REF!,\"dD9jSF3Nqag=\")","v":{"$error":"#REF!"}},{"$f":"AND(#REF!,\"dD9jSF3Nqak=\")","v":{"$error":"#REF!"}},{"$f":"AND(#REF!,\"dD9jSF3Nqao=\")","v":{"$error":"#REF!"}},{"$f":"AND(#REF!,\"dD9jSF3Nqas=\")","v":{"$error":"#REF!"}},{"$f":"AND(#REF!,\"dD9jSF3Nqaw=\")","v":{"$error":"#REF!"}},{"$f":"AND(#REF!,\"dD9jSF3Nqa0=\")","v":{"$error":"#REF!"}},{"$f":"AND(#REF!,\"dD9jSF3Nqa4=\")","v":{"$error":"#REF!"}},{"$f":"AND(#REF!,\"dD9jSF3Nqa8=\")","v":{"$error":"#REF!"}},{"$f":"AND(#REF!,\"dD9jSF3NqbA=\")","v":{"$error":"#REF!"}},{"$f":"AND(#REF!,\"dD9jSF3NqbE=\")","v":{"$error":"#REF!"}},{"$f":"AND(#REF!,\"dD9jSF3NqbI=\")","v":{"$error":"#REF!"}},{"$f":"AND(#REF!,\"dD9jSF3NqbM=\")","v":{"$error":"#REF!"}},{"$f":"AND(#REF!,\"dD9jSF3NqbQ=\")","v":{"$error":"#REF!"}},{"$f":"AND(#REF!,\"dD9jSF3NqbU=\")","v":{"$error":"#REF!"}},{"$f":"AND(#REF!,\"dD9jSF3NqbY=\")","v":{"$error":"#REF!"}},{"$f":"AND(#REF!,\"dD9jSF3Nqbc=\")","v":{"$error":"#REF!"}},{"$f":"AND(#REF!,\"dD9jSF3Nqbg=\")","v":{"$error":"#REF!"}},{"$f":"AND(#REF!,\"dD9jSF3Nqbk=\")","v":{"$error":"#REF!"}},{"$f":"AND(#REF!,\"dD9jSF3Nqbo=\")","v":{"$error":"#REF!"}},{"$f":"AND(#REF!,\"dD9jSF3Nqbs=\")","v":{"$error":"#REF!"}},{"$f":"AND(#REF!,\"dD9jSF3Nqbw=\")","v":{"$error":"#REF!"}},{"$f":"AND(#REF!,\"dD9jSF3Nqb0=\")","v":{"$error":"#REF!"}},{"$f":"AND(#REF!,\"dD9jSF3Nqb4=\")","v":{"$error":"#REF!"}},{"$f":"AND(#REF!,\"dD9jSF3Nqb8=\")","v":{"$error":"#REF!"}},{"$f":"AND(#REF!,\"dD9jSF3NqcA=\")","v":{"$error":"#REF!"}},{"$f":"AND(#REF!,\"dD9jSF3NqcE=\")","v":{"$error":"#REF!"}},{"$f":"AND(#REF!,\"dD9jSF3NqcI=\")","v":{"$error":"#REF!"}},{"$f":"AND(#REF!,\"dD9jSF3NqcM=\")","v":{"$error":"#REF!"}},{"$f":"AND(#REF!,\"dD9jSF3NqcQ=\")","v":{"$error":"#REF!"}},{"$f":"AND(#REF!,\"dD9jSF3NqcU=\")","v":{"$error":"#REF!"}},{"$f":"AND(#REF!,\"dD9jSF3NqcY=\")","v":{"$error":"#REF!"}},{"$f":"AND(#REF!,\"dD9jSF3Nqcc=\")","v":{"$error":"#REF!"}},{"$f":"AND(#REF!,\"dD9jSF3Nqcg=\")","v":{"$error":"#REF!"}},{"$f":"AND(#REF!,\"dD9jSF3Nqck=\")","v":{"$error":"#REF!"}},{"$f":"AND(#REF!,\"dD9jSF3Nqco=\")","v":{"$error":"#REF!"}},{"$f":"AND(#REF!,\"dD9jSF3Nqcs=\")","v":{"$error":"#REF!"}},{"$f":"AND(#REF!,\"dD9jSF3Nqcw=\")","v":{"$error":"#REF!"}},{"$f":"AND(#REF!,\"dD9jSF3Nqc0=\")","v":{"$error":"#REF!"}},{"$f":"AND(#REF!,\"dD9jSF3Nqc4=\")","v":{"$error":"#REF!"}},{"$f":"AND(#REF!,\"dD9jSF3Nqc8=\")","v":{"$error":"#REF!"}},{"$f":"AND(#REF!,\"dD9jSF3NqdA=\")","v":{"$error":"#REF!"}},{"$f":"AND(#REF!,\"dD9jSF3NqdE=\")","v":{"$error":"#REF!"}},{"$f":"AND(#REF!,\"dD9jSF3NqdI=\")","v":{"$error":"#REF!"}},{"$f":"AND(#REF!,\"dD9jSF3NqdM=\")","v":{"$error":"#REF!"}},{"$f":"AND(#REF!,\"dD9jSF3NqdQ=\")","v":{"$error":"#REF!"}},{"$f":"AND(#REF!,\"dD9jSF3NqdU=\")","v":{"$error":"#REF!"}},{"$f":"AND(#REF!,\"dD9jSF3NqdY=\")","v":{"$error":"#REF!"}},{"$f":"AND(#REF!,\"dD9jSF3Nqdc=\")","v":{"$error":"#REF!"}},{"$f":"AND(#REF!,\"dD9jSF3Nqdg=\")","v":{"$error":"#REF!"}},{"$f":"AND(#REF!,\"dD9jSF3Nqdk=\")","v":{"$error":"#REF!"}},{"$f":"AND(#REF!,\"dD9jSF3Nqdo=\")","v":{"$error":"#REF!"}},{"$f":"AND(#REF!,\"dD9jSF3Nqds=\")","v":{"$error":"#REF!"}},{"$f":"AND(#REF!,\"dD9jSF3Nqdw=\")","v":{"$error":"#REF!"}},{"$f":"AND(#REF!,\"dD9jSF3Nqd0=\")","v":{"$error":"#REF!"}},{"$f":"AND(#REF!,\"dD9jSF3Nqd4=\")","v":{"$error":"#REF!"}},{"$f":"AND(#REF!,\"dD9jSF3Nqd8=\")","v":{"$error":"#REF!"}},{"$f":"AND(#REF!,\"dD9jSF3NqeA=\")","v":{"$error":"#REF!"}},{"$f":"AND(#REF!,\"dD9jSF3NqeE=\")","v":{"$error":"#REF!"}},{"$f":"AND(#REF!,\"dD9jSF3NqeI=\")","v":{"$error":"#REF!"}},{"$f":"AND(#REF!,\"dD9jSF3NqeM=\")","v":{"$error":"#REF!"}},{"$f":"AND(#REF!,\"dD9jSF3NqeQ=\")","v":{"$error":"#REF!"}},{"$f":"AND(#REF!,\"dD9jSF3NqeU=\")","v":{"$error":"#REF!"}},{"$f":"AND(#REF!,\"dD9jSF3NqeY=\")","v":{"$error":"#REF!"}},{"$f":"AND(#REF!,\"dD9jSF3Nqec=\")","v":{"$error":"#REF!"}},{"$f":"AND(#REF!,\"dD9jSF3Nqeg=\")","v":{"$error":"#REF!"}},{"$f":"AND(#REF!,\"dD9jSF3Nqek=\")","v":{"$error":"#REF!"}},{"$f":"AND(#REF!,\"dD9jSF3Nqeo=\")","v":{"$error":"#REF!"}},{"$f":"AND(#REF!,\"dD9jSF3Nqes=\")","v":{"$error":"#REF!"}},{"$f":"AND(#REF!,\"dD9jSF3Nqew=\")","v":{"$error":"#REF!"}},{"$f":"AND(#REF!,\"dD9jSF3Nqe0=\")","v":{"$error":"#REF!"}},{"$f":"AND(#REF!,\"dD9jSF3Nqe4=\")","v":{"$error":"#REF!"}},{"$f":"AND(#REF!,\"dD9jSF3Nqe8=\")","v":{"$error":"#REF!"}},{"$f":"AND(#REF!,\"dD9jSF3NqfA=\")","v":{"$error":"#REF!"}},{"$f":"AND(#REF!,\"dD9jSF3NqfE=\")","v":{"$error":"#REF!"}},{"$f":"AND(#REF!,\"dD9jSF3NqfI=\")","v":{"$error":"#REF!"}},{"$f":"AND(#REF!,\"dD9jSF3NqfM=\")","v":{"$error":"#REF!"}},{"$f":"AND(#REF!,\"dD9jSF3NqfQ=\")","v":{"$error":"#REF!"}},{"$f":"AND(#REF!,\"dD9jSF3NqfU=\")","v":{"$error":"#REF!"}},{"$f":"AND(#REF!,\"dD9jSF3NqfY=\")","v":{"$error":"#REF!"}},{"$f":"AND(#REF!,\"dD9jSF3Nqfc=\")","v":{"$error":"#REF!"}},{"$f":"IF(#REF!,\"dD9jSF3Nqfg=\",0)","v":{"$error":"#REF!"}},{"$f":"AND(#REF!,\"dD9jSF3Nqfk=\")","v":{"$error":"#REF!"}},{"$f":"AND(#REF!,\"dD9jSF3Nqfo=\")","v":{"$error":"#REF!"}},{"$f":"AND(#REF!,\"dD9jSF3Nqfs=\")","v":{"$error":"#REF!"}},{"$f":"AND(#REF!,\"dD9jSF3Nqfw=\")","v":{"$error":"#REF!"}},{"$f":"AND(#REF!,\"dD9jSF3Nqf0=\")","v":{"$error":"#REF!"}},{"$f":"AND(#REF!,\"dD9jSF3Nqf4=\")","v":{"$error":"#REF!"}},{"$f":"AND(#REF!,\"dD9jSF3Nqf8=\")","v":{"$error":"#REF!"}}]
[{"$f":"AND(#REF!,\"ZSxGBytu2gA=\")","v":{"$error":"#REF!"}},{"$f":"AND(#REF!,\"ZSxGBytu2gE=\")","v":{"$error":"#REF!"}},{"$f":"AND(#REF!,\"ZSxGBytu2gI=\")","v":{"$error":"#REF!"}},{"$f":"AND(#REF!,\"ZSxGBytu2gM=\")","v":{"$error":"#REF!"}},{"$f":"AND(#REF!,\"ZSxGBytu2gQ=\")","v":{"$error":"#REF!"}},{"$f":"AND(#REF!,\"ZSxGBytu2gU=\")","v":{"$error":"#REF!"}},{"$f":"AND(#REF!,\"ZSxGBytu2gY=\")","v":{"$error":"#REF!"}},{"$f":"AND(#REF!,\"ZSxGBytu2gc=\")","v":{"$error":"#REF!"}},{"$f":"AND(#REF!,\"ZSxGBytu2gg=\")","v":{"$error":"#REF!"}},{"$f":"AND(#REF!,\"ZSxGBytu2gk=\")","v":{"$error":"#REF!"}},{"$f":"AND(#REF!,\"ZSxGBytu2go=\")","v":{"$error":"#REF!"}},{"$f":"AND(#REF!,\"ZSxGBytu2gs=\")","v":{"$error":"#REF!"}},{"$f":"AND(#REF!,\"ZSxGBytu2gw=\")","v":{"$error":"#REF!"}},{"$f":"AND(#REF!,\"ZSxGBytu2g0=\")","v":{"$error":"#REF!"}},{"$f":"AND(#REF!,\"ZSxGBytu2g4=\")","v":{"$error":"#REF!"}},{"$f":"AND(#REF!,\"ZSxGBytu2g8=\")","v":{"$error":"#REF!"}},{"$f":"AND(#REF!,\"ZSxGBytu2hA=\")","v":{"$error":"#REF!"}},{"$f":"AND(#REF!,\"ZSxGBytu2hE=\")","v":{"$error":"#REF!"}},{"$f":"AND(#REF!,\"ZSxGBytu2hI=\")","v":{"$error":"#REF!"}},{"$f":"AND(#REF!,\"ZSxGBytu2hM=\")","v":{"$error":"#REF!"}},{"$f":"AND(#REF!,\"ZSxGBytu2hQ=\")","v":{"$error":"#REF!"}},{"$f":"AND(#REF!,\"ZSxGBytu2hU=\")","v":{"$error":"#REF!"}},{"$f":"AND(#REF!,\"ZSxGBytu2hY=\")","v":{"$error":"#REF!"}},{"$f":"AND(#REF!,\"ZSxGBytu2hc=\")","v":{"$error":"#REF!"}},{"$f":"AND(#REF!,\"ZSxGBytu2hg=\")","v":{"$error":"#REF!"}},{"$f":"AND(#REF!,\"ZSxGBytu2hk=\")","v":{"$error":"#REF!"}},{"$f":"AND(#REF!,\"ZSxGBytu2ho=\")","v":{"$error":"#REF!"}},{"$f":"AND(#REF!,\"ZSxGBytu2hs=\")","v":{"$error":"#REF!"}},{"$f":"AND(#REF!,\"ZSxGBytu2hw=\")","v":{"$error":"#REF!"}},{"$f":"AND(#REF!,\"ZSxGBytu2h0=\")","v":{"$error":"#REF!"}},{"$f":"AND(#REF!,\"ZSxGBytu2h4=\")","v":{"$error":"#REF!"}},{"$f":"AND(#REF!,\"ZSxGBytu2h8=\")","v":{"$error":"#REF!"}},{"$f":"AND(#REF!,\"ZSxGBytu2iA=\")","v":{"$error":"#REF!"}},{"$f":"AND(#REF!,\"ZSxGBytu2iE=\")","v":{"$error":"#REF!"}},{"$f":"AND(#REF!,\"ZSxGBytu2iI=\")","v":{"$error":"#REF!"}},{"$f":"AND(#REF!,\"ZSxGBytu2iM=\")","v":{"$error":"#REF!"}},{"$f":"AND(#REF!,\"ZSxGBytu2iQ=\")","v":{"$error":"#REF!"}},{"$f":"AND(#REF!,\"ZSxGBytu2iU=\")","v":{"$error":"#REF!"}},{"$f":"AND(#REF!,\"ZSxGBytu2iY=\")","v":{"$error":"#REF!"}},{"$f":"AND(#REF!,\"ZSxGBytu2ic=\")","v":{"$error":"#REF!"}},{"$f":"AND(#REF!,\"ZSxGBytu2ig=\")","v":{"$error":"#REF!"}},{"$f":"AND(#REF!,\"ZSxGBytu2ik=\")","v":{"$error":"#REF!"}},{"$f":"AND(#REF!,\"ZSxGBytu2io=\")","v":{"$error":"#REF!"}},{"$f":"AND(#REF!,\"ZSxGBytu2is=\")","v":{"$error":"#REF!"}},{"$f":"AND(#REF!,\"ZSxGBytu2iw=\")","v":{"$error":"#REF!"}},{"$f":"AND(#REF!,\"ZSxGBytu2i0=\")","v":{"$error":"#REF!"}},{"$f":"AND(#REF!,\"ZSxGBytu2i4=\")","v":{"$error":"#REF!"}},{"$f":"AND(#REF!,\"ZSxGBytu2i8=\")","v":{"$error":"#REF!"}},{"$f":"AND(#REF!,\"ZSxGBytu2jA=\")","v":{"$error":"#REF!"}},{"$f":"AND(#REF!,\"ZSxGBytu2jE=\")","v":{"$error":"#REF!"}},{"$f":"AND(#REF!,\"ZSxGBytu2jI=\")","v":{"$error":"#REF!"}},{"$f":"AND(#REF!,\"ZSxGBytu2jM=\")","v":{"$error":"#REF!"}},{"$f":"AND(#REF!,\"ZSxGBytu2jQ=\")","v":{"$error":"#REF!"}},{"$f":"AND(#REF!,\"ZSxGBytu2jU=\")","v":{"$error":"#REF!"}},{"$f":"AND(#REF!,\"ZSxGBytu2jY=\")","v":{"$error":"#REF!"}},{"$f":"AND(#REF!,\"ZSxGBytu2jc=\")","v":{"$error":"#REF!"}},{"$f":"AND(#REF!,\"ZSxGBytu2jg=\")","v":{"$error":"#REF!"}},{"$f":"AND(#REF!,\"ZSxGBytu2jk=\")","v":{"$error":"#REF!"}},{"$f":"AND(#REF!,\"ZSxGBytu2jo=\")","v":{"$error":"#REF!"}},{"$f":"AND(#REF!,\"ZSxGBytu2js=\")","v":{"$error":"#REF!"}},{"$f":"AND(#REF!,\"ZSxGBytu2jw=\")","v":{"$error":"#REF!"}},{"$f":"AND(#REF!,\"ZSxGBytu2j0=\")","v":{"$error":"#REF!"}},{"$f":"AND(#REF!,\"ZSxGBytu2j4=\")","v":{"$error":"#REF!"}},{"$f":"AND(#REF!,\"ZSxGBytu2j8=\")","v":{"$error":"#REF!"}},{"$f":"AND(#REF!,\"ZSxGBytu2kA=\")","v":{"$error":"#REF!"}},{"$f":"AND(#REF!,\"ZSxGBytu2kE=\")","v":{"$error":"#REF!"}},{"$f":"AND(#REF!,\"ZSxGBytu2kI=\")","v":{"$error":"#REF!"}},{"$f":"AND(#REF!,\"ZSxGBytu2kM=\")","v":{"$error":"#REF!"}},{"$f":"AND(#REF!,\"ZSxGBytu2kQ=\")","v":{"$error":"#REF!"}},{"$f":"AND(#REF!,\"ZSxGBytu2kU=\")","v":{"$error":"#REF!"}},{"$f":"AND(#REF!,\"ZSxGBytu2kY=\")","v":{"$error":"#REF!"}},{"$f":"AND(#REF!,\"ZSxGBytu2kc=\")","v":{"$error":"#REF!"}},{"$f":"AND(#REF!,\"ZSxGBytu2kg=\")","v":{"$error":"#REF!"}},{"$f":"AND(#REF!,\"ZSxGBytu2kk=\")","v":{"$error":"#REF!"}},{"$f":"AND(#REF!,\"ZSxGBytu2ko=\")","v":{"$error":"#REF!"}},{"$f":"AND(#REF!,\"ZSxGBytu2ks=\")","v":{"$error":"#REF!"}},{"$f":"AND(#REF!,\"ZSxGBytu2kw=\")","v":{"$error":"#REF!"}},{"$f":"AND(#REF!,\"ZSxGBytu2k0=\")","v":{"$error":"#REF!"}},{"$f":"AND(#REF!,\"ZSxGBytu2k4=\")","v":{"$error":"#REF!"}},{"$f":"AND(#REF!,\"ZSxGBytu2k8=\")","v":{"$error":"#REF!"}},{"$f":"AND(#REF!,\"ZSxGBytu2lA=\")","v":{"$error":"#REF!"}},{"$f":"AND(#REF!,\"ZSxGBytu2lE=\")","v":{"$error":"#REF!"}},{"$f":"AND(#REF!,\"ZSxGBytu2lI=\")","v":{"$error":"#REF!"}},{"$f":"AND(#REF!,\"ZSxGBytu2lM=\")","v":{"$error":"#REF!"}},{"$f":"AND(#REF!,\"ZSxGBytu2lQ=\")","v":{"$error":"#REF!"}},{"$f":"AND(#REF!,\"ZSxGBytu2lU=\")","v":{"$error":"#REF!"}},{"$f":"AND(#REF!,\"ZSxGBytu2lY=\")","v":{"$error":"#REF!"}},{"$f":"AND(#REF!,\"ZSxGBytu2lc=\")","v":{"$error":"#REF!"}},{"$f":"AND(#REF!,\"ZSxGBytu2lg=\")","v":{"$error":"#REF!"}},{"$f":"AND(#REF!,\"ZSxGBytu2lk=\")","v":{"$error":"#REF!"}},{"$f":"AND(#REF!,\"ZSxGBytu2lo=\")","v":{"$error":"#REF!"}},{"$f":"AND(#REF!,\"ZSxGBytu2ls=\")","v":{"$error":"#REF!"}},{"$f":"AND(#REF!,\"ZSxGBytu2lw=\")","v":{"$error":"#REF!"}},{"$f":"AND(#REF!,\"ZSxGBytu2l0=\")","v":{"$error":"#REF!"}},{"$f":"AND(#REF!,\"ZSxGBytu2l4=\")","v":{"$error":"#REF!"}},{"$f":"AND(#REF!,\"ZSxGBytu2l8=\")","v":{"$error":"#REF!"}},{"$f":"AND(#REF!,\"ZSxGBytu2mA=\")","v":{"$error":"#REF!"}},{"$f":"AND(#REF!,\"ZSxGBytu2mE=\")","v":{"$error":"#REF!"}},{"$f":"AND(#REF!,\"ZSxGBytu2mI=\")","v":{"$error":"#REF!"}},{"$f":"AND(#REF!,\"ZSxGBytu2mM=\")","v":{"$error":"#REF!"}},{"$f":"AND(#REF!,\"ZSxGBytu2mQ=\")","v":{"$error":"#REF!"}},{"$f":"AND(#REF!,\"ZSxGBytu2mU=\")","v":{"$error":"#REF!"}},{"$f":"AND(#REF!,\"ZSxGBytu2mY=\")","v":{"$error":"#REF!"}},{"$f":"AND(#REF!,\"ZSxGBytu2mc=\")","v":{"$error":"#REF!"}},{"$f":"AND(#REF!,\"ZSxGBytu2mg=\")","v":{"$error":"#REF!"}},{"$f":"AND(#REF!,\"ZSxGBytu2mk=\")","v":{"$error":"#REF!"}},{"$f":"AND(#REF!,\"ZSxGBytu2mo=\")","v":{"$error":"#REF!"}},{"$f":"AND(#REF!,\"ZSxGBytu2ms=\")","v":{"$error":"#REF!"}},{"$f":"AND(#REF!,\"ZSxGBytu2mw=\")","v":{"$error":"#REF!"}},{"$f":"AND(#REF!,\"ZSxGBytu2m0=\")","v":{"$error":"#REF!"}},{"$f":"AND(#REF!,\"ZSxGBytu2m4=\")","v":{"$error":"#REF!"}},{"$f":"AND(#REF!,\"ZSxGBytu2m8=\")","v":{"$error":"#REF!"}},{"$f":"AND(#REF!,\"ZSxGBytu2nA=\")","v":{"$error":"#REF!"}},{"$f":"AND(#REF!,\"ZSxGBytu2nE=\")","v":{"$error":"#REF!"}},{"$f":"AND(#REF!,\"ZSxGBytu2nI=\")","v":{"$error":"#REF!"}},{"$f":"AND(#REF!,\"ZSxGBytu2nM=\")","v":{"$error":"#REF!"}},{"$f":"AND(#REF!,\"ZSxGBytu2nQ=\")","v":{"$error":"#REF!"}},{"$f":"AND(#REF!,\"ZSxGBytu2nU=\")","v":{"$error":"#REF!"}},{"$f":"AND(#REF!,\"ZSxGBytu2nY=\")","v":{"$error":"#REF!"}},{"$f":"AND(#REF!,\"ZSxGBytu2nc=\")","v":{"$error":"#REF!"}},{"$f":"AND(#REF!,\"ZSxGBytu2ng=\")","v":{"$error":"#REF!"}},{"$f":"AND(#REF!,\"ZSxGBytu2nk=\")","v":{"$error":"#REF!"}},{"$f":"AND(#REF!,\"ZSxGBytu2no=\")","v":{"$error":"#REF!"}},{"$f":"AND(#REF!,\"ZSxGBytu2ns=\")","v":{"$error":"#REF!"}},{"$f":"AND(#REF!,\"ZSxGBytu2nw=\")","v":{"$error":"#REF!"}},{"$f":"AND(#REF!,\"ZSxGBytu2n0=\")","v":{"$error":"#REF!"}},{"$f":"AND(#REF!,\"ZSxGBytu2n4=\")","v":{"$error":"#REF!"}},{"$f":"AND(#REF!,\"ZSxGBytu2n8=\")","v":{"$error":"#REF!"}},{"$f":"AND(#REF!,\"ZSxGBytu2oA=\")","v":{"$error":"#REF!"}},{"$f":"AND(#REF!,\"ZSxGBytu2oE=\")","v":{"$error":"#REF!"}},{"$f":"AND(#REF!,\"ZSxGBytu2oI=\")","v":{"$error":"#REF!"}},{"$f":"AND(#REF!,\"ZSxGBytu2oM=\")","v":{"$error":"#REF!"}},{"$f":"AND(#REF!,\"ZSxGBytu2oQ=\")","v":{"$error":"#REF!"}},{"$f":"AND(#REF!,\"ZSxGBytu2oU=\")","v":{"$error":"#REF!"}},{"$f":"AND(#REF!,\"ZSxGBytu2oY=\")","v":{"$error":"#REF!"}},{"$f":"AND(#REF!,\"ZSxGBytu2oc=\")","v":{"$error":"#REF!"}},{"$f":"AND(#REF!,\"ZSxGBytu2og=\")","v":{"$error":"#REF!"}},{"$f":"AND(#REF!,\"ZSxGBytu2ok=\")","v":{"$error":"#REF!"}},{"$f":"AND(#REF!,\"ZSxGBytu2oo=\")","v":{"$error":"#REF!"}},{"$f":"AND(#REF!,\"ZSxGBytu2os=\")","v":{"$error":"#REF!"}},{"$f":"AND(#REF!,\"ZSxGBytu2ow=\")","v":{"$error":"#REF!"}},{"$f":"AND(#REF!,\"ZSxGBytu2o0=\")","v":{"$error":"#REF!"}},{"$f":"AND(#REF!,\"ZSxGBytu2o4=\")","v":{"$error":"#REF!"}},{"$f":"AND(#REF!,\"ZSxGBytu2o8=\")","v":{"$error":"#REF!"}},{"$f":"AND(#REF!,\"ZSxGBytu2pA=\")","v":{"$error":"#REF!"}},{"$f":"AND(#REF!,\"ZSxGBytu2pE=\")","v":{"$error":"#REF!"}},{"$f":"AND(#REF!,\"ZSxGBytu2pI=\")","v":{"$error":"#REF!"}},{"$f":"AND(#REF!,\"ZSxGBytu2pM=\")","v":{"$error":"#REF!"}},{"$f":"AND(#REF!,\"ZSxGBytu2pQ=\")","v":{"$error":"#REF!"}},{"$f":"AND(#REF!,\"ZSxGBytu2pU=\")","v":{"$error":"#REF!"}},{"$f":"AND(#REF!,\"ZSxGBytu2pY=\")","v":{"$error":"#REF!"}},{"$f":"AND(#REF!,\"ZSxGBytu2pc=\")","v":{"$error":"#REF!"}},{"$f":"AND(#REF!,\"ZSxGBytu2pg=\")","v":{"$error":"#REF!"}},{"$f":"AND(#REF!,\"ZSxGBytu2pk=\")","v":{"$error":"#REF!"}},{"$f":"AND(#REF!,\"ZSxGBytu2po=\")","v":{"$error":"#REF!"}},{"$f":"AND(#REF!,\"ZSxGBytu2ps=\")","v":{"$error":"#REF!"}},{"$f":"AND(#REF!,\"ZSxGBytu2pw=\")","v":{"$error":"#REF!"}},{"$f":"AND(#REF!,\"ZSxGBytu2p0=\")","v":{"$error":"#REF!"}},{"$f":"AND(#REF!,\"ZSxGBytu2p4=\")","v":{"$error":"#REF!"}},{"$f":"AND(#REF!,\"ZSxGBytu2p8=\")","v":{"$error":"#REF!"}},{"$f":"AND(#REF!,\"ZSxGBytu2qA=\")","v":{"$error":"#REF!"}},{"$f":"AND(#REF!,\"ZSxGBytu2qE=\")","v":{"$error":"#REF!"}},{"$f":"AND(#REF!,\"ZSxGBytu2qI=\")","v":{"$error":"#REF!"}},{"$f":"AND(#REF!,\"ZSxGBytu2qM=\")","v":{"$error":"#REF!"}},{"$f":"AND(#REF!,\"ZSxGBytu2qQ=\")","v":{"$error":"#REF!"}},{"$f":"AND(#REF!,\"ZSxGBytu2qU=\")","v":{"$error":"#REF!"}},{"$f":"AND(#REF!,\"ZSxGBytu2qY=\")","v":{"$error":"#REF!"}},{"$f":"AND(#REF!,\"ZSxGBytu2qc=\")","v":{"$error":"#REF!"}},{"$f":"AND(#REF!,\"ZSxGBytu2qg=\")","v":{"$error":"#REF!"}},{"$f":"AND(#REF!,\"ZSxGBytu2qk=\")","v":{"$error":"#REF!"}},{"$f":"AND(#REF!,\"ZSxGBytu2qo=\")","v":{"$error":"#REF!"}},{"$f":"AND(#REF!,\"ZSxGBytu2qs=\")","v":{"$error":"#REF!"}},{"$f":"AND(#REF!,\"ZSxGBytu2qw=\")","v":{"$error":"#REF!"}},{"$f":"AND(#REF!,\"ZSxGBytu2q0=\")","v":{"$error":"#REF!"}},{"$f":"AND(#REF!,\"ZSxGBytu2q4=\")","v":{"$error":"#REF!"}},{"$f":"AND(#REF!,\"ZSxGBytu2q8=\")","v":{"$error":"#REF!"}},{"$f":"AND(#REF!,\"ZSxGBytu2rA=\")","v":{"$error":"#REF!"}},{"$f":"AND(#REF!,\"ZSxGBytu2rE=\")","v":{"$error":"#REF!"}},{"$f":"AND(#REF!,\"ZSxGBytu2rI=\")","v":{"$error":"#REF!"}},{"$f":"AND(#REF!,\"ZSxGBytu2rM=\")","v":{"$error":"#REF!"}},{"$f":"AND(#REF!,\"ZSxGBytu2rQ=\")","v":{"$error":"#REF!"}},{"$f":"AND(#REF!,\"ZSxGBytu2rU=\")","v":{"$error":"#REF!"}},{"$f":"AND(#REF!,\"ZSxGBytu2rY=\")","v":{"$error":"#REF!"}},{"$f":"AND(#REF!,\"ZSxGBytu2rc=\")","v":{"$error":"#REF!"}},{"$f":"AND(#REF!,\"ZSxGBytu2rg=\")","v":{"$error":"#REF!"}},{"$f":"AND(#REF!,\"ZSxGBytu2rk=\")","v":{"$error":"#REF!"}},{"$f":"AND(#REF!,\"ZSxGBytu2ro=\")","v":{"$error":"#REF!"}},{"$f":"AND(#REF!,\"ZSxGBytu2rs=\")","v":{"$error":"#REF!"}},{"$f":"AND(#REF!,\"ZSxGBytu2rw=\")","v":{"$error":"#REF!"}},{"$f":"AND(#REF!,\"ZSxGBytu2r0=\")","v":{"$error":"#REF!"}},{"$f":"AND(#REF!,\"ZSxGBytu2r4=\")","v":{"$error":"#REF!"}},{"$f":"IF(#REF!,\"ZSxGBytu2r8=\",0)","v":{"$error":"#REF!"}},{"$f":"AND(#REF!,\"ZSxGBytu2sA=\")","v":{"$error":"#REF!"}},{"$f":"AND(#REF!,\"ZSxGBytu2sE=\")","v":{"$error":"#REF!"}},{"$f":"AND(#REF!,\"ZSxGBytu2sI=\")","v":{"$error":"#REF!"}},{"$f":"AND(#REF!,\"ZSxGBytu2sM=\")","v":{"$error":"#REF!"}},{"$f":"AND(#REF!,\"ZSxGBytu2sQ=\")","v":{"$error":"#REF!"}},{"$f":"AND(#REF!,\"ZSxGBytu2sU=\")","v":{"$error":"#REF!"}},{"$f":"AND(#REF!,\"ZSxGBytu2sY=\")","v":{"$error":"#REF!"}},{"$f":"AND(#REF!,\"ZSxGBytu2sc=\")","v":{"$error":"#REF!"}},{"$f":"AND(#REF!,\"ZSxGBytu2sg=\")","v":{"$error":"#REF!"}},{"$f":"AND(#REF!,\"ZSxGBytu2sk=\")","v":{"$error":"#REF!"}},{"$f":"AND(#REF!,\"ZSxGBytu2so=\")","v":{"$error":"#REF!"}},{"$f":"AND(#REF!,\"ZSxGBytu2ss=\")","v":{"$error":"#REF!"}},{"$f":"AND(#REF!,\"ZSxGBytu2sw=\")","v":{"$error":"#REF!"}},{"$f":"AND(#REF!,\"ZSxGBytu2s0=\")","v":{"$error":"#REF!"}},{"$f":"AND(#REF!,\"ZSxGBytu2s4=\")","v":{"$error":"#REF!"}},{"$f":"AND(#REF!,\"ZSxGBytu2s8=\")","v":{"$error":"#REF!"}},{"$f":"AND(#REF!,\"ZSxGBytu2tA=\")","v":{"$error":"#REF!"}},{"$f":"AND(#REF!,\"ZSxGBytu2tE=\")","v":{"$error":"#REF!"}},{"$f":"AND(#REF!,\"ZSxGBytu2tI=\")","v":{"$error":"#REF!"}},{"$f":"AND(#REF!,\"ZSxGBytu2tM=\")","v":{"$error":"#REF!"}},{"$f":"AND(#REF!,\"ZSxGBytu2tQ=\")","v":{"$error":"#REF!"}},{"$f":"AND(#REF!,\"ZSxGBytu2tU=\")","v":{"$error":"#REF!"}},{"$f":"AND(#REF!,\"ZSxGBytu2tY=\")","v":{"$error":"#REF!"}},{"$f":"AND(#REF!,\"ZSxGBytu2tc=\")","v":{"$error":"#REF!"}},{"$f":"AND(#REF!,\"ZSxGBytu2tg=\")","v":{"$error":"#REF!"}},{"$f":"AND(#REF!,\"ZSxGBytu2tk=\")","v":{"$error":"#REF!"}},{"$f":"AND(#REF!,\"ZSxGBytu2to=\")","v":{"$error":"#REF!"}},{"$f":"AND(#REF!,\"ZSxGBytu2ts=\")","v":{"$error":"#REF!"}},{"$f":"AND(#REF!,\"ZSxGBytu2tw=\")","v":{"$error":"#REF!"}},{"$f":"AND(#REF!,\"ZSxGBytu2t0=\")","v":{"$error":"#REF!"}},{"$f":"AND(#REF!,\"ZSxGBytu2t4=\")","v":{"$error":"#REF!"}},{"$f":"AND(#REF!,\"ZSxGBytu2t8=\")","v":{"$error":"#REF!"}},{"$f":"AND(#REF!,\"ZSxGBytu2uA=\")","v":{"$error":"#REF!"}},{"$f":"AND(#REF!,\"ZSxGBytu2uE=\")","v":{"$error":"#REF!"}},{"$f":"AND(#REF!,\"ZSxGBytu2uI=\")","v":{"$error":"#REF!"}},{"$f":"AND(#REF!,\"ZSxGBytu2uM=\")","v":{"$error":"#REF!"}},{"$f":"AND(#REF!,\"ZSxGBytu2uQ=\")","v":{"$error":"#REF!"}},{"$f":"AND(#REF!,\"ZSxGBytu2uU=\")","v":{"$error":"#REF!"}},{"$f":"AND(#REF!,\"ZSxGBytu2uY=\")","v":{"$error":"#REF!"}},{"$f":"AND(#REF!,\"ZSxGBytu2uc=\")","v":{"$error":"#REF!"}},{"$f":"AND(#REF!,\"ZSxGBytu2ug=\")","v":{"$error":"#REF!"}},{"$f":"AND(#REF!,\"ZSxGBytu2uk=\")","v":{"$error":"#REF!"}},{"$f":"AND(#REF!,\"ZSxGBytu2uo=\")","v":{"$error":"#REF!"}},{"$f":"AND(#REF!,\"ZSxGBytu2us=\")","v":{"$error":"#REF!"}},{"$f":"AND(#REF!,\"ZSxGBytu2uw=\")","v":{"$error":"#REF!"}},{"$f":"AND(#REF!,\"ZSxGBytu2u0=\")","v":{"$error":"#REF!"}},{"$f":"AND(#REF!,\"ZSxGBytu2u4=\")","v":{"$error":"#REF!"}},{"$f":"AND(#REF!,\"ZSxGBytu2u8=\")","v":{"$error":"#REF!"}},{"$f":"AND(#REF!,\"ZSxGBytu2vA=\")","v":{"$error":"#REF!"}},{"$f":"AND(#REF!,\"ZSxGBytu2vE=\")","v":{"$error":"#REF!"}},{"$f":"AND(#REF!,\"ZSxGBytu2vI=\")","v":{"$error":"#REF!"}},{"$f":"AND(#REF!,\"ZSxGBytu2vM=\")","v":{"$error":"#REF!"}},{"$f":"AND(#REF!,\"ZSxGBytu2vQ=\")","v":{"$error":"#REF!"}},{"$f":"AND(#REF!,\"ZSxGBytu2vU=\")","v":{"$error":"#REF!"}},{"$f":"AND(#REF!,\"ZSxGBytu2vY=\")","v":{"$error":"#REF!"}},{"$f":"AND(#REF!,\"ZSxGBytu2vc=\")","v":{"$error":"#REF!"}},{"$f":"AND(#REF!,\"ZSxGBytu2vg=\")","v":{"$error":"#REF!"}},{"$f":"AND(#REF!,\"ZSxGBytu2vk=\")","v":{"$error":"#REF!"}},{"$f":"AND(#REF!,\"ZSxGBytu2vo=\")","v":{"$error":"#REF!"}},{"$f":"AND(#REF!,\"ZSxGBytu2vs=\")","v":{"$error":"#REF!"}},{"$f":"AND(#REF!,\"ZSxGBytu2vw=\")","v":{"$error":"#REF!"}},{"$f":"AND(#REF!,\"ZSxGBytu2v0=\")","v":{"$error":"#REF!"}},{"$f":"AND(#REF!,\"ZSxGBytu2v4=\")","v":{"$error":"#REF!"}},{"$f":"AND(#REF!,\"ZSxGBytu2v8=\")","v":{"$error":"#REF!"}}]
[{"$f":"AND(#REF!,\"NoH0n2iN3wA=\")","v":{"$error":"#REF!"}},{"$f":"AND(#REF!,\"NoH0n2iN3wE=\")","v":{"$error":"#REF!"}},{"$f":"AND(#REF!,\"NoH0n2iN3wI=\")","v":{"$error":"#REF!"}},{"$f":"AND(#REF!,\"NoH0n2iN3wM=\")","v":{"$error":"#REF!"}},{"$f":"AND(#REF!,\"NoH0n2iN3wQ=\")","v":{"$error":"#REF!"}},{"$f":"AND(#REF!,\"NoH0n2iN3wU=\")","v":{"$error":"#REF!"}},{"$f":"AND(#REF!,\"NoH0n2iN3wY=\")","v":{"$error":"#REF!"}},{"$f":"AND(#REF!,\"NoH0n2iN3wc=\")","v":{"$error":"#REF!"}},{"$f":"AND(#REF!,\"NoH0n2iN3wg=\")","v":{"$error":"#REF!"}},{"$f":"AND(#REF!,\"NoH0n2iN3wk=\")","v":{"$error":"#REF!"}},{"$f":"AND(#REF!,\"NoH0n2iN3wo=\")","v":{"$error":"#REF!"}},{"$f":"AND(#REF!,\"NoH0n2iN3ws=\")","v":{"$error":"#REF!"}},{"$f":"AND(#REF!,\"NoH0n2iN3ww=\")","v":{"$error":"#REF!"}},{"$f":"AND(#REF!,\"NoH0n2iN3w0=\")","v":{"$error":"#REF!"}},{"$f":"AND(#REF!,\"NoH0n2iN3w4=\")","v":{"$error":"#REF!"}},{"$f":"AND(#REF!,\"NoH0n2iN3w8=\")","v":{"$error":"#REF!"}},{"$f":"AND(#REF!,\"NoH0n2iN3xA=\")","v":{"$error":"#REF!"}},{"$f":"AND(#REF!,\"NoH0n2iN3xE=\")","v":{"$error":"#REF!"}},{"$f":"AND(#REF!,\"NoH0n2iN3xI=\")","v":{"$error":"#REF!"}},{"$f":"AND(#REF!,\"NoH0n2iN3xM=\")","v":{"$error":"#REF!"}},{"$f":"AND(#REF!,\"NoH0n2iN3xQ=\")","v":{"$error":"#REF!"}},{"$f":"AND(#REF!,\"NoH0n2iN3xU=\")","v":{"$error":"#REF!"}},{"$f":"AND(#REF!,\"NoH0n2iN3xY=\")","v":{"$error":"#REF!"}},{"$f":"AND(#REF!,\"NoH0n2iN3xc=\")","v":{"$error":"#REF!"}},{"$f":"AND(#REF!,\"NoH0n2iN3xg=\")","v":{"$error":"#REF!"}},{"$f":"AND(#REF!,\"NoH0n2iN3xk=\")","v":{"$error":"#REF!"}},{"$f":"AND(#REF!,\"NoH0n2iN3xo=\")","v":{"$error":"#REF!"}},{"$f":"AND(#REF!,\"NoH0n2iN3xs=\")","v":{"$error":"#REF!"}},{"$f":"AND(#REF!,\"NoH0n2iN3xw=\")","v":{"$error":"#REF!"}},{"$f":"AND(#REF!,\"NoH0n2iN3x0=\")","v":{"$error":"#REF!"}},{"$f":"AND(#REF!,\"NoH0n2iN3x4=\")","v":{"$error":"#REF!"}},{"$f":"AND(#REF!,\"NoH0n2iN3x8=\")","v":{"$error":"#REF!"}},{"$f":"AND(#REF!,\"NoH0n2iN3yA=\")","v":{"$error":"#REF!"}},{"$f":"AND(#REF!,\"NoH0n2iN3yE=\")","v":{"$error":"#REF!"}},{"$f":"AND(#REF!,\"NoH0n2iN3yI=\")","v":{"$error":"#REF!"}},{"$f":"AND(#REF!,\"NoH0n2iN3yM=\")","v":{"$error":"#REF!"}},{"$f":"AND(#REF!,\"NoH0n2iN3yQ=\")","v":{"$error":"#REF!"}},{"$f":"AND(#REF!,\"NoH0n2iN3yU=\")","v":{"$error":"#REF!"}},{"$f":"AND(#REF!,\"NoH0n2iN3yY=\")","v":{"$error":"#REF!"}},{"$f":"AND(#REF!,\"NoH0n2iN3yc=\")","v":{"$error":"#REF!"}},{"$f":"AND(#REF!,\"NoH0n2iN3yg=\")","v":{"$error":"#REF!"}},{"$f":"AND(#REF!,\"NoH0n2iN3yk=\")","v":{"$error":"#REF!"}},{"$f":"AND(#REF!,\"NoH0n2iN3yo=\")","v":{"$error":"#REF!"}},{"$f":"AND(#REF!,\"NoH0n2iN3ys=\")","v":{"$error":"#REF!"}},{"$f":"AND(#REF!,\"NoH0n2iN3yw=\")","v":{"$error":"#REF!"}},{"$f":"AND(#REF!,\"NoH0n2iN3y0=\")","v":{"$error":"#REF!"}},{"$f":"AND(#REF!,\"NoH0n2iN3y4=\")","v":{"$error":"#REF!"}},{"$f":"AND(#REF!,\"NoH0n2iN3y8=\")","v":{"$error":"#REF!"}},{"$f":"AND(#REF!,\"NoH0n2iN3zA=\")","v":{"$error":"#REF!"}},{"$f":"AND(#REF!,\"NoH0n2iN3zE=\")","v":{"$error":"#REF!"}},{"$f":"AND(#REF!,\"NoH0n2iN3zI=\")","v":{"$error":"#REF!"}},{"$f":"AND(#REF!,\"NoH0n2iN3zM=\")","v":{"$error":"#REF!"}},{"$f":"AND(#REF!,\"NoH0n2iN3zQ=\")","v":{"$error":"#REF!"}},{"$f":"AND(#REF!,\"NoH0n2iN3zU=\")","v":{"$error":"#REF!"}},{"$f":"AND(#REF!,\"NoH0n2iN3zY=\")","v":{"$error":"#REF!"}},{"$f":"AND(#REF!,\"NoH0n2iN3zc=\")","v":{"$error":"#REF!"}},{"$f":"AND(#REF!,\"NoH0n2iN3zg=\")","v":{"$error":"#REF!"}},{"$f":"AND(#REF!,\"NoH0n2iN3zk=\")","v":{"$error":"#REF!"}},{"$f":"AND(#REF!,\"NoH0n2iN3zo=\")","v":{"$error":"#REF!"}},{"$f":"AND(#REF!,\"NoH0n2iN3zs=\")","v":{"$error":"#REF!"}},{"$f":"AND(#REF!,\"NoH0n2iN3zw=\")","v":{"$error":"#REF!"}},{"$f":"AND(#REF!,\"NoH0n2iN3z0=\")","v":{"$error":"#REF!"}},{"$f":"AND(#REF!,\"NoH0n2iN3z4=\")","v":{"$error":"#REF!"}},{"$f":"AND(#REF!,\"NoH0n2iN3z8=\")","v":{"$error":"#REF!"}},{"$f":"AND(#REF!,\"NoH0n2iN30A=\")","v":{"$error":"#REF!"}},{"$f":"AND(#REF!,\"NoH0n2iN30E=\")","v":{"$error":"#REF!"}},{"$f":"AND(#REF!,\"NoH0n2iN30I=\")","v":{"$error":"#REF!"}},{"$f":"AND(#REF!,\"NoH0n2iN30M=\")","v":{"$error":"#REF!"}},{"$f":"AND(#REF!,\"NoH0n2iN30Q=\")","v":{"$error":"#REF!"}},{"$f":"AND(#REF!,\"NoH0n2iN30U=\")","v":{"$error":"#REF!"}},{"$f":"AND(#REF!,\"NoH0n2iN30Y=\")","v":{"$error":"#REF!"}},{"$f":"AND(#REF!,\"NoH0n2iN30c=\")","v":{"$error":"#REF!"}},{"$f":"AND(#REF!,\"NoH0n2iN30g=\")","v":{"$error":"#REF!"}},{"$f":"AND(#REF!,\"NoH0n2iN30k=\")","v":{"$error":"#REF!"}},{"$f":"AND(#REF!,\"NoH0n2iN30o=\")","v":{"$error":"#REF!"}},{"$f":"AND(#REF!,\"NoH0n2iN30s=\")","v":{"$error":"#REF!"}},{"$f":"AND(#REF!,\"NoH0n2iN30w=\")","v":{"$error":"#REF!"}},{"$f":"AND(#REF!,\"NoH0n2iN300=\")","v":{"$error":"#REF!"}},{"$f":"AND(#REF!,\"NoH0n2iN304=\")","v":{"$error":"#REF!"}},{"$f":"AND(#REF!,\"NoH0n2iN308=\")","v":{"$error":"#REF!"}},{"$f":"AND(#REF!,\"NoH0n2iN31A=\")","v":{"$error":"#REF!"}},{"$f":"AND(#REF!,\"NoH0n2iN31E=\")","v":{"$error":"#REF!"}},{"$f":"AND(#REF!,\"NoH0n2iN31I=\")","v":{"$error":"#REF!"}},{"$f":"AND(#REF!,\"NoH0n2iN31M=\")","v":{"$error":"#REF!"}},{"$f":"AND(#REF!,\"NoH0n2iN31Q=\")","v":{"$error":"#REF!"}},{"$f":"AND(#REF!,\"NoH0n2iN31U=\")","v":{"$error":"#REF!"}},{"$f":"AND(#REF!,\"NoH0n2iN31Y=\")","v":{"$error":"#REF!"}},{"$f":"AND(#REF!,\"NoH0n2iN31c=\")","v":{"$error":"#REF!"}},{"$f":"AND(#REF!,\"NoH0n2iN31g=\")","v":{"$error":"#REF!"}},{"$f":"AND(#REF!,\"NoH0n2iN31k=\")","v":{"$error":"#REF!"}},{"$f":"AND(#REF!,\"NoH0n2iN31o=\")","v":{"$error":"#REF!"}},{"$f":"AND(#REF!,\"NoH0n2iN31s=\")","v":{"$error":"#REF!"}},{"$f":"AND(#REF!,\"NoH0n2iN31w=\")","v":{"$error":"#REF!"}},{"$f":"AND(#REF!,\"NoH0n2iN310=\")","v":{"$error":"#REF!"}},{"$f":"AND(#REF!,\"NoH0n2iN314=\")","v":{"$error":"#REF!"}},{"$f":"AND(#REF!,\"NoH0n2iN318=\")","v":{"$error":"#REF!"}},{"$f":"AND(#REF!,\"NoH0n2iN32A=\")","v":{"$error":"#REF!"}},{"$f":"AND(#REF!,\"NoH0n2iN32E=\")","v":{"$error":"#REF!"}},{"$f":"AND(#REF!,\"NoH0n2iN32I=\")","v":{"$error":"#REF!"}},{"$f":"AND(#REF!,\"NoH0n2iN32M=\")","v":{"$error":"#REF!"}},{"$f":"AND(#REF!,\"NoH0n2iN32Q=\")","v":{"$error":"#REF!"}},{"$f":"AND(#REF!,\"NoH0n2iN32U=\")","v":{"$error":"#REF!"}},{"$f":"AND(#REF!,\"NoH0n2iN32Y=\")","v":{"$error":"#REF!"}},{"$f":"AND(#REF!,\"NoH0n2iN32c=\")","v":{"$error":"#REF!"}},{"$f":"AND(#REF!,\"NoH0n2iN32g=\")","v":{"$error":"#REF!"}},{"$f":"AND(#REF!,\"NoH0n2iN32k=\")","v":{"$error":"#REF!"}},{"$f":"AND(#REF!,\"NoH0n2iN32o=\")","v":{"$error":"#REF!"}},{"$f":"AND(#REF!,\"NoH0n2iN32s=\")","v":{"$error":"#REF!"}},{"$f":"AND(#REF!,\"NoH0n2iN32w=\")","v":{"$error":"#REF!"}},{"$f":"AND(#REF!,\"NoH0n2iN320=\")","v":{"$error":"#REF!"}},{"$f":"AND(#REF!,\"NoH0n2iN324=\")","v":{"$error":"#REF!"}},{"$f":"AND(#REF!,\"NoH0n2iN328=\")","v":{"$error":"#REF!"}},{"$f":"AND(#REF!,\"NoH0n2iN33A=\")","v":{"$error":"#REF!"}},{"$f":"AND(#REF!,\"NoH0n2iN33E=\")","v":{"$error":"#REF!"}},{"$f":"AND(#REF!,\"NoH0n2iN33I=\")","v":{"$error":"#REF!"}},{"$f":"AND(#REF!,\"NoH0n2iN33M=\")","v":{"$error":"#REF!"}},{"$f":"AND(#REF!,\"NoH0n2iN33Q=\")","v":{"$error":"#REF!"}},{"$f":"AND(#REF!,\"NoH0n2iN33U=\")","v":{"$error":"#REF!"}},{"$f":"AND(#REF!,\"NoH0n2iN33Y=\")","v":{"$error":"#REF!"}},{"$f":"AND(#REF!,\"NoH0n2iN33c=\")","v":{"$error":"#REF!"}},{"$f":"AND(#REF!,\"NoH0n2iN33g=\")","v":{"$error":"#REF!"}},{"$f":"AND(#REF!,\"NoH0n2iN33k=\")","v":{"$error":"#REF!"}},{"$f":"AND(#REF!,\"NoH0n2iN33o=\")","v":{"$error":"#REF!"}},{"$f":"AND(#REF!,\"NoH0n2iN33s=\")","v":{"$error":"#REF!"}},{"$f":"AND(#REF!,\"NoH0n2iN33w=\")","v":{"$error":"#REF!"}},{"$f":"AND(#REF!,\"NoH0n2iN330=\")","v":{"$error":"#REF!"}},{"$f":"AND(#REF!,\"NoH0n2iN334=\")","v":{"$error":"#REF!"}},{"$f":"AND(#REF!,\"NoH0n2iN338=\")","v":{"$error":"#REF!"}},{"$f":"AND(#REF!,\"NoH0n2iN34A=\")","v":{"$error":"#REF!"}},{"$f":"AND(#REF!,\"NoH0n2iN34E=\")","v":{"$error":"#REF!"}},{"$f":"AND(#REF!,\"NoH0n2iN34I=\")","v":{"$error":"#REF!"}},{"$f":"AND(#REF!,\"NoH0n2iN34M=\")","v":{"$error":"#REF!"}},{"$f":"AND(#REF!,\"NoH0n2iN34Q=\")","v":{"$error":"#REF!"}},{"$f":"AND(#REF!,\"NoH0n2iN34U=\")","v":{"$error":"#REF!"}},{"$f":"IF(#REF!,\"NoH0n2iN34Y=\",0)","v":{"$error":"#REF!"}},{"$f":"AND(#REF!,\"NoH0n2iN34c=\")","v":{"$error":"#REF!"}},{"$f":"AND(#REF!,\"NoH0n2iN34g=\")","v":{"$error":"#REF!"}},{"$f":"AND(#REF!,\"NoH0n2iN34k=\")","v":{"$error":"#REF!"}},{"$f":"AND(#REF!,\"NoH0n2iN34o=\")","v":{"$error":"#REF!"}},{"$f":"AND(#REF!,\"NoH0n2iN34s=\")","v":{"$error":"#REF!"}},{"$f":"AND(#REF!,\"NoH0n2iN34w=\")","v":{"$error":"#REF!"}},{"$f":"AND(#REF!,\"NoH0n2iN340=\")","v":{"$error":"#REF!"}},{"$f":"AND(#REF!,\"NoH0n2iN344=\")","v":{"$error":"#REF!"}},{"$f":"AND(#REF!,\"NoH0n2iN348=\")","v":{"$error":"#REF!"}},{"$f":"AND(#REF!,\"NoH0n2iN35A=\")","v":{"$error":"#REF!"}},{"$f":"AND(#REF!,\"NoH0n2iN35E=\")","v":{"$error":"#REF!"}},{"$f":"AND(#REF!,\"NoH0n2iN35I=\")","v":{"$error":"#REF!"}},{"$f":"AND(#REF!,\"NoH0n2iN35M=\")","v":{"$error":"#REF!"}},{"$f":"AND(#REF!,\"NoH0n2iN35Q=\")","v":{"$error":"#REF!"}},{"$f":"AND(#REF!,\"NoH0n2iN35U=\")","v":{"$error":"#REF!"}},{"$f":"AND(#REF!,\"NoH0n2iN35Y=\")","v":{"$error":"#REF!"}},{"$f":"AND(#REF!,\"NoH0n2iN35c=\")","v":{"$error":"#REF!"}},{"$f":"AND(#REF!,\"NoH0n2iN35g=\")","v":{"$error":"#REF!"}},{"$f":"AND(#REF!,\"NoH0n2iN35k=\")","v":{"$error":"#REF!"}},{"$f":"AND(#REF!,\"NoH0n2iN35o=\")","v":{"$error":"#REF!"}},{"$f":"AND(#REF!,\"NoH0n2iN35s=\")","v":{"$error":"#REF!"}},{"$f":"AND(#REF!,\"NoH0n2iN35w=\")","v":{"$error":"#REF!"}},{"$f":"AND(#REF!,\"NoH0n2iN350=\")","v":{"$error":"#REF!"}},{"$f":"AND(#REF!,\"NoH0n2iN354=\")","v":{"$error":"#REF!"}},{"$f":"AND(#REF!,\"NoH0n2iN358=\")","v":{"$error":"#REF!"}},{"$f":"AND(#REF!,\"NoH0n2iN36A=\")","v":{"$error":"#REF!"}},{"$f":"AND(#REF!,\"NoH0n2iN36E=\")","v":{"$error":"#REF!"}},{"$f":"AND(#REF!,\"NoH0n2iN36I=\")","v":{"$error":"#REF!"}},{"$f":"AND(#REF!,\"NoH0n2iN36M=\")","v":{"$error":"#REF!"}},{"$f":"AND(#REF!,\"NoH0n2iN36Q=\")","v":{"$error":"#REF!"}},{"$f":"AND(#REF!,\"NoH0n2iN36U=\")","v":{"$error":"#REF!"}},{"$f":"AND(#REF!,\"NoH0n2iN36Y=\")","v":{"$error":"#REF!"}},{"$f":"AND(#REF!,\"NoH0n2iN36c=\")","v":{"$error":"#REF!"}},{"$f":"AND(#REF!,\"NoH0n2iN36g=\")","v":{"$error":"#REF!"}},{"$f":"AND(#REF!,\"NoH0n2iN36k=\")","v":{"$error":"#REF!"}},{"$f":"AND(#REF!,\"NoH0n2iN36o=\")","v":{"$error":"#REF!"}},{"$f":"AND(#REF!,\"NoH0n2iN36s=\")","v":{"$error":"#REF!"}},{"$f":"AND(#REF!,\"NoH0n2iN36w=\")","v":{"$error":"#REF!"}},{"$f":"AND(#REF!,\"NoH0n2iN360=\")","v":{"$error":"#REF!"}},{"$f":"AND(#REF!,\"NoH0n2iN364=\")","v":{"$error":"#REF!"}},{"$f":"AND(#REF!,\"NoH0n2iN368=\")","v":{"$error":"#REF!"}},{"$f":"AND(#REF!,\"NoH0n2iN37A=\")","v":{"$error":"#REF!"}},{"$f":"AND(#REF!,\"NoH0n2iN37E=\")","v":{"$error":"#REF!"}},{"$f":"AND(#REF!,\"NoH0n2iN37I=\")","v":{"$error":"#REF!"}},{"$f":"AND(#REF!,\"NoH0n2iN37M=\")","v":{"$error":"#REF!"}},{"$f":"AND(#REF!,\"NoH0n2iN37Q=\")","v":{"$error":"#REF!"}},{"$f":"AND(#REF!,\"NoH0n2iN37U=\")","v":{"$error":"#REF!"}},{"$f":"AND(#REF!,\"NoH0n2iN37Y=\")","v":{"$error":"#REF!"}},{"$f":"AND(#REF!,\"NoH0n2iN37c=\")","v":{"$error":"#REF!"}},{"$f":"AND(#REF!,\"NoH0n2iN37g=\")","v":{"$error":"#REF!"}},{"$f":"AND(#REF!,\"NoH0n2iN37k=\")","v":{"$error":"#REF!"}},{"$f":"AND(#REF!,\"NoH0n2iN37o=\")","v":{"$error":"#REF!"}},{"$f":"AND(#REF!,\"NoH0n2iN37s=\")","v":{"$error":"#REF!"}},{"$f":"AND(#REF!,\"NoH0n2iN37w=\")","v":{"$error":"#REF!"}},{"$f":"AND(#REF!,\"NoH0n2iN370=\")","v":{"$error":"#REF!"}},{"$f":"AND(#REF!,\"NoH0n2iN374=\")","v":{"$error":"#REF!"}},{"$f":"AND(#REF!,\"NoH0n2iN378=\")","v":{"$error":"#REF!"}},{"$f":"AND(#REF!,\"NoH0n2iN38A=\")","v":{"$error":"#REF!"}},{"$f":"AND(#REF!,\"NoH0n2iN38E=\")","v":{"$error":"#REF!"}},{"$f":"AND(#REF!,\"NoH0n2iN38I=\")","v":{"$error":"#REF!"}},{"$f":"AND(#REF!,\"NoH0n2iN38M=\")","v":{"$error":"#REF!"}},{"$f":"AND(#REF!,\"NoH0n2iN38Q=\")","v":{"$error":"#REF!"}},{"$f":"AND(#REF!,\"NoH0n2iN38U=\")","v":{"$error":"#REF!"}},{"$f":"AND(#REF!,\"NoH0n2iN38Y=\")","v":{"$error":"#REF!"}},{"$f":"AND(#REF!,\"NoH0n2iN38c=\")","v":{"$error":"#REF!"}},{"$f":"AND(#REF!,\"NoH0n2iN38g=\")","v":{"$error":"#REF!"}},{"$f":"AND(#REF!,\"NoH0n2iN38k=\")","v":{"$error":"#REF!"}},{"$f":"AND(#REF!,\"NoH0n2iN38o=\")","v":{"$error":"#REF!"}},{"$f":"AND(#REF!,\"NoH0n2iN38s=\")","v":{"$error":"#REF!"}},{"$f":"AND(#REF!,\"NoH0n2iN38w=\")","v":{"$error":"#REF!"}},{"$f":"AND(#REF!,\"NoH0n2iN380=\")","v":{"$error":"#REF!"}},{"$f":"AND(#REF!,\"NoH0n2iN384=\")","v":{"$error":"#REF!"}},{"$f":"AND(#REF!,\"NoH0n2iN388=\")","v":{"$error":"#REF!"}},{"$f":"AND(#REF!,\"NoH0n2iN39A=\")","v":{"$error":"#REF!"}},{"$f":"AND(#REF!,\"NoH0n2iN39E=\")","v":{"$error":"#REF!"}},{"$f":"AND(#REF!,\"NoH0n2iN39I=\")","v":{"$error":"#REF!"}},{"$f":"AND(#REF!,\"NoH0n2iN39M=\")","v":{"$error":"#REF!"}},{"$f":"AND(#REF!,\"NoH0n2iN39Q=\")","v":{"$error":"#REF!"}},{"$f":"AND(#REF!,\"NoH0n2iN39U=\")","v":{"$error":"#REF!"}},{"$f":"AND(#REF!,\"NoH0n2iN39Y=\")","v":{"$error":"#REF!"}},{"$f":"AND(#REF!,\"NoH0n2iN39c=\")","v":{"$error":"#REF!"}},{"$f":"AND(#REF!,\"NoH0n2iN39g=\")","v":{"$error":"#REF!"}},{"$f":"AND(#REF!,\"NoH0n2iN39k=\")","v":{"$error":"#REF!"}},{"$f":"AND(#REF!,\"NoH0n2iN39o=\")","v":{"$error":"#REF!"}},{"$f":"AND(#REF!,\"NoH0n2iN39s=\")","v":{"$error":"#REF!"}},{"$f":"AND(#REF!,\"NoH0n2iN39w=\")","v":{"$error":"#REF!"}},{"$f":"AND(#REF!,\"NoH0n2iN390=\")","v":{"$error":"#REF!"}},{"$f":"AND(#REF!,\"NoH0n2iN394=\")","v":{"$error":"#REF!"}},{"$f":"AND(#REF!,\"NoH0n2iN398=\")","v":{"$error":"#REF!"}},{"$f":"AND(#REF!,\"NoH0n2iN3+A=\")","v":{"$error":"#REF!"}},{"$f":"AND(#REF!,\"NoH0n2iN3+E=\")","v":{"$error":"#REF!"}},{"$f":"AND(#REF!,\"NoH0n2iN3+I=\")","v":{"$error":"#REF!"}},{"$f":"AND(#REF!,\"NoH0n2iN3+M=\")","v":{"$error":"#REF!"}},{"$f":"AND(#REF!,\"NoH0n2iN3+Q=\")","v":{"$error":"#REF!"}},{"$f":"AND(#REF!,\"NoH0n2iN3+U=\")","v":{"$error":"#REF!"}},{"$f":"AND(#REF!,\"NoH0n2iN3+Y=\")","v":{"$error":"#REF!"}},{"$f":"AND(#REF!,\"NoH0n2iN3+c=\")","v":{"$error":"#REF!"}},{"$f":"AND(#REF!,\"NoH0n2iN3+g=\")","v":{"$error":"#REF!"}},{"$f":"AND(#REF!,\"NoH0n2iN3+k=\")","v":{"$error":"#REF!"}},{"$f":"AND(#REF!,\"NoH0n2iN3+o=\")","v":{"$error":"#REF!"}},{"$f":"AND(#REF!,\"NoH0n2iN3+s=\")","v":{"$error":"#REF!"}},{"$f":"AND(#REF!,\"NoH0n2iN3+w=\")","v":{"$error":"#REF!"}},{"$f":"AND(#REF!,\"NoH0n2iN3+0=\")","v":{"$error":"#REF!"}},{"$f":"AND(#REF!,\"NoH0n2iN3+4=\")","v":{"$error":"#REF!"}},{"$f":"AND(#REF!,\"NoH0n2iN3+8=\")","v":{"$error":"#REF!"}},{"$f":"AND(#REF!,\"NoH0n2iN3/A=\")","v":{"$error":"#REF!"}},{"$f":"AND(#REF!,\"NoH0n2iN3/E=\")","v":{"$error":"#REF!"}},{"$f":"AND(#REF!,\"NoH0n2iN3/I=\")","v":{"$error":"#REF!"}},{"$f":"AND(#REF!,\"NoH0n2iN3/M=\")","v":{"$error":"#REF!"}},{"$f":"AND(#REF!,\"NoH0n2iN3/Q=\")","v":{"$error":"#REF!"}},{"$f":"AND(#REF!,\"NoH0n2iN3/U=\")","v":{"$error":"#REF!"}},{"$f":"AND(#REF!,\"NoH0n2iN3/Y=\")","v":{"$error":"#REF!"}},{"$f":"AND(#REF!,\"NoH0n2iN3/c=\")","v":{"$error":"#REF!"}},{"$f":"AND(#REF!,\"NoH0n2iN3/g=\")","v":{"$error":"#REF!"}},{"$f":"AND(#REF!,\"NoH0n2iN3/k=\")","v":{"$error":"#REF!"}},{"$f":"AND(#REF!,\"NoH0n2iN3/o=\")","v":{"$error":"#REF!"}},{"$f":"AND(#REF!,\"NoH0n2iN3/s=\")","v":{"$error":"#REF!"}},{"$f":"AND(#REF!,\"NoH0n2iN3/w=\")","v":{"$error":"#REF!"}},{"$f":"AND(#REF!,\"NoH0n2iN3/0=\")","v":{"$error":"#REF!"}},{"$f":"AND(#REF!,\"NoH0n2iN3/4=\")","v":{"$error":"#REF!"}},{"$f":"AND(#REF!,\"NoH0n2iN3/8=\")","v":{"$error":"#REF!"}}]
[{"$f":"AND(#REF!,\"B2FuOAexlgA=\")","v":{"$error":"#REF!"}},{"$f":"AND(#REF!,\"B2FuOAexlgE=\")","v":{"$error":"#REF!"}},{"$f":"AND(#REF!,\"B2FuOAexlgI=\")","v":{"$error":"#REF!"}},{"$f":"AND(#REF!,\"B2FuOAexlgM=\")","v":{"$error":"#REF!"}},{"$f":"AND(#REF!,\"B2FuOAexlgQ=\")","v":{"$error":"#REF!"}},{"$f":"AND(#REF!,\"B2FuOAexlgU=\")","v":{"$error":"#REF!"}},{"$f":"AND(#REF!,\"B2FuOAexlgY=\")","v":{"$error":"#REF!"}},{"$f":"AND(#REF!,\"B2FuOAexlgc=\")","v":{"$error":"#REF!"}},{"$f":"AND(#REF!,\"B2FuOAexlgg=\")","v":{"$error":"#REF!"}},{"$f":"AND(#REF!,\"B2FuOAexlgk=\")","v":{"$error":"#REF!"}},{"$f":"AND(#REF!,\"B2FuOAexlgo=\")","v":{"$error":"#REF!"}},{"$f":"AND(#REF!,\"B2FuOAexlgs=\")","v":{"$error":"#REF!"}},{"$f":"AND(#REF!,\"B2FuOAexlgw=\")","v":{"$error":"#REF!"}},{"$f":"AND(#REF!,\"B2FuOAexlg0=\")","v":{"$error":"#REF!"}},{"$f":"AND(#REF!,\"B2FuOAexlg4=\")","v":{"$error":"#REF!"}},{"$f":"AND(#REF!,\"B2FuOAexlg8=\")","v":{"$error":"#REF!"}},{"$f":"AND(#REF!,\"B2FuOAexlhA=\")","v":{"$error":"#REF!"}},{"$f":"AND(#REF!,\"B2FuOAexlhE=\")","v":{"$error":"#REF!"}},{"$f":"AND(#REF!,\"B2FuOAexlhI=\")","v":{"$error":"#REF!"}},{"$f":"AND(#REF!,\"B2FuOAexlhM=\")","v":{"$error":"#REF!"}},{"$f":"AND(#REF!,\"B2FuOAexlhQ=\")","v":{"$error":"#REF!"}},{"$f":"AND(#REF!,\"B2FuOAexlhU=\")","v":{"$error":"#REF!"}},{"$f":"AND(#REF!,\"B2FuOAexlhY=\")","v":{"$error":"#REF!"}},{"$f":"AND(#REF!,\"B2FuOAexlhc=\")","v":{"$error":"#REF!"}},{"$f":"AND(#REF!,\"B2FuOAexlhg=\")","v":{"$error":"#REF!"}},{"$f":"AND(#REF!,\"B2FuOAexlhk=\")","v":{"$error":"#REF!"}},{"$f":"AND(#REF!,\"B2FuOAexlho=\")","v":{"$error":"#REF!"}},{"$f":"AND(#REF!,\"B2FuOAexlhs=\")","v":{"$error":"#REF!"}},{"$f":"AND(#REF!,\"B2FuOAexlhw=\")","v":{"$error":"#REF!"}},{"$f":"AND(#REF!,\"B2FuOAexlh0=\")","v":{"$error":"#REF!"}},{"$f":"AND(#REF!,\"B2FuOAexlh4=\")","v":{"$error":"#REF!"}},{"$f":"AND(#REF!,\"B2FuOAexlh8=\")","v":{"$error":"#REF!"}},{"$f":"AND(#REF!,\"B2FuOAexliA=\")","v":{"$error":"#REF!"}},{"$f":"AND(#REF!,\"B2FuOAexliE=\")","v":{"$error":"#REF!"}},{"$f":"AND(#REF!,\"B2FuOAexliI=\")","v":{"$error":"#REF!"}},{"$f":"AND(#REF!,\"B2FuOAexliM=\")","v":{"$error":"#REF!"}},{"$f":"AND(#REF!,\"B2FuOAexliQ=\")","v":{"$error":"#REF!"}},{"$f":"AND(#REF!,\"B2FuOAexliU=\")","v":{"$error":"#REF!"}},{"$f":"AND(#REF!,\"B2FuOAexliY=\")","v":{"$error":"#REF!"}},{"$f":"AND(#REF!,\"B2FuOAexlic=\")","v":{"$error":"#REF!"}},{"$f":"AND(#REF!,\"B2FuOAexlig=\")","v":{"$error":"#REF!"}},{"$f":"AND(#REF!,\"B2FuOAexlik=\")","v":{"$error":"#REF!"}},{"$f":"AND(#REF!,\"B2FuOAexlio=\")","v":{"$error":"#REF!"}},{"$f":"AND(#REF!,\"B2FuOAexlis=\")","v":{"$error":"#REF!"}},{"$f":"AND(#REF!,\"B2FuOAexliw=\")","v":{"$error":"#REF!"}},{"$f":"AND(#REF!,\"B2FuOAexli0=\")","v":{"$error":"#REF!"}},{"$f":"AND(#REF!,\"B2FuOAexli4=\")","v":{"$error":"#REF!"}},{"$f":"AND(#REF!,\"B2FuOAexli8=\")","v":{"$error":"#REF!"}},{"$f":"AND(#REF!,\"B2FuOAexljA=\")","v":{"$error":"#REF!"}},{"$f":"AND(#REF!,\"B2FuOAexljE=\")","v":{"$error":"#REF!"}},{"$f":"AND(#REF!,\"B2FuOAexljI=\")","v":{"$error":"#REF!"}},{"$f":"AND(#REF!,\"B2FuOAexljM=\")","v":{"$error":"#REF!"}},{"$f":"AND(#REF!,\"B2FuOAexljQ=\")","v":{"$error":"#REF!"}},{"$f":"AND(#REF!,\"B2FuOAexljU=\")","v":{"$error":"#REF!"}},{"$f":"AND(#REF!,\"B2FuOAexljY=\")","v":{"$error":"#REF!"}},{"$f":"AND(#REF!,\"B2FuOAexljc=\")","v":{"$error":"#REF!"}},{"$f":"AND(#REF!,\"B2FuOAexljg=\")","v":{"$error":"#REF!"}},{"$f":"AND(#REF!,\"B2FuOAexljk=\")","v":{"$error":"#REF!"}},{"$f":"AND(#REF!,\"B2FuOAexljo=\")","v":{"$error":"#REF!"}},{"$f":"AND(#REF!,\"B2FuOAexljs=\")","v":{"$error":"#REF!"}},{"$f":"AND(#REF!,\"B2FuOAexljw=\")","v":{"$error":"#REF!"}},{"$f":"AND(#REF!,\"B2FuOAexlj0=\")","v":{"$error":"#REF!"}},{"$f":"AND(#REF!,\"B2FuOAexlj4=\")","v":{"$error":"#REF!"}},{"$f":"AND(#REF!,\"B2FuOAexlj8=\")","v":{"$error":"#REF!"}},{"$f":"AND(#REF!,\"B2FuOAexlkA=\")","v":{"$error":"#REF!"}},{"$f":"AND(#REF!,\"B2FuOAexlkE=\")","v":{"$error":"#REF!"}},{"$f":"AND(#REF!,\"B2FuOAexlkI=\")","v":{"$error":"#REF!"}},{"$f":"AND(#REF!,\"B2FuOAexlkM=\")","v":{"$error":"#REF!"}},{"$f":"AND(#REF!,\"B2FuOAexlkQ=\")","v":{"$error":"#REF!"}},{"$f":"AND(#REF!,\"B2FuOAexlkU=\")","v":{"$error":"#REF!"}},{"$f":"AND(#REF!,\"B2FuOAexlkY=\")","v":{"$error":"#REF!"}},{"$f":"AND(#REF!,\"B2FuOAexlkc=\")","v":{"$error":"#REF!"}},{"$f":"AND(#REF!,\"B2FuOAexlkg=\")","v":{"$error":"#REF!"}},{"$f":"AND(#REF!,\"B2FuOAexlkk=\")","v":{"$error":"#REF!"}},{"$f":"AND(#REF!,\"B2FuOAexlko=\")","v":{"$error":"#REF!"}},{"$f":"AND(#REF!,\"B2FuOAexlks=\")","v":{"$error":"#REF!"}},{"$f":"AND(#REF!,\"B2FuOAexlkw=\")","v":{"$error":"#REF!"}},{"$f":"IF(#REF!,\"B2FuOAexlk0=\",0)","v":{"$error":"#REF!"}},{"$f":"AND(#REF!,\"B2FuOAexlk4=\")","v":{"$error":"#REF!"}},{"$f":"AND(#REF!,\"B2FuOAexlk8=\")","v":{"$error":"#REF!"}},{"$f":"AND(#REF!,\"B2FuOAexllA=\")","v":{"$error":"#REF!"}},{"$f":"AND(#REF!,\"B2FuOAexllE=\")","v":{"$error":"#REF!"}},{"$f":"AND(#REF!,\"B2FuOAexllI=\")","v":{"$error":"#REF!"}},{"$f":"AND(#REF!,\"B2FuOAexllM=\")","v":{"$error":"#REF!"}},{"$f":"AND(#REF!,\"B2FuOAexllQ=\")","v":{"$error":"#REF!"}},{"$f":"AND(#REF!,\"B2FuOAexllU=\")","v":{"$error":"#REF!"}},{"$f":"AND(#REF!,\"B2FuOAexllY=\")","v":{"$error":"#REF!"}},{"$f":"AND(#REF!,\"B2FuOAexllc=\")","v":{"$error":"#REF!"}},{"$f":"AND(#REF!,\"B2FuOAexllg=\")","v":{"$error":"#REF!"}},{"$f":"AND(#REF!,\"B2FuOAexllk=\")","v":{"$error":"#REF!"}},{"$f":"AND(#REF!,\"B2FuOAexllo=\")","v":{"$error":"#REF!"}},{"$f":"AND(#REF!,\"B2FuOAexlls=\")","v":{"$error":"#REF!"}},{"$f":"AND(#REF!,\"B2FuOAexllw=\")","v":{"$error":"#REF!"}},{"$f":"AND(#REF!,\"B2FuOAexll0=\")","v":{"$error":"#REF!"}},{"$f":"AND(#REF!,\"B2FuOAexll4=\")","v":{"$error":"#REF!"}},{"$f":"AND(#REF!,\"B2FuOAexll8=\")","v":{"$error":"#REF!"}},{"$f":"AND(#REF!,\"B2FuOAexlmA=\")","v":{"$error":"#REF!"}},{"$f":"AND(#REF!,\"B2FuOAexlmE=\")","v":{"$error":"#REF!"}},{"$f":"AND(#REF!,\"B2FuOAexlmI=\")","v":{"$error":"#REF!"}},{"$f":"AND(#REF!,\"B2FuOAexlmM=\")","v":{"$error":"#REF!"}},{"$f":"AND(#REF!,\"B2FuOAexlmQ=\")","v":{"$error":"#REF!"}},{"$f":"AND(#REF!,\"B2FuOAexlmU=\")","v":{"$error":"#REF!"}},{"$f":"AND(#REF!,\"B2FuOAexlmY=\")","v":{"$error":"#REF!"}},{"$f":"AND(#REF!,\"B2FuOAexlmc=\")","v":{"$error":"#REF!"}},{"$f":"AND(#REF!,\"B2FuOAexlmg=\")","v":{"$error":"#REF!"}},{"$f":"AND(#REF!,\"B2FuOAexlmk=\")","v":{"$error":"#REF!"}},{"$f":"AND(#REF!,\"B2FuOAexlmo=\")","v":{"$error":"#REF!"}},{"$f":"AND(#REF!,\"B2FuOAexlms=\")","v":{"$error":"#REF!"}},{"$f":"AND(#REF!,\"B2FuOAexlmw=\")","v":{"$error":"#REF!"}},{"$f":"AND(#REF!,\"B2FuOAexlm0=\")","v":{"$error":"#REF!"}},{"$f":"AND(#REF!,\"B2FuOAexlm4=\")","v":{"$error":"#REF!"}},{"$f":"AND(#REF!,\"B2FuOAexlm8=\")","v":{"$error":"#REF!"}},{"$f":"AND(#REF!,\"B2FuOAexlnA=\")","v":{"$error":"#REF!"}},{"$f":"AND(#REF!,\"B2FuOAexlnE=\")","v":{"$error":"#REF!"}},{"$f":"AND(#REF!,\"B2FuOAexlnI=\")","v":{"$error":"#REF!"}},{"$f":"AND(#REF!,\"B2FuOAexlnM=\")","v":{"$error":"#REF!"}},{"$f":"AND(#REF!,\"B2FuOAexlnQ=\")","v":{"$error":"#REF!"}},{"$f":"AND(#REF!,\"B2FuOAexlnU=\")","v":{"$error":"#REF!"}},{"$f":"AND(#REF!,\"B2FuOAexlnY=\")","v":{"$error":"#REF!"}},{"$f":"AND(#REF!,\"B2FuOAexlnc=\")","v":{"$error":"#REF!"}},{"$f":"AND(#REF!,\"B2FuOAexlng=\")","v":{"$error":"#REF!"}},{"$f":"AND(#REF!,\"B2FuOAexlnk=\")","v":{"$error":"#REF!"}},{"$f":"AND(#REF!,\"B2FuOAexlno=\")","v":{"$error":"#REF!"}},{"$f":"AND(#REF!,\"B2FuOAexlns=\")","v":{"$error":"#REF!"}},{"$f":"AND(#REF!,\"B2FuOAexlnw=\")","v":{"$error":"#REF!"}},{"$f":"AND(#REF!,\"B2FuOAexln0=\")","v":{"$error":"#REF!"}},{"$f":"AND(#REF!,\"B2FuOAexln4=\")","v":{"$error":"#REF!"}},{"$f":"AND(#REF!,\"B2FuOAexln8=\")","v":{"$error":"#REF!"}},{"$f":"AND(#REF!,\"B2FuOAexloA=\")","v":{"$error":"#REF!"}},{"$f":"AND(#REF!,\"B2FuOAexloE=\")","v":{"$error":"#REF!"}},{"$f":"AND(#REF!,\"B2FuOAexloI=\")","v":{"$error":"#REF!"}},{"$f":"AND(#REF!,\"B2FuOAexloM=\")","v":{"$error":"#REF!"}},{"$f":"AND(#REF!,\"B2FuOAexloQ=\")","v":{"$error":"#REF!"}},{"$f":"AND(#REF!,\"B2FuOAexloU=\")","v":{"$error":"#REF!"}},{"$f":"AND(#REF!,\"B2FuOAexloY=\")","v":{"$error":"#REF!"}},{"$f":"AND(#REF!,\"B2FuOAexloc=\")","v":{"$error":"#REF!"}},{"$f":"AND(#REF!,\"B2FuOAexlog=\")","v":{"$error":"#REF!"}},{"$f":"AND(#REF!,\"B2FuOAexlok=\")","v":{"$error":"#REF!"}},{"$f":"AND(#REF!,\"B2FuOAexloo=\")","v":{"$error":"#REF!"}},{"$f":"AND(#REF!,\"B2FuOAexlos=\")","v":{"$error":"#REF!"}},{"$f":"AND(#REF!,\"B2FuOAexlow=\")","v":{"$error":"#REF!"}},{"$f":"AND(#REF!,\"B2FuOAexlo0=\")","v":{"$error":"#REF!"}},{"$f":"AND(#REF!,\"B2FuOAexlo4=\")","v":{"$error":"#REF!"}},{"$f":"AND(#REF!,\"B2FuOAexlo8=\")","v":{"$error":"#REF!"}},{"$f":"AND(#REF!,\"B2FuOAexlpA=\")","v":{"$error":"#REF!"}},{"$f":"AND(#REF!,\"B2FuOAexlpE=\")","v":{"$error":"#REF!"}},{"$f":"AND(#REF!,\"B2FuOAexlpI=\")","v":{"$error":"#REF!"}},{"$f":"AND(#REF!,\"B2FuOAexlpM=\")","v":{"$error":"#REF!"}},{"$f":"AND(#REF!,\"B2FuOAexlpQ=\")","v":{"$error":"#REF!"}},{"$f":"AND(#REF!,\"B2FuOAexlpU=\")","v":{"$error":"#REF!"}},{"$f":"AND(#REF!,\"B2FuOAexlpY=\")","v":{"$error":"#REF!"}},{"$f":"AND(#REF!,\"B2FuOAexlpc=\")","v":{"$error":"#REF!"}},{"$f":"AND(#REF!,\"B2FuOAexlpg=\")","v":{"$error":"#REF!"}},{"$f":"AND(#REF!,\"B2FuOAexlpk=\")","v":{"$error":"#REF!"}},{"$f":"AND(#REF!,\"B2FuOAexlpo=\")","v":{"$error":"#REF!"}},{"$f":"AND(#REF!,\"B2FuOAexlps=\")","v":{"$error":"#REF!"}},{"$f":"AND(#REF!,\"B2FuOAexlpw=\")","v":{"$error":"#REF!"}},{"$f":"AND(#REF!,\"B2FuOAexlp0=\")","v":{"$error":"#REF!"}},{"$f":"AND(#REF!,\"B2FuOAexlp4=\")","v":{"$error":"#REF!"}},{"$f":"AND(#REF!,\"B2FuOAexlp8=\")","v":{"$error":"#REF!"}},{"$f":"AND(#REF!,\"B2FuOAexlqA=\")","v":{"$error":"#REF!"}},{"$f":"AND(#REF!,\"B2FuOAexlqE=\")","v":{"$error":"#REF!"}},{"$f":"AND(#REF!,\"B2FuOAexlqI=\")","v":{"$error":"#REF!"}},{"$f":"AND(#REF!,\"B2FuOAexlqM=\")","v":{"$error":"#REF!"}},{"$f":"AND(#REF!,\"B2FuOAexlqQ=\")","v":{"$error":"#REF!"}},{"$f":"AND(#REF!,\"B2FuOAexlqU=\")","v":{"$error":"#REF!"}},{"$f":"AND(#REF!,\"B2FuOAexlqY=\")","v":{"$error":"#REF!"}},{"$f":"AND(#REF!,\"B2FuOAexlqc=\")","v":{"$error":"#REF!"}},{"$f":"AND(#REF!,\"B2FuOAexlqg=\")","v":{"$error":"#REF!"}},{"$f":"AND(#REF!,\"B2FuOAexlqk=\")","v":{"$error":"#REF!"}},{"$f":"AND(#REF!,\"B2FuOAexlqo=\")","v":{"$error":"#REF!"}},{"$f":"AND(#REF!,\"B2FuOAexlqs=\")","v":{"$error":"#REF!"}},{"$f":"AND(#REF!,\"B2FuOAexlqw=\")","v":{"$error":"#REF!"}},{"$f":"AND(#REF!,\"B2FuOAexlq0=\")","v":{"$error":"#REF!"}},{"$f":"AND(#REF!,\"B2FuOAexlq4=\")","v":{"$error":"#REF!"}},{"$f":"AND(#REF!,\"B2FuOAexlq8=\")","v":{"$error":"#REF!"}},{"$f":"AND(#REF!,\"B2FuOAexlrA=\")","v":{"$error":"#REF!"}},{"$f":"AND(#REF!,\"B2FuOAexlrE=\")","v":{"$error":"#REF!"}},{"$f":"AND(#REF!,\"B2FuOAexlrI=\")","v":{"$error":"#REF!"}},{"$f":"AND(#REF!,\"B2FuOAexlrM=\")","v":{"$error":"#REF!"}},{"$f":"AND(#REF!,\"B2FuOAexlrQ=\")","v":{"$error":"#REF!"}},{"$f":"AND(#REF!,\"B2FuOAexlrU=\")","v":{"$error":"#REF!"}},{"$f":"AND(#REF!,\"B2FuOAexlrY=\")","v":{"$error":"#REF!"}},{"$f":"AND(#REF!,\"B2FuOAexlrc=\")","v":{"$error":"#REF!"}},{"$f":"AND(#REF!,\"B2FuOAexlrg=\")","v":{"$error":"#REF!"}},{"$f":"AND(#REF!,\"B2FuOAexlrk=\")","v":{"$error":"#REF!"}},{"$f":"AND(#REF!,\"B2FuOAexlro=\")","v":{"$error":"#REF!"}},{"$f":"AND(#REF!,\"B2FuOAexlrs=\")","v":{"$error":"#REF!"}},{"$f":"AND(#REF!,\"B2FuOAexlrw=\")","v":{"$error":"#REF!"}},{"$f":"AND(#REF!,\"B2FuOAexlr0=\")","v":{"$error":"#REF!"}},{"$f":"AND(#REF!,\"B2FuOAexlr4=\")","v":{"$error":"#REF!"}},{"$f":"AND(#REF!,\"B2FuOAexlr8=\")","v":{"$error":"#REF!"}},{"$f":"AND(#REF!,\"B2FuOAexlsA=\")","v":{"$error":"#REF!"}},{"$f":"AND(#REF!,\"B2FuOAexlsE=\")","v":{"$error":"#REF!"}},{"$f":"AND(#REF!,\"B2FuOAexlsI=\")","v":{"$error":"#REF!"}},{"$f":"AND(#REF!,\"B2FuOAexlsM=\")","v":{"$error":"#REF!"}},{"$f":"AND(#REF!,\"B2FuOAexlsQ=\")","v":{"$error":"#REF!"}},{"$f":"AND(#REF!,\"B2FuOAexlsU=\")","v":{"$error":"#REF!"}},{"$f":"AND(#REF!,\"B2FuOAexlsY=\")","v":{"$error":"#REF!"}},{"$f":"AND(#REF!,\"B2FuOAexlsc=\")","v":{"$error":"#REF!"}},{"$f":"AND(#REF!,\"B2FuOAexlsg=\")","v":{"$error":"#REF!"}},{"$f":"AND(#REF!,\"B2FuOAexlsk=\")","v":{"$error":"#REF!"}},{"$f":"AND(#REF!,\"B2FuOAexlso=\")","v":{"$error":"#REF!"}},{"$f":"AND(#REF!,\"B2FuOAexlss=\")","v":{"$error":"#REF!"}},{"$f":"AND(#REF!,\"B2FuOAexlsw=\")","v":{"$error":"#REF!"}},{"$f":"AND(#REF!,\"B2FuOAexls0=\")","v":{"$error":"#REF!"}},{"$f":"AND(#REF!,\"B2FuOAexls4=\")","v":{"$error":"#REF!"}},{"$f":"AND(#REF!,\"B2FuOAexls8=\")","v":{"$error":"#REF!"}},{"$f":"AND(#REF!,\"B2FuOAexltA=\")","v":{"$error":"#REF!"}},{"$f":"AND(#REF!,\"B2FuOAexltE=\")","v":{"$error":"#REF!"}},{"$f":"AND(#REF!,\"B2FuOAexltI=\")","v":{"$error":"#REF!"}},{"$f":"AND(#REF!,\"B2FuOAexltM=\")","v":{"$error":"#REF!"}},{"$f":"AND(#REF!,\"B2FuOAexltQ=\")","v":{"$error":"#REF!"}},{"$f":"AND(#REF!,\"B2FuOAexltU=\")","v":{"$error":"#REF!"}},{"$f":"AND(#REF!,\"B2FuOAexltY=\")","v":{"$error":"#REF!"}},{"$f":"AND(#REF!,\"B2FuOAexltc=\")","v":{"$error":"#REF!"}},{"$f":"AND(#REF!,\"B2FuOAexltg=\")","v":{"$error":"#REF!"}},{"$f":"AND(#REF!,\"B2FuOAexltk=\")","v":{"$error":"#REF!"}},{"$f":"AND(#REF!,\"B2FuOAexlto=\")","v":{"$error":"#REF!"}},{"$f":"AND(#REF!,\"B2FuOAexlts=\")","v":{"$error":"#REF!"}},{"$f":"AND(#REF!,\"B2FuOAexltw=\")","v":{"$error":"#REF!"}},{"$f":"AND(#REF!,\"B2FuOAexlt0=\")","v":{"$error":"#REF!"}},{"$f":"AND(#REF!,\"B2FuOAexlt4=\")","v":{"$error":"#REF!"}},{"$f":"AND(#REF!,\"B2FuOAexlt8=\")","v":{"$error":"#REF!"}},{"$f":"AND(#REF!,\"B2FuOAexluA=\")","v":{"$error":"#REF!"}},{"$f":"AND(#REF!,\"B2FuOAexluE=\")","v":{"$error":"#REF!"}},{"$f":"AND(#REF!,\"B2FuOAexluI=\")","v":{"$error":"#REF!"}},{"$f":"AND(#REF!,\"B2FuOAexluM=\")","v":{"$error":"#REF!"}},{"$f":"AND(#REF!,\"B2FuOAexluQ=\")","v":{"$error":"#REF!"}},{"$f":"AND(#REF!,\"B2FuOAexluU=\")","v":{"$error":"#REF!"}},{"$f":"AND(#REF!,\"B2FuOAexluY=\")","v":{"$error":"#REF!"}},{"$f":"AND(#REF!,\"B2FuOAexluc=\")","v":{"$error":"#REF!"}},{"$f":"AND(#REF!,\"B2FuOAexlug=\")","v":{"$error":"#REF!"}},{"$f":"AND(#REF!,\"B2FuOAexluk=\")","v":{"$error":"#REF!"}},{"$f":"AND(#REF!,\"B2FuOAexluo=\")","v":{"$error":"#REF!"}},{"$f":"AND(#REF!,\"B2FuOAexlus=\")","v":{"$error":"#REF!"}},{"$f":"AND(#REF!,\"B2FuOAexluw=\")","v":{"$error":"#REF!"}},{"$f":"AND(#REF!,\"B2FuOAexlu0=\")","v":{"$error":"#REF!"}},{"$f":"AND(#REF!,\"B2FuOAexlu4=\")","v":{"$error":"#REF!"}},{"$f":"AND(#REF!,\"B2FuOAexlu8=\")","v":{"$error":"#REF!"}},{"$f":"AND(#REF!,\"B2FuOAexlvA=\")","v":{"$error":"#REF!"}},{"$f":"AND(#REF!,\"B2FuOAexlvE=\")","v":{"$error":"#REF!"}},{"$f":"AND(#REF!,\"B2FuOAexlvI=\")","v":{"$error":"#REF!"}},{"$f":"AND(#REF!,\"B2FuOAexlvM=\")","v":{"$error":"#REF!"}},{"$f":"AND(#REF!,\"B2FuOAexlvQ=\")","v":{"$error":"#REF!"}},{"$f":"AND(#REF!,\"B2FuOAexlvU=\")","v":{"$error":"#REF!"}},{"$f":"AND(#REF!,\"B2FuOAexlvY=\")","v":{"$error":"#REF!"}},{"$f":"AND(#REF!,\"B2FuOAexlvc=\")","v":{"$error":"#REF!"}},{"$f":"AND(#REF!,\"B2FuOAexlvg=\")","v":{"$error":"#REF!"}},{"$f":"AND(#REF!,\"B2FuOAexlvk=\")","v":{"$error":"#REF!"}},{"$f":"AND(#REF!,\"B2FuOAexlvo=\")","v":{"$error":"#REF!"}},{"$f":"AND(#REF!,\"B2FuOAexlvs=\")","v":{"$error":"#REF!"}},{"$f":"AND(#REF!,\"B2FuOAexlvw=\")","v":{"$error":"#REF!"}},{"$f":"AND(#REF!,\"B2FuOAexlv0=\")","v":{"$error":"#REF!"}},{"$f":"AND(#REF!,\"B2FuOAexlv4=\")","v":{"$error":"#REF!"}},{"$f":"AND(#REF!,\"B2FuOAexlv8=\")","v":{"$error":"#REF!"}}]
[{"$f":"AND(#REF!,\"dID0agDMtQA=\")","v":{"$error":"#REF!"}},{"$f":"AND(#REF!,\"dID0agDMtQE=\")","v":{"$error":"#REF!"}},{"$f":"AND(#REF!,\"dID0agDMtQI=\")","v":{"$error":"#REF!"}},{"$f":"AND(#REF!,\"dID0agDMtQM=\")","v":{"$error":"#REF!"}},{"$f":"AND(#REF!,\"dID0agDMtQQ=\")","v":{"$error":"#REF!"}},{"$f":"AND(#REF!,\"dID0agDMtQU=\")","v":{"$error":"#REF!"}},{"$f":"AND(#REF!,\"dID0agDMtQY=\")","v":{"$error":"#REF!"}},{"$f":"AND(#REF!,\"dID0agDMtQc=\")","v":{"$error":"#REF!"}},{"$f":"AND(#REF!,\"dID0agDMtQg=\")","v":{"$error":"#REF!"}},{"$f":"AND(#REF!,\"dID0agDMtQk=\")","v":{"$error":"#REF!"}},{"$f":"AND(#REF!,\"dID0agDMtQo=\")","v":{"$error":"#REF!"}},{"$f":"AND(#REF!,\"dID0agDMtQs=\")","v":{"$error":"#REF!"}},{"$f":"AND(#REF!,\"dID0agDMtQw=\")","v":{"$error":"#REF!"}},{"$f":"AND(#REF!,\"dID0agDMtQ0=\")","v":{"$error":"#REF!"}},{"$f":"AND(#REF!,\"dID0agDMtQ4=\")","v":{"$error":"#REF!"}},{"$f":"AND(#REF!,\"dID0agDMtQ8=\")","v":{"$error":"#REF!"}},{"$f":"AND(#REF!,\"dID0agDMtRA=\")","v":{"$error":"#REF!"}},{"$f":"AND(#REF!,\"dID0agDMtRE=\")","v":{"$error":"#REF!"}},{"$f":"AND(#REF!,\"dID0agDMtRI=\")","v":{"$error":"#REF!"}},{"$f":"AND(#REF!,\"dID0agDMtRM=\")","v":{"$error":"#REF!"}},{"$f":"IF(#REF!,\"dID0agDMtRQ=\",0)","v":{"$error":"#REF!"}},{"$f":"AND(#REF!,\"dID0agDMtRU=\")","v":{"$error":"#REF!"}},{"$f":"AND(#REF!,\"dID0agDMtRY=\")","v":{"$error":"#REF!"}},{"$f":"AND(#REF!,\"dID0agDMtRc=\")","v":{"$error":"#REF!"}},{"$f":"AND(#REF!,\"dID0agDMtRg=\")","v":{"$error":"#REF!"}},{"$f":"AND(#REF!,\"dID0agDMtRk=\")","v":{"$error":"#REF!"}},{"$f":"AND(#REF!,\"dID0agDMtRo=\")","v":{"$error":"#REF!"}},{"$f":"AND(#REF!,\"dID0agDMtRs=\")","v":{"$error":"#REF!"}},{"$f":"AND(#REF!,\"dID0agDMtRw=\")","v":{"$error":"#REF!"}},{"$f":"AND(#REF!,\"dID0agDMtR0=\")","v":{"$error":"#REF!"}},{"$f":"AND(#REF!,\"dID0agDMtR4=\")","v":{"$error":"#REF!"}},{"$f":"AND(#REF!,\"dID0agDMtR8=\")","v":{"$error":"#REF!"}},{"$f":"AND(#REF!,\"dID0agDMtSA=\")","v":{"$error":"#REF!"}},{"$f":"AND(#REF!,\"dID0agDMtSE=\")","v":{"$error":"#REF!"}},{"$f":"AND(#REF!,\"dID0agDMtSI=\")","v":{"$error":"#REF!"}},{"$f":"AND(#REF!,\"dID0agDMtSM=\")","v":{"$error":"#REF!"}},{"$f":"AND(#REF!,\"dID0agDMtSQ=\")","v":{"$error":"#REF!"}},{"$f":"AND(#REF!,\"dID0agDMtSU=\")","v":{"$error":"#REF!"}},{"$f":"AND(#REF!,\"dID0agDMtSY=\")","v":{"$error":"#REF!"}},{"$f":"AND(#REF!,\"dID0agDMtSc=\")","v":{"$error":"#REF!"}},{"$f":"AND(#REF!,\"dID0agDMtSg=\")","v":{"$error":"#REF!"}},{"$f":"AND(#REF!,\"dID0agDMtSk=\")","v":{"$error":"#REF!"}},{"$f":"AND(#REF!,\"dID0agDMtSo=\")","v":{"$error":"#REF!"}},{"$f":"AND(#REF!,\"dID0agDMtSs=\")","v":{"$error":"#REF!"}},{"$f":"AND(#REF!,\"dID0agDMtSw=\")","v":{"$error":"#REF!"}},{"$f":"AND(#REF!,\"dID0agDMtS0=\")","v":{"$error":"#REF!"}},{"$f":"AND(#REF!,\"dID0agDMtS4=\")","v":{"$error":"#REF!"}},{"$f":"AND(#REF!,\"dID0agDMtS8=\")","v":{"$error":"#REF!"}},{"$f":"AND(#REF!,\"dID0agDMtTA=\")","v":{"$error":"#REF!"}},{"$f":"AND(#REF!,\"dID0agDMtTE=\")","v":{"$error":"#REF!"}},{"$f":"AND(#REF!,\"dID0agDMtTI=\")","v":{"$error":"#REF!"}},{"$f":"AND(#REF!,\"dID0agDMtTM=\")","v":{"$error":"#REF!"}},{"$f":"AND(#REF!,\"dID0agDMtTQ=\")","v":{"$error":"#REF!"}},{"$f":"AND(#REF!,\"dID0agDMtTU=\")","v":{"$error":"#REF!"}},{"$f":"AND(#REF!,\"dID0agDMtTY=\")","v":{"$error":"#REF!"}},{"$f":"AND(#REF!,\"dID0agDMtTc=\")","v":{"$error":"#REF!"}},{"$f":"AND(#REF!,\"dID0agDMtTg=\")","v":{"$error":"#REF!"}},{"$f":"AND(#REF!,\"dID0agDMtTk=\")","v":{"$error":"#REF!"}},{"$f":"AND(#REF!,\"dID0agDMtTo=\")","v":{"$error":"#REF!"}},{"$f":"AND(#REF!,\"dID0agDMtTs=\")","v":{"$error":"#REF!"}},{"$f":"AND(#REF!,\"dID0agDMtTw=\")","v":{"$error":"#REF!"}},{"$f":"AND(#REF!,\"dID0agDMtT0=\")","v":{"$error":"#REF!"}},{"$f":"AND(#REF!,\"dID0agDMtT4=\")","v":{"$error":"#REF!"}},{"$f":"AND(#REF!,\"dID0agDMtT8=\")","v":{"$error":"#REF!"}},{"$f":"AND(#REF!,\"dID0agDMtUA=\")","v":{"$error":"#REF!"}},{"$f":"AND(#REF!,\"dID0agDMtUE=\")","v":{"$error":"#REF!"}},{"$f":"AND(#REF!,\"dID0agDMtUI=\")","v":{"$error":"#REF!"}},{"$f":"AND(#REF!,\"dID0agDMtUM=\")","v":{"$error":"#REF!"}},{"$f":"AND(#REF!,\"dID0agDMtUQ=\")","v":{"$error":"#REF!"}},{"$f":"AND(#REF!,\"dID0agDMtUU=\")","v":{"$error":"#REF!"}},{"$f":"AND(#REF!,\"dID0agDMtUY=\")","v":{"$error":"#REF!"}},{"$f":"AND(#REF!,\"dID0agDMtUc=\")","v":{"$error":"#REF!"}},{"$f":"AND(#REF!,\"dID0agDMtUg=\")","v":{"$error":"#REF!"}},{"$f":"AND(#REF!,\"dID0agDMtUk=\")","v":{"$error":"#REF!"}},{"$f":"AND(#REF!,\"dID0agDMtUo=\")","v":{"$error":"#REF!"}},{"$f":"AND(#REF!,\"dID0agDMtUs=\")","v":{"$error":"#REF!"}},{"$f":"AND(#REF!,\"dID0agDMtUw=\")","v":{"$error":"#REF!"}},{"$f":"AND(#REF!,\"dID0agDMtU0=\")","v":{"$error":"#REF!"}},{"$f":"AND(#REF!,\"dID0agDMtU4=\")","v":{"$error":"#REF!"}},{"$f":"AND(#REF!,\"dID0agDMtU8=\")","v":{"$error":"#REF!"}},{"$f":"AND(#REF!,\"dID0agDMtVA=\")","v":{"$error":"#REF!"}},{"$f":"AND(#REF!,\"dID0agDMtVE=\")","v":{"$error":"#REF!"}},{"$f":"AND(#REF!,\"dID0agDMtVI=\")","v":{"$error":"#REF!"}},{"$f":"AND(#REF!,\"dID0agDMtVM=\")","v":{"$error":"#REF!"}},{"$f":"AND(#REF!,\"dID0agDMtVQ=\")","v":{"$error":"#REF!"}},{"$f":"AND(#REF!,\"dID0agDMtVU=\")","v":{"$error":"#REF!"}},{"$f":"AND(#REF!,\"dID0agDMtVY=\")","v":{"$error":"#REF!"}},{"$f":"AND(#REF!,\"dID0agDMtVc=\")","v":{"$error":"#REF!"}},{"$f":"AND(#REF!,\"dID0agDMtVg=\")","v":{"$error":"#REF!"}},{"$f":"AND(#REF!,\"dID0agDMtVk=\")","v":{"$error":"#REF!"}},{"$f":"AND(#REF!,\"dID0agDMtVo=\")","v":{"$error":"#REF!"}},{"$f":"AND(#REF!,\"dID0agDMtVs=\")","v":{"$error":"#REF!"}},{"$f":"AND(#REF!,\"dID0agDMtVw=\")","v":{"$error":"#REF!"}},{"$f":"AND(#REF!,\"dID0agDMtV0=\")","v":{"$error":"#REF!"}},{"$f":"AND(#REF!,\"dID0agDMtV4=\")","v":{"$error":"#REF!"}},{"$f":"AND(#REF!,\"dID0agDMtV8=\")","v":{"$error":"#REF!"}},{"$f":"AND(#REF!,\"dID0agDMtWA=\")","v":{"$error":"#REF!"}},{"$f":"AND(#REF!,\"dID0agDMtWE=\")","v":{"$error":"#REF!"}},{"$f":"AND(#REF!,\"dID0agDMtWI=\")","v":{"$error":"#REF!"}},{"$f":"AND(#REF!,\"dID0agDMtWM=\")","v":{"$error":"#REF!"}},{"$f":"AND(#REF!,\"dID0agDMtWQ=\")","v":{"$error":"#REF!"}},{"$f":"AND(#REF!,\"dID0agDMtWU=\")","v":{"$error":"#REF!"}},{"$f":"AND(#REF!,\"dID0agDMtWY=\")","v":{"$error":"#REF!"}},{"$f":"AND(#REF!,\"dID0agDMtWc=\")","v":{"$error":"#REF!"}},{"$f":"AND(#REF!,\"dID0agDMtWg=\")","v":{"$error":"#REF!"}},{"$f":"AND(#REF!,\"dID0agDMtWk=\")","v":{"$error":"#REF!"}},{"$f":"AND(#REF!,\"dID0agDMtWo=\")","v":{"$error":"#REF!"}},{"$f":"AND(#REF!,\"dID0agDMtWs=\")","v":{"$error":"#REF!"}},{"$f":"AND(#REF!,\"dID0agDMtWw=\")","v":{"$error":"#REF!"}},{"$f":"AND(#REF!,\"dID0agDMtW0=\")","v":{"$error":"#REF!"}},{"$f":"AND(#REF!,\"dID0agDMtW4=\")","v":{"$error":"#REF!"}},{"$f":"AND(#REF!,\"dID0agDMtW8=\")","v":{"$error":"#REF!"}},{"$f":"AND(#REF!,\"dID0agDMtXA=\")","v":{"$error":"#REF!"}},{"$f":"AND(#REF!,\"dID0agDMtXE=\")","v":{"$error":"#REF!"}},{"$f":"AND(#REF!,\"dID0agDMtXI=\")","v":{"$error":"#REF!"}},{"$f":"AND(#REF!,\"dID0agDMtXM=\")","v":{"$error":"#REF!"}},{"$f":"AND(#REF!,\"dID0agDMtXQ=\")","v":{"$error":"#REF!"}},{"$f":"AND(#REF!,\"dID0agDMtXU=\")","v":{"$error":"#REF!"}},{"$f":"AND(#REF!,\"dID0agDMtXY=\")","v":{"$error":"#REF!"}},{"$f":"AND(#REF!,\"dID0agDMtXc=\")","v":{"$error":"#REF!"}},{"$f":"AND(#REF!,\"dID0agDMtXg=\")","v":{"$error":"#REF!"}},{"$f":"AND(#REF!,\"dID0agDMtXk=\")","v":{"$error":"#REF!"}},{"$f":"AND(#REF!,\"dID0agDMtXo=\")","v":{"$error":"#REF!"}},{"$f":"AND(#REF!,\"dID0agDMtXs=\")","v":{"$error":"#REF!"}},{"$f":"AND(#REF!,\"dID0agDMtXw=\")","v":{"$error":"#REF!"}},{"$f":"AND(#REF!,\"dID0agDMtX0=\")","v":{"$error":"#REF!"}},{"$f":"AND(#REF!,\"dID0agDMtX4=\")","v":{"$error":"#REF!"}},{"$f":"AND(#REF!,\"dID0agDMtX8=\")","v":{"$error":"#REF!"}},{"$f":"AND(#REF!,\"dID0agDMtYA=\")","v":{"$error":"#REF!"}},{"$f":"AND(#REF!,\"dID0agDMtYE=\")","v":{"$error":"#REF!"}},{"$f":"AND(#REF!,\"dID0agDMtYI=\")","v":{"$error":"#REF!"}},{"$f":"AND(#REF!,\"dID0agDMtYM=\")","v":{"$error":"#REF!"}},{"$f":"AND(#REF!,\"dID0agDMtYQ=\")","v":{"$error":"#REF!"}},{"$f":"AND(#REF!,\"dID0agDMtYU=\")","v":{"$error":"#REF!"}},{"$f":"AND(#REF!,\"dID0agDMtYY=\")","v":{"$error":"#REF!"}},{"$f":"AND(#REF!,\"dID0agDMtYc=\")","v":{"$error":"#REF!"}},{"$f":"AND(#REF!,\"dID0agDMtYg=\")","v":{"$error":"#REF!"}},{"$f":"AND(#REF!,\"dID0agDMtYk=\")","v":{"$error":"#REF!"}},{"$f":"AND(#REF!,\"dID0agDMtYo=\")","v":{"$error":"#REF!"}},{"$f":"AND(#REF!,\"dID0agDMtYs=\")","v":{"$error":"#REF!"}},{"$f":"AND(#REF!,\"dID0agDMtYw=\")","v":{"$error":"#REF!"}},{"$f":"AND(#REF!,\"dID0agDMtY0=\")","v":{"$error":"#REF!"}},{"$f":"AND(#REF!,\"dID0agDMtY4=\")","v":{"$error":"#REF!"}},{"$f":"AND(#REF!,\"dID0agDMtY8=\")","v":{"$error":"#REF!"}},{"$f":"AND(#REF!,\"dID0agDMtZA=\")","v":{"$error":"#REF!"}},{"$f":"AND(#REF!,\"dID0agDMtZE=\")","v":{"$error":"#REF!"}},{"$f":"AND(#REF!,\"dID0agDMtZI=\")","v":{"$error":"#REF!"}},{"$f":"AND(#REF!,\"dID0agDMtZM=\")","v":{"$error":"#REF!"}},{"$f":"AND(#REF!,\"dID0agDMtZQ=\")","v":{"$error":"#REF!"}},{"$f":"AND(#REF!,\"dID0agDMtZU=\")","v":{"$error":"#REF!"}},{"$f":"AND(#REF!,\"dID0agDMtZY=\")","v":{"$error":"#REF!"}},{"$f":"AND(#REF!,\"dID0agDMtZc=\")","v":{"$error":"#REF!"}},{"$f":"AND(#REF!,\"dID0agDMtZg=\")","v":{"$error":"#REF!"}},{"$f":"AND(#REF!,\"dID0agDMtZk=\")","v":{"$error":"#REF!"}},{"$f":"AND(#REF!,\"dID0agDMtZo=\")","v":{"$error":"#REF!"}},{"$f":"AND(#REF!,\"dID0agDMtZs=\")","v":{"$error":"#REF!"}},{"$f":"AND(#REF!,\"dID0agDMtZw=\")","v":{"$error":"#REF!"}},{"$f":"AND(#REF!,\"dID0agDMtZ0=\")","v":{"$error":"#REF!"}},{"$f":"AND(#REF!,\"dID0agDMtZ4=\")","v":{"$error":"#REF!"}},{"$f":"AND(#REF!,\"dID0agDMtZ8=\")","v":{"$error":"#REF!"}},{"$f":"AND(#REF!,\"dID0agDMtaA=\")","v":{"$error":"#REF!"}},{"$f":"AND(#REF!,\"dID0agDMtaE=\")","v":{"$error":"#REF!"}},{"$f":"AND(#REF!,\"dID0agDMtaI=\")","v":{"$error":"#REF!"}},{"$f":"AND(#REF!,\"dID0agDMtaM=\")","v":{"$error":"#REF!"}},{"$f":"AND(#REF!,\"dID0agDMtaQ=\")","v":{"$error":"#REF!"}},{"$f":"AND(#REF!,\"dID0agDMtaU=\")","v":{"$error":"#REF!"}},{"$f":"AND(#REF!,\"dID0agDMtaY=\")","v":{"$error":"#REF!"}},{"$f":"AND(#REF!,\"dID0agDMtac=\")","v":{"$error":"#REF!"}},{"$f":"AND(#REF!,\"dID0agDMtag=\")","v":{"$error":"#REF!"}},{"$f":"AND(#REF!,\"dID0agDMtak=\")","v":{"$error":"#REF!"}},{"$f":"AND(#REF!,\"dID0agDMtao=\")","v":{"$error":"#REF!"}},{"$f":"AND(#REF!,\"dID0agDMtas=\")","v":{"$error":"#REF!"}},{"$f":"AND(#REF!,\"dID0agDMtaw=\")","v":{"$error":"#REF!"}},{"$f":"AND(#REF!,\"dID0agDMta0=\")","v":{"$error":"#REF!"}},{"$f":"AND(#REF!,\"dID0agDMta4=\")","v":{"$error":"#REF!"}},{"$f":"AND(#REF!,\"dID0agDMta8=\")","v":{"$error":"#REF!"}},{"$f":"AND(#REF!,\"dID0agDMtbA=\")","v":{"$error":"#REF!"}},{"$f":"AND(#REF!,\"dID0agDMtbE=\")","v":{"$error":"#REF!"}},{"$f":"AND(#REF!,\"dID0agDMtbI=\")","v":{"$error":"#REF!"}},{"$f":"AND(#REF!,\"dID0agDMtbM=\")","v":{"$error":"#REF!"}},{"$f":"AND(#REF!,\"dID0agDMtbQ=\")","v":{"$error":"#REF!"}},{"$f":"AND(#REF!,\"dID0agDMtbU=\")","v":{"$error":"#REF!"}},{"$f":"AND(#REF!,\"dID0agDMtbY=\")","v":{"$error":"#REF!"}},{"$f":"AND(#REF!,\"dID0agDMtbc=\")","v":{"$error":"#REF!"}},{"$f":"AND(#REF!,\"dID0agDMtbg=\")","v":{"$error":"#REF!"}},{"$f":"AND(#REF!,\"dID0agDMtbk=\")","v":{"$error":"#REF!"}},{"$f":"AND(#REF!,\"dID0agDMtbo=\")","v":{"$error":"#REF!"}},{"$f":"AND(#REF!,\"dID0agDMtbs=\")","v":{"$error":"#REF!"}},{"$f":"AND(#REF!,\"dID0agDMtbw=\")","v":{"$error":"#REF!"}},{"$f":"AND(#REF!,\"dID0agDMtb0=\")","v":{"$error":"#REF!"}},{"$f":"AND(#REF!,\"dID0agDMtb4=\")","v":{"$error":"#REF!"}},{"$f":"AND(#REF!,\"dID0agDMtb8=\")","v":{"$error":"#REF!"}},{"$f":"AND(#REF!,\"dID0agDMtcA=\")","v":{"$error":"#REF!"}},{"$f":"AND(#REF!,\"dID0agDMtcE=\")","v":{"$error":"#REF!"}},{"$f":"AND(#REF!,\"dID0agDMtcI=\")","v":{"$error":"#REF!"}},{"$f":"AND(#REF!,\"dID0agDMtcM=\")","v":{"$error":"#REF!"}},{"$f":"AND(#REF!,\"dID0agDMtcQ=\")","v":{"$error":"#REF!"}},{"$f":"AND(#REF!,\"dID0agDMtcU=\")","v":{"$error":"#REF!"}},{"$f":"AND(#REF!,\"dID0agDMtcY=\")","v":{"$error":"#REF!"}},{"$f":"AND(#REF!,\"dID0agDMtcc=\")","v":{"$error":"#REF!"}},{"$f":"AND(#REF!,\"dID0agDMtcg=\")","v":{"$error":"#REF!"}},{"$f":"AND(#REF!,\"dID0agDMtck=\")","v":{"$error":"#REF!"}},{"$f":"AND(#REF!,\"dID0agDMtco=\")","v":{"$error":"#REF!"}},{"$f":"AND(#REF!,\"dID0agDMtcs=\")","v":{"$error":"#REF!"}},{"$f":"AND(#REF!,\"dID0agDMtcw=\")","v":{"$error":"#REF!"}},{"$f":"AND(#REF!,\"dID0agDMtc0=\")","v":{"$error":"#REF!"}},{"$f":"AND(#REF!,\"dID0agDMtc4=\")","v":{"$error":"#REF!"}},{"$f":"AND(#REF!,\"dID0agDMtc8=\")","v":{"$error":"#REF!"}},{"$f":"AND(#REF!,\"dID0agDMtdA=\")","v":{"$error":"#REF!"}},{"$f":"AND(#REF!,\"dID0agDMtdE=\")","v":{"$error":"#REF!"}},{"$f":"AND(#REF!,\"dID0agDMtdI=\")","v":{"$error":"#REF!"}},{"$f":"AND(#REF!,\"dID0agDMtdM=\")","v":{"$error":"#REF!"}},{"$f":"AND(#REF!,\"dID0agDMtdQ=\")","v":{"$error":"#REF!"}},{"$f":"AND(#REF!,\"dID0agDMtdU=\")","v":{"$error":"#REF!"}},{"$f":"AND(#REF!,\"dID0agDMtdY=\")","v":{"$error":"#REF!"}},{"$f":"AND(#REF!,\"dID0agDMtdc=\")","v":{"$error":"#REF!"}},{"$f":"AND(#REF!,\"dID0agDMtdg=\")","v":{"$error":"#REF!"}},{"$f":"AND(#REF!,\"dID0agDMtdk=\")","v":{"$error":"#REF!"}},{"$f":"AND(#REF!,\"dID0agDMtdo=\")","v":{"$error":"#REF!"}},{"$f":"IF(#REF!,\"dID0agDMtds=\",0)","v":{"$error":"#REF!"}},{"$f":"AND(#REF!,\"dID0agDMtdw=\")","v":{"$error":"#REF!"}},{"$f":"AND(#REF!,\"dID0agDMtd0=\")","v":{"$error":"#REF!"}},{"$f":"AND(#REF!,\"dID0agDMtd4=\")","v":{"$error":"#REF!"}},{"$f":"AND(#REF!,\"dID0agDMtd8=\")","v":{"$error":"#REF!"}},{"$f":"AND(#REF!,\"dID0agDMteA=\")","v":{"$error":"#REF!"}},{"$f":"AND(#REF!,\"dID0agDMteE=\")","v":{"$error":"#REF!"}},{"$f":"AND(#REF!,\"dID0agDMteI=\")","v":{"$error":"#REF!"}},{"$f":"AND(#REF!,\"dID0agDMteM=\")","v":{"$error":"#REF!"}},{"$f":"AND(#REF!,\"dID0agDMteQ=\")","v":{"$error":"#REF!"}},{"$f":"AND(#REF!,\"dID0agDMteU=\")","v":{"$error":"#REF!"}},{"$f":"AND(#REF!,\"dID0agDMteY=\")","v":{"$error":"#REF!"}},{"$f":"AND(#REF!,\"dID0agDMtec=\")","v":{"$error":"#REF!"}},{"$f":"AND(#REF!,\"dID0agDMteg=\")","v":{"$error":"#REF!"}},{"$f":"AND(#REF!,\"dID0agDMtek=\")","v":{"$error":"#REF!"}},{"$f":"AND(#REF!,\"dID0agDMteo=\")","v":{"$error":"#REF!"}},{"$f":"AND(#REF!,\"dID0agDMtes=\")","v":{"$error":"#REF!"}},{"$f":"AND(#REF!,\"dID0agDMtew=\")","v":{"$error":"#REF!"}},{"$f":"AND(#REF!,\"dID0agDMte0=\")","v":{"$error":"#REF!"}},{"$f":"AND(#REF!,\"dID0agDMte4=\")","v":{"$error":"#REF!"}},{"$f":"AND(#REF!,\"dID0agDMte8=\")","v":{"$error":"#REF!"}},{"$f":"AND(#REF!,\"dID0agDMtfA=\")","v":{"$error":"#REF!"}},{"$f":"AND(#REF!,\"dID0agDMtfE=\")","v":{"$error":"#REF!"}},{"$f":"AND(#REF!,\"dID0agDMtfI=\")","v":{"$error":"#REF!"}},{"$f":"AND(#REF!,\"dID0agDMtfM=\")","v":{"$error":"#REF!"}},{"$f":"AND(#REF!,\"dID0agDMtfQ=\")","v":{"$error":"#REF!"}},{"$f":"AND(#REF!,\"dID0agDMtfU=\")","v":{"$error":"#REF!"}},{"$f":"AND(#REF!,\"dID0agDMtfY=\")","v":{"$error":"#REF!"}},{"$f":"AND(#REF!,\"dID0agDMtfc=\")","v":{"$error":"#REF!"}},{"$f":"AND(#REF!,\"dID0agDMtfg=\")","v":{"$error":"#REF!"}},{"$f":"AND(#REF!,\"dID0agDMtfk=\")","v":{"$error":"#REF!"}},{"$f":"AND(#REF!,\"dID0agDMtfo=\")","v":{"$error":"#REF!"}},{"$f":"AND(#REF!,\"dID0agDMtfs=\")","v":{"$error":"#REF!"}},{"$f":"AND(#REF!,\"dID0agDMtfw=\")","v":{"$error":"#REF!"}},{"$f":"AND(#REF!,\"dID0agDMtf0=\")","v":{"$error":"#REF!"}},{"$f":"AND(#REF!,\"dID0agDMtf4=\")","v":{"$error":"#REF!"}},{"$f":"AND(#REF!,\"dID0agDMtf8=\")","v":{"$error":"#REF!"}}]
[{"$f":"AND(#REF!,\"WaNd4xr03wA=\")","v":{"$error":"#REF!"}},{"$f":"AND(#REF!,\"WaNd4xr03wE=\")","v":{"$error":"#REF!"}},{"$f":"AND(#REF!,\"WaNd4xr03wI=\")","v":{"$error":"#REF!"}},{"$f":"AND(#REF!,\"WaNd4xr03wM=\")","v":{"$error":"#REF!"}},{"$f":"AND(#REF!,\"WaNd4xr03wQ=\")","v":{"$error":"#REF!"}},{"$f":"AND(#REF!,\"WaNd4xr03wU=\")","v":{"$error":"#REF!"}},{"$f":"AND(#REF!,\"WaNd4xr03wY=\")","v":{"$error":"#REF!"}},{"$f":"AND(#REF!,\"WaNd4xr03wc=\")","v":{"$error":"#REF!"}},{"$f":"AND(#REF!,\"WaNd4xr03wg=\")","v":{"$error":"#REF!"}},{"$f":"AND(#REF!,\"WaNd4xr03wk=\")","v":{"$error":"#REF!"}},{"$f":"AND(#REF!,\"WaNd4xr03wo=\")","v":{"$error":"#REF!"}},{"$f":"AND(#REF!,\"WaNd4xr03ws=\")","v":{"$error":"#REF!"}},{"$f":"AND(#REF!,\"WaNd4xr03ww=\")","v":{"$error":"#REF!"}},{"$f":"AND(#REF!,\"WaNd4xr03w0=\")","v":{"$error":"#REF!"}},{"$f":"AND(#REF!,\"WaNd4xr03w4=\")","v":{"$error":"#REF!"}},{"$f":"AND(#REF!,\"WaNd4xr03w8=\")","v":{"$error":"#REF!"}},{"$f":"AND(#REF!,\"WaNd4xr03xA=\")","v":{"$error":"#REF!"}},{"$f":"AND(#REF!,\"WaNd4xr03xE=\")","v":{"$error":"#REF!"}},{"$f":"AND(#REF!,\"WaNd4xr03xI=\")","v":{"$error":"#REF!"}},{"$f":"AND(#REF!,\"WaNd4xr03xM=\")","v":{"$error":"#REF!"}},{"$f":"AND(#REF!,\"WaNd4xr03xQ=\")","v":{"$error":"#REF!"}},{"$f":"AND(#REF!,\"WaNd4xr03xU=\")","v":{"$error":"#REF!"}},{"$f":"AND(#REF!,\"WaNd4xr03xY=\")","v":{"$error":"#REF!"}},{"$f":"AND(#REF!,\"WaNd4xr03xc=\")","v":{"$error":"#REF!"}},{"$f":"AND(#REF!,\"WaNd4xr03xg=\")","v":{"$error":"#REF!"}},{"$f":"AND(#REF!,\"WaNd4xr03xk=\")","v":{"$error":"#REF!"}},{"$f":"AND(#REF!,\"WaNd4xr03xo=\")","v":{"$error":"#REF!"}},{"$f":"AND(#REF!,\"WaNd4xr03xs=\")","v":{"$error":"#REF!"}},{"$f":"AND(#REF!,\"WaNd4xr03xw=\")","v":{"$error":"#REF!"}},{"$f":"AND(#REF!,\"WaNd4xr03x0=\")","v":{"$error":"#REF!"}},{"$f":"AND(#REF!,\"WaNd4xr03x4=\")","v":{"$error":"#REF!"}},{"$f":"AND(#REF!,\"WaNd4xr03x8=\")","v":{"$error":"#REF!"}},{"$f":"AND(#REF!,\"WaNd4xr03yA=\")","v":{"$error":"#REF!"}},{"$f":"AND(#REF!,\"WaNd4xr03yE=\")","v":{"$error":"#REF!"}},{"$f":"AND(#REF!,\"WaNd4xr03yI=\")","v":{"$error":"#REF!"}},{"$f":"AND(#REF!,\"WaNd4xr03yM=\")","v":{"$error":"#REF!"}},{"$f":"AND(#REF!,\"WaNd4xr03yQ=\")","v":{"$error":"#REF!"}},{"$f":"AND(#REF!,\"WaNd4xr03yU=\")","v":{"$error":"#REF!"}},{"$f":"AND(#REF!,\"WaNd4xr03yY=\")","v":{"$error":"#REF!"}},{"$f":"AND(#REF!,\"WaNd4xr03yc=\")","v":{"$error":"#REF!"}},{"$f":"AND(#REF!,\"WaNd4xr03yg=\")","v":{"$error":"#REF!"}},{"$f":"AND(#REF!,\"WaNd4xr03yk=\")","v":{"$error":"#REF!"}},{"$f":"AND(#REF!,\"WaNd4xr03yo=\")","v":{"$error":"#REF!"}},{"$f":"AND(#REF!,\"WaNd4xr03ys=\")","v":{"$error":"#REF!"}},{"$f":"AND(#REF!,\"WaNd4xr03yw=\")","v":{"$error":"#REF!"}},{"$f":"AND(#REF!,\"WaNd4xr03y0=\")","v":{"$error":"#REF!"}},{"$f":"AND(#REF!,\"WaNd4xr03y4=\")","v":{"$error":"#REF!"}},{"$f":"AND(#REF!,\"WaNd4xr03y8=\")","v":{"$error":"#REF!"}},{"$f":"AND(#REF!,\"WaNd4xr03zA=\")","v":{"$error":"#REF!"}},{"$f":"AND(#REF!,\"WaNd4xr03zE=\")","v":{"$error":"#REF!"}},{"$f":"AND(#REF!,\"WaNd4xr03zI=\")","v":{"$error":"#REF!"}},{"$f":"AND(#REF!,\"WaNd4xr03zM=\")","v":{"$error":"#REF!"}},{"$f":"AND(#REF!,\"WaNd4xr03zQ=\")","v":{"$error":"#REF!"}},{"$f":"AND(#REF!,\"WaNd4xr03zU=\")","v":{"$error":"#REF!"}},{"$f":"AND(#REF!,\"WaNd4xr03zY=\")","v":{"$error":"#REF!"}},{"$f":"AND(#REF!,\"WaNd4xr03zc=\")","v":{"$error":"#REF!"}},{"$f":"AND(#REF!,\"WaNd4xr03zg=\")","v":{"$error":"#REF!"}},{"$f":"AND(#REF!,\"WaNd4xr03zk=\")","v":{"$error":"#REF!"}},{"$f":"AND(#REF!,\"WaNd4xr03zo=\")","v":{"$error":"#REF!"}},{"$f":"AND(#REF!,\"WaNd4xr03zs=\")","v":{"$error":"#REF!"}},{"$f":"AND(#REF!,\"WaNd4xr03zw=\")","v":{"$error":"#REF!"}},{"$f":"AND(#REF!,\"WaNd4xr03z0=\")","v":{"$error":"#REF!"}},{"$f":"AND(#REF!,\"WaNd4xr03z4=\")","v":{"$error":"#REF!"}},{"$f":"AND(#REF!,\"WaNd4xr03z8=\")","v":{"$error":"#REF!"}},{"$f":"AND(#REF!,\"WaNd4xr030A=\")","v":{"$error":"#REF!"}},{"$f":"AND(#REF!,\"WaNd4xr030E=\")","v":{"$error":"#REF!"}},{"$f":"AND(#REF!,\"WaNd4xr030I=\")","v":{"$error":"#REF!"}},{"$f":"AND(#REF!,\"WaNd4xr030M=\")","v":{"$error":"#REF!"}},{"$f":"AND(#REF!,\"WaNd4xr030Q=\")","v":{"$error":"#REF!"}},{"$f":"AND(#REF!,\"WaNd4xr030U=\")","v":{"$error":"#REF!"}},{"$f":"AND(#REF!,\"WaNd4xr030Y=\")","v":{"$error":"#REF!"}},{"$f":"AND(#REF!,\"WaNd4xr030c=\")","v":{"$error":"#REF!"}},{"$f":"AND(#REF!,\"WaNd4xr030g=\")","v":{"$error":"#REF!"}},{"$f":"AND(#REF!,\"WaNd4xr030k=\")","v":{"$error":"#REF!"}},{"$f":"AND(#REF!,\"WaNd4xr030o=\")","v":{"$error":"#REF!"}},{"$f":"AND(#REF!,\"WaNd4xr030s=\")","v":{"$error":"#REF!"}},{"$f":"AND(#REF!,\"WaNd4xr030w=\")","v":{"$error":"#REF!"}},{"$f":"AND(#REF!,\"WaNd4xr0300=\")","v":{"$error":"#REF!"}},{"$f":"AND(#REF!,\"WaNd4xr0304=\")","v":{"$error":"#REF!"}},{"$f":"AND(#REF!,\"WaNd4xr0308=\")","v":{"$error":"#REF!"}},{"$f":"AND(#REF!,\"WaNd4xr031A=\")","v":{"$error":"#REF!"}},{"$f":"AND(#REF!,\"WaNd4xr031E=\")","v":{"$error":"#REF!"}},{"$f":"AND(#REF!,\"WaNd4xr031I=\")","v":{"$error":"#REF!"}},{"$f":"AND(#REF!,\"WaNd4xr031M=\")","v":{"$error":"#REF!"}},{"$f":"AND(#REF!,\"WaNd4xr031Q=\")","v":{"$error":"#REF!"}},{"$f":"AND(#REF!,\"WaNd4xr031U=\")","v":{"$error":"#REF!"}},{"$f":"AND(#REF!,\"WaNd4xr031Y=\")","v":{"$error":"#REF!"}},{"$f":"AND(#REF!,\"WaNd4xr031c=\")","v":{"$error":"#REF!"}},{"$f":"AND(#REF!,\"WaNd4xr031g=\")","v":{"$error":"#REF!"}},{"$f":"AND(#REF!,\"WaNd4xr031k=\")","v":{"$error":"#REF!"}},{"$f":"AND(#REF!,\"WaNd4xr031o=\")","v":{"$error":"#REF!"}},{"$f":"AND(#REF!,\"WaNd4xr031s=\")","v":{"$error":"#REF!"}},{"$f":"AND(#REF!,\"WaNd4xr031w=\")","v":{"$error":"#REF!"}},{"$f":"AND(#REF!,\"WaNd4xr0310=\")","v":{"$error":"#REF!"}},{"$f":"AND(#REF!,\"WaNd4xr0314=\")","v":{"$error":"#REF!"}},{"$f":"AND(#REF!,\"WaNd4xr0318=\")","v":{"$error":"#REF!"}},{"$f":"AND(#REF!,\"WaNd4xr032A=\")","v":{"$error":"#REF!"}},{"$f":"AND(#REF!,\"WaNd4xr032E=\")","v":{"$error":"#REF!"}},{"$f":"AND(#REF!,\"WaNd4xr032I=\")","v":{"$error":"#REF!"}},{"$f":"AND(#REF!,\"WaNd4xr032M=\")","v":{"$error":"#REF!"}},{"$f":"AND(#REF!,\"WaNd4xr032Q=\")","v":{"$error":"#REF!"}},{"$f":"AND(#REF!,\"WaNd4xr032U=\")","v":{"$error":"#REF!"}},{"$f":"AND(#REF!,\"WaNd4xr032Y=\")","v":{"$error":"#REF!"}},{"$f":"AND(#REF!,\"WaNd4xr032c=\")","v":{"$error":"#REF!"}},{"$f":"AND(#REF!,\"WaNd4xr032g=\")","v":{"$error":"#REF!"}},{"$f":"AND(#REF!,\"WaNd4xr032k=\")","v":{"$error":"#REF!"}},{"$f":"AND(#REF!,\"WaNd4xr032o=\")","v":{"$error":"#REF!"}},{"$f":"AND(#REF!,\"WaNd4xr032s=\")","v":{"$error":"#REF!"}},{"$f":"AND(#REF!,\"WaNd4xr032w=\")","v":{"$error":"#REF!"}},{"$f":"AND(#REF!,\"WaNd4xr0320=\")","v":{"$error":"#REF!"}},{"$f":"AND(#REF!,\"WaNd4xr0324=\")","v":{"$error":"#REF!"}},{"$f":"AND(#REF!,\"WaNd4xr0328=\")","v":{"$error":"#REF!"}},{"$f":"AND(#REF!,\"WaNd4xr033A=\")","v":{"$error":"#REF!"}},{"$f":"AND(#REF!,\"WaNd4xr033E=\")","v":{"$error":"#REF!"}},{"$f":"AND(#REF!,\"WaNd4xr033I=\")","v":{"$error":"#REF!"}},{"$f":"AND(#REF!,\"WaNd4xr033M=\")","v":{"$error":"#REF!"}},{"$f":"AND(#REF!,\"WaNd4xr033Q=\")","v":{"$error":"#REF!"}},{"$f":"AND(#REF!,\"WaNd4xr033U=\")","v":{"$error":"#REF!"}},{"$f":"AND(#REF!,\"WaNd4xr033Y=\")","v":{"$error":"#REF!"}},{"$f":"AND(#REF!,\"WaNd4xr033c=\")","v":{"$error":"#REF!"}},{"$f":"AND(#REF!,\"WaNd4xr033g=\")","v":{"$error":"#REF!"}},{"$f":"AND(#REF!,\"WaNd4xr033k=\")","v":{"$error":"#REF!"}},{"$f":"AND(#REF!,\"WaNd4xr033o=\")","v":{"$error":"#REF!"}},{"$f":"AND(#REF!,\"WaNd4xr033s=\")","v":{"$error":"#REF!"}},{"$f":"AND(#REF!,\"WaNd4xr033w=\")","v":{"$error":"#REF!"}},{"$f":"AND(#REF!,\"WaNd4xr0330=\")","v":{"$error":"#REF!"}},{"$f":"AND(#REF!,\"WaNd4xr0334=\")","v":{"$error":"#REF!"}},{"$f":"AND(#REF!,\"WaNd4xr0338=\")","v":{"$error":"#REF!"}},{"$f":"AND(#REF!,\"WaNd4xr034A=\")","v":{"$error":"#REF!"}},{"$f":"AND(#REF!,\"WaNd4xr034E=\")","v":{"$error":"#REF!"}},{"$f":"AND(#REF!,\"WaNd4xr034I=\")","v":{"$error":"#REF!"}},{"$f":"AND(#REF!,\"WaNd4xr034M=\")","v":{"$error":"#REF!"}},{"$f":"AND(#REF!,\"WaNd4xr034Q=\")","v":{"$error":"#REF!"}},{"$f":"AND(#REF!,\"WaNd4xr034U=\")","v":{"$error":"#REF!"}},{"$f":"AND(#REF!,\"WaNd4xr034Y=\")","v":{"$error":"#REF!"}},{"$f":"AND(#REF!,\"WaNd4xr034c=\")","v":{"$error":"#REF!"}},{"$f":"AND(#REF!,\"WaNd4xr034g=\")","v":{"$error":"#REF!"}},{"$f":"AND(#REF!,\"WaNd4xr034k=\")","v":{"$error":"#REF!"}},{"$f":"AND(#REF!,\"WaNd4xr034o=\")","v":{"$error":"#REF!"}},{"$f":"AND(#REF!,\"WaNd4xr034s=\")","v":{"$error":"#REF!"}},{"$f":"AND(#REF!,\"WaNd4xr034w=\")","v":{"$error":"#REF!"}},{"$f":"AND(#REF!,\"WaNd4xr0340=\")","v":{"$error":"#REF!"}},{"$f":"AND(#REF!,\"WaNd4xr0344=\")","v":{"$error":"#REF!"}},{"$f":"AND(#REF!,\"WaNd4xr0348=\")","v":{"$error":"#REF!"}},{"$f":"AND(#REF!,\"WaNd4xr035A=\")","v":{"$error":"#REF!"}},{"$f":"AND(#REF!,\"WaNd4xr035E=\")","v":{"$error":"#REF!"}},{"$f":"AND(#REF!,\"WaNd4xr035I=\")","v":{"$error":"#REF!"}},{"$f":"AND(#REF!,\"WaNd4xr035M=\")","v":{"$error":"#REF!"}},{"$f":"AND(#REF!,\"WaNd4xr035Q=\")","v":{"$error":"#REF!"}},{"$f":"AND(#REF!,\"WaNd4xr035U=\")","v":{"$error":"#REF!"}},{"$f":"AND(#REF!,\"WaNd4xr035Y=\")","v":{"$error":"#REF!"}},{"$f":"AND(#REF!,\"WaNd4xr035c=\")","v":{"$error":"#REF!"}},{"$f":"AND(#REF!,\"WaNd4xr035g=\")","v":{"$error":"#REF!"}},{"$f":"AND(#REF!,\"WaNd4xr035k=\")","v":{"$error":"#REF!"}},{"$f":"AND(#REF!,\"WaNd4xr035o=\")","v":{"$error":"#REF!"}},{"$f":"AND(#REF!,\"WaNd4xr035s=\")","v":{"$error":"#REF!"}},{"$f":"AND(#REF!,\"WaNd4xr035w=\")","v":{"$error":"#REF!"}},{"$f":"AND(#REF!,\"WaNd4xr0350=\")","v":{"$error":"#REF!"}},{"$f":"AND(#REF!,\"WaNd4xr0354=\")","v":{"$error":"#REF!"}},{"$f":"AND(#REF!,\"WaNd4xr0358=\")","v":{"$error":"#REF!"}},{"$f":"AND(#REF!,\"WaNd4xr036A=\")","v":{"$error":"#REF!"}},{"$f":"AND(#REF!,\"WaNd4xr036E=\")","v":{"$error":"#REF!"}},{"$f":"IF(#REF!,\"WaNd4xr036I=\",0)","v":{"$error":"#REF!"}},{"$f":"AND(#REF!,\"WaNd4xr036M=\")","v":{"$error":"#REF!"}},{"$f":"AND(#REF!,\"WaNd4xr036Q=\")","v":{"$error":"#REF!"}},{"$f":"AND(#REF!,\"WaNd4xr036U=\")","v":{"$error":"#REF!"}},{"$f":"AND(#REF!,\"WaNd4xr036Y=\")","v":{"$error":"#REF!"}},{"$f":"AND(#REF!,\"WaNd4xr036c=\")","v":{"$error":"#REF!"}},{"$f":"AND(#REF!,\"WaNd4xr036g=\")","v":{"$error":"#REF!"}},{"$f":"AND(#REF!,\"WaNd4xr036k=\")","v":{"$error":"#REF!"}},{"$f":"AND(#REF!,\"WaNd4xr036o=\")","v":{"$error":"#REF!"}},{"$f":"AND(#REF!,\"WaNd4xr036s=\")","v":{"$error":"#REF!"}},{"$f":"AND(#REF!,\"WaNd4xr036w=\")","v":{"$error":"#REF!"}},{"$f":"AND(#REF!,\"WaNd4xr0360=\")","v":{"$error":"#REF!"}},{"$f":"AND(#REF!,\"WaNd4xr0364=\")","v":{"$error":"#REF!"}},{"$f":"AND(#REF!,\"WaNd4xr0368=\")","v":{"$error":"#REF!"}},{"$f":"AND(#REF!,\"WaNd4xr037A=\")","v":{"$error":"#REF!"}},{"$f":"AND(#REF!,\"WaNd4xr037E=\")","v":{"$error":"#REF!"}},{"$f":"AND(#REF!,\"WaNd4xr037I=\")","v":{"$error":"#REF!"}},{"$f":"AND(#REF!,\"WaNd4xr037M=\")","v":{"$error":"#REF!"}},{"$f":"AND(#REF!,\"WaNd4xr037Q=\")","v":{"$error":"#REF!"}},{"$f":"AND(#REF!,\"WaNd4xr037U=\")","v":{"$error":"#REF!"}},{"$f":"AND(#REF!,\"WaNd4xr037Y=\")","v":{"$error":"#REF!"}},{"$f":"AND(#REF!,\"WaNd4xr037c=\")","v":{"$error":"#REF!"}},{"$f":"AND(#REF!,\"WaNd4xr037g=\")","v":{"$error":"#REF!"}},{"$f":"AND(#REF!,\"WaNd4xr037k=\")","v":{"$error":"#REF!"}},{"$f":"AND(#REF!,\"WaNd4xr037o=\")","v":{"$error":"#REF!"}},{"$f":"AND(#REF!,\"WaNd4xr037s=\")","v":{"$error":"#REF!"}},{"$f":"AND(#REF!,\"WaNd4xr037w=\")","v":{"$error":"#REF!"}},{"$f":"AND(#REF!,\"WaNd4xr0370=\")","v":{"$error":"#REF!"}},{"$f":"AND(#REF!,\"WaNd4xr0374=\")","v":{"$error":"#REF!"}},{"$f":"AND(#REF!,\"WaNd4xr0378=\")","v":{"$error":"#REF!"}},{"$f":"AND(#REF!,\"WaNd4xr038A=\")","v":{"$error":"#REF!"}},{"$f":"AND(#REF!,\"WaNd4xr038E=\")","v":{"$error":"#REF!"}},{"$f":"AND(#REF!,\"WaNd4xr038I=\")","v":{"$error":"#REF!"}},{"$f":"AND(#REF!,\"WaNd4xr038M=\")","v":{"$error":"#REF!"}},{"$f":"AND(#REF!,\"WaNd4xr038Q=\")","v":{"$error":"#REF!"}},{"$f":"AND(#REF!,\"WaNd4xr038U=\")","v":{"$error":"#REF!"}},{"$f":"AND(#REF!,\"WaNd4xr038Y=\")","v":{"$error":"#REF!"}},{"$f":"AND(#REF!,\"WaNd4xr038c=\")","v":{"$error":"#REF!"}},{"$f":"AND(#REF!,\"WaNd4xr038g=\")","v":{"$error":"#REF!"}},{"$f":"AND(#REF!,\"WaNd4xr038k=\")","v":{"$error":"#REF!"}},{"$f":"AND(#REF!,\"WaNd4xr038o=\")","v":{"$error":"#REF!"}},{"$f":"AND(#REF!,\"WaNd4xr038s=\")","v":{"$error":"#REF!"}},{"$f":"AND(#REF!,\"WaNd4xr038w=\")","v":{"$error":"#REF!"}},{"$f":"AND(#REF!,\"WaNd4xr0380=\")","v":{"$error":"#REF!"}},{"$f":"AND(#REF!,\"WaNd4xr0384=\")","v":{"$error":"#REF!"}},{"$f":"AND(#REF!,\"WaNd4xr0388=\")","v":{"$error":"#REF!"}},{"$f":"AND(#REF!,\"WaNd4xr039A=\")","v":{"$error":"#REF!"}},{"$f":"AND(#REF!,\"WaNd4xr039E=\")","v":{"$error":"#REF!"}},{"$f":"AND(#REF!,\"WaNd4xr039I=\")","v":{"$error":"#REF!"}},{"$f":"AND(#REF!,\"WaNd4xr039M=\")","v":{"$error":"#REF!"}},{"$f":"AND(#REF!,\"WaNd4xr039Q=\")","v":{"$error":"#REF!"}},{"$f":"AND(#REF!,\"WaNd4xr039U=\")","v":{"$error":"#REF!"}},{"$f":"AND(#REF!,\"WaNd4xr039Y=\")","v":{"$error":"#REF!"}},{"$f":"AND(#REF!,\"WaNd4xr039c=\")","v":{"$error":"#REF!"}},{"$f":"AND(#REF!,\"WaNd4xr039g=\")","v":{"$error":"#REF!"}},{"$f":"AND(#REF!,\"WaNd4xr039k=\")","v":{"$error":"#REF!"}},{"$f":"AND(#REF!,\"WaNd4xr039o=\")","v":{"$error":"#REF!"}},{"$f":"AND(#REF!,\"WaNd4xr039s=\")","v":{"$error":"#REF!"}},{"$f":"AND(#REF!,\"WaNd4xr039w=\")","v":{"$error":"#REF!"}},{"$f":"AND(#REF!,\"WaNd4xr0390=\")","v":{"$error":"#REF!"}},{"$f":"AND(#REF!,\"WaNd4xr0394=\")","v":{"$error":"#REF!"}},{"$f":"AND(#REF!,\"WaNd4xr0398=\")","v":{"$error":"#REF!"}},{"$f":"AND(#REF!,\"WaNd4xr03+A=\")","v":{"$error":"#REF!"}},{"$f":"AND(#REF!,\"WaNd4xr03+E=\")","v":{"$error":"#REF!"}},{"$f":"AND(#REF!,\"WaNd4xr03+I=\")","v":{"$error":"#REF!"}},{"$f":"AND(#REF!,\"WaNd4xr03+M=\")","v":{"$error":"#REF!"}},{"$f":"AND(#REF!,\"WaNd4xr03+Q=\")","v":{"$error":"#REF!"}},{"$f":"AND(#REF!,\"WaNd4xr03+U=\")","v":{"$error":"#REF!"}},{"$f":"AND(#REF!,\"WaNd4xr03+Y=\")","v":{"$error":"#REF!"}},{"$f":"AND(#REF!,\"WaNd4xr03+c=\")","v":{"$error":"#REF!"}},{"$f":"AND(#REF!,\"WaNd4xr03+g=\")","v":{"$error":"#REF!"}},{"$f":"AND(#REF!,\"WaNd4xr03+k=\")","v":{"$error":"#REF!"}},{"$f":"AND(#REF!,\"WaNd4xr03+o=\")","v":{"$error":"#REF!"}},{"$f":"AND(#REF!,\"WaNd4xr03+s=\")","v":{"$error":"#REF!"}},{"$f":"AND(#REF!,\"WaNd4xr03+w=\")","v":{"$error":"#REF!"}},{"$f":"AND(#REF!,\"WaNd4xr03+0=\")","v":{"$error":"#REF!"}},{"$f":"AND(#REF!,\"WaNd4xr03+4=\")","v":{"$error":"#REF!"}},{"$f":"AND(#REF!,\"WaNd4xr03+8=\")","v":{"$error":"#REF!"}},{"$f":"AND(#REF!,\"WaNd4xr03/A=\")","v":{"$error":"#REF!"}},{"$f":"AND(#REF!,\"WaNd4xr03/E=\")","v":{"$error":"#REF!"}},{"$f":"AND(#REF!,\"WaNd4xr03/I=\")","v":{"$error":"#REF!"}},{"$f":"AND(#REF!,\"WaNd4xr03/M=\")","v":{"$error":"#REF!"}},{"$f":"AND(#REF!,\"WaNd4xr03/Q=\")","v":{"$error":"#REF!"}},{"$f":"AND(#REF!,\"WaNd4xr03/U=\")","v":{"$error":"#REF!"}},{"$f":"AND(#REF!,\"WaNd4xr03/Y=\")","v":{"$error":"#REF!"}},{"$f":"AND(#REF!,\"WaNd4xr03/c=\")","v":{"$error":"#REF!"}},{"$f":"AND(#REF!,\"WaNd4xr03/g=\")","v":{"$error":"#REF!"}},{"$f":"AND(#REF!,\"WaNd4xr03/k=\")","v":{"$error":"#REF!"}},{"$f":"AND(#REF!,\"WaNd4xr03/o=\")","v":{"$error":"#REF!"}},{"$f":"AND(#REF!,\"WaNd4xr03/s=\")","v":{"$error":"#REF!"}},{"$f":"AND(#REF!,\"WaNd4xr03/w=\")","v":{"$error":"#REF!"}},{"$f":"AND(#REF!,\"WaNd4xr03/0=\")","v":{"$error":"#REF!"}},{"$f":"AND(#REF!,\"WaNd4xr03/4=\")","v":{"$error":"#REF!"}},{"$f":"AND(#REF!,\"WaNd4xr03/8=\")","v":{"$error":"#REF!"}}]
[{"$f":"AND(#REF!,\"LZVxmWr7CQA=\")","v":{"$error":"#REF!"}},{"$f":"AND(#REF!,\"LZVxmWr7CQE=\")","v":{"$error":"#REF!"}},{"$f":"AND(#REF!,\"LZVxmWr7CQI=\")","v":{"$error":"#REF!"}},{"$f":"AND(#REF!,\"LZVxmWr7CQM=\")","v":{"$error":"#REF!"}},{"$f":"AND(#REF!,\"LZVxmWr7CQQ=\")","v":{"$error":"#REF!"}},{"$f":"AND(#REF!,\"LZVxmWr7CQU=\")","v":{"$error":"#REF!"}},{"$f":"AND(#REF!,\"LZVxmWr7CQY=\")","v":{"$error":"#REF!"}},{"$f":"AND(#REF!,\"LZVxmWr7CQc=\")","v":{"$error":"#REF!"}},{"$f":"AND(#REF!,\"LZVxmWr7CQg=\")","v":{"$error":"#REF!"}},{"$f":"AND(#REF!,\"LZVxmWr7CQk=\")","v":{"$error":"#REF!"}},{"$f":"AND(#REF!,\"LZVxmWr7CQo=\")","v":{"$error":"#REF!"}},{"$f":"AND(#REF!,\"LZVxmWr7CQs=\")","v":{"$error":"#REF!"}},{"$f":"AND(#REF!,\"LZVxmWr7CQw=\")","v":{"$error":"#REF!"}},{"$f":"AND(#REF!,\"LZVxmWr7CQ0=\")","v":{"$error":"#REF!"}},{"$f":"AND(#REF!,\"LZVxmWr7CQ4=\")","v":{"$error":"#REF!"}},{"$f":"AND(#REF!,\"LZVxmWr7CQ8=\")","v":{"$error":"#REF!"}},{"$f":"AND(#REF!,\"LZVxmWr7CRA=\")","v":{"$error":"#REF!"}},{"$f":"AND(#REF!,\"LZVxmWr7CRE=\")","v":{"$error":"#REF!"}},{"$f":"AND(#REF!,\"LZVxmWr7CRI=\")","v":{"$error":"#REF!"}},{"$f":"AND(#REF!,\"LZVxmWr7CRM=\")","v":{"$error":"#REF!"}},{"$f":"AND(#REF!,\"LZVxmWr7CRQ=\")","v":{"$error":"#REF!"}},{"$f":"AND(#REF!,\"LZVxmWr7CRU=\")","v":{"$error":"#REF!"}},{"$f":"AND(#REF!,\"LZVxmWr7CRY=\")","v":{"$error":"#REF!"}},{"$f":"AND(#REF!,\"LZVxmWr7CRc=\")","v":{"$error":"#REF!"}},{"$f":"AND(#REF!,\"LZVxmWr7CRg=\")","v":{"$error":"#REF!"}},{"$f":"AND(#REF!,\"LZVxmWr7CRk=\")","v":{"$error":"#REF!"}},{"$f":"AND(#REF!,\"LZVxmWr7CRo=\")","v":{"$error":"#REF!"}},{"$f":"AND(#REF!,\"LZVxmWr7CRs=\")","v":{"$error":"#REF!"}},{"$f":"AND(#REF!,\"LZVxmWr7CRw=\")","v":{"$error":"#REF!"}},{"$f":"AND(#REF!,\"LZVxmWr7CR0=\")","v":{"$error":"#REF!"}},{"$f":"AND(#REF!,\"LZVxmWr7CR4=\")","v":{"$error":"#REF!"}},{"$f":"AND(#REF!,\"LZVxmWr7CR8=\")","v":{"$error":"#REF!"}},{"$f":"AND(#REF!,\"LZVxmWr7CSA=\")","v":{"$error":"#REF!"}},{"$f":"AND(#REF!,\"LZVxmWr7CSE=\")","v":{"$error":"#REF!"}},{"$f":"AND(#REF!,\"LZVxmWr7CSI=\")","v":{"$error":"#REF!"}},{"$f":"AND(#REF!,\"LZVxmWr7CSM=\")","v":{"$error":"#REF!"}},{"$f":"AND(#REF!,\"LZVxmWr7CSQ=\")","v":{"$error":"#REF!"}},{"$f":"AND(#REF!,\"LZVxmWr7CSU=\")","v":{"$error":"#REF!"}},{"$f":"AND(#REF!,\"LZVxmWr7CSY=\")","v":{"$error":"#REF!"}},{"$f":"AND(#REF!,\"LZVxmWr7CSc=\")","v":{"$error":"#REF!"}},{"$f":"AND(#REF!,\"LZVxmWr7CSg=\")","v":{"$error":"#REF!"}},{"$f":"AND(#REF!,\"LZVxmWr7CSk=\")","v":{"$error":"#REF!"}},{"$f":"AND(#REF!,\"LZVxmWr7CSo=\")","v":{"$error":"#REF!"}},{"$f":"AND(#REF!,\"LZVxmWr7CSs=\")","v":{"$error":"#REF!"}},{"$f":"AND(#REF!,\"LZVxmWr7CSw=\")","v":{"$error":"#REF!"}},{"$f":"AND(#REF!,\"LZVxmWr7CS0=\")","v":{"$error":"#REF!"}},{"$f":"AND(#REF!,\"LZVxmWr7CS4=\")","v":{"$error":"#REF!"}},{"$f":"AND(#REF!,\"LZVxmWr7CS8=\")","v":{"$error":"#REF!"}},{"$f":"AND(#REF!,\"LZVxmWr7CTA=\")","v":{"$error":"#REF!"}},{"$f":"AND(#REF!,\"LZVxmWr7CTE=\")","v":{"$error":"#REF!"}},{"$f":"AND(#REF!,\"LZVxmWr7CTI=\")","v":{"$error":"#REF!"}},{"$f":"AND(#REF!,\"LZVxmWr7CTM=\")","v":{"$error":"#REF!"}},{"$f":"AND(#REF!,\"LZVxmWr7CTQ=\")","v":{"$error":"#REF!"}},{"$f":"AND(#REF!,\"LZVxmWr7CTU=\")","v":{"$error":"#REF!"}},{"$f":"AND(#REF!,\"LZVxmWr7CTY=\")","v":{"$error":"#REF!"}},{"$f":"AND(#REF!,\"LZVxmWr7CTc=\")","v":{"$error":"#REF!"}},{"$f":"AND(#REF!,\"LZVxmWr7CTg=\")","v":{"$error":"#REF!"}},{"$f":"AND(#REF!,\"LZVxmWr7CTk=\")","v":{"$error":"#REF!"}},{"$f":"AND(#REF!,\"LZVxmWr7CTo=\")","v":{"$error":"#REF!"}},{"$f":"AND(#REF!,\"LZVxmWr7CTs=\")","v":{"$error":"#REF!"}},{"$f":"AND(#REF!,\"LZVxmWr7CTw=\")","v":{"$error":"#REF!"}},{"$f":"AND(#REF!,\"LZVxmWr7CT0=\")","v":{"$error":"#REF!"}},{"$f":"AND(#REF!,\"LZVxmWr7CT4=\")","v":{"$error":"#REF!"}},{"$f":"AND(#REF!,\"LZVxmWr7CT8=\")","v":{"$error":"#REF!"}},{"$f":"AND(#REF!,\"LZVxmWr7CUA=\")","v":{"$error":"#REF!"}},{"$f":"AND(#REF!,\"LZVxmWr7CUE=\")","v":{"$error":"#REF!"}},{"$f":"AND(#REF!,\"LZVxmWr7CUI=\")","v":{"$error":"#REF!"}},{"$f":"AND(#REF!,\"LZVxmWr7CUM=\")","v":{"$error":"#REF!"}},{"$f":"AND(#REF!,\"LZVxmWr7CUQ=\")","v":{"$error":"#REF!"}},{"$f":"AND(#REF!,\"LZVxmWr7CUU=\")","v":{"$error":"#REF!"}},{"$f":"AND(#REF!,\"LZVxmWr7CUY=\")","v":{"$error":"#REF!"}},{"$f":"AND(#REF!,\"LZVxmWr7CUc=\")","v":{"$error":"#REF!"}},{"$f":"AND(#REF!,\"LZVxmWr7CUg=\")","v":{"$error":"#REF!"}},{"$f":"AND(#REF!,\"LZVxmWr7CUk=\")","v":{"$error":"#REF!"}},{"$f":"AND(#REF!,\"LZVxmWr7CUo=\")","v":{"$error":"#REF!"}},{"$f":"AND(#REF!,\"LZVxmWr7CUs=\")","v":{"$error":"#REF!"}},{"$f":"AND(#REF!,\"LZVxmWr7CUw=\")","v":{"$error":"#REF!"}},{"$f":"AND(#REF!,\"LZVxmWr7CU0=\")","v":{"$error":"#REF!"}},{"$f":"AND(#REF!,\"LZVxmWr7CU4=\")","v":{"$error":"#REF!"}},{"$f":"AND(#REF!,\"LZVxmWr7CU8=\")","v":{"$error":"#REF!"}},{"$f":"AND(#REF!,\"LZVxmWr7CVA=\")","v":{"$error":"#REF!"}},{"$f":"AND(#REF!,\"LZVxmWr7CVE=\")","v":{"$error":"#REF!"}},{"$f":"AND(#REF!,\"LZVxmWr7CVI=\")","v":{"$error":"#REF!"}},{"$f":"AND(#REF!,\"LZVxmWr7CVM=\")","v":{"$error":"#REF!"}},{"$f":"AND(#REF!,\"LZVxmWr7CVQ=\")","v":{"$error":"#REF!"}},{"$f":"AND(#REF!,\"LZVxmWr7CVU=\")","v":{"$error":"#REF!"}},{"$f":"AND(#REF!,\"LZVxmWr7CVY=\")","v":{"$error":"#REF!"}},{"$f":"AND(#REF!,\"LZVxmWr7CVc=\")","v":{"$error":"#REF!"}},{"$f":"AND(#REF!,\"LZVxmWr7CVg=\")","v":{"$error":"#REF!"}},{"$f":"AND(#REF!,\"LZVxmWr7CVk=\")","v":{"$error":"#REF!"}},{"$f":"AND(#REF!,\"LZVxmWr7CVo=\")","v":{"$error":"#REF!"}},{"$f":"AND(#REF!,\"LZVxmWr7CVs=\")","v":{"$error":"#REF!"}},{"$f":"AND(#REF!,\"LZVxmWr7CVw=\")","v":{"$error":"#REF!"}},{"$f":"AND(#REF!,\"LZVxmWr7CV0=\")","v":{"$error":"#REF!"}},{"$f":"AND(#REF!,\"LZVxmWr7CV4=\")","v":{"$error":"#REF!"}},{"$f":"AND(#REF!,\"LZVxmWr7CV8=\")","v":{"$error":"#REF!"}},{"$f":"AND(#REF!,\"LZVxmWr7CWA=\")","v":{"$error":"#REF!"}},{"$f":"AND(#REF!,\"LZVxmWr7CWE=\")","v":{"$error":"#REF!"}},{"$f":"AND(#REF!,\"LZVxmWr7CWI=\")","v":{"$error":"#REF!"}},{"$f":"AND(#REF!,\"LZVxmWr7CWM=\")","v":{"$error":"#REF!"}},{"$f":"AND(#REF!,\"LZVxmWr7CWQ=\")","v":{"$error":"#REF!"}},{"$f":"AND(#REF!,\"LZVxmWr7CWU=\")","v":{"$error":"#REF!"}},{"$f":"AND(#REF!,\"LZVxmWr7CWY=\")","v":{"$error":"#REF!"}},{"$f":"AND(#REF!,\"LZVxmWr7CWc=\")","v":{"$error":"#REF!"}},{"$f":"AND(#REF!,\"LZVxmWr7CWg=\")","v":{"$error":"#REF!"}},{"$f":"IF(#REF!,\"LZVxmWr7CWk=\",0)","v":{"$error":"#REF!"}},{"$f":"AND(#REF!,\"LZVxmWr7CWo=\")","v":{"$error":"#REF!"}},{"$f":"AND(#REF!,\"LZVxmWr7CWs=\")","v":{"$error":"#REF!"}},{"$f":"AND(#REF!,\"LZVxmWr7CWw=\")","v":{"$error":"#REF!"}},{"$f":"AND(#REF!,\"LZVxmWr7CW0=\")","v":{"$error":"#REF!"}},{"$f":"AND(#REF!,\"LZVxmWr7CW4=\")","v":{"$error":"#REF!"}},{"$f":"AND(#REF!,\"LZVxmWr7CW8=\")","v":{"$error":"#REF!"}},{"$f":"AND(#REF!,\"LZVxmWr7CXA=\")","v":{"$error":"#REF!"}},{"$f":"AND(#REF!,\"LZVxmWr7CXE=\")","v":{"$error":"#REF!"}},{"$f":"AND(#REF!,\"LZVxmWr7CXI=\")","v":{"$error":"#REF!"}},{"$f":"AND(#REF!,\"LZVxmWr7CXM=\")","v":{"$error":"#REF!"}},{"$f":"AND(#REF!,\"LZVxmWr7CXQ=\")","v":{"$error":"#REF!"}},{"$f":"AND(#REF!,\"LZVxmWr7CXU=\")","v":{"$error":"#REF!"}},{"$f":"AND(#REF!,\"LZVxmWr7CXY=\")","v":{"$error":"#REF!"}},{"$f":"AND(#REF!,\"LZVxmWr7CXc=\")","v":{"$error":"#REF!"}},{"$f":"AND(#REF!,\"LZVxmWr7CXg=\")","v":{"$error":"#REF!"}},{"$f":"AND(#REF!,\"LZVxmWr7CXk=\")","v":{"$error":"#REF!"}},{"$f":"AND(#REF!,\"LZVxmWr7CXo=\")","v":{"$error":"#REF!"}},{"$f":"AND(#REF!,\"LZVxmWr7CXs=\")","v":{"$error":"#REF!"}},{"$f":"AND(#REF!,\"LZVxmWr7CXw=\")","v":{"$error":"#REF!"}},{"$f":"AND(#REF!,\"LZVxmWr7CX0=\")","v":{"$error":"#REF!"}},{"$f":"AND(#REF!,\"LZVxmWr7CX4=\")","v":{"$error":"#REF!"}},{"$f":"AND(#REF!,\"LZVxmWr7CX8=\")","v":{"$error":"#REF!"}},{"$f":"AND(#REF!,\"LZVxmWr7CYA=\")","v":{"$error":"#REF!"}},{"$f":"AND(#REF!,\"LZVxmWr7CYE=\")","v":{"$error":"#REF!"}},{"$f":"AND(#REF!,\"LZVxmWr7CYI=\")","v":{"$error":"#REF!"}},{"$f":"AND(#REF!,\"LZVxmWr7CYM=\")","v":{"$error":"#REF!"}},{"$f":"AND(#REF!,\"LZVxmWr7CYQ=\")","v":{"$error":"#REF!"}},{"$f":"AND(#REF!,\"LZVxmWr7CYU=\")","v":{"$error":"#REF!"}},{"$f":"AND(#REF!,\"LZVxmWr7CYY=\")","v":{"$error":"#REF!"}},{"$f":"AND(#REF!,\"LZVxmWr7CYc=\")","v":{"$error":"#REF!"}},{"$f":"AND(#REF!,\"LZVxmWr7CYg=\")","v":{"$error":"#REF!"}},{"$f":"AND(#REF!,\"LZVxmWr7CYk=\")","v":{"$error":"#REF!"}},{"$f":"AND(#REF!,\"LZVxmWr7CYo=\")","v":{"$error":"#REF!"}},{"$f":"AND(#REF!,\"LZVxmWr7CYs=\")","v":{"$error":"#REF!"}},{"$f":"AND(#REF!,\"LZVxmWr7CYw=\")","v":{"$error":"#REF!"}},{"$f":"AND(#REF!,\"LZVxmWr7CY0=\")","v":{"$error":"#REF!"}},{"$f":"AND(#REF!,\"LZVxmWr7CY4=\")","v":{"$error":"#REF!"}},{"$f":"AND(#REF!,\"LZVxmWr7CY8=\")","v":{"$error":"#REF!"}},{"$f":"AND(#REF!,\"LZVxmWr7CZA=\")","v":{"$error":"#REF!"}},{"$f":"AND(#REF!,\"LZVxmWr7CZE=\")","v":{"$error":"#REF!"}},{"$f":"AND(#REF!,\"LZVxmWr7CZI=\")","v":{"$error":"#REF!"}},{"$f":"AND(#REF!,\"LZVxmWr7CZM=\")","v":{"$error":"#REF!"}},{"$f":"AND(#REF!,\"LZVxmWr7CZQ=\")","v":{"$error":"#REF!"}},{"$f":"AND(#REF!,\"LZVxmWr7CZU=\")","v":{"$error":"#REF!"}},{"$f":"AND(#REF!,\"LZVxmWr7CZY=\")","v":{"$error":"#REF!"}},{"$f":"AND(#REF!,\"LZVxmWr7CZc=\")","v":{"$error":"#REF!"}},{"$f":"AND(#REF!,\"LZVxmWr7CZg=\")","v":{"$error":"#REF!"}},{"$f":"AND(#REF!,\"LZVxmWr7CZk=\")","v":{"$error":"#REF!"}},{"$f":"AND(#REF!,\"LZVxmWr7CZo=\")","v":{"$error":"#REF!"}},{"$f":"AND(#REF!,\"LZVxmWr7CZs=\")","v":{"$error":"#REF!"}},{"$f":"AND(#REF!,\"LZVxmWr7CZw=\")","v":{"$error":"#REF!"}},{"$f":"AND(#REF!,\"LZVxmWr7CZ0=\")","v":{"$error":"#REF!"}},{"$f":"AND(#REF!,\"LZVxmWr7CZ4=\")","v":{"$error":"#REF!"}},{"$f":"AND(#REF!,\"LZVxmWr7CZ8=\")","v":{"$error":"#REF!"}},{"$f":"AND(#REF!,\"LZVxmWr7CaA=\")","v":{"$error":"#REF!"}},{"$f":"AND(#REF!,\"LZVxmWr7CaE=\")","v":{"$error":"#REF!"}},{"$f":"AND(#REF!,\"LZVxmWr7CaI=\")","v":{"$error":"#REF!"}},{"$f":"AND(#REF!,\"LZVxmWr7CaM=\")","v":{"$error":"#REF!"}},{"$f":"AND(#REF!,\"LZVxmWr7CaQ=\")","v":{"$error":"#REF!"}},{"$f":"AND(#REF!,\"LZVxmWr7CaU=\")","v":{"$error":"#REF!"}},{"$f":"AND(#REF!,\"LZVxmWr7CaY=\")","v":{"$error":"#REF!"}},{"$f":"AND(#REF!,\"LZVxmWr7Cac=\")","v":{"$error":"#REF!"}},{"$f":"AND(#REF!,\"LZVxmWr7Cag=\")","v":{"$error":"#REF!"}},{"$f":"AND(#REF!,\"LZVxmWr7Cak=\")","v":{"$error":"#REF!"}},{"$f":"AND(#REF!,\"LZVxmWr7Cao=\")","v":{"$error":"#REF!"}},{"$f":"AND(#REF!,\"LZVxmWr7Cas=\")","v":{"$error":"#REF!"}},{"$f":"AND(#REF!,\"LZVxmWr7Caw=\")","v":{"$error":"#REF!"}},{"$f":"AND(#REF!,\"LZVxmWr7Ca0=\")","v":{"$error":"#REF!"}},{"$f":"AND(#REF!,\"LZVxmWr7Ca4=\")","v":{"$error":"#REF!"}},{"$f":"AND(#REF!,\"LZVxmWr7Ca8=\")","v":{"$error":"#REF!"}},{"$f":"AND(#REF!,\"LZVxmWr7CbA=\")","v":{"$error":"#REF!"}},{"$f":"AND(#REF!,\"LZVxmWr7CbE=\")","v":{"$error":"#REF!"}},{"$f":"AND(#REF!,\"LZVxmWr7CbI=\")","v":{"$error":"#REF!"}},{"$f":"AND(#REF!,\"LZVxmWr7CbM=\")","v":{"$error":"#REF!"}},{"$f":"AND(#REF!,\"LZVxmWr7CbQ=\")","v":{"$error":"#REF!"}},{"$f":"AND(#REF!,\"LZVxmWr7CbU=\")","v":{"$error":"#REF!"}},{"$f":"AND(#REF!,\"LZVxmWr7CbY=\")","v":{"$error":"#REF!"}},{"$f":"AND(#REF!,\"LZVxmWr7Cbc=\")","v":{"$error":"#REF!"}},{"$f":"AND(#REF!,\"LZVxmWr7Cbg=\")","v":{"$error":"#REF!"}},{"$f":"AND(#REF!,\"LZVxmWr7Cbk=\")","v":{"$error":"#REF!"}},{"$f":"AND(#REF!,\"LZVxmWr7Cbo=\")","v":{"$error":"#REF!"}},{"$f":"AND(#REF!,\"LZVxmWr7Cbs=\")","v":{"$error":"#REF!"}},{"$f":"AND(#REF!,\"LZVxmWr7Cbw=\")","v":{"$error":"#REF!"}},{"$f":"AND(#REF!,\"LZVxmWr7Cb0=\")","v":{"$error":"#REF!"}},{"$f":"AND(#REF!,\"LZVxmWr7Cb4=\")","v":{"$error":"#REF!"}},{"$f":"AND(#REF!,\"LZVxmWr7Cb8=\")","v":{"$error":"#REF!"}},{"$f":"AND(#REF!,\"LZVxmWr7CcA=\")","v":{"$error":"#REF!"}},{"$f":"AND(#REF!,\"LZVxmWr7CcE=\")","v":{"$error":"#REF!"}},{"$f":"AND(#REF!,\"LZVxmWr7CcI=\")","v":{"$error":"#REF!"}},{"$f":"AND(#REF!,\"LZVxmWr7CcM=\")","v":{"$error":"#REF!"}},{"$f":"AND(#REF!,\"LZVxmWr7CcQ=\")","v":{"$error":"#REF!"}},{"$f":"AND(#REF!,\"LZVxmWr7CcU=\")","v":{"$error":"#REF!"}},{"$f":"AND(#REF!,\"LZVxmWr7CcY=\")","v":{"$error":"#REF!"}},{"$f":"AND(#REF!,\"LZVxmWr7Ccc=\")","v":{"$error":"#REF!"}},{"$f":"AND(#REF!,\"LZVxmWr7Ccg=\")","v":{"$error":"#REF!"}},{"$f":"AND(#REF!,\"LZVxmWr7Cck=\")","v":{"$error":"#REF!"}},{"$f":"AND(#REF!,\"LZVxmWr7Cco=\")","v":{"$error":"#REF!"}},{"$f":"AND(#REF!,\"LZVxmWr7Ccs=\")","v":{"$error":"#REF!"}},{"$f":"AND(#REF!,\"LZVxmWr7Ccw=\")","v":{"$error":"#REF!"}},{"$f":"AND(#REF!,\"LZVxmWr7Cc0=\")","v":{"$error":"#REF!"}},{"$f":"AND(#REF!,\"LZVxmWr7Cc4=\")","v":{"$error":"#REF!"}},{"$f":"AND(#REF!,\"LZVxmWr7Cc8=\")","v":{"$error":"#REF!"}},{"$f":"AND(#REF!,\"LZVxmWr7CdA=\")","v":{"$error":"#REF!"}},{"$f":"AND(#REF!,\"LZVxmWr7CdE=\")","v":{"$error":"#REF!"}},{"$f":"AND(#REF!,\"LZVxmWr7CdI=\")","v":{"$error":"#REF!"}},{"$f":"AND(#REF!,\"LZVxmWr7CdM=\")","v":{"$error":"#REF!"}},{"$f":"AND(#REF!,\"LZVxmWr7CdQ=\")","v":{"$error":"#REF!"}},{"$f":"AND(#REF!,\"LZVxmWr7CdU=\")","v":{"$error":"#REF!"}},{"$f":"AND(#REF!,\"LZVxmWr7CdY=\")","v":{"$error":"#REF!"}},{"$f":"AND(#REF!,\"LZVxmWr7Cdc=\")","v":{"$error":"#REF!"}},{"$f":"AND(#REF!,\"LZVxmWr7Cdg=\")","v":{"$error":"#REF!"}},{"$f":"AND(#REF!,\"LZVxmWr7Cdk=\")","v":{"$error":"#REF!"}},{"$f":"AND(#REF!,\"LZVxmWr7Cdo=\")","v":{"$error":"#REF!"}},{"$f":"AND(#REF!,\"LZVxmWr7Cds=\")","v":{"$error":"#REF!"}},{"$f":"AND(#REF!,\"LZVxmWr7Cdw=\")","v":{"$error":"#REF!"}},{"$f":"AND(#REF!,\"LZVxmWr7Cd0=\")","v":{"$error":"#REF!"}},{"$f":"AND(#REF!,\"LZVxmWr7Cd4=\")","v":{"$error":"#REF!"}},{"$f":"AND(#REF!,\"LZVxmWr7Cd8=\")","v":{"$error":"#REF!"}},{"$f":"AND(#REF!,\"LZVxmWr7CeA=\")","v":{"$error":"#REF!"}},{"$f":"AND(#REF!,\"LZVxmWr7CeE=\")","v":{"$error":"#REF!"}},{"$f":"AND(#REF!,\"LZVxmWr7CeI=\")","v":{"$error":"#REF!"}},{"$f":"AND(#REF!,\"LZVxmWr7CeM=\")","v":{"$error":"#REF!"}},{"$f":"AND(#REF!,\"LZVxmWr7CeQ=\")","v":{"$error":"#REF!"}},{"$f":"AND(#REF!,\"LZVxmWr7CeU=\")","v":{"$error":"#REF!"}},{"$f":"AND(#REF!,\"LZVxmWr7CeY=\")","v":{"$error":"#REF!"}},{"$f":"AND(#REF!,\"LZVxmWr7Cec=\")","v":{"$error":"#REF!"}},{"$f":"AND(#REF!,\"LZVxmWr7Ceg=\")","v":{"$error":"#REF!"}},{"$f":"AND(#REF!,\"LZVxmWr7Cek=\")","v":{"$error":"#REF!"}},{"$f":"AND(#REF!,\"LZVxmWr7Ceo=\")","v":{"$error":"#REF!"}},{"$f":"AND(#REF!,\"LZVxmWr7Ces=\")","v":{"$error":"#REF!"}},{"$f":"AND(#REF!,\"LZVxmWr7Cew=\")","v":{"$error":"#REF!"}},{"$f":"AND(#REF!,\"LZVxmWr7Ce0=\")","v":{"$error":"#REF!"}},{"$f":"AND(#REF!,\"LZVxmWr7Ce4=\")","v":{"$error":"#REF!"}},{"$f":"AND(#REF!,\"LZVxmWr7Ce8=\")","v":{"$error":"#REF!"}},{"$f":"AND(#REF!,\"LZVxmWr7CfA=\")","v":{"$error":"#REF!"}},{"$f":"AND(#REF!,\"LZVxmWr7CfE=\")","v":{"$error":"#REF!"}},{"$f":"AND(#REF!,\"LZVxmWr7CfI=\")","v":{"$error":"#REF!"}},{"$f":"AND(#REF!,\"LZVxmWr7CfM=\")","v":{"$error":"#REF!"}},{"$f":"AND(#REF!,\"LZVxmWr7CfQ=\")","v":{"$error":"#REF!"}},{"$f":"AND(#REF!,\"LZVxmWr7CfU=\")","v":{"$error":"#REF!"}},{"$f":"AND(#REF!,\"LZVxmWr7CfY=\")","v":{"$error":"#REF!"}},{"$f":"AND(#REF!,\"LZVxmWr7Cfc=\")","v":{"$error":"#REF!"}},{"$f":"AND(#REF!,\"LZVxmWr7Cfg=\")","v":{"$error":"#REF!"}},{"$f":"AND(#REF!,\"LZVxmWr7Cfk=\")","v":{"$error":"#REF!"}},{"$f":"AND(#REF!,\"LZVxmWr7Cfo=\")","v":{"$error":"#REF!"}},{"$f":"AND(#REF!,\"LZVxmWr7Cfs=\")","v":{"$error":"#REF!"}},{"$f":"AND(#REF!,\"LZVxmWr7Cfw=\")","v":{"$error":"#REF!"}},{"$f":"AND(#REF!,\"LZVxmWr7Cf0=\")","v":{"$error":"#REF!"}},{"$f":"AND(#REF!,\"LZVxmWr7Cf4=\")","v":{"$error":"#REF!"}},{"$f":"AND(#REF!,\"LZVxmWr7Cf8=\")","v":{"$error":"#REF!"}}]
[{"$f":"AND(#REF!,\"VL1szDerVwA=\")","v":{"$error":"#REF!"}},{"$f":"AND(#REF!,\"VL1szDerVwE=\")","v":{"$error":"#REF!"}},{"$f":"AND(#REF!,\"VL1szDerVwI=\")","v":{"$error":"#REF!"}},{"$f":"AND(#REF!,\"VL1szDerVwM=\")","v":{"$error":"#REF!"}},{"$f":"AND(#REF!,\"VL1szDerVwQ=\")","v":{"$error":"#REF!"}},{"$f":"AND(#REF!,\"VL1szDerVwU=\")","v":{"$error":"#REF!"}},{"$f":"AND(#REF!,\"VL1szDerVwY=\")","v":{"$error":"#REF!"}},{"$f":"AND(#REF!,\"VL1szDerVwc=\")","v":{"$error":"#REF!"}},{"$f":"AND(#REF!,\"VL1szDerVwg=\")","v":{"$error":"#REF!"}},{"$f":"AND(#REF!,\"VL1szDerVwk=\")","v":{"$error":"#REF!"}},{"$f":"AND(#REF!,\"VL1szDerVwo=\")","v":{"$error":"#REF!"}},{"$f":"AND(#REF!,\"VL1szDerVws=\")","v":{"$error":"#REF!"}},{"$f":"AND(#REF!,\"VL1szDerVww=\")","v":{"$error":"#REF!"}},{"$f":"AND(#REF!,\"VL1szDerVw0=\")","v":{"$error":"#REF!"}},{"$f":"AND(#REF!,\"VL1szDerVw4=\")","v":{"$error":"#REF!"}},{"$f":"AND(#REF!,\"VL1szDerVw8=\")","v":{"$error":"#REF!"}},{"$f":"AND(#REF!,\"VL1szDerVxA=\")","v":{"$error":"#REF!"}},{"$f":"AND(#REF!,\"VL1szDerVxE=\")","v":{"$error":"#REF!"}},{"$f":"AND(#REF!,\"VL1szDerVxI=\")","v":{"$error":"#REF!"}},{"$f":"AND(#REF!,\"VL1szDerVxM=\")","v":{"$error":"#REF!"}},{"$f":"AND(#REF!,\"VL1szDerVxQ=\")","v":{"$error":"#REF!"}},{"$f":"AND(#REF!,\"VL1szDerVxU=\")","v":{"$error":"#REF!"}},{"$f":"AND(#REF!,\"VL1szDerVxY=\")","v":{"$error":"#REF!"}},{"$f":"AND(#REF!,\"VL1szDerVxc=\")","v":{"$error":"#REF!"}},{"$f":"AND(#REF!,\"VL1szDerVxg=\")","v":{"$error":"#REF!"}},{"$f":"AND(#REF!,\"VL1szDerVxk=\")","v":{"$error":"#REF!"}},{"$f":"AND(#REF!,\"VL1szDerVxo=\")","v":{"$error":"#REF!"}},{"$f":"AND(#REF!,\"VL1szDerVxs=\")","v":{"$error":"#REF!"}},{"$f":"AND(#REF!,\"VL1szDerVxw=\")","v":{"$error":"#REF!"}},{"$f":"AND(#REF!,\"VL1szDerVx0=\")","v":{"$error":"#REF!"}},{"$f":"AND(#REF!,\"VL1szDerVx4=\")","v":{"$error":"#REF!"}},{"$f":"AND(#REF!,\"VL1szDerVx8=\")","v":{"$error":"#REF!"}},{"$f":"AND(#REF!,\"VL1szDerVyA=\")","v":{"$error":"#REF!"}},{"$f":"AND(#REF!,\"VL1szDerVyE=\")","v":{"$error":"#REF!"}},{"$f":"AND(#REF!,\"VL1szDerVyI=\")","v":{"$error":"#REF!"}},{"$f":"AND(#REF!,\"VL1szDerVyM=\")","v":{"$error":"#REF!"}},{"$f":"AND(#REF!,\"VL1szDerVyQ=\")","v":{"$error":"#REF!"}},{"$f":"AND(#REF!,\"VL1szDerVyU=\")","v":{"$error":"#REF!"}},{"$f":"AND(#REF!,\"VL1szDerVyY=\")","v":{"$error":"#REF!"}},{"$f":"AND(#REF!,\"VL1szDerVyc=\")","v":{"$error":"#REF!"}},{"$f":"AND(#REF!,\"VL1szDerVyg=\")","v":{"$error":"#REF!"}},{"$f":"AND(#REF!,\"VL1szDerVyk=\")","v":{"$error":"#REF!"}},{"$f":"AND(#REF!,\"VL1szDerVyo=\")","v":{"$error":"#REF!"}},{"$f":"AND(#REF!,\"VL1szDerVys=\")","v":{"$error":"#REF!"}},{"$f":"AND(#REF!,\"VL1szDerVyw=\")","v":{"$error":"#REF!"}},{"$f":"AND(#REF!,\"VL1szDerVy0=\")","v":{"$error":"#REF!"}},{"$f":"AND(#REF!,\"VL1szDerVy4=\")","v":{"$error":"#REF!"}},{"$f":"AND(#REF!,\"VL1szDerVy8=\")","v":{"$error":"#REF!"}},{"$f":"IF(#REF!,\"VL1szDerVzA=\",0)","v":{"$error":"#REF!"}},{"$f":"AND(#REF!,\"VL1szDerVzE=\")","v":{"$error":"#REF!"}},{"$f":"AND(#REF!,\"VL1szDerVzI=\")","v":{"$error":"#REF!"}},{"$f":"AND(#REF!,\"VL1szDerVzM=\")","v":{"$error":"#REF!"}},{"$f":"AND(#REF!,\"VL1szDerVzQ=\")","v":{"$error":"#REF!"}},{"$f":"AND(#REF!,\"VL1szDerVzU=\")","v":{"$error":"#REF!"}},{"$f":"AND(#REF!,\"VL1szDerVzY=\")","v":{"$error":"#REF!"}},{"$f":"AND(#REF!,\"VL1szDerVzc=\")","v":{"$error":"#REF!"}},{"$f":"AND(#REF!,\"VL1szDerVzg=\")","v":{"$error":"#REF!"}},{"$f":"AND(#REF!,\"VL1szDerVzk=\")","v":{"$error":"#REF!"}},{"$f":"AND(#REF!,\"VL1szDerVzo=\")","v":{"$error":"#REF!"}},{"$f":"AND(#REF!,\"VL1szDerVzs=\")","v":{"$error":"#REF!"}},{"$f":"AND(#REF!,\"VL1szDerVzw=\")","v":{"$error":"#REF!"}},{"$f":"AND(#REF!,\"VL1szDerVz0=\")","v":{"$error":"#REF!"}},{"$f":"AND(#REF!,\"VL1szDerVz4=\")","v":{"$error":"#REF!"}},{"$f":"AND(#REF!,\"VL1szDerVz8=\")","v":{"$error":"#REF!"}},{"$f":"AND(#REF!,\"VL1szDerV0A=\")","v":{"$error":"#REF!"}},{"$f":"AND(#REF!,\"VL1szDerV0E=\")","v":{"$error":"#REF!"}},{"$f":"AND(#REF!,\"VL1szDerV0I=\")","v":{"$error":"#REF!"}},{"$f":"AND(#REF!,\"VL1szDerV0M=\")","v":{"$error":"#REF!"}},{"$f":"AND(#REF!,\"VL1szDerV0Q=\")","v":{"$error":"#REF!"}},{"$f":"AND(#REF!,\"VL1szDerV0U=\")","v":{"$error":"#REF!"}},{"$f":"AND(#REF!,\"VL1szDerV0Y=\")","v":{"$error":"#REF!"}},{"$f":"AND(#REF!,\"VL1szDerV0c=\")","v":{"$error":"#REF!"}},{"$f":"AND(#REF!,\"VL1szDerV0g=\")","v":{"$error":"#REF!"}},{"$f":"AND(#REF!,\"VL1szDerV0k=\")","v":{"$error":"#REF!"}},{"$f":"AND(#REF!,\"VL1szDerV0o=\")","v":{"$error":"#REF!"}},{"$f":"AND(#REF!,\"VL1szDerV0s=\")","v":{"$error":"#REF!"}},{"$f":"AND(#REF!,\"VL1szDerV0w=\")","v":{"$error":"#REF!"}},{"$f":"AND(#REF!,\"VL1szDerV00=\")","v":{"$error":"#REF!"}},{"$f":"AND(#REF!,\"VL1szDerV04=\")","v":{"$error":"#REF!"}},{"$f":"AND(#REF!,\"VL1szDerV08=\")","v":{"$error":"#REF!"}},{"$f":"AND(#REF!,\"VL1szDerV1A=\")","v":{"$error":"#REF!"}},{"$f":"AND(#REF!,\"VL1szDerV1E=\")","v":{"$error":"#REF!"}},{"$f":"AND(#REF!,\"VL1szDerV1I=\")","v":{"$error":"#REF!"}},{"$f":"AND(#REF!,\"VL1szDerV1M=\")","v":{"$error":"#REF!"}},{"$f":"AND(#REF!,\"VL1szDerV1Q=\")","v":{"$error":"#REF!"}},{"$f":"AND(#REF!,\"VL1szDerV1U=\")","v":{"$error":"#REF!"}},{"$f":"AND(#REF!,\"VL1szDerV1Y=\")","v":{"$error":"#REF!"}},{"$f":"AND(#REF!,\"VL1szDerV1c=\")","v":{"$error":"#REF!"}},{"$f":"AND(#REF!,\"VL1szDerV1g=\")","v":{"$error":"#REF!"}},{"$f":"AND(#REF!,\"VL1szDerV1k=\")","v":{"$error":"#REF!"}},{"$f":"AND(#REF!,\"VL1szDerV1o=\")","v":{"$error":"#REF!"}},{"$f":"AND(#REF!,\"VL1szDerV1s=\")","v":{"$error":"#REF!"}},{"$f":"AND(#REF!,\"VL1szDerV1w=\")","v":{"$error":"#REF!"}},{"$f":"AND(#REF!,\"VL1szDerV10=\")","v":{"$error":"#REF!"}},{"$f":"AND(#REF!,\"VL1szDerV14=\")","v":{"$error":"#REF!"}},{"$f":"AND(#REF!,\"VL1szDerV18=\")","v":{"$error":"#REF!"}},{"$f":"AND(#REF!,\"VL1szDerV2A=\")","v":{"$error":"#REF!"}},{"$f":"AND(#REF!,\"VL1szDerV2E=\")","v":{"$error":"#REF!"}},{"$f":"AND(#REF!,\"VL1szDerV2I=\")","v":{"$error":"#REF!"}},{"$f":"AND(#REF!,\"VL1szDerV2M=\")","v":{"$error":"#REF!"}},{"$f":"AND(#REF!,\"VL1szDerV2Q=\")","v":{"$error":"#REF!"}},{"$f":"AND(#REF!,\"VL1szDerV2U=\")","v":{"$error":"#REF!"}},{"$f":"AND(#REF!,\"VL1szDerV2Y=\")","v":{"$error":"#REF!"}},{"$f":"AND(#REF!,\"VL1szDerV2c=\")","v":{"$error":"#REF!"}},{"$f":"AND(#REF!,\"VL1szDerV2g=\")","v":{"$error":"#REF!"}},{"$f":"AND(#REF!,\"VL1szDerV2k=\")","v":{"$error":"#REF!"}},{"$f":"AND(#REF!,\"VL1szDerV2o=\")","v":{"$error":"#REF!"}},{"$f":"AND(#REF!,\"VL1szDerV2s=\")","v":{"$error":"#REF!"}},{"$f":"AND(#REF!,\"VL1szDerV2w=\")","v":{"$error":"#REF!"}},{"$f":"AND(#REF!,\"VL1szDerV20=\")","v":{"$error":"#REF!"}},{"$f":"AND(#REF!,\"VL1szDerV24=\")","v":{"$error":"#REF!"}},{"$f":"AND(#REF!,\"VL1szDerV28=\")","v":{"$error":"#REF!"}},{"$f":"AND(#REF!,\"VL1szDerV3A=\")","v":{"$error":"#REF!"}},{"$f":"AND(#REF!,\"VL1szDerV3E=\")","v":{"$error":"#REF!"}},{"$f":"AND(#REF!,\"VL1szDerV3I=\")","v":{"$error":"#REF!"}},{"$f":"AND(#REF!,\"VL1szDerV3M=\")","v":{"$error":"#REF!"}},{"$f":"AND(#REF!,\"VL1szDerV3Q=\")","v":{"$error":"#REF!"}},{"$f":"AND(#REF!,\"VL1szDerV3U=\")","v":{"$error":"#REF!"}},{"$f":"AND(#REF!,\"VL1szDerV3Y=\")","v":{"$error":"#REF!"}},{"$f":"AND(#REF!,\"VL1szDerV3c=\")","v":{"$error":"#REF!"}},{"$f":"AND(#REF!,\"VL1szDerV3g=\")","v":{"$error":"#REF!"}},{"$f":"AND(#REF!,\"VL1szDerV3k=\")","v":{"$error":"#REF!"}},{"$f":"AND(#REF!,\"VL1szDerV3o=\")","v":{"$error":"#REF!"}},{"$f":"AND(#REF!,\"VL1szDerV3s=\")","v":{"$error":"#REF!"}},{"$f":"AND(#REF!,\"VL1szDerV3w=\")","v":{"$error":"#REF!"}},{"$f":"AND(#REF!,\"VL1szDerV30=\")","v":{"$error":"#REF!"}},{"$f":"AND(#REF!,\"VL1szDerV34=\")","v":{"$error":"#REF!"}},{"$f":"AND(#REF!,\"VL1szDerV38=\")","v":{"$error":"#REF!"}},{"$f":"AND(#REF!,\"VL1szDerV4A=\")","v":{"$error":"#REF!"}},{"$f":"AND(#REF!,\"VL1szDerV4E=\")","v":{"$error":"#REF!"}},{"$f":"AND(#REF!,\"VL1szDerV4I=\")","v":{"$error":"#REF!"}},{"$f":"AND(#REF!,\"VL1szDerV4M=\")","v":{"$error":"#REF!"}},{"$f":"AND(#REF!,\"VL1szDerV4Q=\")","v":{"$error":"#REF!"}},{"$f":"AND(#REF!,\"VL1szDerV4U=\")","v":{"$error":"#REF!"}},{"$f":"AND(#REF!,\"VL1szDerV4Y=\")","v":{"$error":"#REF!"}},{"$f":"AND(#REF!,\"VL1szDerV4c=\")","v":{"$error":"#REF!"}},{"$f":"AND(#REF!,\"VL1szDerV4g=\")","v":{"$error":"#REF!"}},{"$f":"AND(#REF!,\"VL1szDerV4k=\")","v":{"$error":"#REF!"}},{"$f":"AND(#REF!,\"VL1szDerV4o=\")","v":{"$error":"#REF!"}},{"$f":"AND(#REF!,\"VL1szDerV4s=\")","v":{"$error":"#REF!"}},{"$f":"AND(#REF!,\"VL1szDerV4w=\")","v":{"$error":"#REF!"}},{"$f":"AND(#REF!,\"VL1szDerV40=\")","v":{"$error":"#REF!"}},{"$f":"AND(#REF!,\"VL1szDerV44=\")","v":{"$error":"#REF!"}},{"$f":"AND(#REF!,\"VL1szDerV48=\")","v":{"$error":"#REF!"}},{"$f":"AND(#REF!,\"VL1szDerV5A=\")","v":{"$error":"#REF!"}},{"$f":"AND(#REF!,\"VL1szDerV5E=\")","v":{"$error":"#REF!"}},{"$f":"AND(#REF!,\"VL1szDerV5I=\")","v":{"$error":"#REF!"}},{"$f":"AND(#REF!,\"VL1szDerV5M=\")","v":{"$error":"#REF!"}},{"$f":"AND(#REF!,\"VL1szDerV5Q=\")","v":{"$error":"#REF!"}},{"$f":"AND(#REF!,\"VL1szDerV5U=\")","v":{"$error":"#REF!"}},{"$f":"AND(#REF!,\"VL1szDerV5Y=\")","v":{"$error":"#REF!"}},{"$f":"AND(#REF!,\"VL1szDerV5c=\")","v":{"$error":"#REF!"}},{"$f":"AND(#REF!,\"VL1szDerV5g=\")","v":{"$error":"#REF!"}},{"$f":"AND(#REF!,\"VL1szDerV5k=\")","v":{"$error":"#REF!"}},{"$f":"AND(#REF!,\"VL1szDerV5o=\")","v":{"$error":"#REF!"}},{"$f":"AND(#REF!,\"VL1szDerV5s=\")","v":{"$error":"#REF!"}},{"$f":"AND(#REF!,\"VL1szDerV5w=\")","v":{"$error":"#REF!"}},{"$f":"AND(#REF!,\"VL1szDerV50=\")","v":{"$error":"#REF!"}},{"$f":"AND(#REF!,\"VL1szDerV54=\")","v":{"$error":"#REF!"}},{"$f":"AND(#REF!,\"VL1szDerV58=\")","v":{"$error":"#REF!"}},{"$f":"AND(#REF!,\"VL1szDerV6A=\")","v":{"$error":"#REF!"}},{"$f":"AND(#REF!,\"VL1szDerV6E=\")","v":{"$error":"#REF!"}},{"$f":"AND(#REF!,\"VL1szDerV6I=\")","v":{"$error":"#REF!"}},{"$f":"AND(#REF!,\"VL1szDerV6M=\")","v":{"$error":"#REF!"}},{"$f":"AND(#REF!,\"VL1szDerV6Q=\")","v":{"$error":"#REF!"}},{"$f":"AND(#REF!,\"VL1szDerV6U=\")","v":{"$error":"#REF!"}},{"$f":"AND(#REF!,\"VL1szDerV6Y=\")","v":{"$error":"#REF!"}},{"$f":"AND(#REF!,\"VL1szDerV6c=\")","v":{"$error":"#REF!"}},{"$f":"AND(#REF!,\"VL1szDerV6g=\")","v":{"$error":"#REF!"}},{"$f":"AND(#REF!,\"VL1szDerV6k=\")","v":{"$error":"#REF!"}},{"$f":"AND(#REF!,\"VL1szDerV6o=\")","v":{"$error":"#REF!"}},{"$f":"AND(#REF!,\"VL1szDerV6s=\")","v":{"$error":"#REF!"}},{"$f":"AND(#REF!,\"VL1szDerV6w=\")","v":{"$error":"#REF!"}},{"$f":"AND(#REF!,\"VL1szDerV60=\")","v":{"$error":"#REF!"}},{"$f":"AND(#REF!,\"VL1szDerV64=\")","v":{"$error":"#REF!"}},{"$f":"AND(#REF!,\"VL1szDerV68=\")","v":{"$error":"#REF!"}},{"$f":"AND(#REF!,\"VL1szDerV7A=\")","v":{"$error":"#REF!"}},{"$f":"AND(#REF!,\"VL1szDerV7E=\")","v":{"$error":"#REF!"}},{"$f":"AND(#REF!,\"VL1szDerV7I=\")","v":{"$error":"#REF!"}},{"$f":"AND(#REF!,\"VL1szDerV7M=\")","v":{"$error":"#REF!"}},{"$f":"AND(#REF!,\"VL1szDerV7Q=\")","v":{"$error":"#REF!"}},{"$f":"AND(#REF!,\"VL1szDerV7U=\")","v":{"$error":"#REF!"}},{"$f":"AND(#REF!,\"VL1szDerV7Y=\")","v":{"$error":"#REF!"}},{"$f":"AND(#REF!,\"VL1szDerV7c=\")","v":{"$error":"#REF!"}},{"$f":"AND(#REF!,\"VL1szDerV7g=\")","v":{"$error":"#REF!"}},{"$f":"AND(#REF!,\"VL1szDerV7k=\")","v":{"$error":"#REF!"}},{"$f":"AND(#REF!,\"VL1szDerV7o=\")","v":{"$error":"#REF!"}},{"$f":"AND(#REF!,\"VL1szDerV7s=\")","v":{"$error":"#REF!"}},{"$f":"AND(#REF!,\"VL1szDerV7w=\")","v":{"$error":"#REF!"}},{"$f":"AND(#REF!,\"VL1szDerV70=\")","v":{"$error":"#REF!"}},{"$f":"AND(#REF!,\"VL1szDerV74=\")","v":{"$error":"#REF!"}},{"$f":"AND(#REF!,\"VL1szDerV78=\")","v":{"$error":"#REF!"}},{"$f":"AND(#REF!,\"VL1szDerV8A=\")","v":{"$error":"#REF!"}},{"$f":"AND(#REF!,\"VL1szDerV8E=\")","v":{"$error":"#REF!"}},{"$f":"AND(#REF!,\"VL1szDerV8I=\")","v":{"$error":"#REF!"}},{"$f":"AND(#REF!,\"VL1szDerV8M=\")","v":{"$error":"#REF!"}},{"$f":"AND(#REF!,\"VL1szDerV8Q=\")","v":{"$error":"#REF!"}},{"$f":"AND(#REF!,\"VL1szDerV8U=\")","v":{"$error":"#REF!"}},{"$f":"AND(#REF!,\"VL1szDerV8Y=\")","v":{"$error":"#REF!"}},{"$f":"AND(#REF!,\"VL1szDerV8c=\")","v":{"$error":"#REF!"}},{"$f":"AND(#REF!,\"VL1szDerV8g=\")","v":{"$error":"#REF!"}},{"$f":"AND(#REF!,\"VL1szDerV8k=\")","v":{"$error":"#REF!"}},{"$f":"AND(#REF!,\"VL1szDerV8o=\")","v":{"$error":"#REF!"}},{"$f":"AND(#REF!,\"VL1szDerV8s=\")","v":{"$error":"#REF!"}},{"$f":"AND(#REF!,\"VL1szDerV8w=\")","v":{"$error":"#REF!"}},{"$f":"AND(#REF!,\"VL1szDerV80=\")","v":{"$error":"#REF!"}},{"$f":"AND(#REF!,\"VL1szDerV84=\")","v":{"$error":"#REF!"}},{"$f":"AND(#REF!,\"VL1szDerV88=\")","v":{"$error":"#REF!"}},{"$f":"AND(#REF!,\"VL1szDerV9A=\")","v":{"$error":"#REF!"}},{"$f":"AND(#REF!,\"VL1szDerV9E=\")","v":{"$error":"#REF!"}},{"$f":"AND(#REF!,\"VL1szDerV9I=\")","v":{"$error":"#REF!"}},{"$f":"AND(#REF!,\"VL1szDerV9M=\")","v":{"$error":"#REF!"}},{"$f":"AND(#REF!,\"VL1szDerV9Q=\")","v":{"$error":"#REF!"}},{"$f":"AND(#REF!,\"VL1szDerV9U=\")","v":{"$error":"#REF!"}},{"$f":"AND(#REF!,\"VL1szDerV9Y=\")","v":{"$error":"#REF!"}},{"$f":"AND(#REF!,\"VL1szDerV9c=\")","v":{"$error":"#REF!"}},{"$f":"AND(#REF!,\"VL1szDerV9g=\")","v":{"$error":"#REF!"}},{"$f":"AND(#REF!,\"VL1szDerV9k=\")","v":{"$error":"#REF!"}},{"$f":"AND(#REF!,\"VL1szDerV9o=\")","v":{"$error":"#REF!"}},{"$f":"AND(#REF!,\"VL1szDerV9s=\")","v":{"$error":"#REF!"}},{"$f":"AND(#REF!,\"VL1szDerV9w=\")","v":{"$error":"#REF!"}},{"$f":"AND(#REF!,\"VL1szDerV90=\")","v":{"$error":"#REF!"}},{"$f":"AND(#REF!,\"VL1szDerV94=\")","v":{"$error":"#REF!"}},{"$f":"AND(#REF!,\"VL1szDerV98=\")","v":{"$error":"#REF!"}},{"$f":"AND(#REF!,\"VL1szDerV+A=\")","v":{"$error":"#REF!"}},{"$f":"AND(#REF!,\"VL1szDerV+E=\")","v":{"$error":"#REF!"}},{"$f":"AND(#REF!,\"VL1szDerV+I=\")","v":{"$error":"#REF!"}},{"$f":"AND(#REF!,\"VL1szDerV+M=\")","v":{"$error":"#REF!"}},{"$f":"AND(#REF!,\"VL1szDerV+Q=\")","v":{"$error":"#REF!"}},{"$f":"AND(#REF!,\"VL1szDerV+U=\")","v":{"$error":"#REF!"}},{"$f":"AND(#REF!,\"VL1szDerV+Y=\")","v":{"$error":"#REF!"}},{"$f":"AND(#REF!,\"VL1szDerV+c=\")","v":{"$error":"#REF!"}},{"$f":"AND(#REF!,\"VL1szDerV+g=\")","v":{"$error":"#REF!"}},{"$f":"AND(#REF!,\"VL1szDerV+k=\")","v":{"$error":"#REF!"}},{"$f":"AND(#REF!,\"VL1szDerV+o=\")","v":{"$error":"#REF!"}},{"$f":"AND(#REF!,\"VL1szDerV+s=\")","v":{"$error":"#REF!"}},{"$f":"AND(#REF!,\"VL1szDerV+w=\")","v":{"$error":"#REF!"}},{"$f":"AND(#REF!,\"VL1szDerV+0=\")","v":{"$error":"#REF!"}},{"$f":"AND(#REF!,\"VL1szDerV+4=\")","v":{"$error":"#REF!"}},{"$f":"AND(#REF!,\"VL1szDerV+8=\")","v":{"$error":"#REF!"}},{"$f":"AND(#REF!,\"VL1szDerV/A=\")","v":{"$error":"#REF!"}},{"$f":"AND(#REF!,\"VL1szDerV/E=\")","v":{"$error":"#REF!"}},{"$f":"AND(#REF!,\"VL1szDerV/I=\")","v":{"$error":"#REF!"}},{"$f":"AND(#REF!,\"VL1szDerV/M=\")","v":{"$error":"#REF!"}},{"$f":"AND(#REF!,\"VL1szDerV/Q=\")","v":{"$error":"#REF!"}},{"$f":"AND(#REF!,\"VL1szDerV/U=\")","v":{"$error":"#REF!"}},{"$f":"AND(#REF!,\"VL1szDerV/Y=\")","v":{"$error":"#REF!"}},{"$f":"IF(#REF!,\"VL1szDerV/c=\",0)","v":{"$error":"#REF!"}},{"$f":"AND(#REF!,\"VL1szDerV/g=\")","v":{"$error":"#REF!"}},{"$f":"AND(#REF!,\"VL1szDerV/k=\")","v":{"$error":"#REF!"}},{"$f":"AND(#REF!,\"VL1szDerV/o=\")","v":{"$error":"#REF!"}},{"$f":"AND(#REF!,\"VL1szDerV/s=\")","v":{"$error":"#REF!"}},{"$f":"AND(#REF!,\"VL1szDerV/w=\")","v":{"$error":"#REF!"}},{"$f":"AND(#REF!,\"VL1szDerV/0=\")","v":{"$error":"#REF!"}},{"$f":"AND(#REF!,\"VL1szDerV/4=\")","v":{"$error":"#REF!"}},{"$f":"AND(#REF!,\"VL1szDerV/8=\")","v":{"$error":"#REF!"}}]
[{"$f":"AND(#REF!,\"fEzAaloBzAA=\")","v":{"$error":"#REF!"}},{"$f":"AND(#REF!,\"fEzAaloBzAE=\")","v":{"$error":"#REF!"}},{"$f":"AND(#REF!,\"fEzAaloBzAI=\")","v":{"$error":"#REF!"}},{"$f":"AND(#REF!,\"fEzAaloBzAM=\")","v":{"$error":"#REF!"}},{"$f":"AND(#REF!,\"fEzAaloBzAQ=\")","v":{"$error":"#REF!"}},{"$f":"AND(#REF!,\"fEzAaloBzAU=\")","v":{"$error":"#REF!"}},{"$f":"AND(#REF!,\"fEzAaloBzAY=\")","v":{"$error":"#REF!"}},{"$f":"AND(#REF!,\"fEzAaloBzAc=\")","v":{"$error":"#REF!"}},{"$f":"AND(#REF!,\"fEzAaloBzAg=\")","v":{"$error":"#REF!"}},{"$f":"AND(#REF!,\"fEzAaloBzAk=\")","v":{"$error":"#REF!"}},{"$f":"AND(#REF!,\"fEzAaloBzAo=\")","v":{"$error":"#REF!"}},{"$f":"AND(#REF!,\"fEzAaloBzAs=\")","v":{"$error":"#REF!"}},{"$f":"AND(#REF!,\"fEzAaloBzAw=\")","v":{"$error":"#REF!"}},{"$f":"AND(#REF!,\"fEzAaloBzA0=\")","v":{"$error":"#REF!"}},{"$f":"AND(#REF!,\"fEzAaloBzA4=\")","v":{"$error":"#REF!"}},{"$f":"AND(#REF!,\"fEzAaloBzA8=\")","v":{"$error":"#REF!"}},{"$f":"AND(#REF!,\"fEzAaloBzBA=\")","v":{"$error":"#REF!"}},{"$f":"AND(#REF!,\"fEzAaloBzBE=\")","v":{"$error":"#REF!"}},{"$f":"AND(#REF!,\"fEzAaloBzBI=\")","v":{"$error":"#REF!"}},{"$f":"AND(#REF!,\"fEzAaloBzBM=\")","v":{"$error":"#REF!"}},{"$f":"AND(#REF!,\"fEzAaloBzBQ=\")","v":{"$error":"#REF!"}},{"$f":"AND(#REF!,\"fEzAaloBzBU=\")","v":{"$error":"#REF!"}},{"$f":"AND(#REF!,\"fEzAaloBzBY=\")","v":{"$error":"#REF!"}},{"$f":"AND(#REF!,\"fEzAaloBzBc=\")","v":{"$error":"#REF!"}},{"$f":"AND(#REF!,\"fEzAaloBzBg=\")","v":{"$error":"#REF!"}},{"$f":"AND(#REF!,\"fEzAaloBzBk=\")","v":{"$error":"#REF!"}},{"$f":"AND(#REF!,\"fEzAaloBzBo=\")","v":{"$error":"#REF!"}},{"$f":"AND(#REF!,\"fEzAaloBzBs=\")","v":{"$error":"#REF!"}},{"$f":"AND(#REF!,\"fEzAaloBzBw=\")","v":{"$error":"#REF!"}},{"$f":"AND(#REF!,\"fEzAaloBzB0=\")","v":{"$error":"#REF!"}},{"$f":"AND(#REF!,\"fEzAaloBzB4=\")","v":{"$error":"#REF!"}},{"$f":"AND(#REF!,\"fEzAaloBzB8=\")","v":{"$error":"#REF!"}},{"$f":"AND(#REF!,\"fEzAaloBzCA=\")","v":{"$error":"#REF!"}},{"$f":"AND(#REF!,\"fEzAaloBzCE=\")","v":{"$error":"#REF!"}},{"$f":"AND(#REF!,\"fEzAaloBzCI=\")","v":{"$error":"#REF!"}},{"$f":"AND(#REF!,\"fEzAaloBzCM=\")","v":{"$error":"#REF!"}},{"$f":"AND(#REF!,\"fEzAaloBzCQ=\")","v":{"$error":"#REF!"}},{"$f":"AND(#REF!,\"fEzAaloBzCU=\")","v":{"$error":"#REF!"}},{"$f":"AND(#REF!,\"fEzAaloBzCY=\")","v":{"$error":"#REF!"}},{"$f":"AND(#REF!,\"fEzAaloBzCc=\")","v":{"$error":"#REF!"}},{"$f":"AND(#REF!,\"fEzAaloBzCg=\")","v":{"$error":"#REF!"}},{"$f":"AND(#REF!,\"fEzAaloBzCk=\")","v":{"$error":"#REF!"}},{"$f":"AND(#REF!,\"fEzAaloBzCo=\")","v":{"$error":"#REF!"}},{"$f":"AND(#REF!,\"fEzAaloBzCs=\")","v":{"$error":"#REF!"}},{"$f":"AND(#REF!,\"fEzAaloBzCw=\")","v":{"$error":"#REF!"}},{"$f":"AND(#REF!,\"fEzAaloBzC0=\")","v":{"$error":"#REF!"}},{"$f":"AND(#REF!,\"fEzAaloBzC4=\")","v":{"$error":"#REF!"}},{"$f":"AND(#REF!,\"fEzAaloBzC8=\")","v":{"$error":"#REF!"}},{"$f":"AND(#REF!,\"fEzAaloBzDA=\")","v":{"$error":"#REF!"}},{"$f":"AND(#REF!,\"fEzAaloBzDE=\")","v":{"$error":"#REF!"}},{"$f":"AND(#REF!,\"fEzAaloBzDI=\")","v":{"$error":"#REF!"}},{"$f":"AND(#REF!,\"fEzAaloBzDM=\")","v":{"$error":"#REF!"}},{"$f":"AND(#REF!,\"fEzAaloBzDQ=\")","v":{"$error":"#REF!"}},{"$f":"AND(#REF!,\"fEzAaloBzDU=\")","v":{"$error":"#REF!"}},{"$f":"AND(#REF!,\"fEzAaloBzDY=\")","v":{"$error":"#REF!"}},{"$f":"AND(#REF!,\"fEzAaloBzDc=\")","v":{"$error":"#REF!"}},{"$f":"AND(#REF!,\"fEzAaloBzDg=\")","v":{"$error":"#REF!"}},{"$f":"AND(#REF!,\"fEzAaloBzDk=\")","v":{"$error":"#REF!"}},{"$f":"AND(#REF!,\"fEzAaloBzDo=\")","v":{"$error":"#REF!"}},{"$f":"AND(#REF!,\"fEzAaloBzDs=\")","v":{"$error":"#REF!"}},{"$f":"AND(#REF!,\"fEzAaloBzDw=\")","v":{"$error":"#REF!"}},{"$f":"AND(#REF!,\"fEzAaloBzD0=\")","v":{"$error":"#REF!"}},{"$f":"AND(#REF!,\"fEzAaloBzD4=\")","v":{"$error":"#REF!"}},{"$f":"AND(#REF!,\"fEzAaloBzD8=\")","v":{"$error":"#REF!"}},{"$f":"AND(#REF!,\"fEzAaloBzEA=\")","v":{"$error":"#REF!"}},{"$f":"AND(#REF!,\"fEzAaloBzEE=\")","v":{"$error":"#REF!"}},{"$f":"AND(#REF!,\"fEzAaloBzEI=\")","v":{"$error":"#REF!"}},{"$f":"AND(#REF!,\"fEzAaloBzEM=\")","v":{"$error":"#REF!"}},{"$f":"AND(#REF!,\"fEzAaloBzEQ=\")","v":{"$error":"#REF!"}},{"$f":"AND(#REF!,\"fEzAaloBzEU=\")","v":{"$error":"#REF!"}},{"$f":"AND(#REF!,\"fEzAaloBzEY=\")","v":{"$error":"#REF!"}},{"$f":"AND(#REF!,\"fEzAaloBzEc=\")","v":{"$error":"#REF!"}},{"$f":"AND(#REF!,\"fEzAaloBzEg=\")","v":{"$error":"#REF!"}},{"$f":"AND(#REF!,\"fEzAaloBzEk=\")","v":{"$error":"#REF!"}},{"$f":"AND(#REF!,\"fEzAaloBzEo=\")","v":{"$error":"#REF!"}},{"$f":"AND(#REF!,\"fEzAaloBzEs=\")","v":{"$error":"#REF!"}},{"$f":"AND(#REF!,\"fEzAaloBzEw=\")","v":{"$error":"#REF!"}},{"$f":"AND(#REF!,\"fEzAaloBzE0=\")","v":{"$error":"#REF!"}},{"$f":"AND(#REF!,\"fEzAaloBzE4=\")","v":{"$error":"#REF!"}},{"$f":"AND(#REF!,\"fEzAaloBzE8=\")","v":{"$error":"#REF!"}},{"$f":"AND(#REF!,\"fEzAaloBzFA=\")","v":{"$error":"#REF!"}},{"$f":"AND(#REF!,\"fEzAaloBzFE=\")","v":{"$error":"#REF!"}},{"$f":"AND(#REF!,\"fEzAaloBzFI=\")","v":{"$error":"#REF!"}},{"$f":"AND(#REF!,\"fEzAaloBzFM=\")","v":{"$error":"#REF!"}},{"$f":"AND(#REF!,\"fEzAaloBzFQ=\")","v":{"$error":"#REF!"}},{"$f":"AND(#REF!,\"fEzAaloBzFU=\")","v":{"$error":"#REF!"}},{"$f":"AND(#REF!,\"fEzAaloBzFY=\")","v":{"$error":"#REF!"}},{"$f":"AND(#REF!,\"fEzAaloBzFc=\")","v":{"$error":"#REF!"}},{"$f":"AND(#REF!,\"fEzAaloBzFg=\")","v":{"$error":"#REF!"}},{"$f":"AND(#REF!,\"fEzAaloBzFk=\")","v":{"$error":"#REF!"}},{"$f":"AND(#REF!,\"fEzAaloBzFo=\")","v":{"$error":"#REF!"}},{"$f":"AND(#REF!,\"fEzAaloBzFs=\")","v":{"$error":"#REF!"}},{"$f":"AND(#REF!,\"fEzAaloBzFw=\")","v":{"$error":"#REF!"}},{"$f":"AND(#REF!,\"fEzAaloBzF0=\")","v":{"$error":"#REF!"}},{"$f":"AND(#REF!,\"fEzAaloBzF4=\")","v":{"$error":"#REF!"}},{"$f":"AND(#REF!,\"fEzAaloBzF8=\")","v":{"$error":"#REF!"}},{"$f":"AND(#REF!,\"fEzAaloBzGA=\")","v":{"$error":"#REF!"}},{"$f":"AND(#REF!,\"fEzAaloBzGE=\")","v":{"$error":"#REF!"}},{"$f":"AND(#REF!,\"fEzAaloBzGI=\")","v":{"$error":"#REF!"}},{"$f":"AND(#REF!,\"fEzAaloBzGM=\")","v":{"$error":"#REF!"}},{"$f":"AND(#REF!,\"fEzAaloBzGQ=\")","v":{"$error":"#REF!"}},{"$f":"AND(#REF!,\"fEzAaloBzGU=\")","v":{"$error":"#REF!"}},{"$f":"AND(#REF!,\"fEzAaloBzGY=\")","v":{"$error":"#REF!"}},{"$f":"AND(#REF!,\"fEzAaloBzGc=\")","v":{"$error":"#REF!"}},{"$f":"AND(#REF!,\"fEzAaloBzGg=\")","v":{"$error":"#REF!"}},{"$f":"AND(#REF!,\"fEzAaloBzGk=\")","v":{"$error":"#REF!"}},{"$f":"AND(#REF!,\"fEzAaloBzGo=\")","v":{"$error":"#REF!"}},{"$f":"AND(#REF!,\"fEzAaloBzGs=\")","v":{"$error":"#REF!"}},{"$f":"AND(#REF!,\"fEzAaloBzGw=\")","v":{"$error":"#REF!"}},{"$f":"AND(#REF!,\"fEzAaloBzG0=\")","v":{"$error":"#REF!"}},{"$f":"AND(#REF!,\"fEzAaloBzG4=\")","v":{"$error":"#REF!"}},{"$f":"AND(#REF!,\"fEzAaloBzG8=\")","v":{"$error":"#REF!"}},{"$f":"AND(#REF!,\"fEzAaloBzHA=\")","v":{"$error":"#REF!"}},{"$f":"AND(#REF!,\"fEzAaloBzHE=\")","v":{"$error":"#REF!"}},{"$f":"AND(#REF!,\"fEzAaloBzHI=\")","v":{"$error":"#REF!"}},{"$f":"AND(#REF!,\"fEzAaloBzHM=\")","v":{"$error":"#REF!"}},{"$f":"AND(#REF!,\"fEzAaloBzHQ=\")","v":{"$error":"#REF!"}},{"$f":"AND(#REF!,\"fEzAaloBzHU=\")","v":{"$error":"#REF!"}},{"$f":"AND(#REF!,\"fEzAaloBzHY=\")","v":{"$error":"#REF!"}},{"$f":"AND(#REF!,\"fEzAaloBzHc=\")","v":{"$error":"#REF!"}},{"$f":"AND(#REF!,\"fEzAaloBzHg=\")","v":{"$error":"#REF!"}},{"$f":"AND(#REF!,\"fEzAaloBzHk=\")","v":{"$error":"#REF!"}},{"$f":"AND(#REF!,\"fEzAaloBzHo=\")","v":{"$error":"#REF!"}},{"$f":"AND(#REF!,\"fEzAaloBzHs=\")","v":{"$error":"#REF!"}},{"$f":"AND(#REF!,\"fEzAaloBzHw=\")","v":{"$error":"#REF!"}},{"$f":"AND(#REF!,\"fEzAaloBzH0=\")","v":{"$error":"#REF!"}},{"$f":"AND(#REF!,\"fEzAaloBzH4=\")","v":{"$error":"#REF!"}},{"$f":"AND(#REF!,\"fEzAaloBzH8=\")","v":{"$error":"#REF!"}},{"$f":"AND(#REF!,\"fEzAaloBzIA=\")","v":{"$error":"#REF!"}},{"$f":"AND(#REF!,\"fEzAaloBzIE=\")","v":{"$error":"#REF!"}},{"$f":"AND(#REF!,\"fEzAaloBzII=\")","v":{"$error":"#REF!"}},{"$f":"AND(#REF!,\"fEzAaloBzIM=\")","v":{"$error":"#REF!"}},{"$f":"AND(#REF!,\"fEzAaloBzIQ=\")","v":{"$error":"#REF!"}},{"$f":"AND(#REF!,\"fEzAaloBzIU=\")","v":{"$error":"#REF!"}},{"$f":"AND(#REF!,\"fEzAaloBzIY=\")","v":{"$error":"#REF!"}},{"$f":"AND(#REF!,\"fEzAaloBzIc=\")","v":{"$error":"#REF!"}},{"$f":"AND(#REF!,\"fEzAaloBzIg=\")","v":{"$error":"#REF!"}},{"$f":"AND(#REF!,\"fEzAaloBzIk=\")","v":{"$error":"#REF!"}},{"$f":"AND(#REF!,\"fEzAaloBzIo=\")","v":{"$error":"#REF!"}},{"$f":"AND(#REF!,\"fEzAaloBzIs=\")","v":{"$error":"#REF!"}},{"$f":"AND(#REF!,\"fEzAaloBzIw=\")","v":{"$error":"#REF!"}},{"$f":"AND(#REF!,\"fEzAaloBzI0=\")","v":{"$error":"#REF!"}},{"$f":"AND(#REF!,\"fEzAaloBzI4=\")","v":{"$error":"#REF!"}},{"$f":"AND(#REF!,\"fEzAaloBzI8=\")","v":{"$error":"#REF!"}},{"$f":"AND(#REF!,\"fEzAaloBzJA=\")","v":{"$error":"#REF!"}},{"$f":"AND(#REF!,\"fEzAaloBzJE=\")","v":{"$error":"#REF!"}},{"$f":"AND(#REF!,\"fEzAaloBzJI=\")","v":{"$error":"#REF!"}},{"$f":"AND(#REF!,\"fEzAaloBzJM=\")","v":{"$error":"#REF!"}},{"$f":"AND(#REF!,\"fEzAaloBzJQ=\")","v":{"$error":"#REF!"}},{"$f":"AND(#REF!,\"fEzAaloBzJU=\")","v":{"$error":"#REF!"}},{"$f":"AND(#REF!,\"fEzAaloBzJY=\")","v":{"$error":"#REF!"}},{"$f":"AND(#REF!,\"fEzAaloBzJc=\")","v":{"$error":"#REF!"}},{"$f":"AND(#REF!,\"fEzAaloBzJg=\")","v":{"$error":"#REF!"}},{"$f":"AND(#REF!,\"fEzAaloBzJk=\")","v":{"$error":"#REF!"}},{"$f":"AND(#REF!,\"fEzAaloBzJo=\")","v":{"$error":"#REF!"}},{"$f":"AND(#REF!,\"fEzAaloBzJs=\")","v":{"$error":"#REF!"}},{"$f":"AND(#REF!,\"fEzAaloBzJw=\")","v":{"$error":"#REF!"}},{"$f":"AND(#REF!,\"fEzAaloBzJ0=\")","v":{"$error":"#REF!"}},{"$f":"AND(#REF!,\"fEzAaloBzJ4=\")","v":{"$error":"#REF!"}},{"$f":"AND(#REF!,\"fEzAaloBzJ8=\")","v":{"$error":"#REF!"}},{"$f":"AND(#REF!,\"fEzAaloBzKA=\")","v":{"$error":"#REF!"}},{"$f":"AND(#REF!,\"fEzAaloBzKE=\")","v":{"$error":"#REF!"}},{"$f":"AND(#REF!,\"fEzAaloBzKI=\")","v":{"$error":"#REF!"}},{"$f":"AND(#REF!,\"fEzAaloBzKM=\")","v":{"$error":"#REF!"}},{"$f":"AND(#REF!,\"fEzAaloBzKQ=\")","v":{"$error":"#REF!"}},{"$f":"AND(#REF!,\"fEzAaloBzKU=\")","v":{"$error":"#REF!"}},{"$f":"AND(#REF!,\"fEzAaloBzKY=\")","v":{"$error":"#REF!"}},{"$f":"AND(#REF!,\"fEzAaloBzKc=\")","v":{"$error":"#REF!"}},{"$f":"AND(#REF!,\"fEzAaloBzKg=\")","v":{"$error":"#REF!"}},{"$f":"AND(#REF!,\"fEzAaloBzKk=\")","v":{"$error":"#REF!"}},{"$f":"AND(#REF!,\"fEzAaloBzKo=\")","v":{"$error":"#REF!"}},{"$f":"AND(#REF!,\"fEzAaloBzKs=\")","v":{"$error":"#REF!"}},{"$f":"AND(#REF!,\"fEzAaloBzKw=\")","v":{"$error":"#REF!"}},{"$f":"AND(#REF!,\"fEzAaloBzK0=\")","v":{"$error":"#REF!"}},{"$f":"AND(#REF!,\"fEzAaloBzK4=\")","v":{"$error":"#REF!"}},{"$f":"AND(#REF!,\"fEzAaloBzK8=\")","v":{"$error":"#REF!"}},{"$f":"AND(#REF!,\"fEzAaloBzLA=\")","v":{"$error":"#REF!"}},{"$f":"AND(#REF!,\"fEzAaloBzLE=\")","v":{"$error":"#REF!"}},{"$f":"AND(#REF!,\"fEzAaloBzLI=\")","v":{"$error":"#REF!"}},{"$f":"AND(#REF!,\"fEzAaloBzLM=\")","v":{"$error":"#REF!"}},{"$f":"AND(#REF!,\"fEzAaloBzLQ=\")","v":{"$error":"#REF!"}},{"$f":"AND(#REF!,\"fEzAaloBzLU=\")","v":{"$error":"#REF!"}},{"$f":"AND(#REF!,\"fEzAaloBzLY=\")","v":{"$error":"#REF!"}},{"$f":"AND(#REF!,\"fEzAaloBzLc=\")","v":{"$error":"#REF!"}},{"$f":"AND(#REF!,\"fEzAaloBzLg=\")","v":{"$error":"#REF!"}},{"$f":"AND(#REF!,\"fEzAaloBzLk=\")","v":{"$error":"#REF!"}},{"$f":"AND(#REF!,\"fEzAaloBzLo=\")","v":{"$error":"#REF!"}},{"$f":"AND(#REF!,\"fEzAaloBzLs=\")","v":{"$error":"#REF!"}},{"$f":"AND(#REF!,\"fEzAaloBzLw=\")","v":{"$error":"#REF!"}},{"$f":"AND(#REF!,\"fEzAaloBzL0=\")","v":{"$error":"#REF!"}},{"$f":"IF(#REF!,\"fEzAaloBzL4=\",0)","v":{"$error":"#REF!"}},{"$f":"AND(#REF!,\"fEzAaloBzL8=\")","v":{"$error":"#REF!"}},{"$f":"AND(#REF!,\"fEzAaloBzMA=\")","v":{"$error":"#REF!"}},{"$f":"AND(#REF!,\"fEzAaloBzME=\")","v":{"$error":"#REF!"}},{"$f":"AND(#REF!,\"fEzAaloBzMI=\")","v":{"$error":"#REF!"}},{"$f":"AND(#REF!,\"fEzAaloBzMM=\")","v":{"$error":"#REF!"}},{"$f":"AND(#REF!,\"fEzAaloBzMQ=\")","v":{"$error":"#REF!"}},{"$f":"AND(#REF!,\"fEzAaloBzMU=\")","v":{"$error":"#REF!"}},{"$f":"AND(#REF!,\"fEzAaloBzMY=\")","v":{"$error":"#REF!"}},{"$f":"AND(#REF!,\"fEzAaloBzMc=\")","v":{"$error":"#REF!"}},{"$f":"AND(#REF!,\"fEzAaloBzMg=\")","v":{"$error":"#REF!"}},{"$f":"AND(#REF!,\"fEzAaloBzMk=\")","v":{"$error":"#REF!"}},{"$f":"AND(#REF!,\"fEzAaloBzMo=\")","v":{"$error":"#REF!"}},{"$f":"AND(#REF!,\"fEzAaloBzMs=\")","v":{"$error":"#REF!"}},{"$f":"AND(#REF!,\"fEzAaloBzMw=\")","v":{"$error":"#REF!"}},{"$f":"AND(#REF!,\"fEzAaloBzM0=\")","v":{"$error":"#REF!"}},{"$f":"AND(#REF!,\"fEzAaloBzM4=\")","v":{"$error":"#REF!"}},{"$f":"AND(#REF!,\"fEzAaloBzM8=\")","v":{"$error":"#REF!"}},{"$f":"AND(#REF!,\"fEzAaloBzNA=\")","v":{"$error":"#REF!"}},{"$f":"AND(#REF!,\"fEzAaloBzNE=\")","v":{"$error":"#REF!"}},{"$f":"AND(#REF!,\"fEzAaloBzNI=\")","v":{"$error":"#REF!"}},{"$f":"AND(#REF!,\"fEzAaloBzNM=\")","v":{"$error":"#REF!"}},{"$f":"AND(#REF!,\"fEzAaloBzNQ=\")","v":{"$error":"#REF!"}},{"$f":"AND(#REF!,\"fEzAaloBzNU=\")","v":{"$error":"#REF!"}},{"$f":"AND(#REF!,\"fEzAaloBzNY=\")","v":{"$error":"#REF!"}},{"$f":"AND(#REF!,\"fEzAaloBzNc=\")","v":{"$error":"#REF!"}},{"$f":"AND(#REF!,\"fEzAaloBzNg=\")","v":{"$error":"#REF!"}},{"$f":"AND(#REF!,\"fEzAaloBzNk=\")","v":{"$error":"#REF!"}},{"$f":"AND(#REF!,\"fEzAaloBzNo=\")","v":{"$error":"#REF!"}},{"$f":"AND(#REF!,\"fEzAaloBzNs=\")","v":{"$error":"#REF!"}},{"$f":"AND(#REF!,\"fEzAaloBzNw=\")","v":{"$error":"#REF!"}},{"$f":"AND(#REF!,\"fEzAaloBzN0=\")","v":{"$error":"#REF!"}},{"$f":"AND(#REF!,\"fEzAaloBzN4=\")","v":{"$error":"#REF!"}},{"$f":"AND(#REF!,\"fEzAaloBzN8=\")","v":{"$error":"#REF!"}},{"$f":"AND(#REF!,\"fEzAaloBzOA=\")","v":{"$error":"#REF!"}},{"$f":"AND(#REF!,\"fEzAaloBzOE=\")","v":{"$error":"#REF!"}},{"$f":"AND(#REF!,\"fEzAaloBzOI=\")","v":{"$error":"#REF!"}},{"$f":"AND(#REF!,\"fEzAaloBzOM=\")","v":{"$error":"#REF!"}},{"$f":"AND(#REF!,\"fEzAaloBzOQ=\")","v":{"$error":"#REF!"}},{"$f":"AND(#REF!,\"fEzAaloBzOU=\")","v":{"$error":"#REF!"}},{"$f":"AND(#REF!,\"fEzAaloBzOY=\")","v":{"$error":"#REF!"}},{"$f":"AND(#REF!,\"fEzAaloBzOc=\")","v":{"$error":"#REF!"}},{"$f":"AND(#REF!,\"fEzAaloBzOg=\")","v":{"$error":"#REF!"}},{"$f":"AND(#REF!,\"fEzAaloBzOk=\")","v":{"$error":"#REF!"}},{"$f":"AND(#REF!,\"fEzAaloBzOo=\")","v":{"$error":"#REF!"}},{"$f":"AND(#REF!,\"fEzAaloBzOs=\")","v":{"$error":"#REF!"}},{"$f":"AND(#REF!,\"fEzAaloBzOw=\")","v":{"$error":"#REF!"}},{"$f":"AND(#REF!,\"fEzAaloBzO0=\")","v":{"$error":"#REF!"}},{"$f":"AND(#REF!,\"fEzAaloBzO4=\")","v":{"$error":"#REF!"}},{"$f":"AND(#REF!,\"fEzAaloBzO8=\")","v":{"$error":"#REF!"}},{"$f":"AND(#REF!,\"fEzAaloBzPA=\")","v":{"$error":"#REF!"}},{"$f":"AND(#REF!,\"fEzAaloBzPE=\")","v":{"$error":"#REF!"}},{"$f":"AND(#REF!,\"fEzAaloBzPI=\")","v":{"$error":"#REF!"}},{"$f":"AND(#REF!,\"fEzAaloBzPM=\")","v":{"$error":"#REF!"}},{"$f":"AND(#REF!,\"fEzAaloBzPQ=\")","v":{"$error":"#REF!"}},{"$f":"AND(#REF!,\"fEzAaloBzPU=\")","v":{"$error":"#REF!"}},{"$f":"AND(#REF!,\"fEzAaloBzPY=\")","v":{"$error":"#REF!"}},{"$f":"AND(#REF!,\"fEzAaloBzPc=\")","v":{"$error":"#REF!"}},{"$f":"AND(#REF!,\"fEzAaloBzPg=\")","v":{"$error":"#REF!"}},{"$f":"AND(#REF!,\"fEzAaloBzPk=\")","v":{"$error":"#REF!"}},{"$f":"AND(#REF!,\"fEzAaloBzPo=\")","v":{"$error":"#REF!"}},{"$f":"AND(#REF!,\"fEzAaloBzPs=\")","v":{"$error":"#REF!"}},{"$f":"AND(#REF!,\"fEzAaloBzPw=\")","v":{"$error":"#REF!"}},{"$f":"AND(#REF!,\"fEzAaloBzP0=\")","v":{"$error":"#REF!"}},{"$f":"AND(#REF!,\"fEzAaloBzP4=\")","v":{"$error":"#REF!"}},{"$f":"AND(#REF!,\"fEzAaloBzP8=\")","v":{"$error":"#REF!"}}]
[{"$f":"AND(#REF!,\"DFiWZBuN8AA=\")","v":{"$error":"#REF!"}},{"$f":"AND(#REF!,\"DFiWZBuN8AE=\")","v":{"$error":"#REF!"}},{"$f":"AND(#REF!,\"DFiWZBuN8AI=\")","v":{"$error":"#REF!"}},{"$f":"AND(#REF!,\"DFiWZBuN8AM=\")","v":{"$error":"#REF!"}},{"$f":"AND(#REF!,\"DFiWZBuN8AQ=\")","v":{"$error":"#REF!"}},{"$f":"AND(#REF!,\"DFiWZBuN8AU=\")","v":{"$error":"#REF!"}},{"$f":"AND(#REF!,\"DFiWZBuN8AY=\")","v":{"$error":"#REF!"}},{"$f":"AND(#REF!,\"DFiWZBuN8Ac=\")","v":{"$error":"#REF!"}},{"$f":"AND(#REF!,\"DFiWZBuN8Ag=\")","v":{"$error":"#REF!"}},{"$f":"AND(#REF!,\"DFiWZBuN8Ak=\")","v":{"$error":"#REF!"}},{"$f":"AND(#REF!,\"DFiWZBuN8Ao=\")","v":{"$error":"#REF!"}},{"$f":"AND(#REF!,\"DFiWZBuN8As=\")","v":{"$error":"#REF!"}},{"$f":"AND(#REF!,\"DFiWZBuN8Aw=\")","v":{"$error":"#REF!"}},{"$f":"AND(#REF!,\"DFiWZBuN8A0=\")","v":{"$error":"#REF!"}},{"$f":"AND(#REF!,\"DFiWZBuN8A4=\")","v":{"$error":"#REF!"}},{"$f":"AND(#REF!,\"DFiWZBuN8A8=\")","v":{"$error":"#REF!"}},{"$f":"AND(#REF!,\"DFiWZBuN8BA=\")","v":{"$error":"#REF!"}},{"$f":"AND(#REF!,\"DFiWZBuN8BE=\")","v":{"$error":"#REF!"}},{"$f":"AND(#REF!,\"DFiWZBuN8BI=\")","v":{"$error":"#REF!"}},{"$f":"AND(#REF!,\"DFiWZBuN8BM=\")","v":{"$error":"#REF!"}},{"$f":"AND(#REF!,\"DFiWZBuN8BQ=\")","v":{"$error":"#REF!"}},{"$f":"AND(#REF!,\"DFiWZBuN8BU=\")","v":{"$error":"#REF!"}},{"$f":"AND(#REF!,\"DFiWZBuN8BY=\")","v":{"$error":"#REF!"}},{"$f":"AND(#REF!,\"DFiWZBuN8Bc=\")","v":{"$error":"#REF!"}},{"$f":"AND(#REF!,\"DFiWZBuN8Bg=\")","v":{"$error":"#REF!"}},{"$f":"AND(#REF!,\"DFiWZBuN8Bk=\")","v":{"$error":"#REF!"}},{"$f":"AND(#REF!,\"DFiWZBuN8Bo=\")","v":{"$error":"#REF!"}},{"$f":"AND(#REF!,\"DFiWZBuN8Bs=\")","v":{"$error":"#REF!"}},{"$f":"AND(#REF!,\"DFiWZBuN8Bw=\")","v":{"$error":"#REF!"}},{"$f":"AND(#REF!,\"DFiWZBuN8B0=\")","v":{"$error":"#REF!"}},{"$f":"AND(#REF!,\"DFiWZBuN8B4=\")","v":{"$error":"#REF!"}},{"$f":"AND(#REF!,\"DFiWZBuN8B8=\")","v":{"$error":"#REF!"}},{"$f":"AND(#REF!,\"DFiWZBuN8CA=\")","v":{"$error":"#REF!"}},{"$f":"AND(#REF!,\"DFiWZBuN8CE=\")","v":{"$error":"#REF!"}},{"$f":"AND(#REF!,\"DFiWZBuN8CI=\")","v":{"$error":"#REF!"}},{"$f":"AND(#REF!,\"DFiWZBuN8CM=\")","v":{"$error":"#REF!"}},{"$f":"AND(#REF!,\"DFiWZBuN8CQ=\")","v":{"$error":"#REF!"}},{"$f":"AND(#REF!,\"DFiWZBuN8CU=\")","v":{"$error":"#REF!"}},{"$f":"AND(#REF!,\"DFiWZBuN8CY=\")","v":{"$error":"#REF!"}},{"$f":"AND(#REF!,\"DFiWZBuN8Cc=\")","v":{"$error":"#REF!"}},{"$f":"AND(#REF!,\"DFiWZBuN8Cg=\")","v":{"$error":"#REF!"}},{"$f":"AND(#REF!,\"DFiWZBuN8Ck=\")","v":{"$error":"#REF!"}},{"$f":"AND(#REF!,\"DFiWZBuN8Co=\")","v":{"$error":"#REF!"}},{"$f":"AND(#REF!,\"DFiWZBuN8Cs=\")","v":{"$error":"#REF!"}},{"$f":"AND(#REF!,\"DFiWZBuN8Cw=\")","v":{"$error":"#REF!"}},{"$f":"AND(#REF!,\"DFiWZBuN8C0=\")","v":{"$error":"#REF!"}},{"$f":"AND(#REF!,\"DFiWZBuN8C4=\")","v":{"$error":"#REF!"}},{"$f":"AND(#REF!,\"DFiWZBuN8C8=\")","v":{"$error":"#REF!"}},{"$f":"AND(#REF!,\"DFiWZBuN8DA=\")","v":{"$error":"#REF!"}},{"$f":"AND(#REF!,\"DFiWZBuN8DE=\")","v":{"$error":"#REF!"}},{"$f":"AND(#REF!,\"DFiWZBuN8DI=\")","v":{"$error":"#REF!"}},{"$f":"AND(#REF!,\"DFiWZBuN8DM=\")","v":{"$error":"#REF!"}},{"$f":"AND(#REF!,\"DFiWZBuN8DQ=\")","v":{"$error":"#REF!"}},{"$f":"AND(#REF!,\"DFiWZBuN8DU=\")","v":{"$error":"#REF!"}},{"$f":"AND(#REF!,\"DFiWZBuN8DY=\")","v":{"$error":"#REF!"}},{"$f":"AND(#REF!,\"DFiWZBuN8Dc=\")","v":{"$error":"#REF!"}},{"$f":"AND(#REF!,\"DFiWZBuN8Dg=\")","v":{"$error":"#REF!"}},{"$f":"AND(#REF!,\"DFiWZBuN8Dk=\")","v":{"$error":"#REF!"}},{"$f":"AND(#REF!,\"DFiWZBuN8Do=\")","v":{"$error":"#REF!"}},{"$f":"AND(#REF!,\"DFiWZBuN8Ds=\")","v":{"$error":"#REF!"}},{"$f":"AND(#REF!,\"DFiWZBuN8Dw=\")","v":{"$error":"#REF!"}},{"$f":"AND(#REF!,\"DFiWZBuN8D0=\")","v":{"$error":"#REF!"}},{"$f":"AND(#REF!,\"DFiWZBuN8D4=\")","v":{"$error":"#REF!"}},{"$f":"AND(#REF!,\"DFiWZBuN8D8=\")","v":{"$error":"#REF!"}},{"$f":"AND(#REF!,\"DFiWZBuN8EA=\")","v":{"$error":"#REF!"}},{"$f":"AND(#REF!,\"DFiWZBuN8EE=\")","v":{"$error":"#REF!"}},{"$f":"AND(#REF!,\"DFiWZBuN8EI=\")","v":{"$error":"#REF!"}},{"$f":"AND(#REF!,\"DFiWZBuN8EM=\")","v":{"$error":"#REF!"}},{"$f":"AND(#REF!,\"DFiWZBuN8EQ=\")","v":{"$error":"#REF!"}},{"$f":"AND(#REF!,\"DFiWZBuN8EU=\")","v":{"$error":"#REF!"}},{"$f":"AND(#REF!,\"DFiWZBuN8EY=\")","v":{"$error":"#REF!"}},{"$f":"AND(#REF!,\"DFiWZBuN8Ec=\")","v":{"$error":"#REF!"}},{"$f":"AND(#REF!,\"DFiWZBuN8Eg=\")","v":{"$error":"#REF!"}},{"$f":"AND(#REF!,\"DFiWZBuN8Ek=\")","v":{"$error":"#REF!"}},{"$f":"AND(#REF!,\"DFiWZBuN8Eo=\")","v":{"$error":"#REF!"}},{"$f":"AND(#REF!,\"DFiWZBuN8Es=\")","v":{"$error":"#REF!"}},{"$f":"AND(#REF!,\"DFiWZBuN8Ew=\")","v":{"$error":"#REF!"}},{"$f":"AND(#REF!,\"DFiWZBuN8E0=\")","v":{"$error":"#REF!"}},{"$f":"AND(#REF!,\"DFiWZBuN8E4=\")","v":{"$error":"#REF!"}},{"$f":"AND(#REF!,\"DFiWZBuN8E8=\")","v":{"$error":"#REF!"}},{"$f":"AND(#REF!,\"DFiWZBuN8FA=\")","v":{"$error":"#REF!"}},{"$f":"AND(#REF!,\"DFiWZBuN8FE=\")","v":{"$error":"#REF!"}},{"$f":"AND(#REF!,\"DFiWZBuN8FI=\")","v":{"$error":"#REF!"}},{"$f":"AND(#REF!,\"DFiWZBuN8FM=\")","v":{"$error":"#REF!"}},{"$f":"AND(#REF!,\"DFiWZBuN8FQ=\")","v":{"$error":"#REF!"}},{"$f":"AND(#REF!,\"DFiWZBuN8FU=\")","v":{"$error":"#REF!"}},{"$f":"AND(#REF!,\"DFiWZBuN8FY=\")","v":{"$error":"#REF!"}},{"$f":"AND(#REF!,\"DFiWZBuN8Fc=\")","v":{"$error":"#REF!"}},{"$f":"AND(#REF!,\"DFiWZBuN8Fg=\")","v":{"$error":"#REF!"}},{"$f":"AND(#REF!,\"DFiWZBuN8Fk=\")","v":{"$error":"#REF!"}},{"$f":"AND(#REF!,\"DFiWZBuN8Fo=\")","v":{"$error":"#REF!"}},{"$f":"AND(#REF!,\"DFiWZBuN8Fs=\")","v":{"$error":"#REF!"}},{"$f":"AND(#REF!,\"DFiWZBuN8Fw=\")","v":{"$error":"#REF!"}},{"$f":"AND(#REF!,\"DFiWZBuN8F0=\")","v":{"$error":"#REF!"}},{"$f":"AND(#REF!,\"DFiWZBuN8F4=\")","v":{"$error":"#REF!"}},{"$f":"AND(#REF!,\"DFiWZBuN8F8=\")","v":{"$error":"#REF!"}},{"$f":"AND(#REF!,\"DFiWZBuN8GA=\")","v":{"$error":"#REF!"}},{"$f":"AND(#REF!,\"DFiWZBuN8GE=\")","v":{"$error":"#REF!"}},{"$f":"AND(#REF!,\"DFiWZBuN8GI=\")","v":{"$error":"#REF!"}},{"$f":"AND(#REF!,\"DFiWZBuN8GM=\")","v":{"$error":"#REF!"}},{"$f":"AND(#REF!,\"DFiWZBuN8GQ=\")","v":{"$error":"#REF!"}},{"$f":"AND(#REF!,\"DFiWZBuN8GU=\")","v":{"$error":"#REF!"}},{"$f":"AND(#REF!,\"DFiWZBuN8GY=\")","v":{"$error":"#REF!"}},{"$f":"AND(#REF!,\"DFiWZBuN8Gc=\")","v":{"$error":"#REF!"}},{"$f":"AND(#REF!,\"DFiWZBuN8Gg=\")","v":{"$error":"#REF!"}},{"$f":"AND(#REF!,\"DFiWZBuN8Gk=\")","v":{"$error":"#REF!"}},{"$f":"AND(#REF!,\"DFiWZBuN8Go=\")","v":{"$error":"#REF!"}},{"$f":"AND(#REF!,\"DFiWZBuN8Gs=\")","v":{"$error":"#REF!"}},{"$f":"AND(#REF!,\"DFiWZBuN8Gw=\")","v":{"$error":"#REF!"}},{"$f":"AND(#REF!,\"DFiWZBuN8G0=\")","v":{"$error":"#REF!"}},{"$f":"AND(#REF!,\"DFiWZBuN8G4=\")","v":{"$error":"#REF!"}},{"$f":"AND(#REF!,\"DFiWZBuN8G8=\")","v":{"$error":"#REF!"}},{"$f":"AND(#REF!,\"DFiWZBuN8HA=\")","v":{"$error":"#REF!"}},{"$f":"AND(#REF!,\"DFiWZBuN8HE=\")","v":{"$error":"#REF!"}},{"$f":"AND(#REF!,\"DFiWZBuN8HI=\")","v":{"$error":"#REF!"}},{"$f":"AND(#REF!,\"DFiWZBuN8HM=\")","v":{"$error":"#REF!"}},{"$f":"AND(#REF!,\"DFiWZBuN8HQ=\")","v":{"$error":"#REF!"}},{"$f":"AND(#REF!,\"DFiWZBuN8HU=\")","v":{"$error":"#REF!"}},{"$f":"AND(#REF!,\"DFiWZBuN8HY=\")","v":{"$error":"#REF!"}},{"$f":"AND(#REF!,\"DFiWZBuN8Hc=\")","v":{"$error":"#REF!"}},{"$f":"AND(#REF!,\"DFiWZBuN8Hg=\")","v":{"$error":"#REF!"}},{"$f":"AND(#REF!,\"DFiWZBuN8Hk=\")","v":{"$error":"#REF!"}},{"$f":"AND(#REF!,\"DFiWZBuN8Ho=\")","v":{"$error":"#REF!"}},{"$f":"AND(#REF!,\"DFiWZBuN8Hs=\")","v":{"$error":"#REF!"}},{"$f":"AND(#REF!,\"DFiWZBuN8Hw=\")","v":{"$error":"#REF!"}},{"$f":"AND(#REF!,\"DFiWZBuN8H0=\")","v":{"$error":"#REF!"}},{"$f":"AND(#REF!,\"DFiWZBuN8H4=\")","v":{"$error":"#REF!"}},{"$f":"AND(#REF!,\"DFiWZBuN8H8=\")","v":{"$error":"#REF!"}},{"$f":"AND(#REF!,\"DFiWZBuN8IA=\")","v":{"$error":"#REF!"}},{"$f":"AND(#REF!,\"DFiWZBuN8IE=\")","v":{"$error":"#REF!"}},{"$f":"AND(#REF!,\"DFiWZBuN8II=\")","v":{"$error":"#REF!"}},{"$f":"AND(#REF!,\"DFiWZBuN8IM=\")","v":{"$error":"#REF!"}},{"$f":"AND(#REF!,\"DFiWZBuN8IQ=\")","v":{"$error":"#REF!"}},{"$f":"IF(#REF!,\"DFiWZBuN8IU=\",0)","v":{"$error":"#REF!"}},{"$f":"AND(#REF!,\"DFiWZBuN8IY=\")","v":{"$error":"#REF!"}},{"$f":"AND(#REF!,\"DFiWZBuN8Ic=\")","v":{"$error":"#REF!"}},{"$f":"AND(#REF!,\"DFiWZBuN8Ig=\")","v":{"$error":"#REF!"}},{"$f":"AND(#REF!,\"DFiWZBuN8Ik=\")","v":{"$error":"#REF!"}},{"$f":"AND(#REF!,\"DFiWZBuN8Io=\")","v":{"$error":"#REF!"}},{"$f":"AND(#REF!,\"DFiWZBuN8Is=\")","v":{"$error":"#REF!"}},{"$f":"AND(#REF!,\"DFiWZBuN8Iw=\")","v":{"$error":"#REF!"}},{"$f":"AND(#REF!,\"DFiWZBuN8I0=\")","v":{"$error":"#REF!"}},{"$f":"AND(#REF!,\"DFiWZBuN8I4=\")","v":{"$error":"#REF!"}},{"$f":"AND(#REF!,\"DFiWZBuN8I8=\")","v":{"$error":"#REF!"}},{"$f":"AND(#REF!,\"DFiWZBuN8JA=\")","v":{"$error":"#REF!"}},{"$f":"AND(#REF!,\"DFiWZBuN8JE=\")","v":{"$error":"#REF!"}},{"$f":"AND(#REF!,\"DFiWZBuN8JI=\")","v":{"$error":"#REF!"}},{"$f":"AND(#REF!,\"DFiWZBuN8JM=\")","v":{"$error":"#REF!"}},{"$f":"AND(#REF!,\"DFiWZBuN8JQ=\")","v":{"$error":"#REF!"}},{"$f":"AND(#REF!,\"DFiWZBuN8JU=\")","v":{"$error":"#REF!"}},{"$f":"AND(#REF!,\"DFiWZBuN8JY=\")","v":{"$error":"#REF!"}},{"$f":"AND(#REF!,\"DFiWZBuN8Jc=\")","v":{"$error":"#REF!"}},{"$f":"AND(#REF!,\"DFiWZBuN8Jg=\")","v":{"$error":"#REF!"}},{"$f":"AND(#REF!,\"DFiWZBuN8Jk=\")","v":{"$error":"#REF!"}},{"$f":"AND(#REF!,\"DFiWZBuN8Jo=\")","v":{"$error":"#REF!"}},{"$f":"AND(#REF!,\"DFiWZBuN8Js=\")","v":{"$error":"#REF!"}},{"$f":"AND(#REF!,\"DFiWZBuN8Jw=\")","v":{"$error":"#REF!"}},{"$f":"AND(#REF!,\"DFiWZBuN8J0=\")","v":{"$error":"#REF!"}},{"$f":"AND(#REF!,\"DFiWZBuN8J4=\")","v":{"$error":"#REF!"}},{"$f":"AND(#REF!,\"DFiWZBuN8J8=\")","v":{"$error":"#REF!"}},{"$f":"AND(#REF!,\"DFiWZBuN8KA=\")","v":{"$error":"#REF!"}},{"$f":"AND(#REF!,\"DFiWZBuN8KE=\")","v":{"$error":"#REF!"}},{"$f":"AND(#REF!,\"DFiWZBuN8KI=\")","v":{"$error":"#REF!"}},{"$f":"AND(#REF!,\"DFiWZBuN8KM=\")","v":{"$error":"#REF!"}},{"$f":"AND(#REF!,\"DFiWZBuN8KQ=\")","v":{"$error":"#REF!"}},{"$f":"AND(#REF!,\"DFiWZBuN8KU=\")","v":{"$error":"#REF!"}},{"$f":"AND(#REF!,\"DFiWZBuN8KY=\")","v":{"$error":"#REF!"}},{"$f":"AND(#REF!,\"DFiWZBuN8Kc=\")","v":{"$error":"#REF!"}},{"$f":"AND(#REF!,\"DFiWZBuN8Kg=\")","v":{"$error":"#REF!"}},{"$f":"AND(#REF!,\"DFiWZBuN8Kk=\")","v":{"$error":"#REF!"}},{"$f":"AND(#REF!,\"DFiWZBuN8Ko=\")","v":{"$error":"#REF!"}},{"$f":"AND(#REF!,\"DFiWZBuN8Ks=\")","v":{"$error":"#REF!"}},{"$f":"AND(#REF!,\"DFiWZBuN8Kw=\")","v":{"$error":"#REF!"}},{"$f":"AND(#REF!,\"DFiWZBuN8K0=\")","v":{"$error":"#REF!"}},{"$f":"AND(#REF!,\"DFiWZBuN8K4=\")","v":{"$error":"#REF!"}},{"$f":"AND(#REF!,\"DFiWZBuN8K8=\")","v":{"$error":"#REF!"}},{"$f":"AND(#REF!,\"DFiWZBuN8LA=\")","v":{"$error":"#REF!"}},{"$f":"AND(#REF!,\"DFiWZBuN8LE=\")","v":{"$error":"#REF!"}},{"$f":"AND(#REF!,\"DFiWZBuN8LI=\")","v":{"$error":"#REF!"}},{"$f":"AND(#REF!,\"DFiWZBuN8LM=\")","v":{"$error":"#REF!"}},{"$f":"AND(#REF!,\"DFiWZBuN8LQ=\")","v":{"$error":"#REF!"}},{"$f":"AND(#REF!,\"DFiWZBuN8LU=\")","v":{"$error":"#REF!"}},{"$f":"AND(#REF!,\"DFiWZBuN8LY=\")","v":{"$error":"#REF!"}},{"$f":"AND(#REF!,\"DFiWZBuN8Lc=\")","v":{"$error":"#REF!"}},{"$f":"AND(#REF!,\"DFiWZBuN8Lg=\")","v":{"$error":"#REF!"}},{"$f":"AND(#REF!,\"DFiWZBuN8Lk=\")","v":{"$error":"#REF!"}},{"$f":"AND(#REF!,\"DFiWZBuN8Lo=\")","v":{"$error":"#REF!"}},{"$f":"AND(#REF!,\"DFiWZBuN8Ls=\")","v":{"$error":"#REF!"}},{"$f":"AND(#REF!,\"DFiWZBuN8Lw=\")","v":{"$error":"#REF!"}},{"$f":"AND(#REF!,\"DFiWZBuN8L0=\")","v":{"$error":"#REF!"}},{"$f":"AND(#REF!,\"DFiWZBuN8L4=\")","v":{"$error":"#REF!"}},{"$f":"AND(#REF!,\"DFiWZBuN8L8=\")","v":{"$error":"#REF!"}},{"$f":"AND(#REF!,\"DFiWZBuN8MA=\")","v":{"$error":"#REF!"}},{"$f":"AND(#REF!,\"DFiWZBuN8ME=\")","v":{"$error":"#REF!"}},{"$f":"AND(#REF!,\"DFiWZBuN8MI=\")","v":{"$error":"#REF!"}},{"$f":"AND(#REF!,\"DFiWZBuN8MM=\")","v":{"$error":"#REF!"}},{"$f":"AND(#REF!,\"DFiWZBuN8MQ=\")","v":{"$error":"#REF!"}},{"$f":"AND(#REF!,\"DFiWZBuN8MU=\")","v":{"$error":"#REF!"}},{"$f":"AND(#REF!,\"DFiWZBuN8MY=\")","v":{"$error":"#REF!"}},{"$f":"AND(#REF!,\"DFiWZBuN8Mc=\")","v":{"$error":"#REF!"}},{"$f":"AND(#REF!,\"DFiWZBuN8Mg=\")","v":{"$error":"#REF!"}},{"$f":"AND(#REF!,\"DFiWZBuN8Mk=\")","v":{"$error":"#REF!"}},{"$f":"AND(#REF!,\"DFiWZBuN8Mo=\")","v":{"$error":"#REF!"}},{"$f":"AND(#REF!,\"DFiWZBuN8Ms=\")","v":{"$error":"#REF!"}},{"$f":"AND(#REF!,\"DFiWZBuN8Mw=\")","v":{"$error":"#REF!"}},{"$f":"AND(#REF!,\"DFiWZBuN8M0=\")","v":{"$error":"#REF!"}},{"$f":"AND(#REF!,\"DFiWZBuN8M4=\")","v":{"$error":"#REF!"}},{"$f":"AND(#REF!,\"DFiWZBuN8M8=\")","v":{"$error":"#REF!"}},{"$f":"AND(#REF!,\"DFiWZBuN8NA=\")","v":{"$error":"#REF!"}},{"$f":"AND(#REF!,\"DFiWZBuN8NE=\")","v":{"$error":"#REF!"}},{"$f":"AND(#REF!,\"DFiWZBuN8NI=\")","v":{"$error":"#REF!"}},{"$f":"AND(#REF!,\"DFiWZBuN8NM=\")","v":{"$error":"#REF!"}},{"$f":"AND(#REF!,\"DFiWZBuN8NQ=\")","v":{"$error":"#REF!"}},{"$f":"AND(#REF!,\"DFiWZBuN8NU=\")","v":{"$error":"#REF!"}},{"$f":"AND(#REF!,\"DFiWZBuN8NY=\")","v":{"$error":"#REF!"}},{"$f":"AND(#REF!,\"DFiWZBuN8Nc=\")","v":{"$error":"#REF!"}},{"$f":"AND(#REF!,\"DFiWZBuN8Ng=\")","v":{"$error":"#REF!"}},{"$f":"AND(#REF!,\"DFiWZBuN8Nk=\")","v":{"$error":"#REF!"}},{"$f":"AND(#REF!,\"DFiWZBuN8No=\")","v":{"$error":"#REF!"}},{"$f":"AND(#REF!,\"DFiWZBuN8Ns=\")","v":{"$error":"#REF!"}},{"$f":"AND(#REF!,\"DFiWZBuN8Nw=\")","v":{"$error":"#REF!"}},{"$f":"AND(#REF!,\"DFiWZBuN8N0=\")","v":{"$error":"#REF!"}},{"$f":"AND(#REF!,\"DFiWZBuN8N4=\")","v":{"$error":"#REF!"}},{"$f":"AND(#REF!,\"DFiWZBuN8N8=\")","v":{"$error":"#REF!"}},{"$f":"AND(#REF!,\"DFiWZBuN8OA=\")","v":{"$error":"#REF!"}},{"$f":"AND(#REF!,\"DFiWZBuN8OE=\")","v":{"$error":"#REF!"}},{"$f":"AND(#REF!,\"DFiWZBuN8OI=\")","v":{"$error":"#REF!"}},{"$f":"AND(#REF!,\"DFiWZBuN8OM=\")","v":{"$error":"#REF!"}},{"$f":"AND(#REF!,\"DFiWZBuN8OQ=\")","v":{"$error":"#REF!"}},{"$f":"AND(#REF!,\"DFiWZBuN8OU=\")","v":{"$error":"#REF!"}},{"$f":"AND(#REF!,\"DFiWZBuN8OY=\")","v":{"$error":"#REF!"}},{"$f":"AND(#REF!,\"DFiWZBuN8Oc=\")","v":{"$error":"#REF!"}},{"$f":"AND(#REF!,\"DFiWZBuN8Og=\")","v":{"$error":"#REF!"}},{"$f":"AND(#REF!,\"DFiWZBuN8Ok=\")","v":{"$error":"#REF!"}},{"$f":"AND(#REF!,\"DFiWZBuN8Oo=\")","v":{"$error":"#REF!"}},{"$f":"AND(#REF!,\"DFiWZBuN8Os=\")","v":{"$error":"#REF!"}},{"$f":"AND(#REF!,\"DFiWZBuN8Ow=\")","v":{"$error":"#REF!"}},{"$f":"AND(#REF!,\"DFiWZBuN8O0=\")","v":{"$error":"#REF!"}},{"$f":"AND(#REF!,\"DFiWZBuN8O4=\")","v":{"$error":"#REF!"}},{"$f":"AND(#REF!,\"DFiWZBuN8O8=\")","v":{"$error":"#REF!"}},{"$f":"AND(#REF!,\"DFiWZBuN8PA=\")","v":{"$error":"#REF!"}},{"$f":"AND(#REF!,\"DFiWZBuN8PE=\")","v":{"$error":"#REF!"}},{"$f":"AND(#REF!,\"DFiWZBuN8PI=\")","v":{"$error":"#REF!"}},{"$f":"AND(#REF!,\"DFiWZBuN8PM=\")","v":{"$error":"#REF!"}},{"$f":"AND(#REF!,\"DFiWZBuN8PQ=\")","v":{"$error":"#REF!"}},{"$f":"AND(#REF!,\"DFiWZBuN8PU=\")","v":{"$error":"#REF!"}},{"$f":"AND(#REF!,\"DFiWZBuN8PY=\")","v":{"$error":"#REF!"}},{"$f":"AND(#REF!,\"DFiWZBuN8Pc=\")","v":{"$error":"#REF!"}},{"$f":"AND(#REF!,\"DFiWZBuN8Pg=\")","v":{"$error":"#REF!"}},{"$f":"AND(#REF!,\"DFiWZBuN8Pk=\")","v":{"$error":"#REF!"}},{"$f":"AND(#REF!,\"DFiWZBuN8Po=\")","v":{"$error":"#REF!"}},{"$f":"AND(#REF!,\"DFiWZBuN8Ps=\")","v":{"$error":"#REF!"}},{"$f":"AND(#REF!,\"DFiWZBuN8Pw=\")","v":{"$error":"#REF!"}},{"$f":"AND(#REF!,\"DFiWZBuN8P0=\")","v":{"$error":"#REF!"}},{"$f":"AND(#REF!,\"DFiWZBuN8P4=\")","v":{"$error":"#REF!"}},{"$f":"AND(#REF!,\"DFiWZBuN8P8=\")","v":{"$error":"#REF!"}}]
[{"$f":"AND(#REF!,\"J3Ex2WmKFwA=\")","v":{"$error":"#REF!"}},{"$f":"AND(#REF!,\"J3Ex2WmKFwE=\")","v":{"$error":"#REF!"}},{"$f":"AND(#REF!,\"J3Ex2WmKFwI=\")","v":{"$error":"#REF!"}},{"$f":"AND(#REF!,\"J3Ex2WmKFwM=\")","v":{"$error":"#REF!"}},{"$f":"AND(#REF!,\"J3Ex2WmKFwQ=\")","v":{"$error":"#REF!"}},{"$f":"AND(#REF!,\"J3Ex2WmKFwU=\")","v":{"$error":"#REF!"}},{"$f":"AND(#REF!,\"J3Ex2WmKFwY=\")","v":{"$error":"#REF!"}},{"$f":"AND(#REF!,\"J3Ex2WmKFwc=\")","v":{"$error":"#REF!"}},{"$f":"AND(#REF!,\"J3Ex2WmKFwg=\")","v":{"$error":"#REF!"}},{"$f":"AND(#REF!,\"J3Ex2WmKFwk=\")","v":{"$error":"#REF!"}},{"$f":"AND(#REF!,\"J3Ex2WmKFwo=\")","v":{"$error":"#REF!"}},{"$f":"AND(#REF!,\"J3Ex2WmKFws=\")","v":{"$error":"#REF!"}},{"$f":"AND(#REF!,\"J3Ex2WmKFww=\")","v":{"$error":"#REF!"}},{"$f":"AND(#REF!,\"J3Ex2WmKFw0=\")","v":{"$error":"#REF!"}},{"$f":"AND(#REF!,\"J3Ex2WmKFw4=\")","v":{"$error":"#REF!"}},{"$f":"AND(#REF!,\"J3Ex2WmKFw8=\")","v":{"$error":"#REF!"}},{"$f":"AND(#REF!,\"J3Ex2WmKFxA=\")","v":{"$error":"#REF!"}},{"$f":"AND(#REF!,\"J3Ex2WmKFxE=\")","v":{"$error":"#REF!"}},{"$f":"AND(#REF!,\"J3Ex2WmKFxI=\")","v":{"$error":"#REF!"}},{"$f":"AND(#REF!,\"J3Ex2WmKFxM=\")","v":{"$error":"#REF!"}},{"$f":"AND(#REF!,\"J3Ex2WmKFxQ=\")","v":{"$error":"#REF!"}},{"$f":"AND(#REF!,\"J3Ex2WmKFxU=\")","v":{"$error":"#REF!"}},{"$f":"AND(#REF!,\"J3Ex2WmKFxY=\")","v":{"$error":"#REF!"}},{"$f":"AND(#REF!,\"J3Ex2WmKFxc=\")","v":{"$error":"#REF!"}},{"$f":"AND(#REF!,\"J3Ex2WmKFxg=\")","v":{"$error":"#REF!"}},{"$f":"AND(#REF!,\"J3Ex2WmKFxk=\")","v":{"$error":"#REF!"}},{"$f":"AND(#REF!,\"J3Ex2WmKFxo=\")","v":{"$error":"#REF!"}},{"$f":"AND(#REF!,\"J3Ex2WmKFxs=\")","v":{"$error":"#REF!"}},{"$f":"AND(#REF!,\"J3Ex2WmKFxw=\")","v":{"$error":"#REF!"}},{"$f":"AND(#REF!,\"J3Ex2WmKFx0=\")","v":{"$error":"#REF!"}},{"$f":"AND(#REF!,\"J3Ex2WmKFx4=\")","v":{"$error":"#REF!"}},{"$f":"AND(#REF!,\"J3Ex2WmKFx8=\")","v":{"$error":"#REF!"}},{"$f":"AND(#REF!,\"J3Ex2WmKFyA=\")","v":{"$error":"#REF!"}},{"$f":"AND(#REF!,\"J3Ex2WmKFyE=\")","v":{"$error":"#REF!"}},{"$f":"AND(#REF!,\"J3Ex2WmKFyI=\")","v":{"$error":"#REF!"}},{"$f":"AND(#REF!,\"J3Ex2WmKFyM=\")","v":{"$error":"#REF!"}},{"$f":"AND(#REF!,\"J3Ex2WmKFyQ=\")","v":{"$error":"#REF!"}},{"$f":"AND(#REF!,\"J3Ex2WmKFyU=\")","v":{"$error":"#REF!"}},{"$f":"AND(#REF!,\"J3Ex2WmKFyY=\")","v":{"$error":"#REF!"}},{"$f":"AND(#REF!,\"J3Ex2WmKFyc=\")","v":{"$error":"#REF!"}},{"$f":"AND(#REF!,\"J3Ex2WmKFyg=\")","v":{"$error":"#REF!"}},{"$f":"AND(#REF!,\"J3Ex2WmKFyk=\")","v":{"$error":"#REF!"}},{"$f":"AND(#REF!,\"J3Ex2WmKFyo=\")","v":{"$error":"#REF!"}},{"$f":"AND(#REF!,\"J3Ex2WmKFys=\")","v":{"$error":"#REF!"}},{"$f":"AND(#REF!,\"J3Ex2WmKFyw=\")","v":{"$error":"#REF!"}},{"$f":"AND(#REF!,\"J3Ex2WmKFy0=\")","v":{"$error":"#REF!"}},{"$f":"AND(#REF!,\"J3Ex2WmKFy4=\")","v":{"$error":"#REF!"}},{"$f":"AND(#REF!,\"J3Ex2WmKFy8=\")","v":{"$error":"#REF!"}},{"$f":"AND(#REF!,\"J3Ex2WmKFzA=\")","v":{"$error":"#REF!"}},{"$f":"AND(#REF!,\"J3Ex2WmKFzE=\")","v":{"$error":"#REF!"}},{"$f":"AND(#REF!,\"J3Ex2WmKFzI=\")","v":{"$error":"#REF!"}},{"$f":"AND(#REF!,\"J3Ex2WmKFzM=\")","v":{"$error":"#REF!"}},{"$f":"AND(#REF!,\"J3Ex2WmKFzQ=\")","v":{"$error":"#REF!"}},{"$f":"AND(#REF!,\"J3Ex2WmKFzU=\")","v":{"$error":"#REF!"}},{"$f":"AND(#REF!,\"J3Ex2WmKFzY=\")","v":{"$error":"#REF!"}},{"$f":"AND(#REF!,\"J3Ex2WmKFzc=\")","v":{"$error":"#REF!"}},{"$f":"AND(#REF!,\"J3Ex2WmKFzg=\")","v":{"$error":"#REF!"}},{"$f":"AND(#REF!,\"J3Ex2WmKFzk=\")","v":{"$error":"#REF!"}},{"$f":"AND(#REF!,\"J3Ex2WmKFzo=\")","v":{"$error":"#REF!"}},{"$f":"AND(#REF!,\"J3Ex2WmKFzs=\")","v":{"$error":"#REF!"}},{"$f":"AND(#REF!,\"J3Ex2WmKFzw=\")","v":{"$error":"#REF!"}},{"$f":"AND(#REF!,\"J3Ex2WmKFz0=\")","v":{"$error":"#REF!"}},{"$f":"AND(#REF!,\"J3Ex2WmKFz4=\")","v":{"$error":"#REF!"}},{"$f":"AND(#REF!,\"J3Ex2WmKFz8=\")","v":{"$error":"#REF!"}},{"$f":"AND(#REF!,\"J3Ex2WmKF0A=\")","v":{"$error":"#REF!"}},{"$f":"AND(#REF!,\"J3Ex2WmKF0E=\")","v":{"$error":"#REF!"}},{"$f":"AND(#REF!,\"J3Ex2WmKF0I=\")","v":{"$error":"#REF!"}},{"$f":"AND(#REF!,\"J3Ex2WmKF0M=\")","v":{"$error":"#REF!"}},{"$f":"AND(#REF!,\"J3Ex2WmKF0Q=\")","v":{"$error":"#REF!"}},{"$f":"AND(#REF!,\"J3Ex2WmKF0U=\")","v":{"$error":"#REF!"}},{"$f":"AND(#REF!,\"J3Ex2WmKF0Y=\")","v":{"$error":"#REF!"}},{"$f":"AND(#REF!,\"J3Ex2WmKF0c=\")","v":{"$error":"#REF!"}},{"$f":"AND(#REF!,\"J3Ex2WmKF0g=\")","v":{"$error":"#REF!"}},{"$f":"AND(#REF!,\"J3Ex2WmKF0k=\")","v":{"$error":"#REF!"}},{"$f":"AND(#REF!,\"J3Ex2WmKF0o=\")","v":{"$error":"#REF!"}},{"$f":"AND(#REF!,\"J3Ex2WmKF0s=\")","v":{"$error":"#REF!"}},{"$f":"IF(#REF!,\"J3Ex2WmKF0w=\",0)","v":{"$error":"#REF!"}},{"$f":"AND(#REF!,\"J3Ex2WmKF00=\")","v":{"$error":"#REF!"}},{"$f":"AND(#REF!,\"J3Ex2WmKF04=\")","v":{"$error":"#REF!"}},{"$f":"AND(#REF!,\"J3Ex2WmKF08=\")","v":{"$error":"#REF!"}},{"$f":"AND(#REF!,\"J3Ex2WmKF1A=\")","v":{"$error":"#REF!"}},{"$f":"AND(#REF!,\"J3Ex2WmKF1E=\")","v":{"$error":"#REF!"}},{"$f":"AND(#REF!,\"J3Ex2WmKF1I=\")","v":{"$error":"#REF!"}},{"$f":"AND(#REF!,\"J3Ex2WmKF1M=\")","v":{"$error":"#REF!"}},{"$f":"AND(#REF!,\"J3Ex2WmKF1Q=\")","v":{"$error":"#REF!"}},{"$f":"AND(#REF!,\"J3Ex2WmKF1U=\")","v":{"$error":"#REF!"}},{"$f":"AND(#REF!,\"J3Ex2WmKF1Y=\")","v":{"$error":"#REF!"}},{"$f":"AND(#REF!,\"J3Ex2WmKF1c=\")","v":{"$error":"#REF!"}},{"$f":"AND(#REF!,\"J3Ex2WmKF1g=\")","v":{"$error":"#REF!"}},{"$f":"AND(#REF!,\"J3Ex2WmKF1k=\")","v":{"$error":"#REF!"}},{"$f":"AND(#REF!,\"J3Ex2WmKF1o=\")","v":{"$error":"#REF!"}},{"$f":"AND(#REF!,\"J3Ex2WmKF1s=\")","v":{"$error":"#REF!"}},{"$f":"AND(#REF!,\"J3Ex2WmKF1w=\")","v":{"$error":"#REF!"}},{"$f":"AND(#REF!,\"J3Ex2WmKF10=\")","v":{"$error":"#REF!"}},{"$f":"AND(#REF!,\"J3Ex2WmKF14=\")","v":{"$error":"#REF!"}},{"$f":"AND(#REF!,\"J3Ex2WmKF18=\")","v":{"$error":"#REF!"}},{"$f":"AND(#REF!,\"J3Ex2WmKF2A=\")","v":{"$error":"#REF!"}},{"$f":"AND(#REF!,\"J3Ex2WmKF2E=\")","v":{"$error":"#REF!"}},{"$f":"AND(#REF!,\"J3Ex2WmKF2I=\")","v":{"$error":"#REF!"}},{"$f":"AND(#REF!,\"J3Ex2WmKF2M=\")","v":{"$error":"#REF!"}},{"$f":"AND(#REF!,\"J3Ex2WmKF2Q=\")","v":{"$error":"#REF!"}},{"$f":"AND(#REF!,\"J3Ex2WmKF2U=\")","v":{"$error":"#REF!"}},{"$f":"AND(#REF!,\"J3Ex2WmKF2Y=\")","v":{"$error":"#REF!"}},{"$f":"AND(#REF!,\"J3Ex2WmKF2c=\")","v":{"$error":"#REF!"}},{"$f":"AND(#REF!,\"J3Ex2WmKF2g=\")","v":{"$error":"#REF!"}},{"$f":"AND(#REF!,\"J3Ex2WmKF2k=\")","v":{"$error":"#REF!"}},{"$f":"AND(#REF!,\"J3Ex2WmKF2o=\")","v":{"$error":"#REF!"}},{"$f":"AND(#REF!,\"J3Ex2WmKF2s=\")","v":{"$error":"#REF!"}},{"$f":"AND(#REF!,\"J3Ex2WmKF2w=\")","v":{"$error":"#REF!"}},{"$f":"AND(#REF!,\"J3Ex2WmKF20=\")","v":{"$error":"#REF!"}},{"$f":"AND(#REF!,\"J3Ex2WmKF24=\")","v":{"$error":"#REF!"}},{"$f":"AND(#REF!,\"J3Ex2WmKF28=\")","v":{"$error":"#REF!"}},{"$f":"AND(#REF!,\"J3Ex2WmKF3A=\")","v":{"$error":"#REF!"}},{"$f":"AND(#REF!,\"J3Ex2WmKF3E=\")","v":{"$error":"#REF!"}},{"$f":"AND(#REF!,\"J3Ex2WmKF3I=\")","v":{"$error":"#REF!"}},{"$f":"AND(#REF!,\"J3Ex2WmKF3M=\")","v":{"$error":"#REF!"}},{"$f":"AND(#REF!,\"J3Ex2WmKF3Q=\")","v":{"$error":"#REF!"}},{"$f":"AND(#REF!,\"J3Ex2WmKF3U=\")","v":{"$error":"#REF!"}},{"$f":"AND(#REF!,\"J3Ex2WmKF3Y=\")","v":{"$error":"#REF!"}},{"$f":"AND(#REF!,\"J3Ex2WmKF3c=\")","v":{"$error":"#REF!"}},{"$f":"AND(#REF!,\"J3Ex2WmKF3g=\")","v":{"$error":"#REF!"}},{"$f":"AND(#REF!,\"J3Ex2WmKF3k=\")","v":{"$error":"#REF!"}},{"$f":"AND(#REF!,\"J3Ex2WmKF3o=\")","v":{"$error":"#REF!"}},{"$f":"AND(#REF!,\"J3Ex2WmKF3s=\")","v":{"$error":"#REF!"}},{"$f":"AND(#REF!,\"J3Ex2WmKF3w=\")","v":{"$error":"#REF!"}},{"$f":"AND(#REF!,\"J3Ex2WmKF30=\")","v":{"$error":"#REF!"}},{"$f":"AND(#REF!,\"J3Ex2WmKF34=\")","v":{"$error":"#REF!"}},{"$f":"AND(#REF!,\"J3Ex2WmKF38=\")","v":{"$error":"#REF!"}},{"$f":"AND(#REF!,\"J3Ex2WmKF4A=\")","v":{"$error":"#REF!"}},{"$f":"AND(#REF!,\"J3Ex2WmKF4E=\")","v":{"$error":"#REF!"}},{"$f":"AND(#REF!,\"J3Ex2WmKF4I=\")","v":{"$error":"#REF!"}},{"$f":"AND(#REF!,\"J3Ex2WmKF4M=\")","v":{"$error":"#REF!"}},{"$f":"AND(#REF!,\"J3Ex2WmKF4Q=\")","v":{"$error":"#REF!"}},{"$f":"AND(#REF!,\"J3Ex2WmKF4U=\")","v":{"$error":"#REF!"}},{"$f":"AND(#REF!,\"J3Ex2WmKF4Y=\")","v":{"$error":"#REF!"}},{"$f":"AND(#REF!,\"J3Ex2WmKF4c=\")","v":{"$error":"#REF!"}},{"$f":"AND(#REF!,\"J3Ex2WmKF4g=\")","v":{"$error":"#REF!"}},{"$f":"AND(#REF!,\"J3Ex2WmKF4k=\")","v":{"$error":"#REF!"}},{"$f":"AND(#REF!,\"J3Ex2WmKF4o=\")","v":{"$error":"#REF!"}},{"$f":"AND(#REF!,\"J3Ex2WmKF4s=\")","v":{"$error":"#REF!"}},{"$f":"AND(#REF!,\"J3Ex2WmKF4w=\")","v":{"$error":"#REF!"}},{"$f":"AND(#REF!,\"J3Ex2WmKF40=\")","v":{"$error":"#REF!"}},{"$f":"AND(#REF!,\"J3Ex2WmKF44=\")","v":{"$error":"#REF!"}},{"$f":"AND(#REF!,\"J3Ex2WmKF48=\")","v":{"$error":"#REF!"}},{"$f":"AND(#REF!,\"J3Ex2WmKF5A=\")","v":{"$error":"#REF!"}},{"$f":"AND(#REF!,\"J3Ex2WmKF5E=\")","v":{"$error":"#REF!"}},{"$f":"AND(#REF!,\"J3Ex2WmKF5I=\")","v":{"$error":"#REF!"}},{"$f":"AND(#REF!,\"J3Ex2WmKF5M=\")","v":{"$error":"#REF!"}},{"$f":"AND(#REF!,\"J3Ex2WmKF5Q=\")","v":{"$error":"#REF!"}},{"$f":"AND(#REF!,\"J3Ex2WmKF5U=\")","v":{"$error":"#REF!"}},{"$f":"AND(#REF!,\"J3Ex2WmKF5Y=\")","v":{"$error":"#REF!"}},{"$f":"AND(#REF!,\"J3Ex2WmKF5c=\")","v":{"$error":"#REF!"}},{"$f":"AND(#REF!,\"J3Ex2WmKF5g=\")","v":{"$error":"#REF!"}},{"$f":"AND(#REF!,\"J3Ex2WmKF5k=\")","v":{"$error":"#REF!"}},{"$f":"AND(#REF!,\"J3Ex2WmKF5o=\")","v":{"$error":"#REF!"}},{"$f":"AND(#REF!,\"J3Ex2WmKF5s=\")","v":{"$error":"#REF!"}},{"$f":"AND(#REF!,\"J3Ex2WmKF5w=\")","v":{"$error":"#REF!"}},{"$f":"AND(#REF!,\"J3Ex2WmKF50=\")","v":{"$error":"#REF!"}},{"$f":"AND(#REF!,\"J3Ex2WmKF54=\")","v":{"$error":"#REF!"}},{"$f":"AND(#REF!,\"J3Ex2WmKF58=\")","v":{"$error":"#REF!"}},{"$f":"AND(#REF!,\"J3Ex2WmKF6A=\")","v":{"$error":"#REF!"}},{"$f":"AND(#REF!,\"J3Ex2WmKF6E=\")","v":{"$error":"#REF!"}},{"$f":"AND(#REF!,\"J3Ex2WmKF6I=\")","v":{"$error":"#REF!"}},{"$f":"AND(#REF!,\"J3Ex2WmKF6M=\")","v":{"$error":"#REF!"}},{"$f":"AND(#REF!,\"J3Ex2WmKF6Q=\")","v":{"$error":"#REF!"}},{"$f":"AND(#REF!,\"J3Ex2WmKF6U=\")","v":{"$error":"#REF!"}},{"$f":"AND(#REF!,\"J3Ex2WmKF6Y=\")","v":{"$error":"#REF!"}},{"$f":"AND(#REF!,\"J3Ex2WmKF6c=\")","v":{"$error":"#REF!"}},{"$f":"AND(#REF!,\"J3Ex2WmKF6g=\")","v":{"$error":"#REF!"}},{"$f":"AND(#REF!,\"J3Ex2WmKF6k=\")","v":{"$error":"#REF!"}},{"$f":"AND(#REF!,\"J3Ex2WmKF6o=\")","v":{"$error":"#REF!"}},{"$f":"AND(#REF!,\"J3Ex2WmKF6s=\")","v":{"$error":"#REF!"}},{"$f":"AND(#REF!,\"J3Ex2WmKF6w=\")","v":{"$error":"#REF!"}},{"$f":"AND(#REF!,\"J3Ex2WmKF60=\")","v":{"$error":"#REF!"}},{"$f":"AND(#REF!,\"J3Ex2WmKF64=\")","v":{"$error":"#REF!"}},{"$f":"AND(#REF!,\"J3Ex2WmKF68=\")","v":{"$error":"#REF!"}},{"$f":"AND(#REF!,\"J3Ex2WmKF7A=\")","v":{"$error":"#REF!"}},{"$f":"AND(#REF!,\"J3Ex2WmKF7E=\")","v":{"$error":"#REF!"}},{"$f":"AND(#REF!,\"J3Ex2WmKF7I=\")","v":{"$error":"#REF!"}},{"$f":"AND(#REF!,\"J3Ex2WmKF7M=\")","v":{"$error":"#REF!"}},{"$f":"AND(#REF!,\"J3Ex2WmKF7Q=\")","v":{"$error":"#REF!"}},{"$f":"AND(#REF!,\"J3Ex2WmKF7U=\")","v":{"$error":"#REF!"}},{"$f":"AND(#REF!,\"J3Ex2WmKF7Y=\")","v":{"$error":"#REF!"}},{"$f":"AND(#REF!,\"J3Ex2WmKF7c=\")","v":{"$error":"#REF!"}},{"$f":"AND(#REF!,\"J3Ex2WmKF7g=\")","v":{"$error":"#REF!"}},{"$f":"AND(#REF!,\"J3Ex2WmKF7k=\")","v":{"$error":"#REF!"}},{"$f":"AND(#REF!,\"J3Ex2WmKF7o=\")","v":{"$error":"#REF!"}},{"$f":"AND(#REF!,\"J3Ex2WmKF7s=\")","v":{"$error":"#REF!"}},{"$f":"AND(#REF!,\"J3Ex2WmKF7w=\")","v":{"$error":"#REF!"}},{"$f":"AND(#REF!,\"J3Ex2WmKF70=\")","v":{"$error":"#REF!"}},{"$f":"AND(#REF!,\"J3Ex2WmKF74=\")","v":{"$error":"#REF!"}},{"$f":"AND(#REF!,\"J3Ex2WmKF78=\")","v":{"$error":"#REF!"}},{"$f":"AND(#REF!,\"J3Ex2WmKF8A=\")","v":{"$error":"#REF!"}},{"$f":"AND(#REF!,\"J3Ex2WmKF8E=\")","v":{"$error":"#REF!"}},{"$f":"AND(#REF!,\"J3Ex2WmKF8I=\")","v":{"$error":"#REF!"}},{"$f":"AND(#REF!,\"J3Ex2WmKF8M=\")","v":{"$error":"#REF!"}},{"$f":"AND(#REF!,\"J3Ex2WmKF8Q=\")","v":{"$error":"#REF!"}},{"$f":"AND(#REF!,\"J3Ex2WmKF8U=\")","v":{"$error":"#REF!"}},{"$f":"AND(#REF!,\"J3Ex2WmKF8Y=\")","v":{"$error":"#REF!"}},{"$f":"AND(#REF!,\"J3Ex2WmKF8c=\")","v":{"$error":"#REF!"}},{"$f":"AND(#REF!,\"J3Ex2WmKF8g=\")","v":{"$error":"#REF!"}},{"$f":"AND(#REF!,\"J3Ex2WmKF8k=\")","v":{"$error":"#REF!"}},{"$f":"AND(#REF!,\"J3Ex2WmKF8o=\")","v":{"$error":"#REF!"}},{"$f":"AND(#REF!,\"J3Ex2WmKF8s=\")","v":{"$error":"#REF!"}},{"$f":"AND(#REF!,\"J3Ex2WmKF8w=\")","v":{"$error":"#REF!"}},{"$f":"AND(#REF!,\"J3Ex2WmKF80=\")","v":{"$error":"#REF!"}},{"$f":"AND(#REF!,\"J3Ex2WmKF84=\")","v":{"$error":"#REF!"}},{"$f":"AND(#REF!,\"J3Ex2WmKF88=\")","v":{"$error":"#REF!"}},{"$f":"AND(#REF!,\"J3Ex2WmKF9A=\")","v":{"$error":"#REF!"}},{"$f":"AND(#REF!,\"J3Ex2WmKF9E=\")","v":{"$error":"#REF!"}},{"$f":"AND(#REF!,\"J3Ex2WmKF9I=\")","v":{"$error":"#REF!"}},{"$f":"AND(#REF!,\"J3Ex2WmKF9M=\")","v":{"$error":"#REF!"}},{"$f":"AND(#REF!,\"J3Ex2WmKF9Q=\")","v":{"$error":"#REF!"}},{"$f":"AND(#REF!,\"J3Ex2WmKF9U=\")","v":{"$error":"#REF!"}},{"$f":"AND(#REF!,\"J3Ex2WmKF9Y=\")","v":{"$error":"#REF!"}},{"$f":"AND(#REF!,\"J3Ex2WmKF9c=\")","v":{"$error":"#REF!"}},{"$f":"AND(#REF!,\"J3Ex2WmKF9g=\")","v":{"$error":"#REF!"}},{"$f":"AND(#REF!,\"J3Ex2WmKF9k=\")","v":{"$error":"#REF!"}},{"$f":"AND(#REF!,\"J3Ex2WmKF9o=\")","v":{"$error":"#REF!"}},{"$f":"AND(#REF!,\"J3Ex2WmKF9s=\")","v":{"$error":"#REF!"}},{"$f":"AND(#REF!,\"J3Ex2WmKF9w=\")","v":{"$error":"#REF!"}},{"$f":"AND(#REF!,\"J3Ex2WmKF90=\")","v":{"$error":"#REF!"}},{"$f":"AND(#REF!,\"J3Ex2WmKF94=\")","v":{"$error":"#REF!"}},{"$f":"AND(#REF!,\"J3Ex2WmKF98=\")","v":{"$error":"#REF!"}},{"$f":"AND(#REF!,\"J3Ex2WmKF+A=\")","v":{"$error":"#REF!"}},{"$f":"AND(#REF!,\"J3Ex2WmKF+E=\")","v":{"$error":"#REF!"}},{"$f":"AND(#REF!,\"J3Ex2WmKF+I=\")","v":{"$error":"#REF!"}},{"$f":"AND(#REF!,\"J3Ex2WmKF+M=\")","v":{"$error":"#REF!"}},{"$f":"AND(#REF!,\"J3Ex2WmKF+Q=\")","v":{"$error":"#REF!"}},{"$f":"AND(#REF!,\"J3Ex2WmKF+U=\")","v":{"$error":"#REF!"}},{"$f":"AND(#REF!,\"J3Ex2WmKF+Y=\")","v":{"$error":"#REF!"}},{"$f":"AND(#REF!,\"J3Ex2WmKF+c=\")","v":{"$error":"#REF!"}},{"$f":"AND(#REF!,\"J3Ex2WmKF+g=\")","v":{"$error":"#REF!"}},{"$f":"AND(#REF!,\"J3Ex2WmKF+k=\")","v":{"$error":"#REF!"}},{"$f":"AND(#REF!,\"J3Ex2WmKF+o=\")","v":{"$error":"#REF!"}},{"$f":"AND(#REF!,\"J3Ex2WmKF+s=\")","v":{"$error":"#REF!"}},{"$f":"AND(#REF!,\"J3Ex2WmKF+w=\")","v":{"$error":"#REF!"}},{"$f":"AND(#REF!,\"J3Ex2WmKF+0=\")","v":{"$error":"#REF!"}},{"$f":"AND(#REF!,\"J3Ex2WmKF+4=\")","v":{"$error":"#REF!"}},{"$f":"AND(#REF!,\"J3Ex2WmKF+8=\")","v":{"$error":"#REF!"}},{"$f":"AND(#REF!,\"J3Ex2WmKF/A=\")","v":{"$error":"#REF!"}},{"$f":"AND(#REF!,\"J3Ex2WmKF/E=\")","v":{"$error":"#REF!"}},{"$f":"AND(#REF!,\"J3Ex2WmKF/I=\")","v":{"$error":"#REF!"}},{"$f":"AND(#REF!,\"J3Ex2WmKF/M=\")","v":{"$error":"#REF!"}},{"$f":"AND(#REF!,\"J3Ex2WmKF/Q=\")","v":{"$error":"#REF!"}},{"$f":"AND(#REF!,\"J3Ex2WmKF/U=\")","v":{"$error":"#REF!"}},{"$f":"AND(#REF!,\"J3Ex2WmKF/Y=\")","v":{"$error":"#REF!"}},{"$f":"AND(#REF!,\"J3Ex2WmKF/c=\")","v":{"$error":"#REF!"}},{"$f":"AND(#REF!,\"J3Ex2WmKF/g=\")","v":{"$error":"#REF!"}},{"$f":"AND(#REF!,\"J3Ex2WmKF/k=\")","v":{"$error":"#REF!"}},{"$f":"AND(#REF!,\"J3Ex2WmKF/o=\")","v":{"$error":"#REF!"}},{"$f":"AND(#REF!,\"J3Ex2WmKF/s=\")","v":{"$error":"#REF!"}},{"$f":"AND(#REF!,\"J3Ex2WmKF/w=\")","v":{"$error":"#REF!"}},{"$f":"AND(#REF!,\"J3Ex2WmKF/0=\")","v":{"$error":"#REF!"}},{"$f":"AND(#REF!,\"J3Ex2WmKF/4=\")","v":{"$error":"#REF!"}},{"$f":"AND(#REF!,\"J3Ex2WmKF/8=\")","v":{"$error":"#REF!"}}]
[{"$f":"AND(#REF!,\"HajHlTKSgwA=\")","v":{"$error":"#REF!"}},{"$f":"AND(#REF!,\"HajHlTKSgwE=\")","v":{"$error":"#REF!"}},{"$f":"AND(#REF!,\"HajHlTKSgwI=\")","v":{"$error":"#REF!"}},{"$f":"AND(#REF!,\"HajHlTKSgwM=\")","v":{"$error":"#REF!"}},{"$f":"AND(#REF!,\"HajHlTKSgwQ=\")","v":{"$error":"#REF!"}},{"$f":"AND(#REF!,\"HajHlTKSgwU=\")","v":{"$error":"#REF!"}},{"$f":"AND(#REF!,\"HajHlTKSgwY=\")","v":{"$error":"#REF!"}},{"$f":"AND(#REF!,\"HajHlTKSgwc=\")","v":{"$error":"#REF!"}},{"$f":"AND(#REF!,\"HajHlTKSgwg=\")","v":{"$error":"#REF!"}},{"$f":"AND(#REF!,\"HajHlTKSgwk=\")","v":{"$error":"#REF!"}},{"$f":"AND(#REF!,\"HajHlTKSgwo=\")","v":{"$error":"#REF!"}},{"$f":"AND(#REF!,\"HajHlTKSgws=\")","v":{"$error":"#REF!"}},{"$f":"AND(#REF!,\"HajHlTKSgww=\")","v":{"$error":"#REF!"}},{"$f":"AND(#REF!,\"HajHlTKSgw0=\")","v":{"$error":"#REF!"}},{"$f":"AND(#REF!,\"HajHlTKSgw4=\")","v":{"$error":"#REF!"}},{"$f":"AND(#REF!,\"HajHlTKSgw8=\")","v":{"$error":"#REF!"}},{"$f":"AND(#REF!,\"HajHlTKSgxA=\")","v":{"$error":"#REF!"}},{"$f":"AND(#REF!,\"HajHlTKSgxE=\")","v":{"$error":"#REF!"}},{"$f":"AND(#REF!,\"HajHlTKSgxI=\")","v":{"$error":"#REF!"}},{"$f":"IF(#REF!,\"HajHlTKSgxM=\",0)","v":{"$error":"#REF!"}},{"$f":"AND(#REF!,\"HajHlTKSgxQ=\")","v":{"$error":"#REF!"}},{"$f":"AND(#REF!,\"HajHlTKSgxU=\")","v":{"$error":"#REF!"}},{"$f":"AND(#REF!,\"HajHlTKSgxY=\")","v":{"$error":"#REF!"}},{"$f":"AND(#REF!,\"HajHlTKSgxc=\")","v":{"$error":"#REF!"}},{"$f":"AND(#REF!,\"HajHlTKSgxg=\")","v":{"$error":"#REF!"}},{"$f":"AND(#REF!,\"HajHlTKSgxk=\")","v":{"$error":"#REF!"}},{"$f":"AND(#REF!,\"HajHlTKSgxo=\")","v":{"$error":"#REF!"}},{"$f":"AND(#REF!,\"HajHlTKSgxs=\")","v":{"$error":"#REF!"}},{"$f":"AND(#REF!,\"HajHlTKSgxw=\")","v":{"$error":"#REF!"}},{"$f":"AND(#REF!,\"HajHlTKSgx0=\")","v":{"$error":"#REF!"}},{"$f":"AND(#REF!,\"HajHlTKSgx4=\")","v":{"$error":"#REF!"}},{"$f":"AND(#REF!,\"HajHlTKSgx8=\")","v":{"$error":"#REF!"}},{"$f":"AND(#REF!,\"HajHlTKSgyA=\")","v":{"$error":"#REF!"}},{"$f":"AND(#REF!,\"HajHlTKSgyE=\")","v":{"$error":"#REF!"}},{"$f":"AND(#REF!,\"HajHlTKSgyI=\")","v":{"$error":"#REF!"}},{"$f":"AND(#REF!,\"HajHlTKSgyM=\")","v":{"$error":"#REF!"}},{"$f":"AND(#REF!,\"HajHlTKSgyQ=\")","v":{"$error":"#REF!"}},{"$f":"AND(#REF!,\"HajHlTKSgyU=\")","v":{"$error":"#REF!"}},{"$f":"AND(#REF!,\"HajHlTKSgyY=\")","v":{"$error":"#REF!"}},{"$f":"AND(#REF!,\"HajHlTKSgyc=\")","v":{"$error":"#REF!"}},{"$f":"AND(#REF!,\"HajHlTKSgyg=\")","v":{"$error":"#REF!"}},{"$f":"AND(#REF!,\"HajHlTKSgyk=\")","v":{"$error":"#REF!"}},{"$f":"AND(#REF!,\"HajHlTKSgyo=\")","v":{"$error":"#REF!"}},{"$f":"AND(#REF!,\"HajHlTKSgys=\")","v":{"$error":"#REF!"}},{"$f":"AND(#REF!,\"HajHlTKSgyw=\")","v":{"$error":"#REF!"}},{"$f":"AND(#REF!,\"HajHlTKSgy0=\")","v":{"$error":"#REF!"}},{"$f":"AND(#REF!,\"HajHlTKSgy4=\")","v":{"$error":"#REF!"}},{"$f":"AND(#REF!,\"HajHlTKSgy8=\")","v":{"$error":"#REF!"}},{"$f":"AND(#REF!,\"HajHlTKSgzA=\")","v":{"$error":"#REF!"}},{"$f":"AND(#REF!,\"HajHlTKSgzE=\")","v":{"$error":"#REF!"}},{"$f":"AND(#REF!,\"HajHlTKSgzI=\")","v":{"$error":"#REF!"}},{"$f":"AND(#REF!,\"HajHlTKSgzM=\")","v":{"$error":"#REF!"}},{"$f":"AND(#REF!,\"HajHlTKSgzQ=\")","v":{"$error":"#REF!"}},{"$f":"AND(#REF!,\"HajHlTKSgzU=\")","v":{"$error":"#REF!"}},{"$f":"AND(#REF!,\"HajHlTKSgzY=\")","v":{"$error":"#REF!"}},{"$f":"AND(#REF!,\"HajHlTKSgzc=\")","v":{"$error":"#REF!"}},{"$f":"AND(#REF!,\"HajHlTKSgzg=\")","v":{"$error":"#REF!"}},{"$f":"AND(#REF!,\"HajHlTKSgzk=\")","v":{"$error":"#REF!"}},{"$f":"AND(#REF!,\"HajHlTKSgzo=\")","v":{"$error":"#REF!"}},{"$f":"AND(#REF!,\"HajHlTKSgzs=\")","v":{"$error":"#REF!"}},{"$f":"AND(#REF!,\"HajHlTKSgzw=\")","v":{"$error":"#REF!"}},{"$f":"AND(#REF!,\"HajHlTKSgz0=\")","v":{"$error":"#REF!"}},{"$f":"AND(#REF!,\"HajHlTKSgz4=\")","v":{"$error":"#REF!"}},{"$f":"AND(#REF!,\"HajHlTKSgz8=\")","v":{"$error":"#REF!"}},{"$f":"AND(#REF!,\"HajHlTKSg0A=\")","v":{"$error":"#REF!"}},{"$f":"AND(#REF!,\"HajHlTKSg0E=\")","v":{"$error":"#REF!"}},{"$f":"AND(#REF!,\"HajHlTKSg0I=\")","v":{"$error":"#REF!"}},{"$f":"AND(#REF!,\"HajHlTKSg0M=\")","v":{"$error":"#REF!"}},{"$f":"AND(#REF!,\"HajHlTKSg0Q=\")","v":{"$error":"#REF!"}},{"$f":"AND(#REF!,\"HajHlTKSg0U=\")","v":{"$error":"#REF!"}},{"$f":"AND(#REF!,\"HajHlTKSg0Y=\")","v":{"$error":"#REF!"}},{"$f":"AND(#REF!,\"HajHlTKSg0c=\")","v":{"$error":"#REF!"}},{"$f":"AND(#REF!,\"HajHlTKSg0g=\")","v":{"$error":"#REF!"}},{"$f":"AND(#REF!,\"HajHlTKSg0k=\")","v":{"$error":"#REF!"}},{"$f":"AND(#REF!,\"HajHlTKSg0o=\")","v":{"$error":"#REF!"}},{"$f":"AND(#REF!,\"HajHlTKSg0s=\")","v":{"$error":"#REF!"}},{"$f":"AND(#REF!,\"HajHlTKSg0w=\")","v":{"$error":"#REF!"}},{"$f":"AND(#REF!,\"HajHlTKSg00=\")","v":{"$error":"#REF!"}},{"$f":"AND(#REF!,\"HajHlTKSg04=\")","v":{"$error":"#REF!"}},{"$f":"AND(#REF!,\"HajHlTKSg08=\")","v":{"$error":"#REF!"}},{"$f":"AND(#REF!,\"HajHlTKSg1A=\")","v":{"$error":"#REF!"}},{"$f":"AND(#REF!,\"HajHlTKSg1E=\")","v":{"$error":"#REF!"}},{"$f":"AND(#REF!,\"HajHlTKSg1I=\")","v":{"$error":"#REF!"}},{"$f":"AND(#REF!,\"HajHlTKSg1M=\")","v":{"$error":"#REF!"}},{"$f":"AND(#REF!,\"HajHlTKSg1Q=\")","v":{"$error":"#REF!"}},{"$f":"AND(#REF!,\"HajHlTKSg1U=\")","v":{"$error":"#REF!"}},{"$f":"AND(#REF!,\"HajHlTKSg1Y=\")","v":{"$error":"#REF!"}},{"$f":"AND(#REF!,\"HajHlTKSg1c=\")","v":{"$error":"#REF!"}},{"$f":"AND(#REF!,\"HajHlTKSg1g=\")","v":{"$error":"#REF!"}},{"$f":"AND(#REF!,\"HajHlTKSg1k=\")","v":{"$error":"#REF!"}},{"$f":"AND(#REF!,\"HajHlTKSg1o=\")","v":{"$error":"#REF!"}},{"$f":"AND(#REF!,\"HajHlTKSg1s=\")","v":{"$error":"#REF!"}},{"$f":"AND(#REF!,\"HajHlTKSg1w=\")","v":{"$error":"#REF!"}},{"$f":"AND(#REF!,\"HajHlTKSg10=\")","v":{"$error":"#REF!"}},{"$f":"AND(#REF!,\"HajHlTKSg14=\")","v":{"$error":"#REF!"}},{"$f":"AND(#REF!,\"HajHlTKSg18=\")","v":{"$error":"#REF!"}},{"$f":"AND(#REF!,\"HajHlTKSg2A=\")","v":{"$error":"#REF!"}},{"$f":"AND(#REF!,\"HajHlTKSg2E=\")","v":{"$error":"#REF!"}},{"$f":"AND(#REF!,\"HajHlTKSg2I=\")","v":{"$error":"#REF!"}},{"$f":"AND(#REF!,\"HajHlTKSg2M=\")","v":{"$error":"#REF!"}},{"$f":"AND(#REF!,\"HajHlTKSg2Q=\")","v":{"$error":"#REF!"}},{"$f":"AND(#REF!,\"HajHlTKSg2U=\")","v":{"$error":"#REF!"}},{"$f":"AND(#REF!,\"HajHlTKSg2Y=\")","v":{"$error":"#REF!"}},{"$f":"AND(#REF!,\"HajHlTKSg2c=\")","v":{"$error":"#REF!"}},{"$f":"AND(#REF!,\"HajHlTKSg2g=\")","v":{"$error":"#REF!"}},{"$f":"AND(#REF!,\"HajHlTKSg2k=\")","v":{"$error":"#REF!"}},{"$f":"AND(#REF!,\"HajHlTKSg2o=\")","v":{"$error":"#REF!"}},{"$f":"AND(#REF!,\"HajHlTKSg2s=\")","v":{"$error":"#REF!"}},{"$f":"AND(#REF!,\"HajHlTKSg2w=\")","v":{"$error":"#REF!"}},{"$f":"AND(#REF!,\"HajHlTKSg20=\")","v":{"$error":"#REF!"}},{"$f":"AND(#REF!,\"HajHlTKSg24=\")","v":{"$error":"#REF!"}},{"$f":"AND(#REF!,\"HajHlTKSg28=\")","v":{"$error":"#REF!"}},{"$f":"AND(#REF!,\"HajHlTKSg3A=\")","v":{"$error":"#REF!"}},{"$f":"AND(#REF!,\"HajHlTKSg3E=\")","v":{"$error":"#REF!"}},{"$f":"AND(#REF!,\"HajHlTKSg3I=\")","v":{"$error":"#REF!"}},{"$f":"AND(#REF!,\"HajHlTKSg3M=\")","v":{"$error":"#REF!"}},{"$f":"AND(#REF!,\"HajHlTKSg3Q=\")","v":{"$error":"#REF!"}},{"$f":"AND(#REF!,\"HajHlTKSg3U=\")","v":{"$error":"#REF!"}},{"$f":"AND(#REF!,\"HajHlTKSg3Y=\")","v":{"$error":"#REF!"}},{"$f":"AND(#REF!,\"HajHlTKSg3c=\")","v":{"$error":"#REF!"}},{"$f":"AND(#REF!,\"HajHlTKSg3g=\")","v":{"$error":"#REF!"}},{"$f":"AND(#REF!,\"HajHlTKSg3k=\")","v":{"$error":"#REF!"}},{"$f":"AND(#REF!,\"HajHlTKSg3o=\")","v":{"$error":"#REF!"}},{"$f":"AND(#REF!,\"HajHlTKSg3s=\")","v":{"$error":"#REF!"}},{"$f":"AND(#REF!,\"HajHlTKSg3w=\")","v":{"$error":"#REF!"}},{"$f":"AND(#REF!,\"HajHlTKSg30=\")","v":{"$error":"#REF!"}},{"$f":"AND(#REF!,\"HajHlTKSg34=\")","v":{"$error":"#REF!"}},{"$f":"AND(#REF!,\"HajHlTKSg38=\")","v":{"$error":"#REF!"}},{"$f":"AND(#REF!,\"HajHlTKSg4A=\")","v":{"$error":"#REF!"}},{"$f":"AND(#REF!,\"HajHlTKSg4E=\")","v":{"$error":"#REF!"}},{"$f":"AND(#REF!,\"HajHlTKSg4I=\")","v":{"$error":"#REF!"}},{"$f":"AND(#REF!,\"HajHlTKSg4M=\")","v":{"$error":"#REF!"}},{"$f":"AND(#REF!,\"HajHlTKSg4Q=\")","v":{"$error":"#REF!"}},{"$f":"AND(#REF!,\"HajHlTKSg4U=\")","v":{"$error":"#REF!"}},{"$f":"AND(#REF!,\"HajHlTKSg4Y=\")","v":{"$error":"#REF!"}},{"$f":"AND(#REF!,\"HajHlTKSg4c=\")","v":{"$error":"#REF!"}},{"$f":"AND(#REF!,\"HajHlTKSg4g=\")","v":{"$error":"#REF!"}},{"$f":"AND(#REF!,\"HajHlTKSg4k=\")","v":{"$error":"#REF!"}},{"$f":"AND(#REF!,\"HajHlTKSg4o=\")","v":{"$error":"#REF!"}},{"$f":"AND(#REF!,\"HajHlTKSg4s=\")","v":{"$error":"#REF!"}},{"$f":"AND(#REF!,\"HajHlTKSg4w=\")","v":{"$error":"#REF!"}},{"$f":"AND(#REF!,\"HajHlTKSg40=\")","v":{"$error":"#REF!"}},{"$f":"AND(#REF!,\"HajHlTKSg44=\")","v":{"$error":"#REF!"}},{"$f":"AND(#REF!,\"HajHlTKSg48=\")","v":{"$error":"#REF!"}},{"$f":"AND(#REF!,\"HajHlTKSg5A=\")","v":{"$error":"#REF!"}},{"$f":"AND(#REF!,\"HajHlTKSg5E=\")","v":{"$error":"#REF!"}},{"$f":"AND(#REF!,\"HajHlTKSg5I=\")","v":{"$error":"#REF!"}},{"$f":"AND(#REF!,\"HajHlTKSg5M=\")","v":{"$error":"#REF!"}},{"$f":"AND(#REF!,\"HajHlTKSg5Q=\")","v":{"$error":"#REF!"}},{"$f":"AND(#REF!,\"HajHlTKSg5U=\")","v":{"$error":"#REF!"}},{"$f":"AND(#REF!,\"HajHlTKSg5Y=\")","v":{"$error":"#REF!"}},{"$f":"AND(#REF!,\"HajHlTKSg5c=\")","v":{"$error":"#REF!"}},{"$f":"AND(#REF!,\"HajHlTKSg5g=\")","v":{"$error":"#REF!"}},{"$f":"AND(#REF!,\"HajHlTKSg5k=\")","v":{"$error":"#REF!"}},{"$f":"AND(#REF!,\"HajHlTKSg5o=\")","v":{"$error":"#REF!"}},{"$f":"AND(#REF!,\"HajHlTKSg5s=\")","v":{"$error":"#REF!"}},{"$f":"AND(#REF!,\"HajHlTKSg5w=\")","v":{"$error":"#REF!"}},{"$f":"AND(#REF!,\"HajHlTKSg50=\")","v":{"$error":"#REF!"}},{"$f":"AND(#REF!,\"HajHlTKSg54=\")","v":{"$error":"#REF!"}},{"$f":"AND(#REF!,\"HajHlTKSg58=\")","v":{"$error":"#REF!"}},{"$f":"AND(#REF!,\"HajHlTKSg6A=\")","v":{"$error":"#REF!"}},{"$f":"AND(#REF!,\"HajHlTKSg6E=\")","v":{"$error":"#REF!"}},{"$f":"AND(#REF!,\"HajHlTKSg6I=\")","v":{"$error":"#REF!"}},{"$f":"AND(#REF!,\"HajHlTKSg6M=\")","v":{"$error":"#REF!"}},{"$f":"AND(#REF!,\"HajHlTKSg6Q=\")","v":{"$error":"#REF!"}},{"$f":"AND(#REF!,\"HajHlTKSg6U=\")","v":{"$error":"#REF!"}},{"$f":"AND(#REF!,\"HajHlTKSg6Y=\")","v":{"$error":"#REF!"}},{"$f":"AND(#REF!,\"HajHlTKSg6c=\")","v":{"$error":"#REF!"}},{"$f":"AND(#REF!,\"HajHlTKSg6g=\")","v":{"$error":"#REF!"}},{"$f":"AND(#REF!,\"HajHlTKSg6k=\")","v":{"$error":"#REF!"}},{"$f":"AND(#REF!,\"HajHlTKSg6o=\")","v":{"$error":"#REF!"}},{"$f":"AND(#REF!,\"HajHlTKSg6s=\")","v":{"$error":"#REF!"}},{"$f":"AND(#REF!,\"HajHlTKSg6w=\")","v":{"$error":"#REF!"}},{"$f":"AND(#REF!,\"HajHlTKSg60=\")","v":{"$error":"#REF!"}},{"$f":"AND(#REF!,\"HajHlTKSg64=\")","v":{"$error":"#REF!"}},{"$f":"AND(#REF!,\"HajHlTKSg68=\")","v":{"$error":"#REF!"}},{"$f":"AND(#REF!,\"HajHlTKSg7A=\")","v":{"$error":"#REF!"}},{"$f":"AND(#REF!,\"HajHlTKSg7E=\")","v":{"$error":"#REF!"}},{"$f":"AND(#REF!,\"HajHlTKSg7I=\")","v":{"$error":"#REF!"}},{"$f":"AND(#REF!,\"HajHlTKSg7M=\")","v":{"$error":"#REF!"}},{"$f":"AND(#REF!,\"HajHlTKSg7Q=\")","v":{"$error":"#REF!"}},{"$f":"AND(#REF!,\"HajHlTKSg7U=\")","v":{"$error":"#REF!"}},{"$f":"AND(#REF!,\"HajHlTKSg7Y=\")","v":{"$error":"#REF!"}},{"$f":"AND(#REF!,\"HajHlTKSg7c=\")","v":{"$error":"#REF!"}},{"$f":"AND(#REF!,\"HajHlTKSg7g=\")","v":{"$error":"#REF!"}},{"$f":"AND(#REF!,\"HajHlTKSg7k=\")","v":{"$error":"#REF!"}},{"$f":"AND(#REF!,\"HajHlTKSg7o=\")","v":{"$error":"#REF!"}},{"$f":"AND(#REF!,\"HajHlTKSg7s=\")","v":{"$error":"#REF!"}},{"$f":"AND(#REF!,\"HajHlTKSg7w=\")","v":{"$error":"#REF!"}},{"$f":"AND(#REF!,\"HajHlTKSg70=\")","v":{"$error":"#REF!"}},{"$f":"AND(#REF!,\"HajHlTKSg74=\")","v":{"$error":"#REF!"}},{"$f":"AND(#REF!,\"HajHlTKSg78=\")","v":{"$error":"#REF!"}},{"$f":"AND(#REF!,\"HajHlTKSg8A=\")","v":{"$error":"#REF!"}},{"$f":"AND(#REF!,\"HajHlTKSg8E=\")","v":{"$error":"#REF!"}},{"$f":"AND(#REF!,\"HajHlTKSg8I=\")","v":{"$error":"#REF!"}},{"$f":"AND(#REF!,\"HajHlTKSg8M=\")","v":{"$error":"#REF!"}},{"$f":"AND(#REF!,\"HajHlTKSg8Q=\")","v":{"$error":"#REF!"}},{"$f":"AND(#REF!,\"HajHlTKSg8U=\")","v":{"$error":"#REF!"}},{"$f":"AND(#REF!,\"HajHlTKSg8Y=\")","v":{"$error":"#REF!"}},{"$f":"AND(#REF!,\"HajHlTKSg8c=\")","v":{"$error":"#REF!"}},{"$f":"AND(#REF!,\"HajHlTKSg8g=\")","v":{"$error":"#REF!"}},{"$f":"AND(#REF!,\"HajHlTKSg8k=\")","v":{"$error":"#REF!"}},{"$f":"AND(#REF!,\"HajHlTKSg8o=\")","v":{"$error":"#REF!"}},{"$f":"AND(#REF!,\"HajHlTKSg8s=\")","v":{"$error":"#REF!"}},{"$f":"AND(#REF!,\"HajHlTKSg8w=\")","v":{"$error":"#REF!"}},{"$f":"AND(#REF!,\"HajHlTKSg80=\")","v":{"$error":"#REF!"}},{"$f":"AND(#REF!,\"HajHlTKSg84=\")","v":{"$error":"#REF!"}},{"$f":"AND(#REF!,\"HajHlTKSg88=\")","v":{"$error":"#REF!"}},{"$f":"AND(#REF!,\"HajHlTKSg9A=\")","v":{"$error":"#REF!"}},{"$f":"AND(#REF!,\"HajHlTKSg9E=\")","v":{"$error":"#REF!"}},{"$f":"AND(#REF!,\"HajHlTKSg9I=\")","v":{"$error":"#REF!"}},{"$f":"AND(#REF!,\"HajHlTKSg9M=\")","v":{"$error":"#REF!"}},{"$f":"AND(#REF!,\"HajHlTKSg9Q=\")","v":{"$error":"#REF!"}},{"$f":"AND(#REF!,\"HajHlTKSg9U=\")","v":{"$error":"#REF!"}},{"$f":"AND(#REF!,\"HajHlTKSg9Y=\")","v":{"$error":"#REF!"}},{"$f":"AND(#REF!,\"HajHlTKSg9c=\")","v":{"$error":"#REF!"}},{"$f":"AND(#REF!,\"HajHlTKSg9g=\")","v":{"$error":"#REF!"}},{"$f":"AND(#REF!,\"HajHlTKSg9k=\")","v":{"$error":"#REF!"}},{"$f":"IF(#REF!,\"HajHlTKSg9o=\",0)","v":{"$error":"#REF!"}},{"$f":"AND(#REF!,\"HajHlTKSg9s=\")","v":{"$error":"#REF!"}},{"$f":"AND(#REF!,\"HajHlTKSg9w=\")","v":{"$error":"#REF!"}},{"$f":"AND(#REF!,\"HajHlTKSg90=\")","v":{"$error":"#REF!"}},{"$f":"AND(#REF!,\"HajHlTKSg94=\")","v":{"$error":"#REF!"}},{"$f":"AND(#REF!,\"HajHlTKSg98=\")","v":{"$error":"#REF!"}},{"$f":"AND(#REF!,\"HajHlTKSg+A=\")","v":{"$error":"#REF!"}},{"$f":"AND(#REF!,\"HajHlTKSg+E=\")","v":{"$error":"#REF!"}},{"$f":"AND(#REF!,\"HajHlTKSg+I=\")","v":{"$error":"#REF!"}},{"$f":"AND(#REF!,\"HajHlTKSg+M=\")","v":{"$error":"#REF!"}},{"$f":"AND(#REF!,\"HajHlTKSg+Q=\")","v":{"$error":"#REF!"}},{"$f":"AND(#REF!,\"HajHlTKSg+U=\")","v":{"$error":"#REF!"}},{"$f":"AND(#REF!,\"HajHlTKSg+Y=\")","v":{"$error":"#REF!"}},{"$f":"AND(#REF!,\"HajHlTKSg+c=\")","v":{"$error":"#REF!"}},{"$f":"AND(#REF!,\"HajHlTKSg+g=\")","v":{"$error":"#REF!"}},{"$f":"AND(#REF!,\"HajHlTKSg+k=\")","v":{"$error":"#REF!"}},{"$f":"AND(#REF!,\"HajHlTKSg+o=\")","v":{"$error":"#REF!"}},{"$f":"AND(#REF!,\"HajHlTKSg+s=\")","v":{"$error":"#REF!"}},{"$f":"AND(#REF!,\"HajHlTKSg+w=\")","v":{"$error":"#REF!"}},{"$f":"AND(#REF!,\"HajHlTKSg+0=\")","v":{"$error":"#REF!"}},{"$f":"AND(#REF!,\"HajHlTKSg+4=\")","v":{"$error":"#REF!"}},{"$f":"AND(#REF!,\"HajHlTKSg+8=\")","v":{"$error":"#REF!"}},{"$f":"AND(#REF!,\"HajHlTKSg/A=\")","v":{"$error":"#REF!"}},{"$f":"AND(#REF!,\"HajHlTKSg/E=\")","v":{"$error":"#REF!"}},{"$f":"AND(#REF!,\"HajHlTKSg/I=\")","v":{"$error":"#REF!"}},{"$f":"AND(#REF!,\"HajHlTKSg/M=\")","v":{"$error":"#REF!"}},{"$f":"AND(#REF!,\"HajHlTKSg/Q=\")","v":{"$error":"#REF!"}},{"$f":"AND(#REF!,\"HajHlTKSg/U=\")","v":{"$error":"#REF!"}},{"$f":"AND(#REF!,\"HajHlTKSg/Y=\")","v":{"$error":"#REF!"}},{"$f":"AND(#REF!,\"HajHlTKSg/c=\")","v":{"$error":"#REF!"}},{"$f":"AND(#REF!,\"HajHlTKSg/g=\")","v":{"$error":"#REF!"}},{"$f":"AND(#REF!,\"HajHlTKSg/k=\")","v":{"$error":"#REF!"}},{"$f":"AND(#REF!,\"HajHlTKSg/o=\")","v":{"$error":"#REF!"}},{"$f":"AND(#REF!,\"HajHlTKSg/s=\")","v":{"$error":"#REF!"}},{"$f":"AND(#REF!,\"HajHlTKSg/w=\")","v":{"$error":"#REF!"}},{"$f":"AND(#REF!,\"HajHlTKSg/0=\")","v":{"$error":"#REF!"}},{"$f":"AND(#REF!,\"HajHlTKSg/4=\")","v":{"$error":"#REF!"}},{"$f":"AND(#REF!,\"HajHlTKSg/8=\")","v":{"$error":"#REF!"}}]
[{"$f":"AND(#REF!,\"WB/PwUz8cQA=\")","v":{"$error":"#REF!"}},{"$f":"AND(#REF!,\"WB/PwUz8cQE=\")","v":{"$error":"#REF!"}},{"$f":"AND(#REF!,\"WB/PwUz8cQI=\")","v":{"$error":"#REF!"}},{"$f":"AND(#REF!,\"WB/PwUz8cQM=\")","v":{"$error":"#REF!"}},{"$f":"AND(#REF!,\"WB/PwUz8cQQ=\")","v":{"$error":"#REF!"}},{"$f":"AND(#REF!,\"WB/PwUz8cQU=\")","v":{"$error":"#REF!"}},{"$f":"AND(#REF!,\"WB/PwUz8cQY=\")","v":{"$error":"#REF!"}},{"$f":"AND(#REF!,\"WB/PwUz8cQc=\")","v":{"$error":"#REF!"}},{"$f":"AND(#REF!,\"WB/PwUz8cQg=\")","v":{"$error":"#REF!"}},{"$f":"AND(#REF!,\"WB/PwUz8cQk=\")","v":{"$error":"#REF!"}},{"$f":"AND(#REF!,\"WB/PwUz8cQo=\")","v":{"$error":"#REF!"}},{"$f":"AND(#REF!,\"WB/PwUz8cQs=\")","v":{"$error":"#REF!"}},{"$f":"AND(#REF!,\"WB/PwUz8cQw=\")","v":{"$error":"#REF!"}},{"$f":"AND(#REF!,\"WB/PwUz8cQ0=\")","v":{"$error":"#REF!"}},{"$f":"AND(#REF!,\"WB/PwUz8cQ4=\")","v":{"$error":"#REF!"}},{"$f":"AND(#REF!,\"WB/PwUz8cQ8=\")","v":{"$error":"#REF!"}},{"$f":"AND(#REF!,\"WB/PwUz8cRA=\")","v":{"$error":"#REF!"}},{"$f":"AND(#REF!,\"WB/PwUz8cRE=\")","v":{"$error":"#REF!"}},{"$f":"AND(#REF!,\"WB/PwUz8cRI=\")","v":{"$error":"#REF!"}},{"$f":"AND(#REF!,\"WB/PwUz8cRM=\")","v":{"$error":"#REF!"}},{"$f":"AND(#REF!,\"WB/PwUz8cRQ=\")","v":{"$error":"#REF!"}},{"$f":"AND(#REF!,\"WB/PwUz8cRU=\")","v":{"$error":"#REF!"}},{"$f":"AND(#REF!,\"WB/PwUz8cRY=\")","v":{"$error":"#REF!"}},{"$f":"AND(#REF!,\"WB/PwUz8cRc=\")","v":{"$error":"#REF!"}},{"$f":"AND(#REF!,\"WB/PwUz8cRg=\")","v":{"$error":"#REF!"}},{"$f":"AND(#REF!,\"WB/PwUz8cRk=\")","v":{"$error":"#REF!"}},{"$f":"AND(#REF!,\"WB/PwUz8cRo=\")","v":{"$error":"#REF!"}},{"$f":"AND(#REF!,\"WB/PwUz8cRs=\")","v":{"$error":"#REF!"}},{"$f":"AND(#REF!,\"WB/PwUz8cRw=\")","v":{"$error":"#REF!"}},{"$f":"AND(#REF!,\"WB/PwUz8cR0=\")","v":{"$error":"#REF!"}},{"$f":"AND(#REF!,\"WB/PwUz8cR4=\")","v":{"$error":"#REF!"}},{"$f":"AND(#REF!,\"WB/PwUz8cR8=\")","v":{"$error":"#REF!"}},{"$f":"AND(#REF!,\"WB/PwUz8cSA=\")","v":{"$error":"#REF!"}},{"$f":"AND(#REF!,\"WB/PwUz8cSE=\")","v":{"$error":"#REF!"}},{"$f":"AND(#REF!,\"WB/PwUz8cSI=\")","v":{"$error":"#REF!"}},{"$f":"AND(#REF!,\"WB/PwUz8cSM=\")","v":{"$error":"#REF!"}},{"$f":"AND(#REF!,\"WB/PwUz8cSQ=\")","v":{"$error":"#REF!"}},{"$f":"AND(#REF!,\"WB/PwUz8cSU=\")","v":{"$error":"#REF!"}},{"$f":"AND(#REF!,\"WB/PwUz8cSY=\")","v":{"$error":"#REF!"}},{"$f":"AND(#REF!,\"WB/PwUz8cSc=\")","v":{"$error":"#REF!"}},{"$f":"AND(#REF!,\"WB/PwUz8cSg=\")","v":{"$error":"#REF!"}},{"$f":"AND(#REF!,\"WB/PwUz8cSk=\")","v":{"$error":"#REF!"}},{"$f":"AND(#REF!,\"WB/PwUz8cSo=\")","v":{"$error":"#REF!"}},{"$f":"AND(#REF!,\"WB/PwUz8cSs=\")","v":{"$error":"#REF!"}},{"$f":"AND(#REF!,\"WB/PwUz8cSw=\")","v":{"$error":"#REF!"}},{"$f":"AND(#REF!,\"WB/PwUz8cS0=\")","v":{"$error":"#REF!"}},{"$f":"AND(#REF!,\"WB/PwUz8cS4=\")","v":{"$error":"#REF!"}},{"$f":"AND(#REF!,\"WB/PwUz8cS8=\")","v":{"$error":"#REF!"}},{"$f":"AND(#REF!,\"WB/PwUz8cTA=\")","v":{"$error":"#REF!"}},{"$f":"AND(#REF!,\"WB/PwUz8cTE=\")","v":{"$error":"#REF!"}},{"$f":"AND(#REF!,\"WB/PwUz8cTI=\")","v":{"$error":"#REF!"}},{"$f":"AND(#REF!,\"WB/PwUz8cTM=\")","v":{"$error":"#REF!"}},{"$f":"AND(#REF!,\"WB/PwUz8cTQ=\")","v":{"$error":"#REF!"}},{"$f":"AND(#REF!,\"WB/PwUz8cTU=\")","v":{"$error":"#REF!"}},{"$f":"AND(#REF!,\"WB/PwUz8cTY=\")","v":{"$error":"#REF!"}},{"$f":"AND(#REF!,\"WB/PwUz8cTc=\")","v":{"$error":"#REF!"}},{"$f":"AND(#REF!,\"WB/PwUz8cTg=\")","v":{"$error":"#REF!"}},{"$f":"AND(#REF!,\"WB/PwUz8cTk=\")","v":{"$error":"#REF!"}},{"$f":"AND(#REF!,\"WB/PwUz8cTo=\")","v":{"$error":"#REF!"}},{"$f":"AND(#REF!,\"WB/PwUz8cTs=\")","v":{"$error":"#REF!"}},{"$f":"AND(#REF!,\"WB/PwUz8cTw=\")","v":{"$error":"#REF!"}},{"$f":"AND(#REF!,\"WB/PwUz8cT0=\")","v":{"$error":"#REF!"}},{"$f":"AND(#REF!,\"WB/PwUz8cT4=\")","v":{"$error":"#REF!"}},{"$f":"AND(#REF!,\"WB/PwUz8cT8=\")","v":{"$error":"#REF!"}},{"$f":"AND(#REF!,\"WB/PwUz8cUA=\")","v":{"$error":"#REF!"}},{"$f":"AND(#REF!,\"WB/PwUz8cUE=\")","v":{"$error":"#REF!"}},{"$f":"AND(#REF!,\"WB/PwUz8cUI=\")","v":{"$error":"#REF!"}},{"$f":"AND(#REF!,\"WB/PwUz8cUM=\")","v":{"$error":"#REF!"}},{"$f":"AND(#REF!,\"WB/PwUz8cUQ=\")","v":{"$error":"#REF!"}},{"$f":"AND(#REF!,\"WB/PwUz8cUU=\")","v":{"$error":"#REF!"}},{"$f":"AND(#REF!,\"WB/PwUz8cUY=\")","v":{"$error":"#REF!"}},{"$f":"AND(#REF!,\"WB/PwUz8cUc=\")","v":{"$error":"#REF!"}},{"$f":"AND(#REF!,\"WB/PwUz8cUg=\")","v":{"$error":"#REF!"}},{"$f":"AND(#REF!,\"WB/PwUz8cUk=\")","v":{"$error":"#REF!"}},{"$f":"AND(#REF!,\"WB/PwUz8cUo=\")","v":{"$error":"#REF!"}},{"$f":"AND(#REF!,\"WB/PwUz8cUs=\")","v":{"$error":"#REF!"}},{"$f":"AND(#REF!,\"WB/PwUz8cUw=\")","v":{"$error":"#REF!"}},{"$f":"AND(#REF!,\"WB/PwUz8cU0=\")","v":{"$error":"#REF!"}},{"$f":"AND(#REF!,\"WB/PwUz8cU4=\")","v":{"$error":"#REF!"}},{"$f":"AND(#REF!,\"WB/PwUz8cU8=\")","v":{"$error":"#REF!"}},{"$f":"AND(#REF!,\"WB/PwUz8cVA=\")","v":{"$error":"#REF!"}},{"$f":"AND(#REF!,\"WB/PwUz8cVE=\")","v":{"$error":"#REF!"}},{"$f":"AND(#REF!,\"WB/PwUz8cVI=\")","v":{"$error":"#REF!"}},{"$f":"AND(#REF!,\"WB/PwUz8cVM=\")","v":{"$error":"#REF!"}},{"$f":"AND(#REF!,\"WB/PwUz8cVQ=\")","v":{"$error":"#REF!"}},{"$f":"AND(#REF!,\"WB/PwUz8cVU=\")","v":{"$error":"#REF!"}},{"$f":"AND(#REF!,\"WB/PwUz8cVY=\")","v":{"$error":"#REF!"}},{"$f":"AND(#REF!,\"WB/PwUz8cVc=\")","v":{"$error":"#REF!"}},{"$f":"AND(#REF!,\"WB/PwUz8cVg=\")","v":{"$error":"#REF!"}},{"$f":"AND(#REF!,\"WB/PwUz8cVk=\")","v":{"$error":"#REF!"}},{"$f":"AND(#REF!,\"WB/PwUz8cVo=\")","v":{"$error":"#REF!"}},{"$f":"AND(#REF!,\"WB/PwUz8cVs=\")","v":{"$error":"#REF!"}},{"$f":"AND(#REF!,\"WB/PwUz8cVw=\")","v":{"$error":"#REF!"}},{"$f":"AND(#REF!,\"WB/PwUz8cV0=\")","v":{"$error":"#REF!"}},{"$f":"AND(#REF!,\"WB/PwUz8cV4=\")","v":{"$error":"#REF!"}},{"$f":"AND(#REF!,\"WB/PwUz8cV8=\")","v":{"$error":"#REF!"}},{"$f":"AND(#REF!,\"WB/PwUz8cWA=\")","v":{"$error":"#REF!"}},{"$f":"AND(#REF!,\"WB/PwUz8cWE=\")","v":{"$error":"#REF!"}},{"$f":"AND(#REF!,\"WB/PwUz8cWI=\")","v":{"$error":"#REF!"}},{"$f":"AND(#REF!,\"WB/PwUz8cWM=\")","v":{"$error":"#REF!"}},{"$f":"AND(#REF!,\"WB/PwUz8cWQ=\")","v":{"$error":"#REF!"}},{"$f":"AND(#REF!,\"WB/PwUz8cWU=\")","v":{"$error":"#REF!"}},{"$f":"AND(#REF!,\"WB/PwUz8cWY=\")","v":{"$error":"#REF!"}},{"$f":"AND(#REF!,\"WB/PwUz8cWc=\")","v":{"$error":"#REF!"}},{"$f":"AND(#REF!,\"WB/PwUz8cWg=\")","v":{"$error":"#REF!"}},{"$f":"AND(#REF!,\"WB/PwUz8cWk=\")","v":{"$error":"#REF!"}},{"$f":"AND(#REF!,\"WB/PwUz8cWo=\")","v":{"$error":"#REF!"}},{"$f":"AND(#REF!,\"WB/PwUz8cWs=\")","v":{"$error":"#REF!"}},{"$f":"AND(#REF!,\"WB/PwUz8cWw=\")","v":{"$error":"#REF!"}},{"$f":"AND(#REF!,\"WB/PwUz8cW0=\")","v":{"$error":"#REF!"}},{"$f":"AND(#REF!,\"WB/PwUz8cW4=\")","v":{"$error":"#REF!"}},{"$f":"AND(#REF!,\"WB/PwUz8cW8=\")","v":{"$error":"#REF!"}},{"$f":"AND(#REF!,\"WB/PwUz8cXA=\")","v":{"$error":"#REF!"}},{"$f":"AND(#REF!,\"WB/PwUz8cXE=\")","v":{"$error":"#REF!"}},{"$f":"AND(#REF!,\"WB/PwUz8cXI=\")","v":{"$error":"#REF!"}},{"$f":"AND(#REF!,\"WB/PwUz8cXM=\")","v":{"$error":"#REF!"}},{"$f":"AND(#REF!,\"WB/PwUz8cXQ=\")","v":{"$error":"#REF!"}},{"$f":"AND(#REF!,\"WB/PwUz8cXU=\")","v":{"$error":"#REF!"}},{"$f":"AND(#REF!,\"WB/PwUz8cXY=\")","v":{"$error":"#REF!"}},{"$f":"AND(#REF!,\"WB/PwUz8cXc=\")","v":{"$error":"#REF!"}},{"$f":"AND(#REF!,\"WB/PwUz8cXg=\")","v":{"$error":"#REF!"}},{"$f":"AND(#REF!,\"WB/PwUz8cXk=\")","v":{"$error":"#REF!"}},{"$f":"AND(#REF!,\"WB/PwUz8cXo=\")","v":{"$error":"#REF!"}},{"$f":"AND(#REF!,\"WB/PwUz8cXs=\")","v":{"$error":"#REF!"}},{"$f":"AND(#REF!,\"WB/PwUz8cXw=\")","v":{"$error":"#REF!"}},{"$f":"AND(#REF!,\"WB/PwUz8cX0=\")","v":{"$error":"#REF!"}},{"$f":"AND(#REF!,\"WB/PwUz8cX4=\")","v":{"$error":"#REF!"}},{"$f":"AND(#REF!,\"WB/PwUz8cX8=\")","v":{"$error":"#REF!"}},{"$f":"AND(#REF!,\"WB/PwUz8cYA=\")","v":{"$error":"#REF!"}},{"$f":"AND(#REF!,\"WB/PwUz8cYE=\")","v":{"$error":"#REF!"}},{"$f":"AND(#REF!,\"WB/PwUz8cYI=\")","v":{"$error":"#REF!"}},{"$f":"AND(#REF!,\"WB/PwUz8cYM=\")","v":{"$error":"#REF!"}},{"$f":"AND(#REF!,\"WB/PwUz8cYQ=\")","v":{"$error":"#REF!"}},{"$f":"AND(#REF!,\"WB/PwUz8cYU=\")","v":{"$error":"#REF!"}},{"$f":"AND(#REF!,\"WB/PwUz8cYY=\")","v":{"$error":"#REF!"}},{"$f":"AND(#REF!,\"WB/PwUz8cYc=\")","v":{"$error":"#REF!"}},{"$f":"AND(#REF!,\"WB/PwUz8cYg=\")","v":{"$error":"#REF!"}},{"$f":"AND(#REF!,\"WB/PwUz8cYk=\")","v":{"$error":"#REF!"}},{"$f":"AND(#REF!,\"WB/PwUz8cYo=\")","v":{"$error":"#REF!"}},{"$f":"AND(#REF!,\"WB/PwUz8cYs=\")","v":{"$error":"#REF!"}},{"$f":"AND(#REF!,\"WB/PwUz8cYw=\")","v":{"$error":"#REF!"}},{"$f":"AND(#REF!,\"WB/PwUz8cY0=\")","v":{"$error":"#REF!"}},{"$f":"AND(#REF!,\"WB/PwUz8cY4=\")","v":{"$error":"#REF!"}},{"$f":"AND(#REF!,\"WB/PwUz8cY8=\")","v":{"$error":"#REF!"}},{"$f":"AND(#REF!,\"WB/PwUz8cZA=\")","v":{"$error":"#REF!"}},{"$f":"AND(#REF!,\"WB/PwUz8cZE=\")","v":{"$error":"#REF!"}},{"$f":"AND(#REF!,\"WB/PwUz8cZI=\")","v":{"$error":"#REF!"}},{"$f":"AND(#REF!,\"WB/PwUz8cZM=\")","v":{"$error":"#REF!"}},{"$f":"AND(#REF!,\"WB/PwUz8cZQ=\")","v":{"$error":"#REF!"}},{"$f":"AND(#REF!,\"WB/PwUz8cZU=\")","v":{"$error":"#REF!"}},{"$f":"AND(#REF!,\"WB/PwUz8cZY=\")","v":{"$error":"#REF!"}},{"$f":"AND(#REF!,\"WB/PwUz8cZc=\")","v":{"$error":"#REF!"}},{"$f":"AND(#REF!,\"WB/PwUz8cZg=\")","v":{"$error":"#REF!"}},{"$f":"AND(#REF!,\"WB/PwUz8cZk=\")","v":{"$error":"#REF!"}},{"$f":"AND(#REF!,\"WB/PwUz8cZo=\")","v":{"$error":"#REF!"}},{"$f":"AND(#REF!,\"WB/PwUz8cZs=\")","v":{"$error":"#REF!"}},{"$f":"AND(#REF!,\"WB/PwUz8cZw=\")","v":{"$error":"#REF!"}},{"$f":"AND(#REF!,\"WB/PwUz8cZ0=\")","v":{"$error":"#REF!"}},{"$f":"AND(#REF!,\"WB/PwUz8cZ4=\")","v":{"$error":"#REF!"}},{"$f":"AND(#REF!,\"WB/PwUz8cZ8=\")","v":{"$error":"#REF!"}},{"$f":"AND(#REF!,\"WB/PwUz8caA=\")","v":{"$error":"#REF!"}},{"$f":"IF(#REF!,\"WB/PwUz8caE=\",0)","v":{"$error":"#REF!"}},{"$f":"AND(#REF!,\"WB/PwUz8caI=\")","v":{"$error":"#REF!"}},{"$f":"AND(#REF!,\"WB/PwUz8caM=\")","v":{"$error":"#REF!"}},{"$f":"AND(#REF!,\"WB/PwUz8caQ=\")","v":{"$error":"#REF!"}},{"$f":"AND(#REF!,\"WB/PwUz8caU=\")","v":{"$error":"#REF!"}},{"$f":"AND(#REF!,\"WB/PwUz8caY=\")","v":{"$error":"#REF!"}},{"$f":"AND(#REF!,\"WB/PwUz8cac=\")","v":{"$error":"#REF!"}},{"$f":"AND(#REF!,\"WB/PwUz8cag=\")","v":{"$error":"#REF!"}},{"$f":"AND(#REF!,\"WB/PwUz8cak=\")","v":{"$error":"#REF!"}},{"$f":"AND(#REF!,\"WB/PwUz8cao=\")","v":{"$error":"#REF!"}},{"$f":"AND(#REF!,\"WB/PwUz8cas=\")","v":{"$error":"#REF!"}},{"$f":"AND(#REF!,\"WB/PwUz8caw=\")","v":{"$error":"#REF!"}},{"$f":"AND(#REF!,\"WB/PwUz8ca0=\")","v":{"$error":"#REF!"}},{"$f":"AND(#REF!,\"WB/PwUz8ca4=\")","v":{"$error":"#REF!"}},{"$f":"AND(#REF!,\"WB/PwUz8ca8=\")","v":{"$error":"#REF!"}},{"$f":"AND(#REF!,\"WB/PwUz8cbA=\")","v":{"$error":"#REF!"}},{"$f":"AND(#REF!,\"WB/PwUz8cbE=\")","v":{"$error":"#REF!"}},{"$f":"AND(#REF!,\"WB/PwUz8cbI=\")","v":{"$error":"#REF!"}},{"$f":"AND(#REF!,\"WB/PwUz8cbM=\")","v":{"$error":"#REF!"}},{"$f":"AND(#REF!,\"WB/PwUz8cbQ=\")","v":{"$error":"#REF!"}},{"$f":"AND(#REF!,\"WB/PwUz8cbU=\")","v":{"$error":"#REF!"}},{"$f":"AND(#REF!,\"WB/PwUz8cbY=\")","v":{"$error":"#REF!"}},{"$f":"AND(#REF!,\"WB/PwUz8cbc=\")","v":{"$error":"#REF!"}},{"$f":"AND(#REF!,\"WB/PwUz8cbg=\")","v":{"$error":"#REF!"}},{"$f":"AND(#REF!,\"WB/PwUz8cbk=\")","v":{"$error":"#REF!"}},{"$f":"AND(#REF!,\"WB/PwUz8cbo=\")","v":{"$error":"#REF!"}},{"$f":"AND(#REF!,\"WB/PwUz8cbs=\")","v":{"$error":"#REF!"}},{"$f":"AND(#REF!,\"WB/PwUz8cbw=\")","v":{"$error":"#REF!"}},{"$f":"AND(#REF!,\"WB/PwUz8cb0=\")","v":{"$error":"#REF!"}},{"$f":"AND(#REF!,\"WB/PwUz8cb4=\")","v":{"$error":"#REF!"}},{"$f":"AND(#REF!,\"WB/PwUz8cb8=\")","v":{"$error":"#REF!"}},{"$f":"AND(#REF!,\"WB/PwUz8ccA=\")","v":{"$error":"#REF!"}},{"$f":"AND(#REF!,\"WB/PwUz8ccE=\")","v":{"$error":"#REF!"}},{"$f":"AND(#REF!,\"WB/PwUz8ccI=\")","v":{"$error":"#REF!"}},{"$f":"AND(#REF!,\"WB/PwUz8ccM=\")","v":{"$error":"#REF!"}},{"$f":"AND(#REF!,\"WB/PwUz8ccQ=\")","v":{"$error":"#REF!"}},{"$f":"AND(#REF!,\"WB/PwUz8ccU=\")","v":{"$error":"#REF!"}},{"$f":"AND(#REF!,\"WB/PwUz8ccY=\")","v":{"$error":"#REF!"}},{"$f":"AND(#REF!,\"WB/PwUz8ccc=\")","v":{"$error":"#REF!"}},{"$f":"AND(#REF!,\"WB/PwUz8ccg=\")","v":{"$error":"#REF!"}},{"$f":"AND(#REF!,\"WB/PwUz8cck=\")","v":{"$error":"#REF!"}},{"$f":"AND(#REF!,\"WB/PwUz8cco=\")","v":{"$error":"#REF!"}},{"$f":"AND(#REF!,\"WB/PwUz8ccs=\")","v":{"$error":"#REF!"}},{"$f":"AND(#REF!,\"WB/PwUz8ccw=\")","v":{"$error":"#REF!"}},{"$f":"AND(#REF!,\"WB/PwUz8cc0=\")","v":{"$error":"#REF!"}},{"$f":"AND(#REF!,\"WB/PwUz8cc4=\")","v":{"$error":"#REF!"}},{"$f":"AND(#REF!,\"WB/PwUz8cc8=\")","v":{"$error":"#REF!"}},{"$f":"AND(#REF!,\"WB/PwUz8cdA=\")","v":{"$error":"#REF!"}},{"$f":"AND(#REF!,\"WB/PwUz8cdE=\")","v":{"$error":"#REF!"}},{"$f":"AND(#REF!,\"WB/PwUz8cdI=\")","v":{"$error":"#REF!"}},{"$f":"AND(#REF!,\"WB/PwUz8cdM=\")","v":{"$error":"#REF!"}},{"$f":"AND(#REF!,\"WB/PwUz8cdQ=\")","v":{"$error":"#REF!"}},{"$f":"AND(#REF!,\"WB/PwUz8cdU=\")","v":{"$error":"#REF!"}},{"$f":"AND(#REF!,\"WB/PwUz8cdY=\")","v":{"$error":"#REF!"}},{"$f":"AND(#REF!,\"WB/PwUz8cdc=\")","v":{"$error":"#REF!"}},{"$f":"AND(#REF!,\"WB/PwUz8cdg=\")","v":{"$error":"#REF!"}},{"$f":"AND(#REF!,\"WB/PwUz8cdk=\")","v":{"$error":"#REF!"}},{"$f":"AND(#REF!,\"WB/PwUz8cdo=\")","v":{"$error":"#REF!"}},{"$f":"AND(#REF!,\"WB/PwUz8cds=\")","v":{"$error":"#REF!"}},{"$f":"AND(#REF!,\"WB/PwUz8cdw=\")","v":{"$error":"#REF!"}},{"$f":"AND(#REF!,\"WB/PwUz8cd0=\")","v":{"$error":"#REF!"}},{"$f":"AND(#REF!,\"WB/PwUz8cd4=\")","v":{"$error":"#REF!"}},{"$f":"AND(#REF!,\"WB/PwUz8cd8=\")","v":{"$error":"#REF!"}},{"$f":"AND(#REF!,\"WB/PwUz8ceA=\")","v":{"$error":"#REF!"}},{"$f":"AND(#REF!,\"WB/PwUz8ceE=\")","v":{"$error":"#REF!"}},{"$f":"AND(#REF!,\"WB/PwUz8ceI=\")","v":{"$error":"#REF!"}},{"$f":"AND(#REF!,\"WB/PwUz8ceM=\")","v":{"$error":"#REF!"}},{"$f":"AND(#REF!,\"WB/PwUz8ceQ=\")","v":{"$error":"#REF!"}},{"$f":"AND(#REF!,\"WB/PwUz8ceU=\")","v":{"$error":"#REF!"}},{"$f":"AND(#REF!,\"WB/PwUz8ceY=\")","v":{"$error":"#REF!"}},{"$f":"AND(#REF!,\"WB/PwUz8cec=\")","v":{"$error":"#REF!"}},{"$f":"AND(#REF!,\"WB/PwUz8ceg=\")","v":{"$error":"#REF!"}},{"$f":"AND(#REF!,\"WB/PwUz8cek=\")","v":{"$error":"#REF!"}},{"$f":"AND(#REF!,\"WB/PwUz8ceo=\")","v":{"$error":"#REF!"}},{"$f":"AND(#REF!,\"WB/PwUz8ces=\")","v":{"$error":"#REF!"}},{"$f":"AND(#REF!,\"WB/PwUz8cew=\")","v":{"$error":"#REF!"}},{"$f":"AND(#REF!,\"WB/PwUz8ce0=\")","v":{"$error":"#REF!"}},{"$f":"AND(#REF!,\"WB/PwUz8ce4=\")","v":{"$error":"#REF!"}},{"$f":"AND(#REF!,\"WB/PwUz8ce8=\")","v":{"$error":"#REF!"}},{"$f":"AND(#REF!,\"WB/PwUz8cfA=\")","v":{"$error":"#REF!"}},{"$f":"AND(#REF!,\"WB/PwUz8cfE=\")","v":{"$error":"#REF!"}},{"$f":"AND(#REF!,\"WB/PwUz8cfI=\")","v":{"$error":"#REF!"}},{"$f":"AND(#REF!,\"WB/PwUz8cfM=\")","v":{"$error":"#REF!"}},{"$f":"AND(#REF!,\"WB/PwUz8cfQ=\")","v":{"$error":"#REF!"}},{"$f":"AND(#REF!,\"WB/PwUz8cfU=\")","v":{"$error":"#REF!"}},{"$f":"AND(#REF!,\"WB/PwUz8cfY=\")","v":{"$error":"#REF!"}},{"$f":"AND(#REF!,\"WB/PwUz8cfc=\")","v":{"$error":"#REF!"}},{"$f":"AND(#REF!,\"WB/PwUz8cfg=\")","v":{"$error":"#REF!"}},{"$f":"AND(#REF!,\"WB/PwUz8cfk=\")","v":{"$error":"#REF!"}},{"$f":"AND(#REF!,\"WB/PwUz8cfo=\")","v":{"$error":"#REF!"}},{"$f":"AND(#REF!,\"WB/PwUz8cfs=\")","v":{"$error":"#REF!"}},{"$f":"AND(#REF!,\"WB/PwUz8cfw=\")","v":{"$error":"#REF!"}},{"$f":"AND(#REF!,\"WB/PwUz8cf0=\")","v":{"$error":"#REF!"}},{"$f":"AND(#REF!,\"WB/PwUz8cf4=\")","v":{"$error":"#REF!"}},{"$f":"AND(#REF!,\"WB/PwUz8cf8=\")","v":{"$error":"#REF!"}}]
[{"$f":"AND(#REF!,\"QPrzFE7N8QA=\")","v":{"$error":"#REF!"}},{"$f":"AND(#REF!,\"QPrzFE7N8QE=\")","v":{"$error":"#REF!"}},{"$f":"AND(#REF!,\"QPrzFE7N8QI=\")","v":{"$error":"#REF!"}},{"$f":"AND(#REF!,\"QPrzFE7N8QM=\")","v":{"$error":"#REF!"}},{"$f":"AND(#REF!,\"QPrzFE7N8QQ=\")","v":{"$error":"#REF!"}},{"$f":"AND(#REF!,\"QPrzFE7N8QU=\")","v":{"$error":"#REF!"}},{"$f":"AND(#REF!,\"QPrzFE7N8QY=\")","v":{"$error":"#REF!"}},{"$f":"AND(#REF!,\"QPrzFE7N8Qc=\")","v":{"$error":"#REF!"}},{"$f":"AND(#REF!,\"QPrzFE7N8Qg=\")","v":{"$error":"#REF!"}},{"$f":"AND(#REF!,\"QPrzFE7N8Qk=\")","v":{"$error":"#REF!"}},{"$f":"AND(#REF!,\"QPrzFE7N8Qo=\")","v":{"$error":"#REF!"}},{"$f":"AND(#REF!,\"QPrzFE7N8Qs=\")","v":{"$error":"#REF!"}},{"$f":"AND(#REF!,\"QPrzFE7N8Qw=\")","v":{"$error":"#REF!"}},{"$f":"AND(#REF!,\"QPrzFE7N8Q0=\")","v":{"$error":"#REF!"}},{"$f":"AND(#REF!,\"QPrzFE7N8Q4=\")","v":{"$error":"#REF!"}},{"$f":"AND(#REF!,\"QPrzFE7N8Q8=\")","v":{"$error":"#REF!"}},{"$f":"AND(#REF!,\"QPrzFE7N8RA=\")","v":{"$error":"#REF!"}},{"$f":"AND(#REF!,\"QPrzFE7N8RE=\")","v":{"$error":"#REF!"}},{"$f":"AND(#REF!,\"QPrzFE7N8RI=\")","v":{"$error":"#REF!"}},{"$f":"AND(#REF!,\"QPrzFE7N8RM=\")","v":{"$error":"#REF!"}},{"$f":"AND(#REF!,\"QPrzFE7N8RQ=\")","v":{"$error":"#REF!"}},{"$f":"AND(#REF!,\"QPrzFE7N8RU=\")","v":{"$error":"#REF!"}},{"$f":"AND(#REF!,\"QPrzFE7N8RY=\")","v":{"$error":"#REF!"}},{"$f":"AND(#REF!,\"QPrzFE7N8Rc=\")","v":{"$error":"#REF!"}},{"$f":"AND(#REF!,\"QPrzFE7N8Rg=\")","v":{"$error":"#REF!"}},{"$f":"AND(#REF!,\"QPrzFE7N8Rk=\")","v":{"$error":"#REF!"}},{"$f":"AND(#REF!,\"QPrzFE7N8Ro=\")","v":{"$error":"#REF!"}},{"$f":"AND(#REF!,\"QPrzFE7N8Rs=\")","v":{"$error":"#REF!"}},{"$f":"AND(#REF!,\"QPrzFE7N8Rw=\")","v":{"$error":"#REF!"}},{"$f":"AND(#REF!,\"QPrzFE7N8R0=\")","v":{"$error":"#REF!"}},{"$f":"AND(#REF!,\"QPrzFE7N8R4=\")","v":{"$error":"#REF!"}},{"$f":"AND(#REF!,\"QPrzFE7N8R8=\")","v":{"$error":"#REF!"}},{"$f":"AND(#REF!,\"QPrzFE7N8SA=\")","v":{"$error":"#REF!"}},{"$f":"AND(#REF!,\"QPrzFE7N8SE=\")","v":{"$error":"#REF!"}},{"$f":"AND(#REF!,\"QPrzFE7N8SI=\")","v":{"$error":"#REF!"}},{"$f":"AND(#REF!,\"QPrzFE7N8SM=\")","v":{"$error":"#REF!"}},{"$f":"AND(#REF!,\"QPrzFE7N8SQ=\")","v":{"$error":"#REF!"}},{"$f":"AND(#REF!,\"QPrzFE7N8SU=\")","v":{"$error":"#REF!"}},{"$f":"AND(#REF!,\"QPrzFE7N8SY=\")","v":{"$error":"#REF!"}},{"$f":"AND(#REF!,\"QPrzFE7N8Sc=\")","v":{"$error":"#REF!"}},{"$f":"AND(#REF!,\"QPrzFE7N8Sg=\")","v":{"$error":"#REF!"}},{"$f":"AND(#REF!,\"QPrzFE7N8Sk=\")","v":{"$error":"#REF!"}},{"$f":"AND(#REF!,\"QPrzFE7N8So=\")","v":{"$error":"#REF!"}},{"$f":"AND(#REF!,\"QPrzFE7N8Ss=\")","v":{"$error":"#REF!"}},{"$f":"AND(#REF!,\"QPrzFE7N8Sw=\")","v":{"$error":"#REF!"}},{"$f":"AND(#REF!,\"QPrzFE7N8S0=\")","v":{"$error":"#REF!"}},{"$f":"AND(#REF!,\"QPrzFE7N8S4=\")","v":{"$error":"#REF!"}},{"$f":"AND(#REF!,\"QPrzFE7N8S8=\")","v":{"$error":"#REF!"}},{"$f":"AND(#REF!,\"QPrzFE7N8TA=\")","v":{"$error":"#REF!"}},{"$f":"AND(#REF!,\"QPrzFE7N8TE=\")","v":{"$error":"#REF!"}},{"$f":"AND(#REF!,\"QPrzFE7N8TI=\")","v":{"$error":"#REF!"}},{"$f":"AND(#REF!,\"QPrzFE7N8TM=\")","v":{"$error":"#REF!"}},{"$f":"AND(#REF!,\"QPrzFE7N8TQ=\")","v":{"$error":"#REF!"}},{"$f":"AND(#REF!,\"QPrzFE7N8TU=\")","v":{"$error":"#REF!"}},{"$f":"AND(#REF!,\"QPrzFE7N8TY=\")","v":{"$error":"#REF!"}},{"$f":"AND(#REF!,\"QPrzFE7N8Tc=\")","v":{"$error":"#REF!"}},{"$f":"AND(#REF!,\"QPrzFE7N8Tg=\")","v":{"$error":"#REF!"}},{"$f":"AND(#REF!,\"QPrzFE7N8Tk=\")","v":{"$error":"#REF!"}},{"$f":"AND(#REF!,\"QPrzFE7N8To=\")","v":{"$error":"#REF!"}},{"$f":"AND(#REF!,\"QPrzFE7N8Ts=\")","v":{"$error":"#REF!"}},{"$f":"AND(#REF!,\"QPrzFE7N8Tw=\")","v":{"$error":"#REF!"}},{"$f":"AND(#REF!,\"QPrzFE7N8T0=\")","v":{"$error":"#REF!"}},{"$f":"AND(#REF!,\"QPrzFE7N8T4=\")","v":{"$error":"#REF!"}},{"$f":"AND(#REF!,\"QPrzFE7N8T8=\")","v":{"$error":"#REF!"}},{"$f":"AND(#REF!,\"QPrzFE7N8UA=\")","v":{"$error":"#REF!"}},{"$f":"AND(#REF!,\"QPrzFE7N8UE=\")","v":{"$error":"#REF!"}},{"$f":"AND(#REF!,\"QPrzFE7N8UI=\")","v":{"$error":"#REF!"}},{"$f":"AND(#REF!,\"QPrzFE7N8UM=\")","v":{"$error":"#REF!"}},{"$f":"AND(#REF!,\"QPrzFE7N8UQ=\")","v":{"$error":"#REF!"}},{"$f":"AND(#REF!,\"QPrzFE7N8UU=\")","v":{"$error":"#REF!"}},{"$f":"AND(#REF!,\"QPrzFE7N8UY=\")","v":{"$error":"#REF!"}},{"$f":"AND(#REF!,\"QPrzFE7N8Uc=\")","v":{"$error":"#REF!"}},{"$f":"AND(#REF!,\"QPrzFE7N8Ug=\")","v":{"$error":"#REF!"}},{"$f":"AND(#REF!,\"QPrzFE7N8Uk=\")","v":{"$error":"#REF!"}},{"$f":"AND(#REF!,\"QPrzFE7N8Uo=\")","v":{"$error":"#REF!"}},{"$f":"AND(#REF!,\"QPrzFE7N8Us=\")","v":{"$error":"#REF!"}},{"$f":"AND(#REF!,\"QPrzFE7N8Uw=\")","v":{"$error":"#REF!"}},{"$f":"AND(#REF!,\"QPrzFE7N8U0=\")","v":{"$error":"#REF!"}},{"$f":"AND(#REF!,\"QPrzFE7N8U4=\")","v":{"$error":"#REF!"}},{"$f":"AND(#REF!,\"QPrzFE7N8U8=\")","v":{"$error":"#REF!"}},{"$f":"AND(#REF!,\"QPrzFE7N8VA=\")","v":{"$error":"#REF!"}},{"$f":"AND(#REF!,\"QPrzFE7N8VE=\")","v":{"$error":"#REF!"}},{"$f":"AND(#REF!,\"QPrzFE7N8VI=\")","v":{"$error":"#REF!"}},{"$f":"AND(#REF!,\"QPrzFE7N8VM=\")","v":{"$error":"#REF!"}},{"$f":"AND(#REF!,\"QPrzFE7N8VQ=\")","v":{"$error":"#REF!"}},{"$f":"AND(#REF!,\"QPrzFE7N8VU=\")","v":{"$error":"#REF!"}},{"$f":"AND(#REF!,\"QPrzFE7N8VY=\")","v":{"$error":"#REF!"}},{"$f":"AND(#REF!,\"QPrzFE7N8Vc=\")","v":{"$error":"#REF!"}},{"$f":"AND(#REF!,\"QPrzFE7N8Vg=\")","v":{"$error":"#REF!"}},{"$f":"AND(#REF!,\"QPrzFE7N8Vk=\")","v":{"$error":"#REF!"}},{"$f":"AND(#REF!,\"QPrzFE7N8Vo=\")","v":{"$error":"#REF!"}},{"$f":"AND(#REF!,\"QPrzFE7N8Vs=\")","v":{"$error":"#REF!"}},{"$f":"AND(#REF!,\"QPrzFE7N8Vw=\")","v":{"$error":"#REF!"}},{"$f":"AND(#REF!,\"QPrzFE7N8V0=\")","v":{"$error":"#REF!"}},{"$f":"AND(#REF!,\"QPrzFE7N8V4=\")","v":{"$error":"#REF!"}},{"$f":"AND(#REF!,\"QPrzFE7N8V8=\")","v":{"$error":"#REF!"}},{"$f":"AND(#REF!,\"QPrzFE7N8WA=\")","v":{"$error":"#REF!"}},{"$f":"AND(#REF!,\"QPrzFE7N8WE=\")","v":{"$error":"#REF!"}},{"$f":"AND(#REF!,\"QPrzFE7N8WI=\")","v":{"$error":"#REF!"}},{"$f":"AND(#REF!,\"QPrzFE7N8WM=\")","v":{"$error":"#REF!"}},{"$f":"AND(#REF!,\"QPrzFE7N8WQ=\")","v":{"$error":"#REF!"}},{"$f":"AND(#REF!,\"QPrzFE7N8WU=\")","v":{"$error":"#REF!"}},{"$f":"AND(#REF!,\"QPrzFE7N8WY=\")","v":{"$error":"#REF!"}},{"$f":"AND(#REF!,\"QPrzFE7N8Wc=\")","v":{"$error":"#REF!"}},{"$f":"IF(#REF!,\"QPrzFE7N8Wg=\",0)","v":{"$error":"#REF!"}},{"$f":"AND(#REF!,\"QPrzFE7N8Wk=\")","v":{"$error":"#REF!"}},{"$f":"AND(#REF!,\"QPrzFE7N8Wo=\")","v":{"$error":"#REF!"}},{"$f":"AND(#REF!,\"QPrzFE7N8Ws=\")","v":{"$error":"#REF!"}},{"$f":"AND(#REF!,\"QPrzFE7N8Ww=\")","v":{"$error":"#REF!"}},{"$f":"AND(#REF!,\"QPrzFE7N8W0=\")","v":{"$error":"#REF!"}},{"$f":"AND(#REF!,\"QPrzFE7N8W4=\")","v":{"$error":"#REF!"}},{"$f":"AND(#REF!,\"QPrzFE7N8W8=\")","v":{"$error":"#REF!"}},{"$f":"AND(#REF!,\"QPrzFE7N8XA=\")","v":{"$error":"#REF!"}},{"$f":"AND(#REF!,\"QPrzFE7N8XE=\")","v":{"$error":"#REF!"}},{"$f":"AND(#REF!,\"QPrzFE7N8XI=\")","v":{"$error":"#REF!"}},{"$f":"AND(#REF!,\"QPrzFE7N8XM=\")","v":{"$error":"#REF!"}},{"$f":"AND(#REF!,\"QPrzFE7N8XQ=\")","v":{"$error":"#REF!"}},{"$f":"AND(#REF!,\"QPrzFE7N8XU=\")","v":{"$error":"#REF!"}},{"$f":"AND(#REF!,\"QPrzFE7N8XY=\")","v":{"$error":"#REF!"}},{"$f":"AND(#REF!,\"QPrzFE7N8Xc=\")","v":{"$error":"#REF!"}},{"$f":"AND(#REF!,\"QPrzFE7N8Xg=\")","v":{"$error":"#REF!"}},{"$f":"AND(#REF!,\"QPrzFE7N8Xk=\")","v":{"$error":"#REF!"}},{"$f":"AND(#REF!,\"QPrzFE7N8Xo=\")","v":{"$error":"#REF!"}},{"$f":"AND(#REF!,\"QPrzFE7N8Xs=\")","v":{"$error":"#REF!"}},{"$f":"AND(#REF!,\"QPrzFE7N8Xw=\")","v":{"$error":"#REF!"}},{"$f":"AND(#REF!,\"QPrzFE7N8X0=\")","v":{"$error":"#REF!"}},{"$f":"AND(#REF!,\"QPrzFE7N8X4=\")","v":{"$error":"#REF!"}},{"$f":"AND(#REF!,\"QPrzFE7N8X8=\")","v":{"$error":"#REF!"}},{"$f":"AND(#REF!,\"QPrzFE7N8YA=\")","v":{"$error":"#REF!"}},{"$f":"AND(#REF!,\"QPrzFE7N8YE=\")","v":{"$error":"#REF!"}},{"$f":"AND(#REF!,\"QPrzFE7N8YI=\")","v":{"$error":"#REF!"}},{"$f":"AND(#REF!,\"QPrzFE7N8YM=\")","v":{"$error":"#REF!"}},{"$f":"AND(#REF!,\"QPrzFE7N8YQ=\")","v":{"$error":"#REF!"}},{"$f":"AND(#REF!,\"QPrzFE7N8YU=\")","v":{"$error":"#REF!"}},{"$f":"AND(#REF!,\"QPrzFE7N8YY=\")","v":{"$error":"#REF!"}},{"$f":"AND(#REF!,\"QPrzFE7N8Yc=\")","v":{"$error":"#REF!"}},{"$f":"AND(#REF!,\"QPrzFE7N8Yg=\")","v":{"$error":"#REF!"}},{"$f":"AND(#REF!,\"QPrzFE7N8Yk=\")","v":{"$error":"#REF!"}},{"$f":"AND(#REF!,\"QPrzFE7N8Yo=\")","v":{"$error":"#REF!"}},{"$f":"AND(#REF!,\"QPrzFE7N8Ys=\")","v":{"$error":"#REF!"}},{"$f":"AND(#REF!,\"QPrzFE7N8Yw=\")","v":{"$error":"#REF!"}},{"$f":"AND(#REF!,\"QPrzFE7N8Y0=\")","v":{"$error":"#REF!"}},{"$f":"AND(#REF!,\"QPrzFE7N8Y4=\")","v":{"$error":"#REF!"}},{"$f":"AND(#REF!,\"QPrzFE7N8Y8=\")","v":{"$error":"#REF!"}},{"$f":"AND(#REF!,\"QPrzFE7N8ZA=\")","v":{"$error":"#REF!"}},{"$f":"AND(#REF!,\"QPrzFE7N8ZE=\")","v":{"$error":"#REF!"}},{"$f":"AND(#REF!,\"QPrzFE7N8ZI=\")","v":{"$error":"#REF!"}},{"$f":"AND(#REF!,\"QPrzFE7N8ZM=\")","v":{"$error":"#REF!"}},{"$f":"AND(#REF!,\"QPrzFE7N8ZQ=\")","v":{"$error":"#REF!"}},{"$f":"AND(#REF!,\"QPrzFE7N8ZU=\")","v":{"$error":"#REF!"}},{"$f":"AND(#REF!,\"QPrzFE7N8ZY=\")","v":{"$error":"#REF!"}},{"$f":"AND(#REF!,\"QPrzFE7N8Zc=\")","v":{"$error":"#REF!"}},{"$f":"AND(#REF!,\"QPrzFE7N8Zg=\")","v":{"$error":"#REF!"}},{"$f":"AND(#REF!,\"QPrzFE7N8Zk=\")","v":{"$error":"#REF!"}},{"$f":"AND(#REF!,\"QPrzFE7N8Zo=\")","v":{"$error":"#REF!"}},{"$f":"AND(#REF!,\"QPrzFE7N8Zs=\")","v":{"$error":"#REF!"}},{"$f":"AND(#REF!,\"QPrzFE7N8Zw=\")","v":{"$error":"#REF!"}},{"$f":"AND(#REF!,\"QPrzFE7N8Z0=\")","v":{"$error":"#REF!"}},{"$f":"AND(#REF!,\"QPrzFE7N8Z4=\")","v":{"$error":"#REF!"}},{"$f":"AND(#REF!,\"QPrzFE7N8Z8=\")","v":{"$error":"#REF!"}},{"$f":"AND(#REF!,\"QPrzFE7N8aA=\")","v":{"$error":"#REF!"}},{"$f":"AND(#REF!,\"QPrzFE7N8aE=\")","v":{"$error":"#REF!"}},{"$f":"AND(#REF!,\"QPrzFE7N8aI=\")","v":{"$error":"#REF!"}},{"$f":"AND(#REF!,\"QPrzFE7N8aM=\")","v":{"$error":"#REF!"}},{"$f":"AND(#REF!,\"QPrzFE7N8aQ=\")","v":{"$error":"#REF!"}},{"$f":"AND(#REF!,\"QPrzFE7N8aU=\")","v":{"$error":"#REF!"}},{"$f":"AND(#REF!,\"QPrzFE7N8aY=\")","v":{"$error":"#REF!"}},{"$f":"AND(#REF!,\"QPrzFE7N8ac=\")","v":{"$error":"#REF!"}},{"$f":"AND(#REF!,\"QPrzFE7N8ag=\")","v":{"$error":"#REF!"}},{"$f":"AND(#REF!,\"QPrzFE7N8ak=\")","v":{"$error":"#REF!"}},{"$f":"AND(#REF!,\"QPrzFE7N8ao=\")","v":{"$error":"#REF!"}},{"$f":"AND(#REF!,\"QPrzFE7N8as=\")","v":{"$error":"#REF!"}},{"$f":"AND(#REF!,\"QPrzFE7N8aw=\")","v":{"$error":"#REF!"}},{"$f":"AND(#REF!,\"QPrzFE7N8a0=\")","v":{"$error":"#REF!"}},{"$f":"AND(#REF!,\"QPrzFE7N8a4=\")","v":{"$error":"#REF!"}},{"$f":"AND(#REF!,\"QPrzFE7N8a8=\")","v":{"$error":"#REF!"}},{"$f":"AND(#REF!,\"QPrzFE7N8bA=\")","v":{"$error":"#REF!"}},{"$f":"AND(#REF!,\"QPrzFE7N8bE=\")","v":{"$error":"#REF!"}},{"$f":"AND(#REF!,\"QPrzFE7N8bI=\")","v":{"$error":"#REF!"}},{"$f":"AND(#REF!,\"QPrzFE7N8bM=\")","v":{"$error":"#REF!"}},{"$f":"AND(#REF!,\"QPrzFE7N8bQ=\")","v":{"$error":"#REF!"}},{"$f":"AND(#REF!,\"QPrzFE7N8bU=\")","v":{"$error":"#REF!"}},{"$f":"AND(#REF!,\"QPrzFE7N8bY=\")","v":{"$error":"#REF!"}},{"$f":"AND(#REF!,\"QPrzFE7N8bc=\")","v":{"$error":"#REF!"}},{"$f":"AND(#REF!,\"QPrzFE7N8bg=\")","v":{"$error":"#REF!"}},{"$f":"AND(#REF!,\"QPrzFE7N8bk=\")","v":{"$error":"#REF!"}},{"$f":"AND(#REF!,\"QPrzFE7N8bo=\")","v":{"$error":"#REF!"}},{"$f":"AND(#REF!,\"QPrzFE7N8bs=\")","v":{"$error":"#REF!"}},{"$f":"AND(#REF!,\"QPrzFE7N8bw=\")","v":{"$error":"#REF!"}},{"$f":"AND(#REF!,\"QPrzFE7N8b0=\")","v":{"$error":"#REF!"}},{"$f":"AND(#REF!,\"QPrzFE7N8b4=\")","v":{"$error":"#REF!"}},{"$f":"AND(#REF!,\"QPrzFE7N8b8=\")","v":{"$error":"#REF!"}},{"$f":"AND(#REF!,\"QPrzFE7N8cA=\")","v":{"$error":"#REF!"}},{"$f":"AND(#REF!,\"QPrzFE7N8cE=\")","v":{"$error":"#REF!"}},{"$f":"AND(#REF!,\"QPrzFE7N8cI=\")","v":{"$error":"#REF!"}},{"$f":"AND(#REF!,\"QPrzFE7N8cM=\")","v":{"$error":"#REF!"}},{"$f":"AND(#REF!,\"QPrzFE7N8cQ=\")","v":{"$error":"#REF!"}},{"$f":"AND(#REF!,\"QPrzFE7N8cU=\")","v":{"$error":"#REF!"}},{"$f":"AND(#REF!,\"QPrzFE7N8cY=\")","v":{"$error":"#REF!"}},{"$f":"AND(#REF!,\"QPrzFE7N8cc=\")","v":{"$error":"#REF!"}},{"$f":"AND(#REF!,\"QPrzFE7N8cg=\")","v":{"$error":"#REF!"}},{"$f":"AND(#REF!,\"QPrzFE7N8ck=\")","v":{"$error":"#REF!"}},{"$f":"AND(#REF!,\"QPrzFE7N8co=\")","v":{"$error":"#REF!"}},{"$f":"AND(#REF!,\"QPrzFE7N8cs=\")","v":{"$error":"#REF!"}},{"$f":"AND(#REF!,\"QPrzFE7N8cw=\")","v":{"$error":"#REF!"}},{"$f":"AND(#REF!,\"QPrzFE7N8c0=\")","v":{"$error":"#REF!"}},{"$f":"AND(#REF!,\"QPrzFE7N8c4=\")","v":{"$error":"#REF!"}},{"$f":"AND(#REF!,\"QPrzFE7N8c8=\")","v":{"$error":"#REF!"}},{"$f":"AND(#REF!,\"QPrzFE7N8dA=\")","v":{"$error":"#REF!"}},{"$f":"AND(#REF!,\"QPrzFE7N8dE=\")","v":{"$error":"#REF!"}},{"$f":"AND(#REF!,\"QPrzFE7N8dI=\")","v":{"$error":"#REF!"}},{"$f":"AND(#REF!,\"QPrzFE7N8dM=\")","v":{"$error":"#REF!"}},{"$f":"AND(#REF!,\"QPrzFE7N8dQ=\")","v":{"$error":"#REF!"}},{"$f":"AND(#REF!,\"QPrzFE7N8dU=\")","v":{"$error":"#REF!"}},{"$f":"AND(#REF!,\"QPrzFE7N8dY=\")","v":{"$error":"#REF!"}},{"$f":"AND(#REF!,\"QPrzFE7N8dc=\")","v":{"$error":"#REF!"}},{"$f":"AND(#REF!,\"QPrzFE7N8dg=\")","v":{"$error":"#REF!"}},{"$f":"AND(#REF!,\"QPrzFE7N8dk=\")","v":{"$error":"#REF!"}},{"$f":"AND(#REF!,\"QPrzFE7N8do=\")","v":{"$error":"#REF!"}},{"$f":"AND(#REF!,\"QPrzFE7N8ds=\")","v":{"$error":"#REF!"}},{"$f":"AND(#REF!,\"QPrzFE7N8dw=\")","v":{"$error":"#REF!"}},{"$f":"AND(#REF!,\"QPrzFE7N8d0=\")","v":{"$error":"#REF!"}},{"$f":"AND(#REF!,\"QPrzFE7N8d4=\")","v":{"$error":"#REF!"}},{"$f":"AND(#REF!,\"QPrzFE7N8d8=\")","v":{"$error":"#REF!"}},{"$f":"AND(#REF!,\"QPrzFE7N8eA=\")","v":{"$error":"#REF!"}},{"$f":"AND(#REF!,\"QPrzFE7N8eE=\")","v":{"$error":"#REF!"}},{"$f":"AND(#REF!,\"QPrzFE7N8eI=\")","v":{"$error":"#REF!"}},{"$f":"AND(#REF!,\"QPrzFE7N8eM=\")","v":{"$error":"#REF!"}},{"$f":"AND(#REF!,\"QPrzFE7N8eQ=\")","v":{"$error":"#REF!"}},{"$f":"AND(#REF!,\"QPrzFE7N8eU=\")","v":{"$error":"#REF!"}},{"$f":"AND(#REF!,\"QPrzFE7N8eY=\")","v":{"$error":"#REF!"}},{"$f":"AND(#REF!,\"QPrzFE7N8ec=\")","v":{"$error":"#REF!"}},{"$f":"AND(#REF!,\"QPrzFE7N8eg=\")","v":{"$error":"#REF!"}},{"$f":"AND(#REF!,\"QPrzFE7N8ek=\")","v":{"$error":"#REF!"}},{"$f":"AND(#REF!,\"QPrzFE7N8eo=\")","v":{"$error":"#REF!"}},{"$f":"AND(#REF!,\"QPrzFE7N8es=\")","v":{"$error":"#REF!"}},{"$f":"AND(#REF!,\"QPrzFE7N8ew=\")","v":{"$error":"#REF!"}},{"$f":"AND(#REF!,\"QPrzFE7N8e0=\")","v":{"$error":"#REF!"}},{"$f":"AND(#REF!,\"QPrzFE7N8e4=\")","v":{"$error":"#REF!"}},{"$f":"AND(#REF!,\"QPrzFE7N8e8=\")","v":{"$error":"#REF!"}},{"$f":"AND(#REF!,\"QPrzFE7N8fA=\")","v":{"$error":"#REF!"}},{"$f":"AND(#REF!,\"QPrzFE7N8fE=\")","v":{"$error":"#REF!"}},{"$f":"AND(#REF!,\"QPrzFE7N8fI=\")","v":{"$error":"#REF!"}},{"$f":"AND(#REF!,\"QPrzFE7N8fM=\")","v":{"$error":"#REF!"}},{"$f":"AND(#REF!,\"QPrzFE7N8fQ=\")","v":{"$error":"#REF!"}},{"$f":"AND(#REF!,\"QPrzFE7N8fU=\")","v":{"$error":"#REF!"}},{"$f":"AND(#REF!,\"QPrzFE7N8fY=\")","v":{"$error":"#REF!"}},{"$f":"AND(#REF!,\"QPrzFE7N8fc=\")","v":{"$error":"#REF!"}},{"$f":"AND(#REF!,\"QPrzFE7N8fg=\")","v":{"$error":"#REF!"}},{"$f":"AND(#REF!,\"QPrzFE7N8fk=\")","v":{"$error":"#REF!"}},{"$f":"AND(#REF!,\"QPrzFE7N8fo=\")","v":{"$error":"#REF!"}},{"$f":"AND(#REF!,\"QPrzFE7N8fs=\")","v":{"$error":"#REF!"}},{"$f":"AND(#REF!,\"QPrzFE7N8fw=\")","v":{"$error":"#REF!"}},{"$f":"AND(#REF!,\"QPrzFE7N8f0=\")","v":{"$error":"#REF!"}},{"$f":"AND(#REF!,\"QPrzFE7N8f4=\")","v":{"$error":"#REF!"}},{"$f":"AND(#REF!,\"QPrzFE7N8f8=\")","v":{"$error":"#REF!"}}]
[{"$f":"AND(#REF!,\"FpQCmCt9HAA=\")","v":{"$error":"#REF!"}},{"$f":"AND(#REF!,\"FpQCmCt9HAE=\")","v":{"$error":"#REF!"}},{"$f":"AND(#REF!,\"FpQCmCt9HAI=\")","v":{"$error":"#REF!"}},{"$f":"AND(#REF!,\"FpQCmCt9HAM=\")","v":{"$error":"#REF!"}},{"$f":"AND(#REF!,\"FpQCmCt9HAQ=\")","v":{"$error":"#REF!"}},{"$f":"AND(#REF!,\"FpQCmCt9HAU=\")","v":{"$error":"#REF!"}},{"$f":"AND(#REF!,\"FpQCmCt9HAY=\")","v":{"$error":"#REF!"}},{"$f":"AND(#REF!,\"FpQCmCt9HAc=\")","v":{"$error":"#REF!"}},{"$f":"AND(#REF!,\"FpQCmCt9HAg=\")","v":{"$error":"#REF!"}},{"$f":"AND(#REF!,\"FpQCmCt9HAk=\")","v":{"$error":"#REF!"}},{"$f":"AND(#REF!,\"FpQCmCt9HAo=\")","v":{"$error":"#REF!"}},{"$f":"AND(#REF!,\"FpQCmCt9HAs=\")","v":{"$error":"#REF!"}},{"$f":"AND(#REF!,\"FpQCmCt9HAw=\")","v":{"$error":"#REF!"}},{"$f":"AND(#REF!,\"FpQCmCt9HA0=\")","v":{"$error":"#REF!"}},{"$f":"AND(#REF!,\"FpQCmCt9HA4=\")","v":{"$error":"#REF!"}},{"$f":"AND(#REF!,\"FpQCmCt9HA8=\")","v":{"$error":"#REF!"}},{"$f":"AND(#REF!,\"FpQCmCt9HBA=\")","v":{"$error":"#REF!"}},{"$f":"AND(#REF!,\"FpQCmCt9HBE=\")","v":{"$error":"#REF!"}},{"$f":"AND(#REF!,\"FpQCmCt9HBI=\")","v":{"$error":"#REF!"}},{"$f":"AND(#REF!,\"FpQCmCt9HBM=\")","v":{"$error":"#REF!"}},{"$f":"AND(#REF!,\"FpQCmCt9HBQ=\")","v":{"$error":"#REF!"}},{"$f":"AND(#REF!,\"FpQCmCt9HBU=\")","v":{"$error":"#REF!"}},{"$f":"AND(#REF!,\"FpQCmCt9HBY=\")","v":{"$error":"#REF!"}},{"$f":"AND(#REF!,\"FpQCmCt9HBc=\")","v":{"$error":"#REF!"}},{"$f":"AND(#REF!,\"FpQCmCt9HBg=\")","v":{"$error":"#REF!"}},{"$f":"AND(#REF!,\"FpQCmCt9HBk=\")","v":{"$error":"#REF!"}},{"$f":"AND(#REF!,\"FpQCmCt9HBo=\")","v":{"$error":"#REF!"}},{"$f":"AND(#REF!,\"FpQCmCt9HBs=\")","v":{"$error":"#REF!"}},{"$f":"AND(#REF!,\"FpQCmCt9HBw=\")","v":{"$error":"#REF!"}},{"$f":"AND(#REF!,\"FpQCmCt9HB0=\")","v":{"$error":"#REF!"}},{"$f":"AND(#REF!,\"FpQCmCt9HB4=\")","v":{"$error":"#REF!"}},{"$f":"AND(#REF!,\"FpQCmCt9HB8=\")","v":{"$error":"#REF!"}},{"$f":"AND(#REF!,\"FpQCmCt9HCA=\")","v":{"$error":"#REF!"}},{"$f":"AND(#REF!,\"FpQCmCt9HCE=\")","v":{"$error":"#REF!"}},{"$f":"AND(#REF!,\"FpQCmCt9HCI=\")","v":{"$error":"#REF!"}},{"$f":"AND(#REF!,\"FpQCmCt9HCM=\")","v":{"$error":"#REF!"}},{"$f":"AND(#REF!,\"FpQCmCt9HCQ=\")","v":{"$error":"#REF!"}},{"$f":"AND(#REF!,\"FpQCmCt9HCU=\")","v":{"$error":"#REF!"}},{"$f":"AND(#REF!,\"FpQCmCt9HCY=\")","v":{"$error":"#REF!"}},{"$f":"AND(#REF!,\"FpQCmCt9HCc=\")","v":{"$error":"#REF!"}},{"$f":"AND(#REF!,\"FpQCmCt9HCg=\")","v":{"$error":"#REF!"}},{"$f":"AND(#REF!,\"FpQCmCt9HCk=\")","v":{"$error":"#REF!"}},{"$f":"AND(#REF!,\"FpQCmCt9HCo=\")","v":{"$error":"#REF!"}},{"$f":"AND(#REF!,\"FpQCmCt9HCs=\")","v":{"$error":"#REF!"}},{"$f":"AND(#REF!,\"FpQCmCt9HCw=\")","v":{"$error":"#REF!"}},{"$f":"AND(#REF!,\"FpQCmCt9HC0=\")","v":{"$error":"#REF!"}},{"$f":"AND(#REF!,\"FpQCmCt9HC4=\")","v":{"$error":"#REF!"}},{"$f":"IF(#REF!,\"FpQCmCt9HC8=\",0)","v":{"$error":"#REF!"}},{"$f":"AND(#REF!,\"FpQCmCt9HDA=\")","v":{"$error":"#REF!"}},{"$f":"AND(#REF!,\"FpQCmCt9HDE=\")","v":{"$error":"#REF!"}},{"$f":"AND(#REF!,\"FpQCmCt9HDI=\")","v":{"$error":"#REF!"}},{"$f":"AND(#REF!,\"FpQCmCt9HDM=\")","v":{"$error":"#REF!"}},{"$f":"AND(#REF!,\"FpQCmCt9HDQ=\")","v":{"$error":"#REF!"}},{"$f":"AND(#REF!,\"FpQCmCt9HDU=\")","v":{"$error":"#REF!"}},{"$f":"AND(#REF!,\"FpQCmCt9HDY=\")","v":{"$error":"#REF!"}},{"$f":"AND(#REF!,\"FpQCmCt9HDc=\")","v":{"$error":"#REF!"}},{"$f":"AND(#REF!,\"FpQCmCt9HDg=\")","v":{"$error":"#REF!"}},{"$f":"AND(#REF!,\"FpQCmCt9HDk=\")","v":{"$error":"#REF!"}},{"$f":"AND(#REF!,\"FpQCmCt9HDo=\")","v":{"$error":"#REF!"}},{"$f":"AND(#REF!,\"FpQCmCt9HDs=\")","v":{"$error":"#REF!"}},{"$f":"AND(#REF!,\"FpQCmCt9HDw=\")","v":{"$error":"#REF!"}},{"$f":"AND(#REF!,\"FpQCmCt9HD0=\")","v":{"$error":"#REF!"}},{"$f":"AND(#REF!,\"FpQCmCt9HD4=\")","v":{"$error":"#REF!"}},{"$f":"AND(#REF!,\"FpQCmCt9HD8=\")","v":{"$error":"#REF!"}},{"$f":"AND(#REF!,\"FpQCmCt9HEA=\")","v":{"$error":"#REF!"}},{"$f":"AND(#REF!,\"FpQCmCt9HEE=\")","v":{"$error":"#REF!"}},{"$f":"AND(#REF!,\"FpQCmCt9HEI=\")","v":{"$error":"#REF!"}},{"$f":"AND(#REF!,\"FpQCmCt9HEM=\")","v":{"$error":"#REF!"}},{"$f":"AND(#REF!,\"FpQCmCt9HEQ=\")","v":{"$error":"#REF!"}},{"$f":"AND(#REF!,\"FpQCmCt9HEU=\")","v":{"$error":"#REF!"}},{"$f":"AND(#REF!,\"FpQCmCt9HEY=\")","v":{"$error":"#REF!"}},{"$f":"AND(#REF!,\"FpQCmCt9HEc=\")","v":{"$error":"#REF!"}},{"$f":"AND(#REF!,\"FpQCmCt9HEg=\")","v":{"$error":"#REF!"}},{"$f":"AND(#REF!,\"FpQCmCt9HEk=\")","v":{"$error":"#REF!"}},{"$f":"AND(#REF!,\"FpQCmCt9HEo=\")","v":{"$error":"#REF!"}},{"$f":"AND(#REF!,\"FpQCmCt9HEs=\")","v":{"$error":"#REF!"}},{"$f":"AND(#REF!,\"FpQCmCt9HEw=\")","v":{"$error":"#REF!"}},{"$f":"AND(#REF!,\"FpQCmCt9HE0=\")","v":{"$error":"#REF!"}},{"$f":"AND(#REF!,\"FpQCmCt9HE4=\")","v":{"$error":"#REF!"}},{"$f":"AND(#REF!,\"FpQCmCt9HE8=\")","v":{"$error":"#REF!"}},{"$f":"AND(#REF!,\"FpQCmCt9HFA=\")","v":{"$error":"#REF!"}},{"$f":"AND(#REF!,\"FpQCmCt9HFE=\")","v":{"$error":"#REF!"}},{"$f":"AND(#REF!,\"FpQCmCt9HFI=\")","v":{"$error":"#REF!"}},{"$f":"AND(#REF!,\"FpQCmCt9HFM=\")","v":{"$error":"#REF!"}},{"$f":"AND(#REF!,\"FpQCmCt9HFQ=\")","v":{"$error":"#REF!"}},{"$f":"AND(#REF!,\"FpQCmCt9HFU=\")","v":{"$error":"#REF!"}},{"$f":"AND(#REF!,\"FpQCmCt9HFY=\")","v":{"$error":"#REF!"}},{"$f":"AND(#REF!,\"FpQCmCt9HFc=\")","v":{"$error":"#REF!"}},{"$f":"AND(#REF!,\"FpQCmCt9HFg=\")","v":{"$error":"#REF!"}},{"$f":"AND(#REF!,\"FpQCmCt9HFk=\")","v":{"$error":"#REF!"}},{"$f":"AND(#REF!,\"FpQCmCt9HFo=\")","v":{"$error":"#REF!"}},{"$f":"AND(#REF!,\"FpQCmCt9HFs=\")","v":{"$error":"#REF!"}},{"$f":"AND(#REF!,\"FpQCmCt9HFw=\")","v":{"$error":"#REF!"}},{"$f":"AND(#REF!,\"FpQCmCt9HF0=\")","v":{"$error":"#REF!"}},{"$f":"AND(#REF!,\"FpQCmCt9HF4=\")","v":{"$error":"#REF!"}},{"$f":"AND(#REF!,\"FpQCmCt9HF8=\")","v":{"$error":"#REF!"}},{"$f":"AND(#REF!,\"FpQCmCt9HGA=\")","v":{"$error":"#REF!"}},{"$f":"AND(#REF!,\"FpQCmCt9HGE=\")","v":{"$error":"#REF!"}},{"$f":"AND(#REF!,\"FpQCmCt9HGI=\")","v":{"$error":"#REF!"}},{"$f":"AND(#REF!,\"FpQCmCt9HGM=\")","v":{"$error":"#REF!"}},{"$f":"AND(#REF!,\"FpQCmCt9HGQ=\")","v":{"$error":"#REF!"}},{"$f":"AND(#REF!,\"FpQCmCt9HGU=\")","v":{"$error":"#REF!"}},{"$f":"AND(#REF!,\"FpQCmCt9HGY=\")","v":{"$error":"#REF!"}},{"$f":"AND(#REF!,\"FpQCmCt9HGc=\")","v":{"$error":"#REF!"}},{"$f":"AND(#REF!,\"FpQCmCt9HGg=\")","v":{"$error":"#REF!"}},{"$f":"AND(#REF!,\"FpQCmCt9HGk=\")","v":{"$error":"#REF!"}},{"$f":"AND(#REF!,\"FpQCmCt9HGo=\")","v":{"$error":"#REF!"}},{"$f":"AND(#REF!,\"FpQCmCt9HGs=\")","v":{"$error":"#REF!"}},{"$f":"AND(#REF!,\"FpQCmCt9HGw=\")","v":{"$error":"#REF!"}},{"$f":"AND(#REF!,\"FpQCmCt9HG0=\")","v":{"$error":"#REF!"}},{"$f":"AND(#REF!,\"FpQCmCt9HG4=\")","v":{"$error":"#REF!"}},{"$f":"AND(#REF!,\"FpQCmCt9HG8=\")","v":{"$error":"#REF!"}},{"$f":"AND(#REF!,\"FpQCmCt9HHA=\")","v":{"$error":"#REF!"}},{"$f":"AND(#REF!,\"FpQCmCt9HHE=\")","v":{"$error":"#REF!"}},{"$f":"AND(#REF!,\"FpQCmCt9HHI=\")","v":{"$error":"#REF!"}},{"$f":"AND(#REF!,\"FpQCmCt9HHM=\")","v":{"$error":"#REF!"}},{"$f":"AND(#REF!,\"FpQCmCt9HHQ=\")","v":{"$error":"#REF!"}},{"$f":"AND(#REF!,\"FpQCmCt9HHU=\")","v":{"$error":"#REF!"}},{"$f":"AND(#REF!,\"FpQCmCt9HHY=\")","v":{"$error":"#REF!"}},{"$f":"AND(#REF!,\"FpQCmCt9HHc=\")","v":{"$error":"#REF!"}},{"$f":"AND(#REF!,\"FpQCmCt9HHg=\")","v":{"$error":"#REF!"}},{"$f":"AND(#REF!,\"FpQCmCt9HHk=\")","v":{"$error":"#REF!"}},{"$f":"AND(#REF!,\"FpQCmCt9HHo=\")","v":{"$error":"#REF!"}},{"$f":"AND(#REF!,\"FpQCmCt9HHs=\")","v":{"$error":"#REF!"}},{"$f":"AND(#REF!,\"FpQCmCt9HHw=\")","v":{"$error":"#REF!"}},{"$f":"AND(#REF!,\"FpQCmCt9HH0=\")","v":{"$error":"#REF!"}},{"$f":"AND(#REF!,\"FpQCmCt9HH4=\")","v":{"$error":"#REF!"}},{"$f":"AND(#REF!,\"FpQCmCt9HH8=\")","v":{"$error":"#REF!"}},{"$f":"AND(#REF!,\"FpQCmCt9HIA=\")","v":{"$error":"#REF!"}},{"$f":"AND(#REF!,\"FpQCmCt9HIE=\")","v":{"$error":"#REF!"}},{"$f":"AND(#REF!,\"FpQCmCt9HII=\")","v":{"$error":"#REF!"}},{"$f":"AND(#REF!,\"FpQCmCt9HIM=\")","v":{"$error":"#REF!"}},{"$f":"AND(#REF!,\"FpQCmCt9HIQ=\")","v":{"$error":"#REF!"}},{"$f":"AND(#REF!,\"FpQCmCt9HIU=\")","v":{"$error":"#REF!"}},{"$f":"AND(#REF!,\"FpQCmCt9HIY=\")","v":{"$error":"#REF!"}},{"$f":"AND(#REF!,\"FpQCmCt9HIc=\")","v":{"$error":"#REF!"}},{"$f":"AND(#REF!,\"FpQCmCt9HIg=\")","v":{"$error":"#REF!"}},{"$f":"AND(#REF!,\"FpQCmCt9HIk=\")","v":{"$error":"#REF!"}},{"$f":"AND(#REF!,\"FpQCmCt9HIo=\")","v":{"$error":"#REF!"}},{"$f":"AND(#REF!,\"FpQCmCt9HIs=\")","v":{"$error":"#REF!"}},{"$f":"AND(#REF!,\"FpQCmCt9HIw=\")","v":{"$error":"#REF!"}},{"$f":"AND(#REF!,\"FpQCmCt9HI0=\")","v":{"$error":"#REF!"}},{"$f":"AND(#REF!,\"FpQCmCt9HI4=\")","v":{"$error":"#REF!"}},{"$f":"AND(#REF!,\"FpQCmCt9HI8=\")","v":{"$error":"#REF!"}},{"$f":"AND(#REF!,\"FpQCmCt9HJA=\")","v":{"$error":"#REF!"}},{"$f":"AND(#REF!,\"FpQCmCt9HJE=\")","v":{"$error":"#REF!"}},{"$f":"AND(#REF!,\"FpQCmCt9HJI=\")","v":{"$error":"#REF!"}},{"$f":"AND(#REF!,\"FpQCmCt9HJM=\")","v":{"$error":"#REF!"}},{"$f":"AND(#REF!,\"FpQCmCt9HJQ=\")","v":{"$error":"#REF!"}},{"$f":"AND(#REF!,\"FpQCmCt9HJU=\")","v":{"$error":"#REF!"}},{"$f":"AND(#REF!,\"FpQCmCt9HJY=\")","v":{"$error":"#REF!"}},{"$f":"AND(#REF!,\"FpQCmCt9HJc=\")","v":{"$error":"#REF!"}},{"$f":"AND(#REF!,\"FpQCmCt9HJg=\")","v":{"$error":"#REF!"}},{"$f":"AND(#REF!,\"FpQCmCt9HJk=\")","v":{"$error":"#REF!"}},{"$f":"AND(#REF!,\"FpQCmCt9HJo=\")","v":{"$error":"#REF!"}},{"$f":"AND(#REF!,\"FpQCmCt9HJs=\")","v":{"$error":"#REF!"}},{"$f":"AND(#REF!,\"FpQCmCt9HJw=\")","v":{"$error":"#REF!"}},{"$f":"AND(#REF!,\"FpQCmCt9HJ0=\")","v":{"$error":"#REF!"}},{"$f":"AND(#REF!,\"FpQCmCt9HJ4=\")","v":{"$error":"#REF!"}},{"$f":"AND(#REF!,\"FpQCmCt9HJ8=\")","v":{"$error":"#REF!"}},{"$f":"AND(#REF!,\"FpQCmCt9HKA=\")","v":{"$error":"#REF!"}},{"$f":"AND(#REF!,\"FpQCmCt9HKE=\")","v":{"$error":"#REF!"}},{"$f":"AND(#REF!,\"FpQCmCt9HKI=\")","v":{"$error":"#REF!"}},{"$f":"AND(#REF!,\"FpQCmCt9HKM=\")","v":{"$error":"#REF!"}},{"$f":"AND(#REF!,\"FpQCmCt9HKQ=\")","v":{"$error":"#REF!"}},{"$f":"AND(#REF!,\"FpQCmCt9HKU=\")","v":{"$error":"#REF!"}},{"$f":"AND(#REF!,\"FpQCmCt9HKY=\")","v":{"$error":"#REF!"}},{"$f":"AND(#REF!,\"FpQCmCt9HKc=\")","v":{"$error":"#REF!"}},{"$f":"AND(#REF!,\"FpQCmCt9HKg=\")","v":{"$error":"#REF!"}},{"$f":"AND(#REF!,\"FpQCmCt9HKk=\")","v":{"$error":"#REF!"}},{"$f":"AND(#REF!,\"FpQCmCt9HKo=\")","v":{"$error":"#REF!"}},{"$f":"AND(#REF!,\"FpQCmCt9HKs=\")","v":{"$error":"#REF!"}},{"$f":"AND(#REF!,\"FpQCmCt9HKw=\")","v":{"$error":"#REF!"}},{"$f":"AND(#REF!,\"FpQCmCt9HK0=\")","v":{"$error":"#REF!"}},{"$f":"AND(#REF!,\"FpQCmCt9HK4=\")","v":{"$error":"#REF!"}},{"$f":"AND(#REF!,\"FpQCmCt9HK8=\")","v":{"$error":"#REF!"}},{"$f":"AND(#REF!,\"FpQCmCt9HLA=\")","v":{"$error":"#REF!"}},{"$f":"AND(#REF!,\"FpQCmCt9HLE=\")","v":{"$error":"#REF!"}},{"$f":"AND(#REF!,\"FpQCmCt9HLI=\")","v":{"$error":"#REF!"}},{"$f":"AND(#REF!,\"FpQCmCt9HLM=\")","v":{"$error":"#REF!"}},{"$f":"AND(#REF!,\"FpQCmCt9HLQ=\")","v":{"$error":"#REF!"}},{"$f":"AND(#REF!,\"FpQCmCt9HLU=\")","v":{"$error":"#REF!"}},{"$f":"AND(#REF!,\"FpQCmCt9HLY=\")","v":{"$error":"#REF!"}},{"$f":"AND(#REF!,\"FpQCmCt9HLc=\")","v":{"$error":"#REF!"}},{"$f":"AND(#REF!,\"FpQCmCt9HLg=\")","v":{"$error":"#REF!"}},{"$f":"AND(#REF!,\"FpQCmCt9HLk=\")","v":{"$error":"#REF!"}},{"$f":"AND(#REF!,\"FpQCmCt9HLo=\")","v":{"$error":"#REF!"}},{"$f":"AND(#REF!,\"FpQCmCt9HLs=\")","v":{"$error":"#REF!"}},{"$f":"AND(#REF!,\"FpQCmCt9HLw=\")","v":{"$error":"#REF!"}},{"$f":"AND(#REF!,\"FpQCmCt9HL0=\")","v":{"$error":"#REF!"}},{"$f":"AND(#REF!,\"FpQCmCt9HL4=\")","v":{"$error":"#REF!"}},{"$f":"AND(#REF!,\"FpQCmCt9HL8=\")","v":{"$error":"#REF!"}},{"$f":"AND(#REF!,\"FpQCmCt9HMA=\")","v":{"$error":"#REF!"}},{"$f":"AND(#REF!,\"FpQCmCt9HME=\")","v":{"$error":"#REF!"}},{"$f":"AND(#REF!,\"FpQCmCt9HMI=\")","v":{"$error":"#REF!"}},{"$f":"AND(#REF!,\"FpQCmCt9HMM=\")","v":{"$error":"#REF!"}},{"$f":"AND(#REF!,\"FpQCmCt9HMQ=\")","v":{"$error":"#REF!"}},{"$f":"AND(#REF!,\"FpQCmCt9HMU=\")","v":{"$error":"#REF!"}},{"$f":"AND(#REF!,\"FpQCmCt9HMY=\")","v":{"$error":"#REF!"}},{"$f":"AND(#REF!,\"FpQCmCt9HMc=\")","v":{"$error":"#REF!"}},{"$f":"AND(#REF!,\"FpQCmCt9HMg=\")","v":{"$error":"#REF!"}},{"$f":"AND(#REF!,\"FpQCmCt9HMk=\")","v":{"$error":"#REF!"}},{"$f":"AND(#REF!,\"FpQCmCt9HMo=\")","v":{"$error":"#REF!"}},{"$f":"AND(#REF!,\"FpQCmCt9HMs=\")","v":{"$error":"#REF!"}},{"$f":"AND(#REF!,\"FpQCmCt9HMw=\")","v":{"$error":"#REF!"}},{"$f":"AND(#REF!,\"FpQCmCt9HM0=\")","v":{"$error":"#REF!"}},{"$f":"AND(#REF!,\"FpQCmCt9HM4=\")","v":{"$error":"#REF!"}},{"$f":"AND(#REF!,\"FpQCmCt9HM8=\")","v":{"$error":"#REF!"}},{"$f":"AND(#REF!,\"FpQCmCt9HNA=\")","v":{"$error":"#REF!"}},{"$f":"AND(#REF!,\"FpQCmCt9HNE=\")","v":{"$error":"#REF!"}},{"$f":"AND(#REF!,\"FpQCmCt9HNI=\")","v":{"$error":"#REF!"}},{"$f":"AND(#REF!,\"FpQCmCt9HNM=\")","v":{"$error":"#REF!"}},{"$f":"AND(#REF!,\"FpQCmCt9HNQ=\")","v":{"$error":"#REF!"}},{"$f":"AND(#REF!,\"FpQCmCt9HNU=\")","v":{"$error":"#REF!"}},{"$f":"AND(#REF!,\"FpQCmCt9HNY=\")","v":{"$error":"#REF!"}},{"$f":"AND(#REF!,\"FpQCmCt9HNc=\")","v":{"$error":"#REF!"}},{"$f":"AND(#REF!,\"FpQCmCt9HNg=\")","v":{"$error":"#REF!"}},{"$f":"AND(#REF!,\"FpQCmCt9HNk=\")","v":{"$error":"#REF!"}},{"$f":"AND(#REF!,\"FpQCmCt9HNo=\")","v":{"$error":"#REF!"}},{"$f":"AND(#REF!,\"FpQCmCt9HNs=\")","v":{"$error":"#REF!"}},{"$f":"AND(#REF!,\"FpQCmCt9HNw=\")","v":{"$error":"#REF!"}},{"$f":"AND(#REF!,\"FpQCmCt9HN0=\")","v":{"$error":"#REF!"}},{"$f":"AND(#REF!,\"FpQCmCt9HN4=\")","v":{"$error":"#REF!"}},{"$f":"AND(#REF!,\"FpQCmCt9HN8=\")","v":{"$error":"#REF!"}},{"$f":"AND(#REF!,\"FpQCmCt9HOA=\")","v":{"$error":"#REF!"}},{"$f":"AND(#REF!,\"FpQCmCt9HOE=\")","v":{"$error":"#REF!"}},{"$f":"AND(#REF!,\"FpQCmCt9HOI=\")","v":{"$error":"#REF!"}},{"$f":"AND(#REF!,\"FpQCmCt9HOM=\")","v":{"$error":"#REF!"}},{"$f":"AND(#REF!,\"FpQCmCt9HOQ=\")","v":{"$error":"#REF!"}},{"$f":"AND(#REF!,\"FpQCmCt9HOU=\")","v":{"$error":"#REF!"}},{"$f":"AND(#REF!,\"FpQCmCt9HOY=\")","v":{"$error":"#REF!"}},{"$f":"AND(#REF!,\"FpQCmCt9HOc=\")","v":{"$error":"#REF!"}},{"$f":"AND(#REF!,\"FpQCmCt9HOg=\")","v":{"$error":"#REF!"}},{"$f":"AND(#REF!,\"FpQCmCt9HOk=\")","v":{"$error":"#REF!"}},{"$f":"AND(#REF!,\"FpQCmCt9HOo=\")","v":{"$error":"#REF!"}},{"$f":"AND(#REF!,\"FpQCmCt9HOs=\")","v":{"$error":"#REF!"}},{"$f":"AND(#REF!,\"FpQCmCt9HOw=\")","v":{"$error":"#REF!"}},{"$f":"AND(#REF!,\"FpQCmCt9HO0=\")","v":{"$error":"#REF!"}},{"$f":"AND(#REF!,\"FpQCmCt9HO4=\")","v":{"$error":"#REF!"}},{"$f":"AND(#REF!,\"FpQCmCt9HO8=\")","v":{"$error":"#REF!"}},{"$f":"AND(#REF!,\"FpQCmCt9HPA=\")","v":{"$error":"#REF!"}},{"$f":"AND(#REF!,\"FpQCmCt9HPE=\")","v":{"$error":"#REF!"}},{"$f":"AND(#REF!,\"FpQCmCt9HPI=\")","v":{"$error":"#REF!"}},{"$f":"AND(#REF!,\"FpQCmCt9HPM=\")","v":{"$error":"#REF!"}},{"$f":"AND(#REF!,\"FpQCmCt9HPQ=\")","v":{"$error":"#REF!"}},{"$f":"AND(#REF!,\"FpQCmCt9HPU=\")","v":{"$error":"#REF!"}},{"$f":"IF(#REF!,\"FpQCmCt9HPY=\",0)","v":{"$error":"#REF!"}},{"$f":"AND(#REF!,\"FpQCmCt9HPc=\")","v":{"$error":"#REF!"}},{"$f":"AND(#REF!,\"FpQCmCt9HPg=\")","v":{"$error":"#REF!"}},{"$f":"AND(#REF!,\"FpQCmCt9HPk=\")","v":{"$error":"#REF!"}},{"$f":"AND(#REF!,\"FpQCmCt9HPo=\")","v":{"$error":"#REF!"}},{"$f":"AND(#REF!,\"FpQCmCt9HPs=\")","v":{"$error":"#REF!"}},{"$f":"AND(#REF!,\"FpQCmCt9HPw=\")","v":{"$error":"#REF!"}},{"$f":"AND(#REF!,\"FpQCmCt9HP0=\")","v":{"$error":"#REF!"}},{"$f":"AND(#REF!,\"FpQCmCt9HP4=\")","v":{"$error":"#REF!"}},{"$f":"AND(#REF!,\"FpQCmCt9HP8=\")","v":{"$error":"#REF!"}}]
[{"$f":"AND(#REF!,\"Njx2VzSTlwA=\")","v":{"$error":"#REF!"}},{"$f":"AND(#REF!,\"Njx2VzSTlwE=\")","v":{"$error":"#REF!"}},{"$f":"AND(#REF!,\"Njx2VzSTlwI=\")","v":{"$error":"#REF!"}},{"$f":"AND(#REF!,\"Njx2VzSTlwM=\")","v":{"$error":"#REF!"}},{"$f":"AND(#REF!,\"Njx2VzSTlwQ=\")","v":{"$error":"#REF!"}},{"$f":"AND(#REF!,\"Njx2VzSTlwU=\")","v":{"$error":"#REF!"}},{"$f":"AND(#REF!,\"Njx2VzSTlwY=\")","v":{"$error":"#REF!"}},{"$f":"AND(#REF!,\"Njx2VzSTlwc=\")","v":{"$error":"#REF!"}},{"$f":"AND(#REF!,\"Njx2VzSTlwg=\")","v":{"$error":"#REF!"}},{"$f":"AND(#REF!,\"Njx2VzSTlwk=\")","v":{"$error":"#REF!"}},{"$f":"AND(#REF!,\"Njx2VzSTlwo=\")","v":{"$error":"#REF!"}},{"$f":"AND(#REF!,\"Njx2VzSTlws=\")","v":{"$error":"#REF!"}},{"$f":"AND(#REF!,\"Njx2VzSTlww=\")","v":{"$error":"#REF!"}},{"$f":"AND(#REF!,\"Njx2VzSTlw0=\")","v":{"$error":"#REF!"}},{"$f":"AND(#REF!,\"Njx2VzSTlw4=\")","v":{"$error":"#REF!"}},{"$f":"AND(#REF!,\"Njx2VzSTlw8=\")","v":{"$error":"#REF!"}},{"$f":"AND(#REF!,\"Njx2VzSTlxA=\")","v":{"$error":"#REF!"}},{"$f":"AND(#REF!,\"Njx2VzSTlxE=\")","v":{"$error":"#REF!"}},{"$f":"AND(#REF!,\"Njx2VzSTlxI=\")","v":{"$error":"#REF!"}},{"$f":"AND(#REF!,\"Njx2VzSTlxM=\")","v":{"$error":"#REF!"}},{"$f":"AND(#REF!,\"Njx2VzSTlxQ=\")","v":{"$error":"#REF!"}},{"$f":"AND(#REF!,\"Njx2VzSTlxU=\")","v":{"$error":"#REF!"}},{"$f":"AND(#REF!,\"Njx2VzSTlxY=\")","v":{"$error":"#REF!"}},{"$f":"AND(#REF!,\"Njx2VzSTlxc=\")","v":{"$error":"#REF!"}},{"$f":"AND(#REF!,\"Njx2VzSTlxg=\")","v":{"$error":"#REF!"}},{"$f":"AND(#REF!,\"Njx2VzSTlxk=\")","v":{"$error":"#REF!"}},{"$f":"AND(#REF!,\"Njx2VzSTlxo=\")","v":{"$error":"#REF!"}},{"$f":"AND(#REF!,\"Njx2VzSTlxs=\")","v":{"$error":"#REF!"}},{"$f":"AND(#REF!,\"Njx2VzSTlxw=\")","v":{"$error":"#REF!"}},{"$f":"AND(#REF!,\"Njx2VzSTlx0=\")","v":{"$error":"#REF!"}},{"$f":"AND(#REF!,\"Njx2VzSTlx4=\")","v":{"$error":"#REF!"}},{"$f":"AND(#REF!,\"Njx2VzSTlx8=\")","v":{"$error":"#REF!"}},{"$f":"AND(#REF!,\"Njx2VzSTlyA=\")","v":{"$error":"#REF!"}},{"$f":"AND(#REF!,\"Njx2VzSTlyE=\")","v":{"$error":"#REF!"}},{"$f":"AND(#REF!,\"Njx2VzSTlyI=\")","v":{"$error":"#REF!"}},{"$f":"AND(#REF!,\"Njx2VzSTlyM=\")","v":{"$error":"#REF!"}},{"$f":"AND(#REF!,\"Njx2VzSTlyQ=\")","v":{"$error":"#REF!"}},{"$f":"AND(#REF!,\"Njx2VzSTlyU=\")","v":{"$error":"#REF!"}},{"$f":"AND(#REF!,\"Njx2VzSTlyY=\")","v":{"$error":"#REF!"}},{"$f":"AND(#REF!,\"Njx2VzSTlyc=\")","v":{"$error":"#REF!"}},{"$f":"AND(#REF!,\"Njx2VzSTlyg=\")","v":{"$error":"#REF!"}},{"$f":"AND(#REF!,\"Njx2VzSTlyk=\")","v":{"$error":"#REF!"}},{"$f":"AND(#REF!,\"Njx2VzSTlyo=\")","v":{"$error":"#REF!"}},{"$f":"AND(#REF!,\"Njx2VzSTlys=\")","v":{"$error":"#REF!"}},{"$f":"AND(#REF!,\"Njx2VzSTlyw=\")","v":{"$error":"#REF!"}},{"$f":"AND(#REF!,\"Njx2VzSTly0=\")","v":{"$error":"#REF!"}},{"$f":"AND(#REF!,\"Njx2VzSTly4=\")","v":{"$error":"#REF!"}},{"$f":"AND(#REF!,\"Njx2VzSTly8=\")","v":{"$error":"#REF!"}},{"$f":"AND(#REF!,\"Njx2VzSTlzA=\")","v":{"$error":"#REF!"}},{"$f":"AND(#REF!,\"Njx2VzSTlzE=\")","v":{"$error":"#REF!"}},{"$f":"AND(#REF!,\"Njx2VzSTlzI=\")","v":{"$error":"#REF!"}},{"$f":"AND(#REF!,\"Njx2VzSTlzM=\")","v":{"$error":"#REF!"}},{"$f":"AND(#REF!,\"Njx2VzSTlzQ=\")","v":{"$error":"#REF!"}},{"$f":"AND(#REF!,\"Njx2VzSTlzU=\")","v":{"$error":"#REF!"}},{"$f":"AND(#REF!,\"Njx2VzSTlzY=\")","v":{"$error":"#REF!"}},{"$f":"AND(#REF!,\"Njx2VzSTlzc=\")","v":{"$error":"#REF!"}},{"$f":"AND(#REF!,\"Njx2VzSTlzg=\")","v":{"$error":"#REF!"}},{"$f":"AND(#REF!,\"Njx2VzSTlzk=\")","v":{"$error":"#REF!"}},{"$f":"AND(#REF!,\"Njx2VzSTlzo=\")","v":{"$error":"#REF!"}},{"$f":"AND(#REF!,\"Njx2VzSTlzs=\")","v":{"$error":"#REF!"}},{"$f":"AND(#REF!,\"Njx2VzSTlzw=\")","v":{"$error":"#REF!"}},{"$f":"AND(#REF!,\"Njx2VzSTlz0=\")","v":{"$error":"#REF!"}},{"$f":"AND(#REF!,\"Njx2VzSTlz4=\")","v":{"$error":"#REF!"}},{"$f":"AND(#REF!,\"Njx2VzSTlz8=\")","v":{"$error":"#REF!"}},{"$f":"AND(#REF!,\"Njx2VzSTl0A=\")","v":{"$error":"#REF!"}},{"$f":"AND(#REF!,\"Njx2VzSTl0E=\")","v":{"$error":"#REF!"}},{"$f":"AND(#REF!,\"Njx2VzSTl0I=\")","v":{"$error":"#REF!"}},{"$f":"AND(#REF!,\"Njx2VzSTl0M=\")","v":{"$error":"#REF!"}},{"$f":"AND(#REF!,\"Njx2VzSTl0Q=\")","v":{"$error":"#REF!"}},{"$f":"AND(#REF!,\"Njx2VzSTl0U=\")","v":{"$error":"#REF!"}},{"$f":"AND(#REF!,\"Njx2VzSTl0Y=\")","v":{"$error":"#REF!"}},{"$f":"AND(#REF!,\"Njx2VzSTl0c=\")","v":{"$error":"#REF!"}},{"$f":"AND(#REF!,\"Njx2VzSTl0g=\")","v":{"$error":"#REF!"}},{"$f":"AND(#REF!,\"Njx2VzSTl0k=\")","v":{"$error":"#REF!"}},{"$f":"AND(#REF!,\"Njx2VzSTl0o=\")","v":{"$error":"#REF!"}},{"$f":"AND(#REF!,\"Njx2VzSTl0s=\")","v":{"$error":"#REF!"}},{"$f":"AND(#REF!,\"Njx2VzSTl0w=\")","v":{"$error":"#REF!"}},{"$f":"AND(#REF!,\"Njx2VzSTl00=\")","v":{"$error":"#REF!"}},{"$f":"AND(#REF!,\"Njx2VzSTl04=\")","v":{"$error":"#REF!"}},{"$f":"AND(#REF!,\"Njx2VzSTl08=\")","v":{"$error":"#REF!"}},{"$f":"AND(#REF!,\"Njx2VzSTl1A=\")","v":{"$error":"#REF!"}},{"$f":"AND(#REF!,\"Njx2VzSTl1E=\")","v":{"$error":"#REF!"}},{"$f":"AND(#REF!,\"Njx2VzSTl1I=\")","v":{"$error":"#REF!"}},{"$f":"AND(#REF!,\"Njx2VzSTl1M=\")","v":{"$error":"#REF!"}},{"$f":"AND(#REF!,\"Njx2VzSTl1Q=\")","v":{"$error":"#REF!"}},{"$f":"AND(#REF!,\"Njx2VzSTl1U=\")","v":{"$error":"#REF!"}},{"$f":"AND(#REF!,\"Njx2VzSTl1Y=\")","v":{"$error":"#REF!"}},{"$f":"AND(#REF!,\"Njx2VzSTl1c=\")","v":{"$error":"#REF!"}},{"$f":"AND(#REF!,\"Njx2VzSTl1g=\")","v":{"$error":"#REF!"}},{"$f":"AND(#REF!,\"Njx2VzSTl1k=\")","v":{"$error":"#REF!"}},{"$f":"AND(#REF!,\"Njx2VzSTl1o=\")","v":{"$error":"#REF!"}},{"$f":"AND(#REF!,\"Njx2VzSTl1s=\")","v":{"$error":"#REF!"}},{"$f":"AND(#REF!,\"Njx2VzSTl1w=\")","v":{"$error":"#REF!"}},{"$f":"AND(#REF!,\"Njx2VzSTl10=\")","v":{"$error":"#REF!"}},{"$f":"AND(#REF!,\"Njx2VzSTl14=\")","v":{"$error":"#REF!"}},{"$f":"AND(#REF!,\"Njx2VzSTl18=\")","v":{"$error":"#REF!"}},{"$f":"AND(#REF!,\"Njx2VzSTl2A=\")","v":{"$error":"#REF!"}},{"$f":"AND(#REF!,\"Njx2VzSTl2E=\")","v":{"$error":"#REF!"}},{"$f":"AND(#REF!,\"Njx2VzSTl2I=\")","v":{"$error":"#REF!"}},{"$f":"AND(#REF!,\"Njx2VzSTl2M=\")","v":{"$error":"#REF!"}},{"$f":"AND(#REF!,\"Njx2VzSTl2Q=\")","v":{"$error":"#REF!"}},{"$f":"AND(#REF!,\"Njx2VzSTl2U=\")","v":{"$error":"#REF!"}},{"$f":"AND(#REF!,\"Njx2VzSTl2Y=\")","v":{"$error":"#REF!"}},{"$f":"AND(#REF!,\"Njx2VzSTl2c=\")","v":{"$error":"#REF!"}},{"$f":"AND(#REF!,\"Njx2VzSTl2g=\")","v":{"$error":"#REF!"}},{"$f":"AND(#REF!,\"Njx2VzSTl2k=\")","v":{"$error":"#REF!"}},{"$f":"AND(#REF!,\"Njx2VzSTl2o=\")","v":{"$error":"#REF!"}},{"$f":"AND(#REF!,\"Njx2VzSTl2s=\")","v":{"$error":"#REF!"}},{"$f":"AND(#REF!,\"Njx2VzSTl2w=\")","v":{"$error":"#REF!"}},{"$f":"AND(#REF!,\"Njx2VzSTl20=\")","v":{"$error":"#REF!"}},{"$f":"AND(#REF!,\"Njx2VzSTl24=\")","v":{"$error":"#REF!"}},{"$f":"AND(#REF!,\"Njx2VzSTl28=\")","v":{"$error":"#REF!"}},{"$f":"AND(#REF!,\"Njx2VzSTl3A=\")","v":{"$error":"#REF!"}},{"$f":"AND(#REF!,\"Njx2VzSTl3E=\")","v":{"$error":"#REF!"}},{"$f":"AND(#REF!,\"Njx2VzSTl3I=\")","v":{"$error":"#REF!"}},{"$f":"AND(#REF!,\"Njx2VzSTl3M=\")","v":{"$error":"#REF!"}},{"$f":"AND(#REF!,\"Njx2VzSTl3Q=\")","v":{"$error":"#REF!"}},{"$f":"AND(#REF!,\"Njx2VzSTl3U=\")","v":{"$error":"#REF!"}},{"$f":"AND(#REF!,\"Njx2VzSTl3Y=\")","v":{"$error":"#REF!"}},{"$f":"AND(#REF!,\"Njx2VzSTl3c=\")","v":{"$error":"#REF!"}},{"$f":"AND(#REF!,\"Njx2VzSTl3g=\")","v":{"$error":"#REF!"}},{"$f":"AND(#REF!,\"Njx2VzSTl3k=\")","v":{"$error":"#REF!"}},{"$f":"AND(#REF!,\"Njx2VzSTl3o=\")","v":{"$error":"#REF!"}},{"$f":"AND(#REF!,\"Njx2VzSTl3s=\")","v":{"$error":"#REF!"}},{"$f":"AND(#REF!,\"Njx2VzSTl3w=\")","v":{"$error":"#REF!"}},{"$f":"AND(#REF!,\"Njx2VzSTl30=\")","v":{"$error":"#REF!"}},{"$f":"AND(#REF!,\"Njx2VzSTl34=\")","v":{"$error":"#REF!"}},{"$f":"AND(#REF!,\"Njx2VzSTl38=\")","v":{"$error":"#REF!"}},{"$f":"AND(#REF!,\"Njx2VzSTl4A=\")","v":{"$error":"#REF!"}},{"$f":"AND(#REF!,\"Njx2VzSTl4E=\")","v":{"$error":"#REF!"}},{"$f":"AND(#REF!,\"Njx2VzSTl4I=\")","v":{"$error":"#REF!"}},{"$f":"AND(#REF!,\"Njx2VzSTl4M=\")","v":{"$error":"#REF!"}},{"$f":"AND(#REF!,\"Njx2VzSTl4Q=\")","v":{"$error":"#REF!"}},{"$f":"AND(#REF!,\"Njx2VzSTl4U=\")","v":{"$error":"#REF!"}},{"$f":"AND(#REF!,\"Njx2VzSTl4Y=\")","v":{"$error":"#REF!"}},{"$f":"AND(#REF!,\"Njx2VzSTl4c=\")","v":{"$error":"#REF!"}},{"$f":"AND(#REF!,\"Njx2VzSTl4g=\")","v":{"$error":"#REF!"}},{"$f":"AND(#REF!,\"Njx2VzSTl4k=\")","v":{"$error":"#REF!"}},{"$f":"AND(#REF!,\"Njx2VzSTl4o=\")","v":{"$error":"#REF!"}},{"$f":"AND(#REF!,\"Njx2VzSTl4s=\")","v":{"$error":"#REF!"}},{"$f":"AND(#REF!,\"Njx2VzSTl4w=\")","v":{"$error":"#REF!"}},{"$f":"AND(#REF!,\"Njx2VzSTl40=\")","v":{"$error":"#REF!"}},{"$f":"AND(#REF!,\"Njx2VzSTl44=\")","v":{"$error":"#REF!"}},{"$f":"AND(#REF!,\"Njx2VzSTl48=\")","v":{"$error":"#REF!"}},{"$f":"AND(#REF!,\"Njx2VzSTl5A=\")","v":{"$error":"#REF!"}},{"$f":"AND(#REF!,\"Njx2VzSTl5E=\")","v":{"$error":"#REF!"}},{"$f":"AND(#REF!,\"Njx2VzSTl5I=\")","v":{"$error":"#REF!"}},{"$f":"AND(#REF!,\"Njx2VzSTl5M=\")","v":{"$error":"#REF!"}},{"$f":"AND(#REF!,\"Njx2VzSTl5Q=\")","v":{"$error":"#REF!"}},{"$f":"AND(#REF!,\"Njx2VzSTl5U=\")","v":{"$error":"#REF!"}},{"$f":"AND(#REF!,\"Njx2VzSTl5Y=\")","v":{"$error":"#REF!"}},{"$f":"AND(#REF!,\"Njx2VzSTl5c=\")","v":{"$error":"#REF!"}},{"$f":"AND(#REF!,\"Njx2VzSTl5g=\")","v":{"$error":"#REF!"}},{"$f":"AND(#REF!,\"Njx2VzSTl5k=\")","v":{"$error":"#REF!"}},{"$f":"AND(#REF!,\"Njx2VzSTl5o=\")","v":{"$error":"#REF!"}},{"$f":"AND(#REF!,\"Njx2VzSTl5s=\")","v":{"$error":"#REF!"}},{"$f":"AND(#REF!,\"Njx2VzSTl5w=\")","v":{"$error":"#REF!"}},{"$f":"AND(#REF!,\"Njx2VzSTl50=\")","v":{"$error":"#REF!"}},{"$f":"AND(#REF!,\"Njx2VzSTl54=\")","v":{"$error":"#REF!"}},{"$f":"AND(#REF!,\"Njx2VzSTl58=\")","v":{"$error":"#REF!"}},{"$f":"AND(#REF!,\"Njx2VzSTl6A=\")","v":{"$error":"#REF!"}},{"$f":"AND(#REF!,\"Njx2VzSTl6E=\")","v":{"$error":"#REF!"}},{"$f":"AND(#REF!,\"Njx2VzSTl6I=\")","v":{"$error":"#REF!"}},{"$f":"AND(#REF!,\"Njx2VzSTl6M=\")","v":{"$error":"#REF!"}},{"$f":"AND(#REF!,\"Njx2VzSTl6Q=\")","v":{"$error":"#REF!"}},{"$f":"AND(#REF!,\"Njx2VzSTl6U=\")","v":{"$error":"#REF!"}},{"$f":"AND(#REF!,\"Njx2VzSTl6Y=\")","v":{"$error":"#REF!"}},{"$f":"AND(#REF!,\"Njx2VzSTl6c=\")","v":{"$error":"#REF!"}},{"$f":"AND(#REF!,\"Njx2VzSTl6g=\")","v":{"$error":"#REF!"}},{"$f":"AND(#REF!,\"Njx2VzSTl6k=\")","v":{"$error":"#REF!"}},{"$f":"AND(#REF!,\"Njx2VzSTl6o=\")","v":{"$error":"#REF!"}},{"$f":"AND(#REF!,\"Njx2VzSTl6s=\")","v":{"$error":"#REF!"}},{"$f":"AND(#REF!,\"Njx2VzSTl6w=\")","v":{"$error":"#REF!"}},{"$f":"AND(#REF!,\"Njx2VzSTl60=\")","v":{"$error":"#REF!"}},{"$f":"AND(#REF!,\"Njx2VzSTl64=\")","v":{"$error":"#REF!"}},{"$f":"AND(#REF!,\"Njx2VzSTl68=\")","v":{"$error":"#REF!"}},{"$f":"AND(#REF!,\"Njx2VzSTl7A=\")","v":{"$error":"#REF!"}},{"$f":"AND(#REF!,\"Njx2VzSTl7E=\")","v":{"$error":"#REF!"}},{"$f":"AND(#REF!,\"Njx2VzSTl7I=\")","v":{"$error":"#REF!"}},{"$f":"AND(#REF!,\"Njx2VzSTl7M=\")","v":{"$error":"#REF!"}},{"$f":"AND(#REF!,\"Njx2VzSTl7Q=\")","v":{"$error":"#REF!"}},{"$f":"AND(#REF!,\"Njx2VzSTl7U=\")","v":{"$error":"#REF!"}},{"$f":"AND(#REF!,\"Njx2VzSTl7Y=\")","v":{"$error":"#REF!"}},{"$f":"AND(#REF!,\"Njx2VzSTl7c=\")","v":{"$error":"#REF!"}},{"$f":"AND(#REF!,\"Njx2VzSTl7g=\")","v":{"$error":"#REF!"}},{"$f":"AND(#REF!,\"Njx2VzSTl7k=\")","v":{"$error":"#REF!"}},{"$f":"AND(#REF!,\"Njx2VzSTl7o=\")","v":{"$error":"#REF!"}},{"$f":"AND(#REF!,\"Njx2VzSTl7s=\")","v":{"$error":"#REF!"}},{"$f":"AND(#REF!,\"Njx2VzSTl7w=\")","v":{"$error":"#REF!"}},{"$f":"IF(#REF!,\"Njx2VzSTl70=\",0)","v":{"$error":"#REF!"}},{"$f":"AND(#REF!,\"Njx2VzSTl74=\")","v":{"$error":"#REF!"}},{"$f":"AND(#REF!,\"Njx2VzSTl78=\")","v":{"$error":"#REF!"}},{"$f":"AND(#REF!,\"Njx2VzSTl8A=\")","v":{"$error":"#REF!"}},{"$f":"AND(#REF!,\"Njx2VzSTl8E=\")","v":{"$error":"#REF!"}},{"$f":"AND(#REF!,\"Njx2VzSTl8I=\")","v":{"$error":"#REF!"}},{"$f":"AND(#REF!,\"Njx2VzSTl8M=\")","v":{"$error":"#REF!"}},{"$f":"AND(#REF!,\"Njx2VzSTl8Q=\")","v":{"$error":"#REF!"}},{"$f":"AND(#REF!,\"Njx2VzSTl8U=\")","v":{"$error":"#REF!"}},{"$f":"AND(#REF!,\"Njx2VzSTl8Y=\")","v":{"$error":"#REF!"}},{"$f":"AND(#REF!,\"Njx2VzSTl8c=\")","v":{"$error":"#REF!"}},{"$f":"AND(#REF!,\"Njx2VzSTl8g=\")","v":{"$error":"#REF!"}},{"$f":"AND(#REF!,\"Njx2VzSTl8k=\")","v":{"$error":"#REF!"}},{"$f":"AND(#REF!,\"Njx2VzSTl8o=\")","v":{"$error":"#REF!"}},{"$f":"AND(#REF!,\"Njx2VzSTl8s=\")","v":{"$error":"#REF!"}},{"$f":"AND(#REF!,\"Njx2VzSTl8w=\")","v":{"$error":"#REF!"}},{"$f":"AND(#REF!,\"Njx2VzSTl80=\")","v":{"$error":"#REF!"}},{"$f":"AND(#REF!,\"Njx2VzSTl84=\")","v":{"$error":"#REF!"}},{"$f":"AND(#REF!,\"Njx2VzSTl88=\")","v":{"$error":"#REF!"}},{"$f":"AND(#REF!,\"Njx2VzSTl9A=\")","v":{"$error":"#REF!"}},{"$f":"AND(#REF!,\"Njx2VzSTl9E=\")","v":{"$error":"#REF!"}},{"$f":"AND(#REF!,\"Njx2VzSTl9I=\")","v":{"$error":"#REF!"}},{"$f":"AND(#REF!,\"Njx2VzSTl9M=\")","v":{"$error":"#REF!"}},{"$f":"AND(#REF!,\"Njx2VzSTl9Q=\")","v":{"$error":"#REF!"}},{"$f":"AND(#REF!,\"Njx2VzSTl9U=\")","v":{"$error":"#REF!"}},{"$f":"AND(#REF!,\"Njx2VzSTl9Y=\")","v":{"$error":"#REF!"}},{"$f":"AND(#REF!,\"Njx2VzSTl9c=\")","v":{"$error":"#REF!"}},{"$f":"AND(#REF!,\"Njx2VzSTl9g=\")","v":{"$error":"#REF!"}},{"$f":"AND(#REF!,\"Njx2VzSTl9k=\")","v":{"$error":"#REF!"}},{"$f":"AND(#REF!,\"Njx2VzSTl9o=\")","v":{"$error":"#REF!"}},{"$f":"AND(#REF!,\"Njx2VzSTl9s=\")","v":{"$error":"#REF!"}},{"$f":"AND(#REF!,\"Njx2VzSTl9w=\")","v":{"$error":"#REF!"}},{"$f":"AND(#REF!,\"Njx2VzSTl90=\")","v":{"$error":"#REF!"}},{"$f":"AND(#REF!,\"Njx2VzSTl94=\")","v":{"$error":"#REF!"}},{"$f":"AND(#REF!,\"Njx2VzSTl98=\")","v":{"$error":"#REF!"}},{"$f":"AND(#REF!,\"Njx2VzSTl+A=\")","v":{"$error":"#REF!"}},{"$f":"AND(#REF!,\"Njx2VzSTl+E=\")","v":{"$error":"#REF!"}},{"$f":"AND(#REF!,\"Njx2VzSTl+I=\")","v":{"$error":"#REF!"}},{"$f":"AND(#REF!,\"Njx2VzSTl+M=\")","v":{"$error":"#REF!"}},{"$f":"AND(#REF!,\"Njx2VzSTl+Q=\")","v":{"$error":"#REF!"}},{"$f":"AND(#REF!,\"Njx2VzSTl+U=\")","v":{"$error":"#REF!"}},{"$f":"AND(#REF!,\"Njx2VzSTl+Y=\")","v":{"$error":"#REF!"}},{"$f":"AND(#REF!,\"Njx2VzSTl+c=\")","v":{"$error":"#REF!"}},{"$f":"AND(#REF!,\"Njx2VzSTl+g=\")","v":{"$error":"#REF!"}},{"$f":"AND(#REF!,\"Njx2VzSTl+k=\")","v":{"$error":"#REF!"}},{"$f":"AND(#REF!,\"Njx2VzSTl+o=\")","v":{"$error":"#REF!"}},{"$f":"AND(#REF!,\"Njx2VzSTl+s=\")","v":{"$error":"#REF!"}},{"$f":"AND(#REF!,\"Njx2VzSTl+w=\")","v":{"$error":"#REF!"}},{"$f":"AND(#REF!,\"Njx2VzSTl+0=\")","v":{"$error":"#REF!"}},{"$f":"AND(#REF!,\"Njx2VzSTl+4=\")","v":{"$error":"#REF!"}},{"$f":"AND(#REF!,\"Njx2VzSTl+8=\")","v":{"$error":"#REF!"}},{"$f":"AND(#REF!,\"Njx2VzSTl/A=\")","v":{"$error":"#REF!"}},{"$f":"AND(#REF!,\"Njx2VzSTl/E=\")","v":{"$error":"#REF!"}},{"$f":"AND(#REF!,\"Njx2VzSTl/I=\")","v":{"$error":"#REF!"}},{"$f":"AND(#REF!,\"Njx2VzSTl/M=\")","v":{"$error":"#REF!"}},{"$f":"AND(#REF!,\"Njx2VzSTl/Q=\")","v":{"$error":"#REF!"}},{"$f":"AND(#REF!,\"Njx2VzSTl/U=\")","v":{"$error":"#REF!"}},{"$f":"AND(#REF!,\"Njx2VzSTl/Y=\")","v":{"$error":"#REF!"}},{"$f":"AND(#REF!,\"Njx2VzSTl/c=\")","v":{"$error":"#REF!"}},{"$f":"AND(#REF!,\"Njx2VzSTl/g=\")","v":{"$error":"#REF!"}},{"$f":"AND(#REF!,\"Njx2VzSTl/k=\")","v":{"$error":"#REF!"}},{"$f":"AND(#REF!,\"Njx2VzSTl/o=\")","v":{"$error":"#REF!"}},{"$f":"AND(#REF!,\"Njx2VzSTl/s=\")","v":{"$error":"#REF!"}},{"$f":"AND(#REF!,\"Njx2VzSTl/w=\")","v":{"$error":"#REF!"}},{"$f":"AND(#REF!,\"Njx2VzSTl/0=\")","v":{"$error":"#REF!"}},{"$f":"AND(#REF!,\"Njx2VzSTl/4=\")","v":{"$error":"#REF!"}},{"$f":"AND(#REF!,\"Njx2VzSTl/8=\")","v":{"$error":"#REF!"}}]
[{"$f":"AND(#REF!,\"Bx/9+w3cBwA=\")","v":{"$error":"#REF!"}},{"$f":"AND(#REF!,\"Bx/9+w3cBwE=\")","v":{"$error":"#REF!"}},{"$f":"AND(#REF!,\"Bx/9+w3cBwI=\")","v":{"$error":"#REF!"}},{"$f":"AND(#REF!,\"Bx/9+w3cBwM=\")","v":{"$error":"#REF!"}},{"$f":"AND(#REF!,\"Bx/9+w3cBwQ=\")","v":{"$error":"#REF!"}},{"$f":"AND(#REF!,\"Bx/9+w3cBwU=\")","v":{"$error":"#REF!"}},{"$f":"AND(#REF!,\"Bx/9+w3cBwY=\")","v":{"$error":"#REF!"}},{"$f":"AND(#REF!,\"Bx/9+w3cBwc=\")","v":{"$error":"#REF!"}},{"$f":"AND(#REF!,\"Bx/9+w3cBwg=\")","v":{"$error":"#REF!"}},{"$f":"AND(#REF!,\"Bx/9+w3cBwk=\")","v":{"$error":"#REF!"}},{"$f":"AND(#REF!,\"Bx/9+w3cBwo=\")","v":{"$error":"#REF!"}},{"$f":"AND(#REF!,\"Bx/9+w3cBws=\")","v":{"$error":"#REF!"}},{"$f":"AND(#REF!,\"Bx/9+w3cBww=\")","v":{"$error":"#REF!"}},{"$f":"AND(#REF!,\"Bx/9+w3cBw0=\")","v":{"$error":"#REF!"}},{"$f":"AND(#REF!,\"Bx/9+w3cBw4=\")","v":{"$error":"#REF!"}},{"$f":"AND(#REF!,\"Bx/9+w3cBw8=\")","v":{"$error":"#REF!"}},{"$f":"AND(#REF!,\"Bx/9+w3cBxA=\")","v":{"$error":"#REF!"}},{"$f":"AND(#REF!,\"Bx/9+w3cBxE=\")","v":{"$error":"#REF!"}},{"$f":"AND(#REF!,\"Bx/9+w3cBxI=\")","v":{"$error":"#REF!"}},{"$f":"AND(#REF!,\"Bx/9+w3cBxM=\")","v":{"$error":"#REF!"}},{"$f":"AND(#REF!,\"Bx/9+w3cBxQ=\")","v":{"$error":"#REF!"}},{"$f":"AND(#REF!,\"Bx/9+w3cBxU=\")","v":{"$error":"#REF!"}},{"$f":"AND(#REF!,\"Bx/9+w3cBxY=\")","v":{"$error":"#REF!"}},{"$f":"AND(#REF!,\"Bx/9+w3cBxc=\")","v":{"$error":"#REF!"}},{"$f":"AND(#REF!,\"Bx/9+w3cBxg=\")","v":{"$error":"#REF!"}},{"$f":"AND(#REF!,\"Bx/9+w3cBxk=\")","v":{"$error":"#REF!"}},{"$f":"AND(#REF!,\"Bx/9+w3cBxo=\")","v":{"$error":"#REF!"}},{"$f":"AND(#REF!,\"Bx/9+w3cBxs=\")","v":{"$error":"#REF!"}},{"$f":"AND(#REF!,\"Bx/9+w3cBxw=\")","v":{"$error":"#REF!"}},{"$f":"AND(#REF!,\"Bx/9+w3cBx0=\")","v":{"$error":"#REF!"}},{"$f":"AND(#REF!,\"Bx/9+w3cBx4=\")","v":{"$error":"#REF!"}},{"$f":"AND(#REF!,\"Bx/9+w3cBx8=\")","v":{"$error":"#REF!"}},{"$f":"AND(#REF!,\"Bx/9+w3cByA=\")","v":{"$error":"#REF!"}},{"$f":"AND(#REF!,\"Bx/9+w3cByE=\")","v":{"$error":"#REF!"}},{"$f":"AND(#REF!,\"Bx/9+w3cByI=\")","v":{"$error":"#REF!"}},{"$f":"AND(#REF!,\"Bx/9+w3cByM=\")","v":{"$error":"#REF!"}},{"$f":"AND(#REF!,\"Bx/9+w3cByQ=\")","v":{"$error":"#REF!"}},{"$f":"AND(#REF!,\"Bx/9+w3cByU=\")","v":{"$error":"#REF!"}},{"$f":"AND(#REF!,\"Bx/9+w3cByY=\")","v":{"$error":"#REF!"}},{"$f":"AND(#REF!,\"Bx/9+w3cByc=\")","v":{"$error":"#REF!"}},{"$f":"AND(#REF!,\"Bx/9+w3cByg=\")","v":{"$error":"#REF!"}},{"$f":"AND(#REF!,\"Bx/9+w3cByk=\")","v":{"$error":"#REF!"}},{"$f":"AND(#REF!,\"Bx/9+w3cByo=\")","v":{"$error":"#REF!"}},{"$f":"AND(#REF!,\"Bx/9+w3cBys=\")","v":{"$error":"#REF!"}},{"$f":"AND(#REF!,\"Bx/9+w3cByw=\")","v":{"$error":"#REF!"}},{"$f":"AND(#REF!,\"Bx/9+w3cBy0=\")","v":{"$error":"#REF!"}},{"$f":"AND(#REF!,\"Bx/9+w3cBy4=\")","v":{"$error":"#REF!"}},{"$f":"AND(#REF!,\"Bx/9+w3cBy8=\")","v":{"$error":"#REF!"}},{"$f":"AND(#REF!,\"Bx/9+w3cBzA=\")","v":{"$error":"#REF!"}},{"$f":"AND(#REF!,\"Bx/9+w3cBzE=\")","v":{"$error":"#REF!"}},{"$f":"AND(#REF!,\"Bx/9+w3cBzI=\")","v":{"$error":"#REF!"}},{"$f":"AND(#REF!,\"Bx/9+w3cBzM=\")","v":{"$error":"#REF!"}},{"$f":"AND(#REF!,\"Bx/9+w3cBzQ=\")","v":{"$error":"#REF!"}},{"$f":"AND(#REF!,\"Bx/9+w3cBzU=\")","v":{"$error":"#REF!"}},{"$f":"AND(#REF!,\"Bx/9+w3cBzY=\")","v":{"$error":"#REF!"}},{"$f":"AND(#REF!,\"Bx/9+w3cBzc=\")","v":{"$error":"#REF!"}},{"$f":"AND(#REF!,\"Bx/9+w3cBzg=\")","v":{"$error":"#REF!"}},{"$f":"AND(#REF!,\"Bx/9+w3cBzk=\")","v":{"$error":"#REF!"}},{"$f":"AND(#REF!,\"Bx/9+w3cBzo=\")","v":{"$error":"#REF!"}},{"$f":"AND(#REF!,\"Bx/9+w3cBzs=\")","v":{"$error":"#REF!"}},{"$f":"AND(#REF!,\"Bx/9+w3cBzw=\")","v":{"$error":"#REF!"}},{"$f":"AND(#REF!,\"Bx/9+w3cBz0=\")","v":{"$error":"#REF!"}},{"$f":"AND(#REF!,\"Bx/9+w3cBz4=\")","v":{"$error":"#REF!"}},{"$f":"AND(#REF!,\"Bx/9+w3cBz8=\")","v":{"$error":"#REF!"}},{"$f":"AND(#REF!,\"Bx/9+w3cB0A=\")","v":{"$error":"#REF!"}},{"$f":"AND(#REF!,\"Bx/9+w3cB0E=\")","v":{"$error":"#REF!"}},{"$f":"AND(#REF!,\"Bx/9+w3cB0I=\")","v":{"$error":"#REF!"}},{"$f":"AND(#REF!,\"Bx/9+w3cB0M=\")","v":{"$error":"#REF!"}},{"$f":"AND(#REF!,\"Bx/9+w3cB0Q=\")","v":{"$error":"#REF!"}},{"$f":"AND(#REF!,\"Bx/9+w3cB0U=\")","v":{"$error":"#REF!"}},{"$f":"AND(#REF!,\"Bx/9+w3cB0Y=\")","v":{"$error":"#REF!"}},{"$f":"AND(#REF!,\"Bx/9+w3cB0c=\")","v":{"$error":"#REF!"}},{"$f":"AND(#REF!,\"Bx/9+w3cB0g=\")","v":{"$error":"#REF!"}},{"$f":"AND(#REF!,\"Bx/9+w3cB0k=\")","v":{"$error":"#REF!"}},{"$f":"AND(#REF!,\"Bx/9+w3cB0o=\")","v":{"$error":"#REF!"}},{"$f":"AND(#REF!,\"Bx/9+w3cB0s=\")","v":{"$error":"#REF!"}},{"$f":"AND(#REF!,\"Bx/9+w3cB0w=\")","v":{"$error":"#REF!"}},{"$f":"AND(#REF!,\"Bx/9+w3cB00=\")","v":{"$error":"#REF!"}},{"$f":"AND(#REF!,\"Bx/9+w3cB04=\")","v":{"$error":"#REF!"}},{"$f":"AND(#REF!,\"Bx/9+w3cB08=\")","v":{"$error":"#REF!"}},{"$f":"AND(#REF!,\"Bx/9+w3cB1A=\")","v":{"$error":"#REF!"}},{"$f":"AND(#REF!,\"Bx/9+w3cB1E=\")","v":{"$error":"#REF!"}},{"$f":"AND(#REF!,\"Bx/9+w3cB1I=\")","v":{"$error":"#REF!"}},{"$f":"AND(#REF!,\"Bx/9+w3cB1M=\")","v":{"$error":"#REF!"}},{"$f":"AND(#REF!,\"Bx/9+w3cB1Q=\")","v":{"$error":"#REF!"}},{"$f":"AND(#REF!,\"Bx/9+w3cB1U=\")","v":{"$error":"#REF!"}},{"$f":"AND(#REF!,\"Bx/9+w3cB1Y=\")","v":{"$error":"#REF!"}},{"$f":"AND(#REF!,\"Bx/9+w3cB1c=\")","v":{"$error":"#REF!"}},{"$f":"AND(#REF!,\"Bx/9+w3cB1g=\")","v":{"$error":"#REF!"}},{"$f":"AND(#REF!,\"Bx/9+w3cB1k=\")","v":{"$error":"#REF!"}},{"$f":"AND(#REF!,\"Bx/9+w3cB1o=\")","v":{"$error":"#REF!"}},{"$f":"AND(#REF!,\"Bx/9+w3cB1s=\")","v":{"$error":"#REF!"}},{"$f":"AND(#REF!,\"Bx/9+w3cB1w=\")","v":{"$error":"#REF!"}},{"$f":"AND(#REF!,\"Bx/9+w3cB10=\")","v":{"$error":"#REF!"}},{"$f":"AND(#REF!,\"Bx/9+w3cB14=\")","v":{"$error":"#REF!"}},{"$f":"AND(#REF!,\"Bx/9+w3cB18=\")","v":{"$error":"#REF!"}},{"$f":"AND(#REF!,\"Bx/9+w3cB2A=\")","v":{"$error":"#REF!"}},{"$f":"AND(#REF!,\"Bx/9+w3cB2E=\")","v":{"$error":"#REF!"}},{"$f":"AND(#REF!,\"Bx/9+w3cB2I=\")","v":{"$error":"#REF!"}},{"$f":"AND(#REF!,\"Bx/9+w3cB2M=\")","v":{"$error":"#REF!"}},{"$f":"AND(#REF!,\"Bx/9+w3cB2Q=\")","v":{"$error":"#REF!"}},{"$f":"AND(#REF!,\"Bx/9+w3cB2U=\")","v":{"$error":"#REF!"}},{"$f":"AND(#REF!,\"Bx/9+w3cB2Y=\")","v":{"$error":"#REF!"}},{"$f":"AND(#REF!,\"Bx/9+w3cB2c=\")","v":{"$error":"#REF!"}},{"$f":"AND(#REF!,\"Bx/9+w3cB2g=\")","v":{"$error":"#REF!"}},{"$f":"AND(#REF!,\"Bx/9+w3cB2k=\")","v":{"$error":"#REF!"}},{"$f":"AND(#REF!,\"Bx/9+w3cB2o=\")","v":{"$error":"#REF!"}},{"$f":"AND(#REF!,\"Bx/9+w3cB2s=\")","v":{"$error":"#REF!"}},{"$f":"AND(#REF!,\"Bx/9+w3cB2w=\")","v":{"$error":"#REF!"}},{"$f":"AND(#REF!,\"Bx/9+w3cB20=\")","v":{"$error":"#REF!"}},{"$f":"AND(#REF!,\"Bx/9+w3cB24=\")","v":{"$error":"#REF!"}},{"$f":"AND(#REF!,\"Bx/9+w3cB28=\")","v":{"$error":"#REF!"}},{"$f":"AND(#REF!,\"Bx/9+w3cB3A=\")","v":{"$error":"#REF!"}},{"$f":"AND(#REF!,\"Bx/9+w3cB3E=\")","v":{"$error":"#REF!"}},{"$f":"AND(#REF!,\"Bx/9+w3cB3I=\")","v":{"$error":"#REF!"}},{"$f":"AND(#REF!,\"Bx/9+w3cB3M=\")","v":{"$error":"#REF!"}},{"$f":"AND(#REF!,\"Bx/9+w3cB3Q=\")","v":{"$error":"#REF!"}},{"$f":"AND(#REF!,\"Bx/9+w3cB3U=\")","v":{"$error":"#REF!"}},{"$f":"AND(#REF!,\"Bx/9+w3cB3Y=\")","v":{"$error":"#REF!"}},{"$f":"AND(#REF!,\"Bx/9+w3cB3c=\")","v":{"$error":"#REF!"}},{"$f":"AND(#REF!,\"Bx/9+w3cB3g=\")","v":{"$error":"#REF!"}},{"$f":"AND(#REF!,\"Bx/9+w3cB3k=\")","v":{"$error":"#REF!"}},{"$f":"AND(#REF!,\"Bx/9+w3cB3o=\")","v":{"$error":"#REF!"}},{"$f":"AND(#REF!,\"Bx/9+w3cB3s=\")","v":{"$error":"#REF!"}},{"$f":"AND(#REF!,\"Bx/9+w3cB3w=\")","v":{"$error":"#REF!"}},{"$f":"AND(#REF!,\"Bx/9+w3cB30=\")","v":{"$error":"#REF!"}},{"$f":"AND(#REF!,\"Bx/9+w3cB34=\")","v":{"$error":"#REF!"}},{"$f":"AND(#REF!,\"Bx/9+w3cB38=\")","v":{"$error":"#REF!"}},{"$f":"AND(#REF!,\"Bx/9+w3cB4A=\")","v":{"$error":"#REF!"}},{"$f":"AND(#REF!,\"Bx/9+w3cB4E=\")","v":{"$error":"#REF!"}},{"$f":"AND(#REF!,\"Bx/9+w3cB4I=\")","v":{"$error":"#REF!"}},{"$f":"AND(#REF!,\"Bx/9+w3cB4M=\")","v":{"$error":"#REF!"}},{"$f":"IF(#REF!,\"Bx/9+w3cB4Q=\",0)","v":{"$error":"#REF!"}},{"$f":"AND(#REF!,\"Bx/9+w3cB4U=\")","v":{"$error":"#REF!"}},{"$f":"AND(#REF!,\"Bx/9+w3cB4Y=\")","v":{"$error":"#REF!"}},{"$f":"AND(#REF!,\"Bx/9+w3cB4c=\")","v":{"$error":"#REF!"}},{"$f":"AND(#REF!,\"Bx/9+w3cB4g=\")","v":{"$error":"#REF!"}},{"$f":"AND(#REF!,\"Bx/9+w3cB4k=\")","v":{"$error":"#REF!"}},{"$f":"AND(#REF!,\"Bx/9+w3cB4o=\")","v":{"$error":"#REF!"}},{"$f":"AND(#REF!,\"Bx/9+w3cB4s=\")","v":{"$error":"#REF!"}},{"$f":"AND(#REF!,\"Bx/9+w3cB4w=\")","v":{"$error":"#REF!"}},{"$f":"AND(#REF!,\"Bx/9+w3cB40=\")","v":{"$error":"#REF!"}},{"$f":"AND(#REF!,\"Bx/9+w3cB44=\")","v":{"$error":"#REF!"}},{"$f":"AND(#REF!,\"Bx/9+w3cB48=\")","v":{"$error":"#REF!"}},{"$f":"AND(#REF!,\"Bx/9+w3cB5A=\")","v":{"$error":"#REF!"}},{"$f":"AND(#REF!,\"Bx/9+w3cB5E=\")","v":{"$error":"#REF!"}},{"$f":"AND(#REF!,\"Bx/9+w3cB5I=\")","v":{"$error":"#REF!"}},{"$f":"AND(#REF!,\"Bx/9+w3cB5M=\")","v":{"$error":"#REF!"}},{"$f":"AND(#REF!,\"Bx/9+w3cB5Q=\")","v":{"$error":"#REF!"}},{"$f":"AND(#REF!,\"Bx/9+w3cB5U=\")","v":{"$error":"#REF!"}},{"$f":"AND(#REF!,\"Bx/9+w3cB5Y=\")","v":{"$error":"#REF!"}},{"$f":"AND(#REF!,\"Bx/9+w3cB5c=\")","v":{"$error":"#REF!"}},{"$f":"AND(#REF!,\"Bx/9+w3cB5g=\")","v":{"$error":"#REF!"}},{"$f":"AND(#REF!,\"Bx/9+w3cB5k=\")","v":{"$error":"#REF!"}},{"$f":"AND(#REF!,\"Bx/9+w3cB5o=\")","v":{"$error":"#REF!"}},{"$f":"AND(#REF!,\"Bx/9+w3cB5s=\")","v":{"$error":"#REF!"}},{"$f":"AND(#REF!,\"Bx/9+w3cB5w=\")","v":{"$error":"#REF!"}},{"$f":"AND(#REF!,\"Bx/9+w3cB50=\")","v":{"$error":"#REF!"}},{"$f":"AND(#REF!,\"Bx/9+w3cB54=\")","v":{"$error":"#REF!"}},{"$f":"AND(#REF!,\"Bx/9+w3cB58=\")","v":{"$error":"#REF!"}},{"$f":"AND(#REF!,\"Bx/9+w3cB6A=\")","v":{"$error":"#REF!"}},{"$f":"AND(#REF!,\"Bx/9+w3cB6E=\")","v":{"$error":"#REF!"}},{"$f":"AND(#REF!,\"Bx/9+w3cB6I=\")","v":{"$error":"#REF!"}},{"$f":"AND(#REF!,\"Bx/9+w3cB6M=\")","v":{"$error":"#REF!"}},{"$f":"AND(#REF!,\"Bx/9+w3cB6Q=\")","v":{"$error":"#REF!"}},{"$f":"AND(#REF!,\"Bx/9+w3cB6U=\")","v":{"$error":"#REF!"}},{"$f":"AND(#REF!,\"Bx/9+w3cB6Y=\")","v":{"$error":"#REF!"}},{"$f":"AND(#REF!,\"Bx/9+w3cB6c=\")","v":{"$error":"#REF!"}},{"$f":"AND(#REF!,\"Bx/9+w3cB6g=\")","v":{"$error":"#REF!"}},{"$f":"AND(#REF!,\"Bx/9+w3cB6k=\")","v":{"$error":"#REF!"}},{"$f":"AND(#REF!,\"Bx/9+w3cB6o=\")","v":{"$error":"#REF!"}},{"$f":"AND(#REF!,\"Bx/9+w3cB6s=\")","v":{"$error":"#REF!"}},{"$f":"AND(#REF!,\"Bx/9+w3cB6w=\")","v":{"$error":"#REF!"}},{"$f":"AND(#REF!,\"Bx/9+w3cB60=\")","v":{"$error":"#REF!"}},{"$f":"AND(#REF!,\"Bx/9+w3cB64=\")","v":{"$error":"#REF!"}},{"$f":"AND(#REF!,\"Bx/9+w3cB68=\")","v":{"$error":"#REF!"}},{"$f":"AND(#REF!,\"Bx/9+w3cB7A=\")","v":{"$error":"#REF!"}},{"$f":"AND(#REF!,\"Bx/9+w3cB7E=\")","v":{"$error":"#REF!"}},{"$f":"AND(#REF!,\"Bx/9+w3cB7I=\")","v":{"$error":"#REF!"}},{"$f":"AND(#REF!,\"Bx/9+w3cB7M=\")","v":{"$error":"#REF!"}},{"$f":"AND(#REF!,\"Bx/9+w3cB7Q=\")","v":{"$error":"#REF!"}},{"$f":"AND(#REF!,\"Bx/9+w3cB7U=\")","v":{"$error":"#REF!"}},{"$f":"AND(#REF!,\"Bx/9+w3cB7Y=\")","v":{"$error":"#REF!"}},{"$f":"AND(#REF!,\"Bx/9+w3cB7c=\")","v":{"$error":"#REF!"}},{"$f":"AND(#REF!,\"Bx/9+w3cB7g=\")","v":{"$error":"#REF!"}},{"$f":"AND(#REF!,\"Bx/9+w3cB7k=\")","v":{"$error":"#REF!"}},{"$f":"AND(#REF!,\"Bx/9+w3cB7o=\")","v":{"$error":"#REF!"}},{"$f":"AND(#REF!,\"Bx/9+w3cB7s=\")","v":{"$error":"#REF!"}},{"$f":"AND(#REF!,\"Bx/9+w3cB7w=\")","v":{"$error":"#REF!"}},{"$f":"AND(#REF!,\"Bx/9+w3cB70=\")","v":{"$error":"#REF!"}},{"$f":"AND(#REF!,\"Bx/9+w3cB74=\")","v":{"$error":"#REF!"}},{"$f":"AND(#REF!,\"Bx/9+w3cB78=\")","v":{"$error":"#REF!"}},{"$f":"AND(#REF!,\"Bx/9+w3cB8A=\")","v":{"$error":"#REF!"}},{"$f":"AND(#REF!,\"Bx/9+w3cB8E=\")","v":{"$error":"#REF!"}},{"$f":"AND(#REF!,\"Bx/9+w3cB8I=\")","v":{"$error":"#REF!"}},{"$f":"AND(#REF!,\"Bx/9+w3cB8M=\")","v":{"$error":"#REF!"}},{"$f":"AND(#REF!,\"Bx/9+w3cB8Q=\")","v":{"$error":"#REF!"}},{"$f":"AND(#REF!,\"Bx/9+w3cB8U=\")","v":{"$error":"#REF!"}},{"$f":"AND(#REF!,\"Bx/9+w3cB8Y=\")","v":{"$error":"#REF!"}},{"$f":"AND(#REF!,\"Bx/9+w3cB8c=\")","v":{"$error":"#REF!"}},{"$f":"AND(#REF!,\"Bx/9+w3cB8g=\")","v":{"$error":"#REF!"}},{"$f":"AND(#REF!,\"Bx/9+w3cB8k=\")","v":{"$error":"#REF!"}},{"$f":"AND(#REF!,\"Bx/9+w3cB8o=\")","v":{"$error":"#REF!"}},{"$f":"AND(#REF!,\"Bx/9+w3cB8s=\")","v":{"$error":"#REF!"}},{"$f":"AND(#REF!,\"Bx/9+w3cB8w=\")","v":{"$error":"#REF!"}},{"$f":"AND(#REF!,\"Bx/9+w3cB80=\")","v":{"$error":"#REF!"}},{"$f":"AND(#REF!,\"Bx/9+w3cB84=\")","v":{"$error":"#REF!"}},{"$f":"AND(#REF!,\"Bx/9+w3cB88=\")","v":{"$error":"#REF!"}},{"$f":"AND(#REF!,\"Bx/9+w3cB9A=\")","v":{"$error":"#REF!"}},{"$f":"AND(#REF!,\"Bx/9+w3cB9E=\")","v":{"$error":"#REF!"}},{"$f":"AND(#REF!,\"Bx/9+w3cB9I=\")","v":{"$error":"#REF!"}},{"$f":"AND(#REF!,\"Bx/9+w3cB9M=\")","v":{"$error":"#REF!"}},{"$f":"AND(#REF!,\"Bx/9+w3cB9Q=\")","v":{"$error":"#REF!"}},{"$f":"AND(#REF!,\"Bx/9+w3cB9U=\")","v":{"$error":"#REF!"}},{"$f":"AND(#REF!,\"Bx/9+w3cB9Y=\")","v":{"$error":"#REF!"}},{"$f":"AND(#REF!,\"Bx/9+w3cB9c=\")","v":{"$error":"#REF!"}},{"$f":"AND(#REF!,\"Bx/9+w3cB9g=\")","v":{"$error":"#REF!"}},{"$f":"AND(#REF!,\"Bx/9+w3cB9k=\")","v":{"$error":"#REF!"}},{"$f":"AND(#REF!,\"Bx/9+w3cB9o=\")","v":{"$error":"#REF!"}},{"$f":"AND(#REF!,\"Bx/9+w3cB9s=\")","v":{"$error":"#REF!"}},{"$f":"AND(#REF!,\"Bx/9+w3cB9w=\")","v":{"$error":"#REF!"}},{"$f":"AND(#REF!,\"Bx/9+w3cB90=\")","v":{"$error":"#REF!"}},{"$f":"AND(#REF!,\"Bx/9+w3cB94=\")","v":{"$error":"#REF!"}},{"$f":"AND(#REF!,\"Bx/9+w3cB98=\")","v":{"$error":"#REF!"}},{"$f":"AND(#REF!,\"Bx/9+w3cB+A=\")","v":{"$error":"#REF!"}},{"$f":"AND(#REF!,\"Bx/9+w3cB+E=\")","v":{"$error":"#REF!"}},{"$f":"AND(#REF!,\"Bx/9+w3cB+I=\")","v":{"$error":"#REF!"}},{"$f":"AND(#REF!,\"Bx/9+w3cB+M=\")","v":{"$error":"#REF!"}},{"$f":"AND(#REF!,\"Bx/9+w3cB+Q=\")","v":{"$error":"#REF!"}},{"$f":"AND(#REF!,\"Bx/9+w3cB+U=\")","v":{"$error":"#REF!"}},{"$f":"AND(#REF!,\"Bx/9+w3cB+Y=\")","v":{"$error":"#REF!"}},{"$f":"AND(#REF!,\"Bx/9+w3cB+c=\")","v":{"$error":"#REF!"}},{"$f":"AND(#REF!,\"Bx/9+w3cB+g=\")","v":{"$error":"#REF!"}},{"$f":"AND(#REF!,\"Bx/9+w3cB+k=\")","v":{"$error":"#REF!"}},{"$f":"AND(#REF!,\"Bx/9+w3cB+o=\")","v":{"$error":"#REF!"}},{"$f":"AND(#REF!,\"Bx/9+w3cB+s=\")","v":{"$error":"#REF!"}},{"$f":"AND(#REF!,\"Bx/9+w3cB+w=\")","v":{"$error":"#REF!"}},{"$f":"AND(#REF!,\"Bx/9+w3cB+0=\")","v":{"$error":"#REF!"}},{"$f":"AND(#REF!,\"Bx/9+w3cB+4=\")","v":{"$error":"#REF!"}},{"$f":"AND(#REF!,\"Bx/9+w3cB+8=\")","v":{"$error":"#REF!"}},{"$f":"AND(#REF!,\"Bx/9+w3cB/A=\")","v":{"$error":"#REF!"}},{"$f":"AND(#REF!,\"Bx/9+w3cB/E=\")","v":{"$error":"#REF!"}},{"$f":"AND(#REF!,\"Bx/9+w3cB/I=\")","v":{"$error":"#REF!"}},{"$f":"AND(#REF!,\"Bx/9+w3cB/M=\")","v":{"$error":"#REF!"}},{"$f":"AND(#REF!,\"Bx/9+w3cB/Q=\")","v":{"$error":"#REF!"}},{"$f":"AND(#REF!,\"Bx/9+w3cB/U=\")","v":{"$error":"#REF!"}},{"$f":"AND(#REF!,\"Bx/9+w3cB/Y=\")","v":{"$error":"#REF!"}},{"$f":"AND(#REF!,\"Bx/9+w3cB/c=\")","v":{"$error":"#REF!"}},{"$f":"AND(#REF!,\"Bx/9+w3cB/g=\")","v":{"$error":"#REF!"}},{"$f":"AND(#REF!,\"Bx/9+w3cB/k=\")","v":{"$error":"#REF!"}},{"$f":"AND(#REF!,\"Bx/9+w3cB/o=\")","v":{"$error":"#REF!"}},{"$f":"AND(#REF!,\"Bx/9+w3cB/s=\")","v":{"$error":"#REF!"}},{"$f":"AND(#REF!,\"Bx/9+w3cB/w=\")","v":{"$error":"#REF!"}},{"$f":"AND(#REF!,\"Bx/9+w3cB/0=\")","v":{"$error":"#REF!"}},{"$f":"AND(#REF!,\"Bx/9+w3cB/4=\")","v":{"$error":"#REF!"}},{"$f":"AND(#REF!,\"Bx/9+w3cB/8=\")","v":{"$error":"#REF!"}}]
[{"$f":"AND(#REF!,\"bGUemRwrMwA=\")","v":{"$error":"#REF!"}},{"$f":"AND(#REF!,\"bGUemRwrMwE=\")","v":{"$error":"#REF!"}},{"$f":"AND(#REF!,\"bGUemRwrMwI=\")","v":{"$error":"#REF!"}},{"$f":"AND(#REF!,\"bGUemRwrMwM=\")","v":{"$error":"#REF!"}},{"$f":"AND(#REF!,\"bGUemRwrMwQ=\")","v":{"$error":"#REF!"}},{"$f":"AND(#REF!,\"bGUemRwrMwU=\")","v":{"$error":"#REF!"}},{"$f":"AND(#REF!,\"bGUemRwrMwY=\")","v":{"$error":"#REF!"}},{"$f":"AND(#REF!,\"bGUemRwrMwc=\")","v":{"$error":"#REF!"}},{"$f":"AND(#REF!,\"bGUemRwrMwg=\")","v":{"$error":"#REF!"}},{"$f":"AND(#REF!,\"bGUemRwrMwk=\")","v":{"$error":"#REF!"}},{"$f":"AND(#REF!,\"bGUemRwrMwo=\")","v":{"$error":"#REF!"}},{"$f":"AND(#REF!,\"bGUemRwrMws=\")","v":{"$error":"#REF!"}},{"$f":"AND(#REF!,\"bGUemRwrMww=\")","v":{"$error":"#REF!"}},{"$f":"AND(#REF!,\"bGUemRwrMw0=\")","v":{"$error":"#REF!"}},{"$f":"AND(#REF!,\"bGUemRwrMw4=\")","v":{"$error":"#REF!"}},{"$f":"AND(#REF!,\"bGUemRwrMw8=\")","v":{"$error":"#REF!"}},{"$f":"AND(#REF!,\"bGUemRwrMxA=\")","v":{"$error":"#REF!"}},{"$f":"AND(#REF!,\"bGUemRwrMxE=\")","v":{"$error":"#REF!"}},{"$f":"AND(#REF!,\"bGUemRwrMxI=\")","v":{"$error":"#REF!"}},{"$f":"AND(#REF!,\"bGUemRwrMxM=\")","v":{"$error":"#REF!"}},{"$f":"AND(#REF!,\"bGUemRwrMxQ=\")","v":{"$error":"#REF!"}},{"$f":"AND(#REF!,\"bGUemRwrMxU=\")","v":{"$error":"#REF!"}},{"$f":"AND(#REF!,\"bGUemRwrMxY=\")","v":{"$error":"#REF!"}},{"$f":"AND(#REF!,\"bGUemRwrMxc=\")","v":{"$error":"#REF!"}},{"$f":"AND(#REF!,\"bGUemRwrMxg=\")","v":{"$error":"#REF!"}},{"$f":"AND(#REF!,\"bGUemRwrMxk=\")","v":{"$error":"#REF!"}},{"$f":"AND(#REF!,\"bGUemRwrMxo=\")","v":{"$error":"#REF!"}},{"$f":"AND(#REF!,\"bGUemRwrMxs=\")","v":{"$error":"#REF!"}},{"$f":"AND(#REF!,\"bGUemRwrMxw=\")","v":{"$error":"#REF!"}},{"$f":"AND(#REF!,\"bGUemRwrMx0=\")","v":{"$error":"#REF!"}},{"$f":"AND(#REF!,\"bGUemRwrMx4=\")","v":{"$error":"#REF!"}},{"$f":"AND(#REF!,\"bGUemRwrMx8=\")","v":{"$error":"#REF!"}},{"$f":"AND(#REF!,\"bGUemRwrMyA=\")","v":{"$error":"#REF!"}},{"$f":"AND(#REF!,\"bGUemRwrMyE=\")","v":{"$error":"#REF!"}},{"$f":"AND(#REF!,\"bGUemRwrMyI=\")","v":{"$error":"#REF!"}},{"$f":"AND(#REF!,\"bGUemRwrMyM=\")","v":{"$error":"#REF!"}},{"$f":"AND(#REF!,\"bGUemRwrMyQ=\")","v":{"$error":"#REF!"}},{"$f":"AND(#REF!,\"bGUemRwrMyU=\")","v":{"$error":"#REF!"}},{"$f":"AND(#REF!,\"bGUemRwrMyY=\")","v":{"$error":"#REF!"}},{"$f":"AND(#REF!,\"bGUemRwrMyc=\")","v":{"$error":"#REF!"}},{"$f":"AND(#REF!,\"bGUemRwrMyg=\")","v":{"$error":"#REF!"}},{"$f":"AND(#REF!,\"bGUemRwrMyk=\")","v":{"$error":"#REF!"}},{"$f":"AND(#REF!,\"bGUemRwrMyo=\")","v":{"$error":"#REF!"}},{"$f":"AND(#REF!,\"bGUemRwrMys=\")","v":{"$error":"#REF!"}},{"$f":"AND(#REF!,\"bGUemRwrMyw=\")","v":{"$error":"#REF!"}},{"$f":"AND(#REF!,\"bGUemRwrMy0=\")","v":{"$error":"#REF!"}},{"$f":"AND(#REF!,\"bGUemRwrMy4=\")","v":{"$error":"#REF!"}},{"$f":"AND(#REF!,\"bGUemRwrMy8=\")","v":{"$error":"#REF!"}},{"$f":"AND(#REF!,\"bGUemRwrMzA=\")","v":{"$error":"#REF!"}},{"$f":"AND(#REF!,\"bGUemRwrMzE=\")","v":{"$error":"#REF!"}},{"$f":"AND(#REF!,\"bGUemRwrMzI=\")","v":{"$error":"#REF!"}},{"$f":"AND(#REF!,\"bGUemRwrMzM=\")","v":{"$error":"#REF!"}},{"$f":"AND(#REF!,\"bGUemRwrMzQ=\")","v":{"$error":"#REF!"}},{"$f":"AND(#REF!,\"bGUemRwrMzU=\")","v":{"$error":"#REF!"}},{"$f":"AND(#REF!,\"bGUemRwrMzY=\")","v":{"$error":"#REF!"}},{"$f":"AND(#REF!,\"bGUemRwrMzc=\")","v":{"$error":"#REF!"}},{"$f":"AND(#REF!,\"bGUemRwrMzg=\")","v":{"$error":"#REF!"}},{"$f":"AND(#REF!,\"bGUemRwrMzk=\")","v":{"$error":"#REF!"}},{"$f":"AND(#REF!,\"bGUemRwrMzo=\")","v":{"$error":"#REF!"}},{"$f":"AND(#REF!,\"bGUemRwrMzs=\")","v":{"$error":"#REF!"}},{"$f":"AND(#REF!,\"bGUemRwrMzw=\")","v":{"$error":"#REF!"}},{"$f":"AND(#REF!,\"bGUemRwrMz0=\")","v":{"$error":"#REF!"}},{"$f":"AND(#REF!,\"bGUemRwrMz4=\")","v":{"$error":"#REF!"}},{"$f":"AND(#REF!,\"bGUemRwrMz8=\")","v":{"$error":"#REF!"}},{"$f":"AND(#REF!,\"bGUemRwrM0A=\")","v":{"$error":"#REF!"}},{"$f":"AND(#REF!,\"bGUemRwrM0E=\")","v":{"$error":"#REF!"}},{"$f":"AND(#REF!,\"bGUemRwrM0I=\")","v":{"$error":"#REF!"}},{"$f":"AND(#REF!,\"bGUemRwrM0M=\")","v":{"$error":"#REF!"}},{"$f":"AND(#REF!,\"bGUemRwrM0Q=\")","v":{"$error":"#REF!"}},{"$f":"AND(#REF!,\"bGUemRwrM0U=\")","v":{"$error":"#REF!"}},{"$f":"AND(#REF!,\"bGUemRwrM0Y=\")","v":{"$error":"#REF!"}},{"$f":"AND(#REF!,\"bGUemRwrM0c=\")","v":{"$error":"#REF!"}},{"$f":"AND(#REF!,\"bGUemRwrM0g=\")","v":{"$error":"#REF!"}},{"$f":"AND(#REF!,\"bGUemRwrM0k=\")","v":{"$error":"#REF!"}},{"$f":"AND(#REF!,\"bGUemRwrM0o=\")","v":{"$error":"#REF!"}},{"$f":"IF(#REF!,\"bGUemRwrM0s=\",0)","v":{"$error":"#REF!"}},{"$f":"AND(#REF!,\"bGUemRwrM0w=\")","v":{"$error":"#REF!"}},{"$f":"AND(#REF!,\"bGUemRwrM00=\")","v":{"$error":"#REF!"}},{"$f":"AND(#REF!,\"bGUemRwrM04=\")","v":{"$error":"#REF!"}},{"$f":"AND(#REF!,\"bGUemRwrM08=\")","v":{"$error":"#REF!"}},{"$f":"AND(#REF!,\"bGUemRwrM1A=\")","v":{"$error":"#REF!"}},{"$f":"AND(#REF!,\"bGUemRwrM1E=\")","v":{"$error":"#REF!"}},{"$f":"AND(#REF!,\"bGUemRwrM1I=\")","v":{"$error":"#REF!"}},{"$f":"AND(#REF!,\"bGUemRwrM1M=\")","v":{"$error":"#REF!"}},{"$f":"AND(#REF!,\"bGUemRwrM1Q=\")","v":{"$error":"#REF!"}},{"$f":"AND(#REF!,\"bGUemRwrM1U=\")","v":{"$error":"#REF!"}},{"$f":"AND(#REF!,\"bGUemRwrM1Y=\")","v":{"$error":"#REF!"}},{"$f":"AND(#REF!,\"bGUemRwrM1c=\")","v":{"$error":"#REF!"}},{"$f":"AND(#REF!,\"bGUemRwrM1g=\")","v":{"$error":"#REF!"}},{"$f":"AND(#REF!,\"bGUemRwrM1k=\")","v":{"$error":"#REF!"}},{"$f":"AND(#REF!,\"bGUemRwrM1o=\")","v":{"$error":"#REF!"}},{"$f":"AND(#REF!,\"bGUemRwrM1s=\")","v":{"$error":"#REF!"}},{"$f":"AND(#REF!,\"bGUemRwrM1w=\")","v":{"$error":"#REF!"}},{"$f":"AND(#REF!,\"bGUemRwrM10=\")","v":{"$error":"#REF!"}},{"$f":"AND(#REF!,\"bGUemRwrM14=\")","v":{"$error":"#REF!"}},{"$f":"AND(#REF!,\"bGUemRwrM18=\")","v":{"$error":"#REF!"}},{"$f":"AND(#REF!,\"bGUemRwrM2A=\")","v":{"$error":"#REF!"}},{"$f":"AND(#REF!,\"bGUemRwrM2E=\")","v":{"$error":"#REF!"}},{"$f":"AND(#REF!,\"bGUemRwrM2I=\")","v":{"$error":"#REF!"}},{"$f":"AND(#REF!,\"bGUemRwrM2M=\")","v":{"$error":"#REF!"}},{"$f":"AND(#REF!,\"bGUemRwrM2Q=\")","v":{"$error":"#REF!"}},{"$f":"AND(#REF!,\"bGUemRwrM2U=\")","v":{"$error":"#REF!"}},{"$f":"AND(#REF!,\"bGUemRwrM2Y=\")","v":{"$error":"#REF!"}},{"$f":"AND(#REF!,\"bGUemRwrM2c=\")","v":{"$error":"#REF!"}},{"$f":"AND(#REF!,\"bGUemRwrM2g=\")","v":{"$error":"#REF!"}},{"$f":"AND(#REF!,\"bGUemRwrM2k=\")","v":{"$error":"#REF!"}},{"$f":"AND(#REF!,\"bGUemRwrM2o=\")","v":{"$error":"#REF!"}},{"$f":"AND(#REF!,\"bGUemRwrM2s=\")","v":{"$error":"#REF!"}},{"$f":"AND(#REF!,\"bGUemRwrM2w=\")","v":{"$error":"#REF!"}},{"$f":"AND(#REF!,\"bGUemRwrM20=\")","v":{"$error":"#REF!"}},{"$f":"AND(#REF!,\"bGUemRwrM24=\")","v":{"$error":"#REF!"}},{"$f":"AND(#REF!,\"bGUemRwrM28=\")","v":{"$error":"#REF!"}},{"$f":"AND(#REF!,\"bGUemRwrM3A=\")","v":{"$error":"#REF!"}},{"$f":"AND(#REF!,\"bGUemRwrM3E=\")","v":{"$error":"#REF!"}},{"$f":"AND(#REF!,\"bGUemRwrM3I=\")","v":{"$error":"#REF!"}},{"$f":"AND(#REF!,\"bGUemRwrM3M=\")","v":{"$error":"#REF!"}},{"$f":"AND(#REF!,\"bGUemRwrM3Q=\")","v":{"$error":"#REF!"}},{"$f":"AND(#REF!,\"bGUemRwrM3U=\")","v":{"$error":"#REF!"}},{"$f":"AND(#REF!,\"bGUemRwrM3Y=\")","v":{"$error":"#REF!"}},{"$f":"AND(#REF!,\"bGUemRwrM3c=\")","v":{"$error":"#REF!"}},{"$f":"AND(#REF!,\"bGUemRwrM3g=\")","v":{"$error":"#REF!"}},{"$f":"AND(#REF!,\"bGUemRwrM3k=\")","v":{"$error":"#REF!"}},{"$f":"AND(#REF!,\"bGUemRwrM3o=\")","v":{"$error":"#REF!"}},{"$f":"AND(#REF!,\"bGUemRwrM3s=\")","v":{"$error":"#REF!"}},{"$f":"AND(#REF!,\"bGUemRwrM3w=\")","v":{"$error":"#REF!"}},{"$f":"AND(#REF!,\"bGUemRwrM30=\")","v":{"$error":"#REF!"}},{"$f":"AND(#REF!,\"bGUemRwrM34=\")","v":{"$error":"#REF!"}},{"$f":"AND(#REF!,\"bGUemRwrM38=\")","v":{"$error":"#REF!"}},{"$f":"AND(#REF!,\"bGUemRwrM4A=\")","v":{"$error":"#REF!"}},{"$f":"AND(#REF!,\"bGUemRwrM4E=\")","v":{"$error":"#REF!"}},{"$f":"AND(#REF!,\"bGUemRwrM4I=\")","v":{"$error":"#REF!"}},{"$f":"AND(#REF!,\"bGUemRwrM4M=\")","v":{"$error":"#REF!"}},{"$f":"AND(#REF!,\"bGUemRwrM4Q=\")","v":{"$error":"#REF!"}},{"$f":"AND(#REF!,\"bGUemRwrM4U=\")","v":{"$error":"#REF!"}},{"$f":"AND(#REF!,\"bGUemRwrM4Y=\")","v":{"$error":"#REF!"}},{"$f":"AND(#REF!,\"bGUemRwrM4c=\")","v":{"$error":"#REF!"}},{"$f":"AND(#REF!,\"bGUemRwrM4g=\")","v":{"$error":"#REF!"}},{"$f":"AND(#REF!,\"bGUemRwrM4k=\")","v":{"$error":"#REF!"}},{"$f":"AND(#REF!,\"bGUemRwrM4o=\")","v":{"$error":"#REF!"}},{"$f":"AND(#REF!,\"bGUemRwrM4s=\")","v":{"$error":"#REF!"}},{"$f":"AND(#REF!,\"bGUemRwrM4w=\")","v":{"$error":"#REF!"}},{"$f":"AND(#REF!,\"bGUemRwrM40=\")","v":{"$error":"#REF!"}},{"$f":"AND(#REF!,\"bGUemRwrM44=\")","v":{"$error":"#REF!"}},{"$f":"AND(#REF!,\"bGUemRwrM48=\")","v":{"$error":"#REF!"}},{"$f":"AND(#REF!,\"bGUemRwrM5A=\")","v":{"$error":"#REF!"}},{"$f":"AND(#REF!,\"bGUemRwrM5E=\")","v":{"$error":"#REF!"}},{"$f":"AND(#REF!,\"bGUemRwrM5I=\")","v":{"$error":"#REF!"}},{"$f":"AND(#REF!,\"bGUemRwrM5M=\")","v":{"$error":"#REF!"}},{"$f":"AND(#REF!,\"bGUemRwrM5Q=\")","v":{"$error":"#REF!"}},{"$f":"AND(#REF!,\"bGUemRwrM5U=\")","v":{"$error":"#REF!"}},{"$f":"AND(#REF!,\"bGUemRwrM5Y=\")","v":{"$error":"#REF!"}},{"$f":"AND(#REF!,\"bGUemRwrM5c=\")","v":{"$error":"#REF!"}},{"$f":"AND(#REF!,\"bGUemRwrM5g=\")","v":{"$error":"#REF!"}},{"$f":"AND(#REF!,\"bGUemRwrM5k=\")","v":{"$error":"#REF!"}},{"$f":"AND(#REF!,\"bGUemRwrM5o=\")","v":{"$error":"#REF!"}},{"$f":"AND(#REF!,\"bGUemRwrM5s=\")","v":{"$error":"#REF!"}},{"$f":"AND(#REF!,\"bGUemRwrM5w=\")","v":{"$error":"#REF!"}},{"$f":"AND(#REF!,\"bGUemRwrM50=\")","v":{"$error":"#REF!"}},{"$f":"AND(#REF!,\"bGUemRwrM54=\")","v":{"$error":"#REF!"}},{"$f":"AND(#REF!,\"bGUemRwrM58=\")","v":{"$error":"#REF!"}},{"$f":"AND(#REF!,\"bGUemRwrM6A=\")","v":{"$error":"#REF!"}},{"$f":"AND(#REF!,\"bGUemRwrM6E=\")","v":{"$error":"#REF!"}},{"$f":"AND(#REF!,\"bGUemRwrM6I=\")","v":{"$error":"#REF!"}},{"$f":"AND(#REF!,\"bGUemRwrM6M=\")","v":{"$error":"#REF!"}},{"$f":"AND(#REF!,\"bGUemRwrM6Q=\")","v":{"$error":"#REF!"}},{"$f":"AND(#REF!,\"bGUemRwrM6U=\")","v":{"$error":"#REF!"}},{"$f":"AND(#REF!,\"bGUemRwrM6Y=\")","v":{"$error":"#REF!"}},{"$f":"AND(#REF!,\"bGUemRwrM6c=\")","v":{"$error":"#REF!"}},{"$f":"AND(#REF!,\"bGUemRwrM6g=\")","v":{"$error":"#REF!"}},{"$f":"AND(#REF!,\"bGUemRwrM6k=\")","v":{"$error":"#REF!"}},{"$f":"AND(#REF!,\"bGUemRwrM6o=\")","v":{"$error":"#REF!"}},{"$f":"AND(#REF!,\"bGUemRwrM6s=\")","v":{"$error":"#REF!"}},{"$f":"AND(#REF!,\"bGUemRwrM6w=\")","v":{"$error":"#REF!"}},{"$f":"AND(#REF!,\"bGUemRwrM60=\")","v":{"$error":"#REF!"}},{"$f":"AND(#REF!,\"bGUemRwrM64=\")","v":{"$error":"#REF!"}},{"$f":"AND(#REF!,\"bGUemRwrM68=\")","v":{"$error":"#REF!"}},{"$f":"AND(#REF!,\"bGUemRwrM7A=\")","v":{"$error":"#REF!"}},{"$f":"AND(#REF!,\"bGUemRwrM7E=\")","v":{"$error":"#REF!"}},{"$f":"AND(#REF!,\"bGUemRwrM7I=\")","v":{"$error":"#REF!"}},{"$f":"AND(#REF!,\"bGUemRwrM7M=\")","v":{"$error":"#REF!"}},{"$f":"AND(#REF!,\"bGUemRwrM7Q=\")","v":{"$error":"#REF!"}},{"$f":"AND(#REF!,\"bGUemRwrM7U=\")","v":{"$error":"#REF!"}},{"$f":"AND(#REF!,\"bGUemRwrM7Y=\")","v":{"$error":"#REF!"}},{"$f":"AND(#REF!,\"bGUemRwrM7c=\")","v":{"$error":"#REF!"}},{"$f":"AND(#REF!,\"bGUemRwrM7g=\")","v":{"$error":"#REF!"}},{"$f":"AND(#REF!,\"bGUemRwrM7k=\")","v":{"$error":"#REF!"}},{"$f":"AND(#REF!,\"bGUemRwrM7o=\")","v":{"$error":"#REF!"}},{"$f":"AND(#REF!,\"bGUemRwrM7s=\")","v":{"$error":"#REF!"}},{"$f":"AND(#REF!,\"bGUemRwrM7w=\")","v":{"$error":"#REF!"}},{"$f":"AND(#REF!,\"bGUemRwrM70=\")","v":{"$error":"#REF!"}},{"$f":"AND(#REF!,\"bGUemRwrM74=\")","v":{"$error":"#REF!"}},{"$f":"AND(#REF!,\"bGUemRwrM78=\")","v":{"$error":"#REF!"}},{"$f":"AND(#REF!,\"bGUemRwrM8A=\")","v":{"$error":"#REF!"}},{"$f":"AND(#REF!,\"bGUemRwrM8E=\")","v":{"$error":"#REF!"}},{"$f":"AND(#REF!,\"bGUemRwrM8I=\")","v":{"$error":"#REF!"}},{"$f":"AND(#REF!,\"bGUemRwrM8M=\")","v":{"$error":"#REF!"}},{"$f":"AND(#REF!,\"bGUemRwrM8Q=\")","v":{"$error":"#REF!"}},{"$f":"AND(#REF!,\"bGUemRwrM8U=\")","v":{"$error":"#REF!"}},{"$f":"AND(#REF!,\"bGUemRwrM8Y=\")","v":{"$error":"#REF!"}},{"$f":"AND(#REF!,\"bGUemRwrM8c=\")","v":{"$error":"#REF!"}},{"$f":"AND(#REF!,\"bGUemRwrM8g=\")","v":{"$error":"#REF!"}},{"$f":"AND(#REF!,\"bGUemRwrM8k=\")","v":{"$error":"#REF!"}},{"$f":"AND(#REF!,\"bGUemRwrM8o=\")","v":{"$error":"#REF!"}},{"$f":"AND(#REF!,\"bGUemRwrM8s=\")","v":{"$error":"#REF!"}},{"$f":"AND(#REF!,\"bGUemRwrM8w=\")","v":{"$error":"#REF!"}},{"$f":"AND(#REF!,\"bGUemRwrM80=\")","v":{"$error":"#REF!"}},{"$f":"AND(#REF!,\"bGUemRwrM84=\")","v":{"$error":"#REF!"}},{"$f":"AND(#REF!,\"bGUemRwrM88=\")","v":{"$error":"#REF!"}},{"$f":"AND(#REF!,\"bGUemRwrM9A=\")","v":{"$error":"#REF!"}},{"$f":"AND(#REF!,\"bGUemRwrM9E=\")","v":{"$error":"#REF!"}},{"$f":"AND(#REF!,\"bGUemRwrM9I=\")","v":{"$error":"#REF!"}},{"$f":"AND(#REF!,\"bGUemRwrM9M=\")","v":{"$error":"#REF!"}},{"$f":"AND(#REF!,\"bGUemRwrM9Q=\")","v":{"$error":"#REF!"}},{"$f":"AND(#REF!,\"bGUemRwrM9U=\")","v":{"$error":"#REF!"}},{"$f":"AND(#REF!,\"bGUemRwrM9Y=\")","v":{"$error":"#REF!"}},{"$f":"AND(#REF!,\"bGUemRwrM9c=\")","v":{"$error":"#REF!"}},{"$f":"AND(#REF!,\"bGUemRwrM9g=\")","v":{"$error":"#REF!"}},{"$f":"AND(#REF!,\"bGUemRwrM9k=\")","v":{"$error":"#REF!"}},{"$f":"AND(#REF!,\"bGUemRwrM9o=\")","v":{"$error":"#REF!"}},{"$f":"AND(#REF!,\"bGUemRwrM9s=\")","v":{"$error":"#REF!"}},{"$f":"AND(#REF!,\"bGUemRwrM9w=\")","v":{"$error":"#REF!"}},{"$f":"AND(#REF!,\"bGUemRwrM90=\")","v":{"$error":"#REF!"}},{"$f":"AND(#REF!,\"bGUemRwrM94=\")","v":{"$error":"#REF!"}},{"$f":"AND(#REF!,\"bGUemRwrM98=\")","v":{"$error":"#REF!"}},{"$f":"AND(#REF!,\"bGUemRwrM+A=\")","v":{"$error":"#REF!"}},{"$f":"AND(#REF!,\"bGUemRwrM+E=\")","v":{"$error":"#REF!"}},{"$f":"AND(#REF!,\"bGUemRwrM+I=\")","v":{"$error":"#REF!"}},{"$f":"AND(#REF!,\"bGUemRwrM+M=\")","v":{"$error":"#REF!"}},{"$f":"AND(#REF!,\"bGUemRwrM+Q=\")","v":{"$error":"#REF!"}},{"$f":"AND(#REF!,\"bGUemRwrM+U=\")","v":{"$error":"#REF!"}},{"$f":"AND(#REF!,\"bGUemRwrM+Y=\")","v":{"$error":"#REF!"}},{"$f":"AND(#REF!,\"bGUemRwrM+c=\")","v":{"$error":"#REF!"}},{"$f":"AND(#REF!,\"bGUemRwrM+g=\")","v":{"$error":"#REF!"}},{"$f":"AND(#REF!,\"bGUemRwrM+k=\")","v":{"$error":"#REF!"}},{"$f":"AND(#REF!,\"bGUemRwrM+o=\")","v":{"$error":"#REF!"}},{"$f":"AND(#REF!,\"bGUemRwrM+s=\")","v":{"$error":"#REF!"}},{"$f":"AND(#REF!,\"bGUemRwrM+w=\")","v":{"$error":"#REF!"}},{"$f":"AND(#REF!,\"bGUemRwrM+0=\")","v":{"$error":"#REF!"}},{"$f":"AND(#REF!,\"bGUemRwrM+4=\")","v":{"$error":"#REF!"}},{"$f":"AND(#REF!,\"bGUemRwrM+8=\")","v":{"$error":"#REF!"}},{"$f":"AND(#REF!,\"bGUemRwrM/A=\")","v":{"$error":"#REF!"}},{"$f":"AND(#REF!,\"bGUemRwrM/E=\")","v":{"$error":"#REF!"}},{"$f":"AND(#REF!,\"bGUemRwrM/I=\")","v":{"$error":"#REF!"}},{"$f":"AND(#REF!,\"bGUemRwrM/M=\")","v":{"$error":"#REF!"}},{"$f":"AND(#REF!,\"bGUemRwrM/Q=\")","v":{"$error":"#REF!"}},{"$f":"AND(#REF!,\"bGUemRwrM/U=\")","v":{"$error":"#REF!"}},{"$f":"AND(#REF!,\"bGUemRwrM/Y=\")","v":{"$error":"#REF!"}},{"$f":"AND(#REF!,\"bGUemRwrM/c=\")","v":{"$error":"#REF!"}},{"$f":"AND(#REF!,\"bGUemRwrM/g=\")","v":{"$error":"#REF!"}},{"$f":"AND(#REF!,\"bGUemRwrM/k=\")","v":{"$error":"#REF!"}},{"$f":"AND(#REF!,\"bGUemRwrM/o=\")","v":{"$error":"#REF!"}},{"$f":"AND(#REF!,\"bGUemRwrM/s=\")","v":{"$error":"#REF!"}},{"$f":"AND(#REF!,\"bGUemRwrM/w=\")","v":{"$error":"#REF!"}},{"$f":"AND(#REF!,\"bGUemRwrM/0=\")","v":{"$error":"#REF!"}},{"$f":"AND(#REF!,\"bGUemRwrM/4=\")","v":{"$error":"#REF!"}},{"$f":"AND(#REF!,\"bGUemRwrM/8=\")","v":{"$error":"#REF!"}}]
[{"$f":"AND(#REF!,\"Q1ZXETq2VgA=\")","v":{"$error":"#REF!"}},{"$f":"AND(#REF!,\"Q1ZXETq2VgE=\")","v":{"$error":"#REF!"}},{"$f":"AND(#REF!,\"Q1ZXETq2VgI=\")","v":{"$error":"#REF!"}},{"$f":"AND(#REF!,\"Q1ZXETq2VgM=\")","v":{"$error":"#REF!"}},{"$f":"AND(#REF!,\"Q1ZXETq2VgQ=\")","v":{"$error":"#REF!"}},{"$f":"AND(#REF!,\"Q1ZXETq2VgU=\")","v":{"$error":"#REF!"}},{"$f":"AND(#REF!,\"Q1ZXETq2VgY=\")","v":{"$error":"#REF!"}},{"$f":"AND(#REF!,\"Q1ZXETq2Vgc=\")","v":{"$error":"#REF!"}},{"$f":"AND(#REF!,\"Q1ZXETq2Vgg=\")","v":{"$error":"#REF!"}},{"$f":"AND(#REF!,\"Q1ZXETq2Vgk=\")","v":{"$error":"#REF!"}},{"$f":"AND(#REF!,\"Q1ZXETq2Vgo=\")","v":{"$error":"#REF!"}},{"$f":"AND(#REF!,\"Q1ZXETq2Vgs=\")","v":{"$error":"#REF!"}},{"$f":"AND(#REF!,\"Q1ZXETq2Vgw=\")","v":{"$error":"#REF!"}},{"$f":"AND(#REF!,\"Q1ZXETq2Vg0=\")","v":{"$error":"#REF!"}},{"$f":"AND(#REF!,\"Q1ZXETq2Vg4=\")","v":{"$error":"#REF!"}},{"$f":"AND(#REF!,\"Q1ZXETq2Vg8=\")","v":{"$error":"#REF!"}},{"$f":"AND(#REF!,\"Q1ZXETq2VhA=\")","v":{"$error":"#REF!"}},{"$f":"AND(#REF!,\"Q1ZXETq2VhE=\")","v":{"$error":"#REF!"}},{"$f":"IF(#REF!,\"Q1ZXETq2VhI=\",0)","v":{"$error":"#REF!"}},{"$f":"AND(#REF!,\"Q1ZXETq2VhM=\")","v":{"$error":"#REF!"}},{"$f":"AND(#REF!,\"Q1ZXETq2VhQ=\")","v":{"$error":"#REF!"}},{"$f":"AND(#REF!,\"Q1ZXETq2VhU=\")","v":{"$error":"#REF!"}},{"$f":"AND(#REF!,\"Q1ZXETq2VhY=\")","v":{"$error":"#REF!"}},{"$f":"AND(#REF!,\"Q1ZXETq2Vhc=\")","v":{"$error":"#REF!"}},{"$f":"AND(#REF!,\"Q1ZXETq2Vhg=\")","v":{"$error":"#REF!"}},{"$f":"AND(#REF!,\"Q1ZXETq2Vhk=\")","v":{"$error":"#REF!"}},{"$f":"AND(#REF!,\"Q1ZXETq2Vho=\")","v":{"$error":"#REF!"}},{"$f":"AND(#REF!,\"Q1ZXETq2Vhs=\")","v":{"$error":"#REF!"}},{"$f":"AND(#REF!,\"Q1ZXETq2Vhw=\")","v":{"$error":"#REF!"}},{"$f":"AND(#REF!,\"Q1ZXETq2Vh0=\")","v":{"$error":"#REF!"}},{"$f":"AND(#REF!,\"Q1ZXETq2Vh4=\")","v":{"$error":"#REF!"}},{"$f":"AND(#REF!,\"Q1ZXETq2Vh8=\")","v":{"$error":"#REF!"}},{"$f":"AND(#REF!,\"Q1ZXETq2ViA=\")","v":{"$error":"#REF!"}},{"$f":"AND(#REF!,\"Q1ZXETq2ViE=\")","v":{"$error":"#REF!"}},{"$f":"AND(#REF!,\"Q1ZXETq2ViI=\")","v":{"$error":"#REF!"}},{"$f":"AND(#REF!,\"Q1ZXETq2ViM=\")","v":{"$error":"#REF!"}},{"$f":"AND(#REF!,\"Q1ZXETq2ViQ=\")","v":{"$error":"#REF!"}},{"$f":"AND(#REF!,\"Q1ZXETq2ViU=\")","v":{"$error":"#REF!"}},{"$f":"AND(#REF!,\"Q1ZXETq2ViY=\")","v":{"$error":"#REF!"}},{"$f":"AND(#REF!,\"Q1ZXETq2Vic=\")","v":{"$error":"#REF!"}},{"$f":"AND(#REF!,\"Q1ZXETq2Vig=\")","v":{"$error":"#REF!"}},{"$f":"AND(#REF!,\"Q1ZXETq2Vik=\")","v":{"$error":"#REF!"}},{"$f":"AND(#REF!,\"Q1ZXETq2Vio=\")","v":{"$error":"#REF!"}},{"$f":"AND(#REF!,\"Q1ZXETq2Vis=\")","v":{"$error":"#REF!"}},{"$f":"AND(#REF!,\"Q1ZXETq2Viw=\")","v":{"$error":"#REF!"}},{"$f":"AND(#REF!,\"Q1ZXETq2Vi0=\")","v":{"$error":"#REF!"}},{"$f":"AND(#REF!,\"Q1ZXETq2Vi4=\")","v":{"$error":"#REF!"}},{"$f":"AND(#REF!,\"Q1ZXETq2Vi8=\")","v":{"$error":"#REF!"}},{"$f":"AND(#REF!,\"Q1ZXETq2VjA=\")","v":{"$error":"#REF!"}},{"$f":"AND(#REF!,\"Q1ZXETq2VjE=\")","v":{"$error":"#REF!"}},{"$f":"AND(#REF!,\"Q1ZXETq2VjI=\")","v":{"$error":"#REF!"}},{"$f":"AND(#REF!,\"Q1ZXETq2VjM=\")","v":{"$error":"#REF!"}},{"$f":"AND(#REF!,\"Q1ZXETq2VjQ=\")","v":{"$error":"#REF!"}},{"$f":"AND(#REF!,\"Q1ZXETq2VjU=\")","v":{"$error":"#REF!"}},{"$f":"AND(#REF!,\"Q1ZXETq2VjY=\")","v":{"$error":"#REF!"}},{"$f":"AND(#REF!,\"Q1ZXETq2Vjc=\")","v":{"$error":"#REF!"}},{"$f":"AND(#REF!,\"Q1ZXETq2Vjg=\")","v":{"$error":"#REF!"}},{"$f":"AND(#REF!,\"Q1ZXETq2Vjk=\")","v":{"$error":"#REF!"}},{"$f":"AND(#REF!,\"Q1ZXETq2Vjo=\")","v":{"$error":"#REF!"}},{"$f":"AND(#REF!,\"Q1ZXETq2Vjs=\")","v":{"$error":"#REF!"}},{"$f":"AND(#REF!,\"Q1ZXETq2Vjw=\")","v":{"$error":"#REF!"}},{"$f":"AND(#REF!,\"Q1ZXETq2Vj0=\")","v":{"$error":"#REF!"}},{"$f":"AND(#REF!,\"Q1ZXETq2Vj4=\")","v":{"$error":"#REF!"}},{"$f":"AND(#REF!,\"Q1ZXETq2Vj8=\")","v":{"$error":"#REF!"}},{"$f":"AND(#REF!,\"Q1ZXETq2VkA=\")","v":{"$error":"#REF!"}},{"$f":"AND(#REF!,\"Q1ZXETq2VkE=\")","v":{"$error":"#REF!"}},{"$f":"AND(#REF!,\"Q1ZXETq2VkI=\")","v":{"$error":"#REF!"}},{"$f":"AND(#REF!,\"Q1ZXETq2VkM=\")","v":{"$error":"#REF!"}},{"$f":"AND(#REF!,\"Q1ZXETq2VkQ=\")","v":{"$error":"#REF!"}},{"$f":"AND(#REF!,\"Q1ZXETq2VkU=\")","v":{"$error":"#REF!"}},{"$f":"AND(#REF!,\"Q1ZXETq2VkY=\")","v":{"$error":"#REF!"}},{"$f":"AND(#REF!,\"Q1ZXETq2Vkc=\")","v":{"$error":"#REF!"}},{"$f":"AND(#REF!,\"Q1ZXETq2Vkg=\")","v":{"$error":"#REF!"}},{"$f":"AND(#REF!,\"Q1ZXETq2Vkk=\")","v":{"$error":"#REF!"}},{"$f":"AND(#REF!,\"Q1ZXETq2Vko=\")","v":{"$error":"#REF!"}},{"$f":"AND(#REF!,\"Q1ZXETq2Vks=\")","v":{"$error":"#REF!"}},{"$f":"AND(#REF!,\"Q1ZXETq2Vkw=\")","v":{"$error":"#REF!"}},{"$f":"AND(#REF!,\"Q1ZXETq2Vk0=\")","v":{"$error":"#REF!"}},{"$f":"AND(#REF!,\"Q1ZXETq2Vk4=\")","v":{"$error":"#REF!"}},{"$f":"AND(#REF!,\"Q1ZXETq2Vk8=\")","v":{"$error":"#REF!"}},{"$f":"AND(#REF!,\"Q1ZXETq2VlA=\")","v":{"$error":"#REF!"}},{"$f":"AND(#REF!,\"Q1ZXETq2VlE=\")","v":{"$error":"#REF!"}},{"$f":"AND(#REF!,\"Q1ZXETq2VlI=\")","v":{"$error":"#REF!"}},{"$f":"AND(#REF!,\"Q1ZXETq2VlM=\")","v":{"$error":"#REF!"}},{"$f":"AND(#REF!,\"Q1ZXETq2VlQ=\")","v":{"$error":"#REF!"}},{"$f":"AND(#REF!,\"Q1ZXETq2VlU=\")","v":{"$error":"#REF!"}},{"$f":"AND(#REF!,\"Q1ZXETq2VlY=\")","v":{"$error":"#REF!"}},{"$f":"AND(#REF!,\"Q1ZXETq2Vlc=\")","v":{"$error":"#REF!"}},{"$f":"AND(#REF!,\"Q1ZXETq2Vlg=\")","v":{"$error":"#REF!"}},{"$f":"AND(#REF!,\"Q1ZXETq2Vlk=\")","v":{"$error":"#REF!"}},{"$f":"AND(#REF!,\"Q1ZXETq2Vlo=\")","v":{"$error":"#REF!"}},{"$f":"AND(#REF!,\"Q1ZXETq2Vls=\")","v":{"$error":"#REF!"}},{"$f":"AND(#REF!,\"Q1ZXETq2Vlw=\")","v":{"$error":"#REF!"}},{"$f":"AND(#REF!,\"Q1ZXETq2Vl0=\")","v":{"$error":"#REF!"}},{"$f":"AND(#REF!,\"Q1ZXETq2Vl4=\")","v":{"$error":"#REF!"}},{"$f":"AND(#REF!,\"Q1ZXETq2Vl8=\")","v":{"$error":"#REF!"}},{"$f":"AND(#REF!,\"Q1ZXETq2VmA=\")","v":{"$error":"#REF!"}},{"$f":"AND(#REF!,\"Q1ZXETq2VmE=\")","v":{"$error":"#REF!"}},{"$f":"AND(#REF!,\"Q1ZXETq2VmI=\")","v":{"$error":"#REF!"}},{"$f":"AND(#REF!,\"Q1ZXETq2VmM=\")","v":{"$error":"#REF!"}},{"$f":"AND(#REF!,\"Q1ZXETq2VmQ=\")","v":{"$error":"#REF!"}},{"$f":"AND(#REF!,\"Q1ZXETq2VmU=\")","v":{"$error":"#REF!"}},{"$f":"AND(#REF!,\"Q1ZXETq2VmY=\")","v":{"$error":"#REF!"}},{"$f":"AND(#REF!,\"Q1ZXETq2Vmc=\")","v":{"$error":"#REF!"}},{"$f":"AND(#REF!,\"Q1ZXETq2Vmg=\")","v":{"$error":"#REF!"}},{"$f":"AND(#REF!,\"Q1ZXETq2Vmk=\")","v":{"$error":"#REF!"}},{"$f":"AND(#REF!,\"Q1ZXETq2Vmo=\")","v":{"$error":"#REF!"}},{"$f":"AND(#REF!,\"Q1ZXETq2Vms=\")","v":{"$error":"#REF!"}},{"$f":"AND(#REF!,\"Q1ZXETq2Vmw=\")","v":{"$error":"#REF!"}},{"$f":"AND(#REF!,\"Q1ZXETq2Vm0=\")","v":{"$error":"#REF!"}},{"$f":"AND(#REF!,\"Q1ZXETq2Vm4=\")","v":{"$error":"#REF!"}},{"$f":"AND(#REF!,\"Q1ZXETq2Vm8=\")","v":{"$error":"#REF!"}},{"$f":"AND(#REF!,\"Q1ZXETq2VnA=\")","v":{"$error":"#REF!"}},{"$f":"AND(#REF!,\"Q1ZXETq2VnE=\")","v":{"$error":"#REF!"}},{"$f":"AND(#REF!,\"Q1ZXETq2VnI=\")","v":{"$error":"#REF!"}},{"$f":"AND(#REF!,\"Q1ZXETq2VnM=\")","v":{"$error":"#REF!"}},{"$f":"AND(#REF!,\"Q1ZXETq2VnQ=\")","v":{"$error":"#REF!"}},{"$f":"AND(#REF!,\"Q1ZXETq2VnU=\")","v":{"$error":"#REF!"}},{"$f":"AND(#REF!,\"Q1ZXETq2VnY=\")","v":{"$error":"#REF!"}},{"$f":"AND(#REF!,\"Q1ZXETq2Vnc=\")","v":{"$error":"#REF!"}},{"$f":"AND(#REF!,\"Q1ZXETq2Vng=\")","v":{"$error":"#REF!"}},{"$f":"AND(#REF!,\"Q1ZXETq2Vnk=\")","v":{"$error":"#REF!"}},{"$f":"AND(#REF!,\"Q1ZXETq2Vno=\")","v":{"$error":"#REF!"}},{"$f":"AND(#REF!,\"Q1ZXETq2Vns=\")","v":{"$error":"#REF!"}},{"$f":"AND(#REF!,\"Q1ZXETq2Vnw=\")","v":{"$error":"#REF!"}},{"$f":"AND(#REF!,\"Q1ZXETq2Vn0=\")","v":{"$error":"#REF!"}},{"$f":"AND(#REF!,\"Q1ZXETq2Vn4=\")","v":{"$error":"#REF!"}},{"$f":"AND(#REF!,\"Q1ZXETq2Vn8=\")","v":{"$error":"#REF!"}},{"$f":"AND(#REF!,\"Q1ZXETq2VoA=\")","v":{"$error":"#REF!"}},{"$f":"AND(#REF!,\"Q1ZXETq2VoE=\")","v":{"$error":"#REF!"}},{"$f":"AND(#REF!,\"Q1ZXETq2VoI=\")","v":{"$error":"#REF!"}},{"$f":"AND(#REF!,\"Q1ZXETq2VoM=\")","v":{"$error":"#REF!"}},{"$f":"AND(#REF!,\"Q1ZXETq2VoQ=\")","v":{"$error":"#REF!"}},{"$f":"AND(#REF!,\"Q1ZXETq2VoU=\")","v":{"$error":"#REF!"}},{"$f":"AND(#REF!,\"Q1ZXETq2VoY=\")","v":{"$error":"#REF!"}},{"$f":"AND(#REF!,\"Q1ZXETq2Voc=\")","v":{"$error":"#REF!"}},{"$f":"AND(#REF!,\"Q1ZXETq2Vog=\")","v":{"$error":"#REF!"}},{"$f":"AND(#REF!,\"Q1ZXETq2Vok=\")","v":{"$error":"#REF!"}},{"$f":"AND(#REF!,\"Q1ZXETq2Voo=\")","v":{"$error":"#REF!"}},{"$f":"AND(#REF!,\"Q1ZXETq2Vos=\")","v":{"$error":"#REF!"}},{"$f":"AND(#REF!,\"Q1ZXETq2Vow=\")","v":{"$error":"#REF!"}},{"$f":"AND(#REF!,\"Q1ZXETq2Vo0=\")","v":{"$error":"#REF!"}},{"$f":"AND(#REF!,\"Q1ZXETq2Vo4=\")","v":{"$error":"#REF!"}},{"$f":"AND(#REF!,\"Q1ZXETq2Vo8=\")","v":{"$error":"#REF!"}},{"$f":"AND(#REF!,\"Q1ZXETq2VpA=\")","v":{"$error":"#REF!"}},{"$f":"AND(#REF!,\"Q1ZXETq2VpE=\")","v":{"$error":"#REF!"}},{"$f":"AND(#REF!,\"Q1ZXETq2VpI=\")","v":{"$error":"#REF!"}},{"$f":"AND(#REF!,\"Q1ZXETq2VpM=\")","v":{"$error":"#REF!"}},{"$f":"AND(#REF!,\"Q1ZXETq2VpQ=\")","v":{"$error":"#REF!"}},{"$f":"AND(#REF!,\"Q1ZXETq2VpU=\")","v":{"$error":"#REF!"}},{"$f":"AND(#REF!,\"Q1ZXETq2VpY=\")","v":{"$error":"#REF!"}},{"$f":"AND(#REF!,\"Q1ZXETq2Vpc=\")","v":{"$error":"#REF!"}},{"$f":"AND(#REF!,\"Q1ZXETq2Vpg=\")","v":{"$error":"#REF!"}},{"$f":"AND(#REF!,\"Q1ZXETq2Vpk=\")","v":{"$error":"#REF!"}},{"$f":"AND(#REF!,\"Q1ZXETq2Vpo=\")","v":{"$error":"#REF!"}},{"$f":"AND(#REF!,\"Q1ZXETq2Vps=\")","v":{"$error":"#REF!"}},{"$f":"AND(#REF!,\"Q1ZXETq2Vpw=\")","v":{"$error":"#REF!"}},{"$f":"AND(#REF!,\"Q1ZXETq2Vp0=\")","v":{"$error":"#REF!"}},{"$f":"AND(#REF!,\"Q1ZXETq2Vp4=\")","v":{"$error":"#REF!"}},{"$f":"AND(#REF!,\"Q1ZXETq2Vp8=\")","v":{"$error":"#REF!"}},{"$f":"AND(#REF!,\"Q1ZXETq2VqA=\")","v":{"$error":"#REF!"}},{"$f":"AND(#REF!,\"Q1ZXETq2VqE=\")","v":{"$error":"#REF!"}},{"$f":"AND(#REF!,\"Q1ZXETq2VqI=\")","v":{"$error":"#REF!"}},{"$f":"AND(#REF!,\"Q1ZXETq2VqM=\")","v":{"$error":"#REF!"}},{"$f":"AND(#REF!,\"Q1ZXETq2VqQ=\")","v":{"$error":"#REF!"}},{"$f":"AND(#REF!,\"Q1ZXETq2VqU=\")","v":{"$error":"#REF!"}},{"$f":"AND(#REF!,\"Q1ZXETq2VqY=\")","v":{"$error":"#REF!"}},{"$f":"AND(#REF!,\"Q1ZXETq2Vqc=\")","v":{"$error":"#REF!"}},{"$f":"AND(#REF!,\"Q1ZXETq2Vqg=\")","v":{"$error":"#REF!"}},{"$f":"AND(#REF!,\"Q1ZXETq2Vqk=\")","v":{"$error":"#REF!"}},{"$f":"AND(#REF!,\"Q1ZXETq2Vqo=\")","v":{"$error":"#REF!"}},{"$f":"AND(#REF!,\"Q1ZXETq2Vqs=\")","v":{"$error":"#REF!"}},{"$f":"AND(#REF!,\"Q1ZXETq2Vqw=\")","v":{"$error":"#REF!"}},{"$f":"AND(#REF!,\"Q1ZXETq2Vq0=\")","v":{"$error":"#REF!"}},{"$f":"AND(#REF!,\"Q1ZXETq2Vq4=\")","v":{"$error":"#REF!"}},{"$f":"AND(#REF!,\"Q1ZXETq2Vq8=\")","v":{"$error":"#REF!"}},{"$f":"AND(#REF!,\"Q1ZXETq2VrA=\")","v":{"$error":"#REF!"}},{"$f":"AND(#REF!,\"Q1ZXETq2VrE=\")","v":{"$error":"#REF!"}},{"$f":"AND(#REF!,\"Q1ZXETq2VrI=\")","v":{"$error":"#REF!"}},{"$f":"AND(#REF!,\"Q1ZXETq2VrM=\")","v":{"$error":"#REF!"}},{"$f":"AND(#REF!,\"Q1ZXETq2VrQ=\")","v":{"$error":"#REF!"}},{"$f":"AND(#REF!,\"Q1ZXETq2VrU=\")","v":{"$error":"#REF!"}},{"$f":"AND(#REF!,\"Q1ZXETq2VrY=\")","v":{"$error":"#REF!"}},{"$f":"AND(#REF!,\"Q1ZXETq2Vrc=\")","v":{"$error":"#REF!"}},{"$f":"AND(#REF!,\"Q1ZXETq2Vrg=\")","v":{"$error":"#REF!"}},{"$f":"AND(#REF!,\"Q1ZXETq2Vrk=\")","v":{"$error":"#REF!"}},{"$f":"AND(#REF!,\"Q1ZXETq2Vro=\")","v":{"$error":"#REF!"}},{"$f":"AND(#REF!,\"Q1ZXETq2Vrs=\")","v":{"$error":"#REF!"}},{"$f":"AND(#REF!,\"Q1ZXETq2Vrw=\")","v":{"$error":"#REF!"}},{"$f":"AND(#REF!,\"Q1ZXETq2Vr0=\")","v":{"$error":"#REF!"}},{"$f":"AND(#REF!,\"Q1ZXETq2Vr4=\")","v":{"$error":"#REF!"}},{"$f":"AND(#REF!,\"Q1ZXETq2Vr8=\")","v":{"$error":"#REF!"}},{"$f":"AND(#REF!,\"Q1ZXETq2VsA=\")","v":{"$error":"#REF!"}},{"$f":"AND(#REF!,\"Q1ZXETq2VsE=\")","v":{"$error":"#REF!"}},{"$f":"AND(#REF!,\"Q1ZXETq2VsI=\")","v":{"$error":"#REF!"}},{"$f":"AND(#REF!,\"Q1ZXETq2VsM=\")","v":{"$error":"#REF!"}},{"$f":"AND(#REF!,\"Q1ZXETq2VsQ=\")","v":{"$error":"#REF!"}},{"$f":"AND(#REF!,\"Q1ZXETq2VsU=\")","v":{"$error":"#REF!"}},{"$f":"AND(#REF!,\"Q1ZXETq2VsY=\")","v":{"$error":"#REF!"}},{"$f":"AND(#REF!,\"Q1ZXETq2Vsc=\")","v":{"$error":"#REF!"}},{"$f":"AND(#REF!,\"Q1ZXETq2Vsg=\")","v":{"$error":"#REF!"}},{"$f":"AND(#REF!,\"Q1ZXETq2Vsk=\")","v":{"$error":"#REF!"}},{"$f":"AND(#REF!,\"Q1ZXETq2Vso=\")","v":{"$error":"#REF!"}},{"$f":"AND(#REF!,\"Q1ZXETq2Vss=\")","v":{"$error":"#REF!"}},{"$f":"AND(#REF!,\"Q1ZXETq2Vsw=\")","v":{"$error":"#REF!"}},{"$f":"AND(#REF!,\"Q1ZXETq2Vs0=\")","v":{"$error":"#REF!"}},{"$f":"AND(#REF!,\"Q1ZXETq2Vs4=\")","v":{"$error":"#REF!"}},{"$f":"AND(#REF!,\"Q1ZXETq2Vs8=\")","v":{"$error":"#REF!"}},{"$f":"AND(#REF!,\"Q1ZXETq2VtA=\")","v":{"$error":"#REF!"}},{"$f":"AND(#REF!,\"Q1ZXETq2VtE=\")","v":{"$error":"#REF!"}},{"$f":"AND(#REF!,\"Q1ZXETq2VtI=\")","v":{"$error":"#REF!"}},{"$f":"AND(#REF!,\"Q1ZXETq2VtM=\")","v":{"$error":"#REF!"}},{"$f":"AND(#REF!,\"Q1ZXETq2VtQ=\")","v":{"$error":"#REF!"}},{"$f":"AND(#REF!,\"Q1ZXETq2VtU=\")","v":{"$error":"#REF!"}},{"$f":"AND(#REF!,\"Q1ZXETq2VtY=\")","v":{"$error":"#REF!"}},{"$f":"AND(#REF!,\"Q1ZXETq2Vtc=\")","v":{"$error":"#REF!"}},{"$f":"AND(#REF!,\"Q1ZXETq2Vtg=\")","v":{"$error":"#REF!"}},{"$f":"IF(#REF!,\"Q1ZXETq2Vtk=\",0)","v":{"$error":"#REF!"}},{"$f":"AND(#REF!,\"Q1ZXETq2Vto=\")","v":{"$error":"#REF!"}},{"$f":"AND(#REF!,\"Q1ZXETq2Vts=\")","v":{"$error":"#REF!"}},{"$f":"AND(#REF!,\"Q1ZXETq2Vtw=\")","v":{"$error":"#REF!"}},{"$f":"AND(#REF!,\"Q1ZXETq2Vt0=\")","v":{"$error":"#REF!"}},{"$f":"AND(#REF!,\"Q1ZXETq2Vt4=\")","v":{"$error":"#REF!"}},{"$f":"AND(#REF!,\"Q1ZXETq2Vt8=\")","v":{"$error":"#REF!"}},{"$f":"AND(#REF!,\"Q1ZXETq2VuA=\")","v":{"$error":"#REF!"}},{"$f":"AND(#REF!,\"Q1ZXETq2VuE=\")","v":{"$error":"#REF!"}},{"$f":"AND(#REF!,\"Q1ZXETq2VuI=\")","v":{"$error":"#REF!"}},{"$f":"AND(#REF!,\"Q1ZXETq2VuM=\")","v":{"$error":"#REF!"}},{"$f":"AND(#REF!,\"Q1ZXETq2VuQ=\")","v":{"$error":"#REF!"}},{"$f":"AND(#REF!,\"Q1ZXETq2VuU=\")","v":{"$error":"#REF!"}},{"$f":"AND(#REF!,\"Q1ZXETq2VuY=\")","v":{"$error":"#REF!"}},{"$f":"AND(#REF!,\"Q1ZXETq2Vuc=\")","v":{"$error":"#REF!"}},{"$f":"AND(#REF!,\"Q1ZXETq2Vug=\")","v":{"$error":"#REF!"}},{"$f":"AND(#REF!,\"Q1ZXETq2Vuk=\")","v":{"$error":"#REF!"}},{"$f":"AND(#REF!,\"Q1ZXETq2Vuo=\")","v":{"$error":"#REF!"}},{"$f":"AND(#REF!,\"Q1ZXETq2Vus=\")","v":{"$error":"#REF!"}},{"$f":"AND(#REF!,\"Q1ZXETq2Vuw=\")","v":{"$error":"#REF!"}},{"$f":"AND(#REF!,\"Q1ZXETq2Vu0=\")","v":{"$error":"#REF!"}},{"$f":"AND(#REF!,\"Q1ZXETq2Vu4=\")","v":{"$error":"#REF!"}},{"$f":"AND(#REF!,\"Q1ZXETq2Vu8=\")","v":{"$error":"#REF!"}},{"$f":"AND(#REF!,\"Q1ZXETq2VvA=\")","v":{"$error":"#REF!"}},{"$f":"AND(#REF!,\"Q1ZXETq2VvE=\")","v":{"$error":"#REF!"}},{"$f":"AND(#REF!,\"Q1ZXETq2VvI=\")","v":{"$error":"#REF!"}},{"$f":"AND(#REF!,\"Q1ZXETq2VvM=\")","v":{"$error":"#REF!"}},{"$f":"AND(#REF!,\"Q1ZXETq2VvQ=\")","v":{"$error":"#REF!"}},{"$f":"AND(#REF!,\"Q1ZXETq2VvU=\")","v":{"$error":"#REF!"}},{"$f":"AND(#REF!,\"Q1ZXETq2VvY=\")","v":{"$error":"#REF!"}},{"$f":"AND(#REF!,\"Q1ZXETq2Vvc=\")","v":{"$error":"#REF!"}},{"$f":"AND(#REF!,\"Q1ZXETq2Vvg=\")","v":{"$error":"#REF!"}},{"$f":"AND(#REF!,\"Q1ZXETq2Vvk=\")","v":{"$error":"#REF!"}},{"$f":"AND(#REF!,\"Q1ZXETq2Vvo=\")","v":{"$error":"#REF!"}},{"$f":"AND(#REF!,\"Q1ZXETq2Vvs=\")","v":{"$error":"#REF!"}},{"$f":"AND(#REF!,\"Q1ZXETq2Vvw=\")","v":{"$error":"#REF!"}},{"$f":"AND(#REF!,\"Q1ZXETq2Vv0=\")","v":{"$error":"#REF!"}},{"$f":"AND(#REF!,\"Q1ZXETq2Vv4=\")","v":{"$error":"#REF!"}},{"$f":"AND(#REF!,\"Q1ZXETq2Vv8=\")","v":{"$error":"#REF!"}}]
[{"$f":"AND(#REF!,\"AOWos1OgigA=\")","v":{"$error":"#REF!"}},{"$f":"AND(#REF!,\"AOWos1OgigE=\")","v":{"$error":"#REF!"}},{"$f":"AND(#REF!,\"AOWos1OgigI=\")","v":{"$error":"#REF!"}},{"$f":"AND(#REF!,\"AOWos1OgigM=\")","v":{"$error":"#REF!"}},{"$f":"AND(#REF!,\"AOWos1OgigQ=\")","v":{"$error":"#REF!"}},{"$f":"AND(#REF!,\"AOWos1OgigU=\")","v":{"$error":"#REF!"}},{"$f":"AND(#REF!,\"AOWos1OgigY=\")","v":{"$error":"#REF!"}},{"$f":"AND(#REF!,\"AOWos1Ogigc=\")","v":{"$error":"#REF!"}},{"$f":"AND(#REF!,\"AOWos1Ogigg=\")","v":{"$error":"#REF!"}},{"$f":"AND(#REF!,\"AOWos1Ogigk=\")","v":{"$error":"#REF!"}},{"$f":"AND(#REF!,\"AOWos1Ogigo=\")","v":{"$error":"#REF!"}},{"$f":"AND(#REF!,\"AOWos1Ogigs=\")","v":{"$error":"#REF!"}},{"$f":"AND(#REF!,\"AOWos1Ogigw=\")","v":{"$error":"#REF!"}},{"$f":"AND(#REF!,\"AOWos1Ogig0=\")","v":{"$error":"#REF!"}},{"$f":"AND(#REF!,\"AOWos1Ogig4=\")","v":{"$error":"#REF!"}},{"$f":"AND(#REF!,\"AOWos1Ogig8=\")","v":{"$error":"#REF!"}},{"$f":"AND(#REF!,\"AOWos1OgihA=\")","v":{"$error":"#REF!"}},{"$f":"AND(#REF!,\"AOWos1OgihE=\")","v":{"$error":"#REF!"}},{"$f":"AND(#REF!,\"AOWos1OgihI=\")","v":{"$error":"#REF!"}},{"$f":"AND(#REF!,\"AOWos1OgihM=\")","v":{"$error":"#REF!"}},{"$f":"AND(#REF!,\"AOWos1OgihQ=\")","v":{"$error":"#REF!"}},{"$f":"AND(#REF!,\"AOWos1OgihU=\")","v":{"$error":"#REF!"}},{"$f":"AND(#REF!,\"AOWos1OgihY=\")","v":{"$error":"#REF!"}},{"$f":"AND(#REF!,\"AOWos1Ogihc=\")","v":{"$error":"#REF!"}},{"$f":"AND(#REF!,\"AOWos1Ogihg=\")","v":{"$error":"#REF!"}},{"$f":"AND(#REF!,\"AOWos1Ogihk=\")","v":{"$error":"#REF!"}},{"$f":"AND(#REF!,\"AOWos1Ogiho=\")","v":{"$error":"#REF!"}},{"$f":"AND(#REF!,\"AOWos1Ogihs=\")","v":{"$error":"#REF!"}},{"$f":"AND(#REF!,\"AOWos1Ogihw=\")","v":{"$error":"#REF!"}},{"$f":"AND(#REF!,\"AOWos1Ogih0=\")","v":{"$error":"#REF!"}},{"$f":"AND(#REF!,\"AOWos1Ogih4=\")","v":{"$error":"#REF!"}},{"$f":"AND(#REF!,\"AOWos1Ogih8=\")","v":{"$error":"#REF!"}},{"$f":"AND(#REF!,\"AOWos1OgiiA=\")","v":{"$error":"#REF!"}},{"$f":"AND(#REF!,\"AOWos1OgiiE=\")","v":{"$error":"#REF!"}},{"$f":"AND(#REF!,\"AOWos1OgiiI=\")","v":{"$error":"#REF!"}},{"$f":"AND(#REF!,\"AOWos1OgiiM=\")","v":{"$error":"#REF!"}},{"$f":"AND(#REF!,\"AOWos1OgiiQ=\")","v":{"$error":"#REF!"}},{"$f":"AND(#REF!,\"AOWos1OgiiU=\")","v":{"$error":"#REF!"}},{"$f":"AND(#REF!,\"AOWos1OgiiY=\")","v":{"$error":"#REF!"}},{"$f":"AND(#REF!,\"AOWos1Ogiic=\")","v":{"$error":"#REF!"}},{"$f":"AND(#REF!,\"AOWos1Ogiig=\")","v":{"$error":"#REF!"}},{"$f":"AND(#REF!,\"AOWos1Ogiik=\")","v":{"$error":"#REF!"}},{"$f":"AND(#REF!,\"AOWos1Ogiio=\")","v":{"$error":"#REF!"}},{"$f":"AND(#REF!,\"AOWos1Ogiis=\")","v":{"$error":"#REF!"}},{"$f":"AND(#REF!,\"AOWos1Ogiiw=\")","v":{"$error":"#REF!"}},{"$f":"AND(#REF!,\"AOWos1Ogii0=\")","v":{"$error":"#REF!"}},{"$f":"AND(#REF!,\"AOWos1Ogii4=\")","v":{"$error":"#REF!"}},{"$f":"AND(#REF!,\"AOWos1Ogii8=\")","v":{"$error":"#REF!"}},{"$f":"AND(#REF!,\"AOWos1OgijA=\")","v":{"$error":"#REF!"}},{"$f":"AND(#REF!,\"AOWos1OgijE=\")","v":{"$error":"#REF!"}},{"$f":"AND(#REF!,\"AOWos1OgijI=\")","v":{"$error":"#REF!"}},{"$f":"AND(#REF!,\"AOWos1OgijM=\")","v":{"$error":"#REF!"}},{"$f":"AND(#REF!,\"AOWos1OgijQ=\")","v":{"$error":"#REF!"}},{"$f":"AND(#REF!,\"AOWos1OgijU=\")","v":{"$error":"#REF!"}},{"$f":"AND(#REF!,\"AOWos1OgijY=\")","v":{"$error":"#REF!"}},{"$f":"AND(#REF!,\"AOWos1Ogijc=\")","v":{"$error":"#REF!"}},{"$f":"AND(#REF!,\"AOWos1Ogijg=\")","v":{"$error":"#REF!"}},{"$f":"AND(#REF!,\"AOWos1Ogijk=\")","v":{"$error":"#REF!"}},{"$f":"AND(#REF!,\"AOWos1Ogijo=\")","v":{"$error":"#REF!"}},{"$f":"AND(#REF!,\"AOWos1Ogijs=\")","v":{"$error":"#REF!"}},{"$f":"AND(#REF!,\"AOWos1Ogijw=\")","v":{"$error":"#REF!"}},{"$f":"AND(#REF!,\"AOWos1Ogij0=\")","v":{"$error":"#REF!"}},{"$f":"AND(#REF!,\"AOWos1Ogij4=\")","v":{"$error":"#REF!"}},{"$f":"AND(#REF!,\"AOWos1Ogij8=\")","v":{"$error":"#REF!"}},{"$f":"AND(#REF!,\"AOWos1OgikA=\")","v":{"$error":"#REF!"}},{"$f":"AND(#REF!,\"AOWos1OgikE=\")","v":{"$error":"#REF!"}},{"$f":"AND(#REF!,\"AOWos1OgikI=\")","v":{"$error":"#REF!"}},{"$f":"AND(#REF!,\"AOWos1OgikM=\")","v":{"$error":"#REF!"}},{"$f":"AND(#REF!,\"AOWos1OgikQ=\")","v":{"$error":"#REF!"}},{"$f":"AND(#REF!,\"AOWos1OgikU=\")","v":{"$error":"#REF!"}},{"$f":"AND(#REF!,\"AOWos1OgikY=\")","v":{"$error":"#REF!"}},{"$f":"AND(#REF!,\"AOWos1Ogikc=\")","v":{"$error":"#REF!"}},{"$f":"AND(#REF!,\"AOWos1Ogikg=\")","v":{"$error":"#REF!"}},{"$f":"AND(#REF!,\"AOWos1Ogikk=\")","v":{"$error":"#REF!"}},{"$f":"AND(#REF!,\"AOWos1Ogiko=\")","v":{"$error":"#REF!"}},{"$f":"AND(#REF!,\"AOWos1Ogiks=\")","v":{"$error":"#REF!"}},{"$f":"AND(#REF!,\"AOWos1Ogikw=\")","v":{"$error":"#REF!"}},{"$f":"AND(#REF!,\"AOWos1Ogik0=\")","v":{"$error":"#REF!"}},{"$f":"AND(#REF!,\"AOWos1Ogik4=\")","v":{"$error":"#REF!"}},{"$f":"AND(#REF!,\"AOWos1Ogik8=\")","v":{"$error":"#REF!"}},{"$f":"AND(#REF!,\"AOWos1OgilA=\")","v":{"$error":"#REF!"}},{"$f":"AND(#REF!,\"AOWos1OgilE=\")","v":{"$error":"#REF!"}},{"$f":"AND(#REF!,\"AOWos1OgilI=\")","v":{"$error":"#REF!"}},{"$f":"AND(#REF!,\"AOWos1OgilM=\")","v":{"$error":"#REF!"}},{"$f":"AND(#REF!,\"AOWos1OgilQ=\")","v":{"$error":"#REF!"}},{"$f":"AND(#REF!,\"AOWos1OgilU=\")","v":{"$error":"#REF!"}},{"$f":"AND(#REF!,\"AOWos1OgilY=\")","v":{"$error":"#REF!"}},{"$f":"AND(#REF!,\"AOWos1Ogilc=\")","v":{"$error":"#REF!"}},{"$f":"AND(#REF!,\"AOWos1Ogilg=\")","v":{"$error":"#REF!"}},{"$f":"AND(#REF!,\"AOWos1Ogilk=\")","v":{"$error":"#REF!"}},{"$f":"AND(#REF!,\"AOWos1Ogilo=\")","v":{"$error":"#REF!"}},{"$f":"AND(#REF!,\"AOWos1Ogils=\")","v":{"$error":"#REF!"}},{"$f":"AND(#REF!,\"AOWos1Ogilw=\")","v":{"$error":"#REF!"}},{"$f":"AND(#REF!,\"AOWos1Ogil0=\")","v":{"$error":"#REF!"}},{"$f":"AND(#REF!,\"AOWos1Ogil4=\")","v":{"$error":"#REF!"}},{"$f":"AND(#REF!,\"AOWos1Ogil8=\")","v":{"$error":"#REF!"}},{"$f":"AND(#REF!,\"AOWos1OgimA=\")","v":{"$error":"#REF!"}},{"$f":"AND(#REF!,\"AOWos1OgimE=\")","v":{"$error":"#REF!"}},{"$f":"AND(#REF!,\"AOWos1OgimI=\")","v":{"$error":"#REF!"}},{"$f":"AND(#REF!,\"AOWos1OgimM=\")","v":{"$error":"#REF!"}},{"$f":"AND(#REF!,\"AOWos1OgimQ=\")","v":{"$error":"#REF!"}},{"$f":"AND(#REF!,\"AOWos1OgimU=\")","v":{"$error":"#REF!"}},{"$f":"AND(#REF!,\"AOWos1OgimY=\")","v":{"$error":"#REF!"}},{"$f":"AND(#REF!,\"AOWos1Ogimc=\")","v":{"$error":"#REF!"}},{"$f":"AND(#REF!,\"AOWos1Ogimg=\")","v":{"$error":"#REF!"}},{"$f":"AND(#REF!,\"AOWos1Ogimk=\")","v":{"$error":"#REF!"}},{"$f":"AND(#REF!,\"AOWos1Ogimo=\")","v":{"$error":"#REF!"}},{"$f":"AND(#REF!,\"AOWos1Ogims=\")","v":{"$error":"#REF!"}},{"$f":"AND(#REF!,\"AOWos1Ogimw=\")","v":{"$error":"#REF!"}},{"$f":"AND(#REF!,\"AOWos1Ogim0=\")","v":{"$error":"#REF!"}},{"$f":"AND(#REF!,\"AOWos1Ogim4=\")","v":{"$error":"#REF!"}},{"$f":"AND(#REF!,\"AOWos1Ogim8=\")","v":{"$error":"#REF!"}},{"$f":"AND(#REF!,\"AOWos1OginA=\")","v":{"$error":"#REF!"}},{"$f":"AND(#REF!,\"AOWos1OginE=\")","v":{"$error":"#REF!"}},{"$f":"AND(#REF!,\"AOWos1OginI=\")","v":{"$error":"#REF!"}},{"$f":"AND(#REF!,\"AOWos1OginM=\")","v":{"$error":"#REF!"}},{"$f":"AND(#REF!,\"AOWos1OginQ=\")","v":{"$error":"#REF!"}},{"$f":"AND(#REF!,\"AOWos1OginU=\")","v":{"$error":"#REF!"}},{"$f":"AND(#REF!,\"AOWos1OginY=\")","v":{"$error":"#REF!"}},{"$f":"AND(#REF!,\"AOWos1Oginc=\")","v":{"$error":"#REF!"}},{"$f":"AND(#REF!,\"AOWos1Oging=\")","v":{"$error":"#REF!"}},{"$f":"AND(#REF!,\"AOWos1Ogink=\")","v":{"$error":"#REF!"}},{"$f":"AND(#REF!,\"AOWos1Ogino=\")","v":{"$error":"#REF!"}},{"$f":"AND(#REF!,\"AOWos1Ogins=\")","v":{"$error":"#REF!"}},{"$f":"AND(#REF!,\"AOWos1Oginw=\")","v":{"$error":"#REF!"}},{"$f":"AND(#REF!,\"AOWos1Ogin0=\")","v":{"$error":"#REF!"}},{"$f":"AND(#REF!,\"AOWos1Ogin4=\")","v":{"$error":"#REF!"}},{"$f":"AND(#REF!,\"AOWos1Ogin8=\")","v":{"$error":"#REF!"}},{"$f":"AND(#REF!,\"AOWos1OgioA=\")","v":{"$error":"#REF!"}},{"$f":"AND(#REF!,\"AOWos1OgioE=\")","v":{"$error":"#REF!"}},{"$f":"AND(#REF!,\"AOWos1OgioI=\")","v":{"$error":"#REF!"}},{"$f":"AND(#REF!,\"AOWos1OgioM=\")","v":{"$error":"#REF!"}},{"$f":"AND(#REF!,\"AOWos1OgioQ=\")","v":{"$error":"#REF!"}},{"$f":"AND(#REF!,\"AOWos1OgioU=\")","v":{"$error":"#REF!"}},{"$f":"AND(#REF!,\"AOWos1OgioY=\")","v":{"$error":"#REF!"}},{"$f":"AND(#REF!,\"AOWos1Ogioc=\")","v":{"$error":"#REF!"}},{"$f":"AND(#REF!,\"AOWos1Ogiog=\")","v":{"$error":"#REF!"}},{"$f":"AND(#REF!,\"AOWos1Ogiok=\")","v":{"$error":"#REF!"}},{"$f":"AND(#REF!,\"AOWos1Ogioo=\")","v":{"$error":"#REF!"}},{"$f":"AND(#REF!,\"AOWos1Ogios=\")","v":{"$error":"#REF!"}},{"$f":"AND(#REF!,\"AOWos1Ogiow=\")","v":{"$error":"#REF!"}},{"$f":"AND(#REF!,\"AOWos1Ogio0=\")","v":{"$error":"#REF!"}},{"$f":"AND(#REF!,\"AOWos1Ogio4=\")","v":{"$error":"#REF!"}},{"$f":"AND(#REF!,\"AOWos1Ogio8=\")","v":{"$error":"#REF!"}},{"$f":"AND(#REF!,\"AOWos1OgipA=\")","v":{"$error":"#REF!"}},{"$f":"AND(#REF!,\"AOWos1OgipE=\")","v":{"$error":"#REF!"}},{"$f":"AND(#REF!,\"AOWos1OgipI=\")","v":{"$error":"#REF!"}},{"$f":"AND(#REF!,\"AOWos1OgipM=\")","v":{"$error":"#REF!"}},{"$f":"AND(#REF!,\"AOWos1OgipQ=\")","v":{"$error":"#REF!"}},{"$f":"AND(#REF!,\"AOWos1OgipU=\")","v":{"$error":"#REF!"}},{"$f":"AND(#REF!,\"AOWos1OgipY=\")","v":{"$error":"#REF!"}},{"$f":"AND(#REF!,\"AOWos1Ogipc=\")","v":{"$error":"#REF!"}},{"$f":"AND(#REF!,\"AOWos1Ogipg=\")","v":{"$error":"#REF!"}},{"$f":"AND(#REF!,\"AOWos1Ogipk=\")","v":{"$error":"#REF!"}},{"$f":"AND(#REF!,\"AOWos1Ogipo=\")","v":{"$error":"#REF!"}},{"$f":"AND(#REF!,\"AOWos1Ogips=\")","v":{"$error":"#REF!"}},{"$f":"AND(#REF!,\"AOWos1Ogipw=\")","v":{"$error":"#REF!"}},{"$f":"AND(#REF!,\"AOWos1Ogip0=\")","v":{"$error":"#REF!"}},{"$f":"AND(#REF!,\"AOWos1Ogip4=\")","v":{"$error":"#REF!"}},{"$f":"AND(#REF!,\"AOWos1Ogip8=\")","v":{"$error":"#REF!"}},{"$f":"IF(#REF!,\"AOWos1OgiqA=\",0)","v":{"$error":"#REF!"}},{"$f":"AND(#REF!,\"AOWos1OgiqE=\")","v":{"$error":"#REF!"}},{"$f":"AND(#REF!,\"AOWos1OgiqI=\")","v":{"$error":"#REF!"}},{"$f":"AND(#REF!,\"AOWos1OgiqM=\")","v":{"$error":"#REF!"}},{"$f":"AND(#REF!,\"AOWos1OgiqQ=\")","v":{"$error":"#REF!"}},{"$f":"AND(#REF!,\"AOWos1OgiqU=\")","v":{"$error":"#REF!"}},{"$f":"AND(#REF!,\"AOWos1OgiqY=\")","v":{"$error":"#REF!"}},{"$f":"AND(#REF!,\"AOWos1Ogiqc=\")","v":{"$error":"#REF!"}},{"$f":"AND(#REF!,\"AOWos1Ogiqg=\")","v":{"$error":"#REF!"}},{"$f":"AND(#REF!,\"AOWos1Ogiqk=\")","v":{"$error":"#REF!"}},{"$f":"AND(#REF!,\"AOWos1Ogiqo=\")","v":{"$error":"#REF!"}},{"$f":"AND(#REF!,\"AOWos1Ogiqs=\")","v":{"$error":"#REF!"}},{"$f":"AND(#REF!,\"AOWos1Ogiqw=\")","v":{"$error":"#REF!"}},{"$f":"AND(#REF!,\"AOWos1Ogiq0=\")","v":{"$error":"#REF!"}},{"$f":"AND(#REF!,\"AOWos1Ogiq4=\")","v":{"$error":"#REF!"}},{"$f":"AND(#REF!,\"AOWos1Ogiq8=\")","v":{"$error":"#REF!"}},{"$f":"AND(#REF!,\"AOWos1OgirA=\")","v":{"$error":"#REF!"}},{"$f":"AND(#REF!,\"AOWos1OgirE=\")","v":{"$error":"#REF!"}},{"$f":"AND(#REF!,\"AOWos1OgirI=\")","v":{"$error":"#REF!"}},{"$f":"AND(#REF!,\"AOWos1OgirM=\")","v":{"$error":"#REF!"}},{"$f":"AND(#REF!,\"AOWos1OgirQ=\")","v":{"$error":"#REF!"}},{"$f":"AND(#REF!,\"AOWos1OgirU=\")","v":{"$error":"#REF!"}},{"$f":"AND(#REF!,\"AOWos1OgirY=\")","v":{"$error":"#REF!"}},{"$f":"AND(#REF!,\"AOWos1Ogirc=\")","v":{"$error":"#REF!"}},{"$f":"AND(#REF!,\"AOWos1Ogirg=\")","v":{"$error":"#REF!"}},{"$f":"AND(#REF!,\"AOWos1Ogirk=\")","v":{"$error":"#REF!"}},{"$f":"AND(#REF!,\"AOWos1Ogiro=\")","v":{"$error":"#REF!"}},{"$f":"AND(#REF!,\"AOWos1Ogirs=\")","v":{"$error":"#REF!"}},{"$f":"AND(#REF!,\"AOWos1Ogirw=\")","v":{"$error":"#REF!"}},{"$f":"AND(#REF!,\"AOWos1Ogir0=\")","v":{"$error":"#REF!"}},{"$f":"AND(#REF!,\"AOWos1Ogir4=\")","v":{"$error":"#REF!"}},{"$f":"AND(#REF!,\"AOWos1Ogir8=\")","v":{"$error":"#REF!"}},{"$f":"AND(#REF!,\"AOWos1OgisA=\")","v":{"$error":"#REF!"}},{"$f":"AND(#REF!,\"AOWos1OgisE=\")","v":{"$error":"#REF!"}},{"$f":"AND(#REF!,\"AOWos1OgisI=\")","v":{"$error":"#REF!"}},{"$f":"AND(#REF!,\"AOWos1OgisM=\")","v":{"$error":"#REF!"}},{"$f":"AND(#REF!,\"AOWos1OgisQ=\")","v":{"$error":"#REF!"}},{"$f":"AND(#REF!,\"AOWos1OgisU=\")","v":{"$error":"#REF!"}},{"$f":"AND(#REF!,\"AOWos1OgisY=\")","v":{"$error":"#REF!"}},{"$f":"AND(#REF!,\"AOWos1Ogisc=\")","v":{"$error":"#REF!"}},{"$f":"AND(#REF!,\"AOWos1Ogisg=\")","v":{"$error":"#REF!"}},{"$f":"AND(#REF!,\"AOWos1Ogisk=\")","v":{"$error":"#REF!"}},{"$f":"AND(#REF!,\"AOWos1Ogiso=\")","v":{"$error":"#REF!"}},{"$f":"AND(#REF!,\"AOWos1Ogiss=\")","v":{"$error":"#REF!"}},{"$f":"AND(#REF!,\"AOWos1Ogisw=\")","v":{"$error":"#REF!"}},{"$f":"AND(#REF!,\"AOWos1Ogis0=\")","v":{"$error":"#REF!"}},{"$f":"AND(#REF!,\"AOWos1Ogis4=\")","v":{"$error":"#REF!"}},{"$f":"AND(#REF!,\"AOWos1Ogis8=\")","v":{"$error":"#REF!"}},{"$f":"AND(#REF!,\"AOWos1OgitA=\")","v":{"$error":"#REF!"}},{"$f":"AND(#REF!,\"AOWos1OgitE=\")","v":{"$error":"#REF!"}},{"$f":"AND(#REF!,\"AOWos1OgitI=\")","v":{"$error":"#REF!"}},{"$f":"AND(#REF!,\"AOWos1OgitM=\")","v":{"$error":"#REF!"}},{"$f":"AND(#REF!,\"AOWos1OgitQ=\")","v":{"$error":"#REF!"}},{"$f":"AND(#REF!,\"AOWos1OgitU=\")","v":{"$error":"#REF!"}},{"$f":"AND(#REF!,\"AOWos1OgitY=\")","v":{"$error":"#REF!"}},{"$f":"AND(#REF!,\"AOWos1Ogitc=\")","v":{"$error":"#REF!"}},{"$f":"AND(#REF!,\"AOWos1Ogitg=\")","v":{"$error":"#REF!"}},{"$f":"AND(#REF!,\"AOWos1Ogitk=\")","v":{"$error":"#REF!"}},{"$f":"AND(#REF!,\"AOWos1Ogito=\")","v":{"$error":"#REF!"}},{"$f":"AND(#REF!,\"AOWos1Ogits=\")","v":{"$error":"#REF!"}},{"$f":"AND(#REF!,\"AOWos1Ogitw=\")","v":{"$error":"#REF!"}},{"$f":"AND(#REF!,\"AOWos1Ogit0=\")","v":{"$error":"#REF!"}},{"$f":"AND(#REF!,\"AOWos1Ogit4=\")","v":{"$error":"#REF!"}},{"$f":"AND(#REF!,\"AOWos1Ogit8=\")","v":{"$error":"#REF!"}},{"$f":"AND(#REF!,\"AOWos1OgiuA=\")","v":{"$error":"#REF!"}},{"$f":"AND(#REF!,\"AOWos1OgiuE=\")","v":{"$error":"#REF!"}},{"$f":"AND(#REF!,\"AOWos1OgiuI=\")","v":{"$error":"#REF!"}},{"$f":"AND(#REF!,\"AOWos1OgiuM=\")","v":{"$error":"#REF!"}},{"$f":"AND(#REF!,\"AOWos1OgiuQ=\")","v":{"$error":"#REF!"}},{"$f":"AND(#REF!,\"AOWos1OgiuU=\")","v":{"$error":"#REF!"}},{"$f":"AND(#REF!,\"AOWos1OgiuY=\")","v":{"$error":"#REF!"}},{"$f":"AND(#REF!,\"AOWos1Ogiuc=\")","v":{"$error":"#REF!"}},{"$f":"AND(#REF!,\"AOWos1Ogiug=\")","v":{"$error":"#REF!"}},{"$f":"AND(#REF!,\"AOWos1Ogiuk=\")","v":{"$error":"#REF!"}},{"$f":"AND(#REF!,\"AOWos1Ogiuo=\")","v":{"$error":"#REF!"}},{"$f":"AND(#REF!,\"AOWos1Ogius=\")","v":{"$error":"#REF!"}},{"$f":"AND(#REF!,\"AOWos1Ogiuw=\")","v":{"$error":"#REF!"}},{"$f":"AND(#REF!,\"AOWos1Ogiu0=\")","v":{"$error":"#REF!"}},{"$f":"AND(#REF!,\"AOWos1Ogiu4=\")","v":{"$error":"#REF!"}},{"$f":"AND(#REF!,\"AOWos1Ogiu8=\")","v":{"$error":"#REF!"}},{"$f":"AND(#REF!,\"AOWos1OgivA=\")","v":{"$error":"#REF!"}},{"$f":"AND(#REF!,\"AOWos1OgivE=\")","v":{"$error":"#REF!"}},{"$f":"AND(#REF!,\"AOWos1OgivI=\")","v":{"$error":"#REF!"}},{"$f":"AND(#REF!,\"AOWos1OgivM=\")","v":{"$error":"#REF!"}},{"$f":"AND(#REF!,\"AOWos1OgivQ=\")","v":{"$error":"#REF!"}},{"$f":"AND(#REF!,\"AOWos1OgivU=\")","v":{"$error":"#REF!"}},{"$f":"AND(#REF!,\"AOWos1OgivY=\")","v":{"$error":"#REF!"}},{"$f":"AND(#REF!,\"AOWos1Ogivc=\")","v":{"$error":"#REF!"}},{"$f":"AND(#REF!,\"AOWos1Ogivg=\")","v":{"$error":"#REF!"}},{"$f":"AND(#REF!,\"AOWos1Ogivk=\")","v":{"$error":"#REF!"}},{"$f":"AND(#REF!,\"AOWos1Ogivo=\")","v":{"$error":"#REF!"}},{"$f":"AND(#REF!,\"AOWos1Ogivs=\")","v":{"$error":"#REF!"}},{"$f":"AND(#REF!,\"AOWos1Ogivw=\")","v":{"$error":"#REF!"}},{"$f":"AND(#REF!,\"AOWos1Ogiv0=\")","v":{"$error":"#REF!"}},{"$f":"AND(#REF!,\"AOWos1Ogiv4=\")","v":{"$error":"#REF!"}},{"$f":"AND(#REF!,\"AOWos1Ogiv8=\")","v":{"$error":"#REF!"}}]
[{"$f":"AND(#REF!,\"NxvzllOYvAA=\")","v":{"$error":"#REF!"}},{"$f":"AND(#REF!,\"NxvzllOYvAE=\")","v":{"$error":"#REF!"}},{"$f":"AND(#REF!,\"NxvzllOYvAI=\")","v":{"$error":"#REF!"}},{"$f":"AND(#REF!,\"NxvzllOYvAM=\")","v":{"$error":"#REF!"}},{"$f":"AND(#REF!,\"NxvzllOYvAQ=\")","v":{"$error":"#REF!"}},{"$f":"AND(#REF!,\"NxvzllOYvAU=\")","v":{"$error":"#REF!"}},{"$f":"AND(#REF!,\"NxvzllOYvAY=\")","v":{"$error":"#REF!"}},{"$f":"AND(#REF!,\"NxvzllOYvAc=\")","v":{"$error":"#REF!"}},{"$f":"AND(#REF!,\"NxvzllOYvAg=\")","v":{"$error":"#REF!"}},{"$f":"AND(#REF!,\"NxvzllOYvAk=\")","v":{"$error":"#REF!"}},{"$f":"AND(#REF!,\"NxvzllOYvAo=\")","v":{"$error":"#REF!"}},{"$f":"AND(#REF!,\"NxvzllOYvAs=\")","v":{"$error":"#REF!"}},{"$f":"AND(#REF!,\"NxvzllOYvAw=\")","v":{"$error":"#REF!"}},{"$f":"AND(#REF!,\"NxvzllOYvA0=\")","v":{"$error":"#REF!"}},{"$f":"AND(#REF!,\"NxvzllOYvA4=\")","v":{"$error":"#REF!"}},{"$f":"AND(#REF!,\"NxvzllOYvA8=\")","v":{"$error":"#REF!"}},{"$f":"AND(#REF!,\"NxvzllOYvBA=\")","v":{"$error":"#REF!"}},{"$f":"AND(#REF!,\"NxvzllOYvBE=\")","v":{"$error":"#REF!"}},{"$f":"AND(#REF!,\"NxvzllOYvBI=\")","v":{"$error":"#REF!"}},{"$f":"AND(#REF!,\"NxvzllOYvBM=\")","v":{"$error":"#REF!"}},{"$f":"AND(#REF!,\"NxvzllOYvBQ=\")","v":{"$error":"#REF!"}},{"$f":"AND(#REF!,\"NxvzllOYvBU=\")","v":{"$error":"#REF!"}},{"$f":"AND(#REF!,\"NxvzllOYvBY=\")","v":{"$error":"#REF!"}},{"$f":"AND(#REF!,\"NxvzllOYvBc=\")","v":{"$error":"#REF!"}},{"$f":"AND(#REF!,\"NxvzllOYvBg=\")","v":{"$error":"#REF!"}},{"$f":"AND(#REF!,\"NxvzllOYvBk=\")","v":{"$error":"#REF!"}},{"$f":"AND(#REF!,\"NxvzllOYvBo=\")","v":{"$error":"#REF!"}},{"$f":"AND(#REF!,\"NxvzllOYvBs=\")","v":{"$error":"#REF!"}},{"$f":"AND(#REF!,\"NxvzllOYvBw=\")","v":{"$error":"#REF!"}},{"$f":"AND(#REF!,\"NxvzllOYvB0=\")","v":{"$error":"#REF!"}},{"$f":"AND(#REF!,\"NxvzllOYvB4=\")","v":{"$error":"#REF!"}},{"$f":"AND(#REF!,\"NxvzllOYvB8=\")","v":{"$error":"#REF!"}},{"$f":"AND(#REF!,\"NxvzllOYvCA=\")","v":{"$error":"#REF!"}},{"$f":"AND(#REF!,\"NxvzllOYvCE=\")","v":{"$error":"#REF!"}},{"$f":"AND(#REF!,\"NxvzllOYvCI=\")","v":{"$error":"#REF!"}},{"$f":"AND(#REF!,\"NxvzllOYvCM=\")","v":{"$error":"#REF!"}},{"$f":"AND(#REF!,\"NxvzllOYvCQ=\")","v":{"$error":"#REF!"}},{"$f":"AND(#REF!,\"NxvzllOYvCU=\")","v":{"$error":"#REF!"}},{"$f":"AND(#REF!,\"NxvzllOYvCY=\")","v":{"$error":"#REF!"}},{"$f":"AND(#REF!,\"NxvzllOYvCc=\")","v":{"$error":"#REF!"}},{"$f":"AND(#REF!,\"NxvzllOYvCg=\")","v":{"$error":"#REF!"}},{"$f":"AND(#REF!,\"NxvzllOYvCk=\")","v":{"$error":"#REF!"}},{"$f":"AND(#REF!,\"NxvzllOYvCo=\")","v":{"$error":"#REF!"}},{"$f":"AND(#REF!,\"NxvzllOYvCs=\")","v":{"$error":"#REF!"}},{"$f":"AND(#REF!,\"NxvzllOYvCw=\")","v":{"$error":"#REF!"}},{"$f":"AND(#REF!,\"NxvzllOYvC0=\")","v":{"$error":"#REF!"}},{"$f":"AND(#REF!,\"NxvzllOYvC4=\")","v":{"$error":"#REF!"}},{"$f":"AND(#REF!,\"NxvzllOYvC8=\")","v":{"$error":"#REF!"}},{"$f":"AND(#REF!,\"NxvzllOYvDA=\")","v":{"$error":"#REF!"}},{"$f":"AND(#REF!,\"NxvzllOYvDE=\")","v":{"$error":"#REF!"}},{"$f":"AND(#REF!,\"NxvzllOYvDI=\")","v":{"$error":"#REF!"}},{"$f":"AND(#REF!,\"NxvzllOYvDM=\")","v":{"$error":"#REF!"}},{"$f":"AND(#REF!,\"NxvzllOYvDQ=\")","v":{"$error":"#REF!"}},{"$f":"AND(#REF!,\"NxvzllOYvDU=\")","v":{"$error":"#REF!"}},{"$f":"AND(#REF!,\"NxvzllOYvDY=\")","v":{"$error":"#REF!"}},{"$f":"AND(#REF!,\"NxvzllOYvDc=\")","v":{"$error":"#REF!"}},{"$f":"AND(#REF!,\"NxvzllOYvDg=\")","v":{"$error":"#REF!"}},{"$f":"AND(#REF!,\"NxvzllOYvDk=\")","v":{"$error":"#REF!"}},{"$f":"AND(#REF!,\"NxvzllOYvDo=\")","v":{"$error":"#REF!"}},{"$f":"AND(#REF!,\"NxvzllOYvDs=\")","v":{"$error":"#REF!"}},{"$f":"AND(#REF!,\"NxvzllOYvDw=\")","v":{"$error":"#REF!"}},{"$f":"AND(#REF!,\"NxvzllOYvD0=\")","v":{"$error":"#REF!"}},{"$f":"AND(#REF!,\"NxvzllOYvD4=\")","v":{"$error":"#REF!"}},{"$f":"AND(#REF!,\"NxvzllOYvD8=\")","v":{"$error":"#REF!"}},{"$f":"AND(#REF!,\"NxvzllOYvEA=\")","v":{"$error":"#REF!"}},{"$f":"AND(#REF!,\"NxvzllOYvEE=\")","v":{"$error":"#REF!"}},{"$f":"AND(#REF!,\"NxvzllOYvEI=\")","v":{"$error":"#REF!"}},{"$f":"AND(#REF!,\"NxvzllOYvEM=\")","v":{"$error":"#REF!"}},{"$f":"AND(#REF!,\"NxvzllOYvEQ=\")","v":{"$error":"#REF!"}},{"$f":"AND(#REF!,\"NxvzllOYvEU=\")","v":{"$error":"#REF!"}},{"$f":"AND(#REF!,\"NxvzllOYvEY=\")","v":{"$error":"#REF!"}},{"$f":"AND(#REF!,\"NxvzllOYvEc=\")","v":{"$error":"#REF!"}},{"$f":"AND(#REF!,\"NxvzllOYvEg=\")","v":{"$error":"#REF!"}},{"$f":"AND(#REF!,\"NxvzllOYvEk=\")","v":{"$error":"#REF!"}},{"$f":"AND(#REF!,\"NxvzllOYvEo=\")","v":{"$error":"#REF!"}},{"$f":"AND(#REF!,\"NxvzllOYvEs=\")","v":{"$error":"#REF!"}},{"$f":"AND(#REF!,\"NxvzllOYvEw=\")","v":{"$error":"#REF!"}},{"$f":"AND(#REF!,\"NxvzllOYvE0=\")","v":{"$error":"#REF!"}},{"$f":"AND(#REF!,\"NxvzllOYvE4=\")","v":{"$error":"#REF!"}},{"$f":"AND(#REF!,\"NxvzllOYvE8=\")","v":{"$error":"#REF!"}},{"$f":"AND(#REF!,\"NxvzllOYvFA=\")","v":{"$error":"#REF!"}},{"$f":"AND(#REF!,\"NxvzllOYvFE=\")","v":{"$error":"#REF!"}},{"$f":"AND(#REF!,\"NxvzllOYvFI=\")","v":{"$error":"#REF!"}},{"$f":"AND(#REF!,\"NxvzllOYvFM=\")","v":{"$error":"#REF!"}},{"$f":"AND(#REF!,\"NxvzllOYvFQ=\")","v":{"$error":"#REF!"}},{"$f":"AND(#REF!,\"NxvzllOYvFU=\")","v":{"$error":"#REF!"}},{"$f":"AND(#REF!,\"NxvzllOYvFY=\")","v":{"$error":"#REF!"}},{"$f":"AND(#REF!,\"NxvzllOYvFc=\")","v":{"$error":"#REF!"}},{"$f":"AND(#REF!,\"NxvzllOYvFg=\")","v":{"$error":"#REF!"}},{"$f":"AND(#REF!,\"NxvzllOYvFk=\")","v":{"$error":"#REF!"}},{"$f":"AND(#REF!,\"NxvzllOYvFo=\")","v":{"$error":"#REF!"}},{"$f":"AND(#REF!,\"NxvzllOYvFs=\")","v":{"$error":"#REF!"}},{"$f":"AND(#REF!,\"NxvzllOYvFw=\")","v":{"$error":"#REF!"}},{"$f":"AND(#REF!,\"NxvzllOYvF0=\")","v":{"$error":"#REF!"}},{"$f":"AND(#REF!,\"NxvzllOYvF4=\")","v":{"$error":"#REF!"}},{"$f":"AND(#REF!,\"NxvzllOYvF8=\")","v":{"$error":"#REF!"}},{"$f":"AND(#REF!,\"NxvzllOYvGA=\")","v":{"$error":"#REF!"}},{"$f":"AND(#REF!,\"NxvzllOYvGE=\")","v":{"$error":"#REF!"}},{"$f":"AND(#REF!,\"NxvzllOYvGI=\")","v":{"$error":"#REF!"}},{"$f":"AND(#REF!,\"NxvzllOYvGM=\")","v":{"$error":"#REF!"}},{"$f":"AND(#REF!,\"NxvzllOYvGQ=\")","v":{"$error":"#REF!"}},{"$f":"AND(#REF!,\"NxvzllOYvGU=\")","v":{"$error":"#REF!"}},{"$f":"AND(#REF!,\"NxvzllOYvGY=\")","v":{"$error":"#REF!"}},{"$f":"IF(#REF!,\"NxvzllOYvGc=\",0)","v":{"$error":"#REF!"}},{"$f":"AND(#REF!,\"NxvzllOYvGg=\")","v":{"$error":"#REF!"}},{"$f":"AND(#REF!,\"NxvzllOYvGk=\")","v":{"$error":"#REF!"}},{"$f":"AND(#REF!,\"NxvzllOYvGo=\")","v":{"$error":"#REF!"}},{"$f":"AND(#REF!,\"NxvzllOYvGs=\")","v":{"$error":"#REF!"}},{"$f":"AND(#REF!,\"NxvzllOYvGw=\")","v":{"$error":"#REF!"}},{"$f":"AND(#REF!,\"NxvzllOYvG0=\")","v":{"$error":"#REF!"}},{"$f":"AND(#REF!,\"NxvzllOYvG4=\")","v":{"$error":"#REF!"}},{"$f":"AND(#REF!,\"NxvzllOYvG8=\")","v":{"$error":"#REF!"}},{"$f":"AND(#REF!,\"NxvzllOYvHA=\")","v":{"$error":"#REF!"}},{"$f":"AND(#REF!,\"NxvzllOYvHE=\")","v":{"$error":"#REF!"}},{"$f":"AND(#REF!,\"NxvzllOYvHI=\")","v":{"$error":"#REF!"}},{"$f":"AND(#REF!,\"NxvzllOYvHM=\")","v":{"$error":"#REF!"}},{"$f":"AND(#REF!,\"NxvzllOYvHQ=\")","v":{"$error":"#REF!"}},{"$f":"AND(#REF!,\"NxvzllOYvHU=\")","v":{"$error":"#REF!"}},{"$f":"AND(#REF!,\"NxvzllOYvHY=\")","v":{"$error":"#REF!"}},{"$f":"AND(#REF!,\"NxvzllOYvHc=\")","v":{"$error":"#REF!"}},{"$f":"AND(#REF!,\"NxvzllOYvHg=\")","v":{"$error":"#REF!"}},{"$f":"AND(#REF!,\"NxvzllOYvHk=\")","v":{"$error":"#REF!"}},{"$f":"AND(#REF!,\"NxvzllOYvHo=\")","v":{"$error":"#REF!"}},{"$f":"AND(#REF!,\"NxvzllOYvHs=\")","v":{"$error":"#REF!"}},{"$f":"AND(#REF!,\"NxvzllOYvHw=\")","v":{"$error":"#REF!"}},{"$f":"AND(#REF!,\"NxvzllOYvH0=\")","v":{"$error":"#REF!"}},{"$f":"AND(#REF!,\"NxvzllOYvH4=\")","v":{"$error":"#REF!"}},{"$f":"AND(#REF!,\"NxvzllOYvH8=\")","v":{"$error":"#REF!"}},{"$f":"AND(#REF!,\"NxvzllOYvIA=\")","v":{"$error":"#REF!"}},{"$f":"AND(#REF!,\"NxvzllOYvIE=\")","v":{"$error":"#REF!"}},{"$f":"AND(#REF!,\"NxvzllOYvII=\")","v":{"$error":"#REF!"}},{"$f":"AND(#REF!,\"NxvzllOYvIM=\")","v":{"$error":"#REF!"}},{"$f":"AND(#REF!,\"NxvzllOYvIQ=\")","v":{"$error":"#REF!"}},{"$f":"AND(#REF!,\"NxvzllOYvIU=\")","v":{"$error":"#REF!"}},{"$f":"AND(#REF!,\"NxvzllOYvIY=\")","v":{"$error":"#REF!"}},{"$f":"AND(#REF!,\"NxvzllOYvIc=\")","v":{"$error":"#REF!"}},{"$f":"AND(#REF!,\"NxvzllOYvIg=\")","v":{"$error":"#REF!"}},{"$f":"AND(#REF!,\"NxvzllOYvIk=\")","v":{"$error":"#REF!"}},{"$f":"AND(#REF!,\"NxvzllOYvIo=\")","v":{"$error":"#REF!"}},{"$f":"AND(#REF!,\"NxvzllOYvIs=\")","v":{"$error":"#REF!"}},{"$f":"AND(#REF!,\"NxvzllOYvIw=\")","v":{"$error":"#REF!"}},{"$f":"AND(#REF!,\"NxvzllOYvI0=\")","v":{"$error":"#REF!"}},{"$f":"AND(#REF!,\"NxvzllOYvI4=\")","v":{"$error":"#REF!"}},{"$f":"AND(#REF!,\"NxvzllOYvI8=\")","v":{"$error":"#REF!"}},{"$f":"AND(#REF!,\"NxvzllOYvJA=\")","v":{"$error":"#REF!"}},{"$f":"AND(#REF!,\"NxvzllOYvJE=\")","v":{"$error":"#REF!"}},{"$f":"AND(#REF!,\"NxvzllOYvJI=\")","v":{"$error":"#REF!"}},{"$f":"AND(#REF!,\"NxvzllOYvJM=\")","v":{"$error":"#REF!"}},{"$f":"AND(#REF!,\"NxvzllOYvJQ=\")","v":{"$error":"#REF!"}},{"$f":"AND(#REF!,\"NxvzllOYvJU=\")","v":{"$error":"#REF!"}},{"$f":"AND(#REF!,\"NxvzllOYvJY=\")","v":{"$error":"#REF!"}},{"$f":"AND(#REF!,\"NxvzllOYvJc=\")","v":{"$error":"#REF!"}},{"$f":"AND(#REF!,\"NxvzllOYvJg=\")","v":{"$error":"#REF!"}},{"$f":"AND(#REF!,\"NxvzllOYvJk=\")","v":{"$error":"#REF!"}},{"$f":"AND(#REF!,\"NxvzllOYvJo=\")","v":{"$error":"#REF!"}},{"$f":"AND(#REF!,\"NxvzllOYvJs=\")","v":{"$error":"#REF!"}},{"$f":"AND(#REF!,\"NxvzllOYvJw=\")","v":{"$error":"#REF!"}},{"$f":"AND(#REF!,\"NxvzllOYvJ0=\")","v":{"$error":"#REF!"}},{"$f":"AND(#REF!,\"NxvzllOYvJ4=\")","v":{"$error":"#REF!"}},{"$f":"AND(#REF!,\"NxvzllOYvJ8=\")","v":{"$error":"#REF!"}},{"$f":"AND(#REF!,\"NxvzllOYvKA=\")","v":{"$error":"#REF!"}},{"$f":"AND(#REF!,\"NxvzllOYvKE=\")","v":{"$error":"#REF!"}},{"$f":"AND(#REF!,\"NxvzllOYvKI=\")","v":{"$error":"#REF!"}},{"$f":"AND(#REF!,\"NxvzllOYvKM=\")","v":{"$error":"#REF!"}},{"$f":"AND(#REF!,\"NxvzllOYvKQ=\")","v":{"$error":"#REF!"}},{"$f":"AND(#REF!,\"NxvzllOYvKU=\")","v":{"$error":"#REF!"}},{"$f":"AND(#REF!,\"NxvzllOYvKY=\")","v":{"$error":"#REF!"}},{"$f":"AND(#REF!,\"NxvzllOYvKc=\")","v":{"$error":"#REF!"}},{"$f":"AND(#REF!,\"NxvzllOYvKg=\")","v":{"$error":"#REF!"}},{"$f":"AND(#REF!,\"NxvzllOYvKk=\")","v":{"$error":"#REF!"}},{"$f":"AND(#REF!,\"NxvzllOYvKo=\")","v":{"$error":"#REF!"}},{"$f":"AND(#REF!,\"NxvzllOYvKs=\")","v":{"$error":"#REF!"}},{"$f":"AND(#REF!,\"NxvzllOYvKw=\")","v":{"$error":"#REF!"}},{"$f":"AND(#REF!,\"NxvzllOYvK0=\")","v":{"$error":"#REF!"}},{"$f":"AND(#REF!,\"NxvzllOYvK4=\")","v":{"$error":"#REF!"}},{"$f":"AND(#REF!,\"NxvzllOYvK8=\")","v":{"$error":"#REF!"}},{"$f":"AND(#REF!,\"NxvzllOYvLA=\")","v":{"$error":"#REF!"}},{"$f":"AND(#REF!,\"NxvzllOYvLE=\")","v":{"$error":"#REF!"}},{"$f":"AND(#REF!,\"NxvzllOYvLI=\")","v":{"$error":"#REF!"}},{"$f":"AND(#REF!,\"NxvzllOYvLM=\")","v":{"$error":"#REF!"}},{"$f":"AND(#REF!,\"NxvzllOYvLQ=\")","v":{"$error":"#REF!"}},{"$f":"AND(#REF!,\"NxvzllOYvLU=\")","v":{"$error":"#REF!"}},{"$f":"AND(#REF!,\"NxvzllOYvLY=\")","v":{"$error":"#REF!"}},{"$f":"AND(#REF!,\"NxvzllOYvLc=\")","v":{"$error":"#REF!"}},{"$f":"AND(#REF!,\"NxvzllOYvLg=\")","v":{"$error":"#REF!"}},{"$f":"AND(#REF!,\"NxvzllOYvLk=\")","v":{"$error":"#REF!"}},{"$f":"AND(#REF!,\"NxvzllOYvLo=\")","v":{"$error":"#REF!"}},{"$f":"AND(#REF!,\"NxvzllOYvLs=\")","v":{"$error":"#REF!"}},{"$f":"AND(#REF!,\"NxvzllOYvLw=\")","v":{"$error":"#REF!"}},{"$f":"AND(#REF!,\"NxvzllOYvL0=\")","v":{"$error":"#REF!"}},{"$f":"AND(#REF!,\"NxvzllOYvL4=\")","v":{"$error":"#REF!"}},{"$f":"AND(#REF!,\"NxvzllOYvL8=\")","v":{"$error":"#REF!"}},{"$f":"AND(#REF!,\"NxvzllOYvMA=\")","v":{"$error":"#REF!"}},{"$f":"AND(#REF!,\"NxvzllOYvME=\")","v":{"$error":"#REF!"}},{"$f":"AND(#REF!,\"NxvzllOYvMI=\")","v":{"$error":"#REF!"}},{"$f":"AND(#REF!,\"NxvzllOYvMM=\")","v":{"$error":"#REF!"}},{"$f":"AND(#REF!,\"NxvzllOYvMQ=\")","v":{"$error":"#REF!"}},{"$f":"AND(#REF!,\"NxvzllOYvMU=\")","v":{"$error":"#REF!"}},{"$f":"AND(#REF!,\"NxvzllOYvMY=\")","v":{"$error":"#REF!"}},{"$f":"AND(#REF!,\"NxvzllOYvMc=\")","v":{"$error":"#REF!"}},{"$f":"AND(#REF!,\"NxvzllOYvMg=\")","v":{"$error":"#REF!"}},{"$f":"AND(#REF!,\"NxvzllOYvMk=\")","v":{"$error":"#REF!"}},{"$f":"AND(#REF!,\"NxvzllOYvMo=\")","v":{"$error":"#REF!"}},{"$f":"AND(#REF!,\"NxvzllOYvMs=\")","v":{"$error":"#REF!"}},{"$f":"AND(#REF!,\"NxvzllOYvMw=\")","v":{"$error":"#REF!"}},{"$f":"AND(#REF!,\"NxvzllOYvM0=\")","v":{"$error":"#REF!"}},{"$f":"AND(#REF!,\"NxvzllOYvM4=\")","v":{"$error":"#REF!"}},{"$f":"AND(#REF!,\"NxvzllOYvM8=\")","v":{"$error":"#REF!"}},{"$f":"AND(#REF!,\"NxvzllOYvNA=\")","v":{"$error":"#REF!"}},{"$f":"AND(#REF!,\"NxvzllOYvNE=\")","v":{"$error":"#REF!"}},{"$f":"AND(#REF!,\"NxvzllOYvNI=\")","v":{"$error":"#REF!"}},{"$f":"AND(#REF!,\"NxvzllOYvNM=\")","v":{"$error":"#REF!"}},{"$f":"AND(#REF!,\"NxvzllOYvNQ=\")","v":{"$error":"#REF!"}},{"$f":"AND(#REF!,\"NxvzllOYvNU=\")","v":{"$error":"#REF!"}},{"$f":"AND(#REF!,\"NxvzllOYvNY=\")","v":{"$error":"#REF!"}},{"$f":"AND(#REF!,\"NxvzllOYvNc=\")","v":{"$error":"#REF!"}},{"$f":"AND(#REF!,\"NxvzllOYvNg=\")","v":{"$error":"#REF!"}},{"$f":"AND(#REF!,\"NxvzllOYvNk=\")","v":{"$error":"#REF!"}},{"$f":"AND(#REF!,\"NxvzllOYvNo=\")","v":{"$error":"#REF!"}},{"$f":"AND(#REF!,\"NxvzllOYvNs=\")","v":{"$error":"#REF!"}},{"$f":"AND(#REF!,\"NxvzllOYvNw=\")","v":{"$error":"#REF!"}},{"$f":"AND(#REF!,\"NxvzllOYvN0=\")","v":{"$error":"#REF!"}},{"$f":"AND(#REF!,\"NxvzllOYvN4=\")","v":{"$error":"#REF!"}},{"$f":"AND(#REF!,\"NxvzllOYvN8=\")","v":{"$error":"#REF!"}},{"$f":"AND(#REF!,\"NxvzllOYvOA=\")","v":{"$error":"#REF!"}},{"$f":"AND(#REF!,\"NxvzllOYvOE=\")","v":{"$error":"#REF!"}},{"$f":"AND(#REF!,\"NxvzllOYvOI=\")","v":{"$error":"#REF!"}},{"$f":"AND(#REF!,\"NxvzllOYvOM=\")","v":{"$error":"#REF!"}},{"$f":"AND(#REF!,\"NxvzllOYvOQ=\")","v":{"$error":"#REF!"}},{"$f":"AND(#REF!,\"NxvzllOYvOU=\")","v":{"$error":"#REF!"}},{"$f":"AND(#REF!,\"NxvzllOYvOY=\")","v":{"$error":"#REF!"}},{"$f":"AND(#REF!,\"NxvzllOYvOc=\")","v":{"$error":"#REF!"}},{"$f":"AND(#REF!,\"NxvzllOYvOg=\")","v":{"$error":"#REF!"}},{"$f":"AND(#REF!,\"NxvzllOYvOk=\")","v":{"$error":"#REF!"}},{"$f":"AND(#REF!,\"NxvzllOYvOo=\")","v":{"$error":"#REF!"}},{"$f":"AND(#REF!,\"NxvzllOYvOs=\")","v":{"$error":"#REF!"}},{"$f":"AND(#REF!,\"NxvzllOYvOw=\")","v":{"$error":"#REF!"}},{"$f":"AND(#REF!,\"NxvzllOYvO0=\")","v":{"$error":"#REF!"}},{"$f":"AND(#REF!,\"NxvzllOYvO4=\")","v":{"$error":"#REF!"}},{"$f":"AND(#REF!,\"NxvzllOYvO8=\")","v":{"$error":"#REF!"}},{"$f":"AND(#REF!,\"NxvzllOYvPA=\")","v":{"$error":"#REF!"}},{"$f":"AND(#REF!,\"NxvzllOYvPE=\")","v":{"$error":"#REF!"}},{"$f":"AND(#REF!,\"NxvzllOYvPI=\")","v":{"$error":"#REF!"}},{"$f":"AND(#REF!,\"NxvzllOYvPM=\")","v":{"$error":"#REF!"}},{"$f":"AND(#REF!,\"NxvzllOYvPQ=\")","v":{"$error":"#REF!"}},{"$f":"AND(#REF!,\"NxvzllOYvPU=\")","v":{"$error":"#REF!"}},{"$f":"AND(#REF!,\"NxvzllOYvPY=\")","v":{"$error":"#REF!"}},{"$f":"AND(#REF!,\"NxvzllOYvPc=\")","v":{"$error":"#REF!"}},{"$f":"AND(#REF!,\"NxvzllOYvPg=\")","v":{"$error":"#REF!"}},{"$f":"AND(#REF!,\"NxvzllOYvPk=\")","v":{"$error":"#REF!"}},{"$f":"AND(#REF!,\"NxvzllOYvPo=\")","v":{"$error":"#REF!"}},{"$f":"AND(#REF!,\"NxvzllOYvPs=\")","v":{"$error":"#REF!"}},{"$f":"AND(#REF!,\"NxvzllOYvPw=\")","v":{"$error":"#REF!"}},{"$f":"AND(#REF!,\"NxvzllOYvP0=\")","v":{"$error":"#REF!"}},{"$f":"AND(#REF!,\"NxvzllOYvP4=\")","v":{"$error":"#REF!"}},{"$f":"AND(#REF!,\"NxvzllOYvP8=\")","v":{"$error":"#REF!"}}]
[{"$f":"AND(#REF!,\"frPDzjBRZwA=\")","v":{"$error":"#REF!"}},{"$f":"AND(#REF!,\"frPDzjBRZwE=\")","v":{"$error":"#REF!"}},{"$f":"AND(#REF!,\"frPDzjBRZwI=\")","v":{"$error":"#REF!"}},{"$f":"AND(#REF!,\"frPDzjBRZwM=\")","v":{"$error":"#REF!"}},{"$f":"AND(#REF!,\"frPDzjBRZwQ=\")","v":{"$error":"#REF!"}},{"$f":"AND(#REF!,\"frPDzjBRZwU=\")","v":{"$error":"#REF!"}},{"$f":"AND(#REF!,\"frPDzjBRZwY=\")","v":{"$error":"#REF!"}},{"$f":"AND(#REF!,\"frPDzjBRZwc=\")","v":{"$error":"#REF!"}},{"$f":"AND(#REF!,\"frPDzjBRZwg=\")","v":{"$error":"#REF!"}},{"$f":"AND(#REF!,\"frPDzjBRZwk=\")","v":{"$error":"#REF!"}},{"$f":"AND(#REF!,\"frPDzjBRZwo=\")","v":{"$error":"#REF!"}},{"$f":"AND(#REF!,\"frPDzjBRZws=\")","v":{"$error":"#REF!"}},{"$f":"AND(#REF!,\"frPDzjBRZww=\")","v":{"$error":"#REF!"}},{"$f":"AND(#REF!,\"frPDzjBRZw0=\")","v":{"$error":"#REF!"}},{"$f":"AND(#REF!,\"frPDzjBRZw4=\")","v":{"$error":"#REF!"}},{"$f":"AND(#REF!,\"frPDzjBRZw8=\")","v":{"$error":"#REF!"}},{"$f":"AND(#REF!,\"frPDzjBRZxA=\")","v":{"$error":"#REF!"}},{"$f":"AND(#REF!,\"frPDzjBRZxE=\")","v":{"$error":"#REF!"}},{"$f":"AND(#REF!,\"frPDzjBRZxI=\")","v":{"$error":"#REF!"}},{"$f":"AND(#REF!,\"frPDzjBRZxM=\")","v":{"$error":"#REF!"}},{"$f":"AND(#REF!,\"frPDzjBRZxQ=\")","v":{"$error":"#REF!"}},{"$f":"AND(#REF!,\"frPDzjBRZxU=\")","v":{"$error":"#REF!"}},{"$f":"AND(#REF!,\"frPDzjBRZxY=\")","v":{"$error":"#REF!"}},{"$f":"AND(#REF!,\"frPDzjBRZxc=\")","v":{"$error":"#REF!"}},{"$f":"AND(#REF!,\"frPDzjBRZxg=\")","v":{"$error":"#REF!"}},{"$f":"AND(#REF!,\"frPDzjBRZxk=\")","v":{"$error":"#REF!"}},{"$f":"AND(#REF!,\"frPDzjBRZxo=\")","v":{"$error":"#REF!"}},{"$f":"AND(#REF!,\"frPDzjBRZxs=\")","v":{"$error":"#REF!"}},{"$f":"AND(#REF!,\"frPDzjBRZxw=\")","v":{"$error":"#REF!"}},{"$f":"AND(#REF!,\"frPDzjBRZx0=\")","v":{"$error":"#REF!"}},{"$f":"AND(#REF!,\"frPDzjBRZx4=\")","v":{"$error":"#REF!"}},{"$f":"AND(#REF!,\"frPDzjBRZx8=\")","v":{"$error":"#REF!"}},{"$f":"AND(#REF!,\"frPDzjBRZyA=\")","v":{"$error":"#REF!"}},{"$f":"AND(#REF!,\"frPDzjBRZyE=\")","v":{"$error":"#REF!"}},{"$f":"AND(#REF!,\"frPDzjBRZyI=\")","v":{"$error":"#REF!"}},{"$f":"AND(#REF!,\"frPDzjBRZyM=\")","v":{"$error":"#REF!"}},{"$f":"AND(#REF!,\"frPDzjBRZyQ=\")","v":{"$error":"#REF!"}},{"$f":"AND(#REF!,\"frPDzjBRZyU=\")","v":{"$error":"#REF!"}},{"$f":"AND(#REF!,\"frPDzjBRZyY=\")","v":{"$error":"#REF!"}},{"$f":"AND(#REF!,\"frPDzjBRZyc=\")","v":{"$error":"#REF!"}},{"$f":"AND(#REF!,\"frPDzjBRZyg=\")","v":{"$error":"#REF!"}},{"$f":"AND(#REF!,\"frPDzjBRZyk=\")","v":{"$error":"#REF!"}},{"$f":"AND(#REF!,\"frPDzjBRZyo=\")","v":{"$error":"#REF!"}},{"$f":"AND(#REF!,\"frPDzjBRZys=\")","v":{"$error":"#REF!"}},{"$f":"AND(#REF!,\"frPDzjBRZyw=\")","v":{"$error":"#REF!"}},{"$f":"AND(#REF!,\"frPDzjBRZy0=\")","v":{"$error":"#REF!"}},{"$f":"IF(#REF!,\"frPDzjBRZy4=\",0)","v":{"$error":"#REF!"}},{"$f":"AND(#REF!,\"frPDzjBRZy8=\")","v":{"$error":"#REF!"}},{"$f":"AND(#REF!,\"frPDzjBRZzA=\")","v":{"$error":"#REF!"}},{"$f":"AND(#REF!,\"frPDzjBRZzE=\")","v":{"$error":"#REF!"}},{"$f":"AND(#REF!,\"frPDzjBRZzI=\")","v":{"$error":"#REF!"}},{"$f":"AND(#REF!,\"frPDzjBRZzM=\")","v":{"$error":"#REF!"}},{"$f":"AND(#REF!,\"frPDzjBRZzQ=\")","v":{"$error":"#REF!"}},{"$f":"AND(#REF!,\"frPDzjBRZzU=\")","v":{"$error":"#REF!"}},{"$f":"AND(#REF!,\"frPDzjBRZzY=\")","v":{"$error":"#REF!"}},{"$f":"AND(#REF!,\"frPDzjBRZzc=\")","v":{"$error":"#REF!"}},{"$f":"AND(#REF!,\"frPDzjBRZzg=\")","v":{"$error":"#REF!"}},{"$f":"AND(#REF!,\"frPDzjBRZzk=\")","v":{"$error":"#REF!"}},{"$f":"AND(#REF!,\"frPDzjBRZzo=\")","v":{"$error":"#REF!"}},{"$f":"AND(#REF!,\"frPDzjBRZzs=\")","v":{"$error":"#REF!"}},{"$f":"AND(#REF!,\"frPDzjBRZzw=\")","v":{"$error":"#REF!"}},{"$f":"AND(#REF!,\"frPDzjBRZz0=\")","v":{"$error":"#REF!"}},{"$f":"AND(#REF!,\"frPDzjBRZz4=\")","v":{"$error":"#REF!"}},{"$f":"AND(#REF!,\"frPDzjBRZz8=\")","v":{"$error":"#REF!"}},{"$f":"AND(#REF!,\"frPDzjBRZ0A=\")","v":{"$error":"#REF!"}},{"$f":"AND(#REF!,\"frPDzjBRZ0E=\")","v":{"$error":"#REF!"}},{"$f":"AND(#REF!,\"frPDzjBRZ0I=\")","v":{"$error":"#REF!"}},{"$f":"AND(#REF!,\"frPDzjBRZ0M=\")","v":{"$error":"#REF!"}},{"$f":"AND(#REF!,\"frPDzjBRZ0Q=\")","v":{"$error":"#REF!"}},{"$f":"AND(#REF!,\"frPDzjBRZ0U=\")","v":{"$error":"#REF!"}},{"$f":"AND(#REF!,\"frPDzjBRZ0Y=\")","v":{"$error":"#REF!"}},{"$f":"AND(#REF!,\"frPDzjBRZ0c=\")","v":{"$error":"#REF!"}},{"$f":"AND(#REF!,\"frPDzjBRZ0g=\")","v":{"$error":"#REF!"}},{"$f":"AND(#REF!,\"frPDzjBRZ0k=\")","v":{"$error":"#REF!"}},{"$f":"AND(#REF!,\"frPDzjBRZ0o=\")","v":{"$error":"#REF!"}},{"$f":"AND(#REF!,\"frPDzjBRZ0s=\")","v":{"$error":"#REF!"}},{"$f":"AND(#REF!,\"frPDzjBRZ0w=\")","v":{"$error":"#REF!"}},{"$f":"AND(#REF!,\"frPDzjBRZ00=\")","v":{"$error":"#REF!"}},{"$f":"AND(#REF!,\"frPDzjBRZ04=\")","v":{"$error":"#REF!"}},{"$f":"AND(#REF!,\"frPDzjBRZ08=\")","v":{"$error":"#REF!"}},{"$f":"AND(#REF!,\"frPDzjBRZ1A=\")","v":{"$error":"#REF!"}},{"$f":"AND(#REF!,\"frPDzjBRZ1E=\")","v":{"$error":"#REF!"}},{"$f":"AND(#REF!,\"frPDzjBRZ1I=\")","v":{"$error":"#REF!"}},{"$f":"AND(#REF!,\"frPDzjBRZ1M=\")","v":{"$error":"#REF!"}},{"$f":"AND(#REF!,\"frPDzjBRZ1Q=\")","v":{"$error":"#REF!"}},{"$f":"AND(#REF!,\"frPDzjBRZ1U=\")","v":{"$error":"#REF!"}},{"$f":"AND(#REF!,\"frPDzjBRZ1Y=\")","v":{"$error":"#REF!"}},{"$f":"AND(#REF!,\"frPDzjBRZ1c=\")","v":{"$error":"#REF!"}},{"$f":"AND(#REF!,\"frPDzjBRZ1g=\")","v":{"$error":"#REF!"}},{"$f":"AND(#REF!,\"frPDzjBRZ1k=\")","v":{"$error":"#REF!"}},{"$f":"AND(#REF!,\"frPDzjBRZ1o=\")","v":{"$error":"#REF!"}},{"$f":"AND(#REF!,\"frPDzjBRZ1s=\")","v":{"$error":"#REF!"}},{"$f":"AND(#REF!,\"frPDzjBRZ1w=\")","v":{"$error":"#REF!"}},{"$f":"AND(#REF!,\"frPDzjBRZ10=\")","v":{"$error":"#REF!"}},{"$f":"AND(#REF!,\"frPDzjBRZ14=\")","v":{"$error":"#REF!"}},{"$f":"AND(#REF!,\"frPDzjBRZ18=\")","v":{"$error":"#REF!"}},{"$f":"AND(#REF!,\"frPDzjBRZ2A=\")","v":{"$error":"#REF!"}},{"$f":"AND(#REF!,\"frPDzjBRZ2E=\")","v":{"$error":"#REF!"}},{"$f":"AND(#REF!,\"frPDzjBRZ2I=\")","v":{"$error":"#REF!"}},{"$f":"AND(#REF!,\"frPDzjBRZ2M=\")","v":{"$error":"#REF!"}},{"$f":"AND(#REF!,\"frPDzjBRZ2Q=\")","v":{"$error":"#REF!"}},{"$f":"AND(#REF!,\"frPDzjBRZ2U=\")","v":{"$error":"#REF!"}},{"$f":"AND(#REF!,\"frPDzjBRZ2Y=\")","v":{"$error":"#REF!"}},{"$f":"AND(#REF!,\"frPDzjBRZ2c=\")","v":{"$error":"#REF!"}},{"$f":"AND(#REF!,\"frPDzjBRZ2g=\")","v":{"$error":"#REF!"}},{"$f":"AND(#REF!,\"frPDzjBRZ2k=\")","v":{"$error":"#REF!"}},{"$f":"AND(#REF!,\"frPDzjBRZ2o=\")","v":{"$error":"#REF!"}},{"$f":"AND(#REF!,\"frPDzjBRZ2s=\")","v":{"$error":"#REF!"}},{"$f":"AND(#REF!,\"frPDzjBRZ2w=\")","v":{"$error":"#REF!"}},{"$f":"AND(#REF!,\"frPDzjBRZ20=\")","v":{"$error":"#REF!"}},{"$f":"AND(#REF!,\"frPDzjBRZ24=\")","v":{"$error":"#REF!"}},{"$f":"AND(#REF!,\"frPDzjBRZ28=\")","v":{"$error":"#REF!"}},{"$f":"AND(#REF!,\"frPDzjBRZ3A=\")","v":{"$error":"#REF!"}},{"$f":"AND(#REF!,\"frPDzjBRZ3E=\")","v":{"$error":"#REF!"}},{"$f":"AND(#REF!,\"frPDzjBRZ3I=\")","v":{"$error":"#REF!"}},{"$f":"AND(#REF!,\"frPDzjBRZ3M=\")","v":{"$error":"#REF!"}},{"$f":"AND(#REF!,\"frPDzjBRZ3Q=\")","v":{"$error":"#REF!"}},{"$f":"AND(#REF!,\"frPDzjBRZ3U=\")","v":{"$error":"#REF!"}},{"$f":"AND(#REF!,\"frPDzjBRZ3Y=\")","v":{"$error":"#REF!"}},{"$f":"AND(#REF!,\"frPDzjBRZ3c=\")","v":{"$error":"#REF!"}},{"$f":"AND(#REF!,\"frPDzjBRZ3g=\")","v":{"$error":"#REF!"}},{"$f":"AND(#REF!,\"frPDzjBRZ3k=\")","v":{"$error":"#REF!"}},{"$f":"AND(#REF!,\"frPDzjBRZ3o=\")","v":{"$error":"#REF!"}},{"$f":"AND(#REF!,\"frPDzjBRZ3s=\")","v":{"$error":"#REF!"}},{"$f":"AND(#REF!,\"frPDzjBRZ3w=\")","v":{"$error":"#REF!"}},{"$f":"AND(#REF!,\"frPDzjBRZ30=\")","v":{"$error":"#REF!"}},{"$f":"AND(#REF!,\"frPDzjBRZ34=\")","v":{"$error":"#REF!"}},{"$f":"AND(#REF!,\"frPDzjBRZ38=\")","v":{"$error":"#REF!"}},{"$f":"AND(#REF!,\"frPDzjBRZ4A=\")","v":{"$error":"#REF!"}},{"$f":"AND(#REF!,\"frPDzjBRZ4E=\")","v":{"$error":"#REF!"}},{"$f":"AND(#REF!,\"frPDzjBRZ4I=\")","v":{"$error":"#REF!"}},{"$f":"AND(#REF!,\"frPDzjBRZ4M=\")","v":{"$error":"#REF!"}},{"$f":"AND(#REF!,\"frPDzjBRZ4Q=\")","v":{"$error":"#REF!"}},{"$f":"AND(#REF!,\"frPDzjBRZ4U=\")","v":{"$error":"#REF!"}},{"$f":"AND(#REF!,\"frPDzjBRZ4Y=\")","v":{"$error":"#REF!"}},{"$f":"AND(#REF!,\"frPDzjBRZ4c=\")","v":{"$error":"#REF!"}},{"$f":"AND(#REF!,\"frPDzjBRZ4g=\")","v":{"$error":"#REF!"}},{"$f":"AND(#REF!,\"frPDzjBRZ4k=\")","v":{"$error":"#REF!"}},{"$f":"AND(#REF!,\"frPDzjBRZ4o=\")","v":{"$error":"#REF!"}},{"$f":"AND(#REF!,\"frPDzjBRZ4s=\")","v":{"$error":"#REF!"}},{"$f":"AND(#REF!,\"frPDzjBRZ4w=\")","v":{"$error":"#REF!"}},{"$f":"AND(#REF!,\"frPDzjBRZ40=\")","v":{"$error":"#REF!"}},{"$f":"AND(#REF!,\"frPDzjBRZ44=\")","v":{"$error":"#REF!"}},{"$f":"AND(#REF!,\"frPDzjBRZ48=\")","v":{"$error":"#REF!"}},{"$f":"AND(#REF!,\"frPDzjBRZ5A=\")","v":{"$error":"#REF!"}},{"$f":"AND(#REF!,\"frPDzjBRZ5E=\")","v":{"$error":"#REF!"}},{"$f":"AND(#REF!,\"frPDzjBRZ5I=\")","v":{"$error":"#REF!"}},{"$f":"AND(#REF!,\"frPDzjBRZ5M=\")","v":{"$error":"#REF!"}},{"$f":"AND(#REF!,\"frPDzjBRZ5Q=\")","v":{"$error":"#REF!"}},{"$f":"AND(#REF!,\"frPDzjBRZ5U=\")","v":{"$error":"#REF!"}},{"$f":"AND(#REF!,\"frPDzjBRZ5Y=\")","v":{"$error":"#REF!"}},{"$f":"AND(#REF!,\"frPDzjBRZ5c=\")","v":{"$error":"#REF!"}},{"$f":"AND(#REF!,\"frPDzjBRZ5g=\")","v":{"$error":"#REF!"}},{"$f":"AND(#REF!,\"frPDzjBRZ5k=\")","v":{"$error":"#REF!"}},{"$f":"AND(#REF!,\"frPDzjBRZ5o=\")","v":{"$error":"#REF!"}},{"$f":"AND(#REF!,\"frPDzjBRZ5s=\")","v":{"$error":"#REF!"}},{"$f":"AND(#REF!,\"frPDzjBRZ5w=\")","v":{"$error":"#REF!"}},{"$f":"AND(#REF!,\"frPDzjBRZ50=\")","v":{"$error":"#REF!"}},{"$f":"AND(#REF!,\"frPDzjBRZ54=\")","v":{"$error":"#REF!"}},{"$f":"AND(#REF!,\"frPDzjBRZ58=\")","v":{"$error":"#REF!"}},{"$f":"AND(#REF!,\"frPDzjBRZ6A=\")","v":{"$error":"#REF!"}},{"$f":"AND(#REF!,\"frPDzjBRZ6E=\")","v":{"$error":"#REF!"}},{"$f":"AND(#REF!,\"frPDzjBRZ6I=\")","v":{"$error":"#REF!"}},{"$f":"AND(#REF!,\"frPDzjBRZ6M=\")","v":{"$error":"#REF!"}},{"$f":"AND(#REF!,\"frPDzjBRZ6Q=\")","v":{"$error":"#REF!"}},{"$f":"AND(#REF!,\"frPDzjBRZ6U=\")","v":{"$error":"#REF!"}},{"$f":"AND(#REF!,\"frPDzjBRZ6Y=\")","v":{"$error":"#REF!"}},{"$f":"AND(#REF!,\"frPDzjBRZ6c=\")","v":{"$error":"#REF!"}},{"$f":"AND(#REF!,\"frPDzjBRZ6g=\")","v":{"$error":"#REF!"}},{"$f":"AND(#REF!,\"frPDzjBRZ6k=\")","v":{"$error":"#REF!"}},{"$f":"AND(#REF!,\"frPDzjBRZ6o=\")","v":{"$error":"#REF!"}},{"$f":"AND(#REF!,\"frPDzjBRZ6s=\")","v":{"$error":"#REF!"}},{"$f":"AND(#REF!,\"frPDzjBRZ6w=\")","v":{"$error":"#REF!"}},{"$f":"AND(#REF!,\"frPDzjBRZ60=\")","v":{"$error":"#REF!"}},{"$f":"AND(#REF!,\"frPDzjBRZ64=\")","v":{"$error":"#REF!"}},{"$f":"AND(#REF!,\"frPDzjBRZ68=\")","v":{"$error":"#REF!"}},{"$f":"AND(#REF!,\"frPDzjBRZ7A=\")","v":{"$error":"#REF!"}},{"$f":"AND(#REF!,\"frPDzjBRZ7E=\")","v":{"$error":"#REF!"}},{"$f":"AND(#REF!,\"frPDzjBRZ7I=\")","v":{"$error":"#REF!"}},{"$f":"AND(#REF!,\"frPDzjBRZ7M=\")","v":{"$error":"#REF!"}},{"$f":"AND(#REF!,\"frPDzjBRZ7Q=\")","v":{"$error":"#REF!"}},{"$f":"AND(#REF!,\"frPDzjBRZ7U=\")","v":{"$error":"#REF!"}},{"$f":"AND(#REF!,\"frPDzjBRZ7Y=\")","v":{"$error":"#REF!"}},{"$f":"AND(#REF!,\"frPDzjBRZ7c=\")","v":{"$error":"#REF!"}},{"$f":"AND(#REF!,\"frPDzjBRZ7g=\")","v":{"$error":"#REF!"}},{"$f":"AND(#REF!,\"frPDzjBRZ7k=\")","v":{"$error":"#REF!"}},{"$f":"AND(#REF!,\"frPDzjBRZ7o=\")","v":{"$error":"#REF!"}},{"$f":"AND(#REF!,\"frPDzjBRZ7s=\")","v":{"$error":"#REF!"}},{"$f":"AND(#REF!,\"frPDzjBRZ7w=\")","v":{"$error":"#REF!"}},{"$f":"AND(#REF!,\"frPDzjBRZ70=\")","v":{"$error":"#REF!"}},{"$f":"AND(#REF!,\"frPDzjBRZ74=\")","v":{"$error":"#REF!"}},{"$f":"AND(#REF!,\"frPDzjBRZ78=\")","v":{"$error":"#REF!"}},{"$f":"AND(#REF!,\"frPDzjBRZ8A=\")","v":{"$error":"#REF!"}},{"$f":"AND(#REF!,\"frPDzjBRZ8E=\")","v":{"$error":"#REF!"}},{"$f":"AND(#REF!,\"frPDzjBRZ8I=\")","v":{"$error":"#REF!"}},{"$f":"AND(#REF!,\"frPDzjBRZ8M=\")","v":{"$error":"#REF!"}},{"$f":"AND(#REF!,\"frPDzjBRZ8Q=\")","v":{"$error":"#REF!"}},{"$f":"AND(#REF!,\"frPDzjBRZ8U=\")","v":{"$error":"#REF!"}},{"$f":"AND(#REF!,\"frPDzjBRZ8Y=\")","v":{"$error":"#REF!"}},{"$f":"AND(#REF!,\"frPDzjBRZ8c=\")","v":{"$error":"#REF!"}},{"$f":"AND(#REF!,\"frPDzjBRZ8g=\")","v":{"$error":"#REF!"}},{"$f":"AND(#REF!,\"frPDzjBRZ8k=\")","v":{"$error":"#REF!"}},{"$f":"AND(#REF!,\"frPDzjBRZ8o=\")","v":{"$error":"#REF!"}},{"$f":"AND(#REF!,\"frPDzjBRZ8s=\")","v":{"$error":"#REF!"}},{"$f":"AND(#REF!,\"frPDzjBRZ8w=\")","v":{"$error":"#REF!"}},{"$f":"AND(#REF!,\"frPDzjBRZ80=\")","v":{"$error":"#REF!"}},{"$f":"AND(#REF!,\"frPDzjBRZ84=\")","v":{"$error":"#REF!"}},{"$f":"AND(#REF!,\"frPDzjBRZ88=\")","v":{"$error":"#REF!"}},{"$f":"AND(#REF!,\"frPDzjBRZ9A=\")","v":{"$error":"#REF!"}},{"$f":"AND(#REF!,\"frPDzjBRZ9E=\")","v":{"$error":"#REF!"}},{"$f":"AND(#REF!,\"frPDzjBRZ9I=\")","v":{"$error":"#REF!"}},{"$f":"AND(#REF!,\"frPDzjBRZ9M=\")","v":{"$error":"#REF!"}},{"$f":"AND(#REF!,\"frPDzjBRZ9Q=\")","v":{"$error":"#REF!"}},{"$f":"AND(#REF!,\"frPDzjBRZ9U=\")","v":{"$error":"#REF!"}},{"$f":"AND(#REF!,\"frPDzjBRZ9Y=\")","v":{"$error":"#REF!"}},{"$f":"AND(#REF!,\"frPDzjBRZ9c=\")","v":{"$error":"#REF!"}},{"$f":"AND(#REF!,\"frPDzjBRZ9g=\")","v":{"$error":"#REF!"}},{"$f":"AND(#REF!,\"frPDzjBRZ9k=\")","v":{"$error":"#REF!"}},{"$f":"AND(#REF!,\"frPDzjBRZ9o=\")","v":{"$error":"#REF!"}},{"$f":"AND(#REF!,\"frPDzjBRZ9s=\")","v":{"$error":"#REF!"}},{"$f":"AND(#REF!,\"frPDzjBRZ9w=\")","v":{"$error":"#REF!"}},{"$f":"AND(#REF!,\"frPDzjBRZ90=\")","v":{"$error":"#REF!"}},{"$f":"AND(#REF!,\"frPDzjBRZ94=\")","v":{"$error":"#REF!"}},{"$f":"AND(#REF!,\"frPDzjBRZ98=\")","v":{"$error":"#REF!"}},{"$f":"AND(#REF!,\"frPDzjBRZ+A=\")","v":{"$error":"#REF!"}},{"$f":"AND(#REF!,\"frPDzjBRZ+E=\")","v":{"$error":"#REF!"}},{"$f":"AND(#REF!,\"frPDzjBRZ+I=\")","v":{"$error":"#REF!"}},{"$f":"AND(#REF!,\"frPDzjBRZ+M=\")","v":{"$error":"#REF!"}},{"$f":"AND(#REF!,\"frPDzjBRZ+Q=\")","v":{"$error":"#REF!"}},{"$f":"AND(#REF!,\"frPDzjBRZ+U=\")","v":{"$error":"#REF!"}},{"$f":"AND(#REF!,\"frPDzjBRZ+Y=\")","v":{"$error":"#REF!"}},{"$f":"AND(#REF!,\"frPDzjBRZ+c=\")","v":{"$error":"#REF!"}},{"$f":"AND(#REF!,\"frPDzjBRZ+g=\")","v":{"$error":"#REF!"}},{"$f":"AND(#REF!,\"frPDzjBRZ+k=\")","v":{"$error":"#REF!"}},{"$f":"AND(#REF!,\"frPDzjBRZ+o=\")","v":{"$error":"#REF!"}},{"$f":"AND(#REF!,\"frPDzjBRZ+s=\")","v":{"$error":"#REF!"}},{"$f":"AND(#REF!,\"frPDzjBRZ+w=\")","v":{"$error":"#REF!"}},{"$f":"AND(#REF!,\"frPDzjBRZ+0=\")","v":{"$error":"#REF!"}},{"$f":"AND(#REF!,\"frPDzjBRZ+4=\")","v":{"$error":"#REF!"}},{"$f":"AND(#REF!,\"frPDzjBRZ+8=\")","v":{"$error":"#REF!"}},{"$f":"AND(#REF!,\"frPDzjBRZ/A=\")","v":{"$error":"#REF!"}},{"$f":"AND(#REF!,\"frPDzjBRZ/E=\")","v":{"$error":"#REF!"}},{"$f":"AND(#REF!,\"frPDzjBRZ/I=\")","v":{"$error":"#REF!"}},{"$f":"AND(#REF!,\"frPDzjBRZ/M=\")","v":{"$error":"#REF!"}},{"$f":"AND(#REF!,\"frPDzjBRZ/Q=\")","v":{"$error":"#REF!"}},{"$f":"IF(#REF!,\"frPDzjBRZ/U=\",0)","v":{"$error":"#REF!"}},{"$f":"AND(#REF!,\"frPDzjBRZ/Y=\")","v":{"$error":"#REF!"}},{"$f":"AND(#REF!,\"frPDzjBRZ/c=\")","v":{"$error":"#REF!"}},{"$f":"AND(#REF!,\"frPDzjBRZ/g=\")","v":{"$error":"#REF!"}},{"$f":"AND(#REF!,\"frPDzjBRZ/k=\")","v":{"$error":"#REF!"}},{"$f":"AND(#REF!,\"frPDzjBRZ/o=\")","v":{"$error":"#REF!"}},{"$f":"AND(#REF!,\"frPDzjBRZ/s=\")","v":{"$error":"#REF!"}},{"$f":"AND(#REF!,\"frPDzjBRZ/w=\")","v":{"$error":"#REF!"}},{"$f":"AND(#REF!,\"frPDzjBRZ/0=\")","v":{"$error":"#REF!"}},{"$f":"AND(#REF!,\"frPDzjBRZ/4=\")","v":{"$error":"#REF!"}},{"$f":"AND(#REF!,\"frPDzjBRZ/8=\")","v":{"$error":"#REF!"}}]
[{"$f":"AND(#REF!,\"G9dYVAJCXgA=\")","v":{"$error":"#REF!"}},{"$f":"AND(#REF!,\"G9dYVAJCXgE=\")","v":{"$error":"#REF!"}},{"$f":"AND(#REF!,\"G9dYVAJCXgI=\")","v":{"$error":"#REF!"}},{"$f":"AND(#REF!,\"G9dYVAJCXgM=\")","v":{"$error":"#REF!"}},{"$f":"AND(#REF!,\"G9dYVAJCXgQ=\")","v":{"$error":"#REF!"}},{"$f":"AND(#REF!,\"G9dYVAJCXgU=\")","v":{"$error":"#REF!"}},{"$f":"AND(#REF!,\"G9dYVAJCXgY=\")","v":{"$error":"#REF!"}},{"$f":"AND(#REF!,\"G9dYVAJCXgc=\")","v":{"$error":"#REF!"}},{"$f":"AND(#REF!,\"G9dYVAJCXgg=\")","v":{"$error":"#REF!"}},{"$f":"AND(#REF!,\"G9dYVAJCXgk=\")","v":{"$error":"#REF!"}},{"$f":"AND(#REF!,\"G9dYVAJCXgo=\")","v":{"$error":"#REF!"}},{"$f":"AND(#REF!,\"G9dYVAJCXgs=\")","v":{"$error":"#REF!"}},{"$f":"AND(#REF!,\"G9dYVAJCXgw=\")","v":{"$error":"#REF!"}},{"$f":"AND(#REF!,\"G9dYVAJCXg0=\")","v":{"$error":"#REF!"}},{"$f":"AND(#REF!,\"G9dYVAJCXg4=\")","v":{"$error":"#REF!"}},{"$f":"AND(#REF!,\"G9dYVAJCXg8=\")","v":{"$error":"#REF!"}},{"$f":"AND(#REF!,\"G9dYVAJCXhA=\")","v":{"$error":"#REF!"}},{"$f":"AND(#REF!,\"G9dYVAJCXhE=\")","v":{"$error":"#REF!"}},{"$f":"AND(#REF!,\"G9dYVAJCXhI=\")","v":{"$error":"#REF!"}},{"$f":"AND(#REF!,\"G9dYVAJCXhM=\")","v":{"$error":"#REF!"}},{"$f":"AND(#REF!,\"G9dYVAJCXhQ=\")","v":{"$error":"#REF!"}},{"$f":"AND(#REF!,\"G9dYVAJCXhU=\")","v":{"$error":"#REF!"}},{"$f":"AND(#REF!,\"G9dYVAJCXhY=\")","v":{"$error":"#REF!"}},{"$f":"AND(#REF!,\"G9dYVAJCXhc=\")","v":{"$error":"#REF!"}},{"$f":"AND(#REF!,\"G9dYVAJCXhg=\")","v":{"$error":"#REF!"}},{"$f":"AND(#REF!,\"G9dYVAJCXhk=\")","v":{"$error":"#REF!"}},{"$f":"AND(#REF!,\"G9dYVAJCXho=\")","v":{"$error":"#REF!"}},{"$f":"AND(#REF!,\"G9dYVAJCXhs=\")","v":{"$error":"#REF!"}},{"$f":"AND(#REF!,\"G9dYVAJCXhw=\")","v":{"$error":"#REF!"}},{"$f":"AND(#REF!,\"G9dYVAJCXh0=\")","v":{"$error":"#REF!"}},{"$f":"AND(#REF!,\"G9dYVAJCXh4=\")","v":{"$error":"#REF!"}},{"$f":"AND(#REF!,\"G9dYVAJCXh8=\")","v":{"$error":"#REF!"}},{"$f":"AND(#REF!,\"G9dYVAJCXiA=\")","v":{"$error":"#REF!"}},{"$f":"AND(#REF!,\"G9dYVAJCXiE=\")","v":{"$error":"#REF!"}},{"$f":"AND(#REF!,\"G9dYVAJCXiI=\")","v":{"$error":"#REF!"}},{"$f":"AND(#REF!,\"G9dYVAJCXiM=\")","v":{"$error":"#REF!"}},{"$f":"AND(#REF!,\"G9dYVAJCXiQ=\")","v":{"$error":"#REF!"}},{"$f":"AND(#REF!,\"G9dYVAJCXiU=\")","v":{"$error":"#REF!"}},{"$f":"AND(#REF!,\"G9dYVAJCXiY=\")","v":{"$error":"#REF!"}},{"$f":"AND(#REF!,\"G9dYVAJCXic=\")","v":{"$error":"#REF!"}},{"$f":"AND(#REF!,\"G9dYVAJCXig=\")","v":{"$error":"#REF!"}},{"$f":"AND(#REF!,\"G9dYVAJCXik=\")","v":{"$error":"#REF!"}},{"$f":"AND(#REF!,\"G9dYVAJCXio=\")","v":{"$error":"#REF!"}},{"$f":"AND(#REF!,\"G9dYVAJCXis=\")","v":{"$error":"#REF!"}},{"$f":"AND(#REF!,\"G9dYVAJCXiw=\")","v":{"$error":"#REF!"}},{"$f":"AND(#REF!,\"G9dYVAJCXi0=\")","v":{"$error":"#REF!"}},{"$f":"AND(#REF!,\"G9dYVAJCXi4=\")","v":{"$error":"#REF!"}},{"$f":"AND(#REF!,\"G9dYVAJCXi8=\")","v":{"$error":"#REF!"}},{"$f":"AND(#REF!,\"G9dYVAJCXjA=\")","v":{"$error":"#REF!"}},{"$f":"AND(#REF!,\"G9dYVAJCXjE=\")","v":{"$error":"#REF!"}},{"$f":"AND(#REF!,\"G9dYVAJCXjI=\")","v":{"$error":"#REF!"}},{"$f":"AND(#REF!,\"G9dYVAJCXjM=\")","v":{"$error":"#REF!"}},{"$f":"AND(#REF!,\"G9dYVAJCXjQ=\")","v":{"$error":"#REF!"}},{"$f":"AND(#REF!,\"G9dYVAJCXjU=\")","v":{"$error":"#REF!"}},{"$f":"AND(#REF!,\"G9dYVAJCXjY=\")","v":{"$error":"#REF!"}},{"$f":"AND(#REF!,\"G9dYVAJCXjc=\")","v":{"$error":"#REF!"}},{"$f":"AND(#REF!,\"G9dYVAJCXjg=\")","v":{"$error":"#REF!"}},{"$f":"AND(#REF!,\"G9dYVAJCXjk=\")","v":{"$error":"#REF!"}},{"$f":"AND(#REF!,\"G9dYVAJCXjo=\")","v":{"$error":"#REF!"}},{"$f":"AND(#REF!,\"G9dYVAJCXjs=\")","v":{"$error":"#REF!"}},{"$f":"AND(#REF!,\"G9dYVAJCXjw=\")","v":{"$error":"#REF!"}},{"$f":"AND(#REF!,\"G9dYVAJCXj0=\")","v":{"$error":"#REF!"}},{"$f":"AND(#REF!,\"G9dYVAJCXj4=\")","v":{"$error":"#REF!"}},{"$f":"AND(#REF!,\"G9dYVAJCXj8=\")","v":{"$error":"#REF!"}},{"$f":"AND(#REF!,\"G9dYVAJCXkA=\")","v":{"$error":"#REF!"}},{"$f":"AND(#REF!,\"G9dYVAJCXkE=\")","v":{"$error":"#REF!"}},{"$f":"AND(#REF!,\"G9dYVAJCXkI=\")","v":{"$error":"#REF!"}},{"$f":"AND(#REF!,\"G9dYVAJCXkM=\")","v":{"$error":"#REF!"}},{"$f":"AND(#REF!,\"G9dYVAJCXkQ=\")","v":{"$error":"#REF!"}},{"$f":"AND(#REF!,\"G9dYVAJCXkU=\")","v":{"$error":"#REF!"}},{"$f":"AND(#REF!,\"G9dYVAJCXkY=\")","v":{"$error":"#REF!"}},{"$f":"AND(#REF!,\"G9dYVAJCXkc=\")","v":{"$error":"#REF!"}},{"$f":"AND(#REF!,\"G9dYVAJCXkg=\")","v":{"$error":"#REF!"}},{"$f":"AND(#REF!,\"G9dYVAJCXkk=\")","v":{"$error":"#REF!"}},{"$f":"AND(#REF!,\"G9dYVAJCXko=\")","v":{"$error":"#REF!"}},{"$f":"AND(#REF!,\"G9dYVAJCXks=\")","v":{"$error":"#REF!"}},{"$f":"AND(#REF!,\"G9dYVAJCXkw=\")","v":{"$error":"#REF!"}},{"$f":"AND(#REF!,\"G9dYVAJCXk0=\")","v":{"$error":"#REF!"}},{"$f":"AND(#REF!,\"G9dYVAJCXk4=\")","v":{"$error":"#REF!"}},{"$f":"AND(#REF!,\"G9dYVAJCXk8=\")","v":{"$error":"#REF!"}},{"$f":"AND(#REF!,\"G9dYVAJCXlA=\")","v":{"$error":"#REF!"}},{"$f":"AND(#REF!,\"G9dYVAJCXlE=\")","v":{"$error":"#REF!"}},{"$f":"AND(#REF!,\"G9dYVAJCXlI=\")","v":{"$error":"#REF!"}},{"$f":"AND(#REF!,\"G9dYVAJCXlM=\")","v":{"$error":"#REF!"}},{"$f":"AND(#REF!,\"G9dYVAJCXlQ=\")","v":{"$error":"#REF!"}},{"$f":"AND(#REF!,\"G9dYVAJCXlU=\")","v":{"$error":"#REF!"}},{"$f":"AND(#REF!,\"G9dYVAJCXlY=\")","v":{"$error":"#REF!"}},{"$f":"AND(#REF!,\"G9dYVAJCXlc=\")","v":{"$error":"#REF!"}},{"$f":"AND(#REF!,\"G9dYVAJCXlg=\")","v":{"$error":"#REF!"}},{"$f":"AND(#REF!,\"G9dYVAJCXlk=\")","v":{"$error":"#REF!"}},{"$f":"AND(#REF!,\"G9dYVAJCXlo=\")","v":{"$error":"#REF!"}},{"$f":"AND(#REF!,\"G9dYVAJCXls=\")","v":{"$error":"#REF!"}},{"$f":"AND(#REF!,\"G9dYVAJCXlw=\")","v":{"$error":"#REF!"}},{"$f":"AND(#REF!,\"G9dYVAJCXl0=\")","v":{"$error":"#REF!"}},{"$f":"AND(#REF!,\"G9dYVAJCXl4=\")","v":{"$error":"#REF!"}},{"$f":"AND(#REF!,\"G9dYVAJCXl8=\")","v":{"$error":"#REF!"}},{"$f":"AND(#REF!,\"G9dYVAJCXmA=\")","v":{"$error":"#REF!"}},{"$f":"AND(#REF!,\"G9dYVAJCXmE=\")","v":{"$error":"#REF!"}},{"$f":"AND(#REF!,\"G9dYVAJCXmI=\")","v":{"$error":"#REF!"}},{"$f":"AND(#REF!,\"G9dYVAJCXmM=\")","v":{"$error":"#REF!"}},{"$f":"AND(#REF!,\"G9dYVAJCXmQ=\")","v":{"$error":"#REF!"}},{"$f":"AND(#REF!,\"G9dYVAJCXmU=\")","v":{"$error":"#REF!"}},{"$f":"AND(#REF!,\"G9dYVAJCXmY=\")","v":{"$error":"#REF!"}},{"$f":"AND(#REF!,\"G9dYVAJCXmc=\")","v":{"$error":"#REF!"}},{"$f":"AND(#REF!,\"G9dYVAJCXmg=\")","v":{"$error":"#REF!"}},{"$f":"AND(#REF!,\"G9dYVAJCXmk=\")","v":{"$error":"#REF!"}},{"$f":"AND(#REF!,\"G9dYVAJCXmo=\")","v":{"$error":"#REF!"}},{"$f":"AND(#REF!,\"G9dYVAJCXms=\")","v":{"$error":"#REF!"}},{"$f":"AND(#REF!,\"G9dYVAJCXmw=\")","v":{"$error":"#REF!"}},{"$f":"AND(#REF!,\"G9dYVAJCXm0=\")","v":{"$error":"#REF!"}},{"$f":"AND(#REF!,\"G9dYVAJCXm4=\")","v":{"$error":"#REF!"}},{"$f":"AND(#REF!,\"G9dYVAJCXm8=\")","v":{"$error":"#REF!"}},{"$f":"AND(#REF!,\"G9dYVAJCXnA=\")","v":{"$error":"#REF!"}},{"$f":"AND(#REF!,\"G9dYVAJCXnE=\")","v":{"$error":"#REF!"}},{"$f":"AND(#REF!,\"G9dYVAJCXnI=\")","v":{"$error":"#REF!"}},{"$f":"AND(#REF!,\"G9dYVAJCXnM=\")","v":{"$error":"#REF!"}},{"$f":"AND(#REF!,\"G9dYVAJCXnQ=\")","v":{"$error":"#REF!"}},{"$f":"AND(#REF!,\"G9dYVAJCXnU=\")","v":{"$error":"#REF!"}},{"$f":"AND(#REF!,\"G9dYVAJCXnY=\")","v":{"$error":"#REF!"}},{"$f":"AND(#REF!,\"G9dYVAJCXnc=\")","v":{"$error":"#REF!"}},{"$f":"AND(#REF!,\"G9dYVAJCXng=\")","v":{"$error":"#REF!"}},{"$f":"AND(#REF!,\"G9dYVAJCXnk=\")","v":{"$error":"#REF!"}},{"$f":"AND(#REF!,\"G9dYVAJCXno=\")","v":{"$error":"#REF!"}},{"$f":"AND(#REF!,\"G9dYVAJCXns=\")","v":{"$error":"#REF!"}},{"$f":"AND(#REF!,\"G9dYVAJCXnw=\")","v":{"$error":"#REF!"}},{"$f":"AND(#REF!,\"G9dYVAJCXn0=\")","v":{"$error":"#REF!"}},{"$f":"AND(#REF!,\"G9dYVAJCXn4=\")","v":{"$error":"#REF!"}},{"$f":"AND(#REF!,\"G9dYVAJCXn8=\")","v":{"$error":"#REF!"}},{"$f":"AND(#REF!,\"G9dYVAJCXoA=\")","v":{"$error":"#REF!"}},{"$f":"AND(#REF!,\"G9dYVAJCXoE=\")","v":{"$error":"#REF!"}},{"$f":"AND(#REF!,\"G9dYVAJCXoI=\")","v":{"$error":"#REF!"}},{"$f":"AND(#REF!,\"G9dYVAJCXoM=\")","v":{"$error":"#REF!"}},{"$f":"AND(#REF!,\"G9dYVAJCXoQ=\")","v":{"$error":"#REF!"}},{"$f":"AND(#REF!,\"G9dYVAJCXoU=\")","v":{"$error":"#REF!"}},{"$f":"AND(#REF!,\"G9dYVAJCXoY=\")","v":{"$error":"#REF!"}},{"$f":"AND(#REF!,\"G9dYVAJCXoc=\")","v":{"$error":"#REF!"}},{"$f":"AND(#REF!,\"G9dYVAJCXog=\")","v":{"$error":"#REF!"}},{"$f":"AND(#REF!,\"G9dYVAJCXok=\")","v":{"$error":"#REF!"}},{"$f":"AND(#REF!,\"G9dYVAJCXoo=\")","v":{"$error":"#REF!"}},{"$f":"AND(#REF!,\"G9dYVAJCXos=\")","v":{"$error":"#REF!"}},{"$f":"AND(#REF!,\"G9dYVAJCXow=\")","v":{"$error":"#REF!"}},{"$f":"AND(#REF!,\"G9dYVAJCXo0=\")","v":{"$error":"#REF!"}},{"$f":"AND(#REF!,\"G9dYVAJCXo4=\")","v":{"$error":"#REF!"}},{"$f":"AND(#REF!,\"G9dYVAJCXo8=\")","v":{"$error":"#REF!"}},{"$f":"AND(#REF!,\"G9dYVAJCXpA=\")","v":{"$error":"#REF!"}},{"$f":"AND(#REF!,\"G9dYVAJCXpE=\")","v":{"$error":"#REF!"}},{"$f":"AND(#REF!,\"G9dYVAJCXpI=\")","v":{"$error":"#REF!"}},{"$f":"AND(#REF!,\"G9dYVAJCXpM=\")","v":{"$error":"#REF!"}},{"$f":"AND(#REF!,\"G9dYVAJCXpQ=\")","v":{"$error":"#REF!"}},{"$f":"AND(#REF!,\"G9dYVAJCXpU=\")","v":{"$error":"#REF!"}},{"$f":"AND(#REF!,\"G9dYVAJCXpY=\")","v":{"$error":"#REF!"}},{"$f":"AND(#REF!,\"G9dYVAJCXpc=\")","v":{"$error":"#REF!"}},{"$f":"AND(#REF!,\"G9dYVAJCXpg=\")","v":{"$error":"#REF!"}},{"$f":"AND(#REF!,\"G9dYVAJCXpk=\")","v":{"$error":"#REF!"}},{"$f":"AND(#REF!,\"G9dYVAJCXpo=\")","v":{"$error":"#REF!"}},{"$f":"AND(#REF!,\"G9dYVAJCXps=\")","v":{"$error":"#REF!"}},{"$f":"AND(#REF!,\"G9dYVAJCXpw=\")","v":{"$error":"#REF!"}},{"$f":"AND(#REF!,\"G9dYVAJCXp0=\")","v":{"$error":"#REF!"}},{"$f":"AND(#REF!,\"G9dYVAJCXp4=\")","v":{"$error":"#REF!"}},{"$f":"AND(#REF!,\"G9dYVAJCXp8=\")","v":{"$error":"#REF!"}},{"$f":"AND(#REF!,\"G9dYVAJCXqA=\")","v":{"$error":"#REF!"}},{"$f":"AND(#REF!,\"G9dYVAJCXqE=\")","v":{"$error":"#REF!"}},{"$f":"AND(#REF!,\"G9dYVAJCXqI=\")","v":{"$error":"#REF!"}},{"$f":"AND(#REF!,\"G9dYVAJCXqM=\")","v":{"$error":"#REF!"}},{"$f":"AND(#REF!,\"G9dYVAJCXqQ=\")","v":{"$error":"#REF!"}},{"$f":"AND(#REF!,\"G9dYVAJCXqU=\")","v":{"$error":"#REF!"}},{"$f":"AND(#REF!,\"G9dYVAJCXqY=\")","v":{"$error":"#REF!"}},{"$f":"AND(#REF!,\"G9dYVAJCXqc=\")","v":{"$error":"#REF!"}},{"$f":"AND(#REF!,\"G9dYVAJCXqg=\")","v":{"$error":"#REF!"}},{"$f":"AND(#REF!,\"G9dYVAJCXqk=\")","v":{"$error":"#REF!"}},{"$f":"AND(#REF!,\"G9dYVAJCXqo=\")","v":{"$error":"#REF!"}},{"$f":"AND(#REF!,\"G9dYVAJCXqs=\")","v":{"$error":"#REF!"}},{"$f":"AND(#REF!,\"G9dYVAJCXqw=\")","v":{"$error":"#REF!"}},{"$f":"AND(#REF!,\"G9dYVAJCXq0=\")","v":{"$error":"#REF!"}},{"$f":"AND(#REF!,\"G9dYVAJCXq4=\")","v":{"$error":"#REF!"}},{"$f":"AND(#REF!,\"G9dYVAJCXq8=\")","v":{"$error":"#REF!"}},{"$f":"AND(#REF!,\"G9dYVAJCXrA=\")","v":{"$error":"#REF!"}},{"$f":"AND(#REF!,\"G9dYVAJCXrE=\")","v":{"$error":"#REF!"}},{"$f":"AND(#REF!,\"G9dYVAJCXrI=\")","v":{"$error":"#REF!"}},{"$f":"AND(#REF!,\"G9dYVAJCXrM=\")","v":{"$error":"#REF!"}},{"$f":"AND(#REF!,\"G9dYVAJCXrQ=\")","v":{"$error":"#REF!"}},{"$f":"AND(#REF!,\"G9dYVAJCXrU=\")","v":{"$error":"#REF!"}},{"$f":"AND(#REF!,\"G9dYVAJCXrY=\")","v":{"$error":"#REF!"}},{"$f":"AND(#REF!,\"G9dYVAJCXrc=\")","v":{"$error":"#REF!"}},{"$f":"AND(#REF!,\"G9dYVAJCXrg=\")","v":{"$error":"#REF!"}},{"$f":"AND(#REF!,\"G9dYVAJCXrk=\")","v":{"$error":"#REF!"}},{"$f":"AND(#REF!,\"G9dYVAJCXro=\")","v":{"$error":"#REF!"}},{"$f":"AND(#REF!,\"G9dYVAJCXrs=\")","v":{"$error":"#REF!"}},{"$f":"IF(#REF!,\"G9dYVAJCXrw=\",0)","v":{"$error":"#REF!"}},{"$f":"AND(#REF!,\"G9dYVAJCXr0=\")","v":{"$error":"#REF!"}},{"$f":"AND(#REF!,\"G9dYVAJCXr4=\")","v":{"$error":"#REF!"}},{"$f":"AND(#REF!,\"G9dYVAJCXr8=\")","v":{"$error":"#REF!"}},{"$f":"AND(#REF!,\"G9dYVAJCXsA=\")","v":{"$error":"#REF!"}},{"$f":"AND(#REF!,\"G9dYVAJCXsE=\")","v":{"$error":"#REF!"}},{"$f":"AND(#REF!,\"G9dYVAJCXsI=\")","v":{"$error":"#REF!"}},{"$f":"AND(#REF!,\"G9dYVAJCXsM=\")","v":{"$error":"#REF!"}},{"$f":"AND(#REF!,\"G9dYVAJCXsQ=\")","v":{"$error":"#REF!"}},{"$f":"AND(#REF!,\"G9dYVAJCXsU=\")","v":{"$error":"#REF!"}},{"$f":"AND(#REF!,\"G9dYVAJCXsY=\")","v":{"$error":"#REF!"}},{"$f":"AND(#REF!,\"G9dYVAJCXsc=\")","v":{"$error":"#REF!"}},{"$f":"AND(#REF!,\"G9dYVAJCXsg=\")","v":{"$error":"#REF!"}},{"$f":"AND(#REF!,\"G9dYVAJCXsk=\")","v":{"$error":"#REF!"}},{"$f":"AND(#REF!,\"G9dYVAJCXso=\")","v":{"$error":"#REF!"}},{"$f":"AND(#REF!,\"G9dYVAJCXss=\")","v":{"$error":"#REF!"}},{"$f":"AND(#REF!,\"G9dYVAJCXsw=\")","v":{"$error":"#REF!"}},{"$f":"AND(#REF!,\"G9dYVAJCXs0=\")","v":{"$error":"#REF!"}},{"$f":"AND(#REF!,\"G9dYVAJCXs4=\")","v":{"$error":"#REF!"}},{"$f":"AND(#REF!,\"G9dYVAJCXs8=\")","v":{"$error":"#REF!"}},{"$f":"AND(#REF!,\"G9dYVAJCXtA=\")","v":{"$error":"#REF!"}},{"$f":"AND(#REF!,\"G9dYVAJCXtE=\")","v":{"$error":"#REF!"}},{"$f":"AND(#REF!,\"G9dYVAJCXtI=\")","v":{"$error":"#REF!"}},{"$f":"AND(#REF!,\"G9dYVAJCXtM=\")","v":{"$error":"#REF!"}},{"$f":"AND(#REF!,\"G9dYVAJCXtQ=\")","v":{"$error":"#REF!"}},{"$f":"AND(#REF!,\"G9dYVAJCXtU=\")","v":{"$error":"#REF!"}},{"$f":"AND(#REF!,\"G9dYVAJCXtY=\")","v":{"$error":"#REF!"}},{"$f":"AND(#REF!,\"G9dYVAJCXtc=\")","v":{"$error":"#REF!"}},{"$f":"AND(#REF!,\"G9dYVAJCXtg=\")","v":{"$error":"#REF!"}},{"$f":"AND(#REF!,\"G9dYVAJCXtk=\")","v":{"$error":"#REF!"}},{"$f":"AND(#REF!,\"G9dYVAJCXto=\")","v":{"$error":"#REF!"}},{"$f":"AND(#REF!,\"G9dYVAJCXts=\")","v":{"$error":"#REF!"}},{"$f":"AND(#REF!,\"G9dYVAJCXtw=\")","v":{"$error":"#REF!"}},{"$f":"AND(#REF!,\"G9dYVAJCXt0=\")","v":{"$error":"#REF!"}},{"$f":"AND(#REF!,\"G9dYVAJCXt4=\")","v":{"$error":"#REF!"}},{"$f":"AND(#REF!,\"G9dYVAJCXt8=\")","v":{"$error":"#REF!"}},{"$f":"AND(#REF!,\"G9dYVAJCXuA=\")","v":{"$error":"#REF!"}},{"$f":"AND(#REF!,\"G9dYVAJCXuE=\")","v":{"$error":"#REF!"}},{"$f":"AND(#REF!,\"G9dYVAJCXuI=\")","v":{"$error":"#REF!"}},{"$f":"AND(#REF!,\"G9dYVAJCXuM=\")","v":{"$error":"#REF!"}},{"$f":"AND(#REF!,\"G9dYVAJCXuQ=\")","v":{"$error":"#REF!"}},{"$f":"AND(#REF!,\"G9dYVAJCXuU=\")","v":{"$error":"#REF!"}},{"$f":"AND(#REF!,\"G9dYVAJCXuY=\")","v":{"$error":"#REF!"}},{"$f":"AND(#REF!,\"G9dYVAJCXuc=\")","v":{"$error":"#REF!"}},{"$f":"AND(#REF!,\"G9dYVAJCXug=\")","v":{"$error":"#REF!"}},{"$f":"AND(#REF!,\"G9dYVAJCXuk=\")","v":{"$error":"#REF!"}},{"$f":"AND(#REF!,\"G9dYVAJCXuo=\")","v":{"$error":"#REF!"}},{"$f":"AND(#REF!,\"G9dYVAJCXus=\")","v":{"$error":"#REF!"}},{"$f":"AND(#REF!,\"G9dYVAJCXuw=\")","v":{"$error":"#REF!"}},{"$f":"AND(#REF!,\"G9dYVAJCXu0=\")","v":{"$error":"#REF!"}},{"$f":"AND(#REF!,\"G9dYVAJCXu4=\")","v":{"$error":"#REF!"}},{"$f":"AND(#REF!,\"G9dYVAJCXu8=\")","v":{"$error":"#REF!"}},{"$f":"AND(#REF!,\"G9dYVAJCXvA=\")","v":{"$error":"#REF!"}},{"$f":"AND(#REF!,\"G9dYVAJCXvE=\")","v":{"$error":"#REF!"}},{"$f":"AND(#REF!,\"G9dYVAJCXvI=\")","v":{"$error":"#REF!"}},{"$f":"AND(#REF!,\"G9dYVAJCXvM=\")","v":{"$error":"#REF!"}},{"$f":"AND(#REF!,\"G9dYVAJCXvQ=\")","v":{"$error":"#REF!"}},{"$f":"AND(#REF!,\"G9dYVAJCXvU=\")","v":{"$error":"#REF!"}},{"$f":"AND(#REF!,\"G9dYVAJCXvY=\")","v":{"$error":"#REF!"}},{"$f":"AND(#REF!,\"G9dYVAJCXvc=\")","v":{"$error":"#REF!"}},{"$f":"AND(#REF!,\"G9dYVAJCXvg=\")","v":{"$error":"#REF!"}},{"$f":"AND(#REF!,\"G9dYVAJCXvk=\")","v":{"$error":"#REF!"}},{"$f":"AND(#REF!,\"G9dYVAJCXvo=\")","v":{"$error":"#REF!"}},{"$f":"AND(#REF!,\"G9dYVAJCXvs=\")","v":{"$error":"#REF!"}},{"$f":"AND(#REF!,\"G9dYVAJCXvw=\")","v":{"$error":"#REF!"}},{"$f":"AND(#REF!,\"G9dYVAJCXv0=\")","v":{"$error":"#REF!"}},{"$f":"AND(#REF!,\"G9dYVAJCXv4=\")","v":{"$error":"#REF!"}},{"$f":"AND(#REF!,\"G9dYVAJCXv8=\")","v":{"$error":"#REF!"}}]
[{"$f":"AND(#REF!,\"cA+g3TZ24AA=\")","v":{"$error":"#REF!"}},{"$f":"AND(#REF!,\"cA+g3TZ24AE=\")","v":{"$error":"#REF!"}},{"$f":"AND(#REF!,\"cA+g3TZ24AI=\")","v":{"$error":"#REF!"}},{"$f":"AND(#REF!,\"cA+g3TZ24AM=\")","v":{"$error":"#REF!"}},{"$f":"AND(#REF!,\"cA+g3TZ24AQ=\")","v":{"$error":"#REF!"}},{"$f":"AND(#REF!,\"cA+g3TZ24AU=\")","v":{"$error":"#REF!"}},{"$f":"AND(#REF!,\"cA+g3TZ24AY=\")","v":{"$error":"#REF!"}},{"$f":"AND(#REF!,\"cA+g3TZ24Ac=\")","v":{"$error":"#REF!"}},{"$f":"AND(#REF!,\"cA+g3TZ24Ag=\")","v":{"$error":"#REF!"}},{"$f":"AND(#REF!,\"cA+g3TZ24Ak=\")","v":{"$error":"#REF!"}},{"$f":"AND(#REF!,\"cA+g3TZ24Ao=\")","v":{"$error":"#REF!"}},{"$f":"AND(#REF!,\"cA+g3TZ24As=\")","v":{"$error":"#REF!"}},{"$f":"AND(#REF!,\"cA+g3TZ24Aw=\")","v":{"$error":"#REF!"}},{"$f":"AND(#REF!,\"cA+g3TZ24A0=\")","v":{"$error":"#REF!"}},{"$f":"AND(#REF!,\"cA+g3TZ24A4=\")","v":{"$error":"#REF!"}},{"$f":"AND(#REF!,\"cA+g3TZ24A8=\")","v":{"$error":"#REF!"}},{"$f":"AND(#REF!,\"cA+g3TZ24BA=\")","v":{"$error":"#REF!"}},{"$f":"AND(#REF!,\"cA+g3TZ24BE=\")","v":{"$error":"#REF!"}},{"$f":"AND(#REF!,\"cA+g3TZ24BI=\")","v":{"$error":"#REF!"}},{"$f":"AND(#REF!,\"cA+g3TZ24BM=\")","v":{"$error":"#REF!"}},{"$f":"AND(#REF!,\"cA+g3TZ24BQ=\")","v":{"$error":"#REF!"}},{"$f":"AND(#REF!,\"cA+g3TZ24BU=\")","v":{"$error":"#REF!"}},{"$f":"AND(#REF!,\"cA+g3TZ24BY=\")","v":{"$error":"#REF!"}},{"$f":"AND(#REF!,\"cA+g3TZ24Bc=\")","v":{"$error":"#REF!"}},{"$f":"AND(#REF!,\"cA+g3TZ24Bg=\")","v":{"$error":"#REF!"}},{"$f":"AND(#REF!,\"cA+g3TZ24Bk=\")","v":{"$error":"#REF!"}},{"$f":"AND(#REF!,\"cA+g3TZ24Bo=\")","v":{"$error":"#REF!"}},{"$f":"AND(#REF!,\"cA+g3TZ24Bs=\")","v":{"$error":"#REF!"}},{"$f":"AND(#REF!,\"cA+g3TZ24Bw=\")","v":{"$error":"#REF!"}},{"$f":"AND(#REF!,\"cA+g3TZ24B0=\")","v":{"$error":"#REF!"}},{"$f":"AND(#REF!,\"cA+g3TZ24B4=\")","v":{"$error":"#REF!"}},{"$f":"AND(#REF!,\"cA+g3TZ24B8=\")","v":{"$error":"#REF!"}},{"$f":"AND(#REF!,\"cA+g3TZ24CA=\")","v":{"$error":"#REF!"}},{"$f":"AND(#REF!,\"cA+g3TZ24CE=\")","v":{"$error":"#REF!"}},{"$f":"AND(#REF!,\"cA+g3TZ24CI=\")","v":{"$error":"#REF!"}},{"$f":"AND(#REF!,\"cA+g3TZ24CM=\")","v":{"$error":"#REF!"}},{"$f":"AND(#REF!,\"cA+g3TZ24CQ=\")","v":{"$error":"#REF!"}},{"$f":"AND(#REF!,\"cA+g3TZ24CU=\")","v":{"$error":"#REF!"}},{"$f":"AND(#REF!,\"cA+g3TZ24CY=\")","v":{"$error":"#REF!"}},{"$f":"AND(#REF!,\"cA+g3TZ24Cc=\")","v":{"$error":"#REF!"}},{"$f":"AND(#REF!,\"cA+g3TZ24Cg=\")","v":{"$error":"#REF!"}},{"$f":"AND(#REF!,\"cA+g3TZ24Ck=\")","v":{"$error":"#REF!"}},{"$f":"AND(#REF!,\"cA+g3TZ24Co=\")","v":{"$error":"#REF!"}},{"$f":"AND(#REF!,\"cA+g3TZ24Cs=\")","v":{"$error":"#REF!"}},{"$f":"AND(#REF!,\"cA+g3TZ24Cw=\")","v":{"$error":"#REF!"}},{"$f":"AND(#REF!,\"cA+g3TZ24C0=\")","v":{"$error":"#REF!"}},{"$f":"AND(#REF!,\"cA+g3TZ24C4=\")","v":{"$error":"#REF!"}},{"$f":"AND(#REF!,\"cA+g3TZ24C8=\")","v":{"$error":"#REF!"}},{"$f":"AND(#REF!,\"cA+g3TZ24DA=\")","v":{"$error":"#REF!"}},{"$f":"AND(#REF!,\"cA+g3TZ24DE=\")","v":{"$error":"#REF!"}},{"$f":"AND(#REF!,\"cA+g3TZ24DI=\")","v":{"$error":"#REF!"}},{"$f":"AND(#REF!,\"cA+g3TZ24DM=\")","v":{"$error":"#REF!"}},{"$f":"AND(#REF!,\"cA+g3TZ24DQ=\")","v":{"$error":"#REF!"}},{"$f":"AND(#REF!,\"cA+g3TZ24DU=\")","v":{"$error":"#REF!"}},{"$f":"AND(#REF!,\"cA+g3TZ24DY=\")","v":{"$error":"#REF!"}},{"$f":"AND(#REF!,\"cA+g3TZ24Dc=\")","v":{"$error":"#REF!"}},{"$f":"AND(#REF!,\"cA+g3TZ24Dg=\")","v":{"$error":"#REF!"}},{"$f":"AND(#REF!,\"cA+g3TZ24Dk=\")","v":{"$error":"#REF!"}},{"$f":"AND(#REF!,\"cA+g3TZ24Do=\")","v":{"$error":"#REF!"}},{"$f":"AND(#REF!,\"cA+g3TZ24Ds=\")","v":{"$error":"#REF!"}},{"$f":"AND(#REF!,\"cA+g3TZ24Dw=\")","v":{"$error":"#REF!"}},{"$f":"AND(#REF!,\"cA+g3TZ24D0=\")","v":{"$error":"#REF!"}},{"$f":"AND(#REF!,\"cA+g3TZ24D4=\")","v":{"$error":"#REF!"}},{"$f":"AND(#REF!,\"cA+g3TZ24D8=\")","v":{"$error":"#REF!"}},{"$f":"AND(#REF!,\"cA+g3TZ24EA=\")","v":{"$error":"#REF!"}},{"$f":"AND(#REF!,\"cA+g3TZ24EE=\")","v":{"$error":"#REF!"}},{"$f":"AND(#REF!,\"cA+g3TZ24EI=\")","v":{"$error":"#REF!"}},{"$f":"AND(#REF!,\"cA+g3TZ24EM=\")","v":{"$error":"#REF!"}},{"$f":"AND(#REF!,\"cA+g3TZ24EQ=\")","v":{"$error":"#REF!"}},{"$f":"AND(#REF!,\"cA+g3TZ24EU=\")","v":{"$error":"#REF!"}},{"$f":"AND(#REF!,\"cA+g3TZ24EY=\")","v":{"$error":"#REF!"}},{"$f":"AND(#REF!,\"cA+g3TZ24Ec=\")","v":{"$error":"#REF!"}},{"$f":"AND(#REF!,\"cA+g3TZ24Eg=\")","v":{"$error":"#REF!"}},{"$f":"AND(#REF!,\"cA+g3TZ24Ek=\")","v":{"$error":"#REF!"}},{"$f":"AND(#REF!,\"cA+g3TZ24Eo=\")","v":{"$error":"#REF!"}},{"$f":"AND(#REF!,\"cA+g3TZ24Es=\")","v":{"$error":"#REF!"}},{"$f":"AND(#REF!,\"cA+g3TZ24Ew=\")","v":{"$error":"#REF!"}},{"$f":"AND(#REF!,\"cA+g3TZ24E0=\")","v":{"$error":"#REF!"}},{"$f":"AND(#REF!,\"cA+g3TZ24E4=\")","v":{"$error":"#REF!"}},{"$f":"AND(#REF!,\"cA+g3TZ24E8=\")","v":{"$error":"#REF!"}},{"$f":"AND(#REF!,\"cA+g3TZ24FA=\")","v":{"$error":"#REF!"}},{"$f":"AND(#REF!,\"cA+g3TZ24FE=\")","v":{"$error":"#REF!"}},{"$f":"AND(#REF!,\"cA+g3TZ24FI=\")","v":{"$error":"#REF!"}},{"$f":"AND(#REF!,\"cA+g3TZ24FM=\")","v":{"$error":"#REF!"}},{"$f":"AND(#REF!,\"cA+g3TZ24FQ=\")","v":{"$error":"#REF!"}},{"$f":"AND(#REF!,\"cA+g3TZ24FU=\")","v":{"$error":"#REF!"}},{"$f":"AND(#REF!,\"cA+g3TZ24FY=\")","v":{"$error":"#REF!"}},{"$f":"AND(#REF!,\"cA+g3TZ24Fc=\")","v":{"$error":"#REF!"}},{"$f":"AND(#REF!,\"cA+g3TZ24Fg=\")","v":{"$error":"#REF!"}},{"$f":"AND(#REF!,\"cA+g3TZ24Fk=\")","v":{"$error":"#REF!"}},{"$f":"AND(#REF!,\"cA+g3TZ24Fo=\")","v":{"$error":"#REF!"}},{"$f":"AND(#REF!,\"cA+g3TZ24Fs=\")","v":{"$error":"#REF!"}},{"$f":"AND(#REF!,\"cA+g3TZ24Fw=\")","v":{"$error":"#REF!"}},{"$f":"AND(#REF!,\"cA+g3TZ24F0=\")","v":{"$error":"#REF!"}},{"$f":"AND(#REF!,\"cA+g3TZ24F4=\")","v":{"$error":"#REF!"}},{"$f":"AND(#REF!,\"cA+g3TZ24F8=\")","v":{"$error":"#REF!"}},{"$f":"AND(#REF!,\"cA+g3TZ24GA=\")","v":{"$error":"#REF!"}},{"$f":"AND(#REF!,\"cA+g3TZ24GE=\")","v":{"$error":"#REF!"}},{"$f":"AND(#REF!,\"cA+g3TZ24GI=\")","v":{"$error":"#REF!"}},{"$f":"AND(#REF!,\"cA+g3TZ24GM=\")","v":{"$error":"#REF!"}},{"$f":"AND(#REF!,\"cA+g3TZ24GQ=\")","v":{"$error":"#REF!"}},{"$f":"AND(#REF!,\"cA+g3TZ24GU=\")","v":{"$error":"#REF!"}},{"$f":"AND(#REF!,\"cA+g3TZ24GY=\")","v":{"$error":"#REF!"}},{"$f":"AND(#REF!,\"cA+g3TZ24Gc=\")","v":{"$error":"#REF!"}},{"$f":"AND(#REF!,\"cA+g3TZ24Gg=\")","v":{"$error":"#REF!"}},{"$f":"AND(#REF!,\"cA+g3TZ24Gk=\")","v":{"$error":"#REF!"}},{"$f":"AND(#REF!,\"cA+g3TZ24Go=\")","v":{"$error":"#REF!"}},{"$f":"AND(#REF!,\"cA+g3TZ24Gs=\")","v":{"$error":"#REF!"}},{"$f":"AND(#REF!,\"cA+g3TZ24Gw=\")","v":{"$error":"#REF!"}},{"$f":"AND(#REF!,\"cA+g3TZ24G0=\")","v":{"$error":"#REF!"}},{"$f":"AND(#REF!,\"cA+g3TZ24G4=\")","v":{"$error":"#REF!"}},{"$f":"AND(#REF!,\"cA+g3TZ24G8=\")","v":{"$error":"#REF!"}},{"$f":"AND(#REF!,\"cA+g3TZ24HA=\")","v":{"$error":"#REF!"}},{"$f":"AND(#REF!,\"cA+g3TZ24HE=\")","v":{"$error":"#REF!"}},{"$f":"AND(#REF!,\"cA+g3TZ24HI=\")","v":{"$error":"#REF!"}},{"$f":"AND(#REF!,\"cA+g3TZ24HM=\")","v":{"$error":"#REF!"}},{"$f":"AND(#REF!,\"cA+g3TZ24HQ=\")","v":{"$error":"#REF!"}},{"$f":"AND(#REF!,\"cA+g3TZ24HU=\")","v":{"$error":"#REF!"}},{"$f":"AND(#REF!,\"cA+g3TZ24HY=\")","v":{"$error":"#REF!"}},{"$f":"AND(#REF!,\"cA+g3TZ24Hc=\")","v":{"$error":"#REF!"}},{"$f":"AND(#REF!,\"cA+g3TZ24Hg=\")","v":{"$error":"#REF!"}},{"$f":"AND(#REF!,\"cA+g3TZ24Hk=\")","v":{"$error":"#REF!"}},{"$f":"AND(#REF!,\"cA+g3TZ24Ho=\")","v":{"$error":"#REF!"}},{"$f":"AND(#REF!,\"cA+g3TZ24Hs=\")","v":{"$error":"#REF!"}},{"$f":"AND(#REF!,\"cA+g3TZ24Hw=\")","v":{"$error":"#REF!"}},{"$f":"AND(#REF!,\"cA+g3TZ24H0=\")","v":{"$error":"#REF!"}},{"$f":"AND(#REF!,\"cA+g3TZ24H4=\")","v":{"$error":"#REF!"}},{"$f":"AND(#REF!,\"cA+g3TZ24H8=\")","v":{"$error":"#REF!"}},{"$f":"AND(#REF!,\"cA+g3TZ24IA=\")","v":{"$error":"#REF!"}},{"$f":"AND(#REF!,\"cA+g3TZ24IE=\")","v":{"$error":"#REF!"}},{"$f":"AND(#REF!,\"cA+g3TZ24II=\")","v":{"$error":"#REF!"}},{"$f":"IF(#REF!,\"cA+g3TZ24IM=\",0)","v":{"$error":"#REF!"}},{"$f":"AND(#REF!,\"cA+g3TZ24IQ=\")","v":{"$error":"#REF!"}},{"$f":"AND(#REF!,\"cA+g3TZ24IU=\")","v":{"$error":"#REF!"}},{"$f":"AND(#REF!,\"cA+g3TZ24IY=\")","v":{"$error":"#REF!"}},{"$f":"AND(#REF!,\"cA+g3TZ24Ic=\")","v":{"$error":"#REF!"}},{"$f":"AND(#REF!,\"cA+g3TZ24Ig=\")","v":{"$error":"#REF!"}},{"$f":"AND(#REF!,\"cA+g3TZ24Ik=\")","v":{"$error":"#REF!"}},{"$f":"AND(#REF!,\"cA+g3TZ24Io=\")","v":{"$error":"#REF!"}},{"$f":"AND(#REF!,\"cA+g3TZ24Is=\")","v":{"$error":"#REF!"}},{"$f":"AND(#REF!,\"cA+g3TZ24Iw=\")","v":{"$error":"#REF!"}},{"$f":"AND(#REF!,\"cA+g3TZ24I0=\")","v":{"$error":"#REF!"}},{"$f":"AND(#REF!,\"cA+g3TZ24I4=\")","v":{"$error":"#REF!"}},{"$f":"AND(#REF!,\"cA+g3TZ24I8=\")","v":{"$error":"#REF!"}},{"$f":"AND(#REF!,\"cA+g3TZ24JA=\")","v":{"$error":"#REF!"}},{"$f":"AND(#REF!,\"cA+g3TZ24JE=\")","v":{"$error":"#REF!"}},{"$f":"AND(#REF!,\"cA+g3TZ24JI=\")","v":{"$error":"#REF!"}},{"$f":"AND(#REF!,\"cA+g3TZ24JM=\")","v":{"$error":"#REF!"}},{"$f":"AND(#REF!,\"cA+g3TZ24JQ=\")","v":{"$error":"#REF!"}},{"$f":"AND(#REF!,\"cA+g3TZ24JU=\")","v":{"$error":"#REF!"}},{"$f":"AND(#REF!,\"cA+g3TZ24JY=\")","v":{"$error":"#REF!"}},{"$f":"AND(#REF!,\"cA+g3TZ24Jc=\")","v":{"$error":"#REF!"}},{"$f":"AND(#REF!,\"cA+g3TZ24Jg=\")","v":{"$error":"#REF!"}},{"$f":"AND(#REF!,\"cA+g3TZ24Jk=\")","v":{"$error":"#REF!"}},{"$f":"AND(#REF!,\"cA+g3TZ24Jo=\")","v":{"$error":"#REF!"}},{"$f":"AND(#REF!,\"cA+g3TZ24Js=\")","v":{"$error":"#REF!"}},{"$f":"AND(#REF!,\"cA+g3TZ24Jw=\")","v":{"$error":"#REF!"}},{"$f":"AND(#REF!,\"cA+g3TZ24J0=\")","v":{"$error":"#REF!"}},{"$f":"AND(#REF!,\"cA+g3TZ24J4=\")","v":{"$error":"#REF!"}},{"$f":"AND(#REF!,\"cA+g3TZ24J8=\")","v":{"$error":"#REF!"}},{"$f":"AND(#REF!,\"cA+g3TZ24KA=\")","v":{"$error":"#REF!"}},{"$f":"AND(#REF!,\"cA+g3TZ24KE=\")","v":{"$error":"#REF!"}},{"$f":"AND(#REF!,\"cA+g3TZ24KI=\")","v":{"$error":"#REF!"}},{"$f":"AND(#REF!,\"cA+g3TZ24KM=\")","v":{"$error":"#REF!"}},{"$f":"AND(#REF!,\"cA+g3TZ24KQ=\")","v":{"$error":"#REF!"}},{"$f":"AND(#REF!,\"cA+g3TZ24KU=\")","v":{"$error":"#REF!"}},{"$f":"AND(#REF!,\"cA+g3TZ24KY=\")","v":{"$error":"#REF!"}},{"$f":"AND(#REF!,\"cA+g3TZ24Kc=\")","v":{"$error":"#REF!"}},{"$f":"AND(#REF!,\"cA+g3TZ24Kg=\")","v":{"$error":"#REF!"}},{"$f":"AND(#REF!,\"cA+g3TZ24Kk=\")","v":{"$error":"#REF!"}},{"$f":"AND(#REF!,\"cA+g3TZ24Ko=\")","v":{"$error":"#REF!"}},{"$f":"AND(#REF!,\"cA+g3TZ24Ks=\")","v":{"$error":"#REF!"}},{"$f":"AND(#REF!,\"cA+g3TZ24Kw=\")","v":{"$error":"#REF!"}},{"$f":"AND(#REF!,\"cA+g3TZ24K0=\")","v":{"$error":"#REF!"}},{"$f":"AND(#REF!,\"cA+g3TZ24K4=\")","v":{"$error":"#REF!"}},{"$f":"AND(#REF!,\"cA+g3TZ24K8=\")","v":{"$error":"#REF!"}},{"$f":"AND(#REF!,\"cA+g3TZ24LA=\")","v":{"$error":"#REF!"}},{"$f":"AND(#REF!,\"cA+g3TZ24LE=\")","v":{"$error":"#REF!"}},{"$f":"AND(#REF!,\"cA+g3TZ24LI=\")","v":{"$error":"#REF!"}},{"$f":"AND(#REF!,\"cA+g3TZ24LM=\")","v":{"$error":"#REF!"}},{"$f":"AND(#REF!,\"cA+g3TZ24LQ=\")","v":{"$error":"#REF!"}},{"$f":"AND(#REF!,\"cA+g3TZ24LU=\")","v":{"$error":"#REF!"}},{"$f":"AND(#REF!,\"cA+g3TZ24LY=\")","v":{"$error":"#REF!"}},{"$f":"AND(#REF!,\"cA+g3TZ24Lc=\")","v":{"$error":"#REF!"}},{"$f":"AND(#REF!,\"cA+g3TZ24Lg=\")","v":{"$error":"#REF!"}},{"$f":"AND(#REF!,\"cA+g3TZ24Lk=\")","v":{"$error":"#REF!"}},{"$f":"AND(#REF!,\"cA+g3TZ24Lo=\")","v":{"$error":"#REF!"}},{"$f":"AND(#REF!,\"cA+g3TZ24Ls=\")","v":{"$error":"#REF!"}},{"$f":"AND(#REF!,\"cA+g3TZ24Lw=\")","v":{"$error":"#REF!"}},{"$f":"AND(#REF!,\"cA+g3TZ24L0=\")","v":{"$error":"#REF!"}},{"$f":"AND(#REF!,\"cA+g3TZ24L4=\")","v":{"$error":"#REF!"}},{"$f":"AND(#REF!,\"cA+g3TZ24L8=\")","v":{"$error":"#REF!"}},{"$f":"AND(#REF!,\"cA+g3TZ24MA=\")","v":{"$error":"#REF!"}},{"$f":"AND(#REF!,\"cA+g3TZ24ME=\")","v":{"$error":"#REF!"}},{"$f":"AND(#REF!,\"cA+g3TZ24MI=\")","v":{"$error":"#REF!"}},{"$f":"AND(#REF!,\"cA+g3TZ24MM=\")","v":{"$error":"#REF!"}},{"$f":"AND(#REF!,\"cA+g3TZ24MQ=\")","v":{"$error":"#REF!"}},{"$f":"AND(#REF!,\"cA+g3TZ24MU=\")","v":{"$error":"#REF!"}},{"$f":"AND(#REF!,\"cA+g3TZ24MY=\")","v":{"$error":"#REF!"}},{"$f":"AND(#REF!,\"cA+g3TZ24Mc=\")","v":{"$error":"#REF!"}},{"$f":"AND(#REF!,\"cA+g3TZ24Mg=\")","v":{"$error":"#REF!"}},{"$f":"AND(#REF!,\"cA+g3TZ24Mk=\")","v":{"$error":"#REF!"}},{"$f":"AND(#REF!,\"cA+g3TZ24Mo=\")","v":{"$error":"#REF!"}},{"$f":"AND(#REF!,\"cA+g3TZ24Ms=\")","v":{"$error":"#REF!"}},{"$f":"AND(#REF!,\"cA+g3TZ24Mw=\")","v":{"$error":"#REF!"}},{"$f":"AND(#REF!,\"cA+g3TZ24M0=\")","v":{"$error":"#REF!"}},{"$f":"AND(#REF!,\"cA+g3TZ24M4=\")","v":{"$error":"#REF!"}},{"$f":"AND(#REF!,\"cA+g3TZ24M8=\")","v":{"$error":"#REF!"}},{"$f":"AND(#REF!,\"cA+g3TZ24NA=\")","v":{"$error":"#REF!"}},{"$f":"AND(#REF!,\"cA+g3TZ24NE=\")","v":{"$error":"#REF!"}},{"$f":"AND(#REF!,\"cA+g3TZ24NI=\")","v":{"$error":"#REF!"}},{"$f":"AND(#REF!,\"cA+g3TZ24NM=\")","v":{"$error":"#REF!"}},{"$f":"AND(#REF!,\"cA+g3TZ24NQ=\")","v":{"$error":"#REF!"}},{"$f":"AND(#REF!,\"cA+g3TZ24NU=\")","v":{"$error":"#REF!"}},{"$f":"AND(#REF!,\"cA+g3TZ24NY=\")","v":{"$error":"#REF!"}},{"$f":"AND(#REF!,\"cA+g3TZ24Nc=\")","v":{"$error":"#REF!"}},{"$f":"AND(#REF!,\"cA+g3TZ24Ng=\")","v":{"$error":"#REF!"}},{"$f":"AND(#REF!,\"cA+g3TZ24Nk=\")","v":{"$error":"#REF!"}},{"$f":"AND(#REF!,\"cA+g3TZ24No=\")","v":{"$error":"#REF!"}},{"$f":"AND(#REF!,\"cA+g3TZ24Ns=\")","v":{"$error":"#REF!"}},{"$f":"AND(#REF!,\"cA+g3TZ24Nw=\")","v":{"$error":"#REF!"}},{"$f":"AND(#REF!,\"cA+g3TZ24N0=\")","v":{"$error":"#REF!"}},{"$f":"AND(#REF!,\"cA+g3TZ24N4=\")","v":{"$error":"#REF!"}},{"$f":"AND(#REF!,\"cA+g3TZ24N8=\")","v":{"$error":"#REF!"}},{"$f":"AND(#REF!,\"cA+g3TZ24OA=\")","v":{"$error":"#REF!"}},{"$f":"AND(#REF!,\"cA+g3TZ24OE=\")","v":{"$error":"#REF!"}},{"$f":"AND(#REF!,\"cA+g3TZ24OI=\")","v":{"$error":"#REF!"}},{"$f":"AND(#REF!,\"cA+g3TZ24OM=\")","v":{"$error":"#REF!"}},{"$f":"AND(#REF!,\"cA+g3TZ24OQ=\")","v":{"$error":"#REF!"}},{"$f":"AND(#REF!,\"cA+g3TZ24OU=\")","v":{"$error":"#REF!"}},{"$f":"AND(#REF!,\"cA+g3TZ24OY=\")","v":{"$error":"#REF!"}},{"$f":"AND(#REF!,\"cA+g3TZ24Oc=\")","v":{"$error":"#REF!"}},{"$f":"AND(#REF!,\"cA+g3TZ24Og=\")","v":{"$error":"#REF!"}},{"$f":"AND(#REF!,\"cA+g3TZ24Ok=\")","v":{"$error":"#REF!"}},{"$f":"AND(#REF!,\"cA+g3TZ24Oo=\")","v":{"$error":"#REF!"}},{"$f":"AND(#REF!,\"cA+g3TZ24Os=\")","v":{"$error":"#REF!"}},{"$f":"AND(#REF!,\"cA+g3TZ24Ow=\")","v":{"$error":"#REF!"}},{"$f":"AND(#REF!,\"cA+g3TZ24O0=\")","v":{"$error":"#REF!"}},{"$f":"AND(#REF!,\"cA+g3TZ24O4=\")","v":{"$error":"#REF!"}},{"$f":"AND(#REF!,\"cA+g3TZ24O8=\")","v":{"$error":"#REF!"}},{"$f":"AND(#REF!,\"cA+g3TZ24PA=\")","v":{"$error":"#REF!"}},{"$f":"AND(#REF!,\"cA+g3TZ24PE=\")","v":{"$error":"#REF!"}},{"$f":"AND(#REF!,\"cA+g3TZ24PI=\")","v":{"$error":"#REF!"}},{"$f":"AND(#REF!,\"cA+g3TZ24PM=\")","v":{"$error":"#REF!"}},{"$f":"AND(#REF!,\"cA+g3TZ24PQ=\")","v":{"$error":"#REF!"}},{"$f":"AND(#REF!,\"cA+g3TZ24PU=\")","v":{"$error":"#REF!"}},{"$f":"AND(#REF!,\"cA+g3TZ24PY=\")","v":{"$error":"#REF!"}},{"$f":"AND(#REF!,\"cA+g3TZ24Pc=\")","v":{"$error":"#REF!"}},{"$f":"AND(#REF!,\"cA+g3TZ24Pg=\")","v":{"$error":"#REF!"}},{"$f":"AND(#REF!,\"cA+g3TZ24Pk=\")","v":{"$error":"#REF!"}},{"$f":"AND(#REF!,\"cA+g3TZ24Po=\")","v":{"$error":"#REF!"}},{"$f":"AND(#REF!,\"cA+g3TZ24Ps=\")","v":{"$error":"#REF!"}},{"$f":"AND(#REF!,\"cA+g3TZ24Pw=\")","v":{"$error":"#REF!"}},{"$f":"AND(#REF!,\"cA+g3TZ24P0=\")","v":{"$error":"#REF!"}},{"$f":"AND(#REF!,\"cA+g3TZ24P4=\")","v":{"$error":"#REF!"}},{"$f":"AND(#REF!,\"cA+g3TZ24P8=\")","v":{"$error":"#REF!"}}]
[{"$f":"AND(#REF!,\"IMpqQ1FzrwA=\")","v":{"$error":"#REF!"}},{"$f":"AND(#REF!,\"IMpqQ1FzrwE=\")","v":{"$error":"#REF!"}},{"$f":"AND(#REF!,\"IMpqQ1FzrwI=\")","v":{"$error":"#REF!"}},{"$f":"AND(#REF!,\"IMpqQ1FzrwM=\")","v":{"$error":"#REF!"}},{"$f":"AND(#REF!,\"IMpqQ1FzrwQ=\")","v":{"$error":"#REF!"}},{"$f":"AND(#REF!,\"IMpqQ1FzrwU=\")","v":{"$error":"#REF!"}},{"$f":"AND(#REF!,\"IMpqQ1FzrwY=\")","v":{"$error":"#REF!"}},{"$f":"AND(#REF!,\"IMpqQ1Fzrwc=\")","v":{"$error":"#REF!"}},{"$f":"AND(#REF!,\"IMpqQ1Fzrwg=\")","v":{"$error":"#REF!"}},{"$f":"AND(#REF!,\"IMpqQ1Fzrwk=\")","v":{"$error":"#REF!"}},{"$f":"AND(#REF!,\"IMpqQ1Fzrwo=\")","v":{"$error":"#REF!"}},{"$f":"AND(#REF!,\"IMpqQ1Fzrws=\")","v":{"$error":"#REF!"}},{"$f":"AND(#REF!,\"IMpqQ1Fzrww=\")","v":{"$error":"#REF!"}},{"$f":"AND(#REF!,\"IMpqQ1Fzrw0=\")","v":{"$error":"#REF!"}},{"$f":"AND(#REF!,\"IMpqQ1Fzrw4=\")","v":{"$error":"#REF!"}},{"$f":"AND(#REF!,\"IMpqQ1Fzrw8=\")","v":{"$error":"#REF!"}},{"$f":"AND(#REF!,\"IMpqQ1FzrxA=\")","v":{"$error":"#REF!"}},{"$f":"AND(#REF!,\"IMpqQ1FzrxE=\")","v":{"$error":"#REF!"}},{"$f":"AND(#REF!,\"IMpqQ1FzrxI=\")","v":{"$error":"#REF!"}},{"$f":"AND(#REF!,\"IMpqQ1FzrxM=\")","v":{"$error":"#REF!"}},{"$f":"AND(#REF!,\"IMpqQ1FzrxQ=\")","v":{"$error":"#REF!"}},{"$f":"AND(#REF!,\"IMpqQ1FzrxU=\")","v":{"$error":"#REF!"}},{"$f":"AND(#REF!,\"IMpqQ1FzrxY=\")","v":{"$error":"#REF!"}},{"$f":"AND(#REF!,\"IMpqQ1Fzrxc=\")","v":{"$error":"#REF!"}},{"$f":"AND(#REF!,\"IMpqQ1Fzrxg=\")","v":{"$error":"#REF!"}},{"$f":"AND(#REF!,\"IMpqQ1Fzrxk=\")","v":{"$error":"#REF!"}},{"$f":"AND(#REF!,\"IMpqQ1Fzrxo=\")","v":{"$error":"#REF!"}},{"$f":"AND(#REF!,\"IMpqQ1Fzrxs=\")","v":{"$error":"#REF!"}},{"$f":"AND(#REF!,\"IMpqQ1Fzrxw=\")","v":{"$error":"#REF!"}},{"$f":"AND(#REF!,\"IMpqQ1Fzrx0=\")","v":{"$error":"#REF!"}},{"$f":"AND(#REF!,\"IMpqQ1Fzrx4=\")","v":{"$error":"#REF!"}},{"$f":"AND(#REF!,\"IMpqQ1Fzrx8=\")","v":{"$error":"#REF!"}},{"$f":"AND(#REF!,\"IMpqQ1FzryA=\")","v":{"$error":"#REF!"}},{"$f":"AND(#REF!,\"IMpqQ1FzryE=\")","v":{"$error":"#REF!"}},{"$f":"AND(#REF!,\"IMpqQ1FzryI=\")","v":{"$error":"#REF!"}},{"$f":"AND(#REF!,\"IMpqQ1FzryM=\")","v":{"$error":"#REF!"}},{"$f":"AND(#REF!,\"IMpqQ1FzryQ=\")","v":{"$error":"#REF!"}},{"$f":"AND(#REF!,\"IMpqQ1FzryU=\")","v":{"$error":"#REF!"}},{"$f":"AND(#REF!,\"IMpqQ1FzryY=\")","v":{"$error":"#REF!"}},{"$f":"AND(#REF!,\"IMpqQ1Fzryc=\")","v":{"$error":"#REF!"}},{"$f":"AND(#REF!,\"IMpqQ1Fzryg=\")","v":{"$error":"#REF!"}},{"$f":"AND(#REF!,\"IMpqQ1Fzryk=\")","v":{"$error":"#REF!"}},{"$f":"AND(#REF!,\"IMpqQ1Fzryo=\")","v":{"$error":"#REF!"}},{"$f":"AND(#REF!,\"IMpqQ1Fzrys=\")","v":{"$error":"#REF!"}},{"$f":"AND(#REF!,\"IMpqQ1Fzryw=\")","v":{"$error":"#REF!"}},{"$f":"AND(#REF!,\"IMpqQ1Fzry0=\")","v":{"$error":"#REF!"}},{"$f":"AND(#REF!,\"IMpqQ1Fzry4=\")","v":{"$error":"#REF!"}},{"$f":"AND(#REF!,\"IMpqQ1Fzry8=\")","v":{"$error":"#REF!"}},{"$f":"AND(#REF!,\"IMpqQ1FzrzA=\")","v":{"$error":"#REF!"}},{"$f":"AND(#REF!,\"IMpqQ1FzrzE=\")","v":{"$error":"#REF!"}},{"$f":"AND(#REF!,\"IMpqQ1FzrzI=\")","v":{"$error":"#REF!"}},{"$f":"AND(#REF!,\"IMpqQ1FzrzM=\")","v":{"$error":"#REF!"}},{"$f":"AND(#REF!,\"IMpqQ1FzrzQ=\")","v":{"$error":"#REF!"}},{"$f":"AND(#REF!,\"IMpqQ1FzrzU=\")","v":{"$error":"#REF!"}},{"$f":"AND(#REF!,\"IMpqQ1FzrzY=\")","v":{"$error":"#REF!"}},{"$f":"AND(#REF!,\"IMpqQ1Fzrzc=\")","v":{"$error":"#REF!"}},{"$f":"AND(#REF!,\"IMpqQ1Fzrzg=\")","v":{"$error":"#REF!"}},{"$f":"AND(#REF!,\"IMpqQ1Fzrzk=\")","v":{"$error":"#REF!"}},{"$f":"AND(#REF!,\"IMpqQ1Fzrzo=\")","v":{"$error":"#REF!"}},{"$f":"AND(#REF!,\"IMpqQ1Fzrzs=\")","v":{"$error":"#REF!"}},{"$f":"AND(#REF!,\"IMpqQ1Fzrzw=\")","v":{"$error":"#REF!"}},{"$f":"AND(#REF!,\"IMpqQ1Fzrz0=\")","v":{"$error":"#REF!"}},{"$f":"AND(#REF!,\"IMpqQ1Fzrz4=\")","v":{"$error":"#REF!"}},{"$f":"AND(#REF!,\"IMpqQ1Fzrz8=\")","v":{"$error":"#REF!"}},{"$f":"AND(#REF!,\"IMpqQ1Fzr0A=\")","v":{"$error":"#REF!"}},{"$f":"AND(#REF!,\"IMpqQ1Fzr0E=\")","v":{"$error":"#REF!"}},{"$f":"AND(#REF!,\"IMpqQ1Fzr0I=\")","v":{"$error":"#REF!"}},{"$f":"AND(#REF!,\"IMpqQ1Fzr0M=\")","v":{"$error":"#REF!"}},{"$f":"AND(#REF!,\"IMpqQ1Fzr0Q=\")","v":{"$error":"#REF!"}},{"$f":"AND(#REF!,\"IMpqQ1Fzr0U=\")","v":{"$error":"#REF!"}},{"$f":"AND(#REF!,\"IMpqQ1Fzr0Y=\")","v":{"$error":"#REF!"}},{"$f":"AND(#REF!,\"IMpqQ1Fzr0c=\")","v":{"$error":"#REF!"}},{"$f":"AND(#REF!,\"IMpqQ1Fzr0g=\")","v":{"$error":"#REF!"}},{"$f":"AND(#REF!,\"IMpqQ1Fzr0k=\")","v":{"$error":"#REF!"}},{"$f":"IF(#REF!,\"IMpqQ1Fzr0o=\",0)","v":{"$error":"#REF!"}},{"$f":"AND(#REF!,\"IMpqQ1Fzr0s=\")","v":{"$error":"#REF!"}},{"$f":"AND(#REF!,\"IMpqQ1Fzr0w=\")","v":{"$error":"#REF!"}},{"$f":"AND(#REF!,\"IMpqQ1Fzr00=\")","v":{"$error":"#REF!"}},{"$f":"AND(#REF!,\"IMpqQ1Fzr04=\")","v":{"$error":"#REF!"}},{"$f":"AND(#REF!,\"IMpqQ1Fzr08=\")","v":{"$error":"#REF!"}},{"$f":"AND(#REF!,\"IMpqQ1Fzr1A=\")","v":{"$error":"#REF!"}},{"$f":"AND(#REF!,\"IMpqQ1Fzr1E=\")","v":{"$error":"#REF!"}},{"$f":"AND(#REF!,\"IMpqQ1Fzr1I=\")","v":{"$error":"#REF!"}},{"$f":"AND(#REF!,\"IMpqQ1Fzr1M=\")","v":{"$error":"#REF!"}},{"$f":"AND(#REF!,\"IMpqQ1Fzr1Q=\")","v":{"$error":"#REF!"}},{"$f":"AND(#REF!,\"IMpqQ1Fzr1U=\")","v":{"$error":"#REF!"}},{"$f":"AND(#REF!,\"IMpqQ1Fzr1Y=\")","v":{"$error":"#REF!"}},{"$f":"AND(#REF!,\"IMpqQ1Fzr1c=\")","v":{"$error":"#REF!"}},{"$f":"AND(#REF!,\"IMpqQ1Fzr1g=\")","v":{"$error":"#REF!"}},{"$f":"AND(#REF!,\"IMpqQ1Fzr1k=\")","v":{"$error":"#REF!"}},{"$f":"AND(#REF!,\"IMpqQ1Fzr1o=\")","v":{"$error":"#REF!"}},{"$f":"AND(#REF!,\"IMpqQ1Fzr1s=\")","v":{"$error":"#REF!"}},{"$f":"AND(#REF!,\"IMpqQ1Fzr1w=\")","v":{"$error":"#REF!"}},{"$f":"AND(#REF!,\"IMpqQ1Fzr10=\")","v":{"$error":"#REF!"}},{"$f":"AND(#REF!,\"IMpqQ1Fzr14=\")","v":{"$error":"#REF!"}},{"$f":"AND(#REF!,\"IMpqQ1Fzr18=\")","v":{"$error":"#REF!"}},{"$f":"AND(#REF!,\"IMpqQ1Fzr2A=\")","v":{"$error":"#REF!"}},{"$f":"AND(#REF!,\"IMpqQ1Fzr2E=\")","v":{"$error":"#REF!"}},{"$f":"AND(#REF!,\"IMpqQ1Fzr2I=\")","v":{"$error":"#REF!"}},{"$f":"AND(#REF!,\"IMpqQ1Fzr2M=\")","v":{"$error":"#REF!"}},{"$f":"AND(#REF!,\"IMpqQ1Fzr2Q=\")","v":{"$error":"#REF!"}},{"$f":"AND(#REF!,\"IMpqQ1Fzr2U=\")","v":{"$error":"#REF!"}},{"$f":"AND(#REF!,\"IMpqQ1Fzr2Y=\")","v":{"$error":"#REF!"}},{"$f":"AND(#REF!,\"IMpqQ1Fzr2c=\")","v":{"$error":"#REF!"}},{"$f":"AND(#REF!,\"IMpqQ1Fzr2g=\")","v":{"$error":"#REF!"}},{"$f":"AND(#REF!,\"IMpqQ1Fzr2k=\")","v":{"$error":"#REF!"}},{"$f":"AND(#REF!,\"IMpqQ1Fzr2o=\")","v":{"$error":"#REF!"}},{"$f":"AND(#REF!,\"IMpqQ1Fzr2s=\")","v":{"$error":"#REF!"}},{"$f":"AND(#REF!,\"IMpqQ1Fzr2w=\")","v":{"$error":"#REF!"}},{"$f":"AND(#REF!,\"IMpqQ1Fzr20=\")","v":{"$error":"#REF!"}},{"$f":"AND(#REF!,\"IMpqQ1Fzr24=\")","v":{"$error":"#REF!"}},{"$f":"AND(#REF!,\"IMpqQ1Fzr28=\")","v":{"$error":"#REF!"}},{"$f":"AND(#REF!,\"IMpqQ1Fzr3A=\")","v":{"$error":"#REF!"}},{"$f":"AND(#REF!,\"IMpqQ1Fzr3E=\")","v":{"$error":"#REF!"}},{"$f":"AND(#REF!,\"IMpqQ1Fzr3I=\")","v":{"$error":"#REF!"}},{"$f":"AND(#REF!,\"IMpqQ1Fzr3M=\")","v":{"$error":"#REF!"}},{"$f":"AND(#REF!,\"IMpqQ1Fzr3Q=\")","v":{"$error":"#REF!"}},{"$f":"AND(#REF!,\"IMpqQ1Fzr3U=\")","v":{"$error":"#REF!"}},{"$f":"AND(#REF!,\"IMpqQ1Fzr3Y=\")","v":{"$error":"#REF!"}},{"$f":"AND(#REF!,\"IMpqQ1Fzr3c=\")","v":{"$error":"#REF!"}},{"$f":"AND(#REF!,\"IMpqQ1Fzr3g=\")","v":{"$error":"#REF!"}},{"$f":"AND(#REF!,\"IMpqQ1Fzr3k=\")","v":{"$error":"#REF!"}},{"$f":"AND(#REF!,\"IMpqQ1Fzr3o=\")","v":{"$error":"#REF!"}},{"$f":"AND(#REF!,\"IMpqQ1Fzr3s=\")","v":{"$error":"#REF!"}},{"$f":"AND(#REF!,\"IMpqQ1Fzr3w=\")","v":{"$error":"#REF!"}},{"$f":"AND(#REF!,\"IMpqQ1Fzr30=\")","v":{"$error":"#REF!"}},{"$f":"AND(#REF!,\"IMpqQ1Fzr34=\")","v":{"$error":"#REF!"}},{"$f":"AND(#REF!,\"IMpqQ1Fzr38=\")","v":{"$error":"#REF!"}},{"$f":"AND(#REF!,\"IMpqQ1Fzr4A=\")","v":{"$error":"#REF!"}},{"$f":"AND(#REF!,\"IMpqQ1Fzr4E=\")","v":{"$error":"#REF!"}},{"$f":"AND(#REF!,\"IMpqQ1Fzr4I=\")","v":{"$error":"#REF!"}},{"$f":"AND(#REF!,\"IMpqQ1Fzr4M=\")","v":{"$error":"#REF!"}},{"$f":"AND(#REF!,\"IMpqQ1Fzr4Q=\")","v":{"$error":"#REF!"}},{"$f":"AND(#REF!,\"IMpqQ1Fzr4U=\")","v":{"$error":"#REF!"}},{"$f":"AND(#REF!,\"IMpqQ1Fzr4Y=\")","v":{"$error":"#REF!"}},{"$f":"AND(#REF!,\"IMpqQ1Fzr4c=\")","v":{"$error":"#REF!"}},{"$f":"AND(#REF!,\"IMpqQ1Fzr4g=\")","v":{"$error":"#REF!"}},{"$f":"AND(#REF!,\"IMpqQ1Fzr4k=\")","v":{"$error":"#REF!"}},{"$f":"AND(#REF!,\"IMpqQ1Fzr4o=\")","v":{"$error":"#REF!"}},{"$f":"AND(#REF!,\"IMpqQ1Fzr4s=\")","v":{"$error":"#REF!"}},{"$f":"AND(#REF!,\"IMpqQ1Fzr4w=\")","v":{"$error":"#REF!"}},{"$f":"AND(#REF!,\"IMpqQ1Fzr40=\")","v":{"$error":"#REF!"}},{"$f":"AND(#REF!,\"IMpqQ1Fzr44=\")","v":{"$error":"#REF!"}},{"$f":"AND(#REF!,\"IMpqQ1Fzr48=\")","v":{"$error":"#REF!"}},{"$f":"AND(#REF!,\"IMpqQ1Fzr5A=\")","v":{"$error":"#REF!"}},{"$f":"AND(#REF!,\"IMpqQ1Fzr5E=\")","v":{"$error":"#REF!"}},{"$f":"AND(#REF!,\"IMpqQ1Fzr5I=\")","v":{"$error":"#REF!"}},{"$f":"AND(#REF!,\"IMpqQ1Fzr5M=\")","v":{"$error":"#REF!"}},{"$f":"AND(#REF!,\"IMpqQ1Fzr5Q=\")","v":{"$error":"#REF!"}},{"$f":"AND(#REF!,\"IMpqQ1Fzr5U=\")","v":{"$error":"#REF!"}},{"$f":"AND(#REF!,\"IMpqQ1Fzr5Y=\")","v":{"$error":"#REF!"}},{"$f":"AND(#REF!,\"IMpqQ1Fzr5c=\")","v":{"$error":"#REF!"}},{"$f":"AND(#REF!,\"IMpqQ1Fzr5g=\")","v":{"$error":"#REF!"}},{"$f":"AND(#REF!,\"IMpqQ1Fzr5k=\")","v":{"$error":"#REF!"}},{"$f":"AND(#REF!,\"IMpqQ1Fzr5o=\")","v":{"$error":"#REF!"}},{"$f":"AND(#REF!,\"IMpqQ1Fzr5s=\")","v":{"$error":"#REF!"}},{"$f":"AND(#REF!,\"IMpqQ1Fzr5w=\")","v":{"$error":"#REF!"}},{"$f":"AND(#REF!,\"IMpqQ1Fzr50=\")","v":{"$error":"#REF!"}},{"$f":"AND(#REF!,\"IMpqQ1Fzr54=\")","v":{"$error":"#REF!"}},{"$f":"AND(#REF!,\"IMpqQ1Fzr58=\")","v":{"$error":"#REF!"}},{"$f":"AND(#REF!,\"IMpqQ1Fzr6A=\")","v":{"$error":"#REF!"}},{"$f":"AND(#REF!,\"IMpqQ1Fzr6E=\")","v":{"$error":"#REF!"}},{"$f":"AND(#REF!,\"IMpqQ1Fzr6I=\")","v":{"$error":"#REF!"}},{"$f":"AND(#REF!,\"IMpqQ1Fzr6M=\")","v":{"$error":"#REF!"}},{"$f":"AND(#REF!,\"IMpqQ1Fzr6Q=\")","v":{"$error":"#REF!"}},{"$f":"AND(#REF!,\"IMpqQ1Fzr6U=\")","v":{"$error":"#REF!"}},{"$f":"AND(#REF!,\"IMpqQ1Fzr6Y=\")","v":{"$error":"#REF!"}},{"$f":"AND(#REF!,\"IMpqQ1Fzr6c=\")","v":{"$error":"#REF!"}},{"$f":"AND(#REF!,\"IMpqQ1Fzr6g=\")","v":{"$error":"#REF!"}},{"$f":"AND(#REF!,\"IMpqQ1Fzr6k=\")","v":{"$error":"#REF!"}},{"$f":"AND(#REF!,\"IMpqQ1Fzr6o=\")","v":{"$error":"#REF!"}},{"$f":"AND(#REF!,\"IMpqQ1Fzr6s=\")","v":{"$error":"#REF!"}},{"$f":"AND(#REF!,\"IMpqQ1Fzr6w=\")","v":{"$error":"#REF!"}},{"$f":"AND(#REF!,\"IMpqQ1Fzr60=\")","v":{"$error":"#REF!"}},{"$f":"AND(#REF!,\"IMpqQ1Fzr64=\")","v":{"$error":"#REF!"}},{"$f":"AND(#REF!,\"IMpqQ1Fzr68=\")","v":{"$error":"#REF!"}},{"$f":"AND(#REF!,\"IMpqQ1Fzr7A=\")","v":{"$error":"#REF!"}},{"$f":"AND(#REF!,\"IMpqQ1Fzr7E=\")","v":{"$error":"#REF!"}},{"$f":"AND(#REF!,\"IMpqQ1Fzr7I=\")","v":{"$error":"#REF!"}},{"$f":"AND(#REF!,\"IMpqQ1Fzr7M=\")","v":{"$error":"#REF!"}},{"$f":"AND(#REF!,\"IMpqQ1Fzr7Q=\")","v":{"$error":"#REF!"}},{"$f":"AND(#REF!,\"IMpqQ1Fzr7U=\")","v":{"$error":"#REF!"}},{"$f":"AND(#REF!,\"IMpqQ1Fzr7Y=\")","v":{"$error":"#REF!"}},{"$f":"AND(#REF!,\"IMpqQ1Fzr7c=\")","v":{"$error":"#REF!"}},{"$f":"AND(#REF!,\"IMpqQ1Fzr7g=\")","v":{"$error":"#REF!"}},{"$f":"AND(#REF!,\"IMpqQ1Fzr7k=\")","v":{"$error":"#REF!"}},{"$f":"AND(#REF!,\"IMpqQ1Fzr7o=\")","v":{"$error":"#REF!"}},{"$f":"AND(#REF!,\"IMpqQ1Fzr7s=\")","v":{"$error":"#REF!"}},{"$f":"AND(#REF!,\"IMpqQ1Fzr7w=\")","v":{"$error":"#REF!"}},{"$f":"AND(#REF!,\"IMpqQ1Fzr70=\")","v":{"$error":"#REF!"}},{"$f":"AND(#REF!,\"IMpqQ1Fzr74=\")","v":{"$error":"#REF!"}},{"$f":"AND(#REF!,\"IMpqQ1Fzr78=\")","v":{"$error":"#REF!"}},{"$f":"AND(#REF!,\"IMpqQ1Fzr8A=\")","v":{"$error":"#REF!"}},{"$f":"AND(#REF!,\"IMpqQ1Fzr8E=\")","v":{"$error":"#REF!"}},{"$f":"AND(#REF!,\"IMpqQ1Fzr8I=\")","v":{"$error":"#REF!"}},{"$f":"AND(#REF!,\"IMpqQ1Fzr8M=\")","v":{"$error":"#REF!"}},{"$f":"AND(#REF!,\"IMpqQ1Fzr8Q=\")","v":{"$error":"#REF!"}},{"$f":"AND(#REF!,\"IMpqQ1Fzr8U=\")","v":{"$error":"#REF!"}},{"$f":"AND(#REF!,\"IMpqQ1Fzr8Y=\")","v":{"$error":"#REF!"}},{"$f":"AND(#REF!,\"IMpqQ1Fzr8c=\")","v":{"$error":"#REF!"}},{"$f":"AND(#REF!,\"IMpqQ1Fzr8g=\")","v":{"$error":"#REF!"}},{"$f":"AND(#REF!,\"IMpqQ1Fzr8k=\")","v":{"$error":"#REF!"}},{"$f":"AND(#REF!,\"IMpqQ1Fzr8o=\")","v":{"$error":"#REF!"}},{"$f":"AND(#REF!,\"IMpqQ1Fzr8s=\")","v":{"$error":"#REF!"}},{"$f":"AND(#REF!,\"IMpqQ1Fzr8w=\")","v":{"$error":"#REF!"}},{"$f":"AND(#REF!,\"IMpqQ1Fzr80=\")","v":{"$error":"#REF!"}},{"$f":"AND(#REF!,\"IMpqQ1Fzr84=\")","v":{"$error":"#REF!"}},{"$f":"AND(#REF!,\"IMpqQ1Fzr88=\")","v":{"$error":"#REF!"}},{"$f":"AND(#REF!,\"IMpqQ1Fzr9A=\")","v":{"$error":"#REF!"}},{"$f":"AND(#REF!,\"IMpqQ1Fzr9E=\")","v":{"$error":"#REF!"}},{"$f":"AND(#REF!,\"IMpqQ1Fzr9I=\")","v":{"$error":"#REF!"}},{"$f":"AND(#REF!,\"IMpqQ1Fzr9M=\")","v":{"$error":"#REF!"}},{"$f":"AND(#REF!,\"IMpqQ1Fzr9Q=\")","v":{"$error":"#REF!"}},{"$f":"AND(#REF!,\"IMpqQ1Fzr9U=\")","v":{"$error":"#REF!"}},{"$f":"AND(#REF!,\"IMpqQ1Fzr9Y=\")","v":{"$error":"#REF!"}},{"$f":"AND(#REF!,\"IMpqQ1Fzr9c=\")","v":{"$error":"#REF!"}},{"$f":"AND(#REF!,\"IMpqQ1Fzr9g=\")","v":{"$error":"#REF!"}},{"$f":"AND(#REF!,\"IMpqQ1Fzr9k=\")","v":{"$error":"#REF!"}},{"$f":"AND(#REF!,\"IMpqQ1Fzr9o=\")","v":{"$error":"#REF!"}},{"$f":"AND(#REF!,\"IMpqQ1Fzr9s=\")","v":{"$error":"#REF!"}},{"$f":"AND(#REF!,\"IMpqQ1Fzr9w=\")","v":{"$error":"#REF!"}},{"$f":"AND(#REF!,\"IMpqQ1Fzr90=\")","v":{"$error":"#REF!"}},{"$f":"AND(#REF!,\"IMpqQ1Fzr94=\")","v":{"$error":"#REF!"}},{"$f":"AND(#REF!,\"IMpqQ1Fzr98=\")","v":{"$error":"#REF!"}},{"$f":"AND(#REF!,\"IMpqQ1Fzr+A=\")","v":{"$error":"#REF!"}},{"$f":"AND(#REF!,\"IMpqQ1Fzr+E=\")","v":{"$error":"#REF!"}},{"$f":"AND(#REF!,\"IMpqQ1Fzr+I=\")","v":{"$error":"#REF!"}},{"$f":"AND(#REF!,\"IMpqQ1Fzr+M=\")","v":{"$error":"#REF!"}},{"$f":"AND(#REF!,\"IMpqQ1Fzr+Q=\")","v":{"$error":"#REF!"}},{"$f":"AND(#REF!,\"IMpqQ1Fzr+U=\")","v":{"$error":"#REF!"}},{"$f":"AND(#REF!,\"IMpqQ1Fzr+Y=\")","v":{"$error":"#REF!"}},{"$f":"AND(#REF!,\"IMpqQ1Fzr+c=\")","v":{"$error":"#REF!"}},{"$f":"AND(#REF!,\"IMpqQ1Fzr+g=\")","v":{"$error":"#REF!"}},{"$f":"AND(#REF!,\"IMpqQ1Fzr+k=\")","v":{"$error":"#REF!"}},{"$f":"AND(#REF!,\"IMpqQ1Fzr+o=\")","v":{"$error":"#REF!"}},{"$f":"AND(#REF!,\"IMpqQ1Fzr+s=\")","v":{"$error":"#REF!"}},{"$f":"AND(#REF!,\"IMpqQ1Fzr+w=\")","v":{"$error":"#REF!"}},{"$f":"AND(#REF!,\"IMpqQ1Fzr+0=\")","v":{"$error":"#REF!"}},{"$f":"AND(#REF!,\"IMpqQ1Fzr+4=\")","v":{"$error":"#REF!"}},{"$f":"AND(#REF!,\"IMpqQ1Fzr+8=\")","v":{"$error":"#REF!"}},{"$f":"AND(#REF!,\"IMpqQ1Fzr/A=\")","v":{"$error":"#REF!"}},{"$f":"AND(#REF!,\"IMpqQ1Fzr/E=\")","v":{"$error":"#REF!"}},{"$f":"AND(#REF!,\"IMpqQ1Fzr/I=\")","v":{"$error":"#REF!"}},{"$f":"AND(#REF!,\"IMpqQ1Fzr/M=\")","v":{"$error":"#REF!"}},{"$f":"AND(#REF!,\"IMpqQ1Fzr/Q=\")","v":{"$error":"#REF!"}},{"$f":"AND(#REF!,\"IMpqQ1Fzr/U=\")","v":{"$error":"#REF!"}},{"$f":"AND(#REF!,\"IMpqQ1Fzr/Y=\")","v":{"$error":"#REF!"}},{"$f":"AND(#REF!,\"IMpqQ1Fzr/c=\")","v":{"$error":"#REF!"}},{"$f":"AND(#REF!,\"IMpqQ1Fzr/g=\")","v":{"$error":"#REF!"}},{"$f":"AND(#REF!,\"IMpqQ1Fzr/k=\")","v":{"$error":"#REF!"}},{"$f":"AND(#REF!,\"IMpqQ1Fzr/o=\")","v":{"$error":"#REF!"}},{"$f":"AND(#REF!,\"IMpqQ1Fzr/s=\")","v":{"$error":"#REF!"}},{"$f":"AND(#REF!,\"IMpqQ1Fzr/w=\")","v":{"$error":"#REF!"}},{"$f":"AND(#REF!,\"IMpqQ1Fzr/0=\")","v":{"$error":"#REF!"}},{"$f":"AND(#REF!,\"IMpqQ1Fzr/4=\")","v":{"$error":"#REF!"}},{"$f":"AND(#REF!,\"IMpqQ1Fzr/8=\")","v":{"$error":"#REF!"}}]
[{"$f":"AND(#REF!,\"LI2qOyle6wA=\")","v":{"$error":"#REF!"}},{"$f":"AND(#REF!,\"LI2qOyle6wE=\")","v":{"$error":"#REF!"}},{"$f":"AND(#REF!,\"LI2qOyle6wI=\")","v":{"$error":"#REF!"}},{"$f":"AND(#REF!,\"LI2qOyle6wM=\")","v":{"$error":"#REF!"}},{"$f":"AND(#REF!,\"LI2qOyle6wQ=\")","v":{"$error":"#REF!"}},{"$f":"AND(#REF!,\"LI2qOyle6wU=\")","v":{"$error":"#REF!"}},{"$f":"AND(#REF!,\"LI2qOyle6wY=\")","v":{"$error":"#REF!"}},{"$f":"AND(#REF!,\"LI2qOyle6wc=\")","v":{"$error":"#REF!"}},{"$f":"AND(#REF!,\"LI2qOyle6wg=\")","v":{"$error":"#REF!"}},{"$f":"AND(#REF!,\"LI2qOyle6wk=\")","v":{"$error":"#REF!"}},{"$f":"AND(#REF!,\"LI2qOyle6wo=\")","v":{"$error":"#REF!"}},{"$f":"AND(#REF!,\"LI2qOyle6ws=\")","v":{"$error":"#REF!"}},{"$f":"AND(#REF!,\"LI2qOyle6ww=\")","v":{"$error":"#REF!"}},{"$f":"AND(#REF!,\"LI2qOyle6w0=\")","v":{"$error":"#REF!"}},{"$f":"AND(#REF!,\"LI2qOyle6w4=\")","v":{"$error":"#REF!"}},{"$f":"AND(#REF!,\"LI2qOyle6w8=\")","v":{"$error":"#REF!"}},{"$f":"AND(#REF!,\"LI2qOyle6xA=\")","v":{"$error":"#REF!"}},{"$f":"IF(#REF!,\"LI2qOyle6xE=\",0)","v":{"$error":"#REF!"}},{"$f":"AND(#REF!,\"LI2qOyle6xI=\")","v":{"$error":"#REF!"}},{"$f":"AND(#REF!,\"LI2qOyle6xM=\")","v":{"$error":"#REF!"}},{"$f":"AND(#REF!,\"LI2qOyle6xQ=\")","v":{"$error":"#REF!"}},{"$f":"AND(#REF!,\"LI2qOyle6xU=\")","v":{"$error":"#REF!"}},{"$f":"AND(#REF!,\"LI2qOyle6xY=\")","v":{"$error":"#REF!"}},{"$f":"AND(#REF!,\"LI2qOyle6xc=\")","v":{"$error":"#REF!"}},{"$f":"AND(#REF!,\"LI2qOyle6xg=\")","v":{"$error":"#REF!"}},{"$f":"AND(#REF!,\"LI2qOyle6xk=\")","v":{"$error":"#REF!"}},{"$f":"AND(#REF!,\"LI2qOyle6xo=\")","v":{"$error":"#REF!"}},{"$f":"AND(#REF!,\"LI2qOyle6xs=\")","v":{"$error":"#REF!"}},{"$f":"AND(#REF!,\"LI2qOyle6xw=\")","v":{"$error":"#REF!"}},{"$f":"AND(#REF!,\"LI2qOyle6x0=\")","v":{"$error":"#REF!"}},{"$f":"AND(#REF!,\"LI2qOyle6x4=\")","v":{"$error":"#REF!"}},{"$f":"AND(#REF!,\"LI2qOyle6x8=\")","v":{"$error":"#REF!"}},{"$f":"AND(#REF!,\"LI2qOyle6yA=\")","v":{"$error":"#REF!"}},{"$f":"AND(#REF!,\"LI2qOyle6yE=\")","v":{"$error":"#REF!"}},{"$f":"AND(#REF!,\"LI2qOyle6yI=\")","v":{"$error":"#REF!"}},{"$f":"AND(#REF!,\"LI2qOyle6yM=\")","v":{"$error":"#REF!"}},{"$f":"AND(#REF!,\"LI2qOyle6yQ=\")","v":{"$error":"#REF!"}},{"$f":"AND(#REF!,\"LI2qOyle6yU=\")","v":{"$error":"#REF!"}},{"$f":"AND(#REF!,\"LI2qOyle6yY=\")","v":{"$error":"#REF!"}},{"$f":"AND(#REF!,\"LI2qOyle6yc=\")","v":{"$error":"#REF!"}},{"$f":"AND(#REF!,\"LI2qOyle6yg=\")","v":{"$error":"#REF!"}},{"$f":"AND(#REF!,\"LI2qOyle6yk=\")","v":{"$error":"#REF!"}},{"$f":"AND(#REF!,\"LI2qOyle6yo=\")","v":{"$error":"#REF!"}},{"$f":"AND(#REF!,\"LI2qOyle6ys=\")","v":{"$error":"#REF!"}},{"$f":"AND(#REF!,\"LI2qOyle6yw=\")","v":{"$error":"#REF!"}},{"$f":"AND(#REF!,\"LI2qOyle6y0=\")","v":{"$error":"#REF!"}},{"$f":"AND(#REF!,\"LI2qOyle6y4=\")","v":{"$error":"#REF!"}},{"$f":"AND(#REF!,\"LI2qOyle6y8=\")","v":{"$error":"#REF!"}},{"$f":"AND(#REF!,\"LI2qOyle6zA=\")","v":{"$error":"#REF!"}},{"$f":"AND(#REF!,\"LI2qOyle6zE=\")","v":{"$error":"#REF!"}},{"$f":"AND(#REF!,\"LI2qOyle6zI=\")","v":{"$error":"#REF!"}},{"$f":"AND(#REF!,\"LI2qOyle6zM=\")","v":{"$error":"#REF!"}},{"$f":"AND(#REF!,\"LI2qOyle6zQ=\")","v":{"$error":"#REF!"}},{"$f":"AND(#REF!,\"LI2qOyle6zU=\")","v":{"$error":"#REF!"}},{"$f":"AND(#REF!,\"LI2qOyle6zY=\")","v":{"$error":"#REF!"}},{"$f":"AND(#REF!,\"LI2qOyle6zc=\")","v":{"$error":"#REF!"}},{"$f":"AND(#REF!,\"LI2qOyle6zg=\")","v":{"$error":"#REF!"}},{"$f":"AND(#REF!,\"LI2qOyle6zk=\")","v":{"$error":"#REF!"}},{"$f":"AND(#REF!,\"LI2qOyle6zo=\")","v":{"$error":"#REF!"}},{"$f":"AND(#REF!,\"LI2qOyle6zs=\")","v":{"$error":"#REF!"}},{"$f":"AND(#REF!,\"LI2qOyle6zw=\")","v":{"$error":"#REF!"}},{"$f":"AND(#REF!,\"LI2qOyle6z0=\")","v":{"$error":"#REF!"}},{"$f":"AND(#REF!,\"LI2qOyle6z4=\")","v":{"$error":"#REF!"}},{"$f":"AND(#REF!,\"LI2qOyle6z8=\")","v":{"$error":"#REF!"}},{"$f":"AND(#REF!,\"LI2qOyle60A=\")","v":{"$error":"#REF!"}},{"$f":"AND(#REF!,\"LI2qOyle60E=\")","v":{"$error":"#REF!"}},{"$f":"AND(#REF!,\"LI2qOyle60I=\")","v":{"$error":"#REF!"}},{"$f":"AND(#REF!,\"LI2qOyle60M=\")","v":{"$error":"#REF!"}},{"$f":"AND(#REF!,\"LI2qOyle60Q=\")","v":{"$error":"#REF!"}},{"$f":"AND(#REF!,\"LI2qOyle60U=\")","v":{"$error":"#REF!"}},{"$f":"AND(#REF!,\"LI2qOyle60Y=\")","v":{"$error":"#REF!"}},{"$f":"AND(#REF!,\"LI2qOyle60c=\")","v":{"$error":"#REF!"}},{"$f":"AND(#REF!,\"LI2qOyle60g=\")","v":{"$error":"#REF!"}},{"$f":"AND(#REF!,\"LI2qOyle60k=\")","v":{"$error":"#REF!"}},{"$f":"AND(#REF!,\"LI2qOyle60o=\")","v":{"$error":"#REF!"}},{"$f":"AND(#REF!,\"LI2qOyle60s=\")","v":{"$error":"#REF!"}},{"$f":"AND(#REF!,\"LI2qOyle60w=\")","v":{"$error":"#REF!"}},{"$f":"AND(#REF!,\"LI2qOyle600=\")","v":{"$error":"#REF!"}},{"$f":"AND(#REF!,\"LI2qOyle604=\")","v":{"$error":"#REF!"}},{"$f":"AND(#REF!,\"LI2qOyle608=\")","v":{"$error":"#REF!"}},{"$f":"AND(#REF!,\"LI2qOyle61A=\")","v":{"$error":"#REF!"}},{"$f":"AND(#REF!,\"LI2qOyle61E=\")","v":{"$error":"#REF!"}},{"$f":"AND(#REF!,\"LI2qOyle61I=\")","v":{"$error":"#REF!"}},{"$f":"AND(#REF!,\"LI2qOyle61M=\")","v":{"$error":"#REF!"}},{"$f":"AND(#REF!,\"LI2qOyle61Q=\")","v":{"$error":"#REF!"}},{"$f":"AND(#REF!,\"LI2qOyle61U=\")","v":{"$error":"#REF!"}},{"$f":"AND(#REF!,\"LI2qOyle61Y=\")","v":{"$error":"#REF!"}},{"$f":"AND(#REF!,\"LI2qOyle61c=\")","v":{"$error":"#REF!"}},{"$f":"AND(#REF!,\"LI2qOyle61g=\")","v":{"$error":"#REF!"}},{"$f":"AND(#REF!,\"LI2qOyle61k=\")","v":{"$error":"#REF!"}},{"$f":"AND(#REF!,\"LI2qOyle61o=\")","v":{"$error":"#REF!"}},{"$f":"AND(#REF!,\"LI2qOyle61s=\")","v":{"$error":"#REF!"}},{"$f":"AND(#REF!,\"LI2qOyle61w=\")","v":{"$error":"#REF!"}},{"$f":"AND(#REF!,\"LI2qOyle610=\")","v":{"$error":"#REF!"}},{"$f":"AND(#REF!,\"LI2qOyle614=\")","v":{"$error":"#REF!"}},{"$f":"AND(#REF!,\"LI2qOyle618=\")","v":{"$error":"#REF!"}},{"$f":"AND(#REF!,\"LI2qOyle62A=\")","v":{"$error":"#REF!"}},{"$f":"AND(#REF!,\"LI2qOyle62E=\")","v":{"$error":"#REF!"}},{"$f":"AND(#REF!,\"LI2qOyle62I=\")","v":{"$error":"#REF!"}},{"$f":"AND(#REF!,\"LI2qOyle62M=\")","v":{"$error":"#REF!"}},{"$f":"AND(#REF!,\"LI2qOyle62Q=\")","v":{"$error":"#REF!"}},{"$f":"AND(#REF!,\"LI2qOyle62U=\")","v":{"$error":"#REF!"}},{"$f":"AND(#REF!,\"LI2qOyle62Y=\")","v":{"$error":"#REF!"}},{"$f":"AND(#REF!,\"LI2qOyle62c=\")","v":{"$error":"#REF!"}},{"$f":"AND(#REF!,\"LI2qOyle62g=\")","v":{"$error":"#REF!"}},{"$f":"AND(#REF!,\"LI2qOyle62k=\")","v":{"$error":"#REF!"}},{"$f":"AND(#REF!,\"LI2qOyle62o=\")","v":{"$error":"#REF!"}},{"$f":"AND(#REF!,\"LI2qOyle62s=\")","v":{"$error":"#REF!"}},{"$f":"AND(#REF!,\"LI2qOyle62w=\")","v":{"$error":"#REF!"}},{"$f":"AND(#REF!,\"LI2qOyle620=\")","v":{"$error":"#REF!"}},{"$f":"AND(#REF!,\"LI2qOyle624=\")","v":{"$error":"#REF!"}},{"$f":"AND(#REF!,\"LI2qOyle628=\")","v":{"$error":"#REF!"}},{"$f":"AND(#REF!,\"LI2qOyle63A=\")","v":{"$error":"#REF!"}},{"$f":"AND(#REF!,\"LI2qOyle63E=\")","v":{"$error":"#REF!"}},{"$f":"AND(#REF!,\"LI2qOyle63I=\")","v":{"$error":"#REF!"}},{"$f":"AND(#REF!,\"LI2qOyle63M=\")","v":{"$error":"#REF!"}},{"$f":"AND(#REF!,\"LI2qOyle63Q=\")","v":{"$error":"#REF!"}},{"$f":"AND(#REF!,\"LI2qOyle63U=\")","v":{"$error":"#REF!"}},{"$f":"AND(#REF!,\"LI2qOyle63Y=\")","v":{"$error":"#REF!"}},{"$f":"AND(#REF!,\"LI2qOyle63c=\")","v":{"$error":"#REF!"}},{"$f":"AND(#REF!,\"LI2qOyle63g=\")","v":{"$error":"#REF!"}},{"$f":"AND(#REF!,\"LI2qOyle63k=\")","v":{"$error":"#REF!"}},{"$f":"AND(#REF!,\"LI2qOyle63o=\")","v":{"$error":"#REF!"}},{"$f":"AND(#REF!,\"LI2qOyle63s=\")","v":{"$error":"#REF!"}},{"$f":"AND(#REF!,\"LI2qOyle63w=\")","v":{"$error":"#REF!"}},{"$f":"AND(#REF!,\"LI2qOyle630=\")","v":{"$error":"#REF!"}},{"$f":"AND(#REF!,\"LI2qOyle634=\")","v":{"$error":"#REF!"}},{"$f":"AND(#REF!,\"LI2qOyle638=\")","v":{"$error":"#REF!"}},{"$f":"AND(#REF!,\"LI2qOyle64A=\")","v":{"$error":"#REF!"}},{"$f":"AND(#REF!,\"LI2qOyle64E=\")","v":{"$error":"#REF!"}},{"$f":"AND(#REF!,\"LI2qOyle64I=\")","v":{"$error":"#REF!"}},{"$f":"AND(#REF!,\"LI2qOyle64M=\")","v":{"$error":"#REF!"}},{"$f":"AND(#REF!,\"LI2qOyle64Q=\")","v":{"$error":"#REF!"}},{"$f":"AND(#REF!,\"LI2qOyle64U=\")","v":{"$error":"#REF!"}},{"$f":"AND(#REF!,\"LI2qOyle64Y=\")","v":{"$error":"#REF!"}},{"$f":"AND(#REF!,\"LI2qOyle64c=\")","v":{"$error":"#REF!"}},{"$f":"AND(#REF!,\"LI2qOyle64g=\")","v":{"$error":"#REF!"}},{"$f":"AND(#REF!,\"LI2qOyle64k=\")","v":{"$error":"#REF!"}},{"$f":"AND(#REF!,\"LI2qOyle64o=\")","v":{"$error":"#REF!"}},{"$f":"AND(#REF!,\"LI2qOyle64s=\")","v":{"$error":"#REF!"}},{"$f":"AND(#REF!,\"LI2qOyle64w=\")","v":{"$error":"#REF!"}},{"$f":"AND(#REF!,\"LI2qOyle640=\")","v":{"$error":"#REF!"}},{"$f":"AND(#REF!,\"LI2qOyle644=\")","v":{"$error":"#REF!"}},{"$f":"AND(#REF!,\"LI2qOyle648=\")","v":{"$error":"#REF!"}},{"$f":"AND(#REF!,\"LI2qOyle65A=\")","v":{"$error":"#REF!"}},{"$f":"AND(#REF!,\"LI2qOyle65E=\")","v":{"$error":"#REF!"}},{"$f":"AND(#REF!,\"LI2qOyle65I=\")","v":{"$error":"#REF!"}},{"$f":"AND(#REF!,\"LI2qOyle65M=\")","v":{"$error":"#REF!"}},{"$f":"AND(#REF!,\"LI2qOyle65Q=\")","v":{"$error":"#REF!"}},{"$f":"AND(#REF!,\"LI2qOyle65U=\")","v":{"$error":"#REF!"}},{"$f":"AND(#REF!,\"LI2qOyle65Y=\")","v":{"$error":"#REF!"}},{"$f":"AND(#REF!,\"LI2qOyle65c=\")","v":{"$error":"#REF!"}},{"$f":"AND(#REF!,\"LI2qOyle65g=\")","v":{"$error":"#REF!"}},{"$f":"AND(#REF!,\"LI2qOyle65k=\")","v":{"$error":"#REF!"}},{"$f":"AND(#REF!,\"LI2qOyle65o=\")","v":{"$error":"#REF!"}},{"$f":"AND(#REF!,\"LI2qOyle65s=\")","v":{"$error":"#REF!"}},{"$f":"AND(#REF!,\"LI2qOyle65w=\")","v":{"$error":"#REF!"}},{"$f":"AND(#REF!,\"LI2qOyle650=\")","v":{"$error":"#REF!"}},{"$f":"AND(#REF!,\"LI2qOyle654=\")","v":{"$error":"#REF!"}},{"$f":"AND(#REF!,\"LI2qOyle658=\")","v":{"$error":"#REF!"}},{"$f":"AND(#REF!,\"LI2qOyle66A=\")","v":{"$error":"#REF!"}},{"$f":"AND(#REF!,\"LI2qOyle66E=\")","v":{"$error":"#REF!"}},{"$f":"AND(#REF!,\"LI2qOyle66I=\")","v":{"$error":"#REF!"}},{"$f":"AND(#REF!,\"LI2qOyle66M=\")","v":{"$error":"#REF!"}},{"$f":"AND(#REF!,\"LI2qOyle66Q=\")","v":{"$error":"#REF!"}},{"$f":"AND(#REF!,\"LI2qOyle66U=\")","v":{"$error":"#REF!"}},{"$f":"AND(#REF!,\"LI2qOyle66Y=\")","v":{"$error":"#REF!"}},{"$f":"AND(#REF!,\"LI2qOyle66c=\")","v":{"$error":"#REF!"}},{"$f":"AND(#REF!,\"LI2qOyle66g=\")","v":{"$error":"#REF!"}},{"$f":"AND(#REF!,\"LI2qOyle66k=\")","v":{"$error":"#REF!"}},{"$f":"AND(#REF!,\"LI2qOyle66o=\")","v":{"$error":"#REF!"}},{"$f":"AND(#REF!,\"LI2qOyle66s=\")","v":{"$error":"#REF!"}},{"$f":"AND(#REF!,\"LI2qOyle66w=\")","v":{"$error":"#REF!"}},{"$f":"AND(#REF!,\"LI2qOyle660=\")","v":{"$error":"#REF!"}},{"$f":"AND(#REF!,\"LI2qOyle664=\")","v":{"$error":"#REF!"}},{"$f":"AND(#REF!,\"LI2qOyle668=\")","v":{"$error":"#REF!"}},{"$f":"AND(#REF!,\"LI2qOyle67A=\")","v":{"$error":"#REF!"}},{"$f":"AND(#REF!,\"LI2qOyle67E=\")","v":{"$error":"#REF!"}},{"$f":"AND(#REF!,\"LI2qOyle67I=\")","v":{"$error":"#REF!"}},{"$f":"AND(#REF!,\"LI2qOyle67M=\")","v":{"$error":"#REF!"}},{"$f":"AND(#REF!,\"LI2qOyle67Q=\")","v":{"$error":"#REF!"}},{"$f":"AND(#REF!,\"LI2qOyle67U=\")","v":{"$error":"#REF!"}},{"$f":"AND(#REF!,\"LI2qOyle67Y=\")","v":{"$error":"#REF!"}},{"$f":"AND(#REF!,\"LI2qOyle67c=\")","v":{"$error":"#REF!"}},{"$f":"AND(#REF!,\"LI2qOyle67g=\")","v":{"$error":"#REF!"}},{"$f":"AND(#REF!,\"LI2qOyle67k=\")","v":{"$error":"#REF!"}},{"$f":"AND(#REF!,\"LI2qOyle67o=\")","v":{"$error":"#REF!"}},{"$f":"AND(#REF!,\"LI2qOyle67s=\")","v":{"$error":"#REF!"}},{"$f":"AND(#REF!,\"LI2qOyle67w=\")","v":{"$error":"#REF!"}},{"$f":"AND(#REF!,\"LI2qOyle670=\")","v":{"$error":"#REF!"}},{"$f":"AND(#REF!,\"LI2qOyle674=\")","v":{"$error":"#REF!"}},{"$f":"AND(#REF!,\"LI2qOyle678=\")","v":{"$error":"#REF!"}},{"$f":"AND(#REF!,\"LI2qOyle68A=\")","v":{"$error":"#REF!"}},{"$f":"AND(#REF!,\"LI2qOyle68E=\")","v":{"$error":"#REF!"}},{"$f":"AND(#REF!,\"LI2qOyle68I=\")","v":{"$error":"#REF!"}},{"$f":"AND(#REF!,\"LI2qOyle68M=\")","v":{"$error":"#REF!"}},{"$f":"AND(#REF!,\"LI2qOyle68Q=\")","v":{"$error":"#REF!"}},{"$f":"AND(#REF!,\"LI2qOyle68U=\")","v":{"$error":"#REF!"}},{"$f":"AND(#REF!,\"LI2qOyle68Y=\")","v":{"$error":"#REF!"}},{"$f":"AND(#REF!,\"LI2qOyle68c=\")","v":{"$error":"#REF!"}},{"$f":"AND(#REF!,\"LI2qOyle68g=\")","v":{"$error":"#REF!"}},{"$f":"AND(#REF!,\"LI2qOyle68k=\")","v":{"$error":"#REF!"}},{"$f":"AND(#REF!,\"LI2qOyle68o=\")","v":{"$error":"#REF!"}},{"$f":"AND(#REF!,\"LI2qOyle68s=\")","v":{"$error":"#REF!"}},{"$f":"AND(#REF!,\"LI2qOyle68w=\")","v":{"$error":"#REF!"}},{"$f":"AND(#REF!,\"LI2qOyle680=\")","v":{"$error":"#REF!"}},{"$f":"AND(#REF!,\"LI2qOyle684=\")","v":{"$error":"#REF!"}},{"$f":"AND(#REF!,\"LI2qOyle688=\")","v":{"$error":"#REF!"}},{"$f":"AND(#REF!,\"LI2qOyle69A=\")","v":{"$error":"#REF!"}},{"$f":"AND(#REF!,\"LI2qOyle69E=\")","v":{"$error":"#REF!"}},{"$f":"AND(#REF!,\"LI2qOyle69I=\")","v":{"$error":"#REF!"}},{"$f":"AND(#REF!,\"LI2qOyle69M=\")","v":{"$error":"#REF!"}},{"$f":"AND(#REF!,\"LI2qOyle69Q=\")","v":{"$error":"#REF!"}},{"$f":"AND(#REF!,\"LI2qOyle69U=\")","v":{"$error":"#REF!"}},{"$f":"AND(#REF!,\"LI2qOyle69Y=\")","v":{"$error":"#REF!"}},{"$f":"AND(#REF!,\"LI2qOyle69c=\")","v":{"$error":"#REF!"}},{"$f":"IF(#REF!,\"LI2qOyle69g=\",0)","v":{"$error":"#REF!"}},{"$f":"AND(#REF!,\"LI2qOyle69k=\")","v":{"$error":"#REF!"}},{"$f":"AND(#REF!,\"LI2qOyle69o=\")","v":{"$error":"#REF!"}},{"$f":"AND(#REF!,\"LI2qOyle69s=\")","v":{"$error":"#REF!"}},{"$f":"AND(#REF!,\"LI2qOyle69w=\")","v":{"$error":"#REF!"}},{"$f":"AND(#REF!,\"LI2qOyle690=\")","v":{"$error":"#REF!"}},{"$f":"AND(#REF!,\"LI2qOyle694=\")","v":{"$error":"#REF!"}},{"$f":"AND(#REF!,\"LI2qOyle698=\")","v":{"$error":"#REF!"}},{"$f":"AND(#REF!,\"LI2qOyle6+A=\")","v":{"$error":"#REF!"}},{"$f":"AND(#REF!,\"LI2qOyle6+E=\")","v":{"$error":"#REF!"}},{"$f":"AND(#REF!,\"LI2qOyle6+I=\")","v":{"$error":"#REF!"}},{"$f":"AND(#REF!,\"LI2qOyle6+M=\")","v":{"$error":"#REF!"}},{"$f":"AND(#REF!,\"LI2qOyle6+Q=\")","v":{"$error":"#REF!"}},{"$f":"AND(#REF!,\"LI2qOyle6+U=\")","v":{"$error":"#REF!"}},{"$f":"AND(#REF!,\"LI2qOyle6+Y=\")","v":{"$error":"#REF!"}},{"$f":"AND(#REF!,\"LI2qOyle6+c=\")","v":{"$error":"#REF!"}},{"$f":"AND(#REF!,\"LI2qOyle6+g=\")","v":{"$error":"#REF!"}},{"$f":"AND(#REF!,\"LI2qOyle6+k=\")","v":{"$error":"#REF!"}},{"$f":"AND(#REF!,\"LI2qOyle6+o=\")","v":{"$error":"#REF!"}},{"$f":"AND(#REF!,\"LI2qOyle6+s=\")","v":{"$error":"#REF!"}},{"$f":"AND(#REF!,\"LI2qOyle6+w=\")","v":{"$error":"#REF!"}},{"$f":"AND(#REF!,\"LI2qOyle6+0=\")","v":{"$error":"#REF!"}},{"$f":"AND(#REF!,\"LI2qOyle6+4=\")","v":{"$error":"#REF!"}},{"$f":"AND(#REF!,\"LI2qOyle6+8=\")","v":{"$error":"#REF!"}},{"$f":"AND(#REF!,\"LI2qOyle6/A=\")","v":{"$error":"#REF!"}},{"$f":"AND(#REF!,\"LI2qOyle6/E=\")","v":{"$error":"#REF!"}},{"$f":"AND(#REF!,\"LI2qOyle6/I=\")","v":{"$error":"#REF!"}},{"$f":"AND(#REF!,\"LI2qOyle6/M=\")","v":{"$error":"#REF!"}},{"$f":"AND(#REF!,\"LI2qOyle6/Q=\")","v":{"$error":"#REF!"}},{"$f":"AND(#REF!,\"LI2qOyle6/U=\")","v":{"$error":"#REF!"}},{"$f":"AND(#REF!,\"LI2qOyle6/Y=\")","v":{"$error":"#REF!"}},{"$f":"AND(#REF!,\"LI2qOyle6/c=\")","v":{"$error":"#REF!"}},{"$f":"AND(#REF!,\"LI2qOyle6/g=\")","v":{"$error":"#REF!"}},{"$f":"AND(#REF!,\"LI2qOyle6/k=\")","v":{"$error":"#REF!"}},{"$f":"AND(#REF!,\"LI2qOyle6/o=\")","v":{"$error":"#REF!"}},{"$f":"AND(#REF!,\"LI2qOyle6/s=\")","v":{"$error":"#REF!"}},{"$f":"AND(#REF!,\"LI2qOyle6/w=\")","v":{"$error":"#REF!"}},{"$f":"AND(#REF!,\"LI2qOyle6/0=\")","v":{"$error":"#REF!"}},{"$f":"AND(#REF!,\"LI2qOyle6/4=\")","v":{"$error":"#REF!"}},{"$f":"AND(#REF!,\"LI2qOyle6/8=\")","v":{"$error":"#REF!"}}]
[{"$f":"AND(#REF!,\"RTgwXxxnYAA=\")","v":{"$error":"#REF!"}},{"$f":"AND(#REF!,\"RTgwXxxnYAE=\")","v":{"$error":"#REF!"}},{"$f":"AND(#REF!,\"RTgwXxxnYAI=\")","v":{"$error":"#REF!"}},{"$f":"AND(#REF!,\"RTgwXxxnYAM=\")","v":{"$error":"#REF!"}},{"$f":"AND(#REF!,\"RTgwXxxnYAQ=\")","v":{"$error":"#REF!"}},{"$f":"AND(#REF!,\"RTgwXxxnYAU=\")","v":{"$error":"#REF!"}},{"$f":"AND(#REF!,\"RTgwXxxnYAY=\")","v":{"$error":"#REF!"}},{"$f":"AND(#REF!,\"RTgwXxxnYAc=\")","v":{"$error":"#REF!"}},{"$f":"AND(#REF!,\"RTgwXxxnYAg=\")","v":{"$error":"#REF!"}},{"$f":"AND(#REF!,\"RTgwXxxnYAk=\")","v":{"$error":"#REF!"}},{"$f":"AND(#REF!,\"RTgwXxxnYAo=\")","v":{"$error":"#REF!"}},{"$f":"AND(#REF!,\"RTgwXxxnYAs=\")","v":{"$error":"#REF!"}},{"$f":"AND(#REF!,\"RTgwXxxnYAw=\")","v":{"$error":"#REF!"}},{"$f":"AND(#REF!,\"RTgwXxxnYA0=\")","v":{"$error":"#REF!"}},{"$f":"AND(#REF!,\"RTgwXxxnYA4=\")","v":{"$error":"#REF!"}},{"$f":"AND(#REF!,\"RTgwXxxnYA8=\")","v":{"$error":"#REF!"}},{"$f":"AND(#REF!,\"RTgwXxxnYBA=\")","v":{"$error":"#REF!"}},{"$f":"AND(#REF!,\"RTgwXxxnYBE=\")","v":{"$error":"#REF!"}},{"$f":"AND(#REF!,\"RTgwXxxnYBI=\")","v":{"$error":"#REF!"}},{"$f":"AND(#REF!,\"RTgwXxxnYBM=\")","v":{"$error":"#REF!"}},{"$f":"AND(#REF!,\"RTgwXxxnYBQ=\")","v":{"$error":"#REF!"}},{"$f":"AND(#REF!,\"RTgwXxxnYBU=\")","v":{"$error":"#REF!"}},{"$f":"AND(#REF!,\"RTgwXxxnYBY=\")","v":{"$error":"#REF!"}},{"$f":"AND(#REF!,\"RTgwXxxnYBc=\")","v":{"$error":"#REF!"}},{"$f":"AND(#REF!,\"RTgwXxxnYBg=\")","v":{"$error":"#REF!"}},{"$f":"AND(#REF!,\"RTgwXxxnYBk=\")","v":{"$error":"#REF!"}},{"$f":"AND(#REF!,\"RTgwXxxnYBo=\")","v":{"$error":"#REF!"}},{"$f":"AND(#REF!,\"RTgwXxxnYBs=\")","v":{"$error":"#REF!"}},{"$f":"AND(#REF!,\"RTgwXxxnYBw=\")","v":{"$error":"#REF!"}},{"$f":"AND(#REF!,\"RTgwXxxnYB0=\")","v":{"$error":"#REF!"}},{"$f":"AND(#REF!,\"RTgwXxxnYB4=\")","v":{"$error":"#REF!"}},{"$f":"AND(#REF!,\"RTgwXxxnYB8=\")","v":{"$error":"#REF!"}},{"$f":"AND(#REF!,\"RTgwXxxnYCA=\")","v":{"$error":"#REF!"}},{"$f":"AND(#REF!,\"RTgwXxxnYCE=\")","v":{"$error":"#REF!"}},{"$f":"AND(#REF!,\"RTgwXxxnYCI=\")","v":{"$error":"#REF!"}},{"$f":"AND(#REF!,\"RTgwXxxnYCM=\")","v":{"$error":"#REF!"}},{"$f":"AND(#REF!,\"RTgwXxxnYCQ=\")","v":{"$error":"#REF!"}},{"$f":"AND(#REF!,\"RTgwXxxnYCU=\")","v":{"$error":"#REF!"}},{"$f":"AND(#REF!,\"RTgwXxxnYCY=\")","v":{"$error":"#REF!"}},{"$f":"AND(#REF!,\"RTgwXxxnYCc=\")","v":{"$error":"#REF!"}},{"$f":"AND(#REF!,\"RTgwXxxnYCg=\")","v":{"$error":"#REF!"}},{"$f":"AND(#REF!,\"RTgwXxxnYCk=\")","v":{"$error":"#REF!"}},{"$f":"AND(#REF!,\"RTgwXxxnYCo=\")","v":{"$error":"#REF!"}},{"$f":"AND(#REF!,\"RTgwXxxnYCs=\")","v":{"$error":"#REF!"}},{"$f":"AND(#REF!,\"RTgwXxxnYCw=\")","v":{"$error":"#REF!"}},{"$f":"AND(#REF!,\"RTgwXxxnYC0=\")","v":{"$error":"#REF!"}},{"$f":"AND(#REF!,\"RTgwXxxnYC4=\")","v":{"$error":"#REF!"}},{"$f":"AND(#REF!,\"RTgwXxxnYC8=\")","v":{"$error":"#REF!"}},{"$f":"AND(#REF!,\"RTgwXxxnYDA=\")","v":{"$error":"#REF!"}},{"$f":"AND(#REF!,\"RTgwXxxnYDE=\")","v":{"$error":"#REF!"}},{"$f":"AND(#REF!,\"RTgwXxxnYDI=\")","v":{"$error":"#REF!"}},{"$f":"AND(#REF!,\"RTgwXxxnYDM=\")","v":{"$error":"#REF!"}},{"$f":"AND(#REF!,\"RTgwXxxnYDQ=\")","v":{"$error":"#REF!"}},{"$f":"AND(#REF!,\"RTgwXxxnYDU=\")","v":{"$error":"#REF!"}},{"$f":"AND(#REF!,\"RTgwXxxnYDY=\")","v":{"$error":"#REF!"}},{"$f":"AND(#REF!,\"RTgwXxxnYDc=\")","v":{"$error":"#REF!"}},{"$f":"AND(#REF!,\"RTgwXxxnYDg=\")","v":{"$error":"#REF!"}},{"$f":"AND(#REF!,\"RTgwXxxnYDk=\")","v":{"$error":"#REF!"}},{"$f":"AND(#REF!,\"RTgwXxxnYDo=\")","v":{"$error":"#REF!"}},{"$f":"AND(#REF!,\"RTgwXxxnYDs=\")","v":{"$error":"#REF!"}},{"$f":"AND(#REF!,\"RTgwXxxnYDw=\")","v":{"$error":"#REF!"}},{"$f":"AND(#REF!,\"RTgwXxxnYD0=\")","v":{"$error":"#REF!"}},{"$f":"AND(#REF!,\"RTgwXxxnYD4=\")","v":{"$error":"#REF!"}},{"$f":"AND(#REF!,\"RTgwXxxnYD8=\")","v":{"$error":"#REF!"}},{"$f":"AND(#REF!,\"RTgwXxxnYEA=\")","v":{"$error":"#REF!"}},{"$f":"AND(#REF!,\"RTgwXxxnYEE=\")","v":{"$error":"#REF!"}},{"$f":"AND(#REF!,\"RTgwXxxnYEI=\")","v":{"$error":"#REF!"}},{"$f":"AND(#REF!,\"RTgwXxxnYEM=\")","v":{"$error":"#REF!"}},{"$f":"AND(#REF!,\"RTgwXxxnYEQ=\")","v":{"$error":"#REF!"}},{"$f":"AND(#REF!,\"RTgwXxxnYEU=\")","v":{"$error":"#REF!"}},{"$f":"AND(#REF!,\"RTgwXxxnYEY=\")","v":{"$error":"#REF!"}},{"$f":"AND(#REF!,\"RTgwXxxnYEc=\")","v":{"$error":"#REF!"}},{"$f":"AND(#REF!,\"RTgwXxxnYEg=\")","v":{"$error":"#REF!"}},{"$f":"AND(#REF!,\"RTgwXxxnYEk=\")","v":{"$error":"#REF!"}},{"$f":"AND(#REF!,\"RTgwXxxnYEo=\")","v":{"$error":"#REF!"}},{"$f":"AND(#REF!,\"RTgwXxxnYEs=\")","v":{"$error":"#REF!"}},{"$f":"AND(#REF!,\"RTgwXxxnYEw=\")","v":{"$error":"#REF!"}},{"$f":"AND(#REF!,\"RTgwXxxnYE0=\")","v":{"$error":"#REF!"}},{"$f":"AND(#REF!,\"RTgwXxxnYE4=\")","v":{"$error":"#REF!"}},{"$f":"AND(#REF!,\"RTgwXxxnYE8=\")","v":{"$error":"#REF!"}},{"$f":"AND(#REF!,\"RTgwXxxnYFA=\")","v":{"$error":"#REF!"}},{"$f":"AND(#REF!,\"RTgwXxxnYFE=\")","v":{"$error":"#REF!"}},{"$f":"AND(#REF!,\"RTgwXxxnYFI=\")","v":{"$error":"#REF!"}},{"$f":"AND(#REF!,\"RTgwXxxnYFM=\")","v":{"$error":"#REF!"}},{"$f":"AND(#REF!,\"RTgwXxxnYFQ=\")","v":{"$error":"#REF!"}},{"$f":"AND(#REF!,\"RTgwXxxnYFU=\")","v":{"$error":"#REF!"}},{"$f":"AND(#REF!,\"RTgwXxxnYFY=\")","v":{"$error":"#REF!"}},{"$f":"AND(#REF!,\"RTgwXxxnYFc=\")","v":{"$error":"#REF!"}},{"$f":"AND(#REF!,\"RTgwXxxnYFg=\")","v":{"$error":"#REF!"}},{"$f":"AND(#REF!,\"RTgwXxxnYFk=\")","v":{"$error":"#REF!"}},{"$f":"AND(#REF!,\"RTgwXxxnYFo=\")","v":{"$error":"#REF!"}},{"$f":"AND(#REF!,\"RTgwXxxnYFs=\")","v":{"$error":"#REF!"}},{"$f":"AND(#REF!,\"RTgwXxxnYFw=\")","v":{"$error":"#REF!"}},{"$f":"AND(#REF!,\"RTgwXxxnYF0=\")","v":{"$error":"#REF!"}},{"$f":"AND(#REF!,\"RTgwXxxnYF4=\")","v":{"$error":"#REF!"}},{"$f":"AND(#REF!,\"RTgwXxxnYF8=\")","v":{"$error":"#REF!"}},{"$f":"AND(#REF!,\"RTgwXxxnYGA=\")","v":{"$error":"#REF!"}},{"$f":"AND(#REF!,\"RTgwXxxnYGE=\")","v":{"$error":"#REF!"}},{"$f":"AND(#REF!,\"RTgwXxxnYGI=\")","v":{"$error":"#REF!"}},{"$f":"AND(#REF!,\"RTgwXxxnYGM=\")","v":{"$error":"#REF!"}},{"$f":"AND(#REF!,\"RTgwXxxnYGQ=\")","v":{"$error":"#REF!"}},{"$f":"AND(#REF!,\"RTgwXxxnYGU=\")","v":{"$error":"#REF!"}},{"$f":"AND(#REF!,\"RTgwXxxnYGY=\")","v":{"$error":"#REF!"}},{"$f":"AND(#REF!,\"RTgwXxxnYGc=\")","v":{"$error":"#REF!"}},{"$f":"AND(#REF!,\"RTgwXxxnYGg=\")","v":{"$error":"#REF!"}},{"$f":"AND(#REF!,\"RTgwXxxnYGk=\")","v":{"$error":"#REF!"}},{"$f":"AND(#REF!,\"RTgwXxxnYGo=\")","v":{"$error":"#REF!"}},{"$f":"AND(#REF!,\"RTgwXxxnYGs=\")","v":{"$error":"#REF!"}},{"$f":"AND(#REF!,\"RTgwXxxnYGw=\")","v":{"$error":"#REF!"}},{"$f":"AND(#REF!,\"RTgwXxxnYG0=\")","v":{"$error":"#REF!"}},{"$f":"AND(#REF!,\"RTgwXxxnYG4=\")","v":{"$error":"#REF!"}},{"$f":"AND(#REF!,\"RTgwXxxnYG8=\")","v":{"$error":"#REF!"}},{"$f":"AND(#REF!,\"RTgwXxxnYHA=\")","v":{"$error":"#REF!"}},{"$f":"AND(#REF!,\"RTgwXxxnYHE=\")","v":{"$error":"#REF!"}},{"$f":"AND(#REF!,\"RTgwXxxnYHI=\")","v":{"$error":"#REF!"}},{"$f":"AND(#REF!,\"RTgwXxxnYHM=\")","v":{"$error":"#REF!"}},{"$f":"AND(#REF!,\"RTgwXxxnYHQ=\")","v":{"$error":"#REF!"}},{"$f":"AND(#REF!,\"RTgwXxxnYHU=\")","v":{"$error":"#REF!"}},{"$f":"AND(#REF!,\"RTgwXxxnYHY=\")","v":{"$error":"#REF!"}},{"$f":"AND(#REF!,\"RTgwXxxnYHc=\")","v":{"$error":"#REF!"}},{"$f":"AND(#REF!,\"RTgwXxxnYHg=\")","v":{"$error":"#REF!"}},{"$f":"AND(#REF!,\"RTgwXxxnYHk=\")","v":{"$error":"#REF!"}},{"$f":"AND(#REF!,\"RTgwXxxnYHo=\")","v":{"$error":"#REF!"}},{"$f":"AND(#REF!,\"RTgwXxxnYHs=\")","v":{"$error":"#REF!"}},{"$f":"AND(#REF!,\"RTgwXxxnYHw=\")","v":{"$error":"#REF!"}},{"$f":"AND(#REF!,\"RTgwXxxnYH0=\")","v":{"$error":"#REF!"}},{"$f":"AND(#REF!,\"RTgwXxxnYH4=\")","v":{"$error":"#REF!"}},{"$f":"AND(#REF!,\"RTgwXxxnYH8=\")","v":{"$error":"#REF!"}},{"$f":"AND(#REF!,\"RTgwXxxnYIA=\")","v":{"$error":"#REF!"}},{"$f":"AND(#REF!,\"RTgwXxxnYIE=\")","v":{"$error":"#REF!"}},{"$f":"AND(#REF!,\"RTgwXxxnYII=\")","v":{"$error":"#REF!"}},{"$f":"AND(#REF!,\"RTgwXxxnYIM=\")","v":{"$error":"#REF!"}},{"$f":"AND(#REF!,\"RTgwXxxnYIQ=\")","v":{"$error":"#REF!"}},{"$f":"AND(#REF!,\"RTgwXxxnYIU=\")","v":{"$error":"#REF!"}},{"$f":"AND(#REF!,\"RTgwXxxnYIY=\")","v":{"$error":"#REF!"}},{"$f":"AND(#REF!,\"RTgwXxxnYIc=\")","v":{"$error":"#REF!"}},{"$f":"AND(#REF!,\"RTgwXxxnYIg=\")","v":{"$error":"#REF!"}},{"$f":"AND(#REF!,\"RTgwXxxnYIk=\")","v":{"$error":"#REF!"}},{"$f":"AND(#REF!,\"RTgwXxxnYIo=\")","v":{"$error":"#REF!"}},{"$f":"AND(#REF!,\"RTgwXxxnYIs=\")","v":{"$error":"#REF!"}},{"$f":"AND(#REF!,\"RTgwXxxnYIw=\")","v":{"$error":"#REF!"}},{"$f":"AND(#REF!,\"RTgwXxxnYI0=\")","v":{"$error":"#REF!"}},{"$f":"AND(#REF!,\"RTgwXxxnYI4=\")","v":{"$error":"#REF!"}},{"$f":"AND(#REF!,\"RTgwXxxnYI8=\")","v":{"$error":"#REF!"}},{"$f":"AND(#REF!,\"RTgwXxxnYJA=\")","v":{"$error":"#REF!"}},{"$f":"AND(#REF!,\"RTgwXxxnYJE=\")","v":{"$error":"#REF!"}},{"$f":"AND(#REF!,\"RTgwXxxnYJI=\")","v":{"$error":"#REF!"}},{"$f":"AND(#REF!,\"RTgwXxxnYJM=\")","v":{"$error":"#REF!"}},{"$f":"AND(#REF!,\"RTgwXxxnYJQ=\")","v":{"$error":"#REF!"}},{"$f":"AND(#REF!,\"RTgwXxxnYJU=\")","v":{"$error":"#REF!"}},{"$f":"AND(#REF!,\"RTgwXxxnYJY=\")","v":{"$error":"#REF!"}},{"$f":"AND(#REF!,\"RTgwXxxnYJc=\")","v":{"$error":"#REF!"}},{"$f":"AND(#REF!,\"RTgwXxxnYJg=\")","v":{"$error":"#REF!"}},{"$f":"AND(#REF!,\"RTgwXxxnYJk=\")","v":{"$error":"#REF!"}},{"$f":"AND(#REF!,\"RTgwXxxnYJo=\")","v":{"$error":"#REF!"}},{"$f":"AND(#REF!,\"RTgwXxxnYJs=\")","v":{"$error":"#REF!"}},{"$f":"AND(#REF!,\"RTgwXxxnYJw=\")","v":{"$error":"#REF!"}},{"$f":"AND(#REF!,\"RTgwXxxnYJ0=\")","v":{"$error":"#REF!"}},{"$f":"AND(#REF!,\"RTgwXxxnYJ4=\")","v":{"$error":"#REF!"}},{"$f":"IF(#REF!,\"RTgwXxxnYJ8=\",0)","v":{"$error":"#REF!"}},{"$f":"AND(#REF!,\"RTgwXxxnYKA=\")","v":{"$error":"#REF!"}},{"$f":"AND(#REF!,\"RTgwXxxnYKE=\")","v":{"$error":"#REF!"}},{"$f":"AND(#REF!,\"RTgwXxxnYKI=\")","v":{"$error":"#REF!"}},{"$f":"AND(#REF!,\"RTgwXxxnYKM=\")","v":{"$error":"#REF!"}},{"$f":"AND(#REF!,\"RTgwXxxnYKQ=\")","v":{"$error":"#REF!"}},{"$f":"AND(#REF!,\"RTgwXxxnYKU=\")","v":{"$error":"#REF!"}},{"$f":"AND(#REF!,\"RTgwXxxnYKY=\")","v":{"$error":"#REF!"}},{"$f":"AND(#REF!,\"RTgwXxxnYKc=\")","v":{"$error":"#REF!"}},{"$f":"AND(#REF!,\"RTgwXxxnYKg=\")","v":{"$error":"#REF!"}},{"$f":"AND(#REF!,\"RTgwXxxnYKk=\")","v":{"$error":"#REF!"}},{"$f":"AND(#REF!,\"RTgwXxxnYKo=\")","v":{"$error":"#REF!"}},{"$f":"AND(#REF!,\"RTgwXxxnYKs=\")","v":{"$error":"#REF!"}},{"$f":"AND(#REF!,\"RTgwXxxnYKw=\")","v":{"$error":"#REF!"}},{"$f":"AND(#REF!,\"RTgwXxxnYK0=\")","v":{"$error":"#REF!"}},{"$f":"AND(#REF!,\"RTgwXxxnYK4=\")","v":{"$error":"#REF!"}},{"$f":"AND(#REF!,\"RTgwXxxnYK8=\")","v":{"$error":"#REF!"}},{"$f":"AND(#REF!,\"RTgwXxxnYLA=\")","v":{"$error":"#REF!"}},{"$f":"AND(#REF!,\"RTgwXxxnYLE=\")","v":{"$error":"#REF!"}},{"$f":"AND(#REF!,\"RTgwXxxnYLI=\")","v":{"$error":"#REF!"}},{"$f":"AND(#REF!,\"RTgwXxxnYLM=\")","v":{"$error":"#REF!"}},{"$f":"AND(#REF!,\"RTgwXxxnYLQ=\")","v":{"$error":"#REF!"}},{"$f":"AND(#REF!,\"RTgwXxxnYLU=\")","v":{"$error":"#REF!"}},{"$f":"AND(#REF!,\"RTgwXxxnYLY=\")","v":{"$error":"#REF!"}},{"$f":"AND(#REF!,\"RTgwXxxnYLc=\")","v":{"$error":"#REF!"}},{"$f":"AND(#REF!,\"RTgwXxxnYLg=\")","v":{"$error":"#REF!"}},{"$f":"AND(#REF!,\"RTgwXxxnYLk=\")","v":{"$error":"#REF!"}},{"$f":"AND(#REF!,\"RTgwXxxnYLo=\")","v":{"$error":"#REF!"}},{"$f":"AND(#REF!,\"RTgwXxxnYLs=\")","v":{"$error":"#REF!"}},{"$f":"AND(#REF!,\"RTgwXxxnYLw=\")","v":{"$error":"#REF!"}},{"$f":"AND(#REF!,\"RTgwXxxnYL0=\")","v":{"$error":"#REF!"}},{"$f":"AND(#REF!,\"RTgwXxxnYL4=\")","v":{"$error":"#REF!"}},{"$f":"AND(#REF!,\"RTgwXxxnYL8=\")","v":{"$error":"#REF!"}},{"$f":"AND(#REF!,\"RTgwXxxnYMA=\")","v":{"$error":"#REF!"}},{"$f":"AND(#REF!,\"RTgwXxxnYME=\")","v":{"$error":"#REF!"}},{"$f":"AND(#REF!,\"RTgwXxxnYMI=\")","v":{"$error":"#REF!"}},{"$f":"AND(#REF!,\"RTgwXxxnYMM=\")","v":{"$error":"#REF!"}},{"$f":"AND(#REF!,\"RTgwXxxnYMQ=\")","v":{"$error":"#REF!"}},{"$f":"AND(#REF!,\"RTgwXxxnYMU=\")","v":{"$error":"#REF!"}},{"$f":"AND(#REF!,\"RTgwXxxnYMY=\")","v":{"$error":"#REF!"}},{"$f":"AND(#REF!,\"RTgwXxxnYMc=\")","v":{"$error":"#REF!"}},{"$f":"AND(#REF!,\"RTgwXxxnYMg=\")","v":{"$error":"#REF!"}},{"$f":"AND(#REF!,\"RTgwXxxnYMk=\")","v":{"$error":"#REF!"}},{"$f":"AND(#REF!,\"RTgwXxxnYMo=\")","v":{"$error":"#REF!"}},{"$f":"AND(#REF!,\"RTgwXxxnYMs=\")","v":{"$error":"#REF!"}},{"$f":"AND(#REF!,\"RTgwXxxnYMw=\")","v":{"$error":"#REF!"}},{"$f":"AND(#REF!,\"RTgwXxxnYM0=\")","v":{"$error":"#REF!"}},{"$f":"AND(#REF!,\"RTgwXxxnYM4=\")","v":{"$error":"#REF!"}},{"$f":"AND(#REF!,\"RTgwXxxnYM8=\")","v":{"$error":"#REF!"}},{"$f":"AND(#REF!,\"RTgwXxxnYNA=\")","v":{"$error":"#REF!"}},{"$f":"AND(#REF!,\"RTgwXxxnYNE=\")","v":{"$error":"#REF!"}},{"$f":"AND(#REF!,\"RTgwXxxnYNI=\")","v":{"$error":"#REF!"}},{"$f":"AND(#REF!,\"RTgwXxxnYNM=\")","v":{"$error":"#REF!"}},{"$f":"AND(#REF!,\"RTgwXxxnYNQ=\")","v":{"$error":"#REF!"}},{"$f":"AND(#REF!,\"RTgwXxxnYNU=\")","v":{"$error":"#REF!"}},{"$f":"AND(#REF!,\"RTgwXxxnYNY=\")","v":{"$error":"#REF!"}},{"$f":"AND(#REF!,\"RTgwXxxnYNc=\")","v":{"$error":"#REF!"}},{"$f":"AND(#REF!,\"RTgwXxxnYNg=\")","v":{"$error":"#REF!"}},{"$f":"AND(#REF!,\"RTgwXxxnYNk=\")","v":{"$error":"#REF!"}},{"$f":"AND(#REF!,\"RTgwXxxnYNo=\")","v":{"$error":"#REF!"}},{"$f":"AND(#REF!,\"RTgwXxxnYNs=\")","v":{"$error":"#REF!"}},{"$f":"AND(#REF!,\"RTgwXxxnYNw=\")","v":{"$error":"#REF!"}},{"$f":"AND(#REF!,\"RTgwXxxnYN0=\")","v":{"$error":"#REF!"}},{"$f":"AND(#REF!,\"RTgwXxxnYN4=\")","v":{"$error":"#REF!"}},{"$f":"AND(#REF!,\"RTgwXxxnYN8=\")","v":{"$error":"#REF!"}},{"$f":"AND(#REF!,\"RTgwXxxnYOA=\")","v":{"$error":"#REF!"}},{"$f":"AND(#REF!,\"RTgwXxxnYOE=\")","v":{"$error":"#REF!"}},{"$f":"AND(#REF!,\"RTgwXxxnYOI=\")","v":{"$error":"#REF!"}},{"$f":"AND(#REF!,\"RTgwXxxnYOM=\")","v":{"$error":"#REF!"}},{"$f":"AND(#REF!,\"RTgwXxxnYOQ=\")","v":{"$error":"#REF!"}},{"$f":"AND(#REF!,\"RTgwXxxnYOU=\")","v":{"$error":"#REF!"}},{"$f":"AND(#REF!,\"RTgwXxxnYOY=\")","v":{"$error":"#REF!"}},{"$f":"AND(#REF!,\"RTgwXxxnYOc=\")","v":{"$error":"#REF!"}},{"$f":"AND(#REF!,\"RTgwXxxnYOg=\")","v":{"$error":"#REF!"}},{"$f":"AND(#REF!,\"RTgwXxxnYOk=\")","v":{"$error":"#REF!"}},{"$f":"AND(#REF!,\"RTgwXxxnYOo=\")","v":{"$error":"#REF!"}},{"$f":"AND(#REF!,\"RTgwXxxnYOs=\")","v":{"$error":"#REF!"}},{"$f":"AND(#REF!,\"RTgwXxxnYOw=\")","v":{"$error":"#REF!"}},{"$f":"AND(#REF!,\"RTgwXxxnYO0=\")","v":{"$error":"#REF!"}},{"$f":"AND(#REF!,\"RTgwXxxnYO4=\")","v":{"$error":"#REF!"}},{"$f":"AND(#REF!,\"RTgwXxxnYO8=\")","v":{"$error":"#REF!"}},{"$f":"AND(#REF!,\"RTgwXxxnYPA=\")","v":{"$error":"#REF!"}},{"$f":"AND(#REF!,\"RTgwXxxnYPE=\")","v":{"$error":"#REF!"}},{"$f":"AND(#REF!,\"RTgwXxxnYPI=\")","v":{"$error":"#REF!"}},{"$f":"AND(#REF!,\"RTgwXxxnYPM=\")","v":{"$error":"#REF!"}},{"$f":"AND(#REF!,\"RTgwXxxnYPQ=\")","v":{"$error":"#REF!"}},{"$f":"AND(#REF!,\"RTgwXxxnYPU=\")","v":{"$error":"#REF!"}},{"$f":"AND(#REF!,\"RTgwXxxnYPY=\")","v":{"$error":"#REF!"}},{"$f":"AND(#REF!,\"RTgwXxxnYPc=\")","v":{"$error":"#REF!"}},{"$f":"AND(#REF!,\"RTgwXxxnYPg=\")","v":{"$error":"#REF!"}},{"$f":"AND(#REF!,\"RTgwXxxnYPk=\")","v":{"$error":"#REF!"}},{"$f":"AND(#REF!,\"RTgwXxxnYPo=\")","v":{"$error":"#REF!"}},{"$f":"AND(#REF!,\"RTgwXxxnYPs=\")","v":{"$error":"#REF!"}},{"$f":"AND(#REF!,\"RTgwXxxnYPw=\")","v":{"$error":"#REF!"}},{"$f":"AND(#REF!,\"RTgwXxxnYP0=\")","v":{"$error":"#REF!"}},{"$f":"AND(#REF!,\"RTgwXxxnYP4=\")","v":{"$error":"#REF!"}},{"$f":"AND(#REF!,\"RTgwXxxnYP8=\")","v":{"$error":"#REF!"}}]
[{"$f":"AND(#REF!,\"D3Kfrgq1SwA=\")","v":{"$error":"#REF!"}},{"$f":"AND(#REF!,\"D3Kfrgq1SwE=\")","v":{"$error":"#REF!"}},{"$f":"AND(#REF!,\"D3Kfrgq1SwI=\")","v":{"$error":"#REF!"}},{"$f":"AND(#REF!,\"D3Kfrgq1SwM=\")","v":{"$error":"#REF!"}},{"$f":"AND(#REF!,\"D3Kfrgq1SwQ=\")","v":{"$error":"#REF!"}},{"$f":"AND(#REF!,\"D3Kfrgq1SwU=\")","v":{"$error":"#REF!"}},{"$f":"AND(#REF!,\"D3Kfrgq1SwY=\")","v":{"$error":"#REF!"}},{"$f":"AND(#REF!,\"D3Kfrgq1Swc=\")","v":{"$error":"#REF!"}},{"$f":"AND(#REF!,\"D3Kfrgq1Swg=\")","v":{"$error":"#REF!"}},{"$f":"AND(#REF!,\"D3Kfrgq1Swk=\")","v":{"$error":"#REF!"}},{"$f":"AND(#REF!,\"D3Kfrgq1Swo=\")","v":{"$error":"#REF!"}},{"$f":"AND(#REF!,\"D3Kfrgq1Sws=\")","v":{"$error":"#REF!"}},{"$f":"AND(#REF!,\"D3Kfrgq1Sww=\")","v":{"$error":"#REF!"}},{"$f":"AND(#REF!,\"D3Kfrgq1Sw0=\")","v":{"$error":"#REF!"}},{"$f":"AND(#REF!,\"D3Kfrgq1Sw4=\")","v":{"$error":"#REF!"}},{"$f":"AND(#REF!,\"D3Kfrgq1Sw8=\")","v":{"$error":"#REF!"}},{"$f":"AND(#REF!,\"D3Kfrgq1SxA=\")","v":{"$error":"#REF!"}},{"$f":"AND(#REF!,\"D3Kfrgq1SxE=\")","v":{"$error":"#REF!"}},{"$f":"AND(#REF!,\"D3Kfrgq1SxI=\")","v":{"$error":"#REF!"}},{"$f":"AND(#REF!,\"D3Kfrgq1SxM=\")","v":{"$error":"#REF!"}},{"$f":"AND(#REF!,\"D3Kfrgq1SxQ=\")","v":{"$error":"#REF!"}},{"$f":"AND(#REF!,\"D3Kfrgq1SxU=\")","v":{"$error":"#REF!"}},{"$f":"AND(#REF!,\"D3Kfrgq1SxY=\")","v":{"$error":"#REF!"}},{"$f":"AND(#REF!,\"D3Kfrgq1Sxc=\")","v":{"$error":"#REF!"}},{"$f":"AND(#REF!,\"D3Kfrgq1Sxg=\")","v":{"$error":"#REF!"}},{"$f":"AND(#REF!,\"D3Kfrgq1Sxk=\")","v":{"$error":"#REF!"}},{"$f":"AND(#REF!,\"D3Kfrgq1Sxo=\")","v":{"$error":"#REF!"}},{"$f":"AND(#REF!,\"D3Kfrgq1Sxs=\")","v":{"$error":"#REF!"}},{"$f":"AND(#REF!,\"D3Kfrgq1Sxw=\")","v":{"$error":"#REF!"}},{"$f":"AND(#REF!,\"D3Kfrgq1Sx0=\")","v":{"$error":"#REF!"}},{"$f":"AND(#REF!,\"D3Kfrgq1Sx4=\")","v":{"$error":"#REF!"}},{"$f":"AND(#REF!,\"D3Kfrgq1Sx8=\")","v":{"$error":"#REF!"}},{"$f":"AND(#REF!,\"D3Kfrgq1SyA=\")","v":{"$error":"#REF!"}},{"$f":"AND(#REF!,\"D3Kfrgq1SyE=\")","v":{"$error":"#REF!"}},{"$f":"AND(#REF!,\"D3Kfrgq1SyI=\")","v":{"$error":"#REF!"}},{"$f":"AND(#REF!,\"D3Kfrgq1SyM=\")","v":{"$error":"#REF!"}},{"$f":"AND(#REF!,\"D3Kfrgq1SyQ=\")","v":{"$error":"#REF!"}},{"$f":"AND(#REF!,\"D3Kfrgq1SyU=\")","v":{"$error":"#REF!"}},{"$f":"AND(#REF!,\"D3Kfrgq1SyY=\")","v":{"$error":"#REF!"}},{"$f":"AND(#REF!,\"D3Kfrgq1Syc=\")","v":{"$error":"#REF!"}},{"$f":"AND(#REF!,\"D3Kfrgq1Syg=\")","v":{"$error":"#REF!"}},{"$f":"AND(#REF!,\"D3Kfrgq1Syk=\")","v":{"$error":"#REF!"}},{"$f":"AND(#REF!,\"D3Kfrgq1Syo=\")","v":{"$error":"#REF!"}},{"$f":"AND(#REF!,\"D3Kfrgq1Sys=\")","v":{"$error":"#REF!"}},{"$f":"AND(#REF!,\"D3Kfrgq1Syw=\")","v":{"$error":"#REF!"}},{"$f":"AND(#REF!,\"D3Kfrgq1Sy0=\")","v":{"$error":"#REF!"}},{"$f":"AND(#REF!,\"D3Kfrgq1Sy4=\")","v":{"$error":"#REF!"}},{"$f":"AND(#REF!,\"D3Kfrgq1Sy8=\")","v":{"$error":"#REF!"}},{"$f":"AND(#REF!,\"D3Kfrgq1SzA=\")","v":{"$error":"#REF!"}},{"$f":"AND(#REF!,\"D3Kfrgq1SzE=\")","v":{"$error":"#REF!"}},{"$f":"AND(#REF!,\"D3Kfrgq1SzI=\")","v":{"$error":"#REF!"}},{"$f":"AND(#REF!,\"D3Kfrgq1SzM=\")","v":{"$error":"#REF!"}},{"$f":"AND(#REF!,\"D3Kfrgq1SzQ=\")","v":{"$error":"#REF!"}},{"$f":"AND(#REF!,\"D3Kfrgq1SzU=\")","v":{"$error":"#REF!"}},{"$f":"AND(#REF!,\"D3Kfrgq1SzY=\")","v":{"$error":"#REF!"}},{"$f":"AND(#REF!,\"D3Kfrgq1Szc=\")","v":{"$error":"#REF!"}},{"$f":"AND(#REF!,\"D3Kfrgq1Szg=\")","v":{"$error":"#REF!"}},{"$f":"AND(#REF!,\"D3Kfrgq1Szk=\")","v":{"$error":"#REF!"}},{"$f":"AND(#REF!,\"D3Kfrgq1Szo=\")","v":{"$error":"#REF!"}},{"$f":"AND(#REF!,\"D3Kfrgq1Szs=\")","v":{"$error":"#REF!"}},{"$f":"AND(#REF!,\"D3Kfrgq1Szw=\")","v":{"$error":"#REF!"}},{"$f":"AND(#REF!,\"D3Kfrgq1Sz0=\")","v":{"$error":"#REF!"}},{"$f":"AND(#REF!,\"D3Kfrgq1Sz4=\")","v":{"$error":"#REF!"}},{"$f":"AND(#REF!,\"D3Kfrgq1Sz8=\")","v":{"$error":"#REF!"}},{"$f":"AND(#REF!,\"D3Kfrgq1S0A=\")","v":{"$error":"#REF!"}},{"$f":"AND(#REF!,\"D3Kfrgq1S0E=\")","v":{"$error":"#REF!"}},{"$f":"AND(#REF!,\"D3Kfrgq1S0I=\")","v":{"$error":"#REF!"}},{"$f":"AND(#REF!,\"D3Kfrgq1S0M=\")","v":{"$error":"#REF!"}},{"$f":"AND(#REF!,\"D3Kfrgq1S0Q=\")","v":{"$error":"#REF!"}},{"$f":"AND(#REF!,\"D3Kfrgq1S0U=\")","v":{"$error":"#REF!"}},{"$f":"AND(#REF!,\"D3Kfrgq1S0Y=\")","v":{"$error":"#REF!"}},{"$f":"AND(#REF!,\"D3Kfrgq1S0c=\")","v":{"$error":"#REF!"}},{"$f":"AND(#REF!,\"D3Kfrgq1S0g=\")","v":{"$error":"#REF!"}},{"$f":"AND(#REF!,\"D3Kfrgq1S0k=\")","v":{"$error":"#REF!"}},{"$f":"AND(#REF!,\"D3Kfrgq1S0o=\")","v":{"$error":"#REF!"}},{"$f":"AND(#REF!,\"D3Kfrgq1S0s=\")","v":{"$error":"#REF!"}},{"$f":"AND(#REF!,\"D3Kfrgq1S0w=\")","v":{"$error":"#REF!"}},{"$f":"AND(#REF!,\"D3Kfrgq1S00=\")","v":{"$error":"#REF!"}},{"$f":"AND(#REF!,\"D3Kfrgq1S04=\")","v":{"$error":"#REF!"}},{"$f":"AND(#REF!,\"D3Kfrgq1S08=\")","v":{"$error":"#REF!"}},{"$f":"AND(#REF!,\"D3Kfrgq1S1A=\")","v":{"$error":"#REF!"}},{"$f":"AND(#REF!,\"D3Kfrgq1S1E=\")","v":{"$error":"#REF!"}},{"$f":"AND(#REF!,\"D3Kfrgq1S1I=\")","v":{"$error":"#REF!"}},{"$f":"AND(#REF!,\"D3Kfrgq1S1M=\")","v":{"$error":"#REF!"}},{"$f":"AND(#REF!,\"D3Kfrgq1S1Q=\")","v":{"$error":"#REF!"}},{"$f":"AND(#REF!,\"D3Kfrgq1S1U=\")","v":{"$error":"#REF!"}},{"$f":"AND(#REF!,\"D3Kfrgq1S1Y=\")","v":{"$error":"#REF!"}},{"$f":"AND(#REF!,\"D3Kfrgq1S1c=\")","v":{"$error":"#REF!"}},{"$f":"AND(#REF!,\"D3Kfrgq1S1g=\")","v":{"$error":"#REF!"}},{"$f":"AND(#REF!,\"D3Kfrgq1S1k=\")","v":{"$error":"#REF!"}},{"$f":"AND(#REF!,\"D3Kfrgq1S1o=\")","v":{"$error":"#REF!"}},{"$f":"AND(#REF!,\"D3Kfrgq1S1s=\")","v":{"$error":"#REF!"}},{"$f":"AND(#REF!,\"D3Kfrgq1S1w=\")","v":{"$error":"#REF!"}},{"$f":"AND(#REF!,\"D3Kfrgq1S10=\")","v":{"$error":"#REF!"}},{"$f":"AND(#REF!,\"D3Kfrgq1S14=\")","v":{"$error":"#REF!"}},{"$f":"AND(#REF!,\"D3Kfrgq1S18=\")","v":{"$error":"#REF!"}},{"$f":"AND(#REF!,\"D3Kfrgq1S2A=\")","v":{"$error":"#REF!"}},{"$f":"AND(#REF!,\"D3Kfrgq1S2E=\")","v":{"$error":"#REF!"}},{"$f":"AND(#REF!,\"D3Kfrgq1S2I=\")","v":{"$error":"#REF!"}},{"$f":"AND(#REF!,\"D3Kfrgq1S2M=\")","v":{"$error":"#REF!"}},{"$f":"AND(#REF!,\"D3Kfrgq1S2Q=\")","v":{"$error":"#REF!"}},{"$f":"AND(#REF!,\"D3Kfrgq1S2U=\")","v":{"$error":"#REF!"}},{"$f":"IF(#REF!,\"D3Kfrgq1S2Y=\",0)","v":{"$error":"#REF!"}},{"$f":"AND(#REF!,\"D3Kfrgq1S2c=\")","v":{"$error":"#REF!"}},{"$f":"AND(#REF!,\"D3Kfrgq1S2g=\")","v":{"$error":"#REF!"}},{"$f":"AND(#REF!,\"D3Kfrgq1S2k=\")","v":{"$error":"#REF!"}},{"$f":"AND(#REF!,\"D3Kfrgq1S2o=\")","v":{"$error":"#REF!"}},{"$f":"AND(#REF!,\"D3Kfrgq1S2s=\")","v":{"$error":"#REF!"}},{"$f":"AND(#REF!,\"D3Kfrgq1S2w=\")","v":{"$error":"#REF!"}},{"$f":"AND(#REF!,\"D3Kfrgq1S20=\")","v":{"$error":"#REF!"}},{"$f":"AND(#REF!,\"D3Kfrgq1S24=\")","v":{"$error":"#REF!"}},{"$f":"AND(#REF!,\"D3Kfrgq1S28=\")","v":{"$error":"#REF!"}},{"$f":"AND(#REF!,\"D3Kfrgq1S3A=\")","v":{"$error":"#REF!"}},{"$f":"AND(#REF!,\"D3Kfrgq1S3E=\")","v":{"$error":"#REF!"}},{"$f":"AND(#REF!,\"D3Kfrgq1S3I=\")","v":{"$error":"#REF!"}},{"$f":"AND(#REF!,\"D3Kfrgq1S3M=\")","v":{"$error":"#REF!"}},{"$f":"AND(#REF!,\"D3Kfrgq1S3Q=\")","v":{"$error":"#REF!"}},{"$f":"AND(#REF!,\"D3Kfrgq1S3U=\")","v":{"$error":"#REF!"}},{"$f":"AND(#REF!,\"D3Kfrgq1S3Y=\")","v":{"$error":"#REF!"}},{"$f":"AND(#REF!,\"D3Kfrgq1S3c=\")","v":{"$error":"#REF!"}},{"$f":"AND(#REF!,\"D3Kfrgq1S3g=\")","v":{"$error":"#REF!"}},{"$f":"AND(#REF!,\"D3Kfrgq1S3k=\")","v":{"$error":"#REF!"}},{"$f":"AND(#REF!,\"D3Kfrgq1S3o=\")","v":{"$error":"#REF!"}},{"$f":"AND(#REF!,\"D3Kfrgq1S3s=\")","v":{"$error":"#REF!"}},{"$f":"AND(#REF!,\"D3Kfrgq1S3w=\")","v":{"$error":"#REF!"}},{"$f":"AND(#REF!,\"D3Kfrgq1S30=\")","v":{"$error":"#REF!"}},{"$f":"AND(#REF!,\"D3Kfrgq1S34=\")","v":{"$error":"#REF!"}},{"$f":"AND(#REF!,\"D3Kfrgq1S38=\")","v":{"$error":"#REF!"}},{"$f":"AND(#REF!,\"D3Kfrgq1S4A=\")","v":{"$error":"#REF!"}},{"$f":"AND(#REF!,\"D3Kfrgq1S4E=\")","v":{"$error":"#REF!"}},{"$f":"AND(#REF!,\"D3Kfrgq1S4I=\")","v":{"$error":"#REF!"}},{"$f":"AND(#REF!,\"D3Kfrgq1S4M=\")","v":{"$error":"#REF!"}},{"$f":"AND(#REF!,\"D3Kfrgq1S4Q=\")","v":{"$error":"#REF!"}},{"$f":"AND(#REF!,\"D3Kfrgq1S4U=\")","v":{"$error":"#REF!"}},{"$f":"AND(#REF!,\"D3Kfrgq1S4Y=\")","v":{"$error":"#REF!"}},{"$f":"AND(#REF!,\"D3Kfrgq1S4c=\")","v":{"$error":"#REF!"}},{"$f":"AND(#REF!,\"D3Kfrgq1S4g=\")","v":{"$error":"#REF!"}},{"$f":"AND(#REF!,\"D3Kfrgq1S4k=\")","v":{"$error":"#REF!"}},{"$f":"AND(#REF!,\"D3Kfrgq1S4o=\")","v":{"$error":"#REF!"}},{"$f":"AND(#REF!,\"D3Kfrgq1S4s=\")","v":{"$error":"#REF!"}},{"$f":"AND(#REF!,\"D3Kfrgq1S4w=\")","v":{"$error":"#REF!"}},{"$f":"AND(#REF!,\"D3Kfrgq1S40=\")","v":{"$error":"#REF!"}},{"$f":"AND(#REF!,\"D3Kfrgq1S44=\")","v":{"$error":"#REF!"}},{"$f":"AND(#REF!,\"D3Kfrgq1S48=\")","v":{"$error":"#REF!"}},{"$f":"AND(#REF!,\"D3Kfrgq1S5A=\")","v":{"$error":"#REF!"}},{"$f":"AND(#REF!,\"D3Kfrgq1S5E=\")","v":{"$error":"#REF!"}},{"$f":"AND(#REF!,\"D3Kfrgq1S5I=\")","v":{"$error":"#REF!"}},{"$f":"AND(#REF!,\"D3Kfrgq1S5M=\")","v":{"$error":"#REF!"}},{"$f":"AND(#REF!,\"D3Kfrgq1S5Q=\")","v":{"$error":"#REF!"}},{"$f":"AND(#REF!,\"D3Kfrgq1S5U=\")","v":{"$error":"#REF!"}},{"$f":"AND(#REF!,\"D3Kfrgq1S5Y=\")","v":{"$error":"#REF!"}},{"$f":"AND(#REF!,\"D3Kfrgq1S5c=\")","v":{"$error":"#REF!"}},{"$f":"AND(#REF!,\"D3Kfrgq1S5g=\")","v":{"$error":"#REF!"}},{"$f":"AND(#REF!,\"D3Kfrgq1S5k=\")","v":{"$error":"#REF!"}},{"$f":"AND(#REF!,\"D3Kfrgq1S5o=\")","v":{"$error":"#REF!"}},{"$f":"AND(#REF!,\"D3Kfrgq1S5s=\")","v":{"$error":"#REF!"}},{"$f":"AND(#REF!,\"D3Kfrgq1S5w=\")","v":{"$error":"#REF!"}},{"$f":"AND(#REF!,\"D3Kfrgq1S50=\")","v":{"$error":"#REF!"}},{"$f":"AND(#REF!,\"D3Kfrgq1S54=\")","v":{"$error":"#REF!"}},{"$f":"AND(#REF!,\"D3Kfrgq1S58=\")","v":{"$error":"#REF!"}},{"$f":"AND(#REF!,\"D3Kfrgq1S6A=\")","v":{"$error":"#REF!"}},{"$f":"AND(#REF!,\"D3Kfrgq1S6E=\")","v":{"$error":"#REF!"}},{"$f":"AND(#REF!,\"D3Kfrgq1S6I=\")","v":{"$error":"#REF!"}},{"$f":"AND(#REF!,\"D3Kfrgq1S6M=\")","v":{"$error":"#REF!"}},{"$f":"AND(#REF!,\"D3Kfrgq1S6Q=\")","v":{"$error":"#REF!"}},{"$f":"AND(#REF!,\"D3Kfrgq1S6U=\")","v":{"$error":"#REF!"}},{"$f":"AND(#REF!,\"D3Kfrgq1S6Y=\")","v":{"$error":"#REF!"}},{"$f":"AND(#REF!,\"D3Kfrgq1S6c=\")","v":{"$error":"#REF!"}},{"$f":"AND(#REF!,\"D3Kfrgq1S6g=\")","v":{"$error":"#REF!"}},{"$f":"AND(#REF!,\"D3Kfrgq1S6k=\")","v":{"$error":"#REF!"}},{"$f":"AND(#REF!,\"D3Kfrgq1S6o=\")","v":{"$error":"#REF!"}},{"$f":"AND(#REF!,\"D3Kfrgq1S6s=\")","v":{"$error":"#REF!"}},{"$f":"AND(#REF!,\"D3Kfrgq1S6w=\")","v":{"$error":"#REF!"}},{"$f":"AND(#REF!,\"D3Kfrgq1S60=\")","v":{"$error":"#REF!"}},{"$f":"AND(#REF!,\"D3Kfrgq1S64=\")","v":{"$error":"#REF!"}},{"$f":"AND(#REF!,\"D3Kfrgq1S68=\")","v":{"$error":"#REF!"}},{"$f":"AND(#REF!,\"D3Kfrgq1S7A=\")","v":{"$error":"#REF!"}},{"$f":"AND(#REF!,\"D3Kfrgq1S7E=\")","v":{"$error":"#REF!"}},{"$f":"AND(#REF!,\"D3Kfrgq1S7I=\")","v":{"$error":"#REF!"}},{"$f":"AND(#REF!,\"D3Kfrgq1S7M=\")","v":{"$error":"#REF!"}},{"$f":"AND(#REF!,\"D3Kfrgq1S7Q=\")","v":{"$error":"#REF!"}},{"$f":"AND(#REF!,\"D3Kfrgq1S7U=\")","v":{"$error":"#REF!"}},{"$f":"AND(#REF!,\"D3Kfrgq1S7Y=\")","v":{"$error":"#REF!"}},{"$f":"AND(#REF!,\"D3Kfrgq1S7c=\")","v":{"$error":"#REF!"}},{"$f":"AND(#REF!,\"D3Kfrgq1S7g=\")","v":{"$error":"#REF!"}},{"$f":"AND(#REF!,\"D3Kfrgq1S7k=\")","v":{"$error":"#REF!"}},{"$f":"AND(#REF!,\"D3Kfrgq1S7o=\")","v":{"$error":"#REF!"}},{"$f":"AND(#REF!,\"D3Kfrgq1S7s=\")","v":{"$error":"#REF!"}},{"$f":"AND(#REF!,\"D3Kfrgq1S7w=\")","v":{"$error":"#REF!"}},{"$f":"AND(#REF!,\"D3Kfrgq1S70=\")","v":{"$error":"#REF!"}},{"$f":"AND(#REF!,\"D3Kfrgq1S74=\")","v":{"$error":"#REF!"}},{"$f":"AND(#REF!,\"D3Kfrgq1S78=\")","v":{"$error":"#REF!"}},{"$f":"AND(#REF!,\"D3Kfrgq1S8A=\")","v":{"$error":"#REF!"}},{"$f":"AND(#REF!,\"D3Kfrgq1S8E=\")","v":{"$error":"#REF!"}},{"$f":"AND(#REF!,\"D3Kfrgq1S8I=\")","v":{"$error":"#REF!"}},{"$f":"AND(#REF!,\"D3Kfrgq1S8M=\")","v":{"$error":"#REF!"}},{"$f":"AND(#REF!,\"D3Kfrgq1S8Q=\")","v":{"$error":"#REF!"}},{"$f":"AND(#REF!,\"D3Kfrgq1S8U=\")","v":{"$error":"#REF!"}},{"$f":"AND(#REF!,\"D3Kfrgq1S8Y=\")","v":{"$error":"#REF!"}},{"$f":"AND(#REF!,\"D3Kfrgq1S8c=\")","v":{"$error":"#REF!"}},{"$f":"AND(#REF!,\"D3Kfrgq1S8g=\")","v":{"$error":"#REF!"}},{"$f":"AND(#REF!,\"D3Kfrgq1S8k=\")","v":{"$error":"#REF!"}},{"$f":"AND(#REF!,\"D3Kfrgq1S8o=\")","v":{"$error":"#REF!"}},{"$f":"AND(#REF!,\"D3Kfrgq1S8s=\")","v":{"$error":"#REF!"}},{"$f":"AND(#REF!,\"D3Kfrgq1S8w=\")","v":{"$error":"#REF!"}},{"$f":"AND(#REF!,\"D3Kfrgq1S80=\")","v":{"$error":"#REF!"}},{"$f":"AND(#REF!,\"D3Kfrgq1S84=\")","v":{"$error":"#REF!"}},{"$f":"AND(#REF!,\"D3Kfrgq1S88=\")","v":{"$error":"#REF!"}},{"$f":"AND(#REF!,\"D3Kfrgq1S9A=\")","v":{"$error":"#REF!"}},{"$f":"AND(#REF!,\"D3Kfrgq1S9E=\")","v":{"$error":"#REF!"}},{"$f":"AND(#REF!,\"D3Kfrgq1S9I=\")","v":{"$error":"#REF!"}},{"$f":"AND(#REF!,\"D3Kfrgq1S9M=\")","v":{"$error":"#REF!"}},{"$f":"AND(#REF!,\"D3Kfrgq1S9Q=\")","v":{"$error":"#REF!"}},{"$f":"AND(#REF!,\"D3Kfrgq1S9U=\")","v":{"$error":"#REF!"}},{"$f":"AND(#REF!,\"D3Kfrgq1S9Y=\")","v":{"$error":"#REF!"}},{"$f":"AND(#REF!,\"D3Kfrgq1S9c=\")","v":{"$error":"#REF!"}},{"$f":"AND(#REF!,\"D3Kfrgq1S9g=\")","v":{"$error":"#REF!"}},{"$f":"AND(#REF!,\"D3Kfrgq1S9k=\")","v":{"$error":"#REF!"}},{"$f":"AND(#REF!,\"D3Kfrgq1S9o=\")","v":{"$error":"#REF!"}},{"$f":"AND(#REF!,\"D3Kfrgq1S9s=\")","v":{"$error":"#REF!"}},{"$f":"AND(#REF!,\"D3Kfrgq1S9w=\")","v":{"$error":"#REF!"}},{"$f":"AND(#REF!,\"D3Kfrgq1S90=\")","v":{"$error":"#REF!"}},{"$f":"AND(#REF!,\"D3Kfrgq1S94=\")","v":{"$error":"#REF!"}},{"$f":"AND(#REF!,\"D3Kfrgq1S98=\")","v":{"$error":"#REF!"}},{"$f":"AND(#REF!,\"D3Kfrgq1S+A=\")","v":{"$error":"#REF!"}},{"$f":"AND(#REF!,\"D3Kfrgq1S+E=\")","v":{"$error":"#REF!"}},{"$f":"AND(#REF!,\"D3Kfrgq1S+I=\")","v":{"$error":"#REF!"}},{"$f":"AND(#REF!,\"D3Kfrgq1S+M=\")","v":{"$error":"#REF!"}},{"$f":"AND(#REF!,\"D3Kfrgq1S+Q=\")","v":{"$error":"#REF!"}},{"$f":"AND(#REF!,\"D3Kfrgq1S+U=\")","v":{"$error":"#REF!"}},{"$f":"AND(#REF!,\"D3Kfrgq1S+Y=\")","v":{"$error":"#REF!"}},{"$f":"AND(#REF!,\"D3Kfrgq1S+c=\")","v":{"$error":"#REF!"}},{"$f":"AND(#REF!,\"D3Kfrgq1S+g=\")","v":{"$error":"#REF!"}},{"$f":"AND(#REF!,\"D3Kfrgq1S+k=\")","v":{"$error":"#REF!"}},{"$f":"AND(#REF!,\"D3Kfrgq1S+o=\")","v":{"$error":"#REF!"}},{"$f":"AND(#REF!,\"D3Kfrgq1S+s=\")","v":{"$error":"#REF!"}},{"$f":"AND(#REF!,\"D3Kfrgq1S+w=\")","v":{"$error":"#REF!"}},{"$f":"AND(#REF!,\"D3Kfrgq1S+0=\")","v":{"$error":"#REF!"}},{"$f":"AND(#REF!,\"D3Kfrgq1S+4=\")","v":{"$error":"#REF!"}},{"$f":"AND(#REF!,\"D3Kfrgq1S+8=\")","v":{"$error":"#REF!"}},{"$f":"AND(#REF!,\"D3Kfrgq1S/A=\")","v":{"$error":"#REF!"}},{"$f":"AND(#REF!,\"D3Kfrgq1S/E=\")","v":{"$error":"#REF!"}},{"$f":"AND(#REF!,\"D3Kfrgq1S/I=\")","v":{"$error":"#REF!"}},{"$f":"AND(#REF!,\"D3Kfrgq1S/M=\")","v":{"$error":"#REF!"}},{"$f":"AND(#REF!,\"D3Kfrgq1S/Q=\")","v":{"$error":"#REF!"}},{"$f":"AND(#REF!,\"D3Kfrgq1S/U=\")","v":{"$error":"#REF!"}},{"$f":"AND(#REF!,\"D3Kfrgq1S/Y=\")","v":{"$error":"#REF!"}},{"$f":"AND(#REF!,\"D3Kfrgq1S/c=\")","v":{"$error":"#REF!"}},{"$f":"AND(#REF!,\"D3Kfrgq1S/g=\")","v":{"$error":"#REF!"}},{"$f":"AND(#REF!,\"D3Kfrgq1S/k=\")","v":{"$error":"#REF!"}},{"$f":"AND(#REF!,\"D3Kfrgq1S/o=\")","v":{"$error":"#REF!"}},{"$f":"AND(#REF!,\"D3Kfrgq1S/s=\")","v":{"$error":"#REF!"}},{"$f":"AND(#REF!,\"D3Kfrgq1S/w=\")","v":{"$error":"#REF!"}},{"$f":"AND(#REF!,\"D3Kfrgq1S/0=\")","v":{"$error":"#REF!"}},{"$f":"AND(#REF!,\"D3Kfrgq1S/4=\")","v":{"$error":"#REF!"}},{"$f":"AND(#REF!,\"D3Kfrgq1S/8=\")","v":{"$error":"#REF!"}}]
[{"$f":"AND(#REF!,\"QCThhDKZwgA=\")","v":{"$error":"#REF!"}},{"$f":"AND(#REF!,\"QCThhDKZwgE=\")","v":{"$error":"#REF!"}},{"$f":"AND(#REF!,\"QCThhDKZwgI=\")","v":{"$error":"#REF!"}},{"$f":"AND(#REF!,\"QCThhDKZwgM=\")","v":{"$error":"#REF!"}},{"$f":"AND(#REF!,\"QCThhDKZwgQ=\")","v":{"$error":"#REF!"}},{"$f":"AND(#REF!,\"QCThhDKZwgU=\")","v":{"$error":"#REF!"}},{"$f":"AND(#REF!,\"QCThhDKZwgY=\")","v":{"$error":"#REF!"}},{"$f":"AND(#REF!,\"QCThhDKZwgc=\")","v":{"$error":"#REF!"}},{"$f":"AND(#REF!,\"QCThhDKZwgg=\")","v":{"$error":"#REF!"}},{"$f":"AND(#REF!,\"QCThhDKZwgk=\")","v":{"$error":"#REF!"}},{"$f":"AND(#REF!,\"QCThhDKZwgo=\")","v":{"$error":"#REF!"}},{"$f":"AND(#REF!,\"QCThhDKZwgs=\")","v":{"$error":"#REF!"}},{"$f":"AND(#REF!,\"QCThhDKZwgw=\")","v":{"$error":"#REF!"}},{"$f":"AND(#REF!,\"QCThhDKZwg0=\")","v":{"$error":"#REF!"}},{"$f":"AND(#REF!,\"QCThhDKZwg4=\")","v":{"$error":"#REF!"}},{"$f":"AND(#REF!,\"QCThhDKZwg8=\")","v":{"$error":"#REF!"}},{"$f":"AND(#REF!,\"QCThhDKZwhA=\")","v":{"$error":"#REF!"}},{"$f":"AND(#REF!,\"QCThhDKZwhE=\")","v":{"$error":"#REF!"}},{"$f":"AND(#REF!,\"QCThhDKZwhI=\")","v":{"$error":"#REF!"}},{"$f":"AND(#REF!,\"QCThhDKZwhM=\")","v":{"$error":"#REF!"}},{"$f":"AND(#REF!,\"QCThhDKZwhQ=\")","v":{"$error":"#REF!"}},{"$f":"AND(#REF!,\"QCThhDKZwhU=\")","v":{"$error":"#REF!"}},{"$f":"AND(#REF!,\"QCThhDKZwhY=\")","v":{"$error":"#REF!"}},{"$f":"AND(#REF!,\"QCThhDKZwhc=\")","v":{"$error":"#REF!"}},{"$f":"AND(#REF!,\"QCThhDKZwhg=\")","v":{"$error":"#REF!"}},{"$f":"AND(#REF!,\"QCThhDKZwhk=\")","v":{"$error":"#REF!"}},{"$f":"AND(#REF!,\"QCThhDKZwho=\")","v":{"$error":"#REF!"}},{"$f":"AND(#REF!,\"QCThhDKZwhs=\")","v":{"$error":"#REF!"}},{"$f":"AND(#REF!,\"QCThhDKZwhw=\")","v":{"$error":"#REF!"}},{"$f":"AND(#REF!,\"QCThhDKZwh0=\")","v":{"$error":"#REF!"}},{"$f":"AND(#REF!,\"QCThhDKZwh4=\")","v":{"$error":"#REF!"}},{"$f":"AND(#REF!,\"QCThhDKZwh8=\")","v":{"$error":"#REF!"}},{"$f":"AND(#REF!,\"QCThhDKZwiA=\")","v":{"$error":"#REF!"}},{"$f":"AND(#REF!,\"QCThhDKZwiE=\")","v":{"$error":"#REF!"}},{"$f":"AND(#REF!,\"QCThhDKZwiI=\")","v":{"$error":"#REF!"}},{"$f":"AND(#REF!,\"QCThhDKZwiM=\")","v":{"$error":"#REF!"}},{"$f":"AND(#REF!,\"QCThhDKZwiQ=\")","v":{"$error":"#REF!"}},{"$f":"AND(#REF!,\"QCThhDKZwiU=\")","v":{"$error":"#REF!"}},{"$f":"AND(#REF!,\"QCThhDKZwiY=\")","v":{"$error":"#REF!"}},{"$f":"AND(#REF!,\"QCThhDKZwic=\")","v":{"$error":"#REF!"}},{"$f":"AND(#REF!,\"QCThhDKZwig=\")","v":{"$error":"#REF!"}},{"$f":"AND(#REF!,\"QCThhDKZwik=\")","v":{"$error":"#REF!"}},{"$f":"AND(#REF!,\"QCThhDKZwio=\")","v":{"$error":"#REF!"}},{"$f":"AND(#REF!,\"QCThhDKZwis=\")","v":{"$error":"#REF!"}},{"$f":"AND(#REF!,\"QCThhDKZwiw=\")","v":{"$error":"#REF!"}},{"$f":"IF(#REF!,\"QCThhDKZwi0=\",0)","v":{"$error":"#REF!"}},{"$f":"AND(#REF!,\"QCThhDKZwi4=\")","v":{"$error":"#REF!"}},{"$f":"AND(#REF!,\"QCThhDKZwi8=\")","v":{"$error":"#REF!"}},{"$f":"AND(#REF!,\"QCThhDKZwjA=\")","v":{"$error":"#REF!"}},{"$f":"AND(#REF!,\"QCThhDKZwjE=\")","v":{"$error":"#REF!"}},{"$f":"AND(#REF!,\"QCThhDKZwjI=\")","v":{"$error":"#REF!"}},{"$f":"AND(#REF!,\"QCThhDKZwjM=\")","v":{"$error":"#REF!"}},{"$f":"AND(#REF!,\"QCThhDKZwjQ=\")","v":{"$error":"#REF!"}},{"$f":"AND(#REF!,\"QCThhDKZwjU=\")","v":{"$error":"#REF!"}},{"$f":"AND(#REF!,\"QCThhDKZwjY=\")","v":{"$error":"#REF!"}},{"$f":"AND(#REF!,\"QCThhDKZwjc=\")","v":{"$error":"#REF!"}},{"$f":"AND(#REF!,\"QCThhDKZwjg=\")","v":{"$error":"#REF!"}},{"$f":"AND(#REF!,\"QCThhDKZwjk=\")","v":{"$error":"#REF!"}},{"$f":"AND(#REF!,\"QCThhDKZwjo=\")","v":{"$error":"#REF!"}},{"$f":"AND(#REF!,\"QCThhDKZwjs=\")","v":{"$error":"#REF!"}},{"$f":"AND(#REF!,\"QCThhDKZwjw=\")","v":{"$error":"#REF!"}},{"$f":"AND(#REF!,\"QCThhDKZwj0=\")","v":{"$error":"#REF!"}},{"$f":"AND(#REF!,\"QCThhDKZwj4=\")","v":{"$error":"#REF!"}},{"$f":"AND(#REF!,\"QCThhDKZwj8=\")","v":{"$error":"#REF!"}},{"$f":"AND(#REF!,\"QCThhDKZwkA=\")","v":{"$error":"#REF!"}},{"$f":"AND(#REF!,\"QCThhDKZwkE=\")","v":{"$error":"#REF!"}},{"$f":"AND(#REF!,\"QCThhDKZwkI=\")","v":{"$error":"#REF!"}},{"$f":"AND(#REF!,\"QCThhDKZwkM=\")","v":{"$error":"#REF!"}},{"$f":"AND(#REF!,\"QCThhDKZwkQ=\")","v":{"$error":"#REF!"}},{"$f":"AND(#REF!,\"QCThhDKZwkU=\")","v":{"$error":"#REF!"}},{"$f":"AND(#REF!,\"QCThhDKZwkY=\")","v":{"$error":"#REF!"}},{"$f":"AND(#REF!,\"QCThhDKZwkc=\")","v":{"$error":"#REF!"}},{"$f":"AND(#REF!,\"QCThhDKZwkg=\")","v":{"$error":"#REF!"}},{"$f":"AND(#REF!,\"QCThhDKZwkk=\")","v":{"$error":"#REF!"}},{"$f":"AND(#REF!,\"QCThhDKZwko=\")","v":{"$error":"#REF!"}},{"$f":"AND(#REF!,\"QCThhDKZwks=\")","v":{"$error":"#REF!"}},{"$f":"AND(#REF!,\"QCThhDKZwkw=\")","v":{"$error":"#REF!"}},{"$f":"AND(#REF!,\"QCThhDKZwk0=\")","v":{"$error":"#REF!"}},{"$f":"AND(#REF!,\"QCThhDKZwk4=\")","v":{"$error":"#REF!"}},{"$f":"AND(#REF!,\"QCThhDKZwk8=\")","v":{"$error":"#REF!"}},{"$f":"AND(#REF!,\"QCThhDKZwlA=\")","v":{"$error":"#REF!"}},{"$f":"AND(#REF!,\"QCThhDKZwlE=\")","v":{"$error":"#REF!"}},{"$f":"AND(#REF!,\"QCThhDKZwlI=\")","v":{"$error":"#REF!"}},{"$f":"AND(#REF!,\"QCThhDKZwlM=\")","v":{"$error":"#REF!"}},{"$f":"AND(#REF!,\"QCThhDKZwlQ=\")","v":{"$error":"#REF!"}},{"$f":"AND(#REF!,\"QCThhDKZwlU=\")","v":{"$error":"#REF!"}},{"$f":"AND(#REF!,\"QCThhDKZwlY=\")","v":{"$error":"#REF!"}},{"$f":"AND(#REF!,\"QCThhDKZwlc=\")","v":{"$error":"#REF!"}},{"$f":"AND(#REF!,\"QCThhDKZwlg=\")","v":{"$error":"#REF!"}},{"$f":"AND(#REF!,\"QCThhDKZwlk=\")","v":{"$error":"#REF!"}},{"$f":"AND(#REF!,\"QCThhDKZwlo=\")","v":{"$error":"#REF!"}},{"$f":"AND(#REF!,\"QCThhDKZwls=\")","v":{"$error":"#REF!"}},{"$f":"AND(#REF!,\"QCThhDKZwlw=\")","v":{"$error":"#REF!"}},{"$f":"AND(#REF!,\"QCThhDKZwl0=\")","v":{"$error":"#REF!"}},{"$f":"AND(#REF!,\"QCThhDKZwl4=\")","v":{"$error":"#REF!"}},{"$f":"AND(#REF!,\"QCThhDKZwl8=\")","v":{"$error":"#REF!"}},{"$f":"AND(#REF!,\"QCThhDKZwmA=\")","v":{"$error":"#REF!"}},{"$f":"AND(#REF!,\"QCThhDKZwmE=\")","v":{"$error":"#REF!"}},{"$f":"AND(#REF!,\"QCThhDKZwmI=\")","v":{"$error":"#REF!"}},{"$f":"AND(#REF!,\"QCThhDKZwmM=\")","v":{"$error":"#REF!"}},{"$f":"AND(#REF!,\"QCThhDKZwmQ=\")","v":{"$error":"#REF!"}},{"$f":"AND(#REF!,\"QCThhDKZwmU=\")","v":{"$error":"#REF!"}},{"$f":"AND(#REF!,\"QCThhDKZwmY=\")","v":{"$error":"#REF!"}},{"$f":"AND(#REF!,\"QCThhDKZwmc=\")","v":{"$error":"#REF!"}},{"$f":"AND(#REF!,\"QCThhDKZwmg=\")","v":{"$error":"#REF!"}},{"$f":"AND(#REF!,\"QCThhDKZwmk=\")","v":{"$error":"#REF!"}},{"$f":"AND(#REF!,\"QCThhDKZwmo=\")","v":{"$error":"#REF!"}},{"$f":"AND(#REF!,\"QCThhDKZwms=\")","v":{"$error":"#REF!"}},{"$f":"AND(#REF!,\"QCThhDKZwmw=\")","v":{"$error":"#REF!"}},{"$f":"AND(#REF!,\"QCThhDKZwm0=\")","v":{"$error":"#REF!"}},{"$f":"AND(#REF!,\"QCThhDKZwm4=\")","v":{"$error":"#REF!"}},{"$f":"AND(#REF!,\"QCThhDKZwm8=\")","v":{"$error":"#REF!"}},{"$f":"AND(#REF!,\"QCThhDKZwnA=\")","v":{"$error":"#REF!"}},{"$f":"AND(#REF!,\"QCThhDKZwnE=\")","v":{"$error":"#REF!"}},{"$f":"AND(#REF!,\"QCThhDKZwnI=\")","v":{"$error":"#REF!"}},{"$f":"AND(#REF!,\"QCThhDKZwnM=\")","v":{"$error":"#REF!"}},{"$f":"AND(#REF!,\"QCThhDKZwnQ=\")","v":{"$error":"#REF!"}},{"$f":"AND(#REF!,\"QCThhDKZwnU=\")","v":{"$error":"#REF!"}},{"$f":"AND(#REF!,\"QCThhDKZwnY=\")","v":{"$error":"#REF!"}},{"$f":"AND(#REF!,\"QCThhDKZwnc=\")","v":{"$error":"#REF!"}},{"$f":"AND(#REF!,\"QCThhDKZwng=\")","v":{"$error":"#REF!"}},{"$f":"AND(#REF!,\"QCThhDKZwnk=\")","v":{"$error":"#REF!"}},{"$f":"AND(#REF!,\"QCThhDKZwno=\")","v":{"$error":"#REF!"}},{"$f":"AND(#REF!,\"QCThhDKZwns=\")","v":{"$error":"#REF!"}},{"$f":"AND(#REF!,\"QCThhDKZwnw=\")","v":{"$error":"#REF!"}},{"$f":"AND(#REF!,\"QCThhDKZwn0=\")","v":{"$error":"#REF!"}},{"$f":"AND(#REF!,\"QCThhDKZwn4=\")","v":{"$error":"#REF!"}},{"$f":"AND(#REF!,\"QCThhDKZwn8=\")","v":{"$error":"#REF!"}},{"$f":"AND(#REF!,\"QCThhDKZwoA=\")","v":{"$error":"#REF!"}},{"$f":"AND(#REF!,\"QCThhDKZwoE=\")","v":{"$error":"#REF!"}},{"$f":"AND(#REF!,\"QCThhDKZwoI=\")","v":{"$error":"#REF!"}},{"$f":"AND(#REF!,\"QCThhDKZwoM=\")","v":{"$error":"#REF!"}},{"$f":"AND(#REF!,\"QCThhDKZwoQ=\")","v":{"$error":"#REF!"}},{"$f":"AND(#REF!,\"QCThhDKZwoU=\")","v":{"$error":"#REF!"}},{"$f":"AND(#REF!,\"QCThhDKZwoY=\")","v":{"$error":"#REF!"}},{"$f":"AND(#REF!,\"QCThhDKZwoc=\")","v":{"$error":"#REF!"}},{"$f":"AND(#REF!,\"QCThhDKZwog=\")","v":{"$error":"#REF!"}},{"$f":"AND(#REF!,\"QCThhDKZwok=\")","v":{"$error":"#REF!"}},{"$f":"AND(#REF!,\"QCThhDKZwoo=\")","v":{"$error":"#REF!"}},{"$f":"AND(#REF!,\"QCThhDKZwos=\")","v":{"$error":"#REF!"}},{"$f":"AND(#REF!,\"QCThhDKZwow=\")","v":{"$error":"#REF!"}},{"$f":"AND(#REF!,\"QCThhDKZwo0=\")","v":{"$error":"#REF!"}},{"$f":"AND(#REF!,\"QCThhDKZwo4=\")","v":{"$error":"#REF!"}},{"$f":"AND(#REF!,\"QCThhDKZwo8=\")","v":{"$error":"#REF!"}},{"$f":"AND(#REF!,\"QCThhDKZwpA=\")","v":{"$error":"#REF!"}},{"$f":"AND(#REF!,\"QCThhDKZwpE=\")","v":{"$error":"#REF!"}},{"$f":"AND(#REF!,\"QCThhDKZwpI=\")","v":{"$error":"#REF!"}},{"$f":"AND(#REF!,\"QCThhDKZwpM=\")","v":{"$error":"#REF!"}},{"$f":"AND(#REF!,\"QCThhDKZwpQ=\")","v":{"$error":"#REF!"}},{"$f":"AND(#REF!,\"QCThhDKZwpU=\")","v":{"$error":"#REF!"}},{"$f":"AND(#REF!,\"QCThhDKZwpY=\")","v":{"$error":"#REF!"}},{"$f":"AND(#REF!,\"QCThhDKZwpc=\")","v":{"$error":"#REF!"}},{"$f":"AND(#REF!,\"QCThhDKZwpg=\")","v":{"$error":"#REF!"}},{"$f":"AND(#REF!,\"QCThhDKZwpk=\")","v":{"$error":"#REF!"}},{"$f":"AND(#REF!,\"QCThhDKZwpo=\")","v":{"$error":"#REF!"}},{"$f":"AND(#REF!,\"QCThhDKZwps=\")","v":{"$error":"#REF!"}},{"$f":"AND(#REF!,\"QCThhDKZwpw=\")","v":{"$error":"#REF!"}},{"$f":"AND(#REF!,\"QCThhDKZwp0=\")","v":{"$error":"#REF!"}},{"$f":"AND(#REF!,\"QCThhDKZwp4=\")","v":{"$error":"#REF!"}},{"$f":"AND(#REF!,\"QCThhDKZwp8=\")","v":{"$error":"#REF!"}},{"$f":"AND(#REF!,\"QCThhDKZwqA=\")","v":{"$error":"#REF!"}},{"$f":"AND(#REF!,\"QCThhDKZwqE=\")","v":{"$error":"#REF!"}},{"$f":"AND(#REF!,\"QCThhDKZwqI=\")","v":{"$error":"#REF!"}},{"$f":"AND(#REF!,\"QCThhDKZwqM=\")","v":{"$error":"#REF!"}},{"$f":"AND(#REF!,\"QCThhDKZwqQ=\")","v":{"$error":"#REF!"}},{"$f":"AND(#REF!,\"QCThhDKZwqU=\")","v":{"$error":"#REF!"}},{"$f":"AND(#REF!,\"QCThhDKZwqY=\")","v":{"$error":"#REF!"}},{"$f":"AND(#REF!,\"QCThhDKZwqc=\")","v":{"$error":"#REF!"}},{"$f":"AND(#REF!,\"QCThhDKZwqg=\")","v":{"$error":"#REF!"}},{"$f":"AND(#REF!,\"QCThhDKZwqk=\")","v":{"$error":"#REF!"}},{"$f":"AND(#REF!,\"QCThhDKZwqo=\")","v":{"$error":"#REF!"}},{"$f":"AND(#REF!,\"QCThhDKZwqs=\")","v":{"$error":"#REF!"}},{"$f":"AND(#REF!,\"QCThhDKZwqw=\")","v":{"$error":"#REF!"}},{"$f":"AND(#REF!,\"QCThhDKZwq0=\")","v":{"$error":"#REF!"}},{"$f":"AND(#REF!,\"QCThhDKZwq4=\")","v":{"$error":"#REF!"}},{"$f":"AND(#REF!,\"QCThhDKZwq8=\")","v":{"$error":"#REF!"}},{"$f":"AND(#REF!,\"QCThhDKZwrA=\")","v":{"$error":"#REF!"}},{"$f":"AND(#REF!,\"QCThhDKZwrE=\")","v":{"$error":"#REF!"}},{"$f":"AND(#REF!,\"QCThhDKZwrI=\")","v":{"$error":"#REF!"}},{"$f":"AND(#REF!,\"QCThhDKZwrM=\")","v":{"$error":"#REF!"}},{"$f":"AND(#REF!,\"QCThhDKZwrQ=\")","v":{"$error":"#REF!"}},{"$f":"AND(#REF!,\"QCThhDKZwrU=\")","v":{"$error":"#REF!"}},{"$f":"AND(#REF!,\"QCThhDKZwrY=\")","v":{"$error":"#REF!"}},{"$f":"AND(#REF!,\"QCThhDKZwrc=\")","v":{"$error":"#REF!"}},{"$f":"AND(#REF!,\"QCThhDKZwrg=\")","v":{"$error":"#REF!"}},{"$f":"AND(#REF!,\"QCThhDKZwrk=\")","v":{"$error":"#REF!"}},{"$f":"AND(#REF!,\"QCThhDKZwro=\")","v":{"$error":"#REF!"}},{"$f":"AND(#REF!,\"QCThhDKZwrs=\")","v":{"$error":"#REF!"}},{"$f":"AND(#REF!,\"QCThhDKZwrw=\")","v":{"$error":"#REF!"}},{"$f":"AND(#REF!,\"QCThhDKZwr0=\")","v":{"$error":"#REF!"}},{"$f":"AND(#REF!,\"QCThhDKZwr4=\")","v":{"$error":"#REF!"}},{"$f":"AND(#REF!,\"QCThhDKZwr8=\")","v":{"$error":"#REF!"}},{"$f":"AND(#REF!,\"QCThhDKZwsA=\")","v":{"$error":"#REF!"}},{"$f":"AND(#REF!,\"QCThhDKZwsE=\")","v":{"$error":"#REF!"}},{"$f":"AND(#REF!,\"QCThhDKZwsI=\")","v":{"$error":"#REF!"}},{"$f":"AND(#REF!,\"QCThhDKZwsM=\")","v":{"$error":"#REF!"}},{"$f":"AND(#REF!,\"QCThhDKZwsQ=\")","v":{"$error":"#REF!"}},{"$f":"AND(#REF!,\"QCThhDKZwsU=\")","v":{"$error":"#REF!"}},{"$f":"AND(#REF!,\"QCThhDKZwsY=\")","v":{"$error":"#REF!"}},{"$f":"AND(#REF!,\"QCThhDKZwsc=\")","v":{"$error":"#REF!"}},{"$f":"AND(#REF!,\"QCThhDKZwsg=\")","v":{"$error":"#REF!"}},{"$f":"AND(#REF!,\"QCThhDKZwsk=\")","v":{"$error":"#REF!"}},{"$f":"AND(#REF!,\"QCThhDKZwso=\")","v":{"$error":"#REF!"}},{"$f":"AND(#REF!,\"QCThhDKZwss=\")","v":{"$error":"#REF!"}},{"$f":"AND(#REF!,\"QCThhDKZwsw=\")","v":{"$error":"#REF!"}},{"$f":"AND(#REF!,\"QCThhDKZws0=\")","v":{"$error":"#REF!"}},{"$f":"AND(#REF!,\"QCThhDKZws4=\")","v":{"$error":"#REF!"}},{"$f":"AND(#REF!,\"QCThhDKZws8=\")","v":{"$error":"#REF!"}},{"$f":"AND(#REF!,\"QCThhDKZwtA=\")","v":{"$error":"#REF!"}},{"$f":"AND(#REF!,\"QCThhDKZwtE=\")","v":{"$error":"#REF!"}},{"$f":"AND(#REF!,\"QCThhDKZwtI=\")","v":{"$error":"#REF!"}},{"$f":"AND(#REF!,\"QCThhDKZwtM=\")","v":{"$error":"#REF!"}},{"$f":"AND(#REF!,\"QCThhDKZwtQ=\")","v":{"$error":"#REF!"}},{"$f":"AND(#REF!,\"QCThhDKZwtU=\")","v":{"$error":"#REF!"}},{"$f":"AND(#REF!,\"QCThhDKZwtY=\")","v":{"$error":"#REF!"}},{"$f":"AND(#REF!,\"QCThhDKZwtc=\")","v":{"$error":"#REF!"}},{"$f":"AND(#REF!,\"QCThhDKZwtg=\")","v":{"$error":"#REF!"}},{"$f":"AND(#REF!,\"QCThhDKZwtk=\")","v":{"$error":"#REF!"}},{"$f":"AND(#REF!,\"QCThhDKZwto=\")","v":{"$error":"#REF!"}},{"$f":"AND(#REF!,\"QCThhDKZwts=\")","v":{"$error":"#REF!"}},{"$f":"AND(#REF!,\"QCThhDKZwtw=\")","v":{"$error":"#REF!"}},{"$f":"AND(#REF!,\"QCThhDKZwt0=\")","v":{"$error":"#REF!"}},{"$f":"AND(#REF!,\"QCThhDKZwt4=\")","v":{"$error":"#REF!"}},{"$f":"AND(#REF!,\"QCThhDKZwt8=\")","v":{"$error":"#REF!"}},{"$f":"AND(#REF!,\"QCThhDKZwuA=\")","v":{"$error":"#REF!"}},{"$f":"AND(#REF!,\"QCThhDKZwuE=\")","v":{"$error":"#REF!"}},{"$f":"AND(#REF!,\"QCThhDKZwuI=\")","v":{"$error":"#REF!"}},{"$f":"AND(#REF!,\"QCThhDKZwuM=\")","v":{"$error":"#REF!"}},{"$f":"AND(#REF!,\"QCThhDKZwuQ=\")","v":{"$error":"#REF!"}},{"$f":"AND(#REF!,\"QCThhDKZwuU=\")","v":{"$error":"#REF!"}},{"$f":"AND(#REF!,\"QCThhDKZwuY=\")","v":{"$error":"#REF!"}},{"$f":"AND(#REF!,\"QCThhDKZwuc=\")","v":{"$error":"#REF!"}},{"$f":"AND(#REF!,\"QCThhDKZwug=\")","v":{"$error":"#REF!"}},{"$f":"AND(#REF!,\"QCThhDKZwuk=\")","v":{"$error":"#REF!"}},{"$f":"AND(#REF!,\"QCThhDKZwuo=\")","v":{"$error":"#REF!"}},{"$f":"AND(#REF!,\"QCThhDKZwus=\")","v":{"$error":"#REF!"}},{"$f":"AND(#REF!,\"QCThhDKZwuw=\")","v":{"$error":"#REF!"}},{"$f":"AND(#REF!,\"QCThhDKZwu0=\")","v":{"$error":"#REF!"}},{"$f":"AND(#REF!,\"QCThhDKZwu4=\")","v":{"$error":"#REF!"}},{"$f":"AND(#REF!,\"QCThhDKZwu8=\")","v":{"$error":"#REF!"}},{"$f":"AND(#REF!,\"QCThhDKZwvA=\")","v":{"$error":"#REF!"}},{"$f":"AND(#REF!,\"QCThhDKZwvE=\")","v":{"$error":"#REF!"}},{"$f":"AND(#REF!,\"QCThhDKZwvI=\")","v":{"$error":"#REF!"}},{"$f":"AND(#REF!,\"QCThhDKZwvM=\")","v":{"$error":"#REF!"}},{"$f":"IF(#REF!,\"QCThhDKZwvQ=\",0)","v":{"$error":"#REF!"}},{"$f":"AND(#REF!,\"QCThhDKZwvU=\")","v":{"$error":"#REF!"}},{"$f":"AND(#REF!,\"QCThhDKZwvY=\")","v":{"$error":"#REF!"}},{"$f":"AND(#REF!,\"QCThhDKZwvc=\")","v":{"$error":"#REF!"}},{"$f":"AND(#REF!,\"QCThhDKZwvg=\")","v":{"$error":"#REF!"}},{"$f":"AND(#REF!,\"QCThhDKZwvk=\")","v":{"$error":"#REF!"}},{"$f":"AND(#REF!,\"QCThhDKZwvo=\")","v":{"$error":"#REF!"}},{"$f":"AND(#REF!,\"QCThhDKZwvs=\")","v":{"$error":"#REF!"}},{"$f":"AND(#REF!,\"QCThhDKZwvw=\")","v":{"$error":"#REF!"}},{"$f":"AND(#REF!,\"QCThhDKZwv0=\")","v":{"$error":"#REF!"}},{"$f":"AND(#REF!,\"QCThhDKZwv4=\")","v":{"$error":"#REF!"}},{"$f":"AND(#REF!,\"QCThhDKZwv8=\")","v":{"$error":"#REF!"}}]
[{"$f":"AND(#REF!,\"U08KP2mFgwA=\")","v":{"$error":"#REF!"}},{"$f":"AND(#REF!,\"U08KP2mFgwE=\")","v":{"$error":"#REF!"}},{"$f":"AND(#REF!,\"U08KP2mFgwI=\")","v":{"$error":"#REF!"}},{"$f":"AND(#REF!,\"U08KP2mFgwM=\")","v":{"$error":"#REF!"}},{"$f":"AND(#REF!,\"U08KP2mFgwQ=\")","v":{"$error":"#REF!"}},{"$f":"AND(#REF!,\"U08KP2mFgwU=\")","v":{"$error":"#REF!"}},{"$f":"AND(#REF!,\"U08KP2mFgwY=\")","v":{"$error":"#REF!"}},{"$f":"AND(#REF!,\"U08KP2mFgwc=\")","v":{"$error":"#REF!"}},{"$f":"AND(#REF!,\"U08KP2mFgwg=\")","v":{"$error":"#REF!"}},{"$f":"AND(#REF!,\"U08KP2mFgwk=\")","v":{"$error":"#REF!"}},{"$f":"AND(#REF!,\"U08KP2mFgwo=\")","v":{"$error":"#REF!"}},{"$f":"AND(#REF!,\"U08KP2mFgws=\")","v":{"$error":"#REF!"}},{"$f":"AND(#REF!,\"U08KP2mFgww=\")","v":{"$error":"#REF!"}},{"$f":"AND(#REF!,\"U08KP2mFgw0=\")","v":{"$error":"#REF!"}},{"$f":"AND(#REF!,\"U08KP2mFgw4=\")","v":{"$error":"#REF!"}},{"$f":"AND(#REF!,\"U08KP2mFgw8=\")","v":{"$error":"#REF!"}},{"$f":"AND(#REF!,\"U08KP2mFgxA=\")","v":{"$error":"#REF!"}},{"$f":"AND(#REF!,\"U08KP2mFgxE=\")","v":{"$error":"#REF!"}},{"$f":"AND(#REF!,\"U08KP2mFgxI=\")","v":{"$error":"#REF!"}},{"$f":"AND(#REF!,\"U08KP2mFgxM=\")","v":{"$error":"#REF!"}},{"$f":"AND(#REF!,\"U08KP2mFgxQ=\")","v":{"$error":"#REF!"}},{"$f":"AND(#REF!,\"U08KP2mFgxU=\")","v":{"$error":"#REF!"}},{"$f":"AND(#REF!,\"U08KP2mFgxY=\")","v":{"$error":"#REF!"}},{"$f":"AND(#REF!,\"U08KP2mFgxc=\")","v":{"$error":"#REF!"}},{"$f":"AND(#REF!,\"U08KP2mFgxg=\")","v":{"$error":"#REF!"}},{"$f":"AND(#REF!,\"U08KP2mFgxk=\")","v":{"$error":"#REF!"}},{"$f":"AND(#REF!,\"U08KP2mFgxo=\")","v":{"$error":"#REF!"}},{"$f":"AND(#REF!,\"U08KP2mFgxs=\")","v":{"$error":"#REF!"}},{"$f":"AND(#REF!,\"U08KP2mFgxw=\")","v":{"$error":"#REF!"}},{"$f":"AND(#REF!,\"U08KP2mFgx0=\")","v":{"$error":"#REF!"}},{"$f":"AND(#REF!,\"U08KP2mFgx4=\")","v":{"$error":"#REF!"}},{"$f":"AND(#REF!,\"U08KP2mFgx8=\")","v":{"$error":"#REF!"}},{"$f":"AND(#REF!,\"U08KP2mFgyA=\")","v":{"$error":"#REF!"}},{"$f":"AND(#REF!,\"U08KP2mFgyE=\")","v":{"$error":"#REF!"}},{"$f":"AND(#REF!,\"U08KP2mFgyI=\")","v":{"$error":"#REF!"}},{"$f":"AND(#REF!,\"U08KP2mFgyM=\")","v":{"$error":"#REF!"}},{"$f":"AND(#REF!,\"U08KP2mFgyQ=\")","v":{"$error":"#REF!"}},{"$f":"AND(#REF!,\"U08KP2mFgyU=\")","v":{"$error":"#REF!"}},{"$f":"AND(#REF!,\"U08KP2mFgyY=\")","v":{"$error":"#REF!"}},{"$f":"AND(#REF!,\"U08KP2mFgyc=\")","v":{"$error":"#REF!"}},{"$f":"AND(#REF!,\"U08KP2mFgyg=\")","v":{"$error":"#REF!"}},{"$f":"AND(#REF!,\"U08KP2mFgyk=\")","v":{"$error":"#REF!"}},{"$f":"AND(#REF!,\"U08KP2mFgyo=\")","v":{"$error":"#REF!"}},{"$f":"AND(#REF!,\"U08KP2mFgys=\")","v":{"$error":"#REF!"}},{"$f":"AND(#REF!,\"U08KP2mFgyw=\")","v":{"$error":"#REF!"}},{"$f":"AND(#REF!,\"U08KP2mFgy0=\")","v":{"$error":"#REF!"}},{"$f":"AND(#REF!,\"U08KP2mFgy4=\")","v":{"$error":"#REF!"}},{"$f":"AND(#REF!,\"U08KP2mFgy8=\")","v":{"$error":"#REF!"}},{"$f":"AND(#REF!,\"U08KP2mFgzA=\")","v":{"$error":"#REF!"}},{"$f":"AND(#REF!,\"U08KP2mFgzE=\")","v":{"$error":"#REF!"}},{"$f":"AND(#REF!,\"U08KP2mFgzI=\")","v":{"$error":"#REF!"}},{"$f":"AND(#REF!,\"U08KP2mFgzM=\")","v":{"$error":"#REF!"}},{"$f":"AND(#REF!,\"U08KP2mFgzQ=\")","v":{"$error":"#REF!"}},{"$f":"AND(#REF!,\"U08KP2mFgzU=\")","v":{"$error":"#REF!"}},{"$f":"AND(#REF!,\"U08KP2mFgzY=\")","v":{"$error":"#REF!"}},{"$f":"AND(#REF!,\"U08KP2mFgzc=\")","v":{"$error":"#REF!"}},{"$f":"AND(#REF!,\"U08KP2mFgzg=\")","v":{"$error":"#REF!"}},{"$f":"AND(#REF!,\"U08KP2mFgzk=\")","v":{"$error":"#REF!"}},{"$f":"AND(#REF!,\"U08KP2mFgzo=\")","v":{"$error":"#REF!"}},{"$f":"AND(#REF!,\"U08KP2mFgzs=\")","v":{"$error":"#REF!"}},{"$f":"AND(#REF!,\"U08KP2mFgzw=\")","v":{"$error":"#REF!"}},{"$f":"AND(#REF!,\"U08KP2mFgz0=\")","v":{"$error":"#REF!"}},{"$f":"AND(#REF!,\"U08KP2mFgz4=\")","v":{"$error":"#REF!"}},{"$f":"AND(#REF!,\"U08KP2mFgz8=\")","v":{"$error":"#REF!"}},{"$f":"AND(#REF!,\"U08KP2mFg0A=\")","v":{"$error":"#REF!"}},{"$f":"AND(#REF!,\"U08KP2mFg0E=\")","v":{"$error":"#REF!"}},{"$f":"AND(#REF!,\"U08KP2mFg0I=\")","v":{"$error":"#REF!"}},{"$f":"AND(#REF!,\"U08KP2mFg0M=\")","v":{"$error":"#REF!"}},{"$f":"AND(#REF!,\"U08KP2mFg0Q=\")","v":{"$error":"#REF!"}},{"$f":"AND(#REF!,\"U08KP2mFg0U=\")","v":{"$error":"#REF!"}},{"$f":"AND(#REF!,\"U08KP2mFg0Y=\")","v":{"$error":"#REF!"}},{"$f":"AND(#REF!,\"U08KP2mFg0c=\")","v":{"$error":"#REF!"}},{"$f":"AND(#REF!,\"U08KP2mFg0g=\")","v":{"$error":"#REF!"}},{"$f":"AND(#REF!,\"U08KP2mFg0k=\")","v":{"$error":"#REF!"}},{"$f":"AND(#REF!,\"U08KP2mFg0o=\")","v":{"$error":"#REF!"}},{"$f":"AND(#REF!,\"U08KP2mFg0s=\")","v":{"$error":"#REF!"}},{"$f":"AND(#REF!,\"U08KP2mFg0w=\")","v":{"$error":"#REF!"}},{"$f":"AND(#REF!,\"U08KP2mFg00=\")","v":{"$error":"#REF!"}},{"$f":"AND(#REF!,\"U08KP2mFg04=\")","v":{"$error":"#REF!"}},{"$f":"AND(#REF!,\"U08KP2mFg08=\")","v":{"$error":"#REF!"}},{"$f":"AND(#REF!,\"U08KP2mFg1A=\")","v":{"$error":"#REF!"}},{"$f":"AND(#REF!,\"U08KP2mFg1E=\")","v":{"$error":"#REF!"}},{"$f":"AND(#REF!,\"U08KP2mFg1I=\")","v":{"$error":"#REF!"}},{"$f":"AND(#REF!,\"U08KP2mFg1M=\")","v":{"$error":"#REF!"}},{"$f":"AND(#REF!,\"U08KP2mFg1Q=\")","v":{"$error":"#REF!"}},{"$f":"AND(#REF!,\"U08KP2mFg1U=\")","v":{"$error":"#REF!"}},{"$f":"AND(#REF!,\"U08KP2mFg1Y=\")","v":{"$error":"#REF!"}},{"$f":"AND(#REF!,\"U08KP2mFg1c=\")","v":{"$error":"#REF!"}},{"$f":"AND(#REF!,\"U08KP2mFg1g=\")","v":{"$error":"#REF!"}},{"$f":"AND(#REF!,\"U08KP2mFg1k=\")","v":{"$error":"#REF!"}},{"$f":"AND(#REF!,\"U08KP2mFg1o=\")","v":{"$error":"#REF!"}},{"$f":"AND(#REF!,\"U08KP2mFg1s=\")","v":{"$error":"#REF!"}},{"$f":"AND(#REF!,\"U08KP2mFg1w=\")","v":{"$error":"#REF!"}},{"$f":"AND(#REF!,\"U08KP2mFg10=\")","v":{"$error":"#REF!"}},{"$f":"AND(#REF!,\"U08KP2mFg14=\")","v":{"$error":"#REF!"}},{"$f":"AND(#REF!,\"U08KP2mFg18=\")","v":{"$error":"#REF!"}},{"$f":"AND(#REF!,\"U08KP2mFg2A=\")","v":{"$error":"#REF!"}},{"$f":"AND(#REF!,\"U08KP2mFg2E=\")","v":{"$error":"#REF!"}},{"$f":"AND(#REF!,\"U08KP2mFg2I=\")","v":{"$error":"#REF!"}},{"$f":"AND(#REF!,\"U08KP2mFg2M=\")","v":{"$error":"#REF!"}},{"$f":"AND(#REF!,\"U08KP2mFg2Q=\")","v":{"$error":"#REF!"}},{"$f":"AND(#REF!,\"U08KP2mFg2U=\")","v":{"$error":"#REF!"}},{"$f":"AND(#REF!,\"U08KP2mFg2Y=\")","v":{"$error":"#REF!"}},{"$f":"AND(#REF!,\"U08KP2mFg2c=\")","v":{"$error":"#REF!"}},{"$f":"AND(#REF!,\"U08KP2mFg2g=\")","v":{"$error":"#REF!"}},{"$f":"AND(#REF!,\"U08KP2mFg2k=\")","v":{"$error":"#REF!"}},{"$f":"AND(#REF!,\"U08KP2mFg2o=\")","v":{"$error":"#REF!"}},{"$f":"AND(#REF!,\"U08KP2mFg2s=\")","v":{"$error":"#REF!"}},{"$f":"AND(#REF!,\"U08KP2mFg2w=\")","v":{"$error":"#REF!"}},{"$f":"AND(#REF!,\"U08KP2mFg20=\")","v":{"$error":"#REF!"}},{"$f":"AND(#REF!,\"U08KP2mFg24=\")","v":{"$error":"#REF!"}},{"$f":"AND(#REF!,\"U08KP2mFg28=\")","v":{"$error":"#REF!"}},{"$f":"AND(#REF!,\"U08KP2mFg3A=\")","v":{"$error":"#REF!"}},{"$f":"AND(#REF!,\"U08KP2mFg3E=\")","v":{"$error":"#REF!"}},{"$f":"AND(#REF!,\"U08KP2mFg3I=\")","v":{"$error":"#REF!"}},{"$f":"AND(#REF!,\"U08KP2mFg3M=\")","v":{"$error":"#REF!"}},{"$f":"AND(#REF!,\"U08KP2mFg3Q=\")","v":{"$error":"#REF!"}},{"$f":"AND(#REF!,\"U08KP2mFg3U=\")","v":{"$error":"#REF!"}},{"$f":"AND(#REF!,\"U08KP2mFg3Y=\")","v":{"$error":"#REF!"}},{"$f":"AND(#REF!,\"U08KP2mFg3c=\")","v":{"$error":"#REF!"}},{"$f":"AND(#REF!,\"U08KP2mFg3g=\")","v":{"$error":"#REF!"}},{"$f":"AND(#REF!,\"U08KP2mFg3k=\")","v":{"$error":"#REF!"}},{"$f":"AND(#REF!,\"U08KP2mFg3o=\")","v":{"$error":"#REF!"}},{"$f":"AND(#REF!,\"U08KP2mFg3s=\")","v":{"$error":"#REF!"}},{"$f":"AND(#REF!,\"U08KP2mFg3w=\")","v":{"$error":"#REF!"}},{"$f":"AND(#REF!,\"U08KP2mFg30=\")","v":{"$error":"#REF!"}},{"$f":"AND(#REF!,\"U08KP2mFg34=\")","v":{"$error":"#REF!"}},{"$f":"AND(#REF!,\"U08KP2mFg38=\")","v":{"$error":"#REF!"}},{"$f":"AND(#REF!,\"U08KP2mFg4A=\")","v":{"$error":"#REF!"}},{"$f":"AND(#REF!,\"U08KP2mFg4E=\")","v":{"$error":"#REF!"}},{"$f":"AND(#REF!,\"U08KP2mFg4I=\")","v":{"$error":"#REF!"}},{"$f":"AND(#REF!,\"U08KP2mFg4M=\")","v":{"$error":"#REF!"}},{"$f":"AND(#REF!,\"U08KP2mFg4Q=\")","v":{"$error":"#REF!"}},{"$f":"AND(#REF!,\"U08KP2mFg4U=\")","v":{"$error":"#REF!"}},{"$f":"AND(#REF!,\"U08KP2mFg4Y=\")","v":{"$error":"#REF!"}},{"$f":"AND(#REF!,\"U08KP2mFg4c=\")","v":{"$error":"#REF!"}},{"$f":"AND(#REF!,\"U08KP2mFg4g=\")","v":{"$error":"#REF!"}},{"$f":"AND(#REF!,\"U08KP2mFg4k=\")","v":{"$error":"#REF!"}},{"$f":"AND(#REF!,\"U08KP2mFg4o=\")","v":{"$error":"#REF!"}},{"$f":"AND(#REF!,\"U08KP2mFg4s=\")","v":{"$error":"#REF!"}},{"$f":"AND(#REF!,\"U08KP2mFg4w=\")","v":{"$error":"#REF!"}},{"$f":"AND(#REF!,\"U08KP2mFg40=\")","v":{"$error":"#REF!"}},{"$f":"AND(#REF!,\"U08KP2mFg44=\")","v":{"$error":"#REF!"}},{"$f":"AND(#REF!,\"U08KP2mFg48=\")","v":{"$error":"#REF!"}},{"$f":"AND(#REF!,\"U08KP2mFg5A=\")","v":{"$error":"#REF!"}},{"$f":"AND(#REF!,\"U08KP2mFg5E=\")","v":{"$error":"#REF!"}},{"$f":"AND(#REF!,\"U08KP2mFg5I=\")","v":{"$error":"#REF!"}},{"$f":"AND(#REF!,\"U08KP2mFg5M=\")","v":{"$error":"#REF!"}},{"$f":"AND(#REF!,\"U08KP2mFg5Q=\")","v":{"$error":"#REF!"}},{"$f":"AND(#REF!,\"U08KP2mFg5U=\")","v":{"$error":"#REF!"}},{"$f":"AND(#REF!,\"U08KP2mFg5Y=\")","v":{"$error":"#REF!"}},{"$f":"AND(#REF!,\"U08KP2mFg5c=\")","v":{"$error":"#REF!"}},{"$f":"AND(#REF!,\"U08KP2mFg5g=\")","v":{"$error":"#REF!"}},{"$f":"AND(#REF!,\"U08KP2mFg5k=\")","v":{"$error":"#REF!"}},{"$f":"AND(#REF!,\"U08KP2mFg5o=\")","v":{"$error":"#REF!"}},{"$f":"AND(#REF!,\"U08KP2mFg5s=\")","v":{"$error":"#REF!"}},{"$f":"AND(#REF!,\"U08KP2mFg5w=\")","v":{"$error":"#REF!"}},{"$f":"AND(#REF!,\"U08KP2mFg50=\")","v":{"$error":"#REF!"}},{"$f":"AND(#REF!,\"U08KP2mFg54=\")","v":{"$error":"#REF!"}},{"$f":"AND(#REF!,\"U08KP2mFg58=\")","v":{"$error":"#REF!"}},{"$f":"AND(#REF!,\"U08KP2mFg6A=\")","v":{"$error":"#REF!"}},{"$f":"AND(#REF!,\"U08KP2mFg6E=\")","v":{"$error":"#REF!"}},{"$f":"AND(#REF!,\"U08KP2mFg6I=\")","v":{"$error":"#REF!"}},{"$f":"AND(#REF!,\"U08KP2mFg6M=\")","v":{"$error":"#REF!"}},{"$f":"AND(#REF!,\"U08KP2mFg6Q=\")","v":{"$error":"#REF!"}},{"$f":"AND(#REF!,\"U08KP2mFg6U=\")","v":{"$error":"#REF!"}},{"$f":"AND(#REF!,\"U08KP2mFg6Y=\")","v":{"$error":"#REF!"}},{"$f":"AND(#REF!,\"U08KP2mFg6c=\")","v":{"$error":"#REF!"}},{"$f":"AND(#REF!,\"U08KP2mFg6g=\")","v":{"$error":"#REF!"}},{"$f":"AND(#REF!,\"U08KP2mFg6k=\")","v":{"$error":"#REF!"}},{"$f":"AND(#REF!,\"U08KP2mFg6o=\")","v":{"$error":"#REF!"}},{"$f":"AND(#REF!,\"U08KP2mFg6s=\")","v":{"$error":"#REF!"}},{"$f":"AND(#REF!,\"U08KP2mFg6w=\")","v":{"$error":"#REF!"}},{"$f":"AND(#REF!,\"U08KP2mFg60=\")","v":{"$error":"#REF!"}},{"$f":"AND(#REF!,\"U08KP2mFg64=\")","v":{"$error":"#REF!"}},{"$f":"AND(#REF!,\"U08KP2mFg68=\")","v":{"$error":"#REF!"}},{"$f":"AND(#REF!,\"U08KP2mFg7A=\")","v":{"$error":"#REF!"}},{"$f":"AND(#REF!,\"U08KP2mFg7E=\")","v":{"$error":"#REF!"}},{"$f":"AND(#REF!,\"U08KP2mFg7I=\")","v":{"$error":"#REF!"}},{"$f":"AND(#REF!,\"U08KP2mFg7M=\")","v":{"$error":"#REF!"}},{"$f":"AND(#REF!,\"U08KP2mFg7Q=\")","v":{"$error":"#REF!"}},{"$f":"AND(#REF!,\"U08KP2mFg7U=\")","v":{"$error":"#REF!"}},{"$f":"AND(#REF!,\"U08KP2mFg7Y=\")","v":{"$error":"#REF!"}},{"$f":"AND(#REF!,\"U08KP2mFg7c=\")","v":{"$error":"#REF!"}},{"$f":"AND(#REF!,\"U08KP2mFg7g=\")","v":{"$error":"#REF!"}},{"$f":"AND(#REF!,\"U08KP2mFg7k=\")","v":{"$error":"#REF!"}},{"$f":"AND(#REF!,\"U08KP2mFg7o=\")","v":{"$error":"#REF!"}},{"$f":"IF(#REF!,\"U08KP2mFg7s=\",0)","v":{"$error":"#REF!"}},{"$f":"AND(#REF!,\"U08KP2mFg7w=\")","v":{"$error":"#REF!"}},{"$f":"AND(#REF!,\"U08KP2mFg70=\")","v":{"$error":"#REF!"}},{"$f":"AND(#REF!,\"U08KP2mFg74=\")","v":{"$error":"#REF!"}},{"$f":"AND(#REF!,\"U08KP2mFg78=\")","v":{"$error":"#REF!"}},{"$f":"AND(#REF!,\"U08KP2mFg8A=\")","v":{"$error":"#REF!"}},{"$f":"AND(#REF!,\"U08KP2mFg8E=\")","v":{"$error":"#REF!"}},{"$f":"AND(#REF!,\"U08KP2mFg8I=\")","v":{"$error":"#REF!"}},{"$f":"AND(#REF!,\"U08KP2mFg8M=\")","v":{"$error":"#REF!"}},{"$f":"AND(#REF!,\"U08KP2mFg8Q=\")","v":{"$error":"#REF!"}},{"$f":"AND(#REF!,\"U08KP2mFg8U=\")","v":{"$error":"#REF!"}},{"$f":"AND(#REF!,\"U08KP2mFg8Y=\")","v":{"$error":"#REF!"}},{"$f":"AND(#REF!,\"U08KP2mFg8c=\")","v":{"$error":"#REF!"}},{"$f":"AND(#REF!,\"U08KP2mFg8g=\")","v":{"$error":"#REF!"}},{"$f":"AND(#REF!,\"U08KP2mFg8k=\")","v":{"$error":"#REF!"}},{"$f":"AND(#REF!,\"U08KP2mFg8o=\")","v":{"$error":"#REF!"}},{"$f":"AND(#REF!,\"U08KP2mFg8s=\")","v":{"$error":"#REF!"}},{"$f":"AND(#REF!,\"U08KP2mFg8w=\")","v":{"$error":"#REF!"}},{"$f":"AND(#REF!,\"U08KP2mFg80=\")","v":{"$error":"#REF!"}},{"$f":"AND(#REF!,\"U08KP2mFg84=\")","v":{"$error":"#REF!"}},{"$f":"AND(#REF!,\"U08KP2mFg88=\")","v":{"$error":"#REF!"}},{"$f":"AND(#REF!,\"U08KP2mFg9A=\")","v":{"$error":"#REF!"}},{"$f":"AND(#REF!,\"U08KP2mFg9E=\")","v":{"$error":"#REF!"}},{"$f":"AND(#REF!,\"U08KP2mFg9I=\")","v":{"$error":"#REF!"}},{"$f":"AND(#REF!,\"U08KP2mFg9M=\")","v":{"$error":"#REF!"}},{"$f":"AND(#REF!,\"U08KP2mFg9Q=\")","v":{"$error":"#REF!"}},{"$f":"AND(#REF!,\"U08KP2mFg9U=\")","v":{"$error":"#REF!"}},{"$f":"AND(#REF!,\"U08KP2mFg9Y=\")","v":{"$error":"#REF!"}},{"$f":"AND(#REF!,\"U08KP2mFg9c=\")","v":{"$error":"#REF!"}},{"$f":"AND(#REF!,\"U08KP2mFg9g=\")","v":{"$error":"#REF!"}},{"$f":"AND(#REF!,\"U08KP2mFg9k=\")","v":{"$error":"#REF!"}},{"$f":"AND(#REF!,\"U08KP2mFg9o=\")","v":{"$error":"#REF!"}},{"$f":"AND(#REF!,\"U08KP2mFg9s=\")","v":{"$error":"#REF!"}},{"$f":"AND(#REF!,\"U08KP2mFg9w=\")","v":{"$error":"#REF!"}},{"$f":"AND(#REF!,\"U08KP2mFg90=\")","v":{"$error":"#REF!"}},{"$f":"AND(#REF!,\"U08KP2mFg94=\")","v":{"$error":"#REF!"}},{"$f":"AND(#REF!,\"U08KP2mFg98=\")","v":{"$error":"#REF!"}},{"$f":"AND(#REF!,\"U08KP2mFg+A=\")","v":{"$error":"#REF!"}},{"$f":"AND(#REF!,\"U08KP2mFg+E=\")","v":{"$error":"#REF!"}},{"$f":"AND(#REF!,\"U08KP2mFg+I=\")","v":{"$error":"#REF!"}},{"$f":"AND(#REF!,\"U08KP2mFg+M=\")","v":{"$error":"#REF!"}},{"$f":"AND(#REF!,\"U08KP2mFg+Q=\")","v":{"$error":"#REF!"}},{"$f":"AND(#REF!,\"U08KP2mFg+U=\")","v":{"$error":"#REF!"}},{"$f":"AND(#REF!,\"U08KP2mFg+Y=\")","v":{"$error":"#REF!"}},{"$f":"AND(#REF!,\"U08KP2mFg+c=\")","v":{"$error":"#REF!"}},{"$f":"AND(#REF!,\"U08KP2mFg+g=\")","v":{"$error":"#REF!"}},{"$f":"AND(#REF!,\"U08KP2mFg+k=\")","v":{"$error":"#REF!"}},{"$f":"AND(#REF!,\"U08KP2mFg+o=\")","v":{"$error":"#REF!"}},{"$f":"AND(#REF!,\"U08KP2mFg+s=\")","v":{"$error":"#REF!"}},{"$f":"AND(#REF!,\"U08KP2mFg+w=\")","v":{"$error":"#REF!"}},{"$f":"AND(#REF!,\"U08KP2mFg+0=\")","v":{"$error":"#REF!"}},{"$f":"AND(#REF!,\"U08KP2mFg+4=\")","v":{"$error":"#REF!"}},{"$f":"AND(#REF!,\"U08KP2mFg+8=\")","v":{"$error":"#REF!"}},{"$f":"AND(#REF!,\"U08KP2mFg/A=\")","v":{"$error":"#REF!"}},{"$f":"AND(#REF!,\"U08KP2mFg/E=\")","v":{"$error":"#REF!"}},{"$f":"AND(#REF!,\"U08KP2mFg/I=\")","v":{"$error":"#REF!"}},{"$f":"AND(#REF!,\"U08KP2mFg/M=\")","v":{"$error":"#REF!"}},{"$f":"AND(#REF!,\"U08KP2mFg/Q=\")","v":{"$error":"#REF!"}},{"$f":"AND(#REF!,\"U08KP2mFg/U=\")","v":{"$error":"#REF!"}},{"$f":"AND(#REF!,\"U08KP2mFg/Y=\")","v":{"$error":"#REF!"}},{"$f":"AND(#REF!,\"U08KP2mFg/c=\")","v":{"$error":"#REF!"}},{"$f":"AND(#REF!,\"U08KP2mFg/g=\")","v":{"$error":"#REF!"}},{"$f":"AND(#REF!,\"U08KP2mFg/k=\")","v":{"$error":"#REF!"}},{"$f":"AND(#REF!,\"U08KP2mFg/o=\")","v":{"$error":"#REF!"}},{"$f":"AND(#REF!,\"U08KP2mFg/s=\")","v":{"$error":"#REF!"}},{"$f":"AND(#REF!,\"U08KP2mFg/w=\")","v":{"$error":"#REF!"}},{"$f":"AND(#REF!,\"U08KP2mFg/0=\")","v":{"$error":"#REF!"}},{"$f":"AND(#REF!,\"U08KP2mFg/4=\")","v":{"$error":"#REF!"}},{"$f":"AND(#REF!,\"U08KP2mFg/8=\")","v":{"$error":"#REF!"}}]
[{"$f":"AND(#REF!,\"J5LsIjiTfQA=\")","v":{"$error":"#REF!"}},{"$f":"AND(#REF!,\"J5LsIjiTfQE=\")","v":{"$error":"#REF!"}},{"$f":"AND(#REF!,\"J5LsIjiTfQI=\")","v":{"$error":"#REF!"}},{"$f":"AND(#REF!,\"J5LsIjiTfQM=\")","v":{"$error":"#REF!"}},{"$f":"AND(#REF!,\"J5LsIjiTfQQ=\")","v":{"$error":"#REF!"}},{"$f":"AND(#REF!,\"J5LsIjiTfQU=\")","v":{"$error":"#REF!"}},{"$f":"AND(#REF!,\"J5LsIjiTfQY=\")","v":{"$error":"#REF!"}},{"$f":"AND(#REF!,\"J5LsIjiTfQc=\")","v":{"$error":"#REF!"}},{"$f":"AND(#REF!,\"J5LsIjiTfQg=\")","v":{"$error":"#REF!"}},{"$f":"AND(#REF!,\"J5LsIjiTfQk=\")","v":{"$error":"#REF!"}},{"$f":"AND(#REF!,\"J5LsIjiTfQo=\")","v":{"$error":"#REF!"}},{"$f":"AND(#REF!,\"J5LsIjiTfQs=\")","v":{"$error":"#REF!"}},{"$f":"AND(#REF!,\"J5LsIjiTfQw=\")","v":{"$error":"#REF!"}},{"$f":"AND(#REF!,\"J5LsIjiTfQ0=\")","v":{"$error":"#REF!"}},{"$f":"AND(#REF!,\"J5LsIjiTfQ4=\")","v":{"$error":"#REF!"}},{"$f":"AND(#REF!,\"J5LsIjiTfQ8=\")","v":{"$error":"#REF!"}},{"$f":"AND(#REF!,\"J5LsIjiTfRA=\")","v":{"$error":"#REF!"}},{"$f":"AND(#REF!,\"J5LsIjiTfRE=\")","v":{"$error":"#REF!"}},{"$f":"AND(#REF!,\"J5LsIjiTfRI=\")","v":{"$error":"#REF!"}},{"$f":"AND(#REF!,\"J5LsIjiTfRM=\")","v":{"$error":"#REF!"}},{"$f":"AND(#REF!,\"J5LsIjiTfRQ=\")","v":{"$error":"#REF!"}},{"$f":"AND(#REF!,\"J5LsIjiTfRU=\")","v":{"$error":"#REF!"}},{"$f":"AND(#REF!,\"J5LsIjiTfRY=\")","v":{"$error":"#REF!"}},{"$f":"AND(#REF!,\"J5LsIjiTfRc=\")","v":{"$error":"#REF!"}},{"$f":"AND(#REF!,\"J5LsIjiTfRg=\")","v":{"$error":"#REF!"}},{"$f":"AND(#REF!,\"J5LsIjiTfRk=\")","v":{"$error":"#REF!"}},{"$f":"AND(#REF!,\"J5LsIjiTfRo=\")","v":{"$error":"#REF!"}},{"$f":"AND(#REF!,\"J5LsIjiTfRs=\")","v":{"$error":"#REF!"}},{"$f":"AND(#REF!,\"J5LsIjiTfRw=\")","v":{"$error":"#REF!"}},{"$f":"AND(#REF!,\"J5LsIjiTfR0=\")","v":{"$error":"#REF!"}},{"$f":"AND(#REF!,\"J5LsIjiTfR4=\")","v":{"$error":"#REF!"}},{"$f":"AND(#REF!,\"J5LsIjiTfR8=\")","v":{"$error":"#REF!"}},{"$f":"AND(#REF!,\"J5LsIjiTfSA=\")","v":{"$error":"#REF!"}},{"$f":"AND(#REF!,\"J5LsIjiTfSE=\")","v":{"$error":"#REF!"}},{"$f":"AND(#REF!,\"J5LsIjiTfSI=\")","v":{"$error":"#REF!"}},{"$f":"AND(#REF!,\"J5LsIjiTfSM=\")","v":{"$error":"#REF!"}},{"$f":"AND(#REF!,\"J5LsIjiTfSQ=\")","v":{"$error":"#REF!"}},{"$f":"AND(#REF!,\"J5LsIjiTfSU=\")","v":{"$error":"#REF!"}},{"$f":"AND(#REF!,\"J5LsIjiTfSY=\")","v":{"$error":"#REF!"}},{"$f":"AND(#REF!,\"J5LsIjiTfSc=\")","v":{"$error":"#REF!"}},{"$f":"AND(#REF!,\"J5LsIjiTfSg=\")","v":{"$error":"#REF!"}},{"$f":"AND(#REF!,\"J5LsIjiTfSk=\")","v":{"$error":"#REF!"}},{"$f":"AND(#REF!,\"J5LsIjiTfSo=\")","v":{"$error":"#REF!"}},{"$f":"AND(#REF!,\"J5LsIjiTfSs=\")","v":{"$error":"#REF!"}},{"$f":"AND(#REF!,\"J5LsIjiTfSw=\")","v":{"$error":"#REF!"}},{"$f":"AND(#REF!,\"J5LsIjiTfS0=\")","v":{"$error":"#REF!"}},{"$f":"AND(#REF!,\"J5LsIjiTfS4=\")","v":{"$error":"#REF!"}},{"$f":"AND(#REF!,\"J5LsIjiTfS8=\")","v":{"$error":"#REF!"}},{"$f":"AND(#REF!,\"J5LsIjiTfTA=\")","v":{"$error":"#REF!"}},{"$f":"AND(#REF!,\"J5LsIjiTfTE=\")","v":{"$error":"#REF!"}},{"$f":"AND(#REF!,\"J5LsIjiTfTI=\")","v":{"$error":"#REF!"}},{"$f":"AND(#REF!,\"J5LsIjiTfTM=\")","v":{"$error":"#REF!"}},{"$f":"AND(#REF!,\"J5LsIjiTfTQ=\")","v":{"$error":"#REF!"}},{"$f":"AND(#REF!,\"J5LsIjiTfTU=\")","v":{"$error":"#REF!"}},{"$f":"AND(#REF!,\"J5LsIjiTfTY=\")","v":{"$error":"#REF!"}},{"$f":"AND(#REF!,\"J5LsIjiTfTc=\")","v":{"$error":"#REF!"}},{"$f":"AND(#REF!,\"J5LsIjiTfTg=\")","v":{"$error":"#REF!"}},{"$f":"AND(#REF!,\"J5LsIjiTfTk=\")","v":{"$error":"#REF!"}},{"$f":"AND(#REF!,\"J5LsIjiTfTo=\")","v":{"$error":"#REF!"}},{"$f":"AND(#REF!,\"J5LsIjiTfTs=\")","v":{"$error":"#REF!"}},{"$f":"AND(#REF!,\"J5LsIjiTfTw=\")","v":{"$error":"#REF!"}},{"$f":"AND(#REF!,\"J5LsIjiTfT0=\")","v":{"$error":"#REF!"}},{"$f":"AND(#REF!,\"J5LsIjiTfT4=\")","v":{"$error":"#REF!"}},{"$f":"AND(#REF!,\"J5LsIjiTfT8=\")","v":{"$error":"#REF!"}},{"$f":"AND(#REF!,\"J5LsIjiTfUA=\")","v":{"$error":"#REF!"}},{"$f":"AND(#REF!,\"J5LsIjiTfUE=\")","v":{"$error":"#REF!"}},{"$f":"AND(#REF!,\"J5LsIjiTfUI=\")","v":{"$error":"#REF!"}},{"$f":"AND(#REF!,\"J5LsIjiTfUM=\")","v":{"$error":"#REF!"}},{"$f":"AND(#REF!,\"J5LsIjiTfUQ=\")","v":{"$error":"#REF!"}},{"$f":"AND(#REF!,\"J5LsIjiTfUU=\")","v":{"$error":"#REF!"}},{"$f":"AND(#REF!,\"J5LsIjiTfUY=\")","v":{"$error":"#REF!"}},{"$f":"AND(#REF!,\"J5LsIjiTfUc=\")","v":{"$error":"#REF!"}},{"$f":"AND(#REF!,\"J5LsIjiTfUg=\")","v":{"$error":"#REF!"}},{"$f":"AND(#REF!,\"J5LsIjiTfUk=\")","v":{"$error":"#REF!"}},{"$f":"AND(#REF!,\"J5LsIjiTfUo=\")","v":{"$error":"#REF!"}},{"$f":"AND(#REF!,\"J5LsIjiTfUs=\")","v":{"$error":"#REF!"}},{"$f":"AND(#REF!,\"J5LsIjiTfUw=\")","v":{"$error":"#REF!"}},{"$f":"AND(#REF!,\"J5LsIjiTfU0=\")","v":{"$error":"#REF!"}},{"$f":"AND(#REF!,\"J5LsIjiTfU4=\")","v":{"$error":"#REF!"}},{"$f":"AND(#REF!,\"J5LsIjiTfU8=\")","v":{"$error":"#REF!"}},{"$f":"AND(#REF!,\"J5LsIjiTfVA=\")","v":{"$error":"#REF!"}},{"$f":"AND(#REF!,\"J5LsIjiTfVE=\")","v":{"$error":"#REF!"}},{"$f":"AND(#REF!,\"J5LsIjiTfVI=\")","v":{"$error":"#REF!"}},{"$f":"AND(#REF!,\"J5LsIjiTfVM=\")","v":{"$error":"#REF!"}},{"$f":"AND(#REF!,\"J5LsIjiTfVQ=\")","v":{"$error":"#REF!"}},{"$f":"AND(#REF!,\"J5LsIjiTfVU=\")","v":{"$error":"#REF!"}},{"$f":"AND(#REF!,\"J5LsIjiTfVY=\")","v":{"$error":"#REF!"}},{"$f":"AND(#REF!,\"J5LsIjiTfVc=\")","v":{"$error":"#REF!"}},{"$f":"AND(#REF!,\"J5LsIjiTfVg=\")","v":{"$error":"#REF!"}},{"$f":"AND(#REF!,\"J5LsIjiTfVk=\")","v":{"$error":"#REF!"}},{"$f":"AND(#REF!,\"J5LsIjiTfVo=\")","v":{"$error":"#REF!"}},{"$f":"AND(#REF!,\"J5LsIjiTfVs=\")","v":{"$error":"#REF!"}},{"$f":"AND(#REF!,\"J5LsIjiTfVw=\")","v":{"$error":"#REF!"}},{"$f":"AND(#REF!,\"J5LsIjiTfV0=\")","v":{"$error":"#REF!"}},{"$f":"AND(#REF!,\"J5LsIjiTfV4=\")","v":{"$error":"#REF!"}},{"$f":"AND(#REF!,\"J5LsIjiTfV8=\")","v":{"$error":"#REF!"}},{"$f":"AND(#REF!,\"J5LsIjiTfWA=\")","v":{"$error":"#REF!"}},{"$f":"AND(#REF!,\"J5LsIjiTfWE=\")","v":{"$error":"#REF!"}},{"$f":"AND(#REF!,\"J5LsIjiTfWI=\")","v":{"$error":"#REF!"}},{"$f":"AND(#REF!,\"J5LsIjiTfWM=\")","v":{"$error":"#REF!"}},{"$f":"AND(#REF!,\"J5LsIjiTfWQ=\")","v":{"$error":"#REF!"}},{"$f":"AND(#REF!,\"J5LsIjiTfWU=\")","v":{"$error":"#REF!"}},{"$f":"AND(#REF!,\"J5LsIjiTfWY=\")","v":{"$error":"#REF!"}},{"$f":"AND(#REF!,\"J5LsIjiTfWc=\")","v":{"$error":"#REF!"}},{"$f":"AND(#REF!,\"J5LsIjiTfWg=\")","v":{"$error":"#REF!"}},{"$f":"AND(#REF!,\"J5LsIjiTfWk=\")","v":{"$error":"#REF!"}},{"$f":"AND(#REF!,\"J5LsIjiTfWo=\")","v":{"$error":"#REF!"}},{"$f":"AND(#REF!,\"J5LsIjiTfWs=\")","v":{"$error":"#REF!"}},{"$f":"AND(#REF!,\"J5LsIjiTfWw=\")","v":{"$error":"#REF!"}},{"$f":"AND(#REF!,\"J5LsIjiTfW0=\")","v":{"$error":"#REF!"}},{"$f":"AND(#REF!,\"J5LsIjiTfW4=\")","v":{"$error":"#REF!"}},{"$f":"AND(#REF!,\"J5LsIjiTfW8=\")","v":{"$error":"#REF!"}},{"$f":"AND(#REF!,\"J5LsIjiTfXA=\")","v":{"$error":"#REF!"}},{"$f":"AND(#REF!,\"J5LsIjiTfXE=\")","v":{"$error":"#REF!"}},{"$f":"AND(#REF!,\"J5LsIjiTfXI=\")","v":{"$error":"#REF!"}},{"$f":"AND(#REF!,\"J5LsIjiTfXM=\")","v":{"$error":"#REF!"}},{"$f":"AND(#REF!,\"J5LsIjiTfXQ=\")","v":{"$error":"#REF!"}},{"$f":"AND(#REF!,\"J5LsIjiTfXU=\")","v":{"$error":"#REF!"}},{"$f":"AND(#REF!,\"J5LsIjiTfXY=\")","v":{"$error":"#REF!"}},{"$f":"AND(#REF!,\"J5LsIjiTfXc=\")","v":{"$error":"#REF!"}},{"$f":"AND(#REF!,\"J5LsIjiTfXg=\")","v":{"$error":"#REF!"}},{"$f":"AND(#REF!,\"J5LsIjiTfXk=\")","v":{"$error":"#REF!"}},{"$f":"AND(#REF!,\"J5LsIjiTfXo=\")","v":{"$error":"#REF!"}},{"$f":"AND(#REF!,\"J5LsIjiTfXs=\")","v":{"$error":"#REF!"}},{"$f":"AND(#REF!,\"J5LsIjiTfXw=\")","v":{"$error":"#REF!"}},{"$f":"AND(#REF!,\"J5LsIjiTfX0=\")","v":{"$error":"#REF!"}},{"$f":"AND(#REF!,\"J5LsIjiTfX4=\")","v":{"$error":"#REF!"}},{"$f":"AND(#REF!,\"J5LsIjiTfX8=\")","v":{"$error":"#REF!"}},{"$f":"AND(#REF!,\"J5LsIjiTfYA=\")","v":{"$error":"#REF!"}},{"$f":"AND(#REF!,\"J5LsIjiTfYE=\")","v":{"$error":"#REF!"}},{"$f":"IF(#REF!,\"J5LsIjiTfYI=\",0)","v":{"$error":"#REF!"}},{"$f":"AND(#REF!,\"J5LsIjiTfYM=\")","v":{"$error":"#REF!"}},{"$f":"AND(#REF!,\"J5LsIjiTfYQ=\")","v":{"$error":"#REF!"}},{"$f":"AND(#REF!,\"J5LsIjiTfYU=\")","v":{"$error":"#REF!"}},{"$f":"AND(#REF!,\"J5LsIjiTfYY=\")","v":{"$error":"#REF!"}},{"$f":"AND(#REF!,\"J5LsIjiTfYc=\")","v":{"$error":"#REF!"}},{"$f":"AND(#REF!,\"J5LsIjiTfYg=\")","v":{"$error":"#REF!"}},{"$f":"AND(#REF!,\"J5LsIjiTfYk=\")","v":{"$error":"#REF!"}},{"$f":"AND(#REF!,\"J5LsIjiTfYo=\")","v":{"$error":"#REF!"}},{"$f":"AND(#REF!,\"J5LsIjiTfYs=\")","v":{"$error":"#REF!"}},{"$f":"AND(#REF!,\"J5LsIjiTfYw=\")","v":{"$error":"#REF!"}},{"$f":"AND(#REF!,\"J5LsIjiTfY0=\")","v":{"$error":"#REF!"}},{"$f":"AND(#REF!,\"J5LsIjiTfY4=\")","v":{"$error":"#REF!"}},{"$f":"AND(#REF!,\"J5LsIjiTfY8=\")","v":{"$error":"#REF!"}},{"$f":"AND(#REF!,\"J5LsIjiTfZA=\")","v":{"$error":"#REF!"}},{"$f":"AND(#REF!,\"J5LsIjiTfZE=\")","v":{"$error":"#REF!"}},{"$f":"AND(#REF!,\"J5LsIjiTfZI=\")","v":{"$error":"#REF!"}},{"$f":"AND(#REF!,\"J5LsIjiTfZM=\")","v":{"$error":"#REF!"}},{"$f":"AND(#REF!,\"J5LsIjiTfZQ=\")","v":{"$error":"#REF!"}},{"$f":"AND(#REF!,\"J5LsIjiTfZU=\")","v":{"$error":"#REF!"}},{"$f":"AND(#REF!,\"J5LsIjiTfZY=\")","v":{"$error":"#REF!"}},{"$f":"AND(#REF!,\"J5LsIjiTfZc=\")","v":{"$error":"#REF!"}},{"$f":"AND(#REF!,\"J5LsIjiTfZg=\")","v":{"$error":"#REF!"}},{"$f":"AND(#REF!,\"J5LsIjiTfZk=\")","v":{"$error":"#REF!"}},{"$f":"AND(#REF!,\"J5LsIjiTfZo=\")","v":{"$error":"#REF!"}},{"$f":"AND(#REF!,\"J5LsIjiTfZs=\")","v":{"$error":"#REF!"}},{"$f":"AND(#REF!,\"J5LsIjiTfZw=\")","v":{"$error":"#REF!"}},{"$f":"AND(#REF!,\"J5LsIjiTfZ0=\")","v":{"$error":"#REF!"}},{"$f":"AND(#REF!,\"J5LsIjiTfZ4=\")","v":{"$error":"#REF!"}},{"$f":"AND(#REF!,\"J5LsIjiTfZ8=\")","v":{"$error":"#REF!"}},{"$f":"AND(#REF!,\"J5LsIjiTfaA=\")","v":{"$error":"#REF!"}},{"$f":"AND(#REF!,\"J5LsIjiTfaE=\")","v":{"$error":"#REF!"}},{"$f":"AND(#REF!,\"J5LsIjiTfaI=\")","v":{"$error":"#REF!"}},{"$f":"AND(#REF!,\"J5LsIjiTfaM=\")","v":{"$error":"#REF!"}},{"$f":"AND(#REF!,\"J5LsIjiTfaQ=\")","v":{"$error":"#REF!"}},{"$f":"AND(#REF!,\"J5LsIjiTfaU=\")","v":{"$error":"#REF!"}},{"$f":"AND(#REF!,\"J5LsIjiTfaY=\")","v":{"$error":"#REF!"}},{"$f":"AND(#REF!,\"J5LsIjiTfac=\")","v":{"$error":"#REF!"}},{"$f":"AND(#REF!,\"J5LsIjiTfag=\")","v":{"$error":"#REF!"}},{"$f":"AND(#REF!,\"J5LsIjiTfak=\")","v":{"$error":"#REF!"}},{"$f":"AND(#REF!,\"J5LsIjiTfao=\")","v":{"$error":"#REF!"}},{"$f":"AND(#REF!,\"J5LsIjiTfas=\")","v":{"$error":"#REF!"}},{"$f":"AND(#REF!,\"J5LsIjiTfaw=\")","v":{"$error":"#REF!"}},{"$f":"AND(#REF!,\"J5LsIjiTfa0=\")","v":{"$error":"#REF!"}},{"$f":"AND(#REF!,\"J5LsIjiTfa4=\")","v":{"$error":"#REF!"}},{"$f":"AND(#REF!,\"J5LsIjiTfa8=\")","v":{"$error":"#REF!"}},{"$f":"AND(#REF!,\"J5LsIjiTfbA=\")","v":{"$error":"#REF!"}},{"$f":"AND(#REF!,\"J5LsIjiTfbE=\")","v":{"$error":"#REF!"}},{"$f":"AND(#REF!,\"J5LsIjiTfbI=\")","v":{"$error":"#REF!"}},{"$f":"AND(#REF!,\"J5LsIjiTfbM=\")","v":{"$error":"#REF!"}},{"$f":"AND(#REF!,\"J5LsIjiTfbQ=\")","v":{"$error":"#REF!"}},{"$f":"AND(#REF!,\"J5LsIjiTfbU=\")","v":{"$error":"#REF!"}},{"$f":"AND(#REF!,\"J5LsIjiTfbY=\")","v":{"$error":"#REF!"}},{"$f":"AND(#REF!,\"J5LsIjiTfbc=\")","v":{"$error":"#REF!"}},{"$f":"AND(#REF!,\"J5LsIjiTfbg=\")","v":{"$error":"#REF!"}},{"$f":"AND(#REF!,\"J5LsIjiTfbk=\")","v":{"$error":"#REF!"}},{"$f":"AND(#REF!,\"J5LsIjiTfbo=\")","v":{"$error":"#REF!"}},{"$f":"AND(#REF!,\"J5LsIjiTfbs=\")","v":{"$error":"#REF!"}},{"$f":"AND(#REF!,\"J5LsIjiTfbw=\")","v":{"$error":"#REF!"}},{"$f":"AND(#REF!,\"J5LsIjiTfb0=\")","v":{"$error":"#REF!"}},{"$f":"AND(#REF!,\"J5LsIjiTfb4=\")","v":{"$error":"#REF!"}},{"$f":"AND(#REF!,\"J5LsIjiTfb8=\")","v":{"$error":"#REF!"}},{"$f":"AND(#REF!,\"J5LsIjiTfcA=\")","v":{"$error":"#REF!"}},{"$f":"AND(#REF!,\"J5LsIjiTfcE=\")","v":{"$error":"#REF!"}},{"$f":"AND(#REF!,\"J5LsIjiTfcI=\")","v":{"$error":"#REF!"}},{"$f":"AND(#REF!,\"J5LsIjiTfcM=\")","v":{"$error":"#REF!"}},{"$f":"AND(#REF!,\"J5LsIjiTfcQ=\")","v":{"$error":"#REF!"}},{"$f":"AND(#REF!,\"J5LsIjiTfcU=\")","v":{"$error":"#REF!"}},{"$f":"AND(#REF!,\"J5LsIjiTfcY=\")","v":{"$error":"#REF!"}},{"$f":"AND(#REF!,\"J5LsIjiTfcc=\")","v":{"$error":"#REF!"}},{"$f":"AND(#REF!,\"J5LsIjiTfcg=\")","v":{"$error":"#REF!"}},{"$f":"AND(#REF!,\"J5LsIjiTfck=\")","v":{"$error":"#REF!"}},{"$f":"AND(#REF!,\"J5LsIjiTfco=\")","v":{"$error":"#REF!"}},{"$f":"AND(#REF!,\"J5LsIjiTfcs=\")","v":{"$error":"#REF!"}},{"$f":"AND(#REF!,\"J5LsIjiTfcw=\")","v":{"$error":"#REF!"}},{"$f":"AND(#REF!,\"J5LsIjiTfc0=\")","v":{"$error":"#REF!"}},{"$f":"AND(#REF!,\"J5LsIjiTfc4=\")","v":{"$error":"#REF!"}},{"$f":"AND(#REF!,\"J5LsIjiTfc8=\")","v":{"$error":"#REF!"}},{"$f":"AND(#REF!,\"J5LsIjiTfdA=\")","v":{"$error":"#REF!"}},{"$f":"AND(#REF!,\"J5LsIjiTfdE=\")","v":{"$error":"#REF!"}},{"$f":"AND(#REF!,\"J5LsIjiTfdI=\")","v":{"$error":"#REF!"}},{"$f":"AND(#REF!,\"J5LsIjiTfdM=\")","v":{"$error":"#REF!"}},{"$f":"AND(#REF!,\"J5LsIjiTfdQ=\")","v":{"$error":"#REF!"}},{"$f":"AND(#REF!,\"J5LsIjiTfdU=\")","v":{"$error":"#REF!"}},{"$f":"AND(#REF!,\"J5LsIjiTfdY=\")","v":{"$error":"#REF!"}},{"$f":"AND(#REF!,\"J5LsIjiTfdc=\")","v":{"$error":"#REF!"}},{"$f":"AND(#REF!,\"J5LsIjiTfdg=\")","v":{"$error":"#REF!"}},{"$f":"AND(#REF!,\"J5LsIjiTfdk=\")","v":{"$error":"#REF!"}},{"$f":"AND(#REF!,\"J5LsIjiTfdo=\")","v":{"$error":"#REF!"}},{"$f":"AND(#REF!,\"J5LsIjiTfds=\")","v":{"$error":"#REF!"}},{"$f":"AND(#REF!,\"J5LsIjiTfdw=\")","v":{"$error":"#REF!"}},{"$f":"AND(#REF!,\"J5LsIjiTfd0=\")","v":{"$error":"#REF!"}},{"$f":"AND(#REF!,\"J5LsIjiTfd4=\")","v":{"$error":"#REF!"}},{"$f":"AND(#REF!,\"J5LsIjiTfd8=\")","v":{"$error":"#REF!"}},{"$f":"AND(#REF!,\"J5LsIjiTfeA=\")","v":{"$error":"#REF!"}},{"$f":"AND(#REF!,\"J5LsIjiTfeE=\")","v":{"$error":"#REF!"}},{"$f":"AND(#REF!,\"J5LsIjiTfeI=\")","v":{"$error":"#REF!"}},{"$f":"AND(#REF!,\"J5LsIjiTfeM=\")","v":{"$error":"#REF!"}},{"$f":"AND(#REF!,\"J5LsIjiTfeQ=\")","v":{"$error":"#REF!"}},{"$f":"AND(#REF!,\"J5LsIjiTfeU=\")","v":{"$error":"#REF!"}},{"$f":"AND(#REF!,\"J5LsIjiTfeY=\")","v":{"$error":"#REF!"}},{"$f":"AND(#REF!,\"J5LsIjiTfec=\")","v":{"$error":"#REF!"}},{"$f":"AND(#REF!,\"J5LsIjiTfeg=\")","v":{"$error":"#REF!"}},{"$f":"AND(#REF!,\"J5LsIjiTfek=\")","v":{"$error":"#REF!"}},{"$f":"AND(#REF!,\"J5LsIjiTfeo=\")","v":{"$error":"#REF!"}},{"$f":"AND(#REF!,\"J5LsIjiTfes=\")","v":{"$error":"#REF!"}},{"$f":"AND(#REF!,\"J5LsIjiTfew=\")","v":{"$error":"#REF!"}},{"$f":"AND(#REF!,\"J5LsIjiTfe0=\")","v":{"$error":"#REF!"}},{"$f":"AND(#REF!,\"J5LsIjiTfe4=\")","v":{"$error":"#REF!"}},{"$f":"AND(#REF!,\"J5LsIjiTfe8=\")","v":{"$error":"#REF!"}},{"$f":"AND(#REF!,\"J5LsIjiTffA=\")","v":{"$error":"#REF!"}},{"$f":"AND(#REF!,\"J5LsIjiTffE=\")","v":{"$error":"#REF!"}},{"$f":"AND(#REF!,\"J5LsIjiTffI=\")","v":{"$error":"#REF!"}},{"$f":"AND(#REF!,\"J5LsIjiTffM=\")","v":{"$error":"#REF!"}},{"$f":"AND(#REF!,\"J5LsIjiTffQ=\")","v":{"$error":"#REF!"}},{"$f":"AND(#REF!,\"J5LsIjiTffU=\")","v":{"$error":"#REF!"}},{"$f":"AND(#REF!,\"J5LsIjiTffY=\")","v":{"$error":"#REF!"}},{"$f":"AND(#REF!,\"J5LsIjiTffc=\")","v":{"$error":"#REF!"}},{"$f":"AND(#REF!,\"J5LsIjiTffg=\")","v":{"$error":"#REF!"}},{"$f":"AND(#REF!,\"J5LsIjiTffk=\")","v":{"$error":"#REF!"}},{"$f":"AND(#REF!,\"J5LsIjiTffo=\")","v":{"$error":"#REF!"}},{"$f":"AND(#REF!,\"J5LsIjiTffs=\")","v":{"$error":"#REF!"}},{"$f":"AND(#REF!,\"J5LsIjiTffw=\")","v":{"$error":"#REF!"}},{"$f":"AND(#REF!,\"J5LsIjiTff0=\")","v":{"$error":"#REF!"}},{"$f":"AND(#REF!,\"J5LsIjiTff4=\")","v":{"$error":"#REF!"}},{"$f":"AND(#REF!,\"J5LsIjiTff8=\")","v":{"$error":"#REF!"}}]
[{"$f":"AND(#REF!,\"cR2Tf0kD2AA=\")","v":{"$error":"#REF!"}},{"$f":"AND(#REF!,\"cR2Tf0kD2AE=\")","v":{"$error":"#REF!"}},{"$f":"AND(#REF!,\"cR2Tf0kD2AI=\")","v":{"$error":"#REF!"}},{"$f":"AND(#REF!,\"cR2Tf0kD2AM=\")","v":{"$error":"#REF!"}},{"$f":"AND(#REF!,\"cR2Tf0kD2AQ=\")","v":{"$error":"#REF!"}},{"$f":"AND(#REF!,\"cR2Tf0kD2AU=\")","v":{"$error":"#REF!"}},{"$f":"AND(#REF!,\"cR2Tf0kD2AY=\")","v":{"$error":"#REF!"}},{"$f":"AND(#REF!,\"cR2Tf0kD2Ac=\")","v":{"$error":"#REF!"}},{"$f":"AND(#REF!,\"cR2Tf0kD2Ag=\")","v":{"$error":"#REF!"}},{"$f":"AND(#REF!,\"cR2Tf0kD2Ak=\")","v":{"$error":"#REF!"}},{"$f":"AND(#REF!,\"cR2Tf0kD2Ao=\")","v":{"$error":"#REF!"}},{"$f":"AND(#REF!,\"cR2Tf0kD2As=\")","v":{"$error":"#REF!"}},{"$f":"AND(#REF!,\"cR2Tf0kD2Aw=\")","v":{"$error":"#REF!"}},{"$f":"AND(#REF!,\"cR2Tf0kD2A0=\")","v":{"$error":"#REF!"}},{"$f":"AND(#REF!,\"cR2Tf0kD2A4=\")","v":{"$error":"#REF!"}},{"$f":"AND(#REF!,\"cR2Tf0kD2A8=\")","v":{"$error":"#REF!"}},{"$f":"AND(#REF!,\"cR2Tf0kD2BA=\")","v":{"$error":"#REF!"}},{"$f":"AND(#REF!,\"cR2Tf0kD2BE=\")","v":{"$error":"#REF!"}},{"$f":"AND(#REF!,\"cR2Tf0kD2BI=\")","v":{"$error":"#REF!"}},{"$f":"AND(#REF!,\"cR2Tf0kD2BM=\")","v":{"$error":"#REF!"}},{"$f":"AND(#REF!,\"cR2Tf0kD2BQ=\")","v":{"$error":"#REF!"}},{"$f":"AND(#REF!,\"cR2Tf0kD2BU=\")","v":{"$error":"#REF!"}},{"$f":"AND(#REF!,\"cR2Tf0kD2BY=\")","v":{"$error":"#REF!"}},{"$f":"AND(#REF!,\"cR2Tf0kD2Bc=\")","v":{"$error":"#REF!"}},{"$f":"AND(#REF!,\"cR2Tf0kD2Bg=\")","v":{"$error":"#REF!"}},{"$f":"AND(#REF!,\"cR2Tf0kD2Bk=\")","v":{"$error":"#REF!"}},{"$f":"AND(#REF!,\"cR2Tf0kD2Bo=\")","v":{"$error":"#REF!"}},{"$f":"AND(#REF!,\"cR2Tf0kD2Bs=\")","v":{"$error":"#REF!"}},{"$f":"AND(#REF!,\"cR2Tf0kD2Bw=\")","v":{"$error":"#REF!"}},{"$f":"AND(#REF!,\"cR2Tf0kD2B0=\")","v":{"$error":"#REF!"}},{"$f":"AND(#REF!,\"cR2Tf0kD2B4=\")","v":{"$error":"#REF!"}},{"$f":"AND(#REF!,\"cR2Tf0kD2B8=\")","v":{"$error":"#REF!"}},{"$f":"AND(#REF!,\"cR2Tf0kD2CA=\")","v":{"$error":"#REF!"}},{"$f":"AND(#REF!,\"cR2Tf0kD2CE=\")","v":{"$error":"#REF!"}},{"$f":"AND(#REF!,\"cR2Tf0kD2CI=\")","v":{"$error":"#REF!"}},{"$f":"AND(#REF!,\"cR2Tf0kD2CM=\")","v":{"$error":"#REF!"}},{"$f":"AND(#REF!,\"cR2Tf0kD2CQ=\")","v":{"$error":"#REF!"}},{"$f":"AND(#REF!,\"cR2Tf0kD2CU=\")","v":{"$error":"#REF!"}},{"$f":"AND(#REF!,\"cR2Tf0kD2CY=\")","v":{"$error":"#REF!"}},{"$f":"AND(#REF!,\"cR2Tf0kD2Cc=\")","v":{"$error":"#REF!"}},{"$f":"AND(#REF!,\"cR2Tf0kD2Cg=\")","v":{"$error":"#REF!"}},{"$f":"AND(#REF!,\"cR2Tf0kD2Ck=\")","v":{"$error":"#REF!"}},{"$f":"AND(#REF!,\"cR2Tf0kD2Co=\")","v":{"$error":"#REF!"}},{"$f":"AND(#REF!,\"cR2Tf0kD2Cs=\")","v":{"$error":"#REF!"}},{"$f":"AND(#REF!,\"cR2Tf0kD2Cw=\")","v":{"$error":"#REF!"}},{"$f":"AND(#REF!,\"cR2Tf0kD2C0=\")","v":{"$error":"#REF!"}},{"$f":"AND(#REF!,\"cR2Tf0kD2C4=\")","v":{"$error":"#REF!"}},{"$f":"AND(#REF!,\"cR2Tf0kD2C8=\")","v":{"$error":"#REF!"}},{"$f":"AND(#REF!,\"cR2Tf0kD2DA=\")","v":{"$error":"#REF!"}},{"$f":"AND(#REF!,\"cR2Tf0kD2DE=\")","v":{"$error":"#REF!"}},{"$f":"AND(#REF!,\"cR2Tf0kD2DI=\")","v":{"$error":"#REF!"}},{"$f":"AND(#REF!,\"cR2Tf0kD2DM=\")","v":{"$error":"#REF!"}},{"$f":"AND(#REF!,\"cR2Tf0kD2DQ=\")","v":{"$error":"#REF!"}},{"$f":"AND(#REF!,\"cR2Tf0kD2DU=\")","v":{"$error":"#REF!"}},{"$f":"AND(#REF!,\"cR2Tf0kD2DY=\")","v":{"$error":"#REF!"}},{"$f":"AND(#REF!,\"cR2Tf0kD2Dc=\")","v":{"$error":"#REF!"}},{"$f":"AND(#REF!,\"cR2Tf0kD2Dg=\")","v":{"$error":"#REF!"}},{"$f":"AND(#REF!,\"cR2Tf0kD2Dk=\")","v":{"$error":"#REF!"}},{"$f":"AND(#REF!,\"cR2Tf0kD2Do=\")","v":{"$error":"#REF!"}},{"$f":"AND(#REF!,\"cR2Tf0kD2Ds=\")","v":{"$error":"#REF!"}},{"$f":"AND(#REF!,\"cR2Tf0kD2Dw=\")","v":{"$error":"#REF!"}},{"$f":"AND(#REF!,\"cR2Tf0kD2D0=\")","v":{"$error":"#REF!"}},{"$f":"AND(#REF!,\"cR2Tf0kD2D4=\")","v":{"$error":"#REF!"}},{"$f":"AND(#REF!,\"cR2Tf0kD2D8=\")","v":{"$error":"#REF!"}},{"$f":"AND(#REF!,\"cR2Tf0kD2EA=\")","v":{"$error":"#REF!"}},{"$f":"AND(#REF!,\"cR2Tf0kD2EE=\")","v":{"$error":"#REF!"}},{"$f":"AND(#REF!,\"cR2Tf0kD2EI=\")","v":{"$error":"#REF!"}},{"$f":"AND(#REF!,\"cR2Tf0kD2EM=\")","v":{"$error":"#REF!"}},{"$f":"AND(#REF!,\"cR2Tf0kD2EQ=\")","v":{"$error":"#REF!"}},{"$f":"AND(#REF!,\"cR2Tf0kD2EU=\")","v":{"$error":"#REF!"}},{"$f":"AND(#REF!,\"cR2Tf0kD2EY=\")","v":{"$error":"#REF!"}},{"$f":"AND(#REF!,\"cR2Tf0kD2Ec=\")","v":{"$error":"#REF!"}},{"$f":"AND(#REF!,\"cR2Tf0kD2Eg=\")","v":{"$error":"#REF!"}},{"$f":"IF(#REF!,\"cR2Tf0kD2Ek=\",0)","v":{"$error":"#REF!"}},{"$f":"AND(#REF!,\"cR2Tf0kD2Eo=\")","v":{"$error":"#REF!"}},{"$f":"AND(#REF!,\"cR2Tf0kD2Es=\")","v":{"$error":"#REF!"}},{"$f":"AND(#REF!,\"cR2Tf0kD2Ew=\")","v":{"$error":"#REF!"}},{"$f":"AND(#REF!,\"cR2Tf0kD2E0=\")","v":{"$error":"#REF!"}},{"$f":"AND(#REF!,\"cR2Tf0kD2E4=\")","v":{"$error":"#REF!"}},{"$f":"AND(#REF!,\"cR2Tf0kD2E8=\")","v":{"$error":"#REF!"}},{"$f":"AND(#REF!,\"cR2Tf0kD2FA=\")","v":{"$error":"#REF!"}},{"$f":"AND(#REF!,\"cR2Tf0kD2FE=\")","v":{"$error":"#REF!"}},{"$f":"AND(#REF!,\"cR2Tf0kD2FI=\")","v":{"$error":"#REF!"}},{"$f":"AND(#REF!,\"cR2Tf0kD2FM=\")","v":{"$error":"#REF!"}},{"$f":"AND(#REF!,\"cR2Tf0kD2FQ=\")","v":{"$error":"#REF!"}},{"$f":"AND(#REF!,\"cR2Tf0kD2FU=\")","v":{"$error":"#REF!"}},{"$f":"AND(#REF!,\"cR2Tf0kD2FY=\")","v":{"$error":"#REF!"}},{"$f":"AND(#REF!,\"cR2Tf0kD2Fc=\")","v":{"$error":"#REF!"}},{"$f":"AND(#REF!,\"cR2Tf0kD2Fg=\")","v":{"$error":"#REF!"}},{"$f":"AND(#REF!,\"cR2Tf0kD2Fk=\")","v":{"$error":"#REF!"}},{"$f":"AND(#REF!,\"cR2Tf0kD2Fo=\")","v":{"$error":"#REF!"}},{"$f":"AND(#REF!,\"cR2Tf0kD2Fs=\")","v":{"$error":"#REF!"}},{"$f":"AND(#REF!,\"cR2Tf0kD2Fw=\")","v":{"$error":"#REF!"}},{"$f":"AND(#REF!,\"cR2Tf0kD2F0=\")","v":{"$error":"#REF!"}},{"$f":"AND(#REF!,\"cR2Tf0kD2F4=\")","v":{"$error":"#REF!"}},{"$f":"AND(#REF!,\"cR2Tf0kD2F8=\")","v":{"$error":"#REF!"}},{"$f":"AND(#REF!,\"cR2Tf0kD2GA=\")","v":{"$error":"#REF!"}},{"$f":"AND(#REF!,\"cR2Tf0kD2GE=\")","v":{"$error":"#REF!"}},{"$f":"AND(#REF!,\"cR2Tf0kD2GI=\")","v":{"$error":"#REF!"}},{"$f":"AND(#REF!,\"cR2Tf0kD2GM=\")","v":{"$error":"#REF!"}},{"$f":"AND(#REF!,\"cR2Tf0kD2GQ=\")","v":{"$error":"#REF!"}},{"$f":"AND(#REF!,\"cR2Tf0kD2GU=\")","v":{"$error":"#REF!"}},{"$f":"AND(#REF!,\"cR2Tf0kD2GY=\")","v":{"$error":"#REF!"}},{"$f":"AND(#REF!,\"cR2Tf0kD2Gc=\")","v":{"$error":"#REF!"}},{"$f":"AND(#REF!,\"cR2Tf0kD2Gg=\")","v":{"$error":"#REF!"}},{"$f":"AND(#REF!,\"cR2Tf0kD2Gk=\")","v":{"$error":"#REF!"}},{"$f":"AND(#REF!,\"cR2Tf0kD2Go=\")","v":{"$error":"#REF!"}},{"$f":"AND(#REF!,\"cR2Tf0kD2Gs=\")","v":{"$error":"#REF!"}},{"$f":"AND(#REF!,\"cR2Tf0kD2Gw=\")","v":{"$error":"#REF!"}},{"$f":"AND(#REF!,\"cR2Tf0kD2G0=\")","v":{"$error":"#REF!"}},{"$f":"AND(#REF!,\"cR2Tf0kD2G4=\")","v":{"$error":"#REF!"}},{"$f":"AND(#REF!,\"cR2Tf0kD2G8=\")","v":{"$error":"#REF!"}},{"$f":"AND(#REF!,\"cR2Tf0kD2HA=\")","v":{"$error":"#REF!"}},{"$f":"AND(#REF!,\"cR2Tf0kD2HE=\")","v":{"$error":"#REF!"}},{"$f":"AND(#REF!,\"cR2Tf0kD2HI=\")","v":{"$error":"#REF!"}},{"$f":"AND(#REF!,\"cR2Tf0kD2HM=\")","v":{"$error":"#REF!"}},{"$f":"AND(#REF!,\"cR2Tf0kD2HQ=\")","v":{"$error":"#REF!"}},{"$f":"AND(#REF!,\"cR2Tf0kD2HU=\")","v":{"$error":"#REF!"}},{"$f":"AND(#REF!,\"cR2Tf0kD2HY=\")","v":{"$error":"#REF!"}},{"$f":"AND(#REF!,\"cR2Tf0kD2Hc=\")","v":{"$error":"#REF!"}},{"$f":"AND(#REF!,\"cR2Tf0kD2Hg=\")","v":{"$error":"#REF!"}},{"$f":"AND(#REF!,\"cR2Tf0kD2Hk=\")","v":{"$error":"#REF!"}},{"$f":"AND(#REF!,\"cR2Tf0kD2Ho=\")","v":{"$error":"#REF!"}},{"$f":"AND(#REF!,\"cR2Tf0kD2Hs=\")","v":{"$error":"#REF!"}},{"$f":"AND(#REF!,\"cR2Tf0kD2Hw=\")","v":{"$error":"#REF!"}},{"$f":"AND(#REF!,\"cR2Tf0kD2H0=\")","v":{"$error":"#REF!"}},{"$f":"AND(#REF!,\"cR2Tf0kD2H4=\")","v":{"$error":"#REF!"}},{"$f":"AND(#REF!,\"cR2Tf0kD2H8=\")","v":{"$error":"#REF!"}},{"$f":"AND(#REF!,\"cR2Tf0kD2IA=\")","v":{"$error":"#REF!"}},{"$f":"AND(#REF!,\"cR2Tf0kD2IE=\")","v":{"$error":"#REF!"}},{"$f":"AND(#REF!,\"cR2Tf0kD2II=\")","v":{"$error":"#REF!"}},{"$f":"AND(#REF!,\"cR2Tf0kD2IM=\")","v":{"$error":"#REF!"}},{"$f":"AND(#REF!,\"cR2Tf0kD2IQ=\")","v":{"$error":"#REF!"}},{"$f":"AND(#REF!,\"cR2Tf0kD2IU=\")","v":{"$error":"#REF!"}},{"$f":"AND(#REF!,\"cR2Tf0kD2IY=\")","v":{"$error":"#REF!"}},{"$f":"AND(#REF!,\"cR2Tf0kD2Ic=\")","v":{"$error":"#REF!"}},{"$f":"AND(#REF!,\"cR2Tf0kD2Ig=\")","v":{"$error":"#REF!"}},{"$f":"AND(#REF!,\"cR2Tf0kD2Ik=\")","v":{"$error":"#REF!"}},{"$f":"AND(#REF!,\"cR2Tf0kD2Io=\")","v":{"$error":"#REF!"}},{"$f":"AND(#REF!,\"cR2Tf0kD2Is=\")","v":{"$error":"#REF!"}},{"$f":"AND(#REF!,\"cR2Tf0kD2Iw=\")","v":{"$error":"#REF!"}},{"$f":"AND(#REF!,\"cR2Tf0kD2I0=\")","v":{"$error":"#REF!"}},{"$f":"AND(#REF!,\"cR2Tf0kD2I4=\")","v":{"$error":"#REF!"}},{"$f":"AND(#REF!,\"cR2Tf0kD2I8=\")","v":{"$error":"#REF!"}},{"$f":"AND(#REF!,\"cR2Tf0kD2JA=\")","v":{"$error":"#REF!"}},{"$f":"AND(#REF!,\"cR2Tf0kD2JE=\")","v":{"$error":"#REF!"}},{"$f":"AND(#REF!,\"cR2Tf0kD2JI=\")","v":{"$error":"#REF!"}},{"$f":"AND(#REF!,\"cR2Tf0kD2JM=\")","v":{"$error":"#REF!"}},{"$f":"AND(#REF!,\"cR2Tf0kD2JQ=\")","v":{"$error":"#REF!"}},{"$f":"AND(#REF!,\"cR2Tf0kD2JU=\")","v":{"$error":"#REF!"}},{"$f":"AND(#REF!,\"cR2Tf0kD2JY=\")","v":{"$error":"#REF!"}},{"$f":"AND(#REF!,\"cR2Tf0kD2Jc=\")","v":{"$error":"#REF!"}},{"$f":"AND(#REF!,\"cR2Tf0kD2Jg=\")","v":{"$error":"#REF!"}},{"$f":"AND(#REF!,\"cR2Tf0kD2Jk=\")","v":{"$error":"#REF!"}},{"$f":"AND(#REF!,\"cR2Tf0kD2Jo=\")","v":{"$error":"#REF!"}},{"$f":"AND(#REF!,\"cR2Tf0kD2Js=\")","v":{"$error":"#REF!"}},{"$f":"AND(#REF!,\"cR2Tf0kD2Jw=\")","v":{"$error":"#REF!"}},{"$f":"AND(#REF!,\"cR2Tf0kD2J0=\")","v":{"$error":"#REF!"}},{"$f":"AND(#REF!,\"cR2Tf0kD2J4=\")","v":{"$error":"#REF!"}},{"$f":"AND(#REF!,\"cR2Tf0kD2J8=\")","v":{"$error":"#REF!"}},{"$f":"AND(#REF!,\"cR2Tf0kD2KA=\")","v":{"$error":"#REF!"}},{"$f":"AND(#REF!,\"cR2Tf0kD2KE=\")","v":{"$error":"#REF!"}},{"$f":"AND(#REF!,\"cR2Tf0kD2KI=\")","v":{"$error":"#REF!"}},{"$f":"AND(#REF!,\"cR2Tf0kD2KM=\")","v":{"$error":"#REF!"}},{"$f":"AND(#REF!,\"cR2Tf0kD2KQ=\")","v":{"$error":"#REF!"}},{"$f":"AND(#REF!,\"cR2Tf0kD2KU=\")","v":{"$error":"#REF!"}},{"$f":"AND(#REF!,\"cR2Tf0kD2KY=\")","v":{"$error":"#REF!"}},{"$f":"AND(#REF!,\"cR2Tf0kD2Kc=\")","v":{"$error":"#REF!"}},{"$f":"AND(#REF!,\"cR2Tf0kD2Kg=\")","v":{"$error":"#REF!"}},{"$f":"AND(#REF!,\"cR2Tf0kD2Kk=\")","v":{"$error":"#REF!"}},{"$f":"AND(#REF!,\"cR2Tf0kD2Ko=\")","v":{"$error":"#REF!"}},{"$f":"AND(#REF!,\"cR2Tf0kD2Ks=\")","v":{"$error":"#REF!"}},{"$f":"AND(#REF!,\"cR2Tf0kD2Kw=\")","v":{"$error":"#REF!"}},{"$f":"AND(#REF!,\"cR2Tf0kD2K0=\")","v":{"$error":"#REF!"}},{"$f":"AND(#REF!,\"cR2Tf0kD2K4=\")","v":{"$error":"#REF!"}},{"$f":"AND(#REF!,\"cR2Tf0kD2K8=\")","v":{"$error":"#REF!"}},{"$f":"AND(#REF!,\"cR2Tf0kD2LA=\")","v":{"$error":"#REF!"}},{"$f":"AND(#REF!,\"cR2Tf0kD2LE=\")","v":{"$error":"#REF!"}},{"$f":"AND(#REF!,\"cR2Tf0kD2LI=\")","v":{"$error":"#REF!"}},{"$f":"AND(#REF!,\"cR2Tf0kD2LM=\")","v":{"$error":"#REF!"}},{"$f":"AND(#REF!,\"cR2Tf0kD2LQ=\")","v":{"$error":"#REF!"}},{"$f":"AND(#REF!,\"cR2Tf0kD2LU=\")","v":{"$error":"#REF!"}},{"$f":"AND(#REF!,\"cR2Tf0kD2LY=\")","v":{"$error":"#REF!"}},{"$f":"AND(#REF!,\"cR2Tf0kD2Lc=\")","v":{"$error":"#REF!"}},{"$f":"AND(#REF!,\"cR2Tf0kD2Lg=\")","v":{"$error":"#REF!"}},{"$f":"AND(#REF!,\"cR2Tf0kD2Lk=\")","v":{"$error":"#REF!"}},{"$f":"AND(#REF!,\"cR2Tf0kD2Lo=\")","v":{"$error":"#REF!"}},{"$f":"AND(#REF!,\"cR2Tf0kD2Ls=\")","v":{"$error":"#REF!"}},{"$f":"AND(#REF!,\"cR2Tf0kD2Lw=\")","v":{"$error":"#REF!"}},{"$f":"AND(#REF!,\"cR2Tf0kD2L0=\")","v":{"$error":"#REF!"}},{"$f":"AND(#REF!,\"cR2Tf0kD2L4=\")","v":{"$error":"#REF!"}},{"$f":"AND(#REF!,\"cR2Tf0kD2L8=\")","v":{"$error":"#REF!"}},{"$f":"AND(#REF!,\"cR2Tf0kD2MA=\")","v":{"$error":"#REF!"}},{"$f":"AND(#REF!,\"cR2Tf0kD2ME=\")","v":{"$error":"#REF!"}},{"$f":"AND(#REF!,\"cR2Tf0kD2MI=\")","v":{"$error":"#REF!"}},{"$f":"AND(#REF!,\"cR2Tf0kD2MM=\")","v":{"$error":"#REF!"}},{"$f":"AND(#REF!,\"cR2Tf0kD2MQ=\")","v":{"$error":"#REF!"}},{"$f":"AND(#REF!,\"cR2Tf0kD2MU=\")","v":{"$error":"#REF!"}},{"$f":"AND(#REF!,\"cR2Tf0kD2MY=\")","v":{"$error":"#REF!"}},{"$f":"AND(#REF!,\"cR2Tf0kD2Mc=\")","v":{"$error":"#REF!"}},{"$f":"AND(#REF!,\"cR2Tf0kD2Mg=\")","v":{"$error":"#REF!"}},{"$f":"AND(#REF!,\"cR2Tf0kD2Mk=\")","v":{"$error":"#REF!"}},{"$f":"AND(#REF!,\"cR2Tf0kD2Mo=\")","v":{"$error":"#REF!"}},{"$f":"AND(#REF!,\"cR2Tf0kD2Ms=\")","v":{"$error":"#REF!"}},{"$f":"AND(#REF!,\"cR2Tf0kD2Mw=\")","v":{"$error":"#REF!"}},{"$f":"AND(#REF!,\"cR2Tf0kD2M0=\")","v":{"$error":"#REF!"}},{"$f":"AND(#REF!,\"cR2Tf0kD2M4=\")","v":{"$error":"#REF!"}},{"$f":"AND(#REF!,\"cR2Tf0kD2M8=\")","v":{"$error":"#REF!"}},{"$f":"AND(#REF!,\"cR2Tf0kD2NA=\")","v":{"$error":"#REF!"}},{"$f":"AND(#REF!,\"cR2Tf0kD2NE=\")","v":{"$error":"#REF!"}},{"$f":"AND(#REF!,\"cR2Tf0kD2NI=\")","v":{"$error":"#REF!"}},{"$f":"AND(#REF!,\"cR2Tf0kD2NM=\")","v":{"$error":"#REF!"}},{"$f":"AND(#REF!,\"cR2Tf0kD2NQ=\")","v":{"$error":"#REF!"}},{"$f":"AND(#REF!,\"cR2Tf0kD2NU=\")","v":{"$error":"#REF!"}},{"$f":"AND(#REF!,\"cR2Tf0kD2NY=\")","v":{"$error":"#REF!"}},{"$f":"AND(#REF!,\"cR2Tf0kD2Nc=\")","v":{"$error":"#REF!"}},{"$f":"AND(#REF!,\"cR2Tf0kD2Ng=\")","v":{"$error":"#REF!"}},{"$f":"AND(#REF!,\"cR2Tf0kD2Nk=\")","v":{"$error":"#REF!"}},{"$f":"AND(#REF!,\"cR2Tf0kD2No=\")","v":{"$error":"#REF!"}},{"$f":"AND(#REF!,\"cR2Tf0kD2Ns=\")","v":{"$error":"#REF!"}},{"$f":"AND(#REF!,\"cR2Tf0kD2Nw=\")","v":{"$error":"#REF!"}},{"$f":"AND(#REF!,\"cR2Tf0kD2N0=\")","v":{"$error":"#REF!"}},{"$f":"AND(#REF!,\"cR2Tf0kD2N4=\")","v":{"$error":"#REF!"}},{"$f":"AND(#REF!,\"cR2Tf0kD2N8=\")","v":{"$error":"#REF!"}},{"$f":"AND(#REF!,\"cR2Tf0kD2OA=\")","v":{"$error":"#REF!"}},{"$f":"AND(#REF!,\"cR2Tf0kD2OE=\")","v":{"$error":"#REF!"}},{"$f":"AND(#REF!,\"cR2Tf0kD2OI=\")","v":{"$error":"#REF!"}},{"$f":"AND(#REF!,\"cR2Tf0kD2OM=\")","v":{"$error":"#REF!"}},{"$f":"AND(#REF!,\"cR2Tf0kD2OQ=\")","v":{"$error":"#REF!"}},{"$f":"AND(#REF!,\"cR2Tf0kD2OU=\")","v":{"$error":"#REF!"}},{"$f":"AND(#REF!,\"cR2Tf0kD2OY=\")","v":{"$error":"#REF!"}},{"$f":"AND(#REF!,\"cR2Tf0kD2Oc=\")","v":{"$error":"#REF!"}},{"$f":"AND(#REF!,\"cR2Tf0kD2Og=\")","v":{"$error":"#REF!"}},{"$f":"AND(#REF!,\"cR2Tf0kD2Ok=\")","v":{"$error":"#REF!"}},{"$f":"AND(#REF!,\"cR2Tf0kD2Oo=\")","v":{"$error":"#REF!"}},{"$f":"AND(#REF!,\"cR2Tf0kD2Os=\")","v":{"$error":"#REF!"}},{"$f":"AND(#REF!,\"cR2Tf0kD2Ow=\")","v":{"$error":"#REF!"}},{"$f":"AND(#REF!,\"cR2Tf0kD2O0=\")","v":{"$error":"#REF!"}},{"$f":"AND(#REF!,\"cR2Tf0kD2O4=\")","v":{"$error":"#REF!"}},{"$f":"AND(#REF!,\"cR2Tf0kD2O8=\")","v":{"$error":"#REF!"}},{"$f":"AND(#REF!,\"cR2Tf0kD2PA=\")","v":{"$error":"#REF!"}},{"$f":"AND(#REF!,\"cR2Tf0kD2PE=\")","v":{"$error":"#REF!"}},{"$f":"AND(#REF!,\"cR2Tf0kD2PI=\")","v":{"$error":"#REF!"}},{"$f":"AND(#REF!,\"cR2Tf0kD2PM=\")","v":{"$error":"#REF!"}},{"$f":"AND(#REF!,\"cR2Tf0kD2PQ=\")","v":{"$error":"#REF!"}},{"$f":"AND(#REF!,\"cR2Tf0kD2PU=\")","v":{"$error":"#REF!"}},{"$f":"AND(#REF!,\"cR2Tf0kD2PY=\")","v":{"$error":"#REF!"}},{"$f":"AND(#REF!,\"cR2Tf0kD2Pc=\")","v":{"$error":"#REF!"}},{"$f":"AND(#REF!,\"cR2Tf0kD2Pg=\")","v":{"$error":"#REF!"}},{"$f":"AND(#REF!,\"cR2Tf0kD2Pk=\")","v":{"$error":"#REF!"}},{"$f":"AND(#REF!,\"cR2Tf0kD2Po=\")","v":{"$error":"#REF!"}},{"$f":"AND(#REF!,\"cR2Tf0kD2Ps=\")","v":{"$error":"#REF!"}},{"$f":"AND(#REF!,\"cR2Tf0kD2Pw=\")","v":{"$error":"#REF!"}},{"$f":"AND(#REF!,\"cR2Tf0kD2P0=\")","v":{"$error":"#REF!"}},{"$f":"AND(#REF!,\"cR2Tf0kD2P4=\")","v":{"$error":"#REF!"}},{"$f":"AND(#REF!,\"cR2Tf0kD2P8=\")","v":{"$error":"#REF!"}}]
[{"$f":"AND(#REF!,\"SpA/cyUPxQA=\")","v":{"$error":"#REF!"}},{"$f":"AND(#REF!,\"SpA/cyUPxQE=\")","v":{"$error":"#REF!"}},{"$f":"AND(#REF!,\"SpA/cyUPxQI=\")","v":{"$error":"#REF!"}},{"$f":"AND(#REF!,\"SpA/cyUPxQM=\")","v":{"$error":"#REF!"}},{"$f":"AND(#REF!,\"SpA/cyUPxQQ=\")","v":{"$error":"#REF!"}},{"$f":"AND(#REF!,\"SpA/cyUPxQU=\")","v":{"$error":"#REF!"}},{"$f":"AND(#REF!,\"SpA/cyUPxQY=\")","v":{"$error":"#REF!"}},{"$f":"AND(#REF!,\"SpA/cyUPxQc=\")","v":{"$error":"#REF!"}},{"$f":"AND(#REF!,\"SpA/cyUPxQg=\")","v":{"$error":"#REF!"}},{"$f":"AND(#REF!,\"SpA/cyUPxQk=\")","v":{"$error":"#REF!"}},{"$f":"AND(#REF!,\"SpA/cyUPxQo=\")","v":{"$error":"#REF!"}},{"$f":"AND(#REF!,\"SpA/cyUPxQs=\")","v":{"$error":"#REF!"}},{"$f":"AND(#REF!,\"SpA/cyUPxQw=\")","v":{"$error":"#REF!"}},{"$f":"AND(#REF!,\"SpA/cyUPxQ0=\")","v":{"$error":"#REF!"}},{"$f":"AND(#REF!,\"SpA/cyUPxQ4=\")","v":{"$error":"#REF!"}},{"$f":"AND(#REF!,\"SpA/cyUPxQ8=\")","v":{"$error":"#REF!"}},{"$f":"IF(#REF!,\"SpA/cyUPxRA=\",0)","v":{"$error":"#REF!"}},{"$f":"AND(#REF!,\"SpA/cyUPxRE=\")","v":{"$error":"#REF!"}},{"$f":"AND(#REF!,\"SpA/cyUPxRI=\")","v":{"$error":"#REF!"}},{"$f":"AND(#REF!,\"SpA/cyUPxRM=\")","v":{"$error":"#REF!"}},{"$f":"AND(#REF!,\"SpA/cyUPxRQ=\")","v":{"$error":"#REF!"}},{"$f":"AND(#REF!,\"SpA/cyUPxRU=\")","v":{"$error":"#REF!"}},{"$f":"AND(#REF!,\"SpA/cyUPxRY=\")","v":{"$error":"#REF!"}},{"$f":"AND(#REF!,\"SpA/cyUPxRc=\")","v":{"$error":"#REF!"}},{"$f":"AND(#REF!,\"SpA/cyUPxRg=\")","v":{"$error":"#REF!"}},{"$f":"AND(#REF!,\"SpA/cyUPxRk=\")","v":{"$error":"#REF!"}},{"$f":"AND(#REF!,\"SpA/cyUPxRo=\")","v":{"$error":"#REF!"}},{"$f":"AND(#REF!,\"SpA/cyUPxRs=\")","v":{"$error":"#REF!"}},{"$f":"AND(#REF!,\"SpA/cyUPxRw=\")","v":{"$error":"#REF!"}},{"$f":"AND(#REF!,\"SpA/cyUPxR0=\")","v":{"$error":"#REF!"}},{"$f":"AND(#REF!,\"SpA/cyUPxR4=\")","v":{"$error":"#REF!"}},{"$f":"AND(#REF!,\"SpA/cyUPxR8=\")","v":{"$error":"#REF!"}},{"$f":"AND(#REF!,\"SpA/cyUPxSA=\")","v":{"$error":"#REF!"}},{"$f":"AND(#REF!,\"SpA/cyUPxSE=\")","v":{"$error":"#REF!"}},{"$f":"AND(#REF!,\"SpA/cyUPxSI=\")","v":{"$error":"#REF!"}},{"$f":"AND(#REF!,\"SpA/cyUPxSM=\")","v":{"$error":"#REF!"}},{"$f":"AND(#REF!,\"SpA/cyUPxSQ=\")","v":{"$error":"#REF!"}},{"$f":"AND(#REF!,\"SpA/cyUPxSU=\")","v":{"$error":"#REF!"}},{"$f":"AND(#REF!,\"SpA/cyUPxSY=\")","v":{"$error":"#REF!"}},{"$f":"AND(#REF!,\"SpA/cyUPxSc=\")","v":{"$error":"#REF!"}},{"$f":"AND(#REF!,\"SpA/cyUPxSg=\")","v":{"$error":"#REF!"}},{"$f":"AND(#REF!,\"SpA/cyUPxSk=\")","v":{"$error":"#REF!"}},{"$f":"AND(#REF!,\"SpA/cyUPxSo=\")","v":{"$error":"#REF!"}},{"$f":"AND(#REF!,\"SpA/cyUPxSs=\")","v":{"$error":"#REF!"}},{"$f":"AND(#REF!,\"SpA/cyUPxSw=\")","v":{"$error":"#REF!"}},{"$f":"AND(#REF!,\"SpA/cyUPxS0=\")","v":{"$error":"#REF!"}},{"$f":"AND(#REF!,\"SpA/cyUPxS4=\")","v":{"$error":"#REF!"}},{"$f":"AND(#REF!,\"SpA/cyUPxS8=\")","v":{"$error":"#REF!"}},{"$f":"AND(#REF!,\"SpA/cyUPxTA=\")","v":{"$error":"#REF!"}},{"$f":"AND(#REF!,\"SpA/cyUPxTE=\")","v":{"$error":"#REF!"}},{"$f":"AND(#REF!,\"SpA/cyUPxTI=\")","v":{"$error":"#REF!"}},{"$f":"AND(#REF!,\"SpA/cyUPxTM=\")","v":{"$error":"#REF!"}},{"$f":"AND(#REF!,\"SpA/cyUPxTQ=\")","v":{"$error":"#REF!"}},{"$f":"AND(#REF!,\"SpA/cyUPxTU=\")","v":{"$error":"#REF!"}},{"$f":"AND(#REF!,\"SpA/cyUPxTY=\")","v":{"$error":"#REF!"}},{"$f":"AND(#REF!,\"SpA/cyUPxTc=\")","v":{"$error":"#REF!"}},{"$f":"AND(#REF!,\"SpA/cyUPxTg=\")","v":{"$error":"#REF!"}},{"$f":"AND(#REF!,\"SpA/cyUPxTk=\")","v":{"$error":"#REF!"}},{"$f":"AND(#REF!,\"SpA/cyUPxTo=\")","v":{"$error":"#REF!"}},{"$f":"AND(#REF!,\"SpA/cyUPxTs=\")","v":{"$error":"#REF!"}},{"$f":"AND(#REF!,\"SpA/cyUPxTw=\")","v":{"$error":"#REF!"}},{"$f":"AND(#REF!,\"SpA/cyUPxT0=\")","v":{"$error":"#REF!"}},{"$f":"AND(#REF!,\"SpA/cyUPxT4=\")","v":{"$error":"#REF!"}},{"$f":"AND(#REF!,\"SpA/cyUPxT8=\")","v":{"$error":"#REF!"}},{"$f":"AND(#REF!,\"SpA/cyUPxUA=\")","v":{"$error":"#REF!"}},{"$f":"AND(#REF!,\"SpA/cyUPxUE=\")","v":{"$error":"#REF!"}},{"$f":"AND(#REF!,\"SpA/cyUPxUI=\")","v":{"$error":"#REF!"}},{"$f":"AND(#REF!,\"SpA/cyUPxUM=\")","v":{"$error":"#REF!"}},{"$f":"AND(#REF!,\"SpA/cyUPxUQ=\")","v":{"$error":"#REF!"}},{"$f":"AND(#REF!,\"SpA/cyUPxUU=\")","v":{"$error":"#REF!"}},{"$f":"AND(#REF!,\"SpA/cyUPxUY=\")","v":{"$error":"#REF!"}},{"$f":"AND(#REF!,\"SpA/cyUPxUc=\")","v":{"$error":"#REF!"}},{"$f":"AND(#REF!,\"SpA/cyUPxUg=\")","v":{"$error":"#REF!"}},{"$f":"AND(#REF!,\"SpA/cyUPxUk=\")","v":{"$error":"#REF!"}},{"$f":"AND(#REF!,\"SpA/cyUPxUo=\")","v":{"$error":"#REF!"}},{"$f":"AND(#REF!,\"SpA/cyUPxUs=\")","v":{"$error":"#REF!"}},{"$f":"AND(#REF!,\"SpA/cyUPxUw=\")","v":{"$error":"#REF!"}},{"$f":"AND(#REF!,\"SpA/cyUPxU0=\")","v":{"$error":"#REF!"}},{"$f":"AND(#REF!,\"SpA/cyUPxU4=\")","v":{"$error":"#REF!"}},{"$f":"AND(#REF!,\"SpA/cyUPxU8=\")","v":{"$error":"#REF!"}},{"$f":"AND(#REF!,\"SpA/cyUPxVA=\")","v":{"$error":"#REF!"}},{"$f":"AND(#REF!,\"SpA/cyUPxVE=\")","v":{"$error":"#REF!"}},{"$f":"AND(#REF!,\"SpA/cyUPxVI=\")","v":{"$error":"#REF!"}},{"$f":"AND(#REF!,\"SpA/cyUPxVM=\")","v":{"$error":"#REF!"}},{"$f":"AND(#REF!,\"SpA/cyUPxVQ=\")","v":{"$error":"#REF!"}},{"$f":"AND(#REF!,\"SpA/cyUPxVU=\")","v":{"$error":"#REF!"}},{"$f":"AND(#REF!,\"SpA/cyUPxVY=\")","v":{"$error":"#REF!"}},{"$f":"AND(#REF!,\"SpA/cyUPxVc=\")","v":{"$error":"#REF!"}},{"$f":"AND(#REF!,\"SpA/cyUPxVg=\")","v":{"$error":"#REF!"}},{"$f":"AND(#REF!,\"SpA/cyUPxVk=\")","v":{"$error":"#REF!"}},{"$f":"AND(#REF!,\"SpA/cyUPxVo=\")","v":{"$error":"#REF!"}},{"$f":"AND(#REF!,\"SpA/cyUPxVs=\")","v":{"$error":"#REF!"}},{"$f":"AND(#REF!,\"SpA/cyUPxVw=\")","v":{"$error":"#REF!"}},{"$f":"AND(#REF!,\"SpA/cyUPxV0=\")","v":{"$error":"#REF!"}},{"$f":"AND(#REF!,\"SpA/cyUPxV4=\")","v":{"$error":"#REF!"}},{"$f":"AND(#REF!,\"SpA/cyUPxV8=\")","v":{"$error":"#REF!"}},{"$f":"AND(#REF!,\"SpA/cyUPxWA=\")","v":{"$error":"#REF!"}},{"$f":"AND(#REF!,\"SpA/cyUPxWE=\")","v":{"$error":"#REF!"}},{"$f":"AND(#REF!,\"SpA/cyUPxWI=\")","v":{"$error":"#REF!"}},{"$f":"AND(#REF!,\"SpA/cyUPxWM=\")","v":{"$error":"#REF!"}},{"$f":"AND(#REF!,\"SpA/cyUPxWQ=\")","v":{"$error":"#REF!"}},{"$f":"AND(#REF!,\"SpA/cyUPxWU=\")","v":{"$error":"#REF!"}},{"$f":"AND(#REF!,\"SpA/cyUPxWY=\")","v":{"$error":"#REF!"}},{"$f":"AND(#REF!,\"SpA/cyUPxWc=\")","v":{"$error":"#REF!"}},{"$f":"AND(#REF!,\"SpA/cyUPxWg=\")","v":{"$error":"#REF!"}},{"$f":"AND(#REF!,\"SpA/cyUPxWk=\")","v":{"$error":"#REF!"}},{"$f":"AND(#REF!,\"SpA/cyUPxWo=\")","v":{"$error":"#REF!"}},{"$f":"AND(#REF!,\"SpA/cyUPxWs=\")","v":{"$error":"#REF!"}},{"$f":"AND(#REF!,\"SpA/cyUPxWw=\")","v":{"$error":"#REF!"}},{"$f":"AND(#REF!,\"SpA/cyUPxW0=\")","v":{"$error":"#REF!"}},{"$f":"AND(#REF!,\"SpA/cyUPxW4=\")","v":{"$error":"#REF!"}},{"$f":"AND(#REF!,\"SpA/cyUPxW8=\")","v":{"$error":"#REF!"}},{"$f":"AND(#REF!,\"SpA/cyUPxXA=\")","v":{"$error":"#REF!"}},{"$f":"AND(#REF!,\"SpA/cyUPxXE=\")","v":{"$error":"#REF!"}},{"$f":"AND(#REF!,\"SpA/cyUPxXI=\")","v":{"$error":"#REF!"}},{"$f":"AND(#REF!,\"SpA/cyUPxXM=\")","v":{"$error":"#REF!"}},{"$f":"AND(#REF!,\"SpA/cyUPxXQ=\")","v":{"$error":"#REF!"}},{"$f":"AND(#REF!,\"SpA/cyUPxXU=\")","v":{"$error":"#REF!"}},{"$f":"AND(#REF!,\"SpA/cyUPxXY=\")","v":{"$error":"#REF!"}},{"$f":"AND(#REF!,\"SpA/cyUPxXc=\")","v":{"$error":"#REF!"}},{"$f":"AND(#REF!,\"SpA/cyUPxXg=\")","v":{"$error":"#REF!"}},{"$f":"AND(#REF!,\"SpA/cyUPxXk=\")","v":{"$error":"#REF!"}},{"$f":"AND(#REF!,\"SpA/cyUPxXo=\")","v":{"$error":"#REF!"}},{"$f":"AND(#REF!,\"SpA/cyUPxXs=\")","v":{"$error":"#REF!"}},{"$f":"AND(#REF!,\"SpA/cyUPxXw=\")","v":{"$error":"#REF!"}},{"$f":"AND(#REF!,\"SpA/cyUPxX0=\")","v":{"$error":"#REF!"}},{"$f":"AND(#REF!,\"SpA/cyUPxX4=\")","v":{"$error":"#REF!"}},{"$f":"AND(#REF!,\"SpA/cyUPxX8=\")","v":{"$error":"#REF!"}},{"$f":"AND(#REF!,\"SpA/cyUPxYA=\")","v":{"$error":"#REF!"}},{"$f":"AND(#REF!,\"SpA/cyUPxYE=\")","v":{"$error":"#REF!"}},{"$f":"AND(#REF!,\"SpA/cyUPxYI=\")","v":{"$error":"#REF!"}},{"$f":"AND(#REF!,\"SpA/cyUPxYM=\")","v":{"$error":"#REF!"}},{"$f":"AND(#REF!,\"SpA/cyUPxYQ=\")","v":{"$error":"#REF!"}},{"$f":"AND(#REF!,\"SpA/cyUPxYU=\")","v":{"$error":"#REF!"}},{"$f":"AND(#REF!,\"SpA/cyUPxYY=\")","v":{"$error":"#REF!"}},{"$f":"AND(#REF!,\"SpA/cyUPxYc=\")","v":{"$error":"#REF!"}},{"$f":"AND(#REF!,\"SpA/cyUPxYg=\")","v":{"$error":"#REF!"}},{"$f":"AND(#REF!,\"SpA/cyUPxYk=\")","v":{"$error":"#REF!"}},{"$f":"AND(#REF!,\"SpA/cyUPxYo=\")","v":{"$error":"#REF!"}},{"$f":"AND(#REF!,\"SpA/cyUPxYs=\")","v":{"$error":"#REF!"}},{"$f":"AND(#REF!,\"SpA/cyUPxYw=\")","v":{"$error":"#REF!"}},{"$f":"AND(#REF!,\"SpA/cyUPxY0=\")","v":{"$error":"#REF!"}},{"$f":"AND(#REF!,\"SpA/cyUPxY4=\")","v":{"$error":"#REF!"}},{"$f":"AND(#REF!,\"SpA/cyUPxY8=\")","v":{"$error":"#REF!"}},{"$f":"AND(#REF!,\"SpA/cyUPxZA=\")","v":{"$error":"#REF!"}},{"$f":"AND(#REF!,\"SpA/cyUPxZE=\")","v":{"$error":"#REF!"}},{"$f":"AND(#REF!,\"SpA/cyUPxZI=\")","v":{"$error":"#REF!"}},{"$f":"AND(#REF!,\"SpA/cyUPxZM=\")","v":{"$error":"#REF!"}},{"$f":"AND(#REF!,\"SpA/cyUPxZQ=\")","v":{"$error":"#REF!"}},{"$f":"AND(#REF!,\"SpA/cyUPxZU=\")","v":{"$error":"#REF!"}},{"$f":"AND(#REF!,\"SpA/cyUPxZY=\")","v":{"$error":"#REF!"}},{"$f":"AND(#REF!,\"SpA/cyUPxZc=\")","v":{"$error":"#REF!"}},{"$f":"AND(#REF!,\"SpA/cyUPxZg=\")","v":{"$error":"#REF!"}},{"$f":"AND(#REF!,\"SpA/cyUPxZk=\")","v":{"$error":"#REF!"}},{"$f":"AND(#REF!,\"SpA/cyUPxZo=\")","v":{"$error":"#REF!"}},{"$f":"AND(#REF!,\"SpA/cyUPxZs=\")","v":{"$error":"#REF!"}},{"$f":"AND(#REF!,\"SpA/cyUPxZw=\")","v":{"$error":"#REF!"}},{"$f":"AND(#REF!,\"SpA/cyUPxZ0=\")","v":{"$error":"#REF!"}},{"$f":"AND(#REF!,\"SpA/cyUPxZ4=\")","v":{"$error":"#REF!"}},{"$f":"AND(#REF!,\"SpA/cyUPxZ8=\")","v":{"$error":"#REF!"}},{"$f":"AND(#REF!,\"SpA/cyUPxaA=\")","v":{"$error":"#REF!"}},{"$f":"AND(#REF!,\"SpA/cyUPxaE=\")","v":{"$error":"#REF!"}},{"$f":"AND(#REF!,\"SpA/cyUPxaI=\")","v":{"$error":"#REF!"}},{"$f":"AND(#REF!,\"SpA/cyUPxaM=\")","v":{"$error":"#REF!"}},{"$f":"AND(#REF!,\"SpA/cyUPxaQ=\")","v":{"$error":"#REF!"}},{"$f":"AND(#REF!,\"SpA/cyUPxaU=\")","v":{"$error":"#REF!"}},{"$f":"AND(#REF!,\"SpA/cyUPxaY=\")","v":{"$error":"#REF!"}},{"$f":"AND(#REF!,\"SpA/cyUPxac=\")","v":{"$error":"#REF!"}},{"$f":"AND(#REF!,\"SpA/cyUPxag=\")","v":{"$error":"#REF!"}},{"$f":"AND(#REF!,\"SpA/cyUPxak=\")","v":{"$error":"#REF!"}},{"$f":"AND(#REF!,\"SpA/cyUPxao=\")","v":{"$error":"#REF!"}},{"$f":"AND(#REF!,\"SpA/cyUPxas=\")","v":{"$error":"#REF!"}},{"$f":"AND(#REF!,\"SpA/cyUPxaw=\")","v":{"$error":"#REF!"}},{"$f":"AND(#REF!,\"SpA/cyUPxa0=\")","v":{"$error":"#REF!"}},{"$f":"AND(#REF!,\"SpA/cyUPxa4=\")","v":{"$error":"#REF!"}},{"$f":"AND(#REF!,\"SpA/cyUPxa8=\")","v":{"$error":"#REF!"}},{"$f":"AND(#REF!,\"SpA/cyUPxbA=\")","v":{"$error":"#REF!"}},{"$f":"AND(#REF!,\"SpA/cyUPxbE=\")","v":{"$error":"#REF!"}},{"$f":"AND(#REF!,\"SpA/cyUPxbI=\")","v":{"$error":"#REF!"}},{"$f":"AND(#REF!,\"SpA/cyUPxbM=\")","v":{"$error":"#REF!"}},{"$f":"AND(#REF!,\"SpA/cyUPxbQ=\")","v":{"$error":"#REF!"}},{"$f":"AND(#REF!,\"SpA/cyUPxbU=\")","v":{"$error":"#REF!"}},{"$f":"AND(#REF!,\"SpA/cyUPxbY=\")","v":{"$error":"#REF!"}},{"$f":"AND(#REF!,\"SpA/cyUPxbc=\")","v":{"$error":"#REF!"}},{"$f":"AND(#REF!,\"SpA/cyUPxbg=\")","v":{"$error":"#REF!"}},{"$f":"AND(#REF!,\"SpA/cyUPxbk=\")","v":{"$error":"#REF!"}},{"$f":"AND(#REF!,\"SpA/cyUPxbo=\")","v":{"$error":"#REF!"}},{"$f":"AND(#REF!,\"SpA/cyUPxbs=\")","v":{"$error":"#REF!"}},{"$f":"AND(#REF!,\"SpA/cyUPxbw=\")","v":{"$error":"#REF!"}},{"$f":"AND(#REF!,\"SpA/cyUPxb0=\")","v":{"$error":"#REF!"}},{"$f":"AND(#REF!,\"SpA/cyUPxb4=\")","v":{"$error":"#REF!"}},{"$f":"AND(#REF!,\"SpA/cyUPxb8=\")","v":{"$error":"#REF!"}},{"$f":"AND(#REF!,\"SpA/cyUPxcA=\")","v":{"$error":"#REF!"}},{"$f":"AND(#REF!,\"SpA/cyUPxcE=\")","v":{"$error":"#REF!"}},{"$f":"AND(#REF!,\"SpA/cyUPxcI=\")","v":{"$error":"#REF!"}},{"$f":"AND(#REF!,\"SpA/cyUPxcM=\")","v":{"$error":"#REF!"}},{"$f":"AND(#REF!,\"SpA/cyUPxcQ=\")","v":{"$error":"#REF!"}},{"$f":"AND(#REF!,\"SpA/cyUPxcU=\")","v":{"$error":"#REF!"}},{"$f":"AND(#REF!,\"SpA/cyUPxcY=\")","v":{"$error":"#REF!"}},{"$f":"AND(#REF!,\"SpA/cyUPxcc=\")","v":{"$error":"#REF!"}},{"$f":"AND(#REF!,\"SpA/cyUPxcg=\")","v":{"$error":"#REF!"}},{"$f":"AND(#REF!,\"SpA/cyUPxck=\")","v":{"$error":"#REF!"}},{"$f":"AND(#REF!,\"SpA/cyUPxco=\")","v":{"$error":"#REF!"}},{"$f":"AND(#REF!,\"SpA/cyUPxcs=\")","v":{"$error":"#REF!"}},{"$f":"AND(#REF!,\"SpA/cyUPxcw=\")","v":{"$error":"#REF!"}},{"$f":"AND(#REF!,\"SpA/cyUPxc0=\")","v":{"$error":"#REF!"}},{"$f":"AND(#REF!,\"SpA/cyUPxc4=\")","v":{"$error":"#REF!"}},{"$f":"AND(#REF!,\"SpA/cyUPxc8=\")","v":{"$error":"#REF!"}},{"$f":"AND(#REF!,\"SpA/cyUPxdA=\")","v":{"$error":"#REF!"}},{"$f":"AND(#REF!,\"SpA/cyUPxdE=\")","v":{"$error":"#REF!"}},{"$f":"AND(#REF!,\"SpA/cyUPxdI=\")","v":{"$error":"#REF!"}},{"$f":"AND(#REF!,\"SpA/cyUPxdM=\")","v":{"$error":"#REF!"}},{"$f":"AND(#REF!,\"SpA/cyUPxdQ=\")","v":{"$error":"#REF!"}},{"$f":"AND(#REF!,\"SpA/cyUPxdU=\")","v":{"$error":"#REF!"}},{"$f":"AND(#REF!,\"SpA/cyUPxdY=\")","v":{"$error":"#REF!"}},{"$f":"IF(#REF!,\"SpA/cyUPxdc=\",0)","v":{"$error":"#REF!"}},{"$f":"AND(#REF!,\"SpA/cyUPxdg=\")","v":{"$error":"#REF!"}},{"$f":"AND(#REF!,\"SpA/cyUPxdk=\")","v":{"$error":"#REF!"}},{"$f":"AND(#REF!,\"SpA/cyUPxdo=\")","v":{"$error":"#REF!"}},{"$f":"AND(#REF!,\"SpA/cyUPxds=\")","v":{"$error":"#REF!"}},{"$f":"AND(#REF!,\"SpA/cyUPxdw=\")","v":{"$error":"#REF!"}},{"$f":"AND(#REF!,\"SpA/cyUPxd0=\")","v":{"$error":"#REF!"}},{"$f":"AND(#REF!,\"SpA/cyUPxd4=\")","v":{"$error":"#REF!"}},{"$f":"AND(#REF!,\"SpA/cyUPxd8=\")","v":{"$error":"#REF!"}},{"$f":"AND(#REF!,\"SpA/cyUPxeA=\")","v":{"$error":"#REF!"}},{"$f":"AND(#REF!,\"SpA/cyUPxeE=\")","v":{"$error":"#REF!"}},{"$f":"AND(#REF!,\"SpA/cyUPxeI=\")","v":{"$error":"#REF!"}},{"$f":"AND(#REF!,\"SpA/cyUPxeM=\")","v":{"$error":"#REF!"}},{"$f":"AND(#REF!,\"SpA/cyUPxeQ=\")","v":{"$error":"#REF!"}},{"$f":"AND(#REF!,\"SpA/cyUPxeU=\")","v":{"$error":"#REF!"}},{"$f":"AND(#REF!,\"SpA/cyUPxeY=\")","v":{"$error":"#REF!"}},{"$f":"AND(#REF!,\"SpA/cyUPxec=\")","v":{"$error":"#REF!"}},{"$f":"AND(#REF!,\"SpA/cyUPxeg=\")","v":{"$error":"#REF!"}},{"$f":"AND(#REF!,\"SpA/cyUPxek=\")","v":{"$error":"#REF!"}},{"$f":"AND(#REF!,\"SpA/cyUPxeo=\")","v":{"$error":"#REF!"}},{"$f":"AND(#REF!,\"SpA/cyUPxes=\")","v":{"$error":"#REF!"}},{"$f":"AND(#REF!,\"SpA/cyUPxew=\")","v":{"$error":"#REF!"}},{"$f":"AND(#REF!,\"SpA/cyUPxe0=\")","v":{"$error":"#REF!"}},{"$f":"AND(#REF!,\"SpA/cyUPxe4=\")","v":{"$error":"#REF!"}},{"$f":"AND(#REF!,\"SpA/cyUPxe8=\")","v":{"$error":"#REF!"}},{"$f":"AND(#REF!,\"SpA/cyUPxfA=\")","v":{"$error":"#REF!"}},{"$f":"AND(#REF!,\"SpA/cyUPxfE=\")","v":{"$error":"#REF!"}},{"$f":"AND(#REF!,\"SpA/cyUPxfI=\")","v":{"$error":"#REF!"}},{"$f":"AND(#REF!,\"SpA/cyUPxfM=\")","v":{"$error":"#REF!"}},{"$f":"AND(#REF!,\"SpA/cyUPxfQ=\")","v":{"$error":"#REF!"}},{"$f":"AND(#REF!,\"SpA/cyUPxfU=\")","v":{"$error":"#REF!"}},{"$f":"AND(#REF!,\"SpA/cyUPxfY=\")","v":{"$error":"#REF!"}},{"$f":"AND(#REF!,\"SpA/cyUPxfc=\")","v":{"$error":"#REF!"}},{"$f":"AND(#REF!,\"SpA/cyUPxfg=\")","v":{"$error":"#REF!"}},{"$f":"AND(#REF!,\"SpA/cyUPxfk=\")","v":{"$error":"#REF!"}},{"$f":"AND(#REF!,\"SpA/cyUPxfo=\")","v":{"$error":"#REF!"}},{"$f":"AND(#REF!,\"SpA/cyUPxfs=\")","v":{"$error":"#REF!"}},{"$f":"AND(#REF!,\"SpA/cyUPxfw=\")","v":{"$error":"#REF!"}},{"$f":"AND(#REF!,\"SpA/cyUPxf0=\")","v":{"$error":"#REF!"}},{"$f":"AND(#REF!,\"SpA/cyUPxf4=\")","v":{"$error":"#REF!"}},{"$f":"AND(#REF!,\"SpA/cyUPxf8=\")","v":{"$error":"#REF!"}}]
[{"$f":"AND(#REF!,\"E9Thyh+5agA=\")","v":{"$error":"#REF!"}},{"$f":"AND(#REF!,\"E9Thyh+5agE=\")","v":{"$error":"#REF!"}},{"$f":"AND(#REF!,\"E9Thyh+5agI=\")","v":{"$error":"#REF!"}},{"$f":"AND(#REF!,\"E9Thyh+5agM=\")","v":{"$error":"#REF!"}},{"$f":"AND(#REF!,\"E9Thyh+5agQ=\")","v":{"$error":"#REF!"}},{"$f":"AND(#REF!,\"E9Thyh+5agU=\")","v":{"$error":"#REF!"}},{"$f":"AND(#REF!,\"E9Thyh+5agY=\")","v":{"$error":"#REF!"}},{"$f":"AND(#REF!,\"E9Thyh+5agc=\")","v":{"$error":"#REF!"}},{"$f":"AND(#REF!,\"E9Thyh+5agg=\")","v":{"$error":"#REF!"}},{"$f":"AND(#REF!,\"E9Thyh+5agk=\")","v":{"$error":"#REF!"}},{"$f":"AND(#REF!,\"E9Thyh+5ago=\")","v":{"$error":"#REF!"}},{"$f":"AND(#REF!,\"E9Thyh+5ags=\")","v":{"$error":"#REF!"}},{"$f":"AND(#REF!,\"E9Thyh+5agw=\")","v":{"$error":"#REF!"}},{"$f":"AND(#REF!,\"E9Thyh+5ag0=\")","v":{"$error":"#REF!"}},{"$f":"AND(#REF!,\"E9Thyh+5ag4=\")","v":{"$error":"#REF!"}},{"$f":"AND(#REF!,\"E9Thyh+5ag8=\")","v":{"$error":"#REF!"}},{"$f":"AND(#REF!,\"E9Thyh+5ahA=\")","v":{"$error":"#REF!"}},{"$f":"AND(#REF!,\"E9Thyh+5ahE=\")","v":{"$error":"#REF!"}},{"$f":"AND(#REF!,\"E9Thyh+5ahI=\")","v":{"$error":"#REF!"}},{"$f":"AND(#REF!,\"E9Thyh+5ahM=\")","v":{"$error":"#REF!"}},{"$f":"AND(#REF!,\"E9Thyh+5ahQ=\")","v":{"$error":"#REF!"}},{"$f":"AND(#REF!,\"E9Thyh+5ahU=\")","v":{"$error":"#REF!"}},{"$f":"AND(#REF!,\"E9Thyh+5ahY=\")","v":{"$error":"#REF!"}},{"$f":"AND(#REF!,\"E9Thyh+5ahc=\")","v":{"$error":"#REF!"}},{"$f":"AND(#REF!,\"E9Thyh+5ahg=\")","v":{"$error":"#REF!"}},{"$f":"AND(#REF!,\"E9Thyh+5ahk=\")","v":{"$error":"#REF!"}},{"$f":"AND(#REF!,\"E9Thyh+5aho=\")","v":{"$error":"#REF!"}},{"$f":"AND(#REF!,\"E9Thyh+5ahs=\")","v":{"$error":"#REF!"}},{"$f":"AND(#REF!,\"E9Thyh+5ahw=\")","v":{"$error":"#REF!"}},{"$f":"AND(#REF!,\"E9Thyh+5ah0=\")","v":{"$error":"#REF!"}},{"$f":"AND(#REF!,\"E9Thyh+5ah4=\")","v":{"$error":"#REF!"}},{"$f":"AND(#REF!,\"E9Thyh+5ah8=\")","v":{"$error":"#REF!"}},{"$f":"AND(#REF!,\"E9Thyh+5aiA=\")","v":{"$error":"#REF!"}},{"$f":"AND(#REF!,\"E9Thyh+5aiE=\")","v":{"$error":"#REF!"}},{"$f":"AND(#REF!,\"E9Thyh+5aiI=\")","v":{"$error":"#REF!"}},{"$f":"AND(#REF!,\"E9Thyh+5aiM=\")","v":{"$error":"#REF!"}},{"$f":"AND(#REF!,\"E9Thyh+5aiQ=\")","v":{"$error":"#REF!"}},{"$f":"AND(#REF!,\"E9Thyh+5aiU=\")","v":{"$error":"#REF!"}},{"$f":"AND(#REF!,\"E9Thyh+5aiY=\")","v":{"$error":"#REF!"}},{"$f":"AND(#REF!,\"E9Thyh+5aic=\")","v":{"$error":"#REF!"}},{"$f":"AND(#REF!,\"E9Thyh+5aig=\")","v":{"$error":"#REF!"}},{"$f":"AND(#REF!,\"E9Thyh+5aik=\")","v":{"$error":"#REF!"}},{"$f":"AND(#REF!,\"E9Thyh+5aio=\")","v":{"$error":"#REF!"}},{"$f":"AND(#REF!,\"E9Thyh+5ais=\")","v":{"$error":"#REF!"}},{"$f":"AND(#REF!,\"E9Thyh+5aiw=\")","v":{"$error":"#REF!"}},{"$f":"AND(#REF!,\"E9Thyh+5ai0=\")","v":{"$error":"#REF!"}},{"$f":"AND(#REF!,\"E9Thyh+5ai4=\")","v":{"$error":"#REF!"}},{"$f":"AND(#REF!,\"E9Thyh+5ai8=\")","v":{"$error":"#REF!"}},{"$f":"AND(#REF!,\"E9Thyh+5ajA=\")","v":{"$error":"#REF!"}},{"$f":"AND(#REF!,\"E9Thyh+5ajE=\")","v":{"$error":"#REF!"}},{"$f":"AND(#REF!,\"E9Thyh+5ajI=\")","v":{"$error":"#REF!"}},{"$f":"AND(#REF!,\"E9Thyh+5ajM=\")","v":{"$error":"#REF!"}},{"$f":"AND(#REF!,\"E9Thyh+5ajQ=\")","v":{"$error":"#REF!"}},{"$f":"AND(#REF!,\"E9Thyh+5ajU=\")","v":{"$error":"#REF!"}},{"$f":"AND(#REF!,\"E9Thyh+5ajY=\")","v":{"$error":"#REF!"}},{"$f":"AND(#REF!,\"E9Thyh+5ajc=\")","v":{"$error":"#REF!"}},{"$f":"AND(#REF!,\"E9Thyh+5ajg=\")","v":{"$error":"#REF!"}},{"$f":"AND(#REF!,\"E9Thyh+5ajk=\")","v":{"$error":"#REF!"}},{"$f":"AND(#REF!,\"E9Thyh+5ajo=\")","v":{"$error":"#REF!"}},{"$f":"AND(#REF!,\"E9Thyh+5ajs=\")","v":{"$error":"#REF!"}},{"$f":"AND(#REF!,\"E9Thyh+5ajw=\")","v":{"$error":"#REF!"}},{"$f":"AND(#REF!,\"E9Thyh+5aj0=\")","v":{"$error":"#REF!"}},{"$f":"AND(#REF!,\"E9Thyh+5aj4=\")","v":{"$error":"#REF!"}},{"$f":"AND(#REF!,\"E9Thyh+5aj8=\")","v":{"$error":"#REF!"}},{"$f":"AND(#REF!,\"E9Thyh+5akA=\")","v":{"$error":"#REF!"}},{"$f":"AND(#REF!,\"E9Thyh+5akE=\")","v":{"$error":"#REF!"}},{"$f":"AND(#REF!,\"E9Thyh+5akI=\")","v":{"$error":"#REF!"}},{"$f":"AND(#REF!,\"E9Thyh+5akM=\")","v":{"$error":"#REF!"}},{"$f":"AND(#REF!,\"E9Thyh+5akQ=\")","v":{"$error":"#REF!"}},{"$f":"AND(#REF!,\"E9Thyh+5akU=\")","v":{"$error":"#REF!"}},{"$f":"AND(#REF!,\"E9Thyh+5akY=\")","v":{"$error":"#REF!"}},{"$f":"AND(#REF!,\"E9Thyh+5akc=\")","v":{"$error":"#REF!"}},{"$f":"AND(#REF!,\"E9Thyh+5akg=\")","v":{"$error":"#REF!"}},{"$f":"AND(#REF!,\"E9Thyh+5akk=\")","v":{"$error":"#REF!"}},{"$f":"AND(#REF!,\"E9Thyh+5ako=\")","v":{"$error":"#REF!"}},{"$f":"AND(#REF!,\"E9Thyh+5aks=\")","v":{"$error":"#REF!"}},{"$f":"AND(#REF!,\"E9Thyh+5akw=\")","v":{"$error":"#REF!"}},{"$f":"AND(#REF!,\"E9Thyh+5ak0=\")","v":{"$error":"#REF!"}},{"$f":"AND(#REF!,\"E9Thyh+5ak4=\")","v":{"$error":"#REF!"}},{"$f":"AND(#REF!,\"E9Thyh+5ak8=\")","v":{"$error":"#REF!"}},{"$f":"AND(#REF!,\"E9Thyh+5alA=\")","v":{"$error":"#REF!"}},{"$f":"AND(#REF!,\"E9Thyh+5alE=\")","v":{"$error":"#REF!"}},{"$f":"AND(#REF!,\"E9Thyh+5alI=\")","v":{"$error":"#REF!"}},{"$f":"AND(#REF!,\"E9Thyh+5alM=\")","v":{"$error":"#REF!"}},{"$f":"AND(#REF!,\"E9Thyh+5alQ=\")","v":{"$error":"#REF!"}},{"$f":"AND(#REF!,\"E9Thyh+5alU=\")","v":{"$error":"#REF!"}},{"$f":"AND(#REF!,\"E9Thyh+5alY=\")","v":{"$error":"#REF!"}},{"$f":"AND(#REF!,\"E9Thyh+5alc=\")","v":{"$error":"#REF!"}},{"$f":"AND(#REF!,\"E9Thyh+5alg=\")","v":{"$error":"#REF!"}},{"$f":"AND(#REF!,\"E9Thyh+5alk=\")","v":{"$error":"#REF!"}},{"$f":"AND(#REF!,\"E9Thyh+5alo=\")","v":{"$error":"#REF!"}},{"$f":"AND(#REF!,\"E9Thyh+5als=\")","v":{"$error":"#REF!"}},{"$f":"AND(#REF!,\"E9Thyh+5alw=\")","v":{"$error":"#REF!"}},{"$f":"AND(#REF!,\"E9Thyh+5al0=\")","v":{"$error":"#REF!"}},{"$f":"AND(#REF!,\"E9Thyh+5al4=\")","v":{"$error":"#REF!"}},{"$f":"AND(#REF!,\"E9Thyh+5al8=\")","v":{"$error":"#REF!"}},{"$f":"AND(#REF!,\"E9Thyh+5amA=\")","v":{"$error":"#REF!"}},{"$f":"AND(#REF!,\"E9Thyh+5amE=\")","v":{"$error":"#REF!"}},{"$f":"AND(#REF!,\"E9Thyh+5amI=\")","v":{"$error":"#REF!"}},{"$f":"AND(#REF!,\"E9Thyh+5amM=\")","v":{"$error":"#REF!"}},{"$f":"AND(#REF!,\"E9Thyh+5amQ=\")","v":{"$error":"#REF!"}},{"$f":"AND(#REF!,\"E9Thyh+5amU=\")","v":{"$error":"#REF!"}},{"$f":"AND(#REF!,\"E9Thyh+5amY=\")","v":{"$error":"#REF!"}},{"$f":"AND(#REF!,\"E9Thyh+5amc=\")","v":{"$error":"#REF!"}},{"$f":"AND(#REF!,\"E9Thyh+5amg=\")","v":{"$error":"#REF!"}},{"$f":"AND(#REF!,\"E9Thyh+5amk=\")","v":{"$error":"#REF!"}},{"$f":"AND(#REF!,\"E9Thyh+5amo=\")","v":{"$error":"#REF!"}},{"$f":"AND(#REF!,\"E9Thyh+5ams=\")","v":{"$error":"#REF!"}},{"$f":"AND(#REF!,\"E9Thyh+5amw=\")","v":{"$error":"#REF!"}},{"$f":"AND(#REF!,\"E9Thyh+5am0=\")","v":{"$error":"#REF!"}},{"$f":"AND(#REF!,\"E9Thyh+5am4=\")","v":{"$error":"#REF!"}},{"$f":"AND(#REF!,\"E9Thyh+5am8=\")","v":{"$error":"#REF!"}},{"$f":"AND(#REF!,\"E9Thyh+5anA=\")","v":{"$error":"#REF!"}},{"$f":"AND(#REF!,\"E9Thyh+5anE=\")","v":{"$error":"#REF!"}},{"$f":"AND(#REF!,\"E9Thyh+5anI=\")","v":{"$error":"#REF!"}},{"$f":"AND(#REF!,\"E9Thyh+5anM=\")","v":{"$error":"#REF!"}},{"$f":"AND(#REF!,\"E9Thyh+5anQ=\")","v":{"$error":"#REF!"}},{"$f":"AND(#REF!,\"E9Thyh+5anU=\")","v":{"$error":"#REF!"}},{"$f":"AND(#REF!,\"E9Thyh+5anY=\")","v":{"$error":"#REF!"}},{"$f":"AND(#REF!,\"E9Thyh+5anc=\")","v":{"$error":"#REF!"}},{"$f":"AND(#REF!,\"E9Thyh+5ang=\")","v":{"$error":"#REF!"}},{"$f":"AND(#REF!,\"E9Thyh+5ank=\")","v":{"$error":"#REF!"}},{"$f":"AND(#REF!,\"E9Thyh+5ano=\")","v":{"$error":"#REF!"}},{"$f":"AND(#REF!,\"E9Thyh+5ans=\")","v":{"$error":"#REF!"}},{"$f":"AND(#REF!,\"E9Thyh+5anw=\")","v":{"$error":"#REF!"}},{"$f":"AND(#REF!,\"E9Thyh+5an0=\")","v":{"$error":"#REF!"}},{"$f":"AND(#REF!,\"E9Thyh+5an4=\")","v":{"$error":"#REF!"}},{"$f":"AND(#REF!,\"E9Thyh+5an8=\")","v":{"$error":"#REF!"}},{"$f":"AND(#REF!,\"E9Thyh+5aoA=\")","v":{"$error":"#REF!"}},{"$f":"AND(#REF!,\"E9Thyh+5aoE=\")","v":{"$error":"#REF!"}},{"$f":"AND(#REF!,\"E9Thyh+5aoI=\")","v":{"$error":"#REF!"}},{"$f":"AND(#REF!,\"E9Thyh+5aoM=\")","v":{"$error":"#REF!"}},{"$f":"AND(#REF!,\"E9Thyh+5aoQ=\")","v":{"$error":"#REF!"}},{"$f":"AND(#REF!,\"E9Thyh+5aoU=\")","v":{"$error":"#REF!"}},{"$f":"AND(#REF!,\"E9Thyh+5aoY=\")","v":{"$error":"#REF!"}},{"$f":"AND(#REF!,\"E9Thyh+5aoc=\")","v":{"$error":"#REF!"}},{"$f":"AND(#REF!,\"E9Thyh+5aog=\")","v":{"$error":"#REF!"}},{"$f":"AND(#REF!,\"E9Thyh+5aok=\")","v":{"$error":"#REF!"}},{"$f":"AND(#REF!,\"E9Thyh+5aoo=\")","v":{"$error":"#REF!"}},{"$f":"AND(#REF!,\"E9Thyh+5aos=\")","v":{"$error":"#REF!"}},{"$f":"AND(#REF!,\"E9Thyh+5aow=\")","v":{"$error":"#REF!"}},{"$f":"AND(#REF!,\"E9Thyh+5ao0=\")","v":{"$error":"#REF!"}},{"$f":"AND(#REF!,\"E9Thyh+5ao4=\")","v":{"$error":"#REF!"}},{"$f":"AND(#REF!,\"E9Thyh+5ao8=\")","v":{"$error":"#REF!"}},{"$f":"AND(#REF!,\"E9Thyh+5apA=\")","v":{"$error":"#REF!"}},{"$f":"AND(#REF!,\"E9Thyh+5apE=\")","v":{"$error":"#REF!"}},{"$f":"AND(#REF!,\"E9Thyh+5apI=\")","v":{"$error":"#REF!"}},{"$f":"AND(#REF!,\"E9Thyh+5apM=\")","v":{"$error":"#REF!"}},{"$f":"AND(#REF!,\"E9Thyh+5apQ=\")","v":{"$error":"#REF!"}},{"$f":"AND(#REF!,\"E9Thyh+5apU=\")","v":{"$error":"#REF!"}},{"$f":"AND(#REF!,\"E9Thyh+5apY=\")","v":{"$error":"#REF!"}},{"$f":"AND(#REF!,\"E9Thyh+5apc=\")","v":{"$error":"#REF!"}},{"$f":"AND(#REF!,\"E9Thyh+5apg=\")","v":{"$error":"#REF!"}},{"$f":"AND(#REF!,\"E9Thyh+5apk=\")","v":{"$error":"#REF!"}},{"$f":"AND(#REF!,\"E9Thyh+5apo=\")","v":{"$error":"#REF!"}},{"$f":"AND(#REF!,\"E9Thyh+5aps=\")","v":{"$error":"#REF!"}},{"$f":"AND(#REF!,\"E9Thyh+5apw=\")","v":{"$error":"#REF!"}},{"$f":"AND(#REF!,\"E9Thyh+5ap0=\")","v":{"$error":"#REF!"}},{"$f":"IF(#REF!,\"E9Thyh+5ap4=\",0)","v":{"$error":"#REF!"}},{"$f":"AND(#REF!,\"E9Thyh+5ap8=\")","v":{"$error":"#REF!"}},{"$f":"AND(#REF!,\"E9Thyh+5aqA=\")","v":{"$error":"#REF!"}},{"$f":"AND(#REF!,\"E9Thyh+5aqE=\")","v":{"$error":"#REF!"}},{"$f":"AND(#REF!,\"E9Thyh+5aqI=\")","v":{"$error":"#REF!"}},{"$f":"AND(#REF!,\"E9Thyh+5aqM=\")","v":{"$error":"#REF!"}},{"$f":"AND(#REF!,\"E9Thyh+5aqQ=\")","v":{"$error":"#REF!"}},{"$f":"AND(#REF!,\"E9Thyh+5aqU=\")","v":{"$error":"#REF!"}},{"$f":"AND(#REF!,\"E9Thyh+5aqY=\")","v":{"$error":"#REF!"}},{"$f":"AND(#REF!,\"E9Thyh+5aqc=\")","v":{"$error":"#REF!"}},{"$f":"AND(#REF!,\"E9Thyh+5aqg=\")","v":{"$error":"#REF!"}},{"$f":"AND(#REF!,\"E9Thyh+5aqk=\")","v":{"$error":"#REF!"}},{"$f":"AND(#REF!,\"E9Thyh+5aqo=\")","v":{"$error":"#REF!"}},{"$f":"AND(#REF!,\"E9Thyh+5aqs=\")","v":{"$error":"#REF!"}},{"$f":"AND(#REF!,\"E9Thyh+5aqw=\")","v":{"$error":"#REF!"}},{"$f":"AND(#REF!,\"E9Thyh+5aq0=\")","v":{"$error":"#REF!"}},{"$f":"AND(#REF!,\"E9Thyh+5aq4=\")","v":{"$error":"#REF!"}},{"$f":"AND(#REF!,\"E9Thyh+5aq8=\")","v":{"$error":"#REF!"}},{"$f":"AND(#REF!,\"E9Thyh+5arA=\")","v":{"$error":"#REF!"}},{"$f":"AND(#REF!,\"E9Thyh+5arE=\")","v":{"$error":"#REF!"}},{"$f":"AND(#REF!,\"E9Thyh+5arI=\")","v":{"$error":"#REF!"}},{"$f":"AND(#REF!,\"E9Thyh+5arM=\")","v":{"$error":"#REF!"}},{"$f":"AND(#REF!,\"E9Thyh+5arQ=\")","v":{"$error":"#REF!"}},{"$f":"AND(#REF!,\"E9Thyh+5arU=\")","v":{"$error":"#REF!"}},{"$f":"AND(#REF!,\"E9Thyh+5arY=\")","v":{"$error":"#REF!"}},{"$f":"AND(#REF!,\"E9Thyh+5arc=\")","v":{"$error":"#REF!"}},{"$f":"AND(#REF!,\"E9Thyh+5arg=\")","v":{"$error":"#REF!"}},{"$f":"AND(#REF!,\"E9Thyh+5ark=\")","v":{"$error":"#REF!"}},{"$f":"AND(#REF!,\"E9Thyh+5aro=\")","v":{"$error":"#REF!"}},{"$f":"AND(#REF!,\"E9Thyh+5ars=\")","v":{"$error":"#REF!"}},{"$f":"AND(#REF!,\"E9Thyh+5arw=\")","v":{"$error":"#REF!"}},{"$f":"AND(#REF!,\"E9Thyh+5ar0=\")","v":{"$error":"#REF!"}},{"$f":"AND(#REF!,\"E9Thyh+5ar4=\")","v":{"$error":"#REF!"}},{"$f":"AND(#REF!,\"E9Thyh+5ar8=\")","v":{"$error":"#REF!"}},{"$f":"AND(#REF!,\"E9Thyh+5asA=\")","v":{"$error":"#REF!"}},{"$f":"AND(#REF!,\"E9Thyh+5asE=\")","v":{"$error":"#REF!"}},{"$f":"AND(#REF!,\"E9Thyh+5asI=\")","v":{"$error":"#REF!"}},{"$f":"AND(#REF!,\"E9Thyh+5asM=\")","v":{"$error":"#REF!"}},{"$f":"AND(#REF!,\"E9Thyh+5asQ=\")","v":{"$error":"#REF!"}},{"$f":"AND(#REF!,\"E9Thyh+5asU=\")","v":{"$error":"#REF!"}},{"$f":"AND(#REF!,\"E9Thyh+5asY=\")","v":{"$error":"#REF!"}},{"$f":"AND(#REF!,\"E9Thyh+5asc=\")","v":{"$error":"#REF!"}},{"$f":"AND(#REF!,\"E9Thyh+5asg=\")","v":{"$error":"#REF!"}},{"$f":"AND(#REF!,\"E9Thyh+5ask=\")","v":{"$error":"#REF!"}},{"$f":"AND(#REF!,\"E9Thyh+5aso=\")","v":{"$error":"#REF!"}},{"$f":"AND(#REF!,\"E9Thyh+5ass=\")","v":{"$error":"#REF!"}},{"$f":"AND(#REF!,\"E9Thyh+5asw=\")","v":{"$error":"#REF!"}},{"$f":"AND(#REF!,\"E9Thyh+5as0=\")","v":{"$error":"#REF!"}},{"$f":"AND(#REF!,\"E9Thyh+5as4=\")","v":{"$error":"#REF!"}},{"$f":"AND(#REF!,\"E9Thyh+5as8=\")","v":{"$error":"#REF!"}},{"$f":"AND(#REF!,\"E9Thyh+5atA=\")","v":{"$error":"#REF!"}},{"$f":"AND(#REF!,\"E9Thyh+5atE=\")","v":{"$error":"#REF!"}},{"$f":"AND(#REF!,\"E9Thyh+5atI=\")","v":{"$error":"#REF!"}},{"$f":"AND(#REF!,\"E9Thyh+5atM=\")","v":{"$error":"#REF!"}},{"$f":"AND(#REF!,\"E9Thyh+5atQ=\")","v":{"$error":"#REF!"}},{"$f":"AND(#REF!,\"E9Thyh+5atU=\")","v":{"$error":"#REF!"}},{"$f":"AND(#REF!,\"E9Thyh+5atY=\")","v":{"$error":"#REF!"}},{"$f":"AND(#REF!,\"E9Thyh+5atc=\")","v":{"$error":"#REF!"}},{"$f":"AND(#REF!,\"E9Thyh+5atg=\")","v":{"$error":"#REF!"}},{"$f":"AND(#REF!,\"E9Thyh+5atk=\")","v":{"$error":"#REF!"}},{"$f":"AND(#REF!,\"E9Thyh+5ato=\")","v":{"$error":"#REF!"}},{"$f":"AND(#REF!,\"E9Thyh+5ats=\")","v":{"$error":"#REF!"}},{"$f":"AND(#REF!,\"E9Thyh+5atw=\")","v":{"$error":"#REF!"}},{"$f":"AND(#REF!,\"E9Thyh+5at0=\")","v":{"$error":"#REF!"}},{"$f":"AND(#REF!,\"E9Thyh+5at4=\")","v":{"$error":"#REF!"}},{"$f":"AND(#REF!,\"E9Thyh+5at8=\")","v":{"$error":"#REF!"}},{"$f":"AND(#REF!,\"E9Thyh+5auA=\")","v":{"$error":"#REF!"}},{"$f":"AND(#REF!,\"E9Thyh+5auE=\")","v":{"$error":"#REF!"}},{"$f":"AND(#REF!,\"E9Thyh+5auI=\")","v":{"$error":"#REF!"}},{"$f":"AND(#REF!,\"E9Thyh+5auM=\")","v":{"$error":"#REF!"}},{"$f":"AND(#REF!,\"E9Thyh+5auQ=\")","v":{"$error":"#REF!"}},{"$f":"AND(#REF!,\"E9Thyh+5auU=\")","v":{"$error":"#REF!"}},{"$f":"AND(#REF!,\"E9Thyh+5auY=\")","v":{"$error":"#REF!"}},{"$f":"AND(#REF!,\"E9Thyh+5auc=\")","v":{"$error":"#REF!"}},{"$f":"AND(#REF!,\"E9Thyh+5aug=\")","v":{"$error":"#REF!"}},{"$f":"AND(#REF!,\"E9Thyh+5auk=\")","v":{"$error":"#REF!"}},{"$f":"AND(#REF!,\"E9Thyh+5auo=\")","v":{"$error":"#REF!"}},{"$f":"AND(#REF!,\"E9Thyh+5aus=\")","v":{"$error":"#REF!"}},{"$f":"AND(#REF!,\"E9Thyh+5auw=\")","v":{"$error":"#REF!"}},{"$f":"AND(#REF!,\"E9Thyh+5au0=\")","v":{"$error":"#REF!"}},{"$f":"AND(#REF!,\"E9Thyh+5au4=\")","v":{"$error":"#REF!"}},{"$f":"AND(#REF!,\"E9Thyh+5au8=\")","v":{"$error":"#REF!"}},{"$f":"AND(#REF!,\"E9Thyh+5avA=\")","v":{"$error":"#REF!"}},{"$f":"AND(#REF!,\"E9Thyh+5avE=\")","v":{"$error":"#REF!"}},{"$f":"AND(#REF!,\"E9Thyh+5avI=\")","v":{"$error":"#REF!"}},{"$f":"AND(#REF!,\"E9Thyh+5avM=\")","v":{"$error":"#REF!"}},{"$f":"AND(#REF!,\"E9Thyh+5avQ=\")","v":{"$error":"#REF!"}},{"$f":"AND(#REF!,\"E9Thyh+5avU=\")","v":{"$error":"#REF!"}},{"$f":"AND(#REF!,\"E9Thyh+5avY=\")","v":{"$error":"#REF!"}},{"$f":"AND(#REF!,\"E9Thyh+5avc=\")","v":{"$error":"#REF!"}},{"$f":"AND(#REF!,\"E9Thyh+5avg=\")","v":{"$error":"#REF!"}},{"$f":"AND(#REF!,\"E9Thyh+5avk=\")","v":{"$error":"#REF!"}},{"$f":"AND(#REF!,\"E9Thyh+5avo=\")","v":{"$error":"#REF!"}},{"$f":"AND(#REF!,\"E9Thyh+5avs=\")","v":{"$error":"#REF!"}},{"$f":"AND(#REF!,\"E9Thyh+5avw=\")","v":{"$error":"#REF!"}},{"$f":"AND(#REF!,\"E9Thyh+5av0=\")","v":{"$error":"#REF!"}},{"$f":"AND(#REF!,\"E9Thyh+5av4=\")","v":{"$error":"#REF!"}},{"$f":"AND(#REF!,\"E9Thyh+5av8=\")","v":{"$error":"#REF!"}}]
[{"$f":"AND(#REF!,\"fpXq+ziSOQA=\")","v":{"$error":"#REF!"}},{"$f":"AND(#REF!,\"fpXq+ziSOQE=\")","v":{"$error":"#REF!"}},{"$f":"AND(#REF!,\"fpXq+ziSOQI=\")","v":{"$error":"#REF!"}},{"$f":"AND(#REF!,\"fpXq+ziSOQM=\")","v":{"$error":"#REF!"}},{"$f":"AND(#REF!,\"fpXq+ziSOQQ=\")","v":{"$error":"#REF!"}},{"$f":"AND(#REF!,\"fpXq+ziSOQU=\")","v":{"$error":"#REF!"}},{"$f":"AND(#REF!,\"fpXq+ziSOQY=\")","v":{"$error":"#REF!"}},{"$f":"AND(#REF!,\"fpXq+ziSOQc=\")","v":{"$error":"#REF!"}},{"$f":"AND(#REF!,\"fpXq+ziSOQg=\")","v":{"$error":"#REF!"}},{"$f":"AND(#REF!,\"fpXq+ziSOQk=\")","v":{"$error":"#REF!"}},{"$f":"AND(#REF!,\"fpXq+ziSOQo=\")","v":{"$error":"#REF!"}},{"$f":"AND(#REF!,\"fpXq+ziSOQs=\")","v":{"$error":"#REF!"}},{"$f":"AND(#REF!,\"fpXq+ziSOQw=\")","v":{"$error":"#REF!"}},{"$f":"AND(#REF!,\"fpXq+ziSOQ0=\")","v":{"$error":"#REF!"}},{"$f":"AND(#REF!,\"fpXq+ziSOQ4=\")","v":{"$error":"#REF!"}},{"$f":"AND(#REF!,\"fpXq+ziSOQ8=\")","v":{"$error":"#REF!"}},{"$f":"AND(#REF!,\"fpXq+ziSORA=\")","v":{"$error":"#REF!"}},{"$f":"AND(#REF!,\"fpXq+ziSORE=\")","v":{"$error":"#REF!"}},{"$f":"AND(#REF!,\"fpXq+ziSORI=\")","v":{"$error":"#REF!"}},{"$f":"AND(#REF!,\"fpXq+ziSORM=\")","v":{"$error":"#REF!"}},{"$f":"AND(#REF!,\"fpXq+ziSORQ=\")","v":{"$error":"#REF!"}},{"$f":"AND(#REF!,\"fpXq+ziSORU=\")","v":{"$error":"#REF!"}},{"$f":"AND(#REF!,\"fpXq+ziSORY=\")","v":{"$error":"#REF!"}},{"$f":"AND(#REF!,\"fpXq+ziSORc=\")","v":{"$error":"#REF!"}},{"$f":"AND(#REF!,\"fpXq+ziSORg=\")","v":{"$error":"#REF!"}},{"$f":"AND(#REF!,\"fpXq+ziSORk=\")","v":{"$error":"#REF!"}},{"$f":"AND(#REF!,\"fpXq+ziSORo=\")","v":{"$error":"#REF!"}},{"$f":"AND(#REF!,\"fpXq+ziSORs=\")","v":{"$error":"#REF!"}},{"$f":"AND(#REF!,\"fpXq+ziSORw=\")","v":{"$error":"#REF!"}},{"$f":"AND(#REF!,\"fpXq+ziSOR0=\")","v":{"$error":"#REF!"}},{"$f":"AND(#REF!,\"fpXq+ziSOR4=\")","v":{"$error":"#REF!"}},{"$f":"AND(#REF!,\"fpXq+ziSOR8=\")","v":{"$error":"#REF!"}},{"$f":"AND(#REF!,\"fpXq+ziSOSA=\")","v":{"$error":"#REF!"}},{"$f":"AND(#REF!,\"fpXq+ziSOSE=\")","v":{"$error":"#REF!"}},{"$f":"AND(#REF!,\"fpXq+ziSOSI=\")","v":{"$error":"#REF!"}},{"$f":"AND(#REF!,\"fpXq+ziSOSM=\")","v":{"$error":"#REF!"}},{"$f":"AND(#REF!,\"fpXq+ziSOSQ=\")","v":{"$error":"#REF!"}},{"$f":"AND(#REF!,\"fpXq+ziSOSU=\")","v":{"$error":"#REF!"}},{"$f":"AND(#REF!,\"fpXq+ziSOSY=\")","v":{"$error":"#REF!"}},{"$f":"AND(#REF!,\"fpXq+ziSOSc=\")","v":{"$error":"#REF!"}},{"$f":"AND(#REF!,\"fpXq+ziSOSg=\")","v":{"$error":"#REF!"}},{"$f":"AND(#REF!,\"fpXq+ziSOSk=\")","v":{"$error":"#REF!"}},{"$f":"AND(#REF!,\"fpXq+ziSOSo=\")","v":{"$error":"#REF!"}},{"$f":"AND(#REF!,\"fpXq+ziSOSs=\")","v":{"$error":"#REF!"}},{"$f":"AND(#REF!,\"fpXq+ziSOSw=\")","v":{"$error":"#REF!"}},{"$f":"AND(#REF!,\"fpXq+ziSOS0=\")","v":{"$error":"#REF!"}},{"$f":"AND(#REF!,\"fpXq+ziSOS4=\")","v":{"$error":"#REF!"}},{"$f":"AND(#REF!,\"fpXq+ziSOS8=\")","v":{"$error":"#REF!"}},{"$f":"AND(#REF!,\"fpXq+ziSOTA=\")","v":{"$error":"#REF!"}},{"$f":"AND(#REF!,\"fpXq+ziSOTE=\")","v":{"$error":"#REF!"}},{"$f":"AND(#REF!,\"fpXq+ziSOTI=\")","v":{"$error":"#REF!"}},{"$f":"AND(#REF!,\"fpXq+ziSOTM=\")","v":{"$error":"#REF!"}},{"$f":"AND(#REF!,\"fpXq+ziSOTQ=\")","v":{"$error":"#REF!"}},{"$f":"AND(#REF!,\"fpXq+ziSOTU=\")","v":{"$error":"#REF!"}},{"$f":"AND(#REF!,\"fpXq+ziSOTY=\")","v":{"$error":"#REF!"}},{"$f":"AND(#REF!,\"fpXq+ziSOTc=\")","v":{"$error":"#REF!"}},{"$f":"AND(#REF!,\"fpXq+ziSOTg=\")","v":{"$error":"#REF!"}},{"$f":"AND(#REF!,\"fpXq+ziSOTk=\")","v":{"$error":"#REF!"}},{"$f":"AND(#REF!,\"fpXq+ziSOTo=\")","v":{"$error":"#REF!"}},{"$f":"AND(#REF!,\"fpXq+ziSOTs=\")","v":{"$error":"#REF!"}},{"$f":"AND(#REF!,\"fpXq+ziSOTw=\")","v":{"$error":"#REF!"}},{"$f":"AND(#REF!,\"fpXq+ziSOT0=\")","v":{"$error":"#REF!"}},{"$f":"AND(#REF!,\"fpXq+ziSOT4=\")","v":{"$error":"#REF!"}},{"$f":"AND(#REF!,\"fpXq+ziSOT8=\")","v":{"$error":"#REF!"}},{"$f":"AND(#REF!,\"fpXq+ziSOUA=\")","v":{"$error":"#REF!"}},{"$f":"AND(#REF!,\"fpXq+ziSOUE=\")","v":{"$error":"#REF!"}},{"$f":"AND(#REF!,\"fpXq+ziSOUI=\")","v":{"$error":"#REF!"}},{"$f":"AND(#REF!,\"fpXq+ziSOUM=\")","v":{"$error":"#REF!"}},{"$f":"AND(#REF!,\"fpXq+ziSOUQ=\")","v":{"$error":"#REF!"}},{"$f":"AND(#REF!,\"fpXq+ziSOUU=\")","v":{"$error":"#REF!"}},{"$f":"AND(#REF!,\"fpXq+ziSOUY=\")","v":{"$error":"#REF!"}},{"$f":"AND(#REF!,\"fpXq+ziSOUc=\")","v":{"$error":"#REF!"}},{"$f":"AND(#REF!,\"fpXq+ziSOUg=\")","v":{"$error":"#REF!"}},{"$f":"AND(#REF!,\"fpXq+ziSOUk=\")","v":{"$error":"#REF!"}},{"$f":"AND(#REF!,\"fpXq+ziSOUo=\")","v":{"$error":"#REF!"}},{"$f":"AND(#REF!,\"fpXq+ziSOUs=\")","v":{"$error":"#REF!"}},{"$f":"AND(#REF!,\"fpXq+ziSOUw=\")","v":{"$error":"#REF!"}},{"$f":"AND(#REF!,\"fpXq+ziSOU0=\")","v":{"$error":"#REF!"}},{"$f":"AND(#REF!,\"fpXq+ziSOU4=\")","v":{"$error":"#REF!"}},{"$f":"AND(#REF!,\"fpXq+ziSOU8=\")","v":{"$error":"#REF!"}},{"$f":"AND(#REF!,\"fpXq+ziSOVA=\")","v":{"$error":"#REF!"}},{"$f":"AND(#REF!,\"fpXq+ziSOVE=\")","v":{"$error":"#REF!"}},{"$f":"AND(#REF!,\"fpXq+ziSOVI=\")","v":{"$error":"#REF!"}},{"$f":"AND(#REF!,\"fpXq+ziSOVM=\")","v":{"$error":"#REF!"}},{"$f":"AND(#REF!,\"fpXq+ziSOVQ=\")","v":{"$error":"#REF!"}},{"$f":"AND(#REF!,\"fpXq+ziSOVU=\")","v":{"$error":"#REF!"}},{"$f":"AND(#REF!,\"fpXq+ziSOVY=\")","v":{"$error":"#REF!"}},{"$f":"AND(#REF!,\"fpXq+ziSOVc=\")","v":{"$error":"#REF!"}},{"$f":"AND(#REF!,\"fpXq+ziSOVg=\")","v":{"$error":"#REF!"}},{"$f":"AND(#REF!,\"fpXq+ziSOVk=\")","v":{"$error":"#REF!"}},{"$f":"AND(#REF!,\"fpXq+ziSOVo=\")","v":{"$error":"#REF!"}},{"$f":"AND(#REF!,\"fpXq+ziSOVs=\")","v":{"$error":"#REF!"}},{"$f":"AND(#REF!,\"fpXq+ziSOVw=\")","v":{"$error":"#REF!"}},{"$f":"AND(#REF!,\"fpXq+ziSOV0=\")","v":{"$error":"#REF!"}},{"$f":"AND(#REF!,\"fpXq+ziSOV4=\")","v":{"$error":"#REF!"}},{"$f":"AND(#REF!,\"fpXq+ziSOV8=\")","v":{"$error":"#REF!"}},{"$f":"AND(#REF!,\"fpXq+ziSOWA=\")","v":{"$error":"#REF!"}},{"$f":"AND(#REF!,\"fpXq+ziSOWE=\")","v":{"$error":"#REF!"}},{"$f":"AND(#REF!,\"fpXq+ziSOWI=\")","v":{"$error":"#REF!"}},{"$f":"AND(#REF!,\"fpXq+ziSOWM=\")","v":{"$error":"#REF!"}},{"$f":"AND(#REF!,\"fpXq+ziSOWQ=\")","v":{"$error":"#REF!"}},{"$f":"IF(#REF!,\"fpXq+ziSOWU=\",0)","v":{"$error":"#REF!"}},{"$f":"AND(#REF!,\"fpXq+ziSOWY=\")","v":{"$error":"#REF!"}},{"$f":"AND(#REF!,\"fpXq+ziSOWc=\")","v":{"$error":"#REF!"}},{"$f":"AND(#REF!,\"fpXq+ziSOWg=\")","v":{"$error":"#REF!"}},{"$f":"AND(#REF!,\"fpXq+ziSOWk=\")","v":{"$error":"#REF!"}},{"$f":"AND(#REF!,\"fpXq+ziSOWo=\")","v":{"$error":"#REF!"}},{"$f":"AND(#REF!,\"fpXq+ziSOWs=\")","v":{"$error":"#REF!"}},{"$f":"AND(#REF!,\"fpXq+ziSOWw=\")","v":{"$error":"#REF!"}},{"$f":"AND(#REF!,\"fpXq+ziSOW0=\")","v":{"$error":"#REF!"}},{"$f":"AND(#REF!,\"fpXq+ziSOW4=\")","v":{"$error":"#REF!"}},{"$f":"AND(#REF!,\"fpXq+ziSOW8=\")","v":{"$error":"#REF!"}},{"$f":"AND(#REF!,\"fpXq+ziSOXA=\")","v":{"$error":"#REF!"}},{"$f":"AND(#REF!,\"fpXq+ziSOXE=\")","v":{"$error":"#REF!"}},{"$f":"AND(#REF!,\"fpXq+ziSOXI=\")","v":{"$error":"#REF!"}},{"$f":"AND(#REF!,\"fpXq+ziSOXM=\")","v":{"$error":"#REF!"}},{"$f":"AND(#REF!,\"fpXq+ziSOXQ=\")","v":{"$error":"#REF!"}},{"$f":"AND(#REF!,\"fpXq+ziSOXU=\")","v":{"$error":"#REF!"}},{"$f":"AND(#REF!,\"fpXq+ziSOXY=\")","v":{"$error":"#REF!"}},{"$f":"AND(#REF!,\"fpXq+ziSOXc=\")","v":{"$error":"#REF!"}},{"$f":"AND(#REF!,\"fpXq+ziSOXg=\")","v":{"$error":"#REF!"}},{"$f":"AND(#REF!,\"fpXq+ziSOXk=\")","v":{"$error":"#REF!"}},{"$f":"AND(#REF!,\"fpXq+ziSOXo=\")","v":{"$error":"#REF!"}},{"$f":"AND(#REF!,\"fpXq+ziSOXs=\")","v":{"$error":"#REF!"}},{"$f":"AND(#REF!,\"fpXq+ziSOXw=\")","v":{"$error":"#REF!"}},{"$f":"AND(#REF!,\"fpXq+ziSOX0=\")","v":{"$error":"#REF!"}},{"$f":"AND(#REF!,\"fpXq+ziSOX4=\")","v":{"$error":"#REF!"}},{"$f":"AND(#REF!,\"fpXq+ziSOX8=\")","v":{"$error":"#REF!"}},{"$f":"AND(#REF!,\"fpXq+ziSOYA=\")","v":{"$error":"#REF!"}},{"$f":"AND(#REF!,\"fpXq+ziSOYE=\")","v":{"$error":"#REF!"}},{"$f":"AND(#REF!,\"fpXq+ziSOYI=\")","v":{"$error":"#REF!"}},{"$f":"AND(#REF!,\"fpXq+ziSOYM=\")","v":{"$error":"#REF!"}},{"$f":"AND(#REF!,\"fpXq+ziSOYQ=\")","v":{"$error":"#REF!"}},{"$f":"AND(#REF!,\"fpXq+ziSOYU=\")","v":{"$error":"#REF!"}},{"$f":"AND(#REF!,\"fpXq+ziSOYY=\")","v":{"$error":"#REF!"}},{"$f":"AND(#REF!,\"fpXq+ziSOYc=\")","v":{"$error":"#REF!"}},{"$f":"AND(#REF!,\"fpXq+ziSOYg=\")","v":{"$error":"#REF!"}},{"$f":"AND(#REF!,\"fpXq+ziSOYk=\")","v":{"$error":"#REF!"}},{"$f":"AND(#REF!,\"fpXq+ziSOYo=\")","v":{"$error":"#REF!"}},{"$f":"AND(#REF!,\"fpXq+ziSOYs=\")","v":{"$error":"#REF!"}},{"$f":"AND(#REF!,\"fpXq+ziSOYw=\")","v":{"$error":"#REF!"}},{"$f":"AND(#REF!,\"fpXq+ziSOY0=\")","v":{"$error":"#REF!"}},{"$f":"AND(#REF!,\"fpXq+ziSOY4=\")","v":{"$error":"#REF!"}},{"$f":"AND(#REF!,\"fpXq+ziSOY8=\")","v":{"$error":"#REF!"}},{"$f":"AND(#REF!,\"fpXq+ziSOZA=\")","v":{"$error":"#REF!"}},{"$f":"AND(#REF!,\"fpXq+ziSOZE=\")","v":{"$error":"#REF!"}},{"$f":"AND(#REF!,\"fpXq+ziSOZI=\")","v":{"$error":"#REF!"}},{"$f":"AND(#REF!,\"fpXq+ziSOZM=\")","v":{"$error":"#REF!"}},{"$f":"AND(#REF!,\"fpXq+ziSOZQ=\")","v":{"$error":"#REF!"}},{"$f":"AND(#REF!,\"fpXq+ziSOZU=\")","v":{"$error":"#REF!"}},{"$f":"AND(#REF!,\"fpXq+ziSOZY=\")","v":{"$error":"#REF!"}},{"$f":"AND(#REF!,\"fpXq+ziSOZc=\")","v":{"$error":"#REF!"}},{"$f":"AND(#REF!,\"fpXq+ziSOZg=\")","v":{"$error":"#REF!"}},{"$f":"AND(#REF!,\"fpXq+ziSOZk=\")","v":{"$error":"#REF!"}},{"$f":"AND(#REF!,\"fpXq+ziSOZo=\")","v":{"$error":"#REF!"}},{"$f":"AND(#REF!,\"fpXq+ziSOZs=\")","v":{"$error":"#REF!"}},{"$f":"AND(#REF!,\"fpXq+ziSOZw=\")","v":{"$error":"#REF!"}},{"$f":"AND(#REF!,\"fpXq+ziSOZ0=\")","v":{"$error":"#REF!"}},{"$f":"AND(#REF!,\"fpXq+ziSOZ4=\")","v":{"$error":"#REF!"}},{"$f":"AND(#REF!,\"fpXq+ziSOZ8=\")","v":{"$error":"#REF!"}},{"$f":"AND(#REF!,\"fpXq+ziSOaA=\")","v":{"$error":"#REF!"}},{"$f":"AND(#REF!,\"fpXq+ziSOaE=\")","v":{"$error":"#REF!"}},{"$f":"AND(#REF!,\"fpXq+ziSOaI=\")","v":{"$error":"#REF!"}},{"$f":"AND(#REF!,\"fpXq+ziSOaM=\")","v":{"$error":"#REF!"}},{"$f":"AND(#REF!,\"fpXq+ziSOaQ=\")","v":{"$error":"#REF!"}},{"$f":"AND(#REF!,\"fpXq+ziSOaU=\")","v":{"$error":"#REF!"}},{"$f":"AND(#REF!,\"fpXq+ziSOaY=\")","v":{"$error":"#REF!"}},{"$f":"AND(#REF!,\"fpXq+ziSOac=\")","v":{"$error":"#REF!"}},{"$f":"AND(#REF!,\"fpXq+ziSOag=\")","v":{"$error":"#REF!"}},{"$f":"AND(#REF!,\"fpXq+ziSOak=\")","v":{"$error":"#REF!"}},{"$f":"AND(#REF!,\"fpXq+ziSOao=\")","v":{"$error":"#REF!"}},{"$f":"AND(#REF!,\"fpXq+ziSOas=\")","v":{"$error":"#REF!"}},{"$f":"AND(#REF!,\"fpXq+ziSOaw=\")","v":{"$error":"#REF!"}},{"$f":"AND(#REF!,\"fpXq+ziSOa0=\")","v":{"$error":"#REF!"}},{"$f":"AND(#REF!,\"fpXq+ziSOa4=\")","v":{"$error":"#REF!"}},{"$f":"AND(#REF!,\"fpXq+ziSOa8=\")","v":{"$error":"#REF!"}},{"$f":"AND(#REF!,\"fpXq+ziSObA=\")","v":{"$error":"#REF!"}},{"$f":"AND(#REF!,\"fpXq+ziSObE=\")","v":{"$error":"#REF!"}},{"$f":"AND(#REF!,\"fpXq+ziSObI=\")","v":{"$error":"#REF!"}},{"$f":"AND(#REF!,\"fpXq+ziSObM=\")","v":{"$error":"#REF!"}},{"$f":"AND(#REF!,\"fpXq+ziSObQ=\")","v":{"$error":"#REF!"}},{"$f":"AND(#REF!,\"fpXq+ziSObU=\")","v":{"$error":"#REF!"}},{"$f":"AND(#REF!,\"fpXq+ziSObY=\")","v":{"$error":"#REF!"}},{"$f":"AND(#REF!,\"fpXq+ziSObc=\")","v":{"$error":"#REF!"}},{"$f":"AND(#REF!,\"fpXq+ziSObg=\")","v":{"$error":"#REF!"}},{"$f":"AND(#REF!,\"fpXq+ziSObk=\")","v":{"$error":"#REF!"}},{"$f":"AND(#REF!,\"fpXq+ziSObo=\")","v":{"$error":"#REF!"}},{"$f":"AND(#REF!,\"fpXq+ziSObs=\")","v":{"$error":"#REF!"}},{"$f":"AND(#REF!,\"fpXq+ziSObw=\")","v":{"$error":"#REF!"}},{"$f":"AND(#REF!,\"fpXq+ziSOb0=\")","v":{"$error":"#REF!"}},{"$f":"AND(#REF!,\"fpXq+ziSOb4=\")","v":{"$error":"#REF!"}},{"$f":"AND(#REF!,\"fpXq+ziSOb8=\")","v":{"$error":"#REF!"}},{"$f":"AND(#REF!,\"fpXq+ziSOcA=\")","v":{"$error":"#REF!"}},{"$f":"AND(#REF!,\"fpXq+ziSOcE=\")","v":{"$error":"#REF!"}},{"$f":"AND(#REF!,\"fpXq+ziSOcI=\")","v":{"$error":"#REF!"}},{"$f":"AND(#REF!,\"fpXq+ziSOcM=\")","v":{"$error":"#REF!"}},{"$f":"AND(#REF!,\"fpXq+ziSOcQ=\")","v":{"$error":"#REF!"}},{"$f":"AND(#REF!,\"fpXq+ziSOcU=\")","v":{"$error":"#REF!"}},{"$f":"AND(#REF!,\"fpXq+ziSOcY=\")","v":{"$error":"#REF!"}},{"$f":"AND(#REF!,\"fpXq+ziSOcc=\")","v":{"$error":"#REF!"}},{"$f":"AND(#REF!,\"fpXq+ziSOcg=\")","v":{"$error":"#REF!"}},{"$f":"AND(#REF!,\"fpXq+ziSOck=\")","v":{"$error":"#REF!"}},{"$f":"AND(#REF!,\"fpXq+ziSOco=\")","v":{"$error":"#REF!"}},{"$f":"AND(#REF!,\"fpXq+ziSOcs=\")","v":{"$error":"#REF!"}},{"$f":"AND(#REF!,\"fpXq+ziSOcw=\")","v":{"$error":"#REF!"}},{"$f":"AND(#REF!,\"fpXq+ziSOc0=\")","v":{"$error":"#REF!"}},{"$f":"AND(#REF!,\"fpXq+ziSOc4=\")","v":{"$error":"#REF!"}},{"$f":"AND(#REF!,\"fpXq+ziSOc8=\")","v":{"$error":"#REF!"}},{"$f":"AND(#REF!,\"fpXq+ziSOdA=\")","v":{"$error":"#REF!"}},{"$f":"AND(#REF!,\"fpXq+ziSOdE=\")","v":{"$error":"#REF!"}},{"$f":"AND(#REF!,\"fpXq+ziSOdI=\")","v":{"$error":"#REF!"}},{"$f":"AND(#REF!,\"fpXq+ziSOdM=\")","v":{"$error":"#REF!"}},{"$f":"AND(#REF!,\"fpXq+ziSOdQ=\")","v":{"$error":"#REF!"}},{"$f":"AND(#REF!,\"fpXq+ziSOdU=\")","v":{"$error":"#REF!"}},{"$f":"AND(#REF!,\"fpXq+ziSOdY=\")","v":{"$error":"#REF!"}},{"$f":"AND(#REF!,\"fpXq+ziSOdc=\")","v":{"$error":"#REF!"}},{"$f":"AND(#REF!,\"fpXq+ziSOdg=\")","v":{"$error":"#REF!"}},{"$f":"AND(#REF!,\"fpXq+ziSOdk=\")","v":{"$error":"#REF!"}},{"$f":"AND(#REF!,\"fpXq+ziSOdo=\")","v":{"$error":"#REF!"}},{"$f":"AND(#REF!,\"fpXq+ziSOds=\")","v":{"$error":"#REF!"}},{"$f":"AND(#REF!,\"fpXq+ziSOdw=\")","v":{"$error":"#REF!"}},{"$f":"AND(#REF!,\"fpXq+ziSOd0=\")","v":{"$error":"#REF!"}},{"$f":"AND(#REF!,\"fpXq+ziSOd4=\")","v":{"$error":"#REF!"}},{"$f":"AND(#REF!,\"fpXq+ziSOd8=\")","v":{"$error":"#REF!"}},{"$f":"AND(#REF!,\"fpXq+ziSOeA=\")","v":{"$error":"#REF!"}},{"$f":"AND(#REF!,\"fpXq+ziSOeE=\")","v":{"$error":"#REF!"}},{"$f":"AND(#REF!,\"fpXq+ziSOeI=\")","v":{"$error":"#REF!"}},{"$f":"AND(#REF!,\"fpXq+ziSOeM=\")","v":{"$error":"#REF!"}},{"$f":"AND(#REF!,\"fpXq+ziSOeQ=\")","v":{"$error":"#REF!"}},{"$f":"AND(#REF!,\"fpXq+ziSOeU=\")","v":{"$error":"#REF!"}},{"$f":"AND(#REF!,\"fpXq+ziSOeY=\")","v":{"$error":"#REF!"}},{"$f":"AND(#REF!,\"fpXq+ziSOec=\")","v":{"$error":"#REF!"}},{"$f":"AND(#REF!,\"fpXq+ziSOeg=\")","v":{"$error":"#REF!"}},{"$f":"AND(#REF!,\"fpXq+ziSOek=\")","v":{"$error":"#REF!"}},{"$f":"AND(#REF!,\"fpXq+ziSOeo=\")","v":{"$error":"#REF!"}},{"$f":"AND(#REF!,\"fpXq+ziSOes=\")","v":{"$error":"#REF!"}},{"$f":"AND(#REF!,\"fpXq+ziSOew=\")","v":{"$error":"#REF!"}},{"$f":"AND(#REF!,\"fpXq+ziSOe0=\")","v":{"$error":"#REF!"}},{"$f":"AND(#REF!,\"fpXq+ziSOe4=\")","v":{"$error":"#REF!"}},{"$f":"AND(#REF!,\"fpXq+ziSOe8=\")","v":{"$error":"#REF!"}},{"$f":"AND(#REF!,\"fpXq+ziSOfA=\")","v":{"$error":"#REF!"}},{"$f":"AND(#REF!,\"fpXq+ziSOfE=\")","v":{"$error":"#REF!"}},{"$f":"AND(#REF!,\"fpXq+ziSOfI=\")","v":{"$error":"#REF!"}},{"$f":"AND(#REF!,\"fpXq+ziSOfM=\")","v":{"$error":"#REF!"}},{"$f":"AND(#REF!,\"fpXq+ziSOfQ=\")","v":{"$error":"#REF!"}},{"$f":"AND(#REF!,\"fpXq+ziSOfU=\")","v":{"$error":"#REF!"}},{"$f":"AND(#REF!,\"fpXq+ziSOfY=\")","v":{"$error":"#REF!"}},{"$f":"AND(#REF!,\"fpXq+ziSOfc=\")","v":{"$error":"#REF!"}},{"$f":"AND(#REF!,\"fpXq+ziSOfg=\")","v":{"$error":"#REF!"}},{"$f":"AND(#REF!,\"fpXq+ziSOfk=\")","v":{"$error":"#REF!"}},{"$f":"AND(#REF!,\"fpXq+ziSOfo=\")","v":{"$error":"#REF!"}},{"$f":"AND(#REF!,\"fpXq+ziSOfs=\")","v":{"$error":"#REF!"}},{"$f":"AND(#REF!,\"fpXq+ziSOfw=\")","v":{"$error":"#REF!"}},{"$f":"AND(#REF!,\"fpXq+ziSOf0=\")","v":{"$error":"#REF!"}},{"$f":"AND(#REF!,\"fpXq+ziSOf4=\")","v":{"$error":"#REF!"}},{"$f":"AND(#REF!,\"fpXq+ziSOf8=\")","v":{"$error":"#REF!"}}]
[{"$f":"AND(#REF!,\"dFUAC0GWaQA=\")","v":{"$error":"#REF!"}},{"$f":"AND(#REF!,\"dFUAC0GWaQE=\")","v":{"$error":"#REF!"}},{"$f":"AND(#REF!,\"dFUAC0GWaQI=\")","v":{"$error":"#REF!"}},{"$f":"AND(#REF!,\"dFUAC0GWaQM=\")","v":{"$error":"#REF!"}},{"$f":"AND(#REF!,\"dFUAC0GWaQQ=\")","v":{"$error":"#REF!"}},{"$f":"AND(#REF!,\"dFUAC0GWaQU=\")","v":{"$error":"#REF!"}},{"$f":"AND(#REF!,\"dFUAC0GWaQY=\")","v":{"$error":"#REF!"}},{"$f":"AND(#REF!,\"dFUAC0GWaQc=\")","v":{"$error":"#REF!"}},{"$f":"AND(#REF!,\"dFUAC0GWaQg=\")","v":{"$error":"#REF!"}},{"$f":"AND(#REF!,\"dFUAC0GWaQk=\")","v":{"$error":"#REF!"}},{"$f":"AND(#REF!,\"dFUAC0GWaQo=\")","v":{"$error":"#REF!"}},{"$f":"AND(#REF!,\"dFUAC0GWaQs=\")","v":{"$error":"#REF!"}},{"$f":"AND(#REF!,\"dFUAC0GWaQw=\")","v":{"$error":"#REF!"}},{"$f":"AND(#REF!,\"dFUAC0GWaQ0=\")","v":{"$error":"#REF!"}},{"$f":"AND(#REF!,\"dFUAC0GWaQ4=\")","v":{"$error":"#REF!"}},{"$f":"AND(#REF!,\"dFUAC0GWaQ8=\")","v":{"$error":"#REF!"}},{"$f":"AND(#REF!,\"dFUAC0GWaRA=\")","v":{"$error":"#REF!"}},{"$f":"AND(#REF!,\"dFUAC0GWaRE=\")","v":{"$error":"#REF!"}},{"$f":"AND(#REF!,\"dFUAC0GWaRI=\")","v":{"$error":"#REF!"}},{"$f":"AND(#REF!,\"dFUAC0GWaRM=\")","v":{"$error":"#REF!"}},{"$f":"AND(#REF!,\"dFUAC0GWaRQ=\")","v":{"$error":"#REF!"}},{"$f":"AND(#REF!,\"dFUAC0GWaRU=\")","v":{"$error":"#REF!"}},{"$f":"AND(#REF!,\"dFUAC0GWaRY=\")","v":{"$error":"#REF!"}},{"$f":"AND(#REF!,\"dFUAC0GWaRc=\")","v":{"$error":"#REF!"}},{"$f":"AND(#REF!,\"dFUAC0GWaRg=\")","v":{"$error":"#REF!"}},{"$f":"AND(#REF!,\"dFUAC0GWaRk=\")","v":{"$error":"#REF!"}},{"$f":"AND(#REF!,\"dFUAC0GWaRo=\")","v":{"$error":"#REF!"}},{"$f":"AND(#REF!,\"dFUAC0GWaRs=\")","v":{"$error":"#REF!"}},{"$f":"AND(#REF!,\"dFUAC0GWaRw=\")","v":{"$error":"#REF!"}},{"$f":"AND(#REF!,\"dFUAC0GWaR0=\")","v":{"$error":"#REF!"}},{"$f":"AND(#REF!,\"dFUAC0GWaR4=\")","v":{"$error":"#REF!"}},{"$f":"AND(#REF!,\"dFUAC0GWaR8=\")","v":{"$error":"#REF!"}},{"$f":"AND(#REF!,\"dFUAC0GWaSA=\")","v":{"$error":"#REF!"}},{"$f":"AND(#REF!,\"dFUAC0GWaSE=\")","v":{"$error":"#REF!"}},{"$f":"AND(#REF!,\"dFUAC0GWaSI=\")","v":{"$error":"#REF!"}},{"$f":"AND(#REF!,\"dFUAC0GWaSM=\")","v":{"$error":"#REF!"}},{"$f":"AND(#REF!,\"dFUAC0GWaSQ=\")","v":{"$error":"#REF!"}},{"$f":"AND(#REF!,\"dFUAC0GWaSU=\")","v":{"$error":"#REF!"}},{"$f":"AND(#REF!,\"dFUAC0GWaSY=\")","v":{"$error":"#REF!"}},{"$f":"AND(#REF!,\"dFUAC0GWaSc=\")","v":{"$error":"#REF!"}},{"$f":"AND(#REF!,\"dFUAC0GWaSg=\")","v":{"$error":"#REF!"}},{"$f":"AND(#REF!,\"dFUAC0GWaSk=\")","v":{"$error":"#REF!"}},{"$f":"AND(#REF!,\"dFUAC0GWaSo=\")","v":{"$error":"#REF!"}},{"$f":"AND(#REF!,\"dFUAC0GWaSs=\")","v":{"$error":"#REF!"}},{"$f":"IF(#REF!,\"dFUAC0GWaSw=\",0)","v":{"$error":"#REF!"}},{"$f":"AND(#REF!,\"dFUAC0GWaS0=\")","v":{"$error":"#REF!"}},{"$f":"AND(#REF!,\"dFUAC0GWaS4=\")","v":{"$error":"#REF!"}},{"$f":"AND(#REF!,\"dFUAC0GWaS8=\")","v":{"$error":"#REF!"}},{"$f":"AND(#REF!,\"dFUAC0GWaTA=\")","v":{"$error":"#REF!"}},{"$f":"AND(#REF!,\"dFUAC0GWaTE=\")","v":{"$error":"#REF!"}},{"$f":"AND(#REF!,\"dFUAC0GWaTI=\")","v":{"$error":"#REF!"}},{"$f":"AND(#REF!,\"dFUAC0GWaTM=\")","v":{"$error":"#REF!"}},{"$f":"AND(#REF!,\"dFUAC0GWaTQ=\")","v":{"$error":"#REF!"}},{"$f":"AND(#REF!,\"dFUAC0GWaTU=\")","v":{"$error":"#REF!"}},{"$f":"AND(#REF!,\"dFUAC0GWaTY=\")","v":{"$error":"#REF!"}},{"$f":"AND(#REF!,\"dFUAC0GWaTc=\")","v":{"$error":"#REF!"}},{"$f":"AND(#REF!,\"dFUAC0GWaTg=\")","v":{"$error":"#REF!"}},{"$f":"AND(#REF!,\"dFUAC0GWaTk=\")","v":{"$error":"#REF!"}},{"$f":"AND(#REF!,\"dFUAC0GWaTo=\")","v":{"$error":"#REF!"}},{"$f":"AND(#REF!,\"dFUAC0GWaTs=\")","v":{"$error":"#REF!"}},{"$f":"AND(#REF!,\"dFUAC0GWaTw=\")","v":{"$error":"#REF!"}},{"$f":"AND(#REF!,\"dFUAC0GWaT0=\")","v":{"$error":"#REF!"}},{"$f":"AND(#REF!,\"dFUAC0GWaT4=\")","v":{"$error":"#REF!"}},{"$f":"AND(#REF!,\"dFUAC0GWaT8=\")","v":{"$error":"#REF!"}},{"$f":"AND(#REF!,\"dFUAC0GWaUA=\")","v":{"$error":"#REF!"}},{"$f":"AND(#REF!,\"dFUAC0GWaUE=\")","v":{"$error":"#REF!"}},{"$f":"AND(#REF!,\"dFUAC0GWaUI=\")","v":{"$error":"#REF!"}},{"$f":"AND(#REF!,\"dFUAC0GWaUM=\")","v":{"$error":"#REF!"}},{"$f":"AND(#REF!,\"dFUAC0GWaUQ=\")","v":{"$error":"#REF!"}},{"$f":"AND(#REF!,\"dFUAC0GWaUU=\")","v":{"$error":"#REF!"}},{"$f":"AND(#REF!,\"dFUAC0GWaUY=\")","v":{"$error":"#REF!"}},{"$f":"AND(#REF!,\"dFUAC0GWaUc=\")","v":{"$error":"#REF!"}},{"$f":"AND(#REF!,\"dFUAC0GWaUg=\")","v":{"$error":"#REF!"}},{"$f":"AND(#REF!,\"dFUAC0GWaUk=\")","v":{"$error":"#REF!"}},{"$f":"AND(#REF!,\"dFUAC0GWaUo=\")","v":{"$error":"#REF!"}},{"$f":"AND(#REF!,\"dFUAC0GWaUs=\")","v":{"$error":"#REF!"}},{"$f":"AND(#REF!,\"dFUAC0GWaUw=\")","v":{"$error":"#REF!"}},{"$f":"AND(#REF!,\"dFUAC0GWaU0=\")","v":{"$error":"#REF!"}},{"$f":"AND(#REF!,\"dFUAC0GWaU4=\")","v":{"$error":"#REF!"}},{"$f":"AND(#REF!,\"dFUAC0GWaU8=\")","v":{"$error":"#REF!"}},{"$f":"AND(#REF!,\"dFUAC0GWaVA=\")","v":{"$error":"#REF!"}},{"$f":"AND(#REF!,\"dFUAC0GWaVE=\")","v":{"$error":"#REF!"}},{"$f":"AND(#REF!,\"dFUAC0GWaVI=\")","v":{"$error":"#REF!"}},{"$f":"AND(#REF!,\"dFUAC0GWaVM=\")","v":{"$error":"#REF!"}},{"$f":"AND(#REF!,\"dFUAC0GWaVQ=\")","v":{"$error":"#REF!"}},{"$f":"AND(#REF!,\"dFUAC0GWaVU=\")","v":{"$error":"#REF!"}},{"$f":"AND(#REF!,\"dFUAC0GWaVY=\")","v":{"$error":"#REF!"}},{"$f":"AND(#REF!,\"dFUAC0GWaVc=\")","v":{"$error":"#REF!"}},{"$f":"AND(#REF!,\"dFUAC0GWaVg=\")","v":{"$error":"#REF!"}},{"$f":"AND(#REF!,\"dFUAC0GWaVk=\")","v":{"$error":"#REF!"}},{"$f":"AND(#REF!,\"dFUAC0GWaVo=\")","v":{"$error":"#REF!"}},{"$f":"AND(#REF!,\"dFUAC0GWaVs=\")","v":{"$error":"#REF!"}},{"$f":"AND(#REF!,\"dFUAC0GWaVw=\")","v":{"$error":"#REF!"}},{"$f":"AND(#REF!,\"dFUAC0GWaV0=\")","v":{"$error":"#REF!"}},{"$f":"AND(#REF!,\"dFUAC0GWaV4=\")","v":{"$error":"#REF!"}},{"$f":"AND(#REF!,\"dFUAC0GWaV8=\")","v":{"$error":"#REF!"}},{"$f":"AND(#REF!,\"dFUAC0GWaWA=\")","v":{"$error":"#REF!"}},{"$f":"AND(#REF!,\"dFUAC0GWaWE=\")","v":{"$error":"#REF!"}},{"$f":"AND(#REF!,\"dFUAC0GWaWI=\")","v":{"$error":"#REF!"}},{"$f":"AND(#REF!,\"dFUAC0GWaWM=\")","v":{"$error":"#REF!"}},{"$f":"AND(#REF!,\"dFUAC0GWaWQ=\")","v":{"$error":"#REF!"}},{"$f":"AND(#REF!,\"dFUAC0GWaWU=\")","v":{"$error":"#REF!"}},{"$f":"AND(#REF!,\"dFUAC0GWaWY=\")","v":{"$error":"#REF!"}},{"$f":"AND(#REF!,\"dFUAC0GWaWc=\")","v":{"$error":"#REF!"}},{"$f":"AND(#REF!,\"dFUAC0GWaWg=\")","v":{"$error":"#REF!"}},{"$f":"AND(#REF!,\"dFUAC0GWaWk=\")","v":{"$error":"#REF!"}},{"$f":"AND(#REF!,\"dFUAC0GWaWo=\")","v":{"$error":"#REF!"}},{"$f":"AND(#REF!,\"dFUAC0GWaWs=\")","v":{"$error":"#REF!"}},{"$f":"AND(#REF!,\"dFUAC0GWaWw=\")","v":{"$error":"#REF!"}},{"$f":"AND(#REF!,\"dFUAC0GWaW0=\")","v":{"$error":"#REF!"}},{"$f":"AND(#REF!,\"dFUAC0GWaW4=\")","v":{"$error":"#REF!"}},{"$f":"AND(#REF!,\"dFUAC0GWaW8=\")","v":{"$error":"#REF!"}},{"$f":"AND(#REF!,\"dFUAC0GWaXA=\")","v":{"$error":"#REF!"}},{"$f":"AND(#REF!,\"dFUAC0GWaXE=\")","v":{"$error":"#REF!"}},{"$f":"AND(#REF!,\"dFUAC0GWaXI=\")","v":{"$error":"#REF!"}},{"$f":"AND(#REF!,\"dFUAC0GWaXM=\")","v":{"$error":"#REF!"}},{"$f":"AND(#REF!,\"dFUAC0GWaXQ=\")","v":{"$error":"#REF!"}},{"$f":"AND(#REF!,\"dFUAC0GWaXU=\")","v":{"$error":"#REF!"}},{"$f":"AND(#REF!,\"dFUAC0GWaXY=\")","v":{"$error":"#REF!"}},{"$f":"AND(#REF!,\"dFUAC0GWaXc=\")","v":{"$error":"#REF!"}},{"$f":"AND(#REF!,\"dFUAC0GWaXg=\")","v":{"$error":"#REF!"}},{"$f":"AND(#REF!,\"dFUAC0GWaXk=\")","v":{"$error":"#REF!"}},{"$f":"AND(#REF!,\"dFUAC0GWaXo=\")","v":{"$error":"#REF!"}},{"$f":"AND(#REF!,\"dFUAC0GWaXs=\")","v":{"$error":"#REF!"}},{"$f":"AND(#REF!,\"dFUAC0GWaXw=\")","v":{"$error":"#REF!"}},{"$f":"AND(#REF!,\"dFUAC0GWaX0=\")","v":{"$error":"#REF!"}},{"$f":"AND(#REF!,\"dFUAC0GWaX4=\")","v":{"$error":"#REF!"}},{"$f":"AND(#REF!,\"dFUAC0GWaX8=\")","v":{"$error":"#REF!"}},{"$f":"AND(#REF!,\"dFUAC0GWaYA=\")","v":{"$error":"#REF!"}},{"$f":"AND(#REF!,\"dFUAC0GWaYE=\")","v":{"$error":"#REF!"}},{"$f":"AND(#REF!,\"dFUAC0GWaYI=\")","v":{"$error":"#REF!"}},{"$f":"AND(#REF!,\"dFUAC0GWaYM=\")","v":{"$error":"#REF!"}},{"$f":"AND(#REF!,\"dFUAC0GWaYQ=\")","v":{"$error":"#REF!"}},{"$f":"AND(#REF!,\"dFUAC0GWaYU=\")","v":{"$error":"#REF!"}},{"$f":"AND(#REF!,\"dFUAC0GWaYY=\")","v":{"$error":"#REF!"}},{"$f":"AND(#REF!,\"dFUAC0GWaYc=\")","v":{"$error":"#REF!"}},{"$f":"AND(#REF!,\"dFUAC0GWaYg=\")","v":{"$error":"#REF!"}},{"$f":"AND(#REF!,\"dFUAC0GWaYk=\")","v":{"$error":"#REF!"}},{"$f":"AND(#REF!,\"dFUAC0GWaYo=\")","v":{"$error":"#REF!"}},{"$f":"AND(#REF!,\"dFUAC0GWaYs=\")","v":{"$error":"#REF!"}},{"$f":"AND(#REF!,\"dFUAC0GWaYw=\")","v":{"$error":"#REF!"}},{"$f":"AND(#REF!,\"dFUAC0GWaY0=\")","v":{"$error":"#REF!"}},{"$f":"AND(#REF!,\"dFUAC0GWaY4=\")","v":{"$error":"#REF!"}},{"$f":"AND(#REF!,\"dFUAC0GWaY8=\")","v":{"$error":"#REF!"}},{"$f":"AND(#REF!,\"dFUAC0GWaZA=\")","v":{"$error":"#REF!"}},{"$f":"AND(#REF!,\"dFUAC0GWaZE=\")","v":{"$error":"#REF!"}},{"$f":"AND(#REF!,\"dFUAC0GWaZI=\")","v":{"$error":"#REF!"}},{"$f":"AND(#REF!,\"dFUAC0GWaZM=\")","v":{"$error":"#REF!"}},{"$f":"AND(#REF!,\"dFUAC0GWaZQ=\")","v":{"$error":"#REF!"}},{"$f":"AND(#REF!,\"dFUAC0GWaZU=\")","v":{"$error":"#REF!"}},{"$f":"AND(#REF!,\"dFUAC0GWaZY=\")","v":{"$error":"#REF!"}},{"$f":"AND(#REF!,\"dFUAC0GWaZc=\")","v":{"$error":"#REF!"}},{"$f":"AND(#REF!,\"dFUAC0GWaZg=\")","v":{"$error":"#REF!"}},{"$f":"AND(#REF!,\"dFUAC0GWaZk=\")","v":{"$error":"#REF!"}},{"$f":"AND(#REF!,\"dFUAC0GWaZo=\")","v":{"$error":"#REF!"}},{"$f":"AND(#REF!,\"dFUAC0GWaZs=\")","v":{"$error":"#REF!"}},{"$f":"AND(#REF!,\"dFUAC0GWaZw=\")","v":{"$error":"#REF!"}},{"$f":"AND(#REF!,\"dFUAC0GWaZ0=\")","v":{"$error":"#REF!"}},{"$f":"AND(#REF!,\"dFUAC0GWaZ4=\")","v":{"$error":"#REF!"}},{"$f":"AND(#REF!,\"dFUAC0GWaZ8=\")","v":{"$error":"#REF!"}},{"$f":"AND(#REF!,\"dFUAC0GWaaA=\")","v":{"$error":"#REF!"}},{"$f":"AND(#REF!,\"dFUAC0GWaaE=\")","v":{"$error":"#REF!"}},{"$f":"AND(#REF!,\"dFUAC0GWaaI=\")","v":{"$error":"#REF!"}},{"$f":"AND(#REF!,\"dFUAC0GWaaM=\")","v":{"$error":"#REF!"}},{"$f":"AND(#REF!,\"dFUAC0GWaaQ=\")","v":{"$error":"#REF!"}},{"$f":"AND(#REF!,\"dFUAC0GWaaU=\")","v":{"$error":"#REF!"}},{"$f":"AND(#REF!,\"dFUAC0GWaaY=\")","v":{"$error":"#REF!"}},{"$f":"AND(#REF!,\"dFUAC0GWaac=\")","v":{"$error":"#REF!"}},{"$f":"AND(#REF!,\"dFUAC0GWaag=\")","v":{"$error":"#REF!"}},{"$f":"AND(#REF!,\"dFUAC0GWaak=\")","v":{"$error":"#REF!"}},{"$f":"AND(#REF!,\"dFUAC0GWaao=\")","v":{"$error":"#REF!"}},{"$f":"AND(#REF!,\"dFUAC0GWaas=\")","v":{"$error":"#REF!"}},{"$f":"AND(#REF!,\"dFUAC0GWaaw=\")","v":{"$error":"#REF!"}},{"$f":"AND(#REF!,\"dFUAC0GWaa0=\")","v":{"$error":"#REF!"}},{"$f":"AND(#REF!,\"dFUAC0GWaa4=\")","v":{"$error":"#REF!"}},{"$f":"AND(#REF!,\"dFUAC0GWaa8=\")","v":{"$error":"#REF!"}},{"$f":"AND(#REF!,\"dFUAC0GWabA=\")","v":{"$error":"#REF!"}},{"$f":"AND(#REF!,\"dFUAC0GWabE=\")","v":{"$error":"#REF!"}},{"$f":"AND(#REF!,\"dFUAC0GWabI=\")","v":{"$error":"#REF!"}},{"$f":"AND(#REF!,\"dFUAC0GWabM=\")","v":{"$error":"#REF!"}},{"$f":"AND(#REF!,\"dFUAC0GWabQ=\")","v":{"$error":"#REF!"}},{"$f":"AND(#REF!,\"dFUAC0GWabU=\")","v":{"$error":"#REF!"}},{"$f":"AND(#REF!,\"dFUAC0GWabY=\")","v":{"$error":"#REF!"}},{"$f":"AND(#REF!,\"dFUAC0GWabc=\")","v":{"$error":"#REF!"}},{"$f":"AND(#REF!,\"dFUAC0GWabg=\")","v":{"$error":"#REF!"}},{"$f":"AND(#REF!,\"dFUAC0GWabk=\")","v":{"$error":"#REF!"}},{"$f":"AND(#REF!,\"dFUAC0GWabo=\")","v":{"$error":"#REF!"}},{"$f":"AND(#REF!,\"dFUAC0GWabs=\")","v":{"$error":"#REF!"}},{"$f":"AND(#REF!,\"dFUAC0GWabw=\")","v":{"$error":"#REF!"}},{"$f":"AND(#REF!,\"dFUAC0GWab0=\")","v":{"$error":"#REF!"}},{"$f":"AND(#REF!,\"dFUAC0GWab4=\")","v":{"$error":"#REF!"}},{"$f":"AND(#REF!,\"dFUAC0GWab8=\")","v":{"$error":"#REF!"}},{"$f":"AND(#REF!,\"dFUAC0GWacA=\")","v":{"$error":"#REF!"}},{"$f":"AND(#REF!,\"dFUAC0GWacE=\")","v":{"$error":"#REF!"}},{"$f":"AND(#REF!,\"dFUAC0GWacI=\")","v":{"$error":"#REF!"}},{"$f":"AND(#REF!,\"dFUAC0GWacM=\")","v":{"$error":"#REF!"}},{"$f":"AND(#REF!,\"dFUAC0GWacQ=\")","v":{"$error":"#REF!"}},{"$f":"AND(#REF!,\"dFUAC0GWacU=\")","v":{"$error":"#REF!"}},{"$f":"AND(#REF!,\"dFUAC0GWacY=\")","v":{"$error":"#REF!"}},{"$f":"AND(#REF!,\"dFUAC0GWacc=\")","v":{"$error":"#REF!"}},{"$f":"AND(#REF!,\"dFUAC0GWacg=\")","v":{"$error":"#REF!"}},{"$f":"AND(#REF!,\"dFUAC0GWack=\")","v":{"$error":"#REF!"}},{"$f":"AND(#REF!,\"dFUAC0GWaco=\")","v":{"$error":"#REF!"}},{"$f":"AND(#REF!,\"dFUAC0GWacs=\")","v":{"$error":"#REF!"}},{"$f":"AND(#REF!,\"dFUAC0GWacw=\")","v":{"$error":"#REF!"}},{"$f":"AND(#REF!,\"dFUAC0GWac0=\")","v":{"$error":"#REF!"}},{"$f":"AND(#REF!,\"dFUAC0GWac4=\")","v":{"$error":"#REF!"}},{"$f":"AND(#REF!,\"dFUAC0GWac8=\")","v":{"$error":"#REF!"}},{"$f":"AND(#REF!,\"dFUAC0GWadA=\")","v":{"$error":"#REF!"}},{"$f":"AND(#REF!,\"dFUAC0GWadE=\")","v":{"$error":"#REF!"}},{"$f":"AND(#REF!,\"dFUAC0GWadI=\")","v":{"$error":"#REF!"}},{"$f":"AND(#REF!,\"dFUAC0GWadM=\")","v":{"$error":"#REF!"}},{"$f":"AND(#REF!,\"dFUAC0GWadQ=\")","v":{"$error":"#REF!"}},{"$f":"AND(#REF!,\"dFUAC0GWadU=\")","v":{"$error":"#REF!"}},{"$f":"AND(#REF!,\"dFUAC0GWadY=\")","v":{"$error":"#REF!"}},{"$f":"AND(#REF!,\"dFUAC0GWadc=\")","v":{"$error":"#REF!"}},{"$f":"AND(#REF!,\"dFUAC0GWadg=\")","v":{"$error":"#REF!"}},{"$f":"AND(#REF!,\"dFUAC0GWadk=\")","v":{"$error":"#REF!"}},{"$f":"AND(#REF!,\"dFUAC0GWado=\")","v":{"$error":"#REF!"}},{"$f":"AND(#REF!,\"dFUAC0GWads=\")","v":{"$error":"#REF!"}},{"$f":"AND(#REF!,\"dFUAC0GWadw=\")","v":{"$error":"#REF!"}},{"$f":"AND(#REF!,\"dFUAC0GWad0=\")","v":{"$error":"#REF!"}},{"$f":"AND(#REF!,\"dFUAC0GWad4=\")","v":{"$error":"#REF!"}},{"$f":"AND(#REF!,\"dFUAC0GWad8=\")","v":{"$error":"#REF!"}},{"$f":"AND(#REF!,\"dFUAC0GWaeA=\")","v":{"$error":"#REF!"}},{"$f":"AND(#REF!,\"dFUAC0GWaeE=\")","v":{"$error":"#REF!"}},{"$f":"AND(#REF!,\"dFUAC0GWaeI=\")","v":{"$error":"#REF!"}},{"$f":"AND(#REF!,\"dFUAC0GWaeM=\")","v":{"$error":"#REF!"}},{"$f":"AND(#REF!,\"dFUAC0GWaeQ=\")","v":{"$error":"#REF!"}},{"$f":"AND(#REF!,\"dFUAC0GWaeU=\")","v":{"$error":"#REF!"}},{"$f":"AND(#REF!,\"dFUAC0GWaeY=\")","v":{"$error":"#REF!"}},{"$f":"AND(#REF!,\"dFUAC0GWaec=\")","v":{"$error":"#REF!"}},{"$f":"AND(#REF!,\"dFUAC0GWaeg=\")","v":{"$error":"#REF!"}},{"$f":"AND(#REF!,\"dFUAC0GWaek=\")","v":{"$error":"#REF!"}},{"$f":"AND(#REF!,\"dFUAC0GWaeo=\")","v":{"$error":"#REF!"}},{"$f":"AND(#REF!,\"dFUAC0GWaes=\")","v":{"$error":"#REF!"}},{"$f":"AND(#REF!,\"dFUAC0GWaew=\")","v":{"$error":"#REF!"}},{"$f":"AND(#REF!,\"dFUAC0GWae0=\")","v":{"$error":"#REF!"}},{"$f":"AND(#REF!,\"dFUAC0GWae4=\")","v":{"$error":"#REF!"}},{"$f":"AND(#REF!,\"dFUAC0GWae8=\")","v":{"$error":"#REF!"}},{"$f":"AND(#REF!,\"dFUAC0GWafA=\")","v":{"$error":"#REF!"}},{"$f":"AND(#REF!,\"dFUAC0GWafE=\")","v":{"$error":"#REF!"}},{"$f":"AND(#REF!,\"dFUAC0GWafI=\")","v":{"$error":"#REF!"}},{"$f":"IF(#REF!,\"dFUAC0GWafM=\",0)","v":{"$error":"#REF!"}},{"$f":"AND(#REF!,\"dFUAC0GWafQ=\")","v":{"$error":"#REF!"}},{"$f":"AND(#REF!,\"dFUAC0GWafU=\")","v":{"$error":"#REF!"}},{"$f":"AND(#REF!,\"dFUAC0GWafY=\")","v":{"$error":"#REF!"}},{"$f":"AND(#REF!,\"dFUAC0GWafc=\")","v":{"$error":"#REF!"}},{"$f":"AND(#REF!,\"dFUAC0GWafg=\")","v":{"$error":"#REF!"}},{"$f":"AND(#REF!,\"dFUAC0GWafk=\")","v":{"$error":"#REF!"}},{"$f":"AND(#REF!,\"dFUAC0GWafo=\")","v":{"$error":"#REF!"}},{"$f":"AND(#REF!,\"dFUAC0GWafs=\")","v":{"$error":"#REF!"}},{"$f":"AND(#REF!,\"dFUAC0GWafw=\")","v":{"$error":"#REF!"}},{"$f":"AND(#REF!,\"dFUAC0GWaf0=\")","v":{"$error":"#REF!"}},{"$f":"AND(#REF!,\"dFUAC0GWaf4=\")","v":{"$error":"#REF!"}},{"$f":"AND(#REF!,\"dFUAC0GWaf8=\")","v":{"$error":"#REF!"}}]
[{"$f":"AND(#REF!,\"WRwkJji4CwA=\")","v":{"$error":"#REF!"}},{"$f":"AND(#REF!,\"WRwkJji4CwE=\")","v":{"$error":"#REF!"}},{"$f":"AND(#REF!,\"WRwkJji4CwI=\")","v":{"$error":"#REF!"}},{"$f":"AND(#REF!,\"WRwkJji4CwM=\")","v":{"$error":"#REF!"}},{"$f":"AND(#REF!,\"WRwkJji4CwQ=\")","v":{"$error":"#REF!"}},{"$f":"AND(#REF!,\"WRwkJji4CwU=\")","v":{"$error":"#REF!"}},{"$f":"AND(#REF!,\"WRwkJji4CwY=\")","v":{"$error":"#REF!"}},{"$f":"AND(#REF!,\"WRwkJji4Cwc=\")","v":{"$error":"#REF!"}},{"$f":"AND(#REF!,\"WRwkJji4Cwg=\")","v":{"$error":"#REF!"}},{"$f":"AND(#REF!,\"WRwkJji4Cwk=\")","v":{"$error":"#REF!"}},{"$f":"AND(#REF!,\"WRwkJji4Cwo=\")","v":{"$error":"#REF!"}},{"$f":"AND(#REF!,\"WRwkJji4Cws=\")","v":{"$error":"#REF!"}},{"$f":"AND(#REF!,\"WRwkJji4Cww=\")","v":{"$error":"#REF!"}},{"$f":"AND(#REF!,\"WRwkJji4Cw0=\")","v":{"$error":"#REF!"}},{"$f":"AND(#REF!,\"WRwkJji4Cw4=\")","v":{"$error":"#REF!"}},{"$f":"AND(#REF!,\"WRwkJji4Cw8=\")","v":{"$error":"#REF!"}},{"$f":"AND(#REF!,\"WRwkJji4CxA=\")","v":{"$error":"#REF!"}},{"$f":"AND(#REF!,\"WRwkJji4CxE=\")","v":{"$error":"#REF!"}},{"$f":"AND(#REF!,\"WRwkJji4CxI=\")","v":{"$error":"#REF!"}},{"$f":"AND(#REF!,\"WRwkJji4CxM=\")","v":{"$error":"#REF!"}},{"$f":"AND(#REF!,\"WRwkJji4CxQ=\")","v":{"$error":"#REF!"}},{"$f":"AND(#REF!,\"WRwkJji4CxU=\")","v":{"$error":"#REF!"}},{"$f":"AND(#REF!,\"WRwkJji4CxY=\")","v":{"$error":"#REF!"}},{"$f":"AND(#REF!,\"WRwkJji4Cxc=\")","v":{"$error":"#REF!"}},{"$f":"AND(#REF!,\"WRwkJji4Cxg=\")","v":{"$error":"#REF!"}},{"$f":"AND(#REF!,\"WRwkJji4Cxk=\")","v":{"$error":"#REF!"}},{"$f":"AND(#REF!,\"WRwkJji4Cxo=\")","v":{"$error":"#REF!"}},{"$f":"AND(#REF!,\"WRwkJji4Cxs=\")","v":{"$error":"#REF!"}},{"$f":"AND(#REF!,\"WRwkJji4Cxw=\")","v":{"$error":"#REF!"}},{"$f":"AND(#REF!,\"WRwkJji4Cx0=\")","v":{"$error":"#REF!"}},{"$f":"AND(#REF!,\"WRwkJji4Cx4=\")","v":{"$error":"#REF!"}},{"$f":"AND(#REF!,\"WRwkJji4Cx8=\")","v":{"$error":"#REF!"}},{"$f":"AND(#REF!,\"WRwkJji4CyA=\")","v":{"$error":"#REF!"}},{"$f":"AND(#REF!,\"WRwkJji4CyE=\")","v":{"$error":"#REF!"}},{"$f":"AND(#REF!,\"WRwkJji4CyI=\")","v":{"$error":"#REF!"}},{"$f":"AND(#REF!,\"WRwkJji4CyM=\")","v":{"$error":"#REF!"}},{"$f":"AND(#REF!,\"WRwkJji4CyQ=\")","v":{"$error":"#REF!"}},{"$f":"AND(#REF!,\"WRwkJji4CyU=\")","v":{"$error":"#REF!"}},{"$f":"AND(#REF!,\"WRwkJji4CyY=\")","v":{"$error":"#REF!"}},{"$f":"AND(#REF!,\"WRwkJji4Cyc=\")","v":{"$error":"#REF!"}},{"$f":"AND(#REF!,\"WRwkJji4Cyg=\")","v":{"$error":"#REF!"}},{"$f":"AND(#REF!,\"WRwkJji4Cyk=\")","v":{"$error":"#REF!"}},{"$f":"AND(#REF!,\"WRwkJji4Cyo=\")","v":{"$error":"#REF!"}},{"$f":"AND(#REF!,\"WRwkJji4Cys=\")","v":{"$error":"#REF!"}},{"$f":"AND(#REF!,\"WRwkJji4Cyw=\")","v":{"$error":"#REF!"}},{"$f":"AND(#REF!,\"WRwkJji4Cy0=\")","v":{"$error":"#REF!"}},{"$f":"AND(#REF!,\"WRwkJji4Cy4=\")","v":{"$error":"#REF!"}},{"$f":"AND(#REF!,\"WRwkJji4Cy8=\")","v":{"$error":"#REF!"}},{"$f":"AND(#REF!,\"WRwkJji4CzA=\")","v":{"$error":"#REF!"}},{"$f":"AND(#REF!,\"WRwkJji4CzE=\")","v":{"$error":"#REF!"}},{"$f":"AND(#REF!,\"WRwkJji4CzI=\")","v":{"$error":"#REF!"}},{"$f":"AND(#REF!,\"WRwkJji4CzM=\")","v":{"$error":"#REF!"}},{"$f":"AND(#REF!,\"WRwkJji4CzQ=\")","v":{"$error":"#REF!"}},{"$f":"AND(#REF!,\"WRwkJji4CzU=\")","v":{"$error":"#REF!"}},{"$f":"AND(#REF!,\"WRwkJji4CzY=\")","v":{"$error":"#REF!"}},{"$f":"AND(#REF!,\"WRwkJji4Czc=\")","v":{"$error":"#REF!"}},{"$f":"AND(#REF!,\"WRwkJji4Czg=\")","v":{"$error":"#REF!"}},{"$f":"AND(#REF!,\"WRwkJji4Czk=\")","v":{"$error":"#REF!"}},{"$f":"AND(#REF!,\"WRwkJji4Czo=\")","v":{"$error":"#REF!"}},{"$f":"AND(#REF!,\"WRwkJji4Czs=\")","v":{"$error":"#REF!"}},{"$f":"AND(#REF!,\"WRwkJji4Czw=\")","v":{"$error":"#REF!"}},{"$f":"AND(#REF!,\"WRwkJji4Cz0=\")","v":{"$error":"#REF!"}},{"$f":"AND(#REF!,\"WRwkJji4Cz4=\")","v":{"$error":"#REF!"}},{"$f":"AND(#REF!,\"WRwkJji4Cz8=\")","v":{"$error":"#REF!"}},{"$f":"AND(#REF!,\"WRwkJji4C0A=\")","v":{"$error":"#REF!"}},{"$f":"AND(#REF!,\"WRwkJji4C0E=\")","v":{"$error":"#REF!"}},{"$f":"AND(#REF!,\"WRwkJji4C0I=\")","v":{"$error":"#REF!"}},{"$f":"AND(#REF!,\"WRwkJji4C0M=\")","v":{"$error":"#REF!"}},{"$f":"AND(#REF!,\"WRwkJji4C0Q=\")","v":{"$error":"#REF!"}},{"$f":"AND(#REF!,\"WRwkJji4C0U=\")","v":{"$error":"#REF!"}},{"$f":"AND(#REF!,\"WRwkJji4C0Y=\")","v":{"$error":"#REF!"}},{"$f":"AND(#REF!,\"WRwkJji4C0c=\")","v":{"$error":"#REF!"}},{"$f":"AND(#REF!,\"WRwkJji4C0g=\")","v":{"$error":"#REF!"}},{"$f":"AND(#REF!,\"WRwkJji4C0k=\")","v":{"$error":"#REF!"}},{"$f":"AND(#REF!,\"WRwkJji4C0o=\")","v":{"$error":"#REF!"}},{"$f":"AND(#REF!,\"WRwkJji4C0s=\")","v":{"$error":"#REF!"}},{"$f":"AND(#REF!,\"WRwkJji4C0w=\")","v":{"$error":"#REF!"}},{"$f":"AND(#REF!,\"WRwkJji4C00=\")","v":{"$error":"#REF!"}},{"$f":"AND(#REF!,\"WRwkJji4C04=\")","v":{"$error":"#REF!"}},{"$f":"AND(#REF!,\"WRwkJji4C08=\")","v":{"$error":"#REF!"}},{"$f":"AND(#REF!,\"WRwkJji4C1A=\")","v":{"$error":"#REF!"}},{"$f":"AND(#REF!,\"WRwkJji4C1E=\")","v":{"$error":"#REF!"}},{"$f":"AND(#REF!,\"WRwkJji4C1I=\")","v":{"$error":"#REF!"}},{"$f":"AND(#REF!,\"WRwkJji4C1M=\")","v":{"$error":"#REF!"}},{"$f":"AND(#REF!,\"WRwkJji4C1Q=\")","v":{"$error":"#REF!"}},{"$f":"AND(#REF!,\"WRwkJji4C1U=\")","v":{"$error":"#REF!"}},{"$f":"AND(#REF!,\"WRwkJji4C1Y=\")","v":{"$error":"#REF!"}},{"$f":"AND(#REF!,\"WRwkJji4C1c=\")","v":{"$error":"#REF!"}},{"$f":"AND(#REF!,\"WRwkJji4C1g=\")","v":{"$error":"#REF!"}},{"$f":"AND(#REF!,\"WRwkJji4C1k=\")","v":{"$error":"#REF!"}},{"$f":"AND(#REF!,\"WRwkJji4C1o=\")","v":{"$error":"#REF!"}},{"$f":"AND(#REF!,\"WRwkJji4C1s=\")","v":{"$error":"#REF!"}},{"$f":"AND(#REF!,\"WRwkJji4C1w=\")","v":{"$error":"#REF!"}},{"$f":"AND(#REF!,\"WRwkJji4C10=\")","v":{"$error":"#REF!"}},{"$f":"AND(#REF!,\"WRwkJji4C14=\")","v":{"$error":"#REF!"}},{"$f":"AND(#REF!,\"WRwkJji4C18=\")","v":{"$error":"#REF!"}},{"$f":"AND(#REF!,\"WRwkJji4C2A=\")","v":{"$error":"#REF!"}},{"$f":"AND(#REF!,\"WRwkJji4C2E=\")","v":{"$error":"#REF!"}},{"$f":"AND(#REF!,\"WRwkJji4C2I=\")","v":{"$error":"#REF!"}},{"$f":"AND(#REF!,\"WRwkJji4C2M=\")","v":{"$error":"#REF!"}},{"$f":"AND(#REF!,\"WRwkJji4C2Q=\")","v":{"$error":"#REF!"}},{"$f":"AND(#REF!,\"WRwkJji4C2U=\")","v":{"$error":"#REF!"}},{"$f":"AND(#REF!,\"WRwkJji4C2Y=\")","v":{"$error":"#REF!"}},{"$f":"AND(#REF!,\"WRwkJji4C2c=\")","v":{"$error":"#REF!"}},{"$f":"AND(#REF!,\"WRwkJji4C2g=\")","v":{"$error":"#REF!"}},{"$f":"AND(#REF!,\"WRwkJji4C2k=\")","v":{"$error":"#REF!"}},{"$f":"AND(#REF!,\"WRwkJji4C2o=\")","v":{"$error":"#REF!"}},{"$f":"AND(#REF!,\"WRwkJji4C2s=\")","v":{"$error":"#REF!"}},{"$f":"AND(#REF!,\"WRwkJji4C2w=\")","v":{"$error":"#REF!"}},{"$f":"AND(#REF!,\"WRwkJji4C20=\")","v":{"$error":"#REF!"}},{"$f":"AND(#REF!,\"WRwkJji4C24=\")","v":{"$error":"#REF!"}},{"$f":"AND(#REF!,\"WRwkJji4C28=\")","v":{"$error":"#REF!"}},{"$f":"AND(#REF!,\"WRwkJji4C3A=\")","v":{"$error":"#REF!"}},{"$f":"AND(#REF!,\"WRwkJji4C3E=\")","v":{"$error":"#REF!"}},{"$f":"AND(#REF!,\"WRwkJji4C3I=\")","v":{"$error":"#REF!"}},{"$f":"AND(#REF!,\"WRwkJji4C3M=\")","v":{"$error":"#REF!"}},{"$f":"AND(#REF!,\"WRwkJji4C3Q=\")","v":{"$error":"#REF!"}},{"$f":"AND(#REF!,\"WRwkJji4C3U=\")","v":{"$error":"#REF!"}},{"$f":"AND(#REF!,\"WRwkJji4C3Y=\")","v":{"$error":"#REF!"}},{"$f":"AND(#REF!,\"WRwkJji4C3c=\")","v":{"$error":"#REF!"}},{"$f":"AND(#REF!,\"WRwkJji4C3g=\")","v":{"$error":"#REF!"}},{"$f":"AND(#REF!,\"WRwkJji4C3k=\")","v":{"$error":"#REF!"}},{"$f":"AND(#REF!,\"WRwkJji4C3o=\")","v":{"$error":"#REF!"}},{"$f":"AND(#REF!,\"WRwkJji4C3s=\")","v":{"$error":"#REF!"}},{"$f":"AND(#REF!,\"WRwkJji4C3w=\")","v":{"$error":"#REF!"}},{"$f":"AND(#REF!,\"WRwkJji4C30=\")","v":{"$error":"#REF!"}},{"$f":"AND(#REF!,\"WRwkJji4C34=\")","v":{"$error":"#REF!"}},{"$f":"AND(#REF!,\"WRwkJji4C38=\")","v":{"$error":"#REF!"}},{"$f":"AND(#REF!,\"WRwkJji4C4A=\")","v":{"$error":"#REF!"}},{"$f":"AND(#REF!,\"WRwkJji4C4E=\")","v":{"$error":"#REF!"}},{"$f":"AND(#REF!,\"WRwkJji4C4I=\")","v":{"$error":"#REF!"}},{"$f":"AND(#REF!,\"WRwkJji4C4M=\")","v":{"$error":"#REF!"}},{"$f":"AND(#REF!,\"WRwkJji4C4Q=\")","v":{"$error":"#REF!"}},{"$f":"AND(#REF!,\"WRwkJji4C4U=\")","v":{"$error":"#REF!"}},{"$f":"AND(#REF!,\"WRwkJji4C4Y=\")","v":{"$error":"#REF!"}},{"$f":"AND(#REF!,\"WRwkJji4C4c=\")","v":{"$error":"#REF!"}},{"$f":"AND(#REF!,\"WRwkJji4C4g=\")","v":{"$error":"#REF!"}},{"$f":"AND(#REF!,\"WRwkJji4C4k=\")","v":{"$error":"#REF!"}},{"$f":"AND(#REF!,\"WRwkJji4C4o=\")","v":{"$error":"#REF!"}},{"$f":"AND(#REF!,\"WRwkJji4C4s=\")","v":{"$error":"#REF!"}},{"$f":"AND(#REF!,\"WRwkJji4C4w=\")","v":{"$error":"#REF!"}},{"$f":"AND(#REF!,\"WRwkJji4C40=\")","v":{"$error":"#REF!"}},{"$f":"AND(#REF!,\"WRwkJji4C44=\")","v":{"$error":"#REF!"}},{"$f":"AND(#REF!,\"WRwkJji4C48=\")","v":{"$error":"#REF!"}},{"$f":"AND(#REF!,\"WRwkJji4C5A=\")","v":{"$error":"#REF!"}},{"$f":"AND(#REF!,\"WRwkJji4C5E=\")","v":{"$error":"#REF!"}},{"$f":"AND(#REF!,\"WRwkJji4C5I=\")","v":{"$error":"#REF!"}},{"$f":"AND(#REF!,\"WRwkJji4C5M=\")","v":{"$error":"#REF!"}},{"$f":"AND(#REF!,\"WRwkJji4C5Q=\")","v":{"$error":"#REF!"}},{"$f":"AND(#REF!,\"WRwkJji4C5U=\")","v":{"$error":"#REF!"}},{"$f":"AND(#REF!,\"WRwkJji4C5Y=\")","v":{"$error":"#REF!"}},{"$f":"AND(#REF!,\"WRwkJji4C5c=\")","v":{"$error":"#REF!"}},{"$f":"AND(#REF!,\"WRwkJji4C5g=\")","v":{"$error":"#REF!"}},{"$f":"AND(#REF!,\"WRwkJji4C5k=\")","v":{"$error":"#REF!"}},{"$f":"AND(#REF!,\"WRwkJji4C5o=\")","v":{"$error":"#REF!"}},{"$f":"AND(#REF!,\"WRwkJji4C5s=\")","v":{"$error":"#REF!"}},{"$f":"AND(#REF!,\"WRwkJji4C5w=\")","v":{"$error":"#REF!"}},{"$f":"AND(#REF!,\"WRwkJji4C50=\")","v":{"$error":"#REF!"}},{"$f":"AND(#REF!,\"WRwkJji4C54=\")","v":{"$error":"#REF!"}},{"$f":"AND(#REF!,\"WRwkJji4C58=\")","v":{"$error":"#REF!"}},{"$f":"AND(#REF!,\"WRwkJji4C6A=\")","v":{"$error":"#REF!"}},{"$f":"AND(#REF!,\"WRwkJji4C6E=\")","v":{"$error":"#REF!"}},{"$f":"AND(#REF!,\"WRwkJji4C6I=\")","v":{"$error":"#REF!"}},{"$f":"AND(#REF!,\"WRwkJji4C6M=\")","v":{"$error":"#REF!"}},{"$f":"AND(#REF!,\"WRwkJji4C6Q=\")","v":{"$error":"#REF!"}},{"$f":"AND(#REF!,\"WRwkJji4C6U=\")","v":{"$error":"#REF!"}},{"$f":"AND(#REF!,\"WRwkJji4C6Y=\")","v":{"$error":"#REF!"}},{"$f":"AND(#REF!,\"WRwkJji4C6c=\")","v":{"$error":"#REF!"}},{"$f":"AND(#REF!,\"WRwkJji4C6g=\")","v":{"$error":"#REF!"}},{"$f":"AND(#REF!,\"WRwkJji4C6k=\")","v":{"$error":"#REF!"}},{"$f":"AND(#REF!,\"WRwkJji4C6o=\")","v":{"$error":"#REF!"}},{"$f":"AND(#REF!,\"WRwkJji4C6s=\")","v":{"$error":"#REF!"}},{"$f":"AND(#REF!,\"WRwkJji4C6w=\")","v":{"$error":"#REF!"}},{"$f":"AND(#REF!,\"WRwkJji4C60=\")","v":{"$error":"#REF!"}},{"$f":"AND(#REF!,\"WRwkJji4C64=\")","v":{"$error":"#REF!"}},{"$f":"AND(#REF!,\"WRwkJji4C68=\")","v":{"$error":"#REF!"}},{"$f":"AND(#REF!,\"WRwkJji4C7A=\")","v":{"$error":"#REF!"}},{"$f":"AND(#REF!,\"WRwkJji4C7E=\")","v":{"$error":"#REF!"}},{"$f":"AND(#REF!,\"WRwkJji4C7I=\")","v":{"$error":"#REF!"}},{"$f":"AND(#REF!,\"WRwkJji4C7M=\")","v":{"$error":"#REF!"}},{"$f":"AND(#REF!,\"WRwkJji4C7Q=\")","v":{"$error":"#REF!"}},{"$f":"AND(#REF!,\"WRwkJji4C7U=\")","v":{"$error":"#REF!"}},{"$f":"AND(#REF!,\"WRwkJji4C7Y=\")","v":{"$error":"#REF!"}},{"$f":"AND(#REF!,\"WRwkJji4C7c=\")","v":{"$error":"#REF!"}},{"$f":"AND(#REF!,\"WRwkJji4C7g=\")","v":{"$error":"#REF!"}},{"$f":"AND(#REF!,\"WRwkJji4C7k=\")","v":{"$error":"#REF!"}},{"$f":"IF(#REF!,\"WRwkJji4C7o=\",0)","v":{"$error":"#REF!"}},{"$f":"AND(#REF!,\"WRwkJji4C7s=\")","v":{"$error":"#REF!"}},{"$f":"AND(#REF!,\"WRwkJji4C7w=\")","v":{"$error":"#REF!"}},{"$f":"AND(#REF!,\"WRwkJji4C70=\")","v":{"$error":"#REF!"}},{"$f":"AND(#REF!,\"WRwkJji4C74=\")","v":{"$error":"#REF!"}},{"$f":"AND(#REF!,\"WRwkJji4C78=\")","v":{"$error":"#REF!"}},{"$f":"AND(#REF!,\"WRwkJji4C8A=\")","v":{"$error":"#REF!"}},{"$f":"AND(#REF!,\"WRwkJji4C8E=\")","v":{"$error":"#REF!"}},{"$f":"AND(#REF!,\"WRwkJji4C8I=\")","v":{"$error":"#REF!"}},{"$f":"AND(#REF!,\"WRwkJji4C8M=\")","v":{"$error":"#REF!"}},{"$f":"AND(#REF!,\"WRwkJji4C8Q=\")","v":{"$error":"#REF!"}},{"$f":"AND(#REF!,\"WRwkJji4C8U=\")","v":{"$error":"#REF!"}},{"$f":"AND(#REF!,\"WRwkJji4C8Y=\")","v":{"$error":"#REF!"}},{"$f":"AND(#REF!,\"WRwkJji4C8c=\")","v":{"$error":"#REF!"}},{"$f":"AND(#REF!,\"WRwkJji4C8g=\")","v":{"$error":"#REF!"}},{"$f":"AND(#REF!,\"WRwkJji4C8k=\")","v":{"$error":"#REF!"}},{"$f":"AND(#REF!,\"WRwkJji4C8o=\")","v":{"$error":"#REF!"}},{"$f":"AND(#REF!,\"WRwkJji4C8s=\")","v":{"$error":"#REF!"}},{"$f":"AND(#REF!,\"WRwkJji4C8w=\")","v":{"$error":"#REF!"}},{"$f":"AND(#REF!,\"WRwkJji4C80=\")","v":{"$error":"#REF!"}},{"$f":"AND(#REF!,\"WRwkJji4C84=\")","v":{"$error":"#REF!"}},{"$f":"AND(#REF!,\"WRwkJji4C88=\")","v":{"$error":"#REF!"}},{"$f":"AND(#REF!,\"WRwkJji4C9A=\")","v":{"$error":"#REF!"}},{"$f":"AND(#REF!,\"WRwkJji4C9E=\")","v":{"$error":"#REF!"}},{"$f":"AND(#REF!,\"WRwkJji4C9I=\")","v":{"$error":"#REF!"}},{"$f":"AND(#REF!,\"WRwkJji4C9M=\")","v":{"$error":"#REF!"}},{"$f":"AND(#REF!,\"WRwkJji4C9Q=\")","v":{"$error":"#REF!"}},{"$f":"AND(#REF!,\"WRwkJji4C9U=\")","v":{"$error":"#REF!"}},{"$f":"AND(#REF!,\"WRwkJji4C9Y=\")","v":{"$error":"#REF!"}},{"$f":"AND(#REF!,\"WRwkJji4C9c=\")","v":{"$error":"#REF!"}},{"$f":"AND(#REF!,\"WRwkJji4C9g=\")","v":{"$error":"#REF!"}},{"$f":"AND(#REF!,\"WRwkJji4C9k=\")","v":{"$error":"#REF!"}},{"$f":"AND(#REF!,\"WRwkJji4C9o=\")","v":{"$error":"#REF!"}},{"$f":"AND(#REF!,\"WRwkJji4C9s=\")","v":{"$error":"#REF!"}},{"$f":"AND(#REF!,\"WRwkJji4C9w=\")","v":{"$error":"#REF!"}},{"$f":"AND(#REF!,\"WRwkJji4C90=\")","v":{"$error":"#REF!"}},{"$f":"AND(#REF!,\"WRwkJji4C94=\")","v":{"$error":"#REF!"}},{"$f":"AND(#REF!,\"WRwkJji4C98=\")","v":{"$error":"#REF!"}},{"$f":"AND(#REF!,\"WRwkJji4C+A=\")","v":{"$error":"#REF!"}},{"$f":"AND(#REF!,\"WRwkJji4C+E=\")","v":{"$error":"#REF!"}},{"$f":"AND(#REF!,\"WRwkJji4C+I=\")","v":{"$error":"#REF!"}},{"$f":"AND(#REF!,\"WRwkJji4C+M=\")","v":{"$error":"#REF!"}},{"$f":"AND(#REF!,\"WRwkJji4C+Q=\")","v":{"$error":"#REF!"}},{"$f":"AND(#REF!,\"WRwkJji4C+U=\")","v":{"$error":"#REF!"}},{"$f":"AND(#REF!,\"WRwkJji4C+Y=\")","v":{"$error":"#REF!"}},{"$f":"AND(#REF!,\"WRwkJji4C+c=\")","v":{"$error":"#REF!"}},{"$f":"AND(#REF!,\"WRwkJji4C+g=\")","v":{"$error":"#REF!"}},{"$f":"AND(#REF!,\"WRwkJji4C+k=\")","v":{"$error":"#REF!"}},{"$f":"AND(#REF!,\"WRwkJji4C+o=\")","v":{"$error":"#REF!"}},{"$f":"AND(#REF!,\"WRwkJji4C+s=\")","v":{"$error":"#REF!"}},{"$f":"AND(#REF!,\"WRwkJji4C+w=\")","v":{"$error":"#REF!"}},{"$f":"AND(#REF!,\"WRwkJji4C+0=\")","v":{"$error":"#REF!"}},{"$f":"AND(#REF!,\"WRwkJji4C+4=\")","v":{"$error":"#REF!"}},{"$f":"AND(#REF!,\"WRwkJji4C+8=\")","v":{"$error":"#REF!"}},{"$f":"AND(#REF!,\"WRwkJji4C/A=\")","v":{"$error":"#REF!"}},{"$f":"AND(#REF!,\"WRwkJji4C/E=\")","v":{"$error":"#REF!"}},{"$f":"AND(#REF!,\"WRwkJji4C/I=\")","v":{"$error":"#REF!"}},{"$f":"AND(#REF!,\"WRwkJji4C/M=\")","v":{"$error":"#REF!"}},{"$f":"AND(#REF!,\"WRwkJji4C/Q=\")","v":{"$error":"#REF!"}},{"$f":"AND(#REF!,\"WRwkJji4C/U=\")","v":{"$error":"#REF!"}},{"$f":"AND(#REF!,\"WRwkJji4C/Y=\")","v":{"$error":"#REF!"}},{"$f":"AND(#REF!,\"WRwkJji4C/c=\")","v":{"$error":"#REF!"}},{"$f":"AND(#REF!,\"WRwkJji4C/g=\")","v":{"$error":"#REF!"}},{"$f":"AND(#REF!,\"WRwkJji4C/k=\")","v":{"$error":"#REF!"}},{"$f":"AND(#REF!,\"WRwkJji4C/o=\")","v":{"$error":"#REF!"}},{"$f":"AND(#REF!,\"WRwkJji4C/s=\")","v":{"$error":"#REF!"}},{"$f":"AND(#REF!,\"WRwkJji4C/w=\")","v":{"$error":"#REF!"}},{"$f":"AND(#REF!,\"WRwkJji4C/0=\")","v":{"$error":"#REF!"}},{"$f":"AND(#REF!,\"WRwkJji4C/4=\")","v":{"$error":"#REF!"}},{"$f":"AND(#REF!,\"WRwkJji4C/8=\")","v":{"$error":"#REF!"}}]
[{"$f":"AND(#REF!,\"ZHH871PYdQA=\")","v":{"$error":"#REF!"}},{"$f":"AND(#REF!,\"ZHH871PYdQE=\")","v":{"$error":"#REF!"}},{"$f":"AND(#REF!,\"ZHH871PYdQI=\")","v":{"$error":"#REF!"}},{"$f":"AND(#REF!,\"ZHH871PYdQM=\")","v":{"$error":"#REF!"}},{"$f":"AND(#REF!,\"ZHH871PYdQQ=\")","v":{"$error":"#REF!"}},{"$f":"AND(#REF!,\"ZHH871PYdQU=\")","v":{"$error":"#REF!"}},{"$f":"AND(#REF!,\"ZHH871PYdQY=\")","v":{"$error":"#REF!"}},{"$f":"AND(#REF!,\"ZHH871PYdQc=\")","v":{"$error":"#REF!"}},{"$f":"AND(#REF!,\"ZHH871PYdQg=\")","v":{"$error":"#REF!"}},{"$f":"AND(#REF!,\"ZHH871PYdQk=\")","v":{"$error":"#REF!"}},{"$f":"AND(#REF!,\"ZHH871PYdQo=\")","v":{"$error":"#REF!"}},{"$f":"AND(#REF!,\"ZHH871PYdQs=\")","v":{"$error":"#REF!"}},{"$f":"AND(#REF!,\"ZHH871PYdQw=\")","v":{"$error":"#REF!"}},{"$f":"AND(#REF!,\"ZHH871PYdQ0=\")","v":{"$error":"#REF!"}},{"$f":"AND(#REF!,\"ZHH871PYdQ4=\")","v":{"$error":"#REF!"}},{"$f":"AND(#REF!,\"ZHH871PYdQ8=\")","v":{"$error":"#REF!"}},{"$f":"AND(#REF!,\"ZHH871PYdRA=\")","v":{"$error":"#REF!"}},{"$f":"AND(#REF!,\"ZHH871PYdRE=\")","v":{"$error":"#REF!"}},{"$f":"AND(#REF!,\"ZHH871PYdRI=\")","v":{"$error":"#REF!"}},{"$f":"AND(#REF!,\"ZHH871PYdRM=\")","v":{"$error":"#REF!"}},{"$f":"AND(#REF!,\"ZHH871PYdRQ=\")","v":{"$error":"#REF!"}},{"$f":"AND(#REF!,\"ZHH871PYdRU=\")","v":{"$error":"#REF!"}},{"$f":"AND(#REF!,\"ZHH871PYdRY=\")","v":{"$error":"#REF!"}},{"$f":"AND(#REF!,\"ZHH871PYdRc=\")","v":{"$error":"#REF!"}},{"$f":"AND(#REF!,\"ZHH871PYdRg=\")","v":{"$error":"#REF!"}},{"$f":"AND(#REF!,\"ZHH871PYdRk=\")","v":{"$error":"#REF!"}},{"$f":"AND(#REF!,\"ZHH871PYdRo=\")","v":{"$error":"#REF!"}},{"$f":"AND(#REF!,\"ZHH871PYdRs=\")","v":{"$error":"#REF!"}},{"$f":"AND(#REF!,\"ZHH871PYdRw=\")","v":{"$error":"#REF!"}},{"$f":"AND(#REF!,\"ZHH871PYdR0=\")","v":{"$error":"#REF!"}},{"$f":"AND(#REF!,\"ZHH871PYdR4=\")","v":{"$error":"#REF!"}},{"$f":"AND(#REF!,\"ZHH871PYdR8=\")","v":{"$error":"#REF!"}},{"$f":"AND(#REF!,\"ZHH871PYdSA=\")","v":{"$error":"#REF!"}},{"$f":"AND(#REF!,\"ZHH871PYdSE=\")","v":{"$error":"#REF!"}},{"$f":"AND(#REF!,\"ZHH871PYdSI=\")","v":{"$error":"#REF!"}},{"$f":"AND(#REF!,\"ZHH871PYdSM=\")","v":{"$error":"#REF!"}},{"$f":"AND(#REF!,\"ZHH871PYdSQ=\")","v":{"$error":"#REF!"}},{"$f":"AND(#REF!,\"ZHH871PYdSU=\")","v":{"$error":"#REF!"}},{"$f":"AND(#REF!,\"ZHH871PYdSY=\")","v":{"$error":"#REF!"}},{"$f":"AND(#REF!,\"ZHH871PYdSc=\")","v":{"$error":"#REF!"}},{"$f":"AND(#REF!,\"ZHH871PYdSg=\")","v":{"$error":"#REF!"}},{"$f":"AND(#REF!,\"ZHH871PYdSk=\")","v":{"$error":"#REF!"}},{"$f":"AND(#REF!,\"ZHH871PYdSo=\")","v":{"$error":"#REF!"}},{"$f":"AND(#REF!,\"ZHH871PYdSs=\")","v":{"$error":"#REF!"}},{"$f":"AND(#REF!,\"ZHH871PYdSw=\")","v":{"$error":"#REF!"}},{"$f":"AND(#REF!,\"ZHH871PYdS0=\")","v":{"$error":"#REF!"}},{"$f":"AND(#REF!,\"ZHH871PYdS4=\")","v":{"$error":"#REF!"}},{"$f":"AND(#REF!,\"ZHH871PYdS8=\")","v":{"$error":"#REF!"}},{"$f":"AND(#REF!,\"ZHH871PYdTA=\")","v":{"$error":"#REF!"}},{"$f":"AND(#REF!,\"ZHH871PYdTE=\")","v":{"$error":"#REF!"}},{"$f":"AND(#REF!,\"ZHH871PYdTI=\")","v":{"$error":"#REF!"}},{"$f":"AND(#REF!,\"ZHH871PYdTM=\")","v":{"$error":"#REF!"}},{"$f":"AND(#REF!,\"ZHH871PYdTQ=\")","v":{"$error":"#REF!"}},{"$f":"AND(#REF!,\"ZHH871PYdTU=\")","v":{"$error":"#REF!"}},{"$f":"AND(#REF!,\"ZHH871PYdTY=\")","v":{"$error":"#REF!"}},{"$f":"AND(#REF!,\"ZHH871PYdTc=\")","v":{"$error":"#REF!"}},{"$f":"AND(#REF!,\"ZHH871PYdTg=\")","v":{"$error":"#REF!"}},{"$f":"AND(#REF!,\"ZHH871PYdTk=\")","v":{"$error":"#REF!"}},{"$f":"AND(#REF!,\"ZHH871PYdTo=\")","v":{"$error":"#REF!"}},{"$f":"AND(#REF!,\"ZHH871PYdTs=\")","v":{"$error":"#REF!"}},{"$f":"AND(#REF!,\"ZHH871PYdTw=\")","v":{"$error":"#REF!"}},{"$f":"AND(#REF!,\"ZHH871PYdT0=\")","v":{"$error":"#REF!"}},{"$f":"AND(#REF!,\"ZHH871PYdT4=\")","v":{"$error":"#REF!"}},{"$f":"AND(#REF!,\"ZHH871PYdT8=\")","v":{"$error":"#REF!"}},{"$f":"AND(#REF!,\"ZHH871PYdUA=\")","v":{"$error":"#REF!"}},{"$f":"AND(#REF!,\"ZHH871PYdUE=\")","v":{"$error":"#REF!"}},{"$f":"AND(#REF!,\"ZHH871PYdUI=\")","v":{"$error":"#REF!"}},{"$f":"AND(#REF!,\"ZHH871PYdUM=\")","v":{"$error":"#REF!"}},{"$f":"AND(#REF!,\"ZHH871PYdUQ=\")","v":{"$error":"#REF!"}},{"$f":"AND(#REF!,\"ZHH871PYdUU=\")","v":{"$error":"#REF!"}},{"$f":"AND(#REF!,\"ZHH871PYdUY=\")","v":{"$error":"#REF!"}},{"$f":"AND(#REF!,\"ZHH871PYdUc=\")","v":{"$error":"#REF!"}},{"$f":"AND(#REF!,\"ZHH871PYdUg=\")","v":{"$error":"#REF!"}},{"$f":"AND(#REF!,\"ZHH871PYdUk=\")","v":{"$error":"#REF!"}},{"$f":"AND(#REF!,\"ZHH871PYdUo=\")","v":{"$error":"#REF!"}},{"$f":"AND(#REF!,\"ZHH871PYdUs=\")","v":{"$error":"#REF!"}},{"$f":"AND(#REF!,\"ZHH871PYdUw=\")","v":{"$error":"#REF!"}},{"$f":"AND(#REF!,\"ZHH871PYdU0=\")","v":{"$error":"#REF!"}},{"$f":"AND(#REF!,\"ZHH871PYdU4=\")","v":{"$error":"#REF!"}},{"$f":"AND(#REF!,\"ZHH871PYdU8=\")","v":{"$error":"#REF!"}},{"$f":"AND(#REF!,\"ZHH871PYdVA=\")","v":{"$error":"#REF!"}},{"$f":"AND(#REF!,\"ZHH871PYdVE=\")","v":{"$error":"#REF!"}},{"$f":"AND(#REF!,\"ZHH871PYdVI=\")","v":{"$error":"#REF!"}},{"$f":"AND(#REF!,\"ZHH871PYdVM=\")","v":{"$error":"#REF!"}},{"$f":"AND(#REF!,\"ZHH871PYdVQ=\")","v":{"$error":"#REF!"}},{"$f":"AND(#REF!,\"ZHH871PYdVU=\")","v":{"$error":"#REF!"}},{"$f":"AND(#REF!,\"ZHH871PYdVY=\")","v":{"$error":"#REF!"}},{"$f":"AND(#REF!,\"ZHH871PYdVc=\")","v":{"$error":"#REF!"}},{"$f":"AND(#REF!,\"ZHH871PYdVg=\")","v":{"$error":"#REF!"}},{"$f":"AND(#REF!,\"ZHH871PYdVk=\")","v":{"$error":"#REF!"}},{"$f":"AND(#REF!,\"ZHH871PYdVo=\")","v":{"$error":"#REF!"}},{"$f":"AND(#REF!,\"ZHH871PYdVs=\")","v":{"$error":"#REF!"}},{"$f":"AND(#REF!,\"ZHH871PYdVw=\")","v":{"$error":"#REF!"}},{"$f":"AND(#REF!,\"ZHH871PYdV0=\")","v":{"$error":"#REF!"}},{"$f":"AND(#REF!,\"ZHH871PYdV4=\")","v":{"$error":"#REF!"}},{"$f":"AND(#REF!,\"ZHH871PYdV8=\")","v":{"$error":"#REF!"}},{"$f":"AND(#REF!,\"ZHH871PYdWA=\")","v":{"$error":"#REF!"}},{"$f":"AND(#REF!,\"ZHH871PYdWE=\")","v":{"$error":"#REF!"}},{"$f":"AND(#REF!,\"ZHH871PYdWI=\")","v":{"$error":"#REF!"}},{"$f":"AND(#REF!,\"ZHH871PYdWM=\")","v":{"$error":"#REF!"}},{"$f":"AND(#REF!,\"ZHH871PYdWQ=\")","v":{"$error":"#REF!"}},{"$f":"AND(#REF!,\"ZHH871PYdWU=\")","v":{"$error":"#REF!"}},{"$f":"AND(#REF!,\"ZHH871PYdWY=\")","v":{"$error":"#REF!"}},{"$f":"AND(#REF!,\"ZHH871PYdWc=\")","v":{"$error":"#REF!"}},{"$f":"AND(#REF!,\"ZHH871PYdWg=\")","v":{"$error":"#REF!"}},{"$f":"AND(#REF!,\"ZHH871PYdWk=\")","v":{"$error":"#REF!"}},{"$f":"AND(#REF!,\"ZHH871PYdWo=\")","v":{"$error":"#REF!"}},{"$f":"AND(#REF!,\"ZHH871PYdWs=\")","v":{"$error":"#REF!"}},{"$f":"AND(#REF!,\"ZHH871PYdWw=\")","v":{"$error":"#REF!"}},{"$f":"AND(#REF!,\"ZHH871PYdW0=\")","v":{"$error":"#REF!"}},{"$f":"AND(#REF!,\"ZHH871PYdW4=\")","v":{"$error":"#REF!"}},{"$f":"AND(#REF!,\"ZHH871PYdW8=\")","v":{"$error":"#REF!"}},{"$f":"AND(#REF!,\"ZHH871PYdXA=\")","v":{"$error":"#REF!"}},{"$f":"AND(#REF!,\"ZHH871PYdXE=\")","v":{"$error":"#REF!"}},{"$f":"AND(#REF!,\"ZHH871PYdXI=\")","v":{"$error":"#REF!"}},{"$f":"AND(#REF!,\"ZHH871PYdXM=\")","v":{"$error":"#REF!"}},{"$f":"AND(#REF!,\"ZHH871PYdXQ=\")","v":{"$error":"#REF!"}},{"$f":"AND(#REF!,\"ZHH871PYdXU=\")","v":{"$error":"#REF!"}},{"$f":"AND(#REF!,\"ZHH871PYdXY=\")","v":{"$error":"#REF!"}},{"$f":"AND(#REF!,\"ZHH871PYdXc=\")","v":{"$error":"#REF!"}},{"$f":"AND(#REF!,\"ZHH871PYdXg=\")","v":{"$error":"#REF!"}},{"$f":"AND(#REF!,\"ZHH871PYdXk=\")","v":{"$error":"#REF!"}},{"$f":"AND(#REF!,\"ZHH871PYdXo=\")","v":{"$error":"#REF!"}},{"$f":"AND(#REF!,\"ZHH871PYdXs=\")","v":{"$error":"#REF!"}},{"$f":"AND(#REF!,\"ZHH871PYdXw=\")","v":{"$error":"#REF!"}},{"$f":"AND(#REF!,\"ZHH871PYdX0=\")","v":{"$error":"#REF!"}},{"$f":"AND(#REF!,\"ZHH871PYdX4=\")","v":{"$error":"#REF!"}},{"$f":"AND(#REF!,\"ZHH871PYdX8=\")","v":{"$error":"#REF!"}},{"$f":"AND(#REF!,\"ZHH871PYdYA=\")","v":{"$error":"#REF!"}},{"$f":"IF(#REF!,\"ZHH871PYdYE=\",0)","v":{"$error":"#REF!"}},{"$f":"AND(#REF!,\"ZHH871PYdYI=\")","v":{"$error":"#REF!"}},{"$f":"AND(#REF!,\"ZHH871PYdYM=\")","v":{"$error":"#REF!"}},{"$f":"AND(#REF!,\"ZHH871PYdYQ=\")","v":{"$error":"#REF!"}},{"$f":"AND(#REF!,\"ZHH871PYdYU=\")","v":{"$error":"#REF!"}},{"$f":"AND(#REF!,\"ZHH871PYdYY=\")","v":{"$error":"#REF!"}},{"$f":"AND(#REF!,\"ZHH871PYdYc=\")","v":{"$error":"#REF!"}},{"$f":"AND(#REF!,\"ZHH871PYdYg=\")","v":{"$error":"#REF!"}},{"$f":"AND(#REF!,\"ZHH871PYdYk=\")","v":{"$error":"#REF!"}},{"$f":"AND(#REF!,\"ZHH871PYdYo=\")","v":{"$error":"#REF!"}},{"$f":"AND(#REF!,\"ZHH871PYdYs=\")","v":{"$error":"#REF!"}},{"$f":"AND(#REF!,\"ZHH871PYdYw=\")","v":{"$error":"#REF!"}},{"$f":"AND(#REF!,\"ZHH871PYdY0=\")","v":{"$error":"#REF!"}},{"$f":"AND(#REF!,\"ZHH871PYdY4=\")","v":{"$error":"#REF!"}},{"$f":"AND(#REF!,\"ZHH871PYdY8=\")","v":{"$error":"#REF!"}},{"$f":"AND(#REF!,\"ZHH871PYdZA=\")","v":{"$error":"#REF!"}},{"$f":"AND(#REF!,\"ZHH871PYdZE=\")","v":{"$error":"#REF!"}},{"$f":"AND(#REF!,\"ZHH871PYdZI=\")","v":{"$error":"#REF!"}},{"$f":"AND(#REF!,\"ZHH871PYdZM=\")","v":{"$error":"#REF!"}},{"$f":"AND(#REF!,\"ZHH871PYdZQ=\")","v":{"$error":"#REF!"}},{"$f":"AND(#REF!,\"ZHH871PYdZU=\")","v":{"$error":"#REF!"}},{"$f":"AND(#REF!,\"ZHH871PYdZY=\")","v":{"$error":"#REF!"}},{"$f":"AND(#REF!,\"ZHH871PYdZc=\")","v":{"$error":"#REF!"}},{"$f":"AND(#REF!,\"ZHH871PYdZg=\")","v":{"$error":"#REF!"}},{"$f":"AND(#REF!,\"ZHH871PYdZk=\")","v":{"$error":"#REF!"}},{"$f":"AND(#REF!,\"ZHH871PYdZo=\")","v":{"$error":"#REF!"}},{"$f":"AND(#REF!,\"ZHH871PYdZs=\")","v":{"$error":"#REF!"}},{"$f":"AND(#REF!,\"ZHH871PYdZw=\")","v":{"$error":"#REF!"}},{"$f":"AND(#REF!,\"ZHH871PYdZ0=\")","v":{"$error":"#REF!"}},{"$f":"AND(#REF!,\"ZHH871PYdZ4=\")","v":{"$error":"#REF!"}},{"$f":"AND(#REF!,\"ZHH871PYdZ8=\")","v":{"$error":"#REF!"}},{"$f":"AND(#REF!,\"ZHH871PYdaA=\")","v":{"$error":"#REF!"}},{"$f":"AND(#REF!,\"ZHH871PYdaE=\")","v":{"$error":"#REF!"}},{"$f":"AND(#REF!,\"ZHH871PYdaI=\")","v":{"$error":"#REF!"}},{"$f":"AND(#REF!,\"ZHH871PYdaM=\")","v":{"$error":"#REF!"}},{"$f":"AND(#REF!,\"ZHH871PYdaQ=\")","v":{"$error":"#REF!"}},{"$f":"AND(#REF!,\"ZHH871PYdaU=\")","v":{"$error":"#REF!"}},{"$f":"AND(#REF!,\"ZHH871PYdaY=\")","v":{"$error":"#REF!"}},{"$f":"AND(#REF!,\"ZHH871PYdac=\")","v":{"$error":"#REF!"}},{"$f":"AND(#REF!,\"ZHH871PYdag=\")","v":{"$error":"#REF!"}},{"$f":"AND(#REF!,\"ZHH871PYdak=\")","v":{"$error":"#REF!"}},{"$f":"AND(#REF!,\"ZHH871PYdao=\")","v":{"$error":"#REF!"}},{"$f":"AND(#REF!,\"ZHH871PYdas=\")","v":{"$error":"#REF!"}},{"$f":"AND(#REF!,\"ZHH871PYdaw=\")","v":{"$error":"#REF!"}},{"$f":"AND(#REF!,\"ZHH871PYda0=\")","v":{"$error":"#REF!"}},{"$f":"AND(#REF!,\"ZHH871PYda4=\")","v":{"$error":"#REF!"}},{"$f":"AND(#REF!,\"ZHH871PYda8=\")","v":{"$error":"#REF!"}},{"$f":"AND(#REF!,\"ZHH871PYdbA=\")","v":{"$error":"#REF!"}},{"$f":"AND(#REF!,\"ZHH871PYdbE=\")","v":{"$error":"#REF!"}},{"$f":"AND(#REF!,\"ZHH871PYdbI=\")","v":{"$error":"#REF!"}},{"$f":"AND(#REF!,\"ZHH871PYdbM=\")","v":{"$error":"#REF!"}},{"$f":"AND(#REF!,\"ZHH871PYdbQ=\")","v":{"$error":"#REF!"}},{"$f":"AND(#REF!,\"ZHH871PYdbU=\")","v":{"$error":"#REF!"}},{"$f":"AND(#REF!,\"ZHH871PYdbY=\")","v":{"$error":"#REF!"}},{"$f":"AND(#REF!,\"ZHH871PYdbc=\")","v":{"$error":"#REF!"}},{"$f":"AND(#REF!,\"ZHH871PYdbg=\")","v":{"$error":"#REF!"}},{"$f":"AND(#REF!,\"ZHH871PYdbk=\")","v":{"$error":"#REF!"}},{"$f":"AND(#REF!,\"ZHH871PYdbo=\")","v":{"$error":"#REF!"}},{"$f":"AND(#REF!,\"ZHH871PYdbs=\")","v":{"$error":"#REF!"}},{"$f":"AND(#REF!,\"ZHH871PYdbw=\")","v":{"$error":"#REF!"}},{"$f":"AND(#REF!,\"ZHH871PYdb0=\")","v":{"$error":"#REF!"}},{"$f":"AND(#REF!,\"ZHH871PYdb4=\")","v":{"$error":"#REF!"}},{"$f":"AND(#REF!,\"ZHH871PYdb8=\")","v":{"$error":"#REF!"}},{"$f":"AND(#REF!,\"ZHH871PYdcA=\")","v":{"$error":"#REF!"}},{"$f":"AND(#REF!,\"ZHH871PYdcE=\")","v":{"$error":"#REF!"}},{"$f":"AND(#REF!,\"ZHH871PYdcI=\")","v":{"$error":"#REF!"}},{"$f":"AND(#REF!,\"ZHH871PYdcM=\")","v":{"$error":"#REF!"}},{"$f":"AND(#REF!,\"ZHH871PYdcQ=\")","v":{"$error":"#REF!"}},{"$f":"AND(#REF!,\"ZHH871PYdcU=\")","v":{"$error":"#REF!"}},{"$f":"AND(#REF!,\"ZHH871PYdcY=\")","v":{"$error":"#REF!"}},{"$f":"AND(#REF!,\"ZHH871PYdcc=\")","v":{"$error":"#REF!"}},{"$f":"AND(#REF!,\"ZHH871PYdcg=\")","v":{"$error":"#REF!"}},{"$f":"AND(#REF!,\"ZHH871PYdck=\")","v":{"$error":"#REF!"}},{"$f":"AND(#REF!,\"ZHH871PYdco=\")","v":{"$error":"#REF!"}},{"$f":"AND(#REF!,\"ZHH871PYdcs=\")","v":{"$error":"#REF!"}},{"$f":"AND(#REF!,\"ZHH871PYdcw=\")","v":{"$error":"#REF!"}},{"$f":"AND(#REF!,\"ZHH871PYdc0=\")","v":{"$error":"#REF!"}},{"$f":"AND(#REF!,\"ZHH871PYdc4=\")","v":{"$error":"#REF!"}},{"$f":"AND(#REF!,\"ZHH871PYdc8=\")","v":{"$error":"#REF!"}},{"$f":"AND(#REF!,\"ZHH871PYddA=\")","v":{"$error":"#REF!"}},{"$f":"AND(#REF!,\"ZHH871PYddE=\")","v":{"$error":"#REF!"}},{"$f":"AND(#REF!,\"ZHH871PYddI=\")","v":{"$error":"#REF!"}},{"$f":"AND(#REF!,\"ZHH871PYddM=\")","v":{"$error":"#REF!"}},{"$f":"AND(#REF!,\"ZHH871PYddQ=\")","v":{"$error":"#REF!"}},{"$f":"AND(#REF!,\"ZHH871PYddU=\")","v":{"$error":"#REF!"}},{"$f":"AND(#REF!,\"ZHH871PYddY=\")","v":{"$error":"#REF!"}},{"$f":"AND(#REF!,\"ZHH871PYddc=\")","v":{"$error":"#REF!"}},{"$f":"AND(#REF!,\"ZHH871PYddg=\")","v":{"$error":"#REF!"}},{"$f":"AND(#REF!,\"ZHH871PYddk=\")","v":{"$error":"#REF!"}},{"$f":"AND(#REF!,\"ZHH871PYddo=\")","v":{"$error":"#REF!"}},{"$f":"AND(#REF!,\"ZHH871PYdds=\")","v":{"$error":"#REF!"}},{"$f":"AND(#REF!,\"ZHH871PYddw=\")","v":{"$error":"#REF!"}},{"$f":"AND(#REF!,\"ZHH871PYdd0=\")","v":{"$error":"#REF!"}},{"$f":"AND(#REF!,\"ZHH871PYdd4=\")","v":{"$error":"#REF!"}},{"$f":"AND(#REF!,\"ZHH871PYdd8=\")","v":{"$error":"#REF!"}},{"$f":"AND(#REF!,\"ZHH871PYdeA=\")","v":{"$error":"#REF!"}},{"$f":"AND(#REF!,\"ZHH871PYdeE=\")","v":{"$error":"#REF!"}},{"$f":"AND(#REF!,\"ZHH871PYdeI=\")","v":{"$error":"#REF!"}},{"$f":"AND(#REF!,\"ZHH871PYdeM=\")","v":{"$error":"#REF!"}},{"$f":"AND(#REF!,\"ZHH871PYdeQ=\")","v":{"$error":"#REF!"}},{"$f":"AND(#REF!,\"ZHH871PYdeU=\")","v":{"$error":"#REF!"}},{"$f":"AND(#REF!,\"ZHH871PYdeY=\")","v":{"$error":"#REF!"}},{"$f":"AND(#REF!,\"ZHH871PYdec=\")","v":{"$error":"#REF!"}},{"$f":"AND(#REF!,\"ZHH871PYdeg=\")","v":{"$error":"#REF!"}},{"$f":"AND(#REF!,\"ZHH871PYdek=\")","v":{"$error":"#REF!"}},{"$f":"AND(#REF!,\"ZHH871PYdeo=\")","v":{"$error":"#REF!"}},{"$f":"AND(#REF!,\"ZHH871PYdes=\")","v":{"$error":"#REF!"}},{"$f":"AND(#REF!,\"ZHH871PYdew=\")","v":{"$error":"#REF!"}},{"$f":"AND(#REF!,\"ZHH871PYde0=\")","v":{"$error":"#REF!"}},{"$f":"AND(#REF!,\"ZHH871PYde4=\")","v":{"$error":"#REF!"}},{"$f":"AND(#REF!,\"ZHH871PYde8=\")","v":{"$error":"#REF!"}},{"$f":"AND(#REF!,\"ZHH871PYdfA=\")","v":{"$error":"#REF!"}},{"$f":"AND(#REF!,\"ZHH871PYdfE=\")","v":{"$error":"#REF!"}},{"$f":"AND(#REF!,\"ZHH871PYdfI=\")","v":{"$error":"#REF!"}},{"$f":"AND(#REF!,\"ZHH871PYdfM=\")","v":{"$error":"#REF!"}},{"$f":"AND(#REF!,\"ZHH871PYdfQ=\")","v":{"$error":"#REF!"}},{"$f":"AND(#REF!,\"ZHH871PYdfU=\")","v":{"$error":"#REF!"}},{"$f":"AND(#REF!,\"ZHH871PYdfY=\")","v":{"$error":"#REF!"}},{"$f":"AND(#REF!,\"ZHH871PYdfc=\")","v":{"$error":"#REF!"}},{"$f":"AND(#REF!,\"ZHH871PYdfg=\")","v":{"$error":"#REF!"}},{"$f":"AND(#REF!,\"ZHH871PYdfk=\")","v":{"$error":"#REF!"}},{"$f":"AND(#REF!,\"ZHH871PYdfo=\")","v":{"$error":"#REF!"}},{"$f":"AND(#REF!,\"ZHH871PYdfs=\")","v":{"$error":"#REF!"}},{"$f":"AND(#REF!,\"ZHH871PYdfw=\")","v":{"$error":"#REF!"}},{"$f":"AND(#REF!,\"ZHH871PYdf0=\")","v":{"$error":"#REF!"}},{"$f":"AND(#REF!,\"ZHH871PYdf4=\")","v":{"$error":"#REF!"}},{"$f":"AND(#REF!,\"ZHH871PYdf8=\")","v":{"$error":"#REF!"}}]
[{"$f":"AND(#REF!,\"atZTe21XXwA=\")","v":{"$error":"#REF!"}},{"$f":"AND(#REF!,\"atZTe21XXwE=\")","v":{"$error":"#REF!"}},{"$f":"AND(#REF!,\"atZTe21XXwI=\")","v":{"$error":"#REF!"}},{"$f":"AND(#REF!,\"atZTe21XXwM=\")","v":{"$error":"#REF!"}},{"$f":"AND(#REF!,\"atZTe21XXwQ=\")","v":{"$error":"#REF!"}},{"$f":"AND(#REF!,\"atZTe21XXwU=\")","v":{"$error":"#REF!"}},{"$f":"AND(#REF!,\"atZTe21XXwY=\")","v":{"$error":"#REF!"}},{"$f":"AND(#REF!,\"atZTe21XXwc=\")","v":{"$error":"#REF!"}},{"$f":"AND(#REF!,\"atZTe21XXwg=\")","v":{"$error":"#REF!"}},{"$f":"AND(#REF!,\"atZTe21XXwk=\")","v":{"$error":"#REF!"}},{"$f":"AND(#REF!,\"atZTe21XXwo=\")","v":{"$error":"#REF!"}},{"$f":"AND(#REF!,\"atZTe21XXws=\")","v":{"$error":"#REF!"}},{"$f":"AND(#REF!,\"atZTe21XXww=\")","v":{"$error":"#REF!"}},{"$f":"AND(#REF!,\"atZTe21XXw0=\")","v":{"$error":"#REF!"}},{"$f":"AND(#REF!,\"atZTe21XXw4=\")","v":{"$error":"#REF!"}},{"$f":"AND(#REF!,\"atZTe21XXw8=\")","v":{"$error":"#REF!"}},{"$f":"AND(#REF!,\"atZTe21XXxA=\")","v":{"$error":"#REF!"}},{"$f":"AND(#REF!,\"atZTe21XXxE=\")","v":{"$error":"#REF!"}},{"$f":"AND(#REF!,\"atZTe21XXxI=\")","v":{"$error":"#REF!"}},{"$f":"AND(#REF!,\"atZTe21XXxM=\")","v":{"$error":"#REF!"}},{"$f":"AND(#REF!,\"atZTe21XXxQ=\")","v":{"$error":"#REF!"}},{"$f":"AND(#REF!,\"atZTe21XXxU=\")","v":{"$error":"#REF!"}},{"$f":"AND(#REF!,\"atZTe21XXxY=\")","v":{"$error":"#REF!"}},{"$f":"AND(#REF!,\"atZTe21XXxc=\")","v":{"$error":"#REF!"}},{"$f":"AND(#REF!,\"atZTe21XXxg=\")","v":{"$error":"#REF!"}},{"$f":"AND(#REF!,\"atZTe21XXxk=\")","v":{"$error":"#REF!"}},{"$f":"AND(#REF!,\"atZTe21XXxo=\")","v":{"$error":"#REF!"}},{"$f":"AND(#REF!,\"atZTe21XXxs=\")","v":{"$error":"#REF!"}},{"$f":"AND(#REF!,\"atZTe21XXxw=\")","v":{"$error":"#REF!"}},{"$f":"AND(#REF!,\"atZTe21XXx0=\")","v":{"$error":"#REF!"}},{"$f":"AND(#REF!,\"atZTe21XXx4=\")","v":{"$error":"#REF!"}},{"$f":"AND(#REF!,\"atZTe21XXx8=\")","v":{"$error":"#REF!"}},{"$f":"AND(#REF!,\"atZTe21XXyA=\")","v":{"$error":"#REF!"}},{"$f":"AND(#REF!,\"atZTe21XXyE=\")","v":{"$error":"#REF!"}},{"$f":"AND(#REF!,\"atZTe21XXyI=\")","v":{"$error":"#REF!"}},{"$f":"AND(#REF!,\"atZTe21XXyM=\")","v":{"$error":"#REF!"}},{"$f":"AND(#REF!,\"atZTe21XXyQ=\")","v":{"$error":"#REF!"}},{"$f":"AND(#REF!,\"atZTe21XXyU=\")","v":{"$error":"#REF!"}},{"$f":"AND(#REF!,\"atZTe21XXyY=\")","v":{"$error":"#REF!"}},{"$f":"AND(#REF!,\"atZTe21XXyc=\")","v":{"$error":"#REF!"}},{"$f":"AND(#REF!,\"atZTe21XXyg=\")","v":{"$error":"#REF!"}},{"$f":"AND(#REF!,\"atZTe21XXyk=\")","v":{"$error":"#REF!"}},{"$f":"AND(#REF!,\"atZTe21XXyo=\")","v":{"$error":"#REF!"}},{"$f":"AND(#REF!,\"atZTe21XXys=\")","v":{"$error":"#REF!"}},{"$f":"AND(#REF!,\"atZTe21XXyw=\")","v":{"$error":"#REF!"}},{"$f":"AND(#REF!,\"atZTe21XXy0=\")","v":{"$error":"#REF!"}},{"$f":"AND(#REF!,\"atZTe21XXy4=\")","v":{"$error":"#REF!"}},{"$f":"AND(#REF!,\"atZTe21XXy8=\")","v":{"$error":"#REF!"}},{"$f":"AND(#REF!,\"atZTe21XXzA=\")","v":{"$error":"#REF!"}},{"$f":"AND(#REF!,\"atZTe21XXzE=\")","v":{"$error":"#REF!"}},{"$f":"AND(#REF!,\"atZTe21XXzI=\")","v":{"$error":"#REF!"}},{"$f":"AND(#REF!,\"atZTe21XXzM=\")","v":{"$error":"#REF!"}},{"$f":"AND(#REF!,\"atZTe21XXzQ=\")","v":{"$error":"#REF!"}},{"$f":"AND(#REF!,\"atZTe21XXzU=\")","v":{"$error":"#REF!"}},{"$f":"AND(#REF!,\"atZTe21XXzY=\")","v":{"$error":"#REF!"}},{"$f":"AND(#REF!,\"atZTe21XXzc=\")","v":{"$error":"#REF!"}},{"$f":"AND(#REF!,\"atZTe21XXzg=\")","v":{"$error":"#REF!"}},{"$f":"AND(#REF!,\"atZTe21XXzk=\")","v":{"$error":"#REF!"}},{"$f":"AND(#REF!,\"atZTe21XXzo=\")","v":{"$error":"#REF!"}},{"$f":"AND(#REF!,\"atZTe21XXzs=\")","v":{"$error":"#REF!"}},{"$f":"AND(#REF!,\"atZTe21XXzw=\")","v":{"$error":"#REF!"}},{"$f":"AND(#REF!,\"atZTe21XXz0=\")","v":{"$error":"#REF!"}},{"$f":"AND(#REF!,\"atZTe21XXz4=\")","v":{"$error":"#REF!"}},{"$f":"AND(#REF!,\"atZTe21XXz8=\")","v":{"$error":"#REF!"}},{"$f":"AND(#REF!,\"atZTe21XX0A=\")","v":{"$error":"#REF!"}},{"$f":"AND(#REF!,\"atZTe21XX0E=\")","v":{"$error":"#REF!"}},{"$f":"AND(#REF!,\"atZTe21XX0I=\")","v":{"$error":"#REF!"}},{"$f":"AND(#REF!,\"atZTe21XX0M=\")","v":{"$error":"#REF!"}},{"$f":"AND(#REF!,\"atZTe21XX0Q=\")","v":{"$error":"#REF!"}},{"$f":"AND(#REF!,\"atZTe21XX0U=\")","v":{"$error":"#REF!"}},{"$f":"AND(#REF!,\"atZTe21XX0Y=\")","v":{"$error":"#REF!"}},{"$f":"AND(#REF!,\"atZTe21XX0c=\")","v":{"$error":"#REF!"}},{"$f":"IF(#REF!,\"atZTe21XX0g=\",0)","v":{"$error":"#REF!"}},{"$f":"AND(#REF!,\"atZTe21XX0k=\")","v":{"$error":"#REF!"}},{"$f":"AND(#REF!,\"atZTe21XX0o=\")","v":{"$error":"#REF!"}},{"$f":"AND(#REF!,\"atZTe21XX0s=\")","v":{"$error":"#REF!"}},{"$f":"AND(#REF!,\"atZTe21XX0w=\")","v":{"$error":"#REF!"}},{"$f":"AND(#REF!,\"atZTe21XX00=\")","v":{"$error":"#REF!"}},{"$f":"AND(#REF!,\"atZTe21XX04=\")","v":{"$error":"#REF!"}},{"$f":"AND(#REF!,\"atZTe21XX08=\")","v":{"$error":"#REF!"}},{"$f":"AND(#REF!,\"atZTe21XX1A=\")","v":{"$error":"#REF!"}},{"$f":"AND(#REF!,\"atZTe21XX1E=\")","v":{"$error":"#REF!"}},{"$f":"AND(#REF!,\"atZTe21XX1I=\")","v":{"$error":"#REF!"}},{"$f":"AND(#REF!,\"atZTe21XX1M=\")","v":{"$error":"#REF!"}},{"$f":"AND(#REF!,\"atZTe21XX1Q=\")","v":{"$error":"#REF!"}},{"$f":"AND(#REF!,\"atZTe21XX1U=\")","v":{"$error":"#REF!"}},{"$f":"AND(#REF!,\"atZTe21XX1Y=\")","v":{"$error":"#REF!"}},{"$f":"AND(#REF!,\"atZTe21XX1c=\")","v":{"$error":"#REF!"}},{"$f":"AND(#REF!,\"atZTe21XX1g=\")","v":{"$error":"#REF!"}},{"$f":"AND(#REF!,\"atZTe21XX1k=\")","v":{"$error":"#REF!"}},{"$f":"AND(#REF!,\"atZTe21XX1o=\")","v":{"$error":"#REF!"}},{"$f":"AND(#REF!,\"atZTe21XX1s=\")","v":{"$error":"#REF!"}},{"$f":"AND(#REF!,\"atZTe21XX1w=\")","v":{"$error":"#REF!"}},{"$f":"AND(#REF!,\"atZTe21XX10=\")","v":{"$error":"#REF!"}},{"$f":"AND(#REF!,\"atZTe21XX14=\")","v":{"$error":"#REF!"}},{"$f":"AND(#REF!,\"atZTe21XX18=\")","v":{"$error":"#REF!"}},{"$f":"AND(#REF!,\"atZTe21XX2A=\")","v":{"$error":"#REF!"}},{"$f":"AND(#REF!,\"atZTe21XX2E=\")","v":{"$error":"#REF!"}},{"$f":"AND(#REF!,\"atZTe21XX2I=\")","v":{"$error":"#REF!"}},{"$f":"AND(#REF!,\"atZTe21XX2M=\")","v":{"$error":"#REF!"}},{"$f":"AND(#REF!,\"atZTe21XX2Q=\")","v":{"$error":"#REF!"}},{"$f":"AND(#REF!,\"atZTe21XX2U=\")","v":{"$error":"#REF!"}},{"$f":"AND(#REF!,\"atZTe21XX2Y=\")","v":{"$error":"#REF!"}},{"$f":"AND(#REF!,\"atZTe21XX2c=\")","v":{"$error":"#REF!"}},{"$f":"AND(#REF!,\"atZTe21XX2g=\")","v":{"$error":"#REF!"}},{"$f":"AND(#REF!,\"atZTe21XX2k=\")","v":{"$error":"#REF!"}},{"$f":"AND(#REF!,\"atZTe21XX2o=\")","v":{"$error":"#REF!"}},{"$f":"AND(#REF!,\"atZTe21XX2s=\")","v":{"$error":"#REF!"}},{"$f":"AND(#REF!,\"atZTe21XX2w=\")","v":{"$error":"#REF!"}},{"$f":"AND(#REF!,\"atZTe21XX20=\")","v":{"$error":"#REF!"}},{"$f":"AND(#REF!,\"atZTe21XX24=\")","v":{"$error":"#REF!"}},{"$f":"AND(#REF!,\"atZTe21XX28=\")","v":{"$error":"#REF!"}},{"$f":"AND(#REF!,\"atZTe21XX3A=\")","v":{"$error":"#REF!"}},{"$f":"AND(#REF!,\"atZTe21XX3E=\")","v":{"$error":"#REF!"}},{"$f":"AND(#REF!,\"atZTe21XX3I=\")","v":{"$error":"#REF!"}},{"$f":"AND(#REF!,\"atZTe21XX3M=\")","v":{"$error":"#REF!"}},{"$f":"AND(#REF!,\"atZTe21XX3Q=\")","v":{"$error":"#REF!"}},{"$f":"AND(#REF!,\"atZTe21XX3U=\")","v":{"$error":"#REF!"}},{"$f":"AND(#REF!,\"atZTe21XX3Y=\")","v":{"$error":"#REF!"}},{"$f":"AND(#REF!,\"atZTe21XX3c=\")","v":{"$error":"#REF!"}},{"$f":"AND(#REF!,\"atZTe21XX3g=\")","v":{"$error":"#REF!"}},{"$f":"AND(#REF!,\"atZTe21XX3k=\")","v":{"$error":"#REF!"}},{"$f":"AND(#REF!,\"atZTe21XX3o=\")","v":{"$error":"#REF!"}},{"$f":"AND(#REF!,\"atZTe21XX3s=\")","v":{"$error":"#REF!"}},{"$f":"AND(#REF!,\"atZTe21XX3w=\")","v":{"$error":"#REF!"}},{"$f":"AND(#REF!,\"atZTe21XX30=\")","v":{"$error":"#REF!"}},{"$f":"AND(#REF!,\"atZTe21XX34=\")","v":{"$error":"#REF!"}},{"$f":"AND(#REF!,\"atZTe21XX38=\")","v":{"$error":"#REF!"}},{"$f":"AND(#REF!,\"atZTe21XX4A=\")","v":{"$error":"#REF!"}},{"$f":"AND(#REF!,\"atZTe21XX4E=\")","v":{"$error":"#REF!"}},{"$f":"AND(#REF!,\"atZTe21XX4I=\")","v":{"$error":"#REF!"}},{"$f":"AND(#REF!,\"atZTe21XX4M=\")","v":{"$error":"#REF!"}},{"$f":"AND(#REF!,\"atZTe21XX4Q=\")","v":{"$error":"#REF!"}},{"$f":"AND(#REF!,\"atZTe21XX4U=\")","v":{"$error":"#REF!"}},{"$f":"AND(#REF!,\"atZTe21XX4Y=\")","v":{"$error":"#REF!"}},{"$f":"AND(#REF!,\"atZTe21XX4c=\")","v":{"$error":"#REF!"}},{"$f":"AND(#REF!,\"atZTe21XX4g=\")","v":{"$error":"#REF!"}},{"$f":"AND(#REF!,\"atZTe21XX4k=\")","v":{"$error":"#REF!"}},{"$f":"AND(#REF!,\"atZTe21XX4o=\")","v":{"$error":"#REF!"}},{"$f":"AND(#REF!,\"atZTe21XX4s=\")","v":{"$error":"#REF!"}},{"$f":"AND(#REF!,\"atZTe21XX4w=\")","v":{"$error":"#REF!"}},{"$f":"AND(#REF!,\"atZTe21XX40=\")","v":{"$error":"#REF!"}},{"$f":"AND(#REF!,\"atZTe21XX44=\")","v":{"$error":"#REF!"}},{"$f":"AND(#REF!,\"atZTe21XX48=\")","v":{"$error":"#REF!"}},{"$f":"AND(#REF!,\"atZTe21XX5A=\")","v":{"$error":"#REF!"}},{"$f":"AND(#REF!,\"atZTe21XX5E=\")","v":{"$error":"#REF!"}},{"$f":"AND(#REF!,\"atZTe21XX5I=\")","v":{"$error":"#REF!"}},{"$f":"AND(#REF!,\"atZTe21XX5M=\")","v":{"$error":"#REF!"}},{"$f":"AND(#REF!,\"atZTe21XX5Q=\")","v":{"$error":"#REF!"}},{"$f":"AND(#REF!,\"atZTe21XX5U=\")","v":{"$error":"#REF!"}},{"$f":"AND(#REF!,\"atZTe21XX5Y=\")","v":{"$error":"#REF!"}},{"$f":"AND(#REF!,\"atZTe21XX5c=\")","v":{"$error":"#REF!"}},{"$f":"AND(#REF!,\"atZTe21XX5g=\")","v":{"$error":"#REF!"}},{"$f":"AND(#REF!,\"atZTe21XX5k=\")","v":{"$error":"#REF!"}},{"$f":"AND(#REF!,\"atZTe21XX5o=\")","v":{"$error":"#REF!"}},{"$f":"AND(#REF!,\"atZTe21XX5s=\")","v":{"$error":"#REF!"}},{"$f":"AND(#REF!,\"atZTe21XX5w=\")","v":{"$error":"#REF!"}},{"$f":"AND(#REF!,\"atZTe21XX50=\")","v":{"$error":"#REF!"}},{"$f":"AND(#REF!,\"atZTe21XX54=\")","v":{"$error":"#REF!"}},{"$f":"AND(#REF!,\"atZTe21XX58=\")","v":{"$error":"#REF!"}},{"$f":"AND(#REF!,\"atZTe21XX6A=\")","v":{"$error":"#REF!"}},{"$f":"AND(#REF!,\"atZTe21XX6E=\")","v":{"$error":"#REF!"}},{"$f":"AND(#REF!,\"atZTe21XX6I=\")","v":{"$error":"#REF!"}},{"$f":"AND(#REF!,\"atZTe21XX6M=\")","v":{"$error":"#REF!"}},{"$f":"AND(#REF!,\"atZTe21XX6Q=\")","v":{"$error":"#REF!"}},{"$f":"AND(#REF!,\"atZTe21XX6U=\")","v":{"$error":"#REF!"}},{"$f":"AND(#REF!,\"atZTe21XX6Y=\")","v":{"$error":"#REF!"}},{"$f":"AND(#REF!,\"atZTe21XX6c=\")","v":{"$error":"#REF!"}},{"$f":"AND(#REF!,\"atZTe21XX6g=\")","v":{"$error":"#REF!"}},{"$f":"AND(#REF!,\"atZTe21XX6k=\")","v":{"$error":"#REF!"}},{"$f":"AND(#REF!,\"atZTe21XX6o=\")","v":{"$error":"#REF!"}},{"$f":"AND(#REF!,\"atZTe21XX6s=\")","v":{"$error":"#REF!"}},{"$f":"AND(#REF!,\"atZTe21XX6w=\")","v":{"$error":"#REF!"}},{"$f":"AND(#REF!,\"atZTe21XX60=\")","v":{"$error":"#REF!"}},{"$f":"AND(#REF!,\"atZTe21XX64=\")","v":{"$error":"#REF!"}},{"$f":"AND(#REF!,\"atZTe21XX68=\")","v":{"$error":"#REF!"}},{"$f":"AND(#REF!,\"atZTe21XX7A=\")","v":{"$error":"#REF!"}},{"$f":"AND(#REF!,\"atZTe21XX7E=\")","v":{"$error":"#REF!"}},{"$f":"AND(#REF!,\"atZTe21XX7I=\")","v":{"$error":"#REF!"}},{"$f":"AND(#REF!,\"atZTe21XX7M=\")","v":{"$error":"#REF!"}},{"$f":"AND(#REF!,\"atZTe21XX7Q=\")","v":{"$error":"#REF!"}},{"$f":"AND(#REF!,\"atZTe21XX7U=\")","v":{"$error":"#REF!"}},{"$f":"AND(#REF!,\"atZTe21XX7Y=\")","v":{"$error":"#REF!"}},{"$f":"AND(#REF!,\"atZTe21XX7c=\")","v":{"$error":"#REF!"}},{"$f":"AND(#REF!,\"atZTe21XX7g=\")","v":{"$error":"#REF!"}},{"$f":"AND(#REF!,\"atZTe21XX7k=\")","v":{"$error":"#REF!"}},{"$f":"AND(#REF!,\"atZTe21XX7o=\")","v":{"$error":"#REF!"}},{"$f":"AND(#REF!,\"atZTe21XX7s=\")","v":{"$error":"#REF!"}},{"$f":"AND(#REF!,\"atZTe21XX7w=\")","v":{"$error":"#REF!"}},{"$f":"AND(#REF!,\"atZTe21XX70=\")","v":{"$error":"#REF!"}},{"$f":"AND(#REF!,\"atZTe21XX74=\")","v":{"$error":"#REF!"}},{"$f":"AND(#REF!,\"atZTe21XX78=\")","v":{"$error":"#REF!"}},{"$f":"AND(#REF!,\"atZTe21XX8A=\")","v":{"$error":"#REF!"}},{"$f":"AND(#REF!,\"atZTe21XX8E=\")","v":{"$error":"#REF!"}},{"$f":"AND(#REF!,\"atZTe21XX8I=\")","v":{"$error":"#REF!"}},{"$f":"AND(#REF!,\"atZTe21XX8M=\")","v":{"$error":"#REF!"}},{"$f":"AND(#REF!,\"atZTe21XX8Q=\")","v":{"$error":"#REF!"}},{"$f":"AND(#REF!,\"atZTe21XX8U=\")","v":{"$error":"#REF!"}},{"$f":"AND(#REF!,\"atZTe21XX8Y=\")","v":{"$error":"#REF!"}},{"$f":"AND(#REF!,\"atZTe21XX8c=\")","v":{"$error":"#REF!"}},{"$f":"AND(#REF!,\"atZTe21XX8g=\")","v":{"$error":"#REF!"}},{"$f":"AND(#REF!,\"atZTe21XX8k=\")","v":{"$error":"#REF!"}},{"$f":"AND(#REF!,\"atZTe21XX8o=\")","v":{"$error":"#REF!"}},{"$f":"AND(#REF!,\"atZTe21XX8s=\")","v":{"$error":"#REF!"}},{"$f":"AND(#REF!,\"atZTe21XX8w=\")","v":{"$error":"#REF!"}},{"$f":"AND(#REF!,\"atZTe21XX80=\")","v":{"$error":"#REF!"}},{"$f":"AND(#REF!,\"atZTe21XX84=\")","v":{"$error":"#REF!"}},{"$f":"AND(#REF!,\"atZTe21XX88=\")","v":{"$error":"#REF!"}},{"$f":"AND(#REF!,\"atZTe21XX9A=\")","v":{"$error":"#REF!"}},{"$f":"AND(#REF!,\"atZTe21XX9E=\")","v":{"$error":"#REF!"}},{"$f":"AND(#REF!,\"atZTe21XX9I=\")","v":{"$error":"#REF!"}},{"$f":"AND(#REF!,\"atZTe21XX9M=\")","v":{"$error":"#REF!"}},{"$f":"AND(#REF!,\"atZTe21XX9Q=\")","v":{"$error":"#REF!"}},{"$f":"AND(#REF!,\"atZTe21XX9U=\")","v":{"$error":"#REF!"}},{"$f":"AND(#REF!,\"atZTe21XX9Y=\")","v":{"$error":"#REF!"}},{"$f":"AND(#REF!,\"atZTe21XX9c=\")","v":{"$error":"#REF!"}},{"$f":"AND(#REF!,\"atZTe21XX9g=\")","v":{"$error":"#REF!"}},{"$f":"AND(#REF!,\"atZTe21XX9k=\")","v":{"$error":"#REF!"}},{"$f":"AND(#REF!,\"atZTe21XX9o=\")","v":{"$error":"#REF!"}},{"$f":"AND(#REF!,\"atZTe21XX9s=\")","v":{"$error":"#REF!"}},{"$f":"AND(#REF!,\"atZTe21XX9w=\")","v":{"$error":"#REF!"}},{"$f":"AND(#REF!,\"atZTe21XX90=\")","v":{"$error":"#REF!"}},{"$f":"AND(#REF!,\"atZTe21XX94=\")","v":{"$error":"#REF!"}},{"$f":"AND(#REF!,\"atZTe21XX98=\")","v":{"$error":"#REF!"}},{"$f":"AND(#REF!,\"atZTe21XX+A=\")","v":{"$error":"#REF!"}},{"$f":"AND(#REF!,\"atZTe21XX+E=\")","v":{"$error":"#REF!"}},{"$f":"AND(#REF!,\"atZTe21XX+I=\")","v":{"$error":"#REF!"}},{"$f":"AND(#REF!,\"atZTe21XX+M=\")","v":{"$error":"#REF!"}},{"$f":"AND(#REF!,\"atZTe21XX+Q=\")","v":{"$error":"#REF!"}},{"$f":"AND(#REF!,\"atZTe21XX+U=\")","v":{"$error":"#REF!"}},{"$f":"AND(#REF!,\"atZTe21XX+Y=\")","v":{"$error":"#REF!"}},{"$f":"AND(#REF!,\"atZTe21XX+c=\")","v":{"$error":"#REF!"}},{"$f":"AND(#REF!,\"atZTe21XX+g=\")","v":{"$error":"#REF!"}},{"$f":"AND(#REF!,\"atZTe21XX+k=\")","v":{"$error":"#REF!"}},{"$f":"AND(#REF!,\"atZTe21XX+o=\")","v":{"$error":"#REF!"}},{"$f":"AND(#REF!,\"atZTe21XX+s=\")","v":{"$error":"#REF!"}},{"$f":"AND(#REF!,\"atZTe21XX+w=\")","v":{"$error":"#REF!"}},{"$f":"AND(#REF!,\"atZTe21XX+0=\")","v":{"$error":"#REF!"}},{"$f":"AND(#REF!,\"atZTe21XX+4=\")","v":{"$error":"#REF!"}},{"$f":"AND(#REF!,\"atZTe21XX+8=\")","v":{"$error":"#REF!"}},{"$f":"AND(#REF!,\"atZTe21XX/A=\")","v":{"$error":"#REF!"}},{"$f":"AND(#REF!,\"atZTe21XX/E=\")","v":{"$error":"#REF!"}},{"$f":"AND(#REF!,\"atZTe21XX/I=\")","v":{"$error":"#REF!"}},{"$f":"AND(#REF!,\"atZTe21XX/M=\")","v":{"$error":"#REF!"}},{"$f":"AND(#REF!,\"atZTe21XX/Q=\")","v":{"$error":"#REF!"}},{"$f":"AND(#REF!,\"atZTe21XX/U=\")","v":{"$error":"#REF!"}},{"$f":"AND(#REF!,\"atZTe21XX/Y=\")","v":{"$error":"#REF!"}},{"$f":"AND(#REF!,\"atZTe21XX/c=\")","v":{"$error":"#REF!"}},{"$f":"AND(#REF!,\"atZTe21XX/g=\")","v":{"$error":"#REF!"}},{"$f":"AND(#REF!,\"atZTe21XX/k=\")","v":{"$error":"#REF!"}},{"$f":"AND(#REF!,\"atZTe21XX/o=\")","v":{"$error":"#REF!"}},{"$f":"AND(#REF!,\"atZTe21XX/s=\")","v":{"$error":"#REF!"}},{"$f":"AND(#REF!,\"atZTe21XX/w=\")","v":{"$error":"#REF!"}},{"$f":"AND(#REF!,\"atZTe21XX/0=\")","v":{"$error":"#REF!"}},{"$f":"AND(#REF!,\"atZTe21XX/4=\")","v":{"$error":"#REF!"}},{"$f":"AND(#REF!,\"atZTe21XX/8=\")","v":{"$error":"#REF!"}}]
[{"$f":"AND(#REF!,\"FrsrfVXdcAA=\")","v":{"$error":"#REF!"}},{"$f":"AND(#REF!,\"FrsrfVXdcAE=\")","v":{"$error":"#REF!"}},{"$f":"AND(#REF!,\"FrsrfVXdcAI=\")","v":{"$error":"#REF!"}},{"$f":"AND(#REF!,\"FrsrfVXdcAM=\")","v":{"$error":"#REF!"}},{"$f":"AND(#REF!,\"FrsrfVXdcAQ=\")","v":{"$error":"#REF!"}},{"$f":"AND(#REF!,\"FrsrfVXdcAU=\")","v":{"$error":"#REF!"}},{"$f":"AND(#REF!,\"FrsrfVXdcAY=\")","v":{"$error":"#REF!"}},{"$f":"AND(#REF!,\"FrsrfVXdcAc=\")","v":{"$error":"#REF!"}},{"$f":"AND(#REF!,\"FrsrfVXdcAg=\")","v":{"$error":"#REF!"}},{"$f":"AND(#REF!,\"FrsrfVXdcAk=\")","v":{"$error":"#REF!"}},{"$f":"AND(#REF!,\"FrsrfVXdcAo=\")","v":{"$error":"#REF!"}},{"$f":"AND(#REF!,\"FrsrfVXdcAs=\")","v":{"$error":"#REF!"}},{"$f":"AND(#REF!,\"FrsrfVXdcAw=\")","v":{"$error":"#REF!"}},{"$f":"AND(#REF!,\"FrsrfVXdcA0=\")","v":{"$error":"#REF!"}},{"$f":"AND(#REF!,\"FrsrfVXdcA4=\")","v":{"$error":"#REF!"}},{"$f":"IF(#REF!,\"FrsrfVXdcA8=\",0)","v":{"$error":"#REF!"}},{"$f":"AND(#REF!,\"FrsrfVXdcBA=\")","v":{"$error":"#REF!"}},{"$f":"AND(#REF!,\"FrsrfVXdcBE=\")","v":{"$error":"#REF!"}},{"$f":"AND(#REF!,\"FrsrfVXdcBI=\")","v":{"$error":"#REF!"}},{"$f":"AND(#REF!,\"FrsrfVXdcBM=\")","v":{"$error":"#REF!"}},{"$f":"AND(#REF!,\"FrsrfVXdcBQ=\")","v":{"$error":"#REF!"}},{"$f":"AND(#REF!,\"FrsrfVXdcBU=\")","v":{"$error":"#REF!"}},{"$f":"AND(#REF!,\"FrsrfVXdcBY=\")","v":{"$error":"#REF!"}},{"$f":"AND(#REF!,\"FrsrfVXdcBc=\")","v":{"$error":"#REF!"}},{"$f":"AND(#REF!,\"FrsrfVXdcBg=\")","v":{"$error":"#REF!"}},{"$f":"AND(#REF!,\"FrsrfVXdcBk=\")","v":{"$error":"#REF!"}},{"$f":"AND(#REF!,\"FrsrfVXdcBo=\")","v":{"$error":"#REF!"}},{"$f":"AND(#REF!,\"FrsrfVXdcBs=\")","v":{"$error":"#REF!"}},{"$f":"AND(#REF!,\"FrsrfVXdcBw=\")","v":{"$error":"#REF!"}},{"$f":"AND(#REF!,\"FrsrfVXdcB0=\")","v":{"$error":"#REF!"}},{"$f":"AND(#REF!,\"FrsrfVXdcB4=\")","v":{"$error":"#REF!"}},{"$f":"AND(#REF!,\"FrsrfVXdcB8=\")","v":{"$error":"#REF!"}},{"$f":"AND(#REF!,\"FrsrfVXdcCA=\")","v":{"$error":"#REF!"}},{"$f":"AND(#REF!,\"FrsrfVXdcCE=\")","v":{"$error":"#REF!"}},{"$f":"AND(#REF!,\"FrsrfVXdcCI=\")","v":{"$error":"#REF!"}},{"$f":"AND(#REF!,\"FrsrfVXdcCM=\")","v":{"$error":"#REF!"}},{"$f":"AND(#REF!,\"FrsrfVXdcCQ=\")","v":{"$error":"#REF!"}},{"$f":"AND(#REF!,\"FrsrfVXdcCU=\")","v":{"$error":"#REF!"}},{"$f":"AND(#REF!,\"FrsrfVXdcCY=\")","v":{"$error":"#REF!"}},{"$f":"AND(#REF!,\"FrsrfVXdcCc=\")","v":{"$error":"#REF!"}},{"$f":"AND(#REF!,\"FrsrfVXdcCg=\")","v":{"$error":"#REF!"}},{"$f":"AND(#REF!,\"FrsrfVXdcCk=\")","v":{"$error":"#REF!"}},{"$f":"AND(#REF!,\"FrsrfVXdcCo=\")","v":{"$error":"#REF!"}},{"$f":"AND(#REF!,\"FrsrfVXdcCs=\")","v":{"$error":"#REF!"}},{"$f":"AND(#REF!,\"FrsrfVXdcCw=\")","v":{"$error":"#REF!"}},{"$f":"AND(#REF!,\"FrsrfVXdcC0=\")","v":{"$error":"#REF!"}},{"$f":"AND(#REF!,\"FrsrfVXdcC4=\")","v":{"$error":"#REF!"}},{"$f":"AND(#REF!,\"FrsrfVXdcC8=\")","v":{"$error":"#REF!"}},{"$f":"AND(#REF!,\"FrsrfVXdcDA=\")","v":{"$error":"#REF!"}},{"$f":"AND(#REF!,\"FrsrfVXdcDE=\")","v":{"$error":"#REF!"}},{"$f":"AND(#REF!,\"FrsrfVXdcDI=\")","v":{"$error":"#REF!"}},{"$f":"AND(#REF!,\"FrsrfVXdcDM=\")","v":{"$error":"#REF!"}},{"$f":"AND(#REF!,\"FrsrfVXdcDQ=\")","v":{"$error":"#REF!"}},{"$f":"AND(#REF!,\"FrsrfVXdcDU=\")","v":{"$error":"#REF!"}},{"$f":"AND(#REF!,\"FrsrfVXdcDY=\")","v":{"$error":"#REF!"}},{"$f":"AND(#REF!,\"FrsrfVXdcDc=\")","v":{"$error":"#REF!"}},{"$f":"AND(#REF!,\"FrsrfVXdcDg=\")","v":{"$error":"#REF!"}},{"$f":"AND(#REF!,\"FrsrfVXdcDk=\")","v":{"$error":"#REF!"}},{"$f":"AND(#REF!,\"FrsrfVXdcDo=\")","v":{"$error":"#REF!"}},{"$f":"AND(#REF!,\"FrsrfVXdcDs=\")","v":{"$error":"#REF!"}},{"$f":"AND(#REF!,\"FrsrfVXdcDw=\")","v":{"$error":"#REF!"}},{"$f":"AND(#REF!,\"FrsrfVXdcD0=\")","v":{"$error":"#REF!"}},{"$f":"AND(#REF!,\"FrsrfVXdcD4=\")","v":{"$error":"#REF!"}},{"$f":"AND(#REF!,\"FrsrfVXdcD8=\")","v":{"$error":"#REF!"}},{"$f":"AND(#REF!,\"FrsrfVXdcEA=\")","v":{"$error":"#REF!"}},{"$f":"AND(#REF!,\"FrsrfVXdcEE=\")","v":{"$error":"#REF!"}},{"$f":"AND(#REF!,\"FrsrfVXdcEI=\")","v":{"$error":"#REF!"}},{"$f":"AND(#REF!,\"FrsrfVXdcEM=\")","v":{"$error":"#REF!"}},{"$f":"AND(#REF!,\"FrsrfVXdcEQ=\")","v":{"$error":"#REF!"}},{"$f":"AND(#REF!,\"FrsrfVXdcEU=\")","v":{"$error":"#REF!"}},{"$f":"AND(#REF!,\"FrsrfVXdcEY=\")","v":{"$error":"#REF!"}},{"$f":"AND(#REF!,\"FrsrfVXdcEc=\")","v":{"$error":"#REF!"}},{"$f":"AND(#REF!,\"FrsrfVXdcEg=\")","v":{"$error":"#REF!"}},{"$f":"AND(#REF!,\"FrsrfVXdcEk=\")","v":{"$error":"#REF!"}},{"$f":"AND(#REF!,\"FrsrfVXdcEo=\")","v":{"$error":"#REF!"}},{"$f":"AND(#REF!,\"FrsrfVXdcEs=\")","v":{"$error":"#REF!"}},{"$f":"AND(#REF!,\"FrsrfVXdcEw=\")","v":{"$error":"#REF!"}},{"$f":"AND(#REF!,\"FrsrfVXdcE0=\")","v":{"$error":"#REF!"}},{"$f":"AND(#REF!,\"FrsrfVXdcE4=\")","v":{"$error":"#REF!"}},{"$f":"AND(#REF!,\"FrsrfVXdcE8=\")","v":{"$error":"#REF!"}},{"$f":"AND(#REF!,\"FrsrfVXdcFA=\")","v":{"$error":"#REF!"}},{"$f":"AND(#REF!,\"FrsrfVXdcFE=\")","v":{"$error":"#REF!"}},{"$f":"AND(#REF!,\"FrsrfVXdcFI=\")","v":{"$error":"#REF!"}},{"$f":"AND(#REF!,\"FrsrfVXdcFM=\")","v":{"$error":"#REF!"}},{"$f":"AND(#REF!,\"FrsrfVXdcFQ=\")","v":{"$error":"#REF!"}},{"$f":"AND(#REF!,\"FrsrfVXdcFU=\")","v":{"$error":"#REF!"}},{"$f":"AND(#REF!,\"FrsrfVXdcFY=\")","v":{"$error":"#REF!"}},{"$f":"AND(#REF!,\"FrsrfVXdcFc=\")","v":{"$error":"#REF!"}},{"$f":"AND(#REF!,\"FrsrfVXdcFg=\")","v":{"$error":"#REF!"}},{"$f":"AND(#REF!,\"FrsrfVXdcFk=\")","v":{"$error":"#REF!"}},{"$f":"AND(#REF!,\"FrsrfVXdcFo=\")","v":{"$error":"#REF!"}},{"$f":"AND(#REF!,\"FrsrfVXdcFs=\")","v":{"$error":"#REF!"}},{"$f":"AND(#REF!,\"FrsrfVXdcFw=\")","v":{"$error":"#REF!"}},{"$f":"AND(#REF!,\"FrsrfVXdcF0=\")","v":{"$error":"#REF!"}},{"$f":"AND(#REF!,\"FrsrfVXdcF4=\")","v":{"$error":"#REF!"}},{"$f":"AND(#REF!,\"FrsrfVXdcF8=\")","v":{"$error":"#REF!"}},{"$f":"AND(#REF!,\"FrsrfVXdcGA=\")","v":{"$error":"#REF!"}},{"$f":"AND(#REF!,\"FrsrfVXdcGE=\")","v":{"$error":"#REF!"}},{"$f":"AND(#REF!,\"FrsrfVXdcGI=\")","v":{"$error":"#REF!"}},{"$f":"AND(#REF!,\"FrsrfVXdcGM=\")","v":{"$error":"#REF!"}},{"$f":"AND(#REF!,\"FrsrfVXdcGQ=\")","v":{"$error":"#REF!"}},{"$f":"AND(#REF!,\"FrsrfVXdcGU=\")","v":{"$error":"#REF!"}},{"$f":"AND(#REF!,\"FrsrfVXdcGY=\")","v":{"$error":"#REF!"}},{"$f":"AND(#REF!,\"FrsrfVXdcGc=\")","v":{"$error":"#REF!"}},{"$f":"AND(#REF!,\"FrsrfVXdcGg=\")","v":{"$error":"#REF!"}},{"$f":"AND(#REF!,\"FrsrfVXdcGk=\")","v":{"$error":"#REF!"}},{"$f":"AND(#REF!,\"FrsrfVXdcGo=\")","v":{"$error":"#REF!"}},{"$f":"AND(#REF!,\"FrsrfVXdcGs=\")","v":{"$error":"#REF!"}},{"$f":"AND(#REF!,\"FrsrfVXdcGw=\")","v":{"$error":"#REF!"}},{"$f":"AND(#REF!,\"FrsrfVXdcG0=\")","v":{"$error":"#REF!"}},{"$f":"AND(#REF!,\"FrsrfVXdcG4=\")","v":{"$error":"#REF!"}},{"$f":"AND(#REF!,\"FrsrfVXdcG8=\")","v":{"$error":"#REF!"}},{"$f":"AND(#REF!,\"FrsrfVXdcHA=\")","v":{"$error":"#REF!"}},{"$f":"AND(#REF!,\"FrsrfVXdcHE=\")","v":{"$error":"#REF!"}},{"$f":"AND(#REF!,\"FrsrfVXdcHI=\")","v":{"$error":"#REF!"}},{"$f":"AND(#REF!,\"FrsrfVXdcHM=\")","v":{"$error":"#REF!"}},{"$f":"AND(#REF!,\"FrsrfVXdcHQ=\")","v":{"$error":"#REF!"}},{"$f":"AND(#REF!,\"FrsrfVXdcHU=\")","v":{"$error":"#REF!"}},{"$f":"AND(#REF!,\"FrsrfVXdcHY=\")","v":{"$error":"#REF!"}},{"$f":"AND(#REF!,\"FrsrfVXdcHc=\")","v":{"$error":"#REF!"}},{"$f":"AND(#REF!,\"FrsrfVXdcHg=\")","v":{"$error":"#REF!"}},{"$f":"AND(#REF!,\"FrsrfVXdcHk=\")","v":{"$error":"#REF!"}},{"$f":"AND(#REF!,\"FrsrfVXdcHo=\")","v":{"$error":"#REF!"}},{"$f":"AND(#REF!,\"FrsrfVXdcHs=\")","v":{"$error":"#REF!"}},{"$f":"AND(#REF!,\"FrsrfVXdcHw=\")","v":{"$error":"#REF!"}},{"$f":"AND(#REF!,\"FrsrfVXdcH0=\")","v":{"$error":"#REF!"}},{"$f":"AND(#REF!,\"FrsrfVXdcH4=\")","v":{"$error":"#REF!"}},{"$f":"AND(#REF!,\"FrsrfVXdcH8=\")","v":{"$error":"#REF!"}},{"$f":"AND(#REF!,\"FrsrfVXdcIA=\")","v":{"$error":"#REF!"}},{"$f":"AND(#REF!,\"FrsrfVXdcIE=\")","v":{"$error":"#REF!"}},{"$f":"AND(#REF!,\"FrsrfVXdcII=\")","v":{"$error":"#REF!"}},{"$f":"AND(#REF!,\"FrsrfVXdcIM=\")","v":{"$error":"#REF!"}},{"$f":"AND(#REF!,\"FrsrfVXdcIQ=\")","v":{"$error":"#REF!"}},{"$f":"AND(#REF!,\"FrsrfVXdcIU=\")","v":{"$error":"#REF!"}},{"$f":"AND(#REF!,\"FrsrfVXdcIY=\")","v":{"$error":"#REF!"}},{"$f":"AND(#REF!,\"FrsrfVXdcIc=\")","v":{"$error":"#REF!"}},{"$f":"AND(#REF!,\"FrsrfVXdcIg=\")","v":{"$error":"#REF!"}},{"$f":"AND(#REF!,\"FrsrfVXdcIk=\")","v":{"$error":"#REF!"}},{"$f":"AND(#REF!,\"FrsrfVXdcIo=\")","v":{"$error":"#REF!"}},{"$f":"AND(#REF!,\"FrsrfVXdcIs=\")","v":{"$error":"#REF!"}},{"$f":"AND(#REF!,\"FrsrfVXdcIw=\")","v":{"$error":"#REF!"}},{"$f":"AND(#REF!,\"FrsrfVXdcI0=\")","v":{"$error":"#REF!"}},{"$f":"AND(#REF!,\"FrsrfVXdcI4=\")","v":{"$error":"#REF!"}},{"$f":"AND(#REF!,\"FrsrfVXdcI8=\")","v":{"$error":"#REF!"}},{"$f":"AND(#REF!,\"FrsrfVXdcJA=\")","v":{"$error":"#REF!"}},{"$f":"AND(#REF!,\"FrsrfVXdcJE=\")","v":{"$error":"#REF!"}},{"$f":"AND(#REF!,\"FrsrfVXdcJI=\")","v":{"$error":"#REF!"}},{"$f":"AND(#REF!,\"FrsrfVXdcJM=\")","v":{"$error":"#REF!"}},{"$f":"AND(#REF!,\"FrsrfVXdcJQ=\")","v":{"$error":"#REF!"}},{"$f":"AND(#REF!,\"FrsrfVXdcJU=\")","v":{"$error":"#REF!"}},{"$f":"AND(#REF!,\"FrsrfVXdcJY=\")","v":{"$error":"#REF!"}},{"$f":"AND(#REF!,\"FrsrfVXdcJc=\")","v":{"$error":"#REF!"}},{"$f":"AND(#REF!,\"FrsrfVXdcJg=\")","v":{"$error":"#REF!"}},{"$f":"AND(#REF!,\"FrsrfVXdcJk=\")","v":{"$error":"#REF!"}},{"$f":"AND(#REF!,\"FrsrfVXdcJo=\")","v":{"$error":"#REF!"}},{"$f":"AND(#REF!,\"FrsrfVXdcJs=\")","v":{"$error":"#REF!"}},{"$f":"AND(#REF!,\"FrsrfVXdcJw=\")","v":{"$error":"#REF!"}},{"$f":"AND(#REF!,\"FrsrfVXdcJ0=\")","v":{"$error":"#REF!"}},{"$f":"AND(#REF!,\"FrsrfVXdcJ4=\")","v":{"$error":"#REF!"}},{"$f":"AND(#REF!,\"FrsrfVXdcJ8=\")","v":{"$error":"#REF!"}},{"$f":"AND(#REF!,\"FrsrfVXdcKA=\")","v":{"$error":"#REF!"}},{"$f":"AND(#REF!,\"FrsrfVXdcKE=\")","v":{"$error":"#REF!"}},{"$f":"AND(#REF!,\"FrsrfVXdcKI=\")","v":{"$error":"#REF!"}},{"$f":"AND(#REF!,\"FrsrfVXdcKM=\")","v":{"$error":"#REF!"}},{"$f":"AND(#REF!,\"FrsrfVXdcKQ=\")","v":{"$error":"#REF!"}},{"$f":"AND(#REF!,\"FrsrfVXdcKU=\")","v":{"$error":"#REF!"}},{"$f":"AND(#REF!,\"FrsrfVXdcKY=\")","v":{"$error":"#REF!"}},{"$f":"AND(#REF!,\"FrsrfVXdcKc=\")","v":{"$error":"#REF!"}},{"$f":"AND(#REF!,\"FrsrfVXdcKg=\")","v":{"$error":"#REF!"}},{"$f":"AND(#REF!,\"FrsrfVXdcKk=\")","v":{"$error":"#REF!"}},{"$f":"AND(#REF!,\"FrsrfVXdcKo=\")","v":{"$error":"#REF!"}},{"$f":"AND(#REF!,\"FrsrfVXdcKs=\")","v":{"$error":"#REF!"}},{"$f":"AND(#REF!,\"FrsrfVXdcKw=\")","v":{"$error":"#REF!"}},{"$f":"AND(#REF!,\"FrsrfVXdcK0=\")","v":{"$error":"#REF!"}},{"$f":"AND(#REF!,\"FrsrfVXdcK4=\")","v":{"$error":"#REF!"}},{"$f":"AND(#REF!,\"FrsrfVXdcK8=\")","v":{"$error":"#REF!"}},{"$f":"AND(#REF!,\"FrsrfVXdcLA=\")","v":{"$error":"#REF!"}},{"$f":"AND(#REF!,\"FrsrfVXdcLE=\")","v":{"$error":"#REF!"}},{"$f":"AND(#REF!,\"FrsrfVXdcLI=\")","v":{"$error":"#REF!"}},{"$f":"AND(#REF!,\"FrsrfVXdcLM=\")","v":{"$error":"#REF!"}},{"$f":"AND(#REF!,\"FrsrfVXdcLQ=\")","v":{"$error":"#REF!"}},{"$f":"AND(#REF!,\"FrsrfVXdcLU=\")","v":{"$error":"#REF!"}},{"$f":"AND(#REF!,\"FrsrfVXdcLY=\")","v":{"$error":"#REF!"}},{"$f":"AND(#REF!,\"FrsrfVXdcLc=\")","v":{"$error":"#REF!"}},{"$f":"AND(#REF!,\"FrsrfVXdcLg=\")","v":{"$error":"#REF!"}},{"$f":"AND(#REF!,\"FrsrfVXdcLk=\")","v":{"$error":"#REF!"}},{"$f":"AND(#REF!,\"FrsrfVXdcLo=\")","v":{"$error":"#REF!"}},{"$f":"AND(#REF!,\"FrsrfVXdcLs=\")","v":{"$error":"#REF!"}},{"$f":"AND(#REF!,\"FrsrfVXdcLw=\")","v":{"$error":"#REF!"}},{"$f":"AND(#REF!,\"FrsrfVXdcL0=\")","v":{"$error":"#REF!"}},{"$f":"AND(#REF!,\"FrsrfVXdcL4=\")","v":{"$error":"#REF!"}},{"$f":"AND(#REF!,\"FrsrfVXdcL8=\")","v":{"$error":"#REF!"}},{"$f":"AND(#REF!,\"FrsrfVXdcMA=\")","v":{"$error":"#REF!"}},{"$f":"AND(#REF!,\"FrsrfVXdcME=\")","v":{"$error":"#REF!"}},{"$f":"AND(#REF!,\"FrsrfVXdcMI=\")","v":{"$error":"#REF!"}},{"$f":"AND(#REF!,\"FrsrfVXdcMM=\")","v":{"$error":"#REF!"}},{"$f":"AND(#REF!,\"FrsrfVXdcMQ=\")","v":{"$error":"#REF!"}},{"$f":"AND(#REF!,\"FrsrfVXdcMU=\")","v":{"$error":"#REF!"}},{"$f":"AND(#REF!,\"FrsrfVXdcMY=\")","v":{"$error":"#REF!"}},{"$f":"AND(#REF!,\"FrsrfVXdcMc=\")","v":{"$error":"#REF!"}},{"$f":"AND(#REF!,\"FrsrfVXdcMg=\")","v":{"$error":"#REF!"}},{"$f":"AND(#REF!,\"FrsrfVXdcMk=\")","v":{"$error":"#REF!"}},{"$f":"AND(#REF!,\"FrsrfVXdcMo=\")","v":{"$error":"#REF!"}},{"$f":"AND(#REF!,\"FrsrfVXdcMs=\")","v":{"$error":"#REF!"}},{"$f":"AND(#REF!,\"FrsrfVXdcMw=\")","v":{"$error":"#REF!"}},{"$f":"AND(#REF!,\"FrsrfVXdcM0=\")","v":{"$error":"#REF!"}},{"$f":"AND(#REF!,\"FrsrfVXdcM4=\")","v":{"$error":"#REF!"}},{"$f":"AND(#REF!,\"FrsrfVXdcM8=\")","v":{"$error":"#REF!"}},{"$f":"AND(#REF!,\"FrsrfVXdcNA=\")","v":{"$error":"#REF!"}},{"$f":"AND(#REF!,\"FrsrfVXdcNE=\")","v":{"$error":"#REF!"}},{"$f":"AND(#REF!,\"FrsrfVXdcNI=\")","v":{"$error":"#REF!"}},{"$f":"AND(#REF!,\"FrsrfVXdcNM=\")","v":{"$error":"#REF!"}},{"$f":"AND(#REF!,\"FrsrfVXdcNQ=\")","v":{"$error":"#REF!"}},{"$f":"AND(#REF!,\"FrsrfVXdcNU=\")","v":{"$error":"#REF!"}},{"$f":"IF(#REF!,\"FrsrfVXdcNY=\",0)","v":{"$error":"#REF!"}},{"$f":"AND(#REF!,\"FrsrfVXdcNc=\")","v":{"$error":"#REF!"}},{"$f":"AND(#REF!,\"FrsrfVXdcNg=\")","v":{"$error":"#REF!"}},{"$f":"AND(#REF!,\"FrsrfVXdcNk=\")","v":{"$error":"#REF!"}},{"$f":"AND(#REF!,\"FrsrfVXdcNo=\")","v":{"$error":"#REF!"}},{"$f":"AND(#REF!,\"FrsrfVXdcNs=\")","v":{"$error":"#REF!"}},{"$f":"AND(#REF!,\"FrsrfVXdcNw=\")","v":{"$error":"#REF!"}},{"$f":"AND(#REF!,\"FrsrfVXdcN0=\")","v":{"$error":"#REF!"}},{"$f":"AND(#REF!,\"FrsrfVXdcN4=\")","v":{"$error":"#REF!"}},{"$f":"AND(#REF!,\"FrsrfVXdcN8=\")","v":{"$error":"#REF!"}},{"$f":"AND(#REF!,\"FrsrfVXdcOA=\")","v":{"$error":"#REF!"}},{"$f":"AND(#REF!,\"FrsrfVXdcOE=\")","v":{"$error":"#REF!"}},{"$f":"AND(#REF!,\"FrsrfVXdcOI=\")","v":{"$error":"#REF!"}},{"$f":"AND(#REF!,\"FrsrfVXdcOM=\")","v":{"$error":"#REF!"}},{"$f":"AND(#REF!,\"FrsrfVXdcOQ=\")","v":{"$error":"#REF!"}},{"$f":"AND(#REF!,\"FrsrfVXdcOU=\")","v":{"$error":"#REF!"}},{"$f":"AND(#REF!,\"FrsrfVXdcOY=\")","v":{"$error":"#REF!"}},{"$f":"AND(#REF!,\"FrsrfVXdcOc=\")","v":{"$error":"#REF!"}},{"$f":"AND(#REF!,\"FrsrfVXdcOg=\")","v":{"$error":"#REF!"}},{"$f":"AND(#REF!,\"FrsrfVXdcOk=\")","v":{"$error":"#REF!"}},{"$f":"AND(#REF!,\"FrsrfVXdcOo=\")","v":{"$error":"#REF!"}},{"$f":"AND(#REF!,\"FrsrfVXdcOs=\")","v":{"$error":"#REF!"}},{"$f":"AND(#REF!,\"FrsrfVXdcOw=\")","v":{"$error":"#REF!"}},{"$f":"AND(#REF!,\"FrsrfVXdcO0=\")","v":{"$error":"#REF!"}},{"$f":"AND(#REF!,\"FrsrfVXdcO4=\")","v":{"$error":"#REF!"}},{"$f":"AND(#REF!,\"FrsrfVXdcO8=\")","v":{"$error":"#REF!"}},{"$f":"AND(#REF!,\"FrsrfVXdcPA=\")","v":{"$error":"#REF!"}},{"$f":"AND(#REF!,\"FrsrfVXdcPE=\")","v":{"$error":"#REF!"}},{"$f":"AND(#REF!,\"FrsrfVXdcPI=\")","v":{"$error":"#REF!"}},{"$f":"AND(#REF!,\"FrsrfVXdcPM=\")","v":{"$error":"#REF!"}},{"$f":"AND(#REF!,\"FrsrfVXdcPQ=\")","v":{"$error":"#REF!"}},{"$f":"AND(#REF!,\"FrsrfVXdcPU=\")","v":{"$error":"#REF!"}},{"$f":"AND(#REF!,\"FrsrfVXdcPY=\")","v":{"$error":"#REF!"}},{"$f":"AND(#REF!,\"FrsrfVXdcPc=\")","v":{"$error":"#REF!"}},{"$f":"AND(#REF!,\"FrsrfVXdcPg=\")","v":{"$error":"#REF!"}},{"$f":"AND(#REF!,\"FrsrfVXdcPk=\")","v":{"$error":"#REF!"}},{"$f":"AND(#REF!,\"FrsrfVXdcPo=\")","v":{"$error":"#REF!"}},{"$f":"AND(#REF!,\"FrsrfVXdcPs=\")","v":{"$error":"#REF!"}},{"$f":"AND(#REF!,\"FrsrfVXdcPw=\")","v":{"$error":"#REF!"}},{"$f":"AND(#REF!,\"FrsrfVXdcP0=\")","v":{"$error":"#REF!"}},{"$f":"AND(#REF!,\"FrsrfVXdcP4=\")","v":{"$error":"#REF!"}},{"$f":"AND(#REF!,\"FrsrfVXdcP8=\")","v":{"$error":"#REF!"}}]
[{"$f":"AND(#REF!,\"XOzQKgqEEgA=\")","v":{"$error":"#REF!"}},{"$f":"AND(#REF!,\"XOzQKgqEEgE=\")","v":{"$error":"#REF!"}},{"$f":"AND(#REF!,\"XOzQKgqEEgI=\")","v":{"$error":"#REF!"}},{"$f":"AND(#REF!,\"XOzQKgqEEgM=\")","v":{"$error":"#REF!"}},{"$f":"AND(#REF!,\"XOzQKgqEEgQ=\")","v":{"$error":"#REF!"}},{"$f":"AND(#REF!,\"XOzQKgqEEgU=\")","v":{"$error":"#REF!"}},{"$f":"AND(#REF!,\"XOzQKgqEEgY=\")","v":{"$error":"#REF!"}},{"$f":"AND(#REF!,\"XOzQKgqEEgc=\")","v":{"$error":"#REF!"}},{"$f":"AND(#REF!,\"XOzQKgqEEgg=\")","v":{"$error":"#REF!"}},{"$f":"AND(#REF!,\"XOzQKgqEEgk=\")","v":{"$error":"#REF!"}},{"$f":"AND(#REF!,\"XOzQKgqEEgo=\")","v":{"$error":"#REF!"}},{"$f":"AND(#REF!,\"XOzQKgqEEgs=\")","v":{"$error":"#REF!"}},{"$f":"AND(#REF!,\"XOzQKgqEEgw=\")","v":{"$error":"#REF!"}},{"$f":"AND(#REF!,\"XOzQKgqEEg0=\")","v":{"$error":"#REF!"}},{"$f":"AND(#REF!,\"XOzQKgqEEg4=\")","v":{"$error":"#REF!"}},{"$f":"AND(#REF!,\"XOzQKgqEEg8=\")","v":{"$error":"#REF!"}},{"$f":"AND(#REF!,\"XOzQKgqEEhA=\")","v":{"$error":"#REF!"}},{"$f":"AND(#REF!,\"XOzQKgqEEhE=\")","v":{"$error":"#REF!"}},{"$f":"AND(#REF!,\"XOzQKgqEEhI=\")","v":{"$error":"#REF!"}},{"$f":"AND(#REF!,\"XOzQKgqEEhM=\")","v":{"$error":"#REF!"}},{"$f":"AND(#REF!,\"XOzQKgqEEhQ=\")","v":{"$error":"#REF!"}},{"$f":"AND(#REF!,\"XOzQKgqEEhU=\")","v":{"$error":"#REF!"}},{"$f":"AND(#REF!,\"XOzQKgqEEhY=\")","v":{"$error":"#REF!"}},{"$f":"AND(#REF!,\"XOzQKgqEEhc=\")","v":{"$error":"#REF!"}},{"$f":"AND(#REF!,\"XOzQKgqEEhg=\")","v":{"$error":"#REF!"}},{"$f":"AND(#REF!,\"XOzQKgqEEhk=\")","v":{"$error":"#REF!"}},{"$f":"AND(#REF!,\"XOzQKgqEEho=\")","v":{"$error":"#REF!"}},{"$f":"AND(#REF!,\"XOzQKgqEEhs=\")","v":{"$error":"#REF!"}},{"$f":"AND(#REF!,\"XOzQKgqEEhw=\")","v":{"$error":"#REF!"}},{"$f":"AND(#REF!,\"XOzQKgqEEh0=\")","v":{"$error":"#REF!"}},{"$f":"AND(#REF!,\"XOzQKgqEEh4=\")","v":{"$error":"#REF!"}},{"$f":"AND(#REF!,\"XOzQKgqEEh8=\")","v":{"$error":"#REF!"}},{"$f":"AND(#REF!,\"XOzQKgqEEiA=\")","v":{"$error":"#REF!"}},{"$f":"AND(#REF!,\"XOzQKgqEEiE=\")","v":{"$error":"#REF!"}},{"$f":"AND(#REF!,\"XOzQKgqEEiI=\")","v":{"$error":"#REF!"}},{"$f":"AND(#REF!,\"XOzQKgqEEiM=\")","v":{"$error":"#REF!"}},{"$f":"AND(#REF!,\"XOzQKgqEEiQ=\")","v":{"$error":"#REF!"}},{"$f":"AND(#REF!,\"XOzQKgqEEiU=\")","v":{"$error":"#REF!"}},{"$f":"AND(#REF!,\"XOzQKgqEEiY=\")","v":{"$error":"#REF!"}},{"$f":"AND(#REF!,\"XOzQKgqEEic=\")","v":{"$error":"#REF!"}},{"$f":"AND(#REF!,\"XOzQKgqEEig=\")","v":{"$error":"#REF!"}},{"$f":"AND(#REF!,\"XOzQKgqEEik=\")","v":{"$error":"#REF!"}},{"$f":"AND(#REF!,\"XOzQKgqEEio=\")","v":{"$error":"#REF!"}},{"$f":"AND(#REF!,\"XOzQKgqEEis=\")","v":{"$error":"#REF!"}},{"$f":"AND(#REF!,\"XOzQKgqEEiw=\")","v":{"$error":"#REF!"}},{"$f":"AND(#REF!,\"XOzQKgqEEi0=\")","v":{"$error":"#REF!"}},{"$f":"AND(#REF!,\"XOzQKgqEEi4=\")","v":{"$error":"#REF!"}},{"$f":"AND(#REF!,\"XOzQKgqEEi8=\")","v":{"$error":"#REF!"}},{"$f":"AND(#REF!,\"XOzQKgqEEjA=\")","v":{"$error":"#REF!"}},{"$f":"AND(#REF!,\"XOzQKgqEEjE=\")","v":{"$error":"#REF!"}},{"$f":"AND(#REF!,\"XOzQKgqEEjI=\")","v":{"$error":"#REF!"}},{"$f":"AND(#REF!,\"XOzQKgqEEjM=\")","v":{"$error":"#REF!"}},{"$f":"AND(#REF!,\"XOzQKgqEEjQ=\")","v":{"$error":"#REF!"}},{"$f":"AND(#REF!,\"XOzQKgqEEjU=\")","v":{"$error":"#REF!"}},{"$f":"AND(#REF!,\"XOzQKgqEEjY=\")","v":{"$error":"#REF!"}},{"$f":"AND(#REF!,\"XOzQKgqEEjc=\")","v":{"$error":"#REF!"}},{"$f":"AND(#REF!,\"XOzQKgqEEjg=\")","v":{"$error":"#REF!"}},{"$f":"AND(#REF!,\"XOzQKgqEEjk=\")","v":{"$error":"#REF!"}},{"$f":"AND(#REF!,\"XOzQKgqEEjo=\")","v":{"$error":"#REF!"}},{"$f":"AND(#REF!,\"XOzQKgqEEjs=\")","v":{"$error":"#REF!"}},{"$f":"AND(#REF!,\"XOzQKgqEEjw=\")","v":{"$error":"#REF!"}},{"$f":"AND(#REF!,\"XOzQKgqEEj0=\")","v":{"$error":"#REF!"}},{"$f":"AND(#REF!,\"XOzQKgqEEj4=\")","v":{"$error":"#REF!"}},{"$f":"AND(#REF!,\"XOzQKgqEEj8=\")","v":{"$error":"#REF!"}},{"$f":"AND(#REF!,\"XOzQKgqEEkA=\")","v":{"$error":"#REF!"}},{"$f":"AND(#REF!,\"XOzQKgqEEkE=\")","v":{"$error":"#REF!"}},{"$f":"AND(#REF!,\"XOzQKgqEEkI=\")","v":{"$error":"#REF!"}},{"$f":"AND(#REF!,\"XOzQKgqEEkM=\")","v":{"$error":"#REF!"}},{"$f":"AND(#REF!,\"XOzQKgqEEkQ=\")","v":{"$error":"#REF!"}},{"$f":"AND(#REF!,\"XOzQKgqEEkU=\")","v":{"$error":"#REF!"}},{"$f":"AND(#REF!,\"XOzQKgqEEkY=\")","v":{"$error":"#REF!"}},{"$f":"AND(#REF!,\"XOzQKgqEEkc=\")","v":{"$error":"#REF!"}},{"$f":"AND(#REF!,\"XOzQKgqEEkg=\")","v":{"$error":"#REF!"}},{"$f":"AND(#REF!,\"XOzQKgqEEkk=\")","v":{"$error":"#REF!"}},{"$f":"AND(#REF!,\"XOzQKgqEEko=\")","v":{"$error":"#REF!"}},{"$f":"AND(#REF!,\"XOzQKgqEEks=\")","v":{"$error":"#REF!"}},{"$f":"AND(#REF!,\"XOzQKgqEEkw=\")","v":{"$error":"#REF!"}},{"$f":"AND(#REF!,\"XOzQKgqEEk0=\")","v":{"$error":"#REF!"}},{"$f":"AND(#REF!,\"XOzQKgqEEk4=\")","v":{"$error":"#REF!"}},{"$f":"AND(#REF!,\"XOzQKgqEEk8=\")","v":{"$error":"#REF!"}},{"$f":"AND(#REF!,\"XOzQKgqEElA=\")","v":{"$error":"#REF!"}},{"$f":"AND(#REF!,\"XOzQKgqEElE=\")","v":{"$error":"#REF!"}},{"$f":"AND(#REF!,\"XOzQKgqEElI=\")","v":{"$error":"#REF!"}},{"$f":"AND(#REF!,\"XOzQKgqEElM=\")","v":{"$error":"#REF!"}},{"$f":"AND(#REF!,\"XOzQKgqEElQ=\")","v":{"$error":"#REF!"}},{"$f":"AND(#REF!,\"XOzQKgqEElU=\")","v":{"$error":"#REF!"}},{"$f":"AND(#REF!,\"XOzQKgqEElY=\")","v":{"$error":"#REF!"}},{"$f":"AND(#REF!,\"XOzQKgqEElc=\")","v":{"$error":"#REF!"}},{"$f":"AND(#REF!,\"XOzQKgqEElg=\")","v":{"$error":"#REF!"}},{"$f":"AND(#REF!,\"XOzQKgqEElk=\")","v":{"$error":"#REF!"}},{"$f":"AND(#REF!,\"XOzQKgqEElo=\")","v":{"$error":"#REF!"}},{"$f":"AND(#REF!,\"XOzQKgqEEls=\")","v":{"$error":"#REF!"}},{"$f":"AND(#REF!,\"XOzQKgqEElw=\")","v":{"$error":"#REF!"}},{"$f":"AND(#REF!,\"XOzQKgqEEl0=\")","v":{"$error":"#REF!"}},{"$f":"AND(#REF!,\"XOzQKgqEEl4=\")","v":{"$error":"#REF!"}},{"$f":"AND(#REF!,\"XOzQKgqEEl8=\")","v":{"$error":"#REF!"}},{"$f":"AND(#REF!,\"XOzQKgqEEmA=\")","v":{"$error":"#REF!"}},{"$f":"AND(#REF!,\"XOzQKgqEEmE=\")","v":{"$error":"#REF!"}},{"$f":"AND(#REF!,\"XOzQKgqEEmI=\")","v":{"$error":"#REF!"}},{"$f":"AND(#REF!,\"XOzQKgqEEmM=\")","v":{"$error":"#REF!"}},{"$f":"AND(#REF!,\"XOzQKgqEEmQ=\")","v":{"$error":"#REF!"}},{"$f":"AND(#REF!,\"XOzQKgqEEmU=\")","v":{"$error":"#REF!"}},{"$f":"AND(#REF!,\"XOzQKgqEEmY=\")","v":{"$error":"#REF!"}},{"$f":"AND(#REF!,\"XOzQKgqEEmc=\")","v":{"$error":"#REF!"}},{"$f":"AND(#REF!,\"XOzQKgqEEmg=\")","v":{"$error":"#REF!"}},{"$f":"AND(#REF!,\"XOzQKgqEEmk=\")","v":{"$error":"#REF!"}},{"$f":"AND(#REF!,\"XOzQKgqEEmo=\")","v":{"$error":"#REF!"}},{"$f":"AND(#REF!,\"XOzQKgqEEms=\")","v":{"$error":"#REF!"}},{"$f":"AND(#REF!,\"XOzQKgqEEmw=\")","v":{"$error":"#REF!"}},{"$f":"AND(#REF!,\"XOzQKgqEEm0=\")","v":{"$error":"#REF!"}},{"$f":"AND(#REF!,\"XOzQKgqEEm4=\")","v":{"$error":"#REF!"}},{"$f":"AND(#REF!,\"XOzQKgqEEm8=\")","v":{"$error":"#REF!"}},{"$f":"AND(#REF!,\"XOzQKgqEEnA=\")","v":{"$error":"#REF!"}},{"$f":"AND(#REF!,\"XOzQKgqEEnE=\")","v":{"$error":"#REF!"}},{"$f":"AND(#REF!,\"XOzQKgqEEnI=\")","v":{"$error":"#REF!"}},{"$f":"AND(#REF!,\"XOzQKgqEEnM=\")","v":{"$error":"#REF!"}},{"$f":"AND(#REF!,\"XOzQKgqEEnQ=\")","v":{"$error":"#REF!"}},{"$f":"AND(#REF!,\"XOzQKgqEEnU=\")","v":{"$error":"#REF!"}},{"$f":"AND(#REF!,\"XOzQKgqEEnY=\")","v":{"$error":"#REF!"}},{"$f":"AND(#REF!,\"XOzQKgqEEnc=\")","v":{"$error":"#REF!"}},{"$f":"AND(#REF!,\"XOzQKgqEEng=\")","v":{"$error":"#REF!"}},{"$f":"AND(#REF!,\"XOzQKgqEEnk=\")","v":{"$error":"#REF!"}},{"$f":"AND(#REF!,\"XOzQKgqEEno=\")","v":{"$error":"#REF!"}},{"$f":"AND(#REF!,\"XOzQKgqEEns=\")","v":{"$error":"#REF!"}},{"$f":"AND(#REF!,\"XOzQKgqEEnw=\")","v":{"$error":"#REF!"}},{"$f":"AND(#REF!,\"XOzQKgqEEn0=\")","v":{"$error":"#REF!"}},{"$f":"AND(#REF!,\"XOzQKgqEEn4=\")","v":{"$error":"#REF!"}},{"$f":"AND(#REF!,\"XOzQKgqEEn8=\")","v":{"$error":"#REF!"}},{"$f":"AND(#REF!,\"XOzQKgqEEoA=\")","v":{"$error":"#REF!"}},{"$f":"AND(#REF!,\"XOzQKgqEEoE=\")","v":{"$error":"#REF!"}},{"$f":"AND(#REF!,\"XOzQKgqEEoI=\")","v":{"$error":"#REF!"}},{"$f":"AND(#REF!,\"XOzQKgqEEoM=\")","v":{"$error":"#REF!"}},{"$f":"AND(#REF!,\"XOzQKgqEEoQ=\")","v":{"$error":"#REF!"}},{"$f":"AND(#REF!,\"XOzQKgqEEoU=\")","v":{"$error":"#REF!"}},{"$f":"AND(#REF!,\"XOzQKgqEEoY=\")","v":{"$error":"#REF!"}},{"$f":"AND(#REF!,\"XOzQKgqEEoc=\")","v":{"$error":"#REF!"}},{"$f":"AND(#REF!,\"XOzQKgqEEog=\")","v":{"$error":"#REF!"}},{"$f":"AND(#REF!,\"XOzQKgqEEok=\")","v":{"$error":"#REF!"}},{"$f":"AND(#REF!,\"XOzQKgqEEoo=\")","v":{"$error":"#REF!"}},{"$f":"AND(#REF!,\"XOzQKgqEEos=\")","v":{"$error":"#REF!"}},{"$f":"AND(#REF!,\"XOzQKgqEEow=\")","v":{"$error":"#REF!"}},{"$f":"AND(#REF!,\"XOzQKgqEEo0=\")","v":{"$error":"#REF!"}},{"$f":"AND(#REF!,\"XOzQKgqEEo4=\")","v":{"$error":"#REF!"}},{"$f":"AND(#REF!,\"XOzQKgqEEo8=\")","v":{"$error":"#REF!"}},{"$f":"AND(#REF!,\"XOzQKgqEEpA=\")","v":{"$error":"#REF!"}},{"$f":"AND(#REF!,\"XOzQKgqEEpE=\")","v":{"$error":"#REF!"}},{"$f":"AND(#REF!,\"XOzQKgqEEpI=\")","v":{"$error":"#REF!"}},{"$f":"AND(#REF!,\"XOzQKgqEEpM=\")","v":{"$error":"#REF!"}},{"$f":"AND(#REF!,\"XOzQKgqEEpQ=\")","v":{"$error":"#REF!"}},{"$f":"AND(#REF!,\"XOzQKgqEEpU=\")","v":{"$error":"#REF!"}},{"$f":"AND(#REF!,\"XOzQKgqEEpY=\")","v":{"$error":"#REF!"}},{"$f":"AND(#REF!,\"XOzQKgqEEpc=\")","v":{"$error":"#REF!"}},{"$f":"AND(#REF!,\"XOzQKgqEEpg=\")","v":{"$error":"#REF!"}},{"$f":"AND(#REF!,\"XOzQKgqEEpk=\")","v":{"$error":"#REF!"}},{"$f":"AND(#REF!,\"XOzQKgqEEpo=\")","v":{"$error":"#REF!"}},{"$f":"AND(#REF!,\"XOzQKgqEEps=\")","v":{"$error":"#REF!"}},{"$f":"AND(#REF!,\"XOzQKgqEEpw=\")","v":{"$error":"#REF!"}},{"$f":"IF(#REF!,\"XOzQKgqEEp0=\",0)","v":{"$error":"#REF!"}},{"$f":"AND(#REF!,\"XOzQKgqEEp4=\")","v":{"$error":"#REF!"}},{"$f":"AND(#REF!,\"XOzQKgqEEp8=\")","v":{"$error":"#REF!"}},{"$f":"AND(#REF!,\"XOzQKgqEEqA=\")","v":{"$error":"#REF!"}},{"$f":"AND(#REF!,\"XOzQKgqEEqE=\")","v":{"$error":"#REF!"}},{"$f":"AND(#REF!,\"XOzQKgqEEqI=\")","v":{"$error":"#REF!"}},{"$f":"AND(#REF!,\"XOzQKgqEEqM=\")","v":{"$error":"#REF!"}},{"$f":"AND(#REF!,\"XOzQKgqEEqQ=\")","v":{"$error":"#REF!"}},{"$f":"AND(#REF!,\"XOzQKgqEEqU=\")","v":{"$error":"#REF!"}},{"$f":"AND(#REF!,\"XOzQKgqEEqY=\")","v":{"$error":"#REF!"}},{"$f":"AND(#REF!,\"XOzQKgqEEqc=\")","v":{"$error":"#REF!"}},{"$f":"AND(#REF!,\"XOzQKgqEEqg=\")","v":{"$error":"#REF!"}},{"$f":"AND(#REF!,\"XOzQKgqEEqk=\")","v":{"$error":"#REF!"}},{"$f":"AND(#REF!,\"XOzQKgqEEqo=\")","v":{"$error":"#REF!"}},{"$f":"AND(#REF!,\"XOzQKgqEEqs=\")","v":{"$error":"#REF!"}},{"$f":"AND(#REF!,\"XOzQKgqEEqw=\")","v":{"$error":"#REF!"}},{"$f":"AND(#REF!,\"XOzQKgqEEq0=\")","v":{"$error":"#REF!"}},{"$f":"AND(#REF!,\"XOzQKgqEEq4=\")","v":{"$error":"#REF!"}},{"$f":"AND(#REF!,\"XOzQKgqEEq8=\")","v":{"$error":"#REF!"}},{"$f":"AND(#REF!,\"XOzQKgqEErA=\")","v":{"$error":"#REF!"}},{"$f":"AND(#REF!,\"XOzQKgqEErE=\")","v":{"$error":"#REF!"}},{"$f":"AND(#REF!,\"XOzQKgqEErI=\")","v":{"$error":"#REF!"}},{"$f":"AND(#REF!,\"XOzQKgqEErM=\")","v":{"$error":"#REF!"}},{"$f":"AND(#REF!,\"XOzQKgqEErQ=\")","v":{"$error":"#REF!"}},{"$f":"AND(#REF!,\"XOzQKgqEErU=\")","v":{"$error":"#REF!"}},{"$f":"AND(#REF!,\"XOzQKgqEErY=\")","v":{"$error":"#REF!"}},{"$f":"AND(#REF!,\"XOzQKgqEErc=\")","v":{"$error":"#REF!"}},{"$f":"AND(#REF!,\"XOzQKgqEErg=\")","v":{"$error":"#REF!"}},{"$f":"AND(#REF!,\"XOzQKgqEErk=\")","v":{"$error":"#REF!"}},{"$f":"AND(#REF!,\"XOzQKgqEEro=\")","v":{"$error":"#REF!"}},{"$f":"AND(#REF!,\"XOzQKgqEErs=\")","v":{"$error":"#REF!"}},{"$f":"AND(#REF!,\"XOzQKgqEErw=\")","v":{"$error":"#REF!"}},{"$f":"AND(#REF!,\"XOzQKgqEEr0=\")","v":{"$error":"#REF!"}},{"$f":"AND(#REF!,\"XOzQKgqEEr4=\")","v":{"$error":"#REF!"}},{"$f":"AND(#REF!,\"XOzQKgqEEr8=\")","v":{"$error":"#REF!"}},{"$f":"AND(#REF!,\"XOzQKgqEEsA=\")","v":{"$error":"#REF!"}},{"$f":"AND(#REF!,\"XOzQKgqEEsE=\")","v":{"$error":"#REF!"}},{"$f":"AND(#REF!,\"XOzQKgqEEsI=\")","v":{"$error":"#REF!"}},{"$f":"AND(#REF!,\"XOzQKgqEEsM=\")","v":{"$error":"#REF!"}},{"$f":"AND(#REF!,\"XOzQKgqEEsQ=\")","v":{"$error":"#REF!"}},{"$f":"AND(#REF!,\"XOzQKgqEEsU=\")","v":{"$error":"#REF!"}},{"$f":"AND(#REF!,\"XOzQKgqEEsY=\")","v":{"$error":"#REF!"}},{"$f":"AND(#REF!,\"XOzQKgqEEsc=\")","v":{"$error":"#REF!"}},{"$f":"AND(#REF!,\"XOzQKgqEEsg=\")","v":{"$error":"#REF!"}},{"$f":"AND(#REF!,\"XOzQKgqEEsk=\")","v":{"$error":"#REF!"}},{"$f":"AND(#REF!,\"XOzQKgqEEso=\")","v":{"$error":"#REF!"}},{"$f":"AND(#REF!,\"XOzQKgqEEss=\")","v":{"$error":"#REF!"}},{"$f":"AND(#REF!,\"XOzQKgqEEsw=\")","v":{"$error":"#REF!"}},{"$f":"AND(#REF!,\"XOzQKgqEEs0=\")","v":{"$error":"#REF!"}},{"$f":"AND(#REF!,\"XOzQKgqEEs4=\")","v":{"$error":"#REF!"}},{"$f":"AND(#REF!,\"XOzQKgqEEs8=\")","v":{"$error":"#REF!"}},{"$f":"AND(#REF!,\"XOzQKgqEEtA=\")","v":{"$error":"#REF!"}},{"$f":"AND(#REF!,\"XOzQKgqEEtE=\")","v":{"$error":"#REF!"}},{"$f":"AND(#REF!,\"XOzQKgqEEtI=\")","v":{"$error":"#REF!"}},{"$f":"AND(#REF!,\"XOzQKgqEEtM=\")","v":{"$error":"#REF!"}},{"$f":"AND(#REF!,\"XOzQKgqEEtQ=\")","v":{"$error":"#REF!"}},{"$f":"AND(#REF!,\"XOzQKgqEEtU=\")","v":{"$error":"#REF!"}},{"$f":"AND(#REF!,\"XOzQKgqEEtY=\")","v":{"$error":"#REF!"}},{"$f":"AND(#REF!,\"XOzQKgqEEtc=\")","v":{"$error":"#REF!"}},{"$f":"AND(#REF!,\"XOzQKgqEEtg=\")","v":{"$error":"#REF!"}},{"$f":"AND(#REF!,\"XOzQKgqEEtk=\")","v":{"$error":"#REF!"}},{"$f":"AND(#REF!,\"XOzQKgqEEto=\")","v":{"$error":"#REF!"}},{"$f":"AND(#REF!,\"XOzQKgqEEts=\")","v":{"$error":"#REF!"}},{"$f":"AND(#REF!,\"XOzQKgqEEtw=\")","v":{"$error":"#REF!"}},{"$f":"AND(#REF!,\"XOzQKgqEEt0=\")","v":{"$error":"#REF!"}},{"$f":"AND(#REF!,\"XOzQKgqEEt4=\")","v":{"$error":"#REF!"}},{"$f":"AND(#REF!,\"XOzQKgqEEt8=\")","v":{"$error":"#REF!"}},{"$f":"AND(#REF!,\"XOzQKgqEEuA=\")","v":{"$error":"#REF!"}},{"$f":"AND(#REF!,\"XOzQKgqEEuE=\")","v":{"$error":"#REF!"}},{"$f":"AND(#REF!,\"XOzQKgqEEuI=\")","v":{"$error":"#REF!"}},{"$f":"AND(#REF!,\"XOzQKgqEEuM=\")","v":{"$error":"#REF!"}},{"$f":"AND(#REF!,\"XOzQKgqEEuQ=\")","v":{"$error":"#REF!"}},{"$f":"AND(#REF!,\"XOzQKgqEEuU=\")","v":{"$error":"#REF!"}},{"$f":"AND(#REF!,\"XOzQKgqEEuY=\")","v":{"$error":"#REF!"}},{"$f":"AND(#REF!,\"XOzQKgqEEuc=\")","v":{"$error":"#REF!"}},{"$f":"AND(#REF!,\"XOzQKgqEEug=\")","v":{"$error":"#REF!"}},{"$f":"AND(#REF!,\"XOzQKgqEEuk=\")","v":{"$error":"#REF!"}},{"$f":"AND(#REF!,\"XOzQKgqEEuo=\")","v":{"$error":"#REF!"}},{"$f":"AND(#REF!,\"XOzQKgqEEus=\")","v":{"$error":"#REF!"}},{"$f":"AND(#REF!,\"XOzQKgqEEuw=\")","v":{"$error":"#REF!"}},{"$f":"AND(#REF!,\"XOzQKgqEEu0=\")","v":{"$error":"#REF!"}},{"$f":"AND(#REF!,\"XOzQKgqEEu4=\")","v":{"$error":"#REF!"}},{"$f":"AND(#REF!,\"XOzQKgqEEu8=\")","v":{"$error":"#REF!"}},{"$f":"AND(#REF!,\"XOzQKgqEEvA=\")","v":{"$error":"#REF!"}},{"$f":"AND(#REF!,\"XOzQKgqEEvE=\")","v":{"$error":"#REF!"}},{"$f":"AND(#REF!,\"XOzQKgqEEvI=\")","v":{"$error":"#REF!"}},{"$f":"AND(#REF!,\"XOzQKgqEEvM=\")","v":{"$error":"#REF!"}},{"$f":"AND(#REF!,\"XOzQKgqEEvQ=\")","v":{"$error":"#REF!"}},{"$f":"AND(#REF!,\"XOzQKgqEEvU=\")","v":{"$error":"#REF!"}},{"$f":"AND(#REF!,\"XOzQKgqEEvY=\")","v":{"$error":"#REF!"}},{"$f":"AND(#REF!,\"XOzQKgqEEvc=\")","v":{"$error":"#REF!"}},{"$f":"AND(#REF!,\"XOzQKgqEEvg=\")","v":{"$error":"#REF!"}},{"$f":"AND(#REF!,\"XOzQKgqEEvk=\")","v":{"$error":"#REF!"}},{"$f":"AND(#REF!,\"XOzQKgqEEvo=\")","v":{"$error":"#REF!"}},{"$f":"AND(#REF!,\"XOzQKgqEEvs=\")","v":{"$error":"#REF!"}},{"$f":"AND(#REF!,\"XOzQKgqEEvw=\")","v":{"$error":"#REF!"}},{"$f":"AND(#REF!,\"XOzQKgqEEv0=\")","v":{"$error":"#REF!"}},{"$f":"AND(#REF!,\"XOzQKgqEEv4=\")","v":{"$error":"#REF!"}},{"$f":"AND(#REF!,\"XOzQKgqEEv8=\")","v":{"$error":"#REF!"}}]
[{"$f":"AND(#REF!,\"LgOG6kUgUwA=\")","v":{"$error":"#REF!"}},{"$f":"AND(#REF!,\"LgOG6kUgUwE=\")","v":{"$error":"#REF!"}},{"$f":"AND(#REF!,\"LgOG6kUgUwI=\")","v":{"$error":"#REF!"}},{"$f":"AND(#REF!,\"LgOG6kUgUwM=\")","v":{"$error":"#REF!"}},{"$f":"AND(#REF!,\"LgOG6kUgUwQ=\")","v":{"$error":"#REF!"}},{"$f":"AND(#REF!,\"LgOG6kUgUwU=\")","v":{"$error":"#REF!"}},{"$f":"AND(#REF!,\"LgOG6kUgUwY=\")","v":{"$error":"#REF!"}},{"$f":"AND(#REF!,\"LgOG6kUgUwc=\")","v":{"$error":"#REF!"}},{"$f":"AND(#REF!,\"LgOG6kUgUwg=\")","v":{"$error":"#REF!"}},{"$f":"AND(#REF!,\"LgOG6kUgUwk=\")","v":{"$error":"#REF!"}},{"$f":"AND(#REF!,\"LgOG6kUgUwo=\")","v":{"$error":"#REF!"}},{"$f":"AND(#REF!,\"LgOG6kUgUws=\")","v":{"$error":"#REF!"}},{"$f":"AND(#REF!,\"LgOG6kUgUww=\")","v":{"$error":"#REF!"}},{"$f":"AND(#REF!,\"LgOG6kUgUw0=\")","v":{"$error":"#REF!"}},{"$f":"AND(#REF!,\"LgOG6kUgUw4=\")","v":{"$error":"#REF!"}},{"$f":"AND(#REF!,\"LgOG6kUgUw8=\")","v":{"$error":"#REF!"}},{"$f":"AND(#REF!,\"LgOG6kUgUxA=\")","v":{"$error":"#REF!"}},{"$f":"AND(#REF!,\"LgOG6kUgUxE=\")","v":{"$error":"#REF!"}},{"$f":"AND(#REF!,\"LgOG6kUgUxI=\")","v":{"$error":"#REF!"}},{"$f":"AND(#REF!,\"LgOG6kUgUxM=\")","v":{"$error":"#REF!"}},{"$f":"AND(#REF!,\"LgOG6kUgUxQ=\")","v":{"$error":"#REF!"}},{"$f":"AND(#REF!,\"LgOG6kUgUxU=\")","v":{"$error":"#REF!"}},{"$f":"AND(#REF!,\"LgOG6kUgUxY=\")","v":{"$error":"#REF!"}},{"$f":"AND(#REF!,\"LgOG6kUgUxc=\")","v":{"$error":"#REF!"}},{"$f":"AND(#REF!,\"LgOG6kUgUxg=\")","v":{"$error":"#REF!"}},{"$f":"AND(#REF!,\"LgOG6kUgUxk=\")","v":{"$error":"#REF!"}},{"$f":"AND(#REF!,\"LgOG6kUgUxo=\")","v":{"$error":"#REF!"}},{"$f":"AND(#REF!,\"LgOG6kUgUxs=\")","v":{"$error":"#REF!"}},{"$f":"AND(#REF!,\"LgOG6kUgUxw=\")","v":{"$error":"#REF!"}},{"$f":"AND(#REF!,\"LgOG6kUgUx0=\")","v":{"$error":"#REF!"}},{"$f":"AND(#REF!,\"LgOG6kUgUx4=\")","v":{"$error":"#REF!"}},{"$f":"AND(#REF!,\"LgOG6kUgUx8=\")","v":{"$error":"#REF!"}},{"$f":"AND(#REF!,\"LgOG6kUgUyA=\")","v":{"$error":"#REF!"}},{"$f":"AND(#REF!,\"LgOG6kUgUyE=\")","v":{"$error":"#REF!"}},{"$f":"AND(#REF!,\"LgOG6kUgUyI=\")","v":{"$error":"#REF!"}},{"$f":"AND(#REF!,\"LgOG6kUgUyM=\")","v":{"$error":"#REF!"}},{"$f":"AND(#REF!,\"LgOG6kUgUyQ=\")","v":{"$error":"#REF!"}},{"$f":"AND(#REF!,\"LgOG6kUgUyU=\")","v":{"$error":"#REF!"}},{"$f":"AND(#REF!,\"LgOG6kUgUyY=\")","v":{"$error":"#REF!"}},{"$f":"AND(#REF!,\"LgOG6kUgUyc=\")","v":{"$error":"#REF!"}},{"$f":"AND(#REF!,\"LgOG6kUgUyg=\")","v":{"$error":"#REF!"}},{"$f":"AND(#REF!,\"LgOG6kUgUyk=\")","v":{"$error":"#REF!"}},{"$f":"AND(#REF!,\"LgOG6kUgUyo=\")","v":{"$error":"#REF!"}},{"$f":"AND(#REF!,\"LgOG6kUgUys=\")","v":{"$error":"#REF!"}},{"$f":"AND(#REF!,\"LgOG6kUgUyw=\")","v":{"$error":"#REF!"}},{"$f":"AND(#REF!,\"LgOG6kUgUy0=\")","v":{"$error":"#REF!"}},{"$f":"AND(#REF!,\"LgOG6kUgUy4=\")","v":{"$error":"#REF!"}},{"$f":"AND(#REF!,\"LgOG6kUgUy8=\")","v":{"$error":"#REF!"}},{"$f":"AND(#REF!,\"LgOG6kUgUzA=\")","v":{"$error":"#REF!"}},{"$f":"AND(#REF!,\"LgOG6kUgUzE=\")","v":{"$error":"#REF!"}},{"$f":"AND(#REF!,\"LgOG6kUgUzI=\")","v":{"$error":"#REF!"}},{"$f":"AND(#REF!,\"LgOG6kUgUzM=\")","v":{"$error":"#REF!"}},{"$f":"AND(#REF!,\"LgOG6kUgUzQ=\")","v":{"$error":"#REF!"}},{"$f":"AND(#REF!,\"LgOG6kUgUzU=\")","v":{"$error":"#REF!"}},{"$f":"AND(#REF!,\"LgOG6kUgUzY=\")","v":{"$error":"#REF!"}},{"$f":"AND(#REF!,\"LgOG6kUgUzc=\")","v":{"$error":"#REF!"}},{"$f":"AND(#REF!,\"LgOG6kUgUzg=\")","v":{"$error":"#REF!"}},{"$f":"AND(#REF!,\"LgOG6kUgUzk=\")","v":{"$error":"#REF!"}},{"$f":"AND(#REF!,\"LgOG6kUgUzo=\")","v":{"$error":"#REF!"}},{"$f":"AND(#REF!,\"LgOG6kUgUzs=\")","v":{"$error":"#REF!"}},{"$f":"AND(#REF!,\"LgOG6kUgUzw=\")","v":{"$error":"#REF!"}},{"$f":"AND(#REF!,\"LgOG6kUgUz0=\")","v":{"$error":"#REF!"}},{"$f":"AND(#REF!,\"LgOG6kUgUz4=\")","v":{"$error":"#REF!"}},{"$f":"AND(#REF!,\"LgOG6kUgUz8=\")","v":{"$error":"#REF!"}},{"$f":"AND(#REF!,\"LgOG6kUgU0A=\")","v":{"$error":"#REF!"}},{"$f":"AND(#REF!,\"LgOG6kUgU0E=\")","v":{"$error":"#REF!"}},{"$f":"AND(#REF!,\"LgOG6kUgU0I=\")","v":{"$error":"#REF!"}},{"$f":"AND(#REF!,\"LgOG6kUgU0M=\")","v":{"$error":"#REF!"}},{"$f":"AND(#REF!,\"LgOG6kUgU0Q=\")","v":{"$error":"#REF!"}},{"$f":"AND(#REF!,\"LgOG6kUgU0U=\")","v":{"$error":"#REF!"}},{"$f":"AND(#REF!,\"LgOG6kUgU0Y=\")","v":{"$error":"#REF!"}},{"$f":"AND(#REF!,\"LgOG6kUgU0c=\")","v":{"$error":"#REF!"}},{"$f":"AND(#REF!,\"LgOG6kUgU0g=\")","v":{"$error":"#REF!"}},{"$f":"AND(#REF!,\"LgOG6kUgU0k=\")","v":{"$error":"#REF!"}},{"$f":"AND(#REF!,\"LgOG6kUgU0o=\")","v":{"$error":"#REF!"}},{"$f":"AND(#REF!,\"LgOG6kUgU0s=\")","v":{"$error":"#REF!"}},{"$f":"AND(#REF!,\"LgOG6kUgU0w=\")","v":{"$error":"#REF!"}},{"$f":"AND(#REF!,\"LgOG6kUgU00=\")","v":{"$error":"#REF!"}},{"$f":"AND(#REF!,\"LgOG6kUgU04=\")","v":{"$error":"#REF!"}},{"$f":"AND(#REF!,\"LgOG6kUgU08=\")","v":{"$error":"#REF!"}},{"$f":"AND(#REF!,\"LgOG6kUgU1A=\")","v":{"$error":"#REF!"}},{"$f":"AND(#REF!,\"LgOG6kUgU1E=\")","v":{"$error":"#REF!"}},{"$f":"AND(#REF!,\"LgOG6kUgU1I=\")","v":{"$error":"#REF!"}},{"$f":"AND(#REF!,\"LgOG6kUgU1M=\")","v":{"$error":"#REF!"}},{"$f":"AND(#REF!,\"LgOG6kUgU1Q=\")","v":{"$error":"#REF!"}},{"$f":"AND(#REF!,\"LgOG6kUgU1U=\")","v":{"$error":"#REF!"}},{"$f":"AND(#REF!,\"LgOG6kUgU1Y=\")","v":{"$error":"#REF!"}},{"$f":"AND(#REF!,\"LgOG6kUgU1c=\")","v":{"$error":"#REF!"}},{"$f":"AND(#REF!,\"LgOG6kUgU1g=\")","v":{"$error":"#REF!"}},{"$f":"AND(#REF!,\"LgOG6kUgU1k=\")","v":{"$error":"#REF!"}},{"$f":"AND(#REF!,\"LgOG6kUgU1o=\")","v":{"$error":"#REF!"}},{"$f":"AND(#REF!,\"LgOG6kUgU1s=\")","v":{"$error":"#REF!"}},{"$f":"AND(#REF!,\"LgOG6kUgU1w=\")","v":{"$error":"#REF!"}},{"$f":"AND(#REF!,\"LgOG6kUgU10=\")","v":{"$error":"#REF!"}},{"$f":"AND(#REF!,\"LgOG6kUgU14=\")","v":{"$error":"#REF!"}},{"$f":"AND(#REF!,\"LgOG6kUgU18=\")","v":{"$error":"#REF!"}},{"$f":"AND(#REF!,\"LgOG6kUgU2A=\")","v":{"$error":"#REF!"}},{"$f":"AND(#REF!,\"LgOG6kUgU2E=\")","v":{"$error":"#REF!"}},{"$f":"AND(#REF!,\"LgOG6kUgU2I=\")","v":{"$error":"#REF!"}},{"$f":"AND(#REF!,\"LgOG6kUgU2M=\")","v":{"$error":"#REF!"}},{"$f":"IF(#REF!,\"LgOG6kUgU2Q=\",0)","v":{"$error":"#REF!"}},{"$f":"AND(#REF!,\"LgOG6kUgU2U=\")","v":{"$error":"#REF!"}},{"$f":"AND(#REF!,\"LgOG6kUgU2Y=\")","v":{"$error":"#REF!"}},{"$f":"AND(#REF!,\"LgOG6kUgU2c=\")","v":{"$error":"#REF!"}},{"$f":"AND(#REF!,\"LgOG6kUgU2g=\")","v":{"$error":"#REF!"}},{"$f":"AND(#REF!,\"LgOG6kUgU2k=\")","v":{"$error":"#REF!"}},{"$f":"AND(#REF!,\"LgOG6kUgU2o=\")","v":{"$error":"#REF!"}},{"$f":"AND(#REF!,\"LgOG6kUgU2s=\")","v":{"$error":"#REF!"}},{"$f":"AND(#REF!,\"LgOG6kUgU2w=\")","v":{"$error":"#REF!"}},{"$f":"AND(#REF!,\"LgOG6kUgU20=\")","v":{"$error":"#REF!"}},{"$f":"AND(#REF!,\"LgOG6kUgU24=\")","v":{"$error":"#REF!"}},{"$f":"AND(#REF!,\"LgOG6kUgU28=\")","v":{"$error":"#REF!"}},{"$f":"AND(#REF!,\"LgOG6kUgU3A=\")","v":{"$error":"#REF!"}},{"$f":"AND(#REF!,\"LgOG6kUgU3E=\")","v":{"$error":"#REF!"}},{"$f":"AND(#REF!,\"LgOG6kUgU3I=\")","v":{"$error":"#REF!"}},{"$f":"AND(#REF!,\"LgOG6kUgU3M=\")","v":{"$error":"#REF!"}},{"$f":"AND(#REF!,\"LgOG6kUgU3Q=\")","v":{"$error":"#REF!"}},{"$f":"AND(#REF!,\"LgOG6kUgU3U=\")","v":{"$error":"#REF!"}},{"$f":"AND(#REF!,\"LgOG6kUgU3Y=\")","v":{"$error":"#REF!"}},{"$f":"AND(#REF!,\"LgOG6kUgU3c=\")","v":{"$error":"#REF!"}},{"$f":"AND(#REF!,\"LgOG6kUgU3g=\")","v":{"$error":"#REF!"}},{"$f":"AND(#REF!,\"LgOG6kUgU3k=\")","v":{"$error":"#REF!"}},{"$f":"AND(#REF!,\"LgOG6kUgU3o=\")","v":{"$error":"#REF!"}},{"$f":"AND(#REF!,\"LgOG6kUgU3s=\")","v":{"$error":"#REF!"}},{"$f":"AND(#REF!,\"LgOG6kUgU3w=\")","v":{"$error":"#REF!"}},{"$f":"AND(#REF!,\"LgOG6kUgU30=\")","v":{"$error":"#REF!"}},{"$f":"AND(#REF!,\"LgOG6kUgU34=\")","v":{"$error":"#REF!"}},{"$f":"AND(#REF!,\"LgOG6kUgU38=\")","v":{"$error":"#REF!"}},{"$f":"AND(#REF!,\"LgOG6kUgU4A=\")","v":{"$error":"#REF!"}},{"$f":"AND(#REF!,\"LgOG6kUgU4E=\")","v":{"$error":"#REF!"}},{"$f":"AND(#REF!,\"LgOG6kUgU4I=\")","v":{"$error":"#REF!"}},{"$f":"AND(#REF!,\"LgOG6kUgU4M=\")","v":{"$error":"#REF!"}},{"$f":"AND(#REF!,\"LgOG6kUgU4Q=\")","v":{"$error":"#REF!"}},{"$f":"AND(#REF!,\"LgOG6kUgU4U=\")","v":{"$error":"#REF!"}},{"$f":"AND(#REF!,\"LgOG6kUgU4Y=\")","v":{"$error":"#REF!"}},{"$f":"AND(#REF!,\"LgOG6kUgU4c=\")","v":{"$error":"#REF!"}},{"$f":"AND(#REF!,\"LgOG6kUgU4g=\")","v":{"$error":"#REF!"}},{"$f":"AND(#REF!,\"LgOG6kUgU4k=\")","v":{"$error":"#REF!"}},{"$f":"AND(#REF!,\"LgOG6kUgU4o=\")","v":{"$error":"#REF!"}},{"$f":"AND(#REF!,\"LgOG6kUgU4s=\")","v":{"$error":"#REF!"}},{"$f":"AND(#REF!,\"LgOG6kUgU4w=\")","v":{"$error":"#REF!"}},{"$f":"AND(#REF!,\"LgOG6kUgU40=\")","v":{"$error":"#REF!"}},{"$f":"AND(#REF!,\"LgOG6kUgU44=\")","v":{"$error":"#REF!"}},{"$f":"AND(#REF!,\"LgOG6kUgU48=\")","v":{"$error":"#REF!"}},{"$f":"AND(#REF!,\"LgOG6kUgU5A=\")","v":{"$error":"#REF!"}},{"$f":"AND(#REF!,\"LgOG6kUgU5E=\")","v":{"$error":"#REF!"}},{"$f":"AND(#REF!,\"LgOG6kUgU5I=\")","v":{"$error":"#REF!"}},{"$f":"AND(#REF!,\"LgOG6kUgU5M=\")","v":{"$error":"#REF!"}},{"$f":"AND(#REF!,\"LgOG6kUgU5Q=\")","v":{"$error":"#REF!"}},{"$f":"AND(#REF!,\"LgOG6kUgU5U=\")","v":{"$error":"#REF!"}},{"$f":"AND(#REF!,\"LgOG6kUgU5Y=\")","v":{"$error":"#REF!"}},{"$f":"AND(#REF!,\"LgOG6kUgU5c=\")","v":{"$error":"#REF!"}},{"$f":"AND(#REF!,\"LgOG6kUgU5g=\")","v":{"$error":"#REF!"}},{"$f":"AND(#REF!,\"LgOG6kUgU5k=\")","v":{"$error":"#REF!"}},{"$f":"AND(#REF!,\"LgOG6kUgU5o=\")","v":{"$error":"#REF!"}},{"$f":"AND(#REF!,\"LgOG6kUgU5s=\")","v":{"$error":"#REF!"}},{"$f":"AND(#REF!,\"LgOG6kUgU5w=\")","v":{"$error":"#REF!"}},{"$f":"AND(#REF!,\"LgOG6kUgU50=\")","v":{"$error":"#REF!"}},{"$f":"AND(#REF!,\"LgOG6kUgU54=\")","v":{"$error":"#REF!"}},{"$f":"AND(#REF!,\"LgOG6kUgU58=\")","v":{"$error":"#REF!"}},{"$f":"AND(#REF!,\"LgOG6kUgU6A=\")","v":{"$error":"#REF!"}},{"$f":"AND(#REF!,\"LgOG6kUgU6E=\")","v":{"$error":"#REF!"}},{"$f":"AND(#REF!,\"LgOG6kUgU6I=\")","v":{"$error":"#REF!"}},{"$f":"AND(#REF!,\"LgOG6kUgU6M=\")","v":{"$error":"#REF!"}},{"$f":"AND(#REF!,\"LgOG6kUgU6Q=\")","v":{"$error":"#REF!"}},{"$f":"AND(#REF!,\"LgOG6kUgU6U=\")","v":{"$error":"#REF!"}},{"$f":"AND(#REF!,\"LgOG6kUgU6Y=\")","v":{"$error":"#REF!"}},{"$f":"AND(#REF!,\"LgOG6kUgU6c=\")","v":{"$error":"#REF!"}},{"$f":"AND(#REF!,\"LgOG6kUgU6g=\")","v":{"$error":"#REF!"}},{"$f":"AND(#REF!,\"LgOG6kUgU6k=\")","v":{"$error":"#REF!"}},{"$f":"AND(#REF!,\"LgOG6kUgU6o=\")","v":{"$error":"#REF!"}},{"$f":"AND(#REF!,\"LgOG6kUgU6s=\")","v":{"$error":"#REF!"}},{"$f":"AND(#REF!,\"LgOG6kUgU6w=\")","v":{"$error":"#REF!"}},{"$f":"AND(#REF!,\"LgOG6kUgU60=\")","v":{"$error":"#REF!"}},{"$f":"AND(#REF!,\"LgOG6kUgU64=\")","v":{"$error":"#REF!"}},{"$f":"AND(#REF!,\"LgOG6kUgU68=\")","v":{"$error":"#REF!"}},{"$f":"AND(#REF!,\"LgOG6kUgU7A=\")","v":{"$error":"#REF!"}},{"$f":"AND(#REF!,\"LgOG6kUgU7E=\")","v":{"$error":"#REF!"}},{"$f":"AND(#REF!,\"LgOG6kUgU7I=\")","v":{"$error":"#REF!"}},{"$f":"AND(#REF!,\"LgOG6kUgU7M=\")","v":{"$error":"#REF!"}},{"$f":"AND(#REF!,\"LgOG6kUgU7Q=\")","v":{"$error":"#REF!"}},{"$f":"AND(#REF!,\"LgOG6kUgU7U=\")","v":{"$error":"#REF!"}},{"$f":"AND(#REF!,\"LgOG6kUgU7Y=\")","v":{"$error":"#REF!"}},{"$f":"AND(#REF!,\"LgOG6kUgU7c=\")","v":{"$error":"#REF!"}},{"$f":"AND(#REF!,\"LgOG6kUgU7g=\")","v":{"$error":"#REF!"}},{"$f":"AND(#REF!,\"LgOG6kUgU7k=\")","v":{"$error":"#REF!"}},{"$f":"AND(#REF!,\"LgOG6kUgU7o=\")","v":{"$error":"#REF!"}},{"$f":"AND(#REF!,\"LgOG6kUgU7s=\")","v":{"$error":"#REF!"}},{"$f":"AND(#REF!,\"LgOG6kUgU7w=\")","v":{"$error":"#REF!"}},{"$f":"AND(#REF!,\"LgOG6kUgU70=\")","v":{"$error":"#REF!"}},{"$f":"AND(#REF!,\"LgOG6kUgU74=\")","v":{"$error":"#REF!"}},{"$f":"AND(#REF!,\"LgOG6kUgU78=\")","v":{"$error":"#REF!"}},{"$f":"AND(#REF!,\"LgOG6kUgU8A=\")","v":{"$error":"#REF!"}},{"$f":"AND(#REF!,\"LgOG6kUgU8E=\")","v":{"$error":"#REF!"}},{"$f":"AND(#REF!,\"LgOG6kUgU8I=\")","v":{"$error":"#REF!"}},{"$f":"AND(#REF!,\"LgOG6kUgU8M=\")","v":{"$error":"#REF!"}},{"$f":"AND(#REF!,\"LgOG6kUgU8Q=\")","v":{"$error":"#REF!"}},{"$f":"AND(#REF!,\"LgOG6kUgU8U=\")","v":{"$error":"#REF!"}},{"$f":"AND(#REF!,\"LgOG6kUgU8Y=\")","v":{"$error":"#REF!"}},{"$f":"AND(#REF!,\"LgOG6kUgU8c=\")","v":{"$error":"#REF!"}},{"$f":"AND(#REF!,\"LgOG6kUgU8g=\")","v":{"$error":"#REF!"}},{"$f":"AND(#REF!,\"LgOG6kUgU8k=\")","v":{"$error":"#REF!"}},{"$f":"AND(#REF!,\"LgOG6kUgU8o=\")","v":{"$error":"#REF!"}},{"$f":"AND(#REF!,\"LgOG6kUgU8s=\")","v":{"$error":"#REF!"}},{"$f":"AND(#REF!,\"LgOG6kUgU8w=\")","v":{"$error":"#REF!"}},{"$f":"AND(#REF!,\"LgOG6kUgU80=\")","v":{"$error":"#REF!"}},{"$f":"AND(#REF!,\"LgOG6kUgU84=\")","v":{"$error":"#REF!"}},{"$f":"AND(#REF!,\"LgOG6kUgU88=\")","v":{"$error":"#REF!"}},{"$f":"AND(#REF!,\"LgOG6kUgU9A=\")","v":{"$error":"#REF!"}},{"$f":"AND(#REF!,\"LgOG6kUgU9E=\")","v":{"$error":"#REF!"}},{"$f":"AND(#REF!,\"LgOG6kUgU9I=\")","v":{"$error":"#REF!"}},{"$f":"AND(#REF!,\"LgOG6kUgU9M=\")","v":{"$error":"#REF!"}},{"$f":"AND(#REF!,\"LgOG6kUgU9Q=\")","v":{"$error":"#REF!"}},{"$f":"AND(#REF!,\"LgOG6kUgU9U=\")","v":{"$error":"#REF!"}},{"$f":"AND(#REF!,\"LgOG6kUgU9Y=\")","v":{"$error":"#REF!"}},{"$f":"AND(#REF!,\"LgOG6kUgU9c=\")","v":{"$error":"#REF!"}},{"$f":"AND(#REF!,\"LgOG6kUgU9g=\")","v":{"$error":"#REF!"}},{"$f":"AND(#REF!,\"LgOG6kUgU9k=\")","v":{"$error":"#REF!"}},{"$f":"AND(#REF!,\"LgOG6kUgU9o=\")","v":{"$error":"#REF!"}},{"$f":"AND(#REF!,\"LgOG6kUgU9s=\")","v":{"$error":"#REF!"}},{"$f":"AND(#REF!,\"LgOG6kUgU9w=\")","v":{"$error":"#REF!"}},{"$f":"AND(#REF!,\"LgOG6kUgU90=\")","v":{"$error":"#REF!"}},{"$f":"AND(#REF!,\"LgOG6kUgU94=\")","v":{"$error":"#REF!"}},{"$f":"AND(#REF!,\"LgOG6kUgU98=\")","v":{"$error":"#REF!"}},{"$f":"AND(#REF!,\"LgOG6kUgU+A=\")","v":{"$error":"#REF!"}},{"$f":"AND(#REF!,\"LgOG6kUgU+E=\")","v":{"$error":"#REF!"}},{"$f":"AND(#REF!,\"LgOG6kUgU+I=\")","v":{"$error":"#REF!"}},{"$f":"AND(#REF!,\"LgOG6kUgU+M=\")","v":{"$error":"#REF!"}},{"$f":"AND(#REF!,\"LgOG6kUgU+Q=\")","v":{"$error":"#REF!"}},{"$f":"AND(#REF!,\"LgOG6kUgU+U=\")","v":{"$error":"#REF!"}},{"$f":"AND(#REF!,\"LgOG6kUgU+Y=\")","v":{"$error":"#REF!"}},{"$f":"AND(#REF!,\"LgOG6kUgU+c=\")","v":{"$error":"#REF!"}},{"$f":"AND(#REF!,\"LgOG6kUgU+g=\")","v":{"$error":"#REF!"}},{"$f":"AND(#REF!,\"LgOG6kUgU+k=\")","v":{"$error":"#REF!"}},{"$f":"AND(#REF!,\"LgOG6kUgU+o=\")","v":{"$error":"#REF!"}},{"$f":"AND(#REF!,\"LgOG6kUgU+s=\")","v":{"$error":"#REF!"}},{"$f":"AND(#REF!,\"LgOG6kUgU+w=\")","v":{"$error":"#REF!"}},{"$f":"AND(#REF!,\"LgOG6kUgU+0=\")","v":{"$error":"#REF!"}},{"$f":"AND(#REF!,\"LgOG6kUgU+4=\")","v":{"$error":"#REF!"}},{"$f":"AND(#REF!,\"LgOG6kUgU+8=\")","v":{"$error":"#REF!"}},{"$f":"AND(#REF!,\"LgOG6kUgU/A=\")","v":{"$error":"#REF!"}},{"$f":"AND(#REF!,\"LgOG6kUgU/E=\")","v":{"$error":"#REF!"}},{"$f":"AND(#REF!,\"LgOG6kUgU/I=\")","v":{"$error":"#REF!"}},{"$f":"AND(#REF!,\"LgOG6kUgU/M=\")","v":{"$error":"#REF!"}},{"$f":"AND(#REF!,\"LgOG6kUgU/Q=\")","v":{"$error":"#REF!"}},{"$f":"AND(#REF!,\"LgOG6kUgU/U=\")","v":{"$error":"#REF!"}},{"$f":"AND(#REF!,\"LgOG6kUgU/Y=\")","v":{"$error":"#REF!"}},{"$f":"AND(#REF!,\"LgOG6kUgU/c=\")","v":{"$error":"#REF!"}},{"$f":"AND(#REF!,\"LgOG6kUgU/g=\")","v":{"$error":"#REF!"}},{"$f":"AND(#REF!,\"LgOG6kUgU/k=\")","v":{"$error":"#REF!"}},{"$f":"AND(#REF!,\"LgOG6kUgU/o=\")","v":{"$error":"#REF!"}},{"$f":"AND(#REF!,\"LgOG6kUgU/s=\")","v":{"$error":"#REF!"}},{"$f":"AND(#REF!,\"LgOG6kUgU/w=\")","v":{"$error":"#REF!"}},{"$f":"AND(#REF!,\"LgOG6kUgU/0=\")","v":{"$error":"#REF!"}},{"$f":"AND(#REF!,\"LgOG6kUgU/4=\")","v":{"$error":"#REF!"}},{"$f":"AND(#REF!,\"LgOG6kUgU/8=\")","v":{"$error":"#REF!"}}]
[{"$f":"AND(#REF!,\"fu9x/gzdigA=\")","v":{"$error":"#REF!"}},{"$f":"AND(#REF!,\"fu9x/gzdigE=\")","v":{"$error":"#REF!"}},{"$f":"AND(#REF!,\"fu9x/gzdigI=\")","v":{"$error":"#REF!"}},{"$f":"AND(#REF!,\"fu9x/gzdigM=\")","v":{"$error":"#REF!"}},{"$f":"AND(#REF!,\"fu9x/gzdigQ=\")","v":{"$error":"#REF!"}},{"$f":"AND(#REF!,\"fu9x/gzdigU=\")","v":{"$error":"#REF!"}},{"$f":"AND(#REF!,\"fu9x/gzdigY=\")","v":{"$error":"#REF!"}},{"$f":"AND(#REF!,\"fu9x/gzdigc=\")","v":{"$error":"#REF!"}},{"$f":"AND(#REF!,\"fu9x/gzdigg=\")","v":{"$error":"#REF!"}},{"$f":"AND(#REF!,\"fu9x/gzdigk=\")","v":{"$error":"#REF!"}},{"$f":"AND(#REF!,\"fu9x/gzdigo=\")","v":{"$error":"#REF!"}},{"$f":"AND(#REF!,\"fu9x/gzdigs=\")","v":{"$error":"#REF!"}},{"$f":"AND(#REF!,\"fu9x/gzdigw=\")","v":{"$error":"#REF!"}},{"$f":"AND(#REF!,\"fu9x/gzdig0=\")","v":{"$error":"#REF!"}},{"$f":"AND(#REF!,\"fu9x/gzdig4=\")","v":{"$error":"#REF!"}},{"$f":"AND(#REF!,\"fu9x/gzdig8=\")","v":{"$error":"#REF!"}},{"$f":"AND(#REF!,\"fu9x/gzdihA=\")","v":{"$error":"#REF!"}},{"$f":"AND(#REF!,\"fu9x/gzdihE=\")","v":{"$error":"#REF!"}},{"$f":"AND(#REF!,\"fu9x/gzdihI=\")","v":{"$error":"#REF!"}},{"$f":"AND(#REF!,\"fu9x/gzdihM=\")","v":{"$error":"#REF!"}},{"$f":"AND(#REF!,\"fu9x/gzdihQ=\")","v":{"$error":"#REF!"}},{"$f":"AND(#REF!,\"fu9x/gzdihU=\")","v":{"$error":"#REF!"}},{"$f":"AND(#REF!,\"fu9x/gzdihY=\")","v":{"$error":"#REF!"}},{"$f":"AND(#REF!,\"fu9x/gzdihc=\")","v":{"$error":"#REF!"}},{"$f":"AND(#REF!,\"fu9x/gzdihg=\")","v":{"$error":"#REF!"}},{"$f":"AND(#REF!,\"fu9x/gzdihk=\")","v":{"$error":"#REF!"}},{"$f":"AND(#REF!,\"fu9x/gzdiho=\")","v":{"$error":"#REF!"}},{"$f":"AND(#REF!,\"fu9x/gzdihs=\")","v":{"$error":"#REF!"}},{"$f":"AND(#REF!,\"fu9x/gzdihw=\")","v":{"$error":"#REF!"}},{"$f":"AND(#REF!,\"fu9x/gzdih0=\")","v":{"$error":"#REF!"}},{"$f":"AND(#REF!,\"fu9x/gzdih4=\")","v":{"$error":"#REF!"}},{"$f":"AND(#REF!,\"fu9x/gzdih8=\")","v":{"$error":"#REF!"}},{"$f":"AND(#REF!,\"fu9x/gzdiiA=\")","v":{"$error":"#REF!"}},{"$f":"AND(#REF!,\"fu9x/gzdiiE=\")","v":{"$error":"#REF!"}},{"$f":"AND(#REF!,\"fu9x/gzdiiI=\")","v":{"$error":"#REF!"}},{"$f":"AND(#REF!,\"fu9x/gzdiiM=\")","v":{"$error":"#REF!"}},{"$f":"AND(#REF!,\"fu9x/gzdiiQ=\")","v":{"$error":"#REF!"}},{"$f":"AND(#REF!,\"fu9x/gzdiiU=\")","v":{"$error":"#REF!"}},{"$f":"AND(#REF!,\"fu9x/gzdiiY=\")","v":{"$error":"#REF!"}},{"$f":"AND(#REF!,\"fu9x/gzdiic=\")","v":{"$error":"#REF!"}},{"$f":"AND(#REF!,\"fu9x/gzdiig=\")","v":{"$error":"#REF!"}},{"$f":"AND(#REF!,\"fu9x/gzdiik=\")","v":{"$error":"#REF!"}},{"$f":"AND(#REF!,\"fu9x/gzdiio=\")","v":{"$error":"#REF!"}},{"$f":"IF(#REF!,\"fu9x/gzdiis=\",0)","v":{"$error":"#REF!"}},{"$f":"AND(#REF!,\"fu9x/gzdiiw=\")","v":{"$error":"#REF!"}},{"$f":"AND(#REF!,\"fu9x/gzdii0=\")","v":{"$error":"#REF!"}},{"$f":"AND(#REF!,\"fu9x/gzdii4=\")","v":{"$error":"#REF!"}},{"$f":"AND(#REF!,\"fu9x/gzdii8=\")","v":{"$error":"#REF!"}},{"$f":"AND(#REF!,\"fu9x/gzdijA=\")","v":{"$error":"#REF!"}},{"$f":"AND(#REF!,\"fu9x/gzdijE=\")","v":{"$error":"#REF!"}},{"$f":"AND(#REF!,\"fu9x/gzdijI=\")","v":{"$error":"#REF!"}},{"$f":"AND(#REF!,\"fu9x/gzdijM=\")","v":{"$error":"#REF!"}},{"$f":"AND(#REF!,\"fu9x/gzdijQ=\")","v":{"$error":"#REF!"}},{"$f":"AND(#REF!,\"fu9x/gzdijU=\")","v":{"$error":"#REF!"}},{"$f":"AND(#REF!,\"fu9x/gzdijY=\")","v":{"$error":"#REF!"}},{"$f":"AND(#REF!,\"fu9x/gzdijc=\")","v":{"$error":"#REF!"}},{"$f":"AND(#REF!,\"fu9x/gzdijg=\")","v":{"$error":"#REF!"}},{"$f":"AND(#REF!,\"fu9x/gzdijk=\")","v":{"$error":"#REF!"}},{"$f":"AND(#REF!,\"fu9x/gzdijo=\")","v":{"$error":"#REF!"}},{"$f":"AND(#REF!,\"fu9x/gzdijs=\")","v":{"$error":"#REF!"}},{"$f":"AND(#REF!,\"fu9x/gzdijw=\")","v":{"$error":"#REF!"}},{"$f":"AND(#REF!,\"fu9x/gzdij0=\")","v":{"$error":"#REF!"}},{"$f":"AND(#REF!,\"fu9x/gzdij4=\")","v":{"$error":"#REF!"}},{"$f":"AND(#REF!,\"fu9x/gzdij8=\")","v":{"$error":"#REF!"}},{"$f":"AND(#REF!,\"fu9x/gzdikA=\")","v":{"$error":"#REF!"}},{"$f":"AND(#REF!,\"fu9x/gzdikE=\")","v":{"$error":"#REF!"}},{"$f":"AND(#REF!,\"fu9x/gzdikI=\")","v":{"$error":"#REF!"}},{"$f":"AND(#REF!,\"fu9x/gzdikM=\")","v":{"$error":"#REF!"}},{"$f":"AND(#REF!,\"fu9x/gzdikQ=\")","v":{"$error":"#REF!"}},{"$f":"AND(#REF!,\"fu9x/gzdikU=\")","v":{"$error":"#REF!"}},{"$f":"AND(#REF!,\"fu9x/gzdikY=\")","v":{"$error":"#REF!"}},{"$f":"AND(#REF!,\"fu9x/gzdikc=\")","v":{"$error":"#REF!"}},{"$f":"AND(#REF!,\"fu9x/gzdikg=\")","v":{"$error":"#REF!"}},{"$f":"AND(#REF!,\"fu9x/gzdikk=\")","v":{"$error":"#REF!"}},{"$f":"AND(#REF!,\"fu9x/gzdiko=\")","v":{"$error":"#REF!"}},{"$f":"AND(#REF!,\"fu9x/gzdiks=\")","v":{"$error":"#REF!"}},{"$f":"AND(#REF!,\"fu9x/gzdikw=\")","v":{"$error":"#REF!"}},{"$f":"AND(#REF!,\"fu9x/gzdik0=\")","v":{"$error":"#REF!"}},{"$f":"AND(#REF!,\"fu9x/gzdik4=\")","v":{"$error":"#REF!"}},{"$f":"AND(#REF!,\"fu9x/gzdik8=\")","v":{"$error":"#REF!"}},{"$f":"AND(#REF!,\"fu9x/gzdilA=\")","v":{"$error":"#REF!"}},{"$f":"AND(#REF!,\"fu9x/gzdilE=\")","v":{"$error":"#REF!"}},{"$f":"AND(#REF!,\"fu9x/gzdilI=\")","v":{"$error":"#REF!"}},{"$f":"AND(#REF!,\"fu9x/gzdilM=\")","v":{"$error":"#REF!"}},{"$f":"AND(#REF!,\"fu9x/gzdilQ=\")","v":{"$error":"#REF!"}},{"$f":"AND(#REF!,\"fu9x/gzdilU=\")","v":{"$error":"#REF!"}},{"$f":"AND(#REF!,\"fu9x/gzdilY=\")","v":{"$error":"#REF!"}},{"$f":"AND(#REF!,\"fu9x/gzdilc=\")","v":{"$error":"#REF!"}},{"$f":"AND(#REF!,\"fu9x/gzdilg=\")","v":{"$error":"#REF!"}},{"$f":"AND(#REF!,\"fu9x/gzdilk=\")","v":{"$error":"#REF!"}},{"$f":"AND(#REF!,\"fu9x/gzdilo=\")","v":{"$error":"#REF!"}},{"$f":"AND(#REF!,\"fu9x/gzdils=\")","v":{"$error":"#REF!"}},{"$f":"AND(#REF!,\"fu9x/gzdilw=\")","v":{"$error":"#REF!"}},{"$f":"AND(#REF!,\"fu9x/gzdil0=\")","v":{"$error":"#REF!"}},{"$f":"AND(#REF!,\"fu9x/gzdil4=\")","v":{"$error":"#REF!"}},{"$f":"AND(#REF!,\"fu9x/gzdil8=\")","v":{"$error":"#REF!"}},{"$f":"AND(#REF!,\"fu9x/gzdimA=\")","v":{"$error":"#REF!"}},{"$f":"AND(#REF!,\"fu9x/gzdimE=\")","v":{"$error":"#REF!"}},{"$f":"AND(#REF!,\"fu9x/gzdimI=\")","v":{"$error":"#REF!"}},{"$f":"AND(#REF!,\"fu9x/gzdimM=\")","v":{"$error":"#REF!"}},{"$f":"AND(#REF!,\"fu9x/gzdimQ=\")","v":{"$error":"#REF!"}},{"$f":"AND(#REF!,\"fu9x/gzdimU=\")","v":{"$error":"#REF!"}},{"$f":"AND(#REF!,\"fu9x/gzdimY=\")","v":{"$error":"#REF!"}},{"$f":"AND(#REF!,\"fu9x/gzdimc=\")","v":{"$error":"#REF!"}},{"$f":"AND(#REF!,\"fu9x/gzdimg=\")","v":{"$error":"#REF!"}},{"$f":"AND(#REF!,\"fu9x/gzdimk=\")","v":{"$error":"#REF!"}},{"$f":"AND(#REF!,\"fu9x/gzdimo=\")","v":{"$error":"#REF!"}},{"$f":"AND(#REF!,\"fu9x/gzdims=\")","v":{"$error":"#REF!"}},{"$f":"AND(#REF!,\"fu9x/gzdimw=\")","v":{"$error":"#REF!"}},{"$f":"AND(#REF!,\"fu9x/gzdim0=\")","v":{"$error":"#REF!"}},{"$f":"AND(#REF!,\"fu9x/gzdim4=\")","v":{"$error":"#REF!"}},{"$f":"AND(#REF!,\"fu9x/gzdim8=\")","v":{"$error":"#REF!"}},{"$f":"AND(#REF!,\"fu9x/gzdinA=\")","v":{"$error":"#REF!"}},{"$f":"AND(#REF!,\"fu9x/gzdinE=\")","v":{"$error":"#REF!"}},{"$f":"AND(#REF!,\"fu9x/gzdinI=\")","v":{"$error":"#REF!"}},{"$f":"AND(#REF!,\"fu9x/gzdinM=\")","v":{"$error":"#REF!"}},{"$f":"AND(#REF!,\"fu9x/gzdinQ=\")","v":{"$error":"#REF!"}},{"$f":"AND(#REF!,\"fu9x/gzdinU=\")","v":{"$error":"#REF!"}},{"$f":"AND(#REF!,\"fu9x/gzdinY=\")","v":{"$error":"#REF!"}},{"$f":"AND(#REF!,\"fu9x/gzdinc=\")","v":{"$error":"#REF!"}},{"$f":"AND(#REF!,\"fu9x/gzding=\")","v":{"$error":"#REF!"}},{"$f":"AND(#REF!,\"fu9x/gzdink=\")","v":{"$error":"#REF!"}},{"$f":"AND(#REF!,\"fu9x/gzdino=\")","v":{"$error":"#REF!"}},{"$f":"AND(#REF!,\"fu9x/gzdins=\")","v":{"$error":"#REF!"}},{"$f":"AND(#REF!,\"fu9x/gzdinw=\")","v":{"$error":"#REF!"}},{"$f":"AND(#REF!,\"fu9x/gzdin0=\")","v":{"$error":"#REF!"}},{"$f":"AND(#REF!,\"fu9x/gzdin4=\")","v":{"$error":"#REF!"}},{"$f":"AND(#REF!,\"fu9x/gzdin8=\")","v":{"$error":"#REF!"}},{"$f":"AND(#REF!,\"fu9x/gzdioA=\")","v":{"$error":"#REF!"}},{"$f":"AND(#REF!,\"fu9x/gzdioE=\")","v":{"$error":"#REF!"}},{"$f":"AND(#REF!,\"fu9x/gzdioI=\")","v":{"$error":"#REF!"}},{"$f":"AND(#REF!,\"fu9x/gzdioM=\")","v":{"$error":"#REF!"}},{"$f":"AND(#REF!,\"fu9x/gzdioQ=\")","v":{"$error":"#REF!"}},{"$f":"AND(#REF!,\"fu9x/gzdioU=\")","v":{"$error":"#REF!"}},{"$f":"AND(#REF!,\"fu9x/gzdioY=\")","v":{"$error":"#REF!"}},{"$f":"AND(#REF!,\"fu9x/gzdioc=\")","v":{"$error":"#REF!"}},{"$f":"AND(#REF!,\"fu9x/gzdiog=\")","v":{"$error":"#REF!"}},{"$f":"AND(#REF!,\"fu9x/gzdiok=\")","v":{"$error":"#REF!"}},{"$f":"AND(#REF!,\"fu9x/gzdioo=\")","v":{"$error":"#REF!"}},{"$f":"AND(#REF!,\"fu9x/gzdios=\")","v":{"$error":"#REF!"}},{"$f":"AND(#REF!,\"fu9x/gzdiow=\")","v":{"$error":"#REF!"}},{"$f":"AND(#REF!,\"fu9x/gzdio0=\")","v":{"$error":"#REF!"}},{"$f":"AND(#REF!,\"fu9x/gzdio4=\")","v":{"$error":"#REF!"}},{"$f":"AND(#REF!,\"fu9x/gzdio8=\")","v":{"$error":"#REF!"}},{"$f":"AND(#REF!,\"fu9x/gzdipA=\")","v":{"$error":"#REF!"}},{"$f":"AND(#REF!,\"fu9x/gzdipE=\")","v":{"$error":"#REF!"}},{"$f":"AND(#REF!,\"fu9x/gzdipI=\")","v":{"$error":"#REF!"}},{"$f":"AND(#REF!,\"fu9x/gzdipM=\")","v":{"$error":"#REF!"}},{"$f":"AND(#REF!,\"fu9x/gzdipQ=\")","v":{"$error":"#REF!"}},{"$f":"AND(#REF!,\"fu9x/gzdipU=\")","v":{"$error":"#REF!"}},{"$f":"AND(#REF!,\"fu9x/gzdipY=\")","v":{"$error":"#REF!"}},{"$f":"AND(#REF!,\"fu9x/gzdipc=\")","v":{"$error":"#REF!"}},{"$f":"AND(#REF!,\"fu9x/gzdipg=\")","v":{"$error":"#REF!"}},{"$f":"AND(#REF!,\"fu9x/gzdipk=\")","v":{"$error":"#REF!"}},{"$f":"AND(#REF!,\"fu9x/gzdipo=\")","v":{"$error":"#REF!"}},{"$f":"AND(#REF!,\"fu9x/gzdips=\")","v":{"$error":"#REF!"}},{"$f":"AND(#REF!,\"fu9x/gzdipw=\")","v":{"$error":"#REF!"}},{"$f":"AND(#REF!,\"fu9x/gzdip0=\")","v":{"$error":"#REF!"}},{"$f":"AND(#REF!,\"fu9x/gzdip4=\")","v":{"$error":"#REF!"}},{"$f":"AND(#REF!,\"fu9x/gzdip8=\")","v":{"$error":"#REF!"}},{"$f":"AND(#REF!,\"fu9x/gzdiqA=\")","v":{"$error":"#REF!"}},{"$f":"AND(#REF!,\"fu9x/gzdiqE=\")","v":{"$error":"#REF!"}},{"$f":"AND(#REF!,\"fu9x/gzdiqI=\")","v":{"$error":"#REF!"}},{"$f":"AND(#REF!,\"fu9x/gzdiqM=\")","v":{"$error":"#REF!"}},{"$f":"AND(#REF!,\"fu9x/gzdiqQ=\")","v":{"$error":"#REF!"}},{"$f":"AND(#REF!,\"fu9x/gzdiqU=\")","v":{"$error":"#REF!"}},{"$f":"AND(#REF!,\"fu9x/gzdiqY=\")","v":{"$error":"#REF!"}},{"$f":"AND(#REF!,\"fu9x/gzdiqc=\")","v":{"$error":"#REF!"}},{"$f":"AND(#REF!,\"fu9x/gzdiqg=\")","v":{"$error":"#REF!"}},{"$f":"AND(#REF!,\"fu9x/gzdiqk=\")","v":{"$error":"#REF!"}},{"$f":"AND(#REF!,\"fu9x/gzdiqo=\")","v":{"$error":"#REF!"}},{"$f":"AND(#REF!,\"fu9x/gzdiqs=\")","v":{"$error":"#REF!"}},{"$f":"AND(#REF!,\"fu9x/gzdiqw=\")","v":{"$error":"#REF!"}},{"$f":"AND(#REF!,\"fu9x/gzdiq0=\")","v":{"$error":"#REF!"}},{"$f":"AND(#REF!,\"fu9x/gzdiq4=\")","v":{"$error":"#REF!"}},{"$f":"AND(#REF!,\"fu9x/gzdiq8=\")","v":{"$error":"#REF!"}},{"$f":"AND(#REF!,\"fu9x/gzdirA=\")","v":{"$error":"#REF!"}},{"$f":"AND(#REF!,\"fu9x/gzdirE=\")","v":{"$error":"#REF!"}},{"$f":"AND(#REF!,\"fu9x/gzdirI=\")","v":{"$error":"#REF!"}},{"$f":"AND(#REF!,\"fu9x/gzdirM=\")","v":{"$error":"#REF!"}},{"$f":"AND(#REF!,\"fu9x/gzdirQ=\")","v":{"$error":"#REF!"}},{"$f":"AND(#REF!,\"fu9x/gzdirU=\")","v":{"$error":"#REF!"}},{"$f":"AND(#REF!,\"fu9x/gzdirY=\")","v":{"$error":"#REF!"}},{"$f":"AND(#REF!,\"fu9x/gzdirc=\")","v":{"$error":"#REF!"}},{"$f":"AND(#REF!,\"fu9x/gzdirg=\")","v":{"$error":"#REF!"}},{"$f":"AND(#REF!,\"fu9x/gzdirk=\")","v":{"$error":"#REF!"}},{"$f":"AND(#REF!,\"fu9x/gzdiro=\")","v":{"$error":"#REF!"}},{"$f":"AND(#REF!,\"fu9x/gzdirs=\")","v":{"$error":"#REF!"}},{"$f":"AND(#REF!,\"fu9x/gzdirw=\")","v":{"$error":"#REF!"}},{"$f":"AND(#REF!,\"fu9x/gzdir0=\")","v":{"$error":"#REF!"}},{"$f":"AND(#REF!,\"fu9x/gzdir4=\")","v":{"$error":"#REF!"}},{"$f":"AND(#REF!,\"fu9x/gzdir8=\")","v":{"$error":"#REF!"}},{"$f":"AND(#REF!,\"fu9x/gzdisA=\")","v":{"$error":"#REF!"}},{"$f":"AND(#REF!,\"fu9x/gzdisE=\")","v":{"$error":"#REF!"}},{"$f":"AND(#REF!,\"fu9x/gzdisI=\")","v":{"$error":"#REF!"}},{"$f":"AND(#REF!,\"fu9x/gzdisM=\")","v":{"$error":"#REF!"}},{"$f":"AND(#REF!,\"fu9x/gzdisQ=\")","v":{"$error":"#REF!"}},{"$f":"AND(#REF!,\"fu9x/gzdisU=\")","v":{"$error":"#REF!"}},{"$f":"AND(#REF!,\"fu9x/gzdisY=\")","v":{"$error":"#REF!"}},{"$f":"AND(#REF!,\"fu9x/gzdisc=\")","v":{"$error":"#REF!"}},{"$f":"AND(#REF!,\"fu9x/gzdisg=\")","v":{"$error":"#REF!"}},{"$f":"AND(#REF!,\"fu9x/gzdisk=\")","v":{"$error":"#REF!"}},{"$f":"AND(#REF!,\"fu9x/gzdiso=\")","v":{"$error":"#REF!"}},{"$f":"AND(#REF!,\"fu9x/gzdiss=\")","v":{"$error":"#REF!"}},{"$f":"AND(#REF!,\"fu9x/gzdisw=\")","v":{"$error":"#REF!"}},{"$f":"AND(#REF!,\"fu9x/gzdis0=\")","v":{"$error":"#REF!"}},{"$f":"AND(#REF!,\"fu9x/gzdis4=\")","v":{"$error":"#REF!"}},{"$f":"AND(#REF!,\"fu9x/gzdis8=\")","v":{"$error":"#REF!"}},{"$f":"AND(#REF!,\"fu9x/gzditA=\")","v":{"$error":"#REF!"}},{"$f":"AND(#REF!,\"fu9x/gzditE=\")","v":{"$error":"#REF!"}},{"$f":"AND(#REF!,\"fu9x/gzditI=\")","v":{"$error":"#REF!"}},{"$f":"AND(#REF!,\"fu9x/gzditM=\")","v":{"$error":"#REF!"}},{"$f":"AND(#REF!,\"fu9x/gzditQ=\")","v":{"$error":"#REF!"}},{"$f":"AND(#REF!,\"fu9x/gzditU=\")","v":{"$error":"#REF!"}},{"$f":"AND(#REF!,\"fu9x/gzditY=\")","v":{"$error":"#REF!"}},{"$f":"AND(#REF!,\"fu9x/gzditc=\")","v":{"$error":"#REF!"}},{"$f":"AND(#REF!,\"fu9x/gzditg=\")","v":{"$error":"#REF!"}},{"$f":"AND(#REF!,\"fu9x/gzditk=\")","v":{"$error":"#REF!"}},{"$f":"AND(#REF!,\"fu9x/gzdito=\")","v":{"$error":"#REF!"}},{"$f":"AND(#REF!,\"fu9x/gzdits=\")","v":{"$error":"#REF!"}},{"$f":"AND(#REF!,\"fu9x/gzditw=\")","v":{"$error":"#REF!"}},{"$f":"AND(#REF!,\"fu9x/gzdit0=\")","v":{"$error":"#REF!"}},{"$f":"AND(#REF!,\"fu9x/gzdit4=\")","v":{"$error":"#REF!"}},{"$f":"AND(#REF!,\"fu9x/gzdit8=\")","v":{"$error":"#REF!"}},{"$f":"AND(#REF!,\"fu9x/gzdiuA=\")","v":{"$error":"#REF!"}},{"$f":"AND(#REF!,\"fu9x/gzdiuE=\")","v":{"$error":"#REF!"}},{"$f":"AND(#REF!,\"fu9x/gzdiuI=\")","v":{"$error":"#REF!"}},{"$f":"AND(#REF!,\"fu9x/gzdiuM=\")","v":{"$error":"#REF!"}},{"$f":"AND(#REF!,\"fu9x/gzdiuQ=\")","v":{"$error":"#REF!"}},{"$f":"AND(#REF!,\"fu9x/gzdiuU=\")","v":{"$error":"#REF!"}},{"$f":"AND(#REF!,\"fu9x/gzdiuY=\")","v":{"$error":"#REF!"}},{"$f":"AND(#REF!,\"fu9x/gzdiuc=\")","v":{"$error":"#REF!"}},{"$f":"AND(#REF!,\"fu9x/gzdiug=\")","v":{"$error":"#REF!"}},{"$f":"AND(#REF!,\"fu9x/gzdiuk=\")","v":{"$error":"#REF!"}},{"$f":"AND(#REF!,\"fu9x/gzdiuo=\")","v":{"$error":"#REF!"}},{"$f":"AND(#REF!,\"fu9x/gzdius=\")","v":{"$error":"#REF!"}},{"$f":"AND(#REF!,\"fu9x/gzdiuw=\")","v":{"$error":"#REF!"}},{"$f":"AND(#REF!,\"fu9x/gzdiu0=\")","v":{"$error":"#REF!"}},{"$f":"AND(#REF!,\"fu9x/gzdiu4=\")","v":{"$error":"#REF!"}},{"$f":"AND(#REF!,\"fu9x/gzdiu8=\")","v":{"$error":"#REF!"}},{"$f":"AND(#REF!,\"fu9x/gzdivA=\")","v":{"$error":"#REF!"}},{"$f":"AND(#REF!,\"fu9x/gzdivE=\")","v":{"$error":"#REF!"}},{"$f":"IF(#REF!,\"fu9x/gzdivI=\",0)","v":{"$error":"#REF!"}},{"$f":"AND(#REF!,\"fu9x/gzdivM=\")","v":{"$error":"#REF!"}},{"$f":"AND(#REF!,\"fu9x/gzdivQ=\")","v":{"$error":"#REF!"}},{"$f":"AND(#REF!,\"fu9x/gzdivU=\")","v":{"$error":"#REF!"}},{"$f":"AND(#REF!,\"fu9x/gzdivY=\")","v":{"$error":"#REF!"}},{"$f":"AND(#REF!,\"fu9x/gzdivc=\")","v":{"$error":"#REF!"}},{"$f":"AND(#REF!,\"fu9x/gzdivg=\")","v":{"$error":"#REF!"}},{"$f":"AND(#REF!,\"fu9x/gzdivk=\")","v":{"$error":"#REF!"}},{"$f":"AND(#REF!,\"fu9x/gzdivo=\")","v":{"$error":"#REF!"}},{"$f":"AND(#REF!,\"fu9x/gzdivs=\")","v":{"$error":"#REF!"}},{"$f":"AND(#REF!,\"fu9x/gzdivw=\")","v":{"$error":"#REF!"}},{"$f":"AND(#REF!,\"fu9x/gzdiv0=\")","v":{"$error":"#REF!"}},{"$f":"AND(#REF!,\"fu9x/gzdiv4=\")","v":{"$error":"#REF!"}},{"$f":"AND(#REF!,\"fu9x/gzdiv8=\")","v":{"$error":"#REF!"}}]
[{"$f":"AND(#REF!,\"b1tnjmq4nQA=\")","v":{"$error":"#REF!"}},{"$f":"AND(#REF!,\"b1tnjmq4nQE=\")","v":{"$error":"#REF!"}},{"$f":"AND(#REF!,\"b1tnjmq4nQI=\")","v":{"$error":"#REF!"}},{"$f":"AND(#REF!,\"b1tnjmq4nQM=\")","v":{"$error":"#REF!"}},{"$f":"AND(#REF!,\"b1tnjmq4nQQ=\")","v":{"$error":"#REF!"}},{"$f":"AND(#REF!,\"b1tnjmq4nQU=\")","v":{"$error":"#REF!"}},{"$f":"AND(#REF!,\"b1tnjmq4nQY=\")","v":{"$error":"#REF!"}},{"$f":"AND(#REF!,\"b1tnjmq4nQc=\")","v":{"$error":"#REF!"}},{"$f":"AND(#REF!,\"b1tnjmq4nQg=\")","v":{"$error":"#REF!"}},{"$f":"AND(#REF!,\"b1tnjmq4nQk=\")","v":{"$error":"#REF!"}},{"$f":"AND(#REF!,\"b1tnjmq4nQo=\")","v":{"$error":"#REF!"}},{"$f":"AND(#REF!,\"b1tnjmq4nQs=\")","v":{"$error":"#REF!"}},{"$f":"AND(#REF!,\"b1tnjmq4nQw=\")","v":{"$error":"#REF!"}},{"$f":"AND(#REF!,\"b1tnjmq4nQ0=\")","v":{"$error":"#REF!"}},{"$f":"AND(#REF!,\"b1tnjmq4nQ4=\")","v":{"$error":"#REF!"}},{"$f":"AND(#REF!,\"b1tnjmq4nQ8=\")","v":{"$error":"#REF!"}},{"$f":"AND(#REF!,\"b1tnjmq4nRA=\")","v":{"$error":"#REF!"}},{"$f":"AND(#REF!,\"b1tnjmq4nRE=\")","v":{"$error":"#REF!"}},{"$f":"AND(#REF!,\"b1tnjmq4nRI=\")","v":{"$error":"#REF!"}},{"$f":"AND(#REF!,\"b1tnjmq4nRM=\")","v":{"$error":"#REF!"}},{"$f":"AND(#REF!,\"b1tnjmq4nRQ=\")","v":{"$error":"#REF!"}},{"$f":"AND(#REF!,\"b1tnjmq4nRU=\")","v":{"$error":"#REF!"}},{"$f":"AND(#REF!,\"b1tnjmq4nRY=\")","v":{"$error":"#REF!"}},{"$f":"AND(#REF!,\"b1tnjmq4nRc=\")","v":{"$error":"#REF!"}},{"$f":"AND(#REF!,\"b1tnjmq4nRg=\")","v":{"$error":"#REF!"}},{"$f":"AND(#REF!,\"b1tnjmq4nRk=\")","v":{"$error":"#REF!"}},{"$f":"AND(#REF!,\"b1tnjmq4nRo=\")","v":{"$error":"#REF!"}},{"$f":"AND(#REF!,\"b1tnjmq4nRs=\")","v":{"$error":"#REF!"}},{"$f":"AND(#REF!,\"b1tnjmq4nRw=\")","v":{"$error":"#REF!"}},{"$f":"AND(#REF!,\"b1tnjmq4nR0=\")","v":{"$error":"#REF!"}},{"$f":"AND(#REF!,\"b1tnjmq4nR4=\")","v":{"$error":"#REF!"}},{"$f":"AND(#REF!,\"b1tnjmq4nR8=\")","v":{"$error":"#REF!"}},{"$f":"AND(#REF!,\"b1tnjmq4nSA=\")","v":{"$error":"#REF!"}},{"$f":"AND(#REF!,\"b1tnjmq4nSE=\")","v":{"$error":"#REF!"}},{"$f":"AND(#REF!,\"b1tnjmq4nSI=\")","v":{"$error":"#REF!"}},{"$f":"AND(#REF!,\"b1tnjmq4nSM=\")","v":{"$error":"#REF!"}},{"$f":"AND(#REF!,\"b1tnjmq4nSQ=\")","v":{"$error":"#REF!"}},{"$f":"AND(#REF!,\"b1tnjmq4nSU=\")","v":{"$error":"#REF!"}},{"$f":"AND(#REF!,\"b1tnjmq4nSY=\")","v":{"$error":"#REF!"}},{"$f":"AND(#REF!,\"b1tnjmq4nSc=\")","v":{"$error":"#REF!"}},{"$f":"AND(#REF!,\"b1tnjmq4nSg=\")","v":{"$error":"#REF!"}},{"$f":"AND(#REF!,\"b1tnjmq4nSk=\")","v":{"$error":"#REF!"}},{"$f":"AND(#REF!,\"b1tnjmq4nSo=\")","v":{"$error":"#REF!"}},{"$f":"AND(#REF!,\"b1tnjmq4nSs=\")","v":{"$error":"#REF!"}},{"$f":"AND(#REF!,\"b1tnjmq4nSw=\")","v":{"$error":"#REF!"}},{"$f":"AND(#REF!,\"b1tnjmq4nS0=\")","v":{"$error":"#REF!"}},{"$f":"AND(#REF!,\"b1tnjmq4nS4=\")","v":{"$error":"#REF!"}},{"$f":"AND(#REF!,\"b1tnjmq4nS8=\")","v":{"$error":"#REF!"}},{"$f":"AND(#REF!,\"b1tnjmq4nTA=\")","v":{"$error":"#REF!"}},{"$f":"AND(#REF!,\"b1tnjmq4nTE=\")","v":{"$error":"#REF!"}},{"$f":"AND(#REF!,\"b1tnjmq4nTI=\")","v":{"$error":"#REF!"}},{"$f":"AND(#REF!,\"b1tnjmq4nTM=\")","v":{"$error":"#REF!"}},{"$f":"AND(#REF!,\"b1tnjmq4nTQ=\")","v":{"$error":"#REF!"}},{"$f":"AND(#REF!,\"b1tnjmq4nTU=\")","v":{"$error":"#REF!"}},{"$f":"AND(#REF!,\"b1tnjmq4nTY=\")","v":{"$error":"#REF!"}},{"$f":"AND(#REF!,\"b1tnjmq4nTc=\")","v":{"$error":"#REF!"}},{"$f":"AND(#REF!,\"b1tnjmq4nTg=\")","v":{"$error":"#REF!"}},{"$f":"AND(#REF!,\"b1tnjmq4nTk=\")","v":{"$error":"#REF!"}},{"$f":"AND(#REF!,\"b1tnjmq4nTo=\")","v":{"$error":"#REF!"}},{"$f":"AND(#REF!,\"b1tnjmq4nTs=\")","v":{"$error":"#REF!"}},{"$f":"AND(#REF!,\"b1tnjmq4nTw=\")","v":{"$error":"#REF!"}},{"$f":"AND(#REF!,\"b1tnjmq4nT0=\")","v":{"$error":"#REF!"}},{"$f":"AND(#REF!,\"b1tnjmq4nT4=\")","v":{"$error":"#REF!"}},{"$f":"AND(#REF!,\"b1tnjmq4nT8=\")","v":{"$error":"#REF!"}},{"$f":"AND(#REF!,\"b1tnjmq4nUA=\")","v":{"$error":"#REF!"}},{"$f":"AND(#REF!,\"b1tnjmq4nUE=\")","v":{"$error":"#REF!"}},{"$f":"AND(#REF!,\"b1tnjmq4nUI=\")","v":{"$error":"#REF!"}},{"$f":"AND(#REF!,\"b1tnjmq4nUM=\")","v":{"$error":"#REF!"}},{"$f":"AND(#REF!,\"b1tnjmq4nUQ=\")","v":{"$error":"#REF!"}},{"$f":"AND(#REF!,\"b1tnjmq4nUU=\")","v":{"$error":"#REF!"}},{"$f":"AND(#REF!,\"b1tnjmq4nUY=\")","v":{"$error":"#REF!"}},{"$f":"AND(#REF!,\"b1tnjmq4nUc=\")","v":{"$error":"#REF!"}},{"$f":"AND(#REF!,\"b1tnjmq4nUg=\")","v":{"$error":"#REF!"}},{"$f":"AND(#REF!,\"b1tnjmq4nUk=\")","v":{"$error":"#REF!"}},{"$f":"AND(#REF!,\"b1tnjmq4nUo=\")","v":{"$error":"#REF!"}},{"$f":"AND(#REF!,\"b1tnjmq4nUs=\")","v":{"$error":"#REF!"}},{"$f":"AND(#REF!,\"b1tnjmq4nUw=\")","v":{"$error":"#REF!"}},{"$f":"AND(#REF!,\"b1tnjmq4nU0=\")","v":{"$error":"#REF!"}},{"$f":"AND(#REF!,\"b1tnjmq4nU4=\")","v":{"$error":"#REF!"}},{"$f":"AND(#REF!,\"b1tnjmq4nU8=\")","v":{"$error":"#REF!"}},{"$f":"AND(#REF!,\"b1tnjmq4nVA=\")","v":{"$error":"#REF!"}},{"$f":"AND(#REF!,\"b1tnjmq4nVE=\")","v":{"$error":"#REF!"}},{"$f":"AND(#REF!,\"b1tnjmq4nVI=\")","v":{"$error":"#REF!"}},{"$f":"AND(#REF!,\"b1tnjmq4nVM=\")","v":{"$error":"#REF!"}},{"$f":"AND(#REF!,\"b1tnjmq4nVQ=\")","v":{"$error":"#REF!"}},{"$f":"AND(#REF!,\"b1tnjmq4nVU=\")","v":{"$error":"#REF!"}},{"$f":"AND(#REF!,\"b1tnjmq4nVY=\")","v":{"$error":"#REF!"}},{"$f":"AND(#REF!,\"b1tnjmq4nVc=\")","v":{"$error":"#REF!"}},{"$f":"AND(#REF!,\"b1tnjmq4nVg=\")","v":{"$error":"#REF!"}},{"$f":"AND(#REF!,\"b1tnjmq4nVk=\")","v":{"$error":"#REF!"}},{"$f":"AND(#REF!,\"b1tnjmq4nVo=\")","v":{"$error":"#REF!"}},{"$f":"AND(#REF!,\"b1tnjmq4nVs=\")","v":{"$error":"#REF!"}},{"$f":"AND(#REF!,\"b1tnjmq4nVw=\")","v":{"$error":"#REF!"}},{"$f":"AND(#REF!,\"b1tnjmq4nV0=\")","v":{"$error":"#REF!"}},{"$f":"AND(#REF!,\"b1tnjmq4nV4=\")","v":{"$error":"#REF!"}},{"$f":"AND(#REF!,\"b1tnjmq4nV8=\")","v":{"$error":"#REF!"}},{"$f":"AND(#REF!,\"b1tnjmq4nWA=\")","v":{"$error":"#REF!"}},{"$f":"AND(#REF!,\"b1tnjmq4nWE=\")","v":{"$error":"#REF!"}},{"$f":"AND(#REF!,\"b1tnjmq4nWI=\")","v":{"$error":"#REF!"}},{"$f":"AND(#REF!,\"b1tnjmq4nWM=\")","v":{"$error":"#REF!"}},{"$f":"AND(#REF!,\"b1tnjmq4nWQ=\")","v":{"$error":"#REF!"}},{"$f":"AND(#REF!,\"b1tnjmq4nWU=\")","v":{"$error":"#REF!"}},{"$f":"AND(#REF!,\"b1tnjmq4nWY=\")","v":{"$error":"#REF!"}},{"$f":"AND(#REF!,\"b1tnjmq4nWc=\")","v":{"$error":"#REF!"}},{"$f":"AND(#REF!,\"b1tnjmq4nWg=\")","v":{"$error":"#REF!"}},{"$f":"AND(#REF!,\"b1tnjmq4nWk=\")","v":{"$error":"#REF!"}},{"$f":"AND(#REF!,\"b1tnjmq4nWo=\")","v":{"$error":"#REF!"}},{"$f":"AND(#REF!,\"b1tnjmq4nWs=\")","v":{"$error":"#REF!"}},{"$f":"AND(#REF!,\"b1tnjmq4nWw=\")","v":{"$error":"#REF!"}},{"$f":"AND(#REF!,\"b1tnjmq4nW0=\")","v":{"$error":"#REF!"}},{"$f":"AND(#REF!,\"b1tnjmq4nW4=\")","v":{"$error":"#REF!"}},{"$f":"AND(#REF!,\"b1tnjmq4nW8=\")","v":{"$error":"#REF!"}},{"$f":"AND(#REF!,\"b1tnjmq4nXA=\")","v":{"$error":"#REF!"}},{"$f":"AND(#REF!,\"b1tnjmq4nXE=\")","v":{"$error":"#REF!"}},{"$f":"AND(#REF!,\"b1tnjmq4nXI=\")","v":{"$error":"#REF!"}},{"$f":"AND(#REF!,\"b1tnjmq4nXM=\")","v":{"$error":"#REF!"}},{"$f":"AND(#REF!,\"b1tnjmq4nXQ=\")","v":{"$error":"#REF!"}},{"$f":"AND(#REF!,\"b1tnjmq4nXU=\")","v":{"$error":"#REF!"}},{"$f":"AND(#REF!,\"b1tnjmq4nXY=\")","v":{"$error":"#REF!"}},{"$f":"AND(#REF!,\"b1tnjmq4nXc=\")","v":{"$error":"#REF!"}},{"$f":"AND(#REF!,\"b1tnjmq4nXg=\")","v":{"$error":"#REF!"}},{"$f":"AND(#REF!,\"b1tnjmq4nXk=\")","v":{"$error":"#REF!"}},{"$f":"AND(#REF!,\"b1tnjmq4nXo=\")","v":{"$error":"#REF!"}},{"$f":"AND(#REF!,\"b1tnjmq4nXs=\")","v":{"$error":"#REF!"}},{"$f":"AND(#REF!,\"b1tnjmq4nXw=\")","v":{"$error":"#REF!"}},{"$f":"AND(#REF!,\"b1tnjmq4nX0=\")","v":{"$error":"#REF!"}},{"$f":"AND(#REF!,\"b1tnjmq4nX4=\")","v":{"$error":"#REF!"}},{"$f":"AND(#REF!,\"b1tnjmq4nX8=\")","v":{"$error":"#REF!"}},{"$f":"AND(#REF!,\"b1tnjmq4nYA=\")","v":{"$error":"#REF!"}},{"$f":"AND(#REF!,\"b1tnjmq4nYE=\")","v":{"$error":"#REF!"}},{"$f":"AND(#REF!,\"b1tnjmq4nYI=\")","v":{"$error":"#REF!"}},{"$f":"AND(#REF!,\"b1tnjmq4nYM=\")","v":{"$error":"#REF!"}},{"$f":"AND(#REF!,\"b1tnjmq4nYQ=\")","v":{"$error":"#REF!"}},{"$f":"AND(#REF!,\"b1tnjmq4nYU=\")","v":{"$error":"#REF!"}},{"$f":"AND(#REF!,\"b1tnjmq4nYY=\")","v":{"$error":"#REF!"}},{"$f":"AND(#REF!,\"b1tnjmq4nYc=\")","v":{"$error":"#REF!"}},{"$f":"AND(#REF!,\"b1tnjmq4nYg=\")","v":{"$error":"#REF!"}},{"$f":"AND(#REF!,\"b1tnjmq4nYk=\")","v":{"$error":"#REF!"}},{"$f":"AND(#REF!,\"b1tnjmq4nYo=\")","v":{"$error":"#REF!"}},{"$f":"AND(#REF!,\"b1tnjmq4nYs=\")","v":{"$error":"#REF!"}},{"$f":"AND(#REF!,\"b1tnjmq4nYw=\")","v":{"$error":"#REF!"}},{"$f":"AND(#REF!,\"b1tnjmq4nY0=\")","v":{"$error":"#REF!"}},{"$f":"AND(#REF!,\"b1tnjmq4nY4=\")","v":{"$error":"#REF!"}},{"$f":"AND(#REF!,\"b1tnjmq4nY8=\")","v":{"$error":"#REF!"}},{"$f":"AND(#REF!,\"b1tnjmq4nZA=\")","v":{"$error":"#REF!"}},{"$f":"AND(#REF!,\"b1tnjmq4nZE=\")","v":{"$error":"#REF!"}},{"$f":"AND(#REF!,\"b1tnjmq4nZI=\")","v":{"$error":"#REF!"}},{"$f":"AND(#REF!,\"b1tnjmq4nZM=\")","v":{"$error":"#REF!"}},{"$f":"AND(#REF!,\"b1tnjmq4nZQ=\")","v":{"$error":"#REF!"}},{"$f":"AND(#REF!,\"b1tnjmq4nZU=\")","v":{"$error":"#REF!"}},{"$f":"AND(#REF!,\"b1tnjmq4nZY=\")","v":{"$error":"#REF!"}},{"$f":"AND(#REF!,\"b1tnjmq4nZc=\")","v":{"$error":"#REF!"}},{"$f":"AND(#REF!,\"b1tnjmq4nZg=\")","v":{"$error":"#REF!"}},{"$f":"AND(#REF!,\"b1tnjmq4nZk=\")","v":{"$error":"#REF!"}},{"$f":"AND(#REF!,\"b1tnjmq4nZo=\")","v":{"$error":"#REF!"}},{"$f":"AND(#REF!,\"b1tnjmq4nZs=\")","v":{"$error":"#REF!"}},{"$f":"AND(#REF!,\"b1tnjmq4nZw=\")","v":{"$error":"#REF!"}},{"$f":"AND(#REF!,\"b1tnjmq4nZ0=\")","v":{"$error":"#REF!"}},{"$f":"AND(#REF!,\"b1tnjmq4nZ4=\")","v":{"$error":"#REF!"}},{"$f":"AND(#REF!,\"b1tnjmq4nZ8=\")","v":{"$error":"#REF!"}},{"$f":"AND(#REF!,\"b1tnjmq4naA=\")","v":{"$error":"#REF!"}},{"$f":"AND(#REF!,\"b1tnjmq4naE=\")","v":{"$error":"#REF!"}},{"$f":"AND(#REF!,\"b1tnjmq4naI=\")","v":{"$error":"#REF!"}},{"$f":"AND(#REF!,\"b1tnjmq4naM=\")","v":{"$error":"#REF!"}},{"$f":"AND(#REF!,\"b1tnjmq4naQ=\")","v":{"$error":"#REF!"}},{"$f":"AND(#REF!,\"b1tnjmq4naU=\")","v":{"$error":"#REF!"}},{"$f":"AND(#REF!,\"b1tnjmq4naY=\")","v":{"$error":"#REF!"}},{"$f":"AND(#REF!,\"b1tnjmq4nac=\")","v":{"$error":"#REF!"}},{"$f":"AND(#REF!,\"b1tnjmq4nag=\")","v":{"$error":"#REF!"}},{"$f":"AND(#REF!,\"b1tnjmq4nak=\")","v":{"$error":"#REF!"}},{"$f":"AND(#REF!,\"b1tnjmq4nao=\")","v":{"$error":"#REF!"}},{"$f":"AND(#REF!,\"b1tnjmq4nas=\")","v":{"$error":"#REF!"}},{"$f":"AND(#REF!,\"b1tnjmq4naw=\")","v":{"$error":"#REF!"}},{"$f":"AND(#REF!,\"b1tnjmq4na0=\")","v":{"$error":"#REF!"}},{"$f":"AND(#REF!,\"b1tnjmq4na4=\")","v":{"$error":"#REF!"}},{"$f":"AND(#REF!,\"b1tnjmq4na8=\")","v":{"$error":"#REF!"}},{"$f":"AND(#REF!,\"b1tnjmq4nbA=\")","v":{"$error":"#REF!"}},{"$f":"AND(#REF!,\"b1tnjmq4nbE=\")","v":{"$error":"#REF!"}},{"$f":"AND(#REF!,\"b1tnjmq4nbI=\")","v":{"$error":"#REF!"}},{"$f":"AND(#REF!,\"b1tnjmq4nbM=\")","v":{"$error":"#REF!"}},{"$f":"AND(#REF!,\"b1tnjmq4nbQ=\")","v":{"$error":"#REF!"}},{"$f":"AND(#REF!,\"b1tnjmq4nbU=\")","v":{"$error":"#REF!"}},{"$f":"AND(#REF!,\"b1tnjmq4nbY=\")","v":{"$error":"#REF!"}},{"$f":"AND(#REF!,\"b1tnjmq4nbc=\")","v":{"$error":"#REF!"}},{"$f":"AND(#REF!,\"b1tnjmq4nbg=\")","v":{"$error":"#REF!"}},{"$f":"IF(#REF!,\"b1tnjmq4nbk=\",0)","v":{"$error":"#REF!"}},{"$f":"AND(#REF!,\"b1tnjmq4nbo=\")","v":{"$error":"#REF!"}},{"$f":"AND(#REF!,\"b1tnjmq4nbs=\")","v":{"$error":"#REF!"}},{"$f":"AND(#REF!,\"b1tnjmq4nbw=\")","v":{"$error":"#REF!"}},{"$f":"AND(#REF!,\"b1tnjmq4nb0=\")","v":{"$error":"#REF!"}},{"$f":"AND(#REF!,\"b1tnjmq4nb4=\")","v":{"$error":"#REF!"}},{"$f":"AND(#REF!,\"b1tnjmq4nb8=\")","v":{"$error":"#REF!"}},{"$f":"AND(#REF!,\"b1tnjmq4ncA=\")","v":{"$error":"#REF!"}},{"$f":"AND(#REF!,\"b1tnjmq4ncE=\")","v":{"$error":"#REF!"}},{"$f":"AND(#REF!,\"b1tnjmq4ncI=\")","v":{"$error":"#REF!"}},{"$f":"AND(#REF!,\"b1tnjmq4ncM=\")","v":{"$error":"#REF!"}},{"$f":"AND(#REF!,\"b1tnjmq4ncQ=\")","v":{"$error":"#REF!"}},{"$f":"AND(#REF!,\"b1tnjmq4ncU=\")","v":{"$error":"#REF!"}},{"$f":"AND(#REF!,\"b1tnjmq4ncY=\")","v":{"$error":"#REF!"}},{"$f":"AND(#REF!,\"b1tnjmq4ncc=\")","v":{"$error":"#REF!"}},{"$f":"AND(#REF!,\"b1tnjmq4ncg=\")","v":{"$error":"#REF!"}},{"$f":"AND(#REF!,\"b1tnjmq4nck=\")","v":{"$error":"#REF!"}},{"$f":"AND(#REF!,\"b1tnjmq4nco=\")","v":{"$error":"#REF!"}},{"$f":"AND(#REF!,\"b1tnjmq4ncs=\")","v":{"$error":"#REF!"}},{"$f":"AND(#REF!,\"b1tnjmq4ncw=\")","v":{"$error":"#REF!"}},{"$f":"AND(#REF!,\"b1tnjmq4nc0=\")","v":{"$error":"#REF!"}},{"$f":"AND(#REF!,\"b1tnjmq4nc4=\")","v":{"$error":"#REF!"}},{"$f":"AND(#REF!,\"b1tnjmq4nc8=\")","v":{"$error":"#REF!"}},{"$f":"AND(#REF!,\"b1tnjmq4ndA=\")","v":{"$error":"#REF!"}},{"$f":"AND(#REF!,\"b1tnjmq4ndE=\")","v":{"$error":"#REF!"}},{"$f":"AND(#REF!,\"b1tnjmq4ndI=\")","v":{"$error":"#REF!"}},{"$f":"AND(#REF!,\"b1tnjmq4ndM=\")","v":{"$error":"#REF!"}},{"$f":"AND(#REF!,\"b1tnjmq4ndQ=\")","v":{"$error":"#REF!"}},{"$f":"AND(#REF!,\"b1tnjmq4ndU=\")","v":{"$error":"#REF!"}},{"$f":"AND(#REF!,\"b1tnjmq4ndY=\")","v":{"$error":"#REF!"}},{"$f":"AND(#REF!,\"b1tnjmq4ndc=\")","v":{"$error":"#REF!"}},{"$f":"AND(#REF!,\"b1tnjmq4ndg=\")","v":{"$error":"#REF!"}},{"$f":"AND(#REF!,\"b1tnjmq4ndk=\")","v":{"$error":"#REF!"}},{"$f":"AND(#REF!,\"b1tnjmq4ndo=\")","v":{"$error":"#REF!"}},{"$f":"AND(#REF!,\"b1tnjmq4nds=\")","v":{"$error":"#REF!"}},{"$f":"AND(#REF!,\"b1tnjmq4ndw=\")","v":{"$error":"#REF!"}},{"$f":"AND(#REF!,\"b1tnjmq4nd0=\")","v":{"$error":"#REF!"}},{"$f":"AND(#REF!,\"b1tnjmq4nd4=\")","v":{"$error":"#REF!"}},{"$f":"AND(#REF!,\"b1tnjmq4nd8=\")","v":{"$error":"#REF!"}},{"$f":"AND(#REF!,\"b1tnjmq4neA=\")","v":{"$error":"#REF!"}},{"$f":"AND(#REF!,\"b1tnjmq4neE=\")","v":{"$error":"#REF!"}},{"$f":"AND(#REF!,\"b1tnjmq4neI=\")","v":{"$error":"#REF!"}},{"$f":"AND(#REF!,\"b1tnjmq4neM=\")","v":{"$error":"#REF!"}},{"$f":"AND(#REF!,\"b1tnjmq4neQ=\")","v":{"$error":"#REF!"}},{"$f":"AND(#REF!,\"b1tnjmq4neU=\")","v":{"$error":"#REF!"}},{"$f":"AND(#REF!,\"b1tnjmq4neY=\")","v":{"$error":"#REF!"}},{"$f":"AND(#REF!,\"b1tnjmq4nec=\")","v":{"$error":"#REF!"}},{"$f":"AND(#REF!,\"b1tnjmq4neg=\")","v":{"$error":"#REF!"}},{"$f":"AND(#REF!,\"b1tnjmq4nek=\")","v":{"$error":"#REF!"}},{"$f":"AND(#REF!,\"b1tnjmq4neo=\")","v":{"$error":"#REF!"}},{"$f":"AND(#REF!,\"b1tnjmq4nes=\")","v":{"$error":"#REF!"}},{"$f":"AND(#REF!,\"b1tnjmq4new=\")","v":{"$error":"#REF!"}},{"$f":"AND(#REF!,\"b1tnjmq4ne0=\")","v":{"$error":"#REF!"}},{"$f":"AND(#REF!,\"b1tnjmq4ne4=\")","v":{"$error":"#REF!"}},{"$f":"AND(#REF!,\"b1tnjmq4ne8=\")","v":{"$error":"#REF!"}},{"$f":"AND(#REF!,\"b1tnjmq4nfA=\")","v":{"$error":"#REF!"}},{"$f":"AND(#REF!,\"b1tnjmq4nfE=\")","v":{"$error":"#REF!"}},{"$f":"AND(#REF!,\"b1tnjmq4nfI=\")","v":{"$error":"#REF!"}},{"$f":"AND(#REF!,\"b1tnjmq4nfM=\")","v":{"$error":"#REF!"}},{"$f":"AND(#REF!,\"b1tnjmq4nfQ=\")","v":{"$error":"#REF!"}},{"$f":"AND(#REF!,\"b1tnjmq4nfU=\")","v":{"$error":"#REF!"}},{"$f":"AND(#REF!,\"b1tnjmq4nfY=\")","v":{"$error":"#REF!"}},{"$f":"AND(#REF!,\"b1tnjmq4nfc=\")","v":{"$error":"#REF!"}},{"$f":"AND(#REF!,\"b1tnjmq4nfg=\")","v":{"$error":"#REF!"}},{"$f":"AND(#REF!,\"b1tnjmq4nfk=\")","v":{"$error":"#REF!"}},{"$f":"AND(#REF!,\"b1tnjmq4nfo=\")","v":{"$error":"#REF!"}},{"$f":"AND(#REF!,\"b1tnjmq4nfs=\")","v":{"$error":"#REF!"}},{"$f":"AND(#REF!,\"b1tnjmq4nfw=\")","v":{"$error":"#REF!"}},{"$f":"AND(#REF!,\"b1tnjmq4nf0=\")","v":{"$error":"#REF!"}},{"$f":"AND(#REF!,\"b1tnjmq4nf4=\")","v":{"$error":"#REF!"}},{"$f":"AND(#REF!,\"b1tnjmq4nf8=\")","v":{"$error":"#REF!"}}]
[{"$f":"AND(#REF!,\"fmlnh2Gv0gA=\")","v":{"$error":"#REF!"}},{"$f":"AND(#REF!,\"fmlnh2Gv0gE=\")","v":{"$error":"#REF!"}},{"$f":"AND(#REF!,\"fmlnh2Gv0gI=\")","v":{"$error":"#REF!"}},{"$f":"AND(#REF!,\"fmlnh2Gv0gM=\")","v":{"$error":"#REF!"}},{"$f":"AND(#REF!,\"fmlnh2Gv0gQ=\")","v":{"$error":"#REF!"}},{"$f":"AND(#REF!,\"fmlnh2Gv0gU=\")","v":{"$error":"#REF!"}},{"$f":"AND(#REF!,\"fmlnh2Gv0gY=\")","v":{"$error":"#REF!"}},{"$f":"AND(#REF!,\"fmlnh2Gv0gc=\")","v":{"$error":"#REF!"}},{"$f":"AND(#REF!,\"fmlnh2Gv0gg=\")","v":{"$error":"#REF!"}},{"$f":"AND(#REF!,\"fmlnh2Gv0gk=\")","v":{"$error":"#REF!"}},{"$f":"AND(#REF!,\"fmlnh2Gv0go=\")","v":{"$error":"#REF!"}},{"$f":"AND(#REF!,\"fmlnh2Gv0gs=\")","v":{"$error":"#REF!"}},{"$f":"AND(#REF!,\"fmlnh2Gv0gw=\")","v":{"$error":"#REF!"}},{"$f":"AND(#REF!,\"fmlnh2Gv0g0=\")","v":{"$error":"#REF!"}},{"$f":"AND(#REF!,\"fmlnh2Gv0g4=\")","v":{"$error":"#REF!"}},{"$f":"AND(#REF!,\"fmlnh2Gv0g8=\")","v":{"$error":"#REF!"}},{"$f":"AND(#REF!,\"fmlnh2Gv0hA=\")","v":{"$error":"#REF!"}},{"$f":"AND(#REF!,\"fmlnh2Gv0hE=\")","v":{"$error":"#REF!"}},{"$f":"AND(#REF!,\"fmlnh2Gv0hI=\")","v":{"$error":"#REF!"}},{"$f":"AND(#REF!,\"fmlnh2Gv0hM=\")","v":{"$error":"#REF!"}},{"$f":"AND(#REF!,\"fmlnh2Gv0hQ=\")","v":{"$error":"#REF!"}},{"$f":"AND(#REF!,\"fmlnh2Gv0hU=\")","v":{"$error":"#REF!"}},{"$f":"AND(#REF!,\"fmlnh2Gv0hY=\")","v":{"$error":"#REF!"}},{"$f":"AND(#REF!,\"fmlnh2Gv0hc=\")","v":{"$error":"#REF!"}},{"$f":"AND(#REF!,\"fmlnh2Gv0hg=\")","v":{"$error":"#REF!"}},{"$f":"AND(#REF!,\"fmlnh2Gv0hk=\")","v":{"$error":"#REF!"}},{"$f":"AND(#REF!,\"fmlnh2Gv0ho=\")","v":{"$error":"#REF!"}},{"$f":"AND(#REF!,\"fmlnh2Gv0hs=\")","v":{"$error":"#REF!"}},{"$f":"AND(#REF!,\"fmlnh2Gv0hw=\")","v":{"$error":"#REF!"}},{"$f":"AND(#REF!,\"fmlnh2Gv0h0=\")","v":{"$error":"#REF!"}},{"$f":"AND(#REF!,\"fmlnh2Gv0h4=\")","v":{"$error":"#REF!"}},{"$f":"AND(#REF!,\"fmlnh2Gv0h8=\")","v":{"$error":"#REF!"}},{"$f":"AND(#REF!,\"fmlnh2Gv0iA=\")","v":{"$error":"#REF!"}},{"$f":"AND(#REF!,\"fmlnh2Gv0iE=\")","v":{"$error":"#REF!"}},{"$f":"AND(#REF!,\"fmlnh2Gv0iI=\")","v":{"$error":"#REF!"}},{"$f":"AND(#REF!,\"fmlnh2Gv0iM=\")","v":{"$error":"#REF!"}},{"$f":"AND(#REF!,\"fmlnh2Gv0iQ=\")","v":{"$error":"#REF!"}},{"$f":"AND(#REF!,\"fmlnh2Gv0iU=\")","v":{"$error":"#REF!"}},{"$f":"AND(#REF!,\"fmlnh2Gv0iY=\")","v":{"$error":"#REF!"}},{"$f":"AND(#REF!,\"fmlnh2Gv0ic=\")","v":{"$error":"#REF!"}},{"$f":"AND(#REF!,\"fmlnh2Gv0ig=\")","v":{"$error":"#REF!"}},{"$f":"AND(#REF!,\"fmlnh2Gv0ik=\")","v":{"$error":"#REF!"}},{"$f":"AND(#REF!,\"fmlnh2Gv0io=\")","v":{"$error":"#REF!"}},{"$f":"AND(#REF!,\"fmlnh2Gv0is=\")","v":{"$error":"#REF!"}},{"$f":"AND(#REF!,\"fmlnh2Gv0iw=\")","v":{"$error":"#REF!"}},{"$f":"AND(#REF!,\"fmlnh2Gv0i0=\")","v":{"$error":"#REF!"}},{"$f":"AND(#REF!,\"fmlnh2Gv0i4=\")","v":{"$error":"#REF!"}},{"$f":"AND(#REF!,\"fmlnh2Gv0i8=\")","v":{"$error":"#REF!"}},{"$f":"AND(#REF!,\"fmlnh2Gv0jA=\")","v":{"$error":"#REF!"}},{"$f":"AND(#REF!,\"fmlnh2Gv0jE=\")","v":{"$error":"#REF!"}},{"$f":"AND(#REF!,\"fmlnh2Gv0jI=\")","v":{"$error":"#REF!"}},{"$f":"AND(#REF!,\"fmlnh2Gv0jM=\")","v":{"$error":"#REF!"}},{"$f":"AND(#REF!,\"fmlnh2Gv0jQ=\")","v":{"$error":"#REF!"}},{"$f":"AND(#REF!,\"fmlnh2Gv0jU=\")","v":{"$error":"#REF!"}},{"$f":"AND(#REF!,\"fmlnh2Gv0jY=\")","v":{"$error":"#REF!"}},{"$f":"AND(#REF!,\"fmlnh2Gv0jc=\")","v":{"$error":"#REF!"}},{"$f":"AND(#REF!,\"fmlnh2Gv0jg=\")","v":{"$error":"#REF!"}},{"$f":"AND(#REF!,\"fmlnh2Gv0jk=\")","v":{"$error":"#REF!"}},{"$f":"AND(#REF!,\"fmlnh2Gv0jo=\")","v":{"$error":"#REF!"}},{"$f":"AND(#REF!,\"fmlnh2Gv0js=\")","v":{"$error":"#REF!"}},{"$f":"AND(#REF!,\"fmlnh2Gv0jw=\")","v":{"$error":"#REF!"}},{"$f":"AND(#REF!,\"fmlnh2Gv0j0=\")","v":{"$error":"#REF!"}},{"$f":"AND(#REF!,\"fmlnh2Gv0j4=\")","v":{"$error":"#REF!"}},{"$f":"AND(#REF!,\"fmlnh2Gv0j8=\")","v":{"$error":"#REF!"}},{"$f":"AND(#REF!,\"fmlnh2Gv0kA=\")","v":{"$error":"#REF!"}},{"$f":"AND(#REF!,\"fmlnh2Gv0kE=\")","v":{"$error":"#REF!"}},{"$f":"AND(#REF!,\"fmlnh2Gv0kI=\")","v":{"$error":"#REF!"}},{"$f":"AND(#REF!,\"fmlnh2Gv0kM=\")","v":{"$error":"#REF!"}},{"$f":"AND(#REF!,\"fmlnh2Gv0kQ=\")","v":{"$error":"#REF!"}},{"$f":"AND(#REF!,\"fmlnh2Gv0kU=\")","v":{"$error":"#REF!"}},{"$f":"AND(#REF!,\"fmlnh2Gv0kY=\")","v":{"$error":"#REF!"}},{"$f":"AND(#REF!,\"fmlnh2Gv0kc=\")","v":{"$error":"#REF!"}},{"$f":"AND(#REF!,\"fmlnh2Gv0kg=\")","v":{"$error":"#REF!"}},{"$f":"AND(#REF!,\"fmlnh2Gv0kk=\")","v":{"$error":"#REF!"}},{"$f":"AND(#REF!,\"fmlnh2Gv0ko=\")","v":{"$error":"#REF!"}},{"$f":"AND(#REF!,\"fmlnh2Gv0ks=\")","v":{"$error":"#REF!"}},{"$f":"AND(#REF!,\"fmlnh2Gv0kw=\")","v":{"$error":"#REF!"}},{"$f":"AND(#REF!,\"fmlnh2Gv0k0=\")","v":{"$error":"#REF!"}},{"$f":"AND(#REF!,\"fmlnh2Gv0k4=\")","v":{"$error":"#REF!"}},{"$f":"AND(#REF!,\"fmlnh2Gv0k8=\")","v":{"$error":"#REF!"}},{"$f":"AND(#REF!,\"fmlnh2Gv0lA=\")","v":{"$error":"#REF!"}},{"$f":"AND(#REF!,\"fmlnh2Gv0lE=\")","v":{"$error":"#REF!"}},{"$f":"AND(#REF!,\"fmlnh2Gv0lI=\")","v":{"$error":"#REF!"}},{"$f":"AND(#REF!,\"fmlnh2Gv0lM=\")","v":{"$error":"#REF!"}},{"$f":"AND(#REF!,\"fmlnh2Gv0lQ=\")","v":{"$error":"#REF!"}},{"$f":"AND(#REF!,\"fmlnh2Gv0lU=\")","v":{"$error":"#REF!"}},{"$f":"AND(#REF!,\"fmlnh2Gv0lY=\")","v":{"$error":"#REF!"}},{"$f":"AND(#REF!,\"fmlnh2Gv0lc=\")","v":{"$error":"#REF!"}},{"$f":"AND(#REF!,\"fmlnh2Gv0lg=\")","v":{"$error":"#REF!"}},{"$f":"AND(#REF!,\"fmlnh2Gv0lk=\")","v":{"$error":"#REF!"}},{"$f":"AND(#REF!,\"fmlnh2Gv0lo=\")","v":{"$error":"#REF!"}},{"$f":"AND(#REF!,\"fmlnh2Gv0ls=\")","v":{"$error":"#REF!"}},{"$f":"AND(#REF!,\"fmlnh2Gv0lw=\")","v":{"$error":"#REF!"}},{"$f":"AND(#REF!,\"fmlnh2Gv0l0=\")","v":{"$error":"#REF!"}},{"$f":"AND(#REF!,\"fmlnh2Gv0l4=\")","v":{"$error":"#REF!"}},{"$f":"AND(#REF!,\"fmlnh2Gv0l8=\")","v":{"$error":"#REF!"}},{"$f":"AND(#REF!,\"fmlnh2Gv0mA=\")","v":{"$error":"#REF!"}},{"$f":"AND(#REF!,\"fmlnh2Gv0mE=\")","v":{"$error":"#REF!"}},{"$f":"AND(#REF!,\"fmlnh2Gv0mI=\")","v":{"$error":"#REF!"}},{"$f":"AND(#REF!,\"fmlnh2Gv0mM=\")","v":{"$error":"#REF!"}},{"$f":"AND(#REF!,\"fmlnh2Gv0mQ=\")","v":{"$error":"#REF!"}},{"$f":"AND(#REF!,\"fmlnh2Gv0mU=\")","v":{"$error":"#REF!"}},{"$f":"AND(#REF!,\"fmlnh2Gv0mY=\")","v":{"$error":"#REF!"}},{"$f":"AND(#REF!,\"fmlnh2Gv0mc=\")","v":{"$error":"#REF!"}},{"$f":"AND(#REF!,\"fmlnh2Gv0mg=\")","v":{"$error":"#REF!"}},{"$f":"AND(#REF!,\"fmlnh2Gv0mk=\")","v":{"$error":"#REF!"}},{"$f":"AND(#REF!,\"fmlnh2Gv0mo=\")","v":{"$error":"#REF!"}},{"$f":"AND(#REF!,\"fmlnh2Gv0ms=\")","v":{"$error":"#REF!"}},{"$f":"AND(#REF!,\"fmlnh2Gv0mw=\")","v":{"$error":"#REF!"}},{"$f":"AND(#REF!,\"fmlnh2Gv0m0=\")","v":{"$error":"#REF!"}},{"$f":"AND(#REF!,\"fmlnh2Gv0m4=\")","v":{"$error":"#REF!"}},{"$f":"AND(#REF!,\"fmlnh2Gv0m8=\")","v":{"$error":"#REF!"}},{"$f":"AND(#REF!,\"fmlnh2Gv0nA=\")","v":{"$error":"#REF!"}},{"$f":"AND(#REF!,\"fmlnh2Gv0nE=\")","v":{"$error":"#REF!"}},{"$f":"AND(#REF!,\"fmlnh2Gv0nI=\")","v":{"$error":"#REF!"}},{"$f":"AND(#REF!,\"fmlnh2Gv0nM=\")","v":{"$error":"#REF!"}},{"$f":"AND(#REF!,\"fmlnh2Gv0nQ=\")","v":{"$error":"#REF!"}},{"$f":"AND(#REF!,\"fmlnh2Gv0nU=\")","v":{"$error":"#REF!"}},{"$f":"AND(#REF!,\"fmlnh2Gv0nY=\")","v":{"$error":"#REF!"}},{"$f":"AND(#REF!,\"fmlnh2Gv0nc=\")","v":{"$error":"#REF!"}},{"$f":"AND(#REF!,\"fmlnh2Gv0ng=\")","v":{"$error":"#REF!"}},{"$f":"AND(#REF!,\"fmlnh2Gv0nk=\")","v":{"$error":"#REF!"}},{"$f":"AND(#REF!,\"fmlnh2Gv0no=\")","v":{"$error":"#REF!"}},{"$f":"AND(#REF!,\"fmlnh2Gv0ns=\")","v":{"$error":"#REF!"}},{"$f":"AND(#REF!,\"fmlnh2Gv0nw=\")","v":{"$error":"#REF!"}},{"$f":"AND(#REF!,\"fmlnh2Gv0n0=\")","v":{"$error":"#REF!"}},{"$f":"AND(#REF!,\"fmlnh2Gv0n4=\")","v":{"$error":"#REF!"}},{"$f":"AND(#REF!,\"fmlnh2Gv0n8=\")","v":{"$error":"#REF!"}},{"$f":"IF(#REF!,\"fmlnh2Gv0oA=\",0)","v":{"$error":"#REF!"}},{"$f":"AND(#REF!,\"fmlnh2Gv0oE=\")","v":{"$error":"#REF!"}},{"$f":"AND(#REF!,\"fmlnh2Gv0oI=\")","v":{"$error":"#REF!"}},{"$f":"AND(#REF!,\"fmlnh2Gv0oM=\")","v":{"$error":"#REF!"}},{"$f":"AND(#REF!,\"fmlnh2Gv0oQ=\")","v":{"$error":"#REF!"}},{"$f":"AND(#REF!,\"fmlnh2Gv0oU=\")","v":{"$error":"#REF!"}},{"$f":"AND(#REF!,\"fmlnh2Gv0oY=\")","v":{"$error":"#REF!"}},{"$f":"AND(#REF!,\"fmlnh2Gv0oc=\")","v":{"$error":"#REF!"}},{"$f":"AND(#REF!,\"fmlnh2Gv0og=\")","v":{"$error":"#REF!"}},{"$f":"AND(#REF!,\"fmlnh2Gv0ok=\")","v":{"$error":"#REF!"}},{"$f":"AND(#REF!,\"fmlnh2Gv0oo=\")","v":{"$error":"#REF!"}},{"$f":"AND(#REF!,\"fmlnh2Gv0os=\")","v":{"$error":"#REF!"}},{"$f":"AND(#REF!,\"fmlnh2Gv0ow=\")","v":{"$error":"#REF!"}},{"$f":"AND(#REF!,\"fmlnh2Gv0o0=\")","v":{"$error":"#REF!"}},{"$f":"AND(#REF!,\"fmlnh2Gv0o4=\")","v":{"$error":"#REF!"}},{"$f":"AND(#REF!,\"fmlnh2Gv0o8=\")","v":{"$error":"#REF!"}},{"$f":"AND(#REF!,\"fmlnh2Gv0pA=\")","v":{"$error":"#REF!"}},{"$f":"AND(#REF!,\"fmlnh2Gv0pE=\")","v":{"$error":"#REF!"}},{"$f":"AND(#REF!,\"fmlnh2Gv0pI=\")","v":{"$error":"#REF!"}},{"$f":"AND(#REF!,\"fmlnh2Gv0pM=\")","v":{"$error":"#REF!"}},{"$f":"AND(#REF!,\"fmlnh2Gv0pQ=\")","v":{"$error":"#REF!"}},{"$f":"AND(#REF!,\"fmlnh2Gv0pU=\")","v":{"$error":"#REF!"}},{"$f":"AND(#REF!,\"fmlnh2Gv0pY=\")","v":{"$error":"#REF!"}},{"$f":"AND(#REF!,\"fmlnh2Gv0pc=\")","v":{"$error":"#REF!"}},{"$f":"AND(#REF!,\"fmlnh2Gv0pg=\")","v":{"$error":"#REF!"}},{"$f":"AND(#REF!,\"fmlnh2Gv0pk=\")","v":{"$error":"#REF!"}},{"$f":"AND(#REF!,\"fmlnh2Gv0po=\")","v":{"$error":"#REF!"}},{"$f":"AND(#REF!,\"fmlnh2Gv0ps=\")","v":{"$error":"#REF!"}},{"$f":"AND(#REF!,\"fmlnh2Gv0pw=\")","v":{"$error":"#REF!"}},{"$f":"AND(#REF!,\"fmlnh2Gv0p0=\")","v":{"$error":"#REF!"}},{"$f":"AND(#REF!,\"fmlnh2Gv0p4=\")","v":{"$error":"#REF!"}},{"$f":"AND(#REF!,\"fmlnh2Gv0p8=\")","v":{"$error":"#REF!"}},{"$f":"AND(#REF!,\"fmlnh2Gv0qA=\")","v":{"$error":"#REF!"}},{"$f":"AND(#REF!,\"fmlnh2Gv0qE=\")","v":{"$error":"#REF!"}},{"$f":"AND(#REF!,\"fmlnh2Gv0qI=\")","v":{"$error":"#REF!"}},{"$f":"AND(#REF!,\"fmlnh2Gv0qM=\")","v":{"$error":"#REF!"}},{"$f":"AND(#REF!,\"fmlnh2Gv0qQ=\")","v":{"$error":"#REF!"}},{"$f":"AND(#REF!,\"fmlnh2Gv0qU=\")","v":{"$error":"#REF!"}},{"$f":"AND(#REF!,\"fmlnh2Gv0qY=\")","v":{"$error":"#REF!"}},{"$f":"AND(#REF!,\"fmlnh2Gv0qc=\")","v":{"$error":"#REF!"}},{"$f":"AND(#REF!,\"fmlnh2Gv0qg=\")","v":{"$error":"#REF!"}},{"$f":"AND(#REF!,\"fmlnh2Gv0qk=\")","v":{"$error":"#REF!"}},{"$f":"AND(#REF!,\"fmlnh2Gv0qo=\")","v":{"$error":"#REF!"}},{"$f":"AND(#REF!,\"fmlnh2Gv0qs=\")","v":{"$error":"#REF!"}},{"$f":"AND(#REF!,\"fmlnh2Gv0qw=\")","v":{"$error":"#REF!"}},{"$f":"AND(#REF!,\"fmlnh2Gv0q0=\")","v":{"$error":"#REF!"}},{"$f":"AND(#REF!,\"fmlnh2Gv0q4=\")","v":{"$error":"#REF!"}},{"$f":"AND(#REF!,\"fmlnh2Gv0q8=\")","v":{"$error":"#REF!"}},{"$f":"AND(#REF!,\"fmlnh2Gv0rA=\")","v":{"$error":"#REF!"}},{"$f":"AND(#REF!,\"fmlnh2Gv0rE=\")","v":{"$error":"#REF!"}},{"$f":"AND(#REF!,\"fmlnh2Gv0rI=\")","v":{"$error":"#REF!"}},{"$f":"AND(#REF!,\"fmlnh2Gv0rM=\")","v":{"$error":"#REF!"}},{"$f":"AND(#REF!,\"fmlnh2Gv0rQ=\")","v":{"$error":"#REF!"}},{"$f":"AND(#REF!,\"fmlnh2Gv0rU=\")","v":{"$error":"#REF!"}},{"$f":"AND(#REF!,\"fmlnh2Gv0rY=\")","v":{"$error":"#REF!"}},{"$f":"AND(#REF!,\"fmlnh2Gv0rc=\")","v":{"$error":"#REF!"}},{"$f":"AND(#REF!,\"fmlnh2Gv0rg=\")","v":{"$error":"#REF!"}},{"$f":"AND(#REF!,\"fmlnh2Gv0rk=\")","v":{"$error":"#REF!"}},{"$f":"AND(#REF!,\"fmlnh2Gv0ro=\")","v":{"$error":"#REF!"}},{"$f":"AND(#REF!,\"fmlnh2Gv0rs=\")","v":{"$error":"#REF!"}},{"$f":"AND(#REF!,\"fmlnh2Gv0rw=\")","v":{"$error":"#REF!"}},{"$f":"AND(#REF!,\"fmlnh2Gv0r0=\")","v":{"$error":"#REF!"}},{"$f":"AND(#REF!,\"fmlnh2Gv0r4=\")","v":{"$error":"#REF!"}},{"$f":"AND(#REF!,\"fmlnh2Gv0r8=\")","v":{"$error":"#REF!"}},{"$f":"AND(#REF!,\"fmlnh2Gv0sA=\")","v":{"$error":"#REF!"}},{"$f":"AND(#REF!,\"fmlnh2Gv0sE=\")","v":{"$error":"#REF!"}},{"$f":"AND(#REF!,\"fmlnh2Gv0sI=\")","v":{"$error":"#REF!"}},{"$f":"AND(#REF!,\"fmlnh2Gv0sM=\")","v":{"$error":"#REF!"}},{"$f":"AND(#REF!,\"fmlnh2Gv0sQ=\")","v":{"$error":"#REF!"}},{"$f":"AND(#REF!,\"fmlnh2Gv0sU=\")","v":{"$error":"#REF!"}},{"$f":"AND(#REF!,\"fmlnh2Gv0sY=\")","v":{"$error":"#REF!"}},{"$f":"AND(#REF!,\"fmlnh2Gv0sc=\")","v":{"$error":"#REF!"}},{"$f":"AND(#REF!,\"fmlnh2Gv0sg=\")","v":{"$error":"#REF!"}},{"$f":"AND(#REF!,\"fmlnh2Gv0sk=\")","v":{"$error":"#REF!"}},{"$f":"AND(#REF!,\"fmlnh2Gv0so=\")","v":{"$error":"#REF!"}},{"$f":"AND(#REF!,\"fmlnh2Gv0ss=\")","v":{"$error":"#REF!"}},{"$f":"AND(#REF!,\"fmlnh2Gv0sw=\")","v":{"$error":"#REF!"}},{"$f":"AND(#REF!,\"fmlnh2Gv0s0=\")","v":{"$error":"#REF!"}},{"$f":"AND(#REF!,\"fmlnh2Gv0s4=\")","v":{"$error":"#REF!"}},{"$f":"AND(#REF!,\"fmlnh2Gv0s8=\")","v":{"$error":"#REF!"}},{"$f":"AND(#REF!,\"fmlnh2Gv0tA=\")","v":{"$error":"#REF!"}},{"$f":"AND(#REF!,\"fmlnh2Gv0tE=\")","v":{"$error":"#REF!"}},{"$f":"AND(#REF!,\"fmlnh2Gv0tI=\")","v":{"$error":"#REF!"}},{"$f":"AND(#REF!,\"fmlnh2Gv0tM=\")","v":{"$error":"#REF!"}},{"$f":"AND(#REF!,\"fmlnh2Gv0tQ=\")","v":{"$error":"#REF!"}},{"$f":"AND(#REF!,\"fmlnh2Gv0tU=\")","v":{"$error":"#REF!"}},{"$f":"AND(#REF!,\"fmlnh2Gv0tY=\")","v":{"$error":"#REF!"}},{"$f":"AND(#REF!,\"fmlnh2Gv0tc=\")","v":{"$error":"#REF!"}},{"$f":"AND(#REF!,\"fmlnh2Gv0tg=\")","v":{"$error":"#REF!"}},{"$f":"AND(#REF!,\"fmlnh2Gv0tk=\")","v":{"$error":"#REF!"}},{"$f":"AND(#REF!,\"fmlnh2Gv0to=\")","v":{"$error":"#REF!"}},{"$f":"AND(#REF!,\"fmlnh2Gv0ts=\")","v":{"$error":"#REF!"}},{"$f":"AND(#REF!,\"fmlnh2Gv0tw=\")","v":{"$error":"#REF!"}},{"$f":"AND(#REF!,\"fmlnh2Gv0t0=\")","v":{"$error":"#REF!"}},{"$f":"AND(#REF!,\"fmlnh2Gv0t4=\")","v":{"$error":"#REF!"}},{"$f":"AND(#REF!,\"fmlnh2Gv0t8=\")","v":{"$error":"#REF!"}},{"$f":"AND(#REF!,\"fmlnh2Gv0uA=\")","v":{"$error":"#REF!"}},{"$f":"AND(#REF!,\"fmlnh2Gv0uE=\")","v":{"$error":"#REF!"}},{"$f":"AND(#REF!,\"fmlnh2Gv0uI=\")","v":{"$error":"#REF!"}},{"$f":"AND(#REF!,\"fmlnh2Gv0uM=\")","v":{"$error":"#REF!"}},{"$f":"AND(#REF!,\"fmlnh2Gv0uQ=\")","v":{"$error":"#REF!"}},{"$f":"AND(#REF!,\"fmlnh2Gv0uU=\")","v":{"$error":"#REF!"}},{"$f":"AND(#REF!,\"fmlnh2Gv0uY=\")","v":{"$error":"#REF!"}},{"$f":"AND(#REF!,\"fmlnh2Gv0uc=\")","v":{"$error":"#REF!"}},{"$f":"AND(#REF!,\"fmlnh2Gv0ug=\")","v":{"$error":"#REF!"}},{"$f":"AND(#REF!,\"fmlnh2Gv0uk=\")","v":{"$error":"#REF!"}},{"$f":"AND(#REF!,\"fmlnh2Gv0uo=\")","v":{"$error":"#REF!"}},{"$f":"AND(#REF!,\"fmlnh2Gv0us=\")","v":{"$error":"#REF!"}},{"$f":"AND(#REF!,\"fmlnh2Gv0uw=\")","v":{"$error":"#REF!"}},{"$f":"AND(#REF!,\"fmlnh2Gv0u0=\")","v":{"$error":"#REF!"}},{"$f":"AND(#REF!,\"fmlnh2Gv0u4=\")","v":{"$error":"#REF!"}},{"$f":"AND(#REF!,\"fmlnh2Gv0u8=\")","v":{"$error":"#REF!"}},{"$f":"AND(#REF!,\"fmlnh2Gv0vA=\")","v":{"$error":"#REF!"}},{"$f":"AND(#REF!,\"fmlnh2Gv0vE=\")","v":{"$error":"#REF!"}},{"$f":"AND(#REF!,\"fmlnh2Gv0vI=\")","v":{"$error":"#REF!"}},{"$f":"AND(#REF!,\"fmlnh2Gv0vM=\")","v":{"$error":"#REF!"}},{"$f":"AND(#REF!,\"fmlnh2Gv0vQ=\")","v":{"$error":"#REF!"}},{"$f":"AND(#REF!,\"fmlnh2Gv0vU=\")","v":{"$error":"#REF!"}},{"$f":"AND(#REF!,\"fmlnh2Gv0vY=\")","v":{"$error":"#REF!"}},{"$f":"AND(#REF!,\"fmlnh2Gv0vc=\")","v":{"$error":"#REF!"}},{"$f":"AND(#REF!,\"fmlnh2Gv0vg=\")","v":{"$error":"#REF!"}},{"$f":"AND(#REF!,\"fmlnh2Gv0vk=\")","v":{"$error":"#REF!"}},{"$f":"AND(#REF!,\"fmlnh2Gv0vo=\")","v":{"$error":"#REF!"}},{"$f":"AND(#REF!,\"fmlnh2Gv0vs=\")","v":{"$error":"#REF!"}},{"$f":"AND(#REF!,\"fmlnh2Gv0vw=\")","v":{"$error":"#REF!"}},{"$f":"AND(#REF!,\"fmlnh2Gv0v0=\")","v":{"$error":"#REF!"}},{"$f":"AND(#REF!,\"fmlnh2Gv0v4=\")","v":{"$error":"#REF!"}},{"$f":"AND(#REF!,\"fmlnh2Gv0v8=\")","v":{"$error":"#REF!"}}]
[{"$f":"AND(#REF!,\"XAZRjBC8lAA=\")","v":{"$error":"#REF!"}},{"$f":"AND(#REF!,\"XAZRjBC8lAE=\")","v":{"$error":"#REF!"}},{"$f":"AND(#REF!,\"XAZRjBC8lAI=\")","v":{"$error":"#REF!"}},{"$f":"AND(#REF!,\"XAZRjBC8lAM=\")","v":{"$error":"#REF!"}},{"$f":"AND(#REF!,\"XAZRjBC8lAQ=\")","v":{"$error":"#REF!"}},{"$f":"AND(#REF!,\"XAZRjBC8lAU=\")","v":{"$error":"#REF!"}},{"$f":"AND(#REF!,\"XAZRjBC8lAY=\")","v":{"$error":"#REF!"}},{"$f":"AND(#REF!,\"XAZRjBC8lAc=\")","v":{"$error":"#REF!"}},{"$f":"AND(#REF!,\"XAZRjBC8lAg=\")","v":{"$error":"#REF!"}},{"$f":"AND(#REF!,\"XAZRjBC8lAk=\")","v":{"$error":"#REF!"}},{"$f":"AND(#REF!,\"XAZRjBC8lAo=\")","v":{"$error":"#REF!"}},{"$f":"AND(#REF!,\"XAZRjBC8lAs=\")","v":{"$error":"#REF!"}},{"$f":"AND(#REF!,\"XAZRjBC8lAw=\")","v":{"$error":"#REF!"}},{"$f":"AND(#REF!,\"XAZRjBC8lA0=\")","v":{"$error":"#REF!"}},{"$f":"AND(#REF!,\"XAZRjBC8lA4=\")","v":{"$error":"#REF!"}},{"$f":"AND(#REF!,\"XAZRjBC8lA8=\")","v":{"$error":"#REF!"}},{"$f":"AND(#REF!,\"XAZRjBC8lBA=\")","v":{"$error":"#REF!"}},{"$f":"AND(#REF!,\"XAZRjBC8lBE=\")","v":{"$error":"#REF!"}},{"$f":"AND(#REF!,\"XAZRjBC8lBI=\")","v":{"$error":"#REF!"}},{"$f":"AND(#REF!,\"XAZRjBC8lBM=\")","v":{"$error":"#REF!"}},{"$f":"AND(#REF!,\"XAZRjBC8lBQ=\")","v":{"$error":"#REF!"}},{"$f":"AND(#REF!,\"XAZRjBC8lBU=\")","v":{"$error":"#REF!"}},{"$f":"AND(#REF!,\"XAZRjBC8lBY=\")","v":{"$error":"#REF!"}},{"$f":"AND(#REF!,\"XAZRjBC8lBc=\")","v":{"$error":"#REF!"}},{"$f":"AND(#REF!,\"XAZRjBC8lBg=\")","v":{"$error":"#REF!"}},{"$f":"AND(#REF!,\"XAZRjBC8lBk=\")","v":{"$error":"#REF!"}},{"$f":"AND(#REF!,\"XAZRjBC8lBo=\")","v":{"$error":"#REF!"}},{"$f":"AND(#REF!,\"XAZRjBC8lBs=\")","v":{"$error":"#REF!"}},{"$f":"AND(#REF!,\"XAZRjBC8lBw=\")","v":{"$error":"#REF!"}},{"$f":"AND(#REF!,\"XAZRjBC8lB0=\")","v":{"$error":"#REF!"}},{"$f":"AND(#REF!,\"XAZRjBC8lB4=\")","v":{"$error":"#REF!"}},{"$f":"AND(#REF!,\"XAZRjBC8lB8=\")","v":{"$error":"#REF!"}},{"$f":"AND(#REF!,\"XAZRjBC8lCA=\")","v":{"$error":"#REF!"}},{"$f":"AND(#REF!,\"XAZRjBC8lCE=\")","v":{"$error":"#REF!"}},{"$f":"AND(#REF!,\"XAZRjBC8lCI=\")","v":{"$error":"#REF!"}},{"$f":"AND(#REF!,\"XAZRjBC8lCM=\")","v":{"$error":"#REF!"}},{"$f":"AND(#REF!,\"XAZRjBC8lCQ=\")","v":{"$error":"#REF!"}},{"$f":"AND(#REF!,\"XAZRjBC8lCU=\")","v":{"$error":"#REF!"}},{"$f":"AND(#REF!,\"XAZRjBC8lCY=\")","v":{"$error":"#REF!"}},{"$f":"AND(#REF!,\"XAZRjBC8lCc=\")","v":{"$error":"#REF!"}},{"$f":"AND(#REF!,\"XAZRjBC8lCg=\")","v":{"$error":"#REF!"}},{"$f":"AND(#REF!,\"XAZRjBC8lCk=\")","v":{"$error":"#REF!"}},{"$f":"AND(#REF!,\"XAZRjBC8lCo=\")","v":{"$error":"#REF!"}},{"$f":"AND(#REF!,\"XAZRjBC8lCs=\")","v":{"$error":"#REF!"}},{"$f":"AND(#REF!,\"XAZRjBC8lCw=\")","v":{"$error":"#REF!"}},{"$f":"AND(#REF!,\"XAZRjBC8lC0=\")","v":{"$error":"#REF!"}},{"$f":"AND(#REF!,\"XAZRjBC8lC4=\")","v":{"$error":"#REF!"}},{"$f":"AND(#REF!,\"XAZRjBC8lC8=\")","v":{"$error":"#REF!"}},{"$f":"AND(#REF!,\"XAZRjBC8lDA=\")","v":{"$error":"#REF!"}},{"$f":"AND(#REF!,\"XAZRjBC8lDE=\")","v":{"$error":"#REF!"}},{"$f":"AND(#REF!,\"XAZRjBC8lDI=\")","v":{"$error":"#REF!"}},{"$f":"AND(#REF!,\"XAZRjBC8lDM=\")","v":{"$error":"#REF!"}},{"$f":"AND(#REF!,\"XAZRjBC8lDQ=\")","v":{"$error":"#REF!"}},{"$f":"AND(#REF!,\"XAZRjBC8lDU=\")","v":{"$error":"#REF!"}},{"$f":"AND(#REF!,\"XAZRjBC8lDY=\")","v":{"$error":"#REF!"}},{"$f":"AND(#REF!,\"XAZRjBC8lDc=\")","v":{"$error":"#REF!"}},{"$f":"AND(#REF!,\"XAZRjBC8lDg=\")","v":{"$error":"#REF!"}},{"$f":"AND(#REF!,\"XAZRjBC8lDk=\")","v":{"$error":"#REF!"}},{"$f":"AND(#REF!,\"XAZRjBC8lDo=\")","v":{"$error":"#REF!"}},{"$f":"AND(#REF!,\"XAZRjBC8lDs=\")","v":{"$error":"#REF!"}},{"$f":"AND(#REF!,\"XAZRjBC8lDw=\")","v":{"$error":"#REF!"}},{"$f":"AND(#REF!,\"XAZRjBC8lD0=\")","v":{"$error":"#REF!"}},{"$f":"AND(#REF!,\"XAZRjBC8lD4=\")","v":{"$error":"#REF!"}},{"$f":"AND(#REF!,\"XAZRjBC8lD8=\")","v":{"$error":"#REF!"}},{"$f":"AND(#REF!,\"XAZRjBC8lEA=\")","v":{"$error":"#REF!"}},{"$f":"AND(#REF!,\"XAZRjBC8lEE=\")","v":{"$error":"#REF!"}},{"$f":"AND(#REF!,\"XAZRjBC8lEI=\")","v":{"$error":"#REF!"}},{"$f":"AND(#REF!,\"XAZRjBC8lEM=\")","v":{"$error":"#REF!"}},{"$f":"AND(#REF!,\"XAZRjBC8lEQ=\")","v":{"$error":"#REF!"}},{"$f":"AND(#REF!,\"XAZRjBC8lEU=\")","v":{"$error":"#REF!"}},{"$f":"AND(#REF!,\"XAZRjBC8lEY=\")","v":{"$error":"#REF!"}},{"$f":"IF(#REF!,\"XAZRjBC8lEc=\",0)","v":{"$error":"#REF!"}},{"$f":"AND(#REF!,\"XAZRjBC8lEg=\")","v":{"$error":"#REF!"}},{"$f":"AND(#REF!,\"XAZRjBC8lEk=\")","v":{"$error":"#REF!"}},{"$f":"AND(#REF!,\"XAZRjBC8lEo=\")","v":{"$error":"#REF!"}},{"$f":"AND(#REF!,\"XAZRjBC8lEs=\")","v":{"$error":"#REF!"}},{"$f":"AND(#REF!,\"XAZRjBC8lEw=\")","v":{"$error":"#REF!"}},{"$f":"AND(#REF!,\"XAZRjBC8lE0=\")","v":{"$error":"#REF!"}},{"$f":"AND(#REF!,\"XAZRjBC8lE4=\")","v":{"$error":"#REF!"}},{"$f":"AND(#REF!,\"XAZRjBC8lE8=\")","v":{"$error":"#REF!"}},{"$f":"AND(#REF!,\"XAZRjBC8lFA=\")","v":{"$error":"#REF!"}},{"$f":"AND(#REF!,\"XAZRjBC8lFE=\")","v":{"$error":"#REF!"}},{"$f":"AND(#REF!,\"XAZRjBC8lFI=\")","v":{"$error":"#REF!"}},{"$f":"AND(#REF!,\"XAZRjBC8lFM=\")","v":{"$error":"#REF!"}},{"$f":"AND(#REF!,\"XAZRjBC8lFQ=\")","v":{"$error":"#REF!"}},{"$f":"AND(#REF!,\"XAZRjBC8lFU=\")","v":{"$error":"#REF!"}},{"$f":"AND(#REF!,\"XAZRjBC8lFY=\")","v":{"$error":"#REF!"}},{"$f":"AND(#REF!,\"XAZRjBC8lFc=\")","v":{"$error":"#REF!"}},{"$f":"AND(#REF!,\"XAZRjBC8lFg=\")","v":{"$error":"#REF!"}},{"$f":"AND(#REF!,\"XAZRjBC8lFk=\")","v":{"$error":"#REF!"}},{"$f":"AND(#REF!,\"XAZRjBC8lFo=\")","v":{"$error":"#REF!"}},{"$f":"AND(#REF!,\"XAZRjBC8lFs=\")","v":{"$error":"#REF!"}},{"$f":"AND(#REF!,\"XAZRjBC8lFw=\")","v":{"$error":"#REF!"}},{"$f":"AND(#REF!,\"XAZRjBC8lF0=\")","v":{"$error":"#REF!"}},{"$f":"AND(#REF!,\"XAZRjBC8lF4=\")","v":{"$error":"#REF!"}},{"$f":"AND(#REF!,\"XAZRjBC8lF8=\")","v":{"$error":"#REF!"}},{"$f":"AND(#REF!,\"XAZRjBC8lGA=\")","v":{"$error":"#REF!"}},{"$f":"AND(#REF!,\"XAZRjBC8lGE=\")","v":{"$error":"#REF!"}},{"$f":"AND(#REF!,\"XAZRjBC8lGI=\")","v":{"$error":"#REF!"}},{"$f":"AND(#REF!,\"XAZRjBC8lGM=\")","v":{"$error":"#REF!"}},{"$f":"AND(#REF!,\"XAZRjBC8lGQ=\")","v":{"$error":"#REF!"}},{"$f":"AND(#REF!,\"XAZRjBC8lGU=\")","v":{"$error":"#REF!"}},{"$f":"AND(#REF!,\"XAZRjBC8lGY=\")","v":{"$error":"#REF!"}},{"$f":"AND(#REF!,\"XAZRjBC8lGc=\")","v":{"$error":"#REF!"}},{"$f":"AND(#REF!,\"XAZRjBC8lGg=\")","v":{"$error":"#REF!"}},{"$f":"AND(#REF!,\"XAZRjBC8lGk=\")","v":{"$error":"#REF!"}},{"$f":"AND(#REF!,\"XAZRjBC8lGo=\")","v":{"$error":"#REF!"}},{"$f":"AND(#REF!,\"XAZRjBC8lGs=\")","v":{"$error":"#REF!"}},{"$f":"AND(#REF!,\"XAZRjBC8lGw=\")","v":{"$error":"#REF!"}},{"$f":"AND(#REF!,\"XAZRjBC8lG0=\")","v":{"$error":"#REF!"}},{"$f":"AND(#REF!,\"XAZRjBC8lG4=\")","v":{"$error":"#REF!"}},{"$f":"AND(#REF!,\"XAZRjBC8lG8=\")","v":{"$error":"#REF!"}},{"$f":"AND(#REF!,\"XAZRjBC8lHA=\")","v":{"$error":"#REF!"}},{"$f":"AND(#REF!,\"XAZRjBC8lHE=\")","v":{"$error":"#REF!"}},{"$f":"AND(#REF!,\"XAZRjBC8lHI=\")","v":{"$error":"#REF!"}},{"$f":"AND(#REF!,\"XAZRjBC8lHM=\")","v":{"$error":"#REF!"}},{"$f":"AND(#REF!,\"XAZRjBC8lHQ=\")","v":{"$error":"#REF!"}},{"$f":"AND(#REF!,\"XAZRjBC8lHU=\")","v":{"$error":"#REF!"}},{"$f":"AND(#REF!,\"XAZRjBC8lHY=\")","v":{"$error":"#REF!"}},{"$f":"AND(#REF!,\"XAZRjBC8lHc=\")","v":{"$error":"#REF!"}},{"$f":"AND(#REF!,\"XAZRjBC8lHg=\")","v":{"$error":"#REF!"}},{"$f":"AND(#REF!,\"XAZRjBC8lHk=\")","v":{"$error":"#REF!"}},{"$f":"AND(#REF!,\"XAZRjBC8lHo=\")","v":{"$error":"#REF!"}},{"$f":"AND(#REF!,\"XAZRjBC8lHs=\")","v":{"$error":"#REF!"}},{"$f":"AND(#REF!,\"XAZRjBC8lHw=\")","v":{"$error":"#REF!"}},{"$f":"AND(#REF!,\"XAZRjBC8lH0=\")","v":{"$error":"#REF!"}},{"$f":"AND(#REF!,\"XAZRjBC8lH4=\")","v":{"$error":"#REF!"}},{"$f":"AND(#REF!,\"XAZRjBC8lH8=\")","v":{"$error":"#REF!"}},{"$f":"AND(#REF!,\"XAZRjBC8lIA=\")","v":{"$error":"#REF!"}},{"$f":"AND(#REF!,\"XAZRjBC8lIE=\")","v":{"$error":"#REF!"}},{"$f":"AND(#REF!,\"XAZRjBC8lII=\")","v":{"$error":"#REF!"}},{"$f":"AND(#REF!,\"XAZRjBC8lIM=\")","v":{"$error":"#REF!"}},{"$f":"AND(#REF!,\"XAZRjBC8lIQ=\")","v":{"$error":"#REF!"}},{"$f":"AND(#REF!,\"XAZRjBC8lIU=\")","v":{"$error":"#REF!"}},{"$f":"AND(#REF!,\"XAZRjBC8lIY=\")","v":{"$error":"#REF!"}},{"$f":"AND(#REF!,\"XAZRjBC8lIc=\")","v":{"$error":"#REF!"}},{"$f":"AND(#REF!,\"XAZRjBC8lIg=\")","v":{"$error":"#REF!"}},{"$f":"AND(#REF!,\"XAZRjBC8lIk=\")","v":{"$error":"#REF!"}},{"$f":"AND(#REF!,\"XAZRjBC8lIo=\")","v":{"$error":"#REF!"}},{"$f":"AND(#REF!,\"XAZRjBC8lIs=\")","v":{"$error":"#REF!"}},{"$f":"AND(#REF!,\"XAZRjBC8lIw=\")","v":{"$error":"#REF!"}},{"$f":"AND(#REF!,\"XAZRjBC8lI0=\")","v":{"$error":"#REF!"}},{"$f":"AND(#REF!,\"XAZRjBC8lI4=\")","v":{"$error":"#REF!"}},{"$f":"AND(#REF!,\"XAZRjBC8lI8=\")","v":{"$error":"#REF!"}},{"$f":"AND(#REF!,\"XAZRjBC8lJA=\")","v":{"$error":"#REF!"}},{"$f":"AND(#REF!,\"XAZRjBC8lJE=\")","v":{"$error":"#REF!"}},{"$f":"AND(#REF!,\"XAZRjBC8lJI=\")","v":{"$error":"#REF!"}},{"$f":"AND(#REF!,\"XAZRjBC8lJM=\")","v":{"$error":"#REF!"}},{"$f":"AND(#REF!,\"XAZRjBC8lJQ=\")","v":{"$error":"#REF!"}},{"$f":"AND(#REF!,\"XAZRjBC8lJU=\")","v":{"$error":"#REF!"}},{"$f":"AND(#REF!,\"XAZRjBC8lJY=\")","v":{"$error":"#REF!"}},{"$f":"AND(#REF!,\"XAZRjBC8lJc=\")","v":{"$error":"#REF!"}},{"$f":"AND(#REF!,\"XAZRjBC8lJg=\")","v":{"$error":"#REF!"}},{"$f":"AND(#REF!,\"XAZRjBC8lJk=\")","v":{"$error":"#REF!"}},{"$f":"AND(#REF!,\"XAZRjBC8lJo=\")","v":{"$error":"#REF!"}},{"$f":"AND(#REF!,\"XAZRjBC8lJs=\")","v":{"$error":"#REF!"}},{"$f":"AND(#REF!,\"XAZRjBC8lJw=\")","v":{"$error":"#REF!"}},{"$f":"AND(#REF!,\"XAZRjBC8lJ0=\")","v":{"$error":"#REF!"}},{"$f":"AND(#REF!,\"XAZRjBC8lJ4=\")","v":{"$error":"#REF!"}},{"$f":"AND(#REF!,\"XAZRjBC8lJ8=\")","v":{"$error":"#REF!"}},{"$f":"AND(#REF!,\"XAZRjBC8lKA=\")","v":{"$error":"#REF!"}},{"$f":"AND(#REF!,\"XAZRjBC8lKE=\")","v":{"$error":"#REF!"}},{"$f":"AND(#REF!,\"XAZRjBC8lKI=\")","v":{"$error":"#REF!"}},{"$f":"AND(#REF!,\"XAZRjBC8lKM=\")","v":{"$error":"#REF!"}},{"$f":"AND(#REF!,\"XAZRjBC8lKQ=\")","v":{"$error":"#REF!"}},{"$f":"AND(#REF!,\"XAZRjBC8lKU=\")","v":{"$error":"#REF!"}},{"$f":"AND(#REF!,\"XAZRjBC8lKY=\")","v":{"$error":"#REF!"}},{"$f":"AND(#REF!,\"XAZRjBC8lKc=\")","v":{"$error":"#REF!"}},{"$f":"AND(#REF!,\"XAZRjBC8lKg=\")","v":{"$error":"#REF!"}},{"$f":"AND(#REF!,\"XAZRjBC8lKk=\")","v":{"$error":"#REF!"}},{"$f":"AND(#REF!,\"XAZRjBC8lKo=\")","v":{"$error":"#REF!"}},{"$f":"AND(#REF!,\"XAZRjBC8lKs=\")","v":{"$error":"#REF!"}},{"$f":"AND(#REF!,\"XAZRjBC8lKw=\")","v":{"$error":"#REF!"}},{"$f":"AND(#REF!,\"XAZRjBC8lK0=\")","v":{"$error":"#REF!"}},{"$f":"AND(#REF!,\"XAZRjBC8lK4=\")","v":{"$error":"#REF!"}},{"$f":"AND(#REF!,\"XAZRjBC8lK8=\")","v":{"$error":"#REF!"}},{"$f":"AND(#REF!,\"XAZRjBC8lLA=\")","v":{"$error":"#REF!"}},{"$f":"AND(#REF!,\"XAZRjBC8lLE=\")","v":{"$error":"#REF!"}},{"$f":"AND(#REF!,\"XAZRjBC8lLI=\")","v":{"$error":"#REF!"}},{"$f":"AND(#REF!,\"XAZRjBC8lLM=\")","v":{"$error":"#REF!"}},{"$f":"AND(#REF!,\"XAZRjBC8lLQ=\")","v":{"$error":"#REF!"}},{"$f":"AND(#REF!,\"XAZRjBC8lLU=\")","v":{"$error":"#REF!"}},{"$f":"AND(#REF!,\"XAZRjBC8lLY=\")","v":{"$error":"#REF!"}},{"$f":"AND(#REF!,\"XAZRjBC8lLc=\")","v":{"$error":"#REF!"}},{"$f":"AND(#REF!,\"XAZRjBC8lLg=\")","v":{"$error":"#REF!"}},{"$f":"AND(#REF!,\"XAZRjBC8lLk=\")","v":{"$error":"#REF!"}},{"$f":"AND(#REF!,\"XAZRjBC8lLo=\")","v":{"$error":"#REF!"}},{"$f":"AND(#REF!,\"XAZRjBC8lLs=\")","v":{"$error":"#REF!"}},{"$f":"AND(#REF!,\"XAZRjBC8lLw=\")","v":{"$error":"#REF!"}},{"$f":"AND(#REF!,\"XAZRjBC8lL0=\")","v":{"$error":"#REF!"}},{"$f":"AND(#REF!,\"XAZRjBC8lL4=\")","v":{"$error":"#REF!"}},{"$f":"AND(#REF!,\"XAZRjBC8lL8=\")","v":{"$error":"#REF!"}},{"$f":"AND(#REF!,\"XAZRjBC8lMA=\")","v":{"$error":"#REF!"}},{"$f":"AND(#REF!,\"XAZRjBC8lME=\")","v":{"$error":"#REF!"}},{"$f":"AND(#REF!,\"XAZRjBC8lMI=\")","v":{"$error":"#REF!"}},{"$f":"AND(#REF!,\"XAZRjBC8lMM=\")","v":{"$error":"#REF!"}},{"$f":"AND(#REF!,\"XAZRjBC8lMQ=\")","v":{"$error":"#REF!"}},{"$f":"AND(#REF!,\"XAZRjBC8lMU=\")","v":{"$error":"#REF!"}},{"$f":"AND(#REF!,\"XAZRjBC8lMY=\")","v":{"$error":"#REF!"}},{"$f":"AND(#REF!,\"XAZRjBC8lMc=\")","v":{"$error":"#REF!"}},{"$f":"AND(#REF!,\"XAZRjBC8lMg=\")","v":{"$error":"#REF!"}},{"$f":"AND(#REF!,\"XAZRjBC8lMk=\")","v":{"$error":"#REF!"}},{"$f":"AND(#REF!,\"XAZRjBC8lMo=\")","v":{"$error":"#REF!"}},{"$f":"AND(#REF!,\"XAZRjBC8lMs=\")","v":{"$error":"#REF!"}},{"$f":"AND(#REF!,\"XAZRjBC8lMw=\")","v":{"$error":"#REF!"}},{"$f":"AND(#REF!,\"XAZRjBC8lM0=\")","v":{"$error":"#REF!"}},{"$f":"AND(#REF!,\"XAZRjBC8lM4=\")","v":{"$error":"#REF!"}},{"$f":"AND(#REF!,\"XAZRjBC8lM8=\")","v":{"$error":"#REF!"}},{"$f":"AND(#REF!,\"XAZRjBC8lNA=\")","v":{"$error":"#REF!"}},{"$f":"AND(#REF!,\"XAZRjBC8lNE=\")","v":{"$error":"#REF!"}},{"$f":"AND(#REF!,\"XAZRjBC8lNI=\")","v":{"$error":"#REF!"}},{"$f":"AND(#REF!,\"XAZRjBC8lNM=\")","v":{"$error":"#REF!"}},{"$f":"AND(#REF!,\"XAZRjBC8lNQ=\")","v":{"$error":"#REF!"}},{"$f":"AND(#REF!,\"XAZRjBC8lNU=\")","v":{"$error":"#REF!"}},{"$f":"AND(#REF!,\"XAZRjBC8lNY=\")","v":{"$error":"#REF!"}},{"$f":"AND(#REF!,\"XAZRjBC8lNc=\")","v":{"$error":"#REF!"}},{"$f":"AND(#REF!,\"XAZRjBC8lNg=\")","v":{"$error":"#REF!"}},{"$f":"AND(#REF!,\"XAZRjBC8lNk=\")","v":{"$error":"#REF!"}},{"$f":"AND(#REF!,\"XAZRjBC8lNo=\")","v":{"$error":"#REF!"}},{"$f":"AND(#REF!,\"XAZRjBC8lNs=\")","v":{"$error":"#REF!"}},{"$f":"AND(#REF!,\"XAZRjBC8lNw=\")","v":{"$error":"#REF!"}},{"$f":"AND(#REF!,\"XAZRjBC8lN0=\")","v":{"$error":"#REF!"}},{"$f":"AND(#REF!,\"XAZRjBC8lN4=\")","v":{"$error":"#REF!"}},{"$f":"AND(#REF!,\"XAZRjBC8lN8=\")","v":{"$error":"#REF!"}},{"$f":"AND(#REF!,\"XAZRjBC8lOA=\")","v":{"$error":"#REF!"}},{"$f":"AND(#REF!,\"XAZRjBC8lOE=\")","v":{"$error":"#REF!"}},{"$f":"AND(#REF!,\"XAZRjBC8lOI=\")","v":{"$error":"#REF!"}},{"$f":"AND(#REF!,\"XAZRjBC8lOM=\")","v":{"$error":"#REF!"}},{"$f":"AND(#REF!,\"XAZRjBC8lOQ=\")","v":{"$error":"#REF!"}},{"$f":"AND(#REF!,\"XAZRjBC8lOU=\")","v":{"$error":"#REF!"}},{"$f":"AND(#REF!,\"XAZRjBC8lOY=\")","v":{"$error":"#REF!"}},{"$f":"AND(#REF!,\"XAZRjBC8lOc=\")","v":{"$error":"#REF!"}},{"$f":"AND(#REF!,\"XAZRjBC8lOg=\")","v":{"$error":"#REF!"}},{"$f":"AND(#REF!,\"XAZRjBC8lOk=\")","v":{"$error":"#REF!"}},{"$f":"AND(#REF!,\"XAZRjBC8lOo=\")","v":{"$error":"#REF!"}},{"$f":"AND(#REF!,\"XAZRjBC8lOs=\")","v":{"$error":"#REF!"}},{"$f":"AND(#REF!,\"XAZRjBC8lOw=\")","v":{"$error":"#REF!"}},{"$f":"AND(#REF!,\"XAZRjBC8lO0=\")","v":{"$error":"#REF!"}},{"$f":"AND(#REF!,\"XAZRjBC8lO4=\")","v":{"$error":"#REF!"}},{"$f":"AND(#REF!,\"XAZRjBC8lO8=\")","v":{"$error":"#REF!"}},{"$f":"AND(#REF!,\"XAZRjBC8lPA=\")","v":{"$error":"#REF!"}},{"$f":"AND(#REF!,\"XAZRjBC8lPE=\")","v":{"$error":"#REF!"}},{"$f":"AND(#REF!,\"XAZRjBC8lPI=\")","v":{"$error":"#REF!"}},{"$f":"AND(#REF!,\"XAZRjBC8lPM=\")","v":{"$error":"#REF!"}},{"$f":"AND(#REF!,\"XAZRjBC8lPQ=\")","v":{"$error":"#REF!"}},{"$f":"AND(#REF!,\"XAZRjBC8lPU=\")","v":{"$error":"#REF!"}},{"$f":"AND(#REF!,\"XAZRjBC8lPY=\")","v":{"$error":"#REF!"}},{"$f":"AND(#REF!,\"XAZRjBC8lPc=\")","v":{"$error":"#REF!"}},{"$f":"AND(#REF!,\"XAZRjBC8lPg=\")","v":{"$error":"#REF!"}},{"$f":"AND(#REF!,\"XAZRjBC8lPk=\")","v":{"$error":"#REF!"}},{"$f":"AND(#REF!,\"XAZRjBC8lPo=\")","v":{"$error":"#REF!"}},{"$f":"AND(#REF!,\"XAZRjBC8lPs=\")","v":{"$error":"#REF!"}},{"$f":"AND(#REF!,\"XAZRjBC8lPw=\")","v":{"$error":"#REF!"}},{"$f":"AND(#REF!,\"XAZRjBC8lP0=\")","v":{"$error":"#REF!"}},{"$f":"AND(#REF!,\"XAZRjBC8lP4=\")","v":{"$error":"#REF!"}},{"$f":"AND(#REF!,\"XAZRjBC8lP8=\")","v":{"$error":"#REF!"}}]
[{"$f":"AND(#REF!,\"Z2dMdxdgJQA=\")","v":{"$error":"#REF!"}},{"$f":"AND(#REF!,\"Z2dMdxdgJQE=\")","v":{"$error":"#REF!"}},{"$f":"AND(#REF!,\"Z2dMdxdgJQI=\")","v":{"$error":"#REF!"}},{"$f":"AND(#REF!,\"Z2dMdxdgJQM=\")","v":{"$error":"#REF!"}},{"$f":"AND(#REF!,\"Z2dMdxdgJQQ=\")","v":{"$error":"#REF!"}},{"$f":"AND(#REF!,\"Z2dMdxdgJQU=\")","v":{"$error":"#REF!"}},{"$f":"AND(#REF!,\"Z2dMdxdgJQY=\")","v":{"$error":"#REF!"}},{"$f":"AND(#REF!,\"Z2dMdxdgJQc=\")","v":{"$error":"#REF!"}},{"$f":"AND(#REF!,\"Z2dMdxdgJQg=\")","v":{"$error":"#REF!"}},{"$f":"AND(#REF!,\"Z2dMdxdgJQk=\")","v":{"$error":"#REF!"}},{"$f":"AND(#REF!,\"Z2dMdxdgJQo=\")","v":{"$error":"#REF!"}},{"$f":"AND(#REF!,\"Z2dMdxdgJQs=\")","v":{"$error":"#REF!"}},{"$f":"AND(#REF!,\"Z2dMdxdgJQw=\")","v":{"$error":"#REF!"}},{"$f":"AND(#REF!,\"Z2dMdxdgJQ0=\")","v":{"$error":"#REF!"}},{"$f":"IF(#REF!,\"Z2dMdxdgJQ4=\",0)","v":{"$error":"#REF!"}},{"$f":"AND(#REF!,\"Z2dMdxdgJQ8=\")","v":{"$error":"#REF!"}},{"$f":"AND(#REF!,\"Z2dMdxdgJRA=\")","v":{"$error":"#REF!"}},{"$f":"AND(#REF!,\"Z2dMdxdgJRE=\")","v":{"$error":"#REF!"}},{"$f":"AND(#REF!,\"Z2dMdxdgJRI=\")","v":{"$error":"#REF!"}},{"$f":"AND(#REF!,\"Z2dMdxdgJRM=\")","v":{"$error":"#REF!"}},{"$f":"AND(#REF!,\"Z2dMdxdgJRQ=\")","v":{"$error":"#REF!"}},{"$f":"AND(#REF!,\"Z2dMdxdgJRU=\")","v":{"$error":"#REF!"}},{"$f":"AND(#REF!,\"Z2dMdxdgJRY=\")","v":{"$error":"#REF!"}},{"$f":"AND(#REF!,\"Z2dMdxdgJRc=\")","v":{"$error":"#REF!"}},{"$f":"AND(#REF!,\"Z2dMdxdgJRg=\")","v":{"$error":"#REF!"}},{"$f":"AND(#REF!,\"Z2dMdxdgJRk=\")","v":{"$error":"#REF!"}},{"$f":"AND(#REF!,\"Z2dMdxdgJRo=\")","v":{"$error":"#REF!"}},{"$f":"AND(#REF!,\"Z2dMdxdgJRs=\")","v":{"$error":"#REF!"}},{"$f":"AND(#REF!,\"Z2dMdxdgJRw=\")","v":{"$error":"#REF!"}},{"$f":"AND(#REF!,\"Z2dMdxdgJR0=\")","v":{"$error":"#REF!"}},{"$f":"AND(#REF!,\"Z2dMdxdgJR4=\")","v":{"$error":"#REF!"}},{"$f":"AND(#REF!,\"Z2dMdxdgJR8=\")","v":{"$error":"#REF!"}},{"$f":"AND(#REF!,\"Z2dMdxdgJSA=\")","v":{"$error":"#REF!"}},{"$f":"AND(#REF!,\"Z2dMdxdgJSE=\")","v":{"$error":"#REF!"}},{"$f":"AND(#REF!,\"Z2dMdxdgJSI=\")","v":{"$error":"#REF!"}},{"$f":"AND(#REF!,\"Z2dMdxdgJSM=\")","v":{"$error":"#REF!"}},{"$f":"AND(#REF!,\"Z2dMdxdgJSQ=\")","v":{"$error":"#REF!"}},{"$f":"AND(#REF!,\"Z2dMdxdgJSU=\")","v":{"$error":"#REF!"}},{"$f":"AND(#REF!,\"Z2dMdxdgJSY=\")","v":{"$error":"#REF!"}},{"$f":"AND(#REF!,\"Z2dMdxdgJSc=\")","v":{"$error":"#REF!"}},{"$f":"AND(#REF!,\"Z2dMdxdgJSg=\")","v":{"$error":"#REF!"}},{"$f":"AND(#REF!,\"Z2dMdxdgJSk=\")","v":{"$error":"#REF!"}},{"$f":"AND(#REF!,\"Z2dMdxdgJSo=\")","v":{"$error":"#REF!"}},{"$f":"AND(#REF!,\"Z2dMdxdgJSs=\")","v":{"$error":"#REF!"}},{"$f":"AND(#REF!,\"Z2dMdxdgJSw=\")","v":{"$error":"#REF!"}},{"$f":"AND(#REF!,\"Z2dMdxdgJS0=\")","v":{"$error":"#REF!"}},{"$f":"AND(#REF!,\"Z2dMdxdgJS4=\")","v":{"$error":"#REF!"}},{"$f":"AND(#REF!,\"Z2dMdxdgJS8=\")","v":{"$error":"#REF!"}},{"$f":"AND(#REF!,\"Z2dMdxdgJTA=\")","v":{"$error":"#REF!"}},{"$f":"AND(#REF!,\"Z2dMdxdgJTE=\")","v":{"$error":"#REF!"}},{"$f":"AND(#REF!,\"Z2dMdxdgJTI=\")","v":{"$error":"#REF!"}},{"$f":"AND(#REF!,\"Z2dMdxdgJTM=\")","v":{"$error":"#REF!"}},{"$f":"AND(#REF!,\"Z2dMdxdgJTQ=\")","v":{"$error":"#REF!"}},{"$f":"AND(#REF!,\"Z2dMdxdgJTU=\")","v":{"$error":"#REF!"}},{"$f":"AND(#REF!,\"Z2dMdxdgJTY=\")","v":{"$error":"#REF!"}},{"$f":"AND(#REF!,\"Z2dMdxdgJTc=\")","v":{"$error":"#REF!"}},{"$f":"AND(#REF!,\"Z2dMdxdgJTg=\")","v":{"$error":"#REF!"}},{"$f":"AND(#REF!,\"Z2dMdxdgJTk=\")","v":{"$error":"#REF!"}},{"$f":"AND(#REF!,\"Z2dMdxdgJTo=\")","v":{"$error":"#REF!"}},{"$f":"AND(#REF!,\"Z2dMdxdgJTs=\")","v":{"$error":"#REF!"}},{"$f":"AND(#REF!,\"Z2dMdxdgJTw=\")","v":{"$error":"#REF!"}},{"$f":"AND(#REF!,\"Z2dMdxdgJT0=\")","v":{"$error":"#REF!"}},{"$f":"AND(#REF!,\"Z2dMdxdgJT4=\")","v":{"$error":"#REF!"}},{"$f":"AND(#REF!,\"Z2dMdxdgJT8=\")","v":{"$error":"#REF!"}},{"$f":"AND(#REF!,\"Z2dMdxdgJUA=\")","v":{"$error":"#REF!"}},{"$f":"AND(#REF!,\"Z2dMdxdgJUE=\")","v":{"$error":"#REF!"}},{"$f":"AND(#REF!,\"Z2dMdxdgJUI=\")","v":{"$error":"#REF!"}},{"$f":"AND(#REF!,\"Z2dMdxdgJUM=\")","v":{"$error":"#REF!"}},{"$f":"AND(#REF!,\"Z2dMdxdgJUQ=\")","v":{"$error":"#REF!"}},{"$f":"AND(#REF!,\"Z2dMdxdgJUU=\")","v":{"$error":"#REF!"}},{"$f":"AND(#REF!,\"Z2dMdxdgJUY=\")","v":{"$error":"#REF!"}},{"$f":"AND(#REF!,\"Z2dMdxdgJUc=\")","v":{"$error":"#REF!"}},{"$f":"AND(#REF!,\"Z2dMdxdgJUg=\")","v":{"$error":"#REF!"}},{"$f":"AND(#REF!,\"Z2dMdxdgJUk=\")","v":{"$error":"#REF!"}},{"$f":"AND(#REF!,\"Z2dMdxdgJUo=\")","v":{"$error":"#REF!"}},{"$f":"AND(#REF!,\"Z2dMdxdgJUs=\")","v":{"$error":"#REF!"}},{"$f":"AND(#REF!,\"Z2dMdxdgJUw=\")","v":{"$error":"#REF!"}},{"$f":"AND(#REF!,\"Z2dMdxdgJU0=\")","v":{"$error":"#REF!"}},{"$f":"AND(#REF!,\"Z2dMdxdgJU4=\")","v":{"$error":"#REF!"}},{"$f":"AND(#REF!,\"Z2dMdxdgJU8=\")","v":{"$error":"#REF!"}},{"$f":"AND(#REF!,\"Z2dMdxdgJVA=\")","v":{"$error":"#REF!"}},{"$f":"AND(#REF!,\"Z2dMdxdgJVE=\")","v":{"$error":"#REF!"}},{"$f":"AND(#REF!,\"Z2dMdxdgJVI=\")","v":{"$error":"#REF!"}},{"$f":"AND(#REF!,\"Z2dMdxdgJVM=\")","v":{"$error":"#REF!"}},{"$f":"AND(#REF!,\"Z2dMdxdgJVQ=\")","v":{"$error":"#REF!"}},{"$f":"AND(#REF!,\"Z2dMdxdgJVU=\")","v":{"$error":"#REF!"}},{"$f":"AND(#REF!,\"Z2dMdxdgJVY=\")","v":{"$error":"#REF!"}},{"$f":"AND(#REF!,\"Z2dMdxdgJVc=\")","v":{"$error":"#REF!"}},{"$f":"AND(#REF!,\"Z2dMdxdgJVg=\")","v":{"$error":"#REF!"}},{"$f":"AND(#REF!,\"Z2dMdxdgJVk=\")","v":{"$error":"#REF!"}},{"$f":"AND(#REF!,\"Z2dMdxdgJVo=\")","v":{"$error":"#REF!"}},{"$f":"AND(#REF!,\"Z2dMdxdgJVs=\")","v":{"$error":"#REF!"}},{"$f":"AND(#REF!,\"Z2dMdxdgJVw=\")","v":{"$error":"#REF!"}},{"$f":"AND(#REF!,\"Z2dMdxdgJV0=\")","v":{"$error":"#REF!"}},{"$f":"AND(#REF!,\"Z2dMdxdgJV4=\")","v":{"$error":"#REF!"}},{"$f":"AND(#REF!,\"Z2dMdxdgJV8=\")","v":{"$error":"#REF!"}},{"$f":"AND(#REF!,\"Z2dMdxdgJWA=\")","v":{"$error":"#REF!"}},{"$f":"AND(#REF!,\"Z2dMdxdgJWE=\")","v":{"$error":"#REF!"}},{"$f":"AND(#REF!,\"Z2dMdxdgJWI=\")","v":{"$error":"#REF!"}},{"$f":"AND(#REF!,\"Z2dMdxdgJWM=\")","v":{"$error":"#REF!"}},{"$f":"AND(#REF!,\"Z2dMdxdgJWQ=\")","v":{"$error":"#REF!"}},{"$f":"AND(#REF!,\"Z2dMdxdgJWU=\")","v":{"$error":"#REF!"}},{"$f":"AND(#REF!,\"Z2dMdxdgJWY=\")","v":{"$error":"#REF!"}},{"$f":"AND(#REF!,\"Z2dMdxdgJWc=\")","v":{"$error":"#REF!"}},{"$f":"AND(#REF!,\"Z2dMdxdgJWg=\")","v":{"$error":"#REF!"}},{"$f":"AND(#REF!,\"Z2dMdxdgJWk=\")","v":{"$error":"#REF!"}},{"$f":"AND(#REF!,\"Z2dMdxdgJWo=\")","v":{"$error":"#REF!"}},{"$f":"AND(#REF!,\"Z2dMdxdgJWs=\")","v":{"$error":"#REF!"}},{"$f":"AND(#REF!,\"Z2dMdxdgJWw=\")","v":{"$error":"#REF!"}},{"$f":"AND(#REF!,\"Z2dMdxdgJW0=\")","v":{"$error":"#REF!"}},{"$f":"AND(#REF!,\"Z2dMdxdgJW4=\")","v":{"$error":"#REF!"}},{"$f":"AND(#REF!,\"Z2dMdxdgJW8=\")","v":{"$error":"#REF!"}},{"$f":"AND(#REF!,\"Z2dMdxdgJXA=\")","v":{"$error":"#REF!"}},{"$f":"AND(#REF!,\"Z2dMdxdgJXE=\")","v":{"$error":"#REF!"}},{"$f":"AND(#REF!,\"Z2dMdxdgJXI=\")","v":{"$error":"#REF!"}},{"$f":"AND(#REF!,\"Z2dMdxdgJXM=\")","v":{"$error":"#REF!"}},{"$f":"AND(#REF!,\"Z2dMdxdgJXQ=\")","v":{"$error":"#REF!"}},{"$f":"AND(#REF!,\"Z2dMdxdgJXU=\")","v":{"$error":"#REF!"}},{"$f":"AND(#REF!,\"Z2dMdxdgJXY=\")","v":{"$error":"#REF!"}},{"$f":"AND(#REF!,\"Z2dMdxdgJXc=\")","v":{"$error":"#REF!"}},{"$f":"AND(#REF!,\"Z2dMdxdgJXg=\")","v":{"$error":"#REF!"}},{"$f":"AND(#REF!,\"Z2dMdxdgJXk=\")","v":{"$error":"#REF!"}},{"$f":"AND(#REF!,\"Z2dMdxdgJXo=\")","v":{"$error":"#REF!"}},{"$f":"AND(#REF!,\"Z2dMdxdgJXs=\")","v":{"$error":"#REF!"}},{"$f":"AND(#REF!,\"Z2dMdxdgJXw=\")","v":{"$error":"#REF!"}},{"$f":"AND(#REF!,\"Z2dMdxdgJX0=\")","v":{"$error":"#REF!"}},{"$f":"AND(#REF!,\"Z2dMdxdgJX4=\")","v":{"$error":"#REF!"}},{"$f":"AND(#REF!,\"Z2dMdxdgJX8=\")","v":{"$error":"#REF!"}},{"$f":"AND(#REF!,\"Z2dMdxdgJYA=\")","v":{"$error":"#REF!"}},{"$f":"AND(#REF!,\"Z2dMdxdgJYE=\")","v":{"$error":"#REF!"}},{"$f":"AND(#REF!,\"Z2dMdxdgJYI=\")","v":{"$error":"#REF!"}},{"$f":"AND(#REF!,\"Z2dMdxdgJYM=\")","v":{"$error":"#REF!"}},{"$f":"AND(#REF!,\"Z2dMdxdgJYQ=\")","v":{"$error":"#REF!"}},{"$f":"AND(#REF!,\"Z2dMdxdgJYU=\")","v":{"$error":"#REF!"}},{"$f":"AND(#REF!,\"Z2dMdxdgJYY=\")","v":{"$error":"#REF!"}},{"$f":"AND(#REF!,\"Z2dMdxdgJYc=\")","v":{"$error":"#REF!"}},{"$f":"AND(#REF!,\"Z2dMdxdgJYg=\")","v":{"$error":"#REF!"}},{"$f":"AND(#REF!,\"Z2dMdxdgJYk=\")","v":{"$error":"#REF!"}},{"$f":"AND(#REF!,\"Z2dMdxdgJYo=\")","v":{"$error":"#REF!"}},{"$f":"AND(#REF!,\"Z2dMdxdgJYs=\")","v":{"$error":"#REF!"}},{"$f":"AND(#REF!,\"Z2dMdxdgJYw=\")","v":{"$error":"#REF!"}},{"$f":"AND(#REF!,\"Z2dMdxdgJY0=\")","v":{"$error":"#REF!"}},{"$f":"AND(#REF!,\"Z2dMdxdgJY4=\")","v":{"$error":"#REF!"}},{"$f":"AND(#REF!,\"Z2dMdxdgJY8=\")","v":{"$error":"#REF!"}},{"$f":"AND(#REF!,\"Z2dMdxdgJZA=\")","v":{"$error":"#REF!"}},{"$f":"AND(#REF!,\"Z2dMdxdgJZE=\")","v":{"$error":"#REF!"}},{"$f":"AND(#REF!,\"Z2dMdxdgJZI=\")","v":{"$error":"#REF!"}},{"$f":"AND(#REF!,\"Z2dMdxdgJZM=\")","v":{"$error":"#REF!"}},{"$f":"AND(#REF!,\"Z2dMdxdgJZQ=\")","v":{"$error":"#REF!"}},{"$f":"AND(#REF!,\"Z2dMdxdgJZU=\")","v":{"$error":"#REF!"}},{"$f":"AND(#REF!,\"Z2dMdxdgJZY=\")","v":{"$error":"#REF!"}},{"$f":"AND(#REF!,\"Z2dMdxdgJZc=\")","v":{"$error":"#REF!"}},{"$f":"AND(#REF!,\"Z2dMdxdgJZg=\")","v":{"$error":"#REF!"}},{"$f":"AND(#REF!,\"Z2dMdxdgJZk=\")","v":{"$error":"#REF!"}},{"$f":"AND(#REF!,\"Z2dMdxdgJZo=\")","v":{"$error":"#REF!"}},{"$f":"AND(#REF!,\"Z2dMdxdgJZs=\")","v":{"$error":"#REF!"}},{"$f":"AND(#REF!,\"Z2dMdxdgJZw=\")","v":{"$error":"#REF!"}},{"$f":"AND(#REF!,\"Z2dMdxdgJZ0=\")","v":{"$error":"#REF!"}},{"$f":"AND(#REF!,\"Z2dMdxdgJZ4=\")","v":{"$error":"#REF!"}},{"$f":"AND(#REF!,\"Z2dMdxdgJZ8=\")","v":{"$error":"#REF!"}},{"$f":"AND(#REF!,\"Z2dMdxdgJaA=\")","v":{"$error":"#REF!"}},{"$f":"AND(#REF!,\"Z2dMdxdgJaE=\")","v":{"$error":"#REF!"}},{"$f":"AND(#REF!,\"Z2dMdxdgJaI=\")","v":{"$error":"#REF!"}},{"$f":"AND(#REF!,\"Z2dMdxdgJaM=\")","v":{"$error":"#REF!"}},{"$f":"AND(#REF!,\"Z2dMdxdgJaQ=\")","v":{"$error":"#REF!"}},{"$f":"AND(#REF!,\"Z2dMdxdgJaU=\")","v":{"$error":"#REF!"}},{"$f":"AND(#REF!,\"Z2dMdxdgJaY=\")","v":{"$error":"#REF!"}},{"$f":"AND(#REF!,\"Z2dMdxdgJac=\")","v":{"$error":"#REF!"}},{"$f":"AND(#REF!,\"Z2dMdxdgJag=\")","v":{"$error":"#REF!"}},{"$f":"AND(#REF!,\"Z2dMdxdgJak=\")","v":{"$error":"#REF!"}},{"$f":"AND(#REF!,\"Z2dMdxdgJao=\")","v":{"$error":"#REF!"}},{"$f":"AND(#REF!,\"Z2dMdxdgJas=\")","v":{"$error":"#REF!"}},{"$f":"AND(#REF!,\"Z2dMdxdgJaw=\")","v":{"$error":"#REF!"}},{"$f":"AND(#REF!,\"Z2dMdxdgJa0=\")","v":{"$error":"#REF!"}},{"$f":"AND(#REF!,\"Z2dMdxdgJa4=\")","v":{"$error":"#REF!"}},{"$f":"AND(#REF!,\"Z2dMdxdgJa8=\")","v":{"$error":"#REF!"}},{"$f":"AND(#REF!,\"Z2dMdxdgJbA=\")","v":{"$error":"#REF!"}},{"$f":"AND(#REF!,\"Z2dMdxdgJbE=\")","v":{"$error":"#REF!"}},{"$f":"AND(#REF!,\"Z2dMdxdgJbI=\")","v":{"$error":"#REF!"}},{"$f":"AND(#REF!,\"Z2dMdxdgJbM=\")","v":{"$error":"#REF!"}},{"$f":"AND(#REF!,\"Z2dMdxdgJbQ=\")","v":{"$error":"#REF!"}},{"$f":"AND(#REF!,\"Z2dMdxdgJbU=\")","v":{"$error":"#REF!"}},{"$f":"AND(#REF!,\"Z2dMdxdgJbY=\")","v":{"$error":"#REF!"}},{"$f":"AND(#REF!,\"Z2dMdxdgJbc=\")","v":{"$error":"#REF!"}},{"$f":"AND(#REF!,\"Z2dMdxdgJbg=\")","v":{"$error":"#REF!"}},{"$f":"AND(#REF!,\"Z2dMdxdgJbk=\")","v":{"$error":"#REF!"}},{"$f":"AND(#REF!,\"Z2dMdxdgJbo=\")","v":{"$error":"#REF!"}},{"$f":"AND(#REF!,\"Z2dMdxdgJbs=\")","v":{"$error":"#REF!"}},{"$f":"AND(#REF!,\"Z2dMdxdgJbw=\")","v":{"$error":"#REF!"}},{"$f":"AND(#REF!,\"Z2dMdxdgJb0=\")","v":{"$error":"#REF!"}},{"$f":"AND(#REF!,\"Z2dMdxdgJb4=\")","v":{"$error":"#REF!"}},{"$f":"AND(#REF!,\"Z2dMdxdgJb8=\")","v":{"$error":"#REF!"}},{"$f":"AND(#REF!,\"Z2dMdxdgJcA=\")","v":{"$error":"#REF!"}},{"$f":"AND(#REF!,\"Z2dMdxdgJcE=\")","v":{"$error":"#REF!"}},{"$f":"AND(#REF!,\"Z2dMdxdgJcI=\")","v":{"$error":"#REF!"}},{"$f":"AND(#REF!,\"Z2dMdxdgJcM=\")","v":{"$error":"#REF!"}},{"$f":"AND(#REF!,\"Z2dMdxdgJcQ=\")","v":{"$error":"#REF!"}},{"$f":"AND(#REF!,\"Z2dMdxdgJcU=\")","v":{"$error":"#REF!"}},{"$f":"AND(#REF!,\"Z2dMdxdgJcY=\")","v":{"$error":"#REF!"}},{"$f":"AND(#REF!,\"Z2dMdxdgJcc=\")","v":{"$error":"#REF!"}},{"$f":"AND(#REF!,\"Z2dMdxdgJcg=\")","v":{"$error":"#REF!"}},{"$f":"AND(#REF!,\"Z2dMdxdgJck=\")","v":{"$error":"#REF!"}},{"$f":"AND(#REF!,\"Z2dMdxdgJco=\")","v":{"$error":"#REF!"}},{"$f":"AND(#REF!,\"Z2dMdxdgJcs=\")","v":{"$error":"#REF!"}},{"$f":"AND(#REF!,\"Z2dMdxdgJcw=\")","v":{"$error":"#REF!"}},{"$f":"AND(#REF!,\"Z2dMdxdgJc0=\")","v":{"$error":"#REF!"}},{"$f":"AND(#REF!,\"Z2dMdxdgJc4=\")","v":{"$error":"#REF!"}},{"$f":"AND(#REF!,\"Z2dMdxdgJc8=\")","v":{"$error":"#REF!"}},{"$f":"AND(#REF!,\"Z2dMdxdgJdA=\")","v":{"$error":"#REF!"}},{"$f":"AND(#REF!,\"Z2dMdxdgJdE=\")","v":{"$error":"#REF!"}},{"$f":"AND(#REF!,\"Z2dMdxdgJdI=\")","v":{"$error":"#REF!"}},{"$f":"AND(#REF!,\"Z2dMdxdgJdM=\")","v":{"$error":"#REF!"}},{"$f":"AND(#REF!,\"Z2dMdxdgJdQ=\")","v":{"$error":"#REF!"}},{"$f":"IF(#REF!,\"Z2dMdxdgJdU=\",0)","v":{"$error":"#REF!"}},{"$f":"AND(#REF!,\"Z2dMdxdgJdY=\")","v":{"$error":"#REF!"}},{"$f":"AND(#REF!,\"Z2dMdxdgJdc=\")","v":{"$error":"#REF!"}},{"$f":"AND(#REF!,\"Z2dMdxdgJdg=\")","v":{"$error":"#REF!"}},{"$f":"AND(#REF!,\"Z2dMdxdgJdk=\")","v":{"$error":"#REF!"}},{"$f":"AND(#REF!,\"Z2dMdxdgJdo=\")","v":{"$error":"#REF!"}},{"$f":"AND(#REF!,\"Z2dMdxdgJds=\")","v":{"$error":"#REF!"}},{"$f":"AND(#REF!,\"Z2dMdxdgJdw=\")","v":{"$error":"#REF!"}},{"$f":"AND(#REF!,\"Z2dMdxdgJd0=\")","v":{"$error":"#REF!"}},{"$f":"AND(#REF!,\"Z2dMdxdgJd4=\")","v":{"$error":"#REF!"}},{"$f":"AND(#REF!,\"Z2dMdxdgJd8=\")","v":{"$error":"#REF!"}},{"$f":"AND(#REF!,\"Z2dMdxdgJeA=\")","v":{"$error":"#REF!"}},{"$f":"AND(#REF!,\"Z2dMdxdgJeE=\")","v":{"$error":"#REF!"}},{"$f":"AND(#REF!,\"Z2dMdxdgJeI=\")","v":{"$error":"#REF!"}},{"$f":"AND(#REF!,\"Z2dMdxdgJeM=\")","v":{"$error":"#REF!"}},{"$f":"AND(#REF!,\"Z2dMdxdgJeQ=\")","v":{"$error":"#REF!"}},{"$f":"AND(#REF!,\"Z2dMdxdgJeU=\")","v":{"$error":"#REF!"}},{"$f":"AND(#REF!,\"Z2dMdxdgJeY=\")","v":{"$error":"#REF!"}},{"$f":"AND(#REF!,\"Z2dMdxdgJec=\")","v":{"$error":"#REF!"}},{"$f":"AND(#REF!,\"Z2dMdxdgJeg=\")","v":{"$error":"#REF!"}},{"$f":"AND(#REF!,\"Z2dMdxdgJek=\")","v":{"$error":"#REF!"}},{"$f":"AND(#REF!,\"Z2dMdxdgJeo=\")","v":{"$error":"#REF!"}},{"$f":"AND(#REF!,\"Z2dMdxdgJes=\")","v":{"$error":"#REF!"}},{"$f":"AND(#REF!,\"Z2dMdxdgJew=\")","v":{"$error":"#REF!"}},{"$f":"AND(#REF!,\"Z2dMdxdgJe0=\")","v":{"$error":"#REF!"}},{"$f":"AND(#REF!,\"Z2dMdxdgJe4=\")","v":{"$error":"#REF!"}},{"$f":"AND(#REF!,\"Z2dMdxdgJe8=\")","v":{"$error":"#REF!"}},{"$f":"AND(#REF!,\"Z2dMdxdgJfA=\")","v":{"$error":"#REF!"}},{"$f":"AND(#REF!,\"Z2dMdxdgJfE=\")","v":{"$error":"#REF!"}},{"$f":"AND(#REF!,\"Z2dMdxdgJfI=\")","v":{"$error":"#REF!"}},{"$f":"AND(#REF!,\"Z2dMdxdgJfM=\")","v":{"$error":"#REF!"}},{"$f":"AND(#REF!,\"Z2dMdxdgJfQ=\")","v":{"$error":"#REF!"}},{"$f":"AND(#REF!,\"Z2dMdxdgJfU=\")","v":{"$error":"#REF!"}},{"$f":"AND(#REF!,\"Z2dMdxdgJfY=\")","v":{"$error":"#REF!"}},{"$f":"AND(#REF!,\"Z2dMdxdgJfc=\")","v":{"$error":"#REF!"}},{"$f":"AND(#REF!,\"Z2dMdxdgJfg=\")","v":{"$error":"#REF!"}},{"$f":"AND(#REF!,\"Z2dMdxdgJfk=\")","v":{"$error":"#REF!"}},{"$f":"AND(#REF!,\"Z2dMdxdgJfo=\")","v":{"$error":"#REF!"}},{"$f":"AND(#REF!,\"Z2dMdxdgJfs=\")","v":{"$error":"#REF!"}},{"$f":"AND(#REF!,\"Z2dMdxdgJfw=\")","v":{"$error":"#REF!"}},{"$f":"AND(#REF!,\"Z2dMdxdgJf0=\")","v":{"$error":"#REF!"}},{"$f":"AND(#REF!,\"Z2dMdxdgJf4=\")","v":{"$error":"#REF!"}},{"$f":"AND(#REF!,\"Z2dMdxdgJf8=\")","v":{"$error":"#REF!"}}]
[{"$f":"AND(#REF!,\"LA2eSH6IdgA=\")","v":{"$error":"#REF!"}},{"$f":"AND(#REF!,\"LA2eSH6IdgE=\")","v":{"$error":"#REF!"}},{"$f":"AND(#REF!,\"LA2eSH6IdgI=\")","v":{"$error":"#REF!"}},{"$f":"AND(#REF!,\"LA2eSH6IdgM=\")","v":{"$error":"#REF!"}},{"$f":"AND(#REF!,\"LA2eSH6IdgQ=\")","v":{"$error":"#REF!"}},{"$f":"AND(#REF!,\"LA2eSH6IdgU=\")","v":{"$error":"#REF!"}},{"$f":"AND(#REF!,\"LA2eSH6IdgY=\")","v":{"$error":"#REF!"}},{"$f":"AND(#REF!,\"LA2eSH6Idgc=\")","v":{"$error":"#REF!"}},{"$f":"AND(#REF!,\"LA2eSH6Idgg=\")","v":{"$error":"#REF!"}},{"$f":"AND(#REF!,\"LA2eSH6Idgk=\")","v":{"$error":"#REF!"}},{"$f":"AND(#REF!,\"LA2eSH6Idgo=\")","v":{"$error":"#REF!"}},{"$f":"AND(#REF!,\"LA2eSH6Idgs=\")","v":{"$error":"#REF!"}},{"$f":"AND(#REF!,\"LA2eSH6Idgw=\")","v":{"$error":"#REF!"}},{"$f":"AND(#REF!,\"LA2eSH6Idg0=\")","v":{"$error":"#REF!"}},{"$f":"AND(#REF!,\"LA2eSH6Idg4=\")","v":{"$error":"#REF!"}},{"$f":"AND(#REF!,\"LA2eSH6Idg8=\")","v":{"$error":"#REF!"}},{"$f":"AND(#REF!,\"LA2eSH6IdhA=\")","v":{"$error":"#REF!"}},{"$f":"AND(#REF!,\"LA2eSH6IdhE=\")","v":{"$error":"#REF!"}},{"$f":"AND(#REF!,\"LA2eSH6IdhI=\")","v":{"$error":"#REF!"}},{"$f":"AND(#REF!,\"LA2eSH6IdhM=\")","v":{"$error":"#REF!"}},{"$f":"AND(#REF!,\"LA2eSH6IdhQ=\")","v":{"$error":"#REF!"}},{"$f":"AND(#REF!,\"LA2eSH6IdhU=\")","v":{"$error":"#REF!"}},{"$f":"AND(#REF!,\"LA2eSH6IdhY=\")","v":{"$error":"#REF!"}},{"$f":"AND(#REF!,\"LA2eSH6Idhc=\")","v":{"$error":"#REF!"}},{"$f":"AND(#REF!,\"LA2eSH6Idhg=\")","v":{"$error":"#REF!"}},{"$f":"AND(#REF!,\"LA2eSH6Idhk=\")","v":{"$error":"#REF!"}},{"$f":"AND(#REF!,\"LA2eSH6Idho=\")","v":{"$error":"#REF!"}},{"$f":"AND(#REF!,\"LA2eSH6Idhs=\")","v":{"$error":"#REF!"}},{"$f":"AND(#REF!,\"LA2eSH6Idhw=\")","v":{"$error":"#REF!"}},{"$f":"AND(#REF!,\"LA2eSH6Idh0=\")","v":{"$error":"#REF!"}},{"$f":"AND(#REF!,\"LA2eSH6Idh4=\")","v":{"$error":"#REF!"}},{"$f":"AND(#REF!,\"LA2eSH6Idh8=\")","v":{"$error":"#REF!"}},{"$f":"AND(#REF!,\"LA2eSH6IdiA=\")","v":{"$error":"#REF!"}},{"$f":"AND(#REF!,\"LA2eSH6IdiE=\")","v":{"$error":"#REF!"}},{"$f":"AND(#REF!,\"LA2eSH6IdiI=\")","v":{"$error":"#REF!"}},{"$f":"AND(#REF!,\"LA2eSH6IdiM=\")","v":{"$error":"#REF!"}},{"$f":"AND(#REF!,\"LA2eSH6IdiQ=\")","v":{"$error":"#REF!"}},{"$f":"AND(#REF!,\"LA2eSH6IdiU=\")","v":{"$error":"#REF!"}},{"$f":"AND(#REF!,\"LA2eSH6IdiY=\")","v":{"$error":"#REF!"}},{"$f":"AND(#REF!,\"LA2eSH6Idic=\")","v":{"$error":"#REF!"}},{"$f":"AND(#REF!,\"LA2eSH6Idig=\")","v":{"$error":"#REF!"}},{"$f":"AND(#REF!,\"LA2eSH6Idik=\")","v":{"$error":"#REF!"}},{"$f":"AND(#REF!,\"LA2eSH6Idio=\")","v":{"$error":"#REF!"}},{"$f":"AND(#REF!,\"LA2eSH6Idis=\")","v":{"$error":"#REF!"}},{"$f":"AND(#REF!,\"LA2eSH6Idiw=\")","v":{"$error":"#REF!"}},{"$f":"AND(#REF!,\"LA2eSH6Idi0=\")","v":{"$error":"#REF!"}},{"$f":"AND(#REF!,\"LA2eSH6Idi4=\")","v":{"$error":"#REF!"}},{"$f":"AND(#REF!,\"LA2eSH6Idi8=\")","v":{"$error":"#REF!"}},{"$f":"AND(#REF!,\"LA2eSH6IdjA=\")","v":{"$error":"#REF!"}},{"$f":"AND(#REF!,\"LA2eSH6IdjE=\")","v":{"$error":"#REF!"}},{"$f":"AND(#REF!,\"LA2eSH6IdjI=\")","v":{"$error":"#REF!"}},{"$f":"AND(#REF!,\"LA2eSH6IdjM=\")","v":{"$error":"#REF!"}},{"$f":"AND(#REF!,\"LA2eSH6IdjQ=\")","v":{"$error":"#REF!"}},{"$f":"AND(#REF!,\"LA2eSH6IdjU=\")","v":{"$error":"#REF!"}},{"$f":"AND(#REF!,\"LA2eSH6IdjY=\")","v":{"$error":"#REF!"}},{"$f":"AND(#REF!,\"LA2eSH6Idjc=\")","v":{"$error":"#REF!"}},{"$f":"AND(#REF!,\"LA2eSH6Idjg=\")","v":{"$error":"#REF!"}},{"$f":"AND(#REF!,\"LA2eSH6Idjk=\")","v":{"$error":"#REF!"}},{"$f":"AND(#REF!,\"LA2eSH6Idjo=\")","v":{"$error":"#REF!"}},{"$f":"AND(#REF!,\"LA2eSH6Idjs=\")","v":{"$error":"#REF!"}},{"$f":"AND(#REF!,\"LA2eSH6Idjw=\")","v":{"$error":"#REF!"}},{"$f":"AND(#REF!,\"LA2eSH6Idj0=\")","v":{"$error":"#REF!"}},{"$f":"AND(#REF!,\"LA2eSH6Idj4=\")","v":{"$error":"#REF!"}},{"$f":"AND(#REF!,\"LA2eSH6Idj8=\")","v":{"$error":"#REF!"}},{"$f":"AND(#REF!,\"LA2eSH6IdkA=\")","v":{"$error":"#REF!"}},{"$f":"AND(#REF!,\"LA2eSH6IdkE=\")","v":{"$error":"#REF!"}},{"$f":"AND(#REF!,\"LA2eSH6IdkI=\")","v":{"$error":"#REF!"}},{"$f":"AND(#REF!,\"LA2eSH6IdkM=\")","v":{"$error":"#REF!"}},{"$f":"AND(#REF!,\"LA2eSH6IdkQ=\")","v":{"$error":"#REF!"}},{"$f":"AND(#REF!,\"LA2eSH6IdkU=\")","v":{"$error":"#REF!"}},{"$f":"AND(#REF!,\"LA2eSH6IdkY=\")","v":{"$error":"#REF!"}},{"$f":"AND(#REF!,\"LA2eSH6Idkc=\")","v":{"$error":"#REF!"}},{"$f":"AND(#REF!,\"LA2eSH6Idkg=\")","v":{"$error":"#REF!"}},{"$f":"AND(#REF!,\"LA2eSH6Idkk=\")","v":{"$error":"#REF!"}},{"$f":"AND(#REF!,\"LA2eSH6Idko=\")","v":{"$error":"#REF!"}},{"$f":"AND(#REF!,\"LA2eSH6Idks=\")","v":{"$error":"#REF!"}},{"$f":"AND(#REF!,\"LA2eSH6Idkw=\")","v":{"$error":"#REF!"}},{"$f":"AND(#REF!,\"LA2eSH6Idk0=\")","v":{"$error":"#REF!"}},{"$f":"AND(#REF!,\"LA2eSH6Idk4=\")","v":{"$error":"#REF!"}},{"$f":"AND(#REF!,\"LA2eSH6Idk8=\")","v":{"$error":"#REF!"}},{"$f":"AND(#REF!,\"LA2eSH6IdlA=\")","v":{"$error":"#REF!"}},{"$f":"AND(#REF!,\"LA2eSH6IdlE=\")","v":{"$error":"#REF!"}},{"$f":"AND(#REF!,\"LA2eSH6IdlI=\")","v":{"$error":"#REF!"}},{"$f":"AND(#REF!,\"LA2eSH6IdlM=\")","v":{"$error":"#REF!"}},{"$f":"AND(#REF!,\"LA2eSH6IdlQ=\")","v":{"$error":"#REF!"}},{"$f":"AND(#REF!,\"LA2eSH6IdlU=\")","v":{"$error":"#REF!"}},{"$f":"AND(#REF!,\"LA2eSH6IdlY=\")","v":{"$error":"#REF!"}},{"$f":"AND(#REF!,\"LA2eSH6Idlc=\")","v":{"$error":"#REF!"}},{"$f":"AND(#REF!,\"LA2eSH6Idlg=\")","v":{"$error":"#REF!"}},{"$f":"AND(#REF!,\"LA2eSH6Idlk=\")","v":{"$error":"#REF!"}},{"$f":"AND(#REF!,\"LA2eSH6Idlo=\")","v":{"$error":"#REF!"}},{"$f":"AND(#REF!,\"LA2eSH6Idls=\")","v":{"$error":"#REF!"}},{"$f":"AND(#REF!,\"LA2eSH6Idlw=\")","v":{"$error":"#REF!"}},{"$f":"AND(#REF!,\"LA2eSH6Idl0=\")","v":{"$error":"#REF!"}},{"$f":"AND(#REF!,\"LA2eSH6Idl4=\")","v":{"$error":"#REF!"}},{"$f":"AND(#REF!,\"LA2eSH6Idl8=\")","v":{"$error":"#REF!"}},{"$f":"AND(#REF!,\"LA2eSH6IdmA=\")","v":{"$error":"#REF!"}},{"$f":"AND(#REF!,\"LA2eSH6IdmE=\")","v":{"$error":"#REF!"}},{"$f":"AND(#REF!,\"LA2eSH6IdmI=\")","v":{"$error":"#REF!"}},{"$f":"AND(#REF!,\"LA2eSH6IdmM=\")","v":{"$error":"#REF!"}},{"$f":"AND(#REF!,\"LA2eSH6IdmQ=\")","v":{"$error":"#REF!"}},{"$f":"AND(#REF!,\"LA2eSH6IdmU=\")","v":{"$error":"#REF!"}},{"$f":"AND(#REF!,\"LA2eSH6IdmY=\")","v":{"$error":"#REF!"}},{"$f":"AND(#REF!,\"LA2eSH6Idmc=\")","v":{"$error":"#REF!"}},{"$f":"AND(#REF!,\"LA2eSH6Idmg=\")","v":{"$error":"#REF!"}},{"$f":"AND(#REF!,\"LA2eSH6Idmk=\")","v":{"$error":"#REF!"}},{"$f":"AND(#REF!,\"LA2eSH6Idmo=\")","v":{"$error":"#REF!"}},{"$f":"AND(#REF!,\"LA2eSH6Idms=\")","v":{"$error":"#REF!"}},{"$f":"AND(#REF!,\"LA2eSH6Idmw=\")","v":{"$error":"#REF!"}},{"$f":"AND(#REF!,\"LA2eSH6Idm0=\")","v":{"$error":"#REF!"}},{"$f":"AND(#REF!,\"LA2eSH6Idm4=\")","v":{"$error":"#REF!"}},{"$f":"AND(#REF!,\"LA2eSH6Idm8=\")","v":{"$error":"#REF!"}},{"$f":"AND(#REF!,\"LA2eSH6IdnA=\")","v":{"$error":"#REF!"}},{"$f":"AND(#REF!,\"LA2eSH6IdnE=\")","v":{"$error":"#REF!"}},{"$f":"AND(#REF!,\"LA2eSH6IdnI=\")","v":{"$error":"#REF!"}},{"$f":"AND(#REF!,\"LA2eSH6IdnM=\")","v":{"$error":"#REF!"}},{"$f":"AND(#REF!,\"LA2eSH6IdnQ=\")","v":{"$error":"#REF!"}},{"$f":"AND(#REF!,\"LA2eSH6IdnU=\")","v":{"$error":"#REF!"}},{"$f":"AND(#REF!,\"LA2eSH6IdnY=\")","v":{"$error":"#REF!"}},{"$f":"AND(#REF!,\"LA2eSH6Idnc=\")","v":{"$error":"#REF!"}},{"$f":"AND(#REF!,\"LA2eSH6Idng=\")","v":{"$error":"#REF!"}},{"$f":"AND(#REF!,\"LA2eSH6Idnk=\")","v":{"$error":"#REF!"}},{"$f":"AND(#REF!,\"LA2eSH6Idno=\")","v":{"$error":"#REF!"}},{"$f":"AND(#REF!,\"LA2eSH6Idns=\")","v":{"$error":"#REF!"}},{"$f":"AND(#REF!,\"LA2eSH6Idnw=\")","v":{"$error":"#REF!"}},{"$f":"AND(#REF!,\"LA2eSH6Idn0=\")","v":{"$error":"#REF!"}},{"$f":"AND(#REF!,\"LA2eSH6Idn4=\")","v":{"$error":"#REF!"}},{"$f":"AND(#REF!,\"LA2eSH6Idn8=\")","v":{"$error":"#REF!"}},{"$f":"AND(#REF!,\"LA2eSH6IdoA=\")","v":{"$error":"#REF!"}},{"$f":"AND(#REF!,\"LA2eSH6IdoE=\")","v":{"$error":"#REF!"}},{"$f":"AND(#REF!,\"LA2eSH6IdoI=\")","v":{"$error":"#REF!"}},{"$f":"AND(#REF!,\"LA2eSH6IdoM=\")","v":{"$error":"#REF!"}},{"$f":"AND(#REF!,\"LA2eSH6IdoQ=\")","v":{"$error":"#REF!"}},{"$f":"AND(#REF!,\"LA2eSH6IdoU=\")","v":{"$error":"#REF!"}},{"$f":"AND(#REF!,\"LA2eSH6IdoY=\")","v":{"$error":"#REF!"}},{"$f":"AND(#REF!,\"LA2eSH6Idoc=\")","v":{"$error":"#REF!"}},{"$f":"AND(#REF!,\"LA2eSH6Idog=\")","v":{"$error":"#REF!"}},{"$f":"AND(#REF!,\"LA2eSH6Idok=\")","v":{"$error":"#REF!"}},{"$f":"AND(#REF!,\"LA2eSH6Idoo=\")","v":{"$error":"#REF!"}},{"$f":"AND(#REF!,\"LA2eSH6Idos=\")","v":{"$error":"#REF!"}},{"$f":"AND(#REF!,\"LA2eSH6Idow=\")","v":{"$error":"#REF!"}},{"$f":"AND(#REF!,\"LA2eSH6Ido0=\")","v":{"$error":"#REF!"}},{"$f":"AND(#REF!,\"LA2eSH6Ido4=\")","v":{"$error":"#REF!"}},{"$f":"AND(#REF!,\"LA2eSH6Ido8=\")","v":{"$error":"#REF!"}},{"$f":"AND(#REF!,\"LA2eSH6IdpA=\")","v":{"$error":"#REF!"}},{"$f":"AND(#REF!,\"LA2eSH6IdpE=\")","v":{"$error":"#REF!"}},{"$f":"AND(#REF!,\"LA2eSH6IdpI=\")","v":{"$error":"#REF!"}},{"$f":"AND(#REF!,\"LA2eSH6IdpM=\")","v":{"$error":"#REF!"}},{"$f":"AND(#REF!,\"LA2eSH6IdpQ=\")","v":{"$error":"#REF!"}},{"$f":"AND(#REF!,\"LA2eSH6IdpU=\")","v":{"$error":"#REF!"}},{"$f":"AND(#REF!,\"LA2eSH6IdpY=\")","v":{"$error":"#REF!"}},{"$f":"AND(#REF!,\"LA2eSH6Idpc=\")","v":{"$error":"#REF!"}},{"$f":"AND(#REF!,\"LA2eSH6Idpg=\")","v":{"$error":"#REF!"}},{"$f":"AND(#REF!,\"LA2eSH6Idpk=\")","v":{"$error":"#REF!"}},{"$f":"AND(#REF!,\"LA2eSH6Idpo=\")","v":{"$error":"#REF!"}},{"$f":"AND(#REF!,\"LA2eSH6Idps=\")","v":{"$error":"#REF!"}},{"$f":"IF(#REF!,\"LA2eSH6Idpw=\",0)","v":{"$error":"#REF!"}},{"$f":"AND(#REF!,\"LA2eSH6Idp0=\")","v":{"$error":"#REF!"}},{"$f":"AND(#REF!,\"LA2eSH6Idp4=\")","v":{"$error":"#REF!"}},{"$f":"AND(#REF!,\"LA2eSH6Idp8=\")","v":{"$error":"#REF!"}},{"$f":"AND(#REF!,\"LA2eSH6IdqA=\")","v":{"$error":"#REF!"}},{"$f":"AND(#REF!,\"LA2eSH6IdqE=\")","v":{"$error":"#REF!"}},{"$f":"AND(#REF!,\"LA2eSH6IdqI=\")","v":{"$error":"#REF!"}},{"$f":"AND(#REF!,\"LA2eSH6IdqM=\")","v":{"$error":"#REF!"}},{"$f":"AND(#REF!,\"LA2eSH6IdqQ=\")","v":{"$error":"#REF!"}},{"$f":"AND(#REF!,\"LA2eSH6IdqU=\")","v":{"$error":"#REF!"}},{"$f":"AND(#REF!,\"LA2eSH6IdqY=\")","v":{"$error":"#REF!"}},{"$f":"AND(#REF!,\"LA2eSH6Idqc=\")","v":{"$error":"#REF!"}},{"$f":"AND(#REF!,\"LA2eSH6Idqg=\")","v":{"$error":"#REF!"}},{"$f":"AND(#REF!,\"LA2eSH6Idqk=\")","v":{"$error":"#REF!"}},{"$f":"AND(#REF!,\"LA2eSH6Idqo=\")","v":{"$error":"#REF!"}},{"$f":"AND(#REF!,\"LA2eSH6Idqs=\")","v":{"$error":"#REF!"}},{"$f":"AND(#REF!,\"LA2eSH6Idqw=\")","v":{"$error":"#REF!"}},{"$f":"AND(#REF!,\"LA2eSH6Idq0=\")","v":{"$error":"#REF!"}},{"$f":"AND(#REF!,\"LA2eSH6Idq4=\")","v":{"$error":"#REF!"}},{"$f":"AND(#REF!,\"LA2eSH6Idq8=\")","v":{"$error":"#REF!"}},{"$f":"AND(#REF!,\"LA2eSH6IdrA=\")","v":{"$error":"#REF!"}},{"$f":"AND(#REF!,\"LA2eSH6IdrE=\")","v":{"$error":"#REF!"}},{"$f":"AND(#REF!,\"LA2eSH6IdrI=\")","v":{"$error":"#REF!"}},{"$f":"AND(#REF!,\"LA2eSH6IdrM=\")","v":{"$error":"#REF!"}},{"$f":"AND(#REF!,\"LA2eSH6IdrQ=\")","v":{"$error":"#REF!"}},{"$f":"AND(#REF!,\"LA2eSH6IdrU=\")","v":{"$error":"#REF!"}},{"$f":"AND(#REF!,\"LA2eSH6IdrY=\")","v":{"$error":"#REF!"}},{"$f":"AND(#REF!,\"LA2eSH6Idrc=\")","v":{"$error":"#REF!"}},{"$f":"AND(#REF!,\"LA2eSH6Idrg=\")","v":{"$error":"#REF!"}},{"$f":"AND(#REF!,\"LA2eSH6Idrk=\")","v":{"$error":"#REF!"}},{"$f":"AND(#REF!,\"LA2eSH6Idro=\")","v":{"$error":"#REF!"}},{"$f":"AND(#REF!,\"LA2eSH6Idrs=\")","v":{"$error":"#REF!"}},{"$f":"AND(#REF!,\"LA2eSH6Idrw=\")","v":{"$error":"#REF!"}},{"$f":"AND(#REF!,\"LA2eSH6Idr0=\")","v":{"$error":"#REF!"}},{"$f":"AND(#REF!,\"LA2eSH6Idr4=\")","v":{"$error":"#REF!"}},{"$f":"AND(#REF!,\"LA2eSH6Idr8=\")","v":{"$error":"#REF!"}},{"$f":"AND(#REF!,\"LA2eSH6IdsA=\")","v":{"$error":"#REF!"}},{"$f":"AND(#REF!,\"LA2eSH6IdsE=\")","v":{"$error":"#REF!"}},{"$f":"AND(#REF!,\"LA2eSH6IdsI=\")","v":{"$error":"#REF!"}},{"$f":"AND(#REF!,\"LA2eSH6IdsM=\")","v":{"$error":"#REF!"}},{"$f":"AND(#REF!,\"LA2eSH6IdsQ=\")","v":{"$error":"#REF!"}},{"$f":"AND(#REF!,\"LA2eSH6IdsU=\")","v":{"$error":"#REF!"}},{"$f":"AND(#REF!,\"LA2eSH6IdsY=\")","v":{"$error":"#REF!"}},{"$f":"AND(#REF!,\"LA2eSH6Idsc=\")","v":{"$error":"#REF!"}},{"$f":"AND(#REF!,\"LA2eSH6Idsg=\")","v":{"$error":"#REF!"}},{"$f":"AND(#REF!,\"LA2eSH6Idsk=\")","v":{"$error":"#REF!"}},{"$f":"AND(#REF!,\"LA2eSH6Idso=\")","v":{"$error":"#REF!"}},{"$f":"AND(#REF!,\"LA2eSH6Idss=\")","v":{"$error":"#REF!"}},{"$f":"AND(#REF!,\"LA2eSH6Idsw=\")","v":{"$error":"#REF!"}},{"$f":"AND(#REF!,\"LA2eSH6Ids0=\")","v":{"$error":"#REF!"}},{"$f":"AND(#REF!,\"LA2eSH6Ids4=\")","v":{"$error":"#REF!"}},{"$f":"AND(#REF!,\"LA2eSH6Ids8=\")","v":{"$error":"#REF!"}},{"$f":"AND(#REF!,\"LA2eSH6IdtA=\")","v":{"$error":"#REF!"}},{"$f":"AND(#REF!,\"LA2eSH6IdtE=\")","v":{"$error":"#REF!"}},{"$f":"AND(#REF!,\"LA2eSH6IdtI=\")","v":{"$error":"#REF!"}},{"$f":"AND(#REF!,\"LA2eSH6IdtM=\")","v":{"$error":"#REF!"}},{"$f":"AND(#REF!,\"LA2eSH6IdtQ=\")","v":{"$error":"#REF!"}},{"$f":"AND(#REF!,\"LA2eSH6IdtU=\")","v":{"$error":"#REF!"}},{"$f":"AND(#REF!,\"LA2eSH6IdtY=\")","v":{"$error":"#REF!"}},{"$f":"AND(#REF!,\"LA2eSH6Idtc=\")","v":{"$error":"#REF!"}},{"$f":"AND(#REF!,\"LA2eSH6Idtg=\")","v":{"$error":"#REF!"}},{"$f":"AND(#REF!,\"LA2eSH6Idtk=\")","v":{"$error":"#REF!"}},{"$f":"AND(#REF!,\"LA2eSH6Idto=\")","v":{"$error":"#REF!"}},{"$f":"AND(#REF!,\"LA2eSH6Idts=\")","v":{"$error":"#REF!"}},{"$f":"AND(#REF!,\"LA2eSH6Idtw=\")","v":{"$error":"#REF!"}},{"$f":"AND(#REF!,\"LA2eSH6Idt0=\")","v":{"$error":"#REF!"}},{"$f":"AND(#REF!,\"LA2eSH6Idt4=\")","v":{"$error":"#REF!"}},{"$f":"AND(#REF!,\"LA2eSH6Idt8=\")","v":{"$error":"#REF!"}},{"$f":"AND(#REF!,\"LA2eSH6IduA=\")","v":{"$error":"#REF!"}},{"$f":"AND(#REF!,\"LA2eSH6IduE=\")","v":{"$error":"#REF!"}},{"$f":"AND(#REF!,\"LA2eSH6IduI=\")","v":{"$error":"#REF!"}},{"$f":"AND(#REF!,\"LA2eSH6IduM=\")","v":{"$error":"#REF!"}},{"$f":"AND(#REF!,\"LA2eSH6IduQ=\")","v":{"$error":"#REF!"}},{"$f":"AND(#REF!,\"LA2eSH6IduU=\")","v":{"$error":"#REF!"}},{"$f":"AND(#REF!,\"LA2eSH6IduY=\")","v":{"$error":"#REF!"}},{"$f":"AND(#REF!,\"LA2eSH6Iduc=\")","v":{"$error":"#REF!"}},{"$f":"AND(#REF!,\"LA2eSH6Idug=\")","v":{"$error":"#REF!"}},{"$f":"AND(#REF!,\"LA2eSH6Iduk=\")","v":{"$error":"#REF!"}},{"$f":"AND(#REF!,\"LA2eSH6Iduo=\")","v":{"$error":"#REF!"}},{"$f":"AND(#REF!,\"LA2eSH6Idus=\")","v":{"$error":"#REF!"}},{"$f":"AND(#REF!,\"LA2eSH6Iduw=\")","v":{"$error":"#REF!"}},{"$f":"AND(#REF!,\"LA2eSH6Idu0=\")","v":{"$error":"#REF!"}},{"$f":"AND(#REF!,\"LA2eSH6Idu4=\")","v":{"$error":"#REF!"}},{"$f":"AND(#REF!,\"LA2eSH6Idu8=\")","v":{"$error":"#REF!"}},{"$f":"AND(#REF!,\"LA2eSH6IdvA=\")","v":{"$error":"#REF!"}},{"$f":"AND(#REF!,\"LA2eSH6IdvE=\")","v":{"$error":"#REF!"}},{"$f":"AND(#REF!,\"LA2eSH6IdvI=\")","v":{"$error":"#REF!"}},{"$f":"AND(#REF!,\"LA2eSH6IdvM=\")","v":{"$error":"#REF!"}},{"$f":"AND(#REF!,\"LA2eSH6IdvQ=\")","v":{"$error":"#REF!"}},{"$f":"AND(#REF!,\"LA2eSH6IdvU=\")","v":{"$error":"#REF!"}},{"$f":"AND(#REF!,\"LA2eSH6IdvY=\")","v":{"$error":"#REF!"}},{"$f":"AND(#REF!,\"LA2eSH6Idvc=\")","v":{"$error":"#REF!"}},{"$f":"AND(#REF!,\"LA2eSH6Idvg=\")","v":{"$error":"#REF!"}},{"$f":"AND(#REF!,\"LA2eSH6Idvk=\")","v":{"$error":"#REF!"}},{"$f":"AND(#REF!,\"LA2eSH6Idvo=\")","v":{"$error":"#REF!"}},{"$f":"AND(#REF!,\"LA2eSH6Idvs=\")","v":{"$error":"#REF!"}},{"$f":"AND(#REF!,\"LA2eSH6Idvw=\")","v":{"$error":"#REF!"}},{"$f":"AND(#REF!,\"LA2eSH6Idv0=\")","v":{"$error":"#REF!"}},{"$f":"AND(#REF!,\"LA2eSH6Idv4=\")","v":{"$error":"#REF!"}},{"$f":"AND(#REF!,\"LA2eSH6Idv8=\")","v":{"$error":"#REF!"}}]
[{"$f":"AND(#REF!,\"YnsorDWv6wA=\")","v":{"$error":"#REF!"}},{"$f":"AND(#REF!,\"YnsorDWv6wE=\")","v":{"$error":"#REF!"}},{"$f":"AND(#REF!,\"YnsorDWv6wI=\")","v":{"$error":"#REF!"}},{"$f":"AND(#REF!,\"YnsorDWv6wM=\")","v":{"$error":"#REF!"}},{"$f":"AND(#REF!,\"YnsorDWv6wQ=\")","v":{"$error":"#REF!"}},{"$f":"AND(#REF!,\"YnsorDWv6wU=\")","v":{"$error":"#REF!"}},{"$f":"AND(#REF!,\"YnsorDWv6wY=\")","v":{"$error":"#REF!"}},{"$f":"AND(#REF!,\"YnsorDWv6wc=\")","v":{"$error":"#REF!"}},{"$f":"AND(#REF!,\"YnsorDWv6wg=\")","v":{"$error":"#REF!"}},{"$f":"AND(#REF!,\"YnsorDWv6wk=\")","v":{"$error":"#REF!"}},{"$f":"AND(#REF!,\"YnsorDWv6wo=\")","v":{"$error":"#REF!"}},{"$f":"AND(#REF!,\"YnsorDWv6ws=\")","v":{"$error":"#REF!"}},{"$f":"AND(#REF!,\"YnsorDWv6ww=\")","v":{"$error":"#REF!"}},{"$f":"AND(#REF!,\"YnsorDWv6w0=\")","v":{"$error":"#REF!"}},{"$f":"AND(#REF!,\"YnsorDWv6w4=\")","v":{"$error":"#REF!"}},{"$f":"AND(#REF!,\"YnsorDWv6w8=\")","v":{"$error":"#REF!"}},{"$f":"AND(#REF!,\"YnsorDWv6xA=\")","v":{"$error":"#REF!"}},{"$f":"AND(#REF!,\"YnsorDWv6xE=\")","v":{"$error":"#REF!"}},{"$f":"AND(#REF!,\"YnsorDWv6xI=\")","v":{"$error":"#REF!"}},{"$f":"AND(#REF!,\"YnsorDWv6xM=\")","v":{"$error":"#REF!"}},{"$f":"AND(#REF!,\"YnsorDWv6xQ=\")","v":{"$error":"#REF!"}},{"$f":"AND(#REF!,\"YnsorDWv6xU=\")","v":{"$error":"#REF!"}},{"$f":"AND(#REF!,\"YnsorDWv6xY=\")","v":{"$error":"#REF!"}},{"$f":"AND(#REF!,\"YnsorDWv6xc=\")","v":{"$error":"#REF!"}},{"$f":"AND(#REF!,\"YnsorDWv6xg=\")","v":{"$error":"#REF!"}},{"$f":"AND(#REF!,\"YnsorDWv6xk=\")","v":{"$error":"#REF!"}},{"$f":"AND(#REF!,\"YnsorDWv6xo=\")","v":{"$error":"#REF!"}},{"$f":"AND(#REF!,\"YnsorDWv6xs=\")","v":{"$error":"#REF!"}},{"$f":"AND(#REF!,\"YnsorDWv6xw=\")","v":{"$error":"#REF!"}},{"$f":"AND(#REF!,\"YnsorDWv6x0=\")","v":{"$error":"#REF!"}},{"$f":"AND(#REF!,\"YnsorDWv6x4=\")","v":{"$error":"#REF!"}},{"$f":"AND(#REF!,\"YnsorDWv6x8=\")","v":{"$error":"#REF!"}},{"$f":"AND(#REF!,\"YnsorDWv6yA=\")","v":{"$error":"#REF!"}},{"$f":"AND(#REF!,\"YnsorDWv6yE=\")","v":{"$error":"#REF!"}},{"$f":"AND(#REF!,\"YnsorDWv6yI=\")","v":{"$error":"#REF!"}},{"$f":"AND(#REF!,\"YnsorDWv6yM=\")","v":{"$error":"#REF!"}},{"$f":"AND(#REF!,\"YnsorDWv6yQ=\")","v":{"$error":"#REF!"}},{"$f":"AND(#REF!,\"YnsorDWv6yU=\")","v":{"$error":"#REF!"}},{"$f":"AND(#REF!,\"YnsorDWv6yY=\")","v":{"$error":"#REF!"}},{"$f":"AND(#REF!,\"YnsorDWv6yc=\")","v":{"$error":"#REF!"}},{"$f":"AND(#REF!,\"YnsorDWv6yg=\")","v":{"$error":"#REF!"}},{"$f":"AND(#REF!,\"YnsorDWv6yk=\")","v":{"$error":"#REF!"}},{"$f":"AND(#REF!,\"YnsorDWv6yo=\")","v":{"$error":"#REF!"}},{"$f":"AND(#REF!,\"YnsorDWv6ys=\")","v":{"$error":"#REF!"}},{"$f":"AND(#REF!,\"YnsorDWv6yw=\")","v":{"$error":"#REF!"}},{"$f":"AND(#REF!,\"YnsorDWv6y0=\")","v":{"$error":"#REF!"}},{"$f":"AND(#REF!,\"YnsorDWv6y4=\")","v":{"$error":"#REF!"}},{"$f":"AND(#REF!,\"YnsorDWv6y8=\")","v":{"$error":"#REF!"}},{"$f":"AND(#REF!,\"YnsorDWv6zA=\")","v":{"$error":"#REF!"}},{"$f":"AND(#REF!,\"YnsorDWv6zE=\")","v":{"$error":"#REF!"}},{"$f":"AND(#REF!,\"YnsorDWv6zI=\")","v":{"$error":"#REF!"}},{"$f":"AND(#REF!,\"YnsorDWv6zM=\")","v":{"$error":"#REF!"}},{"$f":"AND(#REF!,\"YnsorDWv6zQ=\")","v":{"$error":"#REF!"}},{"$f":"AND(#REF!,\"YnsorDWv6zU=\")","v":{"$error":"#REF!"}},{"$f":"AND(#REF!,\"YnsorDWv6zY=\")","v":{"$error":"#REF!"}},{"$f":"AND(#REF!,\"YnsorDWv6zc=\")","v":{"$error":"#REF!"}},{"$f":"AND(#REF!,\"YnsorDWv6zg=\")","v":{"$error":"#REF!"}},{"$f":"AND(#REF!,\"YnsorDWv6zk=\")","v":{"$error":"#REF!"}},{"$f":"AND(#REF!,\"YnsorDWv6zo=\")","v":{"$error":"#REF!"}},{"$f":"AND(#REF!,\"YnsorDWv6zs=\")","v":{"$error":"#REF!"}},{"$f":"AND(#REF!,\"YnsorDWv6zw=\")","v":{"$error":"#REF!"}},{"$f":"AND(#REF!,\"YnsorDWv6z0=\")","v":{"$error":"#REF!"}},{"$f":"AND(#REF!,\"YnsorDWv6z4=\")","v":{"$error":"#REF!"}},{"$f":"AND(#REF!,\"YnsorDWv6z8=\")","v":{"$error":"#REF!"}},{"$f":"AND(#REF!,\"YnsorDWv60A=\")","v":{"$error":"#REF!"}},{"$f":"AND(#REF!,\"YnsorDWv60E=\")","v":{"$error":"#REF!"}},{"$f":"AND(#REF!,\"YnsorDWv60I=\")","v":{"$error":"#REF!"}},{"$f":"AND(#REF!,\"YnsorDWv60M=\")","v":{"$error":"#REF!"}},{"$f":"AND(#REF!,\"YnsorDWv60Q=\")","v":{"$error":"#REF!"}},{"$f":"AND(#REF!,\"YnsorDWv60U=\")","v":{"$error":"#REF!"}},{"$f":"AND(#REF!,\"YnsorDWv60Y=\")","v":{"$error":"#REF!"}},{"$f":"AND(#REF!,\"YnsorDWv60c=\")","v":{"$error":"#REF!"}},{"$f":"AND(#REF!,\"YnsorDWv60g=\")","v":{"$error":"#REF!"}},{"$f":"AND(#REF!,\"YnsorDWv60k=\")","v":{"$error":"#REF!"}},{"$f":"AND(#REF!,\"YnsorDWv60o=\")","v":{"$error":"#REF!"}},{"$f":"AND(#REF!,\"YnsorDWv60s=\")","v":{"$error":"#REF!"}},{"$f":"AND(#REF!,\"YnsorDWv60w=\")","v":{"$error":"#REF!"}},{"$f":"AND(#REF!,\"YnsorDWv600=\")","v":{"$error":"#REF!"}},{"$f":"AND(#REF!,\"YnsorDWv604=\")","v":{"$error":"#REF!"}},{"$f":"AND(#REF!,\"YnsorDWv608=\")","v":{"$error":"#REF!"}},{"$f":"AND(#REF!,\"YnsorDWv61A=\")","v":{"$error":"#REF!"}},{"$f":"AND(#REF!,\"YnsorDWv61E=\")","v":{"$error":"#REF!"}},{"$f":"AND(#REF!,\"YnsorDWv61I=\")","v":{"$error":"#REF!"}},{"$f":"AND(#REF!,\"YnsorDWv61M=\")","v":{"$error":"#REF!"}},{"$f":"AND(#REF!,\"YnsorDWv61Q=\")","v":{"$error":"#REF!"}},{"$f":"AND(#REF!,\"YnsorDWv61U=\")","v":{"$error":"#REF!"}},{"$f":"AND(#REF!,\"YnsorDWv61Y=\")","v":{"$error":"#REF!"}},{"$f":"AND(#REF!,\"YnsorDWv61c=\")","v":{"$error":"#REF!"}},{"$f":"AND(#REF!,\"YnsorDWv61g=\")","v":{"$error":"#REF!"}},{"$f":"AND(#REF!,\"YnsorDWv61k=\")","v":{"$error":"#REF!"}},{"$f":"AND(#REF!,\"YnsorDWv61o=\")","v":{"$error":"#REF!"}},{"$f":"AND(#REF!,\"YnsorDWv61s=\")","v":{"$error":"#REF!"}},{"$f":"AND(#REF!,\"YnsorDWv61w=\")","v":{"$error":"#REF!"}},{"$f":"AND(#REF!,\"YnsorDWv610=\")","v":{"$error":"#REF!"}},{"$f":"AND(#REF!,\"YnsorDWv614=\")","v":{"$error":"#REF!"}},{"$f":"AND(#REF!,\"YnsorDWv618=\")","v":{"$error":"#REF!"}},{"$f":"AND(#REF!,\"YnsorDWv62A=\")","v":{"$error":"#REF!"}},{"$f":"AND(#REF!,\"YnsorDWv62E=\")","v":{"$error":"#REF!"}},{"$f":"AND(#REF!,\"YnsorDWv62I=\")","v":{"$error":"#REF!"}},{"$f":"IF(#REF!,\"YnsorDWv62M=\",0)","v":{"$error":"#REF!"}},{"$f":"AND(#REF!,\"YnsorDWv62Q=\")","v":{"$error":"#REF!"}},{"$f":"AND(#REF!,\"YnsorDWv62U=\")","v":{"$error":"#REF!"}},{"$f":"AND(#REF!,\"YnsorDWv62Y=\")","v":{"$error":"#REF!"}},{"$f":"AND(#REF!,\"YnsorDWv62c=\")","v":{"$error":"#REF!"}},{"$f":"AND(#REF!,\"YnsorDWv62g=\")","v":{"$error":"#REF!"}},{"$f":"AND(#REF!,\"YnsorDWv62k=\")","v":{"$error":"#REF!"}},{"$f":"AND(#REF!,\"YnsorDWv62o=\")","v":{"$error":"#REF!"}},{"$f":"AND(#REF!,\"YnsorDWv62s=\")","v":{"$error":"#REF!"}},{"$f":"AND(#REF!,\"YnsorDWv62w=\")","v":{"$error":"#REF!"}},{"$f":"AND(#REF!,\"YnsorDWv620=\")","v":{"$error":"#REF!"}},{"$f":"AND(#REF!,\"YnsorDWv624=\")","v":{"$error":"#REF!"}},{"$f":"AND(#REF!,\"YnsorDWv628=\")","v":{"$error":"#REF!"}},{"$f":"AND(#REF!,\"YnsorDWv63A=\")","v":{"$error":"#REF!"}},{"$f":"AND(#REF!,\"YnsorDWv63E=\")","v":{"$error":"#REF!"}},{"$f":"AND(#REF!,\"YnsorDWv63I=\")","v":{"$error":"#REF!"}},{"$f":"AND(#REF!,\"YnsorDWv63M=\")","v":{"$error":"#REF!"}},{"$f":"AND(#REF!,\"YnsorDWv63Q=\")","v":{"$error":"#REF!"}},{"$f":"AND(#REF!,\"YnsorDWv63U=\")","v":{"$error":"#REF!"}},{"$f":"AND(#REF!,\"YnsorDWv63Y=\")","v":{"$error":"#REF!"}},{"$f":"AND(#REF!,\"YnsorDWv63c=\")","v":{"$error":"#REF!"}},{"$f":"AND(#REF!,\"YnsorDWv63g=\")","v":{"$error":"#REF!"}},{"$f":"AND(#REF!,\"YnsorDWv63k=\")","v":{"$error":"#REF!"}},{"$f":"AND(#REF!,\"YnsorDWv63o=\")","v":{"$error":"#REF!"}},{"$f":"AND(#REF!,\"YnsorDWv63s=\")","v":{"$error":"#REF!"}},{"$f":"AND(#REF!,\"YnsorDWv63w=\")","v":{"$error":"#REF!"}},{"$f":"AND(#REF!,\"YnsorDWv630=\")","v":{"$error":"#REF!"}},{"$f":"AND(#REF!,\"YnsorDWv634=\")","v":{"$error":"#REF!"}},{"$f":"AND(#REF!,\"YnsorDWv638=\")","v":{"$error":"#REF!"}},{"$f":"AND(#REF!,\"YnsorDWv64A=\")","v":{"$error":"#REF!"}},{"$f":"AND(#REF!,\"YnsorDWv64E=\")","v":{"$error":"#REF!"}},{"$f":"AND(#REF!,\"YnsorDWv64I=\")","v":{"$error":"#REF!"}},{"$f":"AND(#REF!,\"YnsorDWv64M=\")","v":{"$error":"#REF!"}},{"$f":"AND(#REF!,\"YnsorDWv64Q=\")","v":{"$error":"#REF!"}},{"$f":"AND(#REF!,\"YnsorDWv64U=\")","v":{"$error":"#REF!"}},{"$f":"AND(#REF!,\"YnsorDWv64Y=\")","v":{"$error":"#REF!"}},{"$f":"AND(#REF!,\"YnsorDWv64c=\")","v":{"$error":"#REF!"}},{"$f":"AND(#REF!,\"YnsorDWv64g=\")","v":{"$error":"#REF!"}},{"$f":"AND(#REF!,\"YnsorDWv64k=\")","v":{"$error":"#REF!"}},{"$f":"AND(#REF!,\"YnsorDWv64o=\")","v":{"$error":"#REF!"}},{"$f":"AND(#REF!,\"YnsorDWv64s=\")","v":{"$error":"#REF!"}},{"$f":"AND(#REF!,\"YnsorDWv64w=\")","v":{"$error":"#REF!"}},{"$f":"AND(#REF!,\"YnsorDWv640=\")","v":{"$error":"#REF!"}},{"$f":"AND(#REF!,\"YnsorDWv644=\")","v":{"$error":"#REF!"}},{"$f":"AND(#REF!,\"YnsorDWv648=\")","v":{"$error":"#REF!"}},{"$f":"AND(#REF!,\"YnsorDWv65A=\")","v":{"$error":"#REF!"}},{"$f":"AND(#REF!,\"YnsorDWv65E=\")","v":{"$error":"#REF!"}},{"$f":"AND(#REF!,\"YnsorDWv65I=\")","v":{"$error":"#REF!"}},{"$f":"AND(#REF!,\"YnsorDWv65M=\")","v":{"$error":"#REF!"}},{"$f":"AND(#REF!,\"YnsorDWv65Q=\")","v":{"$error":"#REF!"}},{"$f":"AND(#REF!,\"YnsorDWv65U=\")","v":{"$error":"#REF!"}},{"$f":"AND(#REF!,\"YnsorDWv65Y=\")","v":{"$error":"#REF!"}},{"$f":"AND(#REF!,\"YnsorDWv65c=\")","v":{"$error":"#REF!"}},{"$f":"AND(#REF!,\"YnsorDWv65g=\")","v":{"$error":"#REF!"}},{"$f":"AND(#REF!,\"YnsorDWv65k=\")","v":{"$error":"#REF!"}},{"$f":"AND(#REF!,\"YnsorDWv65o=\")","v":{"$error":"#REF!"}},{"$f":"AND(#REF!,\"YnsorDWv65s=\")","v":{"$error":"#REF!"}},{"$f":"AND(#REF!,\"YnsorDWv65w=\")","v":{"$error":"#REF!"}},{"$f":"AND(#REF!,\"YnsorDWv650=\")","v":{"$error":"#REF!"}},{"$f":"AND(#REF!,\"YnsorDWv654=\")","v":{"$error":"#REF!"}},{"$f":"AND(#REF!,\"YnsorDWv658=\")","v":{"$error":"#REF!"}},{"$f":"AND(#REF!,\"YnsorDWv66A=\")","v":{"$error":"#REF!"}},{"$f":"AND(#REF!,\"YnsorDWv66E=\")","v":{"$error":"#REF!"}},{"$f":"AND(#REF!,\"YnsorDWv66I=\")","v":{"$error":"#REF!"}},{"$f":"AND(#REF!,\"YnsorDWv66M=\")","v":{"$error":"#REF!"}},{"$f":"AND(#REF!,\"YnsorDWv66Q=\")","v":{"$error":"#REF!"}},{"$f":"AND(#REF!,\"YnsorDWv66U=\")","v":{"$error":"#REF!"}},{"$f":"AND(#REF!,\"YnsorDWv66Y=\")","v":{"$error":"#REF!"}},{"$f":"AND(#REF!,\"YnsorDWv66c=\")","v":{"$error":"#REF!"}},{"$f":"AND(#REF!,\"YnsorDWv66g=\")","v":{"$error":"#REF!"}},{"$f":"AND(#REF!,\"YnsorDWv66k=\")","v":{"$error":"#REF!"}},{"$f":"AND(#REF!,\"YnsorDWv66o=\")","v":{"$error":"#REF!"}},{"$f":"AND(#REF!,\"YnsorDWv66s=\")","v":{"$error":"#REF!"}},{"$f":"AND(#REF!,\"YnsorDWv66w=\")","v":{"$error":"#REF!"}},{"$f":"AND(#REF!,\"YnsorDWv660=\")","v":{"$error":"#REF!"}},{"$f":"AND(#REF!,\"YnsorDWv664=\")","v":{"$error":"#REF!"}},{"$f":"AND(#REF!,\"YnsorDWv668=\")","v":{"$error":"#REF!"}},{"$f":"AND(#REF!,\"YnsorDWv67A=\")","v":{"$error":"#REF!"}},{"$f":"AND(#REF!,\"YnsorDWv67E=\")","v":{"$error":"#REF!"}},{"$f":"AND(#REF!,\"YnsorDWv67I=\")","v":{"$error":"#REF!"}},{"$f":"AND(#REF!,\"YnsorDWv67M=\")","v":{"$error":"#REF!"}},{"$f":"AND(#REF!,\"YnsorDWv67Q=\")","v":{"$error":"#REF!"}},{"$f":"AND(#REF!,\"YnsorDWv67U=\")","v":{"$error":"#REF!"}},{"$f":"AND(#REF!,\"YnsorDWv67Y=\")","v":{"$error":"#REF!"}},{"$f":"AND(#REF!,\"YnsorDWv67c=\")","v":{"$error":"#REF!"}},{"$f":"AND(#REF!,\"YnsorDWv67g=\")","v":{"$error":"#REF!"}},{"$f":"AND(#REF!,\"YnsorDWv67k=\")","v":{"$error":"#REF!"}},{"$f":"AND(#REF!,\"YnsorDWv67o=\")","v":{"$error":"#REF!"}},{"$f":"AND(#REF!,\"YnsorDWv67s=\")","v":{"$error":"#REF!"}},{"$f":"AND(#REF!,\"YnsorDWv67w=\")","v":{"$error":"#REF!"}},{"$f":"AND(#REF!,\"YnsorDWv670=\")","v":{"$error":"#REF!"}},{"$f":"AND(#REF!,\"YnsorDWv674=\")","v":{"$error":"#REF!"}},{"$f":"AND(#REF!,\"YnsorDWv678=\")","v":{"$error":"#REF!"}},{"$f":"AND(#REF!,\"YnsorDWv68A=\")","v":{"$error":"#REF!"}},{"$f":"AND(#REF!,\"YnsorDWv68E=\")","v":{"$error":"#REF!"}},{"$f":"AND(#REF!,\"YnsorDWv68I=\")","v":{"$error":"#REF!"}},{"$f":"AND(#REF!,\"YnsorDWv68M=\")","v":{"$error":"#REF!"}},{"$f":"AND(#REF!,\"YnsorDWv68Q=\")","v":{"$error":"#REF!"}},{"$f":"AND(#REF!,\"YnsorDWv68U=\")","v":{"$error":"#REF!"}},{"$f":"AND(#REF!,\"YnsorDWv68Y=\")","v":{"$error":"#REF!"}},{"$f":"AND(#REF!,\"YnsorDWv68c=\")","v":{"$error":"#REF!"}},{"$f":"AND(#REF!,\"YnsorDWv68g=\")","v":{"$error":"#REF!"}},{"$f":"AND(#REF!,\"YnsorDWv68k=\")","v":{"$error":"#REF!"}},{"$f":"AND(#REF!,\"YnsorDWv68o=\")","v":{"$error":"#REF!"}},{"$f":"AND(#REF!,\"YnsorDWv68s=\")","v":{"$error":"#REF!"}},{"$f":"AND(#REF!,\"YnsorDWv68w=\")","v":{"$error":"#REF!"}},{"$f":"AND(#REF!,\"YnsorDWv680=\")","v":{"$error":"#REF!"}},{"$f":"AND(#REF!,\"YnsorDWv684=\")","v":{"$error":"#REF!"}},{"$f":"AND(#REF!,\"YnsorDWv688=\")","v":{"$error":"#REF!"}},{"$f":"AND(#REF!,\"YnsorDWv69A=\")","v":{"$error":"#REF!"}},{"$f":"AND(#REF!,\"YnsorDWv69E=\")","v":{"$error":"#REF!"}},{"$f":"AND(#REF!,\"YnsorDWv69I=\")","v":{"$error":"#REF!"}},{"$f":"AND(#REF!,\"YnsorDWv69M=\")","v":{"$error":"#REF!"}},{"$f":"AND(#REF!,\"YnsorDWv69Q=\")","v":{"$error":"#REF!"}},{"$f":"AND(#REF!,\"YnsorDWv69U=\")","v":{"$error":"#REF!"}},{"$f":"AND(#REF!,\"YnsorDWv69Y=\")","v":{"$error":"#REF!"}},{"$f":"AND(#REF!,\"YnsorDWv69c=\")","v":{"$error":"#REF!"}},{"$f":"AND(#REF!,\"YnsorDWv69g=\")","v":{"$error":"#REF!"}},{"$f":"AND(#REF!,\"YnsorDWv69k=\")","v":{"$error":"#REF!"}},{"$f":"AND(#REF!,\"YnsorDWv69o=\")","v":{"$error":"#REF!"}},{"$f":"AND(#REF!,\"YnsorDWv69s=\")","v":{"$error":"#REF!"}},{"$f":"AND(#REF!,\"YnsorDWv69w=\")","v":{"$error":"#REF!"}},{"$f":"AND(#REF!,\"YnsorDWv690=\")","v":{"$error":"#REF!"}},{"$f":"AND(#REF!,\"YnsorDWv694=\")","v":{"$error":"#REF!"}},{"$f":"AND(#REF!,\"YnsorDWv698=\")","v":{"$error":"#REF!"}},{"$f":"AND(#REF!,\"YnsorDWv6+A=\")","v":{"$error":"#REF!"}},{"$f":"AND(#REF!,\"YnsorDWv6+E=\")","v":{"$error":"#REF!"}},{"$f":"AND(#REF!,\"YnsorDWv6+I=\")","v":{"$error":"#REF!"}},{"$f":"AND(#REF!,\"YnsorDWv6+M=\")","v":{"$error":"#REF!"}},{"$f":"AND(#REF!,\"YnsorDWv6+Q=\")","v":{"$error":"#REF!"}},{"$f":"AND(#REF!,\"YnsorDWv6+U=\")","v":{"$error":"#REF!"}},{"$f":"AND(#REF!,\"YnsorDWv6+Y=\")","v":{"$error":"#REF!"}},{"$f":"AND(#REF!,\"YnsorDWv6+c=\")","v":{"$error":"#REF!"}},{"$f":"AND(#REF!,\"YnsorDWv6+g=\")","v":{"$error":"#REF!"}},{"$f":"AND(#REF!,\"YnsorDWv6+k=\")","v":{"$error":"#REF!"}},{"$f":"AND(#REF!,\"YnsorDWv6+o=\")","v":{"$error":"#REF!"}},{"$f":"AND(#REF!,\"YnsorDWv6+s=\")","v":{"$error":"#REF!"}},{"$f":"AND(#REF!,\"YnsorDWv6+w=\")","v":{"$error":"#REF!"}},{"$f":"AND(#REF!,\"YnsorDWv6+0=\")","v":{"$error":"#REF!"}},{"$f":"AND(#REF!,\"YnsorDWv6+4=\")","v":{"$error":"#REF!"}},{"$f":"AND(#REF!,\"YnsorDWv6+8=\")","v":{"$error":"#REF!"}},{"$f":"AND(#REF!,\"YnsorDWv6/A=\")","v":{"$error":"#REF!"}},{"$f":"AND(#REF!,\"YnsorDWv6/E=\")","v":{"$error":"#REF!"}},{"$f":"AND(#REF!,\"YnsorDWv6/I=\")","v":{"$error":"#REF!"}},{"$f":"AND(#REF!,\"YnsorDWv6/M=\")","v":{"$error":"#REF!"}},{"$f":"AND(#REF!,\"YnsorDWv6/Q=\")","v":{"$error":"#REF!"}},{"$f":"AND(#REF!,\"YnsorDWv6/U=\")","v":{"$error":"#REF!"}},{"$f":"AND(#REF!,\"YnsorDWv6/Y=\")","v":{"$error":"#REF!"}},{"$f":"AND(#REF!,\"YnsorDWv6/c=\")","v":{"$error":"#REF!"}},{"$f":"AND(#REF!,\"YnsorDWv6/g=\")","v":{"$error":"#REF!"}},{"$f":"AND(#REF!,\"YnsorDWv6/k=\")","v":{"$error":"#REF!"}},{"$f":"AND(#REF!,\"YnsorDWv6/o=\")","v":{"$error":"#REF!"}},{"$f":"AND(#REF!,\"YnsorDWv6/s=\")","v":{"$error":"#REF!"}},{"$f":"AND(#REF!,\"YnsorDWv6/w=\")","v":{"$error":"#REF!"}},{"$f":"AND(#REF!,\"YnsorDWv6/0=\")","v":{"$error":"#REF!"}},{"$f":"AND(#REF!,\"YnsorDWv6/4=\")","v":{"$error":"#REF!"}},{"$f":"AND(#REF!,\"YnsorDWv6/8=\")","v":{"$error":"#REF!"}}]
[{"$f":"AND(#REF!,\"ZcEoYHbHkgA=\")","v":{"$error":"#REF!"}},{"$f":"AND(#REF!,\"ZcEoYHbHkgE=\")","v":{"$error":"#REF!"}},{"$f":"AND(#REF!,\"ZcEoYHbHkgI=\")","v":{"$error":"#REF!"}},{"$f":"AND(#REF!,\"ZcEoYHbHkgM=\")","v":{"$error":"#REF!"}},{"$f":"AND(#REF!,\"ZcEoYHbHkgQ=\")","v":{"$error":"#REF!"}},{"$f":"AND(#REF!,\"ZcEoYHbHkgU=\")","v":{"$error":"#REF!"}},{"$f":"AND(#REF!,\"ZcEoYHbHkgY=\")","v":{"$error":"#REF!"}},{"$f":"AND(#REF!,\"ZcEoYHbHkgc=\")","v":{"$error":"#REF!"}},{"$f":"AND(#REF!,\"ZcEoYHbHkgg=\")","v":{"$error":"#REF!"}},{"$f":"AND(#REF!,\"ZcEoYHbHkgk=\")","v":{"$error":"#REF!"}},{"$f":"AND(#REF!,\"ZcEoYHbHkgo=\")","v":{"$error":"#REF!"}},{"$f":"AND(#REF!,\"ZcEoYHbHkgs=\")","v":{"$error":"#REF!"}},{"$f":"AND(#REF!,\"ZcEoYHbHkgw=\")","v":{"$error":"#REF!"}},{"$f":"AND(#REF!,\"ZcEoYHbHkg0=\")","v":{"$error":"#REF!"}},{"$f":"AND(#REF!,\"ZcEoYHbHkg4=\")","v":{"$error":"#REF!"}},{"$f":"AND(#REF!,\"ZcEoYHbHkg8=\")","v":{"$error":"#REF!"}},{"$f":"AND(#REF!,\"ZcEoYHbHkhA=\")","v":{"$error":"#REF!"}},{"$f":"AND(#REF!,\"ZcEoYHbHkhE=\")","v":{"$error":"#REF!"}},{"$f":"AND(#REF!,\"ZcEoYHbHkhI=\")","v":{"$error":"#REF!"}},{"$f":"AND(#REF!,\"ZcEoYHbHkhM=\")","v":{"$error":"#REF!"}},{"$f":"AND(#REF!,\"ZcEoYHbHkhQ=\")","v":{"$error":"#REF!"}},{"$f":"AND(#REF!,\"ZcEoYHbHkhU=\")","v":{"$error":"#REF!"}},{"$f":"AND(#REF!,\"ZcEoYHbHkhY=\")","v":{"$error":"#REF!"}},{"$f":"AND(#REF!,\"ZcEoYHbHkhc=\")","v":{"$error":"#REF!"}},{"$f":"AND(#REF!,\"ZcEoYHbHkhg=\")","v":{"$error":"#REF!"}},{"$f":"AND(#REF!,\"ZcEoYHbHkhk=\")","v":{"$error":"#REF!"}},{"$f":"AND(#REF!,\"ZcEoYHbHkho=\")","v":{"$error":"#REF!"}},{"$f":"AND(#REF!,\"ZcEoYHbHkhs=\")","v":{"$error":"#REF!"}},{"$f":"AND(#REF!,\"ZcEoYHbHkhw=\")","v":{"$error":"#REF!"}},{"$f":"AND(#REF!,\"ZcEoYHbHkh0=\")","v":{"$error":"#REF!"}},{"$f":"AND(#REF!,\"ZcEoYHbHkh4=\")","v":{"$error":"#REF!"}},{"$f":"AND(#REF!,\"ZcEoYHbHkh8=\")","v":{"$error":"#REF!"}},{"$f":"AND(#REF!,\"ZcEoYHbHkiA=\")","v":{"$error":"#REF!"}},{"$f":"AND(#REF!,\"ZcEoYHbHkiE=\")","v":{"$error":"#REF!"}},{"$f":"AND(#REF!,\"ZcEoYHbHkiI=\")","v":{"$error":"#REF!"}},{"$f":"AND(#REF!,\"ZcEoYHbHkiM=\")","v":{"$error":"#REF!"}},{"$f":"AND(#REF!,\"ZcEoYHbHkiQ=\")","v":{"$error":"#REF!"}},{"$f":"AND(#REF!,\"ZcEoYHbHkiU=\")","v":{"$error":"#REF!"}},{"$f":"AND(#REF!,\"ZcEoYHbHkiY=\")","v":{"$error":"#REF!"}},{"$f":"AND(#REF!,\"ZcEoYHbHkic=\")","v":{"$error":"#REF!"}},{"$f":"AND(#REF!,\"ZcEoYHbHkig=\")","v":{"$error":"#REF!"}},{"$f":"AND(#REF!,\"ZcEoYHbHkik=\")","v":{"$error":"#REF!"}},{"$f":"IF(#REF!,\"ZcEoYHbHkio=\",0)","v":{"$error":"#REF!"}},{"$f":"IF(#REF!,\"ZcEoYHbHkis=\",0)","v":{"$error":"#REF!"}},{"$f":"IF(#REF!,\"ZcEoYHbHkiw=\",0)","v":{"$error":"#REF!"}},{"$f":"IF(#REF!,\"ZcEoYHbHki0=\",0)","v":{"$error":"#REF!"}},{"$f":"IF(#REF!,\"ZcEoYHbHki4=\",0)","v":{"$error":"#REF!"}},{"$f":"IF(#REF!,\"ZcEoYHbHki8=\",0)","v":{"$error":"#REF!"}},{"$f":"IF(#REF!,\"ZcEoYHbHkjA=\",0)","v":{"$error":"#REF!"}},{"$f":"IF(#REF!,\"ZcEoYHbHkjE=\",0)","v":{"$error":"#REF!"}},{"$f":"IF(#REF!,\"ZcEoYHbHkjI=\",0)","v":{"$error":"#REF!"}},{"$f":"IF(#REF!,\"ZcEoYHbHkjM=\",0)","v":{"$error":"#REF!"}},{"$f":"IF(#REF!,\"ZcEoYHbHkjQ=\",0)","v":{"$error":"#REF!"}},{"$f":"IF(#REF!,\"ZcEoYHbHkjU=\",0)","v":{"$error":"#REF!"}},{"$f":"IF(#REF!,\"ZcEoYHbHkjY=\",0)","v":{"$error":"#REF!"}},{"$f":"IF(#REF!,\"ZcEoYHbHkjc=\",0)","v":{"$error":"#REF!"}},{"$f":"IF(#REF!,\"ZcEoYHbHkjg=\",0)","v":{"$error":"#REF!"}},{"$f":"IF(#REF!,\"ZcEoYHbHkjk=\",0)","v":{"$error":"#REF!"}},{"$f":"IF(#REF!,\"ZcEoYHbHkjo=\",0)","v":{"$error":"#REF!"}},{"$f":"IF(#REF!,\"ZcEoYHbHkjs=\",0)","v":{"$error":"#REF!"}},{"$f":"IF(#REF!,\"ZcEoYHbHkjw=\",0)","v":{"$error":"#REF!"}},{"$f":"IF(#REF!,\"ZcEoYHbHkj0=\",0)","v":{"$error":"#REF!"}},{"$f":"IF(#REF!,\"ZcEoYHbHkj4=\",0)","v":{"$error":"#REF!"}},{"$f":"IF(#REF!,\"ZcEoYHbHkj8=\",0)","v":{"$error":"#REF!"}},{"$f":"IF(#REF!,\"ZcEoYHbHkkA=\",0)","v":{"$error":"#REF!"}},{"$f":"IF(#REF!,\"ZcEoYHbHkkE=\",0)","v":{"$error":"#REF!"}},{"$f":"IF(#REF!,\"ZcEoYHbHkkI=\",0)","v":{"$error":"#REF!"}},{"$f":"IF(#REF!,\"ZcEoYHbHkkM=\",0)","v":{"$error":"#REF!"}},{"$f":"IF(#REF!,\"ZcEoYHbHkkQ=\",0)","v":{"$error":"#REF!"}},{"$f":"IF(#REF!,\"ZcEoYHbHkkU=\",0)","v":{"$error":"#REF!"}},{"$f":"IF(#REF!,\"ZcEoYHbHkkY=\",0)","v":{"$error":"#REF!"}},{"$f":"IF(#REF!,\"ZcEoYHbHkkc=\",0)","v":{"$error":"#REF!"}},{"$f":"IF(#REF!,\"ZcEoYHbHkkg=\",0)","v":{"$error":"#REF!"}},{"$f":"IF(#REF!,\"ZcEoYHbHkkk=\",0)","v":{"$error":"#REF!"}},{"$f":"IF(#REF!,\"ZcEoYHbHkko=\",0)","v":{"$error":"#REF!"}},{"$f":"IF(#REF!,\"ZcEoYHbHkks=\",0)","v":{"$error":"#REF!"}},{"$f":"IF(#REF!,\"ZcEoYHbHkkw=\",0)","v":{"$error":"#REF!"}},{"$f":"IF(#REF!,\"ZcEoYHbHkk0=\",0)","v":{"$error":"#REF!"}},{"$f":"IF(#REF!,\"ZcEoYHbHkk4=\",0)","v":{"$error":"#REF!"}},{"$f":"IF(#REF!,\"ZcEoYHbHkk8=\",0)","v":{"$error":"#REF!"}},{"$f":"IF(#REF!,\"ZcEoYHbHklA=\",0)","v":{"$error":"#REF!"}},{"$f":"IF(#REF!,\"ZcEoYHbHklE=\",0)","v":{"$error":"#REF!"}},{"$f":"IF(#REF!,\"ZcEoYHbHklI=\",0)","v":{"$error":"#REF!"}},{"$f":"IF(#REF!,\"ZcEoYHbHklM=\",0)","v":{"$error":"#REF!"}},{"$f":"IF(#REF!,\"ZcEoYHbHklQ=\",0)","v":{"$error":"#REF!"}},{"$f":"IF(#REF!,\"ZcEoYHbHklU=\",0)","v":{"$error":"#REF!"}},{"$f":"IF(#REF!,\"ZcEoYHbHklY=\",0)","v":{"$error":"#REF!"}},{"$f":"IF(#REF!,\"ZcEoYHbHklc=\",0)","v":{"$error":"#REF!"}},{"$f":"IF(#REF!,\"ZcEoYHbHklg=\",0)","v":{"$error":"#REF!"}},{"$f":"IF(#REF!,\"ZcEoYHbHklk=\",0)","v":{"$error":"#REF!"}},{"$f":"IF(#REF!,\"ZcEoYHbHklo=\",0)","v":{"$error":"#REF!"}},{"$f":"IF(#REF!,\"ZcEoYHbHkls=\",0)","v":{"$error":"#REF!"}},{"$f":"IF(#REF!,\"ZcEoYHbHklw=\",0)","v":{"$error":"#REF!"}},{"$f":"IF(#REF!,\"ZcEoYHbHkl0=\",0)","v":{"$error":"#REF!"}},{"$f":"IF(#REF!,\"ZcEoYHbHkl4=\",0)","v":{"$error":"#REF!"}},{"$f":"IF(#REF!,\"ZcEoYHbHkl8=\",0)","v":{"$error":"#REF!"}},{"$f":"IF(#REF!,\"ZcEoYHbHkmA=\",0)","v":{"$error":"#REF!"}},{"$f":"IF(#REF!,\"ZcEoYHbHkmE=\",0)","v":{"$error":"#REF!"}},{"$f":"IF(#REF!,\"ZcEoYHbHkmI=\",0)","v":{"$error":"#REF!"}},{"$f":"IF(#REF!,\"ZcEoYHbHkmM=\",0)","v":{"$error":"#REF!"}},{"$f":"IF(#REF!,\"ZcEoYHbHkmQ=\",0)","v":{"$error":"#REF!"}},{"$f":"IF(#REF!,\"ZcEoYHbHkmU=\",0)","v":{"$error":"#REF!"}},{"$f":"IF(#REF!,\"ZcEoYHbHkmY=\",0)","v":{"$error":"#REF!"}},{"$f":"IF(#REF!,\"ZcEoYHbHkmc=\",0)","v":{"$error":"#REF!"}},{"$f":"IF(#REF!,\"ZcEoYHbHkmg=\",0)","v":{"$error":"#REF!"}},{"$f":"IF(#REF!,\"ZcEoYHbHkmk=\",0)","v":{"$error":"#REF!"}},{"$f":"IF(#REF!,\"ZcEoYHbHkmo=\",0)","v":{"$error":"#REF!"}},{"$f":"IF(#REF!,\"ZcEoYHbHkms=\",0)","v":{"$error":"#REF!"}},{"$f":"IF(#REF!,\"ZcEoYHbHkmw=\",0)","v":{"$error":"#REF!"}},{"$f":"IF(#REF!,\"ZcEoYHbHkm0=\",0)","v":{"$error":"#REF!"}},{"$f":"IF(#REF!,\"ZcEoYHbHkm4=\",0)","v":{"$error":"#REF!"}},{"$f":"IF(#REF!,\"ZcEoYHbHkm8=\",0)","v":{"$error":"#REF!"}},{"$f":"IF(#REF!,\"ZcEoYHbHknA=\",0)","v":{"$error":"#REF!"}},{"$f":"IF(#REF!,\"ZcEoYHbHknE=\",0)","v":{"$error":"#REF!"}},{"$f":"IF(#REF!,\"ZcEoYHbHknI=\",0)","v":{"$error":"#REF!"}},{"$f":"IF(#REF!,\"ZcEoYHbHknM=\",0)","v":{"$error":"#REF!"}},{"$f":"IF(#REF!,\"ZcEoYHbHknQ=\",0)","v":{"$error":"#REF!"}},{"$f":"IF(#REF!,\"ZcEoYHbHknU=\",0)","v":{"$error":"#REF!"}},{"$f":"IF(#REF!,\"ZcEoYHbHknY=\",0)","v":{"$error":"#REF!"}},{"$f":"IF(#REF!,\"ZcEoYHbHknc=\",0)","v":{"$error":"#REF!"}},{"$f":"IF(#REF!,\"ZcEoYHbHkng=\",0)","v":{"$error":"#REF!"}},{"$f":"IF(#REF!,\"ZcEoYHbHknk=\",0)","v":{"$error":"#REF!"}},{"$f":"IF(#REF!,\"ZcEoYHbHkno=\",0)","v":{"$error":"#REF!"}},{"$f":"IF(#REF!,\"ZcEoYHbHkns=\",0)","v":{"$error":"#REF!"}},{"$f":"IF(#REF!,\"ZcEoYHbHknw=\",0)","v":{"$error":"#REF!"}},{"$f":"IF(#REF!,\"ZcEoYHbHkn0=\",0)","v":{"$error":"#REF!"}},{"$f":"IF(#REF!,\"ZcEoYHbHkn4=\",0)","v":{"$error":"#REF!"}},{"$f":"IF(#REF!,\"ZcEoYHbHkn8=\",0)","v":{"$error":"#REF!"}},{"$f":"IF(#REF!,\"ZcEoYHbHkoA=\",0)","v":{"$error":"#REF!"}},{"$f":"IF(#REF!,\"ZcEoYHbHkoE=\",0)","v":{"$error":"#REF!"}},{"$f":"IF(#REF!,\"ZcEoYHbHkoI=\",0)","v":{"$error":"#REF!"}},{"$f":"IF(#REF!,\"ZcEoYHbHkoM=\",0)","v":{"$error":"#REF!"}},{"$f":"IF(#REF!,\"ZcEoYHbHkoQ=\",0)","v":{"$error":"#REF!"}},{"$f":"IF(#REF!,\"ZcEoYHbHkoU=\",0)","v":{"$error":"#REF!"}},{"$f":"IF(#REF!,\"ZcEoYHbHkoY=\",0)","v":{"$error":"#REF!"}},{"$f":"IF(#REF!,\"ZcEoYHbHkoc=\",0)","v":{"$error":"#REF!"}},{"$f":"IF(#REF!,\"ZcEoYHbHkog=\",0)","v":{"$error":"#REF!"}},{"$f":"IF(#REF!,\"ZcEoYHbHkok=\",0)","v":{"$error":"#REF!"}},{"$f":"IF(#REF!,\"ZcEoYHbHkoo=\",0)","v":{"$error":"#REF!"}},{"$f":"IF(#REF!,\"ZcEoYHbHkos=\",0)","v":{"$error":"#REF!"}},{"$f":"IF(#REF!,\"ZcEoYHbHkow=\",0)","v":{"$error":"#REF!"}},{"$f":"IF(#REF!,\"ZcEoYHbHko0=\",0)","v":{"$error":"#REF!"}},{"$f":"IF(#REF!,\"ZcEoYHbHko4=\",0)","v":{"$error":"#REF!"}},{"$f":"IF(#REF!,\"ZcEoYHbHko8=\",0)","v":{"$error":"#REF!"}},{"$f":"IF(#REF!,\"ZcEoYHbHkpA=\",0)","v":{"$error":"#REF!"}},{"$f":"IF(#REF!,\"ZcEoYHbHkpE=\",0)","v":{"$error":"#REF!"}},{"$f":"IF(#REF!,\"ZcEoYHbHkpI=\",0)","v":{"$error":"#REF!"}},{"$f":"IF(#REF!,\"ZcEoYHbHkpM=\",0)","v":{"$error":"#REF!"}},{"$f":"IF(#REF!,\"ZcEoYHbHkpQ=\",0)","v":{"$error":"#REF!"}},{"$f":"IF(#REF!,\"ZcEoYHbHkpU=\",0)","v":{"$error":"#REF!"}},{"$f":"IF(#REF!,\"ZcEoYHbHkpY=\",0)","v":{"$error":"#REF!"}},{"$f":"IF(#REF!,\"ZcEoYHbHkpc=\",0)","v":{"$error":"#REF!"}},{"$f":"IF(#REF!,\"ZcEoYHbHkpg=\",0)","v":{"$error":"#REF!"}},{"$f":"IF(#REF!,\"ZcEoYHbHkpk=\",0)","v":{"$error":"#REF!"}},{"$f":"IF(#REF!,\"ZcEoYHbHkpo=\",0)","v":{"$error":"#REF!"}},{"$f":"IF(#REF!,\"ZcEoYHbHkps=\",0)","v":{"$error":"#REF!"}},{"$f":"IF(#REF!,\"ZcEoYHbHkpw=\",0)","v":{"$error":"#REF!"}},{"$f":"IF(#REF!,\"ZcEoYHbHkp0=\",0)","v":{"$error":"#REF!"}},{"$f":"IF(#REF!,\"ZcEoYHbHkp4=\",0)","v":{"$error":"#REF!"}},{"$f":"IF(#REF!,\"ZcEoYHbHkp8=\",0)","v":{"$error":"#REF!"}},{"$f":"IF(#REF!,\"ZcEoYHbHkqA=\",0)","v":{"$error":"#REF!"}},{"$f":"IF(#REF!,\"ZcEoYHbHkqE=\",0)","v":{"$error":"#REF!"}},{"$f":"IF(#REF!,\"ZcEoYHbHkqI=\",0)","v":{"$error":"#REF!"}},{"$f":"IF(#REF!,\"ZcEoYHbHkqM=\",0)","v":{"$error":"#REF!"}},{"$f":"IF(#REF!,\"ZcEoYHbHkqQ=\",0)","v":{"$error":"#REF!"}},{"$f":"IF(#REF!,\"ZcEoYHbHkqU=\",0)","v":{"$error":"#REF!"}},{"$f":"IF(#REF!,\"ZcEoYHbHkqY=\",0)","v":{"$error":"#REF!"}},{"$f":"IF(#REF!,\"ZcEoYHbHkqc=\",0)","v":{"$error":"#REF!"}},{"$f":"IF(#REF!,\"ZcEoYHbHkqg=\",0)","v":{"$error":"#REF!"}},{"$f":"IF(#REF!,\"ZcEoYHbHkqk=\",0)","v":{"$error":"#REF!"}},{"$f":"IF(#REF!,\"ZcEoYHbHkqo=\",0)","v":{"$error":"#REF!"}},{"$f":"IF(#REF!,\"ZcEoYHbHkqs=\",0)","v":{"$error":"#REF!"}},{"$f":"IF(#REF!,\"ZcEoYHbHkqw=\",0)","v":{"$error":"#REF!"}},{"$f":"IF(#REF!,\"ZcEoYHbHkq0=\",0)","v":{"$error":"#REF!"}},{"$f":"IF(#REF!,\"ZcEoYHbHkq4=\",0)","v":{"$error":"#REF!"}},{"$f":"IF(#REF!,\"ZcEoYHbHkq8=\",0)","v":{"$error":"#REF!"}},{"$f":"IF(#REF!,\"ZcEoYHbHkrA=\",0)","v":{"$error":"#REF!"}},{"$f":"IF(#REF!,\"ZcEoYHbHkrE=\",0)","v":{"$error":"#REF!"}},{"$f":"IF(#REF!,\"ZcEoYHbHkrI=\",0)","v":{"$error":"#REF!"}},{"$f":"IF(#REF!,\"ZcEoYHbHkrM=\",0)","v":{"$error":"#REF!"}},{"$f":"IF(#REF!,\"ZcEoYHbHkrQ=\",0)","v":{"$error":"#REF!"}},{"$f":"IF(#REF!,\"ZcEoYHbHkrU=\",0)","v":{"$error":"#REF!"}},{"$f":"IF(#REF!,\"ZcEoYHbHkrY=\",0)","v":{"$error":"#REF!"}},{"$f":"IF(#REF!,\"ZcEoYHbHkrc=\",0)","v":{"$error":"#REF!"}},{"$f":"IF(#REF!,\"ZcEoYHbHkrg=\",0)","v":{"$error":"#REF!"}},{"$f":"IF(#REF!,\"ZcEoYHbHkrk=\",0)","v":{"$error":"#REF!"}},{"$f":"IF(#REF!,\"ZcEoYHbHkro=\",0)","v":{"$error":"#REF!"}},{"$f":"IF(#REF!,\"ZcEoYHbHkrs=\",0)","v":{"$error":"#REF!"}},{"$f":"IF(#REF!,\"ZcEoYHbHkrw=\",0)","v":{"$error":"#REF!"}},{"$f":"IF(#REF!,\"ZcEoYHbHkr0=\",0)","v":{"$error":"#REF!"}},{"$f":"IF(#REF!,\"ZcEoYHbHkr4=\",0)","v":{"$error":"#REF!"}},{"$f":"IF(#REF!,\"ZcEoYHbHkr8=\",0)","v":{"$error":"#REF!"}},{"$f":"IF(#REF!,\"ZcEoYHbHksA=\",0)","v":{"$error":"#REF!"}},{"$f":"IF(#REF!,\"ZcEoYHbHksE=\",0)","v":{"$error":"#REF!"}},{"$f":"IF(#REF!,\"ZcEoYHbHksI=\",0)","v":{"$error":"#REF!"}},{"$f":"IF(#REF!,\"ZcEoYHbHksM=\",0)","v":{"$error":"#REF!"}},{"$f":"IF(#REF!,\"ZcEoYHbHksQ=\",0)","v":{"$error":"#REF!"}},{"$f":"IF(#REF!,\"ZcEoYHbHksU=\",0)","v":{"$error":"#REF!"}},{"$f":"IF(#REF!,\"ZcEoYHbHksY=\",0)","v":{"$error":"#REF!"}},{"$f":"IF(#REF!,\"ZcEoYHbHksc=\",0)","v":{"$error":"#REF!"}},{"$f":"IF(#REF!,\"ZcEoYHbHksg=\",0)","v":{"$error":"#REF!"}},{"$f":"IF(#REF!,\"ZcEoYHbHksk=\",0)","v":{"$error":"#REF!"}},{"$f":"IF(#REF!,\"ZcEoYHbHkso=\",0)","v":{"$error":"#REF!"}},{"$f":"IF(#REF!,\"ZcEoYHbHkss=\",0)","v":{"$error":"#REF!"}},{"$f":"IF(#REF!,\"ZcEoYHbHksw=\",0)","v":{"$error":"#REF!"}},{"$f":"IF(#REF!,\"ZcEoYHbHks0=\",0)","v":{"$error":"#REF!"}},{"$f":"IF(#REF!,\"ZcEoYHbHks4=\",0)","v":{"$error":"#REF!"}},{"$f":"IF(#REF!,\"ZcEoYHbHks8=\",0)","v":{"$error":"#REF!"}},{"$f":"IF(#REF!,\"ZcEoYHbHktA=\",0)","v":{"$error":"#REF!"}},{"$f":"IF(#REF!,\"ZcEoYHbHktE=\",0)","v":{"$error":"#REF!"}},{"$f":"IF(#REF!,\"ZcEoYHbHktI=\",0)","v":{"$error":"#REF!"}},{"$f":"IF(#REF!,\"ZcEoYHbHktM=\",0)","v":{"$error":"#REF!"}},{"$f":"IF(#REF!,\"ZcEoYHbHktQ=\",0)","v":{"$error":"#REF!"}},{"$f":"IF(#REF!,\"ZcEoYHbHktU=\",0)","v":{"$error":"#REF!"}},{"$f":"IF(#REF!,\"ZcEoYHbHktY=\",0)","v":{"$error":"#REF!"}},{"$f":"IF(#REF!,\"ZcEoYHbHktc=\",0)","v":{"$error":"#REF!"}},{"$f":"IF(#REF!,\"ZcEoYHbHktg=\",0)","v":{"$error":"#REF!"}},{"$f":"IF(#REF!,\"ZcEoYHbHktk=\",0)","v":{"$error":"#REF!"}},{"$f":"IF(#REF!,\"ZcEoYHbHkto=\",0)","v":{"$error":"#REF!"}},{"$f":"IF(#REF!,\"ZcEoYHbHkts=\",0)","v":{"$error":"#REF!"}},{"$f":"IF(#REF!,\"ZcEoYHbHktw=\",0)","v":{"$error":"#REF!"}},{"$f":"IF(#REF!,\"ZcEoYHbHkt0=\",0)","v":{"$error":"#REF!"}},{"$f":"IF(#REF!,\"ZcEoYHbHkt4=\",0)","v":{"$error":"#REF!"}},{"$f":"IF(#REF!,\"ZcEoYHbHkt8=\",0)","v":{"$error":"#REF!"}},{"$f":"IF(#REF!,\"ZcEoYHbHkuA=\",0)","v":{"$error":"#REF!"}},{"$f":"IF(#REF!,\"ZcEoYHbHkuE=\",0)","v":{"$error":"#REF!"}},{"$f":"IF(#REF!,\"ZcEoYHbHkuI=\",0)","v":{"$error":"#REF!"}},{"$f":"IF(#REF!,\"ZcEoYHbHkuM=\",0)","v":{"$error":"#REF!"}},{"$f":"IF(#REF!,\"ZcEoYHbHkuQ=\",0)","v":{"$error":"#REF!"}},{"$f":"IF(#REF!,\"ZcEoYHbHkuU=\",0)","v":{"$error":"#REF!"}},{"$f":"IF(#REF!,\"ZcEoYHbHkuY=\",0)","v":{"$error":"#REF!"}},{"$f":"IF(#REF!,\"ZcEoYHbHkuc=\",0)","v":{"$error":"#REF!"}},{"$f":"IF(#REF!,\"ZcEoYHbHkug=\",0)","v":{"$error":"#REF!"}},{"$f":"IF(#REF!,\"ZcEoYHbHkuk=\",0)","v":{"$error":"#REF!"}},{"$f":"IF(#REF!,\"ZcEoYHbHkuo=\",0)","v":{"$error":"#REF!"}},{"$f":"IF(#REF!,\"ZcEoYHbHkus=\",0)","v":{"$error":"#REF!"}},{"$f":"IF(#REF!,\"ZcEoYHbHkuw=\",0)","v":{"$error":"#REF!"}},{"$f":"IF(#REF!,\"ZcEoYHbHku0=\",0)","v":{"$error":"#REF!"}},{"$f":"IF(#REF!,\"ZcEoYHbHku4=\",0)","v":{"$error":"#REF!"}},{"$f":"IF(#REF!,\"ZcEoYHbHku8=\",0)","v":{"$error":"#REF!"}},{"$f":"IF(PRINT_SUMMARY!1:1,\"ZcEoYHbHkvA=\",0)","v":0},{"$f":"AND(PRINT_SUMMARY!B2,\"ZcEoYHbHkvE=\")","v":{"$error":"#VALUE!"}},{"$f":"AND(PRINT_SUMMARY!C1,\"ZcEoYHbHkvI=\")","v":{"$error":"#VALUE!"}},{"$f":"AND(PRINT_SUMMARY!D1,\"ZcEoYHbHkvM=\")","v":{"$error":"#VALUE!"}},{"$f":"AND(PRINT_SUMMARY!E1,\"ZcEoYHbHkvQ=\")","v":{"$error":"#VALUE!"}},{"$f":"AND(PRINT_SUMMARY!#REF!,\"ZcEoYHbHkvU=\")","v":{"$error":"#REF!"}},{"$f":"AND(PRINT_SUMMARY!B1,\"ZcEoYHbHkvY=\")","v":{"$error":"#VALUE!"}},{"$f":"AND(PRINT_SUMMARY!#REF!,\"ZcEoYHbHkvc=\")","v":{"$error":"#REF!"}},{"$f":"AND(PRINT_SUMMARY!O1,\"ZcEoYHbHkvg=\")","v":{"$error":"#VALUE!"}},{"$f":"AND(PRINT_SUMMARY!P1,\"ZcEoYHbHkvk=\")","v":{"$error":"#VALUE!"}},{"$f":"AND(PRINT_SUMMARY!Q1,\"ZcEoYHbHkvo=\")","v":{"$error":"#VALUE!"}},{"$f":"IF(PRINT_SUMMARY!2:2,\"ZcEoYHbHkvs=\",0)","v":0},{"$f":"AND(PRINT_SUMMARY!#REF!,\"ZcEoYHbHkvw=\")","v":{"$error":"#REF!"}},{"$f":"AND(PRINT_SUMMARY!C2,\"ZcEoYHbHkv0=\")","v":{"$error":"#VALUE!"}},{"$f":"AND(PRINT_SUMMARY!D2,\"ZcEoYHbHkv4=\")","v":{"$error":"#VALUE!"}},{"$f":"AND(PRINT_SUMMARY!E2,\"ZcEoYHbHkv8=\")","v":{"$error":"#VALUE!"}}]
[{"$f":"AND(PRINT_SUMMARY!F2,\"bm18/FBWNgA=\")","v":{"$error":"#VALUE!"}},{"$f":"AND(PRINT_SUMMARY!G2,\"bm18/FBWNgE=\")","v":{"$error":"#VALUE!"}},{"$f":"AND(PRINT_SUMMARY!N2,\"bm18/FBWNgI=\")","v":{"$error":"#VALUE!"}},{"$f":"AND(PRINT_SUMMARY!O2,\"bm18/FBWNgM=\")","v":{"$error":"#VALUE!"}},{"$f":"AND(PRINT_SUMMARY!P2,\"bm18/FBWNgQ=\")","v":{"$error":"#VALUE!"}},{"$f":"AND(PRINT_SUMMARY!Q2,\"bm18/FBWNgU=\")","v":{"$error":"#VALUE!"}},{"$f":"IF(PRINT_SUMMARY!3:3,\"bm18/FBWNgY=\",0)","v":0},{"$f":"AND(PRINT_SUMMARY!B3,\"bm18/FBWNgc=\")","v":{"$error":"#VALUE!"}},{"$f":"AND(PRINT_SUMMARY!C3,\"bm18/FBWNgg=\")","v":{"$error":"#VALUE!"}},{"$f":"AND(PRINT_SUMMARY!D3,\"bm18/FBWNgk=\")","v":{"$error":"#VALUE!"}},{"$f":"AND(PRINT_SUMMARY!E3,\"bm18/FBWNgo=\")","v":{"$error":"#VALUE!"}},{"$f":"AND(PRINT_SUMMARY!F3,\"bm18/FBWNgs=\")","v":{"$error":"#VALUE!"}},{"$f":"AND(PRINT_SUMMARY!G3,\"bm18/FBWNgw=\")","v":{"$error":"#VALUE!"}},{"$f":"AND(PRINT_SUMMARY!N3,\"bm18/FBWNg0=\")","v":{"$error":"#VALUE!"}},{"$f":"AND(PRINT_SUMMARY!O3,\"bm18/FBWNg4=\")","v":{"$error":"#VALUE!"}},{"$f":"AND(PRINT_SUMMARY!P3,\"bm18/FBWNg8=\")","v":{"$error":"#VALUE!"}},{"$f":"AND(PRINT_SUMMARY!Q3,\"bm18/FBWNhA=\")","v":{"$error":"#VALUE!"}},{"$f":"IF(PRINT_SUMMARY!4:4,\"bm18/FBWNhE=\",0)","v":0},{"$f":"AND(PRINT_SUMMARY!#REF!,\"bm18/FBWNhI=\")","v":{"$error":"#REF!"}},{"$f":"AND(PRINT_SUMMARY!#REF!,\"bm18/FBWNhM=\")","v":{"$error":"#REF!"}},{"$f":"AND(PRINT_SUMMARY!#REF!,\"bm18/FBWNhQ=\")","v":{"$error":"#REF!"}},{"$f":"AND(PRINT_SUMMARY!#REF!,\"bm18/FBWNhU=\")","v":{"$error":"#REF!"}},{"$f":"AND(PRINT_SUMMARY!#REF!,\"bm18/FBWNhY=\")","v":{"$error":"#REF!"}},{"$f":"AND(PRINT_SUMMARY!#REF!,\"bm18/FBWNhc=\")","v":{"$error":"#REF!"}},{"$f":"AND(PRINT_SUMMARY!N29,\"bm18/FBWNhg=\")","v":{"$error":"#VALUE!"}},{"$f":"AND(PRINT_SUMMARY!O4,\"bm18/FBWNhk=\")","v":{"$error":"#VALUE!"}},{"$f":"AND(PRINT_SUMMARY!P4,\"bm18/FBWNho=\")","v":{"$error":"#VALUE!"}},{"$f":"AND(PRINT_SUMMARY!Q4,\"bm18/FBWNhs=\")","v":{"$error":"#VALUE!"}},{"$f":"IF(PRINT_SUMMARY!7:7,\"bm18/FBWNhw=\",0)","v":0},{"$f":"AND(PRINT_SUMMARY!B4,\"bm18/FBWNh0=\")","v":{"$error":"#VALUE!"}},{"$f":"AND(PRINT_SUMMARY!C4,\"bm18/FBWNh4=\")","v":{"$error":"#VALUE!"}},{"$f":"AND(PRINT_SUMMARY!D4,\"bm18/FBWNh8=\")","v":{"$error":"#VALUE!"}},{"$f":"AND(PRINT_SUMMARY!#REF!,\"bm18/FBWNiA=\")","v":{"$error":"#REF!"}},{"$f":"AND(PRINT_SUMMARY!#REF!,\"bm18/FBWNiE=\")","v":{"$error":"#REF!"}},{"$f":"AND(PRINT_SUMMARY!#REF!,\"bm18/FBWNiI=\")","v":{"$error":"#REF!"}},{"$f":"AND(PRINT_SUMMARY!N30,\"bm18/FBWNiM=\")","v":{"$error":"#VALUE!"}},{"$f":"AND(PRINT_SUMMARY!O7,\"bm18/FBWNiQ=\")","v":{"$error":"#VALUE!"}},{"$f":"AND(PRINT_SUMMARY!P7,\"bm18/FBWNiU=\")","v":{"$error":"#VALUE!"}},{"$f":"AND(PRINT_SUMMARY!Q7,\"bm18/FBWNiY=\")","v":{"$error":"#VALUE!"}},{"$f":"IF(PRINT_SUMMARY!8:8,\"bm18/FBWNic=\",0)","v":0},{"$f":"AND(PRINT_SUMMARY!B5,\"bm18/FBWNig=\")","v":{"$error":"#VALUE!"}},{"$f":"AND(PRINT_SUMMARY!E5,\"bm18/FBWNik=\")","v":{"$error":"#VALUE!"}},{"$f":"AND(PRINT_SUMMARY!F5,\"bm18/FBWNio=\")","v":{"$error":"#VALUE!"}},{"$f":"AND(PRINT_SUMMARY!#REF!,\"bm18/FBWNis=\")","v":{"$error":"#REF!"}},{"$f":"AND(PRINT_SUMMARY!#REF!,\"bm18/FBWNiw=\")","v":{"$error":"#REF!"}},{"$f":"AND(PRINT_SUMMARY!#REF!,\"bm18/FBWNi0=\")","v":{"$error":"#REF!"}},{"$f":"AND(PRINT_SUMMARY!N31,\"bm18/FBWNi4=\")","v":{"$error":"#VALUE!"}},{"$f":"AND(PRINT_SUMMARY!O8,\"bm18/FBWNi8=\")","v":{"$error":"#VALUE!"}},{"$f":"AND(PRINT_SUMMARY!P8,\"bm18/FBWNjA=\")","v":{"$error":"#VALUE!"}},{"$f":"AND(PRINT_SUMMARY!Q8,\"bm18/FBWNjE=\")","v":{"$error":"#VALUE!"}},{"$f":"IF(PRINT_SUMMARY!9:9,\"bm18/FBWNjI=\",0)","v":0},{"$f":"AND(PRINT_SUMMARY!B6,\"bm18/FBWNjM=\")","v":{"$error":"#VALUE!"}},{"$f":"AND(PRINT_SUMMARY!E6,\"bm18/FBWNjQ=\")","v":{"$error":"#VALUE!"}},{"$f":"AND(PRINT_SUMMARY!F6,\"bm18/FBWNjU=\")","v":{"$error":"#VALUE!"}},{"$f":"AND(PRINT_SUMMARY!#REF!,\"bm18/FBWNjY=\")","v":{"$error":"#REF!"}},{"$f":"AND(PRINT_SUMMARY!#REF!,\"bm18/FBWNjc=\")","v":{"$error":"#REF!"}},{"$f":"AND(PRINT_SUMMARY!#REF!,\"bm18/FBWNjg=\")","v":{"$error":"#REF!"}},{"$f":"AND(PRINT_SUMMARY!N32,\"bm18/FBWNjk=\")","v":{"$error":"#VALUE!"}},{"$f":"AND(PRINT_SUMMARY!O9,\"bm18/FBWNjo=\")","v":{"$error":"#VALUE!"}},{"$f":"AND(PRINT_SUMMARY!P9,\"bm18/FBWNjs=\")","v":{"$error":"#VALUE!"}},{"$f":"AND(PRINT_SUMMARY!Q9,\"bm18/FBWNjw=\")","v":{"$error":"#VALUE!"}},{"$f":"IF(PRINT_SUMMARY!10:10,\"bm18/FBWNj0=\",0)","v":0},{"$f":"AND(PRINT_SUMMARY!B7,\"bm18/FBWNj4=\")","v":{"$error":"#VALUE!"}},{"$f":"AND(PRINT_SUMMARY!E7,\"bm18/FBWNj8=\")","v":{"$error":"#VALUE!"}},{"$f":"AND(PRINT_SUMMARY!F7,\"bm18/FBWNkA=\")","v":{"$error":"#VALUE!"}},{"$f":"AND(PRINT_SUMMARY!#REF!,\"bm18/FBWNkE=\")","v":{"$error":"#REF!"}},{"$f":"AND(PRINT_SUMMARY!#REF!,\"bm18/FBWNkI=\")","v":{"$error":"#REF!"}},{"$f":"AND(PRINT_SUMMARY!#REF!,\"bm18/FBWNkM=\")","v":{"$error":"#REF!"}},{"$f":"AND(PRINT_SUMMARY!N33,\"bm18/FBWNkQ=\")","v":{"$error":"#VALUE!"}},{"$f":"AND(PRINT_SUMMARY!O10,\"bm18/FBWNkU=\")","v":{"$error":"#VALUE!"}},{"$f":"AND(PRINT_SUMMARY!P10,\"bm18/FBWNkY=\")","v":{"$error":"#VALUE!"}},{"$f":"AND(PRINT_SUMMARY!Q10,\"bm18/FBWNkc=\")","v":{"$error":"#VALUE!"}},{"$f":"IF(PRINT_SUMMARY!11:11,\"bm18/FBWNkg=\",0)","v":0},{"$f":"AND(PRINT_SUMMARY!B8,\"bm18/FBWNkk=\")","v":{"$error":"#VALUE!"}},{"$f":"AND(PRINT_SUMMARY!E8,\"bm18/FBWNko=\")","v":{"$error":"#VALUE!"}},{"$f":"AND(PRINT_SUMMARY!F8,\"bm18/FBWNks=\")","v":{"$error":"#VALUE!"}},{"$f":"AND(PRINT_SUMMARY!#REF!,\"bm18/FBWNkw=\")","v":{"$error":"#REF!"}},{"$f":"AND(PRINT_SUMMARY!#REF!,\"bm18/FBWNk0=\")","v":{"$error":"#REF!"}},{"$f":"AND(PRINT_SUMMARY!#REF!,\"bm18/FBWNk4=\")","v":{"$error":"#REF!"}},{"$f":"AND(PRINT_SUMMARY!N34,\"bm18/FBWNk8=\")","v":{"$error":"#VALUE!"}},{"$f":"AND(PRINT_SUMMARY!O11,\"bm18/FBWNlA=\")","v":{"$error":"#VALUE!"}},{"$f":"AND(PRINT_SUMMARY!P11,\"bm18/FBWNlE=\")","v":{"$error":"#VALUE!"}},{"$f":"AND(PRINT_SUMMARY!Q11,\"bm18/FBWNlI=\")","v":{"$error":"#VALUE!"}},{"$f":"IF(PRINT_SUMMARY!13:13,\"bm18/FBWNlM=\",0)","v":0},{"$f":"AND(PRINT_SUMMARY!B10,\"bm18/FBWNlQ=\")","v":{"$error":"#VALUE!"}},{"$f":"AND(PRINT_SUMMARY!E10,\"bm18/FBWNlU=\")","v":{"$error":"#VALUE!"}},{"$f":"AND(PRINT_SUMMARY!F10,\"bm18/FBWNlY=\")","v":{"$error":"#VALUE!"}},{"$f":"AND(PRINT_SUMMARY!#REF!,\"bm18/FBWNlc=\")","v":{"$error":"#REF!"}},{"$f":"AND(PRINT_SUMMARY!#REF!,\"bm18/FBWNlg=\")","v":{"$error":"#REF!"}},{"$f":"AND(PRINT_SUMMARY!#REF!,\"bm18/FBWNlk=\")","v":{"$error":"#REF!"}},{"$f":"AND(PRINT_SUMMARY!N35,\"bm18/FBWNlo=\")","v":{"$error":"#VALUE!"}},{"$f":"AND(PRINT_SUMMARY!O13,\"bm18/FBWNls=\")","v":{"$error":"#VALUE!"}},{"$f":"AND(PRINT_SUMMARY!P13,\"bm18/FBWNlw=\")","v":{"$error":"#VALUE!"}},{"$f":"AND(PRINT_SUMMARY!Q13,\"bm18/FBWNl0=\")","v":{"$error":"#VALUE!"}},{"$f":"IF(PRINT_SUMMARY!#REF!,\"bm18/FBWNl4=\",0)","v":{"$error":"#REF!"}},{"$f":"AND(PRINT_SUMMARY!B9,\"bm18/FBWNl8=\")","v":{"$error":"#VALUE!"}},{"$f":"AND(PRINT_SUMMARY!E9,\"bm18/FBWNmA=\")","v":{"$error":"#VALUE!"}},{"$f":"AND(PRINT_SUMMARY!F9,\"bm18/FBWNmE=\")","v":{"$error":"#VALUE!"}},{"$f":"AND(PRINT_SUMMARY!#REF!,\"bm18/FBWNmI=\")","v":{"$error":"#REF!"}},{"$f":"AND(PRINT_SUMMARY!#REF!,\"bm18/FBWNmM=\")","v":{"$error":"#REF!"}},{"$f":"AND(PRINT_SUMMARY!#REF!,\"bm18/FBWNmQ=\")","v":{"$error":"#REF!"}},{"$f":"AND(PRINT_SUMMARY!N36,\"bm18/FBWNmU=\")","v":{"$error":"#VALUE!"}},{"$f":"AND(PRINT_SUMMARY!#REF!,\"bm18/FBWNmY=\")","v":{"$error":"#REF!"}},{"$f":"AND(PRINT_SUMMARY!#REF!,\"bm18/FBWNmc=\")","v":{"$error":"#REF!"}},{"$f":"AND(PRINT_SUMMARY!#REF!,\"bm18/FBWNmg=\")","v":{"$error":"#REF!"}},{"$f":"IF(PRINT_SUMMARY!#REF!,\"bm18/FBWNmk=\",0)","v":{"$error":"#REF!"}},{"$f":"AND(PRINT_SUMMARY!B11,\"bm18/FBWNmo=\")","v":{"$error":"#VALUE!"}},{"$f":"AND(PRINT_SUMMARY!E11,\"bm18/FBWNms=\")","v":{"$error":"#VALUE!"}},{"$f":"AND(PRINT_SUMMARY!F11,\"bm18/FBWNmw=\")","v":{"$error":"#VALUE!"}},{"$f":"AND(PRINT_SUMMARY!#REF!,\"bm18/FBWNm0=\")","v":{"$error":"#REF!"}},{"$f":"AND(PRINT_SUMMARY!#REF!,\"bm18/FBWNm4=\")","v":{"$error":"#REF!"}},{"$f":"AND(PRINT_SUMMARY!#REF!,\"bm18/FBWNm8=\")","v":{"$error":"#REF!"}},{"$f":"AND(PRINT_SUMMARY!N37,\"bm18/FBWNnA=\")","v":{"$error":"#VALUE!"}},{"$f":"AND(PRINT_SUMMARY!#REF!,\"bm18/FBWNnE=\")","v":{"$error":"#REF!"}},{"$f":"AND(PRINT_SUMMARY!#REF!,\"bm18/FBWNnI=\")","v":{"$error":"#REF!"}},{"$f":"AND(PRINT_SUMMARY!#REF!,\"bm18/FBWNnM=\")","v":{"$error":"#REF!"}},{"$f":"IF(PRINT_SUMMARY!#REF!,\"bm18/FBWNnQ=\",0)","v":{"$error":"#REF!"}},{"$f":"AND(PRINT_SUMMARY!#REF!,\"bm18/FBWNnU=\")","v":{"$error":"#REF!"}},{"$f":"AND(PRINT_SUMMARY!#REF!,\"bm18/FBWNnY=\")","v":{"$error":"#REF!"}},{"$f":"AND(PRINT_SUMMARY!#REF!,\"bm18/FBWNnc=\")","v":{"$error":"#REF!"}},{"$f":"AND(PRINT_SUMMARY!#REF!,\"bm18/FBWNng=\")","v":{"$error":"#REF!"}},{"$f":"AND(PRINT_SUMMARY!#REF!,\"bm18/FBWNnk=\")","v":{"$error":"#REF!"}},{"$f":"AND(PRINT_SUMMARY!#REF!,\"bm18/FBWNno=\")","v":{"$error":"#REF!"}},{"$f":"AND(PRINT_SUMMARY!N38,\"bm18/FBWNns=\")","v":{"$error":"#VALUE!"}},{"$f":"AND(PRINT_SUMMARY!#REF!,\"bm18/FBWNnw=\")","v":{"$error":"#REF!"}},{"$f":"AND(PRINT_SUMMARY!#REF!,\"bm18/FBWNn0=\")","v":{"$error":"#REF!"}},{"$f":"AND(PRINT_SUMMARY!#REF!,\"bm18/FBWNn4=\")","v":{"$error":"#REF!"}},{"$f":"IF(PRINT_SUMMARY!#REF!,\"bm18/FBWNn8=\",0)","v":{"$error":"#REF!"}},{"$f":"AND(PRINT_SUMMARY!#REF!,\"bm18/FBWNoA=\")","v":{"$error":"#REF!"}},{"$f":"AND(PRINT_SUMMARY!#REF!,\"bm18/FBWNoE=\")","v":{"$error":"#REF!"}},{"$f":"AND(PRINT_SUMMARY!#REF!,\"bm18/FBWNoI=\")","v":{"$error":"#REF!"}},{"$f":"AND(PRINT_SUMMARY!#REF!,\"bm18/FBWNoM=\")","v":{"$error":"#REF!"}},{"$f":"AND(PRINT_SUMMARY!#REF!,\"bm18/FBWNoQ=\")","v":{"$error":"#REF!"}},{"$f":"AND(PRINT_SUMMARY!#REF!,\"bm18/FBWNoU=\")","v":{"$error":"#REF!"}},{"$f":"AND(PRINT_SUMMARY!N39,\"bm18/FBWNoY=\")","v":{"$error":"#VALUE!"}},{"$f":"AND(PRINT_SUMMARY!#REF!,\"bm18/FBWNoc=\")","v":{"$error":"#REF!"}},{"$f":"AND(PRINT_SUMMARY!#REF!,\"bm18/FBWNog=\")","v":{"$error":"#REF!"}},{"$f":"AND(PRINT_SUMMARY!#REF!,\"bm18/FBWNok=\")","v":{"$error":"#REF!"}},{"$f":"IF(PRINT_SUMMARY!14:14,\"bm18/FBWNoo=\",0)","v":0},{"$f":"AND(PRINT_SUMMARY!#REF!,\"bm18/FBWNos=\")","v":{"$error":"#REF!"}},{"$f":"AND(PRINT_SUMMARY!#REF!,\"bm18/FBWNow=\")","v":{"$error":"#REF!"}},{"$f":"AND(PRINT_SUMMARY!#REF!,\"bm18/FBWNo0=\")","v":{"$error":"#REF!"}},{"$f":"AND(PRINT_SUMMARY!#REF!,\"bm18/FBWNo4=\")","v":{"$error":"#REF!"}},{"$f":"AND(PRINT_SUMMARY!#REF!,\"bm18/FBWNo8=\")","v":{"$error":"#REF!"}},{"$f":"AND(PRINT_SUMMARY!#REF!,\"bm18/FBWNpA=\")","v":{"$error":"#REF!"}},{"$f":"AND(PRINT_SUMMARY!N14,\"bm18/FBWNpE=\")","v":{"$error":"#VALUE!"}},{"$f":"AND(PRINT_SUMMARY!O14,\"bm18/FBWNpI=\")","v":{"$error":"#VALUE!"}},{"$f":"AND(PRINT_SUMMARY!P14,\"bm18/FBWNpM=\")","v":{"$error":"#VALUE!"}},{"$f":"AND(PRINT_SUMMARY!Q14,\"bm18/FBWNpQ=\")","v":{"$error":"#VALUE!"}},{"$f":"IF(PRINT_SUMMARY!15:15,\"bm18/FBWNpU=\",0)","v":0},{"$f":"AND(PRINT_SUMMARY!B14,\"bm18/FBWNpY=\")","v":{"$error":"#VALUE!"}},{"$f":"AND(PRINT_SUMMARY!C14,\"bm18/FBWNpc=\")","v":{"$error":"#VALUE!"}},{"$f":"AND(PRINT_SUMMARY!D14,\"bm18/FBWNpg=\")","v":{"$error":"#VALUE!"}},{"$f":"AND(PRINT_SUMMARY!#REF!,\"bm18/FBWNpk=\")","v":{"$error":"#REF!"}},{"$f":"AND(PRINT_SUMMARY!J26,\"bm18/FBWNpo=\")","v":{"$error":"#VALUE!"}},{"$f":"AND(PRINT_SUMMARY!K26,\"bm18/FBWNps=\")","v":{"$error":"#VALUE!"}},{"$f":"AND(PRINT_SUMMARY!N20,\"bm18/FBWNpw=\")","v":{"$error":"#VALUE!"}},{"$f":"AND(PRINT_SUMMARY!O15,\"bm18/FBWNp0=\")","v":{"$error":"#VALUE!"}},{"$f":"AND(PRINT_SUMMARY!P15,\"bm18/FBWNp4=\")","v":{"$error":"#VALUE!"}},{"$f":"AND(PRINT_SUMMARY!Q15,\"bm18/FBWNp8=\")","v":{"$error":"#VALUE!"}},{"$f":"IF(PRINT_SUMMARY!16:16,\"bm18/FBWNqA=\",0)","v":0},{"$f":"AND(PRINT_SUMMARY!B15,\"bm18/FBWNqE=\")","v":{"$error":"#VALUE!"}},{"$f":"AND(PRINT_SUMMARY!E15,\"bm18/FBWNqI=\")","v":{"$error":"#VALUE!"}},{"$f":"AND(PRINT_SUMMARY!F15,\"bm18/FBWNqM=\")","v":{"$error":"#VALUE!"}},{"$f":"AND(PRINT_SUMMARY!#REF!,\"bm18/FBWNqQ=\")","v":{"$error":"#REF!"}},{"$f":"AND(PRINT_SUMMARY!I27,\"bm18/FBWNqU=\")","v":{"$error":"#VALUE!"}},{"$f":"AND(PRINT_SUMMARY!J27,\"bm18/FBWNqY=\")","v":{"$error":"#VALUE!"}},{"$f":"AND(PRINT_SUMMARY!M27,\"bm18/FBWNqc=\")","v":{"$error":"#VALUE!"}},{"$f":"AND(PRINT_SUMMARY!O16,\"bm18/FBWNqg=\")","v":{"$error":"#VALUE!"}},{"$f":"AND(PRINT_SUMMARY!P16,\"bm18/FBWNqk=\")","v":{"$error":"#VALUE!"}},{"$f":"AND(PRINT_SUMMARY!Q16,\"bm18/FBWNqo=\")","v":{"$error":"#VALUE!"}},{"$f":"IF(PRINT_SUMMARY!17:17,\"bm18/FBWNqs=\",0)","v":0},{"$f":"AND(PRINT_SUMMARY!B16,\"bm18/FBWNqw=\")","v":{"$error":"#VALUE!"}},{"$f":"AND(PRINT_SUMMARY!E16,\"bm18/FBWNq0=\")","v":{"$error":"#VALUE!"}},{"$f":"AND(PRINT_SUMMARY!F16,\"bm18/FBWNq4=\")","v":{"$error":"#VALUE!"}},{"$f":"AND(PRINT_SUMMARY!#REF!,\"bm18/FBWNq8=\")","v":{"$error":"#REF!"}},{"$f":"AND(PRINT_SUMMARY!I28,\"bm18/FBWNrA=\")","v":{"$error":"#VALUE!"}},{"$f":"AND(PRINT_SUMMARY!L28,\"bm18/FBWNrE=\")","v":{"$error":"#VALUE!"}},{"$f":"AND(PRINT_SUMMARY!M28,\"bm18/FBWNrI=\")","v":{"$error":"#VALUE!"}},{"$f":"AND(PRINT_SUMMARY!O17,\"bm18/FBWNrM=\")","v":{"$error":"#VALUE!"}},{"$f":"AND(PRINT_SUMMARY!P17,\"bm18/FBWNrQ=\")","v":{"$error":"#VALUE!"}},{"$f":"AND(PRINT_SUMMARY!Q17,\"bm18/FBWNrU=\")","v":{"$error":"#VALUE!"}},{"$f":"IF(PRINT_SUMMARY!18:18,\"bm18/FBWNrY=\",0)","v":0},{"$f":"AND(PRINT_SUMMARY!B17,\"bm18/FBWNrc=\")","v":{"$error":"#VALUE!"}},{"$f":"AND(PRINT_SUMMARY!E17,\"bm18/FBWNrg=\")","v":{"$error":"#VALUE!"}},{"$f":"AND(PRINT_SUMMARY!F17,\"bm18/FBWNrk=\")","v":{"$error":"#VALUE!"}},{"$f":"AND(PRINT_SUMMARY!#REF!,\"bm18/FBWNro=\")","v":{"$error":"#REF!"}},{"$f":"AND(PRINT_SUMMARY!I29,\"bm18/FBWNrs=\")","v":{"$error":"#VALUE!"}},{"$f":"AND(PRINT_SUMMARY!L29,\"bm18/FBWNrw=\")","v":{"$error":"#VALUE!"}},{"$f":"AND(PRINT_SUMMARY!M29,\"bm18/FBWNr0=\")","v":{"$error":"#VALUE!"}},{"$f":"AND(PRINT_SUMMARY!O18,\"bm18/FBWNr4=\")","v":{"$error":"#VALUE!"}},{"$f":"AND(PRINT_SUMMARY!P18,\"bm18/FBWNr8=\")","v":{"$error":"#VALUE!"}},{"$f":"AND(PRINT_SUMMARY!Q18,\"bm18/FBWNsA=\")","v":{"$error":"#VALUE!"}},{"$f":"IF(PRINT_SUMMARY!19:19,\"bm18/FBWNsE=\",0)","v":0},{"$f":"AND(PRINT_SUMMARY!B18,\"bm18/FBWNsI=\")","v":{"$error":"#VALUE!"}},{"$f":"AND(PRINT_SUMMARY!E18,\"bm18/FBWNsM=\")","v":{"$error":"#VALUE!"}},{"$f":"AND(PRINT_SUMMARY!F18,\"bm18/FBWNsQ=\")","v":{"$error":"#VALUE!"}},{"$f":"AND(PRINT_SUMMARY!#REF!,\"bm18/FBWNsU=\")","v":{"$error":"#REF!"}},{"$f":"AND(PRINT_SUMMARY!I30,\"bm18/FBWNsY=\")","v":{"$error":"#VALUE!"}},{"$f":"AND(PRINT_SUMMARY!L30,\"bm18/FBWNsc=\")","v":{"$error":"#VALUE!"}},{"$f":"AND(PRINT_SUMMARY!M30,\"bm18/FBWNsg=\")","v":{"$error":"#VALUE!"}},{"$f":"AND(PRINT_SUMMARY!O19,\"bm18/FBWNsk=\")","v":{"$error":"#VALUE!"}},{"$f":"AND(PRINT_SUMMARY!P19,\"bm18/FBWNso=\")","v":{"$error":"#VALUE!"}},{"$f":"AND(PRINT_SUMMARY!Q19,\"bm18/FBWNss=\")","v":{"$error":"#VALUE!"}},{"$f":"IF(PRINT_SUMMARY!20:20,\"bm18/FBWNsw=\",0)","v":0},{"$f":"AND(PRINT_SUMMARY!B19,\"bm18/FBWNs0=\")","v":{"$error":"#VALUE!"}},{"$f":"AND(PRINT_SUMMARY!E19,\"bm18/FBWNs4=\")","v":{"$error":"#VALUE!"}},{"$f":"AND(PRINT_SUMMARY!F19,\"bm18/FBWNs8=\")","v":{"$error":"#VALUE!"}},{"$f":"AND(PRINT_SUMMARY!E4,\"bm18/FBWNtA=\")","v":{"$error":"#VALUE!"}},{"$f":"AND(PRINT_SUMMARY!I31,\"bm18/FBWNtE=\")","v":{"$error":"#VALUE!"}},{"$f":"AND(PRINT_SUMMARY!L31,\"bm18/FBWNtI=\")","v":{"$error":"#VALUE!"}},{"$f":"AND(PRINT_SUMMARY!M31,\"bm18/FBWNtM=\")","v":{"$error":"#VALUE!"}},{"$f":"AND(PRINT_SUMMARY!O20,\"bm18/FBWNtQ=\")","v":{"$error":"#VALUE!"}},{"$f":"AND(PRINT_SUMMARY!P20,\"bm18/FBWNtU=\")","v":{"$error":"#VALUE!"}},{"$f":"AND(PRINT_SUMMARY!Q20,\"bm18/FBWNtY=\")","v":{"$error":"#VALUE!"}},{"$f":"IF(PRINT_SUMMARY!21:21,\"bm18/FBWNtc=\",0)","v":0},{"$f":"AND(PRINT_SUMMARY!B20,\"bm18/FBWNtg=\")","v":{"$error":"#VALUE!"}},{"$f":"AND(PRINT_SUMMARY!E20,\"bm18/FBWNtk=\")","v":{"$error":"#VALUE!"}},{"$f":"AND(PRINT_SUMMARY!F20,\"bm18/FBWNto=\")","v":{"$error":"#VALUE!"}},{"$f":"AND(PRINT_SUMMARY!#REF!,\"bm18/FBWNts=\")","v":{"$error":"#REF!"}},{"$f":"AND(PRINT_SUMMARY!I32,\"bm18/FBWNtw=\")","v":{"$error":"#VALUE!"}},{"$f":"AND(PRINT_SUMMARY!L32,\"bm18/FBWNt0=\")","v":{"$error":"#VALUE!"}},{"$f":"AND(PRINT_SUMMARY!M32,\"bm18/FBWNt4=\")","v":{"$error":"#VALUE!"}},{"$f":"AND(PRINT_SUMMARY!O21,\"bm18/FBWNt8=\")","v":{"$error":"#VALUE!"}},{"$f":"AND(PRINT_SUMMARY!P21,\"bm18/FBWNuA=\")","v":{"$error":"#VALUE!"}},{"$f":"AND(PRINT_SUMMARY!Q21,\"bm18/FBWNuE=\")","v":{"$error":"#VALUE!"}},{"$f":"IF(PRINT_SUMMARY!22:22,\"bm18/FBWNuI=\",0)","v":0},{"$f":"AND(PRINT_SUMMARY!B21,\"bm18/FBWNuM=\")","v":{"$error":"#VALUE!"}},{"$f":"AND(PRINT_SUMMARY!E21,\"bm18/FBWNuQ=\")","v":{"$error":"#VALUE!"}},{"$f":"AND(PRINT_SUMMARY!F21,\"bm18/FBWNuU=\")","v":{"$error":"#VALUE!"}},{"$f":"AND(PRINT_SUMMARY!#REF!,\"bm18/FBWNuY=\")","v":{"$error":"#REF!"}},{"$f":"AND(PRINT_SUMMARY!I33,\"bm18/FBWNuc=\")","v":{"$error":"#VALUE!"}},{"$f":"AND(PRINT_SUMMARY!L33,\"bm18/FBWNug=\")","v":{"$error":"#VALUE!"}},{"$f":"AND(PRINT_SUMMARY!M33,\"bm18/FBWNuk=\")","v":{"$error":"#VALUE!"}},{"$f":"AND(PRINT_SUMMARY!O22,\"bm18/FBWNuo=\")","v":{"$error":"#VALUE!"}},{"$f":"AND(PRINT_SUMMARY!P22,\"bm18/FBWNus=\")","v":{"$error":"#VALUE!"}},{"$f":"AND(PRINT_SUMMARY!Q22,\"bm18/FBWNuw=\")","v":{"$error":"#VALUE!"}},{"$f":"IF(PRINT_SUMMARY!23:23,\"bm18/FBWNu0=\",0)","v":0},{"$f":"AND(PRINT_SUMMARY!B22,\"bm18/FBWNu4=\")","v":{"$error":"#VALUE!"}},{"$f":"AND(PRINT_SUMMARY!E22,\"bm18/FBWNu8=\")","v":{"$error":"#VALUE!"}},{"$f":"AND(PRINT_SUMMARY!F22,\"bm18/FBWNvA=\")","v":{"$error":"#VALUE!"}},{"$f":"AND(PRINT_SUMMARY!#REF!,\"bm18/FBWNvE=\")","v":{"$error":"#REF!"}},{"$f":"AND(PRINT_SUMMARY!I34,\"bm18/FBWNvI=\")","v":{"$error":"#VALUE!"}},{"$f":"AND(PRINT_SUMMARY!L34,\"bm18/FBWNvM=\")","v":{"$error":"#VALUE!"}},{"$f":"AND(PRINT_SUMMARY!M34,\"bm18/FBWNvQ=\")","v":{"$error":"#VALUE!"}},{"$f":"AND(PRINT_SUMMARY!O23,\"bm18/FBWNvU=\")","v":{"$error":"#VALUE!"}},{"$f":"AND(PRINT_SUMMARY!P23,\"bm18/FBWNvY=\")","v":{"$error":"#VALUE!"}},{"$f":"AND(PRINT_SUMMARY!Q23,\"bm18/FBWNvc=\")","v":{"$error":"#VALUE!"}},{"$f":"IF(PRINT_SUMMARY!24:24,\"bm18/FBWNvg=\",0)","v":0},{"$f":"AND(PRINT_SUMMARY!B23,\"bm18/FBWNvk=\")","v":{"$error":"#VALUE!"}},{"$f":"AND(PRINT_SUMMARY!E23,\"bm18/FBWNvo=\")","v":{"$error":"#VALUE!"}},{"$f":"AND(PRINT_SUMMARY!F23,\"bm18/FBWNvs=\")","v":{"$error":"#VALUE!"}},{"$f":"AND(PRINT_SUMMARY!#REF!,\"bm18/FBWNvw=\")","v":{"$error":"#REF!"}},{"$f":"AND(PRINT_SUMMARY!I35,\"bm18/FBWNv0=\")","v":{"$error":"#VALUE!"}},{"$f":"AND(PRINT_SUMMARY!L35,\"bm18/FBWNv4=\")","v":{"$error":"#VALUE!"}},{"$f":"AND(PRINT_SUMMARY!M35,\"bm18/FBWNv8=\")","v":{"$error":"#VALUE!"}}]
[{"$f":"AND(PRINT_SUMMARY!O24,\"N+D1gGg4MAA=\")","v":{"$error":"#VALUE!"}},{"$f":"AND(PRINT_SUMMARY!P24,\"N+D1gGg4MAE=\")","v":{"$error":"#VALUE!"}},{"$f":"AND(PRINT_SUMMARY!Q24,\"N+D1gGg4MAI=\")","v":{"$error":"#VALUE!"}},{"$f":"IF(PRINT_SUMMARY!25:25,\"N+D1gGg4MAM=\",0)","v":0},{"$f":"AND(PRINT_SUMMARY!B24,\"N+D1gGg4MAQ=\")","v":{"$error":"#VALUE!"}},{"$f":"AND(PRINT_SUMMARY!C24,\"N+D1gGg4MAU=\")","v":{"$error":"#VALUE!"}},{"$f":"AND(PRINT_SUMMARY!D24,\"N+D1gGg4MAY=\")","v":{"$error":"#VALUE!"}},{"$f":"AND(PRINT_SUMMARY!#REF!,\"N+D1gGg4MAc=\")","v":{"$error":"#REF!"}},{"$f":"AND(PRINT_SUMMARY!I36,\"N+D1gGg4MAg=\")","v":{"$error":"#VALUE!"}},{"$f":"AND(PRINT_SUMMARY!J36,\"N+D1gGg4MAk=\")","v":{"$error":"#VALUE!"}},{"$f":"AND(PRINT_SUMMARY!M36,\"N+D1gGg4MAo=\")","v":{"$error":"#VALUE!"}},{"$f":"AND(PRINT_SUMMARY!O25,\"N+D1gGg4MAs=\")","v":{"$error":"#VALUE!"}},{"$f":"AND(PRINT_SUMMARY!P25,\"N+D1gGg4MAw=\")","v":{"$error":"#VALUE!"}},{"$f":"AND(PRINT_SUMMARY!Q25,\"N+D1gGg4MA0=\")","v":{"$error":"#VALUE!"}},{"$f":"IF(PRINT_SUMMARY!#REF!,\"N+D1gGg4MA4=\",0)","v":{"$error":"#REF!"}},{"$f":"AND(PRINT_SUMMARY!B25,\"N+D1gGg4MA8=\")","v":{"$error":"#VALUE!"}},{"$f":"AND(PRINT_SUMMARY!C25,\"N+D1gGg4MBA=\")","v":{"$error":"#VALUE!"}},{"$f":"AND(PRINT_SUMMARY!D25,\"N+D1gGg4MBE=\")","v":{"$error":"#VALUE!"}},{"$f":"AND(PRINT_SUMMARY!#REF!,\"N+D1gGg4MBI=\")","v":{"$error":"#REF!"}},{"$f":"AND(PRINT_SUMMARY!F14,\"N+D1gGg4MBM=\")","v":{"$error":"#VALUE!"}},{"$f":"AND(PRINT_SUMMARY!G14,\"N+D1gGg4MBQ=\")","v":{"$error":"#VALUE!"}},{"$f":"AND(PRINT_SUMMARY!#REF!,\"N+D1gGg4MBU=\")","v":{"$error":"#REF!"}},{"$f":"AND(PRINT_SUMMARY!#REF!,\"N+D1gGg4MBY=\")","v":{"$error":"#REF!"}},{"$f":"AND(PRINT_SUMMARY!#REF!,\"N+D1gGg4MBc=\")","v":{"$error":"#REF!"}},{"$f":"AND(PRINT_SUMMARY!#REF!,\"N+D1gGg4MBg=\")","v":{"$error":"#REF!"}},{"$f":"IF(PRINT_SUMMARY!26:26,\"N+D1gGg4MBk=\",0)","v":0},{"$f":"AND(PRINT_SUMMARY!#REF!,\"N+D1gGg4MBo=\")","v":{"$error":"#REF!"}},{"$f":"AND(PRINT_SUMMARY!#REF!,\"N+D1gGg4MBs=\")","v":{"$error":"#REF!"}},{"$f":"AND(PRINT_SUMMARY!#REF!,\"N+D1gGg4MBw=\")","v":{"$error":"#REF!"}},{"$f":"AND(PRINT_SUMMARY!#REF!,\"N+D1gGg4MB0=\")","v":{"$error":"#REF!"}},{"$f":"AND(PRINT_SUMMARY!#REF!,\"N+D1gGg4MB4=\")","v":{"$error":"#REF!"}},{"$f":"AND(PRINT_SUMMARY!G15,\"N+D1gGg4MB8=\")","v":{"$error":"#VALUE!"}},{"$f":"AND(PRINT_SUMMARY!#REF!,\"N+D1gGg4MCA=\")","v":{"$error":"#REF!"}},{"$f":"AND(PRINT_SUMMARY!O26,\"N+D1gGg4MCE=\")","v":{"$error":"#VALUE!"}},{"$f":"AND(PRINT_SUMMARY!P26,\"N+D1gGg4MCI=\")","v":{"$error":"#VALUE!"}},{"$f":"AND(PRINT_SUMMARY!Q26,\"N+D1gGg4MCM=\")","v":{"$error":"#VALUE!"}},{"$f":"IF(PRINT_SUMMARY!27:27,\"N+D1gGg4MCQ=\",0)","v":0},{"$f":"AND(PRINT_SUMMARY!B26,\"N+D1gGg4MCU=\")","v":{"$error":"#VALUE!"}},{"$f":"AND(PRINT_SUMMARY!C26,\"N+D1gGg4MCY=\")","v":{"$error":"#VALUE!"}},{"$f":"AND(PRINT_SUMMARY!D26,\"N+D1gGg4MCc=\")","v":{"$error":"#VALUE!"}},{"$f":"AND(PRINT_SUMMARY!#REF!,\"N+D1gGg4MCg=\")","v":{"$error":"#REF!"}},{"$f":"AND(PRINT_SUMMARY!I14,\"N+D1gGg4MCk=\")","v":{"$error":"#VALUE!"}},{"$f":"AND(PRINT_SUMMARY!G17,\"N+D1gGg4MCo=\")","v":{"$error":"#VALUE!"}},{"$f":"AND(PRINT_SUMMARY!#REF!,\"N+D1gGg4MCs=\")","v":{"$error":"#REF!"}},{"$f":"AND(PRINT_SUMMARY!O27,\"N+D1gGg4MCw=\")","v":{"$error":"#VALUE!"}},{"$f":"AND(PRINT_SUMMARY!P27,\"N+D1gGg4MC0=\")","v":{"$error":"#VALUE!"}},{"$f":"AND(PRINT_SUMMARY!Q27,\"N+D1gGg4MC4=\")","v":{"$error":"#VALUE!"}},{"$f":"IF(PRINT_SUMMARY!28:28,\"N+D1gGg4MC8=\",0)","v":0},{"$f":"AND(PRINT_SUMMARY!B27,\"N+D1gGg4MDA=\")","v":{"$error":"#VALUE!"}},{"$f":"AND(PRINT_SUMMARY!F27,\"N+D1gGg4MDE=\")","v":{"$error":"#VALUE!"}},{"$f":"AND(PRINT_SUMMARY!D27,\"N+D1gGg4MDI=\")","v":{"$error":"#VALUE!"}},{"$f":"AND(PRINT_SUMMARY!#REF!,\"N+D1gGg4MDM=\")","v":{"$error":"#REF!"}},{"$f":"AND(PRINT_SUMMARY!#REF!,\"N+D1gGg4MDQ=\")","v":{"$error":"#REF!"}},{"$f":"AND(PRINT_SUMMARY!G18,\"N+D1gGg4MDU=\")","v":{"$error":"#VALUE!"}},{"$f":"AND(PRINT_SUMMARY!#REF!,\"N+D1gGg4MDY=\")","v":{"$error":"#REF!"}},{"$f":"AND(PRINT_SUMMARY!O28,\"N+D1gGg4MDc=\")","v":{"$error":"#VALUE!"}},{"$f":"AND(PRINT_SUMMARY!P28,\"N+D1gGg4MDg=\")","v":{"$error":"#VALUE!"}},{"$f":"AND(PRINT_SUMMARY!Q28,\"N+D1gGg4MDk=\")","v":{"$error":"#VALUE!"}},{"$f":"IF(PRINT_SUMMARY!29:29,\"N+D1gGg4MDo=\",0)","v":0},{"$f":"AND(PRINT_SUMMARY!B28,\"N+D1gGg4MDs=\")","v":{"$error":"#VALUE!"}},{"$f":"AND(PRINT_SUMMARY!F28,\"N+D1gGg4MDw=\")","v":{"$error":"#VALUE!"}},{"$f":"AND(PRINT_SUMMARY!D28,\"N+D1gGg4MD0=\")","v":{"$error":"#VALUE!"}},{"$f":"AND(PRINT_SUMMARY!#REF!,\"N+D1gGg4MD4=\")","v":{"$error":"#REF!"}},{"$f":"AND(PRINT_SUMMARY!#REF!,\"N+D1gGg4MD8=\")","v":{"$error":"#REF!"}},{"$f":"AND(PRINT_SUMMARY!G19,\"N+D1gGg4MEA=\")","v":{"$error":"#VALUE!"}},{"$f":"AND(PRINT_SUMMARY!#REF!,\"N+D1gGg4MEE=\")","v":{"$error":"#REF!"}},{"$f":"AND(PRINT_SUMMARY!O29,\"N+D1gGg4MEI=\")","v":{"$error":"#VALUE!"}},{"$f":"AND(PRINT_SUMMARY!P29,\"N+D1gGg4MEM=\")","v":{"$error":"#VALUE!"}},{"$f":"AND(PRINT_SUMMARY!Q29,\"N+D1gGg4MEQ=\")","v":{"$error":"#VALUE!"}},{"$f":"IF(PRINT_SUMMARY!30:30,\"N+D1gGg4MEU=\",0)","v":0},{"$f":"AND(PRINT_SUMMARY!B29,\"N+D1gGg4MEY=\")","v":{"$error":"#VALUE!"}},{"$f":"AND(PRINT_SUMMARY!F29,\"N+D1gGg4MEc=\")","v":{"$error":"#VALUE!"}},{"$f":"AND(PRINT_SUMMARY!D29,\"N+D1gGg4MEg=\")","v":{"$error":"#VALUE!"}},{"$f":"AND(PRINT_SUMMARY!E14,\"N+D1gGg4MEk=\")","v":{"$error":"#VALUE!"}},{"$f":"AND(PRINT_SUMMARY!#REF!,\"N+D1gGg4MEo=\")","v":{"$error":"#REF!"}},{"$f":"AND(PRINT_SUMMARY!G20,\"N+D1gGg4MEs=\")","v":{"$error":"#VALUE!"}},{"$f":"AND(PRINT_SUMMARY!#REF!,\"N+D1gGg4MEw=\")","v":{"$error":"#REF!"}},{"$f":"AND(PRINT_SUMMARY!O30,\"N+D1gGg4ME0=\")","v":{"$error":"#VALUE!"}},{"$f":"AND(PRINT_SUMMARY!P30,\"N+D1gGg4ME4=\")","v":{"$error":"#VALUE!"}},{"$f":"AND(PRINT_SUMMARY!Q30,\"N+D1gGg4ME8=\")","v":{"$error":"#VALUE!"}},{"$f":"IF(PRINT_SUMMARY!31:31,\"N+D1gGg4MFA=\",0)","v":0},{"$f":"AND(PRINT_SUMMARY!B30,\"N+D1gGg4MFE=\")","v":{"$error":"#VALUE!"}},{"$f":"AND(PRINT_SUMMARY!F30,\"N+D1gGg4MFI=\")","v":{"$error":"#VALUE!"}},{"$f":"AND(PRINT_SUMMARY!D30,\"N+D1gGg4MFM=\")","v":{"$error":"#VALUE!"}},{"$f":"AND(PRINT_SUMMARY!#REF!,\"N+D1gGg4MFQ=\")","v":{"$error":"#REF!"}},{"$f":"AND(PRINT_SUMMARY!#REF!,\"N+D1gGg4MFU=\")","v":{"$error":"#REF!"}},{"$f":"AND(PRINT_SUMMARY!G21,\"N+D1gGg4MFY=\")","v":{"$error":"#VALUE!"}},{"$f":"AND(PRINT_SUMMARY!#REF!,\"N+D1gGg4MFc=\")","v":{"$error":"#REF!"}},{"$f":"AND(PRINT_SUMMARY!O31,\"N+D1gGg4MFg=\")","v":{"$error":"#VALUE!"}},{"$f":"AND(PRINT_SUMMARY!P31,\"N+D1gGg4MFk=\")","v":{"$error":"#VALUE!"}},{"$f":"AND(PRINT_SUMMARY!Q31,\"N+D1gGg4MFo=\")","v":{"$error":"#VALUE!"}},{"$f":"IF(PRINT_SUMMARY!32:32,\"N+D1gGg4MFs=\",0)","v":0},{"$f":"AND(PRINT_SUMMARY!B31,\"N+D1gGg4MFw=\")","v":{"$error":"#VALUE!"}},{"$f":"AND(PRINT_SUMMARY!F31,\"N+D1gGg4MF0=\")","v":{"$error":"#VALUE!"}},{"$f":"AND(PRINT_SUMMARY!D31,\"N+D1gGg4MF4=\")","v":{"$error":"#VALUE!"}},{"$f":"AND(PRINT_SUMMARY!#REF!,\"N+D1gGg4MF8=\")","v":{"$error":"#REF!"}},{"$f":"AND(PRINT_SUMMARY!#REF!,\"N+D1gGg4MGA=\")","v":{"$error":"#REF!"}},{"$f":"AND(PRINT_SUMMARY!G22,\"N+D1gGg4MGE=\")","v":{"$error":"#VALUE!"}},{"$f":"AND(PRINT_SUMMARY!#REF!,\"N+D1gGg4MGI=\")","v":{"$error":"#REF!"}},{"$f":"AND(PRINT_SUMMARY!O32,\"N+D1gGg4MGM=\")","v":{"$error":"#VALUE!"}},{"$f":"AND(PRINT_SUMMARY!P32,\"N+D1gGg4MGQ=\")","v":{"$error":"#VALUE!"}},{"$f":"AND(PRINT_SUMMARY!Q32,\"N+D1gGg4MGU=\")","v":{"$error":"#VALUE!"}},{"$f":"IF(PRINT_SUMMARY!33:33,\"N+D1gGg4MGY=\",0)","v":0},{"$f":"IF(PRINT_SUMMARY!34:34,\"N+D1gGg4MGc=\",0)","v":0},{"$f":"IF(PRINT_SUMMARY!35:35,\"N+D1gGg4MGg=\",0)","v":0},{"$f":"IF(PRINT_SUMMARY!B:B,\"N+D1gGg4MGk=\",0)","v":0},{"$f":"IF(PRINT_SUMMARY!C:C,\"N+D1gGg4MGo=\",0)","v":0},{"$f":"IF(PRINT_SUMMARY!D:D,\"N+D1gGg4MGs=\",0)","v":0},{"$f":"IF(PRINT_SUMMARY!E:E,\"N+D1gGg4MGw=\",0)","v":0},{"$f":"IF(PRINT_SUMMARY!F:F,\"N+D1gGg4MG0=\",0)","v":0},{"$f":"IF(PRINT_SUMMARY!G:G,\"N+D1gGg4MG4=\",0)","v":0},{"$f":"IF(PRINT_SUMMARY!N:N,\"N+D1gGg4MG8=\",0)","v":0},{"$f":"IF(PRINT_SUMMARY!O:O,\"N+D1gGg4MHA=\",0)","v":0},{"$f":"IF(PRINT_SUMMARY!P:P,\"N+D1gGg4MHE=\",0)","v":0},{"$f":"IF(PRINT_SUMMARY!Q:Q,\"N+D1gGg4MHI=\",0)","v":0},{"$f":"IF(#REF!,\"N+D1gGg4MHM=\",0)","v":{"$error":"#REF!"}},{"$f":"AND(#REF!,\"N+D1gGg4MHQ=\")","v":{"$error":"#REF!"}},{"$f":"IF(#REF!,\"N+D1gGg4MHU=\",0)","v":{"$error":"#REF!"}},{"$f":"IF(#REF!,\"N+D1gGg4MHY=\",0)","v":{"$error":"#REF!"}},{"$f":"AND(#REF!,\"N+D1gGg4MHc=\")","v":{"$error":"#REF!"}},{"$f":"AND(#REF!,\"N+D1gGg4MHg=\")","v":{"$error":"#REF!"}},{"$f":"AND(#REF!,\"N+D1gGg4MHk=\")","v":{"$error":"#REF!"}},{"$f":"AND(#REF!,\"N+D1gGg4MHo=\")","v":{"$error":"#REF!"}},{"$f":"AND(#REF!,\"N+D1gGg4MHs=\")","v":{"$error":"#REF!"}},{"$f":"AND(#REF!,\"N+D1gGg4MHw=\")","v":{"$error":"#REF!"}},{"$f":"AND(#REF!,\"N+D1gGg4MH0=\")","v":{"$error":"#REF!"}},{"$f":"AND(#REF!,\"N+D1gGg4MH4=\")","v":{"$error":"#REF!"}},{"$f":"AND(#REF!,\"N+D1gGg4MH8=\")","v":{"$error":"#REF!"}},{"$f":"AND(#REF!,\"N+D1gGg4MIA=\")","v":{"$error":"#REF!"}},{"$f":"AND(#REF!,\"N+D1gGg4MIE=\")","v":{"$error":"#REF!"}},{"$f":"AND(#REF!,\"N+D1gGg4MII=\")","v":{"$error":"#REF!"}},{"$f":"AND(#REF!,\"N+D1gGg4MIM=\")","v":{"$error":"#REF!"}},{"$f":"AND(#REF!,\"N+D1gGg4MIQ=\")","v":{"$error":"#REF!"}},{"$f":"AND(#REF!,\"N+D1gGg4MIU=\")","v":{"$error":"#REF!"}},{"$f":"AND(#REF!,\"N+D1gGg4MIY=\")","v":{"$error":"#REF!"}},{"$f":"AND(#REF!,\"N+D1gGg4MIc=\")","v":{"$error":"#REF!"}},{"$f":"AND(#REF!,\"N+D1gGg4MIg=\")","v":{"$error":"#REF!"}},{"$f":"AND(#REF!,\"N+D1gGg4MIk=\")","v":{"$error":"#REF!"}},{"$f":"AND(#REF!,\"N+D1gGg4MIo=\")","v":{"$error":"#REF!"}},{"$f":"AND(#REF!,\"N+D1gGg4MIs=\")","v":{"$error":"#REF!"}},{"$f":"AND(#REF!,\"N+D1gGg4MIw=\")","v":{"$error":"#REF!"}},{"$f":"AND(#REF!,\"N+D1gGg4MI0=\")","v":{"$error":"#REF!"}},{"$f":"AND(#REF!,\"N+D1gGg4MI4=\")","v":{"$error":"#REF!"}},{"$f":"AND(#REF!,\"N+D1gGg4MI8=\")","v":{"$error":"#REF!"}},{"$f":"AND(#REF!,\"N+D1gGg4MJA=\")","v":{"$error":"#REF!"}},{"$f":"AND(#REF!,\"N+D1gGg4MJE=\")","v":{"$error":"#REF!"}},{"$f":"AND(#REF!,\"N+D1gGg4MJI=\")","v":{"$error":"#REF!"}},{"$f":"AND(#REF!,\"N+D1gGg4MJM=\")","v":{"$error":"#REF!"}},{"$f":"AND(#REF!,\"N+D1gGg4MJQ=\")","v":{"$error":"#REF!"}},{"$f":"AND(#REF!,\"N+D1gGg4MJU=\")","v":{"$error":"#REF!"}},{"$f":"IF(#REF!,\"N+D1gGg4MJY=\",0)","v":{"$error":"#REF!"}},{"$f":"AND(#REF!,\"N+D1gGg4MJc=\")","v":{"$error":"#REF!"}},{"$f":"AND(#REF!,\"N+D1gGg4MJg=\")","v":{"$error":"#REF!"}},{"$f":"AND(#REF!,\"N+D1gGg4MJk=\")","v":{"$error":"#REF!"}},{"$f":"AND(#REF!,\"N+D1gGg4MJo=\")","v":{"$error":"#REF!"}},{"$f":"AND(#REF!,\"N+D1gGg4MJs=\")","v":{"$error":"#REF!"}},{"$f":"AND(#REF!,\"N+D1gGg4MJw=\")","v":{"$error":"#REF!"}},{"$f":"AND(#REF!,\"N+D1gGg4MJ0=\")","v":{"$error":"#REF!"}},{"$f":"AND(#REF!,\"N+D1gGg4MJ4=\")","v":{"$error":"#REF!"}},{"$f":"AND(#REF!,\"N+D1gGg4MJ8=\")","v":{"$error":"#REF!"}},{"$f":"AND(#REF!,\"N+D1gGg4MKA=\")","v":{"$error":"#REF!"}},{"$f":"AND(#REF!,\"N+D1gGg4MKE=\")","v":{"$error":"#REF!"}},{"$f":"AND(#REF!,\"N+D1gGg4MKI=\")","v":{"$error":"#REF!"}},{"$f":"AND(#REF!,\"N+D1gGg4MKM=\")","v":{"$error":"#REF!"}},{"$f":"AND(#REF!,\"N+D1gGg4MKQ=\")","v":{"$error":"#REF!"}},{"$f":"AND(#REF!,\"N+D1gGg4MKU=\")","v":{"$error":"#REF!"}},{"$f":"AND(#REF!,\"N+D1gGg4MKY=\")","v":{"$error":"#REF!"}},{"$f":"AND(#REF!,\"N+D1gGg4MKc=\")","v":{"$error":"#REF!"}},{"$f":"AND(#REF!,\"N+D1gGg4MKg=\")","v":{"$error":"#REF!"}},{"$f":"AND(#REF!,\"N+D1gGg4MKk=\")","v":{"$error":"#REF!"}},{"$f":"AND(#REF!,\"N+D1gGg4MKo=\")","v":{"$error":"#REF!"}},{"$f":"AND(#REF!,\"N+D1gGg4MKs=\")","v":{"$error":"#REF!"}},{"$f":"AND(#REF!,\"N+D1gGg4MKw=\")","v":{"$error":"#REF!"}},{"$f":"AND(#REF!,\"N+D1gGg4MK0=\")","v":{"$error":"#REF!"}},{"$f":"AND(#REF!,\"N+D1gGg4MK4=\")","v":{"$error":"#REF!"}},{"$f":"AND(#REF!,\"N+D1gGg4MK8=\")","v":{"$error":"#REF!"}},{"$f":"AND(#REF!,\"N+D1gGg4MLA=\")","v":{"$error":"#REF!"}},{"$f":"AND(#REF!,\"N+D1gGg4MLE=\")","v":{"$error":"#REF!"}},{"$f":"AND(#REF!,\"N+D1gGg4MLI=\")","v":{"$error":"#REF!"}},{"$f":"AND(#REF!,\"N+D1gGg4MLM=\")","v":{"$error":"#REF!"}},{"$f":"AND(#REF!,\"N+D1gGg4MLQ=\")","v":{"$error":"#REF!"}},{"$f":"AND(#REF!,\"N+D1gGg4MLU=\")","v":{"$error":"#REF!"}},{"$f":"IF(#REF!,\"N+D1gGg4MLY=\",0)","v":{"$error":"#REF!"}},{"$f":"AND(#REF!,\"N+D1gGg4MLc=\")","v":{"$error":"#REF!"}},{"$f":"AND(#REF!,\"N+D1gGg4MLg=\")","v":{"$error":"#REF!"}},{"$f":"AND(#REF!,\"N+D1gGg4MLk=\")","v":{"$error":"#REF!"}},{"$f":"AND(#REF!,\"N+D1gGg4MLo=\")","v":{"$error":"#REF!"}},{"$f":"AND(#REF!,\"N+D1gGg4MLs=\")","v":{"$error":"#REF!"}},{"$f":"AND(#REF!,\"N+D1gGg4MLw=\")","v":{"$error":"#REF!"}},{"$f":"AND(#REF!,\"N+D1gGg4ML0=\")","v":{"$error":"#REF!"}},{"$f":"AND(#REF!,\"N+D1gGg4ML4=\")","v":{"$error":"#REF!"}},{"$f":"AND(#REF!,\"N+D1gGg4ML8=\")","v":{"$error":"#REF!"}},{"$f":"AND(#REF!,\"N+D1gGg4MMA=\")","v":{"$error":"#REF!"}},{"$f":"AND(#REF!,\"N+D1gGg4MME=\")","v":{"$error":"#REF!"}},{"$f":"AND(#REF!,\"N+D1gGg4MMI=\")","v":{"$error":"#REF!"}},{"$f":"AND(#REF!,\"N+D1gGg4MMM=\")","v":{"$error":"#REF!"}},{"$f":"AND(#REF!,\"N+D1gGg4MMQ=\")","v":{"$error":"#REF!"}},{"$f":"AND(#REF!,\"N+D1gGg4MMU=\")","v":{"$error":"#REF!"}},{"$f":"AND(#REF!,\"N+D1gGg4MMY=\")","v":{"$error":"#REF!"}},{"$f":"AND(#REF!,\"N+D1gGg4MMc=\")","v":{"$error":"#REF!"}},{"$f":"AND(#REF!,\"N+D1gGg4MMg=\")","v":{"$error":"#REF!"}},{"$f":"AND(#REF!,\"N+D1gGg4MMk=\")","v":{"$error":"#REF!"}},{"$f":"AND(#REF!,\"N+D1gGg4MMo=\")","v":{"$error":"#REF!"}},{"$f":"AND(#REF!,\"N+D1gGg4MMs=\")","v":{"$error":"#REF!"}},{"$f":"AND(#REF!,\"N+D1gGg4MMw=\")","v":{"$error":"#REF!"}},{"$f":"AND(#REF!,\"N+D1gGg4MM0=\")","v":{"$error":"#REF!"}},{"$f":"AND(#REF!,\"N+D1gGg4MM4=\")","v":{"$error":"#REF!"}},{"$f":"AND(#REF!,\"N+D1gGg4MM8=\")","v":{"$error":"#REF!"}},{"$f":"AND(#REF!,\"N+D1gGg4MNA=\")","v":{"$error":"#REF!"}},{"$f":"AND(#REF!,\"N+D1gGg4MNE=\")","v":{"$error":"#REF!"}},{"$f":"AND(#REF!,\"N+D1gGg4MNI=\")","v":{"$error":"#REF!"}},{"$f":"AND(#REF!,\"N+D1gGg4MNM=\")","v":{"$error":"#REF!"}},{"$f":"AND(#REF!,\"N+D1gGg4MNQ=\")","v":{"$error":"#REF!"}},{"$f":"AND(#REF!,\"N+D1gGg4MNU=\")","v":{"$error":"#REF!"}},{"$f":"IF(#REF!,\"N+D1gGg4MNY=\",0)","v":{"$error":"#REF!"}},{"$f":"AND(#REF!,\"N+D1gGg4MNc=\")","v":{"$error":"#REF!"}},{"$f":"AND(#REF!,\"N+D1gGg4MNg=\")","v":{"$error":"#REF!"}},{"$f":"AND(#REF!,\"N+D1gGg4MNk=\")","v":{"$error":"#REF!"}},{"$f":"AND(#REF!,\"N+D1gGg4MNo=\")","v":{"$error":"#REF!"}},{"$f":"AND(#REF!,\"N+D1gGg4MNs=\")","v":{"$error":"#REF!"}},{"$f":"AND(#REF!,\"N+D1gGg4MNw=\")","v":{"$error":"#REF!"}},{"$f":"AND(#REF!,\"N+D1gGg4MN0=\")","v":{"$error":"#REF!"}},{"$f":"AND(#REF!,\"N+D1gGg4MN4=\")","v":{"$error":"#REF!"}},{"$f":"AND(#REF!,\"N+D1gGg4MN8=\")","v":{"$error":"#REF!"}},{"$f":"AND(#REF!,\"N+D1gGg4MOA=\")","v":{"$error":"#REF!"}},{"$f":"AND(#REF!,\"N+D1gGg4MOE=\")","v":{"$error":"#REF!"}},{"$f":"AND(#REF!,\"N+D1gGg4MOI=\")","v":{"$error":"#REF!"}},{"$f":"AND(#REF!,\"N+D1gGg4MOM=\")","v":{"$error":"#REF!"}},{"$f":"AND(#REF!,\"N+D1gGg4MOQ=\")","v":{"$error":"#REF!"}},{"$f":"AND(#REF!,\"N+D1gGg4MOU=\")","v":{"$error":"#REF!"}},{"$f":"AND(#REF!,\"N+D1gGg4MOY=\")","v":{"$error":"#REF!"}},{"$f":"AND(#REF!,\"N+D1gGg4MOc=\")","v":{"$error":"#REF!"}},{"$f":"AND(#REF!,\"N+D1gGg4MOg=\")","v":{"$error":"#REF!"}},{"$f":"AND(#REF!,\"N+D1gGg4MOk=\")","v":{"$error":"#REF!"}},{"$f":"AND(#REF!,\"N+D1gGg4MOo=\")","v":{"$error":"#REF!"}},{"$f":"AND(#REF!,\"N+D1gGg4MOs=\")","v":{"$error":"#REF!"}},{"$f":"AND(#REF!,\"N+D1gGg4MOw=\")","v":{"$error":"#REF!"}},{"$f":"AND(#REF!,\"N+D1gGg4MO0=\")","v":{"$error":"#REF!"}},{"$f":"AND(#REF!,\"N+D1gGg4MO4=\")","v":{"$error":"#REF!"}},{"$f":"AND(#REF!,\"N+D1gGg4MO8=\")","v":{"$error":"#REF!"}},{"$f":"AND(#REF!,\"N+D1gGg4MPA=\")","v":{"$error":"#REF!"}},{"$f":"AND(#REF!,\"N+D1gGg4MPE=\")","v":{"$error":"#REF!"}},{"$f":"AND(#REF!,\"N+D1gGg4MPI=\")","v":{"$error":"#REF!"}},{"$f":"AND(#REF!,\"N+D1gGg4MPM=\")","v":{"$error":"#REF!"}},{"$f":"AND(#REF!,\"N+D1gGg4MPQ=\")","v":{"$error":"#REF!"}},{"$f":"AND(#REF!,\"N+D1gGg4MPU=\")","v":{"$error":"#REF!"}},{"$f":"IF(#REF!,\"N+D1gGg4MPY=\",0)","v":{"$error":"#REF!"}},{"$f":"AND(#REF!,\"N+D1gGg4MPc=\")","v":{"$error":"#REF!"}},{"$f":"AND(#REF!,\"N+D1gGg4MPg=\")","v":{"$error":"#REF!"}},{"$f":"AND(#REF!,\"N+D1gGg4MPk=\")","v":{"$error":"#REF!"}},{"$f":"AND(#REF!,\"N+D1gGg4MPo=\")","v":{"$error":"#REF!"}},{"$f":"AND(#REF!,\"N+D1gGg4MPs=\")","v":{"$error":"#REF!"}},{"$f":"AND(#REF!,\"N+D1gGg4MPw=\")","v":{"$error":"#REF!"}},{"$f":"AND(#REF!,\"N+D1gGg4MP0=\")","v":{"$error":"#REF!"}},{"$f":"AND(#REF!,\"N+D1gGg4MP4=\")","v":{"$error":"#REF!"}},{"$f":"AND(#REF!,\"N+D1gGg4MP8=\")","v":{"$error":"#REF!"}}]
[{"$f":"AND(#REF!,\"XR6vaWr3QAA=\")","v":{"$error":"#REF!"}},{"$f":"AND(#REF!,\"XR6vaWr3QAE=\")","v":{"$error":"#REF!"}},{"$f":"AND(#REF!,\"XR6vaWr3QAI=\")","v":{"$error":"#REF!"}},{"$f":"AND(#REF!,\"XR6vaWr3QAM=\")","v":{"$error":"#REF!"}},{"$f":"AND(#REF!,\"XR6vaWr3QAQ=\")","v":{"$error":"#REF!"}},{"$f":"AND(#REF!,\"XR6vaWr3QAU=\")","v":{"$error":"#REF!"}},{"$f":"AND(#REF!,\"XR6vaWr3QAY=\")","v":{"$error":"#REF!"}},{"$f":"AND(#REF!,\"XR6vaWr3QAc=\")","v":{"$error":"#REF!"}},{"$f":"AND(#REF!,\"XR6vaWr3QAg=\")","v":{"$error":"#REF!"}},{"$f":"AND(#REF!,\"XR6vaWr3QAk=\")","v":{"$error":"#REF!"}},{"$f":"AND(#REF!,\"XR6vaWr3QAo=\")","v":{"$error":"#REF!"}},{"$f":"AND(#REF!,\"XR6vaWr3QAs=\")","v":{"$error":"#REF!"}},{"$f":"AND(#REF!,\"XR6vaWr3QAw=\")","v":{"$error":"#REF!"}},{"$f":"AND(#REF!,\"XR6vaWr3QA0=\")","v":{"$error":"#REF!"}},{"$f":"AND(#REF!,\"XR6vaWr3QA4=\")","v":{"$error":"#REF!"}},{"$f":"AND(#REF!,\"XR6vaWr3QA8=\")","v":{"$error":"#REF!"}},{"$f":"AND(#REF!,\"XR6vaWr3QBA=\")","v":{"$error":"#REF!"}},{"$f":"AND(#REF!,\"XR6vaWr3QBE=\")","v":{"$error":"#REF!"}},{"$f":"AND(#REF!,\"XR6vaWr3QBI=\")","v":{"$error":"#REF!"}},{"$f":"AND(#REF!,\"XR6vaWr3QBM=\")","v":{"$error":"#REF!"}},{"$f":"AND(#REF!,\"XR6vaWr3QBQ=\")","v":{"$error":"#REF!"}},{"$f":"AND(#REF!,\"XR6vaWr3QBU=\")","v":{"$error":"#REF!"}},{"$f":"IF(#REF!,\"XR6vaWr3QBY=\",0)","v":{"$error":"#REF!"}},{"$f":"AND(#REF!,\"XR6vaWr3QBc=\")","v":{"$error":"#REF!"}},{"$f":"AND(#REF!,\"XR6vaWr3QBg=\")","v":{"$error":"#REF!"}},{"$f":"AND(#REF!,\"XR6vaWr3QBk=\")","v":{"$error":"#REF!"}},{"$f":"AND(#REF!,\"XR6vaWr3QBo=\")","v":{"$error":"#REF!"}},{"$f":"AND(#REF!,\"XR6vaWr3QBs=\")","v":{"$error":"#REF!"}},{"$f":"AND(#REF!,\"XR6vaWr3QBw=\")","v":{"$error":"#REF!"}},{"$f":"AND(#REF!,\"XR6vaWr3QB0=\")","v":{"$error":"#REF!"}},{"$f":"AND(#REF!,\"XR6vaWr3QB4=\")","v":{"$error":"#REF!"}},{"$f":"AND(#REF!,\"XR6vaWr3QB8=\")","v":{"$error":"#REF!"}},{"$f":"AND(#REF!,\"XR6vaWr3QCA=\")","v":{"$error":"#REF!"}},{"$f":"AND(#REF!,\"XR6vaWr3QCE=\")","v":{"$error":"#REF!"}},{"$f":"AND(#REF!,\"XR6vaWr3QCI=\")","v":{"$error":"#REF!"}},{"$f":"AND(#REF!,\"XR6vaWr3QCM=\")","v":{"$error":"#REF!"}},{"$f":"AND(#REF!,\"XR6vaWr3QCQ=\")","v":{"$error":"#REF!"}},{"$f":"AND(#REF!,\"XR6vaWr3QCU=\")","v":{"$error":"#REF!"}},{"$f":"AND(#REF!,\"XR6vaWr3QCY=\")","v":{"$error":"#REF!"}},{"$f":"AND(#REF!,\"XR6vaWr3QCc=\")","v":{"$error":"#REF!"}},{"$f":"AND(#REF!,\"XR6vaWr3QCg=\")","v":{"$error":"#REF!"}},{"$f":"AND(#REF!,\"XR6vaWr3QCk=\")","v":{"$error":"#REF!"}},{"$f":"AND(#REF!,\"XR6vaWr3QCo=\")","v":{"$error":"#REF!"}},{"$f":"AND(#REF!,\"XR6vaWr3QCs=\")","v":{"$error":"#REF!"}},{"$f":"AND(#REF!,\"XR6vaWr3QCw=\")","v":{"$error":"#REF!"}},{"$f":"AND(#REF!,\"XR6vaWr3QC0=\")","v":{"$error":"#REF!"}},{"$f":"AND(#REF!,\"XR6vaWr3QC4=\")","v":{"$error":"#REF!"}},{"$f":"AND(#REF!,\"XR6vaWr3QC8=\")","v":{"$error":"#REF!"}},{"$f":"AND(#REF!,\"XR6vaWr3QDA=\")","v":{"$error":"#REF!"}},{"$f":"AND(#REF!,\"XR6vaWr3QDE=\")","v":{"$error":"#REF!"}},{"$f":"AND(#REF!,\"XR6vaWr3QDI=\")","v":{"$error":"#REF!"}},{"$f":"AND(#REF!,\"XR6vaWr3QDM=\")","v":{"$error":"#REF!"}},{"$f":"AND(#REF!,\"XR6vaWr3QDQ=\")","v":{"$error":"#REF!"}},{"$f":"AND(#REF!,\"XR6vaWr3QDU=\")","v":{"$error":"#REF!"}},{"$f":"IF(#REF!,\"XR6vaWr3QDY=\",0)","v":{"$error":"#REF!"}},{"$f":"AND(#REF!,\"XR6vaWr3QDc=\")","v":{"$error":"#REF!"}},{"$f":"AND(#REF!,\"XR6vaWr3QDg=\")","v":{"$error":"#REF!"}},{"$f":"AND(#REF!,\"XR6vaWr3QDk=\")","v":{"$error":"#REF!"}},{"$f":"AND(#REF!,\"XR6vaWr3QDo=\")","v":{"$error":"#REF!"}},{"$f":"AND(#REF!,\"XR6vaWr3QDs=\")","v":{"$error":"#REF!"}},{"$f":"AND(#REF!,\"XR6vaWr3QDw=\")","v":{"$error":"#REF!"}},{"$f":"AND(#REF!,\"XR6vaWr3QD0=\")","v":{"$error":"#REF!"}},{"$f":"AND(#REF!,\"XR6vaWr3QD4=\")","v":{"$error":"#REF!"}},{"$f":"AND(#REF!,\"XR6vaWr3QD8=\")","v":{"$error":"#REF!"}},{"$f":"AND(#REF!,\"XR6vaWr3QEA=\")","v":{"$error":"#REF!"}},{"$f":"AND(#REF!,\"XR6vaWr3QEE=\")","v":{"$error":"#REF!"}},{"$f":"AND(#REF!,\"XR6vaWr3QEI=\")","v":{"$error":"#REF!"}},{"$f":"AND(#REF!,\"XR6vaWr3QEM=\")","v":{"$error":"#REF!"}},{"$f":"AND(#REF!,\"XR6vaWr3QEQ=\")","v":{"$error":"#REF!"}},{"$f":"AND(#REF!,\"XR6vaWr3QEU=\")","v":{"$error":"#REF!"}},{"$f":"AND(#REF!,\"XR6vaWr3QEY=\")","v":{"$error":"#REF!"}},{"$f":"AND(#REF!,\"XR6vaWr3QEc=\")","v":{"$error":"#REF!"}},{"$f":"AND(#REF!,\"XR6vaWr3QEg=\")","v":{"$error":"#REF!"}},{"$f":"AND(#REF!,\"XR6vaWr3QEk=\")","v":{"$error":"#REF!"}},{"$f":"AND(#REF!,\"XR6vaWr3QEo=\")","v":{"$error":"#REF!"}},{"$f":"AND(#REF!,\"XR6vaWr3QEs=\")","v":{"$error":"#REF!"}},{"$f":"AND(#REF!,\"XR6vaWr3QEw=\")","v":{"$error":"#REF!"}},{"$f":"AND(#REF!,\"XR6vaWr3QE0=\")","v":{"$error":"#REF!"}},{"$f":"AND(#REF!,\"XR6vaWr3QE4=\")","v":{"$error":"#REF!"}},{"$f":"AND(#REF!,\"XR6vaWr3QE8=\")","v":{"$error":"#REF!"}},{"$f":"AND(#REF!,\"XR6vaWr3QFA=\")","v":{"$error":"#REF!"}},{"$f":"AND(#REF!,\"XR6vaWr3QFE=\")","v":{"$error":"#REF!"}},{"$f":"AND(#REF!,\"XR6vaWr3QFI=\")","v":{"$error":"#REF!"}},{"$f":"AND(#REF!,\"XR6vaWr3QFM=\")","v":{"$error":"#REF!"}},{"$f":"AND(#REF!,\"XR6vaWr3QFQ=\")","v":{"$error":"#REF!"}},{"$f":"AND(#REF!,\"XR6vaWr3QFU=\")","v":{"$error":"#REF!"}},{"$f":"IF(#REF!,\"XR6vaWr3QFY=\",0)","v":{"$error":"#REF!"}},{"$f":"AND(#REF!,\"XR6vaWr3QFc=\")","v":{"$error":"#REF!"}},{"$f":"AND(#REF!,\"XR6vaWr3QFg=\")","v":{"$error":"#REF!"}},{"$f":"AND(#REF!,\"XR6vaWr3QFk=\")","v":{"$error":"#REF!"}},{"$f":"AND(#REF!,\"XR6vaWr3QFo=\")","v":{"$error":"#REF!"}},{"$f":"AND(#REF!,\"XR6vaWr3QFs=\")","v":{"$error":"#REF!"}},{"$f":"AND(#REF!,\"XR6vaWr3QFw=\")","v":{"$error":"#REF!"}},{"$f":"AND(#REF!,\"XR6vaWr3QF0=\")","v":{"$error":"#REF!"}},{"$f":"AND(#REF!,\"XR6vaWr3QF4=\")","v":{"$error":"#REF!"}},{"$f":"AND(#REF!,\"XR6vaWr3QF8=\")","v":{"$error":"#REF!"}},{"$f":"AND(#REF!,\"XR6vaWr3QGA=\")","v":{"$error":"#REF!"}},{"$f":"AND(#REF!,\"XR6vaWr3QGE=\")","v":{"$error":"#REF!"}},{"$f":"AND(#REF!,\"XR6vaWr3QGI=\")","v":{"$error":"#REF!"}},{"$f":"AND(#REF!,\"XR6vaWr3QGM=\")","v":{"$error":"#REF!"}},{"$f":"AND(#REF!,\"XR6vaWr3QGQ=\")","v":{"$error":"#REF!"}},{"$f":"AND(#REF!,\"XR6vaWr3QGU=\")","v":{"$error":"#REF!"}},{"$f":"AND(#REF!,\"XR6vaWr3QGY=\")","v":{"$error":"#REF!"}},{"$f":"AND(#REF!,\"XR6vaWr3QGc=\")","v":{"$error":"#REF!"}},{"$f":"AND(#REF!,\"XR6vaWr3QGg=\")","v":{"$error":"#REF!"}},{"$f":"AND(#REF!,\"XR6vaWr3QGk=\")","v":{"$error":"#REF!"}},{"$f":"AND(#REF!,\"XR6vaWr3QGo=\")","v":{"$error":"#REF!"}},{"$f":"AND(#REF!,\"XR6vaWr3QGs=\")","v":{"$error":"#REF!"}},{"$f":"AND(#REF!,\"XR6vaWr3QGw=\")","v":{"$error":"#REF!"}},{"$f":"AND(#REF!,\"XR6vaWr3QG0=\")","v":{"$error":"#REF!"}},{"$f":"AND(#REF!,\"XR6vaWr3QG4=\")","v":{"$error":"#REF!"}},{"$f":"AND(#REF!,\"XR6vaWr3QG8=\")","v":{"$error":"#REF!"}},{"$f":"AND(#REF!,\"XR6vaWr3QHA=\")","v":{"$error":"#REF!"}},{"$f":"AND(#REF!,\"XR6vaWr3QHE=\")","v":{"$error":"#REF!"}},{"$f":"AND(#REF!,\"XR6vaWr3QHI=\")","v":{"$error":"#REF!"}},{"$f":"AND(#REF!,\"XR6vaWr3QHM=\")","v":{"$error":"#REF!"}},{"$f":"AND(#REF!,\"XR6vaWr3QHQ=\")","v":{"$error":"#REF!"}},{"$f":"AND(#REF!,\"XR6vaWr3QHU=\")","v":{"$error":"#REF!"}},{"$f":"IF(#REF!,\"XR6vaWr3QHY=\",0)","v":{"$error":"#REF!"}},{"$f":"IF(#REF!,\"XR6vaWr3QHc=\",0)","v":{"$error":"#REF!"}},{"$f":"IF(#REF!,\"XR6vaWr3QHg=\",0)","v":{"$error":"#REF!"}},{"$f":"IF(#REF!,\"XR6vaWr3QHk=\",0)","v":{"$error":"#REF!"}},{"$f":"IF(#REF!,\"XR6vaWr3QHo=\",0)","v":{"$error":"#REF!"}},{"$f":"IF(#REF!,\"XR6vaWr3QHs=\",0)","v":{"$error":"#REF!"}},{"$f":"IF(#REF!,\"XR6vaWr3QHw=\",0)","v":{"$error":"#REF!"}},{"$f":"IF(#REF!,\"XR6vaWr3QH0=\",0)","v":{"$error":"#REF!"}},{"$f":"IF(#REF!,\"XR6vaWr3QH4=\",0)","v":{"$error":"#REF!"}},{"$f":"IF(#REF!,\"XR6vaWr3QH8=\",0)","v":{"$error":"#REF!"}},{"$f":"IF(#REF!,\"XR6vaWr3QIA=\",0)","v":{"$error":"#REF!"}},{"$f":"IF(#REF!,\"XR6vaWr3QIE=\",0)","v":{"$error":"#REF!"}},{"$f":"IF(#REF!,\"XR6vaWr3QII=\",0)","v":{"$error":"#REF!"}},{"$f":"IF(#REF!,\"XR6vaWr3QIM=\",0)","v":{"$error":"#REF!"}},{"$f":"IF(#REF!,\"XR6vaWr3QIQ=\",0)","v":{"$error":"#REF!"}},{"$f":"IF(#REF!,\"XR6vaWr3QIU=\",0)","v":{"$error":"#REF!"}},{"$f":"IF(#REF!,\"XR6vaWr3QIY=\",0)","v":{"$error":"#REF!"}},{"$f":"IF(#REF!,\"XR6vaWr3QIc=\",0)","v":{"$error":"#REF!"}},{"$f":"IF(#REF!,\"XR6vaWr3QIg=\",0)","v":{"$error":"#REF!"}},{"$f":"IF(#REF!,\"XR6vaWr3QIk=\",0)","v":{"$error":"#REF!"}},{"$f":"IF(#REF!,\"XR6vaWr3QIo=\",0)","v":{"$error":"#REF!"}},{"$f":"IF(#REF!,\"XR6vaWr3QIs=\",0)","v":{"$error":"#REF!"}},{"$f":"IF(#REF!,\"XR6vaWr3QIw=\",0)","v":{"$error":"#REF!"}},{"$f":"IF(#REF!,\"XR6vaWr3QI0=\",0)","v":{"$error":"#REF!"}},{"$f":"IF(#REF!,\"XR6vaWr3QI4=\",0)","v":{"$error":"#REF!"}},{"$f":"IF(#REF!,\"XR6vaWr3QI8=\",0)","v":{"$error":"#REF!"}},{"$f":"IF(#REF!,\"XR6vaWr3QJA=\",0)","v":{"$error":"#REF!"}},{"$f":"IF(#REF!,\"XR6vaWr3QJE=\",0)","v":{"$error":"#REF!"}},{"$f":"IF(#REF!,\"XR6vaWr3QJI=\",0)","v":{"$error":"#REF!"}},{"$f":"IF(#REF!,\"XR6vaWr3QJM=\",0)","v":{"$error":"#REF!"}},{"$f":"IF(#REF!,\"XR6vaWr3QJQ=\",0)","v":{"$error":"#REF!"}},{"$f":"IF(#REF!,\"XR6vaWr3QJU=\",0)","v":{"$error":"#REF!"}},{"$f":"IF(#REF!,\"XR6vaWr3QJY=\",0)","v":{"$error":"#REF!"}},{"$f":"IF(#REF!,\"XR6vaWr3QJc=\",0)","v":{"$error":"#REF!"}},{"$f":"IF('Development Costs'!#REF!,\"XR6vaWr3QJg=\",0)","v":{"$error":"#REF!"}},{"$f":"AND('Development Costs'!#REF!,\"XR6vaWr3QJk=\")","v":{"$error":"#REF!"}},{"$f":"AND('Development Costs'!#REF!,\"XR6vaWr3QJo=\")","v":{"$error":"#REF!"}},{"$f":"AND('Development Costs'!#REF!,\"XR6vaWr3QJs=\")","v":{"$error":"#REF!"}},{"$f":"AND('Development Costs'!#REF!,\"XR6vaWr3QJw=\")","v":{"$error":"#REF!"}},{"$f":"AND('Development Costs'!#REF!,\"XR6vaWr3QJ0=\")","v":{"$error":"#REF!"}},{"$f":"AND('Development Costs'!#REF!,\"XR6vaWr3QJ4=\")","v":{"$error":"#REF!"}},{"$f":"AND('Development Costs'!#REF!,\"XR6vaWr3QJ8=\")","v":{"$error":"#REF!"}},{"$f":"AND('Development Costs'!#REF!,\"XR6vaWr3QKA=\")","v":{"$error":"#REF!"}},{"$f":"AND('Development Costs'!#REF!,\"XR6vaWr3QKE=\")","v":{"$error":"#REF!"}},{"$f":"AND('Development Costs'!#REF!,\"XR6vaWr3QKI=\")","v":{"$error":"#REF!"}},{"$f":"AND('Development Costs'!#REF!,\"XR6vaWr3QKM=\")","v":{"$error":"#REF!"}},{"$f":"AND('Development Costs'!#REF!,\"XR6vaWr3QKQ=\")","v":{"$error":"#REF!"}},{"$f":"AND('Development Costs'!#REF!,\"XR6vaWr3QKU=\")","v":{"$error":"#REF!"}},{"$f":"AND('Development Costs'!#REF!,\"XR6vaWr3QKY=\")","v":{"$error":"#REF!"}},{"$f":"AND('Development Costs'!#REF!,\"XR6vaWr3QKc=\")","v":{"$error":"#REF!"}},{"$f":"AND('Development Costs'!#REF!,\"XR6vaWr3QKg=\")","v":{"$error":"#REF!"}},{"$f":"IF('Development Costs'!#REF!,\"XR6vaWr3QKk=\",0)","v":{"$error":"#REF!"}},{"$f":"AND('Development Costs'!#REF!,\"XR6vaWr3QKo=\")","v":{"$error":"#REF!"}},{"$f":"AND('Development Costs'!#REF!,\"XR6vaWr3QKs=\")","v":{"$error":"#REF!"}},{"$f":"AND('Development Costs'!#REF!,\"XR6vaWr3QKw=\")","v":{"$error":"#REF!"}},{"$f":"AND('Development Costs'!#REF!,\"XR6vaWr3QK0=\")","v":{"$error":"#REF!"}},{"$f":"AND('Development Costs'!#REF!,\"XR6vaWr3QK4=\")","v":{"$error":"#REF!"}},{"$f":"AND('Development Costs'!#REF!,\"XR6vaWr3QK8=\")","v":{"$error":"#REF!"}},{"$f":"AND('Development Costs'!#REF!,\"XR6vaWr3QLA=\")","v":{"$error":"#REF!"}},{"$f":"AND('Development Costs'!#REF!,\"XR6vaWr3QLE=\")","v":{"$error":"#REF!"}},{"$f":"AND('Development Costs'!#REF!,\"XR6vaWr3QLI=\")","v":{"$error":"#REF!"}},{"$f":"AND('Development Costs'!#REF!,\"XR6vaWr3QLM=\")","v":{"$error":"#REF!"}},{"$f":"AND('Development Costs'!#REF!,\"XR6vaWr3QLQ=\")","v":{"$error":"#REF!"}},{"$f":"AND('Development Costs'!#REF!,\"XR6vaWr3QLU=\")","v":{"$error":"#REF!"}},{"$f":"AND('Development Costs'!#REF!,\"XR6vaWr3QLY=\")","v":{"$error":"#REF!"}},{"$f":"AND('Development Costs'!#REF!,\"XR6vaWr3QLc=\")","v":{"$error":"#REF!"}},{"$f":"AND('Development Costs'!#REF!,\"XR6vaWr3QLg=\")","v":{"$error":"#REF!"}},{"$f":"AND('Development Costs'!#REF!,\"XR6vaWr3QLk=\")","v":{"$error":"#REF!"}},{"$f":"IF('Development Costs'!#REF!,\"XR6vaWr3QLo=\",0)","v":{"$error":"#REF!"}},{"$f":"AND('Development Costs'!#REF!,\"XR6vaWr3QLs=\")","v":{"$error":"#REF!"}},{"$f":"AND('Development Costs'!#REF!,\"XR6vaWr3QLw=\")","v":{"$error":"#REF!"}},{"$f":"AND('Development Costs'!#REF!,\"XR6vaWr3QL0=\")","v":{"$error":"#REF!"}},{"$f":"AND('Development Costs'!#REF!,\"XR6vaWr3QL4=\")","v":{"$error":"#REF!"}},{"$f":"AND('Development Costs'!#REF!,\"XR6vaWr3QL8=\")","v":{"$error":"#REF!"}},{"$f":"AND('Development Costs'!#REF!,\"XR6vaWr3QMA=\")","v":{"$error":"#REF!"}},{"$f":"AND('Development Costs'!#REF!,\"XR6vaWr3QME=\")","v":{"$error":"#REF!"}},{"$f":"AND('Development Costs'!#REF!,\"XR6vaWr3QMI=\")","v":{"$error":"#REF!"}},{"$f":"AND('Development Costs'!#REF!,\"XR6vaWr3QMM=\")","v":{"$error":"#REF!"}},{"$f":"AND('Development Costs'!#REF!,\"XR6vaWr3QMQ=\")","v":{"$error":"#REF!"}},{"$f":"AND('Development Costs'!#REF!,\"XR6vaWr3QMU=\")","v":{"$error":"#REF!"}},{"$f":"AND('Development Costs'!#REF!,\"XR6vaWr3QMY=\")","v":{"$error":"#REF!"}},{"$f":"AND('Development Costs'!#REF!,\"XR6vaWr3QMc=\")","v":{"$error":"#REF!"}},{"$f":"AND('Development Costs'!#REF!,\"XR6vaWr3QMg=\")","v":{"$error":"#REF!"}},{"$f":"AND('Development Costs'!#REF!,\"XR6vaWr3QMk=\")","v":{"$error":"#REF!"}},{"$f":"AND('Development Costs'!#REF!,\"XR6vaWr3QMo=\")","v":{"$error":"#REF!"}},{"$f":"IF('Development Costs'!#REF!,\"XR6vaWr3QMs=\",0)","v":{"$error":"#REF!"}},{"$f":"AND('Development Costs'!#REF!,\"XR6vaWr3QMw=\")","v":{"$error":"#REF!"}},{"$f":"AND('Development Costs'!#REF!,\"XR6vaWr3QM0=\")","v":{"$error":"#REF!"}},{"$f":"AND('Development Costs'!#REF!,\"XR6vaWr3QM4=\")","v":{"$error":"#REF!"}},{"$f":"AND('Development Costs'!#REF!,\"XR6vaWr3QM8=\")","v":{"$error":"#REF!"}},{"$f":"AND('Development Costs'!#REF!,\"XR6vaWr3QNA=\")","v":{"$error":"#REF!"}},{"$f":"AND('Development Costs'!#REF!,\"XR6vaWr3QNE=\")","v":{"$error":"#REF!"}},{"$f":"AND('Development Costs'!#REF!,\"XR6vaWr3QNI=\")","v":{"$error":"#REF!"}},{"$f":"AND('Development Costs'!#REF!,\"XR6vaWr3QNM=\")","v":{"$error":"#REF!"}},{"$f":"AND('Development Costs'!#REF!,\"XR6vaWr3QNQ=\")","v":{"$error":"#REF!"}},{"$f":"AND('Development Costs'!#REF!,\"XR6vaWr3QNU=\")","v":{"$error":"#REF!"}},{"$f":"AND('Development Costs'!#REF!,\"XR6vaWr3QNY=\")","v":{"$error":"#REF!"}},{"$f":"AND('Development Costs'!#REF!,\"XR6vaWr3QNc=\")","v":{"$error":"#REF!"}},{"$f":"AND('Development Costs'!#REF!,\"XR6vaWr3QNg=\")","v":{"$error":"#REF!"}},{"$f":"AND('Development Costs'!#REF!,\"XR6vaWr3QNk=\")","v":{"$error":"#REF!"}},{"$f":"AND('Development Costs'!#REF!,\"XR6vaWr3QNo=\")","v":{"$error":"#REF!"}},{"$f":"AND('Development Costs'!#REF!,\"XR6vaWr3QNs=\")","v":{"$error":"#REF!"}},{"$f":"IF('Development Costs'!#REF!,\"XR6vaWr3QNw=\",0)","v":{"$error":"#REF!"}},{"$f":"AND('Development Costs'!#REF!,\"XR6vaWr3QN0=\")","v":{"$error":"#REF!"}},{"$f":"AND('Development Costs'!#REF!,\"XR6vaWr3QN4=\")","v":{"$error":"#REF!"}},{"$f":"AND('Development Costs'!#REF!,\"XR6vaWr3QN8=\")","v":{"$error":"#REF!"}},{"$f":"AND('Development Costs'!#REF!,\"XR6vaWr3QOA=\")","v":{"$error":"#REF!"}},{"$f":"AND('Development Costs'!#REF!,\"XR6vaWr3QOE=\")","v":{"$error":"#REF!"}},{"$f":"AND('Development Costs'!#REF!,\"XR6vaWr3QOI=\")","v":{"$error":"#REF!"}},{"$f":"AND('Development Costs'!#REF!,\"XR6vaWr3QOM=\")","v":{"$error":"#REF!"}},{"$f":"AND('Development Costs'!#REF!,\"XR6vaWr3QOQ=\")","v":{"$error":"#REF!"}},{"$f":"AND('Development Costs'!#REF!,\"XR6vaWr3QOU=\")","v":{"$error":"#REF!"}},{"$f":"AND('Development Costs'!#REF!,\"XR6vaWr3QOY=\")","v":{"$error":"#REF!"}},{"$f":"AND('Development Costs'!#REF!,\"XR6vaWr3QOc=\")","v":{"$error":"#REF!"}},{"$f":"AND('Development Costs'!#REF!,\"XR6vaWr3QOg=\")","v":{"$error":"#REF!"}},{"$f":"AND('Development Costs'!#REF!,\"XR6vaWr3QOk=\")","v":{"$error":"#REF!"}},{"$f":"AND('Development Costs'!#REF!,\"XR6vaWr3QOo=\")","v":{"$error":"#REF!"}},{"$f":"AND('Development Costs'!#REF!,\"XR6vaWr3QOs=\")","v":{"$error":"#REF!"}},{"$f":"AND('Development Costs'!#REF!,\"XR6vaWr3QOw=\")","v":{"$error":"#REF!"}},{"$f":"IF('Development Costs'!#REF!,\"XR6vaWr3QO0=\",0)","v":{"$error":"#REF!"}},{"$f":"AND('Development Costs'!#REF!,\"XR6vaWr3QO4=\")","v":{"$error":"#REF!"}},{"$f":"AND('Development Costs'!#REF!,\"XR6vaWr3QO8=\")","v":{"$error":"#REF!"}},{"$f":"AND('Development Costs'!#REF!,\"XR6vaWr3QPA=\")","v":{"$error":"#REF!"}},{"$f":"AND('Development Costs'!#REF!,\"XR6vaWr3QPE=\")","v":{"$error":"#REF!"}},{"$f":"AND('Development Costs'!#REF!,\"XR6vaWr3QPI=\")","v":{"$error":"#REF!"}},{"$f":"AND('Development Costs'!#REF!,\"XR6vaWr3QPM=\")","v":{"$error":"#REF!"}},{"$f":"AND('Development Costs'!#REF!,\"XR6vaWr3QPQ=\")","v":{"$error":"#REF!"}},{"$f":"AND('Development Costs'!#REF!,\"XR6vaWr3QPU=\")","v":{"$error":"#REF!"}},{"$f":"AND('Development Costs'!#REF!,\"XR6vaWr3QPY=\")","v":{"$error":"#REF!"}},{"$f":"AND('Development Costs'!#REF!,\"XR6vaWr3QPc=\")","v":{"$error":"#REF!"}},{"$f":"AND('Development Costs'!#REF!,\"XR6vaWr3QPg=\")","v":{"$error":"#REF!"}},{"$f":"AND('Development Costs'!#REF!,\"XR6vaWr3QPk=\")","v":{"$error":"#REF!"}},{"$f":"AND('Development Costs'!#REF!,\"XR6vaWr3QPo=\")","v":{"$error":"#REF!"}},{"$f":"AND('Development Costs'!#REF!,\"XR6vaWr3QPs=\")","v":{"$error":"#REF!"}},{"$f":"AND('Development Costs'!#REF!,\"XR6vaWr3QPw=\")","v":{"$error":"#REF!"}},{"$f":"AND('Development Costs'!#REF!,\"XR6vaWr3QP0=\")","v":{"$error":"#REF!"}},{"$f":"IF('Development Costs'!#REF!,\"XR6vaWr3QP4=\",0)","v":{"$error":"#REF!"}},{"$f":"AND('Development Costs'!#REF!,\"XR6vaWr3QP8=\")","v":{"$error":"#REF!"}}]
[{"$f":"AND('Development Costs'!#REF!,\"UELHMwyAJAA=\")","v":{"$error":"#REF!"}},{"$f":"AND('Development Costs'!#REF!,\"UELHMwyAJAE=\")","v":{"$error":"#REF!"}},{"$f":"AND('Development Costs'!#REF!,\"UELHMwyAJAI=\")","v":{"$error":"#REF!"}},{"$f":"AND('Development Costs'!#REF!,\"UELHMwyAJAM=\")","v":{"$error":"#REF!"}},{"$f":"AND('Development Costs'!#REF!,\"UELHMwyAJAQ=\")","v":{"$error":"#REF!"}},{"$f":"AND('Development Costs'!#REF!,\"UELHMwyAJAU=\")","v":{"$error":"#REF!"}},{"$f":"AND('Development Costs'!#REF!,\"UELHMwyAJAY=\")","v":{"$error":"#REF!"}},{"$f":"AND('Development Costs'!#REF!,\"UELHMwyAJAc=\")","v":{"$error":"#REF!"}},{"$f":"AND('Development Costs'!#REF!,\"UELHMwyAJAg=\")","v":{"$error":"#REF!"}},{"$f":"AND('Development Costs'!#REF!,\"UELHMwyAJAk=\")","v":{"$error":"#REF!"}},{"$f":"AND('Development Costs'!#REF!,\"UELHMwyAJAo=\")","v":{"$error":"#REF!"}},{"$f":"AND('Development Costs'!#REF!,\"UELHMwyAJAs=\")","v":{"$error":"#REF!"}},{"$f":"AND('Development Costs'!#REF!,\"UELHMwyAJAw=\")","v":{"$error":"#REF!"}},{"$f":"AND('Development Costs'!#REF!,\"UELHMwyAJA0=\")","v":{"$error":"#REF!"}},{"$f":"AND('Development Costs'!#REF!,\"UELHMwyAJA4=\")","v":{"$error":"#REF!"}},{"$f":"IF('Development Costs'!#REF!,\"UELHMwyAJA8=\",0)","v":{"$error":"#REF!"}},{"$f":"AND('Development Costs'!#REF!,\"UELHMwyAJBA=\")","v":{"$error":"#REF!"}},{"$f":"AND('Development Costs'!#REF!,\"UELHMwyAJBE=\")","v":{"$error":"#REF!"}},{"$f":"AND('Development Costs'!#REF!,\"UELHMwyAJBI=\")","v":{"$error":"#REF!"}},{"$f":"AND('Development Costs'!#REF!,\"UELHMwyAJBM=\")","v":{"$error":"#REF!"}},{"$f":"AND('Development Costs'!#REF!,\"UELHMwyAJBQ=\")","v":{"$error":"#REF!"}},{"$f":"AND('Development Costs'!#REF!,\"UELHMwyAJBU=\")","v":{"$error":"#REF!"}},{"$f":"AND('Development Costs'!#REF!,\"UELHMwyAJBY=\")","v":{"$error":"#REF!"}},{"$f":"AND('Development Costs'!#REF!,\"UELHMwyAJBc=\")","v":{"$error":"#REF!"}},{"$f":"AND('Development Costs'!#REF!,\"UELHMwyAJBg=\")","v":{"$error":"#REF!"}},{"$f":"AND('Development Costs'!#REF!,\"UELHMwyAJBk=\")","v":{"$error":"#REF!"}},{"$f":"AND('Development Costs'!#REF!,\"UELHMwyAJBo=\")","v":{"$error":"#REF!"}},{"$f":"AND('Development Costs'!#REF!,\"UELHMwyAJBs=\")","v":{"$error":"#REF!"}},{"$f":"AND('Development Costs'!#REF!,\"UELHMwyAJBw=\")","v":{"$error":"#REF!"}},{"$f":"AND('Development Costs'!#REF!,\"UELHMwyAJB0=\")","v":{"$error":"#REF!"}},{"$f":"AND('Development Costs'!#REF!,\"UELHMwyAJB4=\")","v":{"$error":"#REF!"}},{"$f":"AND('Development Costs'!#REF!,\"UELHMwyAJB8=\")","v":{"$error":"#REF!"}},{"$f":"IF('Development Costs'!#REF!,\"UELHMwyAJCA=\",0)","v":{"$error":"#REF!"}},{"$f":"AND('Development Costs'!#REF!,\"UELHMwyAJCE=\")","v":{"$error":"#REF!"}},{"$f":"AND('Development Costs'!#REF!,\"UELHMwyAJCI=\")","v":{"$error":"#REF!"}},{"$f":"AND('Development Costs'!#REF!,\"UELHMwyAJCM=\")","v":{"$error":"#REF!"}},{"$f":"AND('Development Costs'!#REF!,\"UELHMwyAJCQ=\")","v":{"$error":"#REF!"}},{"$f":"AND('Development Costs'!#REF!,\"UELHMwyAJCU=\")","v":{"$error":"#REF!"}},{"$f":"AND('Development Costs'!#REF!,\"UELHMwyAJCY=\")","v":{"$error":"#REF!"}},{"$f":"AND('Development Costs'!#REF!,\"UELHMwyAJCc=\")","v":{"$error":"#REF!"}},{"$f":"AND('Development Costs'!#REF!,\"UELHMwyAJCg=\")","v":{"$error":"#REF!"}},{"$f":"AND('Development Costs'!#REF!,\"UELHMwyAJCk=\")","v":{"$error":"#REF!"}},{"$f":"AND('Development Costs'!#REF!,\"UELHMwyAJCo=\")","v":{"$error":"#REF!"}},{"$f":"AND('Development Costs'!#REF!,\"UELHMwyAJCs=\")","v":{"$error":"#REF!"}},{"$f":"AND('Development Costs'!#REF!,\"UELHMwyAJCw=\")","v":{"$error":"#REF!"}},{"$f":"AND('Development Costs'!#REF!,\"UELHMwyAJC0=\")","v":{"$error":"#REF!"}},{"$f":"AND('Development Costs'!#REF!,\"UELHMwyAJC4=\")","v":{"$error":"#REF!"}},{"$f":"AND('Development Costs'!#REF!,\"UELHMwyAJC8=\")","v":{"$error":"#REF!"}},{"$f":"AND('Development Costs'!#REF!,\"UELHMwyAJDA=\")","v":{"$error":"#REF!"}},{"$f":"IF('Development Costs'!#REF!,\"UELHMwyAJDE=\",0)","v":{"$error":"#REF!"}},{"$f":"AND('Development Costs'!#REF!,\"UELHMwyAJDI=\")","v":{"$error":"#REF!"}},{"$f":"AND('Development Costs'!#REF!,\"UELHMwyAJDM=\")","v":{"$error":"#REF!"}},{"$f":"AND('Development Costs'!#REF!,\"UELHMwyAJDQ=\")","v":{"$error":"#REF!"}},{"$f":"AND('Development Costs'!#REF!,\"UELHMwyAJDU=\")","v":{"$error":"#REF!"}},{"$f":"AND('Development Costs'!#REF!,\"UELHMwyAJDY=\")","v":{"$error":"#REF!"}},{"$f":"AND('Development Costs'!#REF!,\"UELHMwyAJDc=\")","v":{"$error":"#REF!"}},{"$f":"AND('Development Costs'!#REF!,\"UELHMwyAJDg=\")","v":{"$error":"#REF!"}},{"$f":"AND('Development Costs'!#REF!,\"UELHMwyAJDk=\")","v":{"$error":"#REF!"}},{"$f":"AND('Development Costs'!#REF!,\"UELHMwyAJDo=\")","v":{"$error":"#REF!"}},{"$f":"AND('Development Costs'!#REF!,\"UELHMwyAJDs=\")","v":{"$error":"#REF!"}},{"$f":"AND('Development Costs'!#REF!,\"UELHMwyAJDw=\")","v":{"$error":"#REF!"}},{"$f":"AND('Development Costs'!#REF!,\"UELHMwyAJD0=\")","v":{"$error":"#REF!"}},{"$f":"AND('Development Costs'!#REF!,\"UELHMwyAJD4=\")","v":{"$error":"#REF!"}},{"$f":"AND('Development Costs'!#REF!,\"UELHMwyAJD8=\")","v":{"$error":"#REF!"}},{"$f":"AND('Development Costs'!#REF!,\"UELHMwyAJEA=\")","v":{"$error":"#REF!"}},{"$f":"AND('Development Costs'!#REF!,\"UELHMwyAJEE=\")","v":{"$error":"#REF!"}},{"$f":"IF('Development Costs'!#REF!,\"UELHMwyAJEI=\",0)","v":{"$error":"#REF!"}},{"$f":"AND('Development Costs'!#REF!,\"UELHMwyAJEM=\")","v":{"$error":"#REF!"}},{"$f":"AND('Development Costs'!#REF!,\"UELHMwyAJEQ=\")","v":{"$error":"#REF!"}},{"$f":"AND('Development Costs'!#REF!,\"UELHMwyAJEU=\")","v":{"$error":"#REF!"}},{"$f":"AND('Development Costs'!#REF!,\"UELHMwyAJEY=\")","v":{"$error":"#REF!"}},{"$f":"AND('Development Costs'!#REF!,\"UELHMwyAJEc=\")","v":{"$error":"#REF!"}},{"$f":"AND('Development Costs'!#REF!,\"UELHMwyAJEg=\")","v":{"$error":"#REF!"}},{"$f":"AND('Development Costs'!#REF!,\"UELHMwyAJEk=\")","v":{"$error":"#REF!"}},{"$f":"AND('Development Costs'!#REF!,\"UELHMwyAJEo=\")","v":{"$error":"#REF!"}},{"$f":"AND('Development Costs'!#REF!,\"UELHMwyAJEs=\")","v":{"$error":"#REF!"}},{"$f":"AND('Development Costs'!#REF!,\"UELHMwyAJEw=\")","v":{"$error":"#REF!"}},{"$f":"AND('Development Costs'!#REF!,\"UELHMwyAJE0=\")","v":{"$error":"#REF!"}},{"$f":"AND('Development Costs'!#REF!,\"UELHMwyAJE4=\")","v":{"$error":"#REF!"}},{"$f":"AND('Development Costs'!#REF!,\"UELHMwyAJE8=\")","v":{"$error":"#REF!"}},{"$f":"AND('Development Costs'!#REF!,\"UELHMwyAJFA=\")","v":{"$error":"#REF!"}},{"$f":"AND('Development Costs'!#REF!,\"UELHMwyAJFE=\")","v":{"$error":"#REF!"}},{"$f":"AND('Development Costs'!#REF!,\"UELHMwyAJFI=\")","v":{"$error":"#REF!"}},{"$f":"IF('Development Costs'!#REF!,\"UELHMwyAJFM=\",0)","v":{"$error":"#REF!"}},{"$f":"AND('Development Costs'!#REF!,\"UELHMwyAJFQ=\")","v":{"$error":"#REF!"}},{"$f":"AND('Development Costs'!#REF!,\"UELHMwyAJFU=\")","v":{"$error":"#REF!"}},{"$f":"AND('Development Costs'!#REF!,\"UELHMwyAJFY=\")","v":{"$error":"#REF!"}},{"$f":"AND('Development Costs'!#REF!,\"UELHMwyAJFc=\")","v":{"$error":"#REF!"}},{"$f":"AND('Development Costs'!#REF!,\"UELHMwyAJFg=\")","v":{"$error":"#REF!"}},{"$f":"AND('Development Costs'!#REF!,\"UELHMwyAJFk=\")","v":{"$error":"#REF!"}},{"$f":"AND('Development Costs'!#REF!,\"UELHMwyAJFo=\")","v":{"$error":"#REF!"}},{"$f":"AND('Development Costs'!#REF!,\"UELHMwyAJFs=\")","v":{"$error":"#REF!"}},{"$f":"AND('Development Costs'!#REF!,\"UELHMwyAJFw=\")","v":{"$error":"#REF!"}},{"$f":"AND('Development Costs'!#REF!,\"UELHMwyAJF0=\")","v":{"$error":"#REF!"}},{"$f":"AND('Development Costs'!#REF!,\"UELHMwyAJF4=\")","v":{"$error":"#REF!"}},{"$f":"AND('Development Costs'!#REF!,\"UELHMwyAJF8=\")","v":{"$error":"#REF!"}},{"$f":"AND('Development Costs'!#REF!,\"UELHMwyAJGA=\")","v":{"$error":"#REF!"}},{"$f":"AND('Development Costs'!#REF!,\"UELHMwyAJGE=\")","v":{"$error":"#REF!"}},{"$f":"AND('Development Costs'!#REF!,\"UELHMwyAJGI=\")","v":{"$error":"#REF!"}},{"$f":"AND('Development Costs'!#REF!,\"UELHMwyAJGM=\")","v":{"$error":"#REF!"}},{"$f":"IF('Development Costs'!#REF!,\"UELHMwyAJGQ=\",0)","v":{"$error":"#REF!"}},{"$f":"AND('Development Costs'!#REF!,\"UELHMwyAJGU=\")","v":{"$error":"#REF!"}},{"$f":"AND('Development Costs'!#REF!,\"UELHMwyAJGY=\")","v":{"$error":"#REF!"}},{"$f":"AND('Development Costs'!#REF!,\"UELHMwyAJGc=\")","v":{"$error":"#REF!"}},{"$f":"AND('Development Costs'!#REF!,\"UELHMwyAJGg=\")","v":{"$error":"#REF!"}},{"$f":"AND('Development Costs'!#REF!,\"UELHMwyAJGk=\")","v":{"$error":"#REF!"}},{"$f":"AND('Development Costs'!#REF!,\"UELHMwyAJGo=\")","v":{"$error":"#REF!"}},{"$f":"AND('Development Costs'!#REF!,\"UELHMwyAJGs=\")","v":{"$error":"#REF!"}},{"$f":"AND('Development Costs'!#REF!,\"UELHMwyAJGw=\")","v":{"$error":"#REF!"}},{"$f":"AND('Development Costs'!#REF!,\"UELHMwyAJG0=\")","v":{"$error":"#REF!"}},{"$f":"AND('Development Costs'!#REF!,\"UELHMwyAJG4=\")","v":{"$error":"#REF!"}},{"$f":"AND('Development Costs'!#REF!,\"UELHMwyAJG8=\")","v":{"$error":"#REF!"}},{"$f":"AND('Development Costs'!#REF!,\"UELHMwyAJHA=\")","v":{"$error":"#REF!"}},{"$f":"AND('Development Costs'!#REF!,\"UELHMwyAJHE=\")","v":{"$error":"#REF!"}},{"$f":"AND('Development Costs'!#REF!,\"UELHMwyAJHI=\")","v":{"$error":"#REF!"}},{"$f":"AND('Development Costs'!#REF!,\"UELHMwyAJHM=\")","v":{"$error":"#REF!"}},{"$f":"AND('Development Costs'!#REF!,\"UELHMwyAJHQ=\")","v":{"$error":"#REF!"}},{"$f":"IF('Development Costs'!#REF!,\"UELHMwyAJHU=\",0)","v":{"$error":"#REF!"}},{"$f":"AND('Development Costs'!#REF!,\"UELHMwyAJHY=\")","v":{"$error":"#REF!"}},{"$f":"AND('Development Costs'!#REF!,\"UELHMwyAJHc=\")","v":{"$error":"#REF!"}},{"$f":"AND('Development Costs'!#REF!,\"UELHMwyAJHg=\")","v":{"$error":"#REF!"}},{"$f":"AND('Development Costs'!#REF!,\"UELHMwyAJHk=\")","v":{"$error":"#REF!"}},{"$f":"AND('Development Costs'!#REF!,\"UELHMwyAJHo=\")","v":{"$error":"#REF!"}},{"$f":"AND('Development Costs'!#REF!,\"UELHMwyAJHs=\")","v":{"$error":"#REF!"}},{"$f":"AND('Development Costs'!#REF!,\"UELHMwyAJHw=\")","v":{"$error":"#REF!"}},{"$f":"AND('Development Costs'!#REF!,\"UELHMwyAJH0=\")","v":{"$error":"#REF!"}},{"$f":"AND('Development Costs'!#REF!,\"UELHMwyAJH4=\")","v":{"$error":"#REF!"}},{"$f":"AND('Development Costs'!#REF!,\"UELHMwyAJH8=\")","v":{"$error":"#REF!"}},{"$f":"AND('Development Costs'!#REF!,\"UELHMwyAJIA=\")","v":{"$error":"#REF!"}},{"$f":"AND('Development Costs'!#REF!,\"UELHMwyAJIE=\")","v":{"$error":"#REF!"}},{"$f":"AND('Development Costs'!#REF!,\"UELHMwyAJII=\")","v":{"$error":"#REF!"}},{"$f":"AND('Development Costs'!#REF!,\"UELHMwyAJIM=\")","v":{"$error":"#REF!"}},{"$f":"AND('Development Costs'!#REF!,\"UELHMwyAJIQ=\")","v":{"$error":"#REF!"}},{"$f":"AND('Development Costs'!#REF!,\"UELHMwyAJIU=\")","v":{"$error":"#REF!"}},{"$f":"IF('Development Costs'!#REF!,\"UELHMwyAJIY=\",0)","v":{"$error":"#REF!"}},{"$f":"AND('Development Costs'!#REF!,\"UELHMwyAJIc=\")","v":{"$error":"#REF!"}},{"$f":"AND('Development Costs'!#REF!,\"UELHMwyAJIg=\")","v":{"$error":"#REF!"}},{"$f":"AND('Development Costs'!#REF!,\"UELHMwyAJIk=\")","v":{"$error":"#REF!"}},{"$f":"AND('Development Costs'!#REF!,\"UELHMwyAJIo=\")","v":{"$error":"#REF!"}},{"$f":"AND('Development Costs'!#REF!,\"UELHMwyAJIs=\")","v":{"$error":"#REF!"}},{"$f":"AND('Development Costs'!#REF!,\"UELHMwyAJIw=\")","v":{"$error":"#REF!"}},{"$f":"AND('Development Costs'!#REF!,\"UELHMwyAJI0=\")","v":{"$error":"#REF!"}},{"$f":"AND('Development Costs'!#REF!,\"UELHMwyAJI4=\")","v":{"$error":"#REF!"}},{"$f":"AND('Development Costs'!#REF!,\"UELHMwyAJI8=\")","v":{"$error":"#REF!"}},{"$f":"AND('Development Costs'!#REF!,\"UELHMwyAJJA=\")","v":{"$error":"#REF!"}},{"$f":"AND('Development Costs'!#REF!,\"UELHMwyAJJE=\")","v":{"$error":"#REF!"}},{"$f":"AND('Development Costs'!#REF!,\"UELHMwyAJJI=\")","v":{"$error":"#REF!"}},{"$f":"AND('Development Costs'!#REF!,\"UELHMwyAJJM=\")","v":{"$error":"#REF!"}},{"$f":"AND('Development Costs'!#REF!,\"UELHMwyAJJQ=\")","v":{"$error":"#REF!"}},{"$f":"AND('Development Costs'!#REF!,\"UELHMwyAJJU=\")","v":{"$error":"#REF!"}},{"$f":"AND('Development Costs'!#REF!,\"UELHMwyAJJY=\")","v":{"$error":"#REF!"}},{"$f":"IF('Development Costs'!#REF!,\"UELHMwyAJJc=\",0)","v":{"$error":"#REF!"}},{"$f":"AND('Development Costs'!#REF!,\"UELHMwyAJJg=\")","v":{"$error":"#REF!"}},{"$f":"AND('Development Costs'!#REF!,\"UELHMwyAJJk=\")","v":{"$error":"#REF!"}},{"$f":"AND('Development Costs'!#REF!,\"UELHMwyAJJo=\")","v":{"$error":"#REF!"}},{"$f":"AND('Development Costs'!#REF!,\"UELHMwyAJJs=\")","v":{"$error":"#REF!"}},{"$f":"AND('Development Costs'!#REF!,\"UELHMwyAJJw=\")","v":{"$error":"#REF!"}},{"$f":"AND('Development Costs'!#REF!,\"UELHMwyAJJ0=\")","v":{"$error":"#REF!"}},{"$f":"AND('Development Costs'!#REF!,\"UELHMwyAJJ4=\")","v":{"$error":"#REF!"}},{"$f":"AND('Development Costs'!#REF!,\"UELHMwyAJJ8=\")","v":{"$error":"#REF!"}},{"$f":"AND('Development Costs'!#REF!,\"UELHMwyAJKA=\")","v":{"$error":"#REF!"}},{"$f":"AND('Development Costs'!#REF!,\"UELHMwyAJKE=\")","v":{"$error":"#REF!"}},{"$f":"AND('Development Costs'!#REF!,\"UELHMwyAJKI=\")","v":{"$error":"#REF!"}},{"$f":"AND('Development Costs'!#REF!,\"UELHMwyAJKM=\")","v":{"$error":"#REF!"}},{"$f":"AND('Development Costs'!#REF!,\"UELHMwyAJKQ=\")","v":{"$error":"#REF!"}},{"$f":"AND('Development Costs'!#REF!,\"UELHMwyAJKU=\")","v":{"$error":"#REF!"}},{"$f":"AND('Development Costs'!#REF!,\"UELHMwyAJKY=\")","v":{"$error":"#REF!"}},{"$f":"AND('Development Costs'!#REF!,\"UELHMwyAJKc=\")","v":{"$error":"#REF!"}},{"$f":"IF('Development Costs'!#REF!,\"UELHMwyAJKg=\",0)","v":{"$error":"#REF!"}},{"$f":"AND('Development Costs'!#REF!,\"UELHMwyAJKk=\")","v":{"$error":"#REF!"}},{"$f":"AND('Development Costs'!#REF!,\"UELHMwyAJKo=\")","v":{"$error":"#REF!"}},{"$f":"AND('Development Costs'!#REF!,\"UELHMwyAJKs=\")","v":{"$error":"#REF!"}},{"$f":"AND('Development Costs'!#REF!,\"UELHMwyAJKw=\")","v":{"$error":"#REF!"}},{"$f":"AND('Development Costs'!#REF!,\"UELHMwyAJK0=\")","v":{"$error":"#REF!"}},{"$f":"AND('Development Costs'!#REF!,\"UELHMwyAJK4=\")","v":{"$error":"#REF!"}},{"$f":"AND('Development Costs'!#REF!,\"UELHMwyAJK8=\")","v":{"$error":"#REF!"}},{"$f":"AND('Development Costs'!#REF!,\"UELHMwyAJLA=\")","v":{"$error":"#REF!"}},{"$f":"AND('Development Costs'!#REF!,\"UELHMwyAJLE=\")","v":{"$error":"#REF!"}},{"$f":"AND('Development Costs'!#REF!,\"UELHMwyAJLI=\")","v":{"$error":"#REF!"}},{"$f":"AND('Development Costs'!#REF!,\"UELHMwyAJLM=\")","v":{"$error":"#REF!"}},{"$f":"AND('Development Costs'!#REF!,\"UELHMwyAJLQ=\")","v":{"$error":"#REF!"}},{"$f":"AND('Development Costs'!#REF!,\"UELHMwyAJLU=\")","v":{"$error":"#REF!"}},{"$f":"AND('Development Costs'!#REF!,\"UELHMwyAJLY=\")","v":{"$error":"#REF!"}},{"$f":"AND('Development Costs'!#REF!,\"UELHMwyAJLc=\")","v":{"$error":"#REF!"}},{"$f":"AND('Development Costs'!#REF!,\"UELHMwyAJLg=\")","v":{"$error":"#REF!"}},{"$f":"IF('Development Costs'!#REF!,\"UELHMwyAJLk=\",0)","v":{"$error":"#REF!"}},{"$f":"AND('Development Costs'!#REF!,\"UELHMwyAJLo=\")","v":{"$error":"#REF!"}},{"$f":"AND('Development Costs'!#REF!,\"UELHMwyAJLs=\")","v":{"$error":"#REF!"}},{"$f":"AND('Development Costs'!#REF!,\"UELHMwyAJLw=\")","v":{"$error":"#REF!"}},{"$f":"AND('Development Costs'!#REF!,\"UELHMwyAJL0=\")","v":{"$error":"#REF!"}},{"$f":"AND('Development Costs'!#REF!,\"UELHMwyAJL4=\")","v":{"$error":"#REF!"}},{"$f":"AND('Development Costs'!#REF!,\"UELHMwyAJL8=\")","v":{"$error":"#REF!"}},{"$f":"AND('Development Costs'!#REF!,\"UELHMwyAJMA=\")","v":{"$error":"#REF!"}},{"$f":"AND('Development Costs'!#REF!,\"UELHMwyAJME=\")","v":{"$error":"#REF!"}},{"$f":"AND('Development Costs'!#REF!,\"UELHMwyAJMI=\")","v":{"$error":"#REF!"}},{"$f":"AND('Development Costs'!#REF!,\"UELHMwyAJMM=\")","v":{"$error":"#REF!"}},{"$f":"AND('Development Costs'!#REF!,\"UELHMwyAJMQ=\")","v":{"$error":"#REF!"}},{"$f":"AND('Development Costs'!#REF!,\"UELHMwyAJMU=\")","v":{"$error":"#REF!"}},{"$f":"AND('Development Costs'!#REF!,\"UELHMwyAJMY=\")","v":{"$error":"#REF!"}},{"$f":"AND('Development Costs'!#REF!,\"UELHMwyAJMc=\")","v":{"$error":"#REF!"}},{"$f":"AND('Development Costs'!#REF!,\"UELHMwyAJMg=\")","v":{"$error":"#REF!"}},{"$f":"AND('Development Costs'!#REF!,\"UELHMwyAJMk=\")","v":{"$error":"#REF!"}},{"$f":"IF('Development Costs'!#REF!,\"UELHMwyAJMo=\",0)","v":{"$error":"#REF!"}},{"$f":"AND('Development Costs'!#REF!,\"UELHMwyAJMs=\")","v":{"$error":"#REF!"}},{"$f":"AND('Development Costs'!#REF!,\"UELHMwyAJMw=\")","v":{"$error":"#REF!"}},{"$f":"AND('Development Costs'!#REF!,\"UELHMwyAJM0=\")","v":{"$error":"#REF!"}},{"$f":"AND('Development Costs'!#REF!,\"UELHMwyAJM4=\")","v":{"$error":"#REF!"}},{"$f":"AND('Development Costs'!#REF!,\"UELHMwyAJM8=\")","v":{"$error":"#REF!"}},{"$f":"AND('Development Costs'!#REF!,\"UELHMwyAJNA=\")","v":{"$error":"#REF!"}},{"$f":"AND('Development Costs'!#REF!,\"UELHMwyAJNE=\")","v":{"$error":"#REF!"}},{"$f":"AND('Development Costs'!#REF!,\"UELHMwyAJNI=\")","v":{"$error":"#REF!"}},{"$f":"AND('Development Costs'!#REF!,\"UELHMwyAJNM=\")","v":{"$error":"#REF!"}},{"$f":"AND('Development Costs'!#REF!,\"UELHMwyAJNQ=\")","v":{"$error":"#REF!"}},{"$f":"AND('Development Costs'!#REF!,\"UELHMwyAJNU=\")","v":{"$error":"#REF!"}},{"$f":"AND('Development Costs'!#REF!,\"UELHMwyAJNY=\")","v":{"$error":"#REF!"}},{"$f":"AND('Development Costs'!#REF!,\"UELHMwyAJNc=\")","v":{"$error":"#REF!"}},{"$f":"AND('Development Costs'!#REF!,\"UELHMwyAJNg=\")","v":{"$error":"#REF!"}},{"$f":"AND('Development Costs'!#REF!,\"UELHMwyAJNk=\")","v":{"$error":"#REF!"}},{"$f":"AND('Development Costs'!#REF!,\"UELHMwyAJNo=\")","v":{"$error":"#REF!"}},{"$f":"IF('Development Costs'!#REF!,\"UELHMwyAJNs=\",0)","v":{"$error":"#REF!"}},{"$f":"AND('Development Costs'!#REF!,\"UELHMwyAJNw=\")","v":{"$error":"#REF!"}},{"$f":"AND('Development Costs'!#REF!,\"UELHMwyAJN0=\")","v":{"$error":"#REF!"}},{"$f":"AND('Development Costs'!#REF!,\"UELHMwyAJN4=\")","v":{"$error":"#REF!"}},{"$f":"AND('Development Costs'!#REF!,\"UELHMwyAJN8=\")","v":{"$error":"#REF!"}},{"$f":"AND('Development Costs'!#REF!,\"UELHMwyAJOA=\")","v":{"$error":"#REF!"}},{"$f":"AND('Development Costs'!#REF!,\"UELHMwyAJOE=\")","v":{"$error":"#REF!"}},{"$f":"AND('Development Costs'!#REF!,\"UELHMwyAJOI=\")","v":{"$error":"#REF!"}},{"$f":"AND('Development Costs'!#REF!,\"UELHMwyAJOM=\")","v":{"$error":"#REF!"}},{"$f":"AND('Development Costs'!#REF!,\"UELHMwyAJOQ=\")","v":{"$error":"#REF!"}},{"$f":"AND('Development Costs'!#REF!,\"UELHMwyAJOU=\")","v":{"$error":"#REF!"}},{"$f":"AND('Development Costs'!#REF!,\"UELHMwyAJOY=\")","v":{"$error":"#REF!"}},{"$f":"AND('Development Costs'!#REF!,\"UELHMwyAJOc=\")","v":{"$error":"#REF!"}},{"$f":"AND('Development Costs'!#REF!,\"UELHMwyAJOg=\")","v":{"$error":"#REF!"}},{"$f":"AND('Development Costs'!#REF!,\"UELHMwyAJOk=\")","v":{"$error":"#REF!"}},{"$f":"AND('Development Costs'!#REF!,\"UELHMwyAJOo=\")","v":{"$error":"#REF!"}},{"$f":"AND('Development Costs'!#REF!,\"UELHMwyAJOs=\")","v":{"$error":"#REF!"}},{"$f":"IF('Development Costs'!#REF!,\"UELHMwyAJOw=\",0)","v":{"$error":"#REF!"}},{"$f":"AND('Development Costs'!#REF!,\"UELHMwyAJO0=\")","v":{"$error":"#REF!"}},{"$f":"AND('Development Costs'!#REF!,\"UELHMwyAJO4=\")","v":{"$error":"#REF!"}},{"$f":"AND('Development Costs'!#REF!,\"UELHMwyAJO8=\")","v":{"$error":"#REF!"}},{"$f":"AND('Development Costs'!#REF!,\"UELHMwyAJPA=\")","v":{"$error":"#REF!"}},{"$f":"AND('Development Costs'!#REF!,\"UELHMwyAJPE=\")","v":{"$error":"#REF!"}},{"$f":"AND('Development Costs'!#REF!,\"UELHMwyAJPI=\")","v":{"$error":"#REF!"}},{"$f":"AND('Development Costs'!#REF!,\"UELHMwyAJPM=\")","v":{"$error":"#REF!"}},{"$f":"AND('Development Costs'!#REF!,\"UELHMwyAJPQ=\")","v":{"$error":"#REF!"}},{"$f":"AND('Development Costs'!#REF!,\"UELHMwyAJPU=\")","v":{"$error":"#REF!"}},{"$f":"AND('Development Costs'!#REF!,\"UELHMwyAJPY=\")","v":{"$error":"#REF!"}},{"$f":"AND('Development Costs'!#REF!,\"UELHMwyAJPc=\")","v":{"$error":"#REF!"}},{"$f":"AND('Development Costs'!#REF!,\"UELHMwyAJPg=\")","v":{"$error":"#REF!"}},{"$f":"AND('Development Costs'!#REF!,\"UELHMwyAJPk=\")","v":{"$error":"#REF!"}},{"$f":"AND('Development Costs'!#REF!,\"UELHMwyAJPo=\")","v":{"$error":"#REF!"}},{"$f":"AND('Development Costs'!#REF!,\"UELHMwyAJPs=\")","v":{"$error":"#REF!"}},{"$f":"AND('Development Costs'!#REF!,\"UELHMwyAJPw=\")","v":{"$error":"#REF!"}},{"$f":"IF('Development Costs'!#REF!,\"UELHMwyAJP0=\",0)","v":{"$error":"#REF!"}},{"$f":"AND('Development Costs'!#REF!,\"UELHMwyAJP4=\")","v":{"$error":"#REF!"}},{"$f":"AND('Development Costs'!#REF!,\"UELHMwyAJP8=\")","v":{"$error":"#REF!"}}]
[{"$f":"AND('Development Costs'!#REF!,\"N/VkCjuaKgA=\")","v":{"$error":"#REF!"}},{"$f":"AND('Development Costs'!#REF!,\"N/VkCjuaKgE=\")","v":{"$error":"#REF!"}},{"$f":"AND('Development Costs'!#REF!,\"N/VkCjuaKgI=\")","v":{"$error":"#REF!"}},{"$f":"AND('Development Costs'!#REF!,\"N/VkCjuaKgM=\")","v":{"$error":"#REF!"}},{"$f":"AND('Development Costs'!#REF!,\"N/VkCjuaKgQ=\")","v":{"$error":"#REF!"}},{"$f":"AND('Development Costs'!#REF!,\"N/VkCjuaKgU=\")","v":{"$error":"#REF!"}},{"$f":"AND('Development Costs'!#REF!,\"N/VkCjuaKgY=\")","v":{"$error":"#REF!"}},{"$f":"AND('Development Costs'!#REF!,\"N/VkCjuaKgc=\")","v":{"$error":"#REF!"}},{"$f":"AND('Development Costs'!#REF!,\"N/VkCjuaKgg=\")","v":{"$error":"#REF!"}},{"$f":"AND('Development Costs'!#REF!,\"N/VkCjuaKgk=\")","v":{"$error":"#REF!"}},{"$f":"AND('Development Costs'!#REF!,\"N/VkCjuaKgo=\")","v":{"$error":"#REF!"}},{"$f":"AND('Development Costs'!#REF!,\"N/VkCjuaKgs=\")","v":{"$error":"#REF!"}},{"$f":"AND('Development Costs'!#REF!,\"N/VkCjuaKgw=\")","v":{"$error":"#REF!"}},{"$f":"AND('Development Costs'!#REF!,\"N/VkCjuaKg0=\")","v":{"$error":"#REF!"}},{"$f":"IF('Development Costs'!#REF!,\"N/VkCjuaKg4=\",0)","v":{"$error":"#REF!"}},{"$f":"AND('Development Costs'!#REF!,\"N/VkCjuaKg8=\")","v":{"$error":"#REF!"}},{"$f":"AND('Development Costs'!#REF!,\"N/VkCjuaKhA=\")","v":{"$error":"#REF!"}},{"$f":"AND('Development Costs'!#REF!,\"N/VkCjuaKhE=\")","v":{"$error":"#REF!"}},{"$f":"AND('Development Costs'!#REF!,\"N/VkCjuaKhI=\")","v":{"$error":"#REF!"}},{"$f":"AND('Development Costs'!#REF!,\"N/VkCjuaKhM=\")","v":{"$error":"#REF!"}},{"$f":"AND('Development Costs'!#REF!,\"N/VkCjuaKhQ=\")","v":{"$error":"#REF!"}},{"$f":"AND('Development Costs'!#REF!,\"N/VkCjuaKhU=\")","v":{"$error":"#REF!"}},{"$f":"AND('Development Costs'!#REF!,\"N/VkCjuaKhY=\")","v":{"$error":"#REF!"}},{"$f":"AND('Development Costs'!#REF!,\"N/VkCjuaKhc=\")","v":{"$error":"#REF!"}},{"$f":"AND('Development Costs'!#REF!,\"N/VkCjuaKhg=\")","v":{"$error":"#REF!"}},{"$f":"AND('Development Costs'!#REF!,\"N/VkCjuaKhk=\")","v":{"$error":"#REF!"}},{"$f":"AND('Development Costs'!#REF!,\"N/VkCjuaKho=\")","v":{"$error":"#REF!"}},{"$f":"AND('Development Costs'!#REF!,\"N/VkCjuaKhs=\")","v":{"$error":"#REF!"}},{"$f":"AND('Development Costs'!#REF!,\"N/VkCjuaKhw=\")","v":{"$error":"#REF!"}},{"$f":"AND('Development Costs'!#REF!,\"N/VkCjuaKh0=\")","v":{"$error":"#REF!"}},{"$f":"AND('Development Costs'!#REF!,\"N/VkCjuaKh4=\")","v":{"$error":"#REF!"}},{"$f":"IF('Development Costs'!#REF!,\"N/VkCjuaKh8=\",0)","v":{"$error":"#REF!"}},{"$f":"AND('Development Costs'!#REF!,\"N/VkCjuaKiA=\")","v":{"$error":"#REF!"}},{"$f":"AND('Development Costs'!#REF!,\"N/VkCjuaKiE=\")","v":{"$error":"#REF!"}},{"$f":"AND('Development Costs'!#REF!,\"N/VkCjuaKiI=\")","v":{"$error":"#REF!"}},{"$f":"AND('Development Costs'!#REF!,\"N/VkCjuaKiM=\")","v":{"$error":"#REF!"}},{"$f":"AND('Development Costs'!#REF!,\"N/VkCjuaKiQ=\")","v":{"$error":"#REF!"}},{"$f":"AND('Development Costs'!#REF!,\"N/VkCjuaKiU=\")","v":{"$error":"#REF!"}},{"$f":"AND('Development Costs'!#REF!,\"N/VkCjuaKiY=\")","v":{"$error":"#REF!"}},{"$f":"AND('Development Costs'!#REF!,\"N/VkCjuaKic=\")","v":{"$error":"#REF!"}},{"$f":"AND('Development Costs'!#REF!,\"N/VkCjuaKig=\")","v":{"$error":"#REF!"}},{"$f":"AND('Development Costs'!#REF!,\"N/VkCjuaKik=\")","v":{"$error":"#REF!"}},{"$f":"AND('Development Costs'!#REF!,\"N/VkCjuaKio=\")","v":{"$error":"#REF!"}},{"$f":"AND('Development Costs'!#REF!,\"N/VkCjuaKis=\")","v":{"$error":"#REF!"}},{"$f":"AND('Development Costs'!#REF!,\"N/VkCjuaKiw=\")","v":{"$error":"#REF!"}},{"$f":"AND('Development Costs'!#REF!,\"N/VkCjuaKi0=\")","v":{"$error":"#REF!"}},{"$f":"AND('Development Costs'!#REF!,\"N/VkCjuaKi4=\")","v":{"$error":"#REF!"}},{"$f":"AND('Development Costs'!#REF!,\"N/VkCjuaKi8=\")","v":{"$error":"#REF!"}},{"$f":"IF('Development Costs'!#REF!,\"N/VkCjuaKjA=\",0)","v":{"$error":"#REF!"}},{"$f":"AND('Development Costs'!#REF!,\"N/VkCjuaKjE=\")","v":{"$error":"#REF!"}},{"$f":"AND('Development Costs'!#REF!,\"N/VkCjuaKjI=\")","v":{"$error":"#REF!"}},{"$f":"AND('Development Costs'!#REF!,\"N/VkCjuaKjM=\")","v":{"$error":"#REF!"}},{"$f":"AND('Development Costs'!#REF!,\"N/VkCjuaKjQ=\")","v":{"$error":"#REF!"}},{"$f":"AND('Development Costs'!#REF!,\"N/VkCjuaKjU=\")","v":{"$error":"#REF!"}},{"$f":"AND('Development Costs'!#REF!,\"N/VkCjuaKjY=\")","v":{"$error":"#REF!"}},{"$f":"AND('Development Costs'!#REF!,\"N/VkCjuaKjc=\")","v":{"$error":"#REF!"}},{"$f":"AND('Development Costs'!#REF!,\"N/VkCjuaKjg=\")","v":{"$error":"#REF!"}},{"$f":"AND('Development Costs'!#REF!,\"N/VkCjuaKjk=\")","v":{"$error":"#REF!"}},{"$f":"AND('Development Costs'!#REF!,\"N/VkCjuaKjo=\")","v":{"$error":"#REF!"}},{"$f":"AND('Development Costs'!#REF!,\"N/VkCjuaKjs=\")","v":{"$error":"#REF!"}},{"$f":"AND('Development Costs'!#REF!,\"N/VkCjuaKjw=\")","v":{"$error":"#REF!"}},{"$f":"AND('Development Costs'!#REF!,\"N/VkCjuaKj0=\")","v":{"$error":"#REF!"}},{"$f":"AND('Development Costs'!#REF!,\"N/VkCjuaKj4=\")","v":{"$error":"#REF!"}},{"$f":"AND('Development Costs'!#REF!,\"N/VkCjuaKj8=\")","v":{"$error":"#REF!"}},{"$f":"AND('Development Costs'!#REF!,\"N/VkCjuaKkA=\")","v":{"$error":"#REF!"}},{"$f":"IF('Development Costs'!#REF!,\"N/VkCjuaKkE=\",0)","v":{"$error":"#REF!"}},{"$f":"AND('Development Costs'!#REF!,\"N/VkCjuaKkI=\")","v":{"$error":"#REF!"}},{"$f":"AND('Development Costs'!#REF!,\"N/VkCjuaKkM=\")","v":{"$error":"#REF!"}},{"$f":"AND('Development Costs'!#REF!,\"N/VkCjuaKkQ=\")","v":{"$error":"#REF!"}},{"$f":"AND('Development Costs'!#REF!,\"N/VkCjuaKkU=\")","v":{"$error":"#REF!"}},{"$f":"AND('Development Costs'!#REF!,\"N/VkCjuaKkY=\")","v":{"$error":"#REF!"}},{"$f":"AND('Development Costs'!#REF!,\"N/VkCjuaKkc=\")","v":{"$error":"#REF!"}},{"$f":"AND('Development Costs'!#REF!,\"N/VkCjuaKkg=\")","v":{"$error":"#REF!"}},{"$f":"AND('Development Costs'!#REF!,\"N/VkCjuaKkk=\")","v":{"$error":"#REF!"}},{"$f":"AND('Development Costs'!#REF!,\"N/VkCjuaKko=\")","v":{"$error":"#REF!"}},{"$f":"AND('Development Costs'!#REF!,\"N/VkCjuaKks=\")","v":{"$error":"#REF!"}},{"$f":"AND('Development Costs'!#REF!,\"N/VkCjuaKkw=\")","v":{"$error":"#REF!"}},{"$f":"AND('Development Costs'!#REF!,\"N/VkCjuaKk0=\")","v":{"$error":"#REF!"}},{"$f":"AND('Development Costs'!#REF!,\"N/VkCjuaKk4=\")","v":{"$error":"#REF!"}},{"$f":"AND('Development Costs'!#REF!,\"N/VkCjuaKk8=\")","v":{"$error":"#REF!"}},{"$f":"AND('Development Costs'!#REF!,\"N/VkCjuaKlA=\")","v":{"$error":"#REF!"}},{"$f":"AND('Development Costs'!#REF!,\"N/VkCjuaKlE=\")","v":{"$error":"#REF!"}},{"$f":"IF('Development Costs'!#REF!,\"N/VkCjuaKlI=\",0)","v":{"$error":"#REF!"}},{"$f":"AND('Development Costs'!#REF!,\"N/VkCjuaKlM=\")","v":{"$error":"#REF!"}},{"$f":"AND('Development Costs'!#REF!,\"N/VkCjuaKlQ=\")","v":{"$error":"#REF!"}},{"$f":"AND('Development Costs'!#REF!,\"N/VkCjuaKlU=\")","v":{"$error":"#REF!"}},{"$f":"AND('Development Costs'!#REF!,\"N/VkCjuaKlY=\")","v":{"$error":"#REF!"}},{"$f":"AND('Development Costs'!#REF!,\"N/VkCjuaKlc=\")","v":{"$error":"#REF!"}},{"$f":"AND('Development Costs'!#REF!,\"N/VkCjuaKlg=\")","v":{"$error":"#REF!"}},{"$f":"AND('Development Costs'!#REF!,\"N/VkCjuaKlk=\")","v":{"$error":"#REF!"}},{"$f":"AND('Development Costs'!#REF!,\"N/VkCjuaKlo=\")","v":{"$error":"#REF!"}},{"$f":"AND('Development Costs'!#REF!,\"N/VkCjuaKls=\")","v":{"$error":"#REF!"}},{"$f":"AND('Development Costs'!#REF!,\"N/VkCjuaKlw=\")","v":{"$error":"#REF!"}},{"$f":"AND('Development Costs'!#REF!,\"N/VkCjuaKl0=\")","v":{"$error":"#REF!"}},{"$f":"AND('Development Costs'!#REF!,\"N/VkCjuaKl4=\")","v":{"$error":"#REF!"}},{"$f":"AND('Development Costs'!#REF!,\"N/VkCjuaKl8=\")","v":{"$error":"#REF!"}},{"$f":"AND('Development Costs'!#REF!,\"N/VkCjuaKmA=\")","v":{"$error":"#REF!"}},{"$f":"AND('Development Costs'!#REF!,\"N/VkCjuaKmE=\")","v":{"$error":"#REF!"}},{"$f":"AND('Development Costs'!#REF!,\"N/VkCjuaKmI=\")","v":{"$error":"#REF!"}},{"$f":"IF('Development Costs'!#REF!,\"N/VkCjuaKmM=\",0)","v":{"$error":"#REF!"}},{"$f":"AND('Development Costs'!#REF!,\"N/VkCjuaKmQ=\")","v":{"$error":"#REF!"}},{"$f":"AND('Development Costs'!#REF!,\"N/VkCjuaKmU=\")","v":{"$error":"#REF!"}},{"$f":"AND('Development Costs'!#REF!,\"N/VkCjuaKmY=\")","v":{"$error":"#REF!"}},{"$f":"AND('Development Costs'!#REF!,\"N/VkCjuaKmc=\")","v":{"$error":"#REF!"}},{"$f":"AND('Development Costs'!#REF!,\"N/VkCjuaKmg=\")","v":{"$error":"#REF!"}},{"$f":"AND('Development Costs'!#REF!,\"N/VkCjuaKmk=\")","v":{"$error":"#REF!"}},{"$f":"AND('Development Costs'!#REF!,\"N/VkCjuaKmo=\")","v":{"$error":"#REF!"}},{"$f":"AND('Development Costs'!#REF!,\"N/VkCjuaKms=\")","v":{"$error":"#REF!"}},{"$f":"AND('Development Costs'!#REF!,\"N/VkCjuaKmw=\")","v":{"$error":"#REF!"}},{"$f":"AND('Development Costs'!#REF!,\"N/VkCjuaKm0=\")","v":{"$error":"#REF!"}},{"$f":"AND('Development Costs'!#REF!,\"N/VkCjuaKm4=\")","v":{"$error":"#REF!"}},{"$f":"AND('Development Costs'!#REF!,\"N/VkCjuaKm8=\")","v":{"$error":"#REF!"}},{"$f":"AND('Development Costs'!#REF!,\"N/VkCjuaKnA=\")","v":{"$error":"#REF!"}},{"$f":"AND('Development Costs'!#REF!,\"N/VkCjuaKnE=\")","v":{"$error":"#REF!"}},{"$f":"AND('Development Costs'!#REF!,\"N/VkCjuaKnI=\")","v":{"$error":"#REF!"}},{"$f":"AND('Development Costs'!#REF!,\"N/VkCjuaKnM=\")","v":{"$error":"#REF!"}},{"$f":"IF('Development Costs'!#REF!,\"N/VkCjuaKnQ=\",0)","v":{"$error":"#REF!"}},{"$f":"AND('Development Costs'!#REF!,\"N/VkCjuaKnU=\")","v":{"$error":"#REF!"}},{"$f":"AND('Development Costs'!#REF!,\"N/VkCjuaKnY=\")","v":{"$error":"#REF!"}},{"$f":"AND('Development Costs'!#REF!,\"N/VkCjuaKnc=\")","v":{"$error":"#REF!"}},{"$f":"AND('Development Costs'!#REF!,\"N/VkCjuaKng=\")","v":{"$error":"#REF!"}},{"$f":"AND('Development Costs'!#REF!,\"N/VkCjuaKnk=\")","v":{"$error":"#REF!"}},{"$f":"AND('Development Costs'!#REF!,\"N/VkCjuaKno=\")","v":{"$error":"#REF!"}},{"$f":"AND('Development Costs'!#REF!,\"N/VkCjuaKns=\")","v":{"$error":"#REF!"}},{"$f":"AND('Development Costs'!#REF!,\"N/VkCjuaKnw=\")","v":{"$error":"#REF!"}},{"$f":"AND('Development Costs'!#REF!,\"N/VkCjuaKn0=\")","v":{"$error":"#REF!"}},{"$f":"AND('Development Costs'!#REF!,\"N/VkCjuaKn4=\")","v":{"$error":"#REF!"}},{"$f":"AND('Development Costs'!#REF!,\"N/VkCjuaKn8=\")","v":{"$error":"#REF!"}},{"$f":"AND('Development Costs'!#REF!,\"N/VkCjuaKoA=\")","v":{"$error":"#REF!"}},{"$f":"AND('Development Costs'!#REF!,\"N/VkCjuaKoE=\")","v":{"$error":"#REF!"}},{"$f":"AND('Development Costs'!#REF!,\"N/VkCjuaKoI=\")","v":{"$error":"#REF!"}},{"$f":"AND('Development Costs'!#REF!,\"N/VkCjuaKoM=\")","v":{"$error":"#REF!"}},{"$f":"AND('Development Costs'!#REF!,\"N/VkCjuaKoQ=\")","v":{"$error":"#REF!"}},{"$f":"IF('Development Costs'!#REF!,\"N/VkCjuaKoU=\",0)","v":{"$error":"#REF!"}},{"$f":"AND('Development Costs'!#REF!,\"N/VkCjuaKoY=\")","v":{"$error":"#REF!"}},{"$f":"AND('Development Costs'!#REF!,\"N/VkCjuaKoc=\")","v":{"$error":"#REF!"}},{"$f":"AND('Development Costs'!#REF!,\"N/VkCjuaKog=\")","v":{"$error":"#REF!"}},{"$f":"AND('Development Costs'!#REF!,\"N/VkCjuaKok=\")","v":{"$error":"#REF!"}},{"$f":"AND('Development Costs'!#REF!,\"N/VkCjuaKoo=\")","v":{"$error":"#REF!"}},{"$f":"AND('Development Costs'!#REF!,\"N/VkCjuaKos=\")","v":{"$error":"#REF!"}},{"$f":"AND('Development Costs'!#REF!,\"N/VkCjuaKow=\")","v":{"$error":"#REF!"}},{"$f":"AND('Development Costs'!#REF!,\"N/VkCjuaKo0=\")","v":{"$error":"#REF!"}},{"$f":"AND('Development Costs'!#REF!,\"N/VkCjuaKo4=\")","v":{"$error":"#REF!"}},{"$f":"AND('Development Costs'!#REF!,\"N/VkCjuaKo8=\")","v":{"$error":"#REF!"}},{"$f":"AND('Development Costs'!#REF!,\"N/VkCjuaKpA=\")","v":{"$error":"#REF!"}},{"$f":"AND('Development Costs'!#REF!,\"N/VkCjuaKpE=\")","v":{"$error":"#REF!"}},{"$f":"AND('Development Costs'!#REF!,\"N/VkCjuaKpI=\")","v":{"$error":"#REF!"}},{"$f":"AND('Development Costs'!#REF!,\"N/VkCjuaKpM=\")","v":{"$error":"#REF!"}},{"$f":"AND('Development Costs'!#REF!,\"N/VkCjuaKpQ=\")","v":{"$error":"#REF!"}},{"$f":"AND('Development Costs'!#REF!,\"N/VkCjuaKpU=\")","v":{"$error":"#REF!"}},{"$f":"IF('Development Costs'!#REF!,\"N/VkCjuaKpY=\",0)","v":{"$error":"#REF!"}},{"$f":"AND('Development Costs'!#REF!,\"N/VkCjuaKpc=\")","v":{"$error":"#REF!"}},{"$f":"AND('Development Costs'!#REF!,\"N/VkCjuaKpg=\")","v":{"$error":"#REF!"}},{"$f":"AND('Development Costs'!#REF!,\"N/VkCjuaKpk=\")","v":{"$error":"#REF!"}},{"$f":"AND('Development Costs'!#REF!,\"N/VkCjuaKpo=\")","v":{"$error":"#REF!"}},{"$f":"AND('Development Costs'!#REF!,\"N/VkCjuaKps=\")","v":{"$error":"#REF!"}},{"$f":"AND('Development Costs'!#REF!,\"N/VkCjuaKpw=\")","v":{"$error":"#REF!"}},{"$f":"AND('Development Costs'!#REF!,\"N/VkCjuaKp0=\")","v":{"$error":"#REF!"}},{"$f":"AND('Development Costs'!#REF!,\"N/VkCjuaKp4=\")","v":{"$error":"#REF!"}},{"$f":"AND('Development Costs'!#REF!,\"N/VkCjuaKp8=\")","v":{"$error":"#REF!"}},{"$f":"AND('Development Costs'!#REF!,\"N/VkCjuaKqA=\")","v":{"$error":"#REF!"}},{"$f":"AND('Development Costs'!#REF!,\"N/VkCjuaKqE=\")","v":{"$error":"#REF!"}},{"$f":"AND('Development Costs'!#REF!,\"N/VkCjuaKqI=\")","v":{"$error":"#REF!"}},{"$f":"AND('Development Costs'!#REF!,\"N/VkCjuaKqM=\")","v":{"$error":"#REF!"}},{"$f":"AND('Development Costs'!#REF!,\"N/VkCjuaKqQ=\")","v":{"$error":"#REF!"}},{"$f":"AND('Development Costs'!#REF!,\"N/VkCjuaKqU=\")","v":{"$error":"#REF!"}},{"$f":"AND('Development Costs'!#REF!,\"N/VkCjuaKqY=\")","v":{"$error":"#REF!"}},{"$f":"IF('Development Costs'!#REF!,\"N/VkCjuaKqc=\",0)","v":{"$error":"#REF!"}},{"$f":"AND('Development Costs'!#REF!,\"N/VkCjuaKqg=\")","v":{"$error":"#REF!"}},{"$f":"AND('Development Costs'!#REF!,\"N/VkCjuaKqk=\")","v":{"$error":"#REF!"}},{"$f":"AND('Development Costs'!#REF!,\"N/VkCjuaKqo=\")","v":{"$error":"#REF!"}},{"$f":"AND('Development Costs'!#REF!,\"N/VkCjuaKqs=\")","v":{"$error":"#REF!"}},{"$f":"AND('Development Costs'!#REF!,\"N/VkCjuaKqw=\")","v":{"$error":"#REF!"}},{"$f":"AND('Development Costs'!#REF!,\"N/VkCjuaKq0=\")","v":{"$error":"#REF!"}},{"$f":"AND('Development Costs'!#REF!,\"N/VkCjuaKq4=\")","v":{"$error":"#REF!"}},{"$f":"AND('Development Costs'!#REF!,\"N/VkCjuaKq8=\")","v":{"$error":"#REF!"}},{"$f":"AND('Development Costs'!#REF!,\"N/VkCjuaKrA=\")","v":{"$error":"#REF!"}},{"$f":"AND('Development Costs'!#REF!,\"N/VkCjuaKrE=\")","v":{"$error":"#REF!"}},{"$f":"AND('Development Costs'!#REF!,\"N/VkCjuaKrI=\")","v":{"$error":"#REF!"}},{"$f":"AND('Development Costs'!#REF!,\"N/VkCjuaKrM=\")","v":{"$error":"#REF!"}},{"$f":"AND('Development Costs'!#REF!,\"N/VkCjuaKrQ=\")","v":{"$error":"#REF!"}},{"$f":"AND('Development Costs'!#REF!,\"N/VkCjuaKrU=\")","v":{"$error":"#REF!"}},{"$f":"AND('Development Costs'!#REF!,\"N/VkCjuaKrY=\")","v":{"$error":"#REF!"}},{"$f":"AND('Development Costs'!#REF!,\"N/VkCjuaKrc=\")","v":{"$error":"#REF!"}},{"$f":"IF('Development Costs'!#REF!,\"N/VkCjuaKrg=\",0)","v":{"$error":"#REF!"}},{"$f":"AND('Development Costs'!#REF!,\"N/VkCjuaKrk=\")","v":{"$error":"#REF!"}},{"$f":"AND('Development Costs'!#REF!,\"N/VkCjuaKro=\")","v":{"$error":"#REF!"}},{"$f":"AND('Development Costs'!#REF!,\"N/VkCjuaKrs=\")","v":{"$error":"#REF!"}},{"$f":"AND('Development Costs'!#REF!,\"N/VkCjuaKrw=\")","v":{"$error":"#REF!"}},{"$f":"AND('Development Costs'!#REF!,\"N/VkCjuaKr0=\")","v":{"$error":"#REF!"}},{"$f":"AND('Development Costs'!#REF!,\"N/VkCjuaKr4=\")","v":{"$error":"#REF!"}},{"$f":"AND('Development Costs'!#REF!,\"N/VkCjuaKr8=\")","v":{"$error":"#REF!"}},{"$f":"AND('Development Costs'!#REF!,\"N/VkCjuaKsA=\")","v":{"$error":"#REF!"}},{"$f":"AND('Development Costs'!#REF!,\"N/VkCjuaKsE=\")","v":{"$error":"#REF!"}},{"$f":"AND('Development Costs'!#REF!,\"N/VkCjuaKsI=\")","v":{"$error":"#REF!"}},{"$f":"AND('Development Costs'!#REF!,\"N/VkCjuaKsM=\")","v":{"$error":"#REF!"}},{"$f":"AND('Development Costs'!#REF!,\"N/VkCjuaKsQ=\")","v":{"$error":"#REF!"}},{"$f":"AND('Development Costs'!#REF!,\"N/VkCjuaKsU=\")","v":{"$error":"#REF!"}},{"$f":"AND('Development Costs'!#REF!,\"N/VkCjuaKsY=\")","v":{"$error":"#REF!"}},{"$f":"AND('Development Costs'!#REF!,\"N/VkCjuaKsc=\")","v":{"$error":"#REF!"}},{"$f":"AND('Development Costs'!#REF!,\"N/VkCjuaKsg=\")","v":{"$error":"#REF!"}},{"$f":"IF('Development Costs'!#REF!,\"N/VkCjuaKsk=\",0)","v":{"$error":"#REF!"}},{"$f":"AND('Development Costs'!#REF!,\"N/VkCjuaKso=\")","v":{"$error":"#REF!"}},{"$f":"AND('Development Costs'!#REF!,\"N/VkCjuaKss=\")","v":{"$error":"#REF!"}},{"$f":"AND('Development Costs'!#REF!,\"N/VkCjuaKsw=\")","v":{"$error":"#REF!"}},{"$f":"AND('Development Costs'!#REF!,\"N/VkCjuaKs0=\")","v":{"$error":"#REF!"}},{"$f":"AND('Development Costs'!#REF!,\"N/VkCjuaKs4=\")","v":{"$error":"#REF!"}},{"$f":"AND('Development Costs'!#REF!,\"N/VkCjuaKs8=\")","v":{"$error":"#REF!"}},{"$f":"AND('Development Costs'!#REF!,\"N/VkCjuaKtA=\")","v":{"$error":"#REF!"}},{"$f":"AND('Development Costs'!#REF!,\"N/VkCjuaKtE=\")","v":{"$error":"#REF!"}},{"$f":"AND('Development Costs'!#REF!,\"N/VkCjuaKtI=\")","v":{"$error":"#REF!"}},{"$f":"AND('Development Costs'!#REF!,\"N/VkCjuaKtM=\")","v":{"$error":"#REF!"}},{"$f":"AND('Development Costs'!#REF!,\"N/VkCjuaKtQ=\")","v":{"$error":"#REF!"}},{"$f":"AND('Development Costs'!#REF!,\"N/VkCjuaKtU=\")","v":{"$error":"#REF!"}},{"$f":"AND('Development Costs'!#REF!,\"N/VkCjuaKtY=\")","v":{"$error":"#REF!"}},{"$f":"AND('Development Costs'!#REF!,\"N/VkCjuaKtc=\")","v":{"$error":"#REF!"}},{"$f":"AND('Development Costs'!#REF!,\"N/VkCjuaKtg=\")","v":{"$error":"#REF!"}},{"$f":"AND('Development Costs'!#REF!,\"N/VkCjuaKtk=\")","v":{"$error":"#REF!"}},{"$f":"IF('Development Costs'!#REF!,\"N/VkCjuaKto=\",0)","v":{"$error":"#REF!"}},{"$f":"AND('Development Costs'!#REF!,\"N/VkCjuaKts=\")","v":{"$error":"#REF!"}},{"$f":"AND('Development Costs'!#REF!,\"N/VkCjuaKtw=\")","v":{"$error":"#REF!"}},{"$f":"AND('Development Costs'!#REF!,\"N/VkCjuaKt0=\")","v":{"$error":"#REF!"}},{"$f":"AND('Development Costs'!#REF!,\"N/VkCjuaKt4=\")","v":{"$error":"#REF!"}},{"$f":"AND('Development Costs'!#REF!,\"N/VkCjuaKt8=\")","v":{"$error":"#REF!"}},{"$f":"AND('Development Costs'!#REF!,\"N/VkCjuaKuA=\")","v":{"$error":"#REF!"}},{"$f":"AND('Development Costs'!#REF!,\"N/VkCjuaKuE=\")","v":{"$error":"#REF!"}},{"$f":"AND('Development Costs'!#REF!,\"N/VkCjuaKuI=\")","v":{"$error":"#REF!"}},{"$f":"AND('Development Costs'!#REF!,\"N/VkCjuaKuM=\")","v":{"$error":"#REF!"}},{"$f":"AND('Development Costs'!#REF!,\"N/VkCjuaKuQ=\")","v":{"$error":"#REF!"}},{"$f":"AND('Development Costs'!#REF!,\"N/VkCjuaKuU=\")","v":{"$error":"#REF!"}},{"$f":"AND('Development Costs'!#REF!,\"N/VkCjuaKuY=\")","v":{"$error":"#REF!"}},{"$f":"AND('Development Costs'!#REF!,\"N/VkCjuaKuc=\")","v":{"$error":"#REF!"}},{"$f":"AND('Development Costs'!#REF!,\"N/VkCjuaKug=\")","v":{"$error":"#REF!"}},{"$f":"AND('Development Costs'!#REF!,\"N/VkCjuaKuk=\")","v":{"$error":"#REF!"}},{"$f":"AND('Development Costs'!#REF!,\"N/VkCjuaKuo=\")","v":{"$error":"#REF!"}},{"$f":"IF('Development Costs'!#REF!,\"N/VkCjuaKus=\",0)","v":{"$error":"#REF!"}},{"$f":"AND('Development Costs'!#REF!,\"N/VkCjuaKuw=\")","v":{"$error":"#REF!"}},{"$f":"AND('Development Costs'!#REF!,\"N/VkCjuaKu0=\")","v":{"$error":"#REF!"}},{"$f":"AND('Development Costs'!#REF!,\"N/VkCjuaKu4=\")","v":{"$error":"#REF!"}},{"$f":"AND('Development Costs'!#REF!,\"N/VkCjuaKu8=\")","v":{"$error":"#REF!"}},{"$f":"AND('Development Costs'!#REF!,\"N/VkCjuaKvA=\")","v":{"$error":"#REF!"}},{"$f":"AND('Development Costs'!#REF!,\"N/VkCjuaKvE=\")","v":{"$error":"#REF!"}},{"$f":"AND('Development Costs'!#REF!,\"N/VkCjuaKvI=\")","v":{"$error":"#REF!"}},{"$f":"AND('Development Costs'!#REF!,\"N/VkCjuaKvM=\")","v":{"$error":"#REF!"}},{"$f":"AND('Development Costs'!#REF!,\"N/VkCjuaKvQ=\")","v":{"$error":"#REF!"}},{"$f":"AND('Development Costs'!#REF!,\"N/VkCjuaKvU=\")","v":{"$error":"#REF!"}},{"$f":"AND('Development Costs'!#REF!,\"N/VkCjuaKvY=\")","v":{"$error":"#REF!"}},{"$f":"AND('Development Costs'!#REF!,\"N/VkCjuaKvc=\")","v":{"$error":"#REF!"}},{"$f":"AND('Development Costs'!#REF!,\"N/VkCjuaKvg=\")","v":{"$error":"#REF!"}},{"$f":"AND('Development Costs'!#REF!,\"N/VkCjuaKvk=\")","v":{"$error":"#REF!"}},{"$f":"AND('Development Costs'!#REF!,\"N/VkCjuaKvo=\")","v":{"$error":"#REF!"}},{"$f":"AND('Development Costs'!#REF!,\"N/VkCjuaKvs=\")","v":{"$error":"#REF!"}},{"$f":"IF('Development Costs'!#REF!,\"N/VkCjuaKvw=\",0)","v":{"$error":"#REF!"}},{"$f":"AND('Development Costs'!#REF!,\"N/VkCjuaKv0=\")","v":{"$error":"#REF!"}},{"$f":"AND('Development Costs'!#REF!,\"N/VkCjuaKv4=\")","v":{"$error":"#REF!"}},{"$f":"AND('Development Costs'!#REF!,\"N/VkCjuaKv8=\")","v":{"$error":"#REF!"}}]
[{"$f":"AND('Development Costs'!#REF!,\"H974glLNgQA=\")","v":{"$error":"#REF!"}},{"$f":"AND('Development Costs'!#REF!,\"H974glLNgQE=\")","v":{"$error":"#REF!"}},{"$f":"AND('Development Costs'!#REF!,\"H974glLNgQI=\")","v":{"$error":"#REF!"}},{"$f":"AND('Development Costs'!#REF!,\"H974glLNgQM=\")","v":{"$error":"#REF!"}},{"$f":"AND('Development Costs'!#REF!,\"H974glLNgQQ=\")","v":{"$error":"#REF!"}},{"$f":"AND('Development Costs'!#REF!,\"H974glLNgQU=\")","v":{"$error":"#REF!"}},{"$f":"AND('Development Costs'!#REF!,\"H974glLNgQY=\")","v":{"$error":"#REF!"}},{"$f":"AND('Development Costs'!#REF!,\"H974glLNgQc=\")","v":{"$error":"#REF!"}},{"$f":"AND('Development Costs'!#REF!,\"H974glLNgQg=\")","v":{"$error":"#REF!"}},{"$f":"AND('Development Costs'!#REF!,\"H974glLNgQk=\")","v":{"$error":"#REF!"}},{"$f":"AND('Development Costs'!#REF!,\"H974glLNgQo=\")","v":{"$error":"#REF!"}},{"$f":"AND('Development Costs'!#REF!,\"H974glLNgQs=\")","v":{"$error":"#REF!"}},{"$f":"AND('Development Costs'!#REF!,\"H974glLNgQw=\")","v":{"$error":"#REF!"}},{"$f":"IF('Development Costs'!#REF!,\"H974glLNgQ0=\",0)","v":{"$error":"#REF!"}},{"$f":"AND('Development Costs'!#REF!,\"H974glLNgQ4=\")","v":{"$error":"#REF!"}},{"$f":"AND('Development Costs'!#REF!,\"H974glLNgQ8=\")","v":{"$error":"#REF!"}},{"$f":"AND('Development Costs'!#REF!,\"H974glLNgRA=\")","v":{"$error":"#REF!"}},{"$f":"AND('Development Costs'!#REF!,\"H974glLNgRE=\")","v":{"$error":"#REF!"}},{"$f":"AND('Development Costs'!#REF!,\"H974glLNgRI=\")","v":{"$error":"#REF!"}},{"$f":"AND('Development Costs'!#REF!,\"H974glLNgRM=\")","v":{"$error":"#REF!"}},{"$f":"AND('Development Costs'!#REF!,\"H974glLNgRQ=\")","v":{"$error":"#REF!"}},{"$f":"AND('Development Costs'!#REF!,\"H974glLNgRU=\")","v":{"$error":"#REF!"}},{"$f":"AND('Development Costs'!#REF!,\"H974glLNgRY=\")","v":{"$error":"#REF!"}},{"$f":"AND('Development Costs'!#REF!,\"H974glLNgRc=\")","v":{"$error":"#REF!"}},{"$f":"AND('Development Costs'!#REF!,\"H974glLNgRg=\")","v":{"$error":"#REF!"}},{"$f":"AND('Development Costs'!#REF!,\"H974glLNgRk=\")","v":{"$error":"#REF!"}},{"$f":"AND('Development Costs'!#REF!,\"H974glLNgRo=\")","v":{"$error":"#REF!"}},{"$f":"AND('Development Costs'!#REF!,\"H974glLNgRs=\")","v":{"$error":"#REF!"}},{"$f":"AND('Development Costs'!#REF!,\"H974glLNgRw=\")","v":{"$error":"#REF!"}},{"$f":"AND('Development Costs'!#REF!,\"H974glLNgR0=\")","v":{"$error":"#REF!"}},{"$f":"IF('Development Costs'!#REF!,\"H974glLNgR4=\",0)","v":{"$error":"#REF!"}},{"$f":"AND('Development Costs'!#REF!,\"H974glLNgR8=\")","v":{"$error":"#REF!"}},{"$f":"AND('Development Costs'!#REF!,\"H974glLNgSA=\")","v":{"$error":"#REF!"}},{"$f":"AND('Development Costs'!#REF!,\"H974glLNgSE=\")","v":{"$error":"#REF!"}},{"$f":"AND('Development Costs'!#REF!,\"H974glLNgSI=\")","v":{"$error":"#REF!"}},{"$f":"AND('Development Costs'!#REF!,\"H974glLNgSM=\")","v":{"$error":"#REF!"}},{"$f":"AND('Development Costs'!#REF!,\"H974glLNgSQ=\")","v":{"$error":"#REF!"}},{"$f":"AND('Development Costs'!#REF!,\"H974glLNgSU=\")","v":{"$error":"#REF!"}},{"$f":"AND('Development Costs'!#REF!,\"H974glLNgSY=\")","v":{"$error":"#REF!"}},{"$f":"AND('Development Costs'!#REF!,\"H974glLNgSc=\")","v":{"$error":"#REF!"}},{"$f":"AND('Development Costs'!#REF!,\"H974glLNgSg=\")","v":{"$error":"#REF!"}},{"$f":"AND('Development Costs'!#REF!,\"H974glLNgSk=\")","v":{"$error":"#REF!"}},{"$f":"AND('Development Costs'!#REF!,\"H974glLNgSo=\")","v":{"$error":"#REF!"}},{"$f":"AND('Development Costs'!#REF!,\"H974glLNgSs=\")","v":{"$error":"#REF!"}},{"$f":"AND('Development Costs'!#REF!,\"H974glLNgSw=\")","v":{"$error":"#REF!"}},{"$f":"AND('Development Costs'!#REF!,\"H974glLNgS0=\")","v":{"$error":"#REF!"}},{"$f":"AND('Development Costs'!#REF!,\"H974glLNgS4=\")","v":{"$error":"#REF!"}},{"$f":"IF('Development Costs'!#REF!,\"H974glLNgS8=\",0)","v":{"$error":"#REF!"}},{"$f":"AND('Development Costs'!#REF!,\"H974glLNgTA=\")","v":{"$error":"#REF!"}},{"$f":"AND('Development Costs'!#REF!,\"H974glLNgTE=\")","v":{"$error":"#REF!"}},{"$f":"AND('Development Costs'!#REF!,\"H974glLNgTI=\")","v":{"$error":"#REF!"}},{"$f":"AND('Development Costs'!#REF!,\"H974glLNgTM=\")","v":{"$error":"#REF!"}},{"$f":"AND('Development Costs'!#REF!,\"H974glLNgTQ=\")","v":{"$error":"#REF!"}},{"$f":"AND('Development Costs'!#REF!,\"H974glLNgTU=\")","v":{"$error":"#REF!"}},{"$f":"AND('Development Costs'!#REF!,\"H974glLNgTY=\")","v":{"$error":"#REF!"}},{"$f":"AND('Development Costs'!#REF!,\"H974glLNgTc=\")","v":{"$error":"#REF!"}},{"$f":"AND('Development Costs'!#REF!,\"H974glLNgTg=\")","v":{"$error":"#REF!"}},{"$f":"AND('Development Costs'!#REF!,\"H974glLNgTk=\")","v":{"$error":"#REF!"}},{"$f":"AND('Development Costs'!#REF!,\"H974glLNgTo=\")","v":{"$error":"#REF!"}},{"$f":"AND('Development Costs'!#REF!,\"H974glLNgTs=\")","v":{"$error":"#REF!"}},{"$f":"AND('Development Costs'!#REF!,\"H974glLNgTw=\")","v":{"$error":"#REF!"}},{"$f":"AND('Development Costs'!#REF!,\"H974glLNgT0=\")","v":{"$error":"#REF!"}},{"$f":"AND('Development Costs'!#REF!,\"H974glLNgT4=\")","v":{"$error":"#REF!"}},{"$f":"AND('Development Costs'!#REF!,\"H974glLNgT8=\")","v":{"$error":"#REF!"}},{"$f":"IF('Development Costs'!#REF!,\"H974glLNgUA=\",0)","v":{"$error":"#REF!"}},{"$f":"AND('Development Costs'!#REF!,\"H974glLNgUE=\")","v":{"$error":"#REF!"}},{"$f":"AND('Development Costs'!#REF!,\"H974glLNgUI=\")","v":{"$error":"#REF!"}},{"$f":"AND('Development Costs'!#REF!,\"H974glLNgUM=\")","v":{"$error":"#REF!"}},{"$f":"AND('Development Costs'!#REF!,\"H974glLNgUQ=\")","v":{"$error":"#REF!"}},{"$f":"AND('Development Costs'!#REF!,\"H974glLNgUU=\")","v":{"$error":"#REF!"}},{"$f":"AND('Development Costs'!#REF!,\"H974glLNgUY=\")","v":{"$error":"#REF!"}},{"$f":"AND('Development Costs'!#REF!,\"H974glLNgUc=\")","v":{"$error":"#REF!"}},{"$f":"AND('Development Costs'!#REF!,\"H974glLNgUg=\")","v":{"$error":"#REF!"}},{"$f":"AND('Development Costs'!#REF!,\"H974glLNgUk=\")","v":{"$error":"#REF!"}},{"$f":"AND('Development Costs'!#REF!,\"H974glLNgUo=\")","v":{"$error":"#REF!"}},{"$f":"AND('Development Costs'!#REF!,\"H974glLNgUs=\")","v":{"$error":"#REF!"}},{"$f":"AND('Development Costs'!#REF!,\"H974glLNgUw=\")","v":{"$error":"#REF!"}},{"$f":"AND('Development Costs'!#REF!,\"H974glLNgU0=\")","v":{"$error":"#REF!"}},{"$f":"AND('Development Costs'!#REF!,\"H974glLNgU4=\")","v":{"$error":"#REF!"}},{"$f":"AND('Development Costs'!#REF!,\"H974glLNgU8=\")","v":{"$error":"#REF!"}},{"$f":"AND('Development Costs'!#REF!,\"H974glLNgVA=\")","v":{"$error":"#REF!"}},{"$f":"IF('Development Costs'!#REF!,\"H974glLNgVE=\",0)","v":{"$error":"#REF!"}},{"$f":"AND('Development Costs'!#REF!,\"H974glLNgVI=\")","v":{"$error":"#REF!"}},{"$f":"AND('Development Costs'!#REF!,\"H974glLNgVM=\")","v":{"$error":"#REF!"}},{"$f":"AND('Development Costs'!#REF!,\"H974glLNgVQ=\")","v":{"$error":"#REF!"}},{"$f":"AND('Development Costs'!#REF!,\"H974glLNgVU=\")","v":{"$error":"#REF!"}},{"$f":"AND('Development Costs'!#REF!,\"H974glLNgVY=\")","v":{"$error":"#REF!"}},{"$f":"AND('Development Costs'!#REF!,\"H974glLNgVc=\")","v":{"$error":"#REF!"}},{"$f":"AND('Development Costs'!#REF!,\"H974glLNgVg=\")","v":{"$error":"#REF!"}},{"$f":"AND('Development Costs'!#REF!,\"H974glLNgVk=\")","v":{"$error":"#REF!"}},{"$f":"AND('Development Costs'!#REF!,\"H974glLNgVo=\")","v":{"$error":"#REF!"}},{"$f":"AND('Development Costs'!#REF!,\"H974glLNgVs=\")","v":{"$error":"#REF!"}},{"$f":"AND('Development Costs'!#REF!,\"H974glLNgVw=\")","v":{"$error":"#REF!"}},{"$f":"AND('Development Costs'!#REF!,\"H974glLNgV0=\")","v":{"$error":"#REF!"}},{"$f":"AND('Development Costs'!#REF!,\"H974glLNgV4=\")","v":{"$error":"#REF!"}},{"$f":"AND('Development Costs'!#REF!,\"H974glLNgV8=\")","v":{"$error":"#REF!"}},{"$f":"AND('Development Costs'!#REF!,\"H974glLNgWA=\")","v":{"$error":"#REF!"}},{"$f":"AND('Development Costs'!#REF!,\"H974glLNgWE=\")","v":{"$error":"#REF!"}},{"$f":"IF('Development Costs'!#REF!,\"H974glLNgWI=\",0)","v":{"$error":"#REF!"}},{"$f":"AND('Development Costs'!#REF!,\"H974glLNgWM=\")","v":{"$error":"#REF!"}},{"$f":"AND('Development Costs'!#REF!,\"H974glLNgWQ=\")","v":{"$error":"#REF!"}},{"$f":"AND('Development Costs'!#REF!,\"H974glLNgWU=\")","v":{"$error":"#REF!"}},{"$f":"AND('Development Costs'!#REF!,\"H974glLNgWY=\")","v":{"$error":"#REF!"}},{"$f":"AND('Development Costs'!#REF!,\"H974glLNgWc=\")","v":{"$error":"#REF!"}},{"$f":"AND('Development Costs'!#REF!,\"H974glLNgWg=\")","v":{"$error":"#REF!"}},{"$f":"AND('Development Costs'!#REF!,\"H974glLNgWk=\")","v":{"$error":"#REF!"}},{"$f":"AND('Development Costs'!#REF!,\"H974glLNgWo=\")","v":{"$error":"#REF!"}},{"$f":"AND('Development Costs'!#REF!,\"H974glLNgWs=\")","v":{"$error":"#REF!"}},{"$f":"AND('Development Costs'!#REF!,\"H974glLNgWw=\")","v":{"$error":"#REF!"}},{"$f":"AND('Development Costs'!#REF!,\"H974glLNgW0=\")","v":{"$error":"#REF!"}},{"$f":"AND('Development Costs'!#REF!,\"H974glLNgW4=\")","v":{"$error":"#REF!"}},{"$f":"AND('Development Costs'!#REF!,\"H974glLNgW8=\")","v":{"$error":"#REF!"}},{"$f":"AND('Development Costs'!#REF!,\"H974glLNgXA=\")","v":{"$error":"#REF!"}},{"$f":"AND('Development Costs'!#REF!,\"H974glLNgXE=\")","v":{"$error":"#REF!"}},{"$f":"AND('Development Costs'!#REF!,\"H974glLNgXI=\")","v":{"$error":"#REF!"}},{"$f":"IF('Development Costs'!#REF!,\"H974glLNgXM=\",0)","v":{"$error":"#REF!"}},{"$f":"AND('Development Costs'!#REF!,\"H974glLNgXQ=\")","v":{"$error":"#REF!"}},{"$f":"AND('Development Costs'!#REF!,\"H974glLNgXU=\")","v":{"$error":"#REF!"}},{"$f":"AND('Development Costs'!#REF!,\"H974glLNgXY=\")","v":{"$error":"#REF!"}},{"$f":"AND('Development Costs'!#REF!,\"H974glLNgXc=\")","v":{"$error":"#REF!"}},{"$f":"AND('Development Costs'!#REF!,\"H974glLNgXg=\")","v":{"$error":"#REF!"}},{"$f":"AND('Development Costs'!#REF!,\"H974glLNgXk=\")","v":{"$error":"#REF!"}},{"$f":"AND('Development Costs'!#REF!,\"H974glLNgXo=\")","v":{"$error":"#REF!"}},{"$f":"AND('Development Costs'!#REF!,\"H974glLNgXs=\")","v":{"$error":"#REF!"}},{"$f":"AND('Development Costs'!#REF!,\"H974glLNgXw=\")","v":{"$error":"#REF!"}},{"$f":"AND('Development Costs'!#REF!,\"H974glLNgX0=\")","v":{"$error":"#REF!"}},{"$f":"AND('Development Costs'!#REF!,\"H974glLNgX4=\")","v":{"$error":"#REF!"}},{"$f":"AND('Development Costs'!#REF!,\"H974glLNgX8=\")","v":{"$error":"#REF!"}},{"$f":"AND('Development Costs'!#REF!,\"H974glLNgYA=\")","v":{"$error":"#REF!"}},{"$f":"AND('Development Costs'!#REF!,\"H974glLNgYE=\")","v":{"$error":"#REF!"}},{"$f":"AND('Development Costs'!#REF!,\"H974glLNgYI=\")","v":{"$error":"#REF!"}},{"$f":"AND('Development Costs'!#REF!,\"H974glLNgYM=\")","v":{"$error":"#REF!"}},{"$f":"IF('Development Costs'!#REF!,\"H974glLNgYQ=\",0)","v":{"$error":"#REF!"}},{"$f":"AND('Development Costs'!#REF!,\"H974glLNgYU=\")","v":{"$error":"#REF!"}},{"$f":"AND('Development Costs'!#REF!,\"H974glLNgYY=\")","v":{"$error":"#REF!"}},{"$f":"AND('Development Costs'!#REF!,\"H974glLNgYc=\")","v":{"$error":"#REF!"}},{"$f":"AND('Development Costs'!#REF!,\"H974glLNgYg=\")","v":{"$error":"#REF!"}},{"$f":"AND('Development Costs'!#REF!,\"H974glLNgYk=\")","v":{"$error":"#REF!"}},{"$f":"AND('Development Costs'!#REF!,\"H974glLNgYo=\")","v":{"$error":"#REF!"}},{"$f":"AND('Development Costs'!#REF!,\"H974glLNgYs=\")","v":{"$error":"#REF!"}},{"$f":"AND('Development Costs'!#REF!,\"H974glLNgYw=\")","v":{"$error":"#REF!"}},{"$f":"AND('Development Costs'!#REF!,\"H974glLNgY0=\")","v":{"$error":"#REF!"}},{"$f":"AND('Development Costs'!#REF!,\"H974glLNgY4=\")","v":{"$error":"#REF!"}},{"$f":"AND('Development Costs'!#REF!,\"H974glLNgY8=\")","v":{"$error":"#REF!"}},{"$f":"AND('Development Costs'!#REF!,\"H974glLNgZA=\")","v":{"$error":"#REF!"}},{"$f":"AND('Development Costs'!#REF!,\"H974glLNgZE=\")","v":{"$error":"#REF!"}},{"$f":"AND('Development Costs'!#REF!,\"H974glLNgZI=\")","v":{"$error":"#REF!"}},{"$f":"AND('Development Costs'!#REF!,\"H974glLNgZM=\")","v":{"$error":"#REF!"}},{"$f":"AND('Development Costs'!#REF!,\"H974glLNgZQ=\")","v":{"$error":"#REF!"}},{"$f":"IF('Development Costs'!#REF!,\"H974glLNgZU=\",0)","v":{"$error":"#REF!"}},{"$f":"AND('Development Costs'!#REF!,\"H974glLNgZY=\")","v":{"$error":"#REF!"}},{"$f":"AND('Development Costs'!#REF!,\"H974glLNgZc=\")","v":{"$error":"#REF!"}},{"$f":"AND('Development Costs'!#REF!,\"H974glLNgZg=\")","v":{"$error":"#REF!"}},{"$f":"AND('Development Costs'!#REF!,\"H974glLNgZk=\")","v":{"$error":"#REF!"}},{"$f":"AND('Development Costs'!#REF!,\"H974glLNgZo=\")","v":{"$error":"#REF!"}},{"$f":"AND('Development Costs'!#REF!,\"H974glLNgZs=\")","v":{"$error":"#REF!"}},{"$f":"AND('Development Costs'!#REF!,\"H974glLNgZw=\")","v":{"$error":"#REF!"}},{"$f":"AND('Development Costs'!#REF!,\"H974glLNgZ0=\")","v":{"$error":"#REF!"}},{"$f":"AND('Development Costs'!#REF!,\"H974glLNgZ4=\")","v":{"$error":"#REF!"}},{"$f":"AND('Development Costs'!#REF!,\"H974glLNgZ8=\")","v":{"$error":"#REF!"}},{"$f":"AND('Development Costs'!#REF!,\"H974glLNgaA=\")","v":{"$error":"#REF!"}},{"$f":"AND('Development Costs'!#REF!,\"H974glLNgaE=\")","v":{"$error":"#REF!"}},{"$f":"AND('Development Costs'!#REF!,\"H974glLNgaI=\")","v":{"$error":"#REF!"}},{"$f":"AND('Development Costs'!#REF!,\"H974glLNgaM=\")","v":{"$error":"#REF!"}},{"$f":"AND('Development Costs'!#REF!,\"H974glLNgaQ=\")","v":{"$error":"#REF!"}},{"$f":"AND('Development Costs'!#REF!,\"H974glLNgaU=\")","v":{"$error":"#REF!"}},{"$f":"IF('Development Costs'!#REF!,\"H974glLNgaY=\",0)","v":{"$error":"#REF!"}},{"$f":"AND('Development Costs'!#REF!,\"H974glLNgac=\")","v":{"$error":"#REF!"}},{"$f":"AND('Development Costs'!#REF!,\"H974glLNgag=\")","v":{"$error":"#REF!"}},{"$f":"AND('Development Costs'!#REF!,\"H974glLNgak=\")","v":{"$error":"#REF!"}},{"$f":"AND('Development Costs'!#REF!,\"H974glLNgao=\")","v":{"$error":"#REF!"}},{"$f":"AND('Development Costs'!#REF!,\"H974glLNgas=\")","v":{"$error":"#REF!"}},{"$f":"AND('Development Costs'!#REF!,\"H974glLNgaw=\")","v":{"$error":"#REF!"}},{"$f":"AND('Development Costs'!#REF!,\"H974glLNga0=\")","v":{"$error":"#REF!"}},{"$f":"AND('Development Costs'!#REF!,\"H974glLNga4=\")","v":{"$error":"#REF!"}},{"$f":"AND('Development Costs'!#REF!,\"H974glLNga8=\")","v":{"$error":"#REF!"}},{"$f":"AND('Development Costs'!#REF!,\"H974glLNgbA=\")","v":{"$error":"#REF!"}},{"$f":"AND('Development Costs'!#REF!,\"H974glLNgbE=\")","v":{"$error":"#REF!"}},{"$f":"AND('Development Costs'!#REF!,\"H974glLNgbI=\")","v":{"$error":"#REF!"}},{"$f":"AND('Development Costs'!#REF!,\"H974glLNgbM=\")","v":{"$error":"#REF!"}},{"$f":"AND('Development Costs'!#REF!,\"H974glLNgbQ=\")","v":{"$error":"#REF!"}},{"$f":"AND('Development Costs'!#REF!,\"H974glLNgbU=\")","v":{"$error":"#REF!"}},{"$f":"AND('Development Costs'!#REF!,\"H974glLNgbY=\")","v":{"$error":"#REF!"}},{"$f":"IF('Development Costs'!#REF!,\"H974glLNgbc=\",0)","v":{"$error":"#REF!"}},{"$f":"AND('Development Costs'!#REF!,\"H974glLNgbg=\")","v":{"$error":"#REF!"}},{"$f":"AND('Development Costs'!#REF!,\"H974glLNgbk=\")","v":{"$error":"#REF!"}},{"$f":"AND('Development Costs'!#REF!,\"H974glLNgbo=\")","v":{"$error":"#REF!"}},{"$f":"AND('Development Costs'!#REF!,\"H974glLNgbs=\")","v":{"$error":"#REF!"}},{"$f":"AND('Development Costs'!#REF!,\"H974glLNgbw=\")","v":{"$error":"#REF!"}},{"$f":"AND('Development Costs'!#REF!,\"H974glLNgb0=\")","v":{"$error":"#REF!"}},{"$f":"AND('Development Costs'!#REF!,\"H974glLNgb4=\")","v":{"$error":"#REF!"}},{"$f":"AND('Development Costs'!#REF!,\"H974glLNgb8=\")","v":{"$error":"#REF!"}},{"$f":"AND('Development Costs'!#REF!,\"H974glLNgcA=\")","v":{"$error":"#REF!"}},{"$f":"AND('Development Costs'!#REF!,\"H974glLNgcE=\")","v":{"$error":"#REF!"}},{"$f":"AND('Development Costs'!#REF!,\"H974glLNgcI=\")","v":{"$error":"#REF!"}},{"$f":"AND('Development Costs'!#REF!,\"H974glLNgcM=\")","v":{"$error":"#REF!"}},{"$f":"AND('Development Costs'!#REF!,\"H974glLNgcQ=\")","v":{"$error":"#REF!"}},{"$f":"AND('Development Costs'!#REF!,\"H974glLNgcU=\")","v":{"$error":"#REF!"}},{"$f":"AND('Development Costs'!#REF!,\"H974glLNgcY=\")","v":{"$error":"#REF!"}},{"$f":"AND('Development Costs'!#REF!,\"H974glLNgcc=\")","v":{"$error":"#REF!"}},{"$f":"IF('Development Costs'!#REF!,\"H974glLNgcg=\",0)","v":{"$error":"#REF!"}},{"$f":"AND('Development Costs'!#REF!,\"H974glLNgck=\")","v":{"$error":"#REF!"}},{"$f":"AND('Development Costs'!#REF!,\"H974glLNgco=\")","v":{"$error":"#REF!"}},{"$f":"AND('Development Costs'!#REF!,\"H974glLNgcs=\")","v":{"$error":"#REF!"}},{"$f":"AND('Development Costs'!#REF!,\"H974glLNgcw=\")","v":{"$error":"#REF!"}},{"$f":"AND('Development Costs'!#REF!,\"H974glLNgc0=\")","v":{"$error":"#REF!"}},{"$f":"AND('Development Costs'!#REF!,\"H974glLNgc4=\")","v":{"$error":"#REF!"}},{"$f":"AND('Development Costs'!#REF!,\"H974glLNgc8=\")","v":{"$error":"#REF!"}},{"$f":"AND('Development Costs'!#REF!,\"H974glLNgdA=\")","v":{"$error":"#REF!"}},{"$f":"AND('Development Costs'!#REF!,\"H974glLNgdE=\")","v":{"$error":"#REF!"}},{"$f":"AND('Development Costs'!#REF!,\"H974glLNgdI=\")","v":{"$error":"#REF!"}},{"$f":"AND('Development Costs'!#REF!,\"H974glLNgdM=\")","v":{"$error":"#REF!"}},{"$f":"AND('Development Costs'!#REF!,\"H974glLNgdQ=\")","v":{"$error":"#REF!"}},{"$f":"AND('Development Costs'!#REF!,\"H974glLNgdU=\")","v":{"$error":"#REF!"}},{"$f":"AND('Development Costs'!#REF!,\"H974glLNgdY=\")","v":{"$error":"#REF!"}},{"$f":"AND('Development Costs'!#REF!,\"H974glLNgdc=\")","v":{"$error":"#REF!"}},{"$f":"AND('Development Costs'!#REF!,\"H974glLNgdg=\")","v":{"$error":"#REF!"}},{"$f":"IF('Development Costs'!#REF!,\"H974glLNgdk=\",0)","v":{"$error":"#REF!"}},{"$f":"AND('Development Costs'!#REF!,\"H974glLNgdo=\")","v":{"$error":"#REF!"}},{"$f":"AND('Development Costs'!#REF!,\"H974glLNgds=\")","v":{"$error":"#REF!"}},{"$f":"AND('Development Costs'!#REF!,\"H974glLNgdw=\")","v":{"$error":"#REF!"}},{"$f":"AND('Development Costs'!#REF!,\"H974glLNgd0=\")","v":{"$error":"#REF!"}},{"$f":"AND('Development Costs'!#REF!,\"H974glLNgd4=\")","v":{"$error":"#REF!"}},{"$f":"AND('Development Costs'!#REF!,\"H974glLNgd8=\")","v":{"$error":"#REF!"}},{"$f":"AND('Development Costs'!#REF!,\"H974glLNgeA=\")","v":{"$error":"#REF!"}},{"$f":"AND('Development Costs'!#REF!,\"H974glLNgeE=\")","v":{"$error":"#REF!"}},{"$f":"AND('Development Costs'!#REF!,\"H974glLNgeI=\")","v":{"$error":"#REF!"}},{"$f":"AND('Development Costs'!#REF!,\"H974glLNgeM=\")","v":{"$error":"#REF!"}},{"$f":"AND('Development Costs'!#REF!,\"H974glLNgeQ=\")","v":{"$error":"#REF!"}},{"$f":"AND('Development Costs'!#REF!,\"H974glLNgeU=\")","v":{"$error":"#REF!"}},{"$f":"AND('Development Costs'!#REF!,\"H974glLNgeY=\")","v":{"$error":"#REF!"}},{"$f":"AND('Development Costs'!#REF!,\"H974glLNgec=\")","v":{"$error":"#REF!"}},{"$f":"AND('Development Costs'!#REF!,\"H974glLNgeg=\")","v":{"$error":"#REF!"}},{"$f":"AND('Development Costs'!#REF!,\"H974glLNgek=\")","v":{"$error":"#REF!"}},{"$f":"IF('Development Costs'!#REF!,\"H974glLNgeo=\",0)","v":{"$error":"#REF!"}},{"$f":"AND('Development Costs'!#REF!,\"H974glLNges=\")","v":{"$error":"#REF!"}},{"$f":"AND('Development Costs'!#REF!,\"H974glLNgew=\")","v":{"$error":"#REF!"}},{"$f":"AND('Development Costs'!#REF!,\"H974glLNge0=\")","v":{"$error":"#REF!"}},{"$f":"AND('Development Costs'!#REF!,\"H974glLNge4=\")","v":{"$error":"#REF!"}},{"$f":"AND('Development Costs'!#REF!,\"H974glLNge8=\")","v":{"$error":"#REF!"}},{"$f":"AND('Development Costs'!#REF!,\"H974glLNgfA=\")","v":{"$error":"#REF!"}},{"$f":"AND('Development Costs'!#REF!,\"H974glLNgfE=\")","v":{"$error":"#REF!"}},{"$f":"AND('Development Costs'!#REF!,\"H974glLNgfI=\")","v":{"$error":"#REF!"}},{"$f":"AND('Development Costs'!#REF!,\"H974glLNgfM=\")","v":{"$error":"#REF!"}},{"$f":"AND('Development Costs'!#REF!,\"H974glLNgfQ=\")","v":{"$error":"#REF!"}},{"$f":"AND('Development Costs'!#REF!,\"H974glLNgfU=\")","v":{"$error":"#REF!"}},{"$f":"AND('Development Costs'!#REF!,\"H974glLNgfY=\")","v":{"$error":"#REF!"}},{"$f":"AND('Development Costs'!#REF!,\"H974glLNgfc=\")","v":{"$error":"#REF!"}},{"$f":"AND('Development Costs'!#REF!,\"H974glLNgfg=\")","v":{"$error":"#REF!"}},{"$f":"AND('Development Costs'!#REF!,\"H974glLNgfk=\")","v":{"$error":"#REF!"}},{"$f":"AND('Development Costs'!#REF!,\"H974glLNgfo=\")","v":{"$error":"#REF!"}},{"$f":"IF('Development Costs'!#REF!,\"H974glLNgfs=\",0)","v":{"$error":"#REF!"}},{"$f":"AND('Development Costs'!#REF!,\"H974glLNgfw=\")","v":{"$error":"#REF!"}},{"$f":"AND('Development Costs'!#REF!,\"H974glLNgf0=\")","v":{"$error":"#REF!"}},{"$f":"AND('Development Costs'!#REF!,\"H974glLNgf4=\")","v":{"$error":"#REF!"}},{"$f":"AND('Development Costs'!#REF!,\"H974glLNgf8=\")","v":{"$error":"#REF!"}}]
[{"$f":"AND('Development Costs'!#REF!,\"G96WuX1xmQA=\")","v":{"$error":"#REF!"}},{"$f":"AND('Development Costs'!#REF!,\"G96WuX1xmQE=\")","v":{"$error":"#REF!"}},{"$f":"AND('Development Costs'!#REF!,\"G96WuX1xmQI=\")","v":{"$error":"#REF!"}},{"$f":"AND('Development Costs'!#REF!,\"G96WuX1xmQM=\")","v":{"$error":"#REF!"}},{"$f":"AND('Development Costs'!#REF!,\"G96WuX1xmQQ=\")","v":{"$error":"#REF!"}},{"$f":"AND('Development Costs'!#REF!,\"G96WuX1xmQU=\")","v":{"$error":"#REF!"}},{"$f":"AND('Development Costs'!#REF!,\"G96WuX1xmQY=\")","v":{"$error":"#REF!"}},{"$f":"AND('Development Costs'!#REF!,\"G96WuX1xmQc=\")","v":{"$error":"#REF!"}},{"$f":"AND('Development Costs'!#REF!,\"G96WuX1xmQg=\")","v":{"$error":"#REF!"}},{"$f":"AND('Development Costs'!#REF!,\"G96WuX1xmQk=\")","v":{"$error":"#REF!"}},{"$f":"AND('Development Costs'!#REF!,\"G96WuX1xmQo=\")","v":{"$error":"#REF!"}},{"$f":"AND('Development Costs'!#REF!,\"G96WuX1xmQs=\")","v":{"$error":"#REF!"}},{"$f":"IF('Development Costs'!#REF!,\"G96WuX1xmQw=\",0)","v":{"$error":"#REF!"}},{"$f":"AND('Development Costs'!#REF!,\"G96WuX1xmQ0=\")","v":{"$error":"#REF!"}},{"$f":"AND('Development Costs'!#REF!,\"G96WuX1xmQ4=\")","v":{"$error":"#REF!"}},{"$f":"AND('Development Costs'!#REF!,\"G96WuX1xmQ8=\")","v":{"$error":"#REF!"}},{"$f":"AND('Development Costs'!#REF!,\"G96WuX1xmRA=\")","v":{"$error":"#REF!"}},{"$f":"AND('Development Costs'!#REF!,\"G96WuX1xmRE=\")","v":{"$error":"#REF!"}},{"$f":"AND('Development Costs'!#REF!,\"G96WuX1xmRI=\")","v":{"$error":"#REF!"}},{"$f":"AND('Development Costs'!#REF!,\"G96WuX1xmRM=\")","v":{"$error":"#REF!"}},{"$f":"AND('Development Costs'!#REF!,\"G96WuX1xmRQ=\")","v":{"$error":"#REF!"}},{"$f":"AND('Development Costs'!#REF!,\"G96WuX1xmRU=\")","v":{"$error":"#REF!"}},{"$f":"AND('Development Costs'!#REF!,\"G96WuX1xmRY=\")","v":{"$error":"#REF!"}},{"$f":"AND('Development Costs'!#REF!,\"G96WuX1xmRc=\")","v":{"$error":"#REF!"}},{"$f":"AND('Development Costs'!#REF!,\"G96WuX1xmRg=\")","v":{"$error":"#REF!"}},{"$f":"AND('Development Costs'!#REF!,\"G96WuX1xmRk=\")","v":{"$error":"#REF!"}},{"$f":"AND('Development Costs'!#REF!,\"G96WuX1xmRo=\")","v":{"$error":"#REF!"}},{"$f":"AND('Development Costs'!#REF!,\"G96WuX1xmRs=\")","v":{"$error":"#REF!"}},{"$f":"AND('Development Costs'!#REF!,\"G96WuX1xmRw=\")","v":{"$error":"#REF!"}},{"$f":"IF('Development Costs'!#REF!,\"G96WuX1xmR0=\",0)","v":{"$error":"#REF!"}},{"$f":"AND('Development Costs'!#REF!,\"G96WuX1xmR4=\")","v":{"$error":"#REF!"}},{"$f":"AND('Development Costs'!#REF!,\"G96WuX1xmR8=\")","v":{"$error":"#REF!"}},{"$f":"AND('Development Costs'!#REF!,\"G96WuX1xmSA=\")","v":{"$error":"#REF!"}},{"$f":"AND('Development Costs'!#REF!,\"G96WuX1xmSE=\")","v":{"$error":"#REF!"}},{"$f":"AND('Development Costs'!#REF!,\"G96WuX1xmSI=\")","v":{"$error":"#REF!"}},{"$f":"AND('Development Costs'!#REF!,\"G96WuX1xmSM=\")","v":{"$error":"#REF!"}},{"$f":"AND('Development Costs'!#REF!,\"G96WuX1xmSQ=\")","v":{"$error":"#REF!"}},{"$f":"AND('Development Costs'!#REF!,\"G96WuX1xmSU=\")","v":{"$error":"#REF!"}},{"$f":"AND('Development Costs'!#REF!,\"G96WuX1xmSY=\")","v":{"$error":"#REF!"}},{"$f":"AND('Development Costs'!#REF!,\"G96WuX1xmSc=\")","v":{"$error":"#REF!"}},{"$f":"AND('Development Costs'!#REF!,\"G96WuX1xmSg=\")","v":{"$error":"#REF!"}},{"$f":"AND('Development Costs'!#REF!,\"G96WuX1xmSk=\")","v":{"$error":"#REF!"}},{"$f":"AND('Development Costs'!#REF!,\"G96WuX1xmSo=\")","v":{"$error":"#REF!"}},{"$f":"AND('Development Costs'!#REF!,\"G96WuX1xmSs=\")","v":{"$error":"#REF!"}},{"$f":"AND('Development Costs'!#REF!,\"G96WuX1xmSw=\")","v":{"$error":"#REF!"}},{"$f":"AND('Development Costs'!#REF!,\"G96WuX1xmS0=\")","v":{"$error":"#REF!"}},{"$f":"IF('Development Costs'!#REF!,\"G96WuX1xmS4=\",0)","v":{"$error":"#REF!"}},{"$f":"AND('Development Costs'!#REF!,\"G96WuX1xmS8=\")","v":{"$error":"#REF!"}},{"$f":"AND('Development Costs'!#REF!,\"G96WuX1xmTA=\")","v":{"$error":"#REF!"}},{"$f":"AND('Development Costs'!#REF!,\"G96WuX1xmTE=\")","v":{"$error":"#REF!"}},{"$f":"AND('Development Costs'!#REF!,\"G96WuX1xmTI=\")","v":{"$error":"#REF!"}},{"$f":"AND('Development Costs'!#REF!,\"G96WuX1xmTM=\")","v":{"$error":"#REF!"}},{"$f":"AND('Development Costs'!#REF!,\"G96WuX1xmTQ=\")","v":{"$error":"#REF!"}},{"$f":"AND('Development Costs'!#REF!,\"G96WuX1xmTU=\")","v":{"$error":"#REF!"}},{"$f":"AND('Development Costs'!#REF!,\"G96WuX1xmTY=\")","v":{"$error":"#REF!"}},{"$f":"AND('Development Costs'!#REF!,\"G96WuX1xmTc=\")","v":{"$error":"#REF!"}},{"$f":"AND('Development Costs'!#REF!,\"G96WuX1xmTg=\")","v":{"$error":"#REF!"}},{"$f":"AND('Development Costs'!#REF!,\"G96WuX1xmTk=\")","v":{"$error":"#REF!"}},{"$f":"AND('Development Costs'!#REF!,\"G96WuX1xmTo=\")","v":{"$error":"#REF!"}},{"$f":"AND('Development Costs'!#REF!,\"G96WuX1xmTs=\")","v":{"$error":"#REF!"}},{"$f":"AND('Development Costs'!#REF!,\"G96WuX1xmTw=\")","v":{"$error":"#REF!"}},{"$f":"AND('Development Costs'!#REF!,\"G96WuX1xmT0=\")","v":{"$error":"#REF!"}},{"$f":"AND('Development Costs'!#REF!,\"G96WuX1xmT4=\")","v":{"$error":"#REF!"}},{"$f":"IF('Development Costs'!#REF!,\"G96WuX1xmT8=\",0)","v":{"$error":"#REF!"}},{"$f":"AND('Development Costs'!#REF!,\"G96WuX1xmUA=\")","v":{"$error":"#REF!"}},{"$f":"AND('Development Costs'!#REF!,\"G96WuX1xmUE=\")","v":{"$error":"#REF!"}},{"$f":"AND('Development Costs'!#REF!,\"G96WuX1xmUI=\")","v":{"$error":"#REF!"}},{"$f":"AND('Development Costs'!#REF!,\"G96WuX1xmUM=\")","v":{"$error":"#REF!"}},{"$f":"AND('Development Costs'!#REF!,\"G96WuX1xmUQ=\")","v":{"$error":"#REF!"}},{"$f":"AND('Development Costs'!#REF!,\"G96WuX1xmUU=\")","v":{"$error":"#REF!"}},{"$f":"AND('Development Costs'!#REF!,\"G96WuX1xmUY=\")","v":{"$error":"#REF!"}},{"$f":"AND('Development Costs'!#REF!,\"G96WuX1xmUc=\")","v":{"$error":"#REF!"}},{"$f":"AND('Development Costs'!#REF!,\"G96WuX1xmUg=\")","v":{"$error":"#REF!"}},{"$f":"AND('Development Costs'!#REF!,\"G96WuX1xmUk=\")","v":{"$error":"#REF!"}},{"$f":"AND('Development Costs'!#REF!,\"G96WuX1xmUo=\")","v":{"$error":"#REF!"}},{"$f":"AND('Development Costs'!#REF!,\"G96WuX1xmUs=\")","v":{"$error":"#REF!"}},{"$f":"AND('Development Costs'!#REF!,\"G96WuX1xmUw=\")","v":{"$error":"#REF!"}},{"$f":"AND('Development Costs'!#REF!,\"G96WuX1xmU0=\")","v":{"$error":"#REF!"}},{"$f":"AND('Development Costs'!#REF!,\"G96WuX1xmU4=\")","v":{"$error":"#REF!"}},{"$f":"AND('Development Costs'!#REF!,\"G96WuX1xmU8=\")","v":{"$error":"#REF!"}},{"$f":"IF('Development Costs'!#REF!,\"G96WuX1xmVA=\",0)","v":{"$error":"#REF!"}},{"$f":"AND('Development Costs'!#REF!,\"G96WuX1xmVE=\")","v":{"$error":"#REF!"}},{"$f":"AND('Development Costs'!#REF!,\"G96WuX1xmVI=\")","v":{"$error":"#REF!"}},{"$f":"AND('Development Costs'!#REF!,\"G96WuX1xmVM=\")","v":{"$error":"#REF!"}},{"$f":"AND('Development Costs'!#REF!,\"G96WuX1xmVQ=\")","v":{"$error":"#REF!"}},{"$f":"AND('Development Costs'!#REF!,\"G96WuX1xmVU=\")","v":{"$error":"#REF!"}},{"$f":"AND('Development Costs'!#REF!,\"G96WuX1xmVY=\")","v":{"$error":"#REF!"}},{"$f":"AND('Development Costs'!#REF!,\"G96WuX1xmVc=\")","v":{"$error":"#REF!"}},{"$f":"AND('Development Costs'!#REF!,\"G96WuX1xmVg=\")","v":{"$error":"#REF!"}},{"$f":"AND('Development Costs'!#REF!,\"G96WuX1xmVk=\")","v":{"$error":"#REF!"}},{"$f":"AND('Development Costs'!#REF!,\"G96WuX1xmVo=\")","v":{"$error":"#REF!"}},{"$f":"AND('Development Costs'!#REF!,\"G96WuX1xmVs=\")","v":{"$error":"#REF!"}},{"$f":"AND('Development Costs'!#REF!,\"G96WuX1xmVw=\")","v":{"$error":"#REF!"}},{"$f":"AND('Development Costs'!#REF!,\"G96WuX1xmV0=\")","v":{"$error":"#REF!"}},{"$f":"AND('Development Costs'!#REF!,\"G96WuX1xmV4=\")","v":{"$error":"#REF!"}},{"$f":"AND('Development Costs'!#REF!,\"G96WuX1xmV8=\")","v":{"$error":"#REF!"}},{"$f":"AND('Development Costs'!#REF!,\"G96WuX1xmWA=\")","v":{"$error":"#REF!"}},{"$f":"IF('Development Costs'!#REF!,\"G96WuX1xmWE=\",0)","v":{"$error":"#REF!"}},{"$f":"AND('Development Costs'!#REF!,\"G96WuX1xmWI=\")","v":{"$error":"#REF!"}},{"$f":"AND('Development Costs'!#REF!,\"G96WuX1xmWM=\")","v":{"$error":"#REF!"}},{"$f":"AND('Development Costs'!#REF!,\"G96WuX1xmWQ=\")","v":{"$error":"#REF!"}},{"$f":"AND('Development Costs'!#REF!,\"G96WuX1xmWU=\")","v":{"$error":"#REF!"}},{"$f":"AND('Development Costs'!#REF!,\"G96WuX1xmWY=\")","v":{"$error":"#REF!"}},{"$f":"AND('Development Costs'!#REF!,\"G96WuX1xmWc=\")","v":{"$error":"#REF!"}},{"$f":"AND('Development Costs'!#REF!,\"G96WuX1xmWg=\")","v":{"$error":"#REF!"}},{"$f":"AND('Development Costs'!#REF!,\"G96WuX1xmWk=\")","v":{"$error":"#REF!"}},{"$f":"AND('Development Costs'!#REF!,\"G96WuX1xmWo=\")","v":{"$error":"#REF!"}},{"$f":"AND('Development Costs'!#REF!,\"G96WuX1xmWs=\")","v":{"$error":"#REF!"}},{"$f":"AND('Development Costs'!#REF!,\"G96WuX1xmWw=\")","v":{"$error":"#REF!"}},{"$f":"AND('Development Costs'!#REF!,\"G96WuX1xmW0=\")","v":{"$error":"#REF!"}},{"$f":"AND('Development Costs'!#REF!,\"G96WuX1xmW4=\")","v":{"$error":"#REF!"}},{"$f":"AND('Development Costs'!#REF!,\"G96WuX1xmW8=\")","v":{"$error":"#REF!"}},{"$f":"AND('Development Costs'!#REF!,\"G96WuX1xmXA=\")","v":{"$error":"#REF!"}},{"$f":"AND('Development Costs'!#REF!,\"G96WuX1xmXE=\")","v":{"$error":"#REF!"}},{"$f":"IF('Development Costs'!#REF!,\"G96WuX1xmXI=\",0)","v":{"$error":"#REF!"}},{"$f":"AND('Development Costs'!#REF!,\"G96WuX1xmXM=\")","v":{"$error":"#REF!"}},{"$f":"AND('Development Costs'!#REF!,\"G96WuX1xmXQ=\")","v":{"$error":"#REF!"}},{"$f":"AND('Development Costs'!#REF!,\"G96WuX1xmXU=\")","v":{"$error":"#REF!"}},{"$f":"AND('Development Costs'!#REF!,\"G96WuX1xmXY=\")","v":{"$error":"#REF!"}},{"$f":"AND('Development Costs'!#REF!,\"G96WuX1xmXc=\")","v":{"$error":"#REF!"}},{"$f":"AND('Development Costs'!#REF!,\"G96WuX1xmXg=\")","v":{"$error":"#REF!"}},{"$f":"AND('Development Costs'!#REF!,\"G96WuX1xmXk=\")","v":{"$error":"#REF!"}},{"$f":"AND('Development Costs'!#REF!,\"G96WuX1xmXo=\")","v":{"$error":"#REF!"}},{"$f":"AND('Development Costs'!#REF!,\"G96WuX1xmXs=\")","v":{"$error":"#REF!"}},{"$f":"AND('Development Costs'!#REF!,\"G96WuX1xmXw=\")","v":{"$error":"#REF!"}},{"$f":"AND('Development Costs'!#REF!,\"G96WuX1xmX0=\")","v":{"$error":"#REF!"}},{"$f":"AND('Development Costs'!#REF!,\"G96WuX1xmX4=\")","v":{"$error":"#REF!"}},{"$f":"AND('Development Costs'!#REF!,\"G96WuX1xmX8=\")","v":{"$error":"#REF!"}},{"$f":"AND('Development Costs'!#REF!,\"G96WuX1xmYA=\")","v":{"$error":"#REF!"}},{"$f":"AND('Development Costs'!#REF!,\"G96WuX1xmYE=\")","v":{"$error":"#REF!"}},{"$f":"AND('Development Costs'!#REF!,\"G96WuX1xmYI=\")","v":{"$error":"#REF!"}},{"$f":"IF('Development Costs'!#REF!,\"G96WuX1xmYM=\",0)","v":{"$error":"#REF!"}},{"$f":"AND('Development Costs'!#REF!,\"G96WuX1xmYQ=\")","v":{"$error":"#REF!"}},{"$f":"AND('Development Costs'!#REF!,\"G96WuX1xmYU=\")","v":{"$error":"#REF!"}},{"$f":"AND('Development Costs'!#REF!,\"G96WuX1xmYY=\")","v":{"$error":"#REF!"}},{"$f":"AND('Development Costs'!#REF!,\"G96WuX1xmYc=\")","v":{"$error":"#REF!"}},{"$f":"AND('Development Costs'!#REF!,\"G96WuX1xmYg=\")","v":{"$error":"#REF!"}},{"$f":"AND('Development Costs'!#REF!,\"G96WuX1xmYk=\")","v":{"$error":"#REF!"}},{"$f":"AND('Development Costs'!#REF!,\"G96WuX1xmYo=\")","v":{"$error":"#REF!"}},{"$f":"AND('Development Costs'!#REF!,\"G96WuX1xmYs=\")","v":{"$error":"#REF!"}},{"$f":"AND('Development Costs'!#REF!,\"G96WuX1xmYw=\")","v":{"$error":"#REF!"}},{"$f":"AND('Development Costs'!#REF!,\"G96WuX1xmY0=\")","v":{"$error":"#REF!"}},{"$f":"AND('Development Costs'!#REF!,\"G96WuX1xmY4=\")","v":{"$error":"#REF!"}},{"$f":"AND('Development Costs'!#REF!,\"G96WuX1xmY8=\")","v":{"$error":"#REF!"}},{"$f":"AND('Development Costs'!#REF!,\"G96WuX1xmZA=\")","v":{"$error":"#REF!"}},{"$f":"AND('Development Costs'!#REF!,\"G96WuX1xmZE=\")","v":{"$error":"#REF!"}},{"$f":"AND('Development Costs'!#REF!,\"G96WuX1xmZI=\")","v":{"$error":"#REF!"}},{"$f":"AND('Development Costs'!#REF!,\"G96WuX1xmZM=\")","v":{"$error":"#REF!"}},{"$f":"IF('Development Costs'!#REF!,\"G96WuX1xmZQ=\",0)","v":{"$error":"#REF!"}},{"$f":"AND('Development Costs'!#REF!,\"G96WuX1xmZU=\")","v":{"$error":"#REF!"}},{"$f":"AND('Development Costs'!#REF!,\"G96WuX1xmZY=\")","v":{"$error":"#REF!"}},{"$f":"AND('Development Costs'!#REF!,\"G96WuX1xmZc=\")","v":{"$error":"#REF!"}},{"$f":"AND('Development Costs'!#REF!,\"G96WuX1xmZg=\")","v":{"$error":"#REF!"}},{"$f":"AND('Development Costs'!#REF!,\"G96WuX1xmZk=\")","v":{"$error":"#REF!"}},{"$f":"AND('Development Costs'!#REF!,\"G96WuX1xmZo=\")","v":{"$error":"#REF!"}},{"$f":"AND('Development Costs'!#REF!,\"G96WuX1xmZs=\")","v":{"$error":"#REF!"}},{"$f":"AND('Development Costs'!#REF!,\"G96WuX1xmZw=\")","v":{"$error":"#REF!"}},{"$f":"AND('Development Costs'!#REF!,\"G96WuX1xmZ0=\")","v":{"$error":"#REF!"}},{"$f":"AND('Development Costs'!#REF!,\"G96WuX1xmZ4=\")","v":{"$error":"#REF!"}},{"$f":"AND('Development Costs'!#REF!,\"G96WuX1xmZ8=\")","v":{"$error":"#REF!"}},{"$f":"AND('Development Costs'!#REF!,\"G96WuX1xmaA=\")","v":{"$error":"#REF!"}},{"$f":"AND('Development Costs'!#REF!,\"G96WuX1xmaE=\")","v":{"$error":"#REF!"}},{"$f":"AND('Development Costs'!#REF!,\"G96WuX1xmaI=\")","v":{"$error":"#REF!"}},{"$f":"AND('Development Costs'!#REF!,\"G96WuX1xmaM=\")","v":{"$error":"#REF!"}},{"$f":"AND('Development Costs'!#REF!,\"G96WuX1xmaQ=\")","v":{"$error":"#REF!"}},{"$f":"IF('Development Costs'!#REF!,\"G96WuX1xmaU=\",0)","v":{"$error":"#REF!"}},{"$f":"AND('Development Costs'!#REF!,\"G96WuX1xmaY=\")","v":{"$error":"#REF!"}},{"$f":"AND('Development Costs'!#REF!,\"G96WuX1xmac=\")","v":{"$error":"#REF!"}},{"$f":"AND('Development Costs'!#REF!,\"G96WuX1xmag=\")","v":{"$error":"#REF!"}},{"$f":"AND('Development Costs'!#REF!,\"G96WuX1xmak=\")","v":{"$error":"#REF!"}},{"$f":"AND('Development Costs'!#REF!,\"G96WuX1xmao=\")","v":{"$error":"#REF!"}},{"$f":"AND('Development Costs'!#REF!,\"G96WuX1xmas=\")","v":{"$error":"#REF!"}},{"$f":"AND('Development Costs'!#REF!,\"G96WuX1xmaw=\")","v":{"$error":"#REF!"}},{"$f":"AND('Development Costs'!#REF!,\"G96WuX1xma0=\")","v":{"$error":"#REF!"}},{"$f":"AND('Development Costs'!#REF!,\"G96WuX1xma4=\")","v":{"$error":"#REF!"}},{"$f":"AND('Development Costs'!#REF!,\"G96WuX1xma8=\")","v":{"$error":"#REF!"}},{"$f":"AND('Development Costs'!#REF!,\"G96WuX1xmbA=\")","v":{"$error":"#REF!"}},{"$f":"AND('Development Costs'!#REF!,\"G96WuX1xmbE=\")","v":{"$error":"#REF!"}},{"$f":"AND('Development Costs'!#REF!,\"G96WuX1xmbI=\")","v":{"$error":"#REF!"}},{"$f":"AND('Development Costs'!#REF!,\"G96WuX1xmbM=\")","v":{"$error":"#REF!"}},{"$f":"AND('Development Costs'!#REF!,\"G96WuX1xmbQ=\")","v":{"$error":"#REF!"}},{"$f":"AND('Development Costs'!#REF!,\"G96WuX1xmbU=\")","v":{"$error":"#REF!"}},{"$f":"IF('Development Costs'!#REF!,\"G96WuX1xmbY=\",0)","v":{"$error":"#REF!"}},{"$f":"AND('Development Costs'!#REF!,\"G96WuX1xmbc=\")","v":{"$error":"#REF!"}},{"$f":"AND('Development Costs'!#REF!,\"G96WuX1xmbg=\")","v":{"$error":"#REF!"}},{"$f":"AND('Development Costs'!#REF!,\"G96WuX1xmbk=\")","v":{"$error":"#REF!"}},{"$f":"AND('Development Costs'!#REF!,\"G96WuX1xmbo=\")","v":{"$error":"#REF!"}},{"$f":"AND('Development Costs'!#REF!,\"G96WuX1xmbs=\")","v":{"$error":"#REF!"}},{"$f":"AND('Development Costs'!#REF!,\"G96WuX1xmbw=\")","v":{"$error":"#REF!"}},{"$f":"AND('Development Costs'!#REF!,\"G96WuX1xmb0=\")","v":{"$error":"#REF!"}},{"$f":"AND('Development Costs'!#REF!,\"G96WuX1xmb4=\")","v":{"$error":"#REF!"}},{"$f":"AND('Development Costs'!#REF!,\"G96WuX1xmb8=\")","v":{"$error":"#REF!"}},{"$f":"AND('Development Costs'!#REF!,\"G96WuX1xmcA=\")","v":{"$error":"#REF!"}},{"$f":"AND('Development Costs'!#REF!,\"G96WuX1xmcE=\")","v":{"$error":"#REF!"}},{"$f":"AND('Development Costs'!#REF!,\"G96WuX1xmcI=\")","v":{"$error":"#REF!"}},{"$f":"AND('Development Costs'!#REF!,\"G96WuX1xmcM=\")","v":{"$error":"#REF!"}},{"$f":"AND('Development Costs'!#REF!,\"G96WuX1xmcQ=\")","v":{"$error":"#REF!"}},{"$f":"AND('Development Costs'!#REF!,\"G96WuX1xmcU=\")","v":{"$error":"#REF!"}},{"$f":"AND('Development Costs'!#REF!,\"G96WuX1xmcY=\")","v":{"$error":"#REF!"}},{"$f":"IF('Development Costs'!#REF!,\"G96WuX1xmcc=\",0)","v":{"$error":"#REF!"}},{"$f":"AND('Development Costs'!#REF!,\"G96WuX1xmcg=\")","v":{"$error":"#REF!"}},{"$f":"AND('Development Costs'!#REF!,\"G96WuX1xmck=\")","v":{"$error":"#REF!"}},{"$f":"AND('Development Costs'!#REF!,\"G96WuX1xmco=\")","v":{"$error":"#REF!"}},{"$f":"AND('Development Costs'!#REF!,\"G96WuX1xmcs=\")","v":{"$error":"#REF!"}},{"$f":"AND('Development Costs'!#REF!,\"G96WuX1xmcw=\")","v":{"$error":"#REF!"}},{"$f":"AND('Development Costs'!#REF!,\"G96WuX1xmc0=\")","v":{"$error":"#REF!"}},{"$f":"AND('Development Costs'!#REF!,\"G96WuX1xmc4=\")","v":{"$error":"#REF!"}},{"$f":"AND('Development Costs'!#REF!,\"G96WuX1xmc8=\")","v":{"$error":"#REF!"}},{"$f":"AND('Development Costs'!#REF!,\"G96WuX1xmdA=\")","v":{"$error":"#REF!"}},{"$f":"AND('Development Costs'!#REF!,\"G96WuX1xmdE=\")","v":{"$error":"#REF!"}},{"$f":"AND('Development Costs'!#REF!,\"G96WuX1xmdI=\")","v":{"$error":"#REF!"}},{"$f":"AND('Development Costs'!#REF!,\"G96WuX1xmdM=\")","v":{"$error":"#REF!"}},{"$f":"AND('Development Costs'!#REF!,\"G96WuX1xmdQ=\")","v":{"$error":"#REF!"}},{"$f":"AND('Development Costs'!#REF!,\"G96WuX1xmdU=\")","v":{"$error":"#REF!"}},{"$f":"AND('Development Costs'!#REF!,\"G96WuX1xmdY=\")","v":{"$error":"#REF!"}},{"$f":"AND('Development Costs'!#REF!,\"G96WuX1xmdc=\")","v":{"$error":"#REF!"}},{"$f":"IF('Development Costs'!#REF!,\"G96WuX1xmdg=\",0)","v":{"$error":"#REF!"}},{"$f":"AND('Development Costs'!#REF!,\"G96WuX1xmdk=\")","v":{"$error":"#REF!"}},{"$f":"AND('Development Costs'!#REF!,\"G96WuX1xmdo=\")","v":{"$error":"#REF!"}},{"$f":"AND('Development Costs'!#REF!,\"G96WuX1xmds=\")","v":{"$error":"#REF!"}},{"$f":"AND('Development Costs'!#REF!,\"G96WuX1xmdw=\")","v":{"$error":"#REF!"}},{"$f":"AND('Development Costs'!#REF!,\"G96WuX1xmd0=\")","v":{"$error":"#REF!"}},{"$f":"AND('Development Costs'!#REF!,\"G96WuX1xmd4=\")","v":{"$error":"#REF!"}},{"$f":"AND('Development Costs'!#REF!,\"G96WuX1xmd8=\")","v":{"$error":"#REF!"}},{"$f":"AND('Development Costs'!#REF!,\"G96WuX1xmeA=\")","v":{"$error":"#REF!"}},{"$f":"AND('Development Costs'!#REF!,\"G96WuX1xmeE=\")","v":{"$error":"#REF!"}},{"$f":"AND('Development Costs'!#REF!,\"G96WuX1xmeI=\")","v":{"$error":"#REF!"}},{"$f":"AND('Development Costs'!#REF!,\"G96WuX1xmeM=\")","v":{"$error":"#REF!"}},{"$f":"AND('Development Costs'!#REF!,\"G96WuX1xmeQ=\")","v":{"$error":"#REF!"}},{"$f":"AND('Development Costs'!#REF!,\"G96WuX1xmeU=\")","v":{"$error":"#REF!"}},{"$f":"AND('Development Costs'!#REF!,\"G96WuX1xmeY=\")","v":{"$error":"#REF!"}},{"$f":"AND('Development Costs'!#REF!,\"G96WuX1xmec=\")","v":{"$error":"#REF!"}},{"$f":"AND('Development Costs'!#REF!,\"G96WuX1xmeg=\")","v":{"$error":"#REF!"}},{"$f":"IF('Development Costs'!#REF!,\"G96WuX1xmek=\",0)","v":{"$error":"#REF!"}},{"$f":"AND('Development Costs'!#REF!,\"G96WuX1xmeo=\")","v":{"$error":"#REF!"}},{"$f":"AND('Development Costs'!#REF!,\"G96WuX1xmes=\")","v":{"$error":"#REF!"}},{"$f":"AND('Development Costs'!#REF!,\"G96WuX1xmew=\")","v":{"$error":"#REF!"}},{"$f":"AND('Development Costs'!#REF!,\"G96WuX1xme0=\")","v":{"$error":"#REF!"}},{"$f":"AND('Development Costs'!#REF!,\"G96WuX1xme4=\")","v":{"$error":"#REF!"}},{"$f":"AND('Development Costs'!#REF!,\"G96WuX1xme8=\")","v":{"$error":"#REF!"}},{"$f":"AND('Development Costs'!#REF!,\"G96WuX1xmfA=\")","v":{"$error":"#REF!"}},{"$f":"AND('Development Costs'!#REF!,\"G96WuX1xmfE=\")","v":{"$error":"#REF!"}},{"$f":"AND('Development Costs'!#REF!,\"G96WuX1xmfI=\")","v":{"$error":"#REF!"}},{"$f":"AND('Development Costs'!#REF!,\"G96WuX1xmfM=\")","v":{"$error":"#REF!"}},{"$f":"AND('Development Costs'!#REF!,\"G96WuX1xmfQ=\")","v":{"$error":"#REF!"}},{"$f":"AND('Development Costs'!#REF!,\"G96WuX1xmfU=\")","v":{"$error":"#REF!"}},{"$f":"AND('Development Costs'!#REF!,\"G96WuX1xmfY=\")","v":{"$error":"#REF!"}},{"$f":"AND('Development Costs'!#REF!,\"G96WuX1xmfc=\")","v":{"$error":"#REF!"}},{"$f":"AND('Development Costs'!#REF!,\"G96WuX1xmfg=\")","v":{"$error":"#REF!"}},{"$f":"AND('Development Costs'!#REF!,\"G96WuX1xmfk=\")","v":{"$error":"#REF!"}},{"$f":"IF('Development Costs'!#REF!,\"G96WuX1xmfo=\",0)","v":{"$error":"#REF!"}},{"$f":"AND('Development Costs'!#REF!,\"G96WuX1xmfs=\")","v":{"$error":"#REF!"}},{"$f":"AND('Development Costs'!#REF!,\"G96WuX1xmfw=\")","v":{"$error":"#REF!"}},{"$f":"AND('Development Costs'!#REF!,\"G96WuX1xmf0=\")","v":{"$error":"#REF!"}},{"$f":"AND('Development Costs'!#REF!,\"G96WuX1xmf4=\")","v":{"$error":"#REF!"}},{"$f":"AND('Development Costs'!#REF!,\"G96WuX1xmf8=\")","v":{"$error":"#REF!"}}]
[{"$f":"AND('Development Costs'!#REF!,\"DJizbB0O2QA=\")","v":{"$error":"#REF!"}},{"$f":"AND('Development Costs'!#REF!,\"DJizbB0O2QE=\")","v":{"$error":"#REF!"}},{"$f":"AND('Development Costs'!#REF!,\"DJizbB0O2QI=\")","v":{"$error":"#REF!"}},{"$f":"AND('Development Costs'!#REF!,\"DJizbB0O2QM=\")","v":{"$error":"#REF!"}},{"$f":"AND('Development Costs'!#REF!,\"DJizbB0O2QQ=\")","v":{"$error":"#REF!"}},{"$f":"AND('Development Costs'!#REF!,\"DJizbB0O2QU=\")","v":{"$error":"#REF!"}},{"$f":"AND('Development Costs'!#REF!,\"DJizbB0O2QY=\")","v":{"$error":"#REF!"}},{"$f":"AND('Development Costs'!#REF!,\"DJizbB0O2Qc=\")","v":{"$error":"#REF!"}},{"$f":"AND('Development Costs'!#REF!,\"DJizbB0O2Qg=\")","v":{"$error":"#REF!"}},{"$f":"AND('Development Costs'!#REF!,\"DJizbB0O2Qk=\")","v":{"$error":"#REF!"}},{"$f":"AND('Development Costs'!#REF!,\"DJizbB0O2Qo=\")","v":{"$error":"#REF!"}},{"$f":"IF('Development Costs'!#REF!,\"DJizbB0O2Qs=\",0)","v":{"$error":"#REF!"}},{"$f":"AND('Development Costs'!#REF!,\"DJizbB0O2Qw=\")","v":{"$error":"#REF!"}},{"$f":"AND('Development Costs'!#REF!,\"DJizbB0O2Q0=\")","v":{"$error":"#REF!"}},{"$f":"AND('Development Costs'!#REF!,\"DJizbB0O2Q4=\")","v":{"$error":"#REF!"}},{"$f":"AND('Development Costs'!#REF!,\"DJizbB0O2Q8=\")","v":{"$error":"#REF!"}},{"$f":"AND('Development Costs'!#REF!,\"DJizbB0O2RA=\")","v":{"$error":"#REF!"}},{"$f":"AND('Development Costs'!#REF!,\"DJizbB0O2RE=\")","v":{"$error":"#REF!"}},{"$f":"AND('Development Costs'!#REF!,\"DJizbB0O2RI=\")","v":{"$error":"#REF!"}},{"$f":"AND('Development Costs'!#REF!,\"DJizbB0O2RM=\")","v":{"$error":"#REF!"}},{"$f":"AND('Development Costs'!#REF!,\"DJizbB0O2RQ=\")","v":{"$error":"#REF!"}},{"$f":"AND('Development Costs'!#REF!,\"DJizbB0O2RU=\")","v":{"$error":"#REF!"}},{"$f":"AND('Development Costs'!#REF!,\"DJizbB0O2RY=\")","v":{"$error":"#REF!"}},{"$f":"AND('Development Costs'!#REF!,\"DJizbB0O2Rc=\")","v":{"$error":"#REF!"}},{"$f":"AND('Development Costs'!#REF!,\"DJizbB0O2Rg=\")","v":{"$error":"#REF!"}},{"$f":"AND('Development Costs'!#REF!,\"DJizbB0O2Rk=\")","v":{"$error":"#REF!"}},{"$f":"AND('Development Costs'!#REF!,\"DJizbB0O2Ro=\")","v":{"$error":"#REF!"}},{"$f":"AND('Development Costs'!#REF!,\"DJizbB0O2Rs=\")","v":{"$error":"#REF!"}},{"$f":"IF('Development Costs'!#REF!,\"DJizbB0O2Rw=\",0)","v":{"$error":"#REF!"}},{"$f":"AND('Development Costs'!#REF!,\"DJizbB0O2R0=\")","v":{"$error":"#REF!"}},{"$f":"AND('Development Costs'!#REF!,\"DJizbB0O2R4=\")","v":{"$error":"#REF!"}},{"$f":"AND('Development Costs'!#REF!,\"DJizbB0O2R8=\")","v":{"$error":"#REF!"}},{"$f":"AND('Development Costs'!#REF!,\"DJizbB0O2SA=\")","v":{"$error":"#REF!"}},{"$f":"AND('Development Costs'!#REF!,\"DJizbB0O2SE=\")","v":{"$error":"#REF!"}},{"$f":"AND('Development Costs'!#REF!,\"DJizbB0O2SI=\")","v":{"$error":"#REF!"}},{"$f":"AND('Development Costs'!#REF!,\"DJizbB0O2SM=\")","v":{"$error":"#REF!"}},{"$f":"AND('Development Costs'!#REF!,\"DJizbB0O2SQ=\")","v":{"$error":"#REF!"}},{"$f":"AND('Development Costs'!#REF!,\"DJizbB0O2SU=\")","v":{"$error":"#REF!"}},{"$f":"AND('Development Costs'!#REF!,\"DJizbB0O2SY=\")","v":{"$error":"#REF!"}},{"$f":"AND('Development Costs'!#REF!,\"DJizbB0O2Sc=\")","v":{"$error":"#REF!"}},{"$f":"AND('Development Costs'!#REF!,\"DJizbB0O2Sg=\")","v":{"$error":"#REF!"}},{"$f":"AND('Development Costs'!#REF!,\"DJizbB0O2Sk=\")","v":{"$error":"#REF!"}},{"$f":"AND('Development Costs'!#REF!,\"DJizbB0O2So=\")","v":{"$error":"#REF!"}},{"$f":"AND('Development Costs'!#REF!,\"DJizbB0O2Ss=\")","v":{"$error":"#REF!"}},{"$f":"AND('Development Costs'!#REF!,\"DJizbB0O2Sw=\")","v":{"$error":"#REF!"}},{"$f":"IF('Development Costs'!#REF!,\"DJizbB0O2S0=\",0)","v":{"$error":"#REF!"}},{"$f":"AND('Development Costs'!#REF!,\"DJizbB0O2S4=\")","v":{"$error":"#REF!"}},{"$f":"AND('Development Costs'!#REF!,\"DJizbB0O2S8=\")","v":{"$error":"#REF!"}},{"$f":"AND('Development Costs'!#REF!,\"DJizbB0O2TA=\")","v":{"$error":"#REF!"}},{"$f":"AND('Development Costs'!#REF!,\"DJizbB0O2TE=\")","v":{"$error":"#REF!"}},{"$f":"AND('Development Costs'!#REF!,\"DJizbB0O2TI=\")","v":{"$error":"#REF!"}},{"$f":"AND('Development Costs'!#REF!,\"DJizbB0O2TM=\")","v":{"$error":"#REF!"}},{"$f":"AND('Development Costs'!#REF!,\"DJizbB0O2TQ=\")","v":{"$error":"#REF!"}},{"$f":"AND('Development Costs'!#REF!,\"DJizbB0O2TU=\")","v":{"$error":"#REF!"}},{"$f":"AND('Development Costs'!#REF!,\"DJizbB0O2TY=\")","v":{"$error":"#REF!"}},{"$f":"AND('Development Costs'!#REF!,\"DJizbB0O2Tc=\")","v":{"$error":"#REF!"}},{"$f":"AND('Development Costs'!#REF!,\"DJizbB0O2Tg=\")","v":{"$error":"#REF!"}},{"$f":"AND('Development Costs'!#REF!,\"DJizbB0O2Tk=\")","v":{"$error":"#REF!"}},{"$f":"AND('Development Costs'!#REF!,\"DJizbB0O2To=\")","v":{"$error":"#REF!"}},{"$f":"AND('Development Costs'!#REF!,\"DJizbB0O2Ts=\")","v":{"$error":"#REF!"}},{"$f":"AND('Development Costs'!#REF!,\"DJizbB0O2Tw=\")","v":{"$error":"#REF!"}},{"$f":"AND('Development Costs'!#REF!,\"DJizbB0O2T0=\")","v":{"$error":"#REF!"}},{"$f":"IF('Development Costs'!#REF!,\"DJizbB0O2T4=\",0)","v":{"$error":"#REF!"}},{"$f":"AND('Development Costs'!#REF!,\"DJizbB0O2T8=\")","v":{"$error":"#REF!"}},{"$f":"AND('Development Costs'!#REF!,\"DJizbB0O2UA=\")","v":{"$error":"#REF!"}},{"$f":"AND('Development Costs'!#REF!,\"DJizbB0O2UE=\")","v":{"$error":"#REF!"}},{"$f":"AND('Development Costs'!#REF!,\"DJizbB0O2UI=\")","v":{"$error":"#REF!"}},{"$f":"AND('Development Costs'!#REF!,\"DJizbB0O2UM=\")","v":{"$error":"#REF!"}},{"$f":"AND('Development Costs'!#REF!,\"DJizbB0O2UQ=\")","v":{"$error":"#REF!"}},{"$f":"AND('Development Costs'!#REF!,\"DJizbB0O2UU=\")","v":{"$error":"#REF!"}},{"$f":"AND('Development Costs'!#REF!,\"DJizbB0O2UY=\")","v":{"$error":"#REF!"}},{"$f":"AND('Development Costs'!#REF!,\"DJizbB0O2Uc=\")","v":{"$error":"#REF!"}},{"$f":"AND('Development Costs'!#REF!,\"DJizbB0O2Ug=\")","v":{"$error":"#REF!"}},{"$f":"AND('Development Costs'!#REF!,\"DJizbB0O2Uk=\")","v":{"$error":"#REF!"}},{"$f":"AND('Development Costs'!#REF!,\"DJizbB0O2Uo=\")","v":{"$error":"#REF!"}},{"$f":"AND('Development Costs'!#REF!,\"DJizbB0O2Us=\")","v":{"$error":"#REF!"}},{"$f":"AND('Development Costs'!#REF!,\"DJizbB0O2Uw=\")","v":{"$error":"#REF!"}},{"$f":"AND('Development Costs'!#REF!,\"DJizbB0O2U0=\")","v":{"$error":"#REF!"}},{"$f":"AND('Development Costs'!#REF!,\"DJizbB0O2U4=\")","v":{"$error":"#REF!"}},{"$f":"IF('Development Costs'!#REF!,\"DJizbB0O2U8=\",0)","v":{"$error":"#REF!"}},{"$f":"AND('Development Costs'!#REF!,\"DJizbB0O2VA=\")","v":{"$error":"#REF!"}},{"$f":"AND('Development Costs'!#REF!,\"DJizbB0O2VE=\")","v":{"$error":"#REF!"}},{"$f":"AND('Development Costs'!#REF!,\"DJizbB0O2VI=\")","v":{"$error":"#REF!"}},{"$f":"AND('Development Costs'!#REF!,\"DJizbB0O2VM=\")","v":{"$error":"#REF!"}},{"$f":"AND('Development Costs'!#REF!,\"DJizbB0O2VQ=\")","v":{"$error":"#REF!"}},{"$f":"AND('Development Costs'!#REF!,\"DJizbB0O2VU=\")","v":{"$error":"#REF!"}},{"$f":"AND('Development Costs'!#REF!,\"DJizbB0O2VY=\")","v":{"$error":"#REF!"}},{"$f":"AND('Development Costs'!#REF!,\"DJizbB0O2Vc=\")","v":{"$error":"#REF!"}},{"$f":"AND('Development Costs'!#REF!,\"DJizbB0O2Vg=\")","v":{"$error":"#REF!"}},{"$f":"AND('Development Costs'!#REF!,\"DJizbB0O2Vk=\")","v":{"$error":"#REF!"}},{"$f":"AND('Development Costs'!#REF!,\"DJizbB0O2Vo=\")","v":{"$error":"#REF!"}},{"$f":"AND('Development Costs'!#REF!,\"DJizbB0O2Vs=\")","v":{"$error":"#REF!"}},{"$f":"AND('Development Costs'!#REF!,\"DJizbB0O2Vw=\")","v":{"$error":"#REF!"}},{"$f":"AND('Development Costs'!#REF!,\"DJizbB0O2V0=\")","v":{"$error":"#REF!"}},{"$f":"AND('Development Costs'!#REF!,\"DJizbB0O2V4=\")","v":{"$error":"#REF!"}},{"$f":"AND('Development Costs'!#REF!,\"DJizbB0O2V8=\")","v":{"$error":"#REF!"}},{"$f":"IF('Development Costs'!#REF!,\"DJizbB0O2WA=\",0)","v":{"$error":"#REF!"}},{"$f":"AND('Development Costs'!#REF!,\"DJizbB0O2WE=\")","v":{"$error":"#REF!"}},{"$f":"AND('Development Costs'!#REF!,\"DJizbB0O2WI=\")","v":{"$error":"#REF!"}},{"$f":"AND('Development Costs'!#REF!,\"DJizbB0O2WM=\")","v":{"$error":"#REF!"}},{"$f":"AND('Development Costs'!#REF!,\"DJizbB0O2WQ=\")","v":{"$error":"#REF!"}},{"$f":"AND('Development Costs'!#REF!,\"DJizbB0O2WU=\")","v":{"$error":"#REF!"}},{"$f":"AND('Development Costs'!#REF!,\"DJizbB0O2WY=\")","v":{"$error":"#REF!"}},{"$f":"AND('Development Costs'!#REF!,\"DJizbB0O2Wc=\")","v":{"$error":"#REF!"}},{"$f":"AND('Development Costs'!#REF!,\"DJizbB0O2Wg=\")","v":{"$error":"#REF!"}},{"$f":"AND('Development Costs'!#REF!,\"DJizbB0O2Wk=\")","v":{"$error":"#REF!"}},{"$f":"AND('Development Costs'!#REF!,\"DJizbB0O2Wo=\")","v":{"$error":"#REF!"}},{"$f":"AND('Development Costs'!#REF!,\"DJizbB0O2Ws=\")","v":{"$error":"#REF!"}},{"$f":"AND('Development Costs'!#REF!,\"DJizbB0O2Ww=\")","v":{"$error":"#REF!"}},{"$f":"AND('Development Costs'!#REF!,\"DJizbB0O2W0=\")","v":{"$error":"#REF!"}},{"$f":"AND('Development Costs'!#REF!,\"DJizbB0O2W4=\")","v":{"$error":"#REF!"}},{"$f":"AND('Development Costs'!#REF!,\"DJizbB0O2W8=\")","v":{"$error":"#REF!"}},{"$f":"AND('Development Costs'!#REF!,\"DJizbB0O2XA=\")","v":{"$error":"#REF!"}},{"$f":"IF('Development Costs'!#REF!,\"DJizbB0O2XE=\",0)","v":{"$error":"#REF!"}},{"$f":"AND('Development Costs'!#REF!,\"DJizbB0O2XI=\")","v":{"$error":"#REF!"}},{"$f":"AND('Development Costs'!#REF!,\"DJizbB0O2XM=\")","v":{"$error":"#REF!"}},{"$f":"AND('Development Costs'!#REF!,\"DJizbB0O2XQ=\")","v":{"$error":"#REF!"}},{"$f":"AND('Development Costs'!#REF!,\"DJizbB0O2XU=\")","v":{"$error":"#REF!"}},{"$f":"AND('Development Costs'!#REF!,\"DJizbB0O2XY=\")","v":{"$error":"#REF!"}},{"$f":"AND('Development Costs'!#REF!,\"DJizbB0O2Xc=\")","v":{"$error":"#REF!"}},{"$f":"AND('Development Costs'!#REF!,\"DJizbB0O2Xg=\")","v":{"$error":"#REF!"}},{"$f":"AND('Development Costs'!#REF!,\"DJizbB0O2Xk=\")","v":{"$error":"#REF!"}},{"$f":"AND('Development Costs'!#REF!,\"DJizbB0O2Xo=\")","v":{"$error":"#REF!"}},{"$f":"AND('Development Costs'!#REF!,\"DJizbB0O2Xs=\")","v":{"$error":"#REF!"}},{"$f":"AND('Development Costs'!#REF!,\"DJizbB0O2Xw=\")","v":{"$error":"#REF!"}},{"$f":"AND('Development Costs'!#REF!,\"DJizbB0O2X0=\")","v":{"$error":"#REF!"}},{"$f":"AND('Development Costs'!#REF!,\"DJizbB0O2X4=\")","v":{"$error":"#REF!"}},{"$f":"AND('Development Costs'!#REF!,\"DJizbB0O2X8=\")","v":{"$error":"#REF!"}},{"$f":"AND('Development Costs'!#REF!,\"DJizbB0O2YA=\")","v":{"$error":"#REF!"}},{"$f":"AND('Development Costs'!#REF!,\"DJizbB0O2YE=\")","v":{"$error":"#REF!"}},{"$f":"IF('Development Costs'!#REF!,\"DJizbB0O2YI=\",0)","v":{"$error":"#REF!"}},{"$f":"AND('Development Costs'!#REF!,\"DJizbB0O2YM=\")","v":{"$error":"#REF!"}},{"$f":"AND('Development Costs'!#REF!,\"DJizbB0O2YQ=\")","v":{"$error":"#REF!"}},{"$f":"AND('Development Costs'!#REF!,\"DJizbB0O2YU=\")","v":{"$error":"#REF!"}},{"$f":"AND('Development Costs'!#REF!,\"DJizbB0O2YY=\")","v":{"$error":"#REF!"}},{"$f":"AND('Development Costs'!#REF!,\"DJizbB0O2Yc=\")","v":{"$error":"#REF!"}},{"$f":"AND('Development Costs'!#REF!,\"DJizbB0O2Yg=\")","v":{"$error":"#REF!"}},{"$f":"AND('Development Costs'!#REF!,\"DJizbB0O2Yk=\")","v":{"$error":"#REF!"}},{"$f":"AND('Development Costs'!#REF!,\"DJizbB0O2Yo=\")","v":{"$error":"#REF!"}},{"$f":"AND('Development Costs'!#REF!,\"DJizbB0O2Ys=\")","v":{"$error":"#REF!"}},{"$f":"AND('Development Costs'!#REF!,\"DJizbB0O2Yw=\")","v":{"$error":"#REF!"}},{"$f":"AND('Development Costs'!#REF!,\"DJizbB0O2Y0=\")","v":{"$error":"#REF!"}},{"$f":"AND('Development Costs'!#REF!,\"DJizbB0O2Y4=\")","v":{"$error":"#REF!"}},{"$f":"AND('Development Costs'!#REF!,\"DJizbB0O2Y8=\")","v":{"$error":"#REF!"}},{"$f":"AND('Development Costs'!#REF!,\"DJizbB0O2ZA=\")","v":{"$error":"#REF!"}},{"$f":"AND('Development Costs'!#REF!,\"DJizbB0O2ZE=\")","v":{"$error":"#REF!"}},{"$f":"AND('Development Costs'!#REF!,\"DJizbB0O2ZI=\")","v":{"$error":"#REF!"}},{"$f":"IF('Development Costs'!#REF!,\"DJizbB0O2ZM=\",0)","v":{"$error":"#REF!"}},{"$f":"AND('Development Costs'!#REF!,\"DJizbB0O2ZQ=\")","v":{"$error":"#REF!"}},{"$f":"AND('Development Costs'!#REF!,\"DJizbB0O2ZU=\")","v":{"$error":"#REF!"}},{"$f":"AND('Development Costs'!#REF!,\"DJizbB0O2ZY=\")","v":{"$error":"#REF!"}},{"$f":"AND('Development Costs'!#REF!,\"DJizbB0O2Zc=\")","v":{"$error":"#REF!"}},{"$f":"AND('Development Costs'!#REF!,\"DJizbB0O2Zg=\")","v":{"$error":"#REF!"}},{"$f":"AND('Development Costs'!#REF!,\"DJizbB0O2Zk=\")","v":{"$error":"#REF!"}},{"$f":"AND('Development Costs'!#REF!,\"DJizbB0O2Zo=\")","v":{"$error":"#REF!"}},{"$f":"AND('Development Costs'!#REF!,\"DJizbB0O2Zs=\")","v":{"$error":"#REF!"}},{"$f":"AND('Development Costs'!#REF!,\"DJizbB0O2Zw=\")","v":{"$error":"#REF!"}},{"$f":"AND('Development Costs'!#REF!,\"DJizbB0O2Z0=\")","v":{"$error":"#REF!"}},{"$f":"AND('Development Costs'!#REF!,\"DJizbB0O2Z4=\")","v":{"$error":"#REF!"}},{"$f":"AND('Development Costs'!#REF!,\"DJizbB0O2Z8=\")","v":{"$error":"#REF!"}},{"$f":"AND('Development Costs'!#REF!,\"DJizbB0O2aA=\")","v":{"$error":"#REF!"}},{"$f":"AND('Development Costs'!#REF!,\"DJizbB0O2aE=\")","v":{"$error":"#REF!"}},{"$f":"AND('Development Costs'!#REF!,\"DJizbB0O2aI=\")","v":{"$error":"#REF!"}},{"$f":"AND('Development Costs'!#REF!,\"DJizbB0O2aM=\")","v":{"$error":"#REF!"}},{"$f":"IF('Development Costs'!#REF!,\"DJizbB0O2aQ=\",0)","v":{"$error":"#REF!"}},{"$f":"AND('Development Costs'!#REF!,\"DJizbB0O2aU=\")","v":{"$error":"#REF!"}},{"$f":"AND('Development Costs'!#REF!,\"DJizbB0O2aY=\")","v":{"$error":"#REF!"}},{"$f":"AND('Development Costs'!#REF!,\"DJizbB0O2ac=\")","v":{"$error":"#REF!"}},{"$f":"AND('Development Costs'!#REF!,\"DJizbB0O2ag=\")","v":{"$error":"#REF!"}},{"$f":"AND('Development Costs'!#REF!,\"DJizbB0O2ak=\")","v":{"$error":"#REF!"}},{"$f":"AND('Development Costs'!#REF!,\"DJizbB0O2ao=\")","v":{"$error":"#REF!"}},{"$f":"AND('Development Costs'!#REF!,\"DJizbB0O2as=\")","v":{"$error":"#REF!"}},{"$f":"AND('Development Costs'!#REF!,\"DJizbB0O2aw=\")","v":{"$error":"#REF!"}},{"$f":"AND('Development Costs'!#REF!,\"DJizbB0O2a0=\")","v":{"$error":"#REF!"}},{"$f":"AND('Development Costs'!#REF!,\"DJizbB0O2a4=\")","v":{"$error":"#REF!"}},{"$f":"AND('Development Costs'!#REF!,\"DJizbB0O2a8=\")","v":{"$error":"#REF!"}},{"$f":"AND('Development Costs'!#REF!,\"DJizbB0O2bA=\")","v":{"$error":"#REF!"}},{"$f":"AND('Development Costs'!#REF!,\"DJizbB0O2bE=\")","v":{"$error":"#REF!"}},{"$f":"AND('Development Costs'!#REF!,\"DJizbB0O2bI=\")","v":{"$error":"#REF!"}},{"$f":"AND('Development Costs'!#REF!,\"DJizbB0O2bM=\")","v":{"$error":"#REF!"}},{"$f":"AND('Development Costs'!#REF!,\"DJizbB0O2bQ=\")","v":{"$error":"#REF!"}},{"$f":"IF('Development Costs'!#REF!,\"DJizbB0O2bU=\",0)","v":{"$error":"#REF!"}},{"$f":"AND('Development Costs'!#REF!,\"DJizbB0O2bY=\")","v":{"$error":"#REF!"}},{"$f":"AND('Development Costs'!#REF!,\"DJizbB0O2bc=\")","v":{"$error":"#REF!"}},{"$f":"AND('Development Costs'!#REF!,\"DJizbB0O2bg=\")","v":{"$error":"#REF!"}},{"$f":"AND('Development Costs'!#REF!,\"DJizbB0O2bk=\")","v":{"$error":"#REF!"}},{"$f":"AND('Development Costs'!#REF!,\"DJizbB0O2bo=\")","v":{"$error":"#REF!"}},{"$f":"AND('Development Costs'!#REF!,\"DJizbB0O2bs=\")","v":{"$error":"#REF!"}},{"$f":"AND('Development Costs'!#REF!,\"DJizbB0O2bw=\")","v":{"$error":"#REF!"}},{"$f":"AND('Development Costs'!#REF!,\"DJizbB0O2b0=\")","v":{"$error":"#REF!"}},{"$f":"AND('Development Costs'!#REF!,\"DJizbB0O2b4=\")","v":{"$error":"#REF!"}},{"$f":"AND('Development Costs'!#REF!,\"DJizbB0O2b8=\")","v":{"$error":"#REF!"}},{"$f":"AND('Development Costs'!#REF!,\"DJizbB0O2cA=\")","v":{"$error":"#REF!"}},{"$f":"AND('Development Costs'!#REF!,\"DJizbB0O2cE=\")","v":{"$error":"#REF!"}},{"$f":"AND('Development Costs'!#REF!,\"DJizbB0O2cI=\")","v":{"$error":"#REF!"}},{"$f":"AND('Development Costs'!#REF!,\"DJizbB0O2cM=\")","v":{"$error":"#REF!"}},{"$f":"AND('Development Costs'!#REF!,\"DJizbB0O2cQ=\")","v":{"$error":"#REF!"}},{"$f":"AND('Development Costs'!#REF!,\"DJizbB0O2cU=\")","v":{"$error":"#REF!"}},{"$f":"IF('Development Costs'!#REF!,\"DJizbB0O2cY=\",0)","v":{"$error":"#REF!"}},{"$f":"AND('Development Costs'!#REF!,\"DJizbB0O2cc=\")","v":{"$error":"#REF!"}},{"$f":"AND('Development Costs'!#REF!,\"DJizbB0O2cg=\")","v":{"$error":"#REF!"}},{"$f":"AND('Development Costs'!#REF!,\"DJizbB0O2ck=\")","v":{"$error":"#REF!"}},{"$f":"AND('Development Costs'!#REF!,\"DJizbB0O2co=\")","v":{"$error":"#REF!"}},{"$f":"AND('Development Costs'!#REF!,\"DJizbB0O2cs=\")","v":{"$error":"#REF!"}},{"$f":"AND('Development Costs'!#REF!,\"DJizbB0O2cw=\")","v":{"$error":"#REF!"}},{"$f":"AND('Development Costs'!#REF!,\"DJizbB0O2c0=\")","v":{"$error":"#REF!"}},{"$f":"AND('Development Costs'!#REF!,\"DJizbB0O2c4=\")","v":{"$error":"#REF!"}},{"$f":"AND('Development Costs'!#REF!,\"DJizbB0O2c8=\")","v":{"$error":"#REF!"}},{"$f":"AND('Development Costs'!#REF!,\"DJizbB0O2dA=\")","v":{"$error":"#REF!"}},{"$f":"AND('Development Costs'!#REF!,\"DJizbB0O2dE=\")","v":{"$error":"#REF!"}},{"$f":"AND('Development Costs'!#REF!,\"DJizbB0O2dI=\")","v":{"$error":"#REF!"}},{"$f":"AND('Development Costs'!#REF!,\"DJizbB0O2dM=\")","v":{"$error":"#REF!"}},{"$f":"AND('Development Costs'!#REF!,\"DJizbB0O2dQ=\")","v":{"$error":"#REF!"}},{"$f":"AND('Development Costs'!#REF!,\"DJizbB0O2dU=\")","v":{"$error":"#REF!"}},{"$f":"AND('Development Costs'!#REF!,\"DJizbB0O2dY=\")","v":{"$error":"#REF!"}},{"$f":"IF('Development Costs'!#REF!,\"DJizbB0O2dc=\",0)","v":{"$error":"#REF!"}},{"$f":"AND('Development Costs'!#REF!,\"DJizbB0O2dg=\")","v":{"$error":"#REF!"}},{"$f":"AND('Development Costs'!#REF!,\"DJizbB0O2dk=\")","v":{"$error":"#REF!"}},{"$f":"AND('Development Costs'!#REF!,\"DJizbB0O2do=\")","v":{"$error":"#REF!"}},{"$f":"AND('Development Costs'!#REF!,\"DJizbB0O2ds=\")","v":{"$error":"#REF!"}},{"$f":"AND('Development Costs'!#REF!,\"DJizbB0O2dw=\")","v":{"$error":"#REF!"}},{"$f":"AND('Development Costs'!#REF!,\"DJizbB0O2d0=\")","v":{"$error":"#REF!"}},{"$f":"AND('Development Costs'!#REF!,\"DJizbB0O2d4=\")","v":{"$error":"#REF!"}},{"$f":"AND('Development Costs'!#REF!,\"DJizbB0O2d8=\")","v":{"$error":"#REF!"}},{"$f":"AND('Development Costs'!#REF!,\"DJizbB0O2eA=\")","v":{"$error":"#REF!"}},{"$f":"AND('Development Costs'!#REF!,\"DJizbB0O2eE=\")","v":{"$error":"#REF!"}},{"$f":"AND('Development Costs'!#REF!,\"DJizbB0O2eI=\")","v":{"$error":"#REF!"}},{"$f":"AND('Development Costs'!#REF!,\"DJizbB0O2eM=\")","v":{"$error":"#REF!"}},{"$f":"AND('Development Costs'!#REF!,\"DJizbB0O2eQ=\")","v":{"$error":"#REF!"}},{"$f":"AND('Development Costs'!#REF!,\"DJizbB0O2eU=\")","v":{"$error":"#REF!"}},{"$f":"AND('Development Costs'!#REF!,\"DJizbB0O2eY=\")","v":{"$error":"#REF!"}},{"$f":"AND('Development Costs'!#REF!,\"DJizbB0O2ec=\")","v":{"$error":"#REF!"}},{"$f":"IF('Development Costs'!#REF!,\"DJizbB0O2eg=\",0)","v":{"$error":"#REF!"}},{"$f":"AND('Development Costs'!#REF!,\"DJizbB0O2ek=\")","v":{"$error":"#REF!"}},{"$f":"AND('Development Costs'!#REF!,\"DJizbB0O2eo=\")","v":{"$error":"#REF!"}},{"$f":"AND('Development Costs'!#REF!,\"DJizbB0O2es=\")","v":{"$error":"#REF!"}},{"$f":"AND('Development Costs'!#REF!,\"DJizbB0O2ew=\")","v":{"$error":"#REF!"}},{"$f":"AND('Development Costs'!#REF!,\"DJizbB0O2e0=\")","v":{"$error":"#REF!"}},{"$f":"AND('Development Costs'!#REF!,\"DJizbB0O2e4=\")","v":{"$error":"#REF!"}},{"$f":"AND('Development Costs'!#REF!,\"DJizbB0O2e8=\")","v":{"$error":"#REF!"}},{"$f":"AND('Development Costs'!#REF!,\"DJizbB0O2fA=\")","v":{"$error":"#REF!"}},{"$f":"AND('Development Costs'!#REF!,\"DJizbB0O2fE=\")","v":{"$error":"#REF!"}},{"$f":"AND('Development Costs'!#REF!,\"DJizbB0O2fI=\")","v":{"$error":"#REF!"}},{"$f":"AND('Development Costs'!#REF!,\"DJizbB0O2fM=\")","v":{"$error":"#REF!"}},{"$f":"AND('Development Costs'!#REF!,\"DJizbB0O2fQ=\")","v":{"$error":"#REF!"}},{"$f":"AND('Development Costs'!#REF!,\"DJizbB0O2fU=\")","v":{"$error":"#REF!"}},{"$f":"AND('Development Costs'!#REF!,\"DJizbB0O2fY=\")","v":{"$error":"#REF!"}},{"$f":"AND('Development Costs'!#REF!,\"DJizbB0O2fc=\")","v":{"$error":"#REF!"}},{"$f":"AND('Development Costs'!#REF!,\"DJizbB0O2fg=\")","v":{"$error":"#REF!"}},{"$f":"IF('Development Costs'!#REF!,\"DJizbB0O2fk=\",0)","v":{"$error":"#REF!"}},{"$f":"AND('Development Costs'!#REF!,\"DJizbB0O2fo=\")","v":{"$error":"#REF!"}},{"$f":"AND('Development Costs'!#REF!,\"DJizbB0O2fs=\")","v":{"$error":"#REF!"}},{"$f":"AND('Development Costs'!#REF!,\"DJizbB0O2fw=\")","v":{"$error":"#REF!"}},{"$f":"AND('Development Costs'!#REF!,\"DJizbB0O2f0=\")","v":{"$error":"#REF!"}},{"$f":"AND('Development Costs'!#REF!,\"DJizbB0O2f4=\")","v":{"$error":"#REF!"}},{"$f":"AND('Development Costs'!#REF!,\"DJizbB0O2f8=\")","v":{"$error":"#REF!"}}]
[{"$f":"AND('Development Costs'!#REF!,\"Co/2ICv9QAA=\")","v":{"$error":"#REF!"}},{"$f":"AND('Development Costs'!#REF!,\"Co/2ICv9QAE=\")","v":{"$error":"#REF!"}},{"$f":"AND('Development Costs'!#REF!,\"Co/2ICv9QAI=\")","v":{"$error":"#REF!"}},{"$f":"AND('Development Costs'!#REF!,\"Co/2ICv9QAM=\")","v":{"$error":"#REF!"}},{"$f":"AND('Development Costs'!#REF!,\"Co/2ICv9QAQ=\")","v":{"$error":"#REF!"}},{"$f":"AND('Development Costs'!#REF!,\"Co/2ICv9QAU=\")","v":{"$error":"#REF!"}},{"$f":"AND('Development Costs'!#REF!,\"Co/2ICv9QAY=\")","v":{"$error":"#REF!"}},{"$f":"AND('Development Costs'!#REF!,\"Co/2ICv9QAc=\")","v":{"$error":"#REF!"}},{"$f":"AND('Development Costs'!#REF!,\"Co/2ICv9QAg=\")","v":{"$error":"#REF!"}},{"$f":"AND('Development Costs'!#REF!,\"Co/2ICv9QAk=\")","v":{"$error":"#REF!"}},{"$f":"IF('Development Costs'!#REF!,\"Co/2ICv9QAo=\",0)","v":{"$error":"#REF!"}},{"$f":"AND('Development Costs'!#REF!,\"Co/2ICv9QAs=\")","v":{"$error":"#REF!"}},{"$f":"AND('Development Costs'!#REF!,\"Co/2ICv9QAw=\")","v":{"$error":"#REF!"}},{"$f":"AND('Development Costs'!#REF!,\"Co/2ICv9QA0=\")","v":{"$error":"#REF!"}},{"$f":"AND('Development Costs'!#REF!,\"Co/2ICv9QA4=\")","v":{"$error":"#REF!"}},{"$f":"AND('Development Costs'!#REF!,\"Co/2ICv9QA8=\")","v":{"$error":"#REF!"}},{"$f":"AND('Development Costs'!#REF!,\"Co/2ICv9QBA=\")","v":{"$error":"#REF!"}},{"$f":"AND('Development Costs'!#REF!,\"Co/2ICv9QBE=\")","v":{"$error":"#REF!"}},{"$f":"AND('Development Costs'!#REF!,\"Co/2ICv9QBI=\")","v":{"$error":"#REF!"}},{"$f":"AND('Development Costs'!#REF!,\"Co/2ICv9QBM=\")","v":{"$error":"#REF!"}},{"$f":"AND('Development Costs'!#REF!,\"Co/2ICv9QBQ=\")","v":{"$error":"#REF!"}},{"$f":"AND('Development Costs'!#REF!,\"Co/2ICv9QBU=\")","v":{"$error":"#REF!"}},{"$f":"AND('Development Costs'!#REF!,\"Co/2ICv9QBY=\")","v":{"$error":"#REF!"}},{"$f":"AND('Development Costs'!#REF!,\"Co/2ICv9QBc=\")","v":{"$error":"#REF!"}},{"$f":"AND('Development Costs'!#REF!,\"Co/2ICv9QBg=\")","v":{"$error":"#REF!"}},{"$f":"AND('Development Costs'!#REF!,\"Co/2ICv9QBk=\")","v":{"$error":"#REF!"}},{"$f":"AND('Development Costs'!#REF!,\"Co/2ICv9QBo=\")","v":{"$error":"#REF!"}},{"$f":"IF('Development Costs'!#REF!,\"Co/2ICv9QBs=\",0)","v":{"$error":"#REF!"}},{"$f":"AND('Development Costs'!#REF!,\"Co/2ICv9QBw=\")","v":{"$error":"#REF!"}},{"$f":"AND('Development Costs'!#REF!,\"Co/2ICv9QB0=\")","v":{"$error":"#REF!"}},{"$f":"AND('Development Costs'!#REF!,\"Co/2ICv9QB4=\")","v":{"$error":"#REF!"}},{"$f":"AND('Development Costs'!#REF!,\"Co/2ICv9QB8=\")","v":{"$error":"#REF!"}},{"$f":"AND('Development Costs'!#REF!,\"Co/2ICv9QCA=\")","v":{"$error":"#REF!"}},{"$f":"AND('Development Costs'!#REF!,\"Co/2ICv9QCE=\")","v":{"$error":"#REF!"}},{"$f":"AND('Development Costs'!#REF!,\"Co/2ICv9QCI=\")","v":{"$error":"#REF!"}},{"$f":"AND('Development Costs'!#REF!,\"Co/2ICv9QCM=\")","v":{"$error":"#REF!"}},{"$f":"AND('Development Costs'!#REF!,\"Co/2ICv9QCQ=\")","v":{"$error":"#REF!"}},{"$f":"AND('Development Costs'!#REF!,\"Co/2ICv9QCU=\")","v":{"$error":"#REF!"}},{"$f":"AND('Development Costs'!#REF!,\"Co/2ICv9QCY=\")","v":{"$error":"#REF!"}},{"$f":"AND('Development Costs'!#REF!,\"Co/2ICv9QCc=\")","v":{"$error":"#REF!"}},{"$f":"AND('Development Costs'!#REF!,\"Co/2ICv9QCg=\")","v":{"$error":"#REF!"}},{"$f":"AND('Development Costs'!#REF!,\"Co/2ICv9QCk=\")","v":{"$error":"#REF!"}},{"$f":"AND('Development Costs'!#REF!,\"Co/2ICv9QCo=\")","v":{"$error":"#REF!"}},{"$f":"AND('Development Costs'!#REF!,\"Co/2ICv9QCs=\")","v":{"$error":"#REF!"}},{"$f":"IF('Development Costs'!#REF!,\"Co/2ICv9QCw=\",0)","v":{"$error":"#REF!"}},{"$f":"AND('Development Costs'!#REF!,\"Co/2ICv9QC0=\")","v":{"$error":"#REF!"}},{"$f":"AND('Development Costs'!#REF!,\"Co/2ICv9QC4=\")","v":{"$error":"#REF!"}},{"$f":"AND('Development Costs'!#REF!,\"Co/2ICv9QC8=\")","v":{"$error":"#REF!"}},{"$f":"AND('Development Costs'!#REF!,\"Co/2ICv9QDA=\")","v":{"$error":"#REF!"}},{"$f":"AND('Development Costs'!#REF!,\"Co/2ICv9QDE=\")","v":{"$error":"#REF!"}},{"$f":"AND('Development Costs'!#REF!,\"Co/2ICv9QDI=\")","v":{"$error":"#REF!"}},{"$f":"AND('Development Costs'!#REF!,\"Co/2ICv9QDM=\")","v":{"$error":"#REF!"}},{"$f":"AND('Development Costs'!#REF!,\"Co/2ICv9QDQ=\")","v":{"$error":"#REF!"}},{"$f":"AND('Development Costs'!#REF!,\"Co/2ICv9QDU=\")","v":{"$error":"#REF!"}},{"$f":"AND('Development Costs'!#REF!,\"Co/2ICv9QDY=\")","v":{"$error":"#REF!"}},{"$f":"AND('Development Costs'!#REF!,\"Co/2ICv9QDc=\")","v":{"$error":"#REF!"}},{"$f":"AND('Development Costs'!#REF!,\"Co/2ICv9QDg=\")","v":{"$error":"#REF!"}},{"$f":"AND('Development Costs'!#REF!,\"Co/2ICv9QDk=\")","v":{"$error":"#REF!"}},{"$f":"AND('Development Costs'!#REF!,\"Co/2ICv9QDo=\")","v":{"$error":"#REF!"}},{"$f":"AND('Development Costs'!#REF!,\"Co/2ICv9QDs=\")","v":{"$error":"#REF!"}},{"$f":"AND('Development Costs'!#REF!,\"Co/2ICv9QDw=\")","v":{"$error":"#REF!"}},{"$f":"IF('Development Costs'!#REF!,\"Co/2ICv9QD0=\",0)","v":{"$error":"#REF!"}},{"$f":"AND('Development Costs'!#REF!,\"Co/2ICv9QD4=\")","v":{"$error":"#REF!"}},{"$f":"AND('Development Costs'!#REF!,\"Co/2ICv9QD8=\")","v":{"$error":"#REF!"}},{"$f":"AND('Development Costs'!#REF!,\"Co/2ICv9QEA=\")","v":{"$error":"#REF!"}},{"$f":"AND('Development Costs'!#REF!,\"Co/2ICv9QEE=\")","v":{"$error":"#REF!"}},{"$f":"AND('Development Costs'!#REF!,\"Co/2ICv9QEI=\")","v":{"$error":"#REF!"}},{"$f":"AND('Development Costs'!#REF!,\"Co/2ICv9QEM=\")","v":{"$error":"#REF!"}},{"$f":"AND('Development Costs'!#REF!,\"Co/2ICv9QEQ=\")","v":{"$error":"#REF!"}},{"$f":"AND('Development Costs'!#REF!,\"Co/2ICv9QEU=\")","v":{"$error":"#REF!"}},{"$f":"AND('Development Costs'!#REF!,\"Co/2ICv9QEY=\")","v":{"$error":"#REF!"}},{"$f":"AND('Development Costs'!#REF!,\"Co/2ICv9QEc=\")","v":{"$error":"#REF!"}},{"$f":"AND('Development Costs'!#REF!,\"Co/2ICv9QEg=\")","v":{"$error":"#REF!"}},{"$f":"AND('Development Costs'!#REF!,\"Co/2ICv9QEk=\")","v":{"$error":"#REF!"}},{"$f":"AND('Development Costs'!#REF!,\"Co/2ICv9QEo=\")","v":{"$error":"#REF!"}},{"$f":"AND('Development Costs'!#REF!,\"Co/2ICv9QEs=\")","v":{"$error":"#REF!"}},{"$f":"AND('Development Costs'!#REF!,\"Co/2ICv9QEw=\")","v":{"$error":"#REF!"}},{"$f":"AND('Development Costs'!#REF!,\"Co/2ICv9QE0=\")","v":{"$error":"#REF!"}},{"$f":"IF('Development Costs'!#REF!,\"Co/2ICv9QE4=\",0)","v":{"$error":"#REF!"}},{"$f":"AND('Development Costs'!#REF!,\"Co/2ICv9QE8=\")","v":{"$error":"#REF!"}},{"$f":"AND('Development Costs'!#REF!,\"Co/2ICv9QFA=\")","v":{"$error":"#REF!"}},{"$f":"AND('Development Costs'!#REF!,\"Co/2ICv9QFE=\")","v":{"$error":"#REF!"}},{"$f":"AND('Development Costs'!#REF!,\"Co/2ICv9QFI=\")","v":{"$error":"#REF!"}},{"$f":"AND('Development Costs'!#REF!,\"Co/2ICv9QFM=\")","v":{"$error":"#REF!"}},{"$f":"AND('Development Costs'!#REF!,\"Co/2ICv9QFQ=\")","v":{"$error":"#REF!"}},{"$f":"AND('Development Costs'!#REF!,\"Co/2ICv9QFU=\")","v":{"$error":"#REF!"}},{"$f":"AND('Development Costs'!#REF!,\"Co/2ICv9QFY=\")","v":{"$error":"#REF!"}},{"$f":"AND('Development Costs'!#REF!,\"Co/2ICv9QFc=\")","v":{"$error":"#REF!"}},{"$f":"AND('Development Costs'!#REF!,\"Co/2ICv9QFg=\")","v":{"$error":"#REF!"}},{"$f":"AND('Development Costs'!#REF!,\"Co/2ICv9QFk=\")","v":{"$error":"#REF!"}},{"$f":"AND('Development Costs'!#REF!,\"Co/2ICv9QFo=\")","v":{"$error":"#REF!"}},{"$f":"AND('Development Costs'!#REF!,\"Co/2ICv9QFs=\")","v":{"$error":"#REF!"}},{"$f":"AND('Development Costs'!#REF!,\"Co/2ICv9QFw=\")","v":{"$error":"#REF!"}},{"$f":"AND('Development Costs'!#REF!,\"Co/2ICv9QF0=\")","v":{"$error":"#REF!"}},{"$f":"AND('Development Costs'!#REF!,\"Co/2ICv9QF4=\")","v":{"$error":"#REF!"}},{"$f":"IF('Development Costs'!#REF!,\"Co/2ICv9QF8=\",0)","v":{"$error":"#REF!"}},{"$f":"AND('Development Costs'!#REF!,\"Co/2ICv9QGA=\")","v":{"$error":"#REF!"}},{"$f":"AND('Development Costs'!#REF!,\"Co/2ICv9QGE=\")","v":{"$error":"#REF!"}},{"$f":"AND('Development Costs'!#REF!,\"Co/2ICv9QGI=\")","v":{"$error":"#REF!"}},{"$f":"AND('Development Costs'!#REF!,\"Co/2ICv9QGM=\")","v":{"$error":"#REF!"}},{"$f":"AND('Development Costs'!#REF!,\"Co/2ICv9QGQ=\")","v":{"$error":"#REF!"}},{"$f":"AND('Development Costs'!#REF!,\"Co/2ICv9QGU=\")","v":{"$error":"#REF!"}},{"$f":"AND('Development Costs'!#REF!,\"Co/2ICv9QGY=\")","v":{"$error":"#REF!"}},{"$f":"AND('Development Costs'!#REF!,\"Co/2ICv9QGc=\")","v":{"$error":"#REF!"}},{"$f":"AND('Development Costs'!#REF!,\"Co/2ICv9QGg=\")","v":{"$error":"#REF!"}},{"$f":"AND('Development Costs'!#REF!,\"Co/2ICv9QGk=\")","v":{"$error":"#REF!"}},{"$f":"AND('Development Costs'!#REF!,\"Co/2ICv9QGo=\")","v":{"$error":"#REF!"}},{"$f":"AND('Development Costs'!#REF!,\"Co/2ICv9QGs=\")","v":{"$error":"#REF!"}},{"$f":"AND('Development Costs'!#REF!,\"Co/2ICv9QGw=\")","v":{"$error":"#REF!"}},{"$f":"AND('Development Costs'!#REF!,\"Co/2ICv9QG0=\")","v":{"$error":"#REF!"}},{"$f":"AND('Development Costs'!#REF!,\"Co/2ICv9QG4=\")","v":{"$error":"#REF!"}},{"$f":"AND('Development Costs'!#REF!,\"Co/2ICv9QG8=\")","v":{"$error":"#REF!"}},{"$f":"IF('Development Costs'!#REF!,\"Co/2ICv9QHA=\",0)","v":{"$error":"#REF!"}},{"$f":"AND('Development Costs'!#REF!,\"Co/2ICv9QHE=\")","v":{"$error":"#REF!"}},{"$f":"AND('Development Costs'!#REF!,\"Co/2ICv9QHI=\")","v":{"$error":"#REF!"}},{"$f":"AND('Development Costs'!#REF!,\"Co/2ICv9QHM=\")","v":{"$error":"#REF!"}},{"$f":"AND('Development Costs'!#REF!,\"Co/2ICv9QHQ=\")","v":{"$error":"#REF!"}},{"$f":"AND('Development Costs'!#REF!,\"Co/2ICv9QHU=\")","v":{"$error":"#REF!"}},{"$f":"AND('Development Costs'!#REF!,\"Co/2ICv9QHY=\")","v":{"$error":"#REF!"}},{"$f":"AND('Development Costs'!#REF!,\"Co/2ICv9QHc=\")","v":{"$error":"#REF!"}},{"$f":"AND('Development Costs'!#REF!,\"Co/2ICv9QHg=\")","v":{"$error":"#REF!"}},{"$f":"AND('Development Costs'!#REF!,\"Co/2ICv9QHk=\")","v":{"$error":"#REF!"}},{"$f":"AND('Development Costs'!#REF!,\"Co/2ICv9QHo=\")","v":{"$error":"#REF!"}},{"$f":"AND('Development Costs'!#REF!,\"Co/2ICv9QHs=\")","v":{"$error":"#REF!"}},{"$f":"AND('Development Costs'!#REF!,\"Co/2ICv9QHw=\")","v":{"$error":"#REF!"}},{"$f":"AND('Development Costs'!#REF!,\"Co/2ICv9QH0=\")","v":{"$error":"#REF!"}},{"$f":"AND('Development Costs'!#REF!,\"Co/2ICv9QH4=\")","v":{"$error":"#REF!"}},{"$f":"AND('Development Costs'!#REF!,\"Co/2ICv9QH8=\")","v":{"$error":"#REF!"}},{"$f":"AND('Development Costs'!#REF!,\"Co/2ICv9QIA=\")","v":{"$error":"#REF!"}},{"$f":"IF('Development Costs'!#REF!,\"Co/2ICv9QIE=\",0)","v":{"$error":"#REF!"}},{"$f":"AND('Development Costs'!#REF!,\"Co/2ICv9QII=\")","v":{"$error":"#REF!"}},{"$f":"AND('Development Costs'!#REF!,\"Co/2ICv9QIM=\")","v":{"$error":"#REF!"}},{"$f":"AND('Development Costs'!#REF!,\"Co/2ICv9QIQ=\")","v":{"$error":"#REF!"}},{"$f":"AND('Development Costs'!#REF!,\"Co/2ICv9QIU=\")","v":{"$error":"#REF!"}},{"$f":"AND('Development Costs'!#REF!,\"Co/2ICv9QIY=\")","v":{"$error":"#REF!"}},{"$f":"AND('Development Costs'!#REF!,\"Co/2ICv9QIc=\")","v":{"$error":"#REF!"}},{"$f":"AND('Development Costs'!#REF!,\"Co/2ICv9QIg=\")","v":{"$error":"#REF!"}},{"$f":"AND('Development Costs'!#REF!,\"Co/2ICv9QIk=\")","v":{"$error":"#REF!"}},{"$f":"AND('Development Costs'!#REF!,\"Co/2ICv9QIo=\")","v":{"$error":"#REF!"}},{"$f":"AND('Development Costs'!#REF!,\"Co/2ICv9QIs=\")","v":{"$error":"#REF!"}},{"$f":"AND('Development Costs'!#REF!,\"Co/2ICv9QIw=\")","v":{"$error":"#REF!"}},{"$f":"AND('Development Costs'!#REF!,\"Co/2ICv9QI0=\")","v":{"$error":"#REF!"}},{"$f":"AND('Development Costs'!#REF!,\"Co/2ICv9QI4=\")","v":{"$error":"#REF!"}},{"$f":"AND('Development Costs'!#REF!,\"Co/2ICv9QI8=\")","v":{"$error":"#REF!"}},{"$f":"AND('Development Costs'!#REF!,\"Co/2ICv9QJA=\")","v":{"$error":"#REF!"}},{"$f":"AND('Development Costs'!#REF!,\"Co/2ICv9QJE=\")","v":{"$error":"#REF!"}},{"$f":"IF('Development Costs'!#REF!,\"Co/2ICv9QJI=\",0)","v":{"$error":"#REF!"}},{"$f":"AND('Development Costs'!#REF!,\"Co/2ICv9QJM=\")","v":{"$error":"#REF!"}},{"$f":"AND('Development Costs'!#REF!,\"Co/2ICv9QJQ=\")","v":{"$error":"#REF!"}},{"$f":"AND('Development Costs'!#REF!,\"Co/2ICv9QJU=\")","v":{"$error":"#REF!"}},{"$f":"AND('Development Costs'!#REF!,\"Co/2ICv9QJY=\")","v":{"$error":"#REF!"}},{"$f":"AND('Development Costs'!#REF!,\"Co/2ICv9QJc=\")","v":{"$error":"#REF!"}},{"$f":"AND('Development Costs'!#REF!,\"Co/2ICv9QJg=\")","v":{"$error":"#REF!"}},{"$f":"AND('Development Costs'!#REF!,\"Co/2ICv9QJk=\")","v":{"$error":"#REF!"}},{"$f":"AND('Development Costs'!#REF!,\"Co/2ICv9QJo=\")","v":{"$error":"#REF!"}},{"$f":"AND('Development Costs'!#REF!,\"Co/2ICv9QJs=\")","v":{"$error":"#REF!"}},{"$f":"AND('Development Costs'!#REF!,\"Co/2ICv9QJw=\")","v":{"$error":"#REF!"}},{"$f":"AND('Development Costs'!#REF!,\"Co/2ICv9QJ0=\")","v":{"$error":"#REF!"}},{"$f":"AND('Development Costs'!#REF!,\"Co/2ICv9QJ4=\")","v":{"$error":"#REF!"}},{"$f":"AND('Development Costs'!#REF!,\"Co/2ICv9QJ8=\")","v":{"$error":"#REF!"}},{"$f":"AND('Development Costs'!#REF!,\"Co/2ICv9QKA=\")","v":{"$error":"#REF!"}},{"$f":"AND('Development Costs'!#REF!,\"Co/2ICv9QKE=\")","v":{"$error":"#REF!"}},{"$f":"AND('Development Costs'!#REF!,\"Co/2ICv9QKI=\")","v":{"$error":"#REF!"}},{"$f":"IF('Development Costs'!#REF!,\"Co/2ICv9QKM=\",0)","v":{"$error":"#REF!"}},{"$f":"AND('Development Costs'!#REF!,\"Co/2ICv9QKQ=\")","v":{"$error":"#REF!"}},{"$f":"AND('Development Costs'!#REF!,\"Co/2ICv9QKU=\")","v":{"$error":"#REF!"}},{"$f":"AND('Development Costs'!#REF!,\"Co/2ICv9QKY=\")","v":{"$error":"#REF!"}},{"$f":"AND('Development Costs'!#REF!,\"Co/2ICv9QKc=\")","v":{"$error":"#REF!"}},{"$f":"AND('Development Costs'!#REF!,\"Co/2ICv9QKg=\")","v":{"$error":"#REF!"}},{"$f":"AND('Development Costs'!#REF!,\"Co/2ICv9QKk=\")","v":{"$error":"#REF!"}},{"$f":"AND('Development Costs'!#REF!,\"Co/2ICv9QKo=\")","v":{"$error":"#REF!"}},{"$f":"AND('Development Costs'!#REF!,\"Co/2ICv9QKs=\")","v":{"$error":"#REF!"}},{"$f":"AND('Development Costs'!#REF!,\"Co/2ICv9QKw=\")","v":{"$error":"#REF!"}},{"$f":"AND('Development Costs'!#REF!,\"Co/2ICv9QK0=\")","v":{"$error":"#REF!"}},{"$f":"AND('Development Costs'!#REF!,\"Co/2ICv9QK4=\")","v":{"$error":"#REF!"}},{"$f":"AND('Development Costs'!#REF!,\"Co/2ICv9QK8=\")","v":{"$error":"#REF!"}},{"$f":"AND('Development Costs'!#REF!,\"Co/2ICv9QLA=\")","v":{"$error":"#REF!"}},{"$f":"AND('Development Costs'!#REF!,\"Co/2ICv9QLE=\")","v":{"$error":"#REF!"}},{"$f":"AND('Development Costs'!#REF!,\"Co/2ICv9QLI=\")","v":{"$error":"#REF!"}},{"$f":"AND('Development Costs'!#REF!,\"Co/2ICv9QLM=\")","v":{"$error":"#REF!"}},{"$f":"IF('Development Costs'!#REF!,\"Co/2ICv9QLQ=\",0)","v":{"$error":"#REF!"}},{"$f":"AND('Development Costs'!#REF!,\"Co/2ICv9QLU=\")","v":{"$error":"#REF!"}},{"$f":"AND('Development Costs'!#REF!,\"Co/2ICv9QLY=\")","v":{"$error":"#REF!"}},{"$f":"AND('Development Costs'!#REF!,\"Co/2ICv9QLc=\")","v":{"$error":"#REF!"}},{"$f":"AND('Development Costs'!#REF!,\"Co/2ICv9QLg=\")","v":{"$error":"#REF!"}},{"$f":"AND('Development Costs'!#REF!,\"Co/2ICv9QLk=\")","v":{"$error":"#REF!"}},{"$f":"AND('Development Costs'!#REF!,\"Co/2ICv9QLo=\")","v":{"$error":"#REF!"}},{"$f":"AND('Development Costs'!#REF!,\"Co/2ICv9QLs=\")","v":{"$error":"#REF!"}},{"$f":"AND('Development Costs'!#REF!,\"Co/2ICv9QLw=\")","v":{"$error":"#REF!"}},{"$f":"AND('Development Costs'!#REF!,\"Co/2ICv9QL0=\")","v":{"$error":"#REF!"}},{"$f":"AND('Development Costs'!#REF!,\"Co/2ICv9QL4=\")","v":{"$error":"#REF!"}},{"$f":"AND('Development Costs'!#REF!,\"Co/2ICv9QL8=\")","v":{"$error":"#REF!"}},{"$f":"AND('Development Costs'!#REF!,\"Co/2ICv9QMA=\")","v":{"$error":"#REF!"}},{"$f":"AND('Development Costs'!#REF!,\"Co/2ICv9QME=\")","v":{"$error":"#REF!"}},{"$f":"AND('Development Costs'!#REF!,\"Co/2ICv9QMI=\")","v":{"$error":"#REF!"}},{"$f":"AND('Development Costs'!#REF!,\"Co/2ICv9QMM=\")","v":{"$error":"#REF!"}},{"$f":"AND('Development Costs'!#REF!,\"Co/2ICv9QMQ=\")","v":{"$error":"#REF!"}},{"$f":"IF('Development Costs'!#REF!,\"Co/2ICv9QMU=\",0)","v":{"$error":"#REF!"}},{"$f":"AND('Development Costs'!#REF!,\"Co/2ICv9QMY=\")","v":{"$error":"#REF!"}},{"$f":"AND('Development Costs'!#REF!,\"Co/2ICv9QMc=\")","v":{"$error":"#REF!"}},{"$f":"AND('Development Costs'!#REF!,\"Co/2ICv9QMg=\")","v":{"$error":"#REF!"}},{"$f":"AND('Development Costs'!#REF!,\"Co/2ICv9QMk=\")","v":{"$error":"#REF!"}},{"$f":"AND('Development Costs'!#REF!,\"Co/2ICv9QMo=\")","v":{"$error":"#REF!"}},{"$f":"AND('Development Costs'!#REF!,\"Co/2ICv9QMs=\")","v":{"$error":"#REF!"}},{"$f":"AND('Development Costs'!#REF!,\"Co/2ICv9QMw=\")","v":{"$error":"#REF!"}},{"$f":"AND('Development Costs'!#REF!,\"Co/2ICv9QM0=\")","v":{"$error":"#REF!"}},{"$f":"AND('Development Costs'!#REF!,\"Co/2ICv9QM4=\")","v":{"$error":"#REF!"}},{"$f":"AND('Development Costs'!#REF!,\"Co/2ICv9QM8=\")","v":{"$error":"#REF!"}},{"$f":"AND('Development Costs'!#REF!,\"Co/2ICv9QNA=\")","v":{"$error":"#REF!"}},{"$f":"AND('Development Costs'!#REF!,\"Co/2ICv9QNE=\")","v":{"$error":"#REF!"}},{"$f":"AND('Development Costs'!#REF!,\"Co/2ICv9QNI=\")","v":{"$error":"#REF!"}},{"$f":"AND('Development Costs'!#REF!,\"Co/2ICv9QNM=\")","v":{"$error":"#REF!"}},{"$f":"AND('Development Costs'!#REF!,\"Co/2ICv9QNQ=\")","v":{"$error":"#REF!"}},{"$f":"AND('Development Costs'!#REF!,\"Co/2ICv9QNU=\")","v":{"$error":"#REF!"}},{"$f":"IF('Development Costs'!#REF!,\"Co/2ICv9QNY=\",0)","v":{"$error":"#REF!"}},{"$f":"AND('Development Costs'!#REF!,\"Co/2ICv9QNc=\")","v":{"$error":"#REF!"}},{"$f":"AND('Development Costs'!#REF!,\"Co/2ICv9QNg=\")","v":{"$error":"#REF!"}},{"$f":"AND('Development Costs'!#REF!,\"Co/2ICv9QNk=\")","v":{"$error":"#REF!"}},{"$f":"AND('Development Costs'!#REF!,\"Co/2ICv9QNo=\")","v":{"$error":"#REF!"}},{"$f":"AND('Development Costs'!#REF!,\"Co/2ICv9QNs=\")","v":{"$error":"#REF!"}},{"$f":"AND('Development Costs'!#REF!,\"Co/2ICv9QNw=\")","v":{"$error":"#REF!"}},{"$f":"AND('Development Costs'!#REF!,\"Co/2ICv9QN0=\")","v":{"$error":"#REF!"}},{"$f":"AND('Development Costs'!#REF!,\"Co/2ICv9QN4=\")","v":{"$error":"#REF!"}},{"$f":"AND('Development Costs'!#REF!,\"Co/2ICv9QN8=\")","v":{"$error":"#REF!"}},{"$f":"AND('Development Costs'!#REF!,\"Co/2ICv9QOA=\")","v":{"$error":"#REF!"}},{"$f":"AND('Development Costs'!#REF!,\"Co/2ICv9QOE=\")","v":{"$error":"#REF!"}},{"$f":"AND('Development Costs'!#REF!,\"Co/2ICv9QOI=\")","v":{"$error":"#REF!"}},{"$f":"AND('Development Costs'!#REF!,\"Co/2ICv9QOM=\")","v":{"$error":"#REF!"}},{"$f":"AND('Development Costs'!#REF!,\"Co/2ICv9QOQ=\")","v":{"$error":"#REF!"}},{"$f":"AND('Development Costs'!#REF!,\"Co/2ICv9QOU=\")","v":{"$error":"#REF!"}},{"$f":"AND('Development Costs'!#REF!,\"Co/2ICv9QOY=\")","v":{"$error":"#REF!"}},{"$f":"IF('Development Costs'!#REF!,\"Co/2ICv9QOc=\",0)","v":{"$error":"#REF!"}},{"$f":"AND('Development Costs'!#REF!,\"Co/2ICv9QOg=\")","v":{"$error":"#REF!"}},{"$f":"AND('Development Costs'!#REF!,\"Co/2ICv9QOk=\")","v":{"$error":"#REF!"}},{"$f":"AND('Development Costs'!#REF!,\"Co/2ICv9QOo=\")","v":{"$error":"#REF!"}},{"$f":"AND('Development Costs'!#REF!,\"Co/2ICv9QOs=\")","v":{"$error":"#REF!"}},{"$f":"AND('Development Costs'!#REF!,\"Co/2ICv9QOw=\")","v":{"$error":"#REF!"}},{"$f":"AND('Development Costs'!#REF!,\"Co/2ICv9QO0=\")","v":{"$error":"#REF!"}},{"$f":"AND('Development Costs'!#REF!,\"Co/2ICv9QO4=\")","v":{"$error":"#REF!"}},{"$f":"AND('Development Costs'!#REF!,\"Co/2ICv9QO8=\")","v":{"$error":"#REF!"}},{"$f":"AND('Development Costs'!#REF!,\"Co/2ICv9QPA=\")","v":{"$error":"#REF!"}},{"$f":"AND('Development Costs'!#REF!,\"Co/2ICv9QPE=\")","v":{"$error":"#REF!"}},{"$f":"AND('Development Costs'!#REF!,\"Co/2ICv9QPI=\")","v":{"$error":"#REF!"}},{"$f":"AND('Development Costs'!#REF!,\"Co/2ICv9QPM=\")","v":{"$error":"#REF!"}},{"$f":"AND('Development Costs'!#REF!,\"Co/2ICv9QPQ=\")","v":{"$error":"#REF!"}},{"$f":"AND('Development Costs'!#REF!,\"Co/2ICv9QPU=\")","v":{"$error":"#REF!"}},{"$f":"AND('Development Costs'!#REF!,\"Co/2ICv9QPY=\")","v":{"$error":"#REF!"}},{"$f":"AND('Development Costs'!#REF!,\"Co/2ICv9QPc=\")","v":{"$error":"#REF!"}},{"$f":"IF('Development Costs'!#REF!,\"Co/2ICv9QPg=\",0)","v":{"$error":"#REF!"}},{"$f":"AND('Development Costs'!#REF!,\"Co/2ICv9QPk=\")","v":{"$error":"#REF!"}},{"$f":"AND('Development Costs'!#REF!,\"Co/2ICv9QPo=\")","v":{"$error":"#REF!"}},{"$f":"AND('Development Costs'!#REF!,\"Co/2ICv9QPs=\")","v":{"$error":"#REF!"}},{"$f":"AND('Development Costs'!#REF!,\"Co/2ICv9QPw=\")","v":{"$error":"#REF!"}},{"$f":"AND('Development Costs'!#REF!,\"Co/2ICv9QP0=\")","v":{"$error":"#REF!"}},{"$f":"AND('Development Costs'!#REF!,\"Co/2ICv9QP4=\")","v":{"$error":"#REF!"}},{"$f":"AND('Development Costs'!#REF!,\"Co/2ICv9QP8=\")","v":{"$error":"#REF!"}}]
[{"$f":"AND('Development Costs'!#REF!,\"ShRmMT2ytAA=\")","v":{"$error":"#REF!"}},{"$f":"AND('Development Costs'!#REF!,\"ShRmMT2ytAE=\")","v":{"$error":"#REF!"}},{"$f":"AND('Development Costs'!#REF!,\"ShRmMT2ytAI=\")","v":{"$error":"#REF!"}},{"$f":"AND('Development Costs'!#REF!,\"ShRmMT2ytAM=\")","v":{"$error":"#REF!"}},{"$f":"AND('Development Costs'!#REF!,\"ShRmMT2ytAQ=\")","v":{"$error":"#REF!"}},{"$f":"AND('Development Costs'!#REF!,\"ShRmMT2ytAU=\")","v":{"$error":"#REF!"}},{"$f":"AND('Development Costs'!#REF!,\"ShRmMT2ytAY=\")","v":{"$error":"#REF!"}},{"$f":"AND('Development Costs'!#REF!,\"ShRmMT2ytAc=\")","v":{"$error":"#REF!"}},{"$f":"AND('Development Costs'!#REF!,\"ShRmMT2ytAg=\")","v":{"$error":"#REF!"}},{"$f":"IF('Development Costs'!#REF!,\"ShRmMT2ytAk=\",0)","v":{"$error":"#REF!"}},{"$f":"AND('Development Costs'!#REF!,\"ShRmMT2ytAo=\")","v":{"$error":"#REF!"}},{"$f":"AND('Development Costs'!#REF!,\"ShRmMT2ytAs=\")","v":{"$error":"#REF!"}},{"$f":"AND('Development Costs'!#REF!,\"ShRmMT2ytAw=\")","v":{"$error":"#REF!"}},{"$f":"AND('Development Costs'!#REF!,\"ShRmMT2ytA0=\")","v":{"$error":"#REF!"}},{"$f":"AND('Development Costs'!#REF!,\"ShRmMT2ytA4=\")","v":{"$error":"#REF!"}},{"$f":"AND('Development Costs'!#REF!,\"ShRmMT2ytA8=\")","v":{"$error":"#REF!"}},{"$f":"AND('Development Costs'!#REF!,\"ShRmMT2ytBA=\")","v":{"$error":"#REF!"}},{"$f":"AND('Development Costs'!#REF!,\"ShRmMT2ytBE=\")","v":{"$error":"#REF!"}},{"$f":"AND('Development Costs'!#REF!,\"ShRmMT2ytBI=\")","v":{"$error":"#REF!"}},{"$f":"AND('Development Costs'!#REF!,\"ShRmMT2ytBM=\")","v":{"$error":"#REF!"}},{"$f":"AND('Development Costs'!#REF!,\"ShRmMT2ytBQ=\")","v":{"$error":"#REF!"}},{"$f":"AND('Development Costs'!#REF!,\"ShRmMT2ytBU=\")","v":{"$error":"#REF!"}},{"$f":"AND('Development Costs'!#REF!,\"ShRmMT2ytBY=\")","v":{"$error":"#REF!"}},{"$f":"AND('Development Costs'!#REF!,\"ShRmMT2ytBc=\")","v":{"$error":"#REF!"}},{"$f":"AND('Development Costs'!#REF!,\"ShRmMT2ytBg=\")","v":{"$error":"#REF!"}},{"$f":"AND('Development Costs'!#REF!,\"ShRmMT2ytBk=\")","v":{"$error":"#REF!"}},{"$f":"IF('Development Costs'!#REF!,\"ShRmMT2ytBo=\",0)","v":{"$error":"#REF!"}},{"$f":"AND('Development Costs'!#REF!,\"ShRmMT2ytBs=\")","v":{"$error":"#REF!"}},{"$f":"AND('Development Costs'!#REF!,\"ShRmMT2ytBw=\")","v":{"$error":"#REF!"}},{"$f":"AND('Development Costs'!#REF!,\"ShRmMT2ytB0=\")","v":{"$error":"#REF!"}},{"$f":"AND('Development Costs'!#REF!,\"ShRmMT2ytB4=\")","v":{"$error":"#REF!"}},{"$f":"AND('Development Costs'!#REF!,\"ShRmMT2ytB8=\")","v":{"$error":"#REF!"}},{"$f":"AND('Development Costs'!#REF!,\"ShRmMT2ytCA=\")","v":{"$error":"#REF!"}},{"$f":"AND('Development Costs'!#REF!,\"ShRmMT2ytCE=\")","v":{"$error":"#REF!"}},{"$f":"AND('Development Costs'!#REF!,\"ShRmMT2ytCI=\")","v":{"$error":"#REF!"}},{"$f":"AND('Development Costs'!#REF!,\"ShRmMT2ytCM=\")","v":{"$error":"#REF!"}},{"$f":"AND('Development Costs'!#REF!,\"ShRmMT2ytCQ=\")","v":{"$error":"#REF!"}},{"$f":"AND('Development Costs'!#REF!,\"ShRmMT2ytCU=\")","v":{"$error":"#REF!"}},{"$f":"AND('Development Costs'!#REF!,\"ShRmMT2ytCY=\")","v":{"$error":"#REF!"}},{"$f":"AND('Development Costs'!#REF!,\"ShRmMT2ytCc=\")","v":{"$error":"#REF!"}},{"$f":"AND('Development Costs'!#REF!,\"ShRmMT2ytCg=\")","v":{"$error":"#REF!"}},{"$f":"AND('Development Costs'!#REF!,\"ShRmMT2ytCk=\")","v":{"$error":"#REF!"}},{"$f":"AND('Development Costs'!#REF!,\"ShRmMT2ytCo=\")","v":{"$error":"#REF!"}},{"$f":"IF('Development Costs'!#REF!,\"ShRmMT2ytCs=\",0)","v":{"$error":"#REF!"}},{"$f":"AND('Development Costs'!#REF!,\"ShRmMT2ytCw=\")","v":{"$error":"#REF!"}},{"$f":"AND('Development Costs'!#REF!,\"ShRmMT2ytC0=\")","v":{"$error":"#REF!"}},{"$f":"AND('Development Costs'!#REF!,\"ShRmMT2ytC4=\")","v":{"$error":"#REF!"}},{"$f":"AND('Development Costs'!#REF!,\"ShRmMT2ytC8=\")","v":{"$error":"#REF!"}},{"$f":"AND('Development Costs'!#REF!,\"ShRmMT2ytDA=\")","v":{"$error":"#REF!"}},{"$f":"AND('Development Costs'!#REF!,\"ShRmMT2ytDE=\")","v":{"$error":"#REF!"}},{"$f":"AND('Development Costs'!#REF!,\"ShRmMT2ytDI=\")","v":{"$error":"#REF!"}},{"$f":"AND('Development Costs'!#REF!,\"ShRmMT2ytDM=\")","v":{"$error":"#REF!"}},{"$f":"AND('Development Costs'!#REF!,\"ShRmMT2ytDQ=\")","v":{"$error":"#REF!"}},{"$f":"AND('Development Costs'!#REF!,\"ShRmMT2ytDU=\")","v":{"$error":"#REF!"}},{"$f":"AND('Development Costs'!#REF!,\"ShRmMT2ytDY=\")","v":{"$error":"#REF!"}},{"$f":"AND('Development Costs'!#REF!,\"ShRmMT2ytDc=\")","v":{"$error":"#REF!"}},{"$f":"AND('Development Costs'!#REF!,\"ShRmMT2ytDg=\")","v":{"$error":"#REF!"}},{"$f":"AND('Development Costs'!#REF!,\"ShRmMT2ytDk=\")","v":{"$error":"#REF!"}},{"$f":"AND('Development Costs'!#REF!,\"ShRmMT2ytDo=\")","v":{"$error":"#REF!"}},{"$f":"AND('Development Costs'!#REF!,\"ShRmMT2ytDs=\")","v":{"$error":"#REF!"}},{"$f":"IF('Development Costs'!#REF!,\"ShRmMT2ytDw=\",0)","v":{"$error":"#REF!"}},{"$f":"AND('Development Costs'!#REF!,\"ShRmMT2ytD0=\")","v":{"$error":"#REF!"}},{"$f":"AND('Development Costs'!#REF!,\"ShRmMT2ytD4=\")","v":{"$error":"#REF!"}},{"$f":"AND('Development Costs'!#REF!,\"ShRmMT2ytD8=\")","v":{"$error":"#REF!"}},{"$f":"AND('Development Costs'!#REF!,\"ShRmMT2ytEA=\")","v":{"$error":"#REF!"}},{"$f":"AND('Development Costs'!#REF!,\"ShRmMT2ytEE=\")","v":{"$error":"#REF!"}},{"$f":"AND('Development Costs'!#REF!,\"ShRmMT2ytEI=\")","v":{"$error":"#REF!"}},{"$f":"AND('Development Costs'!#REF!,\"ShRmMT2ytEM=\")","v":{"$error":"#REF!"}},{"$f":"AND('Development Costs'!#REF!,\"ShRmMT2ytEQ=\")","v":{"$error":"#REF!"}},{"$f":"AND('Development Costs'!#REF!,\"ShRmMT2ytEU=\")","v":{"$error":"#REF!"}},{"$f":"AND('Development Costs'!#REF!,\"ShRmMT2ytEY=\")","v":{"$error":"#REF!"}},{"$f":"AND('Development Costs'!#REF!,\"ShRmMT2ytEc=\")","v":{"$error":"#REF!"}},{"$f":"AND('Development Costs'!#REF!,\"ShRmMT2ytEg=\")","v":{"$error":"#REF!"}},{"$f":"AND('Development Costs'!#REF!,\"ShRmMT2ytEk=\")","v":{"$error":"#REF!"}},{"$f":"AND('Development Costs'!#REF!,\"ShRmMT2ytEo=\")","v":{"$error":"#REF!"}},{"$f":"AND('Development Costs'!#REF!,\"ShRmMT2ytEs=\")","v":{"$error":"#REF!"}},{"$f":"AND('Development Costs'!#REF!,\"ShRmMT2ytEw=\")","v":{"$error":"#REF!"}},{"$f":"IF('Development Costs'!#REF!,\"ShRmMT2ytE0=\",0)","v":{"$error":"#REF!"}},{"$f":"AND('Development Costs'!#REF!,\"ShRmMT2ytE4=\")","v":{"$error":"#REF!"}},{"$f":"AND('Development Costs'!#REF!,\"ShRmMT2ytE8=\")","v":{"$error":"#REF!"}},{"$f":"AND('Development Costs'!#REF!,\"ShRmMT2ytFA=\")","v":{"$error":"#REF!"}},{"$f":"AND('Development Costs'!#REF!,\"ShRmMT2ytFE=\")","v":{"$error":"#REF!"}},{"$f":"AND('Development Costs'!#REF!,\"ShRmMT2ytFI=\")","v":{"$error":"#REF!"}},{"$f":"AND('Development Costs'!#REF!,\"ShRmMT2ytFM=\")","v":{"$error":"#REF!"}},{"$f":"AND('Development Costs'!#REF!,\"ShRmMT2ytFQ=\")","v":{"$error":"#REF!"}},{"$f":"AND('Development Costs'!#REF!,\"ShRmMT2ytFU=\")","v":{"$error":"#REF!"}},{"$f":"AND('Development Costs'!#REF!,\"ShRmMT2ytFY=\")","v":{"$error":"#REF!"}},{"$f":"AND('Development Costs'!#REF!,\"ShRmMT2ytFc=\")","v":{"$error":"#REF!"}},{"$f":"AND('Development Costs'!#REF!,\"ShRmMT2ytFg=\")","v":{"$error":"#REF!"}},{"$f":"AND('Development Costs'!#REF!,\"ShRmMT2ytFk=\")","v":{"$error":"#REF!"}},{"$f":"AND('Development Costs'!#REF!,\"ShRmMT2ytFo=\")","v":{"$error":"#REF!"}},{"$f":"AND('Development Costs'!#REF!,\"ShRmMT2ytFs=\")","v":{"$error":"#REF!"}},{"$f":"AND('Development Costs'!#REF!,\"ShRmMT2ytFw=\")","v":{"$error":"#REF!"}},{"$f":"AND('Development Costs'!#REF!,\"ShRmMT2ytF0=\")","v":{"$error":"#REF!"}},{"$f":"IF('Development Costs'!#REF!,\"ShRmMT2ytF4=\",0)","v":{"$error":"#REF!"}},{"$f":"AND('Development Costs'!#REF!,\"ShRmMT2ytF8=\")","v":{"$error":"#REF!"}},{"$f":"AND('Development Costs'!#REF!,\"ShRmMT2ytGA=\")","v":{"$error":"#REF!"}},{"$f":"AND('Development Costs'!#REF!,\"ShRmMT2ytGE=\")","v":{"$error":"#REF!"}},{"$f":"AND('Development Costs'!#REF!,\"ShRmMT2ytGI=\")","v":{"$error":"#REF!"}},{"$f":"AND('Development Costs'!#REF!,\"ShRmMT2ytGM=\")","v":{"$error":"#REF!"}},{"$f":"AND('Development Costs'!#REF!,\"ShRmMT2ytGQ=\")","v":{"$error":"#REF!"}},{"$f":"AND('Development Costs'!#REF!,\"ShRmMT2ytGU=\")","v":{"$error":"#REF!"}},{"$f":"AND('Development Costs'!#REF!,\"ShRmMT2ytGY=\")","v":{"$error":"#REF!"}},{"$f":"AND('Development Costs'!#REF!,\"ShRmMT2ytGc=\")","v":{"$error":"#REF!"}},{"$f":"AND('Development Costs'!#REF!,\"ShRmMT2ytGg=\")","v":{"$error":"#REF!"}},{"$f":"AND('Development Costs'!#REF!,\"ShRmMT2ytGk=\")","v":{"$error":"#REF!"}},{"$f":"AND('Development Costs'!#REF!,\"ShRmMT2ytGo=\")","v":{"$error":"#REF!"}},{"$f":"AND('Development Costs'!#REF!,\"ShRmMT2ytGs=\")","v":{"$error":"#REF!"}},{"$f":"AND('Development Costs'!#REF!,\"ShRmMT2ytGw=\")","v":{"$error":"#REF!"}},{"$f":"AND('Development Costs'!#REF!,\"ShRmMT2ytG0=\")","v":{"$error":"#REF!"}},{"$f":"AND('Development Costs'!#REF!,\"ShRmMT2ytG4=\")","v":{"$error":"#REF!"}},{"$f":"IF('Development Costs'!#REF!,\"ShRmMT2ytG8=\",0)","v":{"$error":"#REF!"}},{"$f":"AND('Development Costs'!#REF!,\"ShRmMT2ytHA=\")","v":{"$error":"#REF!"}},{"$f":"AND('Development Costs'!#REF!,\"ShRmMT2ytHE=\")","v":{"$error":"#REF!"}},{"$f":"AND('Development Costs'!#REF!,\"ShRmMT2ytHI=\")","v":{"$error":"#REF!"}},{"$f":"AND('Development Costs'!#REF!,\"ShRmMT2ytHM=\")","v":{"$error":"#REF!"}},{"$f":"AND('Development Costs'!#REF!,\"ShRmMT2ytHQ=\")","v":{"$error":"#REF!"}},{"$f":"AND('Development Costs'!#REF!,\"ShRmMT2ytHU=\")","v":{"$error":"#REF!"}},{"$f":"AND('Development Costs'!#REF!,\"ShRmMT2ytHY=\")","v":{"$error":"#REF!"}},{"$f":"AND('Development Costs'!#REF!,\"ShRmMT2ytHc=\")","v":{"$error":"#REF!"}},{"$f":"AND('Development Costs'!#REF!,\"ShRmMT2ytHg=\")","v":{"$error":"#REF!"}},{"$f":"AND('Development Costs'!#REF!,\"ShRmMT2ytHk=\")","v":{"$error":"#REF!"}},{"$f":"AND('Development Costs'!#REF!,\"ShRmMT2ytHo=\")","v":{"$error":"#REF!"}},{"$f":"AND('Development Costs'!#REF!,\"ShRmMT2ytHs=\")","v":{"$error":"#REF!"}},{"$f":"AND('Development Costs'!#REF!,\"ShRmMT2ytHw=\")","v":{"$error":"#REF!"}},{"$f":"AND('Development Costs'!#REF!,\"ShRmMT2ytH0=\")","v":{"$error":"#REF!"}},{"$f":"AND('Development Costs'!#REF!,\"ShRmMT2ytH4=\")","v":{"$error":"#REF!"}},{"$f":"AND('Development Costs'!#REF!,\"ShRmMT2ytH8=\")","v":{"$error":"#REF!"}},{"$f":"IF('Development Costs'!#REF!,\"ShRmMT2ytIA=\",0)","v":{"$error":"#REF!"}},{"$f":"AND('Development Costs'!#REF!,\"ShRmMT2ytIE=\")","v":{"$error":"#REF!"}},{"$f":"AND('Development Costs'!#REF!,\"ShRmMT2ytII=\")","v":{"$error":"#REF!"}},{"$f":"AND('Development Costs'!#REF!,\"ShRmMT2ytIM=\")","v":{"$error":"#REF!"}},{"$f":"AND('Development Costs'!#REF!,\"ShRmMT2ytIQ=\")","v":{"$error":"#REF!"}},{"$f":"AND('Development Costs'!#REF!,\"ShRmMT2ytIU=\")","v":{"$error":"#REF!"}},{"$f":"AND('Development Costs'!#REF!,\"ShRmMT2ytIY=\")","v":{"$error":"#REF!"}},{"$f":"AND('Development Costs'!#REF!,\"ShRmMT2ytIc=\")","v":{"$error":"#REF!"}},{"$f":"AND('Development Costs'!#REF!,\"ShRmMT2ytIg=\")","v":{"$error":"#REF!"}},{"$f":"AND('Development Costs'!#REF!,\"ShRmMT2ytIk=\")","v":{"$error":"#REF!"}},{"$f":"AND('Development Costs'!#REF!,\"ShRmMT2ytIo=\")","v":{"$error":"#REF!"}},{"$f":"AND('Development Costs'!#REF!,\"ShRmMT2ytIs=\")","v":{"$error":"#REF!"}},{"$f":"AND('Development Costs'!#REF!,\"ShRmMT2ytIw=\")","v":{"$error":"#REF!"}},{"$f":"AND('Development Costs'!#REF!,\"ShRmMT2ytI0=\")","v":{"$error":"#REF!"}},{"$f":"AND('Development Costs'!#REF!,\"ShRmMT2ytI4=\")","v":{"$error":"#REF!"}},{"$f":"AND('Development Costs'!#REF!,\"ShRmMT2ytI8=\")","v":{"$error":"#REF!"}},{"$f":"AND('Development Costs'!#REF!,\"ShRmMT2ytJA=\")","v":{"$error":"#REF!"}},{"$f":"IF('Development Costs'!#REF!,\"ShRmMT2ytJE=\",0)","v":{"$error":"#REF!"}},{"$f":"AND('Development Costs'!#REF!,\"ShRmMT2ytJI=\")","v":{"$error":"#REF!"}},{"$f":"AND('Development Costs'!#REF!,\"ShRmMT2ytJM=\")","v":{"$error":"#REF!"}},{"$f":"AND('Development Costs'!#REF!,\"ShRmMT2ytJQ=\")","v":{"$error":"#REF!"}},{"$f":"AND('Development Costs'!#REF!,\"ShRmMT2ytJU=\")","v":{"$error":"#REF!"}},{"$f":"AND('Development Costs'!#REF!,\"ShRmMT2ytJY=\")","v":{"$error":"#REF!"}},{"$f":"AND('Development Costs'!#REF!,\"ShRmMT2ytJc=\")","v":{"$error":"#REF!"}},{"$f":"AND('Development Costs'!#REF!,\"ShRmMT2ytJg=\")","v":{"$error":"#REF!"}},{"$f":"AND('Development Costs'!#REF!,\"ShRmMT2ytJk=\")","v":{"$error":"#REF!"}},{"$f":"AND('Development Costs'!#REF!,\"ShRmMT2ytJo=\")","v":{"$error":"#REF!"}},{"$f":"AND('Development Costs'!#REF!,\"ShRmMT2ytJs=\")","v":{"$error":"#REF!"}},{"$f":"AND('Development Costs'!#REF!,\"ShRmMT2ytJw=\")","v":{"$error":"#REF!"}},{"$f":"AND('Development Costs'!#REF!,\"ShRmMT2ytJ0=\")","v":{"$error":"#REF!"}},{"$f":"AND('Development Costs'!#REF!,\"ShRmMT2ytJ4=\")","v":{"$error":"#REF!"}},{"$f":"AND('Development Costs'!#REF!,\"ShRmMT2ytJ8=\")","v":{"$error":"#REF!"}},{"$f":"AND('Development Costs'!#REF!,\"ShRmMT2ytKA=\")","v":{"$error":"#REF!"}},{"$f":"AND('Development Costs'!#REF!,\"ShRmMT2ytKE=\")","v":{"$error":"#REF!"}},{"$f":"IF('Development Costs'!#REF!,\"ShRmMT2ytKI=\",0)","v":{"$error":"#REF!"}},{"$f":"AND('Development Costs'!#REF!,\"ShRmMT2ytKM=\")","v":{"$error":"#REF!"}},{"$f":"AND('Development Costs'!#REF!,\"ShRmMT2ytKQ=\")","v":{"$error":"#REF!"}},{"$f":"AND('Development Costs'!#REF!,\"ShRmMT2ytKU=\")","v":{"$error":"#REF!"}},{"$f":"AND('Development Costs'!#REF!,\"ShRmMT2ytKY=\")","v":{"$error":"#REF!"}},{"$f":"AND('Development Costs'!#REF!,\"ShRmMT2ytKc=\")","v":{"$error":"#REF!"}},{"$f":"AND('Development Costs'!#REF!,\"ShRmMT2ytKg=\")","v":{"$error":"#REF!"}},{"$f":"AND('Development Costs'!#REF!,\"ShRmMT2ytKk=\")","v":{"$error":"#REF!"}},{"$f":"AND('Development Costs'!#REF!,\"ShRmMT2ytKo=\")","v":{"$error":"#REF!"}},{"$f":"AND('Development Costs'!#REF!,\"ShRmMT2ytKs=\")","v":{"$error":"#REF!"}},{"$f":"AND('Development Costs'!#REF!,\"ShRmMT2ytKw=\")","v":{"$error":"#REF!"}},{"$f":"AND('Development Costs'!#REF!,\"ShRmMT2ytK0=\")","v":{"$error":"#REF!"}},{"$f":"AND('Development Costs'!#REF!,\"ShRmMT2ytK4=\")","v":{"$error":"#REF!"}},{"$f":"AND('Development Costs'!#REF!,\"ShRmMT2ytK8=\")","v":{"$error":"#REF!"}},{"$f":"AND('Development Costs'!#REF!,\"ShRmMT2ytLA=\")","v":{"$error":"#REF!"}},{"$f":"AND('Development Costs'!#REF!,\"ShRmMT2ytLE=\")","v":{"$error":"#REF!"}},{"$f":"AND('Development Costs'!#REF!,\"ShRmMT2ytLI=\")","v":{"$error":"#REF!"}},{"$f":"IF('Development Costs'!#REF!,\"ShRmMT2ytLM=\",0)","v":{"$error":"#REF!"}},{"$f":"AND('Development Costs'!#REF!,\"ShRmMT2ytLQ=\")","v":{"$error":"#REF!"}},{"$f":"AND('Development Costs'!#REF!,\"ShRmMT2ytLU=\")","v":{"$error":"#REF!"}},{"$f":"AND('Development Costs'!#REF!,\"ShRmMT2ytLY=\")","v":{"$error":"#REF!"}},{"$f":"AND('Development Costs'!#REF!,\"ShRmMT2ytLc=\")","v":{"$error":"#REF!"}},{"$f":"AND('Development Costs'!#REF!,\"ShRmMT2ytLg=\")","v":{"$error":"#REF!"}},{"$f":"AND('Development Costs'!#REF!,\"ShRmMT2ytLk=\")","v":{"$error":"#REF!"}},{"$f":"AND('Development Costs'!#REF!,\"ShRmMT2ytLo=\")","v":{"$error":"#REF!"}},{"$f":"AND('Development Costs'!#REF!,\"ShRmMT2ytLs=\")","v":{"$error":"#REF!"}},{"$f":"AND('Development Costs'!#REF!,\"ShRmMT2ytLw=\")","v":{"$error":"#REF!"}},{"$f":"AND('Development Costs'!#REF!,\"ShRmMT2ytL0=\")","v":{"$error":"#REF!"}},{"$f":"AND('Development Costs'!#REF!,\"ShRmMT2ytL4=\")","v":{"$error":"#REF!"}},{"$f":"AND('Development Costs'!#REF!,\"ShRmMT2ytL8=\")","v":{"$error":"#REF!"}},{"$f":"AND('Development Costs'!#REF!,\"ShRmMT2ytMA=\")","v":{"$error":"#REF!"}},{"$f":"AND('Development Costs'!#REF!,\"ShRmMT2ytME=\")","v":{"$error":"#REF!"}},{"$f":"AND('Development Costs'!#REF!,\"ShRmMT2ytMI=\")","v":{"$error":"#REF!"}},{"$f":"AND('Development Costs'!#REF!,\"ShRmMT2ytMM=\")","v":{"$error":"#REF!"}},{"$f":"IF('Development Costs'!1:1,\"ShRmMT2ytMQ=\",0)","v":0},{"$f":"AND('Development Costs'!#REF!,\"ShRmMT2ytMU=\")","v":{"$error":"#REF!"}},{"$f":"AND('Development Costs'!#REF!,\"ShRmMT2ytMY=\")","v":{"$error":"#REF!"}},{"$f":"AND('Development Costs'!#REF!,\"ShRmMT2ytMc=\")","v":{"$error":"#REF!"}},{"$f":"AND('Development Costs'!#REF!,\"ShRmMT2ytMg=\")","v":{"$error":"#REF!"}},{"$f":"AND('Development Costs'!#REF!,\"ShRmMT2ytMk=\")","v":{"$error":"#REF!"}},{"$f":"AND('Development Costs'!#REF!,\"ShRmMT2ytMo=\")","v":{"$error":"#REF!"}},{"$f":"AND('Development Costs'!#REF!,\"ShRmMT2ytMs=\")","v":{"$error":"#REF!"}},{"$f":"AND('Development Costs'!#REF!,\"ShRmMT2ytMw=\")","v":{"$error":"#REF!"}},{"$f":"AND('Development Costs'!#REF!,\"ShRmMT2ytM0=\")","v":{"$error":"#REF!"}},{"$f":"AND('Development Costs'!#REF!,\"ShRmMT2ytM4=\")","v":{"$error":"#REF!"}},{"$f":"AND('Development Costs'!#REF!,\"ShRmMT2ytM8=\")","v":{"$error":"#REF!"}},{"$f":"AND('Development Costs'!#REF!,\"ShRmMT2ytNA=\")","v":{"$error":"#REF!"}},{"$f":"AND('Development Costs'!#REF!,\"ShRmMT2ytNE=\")","v":{"$error":"#REF!"}},{"$f":"AND('Development Costs'!#REF!,\"ShRmMT2ytNI=\")","v":{"$error":"#REF!"}},{"$f":"AND('Development Costs'!N1,\"ShRmMT2ytNM=\")","v":{"$error":"#VALUE!"}},{"$f":"AND('Development Costs'!O1,\"ShRmMT2ytNQ=\")","v":{"$error":"#VALUE!"}},{"$f":"IF('Development Costs'!2:2,\"ShRmMT2ytNU=\",0)","v":0},{"$f":"AND('Development Costs'!A1,\"ShRmMT2ytNY=\")","v":{"$error":"#VALUE!"}},{"$f":"AND('Development Costs'!B1,\"ShRmMT2ytNc=\")","v":{"$error":"#VALUE!"}},{"$f":"AND('Development Costs'!C1,\"ShRmMT2ytNg=\")","v":{"$error":"#VALUE!"}},{"$f":"AND('Development Costs'!D1,\"ShRmMT2ytNk=\")","v":{"$error":"#VALUE!"}},{"$f":"AND('Development Costs'!#REF!,\"ShRmMT2ytNo=\")","v":{"$error":"#REF!"}},{"$f":"AND('Development Costs'!E1,\"ShRmMT2ytNs=\")","v":{"$error":"#VALUE!"}},{"$f":"AND('Development Costs'!F1,\"ShRmMT2ytNw=\")","v":{"$error":"#VALUE!"}},{"$f":"AND('Development Costs'!G1,\"ShRmMT2ytN0=\")","v":{"$error":"#VALUE!"}},{"$f":"AND('Development Costs'!H1,\"ShRmMT2ytN4=\")","v":{"$error":"#VALUE!"}},{"$f":"AND('Development Costs'!I1,\"ShRmMT2ytN8=\")","v":{"$error":"#VALUE!"}},{"$f":"AND('Development Costs'!J1,\"ShRmMT2ytOA=\")","v":{"$error":"#VALUE!"}},{"$f":"AND('Development Costs'!K1,\"ShRmMT2ytOE=\")","v":{"$error":"#VALUE!"}},{"$f":"AND('Development Costs'!L1,\"ShRmMT2ytOI=\")","v":{"$error":"#VALUE!"}},{"$f":"AND('Development Costs'!M1,\"ShRmMT2ytOM=\")","v":{"$error":"#VALUE!"}},{"$f":"AND('Development Costs'!N2,\"ShRmMT2ytOQ=\")","v":{"$error":"#VALUE!"}},{"$f":"AND('Development Costs'!O2,\"ShRmMT2ytOU=\")","v":{"$error":"#VALUE!"}},{"$f":"IF('Development Costs'!3:3,\"ShRmMT2ytOY=\",0)","v":0},{"$f":"AND('Development Costs'!A2,\"ShRmMT2ytOc=\")","v":{"$error":"#VALUE!"}},{"$f":"AND('Development Costs'!B2,\"ShRmMT2ytOg=\")","v":{"$error":"#VALUE!"}},{"$f":"AND('Development Costs'!C2,\"ShRmMT2ytOk=\")","v":{"$error":"#VALUE!"}},{"$f":"AND('Development Costs'!D2,\"ShRmMT2ytOo=\")","v":{"$error":"#VALUE!"}},{"$f":"AND('Development Costs'!#REF!,\"ShRmMT2ytOs=\")","v":{"$error":"#REF!"}},{"$f":"AND('Development Costs'!E2,\"ShRmMT2ytOw=\")","v":{"$error":"#VALUE!"}},{"$f":"AND('Development Costs'!F2,\"ShRmMT2ytO0=\")","v":{"$error":"#VALUE!"}},{"$f":"AND('Development Costs'!G2,\"ShRmMT2ytO4=\")","v":{"$error":"#VALUE!"}},{"$f":"AND('Development Costs'!H2,\"ShRmMT2ytO8=\")","v":{"$error":"#VALUE!"}},{"$f":"AND('Development Costs'!I2,\"ShRmMT2ytPA=\")","v":{"$error":"#VALUE!"}},{"$f":"AND('Development Costs'!J2,\"ShRmMT2ytPE=\")","v":{"$error":"#VALUE!"}},{"$f":"AND('Development Costs'!K2,\"ShRmMT2ytPI=\")","v":{"$error":"#VALUE!"}},{"$f":"AND('Development Costs'!L2,\"ShRmMT2ytPM=\")","v":{"$error":"#VALUE!"}},{"$f":"AND('Development Costs'!M2,\"ShRmMT2ytPQ=\")","v":{"$error":"#VALUE!"}},{"$f":"AND('Development Costs'!N3,\"ShRmMT2ytPU=\")","v":{"$error":"#VALUE!"}},{"$f":"AND('Development Costs'!O3,\"ShRmMT2ytPY=\")","v":{"$error":"#VALUE!"}},{"$f":"IF('Development Costs'!4:4,\"ShRmMT2ytPc=\",0)","v":0},{"$f":"AND('Development Costs'!A3,\"ShRmMT2ytPg=\")","v":{"$error":"#VALUE!"}},{"$f":"AND('Development Costs'!B3,\"ShRmMT2ytPk=\")","v":{"$error":"#VALUE!"}},{"$f":"AND('Development Costs'!C3,\"ShRmMT2ytPo=\")","v":{"$error":"#VALUE!"}},{"$f":"AND('Development Costs'!D3,\"ShRmMT2ytPs=\")","v":{"$error":"#VALUE!"}},{"$f":"AND('Development Costs'!#REF!,\"ShRmMT2ytPw=\")","v":{"$error":"#REF!"}},{"$f":"AND('Development Costs'!E3,\"ShRmMT2ytP0=\")","v":{"$error":"#VALUE!"}},{"$f":"AND('Development Costs'!F3,\"ShRmMT2ytP4=\")","v":{"$error":"#VALUE!"}},{"$f":"AND('Development Costs'!G3,\"ShRmMT2ytP8=\")","v":{"$error":"#VALUE!"}}]
[{"$f":"AND('Development Costs'!H3,\"NbReZikcRAA=\")","v":{"$error":"#VALUE!"}},{"$f":"AND('Development Costs'!I3,\"NbReZikcRAE=\")","v":{"$error":"#VALUE!"}},{"$f":"AND('Development Costs'!J3,\"NbReZikcRAI=\")","v":{"$error":"#VALUE!"}},{"$f":"AND('Development Costs'!K3,\"NbReZikcRAM=\")","v":{"$error":"#VALUE!"}},{"$f":"AND('Development Costs'!L3,\"NbReZikcRAQ=\")","v":{"$error":"#VALUE!"}},{"$f":"AND('Development Costs'!M3,\"NbReZikcRAU=\")","v":{"$error":"#VALUE!"}},{"$f":"AND('Development Costs'!N4,\"NbReZikcRAY=\")","v":{"$error":"#VALUE!"}},{"$f":"AND('Development Costs'!O4,\"NbReZikcRAc=\")","v":{"$error":"#VALUE!"}},{"$f":"IF('Development Costs'!5:5,\"NbReZikcRAg=\",0)","v":0},{"$f":"AND('Development Costs'!A4,\"NbReZikcRAk=\")","v":{"$error":"#VALUE!"}},{"$f":"AND('Development Costs'!B4,\"NbReZikcRAo=\")","v":{"$error":"#VALUE!"}},{"$f":"AND('Development Costs'!#REF!,\"NbReZikcRAs=\")","v":{"$error":"#REF!"}},{"$f":"AND('Development Costs'!#REF!,\"NbReZikcRAw=\")","v":{"$error":"#REF!"}},{"$f":"AND('Development Costs'!#REF!,\"NbReZikcRA0=\")","v":{"$error":"#REF!"}},{"$f":"AND('Development Costs'!#REF!,\"NbReZikcRA4=\")","v":{"$error":"#REF!"}},{"$f":"AND('Development Costs'!#REF!,\"NbReZikcRA8=\")","v":{"$error":"#REF!"}},{"$f":"AND('Development Costs'!C4,\"NbReZikcRBA=\")","v":{"$error":"#VALUE!"}},{"$f":"AND('Development Costs'!D4,\"NbReZikcRBE=\")","v":{"$error":"#VALUE!"}},{"$f":"AND('Development Costs'!E4,\"NbReZikcRBI=\")","v":{"$error":"#VALUE!"}},{"$f":"AND('Development Costs'!F4,\"NbReZikcRBM=\")","v":{"$error":"#VALUE!"}},{"$f":"AND('Development Costs'!G4,\"NbReZikcRBQ=\")","v":{"$error":"#VALUE!"}},{"$f":"AND('Development Costs'!H4,\"NbReZikcRBU=\")","v":{"$error":"#VALUE!"}},{"$f":"AND('Development Costs'!I4,\"NbReZikcRBY=\")","v":{"$error":"#VALUE!"}},{"$f":"AND('Development Costs'!J4,\"NbReZikcRBc=\")","v":{"$error":"#VALUE!"}},{"$f":"AND('Development Costs'!K4,\"NbReZikcRBg=\")","v":{"$error":"#VALUE!"}},{"$f":"IF('Development Costs'!6:6,\"NbReZikcRBk=\",0)","v":0},{"$f":"AND('Development Costs'!A5,\"NbReZikcRBo=\")","v":{"$error":"#VALUE!"}},{"$f":"AND('Development Costs'!B5,\"NbReZikcRBs=\")","v":{"$error":"#VALUE!"}},{"$f":"AND('Development Costs'!#REF!,\"NbReZikcRBw=\")","v":{"$error":"#REF!"}},{"$f":"AND('Development Costs'!#REF!,\"NbReZikcRB0=\")","v":{"$error":"#REF!"}},{"$f":"AND('Development Costs'!#REF!,\"NbReZikcRB4=\")","v":{"$error":"#REF!"}},{"$f":"AND('Development Costs'!#REF!,\"NbReZikcRB8=\")","v":{"$error":"#REF!"}},{"$f":"AND('Development Costs'!#REF!,\"NbReZikcRCA=\")","v":{"$error":"#REF!"}},{"$f":"AND('Development Costs'!C5,\"NbReZikcRCE=\")","v":{"$error":"#VALUE!"}},{"$f":"AND('Development Costs'!D5,\"NbReZikcRCI=\")","v":{"$error":"#VALUE!"}},{"$f":"AND('Development Costs'!E5,\"NbReZikcRCM=\")","v":{"$error":"#VALUE!"}},{"$f":"AND('Development Costs'!F5,\"NbReZikcRCQ=\")","v":{"$error":"#VALUE!"}},{"$f":"AND('Development Costs'!G5,\"NbReZikcRCU=\")","v":{"$error":"#VALUE!"}},{"$f":"AND('Development Costs'!H5,\"NbReZikcRCY=\")","v":{"$error":"#VALUE!"}},{"$f":"AND('Development Costs'!I5,\"NbReZikcRCc=\")","v":{"$error":"#VALUE!"}},{"$f":"AND('Development Costs'!J5,\"NbReZikcRCg=\")","v":{"$error":"#VALUE!"}},{"$f":"AND('Development Costs'!K5,\"NbReZikcRCk=\")","v":{"$error":"#VALUE!"}},{"$f":"IF('Development Costs'!7:7,\"NbReZikcRCo=\",0)","v":0},{"$f":"AND('Development Costs'!A6,\"NbReZikcRCs=\")","v":{"$error":"#VALUE!"}},{"$f":"AND('Development Costs'!B6,\"NbReZikcRCw=\")","v":{"$error":"#VALUE!"}},{"$f":"AND('Development Costs'!#REF!,\"NbReZikcRC0=\")","v":{"$error":"#REF!"}},{"$f":"AND('Development Costs'!#REF!,\"NbReZikcRC4=\")","v":{"$error":"#REF!"}},{"$f":"AND('Development Costs'!#REF!,\"NbReZikcRC8=\")","v":{"$error":"#REF!"}},{"$f":"AND('Development Costs'!#REF!,\"NbReZikcRDA=\")","v":{"$error":"#REF!"}},{"$f":"AND('Development Costs'!#REF!,\"NbReZikcRDE=\")","v":{"$error":"#REF!"}},{"$f":"AND('Development Costs'!C6,\"NbReZikcRDI=\")","v":{"$error":"#VALUE!"}},{"$f":"AND('Development Costs'!D6,\"NbReZikcRDM=\")","v":{"$error":"#VALUE!"}},{"$f":"AND('Development Costs'!E6,\"NbReZikcRDQ=\")","v":{"$error":"#VALUE!"}},{"$f":"AND('Development Costs'!F6,\"NbReZikcRDU=\")","v":{"$error":"#VALUE!"}},{"$f":"AND('Development Costs'!G6,\"NbReZikcRDY=\")","v":{"$error":"#VALUE!"}},{"$f":"AND('Development Costs'!H6,\"NbReZikcRDc=\")","v":{"$error":"#VALUE!"}},{"$f":"AND('Development Costs'!I6,\"NbReZikcRDg=\")","v":{"$error":"#VALUE!"}},{"$f":"AND('Development Costs'!J6,\"NbReZikcRDk=\")","v":{"$error":"#VALUE!"}},{"$f":"AND('Development Costs'!K6,\"NbReZikcRDo=\")","v":{"$error":"#VALUE!"}},{"$f":"IF('Development Costs'!8:8,\"NbReZikcRDs=\",0)","v":0},{"$f":"AND('Development Costs'!A7,\"NbReZikcRDw=\")","v":{"$error":"#VALUE!"}},{"$f":"AND('Development Costs'!B7,\"NbReZikcRD0=\")","v":{"$error":"#VALUE!"}},{"$f":"AND('Development Costs'!#REF!,\"NbReZikcRD4=\")","v":{"$error":"#REF!"}},{"$f":"AND('Development Costs'!#REF!,\"NbReZikcRD8=\")","v":{"$error":"#REF!"}},{"$f":"AND('Development Costs'!#REF!,\"NbReZikcREA=\")","v":{"$error":"#REF!"}},{"$f":"AND('Development Costs'!#REF!,\"NbReZikcREE=\")","v":{"$error":"#REF!"}},{"$f":"AND('Development Costs'!#REF!,\"NbReZikcREI=\")","v":{"$error":"#REF!"}},{"$f":"AND('Development Costs'!C7,\"NbReZikcREM=\")","v":{"$error":"#VALUE!"}},{"$f":"AND('Development Costs'!D7,\"NbReZikcREQ=\")","v":{"$error":"#VALUE!"}},{"$f":"AND('Development Costs'!E7,\"NbReZikcREU=\")","v":{"$error":"#VALUE!"}},{"$f":"AND('Development Costs'!F7,\"NbReZikcREY=\")","v":{"$error":"#VALUE!"}},{"$f":"AND('Development Costs'!G7,\"NbReZikcREc=\")","v":{"$error":"#VALUE!"}},{"$f":"AND('Development Costs'!H7,\"NbReZikcREg=\")","v":{"$error":"#VALUE!"}},{"$f":"AND('Development Costs'!I7,\"NbReZikcREk=\")","v":{"$error":"#VALUE!"}},{"$f":"AND('Development Costs'!J7,\"NbReZikcREo=\")","v":{"$error":"#VALUE!"}},{"$f":"AND('Development Costs'!K7,\"NbReZikcREs=\")","v":{"$error":"#VALUE!"}},{"$f":"IF('Development Costs'!#REF!,\"NbReZikcREw=\",0)","v":{"$error":"#REF!"}},{"$f":"AND('Development Costs'!A8,\"NbReZikcRE0=\")","v":{"$error":"#VALUE!"}},{"$f":"AND('Development Costs'!B8,\"NbReZikcRE4=\")","v":{"$error":"#VALUE!"}},{"$f":"AND('Development Costs'!#REF!,\"NbReZikcRE8=\")","v":{"$error":"#REF!"}},{"$f":"AND('Development Costs'!#REF!,\"NbReZikcRFA=\")","v":{"$error":"#REF!"}},{"$f":"AND('Development Costs'!#REF!,\"NbReZikcRFE=\")","v":{"$error":"#REF!"}},{"$f":"AND('Development Costs'!#REF!,\"NbReZikcRFI=\")","v":{"$error":"#REF!"}},{"$f":"AND('Development Costs'!#REF!,\"NbReZikcRFM=\")","v":{"$error":"#REF!"}},{"$f":"AND('Development Costs'!C8,\"NbReZikcRFQ=\")","v":{"$error":"#VALUE!"}},{"$f":"AND('Development Costs'!D8,\"NbReZikcRFU=\")","v":{"$error":"#VALUE!"}},{"$f":"AND('Development Costs'!E8,\"NbReZikcRFY=\")","v":{"$error":"#VALUE!"}},{"$f":"AND('Development Costs'!F8,\"NbReZikcRFc=\")","v":{"$error":"#VALUE!"}},{"$f":"AND('Development Costs'!G8,\"NbReZikcRFg=\")","v":{"$error":"#VALUE!"}},{"$f":"AND('Development Costs'!H8,\"NbReZikcRFk=\")","v":{"$error":"#VALUE!"}},{"$f":"AND('Development Costs'!I8,\"NbReZikcRFo=\")","v":{"$error":"#VALUE!"}},{"$f":"AND('Development Costs'!J8,\"NbReZikcRFs=\")","v":{"$error":"#VALUE!"}},{"$f":"AND('Development Costs'!K8,\"NbReZikcRFw=\")","v":{"$error":"#VALUE!"}},{"$f":"IF('Development Costs'!9:9,\"NbReZikcRF0=\",0)","v":0},{"$f":"AND('Development Costs'!#REF!,\"NbReZikcRF4=\")","v":{"$error":"#REF!"}},{"$f":"AND('Development Costs'!#REF!,\"NbReZikcRF8=\")","v":{"$error":"#REF!"}},{"$f":"AND('Development Costs'!#REF!,\"NbReZikcRGA=\")","v":{"$error":"#REF!"}},{"$f":"AND('Development Costs'!#REF!,\"NbReZikcRGE=\")","v":{"$error":"#REF!"}},{"$f":"AND('Development Costs'!#REF!,\"NbReZikcRGI=\")","v":{"$error":"#REF!"}},{"$f":"AND('Development Costs'!#REF!,\"NbReZikcRGM=\")","v":{"$error":"#REF!"}},{"$f":"AND('Development Costs'!#REF!,\"NbReZikcRGQ=\")","v":{"$error":"#REF!"}},{"$f":"AND('Development Costs'!#REF!,\"NbReZikcRGU=\")","v":{"$error":"#REF!"}},{"$f":"AND('Development Costs'!#REF!,\"NbReZikcRGY=\")","v":{"$error":"#REF!"}},{"$f":"AND('Development Costs'!#REF!,\"NbReZikcRGc=\")","v":{"$error":"#REF!"}},{"$f":"AND('Development Costs'!#REF!,\"NbReZikcRGg=\")","v":{"$error":"#REF!"}},{"$f":"AND('Development Costs'!#REF!,\"NbReZikcRGk=\")","v":{"$error":"#REF!"}},{"$f":"AND('Development Costs'!#REF!,\"NbReZikcRGo=\")","v":{"$error":"#REF!"}},{"$f":"AND('Development Costs'!#REF!,\"NbReZikcRGs=\")","v":{"$error":"#REF!"}},{"$f":"AND('Development Costs'!#REF!,\"NbReZikcRGw=\")","v":{"$error":"#REF!"}},{"$f":"AND('Development Costs'!#REF!,\"NbReZikcRG0=\")","v":{"$error":"#REF!"}},{"$f":"IF('Development Costs'!10:10,\"NbReZikcRG4=\",0)","v":0},{"$f":"AND('Development Costs'!A9,\"NbReZikcRG8=\")","v":{"$error":"#VALUE!"}},{"$f":"AND('Development Costs'!B9,\"NbReZikcRHA=\")","v":{"$error":"#VALUE!"}},{"$f":"AND('Development Costs'!C9,\"NbReZikcRHE=\")","v":{"$error":"#VALUE!"}},{"$f":"AND('Development Costs'!D9,\"NbReZikcRHI=\")","v":{"$error":"#VALUE!"}},{"$f":"AND('Development Costs'!#REF!,\"NbReZikcRHM=\")","v":{"$error":"#REF!"}},{"$f":"AND('Development Costs'!E9,\"NbReZikcRHQ=\")","v":{"$error":"#VALUE!"}},{"$f":"AND('Development Costs'!F9,\"NbReZikcRHU=\")","v":{"$error":"#VALUE!"}},{"$f":"AND('Development Costs'!G9,\"NbReZikcRHY=\")","v":{"$error":"#VALUE!"}},{"$f":"AND('Development Costs'!H9,\"NbReZikcRHc=\")","v":{"$error":"#VALUE!"}},{"$f":"AND('Development Costs'!I9,\"NbReZikcRHg=\")","v":{"$error":"#VALUE!"}},{"$f":"AND('Development Costs'!J9,\"NbReZikcRHk=\")","v":{"$error":"#VALUE!"}},{"$f":"AND('Development Costs'!K9,\"NbReZikcRHo=\")","v":{"$error":"#VALUE!"}},{"$f":"AND('Development Costs'!L9,\"NbReZikcRHs=\")","v":{"$error":"#VALUE!"}},{"$f":"AND('Development Costs'!M9,\"NbReZikcRHw=\")","v":{"$error":"#VALUE!"}},{"$f":"AND('Development Costs'!N10,\"NbReZikcRH0=\")","v":{"$error":"#VALUE!"}},{"$f":"AND('Development Costs'!O10,\"NbReZikcRH4=\")","v":{"$error":"#VALUE!"}},{"$f":"IF('Development Costs'!11:11,\"NbReZikcRH8=\",0)","v":0},{"$f":"AND('Development Costs'!A10,\"NbReZikcRIA=\")","v":{"$error":"#VALUE!"}},{"$f":"AND('Development Costs'!B10,\"NbReZikcRIE=\")","v":{"$error":"#VALUE!"}},{"$f":"AND('Development Costs'!C10,\"NbReZikcRII=\")","v":{"$error":"#VALUE!"}},{"$f":"AND('Development Costs'!D10,\"NbReZikcRIM=\")","v":{"$error":"#VALUE!"}},{"$f":"AND('Development Costs'!#REF!,\"NbReZikcRIQ=\")","v":{"$error":"#REF!"}},{"$f":"AND('Development Costs'!E10,\"NbReZikcRIU=\")","v":{"$error":"#VALUE!"}},{"$f":"AND('Development Costs'!F10,\"NbReZikcRIY=\")","v":{"$error":"#VALUE!"}},{"$f":"AND('Development Costs'!G10,\"NbReZikcRIc=\")","v":{"$error":"#VALUE!"}},{"$f":"AND('Development Costs'!H10,\"NbReZikcRIg=\")","v":{"$error":"#VALUE!"}},{"$f":"AND('Development Costs'!I10,\"NbReZikcRIk=\")","v":{"$error":"#VALUE!"}},{"$f":"AND('Development Costs'!J10,\"NbReZikcRIo=\")","v":{"$error":"#VALUE!"}},{"$f":"AND('Development Costs'!K10,\"NbReZikcRIs=\")","v":{"$error":"#VALUE!"}},{"$f":"AND('Development Costs'!L10,\"NbReZikcRIw=\")","v":{"$error":"#VALUE!"}},{"$f":"AND('Development Costs'!M10,\"NbReZikcRI0=\")","v":{"$error":"#VALUE!"}},{"$f":"AND('Development Costs'!N11,\"NbReZikcRI4=\")","v":{"$error":"#VALUE!"}},{"$f":"AND('Development Costs'!O11,\"NbReZikcRI8=\")","v":{"$error":"#VALUE!"}},{"$f":"IF('Development Costs'!12:12,\"NbReZikcRJA=\",0)","v":0},{"$f":"AND('Development Costs'!A11,\"NbReZikcRJE=\")","v":{"$error":"#VALUE!"}},{"$f":"AND('Development Costs'!B11,\"NbReZikcRJI=\")","v":{"$error":"#VALUE!"}},{"$f":"AND('Development Costs'!C11,\"NbReZikcRJM=\")","v":{"$error":"#VALUE!"}},{"$f":"AND('Development Costs'!D11,\"NbReZikcRJQ=\")","v":{"$error":"#VALUE!"}},{"$f":"AND('Development Costs'!#REF!,\"NbReZikcRJU=\")","v":{"$error":"#REF!"}},{"$f":"AND('Development Costs'!E11,\"NbReZikcRJY=\")","v":{"$error":"#VALUE!"}},{"$f":"AND('Development Costs'!F11,\"NbReZikcRJc=\")","v":{"$error":"#VALUE!"}},{"$f":"AND('Development Costs'!G11,\"NbReZikcRJg=\")","v":{"$error":"#VALUE!"}},{"$f":"AND('Development Costs'!H11,\"NbReZikcRJk=\")","v":{"$error":"#VALUE!"}},{"$f":"AND('Development Costs'!I11,\"NbReZikcRJo=\")","v":{"$error":"#VALUE!"}},{"$f":"AND('Development Costs'!J11,\"NbReZikcRJs=\")","v":{"$error":"#VALUE!"}},{"$f":"AND('Development Costs'!K11,\"NbReZikcRJw=\")","v":{"$error":"#VALUE!"}},{"$f":"AND('Development Costs'!L11,\"NbReZikcRJ0=\")","v":{"$error":"#VALUE!"}},{"$f":"AND('Development Costs'!M11,\"NbReZikcRJ4=\")","v":{"$error":"#VALUE!"}},{"$f":"AND('Development Costs'!N12,\"NbReZikcRJ8=\")","v":{"$error":"#VALUE!"}},{"$f":"AND('Development Costs'!O12,\"NbReZikcRKA=\")","v":{"$error":"#VALUE!"}},{"$f":"IF('Development Costs'!13:13,\"NbReZikcRKE=\",0)","v":0},{"$f":"AND('Development Costs'!A12,\"NbReZikcRKI=\")","v":{"$error":"#VALUE!"}},{"$f":"AND('Development Costs'!B12,\"NbReZikcRKM=\")","v":{"$error":"#VALUE!"}},{"$f":"AND('Development Costs'!#REF!,\"NbReZikcRKQ=\")","v":{"$error":"#REF!"}},{"$f":"AND('Development Costs'!#REF!,\"NbReZikcRKU=\")","v":{"$error":"#REF!"}},{"$f":"AND('Development Costs'!#REF!,\"NbReZikcRKY=\")","v":{"$error":"#REF!"}},{"$f":"AND('Development Costs'!#REF!,\"NbReZikcRKc=\")","v":{"$error":"#REF!"}},{"$f":"AND('Development Costs'!#REF!,\"NbReZikcRKg=\")","v":{"$error":"#REF!"}},{"$f":"AND('Development Costs'!C12,\"NbReZikcRKk=\")","v":{"$error":"#VALUE!"}},{"$f":"AND('Development Costs'!D12,\"NbReZikcRKo=\")","v":{"$error":"#VALUE!"}},{"$f":"AND('Development Costs'!E12,\"NbReZikcRKs=\")","v":{"$error":"#VALUE!"}},{"$f":"AND('Development Costs'!F12,\"NbReZikcRKw=\")","v":{"$error":"#VALUE!"}},{"$f":"AND('Development Costs'!G12,\"NbReZikcRK0=\")","v":{"$error":"#VALUE!"}},{"$f":"AND('Development Costs'!H12,\"NbReZikcRK4=\")","v":{"$error":"#VALUE!"}},{"$f":"AND('Development Costs'!I12,\"NbReZikcRK8=\")","v":{"$error":"#VALUE!"}},{"$f":"AND('Development Costs'!J12,\"NbReZikcRLA=\")","v":{"$error":"#VALUE!"}},{"$f":"AND('Development Costs'!K12,\"NbReZikcRLE=\")","v":{"$error":"#VALUE!"}},{"$f":"IF('Development Costs'!15:15,\"NbReZikcRLI=\",0)","v":0},{"$f":"AND('Development Costs'!A13,\"NbReZikcRLM=\")","v":{"$error":"#VALUE!"}},{"$f":"AND('Development Costs'!B13,\"NbReZikcRLQ=\")","v":{"$error":"#VALUE!"}},{"$f":"AND('Development Costs'!#REF!,\"NbReZikcRLU=\")","v":{"$error":"#REF!"}},{"$f":"AND('Development Costs'!#REF!,\"NbReZikcRLY=\")","v":{"$error":"#REF!"}},{"$f":"AND('Development Costs'!#REF!,\"NbReZikcRLc=\")","v":{"$error":"#REF!"}},{"$f":"AND('Development Costs'!#REF!,\"NbReZikcRLg=\")","v":{"$error":"#REF!"}},{"$f":"AND('Development Costs'!#REF!,\"NbReZikcRLk=\")","v":{"$error":"#REF!"}},{"$f":"AND('Development Costs'!C13,\"NbReZikcRLo=\")","v":{"$error":"#VALUE!"}},{"$f":"AND('Development Costs'!D13,\"NbReZikcRLs=\")","v":{"$error":"#VALUE!"}},{"$f":"AND('Development Costs'!E13,\"NbReZikcRLw=\")","v":{"$error":"#VALUE!"}},{"$f":"AND('Development Costs'!F13,\"NbReZikcRL0=\")","v":{"$error":"#VALUE!"}},{"$f":"AND('Development Costs'!G13,\"NbReZikcRL4=\")","v":{"$error":"#VALUE!"}},{"$f":"AND('Development Costs'!H13,\"NbReZikcRL8=\")","v":{"$error":"#VALUE!"}},{"$f":"AND('Development Costs'!I13,\"NbReZikcRMA=\")","v":{"$error":"#VALUE!"}},{"$f":"AND('Development Costs'!J13,\"NbReZikcRME=\")","v":{"$error":"#VALUE!"}},{"$f":"AND('Development Costs'!K13,\"NbReZikcRMI=\")","v":{"$error":"#VALUE!"}},{"$f":"IF('Development Costs'!21:21,\"NbReZikcRMM=\",0)","v":0},{"$f":"AND('Development Costs'!A15,\"NbReZikcRMQ=\")","v":{"$error":"#VALUE!"}},{"$f":"AND('Development Costs'!B15,\"NbReZikcRMU=\")","v":{"$error":"#VALUE!"}},{"$f":"AND('Development Costs'!#REF!,\"NbReZikcRMY=\")","v":{"$error":"#REF!"}},{"$f":"AND('Development Costs'!#REF!,\"NbReZikcRMc=\")","v":{"$error":"#REF!"}},{"$f":"AND('Development Costs'!#REF!,\"NbReZikcRMg=\")","v":{"$error":"#REF!"}},{"$f":"AND('Development Costs'!#REF!,\"NbReZikcRMk=\")","v":{"$error":"#REF!"}},{"$f":"AND('Development Costs'!#REF!,\"NbReZikcRMo=\")","v":{"$error":"#REF!"}},{"$f":"AND('Development Costs'!C15,\"NbReZikcRMs=\")","v":{"$error":"#VALUE!"}},{"$f":"AND('Development Costs'!D15,\"NbReZikcRMw=\")","v":{"$error":"#VALUE!"}},{"$f":"AND('Development Costs'!E15,\"NbReZikcRM0=\")","v":{"$error":"#VALUE!"}},{"$f":"AND('Development Costs'!F15,\"NbReZikcRM4=\")","v":{"$error":"#VALUE!"}},{"$f":"AND('Development Costs'!G15,\"NbReZikcRM8=\")","v":{"$error":"#VALUE!"}},{"$f":"AND('Development Costs'!H15,\"NbReZikcRNA=\")","v":{"$error":"#VALUE!"}},{"$f":"AND('Development Costs'!I15,\"NbReZikcRNE=\")","v":{"$error":"#VALUE!"}},{"$f":"AND('Development Costs'!J15,\"NbReZikcRNI=\")","v":{"$error":"#VALUE!"}},{"$f":"AND('Development Costs'!K15,\"NbReZikcRNM=\")","v":{"$error":"#VALUE!"}},{"$f":"IF('Development Costs'!16:16,\"NbReZikcRNQ=\",0)","v":0},{"$f":"AND('Development Costs'!A21,\"NbReZikcRNU=\")","v":{"$error":"#VALUE!"}},{"$f":"AND('Development Costs'!B21,\"NbReZikcRNY=\")","v":{"$error":"#VALUE!"}},{"$f":"AND('Development Costs'!#REF!,\"NbReZikcRNc=\")","v":{"$error":"#REF!"}},{"$f":"AND('Development Costs'!#REF!,\"NbReZikcRNg=\")","v":{"$error":"#REF!"}},{"$f":"AND('Development Costs'!#REF!,\"NbReZikcRNk=\")","v":{"$error":"#REF!"}},{"$f":"AND('Development Costs'!#REF!,\"NbReZikcRNo=\")","v":{"$error":"#REF!"}},{"$f":"AND('Development Costs'!#REF!,\"NbReZikcRNs=\")","v":{"$error":"#REF!"}},{"$f":"AND('Development Costs'!C21,\"NbReZikcRNw=\")","v":{"$error":"#VALUE!"}},{"$f":"AND('Development Costs'!D21,\"NbReZikcRN0=\")","v":{"$error":"#VALUE!"}},{"$f":"AND('Development Costs'!E21,\"NbReZikcRN4=\")","v":{"$error":"#VALUE!"}},{"$f":"AND('Development Costs'!F21,\"NbReZikcRN8=\")","v":{"$error":"#VALUE!"}},{"$f":"AND('Development Costs'!G21,\"NbReZikcROA=\")","v":{"$error":"#VALUE!"}},{"$f":"AND('Development Costs'!H21,\"NbReZikcROE=\")","v":{"$error":"#VALUE!"}},{"$f":"AND('Development Costs'!I21,\"NbReZikcROI=\")","v":{"$error":"#VALUE!"}},{"$f":"AND('Development Costs'!J21,\"NbReZikcROM=\")","v":{"$error":"#VALUE!"}},{"$f":"AND('Development Costs'!K21,\"NbReZikcROQ=\")","v":{"$error":"#VALUE!"}},{"$f":"IF('Development Costs'!17:17,\"NbReZikcROU=\",0)","v":0},{"$f":"AND('Development Costs'!A16,\"NbReZikcROY=\")","v":{"$error":"#VALUE!"}},{"$f":"AND('Development Costs'!B16,\"NbReZikcROc=\")","v":{"$error":"#VALUE!"}},{"$f":"AND('Development Costs'!#REF!,\"NbReZikcROg=\")","v":{"$error":"#REF!"}},{"$f":"AND('Development Costs'!#REF!,\"NbReZikcROk=\")","v":{"$error":"#REF!"}},{"$f":"AND('Development Costs'!#REF!,\"NbReZikcROo=\")","v":{"$error":"#REF!"}},{"$f":"AND('Development Costs'!#REF!,\"NbReZikcROs=\")","v":{"$error":"#REF!"}},{"$f":"AND('Development Costs'!#REF!,\"NbReZikcROw=\")","v":{"$error":"#REF!"}},{"$f":"AND('Development Costs'!C16,\"NbReZikcRO0=\")","v":{"$error":"#VALUE!"}},{"$f":"AND('Development Costs'!D16,\"NbReZikcRO4=\")","v":{"$error":"#VALUE!"}},{"$f":"AND('Development Costs'!E16,\"NbReZikcRO8=\")","v":{"$error":"#VALUE!"}},{"$f":"AND('Development Costs'!F16,\"NbReZikcRPA=\")","v":{"$error":"#VALUE!"}},{"$f":"AND('Development Costs'!G16,\"NbReZikcRPE=\")","v":{"$error":"#VALUE!"}},{"$f":"AND('Development Costs'!H16,\"NbReZikcRPI=\")","v":{"$error":"#VALUE!"}},{"$f":"AND('Development Costs'!I16,\"NbReZikcRPM=\")","v":{"$error":"#VALUE!"}},{"$f":"AND('Development Costs'!J16,\"NbReZikcRPQ=\")","v":{"$error":"#VALUE!"}},{"$f":"AND('Development Costs'!K16,\"NbReZikcRPU=\")","v":{"$error":"#VALUE!"}},{"$f":"IF('Development Costs'!18:18,\"NbReZikcRPY=\",0)","v":0},{"$f":"AND('Development Costs'!A17,\"NbReZikcRPc=\")","v":{"$error":"#VALUE!"}},{"$f":"AND('Development Costs'!B17,\"NbReZikcRPg=\")","v":{"$error":"#VALUE!"}},{"$f":"AND('Development Costs'!#REF!,\"NbReZikcRPk=\")","v":{"$error":"#REF!"}},{"$f":"AND('Development Costs'!#REF!,\"NbReZikcRPo=\")","v":{"$error":"#REF!"}},{"$f":"AND('Development Costs'!#REF!,\"NbReZikcRPs=\")","v":{"$error":"#REF!"}},{"$f":"AND('Development Costs'!#REF!,\"NbReZikcRPw=\")","v":{"$error":"#REF!"}},{"$f":"AND('Development Costs'!#REF!,\"NbReZikcRP0=\")","v":{"$error":"#REF!"}},{"$f":"AND('Development Costs'!C17,\"NbReZikcRP4=\")","v":{"$error":"#VALUE!"}},{"$f":"AND('Development Costs'!D17,\"NbReZikcRP8=\")","v":{"$error":"#VALUE!"}}]
[{"$f":"AND('Development Costs'!E17,\"IVAC2xzmGAA=\")","v":{"$error":"#VALUE!"}},{"$f":"AND('Development Costs'!F17,\"IVAC2xzmGAE=\")","v":{"$error":"#VALUE!"}},{"$f":"AND('Development Costs'!G17,\"IVAC2xzmGAI=\")","v":{"$error":"#VALUE!"}},{"$f":"AND('Development Costs'!H17,\"IVAC2xzmGAM=\")","v":{"$error":"#VALUE!"}},{"$f":"AND('Development Costs'!I17,\"IVAC2xzmGAQ=\")","v":{"$error":"#VALUE!"}},{"$f":"AND('Development Costs'!J17,\"IVAC2xzmGAU=\")","v":{"$error":"#VALUE!"}},{"$f":"AND('Development Costs'!K17,\"IVAC2xzmGAY=\")","v":{"$error":"#VALUE!"}},{"$f":"IF('Development Costs'!19:19,\"IVAC2xzmGAc=\",0)","v":0},{"$f":"AND('Development Costs'!A18,\"IVAC2xzmGAg=\")","v":{"$error":"#VALUE!"}},{"$f":"AND('Development Costs'!B18,\"IVAC2xzmGAk=\")","v":{"$error":"#VALUE!"}},{"$f":"AND('Development Costs'!#REF!,\"IVAC2xzmGAo=\")","v":{"$error":"#REF!"}},{"$f":"AND('Development Costs'!#REF!,\"IVAC2xzmGAs=\")","v":{"$error":"#REF!"}},{"$f":"AND('Development Costs'!#REF!,\"IVAC2xzmGAw=\")","v":{"$error":"#REF!"}},{"$f":"AND('Development Costs'!#REF!,\"IVAC2xzmGA0=\")","v":{"$error":"#REF!"}},{"$f":"AND('Development Costs'!#REF!,\"IVAC2xzmGA4=\")","v":{"$error":"#REF!"}},{"$f":"AND('Development Costs'!C18,\"IVAC2xzmGA8=\")","v":{"$error":"#VALUE!"}},{"$f":"AND('Development Costs'!D18,\"IVAC2xzmGBA=\")","v":{"$error":"#VALUE!"}},{"$f":"AND('Development Costs'!E18,\"IVAC2xzmGBE=\")","v":{"$error":"#VALUE!"}},{"$f":"AND('Development Costs'!F18,\"IVAC2xzmGBI=\")","v":{"$error":"#VALUE!"}},{"$f":"AND('Development Costs'!G18,\"IVAC2xzmGBM=\")","v":{"$error":"#VALUE!"}},{"$f":"AND('Development Costs'!H18,\"IVAC2xzmGBQ=\")","v":{"$error":"#VALUE!"}},{"$f":"AND('Development Costs'!I18,\"IVAC2xzmGBU=\")","v":{"$error":"#VALUE!"}},{"$f":"AND('Development Costs'!J18,\"IVAC2xzmGBY=\")","v":{"$error":"#VALUE!"}},{"$f":"AND('Development Costs'!K18,\"IVAC2xzmGBc=\")","v":{"$error":"#VALUE!"}},{"$f":"IF('Development Costs'!23:23,\"IVAC2xzmGBg=\",0)","v":0},{"$f":"AND('Development Costs'!A19,\"IVAC2xzmGBk=\")","v":{"$error":"#VALUE!"}},{"$f":"AND('Development Costs'!B19,\"IVAC2xzmGBo=\")","v":{"$error":"#VALUE!"}},{"$f":"AND('Development Costs'!#REF!,\"IVAC2xzmGBs=\")","v":{"$error":"#REF!"}},{"$f":"AND('Development Costs'!#REF!,\"IVAC2xzmGBw=\")","v":{"$error":"#REF!"}},{"$f":"AND('Development Costs'!#REF!,\"IVAC2xzmGB0=\")","v":{"$error":"#REF!"}},{"$f":"AND('Development Costs'!#REF!,\"IVAC2xzmGB4=\")","v":{"$error":"#REF!"}},{"$f":"AND('Development Costs'!#REF!,\"IVAC2xzmGB8=\")","v":{"$error":"#REF!"}},{"$f":"AND('Development Costs'!C19,\"IVAC2xzmGCA=\")","v":{"$error":"#VALUE!"}},{"$f":"AND('Development Costs'!D19,\"IVAC2xzmGCE=\")","v":{"$error":"#VALUE!"}},{"$f":"AND('Development Costs'!E19,\"IVAC2xzmGCI=\")","v":{"$error":"#VALUE!"}},{"$f":"AND('Development Costs'!F19,\"IVAC2xzmGCM=\")","v":{"$error":"#VALUE!"}},{"$f":"AND('Development Costs'!G19,\"IVAC2xzmGCQ=\")","v":{"$error":"#VALUE!"}},{"$f":"AND('Development Costs'!H19,\"IVAC2xzmGCU=\")","v":{"$error":"#VALUE!"}},{"$f":"AND('Development Costs'!I19,\"IVAC2xzmGCY=\")","v":{"$error":"#VALUE!"}},{"$f":"AND('Development Costs'!J19,\"IVAC2xzmGCc=\")","v":{"$error":"#VALUE!"}},{"$f":"AND('Development Costs'!K19,\"IVAC2xzmGCg=\")","v":{"$error":"#VALUE!"}},{"$f":"IF('Development Costs'!#REF!,\"IVAC2xzmGCk=\",0)","v":{"$error":"#REF!"}},{"$f":"AND('Development Costs'!A23,\"IVAC2xzmGCo=\")","v":{"$error":"#VALUE!"}},{"$f":"AND('Development Costs'!B23,\"IVAC2xzmGCs=\")","v":{"$error":"#VALUE!"}},{"$f":"AND('Development Costs'!#REF!,\"IVAC2xzmGCw=\")","v":{"$error":"#REF!"}},{"$f":"AND('Development Costs'!#REF!,\"IVAC2xzmGC0=\")","v":{"$error":"#REF!"}},{"$f":"AND('Development Costs'!#REF!,\"IVAC2xzmGC4=\")","v":{"$error":"#REF!"}},{"$f":"AND('Development Costs'!#REF!,\"IVAC2xzmGC8=\")","v":{"$error":"#REF!"}},{"$f":"AND('Development Costs'!#REF!,\"IVAC2xzmGDA=\")","v":{"$error":"#REF!"}},{"$f":"AND('Development Costs'!C23,\"IVAC2xzmGDE=\")","v":{"$error":"#VALUE!"}},{"$f":"AND('Development Costs'!D23,\"IVAC2xzmGDI=\")","v":{"$error":"#VALUE!"}},{"$f":"AND('Development Costs'!E23,\"IVAC2xzmGDM=\")","v":{"$error":"#VALUE!"}},{"$f":"AND('Development Costs'!F23,\"IVAC2xzmGDQ=\")","v":{"$error":"#VALUE!"}},{"$f":"AND('Development Costs'!G23,\"IVAC2xzmGDU=\")","v":{"$error":"#VALUE!"}},{"$f":"AND('Development Costs'!H23,\"IVAC2xzmGDY=\")","v":{"$error":"#VALUE!"}},{"$f":"AND('Development Costs'!I23,\"IVAC2xzmGDc=\")","v":{"$error":"#VALUE!"}},{"$f":"AND('Development Costs'!J23,\"IVAC2xzmGDg=\")","v":{"$error":"#VALUE!"}},{"$f":"AND('Development Costs'!K23,\"IVAC2xzmGDk=\")","v":{"$error":"#VALUE!"}},{"$f":"IF('Development Costs'!22:22,\"IVAC2xzmGDo=\",0)","v":0},{"$f":"AND('Development Costs'!#REF!,\"IVAC2xzmGDs=\")","v":{"$error":"#REF!"}},{"$f":"AND('Development Costs'!#REF!,\"IVAC2xzmGDw=\")","v":{"$error":"#REF!"}},{"$f":"AND('Development Costs'!#REF!,\"IVAC2xzmGD0=\")","v":{"$error":"#REF!"}},{"$f":"AND('Development Costs'!#REF!,\"IVAC2xzmGD4=\")","v":{"$error":"#REF!"}},{"$f":"AND('Development Costs'!#REF!,\"IVAC2xzmGD8=\")","v":{"$error":"#REF!"}},{"$f":"AND('Development Costs'!#REF!,\"IVAC2xzmGEA=\")","v":{"$error":"#REF!"}},{"$f":"AND('Development Costs'!#REF!,\"IVAC2xzmGEE=\")","v":{"$error":"#REF!"}},{"$f":"AND('Development Costs'!#REF!,\"IVAC2xzmGEI=\")","v":{"$error":"#REF!"}},{"$f":"AND('Development Costs'!#REF!,\"IVAC2xzmGEM=\")","v":{"$error":"#REF!"}},{"$f":"AND('Development Costs'!#REF!,\"IVAC2xzmGEQ=\")","v":{"$error":"#REF!"}},{"$f":"AND('Development Costs'!#REF!,\"IVAC2xzmGEU=\")","v":{"$error":"#REF!"}},{"$f":"AND('Development Costs'!#REF!,\"IVAC2xzmGEY=\")","v":{"$error":"#REF!"}},{"$f":"AND('Development Costs'!#REF!,\"IVAC2xzmGEc=\")","v":{"$error":"#REF!"}},{"$f":"AND('Development Costs'!#REF!,\"IVAC2xzmGEg=\")","v":{"$error":"#REF!"}},{"$f":"AND('Development Costs'!#REF!,\"IVAC2xzmGEk=\")","v":{"$error":"#REF!"}},{"$f":"AND('Development Costs'!#REF!,\"IVAC2xzmGEo=\")","v":{"$error":"#REF!"}},{"$f":"IF('Development Costs'!24:24,\"IVAC2xzmGEs=\",0)","v":0},{"$f":"AND('Development Costs'!A22,\"IVAC2xzmGEw=\")","v":{"$error":"#VALUE!"}},{"$f":"AND('Development Costs'!B22,\"IVAC2xzmGE0=\")","v":{"$error":"#VALUE!"}},{"$f":"AND('Development Costs'!#REF!,\"IVAC2xzmGE4=\")","v":{"$error":"#REF!"}},{"$f":"AND('Development Costs'!#REF!,\"IVAC2xzmGE8=\")","v":{"$error":"#REF!"}},{"$f":"AND('Development Costs'!#REF!,\"IVAC2xzmGFA=\")","v":{"$error":"#REF!"}},{"$f":"AND('Development Costs'!#REF!,\"IVAC2xzmGFE=\")","v":{"$error":"#REF!"}},{"$f":"AND('Development Costs'!#REF!,\"IVAC2xzmGFI=\")","v":{"$error":"#REF!"}},{"$f":"AND('Development Costs'!C22,\"IVAC2xzmGFM=\")","v":{"$error":"#VALUE!"}},{"$f":"AND('Development Costs'!D22,\"IVAC2xzmGFQ=\")","v":{"$error":"#VALUE!"}},{"$f":"AND('Development Costs'!E22,\"IVAC2xzmGFU=\")","v":{"$error":"#VALUE!"}},{"$f":"AND('Development Costs'!F22,\"IVAC2xzmGFY=\")","v":{"$error":"#VALUE!"}},{"$f":"AND('Development Costs'!G22,\"IVAC2xzmGFc=\")","v":{"$error":"#VALUE!"}},{"$f":"AND('Development Costs'!H22,\"IVAC2xzmGFg=\")","v":{"$error":"#VALUE!"}},{"$f":"AND('Development Costs'!I22,\"IVAC2xzmGFk=\")","v":{"$error":"#VALUE!"}},{"$f":"AND('Development Costs'!J22,\"IVAC2xzmGFo=\")","v":{"$error":"#VALUE!"}},{"$f":"AND('Development Costs'!K22,\"IVAC2xzmGFs=\")","v":{"$error":"#VALUE!"}},{"$f":"IF('Development Costs'!25:25,\"IVAC2xzmGFw=\",0)","v":0},{"$f":"AND('Development Costs'!A24,\"IVAC2xzmGF0=\")","v":{"$error":"#VALUE!"}},{"$f":"AND('Development Costs'!B24,\"IVAC2xzmGF4=\")","v":{"$error":"#VALUE!"}},{"$f":"AND('Development Costs'!C24,\"IVAC2xzmGF8=\")","v":{"$error":"#VALUE!"}},{"$f":"AND('Development Costs'!D24,\"IVAC2xzmGGA=\")","v":{"$error":"#VALUE!"}},{"$f":"AND('Development Costs'!#REF!,\"IVAC2xzmGGE=\")","v":{"$error":"#REF!"}},{"$f":"AND('Development Costs'!E24,\"IVAC2xzmGGI=\")","v":{"$error":"#VALUE!"}},{"$f":"AND('Development Costs'!F24,\"IVAC2xzmGGM=\")","v":{"$error":"#VALUE!"}},{"$f":"AND('Development Costs'!G24,\"IVAC2xzmGGQ=\")","v":{"$error":"#VALUE!"}},{"$f":"AND('Development Costs'!H24,\"IVAC2xzmGGU=\")","v":{"$error":"#VALUE!"}},{"$f":"AND('Development Costs'!I24,\"IVAC2xzmGGY=\")","v":{"$error":"#VALUE!"}},{"$f":"AND('Development Costs'!J24,\"IVAC2xzmGGc=\")","v":{"$error":"#VALUE!"}},{"$f":"AND('Development Costs'!K24,\"IVAC2xzmGGg=\")","v":{"$error":"#VALUE!"}},{"$f":"AND('Development Costs'!L24,\"IVAC2xzmGGk=\")","v":{"$error":"#VALUE!"}},{"$f":"AND('Development Costs'!M24,\"IVAC2xzmGGo=\")","v":{"$error":"#VALUE!"}},{"$f":"AND('Development Costs'!N25,\"IVAC2xzmGGs=\")","v":{"$error":"#VALUE!"}},{"$f":"AND('Development Costs'!O25,\"IVAC2xzmGGw=\")","v":{"$error":"#VALUE!"}},{"$f":"IF('Development Costs'!26:26,\"IVAC2xzmGG0=\",0)","v":0},{"$f":"AND('Development Costs'!A25,\"IVAC2xzmGG4=\")","v":{"$error":"#VALUE!"}},{"$f":"AND('Development Costs'!B25,\"IVAC2xzmGG8=\")","v":{"$error":"#VALUE!"}},{"$f":"AND('Development Costs'!C25,\"IVAC2xzmGHA=\")","v":{"$error":"#VALUE!"}},{"$f":"AND('Development Costs'!D25,\"IVAC2xzmGHE=\")","v":{"$error":"#VALUE!"}},{"$f":"AND('Development Costs'!#REF!,\"IVAC2xzmGHI=\")","v":{"$error":"#REF!"}},{"$f":"AND('Development Costs'!E25,\"IVAC2xzmGHM=\")","v":{"$error":"#VALUE!"}},{"$f":"AND('Development Costs'!F25,\"IVAC2xzmGHQ=\")","v":{"$error":"#VALUE!"}},{"$f":"AND('Development Costs'!G25,\"IVAC2xzmGHU=\")","v":{"$error":"#VALUE!"}},{"$f":"AND('Development Costs'!H25,\"IVAC2xzmGHY=\")","v":{"$error":"#VALUE!"}},{"$f":"AND('Development Costs'!I25,\"IVAC2xzmGHc=\")","v":{"$error":"#VALUE!"}},{"$f":"AND('Development Costs'!J25,\"IVAC2xzmGHg=\")","v":{"$error":"#VALUE!"}},{"$f":"AND('Development Costs'!K25,\"IVAC2xzmGHk=\")","v":{"$error":"#VALUE!"}},{"$f":"AND('Development Costs'!L25,\"IVAC2xzmGHo=\")","v":{"$error":"#VALUE!"}},{"$f":"AND('Development Costs'!M25,\"IVAC2xzmGHs=\")","v":{"$error":"#VALUE!"}},{"$f":"AND('Development Costs'!N26,\"IVAC2xzmGHw=\")","v":{"$error":"#VALUE!"}},{"$f":"AND('Development Costs'!O26,\"IVAC2xzmGH0=\")","v":{"$error":"#VALUE!"}},{"$f":"IF('Development Costs'!27:27,\"IVAC2xzmGH4=\",0)","v":0},{"$f":"AND('Development Costs'!A26,\"IVAC2xzmGH8=\")","v":{"$error":"#VALUE!"}},{"$f":"AND('Development Costs'!B26,\"IVAC2xzmGIA=\")","v":{"$error":"#VALUE!"}},{"$f":"AND('Development Costs'!#REF!,\"IVAC2xzmGIE=\")","v":{"$error":"#REF!"}},{"$f":"AND('Development Costs'!#REF!,\"IVAC2xzmGII=\")","v":{"$error":"#REF!"}},{"$f":"AND('Development Costs'!#REF!,\"IVAC2xzmGIM=\")","v":{"$error":"#REF!"}},{"$f":"AND('Development Costs'!#REF!,\"IVAC2xzmGIQ=\")","v":{"$error":"#REF!"}},{"$f":"AND('Development Costs'!#REF!,\"IVAC2xzmGIU=\")","v":{"$error":"#REF!"}},{"$f":"AND('Development Costs'!C26,\"IVAC2xzmGIY=\")","v":{"$error":"#VALUE!"}},{"$f":"AND('Development Costs'!D26,\"IVAC2xzmGIc=\")","v":{"$error":"#VALUE!"}},{"$f":"AND('Development Costs'!E26,\"IVAC2xzmGIg=\")","v":{"$error":"#VALUE!"}},{"$f":"AND('Development Costs'!F26,\"IVAC2xzmGIk=\")","v":{"$error":"#VALUE!"}},{"$f":"AND('Development Costs'!G26,\"IVAC2xzmGIo=\")","v":{"$error":"#VALUE!"}},{"$f":"AND('Development Costs'!H26,\"IVAC2xzmGIs=\")","v":{"$error":"#VALUE!"}},{"$f":"AND('Development Costs'!I26,\"IVAC2xzmGIw=\")","v":{"$error":"#VALUE!"}},{"$f":"AND('Development Costs'!J26,\"IVAC2xzmGI0=\")","v":{"$error":"#VALUE!"}},{"$f":"AND('Development Costs'!K26,\"IVAC2xzmGI4=\")","v":{"$error":"#VALUE!"}},{"$f":"IF('Development Costs'!28:28,\"IVAC2xzmGI8=\",0)","v":0},{"$f":"AND('Development Costs'!A27,\"IVAC2xzmGJA=\")","v":{"$error":"#VALUE!"}},{"$f":"AND('Development Costs'!B27,\"IVAC2xzmGJE=\")","v":{"$error":"#VALUE!"}},{"$f":"AND('Development Costs'!#REF!,\"IVAC2xzmGJI=\")","v":{"$error":"#REF!"}},{"$f":"AND('Development Costs'!#REF!,\"IVAC2xzmGJM=\")","v":{"$error":"#REF!"}},{"$f":"AND('Development Costs'!#REF!,\"IVAC2xzmGJQ=\")","v":{"$error":"#REF!"}},{"$f":"AND('Development Costs'!#REF!,\"IVAC2xzmGJU=\")","v":{"$error":"#REF!"}},{"$f":"AND('Development Costs'!#REF!,\"IVAC2xzmGJY=\")","v":{"$error":"#REF!"}},{"$f":"AND('Development Costs'!C27,\"IVAC2xzmGJc=\")","v":{"$error":"#VALUE!"}},{"$f":"AND('Development Costs'!D27,\"IVAC2xzmGJg=\")","v":{"$error":"#VALUE!"}},{"$f":"AND('Development Costs'!E27,\"IVAC2xzmGJk=\")","v":{"$error":"#VALUE!"}},{"$f":"AND('Development Costs'!F27,\"IVAC2xzmGJo=\")","v":{"$error":"#VALUE!"}},{"$f":"AND('Development Costs'!G27,\"IVAC2xzmGJs=\")","v":{"$error":"#VALUE!"}},{"$f":"AND('Development Costs'!H27,\"IVAC2xzmGJw=\")","v":{"$error":"#VALUE!"}},{"$f":"AND('Development Costs'!I27,\"IVAC2xzmGJ0=\")","v":{"$error":"#VALUE!"}},{"$f":"AND('Development Costs'!J27,\"IVAC2xzmGJ4=\")","v":{"$error":"#VALUE!"}},{"$f":"AND('Development Costs'!K27,\"IVAC2xzmGJ8=\")","v":{"$error":"#VALUE!"}},{"$f":"IF('Development Costs'!29:29,\"IVAC2xzmGKA=\",0)","v":0},{"$f":"AND('Development Costs'!A28,\"IVAC2xzmGKE=\")","v":{"$error":"#VALUE!"}},{"$f":"AND('Development Costs'!B28,\"IVAC2xzmGKI=\")","v":{"$error":"#VALUE!"}},{"$f":"AND('Development Costs'!#REF!,\"IVAC2xzmGKM=\")","v":{"$error":"#REF!"}},{"$f":"AND('Development Costs'!#REF!,\"IVAC2xzmGKQ=\")","v":{"$error":"#REF!"}},{"$f":"AND('Development Costs'!#REF!,\"IVAC2xzmGKU=\")","v":{"$error":"#REF!"}},{"$f":"AND('Development Costs'!#REF!,\"IVAC2xzmGKY=\")","v":{"$error":"#REF!"}},{"$f":"AND('Development Costs'!#REF!,\"IVAC2xzmGKc=\")","v":{"$error":"#REF!"}},{"$f":"AND('Development Costs'!E28,\"IVAC2xzmGKg=\")","v":{"$error":"#VALUE!"}},{"$f":"AND('Development Costs'!D28,\"IVAC2xzmGKk=\")","v":{"$error":"#VALUE!"}},{"$f":"AND('Development Costs'!#REF!,\"IVAC2xzmGKo=\")","v":{"$error":"#REF!"}},{"$f":"AND('Development Costs'!F28,\"IVAC2xzmGKs=\")","v":{"$error":"#VALUE!"}},{"$f":"AND('Development Costs'!G28,\"IVAC2xzmGKw=\")","v":{"$error":"#VALUE!"}},{"$f":"AND('Development Costs'!H28,\"IVAC2xzmGK0=\")","v":{"$error":"#VALUE!"}},{"$f":"AND('Development Costs'!I28,\"IVAC2xzmGK4=\")","v":{"$error":"#VALUE!"}},{"$f":"AND('Development Costs'!J28,\"IVAC2xzmGK8=\")","v":{"$error":"#VALUE!"}},{"$f":"AND('Development Costs'!K28,\"IVAC2xzmGLA=\")","v":{"$error":"#VALUE!"}},{"$f":"IF('Development Costs'!30:30,\"IVAC2xzmGLE=\",0)","v":0},{"$f":"AND('Development Costs'!A29,\"IVAC2xzmGLI=\")","v":{"$error":"#VALUE!"}},{"$f":"AND('Development Costs'!B29,\"IVAC2xzmGLM=\")","v":{"$error":"#VALUE!"}},{"$f":"AND('Development Costs'!#REF!,\"IVAC2xzmGLQ=\")","v":{"$error":"#REF!"}},{"$f":"AND('Development Costs'!#REF!,\"IVAC2xzmGLU=\")","v":{"$error":"#REF!"}},{"$f":"AND('Development Costs'!#REF!,\"IVAC2xzmGLY=\")","v":{"$error":"#REF!"}},{"$f":"AND('Development Costs'!#REF!,\"IVAC2xzmGLc=\")","v":{"$error":"#REF!"}},{"$f":"AND('Development Costs'!#REF!,\"IVAC2xzmGLg=\")","v":{"$error":"#REF!"}},{"$f":"AND('Development Costs'!C29,\"IVAC2xzmGLk=\")","v":{"$error":"#VALUE!"}},{"$f":"AND('Development Costs'!D29,\"IVAC2xzmGLo=\")","v":{"$error":"#VALUE!"}},{"$f":"AND('Development Costs'!E29,\"IVAC2xzmGLs=\")","v":{"$error":"#VALUE!"}},{"$f":"AND('Development Costs'!F29,\"IVAC2xzmGLw=\")","v":{"$error":"#VALUE!"}},{"$f":"AND('Development Costs'!G29,\"IVAC2xzmGL0=\")","v":{"$error":"#VALUE!"}},{"$f":"AND('Development Costs'!H29,\"IVAC2xzmGL4=\")","v":{"$error":"#VALUE!"}},{"$f":"AND('Development Costs'!I29,\"IVAC2xzmGL8=\")","v":{"$error":"#VALUE!"}},{"$f":"AND('Development Costs'!J29,\"IVAC2xzmGMA=\")","v":{"$error":"#VALUE!"}},{"$f":"AND('Development Costs'!K29,\"IVAC2xzmGME=\")","v":{"$error":"#VALUE!"}},{"$f":"IF('Development Costs'!31:31,\"IVAC2xzmGMI=\",0)","v":0},{"$f":"AND('Development Costs'!A30,\"IVAC2xzmGMM=\")","v":{"$error":"#VALUE!"}},{"$f":"AND('Development Costs'!B30,\"IVAC2xzmGMQ=\")","v":{"$error":"#VALUE!"}},{"$f":"AND('Development Costs'!C30,\"IVAC2xzmGMU=\")","v":{"$error":"#VALUE!"}},{"$f":"AND('Development Costs'!D30,\"IVAC2xzmGMY=\")","v":{"$error":"#VALUE!"}},{"$f":"AND('Development Costs'!#REF!,\"IVAC2xzmGMc=\")","v":{"$error":"#REF!"}},{"$f":"AND('Development Costs'!E30,\"IVAC2xzmGMg=\")","v":{"$error":"#VALUE!"}},{"$f":"AND('Development Costs'!F30,\"IVAC2xzmGMk=\")","v":{"$error":"#VALUE!"}},{"$f":"AND('Development Costs'!G30,\"IVAC2xzmGMo=\")","v":{"$error":"#VALUE!"}},{"$f":"AND('Development Costs'!H30,\"IVAC2xzmGMs=\")","v":{"$error":"#VALUE!"}},{"$f":"AND('Development Costs'!I30,\"IVAC2xzmGMw=\")","v":{"$error":"#VALUE!"}},{"$f":"AND('Development Costs'!J30,\"IVAC2xzmGM0=\")","v":{"$error":"#VALUE!"}},{"$f":"AND('Development Costs'!K30,\"IVAC2xzmGM4=\")","v":{"$error":"#VALUE!"}},{"$f":"AND('Development Costs'!L30,\"IVAC2xzmGM8=\")","v":{"$error":"#VALUE!"}},{"$f":"AND('Development Costs'!M30,\"IVAC2xzmGNA=\")","v":{"$error":"#VALUE!"}},{"$f":"AND('Development Costs'!N31,\"IVAC2xzmGNE=\")","v":{"$error":"#VALUE!"}},{"$f":"AND('Development Costs'!O31,\"IVAC2xzmGNI=\")","v":{"$error":"#VALUE!"}},{"$f":"IF('Development Costs'!32:32,\"IVAC2xzmGNM=\",0)","v":0},{"$f":"AND('Development Costs'!A31,\"IVAC2xzmGNQ=\")","v":{"$error":"#VALUE!"}},{"$f":"AND('Development Costs'!B31,\"IVAC2xzmGNU=\")","v":{"$error":"#VALUE!"}},{"$f":"AND('Development Costs'!#REF!,\"IVAC2xzmGNY=\")","v":{"$error":"#REF!"}},{"$f":"AND('Development Costs'!#REF!,\"IVAC2xzmGNc=\")","v":{"$error":"#REF!"}},{"$f":"AND('Development Costs'!#REF!,\"IVAC2xzmGNg=\")","v":{"$error":"#REF!"}},{"$f":"AND('Development Costs'!#REF!,\"IVAC2xzmGNk=\")","v":{"$error":"#REF!"}},{"$f":"AND('Development Costs'!#REF!,\"IVAC2xzmGNo=\")","v":{"$error":"#REF!"}},{"$f":"AND('Development Costs'!C31,\"IVAC2xzmGNs=\")","v":{"$error":"#VALUE!"}},{"$f":"AND('Development Costs'!D31,\"IVAC2xzmGNw=\")","v":{"$error":"#VALUE!"}},{"$f":"AND('Development Costs'!E31,\"IVAC2xzmGN0=\")","v":{"$error":"#VALUE!"}},{"$f":"AND('Development Costs'!F31,\"IVAC2xzmGN4=\")","v":{"$error":"#VALUE!"}},{"$f":"AND('Development Costs'!G31,\"IVAC2xzmGN8=\")","v":{"$error":"#VALUE!"}},{"$f":"AND('Development Costs'!H31,\"IVAC2xzmGOA=\")","v":{"$error":"#VALUE!"}},{"$f":"AND('Development Costs'!I31,\"IVAC2xzmGOE=\")","v":{"$error":"#VALUE!"}},{"$f":"AND('Development Costs'!J31,\"IVAC2xzmGOI=\")","v":{"$error":"#VALUE!"}},{"$f":"AND('Development Costs'!K31,\"IVAC2xzmGOM=\")","v":{"$error":"#VALUE!"}},{"$f":"IF('Development Costs'!33:33,\"IVAC2xzmGOQ=\",0)","v":0},{"$f":"AND('Development Costs'!A32,\"IVAC2xzmGOU=\")","v":{"$error":"#VALUE!"}},{"$f":"AND('Development Costs'!B32,\"IVAC2xzmGOY=\")","v":{"$error":"#VALUE!"}},{"$f":"AND('Development Costs'!#REF!,\"IVAC2xzmGOc=\")","v":{"$error":"#REF!"}},{"$f":"AND('Development Costs'!#REF!,\"IVAC2xzmGOg=\")","v":{"$error":"#REF!"}},{"$f":"AND('Development Costs'!#REF!,\"IVAC2xzmGOk=\")","v":{"$error":"#REF!"}},{"$f":"AND('Development Costs'!#REF!,\"IVAC2xzmGOo=\")","v":{"$error":"#REF!"}},{"$f":"AND('Development Costs'!#REF!,\"IVAC2xzmGOs=\")","v":{"$error":"#REF!"}},{"$f":"AND('Development Costs'!C32,\"IVAC2xzmGOw=\")","v":{"$error":"#VALUE!"}},{"$f":"AND('Development Costs'!D32,\"IVAC2xzmGO0=\")","v":{"$error":"#VALUE!"}},{"$f":"AND('Development Costs'!E32,\"IVAC2xzmGO4=\")","v":{"$error":"#VALUE!"}},{"$f":"AND('Development Costs'!F32,\"IVAC2xzmGO8=\")","v":{"$error":"#VALUE!"}},{"$f":"AND('Development Costs'!G32,\"IVAC2xzmGPA=\")","v":{"$error":"#VALUE!"}},{"$f":"AND('Development Costs'!H32,\"IVAC2xzmGPE=\")","v":{"$error":"#VALUE!"}},{"$f":"AND('Development Costs'!I32,\"IVAC2xzmGPI=\")","v":{"$error":"#VALUE!"}},{"$f":"AND('Development Costs'!J32,\"IVAC2xzmGPM=\")","v":{"$error":"#VALUE!"}},{"$f":"AND('Development Costs'!K32,\"IVAC2xzmGPQ=\")","v":{"$error":"#VALUE!"}},{"$f":"IF('Development Costs'!34:34,\"IVAC2xzmGPU=\",0)","v":0},{"$f":"AND('Development Costs'!A33,\"IVAC2xzmGPY=\")","v":{"$error":"#VALUE!"}},{"$f":"AND('Development Costs'!B33,\"IVAC2xzmGPc=\")","v":{"$error":"#VALUE!"}},{"$f":"AND('Development Costs'!#REF!,\"IVAC2xzmGPg=\")","v":{"$error":"#REF!"}},{"$f":"AND('Development Costs'!#REF!,\"IVAC2xzmGPk=\")","v":{"$error":"#REF!"}},{"$f":"AND('Development Costs'!#REF!,\"IVAC2xzmGPo=\")","v":{"$error":"#REF!"}},{"$f":"AND('Development Costs'!#REF!,\"IVAC2xzmGPs=\")","v":{"$error":"#REF!"}},{"$f":"AND('Development Costs'!#REF!,\"IVAC2xzmGPw=\")","v":{"$error":"#REF!"}},{"$f":"AND('Development Costs'!C33,\"IVAC2xzmGP0=\")","v":{"$error":"#VALUE!"}},{"$f":"AND('Development Costs'!D33,\"IVAC2xzmGP4=\")","v":{"$error":"#VALUE!"}},{"$f":"AND('Development Costs'!E33,\"IVAC2xzmGP8=\")","v":{"$error":"#VALUE!"}}]
[{"$f":"AND('Development Costs'!F33,\"XIvoLmOYawA=\")","v":{"$error":"#VALUE!"}},{"$f":"AND('Development Costs'!G33,\"XIvoLmOYawE=\")","v":{"$error":"#VALUE!"}},{"$f":"AND('Development Costs'!H33,\"XIvoLmOYawI=\")","v":{"$error":"#VALUE!"}},{"$f":"AND('Development Costs'!I33,\"XIvoLmOYawM=\")","v":{"$error":"#VALUE!"}},{"$f":"AND('Development Costs'!J33,\"XIvoLmOYawQ=\")","v":{"$error":"#VALUE!"}},{"$f":"AND('Development Costs'!K33,\"XIvoLmOYawU=\")","v":{"$error":"#VALUE!"}},{"$f":"IF('Development Costs'!#REF!,\"XIvoLmOYawY=\",0)","v":{"$error":"#REF!"}},{"$f":"AND('Development Costs'!A34,\"XIvoLmOYawc=\")","v":{"$error":"#VALUE!"}},{"$f":"AND('Development Costs'!B34,\"XIvoLmOYawg=\")","v":{"$error":"#VALUE!"}},{"$f":"AND('Development Costs'!#REF!,\"XIvoLmOYawk=\")","v":{"$error":"#REF!"}},{"$f":"AND('Development Costs'!#REF!,\"XIvoLmOYawo=\")","v":{"$error":"#REF!"}},{"$f":"AND('Development Costs'!#REF!,\"XIvoLmOYaws=\")","v":{"$error":"#REF!"}},{"$f":"AND('Development Costs'!#REF!,\"XIvoLmOYaww=\")","v":{"$error":"#REF!"}},{"$f":"AND('Development Costs'!#REF!,\"XIvoLmOYaw0=\")","v":{"$error":"#REF!"}},{"$f":"AND('Development Costs'!C34,\"XIvoLmOYaw4=\")","v":{"$error":"#VALUE!"}},{"$f":"AND('Development Costs'!D34,\"XIvoLmOYaw8=\")","v":{"$error":"#VALUE!"}},{"$f":"AND('Development Costs'!E34,\"XIvoLmOYaxA=\")","v":{"$error":"#VALUE!"}},{"$f":"AND('Development Costs'!F34,\"XIvoLmOYaxE=\")","v":{"$error":"#VALUE!"}},{"$f":"AND('Development Costs'!G34,\"XIvoLmOYaxI=\")","v":{"$error":"#VALUE!"}},{"$f":"AND('Development Costs'!H34,\"XIvoLmOYaxM=\")","v":{"$error":"#VALUE!"}},{"$f":"AND('Development Costs'!I34,\"XIvoLmOYaxQ=\")","v":{"$error":"#VALUE!"}},{"$f":"AND('Development Costs'!J34,\"XIvoLmOYaxU=\")","v":{"$error":"#VALUE!"}},{"$f":"AND('Development Costs'!K34,\"XIvoLmOYaxY=\")","v":{"$error":"#VALUE!"}},{"$f":"IF('Development Costs'!35:35,\"XIvoLmOYaxc=\",0)","v":0},{"$f":"AND('Development Costs'!#REF!,\"XIvoLmOYaxg=\")","v":{"$error":"#REF!"}},{"$f":"AND('Development Costs'!#REF!,\"XIvoLmOYaxk=\")","v":{"$error":"#REF!"}},{"$f":"AND('Development Costs'!#REF!,\"XIvoLmOYaxo=\")","v":{"$error":"#REF!"}},{"$f":"AND('Development Costs'!#REF!,\"XIvoLmOYaxs=\")","v":{"$error":"#REF!"}},{"$f":"AND('Development Costs'!#REF!,\"XIvoLmOYaxw=\")","v":{"$error":"#REF!"}},{"$f":"AND('Development Costs'!#REF!,\"XIvoLmOYax0=\")","v":{"$error":"#REF!"}},{"$f":"AND('Development Costs'!#REF!,\"XIvoLmOYax4=\")","v":{"$error":"#REF!"}},{"$f":"AND('Development Costs'!#REF!,\"XIvoLmOYax8=\")","v":{"$error":"#REF!"}},{"$f":"AND('Development Costs'!#REF!,\"XIvoLmOYayA=\")","v":{"$error":"#REF!"}},{"$f":"AND('Development Costs'!#REF!,\"XIvoLmOYayE=\")","v":{"$error":"#REF!"}},{"$f":"AND('Development Costs'!#REF!,\"XIvoLmOYayI=\")","v":{"$error":"#REF!"}},{"$f":"AND('Development Costs'!#REF!,\"XIvoLmOYayM=\")","v":{"$error":"#REF!"}},{"$f":"AND('Development Costs'!#REF!,\"XIvoLmOYayQ=\")","v":{"$error":"#REF!"}},{"$f":"AND('Development Costs'!#REF!,\"XIvoLmOYayU=\")","v":{"$error":"#REF!"}},{"$f":"AND('Development Costs'!#REF!,\"XIvoLmOYayY=\")","v":{"$error":"#REF!"}},{"$f":"AND('Development Costs'!#REF!,\"XIvoLmOYayc=\")","v":{"$error":"#REF!"}},{"$f":"IF('Development Costs'!#REF!,\"XIvoLmOYayg=\",0)","v":{"$error":"#REF!"}},{"$f":"AND('Development Costs'!A35,\"XIvoLmOYayk=\")","v":{"$error":"#VALUE!"}},{"$f":"AND('Development Costs'!B35,\"XIvoLmOYayo=\")","v":{"$error":"#VALUE!"}},{"$f":"AND('Development Costs'!C35,\"XIvoLmOYays=\")","v":{"$error":"#VALUE!"}},{"$f":"AND('Development Costs'!D35,\"XIvoLmOYayw=\")","v":{"$error":"#VALUE!"}},{"$f":"AND('Development Costs'!#REF!,\"XIvoLmOYay0=\")","v":{"$error":"#REF!"}},{"$f":"AND('Development Costs'!E35,\"XIvoLmOYay4=\")","v":{"$error":"#VALUE!"}},{"$f":"AND('Development Costs'!F35,\"XIvoLmOYay8=\")","v":{"$error":"#VALUE!"}},{"$f":"AND('Development Costs'!G35,\"XIvoLmOYazA=\")","v":{"$error":"#VALUE!"}},{"$f":"AND('Development Costs'!H35,\"XIvoLmOYazE=\")","v":{"$error":"#VALUE!"}},{"$f":"AND('Development Costs'!I35,\"XIvoLmOYazI=\")","v":{"$error":"#VALUE!"}},{"$f":"AND('Development Costs'!J35,\"XIvoLmOYazM=\")","v":{"$error":"#VALUE!"}},{"$f":"AND('Development Costs'!K35,\"XIvoLmOYazQ=\")","v":{"$error":"#VALUE!"}},{"$f":"AND('Development Costs'!L35,\"XIvoLmOYazU=\")","v":{"$error":"#VALUE!"}},{"$f":"AND('Development Costs'!M35,\"XIvoLmOYazY=\")","v":{"$error":"#VALUE!"}},{"$f":"AND('Development Costs'!#REF!,\"XIvoLmOYazc=\")","v":{"$error":"#REF!"}},{"$f":"AND('Development Costs'!#REF!,\"XIvoLmOYazg=\")","v":{"$error":"#REF!"}},{"$f":"IF('Development Costs'!#REF!,\"XIvoLmOYazk=\",0)","v":{"$error":"#REF!"}},{"$f":"AND('Development Costs'!#REF!,\"XIvoLmOYazo=\")","v":{"$error":"#REF!"}},{"$f":"AND('Development Costs'!#REF!,\"XIvoLmOYazs=\")","v":{"$error":"#REF!"}},{"$f":"AND('Development Costs'!#REF!,\"XIvoLmOYazw=\")","v":{"$error":"#REF!"}},{"$f":"AND('Development Costs'!#REF!,\"XIvoLmOYaz0=\")","v":{"$error":"#REF!"}},{"$f":"AND('Development Costs'!#REF!,\"XIvoLmOYaz4=\")","v":{"$error":"#REF!"}},{"$f":"AND('Development Costs'!#REF!,\"XIvoLmOYaz8=\")","v":{"$error":"#REF!"}},{"$f":"AND('Development Costs'!#REF!,\"XIvoLmOYa0A=\")","v":{"$error":"#REF!"}},{"$f":"AND('Development Costs'!#REF!,\"XIvoLmOYa0E=\")","v":{"$error":"#REF!"}},{"$f":"AND('Development Costs'!#REF!,\"XIvoLmOYa0I=\")","v":{"$error":"#REF!"}},{"$f":"AND('Development Costs'!#REF!,\"XIvoLmOYa0M=\")","v":{"$error":"#REF!"}},{"$f":"AND('Development Costs'!#REF!,\"XIvoLmOYa0Q=\")","v":{"$error":"#REF!"}},{"$f":"AND('Development Costs'!#REF!,\"XIvoLmOYa0U=\")","v":{"$error":"#REF!"}},{"$f":"AND('Development Costs'!#REF!,\"XIvoLmOYa0Y=\")","v":{"$error":"#REF!"}},{"$f":"AND('Development Costs'!#REF!,\"XIvoLmOYa0c=\")","v":{"$error":"#REF!"}},{"$f":"AND('Development Costs'!#REF!,\"XIvoLmOYa0g=\")","v":{"$error":"#REF!"}},{"$f":"AND('Development Costs'!#REF!,\"XIvoLmOYa0k=\")","v":{"$error":"#REF!"}},{"$f":"IF('Development Costs'!#REF!,\"XIvoLmOYa0o=\",0)","v":{"$error":"#REF!"}},{"$f":"AND('Development Costs'!#REF!,\"XIvoLmOYa0s=\")","v":{"$error":"#REF!"}},{"$f":"AND('Development Costs'!#REF!,\"XIvoLmOYa0w=\")","v":{"$error":"#REF!"}},{"$f":"AND('Development Costs'!#REF!,\"XIvoLmOYa00=\")","v":{"$error":"#REF!"}},{"$f":"AND('Development Costs'!#REF!,\"XIvoLmOYa04=\")","v":{"$error":"#REF!"}},{"$f":"AND('Development Costs'!#REF!,\"XIvoLmOYa08=\")","v":{"$error":"#REF!"}},{"$f":"AND('Development Costs'!#REF!,\"XIvoLmOYa1A=\")","v":{"$error":"#REF!"}},{"$f":"AND('Development Costs'!#REF!,\"XIvoLmOYa1E=\")","v":{"$error":"#REF!"}},{"$f":"AND('Development Costs'!#REF!,\"XIvoLmOYa1I=\")","v":{"$error":"#REF!"}},{"$f":"AND('Development Costs'!#REF!,\"XIvoLmOYa1M=\")","v":{"$error":"#REF!"}},{"$f":"AND('Development Costs'!#REF!,\"XIvoLmOYa1Q=\")","v":{"$error":"#REF!"}},{"$f":"AND('Development Costs'!#REF!,\"XIvoLmOYa1U=\")","v":{"$error":"#REF!"}},{"$f":"AND('Development Costs'!#REF!,\"XIvoLmOYa1Y=\")","v":{"$error":"#REF!"}},{"$f":"AND('Development Costs'!#REF!,\"XIvoLmOYa1c=\")","v":{"$error":"#REF!"}},{"$f":"AND('Development Costs'!#REF!,\"XIvoLmOYa1g=\")","v":{"$error":"#REF!"}},{"$f":"AND('Development Costs'!#REF!,\"XIvoLmOYa1k=\")","v":{"$error":"#REF!"}},{"$f":"AND('Development Costs'!#REF!,\"XIvoLmOYa1o=\")","v":{"$error":"#REF!"}},{"$f":"IF('Development Costs'!#REF!,\"XIvoLmOYa1s=\",0)","v":{"$error":"#REF!"}},{"$f":"AND('Development Costs'!#REF!,\"XIvoLmOYa1w=\")","v":{"$error":"#REF!"}},{"$f":"AND('Development Costs'!#REF!,\"XIvoLmOYa10=\")","v":{"$error":"#REF!"}},{"$f":"AND('Development Costs'!#REF!,\"XIvoLmOYa14=\")","v":{"$error":"#REF!"}},{"$f":"AND('Development Costs'!#REF!,\"XIvoLmOYa18=\")","v":{"$error":"#REF!"}},{"$f":"AND('Development Costs'!#REF!,\"XIvoLmOYa2A=\")","v":{"$error":"#REF!"}},{"$f":"AND('Development Costs'!#REF!,\"XIvoLmOYa2E=\")","v":{"$error":"#REF!"}},{"$f":"AND('Development Costs'!#REF!,\"XIvoLmOYa2I=\")","v":{"$error":"#REF!"}},{"$f":"AND('Development Costs'!#REF!,\"XIvoLmOYa2M=\")","v":{"$error":"#REF!"}},{"$f":"AND('Development Costs'!#REF!,\"XIvoLmOYa2Q=\")","v":{"$error":"#REF!"}},{"$f":"AND('Development Costs'!#REF!,\"XIvoLmOYa2U=\")","v":{"$error":"#REF!"}},{"$f":"AND('Development Costs'!#REF!,\"XIvoLmOYa2Y=\")","v":{"$error":"#REF!"}},{"$f":"AND('Development Costs'!#REF!,\"XIvoLmOYa2c=\")","v":{"$error":"#REF!"}},{"$f":"AND('Development Costs'!#REF!,\"XIvoLmOYa2g=\")","v":{"$error":"#REF!"}},{"$f":"AND('Development Costs'!#REF!,\"XIvoLmOYa2k=\")","v":{"$error":"#REF!"}},{"$f":"AND('Development Costs'!#REF!,\"XIvoLmOYa2o=\")","v":{"$error":"#REF!"}},{"$f":"AND('Development Costs'!#REF!,\"XIvoLmOYa2s=\")","v":{"$error":"#REF!"}},{"$f":"IF('Development Costs'!#REF!,\"XIvoLmOYa2w=\",0)","v":{"$error":"#REF!"}},{"$f":"AND('Development Costs'!#REF!,\"XIvoLmOYa20=\")","v":{"$error":"#REF!"}},{"$f":"AND('Development Costs'!#REF!,\"XIvoLmOYa24=\")","v":{"$error":"#REF!"}},{"$f":"AND('Development Costs'!#REF!,\"XIvoLmOYa28=\")","v":{"$error":"#REF!"}},{"$f":"AND('Development Costs'!#REF!,\"XIvoLmOYa3A=\")","v":{"$error":"#REF!"}},{"$f":"AND('Development Costs'!#REF!,\"XIvoLmOYa3E=\")","v":{"$error":"#REF!"}},{"$f":"AND('Development Costs'!#REF!,\"XIvoLmOYa3I=\")","v":{"$error":"#REF!"}},{"$f":"AND('Development Costs'!#REF!,\"XIvoLmOYa3M=\")","v":{"$error":"#REF!"}},{"$f":"AND('Development Costs'!#REF!,\"XIvoLmOYa3Q=\")","v":{"$error":"#REF!"}},{"$f":"AND('Development Costs'!#REF!,\"XIvoLmOYa3U=\")","v":{"$error":"#REF!"}},{"$f":"AND('Development Costs'!#REF!,\"XIvoLmOYa3Y=\")","v":{"$error":"#REF!"}},{"$f":"AND('Development Costs'!#REF!,\"XIvoLmOYa3c=\")","v":{"$error":"#REF!"}},{"$f":"AND('Development Costs'!#REF!,\"XIvoLmOYa3g=\")","v":{"$error":"#REF!"}},{"$f":"AND('Development Costs'!#REF!,\"XIvoLmOYa3k=\")","v":{"$error":"#REF!"}},{"$f":"AND('Development Costs'!#REF!,\"XIvoLmOYa3o=\")","v":{"$error":"#REF!"}},{"$f":"AND('Development Costs'!#REF!,\"XIvoLmOYa3s=\")","v":{"$error":"#REF!"}},{"$f":"AND('Development Costs'!#REF!,\"XIvoLmOYa3w=\")","v":{"$error":"#REF!"}},{"$f":"IF('Development Costs'!#REF!,\"XIvoLmOYa30=\",0)","v":{"$error":"#REF!"}},{"$f":"AND('Development Costs'!#REF!,\"XIvoLmOYa34=\")","v":{"$error":"#REF!"}},{"$f":"AND('Development Costs'!#REF!,\"XIvoLmOYa38=\")","v":{"$error":"#REF!"}},{"$f":"AND('Development Costs'!#REF!,\"XIvoLmOYa4A=\")","v":{"$error":"#REF!"}},{"$f":"AND('Development Costs'!#REF!,\"XIvoLmOYa4E=\")","v":{"$error":"#REF!"}},{"$f":"AND('Development Costs'!#REF!,\"XIvoLmOYa4I=\")","v":{"$error":"#REF!"}},{"$f":"AND('Development Costs'!#REF!,\"XIvoLmOYa4M=\")","v":{"$error":"#REF!"}},{"$f":"AND('Development Costs'!#REF!,\"XIvoLmOYa4Q=\")","v":{"$error":"#REF!"}},{"$f":"AND('Development Costs'!#REF!,\"XIvoLmOYa4U=\")","v":{"$error":"#REF!"}},{"$f":"AND('Development Costs'!#REF!,\"XIvoLmOYa4Y=\")","v":{"$error":"#REF!"}},{"$f":"AND('Development Costs'!#REF!,\"XIvoLmOYa4c=\")","v":{"$error":"#REF!"}},{"$f":"AND('Development Costs'!#REF!,\"XIvoLmOYa4g=\")","v":{"$error":"#REF!"}},{"$f":"AND('Development Costs'!#REF!,\"XIvoLmOYa4k=\")","v":{"$error":"#REF!"}},{"$f":"AND('Development Costs'!#REF!,\"XIvoLmOYa4o=\")","v":{"$error":"#REF!"}},{"$f":"AND('Development Costs'!#REF!,\"XIvoLmOYa4s=\")","v":{"$error":"#REF!"}},{"$f":"AND('Development Costs'!#REF!,\"XIvoLmOYa4w=\")","v":{"$error":"#REF!"}},{"$f":"AND('Development Costs'!#REF!,\"XIvoLmOYa40=\")","v":{"$error":"#REF!"}},{"$f":"IF('Development Costs'!#REF!,\"XIvoLmOYa44=\",0)","v":{"$error":"#REF!"}},{"$f":"AND('Development Costs'!#REF!,\"XIvoLmOYa48=\")","v":{"$error":"#REF!"}},{"$f":"AND('Development Costs'!#REF!,\"XIvoLmOYa5A=\")","v":{"$error":"#REF!"}},{"$f":"AND('Development Costs'!#REF!,\"XIvoLmOYa5E=\")","v":{"$error":"#REF!"}},{"$f":"AND('Development Costs'!#REF!,\"XIvoLmOYa5I=\")","v":{"$error":"#REF!"}},{"$f":"AND('Development Costs'!#REF!,\"XIvoLmOYa5M=\")","v":{"$error":"#REF!"}},{"$f":"AND('Development Costs'!#REF!,\"XIvoLmOYa5Q=\")","v":{"$error":"#REF!"}},{"$f":"AND('Development Costs'!#REF!,\"XIvoLmOYa5U=\")","v":{"$error":"#REF!"}},{"$f":"AND('Development Costs'!#REF!,\"XIvoLmOYa5Y=\")","v":{"$error":"#REF!"}},{"$f":"AND('Development Costs'!#REF!,\"XIvoLmOYa5c=\")","v":{"$error":"#REF!"}},{"$f":"AND('Development Costs'!#REF!,\"XIvoLmOYa5g=\")","v":{"$error":"#REF!"}},{"$f":"AND('Development Costs'!#REF!,\"XIvoLmOYa5k=\")","v":{"$error":"#REF!"}},{"$f":"AND('Development Costs'!#REF!,\"XIvoLmOYa5o=\")","v":{"$error":"#REF!"}},{"$f":"AND('Development Costs'!#REF!,\"XIvoLmOYa5s=\")","v":{"$error":"#REF!"}},{"$f":"AND('Development Costs'!#REF!,\"XIvoLmOYa5w=\")","v":{"$error":"#REF!"}},{"$f":"AND('Development Costs'!#REF!,\"XIvoLmOYa50=\")","v":{"$error":"#REF!"}},{"$f":"AND('Development Costs'!#REF!,\"XIvoLmOYa54=\")","v":{"$error":"#REF!"}},{"$f":"IF('Development Costs'!#REF!,\"XIvoLmOYa58=\",0)","v":{"$error":"#REF!"}},{"$f":"AND('Development Costs'!#REF!,\"XIvoLmOYa6A=\")","v":{"$error":"#REF!"}},{"$f":"AND('Development Costs'!#REF!,\"XIvoLmOYa6E=\")","v":{"$error":"#REF!"}},{"$f":"AND('Development Costs'!#REF!,\"XIvoLmOYa6I=\")","v":{"$error":"#REF!"}},{"$f":"AND('Development Costs'!#REF!,\"XIvoLmOYa6M=\")","v":{"$error":"#REF!"}},{"$f":"AND('Development Costs'!#REF!,\"XIvoLmOYa6Q=\")","v":{"$error":"#REF!"}},{"$f":"AND('Development Costs'!#REF!,\"XIvoLmOYa6U=\")","v":{"$error":"#REF!"}},{"$f":"AND('Development Costs'!#REF!,\"XIvoLmOYa6Y=\")","v":{"$error":"#REF!"}},{"$f":"AND('Development Costs'!#REF!,\"XIvoLmOYa6c=\")","v":{"$error":"#REF!"}},{"$f":"AND('Development Costs'!#REF!,\"XIvoLmOYa6g=\")","v":{"$error":"#REF!"}},{"$f":"AND('Development Costs'!#REF!,\"XIvoLmOYa6k=\")","v":{"$error":"#REF!"}},{"$f":"AND('Development Costs'!#REF!,\"XIvoLmOYa6o=\")","v":{"$error":"#REF!"}},{"$f":"AND('Development Costs'!#REF!,\"XIvoLmOYa6s=\")","v":{"$error":"#REF!"}},{"$f":"AND('Development Costs'!#REF!,\"XIvoLmOYa6w=\")","v":{"$error":"#REF!"}},{"$f":"AND('Development Costs'!#REF!,\"XIvoLmOYa60=\")","v":{"$error":"#REF!"}},{"$f":"AND('Development Costs'!#REF!,\"XIvoLmOYa64=\")","v":{"$error":"#REF!"}},{"$f":"AND('Development Costs'!#REF!,\"XIvoLmOYa68=\")","v":{"$error":"#REF!"}},{"$f":"IF('Development Costs'!#REF!,\"XIvoLmOYa7A=\",0)","v":{"$error":"#REF!"}},{"$f":"AND('Development Costs'!#REF!,\"XIvoLmOYa7E=\")","v":{"$error":"#REF!"}},{"$f":"AND('Development Costs'!#REF!,\"XIvoLmOYa7I=\")","v":{"$error":"#REF!"}},{"$f":"AND('Development Costs'!#REF!,\"XIvoLmOYa7M=\")","v":{"$error":"#REF!"}},{"$f":"AND('Development Costs'!#REF!,\"XIvoLmOYa7Q=\")","v":{"$error":"#REF!"}},{"$f":"AND('Development Costs'!#REF!,\"XIvoLmOYa7U=\")","v":{"$error":"#REF!"}},{"$f":"AND('Development Costs'!#REF!,\"XIvoLmOYa7Y=\")","v":{"$error":"#REF!"}},{"$f":"AND('Development Costs'!#REF!,\"XIvoLmOYa7c=\")","v":{"$error":"#REF!"}},{"$f":"AND('Development Costs'!#REF!,\"XIvoLmOYa7g=\")","v":{"$error":"#REF!"}},{"$f":"AND('Development Costs'!#REF!,\"XIvoLmOYa7k=\")","v":{"$error":"#REF!"}},{"$f":"AND('Development Costs'!#REF!,\"XIvoLmOYa7o=\")","v":{"$error":"#REF!"}},{"$f":"AND('Development Costs'!#REF!,\"XIvoLmOYa7s=\")","v":{"$error":"#REF!"}},{"$f":"AND('Development Costs'!#REF!,\"XIvoLmOYa7w=\")","v":{"$error":"#REF!"}},{"$f":"AND('Development Costs'!#REF!,\"XIvoLmOYa70=\")","v":{"$error":"#REF!"}},{"$f":"AND('Development Costs'!#REF!,\"XIvoLmOYa74=\")","v":{"$error":"#REF!"}},{"$f":"AND('Development Costs'!#REF!,\"XIvoLmOYa78=\")","v":{"$error":"#REF!"}},{"$f":"AND('Development Costs'!#REF!,\"XIvoLmOYa8A=\")","v":{"$error":"#REF!"}},{"$f":"IF('Development Costs'!#REF!,\"XIvoLmOYa8E=\",0)","v":{"$error":"#REF!"}},{"$f":"AND('Development Costs'!#REF!,\"XIvoLmOYa8I=\")","v":{"$error":"#REF!"}},{"$f":"AND('Development Costs'!#REF!,\"XIvoLmOYa8M=\")","v":{"$error":"#REF!"}},{"$f":"AND('Development Costs'!#REF!,\"XIvoLmOYa8Q=\")","v":{"$error":"#REF!"}},{"$f":"AND('Development Costs'!#REF!,\"XIvoLmOYa8U=\")","v":{"$error":"#REF!"}},{"$f":"AND('Development Costs'!#REF!,\"XIvoLmOYa8Y=\")","v":{"$error":"#REF!"}},{"$f":"AND('Development Costs'!#REF!,\"XIvoLmOYa8c=\")","v":{"$error":"#REF!"}},{"$f":"AND('Development Costs'!#REF!,\"XIvoLmOYa8g=\")","v":{"$error":"#REF!"}},{"$f":"AND('Development Costs'!#REF!,\"XIvoLmOYa8k=\")","v":{"$error":"#REF!"}},{"$f":"AND('Development Costs'!#REF!,\"XIvoLmOYa8o=\")","v":{"$error":"#REF!"}},{"$f":"AND('Development Costs'!#REF!,\"XIvoLmOYa8s=\")","v":{"$error":"#REF!"}},{"$f":"AND('Development Costs'!#REF!,\"XIvoLmOYa8w=\")","v":{"$error":"#REF!"}},{"$f":"AND('Development Costs'!#REF!,\"XIvoLmOYa80=\")","v":{"$error":"#REF!"}},{"$f":"AND('Development Costs'!#REF!,\"XIvoLmOYa84=\")","v":{"$error":"#REF!"}},{"$f":"AND('Development Costs'!#REF!,\"XIvoLmOYa88=\")","v":{"$error":"#REF!"}},{"$f":"AND('Development Costs'!#REF!,\"XIvoLmOYa9A=\")","v":{"$error":"#REF!"}},{"$f":"AND('Development Costs'!#REF!,\"XIvoLmOYa9E=\")","v":{"$error":"#REF!"}},{"$f":"IF('Development Costs'!#REF!,\"XIvoLmOYa9I=\",0)","v":{"$error":"#REF!"}},{"$f":"AND('Development Costs'!#REF!,\"XIvoLmOYa9M=\")","v":{"$error":"#REF!"}},{"$f":"AND('Development Costs'!#REF!,\"XIvoLmOYa9Q=\")","v":{"$error":"#REF!"}},{"$f":"AND('Development Costs'!#REF!,\"XIvoLmOYa9U=\")","v":{"$error":"#REF!"}},{"$f":"AND('Development Costs'!#REF!,\"XIvoLmOYa9Y=\")","v":{"$error":"#REF!"}},{"$f":"AND('Development Costs'!#REF!,\"XIvoLmOYa9c=\")","v":{"$error":"#REF!"}},{"$f":"AND('Development Costs'!#REF!,\"XIvoLmOYa9g=\")","v":{"$error":"#REF!"}},{"$f":"AND('Development Costs'!#REF!,\"XIvoLmOYa9k=\")","v":{"$error":"#REF!"}},{"$f":"AND('Development Costs'!#REF!,\"XIvoLmOYa9o=\")","v":{"$error":"#REF!"}},{"$f":"AND('Development Costs'!#REF!,\"XIvoLmOYa9s=\")","v":{"$error":"#REF!"}},{"$f":"AND('Development Costs'!#REF!,\"XIvoLmOYa9w=\")","v":{"$error":"#REF!"}},{"$f":"AND('Development Costs'!#REF!,\"XIvoLmOYa90=\")","v":{"$error":"#REF!"}},{"$f":"AND('Development Costs'!#REF!,\"XIvoLmOYa94=\")","v":{"$error":"#REF!"}},{"$f":"AND('Development Costs'!#REF!,\"XIvoLmOYa98=\")","v":{"$error":"#REF!"}},{"$f":"AND('Development Costs'!#REF!,\"XIvoLmOYa+A=\")","v":{"$error":"#REF!"}},{"$f":"AND('Development Costs'!#REF!,\"XIvoLmOYa+E=\")","v":{"$error":"#REF!"}},{"$f":"AND('Development Costs'!#REF!,\"XIvoLmOYa+I=\")","v":{"$error":"#REF!"}},{"$f":"IF('Development Costs'!#REF!,\"XIvoLmOYa+M=\",0)","v":{"$error":"#REF!"}},{"$f":"AND('Development Costs'!#REF!,\"XIvoLmOYa+Q=\")","v":{"$error":"#REF!"}},{"$f":"AND('Development Costs'!#REF!,\"XIvoLmOYa+U=\")","v":{"$error":"#REF!"}},{"$f":"AND('Development Costs'!#REF!,\"XIvoLmOYa+Y=\")","v":{"$error":"#REF!"}},{"$f":"AND('Development Costs'!#REF!,\"XIvoLmOYa+c=\")","v":{"$error":"#REF!"}},{"$f":"AND('Development Costs'!#REF!,\"XIvoLmOYa+g=\")","v":{"$error":"#REF!"}},{"$f":"AND('Development Costs'!#REF!,\"XIvoLmOYa+k=\")","v":{"$error":"#REF!"}},{"$f":"AND('Development Costs'!#REF!,\"XIvoLmOYa+o=\")","v":{"$error":"#REF!"}},{"$f":"AND('Development Costs'!#REF!,\"XIvoLmOYa+s=\")","v":{"$error":"#REF!"}},{"$f":"AND('Development Costs'!#REF!,\"XIvoLmOYa+w=\")","v":{"$error":"#REF!"}},{"$f":"AND('Development Costs'!#REF!,\"XIvoLmOYa+0=\")","v":{"$error":"#REF!"}},{"$f":"AND('Development Costs'!#REF!,\"XIvoLmOYa+4=\")","v":{"$error":"#REF!"}},{"$f":"AND('Development Costs'!#REF!,\"XIvoLmOYa+8=\")","v":{"$error":"#REF!"}},{"$f":"AND('Development Costs'!#REF!,\"XIvoLmOYa/A=\")","v":{"$error":"#REF!"}},{"$f":"AND('Development Costs'!#REF!,\"XIvoLmOYa/E=\")","v":{"$error":"#REF!"}},{"$f":"AND('Development Costs'!#REF!,\"XIvoLmOYa/I=\")","v":{"$error":"#REF!"}},{"$f":"AND('Development Costs'!#REF!,\"XIvoLmOYa/M=\")","v":{"$error":"#REF!"}},{"$f":"IF('Development Costs'!#REF!,\"XIvoLmOYa/Q=\",0)","v":{"$error":"#REF!"}},{"$f":"AND('Development Costs'!#REF!,\"XIvoLmOYa/U=\")","v":{"$error":"#REF!"}},{"$f":"AND('Development Costs'!#REF!,\"XIvoLmOYa/Y=\")","v":{"$error":"#REF!"}},{"$f":"AND('Development Costs'!#REF!,\"XIvoLmOYa/c=\")","v":{"$error":"#REF!"}},{"$f":"AND('Development Costs'!#REF!,\"XIvoLmOYa/g=\")","v":{"$error":"#REF!"}},{"$f":"AND('Development Costs'!#REF!,\"XIvoLmOYa/k=\")","v":{"$error":"#REF!"}},{"$f":"AND('Development Costs'!#REF!,\"XIvoLmOYa/o=\")","v":{"$error":"#REF!"}},{"$f":"AND('Development Costs'!#REF!,\"XIvoLmOYa/s=\")","v":{"$error":"#REF!"}},{"$f":"AND('Development Costs'!#REF!,\"XIvoLmOYa/w=\")","v":{"$error":"#REF!"}},{"$f":"AND('Development Costs'!#REF!,\"XIvoLmOYa/0=\")","v":{"$error":"#REF!"}},{"$f":"AND('Development Costs'!#REF!,\"XIvoLmOYa/4=\")","v":{"$error":"#REF!"}},{"$f":"AND('Development Costs'!#REF!,\"XIvoLmOYa/8=\")","v":{"$error":"#REF!"}}]
[{"$f":"AND('Development Costs'!#REF!,\"Wi8dO0G7/wA=\")","v":{"$error":"#REF!"}},{"$f":"AND('Development Costs'!#REF!,\"Wi8dO0G7/wE=\")","v":{"$error":"#REF!"}},{"$f":"AND('Development Costs'!#REF!,\"Wi8dO0G7/wI=\")","v":{"$error":"#REF!"}},{"$f":"AND('Development Costs'!#REF!,\"Wi8dO0G7/wM=\")","v":{"$error":"#REF!"}},{"$f":"AND('Development Costs'!#REF!,\"Wi8dO0G7/wQ=\")","v":{"$error":"#REF!"}},{"$f":"IF('Development Costs'!#REF!,\"Wi8dO0G7/wU=\",0)","v":{"$error":"#REF!"}},{"$f":"AND('Development Costs'!#REF!,\"Wi8dO0G7/wY=\")","v":{"$error":"#REF!"}},{"$f":"AND('Development Costs'!#REF!,\"Wi8dO0G7/wc=\")","v":{"$error":"#REF!"}},{"$f":"AND('Development Costs'!#REF!,\"Wi8dO0G7/wg=\")","v":{"$error":"#REF!"}},{"$f":"AND('Development Costs'!#REF!,\"Wi8dO0G7/wk=\")","v":{"$error":"#REF!"}},{"$f":"AND('Development Costs'!#REF!,\"Wi8dO0G7/wo=\")","v":{"$error":"#REF!"}},{"$f":"AND('Development Costs'!#REF!,\"Wi8dO0G7/ws=\")","v":{"$error":"#REF!"}},{"$f":"AND('Development Costs'!#REF!,\"Wi8dO0G7/ww=\")","v":{"$error":"#REF!"}},{"$f":"AND('Development Costs'!#REF!,\"Wi8dO0G7/w0=\")","v":{"$error":"#REF!"}},{"$f":"AND('Development Costs'!#REF!,\"Wi8dO0G7/w4=\")","v":{"$error":"#REF!"}},{"$f":"AND('Development Costs'!#REF!,\"Wi8dO0G7/w8=\")","v":{"$error":"#REF!"}},{"$f":"AND('Development Costs'!#REF!,\"Wi8dO0G7/xA=\")","v":{"$error":"#REF!"}},{"$f":"AND('Development Costs'!#REF!,\"Wi8dO0G7/xE=\")","v":{"$error":"#REF!"}},{"$f":"AND('Development Costs'!#REF!,\"Wi8dO0G7/xI=\")","v":{"$error":"#REF!"}},{"$f":"AND('Development Costs'!#REF!,\"Wi8dO0G7/xM=\")","v":{"$error":"#REF!"}},{"$f":"AND('Development Costs'!#REF!,\"Wi8dO0G7/xQ=\")","v":{"$error":"#REF!"}},{"$f":"AND('Development Costs'!#REF!,\"Wi8dO0G7/xU=\")","v":{"$error":"#REF!"}},{"$f":"IF('Development Costs'!#REF!,\"Wi8dO0G7/xY=\",0)","v":{"$error":"#REF!"}},{"$f":"AND('Development Costs'!#REF!,\"Wi8dO0G7/xc=\")","v":{"$error":"#REF!"}},{"$f":"AND('Development Costs'!#REF!,\"Wi8dO0G7/xg=\")","v":{"$error":"#REF!"}},{"$f":"AND('Development Costs'!#REF!,\"Wi8dO0G7/xk=\")","v":{"$error":"#REF!"}},{"$f":"AND('Development Costs'!#REF!,\"Wi8dO0G7/xo=\")","v":{"$error":"#REF!"}},{"$f":"AND('Development Costs'!#REF!,\"Wi8dO0G7/xs=\")","v":{"$error":"#REF!"}},{"$f":"AND('Development Costs'!#REF!,\"Wi8dO0G7/xw=\")","v":{"$error":"#REF!"}},{"$f":"AND('Development Costs'!#REF!,\"Wi8dO0G7/x0=\")","v":{"$error":"#REF!"}},{"$f":"AND('Development Costs'!#REF!,\"Wi8dO0G7/x4=\")","v":{"$error":"#REF!"}},{"$f":"AND('Development Costs'!#REF!,\"Wi8dO0G7/x8=\")","v":{"$error":"#REF!"}},{"$f":"AND('Development Costs'!#REF!,\"Wi8dO0G7/yA=\")","v":{"$error":"#REF!"}},{"$f":"AND('Development Costs'!#REF!,\"Wi8dO0G7/yE=\")","v":{"$error":"#REF!"}},{"$f":"AND('Development Costs'!#REF!,\"Wi8dO0G7/yI=\")","v":{"$error":"#REF!"}},{"$f":"AND('Development Costs'!#REF!,\"Wi8dO0G7/yM=\")","v":{"$error":"#REF!"}},{"$f":"AND('Development Costs'!#REF!,\"Wi8dO0G7/yQ=\")","v":{"$error":"#REF!"}},{"$f":"AND('Development Costs'!#REF!,\"Wi8dO0G7/yU=\")","v":{"$error":"#REF!"}},{"$f":"AND('Development Costs'!#REF!,\"Wi8dO0G7/yY=\")","v":{"$error":"#REF!"}},{"$f":"IF('Development Costs'!#REF!,\"Wi8dO0G7/yc=\",0)","v":{"$error":"#REF!"}},{"$f":"AND('Development Costs'!#REF!,\"Wi8dO0G7/yg=\")","v":{"$error":"#REF!"}},{"$f":"AND('Development Costs'!#REF!,\"Wi8dO0G7/yk=\")","v":{"$error":"#REF!"}},{"$f":"AND('Development Costs'!#REF!,\"Wi8dO0G7/yo=\")","v":{"$error":"#REF!"}},{"$f":"AND('Development Costs'!#REF!,\"Wi8dO0G7/ys=\")","v":{"$error":"#REF!"}},{"$f":"AND('Development Costs'!#REF!,\"Wi8dO0G7/yw=\")","v":{"$error":"#REF!"}},{"$f":"AND('Development Costs'!#REF!,\"Wi8dO0G7/y0=\")","v":{"$error":"#REF!"}},{"$f":"AND('Development Costs'!#REF!,\"Wi8dO0G7/y4=\")","v":{"$error":"#REF!"}},{"$f":"AND('Development Costs'!#REF!,\"Wi8dO0G7/y8=\")","v":{"$error":"#REF!"}},{"$f":"AND('Development Costs'!#REF!,\"Wi8dO0G7/zA=\")","v":{"$error":"#REF!"}},{"$f":"AND('Development Costs'!#REF!,\"Wi8dO0G7/zE=\")","v":{"$error":"#REF!"}},{"$f":"AND('Development Costs'!#REF!,\"Wi8dO0G7/zI=\")","v":{"$error":"#REF!"}},{"$f":"AND('Development Costs'!#REF!,\"Wi8dO0G7/zM=\")","v":{"$error":"#REF!"}},{"$f":"AND('Development Costs'!#REF!,\"Wi8dO0G7/zQ=\")","v":{"$error":"#REF!"}},{"$f":"AND('Development Costs'!#REF!,\"Wi8dO0G7/zU=\")","v":{"$error":"#REF!"}},{"$f":"AND('Development Costs'!#REF!,\"Wi8dO0G7/zY=\")","v":{"$error":"#REF!"}},{"$f":"AND('Development Costs'!#REF!,\"Wi8dO0G7/zc=\")","v":{"$error":"#REF!"}},{"$f":"IF('Development Costs'!#REF!,\"Wi8dO0G7/zg=\",0)","v":{"$error":"#REF!"}},{"$f":"AND('Development Costs'!#REF!,\"Wi8dO0G7/zk=\")","v":{"$error":"#REF!"}},{"$f":"AND('Development Costs'!#REF!,\"Wi8dO0G7/zo=\")","v":{"$error":"#REF!"}},{"$f":"AND('Development Costs'!#REF!,\"Wi8dO0G7/zs=\")","v":{"$error":"#REF!"}},{"$f":"AND('Development Costs'!#REF!,\"Wi8dO0G7/zw=\")","v":{"$error":"#REF!"}},{"$f":"AND('Development Costs'!#REF!,\"Wi8dO0G7/z0=\")","v":{"$error":"#REF!"}},{"$f":"AND('Development Costs'!#REF!,\"Wi8dO0G7/z4=\")","v":{"$error":"#REF!"}},{"$f":"AND('Development Costs'!#REF!,\"Wi8dO0G7/z8=\")","v":{"$error":"#REF!"}},{"$f":"AND('Development Costs'!#REF!,\"Wi8dO0G7/0A=\")","v":{"$error":"#REF!"}},{"$f":"AND('Development Costs'!#REF!,\"Wi8dO0G7/0E=\")","v":{"$error":"#REF!"}},{"$f":"AND('Development Costs'!#REF!,\"Wi8dO0G7/0I=\")","v":{"$error":"#REF!"}},{"$f":"AND('Development Costs'!#REF!,\"Wi8dO0G7/0M=\")","v":{"$error":"#REF!"}},{"$f":"AND('Development Costs'!#REF!,\"Wi8dO0G7/0Q=\")","v":{"$error":"#REF!"}},{"$f":"AND('Development Costs'!#REF!,\"Wi8dO0G7/0U=\")","v":{"$error":"#REF!"}},{"$f":"AND('Development Costs'!#REF!,\"Wi8dO0G7/0Y=\")","v":{"$error":"#REF!"}},{"$f":"AND('Development Costs'!#REF!,\"Wi8dO0G7/0c=\")","v":{"$error":"#REF!"}},{"$f":"AND('Development Costs'!#REF!,\"Wi8dO0G7/0g=\")","v":{"$error":"#REF!"}},{"$f":"IF('Development Costs'!#REF!,\"Wi8dO0G7/0k=\",0)","v":{"$error":"#REF!"}},{"$f":"AND('Development Costs'!#REF!,\"Wi8dO0G7/0o=\")","v":{"$error":"#REF!"}},{"$f":"AND('Development Costs'!#REF!,\"Wi8dO0G7/0s=\")","v":{"$error":"#REF!"}},{"$f":"AND('Development Costs'!#REF!,\"Wi8dO0G7/0w=\")","v":{"$error":"#REF!"}},{"$f":"AND('Development Costs'!#REF!,\"Wi8dO0G7/00=\")","v":{"$error":"#REF!"}},{"$f":"AND('Development Costs'!#REF!,\"Wi8dO0G7/04=\")","v":{"$error":"#REF!"}},{"$f":"AND('Development Costs'!#REF!,\"Wi8dO0G7/08=\")","v":{"$error":"#REF!"}},{"$f":"AND('Development Costs'!#REF!,\"Wi8dO0G7/1A=\")","v":{"$error":"#REF!"}},{"$f":"AND('Development Costs'!#REF!,\"Wi8dO0G7/1E=\")","v":{"$error":"#REF!"}},{"$f":"AND('Development Costs'!#REF!,\"Wi8dO0G7/1I=\")","v":{"$error":"#REF!"}},{"$f":"AND('Development Costs'!#REF!,\"Wi8dO0G7/1M=\")","v":{"$error":"#REF!"}},{"$f":"AND('Development Costs'!#REF!,\"Wi8dO0G7/1Q=\")","v":{"$error":"#REF!"}},{"$f":"AND('Development Costs'!#REF!,\"Wi8dO0G7/1U=\")","v":{"$error":"#REF!"}},{"$f":"AND('Development Costs'!#REF!,\"Wi8dO0G7/1Y=\")","v":{"$error":"#REF!"}},{"$f":"AND('Development Costs'!#REF!,\"Wi8dO0G7/1c=\")","v":{"$error":"#REF!"}},{"$f":"AND('Development Costs'!#REF!,\"Wi8dO0G7/1g=\")","v":{"$error":"#REF!"}},{"$f":"AND('Development Costs'!#REF!,\"Wi8dO0G7/1k=\")","v":{"$error":"#REF!"}},{"$f":"IF('Development Costs'!#REF!,\"Wi8dO0G7/1o=\",0)","v":{"$error":"#REF!"}},{"$f":"AND('Development Costs'!#REF!,\"Wi8dO0G7/1s=\")","v":{"$error":"#REF!"}},{"$f":"AND('Development Costs'!#REF!,\"Wi8dO0G7/1w=\")","v":{"$error":"#REF!"}},{"$f":"AND('Development Costs'!#REF!,\"Wi8dO0G7/10=\")","v":{"$error":"#REF!"}},{"$f":"AND('Development Costs'!#REF!,\"Wi8dO0G7/14=\")","v":{"$error":"#REF!"}},{"$f":"AND('Development Costs'!#REF!,\"Wi8dO0G7/18=\")","v":{"$error":"#REF!"}},{"$f":"AND('Development Costs'!#REF!,\"Wi8dO0G7/2A=\")","v":{"$error":"#REF!"}},{"$f":"AND('Development Costs'!#REF!,\"Wi8dO0G7/2E=\")","v":{"$error":"#REF!"}},{"$f":"AND('Development Costs'!#REF!,\"Wi8dO0G7/2I=\")","v":{"$error":"#REF!"}},{"$f":"AND('Development Costs'!#REF!,\"Wi8dO0G7/2M=\")","v":{"$error":"#REF!"}},{"$f":"AND('Development Costs'!#REF!,\"Wi8dO0G7/2Q=\")","v":{"$error":"#REF!"}},{"$f":"AND('Development Costs'!#REF!,\"Wi8dO0G7/2U=\")","v":{"$error":"#REF!"}},{"$f":"AND('Development Costs'!#REF!,\"Wi8dO0G7/2Y=\")","v":{"$error":"#REF!"}},{"$f":"AND('Development Costs'!#REF!,\"Wi8dO0G7/2c=\")","v":{"$error":"#REF!"}},{"$f":"AND('Development Costs'!#REF!,\"Wi8dO0G7/2g=\")","v":{"$error":"#REF!"}},{"$f":"AND('Development Costs'!#REF!,\"Wi8dO0G7/2k=\")","v":{"$error":"#REF!"}},{"$f":"AND('Development Costs'!#REF!,\"Wi8dO0G7/2o=\")","v":{"$error":"#REF!"}},{"$f":"IF('Development Costs'!#REF!,\"Wi8dO0G7/2s=\",0)","v":{"$error":"#REF!"}},{"$f":"AND('Development Costs'!#REF!,\"Wi8dO0G7/2w=\")","v":{"$error":"#REF!"}},{"$f":"AND('Development Costs'!#REF!,\"Wi8dO0G7/20=\")","v":{"$error":"#REF!"}},{"$f":"AND('Development Costs'!#REF!,\"Wi8dO0G7/24=\")","v":{"$error":"#REF!"}},{"$f":"AND('Development Costs'!#REF!,\"Wi8dO0G7/28=\")","v":{"$error":"#REF!"}},{"$f":"AND('Development Costs'!#REF!,\"Wi8dO0G7/3A=\")","v":{"$error":"#REF!"}},{"$f":"AND('Development Costs'!#REF!,\"Wi8dO0G7/3E=\")","v":{"$error":"#REF!"}},{"$f":"AND('Development Costs'!#REF!,\"Wi8dO0G7/3I=\")","v":{"$error":"#REF!"}},{"$f":"AND('Development Costs'!#REF!,\"Wi8dO0G7/3M=\")","v":{"$error":"#REF!"}},{"$f":"AND('Development Costs'!#REF!,\"Wi8dO0G7/3Q=\")","v":{"$error":"#REF!"}},{"$f":"AND('Development Costs'!#REF!,\"Wi8dO0G7/3U=\")","v":{"$error":"#REF!"}},{"$f":"AND('Development Costs'!#REF!,\"Wi8dO0G7/3Y=\")","v":{"$error":"#REF!"}},{"$f":"AND('Development Costs'!#REF!,\"Wi8dO0G7/3c=\")","v":{"$error":"#REF!"}},{"$f":"AND('Development Costs'!#REF!,\"Wi8dO0G7/3g=\")","v":{"$error":"#REF!"}},{"$f":"AND('Development Costs'!#REF!,\"Wi8dO0G7/3k=\")","v":{"$error":"#REF!"}},{"$f":"AND('Development Costs'!#REF!,\"Wi8dO0G7/3o=\")","v":{"$error":"#REF!"}},{"$f":"AND('Development Costs'!#REF!,\"Wi8dO0G7/3s=\")","v":{"$error":"#REF!"}},{"$f":"IF('Development Costs'!#REF!,\"Wi8dO0G7/3w=\",0)","v":{"$error":"#REF!"}},{"$f":"AND('Development Costs'!#REF!,\"Wi8dO0G7/30=\")","v":{"$error":"#REF!"}},{"$f":"AND('Development Costs'!#REF!,\"Wi8dO0G7/34=\")","v":{"$error":"#REF!"}},{"$f":"AND('Development Costs'!#REF!,\"Wi8dO0G7/38=\")","v":{"$error":"#REF!"}},{"$f":"AND('Development Costs'!#REF!,\"Wi8dO0G7/4A=\")","v":{"$error":"#REF!"}},{"$f":"AND('Development Costs'!#REF!,\"Wi8dO0G7/4E=\")","v":{"$error":"#REF!"}},{"$f":"AND('Development Costs'!#REF!,\"Wi8dO0G7/4I=\")","v":{"$error":"#REF!"}},{"$f":"AND('Development Costs'!#REF!,\"Wi8dO0G7/4M=\")","v":{"$error":"#REF!"}},{"$f":"AND('Development Costs'!#REF!,\"Wi8dO0G7/4Q=\")","v":{"$error":"#REF!"}},{"$f":"AND('Development Costs'!#REF!,\"Wi8dO0G7/4U=\")","v":{"$error":"#REF!"}},{"$f":"AND('Development Costs'!#REF!,\"Wi8dO0G7/4Y=\")","v":{"$error":"#REF!"}},{"$f":"AND('Development Costs'!#REF!,\"Wi8dO0G7/4c=\")","v":{"$error":"#REF!"}},{"$f":"AND('Development Costs'!#REF!,\"Wi8dO0G7/4g=\")","v":{"$error":"#REF!"}},{"$f":"AND('Development Costs'!#REF!,\"Wi8dO0G7/4k=\")","v":{"$error":"#REF!"}},{"$f":"AND('Development Costs'!#REF!,\"Wi8dO0G7/4o=\")","v":{"$error":"#REF!"}},{"$f":"AND('Development Costs'!#REF!,\"Wi8dO0G7/4s=\")","v":{"$error":"#REF!"}},{"$f":"AND('Development Costs'!#REF!,\"Wi8dO0G7/4w=\")","v":{"$error":"#REF!"}},{"$f":"IF('Development Costs'!#REF!,\"Wi8dO0G7/40=\",0)","v":{"$error":"#REF!"}},{"$f":"AND('Development Costs'!#REF!,\"Wi8dO0G7/44=\")","v":{"$error":"#REF!"}},{"$f":"AND('Development Costs'!#REF!,\"Wi8dO0G7/48=\")","v":{"$error":"#REF!"}},{"$f":"AND('Development Costs'!#REF!,\"Wi8dO0G7/5A=\")","v":{"$error":"#REF!"}},{"$f":"AND('Development Costs'!#REF!,\"Wi8dO0G7/5E=\")","v":{"$error":"#REF!"}},{"$f":"AND('Development Costs'!#REF!,\"Wi8dO0G7/5I=\")","v":{"$error":"#REF!"}},{"$f":"AND('Development Costs'!#REF!,\"Wi8dO0G7/5M=\")","v":{"$error":"#REF!"}},{"$f":"AND('Development Costs'!#REF!,\"Wi8dO0G7/5Q=\")","v":{"$error":"#REF!"}},{"$f":"AND('Development Costs'!#REF!,\"Wi8dO0G7/5U=\")","v":{"$error":"#REF!"}},{"$f":"AND('Development Costs'!#REF!,\"Wi8dO0G7/5Y=\")","v":{"$error":"#REF!"}},{"$f":"AND('Development Costs'!#REF!,\"Wi8dO0G7/5c=\")","v":{"$error":"#REF!"}},{"$f":"AND('Development Costs'!#REF!,\"Wi8dO0G7/5g=\")","v":{"$error":"#REF!"}},{"$f":"AND('Development Costs'!#REF!,\"Wi8dO0G7/5k=\")","v":{"$error":"#REF!"}},{"$f":"AND('Development Costs'!#REF!,\"Wi8dO0G7/5o=\")","v":{"$error":"#REF!"}},{"$f":"AND('Development Costs'!#REF!,\"Wi8dO0G7/5s=\")","v":{"$error":"#REF!"}},{"$f":"AND('Development Costs'!#REF!,\"Wi8dO0G7/5w=\")","v":{"$error":"#REF!"}},{"$f":"AND('Development Costs'!#REF!,\"Wi8dO0G7/50=\")","v":{"$error":"#REF!"}},{"$f":"IF('Development Costs'!#REF!,\"Wi8dO0G7/54=\",0)","v":{"$error":"#REF!"}},{"$f":"AND('Development Costs'!#REF!,\"Wi8dO0G7/58=\")","v":{"$error":"#REF!"}},{"$f":"AND('Development Costs'!#REF!,\"Wi8dO0G7/6A=\")","v":{"$error":"#REF!"}},{"$f":"AND('Development Costs'!#REF!,\"Wi8dO0G7/6E=\")","v":{"$error":"#REF!"}},{"$f":"AND('Development Costs'!#REF!,\"Wi8dO0G7/6I=\")","v":{"$error":"#REF!"}},{"$f":"AND('Development Costs'!#REF!,\"Wi8dO0G7/6M=\")","v":{"$error":"#REF!"}},{"$f":"AND('Development Costs'!#REF!,\"Wi8dO0G7/6Q=\")","v":{"$error":"#REF!"}},{"$f":"AND('Development Costs'!#REF!,\"Wi8dO0G7/6U=\")","v":{"$error":"#REF!"}},{"$f":"AND('Development Costs'!#REF!,\"Wi8dO0G7/6Y=\")","v":{"$error":"#REF!"}},{"$f":"AND('Development Costs'!#REF!,\"Wi8dO0G7/6c=\")","v":{"$error":"#REF!"}},{"$f":"AND('Development Costs'!#REF!,\"Wi8dO0G7/6g=\")","v":{"$error":"#REF!"}},{"$f":"AND('Development Costs'!#REF!,\"Wi8dO0G7/6k=\")","v":{"$error":"#REF!"}},{"$f":"AND('Development Costs'!#REF!,\"Wi8dO0G7/6o=\")","v":{"$error":"#REF!"}},{"$f":"AND('Development Costs'!#REF!,\"Wi8dO0G7/6s=\")","v":{"$error":"#REF!"}},{"$f":"AND('Development Costs'!#REF!,\"Wi8dO0G7/6w=\")","v":{"$error":"#REF!"}},{"$f":"AND('Development Costs'!#REF!,\"Wi8dO0G7/60=\")","v":{"$error":"#REF!"}},{"$f":"AND('Development Costs'!#REF!,\"Wi8dO0G7/64=\")","v":{"$error":"#REF!"}},{"$f":"IF('Development Costs'!#REF!,\"Wi8dO0G7/68=\",0)","v":{"$error":"#REF!"}},{"$f":"AND('Development Costs'!#REF!,\"Wi8dO0G7/7A=\")","v":{"$error":"#REF!"}},{"$f":"AND('Development Costs'!#REF!,\"Wi8dO0G7/7E=\")","v":{"$error":"#REF!"}},{"$f":"AND('Development Costs'!#REF!,\"Wi8dO0G7/7I=\")","v":{"$error":"#REF!"}},{"$f":"AND('Development Costs'!#REF!,\"Wi8dO0G7/7M=\")","v":{"$error":"#REF!"}},{"$f":"AND('Development Costs'!#REF!,\"Wi8dO0G7/7Q=\")","v":{"$error":"#REF!"}},{"$f":"AND('Development Costs'!#REF!,\"Wi8dO0G7/7U=\")","v":{"$error":"#REF!"}},{"$f":"AND('Development Costs'!#REF!,\"Wi8dO0G7/7Y=\")","v":{"$error":"#REF!"}},{"$f":"AND('Development Costs'!#REF!,\"Wi8dO0G7/7c=\")","v":{"$error":"#REF!"}},{"$f":"AND('Development Costs'!#REF!,\"Wi8dO0G7/7g=\")","v":{"$error":"#REF!"}},{"$f":"AND('Development Costs'!#REF!,\"Wi8dO0G7/7k=\")","v":{"$error":"#REF!"}},{"$f":"AND('Development Costs'!#REF!,\"Wi8dO0G7/7o=\")","v":{"$error":"#REF!"}},{"$f":"AND('Development Costs'!#REF!,\"Wi8dO0G7/7s=\")","v":{"$error":"#REF!"}},{"$f":"AND('Development Costs'!#REF!,\"Wi8dO0G7/7w=\")","v":{"$error":"#REF!"}},{"$f":"AND('Development Costs'!#REF!,\"Wi8dO0G7/70=\")","v":{"$error":"#REF!"}},{"$f":"AND('Development Costs'!#REF!,\"Wi8dO0G7/74=\")","v":{"$error":"#REF!"}},{"$f":"AND('Development Costs'!#REF!,\"Wi8dO0G7/78=\")","v":{"$error":"#REF!"}},{"$f":"IF('Development Costs'!#REF!,\"Wi8dO0G7/8A=\",0)","v":{"$error":"#REF!"}},{"$f":"AND('Development Costs'!#REF!,\"Wi8dO0G7/8E=\")","v":{"$error":"#REF!"}},{"$f":"AND('Development Costs'!#REF!,\"Wi8dO0G7/8I=\")","v":{"$error":"#REF!"}},{"$f":"AND('Development Costs'!#REF!,\"Wi8dO0G7/8M=\")","v":{"$error":"#REF!"}},{"$f":"AND('Development Costs'!#REF!,\"Wi8dO0G7/8Q=\")","v":{"$error":"#REF!"}},{"$f":"AND('Development Costs'!#REF!,\"Wi8dO0G7/8U=\")","v":{"$error":"#REF!"}},{"$f":"AND('Development Costs'!#REF!,\"Wi8dO0G7/8Y=\")","v":{"$error":"#REF!"}},{"$f":"AND('Development Costs'!#REF!,\"Wi8dO0G7/8c=\")","v":{"$error":"#REF!"}},{"$f":"AND('Development Costs'!#REF!,\"Wi8dO0G7/8g=\")","v":{"$error":"#REF!"}},{"$f":"AND('Development Costs'!#REF!,\"Wi8dO0G7/8k=\")","v":{"$error":"#REF!"}},{"$f":"AND('Development Costs'!#REF!,\"Wi8dO0G7/8o=\")","v":{"$error":"#REF!"}},{"$f":"AND('Development Costs'!#REF!,\"Wi8dO0G7/8s=\")","v":{"$error":"#REF!"}},{"$f":"AND('Development Costs'!#REF!,\"Wi8dO0G7/8w=\")","v":{"$error":"#REF!"}},{"$f":"AND('Development Costs'!#REF!,\"Wi8dO0G7/80=\")","v":{"$error":"#REF!"}},{"$f":"AND('Development Costs'!#REF!,\"Wi8dO0G7/84=\")","v":{"$error":"#REF!"}},{"$f":"AND('Development Costs'!#REF!,\"Wi8dO0G7/88=\")","v":{"$error":"#REF!"}},{"$f":"AND('Development Costs'!#REF!,\"Wi8dO0G7/9A=\")","v":{"$error":"#REF!"}},{"$f":"IF('Development Costs'!#REF!,\"Wi8dO0G7/9E=\",0)","v":{"$error":"#REF!"}},{"$f":"AND('Development Costs'!#REF!,\"Wi8dO0G7/9I=\")","v":{"$error":"#REF!"}},{"$f":"AND('Development Costs'!#REF!,\"Wi8dO0G7/9M=\")","v":{"$error":"#REF!"}},{"$f":"AND('Development Costs'!#REF!,\"Wi8dO0G7/9Q=\")","v":{"$error":"#REF!"}},{"$f":"AND('Development Costs'!#REF!,\"Wi8dO0G7/9U=\")","v":{"$error":"#REF!"}},{"$f":"AND('Development Costs'!#REF!,\"Wi8dO0G7/9Y=\")","v":{"$error":"#REF!"}},{"$f":"AND('Development Costs'!#REF!,\"Wi8dO0G7/9c=\")","v":{"$error":"#REF!"}},{"$f":"AND('Development Costs'!#REF!,\"Wi8dO0G7/9g=\")","v":{"$error":"#REF!"}},{"$f":"AND('Development Costs'!#REF!,\"Wi8dO0G7/9k=\")","v":{"$error":"#REF!"}},{"$f":"AND('Development Costs'!#REF!,\"Wi8dO0G7/9o=\")","v":{"$error":"#REF!"}},{"$f":"AND('Development Costs'!#REF!,\"Wi8dO0G7/9s=\")","v":{"$error":"#REF!"}},{"$f":"AND('Development Costs'!#REF!,\"Wi8dO0G7/9w=\")","v":{"$error":"#REF!"}},{"$f":"AND('Development Costs'!#REF!,\"Wi8dO0G7/90=\")","v":{"$error":"#REF!"}},{"$f":"AND('Development Costs'!#REF!,\"Wi8dO0G7/94=\")","v":{"$error":"#REF!"}},{"$f":"AND('Development Costs'!#REF!,\"Wi8dO0G7/98=\")","v":{"$error":"#REF!"}},{"$f":"AND('Development Costs'!#REF!,\"Wi8dO0G7/+A=\")","v":{"$error":"#REF!"}},{"$f":"AND('Development Costs'!#REF!,\"Wi8dO0G7/+E=\")","v":{"$error":"#REF!"}},{"$f":"IF('Development Costs'!#REF!,\"Wi8dO0G7/+I=\",0)","v":{"$error":"#REF!"}},{"$f":"AND('Development Costs'!#REF!,\"Wi8dO0G7/+M=\")","v":{"$error":"#REF!"}},{"$f":"AND('Development Costs'!#REF!,\"Wi8dO0G7/+Q=\")","v":{"$error":"#REF!"}},{"$f":"AND('Development Costs'!#REF!,\"Wi8dO0G7/+U=\")","v":{"$error":"#REF!"}},{"$f":"AND('Development Costs'!#REF!,\"Wi8dO0G7/+Y=\")","v":{"$error":"#REF!"}},{"$f":"AND('Development Costs'!#REF!,\"Wi8dO0G7/+c=\")","v":{"$error":"#REF!"}},{"$f":"AND('Development Costs'!#REF!,\"Wi8dO0G7/+g=\")","v":{"$error":"#REF!"}},{"$f":"AND('Development Costs'!#REF!,\"Wi8dO0G7/+k=\")","v":{"$error":"#REF!"}},{"$f":"AND('Development Costs'!#REF!,\"Wi8dO0G7/+o=\")","v":{"$error":"#REF!"}},{"$f":"AND('Development Costs'!#REF!,\"Wi8dO0G7/+s=\")","v":{"$error":"#REF!"}},{"$f":"AND('Development Costs'!#REF!,\"Wi8dO0G7/+w=\")","v":{"$error":"#REF!"}},{"$f":"AND('Development Costs'!#REF!,\"Wi8dO0G7/+0=\")","v":{"$error":"#REF!"}},{"$f":"AND('Development Costs'!#REF!,\"Wi8dO0G7/+4=\")","v":{"$error":"#REF!"}},{"$f":"AND('Development Costs'!#REF!,\"Wi8dO0G7/+8=\")","v":{"$error":"#REF!"}},{"$f":"AND('Development Costs'!#REF!,\"Wi8dO0G7//A=\")","v":{"$error":"#REF!"}},{"$f":"AND('Development Costs'!#REF!,\"Wi8dO0G7//E=\")","v":{"$error":"#REF!"}},{"$f":"AND('Development Costs'!#REF!,\"Wi8dO0G7//I=\")","v":{"$error":"#REF!"}},{"$f":"IF('Development Costs'!#REF!,\"Wi8dO0G7//M=\",0)","v":{"$error":"#REF!"}},{"$f":"AND('Development Costs'!#REF!,\"Wi8dO0G7//Q=\")","v":{"$error":"#REF!"}},{"$f":"AND('Development Costs'!#REF!,\"Wi8dO0G7//U=\")","v":{"$error":"#REF!"}},{"$f":"AND('Development Costs'!#REF!,\"Wi8dO0G7//Y=\")","v":{"$error":"#REF!"}},{"$f":"AND('Development Costs'!#REF!,\"Wi8dO0G7//c=\")","v":{"$error":"#REF!"}},{"$f":"AND('Development Costs'!#REF!,\"Wi8dO0G7//g=\")","v":{"$error":"#REF!"}},{"$f":"AND('Development Costs'!#REF!,\"Wi8dO0G7//k=\")","v":{"$error":"#REF!"}},{"$f":"AND('Development Costs'!#REF!,\"Wi8dO0G7//o=\")","v":{"$error":"#REF!"}},{"$f":"AND('Development Costs'!#REF!,\"Wi8dO0G7//s=\")","v":{"$error":"#REF!"}},{"$f":"AND('Development Costs'!#REF!,\"Wi8dO0G7//w=\")","v":{"$error":"#REF!"}},{"$f":"AND('Development Costs'!#REF!,\"Wi8dO0G7//0=\")","v":{"$error":"#REF!"}},{"$f":"AND('Development Costs'!#REF!,\"Wi8dO0G7//4=\")","v":{"$error":"#REF!"}},{"$f":"AND('Development Costs'!#REF!,\"Wi8dO0G7//8=\")","v":{"$error":"#REF!"}}]
[{"$f":"AND('Development Costs'!#REF!,\"DKptsWXphgA=\")","v":{"$error":"#REF!"}},{"$f":"AND('Development Costs'!#REF!,\"DKptsWXphgE=\")","v":{"$error":"#REF!"}},{"$f":"AND('Development Costs'!#REF!,\"DKptsWXphgI=\")","v":{"$error":"#REF!"}},{"$f":"AND('Development Costs'!#REF!,\"DKptsWXphgM=\")","v":{"$error":"#REF!"}},{"$f":"IF('Development Costs'!#REF!,\"DKptsWXphgQ=\",0)","v":{"$error":"#REF!"}},{"$f":"AND('Development Costs'!#REF!,\"DKptsWXphgU=\")","v":{"$error":"#REF!"}},{"$f":"AND('Development Costs'!#REF!,\"DKptsWXphgY=\")","v":{"$error":"#REF!"}},{"$f":"AND('Development Costs'!#REF!,\"DKptsWXphgc=\")","v":{"$error":"#REF!"}},{"$f":"AND('Development Costs'!#REF!,\"DKptsWXphgg=\")","v":{"$error":"#REF!"}},{"$f":"AND('Development Costs'!#REF!,\"DKptsWXphgk=\")","v":{"$error":"#REF!"}},{"$f":"AND('Development Costs'!#REF!,\"DKptsWXphgo=\")","v":{"$error":"#REF!"}},{"$f":"AND('Development Costs'!#REF!,\"DKptsWXphgs=\")","v":{"$error":"#REF!"}},{"$f":"AND('Development Costs'!#REF!,\"DKptsWXphgw=\")","v":{"$error":"#REF!"}},{"$f":"AND('Development Costs'!#REF!,\"DKptsWXphg0=\")","v":{"$error":"#REF!"}},{"$f":"AND('Development Costs'!#REF!,\"DKptsWXphg4=\")","v":{"$error":"#REF!"}},{"$f":"AND('Development Costs'!#REF!,\"DKptsWXphg8=\")","v":{"$error":"#REF!"}},{"$f":"AND('Development Costs'!#REF!,\"DKptsWXphhA=\")","v":{"$error":"#REF!"}},{"$f":"AND('Development Costs'!#REF!,\"DKptsWXphhE=\")","v":{"$error":"#REF!"}},{"$f":"AND('Development Costs'!#REF!,\"DKptsWXphhI=\")","v":{"$error":"#REF!"}},{"$f":"AND('Development Costs'!#REF!,\"DKptsWXphhM=\")","v":{"$error":"#REF!"}},{"$f":"AND('Development Costs'!#REF!,\"DKptsWXphhQ=\")","v":{"$error":"#REF!"}},{"$f":"IF('Development Costs'!#REF!,\"DKptsWXphhU=\",0)","v":{"$error":"#REF!"}},{"$f":"AND('Development Costs'!#REF!,\"DKptsWXphhY=\")","v":{"$error":"#REF!"}},{"$f":"AND('Development Costs'!#REF!,\"DKptsWXphhc=\")","v":{"$error":"#REF!"}},{"$f":"AND('Development Costs'!#REF!,\"DKptsWXphhg=\")","v":{"$error":"#REF!"}},{"$f":"AND('Development Costs'!#REF!,\"DKptsWXphhk=\")","v":{"$error":"#REF!"}},{"$f":"AND('Development Costs'!#REF!,\"DKptsWXphho=\")","v":{"$error":"#REF!"}},{"$f":"AND('Development Costs'!#REF!,\"DKptsWXphhs=\")","v":{"$error":"#REF!"}},{"$f":"AND('Development Costs'!#REF!,\"DKptsWXphhw=\")","v":{"$error":"#REF!"}},{"$f":"AND('Development Costs'!#REF!,\"DKptsWXphh0=\")","v":{"$error":"#REF!"}},{"$f":"AND('Development Costs'!#REF!,\"DKptsWXphh4=\")","v":{"$error":"#REF!"}},{"$f":"AND('Development Costs'!#REF!,\"DKptsWXphh8=\")","v":{"$error":"#REF!"}},{"$f":"AND('Development Costs'!#REF!,\"DKptsWXphiA=\")","v":{"$error":"#REF!"}},{"$f":"AND('Development Costs'!#REF!,\"DKptsWXphiE=\")","v":{"$error":"#REF!"}},{"$f":"AND('Development Costs'!#REF!,\"DKptsWXphiI=\")","v":{"$error":"#REF!"}},{"$f":"AND('Development Costs'!#REF!,\"DKptsWXphiM=\")","v":{"$error":"#REF!"}},{"$f":"AND('Development Costs'!#REF!,\"DKptsWXphiQ=\")","v":{"$error":"#REF!"}},{"$f":"AND('Development Costs'!#REF!,\"DKptsWXphiU=\")","v":{"$error":"#REF!"}},{"$f":"IF('Development Costs'!#REF!,\"DKptsWXphiY=\",0)","v":{"$error":"#REF!"}},{"$f":"AND('Development Costs'!#REF!,\"DKptsWXphic=\")","v":{"$error":"#REF!"}},{"$f":"AND('Development Costs'!#REF!,\"DKptsWXphig=\")","v":{"$error":"#REF!"}},{"$f":"AND('Development Costs'!#REF!,\"DKptsWXphik=\")","v":{"$error":"#REF!"}},{"$f":"AND('Development Costs'!#REF!,\"DKptsWXphio=\")","v":{"$error":"#REF!"}},{"$f":"AND('Development Costs'!#REF!,\"DKptsWXphis=\")","v":{"$error":"#REF!"}},{"$f":"AND('Development Costs'!#REF!,\"DKptsWXphiw=\")","v":{"$error":"#REF!"}},{"$f":"AND('Development Costs'!#REF!,\"DKptsWXphi0=\")","v":{"$error":"#REF!"}},{"$f":"AND('Development Costs'!#REF!,\"DKptsWXphi4=\")","v":{"$error":"#REF!"}},{"$f":"AND('Development Costs'!#REF!,\"DKptsWXphi8=\")","v":{"$error":"#REF!"}},{"$f":"AND('Development Costs'!#REF!,\"DKptsWXphjA=\")","v":{"$error":"#REF!"}},{"$f":"AND('Development Costs'!#REF!,\"DKptsWXphjE=\")","v":{"$error":"#REF!"}},{"$f":"AND('Development Costs'!#REF!,\"DKptsWXphjI=\")","v":{"$error":"#REF!"}},{"$f":"AND('Development Costs'!#REF!,\"DKptsWXphjM=\")","v":{"$error":"#REF!"}},{"$f":"AND('Development Costs'!#REF!,\"DKptsWXphjQ=\")","v":{"$error":"#REF!"}},{"$f":"AND('Development Costs'!#REF!,\"DKptsWXphjU=\")","v":{"$error":"#REF!"}},{"$f":"AND('Development Costs'!#REF!,\"DKptsWXphjY=\")","v":{"$error":"#REF!"}},{"$f":"IF('Development Costs'!#REF!,\"DKptsWXphjc=\",0)","v":{"$error":"#REF!"}},{"$f":"AND('Development Costs'!#REF!,\"DKptsWXphjg=\")","v":{"$error":"#REF!"}},{"$f":"AND('Development Costs'!#REF!,\"DKptsWXphjk=\")","v":{"$error":"#REF!"}},{"$f":"AND('Development Costs'!#REF!,\"DKptsWXphjo=\")","v":{"$error":"#REF!"}},{"$f":"AND('Development Costs'!#REF!,\"DKptsWXphjs=\")","v":{"$error":"#REF!"}},{"$f":"AND('Development Costs'!#REF!,\"DKptsWXphjw=\")","v":{"$error":"#REF!"}},{"$f":"AND('Development Costs'!#REF!,\"DKptsWXphj0=\")","v":{"$error":"#REF!"}},{"$f":"AND('Development Costs'!#REF!,\"DKptsWXphj4=\")","v":{"$error":"#REF!"}},{"$f":"AND('Development Costs'!#REF!,\"DKptsWXphj8=\")","v":{"$error":"#REF!"}},{"$f":"AND('Development Costs'!#REF!,\"DKptsWXphkA=\")","v":{"$error":"#REF!"}},{"$f":"AND('Development Costs'!#REF!,\"DKptsWXphkE=\")","v":{"$error":"#REF!"}},{"$f":"AND('Development Costs'!#REF!,\"DKptsWXphkI=\")","v":{"$error":"#REF!"}},{"$f":"AND('Development Costs'!#REF!,\"DKptsWXphkM=\")","v":{"$error":"#REF!"}},{"$f":"AND('Development Costs'!#REF!,\"DKptsWXphkQ=\")","v":{"$error":"#REF!"}},{"$f":"AND('Development Costs'!#REF!,\"DKptsWXphkU=\")","v":{"$error":"#REF!"}},{"$f":"AND('Development Costs'!#REF!,\"DKptsWXphkY=\")","v":{"$error":"#REF!"}},{"$f":"AND('Development Costs'!#REF!,\"DKptsWXphkc=\")","v":{"$error":"#REF!"}},{"$f":"IF('Development Costs'!#REF!,\"DKptsWXphkg=\",0)","v":{"$error":"#REF!"}},{"$f":"AND('Development Costs'!#REF!,\"DKptsWXphkk=\")","v":{"$error":"#REF!"}},{"$f":"AND('Development Costs'!#REF!,\"DKptsWXphko=\")","v":{"$error":"#REF!"}},{"$f":"AND('Development Costs'!#REF!,\"DKptsWXphks=\")","v":{"$error":"#REF!"}},{"$f":"AND('Development Costs'!#REF!,\"DKptsWXphkw=\")","v":{"$error":"#REF!"}},{"$f":"AND('Development Costs'!#REF!,\"DKptsWXphk0=\")","v":{"$error":"#REF!"}},{"$f":"AND('Development Costs'!#REF!,\"DKptsWXphk4=\")","v":{"$error":"#REF!"}},{"$f":"AND('Development Costs'!#REF!,\"DKptsWXphk8=\")","v":{"$error":"#REF!"}},{"$f":"AND('Development Costs'!#REF!,\"DKptsWXphlA=\")","v":{"$error":"#REF!"}},{"$f":"AND('Development Costs'!#REF!,\"DKptsWXphlE=\")","v":{"$error":"#REF!"}},{"$f":"AND('Development Costs'!#REF!,\"DKptsWXphlI=\")","v":{"$error":"#REF!"}},{"$f":"AND('Development Costs'!#REF!,\"DKptsWXphlM=\")","v":{"$error":"#REF!"}},{"$f":"AND('Development Costs'!#REF!,\"DKptsWXphlQ=\")","v":{"$error":"#REF!"}},{"$f":"AND('Development Costs'!#REF!,\"DKptsWXphlU=\")","v":{"$error":"#REF!"}},{"$f":"AND('Development Costs'!#REF!,\"DKptsWXphlY=\")","v":{"$error":"#REF!"}},{"$f":"AND('Development Costs'!#REF!,\"DKptsWXphlc=\")","v":{"$error":"#REF!"}},{"$f":"AND('Development Costs'!#REF!,\"DKptsWXphlg=\")","v":{"$error":"#REF!"}},{"$f":"IF('Development Costs'!#REF!,\"DKptsWXphlk=\",0)","v":{"$error":"#REF!"}},{"$f":"AND('Development Costs'!#REF!,\"DKptsWXphlo=\")","v":{"$error":"#REF!"}},{"$f":"AND('Development Costs'!#REF!,\"DKptsWXphls=\")","v":{"$error":"#REF!"}},{"$f":"AND('Development Costs'!#REF!,\"DKptsWXphlw=\")","v":{"$error":"#REF!"}},{"$f":"AND('Development Costs'!#REF!,\"DKptsWXphl0=\")","v":{"$error":"#REF!"}},{"$f":"AND('Development Costs'!#REF!,\"DKptsWXphl4=\")","v":{"$error":"#REF!"}},{"$f":"AND('Development Costs'!#REF!,\"DKptsWXphl8=\")","v":{"$error":"#REF!"}},{"$f":"AND('Development Costs'!#REF!,\"DKptsWXphmA=\")","v":{"$error":"#REF!"}},{"$f":"AND('Development Costs'!#REF!,\"DKptsWXphmE=\")","v":{"$error":"#REF!"}},{"$f":"AND('Development Costs'!#REF!,\"DKptsWXphmI=\")","v":{"$error":"#REF!"}},{"$f":"AND('Development Costs'!#REF!,\"DKptsWXphmM=\")","v":{"$error":"#REF!"}},{"$f":"AND('Development Costs'!#REF!,\"DKptsWXphmQ=\")","v":{"$error":"#REF!"}},{"$f":"AND('Development Costs'!#REF!,\"DKptsWXphmU=\")","v":{"$error":"#REF!"}},{"$f":"AND('Development Costs'!#REF!,\"DKptsWXphmY=\")","v":{"$error":"#REF!"}},{"$f":"AND('Development Costs'!#REF!,\"DKptsWXphmc=\")","v":{"$error":"#REF!"}},{"$f":"AND('Development Costs'!#REF!,\"DKptsWXphmg=\")","v":{"$error":"#REF!"}},{"$f":"AND('Development Costs'!#REF!,\"DKptsWXphmk=\")","v":{"$error":"#REF!"}},{"$f":"IF('Development Costs'!#REF!,\"DKptsWXphmo=\",0)","v":{"$error":"#REF!"}},{"$f":"AND('Development Costs'!#REF!,\"DKptsWXphms=\")","v":{"$error":"#REF!"}},{"$f":"AND('Development Costs'!#REF!,\"DKptsWXphmw=\")","v":{"$error":"#REF!"}},{"$f":"AND('Development Costs'!#REF!,\"DKptsWXphm0=\")","v":{"$error":"#REF!"}},{"$f":"AND('Development Costs'!#REF!,\"DKptsWXphm4=\")","v":{"$error":"#REF!"}},{"$f":"AND('Development Costs'!#REF!,\"DKptsWXphm8=\")","v":{"$error":"#REF!"}},{"$f":"AND('Development Costs'!#REF!,\"DKptsWXphnA=\")","v":{"$error":"#REF!"}},{"$f":"AND('Development Costs'!#REF!,\"DKptsWXphnE=\")","v":{"$error":"#REF!"}},{"$f":"AND('Development Costs'!#REF!,\"DKptsWXphnI=\")","v":{"$error":"#REF!"}},{"$f":"AND('Development Costs'!#REF!,\"DKptsWXphnM=\")","v":{"$error":"#REF!"}},{"$f":"AND('Development Costs'!#REF!,\"DKptsWXphnQ=\")","v":{"$error":"#REF!"}},{"$f":"AND('Development Costs'!#REF!,\"DKptsWXphnU=\")","v":{"$error":"#REF!"}},{"$f":"AND('Development Costs'!#REF!,\"DKptsWXphnY=\")","v":{"$error":"#REF!"}},{"$f":"AND('Development Costs'!#REF!,\"DKptsWXphnc=\")","v":{"$error":"#REF!"}},{"$f":"AND('Development Costs'!#REF!,\"DKptsWXphng=\")","v":{"$error":"#REF!"}},{"$f":"AND('Development Costs'!#REF!,\"DKptsWXphnk=\")","v":{"$error":"#REF!"}},{"$f":"AND('Development Costs'!#REF!,\"DKptsWXphno=\")","v":{"$error":"#REF!"}},{"$f":"IF('Development Costs'!#REF!,\"DKptsWXphns=\",0)","v":{"$error":"#REF!"}},{"$f":"AND('Development Costs'!#REF!,\"DKptsWXphnw=\")","v":{"$error":"#REF!"}},{"$f":"AND('Development Costs'!#REF!,\"DKptsWXphn0=\")","v":{"$error":"#REF!"}},{"$f":"AND('Development Costs'!#REF!,\"DKptsWXphn4=\")","v":{"$error":"#REF!"}},{"$f":"AND('Development Costs'!#REF!,\"DKptsWXphn8=\")","v":{"$error":"#REF!"}},{"$f":"AND('Development Costs'!#REF!,\"DKptsWXphoA=\")","v":{"$error":"#REF!"}},{"$f":"AND('Development Costs'!#REF!,\"DKptsWXphoE=\")","v":{"$error":"#REF!"}},{"$f":"AND('Development Costs'!#REF!,\"DKptsWXphoI=\")","v":{"$error":"#REF!"}},{"$f":"AND('Development Costs'!#REF!,\"DKptsWXphoM=\")","v":{"$error":"#REF!"}},{"$f":"AND('Development Costs'!#REF!,\"DKptsWXphoQ=\")","v":{"$error":"#REF!"}},{"$f":"AND('Development Costs'!#REF!,\"DKptsWXphoU=\")","v":{"$error":"#REF!"}},{"$f":"AND('Development Costs'!#REF!,\"DKptsWXphoY=\")","v":{"$error":"#REF!"}},{"$f":"AND('Development Costs'!#REF!,\"DKptsWXphoc=\")","v":{"$error":"#REF!"}},{"$f":"AND('Development Costs'!#REF!,\"DKptsWXphog=\")","v":{"$error":"#REF!"}},{"$f":"AND('Development Costs'!#REF!,\"DKptsWXphok=\")","v":{"$error":"#REF!"}},{"$f":"AND('Development Costs'!#REF!,\"DKptsWXphoo=\")","v":{"$error":"#REF!"}},{"$f":"AND('Development Costs'!#REF!,\"DKptsWXphos=\")","v":{"$error":"#REF!"}},{"$f":"IF('Development Costs'!#REF!,\"DKptsWXphow=\",0)","v":{"$error":"#REF!"}},{"$f":"AND('Development Costs'!#REF!,\"DKptsWXpho0=\")","v":{"$error":"#REF!"}},{"$f":"AND('Development Costs'!#REF!,\"DKptsWXpho4=\")","v":{"$error":"#REF!"}},{"$f":"AND('Development Costs'!#REF!,\"DKptsWXpho8=\")","v":{"$error":"#REF!"}},{"$f":"AND('Development Costs'!#REF!,\"DKptsWXphpA=\")","v":{"$error":"#REF!"}},{"$f":"AND('Development Costs'!#REF!,\"DKptsWXphpE=\")","v":{"$error":"#REF!"}},{"$f":"AND('Development Costs'!#REF!,\"DKptsWXphpI=\")","v":{"$error":"#REF!"}},{"$f":"AND('Development Costs'!#REF!,\"DKptsWXphpM=\")","v":{"$error":"#REF!"}},{"$f":"AND('Development Costs'!#REF!,\"DKptsWXphpQ=\")","v":{"$error":"#REF!"}},{"$f":"AND('Development Costs'!#REF!,\"DKptsWXphpU=\")","v":{"$error":"#REF!"}},{"$f":"AND('Development Costs'!#REF!,\"DKptsWXphpY=\")","v":{"$error":"#REF!"}},{"$f":"AND('Development Costs'!#REF!,\"DKptsWXphpc=\")","v":{"$error":"#REF!"}},{"$f":"AND('Development Costs'!#REF!,\"DKptsWXphpg=\")","v":{"$error":"#REF!"}},{"$f":"AND('Development Costs'!#REF!,\"DKptsWXphpk=\")","v":{"$error":"#REF!"}},{"$f":"AND('Development Costs'!#REF!,\"DKptsWXphpo=\")","v":{"$error":"#REF!"}},{"$f":"AND('Development Costs'!#REF!,\"DKptsWXphps=\")","v":{"$error":"#REF!"}},{"$f":"AND('Development Costs'!#REF!,\"DKptsWXphpw=\")","v":{"$error":"#REF!"}},{"$f":"IF('Development Costs'!#REF!,\"DKptsWXphp0=\",0)","v":{"$error":"#REF!"}},{"$f":"AND('Development Costs'!#REF!,\"DKptsWXphp4=\")","v":{"$error":"#REF!"}},{"$f":"AND('Development Costs'!#REF!,\"DKptsWXphp8=\")","v":{"$error":"#REF!"}},{"$f":"AND('Development Costs'!#REF!,\"DKptsWXphqA=\")","v":{"$error":"#REF!"}},{"$f":"AND('Development Costs'!#REF!,\"DKptsWXphqE=\")","v":{"$error":"#REF!"}},{"$f":"AND('Development Costs'!#REF!,\"DKptsWXphqI=\")","v":{"$error":"#REF!"}},{"$f":"AND('Development Costs'!#REF!,\"DKptsWXphqM=\")","v":{"$error":"#REF!"}},{"$f":"AND('Development Costs'!#REF!,\"DKptsWXphqQ=\")","v":{"$error":"#REF!"}},{"$f":"AND('Development Costs'!#REF!,\"DKptsWXphqU=\")","v":{"$error":"#REF!"}},{"$f":"AND('Development Costs'!#REF!,\"DKptsWXphqY=\")","v":{"$error":"#REF!"}},{"$f":"AND('Development Costs'!#REF!,\"DKptsWXphqc=\")","v":{"$error":"#REF!"}},{"$f":"AND('Development Costs'!#REF!,\"DKptsWXphqg=\")","v":{"$error":"#REF!"}},{"$f":"AND('Development Costs'!#REF!,\"DKptsWXphqk=\")","v":{"$error":"#REF!"}},{"$f":"AND('Development Costs'!#REF!,\"DKptsWXphqo=\")","v":{"$error":"#REF!"}},{"$f":"AND('Development Costs'!#REF!,\"DKptsWXphqs=\")","v":{"$error":"#REF!"}},{"$f":"AND('Development Costs'!#REF!,\"DKptsWXphqw=\")","v":{"$error":"#REF!"}},{"$f":"AND('Development Costs'!#REF!,\"DKptsWXphq0=\")","v":{"$error":"#REF!"}},{"$f":"IF('Development Costs'!#REF!,\"DKptsWXphq4=\",0)","v":{"$error":"#REF!"}},{"$f":"AND('Development Costs'!#REF!,\"DKptsWXphq8=\")","v":{"$error":"#REF!"}},{"$f":"AND('Development Costs'!#REF!,\"DKptsWXphrA=\")","v":{"$error":"#REF!"}},{"$f":"AND('Development Costs'!#REF!,\"DKptsWXphrE=\")","v":{"$error":"#REF!"}},{"$f":"AND('Development Costs'!#REF!,\"DKptsWXphrI=\")","v":{"$error":"#REF!"}},{"$f":"AND('Development Costs'!#REF!,\"DKptsWXphrM=\")","v":{"$error":"#REF!"}},{"$f":"AND('Development Costs'!#REF!,\"DKptsWXphrQ=\")","v":{"$error":"#REF!"}},{"$f":"AND('Development Costs'!#REF!,\"DKptsWXphrU=\")","v":{"$error":"#REF!"}},{"$f":"AND('Development Costs'!#REF!,\"DKptsWXphrY=\")","v":{"$error":"#REF!"}},{"$f":"AND('Development Costs'!#REF!,\"DKptsWXphrc=\")","v":{"$error":"#REF!"}},{"$f":"AND('Development Costs'!#REF!,\"DKptsWXphrg=\")","v":{"$error":"#REF!"}},{"$f":"AND('Development Costs'!#REF!,\"DKptsWXphrk=\")","v":{"$error":"#REF!"}},{"$f":"AND('Development Costs'!#REF!,\"DKptsWXphro=\")","v":{"$error":"#REF!"}},{"$f":"AND('Development Costs'!#REF!,\"DKptsWXphrs=\")","v":{"$error":"#REF!"}},{"$f":"AND('Development Costs'!#REF!,\"DKptsWXphrw=\")","v":{"$error":"#REF!"}},{"$f":"AND('Development Costs'!#REF!,\"DKptsWXphr0=\")","v":{"$error":"#REF!"}},{"$f":"AND('Development Costs'!#REF!,\"DKptsWXphr4=\")","v":{"$error":"#REF!"}},{"$f":"IF('Development Costs'!#REF!,\"DKptsWXphr8=\",0)","v":{"$error":"#REF!"}},{"$f":"AND('Development Costs'!#REF!,\"DKptsWXphsA=\")","v":{"$error":"#REF!"}},{"$f":"AND('Development Costs'!#REF!,\"DKptsWXphsE=\")","v":{"$error":"#REF!"}},{"$f":"AND('Development Costs'!#REF!,\"DKptsWXphsI=\")","v":{"$error":"#REF!"}},{"$f":"AND('Development Costs'!#REF!,\"DKptsWXphsM=\")","v":{"$error":"#REF!"}},{"$f":"AND('Development Costs'!#REF!,\"DKptsWXphsQ=\")","v":{"$error":"#REF!"}},{"$f":"AND('Development Costs'!#REF!,\"DKptsWXphsU=\")","v":{"$error":"#REF!"}},{"$f":"AND('Development Costs'!#REF!,\"DKptsWXphsY=\")","v":{"$error":"#REF!"}},{"$f":"AND('Development Costs'!#REF!,\"DKptsWXphsc=\")","v":{"$error":"#REF!"}},{"$f":"AND('Development Costs'!#REF!,\"DKptsWXphsg=\")","v":{"$error":"#REF!"}},{"$f":"AND('Development Costs'!#REF!,\"DKptsWXphsk=\")","v":{"$error":"#REF!"}},{"$f":"AND('Development Costs'!#REF!,\"DKptsWXphso=\")","v":{"$error":"#REF!"}},{"$f":"AND('Development Costs'!#REF!,\"DKptsWXphss=\")","v":{"$error":"#REF!"}},{"$f":"AND('Development Costs'!#REF!,\"DKptsWXphsw=\")","v":{"$error":"#REF!"}},{"$f":"AND('Development Costs'!#REF!,\"DKptsWXphs0=\")","v":{"$error":"#REF!"}},{"$f":"AND('Development Costs'!#REF!,\"DKptsWXphs4=\")","v":{"$error":"#REF!"}},{"$f":"AND('Development Costs'!#REF!,\"DKptsWXphs8=\")","v":{"$error":"#REF!"}},{"$f":"IF('Development Costs'!#REF!,\"DKptsWXphtA=\",0)","v":{"$error":"#REF!"}},{"$f":"AND('Development Costs'!#REF!,\"DKptsWXphtE=\")","v":{"$error":"#REF!"}},{"$f":"AND('Development Costs'!#REF!,\"DKptsWXphtI=\")","v":{"$error":"#REF!"}},{"$f":"AND('Development Costs'!#REF!,\"DKptsWXphtM=\")","v":{"$error":"#REF!"}},{"$f":"AND('Development Costs'!#REF!,\"DKptsWXphtQ=\")","v":{"$error":"#REF!"}},{"$f":"AND('Development Costs'!#REF!,\"DKptsWXphtU=\")","v":{"$error":"#REF!"}},{"$f":"AND('Development Costs'!#REF!,\"DKptsWXphtY=\")","v":{"$error":"#REF!"}},{"$f":"AND('Development Costs'!#REF!,\"DKptsWXphtc=\")","v":{"$error":"#REF!"}},{"$f":"AND('Development Costs'!#REF!,\"DKptsWXphtg=\")","v":{"$error":"#REF!"}},{"$f":"AND('Development Costs'!#REF!,\"DKptsWXphtk=\")","v":{"$error":"#REF!"}},{"$f":"AND('Development Costs'!#REF!,\"DKptsWXphto=\")","v":{"$error":"#REF!"}},{"$f":"AND('Development Costs'!#REF!,\"DKptsWXphts=\")","v":{"$error":"#REF!"}},{"$f":"AND('Development Costs'!#REF!,\"DKptsWXphtw=\")","v":{"$error":"#REF!"}},{"$f":"AND('Development Costs'!#REF!,\"DKptsWXpht0=\")","v":{"$error":"#REF!"}},{"$f":"AND('Development Costs'!#REF!,\"DKptsWXpht4=\")","v":{"$error":"#REF!"}},{"$f":"AND('Development Costs'!#REF!,\"DKptsWXpht8=\")","v":{"$error":"#REF!"}},{"$f":"AND('Development Costs'!#REF!,\"DKptsWXphuA=\")","v":{"$error":"#REF!"}},{"$f":"IF('Development Costs'!36:36,\"DKptsWXphuE=\",0)","v":0},{"$f":"AND('Development Costs'!#REF!,\"DKptsWXphuI=\")","v":{"$error":"#REF!"}},{"$f":"AND('Development Costs'!#REF!,\"DKptsWXphuM=\")","v":{"$error":"#REF!"}},{"$f":"AND('Development Costs'!#REF!,\"DKptsWXphuQ=\")","v":{"$error":"#REF!"}},{"$f":"AND('Development Costs'!#REF!,\"DKptsWXphuU=\")","v":{"$error":"#REF!"}},{"$f":"AND('Development Costs'!#REF!,\"DKptsWXphuY=\")","v":{"$error":"#REF!"}},{"$f":"AND('Development Costs'!#REF!,\"DKptsWXphuc=\")","v":{"$error":"#REF!"}},{"$f":"AND('Development Costs'!#REF!,\"DKptsWXphug=\")","v":{"$error":"#REF!"}},{"$f":"AND('Development Costs'!#REF!,\"DKptsWXphuk=\")","v":{"$error":"#REF!"}},{"$f":"AND('Development Costs'!#REF!,\"DKptsWXphuo=\")","v":{"$error":"#REF!"}},{"$f":"AND('Development Costs'!#REF!,\"DKptsWXphus=\")","v":{"$error":"#REF!"}},{"$f":"AND('Development Costs'!#REF!,\"DKptsWXphuw=\")","v":{"$error":"#REF!"}},{"$f":"AND('Development Costs'!#REF!,\"DKptsWXphu0=\")","v":{"$error":"#REF!"}},{"$f":"AND('Development Costs'!#REF!,\"DKptsWXphu4=\")","v":{"$error":"#REF!"}},{"$f":"AND('Development Costs'!#REF!,\"DKptsWXphu8=\")","v":{"$error":"#REF!"}},{"$f":"AND('Development Costs'!#REF!,\"DKptsWXphvA=\")","v":{"$error":"#REF!"}},{"$f":"AND('Development Costs'!#REF!,\"DKptsWXphvE=\")","v":{"$error":"#REF!"}},{"$f":"IF('Development Costs'!A:A,\"DKptsWXphvI=\",0)","v":0},{"$f":"IF('Development Costs'!B:B,\"DKptsWXphvM=\",0)","v":0},{"$f":"IF('Development Costs'!C:C,\"DKptsWXphvQ=\",0)","v":0},{"$f":"IF('Development Costs'!D:D,\"DKptsWXphvU=\",0)","v":0},{"$f":"IF('Development Costs'!#REF!,\"DKptsWXphvY=\",0)","v":{"$error":"#REF!"}},{"$f":"IF('Development Costs'!E:E,\"DKptsWXphvc=\",0)","v":0},{"$f":"IF('Development Costs'!F:F,\"DKptsWXphvg=\",0)","v":0},{"$f":"IF('Development Costs'!G:G,\"DKptsWXphvk=\",0)","v":0},{"$f":"IF('Development Costs'!H:H,\"DKptsWXphvo=\",0)","v":0},{"$f":"IF('Development Costs'!I:I,\"DKptsWXphvs=\",0)","v":0},{"$f":"IF('Development Costs'!J:J,\"DKptsWXphvw=\",0)","v":0},{"$f":"IF('Development Costs'!K:K,\"DKptsWXphv0=\",0)","v":0},{"$f":"IF('Development Costs'!L:L,\"DKptsWXphv4=\",0)","v":0},{"$f":"IF('Development Costs'!M:M,\"DKptsWXphv8=\",0)","v":0}]
[{"$f":"IF('Development Costs'!N:N,\"cV1M/zUmZwA=\",0)","v":0},{"$f":"IF('Development Costs'!O:O,\"cV1M/zUmZwE=\",0)","v":0},{"$f":"IF(#REF!,\"cV1M/zUmZwI=\",0)","v":{"$error":"#REF!"}},{"$f":"AND(#REF!,\"cV1M/zUmZwM=\")","v":{"$error":"#REF!"}},{"$f":"AND(#REF!,\"cV1M/zUmZwQ=\")","v":{"$error":"#REF!"}},{"$f":"AND(#REF!,\"cV1M/zUmZwU=\")","v":{"$error":"#REF!"}},{"$f":"AND(#REF!,\"cV1M/zUmZwY=\")","v":{"$error":"#REF!"}},{"$f":"AND(#REF!,\"cV1M/zUmZwc=\")","v":{"$error":"#REF!"}},{"$f":"AND(#REF!,\"cV1M/zUmZwg=\")","v":{"$error":"#REF!"}},{"$f":"AND(#REF!,\"cV1M/zUmZwk=\")","v":{"$error":"#REF!"}},{"$f":"AND(#REF!,\"cV1M/zUmZwo=\")","v":{"$error":"#REF!"}},{"$f":"AND(#REF!,\"cV1M/zUmZws=\")","v":{"$error":"#REF!"}},{"$f":"AND(#REF!,\"cV1M/zUmZww=\")","v":{"$error":"#REF!"}},{"$f":"AND(#REF!,\"cV1M/zUmZw0=\")","v":{"$error":"#REF!"}},{"$f":"AND(#REF!,\"cV1M/zUmZw4=\")","v":{"$error":"#REF!"}},{"$f":"AND(#REF!,\"cV1M/zUmZw8=\")","v":{"$error":"#REF!"}},{"$f":"AND(#REF!,\"cV1M/zUmZxA=\")","v":{"$error":"#REF!"}},{"$f":"AND(#REF!,\"cV1M/zUmZxE=\")","v":{"$error":"#REF!"}},{"$f":"IF(#REF!,\"cV1M/zUmZxI=\",0)","v":{"$error":"#REF!"}},{"$f":"AND(#REF!,\"cV1M/zUmZxM=\")","v":{"$error":"#REF!"}},{"$f":"AND(#REF!,\"cV1M/zUmZxQ=\")","v":{"$error":"#REF!"}},{"$f":"AND(#REF!,\"cV1M/zUmZxU=\")","v":{"$error":"#REF!"}},{"$f":"AND(#REF!,\"cV1M/zUmZxY=\")","v":{"$error":"#REF!"}},{"$f":"AND(#REF!,\"cV1M/zUmZxc=\")","v":{"$error":"#REF!"}},{"$f":"AND(#REF!,\"cV1M/zUmZxg=\")","v":{"$error":"#REF!"}},{"$f":"AND(#REF!,\"cV1M/zUmZxk=\")","v":{"$error":"#REF!"}},{"$f":"AND(#REF!,\"cV1M/zUmZxo=\")","v":{"$error":"#REF!"}},{"$f":"AND(#REF!,\"cV1M/zUmZxs=\")","v":{"$error":"#REF!"}},{"$f":"AND(#REF!,\"cV1M/zUmZxw=\")","v":{"$error":"#REF!"}},{"$f":"AND(#REF!,\"cV1M/zUmZx0=\")","v":{"$error":"#REF!"}},{"$f":"AND(#REF!,\"cV1M/zUmZx4=\")","v":{"$error":"#REF!"}},{"$f":"AND(#REF!,\"cV1M/zUmZx8=\")","v":{"$error":"#REF!"}},{"$f":"AND(#REF!,\"cV1M/zUmZyA=\")","v":{"$error":"#REF!"}},{"$f":"AND(#REF!,\"cV1M/zUmZyE=\")","v":{"$error":"#REF!"}},{"$f":"IF(#REF!,\"cV1M/zUmZyI=\",0)","v":{"$error":"#REF!"}},{"$f":"AND(#REF!,\"cV1M/zUmZyM=\")","v":{"$error":"#REF!"}},{"$f":"AND(#REF!,\"cV1M/zUmZyQ=\")","v":{"$error":"#REF!"}},{"$f":"AND(#REF!,\"cV1M/zUmZyU=\")","v":{"$error":"#REF!"}},{"$f":"AND(#REF!,\"cV1M/zUmZyY=\")","v":{"$error":"#REF!"}},{"$f":"AND(#REF!,\"cV1M/zUmZyc=\")","v":{"$error":"#REF!"}},{"$f":"AND(#REF!,\"cV1M/zUmZyg=\")","v":{"$error":"#REF!"}},{"$f":"AND(#REF!,\"cV1M/zUmZyk=\")","v":{"$error":"#REF!"}},{"$f":"AND(#REF!,\"cV1M/zUmZyo=\")","v":{"$error":"#REF!"}},{"$f":"AND(#REF!,\"cV1M/zUmZys=\")","v":{"$error":"#REF!"}},{"$f":"AND(#REF!,\"cV1M/zUmZyw=\")","v":{"$error":"#REF!"}},{"$f":"AND(#REF!,\"cV1M/zUmZy0=\")","v":{"$error":"#REF!"}},{"$f":"AND(#REF!,\"cV1M/zUmZy4=\")","v":{"$error":"#REF!"}},{"$f":"AND(#REF!,\"cV1M/zUmZy8=\")","v":{"$error":"#REF!"}},{"$f":"AND(#REF!,\"cV1M/zUmZzA=\")","v":{"$error":"#REF!"}},{"$f":"AND(#REF!,\"cV1M/zUmZzE=\")","v":{"$error":"#REF!"}},{"$f":"IF(#REF!,\"cV1M/zUmZzI=\",0)","v":{"$error":"#REF!"}},{"$f":"AND(#REF!,\"cV1M/zUmZzM=\")","v":{"$error":"#REF!"}},{"$f":"AND(#REF!,\"cV1M/zUmZzQ=\")","v":{"$error":"#REF!"}},{"$f":"AND(#REF!,\"cV1M/zUmZzU=\")","v":{"$error":"#REF!"}},{"$f":"AND(#REF!,\"cV1M/zUmZzY=\")","v":{"$error":"#REF!"}},{"$f":"AND(#REF!,\"cV1M/zUmZzc=\")","v":{"$error":"#REF!"}},{"$f":"AND(#REF!,\"cV1M/zUmZzg=\")","v":{"$error":"#REF!"}},{"$f":"AND(#REF!,\"cV1M/zUmZzk=\")","v":{"$error":"#REF!"}},{"$f":"AND(#REF!,\"cV1M/zUmZzo=\")","v":{"$error":"#REF!"}},{"$f":"AND(#REF!,\"cV1M/zUmZzs=\")","v":{"$error":"#REF!"}},{"$f":"AND(#REF!,\"cV1M/zUmZzw=\")","v":{"$error":"#REF!"}},{"$f":"AND(#REF!,\"cV1M/zUmZz0=\")","v":{"$error":"#REF!"}},{"$f":"AND(#REF!,\"cV1M/zUmZz4=\")","v":{"$error":"#REF!"}},{"$f":"AND(#REF!,\"cV1M/zUmZz8=\")","v":{"$error":"#REF!"}},{"$f":"AND(#REF!,\"cV1M/zUmZ0A=\")","v":{"$error":"#REF!"}},{"$f":"AND(#REF!,\"cV1M/zUmZ0E=\")","v":{"$error":"#REF!"}},{"$f":"IF(#REF!,\"cV1M/zUmZ0I=\",0)","v":{"$error":"#REF!"}},{"$f":"AND(#REF!,\"cV1M/zUmZ0M=\")","v":{"$error":"#REF!"}},{"$f":"AND(#REF!,\"cV1M/zUmZ0Q=\")","v":{"$error":"#REF!"}},{"$f":"AND(#REF!,\"cV1M/zUmZ0U=\")","v":{"$error":"#REF!"}},{"$f":"AND(#REF!,\"cV1M/zUmZ0Y=\")","v":{"$error":"#REF!"}},{"$f":"AND(#REF!,\"cV1M/zUmZ0c=\")","v":{"$error":"#REF!"}},{"$f":"AND(#REF!,\"cV1M/zUmZ0g=\")","v":{"$error":"#REF!"}},{"$f":"AND(#REF!,\"cV1M/zUmZ0k=\")","v":{"$error":"#REF!"}},{"$f":"AND(#REF!,\"cV1M/zUmZ0o=\")","v":{"$error":"#REF!"}},{"$f":"AND(#REF!,\"cV1M/zUmZ0s=\")","v":{"$error":"#REF!"}},{"$f":"AND(#REF!,\"cV1M/zUmZ0w=\")","v":{"$error":"#REF!"}},{"$f":"AND(#REF!,\"cV1M/zUmZ00=\")","v":{"$error":"#REF!"}},{"$f":"AND(#REF!,\"cV1M/zUmZ04=\")","v":{"$error":"#REF!"}},{"$f":"AND(#REF!,\"cV1M/zUmZ08=\")","v":{"$error":"#REF!"}},{"$f":"AND(#REF!,\"cV1M/zUmZ1A=\")","v":{"$error":"#REF!"}},{"$f":"AND(#REF!,\"cV1M/zUmZ1E=\")","v":{"$error":"#REF!"}},{"$f":"IF(#REF!,\"cV1M/zUmZ1I=\",0)","v":{"$error":"#REF!"}},{"$f":"AND(#REF!,\"cV1M/zUmZ1M=\")","v":{"$error":"#REF!"}},{"$f":"AND(#REF!,\"cV1M/zUmZ1Q=\")","v":{"$error":"#REF!"}},{"$f":"AND(#REF!,\"cV1M/zUmZ1U=\")","v":{"$error":"#REF!"}},{"$f":"AND(#REF!,\"cV1M/zUmZ1Y=\")","v":{"$error":"#REF!"}},{"$f":"AND(#REF!,\"cV1M/zUmZ1c=\")","v":{"$error":"#REF!"}},{"$f":"AND(#REF!,\"cV1M/zUmZ1g=\")","v":{"$error":"#REF!"}},{"$f":"AND(#REF!,\"cV1M/zUmZ1k=\")","v":{"$error":"#REF!"}},{"$f":"AND(#REF!,\"cV1M/zUmZ1o=\")","v":{"$error":"#REF!"}},{"$f":"AND(#REF!,\"cV1M/zUmZ1s=\")","v":{"$error":"#REF!"}},{"$f":"AND(#REF!,\"cV1M/zUmZ1w=\")","v":{"$error":"#REF!"}},{"$f":"AND(#REF!,\"cV1M/zUmZ10=\")","v":{"$error":"#REF!"}},{"$f":"AND(#REF!,\"cV1M/zUmZ14=\")","v":{"$error":"#REF!"}},{"$f":"AND(#REF!,\"cV1M/zUmZ18=\")","v":{"$error":"#REF!"}},{"$f":"AND(#REF!,\"cV1M/zUmZ2A=\")","v":{"$error":"#REF!"}},{"$f":"AND(#REF!,\"cV1M/zUmZ2E=\")","v":{"$error":"#REF!"}},{"$f":"IF(#REF!,\"cV1M/zUmZ2I=\",0)","v":{"$error":"#REF!"}},{"$f":"AND(#REF!,\"cV1M/zUmZ2M=\")","v":{"$error":"#REF!"}},{"$f":"AND(#REF!,\"cV1M/zUmZ2Q=\")","v":{"$error":"#REF!"}},{"$f":"AND(#REF!,\"cV1M/zUmZ2U=\")","v":{"$error":"#REF!"}},{"$f":"AND(#REF!,\"cV1M/zUmZ2Y=\")","v":{"$error":"#REF!"}},{"$f":"AND(#REF!,\"cV1M/zUmZ2c=\")","v":{"$error":"#REF!"}},{"$f":"AND(#REF!,\"cV1M/zUmZ2g=\")","v":{"$error":"#REF!"}},{"$f":"AND(#REF!,\"cV1M/zUmZ2k=\")","v":{"$error":"#REF!"}},{"$f":"AND(#REF!,\"cV1M/zUmZ2o=\")","v":{"$error":"#REF!"}},{"$f":"AND(#REF!,\"cV1M/zUmZ2s=\")","v":{"$error":"#REF!"}},{"$f":"AND(#REF!,\"cV1M/zUmZ2w=\")","v":{"$error":"#REF!"}},{"$f":"AND(#REF!,\"cV1M/zUmZ20=\")","v":{"$error":"#REF!"}},{"$f":"AND(#REF!,\"cV1M/zUmZ24=\")","v":{"$error":"#REF!"}},{"$f":"AND(#REF!,\"cV1M/zUmZ28=\")","v":{"$error":"#REF!"}},{"$f":"AND(#REF!,\"cV1M/zUmZ3A=\")","v":{"$error":"#REF!"}},{"$f":"AND(#REF!,\"cV1M/zUmZ3E=\")","v":{"$error":"#REF!"}},{"$f":"IF(#REF!,\"cV1M/zUmZ3I=\",0)","v":{"$error":"#REF!"}},{"$f":"AND(#REF!,\"cV1M/zUmZ3M=\")","v":{"$error":"#REF!"}},{"$f":"AND(#REF!,\"cV1M/zUmZ3Q=\")","v":{"$error":"#REF!"}},{"$f":"AND(#REF!,\"cV1M/zUmZ3U=\")","v":{"$error":"#REF!"}},{"$f":"AND(#REF!,\"cV1M/zUmZ3Y=\")","v":{"$error":"#REF!"}},{"$f":"AND(#REF!,\"cV1M/zUmZ3c=\")","v":{"$error":"#REF!"}},{"$f":"AND(#REF!,\"cV1M/zUmZ3g=\")","v":{"$error":"#REF!"}},{"$f":"AND(#REF!,\"cV1M/zUmZ3k=\")","v":{"$error":"#REF!"}},{"$f":"AND(#REF!,\"cV1M/zUmZ3o=\")","v":{"$error":"#REF!"}},{"$f":"AND(#REF!,\"cV1M/zUmZ3s=\")","v":{"$error":"#REF!"}},{"$f":"AND(#REF!,\"cV1M/zUmZ3w=\")","v":{"$error":"#REF!"}},{"$f":"AND(#REF!,\"cV1M/zUmZ30=\")","v":{"$error":"#REF!"}},{"$f":"AND(#REF!,\"cV1M/zUmZ34=\")","v":{"$error":"#REF!"}},{"$f":"AND(#REF!,\"cV1M/zUmZ38=\")","v":{"$error":"#REF!"}},{"$f":"AND(#REF!,\"cV1M/zUmZ4A=\")","v":{"$error":"#REF!"}},{"$f":"AND(#REF!,\"cV1M/zUmZ4E=\")","v":{"$error":"#REF!"}},{"$f":"IF(#REF!,\"cV1M/zUmZ4I=\",0)","v":{"$error":"#REF!"}},{"$f":"AND(#REF!,\"cV1M/zUmZ4M=\")","v":{"$error":"#REF!"}},{"$f":"AND(#REF!,\"cV1M/zUmZ4Q=\")","v":{"$error":"#REF!"}},{"$f":"AND(#REF!,\"cV1M/zUmZ4U=\")","v":{"$error":"#REF!"}},{"$f":"AND(#REF!,\"cV1M/zUmZ4Y=\")","v":{"$error":"#REF!"}},{"$f":"AND(#REF!,\"cV1M/zUmZ4c=\")","v":{"$error":"#REF!"}},{"$f":"AND(#REF!,\"cV1M/zUmZ4g=\")","v":{"$error":"#REF!"}},{"$f":"AND(#REF!,\"cV1M/zUmZ4k=\")","v":{"$error":"#REF!"}},{"$f":"AND(#REF!,\"cV1M/zUmZ4o=\")","v":{"$error":"#REF!"}},{"$f":"AND(#REF!,\"cV1M/zUmZ4s=\")","v":{"$error":"#REF!"}},{"$f":"AND(#REF!,\"cV1M/zUmZ4w=\")","v":{"$error":"#REF!"}},{"$f":"AND(#REF!,\"cV1M/zUmZ40=\")","v":{"$error":"#REF!"}},{"$f":"AND(#REF!,\"cV1M/zUmZ44=\")","v":{"$error":"#REF!"}},{"$f":"AND(#REF!,\"cV1M/zUmZ48=\")","v":{"$error":"#REF!"}},{"$f":"AND(#REF!,\"cV1M/zUmZ5A=\")","v":{"$error":"#REF!"}},{"$f":"AND(#REF!,\"cV1M/zUmZ5E=\")","v":{"$error":"#REF!"}},{"$f":"IF(#REF!,\"cV1M/zUmZ5I=\",0)","v":{"$error":"#REF!"}},{"$f":"AND(#REF!,\"cV1M/zUmZ5M=\")","v":{"$error":"#REF!"}},{"$f":"AND(#REF!,\"cV1M/zUmZ5Q=\")","v":{"$error":"#REF!"}},{"$f":"AND(#REF!,\"cV1M/zUmZ5U=\")","v":{"$error":"#REF!"}},{"$f":"AND(#REF!,\"cV1M/zUmZ5Y=\")","v":{"$error":"#REF!"}},{"$f":"AND(#REF!,\"cV1M/zUmZ5c=\")","v":{"$error":"#REF!"}},{"$f":"AND(#REF!,\"cV1M/zUmZ5g=\")","v":{"$error":"#REF!"}},{"$f":"AND(#REF!,\"cV1M/zUmZ5k=\")","v":{"$error":"#REF!"}},{"$f":"AND(#REF!,\"cV1M/zUmZ5o=\")","v":{"$error":"#REF!"}},{"$f":"AND(#REF!,\"cV1M/zUmZ5s=\")","v":{"$error":"#REF!"}},{"$f":"AND(#REF!,\"cV1M/zUmZ5w=\")","v":{"$error":"#REF!"}},{"$f":"AND(#REF!,\"cV1M/zUmZ50=\")","v":{"$error":"#REF!"}},{"$f":"AND(#REF!,\"cV1M/zUmZ54=\")","v":{"$error":"#REF!"}},{"$f":"AND(#REF!,\"cV1M/zUmZ58=\")","v":{"$error":"#REF!"}},{"$f":"AND(#REF!,\"cV1M/zUmZ6A=\")","v":{"$error":"#REF!"}},{"$f":"AND(#REF!,\"cV1M/zUmZ6E=\")","v":{"$error":"#REF!"}},{"$f":"IF(#REF!,\"cV1M/zUmZ6I=\",0)","v":{"$error":"#REF!"}},{"$f":"AND(#REF!,\"cV1M/zUmZ6M=\")","v":{"$error":"#REF!"}},{"$f":"AND(#REF!,\"cV1M/zUmZ6Q=\")","v":{"$error":"#REF!"}},{"$f":"AND(#REF!,\"cV1M/zUmZ6U=\")","v":{"$error":"#REF!"}},{"$f":"AND(#REF!,\"cV1M/zUmZ6Y=\")","v":{"$error":"#REF!"}},{"$f":"AND(#REF!,\"cV1M/zUmZ6c=\")","v":{"$error":"#REF!"}},{"$f":"AND(#REF!,\"cV1M/zUmZ6g=\")","v":{"$error":"#REF!"}},{"$f":"AND(#REF!,\"cV1M/zUmZ6k=\")","v":{"$error":"#REF!"}},{"$f":"AND(#REF!,\"cV1M/zUmZ6o=\")","v":{"$error":"#REF!"}},{"$f":"AND(#REF!,\"cV1M/zUmZ6s=\")","v":{"$error":"#REF!"}},{"$f":"AND(#REF!,\"cV1M/zUmZ6w=\")","v":{"$error":"#REF!"}},{"$f":"AND(#REF!,\"cV1M/zUmZ60=\")","v":{"$error":"#REF!"}},{"$f":"AND(#REF!,\"cV1M/zUmZ64=\")","v":{"$error":"#REF!"}},{"$f":"AND(#REF!,\"cV1M/zUmZ68=\")","v":{"$error":"#REF!"}},{"$f":"AND(#REF!,\"cV1M/zUmZ7A=\")","v":{"$error":"#REF!"}},{"$f":"AND(#REF!,\"cV1M/zUmZ7E=\")","v":{"$error":"#REF!"}},{"$f":"IF(#REF!,\"cV1M/zUmZ7I=\",0)","v":{"$error":"#REF!"}},{"$f":"AND(#REF!,\"cV1M/zUmZ7M=\")","v":{"$error":"#REF!"}},{"$f":"AND(#REF!,\"cV1M/zUmZ7Q=\")","v":{"$error":"#REF!"}},{"$f":"AND(#REF!,\"cV1M/zUmZ7U=\")","v":{"$error":"#REF!"}},{"$f":"AND(#REF!,\"cV1M/zUmZ7Y=\")","v":{"$error":"#REF!"}},{"$f":"AND(#REF!,\"cV1M/zUmZ7c=\")","v":{"$error":"#REF!"}},{"$f":"AND(#REF!,\"cV1M/zUmZ7g=\")","v":{"$error":"#REF!"}},{"$f":"AND(#REF!,\"cV1M/zUmZ7k=\")","v":{"$error":"#REF!"}},{"$f":"AND(#REF!,\"cV1M/zUmZ7o=\")","v":{"$error":"#REF!"}},{"$f":"AND(#REF!,\"cV1M/zUmZ7s=\")","v":{"$error":"#REF!"}},{"$f":"AND(#REF!,\"cV1M/zUmZ7w=\")","v":{"$error":"#REF!"}},{"$f":"AND(#REF!,\"cV1M/zUmZ70=\")","v":{"$error":"#REF!"}},{"$f":"AND(#REF!,\"cV1M/zUmZ74=\")","v":{"$error":"#REF!"}},{"$f":"AND(#REF!,\"cV1M/zUmZ78=\")","v":{"$error":"#REF!"}},{"$f":"AND(#REF!,\"cV1M/zUmZ8A=\")","v":{"$error":"#REF!"}},{"$f":"AND(#REF!,\"cV1M/zUmZ8E=\")","v":{"$error":"#REF!"}},{"$f":"IF(#REF!,\"cV1M/zUmZ8I=\",0)","v":{"$error":"#REF!"}},{"$f":"AND(#REF!,\"cV1M/zUmZ8M=\")","v":{"$error":"#REF!"}},{"$f":"AND(#REF!,\"cV1M/zUmZ8Q=\")","v":{"$error":"#REF!"}},{"$f":"AND(#REF!,\"cV1M/zUmZ8U=\")","v":{"$error":"#REF!"}},{"$f":"AND(#REF!,\"cV1M/zUmZ8Y=\")","v":{"$error":"#REF!"}},{"$f":"AND(#REF!,\"cV1M/zUmZ8c=\")","v":{"$error":"#REF!"}},{"$f":"AND(#REF!,\"cV1M/zUmZ8g=\")","v":{"$error":"#REF!"}},{"$f":"AND(#REF!,\"cV1M/zUmZ8k=\")","v":{"$error":"#REF!"}},{"$f":"AND(#REF!,\"cV1M/zUmZ8o=\")","v":{"$error":"#REF!"}},{"$f":"AND(#REF!,\"cV1M/zUmZ8s=\")","v":{"$error":"#REF!"}},{"$f":"AND(#REF!,\"cV1M/zUmZ8w=\")","v":{"$error":"#REF!"}},{"$f":"AND(#REF!,\"cV1M/zUmZ80=\")","v":{"$error":"#REF!"}},{"$f":"AND(#REF!,\"cV1M/zUmZ84=\")","v":{"$error":"#REF!"}},{"$f":"AND(#REF!,\"cV1M/zUmZ88=\")","v":{"$error":"#REF!"}},{"$f":"AND(#REF!,\"cV1M/zUmZ9A=\")","v":{"$error":"#REF!"}},{"$f":"AND(#REF!,\"cV1M/zUmZ9E=\")","v":{"$error":"#REF!"}},{"$f":"IF(#REF!,\"cV1M/zUmZ9I=\",0)","v":{"$error":"#REF!"}},{"$f":"AND(#REF!,\"cV1M/zUmZ9M=\")","v":{"$error":"#REF!"}},{"$f":"AND(#REF!,\"cV1M/zUmZ9Q=\")","v":{"$error":"#REF!"}},{"$f":"AND(#REF!,\"cV1M/zUmZ9U=\")","v":{"$error":"#REF!"}},{"$f":"AND(#REF!,\"cV1M/zUmZ9Y=\")","v":{"$error":"#REF!"}},{"$f":"AND(#REF!,\"cV1M/zUmZ9c=\")","v":{"$error":"#REF!"}},{"$f":"AND(#REF!,\"cV1M/zUmZ9g=\")","v":{"$error":"#REF!"}},{"$f":"AND(#REF!,\"cV1M/zUmZ9k=\")","v":{"$error":"#REF!"}},{"$f":"AND(#REF!,\"cV1M/zUmZ9o=\")","v":{"$error":"#REF!"}},{"$f":"AND(#REF!,\"cV1M/zUmZ9s=\")","v":{"$error":"#REF!"}},{"$f":"AND(#REF!,\"cV1M/zUmZ9w=\")","v":{"$error":"#REF!"}},{"$f":"AND(#REF!,\"cV1M/zUmZ90=\")","v":{"$error":"#REF!"}},{"$f":"AND(#REF!,\"cV1M/zUmZ94=\")","v":{"$error":"#REF!"}},{"$f":"AND(#REF!,\"cV1M/zUmZ98=\")","v":{"$error":"#REF!"}},{"$f":"AND(#REF!,\"cV1M/zUmZ+A=\")","v":{"$error":"#REF!"}},{"$f":"AND(#REF!,\"cV1M/zUmZ+E=\")","v":{"$error":"#REF!"}},{"$f":"IF(#REF!,\"cV1M/zUmZ+I=\",0)","v":{"$error":"#REF!"}},{"$f":"AND(#REF!,\"cV1M/zUmZ+M=\")","v":{"$error":"#REF!"}},{"$f":"AND(#REF!,\"cV1M/zUmZ+Q=\")","v":{"$error":"#REF!"}},{"$f":"AND(#REF!,\"cV1M/zUmZ+U=\")","v":{"$error":"#REF!"}},{"$f":"AND(#REF!,\"cV1M/zUmZ+Y=\")","v":{"$error":"#REF!"}},{"$f":"AND(#REF!,\"cV1M/zUmZ+c=\")","v":{"$error":"#REF!"}},{"$f":"AND(#REF!,\"cV1M/zUmZ+g=\")","v":{"$error":"#REF!"}},{"$f":"AND(#REF!,\"cV1M/zUmZ+k=\")","v":{"$error":"#REF!"}},{"$f":"AND(#REF!,\"cV1M/zUmZ+o=\")","v":{"$error":"#REF!"}},{"$f":"AND(#REF!,\"cV1M/zUmZ+s=\")","v":{"$error":"#REF!"}},{"$f":"AND(#REF!,\"cV1M/zUmZ+w=\")","v":{"$error":"#REF!"}},{"$f":"AND(#REF!,\"cV1M/zUmZ+0=\")","v":{"$error":"#REF!"}},{"$f":"AND(#REF!,\"cV1M/zUmZ+4=\")","v":{"$error":"#REF!"}},{"$f":"AND(#REF!,\"cV1M/zUmZ+8=\")","v":{"$error":"#REF!"}},{"$f":"AND(#REF!,\"cV1M/zUmZ/A=\")","v":{"$error":"#REF!"}},{"$f":"AND(#REF!,\"cV1M/zUmZ/E=\")","v":{"$error":"#REF!"}},{"$f":"IF(#REF!,\"cV1M/zUmZ/I=\",0)","v":{"$error":"#REF!"}},{"$f":"AND(#REF!,\"cV1M/zUmZ/M=\")","v":{"$error":"#REF!"}},{"$f":"AND(#REF!,\"cV1M/zUmZ/Q=\")","v":{"$error":"#REF!"}},{"$f":"AND(#REF!,\"cV1M/zUmZ/U=\")","v":{"$error":"#REF!"}},{"$f":"AND(#REF!,\"cV1M/zUmZ/Y=\")","v":{"$error":"#REF!"}},{"$f":"AND(#REF!,\"cV1M/zUmZ/c=\")","v":{"$error":"#REF!"}},{"$f":"AND(#REF!,\"cV1M/zUmZ/g=\")","v":{"$error":"#REF!"}},{"$f":"AND(#REF!,\"cV1M/zUmZ/k=\")","v":{"$error":"#REF!"}},{"$f":"AND(#REF!,\"cV1M/zUmZ/o=\")","v":{"$error":"#REF!"}},{"$f":"AND(#REF!,\"cV1M/zUmZ/s=\")","v":{"$error":"#REF!"}},{"$f":"AND(#REF!,\"cV1M/zUmZ/w=\")","v":{"$error":"#REF!"}},{"$f":"AND(#REF!,\"cV1M/zUmZ/0=\")","v":{"$error":"#REF!"}},{"$f":"AND(#REF!,\"cV1M/zUmZ/4=\")","v":{"$error":"#REF!"}},{"$f":"AND(#REF!,\"cV1M/zUmZ/8=\")","v":{"$error":"#REF!"}}]
[{"$f":"AND(#REF!,\"B5Y3YB/zmQA=\")","v":{"$error":"#REF!"}},{"$f":"AND(#REF!,\"B5Y3YB/zmQE=\")","v":{"$error":"#REF!"}},{"$f":"IF(#REF!,\"B5Y3YB/zmQI=\",0)","v":{"$error":"#REF!"}},{"$f":"AND(#REF!,\"B5Y3YB/zmQM=\")","v":{"$error":"#REF!"}},{"$f":"AND(#REF!,\"B5Y3YB/zmQQ=\")","v":{"$error":"#REF!"}},{"$f":"AND(#REF!,\"B5Y3YB/zmQU=\")","v":{"$error":"#REF!"}},{"$f":"AND(#REF!,\"B5Y3YB/zmQY=\")","v":{"$error":"#REF!"}},{"$f":"AND(#REF!,\"B5Y3YB/zmQc=\")","v":{"$error":"#REF!"}},{"$f":"AND(#REF!,\"B5Y3YB/zmQg=\")","v":{"$error":"#REF!"}},{"$f":"AND(#REF!,\"B5Y3YB/zmQk=\")","v":{"$error":"#REF!"}},{"$f":"AND(#REF!,\"B5Y3YB/zmQo=\")","v":{"$error":"#REF!"}},{"$f":"AND(#REF!,\"B5Y3YB/zmQs=\")","v":{"$error":"#REF!"}},{"$f":"AND(#REF!,\"B5Y3YB/zmQw=\")","v":{"$error":"#REF!"}},{"$f":"AND(#REF!,\"B5Y3YB/zmQ0=\")","v":{"$error":"#REF!"}},{"$f":"AND(#REF!,\"B5Y3YB/zmQ4=\")","v":{"$error":"#REF!"}},{"$f":"AND(#REF!,\"B5Y3YB/zmQ8=\")","v":{"$error":"#REF!"}},{"$f":"AND(#REF!,\"B5Y3YB/zmRA=\")","v":{"$error":"#REF!"}},{"$f":"AND(#REF!,\"B5Y3YB/zmRE=\")","v":{"$error":"#REF!"}},{"$f":"IF(#REF!,\"B5Y3YB/zmRI=\",0)","v":{"$error":"#REF!"}},{"$f":"AND(#REF!,\"B5Y3YB/zmRM=\")","v":{"$error":"#REF!"}},{"$f":"AND(#REF!,\"B5Y3YB/zmRQ=\")","v":{"$error":"#REF!"}},{"$f":"AND(#REF!,\"B5Y3YB/zmRU=\")","v":{"$error":"#REF!"}},{"$f":"AND(#REF!,\"B5Y3YB/zmRY=\")","v":{"$error":"#REF!"}},{"$f":"AND(#REF!,\"B5Y3YB/zmRc=\")","v":{"$error":"#REF!"}},{"$f":"AND(#REF!,\"B5Y3YB/zmRg=\")","v":{"$error":"#REF!"}},{"$f":"AND(#REF!,\"B5Y3YB/zmRk=\")","v":{"$error":"#REF!"}},{"$f":"AND(#REF!,\"B5Y3YB/zmRo=\")","v":{"$error":"#REF!"}},{"$f":"AND(#REF!,\"B5Y3YB/zmRs=\")","v":{"$error":"#REF!"}},{"$f":"AND(#REF!,\"B5Y3YB/zmRw=\")","v":{"$error":"#REF!"}},{"$f":"AND(#REF!,\"B5Y3YB/zmR0=\")","v":{"$error":"#REF!"}},{"$f":"AND(#REF!,\"B5Y3YB/zmR4=\")","v":{"$error":"#REF!"}},{"$f":"AND(#REF!,\"B5Y3YB/zmR8=\")","v":{"$error":"#REF!"}},{"$f":"AND(#REF!,\"B5Y3YB/zmSA=\")","v":{"$error":"#REF!"}},{"$f":"AND(#REF!,\"B5Y3YB/zmSE=\")","v":{"$error":"#REF!"}},{"$f":"IF(#REF!,\"B5Y3YB/zmSI=\",0)","v":{"$error":"#REF!"}},{"$f":"AND(#REF!,\"B5Y3YB/zmSM=\")","v":{"$error":"#REF!"}},{"$f":"AND(#REF!,\"B5Y3YB/zmSQ=\")","v":{"$error":"#REF!"}},{"$f":"AND(#REF!,\"B5Y3YB/zmSU=\")","v":{"$error":"#REF!"}},{"$f":"AND(#REF!,\"B5Y3YB/zmSY=\")","v":{"$error":"#REF!"}},{"$f":"AND(#REF!,\"B5Y3YB/zmSc=\")","v":{"$error":"#REF!"}},{"$f":"AND(#REF!,\"B5Y3YB/zmSg=\")","v":{"$error":"#REF!"}},{"$f":"AND(#REF!,\"B5Y3YB/zmSk=\")","v":{"$error":"#REF!"}},{"$f":"AND(#REF!,\"B5Y3YB/zmSo=\")","v":{"$error":"#REF!"}},{"$f":"AND(#REF!,\"B5Y3YB/zmSs=\")","v":{"$error":"#REF!"}},{"$f":"AND(#REF!,\"B5Y3YB/zmSw=\")","v":{"$error":"#REF!"}},{"$f":"AND(#REF!,\"B5Y3YB/zmS0=\")","v":{"$error":"#REF!"}},{"$f":"AND(#REF!,\"B5Y3YB/zmS4=\")","v":{"$error":"#REF!"}},{"$f":"AND(#REF!,\"B5Y3YB/zmS8=\")","v":{"$error":"#REF!"}},{"$f":"AND(#REF!,\"B5Y3YB/zmTA=\")","v":{"$error":"#REF!"}},{"$f":"AND(#REF!,\"B5Y3YB/zmTE=\")","v":{"$error":"#REF!"}},{"$f":"IF(#REF!,\"B5Y3YB/zmTI=\",0)","v":{"$error":"#REF!"}},{"$f":"AND(#REF!,\"B5Y3YB/zmTM=\")","v":{"$error":"#REF!"}},{"$f":"AND(#REF!,\"B5Y3YB/zmTQ=\")","v":{"$error":"#REF!"}},{"$f":"AND(#REF!,\"B5Y3YB/zmTU=\")","v":{"$error":"#REF!"}},{"$f":"AND(#REF!,\"B5Y3YB/zmTY=\")","v":{"$error":"#REF!"}},{"$f":"AND(#REF!,\"B5Y3YB/zmTc=\")","v":{"$error":"#REF!"}},{"$f":"AND(#REF!,\"B5Y3YB/zmTg=\")","v":{"$error":"#REF!"}},{"$f":"AND(#REF!,\"B5Y3YB/zmTk=\")","v":{"$error":"#REF!"}},{"$f":"AND(#REF!,\"B5Y3YB/zmTo=\")","v":{"$error":"#REF!"}},{"$f":"AND(#REF!,\"B5Y3YB/zmTs=\")","v":{"$error":"#REF!"}},{"$f":"AND(#REF!,\"B5Y3YB/zmTw=\")","v":{"$error":"#REF!"}},{"$f":"AND(#REF!,\"B5Y3YB/zmT0=\")","v":{"$error":"#REF!"}},{"$f":"AND(#REF!,\"B5Y3YB/zmT4=\")","v":{"$error":"#REF!"}},{"$f":"AND(#REF!,\"B5Y3YB/zmT8=\")","v":{"$error":"#REF!"}},{"$f":"AND(#REF!,\"B5Y3YB/zmUA=\")","v":{"$error":"#REF!"}},{"$f":"AND(#REF!,\"B5Y3YB/zmUE=\")","v":{"$error":"#REF!"}},{"$f":"IF(#REF!,\"B5Y3YB/zmUI=\",0)","v":{"$error":"#REF!"}},{"$f":"AND(#REF!,\"B5Y3YB/zmUM=\")","v":{"$error":"#REF!"}},{"$f":"AND(#REF!,\"B5Y3YB/zmUQ=\")","v":{"$error":"#REF!"}},{"$f":"AND(#REF!,\"B5Y3YB/zmUU=\")","v":{"$error":"#REF!"}},{"$f":"AND(#REF!,\"B5Y3YB/zmUY=\")","v":{"$error":"#REF!"}},{"$f":"AND(#REF!,\"B5Y3YB/zmUc=\")","v":{"$error":"#REF!"}},{"$f":"AND(#REF!,\"B5Y3YB/zmUg=\")","v":{"$error":"#REF!"}},{"$f":"AND(#REF!,\"B5Y3YB/zmUk=\")","v":{"$error":"#REF!"}},{"$f":"AND(#REF!,\"B5Y3YB/zmUo=\")","v":{"$error":"#REF!"}},{"$f":"AND(#REF!,\"B5Y3YB/zmUs=\")","v":{"$error":"#REF!"}},{"$f":"AND(#REF!,\"B5Y3YB/zmUw=\")","v":{"$error":"#REF!"}},{"$f":"AND(#REF!,\"B5Y3YB/zmU0=\")","v":{"$error":"#REF!"}},{"$f":"AND(#REF!,\"B5Y3YB/zmU4=\")","v":{"$error":"#REF!"}},{"$f":"AND(#REF!,\"B5Y3YB/zmU8=\")","v":{"$error":"#REF!"}},{"$f":"AND(#REF!,\"B5Y3YB/zmVA=\")","v":{"$error":"#REF!"}},{"$f":"AND(#REF!,\"B5Y3YB/zmVE=\")","v":{"$error":"#REF!"}},{"$f":"IF(#REF!,\"B5Y3YB/zmVI=\",0)","v":{"$error":"#REF!"}},{"$f":"AND(#REF!,\"B5Y3YB/zmVM=\")","v":{"$error":"#REF!"}},{"$f":"AND(#REF!,\"B5Y3YB/zmVQ=\")","v":{"$error":"#REF!"}},{"$f":"AND(#REF!,\"B5Y3YB/zmVU=\")","v":{"$error":"#REF!"}},{"$f":"AND(#REF!,\"B5Y3YB/zmVY=\")","v":{"$error":"#REF!"}},{"$f":"AND(#REF!,\"B5Y3YB/zmVc=\")","v":{"$error":"#REF!"}},{"$f":"AND(#REF!,\"B5Y3YB/zmVg=\")","v":{"$error":"#REF!"}},{"$f":"AND(#REF!,\"B5Y3YB/zmVk=\")","v":{"$error":"#REF!"}},{"$f":"AND(#REF!,\"B5Y3YB/zmVo=\")","v":{"$error":"#REF!"}},{"$f":"AND(#REF!,\"B5Y3YB/zmVs=\")","v":{"$error":"#REF!"}},{"$f":"AND(#REF!,\"B5Y3YB/zmVw=\")","v":{"$error":"#REF!"}},{"$f":"AND(#REF!,\"B5Y3YB/zmV0=\")","v":{"$error":"#REF!"}},{"$f":"AND(#REF!,\"B5Y3YB/zmV4=\")","v":{"$error":"#REF!"}},{"$f":"AND(#REF!,\"B5Y3YB/zmV8=\")","v":{"$error":"#REF!"}},{"$f":"AND(#REF!,\"B5Y3YB/zmWA=\")","v":{"$error":"#REF!"}},{"$f":"AND(#REF!,\"B5Y3YB/zmWE=\")","v":{"$error":"#REF!"}},{"$f":"IF(#REF!,\"B5Y3YB/zmWI=\",0)","v":{"$error":"#REF!"}},{"$f":"AND(#REF!,\"B5Y3YB/zmWM=\")","v":{"$error":"#REF!"}},{"$f":"AND(#REF!,\"B5Y3YB/zmWQ=\")","v":{"$error":"#REF!"}},{"$f":"AND(#REF!,\"B5Y3YB/zmWU=\")","v":{"$error":"#REF!"}},{"$f":"AND(#REF!,\"B5Y3YB/zmWY=\")","v":{"$error":"#REF!"}},{"$f":"AND(#REF!,\"B5Y3YB/zmWc=\")","v":{"$error":"#REF!"}},{"$f":"AND(#REF!,\"B5Y3YB/zmWg=\")","v":{"$error":"#REF!"}},{"$f":"AND(#REF!,\"B5Y3YB/zmWk=\")","v":{"$error":"#REF!"}},{"$f":"AND(#REF!,\"B5Y3YB/zmWo=\")","v":{"$error":"#REF!"}},{"$f":"AND(#REF!,\"B5Y3YB/zmWs=\")","v":{"$error":"#REF!"}},{"$f":"AND(#REF!,\"B5Y3YB/zmWw=\")","v":{"$error":"#REF!"}},{"$f":"AND(#REF!,\"B5Y3YB/zmW0=\")","v":{"$error":"#REF!"}},{"$f":"AND(#REF!,\"B5Y3YB/zmW4=\")","v":{"$error":"#REF!"}},{"$f":"AND(#REF!,\"B5Y3YB/zmW8=\")","v":{"$error":"#REF!"}},{"$f":"AND(#REF!,\"B5Y3YB/zmXA=\")","v":{"$error":"#REF!"}},{"$f":"AND(#REF!,\"B5Y3YB/zmXE=\")","v":{"$error":"#REF!"}},{"$f":"IF(#REF!,\"B5Y3YB/zmXI=\",0)","v":{"$error":"#REF!"}},{"$f":"AND(#REF!,\"B5Y3YB/zmXM=\")","v":{"$error":"#REF!"}},{"$f":"AND(#REF!,\"B5Y3YB/zmXQ=\")","v":{"$error":"#REF!"}},{"$f":"AND(#REF!,\"B5Y3YB/zmXU=\")","v":{"$error":"#REF!"}},{"$f":"AND(#REF!,\"B5Y3YB/zmXY=\")","v":{"$error":"#REF!"}},{"$f":"AND(#REF!,\"B5Y3YB/zmXc=\")","v":{"$error":"#REF!"}},{"$f":"AND(#REF!,\"B5Y3YB/zmXg=\")","v":{"$error":"#REF!"}},{"$f":"AND(#REF!,\"B5Y3YB/zmXk=\")","v":{"$error":"#REF!"}},{"$f":"AND(#REF!,\"B5Y3YB/zmXo=\")","v":{"$error":"#REF!"}},{"$f":"AND(#REF!,\"B5Y3YB/zmXs=\")","v":{"$error":"#REF!"}},{"$f":"AND(#REF!,\"B5Y3YB/zmXw=\")","v":{"$error":"#REF!"}},{"$f":"AND(#REF!,\"B5Y3YB/zmX0=\")","v":{"$error":"#REF!"}},{"$f":"AND(#REF!,\"B5Y3YB/zmX4=\")","v":{"$error":"#REF!"}},{"$f":"AND(#REF!,\"B5Y3YB/zmX8=\")","v":{"$error":"#REF!"}},{"$f":"AND(#REF!,\"B5Y3YB/zmYA=\")","v":{"$error":"#REF!"}},{"$f":"AND(#REF!,\"B5Y3YB/zmYE=\")","v":{"$error":"#REF!"}},{"$f":"IF(#REF!,\"B5Y3YB/zmYI=\",0)","v":{"$error":"#REF!"}},{"$f":"AND(#REF!,\"B5Y3YB/zmYM=\")","v":{"$error":"#REF!"}},{"$f":"AND(#REF!,\"B5Y3YB/zmYQ=\")","v":{"$error":"#REF!"}},{"$f":"AND(#REF!,\"B5Y3YB/zmYU=\")","v":{"$error":"#REF!"}},{"$f":"AND(#REF!,\"B5Y3YB/zmYY=\")","v":{"$error":"#REF!"}},{"$f":"AND(#REF!,\"B5Y3YB/zmYc=\")","v":{"$error":"#REF!"}},{"$f":"AND(#REF!,\"B5Y3YB/zmYg=\")","v":{"$error":"#REF!"}},{"$f":"AND(#REF!,\"B5Y3YB/zmYk=\")","v":{"$error":"#REF!"}},{"$f":"AND(#REF!,\"B5Y3YB/zmYo=\")","v":{"$error":"#REF!"}},{"$f":"AND(#REF!,\"B5Y3YB/zmYs=\")","v":{"$error":"#REF!"}},{"$f":"AND(#REF!,\"B5Y3YB/zmYw=\")","v":{"$error":"#REF!"}},{"$f":"AND(#REF!,\"B5Y3YB/zmY0=\")","v":{"$error":"#REF!"}},{"$f":"AND(#REF!,\"B5Y3YB/zmY4=\")","v":{"$error":"#REF!"}},{"$f":"AND(#REF!,\"B5Y3YB/zmY8=\")","v":{"$error":"#REF!"}},{"$f":"AND(#REF!,\"B5Y3YB/zmZA=\")","v":{"$error":"#REF!"}},{"$f":"AND(#REF!,\"B5Y3YB/zmZE=\")","v":{"$error":"#REF!"}},{"$f":"IF(#REF!,\"B5Y3YB/zmZI=\",0)","v":{"$error":"#REF!"}},{"$f":"AND(#REF!,\"B5Y3YB/zmZM=\")","v":{"$error":"#REF!"}},{"$f":"AND(#REF!,\"B5Y3YB/zmZQ=\")","v":{"$error":"#REF!"}},{"$f":"AND(#REF!,\"B5Y3YB/zmZU=\")","v":{"$error":"#REF!"}},{"$f":"AND(#REF!,\"B5Y3YB/zmZY=\")","v":{"$error":"#REF!"}},{"$f":"AND(#REF!,\"B5Y3YB/zmZc=\")","v":{"$error":"#REF!"}},{"$f":"AND(#REF!,\"B5Y3YB/zmZg=\")","v":{"$error":"#REF!"}},{"$f":"AND(#REF!,\"B5Y3YB/zmZk=\")","v":{"$error":"#REF!"}},{"$f":"AND(#REF!,\"B5Y3YB/zmZo=\")","v":{"$error":"#REF!"}},{"$f":"AND(#REF!,\"B5Y3YB/zmZs=\")","v":{"$error":"#REF!"}},{"$f":"AND(#REF!,\"B5Y3YB/zmZw=\")","v":{"$error":"#REF!"}},{"$f":"AND(#REF!,\"B5Y3YB/zmZ0=\")","v":{"$error":"#REF!"}},{"$f":"AND(#REF!,\"B5Y3YB/zmZ4=\")","v":{"$error":"#REF!"}},{"$f":"AND(#REF!,\"B5Y3YB/zmZ8=\")","v":{"$error":"#REF!"}},{"$f":"AND(#REF!,\"B5Y3YB/zmaA=\")","v":{"$error":"#REF!"}},{"$f":"AND(#REF!,\"B5Y3YB/zmaE=\")","v":{"$error":"#REF!"}},{"$f":"IF(#REF!,\"B5Y3YB/zmaI=\",0)","v":{"$error":"#REF!"}},{"$f":"AND(#REF!,\"B5Y3YB/zmaM=\")","v":{"$error":"#REF!"}},{"$f":"AND(#REF!,\"B5Y3YB/zmaQ=\")","v":{"$error":"#REF!"}},{"$f":"AND(#REF!,\"B5Y3YB/zmaU=\")","v":{"$error":"#REF!"}},{"$f":"AND(#REF!,\"B5Y3YB/zmaY=\")","v":{"$error":"#REF!"}},{"$f":"AND(#REF!,\"B5Y3YB/zmac=\")","v":{"$error":"#REF!"}},{"$f":"AND(#REF!,\"B5Y3YB/zmag=\")","v":{"$error":"#REF!"}},{"$f":"AND(#REF!,\"B5Y3YB/zmak=\")","v":{"$error":"#REF!"}},{"$f":"AND(#REF!,\"B5Y3YB/zmao=\")","v":{"$error":"#REF!"}},{"$f":"AND(#REF!,\"B5Y3YB/zmas=\")","v":{"$error":"#REF!"}},{"$f":"AND(#REF!,\"B5Y3YB/zmaw=\")","v":{"$error":"#REF!"}},{"$f":"AND(#REF!,\"B5Y3YB/zma0=\")","v":{"$error":"#REF!"}},{"$f":"AND(#REF!,\"B5Y3YB/zma4=\")","v":{"$error":"#REF!"}},{"$f":"AND(#REF!,\"B5Y3YB/zma8=\")","v":{"$error":"#REF!"}},{"$f":"AND(#REF!,\"B5Y3YB/zmbA=\")","v":{"$error":"#REF!"}},{"$f":"AND(#REF!,\"B5Y3YB/zmbE=\")","v":{"$error":"#REF!"}},{"$f":"IF(#REF!,\"B5Y3YB/zmbI=\",0)","v":{"$error":"#REF!"}},{"$f":"AND(#REF!,\"B5Y3YB/zmbM=\")","v":{"$error":"#REF!"}},{"$f":"AND(#REF!,\"B5Y3YB/zmbQ=\")","v":{"$error":"#REF!"}},{"$f":"AND(#REF!,\"B5Y3YB/zmbU=\")","v":{"$error":"#REF!"}},{"$f":"AND(#REF!,\"B5Y3YB/zmbY=\")","v":{"$error":"#REF!"}},{"$f":"AND(#REF!,\"B5Y3YB/zmbc=\")","v":{"$error":"#REF!"}},{"$f":"AND(#REF!,\"B5Y3YB/zmbg=\")","v":{"$error":"#REF!"}},{"$f":"AND(#REF!,\"B5Y3YB/zmbk=\")","v":{"$error":"#REF!"}},{"$f":"AND(#REF!,\"B5Y3YB/zmbo=\")","v":{"$error":"#REF!"}},{"$f":"AND(#REF!,\"B5Y3YB/zmbs=\")","v":{"$error":"#REF!"}},{"$f":"AND(#REF!,\"B5Y3YB/zmbw=\")","v":{"$error":"#REF!"}},{"$f":"AND(#REF!,\"B5Y3YB/zmb0=\")","v":{"$error":"#REF!"}},{"$f":"AND(#REF!,\"B5Y3YB/zmb4=\")","v":{"$error":"#REF!"}},{"$f":"AND(#REF!,\"B5Y3YB/zmb8=\")","v":{"$error":"#REF!"}},{"$f":"AND(#REF!,\"B5Y3YB/zmcA=\")","v":{"$error":"#REF!"}},{"$f":"AND(#REF!,\"B5Y3YB/zmcE=\")","v":{"$error":"#REF!"}},{"$f":"IF(#REF!,\"B5Y3YB/zmcI=\",0)","v":{"$error":"#REF!"}},{"$f":"AND(#REF!,\"B5Y3YB/zmcM=\")","v":{"$error":"#REF!"}},{"$f":"AND(#REF!,\"B5Y3YB/zmcQ=\")","v":{"$error":"#REF!"}},{"$f":"AND(#REF!,\"B5Y3YB/zmcU=\")","v":{"$error":"#REF!"}},{"$f":"AND(#REF!,\"B5Y3YB/zmcY=\")","v":{"$error":"#REF!"}},{"$f":"AND(#REF!,\"B5Y3YB/zmcc=\")","v":{"$error":"#REF!"}},{"$f":"AND(#REF!,\"B5Y3YB/zmcg=\")","v":{"$error":"#REF!"}},{"$f":"AND(#REF!,\"B5Y3YB/zmck=\")","v":{"$error":"#REF!"}},{"$f":"AND(#REF!,\"B5Y3YB/zmco=\")","v":{"$error":"#REF!"}},{"$f":"AND(#REF!,\"B5Y3YB/zmcs=\")","v":{"$error":"#REF!"}},{"$f":"AND(#REF!,\"B5Y3YB/zmcw=\")","v":{"$error":"#REF!"}},{"$f":"AND(#REF!,\"B5Y3YB/zmc0=\")","v":{"$error":"#REF!"}},{"$f":"AND(#REF!,\"B5Y3YB/zmc4=\")","v":{"$error":"#REF!"}},{"$f":"AND(#REF!,\"B5Y3YB/zmc8=\")","v":{"$error":"#REF!"}},{"$f":"AND(#REF!,\"B5Y3YB/zmdA=\")","v":{"$error":"#REF!"}},{"$f":"AND(#REF!,\"B5Y3YB/zmdE=\")","v":{"$error":"#REF!"}},{"$f":"IF(#REF!,\"B5Y3YB/zmdI=\",0)","v":{"$error":"#REF!"}},{"$f":"AND(#REF!,\"B5Y3YB/zmdM=\")","v":{"$error":"#REF!"}},{"$f":"AND(#REF!,\"B5Y3YB/zmdQ=\")","v":{"$error":"#REF!"}},{"$f":"AND(#REF!,\"B5Y3YB/zmdU=\")","v":{"$error":"#REF!"}},{"$f":"AND(#REF!,\"B5Y3YB/zmdY=\")","v":{"$error":"#REF!"}},{"$f":"AND(#REF!,\"B5Y3YB/zmdc=\")","v":{"$error":"#REF!"}},{"$f":"AND(#REF!,\"B5Y3YB/zmdg=\")","v":{"$error":"#REF!"}},{"$f":"AND(#REF!,\"B5Y3YB/zmdk=\")","v":{"$error":"#REF!"}},{"$f":"AND(#REF!,\"B5Y3YB/zmdo=\")","v":{"$error":"#REF!"}},{"$f":"AND(#REF!,\"B5Y3YB/zmds=\")","v":{"$error":"#REF!"}},{"$f":"AND(#REF!,\"B5Y3YB/zmdw=\")","v":{"$error":"#REF!"}},{"$f":"AND(#REF!,\"B5Y3YB/zmd0=\")","v":{"$error":"#REF!"}},{"$f":"AND(#REF!,\"B5Y3YB/zmd4=\")","v":{"$error":"#REF!"}},{"$f":"AND(#REF!,\"B5Y3YB/zmd8=\")","v":{"$error":"#REF!"}},{"$f":"AND(#REF!,\"B5Y3YB/zmeA=\")","v":{"$error":"#REF!"}},{"$f":"AND(#REF!,\"B5Y3YB/zmeE=\")","v":{"$error":"#REF!"}},{"$f":"IF(#REF!,\"B5Y3YB/zmeI=\",0)","v":{"$error":"#REF!"}},{"$f":"AND(#REF!,\"B5Y3YB/zmeM=\")","v":{"$error":"#REF!"}},{"$f":"AND(#REF!,\"B5Y3YB/zmeQ=\")","v":{"$error":"#REF!"}},{"$f":"AND(#REF!,\"B5Y3YB/zmeU=\")","v":{"$error":"#REF!"}},{"$f":"AND(#REF!,\"B5Y3YB/zmeY=\")","v":{"$error":"#REF!"}},{"$f":"AND(#REF!,\"B5Y3YB/zmec=\")","v":{"$error":"#REF!"}},{"$f":"AND(#REF!,\"B5Y3YB/zmeg=\")","v":{"$error":"#REF!"}},{"$f":"AND(#REF!,\"B5Y3YB/zmek=\")","v":{"$error":"#REF!"}},{"$f":"AND(#REF!,\"B5Y3YB/zmeo=\")","v":{"$error":"#REF!"}},{"$f":"AND(#REF!,\"B5Y3YB/zmes=\")","v":{"$error":"#REF!"}},{"$f":"AND(#REF!,\"B5Y3YB/zmew=\")","v":{"$error":"#REF!"}},{"$f":"AND(#REF!,\"B5Y3YB/zme0=\")","v":{"$error":"#REF!"}},{"$f":"AND(#REF!,\"B5Y3YB/zme4=\")","v":{"$error":"#REF!"}},{"$f":"AND(#REF!,\"B5Y3YB/zme8=\")","v":{"$error":"#REF!"}},{"$f":"AND(#REF!,\"B5Y3YB/zmfA=\")","v":{"$error":"#REF!"}},{"$f":"AND(#REF!,\"B5Y3YB/zmfE=\")","v":{"$error":"#REF!"}},{"$f":"IF(#REF!,\"B5Y3YB/zmfI=\",0)","v":{"$error":"#REF!"}},{"$f":"AND(#REF!,\"B5Y3YB/zmfM=\")","v":{"$error":"#REF!"}},{"$f":"AND(#REF!,\"B5Y3YB/zmfQ=\")","v":{"$error":"#REF!"}},{"$f":"AND(#REF!,\"B5Y3YB/zmfU=\")","v":{"$error":"#REF!"}},{"$f":"AND(#REF!,\"B5Y3YB/zmfY=\")","v":{"$error":"#REF!"}},{"$f":"AND(#REF!,\"B5Y3YB/zmfc=\")","v":{"$error":"#REF!"}},{"$f":"AND(#REF!,\"B5Y3YB/zmfg=\")","v":{"$error":"#REF!"}},{"$f":"AND(#REF!,\"B5Y3YB/zmfk=\")","v":{"$error":"#REF!"}},{"$f":"AND(#REF!,\"B5Y3YB/zmfo=\")","v":{"$error":"#REF!"}},{"$f":"AND(#REF!,\"B5Y3YB/zmfs=\")","v":{"$error":"#REF!"}},{"$f":"AND(#REF!,\"B5Y3YB/zmfw=\")","v":{"$error":"#REF!"}},{"$f":"AND(#REF!,\"B5Y3YB/zmf0=\")","v":{"$error":"#REF!"}},{"$f":"AND(#REF!,\"B5Y3YB/zmf4=\")","v":{"$error":"#REF!"}},{"$f":"AND(#REF!,\"B5Y3YB/zmf8=\")","v":{"$error":"#REF!"}}]
[{"$f":"AND(#REF!,\"Z2/z/QyWmQA=\")","v":{"$error":"#REF!"}},{"$f":"AND(#REF!,\"Z2/z/QyWmQE=\")","v":{"$error":"#REF!"}},{"$f":"IF(#REF!,\"Z2/z/QyWmQI=\",0)","v":{"$error":"#REF!"}},{"$f":"AND(#REF!,\"Z2/z/QyWmQM=\")","v":{"$error":"#REF!"}},{"$f":"AND(#REF!,\"Z2/z/QyWmQQ=\")","v":{"$error":"#REF!"}},{"$f":"AND(#REF!,\"Z2/z/QyWmQU=\")","v":{"$error":"#REF!"}},{"$f":"AND(#REF!,\"Z2/z/QyWmQY=\")","v":{"$error":"#REF!"}},{"$f":"AND(#REF!,\"Z2/z/QyWmQc=\")","v":{"$error":"#REF!"}},{"$f":"AND(#REF!,\"Z2/z/QyWmQg=\")","v":{"$error":"#REF!"}},{"$f":"AND(#REF!,\"Z2/z/QyWmQk=\")","v":{"$error":"#REF!"}},{"$f":"AND(#REF!,\"Z2/z/QyWmQo=\")","v":{"$error":"#REF!"}},{"$f":"AND(#REF!,\"Z2/z/QyWmQs=\")","v":{"$error":"#REF!"}},{"$f":"AND(#REF!,\"Z2/z/QyWmQw=\")","v":{"$error":"#REF!"}},{"$f":"AND(#REF!,\"Z2/z/QyWmQ0=\")","v":{"$error":"#REF!"}},{"$f":"AND(#REF!,\"Z2/z/QyWmQ4=\")","v":{"$error":"#REF!"}},{"$f":"AND(#REF!,\"Z2/z/QyWmQ8=\")","v":{"$error":"#REF!"}},{"$f":"AND(#REF!,\"Z2/z/QyWmRA=\")","v":{"$error":"#REF!"}},{"$f":"AND(#REF!,\"Z2/z/QyWmRE=\")","v":{"$error":"#REF!"}},{"$f":"IF(#REF!,\"Z2/z/QyWmRI=\",0)","v":{"$error":"#REF!"}},{"$f":"AND(#REF!,\"Z2/z/QyWmRM=\")","v":{"$error":"#REF!"}},{"$f":"AND(#REF!,\"Z2/z/QyWmRQ=\")","v":{"$error":"#REF!"}},{"$f":"AND(#REF!,\"Z2/z/QyWmRU=\")","v":{"$error":"#REF!"}},{"$f":"AND(#REF!,\"Z2/z/QyWmRY=\")","v":{"$error":"#REF!"}},{"$f":"AND(#REF!,\"Z2/z/QyWmRc=\")","v":{"$error":"#REF!"}},{"$f":"AND(#REF!,\"Z2/z/QyWmRg=\")","v":{"$error":"#REF!"}},{"$f":"AND(#REF!,\"Z2/z/QyWmRk=\")","v":{"$error":"#REF!"}},{"$f":"AND(#REF!,\"Z2/z/QyWmRo=\")","v":{"$error":"#REF!"}},{"$f":"AND(#REF!,\"Z2/z/QyWmRs=\")","v":{"$error":"#REF!"}},{"$f":"AND(#REF!,\"Z2/z/QyWmRw=\")","v":{"$error":"#REF!"}},{"$f":"AND(#REF!,\"Z2/z/QyWmR0=\")","v":{"$error":"#REF!"}},{"$f":"AND(#REF!,\"Z2/z/QyWmR4=\")","v":{"$error":"#REF!"}},{"$f":"AND(#REF!,\"Z2/z/QyWmR8=\")","v":{"$error":"#REF!"}},{"$f":"AND(#REF!,\"Z2/z/QyWmSA=\")","v":{"$error":"#REF!"}},{"$f":"AND(#REF!,\"Z2/z/QyWmSE=\")","v":{"$error":"#REF!"}},{"$f":"IF(#REF!,\"Z2/z/QyWmSI=\",0)","v":{"$error":"#REF!"}},{"$f":"AND(#REF!,\"Z2/z/QyWmSM=\")","v":{"$error":"#REF!"}},{"$f":"AND(#REF!,\"Z2/z/QyWmSQ=\")","v":{"$error":"#REF!"}},{"$f":"AND(#REF!,\"Z2/z/QyWmSU=\")","v":{"$error":"#REF!"}},{"$f":"AND(#REF!,\"Z2/z/QyWmSY=\")","v":{"$error":"#REF!"}},{"$f":"AND(#REF!,\"Z2/z/QyWmSc=\")","v":{"$error":"#REF!"}},{"$f":"AND(#REF!,\"Z2/z/QyWmSg=\")","v":{"$error":"#REF!"}},{"$f":"AND(#REF!,\"Z2/z/QyWmSk=\")","v":{"$error":"#REF!"}},{"$f":"AND(#REF!,\"Z2/z/QyWmSo=\")","v":{"$error":"#REF!"}},{"$f":"AND(#REF!,\"Z2/z/QyWmSs=\")","v":{"$error":"#REF!"}},{"$f":"AND(#REF!,\"Z2/z/QyWmSw=\")","v":{"$error":"#REF!"}},{"$f":"AND(#REF!,\"Z2/z/QyWmS0=\")","v":{"$error":"#REF!"}},{"$f":"AND(#REF!,\"Z2/z/QyWmS4=\")","v":{"$error":"#REF!"}},{"$f":"AND(#REF!,\"Z2/z/QyWmS8=\")","v":{"$error":"#REF!"}},{"$f":"AND(#REF!,\"Z2/z/QyWmTA=\")","v":{"$error":"#REF!"}},{"$f":"AND(#REF!,\"Z2/z/QyWmTE=\")","v":{"$error":"#REF!"}},{"$f":"IF(#REF!,\"Z2/z/QyWmTI=\",0)","v":{"$error":"#REF!"}},{"$f":"AND(#REF!,\"Z2/z/QyWmTM=\")","v":{"$error":"#REF!"}},{"$f":"AND(#REF!,\"Z2/z/QyWmTQ=\")","v":{"$error":"#REF!"}},{"$f":"AND(#REF!,\"Z2/z/QyWmTU=\")","v":{"$error":"#REF!"}},{"$f":"AND(#REF!,\"Z2/z/QyWmTY=\")","v":{"$error":"#REF!"}},{"$f":"AND(#REF!,\"Z2/z/QyWmTc=\")","v":{"$error":"#REF!"}},{"$f":"AND(#REF!,\"Z2/z/QyWmTg=\")","v":{"$error":"#REF!"}},{"$f":"AND(#REF!,\"Z2/z/QyWmTk=\")","v":{"$error":"#REF!"}},{"$f":"AND(#REF!,\"Z2/z/QyWmTo=\")","v":{"$error":"#REF!"}},{"$f":"AND(#REF!,\"Z2/z/QyWmTs=\")","v":{"$error":"#REF!"}},{"$f":"AND(#REF!,\"Z2/z/QyWmTw=\")","v":{"$error":"#REF!"}},{"$f":"AND(#REF!,\"Z2/z/QyWmT0=\")","v":{"$error":"#REF!"}},{"$f":"AND(#REF!,\"Z2/z/QyWmT4=\")","v":{"$error":"#REF!"}},{"$f":"AND(#REF!,\"Z2/z/QyWmT8=\")","v":{"$error":"#REF!"}},{"$f":"AND(#REF!,\"Z2/z/QyWmUA=\")","v":{"$error":"#REF!"}},{"$f":"AND(#REF!,\"Z2/z/QyWmUE=\")","v":{"$error":"#REF!"}},{"$f":"IF(#REF!,\"Z2/z/QyWmUI=\",0)","v":{"$error":"#REF!"}},{"$f":"AND(#REF!,\"Z2/z/QyWmUM=\")","v":{"$error":"#REF!"}},{"$f":"AND(#REF!,\"Z2/z/QyWmUQ=\")","v":{"$error":"#REF!"}},{"$f":"AND(#REF!,\"Z2/z/QyWmUU=\")","v":{"$error":"#REF!"}},{"$f":"AND(#REF!,\"Z2/z/QyWmUY=\")","v":{"$error":"#REF!"}},{"$f":"AND(#REF!,\"Z2/z/QyWmUc=\")","v":{"$error":"#REF!"}},{"$f":"AND(#REF!,\"Z2/z/QyWmUg=\")","v":{"$error":"#REF!"}},{"$f":"AND(#REF!,\"Z2/z/QyWmUk=\")","v":{"$error":"#REF!"}},{"$f":"AND(#REF!,\"Z2/z/QyWmUo=\")","v":{"$error":"#REF!"}},{"$f":"AND(#REF!,\"Z2/z/QyWmUs=\")","v":{"$error":"#REF!"}},{"$f":"AND(#REF!,\"Z2/z/QyWmUw=\")","v":{"$error":"#REF!"}},{"$f":"AND(#REF!,\"Z2/z/QyWmU0=\")","v":{"$error":"#REF!"}},{"$f":"AND(#REF!,\"Z2/z/QyWmU4=\")","v":{"$error":"#REF!"}},{"$f":"AND(#REF!,\"Z2/z/QyWmU8=\")","v":{"$error":"#REF!"}},{"$f":"AND(#REF!,\"Z2/z/QyWmVA=\")","v":{"$error":"#REF!"}},{"$f":"AND(#REF!,\"Z2/z/QyWmVE=\")","v":{"$error":"#REF!"}},{"$f":"IF(#REF!,\"Z2/z/QyWmVI=\",0)","v":{"$error":"#REF!"}},{"$f":"AND(#REF!,\"Z2/z/QyWmVM=\")","v":{"$error":"#REF!"}},{"$f":"AND(#REF!,\"Z2/z/QyWmVQ=\")","v":{"$error":"#REF!"}},{"$f":"AND(#REF!,\"Z2/z/QyWmVU=\")","v":{"$error":"#REF!"}},{"$f":"AND(#REF!,\"Z2/z/QyWmVY=\")","v":{"$error":"#REF!"}},{"$f":"AND(#REF!,\"Z2/z/QyWmVc=\")","v":{"$error":"#REF!"}},{"$f":"AND(#REF!,\"Z2/z/QyWmVg=\")","v":{"$error":"#REF!"}},{"$f":"AND(#REF!,\"Z2/z/QyWmVk=\")","v":{"$error":"#REF!"}},{"$f":"AND(#REF!,\"Z2/z/QyWmVo=\")","v":{"$error":"#REF!"}},{"$f":"AND(#REF!,\"Z2/z/QyWmVs=\")","v":{"$error":"#REF!"}},{"$f":"AND(#REF!,\"Z2/z/QyWmVw=\")","v":{"$error":"#REF!"}},{"$f":"AND(#REF!,\"Z2/z/QyWmV0=\")","v":{"$error":"#REF!"}},{"$f":"AND(#REF!,\"Z2/z/QyWmV4=\")","v":{"$error":"#REF!"}},{"$f":"AND(#REF!,\"Z2/z/QyWmV8=\")","v":{"$error":"#REF!"}},{"$f":"AND(#REF!,\"Z2/z/QyWmWA=\")","v":{"$error":"#REF!"}},{"$f":"AND(#REF!,\"Z2/z/QyWmWE=\")","v":{"$error":"#REF!"}},{"$f":"IF(#REF!,\"Z2/z/QyWmWI=\",0)","v":{"$error":"#REF!"}},{"$f":"AND(#REF!,\"Z2/z/QyWmWM=\")","v":{"$error":"#REF!"}},{"$f":"AND(#REF!,\"Z2/z/QyWmWQ=\")","v":{"$error":"#REF!"}},{"$f":"AND(#REF!,\"Z2/z/QyWmWU=\")","v":{"$error":"#REF!"}},{"$f":"AND(#REF!,\"Z2/z/QyWmWY=\")","v":{"$error":"#REF!"}},{"$f":"AND(#REF!,\"Z2/z/QyWmWc=\")","v":{"$error":"#REF!"}},{"$f":"AND(#REF!,\"Z2/z/QyWmWg=\")","v":{"$error":"#REF!"}},{"$f":"AND(#REF!,\"Z2/z/QyWmWk=\")","v":{"$error":"#REF!"}},{"$f":"AND(#REF!,\"Z2/z/QyWmWo=\")","v":{"$error":"#REF!"}},{"$f":"AND(#REF!,\"Z2/z/QyWmWs=\")","v":{"$error":"#REF!"}},{"$f":"AND(#REF!,\"Z2/z/QyWmWw=\")","v":{"$error":"#REF!"}},{"$f":"AND(#REF!,\"Z2/z/QyWmW0=\")","v":{"$error":"#REF!"}},{"$f":"AND(#REF!,\"Z2/z/QyWmW4=\")","v":{"$error":"#REF!"}},{"$f":"AND(#REF!,\"Z2/z/QyWmW8=\")","v":{"$error":"#REF!"}},{"$f":"AND(#REF!,\"Z2/z/QyWmXA=\")","v":{"$error":"#REF!"}},{"$f":"AND(#REF!,\"Z2/z/QyWmXE=\")","v":{"$error":"#REF!"}},{"$f":"IF(#REF!,\"Z2/z/QyWmXI=\",0)","v":{"$error":"#REF!"}},{"$f":"AND(#REF!,\"Z2/z/QyWmXM=\")","v":{"$error":"#REF!"}},{"$f":"AND(#REF!,\"Z2/z/QyWmXQ=\")","v":{"$error":"#REF!"}},{"$f":"AND(#REF!,\"Z2/z/QyWmXU=\")","v":{"$error":"#REF!"}},{"$f":"AND(#REF!,\"Z2/z/QyWmXY=\")","v":{"$error":"#REF!"}},{"$f":"AND(#REF!,\"Z2/z/QyWmXc=\")","v":{"$error":"#REF!"}},{"$f":"AND(#REF!,\"Z2/z/QyWmXg=\")","v":{"$error":"#REF!"}},{"$f":"AND(#REF!,\"Z2/z/QyWmXk=\")","v":{"$error":"#REF!"}},{"$f":"AND(#REF!,\"Z2/z/QyWmXo=\")","v":{"$error":"#REF!"}},{"$f":"AND(#REF!,\"Z2/z/QyWmXs=\")","v":{"$error":"#REF!"}},{"$f":"AND(#REF!,\"Z2/z/QyWmXw=\")","v":{"$error":"#REF!"}},{"$f":"AND(#REF!,\"Z2/z/QyWmX0=\")","v":{"$error":"#REF!"}},{"$f":"AND(#REF!,\"Z2/z/QyWmX4=\")","v":{"$error":"#REF!"}},{"$f":"AND(#REF!,\"Z2/z/QyWmX8=\")","v":{"$error":"#REF!"}},{"$f":"AND(#REF!,\"Z2/z/QyWmYA=\")","v":{"$error":"#REF!"}},{"$f":"AND(#REF!,\"Z2/z/QyWmYE=\")","v":{"$error":"#REF!"}},{"$f":"IF(#REF!,\"Z2/z/QyWmYI=\",0)","v":{"$error":"#REF!"}},{"$f":"AND(#REF!,\"Z2/z/QyWmYM=\")","v":{"$error":"#REF!"}},{"$f":"AND(#REF!,\"Z2/z/QyWmYQ=\")","v":{"$error":"#REF!"}},{"$f":"AND(#REF!,\"Z2/z/QyWmYU=\")","v":{"$error":"#REF!"}},{"$f":"AND(#REF!,\"Z2/z/QyWmYY=\")","v":{"$error":"#REF!"}},{"$f":"AND(#REF!,\"Z2/z/QyWmYc=\")","v":{"$error":"#REF!"}},{"$f":"AND(#REF!,\"Z2/z/QyWmYg=\")","v":{"$error":"#REF!"}},{"$f":"AND(#REF!,\"Z2/z/QyWmYk=\")","v":{"$error":"#REF!"}},{"$f":"AND(#REF!,\"Z2/z/QyWmYo=\")","v":{"$error":"#REF!"}},{"$f":"AND(#REF!,\"Z2/z/QyWmYs=\")","v":{"$error":"#REF!"}},{"$f":"AND(#REF!,\"Z2/z/QyWmYw=\")","v":{"$error":"#REF!"}},{"$f":"AND(#REF!,\"Z2/z/QyWmY0=\")","v":{"$error":"#REF!"}},{"$f":"AND(#REF!,\"Z2/z/QyWmY4=\")","v":{"$error":"#REF!"}},{"$f":"AND(#REF!,\"Z2/z/QyWmY8=\")","v":{"$error":"#REF!"}},{"$f":"AND(#REF!,\"Z2/z/QyWmZA=\")","v":{"$error":"#REF!"}},{"$f":"AND(#REF!,\"Z2/z/QyWmZE=\")","v":{"$error":"#REF!"}},{"$f":"IF(#REF!,\"Z2/z/QyWmZI=\",0)","v":{"$error":"#REF!"}},{"$f":"AND(#REF!,\"Z2/z/QyWmZM=\")","v":{"$error":"#REF!"}},{"$f":"AND(#REF!,\"Z2/z/QyWmZQ=\")","v":{"$error":"#REF!"}},{"$f":"AND(#REF!,\"Z2/z/QyWmZU=\")","v":{"$error":"#REF!"}},{"$f":"AND(#REF!,\"Z2/z/QyWmZY=\")","v":{"$error":"#REF!"}},{"$f":"AND(#REF!,\"Z2/z/QyWmZc=\")","v":{"$error":"#REF!"}},{"$f":"AND(#REF!,\"Z2/z/QyWmZg=\")","v":{"$error":"#REF!"}},{"$f":"AND(#REF!,\"Z2/z/QyWmZk=\")","v":{"$error":"#REF!"}},{"$f":"AND(#REF!,\"Z2/z/QyWmZo=\")","v":{"$error":"#REF!"}},{"$f":"AND(#REF!,\"Z2/z/QyWmZs=\")","v":{"$error":"#REF!"}},{"$f":"AND(#REF!,\"Z2/z/QyWmZw=\")","v":{"$error":"#REF!"}},{"$f":"AND(#REF!,\"Z2/z/QyWmZ0=\")","v":{"$error":"#REF!"}},{"$f":"AND(#REF!,\"Z2/z/QyWmZ4=\")","v":{"$error":"#REF!"}},{"$f":"AND(#REF!,\"Z2/z/QyWmZ8=\")","v":{"$error":"#REF!"}},{"$f":"AND(#REF!,\"Z2/z/QyWmaA=\")","v":{"$error":"#REF!"}},{"$f":"AND(#REF!,\"Z2/z/QyWmaE=\")","v":{"$error":"#REF!"}},{"$f":"IF(#REF!,\"Z2/z/QyWmaI=\",0)","v":{"$error":"#REF!"}},{"$f":"AND(#REF!,\"Z2/z/QyWmaM=\")","v":{"$error":"#REF!"}},{"$f":"AND(#REF!,\"Z2/z/QyWmaQ=\")","v":{"$error":"#REF!"}},{"$f":"AND(#REF!,\"Z2/z/QyWmaU=\")","v":{"$error":"#REF!"}},{"$f":"AND(#REF!,\"Z2/z/QyWmaY=\")","v":{"$error":"#REF!"}},{"$f":"AND(#REF!,\"Z2/z/QyWmac=\")","v":{"$error":"#REF!"}},{"$f":"AND(#REF!,\"Z2/z/QyWmag=\")","v":{"$error":"#REF!"}},{"$f":"AND(#REF!,\"Z2/z/QyWmak=\")","v":{"$error":"#REF!"}},{"$f":"AND(#REF!,\"Z2/z/QyWmao=\")","v":{"$error":"#REF!"}},{"$f":"AND(#REF!,\"Z2/z/QyWmas=\")","v":{"$error":"#REF!"}},{"$f":"AND(#REF!,\"Z2/z/QyWmaw=\")","v":{"$error":"#REF!"}},{"$f":"AND(#REF!,\"Z2/z/QyWma0=\")","v":{"$error":"#REF!"}},{"$f":"AND(#REF!,\"Z2/z/QyWma4=\")","v":{"$error":"#REF!"}},{"$f":"AND(#REF!,\"Z2/z/QyWma8=\")","v":{"$error":"#REF!"}},{"$f":"AND(#REF!,\"Z2/z/QyWmbA=\")","v":{"$error":"#REF!"}},{"$f":"AND(#REF!,\"Z2/z/QyWmbE=\")","v":{"$error":"#REF!"}},{"$f":"IF(#REF!,\"Z2/z/QyWmbI=\",0)","v":{"$error":"#REF!"}},{"$f":"AND(#REF!,\"Z2/z/QyWmbM=\")","v":{"$error":"#REF!"}},{"$f":"AND(#REF!,\"Z2/z/QyWmbQ=\")","v":{"$error":"#REF!"}},{"$f":"AND(#REF!,\"Z2/z/QyWmbU=\")","v":{"$error":"#REF!"}},{"$f":"AND(#REF!,\"Z2/z/QyWmbY=\")","v":{"$error":"#REF!"}},{"$f":"AND(#REF!,\"Z2/z/QyWmbc=\")","v":{"$error":"#REF!"}},{"$f":"AND(#REF!,\"Z2/z/QyWmbg=\")","v":{"$error":"#REF!"}},{"$f":"AND(#REF!,\"Z2/z/QyWmbk=\")","v":{"$error":"#REF!"}},{"$f":"AND(#REF!,\"Z2/z/QyWmbo=\")","v":{"$error":"#REF!"}},{"$f":"AND(#REF!,\"Z2/z/QyWmbs=\")","v":{"$error":"#REF!"}},{"$f":"AND(#REF!,\"Z2/z/QyWmbw=\")","v":{"$error":"#REF!"}},{"$f":"AND(#REF!,\"Z2/z/QyWmb0=\")","v":{"$error":"#REF!"}},{"$f":"AND(#REF!,\"Z2/z/QyWmb4=\")","v":{"$error":"#REF!"}},{"$f":"AND(#REF!,\"Z2/z/QyWmb8=\")","v":{"$error":"#REF!"}},{"$f":"AND(#REF!,\"Z2/z/QyWmcA=\")","v":{"$error":"#REF!"}},{"$f":"AND(#REF!,\"Z2/z/QyWmcE=\")","v":{"$error":"#REF!"}},{"$f":"IF(#REF!,\"Z2/z/QyWmcI=\",0)","v":{"$error":"#REF!"}},{"$f":"AND(#REF!,\"Z2/z/QyWmcM=\")","v":{"$error":"#REF!"}},{"$f":"AND(#REF!,\"Z2/z/QyWmcQ=\")","v":{"$error":"#REF!"}},{"$f":"AND(#REF!,\"Z2/z/QyWmcU=\")","v":{"$error":"#REF!"}},{"$f":"AND(#REF!,\"Z2/z/QyWmcY=\")","v":{"$error":"#REF!"}},{"$f":"AND(#REF!,\"Z2/z/QyWmcc=\")","v":{"$error":"#REF!"}},{"$f":"AND(#REF!,\"Z2/z/QyWmcg=\")","v":{"$error":"#REF!"}},{"$f":"AND(#REF!,\"Z2/z/QyWmck=\")","v":{"$error":"#REF!"}},{"$f":"AND(#REF!,\"Z2/z/QyWmco=\")","v":{"$error":"#REF!"}},{"$f":"AND(#REF!,\"Z2/z/QyWmcs=\")","v":{"$error":"#REF!"}},{"$f":"AND(#REF!,\"Z2/z/QyWmcw=\")","v":{"$error":"#REF!"}},{"$f":"AND(#REF!,\"Z2/z/QyWmc0=\")","v":{"$error":"#REF!"}},{"$f":"AND(#REF!,\"Z2/z/QyWmc4=\")","v":{"$error":"#REF!"}},{"$f":"AND(#REF!,\"Z2/z/QyWmc8=\")","v":{"$error":"#REF!"}},{"$f":"AND(#REF!,\"Z2/z/QyWmdA=\")","v":{"$error":"#REF!"}},{"$f":"AND(#REF!,\"Z2/z/QyWmdE=\")","v":{"$error":"#REF!"}},{"$f":"IF(#REF!,\"Z2/z/QyWmdI=\",0)","v":{"$error":"#REF!"}},{"$f":"AND(#REF!,\"Z2/z/QyWmdM=\")","v":{"$error":"#REF!"}},{"$f":"AND(#REF!,\"Z2/z/QyWmdQ=\")","v":{"$error":"#REF!"}},{"$f":"AND(#REF!,\"Z2/z/QyWmdU=\")","v":{"$error":"#REF!"}},{"$f":"AND(#REF!,\"Z2/z/QyWmdY=\")","v":{"$error":"#REF!"}},{"$f":"AND(#REF!,\"Z2/z/QyWmdc=\")","v":{"$error":"#REF!"}},{"$f":"AND(#REF!,\"Z2/z/QyWmdg=\")","v":{"$error":"#REF!"}},{"$f":"AND(#REF!,\"Z2/z/QyWmdk=\")","v":{"$error":"#REF!"}},{"$f":"AND(#REF!,\"Z2/z/QyWmdo=\")","v":{"$error":"#REF!"}},{"$f":"AND(#REF!,\"Z2/z/QyWmds=\")","v":{"$error":"#REF!"}},{"$f":"AND(#REF!,\"Z2/z/QyWmdw=\")","v":{"$error":"#REF!"}},{"$f":"AND(#REF!,\"Z2/z/QyWmd0=\")","v":{"$error":"#REF!"}},{"$f":"AND(#REF!,\"Z2/z/QyWmd4=\")","v":{"$error":"#REF!"}},{"$f":"AND(#REF!,\"Z2/z/QyWmd8=\")","v":{"$error":"#REF!"}},{"$f":"AND(#REF!,\"Z2/z/QyWmeA=\")","v":{"$error":"#REF!"}},{"$f":"AND(#REF!,\"Z2/z/QyWmeE=\")","v":{"$error":"#REF!"}},{"$f":"IF(#REF!,\"Z2/z/QyWmeI=\",0)","v":{"$error":"#REF!"}},{"$f":"AND(#REF!,\"Z2/z/QyWmeM=\")","v":{"$error":"#REF!"}},{"$f":"AND(#REF!,\"Z2/z/QyWmeQ=\")","v":{"$error":"#REF!"}},{"$f":"AND(#REF!,\"Z2/z/QyWmeU=\")","v":{"$error":"#REF!"}},{"$f":"AND(#REF!,\"Z2/z/QyWmeY=\")","v":{"$error":"#REF!"}},{"$f":"AND(#REF!,\"Z2/z/QyWmec=\")","v":{"$error":"#REF!"}},{"$f":"AND(#REF!,\"Z2/z/QyWmeg=\")","v":{"$error":"#REF!"}},{"$f":"AND(#REF!,\"Z2/z/QyWmek=\")","v":{"$error":"#REF!"}},{"$f":"AND(#REF!,\"Z2/z/QyWmeo=\")","v":{"$error":"#REF!"}},{"$f":"AND(#REF!,\"Z2/z/QyWmes=\")","v":{"$error":"#REF!"}},{"$f":"AND(#REF!,\"Z2/z/QyWmew=\")","v":{"$error":"#REF!"}},{"$f":"AND(#REF!,\"Z2/z/QyWme0=\")","v":{"$error":"#REF!"}},{"$f":"AND(#REF!,\"Z2/z/QyWme4=\")","v":{"$error":"#REF!"}},{"$f":"AND(#REF!,\"Z2/z/QyWme8=\")","v":{"$error":"#REF!"}},{"$f":"AND(#REF!,\"Z2/z/QyWmfA=\")","v":{"$error":"#REF!"}},{"$f":"AND(#REF!,\"Z2/z/QyWmfE=\")","v":{"$error":"#REF!"}},{"$f":"IF(#REF!,\"Z2/z/QyWmfI=\",0)","v":{"$error":"#REF!"}},{"$f":"AND(#REF!,\"Z2/z/QyWmfM=\")","v":{"$error":"#REF!"}},{"$f":"AND(#REF!,\"Z2/z/QyWmfQ=\")","v":{"$error":"#REF!"}},{"$f":"AND(#REF!,\"Z2/z/QyWmfU=\")","v":{"$error":"#REF!"}},{"$f":"AND(#REF!,\"Z2/z/QyWmfY=\")","v":{"$error":"#REF!"}},{"$f":"AND(#REF!,\"Z2/z/QyWmfc=\")","v":{"$error":"#REF!"}},{"$f":"AND(#REF!,\"Z2/z/QyWmfg=\")","v":{"$error":"#REF!"}},{"$f":"AND(#REF!,\"Z2/z/QyWmfk=\")","v":{"$error":"#REF!"}},{"$f":"AND(#REF!,\"Z2/z/QyWmfo=\")","v":{"$error":"#REF!"}},{"$f":"AND(#REF!,\"Z2/z/QyWmfs=\")","v":{"$error":"#REF!"}},{"$f":"AND(#REF!,\"Z2/z/QyWmfw=\")","v":{"$error":"#REF!"}},{"$f":"AND(#REF!,\"Z2/z/QyWmf0=\")","v":{"$error":"#REF!"}},{"$f":"AND(#REF!,\"Z2/z/QyWmf4=\")","v":{"$error":"#REF!"}},{"$f":"AND(#REF!,\"Z2/z/QyWmf8=\")","v":{"$error":"#REF!"}}]
[{"$f":"AND(#REF!,\"UqMdF0XLVgA=\")","v":{"$error":"#REF!"}},{"$f":"AND(#REF!,\"UqMdF0XLVgE=\")","v":{"$error":"#REF!"}},{"$f":"IF(#REF!,\"UqMdF0XLVgI=\",0)","v":{"$error":"#REF!"}},{"$f":"AND(#REF!,\"UqMdF0XLVgM=\")","v":{"$error":"#REF!"}},{"$f":"AND(#REF!,\"UqMdF0XLVgQ=\")","v":{"$error":"#REF!"}},{"$f":"AND(#REF!,\"UqMdF0XLVgU=\")","v":{"$error":"#REF!"}},{"$f":"AND(#REF!,\"UqMdF0XLVgY=\")","v":{"$error":"#REF!"}},{"$f":"AND(#REF!,\"UqMdF0XLVgc=\")","v":{"$error":"#REF!"}},{"$f":"AND(#REF!,\"UqMdF0XLVgg=\")","v":{"$error":"#REF!"}},{"$f":"AND(#REF!,\"UqMdF0XLVgk=\")","v":{"$error":"#REF!"}},{"$f":"AND(#REF!,\"UqMdF0XLVgo=\")","v":{"$error":"#REF!"}},{"$f":"AND(#REF!,\"UqMdF0XLVgs=\")","v":{"$error":"#REF!"}},{"$f":"AND(#REF!,\"UqMdF0XLVgw=\")","v":{"$error":"#REF!"}},{"$f":"AND(#REF!,\"UqMdF0XLVg0=\")","v":{"$error":"#REF!"}},{"$f":"AND(#REF!,\"UqMdF0XLVg4=\")","v":{"$error":"#REF!"}},{"$f":"AND(#REF!,\"UqMdF0XLVg8=\")","v":{"$error":"#REF!"}},{"$f":"AND(#REF!,\"UqMdF0XLVhA=\")","v":{"$error":"#REF!"}},{"$f":"AND(#REF!,\"UqMdF0XLVhE=\")","v":{"$error":"#REF!"}},{"$f":"IF(#REF!,\"UqMdF0XLVhI=\",0)","v":{"$error":"#REF!"}},{"$f":"AND(#REF!,\"UqMdF0XLVhM=\")","v":{"$error":"#REF!"}},{"$f":"AND(#REF!,\"UqMdF0XLVhQ=\")","v":{"$error":"#REF!"}},{"$f":"AND(#REF!,\"UqMdF0XLVhU=\")","v":{"$error":"#REF!"}},{"$f":"AND(#REF!,\"UqMdF0XLVhY=\")","v":{"$error":"#REF!"}},{"$f":"AND(#REF!,\"UqMdF0XLVhc=\")","v":{"$error":"#REF!"}},{"$f":"AND(#REF!,\"UqMdF0XLVhg=\")","v":{"$error":"#REF!"}},{"$f":"AND(#REF!,\"UqMdF0XLVhk=\")","v":{"$error":"#REF!"}},{"$f":"AND(#REF!,\"UqMdF0XLVho=\")","v":{"$error":"#REF!"}},{"$f":"AND(#REF!,\"UqMdF0XLVhs=\")","v":{"$error":"#REF!"}},{"$f":"AND(#REF!,\"UqMdF0XLVhw=\")","v":{"$error":"#REF!"}},{"$f":"AND(#REF!,\"UqMdF0XLVh0=\")","v":{"$error":"#REF!"}},{"$f":"AND(#REF!,\"UqMdF0XLVh4=\")","v":{"$error":"#REF!"}},{"$f":"AND(#REF!,\"UqMdF0XLVh8=\")","v":{"$error":"#REF!"}},{"$f":"AND(#REF!,\"UqMdF0XLViA=\")","v":{"$error":"#REF!"}},{"$f":"AND(#REF!,\"UqMdF0XLViE=\")","v":{"$error":"#REF!"}},{"$f":"IF(#REF!,\"UqMdF0XLViI=\",0)","v":{"$error":"#REF!"}},{"$f":"AND(#REF!,\"UqMdF0XLViM=\")","v":{"$error":"#REF!"}},{"$f":"AND(#REF!,\"UqMdF0XLViQ=\")","v":{"$error":"#REF!"}},{"$f":"AND(#REF!,\"UqMdF0XLViU=\")","v":{"$error":"#REF!"}},{"$f":"AND(#REF!,\"UqMdF0XLViY=\")","v":{"$error":"#REF!"}},{"$f":"AND(#REF!,\"UqMdF0XLVic=\")","v":{"$error":"#REF!"}},{"$f":"AND(#REF!,\"UqMdF0XLVig=\")","v":{"$error":"#REF!"}},{"$f":"AND(#REF!,\"UqMdF0XLVik=\")","v":{"$error":"#REF!"}},{"$f":"AND(#REF!,\"UqMdF0XLVio=\")","v":{"$error":"#REF!"}},{"$f":"AND(#REF!,\"UqMdF0XLVis=\")","v":{"$error":"#REF!"}},{"$f":"AND(#REF!,\"UqMdF0XLViw=\")","v":{"$error":"#REF!"}},{"$f":"AND(#REF!,\"UqMdF0XLVi0=\")","v":{"$error":"#REF!"}},{"$f":"AND(#REF!,\"UqMdF0XLVi4=\")","v":{"$error":"#REF!"}},{"$f":"AND(#REF!,\"UqMdF0XLVi8=\")","v":{"$error":"#REF!"}},{"$f":"AND(#REF!,\"UqMdF0XLVjA=\")","v":{"$error":"#REF!"}},{"$f":"AND(#REF!,\"UqMdF0XLVjE=\")","v":{"$error":"#REF!"}},{"$f":"IF(#REF!,\"UqMdF0XLVjI=\",0)","v":{"$error":"#REF!"}},{"$f":"AND(#REF!,\"UqMdF0XLVjM=\")","v":{"$error":"#REF!"}},{"$f":"AND(#REF!,\"UqMdF0XLVjQ=\")","v":{"$error":"#REF!"}},{"$f":"AND(#REF!,\"UqMdF0XLVjU=\")","v":{"$error":"#REF!"}},{"$f":"AND(#REF!,\"UqMdF0XLVjY=\")","v":{"$error":"#REF!"}},{"$f":"AND(#REF!,\"UqMdF0XLVjc=\")","v":{"$error":"#REF!"}},{"$f":"AND(#REF!,\"UqMdF0XLVjg=\")","v":{"$error":"#REF!"}},{"$f":"AND(#REF!,\"UqMdF0XLVjk=\")","v":{"$error":"#REF!"}},{"$f":"AND(#REF!,\"UqMdF0XLVjo=\")","v":{"$error":"#REF!"}},{"$f":"AND(#REF!,\"UqMdF0XLVjs=\")","v":{"$error":"#REF!"}},{"$f":"AND(#REF!,\"UqMdF0XLVjw=\")","v":{"$error":"#REF!"}},{"$f":"AND(#REF!,\"UqMdF0XLVj0=\")","v":{"$error":"#REF!"}},{"$f":"AND(#REF!,\"UqMdF0XLVj4=\")","v":{"$error":"#REF!"}},{"$f":"AND(#REF!,\"UqMdF0XLVj8=\")","v":{"$error":"#REF!"}},{"$f":"AND(#REF!,\"UqMdF0XLVkA=\")","v":{"$error":"#REF!"}},{"$f":"AND(#REF!,\"UqMdF0XLVkE=\")","v":{"$error":"#REF!"}},{"$f":"IF(#REF!,\"UqMdF0XLVkI=\",0)","v":{"$error":"#REF!"}},{"$f":"AND(#REF!,\"UqMdF0XLVkM=\")","v":{"$error":"#REF!"}},{"$f":"AND(#REF!,\"UqMdF0XLVkQ=\")","v":{"$error":"#REF!"}},{"$f":"AND(#REF!,\"UqMdF0XLVkU=\")","v":{"$error":"#REF!"}},{"$f":"AND(#REF!,\"UqMdF0XLVkY=\")","v":{"$error":"#REF!"}},{"$f":"AND(#REF!,\"UqMdF0XLVkc=\")","v":{"$error":"#REF!"}},{"$f":"AND(#REF!,\"UqMdF0XLVkg=\")","v":{"$error":"#REF!"}},{"$f":"AND(#REF!,\"UqMdF0XLVkk=\")","v":{"$error":"#REF!"}},{"$f":"AND(#REF!,\"UqMdF0XLVko=\")","v":{"$error":"#REF!"}},{"$f":"AND(#REF!,\"UqMdF0XLVks=\")","v":{"$error":"#REF!"}},{"$f":"AND(#REF!,\"UqMdF0XLVkw=\")","v":{"$error":"#REF!"}},{"$f":"AND(#REF!,\"UqMdF0XLVk0=\")","v":{"$error":"#REF!"}},{"$f":"AND(#REF!,\"UqMdF0XLVk4=\")","v":{"$error":"#REF!"}},{"$f":"AND(#REF!,\"UqMdF0XLVk8=\")","v":{"$error":"#REF!"}},{"$f":"AND(#REF!,\"UqMdF0XLVlA=\")","v":{"$error":"#REF!"}},{"$f":"AND(#REF!,\"UqMdF0XLVlE=\")","v":{"$error":"#REF!"}},{"$f":"IF(#REF!,\"UqMdF0XLVlI=\",0)","v":{"$error":"#REF!"}},{"$f":"AND(#REF!,\"UqMdF0XLVlM=\")","v":{"$error":"#REF!"}},{"$f":"AND(#REF!,\"UqMdF0XLVlQ=\")","v":{"$error":"#REF!"}},{"$f":"AND(#REF!,\"UqMdF0XLVlU=\")","v":{"$error":"#REF!"}},{"$f":"AND(#REF!,\"UqMdF0XLVlY=\")","v":{"$error":"#REF!"}},{"$f":"AND(#REF!,\"UqMdF0XLVlc=\")","v":{"$error":"#REF!"}},{"$f":"AND(#REF!,\"UqMdF0XLVlg=\")","v":{"$error":"#REF!"}},{"$f":"AND(#REF!,\"UqMdF0XLVlk=\")","v":{"$error":"#REF!"}},{"$f":"AND(#REF!,\"UqMdF0XLVlo=\")","v":{"$error":"#REF!"}},{"$f":"AND(#REF!,\"UqMdF0XLVls=\")","v":{"$error":"#REF!"}},{"$f":"AND(#REF!,\"UqMdF0XLVlw=\")","v":{"$error":"#REF!"}},{"$f":"AND(#REF!,\"UqMdF0XLVl0=\")","v":{"$error":"#REF!"}},{"$f":"AND(#REF!,\"UqMdF0XLVl4=\")","v":{"$error":"#REF!"}},{"$f":"AND(#REF!,\"UqMdF0XLVl8=\")","v":{"$error":"#REF!"}},{"$f":"AND(#REF!,\"UqMdF0XLVmA=\")","v":{"$error":"#REF!"}},{"$f":"AND(#REF!,\"UqMdF0XLVmE=\")","v":{"$error":"#REF!"}},{"$f":"IF(#REF!,\"UqMdF0XLVmI=\",0)","v":{"$error":"#REF!"}},{"$f":"AND(#REF!,\"UqMdF0XLVmM=\")","v":{"$error":"#REF!"}},{"$f":"AND(#REF!,\"UqMdF0XLVmQ=\")","v":{"$error":"#REF!"}},{"$f":"AND(#REF!,\"UqMdF0XLVmU=\")","v":{"$error":"#REF!"}},{"$f":"AND(#REF!,\"UqMdF0XLVmY=\")","v":{"$error":"#REF!"}},{"$f":"AND(#REF!,\"UqMdF0XLVmc=\")","v":{"$error":"#REF!"}},{"$f":"AND(#REF!,\"UqMdF0XLVmg=\")","v":{"$error":"#REF!"}},{"$f":"AND(#REF!,\"UqMdF0XLVmk=\")","v":{"$error":"#REF!"}},{"$f":"AND(#REF!,\"UqMdF0XLVmo=\")","v":{"$error":"#REF!"}},{"$f":"AND(#REF!,\"UqMdF0XLVms=\")","v":{"$error":"#REF!"}},{"$f":"AND(#REF!,\"UqMdF0XLVmw=\")","v":{"$error":"#REF!"}},{"$f":"AND(#REF!,\"UqMdF0XLVm0=\")","v":{"$error":"#REF!"}},{"$f":"AND(#REF!,\"UqMdF0XLVm4=\")","v":{"$error":"#REF!"}},{"$f":"AND(#REF!,\"UqMdF0XLVm8=\")","v":{"$error":"#REF!"}},{"$f":"AND(#REF!,\"UqMdF0XLVnA=\")","v":{"$error":"#REF!"}},{"$f":"AND(#REF!,\"UqMdF0XLVnE=\")","v":{"$error":"#REF!"}},{"$f":"IF(#REF!,\"UqMdF0XLVnI=\",0)","v":{"$error":"#REF!"}},{"$f":"AND(#REF!,\"UqMdF0XLVnM=\")","v":{"$error":"#REF!"}},{"$f":"AND(#REF!,\"UqMdF0XLVnQ=\")","v":{"$error":"#REF!"}},{"$f":"AND(#REF!,\"UqMdF0XLVnU=\")","v":{"$error":"#REF!"}},{"$f":"AND(#REF!,\"UqMdF0XLVnY=\")","v":{"$error":"#REF!"}},{"$f":"AND(#REF!,\"UqMdF0XLVnc=\")","v":{"$error":"#REF!"}},{"$f":"AND(#REF!,\"UqMdF0XLVng=\")","v":{"$error":"#REF!"}},{"$f":"AND(#REF!,\"UqMdF0XLVnk=\")","v":{"$error":"#REF!"}},{"$f":"AND(#REF!,\"UqMdF0XLVno=\")","v":{"$error":"#REF!"}},{"$f":"AND(#REF!,\"UqMdF0XLVns=\")","v":{"$error":"#REF!"}},{"$f":"AND(#REF!,\"UqMdF0XLVnw=\")","v":{"$error":"#REF!"}},{"$f":"AND(#REF!,\"UqMdF0XLVn0=\")","v":{"$error":"#REF!"}},{"$f":"AND(#REF!,\"UqMdF0XLVn4=\")","v":{"$error":"#REF!"}},{"$f":"AND(#REF!,\"UqMdF0XLVn8=\")","v":{"$error":"#REF!"}},{"$f":"AND(#REF!,\"UqMdF0XLVoA=\")","v":{"$error":"#REF!"}},{"$f":"AND(#REF!,\"UqMdF0XLVoE=\")","v":{"$error":"#REF!"}},{"$f":"IF(#REF!,\"UqMdF0XLVoI=\",0)","v":{"$error":"#REF!"}},{"$f":"AND(#REF!,\"UqMdF0XLVoM=\")","v":{"$error":"#REF!"}},{"$f":"AND(#REF!,\"UqMdF0XLVoQ=\")","v":{"$error":"#REF!"}},{"$f":"AND(#REF!,\"UqMdF0XLVoU=\")","v":{"$error":"#REF!"}},{"$f":"AND(#REF!,\"UqMdF0XLVoY=\")","v":{"$error":"#REF!"}},{"$f":"AND(#REF!,\"UqMdF0XLVoc=\")","v":{"$error":"#REF!"}},{"$f":"AND(#REF!,\"UqMdF0XLVog=\")","v":{"$error":"#REF!"}},{"$f":"AND(#REF!,\"UqMdF0XLVok=\")","v":{"$error":"#REF!"}},{"$f":"AND(#REF!,\"UqMdF0XLVoo=\")","v":{"$error":"#REF!"}},{"$f":"AND(#REF!,\"UqMdF0XLVos=\")","v":{"$error":"#REF!"}},{"$f":"AND(#REF!,\"UqMdF0XLVow=\")","v":{"$error":"#REF!"}},{"$f":"AND(#REF!,\"UqMdF0XLVo0=\")","v":{"$error":"#REF!"}},{"$f":"AND(#REF!,\"UqMdF0XLVo4=\")","v":{"$error":"#REF!"}},{"$f":"AND(#REF!,\"UqMdF0XLVo8=\")","v":{"$error":"#REF!"}},{"$f":"AND(#REF!,\"UqMdF0XLVpA=\")","v":{"$error":"#REF!"}},{"$f":"AND(#REF!,\"UqMdF0XLVpE=\")","v":{"$error":"#REF!"}},{"$f":"IF(#REF!,\"UqMdF0XLVpI=\",0)","v":{"$error":"#REF!"}},{"$f":"AND(#REF!,\"UqMdF0XLVpM=\")","v":{"$error":"#REF!"}},{"$f":"AND(#REF!,\"UqMdF0XLVpQ=\")","v":{"$error":"#REF!"}},{"$f":"AND(#REF!,\"UqMdF0XLVpU=\")","v":{"$error":"#REF!"}},{"$f":"AND(#REF!,\"UqMdF0XLVpY=\")","v":{"$error":"#REF!"}},{"$f":"AND(#REF!,\"UqMdF0XLVpc=\")","v":{"$error":"#REF!"}},{"$f":"AND(#REF!,\"UqMdF0XLVpg=\")","v":{"$error":"#REF!"}},{"$f":"AND(#REF!,\"UqMdF0XLVpk=\")","v":{"$error":"#REF!"}},{"$f":"AND(#REF!,\"UqMdF0XLVpo=\")","v":{"$error":"#REF!"}},{"$f":"AND(#REF!,\"UqMdF0XLVps=\")","v":{"$error":"#REF!"}},{"$f":"AND(#REF!,\"UqMdF0XLVpw=\")","v":{"$error":"#REF!"}},{"$f":"AND(#REF!,\"UqMdF0XLVp0=\")","v":{"$error":"#REF!"}},{"$f":"AND(#REF!,\"UqMdF0XLVp4=\")","v":{"$error":"#REF!"}},{"$f":"AND(#REF!,\"UqMdF0XLVp8=\")","v":{"$error":"#REF!"}},{"$f":"AND(#REF!,\"UqMdF0XLVqA=\")","v":{"$error":"#REF!"}},{"$f":"AND(#REF!,\"UqMdF0XLVqE=\")","v":{"$error":"#REF!"}},{"$f":"IF(#REF!,\"UqMdF0XLVqI=\",0)","v":{"$error":"#REF!"}},{"$f":"AND(#REF!,\"UqMdF0XLVqM=\")","v":{"$error":"#REF!"}},{"$f":"AND(#REF!,\"UqMdF0XLVqQ=\")","v":{"$error":"#REF!"}},{"$f":"AND(#REF!,\"UqMdF0XLVqU=\")","v":{"$error":"#REF!"}},{"$f":"AND(#REF!,\"UqMdF0XLVqY=\")","v":{"$error":"#REF!"}},{"$f":"AND(#REF!,\"UqMdF0XLVqc=\")","v":{"$error":"#REF!"}},{"$f":"AND(#REF!,\"UqMdF0XLVqg=\")","v":{"$error":"#REF!"}},{"$f":"AND(#REF!,\"UqMdF0XLVqk=\")","v":{"$error":"#REF!"}},{"$f":"AND(#REF!,\"UqMdF0XLVqo=\")","v":{"$error":"#REF!"}},{"$f":"AND(#REF!,\"UqMdF0XLVqs=\")","v":{"$error":"#REF!"}},{"$f":"AND(#REF!,\"UqMdF0XLVqw=\")","v":{"$error":"#REF!"}},{"$f":"AND(#REF!,\"UqMdF0XLVq0=\")","v":{"$error":"#REF!"}},{"$f":"AND(#REF!,\"UqMdF0XLVq4=\")","v":{"$error":"#REF!"}},{"$f":"AND(#REF!,\"UqMdF0XLVq8=\")","v":{"$error":"#REF!"}},{"$f":"AND(#REF!,\"UqMdF0XLVrA=\")","v":{"$error":"#REF!"}},{"$f":"AND(#REF!,\"UqMdF0XLVrE=\")","v":{"$error":"#REF!"}},{"$f":"IF(#REF!,\"UqMdF0XLVrI=\",0)","v":{"$error":"#REF!"}},{"$f":"AND(#REF!,\"UqMdF0XLVrM=\")","v":{"$error":"#REF!"}},{"$f":"AND(#REF!,\"UqMdF0XLVrQ=\")","v":{"$error":"#REF!"}},{"$f":"AND(#REF!,\"UqMdF0XLVrU=\")","v":{"$error":"#REF!"}},{"$f":"AND(#REF!,\"UqMdF0XLVrY=\")","v":{"$error":"#REF!"}},{"$f":"AND(#REF!,\"UqMdF0XLVrc=\")","v":{"$error":"#REF!"}},{"$f":"AND(#REF!,\"UqMdF0XLVrg=\")","v":{"$error":"#REF!"}},{"$f":"AND(#REF!,\"UqMdF0XLVrk=\")","v":{"$error":"#REF!"}},{"$f":"AND(#REF!,\"UqMdF0XLVro=\")","v":{"$error":"#REF!"}},{"$f":"AND(#REF!,\"UqMdF0XLVrs=\")","v":{"$error":"#REF!"}},{"$f":"AND(#REF!,\"UqMdF0XLVrw=\")","v":{"$error":"#REF!"}},{"$f":"AND(#REF!,\"UqMdF0XLVr0=\")","v":{"$error":"#REF!"}},{"$f":"AND(#REF!,\"UqMdF0XLVr4=\")","v":{"$error":"#REF!"}},{"$f":"AND(#REF!,\"UqMdF0XLVr8=\")","v":{"$error":"#REF!"}},{"$f":"AND(#REF!,\"UqMdF0XLVsA=\")","v":{"$error":"#REF!"}},{"$f":"AND(#REF!,\"UqMdF0XLVsE=\")","v":{"$error":"#REF!"}},{"$f":"IF(#REF!,\"UqMdF0XLVsI=\",0)","v":{"$error":"#REF!"}},{"$f":"AND(#REF!,\"UqMdF0XLVsM=\")","v":{"$error":"#REF!"}},{"$f":"AND(#REF!,\"UqMdF0XLVsQ=\")","v":{"$error":"#REF!"}},{"$f":"AND(#REF!,\"UqMdF0XLVsU=\")","v":{"$error":"#REF!"}},{"$f":"AND(#REF!,\"UqMdF0XLVsY=\")","v":{"$error":"#REF!"}},{"$f":"AND(#REF!,\"UqMdF0XLVsc=\")","v":{"$error":"#REF!"}},{"$f":"AND(#REF!,\"UqMdF0XLVsg=\")","v":{"$error":"#REF!"}},{"$f":"AND(#REF!,\"UqMdF0XLVsk=\")","v":{"$error":"#REF!"}},{"$f":"AND(#REF!,\"UqMdF0XLVso=\")","v":{"$error":"#REF!"}},{"$f":"AND(#REF!,\"UqMdF0XLVss=\")","v":{"$error":"#REF!"}},{"$f":"AND(#REF!,\"UqMdF0XLVsw=\")","v":{"$error":"#REF!"}},{"$f":"AND(#REF!,\"UqMdF0XLVs0=\")","v":{"$error":"#REF!"}},{"$f":"AND(#REF!,\"UqMdF0XLVs4=\")","v":{"$error":"#REF!"}},{"$f":"AND(#REF!,\"UqMdF0XLVs8=\")","v":{"$error":"#REF!"}},{"$f":"AND(#REF!,\"UqMdF0XLVtA=\")","v":{"$error":"#REF!"}},{"$f":"AND(#REF!,\"UqMdF0XLVtE=\")","v":{"$error":"#REF!"}},{"$f":"IF(#REF!,\"UqMdF0XLVtI=\",0)","v":{"$error":"#REF!"}},{"$f":"AND(#REF!,\"UqMdF0XLVtM=\")","v":{"$error":"#REF!"}},{"$f":"AND(#REF!,\"UqMdF0XLVtQ=\")","v":{"$error":"#REF!"}},{"$f":"AND(#REF!,\"UqMdF0XLVtU=\")","v":{"$error":"#REF!"}},{"$f":"AND(#REF!,\"UqMdF0XLVtY=\")","v":{"$error":"#REF!"}},{"$f":"AND(#REF!,\"UqMdF0XLVtc=\")","v":{"$error":"#REF!"}},{"$f":"AND(#REF!,\"UqMdF0XLVtg=\")","v":{"$error":"#REF!"}},{"$f":"AND(#REF!,\"UqMdF0XLVtk=\")","v":{"$error":"#REF!"}},{"$f":"AND(#REF!,\"UqMdF0XLVto=\")","v":{"$error":"#REF!"}},{"$f":"AND(#REF!,\"UqMdF0XLVts=\")","v":{"$error":"#REF!"}},{"$f":"AND(#REF!,\"UqMdF0XLVtw=\")","v":{"$error":"#REF!"}},{"$f":"AND(#REF!,\"UqMdF0XLVt0=\")","v":{"$error":"#REF!"}},{"$f":"AND(#REF!,\"UqMdF0XLVt4=\")","v":{"$error":"#REF!"}},{"$f":"AND(#REF!,\"UqMdF0XLVt8=\")","v":{"$error":"#REF!"}},{"$f":"AND(#REF!,\"UqMdF0XLVuA=\")","v":{"$error":"#REF!"}},{"$f":"AND(#REF!,\"UqMdF0XLVuE=\")","v":{"$error":"#REF!"}},{"$f":"IF(#REF!,\"UqMdF0XLVuI=\",0)","v":{"$error":"#REF!"}},{"$f":"AND(#REF!,\"UqMdF0XLVuM=\")","v":{"$error":"#REF!"}},{"$f":"AND(#REF!,\"UqMdF0XLVuQ=\")","v":{"$error":"#REF!"}},{"$f":"AND(#REF!,\"UqMdF0XLVuU=\")","v":{"$error":"#REF!"}},{"$f":"AND(#REF!,\"UqMdF0XLVuY=\")","v":{"$error":"#REF!"}},{"$f":"AND(#REF!,\"UqMdF0XLVuc=\")","v":{"$error":"#REF!"}},{"$f":"AND(#REF!,\"UqMdF0XLVug=\")","v":{"$error":"#REF!"}},{"$f":"AND(#REF!,\"UqMdF0XLVuk=\")","v":{"$error":"#REF!"}},{"$f":"AND(#REF!,\"UqMdF0XLVuo=\")","v":{"$error":"#REF!"}},{"$f":"AND(#REF!,\"UqMdF0XLVus=\")","v":{"$error":"#REF!"}},{"$f":"AND(#REF!,\"UqMdF0XLVuw=\")","v":{"$error":"#REF!"}},{"$f":"AND(#REF!,\"UqMdF0XLVu0=\")","v":{"$error":"#REF!"}},{"$f":"AND(#REF!,\"UqMdF0XLVu4=\")","v":{"$error":"#REF!"}},{"$f":"AND(#REF!,\"UqMdF0XLVu8=\")","v":{"$error":"#REF!"}},{"$f":"AND(#REF!,\"UqMdF0XLVvA=\")","v":{"$error":"#REF!"}},{"$f":"AND(#REF!,\"UqMdF0XLVvE=\")","v":{"$error":"#REF!"}},{"$f":"IF(#REF!,\"UqMdF0XLVvI=\",0)","v":{"$error":"#REF!"}},{"$f":"AND(#REF!,\"UqMdF0XLVvM=\")","v":{"$error":"#REF!"}},{"$f":"AND(#REF!,\"UqMdF0XLVvQ=\")","v":{"$error":"#REF!"}},{"$f":"AND(#REF!,\"UqMdF0XLVvU=\")","v":{"$error":"#REF!"}},{"$f":"AND(#REF!,\"UqMdF0XLVvY=\")","v":{"$error":"#REF!"}},{"$f":"AND(#REF!,\"UqMdF0XLVvc=\")","v":{"$error":"#REF!"}},{"$f":"AND(#REF!,\"UqMdF0XLVvg=\")","v":{"$error":"#REF!"}},{"$f":"AND(#REF!,\"UqMdF0XLVvk=\")","v":{"$error":"#REF!"}},{"$f":"AND(#REF!,\"UqMdF0XLVvo=\")","v":{"$error":"#REF!"}},{"$f":"AND(#REF!,\"UqMdF0XLVvs=\")","v":{"$error":"#REF!"}},{"$f":"AND(#REF!,\"UqMdF0XLVvw=\")","v":{"$error":"#REF!"}},{"$f":"AND(#REF!,\"UqMdF0XLVv0=\")","v":{"$error":"#REF!"}},{"$f":"AND(#REF!,\"UqMdF0XLVv4=\")","v":{"$error":"#REF!"}},{"$f":"AND(#REF!,\"UqMdF0XLVv8=\")","v":{"$error":"#REF!"}}]
[{"$f":"AND(#REF!,\"aAGjuBP4MQA=\")","v":{"$error":"#REF!"}},{"$f":"AND(#REF!,\"aAGjuBP4MQE=\")","v":{"$error":"#REF!"}},{"$f":"IF(#REF!,\"aAGjuBP4MQI=\",0)","v":{"$error":"#REF!"}},{"$f":"AND(#REF!,\"aAGjuBP4MQM=\")","v":{"$error":"#REF!"}},{"$f":"AND(#REF!,\"aAGjuBP4MQQ=\")","v":{"$error":"#REF!"}},{"$f":"AND(#REF!,\"aAGjuBP4MQU=\")","v":{"$error":"#REF!"}},{"$f":"AND(#REF!,\"aAGjuBP4MQY=\")","v":{"$error":"#REF!"}},{"$f":"AND(#REF!,\"aAGjuBP4MQc=\")","v":{"$error":"#REF!"}},{"$f":"AND(#REF!,\"aAGjuBP4MQg=\")","v":{"$error":"#REF!"}},{"$f":"AND(#REF!,\"aAGjuBP4MQk=\")","v":{"$error":"#REF!"}},{"$f":"AND(#REF!,\"aAGjuBP4MQo=\")","v":{"$error":"#REF!"}},{"$f":"AND(#REF!,\"aAGjuBP4MQs=\")","v":{"$error":"#REF!"}},{"$f":"AND(#REF!,\"aAGjuBP4MQw=\")","v":{"$error":"#REF!"}},{"$f":"AND(#REF!,\"aAGjuBP4MQ0=\")","v":{"$error":"#REF!"}},{"$f":"AND(#REF!,\"aAGjuBP4MQ4=\")","v":{"$error":"#REF!"}},{"$f":"AND(#REF!,\"aAGjuBP4MQ8=\")","v":{"$error":"#REF!"}},{"$f":"AND(#REF!,\"aAGjuBP4MRA=\")","v":{"$error":"#REF!"}},{"$f":"AND(#REF!,\"aAGjuBP4MRE=\")","v":{"$error":"#REF!"}},{"$f":"IF(#REF!,\"aAGjuBP4MRI=\",0)","v":{"$error":"#REF!"}},{"$f":"AND(#REF!,\"aAGjuBP4MRM=\")","v":{"$error":"#REF!"}},{"$f":"AND(#REF!,\"aAGjuBP4MRQ=\")","v":{"$error":"#REF!"}},{"$f":"AND(#REF!,\"aAGjuBP4MRU=\")","v":{"$error":"#REF!"}},{"$f":"AND(#REF!,\"aAGjuBP4MRY=\")","v":{"$error":"#REF!"}},{"$f":"AND(#REF!,\"aAGjuBP4MRc=\")","v":{"$error":"#REF!"}},{"$f":"AND(#REF!,\"aAGjuBP4MRg=\")","v":{"$error":"#REF!"}},{"$f":"AND(#REF!,\"aAGjuBP4MRk=\")","v":{"$error":"#REF!"}},{"$f":"AND(#REF!,\"aAGjuBP4MRo=\")","v":{"$error":"#REF!"}},{"$f":"AND(#REF!,\"aAGjuBP4MRs=\")","v":{"$error":"#REF!"}},{"$f":"AND(#REF!,\"aAGjuBP4MRw=\")","v":{"$error":"#REF!"}},{"$f":"AND(#REF!,\"aAGjuBP4MR0=\")","v":{"$error":"#REF!"}},{"$f":"AND(#REF!,\"aAGjuBP4MR4=\")","v":{"$error":"#REF!"}},{"$f":"AND(#REF!,\"aAGjuBP4MR8=\")","v":{"$error":"#REF!"}},{"$f":"AND(#REF!,\"aAGjuBP4MSA=\")","v":{"$error":"#REF!"}},{"$f":"AND(#REF!,\"aAGjuBP4MSE=\")","v":{"$error":"#REF!"}},{"$f":"IF(#REF!,\"aAGjuBP4MSI=\",0)","v":{"$error":"#REF!"}},{"$f":"AND(#REF!,\"aAGjuBP4MSM=\")","v":{"$error":"#REF!"}},{"$f":"AND(#REF!,\"aAGjuBP4MSQ=\")","v":{"$error":"#REF!"}},{"$f":"AND(#REF!,\"aAGjuBP4MSU=\")","v":{"$error":"#REF!"}},{"$f":"AND(#REF!,\"aAGjuBP4MSY=\")","v":{"$error":"#REF!"}},{"$f":"AND(#REF!,\"aAGjuBP4MSc=\")","v":{"$error":"#REF!"}},{"$f":"AND(#REF!,\"aAGjuBP4MSg=\")","v":{"$error":"#REF!"}},{"$f":"AND(#REF!,\"aAGjuBP4MSk=\")","v":{"$error":"#REF!"}},{"$f":"AND(#REF!,\"aAGjuBP4MSo=\")","v":{"$error":"#REF!"}},{"$f":"AND(#REF!,\"aAGjuBP4MSs=\")","v":{"$error":"#REF!"}},{"$f":"AND(#REF!,\"aAGjuBP4MSw=\")","v":{"$error":"#REF!"}},{"$f":"AND(#REF!,\"aAGjuBP4MS0=\")","v":{"$error":"#REF!"}},{"$f":"AND(#REF!,\"aAGjuBP4MS4=\")","v":{"$error":"#REF!"}},{"$f":"AND(#REF!,\"aAGjuBP4MS8=\")","v":{"$error":"#REF!"}},{"$f":"AND(#REF!,\"aAGjuBP4MTA=\")","v":{"$error":"#REF!"}},{"$f":"AND(#REF!,\"aAGjuBP4MTE=\")","v":{"$error":"#REF!"}},{"$f":"IF(#REF!,\"aAGjuBP4MTI=\",0)","v":{"$error":"#REF!"}},{"$f":"AND(#REF!,\"aAGjuBP4MTM=\")","v":{"$error":"#REF!"}},{"$f":"AND(#REF!,\"aAGjuBP4MTQ=\")","v":{"$error":"#REF!"}},{"$f":"AND(#REF!,\"aAGjuBP4MTU=\")","v":{"$error":"#REF!"}},{"$f":"AND(#REF!,\"aAGjuBP4MTY=\")","v":{"$error":"#REF!"}},{"$f":"AND(#REF!,\"aAGjuBP4MTc=\")","v":{"$error":"#REF!"}},{"$f":"AND(#REF!,\"aAGjuBP4MTg=\")","v":{"$error":"#REF!"}},{"$f":"AND(#REF!,\"aAGjuBP4MTk=\")","v":{"$error":"#REF!"}},{"$f":"AND(#REF!,\"aAGjuBP4MTo=\")","v":{"$error":"#REF!"}},{"$f":"AND(#REF!,\"aAGjuBP4MTs=\")","v":{"$error":"#REF!"}},{"$f":"AND(#REF!,\"aAGjuBP4MTw=\")","v":{"$error":"#REF!"}},{"$f":"AND(#REF!,\"aAGjuBP4MT0=\")","v":{"$error":"#REF!"}},{"$f":"AND(#REF!,\"aAGjuBP4MT4=\")","v":{"$error":"#REF!"}},{"$f":"AND(#REF!,\"aAGjuBP4MT8=\")","v":{"$error":"#REF!"}},{"$f":"AND(#REF!,\"aAGjuBP4MUA=\")","v":{"$error":"#REF!"}},{"$f":"AND(#REF!,\"aAGjuBP4MUE=\")","v":{"$error":"#REF!"}},{"$f":"IF(#REF!,\"aAGjuBP4MUI=\",0)","v":{"$error":"#REF!"}},{"$f":"AND(#REF!,\"aAGjuBP4MUM=\")","v":{"$error":"#REF!"}},{"$f":"AND(#REF!,\"aAGjuBP4MUQ=\")","v":{"$error":"#REF!"}},{"$f":"AND(#REF!,\"aAGjuBP4MUU=\")","v":{"$error":"#REF!"}},{"$f":"AND(#REF!,\"aAGjuBP4MUY=\")","v":{"$error":"#REF!"}},{"$f":"AND(#REF!,\"aAGjuBP4MUc=\")","v":{"$error":"#REF!"}},{"$f":"AND(#REF!,\"aAGjuBP4MUg=\")","v":{"$error":"#REF!"}},{"$f":"AND(#REF!,\"aAGjuBP4MUk=\")","v":{"$error":"#REF!"}},{"$f":"AND(#REF!,\"aAGjuBP4MUo=\")","v":{"$error":"#REF!"}},{"$f":"AND(#REF!,\"aAGjuBP4MUs=\")","v":{"$error":"#REF!"}},{"$f":"AND(#REF!,\"aAGjuBP4MUw=\")","v":{"$error":"#REF!"}},{"$f":"AND(#REF!,\"aAGjuBP4MU0=\")","v":{"$error":"#REF!"}},{"$f":"AND(#REF!,\"aAGjuBP4MU4=\")","v":{"$error":"#REF!"}},{"$f":"AND(#REF!,\"aAGjuBP4MU8=\")","v":{"$error":"#REF!"}},{"$f":"AND(#REF!,\"aAGjuBP4MVA=\")","v":{"$error":"#REF!"}},{"$f":"AND(#REF!,\"aAGjuBP4MVE=\")","v":{"$error":"#REF!"}},{"$f":"IF(#REF!,\"aAGjuBP4MVI=\",0)","v":{"$error":"#REF!"}},{"$f":"AND(#REF!,\"aAGjuBP4MVM=\")","v":{"$error":"#REF!"}},{"$f":"AND(#REF!,\"aAGjuBP4MVQ=\")","v":{"$error":"#REF!"}},{"$f":"AND(#REF!,\"aAGjuBP4MVU=\")","v":{"$error":"#REF!"}},{"$f":"AND(#REF!,\"aAGjuBP4MVY=\")","v":{"$error":"#REF!"}},{"$f":"AND(#REF!,\"aAGjuBP4MVc=\")","v":{"$error":"#REF!"}},{"$f":"AND(#REF!,\"aAGjuBP4MVg=\")","v":{"$error":"#REF!"}},{"$f":"AND(#REF!,\"aAGjuBP4MVk=\")","v":{"$error":"#REF!"}},{"$f":"AND(#REF!,\"aAGjuBP4MVo=\")","v":{"$error":"#REF!"}},{"$f":"AND(#REF!,\"aAGjuBP4MVs=\")","v":{"$error":"#REF!"}},{"$f":"AND(#REF!,\"aAGjuBP4MVw=\")","v":{"$error":"#REF!"}},{"$f":"AND(#REF!,\"aAGjuBP4MV0=\")","v":{"$error":"#REF!"}},{"$f":"AND(#REF!,\"aAGjuBP4MV4=\")","v":{"$error":"#REF!"}},{"$f":"AND(#REF!,\"aAGjuBP4MV8=\")","v":{"$error":"#REF!"}},{"$f":"AND(#REF!,\"aAGjuBP4MWA=\")","v":{"$error":"#REF!"}},{"$f":"AND(#REF!,\"aAGjuBP4MWE=\")","v":{"$error":"#REF!"}},{"$f":"IF(#REF!,\"aAGjuBP4MWI=\",0)","v":{"$error":"#REF!"}},{"$f":"AND(#REF!,\"aAGjuBP4MWM=\")","v":{"$error":"#REF!"}},{"$f":"AND(#REF!,\"aAGjuBP4MWQ=\")","v":{"$error":"#REF!"}},{"$f":"AND(#REF!,\"aAGjuBP4MWU=\")","v":{"$error":"#REF!"}},{"$f":"AND(#REF!,\"aAGjuBP4MWY=\")","v":{"$error":"#REF!"}},{"$f":"AND(#REF!,\"aAGjuBP4MWc=\")","v":{"$error":"#REF!"}},{"$f":"AND(#REF!,\"aAGjuBP4MWg=\")","v":{"$error":"#REF!"}},{"$f":"AND(#REF!,\"aAGjuBP4MWk=\")","v":{"$error":"#REF!"}},{"$f":"AND(#REF!,\"aAGjuBP4MWo=\")","v":{"$error":"#REF!"}},{"$f":"AND(#REF!,\"aAGjuBP4MWs=\")","v":{"$error":"#REF!"}},{"$f":"AND(#REF!,\"aAGjuBP4MWw=\")","v":{"$error":"#REF!"}},{"$f":"AND(#REF!,\"aAGjuBP4MW0=\")","v":{"$error":"#REF!"}},{"$f":"AND(#REF!,\"aAGjuBP4MW4=\")","v":{"$error":"#REF!"}},{"$f":"AND(#REF!,\"aAGjuBP4MW8=\")","v":{"$error":"#REF!"}},{"$f":"AND(#REF!,\"aAGjuBP4MXA=\")","v":{"$error":"#REF!"}},{"$f":"AND(#REF!,\"aAGjuBP4MXE=\")","v":{"$error":"#REF!"}},{"$f":"IF(#REF!,\"aAGjuBP4MXI=\",0)","v":{"$error":"#REF!"}},{"$f":"AND(#REF!,\"aAGjuBP4MXM=\")","v":{"$error":"#REF!"}},{"$f":"AND(#REF!,\"aAGjuBP4MXQ=\")","v":{"$error":"#REF!"}},{"$f":"AND(#REF!,\"aAGjuBP4MXU=\")","v":{"$error":"#REF!"}},{"$f":"AND(#REF!,\"aAGjuBP4MXY=\")","v":{"$error":"#REF!"}},{"$f":"AND(#REF!,\"aAGjuBP4MXc=\")","v":{"$error":"#REF!"}},{"$f":"AND(#REF!,\"aAGjuBP4MXg=\")","v":{"$error":"#REF!"}},{"$f":"AND(#REF!,\"aAGjuBP4MXk=\")","v":{"$error":"#REF!"}},{"$f":"AND(#REF!,\"aAGjuBP4MXo=\")","v":{"$error":"#REF!"}},{"$f":"AND(#REF!,\"aAGjuBP4MXs=\")","v":{"$error":"#REF!"}},{"$f":"AND(#REF!,\"aAGjuBP4MXw=\")","v":{"$error":"#REF!"}},{"$f":"AND(#REF!,\"aAGjuBP4MX0=\")","v":{"$error":"#REF!"}},{"$f":"AND(#REF!,\"aAGjuBP4MX4=\")","v":{"$error":"#REF!"}},{"$f":"AND(#REF!,\"aAGjuBP4MX8=\")","v":{"$error":"#REF!"}},{"$f":"AND(#REF!,\"aAGjuBP4MYA=\")","v":{"$error":"#REF!"}},{"$f":"AND(#REF!,\"aAGjuBP4MYE=\")","v":{"$error":"#REF!"}},{"$f":"IF(#REF!,\"aAGjuBP4MYI=\",0)","v":{"$error":"#REF!"}},{"$f":"AND(#REF!,\"aAGjuBP4MYM=\")","v":{"$error":"#REF!"}},{"$f":"AND(#REF!,\"aAGjuBP4MYQ=\")","v":{"$error":"#REF!"}},{"$f":"AND(#REF!,\"aAGjuBP4MYU=\")","v":{"$error":"#REF!"}},{"$f":"AND(#REF!,\"aAGjuBP4MYY=\")","v":{"$error":"#REF!"}},{"$f":"AND(#REF!,\"aAGjuBP4MYc=\")","v":{"$error":"#REF!"}},{"$f":"AND(#REF!,\"aAGjuBP4MYg=\")","v":{"$error":"#REF!"}},{"$f":"AND(#REF!,\"aAGjuBP4MYk=\")","v":{"$error":"#REF!"}},{"$f":"AND(#REF!,\"aAGjuBP4MYo=\")","v":{"$error":"#REF!"}},{"$f":"AND(#REF!,\"aAGjuBP4MYs=\")","v":{"$error":"#REF!"}},{"$f":"AND(#REF!,\"aAGjuBP4MYw=\")","v":{"$error":"#REF!"}},{"$f":"AND(#REF!,\"aAGjuBP4MY0=\")","v":{"$error":"#REF!"}},{"$f":"AND(#REF!,\"aAGjuBP4MY4=\")","v":{"$error":"#REF!"}},{"$f":"AND(#REF!,\"aAGjuBP4MY8=\")","v":{"$error":"#REF!"}},{"$f":"AND(#REF!,\"aAGjuBP4MZA=\")","v":{"$error":"#REF!"}},{"$f":"AND(#REF!,\"aAGjuBP4MZE=\")","v":{"$error":"#REF!"}},{"$f":"IF(#REF!,\"aAGjuBP4MZI=\",0)","v":{"$error":"#REF!"}},{"$f":"AND(#REF!,\"aAGjuBP4MZM=\")","v":{"$error":"#REF!"}},{"$f":"AND(#REF!,\"aAGjuBP4MZQ=\")","v":{"$error":"#REF!"}},{"$f":"AND(#REF!,\"aAGjuBP4MZU=\")","v":{"$error":"#REF!"}},{"$f":"AND(#REF!,\"aAGjuBP4MZY=\")","v":{"$error":"#REF!"}},{"$f":"AND(#REF!,\"aAGjuBP4MZc=\")","v":{"$error":"#REF!"}},{"$f":"AND(#REF!,\"aAGjuBP4MZg=\")","v":{"$error":"#REF!"}},{"$f":"AND(#REF!,\"aAGjuBP4MZk=\")","v":{"$error":"#REF!"}},{"$f":"AND(#REF!,\"aAGjuBP4MZo=\")","v":{"$error":"#REF!"}},{"$f":"AND(#REF!,\"aAGjuBP4MZs=\")","v":{"$error":"#REF!"}},{"$f":"AND(#REF!,\"aAGjuBP4MZw=\")","v":{"$error":"#REF!"}},{"$f":"AND(#REF!,\"aAGjuBP4MZ0=\")","v":{"$error":"#REF!"}},{"$f":"AND(#REF!,\"aAGjuBP4MZ4=\")","v":{"$error":"#REF!"}},{"$f":"AND(#REF!,\"aAGjuBP4MZ8=\")","v":{"$error":"#REF!"}},{"$f":"AND(#REF!,\"aAGjuBP4MaA=\")","v":{"$error":"#REF!"}},{"$f":"AND(#REF!,\"aAGjuBP4MaE=\")","v":{"$error":"#REF!"}},{"$f":"IF(#REF!,\"aAGjuBP4MaI=\",0)","v":{"$error":"#REF!"}},{"$f":"AND(#REF!,\"aAGjuBP4MaM=\")","v":{"$error":"#REF!"}},{"$f":"AND(#REF!,\"aAGjuBP4MaQ=\")","v":{"$error":"#REF!"}},{"$f":"AND(#REF!,\"aAGjuBP4MaU=\")","v":{"$error":"#REF!"}},{"$f":"AND(#REF!,\"aAGjuBP4MaY=\")","v":{"$error":"#REF!"}},{"$f":"AND(#REF!,\"aAGjuBP4Mac=\")","v":{"$error":"#REF!"}},{"$f":"AND(#REF!,\"aAGjuBP4Mag=\")","v":{"$error":"#REF!"}},{"$f":"AND(#REF!,\"aAGjuBP4Mak=\")","v":{"$error":"#REF!"}},{"$f":"AND(#REF!,\"aAGjuBP4Mao=\")","v":{"$error":"#REF!"}},{"$f":"AND(#REF!,\"aAGjuBP4Mas=\")","v":{"$error":"#REF!"}},{"$f":"AND(#REF!,\"aAGjuBP4Maw=\")","v":{"$error":"#REF!"}},{"$f":"AND(#REF!,\"aAGjuBP4Ma0=\")","v":{"$error":"#REF!"}},{"$f":"AND(#REF!,\"aAGjuBP4Ma4=\")","v":{"$error":"#REF!"}},{"$f":"AND(#REF!,\"aAGjuBP4Ma8=\")","v":{"$error":"#REF!"}},{"$f":"AND(#REF!,\"aAGjuBP4MbA=\")","v":{"$error":"#REF!"}},{"$f":"AND(#REF!,\"aAGjuBP4MbE=\")","v":{"$error":"#REF!"}},{"$f":"IF(#REF!,\"aAGjuBP4MbI=\",0)","v":{"$error":"#REF!"}},{"$f":"AND(#REF!,\"aAGjuBP4MbM=\")","v":{"$error":"#REF!"}},{"$f":"AND(#REF!,\"aAGjuBP4MbQ=\")","v":{"$error":"#REF!"}},{"$f":"AND(#REF!,\"aAGjuBP4MbU=\")","v":{"$error":"#REF!"}},{"$f":"AND(#REF!,\"aAGjuBP4MbY=\")","v":{"$error":"#REF!"}},{"$f":"AND(#REF!,\"aAGjuBP4Mbc=\")","v":{"$error":"#REF!"}},{"$f":"AND(#REF!,\"aAGjuBP4Mbg=\")","v":{"$error":"#REF!"}},{"$f":"AND(#REF!,\"aAGjuBP4Mbk=\")","v":{"$error":"#REF!"}},{"$f":"AND(#REF!,\"aAGjuBP4Mbo=\")","v":{"$error":"#REF!"}},{"$f":"AND(#REF!,\"aAGjuBP4Mbs=\")","v":{"$error":"#REF!"}},{"$f":"AND(#REF!,\"aAGjuBP4Mbw=\")","v":{"$error":"#REF!"}},{"$f":"AND(#REF!,\"aAGjuBP4Mb0=\")","v":{"$error":"#REF!"}},{"$f":"AND(#REF!,\"aAGjuBP4Mb4=\")","v":{"$error":"#REF!"}},{"$f":"AND(#REF!,\"aAGjuBP4Mb8=\")","v":{"$error":"#REF!"}},{"$f":"AND(#REF!,\"aAGjuBP4McA=\")","v":{"$error":"#REF!"}},{"$f":"AND(#REF!,\"aAGjuBP4McE=\")","v":{"$error":"#REF!"}},{"$f":"IF(#REF!,\"aAGjuBP4McI=\",0)","v":{"$error":"#REF!"}},{"$f":"AND(#REF!,\"aAGjuBP4McM=\")","v":{"$error":"#REF!"}},{"$f":"AND(#REF!,\"aAGjuBP4McQ=\")","v":{"$error":"#REF!"}},{"$f":"AND(#REF!,\"aAGjuBP4McU=\")","v":{"$error":"#REF!"}},{"$f":"AND(#REF!,\"aAGjuBP4McY=\")","v":{"$error":"#REF!"}},{"$f":"AND(#REF!,\"aAGjuBP4Mcc=\")","v":{"$error":"#REF!"}},{"$f":"AND(#REF!,\"aAGjuBP4Mcg=\")","v":{"$error":"#REF!"}},{"$f":"AND(#REF!,\"aAGjuBP4Mck=\")","v":{"$error":"#REF!"}},{"$f":"AND(#REF!,\"aAGjuBP4Mco=\")","v":{"$error":"#REF!"}},{"$f":"AND(#REF!,\"aAGjuBP4Mcs=\")","v":{"$error":"#REF!"}},{"$f":"AND(#REF!,\"aAGjuBP4Mcw=\")","v":{"$error":"#REF!"}},{"$f":"AND(#REF!,\"aAGjuBP4Mc0=\")","v":{"$error":"#REF!"}},{"$f":"AND(#REF!,\"aAGjuBP4Mc4=\")","v":{"$error":"#REF!"}},{"$f":"AND(#REF!,\"aAGjuBP4Mc8=\")","v":{"$error":"#REF!"}},{"$f":"AND(#REF!,\"aAGjuBP4MdA=\")","v":{"$error":"#REF!"}},{"$f":"AND(#REF!,\"aAGjuBP4MdE=\")","v":{"$error":"#REF!"}},{"$f":"IF(#REF!,\"aAGjuBP4MdI=\",0)","v":{"$error":"#REF!"}},{"$f":"AND(#REF!,\"aAGjuBP4MdM=\")","v":{"$error":"#REF!"}},{"$f":"AND(#REF!,\"aAGjuBP4MdQ=\")","v":{"$error":"#REF!"}},{"$f":"AND(#REF!,\"aAGjuBP4MdU=\")","v":{"$error":"#REF!"}},{"$f":"AND(#REF!,\"aAGjuBP4MdY=\")","v":{"$error":"#REF!"}},{"$f":"AND(#REF!,\"aAGjuBP4Mdc=\")","v":{"$error":"#REF!"}},{"$f":"AND(#REF!,\"aAGjuBP4Mdg=\")","v":{"$error":"#REF!"}},{"$f":"AND(#REF!,\"aAGjuBP4Mdk=\")","v":{"$error":"#REF!"}},{"$f":"AND(#REF!,\"aAGjuBP4Mdo=\")","v":{"$error":"#REF!"}},{"$f":"AND(#REF!,\"aAGjuBP4Mds=\")","v":{"$error":"#REF!"}},{"$f":"AND(#REF!,\"aAGjuBP4Mdw=\")","v":{"$error":"#REF!"}},{"$f":"AND(#REF!,\"aAGjuBP4Md0=\")","v":{"$error":"#REF!"}},{"$f":"AND(#REF!,\"aAGjuBP4Md4=\")","v":{"$error":"#REF!"}},{"$f":"AND(#REF!,\"aAGjuBP4Md8=\")","v":{"$error":"#REF!"}},{"$f":"AND(#REF!,\"aAGjuBP4MeA=\")","v":{"$error":"#REF!"}},{"$f":"AND(#REF!,\"aAGjuBP4MeE=\")","v":{"$error":"#REF!"}},{"$f":"IF(#REF!,\"aAGjuBP4MeI=\",0)","v":{"$error":"#REF!"}},{"$f":"AND(#REF!,\"aAGjuBP4MeM=\")","v":{"$error":"#REF!"}},{"$f":"AND(#REF!,\"aAGjuBP4MeQ=\")","v":{"$error":"#REF!"}},{"$f":"AND(#REF!,\"aAGjuBP4MeU=\")","v":{"$error":"#REF!"}},{"$f":"AND(#REF!,\"aAGjuBP4MeY=\")","v":{"$error":"#REF!"}},{"$f":"AND(#REF!,\"aAGjuBP4Mec=\")","v":{"$error":"#REF!"}},{"$f":"AND(#REF!,\"aAGjuBP4Meg=\")","v":{"$error":"#REF!"}},{"$f":"AND(#REF!,\"aAGjuBP4Mek=\")","v":{"$error":"#REF!"}},{"$f":"AND(#REF!,\"aAGjuBP4Meo=\")","v":{"$error":"#REF!"}},{"$f":"AND(#REF!,\"aAGjuBP4Mes=\")","v":{"$error":"#REF!"}},{"$f":"AND(#REF!,\"aAGjuBP4Mew=\")","v":{"$error":"#REF!"}},{"$f":"AND(#REF!,\"aAGjuBP4Me0=\")","v":{"$error":"#REF!"}},{"$f":"AND(#REF!,\"aAGjuBP4Me4=\")","v":{"$error":"#REF!"}},{"$f":"AND(#REF!,\"aAGjuBP4Me8=\")","v":{"$error":"#REF!"}},{"$f":"AND(#REF!,\"aAGjuBP4MfA=\")","v":{"$error":"#REF!"}},{"$f":"AND(#REF!,\"aAGjuBP4MfE=\")","v":{"$error":"#REF!"}},{"$f":"IF(#REF!,\"aAGjuBP4MfI=\",0)","v":{"$error":"#REF!"}},{"$f":"AND(#REF!,\"aAGjuBP4MfM=\")","v":{"$error":"#REF!"}},{"$f":"AND(#REF!,\"aAGjuBP4MfQ=\")","v":{"$error":"#REF!"}},{"$f":"AND(#REF!,\"aAGjuBP4MfU=\")","v":{"$error":"#REF!"}},{"$f":"AND(#REF!,\"aAGjuBP4MfY=\")","v":{"$error":"#REF!"}},{"$f":"AND(#REF!,\"aAGjuBP4Mfc=\")","v":{"$error":"#REF!"}},{"$f":"AND(#REF!,\"aAGjuBP4Mfg=\")","v":{"$error":"#REF!"}},{"$f":"AND(#REF!,\"aAGjuBP4Mfk=\")","v":{"$error":"#REF!"}},{"$f":"AND(#REF!,\"aAGjuBP4Mfo=\")","v":{"$error":"#REF!"}},{"$f":"AND(#REF!,\"aAGjuBP4Mfs=\")","v":{"$error":"#REF!"}},{"$f":"AND(#REF!,\"aAGjuBP4Mfw=\")","v":{"$error":"#REF!"}},{"$f":"AND(#REF!,\"aAGjuBP4Mf0=\")","v":{"$error":"#REF!"}},{"$f":"AND(#REF!,\"aAGjuBP4Mf4=\")","v":{"$error":"#REF!"}},{"$f":"AND(#REF!,\"aAGjuBP4Mf8=\")","v":{"$error":"#REF!"}}]
[{"$f":"AND(#REF!,\"PJrDyWLbQwA=\")","v":{"$error":"#REF!"}},{"$f":"AND(#REF!,\"PJrDyWLbQwE=\")","v":{"$error":"#REF!"}},{"$f":"IF(#REF!,\"PJrDyWLbQwI=\",0)","v":{"$error":"#REF!"}},{"$f":"AND(#REF!,\"PJrDyWLbQwM=\")","v":{"$error":"#REF!"}},{"$f":"AND(#REF!,\"PJrDyWLbQwQ=\")","v":{"$error":"#REF!"}},{"$f":"AND(#REF!,\"PJrDyWLbQwU=\")","v":{"$error":"#REF!"}},{"$f":"AND(#REF!,\"PJrDyWLbQwY=\")","v":{"$error":"#REF!"}},{"$f":"AND(#REF!,\"PJrDyWLbQwc=\")","v":{"$error":"#REF!"}},{"$f":"AND(#REF!,\"PJrDyWLbQwg=\")","v":{"$error":"#REF!"}},{"$f":"AND(#REF!,\"PJrDyWLbQwk=\")","v":{"$error":"#REF!"}},{"$f":"AND(#REF!,\"PJrDyWLbQwo=\")","v":{"$error":"#REF!"}},{"$f":"AND(#REF!,\"PJrDyWLbQws=\")","v":{"$error":"#REF!"}},{"$f":"AND(#REF!,\"PJrDyWLbQww=\")","v":{"$error":"#REF!"}},{"$f":"AND(#REF!,\"PJrDyWLbQw0=\")","v":{"$error":"#REF!"}},{"$f":"AND(#REF!,\"PJrDyWLbQw4=\")","v":{"$error":"#REF!"}},{"$f":"AND(#REF!,\"PJrDyWLbQw8=\")","v":{"$error":"#REF!"}},{"$f":"AND(#REF!,\"PJrDyWLbQxA=\")","v":{"$error":"#REF!"}},{"$f":"AND(#REF!,\"PJrDyWLbQxE=\")","v":{"$error":"#REF!"}},{"$f":"IF(#REF!,\"PJrDyWLbQxI=\",0)","v":{"$error":"#REF!"}},{"$f":"AND(#REF!,\"PJrDyWLbQxM=\")","v":{"$error":"#REF!"}},{"$f":"AND(#REF!,\"PJrDyWLbQxQ=\")","v":{"$error":"#REF!"}},{"$f":"AND(#REF!,\"PJrDyWLbQxU=\")","v":{"$error":"#REF!"}},{"$f":"AND(#REF!,\"PJrDyWLbQxY=\")","v":{"$error":"#REF!"}},{"$f":"AND(#REF!,\"PJrDyWLbQxc=\")","v":{"$error":"#REF!"}},{"$f":"AND(#REF!,\"PJrDyWLbQxg=\")","v":{"$error":"#REF!"}},{"$f":"AND(#REF!,\"PJrDyWLbQxk=\")","v":{"$error":"#REF!"}},{"$f":"AND(#REF!,\"PJrDyWLbQxo=\")","v":{"$error":"#REF!"}},{"$f":"AND(#REF!,\"PJrDyWLbQxs=\")","v":{"$error":"#REF!"}},{"$f":"AND(#REF!,\"PJrDyWLbQxw=\")","v":{"$error":"#REF!"}},{"$f":"AND(#REF!,\"PJrDyWLbQx0=\")","v":{"$error":"#REF!"}},{"$f":"AND(#REF!,\"PJrDyWLbQx4=\")","v":{"$error":"#REF!"}},{"$f":"AND(#REF!,\"PJrDyWLbQx8=\")","v":{"$error":"#REF!"}},{"$f":"AND(#REF!,\"PJrDyWLbQyA=\")","v":{"$error":"#REF!"}},{"$f":"AND(#REF!,\"PJrDyWLbQyE=\")","v":{"$error":"#REF!"}},{"$f":"IF(#REF!,\"PJrDyWLbQyI=\",0)","v":{"$error":"#REF!"}},{"$f":"AND(#REF!,\"PJrDyWLbQyM=\")","v":{"$error":"#REF!"}},{"$f":"AND(#REF!,\"PJrDyWLbQyQ=\")","v":{"$error":"#REF!"}},{"$f":"AND(#REF!,\"PJrDyWLbQyU=\")","v":{"$error":"#REF!"}},{"$f":"AND(#REF!,\"PJrDyWLbQyY=\")","v":{"$error":"#REF!"}},{"$f":"AND(#REF!,\"PJrDyWLbQyc=\")","v":{"$error":"#REF!"}},{"$f":"AND(#REF!,\"PJrDyWLbQyg=\")","v":{"$error":"#REF!"}},{"$f":"AND(#REF!,\"PJrDyWLbQyk=\")","v":{"$error":"#REF!"}},{"$f":"AND(#REF!,\"PJrDyWLbQyo=\")","v":{"$error":"#REF!"}},{"$f":"AND(#REF!,\"PJrDyWLbQys=\")","v":{"$error":"#REF!"}},{"$f":"AND(#REF!,\"PJrDyWLbQyw=\")","v":{"$error":"#REF!"}},{"$f":"AND(#REF!,\"PJrDyWLbQy0=\")","v":{"$error":"#REF!"}},{"$f":"AND(#REF!,\"PJrDyWLbQy4=\")","v":{"$error":"#REF!"}},{"$f":"AND(#REF!,\"PJrDyWLbQy8=\")","v":{"$error":"#REF!"}},{"$f":"AND(#REF!,\"PJrDyWLbQzA=\")","v":{"$error":"#REF!"}},{"$f":"AND(#REF!,\"PJrDyWLbQzE=\")","v":{"$error":"#REF!"}},{"$f":"IF(#REF!,\"PJrDyWLbQzI=\",0)","v":{"$error":"#REF!"}},{"$f":"AND(#REF!,\"PJrDyWLbQzM=\")","v":{"$error":"#REF!"}},{"$f":"AND(#REF!,\"PJrDyWLbQzQ=\")","v":{"$error":"#REF!"}},{"$f":"AND(#REF!,\"PJrDyWLbQzU=\")","v":{"$error":"#REF!"}},{"$f":"AND(#REF!,\"PJrDyWLbQzY=\")","v":{"$error":"#REF!"}},{"$f":"AND(#REF!,\"PJrDyWLbQzc=\")","v":{"$error":"#REF!"}},{"$f":"AND(#REF!,\"PJrDyWLbQzg=\")","v":{"$error":"#REF!"}},{"$f":"AND(#REF!,\"PJrDyWLbQzk=\")","v":{"$error":"#REF!"}},{"$f":"AND(#REF!,\"PJrDyWLbQzo=\")","v":{"$error":"#REF!"}},{"$f":"AND(#REF!,\"PJrDyWLbQzs=\")","v":{"$error":"#REF!"}},{"$f":"AND(#REF!,\"PJrDyWLbQzw=\")","v":{"$error":"#REF!"}},{"$f":"AND(#REF!,\"PJrDyWLbQz0=\")","v":{"$error":"#REF!"}},{"$f":"AND(#REF!,\"PJrDyWLbQz4=\")","v":{"$error":"#REF!"}},{"$f":"AND(#REF!,\"PJrDyWLbQz8=\")","v":{"$error":"#REF!"}},{"$f":"AND(#REF!,\"PJrDyWLbQ0A=\")","v":{"$error":"#REF!"}},{"$f":"AND(#REF!,\"PJrDyWLbQ0E=\")","v":{"$error":"#REF!"}},{"$f":"IF(#REF!,\"PJrDyWLbQ0I=\",0)","v":{"$error":"#REF!"}},{"$f":"AND(#REF!,\"PJrDyWLbQ0M=\")","v":{"$error":"#REF!"}},{"$f":"AND(#REF!,\"PJrDyWLbQ0Q=\")","v":{"$error":"#REF!"}},{"$f":"AND(#REF!,\"PJrDyWLbQ0U=\")","v":{"$error":"#REF!"}},{"$f":"AND(#REF!,\"PJrDyWLbQ0Y=\")","v":{"$error":"#REF!"}},{"$f":"AND(#REF!,\"PJrDyWLbQ0c=\")","v":{"$error":"#REF!"}},{"$f":"AND(#REF!,\"PJrDyWLbQ0g=\")","v":{"$error":"#REF!"}},{"$f":"AND(#REF!,\"PJrDyWLbQ0k=\")","v":{"$error":"#REF!"}},{"$f":"AND(#REF!,\"PJrDyWLbQ0o=\")","v":{"$error":"#REF!"}},{"$f":"AND(#REF!,\"PJrDyWLbQ0s=\")","v":{"$error":"#REF!"}},{"$f":"AND(#REF!,\"PJrDyWLbQ0w=\")","v":{"$error":"#REF!"}},{"$f":"AND(#REF!,\"PJrDyWLbQ00=\")","v":{"$error":"#REF!"}},{"$f":"AND(#REF!,\"PJrDyWLbQ04=\")","v":{"$error":"#REF!"}},{"$f":"AND(#REF!,\"PJrDyWLbQ08=\")","v":{"$error":"#REF!"}},{"$f":"AND(#REF!,\"PJrDyWLbQ1A=\")","v":{"$error":"#REF!"}},{"$f":"AND(#REF!,\"PJrDyWLbQ1E=\")","v":{"$error":"#REF!"}},{"$f":"IF(#REF!,\"PJrDyWLbQ1I=\",0)","v":{"$error":"#REF!"}},{"$f":"AND(#REF!,\"PJrDyWLbQ1M=\")","v":{"$error":"#REF!"}},{"$f":"AND(#REF!,\"PJrDyWLbQ1Q=\")","v":{"$error":"#REF!"}},{"$f":"AND(#REF!,\"PJrDyWLbQ1U=\")","v":{"$error":"#REF!"}},{"$f":"AND(#REF!,\"PJrDyWLbQ1Y=\")","v":{"$error":"#REF!"}},{"$f":"AND(#REF!,\"PJrDyWLbQ1c=\")","v":{"$error":"#REF!"}},{"$f":"AND(#REF!,\"PJrDyWLbQ1g=\")","v":{"$error":"#REF!"}},{"$f":"AND(#REF!,\"PJrDyWLbQ1k=\")","v":{"$error":"#REF!"}},{"$f":"AND(#REF!,\"PJrDyWLbQ1o=\")","v":{"$error":"#REF!"}},{"$f":"AND(#REF!,\"PJrDyWLbQ1s=\")","v":{"$error":"#REF!"}},{"$f":"AND(#REF!,\"PJrDyWLbQ1w=\")","v":{"$error":"#REF!"}},{"$f":"AND(#REF!,\"PJrDyWLbQ10=\")","v":{"$error":"#REF!"}},{"$f":"AND(#REF!,\"PJrDyWLbQ14=\")","v":{"$error":"#REF!"}},{"$f":"AND(#REF!,\"PJrDyWLbQ18=\")","v":{"$error":"#REF!"}},{"$f":"AND(#REF!,\"PJrDyWLbQ2A=\")","v":{"$error":"#REF!"}},{"$f":"AND(#REF!,\"PJrDyWLbQ2E=\")","v":{"$error":"#REF!"}},{"$f":"IF(#REF!,\"PJrDyWLbQ2I=\",0)","v":{"$error":"#REF!"}},{"$f":"AND(#REF!,\"PJrDyWLbQ2M=\")","v":{"$error":"#REF!"}},{"$f":"AND(#REF!,\"PJrDyWLbQ2Q=\")","v":{"$error":"#REF!"}},{"$f":"AND(#REF!,\"PJrDyWLbQ2U=\")","v":{"$error":"#REF!"}},{"$f":"AND(#REF!,\"PJrDyWLbQ2Y=\")","v":{"$error":"#REF!"}},{"$f":"AND(#REF!,\"PJrDyWLbQ2c=\")","v":{"$error":"#REF!"}},{"$f":"AND(#REF!,\"PJrDyWLbQ2g=\")","v":{"$error":"#REF!"}},{"$f":"AND(#REF!,\"PJrDyWLbQ2k=\")","v":{"$error":"#REF!"}},{"$f":"AND(#REF!,\"PJrDyWLbQ2o=\")","v":{"$error":"#REF!"}},{"$f":"AND(#REF!,\"PJrDyWLbQ2s=\")","v":{"$error":"#REF!"}},{"$f":"AND(#REF!,\"PJrDyWLbQ2w=\")","v":{"$error":"#REF!"}},{"$f":"AND(#REF!,\"PJrDyWLbQ20=\")","v":{"$error":"#REF!"}},{"$f":"AND(#REF!,\"PJrDyWLbQ24=\")","v":{"$error":"#REF!"}},{"$f":"AND(#REF!,\"PJrDyWLbQ28=\")","v":{"$error":"#REF!"}},{"$f":"AND(#REF!,\"PJrDyWLbQ3A=\")","v":{"$error":"#REF!"}},{"$f":"AND(#REF!,\"PJrDyWLbQ3E=\")","v":{"$error":"#REF!"}},{"$f":"IF(#REF!,\"PJrDyWLbQ3I=\",0)","v":{"$error":"#REF!"}},{"$f":"AND(#REF!,\"PJrDyWLbQ3M=\")","v":{"$error":"#REF!"}},{"$f":"AND(#REF!,\"PJrDyWLbQ3Q=\")","v":{"$error":"#REF!"}},{"$f":"AND(#REF!,\"PJrDyWLbQ3U=\")","v":{"$error":"#REF!"}},{"$f":"AND(#REF!,\"PJrDyWLbQ3Y=\")","v":{"$error":"#REF!"}},{"$f":"AND(#REF!,\"PJrDyWLbQ3c=\")","v":{"$error":"#REF!"}},{"$f":"AND(#REF!,\"PJrDyWLbQ3g=\")","v":{"$error":"#REF!"}},{"$f":"AND(#REF!,\"PJrDyWLbQ3k=\")","v":{"$error":"#REF!"}},{"$f":"AND(#REF!,\"PJrDyWLbQ3o=\")","v":{"$error":"#REF!"}},{"$f":"AND(#REF!,\"PJrDyWLbQ3s=\")","v":{"$error":"#REF!"}},{"$f":"AND(#REF!,\"PJrDyWLbQ3w=\")","v":{"$error":"#REF!"}},{"$f":"AND(#REF!,\"PJrDyWLbQ30=\")","v":{"$error":"#REF!"}},{"$f":"AND(#REF!,\"PJrDyWLbQ34=\")","v":{"$error":"#REF!"}},{"$f":"AND(#REF!,\"PJrDyWLbQ38=\")","v":{"$error":"#REF!"}},{"$f":"AND(#REF!,\"PJrDyWLbQ4A=\")","v":{"$error":"#REF!"}},{"$f":"AND(#REF!,\"PJrDyWLbQ4E=\")","v":{"$error":"#REF!"}},{"$f":"IF(#REF!,\"PJrDyWLbQ4I=\",0)","v":{"$error":"#REF!"}},{"$f":"AND(#REF!,\"PJrDyWLbQ4M=\")","v":{"$error":"#REF!"}},{"$f":"AND(#REF!,\"PJrDyWLbQ4Q=\")","v":{"$error":"#REF!"}},{"$f":"AND(#REF!,\"PJrDyWLbQ4U=\")","v":{"$error":"#REF!"}},{"$f":"AND(#REF!,\"PJrDyWLbQ4Y=\")","v":{"$error":"#REF!"}},{"$f":"AND(#REF!,\"PJrDyWLbQ4c=\")","v":{"$error":"#REF!"}},{"$f":"AND(#REF!,\"PJrDyWLbQ4g=\")","v":{"$error":"#REF!"}},{"$f":"AND(#REF!,\"PJrDyWLbQ4k=\")","v":{"$error":"#REF!"}},{"$f":"AND(#REF!,\"PJrDyWLbQ4o=\")","v":{"$error":"#REF!"}},{"$f":"AND(#REF!,\"PJrDyWLbQ4s=\")","v":{"$error":"#REF!"}},{"$f":"AND(#REF!,\"PJrDyWLbQ4w=\")","v":{"$error":"#REF!"}},{"$f":"AND(#REF!,\"PJrDyWLbQ40=\")","v":{"$error":"#REF!"}},{"$f":"AND(#REF!,\"PJrDyWLbQ44=\")","v":{"$error":"#REF!"}},{"$f":"AND(#REF!,\"PJrDyWLbQ48=\")","v":{"$error":"#REF!"}},{"$f":"AND(#REF!,\"PJrDyWLbQ5A=\")","v":{"$error":"#REF!"}},{"$f":"AND(#REF!,\"PJrDyWLbQ5E=\")","v":{"$error":"#REF!"}},{"$f":"IF(#REF!,\"PJrDyWLbQ5I=\",0)","v":{"$error":"#REF!"}},{"$f":"AND(#REF!,\"PJrDyWLbQ5M=\")","v":{"$error":"#REF!"}},{"$f":"AND(#REF!,\"PJrDyWLbQ5Q=\")","v":{"$error":"#REF!"}},{"$f":"AND(#REF!,\"PJrDyWLbQ5U=\")","v":{"$error":"#REF!"}},{"$f":"AND(#REF!,\"PJrDyWLbQ5Y=\")","v":{"$error":"#REF!"}},{"$f":"AND(#REF!,\"PJrDyWLbQ5c=\")","v":{"$error":"#REF!"}},{"$f":"AND(#REF!,\"PJrDyWLbQ5g=\")","v":{"$error":"#REF!"}},{"$f":"AND(#REF!,\"PJrDyWLbQ5k=\")","v":{"$error":"#REF!"}},{"$f":"AND(#REF!,\"PJrDyWLbQ5o=\")","v":{"$error":"#REF!"}},{"$f":"AND(#REF!,\"PJrDyWLbQ5s=\")","v":{"$error":"#REF!"}},{"$f":"AND(#REF!,\"PJrDyWLbQ5w=\")","v":{"$error":"#REF!"}},{"$f":"AND(#REF!,\"PJrDyWLbQ50=\")","v":{"$error":"#REF!"}},{"$f":"AND(#REF!,\"PJrDyWLbQ54=\")","v":{"$error":"#REF!"}},{"$f":"AND(#REF!,\"PJrDyWLbQ58=\")","v":{"$error":"#REF!"}},{"$f":"AND(#REF!,\"PJrDyWLbQ6A=\")","v":{"$error":"#REF!"}},{"$f":"AND(#REF!,\"PJrDyWLbQ6E=\")","v":{"$error":"#REF!"}},{"$f":"IF(#REF!,\"PJrDyWLbQ6I=\",0)","v":{"$error":"#REF!"}},{"$f":"AND(#REF!,\"PJrDyWLbQ6M=\")","v":{"$error":"#REF!"}},{"$f":"AND(#REF!,\"PJrDyWLbQ6Q=\")","v":{"$error":"#REF!"}},{"$f":"AND(#REF!,\"PJrDyWLbQ6U=\")","v":{"$error":"#REF!"}},{"$f":"AND(#REF!,\"PJrDyWLbQ6Y=\")","v":{"$error":"#REF!"}},{"$f":"AND(#REF!,\"PJrDyWLbQ6c=\")","v":{"$error":"#REF!"}},{"$f":"AND(#REF!,\"PJrDyWLbQ6g=\")","v":{"$error":"#REF!"}},{"$f":"AND(#REF!,\"PJrDyWLbQ6k=\")","v":{"$error":"#REF!"}},{"$f":"AND(#REF!,\"PJrDyWLbQ6o=\")","v":{"$error":"#REF!"}},{"$f":"AND(#REF!,\"PJrDyWLbQ6s=\")","v":{"$error":"#REF!"}},{"$f":"AND(#REF!,\"PJrDyWLbQ6w=\")","v":{"$error":"#REF!"}},{"$f":"AND(#REF!,\"PJrDyWLbQ60=\")","v":{"$error":"#REF!"}},{"$f":"AND(#REF!,\"PJrDyWLbQ64=\")","v":{"$error":"#REF!"}},{"$f":"AND(#REF!,\"PJrDyWLbQ68=\")","v":{"$error":"#REF!"}},{"$f":"AND(#REF!,\"PJrDyWLbQ7A=\")","v":{"$error":"#REF!"}},{"$f":"AND(#REF!,\"PJrDyWLbQ7E=\")","v":{"$error":"#REF!"}},{"$f":"IF(#REF!,\"PJrDyWLbQ7I=\",0)","v":{"$error":"#REF!"}},{"$f":"AND(#REF!,\"PJrDyWLbQ7M=\")","v":{"$error":"#REF!"}},{"$f":"AND(#REF!,\"PJrDyWLbQ7Q=\")","v":{"$error":"#REF!"}},{"$f":"AND(#REF!,\"PJrDyWLbQ7U=\")","v":{"$error":"#REF!"}},{"$f":"AND(#REF!,\"PJrDyWLbQ7Y=\")","v":{"$error":"#REF!"}},{"$f":"AND(#REF!,\"PJrDyWLbQ7c=\")","v":{"$error":"#REF!"}},{"$f":"AND(#REF!,\"PJrDyWLbQ7g=\")","v":{"$error":"#REF!"}},{"$f":"AND(#REF!,\"PJrDyWLbQ7k=\")","v":{"$error":"#REF!"}},{"$f":"AND(#REF!,\"PJrDyWLbQ7o=\")","v":{"$error":"#REF!"}},{"$f":"AND(#REF!,\"PJrDyWLbQ7s=\")","v":{"$error":"#REF!"}},{"$f":"AND(#REF!,\"PJrDyWLbQ7w=\")","v":{"$error":"#REF!"}},{"$f":"AND(#REF!,\"PJrDyWLbQ70=\")","v":{"$error":"#REF!"}},{"$f":"AND(#REF!,\"PJrDyWLbQ74=\")","v":{"$error":"#REF!"}},{"$f":"AND(#REF!,\"PJrDyWLbQ78=\")","v":{"$error":"#REF!"}},{"$f":"AND(#REF!,\"PJrDyWLbQ8A=\")","v":{"$error":"#REF!"}},{"$f":"AND(#REF!,\"PJrDyWLbQ8E=\")","v":{"$error":"#REF!"}},{"$f":"IF(#REF!,\"PJrDyWLbQ8I=\",0)","v":{"$error":"#REF!"}},{"$f":"AND(#REF!,\"PJrDyWLbQ8M=\")","v":{"$error":"#REF!"}},{"$f":"AND(#REF!,\"PJrDyWLbQ8Q=\")","v":{"$error":"#REF!"}},{"$f":"AND(#REF!,\"PJrDyWLbQ8U=\")","v":{"$error":"#REF!"}},{"$f":"AND(#REF!,\"PJrDyWLbQ8Y=\")","v":{"$error":"#REF!"}},{"$f":"AND(#REF!,\"PJrDyWLbQ8c=\")","v":{"$error":"#REF!"}},{"$f":"AND(#REF!,\"PJrDyWLbQ8g=\")","v":{"$error":"#REF!"}},{"$f":"AND(#REF!,\"PJrDyWLbQ8k=\")","v":{"$error":"#REF!"}},{"$f":"AND(#REF!,\"PJrDyWLbQ8o=\")","v":{"$error":"#REF!"}},{"$f":"AND(#REF!,\"PJrDyWLbQ8s=\")","v":{"$error":"#REF!"}},{"$f":"AND(#REF!,\"PJrDyWLbQ8w=\")","v":{"$error":"#REF!"}},{"$f":"AND(#REF!,\"PJrDyWLbQ80=\")","v":{"$error":"#REF!"}},{"$f":"AND(#REF!,\"PJrDyWLbQ84=\")","v":{"$error":"#REF!"}},{"$f":"AND(#REF!,\"PJrDyWLbQ88=\")","v":{"$error":"#REF!"}},{"$f":"AND(#REF!,\"PJrDyWLbQ9A=\")","v":{"$error":"#REF!"}},{"$f":"AND(#REF!,\"PJrDyWLbQ9E=\")","v":{"$error":"#REF!"}},{"$f":"IF(#REF!,\"PJrDyWLbQ9I=\",0)","v":{"$error":"#REF!"}},{"$f":"AND(#REF!,\"PJrDyWLbQ9M=\")","v":{"$error":"#REF!"}},{"$f":"AND(#REF!,\"PJrDyWLbQ9Q=\")","v":{"$error":"#REF!"}},{"$f":"AND(#REF!,\"PJrDyWLbQ9U=\")","v":{"$error":"#REF!"}},{"$f":"AND(#REF!,\"PJrDyWLbQ9Y=\")","v":{"$error":"#REF!"}},{"$f":"AND(#REF!,\"PJrDyWLbQ9c=\")","v":{"$error":"#REF!"}},{"$f":"AND(#REF!,\"PJrDyWLbQ9g=\")","v":{"$error":"#REF!"}},{"$f":"AND(#REF!,\"PJrDyWLbQ9k=\")","v":{"$error":"#REF!"}},{"$f":"AND(#REF!,\"PJrDyWLbQ9o=\")","v":{"$error":"#REF!"}},{"$f":"AND(#REF!,\"PJrDyWLbQ9s=\")","v":{"$error":"#REF!"}},{"$f":"AND(#REF!,\"PJrDyWLbQ9w=\")","v":{"$error":"#REF!"}},{"$f":"AND(#REF!,\"PJrDyWLbQ90=\")","v":{"$error":"#REF!"}},{"$f":"AND(#REF!,\"PJrDyWLbQ94=\")","v":{"$error":"#REF!"}},{"$f":"AND(#REF!,\"PJrDyWLbQ98=\")","v":{"$error":"#REF!"}},{"$f":"AND(#REF!,\"PJrDyWLbQ+A=\")","v":{"$error":"#REF!"}},{"$f":"AND(#REF!,\"PJrDyWLbQ+E=\")","v":{"$error":"#REF!"}},{"$f":"IF(#REF!,\"PJrDyWLbQ+I=\",0)","v":{"$error":"#REF!"}},{"$f":"AND(#REF!,\"PJrDyWLbQ+M=\")","v":{"$error":"#REF!"}},{"$f":"AND(#REF!,\"PJrDyWLbQ+Q=\")","v":{"$error":"#REF!"}},{"$f":"AND(#REF!,\"PJrDyWLbQ+U=\")","v":{"$error":"#REF!"}},{"$f":"AND(#REF!,\"PJrDyWLbQ+Y=\")","v":{"$error":"#REF!"}},{"$f":"AND(#REF!,\"PJrDyWLbQ+c=\")","v":{"$error":"#REF!"}},{"$f":"AND(#REF!,\"PJrDyWLbQ+g=\")","v":{"$error":"#REF!"}},{"$f":"AND(#REF!,\"PJrDyWLbQ+k=\")","v":{"$error":"#REF!"}},{"$f":"AND(#REF!,\"PJrDyWLbQ+o=\")","v":{"$error":"#REF!"}},{"$f":"AND(#REF!,\"PJrDyWLbQ+s=\")","v":{"$error":"#REF!"}},{"$f":"AND(#REF!,\"PJrDyWLbQ+w=\")","v":{"$error":"#REF!"}},{"$f":"AND(#REF!,\"PJrDyWLbQ+0=\")","v":{"$error":"#REF!"}},{"$f":"AND(#REF!,\"PJrDyWLbQ+4=\")","v":{"$error":"#REF!"}},{"$f":"AND(#REF!,\"PJrDyWLbQ+8=\")","v":{"$error":"#REF!"}},{"$f":"AND(#REF!,\"PJrDyWLbQ/A=\")","v":{"$error":"#REF!"}},{"$f":"AND(#REF!,\"PJrDyWLbQ/E=\")","v":{"$error":"#REF!"}},{"$f":"IF(#REF!,\"PJrDyWLbQ/I=\",0)","v":{"$error":"#REF!"}},{"$f":"AND(#REF!,\"PJrDyWLbQ/M=\")","v":{"$error":"#REF!"}},{"$f":"AND(#REF!,\"PJrDyWLbQ/Q=\")","v":{"$error":"#REF!"}},{"$f":"AND(#REF!,\"PJrDyWLbQ/U=\")","v":{"$error":"#REF!"}},{"$f":"AND(#REF!,\"PJrDyWLbQ/Y=\")","v":{"$error":"#REF!"}},{"$f":"AND(#REF!,\"PJrDyWLbQ/c=\")","v":{"$error":"#REF!"}},{"$f":"AND(#REF!,\"PJrDyWLbQ/g=\")","v":{"$error":"#REF!"}},{"$f":"AND(#REF!,\"PJrDyWLbQ/k=\")","v":{"$error":"#REF!"}},{"$f":"AND(#REF!,\"PJrDyWLbQ/o=\")","v":{"$error":"#REF!"}},{"$f":"AND(#REF!,\"PJrDyWLbQ/s=\")","v":{"$error":"#REF!"}},{"$f":"AND(#REF!,\"PJrDyWLbQ/w=\")","v":{"$error":"#REF!"}},{"$f":"AND(#REF!,\"PJrDyWLbQ/0=\")","v":{"$error":"#REF!"}},{"$f":"AND(#REF!,\"PJrDyWLbQ/4=\")","v":{"$error":"#REF!"}},{"$f":"AND(#REF!,\"PJrDyWLbQ/8=\")","v":{"$error":"#REF!"}}]
[{"$f":"AND(#REF!,\"MsM49kLPPQA=\")","v":{"$error":"#REF!"}},{"$f":"AND(#REF!,\"MsM49kLPPQE=\")","v":{"$error":"#REF!"}},{"$f":"IF(#REF!,\"MsM49kLPPQI=\",0)","v":{"$error":"#REF!"}},{"$f":"AND(#REF!,\"MsM49kLPPQM=\")","v":{"$error":"#REF!"}},{"$f":"AND(#REF!,\"MsM49kLPPQQ=\")","v":{"$error":"#REF!"}},{"$f":"AND(#REF!,\"MsM49kLPPQU=\")","v":{"$error":"#REF!"}},{"$f":"AND(#REF!,\"MsM49kLPPQY=\")","v":{"$error":"#REF!"}},{"$f":"AND(#REF!,\"MsM49kLPPQc=\")","v":{"$error":"#REF!"}},{"$f":"AND(#REF!,\"MsM49kLPPQg=\")","v":{"$error":"#REF!"}},{"$f":"AND(#REF!,\"MsM49kLPPQk=\")","v":{"$error":"#REF!"}},{"$f":"AND(#REF!,\"MsM49kLPPQo=\")","v":{"$error":"#REF!"}},{"$f":"AND(#REF!,\"MsM49kLPPQs=\")","v":{"$error":"#REF!"}},{"$f":"AND(#REF!,\"MsM49kLPPQw=\")","v":{"$error":"#REF!"}},{"$f":"AND(#REF!,\"MsM49kLPPQ0=\")","v":{"$error":"#REF!"}},{"$f":"AND(#REF!,\"MsM49kLPPQ4=\")","v":{"$error":"#REF!"}},{"$f":"AND(#REF!,\"MsM49kLPPQ8=\")","v":{"$error":"#REF!"}},{"$f":"AND(#REF!,\"MsM49kLPPRA=\")","v":{"$error":"#REF!"}},{"$f":"AND(#REF!,\"MsM49kLPPRE=\")","v":{"$error":"#REF!"}},{"$f":"IF(#REF!,\"MsM49kLPPRI=\",0)","v":{"$error":"#REF!"}},{"$f":"AND(#REF!,\"MsM49kLPPRM=\")","v":{"$error":"#REF!"}},{"$f":"AND(#REF!,\"MsM49kLPPRQ=\")","v":{"$error":"#REF!"}},{"$f":"AND(#REF!,\"MsM49kLPPRU=\")","v":{"$error":"#REF!"}},{"$f":"AND(#REF!,\"MsM49kLPPRY=\")","v":{"$error":"#REF!"}},{"$f":"AND(#REF!,\"MsM49kLPPRc=\")","v":{"$error":"#REF!"}},{"$f":"AND(#REF!,\"MsM49kLPPRg=\")","v":{"$error":"#REF!"}},{"$f":"AND(#REF!,\"MsM49kLPPRk=\")","v":{"$error":"#REF!"}},{"$f":"AND(#REF!,\"MsM49kLPPRo=\")","v":{"$error":"#REF!"}},{"$f":"AND(#REF!,\"MsM49kLPPRs=\")","v":{"$error":"#REF!"}},{"$f":"AND(#REF!,\"MsM49kLPPRw=\")","v":{"$error":"#REF!"}},{"$f":"AND(#REF!,\"MsM49kLPPR0=\")","v":{"$error":"#REF!"}},{"$f":"AND(#REF!,\"MsM49kLPPR4=\")","v":{"$error":"#REF!"}},{"$f":"AND(#REF!,\"MsM49kLPPR8=\")","v":{"$error":"#REF!"}},{"$f":"AND(#REF!,\"MsM49kLPPSA=\")","v":{"$error":"#REF!"}},{"$f":"AND(#REF!,\"MsM49kLPPSE=\")","v":{"$error":"#REF!"}},{"$f":"IF(#REF!,\"MsM49kLPPSI=\",0)","v":{"$error":"#REF!"}},{"$f":"AND(#REF!,\"MsM49kLPPSM=\")","v":{"$error":"#REF!"}},{"$f":"AND(#REF!,\"MsM49kLPPSQ=\")","v":{"$error":"#REF!"}},{"$f":"AND(#REF!,\"MsM49kLPPSU=\")","v":{"$error":"#REF!"}},{"$f":"AND(#REF!,\"MsM49kLPPSY=\")","v":{"$error":"#REF!"}},{"$f":"AND(#REF!,\"MsM49kLPPSc=\")","v":{"$error":"#REF!"}},{"$f":"AND(#REF!,\"MsM49kLPPSg=\")","v":{"$error":"#REF!"}},{"$f":"AND(#REF!,\"MsM49kLPPSk=\")","v":{"$error":"#REF!"}},{"$f":"AND(#REF!,\"MsM49kLPPSo=\")","v":{"$error":"#REF!"}},{"$f":"AND(#REF!,\"MsM49kLPPSs=\")","v":{"$error":"#REF!"}},{"$f":"AND(#REF!,\"MsM49kLPPSw=\")","v":{"$error":"#REF!"}},{"$f":"AND(#REF!,\"MsM49kLPPS0=\")","v":{"$error":"#REF!"}},{"$f":"AND(#REF!,\"MsM49kLPPS4=\")","v":{"$error":"#REF!"}},{"$f":"AND(#REF!,\"MsM49kLPPS8=\")","v":{"$error":"#REF!"}},{"$f":"AND(#REF!,\"MsM49kLPPTA=\")","v":{"$error":"#REF!"}},{"$f":"AND(#REF!,\"MsM49kLPPTE=\")","v":{"$error":"#REF!"}},{"$f":"IF(#REF!,\"MsM49kLPPTI=\",0)","v":{"$error":"#REF!"}},{"$f":"AND(#REF!,\"MsM49kLPPTM=\")","v":{"$error":"#REF!"}},{"$f":"AND(#REF!,\"MsM49kLPPTQ=\")","v":{"$error":"#REF!"}},{"$f":"AND(#REF!,\"MsM49kLPPTU=\")","v":{"$error":"#REF!"}},{"$f":"AND(#REF!,\"MsM49kLPPTY=\")","v":{"$error":"#REF!"}},{"$f":"AND(#REF!,\"MsM49kLPPTc=\")","v":{"$error":"#REF!"}},{"$f":"AND(#REF!,\"MsM49kLPPTg=\")","v":{"$error":"#REF!"}},{"$f":"AND(#REF!,\"MsM49kLPPTk=\")","v":{"$error":"#REF!"}},{"$f":"AND(#REF!,\"MsM49kLPPTo=\")","v":{"$error":"#REF!"}},{"$f":"AND(#REF!,\"MsM49kLPPTs=\")","v":{"$error":"#REF!"}},{"$f":"AND(#REF!,\"MsM49kLPPTw=\")","v":{"$error":"#REF!"}},{"$f":"AND(#REF!,\"MsM49kLPPT0=\")","v":{"$error":"#REF!"}},{"$f":"AND(#REF!,\"MsM49kLPPT4=\")","v":{"$error":"#REF!"}},{"$f":"AND(#REF!,\"MsM49kLPPT8=\")","v":{"$error":"#REF!"}},{"$f":"AND(#REF!,\"MsM49kLPPUA=\")","v":{"$error":"#REF!"}},{"$f":"AND(#REF!,\"MsM49kLPPUE=\")","v":{"$error":"#REF!"}},{"$f":"IF(#REF!,\"MsM49kLPPUI=\",0)","v":{"$error":"#REF!"}},{"$f":"AND(#REF!,\"MsM49kLPPUM=\")","v":{"$error":"#REF!"}},{"$f":"AND(#REF!,\"MsM49kLPPUQ=\")","v":{"$error":"#REF!"}},{"$f":"AND(#REF!,\"MsM49kLPPUU=\")","v":{"$error":"#REF!"}},{"$f":"AND(#REF!,\"MsM49kLPPUY=\")","v":{"$error":"#REF!"}},{"$f":"AND(#REF!,\"MsM49kLPPUc=\")","v":{"$error":"#REF!"}},{"$f":"AND(#REF!,\"MsM49kLPPUg=\")","v":{"$error":"#REF!"}},{"$f":"AND(#REF!,\"MsM49kLPPUk=\")","v":{"$error":"#REF!"}},{"$f":"AND(#REF!,\"MsM49kLPPUo=\")","v":{"$error":"#REF!"}},{"$f":"AND(#REF!,\"MsM49kLPPUs=\")","v":{"$error":"#REF!"}},{"$f":"AND(#REF!,\"MsM49kLPPUw=\")","v":{"$error":"#REF!"}},{"$f":"AND(#REF!,\"MsM49kLPPU0=\")","v":{"$error":"#REF!"}},{"$f":"AND(#REF!,\"MsM49kLPPU4=\")","v":{"$error":"#REF!"}},{"$f":"AND(#REF!,\"MsM49kLPPU8=\")","v":{"$error":"#REF!"}},{"$f":"AND(#REF!,\"MsM49kLPPVA=\")","v":{"$error":"#REF!"}},{"$f":"AND(#REF!,\"MsM49kLPPVE=\")","v":{"$error":"#REF!"}},{"$f":"IF(#REF!,\"MsM49kLPPVI=\",0)","v":{"$error":"#REF!"}},{"$f":"AND(#REF!,\"MsM49kLPPVM=\")","v":{"$error":"#REF!"}},{"$f":"AND(#REF!,\"MsM49kLPPVQ=\")","v":{"$error":"#REF!"}},{"$f":"AND(#REF!,\"MsM49kLPPVU=\")","v":{"$error":"#REF!"}},{"$f":"AND(#REF!,\"MsM49kLPPVY=\")","v":{"$error":"#REF!"}},{"$f":"AND(#REF!,\"MsM49kLPPVc=\")","v":{"$error":"#REF!"}},{"$f":"AND(#REF!,\"MsM49kLPPVg=\")","v":{"$error":"#REF!"}},{"$f":"AND(#REF!,\"MsM49kLPPVk=\")","v":{"$error":"#REF!"}},{"$f":"AND(#REF!,\"MsM49kLPPVo=\")","v":{"$error":"#REF!"}},{"$f":"AND(#REF!,\"MsM49kLPPVs=\")","v":{"$error":"#REF!"}},{"$f":"AND(#REF!,\"MsM49kLPPVw=\")","v":{"$error":"#REF!"}},{"$f":"AND(#REF!,\"MsM49kLPPV0=\")","v":{"$error":"#REF!"}},{"$f":"AND(#REF!,\"MsM49kLPPV4=\")","v":{"$error":"#REF!"}},{"$f":"AND(#REF!,\"MsM49kLPPV8=\")","v":{"$error":"#REF!"}},{"$f":"AND(#REF!,\"MsM49kLPPWA=\")","v":{"$error":"#REF!"}},{"$f":"AND(#REF!,\"MsM49kLPPWE=\")","v":{"$error":"#REF!"}},{"$f":"IF(#REF!,\"MsM49kLPPWI=\",0)","v":{"$error":"#REF!"}},{"$f":"AND(#REF!,\"MsM49kLPPWM=\")","v":{"$error":"#REF!"}},{"$f":"AND(#REF!,\"MsM49kLPPWQ=\")","v":{"$error":"#REF!"}},{"$f":"AND(#REF!,\"MsM49kLPPWU=\")","v":{"$error":"#REF!"}},{"$f":"AND(#REF!,\"MsM49kLPPWY=\")","v":{"$error":"#REF!"}},{"$f":"AND(#REF!,\"MsM49kLPPWc=\")","v":{"$error":"#REF!"}},{"$f":"AND(#REF!,\"MsM49kLPPWg=\")","v":{"$error":"#REF!"}},{"$f":"AND(#REF!,\"MsM49kLPPWk=\")","v":{"$error":"#REF!"}},{"$f":"AND(#REF!,\"MsM49kLPPWo=\")","v":{"$error":"#REF!"}},{"$f":"AND(#REF!,\"MsM49kLPPWs=\")","v":{"$error":"#REF!"}},{"$f":"AND(#REF!,\"MsM49kLPPWw=\")","v":{"$error":"#REF!"}},{"$f":"AND(#REF!,\"MsM49kLPPW0=\")","v":{"$error":"#REF!"}},{"$f":"AND(#REF!,\"MsM49kLPPW4=\")","v":{"$error":"#REF!"}},{"$f":"AND(#REF!,\"MsM49kLPPW8=\")","v":{"$error":"#REF!"}},{"$f":"AND(#REF!,\"MsM49kLPPXA=\")","v":{"$error":"#REF!"}},{"$f":"AND(#REF!,\"MsM49kLPPXE=\")","v":{"$error":"#REF!"}},{"$f":"IF(#REF!,\"MsM49kLPPXI=\",0)","v":{"$error":"#REF!"}},{"$f":"AND(#REF!,\"MsM49kLPPXM=\")","v":{"$error":"#REF!"}},{"$f":"AND(#REF!,\"MsM49kLPPXQ=\")","v":{"$error":"#REF!"}},{"$f":"AND(#REF!,\"MsM49kLPPXU=\")","v":{"$error":"#REF!"}},{"$f":"AND(#REF!,\"MsM49kLPPXY=\")","v":{"$error":"#REF!"}},{"$f":"AND(#REF!,\"MsM49kLPPXc=\")","v":{"$error":"#REF!"}},{"$f":"AND(#REF!,\"MsM49kLPPXg=\")","v":{"$error":"#REF!"}},{"$f":"AND(#REF!,\"MsM49kLPPXk=\")","v":{"$error":"#REF!"}},{"$f":"AND(#REF!,\"MsM49kLPPXo=\")","v":{"$error":"#REF!"}},{"$f":"AND(#REF!,\"MsM49kLPPXs=\")","v":{"$error":"#REF!"}},{"$f":"AND(#REF!,\"MsM49kLPPXw=\")","v":{"$error":"#REF!"}},{"$f":"AND(#REF!,\"MsM49kLPPX0=\")","v":{"$error":"#REF!"}},{"$f":"AND(#REF!,\"MsM49kLPPX4=\")","v":{"$error":"#REF!"}},{"$f":"AND(#REF!,\"MsM49kLPPX8=\")","v":{"$error":"#REF!"}},{"$f":"AND(#REF!,\"MsM49kLPPYA=\")","v":{"$error":"#REF!"}},{"$f":"AND(#REF!,\"MsM49kLPPYE=\")","v":{"$error":"#REF!"}},{"$f":"IF(#REF!,\"MsM49kLPPYI=\",0)","v":{"$error":"#REF!"}},{"$f":"AND(#REF!,\"MsM49kLPPYM=\")","v":{"$error":"#REF!"}},{"$f":"AND(#REF!,\"MsM49kLPPYQ=\")","v":{"$error":"#REF!"}},{"$f":"AND(#REF!,\"MsM49kLPPYU=\")","v":{"$error":"#REF!"}},{"$f":"AND(#REF!,\"MsM49kLPPYY=\")","v":{"$error":"#REF!"}},{"$f":"AND(#REF!,\"MsM49kLPPYc=\")","v":{"$error":"#REF!"}},{"$f":"AND(#REF!,\"MsM49kLPPYg=\")","v":{"$error":"#REF!"}},{"$f":"AND(#REF!,\"MsM49kLPPYk=\")","v":{"$error":"#REF!"}},{"$f":"AND(#REF!,\"MsM49kLPPYo=\")","v":{"$error":"#REF!"}},{"$f":"AND(#REF!,\"MsM49kLPPYs=\")","v":{"$error":"#REF!"}},{"$f":"AND(#REF!,\"MsM49kLPPYw=\")","v":{"$error":"#REF!"}},{"$f":"AND(#REF!,\"MsM49kLPPY0=\")","v":{"$error":"#REF!"}},{"$f":"AND(#REF!,\"MsM49kLPPY4=\")","v":{"$error":"#REF!"}},{"$f":"AND(#REF!,\"MsM49kLPPY8=\")","v":{"$error":"#REF!"}},{"$f":"AND(#REF!,\"MsM49kLPPZA=\")","v":{"$error":"#REF!"}},{"$f":"AND(#REF!,\"MsM49kLPPZE=\")","v":{"$error":"#REF!"}},{"$f":"IF(#REF!,\"MsM49kLPPZI=\",0)","v":{"$error":"#REF!"}},{"$f":"AND(#REF!,\"MsM49kLPPZM=\")","v":{"$error":"#REF!"}},{"$f":"AND(#REF!,\"MsM49kLPPZQ=\")","v":{"$error":"#REF!"}},{"$f":"AND(#REF!,\"MsM49kLPPZU=\")","v":{"$error":"#REF!"}},{"$f":"AND(#REF!,\"MsM49kLPPZY=\")","v":{"$error":"#REF!"}},{"$f":"AND(#REF!,\"MsM49kLPPZc=\")","v":{"$error":"#REF!"}},{"$f":"AND(#REF!,\"MsM49kLPPZg=\")","v":{"$error":"#REF!"}},{"$f":"AND(#REF!,\"MsM49kLPPZk=\")","v":{"$error":"#REF!"}},{"$f":"AND(#REF!,\"MsM49kLPPZo=\")","v":{"$error":"#REF!"}},{"$f":"AND(#REF!,\"MsM49kLPPZs=\")","v":{"$error":"#REF!"}},{"$f":"AND(#REF!,\"MsM49kLPPZw=\")","v":{"$error":"#REF!"}},{"$f":"AND(#REF!,\"MsM49kLPPZ0=\")","v":{"$error":"#REF!"}},{"$f":"AND(#REF!,\"MsM49kLPPZ4=\")","v":{"$error":"#REF!"}},{"$f":"AND(#REF!,\"MsM49kLPPZ8=\")","v":{"$error":"#REF!"}},{"$f":"AND(#REF!,\"MsM49kLPPaA=\")","v":{"$error":"#REF!"}},{"$f":"AND(#REF!,\"MsM49kLPPaE=\")","v":{"$error":"#REF!"}},{"$f":"IF(#REF!,\"MsM49kLPPaI=\",0)","v":{"$error":"#REF!"}},{"$f":"AND(#REF!,\"MsM49kLPPaM=\")","v":{"$error":"#REF!"}},{"$f":"AND(#REF!,\"MsM49kLPPaQ=\")","v":{"$error":"#REF!"}},{"$f":"AND(#REF!,\"MsM49kLPPaU=\")","v":{"$error":"#REF!"}},{"$f":"AND(#REF!,\"MsM49kLPPaY=\")","v":{"$error":"#REF!"}},{"$f":"AND(#REF!,\"MsM49kLPPac=\")","v":{"$error":"#REF!"}},{"$f":"AND(#REF!,\"MsM49kLPPag=\")","v":{"$error":"#REF!"}},{"$f":"AND(#REF!,\"MsM49kLPPak=\")","v":{"$error":"#REF!"}},{"$f":"AND(#REF!,\"MsM49kLPPao=\")","v":{"$error":"#REF!"}},{"$f":"AND(#REF!,\"MsM49kLPPas=\")","v":{"$error":"#REF!"}},{"$f":"AND(#REF!,\"MsM49kLPPaw=\")","v":{"$error":"#REF!"}},{"$f":"AND(#REF!,\"MsM49kLPPa0=\")","v":{"$error":"#REF!"}},{"$f":"AND(#REF!,\"MsM49kLPPa4=\")","v":{"$error":"#REF!"}},{"$f":"AND(#REF!,\"MsM49kLPPa8=\")","v":{"$error":"#REF!"}},{"$f":"AND(#REF!,\"MsM49kLPPbA=\")","v":{"$error":"#REF!"}},{"$f":"AND(#REF!,\"MsM49kLPPbE=\")","v":{"$error":"#REF!"}},{"$f":"IF(#REF!,\"MsM49kLPPbI=\",0)","v":{"$error":"#REF!"}},{"$f":"AND(#REF!,\"MsM49kLPPbM=\")","v":{"$error":"#REF!"}},{"$f":"AND(#REF!,\"MsM49kLPPbQ=\")","v":{"$error":"#REF!"}},{"$f":"AND(#REF!,\"MsM49kLPPbU=\")","v":{"$error":"#REF!"}},{"$f":"AND(#REF!,\"MsM49kLPPbY=\")","v":{"$error":"#REF!"}},{"$f":"AND(#REF!,\"MsM49kLPPbc=\")","v":{"$error":"#REF!"}},{"$f":"AND(#REF!,\"MsM49kLPPbg=\")","v":{"$error":"#REF!"}},{"$f":"AND(#REF!,\"MsM49kLPPbk=\")","v":{"$error":"#REF!"}},{"$f":"AND(#REF!,\"MsM49kLPPbo=\")","v":{"$error":"#REF!"}},{"$f":"AND(#REF!,\"MsM49kLPPbs=\")","v":{"$error":"#REF!"}},{"$f":"AND(#REF!,\"MsM49kLPPbw=\")","v":{"$error":"#REF!"}},{"$f":"AND(#REF!,\"MsM49kLPPb0=\")","v":{"$error":"#REF!"}},{"$f":"AND(#REF!,\"MsM49kLPPb4=\")","v":{"$error":"#REF!"}},{"$f":"AND(#REF!,\"MsM49kLPPb8=\")","v":{"$error":"#REF!"}},{"$f":"AND(#REF!,\"MsM49kLPPcA=\")","v":{"$error":"#REF!"}},{"$f":"AND(#REF!,\"MsM49kLPPcE=\")","v":{"$error":"#REF!"}},{"$f":"IF(#REF!,\"MsM49kLPPcI=\",0)","v":{"$error":"#REF!"}},{"$f":"AND(#REF!,\"MsM49kLPPcM=\")","v":{"$error":"#REF!"}},{"$f":"AND(#REF!,\"MsM49kLPPcQ=\")","v":{"$error":"#REF!"}},{"$f":"AND(#REF!,\"MsM49kLPPcU=\")","v":{"$error":"#REF!"}},{"$f":"AND(#REF!,\"MsM49kLPPcY=\")","v":{"$error":"#REF!"}},{"$f":"AND(#REF!,\"MsM49kLPPcc=\")","v":{"$error":"#REF!"}},{"$f":"AND(#REF!,\"MsM49kLPPcg=\")","v":{"$error":"#REF!"}},{"$f":"AND(#REF!,\"MsM49kLPPck=\")","v":{"$error":"#REF!"}},{"$f":"AND(#REF!,\"MsM49kLPPco=\")","v":{"$error":"#REF!"}},{"$f":"AND(#REF!,\"MsM49kLPPcs=\")","v":{"$error":"#REF!"}},{"$f":"AND(#REF!,\"MsM49kLPPcw=\")","v":{"$error":"#REF!"}},{"$f":"AND(#REF!,\"MsM49kLPPc0=\")","v":{"$error":"#REF!"}},{"$f":"AND(#REF!,\"MsM49kLPPc4=\")","v":{"$error":"#REF!"}},{"$f":"AND(#REF!,\"MsM49kLPPc8=\")","v":{"$error":"#REF!"}},{"$f":"AND(#REF!,\"MsM49kLPPdA=\")","v":{"$error":"#REF!"}},{"$f":"AND(#REF!,\"MsM49kLPPdE=\")","v":{"$error":"#REF!"}},{"$f":"IF(#REF!,\"MsM49kLPPdI=\",0)","v":{"$error":"#REF!"}},{"$f":"AND(#REF!,\"MsM49kLPPdM=\")","v":{"$error":"#REF!"}},{"$f":"AND(#REF!,\"MsM49kLPPdQ=\")","v":{"$error":"#REF!"}},{"$f":"AND(#REF!,\"MsM49kLPPdU=\")","v":{"$error":"#REF!"}},{"$f":"AND(#REF!,\"MsM49kLPPdY=\")","v":{"$error":"#REF!"}},{"$f":"AND(#REF!,\"MsM49kLPPdc=\")","v":{"$error":"#REF!"}},{"$f":"AND(#REF!,\"MsM49kLPPdg=\")","v":{"$error":"#REF!"}},{"$f":"AND(#REF!,\"MsM49kLPPdk=\")","v":{"$error":"#REF!"}},{"$f":"AND(#REF!,\"MsM49kLPPdo=\")","v":{"$error":"#REF!"}},{"$f":"AND(#REF!,\"MsM49kLPPds=\")","v":{"$error":"#REF!"}},{"$f":"AND(#REF!,\"MsM49kLPPdw=\")","v":{"$error":"#REF!"}},{"$f":"AND(#REF!,\"MsM49kLPPd0=\")","v":{"$error":"#REF!"}},{"$f":"AND(#REF!,\"MsM49kLPPd4=\")","v":{"$error":"#REF!"}},{"$f":"AND(#REF!,\"MsM49kLPPd8=\")","v":{"$error":"#REF!"}},{"$f":"AND(#REF!,\"MsM49kLPPeA=\")","v":{"$error":"#REF!"}},{"$f":"AND(#REF!,\"MsM49kLPPeE=\")","v":{"$error":"#REF!"}},{"$f":"IF(#REF!,\"MsM49kLPPeI=\",0)","v":{"$error":"#REF!"}},{"$f":"AND(#REF!,\"MsM49kLPPeM=\")","v":{"$error":"#REF!"}},{"$f":"AND(#REF!,\"MsM49kLPPeQ=\")","v":{"$error":"#REF!"}},{"$f":"AND(#REF!,\"MsM49kLPPeU=\")","v":{"$error":"#REF!"}},{"$f":"AND(#REF!,\"MsM49kLPPeY=\")","v":{"$error":"#REF!"}},{"$f":"AND(#REF!,\"MsM49kLPPec=\")","v":{"$error":"#REF!"}},{"$f":"AND(#REF!,\"MsM49kLPPeg=\")","v":{"$error":"#REF!"}},{"$f":"AND(#REF!,\"MsM49kLPPek=\")","v":{"$error":"#REF!"}},{"$f":"AND(#REF!,\"MsM49kLPPeo=\")","v":{"$error":"#REF!"}},{"$f":"AND(#REF!,\"MsM49kLPPes=\")","v":{"$error":"#REF!"}},{"$f":"AND(#REF!,\"MsM49kLPPew=\")","v":{"$error":"#REF!"}},{"$f":"AND(#REF!,\"MsM49kLPPe0=\")","v":{"$error":"#REF!"}},{"$f":"AND(#REF!,\"MsM49kLPPe4=\")","v":{"$error":"#REF!"}},{"$f":"AND(#REF!,\"MsM49kLPPe8=\")","v":{"$error":"#REF!"}},{"$f":"AND(#REF!,\"MsM49kLPPfA=\")","v":{"$error":"#REF!"}},{"$f":"AND(#REF!,\"MsM49kLPPfE=\")","v":{"$error":"#REF!"}},{"$f":"IF(#REF!,\"MsM49kLPPfI=\",0)","v":{"$error":"#REF!"}},{"$f":"AND(#REF!,\"MsM49kLPPfM=\")","v":{"$error":"#REF!"}},{"$f":"AND(#REF!,\"MsM49kLPPfQ=\")","v":{"$error":"#REF!"}},{"$f":"AND(#REF!,\"MsM49kLPPfU=\")","v":{"$error":"#REF!"}},{"$f":"AND(#REF!,\"MsM49kLPPfY=\")","v":{"$error":"#REF!"}},{"$f":"AND(#REF!,\"MsM49kLPPfc=\")","v":{"$error":"#REF!"}},{"$f":"AND(#REF!,\"MsM49kLPPfg=\")","v":{"$error":"#REF!"}},{"$f":"AND(#REF!,\"MsM49kLPPfk=\")","v":{"$error":"#REF!"}},{"$f":"AND(#REF!,\"MsM49kLPPfo=\")","v":{"$error":"#REF!"}},{"$f":"AND(#REF!,\"MsM49kLPPfs=\")","v":{"$error":"#REF!"}},{"$f":"AND(#REF!,\"MsM49kLPPfw=\")","v":{"$error":"#REF!"}},{"$f":"AND(#REF!,\"MsM49kLPPf0=\")","v":{"$error":"#REF!"}},{"$f":"AND(#REF!,\"MsM49kLPPf4=\")","v":{"$error":"#REF!"}},{"$f":"AND(#REF!,\"MsM49kLPPf8=\")","v":{"$error":"#REF!"}}]
[{"$f":"AND(#REF!,\"QdDaGQk4zwA=\")","v":{"$error":"#REF!"}},{"$f":"AND(#REF!,\"QdDaGQk4zwE=\")","v":{"$error":"#REF!"}},{"$f":"IF(#REF!,\"QdDaGQk4zwI=\",0)","v":{"$error":"#REF!"}},{"$f":"AND(#REF!,\"QdDaGQk4zwM=\")","v":{"$error":"#REF!"}},{"$f":"AND(#REF!,\"QdDaGQk4zwQ=\")","v":{"$error":"#REF!"}},{"$f":"AND(#REF!,\"QdDaGQk4zwU=\")","v":{"$error":"#REF!"}},{"$f":"AND(#REF!,\"QdDaGQk4zwY=\")","v":{"$error":"#REF!"}},{"$f":"AND(#REF!,\"QdDaGQk4zwc=\")","v":{"$error":"#REF!"}},{"$f":"AND(#REF!,\"QdDaGQk4zwg=\")","v":{"$error":"#REF!"}},{"$f":"AND(#REF!,\"QdDaGQk4zwk=\")","v":{"$error":"#REF!"}},{"$f":"AND(#REF!,\"QdDaGQk4zwo=\")","v":{"$error":"#REF!"}},{"$f":"AND(#REF!,\"QdDaGQk4zws=\")","v":{"$error":"#REF!"}},{"$f":"AND(#REF!,\"QdDaGQk4zww=\")","v":{"$error":"#REF!"}},{"$f":"AND(#REF!,\"QdDaGQk4zw0=\")","v":{"$error":"#REF!"}},{"$f":"AND(#REF!,\"QdDaGQk4zw4=\")","v":{"$error":"#REF!"}},{"$f":"AND(#REF!,\"QdDaGQk4zw8=\")","v":{"$error":"#REF!"}},{"$f":"AND(#REF!,\"QdDaGQk4zxA=\")","v":{"$error":"#REF!"}},{"$f":"AND(#REF!,\"QdDaGQk4zxE=\")","v":{"$error":"#REF!"}},{"$f":"IF(#REF!,\"QdDaGQk4zxI=\",0)","v":{"$error":"#REF!"}},{"$f":"AND(#REF!,\"QdDaGQk4zxM=\")","v":{"$error":"#REF!"}},{"$f":"AND(#REF!,\"QdDaGQk4zxQ=\")","v":{"$error":"#REF!"}},{"$f":"AND(#REF!,\"QdDaGQk4zxU=\")","v":{"$error":"#REF!"}},{"$f":"AND(#REF!,\"QdDaGQk4zxY=\")","v":{"$error":"#REF!"}},{"$f":"AND(#REF!,\"QdDaGQk4zxc=\")","v":{"$error":"#REF!"}},{"$f":"AND(#REF!,\"QdDaGQk4zxg=\")","v":{"$error":"#REF!"}},{"$f":"AND(#REF!,\"QdDaGQk4zxk=\")","v":{"$error":"#REF!"}},{"$f":"AND(#REF!,\"QdDaGQk4zxo=\")","v":{"$error":"#REF!"}},{"$f":"AND(#REF!,\"QdDaGQk4zxs=\")","v":{"$error":"#REF!"}},{"$f":"AND(#REF!,\"QdDaGQk4zxw=\")","v":{"$error":"#REF!"}},{"$f":"AND(#REF!,\"QdDaGQk4zx0=\")","v":{"$error":"#REF!"}},{"$f":"AND(#REF!,\"QdDaGQk4zx4=\")","v":{"$error":"#REF!"}},{"$f":"AND(#REF!,\"QdDaGQk4zx8=\")","v":{"$error":"#REF!"}},{"$f":"AND(#REF!,\"QdDaGQk4zyA=\")","v":{"$error":"#REF!"}},{"$f":"AND(#REF!,\"QdDaGQk4zyE=\")","v":{"$error":"#REF!"}},{"$f":"IF(#REF!,\"QdDaGQk4zyI=\",0)","v":{"$error":"#REF!"}},{"$f":"AND(#REF!,\"QdDaGQk4zyM=\")","v":{"$error":"#REF!"}},{"$f":"AND(#REF!,\"QdDaGQk4zyQ=\")","v":{"$error":"#REF!"}},{"$f":"AND(#REF!,\"QdDaGQk4zyU=\")","v":{"$error":"#REF!"}},{"$f":"AND(#REF!,\"QdDaGQk4zyY=\")","v":{"$error":"#REF!"}},{"$f":"AND(#REF!,\"QdDaGQk4zyc=\")","v":{"$error":"#REF!"}},{"$f":"AND(#REF!,\"QdDaGQk4zyg=\")","v":{"$error":"#REF!"}},{"$f":"AND(#REF!,\"QdDaGQk4zyk=\")","v":{"$error":"#REF!"}},{"$f":"AND(#REF!,\"QdDaGQk4zyo=\")","v":{"$error":"#REF!"}},{"$f":"AND(#REF!,\"QdDaGQk4zys=\")","v":{"$error":"#REF!"}},{"$f":"AND(#REF!,\"QdDaGQk4zyw=\")","v":{"$error":"#REF!"}},{"$f":"AND(#REF!,\"QdDaGQk4zy0=\")","v":{"$error":"#REF!"}},{"$f":"AND(#REF!,\"QdDaGQk4zy4=\")","v":{"$error":"#REF!"}},{"$f":"AND(#REF!,\"QdDaGQk4zy8=\")","v":{"$error":"#REF!"}},{"$f":"AND(#REF!,\"QdDaGQk4zzA=\")","v":{"$error":"#REF!"}},{"$f":"AND(#REF!,\"QdDaGQk4zzE=\")","v":{"$error":"#REF!"}},{"$f":"IF(#REF!,\"QdDaGQk4zzI=\",0)","v":{"$error":"#REF!"}},{"$f":"AND(#REF!,\"QdDaGQk4zzM=\")","v":{"$error":"#REF!"}},{"$f":"AND(#REF!,\"QdDaGQk4zzQ=\")","v":{"$error":"#REF!"}},{"$f":"AND(#REF!,\"QdDaGQk4zzU=\")","v":{"$error":"#REF!"}},{"$f":"AND(#REF!,\"QdDaGQk4zzY=\")","v":{"$error":"#REF!"}},{"$f":"AND(#REF!,\"QdDaGQk4zzc=\")","v":{"$error":"#REF!"}},{"$f":"AND(#REF!,\"QdDaGQk4zzg=\")","v":{"$error":"#REF!"}},{"$f":"AND(#REF!,\"QdDaGQk4zzk=\")","v":{"$error":"#REF!"}},{"$f":"AND(#REF!,\"QdDaGQk4zzo=\")","v":{"$error":"#REF!"}},{"$f":"AND(#REF!,\"QdDaGQk4zzs=\")","v":{"$error":"#REF!"}},{"$f":"AND(#REF!,\"QdDaGQk4zzw=\")","v":{"$error":"#REF!"}},{"$f":"AND(#REF!,\"QdDaGQk4zz0=\")","v":{"$error":"#REF!"}},{"$f":"AND(#REF!,\"QdDaGQk4zz4=\")","v":{"$error":"#REF!"}},{"$f":"AND(#REF!,\"QdDaGQk4zz8=\")","v":{"$error":"#REF!"}},{"$f":"AND(#REF!,\"QdDaGQk4z0A=\")","v":{"$error":"#REF!"}},{"$f":"AND(#REF!,\"QdDaGQk4z0E=\")","v":{"$error":"#REF!"}},{"$f":"IF(#REF!,\"QdDaGQk4z0I=\",0)","v":{"$error":"#REF!"}},{"$f":"AND(#REF!,\"QdDaGQk4z0M=\")","v":{"$error":"#REF!"}},{"$f":"AND(#REF!,\"QdDaGQk4z0Q=\")","v":{"$error":"#REF!"}},{"$f":"AND(#REF!,\"QdDaGQk4z0U=\")","v":{"$error":"#REF!"}},{"$f":"AND(#REF!,\"QdDaGQk4z0Y=\")","v":{"$error":"#REF!"}},{"$f":"AND(#REF!,\"QdDaGQk4z0c=\")","v":{"$error":"#REF!"}},{"$f":"AND(#REF!,\"QdDaGQk4z0g=\")","v":{"$error":"#REF!"}},{"$f":"AND(#REF!,\"QdDaGQk4z0k=\")","v":{"$error":"#REF!"}},{"$f":"AND(#REF!,\"QdDaGQk4z0o=\")","v":{"$error":"#REF!"}},{"$f":"AND(#REF!,\"QdDaGQk4z0s=\")","v":{"$error":"#REF!"}},{"$f":"AND(#REF!,\"QdDaGQk4z0w=\")","v":{"$error":"#REF!"}},{"$f":"AND(#REF!,\"QdDaGQk4z00=\")","v":{"$error":"#REF!"}},{"$f":"AND(#REF!,\"QdDaGQk4z04=\")","v":{"$error":"#REF!"}},{"$f":"AND(#REF!,\"QdDaGQk4z08=\")","v":{"$error":"#REF!"}},{"$f":"AND(#REF!,\"QdDaGQk4z1A=\")","v":{"$error":"#REF!"}},{"$f":"AND(#REF!,\"QdDaGQk4z1E=\")","v":{"$error":"#REF!"}},{"$f":"IF(#REF!,\"QdDaGQk4z1I=\",0)","v":{"$error":"#REF!"}},{"$f":"AND(#REF!,\"QdDaGQk4z1M=\")","v":{"$error":"#REF!"}},{"$f":"AND(#REF!,\"QdDaGQk4z1Q=\")","v":{"$error":"#REF!"}},{"$f":"AND(#REF!,\"QdDaGQk4z1U=\")","v":{"$error":"#REF!"}},{"$f":"AND(#REF!,\"QdDaGQk4z1Y=\")","v":{"$error":"#REF!"}},{"$f":"AND(#REF!,\"QdDaGQk4z1c=\")","v":{"$error":"#REF!"}},{"$f":"AND(#REF!,\"QdDaGQk4z1g=\")","v":{"$error":"#REF!"}},{"$f":"AND(#REF!,\"QdDaGQk4z1k=\")","v":{"$error":"#REF!"}},{"$f":"AND(#REF!,\"QdDaGQk4z1o=\")","v":{"$error":"#REF!"}},{"$f":"AND(#REF!,\"QdDaGQk4z1s=\")","v":{"$error":"#REF!"}},{"$f":"AND(#REF!,\"QdDaGQk4z1w=\")","v":{"$error":"#REF!"}},{"$f":"AND(#REF!,\"QdDaGQk4z10=\")","v":{"$error":"#REF!"}},{"$f":"AND(#REF!,\"QdDaGQk4z14=\")","v":{"$error":"#REF!"}},{"$f":"AND(#REF!,\"QdDaGQk4z18=\")","v":{"$error":"#REF!"}},{"$f":"AND(#REF!,\"QdDaGQk4z2A=\")","v":{"$error":"#REF!"}},{"$f":"AND(#REF!,\"QdDaGQk4z2E=\")","v":{"$error":"#REF!"}},{"$f":"IF(#REF!,\"QdDaGQk4z2I=\",0)","v":{"$error":"#REF!"}},{"$f":"AND(#REF!,\"QdDaGQk4z2M=\")","v":{"$error":"#REF!"}},{"$f":"AND(#REF!,\"QdDaGQk4z2Q=\")","v":{"$error":"#REF!"}},{"$f":"AND(#REF!,\"QdDaGQk4z2U=\")","v":{"$error":"#REF!"}},{"$f":"AND(#REF!,\"QdDaGQk4z2Y=\")","v":{"$error":"#REF!"}},{"$f":"AND(#REF!,\"QdDaGQk4z2c=\")","v":{"$error":"#REF!"}},{"$f":"AND(#REF!,\"QdDaGQk4z2g=\")","v":{"$error":"#REF!"}},{"$f":"AND(#REF!,\"QdDaGQk4z2k=\")","v":{"$error":"#REF!"}},{"$f":"AND(#REF!,\"QdDaGQk4z2o=\")","v":{"$error":"#REF!"}},{"$f":"AND(#REF!,\"QdDaGQk4z2s=\")","v":{"$error":"#REF!"}},{"$f":"AND(#REF!,\"QdDaGQk4z2w=\")","v":{"$error":"#REF!"}},{"$f":"AND(#REF!,\"QdDaGQk4z20=\")","v":{"$error":"#REF!"}},{"$f":"AND(#REF!,\"QdDaGQk4z24=\")","v":{"$error":"#REF!"}},{"$f":"AND(#REF!,\"QdDaGQk4z28=\")","v":{"$error":"#REF!"}},{"$f":"AND(#REF!,\"QdDaGQk4z3A=\")","v":{"$error":"#REF!"}},{"$f":"AND(#REF!,\"QdDaGQk4z3E=\")","v":{"$error":"#REF!"}},{"$f":"IF(#REF!,\"QdDaGQk4z3I=\",0)","v":{"$error":"#REF!"}},{"$f":"AND(#REF!,\"QdDaGQk4z3M=\")","v":{"$error":"#REF!"}},{"$f":"AND(#REF!,\"QdDaGQk4z3Q=\")","v":{"$error":"#REF!"}},{"$f":"AND(#REF!,\"QdDaGQk4z3U=\")","v":{"$error":"#REF!"}},{"$f":"AND(#REF!,\"QdDaGQk4z3Y=\")","v":{"$error":"#REF!"}},{"$f":"AND(#REF!,\"QdDaGQk4z3c=\")","v":{"$error":"#REF!"}},{"$f":"AND(#REF!,\"QdDaGQk4z3g=\")","v":{"$error":"#REF!"}},{"$f":"AND(#REF!,\"QdDaGQk4z3k=\")","v":{"$error":"#REF!"}},{"$f":"AND(#REF!,\"QdDaGQk4z3o=\")","v":{"$error":"#REF!"}},{"$f":"AND(#REF!,\"QdDaGQk4z3s=\")","v":{"$error":"#REF!"}},{"$f":"AND(#REF!,\"QdDaGQk4z3w=\")","v":{"$error":"#REF!"}},{"$f":"AND(#REF!,\"QdDaGQk4z30=\")","v":{"$error":"#REF!"}},{"$f":"AND(#REF!,\"QdDaGQk4z34=\")","v":{"$error":"#REF!"}},{"$f":"AND(#REF!,\"QdDaGQk4z38=\")","v":{"$error":"#REF!"}},{"$f":"AND(#REF!,\"QdDaGQk4z4A=\")","v":{"$error":"#REF!"}},{"$f":"AND(#REF!,\"QdDaGQk4z4E=\")","v":{"$error":"#REF!"}},{"$f":"IF(#REF!,\"QdDaGQk4z4I=\",0)","v":{"$error":"#REF!"}},{"$f":"AND(#REF!,\"QdDaGQk4z4M=\")","v":{"$error":"#REF!"}},{"$f":"AND(#REF!,\"QdDaGQk4z4Q=\")","v":{"$error":"#REF!"}},{"$f":"AND(#REF!,\"QdDaGQk4z4U=\")","v":{"$error":"#REF!"}},{"$f":"AND(#REF!,\"QdDaGQk4z4Y=\")","v":{"$error":"#REF!"}},{"$f":"AND(#REF!,\"QdDaGQk4z4c=\")","v":{"$error":"#REF!"}},{"$f":"AND(#REF!,\"QdDaGQk4z4g=\")","v":{"$error":"#REF!"}},{"$f":"AND(#REF!,\"QdDaGQk4z4k=\")","v":{"$error":"#REF!"}},{"$f":"AND(#REF!,\"QdDaGQk4z4o=\")","v":{"$error":"#REF!"}},{"$f":"AND(#REF!,\"QdDaGQk4z4s=\")","v":{"$error":"#REF!"}},{"$f":"AND(#REF!,\"QdDaGQk4z4w=\")","v":{"$error":"#REF!"}},{"$f":"AND(#REF!,\"QdDaGQk4z40=\")","v":{"$error":"#REF!"}},{"$f":"AND(#REF!,\"QdDaGQk4z44=\")","v":{"$error":"#REF!"}},{"$f":"AND(#REF!,\"QdDaGQk4z48=\")","v":{"$error":"#REF!"}},{"$f":"AND(#REF!,\"QdDaGQk4z5A=\")","v":{"$error":"#REF!"}},{"$f":"AND(#REF!,\"QdDaGQk4z5E=\")","v":{"$error":"#REF!"}},{"$f":"IF(#REF!,\"QdDaGQk4z5I=\",0)","v":{"$error":"#REF!"}},{"$f":"AND(#REF!,\"QdDaGQk4z5M=\")","v":{"$error":"#REF!"}},{"$f":"AND(#REF!,\"QdDaGQk4z5Q=\")","v":{"$error":"#REF!"}},{"$f":"AND(#REF!,\"QdDaGQk4z5U=\")","v":{"$error":"#REF!"}},{"$f":"AND(#REF!,\"QdDaGQk4z5Y=\")","v":{"$error":"#REF!"}},{"$f":"AND(#REF!,\"QdDaGQk4z5c=\")","v":{"$error":"#REF!"}},{"$f":"AND(#REF!,\"QdDaGQk4z5g=\")","v":{"$error":"#REF!"}},{"$f":"AND(#REF!,\"QdDaGQk4z5k=\")","v":{"$error":"#REF!"}},{"$f":"AND(#REF!,\"QdDaGQk4z5o=\")","v":{"$error":"#REF!"}},{"$f":"AND(#REF!,\"QdDaGQk4z5s=\")","v":{"$error":"#REF!"}},{"$f":"AND(#REF!,\"QdDaGQk4z5w=\")","v":{"$error":"#REF!"}},{"$f":"AND(#REF!,\"QdDaGQk4z50=\")","v":{"$error":"#REF!"}},{"$f":"AND(#REF!,\"QdDaGQk4z54=\")","v":{"$error":"#REF!"}},{"$f":"AND(#REF!,\"QdDaGQk4z58=\")","v":{"$error":"#REF!"}},{"$f":"AND(#REF!,\"QdDaGQk4z6A=\")","v":{"$error":"#REF!"}},{"$f":"AND(#REF!,\"QdDaGQk4z6E=\")","v":{"$error":"#REF!"}},{"$f":"IF(#REF!,\"QdDaGQk4z6I=\",0)","v":{"$error":"#REF!"}},{"$f":"AND(#REF!,\"QdDaGQk4z6M=\")","v":{"$error":"#REF!"}},{"$f":"AND(#REF!,\"QdDaGQk4z6Q=\")","v":{"$error":"#REF!"}},{"$f":"AND(#REF!,\"QdDaGQk4z6U=\")","v":{"$error":"#REF!"}},{"$f":"AND(#REF!,\"QdDaGQk4z6Y=\")","v":{"$error":"#REF!"}},{"$f":"AND(#REF!,\"QdDaGQk4z6c=\")","v":{"$error":"#REF!"}},{"$f":"AND(#REF!,\"QdDaGQk4z6g=\")","v":{"$error":"#REF!"}},{"$f":"AND(#REF!,\"QdDaGQk4z6k=\")","v":{"$error":"#REF!"}},{"$f":"AND(#REF!,\"QdDaGQk4z6o=\")","v":{"$error":"#REF!"}},{"$f":"AND(#REF!,\"QdDaGQk4z6s=\")","v":{"$error":"#REF!"}},{"$f":"AND(#REF!,\"QdDaGQk4z6w=\")","v":{"$error":"#REF!"}},{"$f":"AND(#REF!,\"QdDaGQk4z60=\")","v":{"$error":"#REF!"}},{"$f":"AND(#REF!,\"QdDaGQk4z64=\")","v":{"$error":"#REF!"}},{"$f":"AND(#REF!,\"QdDaGQk4z68=\")","v":{"$error":"#REF!"}},{"$f":"AND(#REF!,\"QdDaGQk4z7A=\")","v":{"$error":"#REF!"}},{"$f":"AND(#REF!,\"QdDaGQk4z7E=\")","v":{"$error":"#REF!"}},{"$f":"IF(#REF!,\"QdDaGQk4z7I=\",0)","v":{"$error":"#REF!"}},{"$f":"AND(#REF!,\"QdDaGQk4z7M=\")","v":{"$error":"#REF!"}},{"$f":"AND(#REF!,\"QdDaGQk4z7Q=\")","v":{"$error":"#REF!"}},{"$f":"AND(#REF!,\"QdDaGQk4z7U=\")","v":{"$error":"#REF!"}},{"$f":"AND(#REF!,\"QdDaGQk4z7Y=\")","v":{"$error":"#REF!"}},{"$f":"AND(#REF!,\"QdDaGQk4z7c=\")","v":{"$error":"#REF!"}},{"$f":"AND(#REF!,\"QdDaGQk4z7g=\")","v":{"$error":"#REF!"}},{"$f":"AND(#REF!,\"QdDaGQk4z7k=\")","v":{"$error":"#REF!"}},{"$f":"AND(#REF!,\"QdDaGQk4z7o=\")","v":{"$error":"#REF!"}},{"$f":"AND(#REF!,\"QdDaGQk4z7s=\")","v":{"$error":"#REF!"}},{"$f":"AND(#REF!,\"QdDaGQk4z7w=\")","v":{"$error":"#REF!"}},{"$f":"AND(#REF!,\"QdDaGQk4z70=\")","v":{"$error":"#REF!"}},{"$f":"AND(#REF!,\"QdDaGQk4z74=\")","v":{"$error":"#REF!"}},{"$f":"AND(#REF!,\"QdDaGQk4z78=\")","v":{"$error":"#REF!"}},{"$f":"AND(#REF!,\"QdDaGQk4z8A=\")","v":{"$error":"#REF!"}},{"$f":"AND(#REF!,\"QdDaGQk4z8E=\")","v":{"$error":"#REF!"}},{"$f":"IF(#REF!,\"QdDaGQk4z8I=\",0)","v":{"$error":"#REF!"}},{"$f":"AND(#REF!,\"QdDaGQk4z8M=\")","v":{"$error":"#REF!"}},{"$f":"AND(#REF!,\"QdDaGQk4z8Q=\")","v":{"$error":"#REF!"}},{"$f":"AND(#REF!,\"QdDaGQk4z8U=\")","v":{"$error":"#REF!"}},{"$f":"AND(#REF!,\"QdDaGQk4z8Y=\")","v":{"$error":"#REF!"}},{"$f":"AND(#REF!,\"QdDaGQk4z8c=\")","v":{"$error":"#REF!"}},{"$f":"AND(#REF!,\"QdDaGQk4z8g=\")","v":{"$error":"#REF!"}},{"$f":"AND(#REF!,\"QdDaGQk4z8k=\")","v":{"$error":"#REF!"}},{"$f":"AND(#REF!,\"QdDaGQk4z8o=\")","v":{"$error":"#REF!"}},{"$f":"AND(#REF!,\"QdDaGQk4z8s=\")","v":{"$error":"#REF!"}},{"$f":"AND(#REF!,\"QdDaGQk4z8w=\")","v":{"$error":"#REF!"}},{"$f":"AND(#REF!,\"QdDaGQk4z80=\")","v":{"$error":"#REF!"}},{"$f":"AND(#REF!,\"QdDaGQk4z84=\")","v":{"$error":"#REF!"}},{"$f":"AND(#REF!,\"QdDaGQk4z88=\")","v":{"$error":"#REF!"}},{"$f":"AND(#REF!,\"QdDaGQk4z9A=\")","v":{"$error":"#REF!"}},{"$f":"AND(#REF!,\"QdDaGQk4z9E=\")","v":{"$error":"#REF!"}},{"$f":"IF(#REF!,\"QdDaGQk4z9I=\",0)","v":{"$error":"#REF!"}},{"$f":"AND(#REF!,\"QdDaGQk4z9M=\")","v":{"$error":"#REF!"}},{"$f":"AND(#REF!,\"QdDaGQk4z9Q=\")","v":{"$error":"#REF!"}},{"$f":"AND(#REF!,\"QdDaGQk4z9U=\")","v":{"$error":"#REF!"}},{"$f":"AND(#REF!,\"QdDaGQk4z9Y=\")","v":{"$error":"#REF!"}},{"$f":"AND(#REF!,\"QdDaGQk4z9c=\")","v":{"$error":"#REF!"}},{"$f":"AND(#REF!,\"QdDaGQk4z9g=\")","v":{"$error":"#REF!"}},{"$f":"AND(#REF!,\"QdDaGQk4z9k=\")","v":{"$error":"#REF!"}},{"$f":"AND(#REF!,\"QdDaGQk4z9o=\")","v":{"$error":"#REF!"}},{"$f":"AND(#REF!,\"QdDaGQk4z9s=\")","v":{"$error":"#REF!"}},{"$f":"AND(#REF!,\"QdDaGQk4z9w=\")","v":{"$error":"#REF!"}},{"$f":"AND(#REF!,\"QdDaGQk4z90=\")","v":{"$error":"#REF!"}},{"$f":"AND(#REF!,\"QdDaGQk4z94=\")","v":{"$error":"#REF!"}},{"$f":"AND(#REF!,\"QdDaGQk4z98=\")","v":{"$error":"#REF!"}},{"$f":"AND(#REF!,\"QdDaGQk4z+A=\")","v":{"$error":"#REF!"}},{"$f":"AND(#REF!,\"QdDaGQk4z+E=\")","v":{"$error":"#REF!"}},{"$f":"IF(#REF!,\"QdDaGQk4z+I=\",0)","v":{"$error":"#REF!"}},{"$f":"AND(#REF!,\"QdDaGQk4z+M=\")","v":{"$error":"#REF!"}},{"$f":"AND(#REF!,\"QdDaGQk4z+Q=\")","v":{"$error":"#REF!"}},{"$f":"AND(#REF!,\"QdDaGQk4z+U=\")","v":{"$error":"#REF!"}},{"$f":"AND(#REF!,\"QdDaGQk4z+Y=\")","v":{"$error":"#REF!"}},{"$f":"AND(#REF!,\"QdDaGQk4z+c=\")","v":{"$error":"#REF!"}},{"$f":"AND(#REF!,\"QdDaGQk4z+g=\")","v":{"$error":"#REF!"}},{"$f":"AND(#REF!,\"QdDaGQk4z+k=\")","v":{"$error":"#REF!"}},{"$f":"AND(#REF!,\"QdDaGQk4z+o=\")","v":{"$error":"#REF!"}},{"$f":"AND(#REF!,\"QdDaGQk4z+s=\")","v":{"$error":"#REF!"}},{"$f":"AND(#REF!,\"QdDaGQk4z+w=\")","v":{"$error":"#REF!"}},{"$f":"AND(#REF!,\"QdDaGQk4z+0=\")","v":{"$error":"#REF!"}},{"$f":"AND(#REF!,\"QdDaGQk4z+4=\")","v":{"$error":"#REF!"}},{"$f":"AND(#REF!,\"QdDaGQk4z+8=\")","v":{"$error":"#REF!"}},{"$f":"AND(#REF!,\"QdDaGQk4z/A=\")","v":{"$error":"#REF!"}},{"$f":"AND(#REF!,\"QdDaGQk4z/E=\")","v":{"$error":"#REF!"}},{"$f":"IF(#REF!,\"QdDaGQk4z/I=\",0)","v":{"$error":"#REF!"}},{"$f":"AND(#REF!,\"QdDaGQk4z/M=\")","v":{"$error":"#REF!"}},{"$f":"AND(#REF!,\"QdDaGQk4z/Q=\")","v":{"$error":"#REF!"}},{"$f":"AND(#REF!,\"QdDaGQk4z/U=\")","v":{"$error":"#REF!"}},{"$f":"AND(#REF!,\"QdDaGQk4z/Y=\")","v":{"$error":"#REF!"}},{"$f":"AND(#REF!,\"QdDaGQk4z/c=\")","v":{"$error":"#REF!"}},{"$f":"AND(#REF!,\"QdDaGQk4z/g=\")","v":{"$error":"#REF!"}},{"$f":"AND(#REF!,\"QdDaGQk4z/k=\")","v":{"$error":"#REF!"}},{"$f":"AND(#REF!,\"QdDaGQk4z/o=\")","v":{"$error":"#REF!"}},{"$f":"AND(#REF!,\"QdDaGQk4z/s=\")","v":{"$error":"#REF!"}},{"$f":"AND(#REF!,\"QdDaGQk4z/w=\")","v":{"$error":"#REF!"}},{"$f":"AND(#REF!,\"QdDaGQk4z/0=\")","v":{"$error":"#REF!"}},{"$f":"AND(#REF!,\"QdDaGQk4z/4=\")","v":{"$error":"#REF!"}},{"$f":"AND(#REF!,\"QdDaGQk4z/8=\")","v":{"$error":"#REF!"}}]
[{"$f":"AND(#REF!,\"dN3+IWn1swA=\")","v":{"$error":"#REF!"}},{"$f":"AND(#REF!,\"dN3+IWn1swE=\")","v":{"$error":"#REF!"}},{"$f":"IF(#REF!,\"dN3+IWn1swI=\",0)","v":{"$error":"#REF!"}},{"$f":"AND(#REF!,\"dN3+IWn1swM=\")","v":{"$error":"#REF!"}},{"$f":"AND(#REF!,\"dN3+IWn1swQ=\")","v":{"$error":"#REF!"}},{"$f":"AND(#REF!,\"dN3+IWn1swU=\")","v":{"$error":"#REF!"}},{"$f":"AND(#REF!,\"dN3+IWn1swY=\")","v":{"$error":"#REF!"}},{"$f":"AND(#REF!,\"dN3+IWn1swc=\")","v":{"$error":"#REF!"}},{"$f":"AND(#REF!,\"dN3+IWn1swg=\")","v":{"$error":"#REF!"}},{"$f":"AND(#REF!,\"dN3+IWn1swk=\")","v":{"$error":"#REF!"}},{"$f":"AND(#REF!,\"dN3+IWn1swo=\")","v":{"$error":"#REF!"}},{"$f":"AND(#REF!,\"dN3+IWn1sws=\")","v":{"$error":"#REF!"}},{"$f":"AND(#REF!,\"dN3+IWn1sww=\")","v":{"$error":"#REF!"}},{"$f":"AND(#REF!,\"dN3+IWn1sw0=\")","v":{"$error":"#REF!"}},{"$f":"AND(#REF!,\"dN3+IWn1sw4=\")","v":{"$error":"#REF!"}},{"$f":"AND(#REF!,\"dN3+IWn1sw8=\")","v":{"$error":"#REF!"}},{"$f":"AND(#REF!,\"dN3+IWn1sxA=\")","v":{"$error":"#REF!"}},{"$f":"AND(#REF!,\"dN3+IWn1sxE=\")","v":{"$error":"#REF!"}},{"$f":"IF(#REF!,\"dN3+IWn1sxI=\",0)","v":{"$error":"#REF!"}},{"$f":"AND(#REF!,\"dN3+IWn1sxM=\")","v":{"$error":"#REF!"}},{"$f":"AND(#REF!,\"dN3+IWn1sxQ=\")","v":{"$error":"#REF!"}},{"$f":"AND(#REF!,\"dN3+IWn1sxU=\")","v":{"$error":"#REF!"}},{"$f":"AND(#REF!,\"dN3+IWn1sxY=\")","v":{"$error":"#REF!"}},{"$f":"AND(#REF!,\"dN3+IWn1sxc=\")","v":{"$error":"#REF!"}},{"$f":"AND(#REF!,\"dN3+IWn1sxg=\")","v":{"$error":"#REF!"}},{"$f":"AND(#REF!,\"dN3+IWn1sxk=\")","v":{"$error":"#REF!"}},{"$f":"AND(#REF!,\"dN3+IWn1sxo=\")","v":{"$error":"#REF!"}},{"$f":"AND(#REF!,\"dN3+IWn1sxs=\")","v":{"$error":"#REF!"}},{"$f":"AND(#REF!,\"dN3+IWn1sxw=\")","v":{"$error":"#REF!"}},{"$f":"AND(#REF!,\"dN3+IWn1sx0=\")","v":{"$error":"#REF!"}},{"$f":"AND(#REF!,\"dN3+IWn1sx4=\")","v":{"$error":"#REF!"}},{"$f":"AND(#REF!,\"dN3+IWn1sx8=\")","v":{"$error":"#REF!"}},{"$f":"AND(#REF!,\"dN3+IWn1syA=\")","v":{"$error":"#REF!"}},{"$f":"AND(#REF!,\"dN3+IWn1syE=\")","v":{"$error":"#REF!"}},{"$f":"IF(#REF!,\"dN3+IWn1syI=\",0)","v":{"$error":"#REF!"}},{"$f":"AND(#REF!,\"dN3+IWn1syM=\")","v":{"$error":"#REF!"}},{"$f":"AND(#REF!,\"dN3+IWn1syQ=\")","v":{"$error":"#REF!"}},{"$f":"AND(#REF!,\"dN3+IWn1syU=\")","v":{"$error":"#REF!"}},{"$f":"AND(#REF!,\"dN3+IWn1syY=\")","v":{"$error":"#REF!"}},{"$f":"AND(#REF!,\"dN3+IWn1syc=\")","v":{"$error":"#REF!"}},{"$f":"AND(#REF!,\"dN3+IWn1syg=\")","v":{"$error":"#REF!"}},{"$f":"AND(#REF!,\"dN3+IWn1syk=\")","v":{"$error":"#REF!"}},{"$f":"AND(#REF!,\"dN3+IWn1syo=\")","v":{"$error":"#REF!"}},{"$f":"AND(#REF!,\"dN3+IWn1sys=\")","v":{"$error":"#REF!"}},{"$f":"AND(#REF!,\"dN3+IWn1syw=\")","v":{"$error":"#REF!"}},{"$f":"AND(#REF!,\"dN3+IWn1sy0=\")","v":{"$error":"#REF!"}},{"$f":"AND(#REF!,\"dN3+IWn1sy4=\")","v":{"$error":"#REF!"}},{"$f":"AND(#REF!,\"dN3+IWn1sy8=\")","v":{"$error":"#REF!"}},{"$f":"AND(#REF!,\"dN3+IWn1szA=\")","v":{"$error":"#REF!"}},{"$f":"AND(#REF!,\"dN3+IWn1szE=\")","v":{"$error":"#REF!"}},{"$f":"IF(#REF!,\"dN3+IWn1szI=\",0)","v":{"$error":"#REF!"}},{"$f":"AND(#REF!,\"dN3+IWn1szM=\")","v":{"$error":"#REF!"}},{"$f":"AND(#REF!,\"dN3+IWn1szQ=\")","v":{"$error":"#REF!"}},{"$f":"AND(#REF!,\"dN3+IWn1szU=\")","v":{"$error":"#REF!"}},{"$f":"AND(#REF!,\"dN3+IWn1szY=\")","v":{"$error":"#REF!"}},{"$f":"AND(#REF!,\"dN3+IWn1szc=\")","v":{"$error":"#REF!"}},{"$f":"AND(#REF!,\"dN3+IWn1szg=\")","v":{"$error":"#REF!"}},{"$f":"AND(#REF!,\"dN3+IWn1szk=\")","v":{"$error":"#REF!"}},{"$f":"AND(#REF!,\"dN3+IWn1szo=\")","v":{"$error":"#REF!"}},{"$f":"AND(#REF!,\"dN3+IWn1szs=\")","v":{"$error":"#REF!"}},{"$f":"AND(#REF!,\"dN3+IWn1szw=\")","v":{"$error":"#REF!"}},{"$f":"AND(#REF!,\"dN3+IWn1sz0=\")","v":{"$error":"#REF!"}},{"$f":"AND(#REF!,\"dN3+IWn1sz4=\")","v":{"$error":"#REF!"}},{"$f":"AND(#REF!,\"dN3+IWn1sz8=\")","v":{"$error":"#REF!"}},{"$f":"AND(#REF!,\"dN3+IWn1s0A=\")","v":{"$error":"#REF!"}},{"$f":"AND(#REF!,\"dN3+IWn1s0E=\")","v":{"$error":"#REF!"}},{"$f":"IF(#REF!,\"dN3+IWn1s0I=\",0)","v":{"$error":"#REF!"}},{"$f":"AND(#REF!,\"dN3+IWn1s0M=\")","v":{"$error":"#REF!"}},{"$f":"AND(#REF!,\"dN3+IWn1s0Q=\")","v":{"$error":"#REF!"}},{"$f":"AND(#REF!,\"dN3+IWn1s0U=\")","v":{"$error":"#REF!"}},{"$f":"AND(#REF!,\"dN3+IWn1s0Y=\")","v":{"$error":"#REF!"}},{"$f":"AND(#REF!,\"dN3+IWn1s0c=\")","v":{"$error":"#REF!"}},{"$f":"AND(#REF!,\"dN3+IWn1s0g=\")","v":{"$error":"#REF!"}},{"$f":"AND(#REF!,\"dN3+IWn1s0k=\")","v":{"$error":"#REF!"}},{"$f":"AND(#REF!,\"dN3+IWn1s0o=\")","v":{"$error":"#REF!"}},{"$f":"AND(#REF!,\"dN3+IWn1s0s=\")","v":{"$error":"#REF!"}},{"$f":"AND(#REF!,\"dN3+IWn1s0w=\")","v":{"$error":"#REF!"}},{"$f":"AND(#REF!,\"dN3+IWn1s00=\")","v":{"$error":"#REF!"}},{"$f":"AND(#REF!,\"dN3+IWn1s04=\")","v":{"$error":"#REF!"}},{"$f":"AND(#REF!,\"dN3+IWn1s08=\")","v":{"$error":"#REF!"}},{"$f":"AND(#REF!,\"dN3+IWn1s1A=\")","v":{"$error":"#REF!"}},{"$f":"AND(#REF!,\"dN3+IWn1s1E=\")","v":{"$error":"#REF!"}},{"$f":"IF(#REF!,\"dN3+IWn1s1I=\",0)","v":{"$error":"#REF!"}},{"$f":"AND(#REF!,\"dN3+IWn1s1M=\")","v":{"$error":"#REF!"}},{"$f":"AND(#REF!,\"dN3+IWn1s1Q=\")","v":{"$error":"#REF!"}},{"$f":"AND(#REF!,\"dN3+IWn1s1U=\")","v":{"$error":"#REF!"}},{"$f":"AND(#REF!,\"dN3+IWn1s1Y=\")","v":{"$error":"#REF!"}},{"$f":"AND(#REF!,\"dN3+IWn1s1c=\")","v":{"$error":"#REF!"}},{"$f":"AND(#REF!,\"dN3+IWn1s1g=\")","v":{"$error":"#REF!"}},{"$f":"AND(#REF!,\"dN3+IWn1s1k=\")","v":{"$error":"#REF!"}},{"$f":"AND(#REF!,\"dN3+IWn1s1o=\")","v":{"$error":"#REF!"}},{"$f":"AND(#REF!,\"dN3+IWn1s1s=\")","v":{"$error":"#REF!"}},{"$f":"AND(#REF!,\"dN3+IWn1s1w=\")","v":{"$error":"#REF!"}},{"$f":"AND(#REF!,\"dN3+IWn1s10=\")","v":{"$error":"#REF!"}},{"$f":"AND(#REF!,\"dN3+IWn1s14=\")","v":{"$error":"#REF!"}},{"$f":"AND(#REF!,\"dN3+IWn1s18=\")","v":{"$error":"#REF!"}},{"$f":"AND(#REF!,\"dN3+IWn1s2A=\")","v":{"$error":"#REF!"}},{"$f":"AND(#REF!,\"dN3+IWn1s2E=\")","v":{"$error":"#REF!"}},{"$f":"IF(#REF!,\"dN3+IWn1s2I=\",0)","v":{"$error":"#REF!"}},{"$f":"AND(#REF!,\"dN3+IWn1s2M=\")","v":{"$error":"#REF!"}},{"$f":"AND(#REF!,\"dN3+IWn1s2Q=\")","v":{"$error":"#REF!"}},{"$f":"AND(#REF!,\"dN3+IWn1s2U=\")","v":{"$error":"#REF!"}},{"$f":"AND(#REF!,\"dN3+IWn1s2Y=\")","v":{"$error":"#REF!"}},{"$f":"AND(#REF!,\"dN3+IWn1s2c=\")","v":{"$error":"#REF!"}},{"$f":"AND(#REF!,\"dN3+IWn1s2g=\")","v":{"$error":"#REF!"}},{"$f":"AND(#REF!,\"dN3+IWn1s2k=\")","v":{"$error":"#REF!"}},{"$f":"AND(#REF!,\"dN3+IWn1s2o=\")","v":{"$error":"#REF!"}},{"$f":"AND(#REF!,\"dN3+IWn1s2s=\")","v":{"$error":"#REF!"}},{"$f":"AND(#REF!,\"dN3+IWn1s2w=\")","v":{"$error":"#REF!"}},{"$f":"AND(#REF!,\"dN3+IWn1s20=\")","v":{"$error":"#REF!"}},{"$f":"AND(#REF!,\"dN3+IWn1s24=\")","v":{"$error":"#REF!"}},{"$f":"AND(#REF!,\"dN3+IWn1s28=\")","v":{"$error":"#REF!"}},{"$f":"AND(#REF!,\"dN3+IWn1s3A=\")","v":{"$error":"#REF!"}},{"$f":"AND(#REF!,\"dN3+IWn1s3E=\")","v":{"$error":"#REF!"}},{"$f":"IF(#REF!,\"dN3+IWn1s3I=\",0)","v":{"$error":"#REF!"}},{"$f":"AND(#REF!,\"dN3+IWn1s3M=\")","v":{"$error":"#REF!"}},{"$f":"AND(#REF!,\"dN3+IWn1s3Q=\")","v":{"$error":"#REF!"}},{"$f":"AND(#REF!,\"dN3+IWn1s3U=\")","v":{"$error":"#REF!"}},{"$f":"AND(#REF!,\"dN3+IWn1s3Y=\")","v":{"$error":"#REF!"}},{"$f":"AND(#REF!,\"dN3+IWn1s3c=\")","v":{"$error":"#REF!"}},{"$f":"AND(#REF!,\"dN3+IWn1s3g=\")","v":{"$error":"#REF!"}},{"$f":"AND(#REF!,\"dN3+IWn1s3k=\")","v":{"$error":"#REF!"}},{"$f":"AND(#REF!,\"dN3+IWn1s3o=\")","v":{"$error":"#REF!"}},{"$f":"AND(#REF!,\"dN3+IWn1s3s=\")","v":{"$error":"#REF!"}},{"$f":"AND(#REF!,\"dN3+IWn1s3w=\")","v":{"$error":"#REF!"}},{"$f":"AND(#REF!,\"dN3+IWn1s30=\")","v":{"$error":"#REF!"}},{"$f":"AND(#REF!,\"dN3+IWn1s34=\")","v":{"$error":"#REF!"}},{"$f":"AND(#REF!,\"dN3+IWn1s38=\")","v":{"$error":"#REF!"}},{"$f":"AND(#REF!,\"dN3+IWn1s4A=\")","v":{"$error":"#REF!"}},{"$f":"AND(#REF!,\"dN3+IWn1s4E=\")","v":{"$error":"#REF!"}},{"$f":"IF(#REF!,\"dN3+IWn1s4I=\",0)","v":{"$error":"#REF!"}},{"$f":"AND(#REF!,\"dN3+IWn1s4M=\")","v":{"$error":"#REF!"}},{"$f":"AND(#REF!,\"dN3+IWn1s4Q=\")","v":{"$error":"#REF!"}},{"$f":"AND(#REF!,\"dN3+IWn1s4U=\")","v":{"$error":"#REF!"}},{"$f":"AND(#REF!,\"dN3+IWn1s4Y=\")","v":{"$error":"#REF!"}},{"$f":"AND(#REF!,\"dN3+IWn1s4c=\")","v":{"$error":"#REF!"}},{"$f":"AND(#REF!,\"dN3+IWn1s4g=\")","v":{"$error":"#REF!"}},{"$f":"AND(#REF!,\"dN3+IWn1s4k=\")","v":{"$error":"#REF!"}},{"$f":"AND(#REF!,\"dN3+IWn1s4o=\")","v":{"$error":"#REF!"}},{"$f":"AND(#REF!,\"dN3+IWn1s4s=\")","v":{"$error":"#REF!"}},{"$f":"AND(#REF!,\"dN3+IWn1s4w=\")","v":{"$error":"#REF!"}},{"$f":"AND(#REF!,\"dN3+IWn1s40=\")","v":{"$error":"#REF!"}},{"$f":"AND(#REF!,\"dN3+IWn1s44=\")","v":{"$error":"#REF!"}},{"$f":"AND(#REF!,\"dN3+IWn1s48=\")","v":{"$error":"#REF!"}},{"$f":"AND(#REF!,\"dN3+IWn1s5A=\")","v":{"$error":"#REF!"}},{"$f":"AND(#REF!,\"dN3+IWn1s5E=\")","v":{"$error":"#REF!"}},{"$f":"IF(#REF!,\"dN3+IWn1s5I=\",0)","v":{"$error":"#REF!"}},{"$f":"AND(#REF!,\"dN3+IWn1s5M=\")","v":{"$error":"#REF!"}},{"$f":"AND(#REF!,\"dN3+IWn1s5Q=\")","v":{"$error":"#REF!"}},{"$f":"AND(#REF!,\"dN3+IWn1s5U=\")","v":{"$error":"#REF!"}},{"$f":"AND(#REF!,\"dN3+IWn1s5Y=\")","v":{"$error":"#REF!"}},{"$f":"AND(#REF!,\"dN3+IWn1s5c=\")","v":{"$error":"#REF!"}},{"$f":"AND(#REF!,\"dN3+IWn1s5g=\")","v":{"$error":"#REF!"}},{"$f":"AND(#REF!,\"dN3+IWn1s5k=\")","v":{"$error":"#REF!"}},{"$f":"AND(#REF!,\"dN3+IWn1s5o=\")","v":{"$error":"#REF!"}},{"$f":"AND(#REF!,\"dN3+IWn1s5s=\")","v":{"$error":"#REF!"}},{"$f":"AND(#REF!,\"dN3+IWn1s5w=\")","v":{"$error":"#REF!"}},{"$f":"AND(#REF!,\"dN3+IWn1s50=\")","v":{"$error":"#REF!"}},{"$f":"AND(#REF!,\"dN3+IWn1s54=\")","v":{"$error":"#REF!"}},{"$f":"AND(#REF!,\"dN3+IWn1s58=\")","v":{"$error":"#REF!"}},{"$f":"AND(#REF!,\"dN3+IWn1s6A=\")","v":{"$error":"#REF!"}},{"$f":"AND(#REF!,\"dN3+IWn1s6E=\")","v":{"$error":"#REF!"}},{"$f":"IF(#REF!,\"dN3+IWn1s6I=\",0)","v":{"$error":"#REF!"}},{"$f":"AND(#REF!,\"dN3+IWn1s6M=\")","v":{"$error":"#REF!"}},{"$f":"AND(#REF!,\"dN3+IWn1s6Q=\")","v":{"$error":"#REF!"}},{"$f":"AND(#REF!,\"dN3+IWn1s6U=\")","v":{"$error":"#REF!"}},{"$f":"AND(#REF!,\"dN3+IWn1s6Y=\")","v":{"$error":"#REF!"}},{"$f":"AND(#REF!,\"dN3+IWn1s6c=\")","v":{"$error":"#REF!"}},{"$f":"AND(#REF!,\"dN3+IWn1s6g=\")","v":{"$error":"#REF!"}},{"$f":"AND(#REF!,\"dN3+IWn1s6k=\")","v":{"$error":"#REF!"}},{"$f":"AND(#REF!,\"dN3+IWn1s6o=\")","v":{"$error":"#REF!"}},{"$f":"AND(#REF!,\"dN3+IWn1s6s=\")","v":{"$error":"#REF!"}},{"$f":"AND(#REF!,\"dN3+IWn1s6w=\")","v":{"$error":"#REF!"}},{"$f":"AND(#REF!,\"dN3+IWn1s60=\")","v":{"$error":"#REF!"}},{"$f":"AND(#REF!,\"dN3+IWn1s64=\")","v":{"$error":"#REF!"}},{"$f":"AND(#REF!,\"dN3+IWn1s68=\")","v":{"$error":"#REF!"}},{"$f":"AND(#REF!,\"dN3+IWn1s7A=\")","v":{"$error":"#REF!"}},{"$f":"AND(#REF!,\"dN3+IWn1s7E=\")","v":{"$error":"#REF!"}},{"$f":"IF(#REF!,\"dN3+IWn1s7I=\",0)","v":{"$error":"#REF!"}},{"$f":"AND(#REF!,\"dN3+IWn1s7M=\")","v":{"$error":"#REF!"}},{"$f":"AND(#REF!,\"dN3+IWn1s7Q=\")","v":{"$error":"#REF!"}},{"$f":"AND(#REF!,\"dN3+IWn1s7U=\")","v":{"$error":"#REF!"}},{"$f":"AND(#REF!,\"dN3+IWn1s7Y=\")","v":{"$error":"#REF!"}},{"$f":"AND(#REF!,\"dN3+IWn1s7c=\")","v":{"$error":"#REF!"}},{"$f":"AND(#REF!,\"dN3+IWn1s7g=\")","v":{"$error":"#REF!"}},{"$f":"AND(#REF!,\"dN3+IWn1s7k=\")","v":{"$error":"#REF!"}},{"$f":"AND(#REF!,\"dN3+IWn1s7o=\")","v":{"$error":"#REF!"}},{"$f":"AND(#REF!,\"dN3+IWn1s7s=\")","v":{"$error":"#REF!"}},{"$f":"AND(#REF!,\"dN3+IWn1s7w=\")","v":{"$error":"#REF!"}},{"$f":"AND(#REF!,\"dN3+IWn1s70=\")","v":{"$error":"#REF!"}},{"$f":"AND(#REF!,\"dN3+IWn1s74=\")","v":{"$error":"#REF!"}},{"$f":"AND(#REF!,\"dN3+IWn1s78=\")","v":{"$error":"#REF!"}},{"$f":"AND(#REF!,\"dN3+IWn1s8A=\")","v":{"$error":"#REF!"}},{"$f":"AND(#REF!,\"dN3+IWn1s8E=\")","v":{"$error":"#REF!"}},{"$f":"IF(#REF!,\"dN3+IWn1s8I=\",0)","v":{"$error":"#REF!"}},{"$f":"AND(#REF!,\"dN3+IWn1s8M=\")","v":{"$error":"#REF!"}},{"$f":"AND(#REF!,\"dN3+IWn1s8Q=\")","v":{"$error":"#REF!"}},{"$f":"AND(#REF!,\"dN3+IWn1s8U=\")","v":{"$error":"#REF!"}},{"$f":"AND(#REF!,\"dN3+IWn1s8Y=\")","v":{"$error":"#REF!"}},{"$f":"AND(#REF!,\"dN3+IWn1s8c=\")","v":{"$error":"#REF!"}},{"$f":"AND(#REF!,\"dN3+IWn1s8g=\")","v":{"$error":"#REF!"}},{"$f":"AND(#REF!,\"dN3+IWn1s8k=\")","v":{"$error":"#REF!"}},{"$f":"AND(#REF!,\"dN3+IWn1s8o=\")","v":{"$error":"#REF!"}},{"$f":"AND(#REF!,\"dN3+IWn1s8s=\")","v":{"$error":"#REF!"}},{"$f":"AND(#REF!,\"dN3+IWn1s8w=\")","v":{"$error":"#REF!"}},{"$f":"AND(#REF!,\"dN3+IWn1s80=\")","v":{"$error":"#REF!"}},{"$f":"AND(#REF!,\"dN3+IWn1s84=\")","v":{"$error":"#REF!"}},{"$f":"AND(#REF!,\"dN3+IWn1s88=\")","v":{"$error":"#REF!"}},{"$f":"AND(#REF!,\"dN3+IWn1s9A=\")","v":{"$error":"#REF!"}},{"$f":"AND(#REF!,\"dN3+IWn1s9E=\")","v":{"$error":"#REF!"}},{"$f":"IF(#REF!,\"dN3+IWn1s9I=\",0)","v":{"$error":"#REF!"}},{"$f":"AND(#REF!,\"dN3+IWn1s9M=\")","v":{"$error":"#REF!"}},{"$f":"AND(#REF!,\"dN3+IWn1s9Q=\")","v":{"$error":"#REF!"}},{"$f":"AND(#REF!,\"dN3+IWn1s9U=\")","v":{"$error":"#REF!"}},{"$f":"AND(#REF!,\"dN3+IWn1s9Y=\")","v":{"$error":"#REF!"}},{"$f":"AND(#REF!,\"dN3+IWn1s9c=\")","v":{"$error":"#REF!"}},{"$f":"AND(#REF!,\"dN3+IWn1s9g=\")","v":{"$error":"#REF!"}},{"$f":"AND(#REF!,\"dN3+IWn1s9k=\")","v":{"$error":"#REF!"}},{"$f":"AND(#REF!,\"dN3+IWn1s9o=\")","v":{"$error":"#REF!"}},{"$f":"AND(#REF!,\"dN3+IWn1s9s=\")","v":{"$error":"#REF!"}},{"$f":"AND(#REF!,\"dN3+IWn1s9w=\")","v":{"$error":"#REF!"}},{"$f":"AND(#REF!,\"dN3+IWn1s90=\")","v":{"$error":"#REF!"}},{"$f":"AND(#REF!,\"dN3+IWn1s94=\")","v":{"$error":"#REF!"}},{"$f":"AND(#REF!,\"dN3+IWn1s98=\")","v":{"$error":"#REF!"}},{"$f":"AND(#REF!,\"dN3+IWn1s+A=\")","v":{"$error":"#REF!"}},{"$f":"AND(#REF!,\"dN3+IWn1s+E=\")","v":{"$error":"#REF!"}},{"$f":"IF(#REF!,\"dN3+IWn1s+I=\",0)","v":{"$error":"#REF!"}},{"$f":"AND(#REF!,\"dN3+IWn1s+M=\")","v":{"$error":"#REF!"}},{"$f":"AND(#REF!,\"dN3+IWn1s+Q=\")","v":{"$error":"#REF!"}},{"$f":"AND(#REF!,\"dN3+IWn1s+U=\")","v":{"$error":"#REF!"}},{"$f":"AND(#REF!,\"dN3+IWn1s+Y=\")","v":{"$error":"#REF!"}},{"$f":"AND(#REF!,\"dN3+IWn1s+c=\")","v":{"$error":"#REF!"}},{"$f":"AND(#REF!,\"dN3+IWn1s+g=\")","v":{"$error":"#REF!"}},{"$f":"AND(#REF!,\"dN3+IWn1s+k=\")","v":{"$error":"#REF!"}},{"$f":"AND(#REF!,\"dN3+IWn1s+o=\")","v":{"$error":"#REF!"}},{"$f":"AND(#REF!,\"dN3+IWn1s+s=\")","v":{"$error":"#REF!"}},{"$f":"AND(#REF!,\"dN3+IWn1s+w=\")","v":{"$error":"#REF!"}},{"$f":"AND(#REF!,\"dN3+IWn1s+0=\")","v":{"$error":"#REF!"}},{"$f":"AND(#REF!,\"dN3+IWn1s+4=\")","v":{"$error":"#REF!"}},{"$f":"AND(#REF!,\"dN3+IWn1s+8=\")","v":{"$error":"#REF!"}},{"$f":"AND(#REF!,\"dN3+IWn1s/A=\")","v":{"$error":"#REF!"}},{"$f":"AND(#REF!,\"dN3+IWn1s/E=\")","v":{"$error":"#REF!"}},{"$f":"IF(#REF!,\"dN3+IWn1s/I=\",0)","v":{"$error":"#REF!"}},{"$f":"AND(#REF!,\"dN3+IWn1s/M=\")","v":{"$error":"#REF!"}},{"$f":"AND(#REF!,\"dN3+IWn1s/Q=\")","v":{"$error":"#REF!"}},{"$f":"AND(#REF!,\"dN3+IWn1s/U=\")","v":{"$error":"#REF!"}},{"$f":"AND(#REF!,\"dN3+IWn1s/Y=\")","v":{"$error":"#REF!"}},{"$f":"AND(#REF!,\"dN3+IWn1s/c=\")","v":{"$error":"#REF!"}},{"$f":"AND(#REF!,\"dN3+IWn1s/g=\")","v":{"$error":"#REF!"}},{"$f":"AND(#REF!,\"dN3+IWn1s/k=\")","v":{"$error":"#REF!"}},{"$f":"AND(#REF!,\"dN3+IWn1s/o=\")","v":{"$error":"#REF!"}},{"$f":"AND(#REF!,\"dN3+IWn1s/s=\")","v":{"$error":"#REF!"}},{"$f":"AND(#REF!,\"dN3+IWn1s/w=\")","v":{"$error":"#REF!"}},{"$f":"AND(#REF!,\"dN3+IWn1s/0=\")","v":{"$error":"#REF!"}},{"$f":"AND(#REF!,\"dN3+IWn1s/4=\")","v":{"$error":"#REF!"}},{"$f":"AND(#REF!,\"dN3+IWn1s/8=\")","v":{"$error":"#REF!"}}]
[{"$f":"AND(#REF!,\"CsdxsA7+xAA=\")","v":{"$error":"#REF!"}},{"$f":"AND(#REF!,\"CsdxsA7+xAE=\")","v":{"$error":"#REF!"}},{"$f":"IF(#REF!,\"CsdxsA7+xAI=\",0)","v":{"$error":"#REF!"}},{"$f":"AND(#REF!,\"CsdxsA7+xAM=\")","v":{"$error":"#REF!"}},{"$f":"AND(#REF!,\"CsdxsA7+xAQ=\")","v":{"$error":"#REF!"}},{"$f":"AND(#REF!,\"CsdxsA7+xAU=\")","v":{"$error":"#REF!"}},{"$f":"AND(#REF!,\"CsdxsA7+xAY=\")","v":{"$error":"#REF!"}},{"$f":"AND(#REF!,\"CsdxsA7+xAc=\")","v":{"$error":"#REF!"}},{"$f":"AND(#REF!,\"CsdxsA7+xAg=\")","v":{"$error":"#REF!"}},{"$f":"AND(#REF!,\"CsdxsA7+xAk=\")","v":{"$error":"#REF!"}},{"$f":"AND(#REF!,\"CsdxsA7+xAo=\")","v":{"$error":"#REF!"}},{"$f":"AND(#REF!,\"CsdxsA7+xAs=\")","v":{"$error":"#REF!"}},{"$f":"AND(#REF!,\"CsdxsA7+xAw=\")","v":{"$error":"#REF!"}},{"$f":"AND(#REF!,\"CsdxsA7+xA0=\")","v":{"$error":"#REF!"}},{"$f":"AND(#REF!,\"CsdxsA7+xA4=\")","v":{"$error":"#REF!"}},{"$f":"AND(#REF!,\"CsdxsA7+xA8=\")","v":{"$error":"#REF!"}},{"$f":"AND(#REF!,\"CsdxsA7+xBA=\")","v":{"$error":"#REF!"}},{"$f":"AND(#REF!,\"CsdxsA7+xBE=\")","v":{"$error":"#REF!"}},{"$f":"IF(#REF!,\"CsdxsA7+xBI=\",0)","v":{"$error":"#REF!"}},{"$f":"AND(#REF!,\"CsdxsA7+xBM=\")","v":{"$error":"#REF!"}},{"$f":"AND(#REF!,\"CsdxsA7+xBQ=\")","v":{"$error":"#REF!"}},{"$f":"AND(#REF!,\"CsdxsA7+xBU=\")","v":{"$error":"#REF!"}},{"$f":"AND(#REF!,\"CsdxsA7+xBY=\")","v":{"$error":"#REF!"}},{"$f":"AND(#REF!,\"CsdxsA7+xBc=\")","v":{"$error":"#REF!"}},{"$f":"AND(#REF!,\"CsdxsA7+xBg=\")","v":{"$error":"#REF!"}},{"$f":"AND(#REF!,\"CsdxsA7+xBk=\")","v":{"$error":"#REF!"}},{"$f":"AND(#REF!,\"CsdxsA7+xBo=\")","v":{"$error":"#REF!"}},{"$f":"AND(#REF!,\"CsdxsA7+xBs=\")","v":{"$error":"#REF!"}},{"$f":"AND(#REF!,\"CsdxsA7+xBw=\")","v":{"$error":"#REF!"}},{"$f":"AND(#REF!,\"CsdxsA7+xB0=\")","v":{"$error":"#REF!"}},{"$f":"AND(#REF!,\"CsdxsA7+xB4=\")","v":{"$error":"#REF!"}},{"$f":"AND(#REF!,\"CsdxsA7+xB8=\")","v":{"$error":"#REF!"}},{"$f":"AND(#REF!,\"CsdxsA7+xCA=\")","v":{"$error":"#REF!"}},{"$f":"AND(#REF!,\"CsdxsA7+xCE=\")","v":{"$error":"#REF!"}},{"$f":"IF(#REF!,\"CsdxsA7+xCI=\",0)","v":{"$error":"#REF!"}},{"$f":"AND(#REF!,\"CsdxsA7+xCM=\")","v":{"$error":"#REF!"}},{"$f":"AND(#REF!,\"CsdxsA7+xCQ=\")","v":{"$error":"#REF!"}},{"$f":"AND(#REF!,\"CsdxsA7+xCU=\")","v":{"$error":"#REF!"}},{"$f":"AND(#REF!,\"CsdxsA7+xCY=\")","v":{"$error":"#REF!"}},{"$f":"AND(#REF!,\"CsdxsA7+xCc=\")","v":{"$error":"#REF!"}},{"$f":"AND(#REF!,\"CsdxsA7+xCg=\")","v":{"$error":"#REF!"}},{"$f":"AND(#REF!,\"CsdxsA7+xCk=\")","v":{"$error":"#REF!"}},{"$f":"AND(#REF!,\"CsdxsA7+xCo=\")","v":{"$error":"#REF!"}},{"$f":"AND(#REF!,\"CsdxsA7+xCs=\")","v":{"$error":"#REF!"}},{"$f":"AND(#REF!,\"CsdxsA7+xCw=\")","v":{"$error":"#REF!"}},{"$f":"AND(#REF!,\"CsdxsA7+xC0=\")","v":{"$error":"#REF!"}},{"$f":"AND(#REF!,\"CsdxsA7+xC4=\")","v":{"$error":"#REF!"}},{"$f":"AND(#REF!,\"CsdxsA7+xC8=\")","v":{"$error":"#REF!"}},{"$f":"AND(#REF!,\"CsdxsA7+xDA=\")","v":{"$error":"#REF!"}},{"$f":"AND(#REF!,\"CsdxsA7+xDE=\")","v":{"$error":"#REF!"}},{"$f":"IF(#REF!,\"CsdxsA7+xDI=\",0)","v":{"$error":"#REF!"}},{"$f":"AND(#REF!,\"CsdxsA7+xDM=\")","v":{"$error":"#REF!"}},{"$f":"AND(#REF!,\"CsdxsA7+xDQ=\")","v":{"$error":"#REF!"}},{"$f":"AND(#REF!,\"CsdxsA7+xDU=\")","v":{"$error":"#REF!"}},{"$f":"AND(#REF!,\"CsdxsA7+xDY=\")","v":{"$error":"#REF!"}},{"$f":"AND(#REF!,\"CsdxsA7+xDc=\")","v":{"$error":"#REF!"}},{"$f":"AND(#REF!,\"CsdxsA7+xDg=\")","v":{"$error":"#REF!"}},{"$f":"AND(#REF!,\"CsdxsA7+xDk=\")","v":{"$error":"#REF!"}},{"$f":"AND(#REF!,\"CsdxsA7+xDo=\")","v":{"$error":"#REF!"}},{"$f":"AND(#REF!,\"CsdxsA7+xDs=\")","v":{"$error":"#REF!"}},{"$f":"AND(#REF!,\"CsdxsA7+xDw=\")","v":{"$error":"#REF!"}},{"$f":"AND(#REF!,\"CsdxsA7+xD0=\")","v":{"$error":"#REF!"}},{"$f":"AND(#REF!,\"CsdxsA7+xD4=\")","v":{"$error":"#REF!"}},{"$f":"AND(#REF!,\"CsdxsA7+xD8=\")","v":{"$error":"#REF!"}},{"$f":"AND(#REF!,\"CsdxsA7+xEA=\")","v":{"$error":"#REF!"}},{"$f":"AND(#REF!,\"CsdxsA7+xEE=\")","v":{"$error":"#REF!"}},{"$f":"IF(#REF!,\"CsdxsA7+xEI=\",0)","v":{"$error":"#REF!"}},{"$f":"AND(#REF!,\"CsdxsA7+xEM=\")","v":{"$error":"#REF!"}},{"$f":"AND(#REF!,\"CsdxsA7+xEQ=\")","v":{"$error":"#REF!"}},{"$f":"AND(#REF!,\"CsdxsA7+xEU=\")","v":{"$error":"#REF!"}},{"$f":"AND(#REF!,\"CsdxsA7+xEY=\")","v":{"$error":"#REF!"}},{"$f":"AND(#REF!,\"CsdxsA7+xEc=\")","v":{"$error":"#REF!"}},{"$f":"AND(#REF!,\"CsdxsA7+xEg=\")","v":{"$error":"#REF!"}},{"$f":"AND(#REF!,\"CsdxsA7+xEk=\")","v":{"$error":"#REF!"}},{"$f":"AND(#REF!,\"CsdxsA7+xEo=\")","v":{"$error":"#REF!"}},{"$f":"AND(#REF!,\"CsdxsA7+xEs=\")","v":{"$error":"#REF!"}},{"$f":"AND(#REF!,\"CsdxsA7+xEw=\")","v":{"$error":"#REF!"}},{"$f":"AND(#REF!,\"CsdxsA7+xE0=\")","v":{"$error":"#REF!"}},{"$f":"AND(#REF!,\"CsdxsA7+xE4=\")","v":{"$error":"#REF!"}},{"$f":"AND(#REF!,\"CsdxsA7+xE8=\")","v":{"$error":"#REF!"}},{"$f":"AND(#REF!,\"CsdxsA7+xFA=\")","v":{"$error":"#REF!"}},{"$f":"AND(#REF!,\"CsdxsA7+xFE=\")","v":{"$error":"#REF!"}},{"$f":"IF(#REF!,\"CsdxsA7+xFI=\",0)","v":{"$error":"#REF!"}},{"$f":"AND(#REF!,\"CsdxsA7+xFM=\")","v":{"$error":"#REF!"}},{"$f":"AND(#REF!,\"CsdxsA7+xFQ=\")","v":{"$error":"#REF!"}},{"$f":"AND(#REF!,\"CsdxsA7+xFU=\")","v":{"$error":"#REF!"}},{"$f":"AND(#REF!,\"CsdxsA7+xFY=\")","v":{"$error":"#REF!"}},{"$f":"AND(#REF!,\"CsdxsA7+xFc=\")","v":{"$error":"#REF!"}},{"$f":"AND(#REF!,\"CsdxsA7+xFg=\")","v":{"$error":"#REF!"}},{"$f":"AND(#REF!,\"CsdxsA7+xFk=\")","v":{"$error":"#REF!"}},{"$f":"AND(#REF!,\"CsdxsA7+xFo=\")","v":{"$error":"#REF!"}},{"$f":"AND(#REF!,\"CsdxsA7+xFs=\")","v":{"$error":"#REF!"}},{"$f":"AND(#REF!,\"CsdxsA7+xFw=\")","v":{"$error":"#REF!"}},{"$f":"AND(#REF!,\"CsdxsA7+xF0=\")","v":{"$error":"#REF!"}},{"$f":"AND(#REF!,\"CsdxsA7+xF4=\")","v":{"$error":"#REF!"}},{"$f":"AND(#REF!,\"CsdxsA7+xF8=\")","v":{"$error":"#REF!"}},{"$f":"AND(#REF!,\"CsdxsA7+xGA=\")","v":{"$error":"#REF!"}},{"$f":"AND(#REF!,\"CsdxsA7+xGE=\")","v":{"$error":"#REF!"}},{"$f":"IF(#REF!,\"CsdxsA7+xGI=\",0)","v":{"$error":"#REF!"}},{"$f":"AND(#REF!,\"CsdxsA7+xGM=\")","v":{"$error":"#REF!"}},{"$f":"AND(#REF!,\"CsdxsA7+xGQ=\")","v":{"$error":"#REF!"}},{"$f":"AND(#REF!,\"CsdxsA7+xGU=\")","v":{"$error":"#REF!"}},{"$f":"AND(#REF!,\"CsdxsA7+xGY=\")","v":{"$error":"#REF!"}},{"$f":"AND(#REF!,\"CsdxsA7+xGc=\")","v":{"$error":"#REF!"}},{"$f":"AND(#REF!,\"CsdxsA7+xGg=\")","v":{"$error":"#REF!"}},{"$f":"AND(#REF!,\"CsdxsA7+xGk=\")","v":{"$error":"#REF!"}},{"$f":"AND(#REF!,\"CsdxsA7+xGo=\")","v":{"$error":"#REF!"}},{"$f":"AND(#REF!,\"CsdxsA7+xGs=\")","v":{"$error":"#REF!"}},{"$f":"AND(#REF!,\"CsdxsA7+xGw=\")","v":{"$error":"#REF!"}},{"$f":"AND(#REF!,\"CsdxsA7+xG0=\")","v":{"$error":"#REF!"}},{"$f":"AND(#REF!,\"CsdxsA7+xG4=\")","v":{"$error":"#REF!"}},{"$f":"AND(#REF!,\"CsdxsA7+xG8=\")","v":{"$error":"#REF!"}},{"$f":"AND(#REF!,\"CsdxsA7+xHA=\")","v":{"$error":"#REF!"}},{"$f":"AND(#REF!,\"CsdxsA7+xHE=\")","v":{"$error":"#REF!"}},{"$f":"IF(#REF!,\"CsdxsA7+xHI=\",0)","v":{"$error":"#REF!"}},{"$f":"AND(#REF!,\"CsdxsA7+xHM=\")","v":{"$error":"#REF!"}},{"$f":"AND(#REF!,\"CsdxsA7+xHQ=\")","v":{"$error":"#REF!"}},{"$f":"AND(#REF!,\"CsdxsA7+xHU=\")","v":{"$error":"#REF!"}},{"$f":"AND(#REF!,\"CsdxsA7+xHY=\")","v":{"$error":"#REF!"}},{"$f":"AND(#REF!,\"CsdxsA7+xHc=\")","v":{"$error":"#REF!"}},{"$f":"AND(#REF!,\"CsdxsA7+xHg=\")","v":{"$error":"#REF!"}},{"$f":"AND(#REF!,\"CsdxsA7+xHk=\")","v":{"$error":"#REF!"}},{"$f":"AND(#REF!,\"CsdxsA7+xHo=\")","v":{"$error":"#REF!"}},{"$f":"AND(#REF!,\"CsdxsA7+xHs=\")","v":{"$error":"#REF!"}},{"$f":"AND(#REF!,\"CsdxsA7+xHw=\")","v":{"$error":"#REF!"}},{"$f":"AND(#REF!,\"CsdxsA7+xH0=\")","v":{"$error":"#REF!"}},{"$f":"AND(#REF!,\"CsdxsA7+xH4=\")","v":{"$error":"#REF!"}},{"$f":"AND(#REF!,\"CsdxsA7+xH8=\")","v":{"$error":"#REF!"}},{"$f":"AND(#REF!,\"CsdxsA7+xIA=\")","v":{"$error":"#REF!"}},{"$f":"AND(#REF!,\"CsdxsA7+xIE=\")","v":{"$error":"#REF!"}},{"$f":"IF(#REF!,\"CsdxsA7+xII=\",0)","v":{"$error":"#REF!"}},{"$f":"AND(#REF!,\"CsdxsA7+xIM=\")","v":{"$error":"#REF!"}},{"$f":"AND(#REF!,\"CsdxsA7+xIQ=\")","v":{"$error":"#REF!"}},{"$f":"AND(#REF!,\"CsdxsA7+xIU=\")","v":{"$error":"#REF!"}},{"$f":"AND(#REF!,\"CsdxsA7+xIY=\")","v":{"$error":"#REF!"}},{"$f":"AND(#REF!,\"CsdxsA7+xIc=\")","v":{"$error":"#REF!"}},{"$f":"AND(#REF!,\"CsdxsA7+xIg=\")","v":{"$error":"#REF!"}},{"$f":"AND(#REF!,\"CsdxsA7+xIk=\")","v":{"$error":"#REF!"}},{"$f":"AND(#REF!,\"CsdxsA7+xIo=\")","v":{"$error":"#REF!"}},{"$f":"AND(#REF!,\"CsdxsA7+xIs=\")","v":{"$error":"#REF!"}},{"$f":"AND(#REF!,\"CsdxsA7+xIw=\")","v":{"$error":"#REF!"}},{"$f":"AND(#REF!,\"CsdxsA7+xI0=\")","v":{"$error":"#REF!"}},{"$f":"AND(#REF!,\"CsdxsA7+xI4=\")","v":{"$error":"#REF!"}},{"$f":"AND(#REF!,\"CsdxsA7+xI8=\")","v":{"$error":"#REF!"}},{"$f":"AND(#REF!,\"CsdxsA7+xJA=\")","v":{"$error":"#REF!"}},{"$f":"AND(#REF!,\"CsdxsA7+xJE=\")","v":{"$error":"#REF!"}},{"$f":"IF(#REF!,\"CsdxsA7+xJI=\",0)","v":{"$error":"#REF!"}},{"$f":"AND(#REF!,\"CsdxsA7+xJM=\")","v":{"$error":"#REF!"}},{"$f":"AND(#REF!,\"CsdxsA7+xJQ=\")","v":{"$error":"#REF!"}},{"$f":"AND(#REF!,\"CsdxsA7+xJU=\")","v":{"$error":"#REF!"}},{"$f":"AND(#REF!,\"CsdxsA7+xJY=\")","v":{"$error":"#REF!"}},{"$f":"AND(#REF!,\"CsdxsA7+xJc=\")","v":{"$error":"#REF!"}},{"$f":"AND(#REF!,\"CsdxsA7+xJg=\")","v":{"$error":"#REF!"}},{"$f":"AND(#REF!,\"CsdxsA7+xJk=\")","v":{"$error":"#REF!"}},{"$f":"AND(#REF!,\"CsdxsA7+xJo=\")","v":{"$error":"#REF!"}},{"$f":"AND(#REF!,\"CsdxsA7+xJs=\")","v":{"$error":"#REF!"}},{"$f":"AND(#REF!,\"CsdxsA7+xJw=\")","v":{"$error":"#REF!"}},{"$f":"AND(#REF!,\"CsdxsA7+xJ0=\")","v":{"$error":"#REF!"}},{"$f":"AND(#REF!,\"CsdxsA7+xJ4=\")","v":{"$error":"#REF!"}},{"$f":"AND(#REF!,\"CsdxsA7+xJ8=\")","v":{"$error":"#REF!"}},{"$f":"AND(#REF!,\"CsdxsA7+xKA=\")","v":{"$error":"#REF!"}},{"$f":"AND(#REF!,\"CsdxsA7+xKE=\")","v":{"$error":"#REF!"}},{"$f":"IF(#REF!,\"CsdxsA7+xKI=\",0)","v":{"$error":"#REF!"}},{"$f":"AND(#REF!,\"CsdxsA7+xKM=\")","v":{"$error":"#REF!"}},{"$f":"AND(#REF!,\"CsdxsA7+xKQ=\")","v":{"$error":"#REF!"}},{"$f":"AND(#REF!,\"CsdxsA7+xKU=\")","v":{"$error":"#REF!"}},{"$f":"AND(#REF!,\"CsdxsA7+xKY=\")","v":{"$error":"#REF!"}},{"$f":"AND(#REF!,\"CsdxsA7+xKc=\")","v":{"$error":"#REF!"}},{"$f":"AND(#REF!,\"CsdxsA7+xKg=\")","v":{"$error":"#REF!"}},{"$f":"AND(#REF!,\"CsdxsA7+xKk=\")","v":{"$error":"#REF!"}},{"$f":"AND(#REF!,\"CsdxsA7+xKo=\")","v":{"$error":"#REF!"}},{"$f":"AND(#REF!,\"CsdxsA7+xKs=\")","v":{"$error":"#REF!"}},{"$f":"AND(#REF!,\"CsdxsA7+xKw=\")","v":{"$error":"#REF!"}},{"$f":"AND(#REF!,\"CsdxsA7+xK0=\")","v":{"$error":"#REF!"}},{"$f":"AND(#REF!,\"CsdxsA7+xK4=\")","v":{"$error":"#REF!"}},{"$f":"AND(#REF!,\"CsdxsA7+xK8=\")","v":{"$error":"#REF!"}},{"$f":"AND(#REF!,\"CsdxsA7+xLA=\")","v":{"$error":"#REF!"}},{"$f":"AND(#REF!,\"CsdxsA7+xLE=\")","v":{"$error":"#REF!"}},{"$f":"IF(#REF!,\"CsdxsA7+xLI=\",0)","v":{"$error":"#REF!"}},{"$f":"AND(#REF!,\"CsdxsA7+xLM=\")","v":{"$error":"#REF!"}},{"$f":"AND(#REF!,\"CsdxsA7+xLQ=\")","v":{"$error":"#REF!"}},{"$f":"AND(#REF!,\"CsdxsA7+xLU=\")","v":{"$error":"#REF!"}},{"$f":"AND(#REF!,\"CsdxsA7+xLY=\")","v":{"$error":"#REF!"}},{"$f":"AND(#REF!,\"CsdxsA7+xLc=\")","v":{"$error":"#REF!"}},{"$f":"AND(#REF!,\"CsdxsA7+xLg=\")","v":{"$error":"#REF!"}},{"$f":"AND(#REF!,\"CsdxsA7+xLk=\")","v":{"$error":"#REF!"}},{"$f":"AND(#REF!,\"CsdxsA7+xLo=\")","v":{"$error":"#REF!"}},{"$f":"AND(#REF!,\"CsdxsA7+xLs=\")","v":{"$error":"#REF!"}},{"$f":"AND(#REF!,\"CsdxsA7+xLw=\")","v":{"$error":"#REF!"}},{"$f":"AND(#REF!,\"CsdxsA7+xL0=\")","v":{"$error":"#REF!"}},{"$f":"AND(#REF!,\"CsdxsA7+xL4=\")","v":{"$error":"#REF!"}},{"$f":"AND(#REF!,\"CsdxsA7+xL8=\")","v":{"$error":"#REF!"}},{"$f":"AND(#REF!,\"CsdxsA7+xMA=\")","v":{"$error":"#REF!"}},{"$f":"AND(#REF!,\"CsdxsA7+xME=\")","v":{"$error":"#REF!"}},{"$f":"IF(#REF!,\"CsdxsA7+xMI=\",0)","v":{"$error":"#REF!"}},{"$f":"AND(#REF!,\"CsdxsA7+xMM=\")","v":{"$error":"#REF!"}},{"$f":"AND(#REF!,\"CsdxsA7+xMQ=\")","v":{"$error":"#REF!"}},{"$f":"AND(#REF!,\"CsdxsA7+xMU=\")","v":{"$error":"#REF!"}},{"$f":"AND(#REF!,\"CsdxsA7+xMY=\")","v":{"$error":"#REF!"}},{"$f":"AND(#REF!,\"CsdxsA7+xMc=\")","v":{"$error":"#REF!"}},{"$f":"AND(#REF!,\"CsdxsA7+xMg=\")","v":{"$error":"#REF!"}},{"$f":"AND(#REF!,\"CsdxsA7+xMk=\")","v":{"$error":"#REF!"}},{"$f":"AND(#REF!,\"CsdxsA7+xMo=\")","v":{"$error":"#REF!"}},{"$f":"AND(#REF!,\"CsdxsA7+xMs=\")","v":{"$error":"#REF!"}},{"$f":"AND(#REF!,\"CsdxsA7+xMw=\")","v":{"$error":"#REF!"}},{"$f":"AND(#REF!,\"CsdxsA7+xM0=\")","v":{"$error":"#REF!"}},{"$f":"AND(#REF!,\"CsdxsA7+xM4=\")","v":{"$error":"#REF!"}},{"$f":"AND(#REF!,\"CsdxsA7+xM8=\")","v":{"$error":"#REF!"}},{"$f":"AND(#REF!,\"CsdxsA7+xNA=\")","v":{"$error":"#REF!"}},{"$f":"AND(#REF!,\"CsdxsA7+xNE=\")","v":{"$error":"#REF!"}},{"$f":"IF(#REF!,\"CsdxsA7+xNI=\",0)","v":{"$error":"#REF!"}},{"$f":"AND(#REF!,\"CsdxsA7+xNM=\")","v":{"$error":"#REF!"}},{"$f":"AND(#REF!,\"CsdxsA7+xNQ=\")","v":{"$error":"#REF!"}},{"$f":"AND(#REF!,\"CsdxsA7+xNU=\")","v":{"$error":"#REF!"}},{"$f":"AND(#REF!,\"CsdxsA7+xNY=\")","v":{"$error":"#REF!"}},{"$f":"AND(#REF!,\"CsdxsA7+xNc=\")","v":{"$error":"#REF!"}},{"$f":"AND(#REF!,\"CsdxsA7+xNg=\")","v":{"$error":"#REF!"}},{"$f":"AND(#REF!,\"CsdxsA7+xNk=\")","v":{"$error":"#REF!"}},{"$f":"AND(#REF!,\"CsdxsA7+xNo=\")","v":{"$error":"#REF!"}},{"$f":"AND(#REF!,\"CsdxsA7+xNs=\")","v":{"$error":"#REF!"}},{"$f":"AND(#REF!,\"CsdxsA7+xNw=\")","v":{"$error":"#REF!"}},{"$f":"AND(#REF!,\"CsdxsA7+xN0=\")","v":{"$error":"#REF!"}},{"$f":"AND(#REF!,\"CsdxsA7+xN4=\")","v":{"$error":"#REF!"}},{"$f":"AND(#REF!,\"CsdxsA7+xN8=\")","v":{"$error":"#REF!"}},{"$f":"AND(#REF!,\"CsdxsA7+xOA=\")","v":{"$error":"#REF!"}},{"$f":"AND(#REF!,\"CsdxsA7+xOE=\")","v":{"$error":"#REF!"}},{"$f":"IF(#REF!,\"CsdxsA7+xOI=\",0)","v":{"$error":"#REF!"}},{"$f":"AND(#REF!,\"CsdxsA7+xOM=\")","v":{"$error":"#REF!"}},{"$f":"AND(#REF!,\"CsdxsA7+xOQ=\")","v":{"$error":"#REF!"}},{"$f":"AND(#REF!,\"CsdxsA7+xOU=\")","v":{"$error":"#REF!"}},{"$f":"AND(#REF!,\"CsdxsA7+xOY=\")","v":{"$error":"#REF!"}},{"$f":"AND(#REF!,\"CsdxsA7+xOc=\")","v":{"$error":"#REF!"}},{"$f":"AND(#REF!,\"CsdxsA7+xOg=\")","v":{"$error":"#REF!"}},{"$f":"AND(#REF!,\"CsdxsA7+xOk=\")","v":{"$error":"#REF!"}},{"$f":"AND(#REF!,\"CsdxsA7+xOo=\")","v":{"$error":"#REF!"}},{"$f":"AND(#REF!,\"CsdxsA7+xOs=\")","v":{"$error":"#REF!"}},{"$f":"AND(#REF!,\"CsdxsA7+xOw=\")","v":{"$error":"#REF!"}},{"$f":"AND(#REF!,\"CsdxsA7+xO0=\")","v":{"$error":"#REF!"}},{"$f":"AND(#REF!,\"CsdxsA7+xO4=\")","v":{"$error":"#REF!"}},{"$f":"AND(#REF!,\"CsdxsA7+xO8=\")","v":{"$error":"#REF!"}},{"$f":"AND(#REF!,\"CsdxsA7+xPA=\")","v":{"$error":"#REF!"}},{"$f":"AND(#REF!,\"CsdxsA7+xPE=\")","v":{"$error":"#REF!"}},{"$f":"IF(#REF!,\"CsdxsA7+xPI=\",0)","v":{"$error":"#REF!"}},{"$f":"AND(#REF!,\"CsdxsA7+xPM=\")","v":{"$error":"#REF!"}},{"$f":"AND(#REF!,\"CsdxsA7+xPQ=\")","v":{"$error":"#REF!"}},{"$f":"AND(#REF!,\"CsdxsA7+xPU=\")","v":{"$error":"#REF!"}},{"$f":"AND(#REF!,\"CsdxsA7+xPY=\")","v":{"$error":"#REF!"}},{"$f":"AND(#REF!,\"CsdxsA7+xPc=\")","v":{"$error":"#REF!"}},{"$f":"AND(#REF!,\"CsdxsA7+xPg=\")","v":{"$error":"#REF!"}},{"$f":"AND(#REF!,\"CsdxsA7+xPk=\")","v":{"$error":"#REF!"}},{"$f":"AND(#REF!,\"CsdxsA7+xPo=\")","v":{"$error":"#REF!"}},{"$f":"AND(#REF!,\"CsdxsA7+xPs=\")","v":{"$error":"#REF!"}},{"$f":"AND(#REF!,\"CsdxsA7+xPw=\")","v":{"$error":"#REF!"}},{"$f":"AND(#REF!,\"CsdxsA7+xP0=\")","v":{"$error":"#REF!"}},{"$f":"AND(#REF!,\"CsdxsA7+xP4=\")","v":{"$error":"#REF!"}},{"$f":"AND(#REF!,\"CsdxsA7+xP8=\")","v":{"$error":"#REF!"}}]
[{"$f":"AND(#REF!,\"c/iAazZ96AA=\")","v":{"$error":"#REF!"}},{"$f":"AND(#REF!,\"c/iAazZ96AE=\")","v":{"$error":"#REF!"}},{"$f":"IF(#REF!,\"c/iAazZ96AI=\",0)","v":{"$error":"#REF!"}},{"$f":"AND(#REF!,\"c/iAazZ96AM=\")","v":{"$error":"#REF!"}},{"$f":"AND(#REF!,\"c/iAazZ96AQ=\")","v":{"$error":"#REF!"}},{"$f":"AND(#REF!,\"c/iAazZ96AU=\")","v":{"$error":"#REF!"}},{"$f":"AND(#REF!,\"c/iAazZ96AY=\")","v":{"$error":"#REF!"}},{"$f":"AND(#REF!,\"c/iAazZ96Ac=\")","v":{"$error":"#REF!"}},{"$f":"AND(#REF!,\"c/iAazZ96Ag=\")","v":{"$error":"#REF!"}},{"$f":"AND(#REF!,\"c/iAazZ96Ak=\")","v":{"$error":"#REF!"}},{"$f":"AND(#REF!,\"c/iAazZ96Ao=\")","v":{"$error":"#REF!"}},{"$f":"AND(#REF!,\"c/iAazZ96As=\")","v":{"$error":"#REF!"}},{"$f":"AND(#REF!,\"c/iAazZ96Aw=\")","v":{"$error":"#REF!"}},{"$f":"AND(#REF!,\"c/iAazZ96A0=\")","v":{"$error":"#REF!"}},{"$f":"AND(#REF!,\"c/iAazZ96A4=\")","v":{"$error":"#REF!"}},{"$f":"AND(#REF!,\"c/iAazZ96A8=\")","v":{"$error":"#REF!"}},{"$f":"AND(#REF!,\"c/iAazZ96BA=\")","v":{"$error":"#REF!"}},{"$f":"AND(#REF!,\"c/iAazZ96BE=\")","v":{"$error":"#REF!"}},{"$f":"IF(#REF!,\"c/iAazZ96BI=\",0)","v":{"$error":"#REF!"}},{"$f":"IF(#REF!,\"c/iAazZ96BM=\",0)","v":{"$error":"#REF!"}},{"$f":"IF(#REF!,\"c/iAazZ96BQ=\",0)","v":{"$error":"#REF!"}},{"$f":"IF(#REF!,\"c/iAazZ96BU=\",0)","v":{"$error":"#REF!"}},{"$f":"IF(#REF!,\"c/iAazZ96BY=\",0)","v":{"$error":"#REF!"}},{"$f":"IF(#REF!,\"c/iAazZ96Bc=\",0)","v":{"$error":"#REF!"}},{"$f":"IF(#REF!,\"c/iAazZ96Bg=\",0)","v":{"$error":"#REF!"}},{"$f":"IF(#REF!,\"c/iAazZ96Bk=\",0)","v":{"$error":"#REF!"}},{"$f":"IF(#REF!,\"c/iAazZ96Bo=\",0)","v":{"$error":"#REF!"}},{"$f":"IF(#REF!,\"c/iAazZ96Bs=\",0)","v":{"$error":"#REF!"}},{"$f":"IF(#REF!,\"c/iAazZ96Bw=\",0)","v":{"$error":"#REF!"}},{"$f":"IF(#REF!,\"c/iAazZ96B0=\",0)","v":{"$error":"#REF!"}},{"$f":"IF(#REF!,\"c/iAazZ96B4=\",0)","v":{"$error":"#REF!"}},{"$f":"IF(#REF!,\"c/iAazZ96B8=\",0)","v":{"$error":"#REF!"}},{"$f":"IF(#REF!,\"c/iAazZ96CA=\",0)","v":{"$error":"#REF!"}},{"$f":"IF('Building Envelope Calculator'!1:1,\"c/iAazZ96CE=\",0)","v":0},{"$f":"AND('Building Envelope Calculator'!A1,\"c/iAazZ96CI=\")","v":{"$error":"#VALUE!"}},{"$f":"AND('Building Envelope Calculator'!B1,\"c/iAazZ96CM=\")","v":{"$error":"#VALUE!"}},{"$f":"AND('Building Envelope Calculator'!C1,\"c/iAazZ96CQ=\")","v":{"$error":"#VALUE!"}},{"$f":"AND('Building Envelope Calculator'!D1,\"c/iAazZ96CU=\")","v":{"$error":"#VALUE!"}},{"$f":"AND('Building Envelope Calculator'!E1,\"c/iAazZ96CY=\")","v":{"$error":"#VALUE!"}},{"$f":"AND('Building Envelope Calculator'!F1,\"c/iAazZ96Cc=\")","v":{"$error":"#VALUE!"}},{"$f":"AND('Building Envelope Calculator'!G1,\"c/iAazZ96Cg=\")","v":{"$error":"#VALUE!"}},{"$f":"AND('Building Envelope Calculator'!H1,\"c/iAazZ96Ck=\")","v":{"$error":"#VALUE!"}},{"$f":"AND('Building Envelope Calculator'!I1,\"c/iAazZ96Co=\")","v":{"$error":"#VALUE!"}},{"$f":"AND('Building Envelope Calculator'!J1,\"c/iAazZ96Cs=\")","v":{"$error":"#VALUE!"}},{"$f":"AND('Building Envelope Calculator'!K1,\"c/iAazZ96Cw=\")","v":{"$error":"#VALUE!"}},{"$f":"AND('Building Envelope Calculator'!L1,\"c/iAazZ96C0=\")","v":{"$error":"#VALUE!"}},{"$f":"AND('Building Envelope Calculator'!M1,\"c/iAazZ96C4=\")","v":{"$error":"#VALUE!"}},{"$f":"AND('Building Envelope Calculator'!N1,\"c/iAazZ96C8=\")","v":{"$error":"#VALUE!"}},{"$f":"AND('Building Envelope Calculator'!O1,\"c/iAazZ96DA=\")","v":{"$error":"#VALUE!"}},{"$f":"AND('Building Envelope Calculator'!P1,\"c/iAazZ96DE=\")","v":{"$error":"#VALUE!"}},{"$f":"AND('Building Envelope Calculator'!Q1,\"c/iAazZ96DI=\")","v":{"$error":"#VALUE!"}},{"$f":"AND('Building Envelope Calculator'!R1,\"c/iAazZ96DM=\")","v":{"$error":"#VALUE!"}},{"$f":"AND('Building Envelope Calculator'!S1,\"c/iAazZ96DQ=\")","v":{"$error":"#VALUE!"}},{"$f":"IF('Building Envelope Calculator'!#REF!,\"c/iAazZ96DU=\",0)","v":{"$error":"#REF!"}},{"$f":"AND('Building Envelope Calculator'!#REF!,\"c/iAazZ96DY=\")","v":{"$error":"#REF!"}},{"$f":"AND('Building Envelope Calculator'!#REF!,\"c/iAazZ96Dc=\")","v":{"$error":"#REF!"}},{"$f":"AND('Building Envelope Calculator'!#REF!,\"c/iAazZ96Dg=\")","v":{"$error":"#REF!"}},{"$f":"AND('Building Envelope Calculator'!#REF!,\"c/iAazZ96Dk=\")","v":{"$error":"#REF!"}},{"$f":"AND('Building Envelope Calculator'!#REF!,\"c/iAazZ96Do=\")","v":{"$error":"#REF!"}},{"$f":"AND('Building Envelope Calculator'!#REF!,\"c/iAazZ96Ds=\")","v":{"$error":"#REF!"}},{"$f":"AND('Building Envelope Calculator'!#REF!,\"c/iAazZ96Dw=\")","v":{"$error":"#REF!"}},{"$f":"AND('Building Envelope Calculator'!#REF!,\"c/iAazZ96D0=\")","v":{"$error":"#REF!"}},{"$f":"AND('Building Envelope Calculator'!#REF!,\"c/iAazZ96D4=\")","v":{"$error":"#REF!"}},{"$f":"AND('Building Envelope Calculator'!#REF!,\"c/iAazZ96D8=\")","v":{"$error":"#REF!"}},{"$f":"AND('Building Envelope Calculator'!#REF!,\"c/iAazZ96EA=\")","v":{"$error":"#REF!"}},{"$f":"AND('Building Envelope Calculator'!#REF!,\"c/iAazZ96EE=\")","v":{"$error":"#REF!"}},{"$f":"AND('Building Envelope Calculator'!#REF!,\"c/iAazZ96EI=\")","v":{"$error":"#REF!"}},{"$f":"AND('Building Envelope Calculator'!#REF!,\"c/iAazZ96EM=\")","v":{"$error":"#REF!"}},{"$f":"AND('Building Envelope Calculator'!#REF!,\"c/iAazZ96EQ=\")","v":{"$error":"#REF!"}},{"$f":"AND('Building Envelope Calculator'!#REF!,\"c/iAazZ96EU=\")","v":{"$error":"#REF!"}},{"$f":"AND('Building Envelope Calculator'!#REF!,\"c/iAazZ96EY=\")","v":{"$error":"#REF!"}},{"$f":"AND('Building Envelope Calculator'!#REF!,\"c/iAazZ96Ec=\")","v":{"$error":"#REF!"}},{"$f":"AND('Building Envelope Calculator'!#REF!,\"c/iAazZ96Eg=\")","v":{"$error":"#REF!"}},{"$f":"IF('Building Envelope Calculator'!2:2,\"c/iAazZ96Ek=\",0)","v":0},{"$f":"AND('Building Envelope Calculator'!A2,\"c/iAazZ96Eo=\")","v":{"$error":"#VALUE!"}},{"$f":"AND('Building Envelope Calculator'!B2,\"c/iAazZ96Es=\")","v":{"$error":"#VALUE!"}},{"$f":"AND('Building Envelope Calculator'!C2,\"c/iAazZ96Ew=\")","v":{"$error":"#VALUE!"}},{"$f":"AND('Building Envelope Calculator'!D2,\"c/iAazZ96E0=\")","v":{"$error":"#VALUE!"}},{"$f":"AND('Building Envelope Calculator'!E2,\"c/iAazZ96E4=\")","v":{"$error":"#VALUE!"}},{"$f":"AND('Building Envelope Calculator'!F2,\"c/iAazZ96E8=\")","v":{"$error":"#VALUE!"}},{"$f":"AND('Building Envelope Calculator'!G2,\"c/iAazZ96FA=\")","v":{"$error":"#VALUE!"}},{"$f":"AND('Building Envelope Calculator'!H2,\"c/iAazZ96FE=\")","v":{"$error":"#VALUE!"}},{"$f":"AND('Building Envelope Calculator'!I2,\"c/iAazZ96FI=\")","v":{"$error":"#VALUE!"}},{"$f":"AND('Building Envelope Calculator'!J2,\"c/iAazZ96FM=\")","v":{"$error":"#VALUE!"}},{"$f":"AND('Building Envelope Calculator'!K2,\"c/iAazZ96FQ=\")","v":{"$error":"#VALUE!"}},{"$f":"AND('Building Envelope Calculator'!L2,\"c/iAazZ96FU=\")","v":{"$error":"#VALUE!"}},{"$f":"AND('Building Envelope Calculator'!M2,\"c/iAazZ96FY=\")","v":{"$error":"#VALUE!"}},{"$f":"AND('Building Envelope Calculator'!N2,\"c/iAazZ96Fc=\")","v":{"$error":"#VALUE!"}},{"$f":"AND('Building Envelope Calculator'!O2,\"c/iAazZ96Fg=\")","v":{"$error":"#VALUE!"}},{"$f":"AND('Building Envelope Calculator'!P2,\"c/iAazZ96Fk=\")","v":{"$error":"#VALUE!"}},{"$f":"AND('Building Envelope Calculator'!Q2,\"c/iAazZ96Fo=\")","v":{"$error":"#VALUE!"}},{"$f":"AND('Building Envelope Calculator'!R2,\"c/iAazZ96Fs=\")","v":{"$error":"#VALUE!"}},{"$f":"AND('Building Envelope Calculator'!S2,\"c/iAazZ96Fw=\")","v":{"$error":"#VALUE!"}},{"$f":"IF('Building Envelope Calculator'!3:3,\"c/iAazZ96F0=\",0)","v":0},{"$f":"AND('Building Envelope Calculator'!A3,\"c/iAazZ96F4=\")","v":{"$error":"#VALUE!"}},{"$f":"AND('Building Envelope Calculator'!B3,\"c/iAazZ96F8=\")","v":{"$error":"#VALUE!"}},{"$f":"AND('Building Envelope Calculator'!C3,\"c/iAazZ96GA=\")","v":{"$error":"#VALUE!"}},{"$f":"AND('Building Envelope Calculator'!D3,\"c/iAazZ96GE=\")","v":{"$error":"#VALUE!"}},{"$f":"AND('Building Envelope Calculator'!E3,\"c/iAazZ96GI=\")","v":{"$error":"#VALUE!"}},{"$f":"AND('Building Envelope Calculator'!F3,\"c/iAazZ96GM=\")","v":{"$error":"#VALUE!"}},{"$f":"AND('Building Envelope Calculator'!G3,\"c/iAazZ96GQ=\")","v":{"$error":"#VALUE!"}},{"$f":"AND('Building Envelope Calculator'!H3,\"c/iAazZ96GU=\")","v":{"$error":"#VALUE!"}},{"$f":"AND('Building Envelope Calculator'!I3,\"c/iAazZ96GY=\")","v":{"$error":"#VALUE!"}},{"$f":"AND('Building Envelope Calculator'!J3,\"c/iAazZ96Gc=\")","v":{"$error":"#VALUE!"}},{"$f":"AND('Building Envelope Calculator'!K3,\"c/iAazZ96Gg=\")","v":{"$error":"#VALUE!"}},{"$f":"AND('Building Envelope Calculator'!L3,\"c/iAazZ96Gk=\")","v":{"$error":"#VALUE!"}},{"$f":"AND('Building Envelope Calculator'!M3,\"c/iAazZ96Go=\")","v":{"$error":"#VALUE!"}},{"$f":"AND('Building Envelope Calculator'!N3,\"c/iAazZ96Gs=\")","v":{"$error":"#VALUE!"}},{"$f":"AND('Building Envelope Calculator'!O3,\"c/iAazZ96Gw=\")","v":{"$error":"#VALUE!"}},{"$f":"AND('Building Envelope Calculator'!P3,\"c/iAazZ96G0=\")","v":{"$error":"#VALUE!"}},{"$f":"AND('Building Envelope Calculator'!Q3,\"c/iAazZ96G4=\")","v":{"$error":"#VALUE!"}},{"$f":"AND('Building Envelope Calculator'!R3,\"c/iAazZ96G8=\")","v":{"$error":"#VALUE!"}},{"$f":"AND('Building Envelope Calculator'!S3,\"c/iAazZ96HA=\")","v":{"$error":"#VALUE!"}},{"$f":"IF('Building Envelope Calculator'!4:4,\"c/iAazZ96HE=\",0)","v":0},{"$f":"AND('Building Envelope Calculator'!A4,\"c/iAazZ96HI=\")","v":{"$error":"#VALUE!"}},{"$f":"AND('Building Envelope Calculator'!B4,\"c/iAazZ96HM=\")","v":{"$error":"#VALUE!"}},{"$f":"AND('Building Envelope Calculator'!C4,\"c/iAazZ96HQ=\")","v":{"$error":"#VALUE!"}},{"$f":"AND('Building Envelope Calculator'!D4,\"c/iAazZ96HU=\")","v":{"$error":"#VALUE!"}},{"$f":"AND('Building Envelope Calculator'!E4,\"c/iAazZ96HY=\")","v":{"$error":"#VALUE!"}},{"$f":"AND('Building Envelope Calculator'!F4,\"c/iAazZ96Hc=\")","v":{"$error":"#VALUE!"}},{"$f":"AND('Building Envelope Calculator'!G4,\"c/iAazZ96Hg=\")","v":{"$error":"#VALUE!"}},{"$f":"AND('Building Envelope Calculator'!H4,\"c/iAazZ96Hk=\")","v":{"$error":"#VALUE!"}},{"$f":"AND('Building Envelope Calculator'!I4,\"c/iAazZ96Ho=\")","v":{"$error":"#VALUE!"}},{"$f":"AND('Building Envelope Calculator'!J4,\"c/iAazZ96Hs=\")","v":{"$error":"#VALUE!"}},{"$f":"AND('Building Envelope Calculator'!K4,\"c/iAazZ96Hw=\")","v":{"$error":"#VALUE!"}},{"$f":"AND('Building Envelope Calculator'!L4,\"c/iAazZ96H0=\")","v":{"$error":"#VALUE!"}},{"$f":"AND('Building Envelope Calculator'!M4,\"c/iAazZ96H4=\")","v":{"$error":"#VALUE!"}},{"$f":"AND('Building Envelope Calculator'!N4,\"c/iAazZ96H8=\")","v":{"$error":"#VALUE!"}},{"$f":"AND('Building Envelope Calculator'!O4,\"c/iAazZ96IA=\")","v":{"$error":"#VALUE!"}},{"$f":"AND('Building Envelope Calculator'!P4,\"c/iAazZ96IE=\")","v":{"$error":"#VALUE!"}},{"$f":"AND('Building Envelope Calculator'!Q4,\"c/iAazZ96II=\")","v":{"$error":"#VALUE!"}},{"$f":"AND('Building Envelope Calculator'!R4,\"c/iAazZ96IM=\")","v":{"$error":"#VALUE!"}},{"$f":"AND('Building Envelope Calculator'!S4,\"c/iAazZ96IQ=\")","v":{"$error":"#VALUE!"}},{"$f":"IF('Building Envelope Calculator'!5:5,\"c/iAazZ96IU=\",0)","v":0},{"$f":"AND('Building Envelope Calculator'!A5,\"c/iAazZ96IY=\")","v":{"$error":"#VALUE!"}},{"$f":"AND('Building Envelope Calculator'!B5,\"c/iAazZ96Ic=\")","v":{"$error":"#VALUE!"}},{"$f":"AND('Building Envelope Calculator'!C5,\"c/iAazZ96Ig=\")","v":{"$error":"#VALUE!"}},{"$f":"AND('Building Envelope Calculator'!D5,\"c/iAazZ96Ik=\")","v":{"$error":"#VALUE!"}},{"$f":"AND('Building Envelope Calculator'!E5,\"c/iAazZ96Io=\")","v":{"$error":"#VALUE!"}},{"$f":"AND('Building Envelope Calculator'!F5,\"c/iAazZ96Is=\")","v":{"$error":"#VALUE!"}},{"$f":"AND('Building Envelope Calculator'!G5,\"c/iAazZ96Iw=\")","v":{"$error":"#VALUE!"}},{"$f":"AND('Building Envelope Calculator'!H5,\"c/iAazZ96I0=\")","v":{"$error":"#VALUE!"}},{"$f":"AND('Building Envelope Calculator'!I5,\"c/iAazZ96I4=\")","v":{"$error":"#VALUE!"}},{"$f":"AND('Building Envelope Calculator'!J5,\"c/iAazZ96I8=\")","v":{"$error":"#VALUE!"}},{"$f":"AND('Building Envelope Calculator'!K5,\"c/iAazZ96JA=\")","v":{"$error":"#VALUE!"}},{"$f":"AND('Building Envelope Calculator'!L5,\"c/iAazZ96JE=\")","v":{"$error":"#VALUE!"}},{"$f":"AND('Building Envelope Calculator'!M5,\"c/iAazZ96JI=\")","v":{"$error":"#VALUE!"}},{"$f":"AND('Building Envelope Calculator'!N5,\"c/iAazZ96JM=\")","v":{"$error":"#VALUE!"}},{"$f":"AND('Building Envelope Calculator'!O5,\"c/iAazZ96JQ=\")","v":{"$error":"#VALUE!"}},{"$f":"AND('Building Envelope Calculator'!P5,\"c/iAazZ96JU=\")","v":{"$error":"#VALUE!"}},{"$f":"AND('Building Envelope Calculator'!Q5,\"c/iAazZ96JY=\")","v":{"$error":"#VALUE!"}},{"$f":"AND('Building Envelope Calculator'!R5,\"c/iAazZ96Jc=\")","v":{"$error":"#VALUE!"}},{"$f":"AND('Building Envelope Calculator'!S5,\"c/iAazZ96Jg=\")","v":{"$error":"#VALUE!"}},{"$f":"IF('Building Envelope Calculator'!6:6,\"c/iAazZ96Jk=\",0)","v":0},{"$f":"AND('Building Envelope Calculator'!A6,\"c/iAazZ96Jo=\")","v":{"$error":"#VALUE!"}},{"$f":"AND('Building Envelope Calculator'!B6,\"c/iAazZ96Js=\")","v":{"$error":"#VALUE!"}},{"$f":"AND('Building Envelope Calculator'!C6,\"c/iAazZ96Jw=\")","v":{"$error":"#VALUE!"}},{"$f":"AND('Building Envelope Calculator'!D6,\"c/iAazZ96J0=\")","v":{"$error":"#VALUE!"}},{"$f":"AND('Building Envelope Calculator'!E6,\"c/iAazZ96J4=\")","v":{"$error":"#VALUE!"}},{"$f":"AND('Building Envelope Calculator'!F6,\"c/iAazZ96J8=\")","v":{"$error":"#VALUE!"}},{"$f":"AND('Building Envelope Calculator'!G6,\"c/iAazZ96KA=\")","v":{"$error":"#VALUE!"}},{"$f":"AND('Building Envelope Calculator'!H6,\"c/iAazZ96KE=\")","v":{"$error":"#VALUE!"}},{"$f":"AND('Building Envelope Calculator'!I6,\"c/iAazZ96KI=\")","v":{"$error":"#VALUE!"}},{"$f":"AND('Building Envelope Calculator'!J6,\"c/iAazZ96KM=\")","v":{"$error":"#VALUE!"}},{"$f":"AND('Building Envelope Calculator'!K6,\"c/iAazZ96KQ=\")","v":{"$error":"#VALUE!"}},{"$f":"AND('Building Envelope Calculator'!L6,\"c/iAazZ96KU=\")","v":{"$error":"#VALUE!"}},{"$f":"AND('Building Envelope Calculator'!M6,\"c/iAazZ96KY=\")","v":{"$error":"#VALUE!"}},{"$f":"AND('Building Envelope Calculator'!N6,\"c/iAazZ96Kc=\")","v":{"$error":"#VALUE!"}},{"$f":"AND('Building Envelope Calculator'!O6,\"c/iAazZ96Kg=\")","v":{"$error":"#VALUE!"}},{"$f":"AND('Building Envelope Calculator'!P6,\"c/iAazZ96Kk=\")","v":{"$error":"#VALUE!"}},{"$f":"AND('Building Envelope Calculator'!Q6,\"c/iAazZ96Ko=\")","v":{"$error":"#VALUE!"}},{"$f":"AND('Building Envelope Calculator'!R6,\"c/iAazZ96Ks=\")","v":{"$error":"#VALUE!"}},{"$f":"AND('Building Envelope Calculator'!S6,\"c/iAazZ96Kw=\")","v":{"$error":"#VALUE!"}},{"$f":"IF('Building Envelope Calculator'!7:7,\"c/iAazZ96K0=\",0)","v":0},{"$f":"AND('Building Envelope Calculator'!A7,\"c/iAazZ96K4=\")","v":{"$error":"#VALUE!"}},{"$f":"AND('Building Envelope Calculator'!B7,\"c/iAazZ96K8=\")","v":{"$error":"#VALUE!"}},{"$f":"AND('Building Envelope Calculator'!C7,\"c/iAazZ96LA=\")","v":{"$error":"#VALUE!"}},{"$f":"AND('Building Envelope Calculator'!D7,\"c/iAazZ96LE=\")","v":{"$error":"#VALUE!"}},{"$f":"AND('Building Envelope Calculator'!E7,\"c/iAazZ96LI=\")","v":{"$error":"#VALUE!"}},{"$f":"AND('Building Envelope Calculator'!F7,\"c/iAazZ96LM=\")","v":{"$error":"#VALUE!"}},{"$f":"AND('Building Envelope Calculator'!G7,\"c/iAazZ96LQ=\")","v":{"$error":"#VALUE!"}},{"$f":"AND('Building Envelope Calculator'!H7,\"c/iAazZ96LU=\")","v":{"$error":"#VALUE!"}},{"$f":"AND('Building Envelope Calculator'!I7,\"c/iAazZ96LY=\")","v":{"$error":"#VALUE!"}},{"$f":"AND('Building Envelope Calculator'!J7,\"c/iAazZ96Lc=\")","v":{"$error":"#VALUE!"}},{"$f":"AND('Building Envelope Calculator'!K7,\"c/iAazZ96Lg=\")","v":{"$error":"#VALUE!"}},{"$f":"AND('Building Envelope Calculator'!L7,\"c/iAazZ96Lk=\")","v":{"$error":"#VALUE!"}},{"$f":"AND('Building Envelope Calculator'!M7,\"c/iAazZ96Lo=\")","v":{"$error":"#VALUE!"}},{"$f":"AND('Building Envelope Calculator'!N7,\"c/iAazZ96Ls=\")","v":{"$error":"#VALUE!"}},{"$f":"AND('Building Envelope Calculator'!O7,\"c/iAazZ96Lw=\")","v":{"$error":"#VALUE!"}},{"$f":"AND('Building Envelope Calculator'!P7,\"c/iAazZ96L0=\")","v":{"$error":"#VALUE!"}},{"$f":"AND('Building Envelope Calculator'!Q7,\"c/iAazZ96L4=\")","v":{"$error":"#VALUE!"}},{"$f":"AND('Building Envelope Calculator'!R7,\"c/iAazZ96L8=\")","v":{"$error":"#VALUE!"}},{"$f":"AND('Building Envelope Calculator'!S7,\"c/iAazZ96MA=\")","v":{"$error":"#VALUE!"}},{"$f":"IF('Building Envelope Calculator'!8:8,\"c/iAazZ96ME=\",0)","v":0},{"$f":"AND('Building Envelope Calculator'!A8,\"c/iAazZ96MI=\")","v":{"$error":"#VALUE!"}},{"$f":"AND('Building Envelope Calculator'!B8,\"c/iAazZ96MM=\")","v":{"$error":"#VALUE!"}},{"$f":"AND('Building Envelope Calculator'!C8,\"c/iAazZ96MQ=\")","v":{"$error":"#VALUE!"}},{"$f":"AND('Building Envelope Calculator'!D8,\"c/iAazZ96MU=\")","v":{"$error":"#VALUE!"}},{"$f":"AND('Building Envelope Calculator'!E8,\"c/iAazZ96MY=\")","v":{"$error":"#VALUE!"}},{"$f":"AND('Building Envelope Calculator'!F8,\"c/iAazZ96Mc=\")","v":{"$error":"#VALUE!"}},{"$f":"AND('Building Envelope Calculator'!G8,\"c/iAazZ96Mg=\")","v":{"$error":"#VALUE!"}},{"$f":"AND('Building Envelope Calculator'!H8,\"c/iAazZ96Mk=\")","v":{"$error":"#VALUE!"}},{"$f":"AND('Building Envelope Calculator'!I8,\"c/iAazZ96Mo=\")","v":{"$error":"#VALUE!"}},{"$f":"AND('Building Envelope Calculator'!J8,\"c/iAazZ96Ms=\")","v":{"$error":"#VALUE!"}},{"$f":"AND('Building Envelope Calculator'!K8,\"c/iAazZ96Mw=\")","v":{"$error":"#VALUE!"}},{"$f":"AND('Building Envelope Calculator'!L8,\"c/iAazZ96M0=\")","v":{"$error":"#VALUE!"}},{"$f":"AND('Building Envelope Calculator'!M8,\"c/iAazZ96M4=\")","v":{"$error":"#VALUE!"}},{"$f":"AND('Building Envelope Calculator'!N8,\"c/iAazZ96M8=\")","v":{"$error":"#VALUE!"}},{"$f":"AND('Building Envelope Calculator'!O8,\"c/iAazZ96NA=\")","v":{"$error":"#VALUE!"}},{"$f":"AND('Building Envelope Calculator'!P8,\"c/iAazZ96NE=\")","v":{"$error":"#VALUE!"}},{"$f":"AND('Building Envelope Calculator'!Q8,\"c/iAazZ96NI=\")","v":{"$error":"#VALUE!"}},{"$f":"AND('Building Envelope Calculator'!R8,\"c/iAazZ96NM=\")","v":{"$error":"#VALUE!"}},{"$f":"AND('Building Envelope Calculator'!S8,\"c/iAazZ96NQ=\")","v":{"$error":"#VALUE!"}},{"$f":"IF('Building Envelope Calculator'!9:9,\"c/iAazZ96NU=\",0)","v":0},{"$f":"AND('Building Envelope Calculator'!A9,\"c/iAazZ96NY=\")","v":{"$error":"#VALUE!"}},{"$f":"AND('Building Envelope Calculator'!B9,\"c/iAazZ96Nc=\")","v":{"$error":"#VALUE!"}},{"$f":"AND('Building Envelope Calculator'!C9,\"c/iAazZ96Ng=\")","v":{"$error":"#VALUE!"}},{"$f":"AND('Building Envelope Calculator'!D9,\"c/iAazZ96Nk=\")","v":{"$error":"#VALUE!"}},{"$f":"AND('Building Envelope Calculator'!E9,\"c/iAazZ96No=\")","v":{"$error":"#VALUE!"}},{"$f":"AND('Building Envelope Calculator'!F9,\"c/iAazZ96Ns=\")","v":{"$error":"#VALUE!"}},{"$f":"AND('Building Envelope Calculator'!G9,\"c/iAazZ96Nw=\")","v":{"$error":"#VALUE!"}},{"$f":"AND('Building Envelope Calculator'!H9,\"c/iAazZ96N0=\")","v":{"$error":"#VALUE!"}},{"$f":"AND('Building Envelope Calculator'!I9,\"c/iAazZ96N4=\")","v":{"$error":"#VALUE!"}},{"$f":"AND('Building Envelope Calculator'!J9,\"c/iAazZ96N8=\")","v":{"$error":"#VALUE!"}},{"$f":"AND('Building Envelope Calculator'!K9,\"c/iAazZ96OA=\")","v":{"$error":"#VALUE!"}},{"$f":"AND('Building Envelope Calculator'!L9,\"c/iAazZ96OE=\")","v":{"$error":"#VALUE!"}},{"$f":"AND('Building Envelope Calculator'!M9,\"c/iAazZ96OI=\")","v":{"$error":"#VALUE!"}},{"$f":"AND('Building Envelope Calculator'!N9,\"c/iAazZ96OM=\")","v":{"$error":"#VALUE!"}},{"$f":"AND('Building Envelope Calculator'!O9,\"c/iAazZ96OQ=\")","v":{"$error":"#VALUE!"}},{"$f":"AND('Building Envelope Calculator'!P9,\"c/iAazZ96OU=\")","v":{"$error":"#VALUE!"}},{"$f":"AND('Building Envelope Calculator'!Q9,\"c/iAazZ96OY=\")","v":{"$error":"#VALUE!"}},{"$f":"AND('Building Envelope Calculator'!R9,\"c/iAazZ96Oc=\")","v":{"$error":"#VALUE!"}},{"$f":"AND('Building Envelope Calculator'!S9,\"c/iAazZ96Og=\")","v":{"$error":"#VALUE!"}},{"$f":"IF('Building Envelope Calculator'!10:10,\"c/iAazZ96Ok=\",0)","v":0},{"$f":"AND('Building Envelope Calculator'!A10,\"c/iAazZ96Oo=\")","v":{"$error":"#VALUE!"}},{"$f":"AND('Building Envelope Calculator'!B10,\"c/iAazZ96Os=\")","v":{"$error":"#VALUE!"}},{"$f":"AND('Building Envelope Calculator'!C10,\"c/iAazZ96Ow=\")","v":{"$error":"#VALUE!"}},{"$f":"AND('Building Envelope Calculator'!D10,\"c/iAazZ96O0=\")","v":{"$error":"#VALUE!"}},{"$f":"AND('Building Envelope Calculator'!E10,\"c/iAazZ96O4=\")","v":{"$error":"#VALUE!"}},{"$f":"AND('Building Envelope Calculator'!F10,\"c/iAazZ96O8=\")","v":{"$error":"#VALUE!"}},{"$f":"AND('Building Envelope Calculator'!G10,\"c/iAazZ96PA=\")","v":{"$error":"#VALUE!"}},{"$f":"AND('Building Envelope Calculator'!H10,\"c/iAazZ96PE=\")","v":{"$error":"#VALUE!"}},{"$f":"AND('Building Envelope Calculator'!I10,\"c/iAazZ96PI=\")","v":{"$error":"#VALUE!"}},{"$f":"AND('Building Envelope Calculator'!J10,\"c/iAazZ96PM=\")","v":{"$error":"#VALUE!"}},{"$f":"AND('Building Envelope Calculator'!K10,\"c/iAazZ96PQ=\")","v":{"$error":"#VALUE!"}},{"$f":"AND('Building Envelope Calculator'!L10,\"c/iAazZ96PU=\")","v":{"$error":"#VALUE!"}},{"$f":"AND('Building Envelope Calculator'!M10,\"c/iAazZ96PY=\")","v":{"$error":"#VALUE!"}},{"$f":"AND('Building Envelope Calculator'!N10,\"c/iAazZ96Pc=\")","v":{"$error":"#VALUE!"}},{"$f":"AND('Building Envelope Calculator'!O10,\"c/iAazZ96Pg=\")","v":{"$error":"#VALUE!"}},{"$f":"AND('Building Envelope Calculator'!P10,\"c/iAazZ96Pk=\")","v":{"$error":"#VALUE!"}},{"$f":"AND('Building Envelope Calculator'!Q10,\"c/iAazZ96Po=\")","v":{"$error":"#VALUE!"}},{"$f":"AND('Building Envelope Calculator'!R10,\"c/iAazZ96Ps=\")","v":{"$error":"#VALUE!"}},{"$f":"AND('Building Envelope Calculator'!S10,\"c/iAazZ96Pw=\")","v":{"$error":"#VALUE!"}},{"$f":"IF('Building Envelope Calculator'!12:12,\"c/iAazZ96P0=\",0)","v":0},{"$f":"AND('Building Envelope Calculator'!A12,\"c/iAazZ96P4=\")","v":{"$error":"#VALUE!"}},{"$f":"AND('Building Envelope Calculator'!B12,\"c/iAazZ96P8=\")","v":{"$error":"#VALUE!"}}]
[{"$f":"AND('Building Envelope Calculator'!C12,\"a5uFbCgOcwA=\")","v":{"$error":"#VALUE!"}},{"$f":"AND('Building Envelope Calculator'!D12,\"a5uFbCgOcwE=\")","v":{"$error":"#VALUE!"}},{"$f":"AND('Building Envelope Calculator'!E12,\"a5uFbCgOcwI=\")","v":{"$error":"#VALUE!"}},{"$f":"AND('Building Envelope Calculator'!F12,\"a5uFbCgOcwM=\")","v":{"$error":"#VALUE!"}},{"$f":"AND('Building Envelope Calculator'!G12,\"a5uFbCgOcwQ=\")","v":{"$error":"#VALUE!"}},{"$f":"AND('Building Envelope Calculator'!H12,\"a5uFbCgOcwU=\")","v":{"$error":"#VALUE!"}},{"$f":"AND('Building Envelope Calculator'!I12,\"a5uFbCgOcwY=\")","v":{"$error":"#VALUE!"}},{"$f":"AND('Building Envelope Calculator'!J12,\"a5uFbCgOcwc=\")","v":{"$error":"#VALUE!"}},{"$f":"AND('Building Envelope Calculator'!K12,\"a5uFbCgOcwg=\")","v":{"$error":"#VALUE!"}},{"$f":"AND('Building Envelope Calculator'!L12,\"a5uFbCgOcwk=\")","v":{"$error":"#VALUE!"}},{"$f":"AND('Building Envelope Calculator'!M12,\"a5uFbCgOcwo=\")","v":{"$error":"#VALUE!"}},{"$f":"AND('Building Envelope Calculator'!N12,\"a5uFbCgOcws=\")","v":{"$error":"#VALUE!"}},{"$f":"AND('Building Envelope Calculator'!O12,\"a5uFbCgOcww=\")","v":{"$error":"#VALUE!"}},{"$f":"AND('Building Envelope Calculator'!P12,\"a5uFbCgOcw0=\")","v":{"$error":"#VALUE!"}},{"$f":"AND('Building Envelope Calculator'!Q12,\"a5uFbCgOcw4=\")","v":{"$error":"#VALUE!"}},{"$f":"AND('Building Envelope Calculator'!R12,\"a5uFbCgOcw8=\")","v":{"$error":"#VALUE!"}},{"$f":"AND('Building Envelope Calculator'!S12,\"a5uFbCgOcxA=\")","v":{"$error":"#VALUE!"}},{"$f":"IF('Building Envelope Calculator'!13:13,\"a5uFbCgOcxE=\",0)","v":0},{"$f":"AND('Building Envelope Calculator'!A13,\"a5uFbCgOcxI=\")","v":{"$error":"#VALUE!"}},{"$f":"AND('Building Envelope Calculator'!B13,\"a5uFbCgOcxM=\")","v":{"$error":"#VALUE!"}},{"$f":"AND('Building Envelope Calculator'!C13,\"a5uFbCgOcxQ=\")","v":{"$error":"#VALUE!"}},{"$f":"AND('Building Envelope Calculator'!D13,\"a5uFbCgOcxU=\")","v":{"$error":"#VALUE!"}},{"$f":"AND('Building Envelope Calculator'!E13,\"a5uFbCgOcxY=\")","v":{"$error":"#VALUE!"}},{"$f":"AND('Building Envelope Calculator'!F13,\"a5uFbCgOcxc=\")","v":{"$error":"#VALUE!"}},{"$f":"AND('Building Envelope Calculator'!G13,\"a5uFbCgOcxg=\")","v":{"$error":"#VALUE!"}},{"$f":"AND('Building Envelope Calculator'!H13,\"a5uFbCgOcxk=\")","v":{"$error":"#VALUE!"}},{"$f":"AND('Building Envelope Calculator'!I13,\"a5uFbCgOcxo=\")","v":{"$error":"#VALUE!"}},{"$f":"AND('Building Envelope Calculator'!J13,\"a5uFbCgOcxs=\")","v":{"$error":"#VALUE!"}},{"$f":"AND('Building Envelope Calculator'!K13,\"a5uFbCgOcxw=\")","v":{"$error":"#VALUE!"}},{"$f":"AND('Building Envelope Calculator'!L13,\"a5uFbCgOcx0=\")","v":{"$error":"#VALUE!"}},{"$f":"AND('Building Envelope Calculator'!M13,\"a5uFbCgOcx4=\")","v":{"$error":"#VALUE!"}},{"$f":"AND('Building Envelope Calculator'!N13,\"a5uFbCgOcx8=\")","v":{"$error":"#VALUE!"}},{"$f":"AND('Building Envelope Calculator'!O13,\"a5uFbCgOcyA=\")","v":{"$error":"#VALUE!"}},{"$f":"AND('Building Envelope Calculator'!P13,\"a5uFbCgOcyE=\")","v":{"$error":"#VALUE!"}},{"$f":"AND('Building Envelope Calculator'!Q13,\"a5uFbCgOcyI=\")","v":{"$error":"#VALUE!"}},{"$f":"AND('Building Envelope Calculator'!R13,\"a5uFbCgOcyM=\")","v":{"$error":"#VALUE!"}},{"$f":"AND('Building Envelope Calculator'!S13,\"a5uFbCgOcyQ=\")","v":{"$error":"#VALUE!"}},{"$f":"IF('Building Envelope Calculator'!14:14,\"a5uFbCgOcyU=\",0)","v":0},{"$f":"AND('Building Envelope Calculator'!A14,\"a5uFbCgOcyY=\")","v":{"$error":"#VALUE!"}},{"$f":"AND('Building Envelope Calculator'!B14,\"a5uFbCgOcyc=\")","v":{"$error":"#VALUE!"}},{"$f":"AND('Building Envelope Calculator'!C14,\"a5uFbCgOcyg=\")","v":{"$error":"#VALUE!"}},{"$f":"AND('Building Envelope Calculator'!D14,\"a5uFbCgOcyk=\")","v":{"$error":"#VALUE!"}},{"$f":"AND('Building Envelope Calculator'!#REF!,\"a5uFbCgOcyo=\")","v":{"$error":"#REF!"}},{"$f":"AND('Building Envelope Calculator'!#REF!,\"a5uFbCgOcys=\")","v":{"$error":"#REF!"}},{"$f":"AND('Building Envelope Calculator'!E14,\"a5uFbCgOcyw=\")","v":{"$error":"#VALUE!"}},{"$f":"AND('Building Envelope Calculator'!F14,\"a5uFbCgOcy0=\")","v":{"$error":"#VALUE!"}},{"$f":"AND('Building Envelope Calculator'!G14,\"a5uFbCgOcy4=\")","v":{"$error":"#VALUE!"}},{"$f":"AND('Building Envelope Calculator'!H14,\"a5uFbCgOcy8=\")","v":{"$error":"#VALUE!"}},{"$f":"AND('Building Envelope Calculator'!I14,\"a5uFbCgOczA=\")","v":{"$error":"#VALUE!"}},{"$f":"AND('Building Envelope Calculator'!J14,\"a5uFbCgOczE=\")","v":{"$error":"#VALUE!"}},{"$f":"AND('Building Envelope Calculator'!K14,\"a5uFbCgOczI=\")","v":{"$error":"#VALUE!"}},{"$f":"AND('Building Envelope Calculator'!L14,\"a5uFbCgOczM=\")","v":{"$error":"#VALUE!"}},{"$f":"AND('Building Envelope Calculator'!M14,\"a5uFbCgOczQ=\")","v":{"$error":"#VALUE!"}},{"$f":"AND('Building Envelope Calculator'!N14,\"a5uFbCgOczU=\")","v":{"$error":"#VALUE!"}},{"$f":"AND('Building Envelope Calculator'!O14,\"a5uFbCgOczY=\")","v":{"$error":"#VALUE!"}},{"$f":"AND('Building Envelope Calculator'!P14,\"a5uFbCgOczc=\")","v":{"$error":"#VALUE!"}},{"$f":"AND('Building Envelope Calculator'!Q14,\"a5uFbCgOczg=\")","v":{"$error":"#VALUE!"}},{"$f":"IF('Building Envelope Calculator'!15:15,\"a5uFbCgOczk=\",0)","v":0},{"$f":"AND('Building Envelope Calculator'!A15,\"a5uFbCgOczo=\")","v":{"$error":"#VALUE!"}},{"$f":"AND('Building Envelope Calculator'!B15,\"a5uFbCgOczs=\")","v":{"$error":"#VALUE!"}},{"$f":"AND('Building Envelope Calculator'!C15,\"a5uFbCgOczw=\")","v":{"$error":"#VALUE!"}},{"$f":"AND('Building Envelope Calculator'!D15,\"a5uFbCgOcz0=\")","v":{"$error":"#VALUE!"}},{"$f":"AND('Building Envelope Calculator'!#REF!,\"a5uFbCgOcz4=\")","v":{"$error":"#REF!"}},{"$f":"AND('Building Envelope Calculator'!#REF!,\"a5uFbCgOcz8=\")","v":{"$error":"#REF!"}},{"$f":"AND('Building Envelope Calculator'!E15,\"a5uFbCgOc0A=\")","v":{"$error":"#VALUE!"}},{"$f":"AND('Building Envelope Calculator'!F15,\"a5uFbCgOc0E=\")","v":{"$error":"#VALUE!"}},{"$f":"AND('Building Envelope Calculator'!G15,\"a5uFbCgOc0I=\")","v":{"$error":"#VALUE!"}},{"$f":"AND('Building Envelope Calculator'!H15,\"a5uFbCgOc0M=\")","v":{"$error":"#VALUE!"}},{"$f":"AND('Building Envelope Calculator'!I15,\"a5uFbCgOc0Q=\")","v":{"$error":"#VALUE!"}},{"$f":"AND('Building Envelope Calculator'!J15,\"a5uFbCgOc0U=\")","v":{"$error":"#VALUE!"}},{"$f":"AND('Building Envelope Calculator'!K15,\"a5uFbCgOc0Y=\")","v":{"$error":"#VALUE!"}},{"$f":"AND('Building Envelope Calculator'!L15,\"a5uFbCgOc0c=\")","v":{"$error":"#VALUE!"}},{"$f":"AND('Building Envelope Calculator'!M15,\"a5uFbCgOc0g=\")","v":{"$error":"#VALUE!"}},{"$f":"AND('Building Envelope Calculator'!N15,\"a5uFbCgOc0k=\")","v":{"$error":"#VALUE!"}},{"$f":"AND('Building Envelope Calculator'!O15,\"a5uFbCgOc0o=\")","v":{"$error":"#VALUE!"}},{"$f":"AND('Building Envelope Calculator'!P15,\"a5uFbCgOc0s=\")","v":{"$error":"#VALUE!"}},{"$f":"AND('Building Envelope Calculator'!Q15,\"a5uFbCgOc0w=\")","v":{"$error":"#VALUE!"}},{"$f":"IF('Building Envelope Calculator'!16:16,\"a5uFbCgOc00=\",0)","v":0},{"$f":"AND('Building Envelope Calculator'!A21,\"a5uFbCgOc04=\")","v":{"$error":"#VALUE!"}},{"$f":"AND('Building Envelope Calculator'!B21,\"a5uFbCgOc08=\")","v":{"$error":"#VALUE!"}},{"$f":"AND('Building Envelope Calculator'!C21,\"a5uFbCgOc1A=\")","v":{"$error":"#VALUE!"}},{"$f":"AND('Building Envelope Calculator'!D21,\"a5uFbCgOc1E=\")","v":{"$error":"#VALUE!"}},{"$f":"AND('Building Envelope Calculator'!#REF!,\"a5uFbCgOc1I=\")","v":{"$error":"#REF!"}},{"$f":"AND('Building Envelope Calculator'!#REF!,\"a5uFbCgOc1M=\")","v":{"$error":"#REF!"}},{"$f":"AND('Building Envelope Calculator'!E16,\"a5uFbCgOc1Q=\")","v":{"$error":"#VALUE!"}},{"$f":"AND('Building Envelope Calculator'!F16,\"a5uFbCgOc1U=\")","v":{"$error":"#VALUE!"}},{"$f":"AND('Building Envelope Calculator'!G16,\"a5uFbCgOc1Y=\")","v":{"$error":"#VALUE!"}},{"$f":"AND('Building Envelope Calculator'!H16,\"a5uFbCgOc1c=\")","v":{"$error":"#VALUE!"}},{"$f":"AND('Building Envelope Calculator'!I16,\"a5uFbCgOc1g=\")","v":{"$error":"#VALUE!"}},{"$f":"AND('Building Envelope Calculator'!J16,\"a5uFbCgOc1k=\")","v":{"$error":"#VALUE!"}},{"$f":"AND('Building Envelope Calculator'!K16,\"a5uFbCgOc1o=\")","v":{"$error":"#VALUE!"}},{"$f":"AND('Building Envelope Calculator'!L16,\"a5uFbCgOc1s=\")","v":{"$error":"#VALUE!"}},{"$f":"AND('Building Envelope Calculator'!M16,\"a5uFbCgOc1w=\")","v":{"$error":"#VALUE!"}},{"$f":"AND('Building Envelope Calculator'!N16,\"a5uFbCgOc10=\")","v":{"$error":"#VALUE!"}},{"$f":"AND('Building Envelope Calculator'!O16,\"a5uFbCgOc14=\")","v":{"$error":"#VALUE!"}},{"$f":"AND('Building Envelope Calculator'!P16,\"a5uFbCgOc18=\")","v":{"$error":"#VALUE!"}},{"$f":"AND('Building Envelope Calculator'!Q16,\"a5uFbCgOc2A=\")","v":{"$error":"#VALUE!"}},{"$f":"IF('Building Envelope Calculator'!17:17,\"a5uFbCgOc2E=\",0)","v":0},{"$f":"AND('Building Envelope Calculator'!A16,\"a5uFbCgOc2I=\")","v":{"$error":"#VALUE!"}},{"$f":"AND('Building Envelope Calculator'!B16,\"a5uFbCgOc2M=\")","v":{"$error":"#VALUE!"}},{"$f":"AND('Building Envelope Calculator'!C16,\"a5uFbCgOc2Q=\")","v":{"$error":"#VALUE!"}},{"$f":"AND('Building Envelope Calculator'!D16,\"a5uFbCgOc2U=\")","v":{"$error":"#VALUE!"}},{"$f":"AND('Building Envelope Calculator'!#REF!,\"a5uFbCgOc2Y=\")","v":{"$error":"#REF!"}},{"$f":"AND('Building Envelope Calculator'!#REF!,\"a5uFbCgOc2c=\")","v":{"$error":"#REF!"}},{"$f":"AND('Building Envelope Calculator'!E17,\"a5uFbCgOc2g=\")","v":{"$error":"#VALUE!"}},{"$f":"AND('Building Envelope Calculator'!F17,\"a5uFbCgOc2k=\")","v":{"$error":"#VALUE!"}},{"$f":"AND('Building Envelope Calculator'!G17,\"a5uFbCgOc2o=\")","v":{"$error":"#VALUE!"}},{"$f":"AND('Building Envelope Calculator'!H17,\"a5uFbCgOc2s=\")","v":{"$error":"#VALUE!"}},{"$f":"AND('Building Envelope Calculator'!I17,\"a5uFbCgOc2w=\")","v":{"$error":"#VALUE!"}},{"$f":"AND('Building Envelope Calculator'!J17,\"a5uFbCgOc20=\")","v":{"$error":"#VALUE!"}},{"$f":"AND('Building Envelope Calculator'!K17,\"a5uFbCgOc24=\")","v":{"$error":"#VALUE!"}},{"$f":"AND('Building Envelope Calculator'!L17,\"a5uFbCgOc28=\")","v":{"$error":"#VALUE!"}},{"$f":"AND('Building Envelope Calculator'!M17,\"a5uFbCgOc3A=\")","v":{"$error":"#VALUE!"}},{"$f":"AND('Building Envelope Calculator'!N17,\"a5uFbCgOc3E=\")","v":{"$error":"#VALUE!"}},{"$f":"AND('Building Envelope Calculator'!O17,\"a5uFbCgOc3I=\")","v":{"$error":"#VALUE!"}},{"$f":"AND('Building Envelope Calculator'!P17,\"a5uFbCgOc3M=\")","v":{"$error":"#VALUE!"}},{"$f":"AND('Building Envelope Calculator'!Q17,\"a5uFbCgOc3Q=\")","v":{"$error":"#VALUE!"}},{"$f":"IF('Building Envelope Calculator'!18:18,\"a5uFbCgOc3U=\",0)","v":0},{"$f":"AND('Building Envelope Calculator'!A17,\"a5uFbCgOc3Y=\")","v":{"$error":"#VALUE!"}},{"$f":"AND('Building Envelope Calculator'!B17,\"a5uFbCgOc3c=\")","v":{"$error":"#VALUE!"}},{"$f":"AND('Building Envelope Calculator'!C17,\"a5uFbCgOc3g=\")","v":{"$error":"#VALUE!"}},{"$f":"AND('Building Envelope Calculator'!D17,\"a5uFbCgOc3k=\")","v":{"$error":"#VALUE!"}},{"$f":"AND('Building Envelope Calculator'!#REF!,\"a5uFbCgOc3o=\")","v":{"$error":"#REF!"}},{"$f":"AND('Building Envelope Calculator'!#REF!,\"a5uFbCgOc3s=\")","v":{"$error":"#REF!"}},{"$f":"AND('Building Envelope Calculator'!E18,\"a5uFbCgOc3w=\")","v":{"$error":"#VALUE!"}},{"$f":"AND('Building Envelope Calculator'!F18,\"a5uFbCgOc30=\")","v":{"$error":"#VALUE!"}},{"$f":"AND('Building Envelope Calculator'!G18,\"a5uFbCgOc34=\")","v":{"$error":"#VALUE!"}},{"$f":"AND('Building Envelope Calculator'!H18,\"a5uFbCgOc38=\")","v":{"$error":"#VALUE!"}},{"$f":"AND('Building Envelope Calculator'!I18,\"a5uFbCgOc4A=\")","v":{"$error":"#VALUE!"}},{"$f":"AND('Building Envelope Calculator'!J18,\"a5uFbCgOc4E=\")","v":{"$error":"#VALUE!"}},{"$f":"AND('Building Envelope Calculator'!K18,\"a5uFbCgOc4I=\")","v":{"$error":"#VALUE!"}},{"$f":"AND('Building Envelope Calculator'!L18,\"a5uFbCgOc4M=\")","v":{"$error":"#VALUE!"}},{"$f":"AND('Building Envelope Calculator'!M18,\"a5uFbCgOc4Q=\")","v":{"$error":"#VALUE!"}},{"$f":"AND('Building Envelope Calculator'!N18,\"a5uFbCgOc4U=\")","v":{"$error":"#VALUE!"}},{"$f":"AND('Building Envelope Calculator'!O18,\"a5uFbCgOc4Y=\")","v":{"$error":"#VALUE!"}},{"$f":"AND('Building Envelope Calculator'!P18,\"a5uFbCgOc4c=\")","v":{"$error":"#VALUE!"}},{"$f":"AND('Building Envelope Calculator'!Q18,\"a5uFbCgOc4g=\")","v":{"$error":"#VALUE!"}},{"$f":"IF('Building Envelope Calculator'!21:21,\"a5uFbCgOc4k=\",0)","v":0},{"$f":"AND('Building Envelope Calculator'!A18,\"a5uFbCgOc4o=\")","v":{"$error":"#VALUE!"}},{"$f":"AND('Building Envelope Calculator'!B18,\"a5uFbCgOc4s=\")","v":{"$error":"#VALUE!"}},{"$f":"AND('Building Envelope Calculator'!C18,\"a5uFbCgOc4w=\")","v":{"$error":"#VALUE!"}},{"$f":"AND('Building Envelope Calculator'!D18,\"a5uFbCgOc40=\")","v":{"$error":"#VALUE!"}},{"$f":"AND('Building Envelope Calculator'!#REF!,\"a5uFbCgOc44=\")","v":{"$error":"#REF!"}},{"$f":"AND('Building Envelope Calculator'!#REF!,\"a5uFbCgOc48=\")","v":{"$error":"#REF!"}},{"$f":"AND('Building Envelope Calculator'!E21,\"a5uFbCgOc5A=\")","v":{"$error":"#VALUE!"}},{"$f":"AND('Building Envelope Calculator'!F21,\"a5uFbCgOc5E=\")","v":{"$error":"#VALUE!"}},{"$f":"AND('Building Envelope Calculator'!G21,\"a5uFbCgOc5I=\")","v":{"$error":"#VALUE!"}},{"$f":"AND('Building Envelope Calculator'!H21,\"a5uFbCgOc5M=\")","v":{"$error":"#VALUE!"}},{"$f":"AND('Building Envelope Calculator'!I21,\"a5uFbCgOc5Q=\")","v":{"$error":"#VALUE!"}},{"$f":"AND('Building Envelope Calculator'!J21,\"a5uFbCgOc5U=\")","v":{"$error":"#VALUE!"}},{"$f":"AND('Building Envelope Calculator'!K21,\"a5uFbCgOc5Y=\")","v":{"$error":"#VALUE!"}},{"$f":"AND('Building Envelope Calculator'!L21,\"a5uFbCgOc5c=\")","v":{"$error":"#VALUE!"}},{"$f":"AND('Building Envelope Calculator'!M21,\"a5uFbCgOc5g=\")","v":{"$error":"#VALUE!"}},{"$f":"AND('Building Envelope Calculator'!N21,\"a5uFbCgOc5k=\")","v":{"$error":"#VALUE!"}},{"$f":"AND('Building Envelope Calculator'!O21,\"a5uFbCgOc5o=\")","v":{"$error":"#VALUE!"}},{"$f":"AND('Building Envelope Calculator'!P21,\"a5uFbCgOc5s=\")","v":{"$error":"#VALUE!"}},{"$f":"AND('Building Envelope Calculator'!Q21,\"a5uFbCgOc5w=\")","v":{"$error":"#VALUE!"}},{"$f":"IF('Building Envelope Calculator'!19:19,\"a5uFbCgOc50=\",0)","v":0},{"$f":"AND('Building Envelope Calculator'!A19,\"a5uFbCgOc54=\")","v":{"$error":"#VALUE!"}},{"$f":"AND('Building Envelope Calculator'!B19,\"a5uFbCgOc58=\")","v":{"$error":"#VALUE!"}},{"$f":"AND('Building Envelope Calculator'!C19,\"a5uFbCgOc6A=\")","v":{"$error":"#VALUE!"}},{"$f":"AND('Building Envelope Calculator'!D19,\"a5uFbCgOc6E=\")","v":{"$error":"#VALUE!"}},{"$f":"AND('Building Envelope Calculator'!#REF!,\"a5uFbCgOc6I=\")","v":{"$error":"#REF!"}},{"$f":"AND('Building Envelope Calculator'!#REF!,\"a5uFbCgOc6M=\")","v":{"$error":"#REF!"}},{"$f":"AND('Building Envelope Calculator'!E19,\"a5uFbCgOc6Q=\")","v":{"$error":"#VALUE!"}},{"$f":"AND('Building Envelope Calculator'!F19,\"a5uFbCgOc6U=\")","v":{"$error":"#VALUE!"}},{"$f":"AND('Building Envelope Calculator'!G19,\"a5uFbCgOc6Y=\")","v":{"$error":"#VALUE!"}},{"$f":"AND('Building Envelope Calculator'!H19,\"a5uFbCgOc6c=\")","v":{"$error":"#VALUE!"}},{"$f":"AND('Building Envelope Calculator'!I19,\"a5uFbCgOc6g=\")","v":{"$error":"#VALUE!"}},{"$f":"AND('Building Envelope Calculator'!J19,\"a5uFbCgOc6k=\")","v":{"$error":"#VALUE!"}},{"$f":"AND('Building Envelope Calculator'!K19,\"a5uFbCgOc6o=\")","v":{"$error":"#VALUE!"}},{"$f":"AND('Building Envelope Calculator'!L19,\"a5uFbCgOc6s=\")","v":{"$error":"#VALUE!"}},{"$f":"AND('Building Envelope Calculator'!M19,\"a5uFbCgOc6w=\")","v":{"$error":"#VALUE!"}},{"$f":"AND('Building Envelope Calculator'!N19,\"a5uFbCgOc60=\")","v":{"$error":"#VALUE!"}},{"$f":"AND('Building Envelope Calculator'!O19,\"a5uFbCgOc64=\")","v":{"$error":"#VALUE!"}},{"$f":"AND('Building Envelope Calculator'!P19,\"a5uFbCgOc68=\")","v":{"$error":"#VALUE!"}},{"$f":"AND('Building Envelope Calculator'!Q19,\"a5uFbCgOc7A=\")","v":{"$error":"#VALUE!"}},{"$f":"IF('Building Envelope Calculator'!23:23,\"a5uFbCgOc7E=\",0)","v":0},{"$f":"AND('Building Envelope Calculator'!A23,\"a5uFbCgOc7I=\")","v":{"$error":"#VALUE!"}},{"$f":"AND('Building Envelope Calculator'!B23,\"a5uFbCgOc7M=\")","v":{"$error":"#VALUE!"}},{"$f":"AND('Building Envelope Calculator'!#REF!,\"a5uFbCgOc7Q=\")","v":{"$error":"#REF!"}},{"$f":"AND('Building Envelope Calculator'!D23,\"a5uFbCgOc7U=\")","v":{"$error":"#VALUE!"}},{"$f":"AND('Building Envelope Calculator'!C23,\"a5uFbCgOc7Y=\")","v":{"$error":"#VALUE!"}},{"$f":"AND('Building Envelope Calculator'!#REF!,\"a5uFbCgOc7c=\")","v":{"$error":"#REF!"}},{"$f":"AND('Building Envelope Calculator'!E23,\"a5uFbCgOc7g=\")","v":{"$error":"#VALUE!"}},{"$f":"AND('Building Envelope Calculator'!F23,\"a5uFbCgOc7k=\")","v":{"$error":"#VALUE!"}},{"$f":"AND('Building Envelope Calculator'!G23,\"a5uFbCgOc7o=\")","v":{"$error":"#VALUE!"}},{"$f":"AND('Building Envelope Calculator'!H23,\"a5uFbCgOc7s=\")","v":{"$error":"#VALUE!"}},{"$f":"AND('Building Envelope Calculator'!I23,\"a5uFbCgOc7w=\")","v":{"$error":"#VALUE!"}},{"$f":"AND('Building Envelope Calculator'!J23,\"a5uFbCgOc70=\")","v":{"$error":"#VALUE!"}},{"$f":"AND('Building Envelope Calculator'!K23,\"a5uFbCgOc74=\")","v":{"$error":"#VALUE!"}},{"$f":"AND('Building Envelope Calculator'!L23,\"a5uFbCgOc78=\")","v":{"$error":"#VALUE!"}},{"$f":"AND('Building Envelope Calculator'!M23,\"a5uFbCgOc8A=\")","v":{"$error":"#VALUE!"}},{"$f":"AND('Building Envelope Calculator'!N23,\"a5uFbCgOc8E=\")","v":{"$error":"#VALUE!"}},{"$f":"AND('Building Envelope Calculator'!O23,\"a5uFbCgOc8I=\")","v":{"$error":"#VALUE!"}},{"$f":"AND('Building Envelope Calculator'!P23,\"a5uFbCgOc8M=\")","v":{"$error":"#VALUE!"}},{"$f":"AND('Building Envelope Calculator'!Q23,\"a5uFbCgOc8Q=\")","v":{"$error":"#VALUE!"}},{"$f":"IF('Building Envelope Calculator'!24:24,\"a5uFbCgOc8U=\",0)","v":0},{"$f":"AND('Building Envelope Calculator'!A24,\"a5uFbCgOc8Y=\")","v":{"$error":"#VALUE!"}},{"$f":"AND('Building Envelope Calculator'!B24,\"a5uFbCgOc8c=\")","v":{"$error":"#VALUE!"}},{"$f":"AND('Building Envelope Calculator'!C24,\"a5uFbCgOc8g=\")","v":{"$error":"#VALUE!"}},{"$f":"AND('Building Envelope Calculator'!D25,\"a5uFbCgOc8k=\")","v":{"$error":"#VALUE!"}},{"$f":"AND('Building Envelope Calculator'!#REF!,\"a5uFbCgOc8o=\")","v":{"$error":"#REF!"}},{"$f":"AND('Building Envelope Calculator'!#REF!,\"a5uFbCgOc8s=\")","v":{"$error":"#REF!"}},{"$f":"AND('Building Envelope Calculator'!E24,\"a5uFbCgOc8w=\")","v":{"$error":"#VALUE!"}},{"$f":"AND('Building Envelope Calculator'!F24,\"a5uFbCgOc80=\")","v":{"$error":"#VALUE!"}},{"$f":"AND('Building Envelope Calculator'!G24,\"a5uFbCgOc84=\")","v":{"$error":"#VALUE!"}},{"$f":"AND('Building Envelope Calculator'!H24,\"a5uFbCgOc88=\")","v":{"$error":"#VALUE!"}},{"$f":"AND('Building Envelope Calculator'!I24,\"a5uFbCgOc9A=\")","v":{"$error":"#VALUE!"}},{"$f":"AND('Building Envelope Calculator'!J24,\"a5uFbCgOc9E=\")","v":{"$error":"#VALUE!"}},{"$f":"AND('Building Envelope Calculator'!K24,\"a5uFbCgOc9I=\")","v":{"$error":"#VALUE!"}},{"$f":"AND('Building Envelope Calculator'!L24,\"a5uFbCgOc9M=\")","v":{"$error":"#VALUE!"}},{"$f":"AND('Building Envelope Calculator'!M24,\"a5uFbCgOc9Q=\")","v":{"$error":"#VALUE!"}},{"$f":"AND('Building Envelope Calculator'!N24,\"a5uFbCgOc9U=\")","v":{"$error":"#VALUE!"}},{"$f":"AND('Building Envelope Calculator'!O24,\"a5uFbCgOc9Y=\")","v":{"$error":"#VALUE!"}},{"$f":"AND('Building Envelope Calculator'!P24,\"a5uFbCgOc9c=\")","v":{"$error":"#VALUE!"}},{"$f":"AND('Building Envelope Calculator'!Q24,\"a5uFbCgOc9g=\")","v":{"$error":"#VALUE!"}},{"$f":"IF('Building Envelope Calculator'!25:25,\"a5uFbCgOc9k=\",0)","v":0},{"$f":"AND('Building Envelope Calculator'!A25,\"a5uFbCgOc9o=\")","v":{"$error":"#VALUE!"}},{"$f":"AND('Building Envelope Calculator'!B25,\"a5uFbCgOc9s=\")","v":{"$error":"#VALUE!"}},{"$f":"AND('Building Envelope Calculator'!C25,\"a5uFbCgOc9w=\")","v":{"$error":"#VALUE!"}},{"$f":"AND('Building Envelope Calculator'!#REF!,\"a5uFbCgOc90=\")","v":{"$error":"#REF!"}},{"$f":"AND('Building Envelope Calculator'!#REF!,\"a5uFbCgOc94=\")","v":{"$error":"#REF!"}},{"$f":"AND('Building Envelope Calculator'!#REF!,\"a5uFbCgOc98=\")","v":{"$error":"#REF!"}},{"$f":"AND('Building Envelope Calculator'!E25,\"a5uFbCgOc+A=\")","v":{"$error":"#VALUE!"}},{"$f":"AND('Building Envelope Calculator'!F25,\"a5uFbCgOc+E=\")","v":{"$error":"#VALUE!"}},{"$f":"AND('Building Envelope Calculator'!G25,\"a5uFbCgOc+I=\")","v":{"$error":"#VALUE!"}},{"$f":"AND('Building Envelope Calculator'!H25,\"a5uFbCgOc+M=\")","v":{"$error":"#VALUE!"}},{"$f":"AND('Building Envelope Calculator'!I25,\"a5uFbCgOc+Q=\")","v":{"$error":"#VALUE!"}},{"$f":"AND('Building Envelope Calculator'!J25,\"a5uFbCgOc+U=\")","v":{"$error":"#VALUE!"}},{"$f":"AND('Building Envelope Calculator'!K25,\"a5uFbCgOc+Y=\")","v":{"$error":"#VALUE!"}},{"$f":"AND('Building Envelope Calculator'!L25,\"a5uFbCgOc+c=\")","v":{"$error":"#VALUE!"}},{"$f":"AND('Building Envelope Calculator'!M25,\"a5uFbCgOc+g=\")","v":{"$error":"#VALUE!"}},{"$f":"AND('Building Envelope Calculator'!N25,\"a5uFbCgOc+k=\")","v":{"$error":"#VALUE!"}},{"$f":"AND('Building Envelope Calculator'!O25,\"a5uFbCgOc+o=\")","v":{"$error":"#VALUE!"}},{"$f":"AND('Building Envelope Calculator'!P25,\"a5uFbCgOc+s=\")","v":{"$error":"#VALUE!"}},{"$f":"AND('Building Envelope Calculator'!Q25,\"a5uFbCgOc+w=\")","v":{"$error":"#VALUE!"}},{"$f":"IF('Building Envelope Calculator'!26:26,\"a5uFbCgOc+0=\",0)","v":0},{"$f":"AND('Building Envelope Calculator'!A26,\"a5uFbCgOc+4=\")","v":{"$error":"#VALUE!"}},{"$f":"AND('Building Envelope Calculator'!B26,\"a5uFbCgOc+8=\")","v":{"$error":"#VALUE!"}},{"$f":"AND('Building Envelope Calculator'!C26,\"a5uFbCgOc/A=\")","v":{"$error":"#VALUE!"}},{"$f":"AND('Building Envelope Calculator'!D26,\"a5uFbCgOc/E=\")","v":{"$error":"#VALUE!"}},{"$f":"AND('Building Envelope Calculator'!#REF!,\"a5uFbCgOc/I=\")","v":{"$error":"#REF!"}},{"$f":"AND('Building Envelope Calculator'!#REF!,\"a5uFbCgOc/M=\")","v":{"$error":"#REF!"}},{"$f":"AND('Building Envelope Calculator'!E26,\"a5uFbCgOc/Q=\")","v":{"$error":"#VALUE!"}},{"$f":"AND('Building Envelope Calculator'!F26,\"a5uFbCgOc/U=\")","v":{"$error":"#VALUE!"}},{"$f":"AND('Building Envelope Calculator'!G26,\"a5uFbCgOc/Y=\")","v":{"$error":"#VALUE!"}},{"$f":"AND('Building Envelope Calculator'!H26,\"a5uFbCgOc/c=\")","v":{"$error":"#VALUE!"}},{"$f":"AND('Building Envelope Calculator'!I26,\"a5uFbCgOc/g=\")","v":{"$error":"#VALUE!"}},{"$f":"AND('Building Envelope Calculator'!J26,\"a5uFbCgOc/k=\")","v":{"$error":"#VALUE!"}},{"$f":"AND('Building Envelope Calculator'!K26,\"a5uFbCgOc/o=\")","v":{"$error":"#VALUE!"}},{"$f":"AND('Building Envelope Calculator'!L26,\"a5uFbCgOc/s=\")","v":{"$error":"#VALUE!"}},{"$f":"AND('Building Envelope Calculator'!M26,\"a5uFbCgOc/w=\")","v":{"$error":"#VALUE!"}},{"$f":"AND('Building Envelope Calculator'!N26,\"a5uFbCgOc/0=\")","v":{"$error":"#VALUE!"}},{"$f":"AND('Building Envelope Calculator'!O26,\"a5uFbCgOc/4=\")","v":{"$error":"#VALUE!"}},{"$f":"AND('Building Envelope Calculator'!P26,\"a5uFbCgOc/8=\")","v":{"$error":"#VALUE!"}}]
[{"$f":"AND('Building Envelope Calculator'!Q26,\"QRMz+EVROAA=\")","v":{"$error":"#VALUE!"}},{"$f":"IF('Building Envelope Calculator'!27:27,\"QRMz+EVROAE=\",0)","v":"QRMz+EVROAE="},{"$f":"AND('Building Envelope Calculator'!A27,\"QRMz+EVROAI=\")","v":{"$error":"#VALUE!"}},{"$f":"AND('Building Envelope Calculator'!B27,\"QRMz+EVROAM=\")","v":{"$error":"#VALUE!"}},{"$f":"AND('Building Envelope Calculator'!C27,\"QRMz+EVROAQ=\")","v":{"$error":"#VALUE!"}},{"$f":"AND('Building Envelope Calculator'!D27,\"QRMz+EVROAU=\")","v":{"$error":"#VALUE!"}},{"$f":"AND('Building Envelope Calculator'!#REF!,\"QRMz+EVROAY=\")","v":{"$error":"#REF!"}},{"$f":"AND('Building Envelope Calculator'!#REF!,\"QRMz+EVROAc=\")","v":{"$error":"#REF!"}},{"$f":"AND('Building Envelope Calculator'!E27,\"QRMz+EVROAg=\")","v":{"$error":"#VALUE!"}},{"$f":"AND('Building Envelope Calculator'!F27,\"QRMz+EVROAk=\")","v":{"$error":"#VALUE!"}},{"$f":"AND('Building Envelope Calculator'!G27,\"QRMz+EVROAo=\")","v":{"$error":"#VALUE!"}},{"$f":"AND('Building Envelope Calculator'!H27,\"QRMz+EVROAs=\")","v":{"$error":"#VALUE!"}},{"$f":"AND('Building Envelope Calculator'!I27,\"QRMz+EVROAw=\")","v":{"$error":"#VALUE!"}},{"$f":"AND('Building Envelope Calculator'!J27,\"QRMz+EVROA0=\")","v":{"$error":"#VALUE!"}},{"$f":"AND('Building Envelope Calculator'!K27,\"QRMz+EVROA4=\")","v":{"$error":"#VALUE!"}},{"$f":"AND('Building Envelope Calculator'!L27,\"QRMz+EVROA8=\")","v":{"$error":"#VALUE!"}},{"$f":"AND('Building Envelope Calculator'!M27,\"QRMz+EVROBA=\")","v":{"$error":"#VALUE!"}},{"$f":"AND('Building Envelope Calculator'!N27,\"QRMz+EVROBE=\")","v":{"$error":"#VALUE!"}},{"$f":"AND('Building Envelope Calculator'!O27,\"QRMz+EVROBI=\")","v":{"$error":"#VALUE!"}},{"$f":"AND('Building Envelope Calculator'!P27,\"QRMz+EVROBM=\")","v":{"$error":"#VALUE!"}},{"$f":"AND('Building Envelope Calculator'!Q27,\"QRMz+EVROBQ=\")","v":{"$error":"#VALUE!"}},{"$f":"IF('Building Envelope Calculator'!28:28,\"QRMz+EVROBU=\",0)","v":0},{"$f":"AND('Building Envelope Calculator'!A28,\"QRMz+EVROBY=\")","v":{"$error":"#VALUE!"}},{"$f":"AND('Building Envelope Calculator'!B28,\"QRMz+EVROBc=\")","v":{"$error":"#VALUE!"}},{"$f":"AND('Building Envelope Calculator'!C28,\"QRMz+EVROBg=\")","v":{"$error":"#VALUE!"}},{"$f":"AND('Building Envelope Calculator'!D28,\"QRMz+EVROBk=\")","v":{"$error":"#VALUE!"}},{"$f":"AND('Building Envelope Calculator'!#REF!,\"QRMz+EVROBo=\")","v":{"$error":"#REF!"}},{"$f":"AND('Building Envelope Calculator'!#REF!,\"QRMz+EVROBs=\")","v":{"$error":"#REF!"}},{"$f":"AND('Building Envelope Calculator'!E28,\"QRMz+EVROBw=\")","v":{"$error":"#VALUE!"}},{"$f":"AND('Building Envelope Calculator'!F28,\"QRMz+EVROB0=\")","v":{"$error":"#VALUE!"}},{"$f":"AND('Building Envelope Calculator'!G28,\"QRMz+EVROB4=\")","v":{"$error":"#VALUE!"}},{"$f":"AND('Building Envelope Calculator'!H28,\"QRMz+EVROB8=\")","v":{"$error":"#VALUE!"}},{"$f":"AND('Building Envelope Calculator'!I28,\"QRMz+EVROCA=\")","v":{"$error":"#VALUE!"}},{"$f":"AND('Building Envelope Calculator'!J28,\"QRMz+EVROCE=\")","v":{"$error":"#VALUE!"}},{"$f":"AND('Building Envelope Calculator'!K28,\"QRMz+EVROCI=\")","v":{"$error":"#VALUE!"}},{"$f":"AND('Building Envelope Calculator'!L28,\"QRMz+EVROCM=\")","v":{"$error":"#VALUE!"}},{"$f":"AND('Building Envelope Calculator'!M28,\"QRMz+EVROCQ=\")","v":{"$error":"#VALUE!"}},{"$f":"AND('Building Envelope Calculator'!N28,\"QRMz+EVROCU=\")","v":{"$error":"#VALUE!"}},{"$f":"AND('Building Envelope Calculator'!O28,\"QRMz+EVROCY=\")","v":{"$error":"#VALUE!"}},{"$f":"AND('Building Envelope Calculator'!P28,\"QRMz+EVROCc=\")","v":{"$error":"#VALUE!"}},{"$f":"AND('Building Envelope Calculator'!Q28,\"QRMz+EVROCg=\")","v":{"$error":"#VALUE!"}},{"$f":"IF('Building Envelope Calculator'!29:29,\"QRMz+EVROCk=\",0)","v":0},{"$f":"AND('Building Envelope Calculator'!A29,\"QRMz+EVROCo=\")","v":{"$error":"#VALUE!"}},{"$f":"AND('Building Envelope Calculator'!B29,\"QRMz+EVROCs=\")","v":{"$error":"#VALUE!"}},{"$f":"AND('Building Envelope Calculator'!C29,\"QRMz+EVROCw=\")","v":{"$error":"#VALUE!"}},{"$f":"AND('Building Envelope Calculator'!D29,\"QRMz+EVROC0=\")","v":{"$error":"#VALUE!"}},{"$f":"AND('Building Envelope Calculator'!#REF!,\"QRMz+EVROC4=\")","v":{"$error":"#REF!"}},{"$f":"AND('Building Envelope Calculator'!#REF!,\"QRMz+EVROC8=\")","v":{"$error":"#REF!"}},{"$f":"AND('Building Envelope Calculator'!E29,\"QRMz+EVRODA=\")","v":{"$error":"#VALUE!"}},{"$f":"AND('Building Envelope Calculator'!F29,\"QRMz+EVRODE=\")","v":{"$error":"#VALUE!"}},{"$f":"AND('Building Envelope Calculator'!G29,\"QRMz+EVRODI=\")","v":{"$error":"#VALUE!"}},{"$f":"AND('Building Envelope Calculator'!H29,\"QRMz+EVRODM=\")","v":{"$error":"#VALUE!"}},{"$f":"AND('Building Envelope Calculator'!I29,\"QRMz+EVRODQ=\")","v":{"$error":"#VALUE!"}},{"$f":"AND('Building Envelope Calculator'!J29,\"QRMz+EVRODU=\")","v":{"$error":"#VALUE!"}},{"$f":"AND('Building Envelope Calculator'!K29,\"QRMz+EVRODY=\")","v":{"$error":"#VALUE!"}},{"$f":"AND('Building Envelope Calculator'!L29,\"QRMz+EVRODc=\")","v":{"$error":"#VALUE!"}},{"$f":"AND('Building Envelope Calculator'!M29,\"QRMz+EVRODg=\")","v":{"$error":"#VALUE!"}},{"$f":"AND('Building Envelope Calculator'!N29,\"QRMz+EVRODk=\")","v":{"$error":"#VALUE!"}},{"$f":"AND('Building Envelope Calculator'!O29,\"QRMz+EVRODo=\")","v":{"$error":"#VALUE!"}},{"$f":"AND('Building Envelope Calculator'!P29,\"QRMz+EVRODs=\")","v":{"$error":"#VALUE!"}},{"$f":"AND('Building Envelope Calculator'!Q29,\"QRMz+EVRODw=\")","v":{"$error":"#VALUE!"}},{"$f":"IF('Building Envelope Calculator'!30:30,\"QRMz+EVROD0=\",0)","v":0},{"$f":"AND('Building Envelope Calculator'!A30,\"QRMz+EVROD4=\")","v":{"$error":"#VALUE!"}},{"$f":"AND('Building Envelope Calculator'!B30,\"QRMz+EVROD8=\")","v":{"$error":"#VALUE!"}},{"$f":"AND('Building Envelope Calculator'!C30,\"QRMz+EVROEA=\")","v":{"$error":"#VALUE!"}},{"$f":"AND('Building Envelope Calculator'!D30,\"QRMz+EVROEE=\")","v":{"$error":"#VALUE!"}},{"$f":"AND('Building Envelope Calculator'!#REF!,\"QRMz+EVROEI=\")","v":{"$error":"#REF!"}},{"$f":"AND('Building Envelope Calculator'!#REF!,\"QRMz+EVROEM=\")","v":{"$error":"#REF!"}},{"$f":"AND('Building Envelope Calculator'!E30,\"QRMz+EVROEQ=\")","v":{"$error":"#VALUE!"}},{"$f":"AND('Building Envelope Calculator'!F30,\"QRMz+EVROEU=\")","v":{"$error":"#VALUE!"}},{"$f":"AND('Building Envelope Calculator'!G30,\"QRMz+EVROEY=\")","v":{"$error":"#VALUE!"}},{"$f":"AND('Building Envelope Calculator'!H30,\"QRMz+EVROEc=\")","v":{"$error":"#VALUE!"}},{"$f":"AND('Building Envelope Calculator'!I30,\"QRMz+EVROEg=\")","v":{"$error":"#VALUE!"}},{"$f":"AND('Building Envelope Calculator'!J30,\"QRMz+EVROEk=\")","v":{"$error":"#VALUE!"}},{"$f":"AND('Building Envelope Calculator'!K30,\"QRMz+EVROEo=\")","v":{"$error":"#VALUE!"}},{"$f":"AND('Building Envelope Calculator'!L30,\"QRMz+EVROEs=\")","v":{"$error":"#VALUE!"}},{"$f":"AND('Building Envelope Calculator'!M30,\"QRMz+EVROEw=\")","v":{"$error":"#VALUE!"}},{"$f":"AND('Building Envelope Calculator'!N30,\"QRMz+EVROE0=\")","v":{"$error":"#VALUE!"}},{"$f":"AND('Building Envelope Calculator'!O30,\"QRMz+EVROE4=\")","v":{"$error":"#VALUE!"}},{"$f":"AND('Building Envelope Calculator'!P30,\"QRMz+EVROE8=\")","v":{"$error":"#VALUE!"}},{"$f":"AND('Building Envelope Calculator'!Q30,\"QRMz+EVROFA=\")","v":{"$error":"#VALUE!"}},{"$f":"IF('Building Envelope Calculator'!31:31,\"QRMz+EVROFE=\",0)","v":0},{"$f":"AND('Building Envelope Calculator'!A31,\"QRMz+EVROFI=\")","v":{"$error":"#VALUE!"}},{"$f":"AND('Building Envelope Calculator'!B31,\"QRMz+EVROFM=\")","v":{"$error":"#VALUE!"}},{"$f":"AND('Building Envelope Calculator'!C31,\"QRMz+EVROFQ=\")","v":{"$error":"#VALUE!"}},{"$f":"AND('Building Envelope Calculator'!D31,\"QRMz+EVROFU=\")","v":{"$error":"#VALUE!"}},{"$f":"AND('Building Envelope Calculator'!#REF!,\"QRMz+EVROFY=\")","v":{"$error":"#REF!"}},{"$f":"AND('Building Envelope Calculator'!#REF!,\"QRMz+EVROFc=\")","v":{"$error":"#REF!"}},{"$f":"AND('Building Envelope Calculator'!E31,\"QRMz+EVROFg=\")","v":{"$error":"#VALUE!"}},{"$f":"AND('Building Envelope Calculator'!F31,\"QRMz+EVROFk=\")","v":{"$error":"#VALUE!"}},{"$f":"AND('Building Envelope Calculator'!G31,\"QRMz+EVROFo=\")","v":{"$error":"#VALUE!"}},{"$f":"AND('Building Envelope Calculator'!H31,\"QRMz+EVROFs=\")","v":{"$error":"#VALUE!"}},{"$f":"AND('Building Envelope Calculator'!I31,\"QRMz+EVROFw=\")","v":{"$error":"#VALUE!"}},{"$f":"AND('Building Envelope Calculator'!J31,\"QRMz+EVROF0=\")","v":{"$error":"#VALUE!"}},{"$f":"AND('Building Envelope Calculator'!K31,\"QRMz+EVROF4=\")","v":{"$error":"#VALUE!"}},{"$f":"AND('Building Envelope Calculator'!L31,\"QRMz+EVROF8=\")","v":{"$error":"#VALUE!"}},{"$f":"AND('Building Envelope Calculator'!M31,\"QRMz+EVROGA=\")","v":{"$error":"#VALUE!"}},{"$f":"AND('Building Envelope Calculator'!N31,\"QRMz+EVROGE=\")","v":{"$error":"#VALUE!"}},{"$f":"AND('Building Envelope Calculator'!O31,\"QRMz+EVROGI=\")","v":{"$error":"#VALUE!"}},{"$f":"AND('Building Envelope Calculator'!P31,\"QRMz+EVROGM=\")","v":{"$error":"#VALUE!"}},{"$f":"AND('Building Envelope Calculator'!Q31,\"QRMz+EVROGQ=\")","v":{"$error":"#VALUE!"}},{"$f":"IF('Building Envelope Calculator'!32:32,\"QRMz+EVROGU=\",0)","v":0},{"$f":"AND('Building Envelope Calculator'!A32,\"QRMz+EVROGY=\")","v":{"$error":"#VALUE!"}},{"$f":"AND('Building Envelope Calculator'!B32,\"QRMz+EVROGc=\")","v":{"$error":"#VALUE!"}},{"$f":"AND('Building Envelope Calculator'!C32,\"QRMz+EVROGg=\")","v":{"$error":"#VALUE!"}},{"$f":"AND('Building Envelope Calculator'!D32,\"QRMz+EVROGk=\")","v":{"$error":"#VALUE!"}},{"$f":"AND('Building Envelope Calculator'!#REF!,\"QRMz+EVROGo=\")","v":{"$error":"#REF!"}},{"$f":"AND('Building Envelope Calculator'!#REF!,\"QRMz+EVROGs=\")","v":{"$error":"#REF!"}},{"$f":"AND('Building Envelope Calculator'!E32,\"QRMz+EVROGw=\")","v":{"$error":"#VALUE!"}},{"$f":"AND('Building Envelope Calculator'!F32,\"QRMz+EVROG0=\")","v":{"$error":"#VALUE!"}},{"$f":"AND('Building Envelope Calculator'!G32,\"QRMz+EVROG4=\")","v":{"$error":"#VALUE!"}},{"$f":"AND('Building Envelope Calculator'!H32,\"QRMz+EVROG8=\")","v":{"$error":"#VALUE!"}},{"$f":"AND('Building Envelope Calculator'!I32,\"QRMz+EVROHA=\")","v":{"$error":"#VALUE!"}},{"$f":"AND('Building Envelope Calculator'!J32,\"QRMz+EVROHE=\")","v":{"$error":"#VALUE!"}},{"$f":"AND('Building Envelope Calculator'!K32,\"QRMz+EVROHI=\")","v":{"$error":"#VALUE!"}},{"$f":"AND('Building Envelope Calculator'!L32,\"QRMz+EVROHM=\")","v":{"$error":"#VALUE!"}},{"$f":"AND('Building Envelope Calculator'!M32,\"QRMz+EVROHQ=\")","v":{"$error":"#VALUE!"}},{"$f":"AND('Building Envelope Calculator'!N32,\"QRMz+EVROHU=\")","v":{"$error":"#VALUE!"}},{"$f":"AND('Building Envelope Calculator'!O32,\"QRMz+EVROHY=\")","v":{"$error":"#VALUE!"}},{"$f":"AND('Building Envelope Calculator'!P32,\"QRMz+EVROHc=\")","v":{"$error":"#VALUE!"}},{"$f":"AND('Building Envelope Calculator'!Q32,\"QRMz+EVROHg=\")","v":{"$error":"#VALUE!"}},{"$f":"IF('Building Envelope Calculator'!33:33,\"QRMz+EVROHk=\",0)","v":0},{"$f":"AND('Building Envelope Calculator'!A33,\"QRMz+EVROHo=\")","v":{"$error":"#VALUE!"}},{"$f":"AND('Building Envelope Calculator'!B33,\"QRMz+EVROHs=\")","v":{"$error":"#VALUE!"}},{"$f":"AND('Building Envelope Calculator'!C33,\"QRMz+EVROHw=\")","v":{"$error":"#VALUE!"}},{"$f":"AND('Building Envelope Calculator'!D33,\"QRMz+EVROH0=\")","v":{"$error":"#VALUE!"}},{"$f":"AND('Building Envelope Calculator'!#REF!,\"QRMz+EVROH4=\")","v":{"$error":"#REF!"}},{"$f":"AND('Building Envelope Calculator'!#REF!,\"QRMz+EVROH8=\")","v":{"$error":"#REF!"}},{"$f":"AND('Building Envelope Calculator'!E33,\"QRMz+EVROIA=\")","v":{"$error":"#VALUE!"}},{"$f":"AND('Building Envelope Calculator'!F33,\"QRMz+EVROIE=\")","v":{"$error":"#VALUE!"}},{"$f":"AND('Building Envelope Calculator'!G33,\"QRMz+EVROII=\")","v":{"$error":"#VALUE!"}},{"$f":"AND('Building Envelope Calculator'!H33,\"QRMz+EVROIM=\")","v":{"$error":"#VALUE!"}},{"$f":"AND('Building Envelope Calculator'!I33,\"QRMz+EVROIQ=\")","v":{"$error":"#VALUE!"}},{"$f":"AND('Building Envelope Calculator'!J33,\"QRMz+EVROIU=\")","v":{"$error":"#VALUE!"}},{"$f":"AND('Building Envelope Calculator'!K33,\"QRMz+EVROIY=\")","v":{"$error":"#VALUE!"}},{"$f":"AND('Building Envelope Calculator'!L33,\"QRMz+EVROIc=\")","v":{"$error":"#VALUE!"}},{"$f":"AND('Building Envelope Calculator'!M33,\"QRMz+EVROIg=\")","v":{"$error":"#VALUE!"}},{"$f":"AND('Building Envelope Calculator'!N33,\"QRMz+EVROIk=\")","v":{"$error":"#VALUE!"}},{"$f":"AND('Building Envelope Calculator'!O33,\"QRMz+EVROIo=\")","v":{"$error":"#VALUE!"}},{"$f":"AND('Building Envelope Calculator'!P33,\"QRMz+EVROIs=\")","v":{"$error":"#VALUE!"}},{"$f":"AND('Building Envelope Calculator'!Q33,\"QRMz+EVROIw=\")","v":{"$error":"#VALUE!"}},{"$f":"IF('Building Envelope Calculator'!34:34,\"QRMz+EVROI0=\",0)","v":0},{"$f":"AND('Building Envelope Calculator'!A34,\"QRMz+EVROI4=\")","v":{"$error":"#VALUE!"}},{"$f":"AND('Building Envelope Calculator'!B34,\"QRMz+EVROI8=\")","v":{"$error":"#VALUE!"}},{"$f":"AND('Building Envelope Calculator'!C34,\"QRMz+EVROJA=\")","v":{"$error":"#VALUE!"}},{"$f":"AND('Building Envelope Calculator'!D34,\"QRMz+EVROJE=\")","v":{"$error":"#VALUE!"}},{"$f":"AND('Building Envelope Calculator'!#REF!,\"QRMz+EVROJI=\")","v":{"$error":"#REF!"}},{"$f":"AND('Building Envelope Calculator'!#REF!,\"QRMz+EVROJM=\")","v":{"$error":"#REF!"}},{"$f":"AND('Building Envelope Calculator'!E34,\"QRMz+EVROJQ=\")","v":{"$error":"#VALUE!"}},{"$f":"AND('Building Envelope Calculator'!F34,\"QRMz+EVROJU=\")","v":{"$error":"#VALUE!"}},{"$f":"AND('Building Envelope Calculator'!G34,\"QRMz+EVROJY=\")","v":{"$error":"#VALUE!"}},{"$f":"AND('Building Envelope Calculator'!H34,\"QRMz+EVROJc=\")","v":{"$error":"#VALUE!"}},{"$f":"AND('Building Envelope Calculator'!I34,\"QRMz+EVROJg=\")","v":{"$error":"#VALUE!"}},{"$f":"AND('Building Envelope Calculator'!J34,\"QRMz+EVROJk=\")","v":{"$error":"#VALUE!"}},{"$f":"AND('Building Envelope Calculator'!K34,\"QRMz+EVROJo=\")","v":{"$error":"#VALUE!"}},{"$f":"AND('Building Envelope Calculator'!L34,\"QRMz+EVROJs=\")","v":{"$error":"#VALUE!"}},{"$f":"AND('Building Envelope Calculator'!M34,\"QRMz+EVROJw=\")","v":{"$error":"#VALUE!"}},{"$f":"AND('Building Envelope Calculator'!N34,\"QRMz+EVROJ0=\")","v":{"$error":"#VALUE!"}},{"$f":"AND('Building Envelope Calculator'!O34,\"QRMz+EVROJ4=\")","v":{"$error":"#VALUE!"}},{"$f":"AND('Building Envelope Calculator'!P34,\"QRMz+EVROJ8=\")","v":{"$error":"#VALUE!"}},{"$f":"AND('Building Envelope Calculator'!Q34,\"QRMz+EVROKA=\")","v":{"$error":"#VALUE!"}},{"$f":"IF('Building Envelope Calculator'!35:35,\"QRMz+EVROKE=\",0)","v":0},{"$f":"AND('Building Envelope Calculator'!A35,\"QRMz+EVROKI=\")","v":{"$error":"#VALUE!"}},{"$f":"AND('Building Envelope Calculator'!B35,\"QRMz+EVROKM=\")","v":{"$error":"#VALUE!"}},{"$f":"AND('Building Envelope Calculator'!C35,\"QRMz+EVROKQ=\")","v":{"$error":"#VALUE!"}},{"$f":"AND('Building Envelope Calculator'!D35,\"QRMz+EVROKU=\")","v":{"$error":"#VALUE!"}},{"$f":"AND('Building Envelope Calculator'!#REF!,\"QRMz+EVROKY=\")","v":{"$error":"#REF!"}},{"$f":"AND('Building Envelope Calculator'!#REF!,\"QRMz+EVROKc=\")","v":{"$error":"#REF!"}},{"$f":"AND('Building Envelope Calculator'!E35,\"QRMz+EVROKg=\")","v":{"$error":"#VALUE!"}},{"$f":"AND('Building Envelope Calculator'!F35,\"QRMz+EVROKk=\")","v":{"$error":"#VALUE!"}},{"$f":"AND('Building Envelope Calculator'!G35,\"QRMz+EVROKo=\")","v":{"$error":"#VALUE!"}},{"$f":"AND('Building Envelope Calculator'!H35,\"QRMz+EVROKs=\")","v":{"$error":"#VALUE!"}},{"$f":"AND('Building Envelope Calculator'!I35,\"QRMz+EVROKw=\")","v":{"$error":"#VALUE!"}},{"$f":"AND('Building Envelope Calculator'!J35,\"QRMz+EVROK0=\")","v":{"$error":"#VALUE!"}},{"$f":"AND('Building Envelope Calculator'!K35,\"QRMz+EVROK4=\")","v":{"$error":"#VALUE!"}},{"$f":"AND('Building Envelope Calculator'!L35,\"QRMz+EVROK8=\")","v":{"$error":"#VALUE!"}},{"$f":"AND('Building Envelope Calculator'!M35,\"QRMz+EVROLA=\")","v":{"$error":"#VALUE!"}},{"$f":"AND('Building Envelope Calculator'!N35,\"QRMz+EVROLE=\")","v":{"$error":"#VALUE!"}},{"$f":"AND('Building Envelope Calculator'!O35,\"QRMz+EVROLI=\")","v":{"$error":"#VALUE!"}},{"$f":"AND('Building Envelope Calculator'!P35,\"QRMz+EVROLM=\")","v":{"$error":"#VALUE!"}},{"$f":"AND('Building Envelope Calculator'!Q35,\"QRMz+EVROLQ=\")","v":{"$error":"#VALUE!"}},{"$f":"IF('Building Envelope Calculator'!36:36,\"QRMz+EVROLU=\",0)","v":0},{"$f":"AND('Building Envelope Calculator'!A36,\"QRMz+EVROLY=\")","v":{"$error":"#VALUE!"}},{"$f":"AND('Building Envelope Calculator'!B36,\"QRMz+EVROLc=\")","v":{"$error":"#VALUE!"}},{"$f":"AND('Building Envelope Calculator'!C36,\"QRMz+EVROLg=\")","v":{"$error":"#VALUE!"}},{"$f":"AND('Building Envelope Calculator'!D36,\"QRMz+EVROLk=\")","v":{"$error":"#VALUE!"}},{"$f":"AND('Building Envelope Calculator'!#REF!,\"QRMz+EVROLo=\")","v":{"$error":"#REF!"}},{"$f":"AND('Building Envelope Calculator'!#REF!,\"QRMz+EVROLs=\")","v":{"$error":"#REF!"}},{"$f":"AND('Building Envelope Calculator'!E36,\"QRMz+EVROLw=\")","v":{"$error":"#VALUE!"}},{"$f":"AND('Building Envelope Calculator'!F36,\"QRMz+EVROL0=\")","v":{"$error":"#VALUE!"}},{"$f":"AND('Building Envelope Calculator'!G36,\"QRMz+EVROL4=\")","v":{"$error":"#VALUE!"}},{"$f":"AND('Building Envelope Calculator'!H36,\"QRMz+EVROL8=\")","v":{"$error":"#VALUE!"}},{"$f":"AND('Building Envelope Calculator'!I36,\"QRMz+EVROMA=\")","v":{"$error":"#VALUE!"}},{"$f":"AND('Building Envelope Calculator'!J36,\"QRMz+EVROME=\")","v":{"$error":"#VALUE!"}},{"$f":"AND('Building Envelope Calculator'!K36,\"QRMz+EVROMI=\")","v":{"$error":"#VALUE!"}},{"$f":"AND('Building Envelope Calculator'!L36,\"QRMz+EVROMM=\")","v":{"$error":"#VALUE!"}},{"$f":"AND('Building Envelope Calculator'!M36,\"QRMz+EVROMQ=\")","v":{"$error":"#VALUE!"}},{"$f":"AND('Building Envelope Calculator'!N36,\"QRMz+EVROMU=\")","v":{"$error":"#VALUE!"}},{"$f":"AND('Building Envelope Calculator'!O36,\"QRMz+EVROMY=\")","v":{"$error":"#VALUE!"}},{"$f":"AND('Building Envelope Calculator'!P36,\"QRMz+EVROMc=\")","v":{"$error":"#VALUE!"}},{"$f":"AND('Building Envelope Calculator'!Q36,\"QRMz+EVROMg=\")","v":{"$error":"#VALUE!"}},{"$f":"IF('Building Envelope Calculator'!37:37,\"QRMz+EVROMk=\",0)","v":0},{"$f":"AND('Building Envelope Calculator'!A37,\"QRMz+EVROMo=\")","v":{"$error":"#VALUE!"}},{"$f":"AND('Building Envelope Calculator'!B37,\"QRMz+EVROMs=\")","v":{"$error":"#VALUE!"}},{"$f":"AND('Building Envelope Calculator'!C37,\"QRMz+EVROMw=\")","v":{"$error":"#VALUE!"}},{"$f":"AND('Building Envelope Calculator'!D37,\"QRMz+EVROM0=\")","v":{"$error":"#VALUE!"}},{"$f":"AND('Building Envelope Calculator'!#REF!,\"QRMz+EVROM4=\")","v":{"$error":"#REF!"}},{"$f":"AND('Building Envelope Calculator'!#REF!,\"QRMz+EVROM8=\")","v":{"$error":"#REF!"}},{"$f":"AND('Building Envelope Calculator'!E37,\"QRMz+EVRONA=\")","v":{"$error":"#VALUE!"}},{"$f":"AND('Building Envelope Calculator'!F37,\"QRMz+EVRONE=\")","v":{"$error":"#VALUE!"}},{"$f":"AND('Building Envelope Calculator'!G37,\"QRMz+EVRONI=\")","v":{"$error":"#VALUE!"}},{"$f":"AND('Building Envelope Calculator'!H37,\"QRMz+EVRONM=\")","v":{"$error":"#VALUE!"}},{"$f":"AND('Building Envelope Calculator'!I37,\"QRMz+EVRONQ=\")","v":{"$error":"#VALUE!"}},{"$f":"AND('Building Envelope Calculator'!J37,\"QRMz+EVRONU=\")","v":{"$error":"#VALUE!"}},{"$f":"AND('Building Envelope Calculator'!K37,\"QRMz+EVRONY=\")","v":{"$error":"#VALUE!"}},{"$f":"AND('Building Envelope Calculator'!L37,\"QRMz+EVRONc=\")","v":{"$error":"#VALUE!"}},{"$f":"AND('Building Envelope Calculator'!M37,\"QRMz+EVRONg=\")","v":{"$error":"#VALUE!"}},{"$f":"AND('Building Envelope Calculator'!N37,\"QRMz+EVRONk=\")","v":{"$error":"#VALUE!"}},{"$f":"AND('Building Envelope Calculator'!O37,\"QRMz+EVRONo=\")","v":{"$error":"#VALUE!"}},{"$f":"AND('Building Envelope Calculator'!P37,\"QRMz+EVRONs=\")","v":{"$error":"#VALUE!"}},{"$f":"AND('Building Envelope Calculator'!Q37,\"QRMz+EVRONw=\")","v":{"$error":"#VALUE!"}},{"$f":"IF('Building Envelope Calculator'!38:38,\"QRMz+EVRON0=\",0)","v":0},{"$f":"AND('Building Envelope Calculator'!A38,\"QRMz+EVRON4=\")","v":{"$error":"#VALUE!"}},{"$f":"AND('Building Envelope Calculator'!B38,\"QRMz+EVRON8=\")","v":{"$error":"#VALUE!"}},{"$f":"AND('Building Envelope Calculator'!C38,\"QRMz+EVROOA=\")","v":{"$error":"#VALUE!"}},{"$f":"AND('Building Envelope Calculator'!D38,\"QRMz+EVROOE=\")","v":{"$error":"#VALUE!"}},{"$f":"AND('Building Envelope Calculator'!#REF!,\"QRMz+EVROOI=\")","v":{"$error":"#REF!"}},{"$f":"AND('Building Envelope Calculator'!#REF!,\"QRMz+EVROOM=\")","v":{"$error":"#REF!"}},{"$f":"AND('Building Envelope Calculator'!E38,\"QRMz+EVROOQ=\")","v":{"$error":"#VALUE!"}},{"$f":"AND('Building Envelope Calculator'!F38,\"QRMz+EVROOU=\")","v":{"$error":"#VALUE!"}},{"$f":"AND('Building Envelope Calculator'!G38,\"QRMz+EVROOY=\")","v":{"$error":"#VALUE!"}},{"$f":"AND('Building Envelope Calculator'!H38,\"QRMz+EVROOc=\")","v":{"$error":"#VALUE!"}},{"$f":"AND('Building Envelope Calculator'!I38,\"QRMz+EVROOg=\")","v":{"$error":"#VALUE!"}},{"$f":"AND('Building Envelope Calculator'!J38,\"QRMz+EVROOk=\")","v":{"$error":"#VALUE!"}},{"$f":"AND('Building Envelope Calculator'!K38,\"QRMz+EVROOo=\")","v":{"$error":"#VALUE!"}},{"$f":"AND('Building Envelope Calculator'!L38,\"QRMz+EVROOs=\")","v":{"$error":"#VALUE!"}},{"$f":"AND('Building Envelope Calculator'!M38,\"QRMz+EVROOw=\")","v":{"$error":"#VALUE!"}},{"$f":"AND('Building Envelope Calculator'!N38,\"QRMz+EVROO0=\")","v":{"$error":"#VALUE!"}},{"$f":"AND('Building Envelope Calculator'!O38,\"QRMz+EVROO4=\")","v":{"$error":"#VALUE!"}},{"$f":"AND('Building Envelope Calculator'!P38,\"QRMz+EVROO8=\")","v":{"$error":"#VALUE!"}},{"$f":"AND('Building Envelope Calculator'!Q38,\"QRMz+EVROPA=\")","v":{"$error":"#VALUE!"}},{"$f":"IF('Building Envelope Calculator'!39:39,\"QRMz+EVROPE=\",0)","v":0},{"$f":"AND('Building Envelope Calculator'!A39,\"QRMz+EVROPI=\")","v":{"$error":"#VALUE!"}},{"$f":"AND('Building Envelope Calculator'!B39,\"QRMz+EVROPM=\")","v":{"$error":"#VALUE!"}},{"$f":"AND('Building Envelope Calculator'!C39,\"QRMz+EVROPQ=\")","v":{"$error":"#VALUE!"}},{"$f":"AND('Building Envelope Calculator'!D39,\"QRMz+EVROPU=\")","v":{"$error":"#VALUE!"}},{"$f":"AND('Building Envelope Calculator'!#REF!,\"QRMz+EVROPY=\")","v":{"$error":"#REF!"}},{"$f":"AND('Building Envelope Calculator'!#REF!,\"QRMz+EVROPc=\")","v":{"$error":"#REF!"}},{"$f":"AND('Building Envelope Calculator'!E39,\"QRMz+EVROPg=\")","v":{"$error":"#VALUE!"}},{"$f":"AND('Building Envelope Calculator'!F39,\"QRMz+EVROPk=\")","v":{"$error":"#VALUE!"}},{"$f":"AND('Building Envelope Calculator'!G39,\"QRMz+EVROPo=\")","v":{"$error":"#VALUE!"}},{"$f":"AND('Building Envelope Calculator'!H39,\"QRMz+EVROPs=\")","v":{"$error":"#VALUE!"}},{"$f":"AND('Building Envelope Calculator'!I39,\"QRMz+EVROPw=\")","v":{"$error":"#VALUE!"}},{"$f":"AND('Building Envelope Calculator'!J39,\"QRMz+EVROP0=\")","v":{"$error":"#VALUE!"}},{"$f":"AND('Building Envelope Calculator'!K39,\"QRMz+EVROP4=\")","v":{"$error":"#VALUE!"}},{"$f":"AND('Building Envelope Calculator'!L39,\"QRMz+EVROP8=\")","v":{"$error":"#VALUE!"}}]
[{"$f":"AND('Building Envelope Calculator'!M39,\"LwYznxr63QA=\")","v":{"$error":"#VALUE!"}},{"$f":"AND('Building Envelope Calculator'!N39,\"LwYznxr63QE=\")","v":{"$error":"#VALUE!"}},{"$f":"AND('Building Envelope Calculator'!O39,\"LwYznxr63QI=\")","v":{"$error":"#VALUE!"}},{"$f":"AND('Building Envelope Calculator'!P39,\"LwYznxr63QM=\")","v":{"$error":"#VALUE!"}},{"$f":"AND('Building Envelope Calculator'!Q39,\"LwYznxr63QQ=\")","v":{"$error":"#VALUE!"}},{"$f":"IF('Building Envelope Calculator'!40:40,\"LwYznxr63QU=\",0)","v":0},{"$f":"AND('Building Envelope Calculator'!A40,\"LwYznxr63QY=\")","v":{"$error":"#VALUE!"}},{"$f":"AND('Building Envelope Calculator'!B40,\"LwYznxr63Qc=\")","v":{"$error":"#VALUE!"}},{"$f":"AND('Building Envelope Calculator'!C40,\"LwYznxr63Qg=\")","v":{"$error":"#VALUE!"}},{"$f":"AND('Building Envelope Calculator'!D40,\"LwYznxr63Qk=\")","v":{"$error":"#VALUE!"}},{"$f":"AND('Building Envelope Calculator'!#REF!,\"LwYznxr63Qo=\")","v":{"$error":"#REF!"}},{"$f":"AND('Building Envelope Calculator'!#REF!,\"LwYznxr63Qs=\")","v":{"$error":"#REF!"}},{"$f":"AND('Building Envelope Calculator'!E40,\"LwYznxr63Qw=\")","v":{"$error":"#VALUE!"}},{"$f":"AND('Building Envelope Calculator'!F40,\"LwYznxr63Q0=\")","v":{"$error":"#VALUE!"}},{"$f":"AND('Building Envelope Calculator'!G40,\"LwYznxr63Q4=\")","v":{"$error":"#VALUE!"}},{"$f":"AND('Building Envelope Calculator'!H40,\"LwYznxr63Q8=\")","v":{"$error":"#VALUE!"}},{"$f":"AND('Building Envelope Calculator'!I40,\"LwYznxr63RA=\")","v":{"$error":"#VALUE!"}},{"$f":"AND('Building Envelope Calculator'!J40,\"LwYznxr63RE=\")","v":{"$error":"#VALUE!"}},{"$f":"AND('Building Envelope Calculator'!K40,\"LwYznxr63RI=\")","v":{"$error":"#VALUE!"}},{"$f":"AND('Building Envelope Calculator'!L40,\"LwYznxr63RM=\")","v":{"$error":"#VALUE!"}},{"$f":"AND('Building Envelope Calculator'!M40,\"LwYznxr63RQ=\")","v":{"$error":"#VALUE!"}},{"$f":"AND('Building Envelope Calculator'!N40,\"LwYznxr63RU=\")","v":{"$error":"#VALUE!"}},{"$f":"AND('Building Envelope Calculator'!O40,\"LwYznxr63RY=\")","v":{"$error":"#VALUE!"}},{"$f":"AND('Building Envelope Calculator'!P40,\"LwYznxr63Rc=\")","v":{"$error":"#VALUE!"}},{"$f":"AND('Building Envelope Calculator'!Q40,\"LwYznxr63Rg=\")","v":{"$error":"#VALUE!"}},{"$f":"IF('Building Envelope Calculator'!41:41,\"LwYznxr63Rk=\",0)","v":0},{"$f":"AND('Building Envelope Calculator'!A41,\"LwYznxr63Ro=\")","v":{"$error":"#VALUE!"}},{"$f":"AND('Building Envelope Calculator'!B41,\"LwYznxr63Rs=\")","v":{"$error":"#VALUE!"}},{"$f":"AND('Building Envelope Calculator'!C41,\"LwYznxr63Rw=\")","v":{"$error":"#VALUE!"}},{"$f":"AND('Building Envelope Calculator'!D41,\"LwYznxr63R0=\")","v":{"$error":"#VALUE!"}},{"$f":"AND('Building Envelope Calculator'!#REF!,\"LwYznxr63R4=\")","v":{"$error":"#REF!"}},{"$f":"AND('Building Envelope Calculator'!#REF!,\"LwYznxr63R8=\")","v":{"$error":"#REF!"}},{"$f":"AND('Building Envelope Calculator'!E41,\"LwYznxr63SA=\")","v":{"$error":"#VALUE!"}},{"$f":"AND('Building Envelope Calculator'!F41,\"LwYznxr63SE=\")","v":{"$error":"#VALUE!"}},{"$f":"AND('Building Envelope Calculator'!G41,\"LwYznxr63SI=\")","v":{"$error":"#VALUE!"}},{"$f":"AND('Building Envelope Calculator'!H41,\"LwYznxr63SM=\")","v":{"$error":"#VALUE!"}},{"$f":"AND('Building Envelope Calculator'!I41,\"LwYznxr63SQ=\")","v":{"$error":"#VALUE!"}},{"$f":"AND('Building Envelope Calculator'!J41,\"LwYznxr63SU=\")","v":{"$error":"#VALUE!"}},{"$f":"AND('Building Envelope Calculator'!K41,\"LwYznxr63SY=\")","v":{"$error":"#VALUE!"}},{"$f":"AND('Building Envelope Calculator'!L41,\"LwYznxr63Sc=\")","v":{"$error":"#VALUE!"}},{"$f":"AND('Building Envelope Calculator'!M41,\"LwYznxr63Sg=\")","v":{"$error":"#VALUE!"}},{"$f":"AND('Building Envelope Calculator'!N41,\"LwYznxr63Sk=\")","v":{"$error":"#VALUE!"}},{"$f":"AND('Building Envelope Calculator'!O41,\"LwYznxr63So=\")","v":{"$error":"#VALUE!"}},{"$f":"AND('Building Envelope Calculator'!P41,\"LwYznxr63Ss=\")","v":{"$error":"#VALUE!"}},{"$f":"AND('Building Envelope Calculator'!Q41,\"LwYznxr63Sw=\")","v":{"$error":"#VALUE!"}},{"$f":"IF('Building Envelope Calculator'!42:42,\"LwYznxr63S0=\",0)","v":0},{"$f":"AND('Building Envelope Calculator'!A42,\"LwYznxr63S4=\")","v":{"$error":"#VALUE!"}},{"$f":"AND('Building Envelope Calculator'!B42,\"LwYznxr63S8=\")","v":{"$error":"#VALUE!"}},{"$f":"AND('Building Envelope Calculator'!C42,\"LwYznxr63TA=\")","v":{"$error":"#VALUE!"}},{"$f":"AND('Building Envelope Calculator'!D42,\"LwYznxr63TE=\")","v":{"$error":"#VALUE!"}},{"$f":"AND('Building Envelope Calculator'!#REF!,\"LwYznxr63TI=\")","v":{"$error":"#REF!"}},{"$f":"AND('Building Envelope Calculator'!#REF!,\"LwYznxr63TM=\")","v":{"$error":"#REF!"}},{"$f":"AND('Building Envelope Calculator'!E42,\"LwYznxr63TQ=\")","v":{"$error":"#VALUE!"}},{"$f":"AND('Building Envelope Calculator'!F42,\"LwYznxr63TU=\")","v":{"$error":"#VALUE!"}},{"$f":"AND('Building Envelope Calculator'!G42,\"LwYznxr63TY=\")","v":{"$error":"#VALUE!"}},{"$f":"AND('Building Envelope Calculator'!H42,\"LwYznxr63Tc=\")","v":{"$error":"#VALUE!"}},{"$f":"AND('Building Envelope Calculator'!I42,\"LwYznxr63Tg=\")","v":{"$error":"#VALUE!"}},{"$f":"AND('Building Envelope Calculator'!J42,\"LwYznxr63Tk=\")","v":{"$error":"#VALUE!"}},{"$f":"AND('Building Envelope Calculator'!K42,\"LwYznxr63To=\")","v":{"$error":"#VALUE!"}},{"$f":"AND('Building Envelope Calculator'!L42,\"LwYznxr63Ts=\")","v":{"$error":"#VALUE!"}},{"$f":"AND('Building Envelope Calculator'!M42,\"LwYznxr63Tw=\")","v":{"$error":"#VALUE!"}},{"$f":"AND('Building Envelope Calculator'!N42,\"LwYznxr63T0=\")","v":{"$error":"#VALUE!"}},{"$f":"AND('Building Envelope Calculator'!O42,\"LwYznxr63T4=\")","v":{"$error":"#VALUE!"}},{"$f":"AND('Building Envelope Calculator'!P42,\"LwYznxr63T8=\")","v":{"$error":"#VALUE!"}},{"$f":"AND('Building Envelope Calculator'!Q42,\"LwYznxr63UA=\")","v":{"$error":"#VALUE!"}},{"$f":"IF('Building Envelope Calculator'!43:43,\"LwYznxr63UE=\",0)","v":0},{"$f":"AND('Building Envelope Calculator'!A43,\"LwYznxr63UI=\")","v":{"$error":"#VALUE!"}},{"$f":"AND('Building Envelope Calculator'!B43,\"LwYznxr63UM=\")","v":{"$error":"#VALUE!"}},{"$f":"AND('Building Envelope Calculator'!C43,\"LwYznxr63UQ=\")","v":{"$error":"#VALUE!"}},{"$f":"AND('Building Envelope Calculator'!D43,\"LwYznxr63UU=\")","v":{"$error":"#VALUE!"}},{"$f":"AND('Building Envelope Calculator'!E43,\"LwYznxr63UY=\")","v":{"$error":"#VALUE!"}},{"$f":"AND('Building Envelope Calculator'!F43,\"LwYznxr63Uc=\")","v":{"$error":"#VALUE!"}},{"$f":"AND('Building Envelope Calculator'!G43,\"LwYznxr63Ug=\")","v":{"$error":"#VALUE!"}},{"$f":"AND('Building Envelope Calculator'!H43,\"LwYznxr63Uk=\")","v":{"$error":"#VALUE!"}},{"$f":"AND('Building Envelope Calculator'!I43,\"LwYznxr63Uo=\")","v":{"$error":"#VALUE!"}},{"$f":"AND('Building Envelope Calculator'!J43,\"LwYznxr63Us=\")","v":{"$error":"#VALUE!"}},{"$f":"AND('Building Envelope Calculator'!K43,\"LwYznxr63Uw=\")","v":{"$error":"#VALUE!"}},{"$f":"AND('Building Envelope Calculator'!L43,\"LwYznxr63U0=\")","v":{"$error":"#VALUE!"}},{"$f":"AND('Building Envelope Calculator'!M43,\"LwYznxr63U4=\")","v":{"$error":"#VALUE!"}},{"$f":"AND('Building Envelope Calculator'!N43,\"LwYznxr63U8=\")","v":{"$error":"#VALUE!"}},{"$f":"AND('Building Envelope Calculator'!O43,\"LwYznxr63VA=\")","v":{"$error":"#VALUE!"}},{"$f":"AND('Building Envelope Calculator'!P43,\"LwYznxr63VE=\")","v":{"$error":"#VALUE!"}},{"$f":"AND('Building Envelope Calculator'!Q43,\"LwYznxr63VI=\")","v":{"$error":"#VALUE!"}},{"$f":"AND('Building Envelope Calculator'!R43,\"LwYznxr63VM=\")","v":{"$error":"#VALUE!"}},{"$f":"AND('Building Envelope Calculator'!S43,\"LwYznxr63VQ=\")","v":{"$error":"#VALUE!"}},{"$f":"IF('Building Envelope Calculator'!44:44,\"LwYznxr63VU=\",0)","v":0},{"$f":"AND('Building Envelope Calculator'!A44,\"LwYznxr63VY=\")","v":{"$error":"#VALUE!"}},{"$f":"AND('Building Envelope Calculator'!B44,\"LwYznxr63Vc=\")","v":{"$error":"#VALUE!"}},{"$f":"AND('Building Envelope Calculator'!C44,\"LwYznxr63Vg=\")","v":{"$error":"#VALUE!"}},{"$f":"AND('Building Envelope Calculator'!D44,\"LwYznxr63Vk=\")","v":{"$error":"#VALUE!"}},{"$f":"AND('Building Envelope Calculator'!E44,\"LwYznxr63Vo=\")","v":{"$error":"#VALUE!"}},{"$f":"AND('Building Envelope Calculator'!F44,\"LwYznxr63Vs=\")","v":{"$error":"#VALUE!"}},{"$f":"AND('Building Envelope Calculator'!G44,\"LwYznxr63Vw=\")","v":{"$error":"#VALUE!"}},{"$f":"AND('Building Envelope Calculator'!H44,\"LwYznxr63V0=\")","v":{"$error":"#VALUE!"}},{"$f":"AND('Building Envelope Calculator'!I44,\"LwYznxr63V4=\")","v":{"$error":"#VALUE!"}},{"$f":"AND('Building Envelope Calculator'!J44,\"LwYznxr63V8=\")","v":{"$error":"#VALUE!"}},{"$f":"AND('Building Envelope Calculator'!K44,\"LwYznxr63WA=\")","v":{"$error":"#VALUE!"}},{"$f":"AND('Building Envelope Calculator'!L44,\"LwYznxr63WE=\")","v":{"$error":"#VALUE!"}},{"$f":"AND('Building Envelope Calculator'!M44,\"LwYznxr63WI=\")","v":{"$error":"#VALUE!"}},{"$f":"AND('Building Envelope Calculator'!N44,\"LwYznxr63WM=\")","v":{"$error":"#VALUE!"}},{"$f":"AND('Building Envelope Calculator'!O44,\"LwYznxr63WQ=\")","v":{"$error":"#VALUE!"}},{"$f":"AND('Building Envelope Calculator'!P44,\"LwYznxr63WU=\")","v":{"$error":"#VALUE!"}},{"$f":"AND('Building Envelope Calculator'!Q44,\"LwYznxr63WY=\")","v":{"$error":"#VALUE!"}},{"$f":"AND('Building Envelope Calculator'!R44,\"LwYznxr63Wc=\")","v":{"$error":"#VALUE!"}},{"$f":"AND('Building Envelope Calculator'!S44,\"LwYznxr63Wg=\")","v":{"$error":"#VALUE!"}},{"$f":"IF('Building Envelope Calculator'!45:45,\"LwYznxr63Wk=\",0)","v":0},{"$f":"AND('Building Envelope Calculator'!A45,\"LwYznxr63Wo=\")","v":{"$error":"#VALUE!"}},{"$f":"AND('Building Envelope Calculator'!B45,\"LwYznxr63Ws=\")","v":{"$error":"#VALUE!"}},{"$f":"AND('Building Envelope Calculator'!C45,\"LwYznxr63Ww=\")","v":{"$error":"#VALUE!"}},{"$f":"AND('Building Envelope Calculator'!D45,\"LwYznxr63W0=\")","v":{"$error":"#VALUE!"}},{"$f":"AND('Building Envelope Calculator'!E45,\"LwYznxr63W4=\")","v":{"$error":"#VALUE!"}},{"$f":"AND('Building Envelope Calculator'!F45,\"LwYznxr63W8=\")","v":{"$error":"#VALUE!"}},{"$f":"AND('Building Envelope Calculator'!A58,\"LwYznxr63XA=\")","v":{"$error":"#VALUE!"}},{"$f":"AND('Building Envelope Calculator'!B58,\"LwYznxr63XE=\")","v":{"$error":"#VALUE!"}},{"$f":"AND('Building Envelope Calculator'!I45,\"LwYznxr63XI=\")","v":{"$error":"#VALUE!"}},{"$f":"AND('Building Envelope Calculator'!J45,\"LwYznxr63XM=\")","v":{"$error":"#VALUE!"}},{"$f":"AND('Building Envelope Calculator'!K45,\"LwYznxr63XQ=\")","v":{"$error":"#VALUE!"}},{"$f":"AND('Building Envelope Calculator'!L45,\"LwYznxr63XU=\")","v":{"$error":"#VALUE!"}},{"$f":"AND('Building Envelope Calculator'!M45,\"LwYznxr63XY=\")","v":{"$error":"#VALUE!"}},{"$f":"AND('Building Envelope Calculator'!N45,\"LwYznxr63Xc=\")","v":{"$error":"#VALUE!"}},{"$f":"AND('Building Envelope Calculator'!O45,\"LwYznxr63Xg=\")","v":{"$error":"#VALUE!"}},{"$f":"AND('Building Envelope Calculator'!P45,\"LwYznxr63Xk=\")","v":{"$error":"#VALUE!"}},{"$f":"AND('Building Envelope Calculator'!Q45,\"LwYznxr63Xo=\")","v":{"$error":"#VALUE!"}},{"$f":"AND('Building Envelope Calculator'!R45,\"LwYznxr63Xs=\")","v":{"$error":"#VALUE!"}},{"$f":"AND('Building Envelope Calculator'!S45,\"LwYznxr63Xw=\")","v":{"$error":"#VALUE!"}},{"$f":"IF('Building Envelope Calculator'!46:46,\"LwYznxr63X0=\",0)","v":0},{"$f":"AND('Building Envelope Calculator'!A51,\"LwYznxr63X4=\")","v":{"$error":"#VALUE!"}},{"$f":"AND('Building Envelope Calculator'!B51,\"LwYznxr63X8=\")","v":{"$error":"#VALUE!"}},{"$f":"AND('Building Envelope Calculator'!C51,\"LwYznxr63YA=\")","v":{"$error":"#VALUE!"}},{"$f":"AND('Building Envelope Calculator'!D51,\"LwYznxr63YE=\")","v":{"$error":"#VALUE!"}},{"$f":"AND('Building Envelope Calculator'!E46,\"LwYznxr63YI=\")","v":{"$error":"#VALUE!"}},{"$f":"AND('Building Envelope Calculator'!F46,\"LwYznxr63YM=\")","v":{"$error":"#VALUE!"}},{"$f":"AND('Building Envelope Calculator'!A59,\"LwYznxr63YQ=\")","v":{"$error":"#VALUE!"}},{"$f":"AND('Building Envelope Calculator'!B59,\"LwYznxr63YU=\")","v":{"$error":"#VALUE!"}},{"$f":"AND('Building Envelope Calculator'!I46,\"LwYznxr63YY=\")","v":{"$error":"#VALUE!"}},{"$f":"AND('Building Envelope Calculator'!J46,\"LwYznxr63Yc=\")","v":{"$error":"#VALUE!"}},{"$f":"AND('Building Envelope Calculator'!K46,\"LwYznxr63Yg=\")","v":{"$error":"#VALUE!"}},{"$f":"AND('Building Envelope Calculator'!L46,\"LwYznxr63Yk=\")","v":{"$error":"#VALUE!"}},{"$f":"AND('Building Envelope Calculator'!M46,\"LwYznxr63Yo=\")","v":{"$error":"#VALUE!"}},{"$f":"AND('Building Envelope Calculator'!N46,\"LwYznxr63Ys=\")","v":{"$error":"#VALUE!"}},{"$f":"AND('Building Envelope Calculator'!O46,\"LwYznxr63Yw=\")","v":{"$error":"#VALUE!"}},{"$f":"AND('Building Envelope Calculator'!P46,\"LwYznxr63Y0=\")","v":{"$error":"#VALUE!"}},{"$f":"AND('Building Envelope Calculator'!Q46,\"LwYznxr63Y4=\")","v":{"$error":"#VALUE!"}},{"$f":"AND('Building Envelope Calculator'!R46,\"LwYznxr63Y8=\")","v":{"$error":"#VALUE!"}},{"$f":"AND('Building Envelope Calculator'!S46,\"LwYznxr63ZA=\")","v":{"$error":"#VALUE!"}},{"$f":"IF('Building Envelope Calculator'!47:47,\"LwYznxr63ZE=\",0)","v":0},{"$f":"AND('Building Envelope Calculator'!A46,\"LwYznxr63ZI=\")","v":{"$error":"#VALUE!"}},{"$f":"AND('Building Envelope Calculator'!B46,\"LwYznxr63ZM=\")","v":{"$error":"#VALUE!"}},{"$f":"AND('Building Envelope Calculator'!C46,\"LwYznxr63ZQ=\")","v":{"$error":"#VALUE!"}},{"$f":"AND('Building Envelope Calculator'!D46,\"LwYznxr63ZU=\")","v":{"$error":"#VALUE!"}},{"$f":"AND('Building Envelope Calculator'!E47,\"LwYznxr63ZY=\")","v":{"$error":"#VALUE!"}},{"$f":"AND('Building Envelope Calculator'!F47,\"LwYznxr63Zc=\")","v":{"$error":"#VALUE!"}},{"$f":"AND('Building Envelope Calculator'!A60,\"LwYznxr63Zg=\")","v":{"$error":"#VALUE!"}},{"$f":"AND('Building Envelope Calculator'!B60,\"LwYznxr63Zk=\")","v":{"$error":"#VALUE!"}},{"$f":"AND('Building Envelope Calculator'!I47,\"LwYznxr63Zo=\")","v":{"$error":"#VALUE!"}},{"$f":"AND('Building Envelope Calculator'!J47,\"LwYznxr63Zs=\")","v":{"$error":"#VALUE!"}},{"$f":"AND('Building Envelope Calculator'!K47,\"LwYznxr63Zw=\")","v":{"$error":"#VALUE!"}},{"$f":"AND('Building Envelope Calculator'!L47,\"LwYznxr63Z0=\")","v":{"$error":"#VALUE!"}},{"$f":"AND('Building Envelope Calculator'!M47,\"LwYznxr63Z4=\")","v":{"$error":"#VALUE!"}},{"$f":"AND('Building Envelope Calculator'!N47,\"LwYznxr63Z8=\")","v":{"$error":"#VALUE!"}},{"$f":"AND('Building Envelope Calculator'!O47,\"LwYznxr63aA=\")","v":{"$error":"#VALUE!"}},{"$f":"AND('Building Envelope Calculator'!P47,\"LwYznxr63aE=\")","v":{"$error":"#VALUE!"}},{"$f":"AND('Building Envelope Calculator'!Q47,\"LwYznxr63aI=\")","v":{"$error":"#VALUE!"}},{"$f":"AND('Building Envelope Calculator'!R47,\"LwYznxr63aM=\")","v":{"$error":"#VALUE!"}},{"$f":"AND('Building Envelope Calculator'!S47,\"LwYznxr63aQ=\")","v":{"$error":"#VALUE!"}},{"$f":"IF('Building Envelope Calculator'!48:48,\"LwYznxr63aU=\",0)","v":0},{"$f":"AND('Building Envelope Calculator'!A47,\"LwYznxr63aY=\")","v":{"$error":"#VALUE!"}},{"$f":"AND('Building Envelope Calculator'!B47,\"LwYznxr63ac=\")","v":{"$error":"#VALUE!"}},{"$f":"AND('Building Envelope Calculator'!C47,\"LwYznxr63ag=\")","v":{"$error":"#VALUE!"}},{"$f":"AND('Building Envelope Calculator'!D47,\"LwYznxr63ak=\")","v":{"$error":"#VALUE!"}},{"$f":"AND('Building Envelope Calculator'!E48,\"LwYznxr63ao=\")","v":{"$error":"#VALUE!"}},{"$f":"AND('Building Envelope Calculator'!F48,\"LwYznxr63as=\")","v":{"$error":"#VALUE!"}},{"$f":"AND('Building Envelope Calculator'!A61,\"LwYznxr63aw=\")","v":{"$error":"#VALUE!"}},{"$f":"AND('Building Envelope Calculator'!B61,\"LwYznxr63a0=\")","v":{"$error":"#VALUE!"}},{"$f":"AND('Building Envelope Calculator'!I48,\"LwYznxr63a4=\")","v":{"$error":"#VALUE!"}},{"$f":"AND('Building Envelope Calculator'!J48,\"LwYznxr63a8=\")","v":{"$error":"#VALUE!"}},{"$f":"AND('Building Envelope Calculator'!K48,\"LwYznxr63bA=\")","v":{"$error":"#VALUE!"}},{"$f":"AND('Building Envelope Calculator'!L48,\"LwYznxr63bE=\")","v":{"$error":"#VALUE!"}},{"$f":"AND('Building Envelope Calculator'!M48,\"LwYznxr63bI=\")","v":{"$error":"#VALUE!"}},{"$f":"AND('Building Envelope Calculator'!N48,\"LwYznxr63bM=\")","v":{"$error":"#VALUE!"}},{"$f":"AND('Building Envelope Calculator'!O48,\"LwYznxr63bQ=\")","v":{"$error":"#VALUE!"}},{"$f":"AND('Building Envelope Calculator'!P48,\"LwYznxr63bU=\")","v":{"$error":"#VALUE!"}},{"$f":"AND('Building Envelope Calculator'!Q48,\"LwYznxr63bY=\")","v":{"$error":"#VALUE!"}},{"$f":"AND('Building Envelope Calculator'!R48,\"LwYznxr63bc=\")","v":{"$error":"#VALUE!"}},{"$f":"AND('Building Envelope Calculator'!S48,\"LwYznxr63bg=\")","v":{"$error":"#VALUE!"}},{"$f":"IF('Building Envelope Calculator'!51:51,\"LwYznxr63bk=\",0)","v":0},{"$f":"AND('Building Envelope Calculator'!A48,\"LwYznxr63bo=\")","v":{"$error":"#VALUE!"}},{"$f":"AND('Building Envelope Calculator'!B48,\"LwYznxr63bs=\")","v":{"$error":"#VALUE!"}},{"$f":"AND('Building Envelope Calculator'!C48,\"LwYznxr63bw=\")","v":{"$error":"#VALUE!"}},{"$f":"AND('Building Envelope Calculator'!D48,\"LwYznxr63b0=\")","v":{"$error":"#VALUE!"}},{"$f":"AND('Building Envelope Calculator'!E51,\"LwYznxr63b4=\")","v":{"$error":"#VALUE!"}},{"$f":"AND('Building Envelope Calculator'!F51,\"LwYznxr63b8=\")","v":{"$error":"#VALUE!"}},{"$f":"AND('Building Envelope Calculator'!G51,\"LwYznxr63cA=\")","v":{"$error":"#VALUE!"}},{"$f":"AND('Building Envelope Calculator'!H51,\"LwYznxr63cE=\")","v":{"$error":"#VALUE!"}},{"$f":"AND('Building Envelope Calculator'!I51,\"LwYznxr63cI=\")","v":{"$error":"#VALUE!"}},{"$f":"AND('Building Envelope Calculator'!J51,\"LwYznxr63cM=\")","v":{"$error":"#VALUE!"}},{"$f":"AND('Building Envelope Calculator'!K51,\"LwYznxr63cQ=\")","v":{"$error":"#VALUE!"}},{"$f":"AND('Building Envelope Calculator'!L51,\"LwYznxr63cU=\")","v":{"$error":"#VALUE!"}},{"$f":"AND('Building Envelope Calculator'!M51,\"LwYznxr63cY=\")","v":{"$error":"#VALUE!"}},{"$f":"AND('Building Envelope Calculator'!N51,\"LwYznxr63cc=\")","v":{"$error":"#VALUE!"}},{"$f":"AND('Building Envelope Calculator'!O51,\"LwYznxr63cg=\")","v":{"$error":"#VALUE!"}},{"$f":"AND('Building Envelope Calculator'!P51,\"LwYznxr63ck=\")","v":{"$error":"#VALUE!"}},{"$f":"AND('Building Envelope Calculator'!Q51,\"LwYznxr63co=\")","v":{"$error":"#VALUE!"}},{"$f":"AND('Building Envelope Calculator'!R51,\"LwYznxr63cs=\")","v":{"$error":"#VALUE!"}},{"$f":"AND('Building Envelope Calculator'!S51,\"LwYznxr63cw=\")","v":{"$error":"#VALUE!"}},{"$f":"IF('Building Envelope Calculator'!49:49,\"LwYznxr63c0=\",0)","v":0},{"$f":"AND('Building Envelope Calculator'!A49,\"LwYznxr63c4=\")","v":{"$error":"#VALUE!"}},{"$f":"AND('Building Envelope Calculator'!B49,\"LwYznxr63c8=\")","v":{"$error":"#VALUE!"}},{"$f":"AND('Building Envelope Calculator'!C49,\"LwYznxr63dA=\")","v":{"$error":"#VALUE!"}},{"$f":"AND('Building Envelope Calculator'!D49,\"LwYznxr63dE=\")","v":{"$error":"#VALUE!"}},{"$f":"AND('Building Envelope Calculator'!E49,\"LwYznxr63dI=\")","v":{"$error":"#VALUE!"}},{"$f":"AND('Building Envelope Calculator'!F49,\"LwYznxr63dM=\")","v":{"$error":"#VALUE!"}},{"$f":"AND('Building Envelope Calculator'!G49,\"LwYznxr63dQ=\")","v":{"$error":"#VALUE!"}},{"$f":"AND('Building Envelope Calculator'!H49,\"LwYznxr63dU=\")","v":{"$error":"#VALUE!"}},{"$f":"AND('Building Envelope Calculator'!I49,\"LwYznxr63dY=\")","v":{"$error":"#VALUE!"}},{"$f":"AND('Building Envelope Calculator'!J49,\"LwYznxr63dc=\")","v":{"$error":"#VALUE!"}},{"$f":"AND('Building Envelope Calculator'!K49,\"LwYznxr63dg=\")","v":{"$error":"#VALUE!"}},{"$f":"AND('Building Envelope Calculator'!L49,\"LwYznxr63dk=\")","v":{"$error":"#VALUE!"}},{"$f":"AND('Building Envelope Calculator'!M49,\"LwYznxr63do=\")","v":{"$error":"#VALUE!"}},{"$f":"AND('Building Envelope Calculator'!N49,\"LwYznxr63ds=\")","v":{"$error":"#VALUE!"}},{"$f":"AND('Building Envelope Calculator'!O49,\"LwYznxr63dw=\")","v":{"$error":"#VALUE!"}},{"$f":"AND('Building Envelope Calculator'!P49,\"LwYznxr63d0=\")","v":{"$error":"#VALUE!"}},{"$f":"AND('Building Envelope Calculator'!Q49,\"LwYznxr63d4=\")","v":{"$error":"#VALUE!"}},{"$f":"AND('Building Envelope Calculator'!R49,\"LwYznxr63d8=\")","v":{"$error":"#VALUE!"}},{"$f":"AND('Building Envelope Calculator'!S49,\"LwYznxr63eA=\")","v":{"$error":"#VALUE!"}},{"$f":"IF('Building Envelope Calculator'!53:53,\"LwYznxr63eE=\",0)","v":0},{"$f":"AND('Building Envelope Calculator'!A53,\"LwYznxr63eI=\")","v":{"$error":"#VALUE!"}},{"$f":"AND('Building Envelope Calculator'!B53,\"LwYznxr63eM=\")","v":{"$error":"#VALUE!"}},{"$f":"AND('Building Envelope Calculator'!C53,\"LwYznxr63eQ=\")","v":{"$error":"#VALUE!"}},{"$f":"AND('Building Envelope Calculator'!D53,\"LwYznxr63eU=\")","v":{"$error":"#VALUE!"}},{"$f":"AND('Building Envelope Calculator'!E53,\"LwYznxr63eY=\")","v":{"$error":"#VALUE!"}},{"$f":"AND('Building Envelope Calculator'!F53,\"LwYznxr63ec=\")","v":{"$error":"#VALUE!"}},{"$f":"AND('Building Envelope Calculator'!G53,\"LwYznxr63eg=\")","v":{"$error":"#VALUE!"}},{"$f":"AND('Building Envelope Calculator'!H53,\"LwYznxr63ek=\")","v":{"$error":"#VALUE!"}},{"$f":"AND('Building Envelope Calculator'!I53,\"LwYznxr63eo=\")","v":{"$error":"#VALUE!"}},{"$f":"AND('Building Envelope Calculator'!J53,\"LwYznxr63es=\")","v":{"$error":"#VALUE!"}},{"$f":"AND('Building Envelope Calculator'!K53,\"LwYznxr63ew=\")","v":{"$error":"#VALUE!"}},{"$f":"AND('Building Envelope Calculator'!L53,\"LwYznxr63e0=\")","v":{"$error":"#VALUE!"}},{"$f":"AND('Building Envelope Calculator'!M53,\"LwYznxr63e4=\")","v":{"$error":"#VALUE!"}},{"$f":"AND('Building Envelope Calculator'!N53,\"LwYznxr63e8=\")","v":{"$error":"#VALUE!"}},{"$f":"AND('Building Envelope Calculator'!O53,\"LwYznxr63fA=\")","v":{"$error":"#VALUE!"}},{"$f":"AND('Building Envelope Calculator'!P53,\"LwYznxr63fE=\")","v":{"$error":"#VALUE!"}},{"$f":"AND('Building Envelope Calculator'!Q53,\"LwYznxr63fI=\")","v":{"$error":"#VALUE!"}},{"$f":"AND('Building Envelope Calculator'!R53,\"LwYznxr63fM=\")","v":{"$error":"#VALUE!"}},{"$f":"AND('Building Envelope Calculator'!S53,\"LwYznxr63fQ=\")","v":{"$error":"#VALUE!"}},{"$f":"IF('Building Envelope Calculator'!54:54,\"LwYznxr63fU=\",0)","v":0},{"$f":"AND('Building Envelope Calculator'!A54,\"LwYznxr63fY=\")","v":{"$error":"#VALUE!"}},{"$f":"AND('Building Envelope Calculator'!B54,\"LwYznxr63fc=\")","v":{"$error":"#VALUE!"}},{"$f":"AND('Building Envelope Calculator'!C54,\"LwYznxr63fg=\")","v":{"$error":"#VALUE!"}},{"$f":"AND('Building Envelope Calculator'!D54,\"LwYznxr63fk=\")","v":{"$error":"#VALUE!"}},{"$f":"AND('Building Envelope Calculator'!E54,\"LwYznxr63fo=\")","v":{"$error":"#VALUE!"}},{"$f":"AND('Building Envelope Calculator'!F54,\"LwYznxr63fs=\")","v":{"$error":"#VALUE!"}},{"$f":"AND('Building Envelope Calculator'!G54,\"LwYznxr63fw=\")","v":{"$error":"#VALUE!"}},{"$f":"AND('Building Envelope Calculator'!H54,\"LwYznxr63f0=\")","v":{"$error":"#VALUE!"}},{"$f":"AND('Building Envelope Calculator'!I54,\"LwYznxr63f4=\")","v":{"$error":"#VALUE!"}},{"$f":"AND('Building Envelope Calculator'!J54,\"LwYznxr63f8=\")","v":{"$error":"#VALUE!"}}]
[{"$f":"AND('Building Envelope Calculator'!K54,\"C6xIWXmGRAA=\")","v":{"$error":"#VALUE!"}},{"$f":"AND('Building Envelope Calculator'!L54,\"C6xIWXmGRAE=\")","v":{"$error":"#VALUE!"}},{"$f":"AND('Building Envelope Calculator'!M54,\"C6xIWXmGRAI=\")","v":{"$error":"#VALUE!"}},{"$f":"AND('Building Envelope Calculator'!N54,\"C6xIWXmGRAM=\")","v":{"$error":"#VALUE!"}},{"$f":"AND('Building Envelope Calculator'!O54,\"C6xIWXmGRAQ=\")","v":{"$error":"#VALUE!"}},{"$f":"AND('Building Envelope Calculator'!P54,\"C6xIWXmGRAU=\")","v":{"$error":"#VALUE!"}},{"$f":"AND('Building Envelope Calculator'!Q54,\"C6xIWXmGRAY=\")","v":{"$error":"#VALUE!"}},{"$f":"AND('Building Envelope Calculator'!R54,\"C6xIWXmGRAc=\")","v":{"$error":"#VALUE!"}},{"$f":"AND('Building Envelope Calculator'!S54,\"C6xIWXmGRAg=\")","v":{"$error":"#VALUE!"}},{"$f":"IF('Building Envelope Calculator'!55:55,\"C6xIWXmGRAk=\",0)","v":0},{"$f":"AND('Building Envelope Calculator'!A55,\"C6xIWXmGRAo=\")","v":{"$error":"#VALUE!"}},{"$f":"AND('Building Envelope Calculator'!B55,\"C6xIWXmGRAs=\")","v":{"$error":"#VALUE!"}},{"$f":"AND('Building Envelope Calculator'!C55,\"C6xIWXmGRAw=\")","v":{"$error":"#VALUE!"}},{"$f":"AND('Building Envelope Calculator'!D55,\"C6xIWXmGRA0=\")","v":{"$error":"#VALUE!"}},{"$f":"AND('Building Envelope Calculator'!E55,\"C6xIWXmGRA4=\")","v":{"$error":"#VALUE!"}},{"$f":"AND('Building Envelope Calculator'!F55,\"C6xIWXmGRA8=\")","v":{"$error":"#VALUE!"}},{"$f":"AND('Building Envelope Calculator'!G55,\"C6xIWXmGRBA=\")","v":{"$error":"#VALUE!"}},{"$f":"AND('Building Envelope Calculator'!H55,\"C6xIWXmGRBE=\")","v":{"$error":"#VALUE!"}},{"$f":"AND('Building Envelope Calculator'!I55,\"C6xIWXmGRBI=\")","v":{"$error":"#VALUE!"}},{"$f":"AND('Building Envelope Calculator'!J55,\"C6xIWXmGRBM=\")","v":{"$error":"#VALUE!"}},{"$f":"AND('Building Envelope Calculator'!K55,\"C6xIWXmGRBQ=\")","v":{"$error":"#VALUE!"}},{"$f":"AND('Building Envelope Calculator'!L55,\"C6xIWXmGRBU=\")","v":{"$error":"#VALUE!"}},{"$f":"AND('Building Envelope Calculator'!M55,\"C6xIWXmGRBY=\")","v":{"$error":"#VALUE!"}},{"$f":"AND('Building Envelope Calculator'!N55,\"C6xIWXmGRBc=\")","v":{"$error":"#VALUE!"}},{"$f":"AND('Building Envelope Calculator'!O55,\"C6xIWXmGRBg=\")","v":{"$error":"#VALUE!"}},{"$f":"AND('Building Envelope Calculator'!P55,\"C6xIWXmGRBk=\")","v":{"$error":"#VALUE!"}},{"$f":"AND('Building Envelope Calculator'!Q55,\"C6xIWXmGRBo=\")","v":{"$error":"#VALUE!"}},{"$f":"AND('Building Envelope Calculator'!R55,\"C6xIWXmGRBs=\")","v":{"$error":"#VALUE!"}},{"$f":"AND('Building Envelope Calculator'!S55,\"C6xIWXmGRBw=\")","v":{"$error":"#VALUE!"}},{"$f":"IF('Building Envelope Calculator'!56:56,\"C6xIWXmGRB0=\",0)","v":0},{"$f":"AND('Building Envelope Calculator'!A56,\"C6xIWXmGRB4=\")","v":{"$error":"#VALUE!"}},{"$f":"AND('Building Envelope Calculator'!B56,\"C6xIWXmGRB8=\")","v":{"$error":"#VALUE!"}},{"$f":"AND('Building Envelope Calculator'!C56,\"C6xIWXmGRCA=\")","v":{"$error":"#VALUE!"}},{"$f":"AND('Building Envelope Calculator'!D56,\"C6xIWXmGRCE=\")","v":{"$error":"#VALUE!"}},{"$f":"AND('Building Envelope Calculator'!E56,\"C6xIWXmGRCI=\")","v":{"$error":"#VALUE!"}},{"$f":"AND('Building Envelope Calculator'!F56,\"C6xIWXmGRCM=\")","v":{"$error":"#VALUE!"}},{"$f":"AND('Building Envelope Calculator'!G56,\"C6xIWXmGRCQ=\")","v":{"$error":"#VALUE!"}},{"$f":"AND('Building Envelope Calculator'!H56,\"C6xIWXmGRCU=\")","v":{"$error":"#VALUE!"}},{"$f":"AND('Building Envelope Calculator'!I56,\"C6xIWXmGRCY=\")","v":{"$error":"#VALUE!"}},{"$f":"AND('Building Envelope Calculator'!J56,\"C6xIWXmGRCc=\")","v":{"$error":"#VALUE!"}},{"$f":"AND('Building Envelope Calculator'!K56,\"C6xIWXmGRCg=\")","v":{"$error":"#VALUE!"}},{"$f":"AND('Building Envelope Calculator'!L56,\"C6xIWXmGRCk=\")","v":{"$error":"#VALUE!"}},{"$f":"AND('Building Envelope Calculator'!M56,\"C6xIWXmGRCo=\")","v":{"$error":"#VALUE!"}},{"$f":"AND('Building Envelope Calculator'!N56,\"C6xIWXmGRCs=\")","v":{"$error":"#VALUE!"}},{"$f":"AND('Building Envelope Calculator'!O56,\"C6xIWXmGRCw=\")","v":{"$error":"#VALUE!"}},{"$f":"AND('Building Envelope Calculator'!P56,\"C6xIWXmGRC0=\")","v":{"$error":"#VALUE!"}},{"$f":"AND('Building Envelope Calculator'!Q56,\"C6xIWXmGRC4=\")","v":{"$error":"#VALUE!"}},{"$f":"AND('Building Envelope Calculator'!R56,\"C6xIWXmGRC8=\")","v":{"$error":"#VALUE!"}},{"$f":"AND('Building Envelope Calculator'!S56,\"C6xIWXmGRDA=\")","v":{"$error":"#VALUE!"}},{"$f":"IF('Building Envelope Calculator'!63:63,\"C6xIWXmGRDE=\",0)","v":0},{"$f":"AND('Building Envelope Calculator'!A63,\"C6xIWXmGRDI=\")","v":{"$error":"#VALUE!"}},{"$f":"AND('Building Envelope Calculator'!B63,\"C6xIWXmGRDM=\")","v":{"$error":"#VALUE!"}},{"$f":"AND('Building Envelope Calculator'!C63,\"C6xIWXmGRDQ=\")","v":{"$error":"#VALUE!"}},{"$f":"AND('Building Envelope Calculator'!D63,\"C6xIWXmGRDU=\")","v":{"$error":"#VALUE!"}},{"$f":"AND('Building Envelope Calculator'!E63,\"C6xIWXmGRDY=\")","v":{"$error":"#VALUE!"}},{"$f":"AND('Building Envelope Calculator'!F63,\"C6xIWXmGRDc=\")","v":{"$error":"#VALUE!"}},{"$f":"AND('Building Envelope Calculator'!G63,\"C6xIWXmGRDg=\")","v":{"$error":"#VALUE!"}},{"$f":"AND('Building Envelope Calculator'!H63,\"C6xIWXmGRDk=\")","v":{"$error":"#VALUE!"}},{"$f":"AND('Building Envelope Calculator'!I63,\"C6xIWXmGRDo=\")","v":{"$error":"#VALUE!"}},{"$f":"AND('Building Envelope Calculator'!J63,\"C6xIWXmGRDs=\")","v":{"$error":"#VALUE!"}},{"$f":"AND('Building Envelope Calculator'!K63,\"C6xIWXmGRDw=\")","v":{"$error":"#VALUE!"}},{"$f":"AND('Building Envelope Calculator'!L63,\"C6xIWXmGRD0=\")","v":{"$error":"#VALUE!"}},{"$f":"AND('Building Envelope Calculator'!M63,\"C6xIWXmGRD4=\")","v":{"$error":"#VALUE!"}},{"$f":"AND('Building Envelope Calculator'!N63,\"C6xIWXmGRD8=\")","v":{"$error":"#VALUE!"}},{"$f":"AND('Building Envelope Calculator'!O63,\"C6xIWXmGREA=\")","v":{"$error":"#VALUE!"}},{"$f":"AND('Building Envelope Calculator'!P63,\"C6xIWXmGREE=\")","v":{"$error":"#VALUE!"}},{"$f":"AND('Building Envelope Calculator'!Q63,\"C6xIWXmGREI=\")","v":{"$error":"#VALUE!"}},{"$f":"AND('Building Envelope Calculator'!R63,\"C6xIWXmGREM=\")","v":{"$error":"#VALUE!"}},{"$f":"AND('Building Envelope Calculator'!S63,\"C6xIWXmGREQ=\")","v":{"$error":"#VALUE!"}},{"$f":"IF('Building Envelope Calculator'!64:64,\"C6xIWXmGREU=\",0)","v":0},{"$f":"AND('Building Envelope Calculator'!A64,\"C6xIWXmGREY=\")","v":{"$error":"#VALUE!"}},{"$f":"AND('Building Envelope Calculator'!B64,\"C6xIWXmGREc=\")","v":{"$error":"#VALUE!"}},{"$f":"AND('Building Envelope Calculator'!C64,\"C6xIWXmGREg=\")","v":{"$error":"#VALUE!"}},{"$f":"AND('Building Envelope Calculator'!D64,\"C6xIWXmGREk=\")","v":{"$error":"#VALUE!"}},{"$f":"AND('Building Envelope Calculator'!E64,\"C6xIWXmGREo=\")","v":{"$error":"#VALUE!"}},{"$f":"AND('Building Envelope Calculator'!F64,\"C6xIWXmGREs=\")","v":{"$error":"#VALUE!"}},{"$f":"AND('Building Envelope Calculator'!G64,\"C6xIWXmGREw=\")","v":{"$error":"#VALUE!"}},{"$f":"AND('Building Envelope Calculator'!H64,\"C6xIWXmGRE0=\")","v":{"$error":"#VALUE!"}},{"$f":"AND('Building Envelope Calculator'!I64,\"C6xIWXmGRE4=\")","v":{"$error":"#VALUE!"}},{"$f":"AND('Building Envelope Calculator'!J64,\"C6xIWXmGRE8=\")","v":{"$error":"#VALUE!"}},{"$f":"AND('Building Envelope Calculator'!K64,\"C6xIWXmGRFA=\")","v":{"$error":"#VALUE!"}},{"$f":"AND('Building Envelope Calculator'!L64,\"C6xIWXmGRFE=\")","v":{"$error":"#VALUE!"}},{"$f":"AND('Building Envelope Calculator'!M64,\"C6xIWXmGRFI=\")","v":{"$error":"#VALUE!"}},{"$f":"AND('Building Envelope Calculator'!N64,\"C6xIWXmGRFM=\")","v":{"$error":"#VALUE!"}},{"$f":"AND('Building Envelope Calculator'!O64,\"C6xIWXmGRFQ=\")","v":{"$error":"#VALUE!"}},{"$f":"AND('Building Envelope Calculator'!P64,\"C6xIWXmGRFU=\")","v":{"$error":"#VALUE!"}},{"$f":"AND('Building Envelope Calculator'!Q64,\"C6xIWXmGRFY=\")","v":{"$error":"#VALUE!"}},{"$f":"AND('Building Envelope Calculator'!R64,\"C6xIWXmGRFc=\")","v":{"$error":"#VALUE!"}},{"$f":"AND('Building Envelope Calculator'!S64,\"C6xIWXmGRFg=\")","v":{"$error":"#VALUE!"}},{"$f":"IF('Building Envelope Calculator'!65:65,\"C6xIWXmGRFk=\",0)","v":0},{"$f":"AND('Building Envelope Calculator'!A65,\"C6xIWXmGRFo=\")","v":{"$error":"#VALUE!"}},{"$f":"AND('Building Envelope Calculator'!B65,\"C6xIWXmGRFs=\")","v":{"$error":"#VALUE!"}},{"$f":"AND('Building Envelope Calculator'!C65,\"C6xIWXmGRFw=\")","v":{"$error":"#VALUE!"}},{"$f":"AND('Building Envelope Calculator'!D65,\"C6xIWXmGRF0=\")","v":{"$error":"#VALUE!"}},{"$f":"AND('Building Envelope Calculator'!E65,\"C6xIWXmGRF4=\")","v":{"$error":"#VALUE!"}},{"$f":"AND('Building Envelope Calculator'!F65,\"C6xIWXmGRF8=\")","v":{"$error":"#VALUE!"}},{"$f":"AND('Building Envelope Calculator'!G65,\"C6xIWXmGRGA=\")","v":{"$error":"#VALUE!"}},{"$f":"AND('Building Envelope Calculator'!H65,\"C6xIWXmGRGE=\")","v":{"$error":"#VALUE!"}},{"$f":"AND('Building Envelope Calculator'!I65,\"C6xIWXmGRGI=\")","v":{"$error":"#VALUE!"}},{"$f":"AND('Building Envelope Calculator'!J65,\"C6xIWXmGRGM=\")","v":{"$error":"#VALUE!"}},{"$f":"AND('Building Envelope Calculator'!K65,\"C6xIWXmGRGQ=\")","v":{"$error":"#VALUE!"}},{"$f":"AND('Building Envelope Calculator'!L65,\"C6xIWXmGRGU=\")","v":{"$error":"#VALUE!"}},{"$f":"AND('Building Envelope Calculator'!M65,\"C6xIWXmGRGY=\")","v":{"$error":"#VALUE!"}},{"$f":"AND('Building Envelope Calculator'!N65,\"C6xIWXmGRGc=\")","v":{"$error":"#VALUE!"}},{"$f":"AND('Building Envelope Calculator'!O65,\"C6xIWXmGRGg=\")","v":{"$error":"#VALUE!"}},{"$f":"AND('Building Envelope Calculator'!P65,\"C6xIWXmGRGk=\")","v":{"$error":"#VALUE!"}},{"$f":"AND('Building Envelope Calculator'!Q65,\"C6xIWXmGRGo=\")","v":{"$error":"#VALUE!"}},{"$f":"AND('Building Envelope Calculator'!R65,\"C6xIWXmGRGs=\")","v":{"$error":"#VALUE!"}},{"$f":"AND('Building Envelope Calculator'!S65,\"C6xIWXmGRGw=\")","v":{"$error":"#VALUE!"}},{"$f":"IF('Building Envelope Calculator'!66:66,\"C6xIWXmGRG0=\",0)","v":0},{"$f":"AND('Building Envelope Calculator'!A66,\"C6xIWXmGRG4=\")","v":{"$error":"#VALUE!"}},{"$f":"AND('Building Envelope Calculator'!B66,\"C6xIWXmGRG8=\")","v":{"$error":"#VALUE!"}},{"$f":"AND('Building Envelope Calculator'!C66,\"C6xIWXmGRHA=\")","v":{"$error":"#VALUE!"}},{"$f":"AND('Building Envelope Calculator'!D66,\"C6xIWXmGRHE=\")","v":{"$error":"#VALUE!"}},{"$f":"AND('Building Envelope Calculator'!E66,\"C6xIWXmGRHI=\")","v":{"$error":"#VALUE!"}},{"$f":"AND('Building Envelope Calculator'!F66,\"C6xIWXmGRHM=\")","v":{"$error":"#VALUE!"}},{"$f":"AND('Building Envelope Calculator'!G66,\"C6xIWXmGRHQ=\")","v":{"$error":"#VALUE!"}},{"$f":"AND('Building Envelope Calculator'!H66,\"C6xIWXmGRHU=\")","v":{"$error":"#VALUE!"}},{"$f":"AND('Building Envelope Calculator'!I66,\"C6xIWXmGRHY=\")","v":{"$error":"#VALUE!"}},{"$f":"AND('Building Envelope Calculator'!J66,\"C6xIWXmGRHc=\")","v":{"$error":"#VALUE!"}},{"$f":"AND('Building Envelope Calculator'!K66,\"C6xIWXmGRHg=\")","v":{"$error":"#VALUE!"}},{"$f":"AND('Building Envelope Calculator'!L66,\"C6xIWXmGRHk=\")","v":{"$error":"#VALUE!"}},{"$f":"AND('Building Envelope Calculator'!M66,\"C6xIWXmGRHo=\")","v":{"$error":"#VALUE!"}},{"$f":"AND('Building Envelope Calculator'!N66,\"C6xIWXmGRHs=\")","v":{"$error":"#VALUE!"}},{"$f":"AND('Building Envelope Calculator'!O66,\"C6xIWXmGRHw=\")","v":{"$error":"#VALUE!"}},{"$f":"AND('Building Envelope Calculator'!P66,\"C6xIWXmGRH0=\")","v":{"$error":"#VALUE!"}},{"$f":"AND('Building Envelope Calculator'!Q66,\"C6xIWXmGRH4=\")","v":{"$error":"#VALUE!"}},{"$f":"AND('Building Envelope Calculator'!R66,\"C6xIWXmGRH8=\")","v":{"$error":"#VALUE!"}},{"$f":"AND('Building Envelope Calculator'!S66,\"C6xIWXmGRIA=\")","v":{"$error":"#VALUE!"}},{"$f":"IF('Building Envelope Calculator'!67:67,\"C6xIWXmGRIE=\",0)","v":0},{"$f":"AND('Building Envelope Calculator'!A67,\"C6xIWXmGRII=\")","v":{"$error":"#VALUE!"}},{"$f":"AND('Building Envelope Calculator'!B67,\"C6xIWXmGRIM=\")","v":{"$error":"#VALUE!"}},{"$f":"AND('Building Envelope Calculator'!C67,\"C6xIWXmGRIQ=\")","v":{"$error":"#VALUE!"}},{"$f":"AND('Building Envelope Calculator'!D67,\"C6xIWXmGRIU=\")","v":{"$error":"#VALUE!"}},{"$f":"AND('Building Envelope Calculator'!E67,\"C6xIWXmGRIY=\")","v":{"$error":"#VALUE!"}},{"$f":"AND('Building Envelope Calculator'!F67,\"C6xIWXmGRIc=\")","v":{"$error":"#VALUE!"}},{"$f":"AND('Building Envelope Calculator'!G67,\"C6xIWXmGRIg=\")","v":{"$error":"#VALUE!"}},{"$f":"AND('Building Envelope Calculator'!H67,\"C6xIWXmGRIk=\")","v":{"$error":"#VALUE!"}},{"$f":"AND('Building Envelope Calculator'!I67,\"C6xIWXmGRIo=\")","v":{"$error":"#VALUE!"}},{"$f":"AND('Building Envelope Calculator'!J67,\"C6xIWXmGRIs=\")","v":{"$error":"#VALUE!"}},{"$f":"AND('Building Envelope Calculator'!K67,\"C6xIWXmGRIw=\")","v":{"$error":"#VALUE!"}},{"$f":"AND('Building Envelope Calculator'!L67,\"C6xIWXmGRI0=\")","v":{"$error":"#VALUE!"}},{"$f":"AND('Building Envelope Calculator'!M67,\"C6xIWXmGRI4=\")","v":{"$error":"#VALUE!"}},{"$f":"AND('Building Envelope Calculator'!N67,\"C6xIWXmGRI8=\")","v":{"$error":"#VALUE!"}},{"$f":"AND('Building Envelope Calculator'!O67,\"C6xIWXmGRJA=\")","v":{"$error":"#VALUE!"}},{"$f":"AND('Building Envelope Calculator'!P67,\"C6xIWXmGRJE=\")","v":{"$error":"#VALUE!"}},{"$f":"AND('Building Envelope Calculator'!Q67,\"C6xIWXmGRJI=\")","v":{"$error":"#VALUE!"}},{"$f":"AND('Building Envelope Calculator'!R67,\"C6xIWXmGRJM=\")","v":{"$error":"#VALUE!"}},{"$f":"AND('Building Envelope Calculator'!S67,\"C6xIWXmGRJQ=\")","v":{"$error":"#VALUE!"}},{"$f":"IF('Building Envelope Calculator'!68:68,\"C6xIWXmGRJU=\",0)","v":0},{"$f":"AND('Building Envelope Calculator'!A68,\"C6xIWXmGRJY=\")","v":{"$error":"#VALUE!"}},{"$f":"AND('Building Envelope Calculator'!B68,\"C6xIWXmGRJc=\")","v":{"$error":"#VALUE!"}},{"$f":"AND('Building Envelope Calculator'!C68,\"C6xIWXmGRJg=\")","v":{"$error":"#VALUE!"}},{"$f":"AND('Building Envelope Calculator'!D68,\"C6xIWXmGRJk=\")","v":{"$error":"#VALUE!"}},{"$f":"AND('Building Envelope Calculator'!E68,\"C6xIWXmGRJo=\")","v":{"$error":"#VALUE!"}},{"$f":"AND('Building Envelope Calculator'!F68,\"C6xIWXmGRJs=\")","v":{"$error":"#VALUE!"}},{"$f":"AND('Building Envelope Calculator'!G68,\"C6xIWXmGRJw=\")","v":{"$error":"#VALUE!"}},{"$f":"AND('Building Envelope Calculator'!H68,\"C6xIWXmGRJ0=\")","v":{"$error":"#VALUE!"}},{"$f":"AND('Building Envelope Calculator'!I68,\"C6xIWXmGRJ4=\")","v":{"$error":"#VALUE!"}},{"$f":"AND('Building Envelope Calculator'!J68,\"C6xIWXmGRJ8=\")","v":{"$error":"#VALUE!"}},{"$f":"AND('Building Envelope Calculator'!K68,\"C6xIWXmGRKA=\")","v":{"$error":"#VALUE!"}},{"$f":"AND('Building Envelope Calculator'!L68,\"C6xIWXmGRKE=\")","v":{"$error":"#VALUE!"}},{"$f":"AND('Building Envelope Calculator'!M68,\"C6xIWXmGRKI=\")","v":{"$error":"#VALUE!"}},{"$f":"AND('Building Envelope Calculator'!N68,\"C6xIWXmGRKM=\")","v":{"$error":"#VALUE!"}},{"$f":"AND('Building Envelope Calculator'!O68,\"C6xIWXmGRKQ=\")","v":{"$error":"#VALUE!"}},{"$f":"AND('Building Envelope Calculator'!P68,\"C6xIWXmGRKU=\")","v":{"$error":"#VALUE!"}},{"$f":"AND('Building Envelope Calculator'!Q68,\"C6xIWXmGRKY=\")","v":{"$error":"#VALUE!"}},{"$f":"AND('Building Envelope Calculator'!R68,\"C6xIWXmGRKc=\")","v":{"$error":"#VALUE!"}},{"$f":"AND('Building Envelope Calculator'!S68,\"C6xIWXmGRKg=\")","v":{"$error":"#VALUE!"}},{"$f":"IF('Building Envelope Calculator'!69:69,\"C6xIWXmGRKk=\",0)","v":0},{"$f":"AND('Building Envelope Calculator'!A69,\"C6xIWXmGRKo=\")","v":{"$error":"#VALUE!"}},{"$f":"AND('Building Envelope Calculator'!B69,\"C6xIWXmGRKs=\")","v":{"$error":"#VALUE!"}},{"$f":"AND('Building Envelope Calculator'!C69,\"C6xIWXmGRKw=\")","v":{"$error":"#VALUE!"}},{"$f":"AND('Building Envelope Calculator'!D69,\"C6xIWXmGRK0=\")","v":{"$error":"#VALUE!"}},{"$f":"AND('Building Envelope Calculator'!E69,\"C6xIWXmGRK4=\")","v":{"$error":"#VALUE!"}},{"$f":"AND('Building Envelope Calculator'!F69,\"C6xIWXmGRK8=\")","v":{"$error":"#VALUE!"}},{"$f":"AND('Building Envelope Calculator'!G69,\"C6xIWXmGRLA=\")","v":{"$error":"#VALUE!"}},{"$f":"AND('Building Envelope Calculator'!H69,\"C6xIWXmGRLE=\")","v":{"$error":"#VALUE!"}},{"$f":"AND('Building Envelope Calculator'!I69,\"C6xIWXmGRLI=\")","v":{"$error":"#VALUE!"}},{"$f":"AND('Building Envelope Calculator'!J69,\"C6xIWXmGRLM=\")","v":{"$error":"#VALUE!"}},{"$f":"AND('Building Envelope Calculator'!K69,\"C6xIWXmGRLQ=\")","v":{"$error":"#VALUE!"}},{"$f":"AND('Building Envelope Calculator'!L69,\"C6xIWXmGRLU=\")","v":{"$error":"#VALUE!"}},{"$f":"AND('Building Envelope Calculator'!M69,\"C6xIWXmGRLY=\")","v":{"$error":"#VALUE!"}},{"$f":"AND('Building Envelope Calculator'!N69,\"C6xIWXmGRLc=\")","v":{"$error":"#VALUE!"}},{"$f":"AND('Building Envelope Calculator'!O69,\"C6xIWXmGRLg=\")","v":{"$error":"#VALUE!"}},{"$f":"AND('Building Envelope Calculator'!P69,\"C6xIWXmGRLk=\")","v":{"$error":"#VALUE!"}},{"$f":"AND('Building Envelope Calculator'!Q69,\"C6xIWXmGRLo=\")","v":{"$error":"#VALUE!"}},{"$f":"AND('Building Envelope Calculator'!R69,\"C6xIWXmGRLs=\")","v":{"$error":"#VALUE!"}},{"$f":"AND('Building Envelope Calculator'!S69,\"C6xIWXmGRLw=\")","v":{"$error":"#VALUE!"}},{"$f":"IF('Building Envelope Calculator'!70:70,\"C6xIWXmGRL0=\",0)","v":0},{"$f":"AND('Building Envelope Calculator'!A70,\"C6xIWXmGRL4=\")","v":{"$error":"#VALUE!"}},{"$f":"AND('Building Envelope Calculator'!B70,\"C6xIWXmGRL8=\")","v":{"$error":"#VALUE!"}},{"$f":"AND('Building Envelope Calculator'!C70,\"C6xIWXmGRMA=\")","v":{"$error":"#VALUE!"}},{"$f":"AND('Building Envelope Calculator'!D70,\"C6xIWXmGRME=\")","v":{"$error":"#VALUE!"}},{"$f":"AND('Building Envelope Calculator'!E70,\"C6xIWXmGRMI=\")","v":{"$error":"#VALUE!"}},{"$f":"AND('Building Envelope Calculator'!F70,\"C6xIWXmGRMM=\")","v":{"$error":"#VALUE!"}},{"$f":"AND('Building Envelope Calculator'!G70,\"C6xIWXmGRMQ=\")","v":{"$error":"#VALUE!"}},{"$f":"AND('Building Envelope Calculator'!H70,\"C6xIWXmGRMU=\")","v":{"$error":"#VALUE!"}},{"$f":"AND('Building Envelope Calculator'!I70,\"C6xIWXmGRMY=\")","v":{"$error":"#VALUE!"}},{"$f":"AND('Building Envelope Calculator'!J70,\"C6xIWXmGRMc=\")","v":{"$error":"#VALUE!"}},{"$f":"AND('Building Envelope Calculator'!K70,\"C6xIWXmGRMg=\")","v":{"$error":"#VALUE!"}},{"$f":"AND('Building Envelope Calculator'!L70,\"C6xIWXmGRMk=\")","v":{"$error":"#VALUE!"}},{"$f":"AND('Building Envelope Calculator'!M70,\"C6xIWXmGRMo=\")","v":{"$error":"#VALUE!"}},{"$f":"AND('Building Envelope Calculator'!N70,\"C6xIWXmGRMs=\")","v":{"$error":"#VALUE!"}},{"$f":"AND('Building Envelope Calculator'!O70,\"C6xIWXmGRMw=\")","v":{"$error":"#VALUE!"}},{"$f":"AND('Building Envelope Calculator'!P70,\"C6xIWXmGRM0=\")","v":{"$error":"#VALUE!"}},{"$f":"AND('Building Envelope Calculator'!Q70,\"C6xIWXmGRM4=\")","v":{"$error":"#VALUE!"}},{"$f":"AND('Building Envelope Calculator'!R70,\"C6xIWXmGRM8=\")","v":{"$error":"#VALUE!"}},{"$f":"AND('Building Envelope Calculator'!S70,\"C6xIWXmGRNA=\")","v":{"$error":"#VALUE!"}},{"$f":"IF('Building Envelope Calculator'!71:71,\"C6xIWXmGRNE=\",0)","v":0},{"$f":"AND('Building Envelope Calculator'!A71,\"C6xIWXmGRNI=\")","v":{"$error":"#VALUE!"}},{"$f":"AND('Building Envelope Calculator'!B71,\"C6xIWXmGRNM=\")","v":{"$error":"#VALUE!"}},{"$f":"AND('Building Envelope Calculator'!C71,\"C6xIWXmGRNQ=\")","v":{"$error":"#VALUE!"}},{"$f":"AND('Building Envelope Calculator'!D71,\"C6xIWXmGRNU=\")","v":{"$error":"#VALUE!"}},{"$f":"AND('Building Envelope Calculator'!E71,\"C6xIWXmGRNY=\")","v":{"$error":"#VALUE!"}},{"$f":"AND('Building Envelope Calculator'!F71,\"C6xIWXmGRNc=\")","v":{"$error":"#VALUE!"}},{"$f":"AND('Building Envelope Calculator'!G71,\"C6xIWXmGRNg=\")","v":{"$error":"#VALUE!"}},{"$f":"AND('Building Envelope Calculator'!H71,\"C6xIWXmGRNk=\")","v":{"$error":"#VALUE!"}},{"$f":"AND('Building Envelope Calculator'!I71,\"C6xIWXmGRNo=\")","v":{"$error":"#VALUE!"}},{"$f":"AND('Building Envelope Calculator'!J71,\"C6xIWXmGRNs=\")","v":{"$error":"#VALUE!"}},{"$f":"AND('Building Envelope Calculator'!K71,\"C6xIWXmGRNw=\")","v":{"$error":"#VALUE!"}},{"$f":"AND('Building Envelope Calculator'!L71,\"C6xIWXmGRN0=\")","v":{"$error":"#VALUE!"}},{"$f":"AND('Building Envelope Calculator'!M71,\"C6xIWXmGRN4=\")","v":{"$error":"#VALUE!"}},{"$f":"AND('Building Envelope Calculator'!N71,\"C6xIWXmGRN8=\")","v":{"$error":"#VALUE!"}},{"$f":"AND('Building Envelope Calculator'!O71,\"C6xIWXmGROA=\")","v":{"$error":"#VALUE!"}},{"$f":"AND('Building Envelope Calculator'!P71,\"C6xIWXmGROE=\")","v":{"$error":"#VALUE!"}},{"$f":"AND('Building Envelope Calculator'!Q71,\"C6xIWXmGROI=\")","v":{"$error":"#VALUE!"}},{"$f":"AND('Building Envelope Calculator'!R71,\"C6xIWXmGROM=\")","v":{"$error":"#VALUE!"}},{"$f":"AND('Building Envelope Calculator'!S71,\"C6xIWXmGROQ=\")","v":{"$error":"#VALUE!"}},{"$f":"IF('Building Envelope Calculator'!72:72,\"C6xIWXmGROU=\",0)","v":0},{"$f":"AND('Building Envelope Calculator'!A72,\"C6xIWXmGROY=\")","v":{"$error":"#VALUE!"}},{"$f":"AND('Building Envelope Calculator'!B72,\"C6xIWXmGROc=\")","v":{"$error":"#VALUE!"}},{"$f":"AND('Building Envelope Calculator'!C72,\"C6xIWXmGROg=\")","v":{"$error":"#VALUE!"}},{"$f":"AND('Building Envelope Calculator'!D72,\"C6xIWXmGROk=\")","v":{"$error":"#VALUE!"}},{"$f":"AND('Building Envelope Calculator'!E72,\"C6xIWXmGROo=\")","v":{"$error":"#VALUE!"}},{"$f":"AND('Building Envelope Calculator'!F72,\"C6xIWXmGROs=\")","v":{"$error":"#VALUE!"}},{"$f":"AND('Building Envelope Calculator'!G72,\"C6xIWXmGROw=\")","v":{"$error":"#VALUE!"}},{"$f":"AND('Building Envelope Calculator'!H72,\"C6xIWXmGRO0=\")","v":{"$error":"#VALUE!"}},{"$f":"AND('Building Envelope Calculator'!I72,\"C6xIWXmGRO4=\")","v":{"$error":"#VALUE!"}},{"$f":"AND('Building Envelope Calculator'!J72,\"C6xIWXmGRO8=\")","v":{"$error":"#VALUE!"}},{"$f":"AND('Building Envelope Calculator'!K72,\"C6xIWXmGRPA=\")","v":{"$error":"#VALUE!"}},{"$f":"AND('Building Envelope Calculator'!L72,\"C6xIWXmGRPE=\")","v":{"$error":"#VALUE!"}},{"$f":"AND('Building Envelope Calculator'!M72,\"C6xIWXmGRPI=\")","v":{"$error":"#VALUE!"}},{"$f":"AND('Building Envelope Calculator'!N72,\"C6xIWXmGRPM=\")","v":{"$error":"#VALUE!"}},{"$f":"AND('Building Envelope Calculator'!O72,\"C6xIWXmGRPQ=\")","v":{"$error":"#VALUE!"}},{"$f":"AND('Building Envelope Calculator'!P72,\"C6xIWXmGRPU=\")","v":{"$error":"#VALUE!"}},{"$f":"AND('Building Envelope Calculator'!Q72,\"C6xIWXmGRPY=\")","v":{"$error":"#VALUE!"}},{"$f":"AND('Building Envelope Calculator'!R72,\"C6xIWXmGRPc=\")","v":{"$error":"#VALUE!"}},{"$f":"AND('Building Envelope Calculator'!S72,\"C6xIWXmGRPg=\")","v":{"$error":"#VALUE!"}},{"$f":"IF('Building Envelope Calculator'!73:73,\"C6xIWXmGRPk=\",0)","v":0},{"$f":"AND('Building Envelope Calculator'!A73,\"C6xIWXmGRPo=\")","v":{"$error":"#VALUE!"}},{"$f":"AND('Building Envelope Calculator'!B73,\"C6xIWXmGRPs=\")","v":{"$error":"#VALUE!"}},{"$f":"AND('Building Envelope Calculator'!C73,\"C6xIWXmGRPw=\")","v":{"$error":"#VALUE!"}},{"$f":"AND('Building Envelope Calculator'!D73,\"C6xIWXmGRP0=\")","v":{"$error":"#VALUE!"}},{"$f":"AND('Building Envelope Calculator'!E73,\"C6xIWXmGRP4=\")","v":{"$error":"#VALUE!"}},{"$f":"AND('Building Envelope Calculator'!F73,\"C6xIWXmGRP8=\")","v":{"$error":"#VALUE!"}}]
[{"$f":"AND('Building Envelope Calculator'!G73,\"EMgjTA6GyAA=\")","v":{"$error":"#VALUE!"}},{"$f":"AND('Building Envelope Calculator'!H73,\"EMgjTA6GyAE=\")","v":{"$error":"#VALUE!"}},{"$f":"AND('Building Envelope Calculator'!I73,\"EMgjTA6GyAI=\")","v":{"$error":"#VALUE!"}},{"$f":"AND('Building Envelope Calculator'!J73,\"EMgjTA6GyAM=\")","v":{"$error":"#VALUE!"}},{"$f":"AND('Building Envelope Calculator'!K73,\"EMgjTA6GyAQ=\")","v":{"$error":"#VALUE!"}},{"$f":"AND('Building Envelope Calculator'!L73,\"EMgjTA6GyAU=\")","v":{"$error":"#VALUE!"}},{"$f":"AND('Building Envelope Calculator'!M73,\"EMgjTA6GyAY=\")","v":{"$error":"#VALUE!"}},{"$f":"AND('Building Envelope Calculator'!N73,\"EMgjTA6GyAc=\")","v":{"$error":"#VALUE!"}},{"$f":"AND('Building Envelope Calculator'!O73,\"EMgjTA6GyAg=\")","v":{"$error":"#VALUE!"}},{"$f":"AND('Building Envelope Calculator'!P73,\"EMgjTA6GyAk=\")","v":{"$error":"#VALUE!"}},{"$f":"AND('Building Envelope Calculator'!Q73,\"EMgjTA6GyAo=\")","v":{"$error":"#VALUE!"}},{"$f":"AND('Building Envelope Calculator'!R73,\"EMgjTA6GyAs=\")","v":{"$error":"#VALUE!"}},{"$f":"AND('Building Envelope Calculator'!S73,\"EMgjTA6GyAw=\")","v":{"$error":"#VALUE!"}},{"$f":"IF('Building Envelope Calculator'!74:74,\"EMgjTA6GyA0=\",0)","v":0},{"$f":"AND('Building Envelope Calculator'!A74,\"EMgjTA6GyA4=\")","v":{"$error":"#VALUE!"}},{"$f":"AND('Building Envelope Calculator'!B74,\"EMgjTA6GyA8=\")","v":{"$error":"#VALUE!"}},{"$f":"AND('Building Envelope Calculator'!C74,\"EMgjTA6GyBA=\")","v":{"$error":"#VALUE!"}},{"$f":"AND('Building Envelope Calculator'!D74,\"EMgjTA6GyBE=\")","v":{"$error":"#VALUE!"}},{"$f":"AND('Building Envelope Calculator'!E74,\"EMgjTA6GyBI=\")","v":{"$error":"#VALUE!"}},{"$f":"AND('Building Envelope Calculator'!F74,\"EMgjTA6GyBM=\")","v":{"$error":"#VALUE!"}},{"$f":"AND('Building Envelope Calculator'!G74,\"EMgjTA6GyBQ=\")","v":{"$error":"#VALUE!"}},{"$f":"AND('Building Envelope Calculator'!H74,\"EMgjTA6GyBU=\")","v":{"$error":"#VALUE!"}},{"$f":"AND('Building Envelope Calculator'!I74,\"EMgjTA6GyBY=\")","v":{"$error":"#VALUE!"}},{"$f":"AND('Building Envelope Calculator'!J74,\"EMgjTA6GyBc=\")","v":{"$error":"#VALUE!"}},{"$f":"AND('Building Envelope Calculator'!K74,\"EMgjTA6GyBg=\")","v":{"$error":"#VALUE!"}},{"$f":"AND('Building Envelope Calculator'!L74,\"EMgjTA6GyBk=\")","v":{"$error":"#VALUE!"}},{"$f":"AND('Building Envelope Calculator'!M74,\"EMgjTA6GyBo=\")","v":{"$error":"#VALUE!"}},{"$f":"AND('Building Envelope Calculator'!N74,\"EMgjTA6GyBs=\")","v":{"$error":"#VALUE!"}},{"$f":"AND('Building Envelope Calculator'!O74,\"EMgjTA6GyBw=\")","v":{"$error":"#VALUE!"}},{"$f":"AND('Building Envelope Calculator'!P74,\"EMgjTA6GyB0=\")","v":{"$error":"#VALUE!"}},{"$f":"AND('Building Envelope Calculator'!Q74,\"EMgjTA6GyB4=\")","v":{"$error":"#VALUE!"}},{"$f":"AND('Building Envelope Calculator'!R74,\"EMgjTA6GyB8=\")","v":{"$error":"#VALUE!"}},{"$f":"AND('Building Envelope Calculator'!S74,\"EMgjTA6GyCA=\")","v":{"$error":"#VALUE!"}},{"$f":"IF('Building Envelope Calculator'!75:75,\"EMgjTA6GyCE=\",0)","v":0},{"$f":"AND('Building Envelope Calculator'!A75,\"EMgjTA6GyCI=\")","v":{"$error":"#VALUE!"}},{"$f":"AND('Building Envelope Calculator'!B75,\"EMgjTA6GyCM=\")","v":{"$error":"#VALUE!"}},{"$f":"AND('Building Envelope Calculator'!C75,\"EMgjTA6GyCQ=\")","v":{"$error":"#VALUE!"}},{"$f":"AND('Building Envelope Calculator'!D75,\"EMgjTA6GyCU=\")","v":{"$error":"#VALUE!"}},{"$f":"AND('Building Envelope Calculator'!E75,\"EMgjTA6GyCY=\")","v":{"$error":"#VALUE!"}},{"$f":"AND('Building Envelope Calculator'!F75,\"EMgjTA6GyCc=\")","v":{"$error":"#VALUE!"}},{"$f":"AND('Building Envelope Calculator'!G75,\"EMgjTA6GyCg=\")","v":{"$error":"#VALUE!"}},{"$f":"AND('Building Envelope Calculator'!H75,\"EMgjTA6GyCk=\")","v":{"$error":"#VALUE!"}},{"$f":"AND('Building Envelope Calculator'!I75,\"EMgjTA6GyCo=\")","v":{"$error":"#VALUE!"}},{"$f":"AND('Building Envelope Calculator'!J75,\"EMgjTA6GyCs=\")","v":{"$error":"#VALUE!"}},{"$f":"AND('Building Envelope Calculator'!K75,\"EMgjTA6GyCw=\")","v":{"$error":"#VALUE!"}},{"$f":"AND('Building Envelope Calculator'!L75,\"EMgjTA6GyC0=\")","v":{"$error":"#VALUE!"}},{"$f":"AND('Building Envelope Calculator'!M75,\"EMgjTA6GyC4=\")","v":{"$error":"#VALUE!"}},{"$f":"AND('Building Envelope Calculator'!N75,\"EMgjTA6GyC8=\")","v":{"$error":"#VALUE!"}},{"$f":"AND('Building Envelope Calculator'!O75,\"EMgjTA6GyDA=\")","v":{"$error":"#VALUE!"}},{"$f":"AND('Building Envelope Calculator'!P75,\"EMgjTA6GyDE=\")","v":{"$error":"#VALUE!"}},{"$f":"AND('Building Envelope Calculator'!Q75,\"EMgjTA6GyDI=\")","v":{"$error":"#VALUE!"}},{"$f":"AND('Building Envelope Calculator'!R75,\"EMgjTA6GyDM=\")","v":{"$error":"#VALUE!"}},{"$f":"AND('Building Envelope Calculator'!S75,\"EMgjTA6GyDQ=\")","v":{"$error":"#VALUE!"}},{"$f":"IF('Building Envelope Calculator'!76:76,\"EMgjTA6GyDU=\",0)","v":0},{"$f":"AND('Building Envelope Calculator'!A76,\"EMgjTA6GyDY=\")","v":{"$error":"#VALUE!"}},{"$f":"AND('Building Envelope Calculator'!B76,\"EMgjTA6GyDc=\")","v":{"$error":"#VALUE!"}},{"$f":"AND('Building Envelope Calculator'!C76,\"EMgjTA6GyDg=\")","v":{"$error":"#VALUE!"}},{"$f":"AND('Building Envelope Calculator'!D76,\"EMgjTA6GyDk=\")","v":{"$error":"#VALUE!"}},{"$f":"AND('Building Envelope Calculator'!E76,\"EMgjTA6GyDo=\")","v":{"$error":"#VALUE!"}},{"$f":"AND('Building Envelope Calculator'!F76,\"EMgjTA6GyDs=\")","v":{"$error":"#VALUE!"}},{"$f":"AND('Building Envelope Calculator'!G76,\"EMgjTA6GyDw=\")","v":{"$error":"#VALUE!"}},{"$f":"AND('Building Envelope Calculator'!H76,\"EMgjTA6GyD0=\")","v":{"$error":"#VALUE!"}},{"$f":"AND('Building Envelope Calculator'!I76,\"EMgjTA6GyD4=\")","v":{"$error":"#VALUE!"}},{"$f":"AND('Building Envelope Calculator'!J76,\"EMgjTA6GyD8=\")","v":{"$error":"#VALUE!"}},{"$f":"AND('Building Envelope Calculator'!K76,\"EMgjTA6GyEA=\")","v":{"$error":"#VALUE!"}},{"$f":"AND('Building Envelope Calculator'!L76,\"EMgjTA6GyEE=\")","v":{"$error":"#VALUE!"}},{"$f":"AND('Building Envelope Calculator'!M76,\"EMgjTA6GyEI=\")","v":{"$error":"#VALUE!"}},{"$f":"AND('Building Envelope Calculator'!N76,\"EMgjTA6GyEM=\")","v":{"$error":"#VALUE!"}},{"$f":"AND('Building Envelope Calculator'!O76,\"EMgjTA6GyEQ=\")","v":{"$error":"#VALUE!"}},{"$f":"AND('Building Envelope Calculator'!P76,\"EMgjTA6GyEU=\")","v":{"$error":"#VALUE!"}},{"$f":"AND('Building Envelope Calculator'!Q76,\"EMgjTA6GyEY=\")","v":{"$error":"#VALUE!"}},{"$f":"AND('Building Envelope Calculator'!R76,\"EMgjTA6GyEc=\")","v":{"$error":"#VALUE!"}},{"$f":"AND('Building Envelope Calculator'!S76,\"EMgjTA6GyEg=\")","v":{"$error":"#VALUE!"}},{"$f":"IF('Building Envelope Calculator'!82:82,\"EMgjTA6GyEk=\",0)","v":0},{"$f":"AND('Building Envelope Calculator'!A82,\"EMgjTA6GyEo=\")","v":{"$error":"#VALUE!"}},{"$f":"AND('Building Envelope Calculator'!B82,\"EMgjTA6GyEs=\")","v":{"$error":"#VALUE!"}},{"$f":"AND('Building Envelope Calculator'!C82,\"EMgjTA6GyEw=\")","v":{"$error":"#VALUE!"}},{"$f":"AND('Building Envelope Calculator'!D82,\"EMgjTA6GyE0=\")","v":{"$error":"#VALUE!"}},{"$f":"AND('Building Envelope Calculator'!E82,\"EMgjTA6GyE4=\")","v":{"$error":"#VALUE!"}},{"$f":"AND('Building Envelope Calculator'!F82,\"EMgjTA6GyE8=\")","v":{"$error":"#VALUE!"}},{"$f":"AND('Building Envelope Calculator'!G82,\"EMgjTA6GyFA=\")","v":{"$error":"#VALUE!"}},{"$f":"AND('Building Envelope Calculator'!H82,\"EMgjTA6GyFE=\")","v":{"$error":"#VALUE!"}},{"$f":"AND('Building Envelope Calculator'!I82,\"EMgjTA6GyFI=\")","v":{"$error":"#VALUE!"}},{"$f":"AND('Building Envelope Calculator'!J82,\"EMgjTA6GyFM=\")","v":{"$error":"#VALUE!"}},{"$f":"AND('Building Envelope Calculator'!K82,\"EMgjTA6GyFQ=\")","v":{"$error":"#VALUE!"}},{"$f":"AND('Building Envelope Calculator'!L82,\"EMgjTA6GyFU=\")","v":{"$error":"#VALUE!"}},{"$f":"AND('Building Envelope Calculator'!M82,\"EMgjTA6GyFY=\")","v":{"$error":"#VALUE!"}},{"$f":"AND('Building Envelope Calculator'!N82,\"EMgjTA6GyFc=\")","v":{"$error":"#VALUE!"}},{"$f":"AND('Building Envelope Calculator'!O82,\"EMgjTA6GyFg=\")","v":{"$error":"#VALUE!"}},{"$f":"AND('Building Envelope Calculator'!P82,\"EMgjTA6GyFk=\")","v":{"$error":"#VALUE!"}},{"$f":"AND('Building Envelope Calculator'!Q82,\"EMgjTA6GyFo=\")","v":{"$error":"#VALUE!"}},{"$f":"AND('Building Envelope Calculator'!R82,\"EMgjTA6GyFs=\")","v":{"$error":"#VALUE!"}},{"$f":"AND('Building Envelope Calculator'!S82,\"EMgjTA6GyFw=\")","v":{"$error":"#VALUE!"}},{"$f":"IF('Building Envelope Calculator'!83:83,\"EMgjTA6GyF0=\",0)","v":0},{"$f":"AND('Building Envelope Calculator'!A83,\"EMgjTA6GyF4=\")","v":{"$error":"#VALUE!"}},{"$f":"AND('Building Envelope Calculator'!B83,\"EMgjTA6GyF8=\")","v":{"$error":"#VALUE!"}},{"$f":"AND('Building Envelope Calculator'!C83,\"EMgjTA6GyGA=\")","v":{"$error":"#VALUE!"}},{"$f":"AND('Building Envelope Calculator'!D83,\"EMgjTA6GyGE=\")","v":{"$error":"#VALUE!"}},{"$f":"AND('Building Envelope Calculator'!E83,\"EMgjTA6GyGI=\")","v":{"$error":"#VALUE!"}},{"$f":"AND('Building Envelope Calculator'!F83,\"EMgjTA6GyGM=\")","v":{"$error":"#VALUE!"}},{"$f":"AND('Building Envelope Calculator'!A78,\"EMgjTA6GyGQ=\")","v":{"$error":"#VALUE!"}},{"$f":"AND('Building Envelope Calculator'!B78,\"EMgjTA6GyGU=\")","v":{"$error":"#VALUE!"}},{"$f":"AND('Building Envelope Calculator'!I83,\"EMgjTA6GyGY=\")","v":{"$error":"#VALUE!"}},{"$f":"AND('Building Envelope Calculator'!J83,\"EMgjTA6GyGc=\")","v":{"$error":"#VALUE!"}},{"$f":"AND('Building Envelope Calculator'!K83,\"EMgjTA6GyGg=\")","v":{"$error":"#VALUE!"}},{"$f":"AND('Building Envelope Calculator'!L83,\"EMgjTA6GyGk=\")","v":{"$error":"#VALUE!"}},{"$f":"AND('Building Envelope Calculator'!M83,\"EMgjTA6GyGo=\")","v":{"$error":"#VALUE!"}},{"$f":"AND('Building Envelope Calculator'!N83,\"EMgjTA6GyGs=\")","v":{"$error":"#VALUE!"}},{"$f":"AND('Building Envelope Calculator'!O83,\"EMgjTA6GyGw=\")","v":{"$error":"#VALUE!"}},{"$f":"AND('Building Envelope Calculator'!P83,\"EMgjTA6GyG0=\")","v":{"$error":"#VALUE!"}},{"$f":"AND('Building Envelope Calculator'!Q83,\"EMgjTA6GyG4=\")","v":{"$error":"#VALUE!"}},{"$f":"AND('Building Envelope Calculator'!R83,\"EMgjTA6GyG8=\")","v":{"$error":"#VALUE!"}},{"$f":"AND('Building Envelope Calculator'!S83,\"EMgjTA6GyHA=\")","v":{"$error":"#VALUE!"}},{"$f":"IF('Building Envelope Calculator'!84:84,\"EMgjTA6GyHE=\",0)","v":0},{"$f":"AND('Building Envelope Calculator'!A84,\"EMgjTA6GyHI=\")","v":{"$error":"#VALUE!"}},{"$f":"AND('Building Envelope Calculator'!B84,\"EMgjTA6GyHM=\")","v":{"$error":"#VALUE!"}},{"$f":"AND('Building Envelope Calculator'!C84,\"EMgjTA6GyHQ=\")","v":{"$error":"#VALUE!"}},{"$f":"AND('Building Envelope Calculator'!D84,\"EMgjTA6GyHU=\")","v":{"$error":"#VALUE!"}},{"$f":"AND('Building Envelope Calculator'!E84,\"EMgjTA6GyHY=\")","v":{"$error":"#VALUE!"}},{"$f":"AND('Building Envelope Calculator'!F84,\"EMgjTA6GyHc=\")","v":{"$error":"#VALUE!"}},{"$f":"AND('Building Envelope Calculator'!A79,\"EMgjTA6GyHg=\")","v":{"$error":"#VALUE!"}},{"$f":"AND('Building Envelope Calculator'!B79,\"EMgjTA6GyHk=\")","v":{"$error":"#VALUE!"}},{"$f":"AND('Building Envelope Calculator'!I84,\"EMgjTA6GyHo=\")","v":{"$error":"#VALUE!"}},{"$f":"AND('Building Envelope Calculator'!J84,\"EMgjTA6GyHs=\")","v":{"$error":"#VALUE!"}},{"$f":"AND('Building Envelope Calculator'!K84,\"EMgjTA6GyHw=\")","v":{"$error":"#VALUE!"}},{"$f":"AND('Building Envelope Calculator'!L84,\"EMgjTA6GyH0=\")","v":{"$error":"#VALUE!"}},{"$f":"AND('Building Envelope Calculator'!M84,\"EMgjTA6GyH4=\")","v":{"$error":"#VALUE!"}},{"$f":"AND('Building Envelope Calculator'!N84,\"EMgjTA6GyH8=\")","v":{"$error":"#VALUE!"}},{"$f":"AND('Building Envelope Calculator'!O84,\"EMgjTA6GyIA=\")","v":{"$error":"#VALUE!"}},{"$f":"AND('Building Envelope Calculator'!P84,\"EMgjTA6GyIE=\")","v":{"$error":"#VALUE!"}},{"$f":"AND('Building Envelope Calculator'!Q84,\"EMgjTA6GyII=\")","v":{"$error":"#VALUE!"}},{"$f":"AND('Building Envelope Calculator'!R84,\"EMgjTA6GyIM=\")","v":{"$error":"#VALUE!"}},{"$f":"AND('Building Envelope Calculator'!S84,\"EMgjTA6GyIQ=\")","v":{"$error":"#VALUE!"}},{"$f":"IF('Building Envelope Calculator'!85:85,\"EMgjTA6GyIU=\",0)","v":0},{"$f":"AND('Building Envelope Calculator'!A90,\"EMgjTA6GyIY=\")","v":{"$error":"#VALUE!"}},{"$f":"AND('Building Envelope Calculator'!B90,\"EMgjTA6GyIc=\")","v":{"$error":"#VALUE!"}},{"$f":"AND('Building Envelope Calculator'!C90,\"EMgjTA6GyIg=\")","v":{"$error":"#VALUE!"}},{"$f":"AND('Building Envelope Calculator'!D85,\"EMgjTA6GyIk=\")","v":{"$error":"#VALUE!"}},{"$f":"AND('Building Envelope Calculator'!E85,\"EMgjTA6GyIo=\")","v":{"$error":"#VALUE!"}},{"$f":"AND('Building Envelope Calculator'!F85,\"EMgjTA6GyIs=\")","v":{"$error":"#VALUE!"}},{"$f":"AND('Building Envelope Calculator'!A80,\"EMgjTA6GyIw=\")","v":{"$error":"#VALUE!"}},{"$f":"AND('Building Envelope Calculator'!B80,\"EMgjTA6GyI0=\")","v":{"$error":"#VALUE!"}},{"$f":"AND('Building Envelope Calculator'!I85,\"EMgjTA6GyI4=\")","v":{"$error":"#VALUE!"}},{"$f":"AND('Building Envelope Calculator'!J85,\"EMgjTA6GyI8=\")","v":{"$error":"#VALUE!"}},{"$f":"AND('Building Envelope Calculator'!K85,\"EMgjTA6GyJA=\")","v":{"$error":"#VALUE!"}},{"$f":"AND('Building Envelope Calculator'!L85,\"EMgjTA6GyJE=\")","v":{"$error":"#VALUE!"}},{"$f":"AND('Building Envelope Calculator'!M85,\"EMgjTA6GyJI=\")","v":{"$error":"#VALUE!"}},{"$f":"AND('Building Envelope Calculator'!N85,\"EMgjTA6GyJM=\")","v":{"$error":"#VALUE!"}},{"$f":"AND('Building Envelope Calculator'!O85,\"EMgjTA6GyJQ=\")","v":{"$error":"#VALUE!"}},{"$f":"AND('Building Envelope Calculator'!P85,\"EMgjTA6GyJU=\")","v":{"$error":"#VALUE!"}},{"$f":"AND('Building Envelope Calculator'!Q85,\"EMgjTA6GyJY=\")","v":{"$error":"#VALUE!"}},{"$f":"AND('Building Envelope Calculator'!R85,\"EMgjTA6GyJc=\")","v":{"$error":"#VALUE!"}},{"$f":"AND('Building Envelope Calculator'!S85,\"EMgjTA6GyJg=\")","v":{"$error":"#VALUE!"}},{"$f":"IF('Building Envelope Calculator'!86:86,\"EMgjTA6GyJk=\",0)","v":0},{"$f":"AND('Building Envelope Calculator'!A85,\"EMgjTA6GyJo=\")","v":{"$error":"#VALUE!"}},{"$f":"AND('Building Envelope Calculator'!B85,\"EMgjTA6GyJs=\")","v":{"$error":"#VALUE!"}},{"$f":"AND('Building Envelope Calculator'!C85,\"EMgjTA6GyJw=\")","v":{"$error":"#VALUE!"}},{"$f":"AND('Building Envelope Calculator'!D86,\"EMgjTA6GyJ0=\")","v":{"$error":"#VALUE!"}},{"$f":"AND('Building Envelope Calculator'!E86,\"EMgjTA6GyJ4=\")","v":{"$error":"#VALUE!"}},{"$f":"AND('Building Envelope Calculator'!F86,\"EMgjTA6GyJ8=\")","v":{"$error":"#VALUE!"}},{"$f":"AND('Building Envelope Calculator'!A81,\"EMgjTA6GyKA=\")","v":{"$error":"#VALUE!"}},{"$f":"AND('Building Envelope Calculator'!B81,\"EMgjTA6GyKE=\")","v":{"$error":"#VALUE!"}},{"$f":"AND('Building Envelope Calculator'!I86,\"EMgjTA6GyKI=\")","v":{"$error":"#VALUE!"}},{"$f":"AND('Building Envelope Calculator'!J86,\"EMgjTA6GyKM=\")","v":{"$error":"#VALUE!"}},{"$f":"AND('Building Envelope Calculator'!K86,\"EMgjTA6GyKQ=\")","v":{"$error":"#VALUE!"}},{"$f":"AND('Building Envelope Calculator'!L86,\"EMgjTA6GyKU=\")","v":{"$error":"#VALUE!"}},{"$f":"AND('Building Envelope Calculator'!M86,\"EMgjTA6GyKY=\")","v":{"$error":"#VALUE!"}},{"$f":"AND('Building Envelope Calculator'!N86,\"EMgjTA6GyKc=\")","v":{"$error":"#VALUE!"}},{"$f":"AND('Building Envelope Calculator'!O86,\"EMgjTA6GyKg=\")","v":{"$error":"#VALUE!"}},{"$f":"AND('Building Envelope Calculator'!P86,\"EMgjTA6GyKk=\")","v":{"$error":"#VALUE!"}},{"$f":"AND('Building Envelope Calculator'!Q86,\"EMgjTA6GyKo=\")","v":{"$error":"#VALUE!"}},{"$f":"AND('Building Envelope Calculator'!R86,\"EMgjTA6GyKs=\")","v":{"$error":"#VALUE!"}},{"$f":"AND('Building Envelope Calculator'!S86,\"EMgjTA6GyKw=\")","v":{"$error":"#VALUE!"}},{"$f":"IF('Building Envelope Calculator'!87:87,\"EMgjTA6GyK0=\",0)","v":0},{"$f":"AND('Building Envelope Calculator'!A86,\"EMgjTA6GyK4=\")","v":{"$error":"#VALUE!"}},{"$f":"AND('Building Envelope Calculator'!B86,\"EMgjTA6GyK8=\")","v":{"$error":"#VALUE!"}},{"$f":"AND('Building Envelope Calculator'!C86,\"EMgjTA6GyLA=\")","v":{"$error":"#VALUE!"}},{"$f":"AND('Building Envelope Calculator'!D87,\"EMgjTA6GyLE=\")","v":{"$error":"#VALUE!"}},{"$f":"AND('Building Envelope Calculator'!E87,\"EMgjTA6GyLI=\")","v":{"$error":"#VALUE!"}},{"$f":"AND('Building Envelope Calculator'!F87,\"EMgjTA6GyLM=\")","v":{"$error":"#VALUE!"}},{"$f":"AND('Building Envelope Calculator'!G87,\"EMgjTA6GyLQ=\")","v":{"$error":"#VALUE!"}},{"$f":"AND('Building Envelope Calculator'!H87,\"EMgjTA6GyLU=\")","v":{"$error":"#VALUE!"}},{"$f":"AND('Building Envelope Calculator'!I87,\"EMgjTA6GyLY=\")","v":{"$error":"#VALUE!"}},{"$f":"AND('Building Envelope Calculator'!J87,\"EMgjTA6GyLc=\")","v":{"$error":"#VALUE!"}},{"$f":"AND('Building Envelope Calculator'!K87,\"EMgjTA6GyLg=\")","v":{"$error":"#VALUE!"}},{"$f":"AND('Building Envelope Calculator'!L87,\"EMgjTA6GyLk=\")","v":{"$error":"#VALUE!"}},{"$f":"AND('Building Envelope Calculator'!M87,\"EMgjTA6GyLo=\")","v":{"$error":"#VALUE!"}},{"$f":"AND('Building Envelope Calculator'!N87,\"EMgjTA6GyLs=\")","v":{"$error":"#VALUE!"}},{"$f":"AND('Building Envelope Calculator'!O87,\"EMgjTA6GyLw=\")","v":{"$error":"#VALUE!"}},{"$f":"AND('Building Envelope Calculator'!P87,\"EMgjTA6GyL0=\")","v":{"$error":"#VALUE!"}},{"$f":"AND('Building Envelope Calculator'!Q87,\"EMgjTA6GyL4=\")","v":{"$error":"#VALUE!"}},{"$f":"AND('Building Envelope Calculator'!R87,\"EMgjTA6GyL8=\")","v":{"$error":"#VALUE!"}},{"$f":"AND('Building Envelope Calculator'!S87,\"EMgjTA6GyMA=\")","v":{"$error":"#VALUE!"}},{"$f":"IF('Building Envelope Calculator'!88:88,\"EMgjTA6GyME=\",0)","v":0},{"$f":"AND('Building Envelope Calculator'!A87,\"EMgjTA6GyMI=\")","v":{"$error":"#VALUE!"}},{"$f":"AND('Building Envelope Calculator'!B87,\"EMgjTA6GyMM=\")","v":{"$error":"#VALUE!"}},{"$f":"AND('Building Envelope Calculator'!C87,\"EMgjTA6GyMQ=\")","v":{"$error":"#VALUE!"}},{"$f":"AND('Building Envelope Calculator'!D88,\"EMgjTA6GyMU=\")","v":{"$error":"#VALUE!"}},{"$f":"AND('Building Envelope Calculator'!E88,\"EMgjTA6GyMY=\")","v":{"$error":"#VALUE!"}},{"$f":"AND('Building Envelope Calculator'!F88,\"EMgjTA6GyMc=\")","v":{"$error":"#VALUE!"}},{"$f":"AND('Building Envelope Calculator'!G88,\"EMgjTA6GyMg=\")","v":{"$error":"#VALUE!"}},{"$f":"AND('Building Envelope Calculator'!H88,\"EMgjTA6GyMk=\")","v":{"$error":"#VALUE!"}},{"$f":"AND('Building Envelope Calculator'!I88,\"EMgjTA6GyMo=\")","v":{"$error":"#VALUE!"}},{"$f":"AND('Building Envelope Calculator'!J88,\"EMgjTA6GyMs=\")","v":{"$error":"#VALUE!"}},{"$f":"AND('Building Envelope Calculator'!K88,\"EMgjTA6GyMw=\")","v":{"$error":"#VALUE!"}},{"$f":"AND('Building Envelope Calculator'!L88,\"EMgjTA6GyM0=\")","v":{"$error":"#VALUE!"}},{"$f":"AND('Building Envelope Calculator'!M88,\"EMgjTA6GyM4=\")","v":{"$error":"#VALUE!"}},{"$f":"AND('Building Envelope Calculator'!N88,\"EMgjTA6GyM8=\")","v":{"$error":"#VALUE!"}},{"$f":"AND('Building Envelope Calculator'!O88,\"EMgjTA6GyNA=\")","v":{"$error":"#VALUE!"}},{"$f":"AND('Building Envelope Calculator'!P88,\"EMgjTA6GyNE=\")","v":{"$error":"#VALUE!"}},{"$f":"AND('Building Envelope Calculator'!Q88,\"EMgjTA6GyNI=\")","v":{"$error":"#VALUE!"}},{"$f":"AND('Building Envelope Calculator'!R88,\"EMgjTA6GyNM=\")","v":{"$error":"#VALUE!"}},{"$f":"AND('Building Envelope Calculator'!S88,\"EMgjTA6GyNQ=\")","v":{"$error":"#VALUE!"}},{"$f":"IF('Building Envelope Calculator'!89:89,\"EMgjTA6GyNU=\",0)","v":0},{"$f":"AND('Building Envelope Calculator'!A89,\"EMgjTA6GyNY=\")","v":{"$error":"#VALUE!"}},{"$f":"AND('Building Envelope Calculator'!B89,\"EMgjTA6GyNc=\")","v":{"$error":"#VALUE!"}},{"$f":"AND('Building Envelope Calculator'!C89,\"EMgjTA6GyNg=\")","v":{"$error":"#VALUE!"}},{"$f":"AND('Building Envelope Calculator'!D89,\"EMgjTA6GyNk=\")","v":{"$error":"#VALUE!"}},{"$f":"AND('Building Envelope Calculator'!E89,\"EMgjTA6GyNo=\")","v":{"$error":"#VALUE!"}},{"$f":"AND('Building Envelope Calculator'!F89,\"EMgjTA6GyNs=\")","v":{"$error":"#VALUE!"}},{"$f":"AND('Building Envelope Calculator'!G89,\"EMgjTA6GyNw=\")","v":{"$error":"#VALUE!"}},{"$f":"AND('Building Envelope Calculator'!H89,\"EMgjTA6GyN0=\")","v":{"$error":"#VALUE!"}},{"$f":"AND('Building Envelope Calculator'!I89,\"EMgjTA6GyN4=\")","v":{"$error":"#VALUE!"}},{"$f":"AND('Building Envelope Calculator'!J89,\"EMgjTA6GyN8=\")","v":{"$error":"#VALUE!"}},{"$f":"AND('Building Envelope Calculator'!K89,\"EMgjTA6GyOA=\")","v":{"$error":"#VALUE!"}},{"$f":"AND('Building Envelope Calculator'!L89,\"EMgjTA6GyOE=\")","v":{"$error":"#VALUE!"}},{"$f":"AND('Building Envelope Calculator'!M89,\"EMgjTA6GyOI=\")","v":{"$error":"#VALUE!"}},{"$f":"AND('Building Envelope Calculator'!N89,\"EMgjTA6GyOM=\")","v":{"$error":"#VALUE!"}},{"$f":"AND('Building Envelope Calculator'!O89,\"EMgjTA6GyOQ=\")","v":{"$error":"#VALUE!"}},{"$f":"AND('Building Envelope Calculator'!P89,\"EMgjTA6GyOU=\")","v":{"$error":"#VALUE!"}},{"$f":"AND('Building Envelope Calculator'!Q89,\"EMgjTA6GyOY=\")","v":{"$error":"#VALUE!"}},{"$f":"AND('Building Envelope Calculator'!R89,\"EMgjTA6GyOc=\")","v":{"$error":"#VALUE!"}},{"$f":"AND('Building Envelope Calculator'!S89,\"EMgjTA6GyOg=\")","v":{"$error":"#VALUE!"}},{"$f":"IF('Building Envelope Calculator'!90:90,\"EMgjTA6GyOk=\",0)","v":0},{"$f":"AND('Building Envelope Calculator'!A92,\"EMgjTA6GyOo=\")","v":{"$error":"#VALUE!"}},{"$f":"AND('Building Envelope Calculator'!B92,\"EMgjTA6GyOs=\")","v":{"$error":"#VALUE!"}},{"$f":"AND('Building Envelope Calculator'!C92,\"EMgjTA6GyOw=\")","v":{"$error":"#VALUE!"}},{"$f":"AND('Building Envelope Calculator'!D90,\"EMgjTA6GyO0=\")","v":{"$error":"#VALUE!"}},{"$f":"AND('Building Envelope Calculator'!E90,\"EMgjTA6GyO4=\")","v":{"$error":"#VALUE!"}},{"$f":"AND('Building Envelope Calculator'!F90,\"EMgjTA6GyO8=\")","v":{"$error":"#VALUE!"}},{"$f":"AND('Building Envelope Calculator'!G90,\"EMgjTA6GyPA=\")","v":{"$error":"#VALUE!"}},{"$f":"AND('Building Envelope Calculator'!H90,\"EMgjTA6GyPE=\")","v":{"$error":"#VALUE!"}},{"$f":"AND('Building Envelope Calculator'!I90,\"EMgjTA6GyPI=\")","v":{"$error":"#VALUE!"}},{"$f":"AND('Building Envelope Calculator'!J90,\"EMgjTA6GyPM=\")","v":{"$error":"#VALUE!"}},{"$f":"AND('Building Envelope Calculator'!K90,\"EMgjTA6GyPQ=\")","v":{"$error":"#VALUE!"}},{"$f":"AND('Building Envelope Calculator'!L90,\"EMgjTA6GyPU=\")","v":{"$error":"#VALUE!"}},{"$f":"AND('Building Envelope Calculator'!M90,\"EMgjTA6GyPY=\")","v":{"$error":"#VALUE!"}},{"$f":"AND('Building Envelope Calculator'!N90,\"EMgjTA6GyPc=\")","v":{"$error":"#VALUE!"}},{"$f":"AND('Building Envelope Calculator'!O90,\"EMgjTA6GyPg=\")","v":{"$error":"#VALUE!"}},{"$f":"AND('Building Envelope Calculator'!P90,\"EMgjTA6GyPk=\")","v":{"$error":"#VALUE!"}},{"$f":"AND('Building Envelope Calculator'!Q90,\"EMgjTA6GyPo=\")","v":{"$error":"#VALUE!"}},{"$f":"AND('Building Envelope Calculator'!R90,\"EMgjTA6GyPs=\")","v":{"$error":"#VALUE!"}},{"$f":"AND('Building Envelope Calculator'!S90,\"EMgjTA6GyPw=\")","v":{"$error":"#VALUE!"}},{"$f":"IF('Building Envelope Calculator'!92:92,\"EMgjTA6GyP0=\",0)","v":0},{"$f":"AND('Building Envelope Calculator'!A93,\"EMgjTA6GyP4=\")","v":{"$error":"#VALUE!"}},{"$f":"AND('Building Envelope Calculator'!B93,\"EMgjTA6GyP8=\")","v":{"$error":"#VALUE!"}}]
[{"$f":"AND('Building Envelope Calculator'!C93,\"f9W2tFIL3QA=\")","v":{"$error":"#VALUE!"}},{"$f":"AND('Building Envelope Calculator'!D92,\"f9W2tFIL3QE=\")","v":{"$error":"#VALUE!"}},{"$f":"AND('Building Envelope Calculator'!E92,\"f9W2tFIL3QI=\")","v":{"$error":"#VALUE!"}},{"$f":"AND('Building Envelope Calculator'!F92,\"f9W2tFIL3QM=\")","v":{"$error":"#VALUE!"}},{"$f":"AND('Building Envelope Calculator'!G92,\"f9W2tFIL3QQ=\")","v":{"$error":"#VALUE!"}},{"$f":"AND('Building Envelope Calculator'!H92,\"f9W2tFIL3QU=\")","v":{"$error":"#VALUE!"}},{"$f":"AND('Building Envelope Calculator'!I92,\"f9W2tFIL3QY=\")","v":{"$error":"#VALUE!"}},{"$f":"AND('Building Envelope Calculator'!J92,\"f9W2tFIL3Qc=\")","v":{"$error":"#VALUE!"}},{"$f":"AND('Building Envelope Calculator'!K92,\"f9W2tFIL3Qg=\")","v":{"$error":"#VALUE!"}},{"$f":"AND('Building Envelope Calculator'!L92,\"f9W2tFIL3Qk=\")","v":{"$error":"#VALUE!"}},{"$f":"AND('Building Envelope Calculator'!M92,\"f9W2tFIL3Qo=\")","v":{"$error":"#VALUE!"}},{"$f":"AND('Building Envelope Calculator'!N92,\"f9W2tFIL3Qs=\")","v":{"$error":"#VALUE!"}},{"$f":"AND('Building Envelope Calculator'!O92,\"f9W2tFIL3Qw=\")","v":{"$error":"#VALUE!"}},{"$f":"AND('Building Envelope Calculator'!P92,\"f9W2tFIL3Q0=\")","v":{"$error":"#VALUE!"}},{"$f":"AND('Building Envelope Calculator'!Q92,\"f9W2tFIL3Q4=\")","v":{"$error":"#VALUE!"}},{"$f":"AND('Building Envelope Calculator'!R92,\"f9W2tFIL3Q8=\")","v":{"$error":"#VALUE!"}},{"$f":"AND('Building Envelope Calculator'!S92,\"f9W2tFIL3RA=\")","v":{"$error":"#VALUE!"}},{"$f":"IF('Building Envelope Calculator'!93:93,\"f9W2tFIL3RE=\",0)","v":0},{"$f":"AND('Building Envelope Calculator'!A94,\"f9W2tFIL3RI=\")","v":{"$error":"#VALUE!"}},{"$f":"AND('Building Envelope Calculator'!B94,\"f9W2tFIL3RM=\")","v":{"$error":"#VALUE!"}},{"$f":"AND('Building Envelope Calculator'!C94,\"f9W2tFIL3RQ=\")","v":{"$error":"#VALUE!"}},{"$f":"AND('Building Envelope Calculator'!D93,\"f9W2tFIL3RU=\")","v":{"$error":"#VALUE!"}},{"$f":"AND('Building Envelope Calculator'!E93,\"f9W2tFIL3RY=\")","v":{"$error":"#VALUE!"}},{"$f":"AND('Building Envelope Calculator'!F93,\"f9W2tFIL3Rc=\")","v":{"$error":"#VALUE!"}},{"$f":"AND('Building Envelope Calculator'!G93,\"f9W2tFIL3Rg=\")","v":{"$error":"#VALUE!"}},{"$f":"AND('Building Envelope Calculator'!H93,\"f9W2tFIL3Rk=\")","v":{"$error":"#VALUE!"}},{"$f":"AND('Building Envelope Calculator'!I93,\"f9W2tFIL3Ro=\")","v":{"$error":"#VALUE!"}},{"$f":"AND('Building Envelope Calculator'!J93,\"f9W2tFIL3Rs=\")","v":{"$error":"#VALUE!"}},{"$f":"AND('Building Envelope Calculator'!K93,\"f9W2tFIL3Rw=\")","v":{"$error":"#VALUE!"}},{"$f":"AND('Building Envelope Calculator'!L93,\"f9W2tFIL3R0=\")","v":{"$error":"#VALUE!"}},{"$f":"AND('Building Envelope Calculator'!M93,\"f9W2tFIL3R4=\")","v":{"$error":"#VALUE!"}},{"$f":"AND('Building Envelope Calculator'!N93,\"f9W2tFIL3R8=\")","v":{"$error":"#VALUE!"}},{"$f":"AND('Building Envelope Calculator'!O93,\"f9W2tFIL3SA=\")","v":{"$error":"#VALUE!"}},{"$f":"AND('Building Envelope Calculator'!P93,\"f9W2tFIL3SE=\")","v":{"$error":"#VALUE!"}},{"$f":"AND('Building Envelope Calculator'!Q93,\"f9W2tFIL3SI=\")","v":{"$error":"#VALUE!"}},{"$f":"AND('Building Envelope Calculator'!R93,\"f9W2tFIL3SM=\")","v":{"$error":"#VALUE!"}},{"$f":"AND('Building Envelope Calculator'!S93,\"f9W2tFIL3SQ=\")","v":{"$error":"#VALUE!"}},{"$f":"IF('Building Envelope Calculator'!94:94,\"f9W2tFIL3SU=\",0)","v":0},{"$f":"AND('Building Envelope Calculator'!A95,\"f9W2tFIL3SY=\")","v":{"$error":"#VALUE!"}},{"$f":"AND('Building Envelope Calculator'!B95,\"f9W2tFIL3Sc=\")","v":{"$error":"#VALUE!"}},{"$f":"AND('Building Envelope Calculator'!C95,\"f9W2tFIL3Sg=\")","v":{"$error":"#VALUE!"}},{"$f":"AND('Building Envelope Calculator'!D94,\"f9W2tFIL3Sk=\")","v":{"$error":"#VALUE!"}},{"$f":"AND('Building Envelope Calculator'!E94,\"f9W2tFIL3So=\")","v":{"$error":"#VALUE!"}},{"$f":"AND('Building Envelope Calculator'!F94,\"f9W2tFIL3Ss=\")","v":{"$error":"#VALUE!"}},{"$f":"AND('Building Envelope Calculator'!G94,\"f9W2tFIL3Sw=\")","v":{"$error":"#VALUE!"}},{"$f":"AND('Building Envelope Calculator'!H94,\"f9W2tFIL3S0=\")","v":{"$error":"#VALUE!"}},{"$f":"AND('Building Envelope Calculator'!I94,\"f9W2tFIL3S4=\")","v":{"$error":"#VALUE!"}},{"$f":"AND('Building Envelope Calculator'!J94,\"f9W2tFIL3S8=\")","v":{"$error":"#VALUE!"}},{"$f":"AND('Building Envelope Calculator'!K94,\"f9W2tFIL3TA=\")","v":{"$error":"#VALUE!"}},{"$f":"AND('Building Envelope Calculator'!L94,\"f9W2tFIL3TE=\")","v":{"$error":"#VALUE!"}},{"$f":"AND('Building Envelope Calculator'!M94,\"f9W2tFIL3TI=\")","v":{"$error":"#VALUE!"}},{"$f":"AND('Building Envelope Calculator'!N94,\"f9W2tFIL3TM=\")","v":{"$error":"#VALUE!"}},{"$f":"AND('Building Envelope Calculator'!O94,\"f9W2tFIL3TQ=\")","v":{"$error":"#VALUE!"}},{"$f":"AND('Building Envelope Calculator'!P94,\"f9W2tFIL3TU=\")","v":{"$error":"#VALUE!"}},{"$f":"AND('Building Envelope Calculator'!Q94,\"f9W2tFIL3TY=\")","v":{"$error":"#VALUE!"}},{"$f":"AND('Building Envelope Calculator'!R94,\"f9W2tFIL3Tc=\")","v":{"$error":"#VALUE!"}},{"$f":"AND('Building Envelope Calculator'!S94,\"f9W2tFIL3Tg=\")","v":{"$error":"#VALUE!"}},{"$f":"IF('Building Envelope Calculator'!95:95,\"f9W2tFIL3Tk=\",0)","v":0},{"$f":"AND('Building Envelope Calculator'!A96,\"f9W2tFIL3To=\")","v":{"$error":"#VALUE!"}},{"$f":"AND('Building Envelope Calculator'!B96,\"f9W2tFIL3Ts=\")","v":{"$error":"#VALUE!"}},{"$f":"AND('Building Envelope Calculator'!C96,\"f9W2tFIL3Tw=\")","v":{"$error":"#VALUE!"}},{"$f":"AND('Building Envelope Calculator'!D95,\"f9W2tFIL3T0=\")","v":{"$error":"#VALUE!"}},{"$f":"AND('Building Envelope Calculator'!E95,\"f9W2tFIL3T4=\")","v":{"$error":"#VALUE!"}},{"$f":"AND('Building Envelope Calculator'!F95,\"f9W2tFIL3T8=\")","v":{"$error":"#VALUE!"}},{"$f":"AND('Building Envelope Calculator'!#REF!,\"f9W2tFIL3UA=\")","v":{"$error":"#REF!"}},{"$f":"AND('Building Envelope Calculator'!#REF!,\"f9W2tFIL3UE=\")","v":{"$error":"#REF!"}},{"$f":"AND('Building Envelope Calculator'!#REF!,\"f9W2tFIL3UI=\")","v":{"$error":"#REF!"}},{"$f":"AND('Building Envelope Calculator'!A110,\"f9W2tFIL3UM=\")","v":{"$error":"#VALUE!"}},{"$f":"AND('Building Envelope Calculator'!B110,\"f9W2tFIL3UQ=\")","v":{"$error":"#VALUE!"}},{"$f":"AND('Building Envelope Calculator'!C110,\"f9W2tFIL3UU=\")","v":{"$error":"#VALUE!"}},{"$f":"AND('Building Envelope Calculator'!D108,\"f9W2tFIL3UY=\")","v":{"$error":"#VALUE!"}},{"$f":"AND('Building Envelope Calculator'!H108,\"f9W2tFIL3Uc=\")","v":{"$error":"#VALUE!"}},{"$f":"AND('Building Envelope Calculator'!I108,\"f9W2tFIL3Ug=\")","v":{"$error":"#VALUE!"}},{"$f":"AND('Building Envelope Calculator'!J108,\"f9W2tFIL3Uk=\")","v":{"$error":"#VALUE!"}},{"$f":"AND('Building Envelope Calculator'!K108,\"f9W2tFIL3Uo=\")","v":{"$error":"#VALUE!"}},{"$f":"AND('Building Envelope Calculator'!L108,\"f9W2tFIL3Us=\")","v":{"$error":"#VALUE!"}},{"$f":"AND('Building Envelope Calculator'!M108,\"f9W2tFIL3Uw=\")","v":{"$error":"#VALUE!"}},{"$f":"IF('Building Envelope Calculator'!96:96,\"f9W2tFIL3U0=\",0)","v":0},{"$f":"AND('Building Envelope Calculator'!A97,\"f9W2tFIL3U4=\")","v":{"$error":"#VALUE!"}},{"$f":"AND('Building Envelope Calculator'!B97,\"f9W2tFIL3U8=\")","v":{"$error":"#VALUE!"}},{"$f":"AND('Building Envelope Calculator'!C97,\"f9W2tFIL3VA=\")","v":{"$error":"#VALUE!"}},{"$f":"AND('Building Envelope Calculator'!D96,\"f9W2tFIL3VE=\")","v":{"$error":"#VALUE!"}},{"$f":"AND('Building Envelope Calculator'!E96,\"f9W2tFIL3VI=\")","v":{"$error":"#VALUE!"}},{"$f":"AND('Building Envelope Calculator'!F96,\"f9W2tFIL3VM=\")","v":{"$error":"#VALUE!"}},{"$f":"AND('Building Envelope Calculator'!A125,\"f9W2tFIL3VQ=\")","v":{"$error":"#VALUE!"}},{"$f":"AND('Building Envelope Calculator'!B125,\"f9W2tFIL3VU=\")","v":{"$error":"#VALUE!"}},{"$f":"AND('Building Envelope Calculator'!#REF!,\"f9W2tFIL3VY=\")","v":{"$error":"#REF!"}},{"$f":"AND('Building Envelope Calculator'!A111,\"f9W2tFIL3Vc=\")","v":{"$error":"#VALUE!"}},{"$f":"AND('Building Envelope Calculator'!B111,\"f9W2tFIL3Vg=\")","v":{"$error":"#VALUE!"}},{"$f":"AND('Building Envelope Calculator'!C111,\"f9W2tFIL3Vk=\")","v":{"$error":"#VALUE!"}},{"$f":"AND('Building Envelope Calculator'!D109,\"f9W2tFIL3Vo=\")","v":{"$error":"#VALUE!"}},{"$f":"AND('Building Envelope Calculator'!#REF!,\"f9W2tFIL3Vs=\")","v":{"$error":"#REF!"}},{"$f":"AND('Building Envelope Calculator'!A132,\"f9W2tFIL3Vw=\")","v":{"$error":"#VALUE!"}},{"$f":"AND('Building Envelope Calculator'!B132,\"f9W2tFIL3V0=\")","v":{"$error":"#VALUE!"}},{"$f":"AND('Building Envelope Calculator'!L109,\"f9W2tFIL3V4=\")","v":{"$error":"#VALUE!"}},{"$f":"AND('Building Envelope Calculator'!A139,\"f9W2tFIL3V8=\")","v":{"$error":"#VALUE!"}},{"$f":"AND('Building Envelope Calculator'!B139,\"f9W2tFIL3WA=\")","v":{"$error":"#VALUE!"}},{"$f":"IF('Building Envelope Calculator'!97:97,\"f9W2tFIL3WE=\",0)","v":0},{"$f":"AND('Building Envelope Calculator'!A98,\"f9W2tFIL3WI=\")","v":{"$error":"#VALUE!"}},{"$f":"AND('Building Envelope Calculator'!B98,\"f9W2tFIL3WM=\")","v":{"$error":"#VALUE!"}},{"$f":"AND('Building Envelope Calculator'!C98,\"f9W2tFIL3WQ=\")","v":{"$error":"#VALUE!"}},{"$f":"AND('Building Envelope Calculator'!D97,\"f9W2tFIL3WU=\")","v":{"$error":"#VALUE!"}},{"$f":"AND('Building Envelope Calculator'!E97,\"f9W2tFIL3WY=\")","v":{"$error":"#VALUE!"}},{"$f":"AND('Building Envelope Calculator'!F97,\"f9W2tFIL3Wc=\")","v":{"$error":"#VALUE!"}},{"$f":"AND('Building Envelope Calculator'!A126,\"f9W2tFIL3Wg=\")","v":{"$error":"#VALUE!"}},{"$f":"AND('Building Envelope Calculator'!B126,\"f9W2tFIL3Wk=\")","v":{"$error":"#VALUE!"}},{"$f":"AND('Building Envelope Calculator'!#REF!,\"f9W2tFIL3Wo=\")","v":{"$error":"#REF!"}},{"$f":"AND('Building Envelope Calculator'!A112,\"f9W2tFIL3Ws=\")","v":{"$error":"#VALUE!"}},{"$f":"AND('Building Envelope Calculator'!B112,\"f9W2tFIL3Ww=\")","v":{"$error":"#VALUE!"}},{"$f":"AND('Building Envelope Calculator'!C112,\"f9W2tFIL3W0=\")","v":{"$error":"#VALUE!"}},{"$f":"AND('Building Envelope Calculator'!D110,\"f9W2tFIL3W4=\")","v":{"$error":"#VALUE!"}},{"$f":"AND('Building Envelope Calculator'!#REF!,\"f9W2tFIL3W8=\")","v":{"$error":"#REF!"}},{"$f":"AND('Building Envelope Calculator'!A133,\"f9W2tFIL3XA=\")","v":{"$error":"#VALUE!"}},{"$f":"AND('Building Envelope Calculator'!B133,\"f9W2tFIL3XE=\")","v":{"$error":"#VALUE!"}},{"$f":"AND('Building Envelope Calculator'!L110,\"f9W2tFIL3XI=\")","v":{"$error":"#VALUE!"}},{"$f":"AND('Building Envelope Calculator'!A140,\"f9W2tFIL3XM=\")","v":{"$error":"#VALUE!"}},{"$f":"AND('Building Envelope Calculator'!#REF!,\"f9W2tFIL3XQ=\")","v":{"$error":"#REF!"}},{"$f":"IF('Building Envelope Calculator'!98:98,\"f9W2tFIL3XU=\",0)","v":0},{"$f":"AND('Building Envelope Calculator'!A99,\"f9W2tFIL3XY=\")","v":{"$error":"#VALUE!"}},{"$f":"AND('Building Envelope Calculator'!B99,\"f9W2tFIL3Xc=\")","v":{"$error":"#VALUE!"}},{"$f":"AND('Building Envelope Calculator'!C99,\"f9W2tFIL3Xg=\")","v":{"$error":"#VALUE!"}},{"$f":"AND('Building Envelope Calculator'!D98,\"f9W2tFIL3Xk=\")","v":{"$error":"#VALUE!"}},{"$f":"AND('Building Envelope Calculator'!E98,\"f9W2tFIL3Xo=\")","v":{"$error":"#VALUE!"}},{"$f":"AND('Building Envelope Calculator'!F98,\"f9W2tFIL3Xs=\")","v":{"$error":"#VALUE!"}},{"$f":"AND('Building Envelope Calculator'!A127,\"f9W2tFIL3Xw=\")","v":{"$error":"#VALUE!"}},{"$f":"AND('Building Envelope Calculator'!B127,\"f9W2tFIL3X0=\")","v":{"$error":"#VALUE!"}},{"$f":"AND('Building Envelope Calculator'!#REF!,\"f9W2tFIL3X4=\")","v":{"$error":"#REF!"}},{"$f":"AND('Building Envelope Calculator'!A113,\"f9W2tFIL3X8=\")","v":{"$error":"#VALUE!"}},{"$f":"AND('Building Envelope Calculator'!B113,\"f9W2tFIL3YA=\")","v":{"$error":"#VALUE!"}},{"$f":"AND('Building Envelope Calculator'!C113,\"f9W2tFIL3YE=\")","v":{"$error":"#VALUE!"}},{"$f":"AND('Building Envelope Calculator'!D111,\"f9W2tFIL3YI=\")","v":{"$error":"#VALUE!"}},{"$f":"AND('Building Envelope Calculator'!#REF!,\"f9W2tFIL3YM=\")","v":{"$error":"#REF!"}},{"$f":"AND('Building Envelope Calculator'!A134,\"f9W2tFIL3YQ=\")","v":{"$error":"#VALUE!"}},{"$f":"AND('Building Envelope Calculator'!B134,\"f9W2tFIL3YU=\")","v":{"$error":"#VALUE!"}},{"$f":"AND('Building Envelope Calculator'!L111,\"f9W2tFIL3YY=\")","v":{"$error":"#VALUE!"}},{"$f":"AND('Building Envelope Calculator'!A141,\"f9W2tFIL3Yc=\")","v":{"$error":"#VALUE!"}},{"$f":"AND('Building Envelope Calculator'!#REF!,\"f9W2tFIL3Yg=\")","v":{"$error":"#REF!"}},{"$f":"IF('Building Envelope Calculator'!99:99,\"f9W2tFIL3Yk=\",0)","v":0},{"$f":"AND('Building Envelope Calculator'!A105,\"f9W2tFIL3Yo=\")","v":{"$error":"#VALUE!"}},{"$f":"AND('Building Envelope Calculator'!B105,\"f9W2tFIL3Ys=\")","v":{"$error":"#VALUE!"}},{"$f":"AND('Building Envelope Calculator'!C105,\"f9W2tFIL3Yw=\")","v":{"$error":"#VALUE!"}},{"$f":"AND('Building Envelope Calculator'!D99,\"f9W2tFIL3Y0=\")","v":{"$error":"#VALUE!"}},{"$f":"AND('Building Envelope Calculator'!E99,\"f9W2tFIL3Y4=\")","v":{"$error":"#VALUE!"}},{"$f":"AND('Building Envelope Calculator'!F99,\"f9W2tFIL3Y8=\")","v":{"$error":"#VALUE!"}},{"$f":"AND('Building Envelope Calculator'!A128,\"f9W2tFIL3ZA=\")","v":{"$error":"#VALUE!"}},{"$f":"AND('Building Envelope Calculator'!B128,\"f9W2tFIL3ZE=\")","v":{"$error":"#VALUE!"}},{"$f":"AND('Building Envelope Calculator'!#REF!,\"f9W2tFIL3ZI=\")","v":{"$error":"#REF!"}},{"$f":"AND('Building Envelope Calculator'!A119,\"f9W2tFIL3ZM=\")","v":{"$error":"#VALUE!"}},{"$f":"AND('Building Envelope Calculator'!B119,\"f9W2tFIL3ZQ=\")","v":{"$error":"#VALUE!"}},{"$f":"AND('Building Envelope Calculator'!C119,\"f9W2tFIL3ZU=\")","v":{"$error":"#VALUE!"}},{"$f":"AND('Building Envelope Calculator'!D112,\"f9W2tFIL3ZY=\")","v":{"$error":"#VALUE!"}},{"$f":"AND('Building Envelope Calculator'!#REF!,\"f9W2tFIL3Zc=\")","v":{"$error":"#REF!"}},{"$f":"AND('Building Envelope Calculator'!A135,\"f9W2tFIL3Zg=\")","v":{"$error":"#VALUE!"}},{"$f":"AND('Building Envelope Calculator'!B135,\"f9W2tFIL3Zk=\")","v":{"$error":"#VALUE!"}},{"$f":"AND('Building Envelope Calculator'!L112,\"f9W2tFIL3Zo=\")","v":{"$error":"#VALUE!"}},{"$f":"AND('Building Envelope Calculator'!A143,\"f9W2tFIL3Zs=\")","v":{"$error":"#VALUE!"}},{"$f":"AND('Building Envelope Calculator'!#REF!,\"f9W2tFIL3Zw=\")","v":{"$error":"#REF!"}},{"$f":"IF('Building Envelope Calculator'!100:100,\"f9W2tFIL3Z0=\",0)","v":0},{"$f":"AND('Building Envelope Calculator'!A100,\"f9W2tFIL3Z4=\")","v":{"$error":"#VALUE!"}},{"$f":"AND('Building Envelope Calculator'!B100,\"f9W2tFIL3Z8=\")","v":{"$error":"#VALUE!"}},{"$f":"AND('Building Envelope Calculator'!C100,\"f9W2tFIL3aA=\")","v":{"$error":"#VALUE!"}},{"$f":"AND('Building Envelope Calculator'!D100,\"f9W2tFIL3aE=\")","v":{"$error":"#VALUE!"}},{"$f":"AND('Building Envelope Calculator'!E100,\"f9W2tFIL3aI=\")","v":{"$error":"#VALUE!"}},{"$f":"AND('Building Envelope Calculator'!F100,\"f9W2tFIL3aM=\")","v":{"$error":"#VALUE!"}},{"$f":"AND('Building Envelope Calculator'!A129,\"f9W2tFIL3aQ=\")","v":{"$error":"#VALUE!"}},{"$f":"AND('Building Envelope Calculator'!B129,\"f9W2tFIL3aU=\")","v":{"$error":"#VALUE!"}},{"$f":"AND('Building Envelope Calculator'!#REF!,\"f9W2tFIL3aY=\")","v":{"$error":"#REF!"}},{"$f":"AND('Building Envelope Calculator'!A114,\"f9W2tFIL3ac=\")","v":{"$error":"#VALUE!"}},{"$f":"AND('Building Envelope Calculator'!B114,\"f9W2tFIL3ag=\")","v":{"$error":"#VALUE!"}},{"$f":"AND('Building Envelope Calculator'!C114,\"f9W2tFIL3ak=\")","v":{"$error":"#VALUE!"}},{"$f":"AND('Building Envelope Calculator'!D113,\"f9W2tFIL3ao=\")","v":{"$error":"#VALUE!"}},{"$f":"AND('Building Envelope Calculator'!#REF!,\"f9W2tFIL3as=\")","v":{"$error":"#REF!"}},{"$f":"AND('Building Envelope Calculator'!A136,\"f9W2tFIL3aw=\")","v":{"$error":"#VALUE!"}},{"$f":"AND('Building Envelope Calculator'!B136,\"f9W2tFIL3a0=\")","v":{"$error":"#VALUE!"}},{"$f":"AND('Building Envelope Calculator'!L113,\"f9W2tFIL3a4=\")","v":{"$error":"#VALUE!"}},{"$f":"AND('Building Envelope Calculator'!M113,\"f9W2tFIL3a8=\")","v":{"$error":"#VALUE!"}},{"$f":"AND('Building Envelope Calculator'!N113,\"f9W2tFIL3bA=\")","v":{"$error":"#VALUE!"}},{"$f":"IF('Building Envelope Calculator'!101:101,\"f9W2tFIL3bE=\",0)","v":0},{"$f":"AND('Building Envelope Calculator'!A101,\"f9W2tFIL3bI=\")","v":{"$error":"#VALUE!"}},{"$f":"AND('Building Envelope Calculator'!B101,\"f9W2tFIL3bM=\")","v":{"$error":"#VALUE!"}},{"$f":"AND('Building Envelope Calculator'!C101,\"f9W2tFIL3bQ=\")","v":{"$error":"#VALUE!"}},{"$f":"AND('Building Envelope Calculator'!D101,\"f9W2tFIL3bU=\")","v":{"$error":"#VALUE!"}},{"$f":"AND('Building Envelope Calculator'!E101,\"f9W2tFIL3bY=\")","v":{"$error":"#VALUE!"}},{"$f":"AND('Building Envelope Calculator'!F101,\"f9W2tFIL3bc=\")","v":{"$error":"#VALUE!"}},{"$f":"AND('Building Envelope Calculator'!#REF!,\"f9W2tFIL3bg=\")","v":{"$error":"#REF!"}},{"$f":"AND('Building Envelope Calculator'!#REF!,\"f9W2tFIL3bk=\")","v":{"$error":"#REF!"}},{"$f":"AND('Building Envelope Calculator'!#REF!,\"f9W2tFIL3bo=\")","v":{"$error":"#REF!"}},{"$f":"AND('Building Envelope Calculator'!A115,\"f9W2tFIL3bs=\")","v":{"$error":"#VALUE!"}},{"$f":"AND('Building Envelope Calculator'!B115,\"f9W2tFIL3bw=\")","v":{"$error":"#VALUE!"}},{"$f":"AND('Building Envelope Calculator'!C115,\"f9W2tFIL3b0=\")","v":{"$error":"#VALUE!"}},{"$f":"AND('Building Envelope Calculator'!D119,\"f9W2tFIL3b4=\")","v":{"$error":"#VALUE!"}},{"$f":"AND('Building Envelope Calculator'!H114,\"f9W2tFIL3b8=\")","v":{"$error":"#VALUE!"}},{"$f":"AND('Building Envelope Calculator'!I114,\"f9W2tFIL3cA=\")","v":{"$error":"#VALUE!"}},{"$f":"AND('Building Envelope Calculator'!J114,\"f9W2tFIL3cE=\")","v":{"$error":"#VALUE!"}},{"$f":"AND('Building Envelope Calculator'!K114,\"f9W2tFIL3cI=\")","v":{"$error":"#VALUE!"}},{"$f":"AND('Building Envelope Calculator'!L114,\"f9W2tFIL3cM=\")","v":{"$error":"#VALUE!"}},{"$f":"AND('Building Envelope Calculator'!M114,\"f9W2tFIL3cQ=\")","v":{"$error":"#VALUE!"}},{"$f":"IF('Building Envelope Calculator'!102:102,\"f9W2tFIL3cU=\",0)","v":0},{"$f":"AND('Building Envelope Calculator'!A102,\"f9W2tFIL3cY=\")","v":{"$error":"#VALUE!"}},{"$f":"AND('Building Envelope Calculator'!B102,\"f9W2tFIL3cc=\")","v":{"$error":"#VALUE!"}},{"$f":"AND('Building Envelope Calculator'!C102,\"f9W2tFIL3cg=\")","v":{"$error":"#VALUE!"}},{"$f":"AND('Building Envelope Calculator'!D102,\"f9W2tFIL3ck=\")","v":{"$error":"#VALUE!"}},{"$f":"AND('Building Envelope Calculator'!E102,\"f9W2tFIL3co=\")","v":{"$error":"#VALUE!"}},{"$f":"AND('Building Envelope Calculator'!F102,\"f9W2tFIL3cs=\")","v":{"$error":"#VALUE!"}},{"$f":"AND('Building Envelope Calculator'!#REF!,\"f9W2tFIL3cw=\")","v":{"$error":"#REF!"}},{"$f":"AND('Building Envelope Calculator'!#REF!,\"f9W2tFIL3c0=\")","v":{"$error":"#REF!"}},{"$f":"AND('Building Envelope Calculator'!#REF!,\"f9W2tFIL3c4=\")","v":{"$error":"#REF!"}},{"$f":"AND('Building Envelope Calculator'!A116,\"f9W2tFIL3c8=\")","v":{"$error":"#VALUE!"}},{"$f":"AND('Building Envelope Calculator'!B116,\"f9W2tFIL3dA=\")","v":{"$error":"#VALUE!"}},{"$f":"AND('Building Envelope Calculator'!C116,\"f9W2tFIL3dE=\")","v":{"$error":"#VALUE!"}},{"$f":"AND('Building Envelope Calculator'!D114,\"f9W2tFIL3dI=\")","v":{"$error":"#VALUE!"}},{"$f":"AND('Building Envelope Calculator'!H115,\"f9W2tFIL3dM=\")","v":{"$error":"#VALUE!"}},{"$f":"AND('Building Envelope Calculator'!I115,\"f9W2tFIL3dQ=\")","v":{"$error":"#VALUE!"}},{"$f":"AND('Building Envelope Calculator'!J115,\"f9W2tFIL3dU=\")","v":{"$error":"#VALUE!"}},{"$f":"AND('Building Envelope Calculator'!K115,\"f9W2tFIL3dY=\")","v":{"$error":"#VALUE!"}},{"$f":"AND('Building Envelope Calculator'!L115,\"f9W2tFIL3dc=\")","v":{"$error":"#VALUE!"}},{"$f":"AND('Building Envelope Calculator'!M115,\"f9W2tFIL3dg=\")","v":{"$error":"#VALUE!"}},{"$f":"IF('Building Envelope Calculator'!103:103,\"f9W2tFIL3dk=\",0)","v":0},{"$f":"AND('Building Envelope Calculator'!A104,\"f9W2tFIL3do=\")","v":{"$error":"#VALUE!"}},{"$f":"AND('Building Envelope Calculator'!B104,\"f9W2tFIL3ds=\")","v":{"$error":"#VALUE!"}},{"$f":"AND('Building Envelope Calculator'!C104,\"f9W2tFIL3dw=\")","v":{"$error":"#VALUE!"}},{"$f":"AND('Building Envelope Calculator'!D103,\"f9W2tFIL3d0=\")","v":{"$error":"#VALUE!"}},{"$f":"AND('Building Envelope Calculator'!E103,\"f9W2tFIL3d4=\")","v":{"$error":"#VALUE!"}},{"$f":"AND('Building Envelope Calculator'!F103,\"f9W2tFIL3d8=\")","v":{"$error":"#VALUE!"}},{"$f":"AND('Building Envelope Calculator'!#REF!,\"f9W2tFIL3eA=\")","v":{"$error":"#REF!"}},{"$f":"AND('Building Envelope Calculator'!#REF!,\"f9W2tFIL3eE=\")","v":{"$error":"#REF!"}},{"$f":"AND('Building Envelope Calculator'!#REF!,\"f9W2tFIL3eI=\")","v":{"$error":"#REF!"}},{"$f":"AND('Building Envelope Calculator'!A118,\"f9W2tFIL3eM=\")","v":{"$error":"#VALUE!"}},{"$f":"AND('Building Envelope Calculator'!B118,\"f9W2tFIL3eQ=\")","v":{"$error":"#VALUE!"}},{"$f":"AND('Building Envelope Calculator'!C118,\"f9W2tFIL3eU=\")","v":{"$error":"#VALUE!"}},{"$f":"AND('Building Envelope Calculator'!D115,\"f9W2tFIL3eY=\")","v":{"$error":"#VALUE!"}},{"$f":"AND('Building Envelope Calculator'!H116,\"f9W2tFIL3ec=\")","v":{"$error":"#VALUE!"}},{"$f":"AND('Building Envelope Calculator'!I116,\"f9W2tFIL3eg=\")","v":{"$error":"#VALUE!"}},{"$f":"AND('Building Envelope Calculator'!J116,\"f9W2tFIL3ek=\")","v":{"$error":"#VALUE!"}},{"$f":"AND('Building Envelope Calculator'!K116,\"f9W2tFIL3eo=\")","v":{"$error":"#VALUE!"}},{"$f":"AND('Building Envelope Calculator'!L116,\"f9W2tFIL3es=\")","v":{"$error":"#VALUE!"}},{"$f":"AND('Building Envelope Calculator'!M116,\"f9W2tFIL3ew=\")","v":{"$error":"#VALUE!"}},{"$f":"IF('Building Envelope Calculator'!104:104,\"f9W2tFIL3e0=\",0)","v":0},{"$f":"AND('Building Envelope Calculator'!A107,\"f9W2tFIL3e4=\")","v":{"$error":"#VALUE!"}},{"$f":"AND('Building Envelope Calculator'!B107,\"f9W2tFIL3e8=\")","v":{"$error":"#VALUE!"}},{"$f":"AND('Building Envelope Calculator'!C107,\"f9W2tFIL3fA=\")","v":{"$error":"#VALUE!"}},{"$f":"AND('Building Envelope Calculator'!D104,\"f9W2tFIL3fE=\")","v":{"$error":"#VALUE!"}},{"$f":"AND('Building Envelope Calculator'!E104,\"f9W2tFIL3fI=\")","v":{"$error":"#VALUE!"}},{"$f":"AND('Building Envelope Calculator'!F104,\"f9W2tFIL3fM=\")","v":{"$error":"#VALUE!"}},{"$f":"AND('Building Envelope Calculator'!#REF!,\"f9W2tFIL3fQ=\")","v":{"$error":"#REF!"}},{"$f":"AND('Building Envelope Calculator'!#REF!,\"f9W2tFIL3fU=\")","v":{"$error":"#REF!"}},{"$f":"AND('Building Envelope Calculator'!#REF!,\"f9W2tFIL3fY=\")","v":{"$error":"#REF!"}},{"$f":"AND('Building Envelope Calculator'!A121,\"f9W2tFIL3fc=\")","v":{"$error":"#VALUE!"}},{"$f":"AND('Building Envelope Calculator'!B121,\"f9W2tFIL3fg=\")","v":{"$error":"#VALUE!"}},{"$f":"AND('Building Envelope Calculator'!C121,\"f9W2tFIL3fk=\")","v":{"$error":"#VALUE!"}},{"$f":"AND('Building Envelope Calculator'!D121,\"f9W2tFIL3fo=\")","v":{"$error":"#VALUE!"}},{"$f":"AND('Building Envelope Calculator'!H117,\"f9W2tFIL3fs=\")","v":{"$error":"#VALUE!"}},{"$f":"AND('Building Envelope Calculator'!I117,\"f9W2tFIL3fw=\")","v":{"$error":"#VALUE!"}},{"$f":"AND('Building Envelope Calculator'!J117,\"f9W2tFIL3f0=\")","v":{"$error":"#VALUE!"}},{"$f":"AND('Building Envelope Calculator'!K117,\"f9W2tFIL3f4=\")","v":{"$error":"#VALUE!"}},{"$f":"AND('Building Envelope Calculator'!L117,\"f9W2tFIL3f8=\")","v":{"$error":"#VALUE!"}}]
[{"$f":"AND('Building Envelope Calculator'!M117,\"SjzdAWq4kAA=\")","v":{"$error":"#VALUE!"}},{"$f":"IF('Building Envelope Calculator'!105:105,\"SjzdAWq4kAE=\",0)","v":0},{"$f":"AND('Building Envelope Calculator'!A108,\"SjzdAWq4kAI=\")","v":{"$error":"#VALUE!"}},{"$f":"AND('Building Envelope Calculator'!B108,\"SjzdAWq4kAM=\")","v":{"$error":"#VALUE!"}},{"$f":"AND('Building Envelope Calculator'!C108,\"SjzdAWq4kAQ=\")","v":{"$error":"#VALUE!"}},{"$f":"AND('Building Envelope Calculator'!D105,\"SjzdAWq4kAU=\")","v":{"$error":"#VALUE!"}},{"$f":"AND('Building Envelope Calculator'!E105,\"SjzdAWq4kAY=\")","v":{"$error":"#VALUE!"}},{"$f":"AND('Building Envelope Calculator'!F105,\"SjzdAWq4kAc=\")","v":{"$error":"#VALUE!"}},{"$f":"AND('Building Envelope Calculator'!#REF!,\"SjzdAWq4kAg=\")","v":{"$error":"#REF!"}},{"$f":"AND('Building Envelope Calculator'!#REF!,\"SjzdAWq4kAk=\")","v":{"$error":"#REF!"}},{"$f":"AND('Building Envelope Calculator'!#REF!,\"SjzdAWq4kAo=\")","v":{"$error":"#REF!"}},{"$f":"AND('Building Envelope Calculator'!A122,\"SjzdAWq4kAs=\")","v":{"$error":"#VALUE!"}},{"$f":"AND('Building Envelope Calculator'!B122,\"SjzdAWq4kAw=\")","v":{"$error":"#VALUE!"}},{"$f":"AND('Building Envelope Calculator'!#REF!,\"SjzdAWq4kA0=\")","v":{"$error":"#REF!"}},{"$f":"AND('Building Envelope Calculator'!D118,\"SjzdAWq4kA4=\")","v":{"$error":"#VALUE!"}},{"$f":"AND('Building Envelope Calculator'!H118,\"SjzdAWq4kA8=\")","v":{"$error":"#VALUE!"}},{"$f":"AND('Building Envelope Calculator'!I118,\"SjzdAWq4kBA=\")","v":{"$error":"#VALUE!"}},{"$f":"AND('Building Envelope Calculator'!J118,\"SjzdAWq4kBE=\")","v":{"$error":"#VALUE!"}},{"$f":"AND('Building Envelope Calculator'!K118,\"SjzdAWq4kBI=\")","v":{"$error":"#VALUE!"}},{"$f":"AND('Building Envelope Calculator'!L118,\"SjzdAWq4kBM=\")","v":{"$error":"#VALUE!"}},{"$f":"AND('Building Envelope Calculator'!M118,\"SjzdAWq4kBQ=\")","v":{"$error":"#VALUE!"}},{"$f":"IF('Building Envelope Calculator'!107:107,\"SjzdAWq4kBU=\",0)","v":0},{"$f":"AND('Building Envelope Calculator'!A109,\"SjzdAWq4kBY=\")","v":{"$error":"#VALUE!"}},{"$f":"AND('Building Envelope Calculator'!B109,\"SjzdAWq4kBc=\")","v":{"$error":"#VALUE!"}},{"$f":"AND('Building Envelope Calculator'!C109,\"SjzdAWq4kBg=\")","v":{"$error":"#VALUE!"}},{"$f":"AND('Building Envelope Calculator'!D107,\"SjzdAWq4kBk=\")","v":{"$error":"#VALUE!"}},{"$f":"AND('Building Envelope Calculator'!E107,\"SjzdAWq4kBo=\")","v":{"$error":"#VALUE!"}},{"$f":"AND('Building Envelope Calculator'!F107,\"SjzdAWq4kBs=\")","v":{"$error":"#VALUE!"}},{"$f":"AND('Building Envelope Calculator'!#REF!,\"SjzdAWq4kBw=\")","v":{"$error":"#REF!"}},{"$f":"AND('Building Envelope Calculator'!#REF!,\"SjzdAWq4kB0=\")","v":{"$error":"#REF!"}},{"$f":"AND('Building Envelope Calculator'!#REF!,\"SjzdAWq4kB4=\")","v":{"$error":"#REF!"}},{"$f":"AND('Building Envelope Calculator'!A123,\"SjzdAWq4kB8=\")","v":{"$error":"#VALUE!"}},{"$f":"AND('Building Envelope Calculator'!B123,\"SjzdAWq4kCA=\")","v":{"$error":"#VALUE!"}},{"$f":"AND('Building Envelope Calculator'!C122,\"SjzdAWq4kCE=\")","v":{"$error":"#VALUE!"}},{"$f":"AND('Building Envelope Calculator'!E121,\"SjzdAWq4kCI=\")","v":{"$error":"#VALUE!"}},{"$f":"AND('Building Envelope Calculator'!H119,\"SjzdAWq4kCM=\")","v":{"$error":"#VALUE!"}},{"$f":"AND('Building Envelope Calculator'!I119,\"SjzdAWq4kCQ=\")","v":{"$error":"#VALUE!"}},{"$f":"AND('Building Envelope Calculator'!J119,\"SjzdAWq4kCU=\")","v":{"$error":"#VALUE!"}},{"$f":"AND('Building Envelope Calculator'!K119,\"SjzdAWq4kCY=\")","v":{"$error":"#VALUE!"}},{"$f":"AND('Building Envelope Calculator'!L119,\"SjzdAWq4kCc=\")","v":{"$error":"#VALUE!"}},{"$f":"AND('Building Envelope Calculator'!M119,\"SjzdAWq4kCg=\")","v":{"$error":"#VALUE!"}},{"$f":"IF('Building Envelope Calculator'!122:122,\"SjzdAWq4kCk=\",0)","v":0},{"$f":"AND('Building Envelope Calculator'!#REF!,\"SjzdAWq4kCo=\")","v":{"$error":"#REF!"}},{"$f":"AND('Building Envelope Calculator'!#REF!,\"SjzdAWq4kCs=\")","v":{"$error":"#REF!"}},{"$f":"AND('Building Envelope Calculator'!C125,\"SjzdAWq4kCw=\")","v":{"$error":"#VALUE!"}},{"$f":"AND('Building Envelope Calculator'!D123,\"SjzdAWq4kC0=\")","v":{"$error":"#VALUE!"}},{"$f":"AND('Building Envelope Calculator'!E123,\"SjzdAWq4kC4=\")","v":{"$error":"#VALUE!"}},{"$f":"AND('Building Envelope Calculator'!F122,\"SjzdAWq4kC8=\")","v":{"$error":"#VALUE!"}},{"$f":"AND('Building Envelope Calculator'!G122,\"SjzdAWq4kDA=\")","v":{"$error":"#VALUE!"}},{"$f":"AND('Building Envelope Calculator'!H122,\"SjzdAWq4kDE=\")","v":{"$error":"#VALUE!"}},{"$f":"AND('Building Envelope Calculator'!I122,\"SjzdAWq4kDI=\")","v":{"$error":"#VALUE!"}},{"$f":"AND('Building Envelope Calculator'!J122,\"SjzdAWq4kDM=\")","v":{"$error":"#VALUE!"}},{"$f":"AND('Building Envelope Calculator'!K122,\"SjzdAWq4kDQ=\")","v":{"$error":"#VALUE!"}},{"$f":"AND('Building Envelope Calculator'!L122,\"SjzdAWq4kDU=\")","v":{"$error":"#VALUE!"}},{"$f":"AND('Building Envelope Calculator'!M122,\"SjzdAWq4kDY=\")","v":{"$error":"#VALUE!"}},{"$f":"AND('Building Envelope Calculator'!N122,\"SjzdAWq4kDc=\")","v":{"$error":"#VALUE!"}},{"$f":"AND('Building Envelope Calculator'!O122,\"SjzdAWq4kDg=\")","v":{"$error":"#VALUE!"}},{"$f":"AND('Building Envelope Calculator'!P122,\"SjzdAWq4kDk=\")","v":{"$error":"#VALUE!"}},{"$f":"AND('Building Envelope Calculator'!Q122,\"SjzdAWq4kDo=\")","v":{"$error":"#VALUE!"}},{"$f":"AND('Building Envelope Calculator'!R122,\"SjzdAWq4kDs=\")","v":{"$error":"#VALUE!"}},{"$f":"AND('Building Envelope Calculator'!S122,\"SjzdAWq4kDw=\")","v":{"$error":"#VALUE!"}},{"$f":"IF('Building Envelope Calculator'!123:123,\"SjzdAWq4kD0=\",0)","v":0},{"$f":"AND('Building Envelope Calculator'!A146,\"SjzdAWq4kD4=\")","v":{"$error":"#VALUE!"}},{"$f":"AND('Building Envelope Calculator'!B146,\"SjzdAWq4kD8=\")","v":{"$error":"#VALUE!"}},{"$f":"AND('Building Envelope Calculator'!C146,\"SjzdAWq4kEA=\")","v":{"$error":"#VALUE!"}},{"$f":"AND('Building Envelope Calculator'!D146,\"SjzdAWq4kEE=\")","v":{"$error":"#VALUE!"}},{"$f":"AND('Building Envelope Calculator'!E146,\"SjzdAWq4kEI=\")","v":{"$error":"#VALUE!"}},{"$f":"AND('Building Envelope Calculator'!F146,\"SjzdAWq4kEM=\")","v":{"$error":"#VALUE!"}},{"$f":"AND('Building Envelope Calculator'!G146,\"SjzdAWq4kEQ=\")","v":{"$error":"#VALUE!"}},{"$f":"AND('Building Envelope Calculator'!H146,\"SjzdAWq4kEU=\")","v":{"$error":"#VALUE!"}},{"$f":"AND('Building Envelope Calculator'!I146,\"SjzdAWq4kEY=\")","v":{"$error":"#VALUE!"}},{"$f":"AND('Building Envelope Calculator'!J123,\"SjzdAWq4kEc=\")","v":{"$error":"#VALUE!"}},{"$f":"AND('Building Envelope Calculator'!K123,\"SjzdAWq4kEg=\")","v":{"$error":"#VALUE!"}},{"$f":"AND('Building Envelope Calculator'!L123,\"SjzdAWq4kEk=\")","v":{"$error":"#VALUE!"}},{"$f":"AND('Building Envelope Calculator'!M123,\"SjzdAWq4kEo=\")","v":{"$error":"#VALUE!"}},{"$f":"AND('Building Envelope Calculator'!N123,\"SjzdAWq4kEs=\")","v":{"$error":"#VALUE!"}},{"$f":"AND('Building Envelope Calculator'!O123,\"SjzdAWq4kEw=\")","v":{"$error":"#VALUE!"}},{"$f":"AND('Building Envelope Calculator'!P123,\"SjzdAWq4kE0=\")","v":{"$error":"#VALUE!"}},{"$f":"AND('Building Envelope Calculator'!Q123,\"SjzdAWq4kE4=\")","v":{"$error":"#VALUE!"}},{"$f":"AND('Building Envelope Calculator'!R123,\"SjzdAWq4kE8=\")","v":{"$error":"#VALUE!"}},{"$f":"AND('Building Envelope Calculator'!S123,\"SjzdAWq4kFA=\")","v":{"$error":"#VALUE!"}},{"$f":"IF('Building Envelope Calculator'!124:124,\"SjzdAWq4kFE=\",0)","v":0},{"$f":"AND('Building Envelope Calculator'!A147,\"SjzdAWq4kFI=\")","v":{"$error":"#VALUE!"}},{"$f":"AND('Building Envelope Calculator'!B147,\"SjzdAWq4kFM=\")","v":{"$error":"#VALUE!"}},{"$f":"AND('Building Envelope Calculator'!C147,\"SjzdAWq4kFQ=\")","v":{"$error":"#VALUE!"}},{"$f":"AND('Building Envelope Calculator'!D147,\"SjzdAWq4kFU=\")","v":{"$error":"#VALUE!"}},{"$f":"AND('Building Envelope Calculator'!B140,\"SjzdAWq4kFY=\")","v":{"$error":"#VALUE!"}},{"$f":"AND('Building Envelope Calculator'!F147,\"SjzdAWq4kFc=\")","v":{"$error":"#VALUE!"}},{"$f":"AND('Building Envelope Calculator'!G147,\"SjzdAWq4kFg=\")","v":{"$error":"#VALUE!"}},{"$f":"AND('Building Envelope Calculator'!H147,\"SjzdAWq4kFk=\")","v":{"$error":"#VALUE!"}},{"$f":"AND('Building Envelope Calculator'!I147,\"SjzdAWq4kFo=\")","v":{"$error":"#VALUE!"}},{"$f":"AND('Building Envelope Calculator'!J124,\"SjzdAWq4kFs=\")","v":{"$error":"#VALUE!"}},{"$f":"AND('Building Envelope Calculator'!K124,\"SjzdAWq4kFw=\")","v":{"$error":"#VALUE!"}},{"$f":"AND('Building Envelope Calculator'!L124,\"SjzdAWq4kF0=\")","v":{"$error":"#VALUE!"}},{"$f":"AND('Building Envelope Calculator'!M124,\"SjzdAWq4kF4=\")","v":{"$error":"#VALUE!"}},{"$f":"AND('Building Envelope Calculator'!N124,\"SjzdAWq4kF8=\")","v":{"$error":"#VALUE!"}},{"$f":"AND('Building Envelope Calculator'!O124,\"SjzdAWq4kGA=\")","v":{"$error":"#VALUE!"}},{"$f":"AND('Building Envelope Calculator'!P124,\"SjzdAWq4kGE=\")","v":{"$error":"#VALUE!"}},{"$f":"AND('Building Envelope Calculator'!Q124,\"SjzdAWq4kGI=\")","v":{"$error":"#VALUE!"}},{"$f":"AND('Building Envelope Calculator'!R124,\"SjzdAWq4kGM=\")","v":{"$error":"#VALUE!"}},{"$f":"AND('Building Envelope Calculator'!S124,\"SjzdAWq4kGQ=\")","v":{"$error":"#VALUE!"}},{"$f":"IF('Building Envelope Calculator'!125:125,\"SjzdAWq4kGU=\",0)","v":0},{"$f":"AND('Building Envelope Calculator'!A148,\"SjzdAWq4kGY=\")","v":{"$error":"#VALUE!"}},{"$f":"AND('Building Envelope Calculator'!B148,\"SjzdAWq4kGc=\")","v":{"$error":"#VALUE!"}},{"$f":"AND('Building Envelope Calculator'!C148,\"SjzdAWq4kGg=\")","v":{"$error":"#VALUE!"}},{"$f":"AND('Building Envelope Calculator'!D148,\"SjzdAWq4kGk=\")","v":{"$error":"#VALUE!"}},{"$f":"AND('Building Envelope Calculator'!B141,\"SjzdAWq4kGo=\")","v":{"$error":"#VALUE!"}},{"$f":"AND('Building Envelope Calculator'!F148,\"SjzdAWq4kGs=\")","v":{"$error":"#VALUE!"}},{"$f":"AND('Building Envelope Calculator'!G148,\"SjzdAWq4kGw=\")","v":{"$error":"#VALUE!"}},{"$f":"AND('Building Envelope Calculator'!H148,\"SjzdAWq4kG0=\")","v":{"$error":"#VALUE!"}},{"$f":"AND('Building Envelope Calculator'!I148,\"SjzdAWq4kG4=\")","v":{"$error":"#VALUE!"}},{"$f":"AND('Building Envelope Calculator'!J125,\"SjzdAWq4kG8=\")","v":{"$error":"#VALUE!"}},{"$f":"AND('Building Envelope Calculator'!K125,\"SjzdAWq4kHA=\")","v":{"$error":"#VALUE!"}},{"$f":"AND('Building Envelope Calculator'!L125,\"SjzdAWq4kHE=\")","v":{"$error":"#VALUE!"}},{"$f":"AND('Building Envelope Calculator'!M125,\"SjzdAWq4kHI=\")","v":{"$error":"#VALUE!"}},{"$f":"AND('Building Envelope Calculator'!N125,\"SjzdAWq4kHM=\")","v":{"$error":"#VALUE!"}},{"$f":"AND('Building Envelope Calculator'!O125,\"SjzdAWq4kHQ=\")","v":{"$error":"#VALUE!"}},{"$f":"AND('Building Envelope Calculator'!P125,\"SjzdAWq4kHU=\")","v":{"$error":"#VALUE!"}},{"$f":"AND('Building Envelope Calculator'!Q125,\"SjzdAWq4kHY=\")","v":{"$error":"#VALUE!"}},{"$f":"AND('Building Envelope Calculator'!R125,\"SjzdAWq4kHc=\")","v":{"$error":"#VALUE!"}},{"$f":"AND('Building Envelope Calculator'!S125,\"SjzdAWq4kHg=\")","v":{"$error":"#VALUE!"}},{"$f":"IF('Building Envelope Calculator'!146:146,\"SjzdAWq4kHk=\",0)","v":0},{"$f":"AND('Building Envelope Calculator'!A150,\"SjzdAWq4kHo=\")","v":{"$error":"#VALUE!"}},{"$f":"AND('Building Envelope Calculator'!B150,\"SjzdAWq4kHs=\")","v":{"$error":"#VALUE!"}},{"$f":"AND('Building Envelope Calculator'!C150,\"SjzdAWq4kHw=\")","v":{"$error":"#VALUE!"}},{"$f":"AND('Building Envelope Calculator'!D150,\"SjzdAWq4kH0=\")","v":{"$error":"#VALUE!"}},{"$f":"AND('Building Envelope Calculator'!B143,\"SjzdAWq4kH4=\")","v":{"$error":"#VALUE!"}},{"$f":"AND('Building Envelope Calculator'!F150,\"SjzdAWq4kH8=\")","v":{"$error":"#VALUE!"}},{"$f":"AND('Building Envelope Calculator'!G150,\"SjzdAWq4kIA=\")","v":{"$error":"#VALUE!"}},{"$f":"AND('Building Envelope Calculator'!H150,\"SjzdAWq4kIE=\")","v":{"$error":"#VALUE!"}},{"$f":"AND('Building Envelope Calculator'!I150,\"SjzdAWq4kII=\")","v":{"$error":"#VALUE!"}},{"$f":"AND('Building Envelope Calculator'!J146,\"SjzdAWq4kIM=\")","v":{"$error":"#VALUE!"}},{"$f":"AND('Building Envelope Calculator'!K146,\"SjzdAWq4kIQ=\")","v":{"$error":"#VALUE!"}},{"$f":"AND('Building Envelope Calculator'!L146,\"SjzdAWq4kIU=\")","v":{"$error":"#VALUE!"}},{"$f":"AND('Building Envelope Calculator'!M146,\"SjzdAWq4kIY=\")","v":{"$error":"#VALUE!"}},{"$f":"AND('Building Envelope Calculator'!N146,\"SjzdAWq4kIc=\")","v":{"$error":"#VALUE!"}},{"$f":"AND('Building Envelope Calculator'!O146,\"SjzdAWq4kIg=\")","v":{"$error":"#VALUE!"}},{"$f":"AND('Building Envelope Calculator'!P146,\"SjzdAWq4kIk=\")","v":{"$error":"#VALUE!"}},{"$f":"AND('Building Envelope Calculator'!Q146,\"SjzdAWq4kIo=\")","v":{"$error":"#VALUE!"}},{"$f":"AND('Building Envelope Calculator'!R146,\"SjzdAWq4kIs=\")","v":{"$error":"#VALUE!"}},{"$f":"AND('Building Envelope Calculator'!S146,\"SjzdAWq4kIw=\")","v":{"$error":"#VALUE!"}},{"$f":"IF('Building Envelope Calculator'!147:147,\"SjzdAWq4kI0=\",0)","v":0},{"$f":"AND('Building Envelope Calculator'!A151,\"SjzdAWq4kI4=\")","v":{"$error":"#VALUE!"}},{"$f":"AND('Building Envelope Calculator'!B151,\"SjzdAWq4kI8=\")","v":{"$error":"#VALUE!"}},{"$f":"AND('Building Envelope Calculator'!C151,\"SjzdAWq4kJA=\")","v":{"$error":"#VALUE!"}},{"$f":"AND('Building Envelope Calculator'!D151,\"SjzdAWq4kJE=\")","v":{"$error":"#VALUE!"}},{"$f":"AND('Building Envelope Calculator'!E151,\"SjzdAWq4kJI=\")","v":{"$error":"#VALUE!"}},{"$f":"AND('Building Envelope Calculator'!#REF!,\"SjzdAWq4kJM=\")","v":{"$error":"#REF!"}},{"$f":"AND('Building Envelope Calculator'!#REF!,\"SjzdAWq4kJQ=\")","v":{"$error":"#REF!"}},{"$f":"AND('Building Envelope Calculator'!#REF!,\"SjzdAWq4kJU=\")","v":{"$error":"#REF!"}},{"$f":"AND('Building Envelope Calculator'!#REF!,\"SjzdAWq4kJY=\")","v":{"$error":"#REF!"}},{"$f":"AND('Building Envelope Calculator'!J147,\"SjzdAWq4kJc=\")","v":{"$error":"#VALUE!"}},{"$f":"AND('Building Envelope Calculator'!K147,\"SjzdAWq4kJg=\")","v":{"$error":"#VALUE!"}},{"$f":"AND('Building Envelope Calculator'!L147,\"SjzdAWq4kJk=\")","v":{"$error":"#VALUE!"}},{"$f":"AND('Building Envelope Calculator'!M147,\"SjzdAWq4kJo=\")","v":{"$error":"#VALUE!"}},{"$f":"AND('Building Envelope Calculator'!N147,\"SjzdAWq4kJs=\")","v":{"$error":"#VALUE!"}},{"$f":"AND('Building Envelope Calculator'!O147,\"SjzdAWq4kJw=\")","v":{"$error":"#VALUE!"}},{"$f":"AND('Building Envelope Calculator'!P147,\"SjzdAWq4kJ0=\")","v":{"$error":"#VALUE!"}},{"$f":"AND('Building Envelope Calculator'!Q147,\"SjzdAWq4kJ4=\")","v":{"$error":"#VALUE!"}},{"$f":"AND('Building Envelope Calculator'!R147,\"SjzdAWq4kJ8=\")","v":{"$error":"#VALUE!"}},{"$f":"AND('Building Envelope Calculator'!S147,\"SjzdAWq4kKA=\")","v":{"$error":"#VALUE!"}},{"$f":"IF('Building Envelope Calculator'!148:148,\"SjzdAWq4kKE=\",0)","v":0},{"$f":"AND('Building Envelope Calculator'!A152,\"SjzdAWq4kKI=\")","v":{"$error":"#VALUE!"}},{"$f":"AND('Building Envelope Calculator'!B152,\"SjzdAWq4kKM=\")","v":{"$error":"#VALUE!"}},{"$f":"AND('Building Envelope Calculator'!C152,\"SjzdAWq4kKQ=\")","v":{"$error":"#VALUE!"}},{"$f":"AND('Building Envelope Calculator'!#REF!,\"SjzdAWq4kKU=\")","v":{"$error":"#REF!"}},{"$f":"AND('Building Envelope Calculator'!#REF!,\"SjzdAWq4kKY=\")","v":{"$error":"#REF!"}},{"$f":"AND('Building Envelope Calculator'!#REF!,\"SjzdAWq4kKc=\")","v":{"$error":"#REF!"}},{"$f":"AND('Building Envelope Calculator'!#REF!,\"SjzdAWq4kKg=\")","v":{"$error":"#REF!"}},{"$f":"AND('Building Envelope Calculator'!#REF!,\"SjzdAWq4kKk=\")","v":{"$error":"#REF!"}},{"$f":"AND('Building Envelope Calculator'!#REF!,\"SjzdAWq4kKo=\")","v":{"$error":"#REF!"}},{"$f":"AND('Building Envelope Calculator'!J148,\"SjzdAWq4kKs=\")","v":{"$error":"#VALUE!"}},{"$f":"AND('Building Envelope Calculator'!K148,\"SjzdAWq4kKw=\")","v":{"$error":"#VALUE!"}},{"$f":"AND('Building Envelope Calculator'!L148,\"SjzdAWq4kK0=\")","v":{"$error":"#VALUE!"}},{"$f":"AND('Building Envelope Calculator'!M148,\"SjzdAWq4kK4=\")","v":{"$error":"#VALUE!"}},{"$f":"AND('Building Envelope Calculator'!N148,\"SjzdAWq4kK8=\")","v":{"$error":"#VALUE!"}},{"$f":"AND('Building Envelope Calculator'!O148,\"SjzdAWq4kLA=\")","v":{"$error":"#VALUE!"}},{"$f":"AND('Building Envelope Calculator'!P148,\"SjzdAWq4kLE=\")","v":{"$error":"#VALUE!"}},{"$f":"AND('Building Envelope Calculator'!Q148,\"SjzdAWq4kLI=\")","v":{"$error":"#VALUE!"}},{"$f":"AND('Building Envelope Calculator'!R148,\"SjzdAWq4kLM=\")","v":{"$error":"#VALUE!"}},{"$f":"AND('Building Envelope Calculator'!S148,\"SjzdAWq4kLQ=\")","v":{"$error":"#VALUE!"}},{"$f":"IF('Building Envelope Calculator'!150:150,\"SjzdAWq4kLU=\",0)","v":0},{"$f":"AND('Building Envelope Calculator'!A153,\"SjzdAWq4kLY=\")","v":{"$error":"#VALUE!"}},{"$f":"AND('Building Envelope Calculator'!B153,\"SjzdAWq4kLc=\")","v":{"$error":"#VALUE!"}},{"$f":"AND('Building Envelope Calculator'!C153,\"SjzdAWq4kLg=\")","v":{"$error":"#VALUE!"}},{"$f":"AND('Building Envelope Calculator'!#REF!,\"SjzdAWq4kLk=\")","v":{"$error":"#REF!"}},{"$f":"AND('Building Envelope Calculator'!#REF!,\"SjzdAWq4kLo=\")","v":{"$error":"#REF!"}},{"$f":"AND('Building Envelope Calculator'!#REF!,\"SjzdAWq4kLs=\")","v":{"$error":"#REF!"}},{"$f":"AND('Building Envelope Calculator'!#REF!,\"SjzdAWq4kLw=\")","v":{"$error":"#REF!"}},{"$f":"AND('Building Envelope Calculator'!#REF!,\"SjzdAWq4kL0=\")","v":{"$error":"#REF!"}},{"$f":"AND('Building Envelope Calculator'!#REF!,\"SjzdAWq4kL4=\")","v":{"$error":"#REF!"}},{"$f":"AND('Building Envelope Calculator'!J150,\"SjzdAWq4kL8=\")","v":{"$error":"#VALUE!"}},{"$f":"AND('Building Envelope Calculator'!K150,\"SjzdAWq4kMA=\")","v":{"$error":"#VALUE!"}},{"$f":"AND('Building Envelope Calculator'!L150,\"SjzdAWq4kME=\")","v":{"$error":"#VALUE!"}},{"$f":"AND('Building Envelope Calculator'!M150,\"SjzdAWq4kMI=\")","v":{"$error":"#VALUE!"}},{"$f":"AND('Building Envelope Calculator'!N150,\"SjzdAWq4kMM=\")","v":{"$error":"#VALUE!"}},{"$f":"AND('Building Envelope Calculator'!O150,\"SjzdAWq4kMQ=\")","v":{"$error":"#VALUE!"}},{"$f":"AND('Building Envelope Calculator'!P150,\"SjzdAWq4kMU=\")","v":{"$error":"#VALUE!"}},{"$f":"AND('Building Envelope Calculator'!Q150,\"SjzdAWq4kMY=\")","v":{"$error":"#VALUE!"}},{"$f":"AND('Building Envelope Calculator'!R150,\"SjzdAWq4kMc=\")","v":{"$error":"#VALUE!"}},{"$f":"AND('Building Envelope Calculator'!S150,\"SjzdAWq4kMg=\")","v":{"$error":"#VALUE!"}},{"$f":"IF('Building Envelope Calculator'!151:151,\"SjzdAWq4kMk=\",0)","v":0},{"$f":"AND('Building Envelope Calculator'!A154,\"SjzdAWq4kMo=\")","v":{"$error":"#VALUE!"}},{"$f":"AND('Building Envelope Calculator'!B154,\"SjzdAWq4kMs=\")","v":{"$error":"#VALUE!"}},{"$f":"AND('Building Envelope Calculator'!C154,\"SjzdAWq4kMw=\")","v":{"$error":"#VALUE!"}},{"$f":"AND('Building Envelope Calculator'!D152,\"SjzdAWq4kM0=\")","v":{"$error":"#VALUE!"}},{"$f":"AND('Building Envelope Calculator'!E152,\"SjzdAWq4kM4=\")","v":{"$error":"#VALUE!"}},{"$f":"AND('Building Envelope Calculator'!F151,\"SjzdAWq4kM8=\")","v":{"$error":"#VALUE!"}},{"$f":"AND('Building Envelope Calculator'!G151,\"SjzdAWq4kNA=\")","v":{"$error":"#VALUE!"}},{"$f":"AND('Building Envelope Calculator'!H151,\"SjzdAWq4kNE=\")","v":{"$error":"#VALUE!"}},{"$f":"AND('Building Envelope Calculator'!I151,\"SjzdAWq4kNI=\")","v":{"$error":"#VALUE!"}},{"$f":"AND('Building Envelope Calculator'!J151,\"SjzdAWq4kNM=\")","v":{"$error":"#VALUE!"}},{"$f":"AND('Building Envelope Calculator'!K151,\"SjzdAWq4kNQ=\")","v":{"$error":"#VALUE!"}},{"$f":"AND('Building Envelope Calculator'!L151,\"SjzdAWq4kNU=\")","v":{"$error":"#VALUE!"}},{"$f":"AND('Building Envelope Calculator'!M151,\"SjzdAWq4kNY=\")","v":{"$error":"#VALUE!"}},{"$f":"AND('Building Envelope Calculator'!N151,\"SjzdAWq4kNc=\")","v":{"$error":"#VALUE!"}},{"$f":"AND('Building Envelope Calculator'!O151,\"SjzdAWq4kNg=\")","v":{"$error":"#VALUE!"}},{"$f":"AND('Building Envelope Calculator'!P151,\"SjzdAWq4kNk=\")","v":{"$error":"#VALUE!"}},{"$f":"AND('Building Envelope Calculator'!Q151,\"SjzdAWq4kNo=\")","v":{"$error":"#VALUE!"}},{"$f":"AND('Building Envelope Calculator'!R151,\"SjzdAWq4kNs=\")","v":{"$error":"#VALUE!"}},{"$f":"AND('Building Envelope Calculator'!S151,\"SjzdAWq4kNw=\")","v":{"$error":"#VALUE!"}},{"$f":"IF('Building Envelope Calculator'!152:152,\"SjzdAWq4kN0=\",0)","v":0},{"$f":"AND('Building Envelope Calculator'!A155,\"SjzdAWq4kN4=\")","v":{"$error":"#VALUE!"}},{"$f":"AND('Building Envelope Calculator'!B155,\"SjzdAWq4kN8=\")","v":{"$error":"#VALUE!"}},{"$f":"AND('Building Envelope Calculator'!C155,\"SjzdAWq4kOA=\")","v":{"$error":"#VALUE!"}},{"$f":"AND('Building Envelope Calculator'!D153,\"SjzdAWq4kOE=\")","v":{"$error":"#VALUE!"}},{"$f":"AND('Building Envelope Calculator'!E153,\"SjzdAWq4kOI=\")","v":{"$error":"#VALUE!"}},{"$f":"AND('Building Envelope Calculator'!F152,\"SjzdAWq4kOM=\")","v":{"$error":"#VALUE!"}},{"$f":"AND('Building Envelope Calculator'!G152,\"SjzdAWq4kOQ=\")","v":{"$error":"#VALUE!"}},{"$f":"AND('Building Envelope Calculator'!H152,\"SjzdAWq4kOU=\")","v":{"$error":"#VALUE!"}},{"$f":"AND('Building Envelope Calculator'!I152,\"SjzdAWq4kOY=\")","v":{"$error":"#VALUE!"}},{"$f":"AND('Building Envelope Calculator'!J152,\"SjzdAWq4kOc=\")","v":{"$error":"#VALUE!"}},{"$f":"AND('Building Envelope Calculator'!K152,\"SjzdAWq4kOg=\")","v":{"$error":"#VALUE!"}},{"$f":"AND('Building Envelope Calculator'!L152,\"SjzdAWq4kOk=\")","v":{"$error":"#VALUE!"}},{"$f":"AND('Building Envelope Calculator'!M152,\"SjzdAWq4kOo=\")","v":{"$error":"#VALUE!"}},{"$f":"AND('Building Envelope Calculator'!N152,\"SjzdAWq4kOs=\")","v":{"$error":"#VALUE!"}},{"$f":"AND('Building Envelope Calculator'!O152,\"SjzdAWq4kOw=\")","v":{"$error":"#VALUE!"}},{"$f":"AND('Building Envelope Calculator'!P152,\"SjzdAWq4kO0=\")","v":{"$error":"#VALUE!"}},{"$f":"AND('Building Envelope Calculator'!Q152,\"SjzdAWq4kO4=\")","v":{"$error":"#VALUE!"}},{"$f":"AND('Building Envelope Calculator'!R152,\"SjzdAWq4kO8=\")","v":{"$error":"#VALUE!"}},{"$f":"AND('Building Envelope Calculator'!S152,\"SjzdAWq4kPA=\")","v":{"$error":"#VALUE!"}},{"$f":"IF('Building Envelope Calculator'!A:A,\"SjzdAWq4kPE=\",0)","v":0},{"$f":"IF('Building Envelope Calculator'!B:B,\"SjzdAWq4kPI=\",0)","v":0},{"$f":"IF('Building Envelope Calculator'!C:C,\"SjzdAWq4kPM=\",0)","v":0},{"$f":"IF('Building Envelope Calculator'!D:D,\"SjzdAWq4kPQ=\",0)","v":0},{"$f":"IF('Building Envelope Calculator'!E:E,\"SjzdAWq4kPU=\",0)","v":0},{"$f":"IF('Building Envelope Calculator'!F:F,\"SjzdAWq4kPY=\",0)","v":0},{"$f":"IF('Building Envelope Calculator'!G:G,\"SjzdAWq4kPc=\",0)","v":0},{"$f":"IF('Building Envelope Calculator'!H:H,\"SjzdAWq4kPg=\",0)","v":0},{"$f":"IF('Building Envelope Calculator'!I:I,\"SjzdAWq4kPk=\",0)","v":0},{"$f":"IF('Building Envelope Calculator'!J:J,\"SjzdAWq4kPo=\",0)","v":0},{"$f":"IF('Building Envelope Calculator'!K:K,\"SjzdAWq4kPs=\",0)","v":0},{"$f":"IF('Building Envelope Calculator'!L:L,\"SjzdAWq4kPw=\",0)","v":0},{"$f":"IF('Building Envelope Calculator'!M:M,\"SjzdAWq4kP0=\",0)","v":0},{"$f":"IF('Building Envelope Calculator'!N:N,\"SjzdAWq4kP4=\",0)","v":0},{"$f":"IF('Building Envelope Calculator'!O:O,\"SjzdAWq4kP8=\",0)","v":0}]
[{"$f":"IF('Building Envelope Calculator'!P:P,\"SzdKY3vq/QA=\",0)","v":0},{"$f":"IF('Building Envelope Calculator'!Q:Q,\"SzdKY3vq/QE=\",0)","v":0},{"$f":"IF('Building Envelope Calculator'!R:R,\"SzdKY3vq/QI=\",0)","v":0},{"$f":"IF('Building Envelope Calculator'!S:S,\"SzdKY3vq/QM=\",0)","v":0},"SzdKY3vq/QQ=","SzdKY3vq/QU=","SzdKY3vq/QY=","SzdKY3vq/Qc=","SzdKY3vq/Qg=","SzdKY3vq/Qk=",{"$f":"IF(\"N\",'Quick Start Guide'!_xlnm.Print_Area,\"SzdKY3vq/Qo=\")","v":{"$error":"#VALUE!"}},{"$f":"IF(\"N\",rto_calc,\"SzdKY3vq/Qs=\")","v":{"$error":"#VALUE!"}},{"$f":"IF(\"N\",[0]!solver_adj,\"SzdKY3vq/Qw=\")","v":{"$error":"#VALUE!"}},{"$f":"IF(\"N\",[0]!solver_cvg,\"SzdKY3vq/Q0=\")","v":{"$error":"#VALUE!"}},{"$f":"IF(\"N\",[0]!solver_drv,\"SzdKY3vq/Q4=\")","v":{"$error":"#VALUE!"}},{"$f":"IF(\"N\",[0]!solver_est,\"SzdKY3vq/Q8=\")","v":{"$error":"#VALUE!"}},{"$f":"IF(\"N\",[0]!solver_itr,\"SzdKY3vq/RA=\")","v":{"$error":"#VALUE!"}},{"$f":"IF(\"N\",[0]!solver_lhs1,\"SzdKY3vq/RE=\")","v":{"$error":"#VALUE!"}},{"$f":"IF(\"N\",[0]!solver_lin,\"SzdKY3vq/RI=\")","v":{"$error":"#VALUE!"}},{"$f":"IF(\"N\",[0]!solver_neg,\"SzdKY3vq/RM=\")","v":{"$error":"#VALUE!"}},{"$f":"IF(\"N\",[0]!solver_num,\"SzdKY3vq/RQ=\")","v":{"$error":"#VALUE!"}},{"$f":"IF(\"N\",[0]!solver_nwt,\"SzdKY3vq/RU=\")","v":{"$error":"#VALUE!"}},{"$f":"IF(\"N\",[0]!solver_opt,\"SzdKY3vq/RY=\")","v":{"$error":"#VALUE!"}},{"$f":"IF(\"N\",[0]!solver_pre,\"SzdKY3vq/Rc=\")","v":{"$error":"#VALUE!"}},{"$f":"IF(\"N\",[0]!solver_rel1,\"SzdKY3vq/Rg=\")","v":{"$error":"#VALUE!"}},{"$f":"IF(\"N\",[0]!solver_rhs1,\"SzdKY3vq/Rk=\")","v":{"$error":"#VALUE!"}},{"$f":"IF(\"N\",[0]!solver_scl,\"SzdKY3vq/Ro=\")","v":{"$error":"#VALUE!"}},{"$f":"IF(\"N\",[0]!solver_sho,\"SzdKY3vq/Rs=\")","v":{"$error":"#VALUE!"}},{"$f":"IF(\"N\",[0]!solver_tim,\"SzdKY3vq/Rw=\")","v":{"$error":"#VALUE!"}},{"$f":"IF(\"N\",[0]!solver_tol,\"SzdKY3vq/R0=\")","v":{"$error":"#VALUE!"}},{"$f":"IF(\"N\",[0]!solver_typ,\"SzdKY3vq/R4=\")","v":{"$error":"#VALUE!"}},{"$f":"IF(\"N\",[0]!solver_val,\"SzdKY3vq/R8=\")","v":{"$error":"#VALUE!"}}]